{"text_format":"1","workbook":"xlsx","n_sheets":11,"sheets":["INSTRUCTIONS","Sponsored","Not Sponsored","Speedtypes","Department Listing","Transactional Departments","Fund","Class","Program","Operating Unit","ChartField1"],"not_rendered":{"charts":0,"images":0,"macros":1,"external_links":1,"defined_names":37,"comments":0,"pivot_tables":0},"unopened":[],"bounds":{"document_bytes":16777216,"sheet_cells":100000,"rows_first":2000,"rows_last":500,"rows_between":2000,"halvings":0,"cell_chars":16384,"cell_head_chars":4096},"cells_cut":0,"cells_raw":0,"read":"whole","date_system":"1900"}

{"sheet":"INSTRUCTIONS","index":0,"n_rows":83,"n_cols":3,"rows_kept":83,"cut":false,"hidden":false,"merged":[[75,0,75,2],[77,0,77,2],[79,0,79,2],[80,0,80,2],[82,0,82,2],[74,0,74,2],[51,0,51,2],[52,0,52,2],[54,0,54,2],[60,0,60,2],[62,0,62,2],[64,0,64,2],[66,0,66,2],[67,0,67,2],[69,0,69,2],[71,0,71,2],[72,0,72,2],[45,0,45,2],[16,0,16,2],[17,0,17,2],[19,0,19,2],[22,0,22,2],[24,0,24,2],[26,0,26,2],[27,0,27,2],[37,0,37,2],[38,0,38,2],[40,0,40,2],[43,0,43,2],[30,0,30,2],[34,0,34,2],[32,0,32,2],[14,0,14,2],[3,0,3,2],[6,0,6,2],[8,0,8,2],[11,0,11,2],[13,0,13,2]]}
["Sponsored/Grants Account Departmental Mapping "]
["and SpeedType Request Worksheet "]
[]
["This template includes data from all units, so please be cautious to modify data only relevant for your unit. Any changes to data outside of your units will be discarded. If you have any questions or exceptions, please make a note in your email when you send in your submission."]
[]
["Sponsored Account Departmental Mapping – Jan 22nd"]
["Some units have requested the opportunity to map restricted grants accounts to Department IDs other than the default Department ID.  If this is an option that is of interest to your unit, use this template to make those specifications.  "]
[]
["If you choose to submit these department identifications, the template must be received at Onesource@uga.edu no later than Monday, January 22nd at 8am.    Submit the entire worksheet.  At that time, you will have made no changes to the SpeedTypes tab, only the Sponsored tab."]
[]
["Working with the Template: "]
["Tab Sponsored contains current crosswalk information for all Legacy Restricted Accounts that are identified to be converted to PeopleSoft Sponsored Projects.  Use this tab to identify the PeopleSoft department to which the Sponsored Project current account should be mapped.  "]
[]
["Filter the data on tab Sponsored to see only your unit.  Your “Unit” is the first two digits of your PeopleSoft Department number series.  You can also filter by Legacy departments."]
["(See it here:  Filter by Unit and Legacy Department)"]
[]
["To remove filters, select the filter symbol at the bottom right of the heading for the filtered column, left click, and select “Clear Filter from ..” "]
[" (See it here: Remove Filters) "]
[]
["The complete crosswalk chartstring is shown for your information.  ONLY Department number (column J) can be modified.   If you want to change the default department shown for the project, type over the default department in column J.  The Department Name to the right will be updated automatically.   The specified department must meet two criteria: "]
[null,"1.","The department must be able to accept transactions.  Valid departments that can accept transactions are shown on tab Transactional Departments.  You will get an error if you try to use a non-valid department and it will reset the department number."]
[null,"2.","The department must be in the same unit as the default department.  Departments bearing the same first two digits are considered to be in the same unit.   Contact us at Onesource@uga.edu if you have a special situation in which the new actual department is in a different unit."]
["If the specified department does not meet this criteria, the department will be highlighted in red."]
[]
["Be careful in copying a department number to a RANGE of cells, rather than to individual cells in Column J.  If you have filtered the data, you may unintentionally copy into rows hidden by the filter. "]
[]
["The data is sorted by Unit and Legacy Department.  If you have resorted the data and want to sort back to the original order, run Macro Sort_Sponsored.  (Select Sponsored tab, Developer > Macros > Select Macro name Sort_Sponsored > Run.    "]
["(See it here: Sort Sponsored tab data)"]
[]
["Confirmation of Non-Sponsored Account Mapping  – Jan 22nd"]
["In the fall of 2017, the OneSource project asked each unit’s Chief Business Officer to provide default mapping information for your current departments to the new PeopleSoft Department ID. Additionally, units were given the opportunity to map non-sponsored account departments to Department IDs other than the default. \n"]
[]
["As units have reviewed their submissions, there have been several cases of typos that needed to be adjusted. We’re asking that you take the time now and review and sign off on all of your current mappings. Using the information in the Not Sponsored tab, review the current mappings of all non-sponsored accounts. "]
[]
["Your submission before or on January 22nd will serve as your sign-off of all of these mappings. The template will allow you to adjust the Departments column if you find anomalies or typos.  "]
[]
["SpeedType Requests – February 2nd"]
["A SpeedType is a 10 digit (alphanumeric) field which serves as a short cut for entering a chart string in PeopleSoft (PS) Financials.  SpeedTypes can be used in journals, intra-university payments, Expenses and Accounts Payable.  It is also used in other systems such as UGAmart and in Works (for PCard transactions).  You can find more information on SpeedTypes at  "]
["https://onesource.uga.edu/resources/speedtype/"]
[]
["The template containing your speedtypes must be received at Onesource@uga.edu by February 2nd for all SpeedTypes you want included in the system at go live on July 1, 2018."]
[]
["Working with the Template: "]
["If you submitted Departmental mappings for Sponsored Projects, begin with that same worksheet.  This will allow you easy access to the chartstrings for these Sponsored accounts, should you choose to create SpeedTypes for them."]
[]
["Enter your Requests for SpeedTypes on the tab SpeedTypes.  The desired SpeedType name should be entered in Column C and a description entered in Column D. "]
[null,"*","It is recommended that your SpeedTypes begin with your unit number, which is the first two digits of your department. SpeedTypes should be between four and 10 characters in length."]
[null,"*","SpeedTypes do not include Budget Reference (fiscal year) or Account Code (current object code). "]
[null,"*","SpeedTypes do not have to include a complete chartstring."]
[null,"*","PCard WORKS will accept only SpeedTypes with complete chartstrings.  If the SpeedType is to be used in PCard WORKS, respond “Y” in column R, headed “Will be Used in WORKS?”  "]
[]
["What is a “Complete chartstring”?  See the SpeedType Overview at"]
["https://onesource.uga.edu/resources/speedtype/"]
[]
["You can use the information on tabs Sponsored and Not Sponsored as starting points for building your SpeedTypes.  "]
[null,"*","Filter the data on these tabs to isolate the chartstrings relevant for you.  For example, filter for your Unit, your legacy department, or your PeopleSoft Department.  (See it here:  Filter by Unit and Legacy Department)"]
[null,"*","You can copy and paste data from the Sponsored or Not Sponsored tabs to your SpeedTypes tab, then remove or change the data to meet your needs.  (See an example: Copy and Paste to SpeedTypes )"]
[null,"*","Previously submitted SpeedTypes should be resubmitted on this form.  Previously submitted SpeedTypes may now be invalid due to extensive changes to the Chart of Accounts.  You should be able to copy and paste these from your prior submissions and make any needed revisions. "]
[]
["Using the SpeedType Table:"]
["Information on the SpeedTypes tab is organized in an Excel Table that needs to retain certain formatting. Submissions with altered tables will be returned to you. If not resubmitted in the correct format by the deadline, your SpeedType requests may not be included by July 1."]
[]
["Please do not attempt to delete columns in the table, or to insert columns.  You can enter information in the first blank column to the right of the table data, and the table will automatically expand to encompass it. "]
[]
["Please do not attempt to modify any formulas. "]
[]
["To Insert Rows:"]
["Begin entering data in Column A of the first blank row following the table, and the table will automatically expand to encompass that new row."]
[]
["Alternatively, right click the cell in column A on the row BELOW where you’d like to insert a row.  Select Insert, Table Rows Above."]
[]
["To Delete Rows:"]
["Select the row, right click, and select Delete. "]
[]
["To Sort:"]
["Select the Down arrow at the bottom right of the Heading for the column you’d like to sort by.  You can select the option to sort ascending (Sort A to Z), or descending (Sort Z to A).   \n\n"]
[]
["You can also sort by color, which will allow you to group all the rows that show errors in that column.    Select the Down arrow at the bottom right of the Heading for the Column, select Sort by Color, then make selection an option that is provided, based on the data in the column.  \n"]
[]
["To Filter:"]
["Select the Down arrow at the bottom right of the Heading for the column you’d like to filter by.  Select or enter the values you’d like to filter for.   \n"]
[]
["You can also filter by color, which allows you to see only the rows that are highlighted in red. "]

{"sheet":"Sponsored","index":1,"n_rows":4975,"n_cols":20,"rows_kept":4975,"cut":false,"hidden":false,"merged":[]}
["Unit","Legacy Dept","speedtype\n (Hide)","speedtype desc\n(Hide)","Legacy Account Description","Legacy COA","Fund ","Program","Class","EDIT HERE \nDepartment","Dept Name","Original Department","PCBU","Project ID","Activity ID","Operating Unit","Chartfield 1"]
["14","004",null,null,"C&G CCG  INTERIM PRES    MILLE","1031RE004141","20000","13100","62024","14001001",{"$f":"VLOOKUP(TRIM(J2),'Transactional Departments'!A:B,2,FALSE)","v":"AA Administration"},"14001001","18003","SCOCSRE004141CV","A01","",""]
["14","021",null,null,"HENRY LUCUGA_DORIS ULMAN_GILLE","1011RH021016","20000","11100","64396","14002001",{"$f":"VLOOKUP(TRIM(J3),'Transactional Departments'!A:B,2,FALSE)","v":"GMOA Departmental Adm"},"14002001","18003","SLUCERH021016CV","A01","",""]
["14","021",null,null,"GHC      STHRN FURNTRE   EILAN","1011RH021164","20000","11100","62041","14002001",{"$f":"VLOOKUP(TRIM(J4),'Transactional Departments'!A:B,2,FALSE)","v":"GMOA Departmental Adm"},"14002001","18003","SGEHCRH021164CV","A01","",""]
["14","021",null,null,"CCCD     7 DECADES TEXTI_EILAN","1011RH021175","20000","11100","64242","14002001",{"$f":"VLOOKUP(TRIM(J5),'Transactional Departments'!A:B,2,FALSE)","v":"GMOA Departmental Adm"},"14002001","18003","SCTCDRH021175CV","A01","",""]
["14","021",null,null,"GCFA     UGA_FY17 PARTNE_EILAN","1011RH021181","20000","11100","62026","14002001",{"$f":"VLOOKUP(TRIM(J6),'Transactional Departments'!A:B,2,FALSE)","v":"GMOA Departmental Adm"},"14002001","18003","SGCFARH021181CV","A01","",""]
["14","021",null,null,"NEA      SUP 021-146     EILAN","1031RE021147","20000","13100","61024","14002001",{"$f":"VLOOKUP(TRIM(J7),'Transactional Departments'!A:B,2,FALSE)","v":"GMOA Departmental Adm"},"14002001","18003","SNEFARE021147CV","A01","",""]
["14","021",null,null,"GCA      FY17 GCA ART ED EILAN","1031RE021180","20000","13100","62026","14002001",{"$f":"VLOOKUP(TRIM(J8),'Transactional Departments'!A:B,2,FALSE)","v":"GMOA Departmental Adm"},"14002001","18003","SGCFARE021180CV","A01","",""]
["14","021",null,null,"GCA/NEA  FY18 PARTNER    EILAN","1031RE021188","20000","13100","62026","14002001",{"$f":"VLOOKUP(TRIM(J9),'Transactional Departments'!A:B,2,FALSE)","v":"GMOA Departmental Adm"},"14002001","18003","SGCFARE021188CV","A01","",""]
["14","335",null,null,"NSF      RF EXC SCI NTWK SLAUG","1021RR335059","20000","12100","61023","14004001",{"$f":"VLOOKUP(TRIM(J10),'Transactional Departments'!A:B,2,FALSE)","v":"IHE Administration"},"14004001","18400","RNSFXRR335059CV","A01","",""]
["14","335",null,null,"         RF COMPL POLICY NESS ","1021RR335061","20000","12100","64391","14004001",{"$f":"VLOOKUP(TRIM(J11),'Transactional Departments'!A:B,2,FALSE)","v":"IHE Administration"},"14004001","18003","SWTGFRR335061CV","A01","",""]
["14","335",null,null,"AERA/NIH UGA_ARE THERE A_GONZA","1021RR335074","20000","12100","64330","14004001",{"$f":"VLOOKUP(TRIM(J12),'Transactional Departments'!A:B,2,FALSE)","v":"IHE Administration"},"14004001","18003","SAERARR335074CV","A01","",""]
["14","335",null,null,"TCI      RF JOB SATISF   WEBBE","1021RR335076","20000","12100","64365","14004001",{"$f":"VLOOKUP(TRIM(J13),'Transactional Departments'!A:B,2,FALSE)","v":"IHE Administration"},"14004001","18400","RTIAARR335076CV","A01","",""]
["14","335",null,null,"GCAC     RF GA CAC FY18 _MORRI","1021RR335077","20000","12100","64169","14004001",{"$f":"VLOOKUP(TRIM(J14),'Transactional Departments'!A:B,2,FALSE)","v":"IHE Administration"},"14004001","18400","RCOACRR335077CV","A01","",""]
["14","335",null,null,"UGAF PASSMAYNARD J HS    MORRI","1031RE335069","20000","13100","64410","14004001",{"$f":"VLOOKUP(TRIM(J15),'Transactional Departments'!A:B,2,FALSE)","v":"IHE Administration"},"14004001","18003","SZEFIRE335069CV","A01","",""]
["14","335",null,null,"CAC      UGA_GA CAC FY17_MORRI","1031RE335075","20000","13100","64169","14004001",{"$f":"VLOOKUP(TRIM(J16),'Transactional Departments'!A:B,2,FALSE)","v":"IHE Administration"},"14004001","18003","SCOACRE335075CV","A01","",""]
["14","534",null,null,"NSF/SKIO RF CRA 93_397   CLARK","2321RR534003","21335","12100","61023","14009100",{"$f":"VLOOKUP(TRIM(J17),'Transactional Departments'!A:B,2,FALSE)","v":"SKIO General Research"},"14009100","18400","RNSFXRR534003CV","A01","",""]
["14","534",null,null,"NSF      RF SHIP RR534013     ","2321RR534013","21335","12100","61023","14009100",{"$f":"VLOOKUP(TRIM(J18),'Transactional Departments'!A:B,2,FALSE)","v":"SKIO General Research"},"14009100","18400","RNSFXRR534013CV","A01","",""]
["14","534",null,null,"LANS/SKIORF JOB 93_237 BLAN AL","2321RR534027","21335","12100","64000","14009100",{"$f":"VLOOKUP(TRIM(J19),'Transactional Departments'!A:B,2,FALSE)","v":"SKIO General Research"},"14009100","18400","RLNNSRR534027CV","A01","",""]
["14","534",null,null,"LANS/SKIORF CRA 93_238W/027 AL","2321RR534028","21335","12100","64000","14009100",{"$f":"VLOOKUP(TRIM(J20),'Transactional Departments'!A:B,2,FALSE)","v":"SKIO General Research"},"14009100","18400","RLNNSRR534028CV","A01","",""]
["14","534",null,null,"SCOO/SKIORF DKS 93_376   SAVID","2321RR534031","21335","12100","64151","14009100",{"$f":"VLOOKUP(TRIM(J21),'Transactional Departments'!A:B,2,FALSE)","v":"SKIO General Research"},"14009100","18400","RSECORR534031CV","A01","",""]
["14","534",null,null,"ECAU/SKIORF CRA 93_395 ALALEXA","2321RR534035","21335","12100","62548","14009100",{"$f":"VLOOKUP(TRIM(J22),'Transactional Departments'!A:B,2,FALSE)","v":"SKIO General Research"},"14009100","18400","REACURR534035CV","A01","",""]
["14","534",null,null,"USDC/SKIORF GRS 93_479W/039 SA","2321RR534040","21335","12100","61009","14009100",{"$f":"VLOOKUP(TRIM(J23),'Transactional Departments'!A:B,2,FALSE)","v":"SKIO General Research"},"14009100","18400","RUSDCRR534040CV","A01","",""]
["14","534",null,null,"NSF/SKIO RF 93_261 PSUP534-017","2321RR534046","21335","12100","61023","14009100",{"$f":"VLOOKUP(TRIM(J24),'Transactional Departments'!A:B,2,FALSE)","v":"SKIO General Research"},"14009100","18400","RNSFXRR534046CV","A01","",""]
["14","534",null,null,"NSF      RF PRIMING EFT  STUBB","2321RR534058","21335","12100","61023","14009100",{"$f":"VLOOKUP(TRIM(J25),'Transactional Departments'!A:B,2,FALSE)","v":"SKIO General Research"},"14009100","18400","RNSFXRR534058CV","A01","",""]
["14","534",null,null,"NSF      RF PULSE-SHUNT  STUBB","2321RR534060","21335","12100","61023","14009100",{"$f":"VLOOKUP(TRIM(J26),'Transactional Departments'!A:B,2,FALSE)","v":"SKIO General Research"},"14009100","18400","RNSFXRR534060CV","A01","",""]
["14","534",null,null,"NSF/SKIO RF W/ 534-045_RICHT  ","2321RR534061","21335","12100","61023","14009100",{"$f":"VLOOKUP(TRIM(J27),'Transactional Departments'!A:B,2,FALSE)","v":"SKIO General Research"},"14009100","18400","RNSFXRR534061CV","A01","",""]
["14","534",null,null,"USDC/SKIORF 93.473       SANDE","2321RR534062","21335","12100","61009","14009100",{"$f":"VLOOKUP(TRIM(J28),'Transactional Departments'!A:B,2,FALSE)","v":"SKIO General Research"},"14009100","18400","RUSDCRR534062CV","A01","",""]
["14","534",null,null,"USDC     RF GRNMS FY14   SANDE","2321RR534065","21335","12100","61009","14009100",{"$f":"VLOOKUP(TRIM(J29),'Transactional Departments'!A:B,2,FALSE)","v":"SKIO General Research"},"14009100","18400","RUSDCRR534065CV","A01","",""]
["14","534",null,null,"NSF      RF POREWATER    SAVID","2321RR534068","21335","12100","61023","14009100",{"$f":"VLOOKUP(TRIM(J30),'Transactional Departments'!A:B,2,FALSE)","v":"SKIO General Research"},"14009100","18400","RNSFXRR534068CV","A01","",""]
["14","534",null,null,"NSF      RF GEOTRACES    BUCK ","2321RR534070","21335","12100","61023","14009100",{"$f":"VLOOKUP(TRIM(J31),'Transactional Departments'!A:B,2,FALSE)","v":"SKIO General Research"},"14009100","18400","RNSFXRR534070CV","A01","",""]
["14","534",null,null,"GDNR/USDCRF HIGH RES MAP ALEXA","2321RR534073","21335","12100","62016","14009100",{"$f":"VLOOKUP(TRIM(J32),'Transactional Departments'!A:B,2,FALSE)","v":"SKIO General Research"},"14009100","18400","RGDNRRR534073CV","A01","",""]
["14","534",null,null,"NSF      RF W/ 100657    ALBER","2321RR534075","21335","12100","61023","14009100",{"$f":"VLOOKUP(TRIM(J33),'Transactional Departments'!A:B,2,FALSE)","v":"SKIO General Research"},"14009100","18400","RNSFXRR534075CV","A01","",""]
["14","534",null,null,"NSF      RF CRYPTIC DIET FRISC","2321RR534077","21335","12100","61023","14009100",{"$f":"VLOOKUP(TRIM(J34),'Transactional Departments'!A:B,2,FALSE)","v":"SKIO General Research"},"14009100","18400","RNSFXRR534077CV","A01","",""]
["14","534",null,null,"GMRI     RF W/ RR100-047 JOYE ","2321RR534078","21335","12100","64233","14009100",{"$f":"VLOOKUP(TRIM(J35),'Transactional Departments'!A:B,2,FALSE)","v":"SKIO General Research"},"14009100","18400","RGMEXRR534078CV","A01","",""]
["14","534",null,null,"NSF      RF R/V SAV/SSSE SANDE","2321RR534080","21335","12100","61023","14009100",{"$f":"VLOOKUP(TRIM(J36),'Transactional Departments'!A:B,2,FALSE)","v":"SKIO General Research"},"14009100","18400","RNSFXRR534080CV","A01","",""]
["14","534",null,null,"NSF      RF MICRO DIVER  STUBB","2321RR534082","21335","12100","61023","14009100",{"$f":"VLOOKUP(TRIM(J37),'Transactional Departments'!A:B,2,FALSE)","v":"SKIO General Research"},"14009100","18400","RNSFXRR534082CV","A01","",""]
["14","534",null,null,"USDD     RF SHIP SUPPORT RICHT","2321RR534085","21335","12100","61012","14009100",{"$f":"VLOOKUP(TRIM(J38),'Transactional Departments'!A:B,2,FALSE)","v":"SKIO General Research"},"14009100","18400","RUSDDRR534085CV","A01","",""]
["14","534",null,null,"USDD     RF TECH SUPPORT RICHT","2321RR534086","21335","12100","61012","14009100",{"$f":"VLOOKUP(TRIM(J39),'Transactional Departments'!A:B,2,FALSE)","v":"SKIO General Research"},"14009100","18400","RUSDDRR534086CV","A01","",""]
["14","534",null,null,"USDC     RF GRNMS        SANDE","2321RR534087","21335","12100","61009","14009100",{"$f":"VLOOKUP(TRIM(J40),'Transactional Departments'!A:B,2,FALSE)","v":"SKIO General Research"},"14009100","18400","RUSDCRR534087CV","A01","",""]
["14","534",null,null,"USDC     RF ONMS         SANDE","2321RR534088","21335","12100","61009","14009100",{"$f":"VLOOKUP(TRIM(J41),'Transactional Departments'!A:B,2,FALSE)","v":"SKIO General Research"},"14009100","18400","RUSDCRR534088CV","A01","",""]
["14","534",null,null,"USDC     RF ONMS/DARRF   SANDE","2321RR534089","21335","12100","61009","14009100",{"$f":"VLOOKUP(TRIM(J42),'Transactional Departments'!A:B,2,FALSE)","v":"SKIO General Research"},"14009100","18400","RUSDCRR534089CV","A01","",""]
["14","534",null,null,"GDNR     RF SONAR SYSTEM ALEXA","2321RR534090","21335","12100","62016","14009100",{"$f":"VLOOKUP(TRIM(J43),'Transactional Departments'!A:B,2,FALSE)","v":"SKIO General Research"},"14009100","18400","RGDNRRR534090CV","A01","",""]
["14","534",null,null,"WHOI/NSF RF VIRAL LYSIS  HARVE","2321RR534091","21335","12100","64199","14009100",{"$f":"VLOOKUP(TRIM(J44),'Transactional Departments'!A:B,2,FALSE)","v":"SKIO General Research"},"14009100","18400","RWHOIRR534091CV","A01","",""]
["14","534",null,null,"NSF      RF EXOGENOUS    DIAZ ","2321RR534092","21335","12100","61023","14009100",{"$f":"VLOOKUP(TRIM(J45),'Transactional Departments'!A:B,2,FALSE)","v":"SKIO General Research"},"14009100","18400","RNSFXRR534092CV","A01","",""]
["14","534",null,null,"USDC     RF R/RCE-ALEX-16     ","2321RR534093","21335","12100","61009","14009100",{"$f":"VLOOKUP(TRIM(J46),'Transactional Departments'!A:B,2,FALSE)","v":"SKIO General Research"},"14009100","18400","RUSDCRR534093CV","A01","",""]
["14","534",null,null,"USDC     RF R/SFA-BRAN-16     ","2321RR534094","21335","12100","61009","14009100",{"$f":"VLOOKUP(TRIM(J47),'Transactional Departments'!A:B,2,FALSE)","v":"SKIO General Research"},"14009100","18400","RUSDCRR534094CV","A01","",""]
["14","534",null,null,"USDC     RF R/SFA-FRIS-16     ","2321RR534095","21335","12100","61009","14009100",{"$f":"VLOOKUP(TRIM(J48),'Transactional Departments'!A:B,2,FALSE)","v":"SKIO General Research"},"14009100","18400","RUSDCRR534095CV","A01","",""]
["14","534",null,null,"NSF      RF DEEP OCEAN   SAVID","2321RR534097","21335","12100","61023","14009100",{"$f":"VLOOKUP(TRIM(J49),'Transactional Departments'!A:B,2,FALSE)","v":"SKIO General Research"},"14009100","18400","RNSFXRR534097CV","A01","",""]
["14","534",null,null,"NSF      RF RR534-097    SAVID","2321RR534098","21335","12100","61023","14009100",{"$f":"VLOOKUP(TRIM(J50),'Transactional Departments'!A:B,2,FALSE)","v":"SKIO General Research"},"14009100","18400","RNSFXRR534098CV","A01","",""]
["14","534",null,null,"SECORA   RF DECISION-MKR SAVID","2321RR534099","21335","12100","64151","14009100",{"$f":"VLOOKUP(TRIM(J51),'Transactional Departments'!A:B,2,FALSE)","v":"SKIO General Research"},"14009100","18400","RSECORR534099CV","A01","",""]
["14","534",null,null,"         RF SECOORA      EDWAR","2321RR534101","21335","12100","64151","14009100",{"$f":"VLOOKUP(TRIM(J52),'Transactional Departments'!A:B,2,FALSE)","v":"SKIO General Research"},"14009100","18003","SSECORR534101CV","A01","",""]
["14","534",null,null,"NSF      RF DIC PHOPROD  BRAND","2321RR534102","21335","12100","61023","14009100",{"$f":"VLOOKUP(TRIM(J53),'Transactional Departments'!A:B,2,FALSE)","v":"SKIO General Research"},"14009100","18400","RNSFXRR534102CV","A01","",""]
["14","534",null,null,"NSF      RF LIME         HARVE","2321RR534103","21335","12100","61023","14009100",{"$f":"VLOOKUP(TRIM(J54),'Transactional Departments'!A:B,2,FALSE)","v":"SKIO General Research"},"14009100","18400","RNSFXRR534103CV","A01","",""]
["14","534",null,null,"NSF      RF RR534-104         ","2321RR534104","21335","12100","61023","14009100",{"$f":"VLOOKUP(TRIM(J55),'Transactional Departments'!A:B,2,FALSE)","v":"SKIO General Research"},"14009100","18400","RNSFXRR534104CV","A01","",""]
["14","534",null,null,"NSF      RF RR534-102 POWERS  ","2321RR534105","21335","12100","61023","14009100",{"$f":"VLOOKUP(TRIM(J56),'Transactional Departments'!A:B,2,FALSE)","v":"SKIO General Research"},"14009100","18400","RNSFXRR534105CV","A01","",""]
["14","534",null,null,"USDI     RF FORT PULASKI ALEXA","2321RR534106","21335","12100","61034","14009100",{"$f":"VLOOKUP(TRIM(J57),'Transactional Departments'!A:B,2,FALSE)","v":"SKIO General Research"},"14009100","18400","RCESURR534106CV","A01","",""]
["14","534",null,null,"GDNR/USDCRF INCNTVE GRNT ALEXA","2321RR534107","21335","12100","62016","14009100",{"$f":"VLOOKUP(TRIM(J58),'Transactional Departments'!A:B,2,FALSE)","v":"SKIO General Research"},"14009100","18400","RGDNRRR534107CV","A01","",""]
["14","534",null,null,"GDNR/USDCRF OXYGEN DATA  SAVID","2321RR534108","21335","12100","62016","14009100",{"$f":"VLOOKUP(TRIM(J59),'Transactional Departments'!A:B,2,FALSE)","v":"SKIO General Research"},"14009100","18400","RGDNRRR534108CV","A01","",""]
["14","534",null,null,"GDNR/USDCRF COASTAL GA   ALEXA","2321RR534109","21335","12100","62016","14009100",{"$f":"VLOOKUP(TRIM(J60),'Transactional Departments'!A:B,2,FALSE)","v":"SKIO General Research"},"14009100","18400","RGDNRRR534109CV","A01","",""]
["14","534",null,null,"GDNR/USDCRF BLACK GILL   FRISC","2321RR534110","21335","12100","62016","14009100",{"$f":"VLOOKUP(TRIM(J61),'Transactional Departments'!A:B,2,FALSE)","v":"SKIO General Research"},"14009100","18400","RGDNRRR534110CV","A01","",""]
["14","534",null,null,"USDI     RF SAND RESOURC ALEXA","2321RR534111","21335","12100","61019","14009100",{"$f":"VLOOKUP(TRIM(J62),'Transactional Departments'!A:B,2,FALSE)","v":"SKIO General Research"},"14009100","18400","RUSDIRR534111CV","A01","",""]
["14","534",null,null,"GDOT     RF BIRD-LONG ISLALEXA","2321RR534112","21335","12100","62017","14009100",{"$f":"VLOOKUP(TRIM(J63),'Transactional Departments'!A:B,2,FALSE)","v":"SKIO General Research"},"14009100","18400","RGDOTRR534112CV","A01","",""]
["14","534",null,null,"USDC     RF GRNMS        SANDE","2321RR534113","21335","12100","61009","14009100",{"$f":"VLOOKUP(TRIM(J64),'Transactional Departments'!A:B,2,FALSE)","v":"SKIO General Research"},"14009100","18400","RUSDCRR534113CV","A01","",""]
["14","534",null,null,"USDC     RF SEGOM REGION SANDE","2321RR534114","21335","12100","61009","14009100",{"$f":"VLOOKUP(TRIM(J65),'Transactional Departments'!A:B,2,FALSE)","v":"SKIO General Research"},"14009100","18400","RUSDCRR534114CV","A01","",""]
["14","534",null,null,"USDC     RF ONMS/NEGL    SANDE","2321RR534115","21335","12100","61009","14009100",{"$f":"VLOOKUP(TRIM(J66),'Transactional Departments'!A:B,2,FALSE)","v":"SKIO General Research"},"14009100","18400","RUSDCRR534115CV","A01","",""]
["14","534",null,null,"SCDNR    RF PETROLOGY    ALEXA","2321RR534117","21335","12100","62550","14009100",{"$f":"VLOOKUP(TRIM(J67),'Transactional Departments'!A:B,2,FALSE)","v":"SKIO General Research"},"14009100","18400","RSCNRRR534117CV","A01","",""]
["14","534",null,null,"NSF      RF SHP OPS MOSA SANDE","2321RR534119","21335","12100","61023","14009100",{"$f":"VLOOKUP(TRIM(J68),'Transactional Departments'!A:B,2,FALSE)","v":"SKIO General Research"},"14009100","18400","RNSFXRR534119CV","A01","",""]
["14","534",null,null,"NSF      RF RR534-082 PS STUBB","2321RR534120","21335","12100","61023","14009100",{"$f":"VLOOKUP(TRIM(J69),'Transactional Departments'!A:B,2,FALSE)","v":"SKIO General Research"},"14009100","18400","RNSFXRR534120CV","A01","",""]
["14","534",null,null,"NSF      RF PHYTOPLANKTN HARVE","2321RR534121","21335","12100","61023","14009100",{"$f":"VLOOKUP(TRIM(J70),'Transactional Departments'!A:B,2,FALSE)","v":"SKIO General Research"},"14009100","18400","RNSFXRR534121CV","A01","",""]
["14","534",null,null,"NSF      RF RR534-121 PS HARVE","2321RR534122","21335","12100","61023","14009100",{"$f":"VLOOKUP(TRIM(J71),'Transactional Departments'!A:B,2,FALSE)","v":"SKIO General Research"},"14009100","18400","RNSFXRR534122CV","A01","",""]
["14","534",null,null,"USDOD    RF MOSA         BICHY","2321RR534123","21335","12100","61012","14009100",{"$f":"VLOOKUP(TRIM(J72),'Transactional Departments'!A:B,2,FALSE)","v":"SKIO General Research"},"14009100","18400","RUSDDRR534123CV","A01","",""]
["14","534",null,null,"USDOD    RF TECH SVCS    BICHY","2321RR534125","21335","12100","61012","14009100",{"$f":"VLOOKUP(TRIM(J73),'Transactional Departments'!A:B,2,FALSE)","v":"SKIO General Research"},"14009100","18400","RUSDDRR534125CV","A01","",""]
["14","534",null,null,"NSF      RF RV SAVANNAH  BICHY","2321RR534126","21335","12100","61023","14009100",{"$f":"VLOOKUP(TRIM(J74),'Transactional Departments'!A:B,2,FALSE)","v":"SKIO General Research"},"14009100","18400","RNSFXRR534126CV","A01","",""]
["14","534",null,null,"NSF/SKIO RF RR534-045         ","2321RR534127","21335","12100","61023","14009100",{"$f":"VLOOKUP(TRIM(J75),'Transactional Departments'!A:B,2,FALSE)","v":"SKIO General Research"},"14009100","18400","RNSFXRR534127CV","A01","",""]
["14","534",null,null,"NSF      RF SHIP RR534013     ","2371RP534013","21335","17100","61023","14009100",{"$f":"VLOOKUP(TRIM(J76),'Transactional Departments'!A:B,2,FALSE)","v":"SKIO General Research"},"14009100","18400","RNSFXRP534013CV","A01","",""]
["14","534",null,null,"NSF      RF RR534-104         ","2371RP534104","21335","17100","61023","14009100",{"$f":"VLOOKUP(TRIM(J77),'Transactional Departments'!A:B,2,FALSE)","v":"SKIO General Research"},"14009100","18400","RNSFXRP534104CV","A01","",""]
["14","617",null,null,"GCA      SYMPHONY ORCH09 BARTH","1031RE617009","20000","13100","62026","14008001",{"$f":"VLOOKUP(TRIM(J78),'Transactional Departments'!A:B,2,FALSE)","v":"Performing Arts Admin"},"14008001","18003","SGCFARE617009CV","A01","",""]
["14","617",null,null,"         GCA FY17        FOREM","1031RE617028","20000","13100","62026","14008001",{"$f":"VLOOKUP(TRIM(J79),'Transactional Departments'!A:B,2,FALSE)","v":"Performing Arts Admin"},"14008001","18003","SGCFARE617028CV","A01","",""]
["14","617",null,null,"         ATHFEST EDUC    FOREM","1031RE617032","20000","13100","64194","14008001",{"$f":"VLOOKUP(TRIM(J80),'Transactional Departments'!A:B,2,FALSE)","v":"Performing Arts Admin"},"14008001","18003","SATHFRE617032CV","A01","",""]
["14","723",null,null,"PEACE CORFY16 CAMPUS REC_PANDI","1031RE723341","20000","13100","61029","14006102",{"$f":"VLOOKUP(TRIM(J81),'Transactional Departments'!A:B,2,FALSE)","v":"OIE Admin Office"},"14006102","18003","SPEACRE723341CV","A01","",""]
["14","723",null,null,"PEACE CORFY17 CAMPUS REC PANDI","1031RE723380","20000","13100","61029","14006102",{"$f":"VLOOKUP(TRIM(J82),'Transactional Departments'!A:B,2,FALSE)","v":"OIE Admin Office"},"14006102","18003","SPEACRE723380CV","A01","",""]
["14","723",null,null,"PEAC CORPFY18 CAMPUS REC      ","1031RE723382","20000","13100","61029","14006102",{"$f":"VLOOKUP(TRIM(J83),'Transactional Departments'!A:B,2,FALSE)","v":"OIE Admin Office"},"14006102","18003","SPEACRE723382CV","A01","",""]
["14","740",null,null,"NSF      RF LSAMP        COOK ","1021RR740010","20000","12100","61023","14005001",{"$f":"VLOOKUP(TRIM(J84),'Transactional Departments'!A:B,2,FALSE)","v":"OID Administration"},"14005001","18400","RNSFXRR740010CV","A01","",""]
["14","740",null,null,"NSF      RF PS 740-010   COOK ","1021RR740011","20000","12100","61023","14005001",{"$f":"VLOOKUP(TRIM(J85),'Transactional Departments'!A:B,2,FALSE)","v":"OID Administration"},"14005001","18400","RNSFXRR740011CV","A01","",""]
["14","740",null,null,"NSF      PI W/ RR740010  COOK ","1021RR740012","20000","12100","61023","14005001",{"$f":"VLOOKUP(TRIM(J86),'Transactional Departments'!A:B,2,FALSE)","v":"OID Administration"},"14005001","18003","SNSFXRR740012CV","A01","",""]
["14","740",null,null,"NSF      RF RF_PEACH LSAMCOOK ","1021RR740019","20000","12100","61023","14005001",{"$f":"VLOOKUP(TRIM(J87),'Transactional Departments'!A:B,2,FALSE)","v":"OID Administration"},"14005001","18400","RNSFXRR740019CV","A01","",""]
["14","740",null,null,"NSF      RF PS W/ 740019_COOK ","1021RR740020","20000","12100","61023","14005001",{"$f":"VLOOKUP(TRIM(J88),'Transactional Departments'!A:B,2,FALSE)","v":"OID Administration"},"14005001","18400","RNSFXRR740020CV","A01","",""]
["14","740",null,null,"NSF      RF P/S WITH RR740-021","1021RR740022","20000","12100","61023","14005001",{"$f":"VLOOKUP(TRIM(J89),'Transactional Departments'!A:B,2,FALSE)","v":"OID Administration"},"14005001","18400","RNSFXRR740022CV","A01","",""]
["14","740",null,null,"NSF         PROG INC FOR COOK ","1021RR740024","20000","12100","61023","14005001",{"$f":"VLOOKUP(TRIM(J90),'Transactional Departments'!A:B,2,FALSE)","v":"OID Administration"},"14005001","18003","SNSFXRR740024CV","A01","",""]
["14","740",null,null,"USG      UGA_GAAME      _COOK ","1031RE740018","20000","13100","62020","14005001",{"$f":"VLOOKUP(TRIM(J91),'Transactional Departments'!A:B,2,FALSE)","v":"OID Administration"},"14005001","18003","SGBORRE740018CV","A01","",""]
["14","740",null,null,"USG      UGA GAAME       COOK ","1031RE740023","20000","13100","62020","14005001",{"$f":"VLOOKUP(TRIM(J92),'Transactional Departments'!A:B,2,FALSE)","v":"OID Administration"},"14005001","18003","SGBORRE740023CV","A01","",""]
["15","010",null,null,"SHEFFIELDBRADLEY HALE    WELLS","1011RH010064","20000","11100","64182","15400001",{"$f":"VLOOKUP(TRIM(J93),'Transactional Departments'!A:B,2,FALSE)","v":"The Press Budget"},"15400001","18003","SSHEFRH010064CV","A01","",""]
["15","010",null,null,"VARIOUS  BRUCE MCEVER FUNWELLS","1011RH010065","20000","11100","64206","15400001",{"$f":"VLOOKUP(TRIM(J94),'Transactional Departments'!A:B,2,FALSE)","v":"The Press Budget"},"15400001","18003","SVARIRH010065CV","A01","",""]
["15","010",null,null,"         EARLY AMER REGIOBAYER","1021RR010061","20000","12100","64392","15400001",{"$f":"VLOOKUP(TRIM(J95),'Transactional Departments'!A:B,2,FALSE)","v":"The Press Budget"},"15400001","18003","SAWMFRR010061CV","A01","",""]
["15","010",null,null,"         INT W/ 010-061  MITCH","1021RR010062","20000","12100","64392","15400001",{"$f":"VLOOKUP(TRIM(J96),'Transactional Departments'!A:B,2,FALSE)","v":"The Press Budget"},"15400001","18003","SAWMFRR010062CV","A01","",""]
["15","010",null,null,"         HODGE FDN GIFTS WELLS","1021RR010063","20000","12100","64206","15400001",{"$f":"VLOOKUP(TRIM(J97),'Transactional Departments'!A:B,2,FALSE)","v":"The Press Budget"},"15400001","18003","SVARIRR010063CV","A01","",""]
["15","010",null,null,"         WATSON BROWN    BAYER","1031RE010046","20000","13100","64000","15400001",{"$f":"VLOOKUP(TRIM(J98),'Transactional Departments'!A:B,2,FALSE)","v":"The Press Budget"},"15400001","18003","SXXXXRE010046CV","A01","",""]
["15","010",null,null,"VARIOUS  INC TYE B PB S OWELLS","1031RE010066","20000","13100","64206","15400001",{"$f":"VLOOKUP(TRIM(J99),'Transactional Departments'!A:B,2,FALSE)","v":"The Press Budget"},"15400001","18003","SVARIRE010066CV","A01","",""]
["15","010",null,null,"UW/AMF   PRESS DIVERSITY GUSIN","1031RE010108","20000","13100","62541","15400001",{"$f":"VLOOKUP(TRIM(J100),'Transactional Departments'!A:B,2,FALSE)","v":"The Press Budget"},"15400001","18003","SUOWARE010108CV","A01","",""]
["15","010",null,null,"UW/AMF   RE010-108 II    GUSIN","1031RE010109","20000","13100","62541","15400001",{"$f":"VLOOKUP(TRIM(J101),'Transactional Departments'!A:B,2,FALSE)","v":"The Press Budget"},"15400001","18003","SUOWARE010109CV","A01","",""]
["15","020",null,null,"NEA      NEA GAP FY 16   SOLOM","1031RE020021","20000","13100","61024","15500001",{"$f":"VLOOKUP(TRIM(J102),'Transactional Departments'!A:B,2,FALSE)","v":"Georgia Review General"},"15500001","18003","SNEFARE020021CV","A01","",""]
["15","265",null,null,"OKC      DIGITAL LIBRARY MCALI","1031RE265034","20000","13100","64000","15100001",{"$f":"VLOOKUP(TRIM(J103),'Transactional Departments'!A:B,2,FALSE)","v":"Libraries Budget"},"15100001","18003","SDNOARE265034CV","A01","",""]
["15","265",null,null,"GHC NEA  ATOM BOMB 45-66_LEVIN","1031RE265039","20000","13100","62041","15100001",{"$f":"VLOOKUP(TRIM(J104),'Transactional Departments'!A:B,2,FALSE)","v":"Libraries Budget"},"15100001","18003","SGEHCRE265039CV","A01","",""]
["15","265",null,null,"DPLA/BMGFLOCAL SKILLS    MCALI","1031RE265040","20000","13100","64000","15100001",{"$f":"VLOOKUP(TRIM(J105),'Transactional Departments'!A:B,2,FALSE)","v":"Libraries Budget"},"15100001","18003","SDNOARE265040CV","A01","",""]
["15","265",null,null,"NEH      UGA_SPIRITED____HEBBA","1031RE265158","20000","13100","61025","15100001",{"$f":"VLOOKUP(TRIM(J106),'Transactional Departments'!A:B,2,FALSE)","v":"Libraries Budget"},"15100001","18003","SNEFHRE265158CV","A01","",""]
["15","265",null,null,"NEH      UGA_NDNP________MCALI","1031RE265162","20000","13100","61025","15100001",{"$f":"VLOOKUP(TRIM(J107),'Transactional Departments'!A:B,2,FALSE)","v":"Libraries Budget"},"15100001","18003","SNEFHRE265162CV","A01","",""]
["15","265",null,null,"ATL UNIV UGA_OUR STORY___MCALI","1031RE265163","20000","13100","64000","15100001",{"$f":"VLOOKUP(TRIM(J108),'Transactional Departments'!A:B,2,FALSE)","v":"Libraries Budget"},"15100001","18003","SXXXXRE265163CV","A01","",""]
["15","265",null,null,"         RUSSELL LIB FD  MATTH","1041RT265118","20000","14100","64000","15100001",{"$f":"VLOOKUP(TRIM(J109),'Transactional Departments'!A:B,2,FALSE)","v":"Libraries Budget"},"15100001","18003","SXXXXRT265118CV","A01","",""]
["15","266",null,null,"         RUSSELL LIB EQ  WORTH","1041RT266128","20000","14100","64000","15100001",{"$f":"VLOOKUP(TRIM(J110),'Transactional Departments'!A:B,2,FALSE)","v":"Libraries Budget"},"15100001","18003","SXXXXRT266128CV","A01","",""]
["16","270",null,null,"CU/NSF   ADVANCED NETWK  CORMI","1031RE270002","20000","13100","62504","16011GAC",{"$f":"VLOOKUP(TRIM(J111),'Transactional Departments'!A:B,2,FALSE)","v":"EITS GACRC Prgm"},"16011GAC","18003","SCLEMRE270002CV","A01","",""]
["17","151",null,null,"USDA     RF MULLEN W/316-358  ","1011RH151033","20000","11100","61002","17210001",{"$f":"VLOOKUP(TRIM(J112),'Transactional Departments'!A:B,2,FALSE)","v":"Ag Econ Sum"},"17210001","18400","RUSDARH151033CV","A01","",""]
["17","151",null,null,"BMGF     RF FOOD AFRICA  MCCUL","1021RR151014","20000","12100","64448","17210001",{"$f":"VLOOKUP(TRIM(J113),'Transactional Departments'!A:B,2,FALSE)","v":"Ag Econ Sum"},"17210001","18400","RGATERR151014CV","A01","",""]
["17","151",null,null,"USDA ARS HOME ON DIET    SMITH","1031RE151039","20000","13100","61004","17210001",{"$f":"VLOOKUP(TRIM(J114),'Transactional Departments'!A:B,2,FALSE)","v":"Ag Econ Sum"},"17210001","18003","SARSXRE151039CV","A01","",""]
["17","153",null,null,"USDA     RF RADCLIF W/316-358 ","1011RH153031","20000","11100","61002","17240001",{"$f":"VLOOKUP(TRIM(J115),'Transactional Departments'!A:B,2,FALSE)","v":"CSS Sum"},"17240001","18400","RUSDARH153031CV","A01","",""]
["17","153",null,null,"         RF ASH AG SOIL  GASKI","1021RR153032","20000","12100","64004","17240001",{"$f":"VLOOKUP(TRIM(J116),'Transactional Departments'!A:B,2,FALSE)","v":"CSS Sum"},"17240001","18003","SGPOWRR153032CV","A01","",""]
["17","153",null,null,"ICR/USAIDRF FINGR MILLET DEVOS","1021RR153033","20000","12100","64000","17240001",{"$f":"VLOOKUP(TRIM(J117),'Transactional Departments'!A:B,2,FALSE)","v":"CSS Sum"},"17240001","18400","RIASSRR153033CV","A01","",""]
["17","153",null,null,"ICR/USAIDRF GENOMIC ANAL DEVOS","1021RR153034","20000","12100","64000","17240001",{"$f":"VLOOKUP(TRIM(J118),'Transactional Departments'!A:B,2,FALSE)","v":"CSS Sum"},"17240001","18400","RIASSRR153034CV","A01","",""]
["17","153",null,null,"DU/NSF   RF RR272-497    MARKE","1021RR153035","20000","12100","64290","17240001",{"$f":"VLOOKUP(TRIM(J119),'Transactional Departments'!A:B,2,FALSE)","v":"CSS Sum"},"17240001","18400","RDUKERR153035CV","A01","",""]
["17","153",null,null,"NSF      RF KNOCKOUTS    THOMP","1021RR153038","20000","12100","61023","17240001",{"$f":"VLOOKUP(TRIM(J120),'Transactional Departments'!A:B,2,FALSE)","v":"CSS Sum"},"17240001","18400","RNSFXRR153038CV","A01","",""]
["17","153",null,null,"NSF      RF IRON REDOX __THOMP","1021RR153039","20000","12100","61023","17240001",{"$f":"VLOOKUP(TRIM(J121),'Transactional Departments'!A:B,2,FALSE)","v":"CSS Sum"},"17240001","18400","RNSFXRR153039CV","A01","",""]
["17","153",null,null,"SYNGENTA RF WHEAT A-10  GGASSE","1021RR153042","20000","12100","64050","17240001",{"$f":"VLOOKUP(TRIM(J122),'Transactional Departments'!A:B,2,FALSE)","v":"CSS Sum"},"17240001","18400","RSYSIRR153042CV","A01","",""]
["17","154",null,null,"NIH      RF W/ 168696    WEST ","1021RR154036","20000","12100","61018","17230001",{"$f":"VLOOKUP(TRIM(J123),'Transactional Departments'!A:B,2,FALSE)","v":"ADS Sum"},"17230001","18400","RNIHXRR154036CV","A01","",""]
["17","154",null,null,"USDA     RF BEEF CATTLE  REKAY","1021RR154037","20000","12100","61004","17230001",{"$f":"VLOOKUP(TRIM(J124),'Transactional Departments'!A:B,2,FALSE)","v":"ADS Sum"},"17230001","18400","RARSXRR154037CV","A01","",""]
["17","156",null,null,"USDA     HEALTHIER FOODS KERR ","1011RH156036","20000","11100","61002","17260001",{"$f":"VLOOKUP(TRIM(J125),'Transactional Departments'!A:B,2,FALSE)","v":"Food Science Sum"},"17260001","18003","SUSDARH156036CV","A01","",""]
["17","156",null,null,"APLU     INNOV TEACH     KONG ","1011RH156037","20000","11100","64188","17260001",{"$f":"VLOOKUP(TRIM(J126),'Transactional Departments'!A:B,2,FALSE)","v":"Food Science Sum"},"17260001","18003","SASPURH156037CV","A01","",""]
["17","157",null,null,"USDA NIFASUSTAN FOOD SYS BERLE","1011RH157022","20000","11100","61002","17270001",{"$f":"VLOOKUP(TRIM(J127),'Transactional Departments'!A:B,2,FALSE)","v":"Horticulture Sum"},"17270001","18003","SUSDARH157022CV","A01","",""]
["17","157",null,null,"USDA     RF RD309-134    JORDA","1021RR157030","20000","12100","61006","17270001",{"$f":"VLOOKUP(TRIM(J128),'Transactional Departments'!A:B,2,FALSE)","v":"Horticulture Sum"},"17270001","18400","RNIFARR157030CV","A01","",""]
["17","159",null,null,"ALLTECH  BORTOLUUZZI     APPLE","1011RH159015","20000","11100","64016","17290001",{"$f":"VLOOKUP(TRIM(J129),'Transactional Departments'!A:B,2,FALSE)","v":"Poultry Science Sum"},"17290001","18003","SALLTRH159015CV","A01","",""]
["17","159",null,null,"PSA INC  RECRUIT AWARD   APPLE","1011RH159016","20000","11100","64529","17290001",{"$f":"VLOOKUP(TRIM(J130),'Transactional Departments'!A:B,2,FALSE)","v":"Poultry Science Sum"},"17290001","18003","SPOULRH159016CV","A01","",""]
["17","159",null,null,"ALLTECH  RF AN SUPPLEMENTAPPLE","1011RH159017","20000","11100","64016","17290001",{"$f":"VLOOKUP(TRIM(J131),'Transactional Departments'!A:B,2,FALSE)","v":"Poultry Science Sum"},"17290001","18400","RALLTRH159017CV","A01","",""]
["17","159",null,null,"         SPEA FDN CHERAY LACY ","1021RR159007","20000","12100","64178","17290001",{"$f":"VLOOKUP(TRIM(J132),'Transactional Departments'!A:B,2,FALSE)","v":"Poultry Science Sum"},"17290001","18003","SUSPARR159007CV","A01","",""]
["17","159",null,null,"EIA      RF GRANT IN AID AGGRE","1021RR159010","20000","12100","64485","17290001",{"$f":"VLOOKUP(TRIM(J133),'Transactional Departments'!A:B,2,FALSE)","v":"Poultry Science Sum"},"17290001","18400","REVIARR159010CV","A01","",""]
["17","159",null,null,"DANISCO  RF 22D BROILERS KIM  ","1021RR159011","20000","12100","64003","17290001",{"$f":"VLOOKUP(TRIM(J134),'Transactional Departments'!A:B,2,FALSE)","v":"Poultry Science Sum"},"17290001","18400","RDUPTRR159011CV","A01","",""]
["17","159",null,null,"DANISCO  RF ENZYME BROILEKIM  ","1021RR159012","20000","12100","64003","17290001",{"$f":"VLOOKUP(TRIM(J135),'Transactional Departments'!A:B,2,FALSE)","v":"Poultry Science Sum"},"17290001","18400","RDUPTRR159012CV","A01","",""]
["17","159",null,null,"SOC INT  RF BENALE MECH BBENTZ","1021RR159013","20000","12100","64197","17290001",{"$f":"VLOOKUP(TRIM(J136),'Transactional Departments'!A:B,2,FALSE)","v":"Poultry Science Sum"},"17290001","18400","RSICBRR159013CV","A01","",""]
["17","159",null,null,"NSF      RF RR272-828         ","1021RR159014","20000","12100","61023","17290001",{"$f":"VLOOKUP(TRIM(J137),'Transactional Departments'!A:B,2,FALSE)","v":"Poultry Science Sum"},"17290001","18400","RNSFXRR159014CV","A01","",""]
["17","174",null,null,"         ENTOMOLOGY VARIOUS   ","1011RH174044","20000","11100","64206","17250001",{"$f":"VLOOKUP(TRIM(J138),'Transactional Departments'!A:B,2,FALSE)","v":"Entomology Sum"},"17250001","18003","SVARIRH174044CV","A01","",""]
["17","174",null,null,"         VARIOUS-PEST-CTRL-ALL","1021RR174035","20000","12100","64206","17250001",{"$f":"VLOOKUP(TRIM(J139),'Transactional Departments'!A:B,2,FALSE)","v":"Entomology Sum"},"17250001","18003","SVARIRR174035CV","A01","",""]
["17","277",null,null,"CULTIVAR INCOME         SSHULS","2521RB277023","21300","12100","64206","17120001",{"$f":"VLOOKUP(TRIM(J140),'Transactional Departments'!A:B,2,FALSE)","v":"CAES Assoc Dean Rsch Sum"},"17120001","18003","SVARIRB277023CV","A01","",""]
["17","277",null,null,"         VAR PEANUT GENOMSHULS","2521RB277029","21300","12100","64206","17120001",{"$f":"VLOOKUP(TRIM(J141),'Transactional Departments'!A:B,2,FALSE)","v":"CAES Assoc Dean Rsch Sum"},"17120001","18003","SVARIRB277029CV","A01","",""]
["17","280",null,null,"GENERAL EXPENSE HATCH COLLEGE ","2526GC280001","21300","12100","61HAT","17602200",{"$f":"VLOOKUP(TRIM(J142),'Transactional Departments'!A:B,2,FALSE)","v":"CAES General Expense"},"17602200","18003","SNIFAXRGHATCH17","F17","RCS",""]
["17","280",null,null,"REGIONAL HATCH                ","2526GC280002","21300","12100","61MSH","17602200",{"$f":"VLOOKUP(TRIM(J143),'Transactional Departments'!A:B,2,FALSE)","v":"CAES General Expense"},"17602200","18003","SNIFAXMSHATCH17","F17","RCS",""]
["17","282",null,null,"         VARIOUS         SHULS","2521RC282114","21300","12100","64206","17210001",{"$f":"VLOOKUP(TRIM(J144),'Transactional Departments'!A:B,2,FALSE)","v":"Ag Econ Sum"},"17210001","18003","SVARIRC282114CV","A01","",""]
["17","282",null,null,"WASH/USDARF CLIMATE CHNG MULLE","2521RC282389","21300","12100","62522","17210001",{"$f":"VLOOKUP(TRIM(J145),'Transactional Departments'!A:B,2,FALSE)","v":"Ag Econ Sum"},"17210001","18400","RWASURC282389CV","A01","",""]
["17","282",null,null,"UCA/USAIDLIVESTOCK NEPAL MAGNA","2521RC282392","21300","12100","62562","17210001",{"$f":"VLOOKUP(TRIM(J146),'Transactional Departments'!A:B,2,FALSE)","v":"Ag Econ Sum"},"17210001","18003","SUCADRC282392CV","A01","",""]
["17","282",null,null,"USAID    RF SUP 710-059 MAGNUM","2521RC282393","21300","12100","61028","17210001",{"$f":"VLOOKUP(TRIM(J147),'Transactional Departments'!A:B,2,FALSE)","v":"Ag Econ Sum"},"17210001","18400","RUSADRC282393CV","A01","",""]
["17","282",null,null,"USDA NIFARF STUDENT PREP BERGS","2521RC282394","21300","12100","61002","17210001",{"$f":"VLOOKUP(TRIM(J148),'Transactional Departments'!A:B,2,FALSE)","v":"Ag Econ Sum"},"17210001","18400","RUSDARC282394CV","A01","",""]
["17","282",null,null,"USDC/ECU RF FISHERY_____ LANDR","2521RC282395","21300","12100","62548","17210001",{"$f":"VLOOKUP(TRIM(J149),'Transactional Departments'!A:B,2,FALSE)","v":"Ag Econ Sum"},"17210001","18400","REACURC282395CV","A01","",""]
["17","282",null,null,"GWINNETT REV FORECAST____DORFM","2521RC282396","21300","12100","63014","17210001",{"$f":"VLOOKUP(TRIM(J150),'Transactional Departments'!A:B,2,FALSE)","v":"Ag Econ Sum"},"17210001","18003","SCGWIRC282396CV","A01","",""]
["17","282",null,null,"UFL/USDA RF W/2521RF330510    ","2521RC282397","21300","12100","62511","17210001",{"$f":"VLOOKUP(TRIM(J151),'Transactional Departments'!A:B,2,FALSE)","v":"Ag Econ Sum"},"17210001","18400","RUFLXRC282397CV","A01","",""]
["17","282",null,null,"MSU      RF POV NETWORKS_MAGNA","2521RC282403","21300","12100","62553","17210001",{"$f":"VLOOKUP(TRIM(J152),'Transactional Departments'!A:B,2,FALSE)","v":"Ag Econ Sum"},"17210001","18400","RMTSURC282403CV","A01","",""]
["17","282",null,null,"RTI      RF SNAP         ZHEN ","2521RC282405","21300","12100","64281","17210001",{"$f":"VLOOKUP(TRIM(J153),'Transactional Departments'!A:B,2,FALSE)","v":"Ag Econ Sum"},"17210001","18400","RRTRIRC282405CV","A01","",""]
["17","282",null,null,"USDA ARS RF SNAP BENEFI  SMITH","2521RC282406","21300","12100","61004","17210001",{"$f":"VLOOKUP(TRIM(J154),'Transactional Departments'!A:B,2,FALSE)","v":"Ag Econ Sum"},"17210001","18400","RARSXRC282406CV","A01","",""]
["17","282",null,null,"USDA ARS RF W/ RC282406 DORFMA","2521RC282407","21300","12100","61004","17210001",{"$f":"VLOOKUP(TRIM(J155),'Transactional Departments'!A:B,2,FALSE)","v":"Ag Econ Sum"},"17210001","18400","RARSXRC282407CV","A01","",""]
["17","282",null,null,"USDA ARS RF W/ RC282406 ZHEN  ","2521RC282408","21300","12100","61004","17210001",{"$f":"VLOOKUP(TRIM(J156),'Transactional Departments'!A:B,2,FALSE)","v":"Ag Econ Sum"},"17210001","18400","RARSXRC282408CV","A01","",""]
["17","282",null,null,"USDC     RF R/RCE-KRIE-16     ","2521RC282411","21300","12100","61009","17210001",{"$f":"VLOOKUP(TRIM(J157),'Transactional Departments'!A:B,2,FALSE)","v":"Ag Econ Sum"},"17210001","18400","RUSDCRC282411CV","A01","",""]
["17","282",null,null,"USDA ARS RF FOOD SPEND   SMITH","2521RC282412","21300","12100","61004","17210001",{"$f":"VLOOKUP(TRIM(J158),'Transactional Departments'!A:B,2,FALSE)","v":"Ag Econ Sum"},"17210001","18400","RARSXRC282412CV","A01","",""]
["17","282",null,null,"ASU      RF FORECAST     MULLE","2521RC282413","21300","12100","62036","17210001",{"$f":"VLOOKUP(TRIM(J159),'Transactional Departments'!A:B,2,FALSE)","v":"Ag Econ Sum"},"17210001","18400","RABSURC282413CV","A01","",""]
["17","282",null,null,"GACCP/NPBRF W/328-135 SMITH   ","2521RC282414","21300","12100","62002","17210001",{"$f":"VLOOKUP(TRIM(J160),'Transactional Departments'!A:B,2,FALSE)","v":"Ag Econ Sum"},"17210001","18400","RGPNTRC282414CV","A01","",""]
["17","282",null,null,"USDA FS  RF RECREATION   LANDR","2521RC282416","21300","12100","61003","17210001",{"$f":"VLOOKUP(TRIM(J161),'Transactional Departments'!A:B,2,FALSE)","v":"Ag Econ Sum"},"17210001","18400","RUSFSRC282416CV","A01","",""]
["17","282",null,null,"USDA ARS RF ERS FSMA     ZHEN ","2521RC282417","21300","12100","61004","17210001",{"$f":"VLOOKUP(TRIM(J162),'Transactional Departments'!A:B,2,FALSE)","v":"Ag Econ Sum"},"17210001","18400","RARSXRC282417CV","A01","",""]
["17","282",null,null,"USDA NIFARF GRAD RESEARC KRAME","2521RC282418","21300","12100","61006","17210001",{"$f":"VLOOKUP(TRIM(J163),'Transactional Departments'!A:B,2,FALSE)","v":"Ag Econ Sum"},"17210001","18400","RNIFARC282418CV","A01","",""]
["17","282",null,null,"USDA     RF PRICING STRA ZHEN ","2521RC282419","21300","12100","61004","17210001",{"$f":"VLOOKUP(TRIM(J164),'Transactional Departments'!A:B,2,FALSE)","v":"Ag Econ Sum"},"17210001","18400","RARSXRC282419CV","A01","",""]
["17","282",null,null,"GACC     RF COTTON FARMERDORFM","2521RC282420","21300","12100","62001","17210001",{"$f":"VLOOKUP(TRIM(J165),'Transactional Departments'!A:B,2,FALSE)","v":"Ag Econ Sum"},"17210001","18400","RGCOTRC282420CV","A01","",""]
["17","282",null,null,"USAID    RF PEANUT PROGRAM    ","2521RC282421","21300","12100","61028","17210001",{"$f":"VLOOKUP(TRIM(J166),'Transactional Departments'!A:B,2,FALSE)","v":"Ag Econ Sum"},"17210001","18400","RUSADRC282421CV","A01","",""]
["17","282",null,null,"UF/USAID RF LIVESTOCK    MAGNA","2521RC282422","21300","12100","62511","17210001",{"$f":"VLOOKUP(TRIM(J167),'Transactional Departments'!A:B,2,FALSE)","v":"Ag Econ Sum"},"17210001","18400","RUFLXRC282422CV","A01","",""]
["17","282",null,null,"USDA NIFARF SNAP HH      ZHEN ","2521RC282423","21300","12100","61006","17210001",{"$f":"VLOOKUP(TRIM(J168),'Transactional Departments'!A:B,2,FALSE)","v":"Ag Econ Sum"},"17210001","18400","RNIFARC282423CV","A01","",""]
["17","282",null,null,"UNC/NSF  RF GEO ECON     LANDR","2521RC282428","21300","12100","62500","17210001",{"$f":"VLOOKUP(TRIM(J169),'Transactional Departments'!A:B,2,FALSE)","v":"Ag Econ Sum"},"17210001","18400","RXXXXRC282428CV","A01","",""]
["17","282",null,null,"REGIONAL HATCH                ","2526GC282002","21300","12100","61MSH","17210001",{"$f":"VLOOKUP(TRIM(J170),'Transactional Departments'!A:B,2,FALSE)","v":"Ag Econ Sum"},"17210001","18003","SNIFAXMSHATCH17","F17","RCS",""]
["17","282",null,null,"AAE REG HATCH KRIESEL         ","2526GC282122","21300","12100","61MSH","17210210",{"$f":"VLOOKUP(TRIM(J171),'Transactional Departments'!A:B,2,FALSE)","v":"Kriesel, Warren"},"17210210","18003","SNIFAXMSHATCH17","F17","RCS",""]
["17","282",null,null,"AAE REG HATCH BERGSTROM       ","2526GC282192","21300","12100","61MSH","17210100",{"$f":"VLOOKUP(TRIM(J172),'Transactional Departments'!A:B,2,FALSE)","v":"Berstrom, John"},"17210100","18003","SNIFAXMSHATCH17","F17","RCS",""]
["17","282",null,null,"AAE FED HATCH CENTNER         ","2526GC282201","21300","12100","61HAT","17210140",{"$f":"VLOOKUP(TRIM(J173),'Transactional Departments'!A:B,2,FALSE)","v":"Centner, Terence"},"17210140","18003","SNIFAXRGHATCH17","F17","RCS",""]
["17","282",null,null,"AAE FED HATCH DORFMAN         ","2526GC282211","21300","12100","61HAT","17210160",{"$f":"VLOOKUP(TRIM(J174),'Transactional Departments'!A:B,2,FALSE)","v":"Dorfman, Jeffrey"},"17210160","18003","SNIFAXRGHATCH17","F17","RCS",""]
["17","282",null,null,"AAE REG HATCH LANDRY          ","2526GC282232","21300","12100","61MSH","17210220",{"$f":"VLOOKUP(TRIM(J175),'Transactional Departments'!A:B,2,FALSE)","v":"Landry, Craig"},"17210220","18003","SNIFAXMSHATCH17","F17","RCS",""]
["17","282",null,null,"AAE FED HATCH COLSON          ","2526GC282251","21300","12100","61HAT","17210150",{"$f":"VLOOKUP(TRIM(J176),'Transactional Departments'!A:B,2,FALSE)","v":"Colson, Gregory John"},"17210150","18003","SNIFAXRGHATCH17","F17","RCS",""]
["17","282",null,null,"AAE REG HATCH MULLEN          ","2526GC282272","21300","12100","61MSH","17210250",{"$f":"VLOOKUP(TRIM(J177),'Transactional Departments'!A:B,2,FALSE)","v":"Mullen, Jeffery"},"17210250","18003","SNIFAXMSHATCH17","F17","RCS",""]
["17","282",null,null,"AG ECON REG HAT ESCALANTE     ","2526GC282322","21300","12100","61MSH","17210170",{"$f":"VLOOKUP(TRIM(J178),'Transactional Departments'!A:B,2,FALSE)","v":"Escalante, Cesar"},"17210170","18003","SNIFAXMSHATCH17","F17","RCS",""]
["17","282",null,null,"AAE REG HATCH BREWER          ","2526GC282342","21300","12100","61MSH","17210120",{"$f":"VLOOKUP(TRIM(J179),'Transactional Departments'!A:B,2,FALSE)","v":"Brewer, Brady"},"17210120","18003","SNIFAXMSHATCH17","F17","RCS",""]
["17","282",null,null,"AAE REG HATCH SHONKWILER      ","2526GC282372","21300","12100","61MSH","17210001",{"$f":"VLOOKUP(TRIM(J180),'Transactional Departments'!A:B,2,FALSE)","v":"Ag Econ Sum"},"17210001","18003","SNIFAXMSHATCH17","F17","RCS",""]
["17","283",null,null,"MACT/EPA RF CASTNET III  BOUDR","2521RC283238","21300","12100","64000","17120001",{"$f":"VLOOKUP(TRIM(J181),'Transactional Departments'!A:B,2,FALSE)","v":"CAES Assoc Dean Rsch Sum"},"17120001","18400","RXXXXRC283238CV","A01","",""]
["17","284",null,null,"         TURF MGMT VARIOUS    ","2521RC284140","21300","12100","64206","17240001",{"$f":"VLOOKUP(TRIM(J182),'Transactional Departments'!A:B,2,FALSE)","v":"CSS Sum"},"17240001","18003","SVARIRC284140CV","A01","",""]
["17","284",null,null,"         VARIOUS VENCILL      ","2521RC284233","21300","12100","64206","17240001",{"$f":"VLOOKUP(TRIM(J183),'Transactional Departments'!A:B,2,FALSE)","v":"CSS Sum"},"17240001","18003","SVARIRC284233CV","A01","",""]
["17","284",null,null,"         VARIOUS KISSEL       ","2521RC284364","21300","12100","64206","17240001",{"$f":"VLOOKUP(TRIM(J184),'Transactional Departments'!A:B,2,FALSE)","v":"CSS Sum"},"17240001","18003","SVARIRC284364CV","A01","",""]
["17","284",null,null,"         VARIOUS GIFTS   SHILL","2521RC284502","21300","12100","64206","17242SHI",{"$f":"VLOOKUP(TRIM(J185),'Transactional Departments'!A:B,2,FALSE)","v":"Shilling, Donn"},"17242SHI","18003","SVARIRC284502CV","A01","",""]
["17","284",null,null,"         VARIOUS         CABRE","2521RC284539","21300","12100","64206","17242CAB",{"$f":"VLOOKUP(TRIM(J186),'Transactional Departments'!A:B,2,FALSE)","v":"Cabrera, Miguel"},"17242CAB","18003","SVARIRC284539CV","A01","",""]
["17","284",null,null,"         RF SUB CABRERA  MORRI","2521RC284553","21300","12100","64004","17240001",{"$f":"VLOOKUP(TRIM(J187),'Transactional Departments'!A:B,2,FALSE)","v":"CSS Sum"},"17240001","18003","SGPOWRC284553CV","A01","",""]
["17","284",null,null,"UTB/USDE RF FA2          DEVOS","2521RC284558","21300","12100","64292","17240001",{"$f":"VLOOKUP(TRIM(J188),'Transactional Departments'!A:B,2,FALSE)","v":"CSS Sum"},"17240001","18400","RUTBARC284558CV","A01","",""]
["17","284",null,null,"         RF BERMUDAGRASS HENRY","2521RC284559","21300","12100","64417","17240001",{"$f":"VLOOKUP(TRIM(J189),'Transactional Departments'!A:B,2,FALSE)","v":"CSS Sum"},"17240001","18003","SGGLFRC284559CV","A01","",""]
["17","284",null,null,"GACCC    RF IMPR WHT CLVRHILL ","2521RC284560","21300","12100","62047","17240001",{"$f":"VLOOKUP(TRIM(J190),'Transactional Departments'!A:B,2,FALSE)","v":"CSS Sum"},"17240001","18400","RGCRNRC284560CV","A01","",""]
["17","284",null,null,"UCAL DAV AEGILOPS GNOME  DEVOS","2521RC284561","21300","12100","62562","17240001",{"$f":"VLOOKUP(TRIM(J191),'Transactional Departments'!A:B,2,FALSE)","v":"CSS Sum"},"17240001","18003","SUCADRC284561CV","A01","",""]
["17","284",null,null,"USDA     RF SUP 309-125 JORDA ","2521RC284562","21300","12100","61002","17240001",{"$f":"VLOOKUP(TRIM(J192),'Transactional Departments'!A:B,2,FALSE)","v":"CSS Sum"},"17240001","18400","RUSDARC284562CV","A01","",""]
["17","284",null,null,"GACCC    RF AMARANTH     VENCI","2521RC284563","21300","12100","62001","17240001",{"$f":"VLOOKUP(TRIM(J193),'Transactional Departments'!A:B,2,FALSE)","v":"CSS Sum"},"17240001","18400","RGCOTRC284563CV","A01","",""]
["17","284",null,null,"GACC BEEFRF RF_STEM MAGGOHANCO","2521RC284601","21300","12100","62006","17240001",{"$f":"VLOOKUP(TRIM(J194),'Transactional Departments'!A:B,2,FALSE)","v":"CSS Sum"},"17240001","18400","RGABFRC284601CV","A01","",""]
["17","284",null,null,"         VARIOUS AGRONOMIHILL ","2521RC284604","21300","12100","64206","17242HIL",{"$f":"VLOOKUP(TRIM(J195),'Transactional Departments'!A:B,2,FALSE)","v":"Hill, Nick"},"17242HIL","18003","SVARIRC284604CV","A01","",""]
["17","284",null,null,"         VARIOUS HENRY   HENRY","2521RC284605","21300","12100","64206","17242HEN",{"$f":"VLOOKUP(TRIM(J196),'Transactional Departments'!A:B,2,FALSE)","v":"Henry, Gerald"},"17242HEN","18003","SVARIRC284605CV","A01","",""]
["17","284",null,null,"         GSDC GIFT VARIOUJOHNS","2521RC284606","21300","12100","62050","17240001",{"$f":"VLOOKUP(TRIM(J197),'Transactional Departments'!A:B,2,FALSE)","v":"CSS Sum"},"17240001","18003","SXXXXRC284606CV","A01","",""]
["17","284",null,null,"ILRI     RF FOOD SECURTY DEVOS","2521RC284607","21300","12100","64000","17240001",{"$f":"VLOOKUP(TRIM(J198),'Transactional Departments'!A:B,2,FALSE)","v":"CSS Sum"},"17240001","18400","RINRIRC284607CV","A01","",""]
["17","284",null,null,"FLA/USDA RF CLIMATE CNG       ","2521RC284610","21300","12100","62511","17240001",{"$f":"VLOOKUP(TRIM(J199),'Transactional Departments'!A:B,2,FALSE)","v":"CSS Sum"},"17240001","18400","RUFLXRC284610CV","A01","",""]
["17","284",null,null,"USDOE    RF TETRAPLOID   DEVOS","2521RC284614","21300","12100","61001","17240001",{"$f":"VLOOKUP(TRIM(J200),'Transactional Departments'!A:B,2,FALSE)","v":"CSS Sum"},"17240001","18400","RUSDERC284614CV","A01","",""]
["17","284",null,null,"UNH/NSF  RF LUQUILLO     THOMP","2521RC284616","21300","12100","62543","17240001",{"$f":"VLOOKUP(TRIM(J201),'Transactional Departments'!A:B,2,FALSE)","v":"CSS Sum"},"17240001","18400","RUNNHRC284616CV","A01","",""]
["17","284",null,null,"TX/MNSTO RF RAMIREZ PHD  DEVOS","2521RC284619","21300","12100","62573","17240001",{"$f":"VLOOKUP(TRIM(J202),'Transactional Departments'!A:B,2,FALSE)","v":"CSS Sum"},"17240001","18400","RTXALRC284619CV","A01","",""]
["17","284",null,null,"NSF      RF SUSCHEM______THOMP","2521RC284628","21300","12100","61023","17240001",{"$f":"VLOOKUP(TRIM(J203),'Transactional Departments'!A:B,2,FALSE)","v":"CSS Sum"},"17240001","18400","RNSFXRC284628CV","A01","",""]
["17","284",null,null,"EPRI     RF UGA WRLS SENSOR_TH","2521RC284629","21300","12100","64137","17240001",{"$f":"VLOOKUP(TRIM(J204),'Transactional Departments'!A:B,2,FALSE)","v":"CSS Sum"},"17240001","18400","RELPIRC284629CV","A01","",""]
["17","284",null,null,"UT       RF NATIVE GRASS HANCO","2521RC284631","21300","12100","62532","17240001",{"$f":"VLOOKUP(TRIM(J205),'Transactional Departments'!A:B,2,FALSE)","v":"CSS Sum"},"17240001","18400","RUNTNRC284631CV","A01","",""]
["17","284",null,null,"GAEPA    RF STORMWATER   HAWKI","2521RC284633","21300","12100","62052","17240001",{"$f":"VLOOKUP(TRIM(J206),'Transactional Departments'!A:B,2,FALSE)","v":"CSS Sum"},"17240001","18400","RGEPDRC284633CV","A01","",""]
["17","284",null,null,"USDA-NIFARF RF_PUCCI EMACSMITH","2521RC284634","21300","12100","61006","17240001",{"$f":"VLOOKUP(TRIM(J207),'Transactional Departments'!A:B,2,FALSE)","v":"CSS Sum"},"17240001","18400","RNIFARC284634CV","A01","",""]
["17","284",null,null,"GACC BEEFRF WINTER FORAGEHANCO","2521RC284635","21300","12100","62006","17240001",{"$f":"VLOOKUP(TRIM(J208),'Transactional Departments'!A:B,2,FALSE)","v":"CSS Sum"},"17240001","18400","RGABFRC284635CV","A01","",""]
["17","284",null,null,"GACC BEEFRF BERMUDA ALFA HANCO","2521RC284636","21300","12100","62006","17240001",{"$f":"VLOOKUP(TRIM(J209),'Transactional Departments'!A:B,2,FALSE)","v":"CSS Sum"},"17240001","18400","RGABFRC284636CV","A01","",""]
["17","284",null,null,"GACC BEEFRF STEM MAGGOT YHANCO","2521RC284637","21300","12100","62006","17240001",{"$f":"VLOOKUP(TRIM(J210),'Transactional Departments'!A:B,2,FALSE)","v":"CSS Sum"},"17240001","18400","RGABFRC284637CV","A01","",""]
["17","284",null,null,"USDA     RF RD309-134    JORDA","2521RC284640","21300","12100","61006","17240001",{"$f":"VLOOKUP(TRIM(J211),'Transactional Departments'!A:B,2,FALSE)","v":"CSS Sum"},"17240001","18400","RNIFARC284640CV","A01","",""]
["17","284",null,null,"GIT/USGS RF STATE WATER  RADCL","2521RC284643","21300","12100","62021","17240001",{"$f":"VLOOKUP(TRIM(J212),'Transactional Departments'!A:B,2,FALSE)","v":"CSS Sum"},"17240001","18400","RGAITRC284643CV","A01","",""]
["17","284",null,null,"UFL/USDA RF W/ 328120 DEVOS   ","2521RC284645","21300","12100","62511","17240001",{"$f":"VLOOKUP(TRIM(J213),'Transactional Departments'!A:B,2,FALSE)","v":"CSS Sum"},"17240001","18400","RUFLXRC284645CV","A01","",""]
["17","284",null,null,"GACC BEEFRF ANN RYEGRASS HANCO","2521RC284646","21300","12100","62006","17240001",{"$f":"VLOOKUP(TRIM(J214),'Transactional Departments'!A:B,2,FALSE)","v":"CSS Sum"},"17240001","18400","RGABFRC284646CV","A01","",""]
["17","284",null,null,"PWANI/GATRF PEARL2          DE","2521RC284650","21300","12100","64501","17240001",{"$f":"VLOOKUP(TRIM(J215),'Transactional Departments'!A:B,2,FALSE)","v":"CSS Sum"},"17240001","18400","RPWANRC284650CV","A01","",""]
["17","284",null,null,"         VARIOUS         THOMP","2521RC284651","21300","12100","64206","17242JJT",{"$f":"VLOOKUP(TRIM(J216),'Transactional Departments'!A:B,2,FALSE)","v":"Thompson, Jennifer Jo"},"17242JJT","18003","SVARIRC284651CV","A01","",""]
["17","284",null,null,"NSF      RF BREAD ABRDC  DEVOS","2521RC284652","21300","12100","61023","17240001",{"$f":"VLOOKUP(TRIM(J217),'Transactional Departments'!A:B,2,FALSE)","v":"CSS Sum"},"17240001","18400","RNSFXRC284652CV","A01","",""]
["17","284",null,null,"         VAR FOR DEPT    SHILL","2521RC284653","21300","12100","64206","17240001",{"$f":"VLOOKUP(TRIM(J218),'Transactional Departments'!A:B,2,FALSE)","v":"CSS Sum"},"17240001","18003","SVARIRC284653CV","A01","",""]
["17","284",null,null,"GACC BEEFRF RF_CULL & CHOHANCO","2521RC284655","21300","12100","62006","17240001",{"$f":"VLOOKUP(TRIM(J219),'Transactional Departments'!A:B,2,FALSE)","v":"CSS Sum"},"17240001","18400","RGABFRC284655CV","A01","",""]
["17","284",null,null,"GACC BEEFRF BRASSICAS 2  HANCO","2521RC284656","21300","12100","62006","17240001",{"$f":"VLOOKUP(TRIM(J220),'Transactional Departments'!A:B,2,FALSE)","v":"CSS Sum"},"17240001","18400","RGABFRC284656CV","A01","",""]
["17","284",null,null,"GACCC    RF G2F INIT 2017WALLA","2521RC284657","21300","12100","62047","17240001",{"$f":"VLOOKUP(TRIM(J221),'Transactional Departments'!A:B,2,FALSE)","v":"CSS Sum"},"17240001","18400","RGCRNRC284657CV","A01","",""]
["17","284",null,null,"GACCC    RF BIO TREATMTS WALLA","2521RC284658","21300","12100","62047","17240001",{"$f":"VLOOKUP(TRIM(J222),'Transactional Departments'!A:B,2,FALSE)","v":"CSS Sum"},"17240001","18400","RGCRNRC284658CV","A01","",""]
["17","284",null,null,"UTBATELLERF WITH RR549599MOHNE","2521RC284660","21300","12100","64292","17240001",{"$f":"VLOOKUP(TRIM(J223),'Transactional Departments'!A:B,2,FALSE)","v":"CSS Sum"},"17240001","18400","RUTBARC284660CV","A01","",""]
["17","284",null,null,"FEDERAL HATCH                 ","2526GC284001","21300","12100","61HAT","17241CSS",{"$f":"VLOOKUP(TRIM(J224),'Transactional Departments'!A:B,2,FALSE)","v":"CSS Department"},"17241CSS","18003","SNIFAXRGHATCH17","F17","RCS",""]
["17","284",null,null,"REGIONAL HATCH                ","2526GC284002","21300","12100","61MSH","17240001",{"$f":"VLOOKUP(TRIM(J225),'Transactional Departments'!A:B,2,FALSE)","v":"CSS Sum"},"17240001","18003","SNIFAXMSHATCH17","F17","RCS",""]
["17","284",null,null,"CSS FED HATCH CABRERA         ","2526GC284181","21300","12100","61HAT","17242CAB",{"$f":"VLOOKUP(TRIM(J226),'Transactional Departments'!A:B,2,FALSE)","v":"Cabrera, Miguel"},"17242CAB","18003","SNIFAXRGHATCH17","F17","RCS",""]
["17","284",null,null,"CSS FED HATCH HANCOCK         ","2526GC284281","21300","12100","61HAT","17242HAN",{"$f":"VLOOKUP(TRIM(J227),'Transactional Departments'!A:B,2,FALSE)","v":"Hancock, Dennis"},"17242HAN","18003","SNIFAXRGHATCH17","F17","RCS",""]
["17","284",null,null,"CSS REG HATCH HILL            ","2526GC284292","21300","12100","61MSH","17242HIL",{"$f":"VLOOKUP(TRIM(J228),'Transactional Departments'!A:B,2,FALSE)","v":"Hill, Nick"},"17242HIL","18003","SNIFAXMSHATCH17","F17","RCS",""]
["17","284",null,null,"CSS FED HATCH PARROTT         ","2526GC284301","21300","12100","61HAT","17242WPA",{"$f":"VLOOKUP(TRIM(J229),'Transactional Departments'!A:B,2,FALSE)","v":"Parrott, Wayne"},"17242WPA","18003","SNIFAXRGHATCH17","F17","RCS",""]
["17","284",null,null,"CSS FED HATCH RADCLIFFE       ","2526GC284321","21300","12100","61HAT","17242RAD",{"$f":"VLOOKUP(TRIM(J230),'Transactional Departments'!A:B,2,FALSE)","v":"Radcliffe, David"},"17242RAD","18003","SNIFAXRGHATCH17","F17","RCS",""]
["17","284",null,null,"CSS FED HATCH THOMPSON        ","2526GC284351","21300","12100","61HAT","17242ATT",{"$f":"VLOOKUP(TRIM(J231),'Transactional Departments'!A:B,2,FALSE)","v":"Thompson, Aaron"},"17242ATT","18003","SNIFAXRGHATCH17","F17","RCS",""]
["17","287",null,null,"         VAR DISC BERTRAND    ","2521RC287181","21300","12100","64206","17230001",{"$f":"VLOOKUP(TRIM(J232),'Transactional Departments'!A:B,2,FALSE)","v":"ADS Sum"},"17230001","18003","SVARIRC287181CV","A01","",""]
["17","287",null,null,"         VARIOUS MISZTAL      ","2521RC287224","21300","12100","64206","17231375",{"$f":"VLOOKUP(TRIM(J233),'Transactional Departments'!A:B,2,FALSE)","v":"Misztal, Ignacy"},"17231375","18003","SVARIRC287224CV","A01","",""]
["17","287",null,null,"         VARIOUS ACCT    PRING","2521RC287258","21300","12100","64206","17231450",{"$f":"VLOOKUP(TRIM(J234),'Transactional Departments'!A:B,2,FALSE)","v":"Pringle, Dean"},"17231450","18003","SVARIRC287258CV","A01","",""]
["17","287",null,null,"         VARIOUS RESCH   AZAIN","2521RC287312","21300","12100","64206","17231000",{"$f":"VLOOKUP(TRIM(J235),'Transactional Departments'!A:B,2,FALSE)","v":"Azain, Michael"},"17231000","18003","SVARIRC287312CV","A01","",""]
["17","287",null,null,"         VARIOUS RSCH    NICKE","2521RC287345","21300","12100","64206","17231425",{"$f":"VLOOKUP(TRIM(J236),'Transactional Departments'!A:B,2,FALSE)","v":"Nickerson, Stephen"},"17231425","18003","SVARIRC287345CV","A01","",""]
["17","287",null,null,"         RF SOLID TUMORS BAILE","2521RC287370","21300","12100","64000","17230001",{"$f":"VLOOKUP(TRIM(J237),'Transactional Departments'!A:B,2,FALSE)","v":"ADS Sum"},"17230001","18003","SANAIRC287370CV","A01","",""]
["17","287",null,null,"AAA      RF ANGUS CATTLE LINO ","2521RC287378","21300","12100","64277","17230001",{"$f":"VLOOKUP(TRIM(J238),'Transactional Departments'!A:B,2,FALSE)","v":"ADS Sum"},"17230001","18400","RAMAARC287378CV","A01","",""]
["17","287",null,null,"         RF HOLSTEINS    MISZT","2521RC287379","21300","12100","64445","17230001",{"$f":"VLOOKUP(TRIM(J239),'Transactional Departments'!A:B,2,FALSE)","v":"ADS Sum"},"17230001","18003","SHOLSRC287379CV","A01","",""]
["17","287",null,null,"         VARIOUS         STELZ","2521RC287391","21300","12100","64206","17231525",{"$f":"VLOOKUP(TRIM(J240),'Transactional Departments'!A:B,2,FALSE)","v":"Stelzleni, Alex"},"17231525","18003","SVARIRC287391CV","A01","",""]
["17","287",null,null,"MIT/NSF  RF EMERGENT BEHVSTICE","2521RC287408","21300","12100","64319","17230001",{"$f":"VLOOKUP(TRIM(J241),'Transactional Departments'!A:B,2,FALSE)","v":"ADS Sum"},"17230001","18400","RMAITRC287408CV","A01","",""]
["17","287",null,null,"         RF FOLLOW-ON    WEST ","2521RC287410","21300","12100","64448","17230001",{"$f":"VLOOKUP(TRIM(J242),'Transactional Departments'!A:B,2,FALSE)","v":"ADS Sum"},"17230001","18003","SGATERC287410CV","A01","",""]
["17","287",null,null,"         INT W/287410    WEST ","2521RC287411","21300","12100","64448","17230001",{"$f":"VLOOKUP(TRIM(J243),'Transactional Departments'!A:B,2,FALSE)","v":"ADS Sum"},"17230001","18003","SGATERC287411CV","A01","",""]
["17","287",null,null,"         RF CROILER CHICKMISZT","2521RC287414","21300","12100","64027","17230001",{"$f":"VLOOKUP(TRIM(J244),'Transactional Departments'!A:B,2,FALSE)","v":"ADS Sum"},"17230001","18003","SCOBBRC287414CV","A01","",""]
["17","287",null,null,"         RF GENETIC SOFT MISZT","2521RC287415","21300","12100","64056","17230001",{"$f":"VLOOKUP(TRIM(J245),'Transactional Departments'!A:B,2,FALSE)","v":"ADS Sum"},"17230001","18003","SZOETRC287415CV","A01","",""]
["17","287",null,null,"ABCZ     RF SSGBLUP METH MISZT","2521RC287419","21300","12100","64486","17230001",{"$f":"VLOOKUP(TRIM(J246),'Transactional Departments'!A:B,2,FALSE)","v":"ADS Sum"},"17230001","18400","RASBZRC287419CV","A01","",""]
["17","287",null,null,"         RF MSCLE & BONE WEST ","2521RC287420","21300","12100","64056","17230001",{"$f":"VLOOKUP(TRIM(J247),'Transactional Departments'!A:B,2,FALSE)","v":"ADS Sum"},"17230001","18003","SZOETRC287420CV","A01","",""]
["17","287",null,null,"NIH      TASTE ORGANS    LIU  ","2521RC287423","21300","12100","61018","17230001",{"$f":"VLOOKUP(TRIM(J248),'Transactional Departments'!A:B,2,FALSE)","v":"ADS Sum"},"17230001","18003","SNIHXRC287423CV","A01","",""]
["17","287",null,null,"USDA     RF BEEF SYSTEMS STELZ","2521RC287424","21300","12100","61002","17230001",{"$f":"VLOOKUP(TRIM(J249),'Transactional Departments'!A:B,2,FALSE)","v":"ADS Sum"},"17230001","18400","RUSDARC287424CV","A01","",""]
["17","287",null,null,"USDA     RF FARM CATFISH LINO ","2521RC287425","21300","12100","61004","17230001",{"$f":"VLOOKUP(TRIM(J250),'Transactional Departments'!A:B,2,FALSE)","v":"ADS Sum"},"17230001","18400","RARSXRC287425CV","A01","",""]
["17","287",null,null,"         RF PHASE II     STICE","2521RC287427","21300","12100","64101","17230001",{"$f":"VLOOKUP(TRIM(J251),'Transactional Departments'!A:B,2,FALSE)","v":"ADS Sum"},"17230001","18003","SPHOIRC287427CV","A01","",""]
["17","287",null,null,"         RF SPRAY FOAM   STICE","2521RC287428","21300","12100","64000","17230001",{"$f":"VLOOKUP(TRIM(J252),'Transactional Departments'!A:B,2,FALSE)","v":"ADS Sum"},"17230001","18003","SREMERC287428CV","A01","",""]
["17","287",null,null,"UAF      RF STEM CELLS   WEST ","2521RC287429","21300","12100","62509","17230001",{"$f":"VLOOKUP(TRIM(J253),'Transactional Departments'!A:B,2,FALSE)","v":"ADS Sum"},"17230001","18400","RUNAFRC287429CV","A01","",""]
["17","287",null,null,"GCCB     RF DLY GAIN EPD PRING","2521RC287430","21300","12100","62006","17230001",{"$f":"VLOOKUP(TRIM(J254),'Transactional Departments'!A:B,2,FALSE)","v":"ADS Sum"},"17230001","18400","RGABFRC287430CV","A01","",""]
["17","287",null,null,"GCCB     RF HGH QLTY BEEFPRING","2521RC287431","21300","12100","62006","17230001",{"$f":"VLOOKUP(TRIM(J255),'Transactional Departments'!A:B,2,FALSE)","v":"ADS Sum"},"17230001","18400","RGABFRC287431CV","A01","",""]
["17","287",null,null,"         RF HEMOSTAT     KARUM","2521RC287432","21300","12100","64107","17230001",{"$f":"VLOOKUP(TRIM(J256),'Transactional Departments'!A:B,2,FALSE)","v":"ADS Sum"},"17230001","18003","SGELERC287432CV","A01","",""]
["17","287",null,null,"GCCB     RF JOHNSONGRASS STEWA","2521RC287433","21300","12100","62006","17230001",{"$f":"VLOOKUP(TRIM(J257),'Transactional Departments'!A:B,2,FALSE)","v":"ADS Sum"},"17230001","18400","RGABFRC287433CV","A01","",""]
["17","287",null,null,"GCCB     RF CREEP FEED   STEWA","2521RC287434","21300","12100","62006","17230001",{"$f":"VLOOKUP(TRIM(J258),'Transactional Departments'!A:B,2,FALSE)","v":"ADS Sum"},"17230001","18400","RGABFRC287434CV","A01","",""]
["17","287",null,null,"NSF      RF ILLUMINATING MORTE","2521RC287435","21300","12100","61023","17230001",{"$f":"VLOOKUP(TRIM(J259),'Transactional Departments'!A:B,2,FALSE)","v":"ADS Sum"},"17230001","18400","RNSFXRC287435CV","A01","",""]
["17","287",null,null,"NIH      RF BRAIN REPAIR KARUM","2521RC287436","21300","12100","61018","17230001",{"$f":"VLOOKUP(TRIM(J260),'Transactional Departments'!A:B,2,FALSE)","v":"ADS Sum"},"17230001","18400","RNIHXRC287436CV","A01","",""]
["17","287",null,null,"AAA      RF DAILY GAIN   PRING","2521RC287437","21300","12100","64277","17230001",{"$f":"VLOOKUP(TRIM(J261),'Transactional Departments'!A:B,2,FALSE)","v":"ADS Sum"},"17230001","18400","RAMAARC287437CV","A01","",""]
["17","287",null,null,"NPB      RF PORK QUALITY PRING","2521RC287438","21300","12100","64540","17230001",{"$f":"VLOOKUP(TRIM(J262),'Transactional Departments'!A:B,2,FALSE)","v":"ADS Sum"},"17230001","18400","RPORKRC287438CV","A01","",""]
["17","287",null,null,"NIH      RF RC287-436 PS KARUM","2521RC287439","21300","12100","61018","17230001",{"$f":"VLOOKUP(TRIM(J263),'Transactional Departments'!A:B,2,FALSE)","v":"ADS Sum"},"17230001","18400","RNIHXRC287439CV","A01","",""]
["17","287",null,null,"ABI/NIH  RF SBIR         WEST ","2521RC287441","21300","12100","64000","17230001",{"$f":"VLOOKUP(TRIM(J264),'Transactional Departments'!A:B,2,FALSE)","v":"ADS Sum"},"17230001","18400","RXXXXRC287441CV","A01","",""]
["17","287",null,null,"GIT      RF CMAT         STICE","2521RC287442","21300","12100","62021","17230001",{"$f":"VLOOKUP(TRIM(J265),'Transactional Departments'!A:B,2,FALSE)","v":"ADS Sum"},"17230001","18400","RGAITRC287442CV","A01","",""]
["17","287",null,null,"         VARIOUS         STEWA","2521RC287552","21300","12100","64206","17231550",{"$f":"VLOOKUP(TRIM(J266),'Transactional Departments'!A:B,2,FALSE)","v":"Stewart, Lawton"},"17231550","18003","SVARIRC287552CV","A01","",""]
["17","287",null,null,"USEPA    RF NEURAL STEM  STICE","2521RC287557","21300","12100","61032","17230001",{"$f":"VLOOKUP(TRIM(J267),'Transactional Departments'!A:B,2,FALSE)","v":"ADS Sum"},"17230001","18400","RUSEARC287557CV","A01","",""]
["17","287",null,null,"         VARIOUS         DOVE ","2521RC287558","21300","12100","64206","17231125",{"$f":"VLOOKUP(TRIM(J268),'Transactional Departments'!A:B,2,FALSE)","v":"Dove, Robert"},"17231125","18003","SVARIRC287558CV","A01","",""]
["17","287",null,null,"USDA NIFARF GEN EVAL     MISZT","2521RC287562","21300","12100","61002","17230001",{"$f":"VLOOKUP(TRIM(J269),'Transactional Departments'!A:B,2,FALSE)","v":"ADS Sum"},"17230001","18400","RUSDARC287562CV","A01","",""]
["17","287",null,null,"         VARIOUS         DUBER","2521RC287563","21300","12100","64206","17231150",{"$f":"VLOOKUP(TRIM(J270),'Transactional Departments'!A:B,2,FALSE)","v":"Duberstein, Kylee"},"17231150","18003","SVARIRC287563CV","A01","",""]
["17","287",null,null,"         RF BEEF CATTLE  BERTR","2521RC287565","21300","12100","64073","17230001",{"$f":"VLOOKUP(TRIM(J271),'Transactional Departments'!A:B,2,FALSE)","v":"ADS Sum"},"17230001","18003","SMEGLRC287565CV","A01","",""]
["17","287",null,null,"USDA NIFARF BREEDING     REKAY","2521RC287566","21300","12100","61002","17230001",{"$f":"VLOOKUP(TRIM(J272),'Transactional Departments'!A:B,2,FALSE)","v":"ADS Sum"},"17230001","18400","RUSDARC287566CV","A01","",""]
["17","287",null,null,"         ADS BEEF FORAGE TUCKE","2521RC287567","21300","12100","64206","17231650",{"$f":"VLOOKUP(TRIM(J273),'Transactional Departments'!A:B,2,FALSE)","v":"Tucker, Jennifer"},"17231650","18003","SVARIRC287567CV","A01","",""]
["17","287",null,null,"MIT      RF CELL SYSTEM  STICE","2521RC287568","21300","12100","64319","17230001",{"$f":"VLOOKUP(TRIM(J274),'Transactional Departments'!A:B,2,FALSE)","v":"ADS Sum"},"17230001","18400","RMAITRC287568CV","A01","",""]
["17","287",null,null,"         VARIOUS         WEST ","2521RC287570","21300","12100","64206","17231700",{"$f":"VLOOKUP(TRIM(J275),'Transactional Departments'!A:B,2,FALSE)","v":"West, Franklin"},"17231700","18003","SVARIRC287570CV","A01","",""]
["17","287",null,null,"TAMU     RF QUALITY AUDITPRING","2521RC287573","21300","12100","64386","17230001",{"$f":"VLOOKUP(TRIM(J276),'Transactional Departments'!A:B,2,FALSE)","v":"ADS Sum"},"17230001","18400","RTXARRC287573CV","A01","",""]
["17","287",null,null,"         RF VITAMIN E    DUBER","2521RC287574","21300","12100","64103","17230001",{"$f":"VLOOKUP(TRIM(J277),'Transactional Departments'!A:B,2,FALSE)","v":"ADS Sum"},"17230001","18003","SMARSRC287574CV","A01","",""]
["17","287",null,null,"         RF SSGBLUP METH MISZT","2521RC287575","21300","12100","64546","17230001",{"$f":"VLOOKUP(TRIM(J278),'Transactional Departments'!A:B,2,FALSE)","v":"ADS Sum"},"17230001","18003","SPLEMRC287575CV","A01","",""]
["17","287",null,null,"GIT/MF   RF LIPIDOMIC    MORTE","2521RC287577","21300","12100","62021","17230001",{"$f":"VLOOKUP(TRIM(J279),'Transactional Departments'!A:B,2,FALSE)","v":"ADS Sum"},"17230001","18400","RGAITRC287577CV","A01","",""]
["17","287",null,null,"         VARIOUS         LINO ","2521RC287578","21300","12100","64206","17230001",{"$f":"VLOOKUP(TRIM(J280),'Transactional Departments'!A:B,2,FALSE)","v":"ADS Sum"},"17230001","18003","SVARIRC287578CV","A01","",""]
["17","287",null,null,"FEDERAL HATCH                 ","2526GC287001","21300","12100","61HAT","17230001",{"$f":"VLOOKUP(TRIM(J281),'Transactional Departments'!A:B,2,FALSE)","v":"ADS Sum"},"17230001","18003","SNIFAXRGHATCH17","F17","RCS",""]
["17","287",null,null,"REGIONAL HATCH                ","2526GC287002","21300","12100","61MSH","17230001",{"$f":"VLOOKUP(TRIM(J282),'Transactional Departments'!A:B,2,FALSE)","v":"ADS Sum"},"17230001","18003","SNIFAXMSHATCH17","F17","RCS",""]
["17","287",null,null,"ADS FED HATCH STELZLENI       ","2526GC287121","21300","12100","61HAT","17231525",{"$f":"VLOOKUP(TRIM(J283),'Transactional Departments'!A:B,2,FALSE)","v":"Stelzleni, Alex"},"17231525","18003","SNIFAXRGHATCH17","F17","RCS",""]
["17","287",null,null,"ADS FED HATCH AZAIN           ","2526GC287131","21300","12100","61HAT","17231000",{"$f":"VLOOKUP(TRIM(J284),'Transactional Departments'!A:B,2,FALSE)","v":"Azain, Michael"},"17231000","18003","SNIFAXRGHATCH17","F17","RCS",""]
["17","287",null,null,"ADS REG HATCH AZAIN           ","2526GC287132","21300","12100","61MSH","17231000",{"$f":"VLOOKUP(TRIM(J285),'Transactional Departments'!A:B,2,FALSE)","v":"Azain, Michael"},"17231000","18003","SNIFAXMSHATCH17","F17","RCS",""]
["17","287",null,null,"ADS REG HATCH NICKERSON       ","2526GC287142","21300","12100","61MSH","17231425",{"$f":"VLOOKUP(TRIM(J286),'Transactional Departments'!A:B,2,FALSE)","v":"Nickerson, Stephen"},"17231425","18003","SNIFAXMSHATCH17","F17","RCS",""]
["17","287",null,null,"ADS FED HATCH F. WEST         ","2526GC287201","21300","12100","61HAT","17231700",{"$f":"VLOOKUP(TRIM(J287),'Transactional Departments'!A:B,2,FALSE)","v":"West, Franklin"},"17231700","18003","SNIFAXRGHATCH17","F17","RCS",""]
["17","287",null,null,"ADS FED HATCH MISZTAL         ","2526GC287241","21300","12100","61HAT","17231375",{"$f":"VLOOKUP(TRIM(J288),'Transactional Departments'!A:B,2,FALSE)","v":"Misztal, Ignacy"},"17231375","18003","SNIFAXRGHATCH17","F17","RCS",""]
["17","287",null,null,"ADS REG HATCH MISZTAL         ","2526GC287242","21300","12100","61MSH","17231375",{"$f":"VLOOKUP(TRIM(J289),'Transactional Departments'!A:B,2,FALSE)","v":"Misztal, Ignacy"},"17231375","18003","SNIFAXMSHATCH17","F17","RCS",""]
["17","287",null,null,"ADS FED HATCH PRINGLE         ","2526GC287261","21300","12100","61HAT","17231450",{"$f":"VLOOKUP(TRIM(J290),'Transactional Departments'!A:B,2,FALSE)","v":"Pringle, Dean"},"17231450","18003","SNIFAXRGHATCH17","F17","RCS",""]
["17","287",null,null,"ADS FED HATCH REKAYA          ","2526GC287321","21300","12100","61HAT","17231475",{"$f":"VLOOKUP(TRIM(J291),'Transactional Departments'!A:B,2,FALSE)","v":"Rekaya, Romdhane"},"17231475","18003","SNIFAXRGHATCH17","F17","RCS",""]
["17","287",null,null,"ANIMAL DAIRY REG HATCH DOVE   ","2526GC287342","21300","12100","61MSH","17231125",{"$f":"VLOOKUP(TRIM(J292),'Transactional Departments'!A:B,2,FALSE)","v":"Dove, Robert"},"17231125","18003","SNIFAXMSHATCH17","F17","RCS",""]
["17","293",null,null,"GDA      RF PEST CONTROL    FO","2521RC293206","21300","12100","62010","17250001",{"$f":"VLOOKUP(TRIM(J293),'Transactional Departments'!A:B,2,FALSE)","v":"Entomology Sum"},"17250001","18400","RGDAGRC293206CV","A01","",""]
["17","293",null,null,"VARIOUS  BLK FLY VECTO NONOBLE","2521RC293207","21300","12100","64206","17250001",{"$f":"VLOOKUP(TRIM(J294),'Transactional Departments'!A:B,2,FALSE)","v":"Entomology Sum"},"17250001","18003","SVARIRC293207CV","A01","",""]
["17","293",null,null,"         VARIOUS RSCH    FORSC","2521RC293229","21300","12100","64206","17253120",{"$f":"VLOOKUP(TRIM(J295),'Transactional Departments'!A:B,2,FALSE)","v":"Forschler"},"17253120","18003","SVARIRC293229CV","A01","",""]
["17","293",null,null,"U AZ/NIH RF INSULIN/IGF  BROWN","2521RC293350","21300","12100","62500","17250001",{"$f":"VLOOKUP(TRIM(J296),'Transactional Departments'!A:B,2,FALSE)","v":"Entomology Sum"},"17250001","18400","RXXXXRC293350CV","A01","",""]
["17","293",null,null,"UOM/USDA RF APHID PEST   OLIVE","2521RC293366","21300","12100","62514","17250001",{"$f":"VLOOKUP(TRIM(J297),'Transactional Departments'!A:B,2,FALSE)","v":"Entomology Sum"},"17250001","18400","RUOMNRC293366CV","A01","",""]
["17","293",null,null,"         RF BLCK FLY TRP NOBLE","2521RC293375","21300","12100","62542","17250001",{"$f":"VLOOKUP(TRIM(J298),'Transactional Departments'!A:B,2,FALSE)","v":"Entomology Sum"},"17250001","18003","SUSFXRC293375CV","A01","",""]
["17","293",null,null,"GACCS    RF KUDZU BUG RESALL  ","2521RC293378","21300","12100","62004","17250001",{"$f":"VLOOKUP(TRIM(J299),'Transactional Departments'!A:B,2,FALSE)","v":"Entomology Sum"},"17250001","18400","RGSOYRC293378CV","A01","",""]
["17","293",null,null,"USDA     RF HEMLOCK WOOLLNOBLE","2521RC293382","21300","12100","61002","17250001",{"$f":"VLOOKUP(TRIM(J300),'Transactional Departments'!A:B,2,FALSE)","v":"Entomology Sum"},"17250001","18400","RUSDARC293382CV","A01","",""]
["17","293",null,null,"NSF      RF HEMOLYMPH IN STRAN","2521RC293387","21300","12100","61023","17250001",{"$f":"VLOOKUP(TRIM(J301),'Transactional Departments'!A:B,2,FALSE)","v":"Entomology Sum"},"17250001","18400","RNSFXRC293387CV","A01","",""]
["17","293",null,null,"NSF      RF FOOD WEB RES OLIVE","2521RC293394","21300","12100","61023","17250001",{"$f":"VLOOKUP(TRIM(J302),'Transactional Departments'!A:B,2,FALSE)","v":"Entomology Sum"},"17250001","18400","RNSFXRC293394CV","A01","",""]
["17","293",null,null,"USDA/ UH RF WOLBACHIA BACOLIVE","2521RC293400","21300","12100","62500","17250001",{"$f":"VLOOKUP(TRIM(J303),'Transactional Departments'!A:B,2,FALSE)","v":"Entomology Sum"},"17250001","18400","RXXXXRC293400CV","A01","",""]
["17","293",null,null,"NSF      RF DEF SYMBIOSI OLIVE","2521RC293402","21300","12100","61023","17250001",{"$f":"VLOOKUP(TRIM(J304),'Transactional Departments'!A:B,2,FALSE)","v":"Entomology Sum"},"17250001","18400","RNSFXRC293402CV","A01","",""]
["17","293",null,null,"EMORY/NIHRF HONEY BEES   DELAP","2521RC293403","21300","12100","64139","17250001",{"$f":"VLOOKUP(TRIM(J305),'Transactional Departments'!A:B,2,FALSE)","v":"Entomology Sum"},"17250001","18400","REMORRC293403CV","A01","",""]
["17","293",null,null,"USDA FS  RF CHINESE PRIV BATZE","2521RC293406","21300","12100","61002","17250001",{"$f":"VLOOKUP(TRIM(J306),'Transactional Departments'!A:B,2,FALSE)","v":"Entomology Sum"},"17250001","18400","RUSDARC293406CV","A01","",""]
["17","293",null,null,"USDA RS  RF TRAP PLACMEN MCHUG","2521RC293407","21300","12100","61002","17250001",{"$f":"VLOOKUP(TRIM(J307),'Transactional Departments'!A:B,2,FALSE)","v":"Entomology Sum"},"17250001","18400","RUSDARC293407CV","A01","",""]
["17","293",null,null,"GCCB     RF PRECIPITATN  AHMAD","2521RC293411","21300","12100","62009","17250001",{"$f":"VLOOKUP(TRIM(J308),'Transactional Departments'!A:B,2,FALSE)","v":"Entomology Sum"},"17250001","18400","RGABLRC293411CV","A01","",""]
["17","293",null,null,"USDA     RF WOOD DECOMP  FORSC","2521RC293413","21300","12100","61003","17250001",{"$f":"VLOOKUP(TRIM(J309),'Transactional Departments'!A:B,2,FALSE)","v":"Entomology Sum"},"17250001","18400","RUSFSRC293413CV","A01","",""]
["17","293",null,null,"GCCS     RF RC371-314    PARRO","2521RC293414","21300","12100","62004","17250001",{"$f":"VLOOKUP(TRIM(J310),'Transactional Departments'!A:B,2,FALSE)","v":"Entomology Sum"},"17250001","18400","RGSOYRC293414CV","A01","",""]
["17","293",null,null,"EU/NIH   RF SPATIAL EVOL DELAP","2521RC293416","21300","12100","64139","17250001",{"$f":"VLOOKUP(TRIM(J311),'Transactional Departments'!A:B,2,FALSE)","v":"Entomology Sum"},"17250001","18400","REMORRC293416CV","A01","",""]
["17","293",null,null,"         VARIOUS         MAYER","2521RC293608","21300","12100","64206","17250001",{"$f":"VLOOKUP(TRIM(J312),'Transactional Departments'!A:B,2,FALSE)","v":"Entomology Sum"},"17250001","18003","SVARIRC293608CV","A01","",""]
["17","293",null,null,"         VARIOUS         AHMAD","2521RC293610","21300","12100","64206","17250001",{"$f":"VLOOKUP(TRIM(J313),'Transactional Departments'!A:B,2,FALSE)","v":"Entomology Sum"},"17250001","18003","SVARIRC293610CV","A01","",""]
["17","293",null,null,"SRSFC    RF SPATIO-TEMPO AHMAD","2521RC293611","21300","12100","64342","17250001",{"$f":"VLOOKUP(TRIM(J314),'Transactional Departments'!A:B,2,FALSE)","v":"Entomology Sum"},"17250001","18400","RSRSFRC293611CV","A01","",""]
["17","293",null,null,"NSF      RF SUPERGENE    ROSS ","2521RC293613","21300","12100","61023","17250001",{"$f":"VLOOKUP(TRIM(J315),'Transactional Departments'!A:B,2,FALSE)","v":"Entomology Sum"},"17250001","18400","RNSFXRC293613CV","A01","",""]
["17","293",null,null,"GACCB    RF SWD BIOLOGY  AHMAD","2521RC293617","21300","12100","62009","17250001",{"$f":"VLOOKUP(TRIM(J316),'Transactional Departments'!A:B,2,FALSE)","v":"Entomology Sum"},"17250001","18400","RGABLRC293617CV","A01","",""]
["17","293",null,null,"NIH      RF GUT MICRO    STRAN","2521RC293618","21300","12100","61018","17250001",{"$f":"VLOOKUP(TRIM(J317),'Transactional Departments'!A:B,2,FALSE)","v":"Entomology Sum"},"17250001","18400","RNIHXRC293618CV","A01","",""]
["17","293",null,null,"GABA     RF SPOT WING    AHMAD","2521RC293619","21300","12100","64142","17250001",{"$f":"VLOOKUP(TRIM(J318),'Transactional Departments'!A:B,2,FALSE)","v":"Entomology Sum"},"17250001","18400","RGABARC293619CV","A01","",""]
["17","293",null,null,"OCR      RF ECO CHANGE   BATZE","2521RC293622","21300","12100","64175","17250001",{"$f":"VLOOKUP(TRIM(J319),'Transactional Departments'!A:B,2,FALSE)","v":"Entomology Sum"},"17250001","18400","ROGEERC293622CV","A01","",""]
["17","293",null,null,"USPEA    RF HEN FARMS    HINKL","2521RC293627","21300","12100","64178","17250001",{"$f":"VLOOKUP(TRIM(J320),'Transactional Departments'!A:B,2,FALSE)","v":"Entomology Sum"},"17250001","18400","RUSPARC293627CV","A01","",""]
["17","293",null,null,"USDA FS  RF FOREST BEE   MCHUG","2521RC293630","21300","12100","61003","17250001",{"$f":"VLOOKUP(TRIM(J321),'Transactional Departments'!A:B,2,FALSE)","v":"Entomology Sum"},"17250001","18400","RUSFSRC293630CV","A01","",""]
["17","293",null,null,"USDA FS  RF HEMLOCK      ZHANG","2521RC293632","21300","12100","61003","17250001",{"$f":"VLOOKUP(TRIM(J322),'Transactional Departments'!A:B,2,FALSE)","v":"Entomology Sum"},"17250001","18400","RUSFSRC293632CV","A01","",""]
["17","293",null,null,"NSF      RF TROPIC COMM  BURKE","2521RC293634","21300","12100","61023","17250001",{"$f":"VLOOKUP(TRIM(J323),'Transactional Departments'!A:B,2,FALSE)","v":"Entomology Sum"},"17250001","18400","RNSFXRC293634CV","A01","",""]
["17","293",null,null,"USDA NIFARF DROSOPHILA   AHMAD","2521RC293636","21300","12100","61006","17250001",{"$f":"VLOOKUP(TRIM(J324),'Transactional Departments'!A:B,2,FALSE)","v":"Entomology Sum"},"17250001","18400","RNIFARC293636CV","A01","",""]
["17","293",null,null,"EMORY/NIHRF SPATIAL STRU DELAP","2521RC293638","21300","12100","64139","17250001",{"$f":"VLOOKUP(TRIM(J325),'Transactional Departments'!A:B,2,FALSE)","v":"Entomology Sum"},"17250001","18400","REMORRC293638CV","A01","",""]
["17","293",null,null,"NIH      RF ENDO MOSQ REPBROWN","2521RC293639","21300","12100","61018","17250001",{"$f":"VLOOKUP(TRIM(J326),'Transactional Departments'!A:B,2,FALSE)","v":"Entomology Sum"},"17250001","18400","RNIHXRC293639CV","A01","",""]
["17","293",null,null,"USEPA    RF WETLAND ECO  BATZE","2521RC293640","21300","12100","61032","17250001",{"$f":"VLOOKUP(TRIM(J327),'Transactional Departments'!A:B,2,FALSE)","v":"Entomology Sum"},"17250001","18400","RUSEARC293640CV","A01","",""]
["17","293",null,null,"NCSU     RF SPOTTED WING AHMAD","2521RC293641","21300","12100","62506","17250001",{"$f":"VLOOKUP(TRIM(J328),'Transactional Departments'!A:B,2,FALSE)","v":"Entomology Sum"},"17250001","18400","RNCSURC293641CV","A01","",""]
["17","293",null,null,"NSF      RF DIVERS HERB  MCHUG","2521RC293643","21300","12100","61023","17250001",{"$f":"VLOOKUP(TRIM(J329),'Transactional Departments'!A:B,2,FALSE)","v":"Entomology Sum"},"17250001","18400","RNSFXRC293643CV","A01","",""]
["17","293",null,null,"EMORY/NIHRF SPATIAL FY17 DELAP","2521RC293645","21300","12100","64139","17250001",{"$f":"VLOOKUP(TRIM(J330),'Transactional Departments'!A:B,2,FALSE)","v":"Entomology Sum"},"17250001","18400","REMORRC293645CV","A01","",""]
["17","293",null,null,"GCCP     RF SCALE INSECTSBLAAU","2521RC293646","21300","12100","62007","17250001",{"$f":"VLOOKUP(TRIM(J331),'Transactional Departments'!A:B,2,FALSE)","v":"Entomology Sum"},"17250001","18400","RGPCHRC293646CV","A01","",""]
["17","293",null,null,"GCCB     RF HORN FLY     HINKL","2521RC293647","21300","12100","62006","17250001",{"$f":"VLOOKUP(TRIM(J332),'Transactional Departments'!A:B,2,FALSE)","v":"Entomology Sum"},"17250001","18400","RGABFRC293647CV","A01","",""]
["17","293",null,null,"NSF      RF LIFE CYCLE   BURKE","2521RC293648","21300","12100","61023","17250001",{"$f":"VLOOKUP(TRIM(J333),'Transactional Departments'!A:B,2,FALSE)","v":"Entomology Sum"},"17250001","18400","RNSFXRC293648CV","A01","",""]
["17","293",null,null,"GCCC     RF GRAIN DEBRIS ALL  ","2521RC293649","21300","12100","62001","17250001",{"$f":"VLOOKUP(TRIM(J334),'Transactional Departments'!A:B,2,FALSE)","v":"Entomology Sum"},"17250001","18400","RGCOTRC293649CV","A01","",""]
["17","293",null,null,"BASF CORPPROT DEV12016US AHMAD","2521RC293650","21300","12100","64002","17250001",{"$f":"VLOOKUP(TRIM(J335),'Transactional Departments'!A:B,2,FALSE)","v":"Entomology Sum"},"17250001","18003","SBASFRC293650CV","A01","",""]
["17","293",null,null,"SCPC     RF SC PB AWARD  BLAAU","2521RC293651","21300","12100","64336","17250001",{"$f":"VLOOKUP(TRIM(J336),'Transactional Departments'!A:B,2,FALSE)","v":"Entomology Sum"},"17250001","18400","RSCPCRC293651CV","A01","",""]
["17","293",null,null,"NSF      RF MOSQUITOES   STRAN","2521RC293652","21300","12100","61023","17250001",{"$f":"VLOOKUP(TRIM(J337),'Transactional Departments'!A:B,2,FALSE)","v":"Entomology Sum"},"17250001","18400","RNSFXRC293652CV","A01","",""]
["17","293",null,null,"NSF      RF PARENTL CARE      ","2521RC293654","21300","12100","61023","17250001",{"$f":"VLOOKUP(TRIM(J338),'Transactional Departments'!A:B,2,FALSE)","v":"Entomology Sum"},"17250001","18400","RNSFXRC293654CV","A01","",""]
["17","293",null,null,"USDA     RF SUGARBERRY   BATZE","2521RC293655","21300","12100","61003","17250001",{"$f":"VLOOKUP(TRIM(J339),'Transactional Departments'!A:B,2,FALSE)","v":"Entomology Sum"},"17250001","18400","RUSFSRC293655CV","A01","",""]
["17","293",null,null,"         VARIOUS         BLAAU","2521RC293658","21300","12100","64206","17250001",{"$f":"VLOOKUP(TRIM(J340),'Transactional Departments'!A:B,2,FALSE)","v":"Entomology Sum"},"17250001","18003","SVARIRC293658CV","A01","",""]
["17","293",null,null,"         VARIOUS         MCHUG","2521RC293659","21300","12100","64206","17250001",{"$f":"VLOOKUP(TRIM(J341),'Transactional Departments'!A:B,2,FALSE)","v":"Entomology Sum"},"17250001","18003","SVARIRC293659CV","A01","",""]
["17","293",null,null,"FEDERAL HATCH                 ","2526GC293001","21300","12100","61HAT","17250001",{"$f":"VLOOKUP(TRIM(J342),'Transactional Departments'!A:B,2,FALSE)","v":"Entomology Sum"},"17250001","18003","SNIFAXRGHATCH17","F17","RCS",""]
["17","293",null,null,"ENT FED HATCH BROWN           ","2526GC293131","21300","12100","61HAT","17253060",{"$f":"VLOOKUP(TRIM(J343),'Transactional Departments'!A:B,2,FALSE)","v":"Brown"},"17253060","18003","SNIFAXRGHATCH17","F17","RCS",""]
["17","293",null,null,"ENT REG HATCH DELAPLANE       ","2526GC293152","21300","12100","61MSH","17253100",{"$f":"VLOOKUP(TRIM(J344),'Transactional Departments'!A:B,2,FALSE)","v":"Delaplane"},"17253100","18003","SNIFAXMSHATCH17","F17","RCS",""]
["17","293",null,null,"ENT FED HATCH BATZER          ","2526GC293251","21300","12100","61HAT","17253030",{"$f":"VLOOKUP(TRIM(J345),'Transactional Departments'!A:B,2,FALSE)","v":"Bazter"},"17253030","18003","SNIFAXRGHATCH17","F17","RCS",""]
["17","293",null,null,"ENT FED HATCH STRAND          ","2526GC293601","21300","12100","61HAT","17253310",{"$f":"VLOOKUP(TRIM(J346),'Transactional Departments'!A:B,2,FALSE)","v":"Strand"},"17253310","18003","SNIFAXRGHATCH17","F17","RCS",""]
["17","294",null,null,"            FOOD SCIENCE VARSI","2521RC294046","21300","12100","64206","17260001",{"$f":"VLOOKUP(TRIM(J347),'Transactional Departments'!A:B,2,FALSE)","v":"Food Science Sum"},"17260001","18003","SVARIRC294046CV","A01","",""]
["17","294",null,null,"         RF VARIOUS FRANK     ","2521RC294124","21300","12100","64206","17260001",{"$f":"VLOOKUP(TRIM(J348),'Transactional Departments'!A:B,2,FALSE)","v":"Food Science Sum"},"17260001","18003","SVARIRC294124CV","A01","",""]
["17","294",null,null,"         VARIOUS TOLEDO       ","2521RC294177","21300","12100","64206","17260001",{"$f":"VLOOKUP(TRIM(J349),'Transactional Departments'!A:B,2,FALSE)","v":"Food Science Sum"},"17260001","18003","SVARIRC294177CV","A01","",""]
["17","294",null,null,"         VARIOUS/HURST   HURST","2521RC294215","21300","12100","64206","17260001",{"$f":"VLOOKUP(TRIM(J350),'Transactional Departments'!A:B,2,FALSE)","v":"Food Science Sum"},"17260001","18003","SVARIRC294215CV","A01","",""]
["17","294",null,null,"         VARIOUS RESCH   KERR ","2521RC294265","21300","12100","64206","17260160",{"$f":"VLOOKUP(TRIM(J351),'Transactional Departments'!A:B,2,FALSE)","v":"Kerr, William"},"17260160","18003","SVARIRC294265CV","A01","",""]
["17","294",null,null,"         VAR RSCH GIFTS  EITEN","2521RC294284","21300","12100","64206","17260001",{"$f":"VLOOKUP(TRIM(J352),'Transactional Departments'!A:B,2,FALSE)","v":"Food Science Sum"},"17260001","18003","SVARIRC294284CV","A01","",""]
["17","294",null,null,"         VAR RSCH GIFTS  PEGG ","2521RC294289","21300","12100","64206","17260220",{"$f":"VLOOKUP(TRIM(J353),'Transactional Departments'!A:B,2,FALSE)","v":"Pegg, Ronald"},"17260220","18003","SVARIRC294289CV","A01","",""]
["17","294",null,null,"         VARIOUS         HARRI","2521RC294290","21300","12100","64206","17260140",{"$f":"VLOOKUP(TRIM(J354),'Transactional Departments'!A:B,2,FALSE)","v":"Harrison, Mark"},"17260140","18003","SVARIRC294290CV","A01","",""]
["17","294",null,null,"         VARIOUS RSCH    AKOH ","2521RC294296","21300","12100","64206","17260110",{"$f":"VLOOKUP(TRIM(J355),'Transactional Departments'!A:B,2,FALSE)","v":"Akoh, Casimir"},"17260110","18003","SVARIRC294296CV","A01","",""]
["17","294",null,null,"         RF JUICE QLTY   WICKE","2521RC294311","21300","12100","64045","17260001",{"$f":"VLOOKUP(TRIM(J356),'Transactional Departments'!A:B,2,FALSE)","v":"Food Science Sum"},"17260001","18003","SPEPSRC294311CV","A01","",""]
["17","294",null,null,"USDA     RF IMPRV PECANS PEGG ","2521RC294317","21300","12100","61002","17260001",{"$f":"VLOOKUP(TRIM(J357),'Transactional Departments'!A:B,2,FALSE)","v":"Food Science Sum"},"17260001","18400","RUSDARC294317CV","A01","",""]
["17","294",null,null,"         RF ROASTD ALMND PEGG ","2521RC294322","21300","12100","64144","17260001",{"$f":"VLOOKUP(TRIM(J358),'Transactional Departments'!A:B,2,FALSE)","v":"Food Science Sum"},"17260001","18003","SABCARC294322CV","A01","",""]
["17","294",null,null,"USDA     RF DRY FOODS    FRANK","2521RC294323","21300","12100","61002","17260001",{"$f":"VLOOKUP(TRIM(J359),'Transactional Departments'!A:B,2,FALSE)","v":"Food Science Sum"},"17260001","18400","RUSDARC294323CV","A01","",""]
["17","294",null,null,"         VARIOUS         KONG ","2521RC294325","21300","12100","64206","17260250",{"$f":"VLOOKUP(TRIM(J360),'Transactional Departments'!A:B,2,FALSE)","v":"Kong, Fanbin"},"17260250","18003","SVARIRC294325CV","A01","",""]
["17","294",null,null,"USDA NIFARF FOOD POWDERS KONG ","2521RC294329","21300","12100","61002","17260001",{"$f":"VLOOKUP(TRIM(J361),'Transactional Departments'!A:B,2,FALSE)","v":"Food Science Sum"},"17260001","18400","RUSDARC294329CV","A01","",""]
["17","294",null,null,"USDA     RF NANOSCALE SC REYES","2521RC294330","21300","12100","61002","17260001",{"$f":"VLOOKUP(TRIM(J362),'Transactional Departments'!A:B,2,FALSE)","v":"Food Science Sum"},"17260001","18400","RUSDARC294330CV","A01","",""]
["17","294",null,null,"UT/USDA  RF IMPROVE LIPIDAKOH ","2521RC294331","21300","12100","62551","17260001",{"$f":"VLOOKUP(TRIM(J363),'Transactional Departments'!A:B,2,FALSE)","v":"Food Science Sum"},"17260001","18400","RUTSURC294331CV","A01","",""]
["17","294",null,null,"UFL/USDA RF HLB CITRUS   REYES","2521RC294336","21300","12100","62511","17260001",{"$f":"VLOOKUP(TRIM(J364),'Transactional Departments'!A:B,2,FALSE)","v":"Food Science Sum"},"17260001","18400","RUFLXRC294336CV","A01","",""]
["17","294",null,null,"GACCP    RF PECAN SNACK  KERR ","2521RC294340","21300","12100","62045","17260001",{"$f":"VLOOKUP(TRIM(J365),'Transactional Departments'!A:B,2,FALSE)","v":"Food Science Sum"},"17260001","18400","RGPCNRC294340CV","A01","",""]
["17","294",null,null,"CI       RF COTTON OIL   PATON","2521RC294341","21300","12100","64355","17260001",{"$f":"VLOOKUP(TRIM(J366),'Transactional Departments'!A:B,2,FALSE)","v":"Food Science Sum"},"17260001","18400","RCOTTRC294341CV","A01","",""]
["17","294",null,null,"USDA NIFARF NANOBIOS     KONG ","2521RC294343","21300","12100","61006","17260001",{"$f":"VLOOKUP(TRIM(J367),'Transactional Departments'!A:B,2,FALSE)","v":"Food Science Sum"},"17260001","18400","RNIFARC294343CV","A01","",""]
["17","294",null,null,"         VARIOUS         MOHAN","2521RC294344","21300","12100","64206","17260260",{"$f":"VLOOKUP(TRIM(J368),'Transactional Departments'!A:B,2,FALSE)","v":"Mohan, Anand"},"17260260","18003","SVARIRC294344CV","A01","",""]
["17","294",null,null,"GACCP    RF BIOAVAIL     PEGG ","2521RC294345","21300","12100","62045","17260001",{"$f":"VLOOKUP(TRIM(J369),'Transactional Departments'!A:B,2,FALSE)","v":"Food Science Sum"},"17260001","18400","RGPCNRC294345CV","A01","",""]
["17","294",null,null,"FFF      RF LISTERIA     HARRI","2521RC294346","21300","12100","64428","17260001",{"$f":"VLOOKUP(TRIM(J370),'Transactional Departments'!A:B,2,FALSE)","v":"Food Science Sum"},"17260001","18400","RFRFFRC294346CV","A01","",""]
["17","294",null,null,"         RF BEEF ENTER   MOHAN","2521RC294347","21300","12100","62006","17260001",{"$f":"VLOOKUP(TRIM(J371),'Transactional Departments'!A:B,2,FALSE)","v":"Food Science Sum"},"17260001","18003","SGABFRC294347CV","A01","",""]
["17","294",null,null,"         VARIOUS         CAVEN","2521RC294348","21300","12100","64206","17260300",{"$f":"VLOOKUP(TRIM(J372),'Transactional Departments'!A:B,2,FALSE)","v":"Cavender, George"},"17260300","18003","SVARIRC294348CV","A01","",""]
["17","294",null,null,"GCCP     RF GA PEACHES   PEGG ","2521RC294349","21300","12100","62007","17260001",{"$f":"VLOOKUP(TRIM(J373),'Transactional Departments'!A:B,2,FALSE)","v":"Food Science Sum"},"17260001","18400","RGPCHRC294349CV","A01","",""]
["17","294",null,null,"GCCV     RF CANTALOUPE   KONG ","2521RC294350","21300","12100","62008","17260001",{"$f":"VLOOKUP(TRIM(J374),'Transactional Departments'!A:B,2,FALSE)","v":"Food Science Sum"},"17260001","18400","RGVEGRC294350CV","A01","",""]
["17","294",null,null,"GCCP     RF CONSTITUENTS PEGG ","2521RC294351","21300","12100","62045","17260001",{"$f":"VLOOKUP(TRIM(J375),'Transactional Departments'!A:B,2,FALSE)","v":"Food Science Sum"},"17260001","18400","RGPCNRC294351CV","A01","",""]
["17","294",null,null,"USU/USDA RF LIPIDS       AKOH ","2521RC294352","21300","12100","62551","17260001",{"$f":"VLOOKUP(TRIM(J376),'Transactional Departments'!A:B,2,FALSE)","v":"Food Science Sum"},"17260001","18400","RUTSURC294352CV","A01","",""]
["17","294",null,null,"HAMMONS  RF BLACK WALNUTSPATON","2521RC294353","21300","12100","64116","17260001",{"$f":"VLOOKUP(TRIM(J377),'Transactional Departments'!A:B,2,FALSE)","v":"Food Science Sum"},"17260001","18400","RHAMPRC294353CV","A01","",""]
["17","294",null,null,"GCCP     RF HIGH FAT FO  PATON","2521RC294354","21300","12100","62045","17260001",{"$f":"VLOOKUP(TRIM(J378),'Transactional Departments'!A:B,2,FALSE)","v":"Food Science Sum"},"17260001","18400","RGPCNRC294354CV","A01","",""]
["17","294",null,null,"MCT      RF FILM CHALL   HARRI","2521RC294355","21300","12100","64550","17260001",{"$f":"VLOOKUP(TRIM(J379),'Transactional Departments'!A:B,2,FALSE)","v":"Food Science Sum"},"17260001","18400","RMAXWRC294355CV","A01","",""]
["17","294",null,null,"GCCP     RF PECAN ENZYME KONG ","2521RC294356","21300","12100","62045","17260001",{"$f":"VLOOKUP(TRIM(J380),'Transactional Departments'!A:B,2,FALSE)","v":"Food Science Sum"},"17260001","18400","RGPCNRC294356CV","A01","",""]
["17","294",null,null,"REGIONAL HATCH                ","2526GC294002","21300","12100","61MSH","17260001",{"$f":"VLOOKUP(TRIM(J381),'Transactional Departments'!A:B,2,FALSE)","v":"Food Science Sum"},"17260001","18003","SNIFAXMSHATCH17","F17","RCS",""]
["17","294",null,null,"FST FED HATCH AKOH            ","2526GC294111","21300","12100","61HAT","17260110",{"$f":"VLOOKUP(TRIM(J382),'Transactional Departments'!A:B,2,FALSE)","v":"Akoh, Casimir"},"17260110","18003","SNIFAXRGHATCH17","F17","RCS",""]
["17","294",null,null,"FST FED HATCH HARRISON        ","2526GC294141","21300","12100","61HAT","17260140",{"$f":"VLOOKUP(TRIM(J383),'Transactional Departments'!A:B,2,FALSE)","v":"Harrison, Mark"},"17260140","18003","SNIFAXRGHATCH17","F17","RCS",""]
["17","294",null,null,"FST FED HATCH KERR            ","2526GC294161","21300","12100","61HAT","17260160",{"$f":"VLOOKUP(TRIM(J384),'Transactional Departments'!A:B,2,FALSE)","v":"Kerr, William"},"17260160","18003","SNIFAXRGHATCH17","F17","RCS",""]
["17","294",null,null,"FST HATCH KONG                ","2526GC294251","21300","12100","61HAT","17260250",{"$f":"VLOOKUP(TRIM(J385),'Transactional Departments'!A:B,2,FALSE)","v":"Kong, Fanbin"},"17260250","18003","SNIFAXRGHATCH17","F17","RCS",""]
["17","294",null,null,"FST HATCH MOHAN               ","2526GC294261","21300","12100","61HAT","17260260",{"$f":"VLOOKUP(TRIM(J386),'Transactional Departments'!A:B,2,FALSE)","v":"Mohan, Anand"},"17260260","18003","SNIFAXRGHATCH17","F17","RCS",""]
["17","297",null,null,"         TRIAL GDNS     RRUTER","2521RC297100","21300","12100","64206","17272300",{"$f":"VLOOKUP(TRIM(J387),'Transactional Departments'!A:B,2,FALSE)","v":"Ruter, John"},"17272300","18003","SVARIRC297100CV","A01","",""]
["17","297",null,null,"         VARIOUS WETZSTEIN    ","2521RC297127","21300","12100","64206","17270001",{"$f":"VLOOKUP(TRIM(J388),'Transactional Departments'!A:B,2,FALSE)","v":"Horticulture Sum"},"17270001","18003","SVARIRC297127CV","A01","",""]
["17","297",null,null,"         VARIOUS SMALLEY      ","2521RC297129","21300","12100","64206","17272400",{"$f":"VLOOKUP(TRIM(J389),'Transactional Departments'!A:B,2,FALSE)","v":"Smalley, Tim"},"17272400","18003","SVARIRC297129CV","A01","",""]
["17","297",null,null,"         VARIOUS INCOME  BAILE","2521RC297162","21300","12100","64206","17270100",{"$f":"VLOOKUP(TRIM(J390),'Transactional Departments'!A:B,2,FALSE)","v":"Bailey, Doug"},"17270100","18003","SVARIRC297162CV","A01","",""]
["17","297",null,null,"UM/USDA  RF PRECIS IRRIGAVAN I","2521RC297201","21300","12100","62500","17270001",{"$f":"VLOOKUP(TRIM(J391),'Transactional Departments'!A:B,2,FALSE)","v":"Horticulture Sum"},"17270001","18400","RXXXXRC297201CV","A01","",""]
["17","297",null,null,"SRSFC    RF RF_2017-R11__NAMBE","2521RC297205","21300","12100","64342","17270001",{"$f":"VLOOKUP(TRIM(J392),'Transactional Departments'!A:B,2,FALSE)","v":"Horticulture Sum"},"17270001","18400","RSRSFRC297205CV","A01","",""]
["17","297",null,null,"SRSFC    RF RF_2017 R-07_NAMBE","2521RC297206","21300","12100","64342","17270001",{"$f":"VLOOKUP(TRIM(J393),'Transactional Departments'!A:B,2,FALSE)","v":"Horticulture Sum"},"17270001","18400","RSRSFRC297206CV","A01","",""]
["17","297",null,null,"SRSFC    RF RF_NITROG BLUMALLA","2521RC297207","21300","12100","64342","17270001",{"$f":"VLOOKUP(TRIM(J394),'Transactional Departments'!A:B,2,FALSE)","v":"Horticulture Sum"},"17270001","18400","RSRSFRC297207CV","A01","",""]
["17","297",null,null,"         VARIOUS RSCH____VAN I","2521RC297261","21300","12100","64206","17272900",{"$f":"VLOOKUP(TRIM(J395),'Transactional Departments'!A:B,2,FALSE)","v":"van Iersel, Marc"},"17272900","18003","SVARIRC297261CV","A01","",""]
["17","297",null,null,"         VARIOUS         RUTER","2521RC297298","21300","12100","64206","17272300",{"$f":"VLOOKUP(TRIM(J396),'Transactional Departments'!A:B,2,FALSE)","v":"Ruter, John"},"17272300","18003","SVARIRC297298CV","A01","",""]
["17","297",null,null,"SSI      RF GUMMY STEM   MCGRE","2521RC297300","21300","12100","64050","17270001",{"$f":"VLOOKUP(TRIM(J397),'Transactional Departments'!A:B,2,FALSE)","v":"Horticulture Sum"},"17270001","18400","RSYSIRC297300CV","A01","",""]
["17","297",null,null,"         VARIOUS         ZHANG","2521RC297301","21300","12100","64206","17273300",{"$f":"VLOOKUP(TRIM(J398),'Transactional Departments'!A:B,2,FALSE)","v":"Zhang, Donglin"},"17273300","18003","SVARIRC297301CV","A01","",""]
["17","297",null,null,"USDA     RF W/332-692    JI   ","2521RC297303","21300","12100","61002","17270001",{"$f":"VLOOKUP(TRIM(J399),'Transactional Departments'!A:B,2,FALSE)","v":"Horticulture Sum"},"17270001","18400","RUSDARC297303CV","A01","",""]
["17","297",null,null,"PHYTOSYNTRF LED GROW     VAN I","2521RC297305","21300","12100","64000","17270001",{"$f":"VLOOKUP(TRIM(J400),'Transactional Departments'!A:B,2,FALSE)","v":"Horticulture Sum"},"17270001","18400","RPONTRC297305CV","A01","",""]
["17","297",null,null,"SRPC     RF ORN CULTIVAR RUTER","2521RC297307","21300","12100","64075","17270001",{"$f":"VLOOKUP(TRIM(J401),'Transactional Departments'!A:B,2,FALSE)","v":"Horticulture Sum"},"17270001","18400","RSRPCRC297307CV","A01","",""]
["17","297",null,null,"OSU      RF TEACHING MOD VAN I","2521RC297308","21300","12100","62507","17270001",{"$f":"VLOOKUP(TRIM(J402),'Transactional Departments'!A:B,2,FALSE)","v":"Horticulture Sum"},"17270001","18400","ROHSURC297308CV","A01","",""]
["17","297",null,null,"GCI      RF LED GROW     VAN I","2521RC297310","21300","12100","64370","17270001",{"$f":"VLOOKUP(TRIM(J403),'Transactional Departments'!A:B,2,FALSE)","v":"Horticulture Sum"},"17270001","18400","RGCOIRC297310CV","A01","",""]
["17","297",null,null,"SRSF     RF ABSCISIC ACIDNAMBE","2521RC297312","21300","12100","64342","17270001",{"$f":"VLOOKUP(TRIM(J404),'Transactional Departments'!A:B,2,FALSE)","v":"Horticulture Sum"},"17270001","18400","RSRSFRC297312CV","A01","",""]
["17","297",null,null,"SYNGENTA RF RF_AUTO IRRIGVAN I","2521RC297314","21300","12100","64050","17270001",{"$f":"VLOOKUP(TRIM(J405),'Transactional Departments'!A:B,2,FALSE)","v":"Horticulture Sum"},"17270001","18400","RSYSIRC297314CV","A01","",""]
["17","297",null,null,"MSU/NIFA RF LEVERAGE APP_MCGRE","2521RC297315","21300","12100","62505","17270001",{"$f":"VLOOKUP(TRIM(J406),'Transactional Departments'!A:B,2,FALSE)","v":"Horticulture Sum"},"17270001","18400","RMISURC297315CV","A01","",""]
["17","297",null,null,"AFE      RF LED LIGHTING_VAN I","2521RC297316","21300","12100","64285","17270001",{"$f":"VLOOKUP(TRIM(J407),'Transactional Departments'!A:B,2,FALSE)","v":"Horticulture Sum"},"17270001","18400","RAMFERC297316CV","A01","",""]
["17","297",null,null,"UFL/USDA RF RF_HIGH TUNN OCONN","2521RC297318","21300","12100","62511","17270001",{"$f":"VLOOKUP(TRIM(J408),'Transactional Departments'!A:B,2,FALSE)","v":"Horticulture Sum"},"17270001","18400","RUFLXRC297318CV","A01","",""]
["17","297",null,null,"GDA/USDA RF RF_CROP LOAD_MALLA","2521RC297319","21300","12100","62010","17270001",{"$f":"VLOOKUP(TRIM(J409),'Transactional Departments'!A:B,2,FALSE)","v":"Horticulture Sum"},"17270001","18400","RGDAGRC297319CV","A01","",""]
["17","297",null,null,"GDA/USDA RF RF_BLOSSOM RONAMBE","2521RC297320","21300","12100","62010","17270001",{"$f":"VLOOKUP(TRIM(J410),'Transactional Departments'!A:B,2,FALSE)","v":"Horticulture Sum"},"17270001","18400","RGDAGRC297320CV","A01","",""]
["17","297",null,null,"GDA/USDA RF RF_NATIVE POLWILDE","2521RC297321","21300","12100","62010","17270001",{"$f":"VLOOKUP(TRIM(J411),'Transactional Departments'!A:B,2,FALSE)","v":"Horticulture Sum"},"17270001","18400","RGDAGRC297321CV","A01","",""]
["17","297",null,null,"         RF ASA AFLP     WILDE","2521RC297322","21300","12100","64247","17270001",{"$f":"VLOOKUP(TRIM(J412),'Transactional Departments'!A:B,2,FALSE)","v":"Horticulture Sum"},"17270001","18003","SAZSARC297322CV","A01","",""]
["17","297",null,null,"FEDERAL HATCH                 ","2526GC297001","21300","12100","61HAT","17270001",{"$f":"VLOOKUP(TRIM(J413),'Transactional Departments'!A:B,2,FALSE)","v":"Horticulture Sum"},"17270001","18003","SNIFAXRGHATCH17","F17","RCS",""]
["17","297",null,null,"HORT FED HATCH MALLADI        ","2526GC297171","21300","12100","61HAT","17271500",{"$f":"VLOOKUP(TRIM(J414),'Transactional Departments'!A:B,2,FALSE)","v":"Malladi, Anish"},"17271500","18003","SNIFAXRGHATCH17","F17","RCS",""]
["17","297",null,null,"HORT FED HATCH SMALLEY        ","2526GC297181","21300","12100","61HAT","17272400",{"$f":"VLOOKUP(TRIM(J415),'Transactional Departments'!A:B,2,FALSE)","v":"Smalley, Tim"},"17272400","18003","SNIFAXRGHATCH17","F17","RCS",""]
["17","297",null,null,"HORT FED HATCH - RUTER        ","2526GC297201","21300","12100","61HAT","17272300",{"$f":"VLOOKUP(TRIM(J416),'Transactional Departments'!A:B,2,FALSE)","v":"Ruter, John"},"17272300","18003","SNIFAXRGHATCH17","F17","RCS",""]
["17","297",null,null,"HORT HATCH AFFOLTER           ","2526GC297221","21300","12100","61HAT","17270001",{"$f":"VLOOKUP(TRIM(J417),'Transactional Departments'!A:B,2,FALSE)","v":"Horticulture Sum"},"17270001","18003","SNIFAXRGHATCH17","F17","RCS",""]
["17","297",null,null,"HORT FED HATCH WILDE          ","2526GC297231","21300","12100","61HAT","17273200",{"$f":"VLOOKUP(TRIM(J418),'Transactional Departments'!A:B,2,FALSE)","v":"Wilde, Dayton"},"17273200","18003","SNIFAXRGHATCH17","F17","RCS",""]
["17","297",null,null,"HORT FED HATCH MCGREGOR       ","2526GC297241","21300","12100","61HAT","17271600",{"$f":"VLOOKUP(TRIM(J419),'Transactional Departments'!A:B,2,FALSE)","v":"McGregor, Cecilla"},"17271600","18003","SNIFAXRGHATCH17","F17","RCS",""]
["17","297",null,null,"HORT FED HATCH VAN IERSEL     ","2526GC297251","21300","12100","61HAT","17272900",{"$f":"VLOOKUP(TRIM(J420),'Transactional Departments'!A:B,2,FALSE)","v":"van Iersel, Marc"},"17272900","18003","SNIFAXRGHATCH17","F17","RCS",""]
["17","297",null,null,"HORT MULTI-STAE VAN IERSEL    ","2526GC297252","21300","12100","61MSH","17272900",{"$f":"VLOOKUP(TRIM(J421),'Transactional Departments'!A:B,2,FALSE)","v":"van Iersel, Marc"},"17272900","18003","SNIFAXMSHATCH17","F17","RCS",""]
["17","299",null,null,"         VARIOUS NOE          ","2521RC299138","21300","12100","64206","17280001",{"$f":"VLOOKUP(TRIM(J422),'Transactional Departments'!A:B,2,FALSE)","v":"Plant Path Sum"},"17280001","18003","SVARIRC299138CV","A01","",""]
["17","299",null,null,"         VARIOUS-SCHERM       ","2521RC299237","21300","12100","64206","17284007",{"$f":"VLOOKUP(TRIM(J423),'Transactional Departments'!A:B,2,FALSE)","v":"Scherm"},"17284007","18003","SVARIRC299237CV","A01","",""]
["17","299",null,null,"         VARIOUS RSCH    WALCO","2521RC299328","21300","12100","64206","17284009",{"$f":"VLOOKUP(TRIM(J424),'Transactional Departments'!A:B,2,FALSE)","v":"Walcott"},"17284009","18003","SVARIRC299328CV","A01","",""]
["17","299",null,null,"USDA     RF BLUEBERRY    SCHER","2521RC299380","21300","12100","61002","17280001",{"$f":"VLOOKUP(TRIM(J425),'Transactional Departments'!A:B,2,FALSE)","v":"Plant Path Sum"},"17280001","18400","RUSDARC299380CV","A01","",""]
["17","299",null,null,"USAID    RF SUP 710-059  BROWN","2521RC299430","21300","12100","61028","17280001",{"$f":"VLOOKUP(TRIM(J426),'Transactional Departments'!A:B,2,FALSE)","v":"Plant Path Sum"},"17280001","18400","RUSADRC299430CV","A01","",""]
["17","299",null,null,"USDA NIFARF W/ 722-418   LI   ","2521RC299446","21300","12100","61006","17280001",{"$f":"VLOOKUP(TRIM(J427),'Transactional Departments'!A:B,2,FALSE)","v":"Plant Path Sum"},"17280001","18400","RNIFARC299446CV","A01","",""]
["17","299",null,null,"BARD     RF BACT FRUIT   WALCO","2521RC299447","21300","12100","64461","17280001",{"$f":"VLOOKUP(TRIM(J428),'Transactional Departments'!A:B,2,FALSE)","v":"Plant Path Sum"},"17280001","18400","RBIAFRC299447CV","A01","",""]
["17","299",null,null,"UFL/USDA RF M ORNATUM    NOE  ","2521RC299455","21300","12100","62511","17280001",{"$f":"VLOOKUP(TRIM(J429),'Transactional Departments'!A:B,2,FALSE)","v":"Plant Path Sum"},"17280001","18400","RUFLXRC299455CV","A01","",""]
["17","299",null,null,"GIT      RF RF330-518    RAINS","2521RC299457","21300","12100","62021","17280001",{"$f":"VLOOKUP(TRIM(J430),'Transactional Departments'!A:B,2,FALSE)","v":"Plant Path Sum"},"17280001","18400","RGAITRC299457CV","A01","",""]
["17","299",null,null,"USDA NIFARF EXOBASIDIUM  SCHER","2521RC299458","21300","12100","61002","17280001",{"$f":"VLOOKUP(TRIM(J431),'Transactional Departments'!A:B,2,FALSE)","v":"Plant Path Sum"},"17280001","18400","RUSDARC299458CV","A01","",""]
["17","299",null,null,"UF       RF MICROFUN CON BREWE","2521RC299459","21300","12100","62511","17280001",{"$f":"VLOOKUP(TRIM(J432),'Transactional Departments'!A:B,2,FALSE)","v":"Plant Path Sum"},"17280001","18400","RUFLXRC299459CV","A01","",""]
["17","299",null,null,"USDA-NIFARF RF_PUCCI EMACSMITH","2521RC299461","21300","12100","61006","17280001",{"$f":"VLOOKUP(TRIM(J433),'Transactional Departments'!A:B,2,FALSE)","v":"Plant Path Sum"},"17280001","18400","RNIFARC299461CV","A01","",""]
["17","299",null,null,"SRSFC    RF MUMMY BERRY  BRANN","2521RC299464","21300","12100","64342","17280001",{"$f":"VLOOKUP(TRIM(J434),'Transactional Departments'!A:B,2,FALSE)","v":"Plant Path Sum"},"17280001","18400","RSRSFRC299464CV","A01","",""]
["17","299",null,null,"SRSFC    RF RF_PIERCE'S DBRANN","2521RC299466","21300","12100","64342","17280001",{"$f":"VLOOKUP(TRIM(J435),'Transactional Departments'!A:B,2,FALSE)","v":"Plant Path Sum"},"17280001","18400","RSRSFRC299466CV","A01","",""]
["17","299",null,null,"GACC PEACRF RF_SCAB CONTRBRANN","2521RC299467","21300","12100","62007","17280001",{"$f":"VLOOKUP(TRIM(J436),'Transactional Departments'!A:B,2,FALSE)","v":"Plant Path Sum"},"17280001","18400","RGPCHRC299467CV","A01","",""]
["17","299",null,null,"GACC BLUERF RF_MUMMY BERRBRANN","2521RC299469","21300","12100","62009","17280001",{"$f":"VLOOKUP(TRIM(J437),'Transactional Departments'!A:B,2,FALSE)","v":"Plant Path Sum"},"17280001","18400","RGABLRC299469CV","A01","",""]
["17","299",null,null,"GACC BB  RF RF_BOTRYSPAHABRANN","2521RC299470","21300","12100","62009","17280001",{"$f":"VLOOKUP(TRIM(J438),'Transactional Departments'!A:B,2,FALSE)","v":"Plant Path Sum"},"17280001","18400","RGABLRC299470CV","A01","",""]
["17","299",null,null,"GACC BB  RF RABBITEYE SI BRANN","2521RC299471","21300","12100","62009","17280001",{"$f":"VLOOKUP(TRIM(J439),'Transactional Departments'!A:B,2,FALSE)","v":"Plant Path Sum"},"17280001","18400","RGABLRC299471CV","A01","",""]
["17","299",null,null,"USDA ARS RF RF_ACQU GOODSSCHER","2521RC299477","21300","12100","61004","17280001",{"$f":"VLOOKUP(TRIM(J440),'Transactional Departments'!A:B,2,FALSE)","v":"Plant Path Sum"},"17280001","18400","RARSXRC299477CV","A01","",""]
["17","299",null,null,"USDA-NIFARF RF_PROTEOMICSKVITK","2521RC299478","21300","12100","61006","17280001",{"$f":"VLOOKUP(TRIM(J441),'Transactional Departments'!A:B,2,FALSE)","v":"Plant Path Sum"},"17280001","18400","RNIFARC299478CV","A01","",""]
["17","299",null,null,"COTTON INRF RF_FUSARIUM OBREWE","2521RC299479","21300","12100","64355","17280001",{"$f":"VLOOKUP(TRIM(J442),'Transactional Departments'!A:B,2,FALSE)","v":"Plant Path Sum"},"17280001","18400","RCOTTRC299479CV","A01","",""]
["17","299",null,null,"GACC BLUERF RF_BLUEBRY_RUBRANN","2521RC299480","21300","12100","62009","17280001",{"$f":"VLOOKUP(TRIM(J443),'Transactional Departments'!A:B,2,FALSE)","v":"Plant Path Sum"},"17280001","18400","RGABLRC299480CV","A01","",""]
["17","299",null,null,"GACC CORNRF RF_PUCCINIA SSMITH","2521RC299481","21300","12100","62047","17280001",{"$f":"VLOOKUP(TRIM(J444),'Transactional Departments'!A:B,2,FALSE)","v":"Plant Path Sum"},"17280001","18400","RGCRNRC299481CV","A01","",""]
["17","299",null,null,"GACC PECARF RF_GREENHOUSEJAGDA","2521RC299482","21300","12100","62045","17280001",{"$f":"VLOOKUP(TRIM(J445),'Transactional Departments'!A:B,2,FALSE)","v":"Plant Path Sum"},"17280001","18400","RGPCNRC299482CV","A01","",""]
["17","299",null,null,"BARD     RF RF_BAC FRUIT WALCO","2521RC299485","21300","12100","64461","17280001",{"$f":"VLOOKUP(TRIM(J446),'Transactional Departments'!A:B,2,FALSE)","v":"Plant Path Sum"},"17280001","18400","RBIAFRC299485CV","A01","",""]
["17","299",null,null,"CFDC     RF W/ 167-811   MOMAN","2521RC299486","21300","12100","61031","17280001",{"$f":"VLOOKUP(TRIM(J447),'Transactional Departments'!A:B,2,FALSE)","v":"Plant Path Sum"},"17280001","18400","RCDCXRC299486CV","A01","",""]
["17","299",null,null,"         VARIOUS         JAGDA","2521RC299487","21300","12100","64206","17280001",{"$f":"VLOOKUP(TRIM(J448),'Transactional Departments'!A:B,2,FALSE)","v":"Plant Path Sum"},"17280001","18003","SVARIRC299487CV","A01","",""]
["17","299",null,null,"PP FED HATCH RESEARCH         ","2526GC299001","21300","12100","61HAT","17280001",{"$f":"VLOOKUP(TRIM(J449),'Transactional Departments'!A:B,2,FALSE)","v":"Plant Path Sum"},"17280001","18003","SNIFAXRGHATCH17","F17","RCS",""]
["17","299",null,null,"PP FED HATCH DEOM             ","2526GC299131","21300","12100","61HAT","17284003",{"$f":"VLOOKUP(TRIM(J450),'Transactional Departments'!A:B,2,FALSE)","v":"Deom"},"17284003","18003","SNIFAXRGHATCH17","F17","RCS",""]
["17","299",null,null,"PP FED HATCH NOE              ","2526GC299201","21300","12100","61HAT","17284006",{"$f":"VLOOKUP(TRIM(J451),'Transactional Departments'!A:B,2,FALSE)","v":"Noe"},"17284006","18003","SNIFAXRGHATCH17","F17","RCS",""]
["17","299",null,null,"PP REG HATCH NOE              ","2526GC299202","21300","12100","61MSH","17284006",{"$f":"VLOOKUP(TRIM(J452),'Transactional Departments'!A:B,2,FALSE)","v":"Noe"},"17284006","18003","SNIFAXMSHATCH17","F17","RCS",""]
["17","299",null,null,"PP FED HATCH WALCOTT          ","2526GC299211","21300","12100","61HAT","17284009",{"$f":"VLOOKUP(TRIM(J453),'Transactional Departments'!A:B,2,FALSE)","v":"Walcott"},"17284009","18003","SNIFAXRGHATCH17","F17","RCS",""]
["17","300",null,null,"         POULTRY SCI COM VAR  ","2521RC300032","21300","12100","64206","17290001",{"$f":"VLOOKUP(TRIM(J454),'Transactional Departments'!A:B,2,FALSE)","v":"Poultry Science Sum"},"17290001","18003","SVARIRC300032CV","A01","",""]
["17","300",null,null,"         VARIOUS PESTI        ","2521RC300208","21300","12100","64206","17290001",{"$f":"VLOOKUP(TRIM(J455),'Transactional Departments'!A:B,2,FALSE)","v":"Poultry Science Sum"},"17290001","18003","SVARIRC300208CV","A01","",""]
["17","300",null,null,"         VARIOUS RSCH    BECKS","2521RC300239","21300","12100","64206","17290001",{"$f":"VLOOKUP(TRIM(J456),'Transactional Departments'!A:B,2,FALSE)","v":"Poultry Science Sum"},"17290001","18003","SVARIRC300239CV","A01","",""]
["17","300",null,null,"         VAR RSCH DAVIS& DAVIS","2521RC300267","21300","12100","64206","17295200",{"$f":"VLOOKUP(TRIM(J457),'Transactional Departments'!A:B,2,FALSE)","v":"Davis, Adam"},"17295200","18003","SVARIRC300267CV","A01","",""]
["17","300",null,null,"         VAR DISCR GIFTS KIM  ","2521RC300269","21300","12100","64206","17295500",{"$f":"VLOOKUP(TRIM(J458),'Transactional Departments'!A:B,2,FALSE)","v":"Kim, Woo Kyun"},"17295500","18003","SVARIRC300269CV","A01","",""]
["17","300",null,null,"ARKN/DOE RF ANIMAL FEED  DALE ","2521RC300277","21300","12100","62509","17290001",{"$f":"VLOOKUP(TRIM(J459),'Transactional Departments'!A:B,2,FALSE)","v":"Poultry Science Sum"},"17290001","18400","RUNAFRC300277CV","A01","",""]
["17","300",null,null,"         RF MOD LIVE STRNMCDOU","2521RC300310","21300","12100","64000","17290001",{"$f":"VLOOKUP(TRIM(J460),'Transactional Departments'!A:B,2,FALSE)","v":"Poultry Science Sum"},"17290001","18003","SVNHPRC300310CV","A01","",""]
["17","300",null,null,"         B-MANNANASE     KIM  ","2521RC300321","21300","12100","64503","17290001",{"$f":"VLOOKUP(TRIM(J461),'Transactional Departments'!A:B,2,FALSE)","v":"Poultry Science Sum"},"17290001","18003","SCTBLRC300321CV","A01","",""]
["17","300",null,null,"         RF HISTOMONIASISBECKS","2521RC300322","21300","12100","64178","17290001",{"$f":"VLOOKUP(TRIM(J462),'Transactional Departments'!A:B,2,FALSE)","v":"Poultry Science Sum"},"17290001","18003","SUSPARC300322CV","A01","",""]
["17","300",null,null,"         VARIOUS         KIM  ","2521RC300323","21300","12100","64206","17295500",{"$f":"VLOOKUP(TRIM(J463),'Transactional Departments'!A:B,2,FALSE)","v":"Kim, Woo Kyun"},"17295500","18003","SVARIRC300323CV","A01","",""]
["17","300",null,null,"         RF NITROCOMPNDS KIM  ","2521RC300324","21300","12100","64178","17290001",{"$f":"VLOOKUP(TRIM(J464),'Transactional Departments'!A:B,2,FALSE)","v":"Poultry Science Sum"},"17290001","18003","SUSPARC300324CV","A01","",""]
["17","300",null,null,"USDA/NIFARF DE NOVO METHIAGGRE","2521RC300326","21300","12100","61006","17290001",{"$f":"VLOOKUP(TRIM(J465),'Transactional Departments'!A:B,2,FALSE)","v":"Poultry Science Sum"},"17290001","18400","RNIFARC300326CV","A01","",""]
["17","300",null,null,"USPEA    RF STORMWATER   KIEPP","2521RC300327","21300","12100","64178","17290001",{"$f":"VLOOKUP(TRIM(J466),'Transactional Departments'!A:B,2,FALSE)","v":"Poultry Science Sum"},"17290001","18400","RUSPARC300327CV","A01","",""]
["17","300",null,null,"ABS      RF OFFSPRING AG NAVAR","2521RC300329","21300","12100","64200","17290001",{"$f":"VLOOKUP(TRIM(J467),'Transactional Departments'!A:B,2,FALSE)","v":"Poultry Science Sum"},"17290001","18400","RANBSRC300329CV","A01","",""]
["17","300",null,null,"NSF      RF RF_PARENT TESNAVAR","2521RC300330","21300","12100","61023","17290001",{"$f":"VLOOKUP(TRIM(J468),'Transactional Departments'!A:B,2,FALSE)","v":"Poultry Science Sum"},"17290001","18400","RNSFXRC300330CV","A01","",""]
["17","300",null,null,"AOU      RF AGGRESSION   NAVAR","2521RC300332","21300","12100","64244","17290001",{"$f":"VLOOKUP(TRIM(J469),'Transactional Departments'!A:B,2,FALSE)","v":"Poultry Science Sum"},"17290001","18400","RAMOURC300332CV","A01","",""]
["17","300",null,null,"USPEA    RF BLKHEAD DIS  BECKS","2521RC300333","21300","12100","64178","17290001",{"$f":"VLOOKUP(TRIM(J470),'Transactional Departments'!A:B,2,FALSE)","v":"Poultry Science Sum"},"17290001","18400","RUSPARC300333CV","A01","",""]
["17","300",null,null,"UNL/USDA RF STEC IN BEEF THIPP","2521RC300334","21300","12100","62530","17290001",{"$f":"VLOOKUP(TRIM(J471),'Transactional Departments'!A:B,2,FALSE)","v":"Poultry Science Sum"},"17290001","18400","RUNONRC300334CV","A01","",""]
["17","300",null,null,"PAHC     RF AVIAX QUALPROPESTI","2521RC300335","21300","12100","64084","17290001",{"$f":"VLOOKUP(TRIM(J472),'Transactional Departments'!A:B,2,FALSE)","v":"Poultry Science Sum"},"17290001","18400","RPHIBRC300335CV","A01","",""]
["17","300",null,null,"MERCK    RF COCCIVAC B52 PESTI","2521RC300336","21300","12100","64006","17290001",{"$f":"VLOOKUP(TRIM(J473),'Transactional Departments'!A:B,2,FALSE)","v":"Poultry Science Sum"},"17290001","18400","RMERKRC300336CV","A01","",""]
["17","300",null,null,"NSF      RF MTRNL HRMNS  NAVAR","2521RC300337","21300","12100","61023","17290001",{"$f":"VLOOKUP(TRIM(J474),'Transactional Departments'!A:B,2,FALSE)","v":"Poultry Science Sum"},"17290001","18400","RNSFXRC300337CV","A01","",""]
["17","300",null,null,"U MANITO RF SALMON ENT   KIM  ","2521RC300338","21300","12100","64484","17290001",{"$f":"VLOOKUP(TRIM(J475),'Transactional Departments'!A:B,2,FALSE)","v":"Poultry Science Sum"},"17290001","18400","RUNMBRC300338CV","A01","",""]
["17","300",null,null,"CJ GROUP RF RF_EFF L-METHKIM  ","2521RC300339","21300","12100","64499","17290001",{"$f":"VLOOKUP(TRIM(J476),'Transactional Departments'!A:B,2,FALSE)","v":"Poultry Science Sum"},"17290001","18400","RCJGRRC300339CV","A01","",""]
["17","300",null,null,"MSU/USDA RF LOW-MOISTURE THIPP","2521RC300340","21300","12100","62505","17290001",{"$f":"VLOOKUP(TRIM(J477),'Transactional Departments'!A:B,2,FALSE)","v":"Poultry Science Sum"},"17290001","18400","RMISURC300340CV","A01","",""]
["17","300",null,null,"A.S.M.   RF VAMPIRE BAT  NAVAR","2521RC300341","21300","12100","64211","17290001",{"$f":"VLOOKUP(TRIM(J478),'Transactional Departments'!A:B,2,FALSE)","v":"Poultry Science Sum"},"17290001","18400","RAMSMRC300341CV","A01","",""]
["17","300",null,null,"USDA NIFAANML HLTH FFY16 ANGLE","2521RC300342","21300","12100","61006","17290001",{"$f":"VLOOKUP(TRIM(J479),'Transactional Departments'!A:B,2,FALSE)","v":"Poultry Science Sum"},"17290001","18003","SNIFARC300342CV","A01","",""]
["17","300",null,null,"BASF     FX OF AMASIL    KIM  ","2521RC300343","21300","12100","64002","17290001",{"$f":"VLOOKUP(TRIM(J480),'Transactional Departments'!A:B,2,FALSE)","v":"Poultry Science Sum"},"17290001","18003","SBASFRC300343CV","A01","",""]
["17","300",null,null,"USDA ARS RF MIRC RESIST  APPLE","2521RC300344","21300","12100","61004","17290001",{"$f":"VLOOKUP(TRIM(J481),'Transactional Departments'!A:B,2,FALSE)","v":"Poultry Science Sum"},"17290001","18400","RARSXRC300344CV","A01","",""]
["17","300",null,null,"ALLTECH  RF ZINC REGUL   APPLE","2521RC300345","21300","12100","64016","17290001",{"$f":"VLOOKUP(TRIM(J482),'Transactional Departments'!A:B,2,FALSE)","v":"Poultry Science Sum"},"17290001","18400","RALLTRC300345CV","A01","",""]
["17","300",null,null,"EVONIK   RF HEAT STRESS  AGGRE","2521RC300346","21300","12100","64485","17290001",{"$f":"VLOOKUP(TRIM(J483),'Transactional Departments'!A:B,2,FALSE)","v":"Poultry Science Sum"},"17290001","18400","REVIARC300346CV","A01","",""]
["17","300",null,null,"         VARIOUS         AGGRE","2521RC300347","21300","12100","64206","17295000",{"$f":"VLOOKUP(TRIM(J484),'Transactional Departments'!A:B,2,FALSE)","v":"Aggrey, Samuel"},"17295000","18003","SVARIRC300347CV","A01","",""]
["17","300",null,null,"DSM      RF FEED ADDITS  KIM  ","2521RC300348","21300","12100","64470","17290001",{"$f":"VLOOKUP(TRIM(J485),'Transactional Departments'!A:B,2,FALSE)","v":"Poultry Science Sum"},"17290001","18400","RDSMNRC300348CV","A01","",""]
["17","300",null,null,"SIGMA XI RF URBAN BIRDS  NAVAR","2521RC300349","21300","12100","64282","17290001",{"$f":"VLOOKUP(TRIM(J486),'Transactional Departments'!A:B,2,FALSE)","v":"Poultry Science Sum"},"17290001","18400","RSIGMRC300349CV","A01","",""]
["17","300",null,null,"ELANCO   NARASIN         PESTI","2521RC300350","21300","12100","64030","17290001",{"$f":"VLOOKUP(TRIM(J487),'Transactional Departments'!A:B,2,FALSE)","v":"Poultry Science Sum"},"17290001","18003","SELAHRC300350CV","A01","",""]
["17","300",null,null,"DANISCO  RF PREBIOT BRLR KIM  ","2521RC300351","21300","12100","64476","17290001",{"$f":"VLOOKUP(TRIM(J488),'Transactional Departments'!A:B,2,FALSE)","v":"Poultry Science Sum"},"17290001","18400","RDANIRC300351CV","A01","",""]
["17","300",null,null,"PU/ARS   RF FOOD HAZARD  SINGH","2521RC300352","21300","12100","62508","17290001",{"$f":"VLOOKUP(TRIM(J489),'Transactional Departments'!A:B,2,FALSE)","v":"Poultry Science Sum"},"17290001","18400","RPURDRC300352CV","A01","",""]
["17","300",null,null,"USP&EGG  RF PHOTOSTIM    BENSO","2521RC300353","21300","12100","64178","17290001",{"$f":"VLOOKUP(TRIM(J490),'Transactional Departments'!A:B,2,FALSE)","v":"Poultry Science Sum"},"17290001","18400","RUSPARC300353CV","A01","",""]
["17","300",null,null,"         VARIOUS         SELVA","2521RC300354","21300","12100","64206","17295700",{"$f":"VLOOKUP(TRIM(J491),'Transactional Departments'!A:B,2,FALSE)","v":"Selvaraj, Ramesh"},"17295700","18003","SVARIRC300354CV","A01","",""]
["17","300",null,null,"USDA NIFARF OXYSTEROL    KIM  ","2521RC300356","21300","12100","61006","17290001",{"$f":"VLOOKUP(TRIM(J492),'Transactional Departments'!A:B,2,FALSE)","v":"Poultry Science Sum"},"17290001","18400","RNIFARC300356CV","A01","",""]
["17","300",null,null,"PHIBRO   RF AVIAX        PESTI","2521RC300357","21300","12100","64084","17290001",{"$f":"VLOOKUP(TRIM(J493),'Transactional Departments'!A:B,2,FALSE)","v":"Poultry Science Sum"},"17290001","18400","RPHIBRC300357CV","A01","",""]
["17","300",null,null,"MAH      RF COCCIVAC B52 PESTI","2521RC300358","21300","12100","64006","17290001",{"$f":"VLOOKUP(TRIM(J494),'Transactional Departments'!A:B,2,FALSE)","v":"Poultry Science Sum"},"17290001","18400","RMERKRC300358CV","A01","",""]
["17","300",null,null,"ELANCO   RF COMBI ANTI   AGGRE","2521RC300359","21300","12100","64030","17290001",{"$f":"VLOOKUP(TRIM(J495),'Transactional Departments'!A:B,2,FALSE)","v":"Poultry Science Sum"},"17290001","18400","RELAHRC300359CV","A01","",""]
["17","300",null,null,"AU/USNIFARF GAPS         SINGH","2521RC300360","21300","12100","62538","17290001",{"$f":"VLOOKUP(TRIM(J496),'Transactional Departments'!A:B,2,FALSE)","v":"Poultry Science Sum"},"17290001","18400","RAUBURC300360CV","A01","",""]
["17","300",null,null,"UDOA     RF CYTOTOXIC    SELVA","2521RC300361","21300","12100","61014","17290001",{"$f":"VLOOKUP(TRIM(J497),'Transactional Departments'!A:B,2,FALSE)","v":"Poultry Science Sum"},"17290001","18400","RUSARRC300361CV","A01","",""]
["17","300",null,null,"USDA ARS RF ENTERIC HEALTAPPLE","2521RC300364","21300","12100","61004","17290001",{"$f":"VLOOKUP(TRIM(J498),'Transactional Departments'!A:B,2,FALSE)","v":"Poultry Science Sum"},"17290001","18400","RARSXRC300364CV","A01","",""]
["17","300",null,null,"USDA/NIFARF POSTHATCH    ELLES","2521RC300366","21300","12100","62500","17290001",{"$f":"VLOOKUP(TRIM(J499),'Transactional Departments'!A:B,2,FALSE)","v":"Poultry Science Sum"},"17290001","18400","RXXXXRC300366CV","A01","",""]
["17","300",null,null,"FEDERAL HATCH                 ","2526GC300001","21300","12100","61HAT","17290001",{"$f":"VLOOKUP(TRIM(J500),'Transactional Departments'!A:B,2,FALSE)","v":"Poultry Science Sum"},"17290001","18003","SNIFAXRGHATCH17","F17","RCS",""]
["17","300",null,null,"REGIONAL HATCH                ","2526GC300002","21300","12100","61MSH","17290001",{"$f":"VLOOKUP(TRIM(J501),'Transactional Departments'!A:B,2,FALSE)","v":"Poultry Science Sum"},"17290001","18003","SNIFAXMSHATCH17","F17","RCS",""]
["17","300",null,null,"PS FED HATCH DAVIS            ","2526GC300131","21300","12100","61HAT","17295200",{"$f":"VLOOKUP(TRIM(J502),'Transactional Departments'!A:B,2,FALSE)","v":"Davis, Adam"},"17295200","18003","SNIFAXRGHATCH17","F17","RCS",""]
["17","300",null,null,"PS REG HATCH AGGREY           ","2526GC300252","21300","12100","61MSH","17295000",{"$f":"VLOOKUP(TRIM(J503),'Transactional Departments'!A:B,2,FALSE)","v":"Aggrey, Samuel"},"17295000","18003","SNIFAXMSHATCH17","F17","RCS",""]
["17","300",null,null,"PS FED HATCH NAVARRA          ","2526GC300281","21300","12100","61HAT","17295550",{"$f":"VLOOKUP(TRIM(J504),'Transactional Departments'!A:B,2,FALSE)","v":"Navara, Kristen"},"17295550","18003","SNIFAXRGHATCH17","F17","RCS",""]
["17","308",null,null,"         VAR MTN RES CTR COVIN","2521RD308018","21300","12100","64206","17620000",{"$f":"VLOOKUP(TRIM(J505),'Transactional Departments'!A:B,2,FALSE)","v":"Georgia Mountain REC"},"17620000","18003","SVARIRD308018CV","A01","",""]
["17","309",null,null,"         RSCH GRDN VARIOUS    ","2521RD309026","21300","12100","64206","17102001",{"$f":"VLOOKUP(TRIM(J506),'Transactional Departments'!A:B,2,FALSE)","v":"Griffin Campus Sum"},"17102001","18003","SVARIRD309026CV","A01","",""]
["17","309",null,null,"         VAR TURF TEAM   ARKIN","2521RD309095","21300","12100","64206","17102001",{"$f":"VLOOKUP(TRIM(J507),'Transactional Departments'!A:B,2,FALSE)","v":"Griffin Campus Sum"},"17102001","18003","SVARIRD309095CV","A01","",""]
["17","309",null,null,"USDA     RF SARE 12-17   JORDA","2521RD309122","21300","12100","61002","17102001",{"$f":"VLOOKUP(TRIM(J508),'Transactional Departments'!A:B,2,FALSE)","v":"Griffin Campus Sum"},"17102001","18400","RUSDARD309122CV","A01","",""]
["17","309",null,null,"USDA     RF SARE CH 1    JORDA","2521RD309125","21300","12100","61002","17102001",{"$f":"VLOOKUP(TRIM(J509),'Transactional Departments'!A:B,2,FALSE)","v":"Griffin Campus Sum"},"17102001","18400","RUSDARD309125CV","A01","",""]
["17","309",null,null,"USDA NIFARF SARE         JORDA","2521RD309129","21300","12100","61006","17102001",{"$f":"VLOOKUP(TRIM(J510),'Transactional Departments'!A:B,2,FALSE)","v":"Griffin Campus Sum"},"17102001","18400","RNIFARD309129CV","A01","",""]
["17","309",null,null,"         RF PETQUENCH    PHILL","2521RD309132","21300","12100","64000","17102001",{"$f":"VLOOKUP(TRIM(J511),'Transactional Departments'!A:B,2,FALSE)","v":"Griffin Campus Sum"},"17102001","18003","SPETQRD309132CV","A01","",""]
["17","309",null,null,"USDA     RF SARE PROGRAM JORDA","2521RD309134","21300","12100","61006","17102001",{"$f":"VLOOKUP(TRIM(J512),'Transactional Departments'!A:B,2,FALSE)","v":"Griffin Campus Sum"},"17102001","18400","RNIFARD309134CV","A01","",""]
["17","309",null,null,"USDA     RF SARE         JORDA","2521RD309137","21300","12100","61006","17102001",{"$f":"VLOOKUP(TRIM(J513),'Transactional Departments'!A:B,2,FALSE)","v":"Griffin Campus Sum"},"17102001","18400","RNIFARD309137CV","A01","",""]
["17","309",null,null,"USDA     MAINTENANCE     HUNNI","2521RD309138","21300","12100","61004","17102001",{"$f":"VLOOKUP(TRIM(J514),'Transactional Departments'!A:B,2,FALSE)","v":"Griffin Campus Sum"},"17102001","18003","SARSXRD309138CV","A01","",""]
["17","309",null,null,"USDA     GROUNDS         HUNNI","2521RD309139","21300","12100","61004","17102001",{"$f":"VLOOKUP(TRIM(J515),'Transactional Departments'!A:B,2,FALSE)","v":"Griffin Campus Sum"},"17102001","18003","SARSXRD309139CV","A01","",""]
["17","309",null,null,"USDA     GROUNDS         HUNNI","2521RD309142","21300","12100","61004","17102001",{"$f":"VLOOKUP(TRIM(J516),'Transactional Departments'!A:B,2,FALSE)","v":"Griffin Campus Sum"},"17102001","18003","SARSXRD309142CV","A01","",""]
["17","309",null,null,"USDA     MAINTENANCE     HUNNI","2521RD309143","21300","12100","61004","17102001",{"$f":"VLOOKUP(TRIM(J517),'Transactional Departments'!A:B,2,FALSE)","v":"Griffin Campus Sum"},"17102001","18003","SARSXRD309143CV","A01","",""]
["17","311",null,null,"FEDERAL HATCH                 ","2526GD311001","21300","12100","61HAT","17602200",{"$f":"VLOOKUP(TRIM(J518),'Transactional Departments'!A:B,2,FALSE)","v":"CAES General Expense"},"17602200","18003","SNIFAXRGHATCH17","F17","RGS",""]
["17","314",null,null,"AAE GA   VARIOUS RSCH    FLETC","2521RD314137","21300","12100","64206","17210910",{"$f":"VLOOKUP(TRIM(J519),'Transactional Departments'!A:B,2,FALSE)","v":"Fletcher, Stanley"},"17210910","18003","SVARIRD314137CV","A01","",""]
["17","314",null,null,"GACCP    RF WRLD MRKT POSFLETC","2521RD314215","21300","12100","62002","17210001",{"$f":"VLOOKUP(TRIM(J520),'Transactional Departments'!A:B,2,FALSE)","v":"Ag Econ Sum"},"17210001","18400","RGPNTRD314215CV","A01","",""]
["17","314",null,null,"GACCP    RF US PRODUCERS FLETC","2521RD314218","21300","12100","64000","17210001",{"$f":"VLOOKUP(TRIM(J521),'Transactional Departments'!A:B,2,FALSE)","v":"Ag Econ Sum"},"17210001","18400","RNNPBRD314218CV","A01","",""]
["17","314",null,null,"USAID    RF SUP 710-059  KOSTA","2521RD314221","21300","12100","61028","17210001",{"$f":"VLOOKUP(TRIM(J522),'Transactional Departments'!A:B,2,FALSE)","v":"Ag Econ Sum"},"17210001","18400","RUSADRD314221CV","A01","",""]
["17","314",null,null,"GCCP     RF PNUT PRODCER FLETC","2521RD314226","21300","12100","62002","17210001",{"$f":"VLOOKUP(TRIM(J523),'Transactional Departments'!A:B,2,FALSE)","v":"Ag Econ Sum"},"17210001","18400","RGPNTRD314226CV","A01","",""]
["17","314",null,null,"CIMMYT   RF DROUGHT MAIZEKOSTA","2521RD314229","21300","12100","64464","17210001",{"$f":"VLOOKUP(TRIM(J524),'Transactional Departments'!A:B,2,FALSE)","v":"Ag Econ Sum"},"17210001","18400","RIMWIRD314229CV","A01","",""]
["17","314",null,null,"GCCP     RF FARM BILL    FLETC","2521RD314230","21300","12100","62002","17210001",{"$f":"VLOOKUP(TRIM(J525),'Transactional Departments'!A:B,2,FALSE)","v":"Ag Econ Sum"},"17210001","18400","RGPNTRD314230CV","A01","",""]
["17","314",null,null,"GACCP    RF PEANUT COMPETFLETC","2521RD314231","21300","12100","62002","17210001",{"$f":"VLOOKUP(TRIM(J526),'Transactional Departments'!A:B,2,FALSE)","v":"Ag Econ Sum"},"17210001","18400","RGPNTRD314231CV","A01","",""]
["17","314",null,null,"GACCP/NPBRF ECO ANALYSIS FLETC","2521RD314232","21300","12100","62002","17210001",{"$f":"VLOOKUP(TRIM(J527),'Transactional Departments'!A:B,2,FALSE)","v":"Ag Econ Sum"},"17210001","18400","RGPNTRD314232CV","A01","",""]
["17","316",null,null,"USGA     RF TURFGRASS    MCCUL","2521RD316014","21300","12100","64191","17240001",{"$f":"VLOOKUP(TRIM(J528),'Transactional Departments'!A:B,2,FALSE)","v":"CSS Sum"},"17240001","18400","RGOLFRD316014CV","A01","",""]
["17","316",null,null,"         VARIOUS JOHNSON JOHNS","2521RD316183","21300","12100","64206","17242JJO",{"$f":"VLOOKUP(TRIM(J529),'Transactional Departments'!A:B,2,FALSE)","v":"Johnson, Jerry"},"17242JJO","18003","SVARIRD316183CV","A01","",""]
["17","316",null,null,"         VARIOUS TURF    CHEN ","2521RD316208","21300","12100","64206","17242ZHC",{"$f":"VLOOKUP(TRIM(J530),'Transactional Departments'!A:B,2,FALSE)","v":"Chen, Zhenbang"},"17242ZHC","18003","SVARIRD316208CV","A01","",""]
["17","316",null,null,"         VARIOUS RSCH    HUANG","2521RD316244","21300","12100","64206","17242HUA",{"$f":"VLOOKUP(TRIM(J531),'Transactional Departments'!A:B,2,FALSE)","v":"Huang, Jack"},"17242HUA","18003","SVARIRD316244CV","A01","",""]
["17","316",null,null,"         VAR TURFGRASS RSRAYME","2521RD316332","21300","12100","64206","17242RAY",{"$f":"VLOOKUP(TRIM(J532),'Transactional Departments'!A:B,2,FALSE)","v":"Raymer, Paul"},"17242RAY","18003","SVARIRD316332CV","A01","",""]
["17","316",null,null,"         GRIFFIN VAR TURFMCCUL","2521RD316339","21300","12100","64206","17242MCC",{"$f":"VLOOKUP(TRIM(J533),'Transactional Departments'!A:B,2,FALSE)","v":"McCullough, Patrick"},"17242MCC","18003","SVARIRD316339CV","A01","",""]
["17","316",null,null,"         RF FINE TURF    RAYME","2521RD316341","21300","12100","64000","17240001",{"$f":"VLOOKUP(TRIM(J534),'Transactional Departments'!A:B,2,FALSE)","v":"CSS Sum"},"17240001","18003","SXXXXRD316341CV","A01","",""]
["17","316",null,null,"TAM/USDA RF IMPRV DRGHT  RAYME","2521RD316349","21300","12100","64386","17240001",{"$f":"VLOOKUP(TRIM(J535),'Transactional Departments'!A:B,2,FALSE)","v":"CSS Sum"},"17240001","18400","RTXARRD316349CV","A01","",""]
["17","316",null,null,"         RF PERFLUOROALKYL  HU","2521RD316353","21300","12100","61012","17240001",{"$f":"VLOOKUP(TRIM(J536),'Transactional Departments'!A:B,2,FALSE)","v":"CSS Sum"},"17240001","18003","SUSDDRD316353CV","A01","",""]
["17","316",null,null,"UTAH/USDARF NITRO CYCLE  HABTE","2521RD316354","21300","12100","62551","17240001",{"$f":"VLOOKUP(TRIM(J537),'Transactional Departments'!A:B,2,FALSE)","v":"CSS Sum"},"17240001","18400","RUTSURD316354CV","A01","",""]
["17","316",null,null,"USDA     RF ONSITE WWTS  HABTE","2521RD316358","21300","12100","61002","17240001",{"$f":"VLOOKUP(TRIM(J538),'Transactional Departments'!A:B,2,FALSE)","v":"CSS Sum"},"17240001","18400","RUSDARD316358CV","A01","",""]
["17","316",null,null,"         RF WHEAT VARIET JOHNS","2521RD316361","21300","12100","64017","17240001",{"$f":"VLOOKUP(TRIM(J539),'Transactional Departments'!A:B,2,FALSE)","v":"CSS Sum"},"17240001","18003","SPHBIRD316361CV","A01","",""]
["17","316",null,null,"         VARIOUS GIFTS   GASSE","2521RD316362","21300","12100","64206","17242GAS",{"$f":"VLOOKUP(TRIM(J540),'Transactional Departments'!A:B,2,FALSE)","v":"Gaskin, Julia"},"17242GAS","18003","SVARIRD316362CV","A01","",""]
["17","316",null,null,"         RF TURFGRASS    WALTZ","2521RD316364","21300","12100","64401","17240001",{"$f":"VLOOKUP(TRIM(J541),'Transactional Departments'!A:B,2,FALSE)","v":"CSS Sum"},"17240001","18003","STFDIRD316364CV","A01","",""]
["17","316",null,null,"         RF ENZYMATIC OX HUANG","2521RD316367","21300","12100","61013","17240001",{"$f":"VLOOKUP(TRIM(J542),'Transactional Departments'!A:B,2,FALSE)","v":"CSS Sum"},"17240001","18003","SUSAFRD316367CV","A01","",""]
["17","316",null,null,"NSF      RF SUP 100-621  ALBER","2521RD316370","21300","12100","61023","17240001",{"$f":"VLOOKUP(TRIM(J543),'Transactional Departments'!A:B,2,FALSE)","v":"CSS Sum"},"17240001","18400","RNSFXRD316370CV","A01","",""]
["17","316",null,null,"AMEC/EPA RF CASTNET III  FLITC","2521RD316373","21300","12100","64058","17240001",{"$f":"VLOOKUP(TRIM(J544),'Transactional Departments'!A:B,2,FALSE)","v":"CSS Sum"},"17240001","18400","RAMECRD316373CV","A01","",""]
["17","316",null,null,"         RF ENZYME APPLI CARRO","2521RD316376","21300","12100","64000","17240001",{"$f":"VLOOKUP(TRIM(J545),'Transactional Departments'!A:B,2,FALSE)","v":"CSS Sum"},"17240001","18003","SAQOARD316376CV","A01","",""]
["17","316",null,null,"KAS      RF NITROGEN FER WALTZ","2521RD316379","21300","12100","64000","17240001",{"$f":"VLOOKUP(TRIM(J546),'Transactional Departments'!A:B,2,FALSE)","v":"CSS Sum"},"17240001","18400","RXXXXRD316379CV","A01","",""]
["17","316",null,null,"PHBI     RF WHEAT EVAL   JOHNS","2521RD316380","21300","12100","64017","17240001",{"$f":"VLOOKUP(TRIM(J547),'Transactional Departments'!A:B,2,FALSE)","v":"CSS Sum"},"17240001","18400","RPHBIRD316380CV","A01","",""]
["17","316",null,null,"USDA     RF SUP 309-125  FURMA","2521RD316383","21300","12100","61002","17240001",{"$f":"VLOOKUP(TRIM(J548),'Transactional Departments'!A:B,2,FALSE)","v":"CSS Sum"},"17240001","18400","RUSDARD316383CV","A01","",""]
["17","316",null,null,"GACCP    RF GENOM DRGHT  LECLE","2521RD316384","21300","12100","62002","17240001",{"$f":"VLOOKUP(TRIM(J549),'Transactional Departments'!A:B,2,FALSE)","v":"CSS Sum"},"17240001","18400","RGPNTRD316384CV","A01","",""]
["17","316",null,null,"USDA ARS RF SOFT WHEAT   JOHNS","2521RD316385","21300","12100","61002","17240001",{"$f":"VLOOKUP(TRIM(J550),'Transactional Departments'!A:B,2,FALSE)","v":"CSS Sum"},"17240001","18400","RUSDARD316385CV","A01","",""]
["17","316",null,null,"USGA     CART TRAFFIC    CARRO","2521RD316386","21300","12100","64191","17240001",{"$f":"VLOOKUP(TRIM(J551),'Transactional Departments'!A:B,2,FALSE)","v":"CSS Sum"},"17240001","18003","SGOLFRD316386CV","A01","",""]
["17","316",null,null,"USDA ARS RF WHEAT GERMPL JOHNS","2521RD316387","21300","12100","61004","17240001",{"$f":"VLOOKUP(TRIM(J552),'Transactional Departments'!A:B,2,FALSE)","v":"CSS Sum"},"17240001","18400","RARSXRD316387CV","A01","",""]
["17","316",null,null,"         RF AMEC EXTNSN  FLITC","2521RD316390","21300","12100","64058","17240001",{"$f":"VLOOKUP(TRIM(J553),'Transactional Departments'!A:B,2,FALSE)","v":"CSS Sum"},"17240001","18003","SAMECRD316390CV","A01","",""]
["17","316",null,null,"         VARIOUS         FLITC","2521RD316395","21300","12100","64206","17242IAN",{"$f":"VLOOKUP(TRIM(J554),'Transactional Departments'!A:B,2,FALSE)","v":"Flitcroft, Ian"},"17242IAN","18003","SVARIRD316395CV","A01","",""]
["17","316",null,null,"MPOB     RF MEASURING POBLECLE","2521RD316396","21300","12100","64463","17240001",{"$f":"VLOOKUP(TRIM(J555),'Transactional Departments'!A:B,2,FALSE)","v":"CSS Sum"},"17240001","18400","RMPOBRD316396CV","A01","",""]
["17","316",null,null,"EIG/GGEF RF WATER REPEL  RAYME","2521RD316397","21300","12100","64361","17240001",{"$f":"VLOOKUP(TRIM(J556),'Transactional Departments'!A:B,2,FALSE)","v":"CSS Sum"},"17240001","18400","RENIGRD316397CV","A01","",""]
["17","316",null,null,"GACCP/NPBRF PATTERNS     LECLE","2521RD316398","21300","12100","62002","17240001",{"$f":"VLOOKUP(TRIM(J557),'Transactional Departments'!A:B,2,FALSE)","v":"CSS Sum"},"17240001","18400","RGPNTRD316398CV","A01","",""]
["17","316",null,null,"UFL/USDA RF W/ 328120 RAYMER  ","2521RD316399","21300","12100","62511","17240001",{"$f":"VLOOKUP(TRIM(J558),'Transactional Departments'!A:B,2,FALSE)","v":"CSS Sum"},"17240001","18400","RUFLXRD316399CV","A01","",""]
["17","316",null,null,"UFL/USDA RF W/ 328120 WALTZ   ","2521RD316400","21300","12100","62511","17240001",{"$f":"VLOOKUP(TRIM(J559),'Transactional Departments'!A:B,2,FALSE)","v":"CSS Sum"},"17240001","18400","RUFLXRD316400CV","A01","",""]
["17","316",null,null,"ENI/NOAA RF MESONET OBSERFLITC","2521RD316401","21300","12100","64044","17240001",{"$f":"VLOOKUP(TRIM(J560),'Transactional Departments'!A:B,2,FALSE)","v":"CSS Sum"},"17240001","18400","REANIRD316401CV","A01","",""]
["17","316",null,null,"GACCP    RF PLANT DATE   LECLE","2521RD316402","21300","12100","62002","17240001",{"$f":"VLOOKUP(TRIM(J561),'Transactional Departments'!A:B,2,FALSE)","v":"CSS Sum"},"17240001","18400","RGPNTRD316402CV","A01","",""]
["17","316",null,null,"USU/USDA RF NITRIFIC     HABTE","2521RD316403","21300","12100","62551","17240001",{"$f":"VLOOKUP(TRIM(J562),'Transactional Departments'!A:B,2,FALSE)","v":"CSS Sum"},"17240001","18400","RUTSURD316403CV","A01","",""]
["17","316",null,null,"         VARIOUS         MERGO","2521RD316404","21300","12100","64206","17242MER",{"$f":"VLOOKUP(TRIM(J563),'Transactional Departments'!A:B,2,FALSE)","v":"Merguom, Mohamed"},"17242MER","18003","SVARIRD316404CV","A01","",""]
["17","316",null,null,"AMEC INC RF CASTNET V    FLITC","2521RD316405","21300","12100","64058","17240001",{"$f":"VLOOKUP(TRIM(J564),'Transactional Departments'!A:B,2,FALSE)","v":"CSS Sum"},"17240001","18400","RAMECRD316405CV","A01","",""]
["17","316",null,null,"PIONEER  RF RE WHT VAR EVJOHNS","2521RD316406","21300","12100","64017","17240001",{"$f":"VLOOKUP(TRIM(J565),'Transactional Departments'!A:B,2,FALSE)","v":"CSS Sum"},"17240001","18400","RPHBIRD316406CV","A01","",""]
["17","316",null,null,"         VARIOUS         LECLE","2521RD316407","21300","12100","64206","17242LEC",{"$f":"VLOOKUP(TRIM(J566),'Transactional Departments'!A:B,2,FALSE)","v":"Leclerc, Monique"},"17242LEC","18003","SVARIRD316407CV","A01","",""]
["17","316",null,null,"         RF SWVT CORN    GASSE","2521RD316408","21300","12100","64050","17240001",{"$f":"VLOOKUP(TRIM(J567),'Transactional Departments'!A:B,2,FALSE)","v":"CSS Sum"},"17240001","18003","SSYSIRD316408CV","A01","",""]
["17","316",null,null,"SCOTTS   RF ST AUGAGRON  RAYME","2521RD316409","21300","12100","64021","17240001",{"$f":"VLOOKUP(TRIM(J568),'Transactional Departments'!A:B,2,FALSE)","v":"CSS Sum"},"17240001","18400","RSCOTRD316409CV","A01","",""]
["17","316",null,null,"USGA     RF NEW BERMUDA  JESPE","2521RD316411","21300","12100","64191","17240001",{"$f":"VLOOKUP(TRIM(J569),'Transactional Departments'!A:B,2,FALSE)","v":"CSS Sum"},"17240001","18400","RGOLFRD316411CV","A01","",""]
["17","316",null,null,"GCSAA/EIGRF RF_TAILOR WATLECLE","2521RD316412","21300","12100","64417","17240001",{"$f":"VLOOKUP(TRIM(J570),'Transactional Departments'!A:B,2,FALSE)","v":"CSS Sum"},"17240001","18400","RGGLFRD316412CV","A01","",""]
["17","316",null,null,"SSI      RF A-3          MAILH","2521RD316413","21300","12100","64050","17240001",{"$f":"VLOOKUP(TRIM(J571),'Transactional Departments'!A:B,2,FALSE)","v":"CSS Sum"},"17240001","18400","RSYSIRD316413CV","A01","",""]
["17","316",null,null,"ENI/NOAA MESONET TMING   FLITC","2521RD316414","21300","12100","64044","17240001",{"$f":"VLOOKUP(TRIM(J572),'Transactional Departments'!A:B,2,FALSE)","v":"CSS Sum"},"17240001","18003","SEANIRD316414CV","A01","",""]
["17","316",null,null,"         VARIOUS         HABTE","2521RD316415","21300","12100","64206","17242HAB",{"$f":"VLOOKUP(TRIM(J573),'Transactional Departments'!A:B,2,FALSE)","v":"Habtelassie, Mussie"},"17242HAB","18003","SVARIRD316415CV","A01","",""]
["17","316",null,null,"         VARIOUS         JESPE","2521RD316416","21300","12100","64206","17242JES",{"$f":"VLOOKUP(TRIM(J574),'Transactional Departments'!A:B,2,FALSE)","v":"Jesperson, David"},"17242JES","18003","SVARIRD316416CV","A01","",""]
["17","316",null,null,"GACCP/NPBRF WATER USE    LECLE","2521RD316418","21300","12100","62002","17240001",{"$f":"VLOOKUP(TRIM(J575),'Transactional Departments'!A:B,2,FALSE)","v":"CSS Sum"},"17240001","18400","RGPNTRD316418CV","A01","",""]
["17","316",null,null,"PENN SEEDRF COOL TURF    RAYME","2521RD316419","21300","12100","64025","17240001",{"$f":"VLOOKUP(TRIM(J576),'Transactional Departments'!A:B,2,FALSE)","v":"CSS Sum"},"17240001","18400","RPNGTRD316419CV","A01","",""]
["17","316",null,null,"USDOD    RF ELECT MEMB   HUANG","2521RD316421","21300","12100","61012","17240001",{"$f":"VLOOKUP(TRIM(J577),'Transactional Departments'!A:B,2,FALSE)","v":"CSS Sum"},"17240001","18400","RUSDDRD316421CV","A01","",""]
["17","316",null,null,"AMECFW   RF CASTNETV OPT FLITC","2521RD316422","21300","12100","64058","17240001",{"$f":"VLOOKUP(TRIM(J578),'Transactional Departments'!A:B,2,FALSE)","v":"CSS Sum"},"17240001","18400","RAMECRD316422CV","A01","",""]
["17","316",null,null,"UF/USDA  RF RR272-705 FURMAN  ","2521RD316423","21300","12100","62511","17240001",{"$f":"VLOOKUP(TRIM(J579),'Transactional Departments'!A:B,2,FALSE)","v":"CSS Sum"},"17240001","18400","RUFLXRD316423CV","A01","",""]
["17","316",null,null,"REGIONAL HATCH                ","2526GD316002","21300","12100","61MSH","17240001",{"$f":"VLOOKUP(TRIM(J580),'Transactional Departments'!A:B,2,FALSE)","v":"CSS Sum"},"17240001","18003","SNIFAXMSHATCH17","F17","RGS",""]
["17","316",null,null,"CSS FED HATCH HUANG           ","2526GD316131","21300","12100","61HAT","17242HUA",{"$f":"VLOOKUP(TRIM(J581),'Transactional Departments'!A:B,2,FALSE)","v":"Huang, Jack"},"17242HUA","18003","SNIFAXRGHATCH17","F17","RGS",""]
["17","316",null,null,"CSS FED HATCH LECLERC         ","2526GD316151","21300","12100","61HAT","17242LEC",{"$f":"VLOOKUP(TRIM(J582),'Transactional Departments'!A:B,2,FALSE)","v":"Leclerc, Monique"},"17242LEC","18003","SNIFAXRGHATCH17","F17","RGS",""]
["17","317",null,null,"         VARI RSCH DISCR HUNG ","2521RD317024","21300","12100","64206","17261110",{"$f":"VLOOKUP(TRIM(J583),'Transactional Departments'!A:B,2,FALSE)","v":"Hung, Yen-Con"},"17261110","18003","SVARIRD317024CV","A01","",""]
["17","317",null,null,"         VARIOUS FS GRIF CHINN","2521RD317025","21300","12100","64206","17260001",{"$f":"VLOOKUP(TRIM(J584),'Transactional Departments'!A:B,2,FALSE)","v":"Food Science Sum"},"17260001","18003","SVARIRD317025CV","A01","",""]
["17","317",null,null,"         VAR FS GRIF     CHEN ","2521RD317087","21300","12100","64206","17261150",{"$f":"VLOOKUP(TRIM(J585),'Transactional Departments'!A:B,2,FALSE)","v":"Chen, Jinru"},"17261150","18003","SVARIRD317087CV","A01","",""]
["17","317",null,null,"         VAR FS GRIF     SINGH","2521RD317088","21300","12100","64206","17260001",{"$f":"VLOOKUP(TRIM(J586),'Transactional Departments'!A:B,2,FALSE)","v":"Food Science Sum"},"17260001","18003","SVARIRD317088CV","A01","",""]
["17","317",null,null,"USDA     RF STEC & VIRUS HUNG ","2521RD317100","21300","12100","61002","17260001",{"$f":"VLOOKUP(TRIM(J587),'Transactional Departments'!A:B,2,FALSE)","v":"Food Science Sum"},"17260001","18400","RUSDARD317100CV","A01","",""]
["17","317",null,null,"USDA     RF PATHOGEN SEE CHEN ","2521RD317167","21300","12100","61002","17260001",{"$f":"VLOOKUP(TRIM(J588),'Transactional Departments'!A:B,2,FALSE)","v":"Food Science Sum"},"17260001","18400","RUSDARD317167CV","A01","",""]
["17","317",null,null,"GAIT     RF DISINFECT    HUNG ","2521RD317169","21300","12100","62021","17260001",{"$f":"VLOOKUP(TRIM(J589),'Transactional Departments'!A:B,2,FALSE)","v":"Food Science Sum"},"17260001","18400","RGAITRD317169CV","A01","",""]
["17","317",null,null,"USAID    RF RFSUP710-059 KOU  ","2521RD317170","21300","12100","61028","17260001",{"$f":"VLOOKUP(TRIM(J590),'Transactional Departments'!A:B,2,FALSE)","v":"Food Science Sum"},"17260001","18400","RUSADRD317170CV","A01","",""]
["17","317",null,null,"SF       RF VEG CONTAM  ACHEN ","2521RD317171","21300","12100","64450","17260001",{"$f":"VLOOKUP(TRIM(J591),'Transactional Departments'!A:B,2,FALSE)","v":"Food Science Sum"},"17260001","18400","RSCHLRD317171CV","A01","",""]
["17","317",null,null,"NCS/USAIDRF VALUE CHAIN  CHEN ","2521RD317172","21300","12100","62506","17260001",{"$f":"VLOOKUP(TRIM(J592),'Transactional Departments'!A:B,2,FALSE)","v":"Food Science Sum"},"17260001","18400","RNCSURD317172CV","A01","",""]
["17","317",null,null,"VA/USAID RF AFLATOXIN    ADHIK","2521RD317176","21300","12100","62519","17260001",{"$f":"VLOOKUP(TRIM(J593),'Transactional Departments'!A:B,2,FALSE)","v":"Food Science Sum"},"17260001","18400","RVAPTRD317176CV","A01","",""]
["17","317",null,null,"USDA NIFARF  RF W/ 722/418    ","2521RD317177","21300","12100","61006","17260001",{"$f":"VLOOKUP(TRIM(J594),'Transactional Departments'!A:B,2,FALSE)","v":"Food Science Sum"},"17260001","18400","RNIFARD317177CV","A01","",""]
["17","317",null,null,"KSU      RF CBPR PREVENT ADHIK","2521RD317181","21300","12100","62528","17260001",{"$f":"VLOOKUP(TRIM(J595),'Transactional Departments'!A:B,2,FALSE)","v":"Food Science Sum"},"17260001","18400","RKASURD317181CV","A01","",""]
["17","317",null,null,"MSU      RF LEGUME SCHOL ADHAD","2521RD317182","21300","12100","62505","17260001",{"$f":"VLOOKUP(TRIM(J596),'Transactional Departments'!A:B,2,FALSE)","v":"Food Science Sum"},"17260001","18400","RMISURD317182CV","A01","",""]
["17","317",null,null,"MSU      RF W/317182 TUITIONAD","2521RD317183","21300","12100","62505","17260001",{"$f":"VLOOKUP(TRIM(J597),'Transactional Departments'!A:B,2,FALSE)","v":"Food Science Sum"},"17260001","18400","RMISURD317183CV","A01","",""]
["17","317",null,null,"GACCP    RF HOT TOPICS   HUNG ","2521RD317184","21300","12100","62002","17260001",{"$f":"VLOOKUP(TRIM(J598),'Transactional Departments'!A:B,2,FALSE)","v":"Food Science Sum"},"17260001","18400","RGPNTRD317184CV","A01","",""]
["17","317",null,null,"CJFMI    RF EPI MEMORY   ADHIK","2521RD317185","21300","12100","64499","17260001",{"$f":"VLOOKUP(TRIM(J599),'Transactional Departments'!A:B,2,FALSE)","v":"Food Science Sum"},"17260001","18400","RCJGRRD317185CV","A01","",""]
["17","317",null,null,"PERO LLC RF SANITIZER    HUNG ","2521RD317187","21300","12100","64088","17260001",{"$f":"VLOOKUP(TRIM(J600),'Transactional Departments'!A:B,2,FALSE)","v":"Food Science Sum"},"17260001","18400","RPERORD317187CV","A01","",""]
["17","317",null,null,"NCB      RF FLAVOR II    ADHIK","2521RD317188","21300","12100","64323","17260001",{"$f":"VLOOKUP(TRIM(J601),'Transactional Departments'!A:B,2,FALSE)","v":"Food Science Sum"},"17260001","18400","RNCBARD317188CV","A01","",""]
["17","317",null,null,"SF       RF VEG CONTAM        ","2521RD317189","21300","12100","64450","17260001",{"$f":"VLOOKUP(TRIM(J602),'Transactional Departments'!A:B,2,FALSE)","v":"Food Science Sum"},"17260001","18400","RSCHLRD317189CV","A01","",""]
["17","317",null,null,"KSU      RF CBPR PREVENT      ","2521RD317190","21300","12100","62528","17260001",{"$f":"VLOOKUP(TRIM(J603),'Transactional Departments'!A:B,2,FALSE)","v":"Food Science Sum"},"17260001","18400","RKASURD317190CV","A01","",""]
["17","317",null,null,"USAID    RF PEANUT PROGRAM    ","2521RD317191","21300","12100","61028","17260001",{"$f":"VLOOKUP(TRIM(J604),'Transactional Departments'!A:B,2,FALSE)","v":"Food Science Sum"},"17260001","18400","RUSADRD317191CV","A01","",""]
["17","317",null,null,"EWHA CORPRF FER SOY PR   ADHIK","2521RD317192","21300","12100","64520","17260001",{"$f":"VLOOKUP(TRIM(J605),'Transactional Departments'!A:B,2,FALSE)","v":"Food Science Sum"},"17260001","18400","REUICRD317192CV","A01","",""]
["17","317",null,null,"EWHA CORPRF PS W/317-192 ADHIK","2521RD317193","21300","12100","64520","17260001",{"$f":"VLOOKUP(TRIM(J606),'Transactional Departments'!A:B,2,FALSE)","v":"Food Science Sum"},"17260001","18400","REUICRD317193CV","A01","",""]
["17","317",null,null,"GCCP     RF 17 TOPICS    HUNG ","2521RD317195","21300","12100","62002","17260001",{"$f":"VLOOKUP(TRIM(J607),'Transactional Departments'!A:B,2,FALSE)","v":"Food Science Sum"},"17260001","18400","RGPNTRD317195CV","A01","",""]
["17","317",null,null,"SGD      RF SCALE UP     KEALE","2521RD317196","21300","12100","64000","17260001",{"$f":"VLOOKUP(TRIM(J608),'Transactional Departments'!A:B,2,FALSE)","v":"Food Science Sum"},"17260001","18400","RXXXXRD317196CV","A01","",""]
["17","317",null,null,"MONSANTO RF SENSORY           ","2521RD317902","21300","12100","64007","17260001",{"$f":"VLOOKUP(TRIM(J609),'Transactional Departments'!A:B,2,FALSE)","v":"Food Science Sum"},"17260001","18400","RMONSRD317902CV","A01","",""]
["17","317",null,null,"FST REG HATCH HUNG            ","2526GD317112","21300","12100","61MSH","17261110",{"$f":"VLOOKUP(TRIM(J610),'Transactional Departments'!A:B,2,FALSE)","v":"Hung, Yen-Con"},"17261110","18003","SNIFAXMSHATCH17","F17","RGS",""]
["17","317",null,null,"FST FED HATCH ADHIKARI        ","2526GD317141","21300","12100","61HAT","17261140",{"$f":"VLOOKUP(TRIM(J611),'Transactional Departments'!A:B,2,FALSE)","v":"Adhikari, Koushik"},"17261140","18003","SNIFAXRGHATCH17","F17","RGS",""]
["17","318",null,null,"         VARIOUS ENTO    GARDN","2521RD318012","21300","12100","64206","17253130",{"$f":"VLOOKUP(TRIM(J612),'Transactional Departments'!A:B,2,FALSE)","v":"Gardner"},"17253130","18003","SVARIRD318012CV","A01","",""]
["17","318",null,null,"GADA     RF GA CUT FLWRS BRAMA","2521RD318230","21300","12100","62010","17250001",{"$f":"VLOOKUP(TRIM(J613),'Transactional Departments'!A:B,2,FALSE)","v":"Entomology Sum"},"17250001","18400","RGDAGRD318230CV","A01","",""]
["17","318",null,null,"         VAR RSCH        SUITE","2521RD318249","21300","12100","64206","17253320",{"$f":"VLOOKUP(TRIM(J614),'Transactional Departments'!A:B,2,FALSE)","v":"Suiter"},"17253320","18003","SVARIRD318249CV","A01","",""]
["17","318",null,null,"         VAR GRIFFIN ENTOBRAMA","2521RD318250","21300","12100","64206","17253050",{"$f":"VLOOKUP(TRIM(J615),'Transactional Departments'!A:B,2,FALSE)","v":"Braman"},"17253050","18003","SVARIRD318250CV","A01","",""]
["17","318",null,null,"UFL/USDA INTERREGIONAL   BRAMA","2521RD318253","21300","12100","62511","17250001",{"$f":"VLOOKUP(TRIM(J616),'Transactional Departments'!A:B,2,FALSE)","v":"Entomology Sum"},"17250001","18003","SUFLXRD318253CV","A01","",""]
["17","318",null,null,"MONSANTO SO NO 37        BUNTI","2521RD318254","21300","12100","64007","17250001",{"$f":"VLOOKUP(TRIM(J617),'Transactional Departments'!A:B,2,FALSE)","v":"Entomology Sum"},"17250001","18003","SMONSRD318254CV","A01","",""]
["17","318",null,null,"         RF SUGARCANE    BUNTI","2521RD318255","21300","12100","64126","17250001",{"$f":"VLOOKUP(TRIM(J618),'Transactional Departments'!A:B,2,FALSE)","v":"Entomology Sum"},"17250001","18003","SUSCPRD318255CV","A01","",""]
["17","318",null,null,"BASF CORPRF BASF PROJECT BRAMA","2521RD318256","21300","12100","64002","17250001",{"$f":"VLOOKUP(TRIM(J619),'Transactional Departments'!A:B,2,FALSE)","v":"Entomology Sum"},"17250001","18400","RBASFRD318256CV","A01","",""]
["17","318",null,null,"UF       RF ARMORE SCALE BRAMA","2521RD318257","21300","12100","62511","17250001",{"$f":"VLOOKUP(TRIM(J620),'Transactional Departments'!A:B,2,FALSE)","v":"Entomology Sum"},"17250001","18400","RUFLXRD318257CV","A01","",""]
["17","318",null,null,"MONSANTO RF ORDER 58     BUNTI","2521RD318258","21300","12100","64007","17250001",{"$f":"VLOOKUP(TRIM(J621),'Transactional Departments'!A:B,2,FALSE)","v":"Entomology Sum"},"17250001","18400","RMONSRD318258CV","A01","",""]
["17","318",null,null,"USCP     RF SUGARCANE    BUNTI","2521RD318259","21300","12100","64126","17250001",{"$f":"VLOOKUP(TRIM(J622),'Transactional Departments'!A:B,2,FALSE)","v":"Entomology Sum"},"17250001","18400","RUSCPRD318259CV","A01","",""]
["17","318",null,null,"USDA ARS RF INVAS SUGAR  BUNTI","2521RD318260","21300","12100","61004","17250001",{"$f":"VLOOKUP(TRIM(J623),'Transactional Departments'!A:B,2,FALSE)","v":"Entomology Sum"},"17250001","18400","RARSXRD318260CV","A01","",""]
["17","318",null,null,"         RF SVC NO 73    BUNTI","2521RD318261","21300","12100","64007","17250001",{"$f":"VLOOKUP(TRIM(J624),'Transactional Departments'!A:B,2,FALSE)","v":"Entomology Sum"},"17250001","18003","SMONSRD318261CV","A01","",""]
["17","318",null,null,"GDA/USDA RF INSECT CONTROBRAMA","2521RD318262","21300","12100","62010","17250001",{"$f":"VLOOKUP(TRIM(J625),'Transactional Departments'!A:B,2,FALSE)","v":"Entomology Sum"},"17250001","18400","RGDAGRD318262CV","A01","",""]
["17","318",null,null,"MONSANTO RF SO NO 76     BUNTI","2521RD318263","21300","12100","64007","17250001",{"$f":"VLOOKUP(TRIM(J626),'Transactional Departments'!A:B,2,FALSE)","v":"Entomology Sum"},"17250001","18400","RMONSRD318263CV","A01","",""]
["17","318",null,null,"USCP     RF SUGARCANE    BUNTI","2521RD318264","21300","12100","64126","17250001",{"$f":"VLOOKUP(TRIM(J627),'Transactional Departments'!A:B,2,FALSE)","v":"Entomology Sum"},"17250001","18400","RUSCPRD318264CV","A01","",""]
["17","318",null,null,"ABSTC    RF VIP3A        BUNTI","2521RD318265","21300","12100","64266","17250001",{"$f":"VLOOKUP(TRIM(J628),'Transactional Departments'!A:B,2,FALSE)","v":"Entomology Sum"},"17250001","18400","RICGARD318265CV","A01","",""]
["17","318",null,null,"USDA NIFAW/RE677532      AHMAD","2521RD318267","21300","12100","61006","17250001",{"$f":"VLOOKUP(TRIM(J629),'Transactional Departments'!A:B,2,FALSE)","v":"Entomology Sum"},"17250001","18003","SNIFARD318267CV","A01","",""]
["17","318",null,null,"ENT FED HATCH GARDNER         ","2526GD318101","21300","12100","61HAT","17253130",{"$f":"VLOOKUP(TRIM(J630),'Transactional Departments'!A:B,2,FALSE)","v":"Gardner"},"17253130","18003","SNIFAXRGHATCH17","F17","RGS",""]
["17","318",null,null,"ENT FED HATCH BUNTIN          ","2526GD318121","21300","12100","61HAT","17253070",{"$f":"VLOOKUP(TRIM(J631),'Transactional Departments'!A:B,2,FALSE)","v":"Buntin"},"17253070","18003","SNIFAXRGHATCH17","F17","RGS",""]
["17","318",null,null,"ENT REG HATCH BUNTIN          ","2526GD318122","21300","12100","61MSH","17253070",{"$f":"VLOOKUP(TRIM(J632),'Transactional Departments'!A:B,2,FALSE)","v":"Buntin"},"17253070","18003","SNIFAXMSHATCH17","F17","RGS",""]
["17","319",null,null,"         VARIOUS RSCH    BEUCH","2521RD319182","21300","12100","64206","17262001",{"$f":"VLOOKUP(TRIM(J633),'Transactional Departments'!A:B,2,FALSE)","v":"Cntr Food Safety Sum"},"17262001","18003","SVARIRD319182CV","A01","",""]
["17","319",null,null,"         VARIOUS RSC CFS DIEZ-","2521RD319183","21300","12100","64206","17262001",{"$f":"VLOOKUP(TRIM(J634),'Transactional Departments'!A:B,2,FALSE)","v":"Cntr Food Safety Sum"},"17262001","18003","SVARIRD319183CV","A01","",""]
["17","319",null,null,"         CFS VARIOUS     ERICK","2521RD319275","21300","12100","64206","17262150",{"$f":"VLOOKUP(TRIM(J635),'Transactional Departments'!A:B,2,FALSE)","v":"Erikson, Marilyn"},"17262150","18003","SVARIRD319275CV","A01","",""]
["17","319",null,null,"USDA     RF CANN/ZHAO W/317100","2521RD319280","21300","12100","61002","17262001",{"$f":"VLOOKUP(TRIM(J636),'Transactional Departments'!A:B,2,FALSE)","v":"Cntr Food Safety Sum"},"17262001","18400","RUSDARD319280CV","A01","",""]
["17","319",null,null,"NCSU/USDARF FOODBORN DIS ORTEG","2521RD319284","21300","12100","62506","17262001",{"$f":"VLOOKUP(TRIM(J637),'Transactional Departments'!A:B,2,FALSE)","v":"Cntr Food Safety Sum"},"17262001","18400","RNCSURD319284CV","A01","",""]
["17","319",null,null,"         CFS VARIOUS     DIEZ-","2521RD319288","21300","12100","64206","17262001",{"$f":"VLOOKUP(TRIM(J638),'Transactional Departments'!A:B,2,FALSE)","v":"Cntr Food Safety Sum"},"17262001","18003","SVARIRD319288CV","A01","",""]
["17","319",null,null,"GIT__USDARF EN CAP TRGT  ERICK","2521RD319291","21300","12100","62021","17262001",{"$f":"VLOOKUP(TRIM(J639),'Transactional Departments'!A:B,2,FALSE)","v":"Cntr Food Safety Sum"},"17262001","18400","RGAITRD319291CV","A01","",""]
["17","319",null,null,"         VARIOUS         DENG ","2521RD319293","21300","12100","64206","17262240",{"$f":"VLOOKUP(TRIM(J640),'Transactional Departments'!A:B,2,FALSE)","v":"Deng, Xiangyu"},"17262240","18003","SVARIRD319293CV","A01","",""]
["17","319",null,null,"CRDF     RF BIOSCIENCES  DENG ","2521RD319294","21300","12100","64167","17262001",{"$f":"VLOOKUP(TRIM(J641),'Transactional Departments'!A:B,2,FALSE)","v":"Cntr Food Safety Sum"},"17262001","18400","RCRDFRD319294CV","A01","",""]
["17","319",null,null,"NCSU/USDARF W/319284 FELLORTEG","2521RD319295","21300","12100","62506","17262001",{"$f":"VLOOKUP(TRIM(J642),'Transactional Departments'!A:B,2,FALSE)","v":"Cntr Food Safety Sum"},"17262001","18400","RNCSURD319295CV","A01","",""]
["17","319",null,null,"IIT      RF BACTER PATH  DENG ","2521RD319297","21300","12100","64350","17262001",{"$f":"VLOOKUP(TRIM(J643),'Transactional Departments'!A:B,2,FALSE)","v":"Cntr Food Safety Sum"},"17262001","18400","RILITRD319297CV","A01","",""]
["17","319",null,null,"USDHH    RF SALMONELLA   DENG ","2521RD319299","21300","12100","61017","17262001",{"$f":"VLOOKUP(TRIM(J644),'Transactional Departments'!A:B,2,FALSE)","v":"Cntr Food Safety Sum"},"17262001","18400","RDHHSRD319299CV","A01","",""]
["17","319",null,null,"         RF FOOD SAFETY  ORTEG","2521RD319300","21300","12100","62501","17262001",{"$f":"VLOOKUP(TRIM(J645),'Transactional Departments'!A:B,2,FALSE)","v":"Cntr Food Safety Sum"},"17262001","18003","SSOFLRD319300CV","A01","",""]
["17","319",null,null,"NIFA     RF SALMONELLA   DIEZ-","2521RD319301","21300","12100","61006","17262001",{"$f":"VLOOKUP(TRIM(J646),'Transactional Departments'!A:B,2,FALSE)","v":"Cntr Food Safety Sum"},"17262001","18400","RNIFARD319301CV","A01","",""]
["17","319",null,null,"FHD/CDC  FOOD SAFETY     ORTEG","2521RD319302","21300","12100","62500","17262001",{"$f":"VLOOKUP(TRIM(J647),'Transactional Departments'!A:B,2,FALSE)","v":"Cntr Food Safety Sum"},"17262001","18003","SXXXXRD319302CV","A01","",""]
["17","319",null,null,"CFS FEDERAL HATCH             ","2526GD319001","21300","12100","61HAT","17262001",{"$f":"VLOOKUP(TRIM(J648),'Transactional Departments'!A:B,2,FALSE)","v":"Cntr Food Safety Sum"},"17262001","18003","SNIFAXRGHATCH17","F17","RGS",""]
["17","319",null,null,"CFS FED HATCH ERICKSON        ","2526GD319151","21300","12100","61HAT","17262150",{"$f":"VLOOKUP(TRIM(J649),'Transactional Departments'!A:B,2,FALSE)","v":"Erikson, Marilyn"},"17262150","18003","SNIFAXRGHATCH17","F17","RGS",""]
["17","319",null,null,"CFS FED HATCH ORTEGA          ","2526GD319211","21300","12100","61HAT","17262210",{"$f":"VLOOKUP(TRIM(J650),'Transactional Departments'!A:B,2,FALSE)","v":"Ortega, Ynes"},"17262210","18003","SNIFAXRGHATCH17","F17","RGS",""]
["17","319",null,null,"CFS FED HATCH DENG            ","2526GD319241","21300","12100","61HAT","17262240",{"$f":"VLOOKUP(TRIM(J651),'Transactional Departments'!A:B,2,FALSE)","v":"Deng, Xiangyu"},"17262240","18003","SNIFAXRGHATCH17","F17","RGS",""]
["17","319",null,null,"CFS FED HATCH ZHAO            ","2526GD319261","21300","12100","61HAT","17262260",{"$f":"VLOOKUP(TRIM(J652),'Transactional Departments'!A:B,2,FALSE)","v":"Zhao, Tong"},"17262260","18003","SNIFAXRGHATCH17","F17","RGS",""]
["17","320",null,null,"         VARIOUS NESMITH      ","2521RD320047","21300","12100","64206","17271800",{"$f":"VLOOKUP(TRIM(J653),'Transactional Departments'!A:B,2,FALSE)","v":"NeSmith, Scott"},"17271800","18003","SVARIRD320047CV","A01","",""]
["17","320",null,null,"         VAR LINDSTROM   LINDS","2521RD320054","21300","12100","64206","17270001",{"$f":"VLOOKUP(TRIM(J654),'Transactional Departments'!A:B,2,FALSE)","v":"Horticulture Sum"},"17270001","18003","SVARIRD320054CV","A01","",""]
["17","320",null,null,"         VARIOUS RSCH    ROBAC","2521RD320063","21300","12100","64206","17272200",{"$f":"VLOOKUP(TRIM(J655),'Transactional Departments'!A:B,2,FALSE)","v":"Robacker, Carol"},"17272200","18003","SVARIRD320063CV","A01","",""]
["17","320",null,null,"         VARIOUS RSCH    CZARN","2521RD320064","21300","12100","64206","17270900",{"$f":"VLOOKUP(TRIM(J656),'Transactional Departments'!A:B,2,FALSE)","v":"Czarnota, Mark"},"17270900","18003","SVARIRD320064CV","A01","",""]
["17","320",null,null,"USDOE    RF W/284614     LINDS","2521RD320086","21300","12100","61001","17270001",{"$f":"VLOOKUP(TRIM(J657),'Transactional Departments'!A:B,2,FALSE)","v":"Horticulture Sum"},"17270001","18400","RUSDERD320086CV","A01","",""]
["17","320",null,null,"SRSFC    RF WINE GRAPE   ITLE ","2521RD320092","21300","12100","64342","17270001",{"$f":"VLOOKUP(TRIM(J658),'Transactional Departments'!A:B,2,FALSE)","v":"Horticulture Sum"},"17270001","18400","RSRSFRD320092CV","A01","",""]
["17","320",null,null,"GCCB     RF HIGHBUSH     ITLE ","2521RD320094","21300","12100","62009","17270001",{"$f":"VLOOKUP(TRIM(J659),'Transactional Departments'!A:B,2,FALSE)","v":"Horticulture Sum"},"17270001","18400","RGABLRD320094CV","A01","",""]
["17","320",null,null,"GACCP    RF IRRIGATION   CHAVE","2521RD320097","21300","12100","62007","17270001",{"$f":"VLOOKUP(TRIM(J660),'Transactional Departments'!A:B,2,FALSE)","v":"Horticulture Sum"},"17270001","18400","RGPCHRD320097CV","A01","",""]
["17","320",null,null,"SRSF     RF EVAL BLUEBER ITLE ","2521RD320099","21300","12100","64342","17270001",{"$f":"VLOOKUP(TRIM(J661),'Transactional Departments'!A:B,2,FALSE)","v":"Horticulture Sum"},"17270001","18400","RSRSFRD320099CV","A01","",""]
["17","320",null,null,"GACP     RF IRRIGATION   CHAVE","2521RD320104","21300","12100","62007","17270001",{"$f":"VLOOKUP(TRIM(J662),'Transactional Departments'!A:B,2,FALSE)","v":"Horticulture Sum"},"17270001","18400","RGPCHRD320104CV","A01","",""]
["17","320",null,null,"GACCP    RF SMART SENS   CHAVE","2521RD320105","21300","12100","62007","17270001",{"$f":"VLOOKUP(TRIM(J663),'Transactional Departments'!A:B,2,FALSE)","v":"Horticulture Sum"},"17270001","18400","RGPCHRD320105CV","A01","",""]
["17","320",null,null,"RUSTICAS RF RF_STONEFRUIT   VE","2521RD320106","21300","12100","64477","17270001",{"$f":"VLOOKUP(TRIM(J664),'Transactional Departments'!A:B,2,FALSE)","v":"Horticulture Sum"},"17270001","18400","RRSDGRD320106CV","A01","",""]
["17","320",null,null,"         VARIOUS         CHAVE","2521RD320107","21300","12100","64206","17270500",{"$f":"VLOOKUP(TRIM(J665),'Transactional Departments'!A:B,2,FALSE)","v":"Chavez, Dario"},"17270500","18003","SVARIRD320107CV","A01","",""]
["17","320",null,null,"GACC BLUERF RF_DEV & EVALNESMI","2521RD320108","21300","12100","62009","17270001",{"$f":"VLOOKUP(TRIM(J666),'Transactional Departments'!A:B,2,FALSE)","v":"Horticulture Sum"},"17270001","18400","RGABLRD320108CV","A01","",""]
["17","320",null,null,"GACC PCHSRF RD_IRR/FERT MCHAVE","2521RD320112","21300","12100","62007","17270001",{"$f":"VLOOKUP(TRIM(J667),'Transactional Departments'!A:B,2,FALSE)","v":"Horticulture Sum"},"17270001","18400","RGPCHRD320112CV","A01","",""]
["17","320",null,null,"GACC PEACRF NEW IRR/FERT_CHAVE","2521RD320113","21300","12100","62007","17270001",{"$f":"VLOOKUP(TRIM(J668),'Transactional Departments'!A:B,2,FALSE)","v":"Horticulture Sum"},"17270001","18400","RGPCHRD320113CV","A01","",""]
["17","320",null,null,"VWAWG    RF RF_FURTHER KNITLE ","2521RD320133","21300","12100","64264","17270001",{"$f":"VLOOKUP(TRIM(J669),'Transactional Departments'!A:B,2,FALSE)","v":"Horticulture Sum"},"17270001","18400","RVINERD320133CV","A01","",""]
["17","320",null,null,"CLEM/USDARF RF_PAPER BAGSCHAVE","2521RD320143","21300","12100","62504","17270001",{"$f":"VLOOKUP(TRIM(J670),'Transactional Departments'!A:B,2,FALSE)","v":"Horticulture Sum"},"17270001","18400","RCLEMRD320143CV","A01","",""]
["17","320",null,null,"GACC BLUERF RF_FRUIT QUALITLE ","2521RD320152","21300","12100","62009","17270001",{"$f":"VLOOKUP(TRIM(J671),'Transactional Departments'!A:B,2,FALSE)","v":"Horticulture Sum"},"17270001","18400","RGABLRD320152CV","A01","",""]
["17","320",null,null,"CU/USDA  RF ARMILLARIA   CHAVE","2521RD320153","21300","12100","62504","17270001",{"$f":"VLOOKUP(TRIM(J672),'Transactional Departments'!A:B,2,FALSE)","v":"Horticulture Sum"},"17270001","18400","RCLEMRD320153CV","A01","",""]
["17","320",null,null,"FEDERAL HATCH                 ","2526GD320001","21300","12100","61HAT","17270001",{"$f":"VLOOKUP(TRIM(J673),'Transactional Departments'!A:B,2,FALSE)","v":"Horticulture Sum"},"17270001","18003","SNIFAXRGHATCH17","F17","RGS",""]
["17","320",null,null,"HORT FED HATCH ROBACKER       ","2526GD320121","21300","12100","61HAT","17272200",{"$f":"VLOOKUP(TRIM(J674),'Transactional Departments'!A:B,2,FALSE)","v":"Robacker, Carol"},"17272200","18003","SNIFAXRGHATCH17","F17","RGS",""]
["17","320",null,null,"HORT FED HATCH NESMITH        ","2526GD320131","21300","12100","61HAT","17271800",{"$f":"VLOOKUP(TRIM(J675),'Transactional Departments'!A:B,2,FALSE)","v":"NeSmith, Scott"},"17271800","18003","SNIFAXRGHATCH17","F17","RGS",""]
["17","320",null,null,"HORT FED HATCH CZARNOTA       ","2526GD320151","21300","12100","61HAT","17270900",{"$f":"VLOOKUP(TRIM(J676),'Transactional Departments'!A:B,2,FALSE)","v":"Czarnota, Mark"},"17270900","18003","SNIFAXRGHATCH17","F17","RGS",""]
["17","321",null,null,"         VARIOUS RSCH    BUCK ","2521RD321110","21300","12100","64206","17286001",{"$f":"VLOOKUP(TRIM(J677),'Transactional Departments'!A:B,2,FALSE)","v":"Buck"},"17286001","18003","SVARIRD321110CV","A01","",""]
["17","321",null,null,"DOW      RF RF_FROG EYE SBUCK ","2521RD321119","21300","12100","64037","17280001",{"$f":"VLOOKUP(TRIM(J678),'Transactional Departments'!A:B,2,FALSE)","v":"Plant Path Sum"},"17280001","18400","RDAGRRD321119CV","A01","",""]
["17","321",null,null,"DOW      RF RF_FROGEYE LEBUCK ","2521RD321122","21300","12100","64037","17280001",{"$f":"VLOOKUP(TRIM(J679),'Transactional Departments'!A:B,2,FALSE)","v":"Plant Path Sum"},"17280001","18400","RDAGRRD321122CV","A01","",""]
["17","321",null,null,"BASF     UGA_DEV-F-2017__BUCK ","2521RD321123","21300","12100","64002","17280001",{"$f":"VLOOKUP(TRIM(J680),'Transactional Departments'!A:B,2,FALSE)","v":"Plant Path Sum"},"17280001","18003","SBASFRD321123CV","A01","",""]
["17","321",null,null,"USDA/RUTGRF IMPACT FUNGI BUCK ","2521RD321186","21300","12100","62588","17280001",{"$f":"VLOOKUP(TRIM(J681),'Transactional Departments'!A:B,2,FALSE)","v":"Plant Path Sum"},"17280001","18400","RRUTGRD321186CV","A01","",""]
["17","321",null,null,"         RF FROG EYE     BUCK ","2521RD321187","21300","12100","64050","17280001",{"$f":"VLOOKUP(TRIM(J682),'Transactional Departments'!A:B,2,FALSE)","v":"Plant Path Sum"},"17280001","18003","SSYSIRD321187CV","A01","",""]
["17","321",null,null,"AHS      RF FUNGICIDE    BUCK ","2521RD321192","21300","12100","64000","17280001",{"$f":"VLOOKUP(TRIM(J683),'Transactional Departments'!A:B,2,FALSE)","v":"Plant Path Sum"},"17280001","18400","RANHSRD321192CV","A01","",""]
["17","321",null,null,"BC       RF RC371-275    LI   ","2521RD321194","21300","12100","64465","17280001",{"$f":"VLOOKUP(TRIM(J684),'Transactional Departments'!A:B,2,FALSE)","v":"Plant Path Sum"},"17280001","18400","RBAYERD321194CV","A01","",""]
["17","321",null,null,"BASF     DEVF2016USWJ6A1 BUCK ","2521RD321195","21300","12100","64002","17280001",{"$f":"VLOOKUP(TRIM(J685),'Transactional Departments'!A:B,2,FALSE)","v":"Plant Path Sum"},"17280001","18003","SBASFRD321195CV","A01","",""]
["17","321",null,null,"GACC SOYBRF RF_FROGEYE SPBUCK ","2521RD321197","21300","12100","62004","17280001",{"$f":"VLOOKUP(TRIM(J686),'Transactional Departments'!A:B,2,FALSE)","v":"Plant Path Sum"},"17280001","18400","RGSOYRD321197CV","A01","",""]
["17","321",null,null,"PP FED HATCH RESEARCH         ","2526GD321001","21300","12100","61HAT","17280001",{"$f":"VLOOKUP(TRIM(J687),'Transactional Departments'!A:B,2,FALSE)","v":"Plant Path Sum"},"17280001","18003","SNIFAXRGHATCH17","F17","RGS",""]
["17","321",null,null,"PP FED HATCH BUCK             ","2526GD321151","21300","12100","61HAT","17286001",{"$f":"VLOOKUP(TRIM(J688),'Transactional Departments'!A:B,2,FALSE)","v":"Buck"},"17286001","18003","SNIFAXRGHATCH17","F17","RGS",""]
["17","322",null,null,"REGIONAL HATCH                ","2526GD322002","21300","12100","61MSH","17210710",{"$f":"VLOOKUP(TRIM(J689),'Transactional Departments'!A:B,2,FALSE)","v":"Jordan, Jeffery"},"17210710","18003","SNIFAXMSHATCH17","F17","RGS",""]
["17","323",null,null,"GDOA     RF AGRIBUSINESS WEST ","2521RF323019","21300","12100","62010","17101001",{"$f":"VLOOKUP(TRIM(J690),'Transactional Departments'!A:B,2,FALSE)","v":"Tifton Campus Sum"},"17101001","18400","RGDAGRF323019CV","A01","",""]
["17","323",null,null,"GADA     RF AGRIBUS 17   WEST ","2521RF323022","21300","12100","62010","17101001",{"$f":"VLOOKUP(TRIM(J691),'Transactional Departments'!A:B,2,FALSE)","v":"Tifton Campus Sum"},"17101001","18400","RGDAGRF323022CV","A01","",""]
["17","323",null,null,"GADOE    RF AGRIBUSINESS WEST ","2521RF323023","21300","12100","62059","17101001",{"$f":"VLOOKUP(TRIM(J692),'Transactional Departments'!A:B,2,FALSE)","v":"Tifton Campus Sum"},"17101001","18400","RGECDRF323023CV","A01","",""]
["17","323",null,null,"GDOED    RF AGRI FY18    WEST ","2521RF323024","21300","12100","62059","17101001",{"$f":"VLOOKUP(TRIM(J693),'Transactional Departments'!A:B,2,FALSE)","v":"Tifton Campus Sum"},"17101001","18400","RGECDRF323024CV","A01","",""]
["17","324",null,null,"         NESPAL VARIOUS KVIEN ","2521RF324074","21300","12100","64312","17242KVI",{"$f":"VLOOKUP(TRIM(J694),'Transactional Departments'!A:B,2,FALSE)","v":"Kvien, Craig"},"17242KVI","18003","SXXXXRF324074CV","A01","",""]
["17","324",null,null,"PF       RF RIL POP      OZIAS","2521RF324383","21300","12100","64389","17700001",{"$f":"VLOOKUP(TRIM(J695),'Transactional Departments'!A:B,2,FALSE)","v":"Tift Campus Sum"},"17700001","18400","RPEANRF324383CV","A01","",""]
["17","324",null,null,"USDA     RF OLEIC PNUT   OZIAS","2521RF324384","21300","12100","61002","17700001",{"$f":"VLOOKUP(TRIM(J696),'Transactional Departments'!A:B,2,FALSE)","v":"Tift Campus Sum"},"17700001","18400","RUSDARF324384CV","A01","",""]
["17","324",null,null,"PF       RF NEMATODE RES OZIAS","2521RF324391","21300","12100","64389","17700001",{"$f":"VLOOKUP(TRIM(J697),'Transactional Departments'!A:B,2,FALSE)","v":"Tift Campus Sum"},"17700001","18400","RPEANRF324391CV","A01","",""]
["17","324",null,null,"GCCP     RF LEAF SPOT    OZIAS","2521RF324393","21300","12100","62002","17700001",{"$f":"VLOOKUP(TRIM(J698),'Transactional Departments'!A:B,2,FALSE)","v":"Tift Campus Sum"},"17700001","18400","RGPNTRF324393CV","A01","",""]
["17","324",null,null,"GCCP     RF FARM SYSTEMS KVIEN","2521RF324394","21300","12100","62002","17700001",{"$f":"VLOOKUP(TRIM(J699),'Transactional Departments'!A:B,2,FALSE)","v":"Tift Campus Sum"},"17700001","18400","RGPNTRF324394CV","A01","",""]
["17","324",null,null,"PF       RF RIL POPULAT  OZIAS","2521RF324395","21300","12100","64389","17700001",{"$f":"VLOOKUP(TRIM(J700),'Transactional Departments'!A:B,2,FALSE)","v":"Tift Campus Sum"},"17700001","18400","RPEANRF324395CV","A01","",""]
["17","324",null,null,"PF       RF RIL POPULAT  KVIEN","2521RF324396","21300","12100","64389","17700001",{"$f":"VLOOKUP(TRIM(J701),'Transactional Departments'!A:B,2,FALSE)","v":"Tift Campus Sum"},"17700001","18400","RPEANRF324396CV","A01","",""]
["17","324",null,null,"GCCP     RF HULL SCRAPE  KVIEN","2521RF324403","21300","12100","62002","17700001",{"$f":"VLOOKUP(TRIM(J702),'Transactional Departments'!A:B,2,FALSE)","v":"Tift Campus Sum"},"17700001","18400","RGPNTRF324403CV","A01","",""]
["17","324",null,null,"USDA ARS RF ACQ GOODS    WEST ","2521RF324406","21300","12100","61004","17700001",{"$f":"VLOOKUP(TRIM(J703),'Transactional Departments'!A:B,2,FALSE)","v":"Tift Campus Sum"},"17700001","18400","RARSXRF324406CV","A01","",""]
["17","324",null,null,"PF       RF QTL DEFINIT  OZIAS","2521RF324408","21300","12100","64389","17700001",{"$f":"VLOOKUP(TRIM(J704),'Transactional Departments'!A:B,2,FALSE)","v":"Tift Campus Sum"},"17700001","18400","RPEANRF324408CV","A01","",""]
["17","324",null,null,"USDA     RF NET ZERO     KVIEN","2521RF324409","21300","12100","61002","17700001",{"$f":"VLOOKUP(TRIM(J705),'Transactional Departments'!A:B,2,FALSE)","v":"Tift Campus Sum"},"17700001","18400","RUSDARF324409CV","A01","",""]
["17","324",null,null,"PF       RF EXPAN GENE   OZIAS","2521RF324410","21300","12100","64389","17700001",{"$f":"VLOOKUP(TRIM(J706),'Transactional Departments'!A:B,2,FALSE)","v":"Tift Campus Sum"},"17700001","18400","RPEANRF324410CV","A01","",""]
["17","324",null,null,"GACCP    RF SUPER TRAIT  KVIEN","2521RF324411","21300","12100","62002","17700001",{"$f":"VLOOKUP(TRIM(J707),'Transactional Departments'!A:B,2,FALSE)","v":"Tift Campus Sum"},"17700001","18400","RGPNTRF324411CV","A01","",""]
["17","324",null,null,"GACCP    RF SPOT RESIST  OZIAS","2521RF324412","21300","12100","62002","17700001",{"$f":"VLOOKUP(TRIM(J708),'Transactional Departments'!A:B,2,FALSE)","v":"Tift Campus Sum"},"17700001","18400","RGPNTRF324412CV","A01","",""]
["17","324",null,null,"GACCP/NPBRF HULL SCRAPE  KVIEN","2521RF324413","21300","12100","62002","17700001",{"$f":"VLOOKUP(TRIM(J709),'Transactional Departments'!A:B,2,FALSE)","v":"Tift Campus Sum"},"17700001","18400","RGPNTRF324413CV","A01","",""]
["17","324",null,null,"USDA ARS RF ACQUI GOODS  WEST ","2521RF324414","21300","12100","61004","17700001",{"$f":"VLOOKUP(TRIM(J710),'Transactional Departments'!A:B,2,FALSE)","v":"Tift Campus Sum"},"17700001","18400","RARSXRF324414CV","A01","",""]
["17","324",null,null,"GACCP    RF DIGGING DATE KVIEN","2521RF324415","21300","12100","62002","17700001",{"$f":"VLOOKUP(TRIM(J711),'Transactional Departments'!A:B,2,FALSE)","v":"Tift Campus Sum"},"17700001","18400","RGPNTRF324415CV","A01","",""]
["17","324",null,null,"USDA ARS RF ACQ GOODS    WEST ","2521RF324416","21300","12100","61004","17700001",{"$f":"VLOOKUP(TRIM(J712),'Transactional Departments'!A:B,2,FALSE)","v":"Tift Campus Sum"},"17700001","18400","RARSXRF324416CV","A01","",""]
["17","324",null,null,"USDA ARS RF ACQ GOODS    WEST ","2521RF324417","21300","12100","61004","17700001",{"$f":"VLOOKUP(TRIM(J713),'Transactional Departments'!A:B,2,FALSE)","v":"Tift Campus Sum"},"17700001","18400","RARSXRF324417CV","A01","",""]
["17","324",null,null,"USDA ARS RF ACQ GOODS    WEST ","2521RF324418","21300","12100","61004","17700001",{"$f":"VLOOKUP(TRIM(J714),'Transactional Departments'!A:B,2,FALSE)","v":"Tift Campus Sum"},"17700001","18400","RARSXRF324418CV","A01","",""]
["17","324",null,null,"USDA ARS RF ACQUI GOODS  WEST ","2521RF324420","21300","12100","61004","17700001",{"$f":"VLOOKUP(TRIM(J715),'Transactional Departments'!A:B,2,FALSE)","v":"Tift Campus Sum"},"17700001","18400","RARSXRF324420CV","A01","",""]
["17","324",null,null,"PEANUT   RF GENE EXPRESS OZIAS","2521RF324421","21300","12100","64389","17700001",{"$f":"VLOOKUP(TRIM(J716),'Transactional Departments'!A:B,2,FALSE)","v":"Tift Campus Sum"},"17700001","18400","RPEANRF324421CV","A01","",""]
["17","324",null,null,"PEANUT   RF LATE LEAF    OZIAS","2521RF324422","21300","12100","64389","17700001",{"$f":"VLOOKUP(TRIM(J717),'Transactional Departments'!A:B,2,FALSE)","v":"Tift Campus Sum"},"17700001","18400","RPEANRF324422CV","A01","",""]
["17","324",null,null,"GCCP/NPB RF PEANUT LINES KVIEN","2521RF324423","21300","12100","62002","17700001",{"$f":"VLOOKUP(TRIM(J718),'Transactional Departments'!A:B,2,FALSE)","v":"Tift Campus Sum"},"17700001","18400","RGPNTRF324423CV","A01","",""]
["17","324",null,null,"GCCP     RF HULL SCRAPE  KVIEN","2521RF324424","21300","12100","62002","17700001",{"$f":"VLOOKUP(TRIM(J719),'Transactional Departments'!A:B,2,FALSE)","v":"Tift Campus Sum"},"17700001","18400","RGPNTRF324424CV","A01","",""]
["17","324",null,null,"GCCP     RF GERMPLASM    KVIEN","2521RF324425","21300","12100","62002","17700001",{"$f":"VLOOKUP(TRIM(J720),'Transactional Departments'!A:B,2,FALSE)","v":"Tift Campus Sum"},"17700001","18400","RGPNTRF324425CV","A01","",""]
["17","324",null,null,"PEANUT   RF 2ND GEN PEANUOZIAS","2521RF324427","21300","12100","64389","17700001",{"$f":"VLOOKUP(TRIM(J721),'Transactional Departments'!A:B,2,FALSE)","v":"Tift Campus Sum"},"17700001","18400","RPEANRF324427CV","A01","",""]
["17","324",null,null,"         VARIOUS         OZIAS","2521RF324428","21300","12100","64206","17272000",{"$f":"VLOOKUP(TRIM(J722),'Transactional Departments'!A:B,2,FALSE)","v":"Ozias-Akins, Peggy"},"17272000","18003","SVARIRF324428CV","A01","",""]
["17","324",null,null,"USDA ARS RF ACQ GOODS    WEST ","2521RF324429","21300","12100","61004","17700001",{"$f":"VLOOKUP(TRIM(J723),'Transactional Departments'!A:B,2,FALSE)","v":"Tift Campus Sum"},"17700001","18400","RARSXRF324429CV","A01","",""]
["17","324",null,null,"USDA ARS RF ACQ GOODS    WEST ","2521RF324430","21300","12100","61004","17700001",{"$f":"VLOOKUP(TRIM(J724),'Transactional Departments'!A:B,2,FALSE)","v":"Tift Campus Sum"},"17700001","18400","RARSXRF324430CV","A01","",""]
["17","324",null,null,"USDA ARS RF              WEST ","2521RF324431","21300","12100","61004","17700001",{"$f":"VLOOKUP(TRIM(J725),'Transactional Departments'!A:B,2,FALSE)","v":"Tift Campus Sum"},"17700001","18400","RARSXRF324431CV","A01","",""]
["17","324",null,null,"USDA ARS RF ACQ GOODS    WEST ","2521RF324432","21300","12100","61004","17700001",{"$f":"VLOOKUP(TRIM(J726),'Transactional Departments'!A:B,2,FALSE)","v":"Tift Campus Sum"},"17700001","18400","RARSXRF324432CV","A01","",""]
["17","324",null,null,"BARDF    RF CROP MATUR   OZIAS","2521RF324434","21300","12100","64461","17700001",{"$f":"VLOOKUP(TRIM(J727),'Transactional Departments'!A:B,2,FALSE)","v":"Tift Campus Sum"},"17700001","18400","RBIAFRF324434CV","A01","",""]
["17","324",null,null,"FEDERAL HATCH                 ","2526GF324001","21300","12100","61HAT","17700001",{"$f":"VLOOKUP(TRIM(J728),'Transactional Departments'!A:B,2,FALSE)","v":"Tift Campus Sum"},"17700001","18003","SNIFAXRGHATCH17","F17","RCP",""]
["17","328",null,null,"FRSW/USDARF LOW FLNT RVR VELLI","2521RF328003","21300","12100","64371","17240001",{"$f":"VLOOKUP(TRIM(J729),'Transactional Departments'!A:B,2,FALSE)","v":"CSS Sum"},"17240001","18400","RFRWCRF328003CV","A01","",""]
["17","328",null,null,"GACCC    RF HOLISTIC SMD VELLI","2521RF328005","21300","12100","62001","17240001",{"$f":"VLOOKUP(TRIM(J730),'Transactional Departments'!A:B,2,FALSE)","v":"CSS Sum"},"17240001","18400","RGCOTRF328005CV","A01","",""]
["17","328",null,null,"         VARIOUS         SNIDE","2521RF328017","21300","12100","64206","17242SNI",{"$f":"VLOOKUP(TRIM(J731),'Transactional Departments'!A:B,2,FALSE)","v":"Snider, John"},"17242SNI","18003","SVARIRF328017CV","A01","",""]
["17","328",null,null,"BASF     RF COTTON 2015  GREY ","2521RF328024","21300","12100","64002","17240001",{"$f":"VLOOKUP(TRIM(J732),'Transactional Departments'!A:B,2,FALSE)","v":"CSS Sum"},"17240001","18400","RBASFRF328024CV","A01","",""]
["17","328",null,null,"UCD/NIH  RF SPLASH CNTMN VELLI","2521RF328026","21300","12100","62562","17240001",{"$f":"VLOOKUP(TRIM(J733),'Transactional Departments'!A:B,2,FALSE)","v":"CSS Sum"},"17240001","18400","RUCADRF328026CV","A01","",""]
["17","328",null,null,"GACCP    RF HLSTC IRRIG  VELLI","2521RF328032","21300","12100","62002","17240001",{"$f":"VLOOKUP(TRIM(J734),'Transactional Departments'!A:B,2,FALSE)","v":"CSS Sum"},"17240001","18400","RGPNTRF328032CV","A01","",""]
["17","328",null,null,"UF/USDA  SMART IRRIGATIONVELLI","2521RF328033","21300","12100","62511","17240001",{"$f":"VLOOKUP(TRIM(J735),'Transactional Departments'!A:B,2,FALSE)","v":"CSS Sum"},"17240001","18003","SUFLXRF328033CV","A01","",""]
["17","328",null,null,"FLNT/USDARF LOW COST IRG VELLI","2521RF328035","21300","12100","64371","17240001",{"$f":"VLOOKUP(TRIM(J736),'Transactional Departments'!A:B,2,FALSE)","v":"CSS Sum"},"17240001","18400","RFRWCRF328035CV","A01","",""]
["17","328",null,null,"CI       RF SOIL SENSORS VELLI","2521RF328037","21300","12100","64355","17240001",{"$f":"VLOOKUP(TRIM(J737),'Transactional Departments'!A:B,2,FALSE)","v":"CSS Sum"},"17240001","18400","RCOTTRF328037CV","A01","",""]
["17","328",null,null,"COTN INC RF EXPAND IRRIG VELLI","2521RF328038","21300","12100","64355","17240001",{"$f":"VLOOKUP(TRIM(J738),'Transactional Departments'!A:B,2,FALSE)","v":"CSS Sum"},"17240001","18400","RCOTTRF328038CV","A01","",""]
["17","328",null,null,"CI       REMOTE SENSING  SNIDE","2521RF328039","21300","12100","64355","17240001",{"$f":"VLOOKUP(TRIM(J739),'Transactional Departments'!A:B,2,FALSE)","v":"CSS Sum"},"17240001","18003","SCOTTRF328039CV","A01","",""]
["17","328",null,null,"CI       TWO FIBER QTLS  CHEE ","2521RF328040","21300","12100","64355","17240001",{"$f":"VLOOKUP(TRIM(J740),'Transactional Departments'!A:B,2,FALSE)","v":"CSS Sum"},"17240001","18003","SCOTTRF328040CV","A01","",""]
["17","328",null,null,"UF/USDA  RF SMART PHONE  VELLI","2521RF328042","21300","12100","62511","17240001",{"$f":"VLOOKUP(TRIM(J741),'Transactional Departments'!A:B,2,FALSE)","v":"CSS Sum"},"17240001","18400","RUFLXRF328042CV","A01","",""]
["17","328",null,null,"NPB      RF NUTSEDGE TUBERS GR","2521RF328051","21300","12100","64000","17240001",{"$f":"VLOOKUP(TRIM(J742),'Transactional Departments'!A:B,2,FALSE)","v":"CSS Sum"},"17240001","18400","RNNPBRF328051CV","A01","",""]
["17","328",null,null,"GACCC    RF HOL IRRG SCH VELLI","2521RF328053","21300","12100","62001","17240001",{"$f":"VLOOKUP(TRIM(J743),'Transactional Departments'!A:B,2,FALSE)","v":"CSS Sum"},"17240001","18400","RGCOTRF328053CV","A01","",""]
["17","328",null,null,"GACCP    RF MATURITY DET TUBBS","2521RF328055","21300","12100","62002","17240001",{"$f":"VLOOKUP(TRIM(J744),'Transactional Departments'!A:B,2,FALSE)","v":"CSS Sum"},"17240001","18400","RGPNTRF328055CV","A01","",""]
["17","328",null,null,"GACCP    RF CROP & AGRO  TUBBS","2521RF328056","21300","12100","62002","17240001",{"$f":"VLOOKUP(TRIM(J745),'Transactional Departments'!A:B,2,FALSE)","v":"CSS Sum"},"17240001","18400","RGPNTRF328056CV","A01","",""]
["17","328",null,null,"CI       RF CROP STRESS  PORTE","2521RF328065","21300","12100","64355","17240001",{"$f":"VLOOKUP(TRIM(J746),'Transactional Departments'!A:B,2,FALSE)","v":"CSS Sum"},"17240001","18400","RCOTTRF328065CV","A01","",""]
["17","328",null,null,"ACC      RF IRRIGATION   PORTE","2521RF328066","21300","12100","62500","17240001",{"$f":"VLOOKUP(TRIM(J747),'Transactional Departments'!A:B,2,FALSE)","v":"CSS Sum"},"17240001","18400","RXXXXRF328066CV","A01","",""]
["17","328",null,null,"CI          TWO FIBER QTLCHEE ","2521RF328067","21300","12100","64355","17240001",{"$f":"VLOOKUP(TRIM(J748),'Transactional Departments'!A:B,2,FALSE)","v":"CSS Sum"},"17240001","18003","SCOTTRF328067CV","A01","",""]
["17","328",null,null,"CI       SOIL SENSORS    VELLI","2521RF328068","21300","12100","64355","17240001",{"$f":"VLOOKUP(TRIM(J749),'Transactional Departments'!A:B,2,FALSE)","v":"CSS Sum"},"17240001","18003","SCOTTRF328068CV","A01","",""]
["17","328",null,null,"CDC      RF PRODUCE SAFT VELLI","2521RF328080","21300","12100","61031","17240001",{"$f":"VLOOKUP(TRIM(J750),'Transactional Departments'!A:B,2,FALSE)","v":"CSS Sum"},"17240001","18400","RCDCXRF328080CV","A01","",""]
["17","328",null,null,"CI       ROOT-KNOT NEMA  CHEE ","2521RF328081","21300","12100","64355","17240001",{"$f":"VLOOKUP(TRIM(J751),'Transactional Departments'!A:B,2,FALSE)","v":"CSS Sum"},"17240001","18003","SCOTTRF328081CV","A01","",""]
["17","328",null,null,"GACCC    RF S-P-D RATES  SNIDE","2521RF328082","21300","12100","62001","17240001",{"$f":"VLOOKUP(TRIM(J752),'Transactional Departments'!A:B,2,FALSE)","v":"CSS Sum"},"17240001","18400","RGCOTRF328082CV","A01","",""]
["17","328",null,null,"CI       ROOT-KNOT NEMAT CHEE ","2521RF328083","21300","12100","64355","17240001",{"$f":"VLOOKUP(TRIM(J753),'Transactional Departments'!A:B,2,FALSE)","v":"CSS Sum"},"17240001","18003","SCOTTRF328083CV","A01","",""]
["17","328",null,null,"UFL/USDA RF SE SESAME PORPORTE","2521RF328090","21300","12100","62511","17240001",{"$f":"VLOOKUP(TRIM(J754),'Transactional Departments'!A:B,2,FALSE)","v":"CSS Sum"},"17240001","18400","RUFLXRF328090CV","A01","",""]
["17","328",null,null,"GCCC     RF IRRIGATION   PORTE","2521RF328091","21300","12100","62047","17240001",{"$f":"VLOOKUP(TRIM(J755),'Transactional Departments'!A:B,2,FALSE)","v":"CSS Sum"},"17240001","18400","RGCRNRF328091CV","A01","",""]
["17","328",null,null,"GCCP     RF IRRIGATION   PORTE","2521RF328093","21300","12100","62002","17240001",{"$f":"VLOOKUP(TRIM(J756),'Transactional Departments'!A:B,2,FALSE)","v":"CSS Sum"},"17240001","18400","RGPNTRF328093CV","A01","",""]
["17","328",null,null,"NAS      RF NOVOZYMES    TUBBS","2521RF328097","21300","12100","64000","17240001",{"$f":"VLOOKUP(TRIM(J757),'Transactional Departments'!A:B,2,FALSE)","v":"CSS Sum"},"17240001","18400","RNNAARF328097CV","A01","",""]
["17","328",null,null,"GCCP     RF TWN ROW PNUT TUBBS","2521RF328099","21300","12100","62002","17240001",{"$f":"VLOOKUP(TRIM(J758),'Transactional Departments'!A:B,2,FALSE)","v":"CSS Sum"},"17240001","18400","RGPNTRF328099CV","A01","",""]
["17","328",null,null,"DOE/SDSU RF FEEDSTOCK    HANNA","2521RF328101","21300","12100","62555","17240001",{"$f":"VLOOKUP(TRIM(J759),'Transactional Departments'!A:B,2,FALSE)","v":"CSS Sum"},"17240001","18400","RSDSURF328101CV","A01","",""]
["17","328",null,null,"GCCP     2015 NUTSEDGE   GREY ","2521RF328102","21300","12100","62002","17240001",{"$f":"VLOOKUP(TRIM(J760),'Transactional Departments'!A:B,2,FALSE)","v":"CSS Sum"},"17240001","18003","SGPNTRF328102CV","A01","",""]
["17","328",null,null,"         IRRIGATION      SNIDE","2521RF328103","21300","12100","64007","17240001",{"$f":"VLOOKUP(TRIM(J761),'Transactional Departments'!A:B,2,FALSE)","v":"CSS Sum"},"17240001","18003","SMONSRF328103CV","A01","",""]
["17","328",null,null,"GDA/USDA RF SMARTPHON AP VELLI","2521RF328106","21300","12100","62010","17240001",{"$f":"VLOOKUP(TRIM(J762),'Transactional Departments'!A:B,2,FALSE)","v":"CSS Sum"},"17240001","18400","RGDAGRF328106CV","A01","",""]
["17","328",null,null,"GACCP/NPBRF ORGANIC      TUBBS","2521RF328107","21300","12100","62002","17240001",{"$f":"VLOOKUP(TRIM(J763),'Transactional Departments'!A:B,2,FALSE)","v":"CSS Sum"},"17240001","18400","RGPNTRF328107CV","A01","",""]
["17","328",null,null,"COTTON   RF 2 FIBER QTLS CHEE ","2521RF328108","21300","12100","64355","17240001",{"$f":"VLOOKUP(TRIM(J764),'Transactional Departments'!A:B,2,FALSE)","v":"CSS Sum"},"17240001","18400","RCOTTRF328108CV","A01","",""]
["17","328",null,null,"ABM      RF PEND 5/29-8/2TUBBS","2521RF328109","21300","12100","64000","17240001",{"$f":"VLOOKUP(TRIM(J765),'Transactional Departments'!A:B,2,FALSE)","v":"CSS Sum"},"17240001","18400","RADBIRF328109CV","A01","",""]
["17","328",null,null,"COTTON   RF    ROOT KNOT CHEE ","2521RF328110","21300","12100","64355","17240001",{"$f":"VLOOKUP(TRIM(J766),'Transactional Departments'!A:B,2,FALSE)","v":"CSS Sum"},"17240001","18400","RCOTTRF328110CV","A01","",""]
["17","328",null,null,"COTTON   RF    ROOT KNOT CHEE ","2521RF328111","21300","12100","64355","17240001",{"$f":"VLOOKUP(TRIM(J767),'Transactional Departments'!A:B,2,FALSE)","v":"CSS Sum"},"17240001","18400","RCOTTRF328111CV","A01","",""]
["17","328",null,null,"BCS      RF PRODUCT DEV  CHEE ","2521RF328112","21300","12100","64465","17240001",{"$f":"VLOOKUP(TRIM(J768),'Transactional Departments'!A:B,2,FALSE)","v":"CSS Sum"},"17240001","18400","RBAYERF328112CV","A01","",""]
["17","328",null,null,"USDA     RF PITFALLS     GREY ","2521RF328113","21300","12100","61004","17240001",{"$f":"VLOOKUP(TRIM(J769),'Transactional Departments'!A:B,2,FALSE)","v":"CSS Sum"},"17240001","18400","RARSXRF328113CV","A01","",""]
["17","328",null,null,"GACCC    RF HIGH INPUT CORN   ","2521RF328115","21300","12100","62047","17240001",{"$f":"VLOOKUP(TRIM(J770),'Transactional Departments'!A:B,2,FALSE)","v":"CSS Sum"},"17240001","18400","RGCRNRF328115CV","A01","",""]
["17","328",null,null,"COTTON   RF IRRIGATION APVELLI","2521RF328116","21300","12100","64355","17240001",{"$f":"VLOOKUP(TRIM(J771),'Transactional Departments'!A:B,2,FALSE)","v":"CSS Sum"},"17240001","18400","RCOTTRF328116CV","A01","",""]
["17","328",null,null,"GACCP/NPBRF PARAQUAT     TUBBS","2521RF328118","21300","12100","62002","17240001",{"$f":"VLOOKUP(TRIM(J772),'Transactional Departments'!A:B,2,FALSE)","v":"CSS Sum"},"17240001","18400","RGPNTRF328118CV","A01","",""]
["17","328",null,null,"GACCP/NPBRF W/ RF328118  GREY ","2521RF328119","21300","12100","62002","17240001",{"$f":"VLOOKUP(TRIM(J773),'Transactional Departments'!A:B,2,FALSE)","v":"CSS Sum"},"17240001","18400","RGPNTRF328119CV","A01","",""]
["17","328",null,null,"UFL/USDA RF WARM GRASS   SCHWA","2521RF328120","21300","12100","62511","17240001",{"$f":"VLOOKUP(TRIM(J774),'Transactional Departments'!A:B,2,FALSE)","v":"CSS Sum"},"17240001","18400","RUFLXRF328120CV","A01","",""]
["17","328",null,null,"GACCP    RF TILLAGE      PORTE","2521RF328122","21300","12100","62002","17240001",{"$f":"VLOOKUP(TRIM(J775),'Transactional Departments'!A:B,2,FALSE)","v":"CSS Sum"},"17240001","18400","RGPNTRF328122CV","A01","",""]
["17","328",null,null,"GACC PNT RF SOIL MOISTUREVELLI","2521RF328123","21300","12100","62002","17240001",{"$f":"VLOOKUP(TRIM(J776),'Transactional Departments'!A:B,2,FALSE)","v":"CSS Sum"},"17240001","18400","RGPNTRF328123CV","A01","",""]
["17","328",null,null,"GACCP    RF OPTI YEILD   VELLI","2521RF328125","21300","12100","62002","17240001",{"$f":"VLOOKUP(TRIM(J777),'Transactional Departments'!A:B,2,FALSE)","v":"CSS Sum"},"17240001","18400","RGPNTRF328125CV","A01","",""]
["17","328",null,null,"GACCP/NPBINV W/671-840 TUBBS  ","2521RF328126","21300","12100","62002","17240001",{"$f":"VLOOKUP(TRIM(J778),'Transactional Departments'!A:B,2,FALSE)","v":"CSS Sum"},"17240001","18003","SGPNTRF328126CV","A01","",""]
["17","328",null,null,"GACCP/NPBW/671-840 PORTERMONFO","2521RF328127","21300","12100","62002","17240001",{"$f":"VLOOKUP(TRIM(J779),'Transactional Departments'!A:B,2,FALSE)","v":"CSS Sum"},"17240001","18003","SGPNTRF328127CV","A01","",""]
["17","328",null,null,"GACC SOYBRF IRRIG MGMNT  VELLI","2521RF328128","21300","12100","62004","17240001",{"$f":"VLOOKUP(TRIM(J780),'Transactional Departments'!A:B,2,FALSE)","v":"CSS Sum"},"17240001","18400","RGSOYRF328128CV","A01","",""]
["17","328",null,null,"GACCC    RF HOLISTIC SOLNVELLI","2521RF328129","21300","12100","62001","17240001",{"$f":"VLOOKUP(TRIM(J781),'Transactional Departments'!A:B,2,FALSE)","v":"CSS Sum"},"17240001","18400","RGCOTRF328129CV","A01","",""]
["17","328",null,null,"GACC COTNRF ADAPT GPLASM CHEE ","2521RF328130","21300","12100","62001","17240001",{"$f":"VLOOKUP(TRIM(J782),'Transactional Departments'!A:B,2,FALSE)","v":"CSS Sum"},"17240001","18400","RGCOTRF328130CV","A01","",""]
["17","328",null,null,"COTN INC RF RT KNOT NEM  CHEE ","2521RF328131","21300","12100","64355","17240001",{"$f":"VLOOKUP(TRIM(J783),'Transactional Departments'!A:B,2,FALSE)","v":"CSS Sum"},"17240001","18400","RCOTTRF328131CV","A01","",""]
["17","328",null,null,"FRSC/GAEPRF OPTIM IRRIG  VELLI","2521RF328134","21300","12100","64371","17240001",{"$f":"VLOOKUP(TRIM(J784),'Transactional Departments'!A:B,2,FALSE)","v":"CSS Sum"},"17240001","18400","RFRWCRF328134CV","A01","",""]
["17","328",null,null,"GACCP/NPBRF 2016 NUTSEDGEGREY ","2521RF328135","21300","12100","62002","17240001",{"$f":"VLOOKUP(TRIM(J785),'Transactional Departments'!A:B,2,FALSE)","v":"CSS Sum"},"17240001","18400","RGPNTRF328135CV","A01","",""]
["17","328",null,null,"GACCP/NPBRF W/328-135    TUBBS","2521RF328137","21300","12100","62002","17240001",{"$f":"VLOOKUP(TRIM(J786),'Transactional Departments'!A:B,2,FALSE)","v":"CSS Sum"},"17240001","18400","RGPNTRF328137CV","A01","",""]
["17","328",null,null,"GACCP/NPBRF IRRIG SCHEDL PORTE","2521RF328138","21300","12100","62002","17240001",{"$f":"VLOOKUP(TRIM(J787),'Transactional Departments'!A:B,2,FALSE)","v":"CSS Sum"},"17240001","18400","RGPNTRF328138CV","A01","",""]
["17","328",null,null,"SCCB     RF LOWCOST IRRIGPORTE","2521RF328139","21300","12100","62579","17240001",{"$f":"VLOOKUP(TRIM(J788),'Transactional Departments'!A:B,2,FALSE)","v":"CSS Sum"},"17240001","18400","RSCSBRF328139CV","A01","",""]
["17","328",null,null,"U KYRF   RF IRRIG MGMNT  VELLI","2521RF328144","21300","12100","64405","17240001",{"$f":"VLOOKUP(TRIM(J789),'Transactional Departments'!A:B,2,FALSE)","v":"CSS Sum"},"17240001","18400","RUNOFRF328144CV","A01","",""]
["17","328",null,null,"GACC COTNRF BASE COTTON  PORTE","2521RF328145","21300","12100","62001","17240001",{"$f":"VLOOKUP(TRIM(J790),'Transactional Departments'!A:B,2,FALSE)","v":"CSS Sum"},"17240001","18400","RGCOTRF328145CV","A01","",""]
["17","328",null,null,"GACC C   RF HOLISTIC     VELLI","2521RF328146","21300","12100","62001","17240001",{"$f":"VLOOKUP(TRIM(J791),'Transactional Departments'!A:B,2,FALSE)","v":"CSS Sum"},"17240001","18400","RGCOTRF328146CV","A01","",""]
["17","328",null,null,"COTN INC RF RT KNT MAP 2 CHEE ","2521RF328147","21300","12100","64355","17240001",{"$f":"VLOOKUP(TRIM(J792),'Transactional Departments'!A:B,2,FALSE)","v":"CSS Sum"},"17240001","18400","RCOTTRF328147CV","A01","",""]
["17","328",null,null,"COTN INC RF TARGET SPOT  CHEE ","2521RF328148","21300","12100","64355","17240001",{"$f":"VLOOKUP(TRIM(J793),'Transactional Departments'!A:B,2,FALSE)","v":"CSS Sum"},"17240001","18400","RCOTTRF328148CV","A01","",""]
["17","328",null,null,"GACC SOY RF IRRIG MGT 17 VELLI","2521RF328149","21300","12100","62004","17240001",{"$f":"VLOOKUP(TRIM(J794),'Transactional Departments'!A:B,2,FALSE)","v":"CSS Sum"},"17240001","18400","RGSOYRF328149CV","A01","",""]
["17","328",null,null,"GACC COTNRF INVID COMPS  PORTE","2521RF328150","21300","12100","62001","17240001",{"$f":"VLOOKUP(TRIM(J795),'Transactional Departments'!A:B,2,FALSE)","v":"CSS Sum"},"17240001","18400","RGCOTRF328150CV","A01","",""]
["17","328",null,null,"COTN INC RF CRITICAL RDT SNIDE","2521RF328151","21300","12100","64355","17240001",{"$f":"VLOOKUP(TRIM(J796),'Transactional Departments'!A:B,2,FALSE)","v":"CSS Sum"},"17240001","18400","RCOTTRF328151CV","A01","",""]
["17","328",null,null,"MONSANTO RF 201701A008   SNIDE","2521RF328152","21300","12100","64007","17240001",{"$f":"VLOOKUP(TRIM(J797),'Transactional Departments'!A:B,2,FALSE)","v":"CSS Sum"},"17240001","18400","RMONSRF328152CV","A01","",""]
["17","328",null,null,"GACC PCANRF CLOVER YR 1  GREY ","2521RF328153","21300","12100","62045","17240001",{"$f":"VLOOKUP(TRIM(J798),'Transactional Departments'!A:B,2,FALSE)","v":"CSS Sum"},"17240001","18400","RGPCNRF328153CV","A01","",""]
["17","328",null,null,"GACC PCANRF WINTER WEEDS GREY ","2521RF328154","21300","12100","62045","17240001",{"$f":"VLOOKUP(TRIM(J799),'Transactional Departments'!A:B,2,FALSE)","v":"CSS Sum"},"17240001","18400","RGPCNRF328154CV","A01","",""]
["17","328",null,null,"KOCH     RF STOMATAL     SNIDE","2521RF328155","21300","12100","64079","17240001",{"$f":"VLOOKUP(TRIM(J800),'Transactional Departments'!A:B,2,FALSE)","v":"CSS Sum"},"17240001","18400","RKBIORF328155CV","A01","",""]
["17","328",null,null,"DOW AGRO RF RF2521RF32815CULPE","2521RF328156","21300","12100","64037","17240001",{"$f":"VLOOKUP(TRIM(J801),'Transactional Departments'!A:B,2,FALSE)","v":"CSS Sum"},"17240001","18400","RDAGRRF328156CV","A01","",""]
["17","328",null,null,"GACCP    RF DROUGHT TOL  PILON","2521RF328157","21300","12100","62002","17240001",{"$f":"VLOOKUP(TRIM(J802),'Transactional Departments'!A:B,2,FALSE)","v":"CSS Sum"},"17240001","18400","RGPNTRF328157CV","A01","",""]
["17","328",null,null,"MONSANTO RF SO # 81      CULPE","2521RF328158","21300","12100","64007","17240001",{"$f":"VLOOKUP(TRIM(J803),'Transactional Departments'!A:B,2,FALSE)","v":"CSS Sum"},"17240001","18400","RMONSRF328158CV","A01","",""]
["17","328",null,null,"GACCP    RF IRRIG TIMING PORTE","2521RF328159","21300","12100","62002","17240001",{"$f":"VLOOKUP(TRIM(J804),'Transactional Departments'!A:B,2,FALSE)","v":"CSS Sum"},"17240001","18400","RGPNTRF328159CV","A01","",""]
["17","328",null,null,"GACCP    RF W/ 328-159   TUBBS","2521RF328160","21300","12100","62002","17240001",{"$f":"VLOOKUP(TRIM(J805),'Transactional Departments'!A:B,2,FALSE)","v":"CSS Sum"},"17240001","18400","RGPNTRF328160CV","A01","",""]
["17","328",null,null,"GACCP    RF PHYS RSP IRR PILON","2521RF328161","21300","12100","62002","17240001",{"$f":"VLOOKUP(TRIM(J806),'Transactional Departments'!A:B,2,FALSE)","v":"CSS Sum"},"17240001","18400","RGPNTRF328161CV","A01","",""]
["17","328",null,null,"GACCP    RF GA06G COMP   GREY ","2521RF328162","21300","12100","62002","17240001",{"$f":"VLOOKUP(TRIM(J807),'Transactional Departments'!A:B,2,FALSE)","v":"CSS Sum"},"17240001","18400","RGPNTRF328162CV","A01","",""]
["17","328",null,null,"GACCP    RF PROC ASSESS  PILON","2521RF328163","21300","12100","62002","17240001",{"$f":"VLOOKUP(TRIM(J808),'Transactional Departments'!A:B,2,FALSE)","v":"CSS Sum"},"17240001","18400","RGPNTRF328163CV","A01","",""]
["17","328",null,null,"GACCP    RF P'NUT EVAL   BRANC","2521RF328164","21300","12100","62002","17240001",{"$f":"VLOOKUP(TRIM(J809),'Transactional Departments'!A:B,2,FALSE)","v":"CSS Sum"},"17240001","18400","RGPNTRF328164CV","A01","",""]
["17","328",null,null,"MONSANTO RF SO #68       CULPE","2521RF328165","21300","12100","64007","17240001",{"$f":"VLOOKUP(TRIM(J810),'Transactional Departments'!A:B,2,FALSE)","v":"CSS Sum"},"17240001","18400","RMONSRF328165CV","A01","",""]
["17","328",null,null,"GACCP    RF SHANK SUBSOILTUBBS","2521RF328166","21300","12100","62002","17240001",{"$f":"VLOOKUP(TRIM(J811),'Transactional Departments'!A:B,2,FALSE)","v":"CSS Sum"},"17240001","18400","RGPNTRF328166CV","A01","",""]
["17","328",null,null,"GACCP/NPBRF WEED CONTROL TUBBS","2521RF328167","21300","12100","62002","17240001",{"$f":"VLOOKUP(TRIM(J812),'Transactional Departments'!A:B,2,FALSE)","v":"CSS Sum"},"17240001","18400","RGPNTRF328167CV","A01","",""]
["17","328",null,null,"GACCP/NPBRF W/328-167     GREY","2521RF328168","21300","12100","62002","17240001",{"$f":"VLOOKUP(TRIM(J813),'Transactional Departments'!A:B,2,FALSE)","v":"CSS Sum"},"17240001","18400","RGPNTRF328168CV","A01","",""]
["17","328",null,null,"GACCP/NPBRF AGRON MGMT   TUBBS","2521RF328169","21300","12100","62002","17240001",{"$f":"VLOOKUP(TRIM(J814),'Transactional Departments'!A:B,2,FALSE)","v":"CSS Sum"},"17240001","18400","RGPNTRF328169CV","A01","",""]
["17","328",null,null,"MONSANTO RF SO#83 2      CULPE","2521RF328170","21300","12100","64007","17240001",{"$f":"VLOOKUP(TRIM(J815),'Transactional Departments'!A:B,2,FALSE)","v":"CSS Sum"},"17240001","18400","RMONSRF328170CV","A01","",""]
["17","328",null,null,"GACCP/NPBRF INNVOV IRRIG PORTE","2521RF328171","21300","12100","62002","17240001",{"$f":"VLOOKUP(TRIM(J816),'Transactional Departments'!A:B,2,FALSE)","v":"CSS Sum"},"17240001","18400","RGPNTRF328171CV","A01","",""]
["17","328",null,null,"GACCP/NPBRF W328-173     TUBBS","2521RF328174","21300","12100","62002","17240001",{"$f":"VLOOKUP(TRIM(J817),'Transactional Departments'!A:B,2,FALSE)","v":"CSS Sum"},"17240001","18400","RGPNTRF328174CV","A01","",""]
["17","328",null,null,"MONSANTO RF S O # 84     TUBBS","2521RF328175","21300","12100","64007","17240001",{"$f":"VLOOKUP(TRIM(J818),'Transactional Departments'!A:B,2,FALSE)","v":"CSS Sum"},"17240001","18400","RMONSRF328175CV","A01","",""]
["17","328",null,null,"GACCP    RF HOLIST SOLN  VELLI","2521RF328176","21300","12100","62002","17240001",{"$f":"VLOOKUP(TRIM(J819),'Transactional Departments'!A:B,2,FALSE)","v":"CSS Sum"},"17240001","18400","RGPNTRF328176CV","A01","",""]
["17","328",null,null,"QSSB     RF IRRIG TOOL   PORTE","2521RF328177","21300","12100","62579","17240001",{"$f":"VLOOKUP(TRIM(J820),'Transactional Departments'!A:B,2,FALSE)","v":"CSS Sum"},"17240001","18400","RSCSBRF328177CV","A01","",""]
["17","328",null,null,"GCCP/NPB RF NOVEL SEED I GREY ","2521RF328178","21300","12100","62002","17240001",{"$f":"VLOOKUP(TRIM(J821),'Transactional Departments'!A:B,2,FALSE)","v":"CSS Sum"},"17240001","18400","RGPNTRF328178CV","A01","",""]
["17","328",null,null,"GACC     RF OPTICAL      VELLI","2521RF328179","21300","12100","62002","17240001",{"$f":"VLOOKUP(TRIM(J822),'Transactional Departments'!A:B,2,FALSE)","v":"CSS Sum"},"17240001","18400","RGPNTRF328179CV","A01","",""]
["17","328",null,null,"COTT INC RF RENEWAL 5    WHITA","2521RF328180","21300","12100","64355","17240001",{"$f":"VLOOKUP(TRIM(J823),'Transactional Departments'!A:B,2,FALSE)","v":"CSS Sum"},"17240001","18400","RCOTTRF328180CV","A01","",""]
["17","328",null,null,"BARD     RF REMOTE SENSINSNIDE","2521RF328181","21300","12100","64461","17240001",{"$f":"VLOOKUP(TRIM(J824),'Transactional Departments'!A:B,2,FALSE)","v":"CSS Sum"},"17240001","18400","RBIAFRF328181CV","A01","",""]
["17","328",null,null,"UF/USDA  RF RR272-705 VELLIDIS","2521RF328183","21300","12100","62511","17240001",{"$f":"VLOOKUP(TRIM(J825),'Transactional Departments'!A:B,2,FALSE)","v":"CSS Sum"},"17240001","18400","RUFLXRF328183CV","A01","",""]
["17","328",null,null,"USDA     RF RR272-724    DWIVE","2521RF328184","21300","12100","61004","17240001",{"$f":"VLOOKUP(TRIM(J826),'Transactional Departments'!A:B,2,FALSE)","v":"CSS Sum"},"17240001","18400","RARSXRF328184CV","A01","",""]
["17","328",null,null,"INDIGO AGRF WO 17-01     SNIDE","2521RF328186","21300","12100","64000","17240001",{"$f":"VLOOKUP(TRIM(J827),'Transactional Departments'!A:B,2,FALSE)","v":"CSS Sum"},"17240001","18400","RINAIRF328186CV","A01","",""]
["17","328",null,null,"COTTON INRF COEFF CURVE  PORTE","2521RF328191","21300","12100","64355","17240001",{"$f":"VLOOKUP(TRIM(J828),'Transactional Departments'!A:B,2,FALSE)","v":"CSS Sum"},"17240001","18400","RCOTTRF328191CV","A01","",""]
["17","328",null,null,"         VARIOUS   GREY  GREY ","2521RF328280","21300","12100","64206","17242GRE",{"$f":"VLOOKUP(TRIM(J829),'Transactional Departments'!A:B,2,FALSE)","v":"Greym Tim"},"17242GRE","18003","SVARIRF328280CV","A01","",""]
["17","328",null,null,"GACC PNUTRF PEANUT EVAL  BRANC","2521RF328323","21300","12100","62002","17240001",{"$f":"VLOOKUP(TRIM(J830),'Transactional Departments'!A:B,2,FALSE)","v":"CSS Sum"},"17240001","18400","RGPNTRF328323CV","A01","",""]
["17","328",null,null,"MONSANTO RF RF_SEEDLING VSNIDE","2521RF328417","21300","12100","64007","17240001",{"$f":"VLOOKUP(TRIM(J831),'Transactional Departments'!A:B,2,FALSE)","v":"CSS Sum"},"17240001","18400","RMONSRF328417CV","A01","",""]
["17","328",null,null,"         VARIOUS BRANCH       ","2521RF328418","21300","12100","64206","17242BRA",{"$f":"VLOOKUP(TRIM(J832),'Transactional Departments'!A:B,2,FALSE)","v":"Branch, Bill"},"17242BRA","18003","SVARIRF328418CV","A01","",""]
["17","328",null,null,"GACCP    RF SEED TESTS   GREY ","2521RF328461","21300","12100","62002","17240001",{"$f":"VLOOKUP(TRIM(J833),'Transactional Departments'!A:B,2,FALSE)","v":"CSS Sum"},"17240001","18400","RGPNTRF328461CV","A01","",""]
["17","328",null,null,"         VARIOUS HARRIS  HARRI","2521RF328516","21300","12100","64206","17242HAR",{"$f":"VLOOKUP(TRIM(J834),'Transactional Departments'!A:B,2,FALSE)","v":"Harris, Glen"},"17242HAR","18003","SVARIRF328516CV","A01","",""]
["17","328",null,null,"         VARIOUS GIFTS   CHEE ","2521RF328637","21300","12100","64206","17242CHE",{"$f":"VLOOKUP(TRIM(J835),'Transactional Departments'!A:B,2,FALSE)","v":"Chee, Peng Wah"},"17242CHE","18003","SVARIRF328637CV","A01","",""]
["17","328",null,null,"GACCP    RF HERB EFFECT  GREY ","2521RF328693","21300","12100","62002","17240001",{"$f":"VLOOKUP(TRIM(J836),'Transactional Departments'!A:B,2,FALSE)","v":"CSS Sum"},"17240001","18400","RGPNTRF328693CV","A01","",""]
["17","328",null,null,"GACCP/NPBRF NOVEL SEED TMGREY ","2521RF328708","21300","12100","62002","17240001",{"$f":"VLOOKUP(TRIM(J837),'Transactional Departments'!A:B,2,FALSE)","v":"CSS Sum"},"17240001","18400","RGPNTRF328708CV","A01","",""]
["17","328",null,null,"         VARIOUS SWVTP   DAY  ","2521RF328720","21300","12100","64206","17240001",{"$f":"VLOOKUP(TRIM(J838),'Transactional Departments'!A:B,2,FALSE)","v":"CSS Sum"},"17240001","18003","SVARIRF328720CV","A01","",""]
["17","328",null,null,"         VARIOUS RSCH    HANNA","2521RF328733","21300","12100","64206","17242WHA",{"$f":"VLOOKUP(TRIM(J839),'Transactional Departments'!A:B,2,FALSE)","v":"Hanna, Wayne"},"17242WHA","18003","SVARIRF328733CV","A01","",""]
["17","328",null,null,"MONSANTO RF SO # 69      CULPE","2521RF328772","21300","12100","64007","17240001",{"$f":"VLOOKUP(TRIM(J840),'Transactional Departments'!A:B,2,FALSE)","v":"CSS Sum"},"17240001","18400","RMONSRF328772CV","A01","",""]
["17","328",null,null,"GACCPECANRF RF_WEED MGMT GREY ","2521RF328773","21300","12100","62045","17240001",{"$f":"VLOOKUP(TRIM(J841),'Transactional Departments'!A:B,2,FALSE)","v":"CSS Sum"},"17240001","18400","RGPCNRF328773CV","A01","",""]
["17","328",null,null,"MONSANTO RF 201601AO08   SNIDE","2521RF328776","21300","12100","64007","17240001",{"$f":"VLOOKUP(TRIM(J842),'Transactional Departments'!A:B,2,FALSE)","v":"CSS Sum"},"17240001","18400","RMONSRF328776CV","A01","",""]
["17","328",null,null,"UC/HHS   RF RAW MANURE   VELLI","2521RF328777","21300","12100","62537","17240001",{"$f":"VLOOKUP(TRIM(J843),'Transactional Departments'!A:B,2,FALSE)","v":"CSS Sum"},"17240001","18400","RRUCARF328777CV","A01","",""]
["17","328",null,null,"         VARIOUS         PORTE","2521RF328778","21300","12100","64206","17242POR",{"$f":"VLOOKUP(TRIM(J844),'Transactional Departments'!A:B,2,FALSE)","v":"Porter, Wes"},"17242POR","18003","SVARIRF328778CV","A01","",""]
["17","328",null,null,"MONSANTO RF N613 SET 9   TUBBS","2521RF328779","21300","12100","64007","17240001",{"$f":"VLOOKUP(TRIM(J845),'Transactional Departments'!A:B,2,FALSE)","v":"CSS Sum"},"17240001","18400","RMONSRF328779CV","A01","",""]
["17","328",null,null,"VOC      RF DRY BULB     GREY ","2521RF328800","21300","12100","64327","17240001",{"$f":"VLOOKUP(TRIM(J846),'Transactional Departments'!A:B,2,FALSE)","v":"CSS Sum"},"17240001","18400","RVIOCRF328800CV","A01","",""]
["17","328",null,null,"DOE      RF RGNL BIO TRL HANNA","2521RF328813","21300","12100","62555","17240001",{"$f":"VLOOKUP(TRIM(J847),'Transactional Departments'!A:B,2,FALSE)","v":"CSS Sum"},"17240001","18400","RSDSURF328813CV","A01","",""]
["17","328",null,null,"         VARIOUS         SCHWA","2521RF328833","21300","12100","64206","17242SCW",{"$f":"VLOOKUP(TRIM(J848),'Transactional Departments'!A:B,2,FALSE)","v":"Schwartz, Brian"},"17242SCW","18003","SVARIRF328833CV","A01","",""]
["17","328",null,null,"SDSU/DOE RF W/RF328813   HANNA","2521RF328834","21300","12100","62555","17240001",{"$f":"VLOOKUP(TRIM(J849),'Transactional Departments'!A:B,2,FALSE)","v":"CSS Sum"},"17240001","18400","RSDSURF328834CV","A01","",""]
["17","328",null,null,"         VARIOUS         TUBBS","2521RF328855","21300","12100","64206","17242TUB",{"$f":"VLOOKUP(TRIM(J850),'Transactional Departments'!A:B,2,FALSE)","v":"Tubbs, Scott"},"17242TUB","18003","SVARIRF328855CV","A01","",""]
["17","328",null,null,"GACCC    RF STRP TLL CTN TUBBS","2521RF328871","21300","12100","62001","17240001",{"$f":"VLOOKUP(TRIM(J851),'Transactional Departments'!A:B,2,FALSE)","v":"CSS Sum"},"17240001","18400","RGCOTRF328871CV","A01","",""]
["17","328",null,null,"GACCP    RF RPLNT DECSNS TUBBS","2521RF328888","21300","12100","62002","17240001",{"$f":"VLOOKUP(TRIM(J852),'Transactional Departments'!A:B,2,FALSE)","v":"CSS Sum"},"17240001","18400","RGPNTRF328888CV","A01","",""]
["17","328",null,null,"COTTON   RF ROOTKNOT     CHEE ","2521RF328889","21300","12100","64355","17240001",{"$f":"VLOOKUP(TRIM(J853),'Transactional Departments'!A:B,2,FALSE)","v":"CSS Sum"},"17240001","18400","RCOTTRF328889CV","A01","",""]
["17","328",null,null,"ALA/USDA RF CANOLA CULTV GREY ","2521RF328891","21300","12100","62500","17240001",{"$f":"VLOOKUP(TRIM(J854),'Transactional Departments'!A:B,2,FALSE)","v":"CSS Sum"},"17240001","18400","RXXXXRF328891CV","A01","",""]
["17","328",null,null,"         VAR RSCH        VELLI","2521RF328899","21300","12100","64206","17242VED",{"$f":"VLOOKUP(TRIM(J855),'Transactional Departments'!A:B,2,FALSE)","v":"Vellidis, George"},"17242VED","18003","SVARIRF328899CV","A01","",""]
["17","328",null,null,"KOCH     RF RF_GRNHS COTTSNIDE","2521RF328901","21300","12100","64079","17240001",{"$f":"VLOOKUP(TRIM(J856),'Transactional Departments'!A:B,2,FALSE)","v":"CSS Sum"},"17240001","18400","RKBIORF328901CV","A01","",""]
["17","328",null,null,"GACC PNUTRF WITH RF332744CULBR","2521RF328902","21300","12100","62002","17240001",{"$f":"VLOOKUP(TRIM(J857),'Transactional Departments'!A:B,2,FALSE)","v":"CSS Sum"},"17240001","18400","RGPNTRF328902CV","A01","",""]
["17","328",null,null,"GACC COTTRF TENSI IRRIG  PORTE","2521RF328903","21300","12100","62001","17240001",{"$f":"VLOOKUP(TRIM(J858),'Transactional Departments'!A:B,2,FALSE)","v":"CSS Sum"},"17240001","18400","RGCOTRF328903CV","A01","",""]
["17","328",null,null,"GPC/NPB  RF W/ RF332711__TUBBS","2521RF328904","21300","12100","62002","17240001",{"$f":"VLOOKUP(TRIM(J859),'Transactional Departments'!A:B,2,FALSE)","v":"CSS Sum"},"17240001","18400","RGPNTRF328904CV","A01","",""]
["17","328",null,null,"CI       RF FIBER QUALITYCHEE ","2521RF328905","21300","12100","64355","17240001",{"$f":"VLOOKUP(TRIM(J860),'Transactional Departments'!A:B,2,FALSE)","v":"CSS Sum"},"17240001","18400","RCOTTRF328905CV","A01","",""]
["17","328",null,null,"CI       RF PLANTER PERF PORTE","2521RF328906","21300","12100","64355","17240001",{"$f":"VLOOKUP(TRIM(J861),'Transactional Departments'!A:B,2,FALSE)","v":"CSS Sum"},"17240001","18400","RCOTTRF328906CV","A01","",""]
["17","328",null,null,"GACC CORNRF RF_MANAGE NUTPORTE","2521RF328952","21300","12100","62047","17240001",{"$f":"VLOOKUP(TRIM(J862),'Transactional Departments'!A:B,2,FALSE)","v":"CSS Sum"},"17240001","18400","RGCRNRF328952CV","A01","",""]
["17","328",null,null,"GACC CORNRF RF_UPPER TIELPORTE","2521RF328953","21300","12100","62047","17240001",{"$f":"VLOOKUP(TRIM(J863),'Transactional Departments'!A:B,2,FALSE)","v":"CSS Sum"},"17240001","18400","RGCRNRF328953CV","A01","",""]
["17","328",null,null,"MONSANTO RF SEED VIGOR   SNIDE","2521RF328954","21300","12100","64007","17240001",{"$f":"VLOOKUP(TRIM(J864),'Transactional Departments'!A:B,2,FALSE)","v":"CSS Sum"},"17240001","18400","RMONSRF328954CV","A01","",""]
["17","328",null,null,"GACC     RF ROOT C11     CHEE ","2521RF328955","21300","12100","62001","17240001",{"$f":"VLOOKUP(TRIM(J865),'Transactional Departments'!A:B,2,FALSE)","v":"CSS Sum"},"17240001","18400","RGCOTRF328955CV","A01","",""]
["17","328",null,null,"DOW      RF PHYYIELD17   WHITA","2521RF328956","21300","12100","64037","17240001",{"$f":"VLOOKUP(TRIM(J866),'Transactional Departments'!A:B,2,FALSE)","v":"CSS Sum"},"17240001","18400","RDAGRRF328956CV","A01","",""]
["17","328",null,null,"FEDERAL HATCH                 ","2526GF328001","21300","12100","61HAT","17240001",{"$f":"VLOOKUP(TRIM(J867),'Transactional Departments'!A:B,2,FALSE)","v":"CSS Sum"},"17240001","18003","SNIFAXRGHATCH17","F17","RCP",""]
["17","328",null,null,"REGIONAL HATCH                ","2526GF328002","21300","12100","61MSH","17240001",{"$f":"VLOOKUP(TRIM(J868),'Transactional Departments'!A:B,2,FALSE)","v":"CSS Sum"},"17240001","18003","SNIFAXMSHATCH17","F17","RCP",""]
["17","328",null,null,"WATER LAB REGIONAL HATCH      ","2526GF328012","21300","12100","61MSH","17240001",{"$f":"VLOOKUP(TRIM(J869),'Transactional Departments'!A:B,2,FALSE)","v":"CSS Sum"},"17240001","18003","SNIFAXMSHATCH17","F17","RCP",""]
["17","328",null,null,"CSS FED HATCH BRANCH          ","2526GF328111","21300","12100","61HAT","17242BRA",{"$f":"VLOOKUP(TRIM(J870),'Transactional Departments'!A:B,2,FALSE)","v":"Branch, Bill"},"17242BRA","18003","SNIFAXRGHATCH17","F17","RCP",""]
["17","328",null,null,"CSS FED HATCH TUBBS           ","2526GF328131","21300","12100","61HAT","17242TUB",{"$f":"VLOOKUP(TRIM(J871),'Transactional Departments'!A:B,2,FALSE)","v":"Tubbs, Scott"},"17242TUB","18003","SNIFAXRGHATCH17","F17","RCP",""]
["17","329",null,null,"USDA     RF GRAZING      TUCKE","2521RF329006","21300","12100","61006","17230001",{"$f":"VLOOKUP(TRIM(J872),'Transactional Departments'!A:B,2,FALSE)","v":"ADS Sum"},"17230001","18400","RNIFARF329006CV","A01","",""]
["17","329",null,null,"         ANIMAL SCIENCE VARIOS","2521RF329012","21300","12100","64206","17230001",{"$f":"VLOOKUP(TRIM(J873),'Transactional Departments'!A:B,2,FALSE)","v":"ADS Sum"},"17230001","18003","SVARIRF329012CV","A01","",""]
["17","329",null,null,"         ADS VARIOUS     WEST ","2521RF329073","21300","12100","64206","17230001",{"$f":"VLOOKUP(TRIM(J874),'Transactional Departments'!A:B,2,FALSE)","v":"ADS Sum"},"17230001","18003","SVARIRF329073CV","A01","",""]
["17","329",null,null,"         ADS VARIOUS     BERNA","2521RF329080","21300","12100","64206","17231025",{"$f":"VLOOKUP(TRIM(J875),'Transactional Departments'!A:B,2,FALSE)","v":"Bernard, John"},"17231025","18003","SVARIRF329080CV","A01","",""]
["17","329",null,null,"         RF BREDNG LINES HILL ","2521RF329116","21300","12100","64000","17230001",{"$f":"VLOOKUP(TRIM(J876),'Transactional Departments'!A:B,2,FALSE)","v":"ADS Sum"},"17230001","18003","SXXXXRF329116CV","A01","",""]
["17","329",null,null,"         VARIOUS         TAO  ","2521RF329133","21300","12100","64206","17231600",{"$f":"VLOOKUP(TRIM(J877),'Transactional Departments'!A:B,2,FALSE)","v":"Tao, Sha"},"17231600","18003","SVARIRF329133CV","A01","",""]
["17","329",null,null,"         RF MAMMARY GLND TAO  ","2521RF329134","21300","12100","64056","17230001",{"$f":"VLOOKUP(TRIM(J878),'Transactional Departments'!A:B,2,FALSE)","v":"ADS Sum"},"17230001","18003","SZOETRF329134CV","A01","",""]
["17","329",null,null,"MSU      RF ALFALFA PERS TUCKE","2521RF329135","21300","12100","62529","17230001",{"$f":"VLOOKUP(TRIM(J879),'Transactional Departments'!A:B,2,FALSE)","v":"ADS Sum"},"17230001","18400","RMSSURF329135CV","A01","",""]
["17","329",null,null,"GCCB     RF BALEAGE FEED TUCKE","2521RF329214","21300","12100","62006","17230001",{"$f":"VLOOKUP(TRIM(J880),'Transactional Departments'!A:B,2,FALSE)","v":"ADS Sum"},"17230001","18400","RGABFRF329214CV","A01","",""]
["17","329",null,null,"FEDERAL HATCH                 ","2526GF329001","21300","12100","61HAT","17230001",{"$f":"VLOOKUP(TRIM(J881),'Transactional Departments'!A:B,2,FALSE)","v":"ADS Sum"},"17230001","18003","SNIFAXRGHATCH17","F17","RCP",""]
["17","330",null,null,"         ENTO VAR MCPHERSON   ","2521RF330149","21300","12100","64206","17250001",{"$f":"VLOOKUP(TRIM(J882),'Transactional Departments'!A:B,2,FALSE)","v":"Entomology Sum"},"17250001","18003","SVARIRF330149CV","A01","",""]
["17","330",null,null,"         ENTO VAR DUTCHER     ","2521RF330151","21300","12100","64206","17250001",{"$f":"VLOOKUP(TRIM(J883),'Transactional Departments'!A:B,2,FALSE)","v":"Entomology Sum"},"17250001","18003","SVARIRF330151CV","A01","",""]
["17","330",null,null,"         VARIOUS RILEY        ","2521RF330240","21300","12100","64206","17253230",{"$f":"VLOOKUP(TRIM(J884),'Transactional Departments'!A:B,2,FALSE)","v":"Riley"},"17253230","18003","SVARIRF330240CV","A01","",""]
["17","330",null,null,"         VAR RSCH GIFTS  TOEWS","2521RF330393","21300","12100","64206","17253340",{"$f":"VLOOKUP(TRIM(J885),'Transactional Departments'!A:B,2,FALSE)","v":"Toews"},"17253340","18003","SVARIRF330393CV","A01","",""]
["17","330",null,null,"         VAR ENTO        SRINI","2521RF330428","21300","12100","64206","17253300",{"$f":"VLOOKUP(TRIM(J886),'Transactional Departments'!A:B,2,FALSE)","v":"Srinivasan"},"17253300","18003","SVARIRF330428CV","A01","",""]
["17","330",null,null,"GACCC    RF NAT ENEM STNKRUBER","2521RF330462","21300","12100","62001","17250001",{"$f":"VLOOKUP(TRIM(J887),'Transactional Departments'!A:B,2,FALSE)","v":"Entomology Sum"},"17250001","18400","RGCOTRF330462CV","A01","",""]
["17","330",null,null,"CI       RF THRIPS SEED  TOEWS","2521RF330476","21300","12100","64355","17250001",{"$f":"VLOOKUP(TRIM(J888),'Transactional Departments'!A:B,2,FALSE)","v":"Entomology Sum"},"17250001","18400","RCOTTRF330476CV","A01","",""]
["17","330",null,null,"         VARIOUS         ABNEY","2521RF330484","21300","12100","64206","17253010",{"$f":"VLOOKUP(TRIM(J889),'Transactional Departments'!A:B,2,FALSE)","v":"Abney"},"17253010","18003","SVARIRF330484CV","A01","",""]
["17","330",null,null,"CI       INSECT CONTROL  TOEWS","2521RF330485","21300","12100","64355","17250001",{"$f":"VLOOKUP(TRIM(J890),'Transactional Departments'!A:B,2,FALSE)","v":"Entomology Sum"},"17250001","18003","SCOTTRF330485CV","A01","",""]
["17","330",null,null,"GACCT    RF TOB WLT VIRUSSRINI","2521RF330496","21300","12100","62005","17250001",{"$f":"VLOOKUP(TRIM(J891),'Transactional Departments'!A:B,2,FALSE)","v":"Entomology Sum"},"17250001","18400","RGTOBRF330496CV","A01","",""]
["17","330",null,null,"GACCP    RF TSWV CULTVR__SRINI","2521RF330498","21300","12100","62002","17250001",{"$f":"VLOOKUP(TRIM(J892),'Transactional Departments'!A:B,2,FALSE)","v":"Entomology Sum"},"17250001","18400","RGPNTRF330498CV","A01","",""]
["17","330",null,null,"         VARIOUS         RAINS","2521RF330501","21300","12100","64206","17253220",{"$f":"VLOOKUP(TRIM(J893),'Transactional Departments'!A:B,2,FALSE)","v":"Rains"},"17253220","18003","SVARIRF330501CV","A01","",""]
["17","330",null,null,"NPB      RF BIO ECP MGM  ABNEY","2521RF330502","21300","12100","64000","17250001",{"$f":"VLOOKUP(TRIM(J894),'Transactional Departments'!A:B,2,FALSE)","v":"Entomology Sum"},"17250001","18400","RNNPBRF330502CV","A01","",""]
["17","330",null,null,"USDA NIFARF IPM TACTICS  ABNEY","2521RF330503","21300","12100","61006","17250001",{"$f":"VLOOKUP(TRIM(J895),'Transactional Departments'!A:B,2,FALSE)","v":"Entomology Sum"},"17250001","18400","RNIFARF330503CV","A01","",""]
["17","330",null,null,"GCCP     RF PEANUT PESTS ABNEY","2521RF330508","21300","12100","62002","17250001",{"$f":"VLOOKUP(TRIM(J896),'Transactional Departments'!A:B,2,FALSE)","v":"Entomology Sum"},"17250001","18400","RGPNTRF330508CV","A01","",""]
["17","330",null,null,"UFL/USDA RF ORGANIC PECANDUTCH","2521RF330510","21300","12100","62511","17250001",{"$f":"VLOOKUP(TRIM(J897),'Transactional Departments'!A:B,2,FALSE)","v":"Entomology Sum"},"17250001","18400","RUFLXRF330510CV","A01","",""]
["17","330",null,null,"MONSANTO    2015 THRIPS  TOEWS","2521RF330513","21300","12100","64007","17250001",{"$f":"VLOOKUP(TRIM(J898),'Transactional Departments'!A:B,2,FALSE)","v":"Entomology Sum"},"17250001","18003","SMONSRF330513CV","A01","",""]
["17","330",null,null,"MONSANTO SO NO 46        TOEWS","2521RF330514","21300","12100","64007","17250001",{"$f":"VLOOKUP(TRIM(J899),'Transactional Departments'!A:B,2,FALSE)","v":"Entomology Sum"},"17250001","18003","SMONSRF330514CV","A01","",""]
["17","330",null,null,"GCCP     RF RF328-072    TOEWS","2521RF330515","21300","12100","62002","17250001",{"$f":"VLOOKUP(TRIM(J900),'Transactional Departments'!A:B,2,FALSE)","v":"Entomology Sum"},"17250001","18400","RGPNTRF330515CV","A01","",""]
["17","330",null,null,"GIT      RF ROBO PLTFRM  RAINS","2521RF330518","21300","12100","62021","17250001",{"$f":"VLOOKUP(TRIM(J901),'Transactional Departments'!A:B,2,FALSE)","v":"Entomology Sum"},"17250001","18400","RGAITRF330518CV","A01","",""]
["17","330",null,null,"GCCP     RF THRIPS MANAG ABNEY","2521RF330521","21300","12100","62002","17250001",{"$f":"VLOOKUP(TRIM(J902),'Transactional Departments'!A:B,2,FALSE)","v":"Entomology Sum"},"17250001","18400","RGPNTRF330521CV","A01","",""]
["17","330",null,null,"GCCP     RF NEW THRIPS   SRINI","2521RF330522","21300","12100","62002","17250001",{"$f":"VLOOKUP(TRIM(J903),'Transactional Departments'!A:B,2,FALSE)","v":"Entomology Sum"},"17250001","18400","RGPNTRF330522CV","A01","",""]
["17","330",null,null,"BC       BELT EFFICACY   ABNEY","2521RF330523","21300","12100","64465","17250001",{"$f":"VLOOKUP(TRIM(J904),'Transactional Departments'!A:B,2,FALSE)","v":"Entomology Sum"},"17250001","18003","SBAYERF330523CV","A01","",""]
["17","330",null,null,"USDA     RF RR722-428    RAMAS","2521RF330527","21300","12100","61002","17250001",{"$f":"VLOOKUP(TRIM(J905),'Transactional Departments'!A:B,2,FALSE)","v":"Entomology Sum"},"17250001","18400","RUSDARF330527CV","A01","",""]
["17","330",null,null,"USDA     RF BIOFEEDSTOC  SCHMI","2521RF330528","21300","12100","61004","17250001",{"$f":"VLOOKUP(TRIM(J906),'Transactional Departments'!A:B,2,FALSE)","v":"Entomology Sum"},"17250001","18400","RARSXRF330528CV","A01","",""]
["17","330",null,null,"BC       RF INSECT CONTR TOEWS","2521RF330529","21300","12100","64465","17250001",{"$f":"VLOOKUP(TRIM(J907),'Transactional Departments'!A:B,2,FALSE)","v":"Entomology Sum"},"17250001","18400","RBAYERF330529CV","A01","",""]
["17","330",null,null,"GACCV    RF INSECT CNTRL RILEY","2521RF330530","21300","12100","62008","17250001",{"$f":"VLOOKUP(TRIM(J908),'Transactional Departments'!A:B,2,FALSE)","v":"Entomology Sum"},"17250001","18400","RGVEGRF330530CV","A01","",""]
["17","330",null,null,"UF       RF ORG PECAN    DUTCH","2521RF330531","21300","12100","62511","17250001",{"$f":"VLOOKUP(TRIM(J909),'Transactional Departments'!A:B,2,FALSE)","v":"Entomology Sum"},"17250001","18400","RUFLXRF330531CV","A01","",""]
["17","330",null,null,"         VARIOUS         SCHMI","2521RF330533","21300","12100","64206","17253260",{"$f":"VLOOKUP(TRIM(J910),'Transactional Departments'!A:B,2,FALSE)","v":"Schmidt"},"17253260","18003","SVARIRF330533CV","A01","",""]
["17","330",null,null,"GACCP    RF PPD UAV      RAINS","2521RF330535","21300","12100","62007","17250001",{"$f":"VLOOKUP(TRIM(J911),'Transactional Departments'!A:B,2,FALSE)","v":"Entomology Sum"},"17250001","18400","RGPCHRF330535CV","A01","",""]
["17","330",null,null,"GCCV     RF INSECT CONT  RILEY","2521RF330537","21300","12100","62008","17250001",{"$f":"VLOOKUP(TRIM(J912),'Transactional Departments'!A:B,2,FALSE)","v":"Entomology Sum"},"17250001","18400","RGVEGRF330537CV","A01","",""]
["17","330",null,null,"GACCT    RF THRIPS       SRINI","2521RF330539","21300","12100","62005","17250001",{"$f":"VLOOKUP(TRIM(J913),'Transactional Departments'!A:B,2,FALSE)","v":"Entomology Sum"},"17250001","18400","RGTOBRF330539CV","A01","",""]
["17","330",null,null,"GACCC    RF STINK BUGS   TOEWS","2521RF330540","21300","12100","62001","17250001",{"$f":"VLOOKUP(TRIM(J914),'Transactional Departments'!A:B,2,FALSE)","v":"Entomology Sum"},"17250001","18400","RGCOTRF330540CV","A01","",""]
["17","330",null,null,"NCSU     RF NEW IPM      RILEY","2521RF330541","21300","12100","62506","17250001",{"$f":"VLOOKUP(TRIM(J915),'Transactional Departments'!A:B,2,FALSE)","v":"Entomology Sum"},"17250001","18400","RNCSURF330541CV","A01","",""]
["17","330",null,null,"GACCP/NPBRF W/ RF328107  TOEWS","2521RF330543","21300","12100","62002","17250001",{"$f":"VLOOKUP(TRIM(J916),'Transactional Departments'!A:B,2,FALSE)","v":"Entomology Sum"},"17250001","18400","RGPNTRF330543CV","A01","",""]
["17","330",null,null,"GACCP    RF THRIPS       ABNEY","2521RF330544","21300","12100","62002","17250001",{"$f":"VLOOKUP(TRIM(J917),'Transactional Departments'!A:B,2,FALSE)","v":"Entomology Sum"},"17250001","18400","RGPNTRF330544CV","A01","",""]
["17","330",null,null,"GACCP    RF LIGHT TRAP   ABNEY","2521RF330545","21300","12100","62002","17250001",{"$f":"VLOOKUP(TRIM(J918),'Transactional Departments'!A:B,2,FALSE)","v":"Entomology Sum"},"17250001","18400","RGPNTRF330545CV","A01","",""]
["17","330",null,null,"GACCP/NPBRF TSWV RESIST  SRINI","2521RF330546","21300","12100","62002","17250001",{"$f":"VLOOKUP(TRIM(J919),'Transactional Departments'!A:B,2,FALSE)","v":"Entomology Sum"},"17250001","18400","RGPNTRF330546CV","A01","",""]
["17","330",null,null,"GACCP/NPBRF NEONI INSECT SRINI","2521RF330547","21300","12100","62002","17250001",{"$f":"VLOOKUP(TRIM(J920),'Transactional Departments'!A:B,2,FALSE)","v":"Entomology Sum"},"17250001","18400","RGPNTRF330547CV","A01","",""]
["17","330",null,null,"GACCP    RF INSECT MANAGEABNEY","2521RF330548","21300","12100","62002","17250001",{"$f":"VLOOKUP(TRIM(J921),'Transactional Departments'!A:B,2,FALSE)","v":"Entomology Sum"},"17250001","18400","RGPNTRF330548CV","A01","",""]
["17","330",null,null,"GPC/NPB  RF W/ RF332711  SRINI","2521RF330550","21300","12100","62002","17250001",{"$f":"VLOOKUP(TRIM(J922),'Transactional Departments'!A:B,2,FALSE)","v":"Entomology Sum"},"17250001","18400","RGPNTRF330550CV","A01","",""]
["17","330",null,null,"MONSANTO RF ORDER NO 64  TOEWS","2521RF330551","21300","12100","64007","17250001",{"$f":"VLOOKUP(TRIM(J923),'Transactional Departments'!A:B,2,FALSE)","v":"Entomology Sum"},"17250001","18400","RMONSRF330551CV","A01","",""]
["17","330",null,null,"AWFG     RF SAFE CORN    TOEWS","2521RF330554","21300","12100","64160","17250001",{"$f":"VLOOKUP(TRIM(J924),'Transactional Departments'!A:B,2,FALSE)","v":"Entomology Sum"},"17250001","18400","RALWGRF330554CV","A01","",""]
["17","330",null,null,"USDA     RF RD309-134    JORDA","2521RF330555","21300","12100","61006","17250001",{"$f":"VLOOKUP(TRIM(J925),'Transactional Departments'!A:B,2,FALSE)","v":"Entomology Sum"},"17250001","18400","RNIFARF330555CV","A01","",""]
["17","330",null,null,"USDA ARS RF PEST MANAGE  TOEWS","2521RF330556","21300","12100","61004","17250001",{"$f":"VLOOKUP(TRIM(J926),'Transactional Departments'!A:B,2,FALSE)","v":"Entomology Sum"},"17250001","18400","RARSXRF330556CV","A01","",""]
["17","330",null,null,"UF/NIFA  RF INSECTICIDES RILEY","2521RF330558","21300","12100","62511","17250001",{"$f":"VLOOKUP(TRIM(J927),'Transactional Departments'!A:B,2,FALSE)","v":"Entomology Sum"},"17250001","18400","RUFLXRF330558CV","A01","",""]
["17","330",null,null,"UF/USDA  RF 2016 IR-4    SRINI","2521RF330559","21300","12100","62511","17250001",{"$f":"VLOOKUP(TRIM(J928),'Transactional Departments'!A:B,2,FALSE)","v":"Entomology Sum"},"17250001","18400","RUFLXRF330559CV","A01","",""]
["17","330",null,null,"NCSU/USDARF STINK BUG    TOEWS","2521RF330560","21300","12100","62506","17250001",{"$f":"VLOOKUP(TRIM(J929),'Transactional Departments'!A:B,2,FALSE)","v":"Entomology Sum"},"17250001","18400","RNCSURF330560CV","A01","",""]
["17","330",null,null,"SRSMC    RF BLUEBERRY    SCHMI","2521RF330561","21300","12100","64342","17250001",{"$f":"VLOOKUP(TRIM(J930),'Transactional Departments'!A:B,2,FALSE)","v":"Entomology Sum"},"17250001","18400","RSRSFRF330561CV","A01","",""]
["17","330",null,null,"GCCC     RF /COVER CROP  SCHMI","2521RF330562","21300","12100","62001","17250001",{"$f":"VLOOKUP(TRIM(J931),'Transactional Departments'!A:B,2,FALSE)","v":"Entomology Sum"},"17250001","18400","RGCOTRF330562CV","A01","",""]
["17","330",null,null,"GCCC     RF STORED CORN  TOEWS","2521RF330563","21300","12100","62047","17250001",{"$f":"VLOOKUP(TRIM(J932),'Transactional Departments'!A:B,2,FALSE)","v":"Entomology Sum"},"17250001","18400","RGCRNRF330563CV","A01","",""]
["17","330",null,null,"GCCP     RF THRIPS       ABNEY","2521RF330564","21300","12100","62002","17250001",{"$f":"VLOOKUP(TRIM(J933),'Transactional Departments'!A:B,2,FALSE)","v":"Entomology Sum"},"17250001","18400","RGPNTRF330564CV","A01","",""]
["17","330",null,null,"GCCT     RF VIRUS        SRINI","2521RF330565","21300","12100","62005","17250001",{"$f":"VLOOKUP(TRIM(J934),'Transactional Departments'!A:B,2,FALSE)","v":"Entomology Sum"},"17250001","18400","RGTOBRF330565CV","A01","",""]
["17","330",null,null,"GCCC     RF WILT INCIDENCSRINI","2521RF330566","21300","12100","62002","17250001",{"$f":"VLOOKUP(TRIM(J935),'Transactional Departments'!A:B,2,FALSE)","v":"Entomology Sum"},"17250001","18400","RGPNTRF330566CV","A01","",""]
["17","330",null,null,"CI       RF _SE REGIONAL TOEWS","2521RF330567","21300","12100","64355","17250001",{"$f":"VLOOKUP(TRIM(J936),'Transactional Departments'!A:B,2,FALSE)","v":"Entomology Sum"},"17250001","18400","RCOTTRF330567CV","A01","",""]
["17","330",null,null,"COTTON INRF FOOD WEBS    TOEWS","2521RF330568","21300","12100","64355","17250001",{"$f":"VLOOKUP(TRIM(J937),'Transactional Departments'!A:B,2,FALSE)","v":"Entomology Sum"},"17250001","18400","RCOTTRF330568CV","A01","",""]
["17","330",null,null,"GCCB     RF PRED SWD     SCHMI","2521RF330569","21300","12100","62009","17250001",{"$f":"VLOOKUP(TRIM(J938),'Transactional Departments'!A:B,2,FALSE)","v":"Entomology Sum"},"17250001","18400","RGABLRF330569CV","A01","",""]
["17","330",null,null,"MONSANTO RF GROWTH HYBRIDTOEWS","2521RF330570","21300","12100","64007","17250001",{"$f":"VLOOKUP(TRIM(J939),'Transactional Departments'!A:B,2,FALSE)","v":"Entomology Sum"},"17250001","18400","RMONSRF330570CV","A01","",""]
["17","330",null,null,"GCCP     RF BURROWER BUG ABNEY","2521RF330571","21300","12100","62002","17250001",{"$f":"VLOOKUP(TRIM(J940),'Transactional Departments'!A:B,2,FALSE)","v":"Entomology Sum"},"17250001","18400","RGPNTRF330571CV","A01","",""]
["17","330",null,null,"GCCP/NPB RF INSECT PESTS ABNEY","2521RF330572","21300","12100","62002","17250001",{"$f":"VLOOKUP(TRIM(J941),'Transactional Departments'!A:B,2,FALSE)","v":"Entomology Sum"},"17250001","18400","RGPNTRF330572CV","A01","",""]
["17","330",null,null,"GCCP     RF TSWV         SRINI","2521RF330573","21300","12100","62002","17250001",{"$f":"VLOOKUP(TRIM(J942),'Transactional Departments'!A:B,2,FALSE)","v":"Entomology Sum"},"17250001","18400","RGPNTRF330573CV","A01","",""]
["17","330",null,null,"GCCP     RF INSECTICIDES SRINI","2521RF330574","21300","12100","62002","17250001",{"$f":"VLOOKUP(TRIM(J943),'Transactional Departments'!A:B,2,FALSE)","v":"Entomology Sum"},"17250001","18400","RGPNTRF330574CV","A01","",""]
["17","330",null,null,"AL W&FGA RF RES PRJ 17   TOEWS","2521RF330575","21300","12100","64160","17250001",{"$f":"VLOOKUP(TRIM(J944),'Transactional Departments'!A:B,2,FALSE)","v":"Entomology Sum"},"17250001","18400","RALWGRF330575CV","A01","",""]
["17","330",null,null,"GACCP/NPBRF NPB RF W328-169 TO","2521RF330576","21300","12100","62002","17250001",{"$f":"VLOOKUP(TRIM(J945),'Transactional Departments'!A:B,2,FALSE)","v":"Entomology Sum"},"17250001","18400","RGPNTRF330576CV","A01","",""]
["17","330",null,null,"GACC PNUTRF WITH 2521RF332744 ","2521RF330577","21300","12100","62002","17250001",{"$f":"VLOOKUP(TRIM(J946),'Transactional Departments'!A:B,2,FALSE)","v":"Entomology Sum"},"17250001","18400","RGPNTRF330577CV","A01","",""]
["17","330",null,null,"SYNGENTA RF TOMATO       RILEY","2521RF330578","21300","12100","64033","17250001",{"$f":"VLOOKUP(TRIM(J947),'Transactional Departments'!A:B,2,FALSE)","v":"Entomology Sum"},"17250001","18400","RSYCIRF330578CV","A01","",""]
["17","330",null,null,"COTTON INRF ROBOTIC      RAINS","2521RF330579","21300","12100","64355","17250001",{"$f":"VLOOKUP(TRIM(J948),'Transactional Departments'!A:B,2,FALSE)","v":"Entomology Sum"},"17250001","18400","RCOTTRF330579CV","A01","",""]
["17","330",null,null,"GCCV     RF BIO RATIONAL RILEY","2521RF330580","21300","12100","62008","17250001",{"$f":"VLOOKUP(TRIM(J949),'Transactional Departments'!A:B,2,FALSE)","v":"Entomology Sum"},"17250001","18400","RGVEGRF330580CV","A01","",""]
["17","330",null,null,"GCCV     RF DB MOTH      RILEY","2521RF330581","21300","12100","62008","17250001",{"$f":"VLOOKUP(TRIM(J950),'Transactional Departments'!A:B,2,FALSE)","v":"Entomology Sum"},"17250001","18400","RGVEGRF330581CV","A01","",""]
["17","330",null,null,"GIT/GFSSPRF SHIP PT MODE RAINS","2521RF330582","21300","12100","62021","17250001",{"$f":"VLOOKUP(TRIM(J951),'Transactional Departments'!A:B,2,FALSE)","v":"Entomology Sum"},"17250001","18400","RGAITRF330582CV","A01","",""]
["17","330",null,null,"BASF CORPBAS440001       SRINI","2521RF330583","21300","12100","64002","17250001",{"$f":"VLOOKUP(TRIM(J952),'Transactional Departments'!A:B,2,FALSE)","v":"Entomology Sum"},"17250001","18003","SBASFRF330583CV","A01","",""]
["17","330",null,null,"GCCV     RF WHITEFLIES   SRINI","2521RF330584","21300","12100","62008","17250001",{"$f":"VLOOKUP(TRIM(J953),'Transactional Departments'!A:B,2,FALSE)","v":"Entomology Sum"},"17250001","18400","RGVEGRF330584CV","A01","",""]
["17","330",null,null,"COTTON INRF WHITEFLY     TOEWS","2521RF330585","21300","12100","64355","17250001",{"$f":"VLOOKUP(TRIM(J954),'Transactional Departments'!A:B,2,FALSE)","v":"Entomology Sum"},"17250001","18400","RCOTTRF330585CV","A01","",""]
["17","330",null,null,"TAM/USDODRF FUNGAL PEST  TOEWS","2521RF330586","21300","12100","62527","17250001",{"$f":"VLOOKUP(TRIM(J955),'Transactional Departments'!A:B,2,FALSE)","v":"Entomology Sum"},"17250001","18400","RTXAURF330586CV","A01","",""]
["17","330",null,null,"UFL      RF SWEET POTATO RILEY","2521RF330588","21300","12100","62511","17250001",{"$f":"VLOOKUP(TRIM(J956),'Transactional Departments'!A:B,2,FALSE)","v":"Entomology Sum"},"17250001","18400","RUFLXRF330588CV","A01","",""]
["17","330",null,null,"FEDERAL HATCH                 ","2526GF330001","21300","12100","61HAT","17250001",{"$f":"VLOOKUP(TRIM(J957),'Transactional Departments'!A:B,2,FALSE)","v":"Entomology Sum"},"17250001","18003","SNIFAXRGHATCH17","F17","RCP",""]
["17","330",null,null,"REGIONAL HATCH                ","2526GF330002","21300","12100","61MSH","17270001",{"$f":"VLOOKUP(TRIM(J958),'Transactional Departments'!A:B,2,FALSE)","v":"Horticulture Sum"},"17270001","18003","SNIFAXMSHATCH17","F17","RCP",""]
["17","330",null,null,"ENT FED HATCH SCHMIDT         ","2526GF330111","21300","12100","61HAT","17253260",{"$f":"VLOOKUP(TRIM(J959),'Transactional Departments'!A:B,2,FALSE)","v":"Schmidt"},"17253260","18003","SNIFAXRGHATCH17","F17","RCP",""]
["17","330",null,null,"ENT REG HATCH SCHMIDT         ","2526GF330112","21300","12100","61MSH","17253260",{"$f":"VLOOKUP(TRIM(J960),'Transactional Departments'!A:B,2,FALSE)","v":"Schmidt"},"17253260","18003","SNIFAXMSHATCH17","F17","RCP",""]
["17","330",null,null,"ENT FED HATCH DUTCHER         ","2526GF330131","21300","12100","61HAT","17250001",{"$f":"VLOOKUP(TRIM(J961),'Transactional Departments'!A:B,2,FALSE)","v":"Entomology Sum"},"17250001","18003","SNIFAXRGHATCH17","F17","RCP",""]
["17","330",null,null,"ENT REG HATCH DUTCHER         ","2526GF330132","21300","12100","61MSH","17250001",{"$f":"VLOOKUP(TRIM(J962),'Transactional Departments'!A:B,2,FALSE)","v":"Entomology Sum"},"17250001","18003","SNIFAXMSHATCH17","F17","RCP",""]
["17","330",null,null,"ENT FED HATCH RILEY           ","2526GF330161","21300","12100","61HAT","17253230",{"$f":"VLOOKUP(TRIM(J963),'Transactional Departments'!A:B,2,FALSE)","v":"Riley"},"17253230","18003","SNIFAXRGHATCH17","F17","RCP",""]
["17","330",null,null,"ENT FED HATCH SRINIVASAN      ","2526GF330171","21300","12100","61HAT","17253300",{"$f":"VLOOKUP(TRIM(J964),'Transactional Departments'!A:B,2,FALSE)","v":"Srinivasan"},"17253300","18003","SNIFAXRGHATCH17","F17","RCP",""]
["17","330",null,null,"ENT HATCH - TOEWS             ","2526GF330181","21300","12100","61HAT","17253340",{"$f":"VLOOKUP(TRIM(J965),'Transactional Departments'!A:B,2,FALSE)","v":"Toews"},"17253340","18003","SNIFAXRGHATCH17","F17","RCP",""]
["17","330",null,null,"ENT REG HATCH - TOEWS         ","2526GF330182","21300","12100","61MSH","17253340",{"$f":"VLOOKUP(TRIM(J966),'Transactional Departments'!A:B,2,FALSE)","v":"Toews"},"17253340","18003","SNIFAXMSHATCH17","F17","RCP",""]
["17","331",null,null,"         VARIOUS         CONNE","2521RF331133","21300","12100","64206","17270700",{"$f":"VLOOKUP(TRIM(J967),'Transactional Departments'!A:B,2,FALSE)","v":"Conner, Patrick"},"17270700","18003","SVARIRF331133CV","A01","",""]
["17","331",null,null,"         VARIOUS RSCH    DIAZ ","2521RF331154","21300","12100","64206","17271000",{"$f":"VLOOKUP(TRIM(J968),'Transactional Departments'!A:B,2,FALSE)","v":"Diaz, Juan"},"17271000","18003","SVARIRF331154CV","A01","",""]
["17","331",null,null,"         VAR ONIONS  DIAZDIAZ-","2521RF331213","21300","12100","64206","17271000",{"$f":"VLOOKUP(TRIM(J969),'Transactional Departments'!A:B,2,FALSE)","v":"Diaz, Juan"},"17271000","18003","SVARIRF331213CV","A01","",""]
["17","331",null,null,"USDA/NIFARF PNUT SEED Q  OZIAS","2521RF331269","21300","12100","61002","17270001",{"$f":"VLOOKUP(TRIM(J970),'Transactional Departments'!A:B,2,FALSE)","v":"Horticulture Sum"},"17270001","18400","RUSDARF331269CV","A01","",""]
["17","331",null,null,"USAID    RF SUP 710-059  BROWN","2521RF331275","21300","12100","61028","17270001",{"$f":"VLOOKUP(TRIM(J971),'Transactional Departments'!A:B,2,FALSE)","v":"Horticulture Sum"},"17270001","18400","RUSADRF331275CV","A01","",""]
["17","331",null,null,"         VARIOUS         COOLO","2521RF331276","21300","12100","64206","17270800",{"$f":"VLOOKUP(TRIM(J972),'Transactional Departments'!A:B,2,FALSE)","v":"Coolong, Tim"},"17270800","18003","SVARIRF331276CV","A01","",""]
["17","331",null,null,"         RF TRIPLOID WTM COOLO","2521RF331279","21300","12100","64373","17270001",{"$f":"VLOOKUP(TRIM(J973),'Transactional Departments'!A:B,2,FALSE)","v":"Horticulture Sum"},"17270001","18003","SNWMARF331279CV","A01","",""]
["17","331",null,null,"         VARIOUS         SMITH","2521RF331280","21300","12100","64206","17272500",{"$f":"VLOOKUP(TRIM(J974),'Transactional Departments'!A:B,2,FALSE)","v":"Smith, Erick"},"17272500","18003","SVARIRF331280CV","A01","",""]
["17","331",null,null,"CSIRO    RF HETEROSIS    OZIAS","2521RF331286","21300","12100","64481","17270001",{"$f":"VLOOKUP(TRIM(J975),'Transactional Departments'!A:B,2,FALSE)","v":"Horticulture Sum"},"17270001","18400","RCOSORF331286CV","A01","",""]
["17","331",null,null,"MNI      RF BREEDING PRM RUTER","2521RF331287","21300","12100","64063","17270001",{"$f":"VLOOKUP(TRIM(J976),'Transactional Departments'!A:B,2,FALSE)","v":"Horticulture Sum"},"17270001","18400","RMCNIRF331287CV","A01","",""]
["17","331",null,null,"         RF PROJECT A9   COOLO","2521RF331291","21300","12100","64033","17270001",{"$f":"VLOOKUP(TRIM(J977),'Transactional Departments'!A:B,2,FALSE)","v":"Horticulture Sum"},"17270001","18003","SSYCIRF331291CV","A01","",""]
["17","331",null,null,"GACCB    RF LOW CHILL    SMITH","2521RF331297","21300","12100","62009","17270001",{"$f":"VLOOKUP(TRIM(J978),'Transactional Departments'!A:B,2,FALSE)","v":"Horticulture Sum"},"17270001","18400","RGABLRF331297CV","A01","",""]
["17","331",null,null,"GACCV    RF BELL PEPPER  COOLO","2521RF331298","21300","12100","62008","17270001",{"$f":"VLOOKUP(TRIM(J979),'Transactional Departments'!A:B,2,FALSE)","v":"Horticulture Sum"},"17270001","18400","RGVEGRF331298CV","A01","",""]
["17","331",null,null,"GCCV     RF RF_SWEETPOTATCOOLO","2521RF331299","21300","12100","62008","17270001",{"$f":"VLOOKUP(TRIM(J980),'Transactional Departments'!A:B,2,FALSE)","v":"Horticulture Sum"},"17270001","18400","RGVEGRF331299CV","A01","",""]
["17","331",null,null,"PNUT FND RF PHEN GEN RIL_OZIAS","2521RF331301","21300","12100","64389","17270001",{"$f":"VLOOKUP(TRIM(J981),'Transactional Departments'!A:B,2,FALSE)","v":"Horticulture Sum"},"17270001","18400","RPEANRF331301CV","A01","",""]
["17","331",null,null,"NSF      RF RF_BREAD ABRDOZIAS","2521RF331302","21300","12100","61023","17270001",{"$f":"VLOOKUP(TRIM(J982),'Transactional Departments'!A:B,2,FALSE)","v":"Horticulture Sum"},"17270001","18400","RNSFXRF331302CV","A01","",""]
["17","331",null,null,"GACC PECARF RF_NEW PEC CUCONNE","2521RF331303","21300","12100","62045","17270001",{"$f":"VLOOKUP(TRIM(J983),'Transactional Departments'!A:B,2,FALSE)","v":"Horticulture Sum"},"17270001","18400","RGPCNRF331303CV","A01","",""]
["17","331",null,null,"SYNGENTA RF RF_A10 PROJ PCOOLO","2521RF331304","21300","12100","64050","17270001",{"$f":"VLOOKUP(TRIM(J984),'Transactional Departments'!A:B,2,FALSE)","v":"Horticulture Sum"},"17270001","18400","RSYSIRF331304CV","A01","",""]
["17","331",null,null,"SYNGENTA RF RF_A12 PROJ PCOOLO","2521RF331305","21300","12100","64050","17270001",{"$f":"VLOOKUP(TRIM(J985),'Transactional Departments'!A:B,2,FALSE)","v":"Horticulture Sum"},"17270001","18400","RSYSIRF331305CV","A01","",""]
["17","331",null,null,"VOC      RF RF_FERTIL MGMCOOLO","2521RF331307","21300","12100","64327","17270001",{"$f":"VLOOKUP(TRIM(J986),'Transactional Departments'!A:B,2,FALSE)","v":"Horticulture Sum"},"17270001","18400","RVIOCRF331307CV","A01","",""]
["17","331",null,null,"VOC      RF RF_PLANT VIGODIAZ-","2521RF331308","21300","12100","64327","17270001",{"$f":"VLOOKUP(TRIM(J987),'Transactional Departments'!A:B,2,FALSE)","v":"Horticulture Sum"},"17270001","18400","RVIOCRF331308CV","A01","",""]
["17","331",null,null,"USAID    RF PEANUT PROGRAM    ","2521RF331309","21300","12100","61028","17270001",{"$f":"VLOOKUP(TRIM(J988),'Transactional Departments'!A:B,2,FALSE)","v":"Horticulture Sum"},"17270001","18400","RUSADRF331309CV","A01","",""]
["17","331",null,null,"SYNGENTA RF RD_MELON VARICOOLO","2521RF331310","21300","12100","64050","17270001",{"$f":"VLOOKUP(TRIM(J989),'Transactional Departments'!A:B,2,FALSE)","v":"Horticulture Sum"},"17270001","18400","RSYSIRF331310CV","A01","",""]
["17","331",null,null,"MONSANTO RF RF_SO 74_____COOLO","2521RF331311","21300","12100","64007","17270001",{"$f":"VLOOKUP(TRIM(J990),'Transactional Departments'!A:B,2,FALSE)","v":"Horticulture Sum"},"17270001","18400","RMONSRF331311CV","A01","",""]
["17","331",null,null,"MONSANTO RF TRIP WATERME_COOLO","2521RF331312","21300","12100","64007","17270001",{"$f":"VLOOKUP(TRIM(J991),'Transactional Departments'!A:B,2,FALSE)","v":"Horticulture Sum"},"17270001","18400","RMONSRF331312CV","A01","",""]
["17","331",null,null,"SYNGENTA RF RF_PROJ PLN ACOOLO","2521RF331313","21300","12100","64050","17270001",{"$f":"VLOOKUP(TRIM(J992),'Transactional Departments'!A:B,2,FALSE)","v":"Horticulture Sum"},"17270001","18400","RSYSIRF331313CV","A01","",""]
["17","331",null,null,"AGRINOS  RF RF_ONION TRIACOOLO","2521RF331314","21300","12100","64083","17270001",{"$f":"VLOOKUP(TRIM(J993),'Transactional Departments'!A:B,2,FALSE)","v":"Horticulture Sum"},"17270001","18400","RAGRNRF331314CV","A01","",""]
["17","331",null,null,"SYNGENTA RF PROJ PLN A18_COOLO","2521RF331315","21300","12100","64050","17270001",{"$f":"VLOOKUP(TRIM(J994),'Transactional Departments'!A:B,2,FALSE)","v":"Horticulture Sum"},"17270001","18400","RSYSIRF331315CV","A01","",""]
["17","331",null,null,"MCCORKLE RF RF_17 COOP BRRUTER","2521RF331317","21300","12100","64063","17270001",{"$f":"VLOOKUP(TRIM(J995),'Transactional Departments'!A:B,2,FALSE)","v":"Horticulture Sum"},"17270001","18400","RMCNIRF331317CV","A01","",""]
["17","331",null,null,"SRSFC    RF RF_FRUIT SET SMITH","2521RF331319","21300","12100","64342","17270001",{"$f":"VLOOKUP(TRIM(J996),'Transactional Departments'!A:B,2,FALSE)","v":"Horticulture Sum"},"17270001","18400","RSRSFRF331319CV","A01","",""]
["17","331",null,null,"GACC PECARF RF_NEW CULTIVCONNE","2521RF331320","21300","12100","62045","17270001",{"$f":"VLOOKUP(TRIM(J997),'Transactional Departments'!A:B,2,FALSE)","v":"Horticulture Sum"},"17270001","18400","RGPCNRF331320CV","A01","",""]
["17","331",null,null,"GACC BLUERF RF_NUTRIENT ASMITH","2521RF331321","21300","12100","62009","17270001",{"$f":"VLOOKUP(TRIM(J998),'Transactional Departments'!A:B,2,FALSE)","v":"Horticulture Sum"},"17270001","18400","RGABLRF331321CV","A01","",""]
["17","331",null,null,"CORNELL  RF RF_EAST BROCCCOOLO","2521RF331322","21300","12100","64135","17270001",{"$f":"VLOOKUP(TRIM(J999),'Transactional Departments'!A:B,2,FALSE)","v":"Horticulture Sum"},"17270001","18400","RCORNRF331322CV","A01","",""]
["17","331",null,null,"NMSU/USDARF RF_COORDINATECONNE","2521RF331323","21300","12100","62544","17270001",{"$f":"VLOOKUP(TRIM(J1000),'Transactional Departments'!A:B,2,FALSE)","v":"Horticulture Sum"},"17270001","18400","RNMSURF331323CV","A01","",""]
["17","331",null,null,"FEDERAL HATCH                 ","2526GF331001","21300","12100","61HAT","17270001",{"$f":"VLOOKUP(TRIM(J1001),'Transactional Departments'!A:B,2,FALSE)","v":"Horticulture Sum"},"17270001","18003","SNIFAXRGHATCH17","F17","RCP",""]
["17","331",null,null,"HORT FED HATCH WELLS          ","2526GF331101","21300","12100","61HAT","17273000",{"$f":"VLOOKUP(TRIM(J1002),'Transactional Departments'!A:B,2,FALSE)","v":"Wells, Lenny"},"17273000","18003","SNIFAXRGHATCH17","F17","RCP",""]
["17","331",null,null,"HORT FED HATCH CONNER         ","2526GF331121","21300","12100","61HAT","17270600",{"$f":"VLOOKUP(TRIM(J1003),'Transactional Departments'!A:B,2,FALSE)","v":"Conner, Joanne"},"17270600","18003","SNIFAXRGHATCH17","F17","RCP",""]
["17","331",null,null,"HORT FED HATCH DIAZ PEREZ     ","2526GF331131","21300","12100","61HAT","17271000",{"$f":"VLOOKUP(TRIM(J1004),'Transactional Departments'!A:B,2,FALSE)","v":"Diaz, Juan"},"17271000","18003","SNIFAXRGHATCH17","F17","RCP",""]
["17","331",null,null,"HORT FED HATCH OZIAS-AKINS    ","2526GF331151","21300","12100","61HAT","17272000",{"$f":"VLOOKUP(TRIM(J1005),'Transactional Departments'!A:B,2,FALSE)","v":"Ozias-Akins, Peggy"},"17272000","18003","SNIFAXRGHATCH17","F17","RCP",""]
["17","332",null,null,"         PLANT PATH VARIOUS   ","2521RF332064","21300","12100","64206","17280001",{"$f":"VLOOKUP(TRIM(J1006),'Transactional Departments'!A:B,2,FALSE)","v":"Plant Path Sum"},"17280001","18003","SVARIRF332064CV","A01","",""]
["17","332",null,null,"BASF     RF 2015 TEST PR BRENN","2521RF332079","21300","12100","64002","17280001",{"$f":"VLOOKUP(TRIM(J1007),'Transactional Departments'!A:B,2,FALSE)","v":"Plant Path Sum"},"17280001","18400","RBASFRF332079CV","A01","",""]
["17","332",null,null,"VOC      RF RF_INTEGR MGMGITAI","2521RF332094","21300","12100","64327","17280001",{"$f":"VLOOKUP(TRIM(J1008),'Transactional Departments'!A:B,2,FALSE)","v":"Plant Path Sum"},"17280001","18400","RVIOCRF332094CV","A01","",""]
["17","332",null,null,"BAYER    RF RF_TOB VEG NECSINO","2521RF332096","21300","12100","64465","17280001",{"$f":"VLOOKUP(TRIM(J1009),'Transactional Departments'!A:B,2,FALSE)","v":"Plant Path Sum"},"17280001","18400","RBAYERF332096CV","A01","",""]
["17","332",null,null,"BAYER    RF RF_PNUT DISEACULBR","2521RF332097","21300","12100","64465","17280001",{"$f":"VLOOKUP(TRIM(J1010),'Transactional Departments'!A:B,2,FALSE)","v":"Plant Path Sum"},"17280001","18400","RBAYERF332097CV","A01","",""]
["17","332",null,null,"PNUT FNDNRF CO INTL PHEN_CULBR","2521RF332099","21300","12100","64389","17280001",{"$f":"VLOOKUP(TRIM(J1011),'Transactional Departments'!A:B,2,FALSE)","v":"Plant Path Sum"},"17280001","18400","RPEANRF332099CV","A01","",""]
["17","332",null,null,"         PLT PTH VAR     BRENN","2521RF332194","21300","12100","64206","17285001",{"$f":"VLOOKUP(TRIM(J1012),'Transactional Departments'!A:B,2,FALSE)","v":"Brenneman"},"17285001","18003","SVARIRF332194CV","A01","",""]
["17","332",null,null,"         PLT PATH VAR CULBRETH","2521RF332195","21300","12100","64206","17285004",{"$f":"VLOOKUP(TRIM(J1013),'Transactional Departments'!A:B,2,FALSE)","v":"Culbreath"},"17285004","18003","SVARIRF332195CV","A01","",""]
["17","332",null,null,"         PLT PATH VAR    GITAI","2521RF332196","21300","12100","64206","17285006",{"$f":"VLOOKUP(TRIM(J1014),'Transactional Departments'!A:B,2,FALSE)","v":"Gitaitis"},"17285006","18003","SVARIRF332196CV","A01","",""]
["17","332",null,null,"         PLT PATH VAR SM JI   ","2521RF332197","21300","12100","64206","17285008",{"$f":"VLOOKUP(TRIM(J1015),'Transactional Departments'!A:B,2,FALSE)","v":"Ji"},"17285008","18003","SVARIRF332197CV","A01","",""]
["17","332",null,null,"         PP VIROLOGY CSINCSINO","2521RF332410","21300","12100","64206","17285003",{"$f":"VLOOKUP(TRIM(J1016),'Transactional Departments'!A:B,2,FALSE)","v":"Csinos"},"17285003","18003","SVARIRF332410CV","A01","",""]
["17","332",null,null,"         VARIOUS RESCH   DAVIS","2521RF332500","21300","12100","64206","17280001",{"$f":"VLOOKUP(TRIM(J1017),'Transactional Departments'!A:B,2,FALSE)","v":"Plant Path Sum"},"17280001","18003","SVARIRF332500CV","A01","",""]
["17","332",null,null,"         VARIOUS GIFTS   STEVE","2521RF332544","21300","12100","64206","17285011",{"$f":"VLOOKUP(TRIM(J1018),'Transactional Departments'!A:B,2,FALSE)","v":"Stevenson"},"17285011","18003","SVARIRF332544CV","A01","",""]
["17","332",null,null,"GADOA    RF PATHOGEN TOMAJI   ","2521RF332627","21300","12100","62010","17280001",{"$f":"VLOOKUP(TRIM(J1019),'Transactional Departments'!A:B,2,FALSE)","v":"Plant Path Sum"},"17280001","18400","RGDAGRF332627CV","A01","",""]
["17","332",null,null,"USAID    RF SUP 710-059       ","2521RF332649","21300","12100","61028","17280001",{"$f":"VLOOKUP(TRIM(J1020),'Transactional Departments'!A:B,2,FALSE)","v":"Plant Path Sum"},"17280001","18400","RUSADRF332649CV","A01","",""]
["17","332",null,null,"VOC      RF SPATIO TEMP  GITAI","2521RF332659","21300","12100","64327","17280001",{"$f":"VLOOKUP(TRIM(J1021),'Transactional Departments'!A:B,2,FALSE)","v":"Plant Path Sum"},"17280001","18400","RVIOCRF332659CV","A01","",""]
["17","332",null,null,"GCCP     RF TOMATO SPOTT CULBR","2521RF332664","21300","12100","62002","17280001",{"$f":"VLOOKUP(TRIM(J1022),'Transactional Departments'!A:B,2,FALSE)","v":"Plant Path Sum"},"17280001","18400","RGPNTRF332664CV","A01","",""]
["17","332",null,null,"GCCP     RF RF328-072       JI","2521RF332667","21300","12100","62002","17280001",{"$f":"VLOOKUP(TRIM(J1023),'Transactional Departments'!A:B,2,FALSE)","v":"Plant Path Sum"},"17280001","18400","RGPNTRF332667CV","A01","",""]
["17","332",null,null,"NWA      RF FUSARIU_WILT_DUTTA","2521RF332671","21300","12100","64373","17280001",{"$f":"VLOOKUP(TRIM(J1024),'Transactional Departments'!A:B,2,FALSE)","v":"Plant Path Sum"},"17280001","18400","RNWMARF332671CV","A01","",""]
["17","332",null,null,"USDA     RF WATERMELON   JI   ","2521RF332692","21300","12100","61002","17280001",{"$f":"VLOOKUP(TRIM(J1025),'Transactional Departments'!A:B,2,FALSE)","v":"Plant Path Sum"},"17280001","18400","RUSDARF332692CV","A01","",""]
["17","332",null,null,"BASF     RF LEAF SPOT DISCULBR","2521RF332698","21300","12100","64002","17280001",{"$f":"VLOOKUP(TRIM(J1026),'Transactional Departments'!A:B,2,FALSE)","v":"Plant Path Sum"},"17280001","18400","RBASFRF332698CV","A01","",""]
["17","332",null,null,"USDA     RF RR722-428    RAMAS","2521RF332699","21300","12100","61002","17280001",{"$f":"VLOOKUP(TRIM(J1027),'Transactional Departments'!A:B,2,FALSE)","v":"Plant Path Sum"},"17280001","18400","RUSDARF332699CV","A01","",""]
["17","332",null,null,"GACCV    RF PHYTO CAPSICIJI   ","2521RF332701","21300","12100","62008","17280001",{"$f":"VLOOKUP(TRIM(J1028),'Transactional Departments'!A:B,2,FALSE)","v":"Plant Path Sum"},"17280001","18400","RGVEGRF332701CV","A01","",""]
["17","332",null,null,"GACC TOBARF RF_NEW TOB CUCSINO","2521RF332703","21300","12100","62005","17280001",{"$f":"VLOOKUP(TRIM(J1029),'Transactional Departments'!A:B,2,FALSE)","v":"Plant Path Sum"},"17280001","18400","RGTOBRF332703CV","A01","",""]
["17","332",null,null,"PNUT FND RF PHEN GEN RIL_BRENN","2521RF332704","21300","12100","64389","17280001",{"$f":"VLOOKUP(TRIM(J1030),'Transactional Departments'!A:B,2,FALSE)","v":"Plant Path Sum"},"17280001","18400","RPEANRF332704CV","A01","",""]
["17","332",null,null,"GPC      RF RF_ROOT-KNOT BRENN","2521RF332705","21300","12100","62002","17280001",{"$f":"VLOOKUP(TRIM(J1031),'Transactional Departments'!A:B,2,FALSE)","v":"Plant Path Sum"},"17280001","18400","RGPNTRF332705CV","A01","",""]
["17","332",null,null,"GACC PEANRF RF_LEAF SPOT CULBR","2521RF332706","21300","12100","62002","17280001",{"$f":"VLOOKUP(TRIM(J1032),'Transactional Departments'!A:B,2,FALSE)","v":"Plant Path Sum"},"17280001","18400","RGPNTRF332706CV","A01","",""]
["17","332",null,null,"GACC PEANRF RF_TOMATO SPOCULBR","2521RF332707","21300","12100","62002","17280001",{"$f":"VLOOKUP(TRIM(J1033),'Transactional Departments'!A:B,2,FALSE)","v":"Plant Path Sum"},"17280001","18400","RGPNTRF332707CV","A01","",""]
["17","332",null,null,"PNT FND  RF MAGIC & MARS CULBR","2521RF332708","21300","12100","64389","17280001",{"$f":"VLOOKUP(TRIM(J1034),'Transactional Departments'!A:B,2,FALSE)","v":"Plant Path Sum"},"17280001","18400","RPEANRF332708CV","A01","",""]
["17","332",null,null,"GPC/NPB  RF PNT SPOT WILTCULBR","2521RF332711","21300","12100","62002","17280001",{"$f":"VLOOKUP(TRIM(J1035),'Transactional Departments'!A:B,2,FALSE)","v":"Plant Path Sum"},"17280001","18400","RGPNTRF332711CV","A01","",""]
["17","332",null,null,"BASF        TRIALS 1 AND CULBR","2521RF332713","21300","12100","64002","17280001",{"$f":"VLOOKUP(TRIM(J1036),'Transactional Departments'!A:B,2,FALSE)","v":"Plant Path Sum"},"17280001","18003","SBASFRF332713CV","A01","",""]
["17","332",null,null,"BASF     DEVF2016USRJAA__DUTTA","2521RF332714","21300","12100","64002","17280001",{"$f":"VLOOKUP(TRIM(J1037),'Transactional Departments'!A:B,2,FALSE)","v":"Plant Path Sum"},"17280001","18003","SBASFRF332714CV","A01","",""]
["17","332",null,null,"BASF     DEVF2016USJJA1__BRENN","2521RF332715","21300","12100","64002","17280001",{"$f":"VLOOKUP(TRIM(J1038),'Transactional Departments'!A:B,2,FALSE)","v":"Plant Path Sum"},"17280001","18003","SBASFRF332715CV","A01","",""]
["17","332",null,null,"GACC-PEC RF RF_OPT SCAB FSTEVE","2521RF332716","21300","12100","62045","17280001",{"$f":"VLOOKUP(TRIM(J1039),'Transactional Departments'!A:B,2,FALSE)","v":"Plant Path Sum"},"17280001","18400","RGPCNRF332716CV","A01","",""]
["17","332",null,null,"VOC      RF RF_CENTER ROTGITAI","2521RF332717","21300","12100","64327","17280001",{"$f":"VLOOKUP(TRIM(J1040),'Transactional Departments'!A:B,2,FALSE)","v":"Plant Path Sum"},"17280001","18400","RVIOCRF332717CV","A01","",""]
["17","332",null,null,"VOC      RF RF___________DUTTA","2521RF332718","21300","12100","64327","17280001",{"$f":"VLOOKUP(TRIM(J1041),'Transactional Departments'!A:B,2,FALSE)","v":"Plant Path Sum"},"17280001","18400","RVIOCRF332718CV","A01","",""]
["17","332",null,null,"VOC      RF RF_BLACK MOLDDUTTA","2521RF332719","21300","12100","64327","17280001",{"$f":"VLOOKUP(TRIM(J1042),'Transactional Departments'!A:B,2,FALSE)","v":"Plant Path Sum"},"17280001","18400","RVIOCRF332719CV","A01","",""]
["17","332",null,null,"VOC      RF RF_FUNGAL CNTDUTTA","2521RF332720","21300","12100","64327","17280001",{"$f":"VLOOKUP(TRIM(J1043),'Transactional Departments'!A:B,2,FALSE)","v":"Plant Path Sum"},"17280001","18400","RVIOCRF332720CV","A01","",""]
["17","332",null,null,"NWA      RF RF_FUSARIUM WDUTTA","2521RF332721","21300","12100","64373","17280001",{"$f":"VLOOKUP(TRIM(J1044),'Transactional Departments'!A:B,2,FALSE)","v":"Plant Path Sum"},"17280001","18400","RNWMARF332721CV","A01","",""]
["17","332",null,null,"GACC VEG RF RF_ALTER CARRDUTTA","2521RF332722","21300","12100","62008","17280001",{"$f":"VLOOKUP(TRIM(J1045),'Transactional Departments'!A:B,2,FALSE)","v":"Plant Path Sum"},"17280001","18400","RGVEGRF332722CV","A01","",""]
["17","332",null,null,"GACC VEG RF ADV DIAG SUP_BROCK","2521RF332723","21300","12100","62008","17280001",{"$f":"VLOOKUP(TRIM(J1046),'Transactional Departments'!A:B,2,FALSE)","v":"Plant Path Sum"},"17280001","18400","RGVEGRF332723CV","A01","",""]
["17","332",null,null,"GACC VEG RF RF_PEPPER LEADUTTA","2521RF332724","21300","12100","62008","17280001",{"$f":"VLOOKUP(TRIM(J1047),'Transactional Departments'!A:B,2,FALSE)","v":"Plant Path Sum"},"17280001","18400","RGVEGRF332724CV","A01","",""]
["17","332",null,null,"GACC VEG RF RF_EFFECT OF JI   ","2521RF332725","21300","12100","62008","17280001",{"$f":"VLOOKUP(TRIM(J1048),'Transactional Departments'!A:B,2,FALSE)","v":"Plant Path Sum"},"17280001","18400","RGVEGRF332725CV","A01","",""]
["17","332",null,null,"GAWA     RF RF_FUSARIU_WIDUTTA","2521RF332726","21300","12100","64324","17280001",{"$f":"VLOOKUP(TRIM(J1049),'Transactional Departments'!A:B,2,FALSE)","v":"Plant Path Sum"},"17280001","18400","RWTRMRF332726CV","A01","",""]
["17","332",null,null,"GAWA     RF FUSARIU WILT JI   ","2521RF332727","21300","12100","64324","17280001",{"$f":"VLOOKUP(TRIM(J1050),'Transactional Departments'!A:B,2,FALSE)","v":"Plant Path Sum"},"17280001","18400","RWTRMRF332727CV","A01","",""]
["17","332",null,null,"GAWA     RF RF_PHYTOPHTHOJI   ","2521RF332728","21300","12100","64324","17280001",{"$f":"VLOOKUP(TRIM(J1051),'Transactional Departments'!A:B,2,FALSE)","v":"Plant Path Sum"},"17280001","18400","RWTRMRF332728CV","A01","",""]
["17","332",null,null,"GACC TOBARF RF_EVAL TOB CCSINO","2521RF332729","21300","12100","62005","17280001",{"$f":"VLOOKUP(TRIM(J1052),'Transactional Departments'!A:B,2,FALSE)","v":"Plant Path Sum"},"17280001","18400","RGTOBRF332729CV","A01","",""]
["17","332",null,null,"GACC TOBARF RF_MINERAL ELDUTTA","2521RF332730","21300","12100","62005","17280001",{"$f":"VLOOKUP(TRIM(J1053),'Transactional Departments'!A:B,2,FALSE)","v":"Plant Path Sum"},"17280001","18400","RGTOBRF332730CV","A01","",""]
["17","332",null,null,"GACC TOBARF RF_NEM ROOT KCSINO","2521RF332731","21300","12100","62005","17280001",{"$f":"VLOOKUP(TRIM(J1054),'Transactional Departments'!A:B,2,FALSE)","v":"Plant Path Sum"},"17280001","18400","RGTOBRF332731CV","A01","",""]
["17","332",null,null,"GACC PECARF RF_SCAB FUNGISTEVE","2521RF332732","21300","12100","62045","17280001",{"$f":"VLOOKUP(TRIM(J1055),'Transactional Departments'!A:B,2,FALSE)","v":"Plant Path Sum"},"17280001","18400","RGPCNRF332732CV","A01","",""]
["17","332",null,null,"GACC PNUTRF RF_TOMATO SPOCULBR","2521RF332734","21300","12100","62002","17280001",{"$f":"VLOOKUP(TRIM(J1056),'Transactional Departments'!A:B,2,FALSE)","v":"Plant Path Sum"},"17280001","18400","RGPNTRF332734CV","A01","",""]
["17","332",null,null,"GACC PNTSRF RF_LEAF SPOT CULBR","2521RF332735","21300","12100","62002","17280001",{"$f":"VLOOKUP(TRIM(J1057),'Transactional Departments'!A:B,2,FALSE)","v":"Plant Path Sum"},"17280001","18400","RGPNTRF332735CV","A01","",""]
["17","332",null,null,"PNUT FNDNRF RF_MAGIC & MACULBR","2521RF332736","21300","12100","64389","17280001",{"$f":"VLOOKUP(TRIM(J1058),'Transactional Departments'!A:B,2,FALSE)","v":"Plant Path Sum"},"17280001","18400","RPEANRF332736CV","A01","",""]
["17","332",null,null,"BASF     UGA_DEVF2017USG BRENN","2521RF332737","21300","12100","64002","17280001",{"$f":"VLOOKUP(TRIM(J1059),'Transactional Departments'!A:B,2,FALSE)","v":"Plant Path Sum"},"17280001","18003","SBASFRF332737CV","A01","",""]
["17","332",null,null,"GACC PECARF RF_SCAB RESISBRENN","2521RF332738","21300","12100","62045","17280001",{"$f":"VLOOKUP(TRIM(J1060),'Transactional Departments'!A:B,2,FALSE)","v":"Plant Path Sum"},"17280001","18400","RGPCNRF332738CV","A01","",""]
["17","332",null,null,"GACC PNUTRF RF_MARKERS/MACULBR","2521RF332739","21300","12100","62002","17280001",{"$f":"VLOOKUP(TRIM(J1061),'Transactional Departments'!A:B,2,FALSE)","v":"Plant Path Sum"},"17280001","18400","RGPNTRF332739CV","A01","",""]
["17","332",null,null,"GACC PNUTRF RF_REGIONAL SBRENN","2521RF332740","21300","12100","62002","17280001",{"$f":"VLOOKUP(TRIM(J1062),'Transactional Departments'!A:B,2,FALSE)","v":"Plant Path Sum"},"17280001","18400","RGPNTRF332740CV","A01","",""]
["17","332",null,null,"SYNGENTA RF RF_PNT ROOTKNBRENN","2521RF332741","21300","12100","64033","17280001",{"$f":"VLOOKUP(TRIM(J1063),'Transactional Departments'!A:B,2,FALSE)","v":"Plant Path Sum"},"17280001","18400","RSYCIRF332741CV","A01","",""]
["17","332",null,null,"GACC PNUTRF RF_SOILBORNE BRENN","2521RF332743","21300","12100","62002","17280001",{"$f":"VLOOKUP(TRIM(J1064),'Transactional Departments'!A:B,2,FALSE)","v":"Plant Path Sum"},"17280001","18400","RGPNTRF332743CV","A01","",""]
["17","332",null,null,"GACC PNUTRF RF_INTEGRATEDCULBR","2521RF332744","21300","12100","62002","17280001",{"$f":"VLOOKUP(TRIM(J1065),'Transactional Departments'!A:B,2,FALSE)","v":"Plant Path Sum"},"17280001","18400","RGPNTRF332744CV","A01","",""]
["17","332",null,null,"BASF     UGA_FUNG EFICAC_CULBR","2521RF332745","21300","12100","64002","17280001",{"$f":"VLOOKUP(TRIM(J1066),'Transactional Departments'!A:B,2,FALSE)","v":"Plant Path Sum"},"17280001","18003","SBASFRF332745CV","A01","",""]
["17","332",null,null,"AM PECAN RF RF_PECAN/PHOSBRENN","2521RF332746","21300","12100","64265","17280001",{"$f":"VLOOKUP(TRIM(J1067),'Transactional Departments'!A:B,2,FALSE)","v":"Plant Path Sum"},"17280001","18400","RAPECRF332746CV","A01","",""]
["17","332",null,null,"PNUT FND RF RF_PHENOTYPINBRENN","2521RF332748","21300","12100","64389","17280001",{"$f":"VLOOKUP(TRIM(J1068),'Transactional Departments'!A:B,2,FALSE)","v":"Plant Path Sum"},"17280001","18400","RPEANRF332748CV","A01","",""]
["17","332",null,null,"PP FED HATCH BRENNEMAN        ","2526GF332131","21300","12100","61HAT","17285001",{"$f":"VLOOKUP(TRIM(J1069),'Transactional Departments'!A:B,2,FALSE)","v":"Brenneman"},"17285001","18003","SNIFAXRGHATCH17","F17","RCP",""]
["17","332",null,null,"PP FED HATCH CULBREATH        ","2526GF332151","21300","12100","61HAT","17285004",{"$f":"VLOOKUP(TRIM(J1070),'Transactional Departments'!A:B,2,FALSE)","v":"Culbreath"},"17285004","18003","SNIFAXRGHATCH17","F17","RCP",""]
["17","332",null,null,"PP FED HATCH GITAITIS         ","2526GF332161","21300","12100","61HAT","17285006",{"$f":"VLOOKUP(TRIM(J1071),'Transactional Departments'!A:B,2,FALSE)","v":"Gitaitis"},"17285006","18003","SNIFAXRGHATCH17","F17","RCP",""]
["17","332",null,null,"PPATH FED HATCH JI            ","2526GF332181","21300","12100","61HAT","17285008",{"$f":"VLOOKUP(TRIM(J1072),'Transactional Departments'!A:B,2,FALSE)","v":"Ji"},"17285008","18003","SNIFAXRGHATCH17","F17","RCP",""]
["17","332",null,null,"PP REG HATCH STEVENSON        ","2526GF332192","21300","12100","61MSH","17285011",{"$f":"VLOOKUP(TRIM(J1073),'Transactional Departments'!A:B,2,FALSE)","v":"Stevenson"},"17285011","18003","SNIFAXMSHATCH17","F17","RCP",""]
["17","352",null,null,"FEDERAL SMITH LEVER           ","2631GE352001","21310","13200","61FSL","17100001",{"$f":"VLOOKUP(TRIM(J1074),'Transactional Departments'!A:B,2,FALSE)","v":"CAES Dean & Director Sum"},"17100001","18003","SNIFAXSMLEVER17","F17","",""]
["17","352",null,null,"DEAN & DIRECTOR FSL           ","2631GE352201","21310","13200","61FSL","17100001",{"$f":"VLOOKUP(TRIM(J1075),'Transactional Departments'!A:B,2,FALSE)","v":"CAES Dean & Director Sum"},"17100001","18003","SNIFAXSMLEVER17","F17","",""]
["17","353",null,null,"FEDERAL SMITH LEVER           ","2631GE353001","21310","13200","61FSL","17130001",{"$f":"VLOOKUP(TRIM(J1076),'Transactional Departments'!A:B,2,FALSE)","v":"CAES Assoc Dean Ext Sum"},"17130001","18003","SNIFAXSMLEVER17","F17","",""]
["17","353",null,null,"ANR PROGRAMS                  ","2631GE353701","21310","13200","61FSL","17310001",{"$f":"VLOOKUP(TRIM(J1077),'Transactional Departments'!A:B,2,FALSE)","v":"Asst Dean Ext Sum"},"17310001","18003","SNIFAXSMLEVER17","F17","",""]
["17","353",null,null,"         ERMA GEORGE EST JOHNS","2631RE353119","21310","13200","64312","17130001",{"$f":"VLOOKUP(TRIM(J1078),'Transactional Departments'!A:B,2,FALSE)","v":"CAES Assoc Dean Ext Sum"},"17130001","18003","SXXXXRE353119CV","A01","",""]
["17","353",null,null,"USDA     URBAN FRSTRY MANHUBBA","2631RE353191","21310","13200","61002","17130001",{"$f":"VLOOKUP(TRIM(J1079),'Transactional Departments'!A:B,2,FALSE)","v":"CAES Assoc Dean Ext Sum"},"17130001","18003","SUSDARE353191CV","A01","",""]
["17","353",null,null,"ACCG     CE LIASON       GARBE","2631RE353241","21310","13200","64302","17130001",{"$f":"VLOOKUP(TRIM(J1080),'Transactional Departments'!A:B,2,FALSE)","v":"CAES Assoc Dean Ext Sum"},"17130001","18003","SASCGRE353241CV","A01","",""]
["17","353",null,null,"FLA/USDA RF SUP 272-344  KANE ","2631RE353255","21310","13200","62511","17130001",{"$f":"VLOOKUP(TRIM(J1081),'Transactional Departments'!A:B,2,FALSE)","v":"CAES Assoc Dean Ext Sum"},"17130001","18400","RUFLXRE353255CV","A01","",""]
["17","353",null,null,"TENN/USDA    BIOMASS SUPL   HU","2631RE353257","21310","13200","62532","17130001",{"$f":"VLOOKUP(TRIM(J1082),'Transactional Departments'!A:B,2,FALSE)","v":"CAES Assoc Dean Ext Sum"},"17130001","18003","SUNTNRE353257CV","A01","",""]
["17","353",null,null,"NCSU/USDAWEBINAR TECHNLG HUBBA","2631RE353258","21310","13200","62506","17130001",{"$f":"VLOOKUP(TRIM(J1083),'Transactional Departments'!A:B,2,FALSE)","v":"CAES Assoc Dean Ext Sum"},"17130001","18003","SNCSURE353258CV","A01","",""]
["17","353",null,null,"USDA FS  COHESIVE FIRE   HUBBA","2631RE353260","21310","13200","61002","17130001",{"$f":"VLOOKUP(TRIM(J1084),'Transactional Departments'!A:B,2,FALSE)","v":"CAES Assoc Dean Ext Sum"},"17130001","18003","SUSDARE353260CV","A01","",""]
["17","353",null,null,"USDA     CNSRVTN WEB PRTLHUBBA","2631RE353261","21310","13200","61002","17130001",{"$f":"VLOOKUP(TRIM(J1085),'Transactional Departments'!A:B,2,FALSE)","v":"CAES Assoc Dean Ext Sum"},"17130001","18003","SUSDARE353261CV","A01","",""]
["17","353",null,null,"USDA     FORESTRY ADVISR HUBBA","2631RE353262","21310","13200","61002","17130001",{"$f":"VLOOKUP(TRIM(J1086),'Transactional Departments'!A:B,2,FALSE)","v":"CAES Assoc Dean Ext Sum"},"17130001","18003","SUSDARE353262CV","A01","",""]
["17","353",null,null,"USDA     EFETAC WEB SUP  HUBBA","2631RE353263","21310","13200","61002","17130001",{"$f":"VLOOKUP(TRIM(J1087),'Transactional Departments'!A:B,2,FALSE)","v":"CAES Assoc Dean Ext Sum"},"17130001","18003","SUSDARE353263CV","A01","",""]
["17","353",null,null,"USDA     FIRE STRATEGY   HUBBA","2631RE353264","21310","13200","61002","17130001",{"$f":"VLOOKUP(TRIM(J1088),'Transactional Departments'!A:B,2,FALSE)","v":"CAES Assoc Dean Ext Sum"},"17130001","18003","SUSDARE353264CV","A01","",""]
["17","353",null,null,"USDA FS  SREF TRVL & SUP HUBBA","2631RE353265","21310","13200","61002","17130001",{"$f":"VLOOKUP(TRIM(J1089),'Transactional Departments'!A:B,2,FALSE)","v":"CAES Assoc Dean Ext Sum"},"17130001","18003","SUSDARE353265CV","A01","",""]
["17","353",null,null,"SREF     SREF 2015       BROWN","2631RE353266","21310","13200","62502","17130001",{"$f":"VLOOKUP(TRIM(J1090),'Transactional Departments'!A:B,2,FALSE)","v":"CAES Assoc Dean Ext Sum"},"17130001","18003","SVAOSRE353266CV","A01","",""]
["17","353",null,null,"USDA NCRSWEBINAR PORTAL  HUBBA","2631RE353269","21310","13200","61005","17130001",{"$f":"VLOOKUP(TRIM(J1091),'Transactional Departments'!A:B,2,FALSE)","v":"CAES Assoc Dean Ext Sum"},"17130001","18003","SNCRSRE353269CV","A01","",""]
["17","353",null,null,"         SO REG FORESTER SPARK","2631RE353432","21310","13200","62502","17130001",{"$f":"VLOOKUP(TRIM(J1092),'Transactional Departments'!A:B,2,FALSE)","v":"CAES Assoc Dean Ext Sum"},"17130001","18003","SVAOSRE353432CV","A01","",""]
["17","353",null,null,"VARIOUS  S REGION EXT    SPARK","2631RE353433","21310","13200","62502","17130001",{"$f":"VLOOKUP(TRIM(J1093),'Transactional Departments'!A:B,2,FALSE)","v":"CAES Assoc Dean Ext Sum"},"17130001","18003","SVAOSRE353433CV","A01","",""]
["17","353",null,null,"USDA FS  RES & DEV WEB   HUBBA","2631RE353438","21310","13200","61003","17130001",{"$f":"VLOOKUP(TRIM(J1094),'Transactional Departments'!A:B,2,FALSE)","v":"CAES Assoc Dean Ext Sum"},"17130001","18003","SUSFSRE353438CV","A01","",""]
["17","353",null,null,"USDA FS  RNGR WEB        HUBBA","2631RE353439","21310","13200","61003","17130001",{"$f":"VLOOKUP(TRIM(J1095),'Transactional Departments'!A:B,2,FALSE)","v":"CAES Assoc Dean Ext Sum"},"17130001","18003","SUSFSRE353439CV","A01","",""]
["17","353",null,null,"USDA FS  CFU-SREF WEB    HUBBA","2631RE353444","21310","13200","61003","17130001",{"$f":"VLOOKUP(TRIM(J1096),'Transactional Departments'!A:B,2,FALSE)","v":"CAES Assoc Dean Ext Sum"},"17130001","18003","SUSFSRE353444CV","A01","",""]
["17","353",null,null,"UNL/USDA EXT 21ST CENT   HUBBA","2631RE353446","21310","13200","62530","17130001",{"$f":"VLOOKUP(TRIM(J1097),'Transactional Departments'!A:B,2,FALSE)","v":"CAES Assoc Dean Ext Sum"},"17130001","18003","SUNONRE353446CV","A01","",""]
["17","353",null,null,"USDA     CLIMATE HUB     HUBBA","2631RE353447","21310","13200","61003","17130001",{"$f":"VLOOKUP(TRIM(J1098),'Transactional Departments'!A:B,2,FALSE)","v":"CAES Assoc Dean Ext Sum"},"17130001","18003","SUSFSRE353447CV","A01","",""]
["17","353",null,null,"USDA FS  EFETAC WEB      HUBBA","2631RE353448","21310","13200","61003","17130001",{"$f":"VLOOKUP(TRIM(J1099),'Transactional Departments'!A:B,2,FALSE)","v":"CAES Assoc Dean Ext Sum"},"17130001","18003","SUSFSRE353448CV","A01","",""]
["17","353",null,null,"VARIOUS  SOUTH REG EXT   JOHNS","2631RE353449","21310","13200","62538","17130001",{"$f":"VLOOKUP(TRIM(J1100),'Transactional Departments'!A:B,2,FALSE)","v":"CAES Assoc Dean Ext Sum"},"17130001","18003","SAUBURE353449CV","A01","",""]
["17","353",null,null,"EXT FOUNDEXT CLI VATIAT  HUBBA","2631RE353450","21310","13200","64424","17130001",{"$f":"VLOOKUP(TRIM(J1101),'Transactional Departments'!A:B,2,FALSE)","v":"CAES Assoc Dean Ext Sum"},"17130001","18003","SEXTFRE353450CV","A01","",""]
["17","353",null,null,"VPI      FOREST FARMER   HUBBA","2631RE353451","21310","13200","62519","17130001",{"$f":"VLOOKUP(TRIM(J1102),'Transactional Departments'!A:B,2,FALSE)","v":"CAES Assoc Dean Ext Sum"},"17130001","18003","SVAPTRE353451CV","A01","",""]
["17","353",null,null,"EXT FOUNDEXT LEARNING    HUBBA","2631RE353452","21310","13200","64424","17130001",{"$f":"VLOOKUP(TRIM(J1103),'Transactional Departments'!A:B,2,FALSE)","v":"CAES Assoc Dean Ext Sum"},"17130001","18003","SEXTFRE353452CV","A01","",""]
["17","353",null,null,"EXT FOUNDADVISOR NETWORK HUBBA","2631RE353453","21310","13200","64424","17130001",{"$f":"VLOOKUP(TRIM(J1104),'Transactional Departments'!A:B,2,FALSE)","v":"CAES Assoc Dean Ext Sum"},"17130001","18003","SEXTFRE353453CV","A01","",""]
["17","353",null,null,"USDA FS  EFETAC WEBSITE       ","2631RE353457","21310","13200","61003","17130001",{"$f":"VLOOKUP(TRIM(J1105),'Transactional Departments'!A:B,2,FALSE)","v":"CAES Assoc Dean Ext Sum"},"17130001","18003","SUSFSRE353457CV","A01","",""]
["17","353",null,null,"USDA FS  RNGR WEB DEV    HUBBA","2631RE353458","21310","13200","61003","17130001",{"$f":"VLOOKUP(TRIM(J1106),'Transactional Departments'!A:B,2,FALSE)","v":"CAES Assoc Dean Ext Sum"},"17130001","18003","SUSFSRE353458CV","A01","",""]
["17","353",null,null,"         SOUTHERN FORESTRJOHNS","2631RE353459","21310","13200","62502","17130001",{"$f":"VLOOKUP(TRIM(J1107),'Transactional Departments'!A:B,2,FALSE)","v":"CAES Assoc Dean Ext Sum"},"17130001","18003","SVAOSRE353459CV","A01","",""]
["17","353",null,null,"USDA NIFAEXCELLENCE      HUBBA","2631RE353460","21310","13200","61006","17130001",{"$f":"VLOOKUP(TRIM(J1108),'Transactional Departments'!A:B,2,FALSE)","v":"CAES Assoc Dean Ext Sum"},"17130001","18003","SNIFARE353460CV","A01","",""]
["17","353",null,null,"CDC      RR770-042       DAVIS","2631RE353461","21310","13200","61031","17130001",{"$f":"VLOOKUP(TRIM(J1109),'Transactional Departments'!A:B,2,FALSE)","v":"CAES Assoc Dean Ext Sum"},"17130001","18003","SCDCXRE353461CV","A01","",""]
["17","353",null,null,"USDA     FOREST SERVICE  HUBBA","2631RE353462","21310","13200","61003","17130001",{"$f":"VLOOKUP(TRIM(J1110),'Transactional Departments'!A:B,2,FALSE)","v":"CAES Assoc Dean Ext Sum"},"17130001","18003","SUSFSRE353462CV","A01","",""]
["17","353",null,null,"USDA FS  EFETAC WEBSITE       ","2631RE353463","21310","13200","61003","17130001",{"$f":"VLOOKUP(TRIM(J1111),'Transactional Departments'!A:B,2,FALSE)","v":"CAES Assoc Dean Ext Sum"},"17130001","18003","SUSFSRE353463CV","A01","",""]
["17","353",null,null,"EXT FTDN CLIMATE CERT    GELLE","2631RE353464","21310","13200","64424","17130001",{"$f":"VLOOKUP(TRIM(J1112),'Transactional Departments'!A:B,2,FALSE)","v":"CAES Assoc Dean Ext Sum"},"17130001","18003","SEXTFRE353464CV","A01","",""]
["17","353",null,null,"USDA FS  WEB II          HUBBA","2631RE353465","21310","13200","61003","17130001",{"$f":"VLOOKUP(TRIM(J1113),'Transactional Departments'!A:B,2,FALSE)","v":"CAES Assoc Dean Ext Sum"},"17130001","18003","SUSFSRE353465CV","A01","",""]
["17","353",null,null,"USDA NCRSWEBINAR II      HUBBA","2631RE353466","21310","13200","61005","17130001",{"$f":"VLOOKUP(TRIM(J1114),'Transactional Departments'!A:B,2,FALSE)","v":"CAES Assoc Dean Ext Sum"},"17130001","18003","SNCRSRE353466CV","A01","",""]
["17","353",null,null,"UF/USDA  RF RR272-726 HUBBARD ","2631RE353467","21310","13200","62511","17130001",{"$f":"VLOOKUP(TRIM(J1115),'Transactional Departments'!A:B,2,FALSE)","v":"CAES Assoc Dean Ext Sum"},"17130001","18400","RUFLXRE353467CV","A01","",""]
["17","353",null,null,"USDA FS  RF DROUGHT FIRE HUBBA","2631RE353468","21310","13200","61003","17130001",{"$f":"VLOOKUP(TRIM(J1116),'Transactional Departments'!A:B,2,FALSE)","v":"CAES Assoc Dean Ext Sum"},"17130001","18400","RUSFSRE353468CV","A01","",""]
["17","353",null,null,"         VARIOUS STATES  JOHNS","2631RE353469","21310","13200","62502","17130001",{"$f":"VLOOKUP(TRIM(J1117),'Transactional Departments'!A:B,2,FALSE)","v":"CAES Assoc Dean Ext Sum"},"17130001","18003","SVAOSRE353469CV","A01","",""]
["17","353",null,null,"GDHS     YOUTH DEVEL     FUTRI","2631RE353470","21310","13200","62015","17130001",{"$f":"VLOOKUP(TRIM(J1118),'Transactional Departments'!A:B,2,FALSE)","v":"CAES Assoc Dean Ext Sum"},"17130001","18003","SGHUMRE353470CV","A01","",""]
["17","353",null,null,"CDC      RR770-047       DAVIS","2631RE353471","21310","13200","61031","17130001",{"$f":"VLOOKUP(TRIM(J1119),'Transactional Departments'!A:B,2,FALSE)","v":"CAES Assoc Dean Ext Sum"},"17130001","18003","SCDCXRE353471CV","A01","",""]
["17","353",null,null,"USDA NIFAGARDEN VOLUN    HUBBA","2631RE353472","21310","13200","61006","17130001",{"$f":"VLOOKUP(TRIM(J1120),'Transactional Departments'!A:B,2,FALSE)","v":"CAES Assoc Dean Ext Sum"},"17130001","18003","SNIFARE353472CV","A01","",""]
["17","354",null,null,"FEDERAL SMITH LEVER           ","2631GE354001","21310","13200","61FSL","17300001",{"$f":"VLOOKUP(TRIM(J1121),'Transactional Departments'!A:B,2,FALSE)","v":"Extension Sum"},"17300001","18003","SNIFAXSMLEVER17","F17","",""]
["17","354",null,null,"PUBLICATIONS FSL              ","2631GE354411","21310","13200","61FSL","17300001",{"$f":"VLOOKUP(TRIM(J1122),'Transactional Departments'!A:B,2,FALSE)","v":"Extension Sum"},"17300001","18003","SNIFAXSMLEVER17","F17","",""]
["17","356",null,null,"FEDERAL SMITH LEVER           ","2631GE356001","21310","13200","61FSL","17321001",{"$f":"VLOOKUP(TRIM(J1123),'Transactional Departments'!A:B,2,FALSE)","v":"NE District Sum"},"17321001","18003","SNIFAXSMLEVER17","F17","",""]
["17","356",null,null,"4-H URBAN PROGRAM             ","2631GE356101","21310","13200","61FSL","17321400",{"$f":"VLOOKUP(TRIM(J1124),'Transactional Departments'!A:B,2,FALSE)","v":"NE 4-H"},"17321400","18003","SNIFAXSMLEVER17","F17","",""]
["17","356",null,null,"CDC      RE353-461       DAVIS","2631RE356279","21310","13200","61031","17321001",{"$f":"VLOOKUP(TRIM(J1125),'Transactional Departments'!A:B,2,FALSE)","v":"NE District Sum"},"17321001","18003","SCDCXRE356279CV","A01","",""]
["17","356",null,null,"FRANK C&GFRANKLIN CO BOC ASHLE","2631RE356382","21310","13200","63023","17321001",{"$f":"VLOOKUP(TRIM(J1126),'Transactional Departments'!A:B,2,FALSE)","v":"NE District Sum"},"17321001","18003","SCFRARE356382CV","A01","",""]
["17","356",null,null,"HABER C&GHABERSHAM BOC   ASHLE","2631RE356383","21310","13200","63074","17321001",{"$f":"VLOOKUP(TRIM(J1127),'Transactional Departments'!A:B,2,FALSE)","v":"NE District Sum"},"17321001","18003","SCOOHRE356383CV","A01","",""]
["17","356",null,null,"JASPERC&GJASPER BOE      ASHLE","2631RE356385","21310","13200","63052","17321001",{"$f":"VLOOKUP(TRIM(J1128),'Transactional Departments'!A:B,2,FALSE)","v":"NE District Sum"},"17321001","18003","SCJASRE356385CV","A01","",""]
["17","356",null,null,"BANKS C&GBANKS CO BOC    ASHLE","2631RE356390","21310","13200","63096","17321001",{"$f":"VLOOKUP(TRIM(J1129),'Transactional Departments'!A:B,2,FALSE)","v":"NE District Sum"},"17321001","18003","SCBANRE356390CV","A01","",""]
["17","356",null,null,"C&G      LUMPKIN CO BOE  ASHLE","2631RE356392","21310","13200","63060","17321001",{"$f":"VLOOKUP(TRIM(J1130),'Transactional Departments'!A:B,2,FALSE)","v":"NE District Sum"},"17321001","18003","SCLUMRE356392CV","A01","",""]
["17","356",null,null,"BANKS    C&G BANKS BOC   ASHLE","2631RE356407","21310","13200","63096","17321001",{"$f":"VLOOKUP(TRIM(J1131),'Transactional Departments'!A:B,2,FALSE)","v":"NE District Sum"},"17321001","18003","SCBANRE356407CV","A01","",""]
["17","356",null,null,"COH      HABERSHAM BOC   ASHLE","2631RE356413","21310","13200","63074","17321001",{"$f":"VLOOKUP(TRIM(J1132),'Transactional Departments'!A:B,2,FALSE)","v":"NE District Sum"},"17321001","18003","SCOOHRE356413CV","A01","",""]
["17","356",null,null,"COH      HANCOCK BOC     ASHLE","2631RE356414","21310","13200","63085","17321001",{"$f":"VLOOKUP(TRIM(J1133),'Transactional Departments'!A:B,2,FALSE)","v":"NE District Sum"},"17321001","18003","SCHANRE356414CV","A01","",""]
["17","356",null,null,"COJ C&G  JASPER BOE      ASHLE","2631RE356415","21310","13200","63052","17321001",{"$f":"VLOOKUP(TRIM(J1134),'Transactional Departments'!A:B,2,FALSE)","v":"NE District Sum"},"17321001","18003","SCJASRE356415CV","A01","",""]
["17","356",null,null,"COL      LUMPKIN_BOE     ASHLE","2631RE356416","21310","13200","63060","17321001",{"$f":"VLOOKUP(TRIM(J1135),'Transactional Departments'!A:B,2,FALSE)","v":"NE District Sum"},"17321001","18003","SCLUMRE356416CV","A01","",""]
["17","356",null,null,"COO      OGLETHORPE BOE  ASHLE","2631RE356417","21310","13200","63049","17321001",{"$f":"VLOOKUP(TRIM(J1136),'Transactional Departments'!A:B,2,FALSE)","v":"NE District Sum"},"17321001","18003","SCOGLRE356417CV","A01","",""]
["17","356",null,null,"COM      MORGAN BOC      ASHLE","2631RE356418","21310","13200","63045","17321001",{"$f":"VLOOKUP(TRIM(J1137),'Transactional Departments'!A:B,2,FALSE)","v":"NE District Sum"},"17321001","18003","SCMORRE356418CV","A01","",""]
["17","356",null,null,"COB      BANKS BOC       ASHLE","2631RE356419","21310","13200","63096","17321001",{"$f":"VLOOKUP(TRIM(J1138),'Transactional Departments'!A:B,2,FALSE)","v":"NE District Sum"},"17321001","18003","SCBANRE356419CV","A01","",""]
["17","356",null,null,"COF      FRANKLIN BOC    ASHLE","2631RE356420","21310","13200","63023","17321001",{"$f":"VLOOKUP(TRIM(J1139),'Transactional Departments'!A:B,2,FALSE)","v":"NE District Sum"},"17321001","18003","SCFRARE356420CV","A01","",""]
["17","356",null,null,"COM      MADISON BOE     ASHLE","2631RE356421","21310","13200","63091","17321001",{"$f":"VLOOKUP(TRIM(J1140),'Transactional Departments'!A:B,2,FALSE)","v":"NE District Sum"},"17321001","18003","SCMADRE356421CV","A01","",""]
["17","356",null,null,"COG      GREENE BOE      ASHLE","2631RE356422","21310","13200","63046","17321001",{"$f":"VLOOKUP(TRIM(J1141),'Transactional Departments'!A:B,2,FALSE)","v":"NE District Sum"},"17321001","18003","SCGRERE356422CV","A01","",""]
["17","356",null,null,"COC      COLUMBIA BOC    ASHLE","2631RE356423","21310","13200","63022","17321001",{"$f":"VLOOKUP(TRIM(J1142),'Transactional Departments'!A:B,2,FALSE)","v":"NE District Sum"},"17321001","18003","SCCOLRE356423CV","A01","",""]
["17","356",null,null,"COP      PICKEND BOC     ASHLE","2631RE356424","21310","13200","63068","17321001",{"$f":"VLOOKUP(TRIM(J1143),'Transactional Departments'!A:B,2,FALSE)","v":"NE District Sum"},"17321001","18003","SCPICRE356424CV","A01","",""]
["17","356",null,null,"COP C&G  PICKENS BOE     ASHLE","2631RE356425","21310","13200","63068","17321001",{"$f":"VLOOKUP(TRIM(J1144),'Transactional Departments'!A:B,2,FALSE)","v":"NE District Sum"},"17321001","18003","SCPICRE356425CV","A01","",""]
["17","356",null,null,"COD      DAWSON BOE      ASHLE","2631RE356426","21310","13200","63058","17321001",{"$f":"VLOOKUP(TRIM(J1145),'Transactional Departments'!A:B,2,FALSE)","v":"NE District Sum"},"17321001","18003","SCDAWRE356426CV","A01","",""]
["17","356",null,null,"         JACKSON COUNTY AASHLE","2631RE356427","21310","13200","63059","17321001",{"$f":"VLOOKUP(TRIM(J1146),'Transactional Departments'!A:B,2,FALSE)","v":"NE District Sum"},"17321001","18003","SJACKRE356427CV","A01","",""]
["17","356",null,null,"         GREENE CTY BOE  ASHLE","2631RE356428","21310","13200","63046","17321001",{"$f":"VLOOKUP(TRIM(J1147),'Transactional Departments'!A:B,2,FALSE)","v":"NE District Sum"},"17321001","18003","SCGRERE356428CV","A01","",""]
["17","356",null,null,"         JACKSON CTY BOC ASHLE","2631RE356429","21310","13200","63059","17321001",{"$f":"VLOOKUP(TRIM(J1148),'Transactional Departments'!A:B,2,FALSE)","v":"NE District Sum"},"17321001","18003","SJACKRE356429CV","A01","",""]
["17","356",null,null,"         GREENE CTY BOC  ASHLE","2631RE356430","21310","13200","63125","17321001",{"$f":"VLOOKUP(TRIM(J1149),'Transactional Departments'!A:B,2,FALSE)","v":"NE District Sum"},"17321001","18003","SGCBCRE356430CV","A01","",""]
["17","356",null,null,"         BANKS BOC       ASHLE","2631RE356431","21310","13200","63096","17321001",{"$f":"VLOOKUP(TRIM(J1150),'Transactional Departments'!A:B,2,FALSE)","v":"NE District Sum"},"17321001","18003","SCBANRE356431CV","A01","",""]
["17","356",null,null,"         DAWSON BOE      ASHLE","2631RE356432","21310","13200","63058","17321001",{"$f":"VLOOKUP(TRIM(J1151),'Transactional Departments'!A:B,2,FALSE)","v":"NE District Sum"},"17321001","18003","SCDAWRE356432CV","A01","",""]
["17","356",null,null,"         GREENE BOC      ASHLE","2631RE356433","21310","13200","63046","17321001",{"$f":"VLOOKUP(TRIM(J1152),'Transactional Departments'!A:B,2,FALSE)","v":"NE District Sum"},"17321001","18003","SCGRERE356433CV","A01","",""]
["17","356",null,null,"         GREENE BOE      ASHLE","2631RE356434","21310","13200","63040","17321001",{"$f":"VLOOKUP(TRIM(J1153),'Transactional Departments'!A:B,2,FALSE)","v":"NE District Sum"},"17321001","18003","SGCBERE356434CV","A01","",""]
["17","356",null,null,"         HABERSHAM BOC   ASHLE","2631RE356435","21310","13200","63074","17321001",{"$f":"VLOOKUP(TRIM(J1154),'Transactional Departments'!A:B,2,FALSE)","v":"NE District Sum"},"17321001","18003","SCOOHRE356435CV","A01","",""]
["17","356",null,null,"         MADISON BOE     ASHLE","2631RE356436","21310","13200","63091","17321001",{"$f":"VLOOKUP(TRIM(J1155),'Transactional Departments'!A:B,2,FALSE)","v":"NE District Sum"},"17321001","18003","SCMADRE356436CV","A01","",""]
["17","356",null,null,"         PICKENS BOC     ASHLE","2631RE356437","21310","13200","63068","17321001",{"$f":"VLOOKUP(TRIM(J1156),'Transactional Departments'!A:B,2,FALSE)","v":"NE District Sum"},"17321001","18003","SCPICRE356437CV","A01","",""]
["17","356",null,null,"         PICKENS BOE     ASHLE","2631RE356438","21310","13200","63068","17321001",{"$f":"VLOOKUP(TRIM(J1157),'Transactional Departments'!A:B,2,FALSE)","v":"NE District Sum"},"17321001","18003","SCPICRE356438CV","A01","",""]
["17","356",null,null,"         HANCOCK BOC     ASHLE","2631RE356439","21310","13200","63085","17321001",{"$f":"VLOOKUP(TRIM(J1158),'Transactional Departments'!A:B,2,FALSE)","v":"NE District Sum"},"17321001","18003","SCHANRE356439CV","A01","",""]
["17","356",null,null,"         OGLETHORPE BOE  ASHLE","2631RE356440","21310","13200","63049","17321001",{"$f":"VLOOKUP(TRIM(J1159),'Transactional Departments'!A:B,2,FALSE)","v":"NE District Sum"},"17321001","18003","SCOGLRE356440CV","A01","",""]
["17","356",null,null,"         MORGAN BOC      ASHLE","2631RE356441","21310","13200","63045","17321001",{"$f":"VLOOKUP(TRIM(J1160),'Transactional Departments'!A:B,2,FALSE)","v":"NE District Sum"},"17321001","18003","SCMORRE356441CV","A01","",""]
["17","356",null,null,"         FRANKLIN BOC    ASHLE","2631RE356442","21310","13200","63023","17321001",{"$f":"VLOOKUP(TRIM(J1161),'Transactional Departments'!A:B,2,FALSE)","v":"NE District Sum"},"17321001","18003","SCFRARE356442CV","A01","",""]
["17","356",null,null,"         COLUMBIA BOC    ASHLE","2631RE356443","21310","13200","63022","17321001",{"$f":"VLOOKUP(TRIM(J1162),'Transactional Departments'!A:B,2,FALSE)","v":"NE District Sum"},"17321001","18003","SCCOLRE356443CV","A01","",""]
["17","356",null,null,"GDHS/UDHHW/580-402       FUTRI","2631RE356444","21310","13200","62015","17321001",{"$f":"VLOOKUP(TRIM(J1163),'Transactional Departments'!A:B,2,FALSE)","v":"NE District Sum"},"17321001","18003","SGHUMRE356444CV","A01","",""]
["17","356",null,null,"         JASPER BOE      ASHLE","2631RE356445","21310","13200","63052","17321001",{"$f":"VLOOKUP(TRIM(J1164),'Transactional Departments'!A:B,2,FALSE)","v":"NE District Sum"},"17321001","18003","SCJASRE356445CV","A01","",""]
["17","356",null,null,"         LUMPKIN CO      ASHLE","2631RE356446","21310","13200","63060","17321001",{"$f":"VLOOKUP(TRIM(J1165),'Transactional Departments'!A:B,2,FALSE)","v":"NE District Sum"},"17321001","18003","SCLUMRE356446CV","A01","",""]
["17","356",null,null,"         PUTNAM BOE      ASHLE","2631RE356448","21310","13200","63087","17321001",{"$f":"VLOOKUP(TRIM(J1166),'Transactional Departments'!A:B,2,FALSE)","v":"NE District Sum"},"17321001","18003","SCPUTRE356448CV","A01","",""]
["17","356",null,null,"CDC      RE353-471       DAVIS","2631RE356449","21310","13200","61031","17321001",{"$f":"VLOOKUP(TRIM(J1167),'Transactional Departments'!A:B,2,FALSE)","v":"NE District Sum"},"17321001","18003","SCDCXRE356449CV","A01","",""]
["17","356",null,null,"GDHS     W/ 353-470      FUTRI","2631RE356450","21310","13200","62015","17321001",{"$f":"VLOOKUP(TRIM(J1168),'Transactional Departments'!A:B,2,FALSE)","v":"NE District Sum"},"17321001","18003","SGHUMRE356450CV","A01","",""]
["17","358",null,null,"AU/USDA  4H ARMY PROJ         ","2631RE358129","21310","13200","62538","17330001",{"$f":"VLOOKUP(TRIM(J1169),'Transactional Departments'!A:B,2,FALSE)","v":"4-H Sum"},"17330001","18003","SAUBURE358129CV","A01","",""]
["17","358",null,null,"         EXE SEC GA 4-H  SMITH","2631RE358137","21310","13200","64381","17330001",{"$f":"VLOOKUP(TRIM(J1170),'Transactional Departments'!A:B,2,FALSE)","v":"4-H Sum"},"17330001","18003","SGA4HRE358137CV","A01","",""]
["17","358",null,null,"KANS/USDASUP RE358-140        ","2631RE358146","21310","13200","62528","17330001",{"$f":"VLOOKUP(TRIM(J1171),'Transactional Departments'!A:B,2,FALSE)","v":"4-H Sum"},"17330001","18003","SKASURE358146CV","A01","",""]
["17","358",null,null,"GA DCA   GRT PRMISE FY13 BUCKL","2631RE358148","21310","13200","62011","17330001",{"$f":"VLOOKUP(TRIM(J1172),'Transactional Departments'!A:B,2,FALSE)","v":"4-H Sum"},"17330001","18003","SGAFCRE358148CV","A01","",""]
["17","358",null,null,"         MILITARY KIDS   MULL ","2631RE358152","21310","13200","61014","17330001",{"$f":"VLOOKUP(TRIM(J1173),'Transactional Departments'!A:B,2,FALSE)","v":"4-H Sum"},"17330001","18003","SUSARRE358152CV","A01","",""]
["17","358",null,null,"USDA     RF SUSTAIN GROWL   MU","2631RE358160","21310","13200","61002","17330001",{"$f":"VLOOKUP(TRIM(J1174),'Transactional Departments'!A:B,2,FALSE)","v":"4-H Sum"},"17330001","18400","RUSDARE358160CV","A01","",""]
["17","358",null,null,"USAF     TEEN LEADERSHIP MULL ","2631RE358165","21310","13200","61013","17330001",{"$f":"VLOOKUP(TRIM(J1175),'Transactional Departments'!A:B,2,FALSE)","v":"4-H Sum"},"17330001","18003","SUSAFRE358165CV","A01","",""]
["17","358",null,null,"KSU      AIR FORCE MIL   MULL ","2631RE358170","21310","13200","62528","17330001",{"$f":"VLOOKUP(TRIM(J1176),'Transactional Departments'!A:B,2,FALSE)","v":"4-H Sum"},"17330001","18003","SKASURE358170CV","A01","",""]
["17","358",null,null,"PURDUE   MILITARY FY16   MULL ","2631RE358172","21310","13200","62508","17330001",{"$f":"VLOOKUP(TRIM(J1177),'Transactional Departments'!A:B,2,FALSE)","v":"4-H Sum"},"17330001","18003","SPURDRE358172CV","A01","",""]
["17","358",null,null,"USDOD    TEEN RESIL      MULL ","2631RE358173","21310","13200","61012","17330001",{"$f":"VLOOKUP(TRIM(J1178),'Transactional Departments'!A:B,2,FALSE)","v":"4-H Sum"},"17330001","18003","SUSDDRE358173CV","A01","",""]
["17","358",null,null,"CNCS     AMERICORP       CHAPM","2631RE358174","21310","13200","64353","17330001",{"$f":"VLOOKUP(TRIM(J1179),'Transactional Departments'!A:B,2,FALSE)","v":"4-H Sum"},"17330001","18003","SCOFSRE358174CV","A01","",""]
["17","358",null,null,"GCSV/CNCSMATCH RE358174  BUCKL","2631RE358175","21310","13200","64353","17330001",{"$f":"VLOOKUP(TRIM(J1180),'Transactional Departments'!A:B,2,FALSE)","v":"4-H Sum"},"17330001","18003","SCOFSRE358175CV","A01","",""]
["17","358",null,null,"UF       CLIMATE VARI    BIERS","2631RE358176","21310","13200","62511","17330001",{"$f":"VLOOKUP(TRIM(J1181),'Transactional Departments'!A:B,2,FALSE)","v":"4-H Sum"},"17330001","18003","SUFLXRE358176CV","A01","",""]
["17","358",null,null,"PU/NIFA  MIL TEEN ADV CA MULL ","2631RE358179","21310","13200","62508","17330001",{"$f":"VLOOKUP(TRIM(J1182),'Transactional Departments'!A:B,2,FALSE)","v":"4-H Sum"},"17330001","18003","SPURDRE358179CV","A01","",""]
["17","358",null,null,"PU/NIFA  MIL TEEN ADV PAMULL  ","2631RE358180","21310","13200","62508","17330001",{"$f":"VLOOKUP(TRIM(J1183),'Transactional Departments'!A:B,2,FALSE)","v":"4-H Sum"},"17330001","18003","SPURDRE358180CV","A01","",""]
["17","358",null,null,"         AF TEEN SUMMITS MULL ","2631RE358181","21310","13200","61013","17330001",{"$f":"VLOOKUP(TRIM(J1184),'Transactional Departments'!A:B,2,FALSE)","v":"4-H Sum"},"17330001","18003","SUSAFRE358181CV","A01","",""]
["17","358",null,null,"USDOA    165 APR 17 CAMP MULL ","2631RE358182","21310","13200","61013","17330001",{"$f":"VLOOKUP(TRIM(J1185),'Transactional Departments'!A:B,2,FALSE)","v":"4-H Sum"},"17330001","18003","SUSAFRE358182CV","A01","",""]
["17","358",null,null,"KSU/USDA NAVY STEAM CAMP MULL ","2631RE358183","21310","13200","62528","17330001",{"$f":"VLOOKUP(TRIM(J1186),'Transactional Departments'!A:B,2,FALSE)","v":"4-H Sum"},"17330001","18003","SKASURE358183CV","A01","",""]
["17","358",null,null,"NSU/USDA NAVY STEAM PART MULL ","2631RE358184","21310","13200","62528","17330001",{"$f":"VLOOKUP(TRIM(J1187),'Transactional Departments'!A:B,2,FALSE)","v":"4-H Sum"},"17330001","18003","SKASURE358184CV","A01","",""]
["17","358",null,null,"USDOE    GA GUARD FAM RE MULL ","2631RE358186","21310","13200","61012","17330001",{"$f":"VLOOKUP(TRIM(J1188),'Transactional Departments'!A:B,2,FALSE)","v":"4-H Sum"},"17330001","18003","SUSDDRE358186CV","A01","",""]
["17","358",null,null,"CORP NATLAMERICORPS GR   CHAPM","2631RE358187","21310","13200","64353","17330001",{"$f":"VLOOKUP(TRIM(J1189),'Transactional Departments'!A:B,2,FALSE)","v":"4-H Sum"},"17330001","18003","SCOFSRE358187CV","A01","",""]
["17","358",null,null,"         REFOREST NURSERYHUBBA","2631RE358188","21310","13200","64353","17330001",{"$f":"VLOOKUP(TRIM(J1190),'Transactional Departments'!A:B,2,FALSE)","v":"4-H Sum"},"17330001","18003","SCOFSRE358188CV","A01","",""]
["17","358",null,null,"USDOAF   CLLGE CAREER CA MULL ","2631RE358189","21310","13200","61013","17330001",{"$f":"VLOOKUP(TRIM(J1191),'Transactional Departments'!A:B,2,FALSE)","v":"4-H Sum"},"17330001","18003","SUSAFRE358189CV","A01","",""]
["17","358",null,null,"USDEPTAF TEEN SUMMITS    MULL ","2631RE358190","21310","13200","61013","17330001",{"$f":"VLOOKUP(TRIM(J1192),'Transactional Departments'!A:B,2,FALSE)","v":"4-H Sum"},"17330001","18003","SUSAFRE358190CV","A01","",""]
["17","358",null,null,"KSU/USDA OUTREACH SUPPORTMULL ","2631RE358191","21310","13200","62528","17330001",{"$f":"VLOOKUP(TRIM(J1193),'Transactional Departments'!A:B,2,FALSE)","v":"4-H Sum"},"17330001","18003","SKASURE358191CV","A01","",""]
["17","358",null,null,"GDHS     W/ 353-470      FUTRI","2631RE358192","21310","13200","62015","17330001",{"$f":"VLOOKUP(TRIM(J1194),'Transactional Departments'!A:B,2,FALSE)","v":"4-H Sum"},"17330001","18003","SGHUMRE358192CV","A01","",""]
["17","358",null,null,"         4H CAPTL IMPROVE     ","8064RY358802","50100","17620","64312","17330001",{"$f":"VLOOKUP(TRIM(J1195),'Transactional Departments'!A:B,2,FALSE)","v":"4-H Sum"},"17330001","18003","SPRIVRY358802CV","A01","",""]
["17","360",null,null,"FEDERAL SMITH LEVER           ","2631GE360001","21310","13200","61FSL","17324001",{"$f":"VLOOKUP(TRIM(J1196),'Transactional Departments'!A:B,2,FALSE)","v":"SE District Sum"},"17324001","18003","SNIFAXSMLEVER17","F17","",""]
["17","360",null,null,"4-H URBAN PROGRAM             ","2631GE360101","21310","13200","61FSL","17324600",{"$f":"VLOOKUP(TRIM(J1197),'Transactional Departments'!A:B,2,FALSE)","v":"SE 4-H"},"17324600","18003","SNIFAXSMLEVER17","F17","",""]
["17","360",null,null,"VIDALIA ONION FARM            ","2631GE360801","21310","13200","61FSL","17312001",{"$f":"VLOOKUP(TRIM(J1198),'Transactional Departments'!A:B,2,FALSE)","v":"VOVRC Sum"},"17312001","18003","SNIFAXSMLEVER17","F17","",""]
["17","360",null,null,"         VAR RSCH VIDALI MILAM","2631RE360163","21310","13200","64206","17324001",{"$f":"VLOOKUP(TRIM(J1199),'Transactional Departments'!A:B,2,FALSE)","v":"SE District Sum"},"17324001","18003","SVARIRE360163CV","A01","",""]
["17","360",null,null,"COJ_C&G  JOHNSON BOC AGT MILAM","2631RE360171","21310","13200","63086","17324001",{"$f":"VLOOKUP(TRIM(J1200),'Transactional Departments'!A:B,2,FALSE)","v":"SE District Sum"},"17324001","18003","SCJOHRE360171CV","A01","",""]
["17","360",null,null,"         CHATHAM BOC OFF MILAM","2631RE360406","21310","13200","63015","17324001",{"$f":"VLOOKUP(TRIM(J1201),'Transactional Departments'!A:B,2,FALSE)","v":"SE District Sum"},"17324001","18003","SCHTMRE360406CV","A01","",""]
["17","360",null,null,"CHATH C&GCHATHAM BAM     MILAM","2631RE360436","21310","13200","63015","17324001",{"$f":"VLOOKUP(TRIM(J1202),'Transactional Departments'!A:B,2,FALSE)","v":"SE District Sum"},"17324001","18003","SCHTMRE360436CV","A01","",""]
["17","360",null,null,"CHATH C&GCHATHAM CO EXT  MILAM","2631RE360437","21310","13200","63015","17324001",{"$f":"VLOOKUP(TRIM(J1203),'Transactional Departments'!A:B,2,FALSE)","v":"SE District Sum"},"17324001","18003","SCHTMRE360437CV","A01","",""]
["17","360",null,null,"TREUT C&GPA CONTRACT     MILAM","2631RE360446","21310","13200","63066","17324001",{"$f":"VLOOKUP(TRIM(J1204),'Transactional Departments'!A:B,2,FALSE)","v":"SE District Sum"},"17324001","18003","SCTRERE360446CV","A01","",""]
["17","360",null,null,"WARE C&G PA CONTRACT     MILAM","2631RE360447","21310","13200","63034","17324001",{"$f":"VLOOKUP(TRIM(J1205),'Transactional Departments'!A:B,2,FALSE)","v":"SE District Sum"},"17324001","18003","SCWARRE360447CV","A01","",""]
["17","360",null,null,"USDA NIFARF W/ 722-418   LI   ","2631RE360460","21310","13200","61006","17324001",{"$f":"VLOOKUP(TRIM(J1206),'Transactional Departments'!A:B,2,FALSE)","v":"SE District Sum"},"17324001","18400","RNIFARE360460CV","A01","",""]
["17","360",null,null,"BULLOCH  C&G BUL BOE AG  MILAM","2631RE360468","21310","13200","63030","17324001",{"$f":"VLOOKUP(TRIM(J1207),'Transactional Departments'!A:B,2,FALSE)","v":"SE District Sum"},"17324001","18003","SCBULRE360468CV","A01","",""]
["17","360",null,null,"TATTNALL C&G TATTN BOC   MILAM","2631RE360486","21310","13200","63056","17324001",{"$f":"VLOOKUP(TRIM(J1208),'Transactional Departments'!A:B,2,FALSE)","v":"SE District Sum"},"17324001","18003","STATTRE360486CV","A01","",""]
["17","360",null,null,"COE      EMANUAL BOC PA  MILAM","2631RE360489","21310","13200","63048","17324001",{"$f":"VLOOKUP(TRIM(J1209),'Transactional Departments'!A:B,2,FALSE)","v":"SE District Sum"},"17324001","18003","SCEMARE360489CV","A01","",""]
["17","360",null,null,"COA      ATKINSON BOC    MILAM","2631RE360494","21310","13200","63093","17324001",{"$f":"VLOOKUP(TRIM(J1210),'Transactional Departments'!A:B,2,FALSE)","v":"SE District Sum"},"17324001","18003","SCATKRE360494CV","A01","",""]
["17","360",null,null,"COB      BACON BOC AG    MILAM","2631RE360495","21310","13200","63070","17324001",{"$f":"VLOOKUP(TRIM(J1211),'Transactional Departments'!A:B,2,FALSE)","v":"SE District Sum"},"17324001","18003","SCBACRE360495CV","A01","",""]
["17","360",null,null,"COB      BACON BOC BRF   MILAM","2631RE360496","21310","13200","63070","17324001",{"$f":"VLOOKUP(TRIM(J1212),'Transactional Departments'!A:B,2,FALSE)","v":"SE District Sum"},"17324001","18003","SCBACRE360496CV","A01","",""]
["17","360",null,null,"COB      BULLOCH BOC AG  MILAM","2631RE360497","21310","13200","63030","17324001",{"$f":"VLOOKUP(TRIM(J1213),'Transactional Departments'!A:B,2,FALSE)","v":"SE District Sum"},"17324001","18003","SCBULRE360497CV","A01","",""]
["17","360",null,null,"COB      BULLOCH BOC CEA MILAM","2631RE360498","21310","13200","63030","17324001",{"$f":"VLOOKUP(TRIM(J1214),'Transactional Departments'!A:B,2,FALSE)","v":"SE District Sum"},"17324001","18003","SCBULRE360498CV","A01","",""]
["17","360",null,null,"COB      BULLOCH BOE AG  MILAM","2631RE360499","21310","13200","63030","17324001",{"$f":"VLOOKUP(TRIM(J1215),'Transactional Departments'!A:B,2,FALSE)","v":"SE District Sum"},"17324001","18003","SCBULRE360499CV","A01","",""]
["17","360",null,null,"COC      CAMDEN BOC AG   MILAM","2631RE360500","21310","13200","63065","17324001",{"$f":"VLOOKUP(TRIM(J1216),'Transactional Departments'!A:B,2,FALSE)","v":"SE District Sum"},"17324001","18003","SCCAMRE360500CV","A01","",""]
["17","360",null,null,"COC      CANDLER BOC AG  MILAM","2631RE360505","21310","13200","63050","17324001",{"$f":"VLOOKUP(TRIM(J1217),'Transactional Departments'!A:B,2,FALSE)","v":"SE District Sum"},"17324001","18003","SCCANRE360505CV","A01","",""]
["17","360",null,null,"COC      CHATHAM BOC OFF MILAM","2631RE360506","21310","13200","63015","17324001",{"$f":"VLOOKUP(TRIM(J1218),'Transactional Departments'!A:B,2,FALSE)","v":"SE District Sum"},"17324001","18003","SCHTMRE360506CV","A01","",""]
["17","360",null,null,"COG      GLYNN BOC AG    MILAM","2631RE360508","21310","13200","63007","17324001",{"$f":"VLOOKUP(TRIM(J1219),'Transactional Departments'!A:B,2,FALSE)","v":"SE District Sum"},"17324001","18003","SCGLYRE360508CV","A01","",""]
["17","360",null,null,"COJ      JENKINS BOC AG  MILAM","2631RE360509","21310","13200","63084","17324001",{"$f":"VLOOKUP(TRIM(J1220),'Transactional Departments'!A:B,2,FALSE)","v":"SE District Sum"},"17324001","18003","SCJENRE360509CV","A01","",""]
["17","360",null,null,"COJ      JENKINS BOC CEA MILAM","2631RE360510","21310","13200","63084","17324001",{"$f":"VLOOKUP(TRIM(J1221),'Transactional Departments'!A:B,2,FALSE)","v":"SE District Sum"},"17324001","18003","SCJENRE360510CV","A01","",""]
["17","360",null,null,"COJ      JENKINS BOE CEA MILAM","2631RE360511","21310","13200","63084","17324001",{"$f":"VLOOKUP(TRIM(J1222),'Transactional Departments'!A:B,2,FALSE)","v":"SE District Sum"},"17324001","18003","SCJENRE360511CV","A01","",""]
["17","360",null,null,"LONG     LONG BOE CEA    MILAM","2631RE360512","21310","13200","63075","17324001",{"$f":"VLOOKUP(TRIM(J1223),'Transactional Departments'!A:B,2,FALSE)","v":"SE District Sum"},"17324001","18003","SCLONRE360512CV","A01","",""]
["17","360",null,null,"COT      TELFAIR BOC AG  MILAM","2631RE360513","21310","13200","63033","17324001",{"$f":"VLOOKUP(TRIM(J1224),'Transactional Departments'!A:B,2,FALSE)","v":"SE District Sum"},"17324001","18003","SCTELRE360513CV","A01","",""]
["17","360",null,null,"COT      TREUTLEN BOC    MILAM","2631RE360514","21310","13200","63066","17324001",{"$f":"VLOOKUP(TRIM(J1225),'Transactional Departments'!A:B,2,FALSE)","v":"SE District Sum"},"17324001","18003","SCTRERE360514CV","A01","",""]
["17","360",null,null,"WARE     WARE BOC PA     MILAM","2631RE360515","21310","13200","63034","17324001",{"$f":"VLOOKUP(TRIM(J1226),'Transactional Departments'!A:B,2,FALSE)","v":"SE District Sum"},"17324001","18003","SCWARRE360515CV","A01","",""]
["17","360",null,null,"WASH     WASHINGTON BOC  MILAM","2631RE360516","21310","13200","63081","17324001",{"$f":"VLOOKUP(TRIM(J1227),'Transactional Departments'!A:B,2,FALSE)","v":"SE District Sum"},"17324001","18003","SCWASRE360516CV","A01","",""]
["17","360",null,null,"WASH     WASHINGTON BOE  MILAM","2631RE360517","21310","13200","63081","17324001",{"$f":"VLOOKUP(TRIM(J1228),'Transactional Departments'!A:B,2,FALSE)","v":"SE District Sum"},"17324001","18003","SCWASRE360517CV","A01","",""]
["17","360",null,null,"WAYNE    WAYNE BOC AG    MILAM","2631RE360518","21310","13200","63011","17324001",{"$f":"VLOOKUP(TRIM(J1229),'Transactional Departments'!A:B,2,FALSE)","v":"SE District Sum"},"17324001","18003","SCWAYRE360518CV","A01","",""]
["17","360",null,null,"COB      BURKE BOC       MILAM","2631RE360519","21310","13200","63078","17324001",{"$f":"VLOOKUP(TRIM(J1230),'Transactional Departments'!A:B,2,FALSE)","v":"SE District Sum"},"17324001","18003","SCBURRE360519CV","A01","",""]
["17","360",null,null,"COE      EVANS BOC CEA   MILAM","2631RE360520","21310","13200","63055","17324001",{"$f":"VLOOKUP(TRIM(J1231),'Transactional Departments'!A:B,2,FALSE)","v":"SE District Sum"},"17324001","18003","SEVANRE360520CV","A01","",""]
["17","360",null,null,"COT      WILKINSON BOC___MILAM","2631RE360521","21310","13200","63089","17324001",{"$f":"VLOOKUP(TRIM(J1232),'Transactional Departments'!A:B,2,FALSE)","v":"SE District Sum"},"17324001","18003","SCWILRE360521CV","A01","",""]
["17","360",null,null,"C&G      EMANUEL BOC AGT MILAM","2631RE360522","21310","13200","63048","17324001",{"$f":"VLOOKUP(TRIM(J1233),'Transactional Departments'!A:B,2,FALSE)","v":"SE District Sum"},"17324001","18003","SCEMARE360522CV","A01","",""]
["17","360",null,null,"C&G      EMANUEL BOC PA MMILAM","2631RE360523","21310","13200","63048","17324001",{"$f":"VLOOKUP(TRIM(J1234),'Transactional Departments'!A:B,2,FALSE)","v":"SE District Sum"},"17324001","18003","SCEMARE360523CV","A01","",""]
["17","360",null,null,"TC       TOOMBS BOC AGT  MILAM","2631RE360524","21310","13200","63057","17324001",{"$f":"VLOOKUP(TRIM(J1235),'Transactional Departments'!A:B,2,FALSE)","v":"SE District Sum"},"17324001","18003","SCTOORE360524CV","A01","",""]
["17","360",null,null,"         BRYAN BOC-2  MILMILAM","2631RE360525","21310","13200","63077","17324001",{"$f":"VLOOKUP(TRIM(J1236),'Transactional Departments'!A:B,2,FALSE)","v":"SE District Sum"},"17324001","18003","SCBRYRE360525CV","A01","",""]
["17","360",null,null,"MC       MONTGOMERY BC P MILAM","2631RE360526","21310","13200","63054","17324001",{"$f":"VLOOKUP(TRIM(J1237),'Transactional Departments'!A:B,2,FALSE)","v":"SE District Sum"},"17324001","18003","SCMONRE360526CV","A01","",""]
["17","360",null,null,"TC       TOOMBS BOC PA MIMILAM","2631RE360527","21310","13200","63057","17324001",{"$f":"VLOOKUP(TRIM(J1238),'Transactional Departments'!A:B,2,FALSE)","v":"SE District Sum"},"17324001","18003","SCTOORE360527CV","A01","",""]
["17","360",null,null,"CCBOC    CAMDEN BOC PA   MILAM","2631RE360528","21310","13200","63065","17324001",{"$f":"VLOOKUP(TRIM(J1239),'Transactional Departments'!A:B,2,FALSE)","v":"SE District Sum"},"17324001","18003","SCCAMRE360528CV","A01","",""]
["17","360",null,null,"         ATKINSONN BOC AGMILAM","2631RE360529","21310","13200","63093","17324001",{"$f":"VLOOKUP(TRIM(J1240),'Transactional Departments'!A:B,2,FALSE)","v":"SE District Sum"},"17324001","18003","SCATKRE360529CV","A01","",""]
["17","360",null,null,"         BACON BOC AG    MILAM","2631RE360530","21310","13200","63070","17324001",{"$f":"VLOOKUP(TRIM(J1241),'Transactional Departments'!A:B,2,FALSE)","v":"SE District Sum"},"17324001","18003","SCBACRE360530CV","A01","",""]
["17","360",null,null,"         BACON BOC BRF   MILAM","2631RE360531","21310","13200","63070","17324001",{"$f":"VLOOKUP(TRIM(J1242),'Transactional Departments'!A:B,2,FALSE)","v":"SE District Sum"},"17324001","18003","SCBACRE360531CV","A01","",""]
["17","360",null,null,"         BULLOCH BOC AG  MILAM","2631RE360532","21310","13200","63030","17324001",{"$f":"VLOOKUP(TRIM(J1243),'Transactional Departments'!A:B,2,FALSE)","v":"SE District Sum"},"17324001","18003","SCBULRE360532CV","A01","",""]
["17","360",null,null,"         BULLOCH BOC OFF MILAM","2631RE360533","21310","13200","63030","17324001",{"$f":"VLOOKUP(TRIM(J1244),'Transactional Departments'!A:B,2,FALSE)","v":"SE District Sum"},"17324001","18003","SCBULRE360533CV","A01","",""]
["17","360",null,null,"         BULLOCH BOE AG  MILAM","2631RE360534","21310","13200","63030","17324001",{"$f":"VLOOKUP(TRIM(J1245),'Transactional Departments'!A:B,2,FALSE)","v":"SE District Sum"},"17324001","18003","SCBULRE360534CV","A01","",""]
["17","360",null,null,"         CAMDEN BOC AG   MILAM","2631RE360535","21310","13200","63065","17324001",{"$f":"VLOOKUP(TRIM(J1246),'Transactional Departments'!A:B,2,FALSE)","v":"SE District Sum"},"17324001","18003","SCCAMRE360535CV","A01","",""]
["17","360",null,null,"         CANDLER BOC AG  MILAM","2631RE360536","21310","13200","63050","17324001",{"$f":"VLOOKUP(TRIM(J1247),'Transactional Departments'!A:B,2,FALSE)","v":"SE District Sum"},"17324001","18003","SCCANRE360536CV","A01","",""]
["17","360",null,null,"         CHATHAM BOC OFF MILAM","2631RE360537","21310","13200","63015","17324001",{"$f":"VLOOKUP(TRIM(J1248),'Transactional Departments'!A:B,2,FALSE)","v":"SE District Sum"},"17324001","18003","SCHTMRE360537CV","A01","",""]
["17","360",null,null,"         GLYNN BOC OFF   MILAM","2631RE360539","21310","13200","63007","17324001",{"$f":"VLOOKUP(TRIM(J1249),'Transactional Departments'!A:B,2,FALSE)","v":"SE District Sum"},"17324001","18003","SCGLYRE360539CV","A01","",""]
["17","360",null,null,"         JENKINS BOC AG  MILAM","2631RE360540","21310","13200","63084","17324001",{"$f":"VLOOKUP(TRIM(J1250),'Transactional Departments'!A:B,2,FALSE)","v":"SE District Sum"},"17324001","18003","SCJENRE360540CV","A01","",""]
["17","360",null,null,"         JENKINS BOC PA  MILAM","2631RE360541","21310","13200","63084","17324001",{"$f":"VLOOKUP(TRIM(J1251),'Transactional Departments'!A:B,2,FALSE)","v":"SE District Sum"},"17324001","18003","SCJENRE360541CV","A01","",""]
["17","360",null,null,"         JENKINS BOE PA  MILAM","2631RE360542","21310","13200","63084","17324001",{"$f":"VLOOKUP(TRIM(J1252),'Transactional Departments'!A:B,2,FALSE)","v":"SE District Sum"},"17324001","18003","SCJENRE360542CV","A01","",""]
["17","360",null,null,"         LONG BOE EDU    MILAM","2631RE360543","21310","13200","63075","17324001",{"$f":"VLOOKUP(TRIM(J1253),'Transactional Departments'!A:B,2,FALSE)","v":"SE District Sum"},"17324001","18003","SCLONRE360543CV","A01","",""]
["17","360",null,null,"         TELFAIR BOC AG  MILAM","2631RE360544","21310","13200","63033","17324001",{"$f":"VLOOKUP(TRIM(J1254),'Transactional Departments'!A:B,2,FALSE)","v":"SE District Sum"},"17324001","18003","SCTELRE360544CV","A01","",""]
["17","360",null,null,"         TREUTLEN BOC PA MILAM","2631RE360545","21310","13200","63066","17324001",{"$f":"VLOOKUP(TRIM(J1255),'Transactional Departments'!A:B,2,FALSE)","v":"SE District Sum"},"17324001","18003","SCTRERE360545CV","A01","",""]
["17","360",null,null,"         WARTE BOC PA    MILAM","2631RE360546","21310","13200","63034","17324001",{"$f":"VLOOKUP(TRIM(J1256),'Transactional Departments'!A:B,2,FALSE)","v":"SE District Sum"},"17324001","18003","SCWARRE360546CV","A01","",""]
["17","360",null,null,"         WASHINGTON BOC  MILAM","2631RE360547","21310","13200","63081","17324001",{"$f":"VLOOKUP(TRIM(J1257),'Transactional Departments'!A:B,2,FALSE)","v":"SE District Sum"},"17324001","18003","SCWASRE360547CV","A01","",""]
["17","360",null,null,"         WASHINGTON BOE  MILAM","2631RE360548","21310","13200","63081","17324001",{"$f":"VLOOKUP(TRIM(J1258),'Transactional Departments'!A:B,2,FALSE)","v":"SE District Sum"},"17324001","18003","SCWASRE360548CV","A01","",""]
["17","360",null,null,"         WAYNE BOC AG    MILAM","2631RE360549","21310","13200","63011","17324001",{"$f":"VLOOKUP(TRIM(J1259),'Transactional Departments'!A:B,2,FALSE)","v":"SE District Sum"},"17324001","18003","SCWAYRE360549CV","A01","",""]
["17","360",null,null,"         EVANS BOC EDU   MILAM","2631RE360550","21310","13200","63055","17324001",{"$f":"VLOOKUP(TRIM(J1260),'Transactional Departments'!A:B,2,FALSE)","v":"SE District Sum"},"17324001","18003","SEVANRE360550CV","A01","",""]
["17","360",null,null,"GDHS/UDHHW/ 580-402      FUTRI","2631RE360551","21310","13200","62015","17324001",{"$f":"VLOOKUP(TRIM(J1261),'Transactional Departments'!A:B,2,FALSE)","v":"SE District Sum"},"17324001","18003","SGHUMRE360551CV","A01","",""]
["17","360",null,null,"         TATTNALL BOC PA MILAM","2631RE360552","21310","13200","63056","17324001",{"$f":"VLOOKUP(TRIM(J1262),'Transactional Departments'!A:B,2,FALSE)","v":"SE District Sum"},"17324001","18003","STATTRE360552CV","A01","",""]
["17","360",null,null,"         EMANUEL BOC     MILAM","2631RE360553","21310","13200","63048","17324001",{"$f":"VLOOKUP(TRIM(J1263),'Transactional Departments'!A:B,2,FALSE)","v":"SE District Sum"},"17324001","18003","SCEMARE360553CV","A01","",""]
["17","360",null,null,"         EMANUEL BOC FAC MILAM","2631RE360554","21310","13200","63048","17324001",{"$f":"VLOOKUP(TRIM(J1264),'Transactional Departments'!A:B,2,FALSE)","v":"SE District Sum"},"17324001","18003","SCEMARE360554CV","A01","",""]
["17","360",null,null,"         LIBERTY BOC     MILAM","2631RE360555","21310","13200","63000","17324001",{"$f":"VLOOKUP(TRIM(J1265),'Transactional Departments'!A:B,2,FALSE)","v":"SE District Sum"},"17324001","18003","SXXXXRE360555CV","A01","",""]
["17","360",null,null,"C&G      WILKINSON BOC   MILAM","2631RE360556","21310","13200","63089","17324001",{"$f":"VLOOKUP(TRIM(J1266),'Transactional Departments'!A:B,2,FALSE)","v":"SE District Sum"},"17324001","18003","SCWILRE360556CV","A01","",""]
["17","360",null,null,"C&G      BURKE CO BOC    MILAM","2631RE360557","21310","13200","63078","17324001",{"$f":"VLOOKUP(TRIM(J1267),'Transactional Departments'!A:B,2,FALSE)","v":"SE District Sum"},"17324001","18003","SCBURRE360557CV","A01","",""]
["17","360",null,null,"GDHS     W/ 353-470      FUTRI","2631RE360558","21310","13200","62015","17324001",{"$f":"VLOOKUP(TRIM(J1268),'Transactional Departments'!A:B,2,FALSE)","v":"SE District Sum"},"17324001","18003","SGHUMRE360558CV","A01","",""]
["17","361",null,null,"FEDERAL SMITH LEVER           ","2631GE361001","21310","13200","61FSL","17323001",{"$f":"VLOOKUP(TRIM(J1269),'Transactional Departments'!A:B,2,FALSE)","v":"SW District Sum"},"17323001","18003","SNIFAXSMLEVER17","F17","",""]
["17","361",null,null,"SW DISTRICT $H FSL            ","2631GE361201","21310","13200","61FSL","17323500",{"$f":"VLOOKUP(TRIM(J1270),'Transactional Departments'!A:B,2,FALSE)","v":"SW 4-H"},"17323500","18003","SNIFAXSMLEVER17","F17","",""]
["17","361",null,null,"GACC PCHSUGA_EARLY DETEC_COOK ","2631RE361007","21310","13200","62007","17323001",{"$f":"VLOOKUP(TRIM(J1271),'Transactional Departments'!A:B,2,FALSE)","v":"SW District Sum"},"17323001","18003","SGPCHRE361007CV","A01","",""]
["17","361",null,null,"GADOHS   PREP FY14       MORGA","2631RE361203","21310","13200","62015","17323001",{"$f":"VLOOKUP(TRIM(J1272),'Transactional Departments'!A:B,2,FALSE)","v":"SW District Sum"},"17323001","18003","SGHUMRE361203CV","A01","",""]
["17","361",null,null,"BRKS/C&G  EXT AGENT      JOHNS","2631RE361205","21310","13200","63079","17323001",{"$f":"VLOOKUP(TRIM(J1273),'Transactional Departments'!A:B,2,FALSE)","v":"SW District Sum"},"17323001","18003","SCBRORE361205CV","A01","",""]
["17","361",null,null,"COLQUIC&GCOUNTY EXT AGNT JOHNS","2631RE361206","21310","13200","63067","17323001",{"$f":"VLOOKUP(TRIM(J1274),'Transactional Departments'!A:B,2,FALSE)","v":"SW District Sum"},"17323001","18003","SCOLQRE361206CV","A01","",""]
["17","361",null,null,"C&G      SCHLEY CO BOC   JOHNS","2631RE361210","21310","13200","63039","17323001",{"$f":"VLOOKUP(TRIM(J1275),'Transactional Departments'!A:B,2,FALSE)","v":"SW District Sum"},"17323001","18003","SCSCHRE361210CV","A01","",""]
["17","361",null,null,"BAYER    STONE FRUIT BAC COOK ","2631RE361227","21310","13200","64465","17323001",{"$f":"VLOOKUP(TRIM(J1276),'Transactional Departments'!A:B,2,FALSE)","v":"SW District Sum"},"17323001","18003","SBAYERE361227CV","A01","",""]
["17","361",null,null,"BROOKS   C&G BROOKS BOC  STEWA","2631RE361229","21310","13200","63079","17323001",{"$f":"VLOOKUP(TRIM(J1277),'Transactional Departments'!A:B,2,FALSE)","v":"SW District Sum"},"17323001","18003","SCBRORE361229CV","A01","",""]
["17","361",null,null,"COC      COLQUITT BOC    STEWA","2631RE361231","21310","13200","63067","17323001",{"$f":"VLOOKUP(TRIM(J1278),'Transactional Departments'!A:B,2,FALSE)","v":"SW District Sum"},"17323001","18003","SCOLQRE361231CV","A01","",""]
["17","361",null,null,"COD      DECATUR BOE     STEWA","2631RE361232","21310","13200","63080","17323001",{"$f":"VLOOKUP(TRIM(J1279),'Transactional Departments'!A:B,2,FALSE)","v":"SW District Sum"},"17323001","18003","SCDECRE361232CV","A01","",""]
["17","361",null,null,"COI      IRWIN BOE       STEWA","2631RE361233","21310","13200","63072","17323001",{"$f":"VLOOKUP(TRIM(J1280),'Transactional Departments'!A:B,2,FALSE)","v":"SW District Sum"},"17323001","18003","SCOOIRE361233CV","A01","",""]
["17","361",null,null,"COL      LOWNDES BOC     STEWA","2631RE361234","21310","13200","63019","17323001",{"$f":"VLOOKUP(TRIM(J1281),'Transactional Departments'!A:B,2,FALSE)","v":"SW District Sum"},"17323001","18003","SCLOWRE361234CV","A01","",""]
["17","361",null,null,"COM      MITCHELL BOC    STEWA","2631RE361236","21310","13200","63042","17323001",{"$f":"VLOOKUP(TRIM(J1282),'Transactional Departments'!A:B,2,FALSE)","v":"SW District Sum"},"17323001","18003","SCMITRE361236CV","A01","",""]
["17","361",null,null,"COS      SCHLEY BOC      STEWA","2631RE361237","21310","13200","63039","17323001",{"$f":"VLOOKUP(TRIM(J1283),'Transactional Departments'!A:B,2,FALSE)","v":"SW District Sum"},"17323001","18003","SCSCHRE361237CV","A01","",""]
["17","361",null,null,"COS      STEWART BOE     STEWA","2631RE361238","21310","13200","63095","17323001",{"$f":"VLOOKUP(TRIM(J1284),'Transactional Departments'!A:B,2,FALSE)","v":"SW District Sum"},"17323001","18003","SCSTERE361238CV","A01","",""]
["17","361",null,null,"COS      SUMTER BOE      STEWA","2631RE361239","21310","13200","63076","17323001",{"$f":"VLOOKUP(TRIM(J1285),'Transactional Departments'!A:B,2,FALSE)","v":"SW District Sum"},"17323001","18003","SCSUMRE361239CV","A01","",""]
["17","361",null,null,"COT      TIFTON BOC      STEWA","2631RE361240","21310","13200","63010","17323001",{"$f":"VLOOKUP(TRIM(J1286),'Transactional Departments'!A:B,2,FALSE)","v":"SW District Sum"},"17323001","18003","SCTIFRE361240CV","A01","",""]
["17","361",null,null,"TIFT     TIFT CO BOE     VARNE","2631RE361241","21310","13200","63010","17323001",{"$f":"VLOOKUP(TRIM(J1287),'Transactional Departments'!A:B,2,FALSE)","v":"SW District Sum"},"17323001","18003","SCTIFRE361241CV","A01","",""]
["17","361",null,null,"CDC      RE353-461       DAVIS","2631RE361242","21310","13200","61031","17323001",{"$f":"VLOOKUP(TRIM(J1288),'Transactional Departments'!A:B,2,FALSE)","v":"SW District Sum"},"17323001","18003","SCDCXRE361242CV","A01","",""]
["17","361",null,null,"         CRISP BOC       VARNE","2631RE361243","21310","13200","63064","17323001",{"$f":"VLOOKUP(TRIM(J1289),'Transactional Departments'!A:B,2,FALSE)","v":"SW District Sum"},"17323001","18003","SCRSPRE361243CV","A01","",""]
["17","361",null,null,"GACC VEG UGA_MINIRAE3000_SHEAL","2631RE361244","21310","13200","62008","17323001",{"$f":"VLOOKUP(TRIM(J1290),'Transactional Departments'!A:B,2,FALSE)","v":"SW District Sum"},"17323001","18003","SGVEGRE361244CV","A01","",""]
["17","361",null,null,"BROOKS CCBROOKS BOC      VARNE","2631RE361245","21310","13200","63079","17323001",{"$f":"VLOOKUP(TRIM(J1291),'Transactional Departments'!A:B,2,FALSE)","v":"SW District Sum"},"17323001","18003","SCBRORE361245CV","A01","",""]
["17","361",null,null,"         COLQUITT BOC    VARNE","2631RE361246","21310","13200","63067","17323001",{"$f":"VLOOKUP(TRIM(J1292),'Transactional Departments'!A:B,2,FALSE)","v":"SW District Sum"},"17323001","18003","SCOLQRE361246CV","A01","",""]
["17","361",null,null,"         CRISP BOC       VARNE","2631RE361247","21310","13200","63064","17323001",{"$f":"VLOOKUP(TRIM(J1293),'Transactional Departments'!A:B,2,FALSE)","v":"SW District Sum"},"17323001","18003","SCRSPRE361247CV","A01","",""]
["17","361",null,null,"         DECATUR BOE     VARNE","2631RE361248","21310","13200","63080","17323001",{"$f":"VLOOKUP(TRIM(J1294),'Transactional Departments'!A:B,2,FALSE)","v":"SW District Sum"},"17323001","18003","SCDECRE361248CV","A01","",""]
["17","361",null,null,"         IRWIN BOE       VARNE","2631RE361249","21310","13200","63072","17323001",{"$f":"VLOOKUP(TRIM(J1295),'Transactional Departments'!A:B,2,FALSE)","v":"SW District Sum"},"17323001","18003","SCOOIRE361249CV","A01","",""]
["17","361",null,null,"         LOWNDES BOC     VARNE","2631RE361250","21310","13200","63019","17323001",{"$f":"VLOOKUP(TRIM(J1296),'Transactional Departments'!A:B,2,FALSE)","v":"SW District Sum"},"17323001","18003","SCLOWRE361250CV","A01","",""]
["17","361",null,null,"         MITCHELL BOC    VARNE","2631RE361252","21310","13200","63042","17323001",{"$f":"VLOOKUP(TRIM(J1297),'Transactional Departments'!A:B,2,FALSE)","v":"SW District Sum"},"17323001","18003","SCMITRE361252CV","A01","",""]
["17","361",null,null,"         SCHLEY BOC      VARNE","2631RE361253","21310","13200","63039","17323001",{"$f":"VLOOKUP(TRIM(J1298),'Transactional Departments'!A:B,2,FALSE)","v":"SW District Sum"},"17323001","18003","SCSCHRE361253CV","A01","",""]
["17","361",null,null,"         STEWART BOE     VARNE","2631RE361254","21310","13200","63095","17323001",{"$f":"VLOOKUP(TRIM(J1299),'Transactional Departments'!A:B,2,FALSE)","v":"SW District Sum"},"17323001","18003","SCSTERE361254CV","A01","",""]
["17","361",null,null,"         SUMTER BOE      VARNE","2631RE361255","21310","13200","63076","17323001",{"$f":"VLOOKUP(TRIM(J1300),'Transactional Departments'!A:B,2,FALSE)","v":"SW District Sum"},"17323001","18003","SCSUMRE361255CV","A01","",""]
["17","361",null,null,"         TIFT BOC        VARNE","2631RE361256","21310","13200","63010","17323001",{"$f":"VLOOKUP(TRIM(J1301),'Transactional Departments'!A:B,2,FALSE)","v":"SW District Sum"},"17323001","18003","SCTIFRE361256CV","A01","",""]
["17","361",null,null,"         TIFT BOE        VARNE","2631RE361257","21310","13200","63010","17323001",{"$f":"VLOOKUP(TRIM(J1302),'Transactional Departments'!A:B,2,FALSE)","v":"SW District Sum"},"17323001","18003","SCTIFRE361257CV","A01","",""]
["17","361",null,null,"GDHS/UDHHW/ 580-402      FUTRI","2631RE361258","21310","13200","62015","17323001",{"$f":"VLOOKUP(TRIM(J1303),'Transactional Departments'!A:B,2,FALSE)","v":"SW District Sum"},"17323001","18003","SGHUMRE361258CV","A01","",""]
["17","361",null,null,"CDC      RE353-471       DAVIS","2631RE361259","21310","13200","61031","17323001",{"$f":"VLOOKUP(TRIM(J1304),'Transactional Departments'!A:B,2,FALSE)","v":"SW District Sum"},"17323001","18003","SCDCXRE361259CV","A01","",""]
["17","361",null,null,"GDHS     W/353-470       FUTRI","2631RE361260","21310","13200","62015","17323001",{"$f":"VLOOKUP(TRIM(J1305),'Transactional Departments'!A:B,2,FALSE)","v":"SW District Sum"},"17323001","18003","SGHUMRE361260CV","A01","",""]
["17","366",null,null,"COOPERATIVE EXT FSL           ","2600GE366001","21310","","61FSL","17300001",{"$f":"VLOOKUP(TRIM(J1306),'Transactional Departments'!A:B,2,FALSE)","v":"Extension Sum"},"17300001","18003","SNIFAXSMLEVER17","F17","",""]
["17","366",null,null,"COOPERATIVE EXT FSL           ","2699GN366001","21310","","61FSL","17300001",{"$f":"VLOOKUP(TRIM(J1307),'Transactional Departments'!A:B,2,FALSE)","v":"Extension Sum"},"17300001","18003","SNIFAXSMLEVER17","F17","",""]
["17","367",null,null,"FEDERAL HATCH                 ","2599GN367001","21300","12100","61HAT","17510001",{"$f":"VLOOKUP(TRIM(J1308),'Transactional Departments'!A:B,2,FALSE)","v":"CAES Asst Dean Rsch Sum"},"17510001","18003","SNIFAXRGHATCH17","F17","",""]
["17","369",null,null,"FEDERAL HATCH                 ","2500GD369001","21300","12100","61HAT","17510001",{"$f":"VLOOKUP(TRIM(J1309),'Transactional Departments'!A:B,2,FALSE)","v":"CAES Asst Dean Rsch Sum"},"17510001","18003","SNIFAXRGHATCH17","F17","",""]
["17","369",null,null,"REGIONAL HATCH                ","2500GD369002","21300","12100","61MSH","17510001",{"$f":"VLOOKUP(TRIM(J1310),'Transactional Departments'!A:B,2,FALSE)","v":"CAES Asst Dean Rsch Sum"},"17510001","18003","SNIFAXMSHATCH17","F17","",""]
["17","371",null,null,"         VAR RSCH GIFTS  MISSA","2521RC371126","21300","12100","64206","17513001",{"$f":"VLOOKUP(TRIM(J1311),'Transactional Departments'!A:B,2,FALSE)","v":"CAGT Sum"},"17513001","18003","SVARIRC371126CV","A01","",""]
["17","371",null,null,"         RF TALL FESCUE  MISSA","2521RC371179","21300","12100","64473","17513001",{"$f":"VLOOKUP(TRIM(J1312),'Transactional Departments'!A:B,2,FALSE)","v":"CAGT Sum"},"17513001","18003","SGRASRC371179CV","A01","",""]
["17","371",null,null,"INDN/NSF RF SUP 167-521  BURKE","2521RC371201","21300","12100","62521","17513001",{"$f":"VLOOKUP(TRIM(J1313),'Transactional Departments'!A:B,2,FALSE)","v":"CAGT Sum"},"17513001","18400","RINDIRC371201CV","A01","",""]
["17","371",null,null,"         RF SB TISSUE CULPARRO","2521RC371211","21300","12100","64042","17513001",{"$f":"VLOOKUP(TRIM(J1314),'Transactional Departments'!A:B,2,FALSE)","v":"CAGT Sum"},"17513001","18003","SSMBURC371211CV","A01","",""]
["17","371",null,null,"VIRN/USDARF OOMYCETE DIS PARRO","2521RC371213","21300","12100","62519","17513001",{"$f":"VLOOKUP(TRIM(J1315),'Transactional Departments'!A:B,2,FALSE)","v":"CAGT Sum"},"17513001","18400","RVAPTRC371213CV","A01","",""]
["17","371",null,null,"NCSU     RF RT KNT NEMA  PARRO","2521RC371221","21300","12100","62506","17513001",{"$f":"VLOOKUP(TRIM(J1316),'Transactional Departments'!A:B,2,FALSE)","v":"CAGT Sum"},"17513001","18400","RNCSURC371221CV","A01","",""]
["17","371",null,null,"TXAM/USDA   BREEDING RICEJACKS","2521RC371225","21300","12100","62527","17513001",{"$f":"VLOOKUP(TRIM(J1317),'Transactional Departments'!A:B,2,FALSE)","v":"CAGT Sum"},"17513001","18003","STXAURC371225CV","A01","",""]
["17","371",null,null,"NSF      RF TRPGR SYBEAN LAFAY","2521RC371229","21300","12100","61023","17513001",{"$f":"VLOOKUP(TRIM(J1318),'Transactional Departments'!A:B,2,FALSE)","v":"CAGT Sum"},"17513001","18400","RNSFXRC371229CV","A01","",""]
["17","371",null,null,"         RF BREED LN EVALPARRO","2521RC371239","21300","12100","64000","17513001",{"$f":"VLOOKUP(TRIM(J1319),'Transactional Departments'!A:B,2,FALSE)","v":"CAGT Sum"},"17513001","18003","SXXXXRC371239CV","A01","",""]
["17","371",null,null,"UTB/USDE RF FA1 STRUC    PARRO","2521RC371240","21300","12100","64292","17513001",{"$f":"VLOOKUP(TRIM(J1320),'Transactional Departments'!A:B,2,FALSE)","v":"CAGT Sum"},"17513001","18400","RUTBARC371240CV","A01","",""]
["17","371",null,null,"NSF      RF EPI-GENOMICS JACKS","2521RC371251","21300","12100","61023","17513001",{"$f":"VLOOKUP(TRIM(J1321),'Transactional Departments'!A:B,2,FALSE)","v":"CAGT Sum"},"17513001","18400","RNSFXRC371251CV","A01","",""]
["17","371",null,null,"USDOE    RF W/284614 MISSAOUI ","2521RC371259","21300","12100","61001","17513001",{"$f":"VLOOKUP(TRIM(J1322),'Transactional Departments'!A:B,2,FALSE)","v":"CAGT Sum"},"17513001","18400","RUSDERC371259CV","A01","",""]
["17","371",null,null,"         RF PEANUT LINES JACKS","2521RC371261","21300","12100","64389","17513001",{"$f":"VLOOKUP(TRIM(J1323),'Transactional Departments'!A:B,2,FALSE)","v":"CAGT Sum"},"17513001","18003","SPEANRC371261CV","A01","",""]
["17","371",null,null,"ASA      RF CLINTON STEK LI   ","2521RC371269","21300","12100","64318","17513001",{"$f":"VLOOKUP(TRIM(J1324),'Transactional Departments'!A:B,2,FALSE)","v":"CAGT Sum"},"17513001","18400","RASOARC371269CV","A01","",""]
["17","371",null,null,"SSI      RF RNDUP READY  LI   ","2521RC371271","21300","12100","64064","17513001",{"$f":"VLOOKUP(TRIM(J1325),'Transactional Departments'!A:B,2,FALSE)","v":"CAGT Sum"},"17513001","18400","RSPSIRC371271CV","A01","",""]
["17","371",null,null,"GACCS    RF INSCT RESIST PARRO","2521RC371276","21300","12100","62004","17513001",{"$f":"VLOOKUP(TRIM(J1326),'Transactional Departments'!A:B,2,FALSE)","v":"CAGT Sum"},"17513001","18400","RGSOYRC371276CV","A01","",""]
["17","371",null,null,"NSF      RF BEAN-ADAPT JAJACKS","2521RC371283","21300","12100","61023","17513001",{"$f":"VLOOKUP(TRIM(J1327),'Transactional Departments'!A:B,2,FALSE)","v":"CAGT Sum"},"17513001","18400","RNSFXRC371283CV","A01","",""]
["17","371",null,null,"         VARIOUS         PARRO","2521RC371286","21300","12100","64206","17242WPA",{"$f":"VLOOKUP(TRIM(J1328),'Transactional Departments'!A:B,2,FALSE)","v":"Parrott, Wayne"},"17242WPA","18003","SVARIRC371286CV","A01","",""]
["17","371",null,null,"NSF      RF FUNC GENOMIC PARRO","2521RC371288","21300","12100","61023","17513001",{"$f":"VLOOKUP(TRIM(J1329),'Transactional Departments'!A:B,2,FALSE)","v":"CAGT Sum"},"17513001","18400","RNSFXRC371288CV","A01","",""]
["17","371",null,null,"NSF      RF TOMATO FRUIT VANDE","2521RC371289","21300","12100","61023","17513001",{"$f":"VLOOKUP(TRIM(J1330),'Transactional Departments'!A:B,2,FALSE)","v":"CAGT Sum"},"17513001","18400","RNSFXRC371289CV","A01","",""]
["17","371",null,null,"NSF      RF RC371-251 PS JACKS","2521RC371290","21300","12100","61023","17513001",{"$f":"VLOOKUP(TRIM(J1331),'Transactional Departments'!A:B,2,FALSE)","v":"CAGT Sum"},"17513001","18400","RNSFXRC371290CV","A01","",""]
["17","371",null,null,"USDA     RF FRUIT WEIGHT VANDE","2521RC371291","21300","12100","61006","17513001",{"$f":"VLOOKUP(TRIM(J1332),'Transactional Departments'!A:B,2,FALSE)","v":"CAGT Sum"},"17513001","18400","RNIFARC371291CV","A01","",""]
["17","371",null,null,"GCCP     RF TETRAPLOID   JACKS","2521RC371293","21300","12100","62002","17513001",{"$f":"VLOOKUP(TRIM(J1333),'Transactional Departments'!A:B,2,FALSE)","v":"CAGT Sum"},"17513001","18400","RGPNTRC371293CV","A01","",""]
["17","371",null,null,"GCCP     RF PYRAMIDING   JACKS","2521RC371294","21300","12100","62002","17513001",{"$f":"VLOOKUP(TRIM(J1334),'Transactional Departments'!A:B,2,FALSE)","v":"CAGT Sum"},"17513001","18400","RGPNTRC371294CV","A01","",""]
["17","371",null,null,"GCCP     RF RESIST GENES JACKS","2521RC371295","21300","12100","62002","17513001",{"$f":"VLOOKUP(TRIM(J1335),'Transactional Departments'!A:B,2,FALSE)","v":"CAGT Sum"},"17513001","18400","RGPNTRC371295CV","A01","",""]
["17","371",null,null,"GCCS     RF SOYBEAN VARI LI   ","2521RC371296","21300","12100","62004","17513001",{"$f":"VLOOKUP(TRIM(J1336),'Transactional Departments'!A:B,2,FALSE)","v":"CAGT Sum"},"17513001","18400","RGSOYRC371296CV","A01","",""]
["17","371",null,null,"         RF DOW AGROSCI  LI   ","2521RC371297","21300","12100","64037","17513001",{"$f":"VLOOKUP(TRIM(J1337),'Transactional Departments'!A:B,2,FALSE)","v":"CAGT Sum"},"17513001","18003","SDAGRRC371297CV","A01","",""]
["17","371",null,null,"         RF GENOTYPING   JACKS","2521RC371298","21300","12100","64389","17513001",{"$f":"VLOOKUP(TRIM(J1338),'Transactional Departments'!A:B,2,FALSE)","v":"CAGT Sum"},"17513001","18003","SPEANRC371298CV","A01","",""]
["17","371",null,null,"UMN/USDA RF MUTATION RTE JACKS","2521RC371299","21300","12100","62514","17513001",{"$f":"VLOOKUP(TRIM(J1339),'Transactional Departments'!A:B,2,FALSE)","v":"CAGT Sum"},"17513001","18400","RUOMNRC371299CV","A01","",""]
["17","371",null,null,"DAS      RF ROOT KNOT    LI   ","2521RC371300","21300","12100","64037","17513001",{"$f":"VLOOKUP(TRIM(J1340),'Transactional Departments'!A:B,2,FALSE)","v":"CAGT Sum"},"17513001","18400","RDAGRRC371300CV","A01","",""]
["17","371",null,null,"         VARIOUS         LI   ","2521RC371301","21300","12100","64206","17242ZLI",{"$f":"VLOOKUP(TRIM(J1341),'Transactional Departments'!A:B,2,FALSE)","v":"Li, Zenglu"},"17242ZLI","18003","SVARIRC371301CV","A01","",""]
["17","371",null,null,"         VARIOUS         WALLA","2521RC371304","21300","12100","64206","17242ZLI",{"$f":"VLOOKUP(TRIM(J1342),'Transactional Departments'!A:B,2,FALSE)","v":"Li, Zenglu"},"17242ZLI","18003","SVARIRC371304CV","A01","",""]
["17","371",null,null,"USB      RF NEW BREEDING PARRO","2521RC371305","21300","12100","64042","17513001",{"$f":"VLOOKUP(TRIM(J1343),'Transactional Departments'!A:B,2,FALSE)","v":"CAGT Sum"},"17513001","18400","RSMBURC371305CV","A01","",""]
["17","371",null,null,"USDA     RF SOYBEAN CULT LI   ","2521RC371306","21300","12100","61004","17513001",{"$f":"VLOOKUP(TRIM(J1344),'Transactional Departments'!A:B,2,FALSE)","v":"CAGT Sum"},"17513001","18400","RARSXRC371306CV","A01","",""]
["17","371",null,null,"         SERVICE ORDER   LI   ","2521RC371307","21300","12100","64465","17513001",{"$f":"VLOOKUP(TRIM(J1345),'Transactional Departments'!A:B,2,FALSE)","v":"CAGT Sum"},"17513001","18003","SBAYERC371307CV","A01","",""]
["17","371",null,null,"         RF SCN RESIST   PARRO","2521RC371308","21300","12100","62515","17513001",{"$f":"VLOOKUP(TRIM(J1346),'Transactional Departments'!A:B,2,FALSE)","v":"CAGT Sum"},"17513001","18003","SUNMORC371308CV","A01","",""]
["17","371",null,null,"USDA     RF HOLL SOYBEAN LI   ","2521RC371309","21300","12100","61004","17513001",{"$f":"VLOOKUP(TRIM(J1347),'Transactional Departments'!A:B,2,FALSE)","v":"CAGT Sum"},"17513001","18400","RARSXRC371309CV","A01","",""]
["17","371",null,null,"         RF PEANUT LINES BERTI","2521RC371310","21300","12100","64389","17513001",{"$f":"VLOOKUP(TRIM(J1348),'Transactional Departments'!A:B,2,FALSE)","v":"CAGT Sum"},"17513001","18003","SPEANRC371310CV","A01","",""]
["17","371",null,null,"         GENOME ASSEMBLE BERTI","2521RC371311","21300","12100","64389","17513001",{"$f":"VLOOKUP(TRIM(J1349),'Transactional Departments'!A:B,2,FALSE)","v":"CAGT Sum"},"17513001","18003","SPEANRC371311CV","A01","",""]
["17","371",null,null,"         RF LEAF SPOT    BERTI","2521RC371312","21300","12100","64389","17513001",{"$f":"VLOOKUP(TRIM(J1350),'Transactional Departments'!A:B,2,FALSE)","v":"CAGT Sum"},"17513001","18003","SPEANRC371312CV","A01","",""]
["17","371",null,null,"         RF GENOME STRUC BERTI","2521RC371313","21300","12100","64389","17513001",{"$f":"VLOOKUP(TRIM(J1351),'Transactional Departments'!A:B,2,FALSE)","v":"CAGT Sum"},"17513001","18003","SPEANRC371313CV","A01","",""]
["17","371",null,null,"GCCS     RF INSECT RESIS PARRO","2521RC371314","21300","12100","62004","17513001",{"$f":"VLOOKUP(TRIM(J1352),'Transactional Departments'!A:B,2,FALSE)","v":"CAGT Sum"},"17513001","18400","RGSOYRC371314CV","A01","",""]
["17","371",null,null,"USDA     RF TOMATO FRUIT VANDE","2521RC371315","21300","12100","61006","17513001",{"$f":"VLOOKUP(TRIM(J1353),'Transactional Departments'!A:B,2,FALSE)","v":"CAGT Sum"},"17513001","18400","RNIFARC371315CV","A01","",""]
["17","371",null,null,"GCCS     RF LIBERTYLINK  LI   ","2521RC371318","21300","12100","62004","17513001",{"$f":"VLOOKUP(TRIM(J1354),'Transactional Departments'!A:B,2,FALSE)","v":"CAGT Sum"},"17513001","18400","RGSOYRC371318CV","A01","",""]
["17","371",null,null,"NSF      RF RSCH CONGR   LI   ","2521RC371319","21300","12100","61023","17513001",{"$f":"VLOOKUP(TRIM(J1355),'Transactional Departments'!A:B,2,FALSE)","v":"CAGT Sum"},"17513001","18400","RNSFXRC371319CV","A01","",""]
["17","371",null,null,"NSF      RF RC371-289 PS VANDE","2521RC371321","21300","12100","61023","17513001",{"$f":"VLOOKUP(TRIM(J1356),'Transactional Departments'!A:B,2,FALSE)","v":"CAGT Sum"},"17513001","18400","RNSFXRC371321CV","A01","",""]
["17","371",null,null,"UTBATELLERF PARROTT W/ RR54959","2521RC371324","21300","12100","64292","17513001",{"$f":"VLOOKUP(TRIM(J1357),'Transactional Departments'!A:B,2,FALSE)","v":"CAGT Sum"},"17513001","18400","RUTBARC371324CV","A01","",""]
["17","371",null,null,"USDA     RF GENOMICS APP JACKS","2521RC371325","21300","12100","61004","17513001",{"$f":"VLOOKUP(TRIM(J1358),'Transactional Departments'!A:B,2,FALSE)","v":"CAGT Sum"},"17513001","18400","RARSXRC371325CV","A01","",""]
["17","371",null,null,"USB      RF NOVEL GENES  LI   ","2521RC371661","21300","12100","64000","17513001",{"$f":"VLOOKUP(TRIM(J1359),'Transactional Departments'!A:B,2,FALSE)","v":"CAGT Sum"},"17513001","18400","RXXXXRC371661CV","A01","",""]
["17","371",null,null,"PF       RF GENO ANALYSE BERTI","2521RC371805","21300","12100","64389","17513001",{"$f":"VLOOKUP(TRIM(J1360),'Transactional Departments'!A:B,2,FALSE)","v":"CAGT Sum"},"17513001","18400","RPEANRC371805CV","A01","",""]
["17","373",null,null,"USDA     NOVEL PIPELINES CLEVE","1011RH373055","20000","11100","61006","17513001",{"$f":"VLOOKUP(TRIM(J1361),'Transactional Departments'!A:B,2,FALSE)","v":"CAGT Sum"},"17513001","18003","SNIFARH373055CV","A01","",""]
["17","385",null,null,"FEDERAL SMITH LEVER           ","2631GE385001","21310","13200","61FSL","17112001",{"$f":"VLOOKUP(TRIM(J1362),'Transactional Departments'!A:B,2,FALSE)","v":"CAES OIT Sum"},"17112001","18003","SNIFAXSMLEVER17","F17","",""]
["17","386",null,null,"FEED AND NUTRITION LAB        ","2631GE386001","21310","13200","61FSL","17311300",{"$f":"VLOOKUP(TRIM(J1363),'Transactional Departments'!A:B,2,FALSE)","v":"Feed & Environmental Water Lab"},"17311300","18003","SNIFAXSMLEVER17","F17","",""]
["17","387",null,null,"FEDERAL SMITH LEVER           ","2631GE387001","21310","13200","61FSL","17311200",{"$f":"VLOOKUP(TRIM(J1364),'Transactional Departments'!A:B,2,FALSE)","v":"Soil Plant & Water Lab"},"17311200","18003","SNIFAXSMLEVER17","F17","",""]
["17","387",null,null,"VOC      TASTE PANEL     SONON","2631RE387094","21310","13200","64327","17311200",{"$f":"VLOOKUP(TRIM(J1365),'Transactional Departments'!A:B,2,FALSE)","v":"Soil Plant & Water Lab"},"17311200","18003","SVIOCRE387094CV","A01","",""]
["17","387",null,null,"MSU      DDDI WEB        SONON","2631RE387096","21310","13200","62529","17311200",{"$f":"VLOOKUP(TRIM(J1366),'Transactional Departments'!A:B,2,FALSE)","v":"Soil Plant & Water Lab"},"17311200","18003","SMSSURE387096CV","A01","",""]
["17","387",null,null,"MSU      W/387-096       SONON","2631RE387097","21310","13200","62529","17311200",{"$f":"VLOOKUP(TRIM(J1367),'Transactional Departments'!A:B,2,FALSE)","v":"Soil Plant & Water Lab"},"17311200","18003","SMSSURE387097CV","A01","",""]
["17","393",null,null,"FEDERAL HATCH                 ","2526GB393001","21300","12100","61HAT","17510001",{"$f":"VLOOKUP(TRIM(J1368),'Transactional Departments'!A:B,2,FALSE)","v":"CAES Asst Dean Rsch Sum"},"17510001","18003","SNIFAXRGHATCH17","F17","",""]
["17","393",null,null,"REGIONAL HATCH                ","2526GB393002","21300","12100","61MSH","17510001",{"$f":"VLOOKUP(TRIM(J1369),'Transactional Departments'!A:B,2,FALSE)","v":"CAES Asst Dean Rsch Sum"},"17510001","18003","SNIFAXMSHATCH17","F17","",""]
["17","398",null,null,"         VAR DISCRTNRY   PATER","2521RC398018","21300","12100","64206","17242APA",{"$f":"VLOOKUP(TRIM(J1370),'Transactional Departments'!A:B,2,FALSE)","v":"Paterson, Andrew"},"17242APA","18003","SVARIRC398018CV","A01","",""]
["17","398",null,null,"         RF GCP ALLELES  PATER","2521RC398031","21300","12100","64000","17514001",{"$f":"VLOOKUP(TRIM(J1371),'Transactional Departments'!A:B,2,FALSE)","v":"PGML Sum"},"17514001","18003","SCNMTRC398031CV","A01","",""]
["17","398",null,null,"USAID    RF FEED FUTURE  PATER","2521RC398125","21300","12100","61028","17514001",{"$f":"VLOOKUP(TRIM(J1372),'Transactional Departments'!A:B,2,FALSE)","v":"PGML Sum"},"17514001","18400","RUSADRC398125CV","A01","",""]
["17","398",null,null,"NSF      RF GENE SOFTWAREWANG ","2521RC398126","21300","12100","61023","17514001",{"$f":"VLOOKUP(TRIM(J1373),'Transactional Departments'!A:B,2,FALSE)","v":"PGML Sum"},"17514001","18400","RNSFXRC398126CV","A01","",""]
["17","398",null,null,"NSF      RF PS W/ 398126 WANG ","2521RC398127","21300","12100","61023","17514001",{"$f":"VLOOKUP(TRIM(J1374),'Transactional Departments'!A:B,2,FALSE)","v":"PGML Sum"},"17514001","18400","RNSFXRC398127CV","A01","",""]
["17","398",null,null,"USDA/VAPTRF RAPID ADAPTORPATER","2521RC398128","21300","12100","62519","17514001",{"$f":"VLOOKUP(TRIM(J1375),'Transactional Departments'!A:B,2,FALSE)","v":"PGML Sum"},"17514001","18400","RVAPTRC398128CV","A01","",""]
["17","398",null,null,"ICR/USAIDRF PEANUT GENO  PATER","2521RC398130","21300","12100","64000","17514001",{"$f":"VLOOKUP(TRIM(J1376),'Transactional Departments'!A:B,2,FALSE)","v":"PGML Sum"},"17514001","18400","RIASSRC398130CV","A01","",""]
["17","398",null,null,"CI       RF EXOTIC NAM   PATER","2521RC398135","21300","12100","64355","17514001",{"$f":"VLOOKUP(TRIM(J1377),'Transactional Departments'!A:B,2,FALSE)","v":"PGML Sum"},"17514001","18400","RCOTTRC398135CV","A01","",""]
["17","398",null,null,"INTL CROPWILD ARACHIS    PATER","2521RC398136","21300","12100","64000","17514001",{"$f":"VLOOKUP(TRIM(J1378),'Transactional Departments'!A:B,2,FALSE)","v":"PGML Sum"},"17514001","18003","SIASSRC398136CV","A01","",""]
["17","398",null,null,"USDA     RF SORGHUM      PATER","2521RC398139","21300","12100","61002","17514001",{"$f":"VLOOKUP(TRIM(J1379),'Transactional Departments'!A:B,2,FALSE)","v":"PGML Sum"},"17514001","18400","RUSDARC398139CV","A01","",""]
["17","398",null,null,"GCCP     RF GENOMIC DATA PATER","2521RC398141","21300","12100","62002","17514001",{"$f":"VLOOKUP(TRIM(J1380),'Transactional Departments'!A:B,2,FALSE)","v":"PGML Sum"},"17514001","18400","RGPNTRC398141CV","A01","",""]
["17","398",null,null,"USDA NIFARF RHIZOMES     PATER","2521RC398143","21300","12100","61002","17514001",{"$f":"VLOOKUP(TRIM(J1381),'Transactional Departments'!A:B,2,FALSE)","v":"PGML Sum"},"17514001","18400","RUSDARC398143CV","A01","",""]
["17","398",null,null,"USDA NIFARF UPLAND COTTONPATER","2521RC398144","21300","12100","61002","17514001",{"$f":"VLOOKUP(TRIM(J1382),'Transactional Departments'!A:B,2,FALSE)","v":"PGML Sum"},"17514001","18400","RUSDARC398144CV","A01","",""]
["17","398",null,null,"GACCP/NPBRF BOTANICAL    PATER","2521RC398147","21300","12100","62002","17514001",{"$f":"VLOOKUP(TRIM(J1383),'Transactional Departments'!A:B,2,FALSE)","v":"PGML Sum"},"17514001","18400","RGPNTRC398147CV","A01","",""]
["17","398",null,null,"GACCP    RF TOOLS BOTANY PATER","2521RC398148","21300","12100","62002","17514001",{"$f":"VLOOKUP(TRIM(J1384),'Transactional Departments'!A:B,2,FALSE)","v":"PGML Sum"},"17514001","18400","RGPNTRC398148CV","A01","",""]
["17","398",null,null,"GACC COTNRF NEW ALLELES  PATER","2521RC398150","21300","12100","62001","17514001",{"$f":"VLOOKUP(TRIM(J1385),'Transactional Departments'!A:B,2,FALSE)","v":"PGML Sum"},"17514001","18400","RGCOTRC398150CV","A01","",""]
["17","398",null,null,"COTTONINCRF UPLAND COTN  PATER","2521RC398151","21300","12100","64355","17514001",{"$f":"VLOOKUP(TRIM(J1386),'Transactional Departments'!A:B,2,FALSE)","v":"PGML Sum"},"17514001","18400","RCOTTRC398151CV","A01","",""]
["17","398",null,null,"COTTN INCRF EXOTIC NAM   PATER","2521RC398153","21300","12100","64355","17514001",{"$f":"VLOOKUP(TRIM(J1387),'Transactional Departments'!A:B,2,FALSE)","v":"PGML Sum"},"17514001","18400","RCOTTRC398153CV","A01","",""]
["17","523",null,null,"FEDERAL HATCH                 ","2526GB523001","21300","12100","61HAT","17510001",{"$f":"VLOOKUP(TRIM(J1388),'Transactional Departments'!A:B,2,FALSE)","v":"CAES Asst Dean Rsch Sum"},"17510001","18003","SNIFAXRGHATCH17","F17","",""]
["17","523",null,null,"REGIONAL HATCH                ","2526GB523002","21300","12100","61MSH","17510001",{"$f":"VLOOKUP(TRIM(J1389),'Transactional Departments'!A:B,2,FALSE)","v":"CAES Asst Dean Rsch Sum"},"17510001","18003","SNIFAXMSHATCH17","F17","",""]
["17","524",null,null,"CES CONTINGENCY - FED         ","2631GE524001","21310","13200","61FSL","17300001",{"$f":"VLOOKUP(TRIM(J1390),'Transactional Departments'!A:B,2,FALSE)","v":"Extension Sum"},"17300001","18003","SNIFAXSMLEVER17","F17","",""]
["17","541",null,null,"         CITY OF GRIFFIN      ","2631RE541010","21310","13200","63026","17608000",{"$f":"VLOOKUP(TRIM(J1391),'Transactional Departments'!A:B,2,FALSE)","v":"CAES Continuing Education"},"17608000","18003","SCIGRRE541010CV","A01","",""]
["17","541",null,null,"COS      SPALDING COUNTY BRAMA","2631RE541013","21310","13200","63037","17608000",{"$f":"VLOOKUP(TRIM(J1392),'Transactional Departments'!A:B,2,FALSE)","v":"CAES Continuing Education"},"17608000","18003","SCSPARE541013CV","A01","",""]
["17","541",null,null,"         CITY OF GRIFFIN BRAMA","2631RE541014","21310","13200","63026","17608000",{"$f":"VLOOKUP(TRIM(J1393),'Transactional Departments'!A:B,2,FALSE)","v":"CAES Continuing Education"},"17608000","18003","SCIGRRE541014CV","A01","",""]
["17","541",null,null,"GRIFFIN  CONT ED COORD   HUNNI","2631RE541015","21310","13200","63026","17608000",{"$f":"VLOOKUP(TRIM(J1394),'Transactional Departments'!A:B,2,FALSE)","v":"CAES Continuing Education"},"17608000","18003","SCIGRRE541015CV","A01","",""]
["17","542",null,null,"FEDERAL SMITH LEVER           ","2631GE542001","21310","13200","61FSL","17111101",{"$f":"VLOOKUP(TRIM(J1395),'Transactional Departments'!A:B,2,FALSE)","v":{"$error":"#N/A"}},"17111101","18003","SNIFAXSMLEVER17","F17","",""]
["17","542",null,null,"FVSU     UGA_ACCT COORD__PARDU","2631RE542002","21310","13200","62023","17111101",{"$f":"VLOOKUP(TRIM(J1396),'Transactional Departments'!A:B,2,FALSE)","v":{"$error":"#N/A"}},"17111101","18003","SFVSURE542002CV","A01","",""]
["17","542",null,null,"FVSU     PRG DEV/ACT COR SPARK","2631RE542011","21310","13200","62023","17111101",{"$f":"VLOOKUP(TRIM(J1397),'Transactional Departments'!A:B,2,FALSE)","v":{"$error":"#N/A"}},"17111101","18003","SFVSURE542011CV","A01","",""]
["17","544",null,null,"FEDERAL SMITH LEVER           ","2631GE544001","21310","13200","61FSL","17113001",{"$f":"VLOOKUP(TRIM(J1398),'Transactional Departments'!A:B,2,FALSE)","v":"CAES Comms and Marketing Sum"},"17113001","18003","SNIFAXSMLEVER17","F17","",""]
["17","670",null,null,"FEDERAL SMITH LEVER           ","2631GE670001","21310","13200","61FSL","17210001",{"$f":"VLOOKUP(TRIM(J1399),'Transactional Departments'!A:B,2,FALSE)","v":"Ag Econ Sum"},"17210001","18003","SNIFAXSMLEVER17","F17","",""]
["17","670",null,null,"AG ECON/INTEGRATED/MULTI-CES  ","2631GE670411","21310","13200","61FSL","17210001",{"$f":"VLOOKUP(TRIM(J1400),'Transactional Departments'!A:B,2,FALSE)","v":"Ag Econ Sum"},"17210001","18003","SNIFAXSMLEVER17","F17","",""]
["17","670",null,null,"NBP      RF W/328-051       GR","2631RE670423","21310","13200","64000","17210001",{"$f":"VLOOKUP(TRIM(J1401),'Transactional Departments'!A:B,2,FALSE)","v":"Ag Econ Sum"},"17210001","18400","RNNPBRE670423CV","A01","",""]
["17","670",null,null,"USDA     2014 FARM BILL  SMITH","2631RE670426","21310","13200","61002","17210001",{"$f":"VLOOKUP(TRIM(J1402),'Transactional Departments'!A:B,2,FALSE)","v":"Ag Econ Sum"},"17210001","18003","SUSDARE670426CV","A01","",""]
["17","670",null,null,"USDC     RF RR746-080   KRAMER","2631RE670427","21310","13200","61009","17210001",{"$f":"VLOOKUP(TRIM(J1403),'Transactional Departments'!A:B,2,FALSE)","v":"Ag Econ Sum"},"17210001","18400","RUSDCRE670427CV","A01","",""]
["17","670",null,null,"USDA NIFARF W/309-129    JORDA","2631RE670428","21310","13200","61006","17210001",{"$f":"VLOOKUP(TRIM(J1404),'Transactional Departments'!A:B,2,FALSE)","v":"Ag Econ Sum"},"17210001","18400","RNIFARE670428CV","A01","",""]
["17","670",null,null,"CSS      STORMWATER      KRAME","2631RE670429","21310","13200","63112","17210001",{"$f":"VLOOKUP(TRIM(J1405),'Transactional Departments'!A:B,2,FALSE)","v":"Ag Econ Sum"},"17210001","18003","SCISSRE670429CV","A01","",""]
["17","670",null,null,"GDNR     LAND USE 15     KRAME","2631RE670432","21310","13200","62016","17210001",{"$f":"VLOOKUP(TRIM(J1406),'Transactional Departments'!A:B,2,FALSE)","v":"Ag Econ Sum"},"17210001","18003","SGDNRRE670432CV","A01","",""]
["17","670",null,null,"GACCP    ECON & EDU      RABIN","2631RE670433","21310","13200","62002","17210001",{"$f":"VLOOKUP(TRIM(J1407),'Transactional Departments'!A:B,2,FALSE)","v":"Ag Econ Sum"},"17210001","18003","SGPNTRE670433CV","A01","",""]
["17","670",null,null,"IFPR     MYCOTOXIN RISK  MAGNA","2631RE670434","21310","13200","64376","17210001",{"$f":"VLOOKUP(TRIM(J1408),'Transactional Departments'!A:B,2,FALSE)","v":"Ag Econ Sum"},"17210001","18003","SIFPRRE670434CV","A01","",""]
["17","670",null,null,"QED LLC  AFLATOXIN       MAGNA","2631RE670437","21310","13200","64091","17210001",{"$f":"VLOOKUP(TRIM(J1409),'Transactional Departments'!A:B,2,FALSE)","v":"Ag Econ Sum"},"17210001","18003","SQEGLRE670437CV","A01","",""]
["17","670",null,null,"USDA ARS UGA_FILLIN TRIP_RABIN","2631RE670439","21310","13200","61004","17210001",{"$f":"VLOOKUP(TRIM(J1410),'Transactional Departments'!A:B,2,FALSE)","v":"Ag Econ Sum"},"17210001","18003","SARSXRE670439CV","A01","",""]
["17","670",null,null,"         COTTON FARMS    SHURL","2631RE670440","21310","13200","62001","17210001",{"$f":"VLOOKUP(TRIM(J1411),'Transactional Departments'!A:B,2,FALSE)","v":"Ag Econ Sum"},"17210001","18003","SGCOTRE670440CV","A01","",""]
["17","670",null,null,"UOC      SPECIAL CHEESE  RABIN","2631RE670441","21310","13200","62510","17210001",{"$f":"VLOOKUP(TRIM(J1412),'Transactional Departments'!A:B,2,FALSE)","v":"Ag Econ Sum"},"17210001","18003","SUNCTRE670441CV","A01","",""]
["17","670",null,null,"GCCP     RF ECON ANALYSISRABIN","2631RE670442","21310","13200","62002","17210001",{"$f":"VLOOKUP(TRIM(J1413),'Transactional Departments'!A:B,2,FALSE)","v":"Ag Econ Sum"},"17210001","18400","RGPNTRE670442CV","A01","",""]
["17","670",null,null,"GACCP/NPBRF W 328-173 RABINO  ","2631RE670443","21310","13200","62002","17210001",{"$f":"VLOOKUP(TRIM(J1414),'Transactional Departments'!A:B,2,FALSE)","v":"Ag Econ Sum"},"17210001","18400","RGPNTRE670443CV","A01","",""]
["17","670",null,null,"GCCP/NPB RF PEANUT PROD  RABIN","2631RE670444","21310","13200","62002","17210001",{"$f":"VLOOKUP(TRIM(J1415),'Transactional Departments'!A:B,2,FALSE)","v":"Ag Econ Sum"},"17210001","18400","RGPNTRE670444CV","A01","",""]
["17","670",null,null,"TAMU/CI  COASTAL         RUSSE","2631RE670445","21310","13200","62527","17210001",{"$f":"VLOOKUP(TRIM(J1416),'Transactional Departments'!A:B,2,FALSE)","v":"Ag Econ Sum"},"17210001","18003","STXAURE670445CV","A01","",""]
["17","671",null,null,"FEDERAL SMITH LEVER           ","2631GE671001","21310","13200","61FSL","17240001",{"$f":"VLOOKUP(TRIM(J1417),'Transactional Departments'!A:B,2,FALSE)","v":"CSS Sum"},"17240001","18003","SNIFAXSMLEVER17","F17","",""]
["17","671",null,null,"FSL WALTZ                     ","2631GE671321","21310","13200","61FSL","17242WTZ",{"$f":"VLOOKUP(TRIM(J1418),'Transactional Departments'!A:B,2,FALSE)","v":"Waltz, Clint"},"17242WTZ","18003","SNIFAXSMLEVER17","F17","",""]
["17","671",null,null,"FSL CAMPBELL FARM             ","2631GE671341","21310","13200","61FSL","17244CSS",{"$f":"VLOOKUP(TRIM(J1419),'Transactional Departments'!A:B,2,FALSE)","v":"CSS Department Farms"},"17244CSS","18003","SNIFAXSMLEVER17","F17","",""]
["17","671",null,null,"FSL - CSS - TIFTON            ","2631GE671401","21310","13200","61FSL","17240001",{"$f":"VLOOKUP(TRIM(J1420),'Transactional Departments'!A:B,2,FALSE)","v":"CSS Sum"},"17240001","18003","SNIFAXSMLEVER17","F17","",""]
["17","671",null,null,"CROP&SOIL/INTEGRATED/MULTI-CES","2631GE671411","21310","13200","61FSL","17240001",{"$f":"VLOOKUP(TRIM(J1421),'Transactional Departments'!A:B,2,FALSE)","v":"CSS Sum"},"17240001","18003","SNIFAXSMLEVER17","F17","",""]
["17","671",null,null,"GACC VEG PEPPER IRRIG    HAWKI","2631RE671005","21310","13200","62008","17240001",{"$f":"VLOOKUP(TRIM(J1422),'Transactional Departments'!A:B,2,FALSE)","v":"CSS Sum"},"17240001","18003","SGVEGRE671005CV","A01","",""]
["17","671",null,null,"GACC SOY WEATHER NET     FLITC","2631RE671006","21310","13200","62004","17240001",{"$f":"VLOOKUP(TRIM(J1423),'Transactional Departments'!A:B,2,FALSE)","v":"CSS Sum"},"17240001","18003","SGSOYRE671006CV","A01","",""]
["17","671",null,null,"GACC CORN17 TECH SUPPT   LEE  ","2631RE671008","21310","13200","62047","17240001",{"$f":"VLOOKUP(TRIM(J1424),'Transactional Departments'!A:B,2,FALSE)","v":"CSS Sum"},"17240001","18003","SGCRNRE671008CV","A01","",""]
["17","671",null,null,"GACC COTN   IMP COTN PRODWHITA","2631RE671010","21310","13200","62001","17240001",{"$f":"VLOOKUP(TRIM(J1425),'Transactional Departments'!A:B,2,FALSE)","v":"CSS Sum"},"17240001","18003","SGCOTRE671010CV","A01","",""]
["17","671",null,null,"GACC CORNCORN EXT ED     LEE  ","2631RE671011","21310","13200","62047","17240001",{"$f":"VLOOKUP(TRIM(J1426),'Transactional Departments'!A:B,2,FALSE)","v":"CSS Sum"},"17240001","18003","SGCRNRE671011CV","A01","",""]
["17","671",null,null,"GACCP/NPBCULTIV RSESP    MONFO","2631RE671013","21310","13200","62002","17240001",{"$f":"VLOOKUP(TRIM(J1427),'Transactional Departments'!A:B,2,FALSE)","v":"CSS Sum"},"17240001","18003","SGPNTRE671013CV","A01","",""]
["17","671",null,null,"GACCP/NPBW/671-013       TUBBS","2631RE671016","21310","13200","62002","17240001",{"$f":"VLOOKUP(TRIM(J1428),'Transactional Departments'!A:B,2,FALSE)","v":"CSS Sum"},"17240001","18003","SGPNTRE671016CV","A01","",""]
["17","671",null,null,"GACC VEG WTHR NTWRK      FLITC","2631RE671018","21310","13200","62008","17240001",{"$f":"VLOOKUP(TRIM(J1429),'Transactional Departments'!A:B,2,FALSE)","v":"CSS Sum"},"17240001","18003","SGVEGRE671018CV","A01","",""]
["17","671",null,null,"COTN INC RF MGMT GLYCOP  CULPE","2631RE671019","21310","13200","64355","17240001",{"$f":"VLOOKUP(TRIM(J1430),'Transactional Departments'!A:B,2,FALSE)","v":"CSS Sum"},"17240001","18400","RCOTTRE671019CV","A01","",""]
["17","671",null,null,"COTN INC RF AMARANTH     CULPE","2631RE671020","21310","13200","64355","17240001",{"$f":"VLOOKUP(TRIM(J1431),'Transactional Departments'!A:B,2,FALSE)","v":"CSS Sum"},"17240001","18400","RCOTTRE671020CV","A01","",""]
["17","671",null,null,"MONSANTO RF  SRV ORD 71  PROST","2631RE671021","21310","13200","64007","17240001",{"$f":"VLOOKUP(TRIM(J1432),'Transactional Departments'!A:B,2,FALSE)","v":"CSS Sum"},"17240001","18400","RMONSRE671021CV","A01","",""]
["17","671",null,null,"MONSANTO RF PROT 20160124PROST","2631RE671022","21310","13200","64007","17240001",{"$f":"VLOOKUP(TRIM(J1433),'Transactional Departments'!A:B,2,FALSE)","v":"CSS Sum"},"17240001","18400","RMONSRE671022CV","A01","",""]
["17","671",null,null,"GACC TOB EXT TOB TEAM    MOORE","2631RE671024","21310","13200","62005","17240001",{"$f":"VLOOKUP(TRIM(J1434),'Transactional Departments'!A:B,2,FALSE)","v":"CSS Sum"},"17240001","18003","SGTOBRE671024CV","A01","",""]
["17","671",null,null,"GACC TOB PRINT TOB PUBS  MOORE","2631RE671025","21310","13200","62005","17240001",{"$f":"VLOOKUP(TRIM(J1435),'Transactional Departments'!A:B,2,FALSE)","v":"CSS Sum"},"17240001","18003","SGTOBRE671025CV","A01","",""]
["17","671",null,null,"GACC TOB FLUE CURED TOB  MOORE","2631RE671026","21310","13200","62005","17240001",{"$f":"VLOOKUP(TRIM(J1436),'Transactional Departments'!A:B,2,FALSE)","v":"CSS Sum"},"17240001","18003","SGTOBRE671026CV","A01","",""]
["17","671",null,null,"GACCP/NPBWATER CURVE     HAWKI","2631RE671027","21310","13200","62002","17240001",{"$f":"VLOOKUP(TRIM(J1437),'Transactional Departments'!A:B,2,FALSE)","v":"CSS Sum"},"17240001","18003","SGPNTRE671027CV","A01","",""]
["17","671",null,null,"GACCP    P'NUT PROD      MONFO","2631RE671028","21310","13200","62002","17240001",{"$f":"VLOOKUP(TRIM(J1438),'Transactional Departments'!A:B,2,FALSE)","v":"CSS Sum"},"17240001","18003","SGPNTRE671028CV","A01","",""]
["17","671",null,null,"GACC VEG TVP2017         CULPE","2631RE671029","21310","13200","62008","17240001",{"$f":"VLOOKUP(TRIM(J1439),'Transactional Departments'!A:B,2,FALSE)","v":"CSS Sum"},"17240001","18003","SGVEGRE671029CV","A01","",""]
["17","671",null,null,"MONSANTO RF SO # 80      PROST","2631RE671030","21310","13200","64007","17240001",{"$f":"VLOOKUP(TRIM(J1440),'Transactional Departments'!A:B,2,FALSE)","v":"CSS Sum"},"17240001","18400","RMONSRE671030CV","A01","",""]
["17","671",null,null,"GACC TOB CHEMICAL SKR    MOORE","2631RE671031","21310","13200","62005","17240001",{"$f":"VLOOKUP(TRIM(J1441),'Transactional Departments'!A:B,2,FALSE)","v":"CSS Sum"},"17240001","18003","SGTOBRE671031CV","A01","",""]
["17","671",null,null,"GACC COTNMIN INJURY      CULPE","2631RE671032","21310","13200","62001","17240001",{"$f":"VLOOKUP(TRIM(J1442),'Transactional Departments'!A:B,2,FALSE)","v":"CSS Sum"},"17240001","18003","SGCOTRE671032CV","A01","",""]
["17","671",null,null,"WSSA     UGRAD AWARD     CULPE","2631RE671033","21310","13200","64269","17240001",{"$f":"VLOOKUP(TRIM(J1443),'Transactional Departments'!A:B,2,FALSE)","v":"CSS Sum"},"17240001","18003","SWEEDRE671033CV","A01","",""]
["17","671",null,null,"SCSB     PROFIT POTENT'L FREEM","2631RE671034","21310","13200","62579","17240001",{"$f":"VLOOKUP(TRIM(J1444),'Transactional Departments'!A:B,2,FALSE)","v":"CSS Sum"},"17240001","18003","SSCSBRE671034CV","A01","",""]
["17","671",null,null,"MONSNATO S O # 87        PROST","2631RE671035","21310","13200","64007","17240001",{"$f":"VLOOKUP(TRIM(J1445),'Transactional Departments'!A:B,2,FALSE)","v":"CSS Sum"},"17240001","18003","SMONSRE671035CV","A01","",""]
["17","671",null,null,"GACCP/NPBRF FERT & NUT   HARRI","2631RE671036","21310","13200","62002","17240001",{"$f":"VLOOKUP(TRIM(J1446),'Transactional Departments'!A:B,2,FALSE)","v":"CSS Sum"},"17240001","18400","RGPNTRE671036CV","A01","",""]
["17","671",null,null,"GACCCOTN IMPROVE PROD'N  FREEM","2631RE671037","21310","13200","62001","17240001",{"$f":"VLOOKUP(TRIM(J1447),'Transactional Departments'!A:B,2,FALSE)","v":"CSS Sum"},"17240001","18003","SGCOTRE671037CV","A01","",""]
["17","671",null,null,"USDA FS  CLIMATE IMPACT  KNOX ","2631RE671038","21310","13200","61003","17240001",{"$f":"VLOOKUP(TRIM(J1448),'Transactional Departments'!A:B,2,FALSE)","v":"CSS Sum"},"17240001","18003","SUSFSRE671038CV","A01","",""]
["17","671",null,null,"GCI      SEED IMPROVMT 2 SHILL","2631RE671039","21310","13200","64143","17240001",{"$f":"VLOOKUP(TRIM(J1449),'Transactional Departments'!A:B,2,FALSE)","v":"CSS Sum"},"17240001","18003","SGCIARE671039CV","A01","",""]
["17","671",null,null,"USDA     RF RD309-137    JORDA","2631RE671040","21310","13200","61006","17240001",{"$f":"VLOOKUP(TRIM(J1450),'Transactional Departments'!A:B,2,FALSE)","v":"CSS Sum"},"17240001","18400","RNIFARE671040CV","A01","",""]
["17","671",null,null,"MONSANTO RF SO 85        MONFO","2631RE671041","21310","13200","64007","17240001",{"$f":"VLOOKUP(TRIM(J1451),'Transactional Departments'!A:B,2,FALSE)","v":"CSS Sum"},"17240001","18400","RMONSRE671041CV","A01","",""]
["17","671",null,null,"GACC SOY HIGH YIELD      GASSE","2631RE671043","21310","13200","62004","17240001",{"$f":"VLOOKUP(TRIM(J1452),'Transactional Departments'!A:B,2,FALSE)","v":"CSS Sum"},"17240001","18003","SGSOYRE671043CV","A01","",""]
["17","671",null,null,"USDA NCRSWEB BASE        GASKI","2631RE671045","21310","13200","61005","17240001",{"$f":"VLOOKUP(TRIM(J1453),'Transactional Departments'!A:B,2,FALSE)","v":"CSS Sum"},"17240001","18003","SNCRSRE671045CV","A01","",""]
["17","671",null,null,"         COTTON FDN/NATL COTTO","2631RE671067","21310","13200","64312","17240001",{"$f":"VLOOKUP(TRIM(J1454),'Transactional Departments'!A:B,2,FALSE)","v":"CSS Sum"},"17240001","18003","SXXXXRE671067CV","A01","",""]
["17","671",null,null,"         VARIOUS         CULPE","2631RE671110","21310","13200","64206","17242CUL",{"$f":"VLOOKUP(TRIM(J1455),'Transactional Departments'!A:B,2,FALSE)","v":"Culpepper, Stanley"},"17242CUL","18003","SVARIRE671110CV","A01","",""]
["17","671",null,null,"         VARIOUS MOORE        ","2631RE671150","21310","13200","64206","17242MOO",{"$f":"VLOOKUP(TRIM(J1456),'Transactional Departments'!A:B,2,FALSE)","v":"Moore, J. Michael"},"17242MOO","18003","SVARIRE671150CV","A01","",""]
["17","671",null,null,"GCIA     SEED IMPRVMNT EDSHILL","2631RE671158","21310","13200","64143","17240001",{"$f":"VLOOKUP(TRIM(J1457),'Transactional Departments'!A:B,2,FALSE)","v":"CSS Sum"},"17240001","18003","SGCIARE671158CV","A01","",""]
["17","671",null,null,"         VARIOUS         PROST","2631RE671211","21310","13200","64206","17242PRO",{"$f":"VLOOKUP(TRIM(J1458),'Transactional Departments'!A:B,2,FALSE)","v":"Prostko, Eric"},"17242PRO","18003","SVARIRE671211CV","A01","",""]
["17","671",null,null,"         VARIOUS RSCH    WALTZ","2631RE671236","21310","13200","64206","17242WTZ",{"$f":"VLOOKUP(TRIM(J1459),'Transactional Departments'!A:B,2,FALSE)","v":"Waltz, Clint"},"17242WTZ","18003","SVARIRE671236CV","A01","",""]
["17","671",null,null,"         VARIOUS         HANCO","2631RE671266","21310","13200","64206","17242HAN",{"$f":"VLOOKUP(TRIM(J1460),'Transactional Departments'!A:B,2,FALSE)","v":"Hancock, Dennis"},"17242HAN","18003","SVARIRE671266CV","A01","",""]
["17","671",null,null,"         VAR RSCH GIFTS  MONFO","2631RE671275","21310","13200","64206","17242MON",{"$f":"VLOOKUP(TRIM(J1461),'Transactional Departments'!A:B,2,FALSE)","v":"Monfort, Scott"},"17242MON","18003","SVARIRE671275CV","A01","",""]
["17","671",null,null,"UA/DOE   BIOENERGY CROP  LEE  ","2631RE671445","21310","13200","62509","17240001",{"$f":"VLOOKUP(TRIM(J1462),'Transactional Departments'!A:B,2,FALSE)","v":"CSS Sum"},"17240001","18003","SUNAFRE671445CV","A01","",""]
["17","671",null,null,"         TURFGRASS INDUS WALTZ","2631RE671453","21310","13200","64390","17240001",{"$f":"VLOOKUP(TRIM(J1463),'Transactional Departments'!A:B,2,FALSE)","v":"CSS Sum"},"17240001","18003","SGTGFRE671453CV","A01","",""]
["17","671",null,null,"         PROG IN 671-453 WALTZ","2631RE671454","21310","13200","64390","17240001",{"$f":"VLOOKUP(TRIM(J1464),'Transactional Departments'!A:B,2,FALSE)","v":"CSS Sum"},"17240001","18003","SGTGFRE671454CV","A01","",""]
["17","671",null,null,"         MANAGE GR PALMR CULPE","2631RE671476","21310","13200","64355","17240001",{"$f":"VLOOKUP(TRIM(J1465),'Transactional Departments'!A:B,2,FALSE)","v":"CSS Sum"},"17240001","18003","SCOTTRE671476CV","A01","",""]
["17","671",null,null,"GDOTUSDOTVEG MGMT GA DOT MCCUL","2631RE671486","21310","13200","62017","17240001",{"$f":"VLOOKUP(TRIM(J1466),'Transactional Departments'!A:B,2,FALSE)","v":"CSS Sum"},"17240001","18003","SGDOTRE671486CV","A01","",""]
["17","671",null,null,"GDOTUSDOTNAT SPEC GA RDS MCCUL","2631RE671487","21310","13200","62017","17240001",{"$f":"VLOOKUP(TRIM(J1467),'Transactional Departments'!A:B,2,FALSE)","v":"CSS Sum"},"17240001","18003","SGDOTRE671487CV","A01","",""]
["17","671",null,null,"         WEED CONTROL    PROST","2631RE671541","21310","13200","64007","17240001",{"$f":"VLOOKUP(TRIM(J1468),'Transactional Departments'!A:B,2,FALSE)","v":"CSS Sum"},"17240001","18003","SMONSRE671541CV","A01","",""]
["17","671",null,null,"USDA     RF GASKIN W/309-122  ","2631RE671560","21310","13200","61002","17240001",{"$f":"VLOOKUP(TRIM(J1469),'Transactional Departments'!A:B,2,FALSE)","v":"CSS Sum"},"17240001","18400","RUSDARE671560CV","A01","",""]
["17","671",null,null,"USDA     RF RISSE W/316-358   ","2631RE671565","21310","13200","61002","17240001",{"$f":"VLOOKUP(TRIM(J1470),'Transactional Departments'!A:B,2,FALSE)","v":"CSS Sum"},"17240001","18400","RUSDARE671565CV","A01","",""]
["17","671",null,null,"USDA     USING SOLAR ENR HAWKI","2631RE671566","21310","13200","61002","17240001",{"$f":"VLOOKUP(TRIM(J1471),'Transactional Departments'!A:B,2,FALSE)","v":"CSS Sum"},"17240001","18003","SUSDARE671566CV","A01","",""]
["17","671",null,null,"GDOTUSDOTGA ROADSD VIRS  MCCUL","2631RE671571","21310","13200","62017","17240001",{"$f":"VLOOKUP(TRIM(J1472),'Transactional Departments'!A:B,2,FALSE)","v":"CSS Sum"},"17240001","18003","SGDOTRE671571CV","A01","",""]
["17","671",null,null,"GACCP    PEANUT FARM     TUBBS","2631RE671575","21310","13200","62002","17240001",{"$f":"VLOOKUP(TRIM(J1473),'Transactional Departments'!A:B,2,FALSE)","v":"CSS Sum"},"17240001","18003","SGPNTRE671575CV","A01","",""]
["17","671",null,null,"GACCC    IMPR CTN PROD   WHITA","2631RE671590","21310","13200","62001","17240001",{"$f":"VLOOKUP(TRIM(J1474),'Transactional Departments'!A:B,2,FALSE)","v":"CSS Sum"},"17240001","18003","SGCOTRE671590CV","A01","",""]
["17","671",null,null,"GACCS    SYBN DIURON APP PROST","2631RE671591","21310","13200","62004","17240001",{"$f":"VLOOKUP(TRIM(J1475),'Transactional Departments'!A:B,2,FALSE)","v":"CSS Sum"},"17240001","18003","SGSOYRE671591CV","A01","",""]
["17","671",null,null,"USDA NRCSNITROGEN RELEAS GASKI","2631RE671592","21310","13200","61002","17240001",{"$f":"VLOOKUP(TRIM(J1476),'Transactional Departments'!A:B,2,FALSE)","v":"CSS Sum"},"17240001","18003","SUSDARE671592CV","A01","",""]
["17","671",null,null,"GACCC    GLY RES PLMR AM CULPE","2631RE671598","21310","13200","62001","17240001",{"$f":"VLOOKUP(TRIM(J1477),'Transactional Departments'!A:B,2,FALSE)","v":"CSS Sum"},"17240001","18003","SGCOTRE671598CV","A01","",""]
["17","671",null,null,"         VARIOUS         WHITA","2631RE671618","21310","13200","64206","17242WHI",{"$f":"VLOOKUP(TRIM(J1478),'Transactional Departments'!A:B,2,FALSE)","v":"Whitaker, Jared"},"17242WHI","18003","SVARIRE671618CV","A01","",""]
["17","671",null,null,"         VAR COTTON      WHITA","2631RE671630","21310","13200","64206","17242WHI",{"$f":"VLOOKUP(TRIM(J1479),'Transactional Departments'!A:B,2,FALSE)","v":"Whitaker, Jared"},"17242WHI","18003","SVARIRE671630CV","A01","",""]
["17","671",null,null,"         FLUE-CURED TOBACMOORE","2631RE671666","21310","13200","62511","17240001",{"$f":"VLOOKUP(TRIM(J1480),'Transactional Departments'!A:B,2,FALSE)","v":"CSS Sum"},"17240001","18003","SUFLXRE671666CV","A01","",""]
["17","671",null,null,"GACCC    GLY RES AMARNTH CULPE","2631RE671677","21310","13200","62001","17240001",{"$f":"VLOOKUP(TRIM(J1481),'Transactional Departments'!A:B,2,FALSE)","v":"CSS Sum"},"17240001","18003","SGCOTRE671677CV","A01","",""]
["17","671",null,null,"GADPH    EHP TRAINING    RADCL","2631RE671690","21310","13200","62053","17240001",{"$f":"VLOOKUP(TRIM(J1482),'Transactional Departments'!A:B,2,FALSE)","v":"CSS Sum"},"17240001","18003","SGDPHRE671690CV","A01","",""]
["17","671",null,null,"USDA/UFL SOUTHERN LIASON CULPE","2631RE671692","21310","13200","62511","17240001",{"$f":"VLOOKUP(TRIM(J1483),'Transactional Departments'!A:B,2,FALSE)","v":"CSS Sum"},"17240001","18003","SUFLXRE671692CV","A01","",""]
["17","671",null,null,"CI       RESIS PALMER CULCULPE","2631RE671694","21310","13200","64355","17240001",{"$f":"VLOOKUP(TRIM(J1484),'Transactional Departments'!A:B,2,FALSE)","v":"CSS Sum"},"17240001","18003","SCOTTRE671694CV","A01","",""]
["17","671",null,null,"UF       TOBACCO CKOFF   MOORE","2631RE671696","21310","13200","62511","17240001",{"$f":"VLOOKUP(TRIM(J1485),'Transactional Departments'!A:B,2,FALSE)","v":"CSS Sum"},"17240001","18003","SUFLXRE671696CV","A01","",""]
["17","671",null,null,"UN/USDA  CLIM CHNG ANML ARISSE","2631RE671699","21310","13200","62530","17240001",{"$f":"VLOOKUP(TRIM(J1486),'Transactional Departments'!A:B,2,FALSE)","v":"CSS Sum"},"17240001","18003","SUNONRE671699CV","A01","",""]
["17","671",null,null,"WISC/USDACONSERV RESERVE RISSE","2631RE671700","21310","13200","62576","17240001",{"$f":"VLOOKUP(TRIM(J1487),'Transactional Departments'!A:B,2,FALSE)","v":"CSS Sum"},"17240001","18003","SUOWIRE671700CV","A01","",""]
["17","671",null,null,"GDOTUSDOTSTRM BUFF SLOPE MCCUL","2631RE671716","21310","13200","62017","17240001",{"$f":"VLOOKUP(TRIM(J1488),'Transactional Departments'!A:B,2,FALSE)","v":"CSS Sum"},"17240001","18003","SGDOTRE671716CV","A01","",""]
["17","671",null,null,"GCCS     RF SOYBEAN      GASSE","2631RE671724","21310","13200","62004","17240001",{"$f":"VLOOKUP(TRIM(J1489),'Transactional Departments'!A:B,2,FALSE)","v":"CSS Sum"},"17240001","18400","RGSOYRE671724CV","A01","",""]
["17","671",null,null,"GDA/USDA FUMIGANT EXP____CULPE","2631RE671727","21310","13200","62010","17240001",{"$f":"VLOOKUP(TRIM(J1490),'Transactional Departments'!A:B,2,FALSE)","v":"CSS Sum"},"17240001","18003","SGDAGRE671727CV","A01","",""]
["17","671",null,null,"FBNG/USDAFOOD NETWORK    GASKI","2631RE671728","21310","13200","64274","17240001",{"$f":"VLOOKUP(TRIM(J1491),'Transactional Departments'!A:B,2,FALSE)","v":"CSS Sum"},"17240001","18003","SFBNGRE671728CV","A01","",""]
["17","671",null,null,"GCCC     FY15 FARM EVAL  COLLI","2631RE671733","21310","13200","62001","17240001",{"$f":"VLOOKUP(TRIM(J1492),'Transactional Departments'!A:B,2,FALSE)","v":"CSS Sum"},"17240001","18003","SGCOTRE671733CV","A01","",""]
["17","671",null,null,"         TIFTON GRAD STUDCULPE","2631RE671737","21310","13200","64206","17242CUL",{"$f":"VLOOKUP(TRIM(J1493),'Transactional Departments'!A:B,2,FALSE)","v":"Culpepper, Stanley"},"17242CUL","18003","SVARIRE671737CV","A01","",""]
["17","671",null,null,"USDA/NC  SOIL HEALTH     FRANK","2631RE671738","21310","13200","62506","17240001",{"$f":"VLOOKUP(TRIM(J1494),'Transactional Departments'!A:B,2,FALSE)","v":"CSS Sum"},"17240001","18003","SNCSURE671738CV","A01","",""]
["17","671",null,null,"CI       GR PALMER       CULPE","2631RE671739","21310","13200","64355","17240001",{"$f":"VLOOKUP(TRIM(J1495),'Transactional Departments'!A:B,2,FALSE)","v":"CSS Sum"},"17240001","18003","SCOTTRE671739CV","A01","",""]
["17","671",null,null,"USDA NIFABEGIN FARMERS   GASKI","2631RE671751","21310","13200","61002","17240001",{"$f":"VLOOKUP(TRIM(J1496),'Transactional Departments'!A:B,2,FALSE)","v":"CSS Sum"},"17240001","18003","SUSDARE671751CV","A01","",""]
["17","671",null,null,"GCCP     ECON SUSTAIN    MONFO","2631RE671752","21310","13200","62002","17240001",{"$f":"VLOOKUP(TRIM(J1497),'Transactional Departments'!A:B,2,FALSE)","v":"CSS Sum"},"17240001","18003","SGPNTRE671752CV","A01","",""]
["17","671",null,null,"CPPO/NPB NUTRIENT PEANUT HARRI","2631RE671763","21310","13200","62002","17240001",{"$f":"VLOOKUP(TRIM(J1498),'Transactional Departments'!A:B,2,FALSE)","v":"CSS Sum"},"17240001","18003","SGPNTRE671763CV","A01","",""]
["17","671",null,null,"USDA NIFARF RD309-129    JORDA","2631RE671765","21310","13200","61006","17240001",{"$f":"VLOOKUP(TRIM(J1499),'Transactional Departments'!A:B,2,FALSE)","v":"CSS Sum"},"17240001","18400","RNIFARE671765CV","A01","",""]
["17","671",null,null,"USDA NIFARF RD309-129    JORDA","2631RE671766","21310","13200","61006","17240001",{"$f":"VLOOKUP(TRIM(J1500),'Transactional Departments'!A:B,2,FALSE)","v":"CSS Sum"},"17240001","18400","RNIFARE671766CV","A01","",""]
["17","671",null,null,"NC/USDA  TOOLS FOR COVER GASKI","2631RE671767","21310","13200","62506","17240001",{"$f":"VLOOKUP(TRIM(J1501),'Transactional Departments'!A:B,2,FALSE)","v":"CSS Sum"},"17240001","18003","SNCSURE671767CV","A01","",""]
["17","671",null,null,"GACC CORNCORN EXTENSION  LEE  ","2631RE671768","21310","13200","62047","17240001",{"$f":"VLOOKUP(TRIM(J1502),'Transactional Departments'!A:B,2,FALSE)","v":"CSS Sum"},"17240001","18003","SGCRNRE671768CV","A01","",""]
["17","671",null,null,"         VARIOUS         GASKI","2631RE671769","21310","13200","64206","17242GAS",{"$f":"VLOOKUP(TRIM(J1503),'Transactional Departments'!A:B,2,FALSE)","v":"Gaskin, Julia"},"17242GAS","18003","SVARIRE671769CV","A01","",""]
["17","671",null,null,"USDA     RF RR309-134   GASKIN","2631RE671770","21310","13200","61006","17240001",{"$f":"VLOOKUP(TRIM(J1504),'Transactional Departments'!A:B,2,FALSE)","v":"CSS Sum"},"17240001","18400","RNIFARE671770CV","A01","",""]
["17","671",null,null,"USDA     RF RD309-134   GASKIN","2631RE671771","21310","13200","61006","17240001",{"$f":"VLOOKUP(TRIM(J1505),'Transactional Departments'!A:B,2,FALSE)","v":"CSS Sum"},"17240001","18400","RNIFARE671771CV","A01","",""]
["17","671",null,null,"SYNGENTA SOYBEAN TRL A13 GASSE","2631RE671772","21310","13200","64050","17240001",{"$f":"VLOOKUP(TRIM(J1506),'Transactional Departments'!A:B,2,FALSE)","v":"CSS Sum"},"17240001","18003","SSYSIRE671772CV","A01","",""]
["17","671",null,null,"MONSANTO SO 53           CULPE","2631RE671805","21310","13200","64007","17240001",{"$f":"VLOOKUP(TRIM(J1507),'Transactional Departments'!A:B,2,FALSE)","v":"CSS Sum"},"17240001","18003","SMONSRE671805CV","A01","",""]
["17","671",null,null,"BC       WEED CONTROL    CULPE","2631RE671807","21310","13200","64465","17240001",{"$f":"VLOOKUP(TRIM(J1508),'Transactional Departments'!A:B,2,FALSE)","v":"CSS Sum"},"17240001","18003","SBAYERE671807CV","A01","",""]
["17","671",null,null,"SCSB     IRRIGATION TOOLSPORTE","2631RE671808","21310","13200","62579","17240001",{"$f":"VLOOKUP(TRIM(J1509),'Transactional Departments'!A:B,2,FALSE)","v":"CSS Sum"},"17240001","18003","SSCSBRE671808CV","A01","",""]
["17","671",null,null,"MONSANTO ORDER 47        CULPE","2631RE671810","21310","13200","64007","17240001",{"$f":"VLOOKUP(TRIM(J1510),'Transactional Departments'!A:B,2,FALSE)","v":"CSS Sum"},"17240001","18003","SMONSRE671810CV","A01","",""]
["17","671",null,null,"MONSANTO ORDER 48        CULPE","2631RE671811","21310","13200","64007","17240001",{"$f":"VLOOKUP(TRIM(J1511),'Transactional Departments'!A:B,2,FALSE)","v":"CSS Sum"},"17240001","18003","SMONSRE671811CV","A01","",""]
["17","671",null,null,"SYNGENTA HPPD TOLERANT   PROST","2631RE671812","21310","13200","64033","17240001",{"$f":"VLOOKUP(TRIM(J1512),'Transactional Departments'!A:B,2,FALSE)","v":"CSS Sum"},"17240001","18003","SSYCIRE671812CV","A01","",""]
["17","671",null,null,"GACCC    COTTON VARIETY  WHITA","2631RE671819","21310","13200","62001","17240001",{"$f":"VLOOKUP(TRIM(J1513),'Transactional Departments'!A:B,2,FALSE)","v":"CSS Sum"},"17240001","18003","SGCOTRE671819CV","A01","",""]
["17","671",null,null,"GACC CORNCORN HYBRED     GASSE","2631RE671820","21310","13200","62047","17240001",{"$f":"VLOOKUP(TRIM(J1514),'Transactional Departments'!A:B,2,FALSE)","v":"CSS Sum"},"17240001","18003","SGCRNRE671820CV","A01","",""]
["17","671",null,null,"GACCC    PEND 1/1-3/31   WHITA","2631RE671822","21310","13200","62001","17240001",{"$f":"VLOOKUP(TRIM(J1515),'Transactional Departments'!A:B,2,FALSE)","v":"CSS Sum"},"17240001","18003","SGCOTRE671822CV","A01","",""]
["17","671",null,null,"CI       GLYPHOS-RESIST  CULPE","2631RE671824","21310","13200","64355","17240001",{"$f":"VLOOKUP(TRIM(J1516),'Transactional Departments'!A:B,2,FALSE)","v":"CSS Sum"},"17240001","18003","SCOTTRE671824CV","A01","",""]
["17","671",null,null,"GACC CORNCORN TEAM SUPRT LEE  ","2631RE671826","21310","13200","62047","17240001",{"$f":"VLOOKUP(TRIM(J1517),'Transactional Departments'!A:B,2,FALSE)","v":"CSS Sum"},"17240001","18003","SGCRNRE671826CV","A01","",""]
["17","671",null,null,"GACC CORNWEATHER NETWRK  FLITC","2631RE671828","21310","13200","62047","17240001",{"$f":"VLOOKUP(TRIM(J1518),'Transactional Departments'!A:B,2,FALSE)","v":"CSS Sum"},"17240001","18003","SGCRNRE671828CV","A01","",""]
["17","671",null,null,"GACC PEACWEATHER NET 16  FLITC","2631RE671830","21310","13200","62007","17240001",{"$f":"VLOOKUP(TRIM(J1519),'Transactional Departments'!A:B,2,FALSE)","v":"CSS Sum"},"17240001","18003","SGPCHRE671830CV","A01","",""]
["17","671",null,null,"MSU/USDA    ALFALFA QUALIHANCO","2631RE671831","21310","13200","62529","17240001",{"$f":"VLOOKUP(TRIM(J1520),'Transactional Departments'!A:B,2,FALSE)","v":"CSS Sum"},"17240001","18003","SMSSURE671831CV","A01","",""]
["17","671",null,null,"USGA     DEGREE-DAY MODE_MCCUL","2631RE671837","21310","13200","64191","17240001",{"$f":"VLOOKUP(TRIM(J1521),'Transactional Departments'!A:B,2,FALSE)","v":"CSS Sum"},"17240001","18003","SGOLFRE671837CV","A01","",""]
["17","671",null,null,"GA EPD   RF STORMWATER___HAWKI","2631RE671838","21310","13200","62052","17240001",{"$f":"VLOOKUP(TRIM(J1522),'Transactional Departments'!A:B,2,FALSE)","v":"CSS Sum"},"17240001","18400","RGEPDRE671838CV","A01","",""]
["17","671",null,null,"GACCP    SUSTAINABILITY  MONFO","2631RE671839","21310","13200","62002","17240001",{"$f":"VLOOKUP(TRIM(J1523),'Transactional Departments'!A:B,2,FALSE)","v":"CSS Sum"},"17240001","18003","SGPNTRE671839CV","A01","",""]
["17","671",null,null,"GACCP/NPBCULTIVAR RESP   MONFO","2631RE671840","21310","13200","62002","17240001",{"$f":"VLOOKUP(TRIM(J1524),'Transactional Departments'!A:B,2,FALSE)","v":"CSS Sum"},"17240001","18003","SGPNTRE671840CV","A01","",""]
["17","671",null,null,"CLEM U   TOBACCO AGREE   MOORE","2631RE671841","21310","13200","62504","17240001",{"$f":"VLOOKUP(TRIM(J1525),'Transactional Departments'!A:B,2,FALSE)","v":"CSS Sum"},"17240001","18003","SCLEMRE671841CV","A01","",""]
["17","671",null,null,"GPC/NPB  RF W/ RF332711  MONFO","2631RE671843","21310","13200","62002","17240001",{"$f":"VLOOKUP(TRIM(J1526),'Transactional Departments'!A:B,2,FALSE)","v":"CSS Sum"},"17240001","18400","RGPNTRE671843CV","A01","",""]
["17","671",null,null,"GACCP NPBP'NUT FARM WEB  MONFO","2631RE671844","21310","13200","62002","17240001",{"$f":"VLOOKUP(TRIM(J1527),'Transactional Departments'!A:B,2,FALSE)","v":"CSS Sum"},"17240001","18003","SGPNTRE671844CV","A01","",""]
["17","671",null,null,"GACC SOY SOYBEAN GASSETT GASSE","2631RE671845","21310","13200","62004","17240001",{"$f":"VLOOKUP(TRIM(J1528),'Transactional Departments'!A:B,2,FALSE)","v":"CSS Sum"},"17240001","18003","SGSOYRE671845CV","A01","",""]
["17","671",null,null,"MONSANTO SVC ORDER 66    PROST","2631RE671846","21310","13200","64007","17240001",{"$f":"VLOOKUP(TRIM(J1529),'Transactional Departments'!A:B,2,FALSE)","v":"CSS Sum"},"17240001","18003","SMONSRE671846CV","A01","",""]
["17","671",null,null,"MONSANTO RF SO 65 CULPE  CULPE","2631RE671847","21310","13200","64007","17240001",{"$f":"VLOOKUP(TRIM(J1530),'Transactional Departments'!A:B,2,FALSE)","v":"CSS Sum"},"17240001","18400","RMONSRE671847CV","A01","",""]
["17","671",null,null,"GACCP/NPBFERT & NUT TRL  HARRI","2631RE671849","21310","13200","62002","17240001",{"$f":"VLOOKUP(TRIM(J1531),'Transactional Departments'!A:B,2,FALSE)","v":"CSS Sum"},"17240001","18003","SGPNTRE671849CV","A01","",""]
["17","671",null,null,"UFL/USDA IR-4            CULPE","2631RE671850","21310","13200","62511","17240001",{"$f":"VLOOKUP(TRIM(J1532),'Transactional Departments'!A:B,2,FALSE)","v":"CSS Sum"},"17240001","18003","SUFLXRE671850CV","A01","",""]
["17","671",null,null,"GACC CORNHI YLD CORN     HARRI","2631RE671851","21310","13200","62047","17240001",{"$f":"VLOOKUP(TRIM(J1533),'Transactional Departments'!A:B,2,FALSE)","v":"CSS Sum"},"17240001","18003","SGCRNRE671851CV","A01","",""]
["17","671",null,null,"MONSANTO SO63GA          CULPE","2631RE671852","21310","13200","64007","17240001",{"$f":"VLOOKUP(TRIM(J1534),'Transactional Departments'!A:B,2,FALSE)","v":"CSS Sum"},"17240001","18003","SMONSRE671852CV","A01","",""]
["17","671",null,null,"GACC COTTMGMT TRIALS     HARRI","2631RE671853","21310","13200","62001","17240001",{"$f":"VLOOKUP(TRIM(J1535),'Transactional Departments'!A:B,2,FALSE)","v":"CSS Sum"},"17240001","18003","SGCOTRE671853CV","A01","",""]
["17","671",null,null,"FL AG    FLUE-CURED TOB  MOORE","2631RE671854","21310","13200","62557","17240001",{"$f":"VLOOKUP(TRIM(J1536),'Transactional Departments'!A:B,2,FALSE)","v":"CSS Sum"},"17240001","18003","SFLDARE671854CV","A01","",""]
["17","671",null,null,"SYNGENTA WD CNTRL SOYB   PROST","2631RE671855","21310","13200","64033","17240001",{"$f":"VLOOKUP(TRIM(J1537),'Transactional Departments'!A:B,2,FALSE)","v":"CSS Sum"},"17240001","18003","SSYCIRE671855CV","A01","",""]
["17","671",null,null,"GDA/USDA OFFSITE NUT'NT  HAWKI","2631RE671856","21310","13200","62010","17240001",{"$f":"VLOOKUP(TRIM(J1538),'Transactional Departments'!A:B,2,FALSE)","v":"CSS Sum"},"17240001","18003","SGDAGRE671856CV","A01","",""]
["17","671",null,null,"GACCVEG  WEATH NTWK      FLITC","2631RE671857","21310","13200","62008","17240001",{"$f":"VLOOKUP(TRIM(J1539),'Transactional Departments'!A:B,2,FALSE)","v":"CSS Sum"},"17240001","18003","SGVEGRE671857CV","A01","",""]
["17","671",null,null,"GACC COTTCTN TM CY 17    WHITA","2631RE671858","21310","13200","62001","17240001",{"$f":"VLOOKUP(TRIM(J1540),'Transactional Departments'!A:B,2,FALSE)","v":"CSS Sum"},"17240001","18003","SGCOTRE671858CV","A01","",""]
["17","671",null,null,"MONSANTO RF SO # 72      CULPE","2631RE671859","21310","13200","64008","17240001",{"$f":"VLOOKUP(TRIM(J1541),'Transactional Departments'!A:B,2,FALSE)","v":"CSS Sum"},"17240001","18400","RMOAPRE671859CV","A01","",""]
["17","671",null,null,"GACC SOY HIGH & LATE-3/31FREEM","2631RE671860","21310","13200","62004","17240001",{"$f":"VLOOKUP(TRIM(J1542),'Transactional Departments'!A:B,2,FALSE)","v":"CSS Sum"},"17240001","18003","SGSOYRE671860CV","A01","",""]
["17","671",null,null,"GACC VEG FUMIG SYSTS     CULPE","2631RE671861","21310","13200","62008","17240001",{"$f":"VLOOKUP(TRIM(J1543),'Transactional Departments'!A:B,2,FALSE)","v":"CSS Sum"},"17240001","18003","SGVEGRE671861CV","A01","",""]
["17","671",null,null,"GACC CORNFERTILIZER NUT__HARRI","2631RE671862","21310","13200","62047","17240001",{"$f":"VLOOKUP(TRIM(J1544),'Transactional Departments'!A:B,2,FALSE)","v":"CSS Sum"},"17240001","18003","SGCRNRE671862CV","A01","",""]
["17","671",null,null,"GACC PNUTRF WITH RF332744CULBR","2631RE671863","21310","13200","62002","17240001",{"$f":"VLOOKUP(TRIM(J1545),'Transactional Departments'!A:B,2,FALSE)","v":"CSS Sum"},"17240001","18400","RGPNTRE671863CV","A01","",""]
["17","671",null,null,"USDA NCRSWATER MGMT      HAWKI","2631RE671865","21310","13200","61005","17240001",{"$f":"VLOOKUP(TRIM(J1546),'Transactional Departments'!A:B,2,FALSE)","v":"CSS Sum"},"17240001","18003","SNCRSRE671865CV","A01","",""]
["17","674",null,null,"FEDERAL SMITH LEVER           ","2631GE674001","21310","13200","61FSL","17220001",{"$f":"VLOOKUP(TRIM(J1547),'Transactional Departments'!A:B,2,FALSE)","v":"ALEC Sum"},"17220001","18003","SNIFAXSMLEVER17","F17","",""]
["17","674",null,null,"          FOOD BANK    BOBORRO","2631RE674027","21310","13200","64184","17220001",{"$f":"VLOOKUP(TRIM(J1548),'Transactional Departments'!A:B,2,FALSE)","v":"ALEC Sum"},"17220001","18003","SATLFRE674027CV","A01","",""]
["17","675",null,null,"FEDERAL SMITH LEVER           ","2631GE675001","21310","13200","61FSL","17102001",{"$f":"VLOOKUP(TRIM(J1549),'Transactional Departments'!A:B,2,FALSE)","v":"Griffin Campus Sum"},"17102001","18003","SNIFAXSMLEVER17","F17","",""]
["17","675",null,null,"         NEC ARA2 FY11-12ARKIN","2631RE675115","21310","13200","64363","17102001",{"$f":"VLOOKUP(TRIM(J1550),'Transactional Departments'!A:B,2,FALSE)","v":"Griffin Campus Sum"},"17102001","18003","SGACARE675115CV","A01","",""]
["17","675",null,null,"         NEC ARA IV      ARKIN","2631RE675150","21310","13200","64363","17102001",{"$f":"VLOOKUP(TRIM(J1551),'Transactional Departments'!A:B,2,FALSE)","v":"Griffin Campus Sum"},"17102001","18003","SGACARE675150CV","A01","",""]
["17","675",null,null,"USDA NIFASRS WORK PLAN IIJORDA","2631RE675167","21310","13200","61002","17102001",{"$f":"VLOOKUP(TRIM(J1552),'Transactional Departments'!A:B,2,FALSE)","v":"Griffin Campus Sum"},"17102001","18003","SUSDARE675167CV","A01","",""]
["17","675",null,null,"         VAR PEST MGMT   BRAMA","2631RE675168","21310","13200","64206","17102001",{"$f":"VLOOKUP(TRIM(J1553),'Transactional Departments'!A:B,2,FALSE)","v":"Griffin Campus Sum"},"17102001","18003","SVARIRE675168CV","A01","",""]
["17","675",null,null,"USDA/NIFASARE PDP 3      JORDA","2631RE675171","21310","13200","61002","17102001",{"$f":"VLOOKUP(TRIM(J1554),'Transactional Departments'!A:B,2,FALSE)","v":"Griffin Campus Sum"},"17102001","18003","SUSDARE675171CV","A01","",""]
["17","675",null,null,"GDOA USDASUS TRFGRS PH3  BAUSK","2631RE675172","21310","13200","62010","17102001",{"$f":"VLOOKUP(TRIM(J1555),'Transactional Departments'!A:B,2,FALSE)","v":"Griffin Campus Sum"},"17102001","18003","SGDAGRE675172CV","A01","",""]
["17","675",null,null,"GIT/NASA SPACE GRANT     HUNNI","2631RE675178","21310","13200","62021","17102001",{"$f":"VLOOKUP(TRIM(J1556),'Transactional Departments'!A:B,2,FALSE)","v":"Griffin Campus Sum"},"17102001","18003","SGAITRE675178CV","A01","",""]
["17","675",null,null,"GCA      FARM SUPERVISOR HUNNI","2631RE675179","21310","13200","64363","17102001",{"$f":"VLOOKUP(TRIM(J1557),'Transactional Departments'!A:B,2,FALSE)","v":"Griffin Campus Sum"},"17102001","18003","SGACARE675179CV","A01","",""]
["17","675",null,null,"GCA      FARM SUPERVISOR HUNNI","2631RE675180","21310","13200","64363","17102001",{"$f":"VLOOKUP(TRIM(J1558),'Transactional Departments'!A:B,2,FALSE)","v":"Griffin Campus Sum"},"17102001","18003","SGACARE675180CV","A01","",""]
["17","676",null,null,"GA CCP   EXI IRRG STRC   HAWKI","2631RE676394","21310","13200","62002","17130001",{"$f":"VLOOKUP(TRIM(J1559),'Transactional Departments'!A:B,2,FALSE)","v":"CAES Assoc Dean Ext Sum"},"17130001","18003","SGPNTRE676394CV","A01","",""]
["17","677",null,null,"FEDERAL SMITH LEVER           ","2631GE677001","21310","13200","61FSL","17250001",{"$f":"VLOOKUP(TRIM(J1560),'Transactional Departments'!A:B,2,FALSE)","v":"Entomology Sum"},"17250001","18003","SNIFAXSMLEVER17","F17","",""]
["17","677",null,null,"ENTOMOLOGY/INTEGRTED/MULTI-CES","2631GE677411","21310","13200","61FSL","17250001",{"$f":"VLOOKUP(TRIM(J1561),'Transactional Departments'!A:B,2,FALSE)","v":"Entomology Sum"},"17250001","18003","SNIFAXSMLEVER17","F17","",""]
["17","677",null,null,"         ENTO VAR/P      ROBER","2631RE677159","21310","13200","64206","17253240",{"$f":"VLOOKUP(TRIM(J1562),'Transactional Departments'!A:B,2,FALSE)","v":"Roberts"},"17253240","18003","SVARIRE677159CV","A01","",""]
["17","677",null,null,"         ENT VAR HORTON       ","2631RE677176","21310","13200","64206","17250001",{"$f":"VLOOKUP(TRIM(J1563),'Transactional Departments'!A:B,2,FALSE)","v":"Entomology Sum"},"17250001","18003","SVARIRE677176CV","A01","",""]
["17","677",null,null,"         VARIOUS RSCH    HINKL","2631RE677251","21310","13200","64206","17253150",{"$f":"VLOOKUP(TRIM(J1564),'Transactional Departments'!A:B,2,FALSE)","v":"Hinkle"},"17253150","18003","SVARIRE677251CV","A01","",""]
["17","677",null,null,"         VARIOUS RSCH A  SPARK","2631RE677252","21310","13200","64206","17253290",{"$f":"VLOOKUP(TRIM(J1565),'Transactional Departments'!A:B,2,FALSE)","v":"Sparks"},"17253290","18003","SVARIRE677252CV","A01","",""]
["17","677",null,null,"         VARIOUS         DELAP","2631RE677416","21310","13200","64206","17253100",{"$f":"VLOOKUP(TRIM(J1566),'Transactional Departments'!A:B,2,FALSE)","v":"Delaplane"},"17253100","18003","SVARIRE677416CV","A01","",""]
["17","677",null,null,"BAYER    TWINLINK COTTON ROBER","2631RE677423","21310","13200","64465","17250001",{"$f":"VLOOKUP(TRIM(J1567),'Transactional Departments'!A:B,2,FALSE)","v":"Entomology Sum"},"17250001","18003","SBAYERE677423CV","A01","",""]
["17","677",null,null,"NCST/USDARF ONION GRWERS DOUCE","2631RE677429","21310","13200","62506","17250001",{"$f":"VLOOKUP(TRIM(J1568),'Transactional Departments'!A:B,2,FALSE)","v":"Entomology Sum"},"17250001","18400","RNCSURE677429CV","A01","",""]
["17","677",null,null,"USDA     INV PLNT IPHONE BARGE","2631RE677436","21310","13200","61002","17250001",{"$f":"VLOOKUP(TRIM(J1569),'Transactional Departments'!A:B,2,FALSE)","v":"Entomology Sum"},"17250001","18003","SUSDARE677436CV","A01","",""]
["17","677",null,null,"NCSU/USDABUGWOOD CNTR IPMDOUCE","2631RE677438","21310","13200","64360","17250001",{"$f":"VLOOKUP(TRIM(J1570),'Transactional Departments'!A:B,2,FALSE)","v":"Entomology Sum"},"17250001","18003","SSRICRE677438CV","A01","",""]
["17","677",null,null,"         OPER EXPAN UPKEEBARGE","2631RE677442","21310","13200","61002","17250001",{"$f":"VLOOKUP(TRIM(J1571),'Transactional Departments'!A:B,2,FALSE)","v":"Entomology Sum"},"17250001","18003","SUSDARE677442CV","A01","",""]
["17","677",null,null,"GA DOA   NNATV FRST PSTS DOUCE","2631RE677444","21310","13200","62010","17250001",{"$f":"VLOOKUP(TRIM(J1572),'Transactional Departments'!A:B,2,FALSE)","v":"Entomology Sum"},"17250001","18003","SGDAGRE677444CV","A01","",""]
["17","677",null,null,"USDA/NCSUSOUTHERN IPM    BARGE","2631RE677467","21310","13200","62506","17250001",{"$f":"VLOOKUP(TRIM(J1573),'Transactional Departments'!A:B,2,FALSE)","v":"Entomology Sum"},"17250001","18003","SNCSURE677467CV","A01","",""]
["17","677",null,null,"         VARIOUS         HUDSO","2631RE677475","21310","13200","64206","17253160",{"$f":"VLOOKUP(TRIM(J1574),'Transactional Departments'!A:B,2,FALSE)","v":"Hudson"},"17253160","18003","SVARIRE677475CV","A01","",""]
["17","677",null,null,"CU/APHIS RF FIRST DETECT DOUCE","2631RE677479","21310","13200","64135","17250001",{"$f":"VLOOKUP(TRIM(J1575),'Transactional Departments'!A:B,2,FALSE)","v":"Entomology Sum"},"17250001","18400","RCORNRE677479CV","A01","",""]
["17","677",null,null,"USDA     BUGWOOD NETWORK DOUCE","2631RE677480","21310","13200","61002","17250001",{"$f":"VLOOKUP(TRIM(J1576),'Transactional Departments'!A:B,2,FALSE)","v":"Entomology Sum"},"17250001","18003","SUSDARE677480CV","A01","",""]
["17","677",null,null,"USDA     DEV IDPIC II    BARGE","2631RE677481","21310","13200","61002","17250001",{"$f":"VLOOKUP(TRIM(J1577),'Transactional Departments'!A:B,2,FALSE)","v":"Entomology Sum"},"17250001","18003","SUSDARE677481CV","A01","",""]
["17","677",null,null,"USDA     DIGITAL IMAGERY LAFOR","2631RE677490","21310","13200","61007","17250001",{"$f":"VLOOKUP(TRIM(J1578),'Transactional Departments'!A:B,2,FALSE)","v":"Entomology Sum"},"17250001","18003","SAPHIRE677490CV","A01","",""]
["17","677",null,null,"USDA NIFAASSIST TECH     RAINS","2631RE677494","21310","13200","61002","17250001",{"$f":"VLOOKUP(TRIM(J1579),'Transactional Departments'!A:B,2,FALSE)","v":"Entomology Sum"},"17250001","18003","SUSDARE677494CV","A01","",""]
["17","677",null,null,"USDA NIFAAGROECOSYSTEMS  AHMAD","2631RE677496","21310","13200","61006","17250001",{"$f":"VLOOKUP(TRIM(J1580),'Transactional Departments'!A:B,2,FALSE)","v":"Entomology Sum"},"17250001","18003","SNIFARE677496CV","A01","",""]
["17","677",null,null,"CLF      SUSTAIN PSEP GA HORTO","2631RE677497","21310","13200","64423","17250001",{"$f":"VLOOKUP(TRIM(J1581),'Transactional Departments'!A:B,2,FALSE)","v":"Entomology Sum"},"17250001","18003","SCROPRE677497CV","A01","",""]
["17","677",null,null,"NCU/USDA IPM PARTNERSHIP LAFOR","2631RE677499","21310","13200","62506","17250001",{"$f":"VLOOKUP(TRIM(J1582),'Transactional Departments'!A:B,2,FALSE)","v":"Entomology Sum"},"17250001","18003","SNCSURE677499CV","A01","",""]
["17","677",null,null,"CU       SAP BEETLES     HORTO","2631RE677500","21310","13200","62504","17250001",{"$f":"VLOOKUP(TRIM(J1583),'Transactional Departments'!A:B,2,FALSE)","v":"Entomology Sum"},"17250001","18003","SCLEMRE677500CV","A01","",""]
["17","677",null,null,"PSU/USDA FOOD SECURITY   LAFOR","2631RE677501","21310","13200","62531","17250001",{"$f":"VLOOKUP(TRIM(J1584),'Transactional Departments'!A:B,2,FALSE)","v":"Entomology Sum"},"17250001","18003","SPASURE677501CV","A01","",""]
["17","677",null,null,"         LEPIDOPTERAN PSTROBER","2631RE677503","21310","13200","64007","17250001",{"$f":"VLOOKUP(TRIM(J1585),'Transactional Departments'!A:B,2,FALSE)","v":"Entomology Sum"},"17250001","18003","SMONSRE677503CV","A01","",""]
["17","677",null,null,"UFL/USDA RF W/ 2521RF330510   ","2631RE677505","21310","13200","62511","17250001",{"$f":"VLOOKUP(TRIM(J1586),'Transactional Departments'!A:B,2,FALSE)","v":"Entomology Sum"},"17250001","18400","RUFLXRE677505CV","A01","",""]
["17","677",null,null,"BC       INSECT CONTROL  SPARK","2631RE677506","21310","13200","64465","17250001",{"$f":"VLOOKUP(TRIM(J1587),'Transactional Departments'!A:B,2,FALSE)","v":"Entomology Sum"},"17250001","18003","SBAYERE677506CV","A01","",""]
["17","677",null,null,"USDA APHIINVASIVE.ORG    DOUCE","2631RE677509","21310","13200","61007","17250001",{"$f":"VLOOKUP(TRIM(J1588),'Transactional Departments'!A:B,2,FALSE)","v":"Entomology Sum"},"17250001","18003","SAPHIRE677509CV","A01","",""]
["17","677",null,null,"USDA     DIGITAL IMAGE   LAFOR","2631RE677511","21310","13200","61007","17250001",{"$f":"VLOOKUP(TRIM(J1589),'Transactional Departments'!A:B,2,FALSE)","v":"Entomology Sum"},"17250001","18003","SAPHIRE677511CV","A01","",""]
["17","677",null,null,"USDA NIFA   DATA NETWOR  TOEWS","2631RE677512","21310","13200","61006","17250001",{"$f":"VLOOKUP(TRIM(J1590),'Transactional Departments'!A:B,2,FALSE)","v":"Entomology Sum"},"17250001","18003","SNIFARE677512CV","A01","",""]
["17","677",null,null,"GCCV     SWEET POTATO    SPARK","2631RE677516","21310","13200","62008","17250001",{"$f":"VLOOKUP(TRIM(J1591),'Transactional Departments'!A:B,2,FALSE)","v":"Entomology Sum"},"17250001","18003","SGVEGRE677516CV","A01","",""]
["17","677",null,null,"USDA     DIGITAL FY16    LAFOR","2631RE677518","21310","13200","61007","17250001",{"$f":"VLOOKUP(TRIM(J1592),'Transactional Departments'!A:B,2,FALSE)","v":"Entomology Sum"},"17250001","18003","SAPHIRE677518CV","A01","",""]
["17","677",null,null,"         POLYZONE        SUITE","2631RE677520","21310","13200","64033","17250001",{"$f":"VLOOKUP(TRIM(J1593),'Transactional Departments'!A:B,2,FALSE)","v":"Entomology Sum"},"17250001","18003","SSYCIRE677520CV","A01","",""]
["17","677",null,null,"         RF CHEMICAL     SUITE","2631RE677522","21310","13200","64037","17250001",{"$f":"VLOOKUP(TRIM(J1594),'Transactional Departments'!A:B,2,FALSE)","v":"Entomology Sum"},"17250001","18003","SDAGRRE677522CV","A01","",""]
["17","677",null,null,"USDA NIFABURROWER BUG    ABNEY","2631RE677523","21310","13200","61006","17250001",{"$f":"VLOOKUP(TRIM(J1595),'Transactional Departments'!A:B,2,FALSE)","v":"Entomology Sum"},"17250001","18003","SNIFARE677523CV","A01","",""]
["17","677",null,null,"GCCV     INSECT MGMT     SPARK","2631RE677524","21310","13200","62008","17250001",{"$f":"VLOOKUP(TRIM(J1596),'Transactional Departments'!A:B,2,FALSE)","v":"Entomology Sum"},"17250001","18003","SGVEGRE677524CV","A01","",""]
["17","677",null,null,"TAES/NIFACROP RES        LAFOR","2631RE677525","21310","13200","62568","17250001",{"$f":"VLOOKUP(TRIM(J1597),'Transactional Departments'!A:B,2,FALSE)","v":"Entomology Sum"},"17250001","18003","STXAMRE677525CV","A01","",""]
["17","677",null,null,"NCSU/NIFAMYIPM           BLAAU","2631RE677526","21310","13200","62506","17250001",{"$f":"VLOOKUP(TRIM(J1598),'Transactional Departments'!A:B,2,FALSE)","v":"Entomology Sum"},"17250001","18003","SNCSURE677526CV","A01","",""]
["17","677",null,null,"GCCP     PECAN ORCHARD   HUDSO","2631RE677527","21310","13200","62045","17250001",{"$f":"VLOOKUP(TRIM(J1599),'Transactional Departments'!A:B,2,FALSE)","v":"Entomology Sum"},"17250001","18003","SGPCNRE677527CV","A01","",""]
["17","677",null,null,"SYNGENTA RF ISM555       SPARK","2631RE677528","21310","13200","64033","17250001",{"$f":"VLOOKUP(TRIM(J1600),'Transactional Departments'!A:B,2,FALSE)","v":"Entomology Sum"},"17250001","18400","RSYCIRE677528CV","A01","",""]
["17","677",null,null,"SYNGENTA RF SOYBEAN      ROBER","2631RE677529","21310","13200","64033","17250001",{"$f":"VLOOKUP(TRIM(J1601),'Transactional Departments'!A:B,2,FALSE)","v":"Entomology Sum"},"17250001","18400","RSYCIRE677529CV","A01","",""]
["17","677",null,null,"SYNGENTA RF PEANUTS      ABNEY","2631RE677530","21310","13200","64033","17250001",{"$f":"VLOOKUP(TRIM(J1602),'Transactional Departments'!A:B,2,FALSE)","v":"Entomology Sum"},"17250001","18400","RSYCIRE677530CV","A01","",""]
["17","677",null,null,"USDA     PEST SCREENING  LAFOR","2631RE677531","21310","13200","61007","17250001",{"$f":"VLOOKUP(TRIM(J1603),'Transactional Departments'!A:B,2,FALSE)","v":"Entomology Sum"},"17250001","18003","SAPHIRE677531CV","A01","",""]
["17","679",null,null,"FEDERAL SMITH LEVER           ","2631GE679001","21310","13200","61FSL","17260001",{"$f":"VLOOKUP(TRIM(J1604),'Transactional Departments'!A:B,2,FALSE)","v":"Food Science Sum"},"17260001","18003","SNIFAXSMLEVER17","F17","",""]
["17","679",null,null,"FOOD SCI/INTEGRATED/MULTI-CES ","2631GE679411","21310","13200","61FSL","17260001",{"$f":"VLOOKUP(TRIM(J1605),'Transactional Departments'!A:B,2,FALSE)","v":"Food Science Sum"},"17260001","18003","SNIFAXSMLEVER17","F17","",""]
["17","679",null,null,"UOF      PRODUCE SAFETY  HARRI","2631RE679106","21310","13200","62511","17260001",{"$f":"VLOOKUP(TRIM(J1606),'Transactional Departments'!A:B,2,FALSE)","v":"Food Science Sum"},"17260001","18003","SUFLXRE679106CV","A01","",""]
["17","680",null,null,"FEDERAL SMITH LEVER           ","2631GE680001","21310","13200","61FSL","17270001",{"$f":"VLOOKUP(TRIM(J1607),'Transactional Departments'!A:B,2,FALSE)","v":"Horticulture Sum"},"17270001","18003","SNIFAXSMLEVER17","F17","",""]
["17","680",null,null,"HORT-FED SMITH LEVER-BOYHAN   ","2631GE680101","21310","13200","61FSL","17270300",{"$f":"VLOOKUP(TRIM(J1608),'Transactional Departments'!A:B,2,FALSE)","v":"Boyhan, George"},"17270300","18003","SNIFAXSMLEVER17","F17","",""]
["17","680",null,null,"HORT-FED SMITH LEVER-WELLS    ","2631GE680111","21310","13200","61FSL","17273000",{"$f":"VLOOKUP(TRIM(J1609),'Transactional Departments'!A:B,2,FALSE)","v":"Wells, Lenny"},"17273000","18003","SNIFAXSMLEVER17","F17","",""]
["17","680",null,null,"HORT FED SMITH LEVER-BERLE    ","2631GE680131","21310","13200","61FSL","17270200",{"$f":"VLOOKUP(TRIM(J1610),'Transactional Departments'!A:B,2,FALSE)","v":"Berle, David"},"17270200","18003","SNIFAXSMLEVER17","F17","",""]
["17","680",null,null,"HORT FED SMITH LEVER DORN     ","2631GE680161","21310","13200","61FSL","17271100",{"$f":"VLOOKUP(TRIM(J1611),'Transactional Departments'!A:B,2,FALSE)","v":"Dorn, Sheri"},"17271100","18003","SNIFAXSMLEVER17","F17","",""]
["17","680",null,null,"HORT-FED SMITH LEVER-CHAPPELL ","2631GE680171","21310","13200","61FSL","17270400",{"$f":"VLOOKUP(TRIM(J1612),'Transactional Departments'!A:B,2,FALSE)","v":"Chappell, Matthew"},"17270400","18003","SNIFAXSMLEVER17","F17","",""]
["17","680",null,null,"HORT-FED SMITH LEVER-PENNISI  ","2631GE680181","21310","13200","61FSL","17272100",{"$f":"VLOOKUP(TRIM(J1613),'Transactional Departments'!A:B,2,FALSE)","v":"Pennisi, Bodie"},"17272100","18003","SNIFAXSMLEVER17","F17","",""]
["17","680",null,null,"HORT FED SMITH LEVER-COOLONG  ","2631GE680211","21310","13200","61FSL","17270800",{"$f":"VLOOKUP(TRIM(J1614),'Transactional Departments'!A:B,2,FALSE)","v":"Coolong, Tim"},"17270800","18003","SNIFAXSMLEVER17","F17","",""]
["17","680",null,null,"HORT FED SMITH LEVER-CHAVEZ   ","2631GE680221","21310","13200","61FSL","17270500",{"$f":"VLOOKUP(TRIM(J1615),'Transactional Departments'!A:B,2,FALSE)","v":"Chavez, Dario"},"17270500","18003","SNIFAXSMLEVER17","F17","",""]
["17","680",null,null,"HORT FED SMITH LEVER-HICKEY   ","2631GE680231","21310","13200","61FSL","17271200",{"$f":"VLOOKUP(TRIM(J1616),'Transactional Departments'!A:B,2,FALSE)","v":"Hickey, Cain"},"17271200","18003","SNIFAXSMLEVER17","F17","",""]
["17","680",null,null,"HORT FED SMITH LEVER-ITLE     ","2631GE680241","21310","13200","61FSL","17271300",{"$f":"VLOOKUP(TRIM(J1617),'Transactional Departments'!A:B,2,FALSE)","v":"Itle, Rachel"},"17271300","18003","SNIFAXSMLEVER17","F17","",""]
["17","680",null,null,"HORT-FED SMITH LEVER-CZARNOTA ","2631GE680311","21310","13200","61FSL","17270900",{"$f":"VLOOKUP(TRIM(J1618),'Transactional Departments'!A:B,2,FALSE)","v":"Czarnota, Mark"},"17270900","18003","SNIFAXSMLEVER17","F17","",""]
["17","680",null,null,"HORTICLTRE/INTEGRTED/MULTI-CES","2631GE680411","21310","13200","61FSL","17270001",{"$f":"VLOOKUP(TRIM(J1619),'Transactional Departments'!A:B,2,FALSE)","v":"Horticulture Sum"},"17270001","18003","SNIFAXSMLEVER17","F17","",""]
["17","680",null,null,"HORT-FED SMITH LEVER-THOMAS   ","2631GE680901","21310","13200","61FSL","17272700",{"$f":"VLOOKUP(TRIM(J1620),'Transactional Departments'!A:B,2,FALSE)","v":"Thomas, Paul"},"17272700","18003","SNIFAXSMLEVER17","F17","",""]
["17","680",null,null,"HORT FED SMITH LEVER - SMITH  ","2631GE680911","21310","13200","61FSL","17272500",{"$f":"VLOOKUP(TRIM(J1621),'Transactional Departments'!A:B,2,FALSE)","v":"Smith, Erick"},"17272500","18003","SNIFAXSMLEVER17","F17","",""]
["17","680",null,null,"HORT-FED SMH LEVER-WESTERFIELD","2631GE680921","21310","13200","61FSL","17273100",{"$f":"VLOOKUP(TRIM(J1622),'Transactional Departments'!A:B,2,FALSE)","v":"Westerfield, Bob"},"17273100","18003","SNIFAXSMLEVER17","F17","",""]
["17","680",null,null,"         VAR PECAN HBOOK BAILE","2631RE680164","21310","13200","64206","17270001",{"$f":"VLOOKUP(TRIM(J1623),'Transactional Departments'!A:B,2,FALSE)","v":"Horticulture Sum"},"17270001","18003","SVARIRE680164CV","A01","","",null,null,{"$f":"COUNTIFS('Transactional Departments'!A:A,J1623)<>0","v":true}]
["17","680",null,null,"GDOA USDAIRRGTN TECH     CHAPP","2631RE680201","21310","13200","62010","17270001",{"$f":"VLOOKUP(TRIM(J1624),'Transactional Departments'!A:B,2,FALSE)","v":"Horticulture Sum"},"17270001","18003","SGDAGRE680201CV","A01","",""]
["17","680",null,null,"GACC PECAUGA_HERBICIDE___CZARN","2631RE680203","21310","13200","62045","17270001",{"$f":"VLOOKUP(TRIM(J1625),'Transactional Departments'!A:B,2,FALSE)","v":"Horticulture Sum"},"17270001","18003","SGPCNRE680203CV","A01","",""]
["17","680",null,null,"GDOA/USDAUGA_PROP MOMI___CZARN","2631RE680207","21310","13200","62010","17270001",{"$f":"VLOOKUP(TRIM(J1626),'Transactional Departments'!A:B,2,FALSE)","v":"Horticulture Sum"},"17270001","18003","SGDAGRE680207CV","A01","",""]
["17","680",null,null,"USDA     RF W/332-692    JI   ","2631RE680241","21310","13200","61002","17270001",{"$f":"VLOOKUP(TRIM(J1627),'Transactional Departments'!A:B,2,FALSE)","v":"Horticulture Sum"},"17270001","18400","RUSDARE680241CV","A01","",""]
["17","680",null,null,"GDOA     FLORICULTURE    CHAPP","2631RE680242","21310","13200","62010","17270001",{"$f":"VLOOKUP(TRIM(J1628),'Transactional Departments'!A:B,2,FALSE)","v":"Horticulture Sum"},"17270001","18003","SGDAGRE680242CV","A01","",""]
["17","680",null,null,"MONSANTO WATERMELON      COOLO","2631RE680247","21310","13200","64007","17270001",{"$f":"VLOOKUP(TRIM(J1629),'Transactional Departments'!A:B,2,FALSE)","v":"Horticulture Sum"},"17270001","18003","SMONSRE680247CV","A01","",""]
["17","680",null,null,"MONSANTO WATERMELON SO33 COOLO","2631RE680248","21310","13200","64007","17270001",{"$f":"VLOOKUP(TRIM(J1630),'Transactional Departments'!A:B,2,FALSE)","v":"Horticulture Sum"},"17270001","18003","SMONSRE680248CV","A01","",""]
["17","680",null,null,"CFGA     TINY HOUSE      BERLE","2631RE680253","21310","13200","64412","17270001",{"$f":"VLOOKUP(TRIM(J1631),'Transactional Departments'!A:B,2,FALSE)","v":"Horticulture Sum"},"17270001","18003","SCOFARE680253CV","A01","",""]
["17","680",null,null,"MONSANTO EVAL S0 35      COOLO","2631RE680254","21310","13200","64007","17270001",{"$f":"VLOOKUP(TRIM(J1632),'Transactional Departments'!A:B,2,FALSE)","v":"Horticulture Sum"},"17270001","18003","SMONSRE680254CV","A01","",""]
["17","680",null,null,"MONSANTO CANTALOUPE      COOLO","2631RE680255","21310","13200","64007","17270001",{"$f":"VLOOKUP(TRIM(J1633),'Transactional Departments'!A:B,2,FALSE)","v":"Horticulture Sum"},"17270001","18003","SMONSRE680255CV","A01","",""]
["17","680",null,null,"         VARIOUS         CHAPP","2631RE680256","21310","13200","64206","17270400",{"$f":"VLOOKUP(TRIM(J1634),'Transactional Departments'!A:B,2,FALSE)","v":"Chappell, Matthew"},"17270400","18003","SVARIRE680256CV","A01","",""]
["17","680",null,null,"MONSANTO BELL PEPPER     COOLO","2631RE680258","21310","13200","64007","17270001",{"$f":"VLOOKUP(TRIM(J1635),'Transactional Departments'!A:B,2,FALSE)","v":"Horticulture Sum"},"17270001","18003","SMONSRE680258CV","A01","",""]
["17","680",null,null,"         VARIOUS         THOMA","2631RE680259","21310","13200","64206","17272700",{"$f":"VLOOKUP(TRIM(J1636),'Transactional Departments'!A:B,2,FALSE)","v":"Thomas, Paul"},"17272700","18003","SVARIRE680259CV","A01","",""]
["17","680",null,null,"         VARIOUS         BOYHA","2631RE680263","21310","13200","64206","17270300",{"$f":"VLOOKUP(TRIM(J1637),'Transactional Departments'!A:B,2,FALSE)","v":"Boyhan, George"},"17270300","18003","SVARIRE680263CV","A01","",""]
["17","680",null,null,"GCCP     PECAN MGMT      WELLS","2631RE680264","21310","13200","62045","17270001",{"$f":"VLOOKUP(TRIM(J1638),'Transactional Departments'!A:B,2,FALSE)","v":"Horticulture Sum"},"17270001","18003","SGPCNRE680264CV","A01","",""]
["17","680",null,null,"GACC VEG SWEETPOTATO     BOYHA","2631RE680265","21310","13200","62008","17270001",{"$f":"VLOOKUP(TRIM(J1639),'Transactional Departments'!A:B,2,FALSE)","v":"Horticulture Sum"},"17270001","18003","SGVEGRE680265CV","A01","",""]
["17","681",null,null,"         CGBG VARIOUS    MILAM","2631RE681003","21310","13200","64206","17324701",{"$f":"VLOOKUP(TRIM(J1640),'Transactional Departments'!A:B,2,FALSE)","v":"CGBG Sum"},"17324701","18003","SVARIRE681003CV","A01","",""]
["17","681",null,null,"         MACYS SECRET GDNMILAM","2631RE681011","21310","13200","64206","17324701",{"$f":"VLOOKUP(TRIM(J1641),'Transactional Departments'!A:B,2,FALSE)","v":"CGBG Sum"},"17324701","18003","SVARIRE681011CV","A01","",""]
["17","681",null,null,"COC      CHATHAM CGBG    MILAM","2631RE681016","21310","13200","63015","17324701",{"$f":"VLOOKUP(TRIM(J1642),'Transactional Departments'!A:B,2,FALSE)","v":"CGBG Sum"},"17324701","18003","SCHTMRE681016CV","A01","",""]
["17","681",null,null,"         CHATHAM CGBG    MILAM","2631RE681017","21310","13200","63015","17324701",{"$f":"VLOOKUP(TRIM(J1643),'Transactional Departments'!A:B,2,FALSE)","v":"CGBG Sum"},"17324701","18003","SCHTMRE681017CV","A01","",""]
["17","681",null,null,"FCG      MISC EMP        MILAM","2631RE681018","21310","13200","64346","17324701",{"$f":"VLOOKUP(TRIM(J1644),'Transactional Departments'!A:B,2,FALSE)","v":"CGBG Sum"},"17324701","18003","SFOCGRE681018CV","A01","",""]
["17","681",null,null,"FCG      GROUND KEEP     MILAM","2631RE681019","21310","13200","64346","17324701",{"$f":"VLOOKUP(TRIM(J1645),'Transactional Departments'!A:B,2,FALSE)","v":"CGBG Sum"},"17324701","18003","SFOCGRE681019CV","A01","",""]
["17","682",null,null,"FEDERAL SMITH LEVER           ","2631GE682001","21310","13200","61FSL","17280001",{"$f":"VLOOKUP(TRIM(J1646),'Transactional Departments'!A:B,2,FALSE)","v":"Plant Path Sum"},"17280001","18003","SNIFAXSMLEVER17","F17","",""]
["17","682",null,null,"PLANTPATH/INTEGRATED/MUTLI-CES","2631GE682411","21310","13200","61FSL","17280001",{"$f":"VLOOKUP(TRIM(J1647),'Transactional Departments'!A:B,2,FALSE)","v":"Plant Path Sum"},"17280001","18003","SNIFAXSMLEVER17","F17","",""]
["17","682",null,null,"GACC PCH UGA_BROWN ROT___BRANN","2631RE682009","21310","13200","62007","17280001",{"$f":"VLOOKUP(TRIM(J1648),'Transactional Departments'!A:B,2,FALSE)","v":"Plant Path Sum"},"17280001","18003","SGPCHRE682009CV","A01","",""]
["17","682",null,null,"         VARIOUS/WLMS-WOOWILLI","2631RE682062","21310","13200","64206","17284010",{"$f":"VLOOKUP(TRIM(J1649),'Transactional Departments'!A:B,2,FALSE)","v":"Woodward"},"17284010","18003","SVARIRE682062CV","A01","",""]
["17","682",null,null,"         VARIOUS INCOME  SHERW","2631RE682083","21310","13200","64206","17280001",{"$f":"VLOOKUP(TRIM(J1650),'Transactional Departments'!A:B,2,FALSE)","v":"Plant Path Sum"},"17280001","18003","SVARIRE682083CV","A01","",""]
["17","682",null,null,"         VARIOUS         KEMER","2631RE682094","21310","13200","64206","17285009",{"$f":"VLOOKUP(TRIM(J1651),'Transactional Departments'!A:B,2,FALSE)","v":"Kemerait"},"17285009","18003","SVARIRE682094CV","A01","",""]
["17","682",null,null,"         VARIOUS RESCH__ BRANN","2631RE682095","21310","13200","64206","17284001",{"$f":"VLOOKUP(TRIM(J1652),'Transactional Departments'!A:B,2,FALSE)","v":"Brannen"},"17284001","18003","SVARIRE682095CV","A01","",""]
["17","682",null,null,"         VARIOUS RSCH    MARTI","2631RE682116","21310","13200","64206","17286002",{"$f":"VLOOKUP(TRIM(J1653),'Transactional Departments'!A:B,2,FALSE)","v":"Martinez"},"17286002","18003","SVARIRE682116CV","A01","",""]
["17","682",null,null,"GACC SOYBUGA SB SENTINEL KEMER","2631RE682158","21310","13200","62004","17280001",{"$f":"VLOOKUP(TRIM(J1654),'Transactional Departments'!A:B,2,FALSE)","v":"Plant Path Sum"},"17280001","18003","SGSOYRE682158CV","A01","",""]
["17","682",null,null,"         VARIOUS         DUTTA","2631RE682264","21310","13200","64206","17285005",{"$f":"VLOOKUP(TRIM(J1655),'Transactional Departments'!A:B,2,FALSE)","v":"Cutta"},"17285005","18003","SVARIRE682264CV","A01","",""]
["17","682",null,null,"CAL/USDA TOSPOVIRUSES    SHERW","2631RE682310","21310","13200","62562","17280001",{"$f":"VLOOKUP(TRIM(J1656),'Transactional Departments'!A:B,2,FALSE)","v":"Plant Path Sum"},"17280001","18003","SUCADRE682310CV","A01","",""]
["17","682",null,null,"GACCS    GA SOYBEAN RUST KEMER","2631RE682328","21310","13200","62004","17280001",{"$f":"VLOOKUP(TRIM(J1657),'Transactional Departments'!A:B,2,FALSE)","v":"Plant Path Sum"},"17280001","18003","SGSOYRE682328CV","A01","",""]
["17","682",null,null,"USDA     RF W/332-692    JI   ","2631RE682337","21310","13200","61002","17280001",{"$f":"VLOOKUP(TRIM(J1658),'Transactional Departments'!A:B,2,FALSE)","v":"Plant Path Sum"},"17280001","18400","RUSDARE682337CV","A01","",""]
["17","682",null,null,"UFL/USDA RF W/ 2521RF330510   ","2631RE682341","21310","13200","62511","17280001",{"$f":"VLOOKUP(TRIM(J1659),'Transactional Departments'!A:B,2,FALSE)","v":"Plant Path Sum"},"17280001","18400","RUFLXRE682341CV","A01","",""]
["17","682",null,null,"MONSANTO POWDERY MILDEW  DUTTA","2631RE682345","21310","13200","64007","17280001",{"$f":"VLOOKUP(TRIM(J1660),'Transactional Departments'!A:B,2,FALSE)","v":"Plant Path Sum"},"17280001","18003","SMONSRE682345CV","A01","",""]
["17","682",null,null,"USDA NIFARF  RF EXOBADIDIUM BR","2631RE682347","21310","13200","61002","17280001",{"$f":"VLOOKUP(TRIM(J1661),'Transactional Departments'!A:B,2,FALSE)","v":"Plant Path Sum"},"17280001","18400","RUSDARE682347CV","A01","",""]
["17","682",null,null,"NCGA     UGA_DR TOL CORN_KEMER","2631RE682350","21310","13200","64171","17280001",{"$f":"VLOOKUP(TRIM(J1662),'Transactional Departments'!A:B,2,FALSE)","v":"Plant Path Sum"},"17280001","18003","SNCGARE682350CV","A01","",""]
["17","682",null,null,"MONSANTO RF RF_SOYBEAN RUKEMER","2631RE682361","21310","13200","64007","17280001",{"$f":"VLOOKUP(TRIM(J1663),'Transactional Departments'!A:B,2,FALSE)","v":"Plant Path Sum"},"17280001","18400","RMONSRE682361CV","A01","",""]
["17","682",null,null,"MONSANTO RF CUCURBIT FIE DUTTA","2631RE682362","21310","13200","64007","17280001",{"$f":"VLOOKUP(TRIM(J1664),'Transactional Departments'!A:B,2,FALSE)","v":"Plant Path Sum"},"17280001","18400","RMONSRE682362CV","A01","",""]
["17","682",null,null,"USDA     RF RD309-134    JORDA","2631RE682363","21310","13200","61006","17280001",{"$f":"VLOOKUP(TRIM(J1665),'Transactional Departments'!A:B,2,FALSE)","v":"Plant Path Sum"},"17280001","18400","RNIFARE682363CV","A01","",""]
["17","682",null,null,"CFGA     UGA_EVAL BIODYN_LITTL","2631RE682364","21310","13200","64412","17280001",{"$f":"VLOOKUP(TRIM(J1666),'Transactional Departments'!A:B,2,FALSE)","v":"Plant Path Sum"},"17280001","18003","SCOFARE682364CV","A01","",""]
["17","682",null,null,"AU/NIFA  UGA_TARGET COT__KEMER","2631RE682365","21310","13200","62538","17280001",{"$f":"VLOOKUP(TRIM(J1667),'Transactional Departments'!A:B,2,FALSE)","v":"Plant Path Sum"},"17280001","18003","SAUBURE682365CV","A01","",""]
["17","682",null,null,"MONSANTO RF RD_RKN RESISTKEMER","2631RE682367","21310","13200","64007","17280001",{"$f":"VLOOKUP(TRIM(J1668),'Transactional Departments'!A:B,2,FALSE)","v":"Plant Path Sum"},"17280001","18400","RMONSRE682367CV","A01","",""]
["17","682",null,null,"UFL/USDA SO PLANT DIAGN__SCHER","2631RE682368","21310","13200","62511","17280001",{"$f":"VLOOKUP(TRIM(J1669),'Transactional Departments'!A:B,2,FALSE)","v":"Plant Path Sum"},"17280001","18003","SUFLXRE682368CV","A01","",""]
["17","682",null,null,"MONSANTO RF RF_SVC ORDR 7KEMER","2631RE682369","21310","13200","64007","17280001",{"$f":"VLOOKUP(TRIM(J1670),'Transactional Departments'!A:B,2,FALSE)","v":"Plant Path Sum"},"17280001","18400","RMONSRE682369CV","A01","",""]
["17","682",null,null,"NCGA     DROUGHT TOLERAN_KEMER","2631RE682370","21310","13200","64171","17280001",{"$f":"VLOOKUP(TRIM(J1671),'Transactional Departments'!A:B,2,FALSE)","v":"Plant Path Sum"},"17280001","18003","SNCGARE682370CV","A01","",""]
["17","682",null,null,"GACC CORNUGA_APPLIED RES_KEMER","2631RE682371","21310","13200","62047","17280001",{"$f":"VLOOKUP(TRIM(J1672),'Transactional Departments'!A:B,2,FALSE)","v":"Plant Path Sum"},"17280001","18003","SGCRNRE682371CV","A01","",""]
["17","682",null,null,"TAMU/USDAUGA BACTERIAL  _KEMER","2631RE682372","21310","13200","62527","17280001",{"$f":"VLOOKUP(TRIM(J1673),'Transactional Departments'!A:B,2,FALSE)","v":"Plant Path Sum"},"17280001","18003","STXAURE682372CV","A01","",""]
["17","682",null,null,"USDA-NIFAUGA_ENGAGING ST BAUSK","2631RE682373","21310","13200","61006","17280001",{"$f":"VLOOKUP(TRIM(J1674),'Transactional Departments'!A:B,2,FALSE)","v":"Plant Path Sum"},"17280001","18003","SNIFARE682373CV","A01","",""]
["17","682",null,null,"CASF     UGA_PROTOC TRIA KEMER","2631RE682375","21310","13200","64002","17280001",{"$f":"VLOOKUP(TRIM(J1675),'Transactional Departments'!A:B,2,FALSE)","v":"Plant Path Sum"},"17280001","18003","SBASFRE682375CV","A01","",""]
["17","682",null,null,"BASF     DEVF2016USVJ2B1_MARTI","2631RE682401","21310","13200","64002","17280001",{"$f":"VLOOKUP(TRIM(J1676),'Transactional Departments'!A:B,2,FALSE)","v":"Plant Path Sum"},"17280001","18003","SBASFRE682401CV","A01","",""]
["17","682",null,null,"         VARIOUS         HAJIH","2631RE682403","21310","13200","64206","17280001",{"$f":"VLOOKUP(TRIM(J1677),'Transactional Departments'!A:B,2,FALSE)","v":"Plant Path Sum"},"17280001","18003","SVARIRE682403CV","A01","",""]
["17","683",null,null,"FEDERAL SMITH LEVER           ","2631GE683001","21310","13200","61FSL","17290001",{"$f":"VLOOKUP(TRIM(J1678),'Transactional Departments'!A:B,2,FALSE)","v":"Poultry Science Sum"},"17290001","18003","SNIFAXSMLEVER17","F17","",""]
["17","683",null,null,"FED SMITH LEVER CZARICK       ","2631GE683101","21310","13200","61FSL","17295150",{"$f":"VLOOKUP(TRIM(J1679),'Transactional Departments'!A:B,2,FALSE)","v":"Czarick, Mike"},"17295150","18003","SNIFAXSMLEVER17","F17","",""]
["17","683",null,null,"POULTRYSCI/INTEGRTED/MUTLI-CES","2631GE683411","21310","13200","61FSL","17290001",{"$f":"VLOOKUP(TRIM(J1680),'Transactional Departments'!A:B,2,FALSE)","v":"Poultry Science Sum"},"17290001","18003","SNIFAXSMLEVER17","F17","",""]
["17","683",null,null,"         INCUBATION ENVI WILSO","2631RE683008","21310","13200","64178","17290001",{"$f":"VLOOKUP(TRIM(J1681),'Transactional Departments'!A:B,2,FALSE)","v":"Poultry Science Sum"},"17290001","18003","SUSPARE683008CV","A01","",""]
["17","683",null,null,"         POULTRY SC VARIOUS   ","2631RE683106","21310","13200","64206","17290001",{"$f":"VLOOKUP(TRIM(J1682),'Transactional Departments'!A:B,2,FALSE)","v":"Poultry Science Sum"},"17290001","18003","SVARIRE683106CV","A01","",""]
["17","683",null,null,"         VARIOUS RSCH    FAIRC","2631RE683127","21310","13200","64206","17295350",{"$f":"VLOOKUP(TRIM(J1683),'Transactional Departments'!A:B,2,FALSE)","v":"Fairchild, Brian"},"17295350","18003","SVARIRE683127CV","A01","",""]
["17","683",null,null,"         VAR RSCH GIFTS  RITZ ","2631RE683133","21310","13200","64206","17295650",{"$f":"VLOOKUP(TRIM(J1684),'Transactional Departments'!A:B,2,FALSE)","v":"Ritz, Casey"},"17295650","18003","SVARIRE683133CV","A01","",""]
["17","683",null,null,"         EVAL LED LIGHT SFAIRC","2631RE683142","21310","13200","64178","17290001",{"$f":"VLOOKUP(TRIM(J1685),'Transactional Departments'!A:B,2,FALSE)","v":"Poultry Science Sum"},"17290001","18003","SUSPARE683142CV","A01","",""]
["17","683",null,null,"         VAR KIEPPER     KIEPP","2631RE683143","21310","13200","64206","17295450",{"$f":"VLOOKUP(TRIM(J1686),'Transactional Departments'!A:B,2,FALSE)","v":"Kiepper, Brian"},"17295450","18003","SVARIRE683143CV","A01","",""]
["17","683",null,null,"         CARBON FP ASSESSDUNKL","2631RE683144","21310","13200","64178","17290001",{"$f":"VLOOKUP(TRIM(J1687),'Transactional Departments'!A:B,2,FALSE)","v":"Poultry Science Sum"},"17290001","18003","SUSPARE683144CV","A01","",""]
["17","683",null,null,"USDA     EVAL G/F FOAM   WEBST","2631RE683145","21310","13200","61002","17290001",{"$f":"VLOOKUP(TRIM(J1688),'Transactional Departments'!A:B,2,FALSE)","v":"Poultry Science Sum"},"17290001","18003","SUSDARE683145CV","A01","",""]
["17","683",null,null,"         VARIOUS GIFTS   CZARI","2631RE683147","21310","13200","64206","17295150",{"$f":"VLOOKUP(TRIM(J1689),'Transactional Departments'!A:B,2,FALSE)","v":"Czarick, Mike"},"17295150","18003","SVARIRE683147CV","A01","",""]
["17","683",null,null,"USDA     AEC EDUC & GRANTWORLE","2631RE683149","21310","13200","61002","17290001",{"$f":"VLOOKUP(TRIM(J1690),'Transactional Departments'!A:B,2,FALSE)","v":"Poultry Science Sum"},"17290001","18003","SUSDARE683149CV","A01","",""]
["17","683",null,null,"         TUNNEL-VENT     FAIRC","2631RE683153","21310","13200","64178","17290001",{"$f":"VLOOKUP(TRIM(J1691),'Transactional Departments'!A:B,2,FALSE)","v":"Poultry Science Sum"},"17290001","18003","SUSPARE683153CV","A01","",""]
["17","683",null,null,"USDA     CONSERV EDU 15  WORLE","2631RE683154","21310","13200","61002","17290001",{"$f":"VLOOKUP(TRIM(J1692),'Transactional Departments'!A:B,2,FALSE)","v":"Poultry Science Sum"},"17290001","18003","SUSDARE683154CV","A01","",""]
["17","683",null,null,"USDA     PI W/683-154    WORLE","2631RE683155","21310","13200","61002","17290001",{"$f":"VLOOKUP(TRIM(J1693),'Transactional Departments'!A:B,2,FALSE)","v":"Poultry Science Sum"},"17290001","18003","SUSDARE683155CV","A01","",""]
["17","683",null,null,"         VARIOUS         FOWLE","2631RE683156","21310","13200","64206","17295400",{"$f":"VLOOKUP(TRIM(J1694),'Transactional Departments'!A:B,2,FALSE)","v":"Fowler, Justin"},"17295400","18003","SVARIRE683156CV","A01","",""]
["17","683",null,null,"USPE     EUTHANASIA      WEBST","2631RE683157","21310","13200","64178","17290001",{"$f":"VLOOKUP(TRIM(J1695),'Transactional Departments'!A:B,2,FALSE)","v":"Poultry Science Sum"},"17290001","18003","SUSPARE683157CV","A01","",""]
["17","683",null,null,"USDA ARS MM IN COMPOST   RITZ ","2631RE683159","21310","13200","61004","17290001",{"$f":"VLOOKUP(TRIM(J1696),'Transactional Departments'!A:B,2,FALSE)","v":"Poultry Science Sum"},"17290001","18003","SARSXRE683159CV","A01","",""]
["17","683",null,null,"         VARIOUS         SINGH","2631RE683808","21310","13200","64206","17290001",{"$f":"VLOOKUP(TRIM(J1697),'Transactional Departments'!A:B,2,FALSE)","v":"Poultry Science Sum"},"17290001","18003","SVARIRE683808CV","A01","",""]
["17","684",null,null,"FEDERAL SMITH LEVER           ","2631GE684001","21310","13200","61FSL","17230001",{"$f":"VLOOKUP(TRIM(J1698),'Transactional Departments'!A:B,2,FALSE)","v":"ADS Sum"},"17230001","18003","SNIFAXSMLEVER17","F17","",""]
["17","684",null,null,"ANIMALSCI/INTEGRATED/MULTI-CES","2631GE684411","21310","13200","61FSL","17230001",{"$f":"VLOOKUP(TRIM(J1699),'Transactional Departments'!A:B,2,FALSE)","v":"ADS Sum"},"17230001","18003","SNIFAXSMLEVER17","F17","",""]
["17","684",null,null,"GAS&WC   NUTRIENT MGMT   WILSO","2631RE684124","21310","13200","62048","17230001",{"$f":"VLOOKUP(TRIM(J1700),'Transactional Departments'!A:B,2,FALSE)","v":"ADS Sum"},"17230001","18003","SGSWCRE684124CV","A01","",""]
["17","684",null,null,"USDA/UT  S/E MILK________NICKE","2631RE684169","21310","13200","62532","17230001",{"$f":"VLOOKUP(TRIM(J1701),'Transactional Departments'!A:B,2,FALSE)","v":"ADS Sum"},"17230001","18003","SUNTNRE684169CV","A01","",""]
["17","684",null,null,"GCCB     GROWTH IMPLANTS SEGER","2631RE684170","21310","13200","62006","17230001",{"$f":"VLOOKUP(TRIM(J1702),'Transactional Departments'!A:B,2,FALSE)","v":"ADS Sum"},"17230001","18003","SGABFRE684170CV","A01","",""]
["17","684",null,null,"GACCB    HERD RECORD     DUGGI","2631RE684172","21310","13200","62006","17230001",{"$f":"VLOOKUP(TRIM(J1703),'Transactional Departments'!A:B,2,FALSE)","v":"ADS Sum"},"17230001","18003","SGABFRE684172CV","A01","",""]
["17","684",null,null,"GCCB     AGENT TRAINING  DUGGI","2631RE684174","21310","13200","62006","17230001",{"$f":"VLOOKUP(TRIM(J1704),'Transactional Departments'!A:B,2,FALSE)","v":"ADS Sum"},"17230001","18003","SGABFRE684174CV","A01","",""]
["17","684",null,null,"UWM/USDA NUTRIENT MANAGE COWAR","2631RE684175","21310","13200","62518","17230001",{"$f":"VLOOKUP(TRIM(J1705),'Transactional Departments'!A:B,2,FALSE)","v":"ADS Sum"},"17230001","18003","SUNWIRE684175CV","A01","",""]
["17","684",null,null,"GCCB     IMPRVMNT MEETNG SEGER","2631RE684176","21310","13200","62006","17230001",{"$f":"VLOOKUP(TRIM(J1706),'Transactional Departments'!A:B,2,FALSE)","v":"ADS Sum"},"17230001","18003","SGABFRE684176CV","A01","",""]
["17","684",null,null,"NCSU/USDARF BQA TRAINING TUCKE","2631RE684177","21310","13200","62506","17230001",{"$f":"VLOOKUP(TRIM(J1707),'Transactional Departments'!A:B,2,FALSE)","v":"ADS Sum"},"17230001","18400","RNCSURE684177CV","A01","",""]
["17","684",null,null,"GCCB     TRAVEL SUPPORT  STEWA","2631RE684814","21310","13200","62006","17230001",{"$f":"VLOOKUP(TRIM(J1708),'Transactional Departments'!A:B,2,FALSE)","v":"ADS Sum"},"17230001","18003","SGABFRE684814CV","A01","",""]
["17","687",null,null,"FEDERAL SMITH LEVER           ","2631GE687001","21310","13200","61FSL","17322001",{"$f":"VLOOKUP(TRIM(J1709),'Transactional Departments'!A:B,2,FALSE)","v":"NW District Sum"},"17322001","18003","SNIFAXSMLEVER17","F17","",""]
["17","687",null,null,"4-H URBAN PROGRAM             ","2631GE687101","21310","13200","61FSL","17322400",{"$f":"VLOOKUP(TRIM(J1710),'Transactional Departments'!A:B,2,FALSE)","v":"NW 4-H"},"17322400","18003","SNIFAXSMLEVER17","F17","",""]
["17","687",null,null,"         TROUP CO BOC    PRICE","2631RE687196","21310","13200","63028","17322001",{"$f":"VLOOKUP(TRIM(J1711),'Transactional Departments'!A:B,2,FALSE)","v":"NW District Sum"},"17322001","18003","SCTRORE687196CV","A01","",""]
["17","687",null,null,"         POLK CO BOC     PRICE","2631RE687201","21310","13200","63035","17322001",{"$f":"VLOOKUP(TRIM(J1712),'Transactional Departments'!A:B,2,FALSE)","v":"NW District Sum"},"17322001","18003","SCPOLRE687201CV","A01","",""]
["17","687",null,null,"         POLK CO BOE     PRICE","2631RE687202","21310","13200","63035","17322001",{"$f":"VLOOKUP(TRIM(J1713),'Transactional Departments'!A:B,2,FALSE)","v":"NW District Sum"},"17322001","18003","SCPOLRE687202CV","A01","",""]
["17","687",null,null,"         COBB COUNTY     TYSON","2631RE687215","21310","13200","63036","17322001",{"$f":"VLOOKUP(TRIM(J1714),'Transactional Departments'!A:B,2,FALSE)","v":"NW District Sum"},"17322001","18003","SCCOBRE687215CV","A01","",""]
["17","687",null,null,"PASS UGAFMOBILE MRKT     CHEST","2631RE687218","21310","13200","64000","17322001",{"$f":"VLOOKUP(TRIM(J1715),'Transactional Departments'!A:B,2,FALSE)","v":"NW District Sum"},"17322001","18003","SANFFRE687218CV","A01","",""]
["17","687",null,null,"ROCKD C&GROCKDALE CO BOC HAMMO","2631RE687232","21310","13200","63020","17322001",{"$f":"VLOOKUP(TRIM(J1716),'Transactional Departments'!A:B,2,FALSE)","v":"NW District Sum"},"17322001","18003","SCROCRE687232CV","A01","",""]
["17","687",null,null,"TROUP C&GTROUP CO EXT    HAMMO","2631RE687233","21310","13200","63028","17322001",{"$f":"VLOOKUP(TRIM(J1717),'Transactional Departments'!A:B,2,FALSE)","v":"NW District Sum"},"17322001","18003","SCTRORE687233CV","A01","",""]
["17","687",null,null,"COF      FORSYTH CO BOC  HAMMO","2631RE687241","21310","13200","63044","17322001",{"$f":"VLOOKUP(TRIM(J1718),'Transactional Departments'!A:B,2,FALSE)","v":"NW District Sum"},"17322001","18003","SCFORRE687241CV","A01","",""]
["17","687",null,null,"FULTON   CO OF FULTON    HAMMO","2631RE687242","21310","13200","63005","17322001",{"$f":"VLOOKUP(TRIM(J1719),'Transactional Departments'!A:B,2,FALSE)","v":"NW District Sum"},"17322001","18003","SCFULRE687242CV","A01","",""]
["17","687",null,null,"CUSS CHATCUSSETA CHA BOC HAMMO","2631RE687244","21310","13200","63111","17322001",{"$f":"VLOOKUP(TRIM(J1720),'Transactional Departments'!A:B,2,FALSE)","v":"NW District Sum"},"17322001","18003","SCHATRE687244CV","A01","",""]
["17","687",null,null,"MERI     C&G MERI BOC2   HAMMO","2631RE687251","21310","13200","63062","17322001",{"$f":"VLOOKUP(TRIM(J1721),'Transactional Departments'!A:B,2,FALSE)","v":"NW District Sum"},"17322001","18003","SCMERRE687251CV","A01","",""]
["17","687",null,null,"MERI     C&G MERIWE BOE  HAMMO","2631RE687252","21310","13200","63062","17322001",{"$f":"VLOOKUP(TRIM(J1722),'Transactional Departments'!A:B,2,FALSE)","v":"NW District Sum"},"17322001","18003","SCMERRE687252CV","A01","",""]
["17","687",null,null,"MURRAY   C&G MURRAY CO   HAMMO","2631RE687254","21310","13200","63069","17322001",{"$f":"VLOOKUP(TRIM(J1723),'Transactional Departments'!A:B,2,FALSE)","v":"NW District Sum"},"17322001","18003","SCMURRE687254CV","A01","",""]
["17","687",null,null,"POLK     C&G POLK BOC    HAMMO","2631RE687256","21310","13200","63035","17322001",{"$f":"VLOOKUP(TRIM(J1724),'Transactional Departments'!A:B,2,FALSE)","v":"NW District Sum"},"17322001","18003","SCPOLRE687256CV","A01","",""]
["17","687",null,null,"POLK     C&G POLK BOE    HAMMO","2631RE687257","21310","13200","63035","17322001",{"$f":"VLOOKUP(TRIM(J1725),'Transactional Departments'!A:B,2,FALSE)","v":"NW District Sum"},"17322001","18003","SCPOLRE687257CV","A01","",""]
["17","687",null,null,"COC      C&G COWETA      HAMMO","2631RE687262","21310","13200","63017","17322001",{"$f":"VLOOKUP(TRIM(J1726),'Transactional Departments'!A:B,2,FALSE)","v":"NW District Sum"},"17322001","18003","SCCOWRE687262CV","A01","",""]
["17","687",null,null,"MURRAY   G&G MURRAY CO   HAMMO","2631RE687265","21310","13200","63069","17322001",{"$f":"VLOOKUP(TRIM(J1727),'Transactional Departments'!A:B,2,FALSE)","v":"NW District Sum"},"17322001","18003","SCMURRE687265CV","A01","",""]
["17","687",null,null,"CHEROKEE C&G CHEROK BOC  HAMMO","2631RE687266","21310","13200","63090","17322001",{"$f":"VLOOKUP(TRIM(J1728),'Transactional Departments'!A:B,2,FALSE)","v":"NW District Sum"},"17322001","18003","SCCHERE687266CV","A01","",""]
["17","687",null,null,"CLAYTON  C&G SNAP        HAMMO","2631RE687267","21310","13200","63016","17322001",{"$f":"VLOOKUP(TRIM(J1729),'Transactional Departments'!A:B,2,FALSE)","v":"NW District Sum"},"17322001","18003","SCCLARE687267CV","A01","",""]
["17","687",null,null,"FULTON   C&G FULTON BOC  HAMMO","2631RE687269","21310","13200","63005","17322001",{"$f":"VLOOKUP(TRIM(J1730),'Transactional Departments'!A:B,2,FALSE)","v":"NW District Sum"},"17322001","18003","SCFULRE687269CV","A01","",""]
["17","687",null,null,"COC      CHATT BOE       HAMMO","2631RE687272","21310","13200","63111","17322001",{"$f":"VLOOKUP(TRIM(J1731),'Transactional Departments'!A:B,2,FALSE)","v":"NW District Sum"},"17322001","18003","SCHATRE687272CV","A01","",""]
["17","687",null,null,"CCG      COLUMBUS CG     HAMMO","2631RE687273","21310","13200","63108","17322001",{"$f":"VLOOKUP(TRIM(J1732),'Transactional Departments'!A:B,2,FALSE)","v":"NW District Sum"},"17322001","18003","SCOCGRE687273CV","A01","",""]
["17","687",null,null,"COF      FAYETTE BOC     HAMMO","2631RE687275","21310","13200","63004","17322001",{"$f":"VLOOKUP(TRIM(J1733),'Transactional Departments'!A:B,2,FALSE)","v":"NW District Sum"},"17322001","18003","SCFAYRE687275CV","A01","",""]
["17","687",null,null,"COF      FORSYTH BOC     HAMMO","2631RE687276","21310","13200","63044","17322001",{"$f":"VLOOKUP(TRIM(J1734),'Transactional Departments'!A:B,2,FALSE)","v":"NW District Sum"},"17322001","18003","SCFORRE687276CV","A01","",""]
["17","687",null,null,"COH      HENRY BOC       HAMMO","2631RE687277","21310","13200","63027","17322001",{"$f":"VLOOKUP(TRIM(J1735),'Transactional Departments'!A:B,2,FALSE)","v":"NW District Sum"},"17322001","18003","SCHENRE687277CV","A01","",""]
["17","687",null,null,"COH      HENRY BOC       HAMMO","2631RE687278","21310","13200","63027","17322001",{"$f":"VLOOKUP(TRIM(J1736),'Transactional Departments'!A:B,2,FALSE)","v":"NW District Sum"},"17322001","18003","SCHENRE687278CV","A01","",""]
["17","687",null,null,"COM      MERI BOC        HAMMO","2631RE687281","21310","13200","63062","17322001",{"$f":"VLOOKUP(TRIM(J1737),'Transactional Departments'!A:B,2,FALSE)","v":"NW District Sum"},"17322001","18003","SCMERRE687281CV","A01","",""]
["17","687",null,null,"COM      MERI BOE        HAMMO","2631RE687282","21310","13200","63062","17322001",{"$f":"VLOOKUP(TRIM(J1738),'Transactional Departments'!A:B,2,FALSE)","v":"NW District Sum"},"17322001","18003","SCMERRE687282CV","A01","",""]
["17","687",null,null,"MURRAY   MURRAY COMMIS   HAMMO","2631RE687283","21310","13200","63069","17322001",{"$f":"VLOOKUP(TRIM(J1739),'Transactional Departments'!A:B,2,FALSE)","v":"NW District Sum"},"17322001","18003","SCMURRE687283CV","A01","",""]
["17","687",null,null,"NEWTON_CGNEWTON BOC      HAMMO","2631RE687284","21310","13200","63008","17322001",{"$f":"VLOOKUP(TRIM(J1740),'Transactional Departments'!A:B,2,FALSE)","v":"NW District Sum"},"17322001","18003","SCNEWRE687284CV","A01","",""]
["17","687",null,null,"POLK_C&G POLK BOC        HAMMO","2631RE687285","21310","13200","63035","17322001",{"$f":"VLOOKUP(TRIM(J1741),'Transactional Departments'!A:B,2,FALSE)","v":"NW District Sum"},"17322001","18003","SCPOLRE687285CV","A01","",""]
["17","687",null,null,"POLK     POLK BOE        HAMMO","2631RE687286","21310","13200","63035","17322001",{"$f":"VLOOKUP(TRIM(J1742),'Transactional Departments'!A:B,2,FALSE)","v":"NW District Sum"},"17322001","18003","SCPOLRE687286CV","A01","",""]
["17","687",null,null,"ROCK     ROCKDALE BOC    HAMMO","2631RE687287","21310","13200","63020","17322001",{"$f":"VLOOKUP(TRIM(J1743),'Transactional Departments'!A:B,2,FALSE)","v":"NW District Sum"},"17322001","18003","SCROCRE687287CV","A01","",""]
["17","687",null,null,"TROUP    TROUP BOC       HAMMO","2631RE687288","21310","13200","63028","17322001",{"$f":"VLOOKUP(TRIM(J1744),'Transactional Departments'!A:B,2,FALSE)","v":"NW District Sum"},"17322001","18003","SCTRORE687288CV","A01","",""]
["17","687",null,null,"WHIT     WHITFIELD BOC   HAMMO","2631RE687289","21310","13200","63012","17322001",{"$f":"VLOOKUP(TRIM(J1745),'Transactional Departments'!A:B,2,FALSE)","v":"NW District Sum"},"17322001","18003","SCWHIRE687289CV","A01","",""]
["17","687",null,null,"WHIT     WHIT WIC        HAMMO","2631RE687290","21310","13200","63012","17322001",{"$f":"VLOOKUP(TRIM(J1746),'Transactional Departments'!A:B,2,FALSE)","v":"NW District Sum"},"17322001","18003","SCWHIRE687290CV","A01","",""]
["17","687",null,null,"COF      FORSYTH BOE     HAMMO","2631RE687291","21310","13200","63044","17322001",{"$f":"VLOOKUP(TRIM(J1747),'Transactional Departments'!A:B,2,FALSE)","v":"NW District Sum"},"17322001","18003","SCFORRE687291CV","A01","",""]
["17","687",null,null,"COM C&G  MURRAY BOC      HAMMO","2631RE687292","21310","13200","63069","17322001",{"$f":"VLOOKUP(TRIM(J1748),'Transactional Departments'!A:B,2,FALSE)","v":"NW District Sum"},"17322001","18003","SCMURRE687292CV","A01","",""]
["17","687",null,null,"COT      COWETA BOE______HAMMO","2631RE687293","21310","13200","63017","17322001",{"$f":"VLOOKUP(TRIM(J1749),'Transactional Departments'!A:B,2,FALSE)","v":"NW District Sum"},"17322001","18003","SCCOWRE687293CV","A01","",""]
["17","687",null,null,"COBB CO  ROLANDO ORELLAN_HAMMO","2631RE687294","21310","13200","63036","17322001",{"$f":"VLOOKUP(TRIM(J1750),'Transactional Departments'!A:B,2,FALSE)","v":"NW District Sum"},"17322001","18003","SCCOBRE687294CV","A01","",""]
["17","687",null,null,"CLAYTON  EXTENSION AGENT HAMMO","2631RE687296","21310","13200","63016","17322001",{"$f":"VLOOKUP(TRIM(J1751),'Transactional Departments'!A:B,2,FALSE)","v":"NW District Sum"},"17322001","18003","SCCLARE687296CV","A01","",""]
["17","687",null,null,"CHEROKEE WITCH/FUD/HAYG__HAMMO","2631RE687297","21310","13200","63090","17322001",{"$f":"VLOOKUP(TRIM(J1752),'Transactional Departments'!A:B,2,FALSE)","v":"NW District Sum"},"17322001","18003","SCCHERE687297CV","A01","",""]
["17","687",null,null,"AHD      AHC 4-H AGENT   HAMMO","2631RE687298","21310","13200","64407","17322001",{"$f":"VLOOKUP(TRIM(J1753),'Transactional Departments'!A:B,2,FALSE)","v":"NW District Sum"},"17322001","18003","SATHCRE687298CV","A01","",""]
["17","687",null,null,"PCC      EXT AGENT FY17  HAMMO","2631RE687299","21310","13200","63092","17322001",{"$f":"VLOOKUP(TRIM(J1754),'Transactional Departments'!A:B,2,FALSE)","v":"NW District Sum"},"17322001","18003","SCPIKRE687299CV","A01","",""]
["17","687",null,null,"         SPALDING CTY    HAMMO","2631RE687300","21310","13200","63037","17322001",{"$f":"VLOOKUP(TRIM(J1755),'Transactional Departments'!A:B,2,FALSE)","v":"NW District Sum"},"17322001","18003","SCSPARE687300CV","A01","",""]
["17","687",null,null,"         FULTON BOC      HAMMO","2631RE687301","21310","13200","63005","17322001",{"$f":"VLOOKUP(TRIM(J1756),'Transactional Departments'!A:B,2,FALSE)","v":"NW District Sum"},"17322001","18003","SCFULRE687301CV","A01","",""]
["17","687",null,null,"         GWINNETT BOC    HAMMO","2631RE687302","21310","13200","63014","17322001",{"$f":"VLOOKUP(TRIM(J1757),'Transactional Departments'!A:B,2,FALSE)","v":"NW District Sum"},"17322001","18003","SCGWIRE687302CV","A01","",""]
["17","687",null,null,"         CHATTAHOOCHEE   HAMMO","2631RE687303","21310","13200","63111","17322001",{"$f":"VLOOKUP(TRIM(J1758),'Transactional Departments'!A:B,2,FALSE)","v":"NW District Sum"},"17322001","18003","SCHATRE687303CV","A01","",""]
["17","687",null,null,"         COLUMBUS CON    HAMMO","2631RE687304","21310","13200","63108","17322001",{"$f":"VLOOKUP(TRIM(J1759),'Transactional Departments'!A:B,2,FALSE)","v":"NW District Sum"},"17322001","18003","SCOCGRE687304CV","A01","",""]
["17","687",null,null,"         CUSSETA CHATT   HAMMO","2631RE687305","21310","13200","63111","17322001",{"$f":"VLOOKUP(TRIM(J1760),'Transactional Departments'!A:B,2,FALSE)","v":"NW District Sum"},"17322001","18003","SCHATRE687305CV","A01","",""]
["17","687",null,null,"         FAYETTE BOC     HAMMO","2631RE687306","21310","13200","63004","17322001",{"$f":"VLOOKUP(TRIM(J1761),'Transactional Departments'!A:B,2,FALSE)","v":"NW District Sum"},"17322001","18003","SCFAYRE687306CV","A01","",""]
["17","687",null,null,"         FORSYTH BOC     HAMMO","2631RE687307","21310","13200","63044","17322001",{"$f":"VLOOKUP(TRIM(J1762),'Transactional Departments'!A:B,2,FALSE)","v":"NW District Sum"},"17322001","18003","SCFORRE687307CV","A01","",""]
["17","687",null,null,"         FORSYTH BOE     HAMMO","2631RE687308","21310","13200","63044","17322001",{"$f":"VLOOKUP(TRIM(J1763),'Transactional Departments'!A:B,2,FALSE)","v":"NW District Sum"},"17322001","18003","SCFORRE687308CV","A01","",""]
["17","687",null,null,"         HENRY BOC       HAMMO","2631RE687309","21310","13200","63027","17322001",{"$f":"VLOOKUP(TRIM(J1764),'Transactional Departments'!A:B,2,FALSE)","v":"NW District Sum"},"17322001","18003","SCHENRE687309CV","A01","",""]
["17","687",null,null,"         HENRY BOC       HAMMO","2631RE687310","21310","13200","63027","17322001",{"$f":"VLOOKUP(TRIM(J1765),'Transactional Departments'!A:B,2,FALSE)","v":"NW District Sum"},"17322001","18003","SCHENRE687310CV","A01","",""]
["17","687",null,null,"         MERIWETHER BOC2 HAMMO","2631RE687311","21310","13200","63062","17322001",{"$f":"VLOOKUP(TRIM(J1766),'Transactional Departments'!A:B,2,FALSE)","v":"NW District Sum"},"17322001","18003","SCMERRE687311CV","A01","",""]
["17","687",null,null,"         MERIWETHER BOC  HAMMO","2631RE687312","21310","13200","63062","17322001",{"$f":"VLOOKUP(TRIM(J1767),'Transactional Departments'!A:B,2,FALSE)","v":"NW District Sum"},"17322001","18003","SCMERRE687312CV","A01","",""]
["17","687",null,null,"         MERIWETHER BOE2 HAMMO","2631RE687313","21310","13200","63062","17322001",{"$f":"VLOOKUP(TRIM(J1768),'Transactional Departments'!A:B,2,FALSE)","v":"NW District Sum"},"17322001","18003","SCMERRE687313CV","A01","",""]
["17","687",null,null,"         MERIWETHER BOE  HAMMO","2631RE687314","21310","13200","63062","17322001",{"$f":"VLOOKUP(TRIM(J1769),'Transactional Departments'!A:B,2,FALSE)","v":"NW District Sum"},"17322001","18003","SCMERRE687314CV","A01","",""]
["17","687",null,null,"         MURRAY CC J     HAMMO","2631RE687315","21310","13200","63069","17322001",{"$f":"VLOOKUP(TRIM(J1770),'Transactional Departments'!A:B,2,FALSE)","v":"NW District Sum"},"17322001","18003","SCMURRE687315CV","A01","",""]
["17","687",null,null,"         NEWTON BOC      HAMMO","2631RE687316","21310","13200","63008","17322001",{"$f":"VLOOKUP(TRIM(J1771),'Transactional Departments'!A:B,2,FALSE)","v":"NW District Sum"},"17322001","18003","SCNEWRE687316CV","A01","",""]
["17","687",null,null,"         PIKE BOC        HAMMO","2631RE687317","21310","13200","63092","17322001",{"$f":"VLOOKUP(TRIM(J1772),'Transactional Departments'!A:B,2,FALSE)","v":"NW District Sum"},"17322001","18003","SCPIKRE687317CV","A01","",""]
["17","687",null,null,"         POLK BOC        HAMMO","2631RE687318","21310","13200","63035","17322001",{"$f":"VLOOKUP(TRIM(J1773),'Transactional Departments'!A:B,2,FALSE)","v":"NW District Sum"},"17322001","18003","SCPOLRE687318CV","A01","",""]
["17","687",null,null,"         POLK BOE        HAMMO","2631RE687319","21310","13200","63035","17322001",{"$f":"VLOOKUP(TRIM(J1774),'Transactional Departments'!A:B,2,FALSE)","v":"NW District Sum"},"17322001","18003","SCPOLRE687319CV","A01","",""]
["17","687",null,null,"         ROCKDALE BOC    HAMMO","2631RE687320","21310","13200","63020","17322001",{"$f":"VLOOKUP(TRIM(J1775),'Transactional Departments'!A:B,2,FALSE)","v":"NW District Sum"},"17322001","18003","SCROCRE687320CV","A01","",""]
["17","687",null,null,"         SPALDING BOC    HAMMO","2631RE687321","21310","13200","63037","17322001",{"$f":"VLOOKUP(TRIM(J1776),'Transactional Departments'!A:B,2,FALSE)","v":"NW District Sum"},"17322001","18003","SCSPARE687321CV","A01","",""]
["17","687",null,null,"         TROUP BOC       HAMMO","2631RE687322","21310","13200","63028","17322001",{"$f":"VLOOKUP(TRIM(J1777),'Transactional Departments'!A:B,2,FALSE)","v":"NW District Sum"},"17322001","18003","SCTRORE687322CV","A01","",""]
["17","687",null,null,"         WHITFIELD BOC   HAMMO","2631RE687323","21310","13200","63012","17322001",{"$f":"VLOOKUP(TRIM(J1778),'Transactional Departments'!A:B,2,FALSE)","v":"NW District Sum"},"17322001","18003","SCWHIRE687323CV","A01","",""]
["17","687",null,null,"         WHITFIELD WIC   HAMMO","2631RE687324","21310","13200","63012","17322001",{"$f":"VLOOKUP(TRIM(J1779),'Transactional Departments'!A:B,2,FALSE)","v":"NW District Sum"},"17322001","18003","SCWHIRE687324CV","A01","",""]
["17","687",null,null,"GDHS/USHHW/580-402       FUTRI","2631RE687325","21310","13200","62015","17322001",{"$f":"VLOOKUP(TRIM(J1780),'Transactional Departments'!A:B,2,FALSE)","v":"NW District Sum"},"17322001","18003","SGHUMRE687325CV","A01","",""]
["17","687",null,null,"FOODWELL SEED BLEND      HAMMO","2631RE687326","21310","13200","64270","17322001",{"$f":"VLOOKUP(TRIM(J1781),'Transactional Departments'!A:B,2,FALSE)","v":"NW District Sum"},"17322001","18003","SFOODRE687326CV","A01","",""]
["17","687",null,null,"         MURRAY CTY      HAMMO","2631RE687327","21310","13200","63069","17322001",{"$f":"VLOOKUP(TRIM(J1782),'Transactional Departments'!A:B,2,FALSE)","v":"NW District Sum"},"17322001","18003","SCMURRE687327CV","A01","",""]
["17","687",null,null,"COWETA COCOWETA BOE______HAMMO","2631RE687328","21310","13200","63017","17322001",{"$f":"VLOOKUP(TRIM(J1783),'Transactional Departments'!A:B,2,FALSE)","v":"NW District Sum"},"17322001","18003","SCCOWRE687328CV","A01","",""]
["17","687",null,null,"         CHEROKEE BOC    HAMMO","2631RE687329","21310","13200","63090","17322001",{"$f":"VLOOKUP(TRIM(J1784),'Transactional Departments'!A:B,2,FALSE)","v":"NW District Sum"},"17322001","18003","SCCHERE687329CV","A01","",""]
["17","687",null,null,"         CLAYTON BOC     HAMMO","2631RE687330","21310","13200","63016","17322001",{"$f":"VLOOKUP(TRIM(J1785),'Transactional Departments'!A:B,2,FALSE)","v":"NW District Sum"},"17322001","18003","SCCLARE687330CV","A01","",""]
["17","687",null,null,"GDHS     W/ 353-470      FUTRI","2631RE687331","21310","13200","62015","17322001",{"$f":"VLOOKUP(TRIM(J1786),'Transactional Departments'!A:B,2,FALSE)","v":"NW District Sum"},"17322001","18003","SGHUMRE687331CV","A01","",""]
["17","704",null,null,"GDECD    RF RF_PNUT BLANCPHILL","2521RD704001","21300","12100","64370","17261001",{"$f":"VLOOKUP(TRIM(J1787),'Transactional Departments'!A:B,2,FALSE)","v":"Food PIC Sum"},"17261001","18400","RGCOIRD704001CV","A01","",""]
["17","704",null,null,"LMCM     RF PNUT BLANCH  PHILL","2521RD704100","21300","12100","64077","17261001",{"$f":"VLOOKUP(TRIM(J1788),'Transactional Departments'!A:B,2,FALSE)","v":"Food PIC Sum"},"17261001","18400","RLMCMRD704100CV","A01","",""]
["17","705",null,null,"USDA NIFATREASURE SAE    RUBEN","1011RH705102","20000","11100","61006","17220001",{"$f":"VLOOKUP(TRIM(J1789),'Transactional Departments'!A:B,2,FALSE)","v":"ALEC Sum"},"17220001","18003","SNIFARH705102CV","A01","",""]
["17","706",null,null,"ALEC FEDERAL HATCH            ","2526GC706001","21300","12100","61HAT","17220001",{"$f":"VLOOKUP(TRIM(J1790),'Transactional Departments'!A:B,2,FALSE)","v":"ALEC Sum"},"17220001","18003","SNIFAXRGHATCH17","F17","RCS",""]
["17","710",null,null,"USDA     CLMBIA BRLG UGA PARRO","2521RC710056","21300","12100","61002","17150001",{"$f":"VLOOKUP(TRIM(J1791),'Transactional Departments'!A:B,2,FALSE)","v":"Global Programs Sum"},"17150001","18003","SUSDARC710056CV","A01","",""]
["17","710",null,null,"USDA     RF FLW W710055  BART ","2521RC710057","21300","12100","61002","17150001",{"$f":"VLOOKUP(TRIM(J1792),'Transactional Departments'!A:B,2,FALSE)","v":"Global Programs Sum"},"17150001","18400","RUSDARC710057CV","A01","",""]
["17","710",null,null,"USDA     FLLW W/710-056  PARRO","2521RC710058","21300","12100","61002","17150001",{"$f":"VLOOKUP(TRIM(J1793),'Transactional Departments'!A:B,2,FALSE)","v":"Global Programs Sum"},"17150001","18003","SUSDARC710058CV","A01","",""]
["17","710",null,null,"USAID    RF PEANUT CRSP  HOISI","2521RC710059","21300","12100","61028","17150001",{"$f":"VLOOKUP(TRIM(J1794),'Transactional Departments'!A:B,2,FALSE)","v":"Global Programs Sum"},"17150001","18400","RUSADRC710059CV","A01","",""]
["17","710",null,null,"USAID    RF SUP 710-059  BROWN","2521RC710060","21300","12100","61028","17150001",{"$f":"VLOOKUP(TRIM(J1795),'Transactional Departments'!A:B,2,FALSE)","v":"Global Programs Sum"},"17150001","18400","RUSADRC710060CV","A01","",""]
["17","710",null,null,"MSU      RF THEARD TRNG  BART ","2521RC710067","21300","12100","62505","17150001",{"$f":"VLOOKUP(TRIM(J1796),'Transactional Departments'!A:B,2,FALSE)","v":"Global Programs Sum"},"17150001","18400","RMISURC710067CV","A01","",""]
["17","710",null,null,"MSU      RF GHANA   BART BART ","2521RC710068","21300","12100","62505","17150001",{"$f":"VLOOKUP(TRIM(J1797),'Transactional Departments'!A:B,2,FALSE)","v":"Global Programs Sum"},"17150001","18400","RMISURC710068CV","A01","",""]
["17","710",null,null,"MSU      RF BHEARD BANGL BART ","2521RC710069","21300","12100","62505","17150001",{"$f":"VLOOKUP(TRIM(J1798),'Transactional Departments'!A:B,2,FALSE)","v":"Global Programs Sum"},"17150001","18400","RMISURC710069CV","A01","",""]
["17","710",null,null,"USDA FAS RF BFP15 JORDAN BART ","2521RC710072","21300","12100","61002","17150001",{"$f":"VLOOKUP(TRIM(J1799),'Transactional Departments'!A:B,2,FALSE)","v":"Global Programs Sum"},"17150001","18400","RUSDARC710072CV","A01","",""]
["17","710",null,null,"USAID    RF PEANUT PROGRAM    ","2521RC710077","21300","12100","61028","17150001",{"$f":"VLOOKUP(TRIM(J1800),'Transactional Departments'!A:B,2,FALSE)","v":"Global Programs Sum"},"17150001","18400","RUSADRC710077CV","A01","",""]
["17","710",null,null,"USDA     RF BORLAUG      BART ","2521RC710078","21300","12100","61008","17150001",{"$f":"VLOOKUP(TRIM(J1801),'Transactional Departments'!A:B,2,FALSE)","v":"Global Programs Sum"},"17150001","18400","RAFASRC710078CV","A01","",""]
["17","710",null,null,"USDA FAS RF GHANA FY17   BART ","2521RC710079","21300","12100","61008","17150001",{"$f":"VLOOKUP(TRIM(J1802),'Transactional Departments'!A:B,2,FALSE)","v":"Global Programs Sum"},"17150001","18400","RAFASRC710079CV","A01","",""]
["17","710",null,null,"USAID    RF PRIL         HOISI","2521RC710080","21300","12100","61028","17150001",{"$f":"VLOOKUP(TRIM(J1803),'Transactional Departments'!A:B,2,FALSE)","v":"Global Programs Sum"},"17150001","18400","RUSADRC710080CV","A01","",""]
["17","710",null,null,"PALLADIUMRF MADA         HOISI","2521RC710081","21300","12100","64000","17150001",{"$f":"VLOOKUP(TRIM(J1804),'Transactional Departments'!A:B,2,FALSE)","v":"Global Programs Sum"},"17150001","18400","RXXXXRC710081CV","A01","",""]
["17","736",null,null,"GACC CORNRF RF_COMPARE YIPERRY","2521RF736022","21300","12100","62047","17740000",{"$f":"VLOOKUP(TRIM(J1805),'Transactional Departments'!A:B,2,FALSE)","v":"Stripling Irrigation Rsch Park"},"17740000","18400","RGCRNRF736022CV","A01","",""]
["17","736",null,null,"         VARIOUS         PERRY","2521RF736023","21300","12100","64206","17740000",{"$f":"VLOOKUP(TRIM(J1806),'Transactional Departments'!A:B,2,FALSE)","v":"Stripling Irrigation Rsch Park"},"17740000","18003","SVARIRF736023CV","A01","",""]
["17","736",null,null,"GACC CORNRF COMP YIELDS  PERRY","2521RF736024","21300","12100","62047","17740000",{"$f":"VLOOKUP(TRIM(J1807),'Transactional Departments'!A:B,2,FALSE)","v":"Stripling Irrigation Rsch Park"},"17740000","18400","RGCRNRF736024CV","A01","",""]
["17","747",null,null,"GCCP     RF 14 FARM BILL WOLFE","2521RC747001","21300","12100","62002","17211001",{"$f":"VLOOKUP(TRIM(J1808),'Transactional Departments'!A:B,2,FALSE)","v":"CAED Sum"},"17211001","18400","RGPNTRC747001CV","A01","",""]
["17","747",null,null,"GCCP     RF 14 FARM BILL WOLFE","2521RC747002","21300","12100","62002","17211001",{"$f":"VLOOKUP(TRIM(J1809),'Transactional Departments'!A:B,2,FALSE)","v":"CAED Sum"},"17211001","18400","RGPNTRC747002CV","A01","",""]
["17","747",null,null,"GDOA     RF GEORIGA GROWTSHONK","2521RC747006","21300","12100","62010","17211001",{"$f":"VLOOKUP(TRIM(J1810),'Transactional Departments'!A:B,2,FALSE)","v":"CAED Sum"},"17211001","18400","RGDAGRC747006CV","A01","",""]
["17","748",null,null,"CTR OF AGRIBUS & ECO DEVEL FSL","2631GE748001","21310","13200","61FSL","17211001",{"$f":"VLOOKUP(TRIM(J1811),'Transactional Departments'!A:B,2,FALSE)","v":"CAED Sum"},"17211001","18003","SNIFAXSMLEVER17","F17","",""]
["17","748",null,null,"CTR AGRBUS & ECO DEV INT MULTI","2631GE748411","21310","13200","61FSL","17211001",{"$f":"VLOOKUP(TRIM(J1812),'Transactional Departments'!A:B,2,FALSE)","v":"CAED Sum"},"17211001","18003","SNIFAXSMLEVER17","F17","",""]
["17","748",null,null,"USDA NCRSRURAL GROWTH    WOLFE","2631RE748021","21310","13200","61005","17211001",{"$f":"VLOOKUP(TRIM(J1813),'Transactional Departments'!A:B,2,FALSE)","v":"CAED Sum"},"17211001","18003","SNCRSRE748021CV","A01","",""]
["17","801",null,null,"VEF      FELL TRAN          LI","1011RH801102","20000","11100","61035","17512001",{"$f":"VLOOKUP(TRIM(J1814),'Transactional Departments'!A:B,2,FALSE)","v":"IPBGG Sum"},"17512001","18003","SVIEFRH801102CV","A01","",""]
["19","086",null,null,"USDA FS  RF BORING INSEC FREEM","1021RR086067","20000","12100","61002","19070MUS",{"$f":"VLOOKUP(TRIM(J1815),'Transactional Departments'!A:B,2,FALSE)","v":"Mus Natl Hist"},"19070MUS","18400","RUSDARR086067CV","A01","",""]
["19","086",null,null,"USDA FS  RF BARK BEETLES_FREEM","1021RR086069","20000","12100","61003","19070MUS",{"$f":"VLOOKUP(TRIM(J1816),'Transactional Departments'!A:B,2,FALSE)","v":"Mus Natl Hist"},"19070MUS","18400","RUSFSRR086069CV","A01","",""]
["19","086",null,null,"GDOA     RF CAPS_________FREEM","1021RR086070","20000","12100","62010","19070MUS",{"$f":"VLOOKUP(TRIM(J1817),'Transactional Departments'!A:B,2,FALSE)","v":"Mus Natl Hist"},"19070MUS","18400","RGDAGRR086070CV","A01","",""]
["19","086",null,null,"GDOA/USDARF GA 2017 CAPS_FREEM","1021RR086071","20000","12100","62010","19070MUS",{"$f":"VLOOKUP(TRIM(J1818),'Transactional Departments'!A:B,2,FALSE)","v":"Mus Natl Hist"},"19070MUS","18400","RGDAGRR086071CV","A01","",""]
["19","093",null,null,"TXS/NIH  RF NEURAL CREST MANLE","1021RR093301","20000","12100","62517","19240001",{"$f":"VLOOKUP(TRIM(J1819),'Transactional Departments'!A:B,2,FALSE)","v":"GENE Operations"},"19240001","18400","RUTXARR093301CV","A01","",""]
["19","093",null,null,"         RF DESERT PRIM  MAURI","1021RR093313","20000","12100","64000","19240001",{"$f":"VLOOKUP(TRIM(J1820),'Transactional Departments'!A:B,2,FALSE)","v":"GENE Operations"},"19240001","18003","SENEBRR093313CV","A01","",""]
["19","093",null,null,"         RF EFFTS U CHROMDYER ","1021RR093320","20000","12100","64000","19240001",{"$f":"VLOOKUP(TRIM(J1821),'Transactional Departments'!A:B,2,FALSE)","v":"GENE Operations"},"19240001","18003","SENMFRR093320CV","A01","",""]
["19","093",null,null,"RERF/NIH RF ATOM BOMB SURMANLE","1021RR093326","20000","12100","64000","19240001",{"$f":"VLOOKUP(TRIM(J1822),'Transactional Departments'!A:B,2,FALSE)","v":"GENE Operations"},"19240001","18400","RXXXXRR093326CV","A01","",""]
["19","093",null,null,"         RF BTBOOSTER    MEAGH","1021RR093331","20000","12100","64000","19240001",{"$f":"VLOOKUP(TRIM(J1823),'Transactional Departments'!A:B,2,FALSE)","v":"GENE Operations"},"19240001","18003","SININRR093331CV","A01","",""]
["19","093",null,null,"NSF      RF SUP 551-476  PORTE","1021RR093336","20000","12100","61023","19240001",{"$f":"VLOOKUP(TRIM(J1824),'Transactional Departments'!A:B,2,FALSE)","v":"GENE Operations"},"19240001","18400","RNSFXRR093336CV","A01","",""]
["19","093",null,null,"NY/NIH   RF SACCHAROMYCS HALL ","1021RR093354","20000","12100","62584","19240001",{"$f":"VLOOKUP(TRIM(J1825),'Transactional Departments'!A:B,2,FALSE)","v":"GENE Operations"},"19240001","18400","RNYUXRR093354CV","A01","",""]
["19","093",null,null,"NSF      RF FLY DROSOPHL DYER ","1021RR093355","20000","12100","61023","19240001",{"$f":"VLOOKUP(TRIM(J1826),'Transactional Departments'!A:B,2,FALSE)","v":"GENE Operations"},"19240001","18400","RNSFXRR093355CV","A01","",""]
["19","093",null,null,"NSF      RF LIMB MORPHOL MENKE","1021RR093356","20000","12100","61023","19240001",{"$f":"VLOOKUP(TRIM(J1827),'Transactional Departments'!A:B,2,FALSE)","v":"GENE Operations"},"19240001","18400","RNSFXRR093356CV","A01","",""]
["19","093",null,null,"TMF      RF WSEN KUNTZ   MAURI","1021RR093357","20000","12100","64419","19240001",{"$f":"VLOOKUP(TRIM(J1828),'Transactional Departments'!A:B,2,FALSE)","v":"GENE Operations"},"19240001","18400","RTMFDRR093357CV","A01","",""]
["19","093",null,null,"UTB/USDE RF FA2          WESTP","1021RR093366","20000","12100","64292","19240001",{"$f":"VLOOKUP(TRIM(J1829),'Transactional Departments'!A:B,2,FALSE)","v":"GENE Operations"},"19240001","18400","RUTBARR093366CV","A01","",""]
["19","093",null,null,"UTB/USDE RF EDUC         WESTP","1021RR093367","20000","12100","64292","19240001",{"$f":"VLOOKUP(TRIM(J1830),'Transactional Departments'!A:B,2,FALSE)","v":"GENE Operations"},"19240001","18400","RUTBARR093367CV","A01","",""]
["19","093",null,null,"UTB/USDE RF FA1 STRUC    BENNE","1021RR093368","20000","12100","64292","19240001",{"$f":"VLOOKUP(TRIM(J1831),'Transactional Departments'!A:B,2,FALSE)","v":"GENE Operations"},"19240001","18400","RUTBARR093368CV","A01","",""]
["19","093",null,null,"NIH      RF EPIGENTC VAR SCHMI","1021RR093380","20000","12100","61018","19240001",{"$f":"VLOOKUP(TRIM(J1832),'Transactional Departments'!A:B,2,FALSE)","v":"GENE Operations"},"19240001","18400","RNIHXRR093380CV","A01","",""]
["19","093",null,null,"NSF      RF W/ 371-251 SCHMITZ","1021RR093381","20000","12100","61023","19240001",{"$f":"VLOOKUP(TRIM(J1833),'Transactional Departments'!A:B,2,FALSE)","v":"GENE Operations"},"19240001","18400","RNSFXRR093381CV","A01","",""]
["19","093",null,null,"TX/NIH   RF THYMIC INVOL MANLE","1021RR093382","20000","12100","62571","19240001",{"$f":"VLOOKUP(TRIM(J1834),'Transactional Departments'!A:B,2,FALSE)","v":"GENE Operations"},"19240001","18400","RMDANRR093382CV","A01","",""]
["19","093",null,null,"NIH      RF WDR62 NEU DEVCHEN ","1021RR093383","20000","12100","61018","19240001",{"$f":"VLOOKUP(TRIM(J1835),'Transactional Departments'!A:B,2,FALSE)","v":"GENE Operations"},"19240001","18400","RNIHXRR093383CV","A01","",""]
["19","093",null,null,"NSF      RF GENOCOMPBIO  ARNOL","1021RR093386","20000","12100","61023","19240001",{"$f":"VLOOKUP(TRIM(J1836),'Transactional Departments'!A:B,2,FALSE)","v":"GENE Operations"},"19240001","18400","RNSFXRR093386CV","A01","",""]
["19","093",null,null,"UT/NIH   RF THYMUS FATE  MANLE","1021RR093387","20000","12100","62571","19240001",{"$f":"VLOOKUP(TRIM(J1837),'Transactional Departments'!A:B,2,FALSE)","v":"GENE Operations"},"19240001","18400","RMDANRR093387CV","A01","",""]
["19","093",null,null,"NSF      RF PS 093386    ARNOL","1021RR093390","20000","12100","61023","19240001",{"$f":"VLOOKUP(TRIM(J1838),'Transactional Departments'!A:B,2,FALSE)","v":"GENE Operations"},"19240001","18400","RNSFXRR093390CV","A01","",""]
["19","093",null,null,"NSF      RF CAREER       SWEIG","1021RR093391","20000","12100","61023","19240001",{"$f":"VLOOKUP(TRIM(J1839),'Transactional Departments'!A:B,2,FALSE)","v":"GENE Operations"},"19240001","18400","RNSFXRR093391CV","A01","",""]
["19","093",null,null,"NSF      RF PS W/ 093-391SWEIG","1021RR093392","20000","12100","61023","19240001",{"$f":"VLOOKUP(TRIM(J1840),'Transactional Departments'!A:B,2,FALSE)","v":"GENE Operations"},"19240001","18400","RNSFXRR093392CV","A01","",""]
["19","093",null,null,"NIH      RF TB INFECTION MANLE","1021RR093397","20000","12100","61018","19240001",{"$f":"VLOOKUP(TRIM(J1841),'Transactional Departments'!A:B,2,FALSE)","v":"GENE Operations"},"19240001","18400","RNIHXRR093397CV","A01","",""]
["19","093",null,null,"NIH      RF NIH DEV CTXT MENKE","1021RR093398","20000","12100","61018","19240001",{"$f":"VLOOKUP(TRIM(J1842),'Transactional Departments'!A:B,2,FALSE)","v":"GENE Operations"},"19240001","18400","RNIHXRR093398CV","A01","",""]
["19","093",null,null,"NSF      RF PARENTL CARE MOORE","1021RR093399","20000","12100","61023","19240001",{"$f":"VLOOKUP(TRIM(J1843),'Transactional Departments'!A:B,2,FALSE)","v":"GENE Operations"},"19240001","18400","RNSFXRR093399CV","A01","",""]
["19","093",null,null,"NSF      RF W/ RR093-399 MOORE","1021RR093400","20000","12100","61023","19240001",{"$f":"VLOOKUP(TRIM(J1844),'Transactional Departments'!A:B,2,FALSE)","v":"GENE Operations"},"19240001","18400","RNSFXRR093400CV","A01","",""]
["19","093",null,null,"NIH      RF ADIPOCYTES   MEAGH","1021RR093401","20000","12100","61018","19240001",{"$f":"VLOOKUP(TRIM(J1845),'Transactional Departments'!A:B,2,FALSE)","v":"GENE Operations"},"19240001","18400","RNIHXRR093401CV","A01","",""]
["19","093",null,null,"EF       RF SEED DISP    ANDER","1021RR093404","20000","12100","64000","19240001",{"$f":"VLOOKUP(TRIM(J1846),'Transactional Departments'!A:B,2,FALSE)","v":"GENE Operations"},"19240001","18400","RXXXXRR093404CV","A01","",""]
["19","093",null,null,"UT/NIH   RF THYMUS FATE       ","1021RR093406","20000","12100","62571","19240001",{"$f":"VLOOKUP(TRIM(J1847),'Transactional Departments'!A:B,2,FALSE)","v":"GENE Operations"},"19240001","18400","RMDANRR093406CV","A01","",""]
["19","093",null,null,"UT/NIH   RF THYMUS FATE       ","1021RR093407","20000","12100","62571","19240001",{"$f":"VLOOKUP(TRIM(J1848),'Transactional Departments'!A:B,2,FALSE)","v":"GENE Operations"},"19240001","18400","RMDANRR093407CV","A01","",""]
["19","093",null,null,"NIH      RF GRAD TRN 16       ","1021RR093408","20000","12100","61018","19240001",{"$f":"VLOOKUP(TRIM(J1849),'Transactional Departments'!A:B,2,FALSE)","v":"GENE Operations"},"19240001","18400","RNIHXRR093408CV","A01","",""]
["19","093",null,null,"UNC/NSF  RF PLEIOTROPIC  DYER ","1021RR093410","20000","12100","62516","19240001",{"$f":"VLOOKUP(TRIM(J1850),'Transactional Departments'!A:B,2,FALSE)","v":"GENE Operations"},"19240001","18400","RUNCCRR093410CV","A01","",""]
["19","093",null,null,"NIH      RF ATF3         MANLE","1021RR093411","20000","12100","61018","19240001",{"$f":"VLOOKUP(TRIM(J1851),'Transactional Departments'!A:B,2,FALSE)","v":"GENE Operations"},"19240001","18400","RNIHXRR093411CV","A01","",""]
["19","093",null,null,"PEW      RF BIOMED SCHOL SCHMI","1021RR093412","20000","12100","64289","19240001",{"$f":"VLOOKUP(TRIM(J1852),'Transactional Departments'!A:B,2,FALSE)","v":"GENE Operations"},"19240001","18400","RPEWCRR093412CV","A01","",""]
["19","093",null,null,"USDA-NIFARF RF_PUCCI EMACSMITH","1021RR093414","20000","12100","61006","19240001",{"$f":"VLOOKUP(TRIM(J1853),'Transactional Departments'!A:B,2,FALSE)","v":"GENE Operations"},"19240001","18400","RNIFARR093414CV","A01","",""]
["19","093",null,null,"NSF      RF STEM COURSES ANDRE","1021RR093415","20000","12100","61023","19240001",{"$f":"VLOOKUP(TRIM(J1854),'Transactional Departments'!A:B,2,FALSE)","v":"GENE Operations"},"19240001","18400","RNSFXRR093415CV","A01","",""]
["19","093",null,null,"UT/NIH   RF THYMUS FATE 3 MANL","1021RR093416","20000","12100","62571","19240001",{"$f":"VLOOKUP(TRIM(J1855),'Transactional Departments'!A:B,2,FALSE)","v":"GENE Operations"},"19240001","18400","RMDANRR093416CV","A01","",""]
["19","093",null,null,"NSF      RF MONTANE MUST ANDER","1021RR093418","20000","12100","61023","19240001",{"$f":"VLOOKUP(TRIM(J1856),'Transactional Departments'!A:B,2,FALSE)","v":"GENE Operations"},"19240001","18400","RNSFXRR093418CV","A01","",""]
["19","093",null,null,"NSF      RF PSUP RR093418ANDER","1021RR093419","20000","12100","61023","19240001",{"$f":"VLOOKUP(TRIM(J1857),'Transactional Departments'!A:B,2,FALSE)","v":"GENE Operations"},"19240001","18400","RNSFXRR093419CV","A01","",""]
["19","093",null,null,"NIH      RF GENE SCREEN  MANLE","1021RR093420","20000","12100","61018","19240001",{"$f":"VLOOKUP(TRIM(J1858),'Transactional Departments'!A:B,2,FALSE)","v":"GENE Operations"},"19240001","18400","RNIHXRR093420CV","A01","",""]
["19","093",null,null,"NIH      RF NERUAL TUBE  CHEN ","1021RR093421","20000","12100","61018","19240001",{"$f":"VLOOKUP(TRIM(J1859),'Transactional Departments'!A:B,2,FALSE)","v":"GENE Operations"},"19240001","18400","RNIHXRR093421CV","A01","",""]
["19","093",null,null,"NIH      RF PREDOC TRNG       ","1021RR093426","20000","12100","61018","19240001",{"$f":"VLOOKUP(TRIM(J1860),'Transactional Departments'!A:B,2,FALSE)","v":"GENE Operations"},"19240001","18400","RNIHXRR093426CV","A01","",""]
["19","093",null,null,"NIH      RF PROGEN EXPAN CHEN ","1021RR093429","20000","12100","61018","19240001",{"$f":"VLOOKUP(TRIM(J1861),'Transactional Departments'!A:B,2,FALSE)","v":"GENE Operations"},"19240001","18400","RNIHXRR093429CV","A01","",""]
["19","093",null,null,"NSF      RF EAGER        SCHMI","1021RR093430","20000","12100","61023","19240001",{"$f":"VLOOKUP(TRIM(J1862),'Transactional Departments'!A:B,2,FALSE)","v":"GENE Operations"},"19240001","18400","RNSFXRR093430CV","A01","",""]
["19","093",null,null,"NSF      RF ECA-PGR      SCHMI","1021RR093432","20000","12100","61023","19240001",{"$f":"VLOOKUP(TRIM(J1863),'Transactional Departments'!A:B,2,FALSE)","v":"GENE Operations"},"19240001","18400","RNSFXRR093432CV","A01","",""]
["19","093",null,null,"NSF      RF P/S 093-432  SCHMI","1021RR093433","20000","12100","61023","19240001",{"$f":"VLOOKUP(TRIM(J1864),'Transactional Departments'!A:B,2,FALSE)","v":"GENE Operations"},"19240001","18400","RNSFXRR093433CV","A01","",""]
["19","093",null,null,"UT/NIH   RF MOLEC MECH   MANLE","1021RR093434","20000","12100","62571","19240001",{"$f":"VLOOKUP(TRIM(J1865),'Transactional Departments'!A:B,2,FALSE)","v":"GENE Operations"},"19240001","18400","RMDANRR093434CV","A01","",""]
["19","093",null,null,"UT/NIH   RF THYMUS FATE 4MANLE","1021RR093435","20000","12100","62571","19240001",{"$f":"VLOOKUP(TRIM(J1866),'Transactional Departments'!A:B,2,FALSE)","v":"GENE Operations"},"19240001","18400","RMDANRR093435CV","A01","",""]
["19","093",null,null,"UNIV CA  RF N MOFFEY     SCHMI","1021RR093436","20000","12100","62587","19240001",{"$f":"VLOOKUP(TRIM(J1867),'Transactional Departments'!A:B,2,FALSE)","v":"GENE Operations"},"19240001","18400","RUCARRR093436CV","A01","",""]
["19","093",null,null,"NIH/HHS  RF DARC SIDE    DAVIS","1021RR093437","20000","12100","61018","19240001",{"$f":"VLOOKUP(TRIM(J1868),'Transactional Departments'!A:B,2,FALSE)","v":"GENE Operations"},"19240001","18400","RNIHXRR093437CV","A01","",""]
["19","093",null,null,"NSF      RF CELL CLOCKS  ARNOL","1021RR093439","20000","12100","61023","19240001",{"$f":"VLOOKUP(TRIM(J1869),'Transactional Departments'!A:B,2,FALSE)","v":"GENE Operations"},"19240001","18400","RNSFXRR093439CV","A01","",""]
["19","093",null,null,"NIH      RF PREDOC TRAIN HALL ","1021RR093440","20000","12100","61018","19240001",{"$f":"VLOOKUP(TRIM(J1870),'Transactional Departments'!A:B,2,FALSE)","v":"GENE Operations"},"19240001","18400","RNIHXRR093440CV","A01","",""]
["19","093",null,null,"NIH      RF W/ RR093440  HALL ","1021RR093441","20000","12100","61018","19240001",{"$f":"VLOOKUP(TRIM(J1871),'Transactional Departments'!A:B,2,FALSE)","v":"GENE Operations"},"19240001","18400","RNIHXRR093441CV","A01","",""]
["19","093",null,null,"UTA/NSF  RF IOS EDGE     WHITE","1021RR093442","20000","12100","62517","19240001",{"$f":"VLOOKUP(TRIM(J1872),'Transactional Departments'!A:B,2,FALSE)","v":"GENE Operations"},"19240001","18400","RUTXARR093442CV","A01","",""]
["19","093",null,null,"HFHS     RF DARC SIDE    MANLE","1021RR093443","20000","12100","64031","19240001",{"$f":"VLOOKUP(TRIM(J1873),'Transactional Departments'!A:B,2,FALSE)","v":"GENE Operations"},"19240001","18400","RAZIMRR093443CV","A01","",""]
["19","093",null,null,"HHMI     JENKINS FELLOW  HALL ","1021RR093444","20000","12100","64291","19240001",{"$f":"VLOOKUP(TRIM(J1874),'Transactional Departments'!A:B,2,FALSE)","v":"GENE Operations"},"19240001","18003","SHUGHRR093444CV","A01","",""]
["19","093",null,null,"HHMI     093444 INST ALL HALL ","1021RR093445","20000","12100","64291","19240001",{"$f":"VLOOKUP(TRIM(J1875),'Transactional Departments'!A:B,2,FALSE)","v":"GENE Operations"},"19240001","18003","SHUGHRR093445CV","A01","",""]
["19","093",null,null,"NSF      RF P OCHRACEUS  WARES","1021RR093447","20000","12100","61023","19240001",{"$f":"VLOOKUP(TRIM(J1876),'Transactional Departments'!A:B,2,FALSE)","v":"GENE Operations"},"19240001","18400","RNSFXRR093447CV","A01","",""]
["19","093",null,null,"NIH      RF HEDGEHOG     EGGEN","1021RR093449","20000","12100","61018","19240001",{"$f":"VLOOKUP(TRIM(J1877),'Transactional Departments'!A:B,2,FALSE)","v":"GENE Operations"},"19240001","18400","RNIHXRR093449CV","A01","",""]
["19","093",null,null,"NIH      RF ECOLI METAB  KUSHN","1021RR093452","20000","12100","61018","19240001",{"$f":"VLOOKUP(TRIM(J1878),'Transactional Departments'!A:B,2,FALSE)","v":"GENE Operations"},"19240001","18400","RNIHXRR093452CV","A01","",""]
["19","093",null,null,"UTBATELLERF WITH RR549599MOHNE","1021RR093453","20000","12100","64292","19240001",{"$f":"VLOOKUP(TRIM(J1879),'Transactional Departments'!A:B,2,FALSE)","v":"GENE Operations"},"19240001","18400","RUTBARR093453CV","A01","",""]
["19","093",null,null,"NIH      RF HERRLIN FLW  CHEN ","1021RR093454","20000","12100","61018","19240001",{"$f":"VLOOKUP(TRIM(J1880),'Transactional Departments'!A:B,2,FALSE)","v":"GENE Operations"},"19240001","18400","RNIHXRR093454CV","A01","",""]
["19","093",null,null,"ACS      RF ZBTB24       GOLL ","1021RR093456","20000","12100","64122","19240001",{"$f":"VLOOKUP(TRIM(J1881),'Transactional Departments'!A:B,2,FALSE)","v":"GENE Operations"},"19240001","18400","RAMCSRR093456CV","A01","",""]
["19","093",null,null,"NIH      RF HETEROCHROM  GOLL ","1021RR093457","20000","12100","61018","19240001",{"$f":"VLOOKUP(TRIM(J1882),'Transactional Departments'!A:B,2,FALSE)","v":"GENE Operations"},"19240001","18400","RNIHXRR093457CV","A01","",""]
["19","093",null,null,"UAZ      RF LIFE & STRESSMANLE","1021RR093458","20000","12100","62500","19240001",{"$f":"VLOOKUP(TRIM(J1883),'Transactional Departments'!A:B,2,FALSE)","v":"GENE Operations"},"19240001","18400","RXXXXRR093458CV","A01","",""]
["19","100",null,null,"USDC     RF O/SD-1       HOPKI","1021RR100046","20000","12100","61009","19250110",{"$f":"VLOOKUP(TRIM(J1884),'Transactional Departments'!A:B,2,FALSE)","v":"MARS Marine Sci Admin"},"19250110","18400","RUSDCRR100046CV","A01","",""]
["19","100",null,null,"GMRI     RF ECOGIG-2     JOYE ","1021RR100047","20000","12100","64233","19250110",{"$f":"VLOOKUP(TRIM(J1885),'Transactional Departments'!A:B,2,FALSE)","v":"MARS Marine Sci Admin"},"19250110","18400","RGMEXRR100047CV","A01","",""]
["19","100",null,null,"GMRI     RF RR100-047    JOYE ","1021RR100048","20000","12100","64233","19250110",{"$f":"VLOOKUP(TRIM(J1886),'Transactional Departments'!A:B,2,FALSE)","v":"MARS Marine Sci Admin"},"19250110","18400","RGMEXRR100048CV","A01","",""]
["19","100",null,null,"GMRI     RF RR100-047    JOYE ","1021RR100049","20000","12100","64233","19250110",{"$f":"VLOOKUP(TRIM(J1887),'Transactional Departments'!A:B,2,FALSE)","v":"MARS Marine Sci Admin"},"19250110","18400","RGMEXRR100049CV","A01","",""]
["19","100",null,null,"         RF ROCA         YAGER","1021RR100567","20000","12100","64442","19250110",{"$f":"VLOOKUP(TRIM(J1888),'Transactional Departments'!A:B,2,FALSE)","v":"MARS Marine Sci Admin"},"19250110","18003","SGBMFRR100567CV","A01","",""]
["19","100",null,null,"            INT W/100-567YAGER","1021RR100569","20000","12100","64442","19250110",{"$f":"VLOOKUP(TRIM(J1889),'Transactional Departments'!A:B,2,FALSE)","v":"MARS Marine Sci Admin"},"19250110","18003","SGBMFRR100569CV","A01","",""]
["19","100",null,null,"         RF MORAN W/100-567   ","1021RR100570","20000","12100","64442","19250110",{"$f":"VLOOKUP(TRIM(J1890),'Transactional Departments'!A:B,2,FALSE)","v":"MARS Marine Sci Admin"},"19250110","18003","SGBMFRR100570CV","A01","",""]
["19","100",null,null,"         RF BURD W/100-567    ","1021RR100571","20000","12100","64442","19250110",{"$f":"VLOOKUP(TRIM(J1891),'Transactional Departments'!A:B,2,FALSE)","v":"MARS Marine Sci Admin"},"19250110","18003","SGBMFRR100571CV","A01","",""]
["19","100",null,null,"NEVAD/NSFRF HOT SPRING   ZHANG","1021RR100591","20000","12100","62583","19250110",{"$f":"VLOOKUP(TRIM(J1892),'Transactional Departments'!A:B,2,FALSE)","v":"MARS Marine Sci Admin"},"19250110","18400","RUNLVRR100591CV","A01","",""]
["19","100",null,null,"         RF SEQ W/100-606YAGER","1021RR100607","20000","12100","64442","19250110",{"$f":"VLOOKUP(TRIM(J1893),'Transactional Departments'!A:B,2,FALSE)","v":"MARS Marine Sci Admin"},"19250110","18003","SGBMFRR100607CV","A01","",""]
["19","100",null,null,"         INT W/100-606   YAGER","1021RR100608","20000","12100","64442","19250110",{"$f":"VLOOKUP(TRIM(J1894),'Transactional Departments'!A:B,2,FALSE)","v":"MARS Marine Sci Admin"},"19250110","18003","SGBMFRR100608CV","A01","",""]
["19","100",null,null,"NSF      RF PHOTOCHEMICL MEDEI","1021RR100614","20000","12100","61023","19250110",{"$f":"VLOOKUP(TRIM(J1895),'Transactional Departments'!A:B,2,FALSE)","v":"MARS Marine Sci Admin"},"19250110","18400","RNSFXRR100614CV","A01","",""]
["19","100",null,null,"NSF      RF GA COAST ECO ALBER","1021RR100621","20000","12100","61023","19250110",{"$f":"VLOOKUP(TRIM(J1896),'Transactional Departments'!A:B,2,FALSE)","v":"MARS Marine Sci Admin"},"19250110","18400","RNSFXRR100621CV","A01","",""]
["19","100",null,null,"NSF      RF SUP 100-621  ALBER","1021RR100622","20000","12100","61023","19250110",{"$f":"VLOOKUP(TRIM(J1897),'Transactional Departments'!A:B,2,FALSE)","v":"MARS Marine Sci Admin"},"19250110","18400","RNSFXRR100622CV","A01","",""]
["19","100",null,null,"NSF      RF SUP 100-621  ALBER","1021RR100623","20000","12100","61023","19250110",{"$f":"VLOOKUP(TRIM(J1898),'Transactional Departments'!A:B,2,FALSE)","v":"MARS Marine Sci Admin"},"19250110","18400","RNSFXRR100623CV","A01","",""]
["19","100",null,null,"NSF      RF SUP 100-621  ALBER","1021RR100624","20000","12100","61023","19250110",{"$f":"VLOOKUP(TRIM(J1899),'Transactional Departments'!A:B,2,FALSE)","v":"MARS Marine Sci Admin"},"19250110","18400","RNSFXRR100624CV","A01","",""]
["19","100",null,null,"NSF      RF SUP 100-621  ALBER","1021RR100626","20000","12100","61023","19250110",{"$f":"VLOOKUP(TRIM(J1900),'Transactional Departments'!A:B,2,FALSE)","v":"MARS Marine Sci Admin"},"19250110","18400","RNSFXRR100626CV","A01","",""]
["19","100",null,null,"NSF      RF SUP 100-621  ALBER","1021RR100627","20000","12100","61023","19250110",{"$f":"VLOOKUP(TRIM(J1901),'Transactional Departments'!A:B,2,FALSE)","v":"MARS Marine Sci Admin"},"19250110","18400","RNSFXRR100627CV","A01","",""]
["19","100",null,null,"NSF      RF SUP 100-621  ALBER","1021RR100629","20000","12100","61023","19250110",{"$f":"VLOOKUP(TRIM(J1902),'Transactional Departments'!A:B,2,FALSE)","v":"MARS Marine Sci Admin"},"19250110","18400","RNSFXRR100629CV","A01","",""]
["19","100",null,null,"NSF      RF SUP 100-621  ALBER","1021RR100630","20000","12100","61023","19250110",{"$f":"VLOOKUP(TRIM(J1903),'Transactional Departments'!A:B,2,FALSE)","v":"MARS Marine Sci Admin"},"19250110","18400","RNSFXRR100630CV","A01","",""]
["19","100",null,null,"NASA     RF S ATLANTIC   CASTE","1021RR100633","20000","12100","61022","19250110",{"$f":"VLOOKUP(TRIM(J1904),'Transactional Departments'!A:B,2,FALSE)","v":"MARS Marine Sci Admin"},"19250110","18400","RNASARR100633CV","A01","",""]
["19","100",null,null,"NSF      RF OCEAN ACID   HOPKI","1021RR100635","20000","12100","61023","19250110",{"$f":"VLOOKUP(TRIM(J1905),'Transactional Departments'!A:B,2,FALSE)","v":"MARS Marine Sci Admin"},"19250110","18400","RNSFXRR100635CV","A01","",""]
["19","100",null,null,"NSF      RF ACCOUSTIC    DI IO","1021RR100641","20000","12100","61023","19250110",{"$f":"VLOOKUP(TRIM(J1906),'Transactional Departments'!A:B,2,FALSE)","v":"MARS Marine Sci Admin"},"19250110","18400","RNSFXRR100641CV","A01","",""]
["19","100",null,null,"NSF      RF DIMENSIONS   MORAN","1021RR100642","20000","12100","61023","19250110",{"$f":"VLOOKUP(TRIM(J1907),'Transactional Departments'!A:B,2,FALSE)","v":"MARS Marine Sci Admin"},"19250110","18400","RNSFXRR100642CV","A01","",""]
["19","100",null,null,"NSF      RF PS WITH 100642    ","1021RR100643","20000","12100","61023","19250110",{"$f":"VLOOKUP(TRIM(J1908),'Transactional Departments'!A:B,2,FALSE)","v":"MARS Marine Sci Admin"},"19250110","18400","RNSFXRR100643CV","A01","",""]
["19","100",null,null,"CIT/USDE RF METHANE CYCL MEILE","1021RR100645","20000","12100","64314","19250110",{"$f":"VLOOKUP(TRIM(J1909),'Transactional Departments'!A:B,2,FALSE)","v":"MARS Marine Sci Admin"},"19250110","18400","RCALTRR100645CV","A01","",""]
["19","100",null,null,"NSF      RF PS W/ 100-621     ","1021RR100646","20000","12100","61023","19250110",{"$f":"VLOOKUP(TRIM(J1910),'Transactional Departments'!A:B,2,FALSE)","v":"MARS Marine Sci Admin"},"19250110","18400","RNSFXRR100646CV","A01","",""]
["19","100",null,null,"NSF      RF W/100647MEDEIROS  ","1021RR100649","20000","12100","61023","19250110",{"$f":"VLOOKUP(TRIM(J1911),'Transactional Departments'!A:B,2,FALSE)","v":"MARS Marine Sci Admin"},"19250110","18400","RNSFXRR100649CV","A01","",""]
["19","100",null,null,"NSF      RF GUAYMAS BASN JOYE ","1021RR100650","20000","12100","61023","19250110",{"$f":"VLOOKUP(TRIM(J1912),'Transactional Departments'!A:B,2,FALSE)","v":"MARS Marine Sci Admin"},"19250110","18400","RNSFXRR100650CV","A01","",""]
["19","100",null,null,"         B. HOPKINSON    HOPKI","1021RR100653","20000","12100","64384","19250110",{"$f":"VLOOKUP(TRIM(J1913),'Transactional Departments'!A:B,2,FALSE)","v":"MARS Marine Sci Admin"},"19250110","18003","SSLOARR100653CV","A01","",""]
["19","100",null,null,"NASA     RF WIND FORCE   CASTE","1021RR100656","20000","12100","61022","19250110",{"$f":"VLOOKUP(TRIM(J1914),'Transactional Departments'!A:B,2,FALSE)","v":"MARS Marine Sci Admin"},"19250110","18400","RNASARR100656CV","A01","",""]
["19","100",null,null,"NSF      RF COASTAL SEES ALBER","1021RR100657","20000","12100","61023","19250110",{"$f":"VLOOKUP(TRIM(J1915),'Transactional Departments'!A:B,2,FALSE)","v":"MARS Marine Sci Admin"},"19250110","18400","RNSFXRR100657CV","A01","",""]
["19","100",null,null,"NSF         UGA IPA      MILLE","1021RR100658","20000","12100","61023","19250110",{"$f":"VLOOKUP(TRIM(J1916),'Transactional Departments'!A:B,2,FALSE)","v":"MARS Marine Sci Admin"},"19250110","18003","SNSFXRR100658CV","A01","",""]
["19","100",null,null,"MBL/NSF  RF PIE-LTER          ","1021RR100660","20000","12100","64157","19250110",{"$f":"VLOOKUP(TRIM(J1917),'Transactional Departments'!A:B,2,FALSE)","v":"MARS Marine Sci Admin"},"19250110","18400","RMBIORR100660CV","A01","",""]
["19","100",null,null,"NSF      RF INSPIRE      YAGER","1021RR100661","20000","12100","61023","19250110",{"$f":"VLOOKUP(TRIM(J1918),'Transactional Departments'!A:B,2,FALSE)","v":"MARS Marine Sci Admin"},"19250110","18400","RNSFXRR100661CV","A01","",""]
["19","100",null,null,"NSF      RF OXIDATION    HOLLI","1021RR100662","20000","12100","61023","19250110",{"$f":"VLOOKUP(TRIM(J1919),'Transactional Departments'!A:B,2,FALSE)","v":"MARS Marine Sci Admin"},"19250110","18400","RNSFXRR100662CV","A01","",""]
["19","100",null,null,"GMRI     RF SNOW MINERAL BURD ","1021RR100663","20000","12100","64233","19250110",{"$f":"VLOOKUP(TRIM(J1920),'Transactional Departments'!A:B,2,FALSE)","v":"MARS Marine Sci Admin"},"19250110","18400","RGMEXRR100663CV","A01","",""]
["19","100",null,null,"GMRI     RF VERT UPWELL  DI IO","1021RR100664","20000","12100","64233","19250110",{"$f":"VLOOKUP(TRIM(J1921),'Transactional Departments'!A:B,2,FALSE)","v":"MARS Marine Sci Admin"},"19250110","18400","RGMEXRR100664CV","A01","",""]
["19","100",null,null,"NSF      RF OFFSHORE EXPOMEDEI","1021RR100666","20000","12100","61023","19250110",{"$f":"VLOOKUP(TRIM(J1922),'Transactional Departments'!A:B,2,FALSE)","v":"MARS Marine Sci Admin"},"19250110","18400","RNSFXRR100666CV","A01","",""]
["19","100",null,null,"         RF FAST LOOP SURMORAN","1021RR100667","20000","12100","64442","19250110",{"$f":"VLOOKUP(TRIM(J1923),'Transactional Departments'!A:B,2,FALSE)","v":"MARS Marine Sci Admin"},"19250110","18003","SGBMFRR100667CV","A01","",""]
["19","100",null,null,"         RF W/100-667    MORAN","1021RR100668","20000","12100","64442","19250110",{"$f":"VLOOKUP(TRIM(J1924),'Transactional Departments'!A:B,2,FALSE)","v":"MARS Marine Sci Admin"},"19250110","18003","SGBMFRR100668CV","A01","",""]
["19","100",null,null,"         INT INC 100-667 MORAN","1021RR100669","20000","12100","64442","19250110",{"$f":"VLOOKUP(TRIM(J1925),'Transactional Departments'!A:B,2,FALSE)","v":"MARS Marine Sci Admin"},"19250110","18003","SGBMFRR100669CV","A01","",""]
["19","100",null,null,"UT/TXDOT RF ISLAND PROJBUBURD ","1021RR100670","20000","12100","62517","19250110",{"$f":"VLOOKUP(TRIM(J1926),'Transactional Departments'!A:B,2,FALSE)","v":"MARS Marine Sci Admin"},"19250110","18400","RUTXARR100670CV","A01","",""]
["19","100",null,null,"         RF CARBN CYCLNG MEDEI","1021RR100671","20000","12100","64509","19250110",{"$f":"VLOOKUP(TRIM(J1927),'Transactional Departments'!A:B,2,FALSE)","v":"MARS Marine Sci Admin"},"19250110","18003","SLINNRR100671CV","A01","",""]
["19","100",null,null,"CIT/DOE  RF METHANE CYCLEMEILE","1021RR100672","20000","12100","64314","19250110",{"$f":"VLOOKUP(TRIM(J1928),'Transactional Departments'!A:B,2,FALSE)","v":"MARS Marine Sci Admin"},"19250110","18400","RCALTRR100672CV","A01","",""]
["19","100",null,null,"DNR      RF GA COUNCIL   ALBER","1021RR100674","20000","12100","62016","19250110",{"$f":"VLOOKUP(TRIM(J1929),'Transactional Departments'!A:B,2,FALSE)","v":"MARS Marine Sci Admin"},"19250110","18400","RGDNRRR100674CV","A01","",""]
["19","100",null,null,"GEPD/UEPARF FVCOM WATER  MEDEI","1021RR100675","20000","12100","62052","19250110",{"$f":"VLOOKUP(TRIM(J1930),'Transactional Departments'!A:B,2,FALSE)","v":"MARS Marine Sci Admin"},"19250110","18400","RGEPDRR100675CV","A01","",""]
["19","100",null,null,"NAKF     RF CLIMATE      YAGER","1021RR100678","20000","12100","64367","19250110",{"$f":"VLOOKUP(TRIM(J1931),'Transactional Departments'!A:B,2,FALSE)","v":"MARS Marine Sci Admin"},"19250110","18400","RNAKFRR100678CV","A01","",""]
["19","100",null,null,"SIMONS   RF PHYCOSPHERES MORAN","1021RR100679","20000","12100","64420","19250110",{"$f":"VLOOKUP(TRIM(J1932),'Transactional Departments'!A:B,2,FALSE)","v":"MARS Marine Sci Admin"},"19250110","18400","RSIMFRR100679CV","A01","",""]
["19","100",null,null,"NSF      RF NITROGEN     HOLLI","1021RR100680","20000","12100","61023","19250110",{"$f":"VLOOKUP(TRIM(J1933),'Transactional Departments'!A:B,2,FALSE)","v":"MARS Marine Sci Admin"},"19250110","18400","RNSFXRR100680CV","A01","",""]
["19","100",null,null,"NSF      RF OCEAN CC     MORAN","1021RR100681","20000","12100","61023","19250110",{"$f":"VLOOKUP(TRIM(J1934),'Transactional Departments'!A:B,2,FALSE)","v":"MARS Marine Sci Admin"},"19250110","18400","RNSFXRR100681CV","A01","",""]
["19","100",null,null,"NSF      RF PS W/100-681 MORAN","1021RR100682","20000","12100","61023","19250110",{"$f":"VLOOKUP(TRIM(J1935),'Transactional Departments'!A:B,2,FALSE)","v":"MARS Marine Sci Admin"},"19250110","18400","RNSFXRR100682CV","A01","",""]
["19","100",null,null,"TDIBROOKSRF BSEE CONTRACTJOYE ","1021RR100683","20000","12100","64000","19250110",{"$f":"VLOOKUP(TRIM(J1936),'Transactional Departments'!A:B,2,FALSE)","v":"MARS Marine Sci Admin"},"19250110","18400","RTNIIRR100683CV","A01","",""]
["19","100",null,null,"NSF      RF HURRICANE IRMALBER","1021RR100684","20000","12100","61023","19250110",{"$f":"VLOOKUP(TRIM(J1937),'Transactional Departments'!A:B,2,FALSE)","v":"MARS Marine Sci Admin"},"19250110","18400","RNSFXRR100684CV","A01","",""]
["19","104",null,null,"         RF AMNH/EJNF ST REITZ","1021RR104274","20000","12100","64129","19610001",{"$f":"VLOOKUP(TRIM(J1938),'Transactional Departments'!A:B,2,FALSE)","v":"ANTH General"},"19610001","18003","SAMNHRR104274CV","A01","",""]
["19","104",null,null,"NSF      RF DROUGHT VULN NELSO","1021RR104317","20000","12100","61023","19610001",{"$f":"VLOOKUP(TRIM(J1939),'Transactional Departments'!A:B,2,FALSE)","v":"ANTH General"},"19610001","18400","RNSFXRR104317CV","A01","",""]
["19","104",null,null,"NSF      RF SUP 100-621  ALBER","1021RR104331","20000","12100","61023","19610001",{"$f":"VLOOKUP(TRIM(J1940),'Transactional Departments'!A:B,2,FALSE)","v":"ANTH General"},"19610001","18400","RNSFXRR104331CV","A01","",""]
["19","104",null,null,"DU/NSF   RF RR272-497    MARKE","1021RR104336","20000","12100","64290","19610001",{"$f":"VLOOKUP(TRIM(J1941),'Transactional Departments'!A:B,2,FALSE)","v":"ANTH General"},"19610001","18400","RDUKERR104336CV","A01","",""]
["19","104",null,null,"AMNH     RF ISOTOPE RTIO REITS","1021RR104337","20000","12100","64129","19610001",{"$f":"VLOOKUP(TRIM(J1942),'Transactional Departments'!A:B,2,FALSE)","v":"ANTH General"},"19610001","18400","RAMNHRR104337CV","A01","",""]
["19","104",null,null,"CESU     RF BACKLOG COL  WILLI","1021RR104339","20000","12100","61034","19610001",{"$f":"VLOOKUP(TRIM(J1943),'Transactional Departments'!A:B,2,FALSE)","v":"ANTH General"},"19610001","18400","RCESURR104339CV","A01","",""]
["19","104",null,null,"UDT      RF COMP APPR    GRAGS","1021RR104340","20000","12100","64488","19610001",{"$f":"VLOOKUP(TRIM(J1944),'Transactional Departments'!A:B,2,FALSE)","v":"ANTH General"},"19610001","18400","RUNDTRR104340CV","A01","",""]
["19","104",null,null,"NSF      RF AMAZON STUNT TANNE","1021RR104341","20000","12100","61023","19610001",{"$f":"VLOOKUP(TRIM(J1945),'Transactional Departments'!A:B,2,FALSE)","v":"ANTH General"},"19610001","18400","RNSFXRR104341CV","A01","",""]
["19","104",null,null,"GADOT    RF DOT/BOR      WILLI","1021RR104342","20000","12100","62017","19610001",{"$f":"VLOOKUP(TRIM(J1946),'Transactional Departments'!A:B,2,FALSE)","v":"ANTH General"},"19610001","18400","RGDOTRR104342CV","A01","",""]
["19","104",null,null,"USDA FS  RF SITE 9ST62   THOMP","1021RR104345","20000","12100","61003","19610001",{"$f":"VLOOKUP(TRIM(J1947),'Transactional Departments'!A:B,2,FALSE)","v":"ANTH General"},"19610001","18400","RUSFSRR104345CV","A01","",""]
["19","104",null,null,"NGS      RF CALUSA       THOMP","1021RR104346","20000","12100","64278","19610001",{"$f":"VLOOKUP(TRIM(J1948),'Transactional Departments'!A:B,2,FALSE)","v":"ANTH General"},"19610001","18400","RNGEORR104346CV","A01","",""]
["19","104",null,null,"NSF      RF SURPLUS PRO  THOMP","1021RR104347","20000","12100","61023","19610001",{"$f":"VLOOKUP(TRIM(J1949),'Transactional Departments'!A:B,2,FALSE)","v":"ANTH General"},"19610001","18400","RNSFXRR104347CV","A01","",""]
["19","104",null,null,"NSF      RF              REITS","1021RR104348","20000","12100","61023","19610001",{"$f":"VLOOKUP(TRIM(J1950),'Transactional Departments'!A:B,2,FALSE)","v":"ANTH General"},"19610001","18400","RNSFXRR104348CV","A01","",""]
["19","104",null,null,"NSF      RF PS W/104-348 REITS","1021RR104349","20000","12100","61023","19610001",{"$f":"VLOOKUP(TRIM(J1951),'Transactional Departments'!A:B,2,FALSE)","v":"ANTH General"},"19610001","18400","RNSFXRR104349CV","A01","",""]
["19","104",null,null,"SEF      RF GEOPHYSICAL  THOMP","1021RR104351","20000","12100","64431","19610001",{"$f":"VLOOKUP(TRIM(J1952),'Transactional Departments'!A:B,2,FALSE)","v":"ANTH General"},"19610001","18400","RSAEFRR104351CV","A01","",""]
["19","104",null,null,"NSF      RF REGIONAL     BIRCH","1021RR104352","20000","12100","61023","19610001",{"$f":"VLOOKUP(TRIM(J1953),'Transactional Departments'!A:B,2,FALSE)","v":"ANTH General"},"19610001","18400","RNSFXRR104352CV","A01","",""]
["19","104",null,null,"NSF      RF SOCIAL COLL  THOMP","1021RR104353","20000","12100","61023","19610001",{"$f":"VLOOKUP(TRIM(J1954),'Transactional Departments'!A:B,2,FALSE)","v":"ANTH General"},"19610001","18400","RNSFXRR104353CV","A01","",""]
["19","104",null,null,"NSF      RF CLIMATE CHGE BROSI","1021RR104354","20000","12100","61023","19610001",{"$f":"VLOOKUP(TRIM(J1955),'Transactional Departments'!A:B,2,FALSE)","v":"ANTH General"},"19610001","18400","RNSFXRR104354CV","A01","",""]
["19","104",null,null,"NSF      RF DOC DISSERT  REITS","1021RR104355","20000","12100","61023","19610001",{"$f":"VLOOKUP(TRIM(J1956),'Transactional Departments'!A:B,2,FALSE)","v":"ANTH General"},"19610001","18400","RNSFXRR104355CV","A01","",""]
["19","104",null,null,"ODI SALESRF DEBATE RPT   GERMA","1021RR104356","20000","12100","64515","19610001",{"$f":"VLOOKUP(TRIM(J1957),'Transactional Departments'!A:B,2,FALSE)","v":"ANTH General"},"19610001","18400","RODISRR104356CV","A01","",""]
["19","104",null,null,"         RF ECO ENVIRO   THOMP","1021RR104357","20000","12100","61023","19610001",{"$f":"VLOOKUP(TRIM(J1958),'Transactional Departments'!A:B,2,FALSE)","v":"ANTH General"},"19610001","18003","SNSFXRR104357CV","A01","",""]
["19","104",null,null,"NSF      RF HR FRAMEWORK BIRCH","1021RR104358","20000","12100","61023","19610001",{"$f":"VLOOKUP(TRIM(J1959),'Transactional Departments'!A:B,2,FALSE)","v":"ANTH General"},"19610001","18400","RNSFXRR104358CV","A01","",""]
["19","104",null,null,"NSF      RF ADAPTIV FX'S TUCKE","1021RR104359","20000","12100","61023","19610001",{"$f":"VLOOKUP(TRIM(J1960),'Transactional Departments'!A:B,2,FALSE)","v":"ANTH General"},"19610001","18400","RNSFXRR104359CV","A01","",""]
["19","104",null,null,"NSF      RF THEROPITHECUSREITS","1021RR104361","20000","12100","61023","19610001",{"$f":"VLOOKUP(TRIM(J1961),'Transactional Departments'!A:B,2,FALSE)","v":"ANTH General"},"19610001","18400","RNSFXRR104361CV","A01","",""]
["19","104",null,null,"GADOT    2016 ARCH       THOMP","1031RE104350","20000","13100","62017","19610001",{"$f":"VLOOKUP(TRIM(J1962),'Transactional Departments'!A:B,2,FALSE)","v":"ANTH General"},"19610001","18003","SGDOTRE104350CV","A01","",""]
["19","160",null,null,"TF       RF THEOLOGY     LEMON","1021RR160011","20000","12100","64441","19480000",{"$f":"VLOOKUP(TRIM(J1963),'Transactional Departments'!A:B,2,FALSE)","v":"RELI Religion General"},"19480000","18400","RTTFDRR160011CV","A01","",""]
["19","160",null,null,"WABASH   RF PEER MENTOR  MEDIN","1021RR160024","20000","12100","64364","19480000",{"$f":"VLOOKUP(TRIM(J1964),'Transactional Departments'!A:B,2,FALSE)","v":"RELI Religion General"},"19480000","18400","RWABARR160024CV","A01","",""]
["19","160",null,null,"TLI      RF SOC JUSTICE  MEDIN","1021RR160025","20000","12100","64120","19480000",{"$f":"VLOOKUP(TRIM(J1965),'Transactional Departments'!A:B,2,FALSE)","v":"RELI Religion General"},"19480000","18400","RTEMPRR160025CV","A01","",""]
["19","165",null,null,"BORUSG   USG W/007-035   BURG ","1011RH165025","20000","11100","62020","1922000A",{"$f":"VLOOKUP(TRIM(J1966),'Transactional Departments'!A:B,2,FALSE)","v":"BIOL Biological Sciences Admin"},"1922000A","18003","SGBORRH165025CV","A01","",""]
["19","165",null,null,"UT/NSF   RCN-UBE_BIOTAP2_MILLE","1031RE165024","20000","13100","62532","1922000A",{"$f":"VLOOKUP(TRIM(J1967),'Transactional Departments'!A:B,2,FALSE)","v":"BIOL Biological Sciences Admin"},"1922000A","18003","SUNTNRE165024CV","A01","",""]
["19","165",null,null,"RICE UNIVW/148-028       COVER","1031RE165722","20000","13100","64238","1922000A",{"$f":"VLOOKUP(TRIM(J1968),'Transactional Departments'!A:B,2,FALSE)","v":"BIOL Biological Sciences Admin"},"1922000A","18003","SRICERE165722CV","A01","",""]
["19","166",null,null,"USDOE    W/216-360       THOMP","1011RH166051","20000","11100","61033","19210BMB",{"$f":"VLOOKUP(TRIM(J1969),'Transactional Departments'!A:B,2,FALSE)","v":"BCMB Operating"},"19210BMB","18003","SDOEDRH166051CV","A01","",""]
["19","166",null,null,"USDOE    W/216-360       THOMP","1011RH166052","20000","11100","61033","19210BMB",{"$f":"VLOOKUP(TRIM(J1970),'Transactional Departments'!A:B,2,FALSE)","v":"BCMB Operating"},"19210BMB","18003","SDOEDRH166052CV","A01","",""]
["19","166",null,null,"USDE     PROG INC W/RH216THOMP","1011RH166816","20000","11100","61033","19210BMB",{"$f":"VLOOKUP(TRIM(J1971),'Transactional Departments'!A:B,2,FALSE)","v":"BCMB Operating"},"19210BMB","18003","SDOEDRH166816CV","A01","",""]
["19","166",null,null,"USDE     W/216-352 15-17      ","1011RH166852","20000","11100","61033","19210BMB",{"$f":"VLOOKUP(TRIM(J1972),'Transactional Departments'!A:B,2,FALSE)","v":"BCMB Operating"},"19210BMB","18003","SDOEDRH166852CV","A01","",""]
["19","166",null,null,"NIH      RF HESC PROJ 1  DALTO","1021RR166498","20000","12100","61018","19210BMB",{"$f":"VLOOKUP(TRIM(J1973),'Transactional Departments'!A:B,2,FALSE)","v":"BCMB Operating"},"19210BMB","18400","RNIHXRR166498CV","A01","",""]
["19","166",null,null,"NIH      RF HESC CORE A  DALTO","1021RR166499","20000","12100","61018","19210BMB",{"$f":"VLOOKUP(TRIM(J1974),'Transactional Departments'!A:B,2,FALSE)","v":"BCMB Operating"},"19210BMB","18400","RNIHXRR166499CV","A01","",""]
["19","166",null,null,"NIH      RF HESC CORE C  DALTO","1021RR166500","20000","12100","61018","19210BMB",{"$f":"VLOOKUP(TRIM(J1975),'Transactional Departments'!A:B,2,FALSE)","v":"BCMB Operating"},"19210BMB","18400","RNIHXRR166500CV","A01","",""]
["19","166",null,null,"NIH      RF HESC SUBS    DALTO","1021RR166501","20000","12100","61018","19210BMB",{"$f":"VLOOKUP(TRIM(J1976),'Transactional Departments'!A:B,2,FALSE)","v":"BCMB Operating"},"19210BMB","18400","RNIHXRR166501CV","A01","",""]
["19","166",null,null,"BWF      RF KINETOPLASTD HAJDU","1021RR166504","20000","12100","64447","19210BMB",{"$f":"VLOOKUP(TRIM(J1977),'Transactional Departments'!A:B,2,FALSE)","v":"BCMB Operating"},"19210BMB","18400","RBUWFRR166504CV","A01","",""]
["19","166",null,null,"MSU/DOE  RF BETCY PRJCT  ADAMS","1021RR166505","20000","12100","62553","19210BMB",{"$f":"VLOOKUP(TRIM(J1978),'Transactional Departments'!A:B,2,FALSE)","v":"BCMB Operating"},"19210BMB","18400","RMTSURR166505CV","A01","",""]
["19","166",null,null,"NIH      RF HUMAN MALARIACASSE","1021RR166509","20000","12100","61018","19210BMB",{"$f":"VLOOKUP(TRIM(J1979),'Transactional Departments'!A:B,2,FALSE)","v":"BCMB Operating"},"19210BMB","18400","RNIHXRR166509CV","A01","",""]
["19","166",null,null,"NIH      RF RF_AFRIC TRYPHAJDU","1021RR166510","20000","12100","61018","19210BMB",{"$f":"VLOOKUP(TRIM(J1980),'Transactional Departments'!A:B,2,FALSE)","v":"BCMB Operating"},"19210BMB","18400","RNIHXRR166510CV","A01","",""]
["19","166",null,null,"         VARIOUS RSCH    TERNS","1021RR166564","20000","12100","64206","19210BMB",{"$f":"VLOOKUP(TRIM(J1981),'Transactional Departments'!A:B,2,FALSE)","v":"BCMB Operating"},"19210BMB","18003","SVARIRR166564CV","A01","",""]
["19","166",null,null,"NSF      RF PROB SOLVNG  LEMON","1021RR166619","20000","12100","61023","19210BMB",{"$f":"VLOOKUP(TRIM(J1982),'Transactional Departments'!A:B,2,FALSE)","v":"BCMB Operating"},"19210BMB","18400","RNSFXRR166619CV","A01","",""]
["19","166",null,null,"NIH      RF GLYCOREG SKP1WEST ","1021RR166622","20000","12100","61018","19210BMB",{"$f":"VLOOKUP(TRIM(J1983),'Transactional Departments'!A:B,2,FALSE)","v":"BCMB Operating"},"19210BMB","18400","RNIHXRR166622CV","A01","",""]
["19","166",null,null,"NIH      RF RF_CYTO PROL WEST ","1021RR166623","20000","12100","61018","19210BMB",{"$f":"VLOOKUP(TRIM(J1984),'Transactional Departments'!A:B,2,FALSE)","v":"BCMB Operating"},"19210BMB","18400","RNIHXRR166623CV","A01","",""]
["19","166",null,null,"NLKL     RF RF_OX NANO BUXU   ","1021RR166624","20000","12100","64000","19210BMB",{"$f":"VLOOKUP(TRIM(J1985),'Transactional Departments'!A:B,2,FALSE)","v":"BCMB Operating"},"19210BMB","18400","RNNKLRR166624CV","A01","",""]
["19","166",null,null,"NIH      RF RF_TRYOSINE KKANNA","1021RR166625","20000","12100","61018","19210BMB",{"$f":"VLOOKUP(TRIM(J1986),'Transactional Departments'!A:B,2,FALSE)","v":"BCMB Operating"},"19210BMB","18400","RNIHXRR166625CV","A01","",""]
["19","166",null,null,"VA TECH  RF SWEET HYDROG_ADAMS","1021RR166626","20000","12100","62519","19210BMB",{"$f":"VLOOKUP(TRIM(J1987),'Transactional Departments'!A:B,2,FALSE)","v":"BCMB Operating"},"19210BMB","18400","RVAPTRR166626CV","A01","",""]
["19","166",null,null,"CDC      RF SERCAT YR 16_WANG ","1021RR166629","20000","12100","61031","19210BMB",{"$f":"VLOOKUP(TRIM(J1988),'Transactional Departments'!A:B,2,FALSE)","v":"BCMB Operating"},"19210BMB","18400","RCDCXRR166629CV","A01","",""]
["19","166",null,null,"LEIDOS   RF SERCAT YR16  WANG ","1021RR166630","20000","12100","64066","19210BMB",{"$f":"VLOOKUP(TRIM(J1989),'Transactional Departments'!A:B,2,FALSE)","v":"BCMB Operating"},"19210BMB","18400","RLEIDRR166630CV","A01","",""]
["19","166",null,null,"SERCAT   RF YR16 NONSTAT_WANG ","1021RR166631","20000","12100","64205","19210BMB",{"$f":"VLOOKUP(TRIM(J1990),'Transactional Departments'!A:B,2,FALSE)","v":"BCMB Operating"},"19210BMB","18400","RVANGRR166631CV","A01","",""]
["19","166",null,null,"SERCAT   RF TEAM YR 16___WANG ","1021RR166632","20000","12100","62502","19210BMB",{"$f":"VLOOKUP(TRIM(J1991),'Transactional Departments'!A:B,2,FALSE)","v":"BCMB Operating"},"19210BMB","18400","RVAOSRR166632CV","A01","",""]
["19","166",null,null,"NIH      RF W/RR549553___PIERC","1021RR166633","20000","12100","61018","19210BMB",{"$f":"VLOOKUP(TRIM(J1992),'Transactional Departments'!A:B,2,FALSE)","v":"BCMB Operating"},"19210BMB","18400","RNIHXRR166633CV","A01","",""]
["19","166",null,null,"NIH      RF RR166-850     WEST","1021RR166634","20000","12100","61018","19210BMB",{"$f":"VLOOKUP(TRIM(J1993),'Transactional Departments'!A:B,2,FALSE)","v":"BCMB Operating"},"19210BMB","18400","RNIHXRR166634CV","A01","",""]
["19","166",null,null,"NIH      RF GLYCOREG SKP1WEST ","1021RR166635","20000","12100","61018","19210BMB",{"$f":"VLOOKUP(TRIM(J1994),'Transactional Departments'!A:B,2,FALSE)","v":"BCMB Operating"},"19210BMB","18400","RNIHXRR166635CV","A01","",""]
["19","166",null,null,"BAYER CRORF RF_OPTIM PEPTGARFI","1021RR166636","20000","12100","64465","19210BMB",{"$f":"VLOOKUP(TRIM(J1995),'Transactional Departments'!A:B,2,FALSE)","v":"BCMB Operating"},"19210BMB","18400","RBAYERR166636CV","A01","",""]
["19","166",null,null,"SUNY/NIH RF RF_CONTROL TOWEST ","1021RR166637","20000","12100","64388","19210BMB",{"$f":"VLOOKUP(TRIM(J1996),'Transactional Departments'!A:B,2,FALSE)","v":"BCMB Operating"},"19210BMB","18400","RRFNYRR166637CV","A01","",""]
["19","166",null,null,"NIH      RF RF_ID FUNCTIOMEDLO","1021RR166638","20000","12100","61018","19210BMB",{"$f":"VLOOKUP(TRIM(J1997),'Transactional Departments'!A:B,2,FALSE)","v":"BCMB Operating"},"19210BMB","18400","RNIHXRR166638CV","A01","",""]
["19","166",null,null,"SERCAT   RF VAR NON GIFT_WANG ","1021RR166639","20000","12100","64205","19210BMB",{"$f":"VLOOKUP(TRIM(J1998),'Transactional Departments'!A:B,2,FALSE)","v":"BCMB Operating"},"19210BMB","18400","RVANGRR166639CV","A01","",""]
["19","166",null,null,"SERCAT   RF TEAM YR 17___WANG ","1021RR166640","20000","12100","62502","19210BMB",{"$f":"VLOOKUP(TRIM(J1999),'Transactional Departments'!A:B,2,FALSE)","v":"BCMB Operating"},"19210BMB","18400","RVAOSRR166640CV","A01","",""]
["19","166",null,null,"SERCAT   RF YR17 NONGIFT_WANG ","1021RR166641","20000","12100","64205","19210BMB",{"$f":"VLOOKUP(TRIM(J2000),'Transactional Departments'!A:B,2,FALSE)","v":"BCMB Operating"},"19210BMB","18400","RVANGRR166641CV","A01","",""]
["19","166",null,null,"NIH      RF RAD PARADIGM LANZI","1021RR166642","20000","12100","61018","19210BMB",{"$f":"VLOOKUP(TRIM(J2001),'Transactional Departments'!A:B,2,FALSE)","v":"BCMB Operating"},"19210BMB","18400","RNIHXRR166642CV","A01","",""]
["19","166",null,null,"ACS      RF RF_METABOLIC ITO  ","1021RR166643","20000","12100","64122","19210BMB",{"$f":"VLOOKUP(TRIM(J2002),'Transactional Departments'!A:B,2,FALSE)","v":"BCMB Operating"},"19210BMB","18400","RAMCSRR166643CV","A01","",""]
["19","166",null,null,"MICH ST URF RF_ENHANCED ALEMON","1021RR166645","20000","12100","62505","19210BMB",{"$f":"VLOOKUP(TRIM(J2003),'Transactional Departments'!A:B,2,FALSE)","v":"BCMB Operating"},"19210BMB","18400","RMISURR166645CV","A01","",""]
["19","166",null,null,"HELMSLEY RF VIP@UGA______DOLAN","1021RR166646","20000","12100","64279","19210BMB",{"$f":"VLOOKUP(TRIM(J2004),'Transactional Departments'!A:B,2,FALSE)","v":"BCMB Operating"},"19210BMB","18400","RGTRCRR166646CV","A01","",""]
["19","166",null,null,"NSF      RF RF_RCN-UBF___DOLAN","1021RR166647","20000","12100","61023","19210BMB",{"$f":"VLOOKUP(TRIM(J2005),'Transactional Departments'!A:B,2,FALSE)","v":"BCMB Operating"},"19210BMB","18400","RNSFXRR166647CV","A01","",""]
["19","166",null,null,"NSF      RF PS W/ RR166647    ","1021RR166648","20000","12100","61023","19210BMB",{"$f":"VLOOKUP(TRIM(J2006),'Transactional Departments'!A:B,2,FALSE)","v":"BCMB Operating"},"19210BMB","18400","RNSFXRR166648CV","A01","",""]
["19","166",null,null,"NIH      RF W/ RR549588  PIERC","1021RR166649","20000","12100","61018","19210BMB",{"$f":"VLOOKUP(TRIM(J2007),'Transactional Departments'!A:B,2,FALSE)","v":"BCMB Operating"},"19210BMB","18400","RNIHXRR166649CV","A01","",""]
["19","166",null,null,"NSF      RF RF_K FOSTER FTERNS","1021RR166650","20000","12100","61018","19210BMB",{"$f":"VLOOKUP(TRIM(J2008),'Transactional Departments'!A:B,2,FALSE)","v":"BCMB Operating"},"19210BMB","18400","RNIHXRR166650CV","A01","",""]
["19","166",null,null,"CDC      RF SERCAT YR 17_WANG ","1021RR166651","20000","12100","61031","19210BMB",{"$f":"VLOOKUP(TRIM(J2009),'Transactional Departments'!A:B,2,FALSE)","v":"BCMB Operating"},"19210BMB","18400","RCDCXRR166651CV","A01","",""]
["19","166",null,null,"UCHC/DOE RF ROSENBAUM    WANG ","1021RR166653","20000","12100","64369","19210BMB",{"$f":"VLOOKUP(TRIM(J2010),'Transactional Departments'!A:B,2,FALSE)","v":"BCMB Operating"},"19210BMB","18400","RUCALRR166653CV","A01","",""]
["19","166",null,null,"LEIDOS   RF SERCAT YR17 _WANG ","1021RR166654","20000","12100","64066","19210BMB",{"$f":"VLOOKUP(TRIM(J2011),'Transactional Departments'!A:B,2,FALSE)","v":"BCMB Operating"},"19210BMB","18400","RLEIDRR166654CV","A01","",""]
["19","166",null,null,"CONN/NSF RF GENE TRANSFR XU   ","1021RR166745","20000","12100","62510","19210BMB",{"$f":"VLOOKUP(TRIM(J2012),'Transactional Departments'!A:B,2,FALSE)","v":"BCMB Operating"},"19210BMB","18400","RUNCTRR166745CV","A01","",""]
["19","166",null,null,"LB/USDOE RF MAG ENIGMA   ADAMS","1021RR166781","20000","12100","62570","19210BMB",{"$f":"VLOOKUP(TRIM(J2013),'Transactional Departments'!A:B,2,FALSE)","v":"BCMB Operating"},"19210BMB","18400","RLBNLRR166781CV","A01","",""]
["19","166",null,null,"NIH      RF  ANT RNAS CR GARFI","1021RR166783","20000","12100","61018","19210BMB",{"$f":"VLOOKUP(TRIM(J2014),'Transactional Departments'!A:B,2,FALSE)","v":"BCMB Operating"},"19210BMB","18400","RNIHXRR166783CV","A01","",""]
["19","166",null,null,"NSF      RF PROTEIN KINS KANNA","1021RR166796","20000","12100","61023","19210BMB",{"$f":"VLOOKUP(TRIM(J2015),'Transactional Departments'!A:B,2,FALSE)","v":"BCMB Operating"},"19210BMB","18400","RNSFXRR166796CV","A01","",""]
["19","166",null,null,"UTB/USDE RF FA2          ADAMS","1021RR166809","20000","12100","64292","19210BMB",{"$f":"VLOOKUP(TRIM(J2016),'Transactional Departments'!A:B,2,FALSE)","v":"BCMB Operating"},"19210BMB","18400","RUTBARR166809CV","A01","",""]
["19","166",null,null,"UTB/USDE RF DATA            XU","1021RR166810","20000","12100","64292","19210BMB",{"$f":"VLOOKUP(TRIM(J2017),'Transactional Departments'!A:B,2,FALSE)","v":"BCMB Operating"},"19210BMB","18400","RUTBARR166810CV","A01","",""]
["19","166",null,null,"NIHS     RF BROWN FAT    DALTO","1021RR166812","20000","12100","64482","19210BMB",{"$f":"VLOOKUP(TRIM(J2018),'Transactional Departments'!A:B,2,FALSE)","v":"BCMB Operating"},"19210BMB","18400","RNESTRR166812CV","A01","",""]
["19","166",null,null,"UCHC/DOE RF ROSENBAUM    WANG ","1021RR166813","20000","12100","64369","19210BMB",{"$f":"VLOOKUP(TRIM(J2019),'Transactional Departments'!A:B,2,FALSE)","v":"BCMB Operating"},"19210BMB","18400","RUCALRR166813CV","A01","",""]
["19","166",null,null,"LIFE     RF TECH CONTRCT TERNS","1021RR166818","20000","12100","64000","19210BMB",{"$f":"VLOOKUP(TRIM(J2020),'Transactional Departments'!A:B,2,FALSE)","v":"BCMB Operating"},"19210BMB","18400","RLNTIRR166818CV","A01","",""]
["19","166",null,null,"NSF      RF COLLABORATIVEADAMS","1021RR166824","20000","12100","61023","19210BMB",{"$f":"VLOOKUP(TRIM(J2021),'Transactional Departments'!A:B,2,FALSE)","v":"BCMB Operating"},"19210BMB","18400","RNSFXRR166824CV","A01","",""]
["19","166",null,null,"NSF      RF TEACHING     LEMON","1021RR166827","20000","12100","61023","19210BMB",{"$f":"VLOOKUP(TRIM(J2022),'Transactional Departments'!A:B,2,FALSE)","v":"BCMB Operating"},"19210BMB","18400","RNSFXRR166827CV","A01","",""]
["19","166",null,null,"CSHL/NIH RF GEN DIF CELL DALTO","1021RR166830","20000","12100","64000","19210BMB",{"$f":"VLOOKUP(TRIM(J2023),'Transactional Departments'!A:B,2,FALSE)","v":"BCMB Operating"},"19210BMB","18400","RCNHLRR166830CV","A01","",""]
["19","166",null,null,"NIH      RF MAN'S BEST   ZHAO ","1021RR166833","20000","12100","61018","19210BMB",{"$f":"VLOOKUP(TRIM(J2024),'Transactional Departments'!A:B,2,FALSE)","v":"BCMB Operating"},"19210BMB","18400","RNIHXRR166833CV","A01","",""]
["19","166",null,null,"NIH      RF RNA POLYMER  SABAT","1021RR166834","20000","12100","61018","19210BMB",{"$f":"VLOOKUP(TRIM(J2025),'Transactional Departments'!A:B,2,FALSE)","v":"BCMB Operating"},"19210BMB","18400","RNIHXRR166834CV","A01","",""]
["19","166",null,null,"DOE      RF HPR MLT COM AADAMS","1021RR166839","20000","12100","61001","19210BMB",{"$f":"VLOOKUP(TRIM(J2026),'Transactional Departments'!A:B,2,FALSE)","v":"BCMB Operating"},"19210BMB","18400","RUSDERR166839CV","A01","",""]
["19","166",null,null,"WMKF     RF W/549-520    TIEME","1021RR166841","20000","12100","64453","19210BMB",{"$f":"VLOOKUP(TRIM(J2027),'Transactional Departments'!A:B,2,FALSE)","v":"BCMB Operating"},"19210BMB","18400","RKECKRR166841CV","A01","",""]
["19","166",null,null,"NIH      RF ALLOSTERIC   WOOD ","1021RR166843","20000","12100","61018","19210BMB",{"$f":"VLOOKUP(TRIM(J2028),'Transactional Departments'!A:B,2,FALSE)","v":"BCMB Operating"},"19210BMB","18400","RNIHXRR166843CV","A01","",""]
["19","166",null,null,"RFSUNY   RF OXYGEN SENS  WEST ","1021RR166844","20000","12100","64388","19210BMB",{"$f":"VLOOKUP(TRIM(J2029),'Transactional Departments'!A:B,2,FALSE)","v":"BCMB Operating"},"19210BMB","18400","RRFNYRR166844CV","A01","",""]
["19","166",null,null,"NIH      RF GLYCOBIOLOGY WEST ","1021RR166850","20000","12100","61018","19210BMB",{"$f":"VLOOKUP(TRIM(J2030),'Transactional Departments'!A:B,2,FALSE)","v":"BCMB Operating"},"19210BMB","18400","RNIHXRR166850CV","A01","",""]
["19","166",null,null,"NIH      RF CRISPR CAPTU TERNS","1021RR166856","20000","12100","61018","19210BMB",{"$f":"VLOOKUP(TRIM(J2031),'Transactional Departments'!A:B,2,FALSE)","v":"BCMB Operating"},"19210BMB","18400","RNIHXRR166856CV","A01","",""]
["19","166",null,null,"VT/NIH   RF RF_ANTIMALARICASSE","1021RR166860","20000","12100","62519","19210BMB",{"$f":"VLOOKUP(TRIM(J2032),'Transactional Departments'!A:B,2,FALSE)","v":"BCMB Operating"},"19210BMB","18400","RVAPTRR166860CV","A01","",""]
["19","166",null,null,"NIH      RF RF_PROTEOLYSISCHMI","1021RR166861","20000","12100","61018","19210BMB",{"$f":"VLOOKUP(TRIM(J2033),'Transactional Departments'!A:B,2,FALSE)","v":"BCMB Operating"},"19210BMB","18400","RNIHXRR166861CV","A01","",""]
["19","166",null,null,"UUTAH/NIHRF RF_PGRMC1/2__MEDLO","1021RR166862","20000","12100","62549","19210BMB",{"$f":"VLOOKUP(TRIM(J2034),'Transactional Departments'!A:B,2,FALSE)","v":"BCMB Operating"},"19210BMB","18400","RUOUTRR166862CV","A01","",""]
["19","166",null,null,"BAYER CRORF RF_FN OF TOXAGARFI","1021RR166863","20000","12100","64465","19210BMB",{"$f":"VLOOKUP(TRIM(J2035),'Transactional Departments'!A:B,2,FALSE)","v":"BCMB Operating"},"19210BMB","18400","RBAYERR166863CV","A01","",""]
["19","166",null,null,"LB/USDOE RF MAG ENIGMA   ADAMS","1021RR166865","20000","12100","62570","19210BMB",{"$f":"VLOOKUP(TRIM(J2036),'Transactional Departments'!A:B,2,FALSE)","v":"BCMB Operating"},"19210BMB","18400","RLBNLRR166865CV","A01","",""]
["19","167",null,null,"PENN/NSF RF AMBORELLA    LEEBE","1021RR167546","20000","12100","62531","19270001",{"$f":"VLOOKUP(TRIM(J2037),'Transactional Departments'!A:B,2,FALSE)","v":"PBIO Plant Biology"},"19270001","18400","RPASURR167546CV","A01","",""]
["19","167",null,null,"PENN/NSF RF PS 167-546   LEEBE","1021RR167547","20000","12100","62531","19270001",{"$f":"VLOOKUP(TRIM(J2038),'Transactional Departments'!A:B,2,FALSE)","v":"PBIO Plant Biology"},"19270001","18400","RPASURR167547CV","A01","",""]
["19","167",null,null,"USEPA    RF PS W/167-548 SCHMI","1021RR167549","20000","12100","61032","19270001",{"$f":"VLOOKUP(TRIM(J2039),'Transactional Departments'!A:B,2,FALSE)","v":"PBIO Plant Biology"},"19270001","18400","RUSEARR167549CV","A01","",""]
["19","167",null,null,"         RF SUNFLWR GENO BURKE","1021RR167579","20000","12100","64479","19270001",{"$f":"VLOOKUP(TRIM(J2040),'Transactional Departments'!A:B,2,FALSE)","v":"PBIO Plant Biology"},"19270001","18003","SUOBCRR167579CV","A01","",""]
["19","167",null,null,"CIN/USDA RF RESIST EVOLU CHANG","1021RR167586","20000","12100","62500","19270001",{"$f":"VLOOKUP(TRIM(J2041),'Transactional Departments'!A:B,2,FALSE)","v":"PBIO Plant Biology"},"19270001","18400","RXXXXRR167586CV","A01","",""]
["19","167",null,null,"NSF      RF MAP KINASE   LUKOW","1021RR167591","20000","12100","61023","19270001",{"$f":"VLOOKUP(TRIM(J2042),'Transactional Departments'!A:B,2,FALSE)","v":"PBIO Plant Biology"},"19270001","18400","RNSFXRR167591CV","A01","",""]
["19","167",null,null,"CU/NSF   RF MAIZE SHOOT  ZHANG","1021RR167593","20000","12100","64135","19270001",{"$f":"VLOOKUP(TRIM(J2043),'Transactional Departments'!A:B,2,FALSE)","v":"PBIO Plant Biology"},"19270001","18400","RCORNRR167593CV","A01","",""]
["19","167",null,null,"UMI/USDA RF MORN GLORY   CHANG","1021RR167607","20000","12100","62520","19270001",{"$f":"VLOOKUP(TRIM(J2044),'Transactional Departments'!A:B,2,FALSE)","v":"PBIO Plant Biology"},"19270001","18400","RUNMIRR167607CV","A01","",""]
["19","167",null,null,"USDA NIFARF RICE BLAST   KHANG","1021RR167608","20000","12100","61002","19270001",{"$f":"VLOOKUP(TRIM(J2045),'Transactional Departments'!A:B,2,FALSE)","v":"PBIO Plant Biology"},"19270001","18400","RUSDARR167608CV","A01","",""]
["19","167",null,null,"NSF      RF LEAF DEFENSE DONOV","1021RR167609","20000","12100","61023","19270001",{"$f":"VLOOKUP(TRIM(J2046),'Transactional Departments'!A:B,2,FALSE)","v":"PBIO Plant Biology"},"19270001","18400","RNSFXRR167609CV","A01","",""]
["19","167",null,null,"NSF      RF DIGITIZ TCN  ZOMLE","1021RR167613","20000","12100","61023","19270001",{"$f":"VLOOKUP(TRIM(J2047),'Transactional Departments'!A:B,2,FALSE)","v":"PBIO Plant Biology"},"19270001","18400","RNSFXRR167613CV","A01","",""]
["19","167",null,null,"NSF      RF DIMENSIONS   LEEBE","1021RR167614","20000","12100","61023","19270001",{"$f":"VLOOKUP(TRIM(J2048),'Transactional Departments'!A:B,2,FALSE)","v":"PBIO Plant Biology"},"19270001","18400","RNSFXRR167614CV","A01","",""]
["19","167",null,null,"NSF      RF NEOCENTROMEREDAWE ","1021RR167616","20000","12100","61023","19270001",{"$f":"VLOOKUP(TRIM(J2049),'Transactional Departments'!A:B,2,FALSE)","v":"PBIO Plant Biology"},"19270001","18400","RNSFXRR167616CV","A01","",""]
["19","167",null,null,"NSF      RF RR167-616 PS DAWE ","1021RR167617","20000","12100","61023","19270001",{"$f":"VLOOKUP(TRIM(J2050),'Transactional Departments'!A:B,2,FALSE)","v":"PBIO Plant Biology"},"19270001","18400","RNSFXRR167617CV","A01","",""]
["19","167",null,null,"USDA NIFARF W/ 272-817   TSAI ","1021RR167618","20000","12100","61002","19270001",{"$f":"VLOOKUP(TRIM(J2051),'Transactional Departments'!A:B,2,FALSE)","v":"PBIO Plant Biology"},"19270001","18400","RUSDARR167618CV","A01","",""]
["19","167",null,null,"AOF      RF RARE ORCHID  TRAPN","1021RR167619","20000","12100","64519","19270001",{"$f":"VLOOKUP(TRIM(J2052),'Transactional Departments'!A:B,2,FALSE)","v":"PBIO Plant Biology"},"19270001","18400","RAUOFRR167619CV","A01","",""]
["19","167",null,null,"NSF      RF HERB SPEC CURZOMLE","1021RR167621","20000","12100","61023","19270001",{"$f":"VLOOKUP(TRIM(J2053),'Transactional Departments'!A:B,2,FALSE)","v":"PBIO Plant Biology"},"19270001","18400","RNSFXRR167621CV","A01","",""]
["19","167",null,null,"NSF      RF ABR-PG FLW DGLEEBE","1021RR167622","20000","12100","61023","19270001",{"$f":"VLOOKUP(TRIM(J2054),'Transactional Departments'!A:B,2,FALSE)","v":"PBIO Plant Biology"},"19270001","18400","RNSFXRR167622CV","A01","",""]
["19","167",null,null,"NSF      RF EVOL OF HYP DDONOV","1021RR167623","20000","12100","61023","19270001",{"$f":"VLOOKUP(TRIM(J2055),'Transactional Departments'!A:B,2,FALSE)","v":"PBIO Plant Biology"},"19270001","18400","RNSFXRR167623CV","A01","",""]
["19","167",null,null,"NSF      RF STRESS RES   BURKE","1021RR167627","20000","12100","61023","19270001",{"$f":"VLOOKUP(TRIM(J2056),'Transactional Departments'!A:B,2,FALSE)","v":"PBIO Plant Biology"},"19270001","18400","RNSFXRR167627CV","A01","",""]
["19","167",null,null,"NSF      RF MAIZE CENTRO DAWE ","1021RR167629","20000","12100","61023","19270001",{"$f":"VLOOKUP(TRIM(J2057),'Transactional Departments'!A:B,2,FALSE)","v":"PBIO Plant Biology"},"19270001","18400","RNSFXRR167629CV","A01","",""]
["19","167",null,null,"USDC     RF DAMAGE SUR   PETER","1021RR167630","20000","12100","61009","19270001",{"$f":"VLOOKUP(TRIM(J2058),'Transactional Departments'!A:B,2,FALSE)","v":"PBIO Plant Biology"},"19270001","18400","RUSDCRR167630CV","A01","",""]
["19","167",null,null,"NSF      RF W/167-627    BURKE","1021RR167631","20000","12100","61023","19270001",{"$f":"VLOOKUP(TRIM(J2059),'Transactional Departments'!A:B,2,FALSE)","v":"PBIO Plant Biology"},"19270001","18400","RNSFXRR167631CV","A01","",""]
["19","167",null,null,"NSF      RF PS W/167627  BURKE","1021RR167632","20000","12100","61023","19270001",{"$f":"VLOOKUP(TRIM(J2060),'Transactional Departments'!A:B,2,FALSE)","v":"PBIO Plant Biology"},"19270001","18400","RNSFXRR167632CV","A01","",""]
["19","167",null,null,"NSF      RF W/167627     BURKE","1021RR167633","20000","12100","61023","19270001",{"$f":"VLOOKUP(TRIM(J2061),'Transactional Departments'!A:B,2,FALSE)","v":"PBIO Plant Biology"},"19270001","18400","RNSFXRR167633CV","A01","",""]
["19","167",null,null,"USDOE    RF WALL FORMAT  YE   ","1021RR167635","20000","12100","61001","19270001",{"$f":"VLOOKUP(TRIM(J2062),'Transactional Departments'!A:B,2,FALSE)","v":"PBIO Plant Biology"},"19270001","18400","RUSDERR167635CV","A01","",""]
["19","167",null,null,"NSF      RF CARNIVOROUS  MALMB","1021RR167637","20000","12100","61023","19270001",{"$f":"VLOOKUP(TRIM(J2063),'Transactional Departments'!A:B,2,FALSE)","v":"PBIO Plant Biology"},"19270001","18400","RNSFXRR167637CV","A01","",""]
["19","167",null,null,"NSF      RF POLYPLOIDY   LEEBE","1021RR167638","20000","12100","61023","19270001",{"$f":"VLOOKUP(TRIM(J2064),'Transactional Departments'!A:B,2,FALSE)","v":"PBIO Plant Biology"},"19270001","18400","RNSFXRR167638CV","A01","",""]
["19","167",null,null,"NSF      RF W/153038 LEEBENS  ","1021RR167639","20000","12100","61023","19270001",{"$f":"VLOOKUP(TRIM(J2065),'Transactional Departments'!A:B,2,FALSE)","v":"PBIO Plant Biology"},"19270001","18400","RNSFXRR167639CV","A01","",""]
["19","167",null,null,"NSF      RF W/ 284-652   DEVOS","1021RR167641","20000","12100","61023","19270001",{"$f":"VLOOKUP(TRIM(J2066),'Transactional Departments'!A:B,2,FALSE)","v":"PBIO Plant Biology"},"19270001","18400","RNSFXRR167641CV","A01","",""]
["19","167",null,null,"USDC     RF VORTEX-SE    PETER","1021RR167642","20000","12100","61009","19270001",{"$f":"VLOOKUP(TRIM(J2067),'Transactional Departments'!A:B,2,FALSE)","v":"PBIO Plant Biology"},"19270001","18400","RUSDCRR167642CV","A01","",""]
["19","167",null,null,"USDA NIFAGENE INTRO      BURKE","1021RR167644","20000","12100","61006","19270001",{"$f":"VLOOKUP(TRIM(J2068),'Transactional Departments'!A:B,2,FALSE)","v":"PBIO Plant Biology"},"19270001","18003","SNIFARR167644CV","A01","",""]
["19","167",null,null,"NSF      RF W/093-432    ZHANG","1021RR167645","20000","12100","61023","19270001",{"$f":"VLOOKUP(TRIM(J2069),'Transactional Departments'!A:B,2,FALSE)","v":"PBIO Plant Biology"},"19270001","18400","RNSFXRR167645CV","A01","",""]
["19","167",null,null,"NSF      RF P/S 167646   ZHANG","1021RR167646","20000","12100","61023","19270001",{"$f":"VLOOKUP(TRIM(J2070),'Transactional Departments'!A:B,2,FALSE)","v":"PBIO Plant Biology"},"19270001","18400","RNSFXRR167646CV","A01","",""]
["19","167",null,null,"UCD      RF ZYGOTIC GENE GENT ","1021RR167656","20000","12100","62562","19270001",{"$f":"VLOOKUP(TRIM(J2071),'Transactional Departments'!A:B,2,FALSE)","v":"PBIO Plant Biology"},"19270001","18400","RUCADRR167656CV","A01","",""]
["19","167",null,null,"NIFA     RF FUNGAL ROLE  DEVOS","1021RR167657","20000","12100","61006","19270001",{"$f":"VLOOKUP(TRIM(J2072),'Transactional Departments'!A:B,2,FALSE)","v":"PBIO Plant Biology"},"19270001","18400","RNIFARR167657CV","A01","",""]
["19","167",null,null,"NSF      RF MATING SYSTEMTRAPN","1021RR167658","20000","12100","61023","19270001",{"$f":"VLOOKUP(TRIM(J2073),'Transactional Departments'!A:B,2,FALSE)","v":"PBIO Plant Biology"},"19270001","18400","RNSFXRR167658CV","A01","",""]
["19","167",null,null,"DOE      RF BIO MECH     YE   ","1021RR167659","20000","12100","61001","19270001",{"$f":"VLOOKUP(TRIM(J2074),'Transactional Departments'!A:B,2,FALSE)","v":"PBIO Plant Biology"},"19270001","18400","RUSDERR167659CV","A01","",""]
["19","167",null,null,"NSF      RF ABR-PG FLW DGLEEBE","1021RR167808","20000","12100","61023","19270001",{"$f":"VLOOKUP(TRIM(J2075),'Transactional Departments'!A:B,2,FALSE)","v":"PBIO Plant Biology"},"19270001","18400","RNSFXRR167808CV","A01","",""]
["19","167",null,null,"BWF      17 COLLAB TRAV  MOMAN","1021RR167809","20000","12100","64447","19270001",{"$f":"VLOOKUP(TRIM(J2076),'Transactional Departments'!A:B,2,FALSE)","v":"PBIO Plant Biology"},"19270001","18003","SBUWFRR167809CV","A01","",""]
["19","168",null,null,"         ARCHAEOMETRY    SALGU","1011RH168671","20000","11100","64397","19510001",{"$f":"VLOOKUP(TRIM(J2077),'Transactional Departments'!A:B,2,FALSE)","v":"CHEM Expense"},"19510001","18003","SCAHERH168671CV","A01","",""]
["19","168",null,null,"BORUSG   USG W/007-035   BURG ","1011RH168703","20000","11100","62020","19510001",{"$f":"VLOOKUP(TRIM(J2078),'Transactional Departments'!A:B,2,FALSE)","v":"CHEM Expense"},"19510001","18003","SGBORRH168703CV","A01","",""]
["19","168",null,null,"AHA      RF LIPOPROTEIN  DHAR ","1021RR168065","20000","12100","64127","19510001",{"$f":"VLOOKUP(TRIM(J2079),'Transactional Departments'!A:B,2,FALSE)","v":"CHEM Expense"},"19510001","18400","RAHTARR168065CV","A01","",""]
["19","168",null,null,"WSU/NSF  RF PIRE MASS SPEAMSTE","1021RR168600","20000","12100","62500","19510001",{"$f":"VLOOKUP(TRIM(J2080),'Transactional Departments'!A:B,2,FALSE)","v":"CHEM Expense"},"19510001","18400","RXXXXRR168600CV","A01","",""]
["19","168",null,null,"NSF      RF PHOTO SWITCH LOCKL","1021RR168623","20000","12100","61023","19510001",{"$f":"VLOOKUP(TRIM(J2081),'Transactional Departments'!A:B,2,FALSE)","v":"CHEM Expense"},"19510001","18400","RNSFXRR168623CV","A01","",""]
["19","168",null,null,"         VARIOUS GIFTS   PIENT","1021RR168631","20000","12100","64206","19510001",{"$f":"VLOOKUP(TRIM(J2082),'Transactional Departments'!A:B,2,FALSE)","v":"CHEM Expense"},"19510001","18003","SVARIRR168631CV","A01","",""]
["19","168",null,null,"DOE      RF HELIUM NANOD DOUBE","1021RR168657","20000","12100","61001","19510001",{"$f":"VLOOKUP(TRIM(J2083),'Transactional Departments'!A:B,2,FALSE)","v":"CHEM Expense"},"19510001","18400","RUSDERR168657CV","A01","",""]
["19","168",null,null,"DOE      RF DIELECTRIC   SALGU","1021RR168658","20000","12100","61001","19510001",{"$f":"VLOOKUP(TRIM(J2084),'Transactional Departments'!A:B,2,FALSE)","v":"CHEM Expense"},"19510001","18400","RUSDERR168658CV","A01","",""]
["19","168",null,null,"USN      RF METAL OXIDE  SALGU","1021RR168669","20000","12100","61015","19510001",{"$f":"VLOOKUP(TRIM(J2085),'Transactional Departments'!A:B,2,FALSE)","v":"CHEM Expense"},"19510001","18400","RUSNXRR168669CV","A01","",""]
["19","168",null,null,"NSF      RF W/100647AMSTER    ","1021RR168670","20000","12100","61023","19510001",{"$f":"VLOOKUP(TRIM(J2086),'Transactional Departments'!A:B,2,FALSE)","v":"CHEM Expense"},"19510001","18400","RNSFXRR168670CV","A01","",""]
["19","168",null,null,"         VARIOUS         LOCKL","1021RR168674","20000","12100","64206","19510001",{"$f":"VLOOKUP(TRIM(J2087),'Transactional Departments'!A:B,2,FALSE)","v":"CHEM Expense"},"19510001","18003","SVARIRR168674CV","A01","",""]
["19","168",null,null,"         VARIOUS         XIE  ","1021RR168675","20000","12100","64206","19510001",{"$f":"VLOOKUP(TRIM(J2088),'Transactional Departments'!A:B,2,FALSE)","v":"CHEM Expense"},"19510001","18003","SVARIRR168675CV","A01","",""]
["19","168",null,null,"NSF      RF GERMANENE    STICK","1021RR168676","20000","12100","61023","19510001",{"$f":"VLOOKUP(TRIM(J2089),'Transactional Departments'!A:B,2,FALSE)","v":"CHEM Expense"},"19510001","18400","RNSFXRR168676CV","A01","",""]
["19","168",null,null,"ACS      RF METATHESIS   MAJET","1021RR168677","20000","12100","64123","19510001",{"$f":"VLOOKUP(TRIM(J2090),'Transactional Departments'!A:B,2,FALSE)","v":"CHEM Expense"},"19510001","18400","RACHSRR168677CV","A01","",""]
["19","168",null,null,"NIH      RF FES CLUSTER2 JOHNS","1021RR168678","20000","12100","61018","19510001",{"$f":"VLOOKUP(TRIM(J2091),'Transactional Departments'!A:B,2,FALSE)","v":"CHEM Expense"},"19510001","18400","RNIHXRR168678CV","A01","",""]
["19","168",null,null,"NSF      RF  CON POLYMER LOCKL","1021RR168679","20000","12100","61023","19510001",{"$f":"VLOOKUP(TRIM(J2092),'Transactional Departments'!A:B,2,FALSE)","v":"CHEM Expense"},"19510001","18400","RNSFXRR168679CV","A01","",""]
["19","168",null,null,"UCR/NSF  RF EFRI 2 DARE  SALGU","1021RR168680","20000","12100","62587","19510001",{"$f":"VLOOKUP(TRIM(J2093),'Transactional Departments'!A:B,2,FALSE)","v":"CHEM Expense"},"19510001","18400","RUCARRR168680CV","A01","",""]
["19","168",null,null," CSU/NSF RF COMPU DESIGN FERRE","1021RR168682","20000","12100","62525","19510001",{"$f":"VLOOKUP(TRIM(J2094),'Transactional Departments'!A:B,2,FALSE)","v":"CHEM Expense"},"19510001","18003","SCOSURR168682CV","A01","",""]
["19","168",null,null,"NIH      RF ALKYNE TRANS FERRE","1021RR168683","20000","12100","61018","19510001",{"$f":"VLOOKUP(TRIM(J2095),'Transactional Departments'!A:B,2,FALSE)","v":"CHEM Expense"},"19510001","18400","RNIHXRR168683CV","A01","",""]
["19","168",null,null,"USAF     RF SUB NANO     DUNCA","1021RR168684","20000","12100","61013","19510001",{"$f":"VLOOKUP(TRIM(J2096),'Transactional Departments'!A:B,2,FALSE)","v":"CHEM Expense"},"19510001","18400","RUSAFRR168684CV","A01","",""]
["19","168",null,null,"UPENN/NIHRF OVARIAN           ","1021RR168687","20000","12100","62523","19510001",{"$f":"VLOOKUP(TRIM(J2097),'Transactional Departments'!A:B,2,FALSE)","v":"CHEM Expense"},"19510001","18400","RUPENRR168687CV","A01","",""]
["19","168",null,null,"NSF      RF RF_PROT & SOLDUNCA","1021RR168688","20000","12100","61023","19510001",{"$f":"VLOOKUP(TRIM(J2098),'Transactional Departments'!A:B,2,FALSE)","v":"CHEM Expense"},"19510001","18400","RNSFXRR168688CV","A01","",""]
["19","168",null,null,"NSF      RF NICKEL THIL  HARRO","1021RR168689","20000","12100","61023","19510001",{"$f":"VLOOKUP(TRIM(J2099),'Transactional Departments'!A:B,2,FALSE)","v":"CHEM Expense"},"19510001","18400","RNSFXRR168689CV","A01","",""]
["19","168",null,null,"NSF      RF DNA SCAFFOL  LOCKL","1021RR168691","20000","12100","61023","19510001",{"$f":"VLOOKUP(TRIM(J2100),'Transactional Departments'!A:B,2,FALSE)","v":"CHEM Expense"},"19510001","18400","RNSFXRR168691CV","A01","",""]
["19","168",null,null,"USDOD    RF MELANOMA     XIE  ","1021RR168693","20000","12100","61012","19510001",{"$f":"VLOOKUP(TRIM(J2101),'Transactional Departments'!A:B,2,FALSE)","v":"CHEM Expense"},"19510001","18400","RUSDDRR168693CV","A01","",""]
["19","168",null,null,"CSU/NSF  RF PS W/168682       ","1021RR168694","20000","12100","62525","19510001",{"$f":"VLOOKUP(TRIM(J2102),'Transactional Departments'!A:B,2,FALSE)","v":"CHEM Expense"},"19510001","18400","RCOSURR168694CV","A01","",""]
["19","168",null,null,"NIH      RF PIG STROKE   WEST ","1021RR168696","20000","12100","61018","19510001",{"$f":"VLOOKUP(TRIM(J2103),'Transactional Departments'!A:B,2,FALSE)","v":"CHEM Expense"},"19510001","18400","RNIHXRR168696CV","A01","",""]
["19","168",null,null,"NSF      RF FERRITIN-BAS_XIE  ","1021RR168697","20000","12100","61023","19510001",{"$f":"VLOOKUP(TRIM(J2104),'Transactional Departments'!A:B,2,FALSE)","v":"CHEM Expense"},"19510001","18400","RNSFXRR168697CV","A01","",""]
["19","168",null,null,"NSF      RF LOX OXIDAT   ROBIN","1021RR168698","20000","12100","61023","19510001",{"$f":"VLOOKUP(TRIM(J2105),'Transactional Departments'!A:B,2,FALSE)","v":"CHEM Expense"},"19510001","18400","RNSFXRR168698CV","A01","",""]
["19","168",null,null,"NSF      RF QUINONE METH POPIK","1021RR168699","20000","12100","61023","19510001",{"$f":"VLOOKUP(TRIM(J2106),'Transactional Departments'!A:B,2,FALSE)","v":"CHEM Expense"},"19510001","18400","RNSFXRR168699CV","A01","",""]
["19","168",null,null,"OSU      RF EPIGENETIC   DHAR ","1021RR168700","20000","12100","62507","19510001",{"$f":"VLOOKUP(TRIM(J2107),'Transactional Departments'!A:B,2,FALSE)","v":"CHEM Expense"},"19510001","18400","ROHSURR168700CV","A01","",""]
["19","168",null,null,"UPENN/NIHRF OVARIAN           ","1021RR168701","20000","12100","62523","19510001",{"$f":"VLOOKUP(TRIM(J2108),'Transactional Departments'!A:B,2,FALSE)","v":"CHEM Expense"},"19510001","18400","RUPENRR168701CV","A01","",""]
["19","168",null,null,"NIH      RF DNA          HILI ","1021RR168702","20000","12100","61018","19510001",{"$f":"VLOOKUP(TRIM(J2109),'Transactional Departments'!A:B,2,FALSE)","v":"CHEM Expense"},"19510001","18400","RNIHXRR168702CV","A01","",""]
["19","168",null,null,"NSF      RF AEROSOL OPTICSMITH","1021RR168704","20000","12100","61023","19510001",{"$f":"VLOOKUP(TRIM(J2110),'Transactional Departments'!A:B,2,FALSE)","v":"CHEM Expense"},"19510001","18400","RNSFXRR168704CV","A01","",""]
["19","168",null,null,"NSF      RF AMPHI DNA    HILI ","1021RR168705","20000","12100","61023","19510001",{"$f":"VLOOKUP(TRIM(J2111),'Transactional Departments'!A:B,2,FALSE)","v":"CHEM Expense"},"19510001","18400","RNSFXRR168705CV","A01","",""]
["19","168",null,null,"NIH      RF RAPID SEQ    AMSTE","1021RR168707","20000","12100","61018","19510001",{"$f":"VLOOKUP(TRIM(J2112),'Transactional Departments'!A:B,2,FALSE)","v":"CHEM Expense"},"19510001","18400","RNIHXRR168707CV","A01","",""]
["19","168",null,null,"NIH      RF XRAY IRR     XIE  ","1021RR168708","20000","12100","61018","19510001",{"$f":"VLOOKUP(TRIM(J2113),'Transactional Departments'!A:B,2,FALSE)","v":"CHEM Expense"},"19510001","18400","RNIHXRR168708CV","A01","",""]
["19","168",null,null,"NSF      RF HELIUM DROPLEDOUBE","1021RR168709","20000","12100","61023","19510001",{"$f":"VLOOKUP(TRIM(J2114),'Transactional Departments'!A:B,2,FALSE)","v":"CHEM Expense"},"19510001","18400","RNSFXRR168709CV","A01","",""]
["19","168",null,null,"NSF      RF SUSCHEM      WHEEL","1021RR168710","20000","12100","61023","19510001",{"$f":"VLOOKUP(TRIM(J2115),'Transactional Departments'!A:B,2,FALSE)","v":"CHEM Expense"},"19510001","18400","RNSFXRR168710CV","A01","",""]
["19","168",null,null,"         CHEMICAL EDUC   PIENT","1031RE168662","20000","13100","64123","19510001",{"$f":"VLOOKUP(TRIM(J2116),'Transactional Departments'!A:B,2,FALSE)","v":"CHEM Expense"},"19510001","18003","SACHSRE168662CV","A01","",""]
["19","170",null,null,"US DOED  RF RF_CULT IMM KMAGAN","1011RH170038","20000","11100","61033","19420GOP",{"$f":"VLOOKUP(TRIM(J2117),'Transactional Departments'!A:B,2,FALSE)","v":"CMLT General Operating"},"19420GOP","18400","RDOEDRH170038CV","A01","",""]
["19","170",null,null,"US DOED  PI FOR RH170038 MAGAN","1011RH170039","20000","11100","61033","19420GOP",{"$f":"VLOOKUP(TRIM(J2118),'Transactional Departments'!A:B,2,FALSE)","v":"CMLT General Operating"},"19420GOP","18003","SDOEDRH170039CV","A01","",""]
["19","170",null,null,"D OF ED  UGA_FULBRIGHT___MAGAN","1011RH170141","20000","11100","61033","19420GOP",{"$f":"VLOOKUP(TRIM(J2119),'Transactional Departments'!A:B,2,FALSE)","v":"CMLT General Operating"},"19420GOP","18003","SDOEDRH170141CV","A01","",""]
["19","170",null,null,"D OF ED  FULBRIGHT PI____MAGAN","1011RH170142","20000","11100","61033","19420GOP",{"$f":"VLOOKUP(TRIM(J2120),'Transactional Departments'!A:B,2,FALSE)","v":"CMLT General Operating"},"19420GOP","18003","SDOEDRH170142CV","A01","",""]
["19","171",null,null,"FF       TCH ABOUT ASIAIIRICHM","1011RH171016","20000","11100","64440","19340001",{"$f":"VLOOKUP(TRIM(J2121),'Transactional Departments'!A:B,2,FALSE)","v":"THEA Operations"},"19340001","18003","SFREERH171016CV","A01","",""]
["19","171",null,null,"NEH      DIGITAL TECH    SALTZ","1031RE171060","20000","13100","61025","19340001",{"$f":"VLOOKUP(TRIM(J2122),'Transactional Departments'!A:B,2,FALSE)","v":"THEA Operations"},"19340001","18003","SNEFHRE171060CV","A01","",""]
["19","173",null,null,"APLU     ADAPTIVE_COURSE_DESME","1011RH173075","20000","11100","64188","19430100",{"$f":"VLOOKUP(TRIM(J2123),'Transactional Departments'!A:B,2,FALSE)","v":"ENGL English General Admin"},"19430100","18003","SASPURH173075CV","A01","",""]
["19","173",null,null,"FACE FND UGA_SCENE STEAL_IYENG","1011RH173078","20000","11100","64508","19430100",{"$f":"VLOOKUP(TRIM(J2124),'Transactional Departments'!A:B,2,FALSE)","v":"ENGL English General Admin"},"19430100","18003","SFACERH173078CV","A01","",""]
["19","173",null,null,"ACLS     RF DIGITAL INNO KRETZ","1021RR173072","20000","12100","64321","19430100",{"$f":"VLOOKUP(TRIM(J2125),'Transactional Departments'!A:B,2,FALSE)","v":"ENGL English General Admin"},"19430100","18400","RACLSRR173072CV","A01","",""]
["19","173",null,null,"ADS      RF  KRETZXCHMAR KRETZ","1021RR173073","20000","12100","64280","19430100",{"$f":"VLOOKUP(TRIM(J2126),'Transactional Departments'!A:B,2,FALSE)","v":"ENGL English General Admin"},"19430100","18400","RAMDSRR173073CV","A01","",""]
["19","173",null,null,"NSF      RF DASS PILOT___KRETZ","1021RR173076","20000","12100","61023","19430100",{"$f":"VLOOKUP(TRIM(J2127),'Transactional Departments'!A:B,2,FALSE)","v":"ENGL English General Admin"},"19430100","18400","RNSFXRR173076CV","A01","",""]
["19","173",null,null,"DOE      RF RF_ADV SOLAR HETTE","1021RR173079","20000","12100","61001","19430100",{"$f":"VLOOKUP(TRIM(J2128),'Transactional Departments'!A:B,2,FALSE)","v":"ENGL English General Admin"},"19430100","18400","RUSDERR173079CV","A01","",""]
["19","175",null,null,"USDA NIFASUPP 157-022    BERLE","1011RH175272","20000","11100","61002","19630GGY",{"$f":"VLOOKUP(TRIM(J2129),'Transactional Departments'!A:B,2,FALSE)","v":"GEOG Geography General"},"19630GGY","18003","SUSDARH175272CV","A01","",""]
["19","175",null,null,"GDNR/WRD RF W/RR175191   MADDE","1021RR175197","20000","12100","62016","19630GGY",{"$f":"VLOOKUP(TRIM(J2130),'Transactional Departments'!A:B,2,FALSE)","v":"GEOG Geography General"},"19630GGY","18400","RGDNRRR175197CV","A01","",""]
["19","175",null,null,"MINN/NSF RF RCN-SEES     SHEPH","1021RR175247","20000","12100","62514","19630GGY",{"$f":"VLOOKUP(TRIM(J2131),'Transactional Departments'!A:B,2,FALSE)","v":"GEOG Geography General"},"19630GGY","18400","RUOMNRR175247CV","A01","",""]
["19","175",null,null,"NASA     RF URBAN WATER  SHEPH","1021RR175250","20000","12100","61022","19630GGY",{"$f":"VLOOKUP(TRIM(J2132),'Transactional Departments'!A:B,2,FALSE)","v":"GEOG Geography General"},"19630GGY","18400","RNASARR175250CV","A01","",""]
["19","175",null,null,"CESU     RF HARBOR EXPAN BERNA","1021RR175253","20000","12100","61034","19630GGY",{"$f":"VLOOKUP(TRIM(J2133),'Transactional Departments'!A:B,2,FALSE)","v":"GEOG Geography General"},"19630GGY","18400","RCESURR175253CV","A01","",""]
["19","175",null,null,"CESU     RF VEGE MAPPING MADDE","1021RR175256","20000","12100","61034","19630GGY",{"$f":"VLOOKUP(TRIM(J2134),'Transactional Departments'!A:B,2,FALSE)","v":"GEOG Geography General"},"19630GGY","18400","RCESURR175256CV","A01","",""]
["19","175",null,null,"NASA     RF EXTREME MELT MOTE ","1021RR175257","20000","12100","61022","19630GGY",{"$f":"VLOOKUP(TRIM(J2135),'Transactional Departments'!A:B,2,FALSE)","v":"GEOG Geography General"},"19630GGY","18400","RNASARR175257CV","A01","",""]
["19","175",null,null,"USDC     RF SNOW MELT    MOTE ","1021RR175260","20000","12100","61009","19630GGY",{"$f":"VLOOKUP(TRIM(J2136),'Transactional Departments'!A:B,2,FALSE)","v":"GEOG Geography General"},"19630GGY","18400","RUSDCRR175260CV","A01","",""]
["19","175",null,null,"NASA     RF GULF COAST   MISHR","1021RR175264","20000","12100","61022","19630GGY",{"$f":"VLOOKUP(TRIM(J2137),'Transactional Departments'!A:B,2,FALSE)","v":"GEOG Geography General"},"19630GGY","18400","RNASARR175264CV","A01","",""]
["19","175",null,null,"NSF      RF W/ 540179    RAMAS","1021RR175266","20000","12100","61023","19630GGY",{"$f":"VLOOKUP(TRIM(J2138),'Transactional Departments'!A:B,2,FALSE)","v":"GEOG Geography General"},"19630GGY","18400","RNSFXRR175266CV","A01","",""]
["19","175",null,null,"         RF RR175-268    MOTE ","1021RR175274","20000","12100","62588","19630GGY",{"$f":"VLOOKUP(TRIM(J2139),'Transactional Departments'!A:B,2,FALSE)","v":"GEOG Geography General"},"19630GGY","18003","SRUTGRR175274CV","A01","",""]
["19","175",null,null,"NPC      RF BLUE RIDGE   MADDE","1021RR175275","20000","12100","64000","19630GGY",{"$f":"VLOOKUP(TRIM(J2140),'Transactional Departments'!A:B,2,FALSE)","v":"GEOG Geography General"},"19630GGY","18400","RNNCARR175275CV","A01","",""]
["19","175",null,null,"         RF SEDIMNT TRAN LEIGH","1021RR175276","20000","12100","64245","19630GGY",{"$f":"VLOOKUP(TRIM(J2141),'Transactional Departments'!A:B,2,FALSE)","v":"GEOG Geography General"},"19630GGY","18003","SPCWSRR175276CV","A01","",""]
["19","175",null,null,"USDC     RF R/HCE-MISH-16     ","1021RR175279","20000","12100","61009","19630GGY",{"$f":"VLOOKUP(TRIM(J2142),'Transactional Departments'!A:B,2,FALSE)","v":"GEOG Geography General"},"19630GGY","18400","RUSDCRR175279CV","A01","",""]
["19","175",null,null,"NASA     RF URBAN GLOBE  SHEPH","1021RR175280","20000","12100","61022","19630GGY",{"$f":"VLOOKUP(TRIM(J2143),'Transactional Departments'!A:B,2,FALSE)","v":"GEOG Geography General"},"19630GGY","18400","RNASARR175280CV","A01","",""]
["19","175",null,null,"USM      RF SALT MARSH   MISHR","1021RR175281","20000","12100","62534","19630GGY",{"$f":"VLOOKUP(TRIM(J2144),'Transactional Departments'!A:B,2,FALSE)","v":"GEOG Geography General"},"19630GGY","18400","RUSMSRR175281CV","A01","",""]
["19","175",null,null,"NSF      RF POL OF PEST  HEYNE","1021RR175282","20000","12100","61023","19630GGY",{"$f":"VLOOKUP(TRIM(J2145),'Transactional Departments'!A:B,2,FALSE)","v":"GEOG Geography General"},"19630GGY","18400","RNSFXRR175282CV","A01","",""]
["19","175",null,null,"USDI     RF BENTHIC INVERPORIN","1021RR175283","20000","12100","61019","19630GGY",{"$f":"VLOOKUP(TRIM(J2146),'Transactional Departments'!A:B,2,FALSE)","v":"GEOG Geography General"},"19630GGY","18400","RUSDIRR175283CV","A01","",""]
["19","175",null,null,"FIT/NSF  RF VULPES       SARMI","1021RR175284","20000","12100","64328","19630GGY",{"$f":"VLOOKUP(TRIM(J2147),'Transactional Departments'!A:B,2,FALSE)","v":"GEOG Geography General"},"19630GGY","18400","RFLITRR175284CV","A01","",""]
["19","175",null,null,"USURF    RF GEORGIASAT-1 MISHR","1021RR175285","20000","12100","64427","19630GGY",{"$f":"VLOOKUP(TRIM(J2148),'Transactional Departments'!A:B,2,FALSE)","v":"GEOG Geography General"},"19630GGY","18400","RUTSFRR175285CV","A01","",""]
["19","175",null,null,"USDA     RF SCI INDICATR MADDE","1021RR175286","20000","12100","61003","19630GGY",{"$f":"VLOOKUP(TRIM(J2149),'Transactional Departments'!A:B,2,FALSE)","v":"GEOG Geography General"},"19630GGY","18400","RUSFSRR175286CV","A01","",""]
["19","175",null,null,"NASA     RF ENERGY FLUX  MOTE ","1021RR175287","20000","12100","61022","19630GGY",{"$f":"VLOOKUP(TRIM(J2150),'Transactional Departments'!A:B,2,FALSE)","v":"GEOG Geography General"},"19630GGY","18400","RNASARR175287CV","A01","",""]
["19","175",null,null,"NSF      RF ROCKY MNTNS  PORIN","1021RR175288","20000","12100","61023","19630GGY",{"$f":"VLOOKUP(TRIM(J2151),'Transactional Departments'!A:B,2,FALSE)","v":"GEOG Geography General"},"19630GGY","18400","RNSFXRR175288CV","A01","",""]
["19","175",null,null,"GDNR     RF SOCIO-DEMO   HEYNE","1021RR175289","20000","12100","62016","19630GGY",{"$f":"VLOOKUP(TRIM(J2152),'Transactional Departments'!A:B,2,FALSE)","v":"GEOG Geography General"},"19630GGY","18400","RGDNRRR175289CV","A01","",""]
["19","175",null,null,"NASA     RF ORB ANALYSIS MISHR","1021RR175290","20000","12100","61022","19630GGY",{"$f":"VLOOKUP(TRIM(J2153),'Transactional Departments'!A:B,2,FALSE)","v":"GEOG Geography General"},"19630GGY","18400","RNASARR175290CV","A01","",""]
["19","175",null,null,"NSF      RF BORDERLAND   TRAUG","1021RR175291","20000","12100","61023","19630GGY",{"$f":"VLOOKUP(TRIM(J2154),'Transactional Departments'!A:B,2,FALSE)","v":"GEOG Geography General"},"19630GGY","18400","RNSFXRR175291CV","A01","",""]
["19","175",null,null,"NSF      RF EAGER        MISHR","1021RR175292","20000","12100","61023","19630GGY",{"$f":"VLOOKUP(TRIM(J2155),'Transactional Departments'!A:B,2,FALSE)","v":"GEOG Geography General"},"19630GGY","18400","RNSFXRR175292CV","A01","",""]
["19","175",null,null,"         RF RIVER BLIND  BERNA","1021RR175294","20000","12100","64192","19630GGY",{"$f":"VLOOKUP(TRIM(J2156),'Transactional Departments'!A:B,2,FALSE)","v":"GEOG Geography General"},"19630GGY","18003","SCACIRR175294CV","A01","",""]
["19","175",null,null,"UPR      RF RF_MOTE W551617 PR","1021RR175350","20000","12100","62558","19630GGY",{"$f":"VLOOKUP(TRIM(J2157),'Transactional Departments'!A:B,2,FALSE)","v":"GEOG Geography General"},"19630GGY","18400","RUPRRRR175350CV","A01","",""]
["19","175",null,null,"USDA/FS  RF APPAL FIRE   SHEPH","1021RR175351","20000","12100","61003","19630GGY",{"$f":"VLOOKUP(TRIM(J2158),'Transactional Departments'!A:B,2,FALSE)","v":"GEOG Geography General"},"19630GGY","18400","RUSFSRR175351CV","A01","",""]
["19","175",null,null,"NSF      RF HYDR FRACT   KURTZ","1021RR175352","20000","12100","61023","19630GGY",{"$f":"VLOOKUP(TRIM(J2159),'Transactional Departments'!A:B,2,FALSE)","v":"GEOG Geography General"},"19630GGY","18400","RNSFXRR175352CV","A01","",""]
["19","175",null,null,"USDC     RF RR746-076         ","1021RR175353","20000","12100","61009","19630GGY",{"$f":"VLOOKUP(TRIM(J2160),'Transactional Departments'!A:B,2,FALSE)","v":"GEOG Geography General"},"19630GGY","18400","RUSDCRR175353CV","A01","",""]
["19","175",null,null,"NASA     RF MODIS GPP    MISHR","1021RR175354","20000","12100","61022","19630GGY",{"$f":"VLOOKUP(TRIM(J2161),'Transactional Departments'!A:B,2,FALSE)","v":"GEOG Geography General"},"19630GGY","18400","RNASARR175354CV","A01","",""]
["19","175",null,null,"GIT/USGS RF WATER FY 16  SHEPH","1021RR175355","20000","12100","62021","19630GGY",{"$f":"VLOOKUP(TRIM(J2162),'Transactional Departments'!A:B,2,FALSE)","v":"GEOG Geography General"},"19630GGY","18400","RGAITRR175355CV","A01","",""]
["19","176",null,null,"DU/NSF   RF RR272-497    MARKE","1021RR176301","20000","12100","64290","19530GEO",{"$f":"VLOOKUP(TRIM(J2163),'Transactional Departments'!A:B,2,FALSE)","v":"GEOL General Account"},"19530GEO","18400","RDUKERR176301CV","A01","",""]
["19","176",null,null,"NASA     RF S&E SCIENCE  KLIMC","1021RR176303","20000","12100","61022","19530GEO",{"$f":"VLOOKUP(TRIM(J2164),'Transactional Departments'!A:B,2,FALSE)","v":"GEOL General Account"},"19530GEO","18400","RNASARR176303CV","A01","",""]
["19","176",null,null,"SF       FUTURE PROGRAM  RAILS","1021RR176307","20000","12100","64450","19530GEO",{"$f":"VLOOKUP(TRIM(J2165),'Transactional Departments'!A:B,2,FALSE)","v":"GEOL General Account"},"19530GEO","18003","SSCHLRR176307CV","A01","",""]
["19","176",null,null,"NASA     RF LUNAR GRABEN KLIMC","1021RR176308","20000","12100","61022","19530GEO",{"$f":"VLOOKUP(TRIM(J2166),'Transactional Departments'!A:B,2,FALSE)","v":"GEOL General Account"},"19530GEO","18400","RNASARR176308CV","A01","",""]
["19","176",null,null,"USDI     RF ENVIRO SENS  DOWD ","1021RR176309","20000","12100","61019","19530GEO",{"$f":"VLOOKUP(TRIM(J2167),'Transactional Departments'!A:B,2,FALSE)","v":"GEOL General Account"},"19530GEO","18400","RUSDIRR176309CV","A01","",""]
["19","176",null,null,"SF       FUTURE PROGRAM       ","1021RR176310","20000","12100","64450","19530GEO",{"$f":"VLOOKUP(TRIM(J2168),'Transactional Departments'!A:B,2,FALSE)","v":"GEOL General Account"},"19530GEO","18003","SSCHLRR176310CV","A01","",""]
["19","176",null,null,"US DOI   RF WATER RESOURCMILEW","1021RR176311","20000","12100","61019","19530GEO",{"$f":"VLOOKUP(TRIM(J2169),'Transactional Departments'!A:B,2,FALSE)","v":"GEOL General Account"},"19530GEO","18400","RUSDIRR176311CV","A01","",""]
["19","176",null,null,"NCSU/NASARF RIDGES       KLIMC","1021RR176312","20000","12100","62506","19530GEO",{"$f":"VLOOKUP(TRIM(J2170),'Transactional Departments'!A:B,2,FALSE)","v":"GEOL General Account"},"19530GEO","18400","RNCSURR176312CV","A01","",""]
["19","180",null,null,"ACLS     BIG BAD DATA    BERRY","1021RR180056","20000","12100","64321","19450001",{"$f":"VLOOKUP(TRIM(J2171),'Transactional Departments'!A:B,2,FALSE)","v":"HIST-gj"},"19450001","18003","SACLSRR180056CV","A01","",""]
["19","180",null,null,"SI       STANDARDS       MIHM ","1021RR180057","20000","12100","64162","19450001",{"$f":"VLOOKUP(TRIM(J2172),'Transactional Departments'!A:B,2,FALSE)","v":"HIST-gj"},"19450001","18003","SSMITRR180057CV","A01","",""]
["19","180",null,null,"NSF      RF MODERNITY    MIHM ","1021RR180140","20000","12100","61023","19450001",{"$f":"VLOOKUP(TRIM(J2173),'Transactional Departments'!A:B,2,FALSE)","v":"HIST-gj"},"19450001","18400","RNSFXRR180140CV","A01","",""]
["19","181",null,null,"BORUSG   USG W/007-035   BURG ","1011RH181302","20000","11100","62020","19540100",{"$f":"VLOOKUP(TRIM(J2174),'Transactional Departments'!A:B,2,FALSE)","v":"MATH Mathematics Operating"},"19540100","18003","SGBORRH181302CV","A01","",""]
["19","181",null,null,"BOR/USG  W/007-036 STEM  BURG ","1011RH181773","20000","11100","62020","19540100",{"$f":"VLOOKUP(TRIM(J2175),'Transactional Departments'!A:B,2,FALSE)","v":"MATH Mathematics Operating"},"19540100","18003","SGBORRH181773CV","A01","",""]
["19","181",null,null,"NSF      RF ALGBRIC STRC KRASH","1021RR181250","20000","12100","61023","19540100",{"$f":"VLOOKUP(TRIM(J2176),'Transactional Departments'!A:B,2,FALSE)","v":"MATH Mathematics Operating"},"19540100","18400","RNSFXRR181250CV","A01","",""]
["19","181",null,null,"NSF      RF DEGENERATINS ALEXE","1021RR181252","20000","12100","61023","19540100",{"$f":"VLOOKUP(TRIM(J2177),'Transactional Departments'!A:B,2,FALSE)","v":"MATH Mathematics Operating"},"19540100","18400","RNSFXRR181252CV","A01","",""]
["19","181",null,null,"         RF MATH COMBOS  LYALL","1021RR181256","20000","12100","64420","19540100",{"$f":"VLOOKUP(TRIM(J2178),'Transactional Departments'!A:B,2,FALSE)","v":"MATH Mathematics Operating"},"19540100","18003","SSIMFRR181256CV","A01","",""]
["19","181",null,null,"         RF TOPOLOGY     KAZEZ","1021RR181257","20000","12100","64420","19540100",{"$f":"VLOOKUP(TRIM(J2179),'Transactional Departments'!A:B,2,FALSE)","v":"MATH Mathematics Operating"},"19540100","18003","SSIMFRR181257CV","A01","",""]
["19","181",null,null,"         RF INVARIANTS   MATIC","1021RR181258","20000","12100","64420","19540100",{"$f":"VLOOKUP(TRIM(J2180),'Transactional Departments'!A:B,2,FALSE)","v":"MATH Mathematics Operating"},"19540100","18003","SSIMFRR181258CV","A01","",""]
["19","181",null,null,"         RF STOCK TRADE  ZHANG","1021RR181259","20000","12100","64420","19540100",{"$f":"VLOOKUP(TRIM(J2181),'Transactional Departments'!A:B,2,FALSE)","v":"MATH Mathematics Operating"},"19540100","18003","SSIMFRR181259CV","A01","",""]
["19","181",null,null,"NSF      RF SUP 181-254  GAY  ","1021RR181260","20000","12100","61023","19540100",{"$f":"VLOOKUP(TRIM(J2182),'Transactional Departments'!A:B,2,FALSE)","v":"MATH Mathematics Operating"},"19540100","18400","RNSFXRR181260CV","A01","",""]
["19","181",null,null,"NSA      RF ALGEBRAIC    GRAHA","1021RR181261","20000","12100","61030","19540100",{"$f":"VLOOKUP(TRIM(J2183),'Transactional Departments'!A:B,2,FALSE)","v":"MATH Mathematics Operating"},"19540100","18400","RNSAXRR181261CV","A01","",""]
["19","181",null,null,"CSRC/NIH RF MALARIAL RES GUTIE","1021RR181262","20000","12100","64483","19540100",{"$f":"VLOOKUP(TRIM(J2184),'Transactional Departments'!A:B,2,FALSE)","v":"MATH Mathematics Operating"},"19540100","18400","RCSRCRR181262CV","A01","",""]
["19","181",null,null,"SIMONS FDRF MLTVRT SPLNE LAI  ","1021RR181263","20000","12100","64420","19540100",{"$f":"VLOOKUP(TRIM(J2185),'Transactional Departments'!A:B,2,FALSE)","v":"MATH Mathematics Operating"},"19540100","18400","RSIMFRR181263CV","A01","",""]
["19","181",null,null,"         RF RAND POLYGON CANTA","1021RR181264","20000","12100","64420","19540100",{"$f":"VLOOKUP(TRIM(J2186),'Transactional Departments'!A:B,2,FALSE)","v":"MATH Mathematics Operating"},"19540100","18003","SSIMFRR181264CV","A01","",""]
["19","181",null,null,"         RF RUMELY SIMON RUMEL","1021RR181265","20000","12100","64420","19540100",{"$f":"VLOOKUP(TRIM(J2187),'Transactional Departments'!A:B,2,FALSE)","v":"MATH Mathematics Operating"},"19540100","18003","SSIMFRR181265CV","A01","",""]
["19","181",null,null,"NSF      RF CALCULUS ROB CANTA","1021RR181266","20000","12100","61023","19540100",{"$f":"VLOOKUP(TRIM(J2188),'Transactional Departments'!A:B,2,FALSE)","v":"MATH Mathematics Operating"},"19540100","18400","RNSFXRR181266CV","A01","",""]
["19","181",null,null,"NSF      RF ALGEBRA      LOREN","1021RR181268","20000","12100","61023","19540100",{"$f":"VLOOKUP(TRIM(J2189),'Transactional Departments'!A:B,2,FALSE)","v":"MATH Mathematics Operating"},"19540100","18400","RNSFXRR181268CV","A01","",""]
["19","181",null,null,"NSF      RF PS W/ 181268 LOREN","1021RR181269","20000","12100","61023","19540100",{"$f":"VLOOKUP(TRIM(J2190),'Transactional Departments'!A:B,2,FALSE)","v":"MATH Mathematics Operating"},"19540100","18400","RNSFXRR181269CV","A01","",""]
["19","181",null,null,"         RF FINITE GROUP CARLS","1021RR181270","20000","12100","64420","19540100",{"$f":"VLOOKUP(TRIM(J2191),'Transactional Departments'!A:B,2,FALSE)","v":"MATH Mathematics Operating"},"19540100","18003","SSIMFRR181270CV","A01","",""]
["19","181",null,null,"NSF      RF INTEGRAL GEO FU   ","1021RR181271","20000","12100","61023","19540100",{"$f":"VLOOKUP(TRIM(J2192),'Transactional Departments'!A:B,2,FALSE)","v":"MATH Mathematics Operating"},"19540100","18400","RNSFXRR181271CV","A01","",""]
["19","181",null,null,"NSF      RF STAT PROBLEM POLLA","1021RR181272","20000","12100","61023","19540100",{"$f":"VLOOKUP(TRIM(J2193),'Transactional Departments'!A:B,2,FALSE)","v":"MATH Mathematics Operating"},"19540100","18400","RNSFXRR181272CV","A01","",""]
["19","181",null,null,"         RF HARMONIC MAP HERSO","1021RR181273","20000","12100","64420","19540100",{"$f":"VLOOKUP(TRIM(J2194),'Transactional Departments'!A:B,2,FALSE)","v":"MATH Mathematics Operating"},"19540100","18003","SSIMFRR181273CV","A01","",""]
["19","181",null,null,"NSF      RF TOP CONF PS  MATIC","1021RR181274","20000","12100","61023","19540100",{"$f":"VLOOKUP(TRIM(J2195),'Transactional Departments'!A:B,2,FALSE)","v":"MATH Mathematics Operating"},"19540100","18400","RNSFXRR181274CV","A01","",""]
["19","181",null,null,"NSF      RF TENSOR TRIAN NAKAN","1021RR181275","20000","12100","61023","19540100",{"$f":"VLOOKUP(TRIM(J2196),'Transactional Departments'!A:B,2,FALSE)","v":"MATH Mathematics Operating"},"19540100","18400","RNSFXRR181275CV","A01","",""]
["19","181",null,null,"NSF      RF W/ 181-268 LOREN  ","1021RR181277","20000","12100","61023","19540100",{"$f":"VLOOKUP(TRIM(J2197),'Transactional Departments'!A:B,2,FALSE)","v":"MATH Mathematics Operating"},"19540100","18400","RNSFXRR181277CV","A01","",""]
["19","181",null,null,"NSA ARTIHALGEBRAIC       LOREN","1021RR181281","20000","12100","61030","19540100",{"$f":"VLOOKUP(TRIM(J2198),'Transactional Departments'!A:B,2,FALSE)","v":"MATH Mathematics Operating"},"19540100","18003","SNSAXRR181281CV","A01","",""]
["19","181",null,null,"NSA      RF MODULAR REP  CARLS","1021RR181282","20000","12100","61030","19540100",{"$f":"VLOOKUP(TRIM(J2199),'Transactional Departments'!A:B,2,FALSE)","v":"MATH Mathematics Operating"},"19540100","18400","RNSAXRR181282CV","A01","",""]
["19","181",null,null,"NSF      RF SYMPL FLOER  USHER","1021RR181285","20000","12100","61023","19540100",{"$f":"VLOOKUP(TRIM(J2200),'Transactional Departments'!A:B,2,FALSE)","v":"MATH Mathematics Operating"},"19540100","18400","RNSFXRR181285CV","A01","",""]
["19","181",null,null,"NSF      RF CONST FIN ELELAI  ","1021RR181286","20000","12100","61023","19540100",{"$f":"VLOOKUP(TRIM(J2201),'Transactional Departments'!A:B,2,FALSE)","v":"MATH Mathematics Operating"},"19540100","18400","RNSFXRR181286CV","A01","",""]
["19","181",null,null,"NSF      RF FRG OBSTRUCT KRASH","1021RR181288","20000","12100","61023","19540100",{"$f":"VLOOKUP(TRIM(J2202),'Transactional Departments'!A:B,2,FALSE)","v":"MATH Mathematics Operating"},"19540100","18400","RNSFXRR181288CV","A01","",""]
["19","181",null,null,"SIMONS FNRF RF_PARAMETE MGAY  ","1021RR181289","20000","12100","64420","19540100",{"$f":"VLOOKUP(TRIM(J2203),'Transactional Departments'!A:B,2,FALSE)","v":"MATH Mathematics Operating"},"19540100","18400","RSIMFRR181289CV","A01","",""]
["19","181",null,null,"CU       RF COMPASS      BLACK","1021RR181290","20000","12100","64172","19540100",{"$f":"VLOOKUP(TRIM(J2204),'Transactional Departments'!A:B,2,FALSE)","v":"MATH Mathematics Operating"},"19540100","18400","RCLARRR181290CV","A01","",""]
["19","181",null,null,"CSRC/NIH RF MALARIAL RES GUITE","1021RR181291","20000","12100","64483","19540100",{"$f":"VLOOKUP(TRIM(J2205),'Transactional Departments'!A:B,2,FALSE)","v":"MATH Mathematics Operating"},"19540100","18400","RCSRCRR181291CV","A01","",""]
["19","181",null,null,"NSF      INT GEOM CONF___FU   ","1021RR181293","20000","12100","61023","19540100",{"$f":"VLOOKUP(TRIM(J2206),'Transactional Departments'!A:B,2,FALSE)","v":"MATH Mathematics Operating"},"19540100","18003","SNSFXRR181293CV","A01","",""]
["19","181",null,null,"NSF      RF GA SYMPOSIUM ALEXE","1021RR181295","20000","12100","61023","19540100",{"$f":"VLOOKUP(TRIM(J2207),'Transactional Departments'!A:B,2,FALSE)","v":"MATH Mathematics Operating"},"19540100","18400","RNSFXRR181295CV","A01","",""]
["19","181",null,null,"NSA      TROP SCHEME THE_GIANS","1021RR181296","20000","12100","61030","19540100",{"$f":"VLOOKUP(TRIM(J2208),'Transactional Departments'!A:B,2,FALSE)","v":"MATH Mathematics Operating"},"19540100","18003","SNSAXRR181296CV","A01","",""]
["19","181",null,null,"SIMONS FNRF RF_ALG VARIETLOREN","1021RR181297","20000","12100","64420","19540100",{"$f":"VLOOKUP(TRIM(J2209),'Transactional Departments'!A:B,2,FALSE)","v":"MATH Mathematics Operating"},"19540100","18400","RSIMFRR181297CV","A01","",""]
["19","181",null,null,"NSF      RF RF_DEGENERATIALEXE","1021RR181298","20000","12100","61023","19540100",{"$f":"VLOOKUP(TRIM(J2210),'Transactional Departments'!A:B,2,FALSE)","v":"MATH Mathematics Operating"},"19540100","18400","RNSFXRR181298CV","A01","",""]
["19","181",null,null,"NSF      RF SOME PROBLEM MAGYA","1021RR181299","20000","12100","61023","19540100",{"$f":"VLOOKUP(TRIM(J2211),'Transactional Departments'!A:B,2,FALSE)","v":"MATH Mathematics Operating"},"19540100","18400","RNSFXRR181299CV","A01","",""]
["19","181",null,null,"SIMONS FNRF MODULAR REPS_CARLS","1021RR181300","20000","12100","64420","19540100",{"$f":"VLOOKUP(TRIM(J2212),'Transactional Departments'!A:B,2,FALSE)","v":"MATH Mathematics Operating"},"19540100","18400","RSIMFRR181300CV","A01","",""]
["19","181",null,null,"SIMONS FNRF RF_ARITHMETICCLARK","1021RR181301","20000","12100","64420","19540100",{"$f":"VLOOKUP(TRIM(J2213),'Transactional Departments'!A:B,2,FALSE)","v":"MATH Mathematics Operating"},"19540100","18400","RSIMFRR181301CV","A01","",""]
["19","181",null,null,"NSF      RF TAUT FOLIAT__KAZEZ","1021RR181303","20000","12100","61023","19540100",{"$f":"VLOOKUP(TRIM(J2214),'Transactional Departments'!A:B,2,FALSE)","v":"MATH Mathematics Operating"},"19540100","18400","RNSFXRR181303CV","A01","",""]
["19","181",null,null,"NSF      RF VECTOR BUNDL_GIBNE","1021RR181304","20000","12100","61023","19540100",{"$f":"VLOOKUP(TRIM(J2215),'Transactional Departments'!A:B,2,FALSE)","v":"MATH Mathematics Operating"},"19540100","18400","RNSFXRR181304CV","A01","",""]
["19","181",null,null,"CSRC/NIH RF MALARIAL RES GUITE","1021RR181305","20000","12100","64483","19540100",{"$f":"VLOOKUP(TRIM(J2216),'Transactional Departments'!A:B,2,FALSE)","v":"MATH Mathematics Operating"},"19540100","18400","RCSRCRR181305CV","A01","",""]
["19","181",null,null,"NSF      RF ALICE        GUTIE","1021RR181306","20000","12100","61023","19540100",{"$f":"VLOOKUP(TRIM(J2217),'Transactional Departments'!A:B,2,FALSE)","v":"MATH Mathematics Operating"},"19540100","18400","RNSFXRR181306CV","A01","",""]
["19","181",null,null,"NSF      RF RF_TOPOLOG COUSHER","1021RR181308","20000","12100","61023","19540100",{"$f":"VLOOKUP(TRIM(J2218),'Transactional Departments'!A:B,2,FALSE)","v":"MATH Mathematics Operating"},"19540100","18400","RNSFXRR181308CV","A01","",""]
["19","181",null,null,"NIH      RF LOW DIM TOPO GAY  ","1021RR181309","20000","12100","61023","19540100",{"$f":"VLOOKUP(TRIM(J2219),'Transactional Departments'!A:B,2,FALSE)","v":"MATH Mathematics Operating"},"19540100","18400","RNSFXRR181309CV","A01","",""]
["19","181",null,null,"SIMONS FNRF SYMPLECTIC   WU   ","1021RR181310","20000","12100","64420","19540100",{"$f":"VLOOKUP(TRIM(J2220),'Transactional Departments'!A:B,2,FALSE)","v":"MATH Mathematics Operating"},"19540100","18400","RSIMFRR181310CV","A01","",""]
["19","181",null,null,"SIMONS FNRF GEOM & PROB _CANTA","1021RR181311","20000","12100","64420","19540100",{"$f":"VLOOKUP(TRIM(J2221),'Transactional Departments'!A:B,2,FALSE)","v":"MATH Mathematics Operating"},"19540100","18400","RSIMFRR181311CV","A01","",""]
["19","181",null,null,"NSF      RF REPRESENTATI_NAKAN","1021RR181313","20000","12100","61023","19540100",{"$f":"VLOOKUP(TRIM(J2222),'Transactional Departments'!A:B,2,FALSE)","v":"MATH Mathematics Operating"},"19540100","18400","RNSFXRR181313CV","A01","",""]
["19","181",null,null,"NSF      RF RAMSY THEORY LYALL","1021RR181314","20000","12100","61023","19540100",{"$f":"VLOOKUP(TRIM(J2223),'Transactional Departments'!A:B,2,FALSE)","v":"MATH Mathematics Operating"},"19540100","18400","RNSFXRR181314CV","A01","",""]
["19","181",null,null,"NSF      RF GEOMETRIC &  BAKKE","1021RR181315","20000","12100","61023","19540100",{"$f":"VLOOKUP(TRIM(J2224),'Transactional Departments'!A:B,2,FALSE)","v":"MATH Mathematics Operating"},"19540100","18400","RNSFXRR181315CV","A01","",""]
["19","181",null,null,"NSF      RF RF_TRISECTIONMEIER","1021RR181316","20000","12100","61023","19540100",{"$f":"VLOOKUP(TRIM(J2225),'Transactional Departments'!A:B,2,FALSE)","v":"MATH Mathematics Operating"},"19540100","18400","RNSFXRR181316CV","A01","",""]
["19","182",null,null,"MOD      RF CRF5 (LSH)   LEWIS","1021RR182027","20000","12100","64156","19260001",{"$f":"VLOOKUP(TRIM(J2226),'Transactional Departments'!A:B,2,FALSE)","v":"MIBO Dept Admin"},"19260001","18400","RMAODRR182027CV","A01","",""]
["19","182",null,null,"         VAR MICROBIOLGY SHIMK","1021RR182242","20000","12100","64206","19260002",{"$f":"VLOOKUP(TRIM(J2227),'Transactional Departments'!A:B,2,FALSE)","v":"MIBO Instruction"},"19260002","18003","SVARIRR182242CV","A01","",""]
["19","182",null,null,"NIH      RF AMINO ACID   MAIER","1021RR182371","20000","12100","61018","19260001",{"$f":"VLOOKUP(TRIM(J2228),'Transactional Departments'!A:B,2,FALSE)","v":"MIBO Dept Admin"},"19260001","18400","RNIHXRR182371CV","A01","",""]
["19","182",null,null,"WASH/NSF RF LIGNOCELLULS PETER","1021RR182418","20000","12100","62522","19260001",{"$f":"VLOOKUP(TRIM(J2229),'Transactional Departments'!A:B,2,FALSE)","v":"MIBO Dept Admin"},"19260001","18400","RWASURR182418CV","A01","",""]
["19","182",null,null,"         VARIOUS         DOWNS","1021RR182423","20000","12100","64206","19260002",{"$f":"VLOOKUP(TRIM(J2230),'Transactional Departments'!A:B,2,FALSE)","v":"MIBO Instruction"},"19260002","18003","SVARIRR182423CV","A01","",""]
["19","182",null,null,"NSF         HELICOBACTER HOOVE","1021RR182427","20000","12100","61023","19260001",{"$f":"VLOOKUP(TRIM(J2231),'Transactional Departments'!A:B,2,FALSE)","v":"MIBO Dept Admin"},"19260001","18003","SNSFXRR182427CV","A01","",""]
["19","182",null,null,"NSF      RF W/ 100642 WHITM   ","1021RR182429","20000","12100","61023","19260001",{"$f":"VLOOKUP(TRIM(J2232),'Transactional Departments'!A:B,2,FALSE)","v":"MIBO Dept Admin"},"19260001","18400","RNSFXRR182429CV","A01","",""]
["19","182",null,null,"NSF      RF W/100647WHIT MORAN","1021RR182430","20000","12100","61023","19260001",{"$f":"VLOOKUP(TRIM(J2233),'Transactional Departments'!A:B,2,FALSE)","v":"MIBO Dept Admin"},"19260001","18400","RNSFXRR182430CV","A01","",""]
["19","182",null,null,"NSF      RF W/715221     LIPP ","1021RR182432","20000","12100","61023","19260001",{"$f":"VLOOKUP(TRIM(J2234),'Transactional Departments'!A:B,2,FALSE)","v":"MIBO Dept Admin"},"19260001","18400","RNSFXRR182432CV","A01","",""]
["19","182",null,null,"NIH      RF MYCOPLSM PNEUKRAUS","1021RR182434","20000","12100","61018","19260001",{"$f":"VLOOKUP(TRIM(J2235),'Transactional Departments'!A:B,2,FALSE)","v":"MIBO Dept Admin"},"19260001","18400","RNIHXRR182434CV","A01","",""]
["19","182",null,null,"         RF METHANOGEN   WHITM","1021RR182437","20000","12100","64000","19260001",{"$f":"VLOOKUP(TRIM(J2236),'Transactional Departments'!A:B,2,FALSE)","v":"MIBO Dept Admin"},"19260001","18003","SXXXXRR182437CV","A01","",""]
["19","182",null,null,"NSF      RF SULFER NET   WHITM","1021RR182438","20000","12100","61023","19260001",{"$f":"VLOOKUP(TRIM(J2237),'Transactional Departments'!A:B,2,FALSE)","v":"MIBO Dept Admin"},"19260001","18400","RNSFXRR182438CV","A01","",""]
["19","182",null,null,"NSF      RF PS W/182438  WHITM","1021RR182439","20000","12100","61023","19260001",{"$f":"VLOOKUP(TRIM(J2238),'Transactional Departments'!A:B,2,FALSE)","v":"MIBO Dept Admin"},"19260001","18400","RNSFXRR182439CV","A01","",""]
["19","182",null,null,"NSF      RF MYXOCOCCUS   SHIMK","1021RR182441","20000","12100","61023","19260001",{"$f":"VLOOKUP(TRIM(J2239),'Transactional Departments'!A:B,2,FALSE)","v":"MIBO Dept Admin"},"19260001","18400","RNSFXRR182441CV","A01","",""]
["19","182",null,null,"NIH      RF SIRT&META PI ESCAL","1021RR182442","20000","12100","61018","19260001",{"$f":"VLOOKUP(TRIM(J2240),'Transactional Departments'!A:B,2,FALSE)","v":"MIBO Dept Admin"},"19260001","18400","RNIHXRR182442CV","A01","",""]
["19","182",null,null,"ACS      RF HISTONE LYSI LEWIS","1021RR182443","20000","12100","64122","19260001",{"$f":"VLOOKUP(TRIM(J2241),'Transactional Departments'!A:B,2,FALSE)","v":"MIBO Dept Admin"},"19260001","18400","RAMCSRR182443CV","A01","",""]
["19","182",null,null,"NSF      RF REU SITE PROKSTARA","1021RR182446","20000","12100","61023","19260001",{"$f":"VLOOKUP(TRIM(J2242),'Transactional Departments'!A:B,2,FALSE)","v":"MIBO Dept Admin"},"19260001","18400","RNSFXRR182446CV","A01","",""]
["19","182",null,null,"NSF      RF PS W/ 182446 STARA","1021RR182447","20000","12100","61023","19260001",{"$f":"VLOOKUP(TRIM(J2243),'Transactional Departments'!A:B,2,FALSE)","v":"MIBO Dept Admin"},"19260001","18400","RNSFXRR182447CV","A01","",""]
["19","182",null,null,"NIH      RF RNA REPAIR___KARLS","1021RR182448","20000","12100","61018","19260001",{"$f":"VLOOKUP(TRIM(J2244),'Transactional Departments'!A:B,2,FALSE)","v":"MIBO Dept Admin"},"19260001","18400","RNIHXRR182448CV","A01","",""]
["19","182",null,null,"NIH      RF B12 BIOS ANA ESCAL","1021RR182449","20000","12100","61018","19260001",{"$f":"VLOOKUP(TRIM(J2245),'Transactional Departments'!A:B,2,FALSE)","v":"MIBO Dept Admin"},"19260001","18400","RNIHXRR182449CV","A01","",""]
["19","182",null,null,"USDA ARD RF FRYE LAB     HOOVE","1021RR182450","20000","12100","61004","19260001",{"$f":"VLOOKUP(TRIM(J2246),'Transactional Departments'!A:B,2,FALSE)","v":"MIBO Dept Admin"},"19260001","18400","RARSXRR182450CV","A01","",""]
["19","182",null,null,"UIL/NIH  RF RD ELONGATOR____WH","1021RR182452","20000","12100","62512","19260001",{"$f":"VLOOKUP(TRIM(J2247),'Transactional Departments'!A:B,2,FALSE)","v":"MIBO Dept Admin"},"19260001","18400","RUNICRR182452CV","A01","",""]
["19","182",null,null,"NIH      RF BAC INH EUK  STARA","1021RR182453","20000","12100","61018","19260001",{"$f":"VLOOKUP(TRIM(J2248),'Transactional Departments'!A:B,2,FALSE)","v":"MIBO Dept Admin"},"19260001","18400","RNIHXRR182453CV","A01","",""]
["19","182",null,null,"NSF      RF RF_EVOL OF PESTABB","1021RR182454","20000","12100","61023","19260001",{"$f":"VLOOKUP(TRIM(J2249),'Transactional Departments'!A:B,2,FALSE)","v":"MIBO Dept Admin"},"19260001","18400","RNSFXRR182454CV","A01","",""]
["19","182",null,null,"NSF      RF RF_FOREIGN GENEIDL","1021RR182455","20000","12100","61023","19260001",{"$f":"VLOOKUP(TRIM(J2250),'Transactional Departments'!A:B,2,FALSE)","v":"MIBO Dept Admin"},"19260001","18400","RNSFXRR182455CV","A01","",""]
["19","182",null,null,"NSF      RF MRAZEK W/182-455  ","1021RR182457","20000","12100","61023","19260001",{"$f":"VLOOKUP(TRIM(J2251),'Transactional Departments'!A:B,2,FALSE)","v":"MIBO Dept Admin"},"19260001","18400","RNSFXRR182457CV","A01","",""]
["19","182",null,null,"NIH      RF RF_YJGF SPR FDOWNS","1021RR182459","20000","12100","61018","19260001",{"$f":"VLOOKUP(TRIM(J2252),'Transactional Departments'!A:B,2,FALSE)","v":"MIBO Dept Admin"},"19260001","18400","RNIHXRR182459CV","A01","",""]
["19","182",null,null,"NSF      RF PS RR182441  SHIMK","1021RR182460","20000","12100","61023","19260001",{"$f":"VLOOKUP(TRIM(J2253),'Transactional Departments'!A:B,2,FALSE)","v":"MIBO Dept Admin"},"19260001","18400","RNSFXRR182460CV","A01","",""]
["19","182",null,null,"NIH      RF RD_INHIB HYDRMAIER","1021RR182461","20000","12100","61018","19260001",{"$f":"VLOOKUP(TRIM(J2254),'Transactional Departments'!A:B,2,FALSE)","v":"MIBO Dept Admin"},"19260001","18400","RNIHXRR182461CV","A01","",""]
["19","182",null,null,"USDA-ARS RF RF_FRYE LAB  HOOVE","1021RR182462","20000","12100","61004","19260001",{"$f":"VLOOKUP(TRIM(J2255),'Transactional Departments'!A:B,2,FALSE)","v":"MIBO Dept Admin"},"19260001","18400","RARSXRR182462CV","A01","",""]
["19","182",null,null,"NSF      RF RF_BILATERAL NEIDL","1021RR182463","20000","12100","61023","19260001",{"$f":"VLOOKUP(TRIM(J2256),'Transactional Departments'!A:B,2,FALSE)","v":"MIBO Dept Admin"},"19260001","18400","RNSFXRR182463CV","A01","",""]
["19","182",null,null,"         VARIOUS         STABB","1021RR182464","20000","12100","64206","19260002",{"$f":"VLOOKUP(TRIM(J2257),'Transactional Departments'!A:B,2,FALSE)","v":"MIBO Instruction"},"19260002","18003","SVARIRR182464CV","A01","",""]
["19","182",null,null,"NSF      RF RF_PURINE/HISDOWNS","1021RR182466","20000","12100","61023","19260001",{"$f":"VLOOKUP(TRIM(J2258),'Transactional Departments'!A:B,2,FALSE)","v":"MIBO Dept Admin"},"19260001","18400","RNSFXRR182466CV","A01","",""]
["19","182",null,null,"NSF      RF RF_PURINE/HISDOWNS","1021RR182467","20000","12100","61023","19260001",{"$f":"VLOOKUP(TRIM(J2259),'Transactional Departments'!A:B,2,FALSE)","v":"MIBO Dept Admin"},"19260001","18400","RNSFXRR182467CV","A01","",""]
["19","182",null,null,"NIH      RF RF_EUTT ADENOESCAL","1021RR182468","20000","12100","61018","19260001",{"$f":"VLOOKUP(TRIM(J2260),'Transactional Departments'!A:B,2,FALSE)","v":"MIBO Dept Admin"},"19260001","18400","RNIHXRR182468CV","A01","",""]
["19","182",null,null,"NREL/DOE RF RF_ON-BOARDINNEIDL","1021RR182470","20000","12100","64337","19260001",{"$f":"VLOOKUP(TRIM(J2261),'Transactional Departments'!A:B,2,FALSE)","v":"MIBO Dept Admin"},"19260001","18400","RRENERR182470CV","A01","",""]
["19","182",null,null,"NSF      RF RF_VIBRIO FISSTABB","1021RR182472","20000","12100","61023","19260001",{"$f":"VLOOKUP(TRIM(J2262),'Transactional Departments'!A:B,2,FALSE)","v":"MIBO Dept Admin"},"19260001","18400","RNSFXRR182472CV","A01","",""]
["19","182",null,null,"SASYA/USDRF FISHMEAL_ALT_WHITM","1021RR182474","20000","12100","64090","19260001",{"$f":"VLOOKUP(TRIM(J2263),'Transactional Departments'!A:B,2,FALSE)","v":"MIBO Dept Admin"},"19260001","18400","RSASYRR182474CV","A01","",""]
["19","182",null,null,"USDA-ARS RF RF_ACQUISITIOHOOVE","1021RR182475","20000","12100","61004","19260001",{"$f":"VLOOKUP(TRIM(J2264),'Transactional Departments'!A:B,2,FALSE)","v":"MIBO Dept Admin"},"19260001","18400","RARSXRR182475CV","A01","",""]
["19","182",null,null,"BWF      RF FUNGAL ADH   LIN  ","1021RR182477","20000","12100","64447","19260001",{"$f":"VLOOKUP(TRIM(J2265),'Transactional Departments'!A:B,2,FALSE)","v":"MIBO Dept Admin"},"19260001","18400","RBUWFRR182477CV","A01","",""]
["19","182",null,null,"US DOE   RF RF_EXPRESSIONWHITM","1021RR182478","20000","12100","61001","19260001",{"$f":"VLOOKUP(TRIM(J2266),'Transactional Departments'!A:B,2,FALSE)","v":"MIBO Dept Admin"},"19260001","18400","RUSDERR182478CV","A01","",""]
["19","182",null,null,"CDC      RF RF_THE PREVALOTTES","1021RR182480","20000","12100","61031","19260001",{"$f":"VLOOKUP(TRIM(J2267),'Transactional Departments'!A:B,2,FALSE)","v":"MIBO Dept Admin"},"19260001","18400","RCDCXRR182480CV","A01","",""]
["19","185",null,null,"BORUSG   USG W/007-035   BURG ","1011RH185481","20000","11100","62020","19550INS",{"$f":"VLOOKUP(TRIM(J2268),'Transactional Departments'!A:B,2,FALSE)","v":"PHYS Instruction"},"19550INS","18003","SGBORRH185481CV","A01","",""]
["19","185",null,null,"NSF      RF SERS MIRNAS  ZHAO ","1021RR185434","20000","12100","61023","19550INS",{"$f":"VLOOKUP(TRIM(J2269),'Transactional Departments'!A:B,2,FALSE)","v":"PHYS Instruction"},"19550INS","18400","RNSFXRR185434CV","A01","",""]
["19","185",null,null,"         RF STANGE SYSTEMNAKAY","1021RR185435","20000","12100","64000","19550INS",{"$f":"VLOOKUP(TRIM(J2270),'Transactional Departments'!A:B,2,FALSE)","v":"PHYS Instruction"},"19550INS","18003","SKNNURR185435CV","A01","",""]
["19","185",null,null,"NASA     RF ASTROPHYSICS STANC","1021RR185447","20000","12100","61022","19550INS",{"$f":"VLOOKUP(TRIM(J2271),'Transactional Departments'!A:B,2,FALSE)","v":"PHYS Instruction"},"19550INS","18400","RNASARR185447CV","A01","",""]
["19","185",null,null,"NASA     RF HIGH VELOCITYSHELT","1021RR185451","20000","12100","61022","19550INS",{"$f":"VLOOKUP(TRIM(J2272),'Transactional Departments'!A:B,2,FALSE)","v":"PHYS Instruction"},"19550INS","18400","RNASARR185451CV","A01","",""]
["19","185",null,null,"USEPA    RF W/ RC287-557 STICE","1021RR185455","20000","12100","61032","19550INS",{"$f":"VLOOKUP(TRIM(J2273),'Transactional Departments'!A:B,2,FALSE)","v":"PHYS Instruction"},"19550INS","18400","RUSEARR185455CV","A01","",""]
["19","185",null,null,"NIH/UNTX RF THROMBOLYTIC ZHAO ","1021RR185457","20000","12100","62572","19550INS",{"$f":"VLOOKUP(TRIM(J2274),'Transactional Departments'!A:B,2,FALSE)","v":"PHYS Instruction"},"19550INS","18400","RUNTXRR185457CV","A01","",""]
["19","185",null,null,"NSF      RF PS W/ 185-458LEWIS","1021RR185459","20000","12100","61023","19550INS",{"$f":"VLOOKUP(TRIM(J2275),'Transactional Departments'!A:B,2,FALSE)","v":"PHYS Instruction"},"19550INS","18400","RNSFXRR185459CV","A01","",""]
["19","185",null,null,"NSF      RF METAMATERIAL ZHAO ","1021RR185460","20000","12100","61023","19550INS",{"$f":"VLOOKUP(TRIM(J2276),'Transactional Departments'!A:B,2,FALSE)","v":"PHYS Instruction"},"19550INS","18400","RNSFXRR185460CV","A01","",""]
["19","185",null,null,"NSF      RF SKIN CHROMO  ULLRI","1021RR185461","20000","12100","61023","19550INS",{"$f":"VLOOKUP(TRIM(J2277),'Transactional Departments'!A:B,2,FALSE)","v":"PHYS Instruction"},"19550INS","18400","RNSFXRR185461CV","A01","",""]
["19","185",null,null,"AU/NASA  RF ATOMIC FINE  STANC","1021RR185467","20000","12100","62538","19550INS",{"$f":"VLOOKUP(TRIM(J2278),'Transactional Departments'!A:B,2,FALSE)","v":"PHYS Instruction"},"19550INS","18400","RAUBURR185467CV","A01","",""]
["19","185",null,null,"NASA     RF SLF-CON ASTR_STANC","1021RR185468","20000","12100","61022","19550INS",{"$f":"VLOOKUP(TRIM(J2279),'Transactional Departments'!A:B,2,FALSE)","v":"PHYS Instruction"},"19550INS","18400","RNASARR185468CV","A01","",""]
["19","185",null,null,"AC       RF LHPG TECHNIQ HAPPE","1021RR185469","20000","12100","64548","19550INS",{"$f":"VLOOKUP(TRIM(J2280),'Transactional Departments'!A:B,2,FALSE)","v":"PHYS Instruction"},"19550INS","18400","RAZCORR185469CV","A01","",""]
["19","185",null,null,"NSF      RF RF_COOP MESO BACHM","1021RR185471","20000","12100","61023","19550INS",{"$f":"VLOOKUP(TRIM(J2281),'Transactional Departments'!A:B,2,FALSE)","v":"PHYS Instruction"},"19550INS","18400","RNSFXRR185471CV","A01","",""]
["19","185",null,null,"NCSU/USDARF W/319284          ","1021RR185472","20000","12100","62506","19550INS",{"$f":"VLOOKUP(TRIM(J2282),'Transactional Departments'!A:B,2,FALSE)","v":"PHYS Instruction"},"19550INS","18400","RNCSURR185472CV","A01","",""]
["19","185",null,null,"USRA/NASARF RF_FORCAST SPSONG ","1021RR185473","20000","12100","64180","19550INS",{"$f":"VLOOKUP(TRIM(J2283),'Transactional Departments'!A:B,2,FALSE)","v":"PHYS Instruction"},"19550INS","18400","RUSRARR185473CV","A01","",""]
["19","185",null,null,"NASA     RF MOLEC RO-VIBRSTANC","1021RR185474","20000","12100","61022","19550INS",{"$f":"VLOOKUP(TRIM(J2284),'Transactional Departments'!A:B,2,FALSE)","v":"PHYS Instruction"},"19550INS","18400","RNASARR185474CV","A01","",""]
["19","185",null,null,"USRA     RF RF_WARM DISK SONG ","1021RR185475","20000","12100","64180","19550INS",{"$f":"VLOOKUP(TRIM(J2285),'Transactional Departments'!A:B,2,FALSE)","v":"PHYS Instruction"},"19550INS","18400","RUSRARR185475CV","A01","",""]
["19","185",null,null,"USRA     RF RF_COLL DISK SONG ","1021RR185476","20000","12100","64180","19550INS",{"$f":"VLOOKUP(TRIM(J2286),'Transactional Departments'!A:B,2,FALSE)","v":"PHYS Instruction"},"19550INS","18400","RUSRARR185476CV","A01","",""]
["19","185",null,null,"NSF      RF ELECTRIC FIE ZHAO ","1021RR185482","20000","12100","61023","19550INS",{"$f":"VLOOKUP(TRIM(J2287),'Transactional Departments'!A:B,2,FALSE)","v":"PHYS Instruction"},"19550INS","18400","RNSFXRR185482CV","A01","",""]
["19","185",null,null,"SRNS     RF RF_NANO METALZHAO ","1021RR185483","20000","12100","64038","19550INS",{"$f":"VLOOKUP(TRIM(J2288),'Transactional Departments'!A:B,2,FALSE)","v":"PHYS Instruction"},"19550INS","18400","RSRNSRR185483CV","A01","",""]
["19","185",null,null,"NIH      RF RC287-436    KARUM","1021RR185484","20000","12100","61018","19550INS",{"$f":"VLOOKUP(TRIM(J2289),'Transactional Departments'!A:B,2,FALSE)","v":"PHYS Instruction"},"19550INS","18400","RNIHXRR185484CV","A01","",""]
["19","187",null,null,"         RF CHOA TRANSPL BLOUN","1021RR187194","20000","12100","64359","19640GEN",{"$f":"VLOOKUP(TRIM(J2290),'Transactional Departments'!A:B,2,FALSE)","v":"PSYC Psychology General"},"19640GEN","18003","SCHALRR187194CV","A01","",""]
["19","187",null,null,"         RF CHDI LK/ADD  MCDOW","1021RR187231","20000","12100","62000","19640GEN",{"$f":"VLOOKUP(TRIM(J2291),'Transactional Departments'!A:B,2,FALSE)","v":"PSYC Psychology General"},"19640GEN","18003","SXXXXRR187231CV","A01","",""]
["19","187",null,null,"         RF COGNITIVE FN STRIN","1021RR187244","20000","12100","64061","19640GEN",{"$f":"VLOOKUP(TRIM(J2292),'Transactional Departments'!A:B,2,FALSE)","v":"PSYC Psychology General"},"19640GEN","18003","SOHTLRR187244CV","A01","",""]
["19","187",null,null,"UIL/AL   RF COGNITION    HAMMO","1021RR187252","20000","12100","62512","19640GEN",{"$f":"VLOOKUP(TRIM(J2293),'Transactional Departments'!A:B,2,FALSE)","v":"PSYC Psychology General"},"19640GEN","18400","RUNICRR187252CV","A01","",""]
["19","187",null,null,"SIOP     ASSESS CENTER   HOFFM","1021RR187254","20000","12100","64416","19640GEN",{"$f":"VLOOKUP(TRIM(J2294),'Transactional Departments'!A:B,2,FALSE)","v":"PSYC Psychology General"},"19640GEN","18003","SSIOPRR187254CV","A01","",""]
["19","187",null,null,"J&J      RF PHOTOCHROMIC MILLE","1021RR187255","20000","12100","64005","19640GEN",{"$f":"VLOOKUP(TRIM(J2295),'Transactional Departments'!A:B,2,FALSE)","v":"PSYC Psychology General"},"19640GEN","18400","RJOJORR187255CV","A01","",""]
["19","187",null,null,"J&J      RF LENS DYE     HAMMO","1021RR187257","20000","12100","64005","19640GEN",{"$f":"VLOOKUP(TRIM(J2296),'Transactional Departments'!A:B,2,FALSE)","v":"PSYC Psychology General"},"19640GEN","18400","RJOJORR187257CV","A01","",""]
["19","187",null,null,"USF/CDC  RF UNCOMP OT    CARTE","1021RR187259","20000","12100","62542","19640GEN",{"$f":"VLOOKUP(TRIM(J2297),'Transactional Departments'!A:B,2,FALSE)","v":"PSYC Psychology General"},"19640GEN","18400","RUSFXRR187259CV","A01","",""]
["19","187",null,null,"OHTLTD   RF MACULAR      HOLME","1021RR187261","20000","12100","64061","19640GEN",{"$f":"VLOOKUP(TRIM(J2298),'Transactional Departments'!A:B,2,FALSE)","v":"PSYC Psychology General"},"19640GEN","18400","ROHTLRR187261CV","A01","",""]
["19","187",null,null,"NGS      RF NUT-CRACKING FRAGA","1021RR187262","20000","12100","64278","19640GEN",{"$f":"VLOOKUP(TRIM(J2299),'Transactional Departments'!A:B,2,FALSE)","v":"PSYC Psychology General"},"19640GEN","18400","RNGEORR187262CV","A01","",""]
["19","189",null,null,"NEH      FERNAO LOPES    HUTCH","1021RR189057","20000","12100","61025","19490100",{"$f":"VLOOKUP(TRIM(J2300),'Transactional Departments'!A:B,2,FALSE)","v":"ROML General Administration"},"19490100","18003","SNEFHRR189057CV","A01","",""]
["19","190",null,null,"TU       SMILDE          CLAY-","1011RH190101","20000","11100","64185","19650001",{"$f":"VLOOKUP(TRIM(J2301),'Transactional Departments'!A:B,2,FALSE)","v":"SOCI Sociology General"},"19650001","18003","STULARH190101CV","A01","",""]
["19","190",null,null,"PU/USDA  RF NUTRITION    SHANN","1021RR190035","20000","12100","62508","19650001",{"$f":"VLOOKUP(TRIM(J2302),'Transactional Departments'!A:B,2,FALSE)","v":"SOCI Sociology General"},"19650001","18400","RPURDRR190035CV","A01","",""]
["19","190",null,null,"UW       RF MONETRY SANC SHANN","1021RR190036","20000","12100","62541","19650001",{"$f":"VLOOKUP(TRIM(J2303),'Transactional Departments'!A:B,2,FALSE)","v":"SOCI Sociology General"},"19650001","18400","RUOWARR190036CV","A01","",""]
["19","190",null,null,"ASA      REBECCA BOYLAN  RENZU","1031RE190037","20000","13100","64300","19650001",{"$f":"VLOOKUP(TRIM(J2304),'Transactional Departments'!A:B,2,FALSE)","v":"SOCI Sociology General"},"19650001","18003","SAMSORE190037CV","A01","",""]
["19","190",null,null,"RU       W/ 148-028      COVER","1031RE190103","20000","13100","64238","19650JCO",{"$f":"VLOOKUP(TRIM(J2305),'Transactional Departments'!A:B,2,FALSE)","v":"SOCI James Coverdill RU"},"19650JCO","18003","SRICERE190103CV","A01","",""]
["19","193",null,null,"NSF      RF COLLABORATIV SRIRA","1021RR193146","20000","12100","61023","19560001",{"$f":"VLOOKUP(TRIM(J2306),'Transactional Departments'!A:B,2,FALSE)","v":"STAT General"},"19560001","18400","RNSFXRR193146CV","A01","",""]
["19","193",null,null,"NSF      RF NAT NETWORK  KAPLA","1021RR193148","20000","12100","61023","19560001",{"$f":"VLOOKUP(TRIM(J2307),'Transactional Departments'!A:B,2,FALSE)","v":"STAT General"},"19560001","18400","RNSFXRR193148CV","A01","",""]
["19","193",null,null,"USDOE    RF W/ 284614 SCHLIEKE","1021RR193151","20000","12100","61001","19560001",{"$f":"VLOOKUP(TRIM(J2308),'Transactional Departments'!A:B,2,FALSE)","v":"STAT General"},"19560001","18400","RUSDERR193151CV","A01","",""]
["19","193",null,null,"NSF      RF GEOPHYSICS   MA   ","1021RR193152","20000","12100","61023","19560001",{"$f":"VLOOKUP(TRIM(J2309),'Transactional Departments'!A:B,2,FALSE)","v":"STAT General"},"19560001","18400","RNSFXRR193152CV","A01","",""]
["19","193",null,null,"NIH      RF EPIGENETIC   ZHONG","1021RR193157","20000","12100","61018","19560001",{"$f":"VLOOKUP(TRIM(J2310),'Transactional Departments'!A:B,2,FALSE)","v":"STAT General"},"19560001","18400","RNIHXRR193157CV","A01","",""]
["19","193",null,null,"USDA ARS RF NEXT BIOINFO SEYMO","1021RR193158","20000","12100","61004","19560001",{"$f":"VLOOKUP(TRIM(J2311),'Transactional Departments'!A:B,2,FALSE)","v":"STAT General"},"19560001","18400","RARSXRR193158CV","A01","",""]
["19","193",null,null,"NSF      RF RF_ACTIVE LRNKAPLA","1021RR193159","20000","12100","61023","19560001",{"$f":"VLOOKUP(TRIM(J2312),'Transactional Departments'!A:B,2,FALSE)","v":"STAT General"},"19560001","18400","RNSFXRR193159CV","A01","",""]
["19","193",null,null,"GVSU     RF HIGH IMPACT  KAPLA","1021RR193160","20000","12100","62574","19560001",{"$f":"VLOOKUP(TRIM(J2313),'Transactional Departments'!A:B,2,FALSE)","v":"STAT General"},"19560001","18400","RGVSURR193160CV","A01","",""]
["19","193",null,null,"CDC/HHS     STAT TEAM LEADATTA","1021RR193163","20000","12100","61017","19560001",{"$f":"VLOOKUP(TRIM(J2314),'Transactional Departments'!A:B,2,FALSE)","v":"STAT General"},"19560001","18003","SDHHSRR193163CV","A01","",""]
["19","193",null,null,"NSF      RF BRAINPACK    PARK ","1021RR193164","20000","12100","61023","19560001",{"$f":"VLOOKUP(TRIM(J2315),'Transactional Departments'!A:B,2,FALSE)","v":"STAT General"},"19560001","18400","RNSFXRR193164CV","A01","",""]
["19","193",null,null,"RTI      RF COMPLEX SURV DATTA","1021RR193166","20000","12100","64281","19560001",{"$f":"VLOOKUP(TRIM(J2316),'Transactional Departments'!A:B,2,FALSE)","v":"STAT General"},"19560001","18400","RRTRIRR193166CV","A01","",""]
["19","193",null,null,"NSF      RF METAGENOMIC  MA   ","1021RR193657","20000","12100","61023","19560001",{"$f":"VLOOKUP(TRIM(J2317),'Transactional Departments'!A:B,2,FALSE)","v":"STAT General"},"19560001","18400","RNSFXRR193657CV","A01","",""]
["19","193",null,null,"NIH      RF SMALL RNAS   MA   ","1021RR193658","20000","12100","61018","19560001",{"$f":"VLOOKUP(TRIM(J2318),'Transactional Departments'!A:B,2,FALSE)","v":"STAT General"},"19560001","18400","RNIHXRR193658CV","A01","",""]
["19","194",null,null,"         RF RAMAKRISHNAN STRIE","1021RR194334","20000","12100","64127","19230DPT",{"$f":"VLOOKUP(TRIM(J2319),'Transactional Departments'!A:B,2,FALSE)","v":"CBIO Dept Accts"},"19230DPT","18003","SAHTARR194334CV","A01","",""]
["19","194",null,null,"NIH      RF CUL2E3 CMPLX KIPRE","1021RR194338","20000","12100","61018","19230DPT",{"$f":"VLOOKUP(TRIM(J2320),'Transactional Departments'!A:B,2,FALSE)","v":"CBIO Dept Accts"},"19230DPT","18400","RNIHXRR194338CV","A01","",""]
["19","194",null,null,"IRNDD/NIHRF HTS ASSAY    MENSA","1021RR194340","20000","12100","64154","19230DPT",{"$f":"VLOOKUP(TRIM(J2321),'Transactional Departments'!A:B,2,FALSE)","v":"CBIO Dept Accts"},"19230DPT","18400","RIRNDRR194340CV","A01","",""]
["19","194",null,null,"NIH      RF DROSPHLA STDYSHEN ","1021RR194345","20000","12100","61018","19230DPT",{"$f":"VLOOKUP(TRIM(J2322),'Transactional Departments'!A:B,2,FALSE)","v":"CBIO Dept Accts"},"19230DPT","18400","RNIHXRR194345CV","A01","",""]
["19","194",null,null,"NSF      RF MELANOGASTER SCHUL","1021RR194346","20000","12100","61023","19230DPT",{"$f":"VLOOKUP(TRIM(J2323),'Transactional Departments'!A:B,2,FALSE)","v":"CBIO Dept Accts"},"19230DPT","18400","RNSFXRR194346CV","A01","",""]
["19","194",null,null,"NSF      RF PS W/194346  SCHUL","1021RR194347","20000","12100","61023","19230DPT",{"$f":"VLOOKUP(TRIM(J2324),'Transactional Departments'!A:B,2,FALSE)","v":"CBIO Dept Accts"},"19230DPT","18400","RNSFXRR194347CV","A01","",""]
["19","194",null,null,"NIH      RF CELIA PRTN __LECHT","1021RR194350","20000","12100","61018","19230DPT",{"$f":"VLOOKUP(TRIM(J2325),'Transactional Departments'!A:B,2,FALSE)","v":"CBIO Dept Accts"},"19230DPT","18400","RNIHXRR194350CV","A01","",""]
["19","194",null,null,"WMKF     RF W/_549-520   TIEME","1021RR194355","20000","12100","64453","19230DPT",{"$f":"VLOOKUP(TRIM(J2326),'Transactional Departments'!A:B,2,FALSE)","v":"CBIO Dept Accts"},"19230DPT","18400","RKECKRR194355CV","A01","",""]
["19","194",null,null,"NIH      RF W/ 166850 TARLETON","1021RR194358","20000","12100","61018","19230DPT",{"$f":"VLOOKUP(TRIM(J2327),'Transactional Departments'!A:B,2,FALSE)","v":"CBIO Dept Accts"},"19230DPT","18400","RNIHXRR194358CV","A01","",""]
["19","194",null,null,"AHA      2ND YR LOUKA    GAERT","1021RR194360","20000","12100","64127","19230DPT",{"$f":"VLOOKUP(TRIM(J2328),'Transactional Departments'!A:B,2,FALSE)","v":"CBIO Dept Accts"},"19230DPT","18003","SAHTARR194360CV","A01","",""]
["19","194",null,null,"CGF      RF CHILD GLAU        ","1021RR194362","20000","12100","64444","19230DPT",{"$f":"VLOOKUP(TRIM(J2329),'Transactional Departments'!A:B,2,FALSE)","v":"CBIO Dept Accts"},"19230DPT","18400","RCHGFRR194362CV","A01","",""]
["19","194",null,null,"NU/NIH   RF HIT TO LEAD  MENSA","1021RR194364","20000","12100","64308","19230DPT",{"$f":"VLOOKUP(TRIM(J2330),'Transactional Departments'!A:B,2,FALSE)","v":"CBIO Dept Accts"},"19230DPT","18400","RNORTRR194364CV","A01","",""]
["19","194",null,null,"NIH      RF TISSUE MEM   KLONO","1021RR194365","20000","12100","61018","19230DPT",{"$f":"VLOOKUP(TRIM(J2331),'Transactional Departments'!A:B,2,FALSE)","v":"CBIO Dept Accts"},"19230DPT","18400","RNIHXRR194365CV","A01","",""]
["19","194",null,null,"NSF      RF BIOLOGY EDU  STANT","1021RR194366","20000","12100","61023","19230DPT",{"$f":"VLOOKUP(TRIM(J2332),'Transactional Departments'!A:B,2,FALSE)","v":"CBIO Dept Accts"},"19230DPT","18400","RNSFXRR194366CV","A01","",""]
["19","194",null,null,"NSF      RF W/194-366    STANT","1021RR194367","20000","12100","61023","19230DPT",{"$f":"VLOOKUP(TRIM(J2333),'Transactional Departments'!A:B,2,FALSE)","v":"CBIO Dept Accts"},"19230DPT","18400","RNSFXRR194367CV","A01","",""]
["19","194",null,null,"NIH      RF CURAXIN 137  MENSA","1021RR194368","20000","12100","61018","19230DPT",{"$f":"VLOOKUP(TRIM(J2334),'Transactional Departments'!A:B,2,FALSE)","v":"CBIO Dept Accts"},"19230DPT","18400","RNIHXRR194368CV","A01","",""]
["19","194",null,null,"NIH      RF CILIUM LGTH  GAERT","1021RR194369","20000","12100","61018","19230DPT",{"$f":"VLOOKUP(TRIM(J2335),'Transactional Departments'!A:B,2,FALSE)","v":"CBIO Dept Accts"},"19230DPT","18400","RNIHXRR194369CV","A01","",""]
["19","194",null,null,"MEDISYN  RF HAT          MENSA","1021RR194370","20000","12100","64000","19230DPT",{"$f":"VLOOKUP(TRIM(J2336),'Transactional Departments'!A:B,2,FALSE)","v":"CBIO Dept Accts"},"19230DPT","18400","RXXXXRR194370CV","A01","",""]
["19","194",null,null,"GRA      RF IMP ENGINEE  LAUDE","1021RR194371","20000","12100","62062","19230DPT",{"$f":"VLOOKUP(TRIM(J2337),'Transactional Departments'!A:B,2,FALSE)","v":"CBIO Dept Accts"},"19230DPT","18400","RGRAXRR194371CV","A01","",""]
["19","540",null,null,"BORUSG   USG W/007-035   BURG ","1011RH540194","20000","11100","62020","19520100",{"$f":"VLOOKUP(TRIM(J2338),'Transactional Departments'!A:B,2,FALSE)","v":"COMP SCI General Ops"},"19520100","18003","SGBORRH540194CV","A01","",""]
["19","540",null,null,"BOR/USG  W/007-036 STEM  BURG ","1011RH540198","20000","11100","62020","19520100",{"$f":"VLOOKUP(TRIM(J2339),'Transactional Departments'!A:B,2,FALSE)","v":"COMP SCI General Ops"},"19520100","18003","SGBORRH540198CV","A01","",""]
["19","540",null,null,"         LSDIS LAB KOCHU KOCHU","1021RR540048","20000","12100","64000","19520100",{"$f":"VLOOKUP(TRIM(J2340),'Transactional Departments'!A:B,2,FALSE)","v":"COMP SCI General Ops"},"19520100","18003","SXXXXRR540048CV","A01","",""]
["19","540",null,null,"         VAR GIFTS ROBOTSPOTTE","1021RR540130","20000","12100","64206","19520100",{"$f":"VLOOKUP(TRIM(J2341),'Transactional Departments'!A:B,2,FALSE)","v":"COMP SCI General Ops"},"19520100","18003","SVARIRR540130CV","A01","",""]
["19","540",null,null,"PENN/NIH RF SUP 374-062  KISSI","1021RR540148","20000","12100","62523","19520100",{"$f":"VLOOKUP(TRIM(J2342),'Transactional Departments'!A:B,2,FALSE)","v":"COMP SCI General Ops"},"19520100","18400","RUPENRR540148CV","A01","",""]
["19","540",null,null,"PENN/NIH RF SUB W 374069 KISSI","1021RR540149","20000","12100","62523","19520100",{"$f":"VLOOKUP(TRIM(J2343),'Transactional Departments'!A:B,2,FALSE)","v":"COMP SCI General Ops"},"19520100","18400","RUPENRR540149CV","A01","",""]
["19","540",null,null,"         VAR RSCH        LIU  ","1021RR540152","20000","12100","64206","19520100",{"$f":"VLOOKUP(TRIM(J2344),'Transactional Departments'!A:B,2,FALSE)","v":"COMP SCI General Ops"},"19520100","18003","SVARIRR540152CV","A01","",""]
["19","540",null,null,"NSF      RF MALIC DOMAIN PERDI","1021RR540157","20000","12100","61023","19520100",{"$f":"VLOOKUP(TRIM(J2345),'Transactional Departments'!A:B,2,FALSE)","v":"COMP SCI General Ops"},"19520100","18400","RNSFXRR540157CV","A01","",""]
["19","540",null,null,"         RF VRTUAL FOLDR KOCHU","1021RR540159","20000","12100","64292","19520100",{"$f":"VLOOKUP(TRIM(J2346),'Transactional Departments'!A:B,2,FALSE)","v":"COMP SCI General Ops"},"19520100","18003","SUTBARR540159CV","A01","",""]
["19","540",null,null,"NIH      RF PREN COC EXP LIU  ","1021RR540160","20000","12100","61018","19520100",{"$f":"VLOOKUP(TRIM(J2347),'Transactional Departments'!A:B,2,FALSE)","v":"COMP SCI General Ops"},"19520100","18400","RNIHXRR540160CV","A01","",""]
["19","540",null,null,"NSF      RF MALWARE DETC PERDI","1021RR540162","20000","12100","61023","19520100",{"$f":"VLOOKUP(TRIM(J2348),'Transactional Departments'!A:B,2,FALSE)","v":"COMP SCI General Ops"},"19520100","18400","RNSFXRR540162CV","A01","",""]
["19","540",null,null,"NSF      RF BRAIN ARCHIT LIU  ","1021RR540164","20000","12100","61023","19520100",{"$f":"VLOOKUP(TRIM(J2349),'Transactional Departments'!A:B,2,FALSE)","v":"COMP SCI General Ops"},"19520100","18400","RNSFXRR540164CV","A01","",""]
["19","540",null,null,"         RF SCIENCE TECH LI   ","1021RR540171","20000","12100","64394","19520100",{"$f":"VLOOKUP(TRIM(J2350),'Transactional Departments'!A:B,2,FALSE)","v":"COMP SCI General Ops"},"19520100","18003","SINTERR540171CV","A01","",""]
["19","540",null,null,"         RF MENTAL MODEL DOSHI","1021RR540172","20000","12100","61015","19520100",{"$f":"VLOOKUP(TRIM(J2351),'Transactional Departments'!A:B,2,FALSE)","v":"COMP SCI General Ops"},"19520100","18003","SUSNXRR540172CV","A01","",""]
["19","540",null,null,"NSF      RF EXPLORE GYRI LIU  ","1021RR540173","20000","12100","61023","19520100",{"$f":"VLOOKUP(TRIM(J2352),'Transactional Departments'!A:B,2,FALSE)","v":"COMP SCI General Ops"},"19520100","18400","RNSFXRR540173CV","A01","",""]
["19","540",null,null,"NSF      RF SMALL FLAWS  LI   ","1021RR540175","20000","12100","61023","19520100",{"$f":"VLOOKUP(TRIM(J2353),'Transactional Departments'!A:B,2,FALSE)","v":"COMP SCI General Ops"},"19520100","18400","RNSFXRR540175CV","A01","",""]
["19","540",null,null,"NSF      RF ENHANCE SECR LI   ","1021RR540177","20000","12100","61023","19520100",{"$f":"VLOOKUP(TRIM(J2354),'Transactional Departments'!A:B,2,FALSE)","v":"COMP SCI General Ops"},"19520100","18400","RNSFXRR540177CV","A01","",""]
["19","540",null,null,"NSF      RF CYBERSEES    RAMAS","1021RR540179","20000","12100","61023","19520100",{"$f":"VLOOKUP(TRIM(J2355),'Transactional Departments'!A:B,2,FALSE)","v":"COMP SCI General Ops"},"19520100","18400","RNSFXRR540179CV","A01","",""]
["19","540",null,null,"NSF      RF BRAIN FUNCTI LIU  ","1021RR540181","20000","12100","61023","19520100",{"$f":"VLOOKUP(TRIM(J2356),'Transactional Departments'!A:B,2,FALSE)","v":"COMP SCI General Ops"},"19520100","18400","RNSFXRR540181CV","A01","",""]
["19","540",null,null,"CESU     RF SE COAST     RAMAS","1021RR540182","20000","12100","61034","19520100",{"$f":"VLOOKUP(TRIM(J2357),'Transactional Departments'!A:B,2,FALSE)","v":"COMP SCI General Ops"},"19520100","18400","RCESURR540182CV","A01","",""]
["19","540",null,null,"NSF      RF REN EN SMT G_DOSHI","1021RR540185","20000","12100","61023","19520100",{"$f":"VLOOKUP(TRIM(J2358),'Transactional Departments'!A:B,2,FALSE)","v":"COMP SCI General Ops"},"19520100","18400","RNSFXRR540185CV","A01","",""]
["19","540",null,null,"NSF      RF RF_X-CHANN ATPERDI","1021RR540186","20000","12100","61023","19520100",{"$f":"VLOOKUP(TRIM(J2359),'Transactional Departments'!A:B,2,FALSE)","v":"COMP SCI General Ops"},"19520100","18400","RNSFXRR540186CV","A01","",""]
["19","540",null,null,"NIH      RF RF_RNA SEQU 3CAI  ","1021RR540187","20000","12100","61018","19520100",{"$f":"VLOOKUP(TRIM(J2360),'Transactional Departments'!A:B,2,FALSE)","v":"COMP SCI General Ops"},"19520100","18400","RNIHXRR540187CV","A01","",""]
["19","540",null,null,"TEMA     RF AUTO CARS____DOSHI","1021RR540188","20000","12100","64014","19520100",{"$f":"VLOOKUP(TRIM(J2361),'Transactional Departments'!A:B,2,FALSE)","v":"COMP SCI General Ops"},"19520100","18400","RTOYORR540188CV","A01","",""]
["19","540",null,null,"SRI/USAF RF TRACE________LEE  ","1021RR540189","20000","12100","64333","19520100",{"$f":"VLOOKUP(TRIM(J2362),'Transactional Departments'!A:B,2,FALSE)","v":"COMP SCI General Ops"},"19520100","18400","RSRIIRR540189CV","A01","",""]
["19","540",null,null,"ACCENTURERF RF_DATA HARMORAMAS","1021RR540190","20000","12100","64497","19520100",{"$f":"VLOOKUP(TRIM(J2363),'Transactional Departments'!A:B,2,FALSE)","v":"COMP SCI General Ops"},"19520100","18400","RACCERR540190CV","A01","",""]
["19","540",null,null,"NIH      RF PREN COC EXP LIU  ","1021RR540191","20000","12100","61018","19520100",{"$f":"VLOOKUP(TRIM(J2364),'Transactional Departments'!A:B,2,FALSE)","v":"COMP SCI General Ops"},"19520100","18400","RNIHXRR540191CV","A01","",""]
["19","540",null,null,"UPENN/NSFRF RFABI INNOVATN REE","1021RR540192","20000","12100","64189","19520100",{"$f":"VLOOKUP(TRIM(J2365),'Transactional Departments'!A:B,2,FALSE)","v":"COMP SCI General Ops"},"19520100","18400","RUPITRR540192CV","A01","",""]
["19","540",null,null,"NIH      RF LRG SCL BRAINLIU  ","1021RR540193","20000","12100","61018","19520100",{"$f":"VLOOKUP(TRIM(J2366),'Transactional Departments'!A:B,2,FALSE)","v":"COMP SCI General Ops"},"19520100","18400","RNIHXRR540193CV","A01","",""]
["19","540",null,null,"NSF      RF RR175-292    MISHR","1021RR540195","20000","12100","61023","19520100",{"$f":"VLOOKUP(TRIM(J2367),'Transactional Departments'!A:B,2,FALSE)","v":"COMP SCI General Ops"},"19520100","18400","RNSFXRR540195CV","A01","",""]
["19","540",null,null,"GA TECH  RF RF_RHAMNOUSIAPERDI","1021RR540196","20000","12100","64279","19520100",{"$f":"VLOOKUP(TRIM(J2368),'Transactional Departments'!A:B,2,FALSE)","v":"COMP SCI General Ops"},"19520100","18400","RGTRCRR540196CV","A01","",""]
["19","540",null,null,"NSF      RF RF_SATC: COREPERDI","1021RR540197","20000","12100","61023","19520100",{"$f":"VLOOKUP(TRIM(J2369),'Transactional Departments'!A:B,2,FALSE)","v":"COMP SCI General Ops"},"19520100","18400","RNSFXRR540197CV","A01","",""]
["19","540",null,null,"NSF      RF RF_RI:RAPID__DOSHI","1021RR540199","20000","12100","61023","19520100",{"$f":"VLOOKUP(TRIM(J2370),'Transactional Departments'!A:B,2,FALSE)","v":"COMP SCI General Ops"},"19520100","18400","RNSFXRR540199CV","A01","",""]
["19","540",null,null,"         CS GRAD ED SUPPOCANFI","1021RR540657","20000","12100","64206","19520100",{"$f":"VLOOKUP(TRIM(J2371),'Transactional Departments'!A:B,2,FALSE)","v":"COMP SCI General Ops"},"19520100","18003","SVARIRR540657CV","A01","",""]
["19","540",null,null,"NSF      RF RF_NBO: ABI ILIU  ","1021RR540658","20000","12100","61023","19520100",{"$f":"VLOOKUP(TRIM(J2372),'Transactional Departments'!A:B,2,FALSE)","v":"COMP SCI General Ops"},"19520100","18400","RNSFXRR540658CV","A01","",""]
["19","548",null,null,"NSF      RF ELECTRONIC   SCHAE","1021RR548042","20000","12100","61023","19740HFS",{"$f":"VLOOKUP(TRIM(J2373),'Transactional Departments'!A:B,2,FALSE)","v":"CCQC Dr. Henry Schaefer"},"19740HFS","18400","RNSFXRR548042CV","A01","",""]
["19","548",null,null,"USDOE    RF HYDROCARBON  ALLEN","1021RR548043","20000","12100","61001","19740HFS",{"$f":"VLOOKUP(TRIM(J2374),'Transactional Departments'!A:B,2,FALSE)","v":"CCQC Dr. Henry Schaefer"},"19740HFS","18400","RUSDERR548043CV","A01","",""]
["19","548",null,null,"___NSF   RF METHODS      SCHAE","1021RR548044","20000","12100","61023","19740HFS",{"$f":"VLOOKUP(TRIM(J2375),'Transactional Departments'!A:B,2,FALSE)","v":"CCQC Dr. Henry Schaefer"},"19740HFS","18400","RNSFXRR548044CV","A01","",""]
["19","548",null,null,"VPI      RF QM/MM        SCHAE","1021RR548045","20000","12100","62519","19740HFS",{"$f":"VLOOKUP(TRIM(J2376),'Transactional Departments'!A:B,2,FALSE)","v":"CCQC Dr. Henry Schaefer"},"19740HFS","18400","RVAPTRR548045CV","A01","",""]
["19","782",null,null,"GA POWER RF SOLARTECH1 POTTER ","1021RR782012","20000","12100","64004","19730001",{"$f":"VLOOKUP(TRIM(J2377),'Transactional Departments'!A:B,2,FALSE)","v":"ARTI General"},"19730001","18400","RGPOWRR782012CV","A01","",""]
["19","782",null,null,"GA POWER RF SOLARTECH2A POTTER","1021RR782013","20000","12100","64004","19730001",{"$f":"VLOOKUP(TRIM(J2378),'Transactional Departments'!A:B,2,FALSE)","v":"ARTI General"},"19730001","18400","RGPOWRR782013CV","A01","",""]
["19","782",null,null,"GA POWER RF SOLARTECH2B MAIER ","1021RR782014","20000","12100","64004","19730001",{"$f":"VLOOKUP(TRIM(J2379),'Transactional Departments'!A:B,2,FALSE)","v":"ARTI General"},"19730001","18400","RGPOWRR782014CV","A01","",""]
["19","787",null,null,"IIE/NSEP PORTUGUESE LANG MOSER","1011RH787006","20000","11100","64316","19770001",{"$f":"VLOOKUP(TRIM(J2380),'Transactional Departments'!A:B,2,FALSE)","v":"LACS LACSI General"},"19770001","18003","SIOIERH787006CV","A01","",""]
["19","787",null,null,"USDE     FLAS FELLOWSHIP GORDO","1011RH787010","20000","11100","61033","19770001",{"$f":"VLOOKUP(TRIM(J2381),'Transactional Departments'!A:B,2,FALSE)","v":"LACS LACSI General"},"19770001","18003","SDOEDRH787010CV","A01","",""]
["19","787",null,null,"USDE     NRC FOREIGN LANGGORDO","1011RH787011","20000","11100","61033","19770001",{"$f":"VLOOKUP(TRIM(J2382),'Transactional Departments'!A:B,2,FALSE)","v":"LACS LACSI General"},"19770001","18003","SDOEDRH787011CV","A01","",""]
["19","787",null,null,"IIE      PORTUGUESE FLAGSMOSER","1011RH787015","20000","11100","64316","19770001",{"$f":"VLOOKUP(TRIM(J2383),'Transactional Departments'!A:B,2,FALSE)","v":"LACS LACSI General"},"19770001","18003","SIOIERH787015CV","A01","",""]
["19","787",null,null,"IIE      UGA_17-18 FLAG__MOSER","1011RH787020","20000","11100","64316","19770001",{"$f":"VLOOKUP(TRIM(J2384),'Transactional Departments'!A:B,2,FALSE)","v":"LACS LACSI General"},"19770001","18003","SIOIERH787020CV","A01","",""]
["19","787",null,null,"IIE      PORTUGUESE FLAG MOSER","1011RH787021","20000","11100","64316","19770001",{"$f":"VLOOKUP(TRIM(J2385),'Transactional Departments'!A:B,2,FALSE)","v":"LACS LACSI General"},"19770001","18003","SIOIERH787021CV","A01","",""]
["19","787",null,null,"         RF TINKER FIELD DUNCA","1021RR787009","20000","12100","64399","19770001",{"$f":"VLOOKUP(TRIM(J2386),'Transactional Departments'!A:B,2,FALSE)","v":"LACS LACSI General"},"19770001","18003","STINKRR787009CV","A01","",""]
["19","787",null,null,"ALA      U LATAM 500 YRS_WEISE","1031RE787012","20000","13100","64000","19770001",{"$f":"VLOOKUP(TRIM(J2387),'Transactional Departments'!A:B,2,FALSE)","v":"LACS LACSI General"},"19770001","18003","SANLARE787012CV","A01","",""]
["19","787",null,null,"NSE      PORT ACQU LINK__MOSER","1031RE787013","20000","13100","64316","19770001",{"$f":"VLOOKUP(TRIM(J2388),'Transactional Departments'!A:B,2,FALSE)","v":"LACS LACSI General"},"19770001","18003","SIOIERE787013CV","A01","",""]
["20","196",null,null,"S.E.F    RF B2B ENGAGE'T BHARA","1021RR196143","20000","12100","64432","20961000",{"$f":"VLOOKUP(TRIM(J2389),'Transactional Departments'!A:B,2,FALSE)","v":"TCB-Office Of The Dean"},"20961000","18400","RSEDFRR196143CV","A01","",""]
["20","196",null,null,"LSCPS    RF PROD RESP TX ZIMME","1021RR196144","20000","12100","64510","20961000",{"$f":"VLOOKUP(TRIM(J2390),'Transactional Departments'!A:B,2,FALSE)","v":"TCB-Office Of The Dean"},"20961000","18400","RINGCRR196144CV","A01","",""]
["20","196",null,null,"SLOAN FDNRF INS DECISION RAGIN","1021RR196145","20000","12100","64377","20961000",{"$f":"VLOOKUP(TRIM(J2391),'Transactional Departments'!A:B,2,FALSE)","v":"TCB-Office Of The Dean"},"20961000","18400","RAPSFRR196145CV","A01","",""]
["20","196",null,null,"WVU RSCH RF BIG DATA     CARPE","1021RR196147","20000","12100","64340","20961000",{"$f":"VLOOKUP(TRIM(J2392),'Transactional Departments'!A:B,2,FALSE)","v":"TCB-Office Of The Dean"},"20961000","18400","RWVURRR196147CV","A01","",""]
["20","197",null,null,"NSF      RF COLLABORATVE BEREN","1021RR197017","20000","12100","61023","20197160",{"$f":"VLOOKUP(TRIM(J2393),'Transactional Departments'!A:B,2,FALSE)","v":"TCB-MIS-Dept Admin"},"20197160","18400","RNSFXRR197017CV","A01","",""]
["20","197",null,null,"NSF      RF PS RR197-017 BEREN","1021RR197018","20000","12100","61023","20197160",{"$f":"VLOOKUP(TRIM(J2394),'Transactional Departments'!A:B,2,FALSE)","v":"TCB-MIS-Dept Admin"},"20197160","18400","RNSFXRR197018CV","A01","",""]
["20","197",null,null,"         VARIOUS         BEREN","1021RR197019","20000","12100","64206","20197160",{"$f":"VLOOKUP(TRIM(J2395),'Transactional Departments'!A:B,2,FALSE)","v":"TCB-MIS-Dept Admin"},"20197160","18003","SVARIRR197019CV","A01","ATH",""]
["20","197",null,null,"NSF      RF VORTEX       BEREN","1021RR197023","20000","12100","61023","20197160",{"$f":"VLOOKUP(TRIM(J2396),'Transactional Departments'!A:B,2,FALSE)","v":"TCB-MIS-Dept Admin"},"20197160","18400","RNSFXRR197023CV","A01","",""]
["20","197",null,null,"UIL/NSF  RF RFXSEDE 2.0  BEREN","1021RR197024","20000","12100","62512","20197160",{"$f":"VLOOKUP(TRIM(J2397),'Transactional Departments'!A:B,2,FALSE)","v":"TCB-MIS-Dept Admin"},"20197160","18400","RUNICRR197024CV","A01","",""]
["20","197",null,null,"NSF      RF COLLABORATIONBEREN","1021RR197034","20000","12100","61023","20197160",{"$f":"VLOOKUP(TRIM(J2398),'Transactional Departments'!A:B,2,FALSE)","v":"TCB-MIS-Dept Admin"},"20197160","18400","RNSFXRR197034CV","A01","",""]
["20","197",null,null,"NSF      RF PS W/ 197034 BEREN","1021RR197035","20000","12100","61023","20197160",{"$f":"VLOOKUP(TRIM(J2399),'Transactional Departments'!A:B,2,FALSE)","v":"TCB-MIS-Dept Admin"},"20197160","18400","RNSFXRR197035CV","A01","",""]
["20","197",null,null,"IMLS/DHHSRF DIG PLATFORM SAFAD","1021RR197036","20000","12100","61027","20197160",{"$f":"VLOOKUP(TRIM(J2400),'Transactional Departments'!A:B,2,FALSE)","v":"TCB-MIS-Dept Admin"},"20197160","18400","RIMLSRR197036CV","A01","",""]
["20","198",null,null,"WVURC    RF FIND FRAUD   CARPE","1021RR198026","20000","12100","64340","20198160",{"$f":"VLOOKUP(TRIM(J2401),'Transactional Departments'!A:B,2,FALSE)","v":"TCB-ACC-Dept Admin"},"20198160","18400","RWVURRR198026CV","A01","",""]
["20","199",null,null,"         MS EXC VARIOUS  STEUE","1011RH199017","20000","11100","64206","20199160",{"$f":"VLOOKUP(TRIM(J2402),'Transactional Departments'!A:B,2,FALSE)","v":"TCB-FIN-Dept Admin"},"20199160","18003","SVARIRH199017CV","A01","ATH",""]
["20","200",null,null,"         ECONOMICS EXCELLENCE ","1011RH200008","20000","11100","64206","20200160",{"$f":"VLOOKUP(TRIM(J2403),'Transactional Departments'!A:B,2,FALSE)","v":"TCB-Economics Dept Admin"},"20200160","18003","SVARIRH200008CV","A01","ATH",""]
["20","200",null,null,"CABLELABSRF BRDBND INT   WILLI","1021RR200037","20000","12100","64000","20200160",{"$f":"VLOOKUP(TRIM(J2404),'Transactional Departments'!A:B,2,FALSE)","v":"TCB-Economics Dept Admin"},"20200160","18400","RCLBIRR200037CV","A01","",""]
["20","200",null,null,"CI       RF DISAGG DATA  WILLI","1021RR200039","20000","12100","64000","20200160",{"$f":"VLOOKUP(TRIM(J2405),'Transactional Departments'!A:B,2,FALSE)","v":"TCB-Economics Dept Admin"},"20200160","18400","RCLBIRR200039CV","A01","",""]
["20","200",null,null,"CORNELL  RF RF_RSCH DTABASCHMU","1021RR200040","20000","12100","64135","20200160",{"$f":"VLOOKUP(TRIM(J2406),'Transactional Departments'!A:B,2,FALSE)","v":"TCB-Economics Dept Admin"},"20200160","18400","RCORNRR200040CV","A01","",""]
["20","200",null,null,"WE UPJOHNRF TMT INNOV'S  POHL ","1021RR200041","20000","12100","64358","20200160",{"$f":"VLOOKUP(TRIM(J2407),'Transactional Departments'!A:B,2,FALSE)","v":"TCB-Economics Dept Admin"},"20200160","18400","RWEUPRR200041CV","A01","",""]
["20","200",null,null,"ACUM/HHS RF MALP RVU RSCHVOGT ","1021RR200074","20000","12100","64086","20200160",{"$f":"VLOOKUP(TRIM(J2408),'Transactional Departments'!A:B,2,FALSE)","v":"TCB-Economics Dept Admin"},"20200160","18400","RACUMRR200074CV","A01","",""]
["20","200",null,null,"BU/SSA   RF ACC SS BEH   PASHC","1021RR200076","20000","12100","64357","20200160",{"$f":"VLOOKUP(TRIM(J2409),'Transactional Departments'!A:B,2,FALSE)","v":"TCB-Economics Dept Admin"},"20200160","18400","RBOSTRR200076CV","A01","",""]
["20","200",null,null,"ACUMEN/HHRF RVU FALL     VOGT ","1021RR200077","20000","12100","64086","20200160",{"$f":"VLOOKUP(TRIM(J2410),'Transactional Departments'!A:B,2,FALSE)","v":"TCB-Economics Dept Admin"},"20200160","18400","RACUMRR200077CV","A01","",""]
["20","202",null,null,"OSU      RF MID MKT BUY  BHARA","1021RR202037","20000","12100","62507","20202160",{"$f":"VLOOKUP(TRIM(J2411),'Transactional Departments'!A:B,2,FALSE)","v":"TCB-MKT-Dept Admin"},"20202160","18400","ROHSURR202037CV","A01","",""]
["20","202",null,null,"MSI      RF WIN SALES    LAM  ","1021RR202071","20000","12100","64301","20202160",{"$f":"VLOOKUP(TRIM(J2412),'Transactional Departments'!A:B,2,FALSE)","v":"TCB-MKT-Dept Admin"},"20202160","18400","RMASIRR202071CV","A01","",""]
["20","204",null,null,"IMPERIAL RF DIST RES UK  MCCAR","1021RR204749","20000","12100","64478","20204160",{"$f":"VLOOKUP(TRIM(J2413),'Transactional Departments'!A:B,2,FALSE)","v":"TCB-Ins. Legal Std Real Estate"},"20204160","18400","RICSTRR204749CV","A01","",""]
["20","205",null,null,"UNCF     RF IMPACT STUDY HUMPH","1021RR205080","20000","12100","64334","20205060",{"$f":"VLOOKUP(TRIM(J2414),'Transactional Departments'!A:B,2,FALSE)","v":"TCB-Selig Admin"},"20205060","18400","RUNNFRR205080CV","A01","",""]
["20","205",null,null,"J.I. AUTHRF JEKYLL ECON  HUMPH","1021RR205081","20000","12100","62032","20205060",{"$f":"VLOOKUP(TRIM(J2415),'Transactional Departments'!A:B,2,FALSE)","v":"TCB-Selig Admin"},"20205060","18400","RJEKYRR205081CV","A01","",""]
["20","205",null,null,"GAPA     DEEPWATER PORT  HUMPH","1031RE205082","20000","13100","62076","20205060",{"$f":"VLOOKUP(TRIM(J2416),'Transactional Departments'!A:B,2,FALSE)","v":"TCB-Selig Admin"},"20205060","18003","SPORTRE205082CV","A01","",""]
["21","216",null,null,"USDE     TQ COMPTV 2010  THOMP","1011RH216293","20000","11100","61033","21001100",{"$f":"VLOOKUP(TRIM(J2417),'Transactional Departments'!A:B,2,FALSE)","v":"COE D.O. Grant Transition"},"21001100","18003","SDOEDRH216293CV","A01","",""]
["21","216",null,null,"USDE     TQ ADMN 2013-15 THOMP","1011RH216330","20000","11100","61033","21001100",{"$f":"VLOOKUP(TRIM(J2418),'Transactional Departments'!A:B,2,FALSE)","v":"COE D.O. Grant Transition"},"21001100","18003","SDOEDRH216330CV","A01","",""]
["21","216",null,null,"USDE     TEACHER 15-16   THOMP","1011RH216351","20000","11100","61033","21001100",{"$f":"VLOOKUP(TRIM(J2419),'Transactional Departments'!A:B,2,FALSE)","v":"COE D.O. Grant Transition"},"21001100","18003","SDOEDRH216351CV","A01","",""]
["21","216",null,null,"USDE     W/ 216-351      THOMP","1011RH216352","20000","11100","61033","21001100",{"$f":"VLOOKUP(TRIM(J2420),'Transactional Departments'!A:B,2,FALSE)","v":"COE D.O. Grant Transition"},"21001100","18003","SDOEDRH216352CV","A01","",""]
["21","216",null,null,"USDE     W/_216-351 15-16     ","1011RH216354","20000","11100","61033","21001100",{"$f":"VLOOKUP(TRIM(J2421),'Transactional Departments'!A:B,2,FALSE)","v":"COE D.O. Grant Transition"},"21001100","18003","SDOEDRH216354CV","A01","",""]
["21","216",null,null,"BORUSG   USG W/007-035   BURG ","1011RH216359","20000","11100","62020","21001100",{"$f":"VLOOKUP(TRIM(J2422),'Transactional Departments'!A:B,2,FALSE)","v":"COE D.O. Grant Transition"},"21001100","18003","SGBORRH216359CV","A01","",""]
["21","216",null,null,"USDOE    TQ ADMIN 16-18  THOMP","1011RH216360","20000","11100","61033","21001100",{"$f":"VLOOKUP(TRIM(J2423),'Transactional Departments'!A:B,2,FALSE)","v":"COE D.O. Grant Transition"},"21001100","18003","SDOEDRH216360CV","A01","",""]
["21","216",null,null,"USDOE    TQ COMP 16-18   THOMP","1011RH216361","20000","11100","61033","21001100",{"$f":"VLOOKUP(TRIM(J2424),'Transactional Departments'!A:B,2,FALSE)","v":"COE D.O. Grant Transition"},"21001100","18003","SDOEDRH216361CV","A01","",""]
["21","216",null,null,"BORUGA   FIELD PLAC'T    NEUHA","1011RH216364","20000","11100","62020","21001100",{"$f":"VLOOKUP(TRIM(J2425),'Transactional Departments'!A:B,2,FALSE)","v":"COE D.O. Grant Transition"},"21001100","18003","SGBORRH216364CV","A01","",""]
["21","216",null,null,"GIT/NSF  RF SUB W 163195 KUTAL","1021RR216287","20000","12100","62021","21001100",{"$f":"VLOOKUP(TRIM(J2426),'Transactional Departments'!A:B,2,FALSE)","v":"COE D.O. Grant Transition"},"21001100","18400","RGAITRR216287CV","A01","",""]
["21","216",null,null,"CLARKE COCOLLABORATION 14DRESD","1031RE216337","20000","13100","63041","21001100",{"$f":"VLOOKUP(TRIM(J2427),'Transactional Departments'!A:B,2,FALSE)","v":"COE D.O. Grant Transition"},"21001100","18003","SCLCDRE216337CV","A01","",""]
["21","216",null,null,"GPSC     NTEP AWARD      ELDER","1031RE216344","20000","13100","62000","21001100",{"$f":"VLOOKUP(TRIM(J2428),'Transactional Departments'!A:B,2,FALSE)","v":"COE D.O. Grant Transition"},"21001100","18003","SXXXXRE216344CV","A01","",""]
["21","216",null,null,"CCSD     SCHOOL COLL 15  DRESD","1031RE216347","20000","13100","63041","21001100",{"$f":"VLOOKUP(TRIM(J2429),'Transactional Departments'!A:B,2,FALSE)","v":"COE D.O. Grant Transition"},"21001100","18003","SCLCDRE216347CV","A01","",""]
["21","216",null,null,"CCSD     ELC PDS 2015    DRESD","1031RE216348","20000","13100","63041","21001100",{"$f":"VLOOKUP(TRIM(J2430),'Transactional Departments'!A:B,2,FALSE)","v":"COE D.O. Grant Transition"},"21001100","18003","SCLCDRE216348CV","A01","",""]
["21","216",null,null,"CCSD     PRO DEV 16-17   DRESD","1031RE216358","20000","13100","63041","21001100",{"$f":"VLOOKUP(TRIM(J2431),'Transactional Departments'!A:B,2,FALSE)","v":"COE D.O. Grant Transition"},"21001100","18003","SCLCDRE216358CV","A01","",""]
["21","216",null,null,"CCSD/USDEPD SUMMER FY 17 DRESD","1031RE216363","20000","13100","63041","21001100",{"$f":"VLOOKUP(TRIM(J2432),'Transactional Departments'!A:B,2,FALSE)","v":"COE D.O. Grant Transition"},"21001100","18003","SCLCDRE216363CV","A01","",""]
["21","216",null,null,"CCSD     PROF DEV FY18   DRESD","1031RE216365","20000","13100","63041","21001100",{"$f":"VLOOKUP(TRIM(J2433),'Transactional Departments'!A:B,2,FALSE)","v":"COE D.O. Grant Transition"},"21001100","18003","SCLCDRE216365CV","A01","",""]
["21","216",null,null,"GOPB/ARRAUGA/GAEL RES PROPARIS","1031RU216314","20000","13100","62019","21001100",{"$f":"VLOOKUP(TRIM(J2434),'Transactional Departments'!A:B,2,FALSE)","v":"COE D.O. Grant Transition"},"21001100","18003","SGOPBRU216314CV","A01","",""]
["21","216",null,null,"ARRA/USDETEACH TO LEARN  DRESD","1031RU216319","20000","13100","63041","21001100",{"$f":"VLOOKUP(TRIM(J2435),'Transactional Departments'!A:B,2,FALSE)","v":"COE D.O. Grant Transition"},"21001100","18003","SCLCDRU216319CV","A01","",""]
["21","218",null,null,"NSF      RF GA STEM GSAA GREGG","1021RR218085","20000","12100","61023","21200001",{"$f":"VLOOKUP(TRIM(J2436),'Transactional Departments'!A:B,2,FALSE)","v":"COE Centers Grant Transition"},"21200001","18400","RNSFXRR218085CV","A01","",""]
["21","218",null,null,"PEI      RF GA KNDRGRTN  BARKE","1021RR218150","20000","12100","64035","21200001",{"$f":"VLOOKUP(TRIM(J2437),'Transactional Departments'!A:B,2,FALSE)","v":"COE Centers Grant Transition"},"21200001","18400","RPEDIRR218150CV","A01","",""]
["21","218",null,null,"CCSD     RF CABER 16-17  AYRES","1021RR218163","20000","12100","63041","21200001",{"$f":"VLOOKUP(TRIM(J2438),'Transactional Departments'!A:B,2,FALSE)","v":"COE Centers Grant Transition"},"21200001","18400","RCLCDRR218163CV","A01","",""]
["21","218",null,null,"CCSD     RF THREE COLUMN AYRES","1021RR218164","20000","12100","63041","21200001",{"$f":"VLOOKUP(TRIM(J2439),'Transactional Departments'!A:B,2,FALSE)","v":"COE Centers Grant Transition"},"21200001","18400","RCLCDRR218164CV","A01","",""]
["21","218",null,null,"CCSD     RF THREE COLUMNSAYRES","1021RR218168","20000","12100","63041","21200001",{"$f":"VLOOKUP(TRIM(J2440),'Transactional Departments'!A:B,2,FALSE)","v":"COE Centers Grant Transition"},"21200001","18400","RCLCDRR218168CV","A01","",""]
["21","218",null,null,"CCSD     RF CABER 17/18  AYRES","1021RR218169","20000","12100","63041","21200001",{"$f":"VLOOKUP(TRIM(J2441),'Transactional Departments'!A:B,2,FALSE)","v":"COE Centers Grant Transition"},"21200001","18400","RCLCDRR218169CV","A01","",""]
["21","218",null,null,"CCSD     RF CABER PREK   AYRES","1021RR218170","20000","12100","63041","21200001",{"$f":"VLOOKUP(TRIM(J2442),'Transactional Departments'!A:B,2,FALSE)","v":"COE Centers Grant Transition"},"21200001","18400","RCLCDRR218170CV","A01","",""]
["21","218",null,null,"GCSS/WF  RF PRINCIPALPRO DEMEE","1021RR218208","20000","12100","63000","21200001",{"$f":"VLOOKUP(TRIM(J2443),'Transactional Departments'!A:B,2,FALSE)","v":"COE Centers Grant Transition"},"21200001","18400","RXXXXRR218208CV","A01","",""]
["21","218",null,null,"UKR/DOE  RF ASSESSMENT   COHEN","1021RR218312","20000","12100","64405","21200001",{"$f":"VLOOKUP(TRIM(J2444),'Transactional Departments'!A:B,2,FALSE)","v":"COE Centers Grant Transition"},"21200001","18400","RUNOFRR218312CV","A01","",""]
["21","218",null,null,"USDOE    RF W/244-143    ARDOI","1021RR218323","20000","12100","61033","21200001",{"$f":"VLOOKUP(TRIM(J2445),'Transactional Departments'!A:B,2,FALSE)","v":"COE Centers Grant Transition"},"21200001","18400","RDOEDRR218323CV","A01","",""]
["21","218",null,null,"GDOE  DOECRCTM ASSESSMNT FERST","1031RE218079","20000","13100","62012","21200001",{"$f":"VLOOKUP(TRIM(J2446),'Transactional Departments'!A:B,2,FALSE)","v":"COE Centers Grant Transition"},"21200001","18003","SGADERE218079CV","A01","",""]
["21","218",null,null,"GDOE  DOECRCTM ASSESSMNT FERST","1031RE218128","20000","13100","62012","21200001",{"$f":"VLOOKUP(TRIM(J2447),'Transactional Departments'!A:B,2,FALSE)","v":"COE Centers Grant Transition"},"21200001","18003","SGADERE218128CV","A01","",""]
["21","218",null,null,"GDOE USDEIDEA PRNT SRVY  CRAME","1031RE218132","20000","13100","62012","21200001",{"$f":"VLOOKUP(TRIM(J2448),'Transactional Departments'!A:B,2,FALSE)","v":"COE Centers Grant Transition"},"21200001","18003","SGADERE218132CV","A01","",""]
["21","218",null,null,"GADE     IDEA 15-16      BARKE","1031RE218153","20000","13100","62012","21200001",{"$f":"VLOOKUP(TRIM(J2449),'Transactional Departments'!A:B,2,FALSE)","v":"COE Centers Grant Transition"},"21200001","18003","SGADERE218153CV","A01","",""]
["21","218",null,null,"GADEDU   GROWTH MODEL    BARKE","1031RE218160","20000","13100","62012","21200001",{"$f":"VLOOKUP(TRIM(J2450),'Transactional Departments'!A:B,2,FALSE)","v":"COE Centers Grant Transition"},"21200001","18003","SGADERE218160CV","A01","",""]
["21","218",null,null,"GADE     GKIDS           BARKE","1031RE218161","20000","13100","62012","21200001",{"$f":"VLOOKUP(TRIM(J2451),'Transactional Departments'!A:B,2,FALSE)","v":"COE Centers Grant Transition"},"21200001","18003","SGADERE218161CV","A01","",""]
["21","218",null,null,"         DA DEPT ED DEV BBARKE","1031RE218167","20000","13100","62012","21200001",{"$f":"VLOOKUP(TRIM(J2452),'Transactional Departments'!A:B,2,FALSE)","v":"COE Centers Grant Transition"},"21200001","18003","SGADERE218167CV","A01","",""]
["21","218",null,null,"GDOE     IDEA 17-18      BARKE","1031RE218171","20000","13100","62012","21200001",{"$f":"VLOOKUP(TRIM(J2453),'Transactional Departments'!A:B,2,FALSE)","v":"COE Centers Grant Transition"},"21200001","18003","SGADERE218171CV","A01","",""]
["21","218",null,null,"USDA NIFADEFENSE EDU     CRAMO","1031RE218313","20000","13100","61006","21200001",{"$f":"VLOOKUP(TRIM(J2454),'Transactional Departments'!A:B,2,FALSE)","v":"COE Centers Grant Transition"},"21200001","18003","SNIFARE218313CV","A01","",""]
["21","218",null,null,"GDOE     EDU ACT         BARKE","1031RE218314","20000","13100","62012","21200001",{"$f":"VLOOKUP(TRIM(J2455),'Transactional Departments'!A:B,2,FALSE)","v":"COE Centers Grant Transition"},"21200001","18003","SGADERE218314CV","A01","",""]
["21","218",null,null,"GA DOED  '16 CTAE ANN RP_DEMEE","1031RE218315","20000","13100","62012","21200001",{"$f":"VLOOKUP(TRIM(J2456),'Transactional Departments'!A:B,2,FALSE)","v":"COE Centers Grant Transition"},"21200001","18003","SGADERE218315CV","A01","",""]
["21","218",null,null,"GDOE     GAA             BARKE","1031RE218316","20000","13100","62012","21200001",{"$f":"VLOOKUP(TRIM(J2457),'Transactional Departments'!A:B,2,FALSE)","v":"COE Centers Grant Transition"},"21200001","18003","SGADERE218316CV","A01","",""]
["21","218",null,null,"COD      SUMMER FY17     DEMEE","1031RE218317","20000","13100","63024","21200001",{"$f":"VLOOKUP(TRIM(J2458),'Transactional Departments'!A:B,2,FALSE)","v":"COE Centers Grant Transition"},"21200001","18003","SDCTRRE218317CV","A01","",""]
["21","218",null,null,"GDOE     GKIDS SS        BARKE","1031RE218318","20000","13100","62012","21200001",{"$f":"VLOOKUP(TRIM(J2459),'Transactional Departments'!A:B,2,FALSE)","v":"COE Centers Grant Transition"},"21200001","18003","SGADERE218318CV","A01","",""]
["21","218",null,null,"         GKIDS           BARKE","1031RE218319","20000","13100","62012","21200001",{"$f":"VLOOKUP(TRIM(J2460),'Transactional Departments'!A:B,2,FALSE)","v":"COE Centers Grant Transition"},"21200001","18003","SGADERE218319CV","A01","",""]
["21","218",null,null,"         MODEL REPORTS   LAI  ","1031RE218320","20000","13100","62012","21200001",{"$f":"VLOOKUP(TRIM(J2461),'Transactional Departments'!A:B,2,FALSE)","v":"COE Centers Grant Transition"},"21200001","18003","SGADERE218320CV","A01","",""]
["21","218",null,null,"GDOE     KEENVILLE FY18  BARKE","1031RE218321","20000","13100","62012","21200001",{"$f":"VLOOKUP(TRIM(J2462),'Transactional Departments'!A:B,2,FALSE)","v":"COE Centers Grant Transition"},"21200001","18003","SGADERE218321CV","A01","",""]
["21","218",null,null,"FCBOE    UGA_BENCHMARK___BARKE","1031RE218322","20000","13100","63134","21200001",{"$f":"VLOOKUP(TRIM(J2463),'Transactional Departments'!A:B,2,FALSE)","v":"COE Centers Grant Transition"},"21200001","18003","SFULTRE218322CV","A01","",""]
["21","218",null,null,"NCS/USDE BENCHMRK ASSES  CRAME","1031RU218124","20000","13100","64000","21200001",{"$f":"VLOOKUP(TRIM(J2464),'Transactional Departments'!A:B,2,FALSE)","v":"COE Centers Grant Transition"},"21200001","18003","SNNPIRU218124CV","A01","",""]
["21","218",null,null,"GDOE/ARRAGA STDNT GMAR   CRAME","1031RU218137","20000","13100","62012","21200001",{"$f":"VLOOKUP(TRIM(J2465),'Transactional Departments'!A:B,2,FALSE)","v":"COE Centers Grant Transition"},"21200001","18003","SGADERU218137CV","A01","",""]
["21","218",null,null,"GDOE/ARRAGOFAR PROJECT   BARKE","1031RU218140","20000","13100","62012","21200001",{"$f":"VLOOKUP(TRIM(J2466),'Transactional Departments'!A:B,2,FALSE)","v":"COE Centers Grant Transition"},"21200001","18003","SGADERU218140CV","A01","",""]
["21","218",null,null,"GDOE ARRAFORMTV ITEM DEV BARKE","1031RU218143","20000","13100","62012","21200001",{"$f":"VLOOKUP(TRIM(J2467),'Transactional Departments'!A:B,2,FALSE)","v":"COE Centers Grant Transition"},"21200001","18003","SGADERU218143CV","A01","",""]
["21","218",null,null,"GDOE/ARRAGA STDNT GMAR   FERST","1031RU218147","20000","13100","62012","21200001",{"$f":"VLOOKUP(TRIM(J2468),'Transactional Departments'!A:B,2,FALSE)","v":"COE Centers Grant Transition"},"21200001","18003","SGADERU218147CV","A01","",""]
["21","229",null,null,"USDOE    GECAT PROJECT   HARKL","1011RH229263","20000","11100","61033","21700001",{"$f":"VLOOKUP(TRIM(J2469),'Transactional Departments'!A:B,2,FALSE)","v":"LLE Grant Transition"},"21700001","18003","SDOEDRH229263CV","A01","",""]
["21","229",null,null,"EURASIA  DIGITAL INOVAT  HASKO","1021RR229281","20000","12100","64400","21700001",{"$f":"VLOOKUP(TRIM(J2470),'Transactional Departments'!A:B,2,FALSE)","v":"LLE Grant Transition"},"21700001","18003","SEUFTRR229281CV","A01","",""]
["21","229",null,null,"NAOF     RF SPENCER POST ELLIS","1021RR229284","20000","12100","64294","21700001",{"$f":"VLOOKUP(TRIM(J2471),'Transactional Departments'!A:B,2,FALSE)","v":"LLE Grant Transition"},"21700001","18400","RNATLRR229284CV","A01","",""]
["21","229",null,null,"NEA      EDGAR ALLEN POE CAHNM","1031RE229282","20000","13100","61024","21700001",{"$f":"VLOOKUP(TRIM(J2472),'Transactional Departments'!A:B,2,FALSE)","v":"LLE Grant Transition"},"21700001","18003","SNEFARE229282CV","A01","",""]
["21","229",null,null,"NEA      PI W/229-282    CAHNM","1031RE229283","20000","13100","61024","21700001",{"$f":"VLOOKUP(TRIM(J2473),'Transactional Departments'!A:B,2,FALSE)","v":"LLE Grant Transition"},"21700001","18003","SNEFARE229283CV","A01","",""]
["21","229",null,null,"NEFA     BIG READ FY17-18CAHNM","1031RE229285","20000","13100","61024","21700001",{"$f":"VLOOKUP(TRIM(J2474),'Transactional Departments'!A:B,2,FALSE)","v":"LLE Grant Transition"},"21700001","18003","SNEFARE229285CV","A01","",""]
["21","234",null,null,"         RF INJURY RATES FERRA","1021RR234183","20000","12100","64293","21650001",{"$f":"VLOOKUP(TRIM(J2475),'Transactional Departments'!A:B,2,FALSE)","v":"KINS Grant Transition"},"21650001","18003","SNCAARR234183CV","A01","",""]
["21","234",null,null,"         RF NEURO ADAPT  WHITE","1021RR234209","20000","12100","64000","21650001",{"$f":"VLOOKUP(TRIM(J2476),'Transactional Departments'!A:B,2,FALSE)","v":"KINS Grant Transition"},"21650001","18003","SNNSSRR234209CV","A01","",""]
["21","234",null,null,"         RF RR234-209 PC WHITE","1021RR234210","20000","12100","64000","21650001",{"$f":"VLOOKUP(TRIM(J2477),'Transactional Departments'!A:B,2,FALSE)","v":"KINS Grant Transition"},"21650001","18003","SNNSSRR234210CV","A01","",""]
["21","234",null,null,"         RF UNICOMP KNEE SIMPS","1021RR234236","20000","12100","64051","21650001",{"$f":"VLOOKUP(TRIM(J2478),'Transactional Departments'!A:B,2,FALSE)","v":"KINS Grant Transition"},"21650001","18003","SARTHRR234236CV","A01","",""]
["21","234",null,null,"         RF BIOMARKER STDMCCUL","1021RR234248","20000","12100","64000","21650001",{"$f":"VLOOKUP(TRIM(J2479),'Transactional Departments'!A:B,2,FALSE)","v":"KINS Grant Transition"},"21650001","18003","SIDEBRR234248CV","A01","",""]
["21","234",null,null,"NCBA     RF HIGHER PROT  EVANS","1021RR234252","20000","12100","64323","21650001",{"$f":"VLOOKUP(TRIM(J2480),'Transactional Departments'!A:B,2,FALSE)","v":"KINS Grant Transition"},"21650001","18400","RNCBARR234252CV","A01","",""]
["21","234",null,null,"         RF LEG STRENGTH SIMPS","1021RR234254","20000","12100","64051","21650001",{"$f":"VLOOKUP(TRIM(J2481),'Transactional Departments'!A:B,2,FALSE)","v":"KINS Grant Transition"},"21650001","18003","SARTHRR234254CV","A01","",""]
["21","234",null,null,"         RF LDRSHP FUNCT HAWKI","1021RR234256","20000","12100","64000","21650001",{"$f":"VLOOKUP(TRIM(J2482),'Transactional Departments'!A:B,2,FALSE)","v":"KINS Grant Transition"},"21650001","18003","SONCIRR234256CV","A01","",""]
["21","234",null,null,"         RF PHYTOCHEMICL OCONN","1021RR234260","20000","12100","64045","21650001",{"$f":"VLOOKUP(TRIM(J2483),'Transactional Departments'!A:B,2,FALSE)","v":"KINS Grant Transition"},"21650001","18003","SPEPSRR234260CV","A01","",""]
["21","234",null,null,"NPC      RF NIRS         MCCUL","1021RR234261","20000","12100","64549","21650001",{"$f":"VLOOKUP(TRIM(J2484),'Transactional Departments'!A:B,2,FALSE)","v":"KINS Grant Transition"},"21650001","18400","RNOVARR234261CV","A01","",""]
["21","234",null,null,"USC/ NIH RF PHYS ACTIVTY DISHM","1021RR234262","20000","12100","62524","21650001",{"$f":"VLOOKUP(TRIM(J2485),'Transactional Departments'!A:B,2,FALSE)","v":"KINS Grant Transition"},"21650001","18400","RUSCXRR234262CV","A01","",""]
["21","234",null,null,"NP       RF SNOHB        MCCUL","1021RR234266","20000","12100","64549","21650001",{"$f":"VLOOKUP(TRIM(J2486),'Transactional Departments'!A:B,2,FALSE)","v":"KINS Grant Transition"},"21650001","18400","RNOVARR234266CV","A01","",""]
["21","234",null,null,"ACSM        EXCERCISE    JENKI","1021RR234269","20000","12100","64000","21650001",{"$f":"VLOOKUP(TRIM(J2487),'Transactional Departments'!A:B,2,FALSE)","v":"KINS Grant Transition"},"21650001","18003","SANMFRR234269CV","A01","",""]
["21","234",null,null,"USDN     RF MITOCHONDRIA MCCUL","1021RR234272","20000","12100","61015","21650001",{"$f":"VLOOKUP(TRIM(J2488),'Transactional Departments'!A:B,2,FALSE)","v":"KINS Grant Transition"},"21650001","18400","RUSNXRR234272CV","A01","",""]
["21","234",null,null,"ARS INC  RF CPET         MCCUL","1021RR234274","20000","12100","64236","21650001",{"$f":"VLOOKUP(TRIM(J2489),'Transactional Departments'!A:B,2,FALSE)","v":"KINS Grant Transition"},"21650001","18400","RARHSRR234274CV","A01","",""]
["21","234",null,null,"NCA      RF CONCUSSION   SCHMI","1021RR234276","20000","12100","64293","21650001",{"$f":"VLOOKUP(TRIM(J2490),'Transactional Departments'!A:B,2,FALSE)","v":"KINS Grant Transition"},"21650001","18400","RNCAARR234276CV","A01","",""]
["21","234",null,null,"PEPSICO  RF HERBAL EXT   OCONN","1021RR234277","20000","12100","64045","21650001",{"$f":"VLOOKUP(TRIM(J2491),'Transactional Departments'!A:B,2,FALSE)","v":"KINS Grant Transition"},"21650001","18400","RPEPSRR234277CV","A01","",""]
["21","234",null,null,"NIH      RF W/ 264-010   YIN  ","1021RR234278","20000","12100","61018","21650001",{"$f":"VLOOKUP(TRIM(J2492),'Transactional Departments'!A:B,2,FALSE)","v":"KINS Grant Transition"},"21650001","18400","RNIHXRR234278CV","A01","",""]
["21","234",null,null,"UMI      RF CARE              ","1021RR234279","20000","12100","62520","21650001",{"$f":"VLOOKUP(TRIM(J2493),'Transactional Departments'!A:B,2,FALSE)","v":"KINS Grant Transition"},"21650001","18400","RUNMIRR234279CV","A01","",""]
["21","234",null,null,"UP/NIH   RF CHILD HLTH   CALL ","1021RR234282","20000","12100","64189","21650001",{"$f":"VLOOKUP(TRIM(J2494),'Transactional Departments'!A:B,2,FALSE)","v":"KINS Grant Transition"},"21650001","18400","RUPITRR234282CV","A01","",""]
["21","234",null,null,"ACS      RF BEHAVIOR STUDSCHMI","1021RR234284","20000","12100","64122","21650001",{"$f":"VLOOKUP(TRIM(J2495),'Transactional Departments'!A:B,2,FALSE)","v":"KINS Grant Transition"},"21650001","18400","RAMCSRR234284CV","A01","",""]
["21","234",null,null,"NOVARTIS RF CLINICAL     MCCUL","1021RR234285","20000","12100","64549","21650001",{"$f":"VLOOKUP(TRIM(J2496),'Transactional Departments'!A:B,2,FALSE)","v":"KINS Grant Transition"},"21650001","18400","RNOVARR234285CV","A01","",""]
["21","234",null,null,"UMI      RF CARE              ","1021RR234288","20000","12100","62520","21650001",{"$f":"VLOOKUP(TRIM(J2497),'Transactional Departments'!A:B,2,FALSE)","v":"KINS Grant Transition"},"21650001","18400","RUNMIRR234288CV","A01","",""]
["21","234",null,null,"PA INC   RF BIKRAM       OCONN","1021RR234289","20000","12100","64000","21650001",{"$f":"VLOOKUP(TRIM(J2498),'Transactional Departments'!A:B,2,FALSE)","v":"KINS Grant Transition"},"21650001","18400","RPNAIRR234289CV","A01","",""]
["21","234",null,null,"NIH      RF CEREBRAL PALSMODLE","1021RR234290","20000","12100","61018","21650001",{"$f":"VLOOKUP(TRIM(J2499),'Transactional Departments'!A:B,2,FALSE)","v":"KINS Grant Transition"},"21650001","18400","RNIHXRR234290CV","A01","",""]
["21","234",null,null,"RFUNY/MDARF MTOR MD      CALL ","1021RR234291","20000","12100","64388","21650001",{"$f":"VLOOKUP(TRIM(J2500),'Transactional Departments'!A:B,2,FALSE)","v":"KINS Grant Transition"},"21650001","18400","RRFNYRR234291CV","A01","",""]
["21","234",null,null,"         RF AIS          SIMPS","1021RR234586","20000","12100","64000","21650001",{"$f":"VLOOKUP(TRIM(J2501),'Transactional Departments'!A:B,2,FALSE)","v":"KINS Grant Transition"},"21650001","18003","SSNRSRR234586CV","A01","",""]
["21","234",null,null,"DHHS/TJU RF CORD INJURY  MODLE","1021RR234589","20000","12100","64000","21650001",{"$f":"VLOOKUP(TRIM(J2502),'Transactional Departments'!A:B,2,FALSE)","v":"KINS Grant Transition"},"21650001","18400","RXXXXRR234589CV","A01","",""]
["21","234",null,null,"         ISTEP           ZHANG","1031RE234255","20000","13100","64000","21650001",{"$f":"VLOOKUP(TRIM(J2503),'Transactional Departments'!A:B,2,FALSE)","v":"KINS Grant Transition"},"21650001","18003","SSNSURE234255CV","A01","",""]
["21","234",null,null,"GDE/USDE PAL PROGRAM          ","1031RE234280","20000","13100","62012","21650001",{"$f":"VLOOKUP(TRIM(J2504),'Transactional Departments'!A:B,2,FALSE)","v":"KINS Grant Transition"},"21650001","18003","SGADERE234280CV","A01","",""]
["21","234",null,null,"         FY 18 21ST CCLC TOMPO","1031RE234286","20000","13100","62012","21650001",{"$f":"VLOOKUP(TRIM(J2505),'Transactional Departments'!A:B,2,FALSE)","v":"KINS Grant Transition"},"21650001","18003","SGADERE234286CV","A01","",""]
["21","241",null,null,"RUC      RF POLI CONTEXT DEBRA","1021RR241144","20000","12100","62537","21750001",{"$f":"VLOOKUP(TRIM(J2506),'Transactional Departments'!A:B,2,FALSE)","v":"LEAP Grant Transition"},"21750001","18400","RRUCARR241144CV","A01","",""]
["21","241",null,null,"TCS         AUDIT EDU    DEMAR","1021RR241145","20000","12100","62063","21750001",{"$f":"VLOOKUP(TRIM(J2507),'Transactional Departments'!A:B,2,FALSE)","v":"LEAP Grant Transition"},"21750001","18003","STCSGRR241145CV","A01","",""]
["21","241",null,null,"GDE      RF CCRPI        WELSH","1021RR241146","20000","12100","62012","21750001",{"$f":"VLOOKUP(TRIM(J2508),'Transactional Departments'!A:B,2,FALSE)","v":"LEAP Grant Transition"},"21750001","18400","RGADERR241146CV","A01","",""]
["21","241",null,null,"GTAE DOE TD&E GA OAE     VALEN","1031RE241141","20000","13100","62000","21750001",{"$f":"VLOOKUP(TRIM(J2509),'Transactional Departments'!A:B,2,FALSE)","v":"LEAP Grant Transition"},"21750001","18003","SXXXXRE241141CV","A01","",""]
["21","241",null,null,"TCSG     GOAE            DEMAR","1031RE241147","20000","13100","62063","21750001",{"$f":"VLOOKUP(TRIM(J2510),'Transactional Departments'!A:B,2,FALSE)","v":"LEAP Grant Transition"},"21750001","18003","STCSGRE241147CV","A01","",""]
["21","242",null,null,"USDE     COE             VAIL ","1011RH242424","20000","11100","61033","21450001",{"$f":"VLOOKUP(TRIM(J2511),'Transactional Departments'!A:B,2,FALSE)","v":"CSSE Grant Transition"},"21450001","18003","SDOEDRH242424CV","A01","",""]
["21","242",null,null,"USDE     COPPA PROJECT   GAST ","1011RH242427","20000","11100","61033","21450001",{"$f":"VLOOKUP(TRIM(J2512),'Transactional Departments'!A:B,2,FALSE)","v":"CSSE Grant Transition"},"21450001","18003","SDOEDRH242427CV","A01","",""]
["21","242",null,null,"USDE     AUTSM IN SCHOOL AYRES","1011RH242432","20000","11100","61033","21450001",{"$f":"VLOOKUP(TRIM(J2513),'Transactional Departments'!A:B,2,FALSE)","v":"CSSE Grant Transition"},"21450001","18003","SDOEDRH242432CV","A01","",""]
["21","242",null,null,"USDE     PS W/ 242432    AYRES","1011RH242433","20000","11100","61033","21450001",{"$f":"VLOOKUP(TRIM(J2514),'Transactional Departments'!A:B,2,FALSE)","v":"CSSE Grant Transition"},"21450001","18003","SDOEDRH242433CV","A01","",""]
["21","242",null,null,"DEPT EDUCPIPS PROJECT    LIEBE","1011RH242451","20000","11100","61033","21450001",{"$f":"VLOOKUP(TRIM(J2515),'Transactional Departments'!A:B,2,FALSE)","v":"CSSE Grant Transition"},"21450001","18003","SDOEDRH242451CV","A01","",""]
["21","242",null,null,"NIH      RF DYSPHONIC    SHRIV","1021RR242438","20000","12100","61018","21450001",{"$f":"VLOOKUP(TRIM(J2516),'Transactional Departments'!A:B,2,FALSE)","v":"CSSE Grant Transition"},"21450001","18400","RNIHXRR242438CV","A01","",""]
["21","242",null,null,"NIH      RF COMMUNICATE  RINGD","1021RR242439","20000","12100","61018","21450001",{"$f":"VLOOKUP(TRIM(J2517),'Transactional Departments'!A:B,2,FALSE)","v":"CSSE Grant Transition"},"21450001","18400","RNIHXRR242439CV","A01","",""]
["21","242",null,null,"SSSP     RF LESLIE BELVINVAIL ","1021RR242443","20000","12100","64372","21450001",{"$f":"VLOOKUP(TRIM(J2518),'Transactional Departments'!A:B,2,FALSE)","v":"CSSE Grant Transition"},"21450001","18400","RSSSPRR242443CV","A01","",""]
["21","242",null,null,"ZF       RF RF_DYSLEXIA  LINDS","1021RR242447","20000","12100","64410","21450001",{"$f":"VLOOKUP(TRIM(J2519),'Transactional Departments'!A:B,2,FALSE)","v":"CSSE Grant Transition"},"21450001","18400","RZEFIRR242447CV","A01","",""]
["21","242",null,null,"ZF       INT W/242447    LINDS","1021RR242448","20000","12100","64410","21450001",{"$f":"VLOOKUP(TRIM(J2520),'Transactional Departments'!A:B,2,FALSE)","v":"CSSE Grant Transition"},"21450001","18003","SZEFIRR242448CV","A01","",""]
["21","242",null,null,"NIH/GADPHRF CHILDCARE    VAIL ","1021RR242449","20000","12100","62053","21450001",{"$f":"VLOOKUP(TRIM(J2521),'Transactional Departments'!A:B,2,FALSE)","v":"CSSE Grant Transition"},"21450001","18400","RGDPHRR242449CV","A01","",""]
["21","242",null,null,"GDPH/HHS RF PEER COACH2  VAIL ","1021RR242450","20000","12100","62053","21450001",{"$f":"VLOOKUP(TRIM(J2522),'Transactional Departments'!A:B,2,FALSE)","v":"CSSE Grant Transition"},"21450001","18400","RGDPHRR242450CV","A01","",""]
["21","242",null,null,"DECL/NIH LETS PLAY       VAIL ","1031RE242431","20000","13100","62056","21450001",{"$f":"VLOOKUP(TRIM(J2523),'Transactional Departments'!A:B,2,FALSE)","v":"CSSE Grant Transition"},"21450001","18003","SGDECRE242431CV","A01","",""]
["21","242",null,null,"USDE     GA SENSORY      VAIL ","1031RE242434","20000","13100","61033","21450001",{"$f":"VLOOKUP(TRIM(J2524),'Transactional Departments'!A:B,2,FALSE)","v":"CSSE Grant Transition"},"21450001","18003","SDOEDRE242434CV","A01","",""]
["21","242",null,null,"USDE     PI W/242-434    VAIL ","1031RE242440","20000","13100","61033","21450001",{"$f":"VLOOKUP(TRIM(J2525),'Transactional Departments'!A:B,2,FALSE)","v":"CSSE Grant Transition"},"21450001","18003","SDOEDRE242440CV","A01","",""]
["21","242",null,null,"         SPEECH AND HEAR RAYMO","1031RE242444","20000","13100","64198","21450001",{"$f":"VLOOKUP(TRIM(J2526),'Transactional Departments'!A:B,2,FALSE)","v":"CSSE Grant Transition"},"21450001","18003","SSERTRE242444CV","A01","",""]
["21","243",null,null,"DHHS     K-12 SCHOOLS         ","1011RH243081","20000","11100","61017","21500001",{"$f":"VLOOKUP(TRIM(J2527),'Transactional Departments'!A:B,2,FALSE)","v":"CHDS Grant Transition"},"21500001","18003","SDHHSRH243081CV","A01","",""]
["21","243",null,null,"DHHS     W/243-081            ","1011RH243082","20000","11100","61017","21500001",{"$f":"VLOOKUP(TRIM(J2528),'Transactional Departments'!A:B,2,FALSE)","v":"CHDS Grant Transition"},"21500001","18003","SDHHSRH243082CV","A01","",""]
["21","243",null,null,"USDHHS   BHWET           HECKM","1011RH243086","20000","11100","61017","21500001",{"$f":"VLOOKUP(TRIM(J2529),'Transactional Departments'!A:B,2,FALSE)","v":"CHDS Grant Transition"},"21500001","18003","SDHHSRH243086CV","A01","",""]
["21","243",null,null,"RFMH/NIH RF DIVERSE POP  SINGH","1021RR243077","20000","12100","64150","21500001",{"$f":"VLOOKUP(TRIM(J2530),'Transactional Departments'!A:B,2,FALSE)","v":"CHDS Grant Transition"},"21500001","18400","RRFMHRR243077CV","A01","",""]
["21","243",null,null,"EU       RF INTEGRITY    COOPE","1021RR243181","20000","12100","64139","21500001",{"$f":"VLOOKUP(TRIM(J2531),'Transactional Departments'!A:B,2,FALSE)","v":"CHDS Grant Transition"},"21500001","18400","REMORRR243181CV","A01","",""]
["21","243",null,null,"         RF ACPA EMERGINGMEANS","1021RR243182","20000","12100","64253","21500001",{"$f":"VLOOKUP(TRIM(J2532),'Transactional Departments'!A:B,2,FALSE)","v":"CHDS Grant Transition"},"21500001","18003","SACPARR243182CV","A01","",""]
["21","243",null,null,"AERA     RF CBCARP       MEANS","1021RR243183","20000","12100","64330","21500001",{"$f":"VLOOKUP(TRIM(J2533),'Transactional Departments'!A:B,2,FALSE)","v":"CHDS Grant Transition"},"21500001","18400","RAERARR243183CV","A01","",""]
["21","243",null,null,"NAE      RF ANTIDEFICIT  MEANS","1021RR243184","20000","12100","64294","21500001",{"$f":"VLOOKUP(TRIM(J2534),'Transactional Departments'!A:B,2,FALSE)","v":"CHDS Grant Transition"},"21500001","18400","RNATLRR243184CV","A01","",""]
["21","244",null,null,"CCSD/USDERF LEARNNG CNTR NEUHA","1021RR244015","20000","12100","63041","21550001",{"$f":"VLOOKUP(TRIM(J2535),'Transactional Departments'!A:B,2,FALSE)","v":"EPSY Grant Transition"},"21550001","18400","RCLCDRR244015CV","A01","",""]
["21","244",null,null,"USDE/CCSDRF 21ST LEARNG  NEUHA","1021RR244016","20000","12100","63041","21550001",{"$f":"VLOOKUP(TRIM(J2536),'Transactional Departments'!A:B,2,FALSE)","v":"EPSY Grant Transition"},"21550001","18400","RCLCDRR244016CV","A01","",""]
["21","244",null,null,"USDE/CCSDRF ELE SCHL     NEUHA","1021RR244017","20000","12100","63041","21550001",{"$f":"VLOOKUP(TRIM(J2537),'Transactional Departments'!A:B,2,FALSE)","v":"EPSY Grant Transition"},"21550001","18400","RCLCDRR244017CV","A01","",""]
["21","244",null,null,"         RF PARNT TRNING ARDOI","1021RR244104","20000","12100","64354","21550001",{"$f":"VLOOKUP(TRIM(J2538),'Transactional Departments'!A:B,2,FALSE)","v":"EPSY Grant Transition"},"21550001","18003","SOFARRR244104CV","A01","",""]
["21","244",null,null,"CCSD     RF READ 16-17   NEUHA","1021RR244136","20000","12100","63041","21550001",{"$f":"VLOOKUP(TRIM(J2539),'Transactional Departments'!A:B,2,FALSE)","v":"EPSY Grant Transition"},"21550001","18400","RCLCDRR244136CV","A01","",""]
["21","244",null,null,"IU       RF STRUCTURE    BRADS","1021RR244137","20000","12100","62521","21550001",{"$f":"VLOOKUP(TRIM(J2540),'Transactional Departments'!A:B,2,FALSE)","v":"EPSY Grant Transition"},"21550001","18400","RINDIRR244137CV","A01","",""]
["21","244",null,null,"UC/NSF   RF STEM         FIORE","1021RR244139","20000","12100","62537","21550001",{"$f":"VLOOKUP(TRIM(J2541),'Transactional Departments'!A:B,2,FALSE)","v":"EPSY Grant Transition"},"21550001","18400","RRUCARR244139CV","A01","",""]
["21","244",null,null,"USDA ARS RF FOOD SECURITYENGEL","1021RR244140","20000","12100","61004","21550001",{"$f":"VLOOKUP(TRIM(J2542),'Transactional Departments'!A:B,2,FALSE)","v":"EPSY Grant Transition"},"21550001","18400","RARSXRR244140CV","A01","",""]
["21","244",null,null,"USDA ERS RF FOOD INSECUR ENGEL","1021RR244141","20000","12100","61004","21550001",{"$f":"VLOOKUP(TRIM(J2543),'Transactional Departments'!A:B,2,FALSE)","v":"EPSY Grant Transition"},"21550001","18400","RARSXRR244141CV","A01","",""]
["21","244",null,null,"         RF FLEX FY 17   NEUHA","1021RR244142","20000","12100","63041","21550001",{"$f":"VLOOKUP(TRIM(J2544),'Transactional Departments'!A:B,2,FALSE)","v":"EPSY Grant Transition"},"21550001","18003","SCLCDRR244142CV","A01","",""]
["21","244",null,null,"USDOE    RF READING COMP ARDOI","1021RR244143","20000","12100","61033","21550001",{"$f":"VLOOKUP(TRIM(J2545),'Transactional Departments'!A:B,2,FALSE)","v":"EPSY Grant Transition"},"21550001","18400","RDOEDRR244143CV","A01","",""]
["21","244",null,null,"USDOE    RF DICE         BRADS","1021RR244144","20000","12100","61033","21550001",{"$f":"VLOOKUP(TRIM(J2546),'Transactional Departments'!A:B,2,FALSE)","v":"EPSY Grant Transition"},"21550001","18400","RDOEDRR244144CV","A01","",""]
["21","244",null,null,"CCSD     RF ELEMENTARY   NEUHA","1021RR244147","20000","12100","63041","21550001",{"$f":"VLOOKUP(TRIM(J2547),'Transactional Departments'!A:B,2,FALSE)","v":"EPSY Grant Transition"},"21550001","18400","RCLCDRR244147CV","A01","",""]
["21","244",null,null,"CCSD     RF HIGH SCHOOL  NEUHA","1021RR244148","20000","12100","63041","21550001",{"$f":"VLOOKUP(TRIM(J2548),'Transactional Departments'!A:B,2,FALSE)","v":"EPSY Grant Transition"},"21550001","18400","RCLCDRR244148CV","A01","",""]
["21","244",null,null,"CCSD     RF MIDDLE SCHOOLNEUHA","1021RR244149","20000","12100","63041","21550001",{"$f":"VLOOKUP(TRIM(J2549),'Transactional Departments'!A:B,2,FALSE)","v":"EPSY Grant Transition"},"21550001","18400","RCLCDRR244149CV","A01","",""]
["21","244",null,null,"CLAR/USDE21ST CENT 12-13 NEUHA","1031RE244111","20000","13100","63041","21550001",{"$f":"VLOOKUP(TRIM(J2550),'Transactional Departments'!A:B,2,FALSE)","v":"EPSY Grant Transition"},"21550001","18003","SCLCDRE244111CV","A01","",""]
["21","244",null,null,"NASP     NASP 17-18      RESCH","1031RE244145","20000","13100","64234","21550001",{"$f":"VLOOKUP(TRIM(J2551),'Transactional Departments'!A:B,2,FALSE)","v":"EPSY Grant Transition"},"21550001","18003","SNASPRE244145CV","A01","",""]
["21","245",null,null,"NWP      2016 READY WRIT HUGHE","1011RH245089","20000","11100","64348","21600001",{"$f":"VLOOKUP(TRIM(J2552),'Transactional Departments'!A:B,2,FALSE)","v":"EATP Grant Transition"},"21600001","18003","SNAWPRH245089CV","A01","",""]
["21","245",null,null,"NSF      RF LANGUAGE     BUXTO","1021RR245086","20000","12100","61023","21600001",{"$f":"VLOOKUP(TRIM(J2553),'Transactional Departments'!A:B,2,FALSE)","v":"EATP Grant Transition"},"21600001","18400","RNSFXRR245086CV","A01","",""]
["21","245",null,null,"NSF      RF PS W/ 245-086BUXTO","1021RR245087","20000","12100","61023","21600001",{"$f":"VLOOKUP(TRIM(J2554),'Transactional Departments'!A:B,2,FALSE)","v":"EATP Grant Transition"},"21600001","18400","RNSFXRR245087CV","A01","",""]
["21","245",null,null,"SPENCER  RF POLITICAL    GARRE","1021RR245094","20000","12100","64385","21600001",{"$f":"VLOOKUP(TRIM(J2555),'Transactional Departments'!A:B,2,FALSE)","v":"EATP Grant Transition"},"21600001","18400","RSPENRR245094CV","A01","",""]
["21","245",null,null,"NWP      2016-2017 SEED  JONES","1031RE245090","20000","13100","64348","21600001",{"$f":"VLOOKUP(TRIM(J2556),'Transactional Departments'!A:B,2,FALSE)","v":"EATP Grant Transition"},"21600001","18003","SNAWPRE245090CV","A01","",""]
["21","245",null,null,"GADOE    WRITERS         JONES","1031RE245091","20000","13100","62012","21600001",{"$f":"VLOOKUP(TRIM(J2557),'Transactional Departments'!A:B,2,FALSE)","v":"EATP Grant Transition"},"21600001","18003","SGADERE245091CV","A01","",""]
["21","246",null,null,"         TEACHERS COLL   ATWAT","1011RH246090","20000","11100","62564","21800001",{"$f":"VLOOKUP(TRIM(J2558),'Transactional Departments'!A:B,2,FALSE)","v":"MSE Grant Transition"},"21800001","18003","STCCURH246090CV","A01","",""]
["21","246",null,null,"NSF      RF SECNDRY MATH CONNE","1021RR246044","20000","12100","61023","21800001",{"$f":"VLOOKUP(TRIM(J2559),'Transactional Departments'!A:B,2,FALSE)","v":"MSE Grant Transition"},"21800001","18400","RNSFXRR246044CV","A01","",""]
["21","246",null,null,"NSF      RF PS W/246044_CONNE ","1021RR246068","20000","12100","61023","21800001",{"$f":"VLOOKUP(TRIM(J2560),'Transactional Departments'!A:B,2,FALSE)","v":"MSE Grant Transition"},"21800001","18400","RNSFXRR246068CV","A01","",""]
["21","246",null,null,"NIH      RF SYSTEMS      HODGE","1021RR246069","20000","12100","61018","21800001",{"$f":"VLOOKUP(TRIM(J2561),'Transactional Departments'!A:B,2,FALSE)","v":"MSE Grant Transition"},"21800001","18400","RNIHXRR246069CV","A01","",""]
["21","246",null,null,"NSF      RF QUANT REASON MOORE","1021RR246071","20000","12100","61023","21800001",{"$f":"VLOOKUP(TRIM(J2562),'Transactional Departments'!A:B,2,FALSE)","v":"MSE Grant Transition"},"21800001","18400","RNSFXRR246071CV","A01","",""]
["21","246",null,null,"NSF      RF PS W/246-071 MOORE","1021RR246072","20000","12100","61023","21800001",{"$f":"VLOOKUP(TRIM(J2563),'Transactional Departments'!A:B,2,FALSE)","v":"MSE Grant Transition"},"21800001","18400","RNSFXRR246072CV","A01","",""]
["21","246",null,null,"NSF      RF W/ 194348    STANT","1021RR246073","20000","12100","61023","21800001",{"$f":"VLOOKUP(TRIM(J2564),'Transactional Departments'!A:B,2,FALSE)","v":"MSE Grant Transition"},"21800001","18400","RNSFXRR246073CV","A01","",""]
["21","246",null,null,"NSF      RF TWO PERSPECT IZSAK","1021RR246074","20000","12100","61023","21800001",{"$f":"VLOOKUP(TRIM(J2565),'Transactional Departments'!A:B,2,FALSE)","v":"MSE Grant Transition"},"21800001","18400","RNSFXRR246074CV","A01","",""]
["21","246",null,null,"NSF      RF PS W/246-074 IZSAK","1021RR246075","20000","12100","61023","21800001",{"$f":"VLOOKUP(TRIM(J2566),'Transactional Departments'!A:B,2,FALSE)","v":"MSE Grant Transition"},"21800001","18400","RNSFXRR246075CV","A01","",""]
["21","246",null,null,"IS/NSF   RF SBIR PHSE II HODGE","1021RR246076","20000","12100","64047","21800001",{"$f":"VLOOKUP(TRIM(J2567),'Transactional Departments'!A:B,2,FALSE)","v":"MSE Grant Transition"},"21800001","18400","RIS3DRR246076CV","A01","",""]
["21","246",null,null,"IS/NSF   RF RR246-076 PS HODGE","1021RR246077","20000","12100","64047","21800001",{"$f":"VLOOKUP(TRIM(J2568),'Transactional Departments'!A:B,2,FALSE)","v":"MSE Grant Transition"},"21800001","18400","RIS3DRR246077CV","A01","",""]
["21","246",null,null,"ISI      RF NURBITS      HODGE","1021RR246080","20000","12100","64047","21800001",{"$f":"VLOOKUP(TRIM(J2569),'Transactional Departments'!A:B,2,FALSE)","v":"MSE Grant Transition"},"21800001","18400","RIS3DRR246080CV","A01","",""]
["21","246",null,null,"NSF      RF STEM PRO     LUFT ","1021RR246086","20000","12100","61023","21800001",{"$f":"VLOOKUP(TRIM(J2570),'Transactional Departments'!A:B,2,FALSE)","v":"MSE Grant Transition"},"21800001","18400","RNSFXRR246086CV","A01","",""]
["21","246",null,null,"NSF      RF STUDENTS ALGEELLIS","1021RR246089","20000","12100","61023","21800001",{"$f":"VLOOKUP(TRIM(J2571),'Transactional Departments'!A:B,2,FALSE)","v":"MSE Grant Transition"},"21800001","18400","RNSFXRR246089CV","A01","",""]
["21","246",null,null,"         RF MATH AREAS   ELLIS","1021RR246091","20000","12100","61023","21800001",{"$f":"VLOOKUP(TRIM(J2572),'Transactional Departments'!A:B,2,FALSE)","v":"MSE Grant Transition"},"21800001","18003","SNSFXRR246091CV","A01","",""]
["21","246",null,null,"NSF      RF MICROAGGR    ATWAT","1021RR246092","20000","12100","61023","21800001",{"$f":"VLOOKUP(TRIM(J2573),'Transactional Departments'!A:B,2,FALSE)","v":"MSE Grant Transition"},"21800001","18400","RNSFXRR246092CV","A01","",""]
["21","246",null,null,"NSF      RF NAT OF MODEL CAPPS","1021RR246093","20000","12100","61023","21800001",{"$f":"VLOOKUP(TRIM(J2574),'Transactional Departments'!A:B,2,FALSE)","v":"MSE Grant Transition"},"21800001","18400","RNSFXRR246093CV","A01","",""]
["21","248",null,null,"USDEU    W/216-351            ","1011RH248365","20000","11100","61033","21400001",{"$f":"VLOOKUP(TRIM(J2575),'Transactional Departments'!A:B,2,FALSE)","v":"CIS Grant Transition"},"21400001","18003","SDOEDRH248365CV","A01","",""]
["21","248",null,null,"USDOE    W/216-360       THOMP","1011RH248370","20000","11100","61033","21400001",{"$f":"VLOOKUP(TRIM(J2576),'Transactional Departments'!A:B,2,FALSE)","v":"CIS Grant Transition"},"21400001","18003","SDOEDRH248370CV","A01","",""]
["21","248",null,null,"USDOE    W/ 216-360      THOMP","1011RH248371","20000","11100","61033","21400001",{"$f":"VLOOKUP(TRIM(J2577),'Transactional Departments'!A:B,2,FALSE)","v":"CIS Grant Transition"},"21400001","18003","SDOEDRH248371CV","A01","",""]
["21","248",null,null,"USDOE    W/216-360       THOMP","1011RH248372","20000","11100","61033","21400001",{"$f":"VLOOKUP(TRIM(J2578),'Transactional Departments'!A:B,2,FALSE)","v":"CIS Grant Transition"},"21400001","18003","SDOEDRH248372CV","A01","",""]
["21","248",null,null,"USDOE    W/216-360       THOMP","1011RH248373","20000","11100","61033","21400001",{"$f":"VLOOKUP(TRIM(J2579),'Transactional Departments'!A:B,2,FALSE)","v":"CIS Grant Transition"},"21400001","18003","SDOEDRH248373CV","A01","",""]
["21","248",null,null,"NSDV     RF CLERKSHIP    CHOI ","1021RR248265","20000","12100","64000","21400001",{"$f":"VLOOKUP(TRIM(J2580),'Transactional Departments'!A:B,2,FALSE)","v":"CIS Grant Transition"},"21400001","18400","RNNDVRR248265CV","A01","",""]
["21","248",null,null,"SC       RF SAFE AT HOME OREY ","1021RR248354","20000","12100","64000","21400001",{"$f":"VLOOKUP(TRIM(J2581),'Transactional Departments'!A:B,2,FALSE)","v":"CIS Grant Transition"},"21400001","18400","RXXXXRR248354CV","A01","",""]
["21","248",null,null,"         RF EMPLOY SKILLSHILL ","1021RR248367","20000","12100","63104","21400001",{"$f":"VLOOKUP(TRIM(J2582),'Transactional Departments'!A:B,2,FALSE)","v":"CIS Grant Transition"},"21400001","18003","SNCSSRR248367CV","A01","",""]
["21","248",null,null,"JCS/GDOE RF SOLVING      HILL ","1021RR248369","20000","12100","63097","21400001",{"$f":"VLOOKUP(TRIM(J2583),'Transactional Departments'!A:B,2,FALSE)","v":"CIS Grant Transition"},"21400001","18400","RJACSRR248369CV","A01","",""]
["21","248",null,null,"USDA FS  INQRY IN ACTN   DEISS","1031RE248355","20000","13100","61002","21400001",{"$f":"VLOOKUP(TRIM(J2584),'Transactional Departments'!A:B,2,FALSE)","v":"CIS Grant Transition"},"21400001","18003","SUSDARE248355CV","A01","",""]
["21","248",null,null,"GDOE     CERTIFICATION   HILL ","1031RE248363","20000","13100","62012","21400001",{"$f":"VLOOKUP(TRIM(J2585),'Transactional Departments'!A:B,2,FALSE)","v":"CIS Grant Transition"},"21400001","18003","SGADERE248363CV","A01","",""]
["21","248",null,null,"GDOE     ENGINEERING     HILL ","1031RE248368","20000","13100","62012","21400001",{"$f":"VLOOKUP(TRIM(J2586),'Transactional Departments'!A:B,2,FALSE)","v":"CIS Grant Transition"},"21400001","18003","SGADERE248368CV","A01","",""]
["21","248",null,null,"GDOE     CERT ACT        HILL ","1031RE248376","20000","13100","62012","21400001",{"$f":"VLOOKUP(TRIM(J2587),'Transactional Departments'!A:B,2,FALSE)","v":"CIS Grant Transition"},"21400001","18003","SGADERE248376CV","A01","",""]
["22","644",null,null,"NIH      RF W/RR274471___JOHNS","1021RR644038","20000","12100","61018","22003000",{"$f":"VLOOKUP(TRIM(J2588),'Transactional Departments'!A:B,2,FALSE)","v":"ECE School Of Electrical And C"},"22003000","18400","RNIHXRR644038CV","A01","",""]
["22","644",null,null,"NSF      RF FERROHYDRODY MAO  ","1021RR644123","20000","12100","61023","22003000",{"$f":"VLOOKUP(TRIM(J2589),'Transactional Departments'!A:B,2,FALSE)","v":"ECE School Of Electrical And C"},"22003000","18400","RNSFXRR644123CV","A01","",""]
["22","644",null,null,"NSF      RF PS 722-123   MAO  ","1021RR644124","20000","12100","61023","22003000",{"$f":"VLOOKUP(TRIM(J2590),'Transactional Departments'!A:B,2,FALSE)","v":"ECE School Of Electrical And C"},"22003000","18400","RNSFXRR644124CV","A01","",""]
["22","644",null,null,"SCS      RF ELEC TRANS   TSE  ","1021RR644179","20000","12100","64010","22003000",{"$f":"VLOOKUP(TRIM(J2591),'Transactional Departments'!A:B,2,FALSE)","v":"ECE School Of Electrical And C"},"22003000","18400","RSOCORR644179CV","A01","",""]
["22","644",null,null,"SCS      RF GRAPE        MAO  ","1021RR644188","20000","12100","64010","22003000",{"$f":"VLOOKUP(TRIM(J2592),'Transactional Departments'!A:B,2,FALSE)","v":"ECE School Of Electrical And C"},"22003000","18400","RSOCORR644188CV","A01","",""]
["22","644",null,null,"SCS      RF GRAPE        TSE  ","1021RR644191","20000","12100","64010","22003000",{"$f":"VLOOKUP(TRIM(J2593),'Transactional Departments'!A:B,2,FALSE)","v":"ECE School Of Electrical And C"},"22003000","18400","RSOCORR644191CV","A01","",""]
["22","644",null,null,"NSF      RF PS 722-123 MAO    ","1021RR644196","20000","12100","61023","22003000",{"$f":"VLOOKUP(TRIM(J2594),'Transactional Departments'!A:B,2,FALSE)","v":"ECE School Of Electrical And C"},"22003000","18400","RNSFXRR644196CV","A01","",""]
["22","644",null,null,"NSF      RF STEM BUDDIES JOHNS","1021RR644206","20000","12100","61023","22003000",{"$f":"VLOOKUP(TRIM(J2595),'Transactional Departments'!A:B,2,FALSE)","v":"ECE School Of Electrical And C"},"22003000","18400","RNSFXRR644206CV","A01","",""]
["22","644",null,null,"_GCCC    RF COTTON CONTAMLI   ","1021RR644224","20000","12100","62001","22003000",{"$f":"VLOOKUP(TRIM(J2596),'Transactional Departments'!A:B,2,FALSE)","v":"ECE School Of Electrical And C"},"22003000","18400","RGCOTRR644224CV","A01","",""]
["22","644",null,null,"NSF      RF IDBR TYPE A  KNER ","1021RR644234","20000","12100","61023","22003000",{"$f":"VLOOKUP(TRIM(J2597),'Transactional Departments'!A:B,2,FALSE)","v":"ECE School Of Electrical And C"},"22003000","18400","RNSFXRR644234CV","A01","",""]
["22","644",null,null,"         RF DEBRIS TRCKR JOHNS","1021RR644235","20000","12100","64208","22003000",{"$f":"VLOOKUP(TRIM(J2598),'Transactional Departments'!A:B,2,FALSE)","v":"ECE School Of Electrical And C"},"22003000","18003","SKTBBRR644235CV","A01","",""]
["22","644",null,null,"USDOD    RF FACE RECOG   HORNA","1021RR644240","20000","12100","61012","22003000",{"$f":"VLOOKUP(TRIM(J2599),'Transactional Departments'!A:B,2,FALSE)","v":"ECE School Of Electrical And C"},"22003000","18400","RUSDDRR644240CV","A01","",""]
["22","644",null,null,"         RF IMAGING CATH TSE  ","1021RR644245","20000","12100","64168","22003000",{"$f":"VLOOKUP(TRIM(J2600),'Transactional Departments'!A:B,2,FALSE)","v":"ECE School Of Electrical And C"},"22003000","18003","SAMSQRR644245CV","A01","",""]
["22","644",null,null,"NSF      RF CYBERSEES    SONG ","1021RR644254","20000","12100","61023","22003000",{"$f":"VLOOKUP(TRIM(J2601),'Transactional Departments'!A:B,2,FALSE)","v":"ECE School Of Electrical And C"},"22003000","18400","RNSFXRR644254CV","A01","",""]
["22","644",null,null,"USDA     RF ROBOT ASSIST LI   ","1021RR644256","20000","12100","61006","22003000",{"$f":"VLOOKUP(TRIM(J2602),'Transactional Departments'!A:B,2,FALSE)","v":"ECE School Of Electrical And C"},"22003000","18400","RNIFARR644256CV","A01","",""]
["22","644",null,null,"         RF WRLSS CHARGE TSE  ","1021RR644380","20000","12100","64010","22003000",{"$f":"VLOOKUP(TRIM(J2603),'Transactional Departments'!A:B,2,FALSE)","v":"ECE School Of Electrical And C"},"22003000","18003","SSOCORR644380CV","A01","",""]
["22","644",null,null,"NSF      RF NANO BIO     MAO  ","1021RR644399","20000","12100","61023","22003000",{"$f":"VLOOKUP(TRIM(J2604),'Transactional Departments'!A:B,2,FALSE)","v":"ECE School Of Electrical And C"},"22003000","18400","RNSFXRR644399CV","A01","",""]
["22","644",null,null,"NSF      RF PS W/722399  MAO  ","1021RR644400","20000","12100","61023","22003000",{"$f":"VLOOKUP(TRIM(J2605),'Transactional Departments'!A:B,2,FALSE)","v":"ECE School Of Electrical And C"},"22003000","18400","RNSFXRR644400CV","A01","",""]
["22","644",null,null,"NSF      RF DEEP IMAGE   KNER ","1021RR644405","20000","12100","61023","22003000",{"$f":"VLOOKUP(TRIM(J2606),'Transactional Departments'!A:B,2,FALSE)","v":"ECE School Of Electrical And C"},"22003000","18400","RNSFXRR644405CV","A01","",""]
["22","644",null,null,"NSF      RF IN FOCUS     FOK  ","1021RR644408","20000","12100","61023","22003000",{"$f":"VLOOKUP(TRIM(J2607),'Transactional Departments'!A:B,2,FALSE)","v":"ECE School Of Electrical And C"},"22003000","18400","RNSFXRR644408CV","A01","",""]
["22","644",null,null,"UCA/NIH  RF EPILEPSY     KNER ","1021RR644415","20000","12100","62562","22003000",{"$f":"VLOOKUP(TRIM(J2608),'Transactional Departments'!A:B,2,FALSE)","v":"ECE School Of Electrical And C"},"22003000","18400","RUCADRR644415CV","A01","",""]
["22","644",null,null,"USDA NIFARF HARVEST AID  LI   ","1021RR644418","20000","12100","61006","22003000",{"$f":"VLOOKUP(TRIM(J2609),'Transactional Departments'!A:B,2,FALSE)","v":"ECE School Of Electrical And C"},"22003000","18400","RNIFARR644418CV","A01","",""]
["22","644",null,null,"NSF      RF ELEC DEVICES XU   ","1021RR644456","20000","12100","61023","22003000",{"$f":"VLOOKUP(TRIM(J2610),'Transactional Departments'!A:B,2,FALSE)","v":"ECE School Of Electrical And C"},"22003000","18400","RNSFXRR644456CV","A01","",""]
["22","644",null,null,"NSF      RF RR722-405 PS KNER ","1021RR644459","20000","12100","61023","22003000",{"$f":"VLOOKUP(TRIM(J2611),'Transactional Departments'!A:B,2,FALSE)","v":"ECE School Of Electrical And C"},"22003000","18400","RNSFXRR644459CV","A01","",""]
["22","644",null,null,"         RF ACADEMIC     SONG ","1021RR644462","20000","12100","64010","22003000",{"$f":"VLOOKUP(TRIM(J2612),'Transactional Departments'!A:B,2,FALSE)","v":"ECE School Of Electrical And C"},"22003000","18003","SSOCORR644462CV","A01","",""]
["22","644",null,null,"NIH      RF ROBOTICS     TSE  ","1021RR644467","20000","12100","61018","22003000",{"$f":"VLOOKUP(TRIM(J2613),'Transactional Departments'!A:B,2,FALSE)","v":"ECE School Of Electrical And C"},"22003000","18400","RNIHXRR644467CV","A01","",""]
["22","644",null,null,"CDC      TWITTER DATA    TSE  ","1021RR644468","20000","12100","61031","22003000",{"$f":"VLOOKUP(TRIM(J2614),'Transactional Departments'!A:B,2,FALSE)","v":"ECE School Of Electrical And C"},"22003000","18003","SCDCXRR644468CV","A01","",""]
["22","644",null,null,"NSF      RF RADIO SPEC   FOK  ","1021RR644471","20000","12100","61023","22003000",{"$f":"VLOOKUP(TRIM(J2615),'Transactional Departments'!A:B,2,FALSE)","v":"ECE School Of Electrical And C"},"22003000","18400","RNSFXRR644471CV","A01","",""]
["22","644",null,null,"NSF      RF BIOMEDICINE  MAO  ","1021RR644474","20000","12100","61023","22003000",{"$f":"VLOOKUP(TRIM(J2616),'Transactional Departments'!A:B,2,FALSE)","v":"ECE School Of Electrical And C"},"22003000","18400","RNSFXRR644474CV","A01","",""]
["22","644",null,null,"NSF      RF W/ 644-475   MAO  ","1021RR644475","20000","12100","61023","22003000",{"$f":"VLOOKUP(TRIM(J2617),'Transactional Departments'!A:B,2,FALSE)","v":"ECE School Of Electrical And C"},"22003000","18400","RNSFXRR644475CV","A01","",""]
["22","644",null,null,"VENTURE  RF SURG ARM     TSE  ","1021RR644476","20000","12100","64190","22003000",{"$f":"VLOOKUP(TRIM(J2618),'Transactional Departments'!A:B,2,FALSE)","v":"ECE School Of Electrical And C"},"22003000","18400","RVENTRR644476CV","A01","",""]
["22","644",null,null,"GCCC     RF SENSOR       LI   ","1021RR644477","20000","12100","62001","22003000",{"$f":"VLOOKUP(TRIM(J2619),'Transactional Departments'!A:B,2,FALSE)","v":"ECE School Of Electrical And C"},"22003000","18400","RGCOTRR644477CV","A01","",""]
["22","644",null,null,"GSU/NSF  RF CYBER SEC    SONG ","1021RR644479","20000","12100","62022","22003000",{"$f":"VLOOKUP(TRIM(J2620),'Transactional Departments'!A:B,2,FALSE)","v":"ECE School Of Electrical And C"},"22003000","18400","RGASURR644479CV","A01","",""]
["22","644",null,null,"USDA NIFARF  RF W/644-256    L","1021RR644483","20000","12100","61006","22003000",{"$f":"VLOOKUP(TRIM(J2621),'Transactional Departments'!A:B,2,FALSE)","v":"ECE School Of Electrical And C"},"22003000","18400","RNIFARR644483CV","A01","",""]
["22","645",null,null,"FVSU_USDARF CNC WRC283397MANI ","1021RR645138","20000","12100","62023","22004000",{"$f":"VLOOKUP(TRIM(J2622),'Transactional Departments'!A:B,2,FALSE)","v":"CMBE School Of Chemical, Mater"},"22004000","18400","RFVSURR645138CV","A01","",""]
["22","645",null,null,"USAID    RF RENEW ENERGY KISAA","1021RR645174","20000","12100","61028","22004000",{"$f":"VLOOKUP(TRIM(J2623),'Transactional Departments'!A:B,2,FALSE)","v":"CMBE School Of Chemical, Mater"},"22004000","18400","RUSADRR645174CV","A01","",""]
["22","645",null,null,"MCCC/NIH RF NITRIC OXIDE HANDA","1021RR645192","20000","12100","64072","22004000",{"$f":"VLOOKUP(TRIM(J2624),'Transactional Departments'!A:B,2,FALSE)","v":"CMBE School Of Chemical, Mater"},"22004000","18400","RMICCRR645192CV","A01","",""]
["22","645",null,null,"SCS      RF RENEW POWER  RAMAS","1021RR645213","20000","12100","64010","22004000",{"$f":"VLOOKUP(TRIM(J2625),'Transactional Departments'!A:B,2,FALSE)","v":"CMBE School Of Chemical, Mater"},"22004000","18400","RSOCORR645213CV","A01","",""]
["22","645",null,null,"NIH      RF CLOT STRUCT       ","1021RR645237","20000","12100","61018","22004000",{"$f":"VLOOKUP(TRIM(J2626),'Transactional Departments'!A:B,2,FALSE)","v":"CMBE School Of Chemical, Mater"},"22004000","18400","RNIHXRR645237CV","A01","",""]
["22","645",null,null,"NSF      RF PFI AIR-TT   RAMAS","1021RR645248","20000","12100","61023","22004000",{"$f":"VLOOKUP(TRIM(J2627),'Transactional Departments'!A:B,2,FALSE)","v":"CMBE School Of Chemical, Mater"},"22004000","18400","RNSFXRR645248CV","A01","",""]
["22","645",null,null,"CDC      RF NITRIC OXIDE HANDA","1021RR645249","20000","12100","61031","22004000",{"$f":"VLOOKUP(TRIM(J2628),'Transactional Departments'!A:B,2,FALSE)","v":"CMBE School Of Chemical, Mater"},"22004000","18400","RCDCXRR645249CV","A01","",""]
["22","645",null,null,"USDA     RF CARBON MONO  KASTN","1021RR645260","20000","12100","61006","22004000",{"$f":"VLOOKUP(TRIM(J2629),'Transactional Departments'!A:B,2,FALSE)","v":"CMBE School Of Chemical, Mater"},"22004000","18400","RNIFARR645260CV","A01","",""]
["22","645",null,null,"NSF      RF LIGNO BIO    YAN  ","1021RR645388","20000","12100","61023","22004000",{"$f":"VLOOKUP(TRIM(J2630),'Transactional Departments'!A:B,2,FALSE)","v":"CMBE School Of Chemical, Mater"},"22004000","18400","RNSFXRR645388CV","A01","",""]
["22","645",null,null,"USDA NIFARF FUNGI VOLAT  RAMAS","1021RR645428","20000","12100","61002","22004000",{"$f":"VLOOKUP(TRIM(J2631),'Transactional Departments'!A:B,2,FALSE)","v":"CMBE School Of Chemical, Mater"},"22004000","18400","RUSDARR645428CV","A01","",""]
["22","645",null,null,"NIH      RF THROMBOSIS   HANDA","1021RR645434","20000","12100","61018","22004000",{"$f":"VLOOKUP(TRIM(J2632),'Transactional Departments'!A:B,2,FALSE)","v":"CMBE School Of Chemical, Mater"},"22004000","18400","RNIHXRR645434CV","A01","",""]
["22","645",null,null,"         HOPEWELL______YAN    ","1021RR645438","20000","12100","64491","22004000",{"$f":"VLOOKUP(TRIM(J2633),'Transactional Departments'!A:B,2,FALSE)","v":"CMBE School Of Chemical, Mater"},"22004000","18003","SHOPERR645438CV","A01","",""]
["22","645",null,null,"         RF DISEASE MODL HALLO","1021RR645450","20000","12100","64469","22004000",{"$f":"VLOOKUP(TRIM(J2634),'Transactional Departments'!A:B,2,FALSE)","v":"CMBE School Of Chemical, Mater"},"22004000","18003","SASCARR645450CV","A01","",""]
["22","645",null,null,"NSF      RF BCTRIAL CELL RAMAS","1021RR645457","20000","12100","61023","22004000",{"$f":"VLOOKUP(TRIM(J2635),'Transactional Departments'!A:B,2,FALSE)","v":"CMBE School Of Chemical, Mater"},"22004000","18400","RNSFXRR645457CV","A01","",""]
["22","645",null,null,"         RF PARTNERSHIP  RAMAS","1021RR645463","20000","12100","64010","22004000",{"$f":"VLOOKUP(TRIM(J2636),'Transactional Departments'!A:B,2,FALSE)","v":"CMBE School Of Chemical, Mater"},"22004000","18003","SSOCORR645463CV","A01","",""]
["22","645",null,null,"         RF MOF CATH     HANDA","1021RR645465","20000","12100","62525","22004000",{"$f":"VLOOKUP(TRIM(J2637),'Transactional Departments'!A:B,2,FALSE)","v":"CMBE School Of Chemical, Mater"},"22004000","18003","SCOSURR645465CV","A01","",""]
["22","645",null,null,"EN/UFS   RF RF_BIOMASS   MANI ","1021RR645469","20000","12100","64131","22004000",{"$f":"VLOOKUP(TRIM(J2638),'Transactional Departments'!A:B,2,FALSE)","v":"CMBE School Of Chemical, Mater"},"22004000","18400","RUSEFRR645469CV","A01","",""]
["22","645",null,null,"EN/UFS   RF WITH 645-469 MANI ","1021RR645470","20000","12100","64131","22004000",{"$f":"VLOOKUP(TRIM(J2639),'Transactional Departments'!A:B,2,FALSE)","v":"CMBE School Of Chemical, Mater"},"22004000","18400","RUSEFRR645470CV","A01","",""]
["22","645",null,null,"NIH      RF POLYMER     HANDA ","1021RR645478","20000","12100","61018","22004000",{"$f":"VLOOKUP(TRIM(J2640),'Transactional Departments'!A:B,2,FALSE)","v":"CMBE School Of Chemical, Mater"},"22004000","18400","RNIHXRR645478CV","A01","",""]
["22","645",null,null,"DELTA AIRRF SERVICES     MANI ","1021RR645481","20000","12100","64109","22004000",{"$f":"VLOOKUP(TRIM(J2641),'Transactional Departments'!A:B,2,FALSE)","v":"CMBE School Of Chemical, Mater"},"22004000","18400","RDELTRR645481CV","A01","",""]
["22","645",null,null,"USEF&C   RF BIOFUELS LCA MANI ","1021RR645486","20000","12100","64131","22004000",{"$f":"VLOOKUP(TRIM(J2642),'Transactional Departments'!A:B,2,FALSE)","v":"CMBE School Of Chemical, Mater"},"22004000","18400","RUSEFRR645486CV","A01","",""]
["22","646",null,null,"UF/USDA  RF RR272-726 GELLER  ","1021RR646054","20000","12100","62511","22005000",{"$f":"VLOOKUP(TRIM(J2643),'Transactional Departments'!A:B,2,FALSE)","v":"ECAM School Of Environmental,"},"22005000","18400","RUFLXRR646054CV","A01","",""]
["22","646",null,null,"NSF      RF QUALTY FRMWK WALTH","1021RR646117","20000","12100","61023","22005000",{"$f":"VLOOKUP(TRIM(J2644),'Transactional Departments'!A:B,2,FALSE)","v":"ECAM School Of Environmental,"},"22005000","18400","RNSFXRR646117CV","A01","",""]
["22","646",null,null,"         RF GREEN ROOF   JAMBE","1021RR646170","20000","12100","64059","22005000",{"$f":"VLOOKUP(TRIM(J2645),'Transactional Departments'!A:B,2,FALSE)","v":"ECAM School Of Environmental,"},"22005000","18003","SLANXRR646170CV","A01","",""]
["22","646",null,null,"KEN/USDA RF SUS NUTRIENT SCHRA","1021RR646176","20000","12100","64405","22005000",{"$f":"VLOOKUP(TRIM(J2646),'Transactional Departments'!A:B,2,FALSE)","v":"ECAM School Of Environmental,"},"22005000","18400","RUNOFRR646176CV","A01","",""]
["22","646",null,null,"SCS      RF GRAPE        LAWRE","1021RR646178","20000","12100","64010","22005000",{"$f":"VLOOKUP(TRIM(J2647),'Transactional Departments'!A:B,2,FALSE)","v":"ECAM School Of Environmental,"},"22005000","18400","RSOCORR646178CV","A01","",""]
["22","646",null,null,"SCS      RF GRAPE        LAWRE","1021RR646189","20000","12100","64010","22005000",{"$f":"VLOOKUP(TRIM(J2648),'Transactional Departments'!A:B,2,FALSE)","v":"ECAM School Of Environmental,"},"22005000","18400","RSOCORR646189CV","A01","",""]
["22","646",null,null,"SCS      RF GRAPE        LAWRE","1021RR646190","20000","12100","64010","22005000",{"$f":"VLOOKUP(TRIM(J2649),'Transactional Departments'!A:B,2,FALSE)","v":"ECAM School Of Environmental,"},"22005000","18400","RSOCORR646190CV","A01","",""]
["22","646",null,null,"         WAVEGUIDE SENSA TOLLN","1021RR646203","20000","12100","64243","22005000",{"$f":"VLOOKUP(TRIM(J2650),'Transactional Departments'!A:B,2,FALSE)","v":"ECAM School Of Environmental,"},"22005000","18003","SINEERR646203CV","A01","",""]
["22","646",null,null,"NSF      RF MEMBRNE MECH FREEM","1021RR646204","20000","12100","61023","22005000",{"$f":"VLOOKUP(TRIM(J2651),'Transactional Departments'!A:B,2,FALSE)","v":"ECAM School Of Environmental,"},"22005000","18400","RNSFXRR646204CV","A01","",""]
["22","646",null,null,"NSF      RF ENGINRING ED SOCHA","1021RR646205","20000","12100","61023","22005000",{"$f":"VLOOKUP(TRIM(J2652),'Transactional Departments'!A:B,2,FALSE)","v":"ECAM School Of Environmental,"},"22005000","18400","RNSFXRR646205CV","A01","",""]
["22","646",null,null,"NSF      RF BIO-INSPIRED PIDAP","1021RR646207","20000","12100","61023","22005000",{"$f":"VLOOKUP(TRIM(J2653),'Transactional Departments'!A:B,2,FALSE)","v":"ECAM School Of Environmental,"},"22005000","18400","RNSFXRR646207CV","A01","",""]
["22","646",null,null,"NASA     RF MICHLLE ALBR DAVIS","1021RR646208","20000","12100","61022","22005000",{"$f":"VLOOKUP(TRIM(J2654),'Transactional Departments'!A:B,2,FALSE)","v":"ECAM School Of Environmental,"},"22005000","18400","RNASARR646208CV","A01","",""]
["22","646",null,null,"NSF      RF WAVE DRIVEN  WOODS","1021RR646210","20000","12100","61023","22005000",{"$f":"VLOOKUP(TRIM(J2655),'Transactional Departments'!A:B,2,FALSE)","v":"ECAM School Of Environmental,"},"22005000","18400","RNSFXRR646210CV","A01","",""]
["22","646",null,null,"SCS      RF REN GEN INTR GATTI","1021RR646212","20000","12100","64010","22005000",{"$f":"VLOOKUP(TRIM(J2656),'Transactional Departments'!A:B,2,FALSE)","v":"ECAM School Of Environmental,"},"22005000","18400","RSOCORR646212CV","A01","",""]
["22","646",null,null,"SCS      RF THERMO GENER WAGNE","1021RR646214","20000","12100","64010","22005000",{"$f":"VLOOKUP(TRIM(J2657),'Transactional Departments'!A:B,2,FALSE)","v":"ECAM School Of Environmental,"},"22005000","18400","RSOCORR646214CV","A01","",""]
["22","646",null,null,"GDOT     RF TIRE CHIPS   DURHA","1021RR646215","20000","12100","62017","22005000",{"$f":"VLOOKUP(TRIM(J2658),'Transactional Departments'!A:B,2,FALSE)","v":"ECAM School Of Environmental,"},"22005000","18400","RGDOTRR646215CV","A01","",""]
["22","646",null,null,"UNEP     MARINE NETWORK  JAMBE","1021RR646233","20000","12100","64502","22005000",{"$f":"VLOOKUP(TRIM(J2659),'Transactional Departments'!A:B,2,FALSE)","v":"ECAM School Of Environmental,"},"22005000","18003","SUNEPRR646233CV","A01","",""]
["22","646",null,null,"GDOT     RF PAVE EMBANK  KIM  ","1021RR646236","20000","12100","62017","22005000",{"$f":"VLOOKUP(TRIM(J2660),'Transactional Departments'!A:B,2,FALSE)","v":"ECAM School Of Environmental,"},"22005000","18400","RGDOTRR646236CV","A01","",""]
["22","646",null,null,"_GDOT    RF CONCRETE SPE CHORZ","1021RR646239","20000","12100","62017","22005000",{"$f":"VLOOKUP(TRIM(J2661),'Transactional Departments'!A:B,2,FALSE)","v":"ECAM School Of Environmental,"},"22005000","18400","RGDOTRR646239CV","A01","",""]
["22","646",null,null,"GDOT     RF MEPDG INPUT  KIM  ","1021RR646242","20000","12100","62017","22005000",{"$f":"VLOOKUP(TRIM(J2662),'Transactional Departments'!A:B,2,FALSE)","v":"ECAM School Of Environmental,"},"22005000","18400","RGDOTRR646242CV","A01","",""]
["22","646",null,null,"GDOT     RF CONCRETE SPE CHORZ","1021RR646243","20000","12100","62017","22005000",{"$f":"VLOOKUP(TRIM(J2663),'Transactional Departments'!A:B,2,FALSE)","v":"ECAM School Of Environmental,"},"22005000","18400","RGDOTRR646243CV","A01","",""]
["22","646",null,null,"NSF      RF CDS&E        PIDAP","1021RR646246","20000","12100","61023","22005000",{"$f":"VLOOKUP(TRIM(J2664),'Transactional Departments'!A:B,2,FALSE)","v":"ECAM School Of Environmental,"},"22005000","18400","RNSFXRR646246CV","A01","",""]
["22","646",null,null,"CSU/EPA  RF RIPARIAN     BLEDS","1021RR646247","20000","12100","62525","22005000",{"$f":"VLOOKUP(TRIM(J2665),'Transactional Departments'!A:B,2,FALSE)","v":"ECAM School Of Environmental,"},"22005000","18400","RCOSURR646247CV","A01","",""]
["22","646",null,null,"WERF     CLASIC REVIEW   BLEDS","1021RR646251","20000","12100","64395","22005000",{"$f":"VLOOKUP(TRIM(J2666),'Transactional Departments'!A:B,2,FALSE)","v":"ECAM School Of Environmental,"},"22005000","18003","SWERFRR646251CV","A01","",""]
["22","646",null,null,"GDOT     RF CLIMATE DATA DURHA","1021RR646252","20000","12100","62017","22005000",{"$f":"VLOOKUP(TRIM(J2667),'Transactional Departments'!A:B,2,FALSE)","v":"ECAM School Of Environmental,"},"22005000","18400","RGDOTRR646252CV","A01","",""]
["22","646",null,null,"GCI      RF ESCOGO CHAR  GELLE","1021RR646257","20000","12100","64370","22005000",{"$f":"VLOOKUP(TRIM(J2668),'Transactional Departments'!A:B,2,FALSE)","v":"ECAM School Of Environmental,"},"22005000","18400","RGCOIRR646257CV","A01","",""]
["22","646",null,null,"CSU/NSF  RF U-WIN       BLEDS ","1021RR646259","20000","12100","62525","22005000",{"$f":"VLOOKUP(TRIM(J2669),'Transactional Departments'!A:B,2,FALSE)","v":"ECAM School Of Environmental,"},"22005000","18400","RCOSURR646259CV","A01","",""]
["22","646",null,null,"SU/NSF   RF COASTAL ECOS WOODS","1021RR646389","20000","12100","64181","22005000",{"$f":"VLOOKUP(TRIM(J2670),'Transactional Departments'!A:B,2,FALSE)","v":"ECAM School Of Environmental,"},"22005000","18400","RSTANRR646389CV","A01","",""]
["22","646",null,null,"NSF      RF CDS & E      WANG ","1021RR646392","20000","12100","61023","22005000",{"$f":"VLOOKUP(TRIM(J2671),'Transactional Departments'!A:B,2,FALSE)","v":"ECAM School Of Environmental,"},"22005000","18400","RNSFXRR646392CV","A01","",""]
["22","646",null,null,"NSF      RF LUMINESCENT  PAN  ","1021RR646407","20000","12100","61023","22005000",{"$f":"VLOOKUP(TRIM(J2672),'Transactional Departments'!A:B,2,FALSE)","v":"ECAM School Of Environmental,"},"22005000","18400","RNSFXRR646407CV","A01","",""]
["22","646",null,null,"NSF      RF OCEAN ACID      WO","1021RR646411","20000","12100","61023","22005000",{"$f":"VLOOKUP(TRIM(J2673),'Transactional Departments'!A:B,2,FALSE)","v":"ECAM School Of Environmental,"},"22005000","18400","RNSFXRR646411CV","A01","",""]
["22","646",null,null,"GDOT     RF RFI85 CRCP   DURHA","1021RR646424","20000","12100","62017","22005000",{"$f":"VLOOKUP(TRIM(J2674),'Transactional Departments'!A:B,2,FALSE)","v":"ECAM School Of Environmental,"},"22005000","18400","RGDOTRR646424CV","A01","",""]
["22","646",null,null,"WF       RF SOLAR GA REG GATTI","1021RR646427","20000","12100","64387","22005000",{"$f":"VLOOKUP(TRIM(J2675),'Transactional Departments'!A:B,2,FALSE)","v":"ECAM School Of Environmental,"},"22005000","18400","RWORMRR646427CV","A01","",""]
["22","646",null,null,"WF       RF SEDIMENT     TOLLN","1021RR646431","20000","12100","64387","22005000",{"$f":"VLOOKUP(TRIM(J2676),'Transactional Departments'!A:B,2,FALSE)","v":"ECAM School Of Environmental,"},"22005000","18400","RWORMRR646431CV","A01","",""]
["22","646",null,null,"NSF      RF PS FOR RR646-392  ","1021RR646433","20000","12100","61023","22005000",{"$f":"VLOOKUP(TRIM(J2677),'Transactional Departments'!A:B,2,FALSE)","v":"ECAM School Of Environmental,"},"22005000","18400","RNSFXRR646433CV","A01","",""]
["22","646",null,null,"AZ       RF LNG WAY CMNG WALTH","1021RR646436","20000","12100","62567","22005000",{"$f":"VLOOKUP(TRIM(J2678),'Transactional Departments'!A:B,2,FALSE)","v":"ECAM School Of Environmental,"},"22005000","18400","RAZBRRR646436CV","A01","",""]
["22","646",null,null,"GA POWER RF COLAR TECH DCGATTI","1021RR646442","20000","12100","64004","22005000",{"$f":"VLOOKUP(TRIM(J2679),'Transactional Departments'!A:B,2,FALSE)","v":"ECAM School Of Environmental,"},"22005000","18400","RGPOWRR646442CV","A01","",""]
["22","646",null,null,"GA POWER RF SOLAR TECH2  GATTI","1021RR646445","20000","12100","64004","22005000",{"$f":"VLOOKUP(TRIM(J2680),'Transactional Departments'!A:B,2,FALSE)","v":"ECAM School Of Environmental,"},"22005000","18400","RGPOWRR646445CV","A01","",""]
["22","646",null,null,"GA POWER RF SOLAR TECH2  GATTI","1021RR646446","20000","12100","64004","22005000",{"$f":"VLOOKUP(TRIM(J2681),'Transactional Departments'!A:B,2,FALSE)","v":"ECAM School Of Environmental,"},"22005000","18400","RGPOWRR646446CV","A01","",""]
["22","646",null,null,"NSF      RF EMPTHY PRJCT WALTH","1021RR646448","20000","12100","61023","22005000",{"$f":"VLOOKUP(TRIM(J2682),'Transactional Departments'!A:B,2,FALSE)","v":"ECAM School Of Environmental,"},"22005000","18400","RNSFXRR646448CV","A01","",""]
["22","646",null,null,"VT       RF RF AFOSR SUBCNAJEM","1021RR646453","20000","12100","62519","22005000",{"$f":"VLOOKUP(TRIM(J2683),'Transactional Departments'!A:B,2,FALSE)","v":"ECAM School Of Environmental,"},"22005000","18400","RVAPTRR646453CV","A01","",""]
["22","646",null,null,"         RF ACAD PARTNER BLEDS","1021RR646464","20000","12100","64010","22005000",{"$f":"VLOOKUP(TRIM(J2684),'Transactional Departments'!A:B,2,FALSE)","v":"ECAM School Of Environmental,"},"22005000","18003","SSOCORR646464CV","A01","",""]
["22","646",null,null,"SNL/DOE  RF MODEL SYS    DAVIS","1021RR646472","20000","12100","64018","22005000",{"$f":"VLOOKUP(TRIM(J2685),'Transactional Departments'!A:B,2,FALSE)","v":"ECAM School Of Environmental,"},"22005000","18400","RSANLRR646472CV","A01","",""]
["22","646",null,null,"ONR      RF PROPELLER    DAVIS","1021RR646473","20000","12100","61015","22005000",{"$f":"VLOOKUP(TRIM(J2686),'Transactional Departments'!A:B,2,FALSE)","v":"ECAM School Of Environmental,"},"22005000","18400","RUSNXRR646473CV","A01","",""]
["22","646",null,null,"GEPD/UEPARF SOD STUDIES  WOODS","1021RR646480","20000","12100","62052","22005000",{"$f":"VLOOKUP(TRIM(J2687),'Transactional Departments'!A:B,2,FALSE)","v":"ECAM School Of Environmental,"},"22005000","18400","RGEPDRR646480CV","A01","",""]
["22","646",null,null,"NSF      RF PHOSPHORS    PAN  ","1021RR646485","20000","12100","61023","22005000",{"$f":"VLOOKUP(TRIM(J2688),'Transactional Departments'!A:B,2,FALSE)","v":"ECAM School Of Environmental,"},"22005000","18400","RNSFXRR646485CV","A01","",""]
["22","646",null,null,"NSF      RF COLL ARGU    FOUTZ","1021RR646489","20000","12100","61023","22005000",{"$f":"VLOOKUP(TRIM(J2689),'Transactional Departments'!A:B,2,FALSE)","v":"ECAM School Of Environmental,"},"22005000","18400","RNSFXRR646489CV","A01","",""]
["22","646",null,null,"GDOT/USDTRF E CONSTRUCT  DURHA","1021RR646491","20000","12100","62017","22005000",{"$f":"VLOOKUP(TRIM(J2690),'Transactional Departments'!A:B,2,FALSE)","v":"ECAM School Of Environmental,"},"22005000","18400","RGDOTRR646491CV","A01","",""]
["22","646",null,null,"GDOT/USDTRF PHASEII REC  DURHA","1021RR646493","20000","12100","62017","22005000",{"$f":"VLOOKUP(TRIM(J2691),'Transactional Departments'!A:B,2,FALSE)","v":"ECAM School Of Environmental,"},"22005000","18400","RGDOTRR646493CV","A01","",""]
["22","646",null,null,"GDOT/USDTRF MARSHES      CHRIS","1021RR646496","20000","12100","62017","22005000",{"$f":"VLOOKUP(TRIM(J2692),'Transactional Departments'!A:B,2,FALSE)","v":"ECAM School Of Environmental,"},"22005000","18400","RGDOTRR646496CV","A01","",""]
["22","646",null,null,"ORAU     MEDICAL ROBOTICSTSE  ","1021RR646499","20000","12100","64286","22005000",{"$f":"VLOOKUP(TRIM(J2693),'Transactional Departments'!A:B,2,FALSE)","v":"ECAM School Of Environmental,"},"22005000","18003","SOAKRRR646499CV","A01","",""]
["22","646",null,null,"GCFI     RF LITTER DATA  JAMBE","1031RE646002","20000","13100","64312","22005000",{"$f":"VLOOKUP(TRIM(J2694),'Transactional Departments'!A:B,2,FALSE)","v":"ECAM School Of Environmental,"},"22005000","18400","RVARNRE646002CV","A01","",""]
["22","722",null,null,"SIT/NSF  ENGAGNG STUDNTS TANNE","1011RH722173","20000","11100","64000","22001000",{"$f":"VLOOKUP(TRIM(J2695),'Transactional Departments'!A:B,2,FALSE)","v":"CENGR College Of Engineering"},"22001000","18003","SSITCRH722173CV","A01","",""]
["22","722",null,null,"JCSS     RAFTSTEM        FOUTZ","1011RH722421","20000","11100","63097","22001000",{"$f":"VLOOKUP(TRIM(J2696),'Transactional Departments'!A:B,2,FALSE)","v":"CENGR College Of Engineering"},"22001000","18003","SJACSRH722421CV","A01","",""]
["22","722",null,null,"BORUSG   USG W/007-035   BURG ","1011RH722460","20000","11100","62020","22001000",{"$f":"VLOOKUP(TRIM(J2697),'Transactional Departments'!A:B,2,FALSE)","v":"CENGR College Of Engineering"},"22001000","18003","SGBORRH722460CV","A01","",""]
["22","722",null,null,"UT/USDOT RF LIGNOCELLULO MANI ","1021RR722097","20000","12100","62532","22001000",{"$f":"VLOOKUP(TRIM(J2698),'Transactional Departments'!A:B,2,FALSE)","v":"CENGR College Of Engineering"},"22001000","18400","RUNTNRR722097CV","A01","",""]
["22","722",null,null,"FLA/NIH  RF NEUROL EXAMS JOHNS","1021RR722111","20000","12100","62511","22001000",{"$f":"VLOOKUP(TRIM(J2699),'Transactional Departments'!A:B,2,FALSE)","v":"CENGR College Of Engineering"},"22001000","18400","RUFLXRR722111CV","A01","",""]
["22","722",null,null,"         RF ECB IN E-COLIYAN  ","1021RR722115","20000","12100","64127","22001000",{"$f":"VLOOKUP(TRIM(J2700),'Transactional Departments'!A:B,2,FALSE)","v":"CENGR College Of Engineering"},"22001000","18003","SAHTARR722115CV","A01","",""]
["22","722",null,null,"USDA     RF US-INDIA PRTNDAS  ","1021RR722127","20000","12100","61002","22001000",{"$f":"VLOOKUP(TRIM(J2701),'Transactional Departments'!A:B,2,FALSE)","v":"CENGR College Of Engineering"},"22001000","18400","RUSDARR722127CV","A01","",""]
["22","722",null,null,"PUER/DOD RF RENEW ENERGY DAS  ","1021RR722133","20000","12100","62558","22001000",{"$f":"VLOOKUP(TRIM(J2702),'Transactional Departments'!A:B,2,FALSE)","v":"CENGR College Of Engineering"},"22001000","18400","RUPRRRR722133CV","A01","",""]
["22","722",null,null,"US DOJ   RF SYN INFRD PHOPAN  ","1021RR722145","20000","12100","61000","22001000",{"$f":"VLOOKUP(TRIM(J2703),'Transactional Departments'!A:B,2,FALSE)","v":"CENGR College Of Engineering"},"22001000","18400","RXXXXRR722145CV","A01","",""]
["22","722",null,null,"AMC         PATHOGEN INFERAMAS","1021RR722147","20000","12100","64123","22001000",{"$f":"VLOOKUP(TRIM(J2704),'Transactional Departments'!A:B,2,FALSE)","v":"CENGR College Of Engineering"},"22001000","18003","SACHSRR722147CV","A01","",""]
["22","722",null,null,"NSF      RF DNA DEVICES  XU   ","1021RR722150","20000","12100","61023","22001000",{"$f":"VLOOKUP(TRIM(J2705),'Transactional Departments'!A:B,2,FALSE)","v":"CENGR College Of Engineering"},"22001000","18400","RNSFXRR722150CV","A01","",""]
["22","722",null,null,"PU/NSF   RF WIRELESS     FOK  ","1021RR722159","20000","12100","64000","22001000",{"$f":"VLOOKUP(TRIM(J2706),'Transactional Departments'!A:B,2,FALSE)","v":"CENGR College Of Engineering"},"22001000","18400","RXXXXRR722159CV","A01","",""]
["22","722",null,null,"USDA/ UT RF SYNTHETC FUL KASTN","1021RR722163","20000","12100","62532","22001000",{"$f":"VLOOKUP(TRIM(J2707),'Transactional Departments'!A:B,2,FALSE)","v":"CENGR College Of Engineering"},"22001000","18400","RUNTNRR722163CV","A01","",""]
["22","722",null,null,"         VAR RSCH        LAW  ","1021RR722166","20000","12100","64206","22005039",{"$f":"VLOOKUP(TRIM(J2708),'Transactional Departments'!A:B,2,FALSE)","v":"Law, Edward"},"22005039","18003","SVARIRR722166CV","A01","",""]
["22","722",null,null,"         RF SMART GRIDS  MOHAM","1021RR722167","20000","12100","64000","22001000",{"$f":"VLOOKUP(TRIM(J2709),'Transactional Departments'!A:B,2,FALSE)","v":"CENGR College Of Engineering"},"22001000","18003","SQAUNRR722167CV","A01","",""]
["22","722",null,null,"USAID    RF RENEW ENERGY KISAA","1021RR722174","20000","12100","61028","22001000",{"$f":"VLOOKUP(TRIM(J2710),'Transactional Departments'!A:B,2,FALSE)","v":"CENGR College Of Engineering"},"22001000","18400","RUSADRR722174CV","A01","",""]
["22","722",null,null,"SCS      RF EV CHARGING  ADOLP","1021RR722177","20000","12100","64010","22001000",{"$f":"VLOOKUP(TRIM(J2711),'Transactional Departments'!A:B,2,FALSE)","v":"CENGR College Of Engineering"},"22001000","18400","RSOCORR722177CV","A01","",""]
["22","722",null,null,"NMSF/NOAARF SEA-MDI      JAMBE","1021RR722180","20000","12100","64421","22001000",{"$f":"VLOOKUP(TRIM(J2712),'Transactional Departments'!A:B,2,FALSE)","v":"CENGR College Of Engineering"},"22001000","18400","RNMSFRR722180CV","A01","",""]
["22","722",null,null,"ASC      RF FEASABILITY  PAN  ","1021RR722186","20000","12100","64000","22001000",{"$f":"VLOOKUP(TRIM(J2713),'Transactional Departments'!A:B,2,FALSE)","v":"CENGR College Of Engineering"},"22001000","18400","RXXXXRR722186CV","A01","",""]
["22","722",null,null,"GEPD     ESTUARY NUTRI   WOODS","1021RR722194","20000","12100","62052","22001000",{"$f":"VLOOKUP(TRIM(J2714),'Transactional Departments'!A:B,2,FALSE)","v":"CENGR College Of Engineering"},"22001000","18003","SGEPDRR722194CV","A01","",""]
["22","722",null,null,"GEPD        WATER COLUMN WOODS","1021RR722195","20000","12100","62052","22001000",{"$f":"VLOOKUP(TRIM(J2715),'Transactional Departments'!A:B,2,FALSE)","v":"CENGR College Of Engineering"},"22001000","18003","SGEPDRR722195CV","A01","",""]
["22","722",null,null,"SPARC    RF PAVEMENTS    CHORZ","1021RR722198","20000","12100","62057","22001000",{"$f":"VLOOKUP(TRIM(J2716),'Transactional Departments'!A:B,2,FALSE)","v":"CENGR College Of Engineering"},"22001000","18400","RSPSURR722198CV","A01","",""]
["22","722",null,null,"CAWES    RF RF_BIOMASS TOMANI ","1021RR722199","20000","12100","64131","22001000",{"$f":"VLOOKUP(TRIM(J2717),'Transactional Departments'!A:B,2,FALSE)","v":"CENGR College Of Engineering"},"22001000","18400","RUSEFRR722199CV","A01","",""]
["22","722",null,null,"GDOT     RF HURRICNE RSK CHORZ","1021RR722200","20000","12100","62017","22001000",{"$f":"VLOOKUP(TRIM(J2718),'Transactional Departments'!A:B,2,FALSE)","v":"CENGR College Of Engineering"},"22001000","18400","RGDOTRR722200CV","A01","",""]
["22","722",null,null,"         VARIOUS         EITEM","1021RR722201","20000","12100","64206","22004003",{"$f":"VLOOKUP(TRIM(J2719),'Transactional Departments'!A:B,2,FALSE)","v":"Eiteman, Mark"},"22004003","18003","SVARIRR722201CV","A01","",""]
["22","722",null,null,"         VARIOUS         JAMBE","1021RR722202","20000","12100","64206","22005013",{"$f":"VLOOKUP(TRIM(J2720),'Transactional Departments'!A:B,2,FALSE)","v":"Jambeck, Jenna"},"22005013","18003","SVARIRR722202CV","A01","",""]
["22","722",null,null,"NSF      RF MEMBRNE MECH FREEM","1021RR722204","20000","12100","61023","22001000",{"$f":"VLOOKUP(TRIM(J2721),'Transactional Departments'!A:B,2,FALSE)","v":"CENGR College Of Engineering"},"22001000","18400","RNSFXRR722204CV","A01","",""]
["22","722",null,null,"VCU      RF EAGER        PIDAP","1021RR722209","20000","12100","62552","22001000",{"$f":"VLOOKUP(TRIM(J2722),'Transactional Departments'!A:B,2,FALSE)","v":"CENGR College Of Engineering"},"22001000","18400","RVACWRR722209CV","A01","",""]
["22","722",null,null,"         RF MOUSE MODELS MORTE","1021RR722211","20000","12100","64452","22001000",{"$f":"VLOOKUP(TRIM(J2723),'Transactional Departments'!A:B,2,FALSE)","v":"CENGR College Of Engineering"},"22001000","18003","SSOFTRR722211CV","A01","",""]
["22","722",null,null,"GDOT     RF 2016 EMP SVY DURHA","1021RR722218","20000","12100","62017","22001000",{"$f":"VLOOKUP(TRIM(J2724),'Transactional Departments'!A:B,2,FALSE)","v":"CENGR College Of Engineering"},"22001000","18400","RGDOTRR722218CV","A01","",""]
["22","722",null,null,"UDVA     RF NITRIC OXIDE HANDA","1021RR722219","20000","12100","61000","22001000",{"$f":"VLOOKUP(TRIM(J2725),'Transactional Departments'!A:B,2,FALSE)","v":"CENGR College Of Engineering"},"22001000","18400","RXXXXRR722219CV","A01","",""]
["22","722",null,null,"         RF BASEMENT WALLDURHA","1021RR722221","20000","12100","64082","22001000",{"$f":"VLOOKUP(TRIM(J2726),'Transactional Departments'!A:B,2,FALSE)","v":"CENGR College Of Engineering"},"22001000","18003","SRMUSRR722221CV","A01","",""]
["22","722",null,null,"ONR      RF ENVERSE LOAD DAVIS","1021RR722223","20000","12100","61012","22001000",{"$f":"VLOOKUP(TRIM(J2727),'Transactional Departments'!A:B,2,FALSE)","v":"CENGR College Of Engineering"},"22001000","18400","RUSDDRR722223CV","A01","",""]
["22","722",null,null,"         RF DIRECT RENIN HALLO","1021RR722225","20000","12100","64207","22001000",{"$f":"VLOOKUP(TRIM(J2728),'Transactional Departments'!A:B,2,FALSE)","v":"CENGR College Of Engineering"},"22001000","18003","SANONRR722225CV","A01","",""]
["22","722",null,null,"NSF      RF EITEMAN W/ 182-455","1021RR722226","20000","12100","61023","22001000",{"$f":"VLOOKUP(TRIM(J2729),'Transactional Departments'!A:B,2,FALSE)","v":"CENGR College Of Engineering"},"22001000","18400","RNSFXRR722226CV","A01","",""]
["22","722",null,null,"KSU      RF ASPHALT PAVE KIM  ","1021RR722227","20000","12100","64418","22001000",{"$f":"VLOOKUP(TRIM(J2730),'Transactional Departments'!A:B,2,FALSE)","v":"CENGR College Of Engineering"},"22001000","18400","RKSURRR722227CV","A01","",""]
["22","722",null,null,"GIT/USDI RF RIVER BASINS TOLLN","1021RR722228","20000","12100","62021","22001000",{"$f":"VLOOKUP(TRIM(J2731),'Transactional Departments'!A:B,2,FALSE)","v":"CENGR College Of Engineering"},"22001000","18400","RGAITRR722228CV","A01","",""]
["22","722",null,null,"KSU      RF PAVEMENTS    KIM  ","1021RR722229","20000","12100","64418","22001000",{"$f":"VLOOKUP(TRIM(J2732),'Transactional Departments'!A:B,2,FALSE)","v":"CENGR College Of Engineering"},"22001000","18400","RKSURRR722229CV","A01","",""]
["22","722",null,null,"         RF LIGHTWAVE    PAN  ","1021RR722230","20000","12100","64000","22001000",{"$f":"VLOOKUP(TRIM(J2733),'Transactional Departments'!A:B,2,FALSE)","v":"CENGR College Of Engineering"},"22001000","18003","SLNLIRR722230CV","A01","",""]
["22","722",null,null,"         RF STTR BIO-BASEYAN  ","1021RR722231","20000","12100","64071","22001000",{"$f":"VLOOKUP(TRIM(J2734),'Transactional Departments'!A:B,2,FALSE)","v":"CENGR College Of Engineering"},"22001000","18003","SBIOTRR722231CV","A01","",""]
["22","722",null,null,"CDC      RF TWITTER ANAL TSE  ","1021RR722232","20000","12100","61031","22001000",{"$f":"VLOOKUP(TRIM(J2735),'Transactional Departments'!A:B,2,FALSE)","v":"CENGR College Of Engineering"},"22001000","18400","RCDCXRR722232CV","A01","",""]
["22","722",null,null,"NIH      RF CLOT STRUCT RAVERE","1021RR722237","20000","12100","61018","22001000",{"$f":"VLOOKUP(TRIM(J2736),'Transactional Departments'!A:B,2,FALSE)","v":"CENGR College Of Engineering"},"22001000","18400","RNIHXRR722237CV","A01","",""]
["22","722",null,null,"USDC     RF RR534-095         ","1021RR722238","20000","12100","61009","22001000",{"$f":"VLOOKUP(TRIM(J2737),'Transactional Departments'!A:B,2,FALSE)","v":"CENGR College Of Engineering"},"22001000","18400","RUSDCRR722238CV","A01","",""]
["22","722",null,null,"IS3D/NSF RF AUTHENTC INQ JOHNS","1021RR722241","20000","12100","64047","22001000",{"$f":"VLOOKUP(TRIM(J2738),'Transactional Departments'!A:B,2,FALSE)","v":"CENGR College Of Engineering"},"22001000","18400","RIS3DRR722241CV","A01","",""]
["22","722",null,null,"CDC      RF NITRIC OXIDE HANDA","1021RR722249","20000","12100","61031","22001000",{"$f":"VLOOKUP(TRIM(J2739),'Transactional Departments'!A:B,2,FALSE)","v":"CENGR College Of Engineering"},"22001000","18400","RCDCXRR722249CV","A01","",""]
["22","722",null,null,"USDOD    RF FACE RECOG   HORNA","1021RR722250","20000","12100","61012","22001000",{"$f":"VLOOKUP(TRIM(J2740),'Transactional Departments'!A:B,2,FALSE)","v":"CENGR College Of Engineering"},"22001000","18400","RUSDDRR722250CV","A01","",""]
["22","722",null,null,"MATCH $  RF 646257/722257GELLE","1021RR722253","20000","12100","64102","22001000",{"$f":"VLOOKUP(TRIM(J2741),'Transactional Departments'!A:B,2,FALSE)","v":"CENGR College Of Engineering"},"22001000","18400","RESCORR722253CV","A01","",""]
["22","722",null,null,"GCI      RF ESCOGO CHAR  GELLE","1021RR722257","20000","12100","64370","22001000",{"$f":"VLOOKUP(TRIM(J2742),'Transactional Departments'!A:B,2,FALSE)","v":"CENGR College Of Engineering"},"22001000","18400","RGCOIRR722257CV","A01","",""]
["22","722",null,null,"USDA     RF CARBON MONO  KASTN","1021RR722260","20000","12100","61006","22001000",{"$f":"VLOOKUP(TRIM(J2743),'Transactional Departments'!A:B,2,FALSE)","v":"CENGR College Of Engineering"},"22001000","18400","RNIFARR722260CV","A01","",""]
["22","722",null,null,"         RF ROBOTIC TOOL MOHAM","1021RR722379","20000","12100","64010","22001000",{"$f":"VLOOKUP(TRIM(J2744),'Transactional Departments'!A:B,2,FALSE)","v":"CENGR College Of Engineering"},"22001000","18003","SSOCORR722379CV","A01","",""]
["22","722",null,null,"         RF WRLSS CHARGE TSE  ","1021RR722380","20000","12100","64010","22001000",{"$f":"VLOOKUP(TRIM(J2745),'Transactional Departments'!A:B,2,FALSE)","v":"CENGR College Of Engineering"},"22001000","18003","SSOCORR722380CV","A01","",""]
["22","722",null,null,"OS/USDA  RF BIOENERGY    MANI ","1021RR722387","20000","12100","62507","22001000",{"$f":"VLOOKUP(TRIM(J2746),'Transactional Departments'!A:B,2,FALSE)","v":"CENGR College Of Engineering"},"22001000","18400","ROHSURR722387CV","A01","",""]
["22","722",null,null,"NSF      RF LIGNO BIO    YAN  ","1021RR722388","20000","12100","61023","22001000",{"$f":"VLOOKUP(TRIM(J2747),'Transactional Departments'!A:B,2,FALSE)","v":"CENGR College Of Engineering"},"22001000","18400","RNSFXRR722388CV","A01","",""]
["22","722",null,null,"NSF      RF AIRWAY MECH  PIDAP","1021RR722401","20000","12100","61023","22001000",{"$f":"VLOOKUP(TRIM(J2748),'Transactional Departments'!A:B,2,FALSE)","v":"CENGR College Of Engineering"},"22001000","18400","RNSFXRR722401CV","A01","",""]
["22","722",null,null,"NSF      RF PS W/722401  PIDAP","1021RR722402","20000","12100","61023","22001000",{"$f":"VLOOKUP(TRIM(J2749),'Transactional Departments'!A:B,2,FALSE)","v":"CENGR College Of Engineering"},"22001000","18400","RNSFXRR722402CV","A01","",""]
["22","722",null,null,"VCU/NIH  RF INFLAMMATION PIDAP","1021RR722404","20000","12100","62552","22001000",{"$f":"VLOOKUP(TRIM(J2750),'Transactional Departments'!A:B,2,FALSE)","v":"CENGR College Of Engineering"},"22001000","18400","RVACWRR722404CV","A01","",""]
["22","722",null,null,"NSF      RF DEEP IMAGE   KNER ","1021RR722405","20000","12100","61023","22001000",{"$f":"VLOOKUP(TRIM(J2751),'Transactional Departments'!A:B,2,FALSE)","v":"CENGR College Of Engineering"},"22001000","18400","RNSFXRR722405CV","A01","",""]
["22","722",null,null,"NSF      RF MACULAR DEG  PIDAP","1021RR722406","20000","12100","61023","22001000",{"$f":"VLOOKUP(TRIM(J2752),'Transactional Departments'!A:B,2,FALSE)","v":"CENGR College Of Engineering"},"22001000","18400","RNSFXRR722406CV","A01","",""]
["22","722",null,null,"CONV ACCTRF DO NOT OPEN SPAN  ","1021RR722407","20000","12100","61023","22001000",{"$f":"VLOOKUP(TRIM(J2753),'Transactional Departments'!A:B,2,FALSE)","v":"CENGR College Of Engineering"},"22001000","18400","RNSFXRR722407CV","A01","",""]
["22","722",null,null,"NIH      RF ROBOT LASER  TSE  ","1021RR722412","20000","12100","61018","22001000",{"$f":"VLOOKUP(TRIM(J2754),'Transactional Departments'!A:B,2,FALSE)","v":"CENGR College Of Engineering"},"22001000","18400","RNIHXRR722412CV","A01","",""]
["22","722",null,null,"VAPT/NSF RF CELLS AS INTEFREEM","1021RR722417","20000","12100","62519","22001000",{"$f":"VLOOKUP(TRIM(J2755),'Transactional Departments'!A:B,2,FALSE)","v":"CENGR College Of Engineering"},"22001000","18400","RVAPTRR722417CV","A01","",""]
["22","722",null,null,"CI       RF HYPERSPECTRA      ","1021RR722420","20000","12100","64355","22001000",{"$f":"VLOOKUP(TRIM(J2756),'Transactional Departments'!A:B,2,FALSE)","v":"CENGR College Of Engineering"},"22001000","18400","RCOTTRR722420CV","A01","",""]
["22","722",null,null,"COD      FSS C02 LEACHATEDAS  ","1021RR722426","20000","12100","63003","22001000",{"$f":"VLOOKUP(TRIM(J2757),'Transactional Departments'!A:B,2,FALSE)","v":"CENGR College Of Engineering"},"22001000","18003","SCDEKRR722426CV","A01","",""]
["22","722",null,null,"WF       RF SURF CHANNEL CHRIS","1021RR722432","20000","12100","64387","22001000",{"$f":"VLOOKUP(TRIM(J2758),'Transactional Departments'!A:B,2,FALSE)","v":"CENGR College Of Engineering"},"22001000","18400","RWORMRR722432CV","A01","",""]
["22","722",null,null,"SDSMT    RF USDOT/SDDOT CCETIN","1021RR722437","20000","12100","62500","22001000",{"$f":"VLOOKUP(TRIM(J2759),'Transactional Departments'!A:B,2,FALSE)","v":"CENGR College Of Engineering"},"22001000","18400","RXXXXRR722437CV","A01","",""]
["22","722",null,null,"GA POWER RF SOLAR TECH 2CGATTI","1021RR722442","20000","12100","64004","22001000",{"$f":"VLOOKUP(TRIM(J2760),'Transactional Departments'!A:B,2,FALSE)","v":"CENGR College Of Engineering"},"22001000","18400","RGPOWRR722442CV","A01","",""]
["22","722",null,null,"GA POWER RF SOLAR TECH 3AGATTI","1021RR722445","20000","12100","64004","22001000",{"$f":"VLOOKUP(TRIM(J2761),'Transactional Departments'!A:B,2,FALSE)","v":"CENGR College Of Engineering"},"22001000","18400","RGPOWRR722445CV","A01","",""]
["22","722",null,null,"GA POWER RF SOLAR TECH 3BGATTI","1021RR722446","20000","12100","64004","22001000",{"$f":"VLOOKUP(TRIM(J2762),'Transactional Departments'!A:B,2,FALSE)","v":"CENGR College Of Engineering"},"22001000","18400","RGPOWRR722446CV","A01","",""]
["22","722",null,null,"         RF STTR PHASE I YAN  ","1021RR722447","20000","12100","64071","22001000",{"$f":"VLOOKUP(TRIM(J2763),'Transactional Departments'!A:B,2,FALSE)","v":"CENGR College Of Engineering"},"22001000","18003","SBIOTRR722447CV","A01","",""]
["22","722",null,null,"NSF      RF EMPTHY PRJCT WALTH","1021RR722448","20000","12100","61023","22001000",{"$f":"VLOOKUP(TRIM(J2764),'Transactional Departments'!A:B,2,FALSE)","v":"CENGR College Of Engineering"},"22001000","18400","RNSFXRR722448CV","A01","",""]
["22","722",null,null,"SRIC/USDARF W/293-628    AHMAD","1021RR722449","20000","12100","64360","22001000",{"$f":"VLOOKUP(TRIM(J2765),'Transactional Departments'!A:B,2,FALSE)","v":"CENGR College Of Engineering"},"22001000","18400","RSRICRR722449CV","A01","",""]
["22","722",null,null,"         RF DISEASE MODL HALLO","1021RR722450","20000","12100","64469","22001000",{"$f":"VLOOKUP(TRIM(J2766),'Transactional Departments'!A:B,2,FALSE)","v":"CENGR College Of Engineering"},"22001000","18003","SASCARR722450CV","A01","",""]
["22","722",null,null,"         RF ISLET PROG   KISAA","1021RR722466","20000","12100","64076","22001000",{"$f":"VLOOKUP(TRIM(J2767),'Transactional Departments'!A:B,2,FALSE)","v":"CENGR College Of Engineering"},"22001000","18003","SVICARR722466CV","A01","",""]
["22","722",null,null,"         FUEL ADDITIVES  GELLE","1031RE722153","20000","13100","64000","22001000",{"$f":"VLOOKUP(TRIM(J2768),'Transactional Departments'!A:B,2,FALSE)","v":"CENGR College Of Engineering"},"22001000","18003","SSNCLRE722153CV","A01","",""]
["22","722",null,null,"GDOC     FOOD WASTE COMP ADOLP","1031RE722244","20000","13100","62035","22001000",{"$f":"VLOOKUP(TRIM(J2769),'Transactional Departments'!A:B,2,FALSE)","v":"CENGR College Of Engineering"},"22001000","18003","SGCORRE722244CV","A01","",""]
["22","722",null,null,"NMSF/USDC   DEBRIS TRACK JAMBE","1031RE722258","20000","13100","64421","22001000",{"$f":"VLOOKUP(TRIM(J2770),'Transactional Departments'!A:B,2,FALSE)","v":"CENGR College Of Engineering"},"22001000","18003","SNMSFRE722258CV","A01","",""]
["22","722",null,null,"         FOOD WST PROC   ADOLP","1031RE722409","20000","13100","62035","22001000",{"$f":"VLOOKUP(TRIM(J2771),'Transactional Departments'!A:B,2,FALSE)","v":"CENGR College Of Engineering"},"22001000","18003","SGCORRE722409CV","A01","",""]
["22","722",null,null,"FMC      W/250-326       MACDO","1031RE722413","20000","13100","64023","22001000",{"$f":"VLOOKUP(TRIM(J2772),'Transactional Departments'!A:B,2,FALSE)","v":"CENGR College Of Engineering"},"22001000","18003","SFOMCRE722413CV","A01","",""]
["22","722",null,null,"USDA     WASTE REDUCT    ADOLP","1031RE722419","20000","13100","61002","22001000",{"$f":"VLOOKUP(TRIM(J2773),'Transactional Departments'!A:B,2,FALSE)","v":"CENGR College Of Engineering"},"22001000","18003","SUSDARE722419CV","A01","",""]
["22","722",null,null,"FORD     RF W/ 250-342   MACDO","1031RE722455","20000","13100","64023","22001000",{"$f":"VLOOKUP(TRIM(J2774),'Transactional Departments'!A:B,2,FALSE)","v":"CENGR College Of Engineering"},"22001000","18400","RFOMCRE722455CV","A01","",""]
["23","250",null,null,"CESU     RF SERO 15-16   GOETC","1021RR250195","20000","12100","61034","23001000",{"$f":"VLOOKUP(TRIM(J2775),'Transactional Departments'!A:B,2,FALSE)","v":"College Of Env & Design"},"23001000","18400","RCESURR250195CV","A01","",""]
["23","250",null,null,"CELA     RF LNDSCPE JRNL NADEN","1021RR250196","20000","12100","64173","23001000",{"$f":"VLOOKUP(TRIM(J2776),'Transactional Departments'!A:B,2,FALSE)","v":"College Of Env & Design"},"23001000","18400","RCOEARR250196CV","A01","",""]
["23","250",null,null,"GDOT     RF RR534-112    ALEXA","1021RR250198","20000","12100","62017","23001000",{"$f":"VLOOKUP(TRIM(J2777),'Transactional Departments'!A:B,2,FALSE)","v":"College Of Env & Design"},"23001000","18400","RGDOTRR250198CV","A01","",""]
["23","250",null,null,"         RF RR722-442    GATTI","1021RR250213","20000","12100","64004","23001000",{"$f":"VLOOKUP(TRIM(J2778),'Transactional Departments'!A:B,2,FALSE)","v":"College Of Env & Design"},"23001000","18003","SGPOWRR250213CV","A01","",""]
["23","250",null,null,"USDC     RF RR746-076         ","1021RR250215","20000","12100","61009","23001000",{"$f":"VLOOKUP(TRIM(J2779),'Transactional Departments'!A:B,2,FALSE)","v":"College Of Env & Design"},"23001000","18400","RUSDCRR250215CV","A01","",""]
["23","250",null,null,"ICP      RF LANDSCAPE    PARDU","1021RR250327","20000","12100","64000","23001000",{"$f":"VLOOKUP(TRIM(J2780),'Transactional Departments'!A:B,2,FALSE)","v":"College Of Env & Design"},"23001000","18400","RXXXXRR250327CV","A01","",""]
["23","250",null,null,"CELA     RF LNDSCPE JRNL NADEN","1021RR250340","20000","12100","64173","23001000",{"$f":"VLOOKUP(TRIM(J2781),'Transactional Departments'!A:B,2,FALSE)","v":"College Of Env & Design"},"23001000","18400","RCOEARR250340CV","A01","",""]
["23","250",null,null,"GA PWR   SOLAR PROJECT   VICK ","1021RR250341","20000","12100","64398","23001000",{"$f":"VLOOKUP(TRIM(J2782),'Transactional Departments'!A:B,2,FALSE)","v":"College Of Env & Design"},"23001000","18003","SGPFDRR250341CV","A01","",""]
["23","250",null,null,"PSU/EPA  RF GREEN DES    ORLAN","1021RR250347","20000","12100","62531","23001000",{"$f":"VLOOKUP(TRIM(J2783),'Transactional Departments'!A:B,2,FALSE)","v":"College Of Env & Design"},"23001000","18400","RPASURR250347CV","A01","",""]
["23","250",null,null,"AMER RIV RF WATERSHED    CALAB","1021RR250350","20000","12100","64222","23001000",{"$f":"VLOOKUP(TRIM(J2784),'Transactional Departments'!A:B,2,FALSE)","v":"College Of Env & Design"},"23001000","18400","RARIVRR250350CV","A01","",""]
["23","250",null,null,"         RF UGARF SITE PLLONGE","1021RR250353","20000","12100","64000","23001000",{"$f":"VLOOKUP(TRIM(J2785),'Transactional Departments'!A:B,2,FALSE)","v":"College Of Env & Design"},"23001000","18003","SENDFRR250353CV","A01","",""]
["23","250",null,null,"PSU/USDI RF LSCAPE W VA  ORLAN","1021RR250367","20000","12100","62531","23001000",{"$f":"VLOOKUP(TRIM(J2786),'Transactional Departments'!A:B,2,FALSE)","v":"College Of Env & Design"},"23001000","18400","RPASURR250367CV","A01","",""]
["23","250",null,null,"GA DCA   ST CITY DESIGN 1NADEN","1031RE250211","20000","13100","62011","23001000",{"$f":"VLOOKUP(TRIM(J2787),'Transactional Departments'!A:B,2,FALSE)","v":"College Of Env & Design"},"23001000","18003","SGAFCRE250211CV","A01","",""]
["23","250",null,null,"AFF      F'STATION GRDN  MCDOW","1031RE250212","20000","13100","64000","23001000",{"$f":"VLOOKUP(TRIM(J2788),'Transactional Departments'!A:B,2,FALSE)","v":"College Of Env & Design"},"23001000","18003","SFONARE250212CV","A01","",""]
["23","250",null,null,"GTC      FINDIT          KVIKL","1031RE250214","20000","13100","64344","23001000",{"$f":"VLOOKUP(TRIM(J2789),'Transactional Departments'!A:B,2,FALSE)","v":"College Of Env & Design"},"23001000","18003","SGTCXRE250214CV","A01","",""]
["23","250",null,null,"         NAPC SUPPORT SERCASSI","1031RE250301","20000","13100","64000","23001000",{"$f":"VLOOKUP(TRIM(J2790),'Transactional Departments'!A:B,2,FALSE)","v":"College Of Env & Design"},"23001000","18003","SNNPCRE250301CV","A01","",""]
["23","250",null,null,"FMC      FORD COLL CHALL MACDO","1031RE250326","20000","13100","64023","23001000",{"$f":"VLOOKUP(TRIM(J2791),'Transactional Departments'!A:B,2,FALSE)","v":"College Of Env & Design"},"23001000","18003","SFOMCRE250326CV","A01","",""]
["23","250",null,null,"         GOOD SAMARITAN  CASSI","1031RE250337","20000","13100","64000","23001000",{"$f":"VLOOKUP(TRIM(J2792),'Transactional Departments'!A:B,2,FALSE)","v":"College Of Env & Design"},"23001000","18003","SXXXXRE250337CV","A01","",""]
["23","250",null,null,"FORD     RF GOAT SHELTER MACDO","1031RE250342","20000","13100","64023","23001000",{"$f":"VLOOKUP(TRIM(J2793),'Transactional Departments'!A:B,2,FALSE)","v":"College Of Env & Design"},"23001000","18400","RFOMCRE250342CV","A01","",""]
["23","250",null,null,"SYLVANIA BRIER CREEK CHA LEWIS","1031RE250344","20000","13100","63000","23001000",{"$f":"VLOOKUP(TRIM(J2794),'Transactional Departments'!A:B,2,FALSE)","v":"College Of Env & Design"},"23001000","18003","SXXXXRE250344CV","A01","",""]
["23","250",null,null,"CIT OXFRDHISTOR RSOURCE  CASSI","1031RE250345","20000","13100","63000","23001000",{"$f":"VLOOKUP(TRIM(J2795),'Transactional Departments'!A:B,2,FALSE)","v":"College Of Env & Design"},"23001000","18003","SCOOXRE250345CV","A01","",""]
["23","250",null,null,"E GA COLLMASTER PLAN     SPOON","1031RE250349","20000","13100","62025","23001000",{"$f":"VLOOKUP(TRIM(J2796),'Transactional Departments'!A:B,2,FALSE)","v":"College Of Env & Design"},"23001000","18003","SEAGCRE250349CV","A01","",""]
["23","250",null,null,"GVP (CID)UGA_SPR '17 GA__CROWL","1031RE250351","20000","13100","63120","23001000",{"$f":"VLOOKUP(TRIM(J2797),'Transactional Departments'!A:B,2,FALSE)","v":"College Of Env & Design"},"23001000","18003","SGWVCRE250351CV","A01","",""]
["23","250",null,null,"CTY COV  COV REBRAND     LONGE","1031RE250354","20000","13100","63073","23001000",{"$f":"VLOOKUP(TRIM(J2798),'Transactional Departments'!A:B,2,FALSE)","v":"College Of Env & Design"},"23001000","18003","SCCOVRE250354CV","A01","",""]
["23","250",null,null,"WNTRVILLECHARETTE        LEWIS","1031RE250355","20000","13100","63126","23001000",{"$f":"VLOOKUP(TRIM(J2799),'Transactional Departments'!A:B,2,FALSE)","v":"College Of Env & Design"},"23001000","18003","SWNTRRE250355CV","A01","",""]
["23","250",null,null,"CRC OF GAGEODESIGN            ","1031RE250356","20000","13100","62069","23001000",{"$f":"VLOOKUP(TRIM(J2800),'Transactional Departments'!A:B,2,FALSE)","v":"College Of Env & Design"},"23001000","18003","SCRCGRE250356CV","A01","",""]
["23","250",null,null,"ELLIJAY  HARRISON PARK   LEWIS","1031RE250357","20000","13100","63105","23001000",{"$f":"VLOOKUP(TRIM(J2801),'Transactional Departments'!A:B,2,FALSE)","v":"College Of Env & Design"},"23001000","18003","SELJYRE250357CV","A01","",""]
["23","250",null,null,"TERRACON MORGAN CTY SRVY KVIKL","1031RE250358","20000","13100","64113","23001000",{"$f":"VLOOKUP(TRIM(J2802),'Transactional Departments'!A:B,2,FALSE)","v":"College Of Env & Design"},"23001000","18003","STERRRE250358CV","A01","",""]
["23","250",null,null,"GA DCA   STREET CITY 18  HALL ","1031RE250366","20000","13100","62011","23001000",{"$f":"VLOOKUP(TRIM(J2803),'Transactional Departments'!A:B,2,FALSE)","v":"College Of Env & Design"},"23001000","18003","SGAFCRE250366CV","A01","",""]
["23","250",null,null,"NORCROSS W ROCK ETC      LONGE","1031RE250368","20000","13100","63133","23001000",{"$f":"VLOOKUP(TRIM(J2804),'Transactional Departments'!A:B,2,FALSE)","v":"College Of Env & Design"},"23001000","18003","SNORCRE250368CV","A01","",""]
["23","250",null,null,"GE&H CTR ENV & HERIT PROJNADEN","1031RE250369","20000","13100","64524","23001000",{"$f":"VLOOKUP(TRIM(J2805),'Transactional Departments'!A:B,2,FALSE)","v":"College Of Env & Design"},"23001000","18003","SGWINRE250369CV","A01","",""]
["24","254",null,null,"         HOME ECONOMICS EXTEN ","1011RH254003","20000","11100","64206","24110000",{"$f":"VLOOKUP(TRIM(J2806),'Transactional Departments'!A:B,2,FALSE)","v":"FACS Admin"},"24110000","18003","SVARIRH254003CV","A01","",""]
["24","254",null,null,"USDA NIFARF YOURE FELLOW GIRAU","1021RR254332","20000","12100","61002","24110000",{"$f":"VLOOKUP(TRIM(J2807),'Transactional Departments'!A:B,2,FALSE)","v":"FACS Admin"},"24110000","18400","RUSDARR254332CV","A01","",""]
["24","254",null,null,"USDA_NIFARF PS W/254332  GIRAU","1021RR254335","20000","12100","61002","24110000",{"$f":"VLOOKUP(TRIM(J2808),'Transactional Departments'!A:B,2,FALSE)","v":"FACS Admin"},"24110000","18400","RUSDARR254335CV","A01","",""]
["24","254",null,null,"UOF      ANNIE'S RISK    MURRA","1031RE254326","20000","13100","62511","24110000",{"$f":"VLOOKUP(TRIM(J2809),'Transactional Departments'!A:B,2,FALSE)","v":"FACS Admin"},"24110000","18003","SUFLXRE254326CV","A01","",""]
["24","255",null,null,"GDECL    BRIGHT START    KAY  ","1031RE255102","20000","13100","62056","24210000",{"$f":"VLOOKUP(TRIM(J2810),'Transactional Departments'!A:B,2,FALSE)","v":"HDFS Admin"},"24210000","18003","SGDECRE255102CV","A01","",""]
["24","256",null,null,"GOHS     GTIPI FY12      BOWER","1031RE256222","20000","13100","62028","24140000",{"$f":"VLOOKUP(TRIM(J2811),'Transactional Departments'!A:B,2,FALSE)","v":"FACS Assoc Dean Outreach Ext"},"24140000","18003","SGOHSRE256222CV","A01","",""]
["24","256",null,null,"GA EFA   M&E WTHRZTN     TURNE","1031RU256226","20000","13100","62000","24140000",{"$f":"VLOOKUP(TRIM(J2812),'Transactional Departments'!A:B,2,FALSE)","v":"FACS Assoc Dean Outreach Ext"},"24140000","18003","SXXXXRU256226CV","A01","",""]
["24","296",null,null,"GADHS    SNAP FY17       LEE  ","2521RC296011","21300","12100","62015","24100AES",{"$f":"VLOOKUP(TRIM(J2813),'Transactional Departments'!A:B,2,FALSE)","v":"FCS Hatch CAES Funds"},"24100AES","18003","SGHUMRC296011CV","A01","",""]
["24","296",null,null,"USDA-NIFAUGA_CANCER PREV_BERG ","2521RC296013","21300","12100","61006","24100AES",{"$f":"VLOOKUP(TRIM(J2814),'Transactional Departments'!A:B,2,FALSE)","v":"FCS Hatch CAES Funds"},"24100AES","18003","SNIFARC296013CV","A01","",""]
["24","296",null,null,"GDOE     _NUTRIT CERTIF       ","2521RC296212","21300","12100","62012","24100AES",{"$f":"VLOOKUP(TRIM(J2815),'Transactional Departments'!A:B,2,FALSE)","v":"FCS Hatch CAES Funds"},"24100AES","18003","SGADERC296212CV","A01","",""]
["24","296",null,null,"GDOE     W/296-212            ","2521RC296213","21300","12100","62012","24100AES",{"$f":"VLOOKUP(TRIM(J2816),'Transactional Departments'!A:B,2,FALSE)","v":"FCS Hatch CAES Funds"},"24100AES","18003","SGADERC296213CV","A01","",""]
["24","296",null,null,"         RF EGG NUTRI    LEWIS","2521RC296214","21300","12100","64125","24100AES",{"$f":"VLOOKUP(TRIM(J2817),'Transactional Departments'!A:B,2,FALSE)","v":"FCS Hatch CAES Funds"},"24100AES","18003","SAMEBRC296214CV","A01","",""]
["24","296",null,null,"RWJ FDN  RF CHILD CARE   COTWR","2521RC296215","21300","12100","64406","24100AES",{"$f":"VLOOKUP(TRIM(J2818),'Transactional Departments'!A:B,2,FALSE)","v":"FCS Hatch CAES Funds"},"24100AES","18400","RWOODRC296215CV","A01","",""]
["24","296",null,null,"PGC      RF HAIR SUR     MINKO","2521RC296216","21300","12100","64009","24100AES",{"$f":"VLOOKUP(TRIM(J2819),'Transactional Departments'!A:B,2,FALSE)","v":"FCS Hatch CAES Funds"},"24100AES","18400","RP&GCRC296216CV","A01","",""]
["24","296",null,null,"MHC      RF HOMEOWNERSHIPSKOBB","2521RC296217","21300","12100","64152","24100AES",{"$f":"VLOOKUP(TRIM(J2820),'Transactional Departments'!A:B,2,FALSE)","v":"FCS Hatch CAES Funds"},"24100AES","18400","RMNHCRC296217CV","A01","",""]
["24","296",null,null,"         RF COOLING TOWELSHARM","2521RC296218","21300","12100","64118","24100AES",{"$f":"VLOOKUP(TRIM(J2821),'Transactional Departments'!A:B,2,FALSE)","v":"FCS Hatch CAES Funds"},"24100AES","18003","SMPHIRC296218CV","A01","",""]
["24","296",null,null,"NIH      RF REDOX SYS    PAZDR","2521RC296219","21300","12100","61018","24100AES",{"$f":"VLOOKUP(TRIM(J2822),'Transactional Departments'!A:B,2,FALSE)","v":"FCS Hatch CAES Funds"},"24100AES","18400","RNIHXRC296219CV","A01","",""]
["24","296",null,null,"         RF POTATO STRCH DE LA","2521RC296220","21300","12100","64531","24100AES",{"$f":"VLOOKUP(TRIM(J2823),'Transactional Departments'!A:B,2,FALSE)","v":"FCS Hatch CAES Funds"},"24100AES","18003","SAPRERC296220CV","A01","",""]
["24","296",null,null,"GDHS     UGA SNAP ED     LEE  ","2521RC296221","21300","12100","62015","24100AES",{"$f":"VLOOKUP(TRIM(J2824),'Transactional Departments'!A:B,2,FALSE)","v":"FCS Hatch CAES Funds"},"24100AES","18003","SGHUMRC296221CV","A01","",""]
["24","296",null,null,"ANISA    RF PBT BRUSH    SHARM","2521RC296222","21300","12100","64000","24100AES",{"$f":"VLOOKUP(TRIM(J2825),'Transactional Departments'!A:B,2,FALSE)","v":"FCS Hatch CAES Funds"},"24100AES","18400","RANIIRC296222CV","A01","",""]
["24","296",null,null,"MPH      RF COOL TECH    SHARM","2521RC296223","21300","12100","64118","24100AES",{"$f":"VLOOKUP(TRIM(J2826),'Transactional Departments'!A:B,2,FALSE)","v":"FCS Hatch CAES Funds"},"24100AES","18400","RMPHIRC296223CV","A01","",""]
["24","296",null,null,"NIH      RF GDF11        PAZDR","2521RC296224","21300","12100","61018","24100AES",{"$f":"VLOOKUP(TRIM(J2827),'Transactional Departments'!A:B,2,FALSE)","v":"FCS Hatch CAES Funds"},"24100AES","18400","RNIHXRC296224CV","A01","",""]
["24","296",null,null,"PLEATCO  RF SPA FILTERS  BHAT ","2521RC296225","21300","12100","64000","24100AES",{"$f":"VLOOKUP(TRIM(J2828),'Transactional Departments'!A:B,2,FALSE)","v":"FCS Hatch CAES Funds"},"24100AES","18400","RPNPLRC296225CV","A01","",""]
["24","296",null,null,"NATO     RF SPS          MINKO","2521RC296227","21300","12100","64000","24100AES",{"$f":"VLOOKUP(TRIM(J2829),'Transactional Departments'!A:B,2,FALSE)","v":"FCS Hatch CAES Funds"},"24100AES","18400","RXXXXRC296227CV","A01","",""]
["24","296",null,null,"FEDERAL HATCH                 ","2526GC296001","21300","12100","61HAT","24110000",{"$f":"VLOOKUP(TRIM(J2830),'Transactional Departments'!A:B,2,FALSE)","v":"FACS Admin"},"24110000","18003","SNIFAXRGHATCH17","F17","",""]
["24","296",null,null,"AES REG HATCH ANDERSON        ","2526GC296012","21300","12100","61MSH","24300AA0",{"$f":"VLOOKUP(TRIM(J2831),'Transactional Departments'!A:B,2,FALSE)","v":"Alex Anderson"},"24300AA0","18003","SNIFAXMSHATCH17","F17","",""]
["24","296",null,null,"AES FED HATCH DE LA SERRE     ","2526GC296061","21300","12100","61HAT","24300CS0",{"$f":"VLOOKUP(TRIM(J2832),'Transactional Departments'!A:B,2,FALSE)","v":"Claire De La Serre"},"24300CS0","18003","SNIFAXRGHATCH17","F17","",""]
["24","296",null,null,"FCS FED HATCH CHATTERJEE      ","2526GC296071","21300","12100","61HAT","24400SC0",{"$f":"VLOOKUP(TRIM(J2833),'Transactional Departments'!A:B,2,FALSE)","v":"Swarn Chatterjee"},"24400SC0","18003","SNIFAXRGHATCH17","F17","",""]
["24","296",null,null,"FCS FED HATCH SKOBBA          ","2526GC296081","21300","12100","61HAT","24400KS0",{"$f":"VLOOKUP(TRIM(J2834),'Transactional Departments'!A:B,2,FALSE)","v":"Kimberly Skobba"},"24400KS0","18003","SNIFAXRGHATCH17","F17","",""]
["24","296",null,null,"AES FED HATCH PAZDRO          ","2526GC296121","21300","12100","61HAT","24300RP0",{"$f":"VLOOKUP(TRIM(J2835),'Transactional Departments'!A:B,2,FALSE)","v":"Rob Pazdro"},"24300RP0","18003","SNIFAXRGHATCH17","F17","",""]
["24","296",null,null,"AES FED HATCH LEE             ","2526GC296131","21300","12100","61HAT","24300JL0",{"$f":"VLOOKUP(TRIM(J2836),'Transactional Departments'!A:B,2,FALSE)","v":"Jung Sun Lee"},"24300JL0","18003","SNIFAXRGHATCH17","F17","",""]
["24","296",null,null,"AES FED HATCH JOHNSON         ","2526GC296141","21300","12100","61HAT","24300MJ0",{"$f":"VLOOKUP(TRIM(J2837),'Transactional Departments'!A:B,2,FALSE)","v":"Mary Ann Johnson"},"24300MJ0","18003","SNIFAXRGHATCH17","F17","",""]
["24","296",null,null,"AES FED HATCH GRIDER          ","2526GC296151","21300","12100","61HAT","24300AG0",{"$f":"VLOOKUP(TRIM(J2838),'Transactional Departments'!A:B,2,FALSE)","v":"Arthur Grider"},"24300AG0","18003","SNIFAXRGHATCH17","F17","",""]
["24","296",null,null,"FCS FED HATCH BABIARZ         ","2526GC296161","21300","12100","61HAT","24400SA0",{"$f":"VLOOKUP(TRIM(J2839),'Transactional Departments'!A:B,2,FALSE)","v":"Sophia Anong"},"24400SA0","18003","SNIFAXRGHATCH17","F17","",""]
["24","296",null,null,"AES FED HATCH TMI             ","2526GC296601","21300","12100","61HAT","24510000",{"$f":"VLOOKUP(TRIM(J2840),'Transactional Departments'!A:B,2,FALSE)","v":"TMI Admin"},"24510000","18003","SNIFAXRGHATCH17","F17","",""]
["24","296",null,null,"AES FED HATCH FDN             ","2526GC296701","21300","12100","61HAT","24310000",{"$f":"VLOOKUP(TRIM(J2841),'Transactional Departments'!A:B,2,FALSE)","v":"FDN Admin"},"24310000","18003","SNIFAXRGHATCH17","F17","",""]
["24","296",null,null,"FCS FDN FED HATCH LEWIS       ","2526GC296781","21300","12100","61HAT","24300RL0",{"$f":"VLOOKUP(TRIM(J2842),'Transactional Departments'!A:B,2,FALSE)","v":"Rick Lewis"},"24300RL0","18003","SNIFAXRGHATCH17","F17","",""]
["24","296",null,null,"FCS FED HATCH PALMER          ","2526GC296821","21300","12100","61HAT","24400LP0",{"$f":"VLOOKUP(TRIM(J2843),'Transactional Departments'!A:B,2,FALSE)","v":"Lance Palmer"},"24400LP0","18003","SNIFAXRGHATCH17","F17","",""]
["24","296",null,null,"FCS FED HATCH CUDE            ","2526GC296841","21300","12100","61HAT","24400BC0",{"$f":"VLOOKUP(TRIM(J2844),'Transactional Departments'!A:B,2,FALSE)","v":"Brenda Crude"},"24400BC0","18003","SNIFAXRGHATCH17","F17","",""]
["24","357",null,null,"FEDERAL SMITH LEVER           ","2631GE357001","21310","13200","61FSL","24140000",{"$f":"VLOOKUP(TRIM(J2845),'Transactional Departments'!A:B,2,FALSE)","v":"FACS Assoc Dean Outreach Ext"},"24140000","18003","SNIFAXSMLEVER17","F17","",""]
["24","357",null,null,"FED SMITH LEVER HDFS BOWER    ","2631GE357411","21310","13200","61FSL","24140000",{"$f":"VLOOKUP(TRIM(J2846),'Transactional Departments'!A:B,2,FALSE)","v":"FACS Assoc Dean Outreach Ext"},"24140000","18003","SNIFAXSMLEVER17","F17","",""]
["24","357",null,null,"FED SMITH LEVER HDFS BALES    ","2631GE357421","21310","13200","61FSL","24200DB0",{"$f":"VLOOKUP(TRIM(J2847),'Transactional Departments'!A:B,2,FALSE)","v":"Diane Bales"},"24200DB0","18003","SNIFAXSMLEVER17","F17","",""]
["24","357",null,null,"FED SMITH LEVER HDFS FUTRIS   ","2631GE357431","21310","13200","61FSL","24200TF0",{"$f":"VLOOKUP(TRIM(J2848),'Transactional Departments'!A:B,2,FALSE)","v":"Ted Futris"},"24200TF0","18003","SNIFAXSMLEVER17","F17","",""]
["24","357",null,null,"FED SMITH LEVER FDN BERG      ","2631GE357451","21310","13200","61FSL","24300AB0",{"$f":"VLOOKUP(TRIM(J2849),'Transactional Departments'!A:B,2,FALSE)","v":"Alison Berg"},"24300AB0","18003","SNIFAXSMLEVER17","F17","",""]
["24","357",null,null,"FEDERAL SMITH LEVER/FDN       ","2631GE357701","21310","13200","61FSL","24310000",{"$f":"VLOOKUP(TRIM(J2850),'Transactional Departments'!A:B,2,FALSE)","v":"FDN Admin"},"24310000","18003","SNIFAXSMLEVER17","F17","",""]
["24","357",null,null,"FED SMITH LEVER FDN ANDRESS   ","2631GE357711","21310","13200","61FSL","24300EA0",{"$f":"VLOOKUP(TRIM(J2851),'Transactional Departments'!A:B,2,FALSE)","v":"Elizabeth Andress"},"24300EA0","18003","SNIFAXSMLEVER17","F17","",""]
["24","357",null,null,"FED SMITH LEVER FDN HARRISON  ","2631GE357731","21310","13200","61FSL","24300MJ0",{"$f":"VLOOKUP(TRIM(J2852),'Transactional Departments'!A:B,2,FALSE)","v":"Mary Ann Johnson"},"24300MJ0","18003","SNIFAXSMLEVER17","F17","",""]
["24","357",null,null,"FED SMITH LEVER HCE TURNER    ","2631GE357811","21310","13200","61FSL","24400PT0",{"$f":"VLOOKUP(TRIM(J2853),'Transactional Departments'!A:B,2,FALSE)","v":"Pamela Turner"},"24400PT0","18003","SNIFAXSMLEVER17","F17","",""]
["24","357",null,null,"FED SMITH LEVER HCE KOONCE    ","2631GE357821","21310","13200","61FSL","24400JK0",{"$f":"VLOOKUP(TRIM(J2854),'Transactional Departments'!A:B,2,FALSE)","v":"Joan Koonce"},"24400JK0","18003","SNIFAXSMLEVER17","F17","",""]
["24","357",null,null,"FED SMITH LEVER HCE RUPURED   ","2631GE357831","21310","13200","61FSL","24400MR0",{"$f":"VLOOKUP(TRIM(J2855),'Transactional Departments'!A:B,2,FALSE)","v":"Michael Rupured"},"24400MR0","18003","SNIFAXSMLEVER17","F17","",""]
["24","357",null,null,"FED SMITH LEVER FDN MOORE     ","2631GE357841","21310","13200","61FSL","24140000",{"$f":"VLOOKUP(TRIM(J2856),'Transactional Departments'!A:B,2,FALSE)","v":"FACS Assoc Dean Outreach Ext"},"24140000","18003","SNIFAXSMLEVER17","F17","",""]
["24","357",null,null,"USDA     EFNEP PARA FY16MMURRA","2631RE357240","21310","13200","61002","24140000",{"$f":"VLOOKUP(TRIM(J2857),'Transactional Departments'!A:B,2,FALSE)","v":"FACS Assoc Dean Outreach Ext"},"24140000","18003","SUSDARE357240CV","A01","",""]
["24","357",null,null,"USDA     W/357-240 PRO16 MURRA","2631RE357241","21310","13200","61002","24140000",{"$f":"VLOOKUP(TRIM(J2858),'Transactional Departments'!A:B,2,FALSE)","v":"FACS Assoc Dean Outreach Ext"},"24140000","18003","SUSDARE357241CV","A01","",""]
["24","357",null,null,"USDA     EFNEP PARA FY17 MURRA","2631RE357243","21310","13200","61002","24140000",{"$f":"VLOOKUP(TRIM(J2859),'Transactional Departments'!A:B,2,FALSE)","v":"FACS Assoc Dean Outreach Ext"},"24140000","18003","SUSDARE357243CV","A01","",""]
["24","357",null,null,"USDA     W/357-243 PRO17 MURRA","2631RE357244","21310","13200","61002","24140000",{"$f":"VLOOKUP(TRIM(J2860),'Transactional Departments'!A:B,2,FALSE)","v":"FACS Assoc Dean Outreach Ext"},"24140000","18003","SUSDARE357244CV","A01","",""]
["24","580",null,null,"TCL      RF GRATITUDE    O NEA","1021RR580050","20000","12100","64187","24210000",{"$f":"VLOOKUP(TRIM(J2861),'Transactional Departments'!A:B,2,FALSE)","v":"HDFS Admin"},"24210000","18400","RCHARRR580050CV","A01","",""]
["24","580",null,null,"GADHS    BETTER BRAINS   BALES","1031RE580053","20000","13100","62015","24210000",{"$f":"VLOOKUP(TRIM(J2862),'Transactional Departments'!A:B,2,FALSE)","v":"HDFS Admin"},"24210000","18003","SGHUMRE580053CV","A01","",""]
["24","580",null,null,"GOCF     BABY BRAINS     BALES","1031RE580058","20000","13100","62015","24210000",{"$f":"VLOOKUP(TRIM(J2863),'Transactional Departments'!A:B,2,FALSE)","v":"HDFS Admin"},"24210000","18003","SGHUMRE580058CV","A01","",""]
["24","580",null,null,"ICF      HEALTH MARRIAGE MANCI","1031RE580059","20000","13100","64032","24210000",{"$f":"VLOOKUP(TRIM(J2864),'Transactional Departments'!A:B,2,FALSE)","v":"HDFS Admin"},"24210000","18003","SICFCRE580059CV","A01","",""]
["24","580",null,null,"ICF      HEALTH MARRIAGE GONYE","1031RE580061","20000","13100","64032","24210000",{"$f":"VLOOKUP(TRIM(J2865),'Transactional Departments'!A:B,2,FALSE)","v":"HDFS Admin"},"24210000","18003","SICFCRE580061CV","A01","",""]
["24","580",null,null,"USDA     ARMY COMM SERVC O NEA","1031RE580062","20000","13100","61002","24210000",{"$f":"VLOOKUP(TRIM(J2866),'Transactional Departments'!A:B,2,FALSE)","v":"HDFS Admin"},"24210000","18003","SUSDARE580062CV","A01","",""]
["24","580",null,null,"GOHSUSDOTUGA GTIPI       BOWER","1031RE580114","20000","13100","62028","24210000",{"$f":"VLOOKUP(TRIM(J2867),'Transactional Departments'!A:B,2,FALSE)","v":"HDFS Admin"},"24210000","18003","SGOHSRE580114CV","A01","",""]
["24","580",null,null,"         GTIPI FY 15     BOWER","1031RE580115","20000","13100","62028","24210000",{"$f":"VLOOKUP(TRIM(J2868),'Transactional Departments'!A:B,2,FALSE)","v":"HDFS Admin"},"24210000","18003","SGOHSRE580115CV","A01","",""]
["24","580",null,null,"         VAR RSCH        BALES","1031RE580379","20000","13100","64206","24210000",{"$f":"VLOOKUP(TRIM(J2869),'Transactional Departments'!A:B,2,FALSE)","v":"HDFS Admin"},"24210000","18003","SVARIRE580379CV","A01","",""]
["24","580",null,null,"GADHS    ELEVATE FOSTER  FUTRI","1031RE580395","20000","13100","62015","24210000",{"$f":"VLOOKUP(TRIM(J2870),'Transactional Departments'!A:B,2,FALSE)","v":"HDFS Admin"},"24210000","18003","SGHUMRE580395CV","A01","",""]
["24","580",null,null,"GDHS     BABY BRAINS FY17BALES","1031RE580397","20000","13100","62015","24210000",{"$f":"VLOOKUP(TRIM(J2871),'Transactional Departments'!A:B,2,FALSE)","v":"HDFS Admin"},"24210000","18003","SGHUMRE580397CV","A01","",""]
["24","580",null,null,"GA DP SV MIECHV FY17     SMITH","1031RE580398","20000","13100","62015","24210000",{"$f":"VLOOKUP(TRIM(J2872),'Transactional Departments'!A:B,2,FALSE)","v":"HDFS Admin"},"24210000","18003","SGHUMRE580398CV","A01","",""]
["24","580",null,null,"         SUPPORT WORKER  SMITH","1031RE580399","20000","13100","63013","24210000",{"$f":"VLOOKUP(TRIM(J2873),'Transactional Departments'!A:B,2,FALSE)","v":"HDFS Admin"},"24210000","18003","SCICORE580399CV","A01","",""]
["24","580",null,null,"GOHS     TRAF INJ PREV   BOWER","1031RE580401","20000","13100","62028","24210000",{"$f":"VLOOKUP(TRIM(J2874),'Transactional Departments'!A:B,2,FALSE)","v":"HDFS Admin"},"24210000","18003","SGOHSRE580401CV","A01","",""]
["24","580",null,null,"GDHS/USHHABSTINENCE      FUTRI","1031RE580402","20000","13100","62015","24210000",{"$f":"VLOOKUP(TRIM(J2875),'Transactional Departments'!A:B,2,FALSE)","v":"HDFS Admin"},"24210000","18003","SGHUMRE580402CV","A01","",""]
["24","580",null,null,"WSU/USDA EABCC WEBSITE   BALES","1031RE580403","20000","13100","62522","24210000",{"$f":"VLOOKUP(TRIM(J2876),'Transactional Departments'!A:B,2,FALSE)","v":"HDFS Admin"},"24210000","18003","SWASURE580403CV","A01","",""]
["24","580",null,null,"GDH/USDHSGREAT START GA  SMITH","1031RE580404","20000","13100","62053","24210000",{"$f":"VLOOKUP(TRIM(J2877),'Transactional Departments'!A:B,2,FALSE)","v":"HDFS Admin"},"24210000","18003","SGDPHRE580404CV","A01","",""]
["24","580",null,null,"GDHS     BRAIN DEVELOP   BALES","1031RE580405","20000","13100","62015","24210000",{"$f":"VLOOKUP(TRIM(J2878),'Transactional Departments'!A:B,2,FALSE)","v":"HDFS Admin"},"24210000","18003","SGHUMRE580405CV","A01","",""]
["24","580",null,null,"COC      SUPPORT WORKER       ","1031RE580406","20000","13100","63013","24210000",{"$f":"VLOOKUP(TRIM(J2879),'Transactional Departments'!A:B,2,FALSE)","v":"HDFS Admin"},"24210000","18003","SCICORE580406CV","A01","",""]
["24","580",null,null,"GDHS     YOUTH W/353-470 FUTRI","1031RE580407","20000","13100","62015","24210000",{"$f":"VLOOKUP(TRIM(J2880),'Transactional Departments'!A:B,2,FALSE)","v":"HDFS Admin"},"24210000","18003","SGHUMRE580407CV","A01","",""]
["24","580",null,null,"GDPH/USDHMIECHV          SMITH","1031RE580408","20000","13100","62053","24210000",{"$f":"VLOOKUP(TRIM(J2881),'Transactional Departments'!A:B,2,FALSE)","v":"HDFS Admin"},"24210000","18003","SGDPHRE580408CV","A01","",""]
["24","581",null,null,"GA DOE   TRANSCRIPT EVAL SWANS","1011RH581496","20000","11100","62012","24310000",{"$f":"VLOOKUP(TRIM(J2882),'Transactional Departments'!A:B,2,FALSE)","v":"FDN Admin"},"24310000","18003","SGADERH581496CV","A01","",""]
["24","581",null,null,"AEB      RF EGG CONSUMPT LEWIS","1021RR581051","20000","12100","64125","24310000",{"$f":"VLOOKUP(TRIM(J2883),'Transactional Departments'!A:B,2,FALSE)","v":"FDN Admin"},"24310000","18400","RAMEBRR581051CV","A01","",""]
["24","581",null,null,"         RF RC294-322       SW","1021RR581461","20000","12100","64144","24310000",{"$f":"VLOOKUP(TRIM(J2884),'Transactional Departments'!A:B,2,FALSE)","v":"FDN Admin"},"24310000","18003","SABCARR581461CV","A01","",""]
["24","581",null,null,"GDHS NIH AIMS FOOD SEC   LEE  ","1021RR581481","20000","12100","62015","24310000",{"$f":"VLOOKUP(TRIM(J2885),'Transactional Departments'!A:B,2,FALSE)","v":"FDN Admin"},"24310000","18003","SGHUMRR581481CV","A01","",""]
["24","581",null,null,"VAPT/USDARF FOOD SAFETY  HARRI","1021RR581484","20000","12100","62519","24310000",{"$f":"VLOOKUP(TRIM(J2886),'Transactional Departments'!A:B,2,FALSE)","v":"FDN Admin"},"24310000","18400","RVAPTRR581484CV","A01","",""]
["24","581",null,null,"PA/NIH   RF BIRTH ORDER       ","1021RR581501","20000","12100","62531","24310000",{"$f":"VLOOKUP(TRIM(J2887),'Transactional Departments'!A:B,2,FALSE)","v":"FDN Admin"},"24310000","18400","RPASURR581501CV","A01","",""]
["24","581",null,null,"PSU/NIH  RF OBESITY INF       ","1021RR581503","20000","12100","62531","24310000",{"$f":"VLOOKUP(TRIM(J2888),'Transactional Departments'!A:B,2,FALSE)","v":"FDN Admin"},"24310000","18400","RPASURR581503CV","A01","",""]
["24","581",null,null,"UNCC     RF SNAP-ED      LEE  ","1021RR581508","20000","12100","62516","24310000",{"$f":"VLOOKUP(TRIM(J2889),'Transactional Departments'!A:B,2,FALSE)","v":"FDN Admin"},"24310000","18400","RUNCCRR581508CV","A01","",""]
["24","581",null,null,"CI       RF WEIGHT GAIN  COOPE","1021RR581509","20000","12100","64355","24310000",{"$f":"VLOOKUP(TRIM(J2890),'Transactional Departments'!A:B,2,FALSE)","v":"FDN Admin"},"24310000","18400","RCOTTRR581509CV","A01","",""]
["24","581",null,null,"GADE        NUTITION     GROSS","1021RR581510","20000","12100","62012","24310000",{"$f":"VLOOKUP(TRIM(J2891),'Transactional Departments'!A:B,2,FALSE)","v":"FDN Admin"},"24310000","18003","SGADERR581510CV","A01","",""]
["24","581",null,null,"CWC      RF WALNUTS         CO","1021RR581513","20000","12100","62580","24310000",{"$f":"VLOOKUP(TRIM(J2892),'Transactional Departments'!A:B,2,FALSE)","v":"FDN Admin"},"24310000","18400","RCAWCRR581513CV","A01","",""]
["24","581",null,null,"CI       RF EFFECT DIET  COOPE","1021RR581518","20000","12100","64355","24310000",{"$f":"VLOOKUP(TRIM(J2893),'Transactional Departments'!A:B,2,FALSE)","v":"FDN Admin"},"24310000","18400","RCOTTRR581518CV","A01","",""]
["24","581",null,null,"NIH      RF BRAIN SIGNAL DE LA","1021RR581526","20000","12100","61018","24310000",{"$f":"VLOOKUP(TRIM(J2894),'Transactional Departments'!A:B,2,FALSE)","v":"FDN Admin"},"24310000","18400","RNIHXRR581526CV","A01","",""]
["24","581",null,null,"COTTON   RF WEIGHT GAIN  COOPE","1021RR581528","20000","12100","64355","24310000",{"$f":"VLOOKUP(TRIM(J2895),'Transactional Departments'!A:B,2,FALSE)","v":"FDN Admin"},"24310000","18400","RCOTTRR581528CV","A01","",""]
["24","581",null,null,"PSU/NIH  RF BIRTH ORDER       ","1021RR581529","20000","12100","62531","24310000",{"$f":"VLOOKUP(TRIM(J2896),'Transactional Departments'!A:B,2,FALSE)","v":"FDN Admin"},"24310000","18400","RPASURR581529CV","A01","",""]
["24","581",null,null,"DHS/NIH  LIVE WELL       JOHNS","1031RE581043","20000","13100","64000","24310000",{"$f":"VLOOKUP(TRIM(J2897),'Transactional Departments'!A:B,2,FALSE)","v":"FDN Admin"},"24310000","18003","SGNOARE581043CV","A01","",""]
["24","581",null,null,"NEGAAA   CDSME           JOHNS","1031RE581052","20000","13100","62043","24310000",{"$f":"VLOOKUP(TRIM(J2898),'Transactional Departments'!A:B,2,FALSE)","v":"FDN Admin"},"24310000","18003","SNGAARE581052CV","A01","",""]
["24","581",null,null,"GDHS     CDSME LIVE WELL JOHNS","1031RE581054","20000","13100","62015","24310000",{"$f":"VLOOKUP(TRIM(J2899),'Transactional Departments'!A:B,2,FALSE)","v":"FDN Admin"},"24310000","18003","SGHUMRE581054CV","A01","",""]
["24","581",null,null,"USDA     NC HOME FOOD PROANDRE","1031RE581468","20000","13100","61002","24310000",{"$f":"VLOOKUP(TRIM(J2900),'Transactional Departments'!A:B,2,FALSE)","v":"FDN Admin"},"24310000","18003","SUSDARE581468CV","A01","",""]
["24","581",null,null,"NGAA NIH AAA3 HLTH PRMO  JOHNS","1031RE581477","20000","13100","62043","24310000",{"$f":"VLOOKUP(TRIM(J2901),'Transactional Departments'!A:B,2,FALSE)","v":"FDN Admin"},"24310000","18003","SNGAARE581477CV","A01","",""]
["24","581",null,null,"         WALK GEORGIA    MURRA","1031RE581483","20000","13100","64325","24310000",{"$f":"VLOOKUP(TRIM(J2902),'Transactional Departments'!A:B,2,FALSE)","v":"FDN Admin"},"24310000","18003","SUSGFRE581483CV","A01","",""]
["24","581",null,null,"GA DHS   LIVE WELL WEB   JOHNS","1031RE581492","20000","13100","62015","24310000",{"$f":"VLOOKUP(TRIM(J2903),'Transactional Departments'!A:B,2,FALSE)","v":"FDN Admin"},"24310000","18003","SGHUMRE581492CV","A01","",""]
["24","581",null,null,"NEGRC    AAA3 HLTH       JOHNS","1031RE581493","20000","13100","62043","24310000",{"$f":"VLOOKUP(TRIM(J2904),'Transactional Departments'!A:B,2,FALSE)","v":"FDN Admin"},"24310000","18003","SNGAARE581493CV","A01","",""]
["24","581",null,null,"NEGRC    AAA2 CBS HCBS   JOHNS","1031RE581494","20000","13100","62043","24310000",{"$f":"VLOOKUP(TRIM(J2905),'Transactional Departments'!A:B,2,FALSE)","v":"FDN Admin"},"24310000","18003","SNGAARE581494CV","A01","",""]
["24","581",null,null,"GDHS     SNAP-ED FY15    LEE  ","1031RE581497","20000","13100","62015","24310000",{"$f":"VLOOKUP(TRIM(J2906),'Transactional Departments'!A:B,2,FALSE)","v":"FDN Admin"},"24310000","18003","SGHUMRE581497CV","A01","",""]
["24","581",null,null,"GDHR     FOOD STAMP PART LEE  ","1031RE581498","20000","13100","62014","24310000",{"$f":"VLOOKUP(TRIM(J2907),'Transactional Departments'!A:B,2,FALSE)","v":"FDN Admin"},"24310000","18003","SGDHRRE581498CV","A01","",""]
["24","581",null,null,"ACS      COOK FOR LIFE   CRAWL","1031RE581499","20000","13100","64122","24310000",{"$f":"VLOOKUP(TRIM(J2908),'Transactional Departments'!A:B,2,FALSE)","v":"FDN Admin"},"24310000","18003","SAMCSRE581499CV","A01","",""]
["24","581",null,null,"GDOE     CULNRY INSTITUT BRIGM","1031RE581502","20000","13100","62012","24310000",{"$f":"VLOOKUP(TRIM(J2909),'Transactional Departments'!A:B,2,FALSE)","v":"FDN Admin"},"24310000","18003","SGADERE581502CV","A01","",""]
["24","581",null,null,"GDOE     RE581-502 PI    BRIGM","1031RE581504","20000","13100","62012","24310000",{"$f":"VLOOKUP(TRIM(J2910),'Transactional Departments'!A:B,2,FALSE)","v":"FDN Admin"},"24310000","18003","SGADERE581504CV","A01","",""]
["24","581",null,null,"NGAAA    HLTH PROMO OAA  JOHNS","1031RE581506","20000","13100","62043","24310000",{"$f":"VLOOKUP(TRIM(J2911),'Transactional Departments'!A:B,2,FALSE)","v":"FDN Admin"},"24310000","18003","SNGAARE581506CV","A01","",""]
["24","581",null,null,"GADHS    SNAP EDFY16-17  LEE  ","1031RE581511","20000","13100","62015","24310000",{"$f":"VLOOKUP(TRIM(J2912),'Transactional Departments'!A:B,2,FALSE)","v":"FDN Admin"},"24310000","18003","SGHUMRE581511CV","A01","",""]
["24","581",null,null,"GADOE    CULINARY 16     BRIGM","1031RE581520","20000","13100","62012","24310000",{"$f":"VLOOKUP(TRIM(J2913),'Transactional Departments'!A:B,2,FALSE)","v":"FDN Admin"},"24310000","18003","SGADERE581520CV","A01","",""]
["24","581",null,null,"GADOE    RE581-520 PI    BRIGM","1031RE581521","20000","13100","62012","24310000",{"$f":"VLOOKUP(TRIM(J2914),'Transactional Departments'!A:B,2,FALSE)","v":"FDN Admin"},"24310000","18003","SGADERE581521CV","A01","",""]
["24","581",null,null,"GADHS    FALLS PREVENT   JOHNS","1031RE581522","20000","13100","62015","24310000",{"$f":"VLOOKUP(TRIM(J2915),'Transactional Departments'!A:B,2,FALSE)","v":"FDN Admin"},"24310000","18003","SGHUMRE581522CV","A01","",""]
["24","581",null,null,"NGAAA    AAA1            JOHNS","1031RE581523","20000","13100","62043","24310000",{"$f":"VLOOKUP(TRIM(J2916),'Transactional Departments'!A:B,2,FALSE)","v":"FDN Admin"},"24310000","18003","SNGAARE581523CV","A01","",""]
["24","581",null,null,"NGAAA    AAA2 PHYSICAL   JOHNS","1031RE581524","20000","13100","62043","24310000",{"$f":"VLOOKUP(TRIM(J2917),'Transactional Departments'!A:B,2,FALSE)","v":"FDN Admin"},"24310000","18003","SNGAARE581524CV","A01","",""]
["24","581",null,null,"NGAAA    AAA3            JOHNS","1031RE581525","20000","13100","62043","24310000",{"$f":"VLOOKUP(TRIM(J2918),'Transactional Departments'!A:B,2,FALSE)","v":"FDN Admin"},"24310000","18003","SNGAARE581525CV","A01","",""]
["24","581",null,null,"GADHR    FY17 SNAP       LEE  ","1031RE581527","20000","13100","62014","24310000",{"$f":"VLOOKUP(TRIM(J2919),'Transactional Departments'!A:B,2,FALSE)","v":"FDN Admin"},"24310000","18003","SGDHRRE581527CV","A01","",""]
["24","581",null,null,"VPI/USDA MARKET FOOD     HARRI","1031RE581532","20000","13100","62519","24310000",{"$f":"VLOOKUP(TRIM(J2920),'Transactional Departments'!A:B,2,FALSE)","v":"FDN Admin"},"24310000","18003","SVAPTRE581532CV","A01","",""]
["24","581",null,null,"GDOE     CULINARY        BRIGM","1031RE581533","20000","13100","62012","24310000",{"$f":"VLOOKUP(TRIM(J2921),'Transactional Departments'!A:B,2,FALSE)","v":"FDN Admin"},"24310000","18003","SGADERE581533CV","A01","",""]
["24","581",null,null,"GDOE     PROG INC W/581-5BRIGM","1031RE581534","20000","13100","62012","24310000",{"$f":"VLOOKUP(TRIM(J2922),'Transactional Departments'!A:B,2,FALSE)","v":"FDN Admin"},"24310000","18003","SGADERE581534CV","A01","",""]
["24","581",null,null,"NGAAA    HEALTH PROMO    JOHNS","1031RE581535","20000","13100","62043","24310000",{"$f":"VLOOKUP(TRIM(J2923),'Transactional Departments'!A:B,2,FALSE)","v":"FDN Admin"},"24310000","18003","SNGAARE581535CV","A01","",""]
["24","581",null,null,"NGAAA    AAA2 NUTRIT ED  JOHNS","1031RE581536","20000","13100","62043","24310000",{"$f":"VLOOKUP(TRIM(J2924),'Transactional Departments'!A:B,2,FALSE)","v":"FDN Admin"},"24310000","18003","SNGAARE581536CV","A01","",""]
["24","581",null,null,"         HEALTH PROM BBP JOHNS","1031RE581537","20000","13100","62043","24310000",{"$f":"VLOOKUP(TRIM(J2925),'Transactional Departments'!A:B,2,FALSE)","v":"FDN Admin"},"24310000","18003","SNGAARE581537CV","A01","",""]
["24","581",null,null,"GA DHS   UGA_FALLS PREV__JOHNS","1031RE581538","20000","13100","62015","24310000",{"$f":"VLOOKUP(TRIM(J2926),'Transactional Departments'!A:B,2,FALSE)","v":"FDN Admin"},"24310000","18003","SGHUMRE581538CV","A01","",""]
["24","581",null,null,"GDHS     STAFF TRAINING  JOHNS","1031RE581539","20000","13100","62015","24310000",{"$f":"VLOOKUP(TRIM(J2927),'Transactional Departments'!A:B,2,FALSE)","v":"FDN Admin"},"24310000","18003","SGHUMRE581539CV","A01","",""]
["24","581",null,null,"ACS      UGA_COOKING FOR_BERG ","1031RE581540","20000","13100","64122","24310000",{"$f":"VLOOKUP(TRIM(J2928),'Transactional Departments'!A:B,2,FALSE)","v":"FDN Admin"},"24310000","18003","SAMCSRE581540CV","A01","",""]
["24","581",null,null,"GADAG    RF PROD SAFE    HARRI","1031RE581542","20000","13100","62010","24310000",{"$f":"VLOOKUP(TRIM(J2929),'Transactional Departments'!A:B,2,FALSE)","v":"FDN Admin"},"24310000","18400","RGDAGRE581542CV","A01","",""]
["24","582",null,null,"C&G      TD AMERITRADE   GRABL","1011RH582367","20000","11100","64068","24410000",{"$f":"VLOOKUP(TRIM(J2930),'Transactional Departments'!A:B,2,FALSE)","v":"FCHE Admin"},"24410000","18003","STDAMRH582367CV","A01","",""]
["24","582",null,null,"         CASH COURSE EXP RUPUR","1011RH582380","20000","11100","64352","24410000",{"$f":"VLOOKUP(TRIM(J2931),'Transactional Departments'!A:B,2,FALSE)","v":"FCHE Admin"},"24410000","18003","SNEFERH582380CV","A01","",""]
["24","582",null,null,"USDA     RF HOUSING NEED SKOBB","1021RR582371","20000","12100","61002","24410000",{"$f":"VLOOKUP(TRIM(J2932),'Transactional Departments'!A:B,2,FALSE)","v":"FCHE Admin"},"24410000","18400","RUSDARR582371CV","A01","",""]
["24","582",null,null,"SF       RF PATHWAYS     SKOBB","1021RR582374","20000","12100","64385","24410000",{"$f":"VLOOKUP(TRIM(J2933),'Transactional Departments'!A:B,2,FALSE)","v":"FCHE Admin"},"24410000","18400","RSPENRR582374CV","A01","",""]
["24","582",null,null,"IAA      RF INFILL PROP  CARSW","1021RR582375","20000","12100","64000","24410000",{"$f":"VLOOKUP(TRIM(J2934),'Transactional Departments'!A:B,2,FALSE)","v":"FCHE Admin"},"24410000","18400","RINAORR582375CV","A01","",""]
["24","582",null,null,"USDHHS   W/580-394       FUTRI","1021RR582376","20000","12100","61017","24410000",{"$f":"VLOOKUP(TRIM(J2935),'Transactional Departments'!A:B,2,FALSE)","v":"FCHE Admin"},"24410000","18003","SDHHSRR582376CV","A01","",""]
["24","582",null,null,"RWJF     FIN STRESS      WHITE","1021RR582383","20000","12100","64406","24410000",{"$f":"VLOOKUP(TRIM(J2936),'Transactional Departments'!A:B,2,FALSE)","v":"FCHE Admin"},"24410000","18003","SWOODRR582383CV","A01","",""]
["24","582",null,null,"U WISC M RF FIN WELL BE  ANONG","1021RR582386","20000","12100","62518","24410000",{"$f":"VLOOKUP(TRIM(J2937),'Transactional Departments'!A:B,2,FALSE)","v":"FCHE Admin"},"24410000","18400","RUNWIRR582386CV","A01","",""]
["24","582",null,null,"GDCA/EPA RADON TEST      TURNE","1031RE582043","20000","13100","62011","24410000",{"$f":"VLOOKUP(TRIM(J2938),'Transactional Departments'!A:B,2,FALSE)","v":"FCHE Admin"},"24410000","18003","SGAFCRE582043CV","A01","",""]
["24","582",null,null,"GDCA__EPAPI W 582-043____TURNE","1031RE582044","20000","13100","62011","24410000",{"$f":"VLOOKUP(TRIM(J2939),'Transactional Departments'!A:B,2,FALSE)","v":"FCHE Admin"},"24410000","18003","SGAFCRE582044CV","A01","",""]
["24","582",null,null,"USDA     AFFORD CARE ACT KOONC","1031RE582364","20000","13100","61002","24410000",{"$f":"VLOOKUP(TRIM(J2940),'Transactional Departments'!A:B,2,FALSE)","v":"FCHE Admin"},"24410000","18003","SUSDARE582364CV","A01","",""]
["24","582",null,null,"USDA_RHS COMMUNITY HOUSE TINSL","1031RE582368","20000","13100","61002","24410000",{"$f":"VLOOKUP(TRIM(J2941),'Transactional Departments'!A:B,2,FALSE)","v":"FCHE Admin"},"24410000","18003","SUSDARE582368CV","A01","",""]
["24","582",null,null,"UOM      HEALTHY HOME    TURNE","1031RE582373","20000","13100","62515","24410000",{"$f":"VLOOKUP(TRIM(J2942),'Transactional Departments'!A:B,2,FALSE)","v":"FCHE Admin"},"24410000","18003","SUNMORE582373CV","A01","",""]
["24","582",null,null,"UOM      HEALTHY HOMES   TURNE","1031RE582377","20000","13100","62515","24410000",{"$f":"VLOOKUP(TRIM(J2943),'Transactional Departments'!A:B,2,FALSE)","v":"FCHE Admin"},"24410000","18003","SUNMORE582377CV","A01","",""]
["24","582",null,null,"GADCA/EPAINDOOR RADON    TURNE","1031RE582378","20000","13100","62011","24410000",{"$f":"VLOOKUP(TRIM(J2944),'Transactional Departments'!A:B,2,FALSE)","v":"FCHE Admin"},"24410000","18003","SGAFCRE582378CV","A01","",""]
["24","582",null,null,"GADCA/EPAPR INC RE582378 TURNE","1031RE582379","20000","13100","62011","24410000",{"$f":"VLOOKUP(TRIM(J2945),'Transactional Departments'!A:B,2,FALSE)","v":"FCHE Admin"},"24410000","18003","SGAFCRE582379CV","A01","",""]
["24","582",null,null,"CFA      PIGGY BANKS     RUPUR","1031RE582381","20000","13100","64437","24410000",{"$f":"VLOOKUP(TRIM(J2946),'Transactional Departments'!A:B,2,FALSE)","v":"FCHE Admin"},"24410000","18003","SCFAFRE582381CV","A01","",""]
["24","582",null,null,"UM/USDA  HEALTHY HOUSING TURNE","1031RE582382","20000","13100","62515","24410000",{"$f":"VLOOKUP(TRIM(J2947),'Transactional Departments'!A:B,2,FALSE)","v":"FCHE Admin"},"24410000","18003","SUNMORE582382CV","A01","",""]
["24","582",null,null,"EPA      RF RADON EDUCATITURNE","1031RE582384","20000","13100","61032","24410000",{"$f":"VLOOKUP(TRIM(J2948),'Transactional Departments'!A:B,2,FALSE)","v":"FCHE Admin"},"24410000","18400","RUSEARE582384CV","A01","",""]
["24","582",null,null,"EPA         PI W/582-384 TURNE","1031RE582385","20000","13100","61032","24410000",{"$f":"VLOOKUP(TRIM(J2949),'Transactional Departments'!A:B,2,FALSE)","v":"FCHE Admin"},"24410000","18003","SUSEARE582385CV","A01","",""]
["24","583",null,null,"PGC      RF BIOPOLYMER   MINKO","1021RR583059","20000","12100","64009","24510000",{"$f":"VLOOKUP(TRIM(J2950),'Transactional Departments'!A:B,2,FALSE)","v":"TMI Admin"},"24510000","18400","RP&GCRR583059CV","A01","",""]
["24","583",null,null,"         RF MICRO-REPLIC MINKO","1021RR583063","20000","12100","64012","24510000",{"$f":"VLOOKUP(TRIM(J2951),'Transactional Departments'!A:B,2,FALSE)","v":"TMI Admin"},"24510000","18003","SCOGWRR583063CV","A01","",""]
["24","583",null,null,"NSF      RF REMOTE DRUG  MINKO","1021RR583311","20000","12100","61023","24510000",{"$f":"VLOOKUP(TRIM(J2952),'Transactional Departments'!A:B,2,FALSE)","v":"TMI Admin"},"24510000","18400","RNSFXRR583311CV","A01","",""]
["24","583",null,null,"USN      RF BIONANOPART  MINKO","1021RR583314","20000","12100","61015","24510000",{"$f":"VLOOKUP(TRIM(J2953),'Transactional Departments'!A:B,2,FALSE)","v":"TMI Admin"},"24510000","18400","RUSNXRR583314CV","A01","",""]
["24","583",null,null,"GM       RF NAFION PEMFC MINKO","1021RR583317","20000","12100","64000","24510000",{"$f":"VLOOKUP(TRIM(J2954),'Transactional Departments'!A:B,2,FALSE)","v":"TMI Admin"},"24510000","18400","RGMSGRR583317CV","A01","",""]
["24","583",null,null,"P&G      RF AFM IMAGING  MINKO","1021RR583318","20000","12100","64009","24510000",{"$f":"VLOOKUP(TRIM(J2955),'Transactional Departments'!A:B,2,FALSE)","v":"TMI Admin"},"24510000","18400","RP&GCRR583318CV","A01","",""]
["24","583",null,null,"WF       PI W/RR583319   MINKO","1021RR583319","20000","12100","64000","24510000",{"$f":"VLOOKUP(TRIM(J2956),'Transactional Departments'!A:B,2,FALSE)","v":"TMI Admin"},"24510000","18003","SXXXXRR583319CV","A01","",""]
["24","583",null,null,"SNB      RF FUNCT GLOVE  SHARM","1021RR583320","20000","12100","64092","24510000",{"$f":"VLOOKUP(TRIM(J2957),'Transactional Departments'!A:B,2,FALSE)","v":"TMI Admin"},"24510000","18400","RSBARRR583320CV","A01","",""]
["24","583",null,null,"NSF      RF CELLULOSOME  MINKO","1021RR583321","20000","12100","61023","24510000",{"$f":"VLOOKUP(TRIM(J2958),'Transactional Departments'!A:B,2,FALSE)","v":"TMI Admin"},"24510000","18400","RNSFXRR583321CV","A01","",""]
["24","583",null,null,"NSF      RF PS W/583-311      ","1021RR583322","20000","12100","61023","24510000",{"$f":"VLOOKUP(TRIM(J2959),'Transactional Departments'!A:B,2,FALSE)","v":"TMI Admin"},"24510000","18400","RNSFXRR583322CV","A01","",""]
["24","583",null,null,"EL       RF NANOCELL     MINKO","1021RR583323","20000","12100","64475","24510000",{"$f":"VLOOKUP(TRIM(J2960),'Transactional Departments'!A:B,2,FALSE)","v":"TMI Admin"},"24510000","18400","RELSERR583323CV","A01","",""]
["24","583",null,null,"NANO/UDA RF DURABLE FLAMEBHAT ","1021RR583324","20000","12100","64105","24510000",{"$f":"VLOOKUP(TRIM(J2961),'Transactional Departments'!A:B,2,FALSE)","v":"TMI Admin"},"24510000","18400","RNANORR583324CV","A01","",""]
["24","583",null,null,"USDA ARS RF COTTON FIBERSBHAT ","1021RR583325","20000","12100","61004","24510000",{"$f":"VLOOKUP(TRIM(J2962),'Transactional Departments'!A:B,2,FALSE)","v":"TMI Admin"},"24510000","18400","RARSXRR583325CV","A01","",""]
["24","583",null,null,"P&G      SYNTHESIS POLYMEMINKO","1031RE583316","20000","13100","64009","24510000",{"$f":"VLOOKUP(TRIM(J2963),'Transactional Departments'!A:B,2,FALSE)","v":"TMI Admin"},"24510000","18003","SP&GCRE583316CV","A01","",""]
["24","584",null,null,"GADBHD   POST SEC EDU    LAWS ","1011RH584444","20000","11100","62061","24610000",{"$f":"VLOOKUP(TRIM(J2964),'Transactional Departments'!A:B,2,FALSE)","v":"IHDD Admin"},"24610000","18003","SGDBHRH584444CV","A01","",""]
["24","584",null,null,"DHHS     IHDD                 ","1011RH584445","20000","11100","61017","24610000",{"$f":"VLOOKUP(TRIM(J2965),'Transactional Departments'!A:B,2,FALSE)","v":"IHDD Admin"},"24610000","18003","SDHHSRH584445CV","A01","",""]
["24","584",null,null,"DHHS     IHDD DIVERSITY  STONE","1011RH584447","20000","11100","61017","24610000",{"$f":"VLOOKUP(TRIM(J2966),'Transactional Departments'!A:B,2,FALSE)","v":"IHDD Admin"},"24610000","18003","SDHHSRH584447CV","A01","",""]
["24","584",null,null,"GSU      TPSIDS IN GA         ","1011RH584448","20000","11100","62022","24610000",{"$f":"VLOOKUP(TRIM(J2967),'Transactional Departments'!A:B,2,FALSE)","v":"IHDD Admin"},"24610000","18003","SGASURH584448CV","A01","",""]
["24","584",null,null,"         IPSE START UP   LAWS ","1011RH584450","20000","11100","62022","24610000",{"$f":"VLOOKUP(TRIM(J2968),'Transactional Departments'!A:B,2,FALSE)","v":"IHDD Admin"},"24610000","18003","SGASURH584450CV","A01","",""]
["24","584",null,null,"USDHHS   VETERANS        STONE","1011RH584451","20000","11100","61017","24610000",{"$f":"VLOOKUP(TRIM(J2969),'Transactional Departments'!A:B,2,FALSE)","v":"IHDD Admin"},"24610000","18003","SDHHSRH584451CV","A01","",""]
["24","584",null,null,"USDHHS   IHDD DIV FELLOW STONE","1011RH584452","20000","11100","61017","24610000",{"$f":"VLOOKUP(TRIM(J2970),'Transactional Departments'!A:B,2,FALSE)","v":"IHDD Admin"},"24610000","18003","SDHHSRH584452CV","A01","",""]
["24","584",null,null,"GSU      TPSIDS IN GA         ","1011RH584454","20000","11100","62022","24610000",{"$f":"VLOOKUP(TRIM(J2971),'Transactional Departments'!A:B,2,FALSE)","v":"IHDD Admin"},"24610000","18003","SGASURH584454CV","A01","",""]
["24","584",null,null,"USDA NIFAW/ 677-494      RAINS","1021RR584437","20000","12100","61002","24610000",{"$f":"VLOOKUP(TRIM(J2972),'Transactional Departments'!A:B,2,FALSE)","v":"IHDD Admin"},"24610000","18003","SUSDARR584437CV","A01","",""]
["24","584",null,null,"USDA NIFAPS W/ 584-437   RAINS","1021RR584438","20000","12100","61002","24610000",{"$f":"VLOOKUP(TRIM(J2973),'Transactional Departments'!A:B,2,FALSE)","v":"IHDD Admin"},"24610000","18003","SUSDARR584438CV","A01","",""]
["24","584",null,null,"GCNCS    PAS C 10-11     STONE","1031RE584421","20000","13100","64353","24610000",{"$f":"VLOOKUP(TRIM(J2974),'Transactional Departments'!A:B,2,FALSE)","v":"IHDD Admin"},"24610000","18003","SCOFSRE584421CV","A01","",""]
["24","584",null,null,"GCNSC    PAS A 11-12     STONE","1031RE584426","20000","13100","64353","24610000",{"$f":"VLOOKUP(TRIM(J2975),'Transactional Departments'!A:B,2,FALSE)","v":"IHDD Admin"},"24610000","18003","SCOFSRE584426CV","A01","",""]
["24","584",null,null,"GCNCS    PAS C 11-12     STONE","1031RE584428","20000","13100","64353","24610000",{"$f":"VLOOKUP(TRIM(J2976),'Transactional Departments'!A:B,2,FALSE)","v":"IHDD Admin"},"24610000","18003","SCOFSRE584428CV","A01","",""]
["24","584",null,null,"PASS UGAFFARM AGAIN 2016 BRIGH","1031RE584440","20000","13100","64422","24610000",{"$f":"VLOOKUP(TRIM(J2977),'Transactional Departments'!A:B,2,FALSE)","v":"IHDD Admin"},"24610000","18003","SCLBFRE584440CV","A01","",""]
["24","584",null,null,"GAVRA    SUPPORT EMPLOY  CRAND","1031RE584441","20000","13100","62067","24610000",{"$f":"VLOOKUP(TRIM(J2978),'Transactional Departments'!A:B,2,FALSE)","v":"IHDD Admin"},"24610000","18003","SGVRARE584441CV","A01","",""]
["24","584",null,null,"PASS UGAFF AGAIN ORGANIC BRIGH","1031RE584443","20000","13100","64456","24610000",{"$f":"VLOOKUP(TRIM(J2979),'Transactional Departments'!A:B,2,FALSE)","v":"IHDD Admin"},"24610000","18003","SUNFIRE584443CV","A01","",""]
["24","584",null,null,"GAVRA    IHDD GVRA       STONE","1031RE584446","20000","13100","62067","24610000",{"$f":"VLOOKUP(TRIM(J2980),'Transactional Departments'!A:B,2,FALSE)","v":"IHDD Admin"},"24610000","18003","SGVRARE584446CV","A01","",""]
["24","584",null,null,"USDA NIFAFOOD SAFETY     BRIGH","1031RE584449","20000","13100","61006","24610000",{"$f":"VLOOKUP(TRIM(J2981),'Transactional Departments'!A:B,2,FALSE)","v":"IHDD Admin"},"24610000","18003","SNIFARE584449CV","A01","",""]
["24","584",null,null,"USDAG    RF FARM BOOT CAMBRIGH","1031RE584453","20000","13100","61002","24610000",{"$f":"VLOOKUP(TRIM(J2982),'Transactional Departments'!A:B,2,FALSE)","v":"IHDD Admin"},"24610000","18400","RUSDARE584453CV","A01","",""]
["24","584",null,null,"USDHHS   RF IDD SERVICE  LAWS ","1031RE584455","20000","13100","61017","24610000",{"$f":"VLOOKUP(TRIM(J2983),'Transactional Departments'!A:B,2,FALSE)","v":"IHDD Admin"},"24610000","18400","RDHHSRE584455CV","A01","",""]
["25","251",null,null,"VARIOUS  RSCH WSFR       GREEN","1021RR251270","20000","12100","64206","25001DNO",{"$f":"VLOOKUP(TRIM(J2984),'Transactional Departments'!A:B,2,FALSE)","v":"Warnell Dean"},"25001DNO","18003","SVARIRR251270CV","A01","",""]
["25","251",null,null,"GDNR     WILDLIFE        JENNI","1021RR251292","20000","12100","62016","25001DNO",{"$f":"VLOOKUP(TRIM(J2985),'Transactional Departments'!A:B,2,FALSE)","v":"Warnell Dean"},"25001DNO","18003","SGDNRRR251292CV","A01","",""]
["25","251",null,null,"GDNR     FISHERIES       JENNI","1021RR251293","20000","12100","62016","25001DNO",{"$f":"VLOOKUP(TRIM(J2986),'Transactional Departments'!A:B,2,FALSE)","v":"Warnell Dean"},"25001DNO","18003","SGDNRRR251293CV","A01","",""]
["25","251",null,null,"NCASI    RF GOPHER TORT  MARTI","1021RR251294","20000","12100","64296","25001DNO",{"$f":"VLOOKUP(TRIM(J2987),'Transactional Departments'!A:B,2,FALSE)","v":"Warnell Dean"},"25001DNO","18400","RNCASRR251294CV","A01","",""]
["25","251",null,null,"         VARIOUS RSCH    MORRI","1021RR251344","20000","12100","64206","25001DNO",{"$f":"VLOOKUP(TRIM(J2988),'Transactional Departments'!A:B,2,FALSE)","v":"Warnell Dean"},"25001DNO","18003","SVARIRR251344CV","A01","",""]
["25","251",null,null,"         VAR GIFTS CFB   IZLAR","1021RR251423","20000","12100","64206","25001DNO",{"$f":"VLOOKUP(TRIM(J2989),'Transactional Departments'!A:B,2,FALSE)","v":"Warnell Dean"},"25001DNO","18003","SVARIRR251423CV","A01","",""]
["25","251",null,null,"         VARIOUS GIFTS   CIESZ","1021RR251428","20000","12100","64206","25001DNO",{"$f":"VLOOKUP(TRIM(J2990),'Transactional Departments'!A:B,2,FALSE)","v":"Warnell Dean"},"25001DNO","18003","SVARIRR251428CV","A01","",""]
["25","251",null,null,"         VARIOUS RESEARCHIZLAR","1021RR251432","20000","12100","64206","25001DNO",{"$f":"VLOOKUP(TRIM(J2991),'Transactional Departments'!A:B,2,FALSE)","v":"Warnell Dean"},"25001DNO","18003","SVARIRR251432CV","A01","",""]
["25","251",null,null,"         VAR FOREST BUSINHARRI","1021RR251448","20000","12100","64206","25001DNO",{"$f":"VLOOKUP(TRIM(J2992),'Transactional Departments'!A:B,2,FALSE)","v":"Warnell Dean"},"25001DNO","18003","SVARIRR251448CV","A01","",""]
["25","251",null,null,"         VAR RSCH        GREEN","1021RR251451","20000","12100","64206","25001DNO",{"$f":"VLOOKUP(TRIM(J2993),'Transactional Departments'!A:B,2,FALSE)","v":"Warnell Dean"},"25001DNO","18003","SVARIRR251451CV","A01","",""]
["25","251",null,null,"GDNR     WILDLIFE RSCH U JENNI","1021RR251482","20000","12100","62016","25001DNO",{"$f":"VLOOKUP(TRIM(J2994),'Transactional Departments'!A:B,2,FALSE)","v":"Warnell Dean"},"25001DNO","18003","SGDNRRR251482CV","A01","",""]
["25","251",null,null,"DOE      RF W267800CLUTT RHODE","1021RR251568","20000","12100","61001","25001DNO",{"$f":"VLOOKUP(TRIM(J2995),'Transactional Departments'!A:B,2,FALSE)","v":"Warnell Dean"},"25001DNO","18400","RUSDERR251568CV","A01","",""]
["25","251",null,null,"         RF ECOLOGICAL   SHELT","1021RR251569","20000","12100","64081","25001DNO",{"$f":"VLOOKUP(TRIM(J2996),'Transactional Departments'!A:B,2,FALSE)","v":"Warnell Dean"},"25001DNO","18003","SFISHRR251569CV","A01","",""]
["25","251",null,null,"USDA NIFARF W/267-332 JACKSON ","1021RR251647","20000","12100","61006","25001DNO",{"$f":"VLOOKUP(TRIM(J2997),'Transactional Departments'!A:B,2,FALSE)","v":"Warnell Dean"},"25001DNO","18400","RNIFARR251647CV","A01","",""]
["25","251",null,null,"GDNR     WILDLIFE        JENNI","1021RR251655","20000","12100","62016","25001DNO",{"$f":"VLOOKUP(TRIM(J2998),'Transactional Departments'!A:B,2,FALSE)","v":"Warnell Dean"},"25001DNO","18003","SGDNRRR251655CV","A01","",""]
["25","251",null,null,"GDNR     FISHERIES       JENNI","1021RR251656","20000","12100","62016","25001DNO",{"$f":"VLOOKUP(TRIM(J2999),'Transactional Departments'!A:B,2,FALSE)","v":"Warnell Dean"},"25001DNO","18003","SGDNRRR251656CV","A01","",""]
["25","251",null,null,"         CHAMPIONS RETRT SHELT","1021RR251657","20000","12100","64081","25001DNO",{"$f":"VLOOKUP(TRIM(J3000),'Transactional Departments'!A:B,2,FALSE)","v":"Warnell Dean"},"25001DNO","18003","SFISHRR251657CV","A01","",""]
["25","251",null,null,"         RF CHLORIDE TOX BRING","1021RR251659","20000","12100","64505","25001DNO",{"$f":"VLOOKUP(TRIM(J3001),'Transactional Departments'!A:B,2,FALSE)","v":"Warnell Dean"},"25001DNO","18003","SEQEIRR251659CV","A01","",""]
["25","251",null,null,"GFA      FRSTRY INIT 09  IZLAR","1031RE251464","20000","13100","64298","25001DNO",{"$f":"VLOOKUP(TRIM(J3002),'Transactional Departments'!A:B,2,FALSE)","v":"Warnell Dean"},"25001DNO","18003","SGFAIRE251464CV","A01","",""]
["25","251",null,null,"         LOBLOLLY PINE   DICKE","1031RE251538","20000","13100","64153","25001DNO",{"$f":"VLOOKUP(TRIM(J3003),'Transactional Departments'!A:B,2,FALSE)","v":"Warnell Dean"},"25001DNO","18003","SIPRIRE251538CV","A01","",""]
["25","251",null,null,"GFA      FRSTRY INIT 14  IZLAR","1031RE251544","20000","13100","64298","25001DNO",{"$f":"VLOOKUP(TRIM(J3004),'Transactional Departments'!A:B,2,FALSE)","v":"Warnell Dean"},"25001DNO","18003","SGFAIRE251544CV","A01","",""]
["25","251",null,null,"GDNR     HNTR EDU FLD DAYIRWIN","1031RE251545","20000","13100","62016","25001DNO",{"$f":"VLOOKUP(TRIM(J3005),'Transactional Departments'!A:B,2,FALSE)","v":"Warnell Dean"},"25001DNO","18003","SGDNRRE251545CV","A01","",""]
["25","251",null,null,"ACCPU    GRAD ASSISTSHIP IRWIN","1031RE251566","20000","13100","63100","25001DNO",{"$f":"VLOOKUP(TRIM(J3006),'Transactional Departments'!A:B,2,FALSE)","v":"Warnell Dean"},"25001DNO","18003","SACCPRE251566CV","A01","",""]
["25","272",null,null,"CH       RF G BEAR       CHAND","2021RR272005","21320","12100","64504","25001DNO",{"$f":"VLOOKUP(TRIM(J3007),'Transactional Departments'!A:B,2,FALSE)","v":"Warnell Dean"},"25001DNO","18400","RDEOHRR272005CV","A01","",""]
["25","272",null,null,"         SHIVER VARIOUS  KANE ","2021RR272055","21320","12100","64206","25001DNO",{"$f":"VLOOKUP(TRIM(J3008),'Transactional Departments'!A:B,2,FALSE)","v":"Warnell Dean"},"25001DNO","18003","SVARIRR272055CV","A01","",""]
["25","272",null,null,"         HUNTER/VARIOUS MMILLE","2021RR272057","21320","12100","64206","25001DNO",{"$f":"VLOOKUP(TRIM(J3009),'Transactional Departments'!A:B,2,FALSE)","v":"Warnell Dean"},"25001DNO","18003","SVARIRR272057CV","A01","",""]
["25","272",null,null,"         VAR RESEARCH    WILDE","2021RR272192","21320","12100","64206","25001DNO",{"$f":"VLOOKUP(TRIM(J3010),'Transactional Departments'!A:B,2,FALSE)","v":"Warnell Dean"},"25001DNO","18003","SVARIRR272192CV","A01","",""]
["25","272",null,null,"NSF      RF APPALACHIA   GRAGS","2021RR272210","21320","12100","61023","25001DNO",{"$f":"VLOOKUP(TRIM(J3011),'Transactional Departments'!A:B,2,FALSE)","v":"Warnell Dean"},"25001DNO","18400","RNSFXRR272210CV","A01","",""]
["25","272",null,null,"CESU     RF SE COAST NET SWEEN","2021RR272299","21320","12100","61034","25001DNO",{"$f":"VLOOKUP(TRIM(J3012),'Transactional Departments'!A:B,2,FALSE)","v":"Warnell Dean"},"25001DNO","18400","RCESURR272299CV","A01","",""]
["25","272",null,null,"GADNR    RF CAP GOP FROG MAERZ","2021RR272308","21320","12100","62016","25001DNO",{"$f":"VLOOKUP(TRIM(J3013),'Transactional Departments'!A:B,2,FALSE)","v":"Warnell Dean"},"25001DNO","18400","RGDNRRR272308CV","A01","",""]
["25","272",null,null,"USDA     RF SOUTHERN PINEMARKE","2021RR272328","21320","12100","61002","25001DNO",{"$f":"VLOOKUP(TRIM(J3014),'Transactional Departments'!A:B,2,FALSE)","v":"Warnell Dean"},"25001DNO","18400","RUSDARR272328CV","A01","",""]
["25","272",null,null,"         RF TIMBER MART SHARRI","2021RR272343","21320","12100","64404","25001DNO",{"$f":"VLOOKUP(TRIM(J3015),'Transactional Departments'!A:B,2,FALSE)","v":"Warnell Dean"},"25001DNO","18003","SFRWFRR272343CV","A01","",""]
["25","272",null,null,"FLA/USDA RF SOUTHRN PINE KANE ","2021RR272344","21320","12100","62511","25001DNO",{"$f":"VLOOKUP(TRIM(J3016),'Transactional Departments'!A:B,2,FALSE)","v":"Warnell Dean"},"25001DNO","18400","RUFLXRR272344CV","A01","",""]
["25","272",null,null,"FLA/USDA RF SUP 272-344  KANE ","2021RR272345","21320","12100","62511","25001DNO",{"$f":"VLOOKUP(TRIM(J3017),'Transactional Departments'!A:B,2,FALSE)","v":"Warnell Dean"},"25001DNO","18400","RUFLXRR272345CV","A01","",""]
["25","272",null,null,"CESU-PIEDRF FORESTRY INV MENGA","2021RR272367","21320","12100","61034","25001DNO",{"$f":"VLOOKUP(TRIM(J3018),'Transactional Departments'!A:B,2,FALSE)","v":"Warnell Dean"},"25001DNO","18400","RCESURR272367CV","A01","",""]
["25","272",null,null,"GDOTUSDOTRF GA HIGHWY 96 CHAMB","2021RR272388","21320","12100","62017","25001DNO",{"$f":"VLOOKUP(TRIM(J3019),'Transactional Departments'!A:B,2,FALSE)","v":"Warnell Dean"},"25001DNO","18400","RGDOTRR272388CV","A01","",""]
["25","272",null,null,"USDA/FS  RF EDU LEADERS  BETTI","2021RR272394","21320","12100","61002","25001DNO",{"$f":"VLOOKUP(TRIM(J3020),'Transactional Departments'!A:B,2,FALSE)","v":"Warnell Dean"},"25001DNO","18400","RUSDARR272394CV","A01","",""]
["25","272",null,null,"DOE      RF POPULUS WOOD TSAI ","2021RR272395","21320","12100","61001","25001DNO",{"$f":"VLOOKUP(TRIM(J3021),'Transactional Departments'!A:B,2,FALSE)","v":"Warnell Dean"},"25001DNO","18400","RUSDERR272395CV","A01","",""]
["25","272",null,null,"CESU     RF STIGONEMATAL WILDE","2021RR272396","21320","12100","61034","25001DNO",{"$f":"VLOOKUP(TRIM(J3022),'Transactional Departments'!A:B,2,FALSE)","v":"Warnell Dean"},"25001DNO","18400","RCESURR272396CV","A01","",""]
["25","272",null,null,"USDA-FS  RF RPA STUDY    GREEN","2021RR272399","21320","12100","61002","25001DNO",{"$f":"VLOOKUP(TRIM(J3023),'Transactional Departments'!A:B,2,FALSE)","v":"Warnell Dean"},"25001DNO","18400","RUSDARR272399CV","A01","",""]
["25","272",null,null,"USDI     RF ALLIGTR HARV MOORE","2021RR272404","21320","12100","61019","25001DNO",{"$f":"VLOOKUP(TRIM(J3024),'Transactional Departments'!A:B,2,FALSE)","v":"Warnell Dean"},"25001DNO","18400","RUSDIRR272404CV","A01","",""]
["25","272",null,null,"USDI     RF GOPHER TORT  MOORE","2021RR272405","21320","12100","61019","25001DNO",{"$f":"VLOOKUP(TRIM(J3025),'Transactional Departments'!A:B,2,FALSE)","v":"Warnell Dean"},"25001DNO","18400","RUSDIRR272405CV","A01","",""]
["25","272",null,null,"GA DNR   RF GPHR TORT GA MOORE","2021RR272415","21320","12100","62016","25001DNO",{"$f":"VLOOKUP(TRIM(J3026),'Transactional Departments'!A:B,2,FALSE)","v":"Warnell Dean"},"25001DNO","18400","RGDNRRR272415CV","A01","",""]
["25","272",null,null,"USEFC    RF BIO RSRCH II MERKL","2021RR272422","21320","12100","64131","25001DNO",{"$f":"VLOOKUP(TRIM(J3027),'Transactional Departments'!A:B,2,FALSE)","v":"Warnell Dean"},"25001DNO","18400","RUSEFRR272422CV","A01","",""]
["25","272",null,null,"         RF CO-LOCATION  SWEEN","2021RR272425","21320","12100","61034","25001DNO",{"$f":"VLOOKUP(TRIM(J3028),'Transactional Departments'!A:B,2,FALSE)","v":"Warnell Dean"},"25001DNO","18003","SCESURR272425CV","A01","",""]
["25","272",null,null,"CESU     RF SE COAST NET      ","2021RR272427","21320","12100","61034","25001DNO",{"$f":"VLOOKUP(TRIM(J3029),'Transactional Departments'!A:B,2,FALSE)","v":"Warnell Dean"},"25001DNO","18400","RCESURR272427CV","A01","",""]
["25","272",null,null,"USDA     RF FORST CARBON SIRY ","2021RR272430","21320","12100","61002","25001DNO",{"$f":"VLOOKUP(TRIM(J3030),'Transactional Departments'!A:B,2,FALSE)","v":"Warnell Dean"},"25001DNO","18400","RUSDARR272430CV","A01","",""]
["25","272",null,null,"USDA     RF SCALE/PATHOG GANDH","2021RR272433","21320","12100","61002","25001DNO",{"$f":"VLOOKUP(TRIM(J3031),'Transactional Departments'!A:B,2,FALSE)","v":"Warnell Dean"},"25001DNO","18400","RUSDARR272433CV","A01","",""]
["25","272",null,null,"         RF BOBWHTE CHCK MARTI","2021RR272435","21320","12100","64019","25001DNO",{"$f":"VLOOKUP(TRIM(J3032),'Transactional Departments'!A:B,2,FALSE)","v":"Warnell Dean"},"25001DNO","18003","STTRIRR272435CV","A01","",""]
["25","272",null,null,"         RF SHRTNSE STUR PETER","2021RR272445","21320","12100","61034","25001DNO",{"$f":"VLOOKUP(TRIM(J3033),'Transactional Departments'!A:B,2,FALSE)","v":"Warnell Dean"},"25001DNO","18003","SCESURR272445CV","A01","",""]
["25","272",null,null,"USDA     RF WHITE PINE   GANDH","2021RR272446","21320","12100","61002","25001DNO",{"$f":"VLOOKUP(TRIM(J3034),'Transactional Departments'!A:B,2,FALSE)","v":"Warnell Dean"},"25001DNO","18400","RUSDARR272446CV","A01","",""]
["25","272",null,null,"USDA     RF WOODY CROPS  GANDH","2021RR272447","21320","12100","61002","25001DNO",{"$f":"VLOOKUP(TRIM(J3035),'Transactional Departments'!A:B,2,FALSE)","v":"Warnell Dean"},"25001DNO","18400","RUSDARR272447CV","A01","",""]
["25","272",null,null,"GDNRUSDOIRF STURGEON POP PETER","2021RR272449","21320","12100","62016","25001DNO",{"$f":"VLOOKUP(TRIM(J3036),'Transactional Departments'!A:B,2,FALSE)","v":"Warnell Dean"},"25001DNO","18400","RGDNRRR272449CV","A01","",""]
["25","272",null,null,"USDA     RF SUP 551-554  SCHMI","2021RR272451","21320","12100","61002","25001DNO",{"$f":"VLOOKUP(TRIM(J3037),'Transactional Departments'!A:B,2,FALSE)","v":"Warnell Dean"},"25001DNO","18400","RUSDARR272451CV","A01","",""]
["25","272",null,null,"GDNR NOAARF GA SLT MRSH  NIBBE","2021RR272454","21320","12100","62016","25001DNO",{"$f":"VLOOKUP(TRIM(J3038),'Transactional Departments'!A:B,2,FALSE)","v":"Warnell Dean"},"25001DNO","18400","RGDNRRR272454CV","A01","",""]
["25","272",null,null,"CESU     RF RR267-243    RHODE","2021RR272459","21320","12100","61034","25001DNO",{"$f":"VLOOKUP(TRIM(J3039),'Transactional Departments'!A:B,2,FALSE)","v":"Warnell Dean"},"25001DNO","18400","RCESURR272459CV","A01","",""]
["25","272",null,null,"NCASI    RF WET DECKS    DAHLE","2021RR272464","21320","12100","64296","25001DNO",{"$f":"VLOOKUP(TRIM(J3040),'Transactional Departments'!A:B,2,FALSE)","v":"Warnell Dean"},"25001DNO","18400","RNCASRR272464CV","A01","",""]
["25","272",null,null,"GDNR/NOAARF ATL STURGEON PETER","2021RR272465","21320","12100","62016","25001DNO",{"$f":"VLOOKUP(TRIM(J3041),'Transactional Departments'!A:B,2,FALSE)","v":"Warnell Dean"},"25001DNO","18400","RGDNRRR272465CV","A01","",""]
["25","272",null,null,"USDI     RF IMPROVED POP CHAND","2021RR272467","21320","12100","61019","25001DNO",{"$f":"VLOOKUP(TRIM(J3042),'Transactional Departments'!A:B,2,FALSE)","v":"Warnell Dean"},"25001DNO","18400","RUSDIRR272467CV","A01","",""]
["25","272",null,null,"NPRB/USDCRF CHINOOK SLMN GROSS","2021RR272468","21320","12100","64161","25001DNO",{"$f":"VLOOKUP(TRIM(J3043),'Transactional Departments'!A:B,2,FALSE)","v":"Warnell Dean"},"25001DNO","18400","RNPRBRR272468CV","A01","",""]
["25","272",null,null,"USDA FS  RF WOODY DEBRIS MOORE","2021RR272470","21320","12100","61002","25001DNO",{"$f":"VLOOKUP(TRIM(J3044),'Transactional Departments'!A:B,2,FALSE)","v":"Warnell Dean"},"25001DNO","18400","RUSDARR272470CV","A01","",""]
["25","272",null,null,"USDA     RF GROUNDWATER  RASMU","2021RR272471","21320","12100","61002","25001DNO",{"$f":"VLOOKUP(TRIM(J3045),'Transactional Departments'!A:B,2,FALSE)","v":"Warnell Dean"},"25001DNO","18400","RUSDARR272471CV","A01","",""]
["25","272",null,null,"USDA FS  RF TALLADEGA    BETTI","2021RR272472","21320","12100","61002","25001DNO",{"$f":"VLOOKUP(TRIM(J3046),'Transactional Departments'!A:B,2,FALSE)","v":"Warnell Dean"},"25001DNO","18400","RUSDARR272472CV","A01","",""]
["25","272",null,null,"CESU     RF SHRT NSE STU PETER","2021RR272473","21320","12100","61034","25001DNO",{"$f":"VLOOKUP(TRIM(J3047),'Transactional Departments'!A:B,2,FALSE)","v":"Warnell Dean"},"25001DNO","18400","RCESURR272473CV","A01","",""]
["25","272",null,null,"GDT      RF CAVE DWELLNG CASTL","2021RR272475","21320","12100","62017","25001DNO",{"$f":"VLOOKUP(TRIM(J3048),'Transactional Departments'!A:B,2,FALSE)","v":"Warnell Dean"},"25001DNO","18400","RGDOTRR272475CV","A01","",""]
["25","272",null,null,"USDA     RF WATERSHED    JACKS","2021RR272479","21320","12100","61002","25001DNO",{"$f":"VLOOKUP(TRIM(J3049),'Transactional Departments'!A:B,2,FALSE)","v":"Warnell Dean"},"25001DNO","18400","RUSDARR272479CV","A01","",""]
["25","272",null,null,"CESU     RF WOODRAT     MMENGA","2021RR272483","21320","12100","61034","25001DNO",{"$f":"VLOOKUP(TRIM(J3050),'Transactional Departments'!A:B,2,FALSE)","v":"Warnell Dean"},"25001DNO","18400","RCESURR272483CV","A01","",""]
["25","272",null,null,"DAL      RF PREP TIMING  DICKE","2021RR272484","21320","12100","64037","25001DNO",{"$f":"VLOOKUP(TRIM(J3051),'Transactional Departments'!A:B,2,FALSE)","v":"Warnell Dean"},"25001DNO","18400","RDAGRRR272484CV","A01","",""]
["25","272",null,null,"TTRI     RF ALEX JACKSON MARTI","2021RR272485","21320","12100","64019","25001DNO",{"$f":"VLOOKUP(TRIM(J3052),'Transactional Departments'!A:B,2,FALSE)","v":"Warnell Dean"},"25001DNO","18400","RTTRIRR272485CV","A01","",""]
["25","272",null,null,"TTRI     RF SETH WOOD    MARTI","2021RR272486","21320","12100","64019","25001DNO",{"$f":"VLOOKUP(TRIM(J3053),'Transactional Departments'!A:B,2,FALSE)","v":"Warnell Dean"},"25001DNO","18400","RTTRIRR272486CV","A01","",""]
["25","272",null,null,"USDI     RF GOPHERUS POL MOORE","2021RR272494","21320","12100","61019","25001DNO",{"$f":"VLOOKUP(TRIM(J3054),'Transactional Departments'!A:B,2,FALSE)","v":"Warnell Dean"},"25001DNO","18400","RUSDIRR272494CV","A01","",""]
["25","272",null,null,"GDNR NOAARF LGRHD TRTLPOPNAIRN","2021RR272495","21320","12100","62016","25001DNO",{"$f":"VLOOKUP(TRIM(J3055),'Transactional Departments'!A:B,2,FALSE)","v":"Warnell Dean"},"25001DNO","18400","RGDNRRR272495CV","A01","",""]
["25","272",null,null,"GDNR USDARF GA BLCK BEAR CHAMB","2021RR272496","21320","12100","62016","25001DNO",{"$f":"VLOOKUP(TRIM(J3056),'Transactional Departments'!A:B,2,FALSE)","v":"Warnell Dean"},"25001DNO","18400","RGDNRRR272496CV","A01","",""]
["25","272",null,null,"DU/NSF   RF CRITICAL ZNE MARKE","2021RR272497","21320","12100","64290","25001DNO",{"$f":"VLOOKUP(TRIM(J3057),'Transactional Departments'!A:B,2,FALSE)","v":"Warnell Dean"},"25001DNO","18400","RDUKERR272497CV","A01","",""]
["25","272",null,null,"GDNR USDARF D&E WT DEER  MILLE","2021RR272498","21320","12100","62016","25001DNO",{"$f":"VLOOKUP(TRIM(J3058),'Transactional Departments'!A:B,2,FALSE)","v":"Warnell Dean"},"25001DNO","18400","RGDNRRR272498CV","A01","",""]
["25","272",null,null,"GDNR USFWRF WLDLF MGMT   CHAMB","2021RR272504","21320","12100","62016","25001DNO",{"$f":"VLOOKUP(TRIM(J3059),'Transactional Departments'!A:B,2,FALSE)","v":"Warnell Dean"},"25001DNO","18400","RGDNRRR272504CV","A01","",""]
["25","272",null,null,"CESU     RF I&M NETWORKS IRWIN","2021RR272505","21320","12100","61034","25001DNO",{"$f":"VLOOKUP(TRIM(J3060),'Transactional Departments'!A:B,2,FALSE)","v":"Warnell Dean"},"25001DNO","18400","RCESURR272505CV","A01","",""]
["25","272",null,null,"FWC      MYELINOPATHY    WILDE","2021RR272506","21320","12100","62554","25001DNO",{"$f":"VLOOKUP(TRIM(J3061),'Transactional Departments'!A:B,2,FALSE)","v":"Warnell Dean"},"25001DNO","18003","SFLFWRR272506CV","A01","",""]
["25","272",null,null,"USDA     RF RADIO USE    GREEN","2021RR272507","21320","12100","61002","25001DNO",{"$f":"VLOOKUP(TRIM(J3062),'Transactional Departments'!A:B,2,FALSE)","v":"Warnell Dean"},"25001DNO","18400","RUSDARR272507CV","A01","",""]
["25","272",null,null,"GDNR     RF COYOTE SPAT  CHAMB","2021RR272509","21320","12100","62016","25001DNO",{"$f":"VLOOKUP(TRIM(J3063),'Transactional Departments'!A:B,2,FALSE)","v":"Warnell Dean"},"25001DNO","18400","RGDNRRR272509CV","A01","",""]
["25","272",null,null,"CESU     RF DEER AND PIG YABSL","2021RR272512","21320","12100","61034","25001DNO",{"$f":"VLOOKUP(TRIM(J3064),'Transactional Departments'!A:B,2,FALSE)","v":"Warnell Dean"},"25001DNO","18400","RCESURR272512CV","A01","",""]
["25","272",null,null,"CESU     RF SUPPRT CNTRL YABSL","2021RR272513","21320","12100","61034","25001DNO",{"$f":"VLOOKUP(TRIM(J3065),'Transactional Departments'!A:B,2,FALSE)","v":"Warnell Dean"},"25001DNO","18400","RCESURR272513CV","A01","",""]
["25","272",null,null,"GDNR     RF STURGEON     PETER","2021RR272515","21320","12100","62016","25001DNO",{"$f":"VLOOKUP(TRIM(J3066),'Transactional Departments'!A:B,2,FALSE)","v":"Warnell Dean"},"25001DNO","18400","RGDNRRR272515CV","A01","",""]
["25","272",null,null,"BCI      RF LONGNOSE BAT CYMER","2021RR272517","21320","12100","64345","25001DNO",{"$f":"VLOOKUP(TRIM(J3067),'Transactional Departments'!A:B,2,FALSE)","v":"Warnell Dean"},"25001DNO","18400","RBATCRR272517CV","A01","",""]
["25","272",null,null,"AFI      RF FIBER SRCING DWIVE","2021RR272519","21320","12100","64232","25001DNO",{"$f":"VLOOKUP(TRIM(J3068),'Transactional Departments'!A:B,2,FALSE)","v":"Warnell Dean"},"25001DNO","18400","RSUFIRR272519CV","A01","",""]
["25","272",null,null,"GDNR USDARF FIR WIL FUR  WARRE","2021RR272527","21320","12100","62016","25001DNO",{"$f":"VLOOKUP(TRIM(J3069),'Transactional Departments'!A:B,2,FALSE)","v":"Warnell Dean"},"25001DNO","18400","RGDNRRR272527CV","A01","",""]
["25","272",null,null,"USDA     RF PINE HLTH    GANDH","2021RR272553","21320","12100","61002","25001DNO",{"$f":"VLOOKUP(TRIM(J3070),'Transactional Departments'!A:B,2,FALSE)","v":"Warnell Dean"},"25001DNO","18400","RUSDARR272553CV","A01","",""]
["25","272",null,null,"USDI     RF CLIMATE CHNG IRWIN","2021RR272554","21320","12100","61019","25001DNO",{"$f":"VLOOKUP(TRIM(J3071),'Transactional Departments'!A:B,2,FALSE)","v":"Warnell Dean"},"25001DNO","18400","RUSDIRR272554CV","A01","",""]
["25","272",null,null,"GDNRUSDOIRF DEER BAIT RESMILLE","2021RR272556","21320","12100","62016","25001DNO",{"$f":"VLOOKUP(TRIM(J3072),'Transactional Departments'!A:B,2,FALSE)","v":"Warnell Dean"},"25001DNO","18400","RGDNRRR272556CV","A01","",""]
["25","272",null,null,"         RF WOOD QUALITY DAHLE","2021RR272558","21320","12100","64020","25001DNO",{"$f":"VLOOKUP(TRIM(J3073),'Transactional Departments'!A:B,2,FALSE)","v":"Warnell Dean"},"25001DNO","18003","SVARCRR272558CV","A01","",""]
["25","272",null,null,"USDA     RF NATL FORSTPLAGREEN","2021RR272560","21320","12100","61002","25001DNO",{"$f":"VLOOKUP(TRIM(J3074),'Transactional Departments'!A:B,2,FALSE)","v":"Warnell Dean"},"25001DNO","18400","RUSDARR272560CV","A01","",""]
["25","272",null,null,"         RF LOBLOLLY PINEDAHLE","2021RR272567","21320","12100","64000","25001DNO",{"$f":"VLOOKUP(TRIM(J3075),'Transactional Departments'!A:B,2,FALSE)","v":"Warnell Dean"},"25001DNO","18003","SPCTCRR272567CV","A01","",""]
["25","272",null,null,"GDNR USFWRF MTLD DUCK ECOCHAMB","2021RR272569","21320","12100","62016","25001DNO",{"$f":"VLOOKUP(TRIM(J3076),'Transactional Departments'!A:B,2,FALSE)","v":"Warnell Dean"},"25001DNO","18400","RGDNRRR272569CV","A01","",""]
["25","272",null,null,"GDNR     RF AVM RISK     WILDE","2021RR272572","21320","12100","62016","25001DNO",{"$f":"VLOOKUP(TRIM(J3077),'Transactional Departments'!A:B,2,FALSE)","v":"Warnell Dean"},"25001DNO","18400","RGDNRRR272572CV","A01","",""]
["25","272",null,null,"         RF TIMBER TRUCK GREEN","2021RR272573","21320","12100","64000","25001DNO",{"$f":"VLOOKUP(TRIM(J3078),'Transactional Departments'!A:B,2,FALSE)","v":"Warnell Dean"},"25001DNO","18003","SPCTCRR272573CV","A01","",""]
["25","272",null,null,"GDNR     RF BEACH NESTINGCOOPE","2021RR272576","21320","12100","62016","25001DNO",{"$f":"VLOOKUP(TRIM(J3079),'Transactional Departments'!A:B,2,FALSE)","v":"Warnell Dean"},"25001DNO","18400","RGDNRRR272576CV","A01","",""]
["25","272",null,null,"USDA     RF STHRN FOREST MEI  ","2021RR272577","21320","12100","61003","25001DNO",{"$f":"VLOOKUP(TRIM(J3080),'Transactional Departments'!A:B,2,FALSE)","v":"Warnell Dean"},"25001DNO","18400","RUSFSRR272577CV","A01","",""]
["25","272",null,null,"NCASI    RF GOPHER TORT  CYMER","2021RR272578","21320","12100","64296","25001DNO",{"$f":"VLOOKUP(TRIM(J3081),'Transactional Departments'!A:B,2,FALSE)","v":"Warnell Dean"},"25001DNO","18400","RNCASRR272578CV","A01","",""]
["25","272",null,null,"TPWD     RF WILD TURKEYS CHAMB","2021RR272579","21320","12100","62563","25001DNO",{"$f":"VLOOKUP(TRIM(J3082),'Transactional Departments'!A:B,2,FALSE)","v":"Warnell Dean"},"25001DNO","18400","RTPWDRR272579CV","A01","",""]
["25","272",null,null,"USDI     RF CONASAUGA RIVBRING","2021RR272580","21320","12100","61019","25001DNO",{"$f":"VLOOKUP(TRIM(J3083),'Transactional Departments'!A:B,2,FALSE)","v":"Warnell Dean"},"25001DNO","18400","RUSDIRR272580CV","A01","",""]
["25","272",null,null,"USDA     RF ROOT FEEDING GANDH","2021RR272582","21320","12100","61003","25001DNO",{"$f":"VLOOKUP(TRIM(J3084),'Transactional Departments'!A:B,2,FALSE)","v":"Warnell Dean"},"25001DNO","18400","RUSFSRR272582CV","A01","",""]
["25","272",null,null,"WMI/USDI RF BOBWHITES    MARTI","2021RR272583","21320","12100","64000","25001DNO",{"$f":"VLOOKUP(TRIM(J3085),'Transactional Departments'!A:B,2,FALSE)","v":"Warnell Dean"},"25001DNO","18400","RWNMIRR272583CV","A01","",""]
["25","272",null,null,"USDA     RF PINE BEETLE  GANDH","2021RR272585","21320","12100","61003","25001DNO",{"$f":"VLOOKUP(TRIM(J3086),'Transactional Departments'!A:B,2,FALSE)","v":"Warnell Dean"},"25001DNO","18400","RUSFSRR272585CV","A01","",""]
["25","272",null,null,"         RF HALEY RITGER GANDH","2021RR272587","21320","12100","64320","25001DNO",{"$f":"VLOOKUP(TRIM(J3087),'Transactional Departments'!A:B,2,FALSE)","v":"Warnell Dean"},"25001DNO","18003","SJJECRR272587CV","A01","",""]
["25","272",null,null,"PSU/USDA RF XYLOPHAGOUS  TSAI ","2021RR272588","21320","12100","62531","25001DNO",{"$f":"VLOOKUP(TRIM(J3088),'Transactional Departments'!A:B,2,FALSE)","v":"Warnell Dean"},"25001DNO","18400","RPASURR272588CV","A01","",""]
["25","272",null,null,"USDA     RF REG OUTREACH COYLE","2021RR272589","21320","12100","61003","25001DNO",{"$f":"VLOOKUP(TRIM(J3089),'Transactional Departments'!A:B,2,FALSE)","v":"Warnell Dean"},"25001DNO","18400","RUSFSRR272589CV","A01","",""]
["25","272",null,null,"USDI     RF PHRAGMITES   MOORE","2021RR272590","21320","12100","61019","25001DNO",{"$f":"VLOOKUP(TRIM(J3090),'Transactional Departments'!A:B,2,FALSE)","v":"Warnell Dean"},"25001DNO","18400","RUSDIRR272590CV","A01","",""]
["25","272",null,null,"USDA     RF ENVIRON EDUC MENGA","2021RR272592","21320","12100","61003","25001DNO",{"$f":"VLOOKUP(TRIM(J3091),'Transactional Departments'!A:B,2,FALSE)","v":"Warnell Dean"},"25001DNO","18400","RUSFSRR272592CV","A01","",""]
["25","272",null,null,"TTRI     RF KYLE LUNSFRD MARTI","2021RR272593","21320","12100","64019","25001DNO",{"$f":"VLOOKUP(TRIM(J3092),'Transactional Departments'!A:B,2,FALSE)","v":"Warnell Dean"},"25001DNO","18400","RTTRIRR272593CV","A01","",""]
["25","272",null,null,"TTRI     RF BRAD ROBERTS MARTI","2021RR272594","21320","12100","64019","25001DNO",{"$f":"VLOOKUP(TRIM(J3093),'Transactional Departments'!A:B,2,FALSE)","v":"Warnell Dean"},"25001DNO","18400","RTTRIRR272594CV","A01","",""]
["25","272",null,null,"FWC      RF VACUOLAR MYELWILDE","2021RR272595","21320","12100","62554","25001DNO",{"$f":"VLOOKUP(TRIM(J3094),'Transactional Departments'!A:B,2,FALSE)","v":"Warnell Dean"},"25001DNO","18400","RFLFWRR272595CV","A01","",""]
["25","272",null,null,"GDNR/USDCRF STURGEON POP PETER","2021RR272598","21320","12100","62016","25001DNO",{"$f":"VLOOKUP(TRIM(J3095),'Transactional Departments'!A:B,2,FALSE)","v":"Warnell Dean"},"25001DNO","18400","RGDNRRR272598CV","A01","",""]
["25","272",null,null,"NCASI    RF DRONE-BASED  MORRI","2021RR272599","21320","12100","64296","25001DNO",{"$f":"VLOOKUP(TRIM(J3096),'Transactional Departments'!A:B,2,FALSE)","v":"Warnell Dean"},"25001DNO","18400","RNCASRR272599CV","A01","",""]
["25","272",null,null,"TACF     RF NUT PRODUCTN MERKL","2021RR272600","21320","12100","64393","25001DNO",{"$f":"VLOOKUP(TRIM(J3097),'Transactional Departments'!A:B,2,FALSE)","v":"Warnell Dean"},"25001DNO","18400","RACNFRR272600CV","A01","",""]
["25","272",null,null,"         RF PMRC CY16-20 KANE ","2021RR272604","21320","12100","64170","25001DNO",{"$f":"VLOOKUP(TRIM(J3098),'Transactional Departments'!A:B,2,FALSE)","v":"Warnell Dean"},"25001DNO","18003","SPMRCRR272604CV","A01","",""]
["25","272",null,null,"         RF GOLDEN-WING  CHAND","2021RR272605","21320","12100","64186","25001DNO",{"$f":"VLOOKUP(TRIM(J3099),'Transactional Departments'!A:B,2,FALSE)","v":"Warnell Dean"},"25001DNO","18003","SIUPRRR272605CV","A01","",""]
["25","272",null,null,"         RF COYOTE COLON HERNA","2021RR272606","21320","12100","63132","25001DNO",{"$f":"VLOOKUP(TRIM(J3100),'Transactional Departments'!A:B,2,FALSE)","v":"Warnell Dean"},"25001DNO","18003","SCIOSRR272606CV","A01","",""]
["25","272",null,null,"         RF WHTE TAIL DR MILLE","2021RR272607","21320","12100","64320","25001DNO",{"$f":"VLOOKUP(TRIM(J3101),'Transactional Departments'!A:B,2,FALSE)","v":"Warnell Dean"},"25001DNO","18003","SJJECRR272607CV","A01","",""]
["25","272",null,null,"         VARIOUS         CHAND","2021RR272608","21320","12100","64206","25001DNO",{"$f":"VLOOKUP(TRIM(J3102),'Transactional Departments'!A:B,2,FALSE)","v":"Warnell Dean"},"25001DNO","18003","SVARIRR272608CV","A01","",""]
["25","272",null,null,"USDA     RF LONGLEAF EDU DICKE","2021RR272609","21320","12100","61005","25001DNO",{"$f":"VLOOKUP(TRIM(J3103),'Transactional Departments'!A:B,2,FALSE)","v":"Warnell Dean"},"25001DNO","18400","RNCRSRR272609CV","A01","",""]
["25","272",null,null,"GDNR     RF TROUT MANAGE JENNI","2021RR272610","21320","12100","62016","25001DNO",{"$f":"VLOOKUP(TRIM(J3104),'Transactional Departments'!A:B,2,FALSE)","v":"Warnell Dean"},"25001DNO","18400","RGDNRRR272610CV","A01","",""]
["25","272",null,null,"UW/NSF   RF I/UCRC PH II DAHLE","2021RR272611","21320","12100","62541","25001DNO",{"$f":"VLOOKUP(TRIM(J3105),'Transactional Departments'!A:B,2,FALSE)","v":"Warnell Dean"},"25001DNO","18400","RUOWARR272611CV","A01","",""]
["25","272",null,null,"         VARIOUS         NAIRN","2021RR272612","21320","12100","64206","25001DNO",{"$f":"VLOOKUP(TRIM(J3106),'Transactional Departments'!A:B,2,FALSE)","v":"Warnell Dean"},"25001DNO","18003","SVARIRR272612CV","A01","",""]
["25","272",null,null,"         VARIOUS         SIRY ","2021RR272613","21320","12100","64206","25001DNO",{"$f":"VLOOKUP(TRIM(J3107),'Transactional Departments'!A:B,2,FALSE)","v":"Warnell Dean"},"25001DNO","18003","SVARIRR272613CV","A01","",""]
["25","272",null,null,"JIA      RF ENVRN STRESS KING ","2021RR272614","21320","12100","62032","25001DNO",{"$f":"VLOOKUP(TRIM(J3108),'Transactional Departments'!A:B,2,FALSE)","v":"Warnell Dean"},"25001DNO","18400","RJEKYRR272614CV","A01","",""]
["25","272",null,null,"KDFW/USDIRF BIRD POPULTN MARTI","2021RR272615","21320","12100","62566","25001DNO",{"$f":"VLOOKUP(TRIM(J3109),'Transactional Departments'!A:B,2,FALSE)","v":"Warnell Dean"},"25001DNO","18400","RKDFWRR272615CV","A01","",""]
["25","272",null,null,"FWC/USDC ENDANG STURGEON PETER","2021RR272616","21320","12100","62554","25001DNO",{"$f":"VLOOKUP(TRIM(J3110),'Transactional Departments'!A:B,2,FALSE)","v":"Warnell Dean"},"25001DNO","18003","SFLFWRR272616CV","A01","",""]
["25","272",null,null,"MSU/USDA RF SWITCHGRASS  MARTI","2021RR272617","21320","12100","62529","25001DNO",{"$f":"VLOOKUP(TRIM(J3111),'Transactional Departments'!A:B,2,FALSE)","v":"Warnell Dean"},"25001DNO","18400","RMSSURR272617CV","A01","",""]
["25","272",null,null,"         RF ST CATHERINESKING ","2021RR272619","21320","12100","64129","25001DNO",{"$f":"VLOOKUP(TRIM(J3112),'Transactional Departments'!A:B,2,FALSE)","v":"Warnell Dean"},"25001DNO","18003","SAMNHRR272619CV","A01","",""]
["25","272",null,null,"USDOA    GEOSPTL NTWK    NIBBE","2021RR272620","21320","12100","61014","25001DNO",{"$f":"VLOOKUP(TRIM(J3113),'Transactional Departments'!A:B,2,FALSE)","v":"Warnell Dean"},"25001DNO","18003","SUSARRR272620CV","A01","",""]
["25","272",null,null,"         NATURAL PIPELNE CASTL","2021RR272621","21320","12100","64320","25001DNO",{"$f":"VLOOKUP(TRIM(J3114),'Transactional Departments'!A:B,2,FALSE)","v":"Warnell Dean"},"25001DNO","18003","SJJECRR272621CV","A01","",""]
["25","272",null,null,"         RF XERIC LONG   AUBRE","2021RR272622","21320","12100","64320","25001DNO",{"$f":"VLOOKUP(TRIM(J3115),'Transactional Departments'!A:B,2,FALSE)","v":"Warnell Dean"},"25001DNO","18003","SJJECRR272622CV","A01","",""]
["25","272",null,null,"USDA     RF MODERN SCIEN MEI  ","2021RR272623","21320","12100","61006","25001DNO",{"$f":"VLOOKUP(TRIM(J3116),'Transactional Departments'!A:B,2,FALSE)","v":"Warnell Dean"},"25001DNO","18400","RNIFARR272623CV","A01","",""]
["25","272",null,null,"USDA     RF LIFE-CYCLE   GANDH","2021RR272624","21320","12100","61003","25001DNO",{"$f":"VLOOKUP(TRIM(J3117),'Transactional Departments'!A:B,2,FALSE)","v":"Warnell Dean"},"25001DNO","18400","RUSFSRR272624CV","A01","",""]
["25","272",null,null,"GDNR/USDIRF RABBIT HUNTINMARTI","2021RR272625","21320","12100","62016","25001DNO",{"$f":"VLOOKUP(TRIM(J3118),'Transactional Departments'!A:B,2,FALSE)","v":"Warnell Dean"},"25001DNO","18400","RGDNRRR272625CV","A01","",""]
["25","272",null,null,"USDA     PINE DECLINE    DAHLE","2021RR272626","21320","12100","61003","25001DNO",{"$f":"VLOOKUP(TRIM(J3119),'Transactional Departments'!A:B,2,FALSE)","v":"Warnell Dean"},"25001DNO","18003","SUSFSRR272626CV","A01","",""]
["25","272",null,null,"GDNR/USDIRF BOBWHITE     MARTI","2021RR272627","21320","12100","62016","25001DNO",{"$f":"VLOOKUP(TRIM(J3120),'Transactional Departments'!A:B,2,FALSE)","v":"Warnell Dean"},"25001DNO","18400","RGDNRRR272627CV","A01","",""]
["25","272",null,null,"USDIFS   RF ACOUSTICAL   CYMER","2021RR272628","21320","12100","61019","25001DNO",{"$f":"VLOOKUP(TRIM(J3121),'Transactional Departments'!A:B,2,FALSE)","v":"Warnell Dean"},"25001DNO","18400","RUSDIRR272628CV","A01","",""]
["25","272",null,null,"NCASI    RF RF_GOPHER TORMARTI","2021RR272629","21320","12100","64296","25001DNO",{"$f":"VLOOKUP(TRIM(J3122),'Transactional Departments'!A:B,2,FALSE)","v":"Warnell Dean"},"25001DNO","18400","RNCASRR272629CV","A01","",""]
["25","272",null,null,"US EPA   UGA MULTIDISCIP_GANDH","2021RR272630","21320","12100","61032","25001DNO",{"$f":"VLOOKUP(TRIM(J3123),'Transactional Departments'!A:B,2,FALSE)","v":"Warnell Dean"},"25001DNO","18003","SUSEARR272630CV","A01","",""]
["25","272",null,null,"         HERITAGE PARK   SHELT","2021RR272631","21320","12100","64081","25001DNO",{"$f":"VLOOKUP(TRIM(J3124),'Transactional Departments'!A:B,2,FALSE)","v":"Warnell Dean"},"25001DNO","18003","SFISHRR272631CV","A01","",""]
["25","272",null,null,"         HARD LABOR CRK  SHELT","2021RR272632","21320","12100","64081","25001DNO",{"$f":"VLOOKUP(TRIM(J3125),'Transactional Departments'!A:B,2,FALSE)","v":"Warnell Dean"},"25001DNO","18003","SFISHRR272632CV","A01","",""]
["25","272",null,null,"USDI     RF AT-RISK SPEC MOORE","2021RR272633","21320","12100","61019","25001DNO",{"$f":"VLOOKUP(TRIM(J3126),'Transactional Departments'!A:B,2,FALSE)","v":"Warnell Dean"},"25001DNO","18400","RUSDIRR272633CV","A01","",""]
["25","272",null,null,"USDA     RF SAFETY SRVY  GREEN","2021RR272634","21320","12100","61003","25001DNO",{"$f":"VLOOKUP(TRIM(J3127),'Transactional Departments'!A:B,2,FALSE)","v":"Warnell Dean"},"25001DNO","18400","RUSFSRR272634CV","A01","",""]
["25","272",null,null,"USDI     RF PLOVER NEST  COOPE","2021RR272635","21320","12100","61019","25001DNO",{"$f":"VLOOKUP(TRIM(J3128),'Transactional Departments'!A:B,2,FALSE)","v":"Warnell Dean"},"25001DNO","18400","RUSDIRR272635CV","A01","",""]
["25","272",null,null,"GDNR     RF PINE PLANT   MARTI","2021RR272636","21320","12100","62016","25001DNO",{"$f":"VLOOKUP(TRIM(J3129),'Transactional Departments'!A:B,2,FALSE)","v":"Warnell Dean"},"25001DNO","18400","RGDNRRR272636CV","A01","",""]
["25","272",null,null,"USDI     RF LONGLEAF SYS MOORE","2021RR272637","21320","12100","61019","25001DNO",{"$f":"VLOOKUP(TRIM(J3130),'Transactional Departments'!A:B,2,FALSE)","v":"Warnell Dean"},"25001DNO","18400","RUSDIRR272637CV","A01","",""]
["25","272",null,null,"NCASI    RF WET-DECKS    DAHLE","2021RR272638","21320","12100","64296","25001DNO",{"$f":"VLOOKUP(TRIM(J3131),'Transactional Departments'!A:B,2,FALSE)","v":"Warnell Dean"},"25001DNO","18400","RNCASRR272638CV","A01","",""]
["25","272",null,null,"GDNR     RF WILD TURKEY  CHAMB","2021RR272639","21320","12100","62016","25001DNO",{"$f":"VLOOKUP(TRIM(J3132),'Transactional Departments'!A:B,2,FALSE)","v":"Warnell Dean"},"25001DNO","18400","RGDNRRR272639CV","A01","",""]
["25","272",null,null,"FFWC     RF AVIAN VACUOL WILDE","2021RR272640","21320","12100","62554","25001DNO",{"$f":"VLOOKUP(TRIM(J3133),'Transactional Departments'!A:B,2,FALSE)","v":"Warnell Dean"},"25001DNO","18400","RFLFWRR272640CV","A01","",""]
["25","272",null,null,"         RF GAME MANAGE  MCCON","2021RR272641","21320","12100","64251","25001DNO",{"$f":"VLOOKUP(TRIM(J3134),'Transactional Departments'!A:B,2,FALSE)","v":"Warnell Dean"},"25001DNO","18003","SQDMARR272641CV","A01","",""]
["25","272",null,null,"USDI     RF GREAT LAKES  MOORE","2021RR272643","21320","12100","61019","25001DNO",{"$f":"VLOOKUP(TRIM(J3135),'Transactional Departments'!A:B,2,FALSE)","v":"Warnell Dean"},"25001DNO","18400","RUSDIRR272643CV","A01","",""]
["25","272",null,null,"USDI     RF GULF STRGEON PETER","2021RR272644","21320","12100","61019","25001DNO",{"$f":"VLOOKUP(TRIM(J3136),'Transactional Departments'!A:B,2,FALSE)","v":"Warnell Dean"},"25001DNO","18400","RUSDIRR272644CV","A01","",""]
["25","272",null,null,"USDA     CARBON DATABASE ZHAO ","2021RR272645","21320","12100","61003","25001DNO",{"$f":"VLOOKUP(TRIM(J3137),'Transactional Departments'!A:B,2,FALSE)","v":"Warnell Dean"},"25001DNO","18003","SUSFSRR272645CV","A01","",""]
["25","272",null,null,"USDA     RF MOLECULR EPI HERNA","2021RR272646","21320","12100","61004","25001DNO",{"$f":"VLOOKUP(TRIM(J3138),'Transactional Departments'!A:B,2,FALSE)","v":"Warnell Dean"},"25001DNO","18400","RARSXRR272646CV","A01","",""]
["25","272",null,null,"GDNR     RF LOGGERHEAD   NAIRN","2021RR272647","21320","12100","62016","25001DNO",{"$f":"VLOOKUP(TRIM(J3139),'Transactional Departments'!A:B,2,FALSE)","v":"Warnell Dean"},"25001DNO","18400","RGDNRRR272647CV","A01","",""]
["25","272",null,null,"         RF AMPHIBIAN    CHAND","2021RR272649","21320","12100","64219","25001DNO",{"$f":"VLOOKUP(TRIM(J3140),'Transactional Departments'!A:B,2,FALSE)","v":"Warnell Dean"},"25001DNO","18003","SHELIRR272649CV","A01","",""]
["25","272",null,null,"USEFC    RF SFLRP        DWIVE","2021RR272650","21320","12100","64131","25001DNO",{"$f":"VLOOKUP(TRIM(J3141),'Transactional Departments'!A:B,2,FALSE)","v":"Warnell Dean"},"25001DNO","18400","RUSEFRR272650CV","A01","",""]
["25","272",null,null,"CESU     RF NRCS CONSERV MOORE","2021RR272651","21320","12100","61034","25001DNO",{"$f":"VLOOKUP(TRIM(J3142),'Transactional Departments'!A:B,2,FALSE)","v":"Warnell Dean"},"25001DNO","18400","RCESURR272651CV","A01","",""]
["25","272",null,null,"         RF SEX DETERMIN PETER","2021RR272652","21320","12100","64329","25001DNO",{"$f":"VLOOKUP(TRIM(J3143),'Transactional Departments'!A:B,2,FALSE)","v":"Warnell Dean"},"25001DNO","18003","SMOTERR272652CV","A01","",""]
["25","272",null,null,"USDI     RF NPS SE COAST JACKS","2021RR272654","21320","12100","61019","25001DNO",{"$f":"VLOOKUP(TRIM(J3144),'Transactional Departments'!A:B,2,FALSE)","v":"Warnell Dean"},"25001DNO","18400","RUSDIRR272654CV","A01","",""]
["25","272",null,null,"GSMF     RF CYANOTOXIN   MAERZ","2021RR272655","21320","12100","64174","25001DNO",{"$f":"VLOOKUP(TRIM(J3145),'Transactional Departments'!A:B,2,FALSE)","v":"Warnell Dean"},"25001DNO","18400","RGSMFRR272655CV","A01","",""]
["25","272",null,null,"CESU     RF GOPHER TORT  MOORE","2021RR272656","21320","12100","61034","25001DNO",{"$f":"VLOOKUP(TRIM(J3146),'Transactional Departments'!A:B,2,FALSE)","v":"Warnell Dean"},"25001DNO","18400","RCESURR272656CV","A01","",""]
["25","272",null,null,"USDA     RF GIS MAPPING  BETTI","2021RR272657","21320","12100","61003","25001DNO",{"$f":"VLOOKUP(TRIM(J3147),'Transactional Departments'!A:B,2,FALSE)","v":"Warnell Dean"},"25001DNO","18400","RUSFSRR272657CV","A01","",""]
["25","272",null,null,"GDNR/USDCRF LOGGERHEAD   MOORE","2021RR272658","21320","12100","62016","25001DNO",{"$f":"VLOOKUP(TRIM(J3148),'Transactional Departments'!A:B,2,FALSE)","v":"Warnell Dean"},"25001DNO","18400","RGDNRRR272658CV","A01","",""]
["25","272",null,null,"         RR715-243       LIPP ","2021RR272659","21320","12100","64100","25001DNO",{"$f":"VLOOKUP(TRIM(J3149),'Transactional Departments'!A:B,2,FALSE)","v":"Warnell Dean"},"25001DNO","18003","SCINCRR272659CV","A01","",""]
["25","272",null,null,"GDNR     RF SHORELINE    COOPE","2021RR272660","21320","12100","62016","25001DNO",{"$f":"VLOOKUP(TRIM(J3150),'Transactional Departments'!A:B,2,FALSE)","v":"Warnell Dean"},"25001DNO","18400","RGDNRRR272660CV","A01","",""]
["25","272",null,null,"USDA     RF ACQUISITION  HERNA","2021RR272661","21320","12100","61004","25001DNO",{"$f":"VLOOKUP(TRIM(J3151),'Transactional Departments'!A:B,2,FALSE)","v":"Warnell Dean"},"25001DNO","18400","RARSXRR272661CV","A01","",""]
["25","272",null,null,"GDNR/USDIRF BLACK BEAR   CHAMB","2021RR272662","21320","12100","62016","25001DNO",{"$f":"VLOOKUP(TRIM(J3152),'Transactional Departments'!A:B,2,FALSE)","v":"Warnell Dean"},"25001DNO","18400","RGDNRRR272662CV","A01","",""]
["25","272",null,null,"         RF INDIA        DWIVE","2021RR272663","21320","12100","64252","25001DNO",{"$f":"VLOOKUP(TRIM(J3153),'Transactional Departments'!A:B,2,FALSE)","v":"Warnell Dean"},"25001DNO","18003","SSHEIRR272663CV","A01","",""]
["25","272",null,null,"GDNR/USDCRF ATL STURGEON PETER","2021RR272664","21320","12100","62016","25001DNO",{"$f":"VLOOKUP(TRIM(J3154),'Transactional Departments'!A:B,2,FALSE)","v":"Warnell Dean"},"25001DNO","18400","RGDNRRR272664CV","A01","",""]
["25","272",null,null,"GDNR     RF ROB REDHORSE IRWIN","2021RR272665","21320","12100","62016","25001DNO",{"$f":"VLOOKUP(TRIM(J3155),'Transactional Departments'!A:B,2,FALSE)","v":"Warnell Dean"},"25001DNO","18400","RGDNRRR272665CV","A01","",""]
["25","272",null,null,"USEFC    RF CLONAL TEST  MERKL","2021RR272666","21320","12100","64131","25001DNO",{"$f":"VLOOKUP(TRIM(J3156),'Transactional Departments'!A:B,2,FALSE)","v":"Warnell Dean"},"25001DNO","18400","RUSEFRR272666CV","A01","",""]
["25","272",null,null,"         RF SETH YOUNGER AUBRE","2021RR272668","21320","12100","64282","25001DNO",{"$f":"VLOOKUP(TRIM(J3157),'Transactional Departments'!A:B,2,FALSE)","v":"Warnell Dean"},"25001DNO","18003","SSIGMRR272668CV","A01","",""]
["25","272",null,null,"         RF RED WOODPCKR NAIRN","2021RR272669","21320","12100","62569","25001DNO",{"$f":"VLOOKUP(TRIM(J3158),'Transactional Departments'!A:B,2,FALSE)","v":"Warnell Dean"},"25001DNO","18003","SALDNRR272669CV","A01","",""]
["25","272",null,null,"         HALEY RITGER    GANDH","2021RR272670","21320","12100","64320","25001DNO",{"$f":"VLOOKUP(TRIM(J3159),'Transactional Departments'!A:B,2,FALSE)","v":"Warnell Dean"},"25001DNO","18003","SJJECRR272670CV","A01","",""]
["25","272",null,null,"NSF      RF LTER         JACKS","2021RR272671","21320","12100","61023","25001DNO",{"$f":"VLOOKUP(TRIM(J3160),'Transactional Departments'!A:B,2,FALSE)","v":"Warnell Dean"},"25001DNO","18400","RNSFXRR272671CV","A01","",""]
["25","272",null,null,"NSF      RF RR272-671 PS JACKS","2021RR272672","21320","12100","61023","25001DNO",{"$f":"VLOOKUP(TRIM(J3161),'Transactional Departments'!A:B,2,FALSE)","v":"Warnell Dean"},"25001DNO","18400","RNSFXRR272672CV","A01","",""]
["25","272",null,null,"GDNR     RF LIAISON CONT D ANG","2021RR272673","21320","12100","62016","25001DNO",{"$f":"VLOOKUP(TRIM(J3162),'Transactional Departments'!A:B,2,FALSE)","v":"Warnell Dean"},"25001DNO","18400","RGDNRRR272673CV","A01","",""]
["25","272",null,null,"GOS      RYAN CHITWOOD   COOPE","2021RR272674","21320","12100","64159","25001DNO",{"$f":"VLOOKUP(TRIM(J3163),'Transactional Departments'!A:B,2,FALSE)","v":"Warnell Dean"},"25001DNO","18003","SGORNRR272674CV","A01","",""]
["25","272",null,null,"GOS      WILL LEWIS      COOPE","2021RR272675","21320","12100","64159","25001DNO",{"$f":"VLOOKUP(TRIM(J3164),'Transactional Departments'!A:B,2,FALSE)","v":"Warnell Dean"},"25001DNO","18003","SGORNRR272675CV","A01","",""]
["25","272",null,null,"GDNR/USDIRF RED COCKADED NAIRN","2021RR272676","21320","12100","62016","25001DNO",{"$f":"VLOOKUP(TRIM(J3165),'Transactional Departments'!A:B,2,FALSE)","v":"Warnell Dean"},"25001DNO","18400","RGDNRRR272676CV","A01","",""]
["25","272",null,null,"USDA     RF RD309-137    JORDA","2021RR272677","21320","12100","61006","25001DNO",{"$f":"VLOOKUP(TRIM(J3166),'Transactional Departments'!A:B,2,FALSE)","v":"Warnell Dean"},"25001DNO","18400","RNIFARR272677CV","A01","",""]
["25","272",null,null,"GDNR     RF GOPHER FROGS MAERZ","2021RR272678","21320","12100","62016","25001DNO",{"$f":"VLOOKUP(TRIM(J3167),'Transactional Departments'!A:B,2,FALSE)","v":"Warnell Dean"},"25001DNO","18400","RGDNRRR272678CV","A01","",""]
["25","272",null,null,"NCASI    RF INSCT POLLIN GANDH","2021RR272679","21320","12100","64296","25001DNO",{"$f":"VLOOKUP(TRIM(J3168),'Transactional Departments'!A:B,2,FALSE)","v":"Warnell Dean"},"25001DNO","18400","RNCASRR272679CV","A01","",""]
["25","272",null,null,"GOS      ANJELIKA KIDD   CYMER","2021RR272680","21320","12100","64159","25001DNO",{"$f":"VLOOKUP(TRIM(J3169),'Transactional Departments'!A:B,2,FALSE)","v":"Warnell Dean"},"25001DNO","18003","SGORNRR272680CV","A01","",""]
["25","272",null,null,"GOS      ANDREA AYALA    HERNA","2021RR272681","21320","12100","64159","25001DNO",{"$f":"VLOOKUP(TRIM(J3170),'Transactional Departments'!A:B,2,FALSE)","v":"Warnell Dean"},"25001DNO","18003","SGORNRR272681CV","A01","",""]
["25","272",null,null,"GOS      CODY COX        NIBBE","2021RR272682","21320","12100","64159","25001DNO",{"$f":"VLOOKUP(TRIM(J3171),'Transactional Departments'!A:B,2,FALSE)","v":"Warnell Dean"},"25001DNO","18003","SGORNRR272682CV","A01","",""]
["25","272",null,null,"NSF      RF RANGE SHIFTS CHAND","2021RR272683","21320","12100","61023","25001DNO",{"$f":"VLOOKUP(TRIM(J3172),'Transactional Departments'!A:B,2,FALSE)","v":"Warnell Dean"},"25001DNO","18400","RNSFXRR272683CV","A01","",""]
["25","272",null,null,"USDA     RF WHITE PINE   GANDH","2021RR272684","21320","12100","61006","25001DNO",{"$f":"VLOOKUP(TRIM(J3173),'Transactional Departments'!A:B,2,FALSE)","v":"Warnell Dean"},"25001DNO","18400","RNIFARR272684CV","A01","",""]
["25","272",null,null,"USDA     RF IPS BEETLE   GANDH","2021RR272687","21320","12100","61003","25001DNO",{"$f":"VLOOKUP(TRIM(J3174),'Transactional Departments'!A:B,2,FALSE)","v":"Warnell Dean"},"25001DNO","18400","RUSFSRR272687CV","A01","",""]
["25","272",null,null,"GDNR/USDIRF BLACK BEAR   CHAMB","2021RR272688","21320","12100","62016","25001DNO",{"$f":"VLOOKUP(TRIM(J3175),'Transactional Departments'!A:B,2,FALSE)","v":"Warnell Dean"},"25001DNO","18400","RGDNRRR272688CV","A01","",""]
["25","272",null,null,"         RF CHRIS MURPHY CASTL","2021RR272689","21320","12100","64320","25001DNO",{"$f":"VLOOKUP(TRIM(J3176),'Transactional Departments'!A:B,2,FALSE)","v":"Warnell Dean"},"25001DNO","18003","SJJECRR272689CV","A01","",""]
["25","272",null,null,"         RF LOG TRUCK    CONRA","2021RR272690","21320","12100","64298","25001DNO",{"$f":"VLOOKUP(TRIM(J3177),'Transactional Departments'!A:B,2,FALSE)","v":"Warnell Dean"},"25001DNO","18003","SGFAIRR272690CV","A01","",""]
["25","272",null,null,"USDA     RF GRAPH & TABLECIESZ","2021RR272691","21320","12100","61003","25001DNO",{"$f":"VLOOKUP(TRIM(J3178),'Transactional Departments'!A:B,2,FALSE)","v":"Warnell Dean"},"25001DNO","18400","RUSFSRR272691CV","A01","",""]
["25","272",null,null,"GDNR/USDIRF WHITE TAILED D ANG","2021RR272692","21320","12100","62016","25001DNO",{"$f":"VLOOKUP(TRIM(J3179),'Transactional Departments'!A:B,2,FALSE)","v":"Warnell Dean"},"25001DNO","18400","RGDNRRR272692CV","A01","",""]
["25","272",null,null,"UF/USDA  RF ECOSYSTM SER DWIVE","2021RR272693","21320","12100","62511","25001DNO",{"$f":"VLOOKUP(TRIM(J3180),'Transactional Departments'!A:B,2,FALSE)","v":"Warnell Dean"},"25001DNO","18400","RUFLXRR272693CV","A01","",""]
["25","272",null,null,"         RF PROPERTY TAX IZLAR","2021RR272694","21320","12100","64298","25001DNO",{"$f":"VLOOKUP(TRIM(J3181),'Transactional Departments'!A:B,2,FALSE)","v":"Warnell Dean"},"25001DNO","18003","SGFAIRR272694CV","A01","",""]
["25","272",null,null,"         RF GREENBRIER   SHELT","2021RR272695","21320","12100","63022","25001DNO",{"$f":"VLOOKUP(TRIM(J3182),'Transactional Departments'!A:B,2,FALSE)","v":"Warnell Dean"},"25001DNO","18003","SCCOLRR272695CV","A01","",""]
["25","272",null,null,"         RF UPPER KIOKEE SHELT","2021RR272696","21320","12100","63022","25001DNO",{"$f":"VLOOKUP(TRIM(J3183),'Transactional Departments'!A:B,2,FALSE)","v":"Warnell Dean"},"25001DNO","18003","SCCOLRR272696CV","A01","",""]
["25","272",null,null,"         RF LOWER KIOKEE SHELT","2021RR272697","21320","12100","63022","25001DNO",{"$f":"VLOOKUP(TRIM(J3184),'Transactional Departments'!A:B,2,FALSE)","v":"Warnell Dean"},"25001DNO","18003","SCCOLRR272697CV","A01","",""]
["25","272",null,null,"         RF UPPER JONES  SHELT","2021RR272698","21320","12100","63022","25001DNO",{"$f":"VLOOKUP(TRIM(J3185),'Transactional Departments'!A:B,2,FALSE)","v":"Warnell Dean"},"25001DNO","18003","SCCOLRR272698CV","A01","",""]
["25","272",null,null,"         RF LOWER REED   SHELT","2021RR272699","21320","12100","63022","25001DNO",{"$f":"VLOOKUP(TRIM(J3186),'Transactional Departments'!A:B,2,FALSE)","v":"Warnell Dean"},"25001DNO","18003","SCCOLRR272699CV","A01","",""]
["25","272",null,null,"         RF UPPER REED   SHELT","2021RR272700","21320","12100","63022","25001DNO",{"$f":"VLOOKUP(TRIM(J3187),'Transactional Departments'!A:B,2,FALSE)","v":"Warnell Dean"},"25001DNO","18003","SCCOLRR272700CV","A01","",""]
["25","272",null,null,"GOX      GINGERELLA      COOPE","2021RR272702","21320","12100","64159","25001DNO",{"$f":"VLOOKUP(TRIM(J3188),'Transactional Departments'!A:B,2,FALSE)","v":"Warnell Dean"},"25001DNO","18003","SGORNRR272702CV","A01","",""]
["25","272",null,null,"DWF      RF RNG NCK DUCK MCCON","2021RR272704","21320","12100","64516","25001DNO",{"$f":"VLOOKUP(TRIM(J3189),'Transactional Departments'!A:B,2,FALSE)","v":"Warnell Dean"},"25001DNO","18400","RWTFWRR272704CV","A01","",""]
["25","272",null,null,"UF/USDA  RF WATER SECUR  DWIVE","2021RR272705","21320","12100","62511","25001DNO",{"$f":"VLOOKUP(TRIM(J3190),'Transactional Departments'!A:B,2,FALSE)","v":"Warnell Dean"},"25001DNO","18400","RUFLXRR272705CV","A01","",""]
["25","272",null,null,"CFAIA    RF NAT ENQUIRER MENGA","2021RR272706","21320","12100","64541","25001DNO",{"$f":"VLOOKUP(TRIM(J3191),'Transactional Departments'!A:B,2,FALSE)","v":"Warnell Dean"},"25001DNO","18400","RCFIARR272706CV","A01","",""]
["25","272",null,null,"TTRI     RF HAZELBAKER   MARTI","2021RR272708","21320","12100","64019","25001DNO",{"$f":"VLOOKUP(TRIM(J3192),'Transactional Departments'!A:B,2,FALSE)","v":"Warnell Dean"},"25001DNO","18400","RTTRIRR272708CV","A01","",""]
["25","272",null,null,"TTRI     RF EMILY PROSSERMARTI","2021RR272709","21320","12100","64019","25001DNO",{"$f":"VLOOKUP(TRIM(J3193),'Transactional Departments'!A:B,2,FALSE)","v":"Warnell Dean"},"25001DNO","18400","RTTRIRR272709CV","A01","",""]
["25","272",null,null,"TTRI     RF JUSTIN HILL  MARTI","2021RR272712","21320","12100","64019","25001DNO",{"$f":"VLOOKUP(TRIM(J3194),'Transactional Departments'!A:B,2,FALSE)","v":"Warnell Dean"},"25001DNO","18400","RTTRIRR272712CV","A01","",""]
["25","272",null,null,"USDA     RF LNGLEAF PINE DAHLE","2021RR272713","21320","12100","61005","25001DNO",{"$f":"VLOOKUP(TRIM(J3195),'Transactional Departments'!A:B,2,FALSE)","v":"Warnell Dean"},"25001DNO","18400","RNCRSRR272713CV","A01","",""]
["25","272",null,null,"GDOA/USDARF CAPS SURVEY  GANDH","2021RR272714","21320","12100","62010","25001DNO",{"$f":"VLOOKUP(TRIM(J3196),'Transactional Departments'!A:B,2,FALSE)","v":"Warnell Dean"},"25001DNO","18400","RGDAGRR272714CV","A01","",""]
["25","272",null,null,"FAO      RF ECON IMPACT  LI   ","2021RR272715","21320","12100","64545","25001DNO",{"$f":"VLOOKUP(TRIM(J3197),'Transactional Departments'!A:B,2,FALSE)","v":"Warnell Dean"},"25001DNO","18400","RFAGORR272715CV","A01","",""]
["25","272",null,null,"USDA     RF LAUREL WILT  VILLA","2021RR272716","21320","12100","61003","25001DNO",{"$f":"VLOOKUP(TRIM(J3198),'Transactional Departments'!A:B,2,FALSE)","v":"Warnell Dean"},"25001DNO","18400","RUSFSRR272716CV","A01","",""]
["25","272",null,null,"GDNR     RF ATL STURGEON PETER","2021RR272718","21320","12100","62016","25001DNO",{"$f":"VLOOKUP(TRIM(J3199),'Transactional Departments'!A:B,2,FALSE)","v":"Warnell Dean"},"25001DNO","18400","RGDNRRR272718CV","A01","",""]
["25","272",null,null,"FWC      RF AVIAN VACUOL WILDE","2021RR272722","21320","12100","62554","25001DNO",{"$f":"VLOOKUP(TRIM(J3200),'Transactional Departments'!A:B,2,FALSE)","v":"Warnell Dean"},"25001DNO","18400","RFLFWRR272722CV","A01","",""]
["25","272",null,null,"UF/USDA  RF SPARC        DWIVE","2021RR272726","21320","12100","62511","25001DNO",{"$f":"VLOOKUP(TRIM(J3201),'Transactional Departments'!A:B,2,FALSE)","v":"Warnell Dean"},"25001DNO","18400","RUFLXRR272726CV","A01","",""]
["25","272",null,null,"GDNR/USDCRF ENVIR STRESS KING ","2021RR272728","21320","12100","62016","25001DNO",{"$f":"VLOOKUP(TRIM(J3202),'Transactional Departments'!A:B,2,FALSE)","v":"Warnell Dean"},"25001DNO","18400","RGDNRRR272728CV","A01","",""]
["25","272",null,null,"USDA     RF WILD BIRDS   HERNA","2021RR272733","21320","12100","61004","25001DNO",{"$f":"VLOOKUP(TRIM(J3203),'Transactional Departments'!A:B,2,FALSE)","v":"Warnell Dean"},"25001DNO","18400","RARSXRR272733CV","A01","",""]
["25","272",null,null,"CESU     RF STOCK ORIGIN SHAMB","2021RR272735","21320","12100","61034","25001DNO",{"$f":"VLOOKUP(TRIM(J3204),'Transactional Departments'!A:B,2,FALSE)","v":"Warnell Dean"},"25001DNO","18400","RCESURR272735CV","A01","",""]
["25","272",null,null,"         VARIOUS         SHELT","2021RR272736","21320","12100","64206","25001DNO",{"$f":"VLOOKUP(TRIM(J3205),'Transactional Departments'!A:B,2,FALSE)","v":"Warnell Dean"},"25001DNO","18003","SVARIRR272736CV","A01","",""]
["25","272",null,null,"GDNR/USDIRF WHSTLNG DUCK CHAMB","2021RR272738","21320","12100","62016","25001DNO",{"$f":"VLOOKUP(TRIM(J3206),'Transactional Departments'!A:B,2,FALSE)","v":"Warnell Dean"},"25001DNO","18400","RGDNRRR272738CV","A01","",""]
["25","272",null,null,"UT/USDA  RF FOREST HLTH  COYLE","2021RR272742","21320","12100","62500","25001DNO",{"$f":"VLOOKUP(TRIM(J3207),'Transactional Departments'!A:B,2,FALSE)","v":"Warnell Dean"},"25001DNO","18400","RXXXXRR272742CV","A01","",""]
["25","272",null,null,"GDNR/USDIRF NONGAME BIRD MOORE","2021RR272744","21320","12100","62016","25001DNO",{"$f":"VLOOKUP(TRIM(J3208),'Transactional Departments'!A:B,2,FALSE)","v":"Warnell Dean"},"25001DNO","18400","RGDNRRR272744CV","A01","",""]
["25","272",null,null,"         VARIOUS         COOPE","2021RR272776","21320","12100","64206","25001DNO",{"$f":"VLOOKUP(TRIM(J3209),'Transactional Departments'!A:B,2,FALSE)","v":"Warnell Dean"},"25001DNO","18003","SVARIRR272776CV","A01","",""]
["25","272",null,null,"WSRI     RF TIMBER COST  GREEN","2021RR272777","21320","12100","64000","25001DNO",{"$f":"VLOOKUP(TRIM(J3210),'Transactional Departments'!A:B,2,FALSE)","v":"Warnell Dean"},"25001DNO","18400","RWNRIRR272777CV","A01","",""]
["25","272",null,null,"         VAR MAERZ       MAERZ","2021RR272778","21320","12100","64206","25001DNO",{"$f":"VLOOKUP(TRIM(J3211),'Transactional Departments'!A:B,2,FALSE)","v":"Warnell Dean"},"25001DNO","18003","SVARIRR272778CV","A01","",""]
["25","272",null,null,"         VARIOUS         CHAMB","2021RR272789","21320","12100","64206","25001DNO",{"$f":"VLOOKUP(TRIM(J3212),'Transactional Departments'!A:B,2,FALSE)","v":"Warnell Dean"},"25001DNO","18003","SVARIRR272789CV","A01","",""]
["25","272",null,null,"PALMBEACH      WHITE IBIS   HE","2021RR272796","21320","12100","62500","25001DNO",{"$f":"VLOOKUP(TRIM(J3213),'Transactional Departments'!A:B,2,FALSE)","v":"Warnell Dean"},"25001DNO","18003","SXXXXRR272796CV","A01","",""]
["25","272",null,null,"WSRI     RF LOGGING      GREEN","2021RR272798","21320","12100","64000","25001DNO",{"$f":"VLOOKUP(TRIM(J3214),'Transactional Departments'!A:B,2,FALSE)","v":"Warnell Dean"},"25001DNO","18400","RWNRIRR272798CV","A01","",""]
["25","272",null,null,"         VARIOUS         BEASL","2021RR272799","21320","12100","64206","25001DNO",{"$f":"VLOOKUP(TRIM(J3215),'Transactional Departments'!A:B,2,FALSE)","v":"Warnell Dean"},"25001DNO","18003","SVARIRR272799CV","A01","",""]
["25","272",null,null,"         VARIOUS         NIBBE","2021RR272800","21320","12100","64206","25001DNO",{"$f":"VLOOKUP(TRIM(J3216),'Transactional Departments'!A:B,2,FALSE)","v":"Warnell Dean"},"25001DNO","18003","SVARIRR272800CV","A01","",""]
["25","272",null,null,"NSF      RF SYS PHASE II MONTE","2021RR272802","21320","12100","61023","25001DNO",{"$f":"VLOOKUP(TRIM(J3217),'Transactional Departments'!A:B,2,FALSE)","v":"Warnell Dean"},"25001DNO","18400","RNSFXRR272802CV","A01","",""]
["25","272",null,null,"GADNR    RF UGA AND WRD  MILLE","2021RR272804","21320","12100","62016","25001DNO",{"$f":"VLOOKUP(TRIM(J3218),'Transactional Departments'!A:B,2,FALSE)","v":"Warnell Dean"},"25001DNO","18400","RGDNRRR272804CV","A01","",""]
["25","272",null,null,"USDA     RF VITRO CULTUR MERKL","2021RR272805","21320","12100","61002","25001DNO",{"$f":"VLOOKUP(TRIM(J3219),'Transactional Departments'!A:B,2,FALSE)","v":"Warnell Dean"},"25001DNO","18400","RUSDARR272805CV","A01","",""]
["25","272",null,null,"GAFC     RF ECO RESTOR   DICKE","2021RR272806","21320","12100","62030","25001DNO",{"$f":"VLOOKUP(TRIM(J3220),'Transactional Departments'!A:B,2,FALSE)","v":"Warnell Dean"},"25001DNO","18400","RGFORRR272806CV","A01","",""]
["25","272",null,null,"AL/USDI  COYOTE ECOL     CHAMB","2021RR272809","21320","12100","62569","25001DNO",{"$f":"VLOOKUP(TRIM(J3221),'Transactional Departments'!A:B,2,FALSE)","v":"Warnell Dean"},"25001DNO","18003","SALDNRR272809CV","A01","",""]
["25","272",null,null,"SCDNR    RF COYOTE STUDY CHAMB","2021RR272810","21320","12100","62550","25001DNO",{"$f":"VLOOKUP(TRIM(J3222),'Transactional Departments'!A:B,2,FALSE)","v":"Warnell Dean"},"25001DNO","18400","RSCNRRR272810CV","A01","",""]
["25","272",null,null,"FLFWCC   DEER DYNAMICS   CHAND","2021RR272811","21320","12100","62554","25001DNO",{"$f":"VLOOKUP(TRIM(J3223),'Transactional Departments'!A:B,2,FALSE)","v":"Warnell Dean"},"25001DNO","18003","SFLFWRR272811CV","A01","",""]
["25","272",null,null,"USEFC    RF HLTH PHASE   MERKL","2021RR272813","21320","12100","64131","25001DNO",{"$f":"VLOOKUP(TRIM(J3224),'Transactional Departments'!A:B,2,FALSE)","v":"Warnell Dean"},"25001DNO","18400","RUSEFRR272813CV","A01","",""]
["25","272",null,null,"NSF      RF LTER SO APPALGRAGS","2021RR272815","21320","12100","61023","25001DNO",{"$f":"VLOOKUP(TRIM(J3225),'Transactional Departments'!A:B,2,FALSE)","v":"Warnell Dean"},"25001DNO","18400","RNSFXRR272815CV","A01","",""]
["25","272",null,null,"USDA/NIFARF OXI STRESS   TSAI ","2021RR272817","21320","12100","61002","25001DNO",{"$f":"VLOOKUP(TRIM(J3226),'Transactional Departments'!A:B,2,FALSE)","v":"Warnell Dean"},"25001DNO","18400","RUSDARR272817CV","A01","",""]
["25","272",null,null,"NSF      RF LTER SO APP GRAGS ","2021RR272821","21320","12100","61023","25001DNO",{"$f":"VLOOKUP(TRIM(J3227),'Transactional Departments'!A:B,2,FALSE)","v":"Warnell Dean"},"25001DNO","18400","RNSFXRR272821CV","A01","",""]
["25","272",null,null,"USDA     MCNTR/STENN FY15MERKL","2021RR272822","21320","12100","61002","25001DNO",{"$f":"VLOOKUP(TRIM(J3228),'Transactional Departments'!A:B,2,FALSE)","v":"Warnell Dean"},"25001DNO","18003","SUSDARR272822CV","A01","",""]
["25","272",null,null,"         VARIOUS         CYMER","2021RR272823","21320","12100","64206","25001DNO",{"$f":"VLOOKUP(TRIM(J3229),'Transactional Departments'!A:B,2,FALSE)","v":"Warnell Dean"},"25001DNO","18003","SVARIRR272823CV","A01","",""]
["25","272",null,null,"NSF      RF ENTERIC PATH HERNA","2021RR272828","21320","12100","61023","25001DNO",{"$f":"VLOOKUP(TRIM(J3230),'Transactional Departments'!A:B,2,FALSE)","v":"Warnell Dean"},"25001DNO","18400","RNSFXRR272828CV","A01","",""]
["25","272",null,null,"USDA     RF LIQUIDAMBAR  AUBRE","2021RR272829","21320","12100","61003","25001DNO",{"$f":"VLOOKUP(TRIM(J3231),'Transactional Departments'!A:B,2,FALSE)","v":"Warnell Dean"},"25001DNO","18400","RUSFSRR272829CV","A01","",""]
["25","272",null,null,"USDA FS  RF RPA ASSESS   GREEN","2021RR272830","21320","12100","61003","25001DNO",{"$f":"VLOOKUP(TRIM(J3232),'Transactional Departments'!A:B,2,FALSE)","v":"Warnell Dean"},"25001DNO","18400","RUSFSRR272830CV","A01","",""]
["25","272",null,null,"USDA FS  RF BELTLINE     BOLEY","2021RR272831","21320","12100","61003","25001DNO",{"$f":"VLOOKUP(TRIM(J3233),'Transactional Departments'!A:B,2,FALSE)","v":"Warnell Dean"},"25001DNO","18400","RUSFSRR272831CV","A01","",""]
["25","272",null,null,"NSF      RF W/ 167-808   LEEBE","2021RR272833","21320","12100","61023","25001DNO",{"$f":"VLOOKUP(TRIM(J3234),'Transactional Departments'!A:B,2,FALSE)","v":"Warnell Dean"},"25001DNO","18400","RNSFXRR272833CV","A01","",""]
["25","272",null,null,"USDA NIFAMCNTR/STENN FY16MERKL","2021RR272834","21320","12100","61006","25001DNO",{"$f":"VLOOKUP(TRIM(J3235),'Transactional Departments'!A:B,2,FALSE)","v":"Warnell Dean"},"25001DNO","18003","SNIFARR272834CV","A01","",""]
["25","272",null,null,"NSF      RF RR272-828 PS HERNA","2021RR272835","21320","12100","61023","25001DNO",{"$f":"VLOOKUP(TRIM(J3236),'Transactional Departments'!A:B,2,FALSE)","v":"Warnell Dean"},"25001DNO","18400","RNSFXRR272835CV","A01","",""]
["25","272",null,null,"USEPA    RF W/293-640    BATZE","2021RR272836","21320","12100","61032","25001DNO",{"$f":"VLOOKUP(TRIM(J3237),'Transactional Departments'!A:B,2,FALSE)","v":"Warnell Dean"},"25001DNO","18400","RUSEARR272836CV","A01","",""]
["25","272",null,null,"NSF      RF W/093-432    TSAI ","2021RR272837","21320","12100","61023","25001DNO",{"$f":"VLOOKUP(TRIM(J3238),'Transactional Departments'!A:B,2,FALSE)","v":"Warnell Dean"},"25001DNO","18400","RNSFXRR272837CV","A01","",""]
["25","272",null,null,"NSF      RF P/S 272-837   TSAI","2021RR272838","21320","12100","61023","25001DNO",{"$f":"VLOOKUP(TRIM(J3239),'Transactional Departments'!A:B,2,FALSE)","v":"Warnell Dean"},"25001DNO","18400","RNSFXRR272838CV","A01","",""]
["25","272",null,null,"DOE      RF RFW267800 SAV RIV ","2021RR272839","21320","12100","61001","25001DNO",{"$f":"VLOOKUP(TRIM(J3240),'Transactional Departments'!A:B,2,FALSE)","v":"Warnell Dean"},"25001DNO","18400","RUSDERR272839CV","A01","",""]
["25","272",null,null,"USDA_NIFAMCNTR/STENN FY17MERKL","2021RR272840","21320","12100","61006","25001DNO",{"$f":"VLOOKUP(TRIM(J3241),'Transactional Departments'!A:B,2,FALSE)","v":"Warnell Dean"},"25001DNO","18003","SNIFARR272840CV","A01","",""]
["25","272",null,null,"TTRI     RF ORLANDO      MARTI","2021RR272841","21320","12100","64019","25001DNO",{"$f":"VLOOKUP(TRIM(J3242),'Transactional Departments'!A:B,2,FALSE)","v":"Warnell Dean"},"25001DNO","18400","RTTRIRR272841CV","A01","",""]
["25","272",null,null,"NCASI    RF WET-DECKS    DAHLE","2021RR272842","21320","12100","64296","25001DNO",{"$f":"VLOOKUP(TRIM(J3243),'Transactional Departments'!A:B,2,FALSE)","v":"Warnell Dean"},"25001DNO","18400","RNCASRR272842CV","A01","",""]
["25","272",null,null,"UTBATELLERF WITH RR549599MOHNE","2021RR272843","21320","12100","64292","25001DNO",{"$f":"VLOOKUP(TRIM(J3244),'Transactional Departments'!A:B,2,FALSE)","v":"Warnell Dean"},"25001DNO","18400","RUTBARR272843CV","A01","",""]
["25","273",null,null,"CESU     INVASIVE PLANT  BARGE","2131RE273208","21325","13100","61034","25001DNO",{"$f":"VLOOKUP(TRIM(J3245),'Transactional Departments'!A:B,2,FALSE)","v":"Warnell Dean"},"25001DNO","18003","SCESURE273208CV","A01","",""]
["25","273",null,null,"FLFWCC   FL INVASIVE     BARGE","2131RE273209","21325","13100","62554","25001DNO",{"$f":"VLOOKUP(TRIM(J3246),'Transactional Departments'!A:B,2,FALSE)","v":"Warnell Dean"},"25001DNO","18003","SFLFWRE273209CV","A01","",""]
["25","273",null,null,"         TIMBER TAX WEB  JACKS","2131RE273213","21325","13100","61002","25001DNO",{"$f":"VLOOKUP(TRIM(J3247),'Transactional Departments'!A:B,2,FALSE)","v":"Warnell Dean"},"25001DNO","18003","SUSDARE273213CV","A01","",""]
["25","273",null,null,"USDA FS  INVASIVE SPECIS BARGE","2131RE273215","21325","13100","61002","25001DNO",{"$f":"VLOOKUP(TRIM(J3248),'Transactional Departments'!A:B,2,FALSE)","v":"Warnell Dean"},"25001DNO","18003","SUSDARE273215CV","A01","",""]
["25","273",null,null,"FWS      INVASVE SPECIES BARGE","2131RE273216","21325","13100","62554","25001DNO",{"$f":"VLOOKUP(TRIM(J3249),'Transactional Departments'!A:B,2,FALSE)","v":"Warnell Dean"},"25001DNO","18003","SFLFWRE273216CV","A01","",""]
["25","273",null,null,"MSU      NOXIOUS WEED    BARGE","2131RE273217","21325","13100","62553","25001DNO",{"$f":"VLOOKUP(TRIM(J3250),'Transactional Departments'!A:B,2,FALSE)","v":"Warnell Dean"},"25001DNO","18003","SMTSURE273217CV","A01","",""]
["25","273",null,null,"USDA     FOREST HEALTH   BARGE","2131RE273219","21325","13100","61003","25001DNO",{"$f":"VLOOKUP(TRIM(J3251),'Transactional Departments'!A:B,2,FALSE)","v":"Warnell Dean"},"25001DNO","18003","SUSFSRE273219CV","A01","",""]
["25","273",null,null,"TNC      HEALTHY APP     BARGE","2131RE273220","21325","13100","64310","25001DNO",{"$f":"VLOOKUP(TRIM(J3252),'Transactional Departments'!A:B,2,FALSE)","v":"Warnell Dean"},"25001DNO","18003","SNACORE273220CV","A01","",""]
["25","273",null,null,"UW       WETLANDS PACKGE BARGE","2131RE273222","21325","13100","62576","25001DNO",{"$f":"VLOOKUP(TRIM(J3253),'Transactional Departments'!A:B,2,FALSE)","v":"Warnell Dean"},"25001DNO","18003","SUOWIRE273222CV","A01","",""]
["25","273",null,null,"USDA NIFARREA FY16       MENGA","2131RE273224","21325","13100","61006","25001DNO",{"$f":"VLOOKUP(TRIM(J3254),'Transactional Departments'!A:B,2,FALSE)","v":"Warnell Dean"},"25001DNO","18003","SNIFARE273224CV","A01","",""]
["25","273",null,null,"SI       EDDMAPS         BARGE","2131RE273227","21325","13100","64162","25001DNO",{"$f":"VLOOKUP(TRIM(J3255),'Transactional Departments'!A:B,2,FALSE)","v":"Warnell Dean"},"25001DNO","18003","SSMITRE273227CV","A01","",""]
["25","273",null,null,"GDOA/USDAGA CAPS 2016    BARGE","2131RE273228","21325","13100","62010","25001DNO",{"$f":"VLOOKUP(TRIM(J3256),'Transactional Departments'!A:B,2,FALSE)","v":"Warnell Dean"},"25001DNO","18003","SGDAGRE273228CV","A01","",""]
["25","273",null,null,"USDA     FIRST DETECTOR  BARGE","2131RE273229","21325","13100","61007","25001DNO",{"$f":"VLOOKUP(TRIM(J3257),'Transactional Departments'!A:B,2,FALSE)","v":"Warnell Dean"},"25001DNO","18003","SAPHIRE273229CV","A01","",""]
["25","273",null,null,"FFWCC    RF CISMAS WEB   BARGE","2131RE273230","21325","13100","62554","25001DNO",{"$f":"VLOOKUP(TRIM(J3258),'Transactional Departments'!A:B,2,FALSE)","v":"Warnell Dean"},"25001DNO","18400","RFLFWRE273230CV","A01","",""]
["25","273",null,null,"         EDDMAPS PRO 1   BARGE","2131RE273231","21325","13100","64212","25001DNO",{"$f":"VLOOKUP(TRIM(J3259),'Transactional Departments'!A:B,2,FALSE)","v":"Warnell Dean"},"25001DNO","18003","SUTWERE273231CV","A01","",""]
["25","273",null,null,"         EDDMAPS PRO 2   BARGE","2131RE273232","21325","13100","64212","25001DNO",{"$f":"VLOOKUP(TRIM(J3260),'Transactional Departments'!A:B,2,FALSE)","v":"Warnell Dean"},"25001DNO","18003","SUTWERE273232CV","A01","",""]
["25","273",null,null,"USDA     INVASIVE.ORG    BARGE","2131RE273233","21325","13100","61007","25001DNO",{"$f":"VLOOKUP(TRIM(J3261),'Transactional Departments'!A:B,2,FALSE)","v":"Warnell Dean"},"25001DNO","18003","SAPHIRE273233CV","A01","",""]
["25","273",null,null,"CESU     INVASIVE SPEC   BARGE","2131RE273234","21325","13100","61034","25001DNO",{"$f":"VLOOKUP(TRIM(J3262),'Transactional Departments'!A:B,2,FALSE)","v":"Warnell Dean"},"25001DNO","18003","SCESURE273234CV","A01","",""]
["25","273",null,null,"USDA     EDDMAPS         BARGE","2131RE273235","21325","13100","61007","25001DNO",{"$f":"VLOOKUP(TRIM(J3263),'Transactional Departments'!A:B,2,FALSE)","v":"Warnell Dean"},"25001DNO","18003","SAPHIRE273235CV","A01","",""]
["25","273",null,null,"USDI     INVASIVE SPECIESBARGE","2131RE273237","21325","13100","61019","25001DNO",{"$f":"VLOOKUP(TRIM(J3264),'Transactional Departments'!A:B,2,FALSE)","v":"Warnell Dean"},"25001DNO","18003","SUSDIRE273237CV","A01","",""]
["25","273",null,null,"         EDDMAPS MIDWST  BARGE","2131RE273238","21325","13100","62582","25001DNO",{"$f":"VLOOKUP(TRIM(J3265),'Transactional Departments'!A:B,2,FALSE)","v":"Warnell Dean"},"25001DNO","18003","SSOMNRE273238CV","A01","",""]
["25","273",null,null,"USDA NIFARREA FY17       MENGA","2131RE273239","21325","13100","61006","25001DNO",{"$f":"VLOOKUP(TRIM(J3266),'Transactional Departments'!A:B,2,FALSE)","v":"Warnell Dean"},"25001DNO","18003","SNIFARE273239CV","A01","",""]
["25","273",null,null,"USDI     EDDMAPS         BARGE","2131RE273240","21325","13100","61019","25001DNO",{"$f":"VLOOKUP(TRIM(J3267),'Transactional Departments'!A:B,2,FALSE)","v":"Warnell Dean"},"25001DNO","18003","SUSDIRE273240CV","A01","",""]
["25","273",null,null,"UW       WETLAND PACKAGE BARGE","2131RE273241","21325","13100","62576","25001DNO",{"$f":"VLOOKUP(TRIM(J3268),'Transactional Departments'!A:B,2,FALSE)","v":"Warnell Dean"},"25001DNO","18003","SUOWIRE273241CV","A01","",""]
["25","273",null,null,"ST OF MN UGA ISMTRACK____BARGE","2131RE273242","21325","13100","62582","25001DNO",{"$f":"VLOOKUP(TRIM(J3269),'Transactional Departments'!A:B,2,FALSE)","v":"Warnell Dean"},"25001DNO","18003","SSOMNRE273242CV","A01","",""]
["25","273",null,null,"USDA     FIRST DETECTOR  BARGE","2131RE273243","21325","13100","61007","25001DNO",{"$f":"VLOOKUP(TRIM(J3270),'Transactional Departments'!A:B,2,FALSE)","v":"Warnell Dean"},"25001DNO","18003","SAPHIRE273243CV","A01","",""]
["25","273",null,null,"USDA     INVASIVE SPEC   BARGE","2131RE273244","21325","13100","61003","25001DNO",{"$f":"VLOOKUP(TRIM(J3271),'Transactional Departments'!A:B,2,FALSE)","v":"Warnell Dean"},"25001DNO","18003","SUSFSRE273244CV","A01","",""]
["25","273",null,null,"GDOA/USDAGA CAPS 2017    BARGE","2131RE273246","21325","13100","62010","25001DNO",{"$f":"VLOOKUP(TRIM(J3272),'Transactional Departments'!A:B,2,FALSE)","v":"Warnell Dean"},"25001DNO","18003","SGDAGRE273246CV","A01","",""]
["25","273",null,null,"USDA     TIMBER TAX      JACKS","2131RE273247","21325","13100","61003","25001DNO",{"$f":"VLOOKUP(TRIM(J3273),'Transactional Departments'!A:B,2,FALSE)","v":"Warnell Dean"},"25001DNO","18003","SUSFSRE273247CV","A01","",""]
["25","273",null,null,"         EDDMAPS UTAH    BARGE","2131RE273248","21325","13100","64212","25001DNO",{"$f":"VLOOKUP(TRIM(J3274),'Transactional Departments'!A:B,2,FALSE)","v":"Warnell Dean"},"25001DNO","18003","SUTWERE273248CV","A01","",""]
["26","551",null,null,"RCAF     CAMPUS STREAMS  FOWLE","1011RH551582","20000","11100","64451","26000ADM",{"$f":"VLOOKUP(TRIM(J3275),'Transactional Departments'!A:B,2,FALSE)","v":"OSE Unit Administration"},"26000ADM","18003","SRCAFRH551582CV","A01","",""]
["26","551",null,null,"USDE     W/216-352 15-17 CONNE","1011RH551605","20000","11100","61033","26000ADM",{"$f":"VLOOKUP(TRIM(J3276),'Transactional Departments'!A:B,2,FALSE)","v":"OSE Unit Administration"},"26000ADM","18003","SDOEDRH551605CV","A01","",""]
["26","551",null,null,"         ECO W/216-360 CONNELL","1011RH551633","20000","11100","61033","26000ADM",{"$f":"VLOOKUP(TRIM(J3277),'Transactional Departments'!A:B,2,FALSE)","v":"OSE Unit Administration"},"26000ADM","18003","SDOEDRH551633CV","A01","",""]
["26","551",null,null,"         ECOPRSUP 216-360 CONN","1011RH551634","20000","11100","61033","26000ADM",{"$f":"VLOOKUP(TRIM(J3278),'Transactional Departments'!A:B,2,FALSE)","v":"OSE Unit Administration"},"26000ADM","18003","SDOEDRH551634CV","A01","",""]
["26","551",null,null,"NSF      RF NRT-DESE_____EZENW","1021RR551230","20000","12100","61023","26000ADM",{"$f":"VLOOKUP(TRIM(J3279),'Transactional Departments'!A:B,2,FALSE)","v":"OSE Unit Administration"},"26000ADM","18400","RNSFXRR551230CV","A01","",""]
["26","551",null,null,"USDI/USGSRF HYDROL VARI__WENGE","1021RR551232","20000","12100","61019","26000ADM",{"$f":"VLOOKUP(TRIM(J3280),'Transactional Departments'!A:B,2,FALSE)","v":"OSE Unit Administration"},"26000ADM","18400","RUSDIRR551232CV","A01","",""]
["26","551",null,null,"U MICH   RF RF_PERTUS TRAROHAN","1021RR551233","20000","12100","62545","26000ADM",{"$f":"VLOOKUP(TRIM(J3281),'Transactional Departments'!A:B,2,FALSE)","v":"OSE Unit Administration"},"26000ADM","18400","RRUMIRR551233CV","A01","",""]
["26","551",null,null,"FHCRC/NIHRF CSQUID PROJ2 ROHAN","1021RR551234","20000","12100","64375","26000ADM",{"$f":"VLOOKUP(TRIM(J3282),'Transactional Departments'!A:B,2,FALSE)","v":"OSE Unit Administration"},"26000ADM","18400","RFRHCRR551234CV","A01","",""]
["26","551",null,null,"USDI-FWS RF RF_NIAG ERIE WENGE","1021RR551235","20000","12100","61019","26000ADM",{"$f":"VLOOKUP(TRIM(J3283),'Transactional Departments'!A:B,2,FALSE)","v":"OSE Unit Administration"},"26000ADM","18400","RUSDIRR551235CV","A01","",""]
["26","551",null,null,"GA DNR   RF NSTING TURTL ANDRE","1021RR551238","20000","12100","62016","26000ADM",{"$f":"VLOOKUP(TRIM(J3284),'Transactional Departments'!A:B,2,FALSE)","v":"OSE Unit Administration"},"26000ADM","18400","RGDNRRR551238CV","A01","",""]
["26","551",null,null,"SO IONICSRF MINING LANDS ANDRE","1021RR551239","20000","12100","64070","26000ADM",{"$f":"VLOOKUP(TRIM(J3285),'Transactional Departments'!A:B,2,FALSE)","v":"OSE Unit Administration"},"26000ADM","18400","RSOIIRR551239CV","A01","",""]
["26","551",null,null,"UPR/NSF  RF LTER IV      PRING","1021RR551410","20000","12100","62558","26000ADM",{"$f":"VLOOKUP(TRIM(J3286),'Transactional Departments'!A:B,2,FALSE)","v":"OSE Unit Administration"},"26000ADM","18400","RUPRRRR551410CV","A01","",""]
["26","551",null,null,"UPR/NSF  RF SUPP 551-410 PRING","1021RR551414","20000","12100","62558","26000ADM",{"$f":"VLOOKUP(TRIM(J3287),'Transactional Departments'!A:B,2,FALSE)","v":"OSE Unit Administration"},"26000ADM","18400","RUPRRRR551414CV","A01","",""]
["26","551",null,null,"         VAR ECOLGY RSCH GITTL","1021RR551421","20000","12100","64206","26100VIN",{"$f":"VLOOKUP(TRIM(J3288),'Transactional Departments'!A:B,2,FALSE)","v":"OSE Various Income"},"26100VIN","18003","SVARIRR551421CV","A01","",""]
["26","551",null,null,"NSF      RF PREDATORS    BYERS","1021RR551470","20000","12100","61023","26000ADM",{"$f":"VLOOKUP(TRIM(J3289),'Transactional Departments'!A:B,2,FALSE)","v":"OSE Unit Administration"},"26000ADM","18400","RNSFXRR551470CV","A01","",""]
["26","551",null,null,"NSF      RF REV ZOONOSIS PORTE","1021RR551476","20000","12100","61023","26000ADM",{"$f":"VLOOKUP(TRIM(J3290),'Transactional Departments'!A:B,2,FALSE)","v":"OSE Unit Administration"},"26000ADM","18400","RNSFXRR551476CV","A01","",""]
["26","551",null,null,"DOC/UND  RF AQUATIC INV SDRAKE","1021RR551482","20000","12100","64368","26000ADM",{"$f":"VLOOKUP(TRIM(J3291),'Transactional Departments'!A:B,2,FALSE)","v":"OSE Unit Administration"},"26000ADM","18400","RUNNDRR551482CV","A01","",""]
["26","551",null,null,"NSF      RF INVASIVE SEAWBYERS","1021RR551493","20000","12100","61023","26000ADM",{"$f":"VLOOKUP(TRIM(J3292),'Transactional Departments'!A:B,2,FALSE)","v":"OSE Unit Administration"},"26000ADM","18400","RNSFXRR551493CV","A01","",""]
["26","551",null,null,"NSF      RF PS 551-493   BYERS","1021RR551494","20000","12100","61023","26000ADM",{"$f":"VLOOKUP(TRIM(J3293),'Transactional Departments'!A:B,2,FALSE)","v":"OSE Unit Administration"},"26000ADM","18400","RNSFXRR551494CV","A01","",""]
["26","551",null,null,"NSF      RF LTREB RENEWL PRING","1021RR551497","20000","12100","61023","26000ADM",{"$f":"VLOOKUP(TRIM(J3294),'Transactional Departments'!A:B,2,FALSE)","v":"OSE Unit Administration"},"26000ADM","18400","RNSFXRR551497CV","A01","",""]
["26","551",null,null,"USDA     RF DUAL STRESSORWURZB","1021RR551503","20000","12100","61002","26000ADM",{"$f":"VLOOKUP(TRIM(J3295),'Transactional Departments'!A:B,2,FALSE)","v":"OSE Unit Administration"},"26000ADM","18400","RUSDARR551503CV","A01","",""]
["26","551",null,null,"NSF      RF SCALER       ROSEM","1021RR551511","20000","12100","61023","26000ADM",{"$f":"VLOOKUP(TRIM(J3296),'Transactional Departments'!A:B,2,FALSE)","v":"OSE Unit Administration"},"26000ADM","18400","RNSFXRR551511CV","A01","",""]
["26","551",null,null,"NSF      RF FOREST BIODV MOHAN","1021RR551514","20000","12100","61023","26000ADM",{"$f":"VLOOKUP(TRIM(J3297),'Transactional Departments'!A:B,2,FALSE)","v":"OSE Unit Administration"},"26000ADM","18400","RNSFXRR551514CV","A01","",""]
["26","551",null,null,"USDC     RF EUTROPHICATN BYERS","1021RR551528","20000","12100","61009","26000ADM",{"$f":"VLOOKUP(TRIM(J3298),'Transactional Departments'!A:B,2,FALSE)","v":"OSE Unit Administration"},"26000ADM","18400","RUSDCRR551528CV","A01","",""]
["26","551",null,null,"NSF      RF INFECTIOUS_D DRAKE","1021RR551529","20000","12100","61023","26000ADM",{"$f":"VLOOKUP(TRIM(J3299),'Transactional Departments'!A:B,2,FALSE)","v":"OSE Unit Administration"},"26000ADM","18400","RNSFXRR551529CV","A01","",""]
["26","551",null,null,"NSF      RF PS 551-529   DRAKE","1021RR551530","20000","12100","61023","26000ADM",{"$f":"VLOOKUP(TRIM(J3300),'Transactional Departments'!A:B,2,FALSE)","v":"OSE Unit Administration"},"26000ADM","18400","RNSFXRR551530CV","A01","",""]
["26","551",null,null,"NSF      RF SCALER       BALLA","1021RR551534","20000","12100","61023","26000ADM",{"$f":"VLOOKUP(TRIM(J3301),'Transactional Departments'!A:B,2,FALSE)","v":"OSE Unit Administration"},"26000ADM","18400","RNSFXRR551534CV","A01","",""]
["26","551",null,null,"         RF SOIL CARBON  SCHMI","1021RR551539","20000","12100","64000","26000ADM",{"$f":"VLOOKUP(TRIM(J3302),'Transactional Departments'!A:B,2,FALSE)","v":"OSE Unit Administration"},"26000ADM","18003","SANTWRR551539CV","A01","",""]
["26","551",null,null,"NSF      RF STRESS TOLERAKEMP ","1021RR551543","20000","12100","61023","26000ADM",{"$f":"VLOOKUP(TRIM(J3303),'Transactional Departments'!A:B,2,FALSE)","v":"OSE Unit Administration"},"26000ADM","18400","RNSFXRR551543CV","A01","",""]
["26","551",null,null,"USDOD    RF BIOLOGICAL NIWURZB","1021RR551547","20000","12100","61012","26000ADM",{"$f":"VLOOKUP(TRIM(J3304),'Transactional Departments'!A:B,2,FALSE)","v":"OSE Unit Administration"},"26000ADM","18400","RUSDDRR551547CV","A01","",""]
["26","551",null,null,"NSF      RF RCN PROPOSAL STEPH","1021RR551550","20000","12100","61023","26000ADM",{"$f":"VLOOKUP(TRIM(J3305),'Transactional Departments'!A:B,2,FALSE)","v":"OSE Unit Administration"},"26000ADM","18400","RNSFXRR551550CV","A01","",""]
["26","551",null,null,"NSF      RF PS RR551-550 STEPH","1021RR551551","20000","12100","61023","26000ADM",{"$f":"VLOOKUP(TRIM(J3306),'Transactional Departments'!A:B,2,FALSE)","v":"OSE Unit Administration"},"26000ADM","18400","RNSFXRR551551CV","A01","",""]
["26","551",null,null,"USDA FS  RF EL YUNQUE    PRING","1021RR551552","20000","12100","61002","26000ADM",{"$f":"VLOOKUP(TRIM(J3307),'Transactional Departments'!A:B,2,FALSE)","v":"OSE Unit Administration"},"26000ADM","18400","RUSDARR551552CV","A01","",""]
["26","551",null,null,"NSF      RF W/ 100635 FITT HOP","1021RR551553","20000","12100","61023","26000ADM",{"$f":"VLOOKUP(TRIM(J3308),'Transactional Departments'!A:B,2,FALSE)","v":"OSE Unit Administration"},"26000ADM","18400","RNSFXRR551553CV","A01","",""]
["26","551",null,null,"NSF      RF W/100647BALANTYNE ","1021RR551555","20000","12100","61023","26000ADM",{"$f":"VLOOKUP(TRIM(J3309),'Transactional Departments'!A:B,2,FALSE)","v":"OSE Unit Administration"},"26000ADM","18400","RNSFXRR551555CV","A01","",""]
["26","551",null,null,"USDC     RF R/SCD-SHE    HOPKI","1021RR551556","20000","12100","61009","26000ADM",{"$f":"VLOOKUP(TRIM(J3310),'Transactional Departments'!A:B,2,FALSE)","v":"OSE Unit Administration"},"26000ADM","18400","RUSDCRR551556CV","A01","",""]
["26","551",null,null,"TU       RF SALMONID FSH WENGE","1021RR551557","20000","12100","64164","26000ADM",{"$f":"VLOOKUP(TRIM(J3311),'Transactional Departments'!A:B,2,FALSE)","v":"OSE Unit Administration"},"26000ADM","18400","RTUNORR551557CV","A01","",""]
["26","551",null,null,"NSF      RF LKE SEMINOLE COVIC","1021RR551562","20000","12100","61023","26000ADM",{"$f":"VLOOKUP(TRIM(J3312),'Transactional Departments'!A:B,2,FALSE)","v":"OSE Unit Administration"},"26000ADM","18400","RNSFXRR551562CV","A01","",""]
["26","551",null,null,"NSF      RF  IMMUNE TRADEEZENW","1021RR551564","20000","12100","61023","26000ADM",{"$f":"VLOOKUP(TRIM(J3313),'Transactional Departments'!A:B,2,FALSE)","v":"OSE Unit Administration"},"26000ADM","18400","RNSFXRR551564CV","A01","",""]
["26","551",null,null,"NSF      RF PATH DYNAMIC ALTIZ","1021RR551568","20000","12100","61023","26000ADM",{"$f":"VLOOKUP(TRIM(J3314),'Transactional Departments'!A:B,2,FALSE)","v":"OSE Unit Administration"},"26000ADM","18400","RNSFXRR551568CV","A01","",""]
["26","551",null,null,"USDI     RF HYDROLOGY    WENGE","1021RR551572","20000","12100","61019","26000ADM",{"$f":"VLOOKUP(TRIM(J3315),'Transactional Departments'!A:B,2,FALSE)","v":"OSE Unit Administration"},"26000ADM","18400","RUSDIRR551572CV","A01","",""]
["26","551",null,null,"CESU     RF COMM & TECH  WENGE","1021RR551573","20000","12100","61034","26000ADM",{"$f":"VLOOKUP(TRIM(J3316),'Transactional Departments'!A:B,2,FALSE)","v":"OSE Unit Administration"},"26000ADM","18400","RCESURR551573CV","A01","",""]
["26","551",null,null,"NSF      RF WHITE-NOSE KRKRAME","1021RR551579","20000","12100","61023","26000ADM",{"$f":"VLOOKUP(TRIM(J3317),'Transactional Departments'!A:B,2,FALSE)","v":"OSE Unit Administration"},"26000ADM","18400","RNSFXRR551579CV","A01","",""]
["26","551",null,null,"NAU/USDE RF CLIMATE CHNG OSENB","1021RR551580","20000","12100","62585","26000ADM",{"$f":"VLOOKUP(TRIM(J3318),'Transactional Departments'!A:B,2,FALSE)","v":"OSE Unit Administration"},"26000ADM","18400","RNAZURR551580CV","A01","",""]
["26","551",null,null,"UFL/NSF  RF CORAL VERMETIOSENB","1021RR551586","20000","12100","62511","26000ADM",{"$f":"VLOOKUP(TRIM(J3319),'Transactional Departments'!A:B,2,FALSE)","v":"OSE Unit Administration"},"26000ADM","18400","RUFLXRR551586CV","A01","",""]
["26","551",null,null,"GDNR     FISH SPECIES    FREEM","1021RR551587","20000","12100","62016","26000ADM",{"$f":"VLOOKUP(TRIM(J3320),'Transactional Departments'!A:B,2,FALSE)","v":"OSE Unit Administration"},"26000ADM","18003","SGDNRRR551587CV","A01","",""]
["26","551",null,null,"GIT      RF RF_WATER CONFFOWLE","1021RR551588","20000","12100","62021","26000ADM",{"$f":"VLOOKUP(TRIM(J3321),'Transactional Departments'!A:B,2,FALSE)","v":"OSE Unit Administration"},"26000ADM","18400","RGAITRR551588CV","A01","",""]
["26","551",null,null,"NSF      RF RR272-828    HALL ","1021RR551589","20000","12100","61023","26000ADM",{"$f":"VLOOKUP(TRIM(J3322),'Transactional Departments'!A:B,2,FALSE)","v":"OSE Unit Administration"},"26000ADM","18400","RNSFXRR551589CV","A01","",""]
["26","551",null,null,"USDC     RF R/HCE-BYER-16     ","1021RR551590","20000","12100","61009","26000ADM",{"$f":"VLOOKUP(TRIM(J3323),'Transactional Departments'!A:B,2,FALSE)","v":"OSE Unit Administration"},"26000ADM","18400","RUSDCRR551590CV","A01","",""]
["26","551",null,null,"NSF      RF DISS RSRCH __WURZB","1021RR551591","20000","12100","61023","26000ADM",{"$f":"VLOOKUP(TRIM(J3324),'Transactional Departments'!A:B,2,FALSE)","v":"OSE Unit Administration"},"26000ADM","18400","RNSFXRR551591CV","A01","",""]
["26","551",null,null,"USDC     RF RR534-095    BYERS","1021RR551592","20000","12100","61009","26000ADM",{"$f":"VLOOKUP(TRIM(J3325),'Transactional Departments'!A:B,2,FALSE)","v":"OSE Unit Administration"},"26000ADM","18400","RUSDCRR551592CV","A01","",""]
["26","551",null,null,"NFWF     RF BIODIVERS    WENGE","1021RR551602","20000","12100","64402","26000ADM",{"$f":"VLOOKUP(TRIM(J3326),'Transactional Departments'!A:B,2,FALSE)","v":"OSE Unit Administration"},"26000ADM","18400","RNFWFRR551602CV","A01","",""]
["26","551",null,null,"CESU     RF RF_QUANT ECOLWENGE","1021RR551607","20000","12100","61034","26000ADM",{"$f":"VLOOKUP(TRIM(J3327),'Transactional Departments'!A:B,2,FALSE)","v":"OSE Unit Administration"},"26000ADM","18400","RCESURR551607CV","A01","",""]
["26","551",null,null,"RIVER NETRF RF_SE WATER SFOWLE","1021RR551608","20000","12100","64203","26000ADM",{"$f":"VLOOKUP(TRIM(J3328),'Transactional Departments'!A:B,2,FALSE)","v":"OSE Unit Administration"},"26000ADM","18400","RRIVERR551608CV","A01","",""]
["26","551",null,null,"NSF      RF RF LIVESTOCK ALTIZ","1021RR551609","20000","12100","61023","26000ADM",{"$f":"VLOOKUP(TRIM(J3329),'Transactional Departments'!A:B,2,FALSE)","v":"OSE Unit Administration"},"26000ADM","18400","RNSFXRR551609CV","A01","",""]
["26","551",null,null,"GA NAT RECONASAUGA RIVER_FREEM","1021RR551610","20000","12100","62016","26000ADM",{"$f":"VLOOKUP(TRIM(J3330),'Transactional Departments'!A:B,2,FALSE)","v":"OSE Unit Administration"},"26000ADM","18003","SGDNRRR551610CV","A01","",""]
["26","551",null,null,"USDA FOR RF RF_SALMONID PWENGE","1021RR551611","20000","12100","61003","26000ADM",{"$f":"VLOOKUP(TRIM(J3331),'Transactional Departments'!A:B,2,FALSE)","v":"OSE Unit Administration"},"26000ADM","18400","RUSFSRR551611CV","A01","",""]
["26","551",null,null,"NSF      RF PS 551-529   DRAKE","1021RR551612","20000","12100","61023","26000ADM",{"$f":"VLOOKUP(TRIM(J3332),'Transactional Departments'!A:B,2,FALSE)","v":"OSE Unit Administration"},"26000ADM","18400","RNSFXRR551612CV","A01","",""]
["26","551",null,null,"NIH      RF TIPPNG POINT DRAKE","1021RR551614","20000","12100","61018","26000ADM",{"$f":"VLOOKUP(TRIM(J3333),'Transactional Departments'!A:B,2,FALSE)","v":"OSE Unit Administration"},"26000ADM","18400","RNIHXRR551614CV","A01","",""]
["26","551",null,null,"FHCRC/NIHRF CSQUID       DRAKE","1021RR551615","20000","12100","64375","26000ADM",{"$f":"VLOOKUP(TRIM(J3334),'Transactional Departments'!A:B,2,FALSE)","v":"OSE Unit Administration"},"26000ADM","18400","RFRHCRR551615CV","A01","",""]
["26","551",null,null,"NIH      RF TIPPING PT___ROHAN","1021RR551616","20000","12100","61018","26000ADM",{"$f":"VLOOKUP(TRIM(J3335),'Transactional Departments'!A:B,2,FALSE)","v":"OSE Unit Administration"},"26000ADM","18400","RNIHXRR551616CV","A01","",""]
["26","551",null,null,"UPR      RF RF_ECO CHANGEPRING","1021RR551617","20000","12100","62558","26000ADM",{"$f":"VLOOKUP(TRIM(J3336),'Transactional Departments'!A:B,2,FALSE)","v":"OSE Unit Administration"},"26000ADM","18400","RUPRRRR551617CV","A01","",""]
["26","551",null,null,"UPR      RF COV W/551617 PRING","1021RR551621","20000","12100","62558","26000ADM",{"$f":"VLOOKUP(TRIM(J3337),'Transactional Departments'!A:B,2,FALSE)","v":"OSE Unit Administration"},"26000ADM","18400","RUPRRRR551621CV","A01","",""]
["26","551",null,null,"UPR      RF BALL W551617_PRING","1021RR551622","20000","12100","62558","26000ADM",{"$f":"VLOOKUP(TRIM(J3338),'Transactional Departments'!A:B,2,FALSE)","v":"OSE Unit Administration"},"26000ADM","18400","RUPRRRR551622CV","A01","",""]
["26","551",null,null,"FHCRC/NIHRF CSQUID PROJ2 ROHAN","1021RR551625","20000","12100","64375","26000ADM",{"$f":"VLOOKUP(TRIM(J3339),'Transactional Departments'!A:B,2,FALSE)","v":"OSE Unit Administration"},"26000ADM","18400","RFRHCRR551625CV","A01","",""]
["26","551",null,null,"WFU/NSF  RF RF_WOODY COVEHOLDO","1021RR551626","20000","12100","64307","26000ADM",{"$f":"VLOOKUP(TRIM(J3340),'Transactional Departments'!A:B,2,FALSE)","v":"OSE Unit Administration"},"26000ADM","18400","RWAFURR551626CV","A01","",""]
["26","551",null,null,"DOE      RF RFW267800 WETCAPPS","1021RR551627","20000","12100","61001","26000ADM",{"$f":"VLOOKUP(TRIM(J3341),'Transactional Departments'!A:B,2,FALSE)","v":"OSE Unit Administration"},"26000ADM","18400","RUSDERR551627CV","A01","",""]
["26","551",null,null,"MILTON   RF RF_MILTON WASWENGE","1021RR551630","20000","12100","63121","26000ADM",{"$f":"VLOOKUP(TRIM(J3342),'Transactional Departments'!A:B,2,FALSE)","v":"OSE Unit Administration"},"26000ADM","18400","RCIOMRR551630CV","A01","",""]
["26","551",null,null,"NSF      RF REU POP BIO__DRAKE","1021RR551631","20000","12100","61023","26000ADM",{"$f":"VLOOKUP(TRIM(J3343),'Transactional Departments'!A:B,2,FALSE)","v":"OSE Unit Administration"},"26000ADM","18400","RNSFXRR551631CV","A01","",""]
["26","551",null,null,"NSF      RF P/S W/551631 DRAKE","1021RR551632","20000","12100","61023","26000ADM",{"$f":"VLOOKUP(TRIM(J3344),'Transactional Departments'!A:B,2,FALSE)","v":"OSE Unit Administration"},"26000ADM","18400","RNSFXRR551632CV","A01","",""]
["26","551",null,null,"NIH      RF TIPPNG POINT ROHAN","1021RR551636","20000","12100","61018","26000ADM",{"$f":"VLOOKUP(TRIM(J3345),'Transactional Departments'!A:B,2,FALSE)","v":"OSE Unit Administration"},"26000ADM","18400","RNIHXRR551636CV","A01","",""]
["26","551",null,null,"CARTR CTRRF  RF W/ RR694218 EZ","1021RR551637","20000","12100","64192","26000ADM",{"$f":"VLOOKUP(TRIM(J3346),'Transactional Departments'!A:B,2,FALSE)","v":"OSE Unit Administration"},"26000ADM","18400","RCACIRR551637CV","A01","",""]
["26","551",null,null,"TALL TIMBRF RF_LANDSCAPE WURZB","1021RR551638","20000","12100","64019","26000ADM",{"$f":"VLOOKUP(TRIM(J3347),'Transactional Departments'!A:B,2,FALSE)","v":"OSE Unit Administration"},"26000ADM","18400","RTTRIRR551638CV","A01","",""]
["26","551",null,null,"GDNR     RF END SPECIESS FREEM","1021RR551639","20000","12100","62016","26000ADM",{"$f":"VLOOKUP(TRIM(J3348),'Transactional Departments'!A:B,2,FALSE)","v":"OSE Unit Administration"},"26000ADM","18400","RGDNRRR551639CV","A01","",""]
["26","551",null,null,"GDOT     RF REVIEW OF SP_WENGE","1021RR551640","20000","12100","62017","26000ADM",{"$f":"VLOOKUP(TRIM(J3349),'Transactional Departments'!A:B,2,FALSE)","v":"OSE Unit Administration"},"26000ADM","18400","RGDOTRR551640CV","A01","",""]
["26","551",null,null,"NIH      RF TIPPNG POINT DRAKE","1021RR551641","20000","12100","61018","26000ADM",{"$f":"VLOOKUP(TRIM(J3350),'Transactional Departments'!A:B,2,FALSE)","v":"OSE Unit Administration"},"26000ADM","18400","RNIHXRR551641CV","A01","",""]
["26","551",null,null,"GA DNR   RF RF_BROMIDE COCAPPS","1021RR551642","20000","12100","62052","26000ADM",{"$f":"VLOOKUP(TRIM(J3351),'Transactional Departments'!A:B,2,FALSE)","v":"OSE Unit Administration"},"26000ADM","18400","RGEPDRR551642CV","A01","",""]
["26","551",null,null,"FH CRC   RF FH INFECTDIS_DRAKE","1021RR551643","20000","12100","64375","26000ADM",{"$f":"VLOOKUP(TRIM(J3352),'Transactional Departments'!A:B,2,FALSE)","v":"OSE Unit Administration"},"26000ADM","18400","RFRHCRR551643CV","A01","",""]
["26","551",null,null,"NSF      RF RF_HEADWATER ROSEM","1021RR551644","20000","12100","61023","26000ADM",{"$f":"VLOOKUP(TRIM(J3353),'Transactional Departments'!A:B,2,FALSE)","v":"OSE Unit Administration"},"26000ADM","18400","RNSFXRR551644CV","A01","",""]
["26","551",null,null,"GIT/USGS RF RF_STATE WATEWENGE","1021RR551646","20000","12100","62021","26000ADM",{"$f":"VLOOKUP(TRIM(J3354),'Transactional Departments'!A:B,2,FALSE)","v":"OSE Unit Administration"},"26000ADM","18400","RGAITRR551646CV","A01","",""]
["26","551",null,null,"GIT/USGS RF RF_STATE WATEFOWLE","1021RR551648","20000","12100","62021","26000ADM",{"$f":"VLOOKUP(TRIM(J3355),'Transactional Departments'!A:B,2,FALSE)","v":"OSE Unit Administration"},"26000ADM","18400","RGAITRR551648CV","A01","",""]
["26","551",null,null,"FHCRC/NIHRF CSQUID PROJ2 ROHAN","1021RR551649","20000","12100","64375","26000ADM",{"$f":"VLOOKUP(TRIM(J3356),'Transactional Departments'!A:B,2,FALSE)","v":"OSE Unit Administration"},"26000ADM","18400","RFRHCRR551649CV","A01","",""]
["26","551",null,null,"TUFTS    RF RF_WILL CLIMAALTIZ","1021RR551650","20000","12100","62560","26000ADM",{"$f":"VLOOKUP(TRIM(J3357),'Transactional Departments'!A:B,2,FALSE)","v":"OSE Unit Administration"},"26000ADM","18400","RTUFTRR551650CV","A01","",""]
["26","551",null,null,"US DOI   RF RF_ANALYSIS OWENGE","1021RR551652","20000","12100","61019","26000ADM",{"$f":"VLOOKUP(TRIM(J3358),'Transactional Departments'!A:B,2,FALSE)","v":"OSE Unit Administration"},"26000ADM","18400","RUSDIRR551652CV","A01","",""]
["26","551",null,null,"NSF      RF RF_GLOBAL PATDRAKE","1021RR551653","20000","12100","64000","26000ADM",{"$f":"VLOOKUP(TRIM(J3359),'Transactional Departments'!A:B,2,FALSE)","v":"OSE Unit Administration"},"26000ADM","18400","RXXXXRR551653CV","A01","",""]
["26","551",null,null,"GERA     UGA NO NET LOSS_FOWLE","1031RE551619","20000","13100","64210","26000ADM",{"$f":"VLOOKUP(TRIM(J3360),'Transactional Departments'!A:B,2,FALSE)","v":"OSE Unit Administration"},"26000ADM","18003","SGERARE551619CV","A01","",""]
["26","551",null,null,"US EPA   UGA_MICROB CIT__FOWLE","1031RE551623","20000","13100","61032","26000ADM",{"$f":"VLOOKUP(TRIM(J3361),'Transactional Departments'!A:B,2,FALSE)","v":"OSE Unit Administration"},"26000ADM","18003","SUSEARE551623CV","A01","",""]
["26","551",null,null,"DOBBS FNDRF RF_TOOLS TO PSCHMI","1031RE551629","20000","13100","64433","26000ADM",{"$f":"VLOOKUP(TRIM(J3362),'Transactional Departments'!A:B,2,FALSE)","v":"OSE Unit Administration"},"26000ADM","18400","RRHOWRE551629CV","A01","",""]
["26","551",null,null,"GERA     RF RF_STATE BUFFWENGE","1031RE551654","20000","13100","64210","26000ADM",{"$f":"VLOOKUP(TRIM(J3363),'Transactional Departments'!A:B,2,FALSE)","v":"OSE Unit Administration"},"26000ADM","18400","RGERARE551654CV","A01","",""]
["27","252",null,null,"UWM/NSF  UNDERGRAD LEARN MILTO","1011RH252140","20000","11100","62518","27002000",{"$f":"VLOOKUP(TRIM(J3364),'Transactional Departments'!A:B,2,FALSE)","v":"Graduate Sch Admin"},"27002000","18003","SUNWIRH252140CV","A01","",""]
["27","252",null,null,"NSF      GRFP            BARBO","1011RH252141","20000","11100","61023","27002000",{"$f":"VLOOKUP(TRIM(J3365),'Transactional Departments'!A:B,2,FALSE)","v":"Graduate Sch Admin"},"27002000","18003","SNSFXRH252141CV","A01","",""]
["27","252",null,null,"UWI      GREAT LAKES     MILTO","1011RH252142","20000","11100","62518","27002000",{"$f":"VLOOKUP(TRIM(J3366),'Transactional Departments'!A:B,2,FALSE)","v":"Graduate Sch Admin"},"27002000","18003","SUNWIRH252142CV","A01","",""]
["27","252",null,null,"FORD FND FORD FND FELLOW_BARBO","1011RH252145","20000","11100","64380","27002000",{"$f":"VLOOKUP(TRIM(J3367),'Transactional Departments'!A:B,2,FALSE)","v":"Graduate Sch Admin"},"27002000","18003","SFORDRH252145CV","A01","",""]
["27","252",null,null,"UMN/USDA RF RC371-299    JACKS","1021RR252024","20000","12100","62514","27002000",{"$f":"VLOOKUP(TRIM(J3368),'Transactional Departments'!A:B,2,FALSE)","v":"Graduate Sch Admin"},"27002000","18400","RUOMNRR252024CV","A01","",""]
["27","252",null,null,"NSF      RF R_NRT-IGE____COFFI","1021RR252143","20000","12100","61023","27002000",{"$f":"VLOOKUP(TRIM(J3369),'Transactional Departments'!A:B,2,FALSE)","v":"Graduate Sch Admin"},"27002000","18400","RNSFXRR252143CV","A01","",""]
["27","252",null,null,"NSF      RF R P/S W/RR252-143 ","1021RR252144","20000","12100","61023","27002000",{"$f":"VLOOKUP(TRIM(J3370),'Transactional Departments'!A:B,2,FALSE)","v":"Graduate Sch Admin"},"27002000","18400","RNSFXRR252144CV","A01","",""]
["27","252",null,null,"D OF ED  RF RF_FULBRIGHT_MILTO","1021RR252147","20000","12100","61033","27002000",{"$f":"VLOOKUP(TRIM(J3371),'Transactional Departments'!A:B,2,FALSE)","v":"Graduate Sch Admin"},"27002000","18400","RDOEDRR252147CV","A01","",""]
["27","252",null,null,"NSF      RF RF_CIRTL INCLMILTO","1021RR252149","20000","12100","61023","27002000",{"$f":"VLOOKUP(TRIM(J3372),'Transactional Departments'!A:B,2,FALSE)","v":"Graduate Sch Admin"},"27002000","18400","RNSFXRR252149CV","A01","",""]
["27","252",null,null,"NSF      RF RF_MINORIT_STBARBO","1021RR252150","20000","12100","61023","27002000",{"$f":"VLOOKUP(TRIM(J3373),'Transactional Departments'!A:B,2,FALSE)","v":"Graduate Sch Admin"},"27002000","18400","RNSFXRR252150CV","A01","",""]
["27","252",null,null,"NSF      RF P/S W/ RR252151   ","1021RR252151","20000","12100","61023","27002000",{"$f":"VLOOKUP(TRIM(J3374),'Transactional Departments'!A:B,2,FALSE)","v":"Graduate Sch Admin"},"27002000","18400","RNSFXRR252151CV","A01","",""]
["27","252",null,null,"NSF      RF RF_SO AP ENV WELCH","1021RR252299","20000","12100","61023","27002000",{"$f":"VLOOKUP(TRIM(J3375),'Transactional Departments'!A:B,2,FALSE)","v":"Graduate Sch Admin"},"27002000","18400","RNSFXRR252299CV","A01","",""]
["27","252",null,null,"NSF      RF PSUPP RR252299 WEL","1021RR252300","20000","12100","61023","27002000",{"$f":"VLOOKUP(TRIM(J3376),'Transactional Departments'!A:B,2,FALSE)","v":"Graduate Sch Admin"},"27002000","18400","RNSFXRR252300CV","A01","",""]
["28","257",null,null,"         JOURNALISM VAR  DAVIS","1011RH257169","20000","11100","64206","28600101",{"$f":"VLOOKUP(TRIM(J3377),'Transactional Departments'!A:B,2,FALSE)","v":"JOUR Operating"},"28600101","18003","SVARIRH257169CV","A01","",""]
["28","257",null,null,"USDHHU   NAT VACCINE  NOWNOWAK","1021RR257207","20000","12100","61017","28100600",{"$f":"VLOOKUP(TRIM(J3378),'Transactional Departments'!A:B,2,FALSE)","v":"CJMC Transition Payroll Split Conv"},"28100600","18003","SDHHSRR257207CV","A01","",""]
["28","257",null,null,"KF       RF KF 35.12.00  BECKE","1021RR257214","20000","12100","64382","28100600",{"$f":"VLOOKUP(TRIM(J3379),'Transactional Departments'!A:B,2,FALSE)","v":"CJMC Transition Payroll Split Conv"},"28100600","18400","RKETTRR257214CV","A01","",""]
["28","257",null,null,"KETTERINGRF JRNL RSCH XG_BECKE","1021RR257217","20000","12100","64382","28100600",{"$f":"VLOOKUP(TRIM(J3380),'Transactional Departments'!A:B,2,FALSE)","v":"CJMC Transition Payroll Split Conv"},"28100600","18400","RKETTRR257217CV","A01","",""]
["28","257",null,null,"PSU      RF RF_YESTERDAY JIN  ","1021RR257227","20000","12100","62531","28100600",{"$f":"VLOOKUP(TRIM(J3381),'Transactional Departments'!A:B,2,FALSE)","v":"CJMC Transition Payroll Split Conv"},"28100600","18400","RPASURR257227CV","A01","",""]
["28","257",null,null,"DOS      RF KAZA JOURNAL HAZIN","1021RR257229","20000","12100","61021","28100600",{"$f":"VLOOKUP(TRIM(J3382),'Transactional Departments'!A:B,2,FALSE)","v":"CJMC Transition Payroll Split Conv"},"28100600","18400","RUSDSRR257229CV","A01","",""]
["28","257",null,null,"KETTERINGRF #KF-55729    BECKE","1021RR257230","20000","12100","64382","28100600",{"$f":"VLOOKUP(TRIM(J3383),'Transactional Departments'!A:B,2,FALSE)","v":"CJMC Transition Payroll Split Conv"},"28100600","18400","RKETTRR257230CV","A01","",""]
["28","257",null,null,"HHS      IPA 2017        NOWAK","1021RR257231","20000","12100","61017","28100600",{"$f":"VLOOKUP(TRIM(J3384),'Transactional Departments'!A:B,2,FALSE)","v":"CJMC Transition Payroll Split Conv"},"28100600","18003","SDHHSRR257231CV","A01","",""]
["28","257",null,null,"ASN ED J RF VIRTUAL REAL PJESI","1021RR257232","20000","12100","64283","28100600",{"$f":"VLOOKUP(TRIM(J3385),'Transactional Departments'!A:B,2,FALSE)","v":"CJMC Transition Payroll Split Conv"},"28100600","18400","RAEJMRR257232CV","A01","",""]
["28","257",null,null,"BU/API   RF NATIVE ADVER WOJDY","1021RR257233","20000","12100","64315","28100600",{"$f":"VLOOKUP(TRIM(J3386),'Transactional Departments'!A:B,2,FALSE)","v":"CJMC Transition Payroll Split Conv"},"28100600","18400","RBSTURR257233CV","A01","",""]
["28","257",null,null,"ORAU     GRADY SEED      NOWAK","1021RR257240","20000","12100","64286","28100600",{"$f":"VLOOKUP(TRIM(J3387),'Transactional Departments'!A:B,2,FALSE)","v":"CJMC Transition Payroll Split Conv"},"28100600","18003","SOAKRRR257240CV","A01","",""]
["28","257",null,null,"HGF      RF 2 HLTH DIST  THOMA","1021RR257727","20000","12100","64438","28100600",{"$f":"VLOOKUP(TRIM(J3388),'Transactional Departments'!A:B,2,FALSE)","v":"CJMC Transition Payroll Split Conv"},"28100600","18400","RHGAFRR257727CV","A01","",""]
["29","258",null,null,"BORCHARD RF BARRIERS     LANIE","1021RR258226","20000","12100","64426","29001010",{"$f":"VLOOKUP(TRIM(J3389),'Transactional Departments'!A:B,2,FALSE)","v":"Law School General"},"29001010","18400","RALAFRR258226CV","A01","",""]
["29","258",null,null,"QT/DHHS  INTERACT TOOL   LANIE","1031RE258231","20000","13100","64258","29001010",{"$f":"VLOOKUP(TRIM(J3390),'Transactional Departments'!A:B,2,FALSE)","v":"Law School General"},"29001010","18003","SQTRURE258231CV","A01","",""]
["29","258",null,null,"AOOTC    ICJE GA FY17    REAVE","1031RE258775","20000","13100","62031","29001010",{"$f":"VLOOKUP(TRIM(J3391),'Transactional Departments'!A:B,2,FALSE)","v":"Law School General"},"29001010","18003","SADOCRE258775CV","A01","",""]
["29","258",null,null,"ADOTC    ICJE GA FY 18   ASHWO","1031RE258776","20000","13100","62031","29001010",{"$f":"VLOOKUP(TRIM(J3392),'Transactional Departments'!A:B,2,FALSE)","v":"Law School General"},"29001010","18003","SADOCRE258776CV","A01","",""]
["29","259",null,null,"ICLE     FY2017          HARPE","1031RE259023","20000","13100","64304","29003000",{"$f":"VLOOKUP(TRIM(J3393),'Transactional Departments'!A:B,2,FALSE)","v":"Inst. Continuing Judicial Educ"},"29003000","18003","SINCGRE259023CV","A01","",""]
["30","262",null,null,"         VAR FAC DEV     BROOK","1031RE262321","20000","13100","64206","30101001",{"$f":"VLOOKUP(TRIM(J3394),'Transactional Departments'!A:B,2,FALSE)","v":"COP Dean's Office Operations"},"30101001","18003","SVARIRE262321CV","A01","",""]
["30","571",null,null,"         VARIOUS         NAIR ","1021RR571039","20000","12100","64206","30301001",{"$f":"VLOOKUP(TRIM(J3395),'Transactional Departments'!A:B,2,FALSE)","v":"PBS Operations"},"30301001","18003","SVARIRR571039CV","A01","",""]
["30","571",null,null,"AHA      RF CHEM PROBES  ZHENG","1021RR571250","20000","12100","64127","30301001",{"$f":"VLOOKUP(TRIM(J3396),'Transactional Departments'!A:B,2,FALSE)","v":"PBS Operations"},"30301001","18400","RAHTARR571250CV","A01","",""]
["30","571",null,null,"API      RF ANTI-HCV     CHU  ","1021RR571252","20000","12100","64055","30301001",{"$f":"VLOOKUP(TRIM(J3397),'Transactional Departments'!A:B,2,FALSE)","v":"PBS Operations"},"30301001","18400","RATEARR571252CV","A01","",""]
["30","571",null,null,"NIH      RF NAIROVIRUS___PEGAN","1021RR571255","20000","12100","61018","30301001",{"$f":"VLOOKUP(TRIM(J3398),'Transactional Departments'!A:B,2,FALSE)","v":"PBS Operations"},"30301001","18400","RNIHXRR571255CV","A01","",""]
["30","571",null,null,"NIH      RF FUK KO MICE  BEEDL","1021RR571256","20000","12100","61018","30301001",{"$f":"VLOOKUP(TRIM(J3399),'Transactional Departments'!A:B,2,FALSE)","v":"PBS Operations"},"30301001","18400","RNIHXRR571256CV","A01","",""]
["30","571",null,null,"         RF VITAMIN B1   ZASTR","1021RR571257","20000","12100","64122","30301001",{"$f":"VLOOKUP(TRIM(J3400),'Transactional Departments'!A:B,2,FALSE)","v":"PBS Operations"},"30301001","18003","SAMCSRR571257CV","A01","",""]
["30","571",null,null,"NIH      RF EPIG W/3DEAZ GOVIN","1021RR571367","20000","12100","61018","30301001",{"$f":"VLOOKUP(TRIM(J3401),'Transactional Departments'!A:B,2,FALSE)","v":"PBS Operations"},"30301001","18400","RNIHXRR571367CV","A01","",""]
["30","571",null,null,"AUB/NIH  RF SPLA2 NANOPA CUMMI","1021RR571380","20000","12100","62538","30301001",{"$f":"VLOOKUP(TRIM(J3402),'Transactional Departments'!A:B,2,FALSE)","v":"PBS Operations"},"30301001","18400","RAUBURR571380CV","A01","",""]
["30","571",null,null,"NIH      RF GSU XFER_____ZHENG","1021RR571384","20000","12100","61018","30301001",{"$f":"VLOOKUP(TRIM(J3403),'Transactional Departments'!A:B,2,FALSE)","v":"PBS Operations"},"30301001","18400","RNIHXRR571384CV","A01","",""]
["30","571",null,null,"NIH      RF MICRORNA BIO MURPH","1021RR571386","20000","12100","61018","30301001",{"$f":"VLOOKUP(TRIM(J3404),'Transactional Departments'!A:B,2,FALSE)","v":"PBS Operations"},"30301001","18400","RNIHXRR571386CV","A01","",""]
["30","571",null,null,"AHA      RF HUMAN MDR1   ROBER","1021RR571388","20000","12100","64127","30301001",{"$f":"VLOOKUP(TRIM(J3405),'Transactional Departments'!A:B,2,FALSE)","v":"PBS Operations"},"30301001","18400","RAHTARR571388CV","A01","",""]
["30","571",null,null,"NIH      RF TRANSPORTER  ROBER","1021RR571390","20000","12100","61018","30301001",{"$f":"VLOOKUP(TRIM(J3406),'Transactional Departments'!A:B,2,FALSE)","v":"PBS Operations"},"30301001","18400","RNIHXRR571390CV","A01","",""]
["30","571",null,null,"NIH      RF W/ 549392    LIVE ","1021RR571391","20000","12100","61018","30301001",{"$f":"VLOOKUP(TRIM(J3407),'Transactional Departments'!A:B,2,FALSE)","v":"PBS Operations"},"30301001","18400","RNIHXRR571391CV","A01","",""]
["30","571",null,null,"USDA ARS RF SWINE IMMUN  PEGAN","1021RR571394","20000","12100","61004","30301001",{"$f":"VLOOKUP(TRIM(J3408),'Transactional Departments'!A:B,2,FALSE)","v":"PBS Operations"},"30301001","18400","RARSXRR571394CV","A01","",""]
["30","571",null,null,"AHA      RF HYPERLIPIDEM LIU  ","1021RR571395","20000","12100","64127","30301001",{"$f":"VLOOKUP(TRIM(J3409),'Transactional Departments'!A:B,2,FALSE)","v":"PBS Operations"},"30301001","18400","RAHTARR571395CV","A01","",""]
["30","571",null,null,"NSF      RF RF_MYST ACETYZHENG","1021RR571396","20000","12100","61023","30301001",{"$f":"VLOOKUP(TRIM(J3410),'Transactional Departments'!A:B,2,FALSE)","v":"PBS Operations"},"30301001","18400","RNSFXRR571396CV","A01","",""]
["30","571",null,null,"NIH      RF EGFR         KENNE","1021RR571397","20000","12100","61018","30301001",{"$f":"VLOOKUP(TRIM(J3411),'Transactional Departments'!A:B,2,FALSE)","v":"PBS Operations"},"30301001","18400","RNIHXRR571397CV","A01","",""]
["30","571",null,null,"NIH      RF W/RR540-187  CAI  ","1021RR571401","20000","12100","61018","30301001",{"$f":"VLOOKUP(TRIM(J3412),'Transactional Departments'!A:B,2,FALSE)","v":"PBS Operations"},"30301001","18400","RNIHXRR571401CV","A01","",""]
["30","571",null,null,"NIH      RF AGING BRAIN  FRANK","1021RR571402","20000","12100","61018","30301001",{"$f":"VLOOKUP(TRIM(J3413),'Transactional Departments'!A:B,2,FALSE)","v":"PBS Operations"},"30301001","18400","RNIHXRR571402CV","A01","",""]
["30","571",null,null,"USDOD    RF KINASE-MED   CAI  ","1021RR571405","20000","12100","61012","30301001",{"$f":"VLOOKUP(TRIM(J3414),'Transactional Departments'!A:B,2,FALSE)","v":"PBS Operations"},"30301001","18400","RUSDDRR571405CV","A01","",""]
["30","571",null,null,"USDA ARS RF RF_VIRAL OV DPEGAN","1021RR571407","20000","12100","61004","30301001",{"$f":"VLOOKUP(TRIM(J3415),'Transactional Departments'!A:B,2,FALSE)","v":"PBS Operations"},"30301001","18400","RARSXRR571407CV","A01","",""]
["30","571",null,null,"AHA      RF W/571-395    LIU  ","1021RR571408","20000","12100","64127","30301001",{"$f":"VLOOKUP(TRIM(J3416),'Transactional Departments'!A:B,2,FALSE)","v":"PBS Operations"},"30301001","18400","RAHTARR571408CV","A01","",""]
["30","571",null,null,"AHA      RF JING ZHANG   ZHENG","1021RR571409","20000","12100","64127","30301001",{"$f":"VLOOKUP(TRIM(J3417),'Transactional Departments'!A:B,2,FALSE)","v":"PBS Operations"},"30301001","18400","RAHTARR571409CV","A01","",""]
["30","571",null,null,"AHA      RF 2ND YR ZHANG ZHENG","1021RR571410","20000","12100","64127","30301001",{"$f":"VLOOKUP(TRIM(J3418),'Transactional Departments'!A:B,2,FALSE)","v":"PBS Operations"},"30301001","18400","RAHTARR571410CV","A01","",""]
["30","571",null,null,"USDOD    RF IPA3         CUMMI","1021RR571411","20000","12100","61012","30301001",{"$f":"VLOOKUP(TRIM(J3419),'Transactional Departments'!A:B,2,FALSE)","v":"PBS Operations"},"30301001","18400","RUSDDRR571411CV","A01","",""]
["30","571",null,null,"GACCP    RF W/294-345    PEGG ","1021RR571412","20000","12100","62045","30301001",{"$f":"VLOOKUP(TRIM(J3420),'Transactional Departments'!A:B,2,FALSE)","v":"PBS Operations"},"30301001","18400","RGPCNRR571412CV","A01","",""]
["30","571",null,null,"NIH      RF MYRIS SRC FAM     ","1021RR571413","20000","12100","61018","30301001",{"$f":"VLOOKUP(TRIM(J3421),'Transactional Departments'!A:B,2,FALSE)","v":"PBS Operations"},"30301001","18400","RNIHXRR571413CV","A01","",""]
["30","571",null,null,"NIH      RF W/571413 INGM     ","1021RR571414","20000","12100","61018","30301001",{"$f":"VLOOKUP(TRIM(J3422),'Transactional Departments'!A:B,2,FALSE)","v":"PBS Operations"},"30301001","18400","RNIHXRR571414CV","A01","",""]
["30","571",null,null,"NIH      RF LIPOGELS     XIONG","1021RR571416","20000","12100","61018","30301001",{"$f":"VLOOKUP(TRIM(J3423),'Transactional Departments'!A:B,2,FALSE)","v":"PBS Operations"},"30301001","18400","RNIHXRR571416CV","A01","",""]
["30","571",null,null,"         RF BIO METHODS  BARTL","1021RR571417","20000","12100","64492","30301001",{"$f":"VLOOKUP(TRIM(J3424),'Transactional Departments'!A:B,2,FALSE)","v":"PBS Operations"},"30301001","18003","SPTNVRR571417CV","A01","",""]
["30","571",null,null,"BBGA PC  RF OVARIAN CANCEHOOKS","1021RR571418","20000","12100","64284","30301001",{"$f":"VLOOKUP(TRIM(J3425),'Transactional Departments'!A:B,2,FALSE)","v":"PBS Operations"},"30301001","18400","RBLASRR571418CV","A01","",""]
["30","571",null,null,"NIH      RF NOVEL NUCLEARHOOKS","1021RR571419","20000","12100","61018","30301001",{"$f":"VLOOKUP(TRIM(J3426),'Transactional Departments'!A:B,2,FALSE)","v":"PBS Operations"},"30301001","18400","RNIHXRR571419CV","A01","",""]
["30","571",null,null,"DOD      RF ACTEYLCHOL   PEGAN","1021RR571420","20000","12100","61012","30301001",{"$f":"VLOOKUP(TRIM(J3427),'Transactional Departments'!A:B,2,FALSE)","v":"PBS Operations"},"30301001","18400","RUSDDRR571420CV","A01","",""]
["30","571",null,null,"NIH      RF ETIO MELANOMAMURPH","1021RR571421","20000","12100","61018","30301001",{"$f":"VLOOKUP(TRIM(J3428),'Transactional Departments'!A:B,2,FALSE)","v":"PBS Operations"},"30301001","18400","RNIHXRR571421CV","A01","",""]
["30","571",null,null,"GCCP     RF W/294-351    PEGG ","1021RR571422","20000","12100","62045","30301001",{"$f":"VLOOKUP(TRIM(J3429),'Transactional Departments'!A:B,2,FALSE)","v":"PBS Operations"},"30301001","18400","RGPCNRR571422CV","A01","",""]
["30","571",null,null,"ASU/NIH  RF BONE LOSS    KENNE","1021RR571423","20000","12100","62068","30301001",{"$f":"VLOOKUP(TRIM(J3430),'Transactional Departments'!A:B,2,FALSE)","v":"PBS Operations"},"30301001","18400","RAUGURR571423CV","A01","",""]
["30","571",null,null,"NIH      RF CANCER RESIS ROBER","1021RR571424","20000","12100","61018","30301001",{"$f":"VLOOKUP(TRIM(J3431),'Transactional Departments'!A:B,2,FALSE)","v":"PBS Operations"},"30301001","18400","RNIHXRR571424CV","A01","",""]
["30","571",null,null,"RU       RF CAN CARCI    KENNE","1021RR571425","20000","12100","64530","30301001",{"$f":"VLOOKUP(TRIM(J3432),'Transactional Departments'!A:B,2,FALSE)","v":"PBS Operations"},"30301001","18400","RROCKRR571425CV","A01","",""]
["30","571",null,null,"         RF TROJAN HORSE MURPH","1021RR571426","20000","12100","64020","30301001",{"$f":"VLOOKUP(TRIM(J3433),'Transactional Departments'!A:B,2,FALSE)","v":"PBS Operations"},"30301001","18003","SVARCRR571426CV","A01","",""]
["30","575",null,null,"         VARIOUS         PERRI","1021RR575068","20000","12100","64206","30501104",{"$f":"VLOOKUP(TRIM(J3434),'Transactional Departments'!A:B,2,FALSE)","v":"Matthew Perri"},"30501104","18003","SVARIRR575068CV","A01","",""]
["30","575",null,null,"         RF ACCES PRG IIICHISH","1021RR575177","20000","12100","64332","30501001",{"$f":"VLOOKUP(TRIM(J3435),'Transactional Departments'!A:B,2,FALSE)","v":"CAP Operations"},"30501001","18003","SCMMTRR575177CV","A01","",""]
["30","575",null,null,"NIH      RF PRTN KB AKT  SHENO","1021RR575189","20000","12100","61018","30501001",{"$f":"VLOOKUP(TRIM(J3436),'Transactional Departments'!A:B,2,FALSE)","v":"CAP Operations"},"30501001","18400","RNIHXRR575189CV","A01","",""]
["30","575",null,null,"NIH      RF VASC PHENO   SEGAR","1021RR575194","20000","12100","61018","30501001",{"$f":"VLOOKUP(TRIM(J3437),'Transactional Departments'!A:B,2,FALSE)","v":"CAP Operations"},"30501001","18400","RNIHXRR575194CV","A01","",""]
["30","575",null,null,"         INT W/575-177   CHISH","1021RR575195","20000","12100","64332","30501001",{"$f":"VLOOKUP(TRIM(J3438),'Transactional Departments'!A:B,2,FALSE)","v":"CAP Operations"},"30501001","18003","SCMMTRR575195CV","A01","",""]
["30","575",null,null,"AHA      RF NEUROVASCULR ERGUL","1021RR575208","20000","12100","64127","30501001",{"$f":"VLOOKUP(TRIM(J3439),'Transactional Departments'!A:B,2,FALSE)","v":"CAP Operations"},"30501001","18400","RAHTARR575208CV","A01","",""]
["30","575",null,null,"AHA      RF AKT-MYOCARDN SHENO","1021RR575209","20000","12100","64127","30501001",{"$f":"VLOOKUP(TRIM(J3440),'Transactional Departments'!A:B,2,FALSE)","v":"CAP Operations"},"30501001","18400","RAHTARR575209CV","A01","",""]
["30","575",null,null,"CM       RF MED ACCESS PRG    ","1021RR575210","20000","12100","64332","30501001",{"$f":"VLOOKUP(TRIM(J3441),'Transactional Departments'!A:B,2,FALSE)","v":"CAP Operations"},"30501001","18400","RCMMTRR575210CV","A01","",""]
["30","575",null,null,"CM       INT W/ RR575210 CHISH","1021RR575211","20000","12100","64332","30501001",{"$f":"VLOOKUP(TRIM(J3442),'Transactional Departments'!A:B,2,FALSE)","v":"CAP Operations"},"30501001","18003","SCMMTRR575211CV","A01","",""]
["30","575",null,null,"GRU/NIH  RF STROKE RECOV FAGAN","1021RR575212","20000","12100","62068","30501001",{"$f":"VLOOKUP(TRIM(J3443),'Transactional Departments'!A:B,2,FALSE)","v":"CAP Operations"},"30501001","18400","RAUGURR575212CV","A01","",""]
["30","575",null,null,"NIH      RF ANGIOTENSIN  FAGAN","1021RR575215","20000","12100","61018","30501001",{"$f":"VLOOKUP(TRIM(J3444),'Transactional Departments'!A:B,2,FALSE)","v":"CAP Operations"},"30501001","18400","RNIHXRR575215CV","A01","",""]
["30","575",null,null,"AHA      RF P75          EL-RE","1021RR575218","20000","12100","64127","30501001",{"$f":"VLOOKUP(TRIM(J3445),'Transactional Departments'!A:B,2,FALSE)","v":"CAP Operations"},"30501001","18400","RAHTARR575218CV","A01","",""]
["30","575",null,null,"CAD      RF MARIJUANA ABUYOUNG","1021RR575220","20000","12100","64366","30501001",{"$f":"VLOOKUP(TRIM(J3446),'Transactional Departments'!A:B,2,FALSE)","v":"CAP Operations"},"30501001","18400","RALDRRR575220CV","A01","",""]
["30","575",null,null,"CAD      RF BE CLEAR GA  YOUNG","1021RR575221","20000","12100","64246","30501001",{"$f":"VLOOKUP(TRIM(J3447),'Transactional Departments'!A:B,2,FALSE)","v":"CAP Operations"},"30501001","18400","RLBCGRR575221CV","A01","",""]
["30","575",null,null,"GRU      RF QUALITY OF LICOBRA","1021RR575222","20000","12100","62068","30501001",{"$f":"VLOOKUP(TRIM(J3448),'Transactional Departments'!A:B,2,FALSE)","v":"CAP Operations"},"30501001","18400","RAUGURR575222CV","A01","",""]
["30","575",null,null,"ALK      RF PENICILLIN   BLAND","1021RR575223","20000","12100","64087","30501001",{"$f":"VLOOKUP(TRIM(J3449),'Transactional Departments'!A:B,2,FALSE)","v":"CAP Operations"},"30501001","18400","RALTIRR575223CV","A01","",""]
["30","575",null,null,"USDOD    RF PHOSPHOLIP   SHENO","1021RR575227","20000","12100","61012","30501001",{"$f":"VLOOKUP(TRIM(J3450),'Transactional Departments'!A:B,2,FALSE)","v":"CAP Operations"},"30501001","18400","RUSDDRR575227CV","A01","",""]
["31","546",null,null,"         RF PASTORAL ED  MILES","1021RR546037","20000","12100","64000","31050001",{"$f":"VLOOKUP(TRIM(J3451),'Transactional Departments'!A:B,2,FALSE)","v":"IOG Rollup"},"31050001","18003","SXXXXRR546037CV","A01","",""]
["31","546",null,null,"GADHS    RF DEMO GARD RPTMILES","1021RR546039","20000","12100","62015","31050001",{"$f":"VLOOKUP(TRIM(J3452),'Transactional Departments'!A:B,2,FALSE)","v":"IOG Rollup"},"31050001","18400","RGHUMRR546039CV","A01","",""]
["31","546",null,null,"EU/NIH   RF GERIATRIC    MILES","1021RR546040","20000","12100","64139","31050001",{"$f":"VLOOKUP(TRIM(J3453),'Transactional Departments'!A:B,2,FALSE)","v":"IOG Rollup"},"31050001","18400","REMORRR546040CV","A01","",""]
["31","546",null,null,"NCOA     RF SERVCE AGREE SMITH","1021RR546048","20000","12100","64140","31050001",{"$f":"VLOOKUP(TRIM(J3454),'Transactional Departments'!A:B,2,FALSE)","v":"IOG Rollup"},"31050001","18400","RNACARR546048CV","A01","",""]
["31","546",null,null,"UMB/NIH  RF ANDROGENS    OSTIR","1021RR546049","20000","12100","62578","31050001",{"$f":"VLOOKUP(TRIM(J3455),'Transactional Departments'!A:B,2,FALSE)","v":"IOG Rollup"},"31050001","18400","RUMDBRR546049CV","A01","",""]
["31","546",null,null,"NIH      RF LIFE EXPECT  EMERS","1021RR546050","20000","12100","61018","31050001",{"$f":"VLOOKUP(TRIM(J3456),'Transactional Departments'!A:B,2,FALSE)","v":"IOG Rollup"},"31050001","18400","RNIHXRR546050CV","A01","",""]
["31","546",null,null,"USCRF    RF LUNG CANCER  BEER ","1021RR546051","20000","12100","64000","31050001",{"$f":"VLOOKUP(TRIM(J3457),'Transactional Departments'!A:B,2,FALSE)","v":"IOG Rollup"},"31050001","18400","RUNRFRR546051CV","A01","",""]
["31","715",null,null,"         RF CRONOBACTER  SMITH","1021RR715078","20000","12100","64000","31030001",{"$f":"VLOOKUP(TRIM(J3458),'Transactional Departments'!A:B,2,FALSE)","v":"EHS Rollup"},"31030001","18003","SXXXXRR715078CV","A01","",""]
["31","715",null,null,"CDC      RF WITH 1021RR182480 ","1021RR715080","20000","12100","61031","31030001",{"$f":"VLOOKUP(TRIM(J3459),'Transactional Departments'!A:B,2,FALSE)","v":"EHS Rollup"},"31030001","18400","RCDCXRR715080CV","A01","",""]
["31","715",null,null,"TEXAM/NIHRF HEPATOCELLUR WANG ","1021RR715202","20000","12100","62527","31030001",{"$f":"VLOOKUP(TRIM(J3460),'Transactional Departments'!A:B,2,FALSE)","v":"EHS Rollup"},"31030001","18400","RTXAURR715202CV","A01","",""]
["31","715",null,null,"CDC      CDC IPA NCEH    NAEHE","1021RR715204","20000","12100","61031","31030001",{"$f":"VLOOKUP(TRIM(J3461),'Transactional Departments'!A:B,2,FALSE)","v":"EHS Rollup"},"31030001","18003","SCDCXRR715204CV","A01","",""]
["31","715",null,null,"GRA      CANCER SCHOLAR  WANG ","1021RR715209","20000","12100","62062","31030001",{"$f":"VLOOKUP(TRIM(J3462),'Transactional Departments'!A:B,2,FALSE)","v":"EHS Rollup"},"31030001","18003","SGRAXRR715209CV","A01","",""]
["31","715",null,null,"TEXTC/NIHRF BONE HEALTH  WANG ","1021RR715210","20000","12100","62500","31030001",{"$f":"VLOOKUP(TRIM(J3463),'Transactional Departments'!A:B,2,FALSE)","v":"EHS Rollup"},"31030001","18400","RXXXXRR715210CV","A01","",""]
["31","715",null,null,"EMORY/NIHRF HEALTH HUB   NAEHE","1021RR715213","20000","12100","64139","31030001",{"$f":"VLOOKUP(TRIM(J3464),'Transactional Departments'!A:B,2,FALSE)","v":"EHS Rollup"},"31030001","18400","REMORRR715213CV","A01","",""]
["31","715",null,null,"USAID    RF SUP 710-059  BROWN","1021RR715216","20000","12100","61028","31030001",{"$f":"VLOOKUP(TRIM(J3465),'Transactional Departments'!A:B,2,FALSE)","v":"EHS Rollup"},"31030001","18400","RUSADRR715216CV","A01","",""]
["31","715",null,null,"ABI/NIH  RF METAB ASSAYS SMITH","1021RR715217","20000","12100","64000","31030001",{"$f":"VLOOKUP(TRIM(J3466),'Transactional Departments'!A:B,2,FALSE)","v":"EHS Rollup"},"31030001","18400","RXXXXRR715217CV","A01","",""]
["31","715",null,null,"USEPA    RF W/ RC287-557 STICE","1021RR715218","20000","12100","61032","31030001",{"$f":"VLOOKUP(TRIM(J3467),'Transactional Departments'!A:B,2,FALSE)","v":"EHS Rollup"},"31030001","18400","RUSEARR715218CV","A01","",""]
["31","715",null,null,"NSF      RF VIBRIO MODEL LIPP ","1021RR715221","20000","12100","61023","31030001",{"$f":"VLOOKUP(TRIM(J3468),'Transactional Departments'!A:B,2,FALSE)","v":"EHS Rollup"},"31030001","18400","RNSFXRR715221CV","A01","",""]
["31","715",null,null,"TU/USAID RF AFLATOXINS   WANG ","1021RR715222","20000","12100","62560","31030001",{"$f":"VLOOKUP(TRIM(J3469),'Transactional Departments'!A:B,2,FALSE)","v":"EHS Rollup"},"31030001","18400","RTUFTRR715222CV","A01","",""]
["31","715",null,null,"TU/USAID RF AFLATOXIN ASIWANG ","1021RR715223","20000","12100","62560","31030001",{"$f":"VLOOKUP(TRIM(J3470),'Transactional Departments'!A:B,2,FALSE)","v":"EHS Rollup"},"31030001","18400","RTUFTRR715223CV","A01","",""]
["31","715",null,null,"USDOE    RF W/ 267400 GLENN   ","1021RR715226","20000","12100","61001","31030001",{"$f":"VLOOKUP(TRIM(J3471),'Transactional Departments'!A:B,2,FALSE)","v":"EHS Rollup"},"31030001","18400","RUSDERR715226CV","A01","",""]
["31","715",null,null,"EPA      STAR EXPENSE    LIPP ","1021RR715227","20000","12100","61032","31030001",{"$f":"VLOOKUP(TRIM(J3472),'Transactional Departments'!A:B,2,FALSE)","v":"EHS Rollup"},"31030001","18003","SUSEARR715227CV","A01","",""]
["31","715",null,null,"EPA      TUITION & FEES  LIPP ","1021RR715228","20000","12100","61032","31030001",{"$f":"VLOOKUP(TRIM(J3473),'Transactional Departments'!A:B,2,FALSE)","v":"EHS Rollup"},"31030001","18003","SUSEARR715228CV","A01","",""]
["31","715",null,null,"ARDF     RF TOXIC TEST   YU   ","1021RR715229","20000","12100","64411","31030001",{"$f":"VLOOKUP(TRIM(J3474),'Transactional Departments'!A:B,2,FALSE)","v":"EHS Rollup"},"31030001","18400","RARDFRR715229CV","A01","",""]
["31","715",null,null,"MEADJOHN RF LACTOBACIL   GOGAL","1021RR715231","20000","12100","64000","31030001",{"$f":"VLOOKUP(TRIM(J3475),'Transactional Departments'!A:B,2,FALSE)","v":"EHS Rollup"},"31030001","18400","RXXXXRR715231CV","A01","",""]
["31","715",null,null,"SETC     RF EAST OYSTER  BLACK","1021RR715232","20000","12100","64000","31030001",{"$f":"VLOOKUP(TRIM(J3476),'Transactional Departments'!A:B,2,FALSE)","v":"EHS Rollup"},"31030001","18400","RSNTCRR715232CV","A01","",""]
["31","715",null,null,"TU/USAID RF STNTNG EGYPT WANG ","1021RR715236","20000","12100","62560","31030001",{"$f":"VLOOKUP(TRIM(J3477),'Transactional Departments'!A:B,2,FALSE)","v":"EHS Rollup"},"31030001","18400","RTUFTRR715236CV","A01","",""]
["31","715",null,null,"SOT      RF MINI-TESTIS  YIN  ","1021RR715237","20000","12100","64287","31030001",{"$f":"VLOOKUP(TRIM(J3478),'Transactional Departments'!A:B,2,FALSE)","v":"EHS Rollup"},"31030001","18400","RSTOXRR715237CV","A01","",""]
["31","715",null,null,"EU/NIH   RF GEOHEALTH HUBNAEHE","1021RR715238","20000","12100","64139","31030001",{"$f":"VLOOKUP(TRIM(J3479),'Transactional Departments'!A:B,2,FALSE)","v":"EHS Rollup"},"31030001","18400","REMORRR715238CV","A01","",""]
["31","715",null,null,"UAB      RF E-CIGARETTE  NAEHE","1021RR715241","20000","12100","62547","31030001",{"$f":"VLOOKUP(TRIM(J3480),'Transactional Departments'!A:B,2,FALSE)","v":"EHS Rollup"},"31030001","18400","RUALBRR715241CV","A01","",""]
["31","715",null,null,"TU       RF FEED FUTURE  WANG ","1021RR715242","20000","12100","62560","31030001",{"$f":"VLOOKUP(TRIM(J3481),'Transactional Departments'!A:B,2,FALSE)","v":"EHS Rollup"},"31030001","18400","RTUFTRR715242CV","A01","",""]
["31","715",null,null,"         ENTERC BACTERIA LIPP ","1021RR715243","20000","12100","64100","31030001",{"$f":"VLOOKUP(TRIM(J3482),'Transactional Departments'!A:B,2,FALSE)","v":"EHS Rollup"},"31030001","18003","SCINCRR715243CV","A01","",""]
["31","715",null,null,"UF/NASA  RF TABS         LIPP ","1021RR715244","20000","12100","62511","31030001",{"$f":"VLOOKUP(TRIM(J3483),'Transactional Departments'!A:B,2,FALSE)","v":"EHS Rollup"},"31030001","18400","RUFLXRR715244CV","A01","",""]
["31","715",null,null,"         RF SERIOLA RIVOLGLENN","1021RR715245","20000","12100","64507","31030001",{"$f":"VLOOKUP(TRIM(J3484),'Transactional Departments'!A:B,2,FALSE)","v":"EHS Rollup"},"31030001","18003","SINPNRR715245CV","A01","",""]
["31","715",null,null,"         MALE CONTRACEPT EASLE","1021RR715246","20000","12100","64448","31030001",{"$f":"VLOOKUP(TRIM(J3485),'Transactional Departments'!A:B,2,FALSE)","v":"EHS Rollup"},"31030001","18003","SGATERR715246CV","A01","",""]
["31","715",null,null,"EU/NIH   RF PRIMATE STEM EASLE","1021RR715247","20000","12100","64139","31030001",{"$f":"VLOOKUP(TRIM(J3486),'Transactional Departments'!A:B,2,FALSE)","v":"EHS Rollup"},"31030001","18400","REMORRR715247CV","A01","",""]
["31","715",null,null,"EU/NIH   RF GEOHLTH HUB  NAEHE","1021RR715248","20000","12100","64139","31030001",{"$f":"VLOOKUP(TRIM(J3487),'Transactional Departments'!A:B,2,FALSE)","v":"EHS Rollup"},"31030001","18400","REMORRR715248CV","A01","",""]
["31","715",null,null,"         SERIOLA IALANDI GLENN","1021RR715249","20000","12100","64511","31030001",{"$f":"VLOOKUP(TRIM(J3488),'Transactional Departments'!A:B,2,FALSE)","v":"EHS Rollup"},"31030001","18003","SCSEDRR715249CV","A01","",""]
["31","715",null,null,"         NUCLEOTIDE POLY GLENN","1021RR715250","20000","12100","64511","31030001",{"$f":"VLOOKUP(TRIM(J3489),'Transactional Departments'!A:B,2,FALSE)","v":"EHS Rollup"},"31030001","18003","SCSEDRR715250CV","A01","",""]
["31","715",null,null,"DOE      RF W 267-800         ","1021RR715251","20000","12100","61001","31030001",{"$f":"VLOOKUP(TRIM(J3490),'Transactional Departments'!A:B,2,FALSE)","v":"EHS Rollup"},"31030001","18400","RUSDERR715251CV","A01","",""]
["31","715",null,null,"NIH      RF REPROD TOXIC EASLE","1021RR715253","20000","12100","61018","31030001",{"$f":"VLOOKUP(TRIM(J3491),'Transactional Departments'!A:B,2,FALSE)","v":"EHS Rollup"},"31030001","18400","RNIHXRR715253CV","A01","",""]
["31","715",null,null,"EU/NIH   RF HOUSEHLD AIR NAEHE","1021RR715254","20000","12100","64139","31030001",{"$f":"VLOOKUP(TRIM(J3492),'Transactional Departments'!A:B,2,FALSE)","v":"EHS Rollup"},"31030001","18400","REMORRR715254CV","A01","",""]
["31","715",null,null,"USAID    RF PEANUT PROGRAM    ","1021RR715255","20000","12100","61028","31030001",{"$f":"VLOOKUP(TRIM(J3493),'Transactional Departments'!A:B,2,FALSE)","v":"EHS Rollup"},"31030001","18400","RUSADRR715255CV","A01","",""]
["31","715",null,null,"         RR715-246 PI    EASLE","1021RR715256","20000","12100","64448","31030001",{"$f":"VLOOKUP(TRIM(J3494),'Transactional Departments'!A:B,2,FALSE)","v":"EHS Rollup"},"31030001","18003","SGATERR715256CV","A01","",""]
["31","715",null,null,"         RF TESTICULAR   YU   ","1021RR715257","20000","12100","64112","31030001",{"$f":"VLOOKUP(TRIM(J3495),'Transactional Departments'!A:B,2,FALSE)","v":"EHS Rollup"},"31030001","18003","SRBIORR715257CV","A01","",""]
["31","715",null,null,"UNC/NIH  RF BUT MICROB   GLENN","1021RR715258","20000","12100","62516","31030001",{"$f":"VLOOKUP(TRIM(J3496),'Transactional Departments'!A:B,2,FALSE)","v":"EHS Rollup"},"31030001","18400","RUNCCRR715258CV","A01","",""]
["31","715",null,null,"CI/HHS   LANDSCAPE       LIPP ","1021RR715259","20000","12100","64100","31030001",{"$f":"VLOOKUP(TRIM(J3497),'Transactional Departments'!A:B,2,FALSE)","v":"EHS Rollup"},"31030001","18003","SCINCRR715259CV","A01","",""]
["31","715",null,null,"EU/NIH   RF HOUSEHLD AIR NAEHE","1021RR715262","20000","12100","64139","31030001",{"$f":"VLOOKUP(TRIM(J3498),'Transactional Departments'!A:B,2,FALSE)","v":"EHS Rollup"},"31030001","18400","REMORRR715262CV","A01","",""]
["31","715",null,null,"USHHS    RF SMALL FARMS  ZIMER","1021RR715264","20000","12100","61017","31030001",{"$f":"VLOOKUP(TRIM(J3499),'Transactional Departments'!A:B,2,FALSE)","v":"EHS Rollup"},"31030001","18400","RDHHSRR715264CV","A01","",""]
["31","715",null,null,"UAK/NIH  ENVIRO AGENTS   GLENN","1031RE715235","20000","13100","62539","31030001",{"$f":"VLOOKUP(TRIM(J3500),'Transactional Departments'!A:B,2,FALSE)","v":"EHS Rollup"},"31030001","18003","SUNAKRE715235CV","A01","",""]
["31","715",null,null,"USDA     RF HARVEST INIT ZIMER","1031RE715252","20000","13100","61004","31030001",{"$f":"VLOOKUP(TRIM(J3501),'Transactional Departments'!A:B,2,FALSE)","v":"EHS Rollup"},"31030001","18400","RARSXRE715252CV","A01","",""]
["31","715",null,null,"         ALASKA INBRE    GLENN","1031RE715260","20000","13100","62539","31030001",{"$f":"VLOOKUP(TRIM(J3502),'Transactional Departments'!A:B,2,FALSE)","v":"EHS Rollup"},"31030001","18003","SUNAKRE715260CV","A01","",""]
["31","715",null,null,"RTI      AFLATOXIN BIO   WANG ","1031RE715261","20000","13100","64281","31030001",{"$f":"VLOOKUP(TRIM(J3503),'Transactional Departments'!A:B,2,FALSE)","v":"EHS Rollup"},"31030001","18003","SRTRIRE715261CV","A01","",""]
["31","766",null,null,"NIH      RF IHC DPP WS   WILSO","1021RR766039","20000","12100","61018","31070001",{"$f":"VLOOKUP(TRIM(J3504),'Transactional Departments'!A:B,2,FALSE)","v":"HPB Rollup"},"31070001","18400","RNIHXRR766039CV","A01","",""]
["31","766",null,null,"         RF FIREFIGHTER  DEJOY","1021RR766051","20000","12100","61000","31070001",{"$f":"VLOOKUP(TRIM(J3505),'Transactional Departments'!A:B,2,FALSE)","v":"HPB Rollup"},"31070001","18003","SXXXXRR766051CV","A01","",""]
["31","766",null,null,"AHA      RF ADIPOSITY    GAY  ","1021RR766052","20000","12100","64127","31070001",{"$f":"VLOOKUP(TRIM(J3506),'Transactional Departments'!A:B,2,FALSE)","v":"HPB Rollup"},"31070001","18400","RAHTARR766052CV","A01","",""]
["31","766",null,null,"YU/NIH   RF HIV RISK     HANSE","1021RR766055","20000","12100","64537","31070001",{"$f":"VLOOKUP(TRIM(J3507),'Transactional Departments'!A:B,2,FALSE)","v":"HPB Rollup"},"31070001","18400","RYALERR766055CV","A01","",""]
["31","766",null,null,"NIH      RF PRG WMN LIB  CALLA","1021RR766056","20000","12100","61018","31070001",{"$f":"VLOOKUP(TRIM(J3508),'Transactional Departments'!A:B,2,FALSE)","v":"HPB Rollup"},"31070001","18400","RNIHXRR766056CV","A01","",""]
["31","766",null,null,"YU       RF PTSD         HANSE","1021RR766058","20000","12100","64537","31070001",{"$f":"VLOOKUP(TRIM(J3509),'Transactional Departments'!A:B,2,FALSE)","v":"HPB Rollup"},"31070001","18400","RYALERR766058CV","A01","",""]
["31","766",null,null,"CU/NIH   RF ENHANCE INTERHANSE","1021RR766060","20000","12100","64351","31070001",{"$f":"VLOOKUP(TRIM(J3510),'Transactional Departments'!A:B,2,FALSE)","v":"HPB Rollup"},"31070001","18400","RCOLURR766060CV","A01","",""]
["31","766",null,null,"NIH      RF CDSMP 2 WORK WILSO","1021RR766061","20000","12100","61018","31070001",{"$f":"VLOOKUP(TRIM(J3511),'Transactional Departments'!A:B,2,FALSE)","v":"HPB Rollup"},"31070001","18400","RNIHXRR766061CV","A01","",""]
["31","766",null,null,"GWU/NIH  RF GROUP VACCIN HILYA","1021RR766065","20000","12100","64539","31070001",{"$f":"VLOOKUP(TRIM(J3512),'Transactional Departments'!A:B,2,FALSE)","v":"HPB Rollup"},"31070001","18400","RWASHRR766065CV","A01","",""]
["31","766",null,null,"         RF WALTON WELL  SMITH","1021RR766069","20000","12100","64148","31070001",{"$f":"VLOOKUP(TRIM(J3513),'Transactional Departments'!A:B,2,FALSE)","v":"HPB Rollup"},"31070001","18003","SWALTRR766069CV","A01","",""]
["31","766",null,null,"CARPHA   RF HABIT BASED  MUILE","1021RR766073","20000","12100","64493","31070001",{"$f":"VLOOKUP(TRIM(J3514),'Transactional Departments'!A:B,2,FALSE)","v":"HPB Rollup"},"31070001","18400","RCPHARR766073CV","A01","",""]
["31","766",null,null,"NIH      RF CDSMP 2 WORK WILSO","1021RR766075","20000","12100","61018","31070001",{"$f":"VLOOKUP(TRIM(J3515),'Transactional Departments'!A:B,2,FALSE)","v":"HPB Rollup"},"31070001","18400","RNIHXRR766075CV","A01","",""]
["31","766",null,null,"OHSU/NIH RF HIV RISK     HECKM","1021RR766077","20000","12100","62565","31070001",{"$f":"VLOOKUP(TRIM(J3516),'Transactional Departments'!A:B,2,FALSE)","v":"HPB Rollup"},"31070001","18400","RORHSRR766077CV","A01","",""]
["31","766",null,null,"WW       ASSSTNTSHP FY17 SMITH","1021RR766078","20000","12100","64148","31070001",{"$f":"VLOOKUP(TRIM(J3517),'Transactional Departments'!A:B,2,FALSE)","v":"HPB Rollup"},"31070001","18003","SWALTRR766078CV","A01","",""]
["31","766",null,null,"CU/NIH   RF HEALTH ENHAN HANSE","1021RR766079","20000","12100","64351","31070001",{"$f":"VLOOKUP(TRIM(J3518),'Transactional Departments'!A:B,2,FALSE)","v":"HPB Rollup"},"31070001","18400","RCOLURR766079CV","A01","",""]
["31","766",null,null,"HU/NIH   RF YOUTH FORWRD HANSE","1021RR766080","20000","12100","64326","31070001",{"$f":"VLOOKUP(TRIM(J3519),'Transactional Departments'!A:B,2,FALSE)","v":"HPB Rollup"},"31070001","18400","RHARVRR766080CV","A01","",""]
["31","766",null,null,"NIH      RF PRG WMN LIB  CALLA","1021RR766082","20000","12100","61018","31070001",{"$f":"VLOOKUP(TRIM(J3520),'Transactional Departments'!A:B,2,FALSE)","v":"HPB Rollup"},"31070001","18400","RNIHXRR766082CV","A01","",""]
["31","766",null,null,"GDPH     RF WRKSTE HLTH  WILSO","1021RR766083","20000","12100","62053","31070001",{"$f":"VLOOKUP(TRIM(J3521),'Transactional Departments'!A:B,2,FALSE)","v":"HPB Rollup"},"31070001","18400","RGDPHRR766083CV","A01","",""]
["31","766",null,null,"NIH      RF CDSMP TO WRK WILSO","1021RR766084","20000","12100","61018","31070001",{"$f":"VLOOKUP(TRIM(J3522),'Transactional Departments'!A:B,2,FALSE)","v":"HPB Rollup"},"31070001","18400","RNIHXRR766084CV","A01","",""]
["31","766",null,null,"GDPH     TOBACCO FREE    MUILE","1021RR766090","20000","12100","62053","31070001",{"$f":"VLOOKUP(TRIM(J3523),'Transactional Departments'!A:B,2,FALSE)","v":"HPB Rollup"},"31070001","18003","SGDPHRR766090CV","A01","",""]
["31","766",null,null,"GOHSUSDOTGA HWY SFTY PE  COTTO","1031RE766054","20000","13100","62028","31070001",{"$f":"VLOOKUP(TRIM(J3524),'Transactional Departments'!A:B,2,FALSE)","v":"HPB Rollup"},"31070001","18003","SGOHSRE766054CV","A01","",""]
["31","766",null,null,"GOH      HWY SAFETY FY15 COTTO","1031RE766063","20000","13100","62028","31070001",{"$f":"VLOOKUP(TRIM(J3525),'Transactional Departments'!A:B,2,FALSE)","v":"HPB Rollup"},"31070001","18003","SGOHSRE766063CV","A01","",""]
["31","766",null,null,"GOHS     2016 EVALUATION COTTO","1031RE766070","20000","13100","62028","31070001",{"$f":"VLOOKUP(TRIM(J3526),'Transactional Departments'!A:B,2,FALSE)","v":"HPB Rollup"},"31070001","18003","SGOHSRE766070CV","A01","",""]
["31","766",null,null,"USGFI    W/581-483       MURRA","1031RE766072","20000","13100","64325","31070001",{"$f":"VLOOKUP(TRIM(J3527),'Transactional Departments'!A:B,2,FALSE)","v":"HPB Rollup"},"31070001","18003","SUSGFRE766072CV","A01","",""]
["31","766",null,null,"GDPH     SAFE SLEEP ACT  SALM ","1031RE766074","20000","13100","62053","31070001",{"$f":"VLOOKUP(TRIM(J3528),'Transactional Departments'!A:B,2,FALSE)","v":"HPB Rollup"},"31070001","18003","SGDPHRE766074CV","A01","",""]
["31","766",null,null,"GOHS/DOT 2017 SFTY PRGM  COTTO","1031RE766081","20000","13100","62028","31070001",{"$f":"VLOOKUP(TRIM(J3529),'Transactional Departments'!A:B,2,FALSE)","v":"HPB Rollup"},"31070001","18003","SGOHSRE766081CV","A01","",""]
["31","766",null,null,"GOHS/DOT SAFE PROG EVAL  COTTO","1031RE766089","20000","13100","62028","31070001",{"$f":"VLOOKUP(TRIM(J3530),'Transactional Departments'!A:B,2,FALSE)","v":"HPB Rollup"},"31070001","18003","SGOHSRE766089CV","A01","",""]
["31","770",null,null,"         RF SBHC PROGRAM DAVIS","1021RR770020","20000","12100","64438","31010001",{"$f":"VLOOKUP(TRIM(J3531),'Transactional Departments'!A:B,2,FALSE)","v":"College Public Health DO Roll"},"31010001","18003","SHGAFRR770020CV","A01","",""]
["31","770",null,null,"USDA/NIFARF CHANGE AGENT DAVIS","1021RR770024","20000","12100","61002","31010001",{"$f":"VLOOKUP(TRIM(J3532),'Transactional Departments'!A:B,2,FALSE)","v":"College Public Health DO Roll"},"31010001","18400","RUSDARR770024CV","A01","",""]
["31","770",null,null,"ARHS     RF RTAC TRAUMA  CLEVE","1021RR770036","20000","12100","64236","31010001",{"$f":"VLOOKUP(TRIM(J3533),'Transactional Departments'!A:B,2,FALSE)","v":"College Public Health DO Roll"},"31010001","18400","RARHSRR770036CV","A01","",""]
["31","770",null,null,"CDC      CHILD OBESITY   DAVIS","1021RR770042","20000","12100","61031","31010001",{"$f":"VLOOKUP(TRIM(J3534),'Transactional Departments'!A:B,2,FALSE)","v":"College Public Health DO Roll"},"31010001","18003","SCDCXRR770042CV","A01","",""]
["31","770",null,null,"CDC      CHILD OBESITY   DAVIS","1021RR770047","20000","12100","61031","31010001",{"$f":"VLOOKUP(TRIM(J3535),'Transactional Departments'!A:B,2,FALSE)","v":"College Public Health DO Roll"},"31010001","18003","SCDCXRR770047CV","A01","",""]
["31","770",null,null,"NACCHO   RF PREP SR      CLEVE","1031RE770040","20000","13100","64158","31010001",{"$f":"VLOOKUP(TRIM(J3536),'Transactional Departments'!A:B,2,FALSE)","v":"College Public Health DO Roll"},"31010001","18400","RNACCRE770040CV","A01","",""]
["31","770",null,null,"HGF      RF HEALTH CONF  DAVIS","1031RE770046","20000","13100","64438","31010001",{"$f":"VLOOKUP(TRIM(J3537),'Transactional Departments'!A:B,2,FALSE)","v":"College Public Health DO Roll"},"31010001","18400","RHGAFRE770046CV","A01","",""]
["31","771",null,null,"         RF EVL GA NEW GICORSO","1021RR771025","20000","12100","64438","31060001",{"$f":"VLOOKUP(TRIM(J3538),'Transactional Departments'!A:B,2,FALSE)","v":"HPMRollup"},"31060001","18003","SHGAFRR771025CV","A01","",""]
["31","771",null,null,"MDRC/NIH RF MIECE CLIN 1 CORSO","1021RR771029","20000","12100","64133","31060001",{"$f":"VLOOKUP(TRIM(J3539),'Transactional Departments'!A:B,2,FALSE)","v":"HPMRollup"},"31060001","18400","RMDRCRR771029CV","A01","",""]
["31","771",null,null,"         IPA PATIENT     CHUMB","1021RR771031","20000","12100","61000","31060001",{"$f":"VLOOKUP(TRIM(J3540),'Transactional Departments'!A:B,2,FALSE)","v":"HPMRollup"},"31060001","18003","SXXXXRR771031CV","A01","",""]
["31","771",null,null,"DHHS CDC IPA ANLSYS LEGCYCORSO","1021RR771033","20000","12100","61031","31060001",{"$f":"VLOOKUP(TRIM(J3541),'Transactional Departments'!A:B,2,FALSE)","v":"HPMRollup"},"31060001","18003","SCDCXRR771033CV","A01","",""]
["31","771",null,null,"VAMC     STROKE REHAB    CHUMB","1021RR771035","20000","12100","61000","31060001",{"$f":"VLOOKUP(TRIM(J3542),'Transactional Departments'!A:B,2,FALSE)","v":"HPMRollup"},"31060001","18003","SXXXXRR771035CV","A01","",""]
["31","771",null,null,"VAMC     ROBO STROK THER CHUMB","1021RR771037","20000","12100","61000","31060001",{"$f":"VLOOKUP(TRIM(J3543),'Transactional Departments'!A:B,2,FALSE)","v":"HPMRollup"},"31060001","18003","SXXXXRR771037CV","A01","",""]
["31","771",null,null,"USC/NIH  RF CHILD & FAM  CORSO","1021RR771041","20000","12100","62524","31060001",{"$f":"VLOOKUP(TRIM(J3544),'Transactional Departments'!A:B,2,FALSE)","v":"HPMRollup"},"31060001","18400","RUSCXRR771041CV","A01","",""]
["31","771",null,null,"TRI      RF PHE RECOVERY ABRAH","1021RR771044","20000","12100","64165","31060001",{"$f":"VLOOKUP(TRIM(J3545),'Transactional Departments'!A:B,2,FALSE)","v":"HPMRollup"},"31060001","18400","RTRRIRR771044CV","A01","",""]
["31","771",null,null,"VAMC IPA SYS DYNAMICS    CHUMB","1021RR771048","20000","12100","61000","31060001",{"$f":"VLOOKUP(TRIM(J3546),'Transactional Departments'!A:B,2,FALSE)","v":"HPMRollup"},"31060001","18003","SXXXXRR771048CV","A01","",""]
["31","771",null,null,"ACR      RF IMAGE SERV   JAYAW","1021RR771050","20000","12100","64177","31060001",{"$f":"VLOOKUP(TRIM(J3547),'Transactional Departments'!A:B,2,FALSE)","v":"HPMRollup"},"31060001","18400","RHALPRR771050CV","A01","",""]
["31","771",null,null,"GCN      RF FREE CLINIC  CORSO","1021RR771051","20000","12100","64000","31060001",{"$f":"VLOOKUP(TRIM(J3548),'Transactional Departments'!A:B,2,FALSE)","v":"HPMRollup"},"31060001","18400","RGACNRR771051CV","A01","",""]
["31","771",null,null,"BOST/NIJ RF W/771-045         ","1021RR771054","20000","12100","64315","31060001",{"$f":"VLOOKUP(TRIM(J3549),'Transactional Departments'!A:B,2,FALSE)","v":"HPMRollup"},"31060001","18400","RBSTURR771054CV","A01","",""]
["31","771",null,null,"CU       RF TABLE TALKER RAJBH","1021RR771057","20000","12100","64135","31060001",{"$f":"VLOOKUP(TRIM(J3550),'Transactional Departments'!A:B,2,FALSE)","v":"HPMRollup"},"31060001","18400","RCORNRR771057CV","A01","",""]
["31","771",null,null,"BU       RF SEX TRAFFIC  CORSO","1021RR771059","20000","12100","64315","31060001",{"$f":"VLOOKUP(TRIM(J3551),'Transactional Departments'!A:B,2,FALSE)","v":"HPMRollup"},"31060001","18400","RBSTURR771059CV","A01","",""]
["31","771",null,null,"         RF SBIRT        CORSO","1021RR771060","20000","12100","64195","31060001",{"$f":"VLOOKUP(TRIM(J3552),'Transactional Departments'!A:B,2,FALSE)","v":"HPMRollup"},"31060001","18003","SGFHFRR771060CV","A01","",""]
["31","771",null,null,"GDPH     RF SFE TO SLEEP CORSO","1021RR771061","20000","12100","62053","31060001",{"$f":"VLOOKUP(TRIM(J3553),'Transactional Departments'!A:B,2,FALSE)","v":"HPMRollup"},"31060001","18400","RGDPHRR771061CV","A01","",""]
["31","771",null,null,"MDRC     RF MIHOPE       CORSO","1021RR771063","20000","12100","64133","31060001",{"$f":"VLOOKUP(TRIM(J3554),'Transactional Departments'!A:B,2,FALSE)","v":"HPMRollup"},"31060001","18400","RMDRCRR771063CV","A01","",""]
["31","771",null,null,"         RF DATA ANALYS  GREEN","1021RR771064","20000","12100","64256","31060001",{"$f":"VLOOKUP(TRIM(J3555),'Transactional Departments'!A:B,2,FALSE)","v":"HPMRollup"},"31060001","18003","SGCEPRR771064CV","A01","",""]
["31","771",null,null,"USC/NIH  RF ONLNE VS STF CORSO","1021RR771065","20000","12100","62524","31060001",{"$f":"VLOOKUP(TRIM(J3556),'Transactional Departments'!A:B,2,FALSE)","v":"HPMRollup"},"31060001","18400","RUSCXRR771065CV","A01","",""]
["31","771",null,null,"UAF      RF FOOD BEHAVOR RAJBH","1021RR771067","20000","12100","62509","31060001",{"$f":"VLOOKUP(TRIM(J3557),'Transactional Departments'!A:B,2,FALSE)","v":"HPMRollup"},"31060001","18400","RUNAFRR771067CV","A01","",""]
["31","771",null,null,"MDRC     RF MIHOPE-SS    CORSO","1021RR771068","20000","12100","64133","31060001",{"$f":"VLOOKUP(TRIM(J3558),'Transactional Departments'!A:B,2,FALSE)","v":"HPMRollup"},"31060001","18400","RMDRCRR771068CV","A01","",""]
["31","771",null,null,"GDPH     RF SAFE TO SLEEPCORSO","1021RR771069","20000","12100","62053","31060001",{"$f":"VLOOKUP(TRIM(J3559),'Transactional Departments'!A:B,2,FALSE)","v":"HPMRollup"},"31060001","18400","RGDPHRR771069CV","A01","",""]
["31","771",null,null,"GDPH/NIH RF CORE INJURY  CORSO","1021RR771070","20000","12100","62053","31060001",{"$f":"VLOOKUP(TRIM(J3560),'Transactional Departments'!A:B,2,FALSE)","v":"HPMRollup"},"31060001","18400","RGDPHRR771070CV","A01","",""]
["31","771",null,null,"GDPH     RF MIECHV AWARD CORSO","1021RR771071","20000","12100","62053","31060001",{"$f":"VLOOKUP(TRIM(J3561),'Transactional Departments'!A:B,2,FALSE)","v":"HPMRollup"},"31060001","18400","RGDPHRR771071CV","A01","",""]
["31","771",null,null,"         RF GSAN         INGEL","1021RR771078","20000","12100","64000","31060001",{"$f":"VLOOKUP(TRIM(J3562),'Transactional Departments'!A:B,2,FALSE)","v":"HPMRollup"},"31060001","18003","SXXXXRR771078CV","A01","",""]
["31","771",null,null,"GDPH/NIH RF CORE INJURY  CORSO","1021RR771079","20000","12100","62053","31060001",{"$f":"VLOOKUP(TRIM(J3563),'Transactional Departments'!A:B,2,FALSE)","v":"HPMRollup"},"31060001","18400","RGDPHRR771079CV","A01","",""]
["31","771",null,null,"GDPH     HOME VISIT PROG CORSO","1031RE771058","20000","13100","62053","31060001",{"$f":"VLOOKUP(TRIM(J3564),'Transactional Departments'!A:B,2,FALSE)","v":"HPMRollup"},"31060001","18003","SGDPHRE771058CV","A01","",""]
["31","771",null,null,"GDPH     RF SVPP         CORSO","1031RE771066","20000","13100","62053","31060001",{"$f":"VLOOKUP(TRIM(J3565),'Transactional Departments'!A:B,2,FALSE)","v":"HPMRollup"},"31060001","18400","RGDPHRE771066CV","A01","",""]
["31","771",null,null,"         WF W/581-539    JOHNS","1031RE771072","20000","13100","62015","31060001",{"$f":"VLOOKUP(TRIM(J3566),'Transactional Departments'!A:B,2,FALSE)","v":"HPMRollup"},"31060001","18003","SGHUMRE771072CV","A01","",""]
["31","771",null,null,"NGAAAA   W/ RE581535_____JOHNS","1031RE771073","20000","13100","62043","31060001",{"$f":"VLOOKUP(TRIM(J3567),'Transactional Departments'!A:B,2,FALSE)","v":"HPMRollup"},"31060001","18003","SNGAARE771073CV","A01","",""]
["31","771",null,null,"          W/ 581-537   JOHNS  ","1031RE771074","20000","13100","62043","31060001",{"$f":"VLOOKUP(TRIM(J3568),'Transactional Departments'!A:B,2,FALSE)","v":"HPMRollup"},"31060001","18003","SNGAARE771074CV","A01","",""]
["31","773",null,null,"         RF RR374-053   WHALEN","1021RR773055","20000","12100","64448","31020001",{"$f":"VLOOKUP(TRIM(J3569),'Transactional Departments'!A:B,2,FALSE)","v":"GHI Rollup"},"31020001","18003","SGATERR773055CV","A01","",""]
["31","773",null,null,"NIH      RF MOLECULR TRN WHALE","1021RR773060","20000","12100","61018","31020001",{"$f":"VLOOKUP(TRIM(J3570),'Transactional Departments'!A:B,2,FALSE)","v":"GHI Rollup"},"31020001","18400","RNIHXRR773060CV","A01","",""]
["31","773",null,null,"NIH      RF TUB URB AFRC WHALE","1021RR773072","20000","12100","61018","31020001",{"$f":"VLOOKUP(TRIM(J3571),'Transactional Departments'!A:B,2,FALSE)","v":"GHI Rollup"},"31020001","18400","RNIHXRR773072CV","A01","",""]
["31","773",null,null,"NIH      RF RR773-072    WHALE","1021RR773073","20000","12100","61018","31020001",{"$f":"VLOOKUP(TRIM(J3572),'Transactional Departments'!A:B,2,FALSE)","v":"GHI Rollup"},"31020001","18400","RNIHXRR773073CV","A01","",""]
["31","792",null,null,"GDPH     RF GA BIOSAFETY HARRI","1021RR792033","20000","12100","62053","31080001",{"$f":"VLOOKUP(TRIM(J3573),'Transactional Departments'!A:B,2,FALSE)","v":"IDM Rollup"},"31080001","18400","RGDPHRR792033CV","A01","",""]
["31","792",null,null,"NSF      RF RAPID        DEYOU","1021RR792034","20000","12100","61023","31080001",{"$f":"VLOOKUP(TRIM(J3574),'Transactional Departments'!A:B,2,FALSE)","v":"IDM Rollup"},"31080001","18400","RNSFXRR792034CV","A01","",""]
["31","792",null,null,"GDPH     RF TRNSPRT PROG HARRI","1021RR792035","20000","12100","62053","31080001",{"$f":"VLOOKUP(TRIM(J3575),'Transactional Departments'!A:B,2,FALSE)","v":"IDM Rollup"},"31080001","18400","RGDPHRR792035CV","A01","",""]
["31","792",null,null,"GDPH     RF EMER PREPARD HARRI","1021RR792036","20000","12100","62053","31080001",{"$f":"VLOOKUP(TRIM(J3576),'Transactional Departments'!A:B,2,FALSE)","v":"IDM Rollup"},"31080001","18400","RGDPHRR792036CV","A01","",""]
["31","792",null,null,"         EMERGENCY PREPR DALLA","1031RE792014","20000","13100","62014","31080001",{"$f":"VLOOKUP(TRIM(J3577),'Transactional Departments'!A:B,2,FALSE)","v":"IDM Rollup"},"31080001","18003","SGDHRRE792014CV","A01","",""]
["31","792",null,null,"GDPH     EMERGENCY PREP  HARRI","1031RE792032","20000","13100","62053","31080001",{"$f":"VLOOKUP(TRIM(J3578),'Transactional Departments'!A:B,2,FALSE)","v":"IDM Rollup"},"31080001","18003","SGDPHRE792032CV","A01","",""]
["31","793",null,null,"VEF      FELLOWSHIP THAI WILSO","1011RH793058","20000","11100","61035","31040001",{"$f":"VLOOKUP(TRIM(J3579),'Transactional Departments'!A:B,2,FALSE)","v":"EPIBIO Rollup"},"31040001","18003","SVIEFRH793058CV","A01","",""]
["31","793",null,null,"SREB     ALLEN NKWATA    WHALE","1011RH793065","20000","11100","64179","31040001",{"$f":"VLOOKUP(TRIM(J3580),'Transactional Departments'!A:B,2,FALSE)","v":"EPIBIO Rollup"},"31040001","18003","SSCSRRH793065CV","A01","",""]
["31","793",null,null,"VEF      FELLOWSHIP      CORDE","1011RH793078","20000","11100","61035","31040001",{"$f":"VLOOKUP(TRIM(J3581),'Transactional Departments'!A:B,2,FALSE)","v":"EPIBIO Rollup"},"31040001","18003","SVIEFRH793078CV","A01","",""]
["31","793",null,null,"UP/NIH   RF RLTIME DATA  RATHB","1021RR793036","20000","12100","64189","31040001",{"$f":"VLOOKUP(TRIM(J3582),'Transactional Departments'!A:B,2,FALSE)","v":"EPIBIO Rollup"},"31040001","18400","RUPITRR793036CV","A01","",""]
["31","793",null,null,"NIH      RF TUB URB AFRC WHALE","1021RR793045","20000","12100","61018","31040001",{"$f":"VLOOKUP(TRIM(J3583),'Transactional Departments'!A:B,2,FALSE)","v":"EPIBIO Rollup"},"31040001","18400","RNIHXRR793045CV","A01","",""]
["31","793",null,null,"GRA/GCC  RPT W/793007/34      ","1021RR793047","20000","12100","62062","31040001",{"$f":"VLOOKUP(TRIM(J3584),'Transactional Departments'!A:B,2,FALSE)","v":"EPIBIO Rollup"},"31040001","18003","SGRAXRR793047CV","A01","",""]
["31","793",null,null,"         FUTURE FELLOWS  WHALE","1021RR793059","20000","12100","64450","31040001",{"$f":"VLOOKUP(TRIM(J3585),'Transactional Departments'!A:B,2,FALSE)","v":"EPIBIO Rollup"},"31040001","18003","SSCHLRR793059CV","A01","",""]
["31","793",null,null,"USDOD    RF W/571-405    CAI  ","1021RR793064","20000","12100","61012","31040001",{"$f":"VLOOKUP(TRIM(J3586),'Transactional Departments'!A:B,2,FALSE)","v":"EPIBIO Rollup"},"31040001","18400","RUSDDRR793064CV","A01","",""]
["31","793",null,null,"NIH      RF CNCR BIOMRKR DOBBI","1021RR793066","20000","12100","61018","31040001",{"$f":"VLOOKUP(TRIM(J3587),'Transactional Departments'!A:B,2,FALSE)","v":"EPIBIO Rollup"},"31040001","18400","RNIHXRR793066CV","A01","",""]
["31","793",null,null,"NU       RF PUERTO RICO  CORDE","1021RR793071","20000","12100","64308","31040001",{"$f":"VLOOKUP(TRIM(J3588),'Transactional Departments'!A:B,2,FALSE)","v":"EPIBIO Rollup"},"31040001","18400","RNORTRR793071CV","A01","",""]
["31","793",null,null,"GDCH     RF BEREAVEMENT  MILES","1021RR793074","20000","12100","62055","31040001",{"$f":"VLOOKUP(TRIM(J3589),'Transactional Departments'!A:B,2,FALSE)","v":"EPIBIO Rollup"},"31040001","18400","RGDCHRR793074CV","A01","",""]
["31","793",null,null,"         RF DEMENTIA TOURMILES","1021RR793075","20000","12100","64183","31040001",{"$f":"VLOOKUP(TRIM(J3590),'Transactional Departments'!A:B,2,FALSE)","v":"EPIBIO Rollup"},"31040001","18003","SSEWDRR793075CV","A01","",""]
["31","793",null,null,"         FUTURE FACULTY  WHALE","1021RR793077","20000","12100","64450","31040001",{"$f":"VLOOKUP(TRIM(J3591),'Transactional Departments'!A:B,2,FALSE)","v":"EPIBIO Rollup"},"31040001","18003","SSCHLRR793077CV","A01","",""]
["31","793",null,null,"NU/NIH   RF ZIKA SPPLMNT CORDE","1021RR793079","20000","12100","64308","31040001",{"$f":"VLOOKUP(TRIM(J3592),'Transactional Departments'!A:B,2,FALSE)","v":"EPIBIO Rollup"},"31040001","18400","RNORTRR793079CV","A01","",""]
["31","793",null,null,"         RF RR374-053   WHALEN","1021RR793080","20000","12100","64448","31040001",{"$f":"VLOOKUP(TRIM(J3593),'Transactional Departments'!A:B,2,FALSE)","v":"EPIBIO Rollup"},"31040001","18003","SGATERR793080CV","A01","",""]
["31","793",null,null,"         RF INFANT P2I   CORDE","1021RR793081","20000","12100","64099","31040001",{"$f":"VLOOKUP(TRIM(J3594),'Transactional Departments'!A:B,2,FALSE)","v":"EPIBIO Rollup"},"31040001","18003","SFORMRR793081CV","A01","",""]
["31","793",null,null,"NU       RF CRECE        CORDE","1021RR793082","20000","12100","64308","31040001",{"$f":"VLOOKUP(TRIM(J3595),'Transactional Departments'!A:B,2,FALSE)","v":"EPIBIO Rollup"},"31040001","18400","RNORTRR793082CV","A01","",""]
["31","793",null,null,"         RF NFLUENZA A/B EBELL","1021RR793083","20000","12100","64039","31040001",{"$f":"VLOOKUP(TRIM(J3596),'Transactional Departments'!A:B,2,FALSE)","v":"EPIBIO Rollup"},"31040001","18003","SROCHRR793083CV","A01","",""]
["31","793",null,null,"NSF      RF RR793-084 PS BELLA","1021RR793085","20000","12100","61023","31040001",{"$f":"VLOOKUP(TRIM(J3597),'Transactional Departments'!A:B,2,FALSE)","v":"EPIBIO Rollup"},"31040001","18400","RNSFXRR793085CV","A01","",""]
["31","793",null,null,"GDPH     RF ASTHMA CNTRL EBELL","1021RR793086","20000","12100","62053","31040001",{"$f":"VLOOKUP(TRIM(J3598),'Transactional Departments'!A:B,2,FALSE)","v":"EPIBIO Rollup"},"31040001","18400","RGDPHRR793086CV","A01","",""]
["31","793",null,null,"EU/NIH   RF JJ TRIALS    SWART","1021RR793087","20000","12100","64139","31040001",{"$f":"VLOOKUP(TRIM(J3599),'Transactional Departments'!A:B,2,FALSE)","v":"EPIBIO Rollup"},"31040001","18400","REMORRR793087CV","A01","",""]
["31","793",null,null,"EU       RF ADOLESCENT   SWART","1021RR793088","20000","12100","64139","31040001",{"$f":"VLOOKUP(TRIM(J3600),'Transactional Departments'!A:B,2,FALSE)","v":"EPIBIO Rollup"},"31040001","18400","REMORRR793088CV","A01","",""]
["31","793",null,null,"NIH      RF HIV APPLICAT BELLA","1021RR793089","20000","12100","61018","31040001",{"$f":"VLOOKUP(TRIM(J3601),'Transactional Departments'!A:B,2,FALSE)","v":"EPIBIO Rollup"},"31040001","18400","RNIHXRR793089CV","A01","",""]
["31","793",null,null,"EM/NIH   RF INFLUENZA    HANDE","1021RR793090","20000","12100","64139","31040001",{"$f":"VLOOKUP(TRIM(J3602),'Transactional Departments'!A:B,2,FALSE)","v":"EPIBIO Rollup"},"31040001","18400","REMORRR793090CV","A01","",""]
["31","793",null,null,"NU/NIH   RF ECHO-PRO     CORDE","1021RR793091","20000","12100","64308","31040001",{"$f":"VLOOKUP(TRIM(J3603),'Transactional Departments'!A:B,2,FALSE)","v":"EPIBIO Rollup"},"31040001","18400","RNORTRR793091CV","A01","",""]
["31","793",null,null,"NU       RF PROTECT      CORDE","1021RR793092","20000","12100","64308","31040001",{"$f":"VLOOKUP(TRIM(J3604),'Transactional Departments'!A:B,2,FALSE)","v":"EPIBIO Rollup"},"31040001","18400","RNORTRR793092CV","A01","",""]
["31","793",null,null,"NU/NIH   RF CRECE        CORDE","1021RR793093","20000","12100","64308","31040001",{"$f":"VLOOKUP(TRIM(J3605),'Transactional Departments'!A:B,2,FALSE)","v":"EPIBIO Rollup"},"31040001","18400","RNORTRR793093CV","A01","",""]
["31","793",null,null,"NIH      RF DRUG USE     SWART","1021RR793094","20000","12100","61018","31040001",{"$f":"VLOOKUP(TRIM(J3606),'Transactional Departments'!A:B,2,FALSE)","v":"EPIBIO Rollup"},"31040001","18400","RNIHXRR793094CV","A01","",""]
["31","793",null,null,"SCH FTDN FACULTY FUTURE  WHALE","1021RR793096","20000","12100","64450","31040001",{"$f":"VLOOKUP(TRIM(J3607),'Transactional Departments'!A:B,2,FALSE)","v":"EPIBIO Rollup"},"31040001","18003","SSCHLRR793096CV","A01","",""]
["31","793",null,null,"EU       RF REPROD HLTH  SWART","1021RR793097","20000","12100","64139","31040001",{"$f":"VLOOKUP(TRIM(J3608),'Transactional Departments'!A:B,2,FALSE)","v":"EPIBIO Rollup"},"31040001","18400","REMORRR793097CV","A01","",""]
["31","793",null,null,"TULANE   RF CONTRACT     LI   ","1021RR793098","20000","12100","64185","31040001",{"$f":"VLOOKUP(TRIM(J3609),'Transactional Departments'!A:B,2,FALSE)","v":"EPIBIO Rollup"},"31040001","18400","RTULARR793098CV","A01","",""]
["31","793",null,null,"EU/NIH   RF JJ TRIALS    SWART","1021RR793099","20000","12100","64139","31040001",{"$f":"VLOOKUP(TRIM(J3610),'Transactional Departments'!A:B,2,FALSE)","v":"EPIBIO Rollup"},"31040001","18400","REMORRR793099CV","A01","",""]
["31","793",null,null,"GDPH/CDC RF ASTHMA CNTRL EBELL","1021RR793100","20000","12100","62053","31040001",{"$f":"VLOOKUP(TRIM(J3611),'Transactional Departments'!A:B,2,FALSE)","v":"EPIBIO Rollup"},"31040001","18400","RGDPHRR793100CV","A01","",""]
["31","793",null,null,"NU/NIH   RF CRECE        CORDE","1021RR793101","20000","12100","64308","31040001",{"$f":"VLOOKUP(TRIM(J3612),'Transactional Departments'!A:B,2,FALSE)","v":"EPIBIO Rollup"},"31040001","18400","RNORTRR793101CV","A01","",""]
["31","793",null,null,"NU/NIH   RF ECHO-PRO YR2 CORDE","1021RR793102","20000","12100","64308","31040001",{"$f":"VLOOKUP(TRIM(J3613),'Transactional Departments'!A:B,2,FALSE)","v":"EPIBIO Rollup"},"31040001","18400","RNORTRR793102CV","A01","",""]
["31","793",null,null,"NSF      RF INFECTIOUS   BELLA","1021RR793103","20000","12100","61023","31040001",{"$f":"VLOOKUP(TRIM(J3614),'Transactional Departments'!A:B,2,FALSE)","v":"EPIBIO Rollup"},"31040001","18400","RNSFXRR793103CV","A01","",""]
["31","793",null,null,"NSF      RF RR793-103 PS BELLA","1021RR793104","20000","12100","61023","31040001",{"$f":"VLOOKUP(TRIM(J3615),'Transactional Departments'!A:B,2,FALSE)","v":"EPIBIO Rollup"},"31040001","18400","RNSFXRR793104CV","A01","",""]
["31","793",null,null,"NU/NIH   RF ZIKA SPPLMNT CORDE","1021RR793105","20000","12100","64308","31040001",{"$f":"VLOOKUP(TRIM(J3616),'Transactional Departments'!A:B,2,FALSE)","v":"EPIBIO Rollup"},"31040001","18400","RNORTRR793105CV","A01","",""]
["31","793",null,null,"NIH      RF HIV-1 RECOMB ZHANG","1021RR793155","20000","12100","61018","31040001",{"$f":"VLOOKUP(TRIM(J3617),'Transactional Departments'!A:B,2,FALSE)","v":"EPIBIO Rollup"},"31040001","18400","RNIHXRR793155CV","A01","",""]
["31","793",null,null,"         RF MEANINGFUL MODELBE","1031RE793095","20000","13100","64462","31040001",{"$f":"VLOOKUP(TRIM(J3618),'Transactional Departments'!A:B,2,FALSE)","v":"EPIBIO Rollup"},"31040001","18003","SWHLTRE793095CV","A01","",""]
["32","186",null,null,"ARNOLD FNRF COST OF PRIM BULLO","1021RR186129","20000","12100","64457","32001001",{"$f":"VLOOKUP(TRIM(J3619),'Transactional Departments'!A:B,2,FALSE)","v":"SPIA Dean General"},"32001001","18400","RARNORR186129CV","A01","",""]
["32","186",null,null,"CONSILIENUGA_GA CJCC_____WILLI","1021RR186130","20000","12100","64108","32001001",{"$f":"VLOOKUP(TRIM(J3620),'Transactional Departments'!A:B,2,FALSE)","v":"SPIA Dean General"},"32001001","18003","SCNSIRR186130CV","A01","",""]
["32","186",null,null,"NSR      RF RF_JUDGING DIBOYD ","1021RR186289","20000","12100","61023","32001001",{"$f":"VLOOKUP(TRIM(J3621),'Transactional Departments'!A:B,2,FALSE)","v":"SPIA Dean General"},"32001001","18400","RNSFXRR186289CV","A01","",""]
["32","186",null,null,"NSF      RF PUB OPINION  MONOG","1021RR186290","20000","12100","61023","32001001",{"$f":"VLOOKUP(TRIM(J3622),'Transactional Departments'!A:B,2,FALSE)","v":"SPIA Dean General"},"32001001","18400","RNSFXRR186290CV","A01","",""]
["32","186",null,null,"STATE DEPRF RF_REPUB OF GKELLO","1031RE186291","20000","13100","61021","32001001",{"$f":"VLOOKUP(TRIM(J3623),'Transactional Departments'!A:B,2,FALSE)","v":"SPIA Dean General"},"32001001","18400","RUSDSRE186291CV","A01","",""]
["32","576",null,null,"USDOS    RF S&STMA EXBS  GAHLA","1021RR576137","20000","12100","61021","32002001",{"$f":"VLOOKUP(TRIM(J3624),'Transactional Departments'!A:B,2,FALSE)","v":"CITS General"},"32002001","18400","RUSDSRR576137CV","A01","",""]
["32","576",null,null,"USDOS    PI W 576-137   _GAHLA","1021RR576139","20000","12100","61021","32002001",{"$f":"VLOOKUP(TRIM(J3625),'Transactional Departments'!A:B,2,FALSE)","v":"CITS General"},"32002001","18003","SUSDSRR576139CV","A01","",""]
["32","576",null,null,"USDOS    RF STC KENYA    KELLE","1021RR576141","20000","12100","61021","32002001",{"$f":"VLOOKUP(TRIM(J3626),'Transactional Departments'!A:B,2,FALSE)","v":"CITS General"},"32002001","18400","RUSDSRR576141CV","A01","",""]
["32","576",null,null,"USDOS    RF TCH SPT CSEP GAHLA","1021RR576143","20000","12100","61021","32002001",{"$f":"VLOOKUP(TRIM(J3627),'Transactional Departments'!A:B,2,FALSE)","v":"CITS General"},"32002001","18400","RUSDSRR576143CV","A01","",""]
["32","576",null,null,"UTBLLC   RF FELLOW 15-17 BECK ","1021RR576155","20000","12100","64292","32002001",{"$f":"VLOOKUP(TRIM(J3628),'Transactional Departments'!A:B,2,FALSE)","v":"CITS General"},"32002001","18400","RUTBARR576155CV","A01","",""]
["32","576",null,null,"CARNEGIE RF RF_CHINA NUC JONES","1021RR576156","20000","12100","64132","32002001",{"$f":"VLOOKUP(TRIM(J3629),'Transactional Departments'!A:B,2,FALSE)","v":"CITS General"},"32002001","18400","RCACYRR576156CV","A01","",""]
["32","576",null,null,"         RF RR576-156 PI JONES","1021RR576157","20000","12100","64132","32002001",{"$f":"VLOOKUP(TRIM(J3630),'Transactional Departments'!A:B,2,FALSE)","v":"CITS General"},"32002001","18003","SCACYRR576157CV","A01","",""]
["32","576",null,null,"STATE DEPRF F15 SSTM ACA_JONES","1021RR576159","20000","12100","61021","32002001",{"$f":"VLOOKUP(TRIM(J3631),'Transactional Departments'!A:B,2,FALSE)","v":"CITS General"},"32002001","18400","RUSDSRR576159CV","A01","",""]
["32","576",null,null,"STATE DEPRF RF_CTR NONPROGAHLA","1021RR576160","20000","12100","61021","32002001",{"$f":"VLOOKUP(TRIM(J3632),'Transactional Departments'!A:B,2,FALSE)","v":"CITS General"},"32002001","18400","RUSDSRR576160CV","A01","",""]
["32","576",null,null,"NORINCO  RF RF_TSA 2016-1LIU  ","1021RR576164","20000","12100","64472","32002001",{"$f":"VLOOKUP(TRIM(J3633),'Transactional Departments'!A:B,2,FALSE)","v":"CITS General"},"32002001","18400","RCNINRR576164CV","A01","",""]
["32","576",null,null,"DOS      RF RF_EXBS SINGLJONES","1021RR576166","20000","12100","61021","32002001",{"$f":"VLOOKUP(TRIM(J3634),'Transactional Departments'!A:B,2,FALSE)","v":"CITS General"},"32002001","18400","RUSDSRR576166CV","A01","",""]
["32","576",null,null,"DOS      RF RF_LEG DEV PABECK ","1021RR576167","20000","12100","61021","32002001",{"$f":"VLOOKUP(TRIM(J3635),'Transactional Departments'!A:B,2,FALSE)","v":"CITS General"},"32002001","18400","RUSDSRR576167CV","A01","",""]
["32","576",null,null,"US DOS   RF RF_SSTMA SP20JONES","1021RR576168","20000","12100","61021","32002001",{"$f":"VLOOKUP(TRIM(J3636),'Transactional Departments'!A:B,2,FALSE)","v":"CITS General"},"32002001","18400","RUSDSRR576168CV","A01","",""]
["32","576",null,null,"US DOS   RF P/S WITH 1021RR576","1021RR576172","20000","12100","61021","32002001",{"$f":"VLOOKUP(TRIM(J3637),'Transactional Departments'!A:B,2,FALSE)","v":"CITS General"},"32002001","18400","RUSDSRR576172CV","A01","",""]
["32","576",null,null,"         CBRN SECURITY   NIKON","1031RE576134","20000","13100","64132","32002001",{"$f":"VLOOKUP(TRIM(J3638),'Transactional Departments'!A:B,2,FALSE)","v":"CITS General"},"32002001","18003","SCACYRE576134CV","A01","",""]
["32","576",null,null,"BNL/DOE  EXP FELL INDIA  GAHLA","1031RE576148","20000","13100","64331","32002001",{"$f":"VLOOKUP(TRIM(J3639),'Transactional Departments'!A:B,2,FALSE)","v":"CITS General"},"32002001","18003","SBRNLRE576148CV","A01","",""]
["32","576",null,null,"CTP/USDOSU ADDRESS GLOB__JONES","1031RE576162","20000","13100","64343","32002001",{"$f":"VLOOKUP(TRIM(J3640),'Transactional Departments'!A:B,2,FALSE)","v":"CITS General"},"32002001","18003","SCOTPRE576162CV","A01","",""]
["32","576",null,null,"CTP/USDOSU ADDRESS GLOB  JONES","1031RE576163","20000","13100","64343","32002001",{"$f":"VLOOKUP(TRIM(J3641),'Transactional Departments'!A:B,2,FALSE)","v":"CITS General"},"32002001","18003","SCOTPRE576163CV","A01","",""]
["32","576",null,null,"SNSTC    UGA_TRAIN AGRMT_LIU  ","1031RE576169","20000","13100","64547","32002001",{"$f":"VLOOKUP(TRIM(J3642),'Transactional Departments'!A:B,2,FALSE)","v":"CITS General"},"32002001","18003","SNUCTRE576169CV","A01","",""]
["32","576",null,null,"STATE DEPRF STC PANAMA___TUCKE","1031RE576170","20000","13100","61021","32002001",{"$f":"VLOOKUP(TRIM(J3643),'Transactional Departments'!A:B,2,FALSE)","v":"CITS General"},"32002001","18400","RUSDSRE576170CV","A01","",""]
["32","576",null,null,"US DOSTATRF INDONESIA____KUTCH","1031RE576173","20000","13100","61021","32002001",{"$f":"VLOOKUP(TRIM(J3644),'Transactional Departments'!A:B,2,FALSE)","v":"CITS General"},"32002001","18400","RUSDSRE576173CV","A01","",""]
["32","577",null,null,"GCC      SURVEY          HOOD ","1021RR577018","20000","12100","64217","32003001",{"$f":"VLOOKUP(TRIM(J3645),'Transactional Departments'!A:B,2,FALSE)","v":"Political Science General"},"32003001","18003","SGCOCRR577018CV","A01","",""]
["32","577",null,null,"GA COC   UGA_SURVEY 2____HOOD ","1021RR577020","20000","12100","64217","32003001",{"$f":"VLOOKUP(TRIM(J3646),'Transactional Departments'!A:B,2,FALSE)","v":"Political Science General"},"32003001","18003","SGCOCRR577020CV","A01","",""]
["32","577",null,null,"NSF      RF RF_JUDICIAL DHAIRE","1021RR577021","20000","12100","61023","32003001",{"$f":"VLOOKUP(TRIM(J3647),'Transactional Departments'!A:B,2,FALSE)","v":"Political Science General"},"32003001","18400","RNSFXRR577021CV","A01","",""]
["32","577",null,null,"NSF      RF RF_DOCTORAL DBOYD ","1021RR577022","20000","12100","61023","32003001",{"$f":"VLOOKUP(TRIM(J3648),'Transactional Departments'!A:B,2,FALSE)","v":"Political Science General"},"32003001","18400","RNSFXRR577022CV","A01","",""]
["32","577",null,null,"FORSYTH CRF RF_FORSYTH SPHOOD ","1031RE577023","20000","13100","63044","32003001",{"$f":"VLOOKUP(TRIM(J3649),'Transactional Departments'!A:B,2,FALSE)","v":"Political Science General"},"32003001","18400","RCFORRE577023CV","A01","",""]
["32","578",null,null,"UNT      RF RF_EXPAND ICOOWSIA","1021RR578068","20000","12100","62572","32004001",{"$f":"VLOOKUP(TRIM(J3650),'Transactional Departments'!A:B,2,FALSE)","v":"International Affairs General"},"32004001","18400","RUNTXRR578068CV","A01","",""]
["32","578",null,null,"NSF      RF RF_SUB-NAT RECLAY ","1021RR578070","20000","12100","61023","32004001",{"$f":"VLOOKUP(TRIM(J3651),'Transactional Departments'!A:B,2,FALSE)","v":"International Affairs General"},"32004001","18400","RNSFXRR578070CV","A01","",""]
["33","263",null,null,"BHDD/NIH DHS 4E STUDENTS ELLET","1011RH263252","20000","11100","62014","33001001",{"$f":"VLOOKUP(TRIM(J3652),'Transactional Departments'!A:B,2,FALSE)","v":"SSW Main"},"33001001","18003","SGDHRRH263252CV","A01","",""]
["33","263",null,null,"HHS      DISADV SCHOLAR  OKECH","1011RH263277","20000","11100","61017","33001001",{"$f":"VLOOKUP(TRIM(J3653),'Transactional Departments'!A:B,2,FALSE)","v":"SSW Main"},"33001001","18003","SDHHSRH263277CV","A01","",""]
["33","263",null,null,"GSU      IV-E_CHILD WELF ELLET","1011RH263278","20000","11100","62022","33001001",{"$f":"VLOOKUP(TRIM(J3654),'Transactional Departments'!A:B,2,FALSE)","v":"SSW Main"},"33001001","18003","SGASURH263278CV","A01","",""]
["33","263",null,null,"USDHHS   WORKFORCE ED         ","1011RH263279","20000","11100","61017","33001001",{"$f":"VLOOKUP(TRIM(J3655),'Transactional Departments'!A:B,2,FALSE)","v":"SSW Main"},"33001001","18003","SDHHSRH263279CV","A01","",""]
["33","263",null,null,"USDHHS   PS W/ 263279         ","1011RH263280","20000","11100","61017","33001001",{"$f":"VLOOKUP(TRIM(J3656),'Transactional Departments'!A:B,2,FALSE)","v":"SSW Main"},"33001001","18003","SDHHSRH263280CV","A01","",""]
["33","263",null,null,"HHS      DISADV SCHOLAR       ","1011RH263286","20000","11100","61017","33001001",{"$f":"VLOOKUP(TRIM(J3657),'Transactional Departments'!A:B,2,FALSE)","v":"SSW Main"},"33001001","18003","SDHHSRH263286CV","A01","",""]
["33","263",null,null,"GSU      RF IVE CHILD WELELLET","1011RH263287","20000","11100","64403","33001001",{"$f":"VLOOKUP(TRIM(J3658),'Transactional Departments'!A:B,2,FALSE)","v":"SSW Main"},"33001001","18400","RGRFIRH263287CV","A01","",""]
["33","263",null,null,"CSWE     TRANS BNDRIES   MCPHE","1011RH263288","20000","11100","64542","33001001",{"$f":"VLOOKUP(TRIM(J3659),'Transactional Departments'!A:B,2,FALSE)","v":"SSW Main"},"33001001","18003","SCSWERH263288CV","A01","",""]
["33","263",null,null,"UWNEGA   PARTNERS TRNG   MALLO","1011RH263290","20000","11100","64000","33001001",{"$f":"VLOOKUP(TRIM(J3660),'Transactional Departments'!A:B,2,FALSE)","v":"SSW Main"},"33001001","18003","SUNNGRH263290CV","A01","",""]
["33","263",null,null,"GADBHDD  INVEST FUTURE   SCHEY","1011RH263291","20000","11100","62061","33001001",{"$f":"VLOOKUP(TRIM(J3661),'Transactional Departments'!A:B,2,FALSE)","v":"SSW Main"},"33001001","18003","SGDBHRH263291CV","A01","",""]
["33","263",null,null,"NYCT     RF TANF         NACKE","1021RR263266","20000","12100","64000","33001001",{"$f":"VLOOKUP(TRIM(J3662),'Transactional Departments'!A:B,2,FALSE)","v":"SSW Main"},"33001001","18400","RXXXXRR263266CV","A01","",""]
["33","263",null,null,"OAR      RF STRESS       VONK ","1021RR263267","20000","12100","64354","33001001",{"$f":"VLOOKUP(TRIM(J3663),'Transactional Departments'!A:B,2,FALSE)","v":"SSW Main"},"33001001","18400","ROFARRR263267CV","A01","",""]
["33","263",null,null,"ASAE     RF INNOVATION   JASKY","1021RR263270","20000","12100","64455","33001001",{"$f":"VLOOKUP(TRIM(J3664),'Transactional Departments'!A:B,2,FALSE)","v":"SSW Main"},"33001001","18400","RSCFFRR263270CV","A01","",""]
["33","263",null,null,"ACC      RF POSITIVE YTH MATTH","1021RR263276","20000","12100","63001","33001001",{"$f":"VLOOKUP(TRIM(J3665),'Transactional Departments'!A:B,2,FALSE)","v":"SSW Main"},"33001001","18400","RCOOARR263276CV","A01","",""]
["33","263",null,null,"UMDB/AHRQRF PAT CTRD INV      ","1021RR263283","20000","12100","62578","33001001",{"$f":"VLOOKUP(TRIM(J3666),'Transactional Departments'!A:B,2,FALSE)","v":"SSW Main"},"33001001","18400","RUMDBRR263283CV","A01","",""]
["33","263",null,null,"GADHS/NIHEMPLOY SELECT   ELLET","1021RR263284","20000","12100","62015","33001001",{"$f":"VLOOKUP(TRIM(J3667),'Transactional Departments'!A:B,2,FALSE)","v":"SSW Main"},"33001001","18003","SGHUMRR263284CV","A01","",""]
["33","263",null,null,"ALCOVY   COURT EVAL      MOWBR","1021RR263285","20000","12100","63106","33001001",{"$f":"VLOOKUP(TRIM(J3668),'Transactional Departments'!A:B,2,FALSE)","v":"SSW Main"},"33001001","18003","SALCVRR263285CV","A01","",""]
["33","263",null,null,"GADHS    REG ADVISRY BDS JASKY","1031RE263289","20000","13100","62015","33001001",{"$f":"VLOOKUP(TRIM(J3669),'Transactional Departments'!A:B,2,FALSE)","v":"SSW Main"},"33001001","18003","SGHUMRE263289CV","A01","",""]
["34","188",null,null,"         RF NOVEL ILTV   GARCI","1021RR188252","20000","12100","64000","34003PMG",{"$f":"VLOOKUP(TRIM(J3670),'Transactional Departments'!A:B,2,FALSE)","v":"Prdc - Mariacarmen Garcia"},"34003PMG","18003","SLNGCRR188252CV","A01","",""]
["34","188",null,null,"MINN/USDARF CNTR EXCELLC OVERT","1021RR188261","20000","12100","62514","3400300C",{"$f":"VLOOKUP(TRIM(J3671),'Transactional Departments'!A:B,2,FALSE)","v":"Population Health Conversion"},"3400300C","18400","RUOMNRR188261CV","A01","",""]
["34","188",null,null,"MERCK    RF BROILR CHICK JORDA","1021RR188264","20000","12100","64006","34003PBJ",{"$f":"VLOOKUP(TRIM(J3672),'Transactional Departments'!A:B,2,FALSE)","v":"PDRC - Brian Jordan"},"34003PBJ","18400","RMERKRR188264CV","A01","",""]
["34","188",null,null,"         RF POULVAC MYCO-FERGU","1021RR188265","20000","12100","64000","34003PNF",{"$f":"VLOOKUP(TRIM(J3673),'Transactional Departments'!A:B,2,FALSE)","v":"PDRC - Naola Ferguson-Noel"},"34003PNF","18003","SPNAHRR188265CV","A01","",""]
["34","188",null,null,"         RF ILTV         GARCI","1021RR188267","20000","12100","64178","34003PMG",{"$f":"VLOOKUP(TRIM(J3674),'Transactional Departments'!A:B,2,FALSE)","v":"Prdc - Mariacarmen Garcia"},"34003PMG","18003","SUSPARR188267CV","A01","",""]
["34","188",null,null,"         RF INNOVAX-ILT  GARCI","1021RR188268","20000","12100","64006","34003PMG",{"$f":"VLOOKUP(TRIM(J3675),'Transactional Departments'!A:B,2,FALSE)","v":"Prdc - Mariacarmen Garcia"},"34003PMG","18003","SMERKRR188268CV","A01","",""]
["34","188",null,null,"         RF H7 LOW PATH  JORDA","1021RR188271","20000","12100","64000","34003PBJ",{"$f":"VLOOKUP(TRIM(J3676),'Transactional Departments'!A:B,2,FALSE)","v":"PDRC - Brian Jordan"},"34003PBJ","18003","SRNRLRR188271CV","A01","",""]
["34","188",null,null,"         RF REOVIRUS VAC SELLE","1021RR188272","20000","12100","64006","34003PHS",{"$f":"VLOOKUP(TRIM(J3677),'Transactional Departments'!A:B,2,FALSE)","v":"PDRC - Holly Sellers"},"34003PHS","18003","SMERKRR188272CV","A01","",""]
["34","188",null,null,"MERK     RF TRAIN SUPPORTJACKW","1021RR188276","20000","12100","64006","34003PMJ",{"$f":"VLOOKUP(TRIM(J3678),'Transactional Departments'!A:B,2,FALSE)","v":"PDRC - Mark Jackwood"},"34003PMJ","18400","RMERKRR188276CV","A01","",""]
["34","188",null,null,"USPF     RF SP PROTEIN   JORDA","1021RR188277","20000","12100","64178","34003PBJ",{"$f":"VLOOKUP(TRIM(J3679),'Transactional Departments'!A:B,2,FALSE)","v":"PDRC - Brian Jordan"},"34003PBJ","18400","RUSPARR188277CV","A01","",""]
["34","188",null,null,"INTERVET RF E COLI AVIAN LEE  ","1021RR188278","20000","12100","64207","34003PML",{"$f":"VLOOKUP(TRIM(J3680),'Transactional Departments'!A:B,2,FALSE)","v":"PDRC - Margie Lee"},"34003PML","18400","RANONRR188278CV","A01","",""]
["34","188",null,null,"MSSM     RF NIAID CEIRS  PEREZ","1021RR188280","20000","12100","64166","34003PDP",{"$f":"VLOOKUP(TRIM(J3681),'Transactional Departments'!A:B,2,FALSE)","v":"PDRC - Daniel Perez"},"34003PDP","18400","RMSSMRR188280CV","A01","",""]
["34","188",null,null,"USPEA    RF REOVIRUSES   SELLE","1021RR188281","20000","12100","64178","34003PHS",{"$f":"VLOOKUP(TRIM(J3682),'Transactional Departments'!A:B,2,FALSE)","v":"PDRC - Holly Sellers"},"34003PHS","18400","RUSPARR188281CV","A01","",""]
["34","188",null,null,"HUVEPHARMRF BRONCHITIS   JORDA","1021RR188282","20000","12100","64000","34003PBJ",{"$f":"VLOOKUP(TRIM(J3683),'Transactional Departments'!A:B,2,FALSE)","v":"PDRC - Brian Jordan"},"34003PBJ","18400","RHUVERR188282CV","A01","",""]
["34","188",null,null,"USPEA    RF IBV STRAINS  JACKW","1021RR188283","20000","12100","64178","34003PMJ",{"$f":"VLOOKUP(TRIM(J3684),'Transactional Departments'!A:B,2,FALSE)","v":"PDRC - Mark Jackwood"},"34003PMJ","18400","RUSPARR188283CV","A01","",""]
["34","188",null,null,"NGIS     RF BIOINFORMTCS PEREZ","1021RR188285","20000","12100","64074","34003PDP",{"$f":"VLOOKUP(TRIM(J3685),'Transactional Departments'!A:B,2,FALSE)","v":"PDRC - Daniel Perez"},"34003PDP","18400","RNGISRR188285CV","A01","",""]
["34","188",null,null,"AMI      RF SALMONELLA   FRANC","1021RR188288","20000","12100","64313","34003PMF",{"$f":"VLOOKUP(TRIM(J3686),'Transactional Departments'!A:B,2,FALSE)","v":"PDRC - Monique Franca"},"34003PMF","18400","RAMMIRR188288CV","A01","",""]
["34","188",null,null,"USDA ARS RF GOODS SERV   JACKW","1021RR188289","20000","12100","61004","34003PMJ",{"$f":"VLOOKUP(TRIM(J3687),'Transactional Departments'!A:B,2,FALSE)","v":"PDRC - Mark Jackwood"},"34003PMJ","18400","RARSXRR188289CV","A01","",""]
["34","188",null,null,"ISMMS    RF NIAID CEIRS  PEREZ","1021RR188291","20000","12100","64166","34003PDP",{"$f":"VLOOKUP(TRIM(J3688),'Transactional Departments'!A:B,2,FALSE)","v":"PDRC - Daniel Perez"},"34003PDP","18400","RMSSMRR188291CV","A01","",""]
["34","188",null,null,"IASU     RF DUODENAL NECRFRANC","1021RR188292","20000","12100","62540","34003PMF",{"$f":"VLOOKUP(TRIM(J3689),'Transactional Departments'!A:B,2,FALSE)","v":"PDRC - Monique Franca"},"34003PMF","18400","RIOSURR188292CV","A01","",""]
["34","188",null,null,"OSU/USDA RF POULTRY RESP JACKW","1021RR188293","20000","12100","62507","34003PMJ",{"$f":"VLOOKUP(TRIM(J3690),'Transactional Departments'!A:B,2,FALSE)","v":"PDRC - Mark Jackwood"},"34003PMJ","18400","ROHSURR188293CV","A01","",""]
["34","188",null,null,"OSU/USDA RF W/ 188293_FERGES0N","1021RR188294","20000","12100","62507","34003PNF",{"$f":"VLOOKUP(TRIM(J3691),'Transactional Departments'!A:B,2,FALSE)","v":"PDRC - Naola Ferguson-Noel"},"34003PNF","18400","ROHSURR188294CV","A01","",""]
["34","188",null,null,"OSU/USDA RF W/188293 __GARCIA ","1021RR188295","20000","12100","62507","34003PMG",{"$f":"VLOOKUP(TRIM(J3692),'Transactional Departments'!A:B,2,FALSE)","v":"Prdc - Mariacarmen Garcia"},"34003PMG","18400","ROHSURR188295CV","A01","",""]
["34","188",null,null,"IDEXX    RF RT-PCR PRMER JACKW","1021RR188296","20000","12100","64015","34003PMJ",{"$f":"VLOOKUP(TRIM(J3693),'Transactional Departments'!A:B,2,FALSE)","v":"PDRC - Mark Jackwood"},"34003PMJ","18400","RIDEXRR188296CV","A01","",""]
["34","188",null,null,"GACC BEEFRF BOVINE DIARR JONES","1021RR188299","20000","12100","62006","34003FLJ",{"$f":"VLOOKUP(TRIM(J3694),'Transactional Departments'!A:B,2,FALSE)","v":"Food Animal - Jones"},"34003FLJ","18400","RGABFRR188299CV","A01","",""]
["34","188",null,null,"NIH/UMD  RF TLR4 ANTAG   PEREZ","1021RR188300","20000","12100","62578","34003PDP",{"$f":"VLOOKUP(TRIM(J3695),'Transactional Departments'!A:B,2,FALSE)","v":"PDRC - Daniel Perez"},"34003PDP","18400","RUMDBRR188300CV","A01","",""]
["34","188",null,null,"USDA ARS RF VAC EFFICACY SELLE","1021RR188302","20000","12100","61004","34003PHS",{"$f":"VLOOKUP(TRIM(J3696),'Transactional Departments'!A:B,2,FALSE)","v":"PDRC - Holly Sellers"},"34003PHS","18400","RARSXRR188302CV","A01","",""]
["34","188",null,null,"GACCB    RF DYSTOCIA SIMUJONES","1021RR188303","20000","12100","62006","34003FLJ",{"$f":"VLOOKUP(TRIM(J3697),'Transactional Departments'!A:B,2,FALSE)","v":"Food Animal - Jones"},"34003FLJ","18400","RGABFRR188303CV","A01","",""]
["34","188",null,null,"ZOETIS   RF SI VIRUS     PEREZ","1021RR188308","20000","12100","64056","34003PDP",{"$f":"VLOOKUP(TRIM(J3698),'Transactional Departments'!A:B,2,FALSE)","v":"PDRC - Daniel Perez"},"34003PDP","18400","RZOETRR188308CV","A01","",""]
["34","188",null,null,"USDA ARS RF GOODS & SVCS JACKW","1021RR188309","20000","12100","61004","34003PMJ",{"$f":"VLOOKUP(TRIM(J3699),'Transactional Departments'!A:B,2,FALSE)","v":"PDRC - Mark Jackwood"},"34003PMJ","18400","RARSXRR188309CV","A01","",""]
["34","188",null,null,"USP&E    RF AUTO BACTERINMAURE","1021RR188310","20000","12100","64178","34003PJM",{"$f":"VLOOKUP(TRIM(J3700),'Transactional Departments'!A:B,2,FALSE)","v":"PDRC - John Maurer"},"34003PJM","18400","RUSPARR188310CV","A01","",""]
["34","188",null,null,"UPS&EGG  RF BRLR VACCIN  GARCI","1021RR188311","20000","12100","64178","34003PMG",{"$f":"VLOOKUP(TRIM(J3701),'Transactional Departments'!A:B,2,FALSE)","v":"Prdc - Mariacarmen Garcia"},"34003PMG","18400","RUSPARR188311CV","A01","",""]
["34","188",null,null,"USDA ARS RF SWINEFLU MECHPEREZ","1021RR188314","20000","12100","61004","34003PDP",{"$f":"VLOOKUP(TRIM(J3702),'Transactional Departments'!A:B,2,FALSE)","v":"PDRC - Daniel Perez"},"34003PDP","18400","RARSXRR188314CV","A01","",""]
["34","188",null,null,"EMORY/NIHRF W 211-522    TRIPP","1021RR188315","20000","12100","64139","34003PDP",{"$f":"VLOOKUP(TRIM(J3703),'Transactional Departments'!A:B,2,FALSE)","v":"PDRC - Daniel Perez"},"34003PDP","18400","REMORRR188315CV","A01","",""]
["34","188",null,null,"EU/NIH   RF HOST FLU A   PEREZ","1021RR188316","20000","12100","64139","34003PDP",{"$f":"VLOOKUP(TRIM(J3704),'Transactional Departments'!A:B,2,FALSE)","v":"PDRC - Daniel Perez"},"34003PDP","18400","REMORRR188316CV","A01","",""]
["34","188",null,null,"MAF      RF SHED S'ELLA  BURGE","1021RR188317","20000","12100","64383","34003FBB",{"$f":"VLOOKUP(TRIM(J3705),'Transactional Departments'!A:B,2,FALSE)","v":"Food Animal - Bergess"},"34003FBB","18400","RMOAFRR188317CV","A01","",""]
["34","188",null,null,"GACCBEEF RF MECH RESIST  CREDI","1021RR188318","20000","12100","62006","34003FBC",{"$f":"VLOOKUP(TRIM(J3706),'Transactional Departments'!A:B,2,FALSE)","v":"Food Animal - Credille"},"34003FBC","18400","RGABFRR188318CV","A01","",""]
["34","188",null,null,"GACC BEEFRF HI RISK STKR CREDI","1021RR188319","20000","12100","62006","34003FBC",{"$f":"VLOOKUP(TRIM(J3707),'Transactional Departments'!A:B,2,FALSE)","v":"Food Animal - Credille"},"34003FBC","18400","RGABFRR188319CV","A01","",""]
["34","188",null,null,"MSSM/HRSARF CEIRS H9&H7  PEREZ","1021RR188320","20000","12100","64166","34003PDP",{"$f":"VLOOKUP(TRIM(J3708),'Transactional Departments'!A:B,2,FALSE)","v":"PDRC - Daniel Perez"},"34003PDP","18400","RMSSMRR188320CV","A01","",""]
["34","188",null,null,"SYNEXIS  RF AIR SYSTEM   JORDA","1021RR188321","20000","12100","64110","34003PBJ",{"$f":"VLOOKUP(TRIM(J3709),'Transactional Departments'!A:B,2,FALSE)","v":"PDRC - Brian Jordan"},"34003PBJ","18400","RSYNXRR188321CV","A01","",""]
["34","188",null,null,"MSSM/NIH RF CEIRS OP 11B PEREZ","1021RR188322","20000","12100","64166","34003PDP",{"$f":"VLOOKUP(TRIM(J3710),'Transactional Departments'!A:B,2,FALSE)","v":"PDRC - Daniel Perez"},"34003PDP","18400","RMSSMRR188322CV","A01","",""]
["34","188",null,null,"BAYER    RF STKR CATTLE  CREDI","1021RR188323","20000","12100","64494","34003FBC",{"$f":"VLOOKUP(TRIM(J3711),'Transactional Departments'!A:B,2,FALSE)","v":"Food Animal - Credille"},"34003FBC","18400","RBHCARR188323CV","A01","",""]
["34","188",null,null,"MULTIMIN RF ADMIN MINS   PALOM","1021RR188324","20000","12100","64119","34003FRP",{"$f":"VLOOKUP(TRIM(J3712),'Transactional Departments'!A:B,2,FALSE)","v":"Food Animal - Palomares"},"34003FRP","18400","RMULTRR188324CV","A01","",""]
["34","188",null,null,"         RF ARK IBV      JORDA","1021RR188325","20000","12100","64000","3400300C",{"$f":"VLOOKUP(TRIM(J3713),'Transactional Departments'!A:B,2,FALSE)","v":"Population Health Conversion"},"3400300C","18003","SXXXXRR188325CV","A01","",""]
["34","188",null,null,"USP&E    RF LITTER QUAL  LOGUE","1021RR188329","20000","12100","64178","3400300C",{"$f":"VLOOKUP(TRIM(J3714),'Transactional Departments'!A:B,2,FALSE)","v":"Population Health Conversion"},"3400300C","18400","RUSPARR188329CV","A01","",""]
["34","188",null,null,"MERCK    RF VACCINE DILU JORDA","1021RR188335","20000","12100","64006","3400300C",{"$f":"VLOOKUP(TRIM(J3715),'Transactional Departments'!A:B,2,FALSE)","v":"Population Health Conversion"},"3400300C","18400","RMERKRR188335CV","A01","",""]
["34","188",null,null,"OSU/USDA INFO VIDEO      JORDA","1031RE188312","20000","13100","62507","34003PBJ",{"$f":"VLOOKUP(TRIM(J3716),'Transactional Departments'!A:B,2,FALSE)","v":"PDRC - Brian Jordan"},"34003PBJ","18003","SOHSURE188312CV","A01","",""]
["34","208",null,null,"MERIAL   C SHARE RR208303DICKE","1021RR208007","20000","12100","64179","34001210",{"$f":"VLOOKUP(TRIM(J3717),'Transactional Departments'!A:B,2,FALSE)","v":"CVM - H. Dickerson"},"34001210","18003","SSCSRRR208007CV","A01","",""]
["34","208",null,null,"         RF PHD PROGRAM  DICKE","1021RR208274","20000","12100","64024","34001210",{"$f":"VLOOKUP(TRIM(J3718),'Transactional Departments'!A:B,2,FALSE)","v":"CVM - H. Dickerson"},"34001210","18003","SMRILRR208274CV","A01","",""]
["34","208",null,null,"USDA NIFAFY16 ANIMAL HLTHDICKE","1021RR208300","20000","12100","61006","34001210",{"$f":"VLOOKUP(TRIM(J3719),'Transactional Departments'!A:B,2,FALSE)","v":"CVM - H. Dickerson"},"34001210","18003","SNIFARR208300CV","A01","",""]
["34","208",null,null,"NIH      RF VET SCHOLAR  SANCH","1021RR208302","20000","12100","61018","34007167",{"$f":"VLOOKUP(TRIM(J3720),'Transactional Departments'!A:B,2,FALSE)","v":"Athens D-Lab - Sanchez"},"34007167","18400","RNIHXRR208302CV","A01","",""]
["34","208",null,null,"MERIAL   RF VET SCHOLARS DICKE","1021RR208303","20000","12100","64024","34001210",{"$f":"VLOOKUP(TRIM(J3721),'Transactional Departments'!A:B,2,FALSE)","v":"CVM - H. Dickerson"},"34001210","18400","RMRILRR208303CV","A01","",""]
["34","208",null,null,"USDA NIFAANML HLTH FY 17 DICKE","1021RR208306","20000","12100","61006","3400100C",{"$f":"VLOOKUP(TRIM(J3722),'Transactional Departments'!A:B,2,FALSE)","v":"Vet Med Dean's Office - Conv."},"3400100C","18003","SNIFARR208306CV","A01","",""]
["34","209",null,null,"VIRG/NIH RF ALZHEIMERS   GUO  ","1021RR209023","20000","12100","62552","34004FTG",{"$f":"VLOOKUP(TRIM(J3723),'Transactional Departments'!A:B,2,FALSE)","v":"VBDI - T. Guo"},"34004FTG","18400","RVACWRR209023CV","A01","",""]
["34","209",null,null,"USDOD    RF W/RR212132   UHL  ","1021RR209024","20000","12100","61012","34007EWU",{"$f":"VLOOKUP(TRIM(J3724),'Transactional Departments'!A:B,2,FALSE)","v":"Pathology - B. Uhl"},"34007EWU","18400","RUSDDRR209024CV","A01","",""]
["34","209",null,null,"DFAS     RF PIGEON HATCH GOGAL","1021RR209025","20000","12100","61012","34004FRG",{"$f":"VLOOKUP(TRIM(J3725),'Transactional Departments'!A:B,2,FALSE)","v":"VBDI - R. Gogal"},"34004FRG","18400","RUSDDRR209025CV","A01","",""]
["34","209",null,null,"NIH      RF RR182-434    KRAUS","1021RR209104","20000","12100","61018","34004FTK",{"$f":"VLOOKUP(TRIM(J3726),'Transactional Departments'!A:B,2,FALSE)","v":"VBDI - T. Krunkosky"},"34004FTK","18400","RNIHXRR209104CV","A01","",""]
["34","209",null,null,"NIH      RF DIABETES MICEGUO  ","1021RR209107","20000","12100","61018","34004FTG",{"$f":"VLOOKUP(TRIM(J3727),'Transactional Departments'!A:B,2,FALSE)","v":"VBDI - T. Guo"},"34004FTG","18400","RNIHXRR209107CV","A01","",""]
["34","209",null,null,"MEADJOHN RF LACTOBACIL   GOGAL","1021RR209109","20000","12100","64000","34004FRG",{"$f":"VLOOKUP(TRIM(J3728),'Transactional Departments'!A:B,2,FALSE)","v":"VBDI - R. Gogal"},"34004FRG","18400","RXXXXRR209109CV","A01","",""]
["34","209",null,null,"NIH      RF TASTE CODE   CZAJA","1021RR209110","20000","12100","61018","34004FKC",{"$f":"VLOOKUP(TRIM(J3729),'Transactional Departments'!A:B,2,FALSE)","v":"VBDI - K. Czaja"},"34004FKC","18400","RNIHXRR209110CV","A01","",""]
["34","209",null,null,"ACVR     RF TRIPLE PHASE SECRE","1021RR209111","20000","12100","64239","34004FSS",{"$f":"VLOOKUP(TRIM(J3730),'Transactional Departments'!A:B,2,FALSE)","v":"VBDI - S. Secrest"},"34004FSS","18400","RACVRRR209111CV","A01","",""]
["34","209",null,null,"MAF      RF MONOCYTE     HOGAN","1021RR209112","20000","12100","64383","34004FJH",{"$f":"VLOOKUP(TRIM(J3731),'Transactional Departments'!A:B,2,FALSE)","v":"VBDI - J. Hogan"},"34004FJH","18400","RMOAFRR209112CV","A01","",""]
["34","209",null,null,"USDA NIFARF W/294-343    KONG ","1021RR209114","20000","12100","61006","34004FTG",{"$f":"VLOOKUP(TRIM(J3732),'Transactional Departments'!A:B,2,FALSE)","v":"VBDI - T. Guo"},"34004FTG","18400","RNIFARR209114CV","A01","",""]
["34","209",null,null,"NIH/HHS  RF BRK VAC HOGANHE   ","1021RR209116","20000","12100","61018","34004FJH",{"$f":"VLOOKUP(TRIM(J3733),'Transactional Departments'!A:B,2,FALSE)","v":"VBDI - J. Hogan"},"34004FJH","18400","RNIHXRR209116CV","A01","",""]
["34","209",null,null,"NIH      RF W 211-535 __HOGAN ","1021RR209117","20000","12100","61018","34004FJH",{"$f":"VLOOKUP(TRIM(J3734),'Transactional Departments'!A:B,2,FALSE)","v":"VBDI - J. Hogan"},"34004FJH","18400","RNIHXRR209117CV","A01","",""]
["34","209",null,null,"HGG/NIH  RF BRAIN RES    GUO  ","1021RR209118","20000","12100","64117","34004FTG",{"$f":"VLOOKUP(TRIM(J3735),'Transactional Departments'!A:B,2,FALSE)","v":"VBDI - T. Guo"},"34004FTG","18400","RHGGRRR209118CV","A01","",""]
["34","209",null,null,"         RF W/ RR211428       ","1021RR209293","20000","12100","61012","34004FJH",{"$f":"VLOOKUP(TRIM(J3736),'Transactional Departments'!A:B,2,FALSE)","v":"VBDI - J. Hogan"},"34004FJH","18003","SUSDDRR209293CV","A01","",""]
["34","209",null,null,"JANSSEN  RF NHBE STDY    KRUNK","1021RR209294","20000","12100","64013","34004FTK",{"$f":"VLOOKUP(TRIM(J3737),'Transactional Departments'!A:B,2,FALSE)","v":"VBDI - T. Krunkosky"},"34004FTK","18400","RJANSRR209294CV","A01","",""]
["34","210",null,null,"         MADDIE EXTERNSHPNORTH","1011RH210206","20000","11100","64413","34005NOR",{"$f":"VLOOKUP(TRIM(J3738),'Transactional Departments'!A:B,2,FALSE)","v":"SAMS - Northrup"},"34005NOR","18003","SMFPRRH210206CV","A01","",""]
["34","210",null,null,"C&G      POSTDOC SCHOLAR JOHNS","1011RH210246","20000","11100","64467","34005JOH",{"$f":"VLOOKUP(TRIM(J3739),'Transactional Departments'!A:B,2,FALSE)","v":"SAMS - Johnston"},"34005JOH","18003","SBOIIRH210246CV","A01","",""]
["34","210",null,null,"C&G      SCHOLAR         JOHNS","1011RH210253","20000","11100","64467","34005JOH",{"$f":"VLOOKUP(TRIM(J3740),'Transactional Departments'!A:B,2,FALSE)","v":"SAMS - Johnston"},"34005JOH","18003","SBOIIRH210253CV","A01","",""]
["34","210",null,null,"         RF JOINT ZOO    RITCH","1021RR210090","20000","12100","64312","34005RIT",{"$f":"VLOOKUP(TRIM(J3741),'Transactional Departments'!A:B,2,FALSE)","v":"SAMS - Ritchie"},"34005RIT","18003","SVARNRR210090CV","A01","",""]
["34","210",null,null,"         RF CANINE OHE   RADLI","1021RR210198","20000","12100","64000","3400500C",{"$f":"VLOOKUP(TRIM(J3742),'Transactional Departments'!A:B,2,FALSE)","v":"SAMS - Conversion"},"3400500C","18003","SCOVIRR210198CV","A01","",""]
["34","210",null,null,"         RF EVAL CGMS    KOENI","1021RR210201","20000","12100","64000","34005KOE",{"$f":"VLOOKUP(TRIM(J3743),'Transactional Departments'!A:B,2,FALSE)","v":"SAMS - Koenig"},"34005KOE","18003","SINIMRR210201CV","A01","",""]
["34","210",null,null,"         COTCO18         SABA ","1021RR210203","20000","12100","64000","34005SAB",{"$f":"VLOOKUP(TRIM(J3744),'Transactional Departments'!A:B,2,FALSE)","v":"SAMS - Saba"},"34005SAB","18003","SSAVLRR210203CV","A01","",""]
["34","210",null,null,"         RF AMZN PARROTS DIVER","1021RR210212","20000","12100","64000","34005DIV",{"$f":"VLOOKUP(TRIM(J3745),'Transactional Departments'!A:B,2,FALSE)","v":"SAMS - Divers"},"34005DIV","18003","SANAVRR210212CV","A01","",""]
["34","210",null,null,"         RF CANINE       PLATT","1021RR210215","20000","12100","64273","34005PLA",{"$f":"VLOOKUP(TRIM(J3746),'Transactional Departments'!A:B,2,FALSE)","v":"SAMS - Platt"},"34005PLA","18003","SKENLRR210215CV","A01","",""]
["34","210",null,null,"         RF ALVAC IL-2   SABA ","1021RR210217","20000","12100","64024","34005SAB",{"$f":"VLOOKUP(TRIM(J3747),'Transactional Departments'!A:B,2,FALSE)","v":"SAMS - Saba"},"34005SAB","18003","SMRILRR210217CV","A01","",""]
["34","210",null,null,"         RF RIVAROXABAN  RAPOP","1021RR210218","20000","12100","64383","34005RAP",{"$f":"VLOOKUP(TRIM(J3748),'Transactional Departments'!A:B,2,FALSE)","v":"SAMS - Rapoport"},"34005RAP","18003","SMOAFRR210218CV","A01","",""]
["34","210",null,null,"         RF K9 EPILEPSY  PLATT","1021RR210226","20000","12100","64057","34005PLA",{"$f":"VLOOKUP(TRIM(J3749),'Transactional Departments'!A:B,2,FALSE)","v":"SAMS - Platt"},"34005PLA","18003","SELECRR210226CV","A01","",""]
["34","210",null,null,"         RF PROZINC INSU WARD ","1021RR210227","20000","12100","64467","34005WAR",{"$f":"VLOOKUP(TRIM(J3750),'Transactional Departments'!A:B,2,FALSE)","v":"SAMS - Ward"},"34005WAR","18003","SBOIIRR210227CV","A01","",""]
["34","210",null,null,"EAH      RF RBX FELINE   SCHMI","1021RR210230","20000","12100","64030","34005SCH",{"$f":"VLOOKUP(TRIM(J3751),'Transactional Departments'!A:B,2,FALSE)","v":"SAMS - Schmiedt"},"34005SCH","18400","RELAHRR210230CV","A01","",""]
["34","210",null,null,"         RF CLINICAL TRL SABA ","1021RR210232","20000","12100","64207","34005SAB",{"$f":"VLOOKUP(TRIM(J3752),'Transactional Departments'!A:B,2,FALSE)","v":"SAMS - Saba"},"34005SAB","18003","SANONRR210232CV","A01","",""]
["34","210",null,null,"MA       RF PLASMA THERA FRANK","1021RR210235","20000","12100","64000","34005FRA",{"$f":"VLOOKUP(TRIM(J3753),'Transactional Departments'!A:B,2,FALSE)","v":"SAMS - S. Franklin"},"34005FRA","18400","RMAICRR210235CV","A01","",""]
["34","210",null,null,"AKC      RF ELBOW DYSPLA FRANK","1021RR210236","20000","12100","64273","34005FRA",{"$f":"VLOOKUP(TRIM(J3754),'Transactional Departments'!A:B,2,FALSE)","v":"SAMS - S. Franklin"},"34005FRA","18400","RKENLRR210236CV","A01","",""]
["34","210",null,null,"MAF      RF TRAMADOL     BUDSB","1021RR210237","20000","12100","64383","34005BUD",{"$f":"VLOOKUP(TRIM(J3755),'Transactional Departments'!A:B,2,FALSE)","v":"SAMS - Budsberg"},"34005BUD","18400","RMOAFRR210237CV","A01","",""]
["34","210",null,null,"MAF      RF TELMISARTAN  COLEM","1021RR210238","20000","12100","64383","34005COL",{"$f":"VLOOKUP(TRIM(J3756),'Transactional Departments'!A:B,2,FALSE)","v":"SAMS - Coleman"},"34005COL","18400","RMOAFRR210238CV","A01","",""]
["34","210",null,null,"AKC      RF ALDOSTERONE  COLEM","1021RR210239","20000","12100","64273","34005COL",{"$f":"VLOOKUP(TRIM(J3757),'Transactional Departments'!A:B,2,FALSE)","v":"SAMS - Coleman"},"34005COL","18400","RKENLRR210239CV","A01","",""]
["34","210",null,null,"ZA       RF GREAT APE    MCMAN","1021RR210240","20000","12100","64000","3400500C",{"$f":"VLOOKUP(TRIM(J3758),'Transactional Departments'!A:B,2,FALSE)","v":"SAMS - Conversion"},"3400500C","18400","RAATZRR210240CV","A01","",""]
["34","210",null,null,"         RF RENAL FIBROS SCHMI","1021RR210242","20000","12100","64030","34005SCH",{"$f":"VLOOKUP(TRIM(J3759),'Transactional Departments'!A:B,2,FALSE)","v":"SAMS - Schmiedt"},"34005SCH","18003","SELAHRR210242CV","A01","",""]
["34","210",null,null,"         TAIIOVEATM      SABA ","1021RR210243","20000","12100","64000","34005SAB",{"$f":"VLOOKUP(TRIM(J3760),'Transactional Departments'!A:B,2,FALSE)","v":"SAMS - Saba"},"34005SAB","18003","SXXXXRR210243CV","A01","",""]
["34","210",null,null,"MAF      RF FELINE AT    BRAIN","1021RR210244","20000","12100","64383","34005BRA",{"$f":"VLOOKUP(TRIM(J3761),'Transactional Departments'!A:B,2,FALSE)","v":"SAMS - Brainard"},"34005BRA","18400","RMOAFRR210244CV","A01","",""]
["34","210",null,null,"MAF      RF TOR INHIBIT  SABA ","1021RR210247","20000","12100","64383","34005SAB",{"$f":"VLOOKUP(TRIM(J3762),'Transactional Departments'!A:B,2,FALSE)","v":"SAMS - Saba"},"34005SAB","18400","RMOAFRR210247CV","A01","",""]
["34","210",null,null,"AO FNDN  RF HEALING DOGS FRANK","1021RR210248","20000","12100","64518","34005FRA",{"$f":"VLOOKUP(TRIM(J3763),'Transactional Departments'!A:B,2,FALSE)","v":"SAMS - S. Franklin"},"34005FRA","18400","RAOFDRR210248CV","A01","",""]
["34","210",null,null,"MORRIS   RF OSTEOSARCOM  SABA ","1021RR210249","20000","12100","64383","34005SAB",{"$f":"VLOOKUP(TRIM(J3764),'Transactional Departments'!A:B,2,FALSE)","v":"SAMS - Saba"},"34005SAB","18400","RMOAFRR210249CV","A01","",""]
["34","210",null,null,"GIT      RF CANINE BRAIN PLATT","1021RR210250","20000","12100","64279","34005PLA",{"$f":"VLOOKUP(TRIM(J3765),'Transactional Departments'!A:B,2,FALSE)","v":"SAMS - Platt"},"34005PLA","18400","RGTRCRR210250CV","A01","",""]
["34","210",null,null,"MERIAL   RF INTERLEUKEN-2SABA ","1021RR210251","20000","12100","64024","34005SAB",{"$f":"VLOOKUP(TRIM(J3766),'Transactional Departments'!A:B,2,FALSE)","v":"SAMS - Saba"},"34005SAB","18400","RMRILRR210251CV","A01","",""]
["34","210",null,null,"ACVE&CC  RF PURE ALBUMIN KOENI","1021RR210254","20000","12100","64130","34005KOE",{"$f":"VLOOKUP(TRIM(J3767),'Transactional Departments'!A:B,2,FALSE)","v":"SAMS - Koenig"},"34005KOE","18400","RACVERR210254CV","A01","",""]
["34","210",null,null,"VECCF    RF IV VINCRIST  BRAIN","1021RR210255","20000","12100","64415","34005BRA",{"$f":"VLOOKUP(TRIM(J3768),'Transactional Departments'!A:B,2,FALSE)","v":"SAMS - Brainard"},"34005BRA","18400","RVECCRR210255CV","A01","",""]
["34","210",null,null,"MERIAL   RF VACCINE EFFICSABA ","1021RR210256","20000","12100","64024","34005SAB",{"$f":"VLOOKUP(TRIM(J3769),'Transactional Departments'!A:B,2,FALSE)","v":"SAMS - Saba"},"34005SAB","18400","RMRILRR210256CV","A01","",""]
["34","210",null,null,"MERIAL   RF ATOPIC DERM  BANOV","1021RR210257","20000","12100","64024","34005BAN",{"$f":"VLOOKUP(TRIM(J3770),'Transactional Departments'!A:B,2,FALSE)","v":"SAMS - Banovic"},"34005BAN","18400","RMRILRR210257CV","A01","",""]
["34","210",null,null,"EMORY/NSFRF CANID BRAIN  KENT ","1021RR210258","20000","12100","64139","34005KEN",{"$f":"VLOOKUP(TRIM(J3771),'Transactional Departments'!A:B,2,FALSE)","v":"SAMS - Kent"},"34005KEN","18400","REMORRR210258CV","A01","",""]
["34","210",null,null,"ARTHREXP RF STEM CELL    FRANK","1021RR210259","20000","12100","64051","34005FRA",{"$f":"VLOOKUP(TRIM(J3772),'Transactional Departments'!A:B,2,FALSE)","v":"SAMS - S. Franklin"},"34005FRA","18400","RARTHRR210259CV","A01","",""]
["34","210",null,null,"MERCK    RF EPV 4 ANTAG  BUDSB","1021RR210260","20000","12100","64207","34005BUD",{"$f":"VLOOKUP(TRIM(J3773),'Transactional Departments'!A:B,2,FALSE)","v":"SAMS - Budsberg"},"34005BUD","18400","RANONRR210260CV","A01","",""]
["34","210",null,null,"MAH      RF MK-0674 FX   BUDSB","1021RR210261","20000","12100","64006","34005BUD",{"$f":"VLOOKUP(TRIM(J3774),'Transactional Departments'!A:B,2,FALSE)","v":"SAMS - Budsberg"},"34005BUD","18400","RMERKRR210261CV","A01","",""]
["34","210",null,null,"ARA/ARMY RF DOG VESTS    BUDSB","1021RR210262","20000","12100","64104","34005BUD",{"$f":"VLOOKUP(TRIM(J3775),'Transactional Departments'!A:B,2,FALSE)","v":"SAMS - Budsberg"},"34005BUD","18400","RAPRIRR210262CV","A01","",""]
["34","210",null,null,"CTC      RF SCI WRITER   RITCH","1021RR210263","20000","12100","64512","34005RIT",{"$f":"VLOOKUP(TRIM(J3776),'Transactional Departments'!A:B,2,FALSE)","v":"SAMS - Ritchie"},"34005RIT","18400","RTURTRR210263CV","A01","",""]
["34","210",null,null,"ABAXIS   RF PHENOBARB    BRAIN","1021RR210264","20000","12100","64043","34005BRA",{"$f":"VLOOKUP(TRIM(J3777),'Transactional Departments'!A:B,2,FALSE)","v":"SAMS - Brainard"},"34005BRA","18400","RABXIRR210264CV","A01","",""]
["34","210",null,null,"MERIAL   RF IG-E ATOPY   BANOV","1021RR210265","20000","12100","64024","34005BAN",{"$f":"VLOOKUP(TRIM(J3778),'Transactional Departments'!A:B,2,FALSE)","v":"SAMS - Banovic"},"34005BAN","18400","RMRILRR210265CV","A01","",""]
["34","210",null,null,"MERIAL RFRF IL31 MODEL   BANOV","1021RR210266","20000","12100","64024","34005BAN",{"$f":"VLOOKUP(TRIM(J3779),'Transactional Departments'!A:B,2,FALSE)","v":"SAMS - Banovic"},"34005BAN","18400","RMRILRR210266CV","A01","",""]
["34","210",null,null,"MERCK    RF MOD RR210260      ","1021RR210267","20000","12100","64207","34005BUD",{"$f":"VLOOKUP(TRIM(J3780),'Transactional Departments'!A:B,2,FALSE)","v":"SAMS - Budsberg"},"34005BUD","18400","RANONRR210267CV","A01","",""]
["34","210",null,null,"CARGILL  RF CHLAMYDIA    RITCH","1021RR210268","20000","12100","64011","34005RIT",{"$f":"VLOOKUP(TRIM(J3781),'Transactional Departments'!A:B,2,FALSE)","v":"SAMS - Ritchie"},"34005RIT","18400","RCARGRR210268CV","A01","",""]
["34","210",null,null,"ACVO-VAF RF VISUAL AIDS  DIEHL","1021RR210269","20000","12100","64446","34005DIE",{"$f":"VLOOKUP(TRIM(J3782),'Transactional Departments'!A:B,2,FALSE)","v":"SAMS - Diehl"},"34005DIE","18400","RACVORR210269CV","A01","",""]
["34","210",null,null,"GIT      RF CANINE BRAIN PLATT","1021RR210271","20000","12100","64279","34005PLA",{"$f":"VLOOKUP(TRIM(J3783),'Transactional Departments'!A:B,2,FALSE)","v":"SAMS - Platt"},"34005PLA","18400","RGTRCRR210271CV","A01","",""]
["34","210",null,null,"MERIAL   RF IGE MODEL    BANOV","1021RR210272","20000","12100","64024","34005BAN",{"$f":"VLOOKUP(TRIM(J3784),'Transactional Departments'!A:B,2,FALSE)","v":"SAMS - Banovic"},"34005BAN","18400","RMRILRR210272CV","A01","",""]
["34","210",null,null,"BODEVET  RF STABLEPLATE  BRAIN","1021RR210273","20000","12100","64115","34005BRA",{"$f":"VLOOKUP(TRIM(J3785),'Transactional Departments'!A:B,2,FALSE)","v":"SAMS - Brainard"},"34005BRA","18400","RBODERR210273CV","A01","",""]
["34","210",null,null,"CANWI    RF RAGES        BARTG","1021RR210274","20000","12100","64263","34005JOE",{"$f":"VLOOKUP(TRIM(J3786),'Transactional Departments'!A:B,2,FALSE)","v":"SAMS - Bartges"},"34005JOE","18400","RCANWRR210274CV","A01","",""]
["34","210",null,null,"RWDC     RF BIODEG POLY  RITCH","1021RR210275","20000","12100","64207","34005RIT",{"$f":"VLOOKUP(TRIM(J3787),'Transactional Departments'!A:B,2,FALSE)","v":"SAMS - Ritchie"},"34005RIT","18400","RANONRR210275CV","A01","",""]
["34","210",null,null,"AQHA     RF EQUINE TEARS MYRNA","1021RR210276","20000","12100","64449","34005MYR",{"$f":"VLOOKUP(TRIM(J3788),'Transactional Departments'!A:B,2,FALSE)","v":"SAMS - Myrna"},"34005MYR","18400","RAQRTRR210276CV","A01","",""]
["34","210",null,null,"ELANCO   RF ISCHEMIA     SCHMI","1021RR210277","20000","12100","64030","34005SCH",{"$f":"VLOOKUP(TRIM(J3789),'Transactional Departments'!A:B,2,FALSE)","v":"SAMS - Schmiedt"},"34005SCH","18400","RELAHRR210277CV","A01","",""]
["34","210",null,null,"ELANCO   RF RENAL TISSUE SCHMI","1021RR210278","20000","12100","64030","34005SCH",{"$f":"VLOOKUP(TRIM(J3790),'Transactional Departments'!A:B,2,FALSE)","v":"SAMS - Schmiedt"},"34005SCH","18400","RELAHRR210278CV","A01","",""]
["34","210",null,null,"ARTHREX  RF RE THROMBINATFRANK","1021RR210280","20000","12100","64051","34005FRA",{"$f":"VLOOKUP(TRIM(J3791),'Transactional Departments'!A:B,2,FALSE)","v":"SAMS - S. Franklin"},"34005FRA","18400","RARTHRR210280CV","A01","",""]
["34","210",null,null,"AKC-CHF  RF LIDOCAINE    WALLA","1021RR210281","20000","12100","64000","3400500C",{"$f":"VLOOKUP(TRIM(J3792),'Transactional Departments'!A:B,2,FALSE)","v":"SAMS - Conversion"},"3400500C","18400","RXXXXRR210281CV","A01","",""]
["34","210",null,null,"MERIAL   RF EVAL SURV'L  SABA ","1021RR210283","20000","12100","64024","3400500C",{"$f":"VLOOKUP(TRIM(J3793),'Transactional Departments'!A:B,2,FALSE)","v":"SAMS - Conversion"},"3400500C","18400","RMRILRR210283CV","A01","",""]
["34","211",null,null,"OSU      PARASITOLOGY    KAPLA","1011RH211456","20000","11100","64430","34006360",{"$f":"VLOOKUP(TRIM(J3794),'Transactional Departments'!A:B,2,FALSE)","v":"IDIS - Kaplan"},"34006360","18003","SOKSFRH211456CV","A01","",""]
["34","211",null,null,"         RF INVITRO MOD SKAPLA","1021RR211133","20000","12100","64000","34006360",{"$f":"VLOOKUP(TRIM(J3795),'Transactional Departments'!A:B,2,FALSE)","v":"IDIS - Kaplan"},"34006360","18003","SXXXXRR211133CV","A01","",""]
["34","211",null,null,"GSU/NIAIDRF PARAMYXOVIRUSHE   ","1021RR211134","20000","12100","62022","34006210",{"$f":"VLOOKUP(TRIM(J3796),'Transactional Departments'!A:B,2,FALSE)","v":"IDIS - He"},"34006210","18400","RGASURR211134CV","A01","",""]
["34","211",null,null,"NIH      RF BRUGIA ADULT KAPLA","1021RR211335","20000","12100","61018","34006360",{"$f":"VLOOKUP(TRIM(J3797),'Transactional Departments'!A:B,2,FALSE)","v":"IDIS - Kaplan"},"34006360","18400","RNIHXRR211335CV","A01","",""]
["34","211",null,null,"NIH      RF MODEL INFECT MOORH","1021RR211339","20000","12100","61018","34006360",{"$f":"VLOOKUP(TRIM(J3798),'Transactional Departments'!A:B,2,FALSE)","v":"IDIS - Kaplan"},"34006360","18400","RNIHXRR211339CV","A01","",""]
["34","211",null,null,"SFLOR/NIHRF ANTI RSV THR HE   ","1021RR211351","20000","12100","62542","34006210",{"$f":"VLOOKUP(TRIM(J3799),'Transactional Departments'!A:B,2,FALSE)","v":"IDIS - He"},"34006210","18400","RUSFXRR211351CV","A01","",""]
["34","211",null,null,"         RF NANOPHOTONIC TRIPP","1021RR211353","20000","12100","61014","34006330",{"$f":"VLOOKUP(TRIM(J3800),'Transactional Departments'!A:B,2,FALSE)","v":"IDIS - Tripp"},"34006330","18003","SUSARRR211353CV","A01","",""]
["34","211",null,null,"GAHE/NIH RF IMMN MECH VR TRIPP","1021RR211363","20000","12100","62000","34006330",{"$f":"VLOOKUP(TRIM(J3801),'Transactional Departments'!A:B,2,FALSE)","v":"IDIS - Tripp"},"34006330","18400","RXXXXRR211363CV","A01","",""]
["34","211",null,null,"         RF PAH-MAF ZIMMEPETER","1021RR211364","20000","12100","64383","34006280",{"$f":"VLOOKUP(TRIM(J3802),'Transactional Departments'!A:B,2,FALSE)","v":"IDIS - Peterson"},"34006280","18003","SMOAFRR211364CV","A01","",""]
["34","211",null,null,"NIH      RF MOD INF FY12 MOORH","1021RR211365","20000","12100","61018","34006250",{"$f":"VLOOKUP(TRIM(J3803),'Transactional Departments'!A:B,2,FALSE)","v":"IDIS - Moorhead"},"34006250","18400","RNIHXRR211365CV","A01","",""]
["34","211",null,null,"NIH      RF OPT 7 W211365MOORH","1021RR211366","20000","12100","61018","34006250",{"$f":"VLOOKUP(TRIM(J3804),'Transactional Departments'!A:B,2,FALSE)","v":"IDIS - Moorhead"},"34006250","18400","RNIHXRR211366CV","A01","",""]
["34","211",null,null,"         RF LOCAL GLULAR WOLST","1021RR211373","20000","12100","64024","34006350",{"$f":"VLOOKUP(TRIM(J3805),'Transactional Departments'!A:B,2,FALSE)","v":"IDIS - Wolstenhome"},"34006350","18003","SMRILRR211373CV","A01","",""]
["34","211",null,null,"RF       RF INNATE IMMUNIHONDA","1021RR211379","20000","12100","64439","34006320",{"$f":"VLOOKUP(TRIM(J3806),'Transactional Departments'!A:B,2,FALSE)","v":"IDIS - Hondalus"},"34006320","18400","RGJCRRR211379CV","A01","",""]
["34","211",null,null,"         C/S RR211332    HARN ","1021RR211383","20000","12100","64179","34006240",{"$f":"VLOOKUP(TRIM(J3807),'Transactional Departments'!A:B,2,FALSE)","v":"IDIS - Harn"},"34006240","18003","SSCSRRR211383CV","A01","",""]
["34","211",null,null,"ACTI/NIH RF RSV VACCINE  TRIPP","1021RR211386","20000","12100","64048","34006330",{"$f":"VLOOKUP(TRIM(J3808),'Transactional Departments'!A:B,2,FALSE)","v":"IDIS - Tripp"},"34006330","18400","RACTIRR211386CV","A01","",""]
["34","211",null,null,"         RF MELIOIDOSIS  LAFON","1021RR211388","20000","12100","61012","34006340",{"$f":"VLOOKUP(TRIM(J3809),'Transactional Departments'!A:B,2,FALSE)","v":"IDIS - Lafontaine"},"34006340","18003","SUSDDRR211388CV","A01","",""]
["34","211",null,null,"NIH/DHHS RF P&D ACAN VITEMOORH","1021RR211390","20000","12100","61018","34006250",{"$f":"VLOOKUP(TRIM(J3810),'Transactional Departments'!A:B,2,FALSE)","v":"IDIS - Moorhead"},"34006250","18400","RNIHXRR211390CV","A01","",""]
["34","211",null,null,"KTI      RF KPT-335      TRIPP","1021RR211391","20000","12100","64052","34006330",{"$f":"VLOOKUP(TRIM(J3811),'Transactional Departments'!A:B,2,FALSE)","v":"IDIS - Tripp"},"34006330","18400","RKARYRR211391CV","A01","",""]
["34","211",null,null,"         RF IMVC SPPLMNT TRIPP","1021RR211397","20000","12100","62000","34006330",{"$f":"VLOOKUP(TRIM(J3812),'Transactional Departments'!A:B,2,FALSE)","v":"IDIS - Tripp"},"34006330","18003","SXXXXRR211397CV","A01","",""]
["34","211",null,null,"EU/ONR   RF MELIOIDOSIS  LAFON","1021RR211398","20000","12100","64000","34006340",{"$f":"VLOOKUP(TRIM(J3813),'Transactional Departments'!A:B,2,FALSE)","v":"IDIS - Lafontaine"},"34006340","18400","RUNEXRR211398CV","A01","",""]
["34","211",null,null,"NIH/DHHS RF P&D ACAN VITEMOORH","1021RR211406","20000","12100","61018","34006250",{"$f":"VLOOKUP(TRIM(J3814),'Transactional Departments'!A:B,2,FALSE)","v":"IDIS - Moorhead"},"34006250","18400","RNIHXRR211406CV","A01","",""]
["34","211",null,null,"NIH      RF MOD INF FY13 MOORH","1021RR211408","20000","12100","61018","34006250",{"$f":"VLOOKUP(TRIM(J3815),'Transactional Departments'!A:B,2,FALSE)","v":"IDIS - Moorhead"},"34006250","18400","RNIHXRR211408CV","A01","",""]
["34","211",null,null,"USDA     RF B & L LYMPHO DICKE","1021RR211409","20000","12100","61002","34001210",{"$f":"VLOOKUP(TRIM(J3816),'Transactional Departments'!A:B,2,FALSE)","v":"CVM - H. Dickerson"},"34001210","18400","RUSDARR211409CV","A01","",""]
["34","211",null,null,"         RF ROTAVIRUS II TRIPP","1021RR211411","20000","12100","64448","34006330",{"$f":"VLOOKUP(TRIM(J3817),'Transactional Departments'!A:B,2,FALSE)","v":"IDIS - Tripp"},"34006330","18003","SGATERR211411CV","A01","",""]
["34","211",null,null,"         RR211-411 PI    TRIPP","1021RR211412","20000","12100","64448","34006330",{"$f":"VLOOKUP(TRIM(J3818),'Transactional Departments'!A:B,2,FALSE)","v":"IDIS - Tripp"},"34006330","18003","SGATERR211412CV","A01","",""]
["34","211",null,null,"NIH      RF PB TRNG IDR  MOORE","1021RR211418","20000","12100","61018","34006270",{"$f":"VLOOKUP(TRIM(J3819),'Transactional Departments'!A:B,2,FALSE)","v":"IDIS - Moore"},"34006270","18400","RNIHXRR211418CV","A01","",""]
["34","211",null,null,"NIH      RF PS W211-418__MOORE","1021RR211420","20000","12100","61018","34006270",{"$f":"VLOOKUP(TRIM(J3820),'Transactional Departments'!A:B,2,FALSE)","v":"IDIS - Moore"},"34006270","18400","RNIHXRR211420CV","A01","",""]
["34","211",null,null,"EU/NIH   RF CEIRS        TRIPP","1021RR211421","20000","12100","64139","34006330",{"$f":"VLOOKUP(TRIM(J3821),'Transactional Departments'!A:B,2,FALSE)","v":"IDIS - Tripp"},"34006330","18400","REMORRR211421CV","A01","",""]
["34","211",null,null,"EU/ONR   RF MELIOIDOSIS  LAFON","1021RR211422","20000","12100","64000","34006340",{"$f":"VLOOKUP(TRIM(J3822),'Transactional Departments'!A:B,2,FALSE)","v":"IDIS - Lafontaine"},"34006340","18400","RUNEXRR211422CV","A01","",""]
["34","211",null,null,"EU/NIH   RF PIV5 PRIMING HE   ","1021RR211424","20000","12100","64139","34006210",{"$f":"VLOOKUP(TRIM(J3823),'Transactional Departments'!A:B,2,FALSE)","v":"IDIS - He"},"34006210","18400","REMORRR211424CV","A01","",""]
["34","211",null,null,"         RF IN VIVO      KAPLA","1021RR211425","20000","12100","64024","34006360",{"$f":"VLOOKUP(TRIM(J3824),'Transactional Departments'!A:B,2,FALSE)","v":"IDIS - Kaplan"},"34006360","18003","SMRILRR211425CV","A01","",""]
["34","211",null,null,"NIH      RF IVERMECTIN   WOLST","1021RR211427","20000","12100","61018","34006350",{"$f":"VLOOKUP(TRIM(J3825),'Transactional Departments'!A:B,2,FALSE)","v":"IDIS - Wolstenhome"},"34006350","18400","RNIHXRR211427CV","A01","",""]
["34","211",null,null,"NIH      RF MOD INF FY15 MOORH","1021RR211430","20000","12100","61018","34006250",{"$f":"VLOOKUP(TRIM(J3826),'Transactional Departments'!A:B,2,FALSE)","v":"IDIS - Moorhead"},"34006250","18400","RNIHXRR211430CV","A01","",""]
["34","211",null,null,"EU/NIH   RF NOVEL INFLU  TOMPK","1021RR211432","20000","12100","64139","340061MT",{"$f":"VLOOKUP(TRIM(J3827),'Transactional Departments'!A:B,2,FALSE)","v":"CVI - Mark Tompkins"},"340061MT","18400","REMORRR211432CV","A01","",""]
["34","211",null,null,"BMGF     MAMMALIAN CELL  TRIPP","1021RR211433","20000","12100","64448","34006330",{"$f":"VLOOKUP(TRIM(J3828),'Transactional Departments'!A:B,2,FALSE)","v":"IDIS - Tripp"},"34006330","18003","SGATERR211433CV","A01","",""]
["34","211",null,null,"OSU      RF MICROFLUIDIC WOLST","1021RR211436","20000","12100","62526","34006350",{"$f":"VLOOKUP(TRIM(J3829),'Transactional Departments'!A:B,2,FALSE)","v":"IDIS - Wolstenhome"},"34006350","18400","ROKSURR211436CV","A01","",""]
["34","211",null,null,"NIH      RF PLACENTA     MOORE","1021RR211440","20000","12100","61018","34006270",{"$f":"VLOOKUP(TRIM(J3830),'Transactional Departments'!A:B,2,FALSE)","v":"IDIS - Moore"},"34006270","18400","RNIHXRR211440CV","A01","",""]
["34","211",null,null,"BMGF     INC W/ 211433   TRIPP","1021RR211441","20000","12100","64448","34006330",{"$f":"VLOOKUP(TRIM(J3831),'Transactional Departments'!A:B,2,FALSE)","v":"IDIS - Tripp"},"34006330","18003","SGATERR211441CV","A01","",""]
["34","211",null,null,"NIH      RF GLYCOPROTEIN BRIND","1021RR211444","20000","12100","61018","34006290",{"$f":"VLOOKUP(TRIM(J3832),'Transactional Departments'!A:B,2,FALSE)","v":"IDIS - Brindley"},"34006290","18400","RNIHXRR211444CV","A01","",""]
["34","211",null,null,"EMRY/CFFTRF IMP OF RES/INRADA ","1021RR211445","20000","12100","64139","34006220",{"$f":"VLOOKUP(TRIM(J3833),'Transactional Departments'!A:B,2,FALSE)","v":"IDIS - Rada"},"34006220","18400","REMORRR211445CV","A01","",""]
["34","211",null,null,"MERIAL   RF LONGRANGE    KAPLA","1021RR211450","20000","12100","64024","34006360",{"$f":"VLOOKUP(TRIM(J3834),'Transactional Departments'!A:B,2,FALSE)","v":"IDIS - Kaplan"},"34006360","18400","RMRILRR211450CV","A01","",""]
["34","211",null,null,"NIH/IAID RF ADULT WORMS  MOORH","1021RR211451","20000","12100","61018","34006250",{"$f":"VLOOKUP(TRIM(J3835),'Transactional Departments'!A:B,2,FALSE)","v":"IDIS - Moorhead"},"34006250","18400","RNIHXRR211451CV","A01","",""]
["34","211",null,null,"NIH      RF MULTIDRUG   TTRENT","1021RR211452","20000","12100","61018","34006260",{"$f":"VLOOKUP(TRIM(J3836),'Transactional Departments'!A:B,2,FALSE)","v":"IDIS - Trent"},"34006260","18400","RNIHXRR211452CV","A01","",""]
["34","211",null,null,"SANOFI   RF H1NI COBRA   ROSS ","1021RR211453","20000","12100","64496","3400600C",{"$f":"VLOOKUP(TRIM(J3837),'Transactional Departments'!A:B,2,FALSE)","v":"IDIS - Conversion"},"3400600C","18400","RSANORR211453CV","A01","",""]
["34","211",null,null,"NIH      RF HELICOBACTOR TRENT","1021RR211454","20000","12100","61018","34006260",{"$f":"VLOOKUP(TRIM(J3838),'Transactional Departments'!A:B,2,FALSE)","v":"IDIS - Trent"},"34006260","18400","RNIHXRR211454CV","A01","",""]
["34","211",null,null,"NIH      RF VIBRIO C    TTRENT","1021RR211455","20000","12100","61018","34006260",{"$f":"VLOOKUP(TRIM(J3839),'Transactional Departments'!A:B,2,FALSE)","v":"IDIS - Trent"},"34006260","18400","RNIHXRR211455CV","A01","",""]
["34","211",null,null,"NIH      RF SYNCYTIAL    TRIPP","1021RR211458","20000","12100","61018","34006330",{"$f":"VLOOKUP(TRIM(J3840),'Transactional Departments'!A:B,2,FALSE)","v":"IDIS - Tripp"},"34006330","18400","RNIHXRR211458CV","A01","",""]
["34","211",null,null,"NIH      RF MOD INF FY16      ","1021RR211459","20000","12100","61018","34006250",{"$f":"VLOOKUP(TRIM(J3841),'Transactional Departments'!A:B,2,FALSE)","v":"IDIS - Moorhead"},"34006250","18400","RNIHXRR211459CV","A01","",""]
["34","211",null,null,"ACT INC  RF COTTON RATS  JORQU","1021RR211461","20000","12100","64048","3400600C",{"$f":"VLOOKUP(TRIM(J3842),'Transactional Departments'!A:B,2,FALSE)","v":"IDIS - Conversion"},"3400600C","18400","RACTIRR211461CV","A01","",""]
["34","211",null,null,"NYU      RF INFLUENZA    ROSS ","1021RR211462","20000","12100","62584","340061TR",{"$f":"VLOOKUP(TRIM(J3843),'Transactional Departments'!A:B,2,FALSE)","v":"CVI - Ted Ross"},"340061TR","18400","RNYUXRR211462CV","A01","",""]
["34","211",null,null,"NIH      RF TASK D12     MOORH","1021RR211463","20000","12100","61018","34006250",{"$f":"VLOOKUP(TRIM(J3844),'Transactional Departments'!A:B,2,FALSE)","v":"IDIS - Moorhead"},"34006250","18400","RNIHXRR211463CV","A01","",""]
["34","211",null,null,"NIH/EMORYRF CEIRS FLU    TRIPP","1021RR211465","20000","12100","64139","34006330",{"$f":"VLOOKUP(TRIM(J3845),'Transactional Departments'!A:B,2,FALSE)","v":"IDIS - Tripp"},"34006330","18400","REMORRR211465CV","A01","",""]
["34","211",null,null,"PENN/NIH RF MALARIA      MURDO","1021RR211467","20000","12100","62531","34006310",{"$f":"VLOOKUP(TRIM(J3846),'Transactional Departments'!A:B,2,FALSE)","v":"IDIS - Murdock"},"34006310","18400","RPASURR211467CV","A01","",""]
["34","211",null,null,"MB LLC   RF SWINE FLU    TRIPP","1021RR211471","20000","12100","64036","34006330",{"$f":"VLOOKUP(TRIM(J3847),'Transactional Departments'!A:B,2,FALSE)","v":"IDIS - Tripp"},"34006330","18400","RMURPRR211471CV","A01","",""]
["34","211",null,null,"UHN/NIH  RF VAC STRATEGY ROSS ","1021RR211472","20000","12100","64498","340061TR",{"$f":"VLOOKUP(TRIM(J3848),'Transactional Departments'!A:B,2,FALSE)","v":"CVI - Ted Ross"},"340061TR","18400","RUNHNRR211472CV","A01","",""]
["34","211",null,null,"UPENN/NSFRF ABI INNOVATN QUINN","1021RR211473","20000","12100","64189","34006200",{"$f":"VLOOKUP(TRIM(J3849),'Transactional Departments'!A:B,2,FALSE)","v":"IDIS - Quinn"},"34006200","18400","RUPITRR211473CV","A01","",""]
["34","211",null,null,"NCVP     RF DIROFILARIA  KAPLA","1021RR211474","20000","12100","64430","34006360",{"$f":"VLOOKUP(TRIM(J3850),'Transactional Departments'!A:B,2,FALSE)","v":"IDIS - Kaplan"},"34006360","18400","ROKSFRR211474CV","A01","",""]
["34","211",null,null,"USDA     RF PRRSV VACCINEHE   ","1021RR211475","20000","12100","61002","34006210",{"$f":"VLOOKUP(TRIM(J3851),'Transactional Departments'!A:B,2,FALSE)","v":"IDIS - He"},"34006210","18400","RUSDARR211475CV","A01","",""]
["34","211",null,null,"NIH      RF MAP3K8       WATFO","1021RR211476","20000","12100","61018","34006230",{"$f":"VLOOKUP(TRIM(J3852),'Transactional Departments'!A:B,2,FALSE)","v":"IDIS - Watford"},"34006230","18400","RNIHXRR211476CV","A01","",""]
["34","211",null,null,"TRELLIS  RF MONOCLONAL   TRIPP","1021RR211477","20000","12100","64046","34006330",{"$f":"VLOOKUP(TRIM(J3853),'Transactional Departments'!A:B,2,FALSE)","v":"IDIS - Tripp"},"34006330","18400","RTRELRR211477CV","A01","",""]
["34","211",null,null,"SANOFI   RF  UGARF-2B    ROSS ","1021RR211478","20000","12100","64496","340061TR",{"$f":"VLOOKUP(TRIM(J3854),'Transactional Departments'!A:B,2,FALSE)","v":"CVI - Ted Ross"},"340061TR","18400","RSANORR211478CV","A01","",""]
["34","211",null,null,"CONTRAFECRF MONOCLONAL   TRIPP","1021RR211481","20000","12100","64067","34006330",{"$f":"VLOOKUP(TRIM(J3855),'Transactional Departments'!A:B,2,FALSE)","v":"IDIS - Tripp"},"34006330","18400","RCONTRR211481CV","A01","",""]
["34","211",null,null,"SANOFI   RF UGARF WO 2A  ROSS ","1021RR211482","20000","12100","64496","340061TR",{"$f":"VLOOKUP(TRIM(J3856),'Transactional Departments'!A:B,2,FALSE)","v":"CVI - Ted Ross"},"340061TR","18400","RSANORR211482CV","A01","",""]
["34","211",null,null,"SANOFI   RF UGARF WO 2C  ROSS ","1021RR211484","20000","12100","64496","340061TR",{"$f":"VLOOKUP(TRIM(J3857),'Transactional Departments'!A:B,2,FALSE)","v":"CVI - Ted Ross"},"340061TR","18400","RSANORR211484CV","A01","",""]
["34","211",null,null,"GEOVAX   RF ZIKA VACCINE ROSS ","1021RR211485","20000","12100","64028","340061TR",{"$f":"VLOOKUP(TRIM(J3858),'Transactional Departments'!A:B,2,FALSE)","v":"CVI - Ted Ross"},"340061TR","18400","RGEOVRR211485CV","A01","",""]
["34","211",null,null,"EU/NIH   RF NEUTROPHILS  RADA ","1021RR211486","20000","12100","64139","34006220",{"$f":"VLOOKUP(TRIM(J3859),'Transactional Departments'!A:B,2,FALSE)","v":"IDIS - Rada"},"34006220","18400","REMORRR211486CV","A01","",""]
["34","211",null,null,"USDOD    RF MELIO/GLAN        ","1021RR211487","20000","12100","61012","34006340",{"$f":"VLOOKUP(TRIM(J3860),'Transactional Departments'!A:B,2,FALSE)","v":"IDIS - Lafontaine"},"34006340","18400","RUSDDRR211487CV","A01","",""]
["34","211",null,null,"IMPER COLRF ACOUSTIC SIG MURDO","1021RR211488","20000","12100","64478","34006310",{"$f":"VLOOKUP(TRIM(J3861),'Transactional Departments'!A:B,2,FALSE)","v":"IDIS - Murdock"},"34006310","18400","RICSTRR211488CV","A01","",""]
["34","211",null,null,"EU/NIH   RF CEIRS        TRIPP","1021RR211490","20000","12100","64139","34006330",{"$f":"VLOOKUP(TRIM(J3862),'Transactional Departments'!A:B,2,FALSE)","v":"IDIS - Tripp"},"34006330","18400","REMORRR211490CV","A01","",""]
["34","211",null,null,"NSF      RF ZIKA TRANSMISMURDO","1021RR211492","20000","12100","61023","34006310",{"$f":"VLOOKUP(TRIM(J3863),'Transactional Departments'!A:B,2,FALSE)","v":"IDIS - Murdock"},"34006310","18400","RNSFXRR211492CV","A01","",""]
["34","211",null,null,"NIH      RF MUMPS VIRUS       ","1021RR211493","20000","12100","61018","34006210",{"$f":"VLOOKUP(TRIM(J3864),'Transactional Departments'!A:B,2,FALSE)","v":"IDIS - He"},"34006210","18400","RNIHXRR211493CV","A01","",""]
["34","211",null,null,"GACC BEEFRF AVERMECTIN   KAPLA","1021RR211494","20000","12100","62006","34006360",{"$f":"VLOOKUP(TRIM(J3865),'Transactional Departments'!A:B,2,FALSE)","v":"IDIS - Kaplan"},"34006360","18400","RGABFRR211494CV","A01","",""]
["34","211",null,null,"AM HTWORMRF RE FIROFILARIMOORH","1021RR211495","20000","12100","64128","34006250",{"$f":"VLOOKUP(TRIM(J3866),'Transactional Departments'!A:B,2,FALSE)","v":"IDIS - Moorhead"},"34006250","18400","RAHWARR211495CV","A01","",""]
["34","211",null,null,"UT/NIH   RF B PERTUSSIS  HARVI","1021RR211497","20000","12100","62517","340061EH",{"$f":"VLOOKUP(TRIM(J3867),'Transactional Departments'!A:B,2,FALSE)","v":"CVI - Eric Harvill"},"340061EH","18400","RUTXARR211497CV","A01","",""]
["34","211",null,null,"NIH      RF MICROBIOTA   HARVI","1021RR211498","20000","12100","61018","340061EH",{"$f":"VLOOKUP(TRIM(J3868),'Transactional Departments'!A:B,2,FALSE)","v":"CVI - Eric Harvill"},"340061EH","18400","RNIHXRR211498CV","A01","",""]
["34","211",null,null,"NIH      RF RF_IMMUNE MAL PREG","1021RR211499","20000","12100","61018","34006270",{"$f":"VLOOKUP(TRIM(J3869),'Transactional Departments'!A:B,2,FALSE)","v":"IDIS - Moore"},"34006270","18400","RNIHXRR211499CV","A01","",""]
["34","211",null,null,"SANOFI   RF WRK ORDER 4A ROSS ","1021RR211500","20000","12100","64496","340061TR",{"$f":"VLOOKUP(TRIM(J3870),'Transactional Departments'!A:B,2,FALSE)","v":"CVI - Ted Ross"},"340061TR","18400","RSANORR211500CV","A01","",""]
["34","211",null,null,"PROVENTUSRF SEQUENCING   TRIPP","1021RR211502","20000","12100","64093","34006330",{"$f":"VLOOKUP(TRIM(J3871),'Transactional Departments'!A:B,2,FALSE)","v":"IDIS - Tripp"},"34006330","18400","RPROVRR211502CV","A01","",""]
["34","211",null,null,"NIH      RF NEMATOD ION  WOLST","1021RR211505","20000","12100","61018","34006350",{"$f":"VLOOKUP(TRIM(J3872),'Transactional Departments'!A:B,2,FALSE)","v":"IDIS - Wolstenhome"},"34006350","18400","RNIHXRR211505CV","A01","",""]
["34","211",null,null,"NIAID/NIHRF ACANTHO VIT  MOORH","1021RR211506","20000","12100","61018","34006250",{"$f":"VLOOKUP(TRIM(J3873),'Transactional Departments'!A:B,2,FALSE)","v":"IDIS - Moorhead"},"34006250","18400","RNIHXRR211506CV","A01","",""]
["34","211",null,null,"NIH/NIAIDRF MOD INF FY17 MOORH","1021RR211508","20000","12100","61018","34006250",{"$f":"VLOOKUP(TRIM(J3874),'Transactional Departments'!A:B,2,FALSE)","v":"IDIS - Moorhead"},"34006250","18400","RNIHXRR211508CV","A01","",""]
["34","211",null,null,"ARDF     RF BABESIA SPEC PETER","1021RR211509","20000","12100","64411","34006280",{"$f":"VLOOKUP(TRIM(J3875),'Transactional Departments'!A:B,2,FALSE)","v":"IDIS - Peterson"},"34006280","18400","RARDFRR211509CV","A01","",""]
["34","211",null,null,"NIH      RF CYSTIC FIBRO RADA ","1021RR211510","20000","12100","61018","34006220",{"$f":"VLOOKUP(TRIM(J3876),'Transactional Departments'!A:B,2,FALSE)","v":"IDIS - Rada"},"34006220","18400","RNIHXRR211510CV","A01","",""]
["34","211",null,null,"NIH      RF RR211-510 PS RADA ","1021RR211511","20000","12100","61018","34006220",{"$f":"VLOOKUP(TRIM(J3877),'Transactional Departments'!A:B,2,FALSE)","v":"IDIS - Rada"},"34006220","18400","RNIHXRR211511CV","A01","",""]
["34","211",null,null,"AACC     RF MORES/SHOLL  MCEWE","1021RR211513","20000","12100","64218","34006370",{"$f":"VLOOKUP(TRIM(J3878),'Transactional Departments'!A:B,2,FALSE)","v":"IDIS - McEwen"},"34006370","18400","RAACCRR211513CV","A01","",""]
["34","211",null,null,"US ARMY  RF VACSIM DELIV HARN ","1021RR211514","20000","12100","61014","34006240",{"$f":"VLOOKUP(TRIM(J3879),'Transactional Departments'!A:B,2,FALSE)","v":"IDIS - Harn"},"34006240","18400","RUSARRR211514CV","A01","",""]
["34","211",null,null,"UTA/NIH  RF MOLCE PLATF  TRENT","1021RR211515","20000","12100","62517","34006260",{"$f":"VLOOKUP(TRIM(J3880),'Transactional Departments'!A:B,2,FALSE)","v":"IDIS - Trent"},"34006260","18400","RUTXARR211515CV","A01","",""]
["34","211",null,null,"MAF      RF IM&PATH CIV  TRENT","1021RR211516","20000","12100","64383","34006260",{"$f":"VLOOKUP(TRIM(J3881),'Transactional Departments'!A:B,2,FALSE)","v":"IDIS - Trent"},"34006260","18400","RMOAFRR211516CV","A01","",""]
["34","211",null,null,"OSU      RF O LUPI IN LA VEROC","1021RR211517","20000","12100","64430","34006380",{"$f":"VLOOKUP(TRIM(J3882),'Transactional Departments'!A:B,2,FALSE)","v":"IDIS - Verocai"},"34006380","18400","ROKSFRR211517CV","A01","",""]
["34","211",null,null,"EMORY/NIHRF CEIRS OPT 21ATRIPP","1021RR211518","20000","12100","64139","34006330",{"$f":"VLOOKUP(TRIM(J3883),'Transactional Departments'!A:B,2,FALSE)","v":"IDIS - Tripp"},"34006330","18400","REMORRR211518CV","A01","",""]
["34","211",null,null,"BAYER    RF IN VIT DRUG  WOLST","1021RR211521","20000","12100","64207","34006350",{"$f":"VLOOKUP(TRIM(J3884),'Transactional Departments'!A:B,2,FALSE)","v":"IDIS - Wolstenhome"},"34006350","18400","RANONRR211521CV","A01","",""]
["34","211",null,null,"EMORY/NIHRF CEIRS OP17B  TRIPP","1021RR211522","20000","12100","64139","34006330",{"$f":"VLOOKUP(TRIM(J3885),'Transactional Departments'!A:B,2,FALSE)","v":"IDIS - Tripp"},"34006330","18400","REMORRR211522CV","A01","",""]
["34","211",null,null,"CYSTIC FIRF ANTI NET     RADA ","1021RR211523","20000","12100","64379","34006220",{"$f":"VLOOKUP(TRIM(J3886),'Transactional Departments'!A:B,2,FALSE)","v":"IDIS - Rada"},"34006220","18400","RCYFFRR211523CV","A01","",""]
["34","211",null,null,"AHA      RF RAMADHIN     HARN ","1021RR211524","20000","12100","64127","34006240",{"$f":"VLOOKUP(TRIM(J3887),'Transactional Departments'!A:B,2,FALSE)","v":"IDIS - Harn"},"34006240","18400","RAHTARR211524CV","A01","",""]
["34","211",null,null,"RU/NIH   RF ST KITTS     MURDO","1021RR211526","20000","12100","64065","34006310",{"$f":"VLOOKUP(TRIM(J3888),'Transactional Departments'!A:B,2,FALSE)","v":"IDIS - Murdock"},"34006310","18400","RROSSRR211526CV","A01","",""]
["34","211",null,null,"NIH/HHS  RF BRK VAC LAFONHE   ","1021RR211527","20000","12100","61018","34006210",{"$f":"VLOOKUP(TRIM(J3889),'Transactional Departments'!A:B,2,FALSE)","v":"IDIS - He"},"34006210","18400","RNIHXRR211527CV","A01","",""]
["34","211",null,null,"NIH/HHS  RF BRK VACCINE  HE   ","1021RR211528","20000","12100","61018","34006210",{"$f":"VLOOKUP(TRIM(J3890),'Transactional Departments'!A:B,2,FALSE)","v":"IDIS - He"},"34006210","18400","RNIHXRR211528CV","A01","",""]
["34","211",null,null,"NIH      RF EPITHEL DEFNSRADA ","1021RR211529","20000","12100","61018","34006220",{"$f":"VLOOKUP(TRIM(J3891),'Transactional Departments'!A:B,2,FALSE)","v":"IDIS - Rada"},"34006220","18400","RNIHXRR211529CV","A01","",""]
["34","211",null,null,"EU/NIH   RF EMORY CEIRS  TRIPP","1021RR211530","20000","12100","64139","34006330",{"$f":"VLOOKUP(TRIM(J3892),'Transactional Departments'!A:B,2,FALSE)","v":"IDIS - Tripp"},"34006330","18400","REMORRR211530CV","A01","",""]
["34","211",null,null,"EU/CFFT  RF IMP RES INS       ","1021RR211531","20000","12100","64139","34006220",{"$f":"VLOOKUP(TRIM(J3893),'Transactional Departments'!A:B,2,FALSE)","v":"IDIS - Rada"},"34006220","18400","REMORRR211531CV","A01","",""]
["34","211",null,null,"NIH      RF D15 FILARIAL MOORH","1021RR211532","20000","12100","61018","34006250",{"$f":"VLOOKUP(TRIM(J3894),'Transactional Departments'!A:B,2,FALSE)","v":"IDIS - Moorhead"},"34006250","18400","RNIHXRR211532CV","A01","",""]
["34","211",null,null,"AM HTWM  RF GENOME WIDE  WOLST","1021RR211533","20000","12100","64128","34006350",{"$f":"VLOOKUP(TRIM(J3895),'Transactional Departments'!A:B,2,FALSE)","v":"IDIS - Wolstenhome"},"34006350","18400","RAHWARR211533CV","A01","",""]
["34","211",null,null,"NIH/HHS  RF ANTI-NET AB  RADA ","1021RR211534","20000","12100","61018","34006220",{"$f":"VLOOKUP(TRIM(J3896),'Transactional Departments'!A:B,2,FALSE)","v":"IDIS - Rada"},"34006220","18400","RNIHXRR211534CV","A01","",""]
["34","211",null,null,"NIH      RF SAAVE        TRENT","1021RR211535","20000","12100","61018","34006260",{"$f":"VLOOKUP(TRIM(J3897),'Transactional Departments'!A:B,2,FALSE)","v":"IDIS - Trent"},"34006260","18400","RNIHXRR211535CV","A01","",""]
["34","211",null,null,"NIH/HHS  RF JEILONGVIRUS HE   ","1021RR211536","20000","12100","61018","34006210",{"$f":"VLOOKUP(TRIM(J3898),'Transactional Departments'!A:B,2,FALSE)","v":"IDIS - He"},"34006210","18400","RNIHXRR211536CV","A01","",""]
["34","211",null,null,"CEVA SANTRF RF_HRTWORM PRMURDO","1021RR211538","20000","12100","64474","34006310",{"$f":"VLOOKUP(TRIM(J3899),'Transactional Departments'!A:B,2,FALSE)","v":"IDIS - Murdock"},"34006310","18400","RCEVARR211538CV","A01","",""]
["34","211",null,null,"NIH/HHS  RF MIA PATHWAY  TRENT","1021RR211539","20000","12100","61018","34006260",{"$f":"VLOOKUP(TRIM(J3900),'Transactional Departments'!A:B,2,FALSE)","v":"IDIS - Trent"},"34006260","18400","RNIHXRR211539CV","A01","",""]
["34","211",null,null,"NIH/NIAIDRF PROD B MALAYIMOORH","1021RR211540","20000","12100","61018","34006250",{"$f":"VLOOKUP(TRIM(J3901),'Transactional Departments'!A:B,2,FALSE)","v":"IDIS - Moorhead"},"34006250","18400","RNIHXRR211540CV","A01","",""]
["34","211",null,null,"NIH/HHS  RF BRK VAC SUP       ","1021RR211541","20000","12100","61018","34006210",{"$f":"VLOOKUP(TRIM(J3902),'Transactional Departments'!A:B,2,FALSE)","v":"IDIS - He"},"34006210","18400","RNIHXRR211541CV","A01","",""]
["34","211",null,null,"CDC      PARASITE ID  VERVEROC","1021RR211542","20000","12100","61031","3400600C",{"$f":"VLOOKUP(TRIM(J3903),'Transactional Departments'!A:B,2,FALSE)","v":"IDIS - Conversion"},"3400600C","18003","SCDCXRR211542CV","A01","",""]
["34","211",null,null,"CCHMC/NIHRF MUC PROTECT  HE   ","1021RR211543","20000","12100","64000","3400600C",{"$f":"VLOOKUP(TRIM(J3904),'Transactional Departments'!A:B,2,FALSE)","v":"IDIS - Conversion"},"3400600C","18400","RCHOSRR211543CV","A01","",""]
["34","211",null,null,"NIH      RF PRECLIN MODELMOORH","1021RR211546","20000","12100","61018","3400600C",{"$f":"VLOOKUP(TRIM(J3905),'Transactional Departments'!A:B,2,FALSE)","v":"IDIS - Conversion"},"3400600C","18400","RNIHXRR211546CV","A01","",""]
["34","212",null,null,"         RF GILL EPITH   HOWER","1021RR212122","20000","12100","64383","34007EWH",{"$f":"VLOOKUP(TRIM(J3906),'Transactional Departments'!A:B,2,FALSE)","v":"Pathology - E. Howerth"},"34007EWH","18003","SMOAFRR212122CV","A01","",""]
["34","212",null,null,"TBLLC/NIHRF ANTIBOD RABIEFU   ","1021RR212127","20000","12100","64046","34007ZFF",{"$f":"VLOOKUP(TRIM(J3907),'Transactional Departments'!A:B,2,FALSE)","v":"Pathology - Z. Fu"},"34007ZFF","18400","RTRELRR212127CV","A01","",""]
["34","212",null,null,"USDOD    RF CODON USAGE  UHL  ","1021RR212132","20000","12100","61012","34007EWU",{"$f":"VLOOKUP(TRIM(J3908),'Transactional Departments'!A:B,2,FALSE)","v":"Pathology - B. Uhl"},"34007EWU","18400","RUSDDRR212132CV","A01","",""]
["34","212",null,null,"USDA ARA RF NEWCASTL DIS BROWN","1021RR212133","20000","12100","61002","34007CCB",{"$f":"VLOOKUP(TRIM(J3909),'Transactional Departments'!A:B,2,FALSE)","v":"Pathology - C. Brown"},"34007CCB","18400","RUSDARR212133CV","A01","",""]
["34","212",null,null,"NIH/UM   RF CHRONIC PAIN NAGY ","1021RR212137","20000","12100","62500","34007TXN",{"$f":"VLOOKUP(TRIM(J3910),'Transactional Departments'!A:B,2,FALSE)","v":"Pathology - T. Nagy"},"34007TXN","18400","RXXXXRR212137CV","A01","",""]
["34","212",null,null,"VWB      RF VET W/O BORDER  BR","1021RR212148","20000","12100","64000","34007CCB",{"$f":"VLOOKUP(TRIM(J3911),'Transactional Departments'!A:B,2,FALSE)","v":"Pathology - C. Brown"},"34007CCB","18400","RVWBRRR212148CV","A01","",""]
["34","212",null,null,"BYT      RF RABIES VIRUS FU   ","1021RR212153","20000","12100","64000","34007ZFF",{"$f":"VLOOKUP(TRIM(J3912),'Transactional Departments'!A:B,2,FALSE)","v":"Pathology - Z. Fu"},"34007ZFF","18400","RBNYTRR212153CV","A01","",""]
["34","212",null,null,"VWB      RF TAD TRAINING BROWN","1021RR212154","20000","12100","64000","34007CCB",{"$f":"VLOOKUP(TRIM(J3913),'Transactional Departments'!A:B,2,FALSE)","v":"Pathology - C. Brown"},"34007CCB","18400","RVWBRRR212154CV","A01","",""]
["34","212",null,null,"QED/USAIDRF RE FEED FUTURBROWN","1021RR212156","20000","12100","64091","34007CCB",{"$f":"VLOOKUP(TRIM(J3914),'Transactional Departments'!A:B,2,FALSE)","v":"Pathology - C. Brown"},"34007CCB","18400","RQEGLRR212156CV","A01","",""]
["34","212",null,null,"USDA ARS RF NEWCASTLE D  BROWN","1021RR212158","20000","12100","61004","34007CCB",{"$f":"VLOOKUP(TRIM(J3915),'Transactional Departments'!A:B,2,FALSE)","v":"Pathology - C. Brown"},"34007CCB","18400","RARSXRR212158CV","A01","",""]
["34","212",null,null,"MORRIS   RF HOOKWORM     GOTTD","1021RR212159","20000","12100","64383","34007NLG",{"$f":"VLOOKUP(TRIM(J3916),'Transactional Departments'!A:B,2,FALSE)","v":"Pathology - N. Gottdenker"},"34007NLG","18400","RMOAFRR212159CV","A01","",""]
["34","212",null,null,"TAMU/NIH RF ATTEN BRUCE  HOWER","1021RR212160","20000","12100","62527","34007EWH",{"$f":"VLOOKUP(TRIM(J3917),'Transactional Departments'!A:B,2,FALSE)","v":"Pathology - E. Howerth"},"34007EWH","18400","RTXAURR212160CV","A01","",""]
["34","212",null,null,"UFL/USAIDRF FS SURV TRNG BROWN","1021RR212161","20000","12100","62511","34007CCB",{"$f":"VLOOKUP(TRIM(J3918),'Transactional Departments'!A:B,2,FALSE)","v":"Pathology - C. Brown"},"34007CCB","18400","RUFLXRR212161CV","A01","",""]
["34","212",null,null,"USDA ARS RF GDS & SVC AV BROWN","1021RR212162","20000","12100","61004","34007CCB",{"$f":"VLOOKUP(TRIM(J3919),'Transactional Departments'!A:B,2,FALSE)","v":"Pathology - C. Brown"},"34007CCB","18400","RARSXRR212162CV","A01","",""]
["34","212",null,null,"USDA     E AFRCN WS      BROWN","1031RE212110","20000","13100","61002","34007CCB",{"$f":"VLOOKUP(TRIM(J3920),'Transactional Departments'!A:B,2,FALSE)","v":"Pathology - C. Brown"},"34007CCB","18003","SUSDARE212110CV","A01","",""]
["34","212",null,null,"USDA     ANIMAL HEALTH   BROWN","1031RE212140","20000","13100","61002","34007CCB",{"$f":"VLOOKUP(TRIM(J3921),'Transactional Departments'!A:B,2,FALSE)","v":"Pathology - C. Brown"},"34007CCB","18003","SUSDARE212140CV","A01","",""]
["34","213",null,null,"GCC      RF POLYCMB CBX2 DE LA","1021RR213219","20000","12100","62000","34008RDE",{"$f":"VLOOKUP(TRIM(J3922),'Transactional Departments'!A:B,2,FALSE)","v":"Phys-Pharm - R. DeLaFuente"},"34008RDE","18400","RXXXXRR213219CV","A01","",""]
["34","213",null,null,"NIH      RF MM LPA-3 MUR YE   ","1021RR213222","20000","12100","61018","34008XYE",{"$f":"VLOOKUP(TRIM(J3923),'Transactional Departments'!A:B,2,FALSE)","v":"Phys-Pharm - X. Ye"},"34008XYE","18400","RNIHXRR213222CV","A01","",""]
["34","213",null,null,"NIH      RF MELOTIC SPIN VIVEI","1021RR213223","20000","12100","61018","34008MVI",{"$f":"VLOOKUP(TRIM(J3924),'Transactional Departments'!A:B,2,FALSE)","v":"Phys-Pharm - M. Vivieros"},"34008MVI","18400","RNIHXRR213223CV","A01","",""]
["34","213",null,null,"NIH      RF PHENO MOD VASCHEN ","1021RR213227","20000","12100","61018","34008SCH",{"$f":"VLOOKUP(TRIM(J3925),'Transactional Departments'!A:B,2,FALSE)","v":"Phys-Pharm - S. Chen"},"34008SCH","18400","RNIHXRR213227CV","A01","",""]
["34","213",null,null,"NIH      RF CYTOK 2 PHENOCHEN ","1021RR213228","20000","12100","61018","34008SCH",{"$f":"VLOOKUP(TRIM(J3926),'Transactional Departments'!A:B,2,FALSE)","v":"Phys-Pharm - S. Chen"},"34008SCH","18400","RNIHXRR213228CV","A01","",""]
["34","213",null,null,"NIH      RF RCPTR ALCHL  SCHAN","1021RR213229","20000","12100","61018","34008JSC",{"$f":"VLOOKUP(TRIM(J3927),'Transactional Departments'!A:B,2,FALSE)","v":"Phys-Pharm - J. Schank"},"34008JSC","18400","RNIHXRR213229CV","A01","",""]
["34","213",null,null,"AHA      RF ATHEROSCLERO CHEN ","1021RR213230","20000","12100","64127","34008SCH",{"$f":"VLOOKUP(TRIM(J3928),'Transactional Departments'!A:B,2,FALSE)","v":"Phys-Pharm - S. Chen"},"34008SCH","18400","RAHTARR213230CV","A01","",""]
["34","213",null,null,"AHA      RF GUO FELLOWSHICHEN ","1021RR213231","20000","12100","64127","34008SCH",{"$f":"VLOOKUP(TRIM(J3929),'Transactional Departments'!A:B,2,FALSE)","v":"Phys-Pharm - S. Chen"},"34008SCH","18400","RAHTARR213231CV","A01","",""]
["34","213",null,null,"USDA NIFARF BOVINE METABOFILIP","1021RR213232","20000","12100","61006","34008NFI",{"$f":"VLOOKUP(TRIM(J3930),'Transactional Departments'!A:B,2,FALSE)","v":"Phys-Pharm - N. Flilpov"},"34008NFI","18400","RNIFARR213232CV","A01","",""]
["34","213",null,null,"NIH      RF KDNY DISEASE BROWN","1021RR213233","20000","12100","61018","34008SBO",{"$f":"VLOOKUP(TRIM(J3931),'Transactional Departments'!A:B,2,FALSE)","v":"Phys-Pharm - S. Brown"},"34008SBO","18400","RNIHXRR213233CV","A01","",""]
["34","213",null,null,"NIH      RF RF_MYCOBACTERFILIP","1021RR213234","20000","12100","61018","34008NFI",{"$f":"VLOOKUP(TRIM(J3932),'Transactional Departments'!A:B,2,FALSE)","v":"Phys-Pharm - N. Flilpov"},"34008NFI","18400","RNIHXRR213234CV","A01","",""]
["34","213",null,null,"USDOD    RF GLYC CONJ    FILIP","1021RR213237","20000","12100","61012","34008NFI",{"$f":"VLOOKUP(TRIM(J3933),'Transactional Departments'!A:B,2,FALSE)","v":"Phys-Pharm - N. Flilpov"},"34008NFI","18400","RUSDDRR213237CV","A01","",""]
["34","213",null,null,"AHA      RF RSPNSE GENE  CUI  ","1021RR213238","20000","12100","64127","3400800C",{"$f":"VLOOKUP(TRIM(J3934),'Transactional Departments'!A:B,2,FALSE)","v":"Phys-Pharm - Conversion"},"3400800C","18400","RAHTARR213238CV","A01","",""]
["34","213",null,null,"NIH/DHHS RF SMAD2 SM MUSCCHEN ","1021RR213239","20000","12100","61018","34008SCH",{"$f":"VLOOKUP(TRIM(J3935),'Transactional Departments'!A:B,2,FALSE)","v":"Phys-Pharm - S. Chen"},"34008SCH","18400","RNIHXRR213239CV","A01","",""]
["34","213",null,null,"NIH      RF SPNDL ASMBLY VIVEI","1021RR213240","20000","12100","61018","34008MVI",{"$f":"VLOOKUP(TRIM(J3936),'Transactional Departments'!A:B,2,FALSE)","v":"Phys-Pharm - M. Vivieros"},"34008MVI","18400","RNIHXRR213240CV","A01","",""]
["34","213",null,null,"NIH      RF NENNIG FELLOWSCHAN","1021RR213241","20000","12100","61018","3400800C",{"$f":"VLOOKUP(TRIM(J3937),'Transactional Departments'!A:B,2,FALSE)","v":"Phys-Pharm - Conversion"},"3400800C","18400","RNIHXRR213241CV","A01","",""]
["34","213",null,null,"NIH      RF IA W/ 213-241SCHAN","1021RR213242","20000","12100","61018","3400800C",{"$f":"VLOOKUP(TRIM(J3938),'Transactional Departments'!A:B,2,FALSE)","v":"Phys-Pharm - Conversion"},"3400800C","18400","RNIHXRR213242CV","A01","",""]
["34","214",null,null,"PASS UGAFHILLS VNT       BAXTE","1011RH214003","20000","11100","64022","34002ADM",{"$f":"VLOOKUP(TRIM(J3939),'Transactional Departments'!A:B,2,FALSE)","v":"VTH Administration"},"34002ADM","18003","SHILLRH214003CV","A01","",""]
["34","214",null,null,"C&G      NUTRICIAN TECH  BAXTE","1011RH214004","20000","11100","64022","34002ADM",{"$f":"VLOOKUP(TRIM(J3940),'Transactional Departments'!A:B,2,FALSE)","v":"VTH Administration"},"34002ADM","18003","SHILLRH214004CV","A01","",""]
["34","214",null,null,"HILLSPET NUTRICIAN TECH  BAXTE","1011RH214011","20000","11100","64022","34002ADM",{"$f":"VLOOKUP(TRIM(J3941),'Transactional Departments'!A:B,2,FALSE)","v":"VTH Administration"},"34002ADM","18003","SHILLRH214011CV","A01","",""]
["34","230",null,null,"C&G      CALLAWAY CHAIR  BARTO","1011RH230174","20000","11100","64378","34009002",{"$f":"VLOOKUP(TRIM(J3942),'Transactional Departments'!A:B,2,FALSE)","v":"LAM - Barton"},"34009002","18003","SCAFIRH230174CV","A01","",""]
["34","230",null,null,"CALLAWAY CALLAWAY CHAIR  BARTO","1011RH230235","20000","11100","64378","34009002",{"$f":"VLOOKUP(TRIM(J3943),'Transactional Departments'!A:B,2,FALSE)","v":"LAM - Barton"},"34009002","18003","SCAFIRH230235CV","A01","",""]
["34","230",null,null,"         RF HYDRO REPL   BARTO","1021RR230164","20000","12100","64439","34009002",{"$f":"VLOOKUP(TRIM(J3944),'Transactional Departments'!A:B,2,FALSE)","v":"LAM - Barton"},"34009002","18003","SGJCRRR230164CV","A01","",""]
["34","230",null,null,"         RF RHODO EQUI   GIGUE","1021RR230192","20000","12100","64383","34009007",{"$f":"VLOOKUP(TRIM(J3945),'Transactional Departments'!A:B,2,FALSE)","v":"LAM - Giguere"},"34009007","18003","SMOAFRR230192CV","A01","",""]
["34","230",null,null,"         RF YR2 EX VIVO  BARTO","1021RR230193","20000","12100","64449","34009002",{"$f":"VLOOKUP(TRIM(J3946),'Transactional Departments'!A:B,2,FALSE)","v":"LAM - Barton"},"34009002","18003","SAQRTRR230193CV","A01","",""]
["34","230",null,null,"         RF STEM CELL    PERON","1021RR230200","20000","12100","64449","34009012",{"$f":"VLOOKUP(TRIM(J3947),'Transactional Departments'!A:B,2,FALSE)","v":"LAM - Peroni"},"34009012","18003","SAQRTRR230200CV","A01","",""]
["34","230",null,null,"         RF TENDONITIS   PERON","1021RR230201","20000","12100","64383","34009012",{"$f":"VLOOKUP(TRIM(J3948),'Transactional Departments'!A:B,2,FALSE)","v":"LAM - Peroni"},"34009012","18003","SMOAFRR230201CV","A01","",""]
["34","230",null,null,"         RF MSC FOR BONE PERON","1021RR230204","20000","12100","64000","34009012",{"$f":"VLOOKUP(TRIM(J3949),'Transactional Departments'!A:B,2,FALSE)","v":"LAM - Peroni"},"34009012","18003","SANIVRR230204CV","A01","",""]
["34","230",null,null,"         RF EDU MATERIAL MOORE","1021RR230210","20000","12100","64056","34009010",{"$f":"VLOOKUP(TRIM(J3950),'Transactional Departments'!A:B,2,FALSE)","v":"LAM - J. Moore"},"34009010","18003","SZOETRR230210CV","A01","",""]
["34","230",null,null,"         RF PLATELET PLA SEABA","1021RR230212","20000","12100","64062","3400900C",{"$f":"VLOOKUP(TRIM(J3951),'Transactional Departments'!A:B,2,FALSE)","v":"LAM - Conversion"},"3400900C","18003","SNURTRR230212CV","A01","",""]
["34","230",null,null,"         RF BLOOD STERLZ PERON","1021RR230215","20000","12100","64060","34009012",{"$f":"VLOOKUP(TRIM(J3952),'Transactional Departments'!A:B,2,FALSE)","v":"LAM - Peroni"},"34009012","18003","SSANURR230215CV","A01","",""]
["34","230",null,null,"MERIAL   RF ED MATERIAL  MOORE","1021RR230219","20000","12100","64024","34009010",{"$f":"VLOOKUP(TRIM(J3953),'Transactional Departments'!A:B,2,FALSE)","v":"LAM - J. Moore"},"34009010","18400","RMRILRR230219CV","A01","",""]
["34","230",null,null,"MAF      RF SEPSIS       HART ","1021RR230220","20000","12100","64383","34009008",{"$f":"VLOOKUP(TRIM(J3954),'Transactional Departments'!A:B,2,FALSE)","v":"LAM - Hart"},"34009008","18400","RMOAFRR230220CV","A01","",""]
["34","230",null,null,"ARK      RF RESINIFERATXNBARLE","1021RR230222","20000","12100","64080","34009001",{"$f":"VLOOKUP(TRIM(J3955),'Transactional Departments'!A:B,2,FALSE)","v":"LAM - Barletta"},"34009001","18400","RARAIRR230222CV","A01","",""]
["34","230",null,null,"MAF      RF RHODO EQUI   GIGUE","1021RR230224","20000","12100","64383","34009007",{"$f":"VLOOKUP(TRIM(J3956),'Transactional Departments'!A:B,2,FALSE)","v":"LAM - Giguere"},"34009007","18400","RMOAFRR230224CV","A01","",""]
["34","230",null,null,"GJCRF    RF R EQUI FINESSGIGUE","1021RR230225","20000","12100","64439","34009007",{"$f":"VLOOKUP(TRIM(J3957),'Transactional Departments'!A:B,2,FALSE)","v":"LAM - Giguere"},"34009007","18400","RGJCRRR230225CV","A01","",""]
["34","230",null,null,"TX A&M AGRF R EQUI FOAL  GIGUE","1021RR230227","20000","12100","62573","34009007",{"$f":"VLOOKUP(TRIM(J3958),'Transactional Departments'!A:B,2,FALSE)","v":"LAM - Giguere"},"34009007","18400","RTXALRR230227CV","A01","",""]
["34","230",null,null,"MERIAL   RF MED ILLUST   MOORE","1021RR230230","20000","12100","64024","34009010",{"$f":"VLOOKUP(TRIM(J3959),'Transactional Departments'!A:B,2,FALSE)","v":"LAM - J. Moore"},"34009010","18400","RMRILRR230230CV","A01","",""]
["34","230",null,null,"MORRIS FNRF RF_EXUBER GRAPERON","1021RR230231","20000","12100","64383","34009012",{"$f":"VLOOKUP(TRIM(J3960),'Transactional Departments'!A:B,2,FALSE)","v":"LAM - Peroni"},"34009012","18400","RMOAFRR230231CV","A01","",""]
["34","230",null,null,"MAF      RF MESENCHYUMAL PERON","1021RR230232","20000","12100","64383","34009012",{"$f":"VLOOKUP(TRIM(J3961),'Transactional Departments'!A:B,2,FALSE)","v":"LAM - Peroni"},"34009012","18400","RMOAFRR230232CV","A01","",""]
["34","230",null,null,"MERCK    RF FOAL RHODO   GIGUE","1021RR230233","20000","12100","64006","34009007",{"$f":"VLOOKUP(TRIM(J3962),'Transactional Departments'!A:B,2,FALSE)","v":"LAM - Giguere"},"34009007","18400","RMERKRR230233CV","A01","",""]
["34","230",null,null,"ACVS     RF LYSATE GEL   PERON","1021RR230234","20000","12100","64124","34009012",{"$f":"VLOOKUP(TRIM(J3963),'Transactional Departments'!A:B,2,FALSE)","v":"LAM - Peroni"},"34009012","18400","RACVSRR230234CV","A01","",""]
["34","230",null,null,"VICAPSYS RF FB RXN CXCL12PERON","1021RR230236","20000","12100","64076","3400900C",{"$f":"VLOOKUP(TRIM(J3964),'Transactional Departments'!A:B,2,FALSE)","v":"LAM - Conversion"},"3400900C","18400","RVICARR230236CV","A01","",""]
["34","230",null,null,"CWRU/NIH RF NEUROMODULAT PERON","1021RR230237","20000","12100","64335","3400900C",{"$f":"VLOOKUP(TRIM(J3965),'Transactional Departments'!A:B,2,FALSE)","v":"LAM - Conversion"},"3400900C","18400","RCASERR230237CV","A01","",""]
["34","231",null,null,"TAMU/NIH RF W/ 212-160   HOWER","1021RR231004","20000","12100","62527","34001700",{"$f":"VLOOKUP(TRIM(J3966),'Transactional Departments'!A:B,2,FALSE)","v":"Animal Health Research Center"},"34001700","18400","RTXAURR231004CV","A01","",""]
["34","530",null,null,"USDA     RF SWINE INFLUZ SALIK","3321RR530114","21390","12100","61002","34007166",{"$f":"VLOOKUP(TRIM(J3967),'Transactional Departments'!A:B,2,FALSE)","v":"Athens D-Lab - Saliki"},"34007166","18400","RUSDARR530114CV","A01","",""]
["34","530",null,null,"GLF      RF SCHNAUSERS   BROWN","3321RR530116","21390","12100","64000","34007161",{"$f":"VLOOKUP(TRIM(J3968),'Transactional Departments'!A:B,2,FALSE)","v":"Athens D-Lab - C. Brown"},"34007161","18400","RGNLFRR530116CV","A01","",""]
["34","530",null,null,"USDA     RF NAHLN GAFY16 SALIK","3321RR530120","21390","12100","61002","34007166",{"$f":"VLOOKUP(TRIM(J3969),'Transactional Departments'!A:B,2,FALSE)","v":"Athens D-Lab - Saliki"},"34007166","18400","RUSDARR530120CV","A01","",""]
["34","530",null,null,"DHHS/NIH RF 1HLTH EPID        ","3321RR530121","21390","12100","61017","34007167",{"$f":"VLOOKUP(TRIM(J3970),'Transactional Departments'!A:B,2,FALSE)","v":"Athens D-Lab - Sanchez"},"34007167","18400","RDHHSRR530121CV","A01","",""]
["34","530",null,null,"CDRF/DOD RF FELLOW NATIA SALIK","3321RR530122","21390","12100","64167","34007166",{"$f":"VLOOKUP(TRIM(J3971),'Transactional Departments'!A:B,2,FALSE)","v":"Athens D-Lab - Saliki"},"34007166","18400","RCRDFRR530122CV","A01","",""]
["34","530",null,null,"NIH/HHS  RF ONE HEALTH   SANCH","3321RR530123","21390","12100","61017","34007167",{"$f":"VLOOKUP(TRIM(J3972),'Transactional Departments'!A:B,2,FALSE)","v":"Athens D-Lab - Sanchez"},"34007167","18400","RDHHSRR530123CV","A01","",""]
["34","535",null,null,"USDAAPHISRF RFMAINTAIN   HINES","1021RR535123","20000","12100","61002","3400720C",{"$f":"VLOOKUP(TRIM(J3973),'Transactional Departments'!A:B,2,FALSE)","v":"Tifton D-Lab - Conversion"},"3400720C","18400","RUSDARR535123CV","A01","",""]
["34","535",null,null,"USDA     RF 2013 MEM LABOHINES","3321RR535108","21390","12100","61002","3400720C",{"$f":"VLOOKUP(TRIM(J3974),'Transactional Departments'!A:B,2,FALSE)","v":"Tifton D-Lab - Conversion"},"3400720C","18400","RUSDARR535108CV","A01","",""]
["34","535",null,null,"USDA     RF NAHLN LABORT HINES","3321RR535112","21390","12100","61002","3400720C",{"$f":"VLOOKUP(TRIM(J3975),'Transactional Departments'!A:B,2,FALSE)","v":"Tifton D-Lab - Conversion"},"3400720C","18400","RUSDARR535112CV","A01","",""]
["34","535",null,null,"WINN     RF PERITONITIS  WILKE","3321RR535120","21390","12100","64436","340072RW",{"$f":"VLOOKUP(TRIM(J3976),'Transactional Departments'!A:B,2,FALSE)","v":"Tifton D-Lab - R. Wilkes"},"340072RW","18400","RWIFFRR535120CV","A01","",""]
["34","535",null,null,"ELANCO   RF CVD VACCINE  WILKE","3321RR535121","21390","12100","64030","340072RW",{"$f":"VLOOKUP(TRIM(J3977),'Transactional Departments'!A:B,2,FALSE)","v":"Tifton D-Lab - R. Wilkes"},"340072RW","18400","RELAHRR535121CV","A01","",""]
["34","535",null,null,"DHHS/NIH RF TVOL CVM VET      ","3321RR535124","21390","12100","61017","340072RW",{"$f":"VLOOKUP(TRIM(J3978),'Transactional Departments'!A:B,2,FALSE)","v":"Tifton D-Lab - R. Wilkes"},"340072RW","18400","RDHHSRR535124CV","A01","",""]
["34","535",null,null,"GACC BEEFRF MORAXELLA    WILKE","3321RR535126","21390","12100","62006","340072RW",{"$f":"VLOOKUP(TRIM(J3979),'Transactional Departments'!A:B,2,FALSE)","v":"Tifton D-Lab - R. Wilkes"},"340072RW","18400","RGABFRR535126CV","A01","",""]
["34","535",null,null,"USDAAPHISRF 17 NAHLN LAB NAIKA","3321RR535127","21390","12100","61006","340072HN",{"$f":"VLOOKUP(TRIM(J3980),'Transactional Departments'!A:B,2,FALSE)","v":"Tifton D-Lab - H. Naikare"},"340072HN","18400","RNIFARR535127CV","A01","",""]
["34","535",null,null,"NIH/HHS  RF TVDIL        WILKE","3321RR535128","21390","12100","61017","340072RW",{"$f":"VLOOKUP(TRIM(J3981),'Transactional Departments'!A:B,2,FALSE)","v":"Tifton D-Lab - R. Wilkes"},"340072RW","18400","RDHHSRR535128CV","A01","",""]
["34","535",null,null,"USDA     2012 SWINE FVR  HINES","3331RE535105","21390","13100","61002","3400720C",{"$f":"VLOOKUP(TRIM(J3982),'Transactional Departments'!A:B,2,FALSE)","v":"Tifton D-Lab - Conversion"},"3400720C","18003","SUSDARE535105CV","A01","",""]
["34","694",null,null,"         RF SCWD CNSRTM3 RUDER","1021RR694173","20000","12100","62502","34003SMR",{"$f":"VLOOKUP(TRIM(J3983),'Transactional Departments'!A:B,2,FALSE)","v":"SCWDS - Ruder"},"34003SMR","18003","SVAOSRR694173CV","A01","",""]
["34","694",null,null,"CARTER   RF DRACUNCULUS  YABSL","1021RR694192","20000","12100","64192","34003SMY",{"$f":"VLOOKUP(TRIM(J3984),'Transactional Departments'!A:B,2,FALSE)","v":"SCWDS - Yabsley"},"34003SMY","18400","RCACIRR694192CV","A01","",""]
["34","694",null,null,"SJCRH    RF FLU A VIRUS  STALL","1021RR694205","20000","12100","64231","34003SDS",{"$f":"VLOOKUP(TRIM(J3985),'Transactional Departments'!A:B,2,FALSE)","v":"SCWDS - Stallknecht"},"34003SDS","18400","RSJCRRR694205CV","A01","",""]
["34","694",null,null,"CARTER   RF DRACUNC HIST YABSL","1021RR694208","20000","12100","64192","34003SMY",{"$f":"VLOOKUP(TRIM(J3986),'Transactional Departments'!A:B,2,FALSE)","v":"SCWDS - Yabsley"},"34003SMY","18400","RCACIRR694208CV","A01","",""]
["34","694",null,null,"CARTER   RF W 694-208    YABSL","1021RR694209","20000","12100","64192","34003SMY",{"$f":"VLOOKUP(TRIM(J3987),'Transactional Departments'!A:B,2,FALSE)","v":"SCWDS - Yabsley"},"34003SMY","18400","RCACIRR694209CV","A01","",""]
["34","694",null,null,"OSU FDN  RF DOG HOSTS    YABSL","1021RR694212","20000","12100","64430","34003SMY",{"$f":"VLOOKUP(TRIM(J3988),'Transactional Departments'!A:B,2,FALSE)","v":"SCWDS - Yabsley"},"34003SMY","18400","ROKSFRR694212CV","A01","",""]
["34","694",null,null,"CAPC     RF LYME D DIST  YABSL","1021RR694214","20000","12100","64223","34003SMY",{"$f":"VLOOKUP(TRIM(J3989),'Transactional Departments'!A:B,2,FALSE)","v":"SCWDS - Yabsley"},"34003SMY","18400","RCAPCRR694214CV","A01","",""]
["34","694",null,null,"SJCR/HRSARF INFLUENZA 4  STALL","1021RR694217","20000","12100","64231","34003SDS",{"$f":"VLOOKUP(TRIM(J3990),'Transactional Departments'!A:B,2,FALSE)","v":"SCWDS - Stallknecht"},"34003SDS","18400","RSJCRRR694217CV","A01","",""]
["34","694",null,null,"CARTER CTRF DOG HOSTS    YABSL","1021RR694219","20000","12100","64192","34003SMY",{"$f":"VLOOKUP(TRIM(J3991),'Transactional Departments'!A:B,2,FALSE)","v":"SCWDS - Yabsley"},"34003SMY","18400","RCACIRR694219CV","A01","",""]
["34","694",null,null,"AM SOC P RF BALISASCAR   YABSL","1021RR694220","20000","12100","64262","34003SMY",{"$f":"VLOOKUP(TRIM(J3992),'Transactional Departments'!A:B,2,FALSE)","v":"SCWDS - Yabsley"},"34003SMY","18400","RAMSPRR694220CV","A01","",""]
["34","694",null,null,"USDAAPHISRF SURVEIL MTHD YABSL","1021RR694224","20000","12100","61002","34003S0C",{"$f":"VLOOKUP(TRIM(J3993),'Transactional Departments'!A:B,2,FALSE)","v":"SCWDS - Conversion"},"34003S0C","18400","RUSDARR694224CV","A01","",""]
["34","694",null,null,"USDI     RF DISEASE MONI FISCH","1031RE694169","20000","13100","61019","34003SJF",{"$f":"VLOOKUP(TRIM(J3994),'Transactional Departments'!A:B,2,FALSE)","v":"SCWDS - Fischer"},"34003SJF","18400","RUSDIRE694169CV","A01","",""]
["34","694",null,null,"CCBOC    VECTOR BORNE DISMEAD ","1031RE694174","20000","13100","63099","34003SDM",{"$f":"VLOOKUP(TRIM(J3995),'Transactional Departments'!A:B,2,FALSE)","v":"SCWDS - Mead"},"34003SDM","18003","SCHCCRE694174CV","A01","",""]
["34","694",null,null,"USDA     EXOTIC ARTHOPOD FISCH","1031RE694179","20000","13100","61002","34003SJF",{"$f":"VLOOKUP(TRIM(J3996),'Transactional Departments'!A:B,2,FALSE)","v":"SCWDS - Fischer"},"34003SJF","18003","SUSDARE694179CV","A01","",""]
["34","694",null,null,"USDA     SUP RE694-179   FISCH","1031RE694180","20000","13100","61002","34003SJF",{"$f":"VLOOKUP(TRIM(J3997),'Transactional Departments'!A:B,2,FALSE)","v":"SCWDS - Fischer"},"34003SJF","18003","SUSDARE694180CV","A01","",""]
["34","694",null,null,"DEKALB   ARBOVIRUS TEST  MEAD ","1031RE694183","20000","13100","63102","34003SDM",{"$f":"VLOOKUP(TRIM(J3998),'Transactional Departments'!A:B,2,FALSE)","v":"SCWDS - Mead"},"34003SDM","18003","SDECHRE694183CV","A01","",""]
["34","694",null,null,"USDOI    RF WILDLIFE HLTH   FI","1031RE694194","20000","13100","61019","34003SJF",{"$f":"VLOOKUP(TRIM(J3999),'Transactional Departments'!A:B,2,FALSE)","v":"SCWDS - Fischer"},"34003SJF","18400","RUSDIRE694194CV","A01","",""]
["34","694",null,null,"USDA     FERAL SWINE_____CORN ","1031RE694195","20000","13100","61007","34003SJF",{"$f":"VLOOKUP(TRIM(J4000),'Transactional Departments'!A:B,2,FALSE)","v":"SCWDS - Fischer"},"34003SJF","18003","SAPHIRE694195CV","A01","",""]
["34","694",null,null,"USDA/APHITICK PHENOLOGY  CORN ","1031RE694196","20000","13100","61007","34003SJF",{"$f":"VLOOKUP(TRIM(J4001),'Transactional Departments'!A:B,2,FALSE)","v":"SCWDS - Fischer"},"34003SJF","18003","SAPHIRE694196CV","A01","",""]
["34","694",null,null,"USDI      WILDLF DISEASE FISCH","1031RE694198","20000","13100","61019","34003SJF",{"$f":"VLOOKUP(TRIM(J4002),'Transactional Departments'!A:B,2,FALSE)","v":"SCWDS - Fischer"},"34003SJF","18003","SUSDIRE694198CV","A01","",""]
["34","694",null,null,"USDA     VET SVCS        FISCH","1031RE694202","20000","13100","61002","34003SJF",{"$f":"VLOOKUP(TRIM(J4003),'Transactional Departments'!A:B,2,FALSE)","v":"SCWDS - Fischer"},"34003SJF","18003","SUSDARE694202CV","A01","",""]
["34","694",null,null,"USDA     W/RE694202      FISCH","1031RE694203","20000","13100","61002","34003SJF",{"$f":"VLOOKUP(TRIM(J4004),'Transactional Departments'!A:B,2,FALSE)","v":"SCWDS - Fischer"},"34003SJF","18003","SUSDARE694203CV","A01","",""]
["34","694",null,null,"USDA     W/ RE694202 FER FISCH","1031RE694204","20000","13100","61002","34003SJF",{"$f":"VLOOKUP(TRIM(J4005),'Transactional Departments'!A:B,2,FALSE)","v":"SCWDS - Fischer"},"34003SJF","18003","SUSDARE694204CV","A01","",""]
["34","694",null,null,"DEKALB   ARBOVIRUS       MEAD ","1031RE694206","20000","13100","63102","34003SDM",{"$f":"VLOOKUP(TRIM(J4006),'Transactional Departments'!A:B,2,FALSE)","v":"SCWDS - Mead"},"34003SDM","18003","SDECHRE694206CV","A01","",""]
["34","694",null,null,"USDA     FERAL SWINE     CORN ","1031RE694207","20000","13100","61007","34003SJF",{"$f":"VLOOKUP(TRIM(J4007),'Transactional Departments'!A:B,2,FALSE)","v":"SCWDS - Fischer"},"34003SJF","18003","SAPHIRE694207CV","A01","",""]
["34","694",null,null,"USDI     P INC RE694198  FISCH","1031RE694213","20000","13100","61019","34003SJF",{"$f":"VLOOKUP(TRIM(J4008),'Transactional Departments'!A:B,2,FALSE)","v":"SCWDS - Fischer"},"34003SJF","18003","SUSDIRE694213CV","A01","",""]
["34","694",null,null,"USDA     VET SVCS 17-18  FISCH","1031RE694215","20000","13100","61002","34003SJF",{"$f":"VLOOKUP(TRIM(J4009),'Transactional Departments'!A:B,2,FALSE)","v":"SCWDS - Fischer"},"34003SJF","18003","SUSDARE694215CV","A01","",""]
["34","694",null,null,"USDA     W/694-215 CORN  FISCH","1031RE694216","20000","13100","61002","34003SJF",{"$f":"VLOOKUP(TRIM(J4010),'Transactional Departments'!A:B,2,FALSE)","v":"SCWDS - Fischer"},"34003SJF","18003","SUSDARE694216CV","A01","",""]
["34","694",null,null,"USDOI    RF WILDLIFE HLTH     ","1031RE694221","20000","13100","61019","34003SJF",{"$f":"VLOOKUP(TRIM(J4011),'Transactional Departments'!A:B,2,FALSE)","v":"SCWDS - Fischer"},"34003SJF","18400","RUSDIRE694221CV","A01","",""]
["34","694",null,null,"DEKALB   RF ARBOVIRUS    MEAD ","1031RE694222","20000","13100","63102","34003SDM",{"$f":"VLOOKUP(TRIM(J4012),'Transactional Departments'!A:B,2,FALSE)","v":"SCWDS - Mead"},"34003SDM","18400","RDECHRE694222CV","A01","",""]
["34","694",null,null,"USDI/USGSRF ECOSYSTEM    FISCH","1031RE694223","20000","13100","61019","34003SJF",{"$f":"VLOOKUP(TRIM(J4013),'Transactional Departments'!A:B,2,FALSE)","v":"SCWDS - Fischer"},"34003SJF","18400","RUSDIRE694223CV","A01","",""]
["34","694",null,null,"USDAAPHISSWINE INF & TRNGFISCH","1031RE694225","20000","13100","61002","34003S0C",{"$f":"VLOOKUP(TRIM(J4014),'Transactional Departments'!A:B,2,FALSE)","v":"SCWDS - Conversion"},"34003S0C","18003","SUSDARE694225CV","A01","",""]
["34","760",null,null,"TAIGA    RF NOVEL THERPY TOMPK","1021RR760003","20000","12100","64095","340061MT",{"$f":"VLOOKUP(TRIM(J4015),'Transactional Departments'!A:B,2,FALSE)","v":"CVI - Mark Tompkins"},"340061MT","18400","RTBIORR760003CV","A01","",""]
["34","760",null,null,"NYU NIH  RF OMNICS BSD   ROSS ","1021RR760004","20000","12100","62584","340061TR",{"$f":"VLOOKUP(TRIM(J4016),'Transactional Departments'!A:B,2,FALSE)","v":"CVI - Ted Ross"},"340061TR","18400","RNYUXRR760004CV","A01","",""]
["34","760",null,null,"NU/NIH   RF RR793-079    CORDE","1021RR760005","20000","12100","64308","340061TR",{"$f":"VLOOKUP(TRIM(J4017),'Transactional Departments'!A:B,2,FALSE)","v":"CVI - Ted Ross"},"340061TR","18400","RNORTRR760005CV","A01","",""]
["34","760",null,null,"EPIVAX   RF NONADJU VLP  ROSS ","1021RR760006","20000","12100","64096","340061TR",{"$f":"VLOOKUP(TRIM(J4018),'Transactional Departments'!A:B,2,FALSE)","v":"CVI - Ted Ross"},"340061TR","18400","REPIVRR760006CV","A01","",""]
["34","760",null,null,"VERLACE  RF NR INFRARED  ROSS ","1021RR760007","20000","12100","64097","340061TR",{"$f":"VLOOKUP(TRIM(J4019),'Transactional Departments'!A:B,2,FALSE)","v":"CVI - Ted Ross"},"340061TR","18400","RVERARR760007CV","A01","",""]
["34","760",null,null,"EMORY    RF CEIRS OPT 17 TOMPK","1021RR760008","20000","12100","64139","340061MT",{"$f":"VLOOKUP(TRIM(J4020),'Transactional Departments'!A:B,2,FALSE)","v":"CVI - Mark Tompkins"},"340061MT","18400","REMORRR760008CV","A01","",""]
["34","760",null,null,"NYU/NIH  RF OMNICS SUP   ROSS ","1021RR760009","20000","12100","62584","340061TR",{"$f":"VLOOKUP(TRIM(J4021),'Transactional Departments'!A:B,2,FALSE)","v":"CVI - Ted Ross"},"340061TR","18400","RNYUXRR760009CV","A01","",""]
["34","760",null,null,"EMORY    RF CEIRS OPT 18 TOMPK","1021RR760010","20000","12100","64139","340061MT",{"$f":"VLOOKUP(TRIM(J4022),'Transactional Departments'!A:B,2,FALSE)","v":"CVI - Mark Tompkins"},"340061MT","18400","REMORRR760010CV","A01","",""]
["34","760",null,null,"SALK INSTRF EVAL RFGF1   NORRI","1021RR760011","20000","12100","64220","340061KN",{"$f":"VLOOKUP(TRIM(J4023),'Transactional Departments'!A:B,2,FALSE)","v":"CVI - Karen Norris"},"340061KN","18400","RSALKRR760011CV","A01","",""]
["34","760",null,null,"NYU/NIH  RF ALSO W/760-004    ","1021RR760012","20000","12100","62584","340061TR",{"$f":"VLOOKUP(TRIM(J4024),'Transactional Departments'!A:B,2,FALSE)","v":"CVI - Ted Ross"},"340061TR","18400","RNYUXRR760012CV","A01","",""]
["34","760",null,null,"NIH      RF PULM HYPERT1/NORRI","1021RR760013","20000","12100","61018","340061KN",{"$f":"VLOOKUP(TRIM(J4025),'Transactional Departments'!A:B,2,FALSE)","v":"CVI - Karen Norris"},"340061KN","18400","RNIHXRR760013CV","A01","",""]
["34","760",null,null,"LSU/NIH  RF P'MATE CORE  NORRI","1021RR760014","20000","12100","62556","340061KN",{"$f":"VLOOKUP(TRIM(J4026),'Transactional Departments'!A:B,2,FALSE)","v":"CVI - Karen Norris"},"340061KN","18400","RLSUHRR760014CV","A01","",""]
["34","760",null,null,"LSU/NIH  RF PRIMATES     NORRI","1021RR760015","20000","12100","62556","340061KN",{"$f":"VLOOKUP(TRIM(J4027),'Transactional Departments'!A:B,2,FALSE)","v":"CVI - Karen Norris"},"340061KN","18400","RLSUHRR760015CV","A01","",""]
["34","760",null,null,"SANOFI   RF WO 6 FLU     ROSS ","1021RR760016","20000","12100","64496","340061TR",{"$f":"VLOOKUP(TRIM(J4028),'Transactional Departments'!A:B,2,FALSE)","v":"CVI - Ted Ross"},"340061TR","18400","RSANORR760016CV","A01","",""]
["34","760",null,null,"         RF VACCINE DEVELROSS ","1021RR760017","20000","12100","64024","340061TR",{"$f":"VLOOKUP(TRIM(J4029),'Transactional Departments'!A:B,2,FALSE)","v":"CVI - Ted Ross"},"340061TR","18003","SMRILRR760017CV","A01","",""]
["34","760",null,null,"NIH      RF W 760-498         ","1021RR760018","20000","12100","61018","340061EH",{"$f":"VLOOKUP(TRIM(J4030),'Transactional Departments'!A:B,2,FALSE)","v":"CVI - Eric Harvill"},"340061EH","18400","RNIHXRR760018CV","A01","",""]
["34","760",null,null,"BCM/NIH  RF UNIV PROTECT TOMPK","1021RR760019","20000","12100","62586","340061MT",{"$f":"VLOOKUP(TRIM(J4031),'Transactional Departments'!A:B,2,FALSE)","v":"CVI - Mark Tompkins"},"340061MT","18400","RBAYCRR760019CV","A01","",""]
["34","760",null,null,"NIH/HHS  RF IMM DYSFX    NORRI","1021RR760020","20000","12100","61018","340061KN",{"$f":"VLOOKUP(TRIM(J4032),'Transactional Departments'!A:B,2,FALSE)","v":"CVI - Karen Norris"},"340061KN","18400","RNIHXRR760020CV","A01","",""]
["34","760",null,null,"IDRI/NIH RF CHIKUNGUNYA  ROSS ","1021RR760021","20000","12100","64259","340061TR",{"$f":"VLOOKUP(TRIM(J4033),'Transactional Departments'!A:B,2,FALSE)","v":"CVI - Ted Ross"},"340061TR","18400","RIDRIRR760021CV","A01","",""]
["34","760",null,null,"NIH      RF W/760-013         ","1021RR760022","20000","12100","61018","340061KN",{"$f":"VLOOKUP(TRIM(J4034),'Transactional Departments'!A:B,2,FALSE)","v":"CVI - Karen Norris"},"340061KN","18400","RNIHXRR760022CV","A01","",""]
["34","760",null,null,"SANOFI   RF VIRUS STOCK  ROSS ","1021RR760023","20000","12100","64496","340061TR",{"$f":"VLOOKUP(TRIM(J4035),'Transactional Departments'!A:B,2,FALSE)","v":"CVI - Ted Ross"},"340061TR","18400","RSANORR760023CV","A01","",""]
["34","760",null,null,"SANOFI   RF RESCUE VIRUS ROSS ","1021RR760024","20000","12100","64496","340061TR",{"$f":"VLOOKUP(TRIM(J4036),'Transactional Departments'!A:B,2,FALSE)","v":"CVI - Ted Ross"},"340061TR","18400","RSANORR760024CV","A01","",""]
["34","760",null,null,"SANOFI   RF FERRET REF   ROSS ","1021RR760025","20000","12100","64496","340061TR",{"$f":"VLOOKUP(TRIM(J4037),'Transactional Departments'!A:B,2,FALSE)","v":"CVI - Ted Ross"},"340061TR","18400","RSANORR760025CV","A01","",""]
["34","760",null,null,"NYU NIH  RF OMNICS BSD   ROSS ","1021RR760026","20000","12100","62584","340061TR",{"$f":"VLOOKUP(TRIM(J4038),'Transactional Departments'!A:B,2,FALSE)","v":"CVI - Ted Ross"},"340061TR","18400","RNYUXRR760026CV","A01","",""]
["34","760",null,null,"U PIT/NIHRF MOLECLAR DRVRNORRI","1021RR760027","20000","12100","64189","340061KN",{"$f":"VLOOKUP(TRIM(J4039),'Transactional Departments'!A:B,2,FALSE)","v":"CVI - Karen Norris"},"340061KN","18400","RUPITRR760027CV","A01","",""]
["34","760",null,null,"SANOFI   RF WRK ORDR # 13ROSS ","1021RR760028","20000","12100","64496","340061TR",{"$f":"VLOOKUP(TRIM(J4040),'Transactional Departments'!A:B,2,FALSE)","v":"CVI - Ted Ross"},"340061TR","18400","RSANORR760028CV","A01","",""]
["34","760",null,null,"EPIVAX   RF GUIDED DSIGN ROSS ","1021RR760029","20000","12100","64096","3400610C",{"$f":"VLOOKUP(TRIM(J4041),'Transactional Departments'!A:B,2,FALSE)","v":"CVI - Conversion"},"3400610C","18400","REPIVRR760029CV","A01","",""]
["34","760",null,null,"NYU/NIH  RF OMICS MODEL  ROSS ","1021RR760030","20000","12100","62584","3400610C",{"$f":"VLOOKUP(TRIM(J4042),'Transactional Departments'!A:B,2,FALSE)","v":"CVI - Conversion"},"3400610C","18400","RNYUXRR760030CV","A01","",""]
["34","760",null,null,"EMORY/NIHRF CEIRS OP 15  ROSS ","1021RR760032","20000","12100","64139","3400610C",{"$f":"VLOOKUP(TRIM(J4043),'Transactional Departments'!A:B,2,FALSE)","v":"CVI - Conversion"},"3400610C","18400","REMORRR760032CV","A01","",""]
["34","760",null,null,"MSSM/NIH RF DHIPC        ROSS ","1021RR760033","20000","12100","64166","3400610C",{"$f":"VLOOKUP(TRIM(J4044),'Transactional Departments'!A:B,2,FALSE)","v":"CVI - Conversion"},"3400610C","18400","RMSSMRR760033CV","A01","",""]
["34","760",null,null,"SANOFI   RF H1NI COBRA   ROSS ","1021RR760453","20000","12100","64496","340061TR",{"$f":"VLOOKUP(TRIM(J4045),'Transactional Departments'!A:B,2,FALSE)","v":"CVI - Ted Ross"},"340061TR","18400","RSANORR760453CV","A01","",""]
["34","760",null,null,"SANOFI   RF UGARF WO 1A  ROSS ","1021RR760464","20000","12100","64496","340061TR",{"$f":"VLOOKUP(TRIM(J4046),'Transactional Departments'!A:B,2,FALSE)","v":"CVI - Ted Ross"},"340061TR","18400","RSANORR760464CV","A01","",""]
["34","760",null,null,"MODERNA  RF DENGUE VIRUS ROSS ","1021RR760480","20000","12100","64085","340061TR",{"$f":"VLOOKUP(TRIM(J4047),'Transactional Departments'!A:B,2,FALSE)","v":"CVI - Ted Ross"},"340061TR","18400","RMODERR760480CV","A01","",""]
["34","760",null,null,"SANOFI   RF UGARF WO 1B  ROSS ","1021RR760483","20000","12100","64496","340061TR",{"$f":"VLOOKUP(TRIM(J4048),'Transactional Departments'!A:B,2,FALSE)","v":"CVI - Ted Ross"},"340061TR","18400","RSANORR760483CV","A01","",""]
["34","760",null,null,"MERIAL   RF FLU VACCINES ROSS ","1021RR760491","20000","12100","64024","340061TR",{"$f":"VLOOKUP(TRIM(J4049),'Transactional Departments'!A:B,2,FALSE)","v":"CVI - Ted Ross"},"340061TR","18400","RMRILRR760491CV","A01","",""]
["34","760",null,null,"NIH      RF BORDETELLA   HARVI","1021RR760496","20000","12100","61018","340061EH",{"$f":"VLOOKUP(TRIM(J4050),'Transactional Departments'!A:B,2,FALSE)","v":"CVI - Eric Harvill"},"340061EH","18400","RNIHXRR760496CV","A01","",""]
["34","760",null,null,"UT/NIH   RF B PERTUSSIS  HARVI","1021RR760497","20000","12100","62517","340061EH",{"$f":"VLOOKUP(TRIM(J4051),'Transactional Departments'!A:B,2,FALSE)","v":"CVI - Eric Harvill"},"340061EH","18400","RUTXARR760497CV","A01","",""]
["34","760",null,null,"NIH      RF MICROBIAOTA  HARVI","1021RR760498","20000","12100","61018","340061EH",{"$f":"VLOOKUP(TRIM(J4052),'Transactional Departments'!A:B,2,FALSE)","v":"CVI - Eric Harvill"},"340061EH","18400","RNIHXRR760498CV","A01","",""]
["34","760",null,null,"SANOFI   RF WRK ORDER 4B ROSS ","1021RR760501","20000","12100","64496","340061TR",{"$f":"VLOOKUP(TRIM(J4053),'Transactional Departments'!A:B,2,FALSE)","v":"CVI - Ted Ross"},"340061TR","18400","RSANORR760501CV","A01","",""]
["34","760",null,null,"SANOFI   RF RF_WORK ORDR5 ROSS","1021RR760504","20000","12100","64496","340061TR",{"$f":"VLOOKUP(TRIM(J4054),'Transactional Departments'!A:B,2,FALSE)","v":"CVI - Ted Ross"},"340061TR","18400","RSANORR760504CV","A01","",""]
["34","760",null,null,"SANOFI   RF ASSES FLU 4C ROS  ","1021RR760507","20000","12100","64496","340061TR",{"$f":"VLOOKUP(TRIM(J4055),'Transactional Departments'!A:B,2,FALSE)","v":"CVI - Ted Ross"},"340061TR","18400","RSANORR760507CV","A01","",""]
["34","760",null,null,"EU/NIH   RF W 211-530_TOMPKINS","1021RR760508","20000","12100","64139","340061MT",{"$f":"VLOOKUP(TRIM(J4056),'Transactional Departments'!A:B,2,FALSE)","v":"CVI - Mark Tompkins"},"340061MT","18400","REMORRR760508CV","A01","",""]
["34","760",null,null,"TAIGA    RF FLU CHALL    TOMPK","1021RR760509","20000","12100","64095","340061MT",{"$f":"VLOOKUP(TRIM(J4057),'Transactional Departments'!A:B,2,FALSE)","v":"CVI - Mark Tompkins"},"340061MT","18400","RTBIORR760509CV","A01","",""]
["42","007",null,null,"BORUSG   USG STEM PRO    BURG ","1011RH007035","20000","11100","62020","42001004",{"$f":"VLOOKUP(TRIM(J4058),'Transactional Departments'!A:B,2,FALSE)","v":"VPI Departmental Admin"},"42001004","18003","SGBORRH007035CV","A01","",""]
["42","007",null,null,"BOR/USG  STEM UNITS      BURG ","1011RH007036","20000","11100","62020","42001004",{"$f":"VLOOKUP(TRIM(J4059),'Transactional Departments'!A:B,2,FALSE)","v":"VPI Departmental Admin"},"42001004","18003","SGBORRH007036CV","A01","",""]
["42","079",null,null,"USDE     UGA SSS PROJECT_HAGOO","1011RH079102","20000","11100","61033","42006003",{"$f":"VLOOKUP(TRIM(J4060),'Transactional Departments'!A:B,2,FALSE)","v":"DAE Departmental Admin"},"42006003","18003","SDOEDRH079102CV","A01","",""]
["42","079",null,null,"USDE     W/ 079-102      HAYGO","1011RH079103","20000","11100","61033","42006003",{"$f":"VLOOKUP(TRIM(J4061),'Transactional Departments'!A:B,2,FALSE)","v":"DAE Departmental Admin"},"42006003","18003","SDOEDRH079103CV","A01","",""]
["42","079",null,null,"USDE     UPWARD BOUND    HAGOO","1031RE079096","20000","13100","61033","42006003",{"$f":"VLOOKUP(TRIM(J4062),'Transactional Departments'!A:B,2,FALSE)","v":"DAE Departmental Admin"},"42006003","18003","SDOEDRE079096CV","A01","",""]
["42","079",null,null,"USDE     NEGA UPWARD BND HAGOO","1031RE079097","20000","13100","61033","42006003",{"$f":"VLOOKUP(TRIM(J4063),'Transactional Departments'!A:B,2,FALSE)","v":"DAE Departmental Admin"},"42006003","18003","SDOEDRE079097CV","A01","",""]
["42","079",null,null,"USDE     PS 079-097      HAYGO","1031RE079098","20000","13100","61033","42006003",{"$f":"VLOOKUP(TRIM(J4064),'Transactional Departments'!A:B,2,FALSE)","v":"DAE Departmental Admin"},"42006003","18003","SDOEDRE079098CV","A01","",""]
["42","079",null,null,"USDE     TALENT SEARCH   HAGOO","1031RE079099","20000","13100","61033","42006003",{"$f":"VLOOKUP(TRIM(J4065),'Transactional Departments'!A:B,2,FALSE)","v":"DAE Departmental Admin"},"42006003","18003","SDOEDRE079099CV","A01","",""]
["42","079",null,null,"USDE        PS 079-099   HAYGO","1031RE079100","20000","13100","61033","42006003",{"$f":"VLOOKUP(TRIM(J4066),'Transactional Departments'!A:B,2,FALSE)","v":"DAE Departmental Admin"},"42006003","18003","SDOEDRE079100CV","A01","",""]
["42","079",null,null,"USDE     PS  RE079-096   HAYGO","1031RE079101","20000","13100","61033","42006003",{"$f":"VLOOKUP(TRIM(J4067),'Transactional Departments'!A:B,2,FALSE)","v":"DAE Departmental Admin"},"42006003","18003","SDOEDRE079101CV","A01","",""]
["42","079",null,null,"US DEP EDUGA_UPWARD BND _HAGOO","1031RE079105","20000","13100","61033","42006003",{"$f":"VLOOKUP(TRIM(J4068),'Transactional Departments'!A:B,2,FALSE)","v":"DAE Departmental Admin"},"42006003","18003","SDOEDRE079105CV","A01","",""]
["42","079",null,null,"US DEP EDUGA P/S W/ RR079105  ","1031RE079106","20000","13100","61033","42006003",{"$f":"VLOOKUP(TRIM(J4069),'Transactional Departments'!A:B,2,FALSE)","v":"DAE Departmental Admin"},"42006003","18003","SDOEDRE079106CV","A01","",""]
["42","079",null,null,"USDOED   UPWARD BOUND    HAGOO","1031RE079107","20000","13100","61033","42006003",{"$f":"VLOOKUP(TRIM(J4070),'Transactional Departments'!A:B,2,FALSE)","v":"DAE Departmental Admin"},"42006003","18003","SDOEDRE079107CV","A01","",""]
["42","079",null,null,"USDOED   P SUP 079-108   HAGOO","1031RE079108","20000","13100","61033","42006003",{"$f":"VLOOKUP(TRIM(J4071),'Transactional Departments'!A:B,2,FALSE)","v":"DAE Departmental Admin"},"42006003","18003","SDOEDRE079108CV","A01","",""]
["42","079",null,null,"US DEP EDUGA_TALENT SRCH_HAGOO","1031RE079109","20000","13100","61033","42006003",{"$f":"VLOOKUP(TRIM(J4072),'Transactional Departments'!A:B,2,FALSE)","v":"DAE Departmental Admin"},"42006003","18003","SDOEDRE079109CV","A01","",""]
["42","079",null,null,"US DEP EDP/S W/ RE079109 HAGOO","1031RE079110","20000","13100","61033","42006003",{"$f":"VLOOKUP(TRIM(J4073),'Transactional Departments'!A:B,2,FALSE)","v":"DAE Departmental Admin"},"42006003","18003","SDOEDRE079110CV","A01","",""]
["42","079",null,null,"US DO ED UGA MCNAIR POST_HAGOO","1031RE079111","20000","13100","61033","42006003",{"$f":"VLOOKUP(TRIM(J4074),'Transactional Departments'!A:B,2,FALSE)","v":"DAE Departmental Admin"},"42006003","18003","SDOEDRE079111CV","A01","",""]
["42","079",null,null,"US DPT EDUGA_UGA UPWARD__HAGOO","1031RE079113","20000","13100","61033","42006003",{"$f":"VLOOKUP(TRIM(J4075),'Transactional Departments'!A:B,2,FALSE)","v":"DAE Departmental Admin"},"42006003","18003","SDOEDRE079113CV","A01","",""]
["42","079",null,null,"US DPT EDWITH 1031RE079113    ","1031RE079114","20000","13100","61033","42006003",{"$f":"VLOOKUP(TRIM(J4076),'Transactional Departments'!A:B,2,FALSE)","v":"DAE Departmental Admin"},"42006003","18003","SDOEDRE079114CV","A01","",""]
["42","138",null,null,"USGFI    W/148-030       COZAR","1011RH138100","20000","11100","64325","42009001",{"$f":"VLOOKUP(TRIM(J4077),'Transactional Departments'!A:B,2,FALSE)","v":"Online Learning Admin"},"42009001","18003","SUSGFRH138100CV","A01","",""]
["42","139",null,null,"USDE/C&G AMERICA READS 2015   ","1066RA139048","20000","16700","61033","42013000",{"$f":"VLOOKUP(TRIM(J4078),'Transactional Departments'!A:B,2,FALSE)","v":"Work Study"},"42013000","18003","SDOEDRA139048CV","A01","",""]
["42","139",null,null,"USDE/C&G WORKSTUDY 2017  JOERS","1066RA139051","20000","16700","61033","42013000",{"$f":"VLOOKUP(TRIM(J4079),'Transactional Departments'!A:B,2,FALSE)","v":"Work Study"},"42013000","18003","SDOEDRA139051CV","A01","",""]
["42","139",null,null,"USDE/C&G AMERICA READS 2017   ","1066RA139052","20000","16700","61033","42013000",{"$f":"VLOOKUP(TRIM(J4080),'Transactional Departments'!A:B,2,FALSE)","v":"Work Study"},"42013000","18003","SDOEDRA139052CV","A01","",""]
["42","139",null,null,"USDE/C&G WORKSTUDY 2017  JOERS","1066RA139053","20000","16700","61033","42013000",{"$f":"VLOOKUP(TRIM(J4081),'Transactional Departments'!A:B,2,FALSE)","v":"Work Study"},"42013000","18003","SDOEDRA139053CV","A01","",""]
["42","139",null,null,"USDE/C&G AMERICA READS 2018   ","1066RA139054","20000","16700","61033","42013000",{"$f":"VLOOKUP(TRIM(J4082),'Transactional Departments'!A:B,2,FALSE)","v":"Work Study"},"42013000","18003","SDOEDRA139054CV","A01","",""]
["42","148",null,null,"VA TECH  ONLINE MUSIC    SCHWA","1011RH148010","20000","11100","62519","42005100",{"$f":"VLOOKUP(TRIM(J4083),'Transactional Departments'!A:B,2,FALSE)","v":"CTL Admin"},"42005100","18003","SVAPTRH148010CV","A01","",""]
["42","148",null,null,"USGFI    GA TEXTBOOK     COZAR","1011RH148030","20000","11100","64325","42005100",{"$f":"VLOOKUP(TRIM(J4084),'Transactional Departments'!A:B,2,FALSE)","v":"CTL Admin"},"42005100","18003","SUSGFRH148030CV","A01","",""]
["42","148",null,null,"BRUGA    TEXTBOOK        COZAR","1011RH148032","20000","11100","62020","42005100",{"$f":"VLOOKUP(TRIM(J4085),'Transactional Departments'!A:B,2,FALSE)","v":"CTL Admin"},"42005100","18003","SGBORRH148032CV","A01","",""]
["42","148",null,null,"RICE/GATEOPEN TUDOR_ADAP_COVER","1031RE148028","20000","13100","64238","42005100",{"$f":"VLOOKUP(TRIM(J4086),'Transactional Departments'!A:B,2,FALSE)","v":"CTL Admin"},"42005100","18003","SRICERE148028CV","A01","",""]
["42","148",null,null,"RICE/GATEINT INC RE148028 WATS","1031RE148029","20000","13100","64238","42005100",{"$f":"VLOOKUP(TRIM(J4087),'Transactional Departments'!A:B,2,FALSE)","v":"CTL Admin"},"42005100","18003","SRICERE148029CV","A01","",""]
["42","772",null,null,"UMN/USDE TRANSFORMING    WILDE","1031RE772005","20000","13100","62514","42011001",{"$f":"VLOOKUP(TRIM(J4088),'Transactional Departments'!A:B,2,FALSE)","v":"Service Learning Admin"},"42011001","18003","SUOMNRE772005CV","A01","",""]
["42","772",null,null,"UMN/USDE PS W/ 722005    WILDE","1031RE772006","20000","13100","62514","42011001",{"$f":"VLOOKUP(TRIM(J4089),'Transactional Departments'!A:B,2,FALSE)","v":"Service Learning Admin"},"42011001","18003","SUOMNRE772006CV","A01","",""]
["42","772",null,null,"CCSD     GARDEN PROJECT  WILDE","1031RE772007","20000","13100","63041","42011001",{"$f":"VLOOKUP(TRIM(J4090),'Transactional Departments'!A:B,2,FALSE)","v":"Service Learning Admin"},"42011001","18003","SCLCDRE772007CV","A01","",""]
["42","772",null,null,"ACCL     VISTA           MATTH","1031RE772008","20000","13100","63135","42011001",{"$f":"VLOOKUP(TRIM(J4091),'Transactional Departments'!A:B,2,FALSE)","v":"Service Learning Admin"},"42011001","18003","SATHNRE772008CV","A01","",""]
["43","005",null,null,"GHC      RF SLAVERY  EHLER 180","1021RR005285","20000","12100","62041","43001001",{"$f":"VLOOKUP(TRIM(J4092),'Transactional Departments'!A:B,2,FALSE)","v":"VP Office Research Admin"},"43001001","18400","RGEHCRR005285CV","A01","",""]
["43","005",null,null,"GRA      SENIOR VENTURES BIGGS","1021RR005288","20000","12100","62062","43001001",{"$f":"VLOOKUP(TRIM(J4093),'Transactional Departments'!A:B,2,FALSE)","v":"VP Office Research Admin"},"43001001","18003","SGRAXRR005288CV","A01","",""]
["43","005",null,null,"USDA     RF LIBRARY CONS BELAN","1021RR005289","20000","12100","61004","43001001",{"$f":"VLOOKUP(TRIM(J4094),'Transactional Departments'!A:B,2,FALSE)","v":"VP Office Research Admin"},"43001001","18400","RARSXRR005289CV","A01","",""]
["43","005",null,null,"USDA     GOOD & SERVICES BELAN","1021RR005290","20000","12100","61004","43001001",{"$f":"VLOOKUP(TRIM(J4095),'Transactional Departments'!A:B,2,FALSE)","v":"VP Office Research Admin"},"43001001","18003","SARSXRR005290CV","A01","",""]
["43","005",null,null,"USDC     RF NEW MATERIAL EBERH","1021RR005294","20000","12100","61009","43001001",{"$f":"VLOOKUP(TRIM(J4096),'Transactional Departments'!A:B,2,FALSE)","v":"VP Office Research Admin"},"43001001","18400","RUSDCRR005294CV","A01","",""]
["43","005",null,null,"NSF      RF ICORPS SITES EBERH","1021RR005295","20000","12100","61023","43001001",{"$f":"VLOOKUP(TRIM(J4097),'Transactional Departments'!A:B,2,FALSE)","v":"VP Office Research Admin"},"43001001","18400","RNSFXRR005295CV","A01","",""]
["43","005",null,null,"USDA     GOODS & SRVICES BELAN","1021RR005302","20000","12100","61004","43001001",{"$f":"VLOOKUP(TRIM(J4098),'Transactional Departments'!A:B,2,FALSE)","v":"VP Office Research Admin"},"43001001","18003","SARSXRR005302CV","A01","",""]
["43","005",null,null,"NEH      PUTNAM COUNTY   ALLEN","1031RE005292","20000","13100","61025","43001001",{"$f":"VLOOKUP(TRIM(J4099),'Transactional Departments'!A:B,2,FALSE)","v":"VP Office Research Admin"},"43001001","18003","SNEFHRE005292CV","A01","",""]
["43","099",null,null,"NSF      RF SUP 100-621  ALBER","2821RR099150","21340","12100","61023","43900001",{"$f":"VLOOKUP(TRIM(J4100),'Transactional Departments'!A:B,2,FALSE)","v":"Marine Institute Operations"},"43900001","18400","RNSFXRR099150CV","A01","",""]
["43","099",null,null,"NSF      RF W/ W/ 100657 ALBER","2821RR099151","21340","12100","61023","43900001",{"$f":"VLOOKUP(TRIM(J4101),'Transactional Departments'!A:B,2,FALSE)","v":"Marine Institute Operations"},"43900001","18400","RNSFXRR099151CV","A01","",""]
["43","099",null,null,"NSF         SEAWATER SYS ALBER","2821RR099153","21340","12100","61023","43900001",{"$f":"VLOOKUP(TRIM(J4102),'Transactional Departments'!A:B,2,FALSE)","v":"Marine Institute Operations"},"43900001","18003","SNSFXRR099153CV","A01","",""]
["43","264",null,null,"UT/NIH   RF CHAGAS VACC  AVCI ","1021RR264005","20000","12100","62577","43460001",{"$f":"VLOOKUP(TRIM(J4103),'Transactional Departments'!A:B,2,FALSE)","v":"Cmm Administration"},"43460001","18400","RUTXERR264005CV","A01","",""]
["43","264",null,null,"ACS      RF RF MICRORNA _YIN  ","1021RR264006","20000","12100","62078","43460001",{"$f":"VLOOKUP(TRIM(J4104),'Transactional Departments'!A:B,2,FALSE)","v":"Cmm Administration"},"43460001","18400","RGARURR264006CV","A01","",""]
["43","264",null,null,"NIH      RF RF_IMP OF HYPYIN  ","1021RR264010","20000","12100","61018","43460001",{"$f":"VLOOKUP(TRIM(J4105),'Transactional Departments'!A:B,2,FALSE)","v":"Cmm Administration"},"43460001","18400","RNIHXRR264010CV","A01","",""]
["43","264",null,null,"AHA      UGA_FN LIN28A  _YIN  ","1021RR264011","20000","12100","64127","43460001",{"$f":"VLOOKUP(TRIM(J4106),'Transactional Departments'!A:B,2,FALSE)","v":"Cmm Administration"},"43460001","18003","SAHTARR264011CV","A01","",""]
["43","264",null,null,"AHA      RF RF_HYPOXIA INYIN  ","1021RR264043","20000","12100","64127","43460001",{"$f":"VLOOKUP(TRIM(J4107),'Transactional Departments'!A:B,2,FALSE)","v":"Cmm Administration"},"43460001","18400","RAHTARR264043CV","A01","",""]
["43","264",null,null,"NIH      RF MOLECUL MECH_AVCI ","1021RR264044","20000","12100","61018","43460001",{"$f":"VLOOKUP(TRIM(J4108),'Transactional Departments'!A:B,2,FALSE)","v":"Cmm Administration"},"43460001","18400","RNIHXRR264044CV","A01","",""]
["43","267",null,null,"         RF RARE TURTLES BUHLM","1021RR267230","20000","12100","64149","43150001",{"$f":"VLOOKUP(TRIM(J4109),'Transactional Departments'!A:B,2,FALSE)","v":"SREL Operations"},"43150001","18003","SFRGRRR267230CV","A01","",""]
["43","267",null,null,"USDA     RF INSULAR RODN RHODE","1021RR267232","20000","12100","61002","43150001",{"$f":"VLOOKUP(TRIM(J4110),'Transactional Departments'!A:B,2,FALSE)","v":"SREL Operations"},"43150001","18400","RUSDARR267232CV","A01","",""]
["43","267",null,null,"         RF AIRPORT BIRD KENNA","1021RR267233","20000","12100","63082","43150001",{"$f":"VLOOKUP(TRIM(J4111),'Transactional Departments'!A:B,2,FALSE)","v":"SREL Operations"},"43150001","18003","SARCCRR267233CV","A01","",""]
["43","267",null,null,"USDA     RF LRAD WEAPON  RHODE","1021RR267235","20000","12100","61002","43150001",{"$f":"VLOOKUP(TRIM(J4112),'Transactional Departments'!A:B,2,FALSE)","v":"SREL Operations"},"43150001","18400","RUSDARR267235CV","A01","",""]
["43","267",null,null,"USDA     RF RHODAMINE B  BEASL","1021RR267237","20000","12100","61002","43150001",{"$f":"VLOOKUP(TRIM(J4113),'Transactional Departments'!A:B,2,FALSE)","v":"SREL Operations"},"43150001","18400","RUSDARR267237CV","A01","",""]
["43","267",null,null,"USDA     RF INSULAR RODN RHODE","1021RR267240","20000","12100","61002","43150001",{"$f":"VLOOKUP(TRIM(J4114),'Transactional Departments'!A:B,2,FALSE)","v":"SREL Operations"},"43150001","18400","RUSDARR267240CV","A01","",""]
["43","267",null,null,"SRR      RF SALTSTONE    SEAMA","1021RR267242","20000","12100","64053","43150001",{"$f":"VLOOKUP(TRIM(J4115),'Transactional Departments'!A:B,2,FALSE)","v":"SREL Operations"},"43150001","18400","RSRRLRR267242CV","A01","",""]
["43","267",null,null,"CESU     RF CADMIUM LVLS RHODE","1021RR267243","20000","12100","61034","43150001",{"$f":"VLOOKUP(TRIM(J4116),'Transactional Departments'!A:B,2,FALSE)","v":"SREL Operations"},"43150001","18400","RCESURR267243CV","A01","",""]
["43","267",null,null,"SRR      RF MCQUEEN BRAN SEAMA","1021RR267244","20000","12100","64053","43150001",{"$f":"VLOOKUP(TRIM(J4117),'Transactional Departments'!A:B,2,FALSE)","v":"SREL Operations"},"43150001","18400","RSRRLRR267244CV","A01","",""]
["43","267",null,null,"USDA     RF RHODAMINE B  BEASL","1021RR267247","20000","12100","61002","43150001",{"$f":"VLOOKUP(TRIM(J4118),'Transactional Departments'!A:B,2,FALSE)","v":"SREL Operations"},"43150001","18400","RUSDARR267247CV","A01","",""]
["43","267",null,null,"USDA     RF LRAD WEAPON  RHODE","1021RR267249","20000","12100","61007","43150001",{"$f":"VLOOKUP(TRIM(J4119),'Transactional Departments'!A:B,2,FALSE)","v":"SREL Operations"},"43150001","18400","RAPHIRR267249CV","A01","",""]
["43","267",null,null,"USDOA    RF TRAP AND TIS BEASL","1021RR267250","20000","12100","61014","43150001",{"$f":"VLOOKUP(TRIM(J4120),'Transactional Departments'!A:B,2,FALSE)","v":"SREL Operations"},"43150001","18400","RUSARRR267250CV","A01","",""]
["43","267",null,null,"USDC     RF RR746-080  TUB/AND","1021RR267251","20000","12100","61009","43150001",{"$f":"VLOOKUP(TRIM(J4121),'Transactional Departments'!A:B,2,FALSE)","v":"SREL Operations"},"43150001","18400","RUSDCRR267251CV","A01","",""]
["43","267",null,null,"DWCF     RF BLAND TURTLE TUBER","1021RR267254","20000","12100","64000","43150001",{"$f":"VLOOKUP(TRIM(J4122),'Transactional Departments'!A:B,2,FALSE)","v":"SREL Operations"},"43150001","18400","RDNCFRR267254CV","A01","",""]
["43","267",null,null,"GDNRUSDOIRF GPH FRGS PG  LANCE","1021RR267321","20000","12100","62016","43150001",{"$f":"VLOOKUP(TRIM(J4123),'Transactional Departments'!A:B,2,FALSE)","v":"SREL Operations"},"43150001","18400","RGDNRRR267321CV","A01","",""]
["43","267",null,null,"         RF MINING LANDS TUBER","1021RR267322","20000","12100","64070","43150001",{"$f":"VLOOKUP(TRIM(J4124),'Transactional Departments'!A:B,2,FALSE)","v":"SREL Operations"},"43150001","18003","SSOIIRR267322CV","A01","",""]
["43","267",null,null,"NSF      RF RF_REU SITE__MCART","1021RR267323","20000","12100","61023","43150001",{"$f":"VLOOKUP(TRIM(J4125),'Transactional Departments'!A:B,2,FALSE)","v":"SREL Operations"},"43150001","18400","RNSFXRR267323CV","A01","",""]
["43","267",null,null,"USDOE/SRRRF SULFATE      SEAMA","1021RR267324","20000","12100","64053","43150001",{"$f":"VLOOKUP(TRIM(J4126),'Transactional Departments'!A:B,2,FALSE)","v":"SREL Operations"},"43150001","18400","RSRRLRR267324CV","A01","",""]
["43","267",null,null,"KLEINSCHMRF MONTICELLO   BEASL","1021RR267325","20000","12100","64347","43150001",{"$f":"VLOOKUP(TRIM(J4127),'Transactional Departments'!A:B,2,FALSE)","v":"SREL Operations"},"43150001","18400","RKLEIRR267325CV","A01","",""]
["43","267",null,null,"ARC      RF BIRD STUDY 16KENNA","1021RR267328","20000","12100","63082","43150001",{"$f":"VLOOKUP(TRIM(J4128),'Transactional Departments'!A:B,2,FALSE)","v":"SREL Operations"},"43150001","18400","RARCCRR267328CV","A01","",""]
["43","267",null,null,"FAMU/DOE RF HOTSPOTS     SEAMA","1021RR267331","20000","12100","62546","43150001",{"$f":"VLOOKUP(TRIM(J4129),'Transactional Departments'!A:B,2,FALSE)","v":"SREL Operations"},"43150001","18400","RFLAURR267331CV","A01","",""]
["43","267",null,null,"USDA NIFARF WATER USE    AUBRE","1021RR267332","20000","12100","61006","43150001",{"$f":"VLOOKUP(TRIM(J4130),'Transactional Departments'!A:B,2,FALSE)","v":"SREL Operations"},"43150001","18400","RNIFARR267332CV","A01","",""]
["43","267",null,null,"USDAAPHISRF INDIR TRNFR  RHODE","1021RR267333","20000","12100","61007","43150001",{"$f":"VLOOKUP(TRIM(J4131),'Transactional Departments'!A:B,2,FALSE)","v":"SREL Operations"},"43150001","18400","RAPHIRR267333CV","A01","",""]
["43","267",null,null,"SRR      RF W/ 267-242        ","1021RR267334","20000","12100","64053","43150001",{"$f":"VLOOKUP(TRIM(J4132),'Transactional Departments'!A:B,2,FALSE)","v":"SREL Operations"},"43150001","18400","RSRRLRR267334CV","A01","",""]
["43","267",null,null,"SCDH/HHS RF DIOXIN CONT  PARRO","1021RR267357","20000","12100","62575","43150001",{"$f":"VLOOKUP(TRIM(J4133),'Transactional Departments'!A:B,2,FALSE)","v":"SREL Operations"},"43150001","18400","RSCHERR267357CV","A01","",""]
["43","267",null,null,"LONGLEAF RF C/S RR267865 BUHLM","1021RR267358","20000","12100","64272","43150001",{"$f":"VLOOKUP(TRIM(J4134),'Transactional Departments'!A:B,2,FALSE)","v":"SREL Operations"},"43150001","18400","RLONGRR267358CV","A01","",""]
["43","267",null,null,"SCDNR    RF MISSISSIPPI  LANCE","1021RR267359","20000","12100","62550","43150001",{"$f":"VLOOKUP(TRIM(J4135),'Transactional Departments'!A:B,2,FALSE)","v":"SREL Operations"},"43150001","18400","RSCNRRR267359CV","A01","",""]
["43","267",null,null,"CESU     RF PHASE II     TUBER","1021RR267361","20000","12100","61034","43150001",{"$f":"VLOOKUP(TRIM(J4136),'Transactional Departments'!A:B,2,FALSE)","v":"SREL Operations"},"43150001","18400","RCESURR267361CV","A01","",""]
["43","267",null,null,"AUG RICH RF BUSH FIELD   KENNA","1021RR267362","20000","12100","63082","43150001",{"$f":"VLOOKUP(TRIM(J4137),'Transactional Departments'!A:B,2,FALSE)","v":"SREL Operations"},"43150001","18400","RARCCRR267362CV","A01","",""]
["43","267",null,null,"UCDAVIS  RF MITIGATION STTUBER","1021RR267363","20000","12100","62562","43150001",{"$f":"VLOOKUP(TRIM(J4138),'Transactional Departments'!A:B,2,FALSE)","v":"SREL Operations"},"43150001","18400","RUCADRR267363CV","A01","",""]
["43","267",null,null,"USDAAPHISRF US-YR2       RHODE","1021RR267364","20000","12100","61007","43150001",{"$f":"VLOOKUP(TRIM(J4139),'Transactional Departments'!A:B,2,FALSE)","v":"SREL Operations"},"43150001","18400","RAPHIRR267364CV","A01","",""]
["43","267",null,null,"DOE      RF SUP 267-400       ","1021RR267400","20000","12100","61001","43150001",{"$f":"VLOOKUP(TRIM(J4140),'Transactional Departments'!A:B,2,FALSE)","v":"SREL Operations"},"43150001","18400","RUSDERR267400CV","A01","",""]
["43","267",null,null,"DOE      RF H02 AMPHIBAN RHODE","1021RR267413","20000","12100","61001","43150001",{"$f":"VLOOKUP(TRIM(J4141),'Transactional Departments'!A:B,2,FALSE)","v":"SREL Operations"},"43150001","18400","RUSDERR267413CV","A01","",""]
["43","267",null,null,"DOE      RF SRELPOST DOC      ","1021RR267436","20000","12100","61001","43150001",{"$f":"VLOOKUP(TRIM(J4142),'Transactional Departments'!A:B,2,FALSE)","v":"SREL Operations"},"43150001","18400","RUSDERR267436CV","A01","",""]
["43","267",null,null,"DOE      RF SREL KENNAMER     ","1021RR267441","20000","12100","61001","43150001",{"$f":"VLOOKUP(TRIM(J4143),'Transactional Departments'!A:B,2,FALSE)","v":"SREL Operations"},"43150001","18400","RUSDERR267441CV","A01","",""]
["43","267",null,null,"FLFWL/DOIRF GOPHER FROG  LANCE","1021RR267444","20000","12100","62554","43150001",{"$f":"VLOOKUP(TRIM(J4144),'Transactional Departments'!A:B,2,FALSE)","v":"SREL Operations"},"43150001","18400","RFLFWRR267444CV","A01","",""]
["43","267",null,null,"CESU     RF LOGGERHEAD   BRYAN","1021RR267445","20000","12100","61034","43150001",{"$f":"VLOOKUP(TRIM(J4145),'Transactional Departments'!A:B,2,FALSE)","v":"SREL Operations"},"43150001","18400","RCESURR267445CV","A01","",""]
["43","267",null,null,"CESU     RF RAT SNAKE    TUBER","1021RR267448","20000","12100","61034","43150001",{"$f":"VLOOKUP(TRIM(J4146),'Transactional Departments'!A:B,2,FALSE)","v":"SREL Operations"},"43150001","18400","RCESURR267448CV","A01","",""]
["43","267",null,null,"USN      RF GOPHER TORT  TUBER","1021RR267449","20000","12100","61015","43150001",{"$f":"VLOOKUP(TRIM(J4147),'Transactional Departments'!A:B,2,FALSE)","v":"SREL Operations"},"43150001","18400","RUSNXRR267449CV","A01","",""]
["43","267",null,null,"USDN     RF NAS WHITING  TUBER","1021RR267450","20000","12100","61015","43150001",{"$f":"VLOOKUP(TRIM(J4148),'Transactional Departments'!A:B,2,FALSE)","v":"SREL Operations"},"43150001","18400","RUSNXRR267450CV","A01","",""]
["43","267",null,null,"DOE      RF SAV RIV______RHODE","1021RR267451","20000","12100","61001","43150001",{"$f":"VLOOKUP(TRIM(J4149),'Transactional Departments'!A:B,2,FALSE)","v":"SREL Operations"},"43150001","18400","RUSDERR267451CV","A01","",""]
["43","267",null,null,"DOE      RF W/ 267-400        ","1021RR267452","20000","12100","61001","43150001",{"$f":"VLOOKUP(TRIM(J4150),'Transactional Departments'!A:B,2,FALSE)","v":"SREL Operations"},"43150001","18400","RUSDERR267452CV","A01","",""]
["43","267",null,null,"FL F&W      STRIPED NEWTSLANCE","1021RR267459","20000","12100","62554","43150001",{"$f":"VLOOKUP(TRIM(J4151),'Transactional Departments'!A:B,2,FALSE)","v":"SREL Operations"},"43150001","18003","SFLFWRR267459CV","A01","",""]
["43","267",null,null,"CESU     RF K BAY HERP   TUBER","1021RR267461","20000","12100","61034","43150001",{"$f":"VLOOKUP(TRIM(J4152),'Transactional Departments'!A:B,2,FALSE)","v":"SREL Operations"},"43150001","18400","RCESURR267461CV","A01","",""]
["43","267",null,null,"FAMU/SRNSRF BIOREMEDIAT  SEAMA","1021RR267462","20000","12100","62546","43150001",{"$f":"VLOOKUP(TRIM(J4153),'Transactional Departments'!A:B,2,FALSE)","v":"SREL Operations"},"43150001","18400","RFLAURR267462CV","A01","",""]
["43","267",null,null,"SAC      RF WOOD STORKS  BRYAN","1021RR267556","20000","12100","62071","43150001",{"$f":"VLOOKUP(TRIM(J4154),'Transactional Departments'!A:B,2,FALSE)","v":"SREL Operations"},"43150001","18400","RSAIRRR267556CV","A01","",""]
["43","267",null,null,"         RF SUB W 374-053COLLE","1021RR267702","20000","12100","64448","43150001",{"$f":"VLOOKUP(TRIM(J4155),'Transactional Departments'!A:B,2,FALSE)","v":"SREL Operations"},"43150001","18003","SGATERR267702CV","A01","",""]
["43","267",null,null,"USDI     RF DESERT TORT  TUBER","1021RR267709","20000","12100","61034","43150001",{"$f":"VLOOKUP(TRIM(J4156),'Transactional Departments'!A:B,2,FALSE)","v":"SREL Operations"},"43150001","18400","RCESURR267709CV","A01","",""]
["43","267",null,null,"GDNRUSDOIRF GPHR TRTS POPTUBER","1021RR267724","20000","12100","62016","43150001",{"$f":"VLOOKUP(TRIM(J4157),'Transactional Departments'!A:B,2,FALSE)","v":"SREL Operations"},"43150001","18400","RGDNRRR267724CV","A01","",""]
["43","267",null,null,"CESU     RF STENNIS WMA  BUHLM","1021RR267730","20000","12100","61034","43150001",{"$f":"VLOOKUP(TRIM(J4158),'Transactional Departments'!A:B,2,FALSE)","v":"SREL Operations"},"43150001","18400","RCESURR267730CV","A01","",""]
["43","267",null,null,"USDA     RF MORTAL SWINE BEASL","1021RR267733","20000","12100","61007","43150001",{"$f":"VLOOKUP(TRIM(J4159),'Transactional Departments'!A:B,2,FALSE)","v":"SREL Operations"},"43150001","18400","RAPHIRR267733CV","A01","",""]
["43","267",null,null,"USDA/USDDRF TRANSFER ACE RHODE","1021RR267734","20000","12100","61007","43150001",{"$f":"VLOOKUP(TRIM(J4160),'Transactional Departments'!A:B,2,FALSE)","v":"SREL Operations"},"43150001","18400","RAPHIRR267734CV","A01","",""]
["43","267",null,null,"USDA     RF FERAL SWINE  BEASL","1021RR267735","20000","12100","61007","43150001",{"$f":"VLOOKUP(TRIM(J4161),'Transactional Departments'!A:B,2,FALSE)","v":"SREL Operations"},"43150001","18400","RAPHIRR267735CV","A01","",""]
["43","267",null,null,"HOGANAS  RF FE POWDERS   SEAMA","1021RR267736","20000","12100","64490","43150001",{"$f":"VLOOKUP(TRIM(J4162),'Transactional Departments'!A:B,2,FALSE)","v":"SREL Operations"},"43150001","18400","RHOGARR267736CV","A01","",""]
["43","267",null,null,"SCDNR    RF YAKEY GATOR  LANCE","1021RR267737","20000","12100","62550","43150001",{"$f":"VLOOKUP(TRIM(J4163),'Transactional Departments'!A:B,2,FALSE)","v":"SREL Operations"},"43150001","18400","RSCNRRR267737CV","A01","",""]
["43","267",null,null,"USDAAPHISRF SWINE POP    BEASL","1021RR267738","20000","12100","61007","43150001",{"$f":"VLOOKUP(TRIM(J4164),'Transactional Departments'!A:B,2,FALSE)","v":"SREL Operations"},"43150001","18400","RAPHIRR267738CV","A01","",""]
["43","267",null,null,"AUG UTIL RF RE BUSH BIRD KENNA","1021RR267739","20000","12100","63082","43150001",{"$f":"VLOOKUP(TRIM(J4165),'Transactional Departments'!A:B,2,FALSE)","v":"SREL Operations"},"43150001","18400","RARCCRR267739CV","A01","",""]
["43","267",null,null,"CESU     RF GOPH T POP   TUBER","1021RR267740","20000","12100","61034","43150001",{"$f":"VLOOKUP(TRIM(J4166),'Transactional Departments'!A:B,2,FALSE)","v":"SREL Operations"},"43150001","18400","RCESURR267740CV","A01","",""]
["43","267",null,null,"SRR LLC  RF CEMENTITIOUS SEAMA","1021RR267742","20000","12100","64053","43150001",{"$f":"VLOOKUP(TRIM(J4167),'Transactional Departments'!A:B,2,FALSE)","v":"SREL Operations"},"43150001","18400","RSRRLRR267742CV","A01","",""]
["43","267",null,null,"USDAAPHISRF RABIES ELIM  RHODE","1021RR267743","20000","12100","61007","43150001",{"$f":"VLOOKUP(TRIM(J4168),'Transactional Departments'!A:B,2,FALSE)","v":"SREL Operations"},"43150001","18400","RAPHIRR267743CV","A01","",""]
["43","267",null,null,"RZP      RF C/S RR267865 TUBER","1021RR267744","20000","12100","64339","43150001",{"$f":"VLOOKUP(TRIM(J4169),'Transactional Departments'!A:B,2,FALSE)","v":"SREL Operations"},"43150001","18400","RRZOORR267744CV","A01","",""]
["43","267",null,null,"JWJ ECOL RF VISING SCI   AUBRE","1021RR267745","20000","12100","64320","43150001",{"$f":"VLOOKUP(TRIM(J4170),'Transactional Departments'!A:B,2,FALSE)","v":"SREL Operations"},"43150001","18400","RJJECRR267745CV","A01","",""]
["43","267",null,null,"SNRS     RF BIMETALLIC   SEAMA","1021RR267746","20000","12100","64038","43150001",{"$f":"VLOOKUP(TRIM(J4171),'Transactional Departments'!A:B,2,FALSE)","v":"SREL Operations"},"43150001","18400","RSRNSRR267746CV","A01","",""]
["43","267",null,null,"USDAAPHISRF RF_QUANT MVMNBEASL","1021RR267747","20000","12100","61007","43150001",{"$f":"VLOOKUP(TRIM(J4172),'Transactional Departments'!A:B,2,FALSE)","v":"SREL Operations"},"43150001","18400","RAPHIRR267747CV","A01","",""]
["43","267",null,null,"DOE      RF SREL ENV RSH RHODE","1021RR267800","20000","12100","61001","43150001",{"$f":"VLOOKUP(TRIM(J4173),'Transactional Departments'!A:B,2,FALSE)","v":"SREL Operations"},"43150001","18400","RUSDERR267800CV","A01","",""]
["43","267",null,null,"DOE      RF W/ 267-800   RHODE","1021RR267821","20000","12100","61001","43150001",{"$f":"VLOOKUP(TRIM(J4174),'Transactional Departments'!A:B,2,FALSE)","v":"SREL Operations"},"43150001","18400","RUSDERR267821CV","A01","",""]
["43","267",null,null,"DOE      RF W/ 267-800   RHODE","1021RR267828","20000","12100","61001","43150001",{"$f":"VLOOKUP(TRIM(J4175),'Transactional Departments'!A:B,2,FALSE)","v":"SREL Operations"},"43150001","18400","RUSDERR267828CV","A01","",""]
["43","267",null,null,"DOE      RF W 267-800    RHODE","1021RR267829","20000","12100","61001","43150001",{"$f":"VLOOKUP(TRIM(J4176),'Transactional Departments'!A:B,2,FALSE)","v":"SREL Operations"},"43150001","18400","RUSDERR267829CV","A01","",""]
["43","267",null,null,"DOE      RF W 267-800    RHODE","1021RR267830","20000","12100","61001","43150001",{"$f":"VLOOKUP(TRIM(J4177),'Transactional Departments'!A:B,2,FALSE)","v":"SREL Operations"},"43150001","18400","RUSDERR267830CV","A01","",""]
["43","267",null,null,"DOE      RF W 267-800    RHODE","1021RR267831","20000","12100","61001","43150001",{"$f":"VLOOKUP(TRIM(J4178),'Transactional Departments'!A:B,2,FALSE)","v":"SREL Operations"},"43150001","18400","RUSDERR267831CV","A01","",""]
["43","267",null,null,"DOE      RF W 267-800    RHODE","1021RR267832","20000","12100","61001","43150001",{"$f":"VLOOKUP(TRIM(J4179),'Transactional Departments'!A:B,2,FALSE)","v":"SREL Operations"},"43150001","18400","RUSDERR267832CV","A01","",""]
["43","267",null,null,"DOE      RF W/ 267-800   RHODE","1021RR267833","20000","12100","61001","43150001",{"$f":"VLOOKUP(TRIM(J4180),'Transactional Departments'!A:B,2,FALSE)","v":"SREL Operations"},"43150001","18400","RUSDERR267833CV","A01","",""]
["43","267",null,null,"DOE      RF W/800267     RHODE","1021RR267834","20000","12100","61001","43150001",{"$f":"VLOOKUP(TRIM(J4181),'Transactional Departments'!A:B,2,FALSE)","v":"SREL Operations"},"43150001","18400","RUSDERR267834CV","A01","",""]
["43","267",null,null,"DOE      RF W/267-800    RHODE","1021RR267835","20000","12100","61001","43150001",{"$f":"VLOOKUP(TRIM(J4182),'Transactional Departments'!A:B,2,FALSE)","v":"SREL Operations"},"43150001","18400","RUSDERR267835CV","A01","",""]
["43","267",null,null,"DOE      RF SREL ENV RSH RHODE","1021RR267837","20000","12100","61001","43150001",{"$f":"VLOOKUP(TRIM(J4183),'Transactional Departments'!A:B,2,FALSE)","v":"SREL Operations"},"43150001","18400","RUSDERR267837CV","A01","",""]
["43","267",null,null,"DOE      RF W/ 267-800   RHODE","1021RR267838","20000","12100","61001","43150001",{"$f":"VLOOKUP(TRIM(J4184),'Transactional Departments'!A:B,2,FALSE)","v":"SREL Operations"},"43150001","18400","RUSDERR267838CV","A01","",""]
["43","267",null,null,"DOE      RF W/ 267-800   RHODE","1021RR267839","20000","12100","61001","43150001",{"$f":"VLOOKUP(TRIM(J4185),'Transactional Departments'!A:B,2,FALSE)","v":"SREL Operations"},"43150001","18400","RUSDERR267839CV","A01","",""]
["43","267",null,null,"DOE      RF W/ 267-800   RHODE","1021RR267840","20000","12100","61001","43150001",{"$f":"VLOOKUP(TRIM(J4186),'Transactional Departments'!A:B,2,FALSE)","v":"SREL Operations"},"43150001","18400","RUSDERR267840CV","A01","",""]
["43","267",null,null,"DOE      RF W/ 267-800   RHODE","1021RR267843","20000","12100","61001","43150001",{"$f":"VLOOKUP(TRIM(J4187),'Transactional Departments'!A:B,2,FALSE)","v":"SREL Operations"},"43150001","18400","RUSDERR267843CV","A01","",""]
["43","267",null,null,"DOE      RF W/267-800    RHODE","1021RR267846","20000","12100","61001","43150001",{"$f":"VLOOKUP(TRIM(J4188),'Transactional Departments'!A:B,2,FALSE)","v":"SREL Operations"},"43150001","18400","RUSDERR267846CV","A01","",""]
["43","267",null,null,"DOE      RF W/ 267-800   RHODE","1021RR267847","20000","12100","61001","43150001",{"$f":"VLOOKUP(TRIM(J4189),'Transactional Departments'!A:B,2,FALSE)","v":"SREL Operations"},"43150001","18400","RUSDERR267847CV","A01","",""]
["43","267",null,null,"DOE      RF RE W/ 267-800RHODE","1021RR267851","20000","12100","61001","43150001",{"$f":"VLOOKUP(TRIM(J4190),'Transactional Departments'!A:B,2,FALSE)","v":"SREL Operations"},"43150001","18400","RUSDERR267851CV","A01","",""]
["43","267",null,null,"DOE      RF W/ 267-800   RHODE","1021RR267853","20000","12100","61001","43150001",{"$f":"VLOOKUP(TRIM(J4191),'Transactional Departments'!A:B,2,FALSE)","v":"SREL Operations"},"43150001","18400","RUSDERR267853CV","A01","",""]
["43","267",null,null,"DOE      RF W/267-800    RHODE","1021RR267854","20000","12100","61001","43150001",{"$f":"VLOOKUP(TRIM(J4192),'Transactional Departments'!A:B,2,FALSE)","v":"SREL Operations"},"43150001","18400","RUSDERR267854CV","A01","",""]
["43","267",null,null,"DOE      RF W 267-800    RHODE","1021RR267857","20000","12100","61001","43150001",{"$f":"VLOOKUP(TRIM(J4193),'Transactional Departments'!A:B,2,FALSE)","v":"SREL Operations"},"43150001","18400","RUSDERR267857CV","A01","",""]
["43","267",null,null,"DOE      RF W/267-800    RHODE","1021RR267860","20000","12100","61001","43150001",{"$f":"VLOOKUP(TRIM(J4194),'Transactional Departments'!A:B,2,FALSE)","v":"SREL Operations"},"43150001","18400","RUSDERR267860CV","A01","",""]
["43","267",null,null,"DOE      RF W/ 267-800   RHODE","1021RR267861","20000","12100","61001","43150001",{"$f":"VLOOKUP(TRIM(J4195),'Transactional Departments'!A:B,2,FALSE)","v":"SREL Operations"},"43150001","18400","RUSDERR267861CV","A01","",""]
["43","267",null,null,"DOE      RF W/ 267-800   RHODE","1021RR267862","20000","12100","61001","43150001",{"$f":"VLOOKUP(TRIM(J4196),'Transactional Departments'!A:B,2,FALSE)","v":"SREL Operations"},"43150001","18400","RUSDERR267862CV","A01","",""]
["43","267",null,null,"DOE      RF W267-800 XU       ","1021RR267863","20000","12100","61001","43150001",{"$f":"VLOOKUP(TRIM(J4197),'Transactional Departments'!A:B,2,FALSE)","v":"SREL Operations"},"43150001","18400","RUSDERR267863CV","A01","",""]
["43","267",null,null,"DOE      RF W 267-800 BRYAN   ","1021RR267864","20000","12100","61001","43150001",{"$f":"VLOOKUP(TRIM(J4198),'Transactional Departments'!A:B,2,FALSE)","v":"SREL Operations"},"43150001","18400","RUSDERR267864CV","A01","",""]
["43","267",null,null,"SCDNR DOIRF GOP TORT POP TUBER","1021RR267865","20000","12100","62550","43150001",{"$f":"VLOOKUP(TRIM(J4199),'Transactional Departments'!A:B,2,FALSE)","v":"SREL Operations"},"43150001","18400","RSCNRRR267865CV","A01","",""]
["43","267",null,null,"DOE      RF SREL RAD SAFETY   ","1021RR267867","20000","12100","61001","43150001",{"$f":"VLOOKUP(TRIM(J4200),'Transactional Departments'!A:B,2,FALSE)","v":"SREL Operations"},"43150001","18400","RUSDERR267867CV","A01","",""]
["43","267",null,null,"DOE      RF T4 RR267500  BERGM","1021RU267503","20000","12100","61001","43150001",{"$f":"VLOOKUP(TRIM(J4201),'Transactional Departments'!A:B,2,FALSE)","v":"SREL Operations"},"43150001","18400","RUSDERU267503CV","A01","",""]
["43","274",null,null,"ROCHT/NIHRF EMOTIONAL PROCS SA","1021RR274394","20000","12100","62500","43250001",{"$f":"VLOOKUP(TRIM(J4202),'Transactional Departments'!A:B,2,FALSE)","v":"OIBR Administration"},"43250001","18400","RXXXXRR274394CV","A01","",""]
["43","274",null,null,"USDA/FS  RF CLIM CHNG ADABROSI","1021RR274400","20000","12100","61002","43250001",{"$f":"VLOOKUP(TRIM(J4203),'Transactional Departments'!A:B,2,FALSE)","v":"OIBR Administration"},"43250001","18400","RUSDARR274400CV","A01","",""]
["43","274",null,null,"NIH      RF ADO INN PADT ROMAN","1021RR274403","20000","12100","61018","43250001",{"$f":"VLOOKUP(TRIM(J4204),'Transactional Departments'!A:B,2,FALSE)","v":"OIBR Administration"},"43250001","18400","RNIHXRR274403CV","A01","",""]
["43","274",null,null,"         RF VIOLENCE PREVORPIN","1021RR274414","20000","12100","64139","43250001",{"$f":"VLOOKUP(TRIM(J4205),'Transactional Departments'!A:B,2,FALSE)","v":"OIBR Administration"},"43250001","18003","SEMORRR274414CV","A01","",""]
["43","274",null,null,"NIH      RF COUPLE HLTH  WICKR","1021RR274429","20000","12100","61018","43250001",{"$f":"VLOOKUP(TRIM(J4206),'Transactional Departments'!A:B,2,FALSE)","v":"OIBR Administration"},"43250001","18400","RNIHXRR274429CV","A01","",""]
["43","274",null,null,"UT/NSF   RF TRIADS       EBY  ","1021RR274430","20000","12100","62517","43250001",{"$f":"VLOOKUP(TRIM(J4207),'Transactional Departments'!A:B,2,FALSE)","v":"OIBR Administration"},"43250001","18400","RUTXARR274430CV","A01","",""]
["43","274",null,null,"USARMY   RF SOCIAL INTER ROBIN","1021RR274434","20000","12100","61014","43250001",{"$f":"VLOOKUP(TRIM(J4208),'Transactional Departments'!A:B,2,FALSE)","v":"OIBR Administration"},"43250001","18400","RUSARRR274434CV","A01","",""]
["43","274",null,null,"USDA FS  RF PILGRIMAGE   HITCH","1021RR274435","20000","12100","61003","43250001",{"$f":"VLOOKUP(TRIM(J4209),'Transactional Departments'!A:B,2,FALSE)","v":"OIBR Administration"},"43250001","18400","RUSFSRR274435CV","A01","",""]
["43","274",null,null,"PU/NCRG  RF GAMBLING     MILLE","1021RR274436","20000","12100","62508","43250001",{"$f":"VLOOKUP(TRIM(J4210),'Transactional Departments'!A:B,2,FALSE)","v":"OIBR Administration"},"43250001","18400","RPURDRR274436CV","A01","",""]
["43","274",null,null,"NIH      RF B-SNIP       CLEME","1021RR274437","20000","12100","61018","43250001",{"$f":"VLOOKUP(TRIM(J4211),'Transactional Departments'!A:B,2,FALSE)","v":"OIBR Administration"},"43250001","18400","RNIHXRR274437CV","A01","",""]
["43","274",null,null,"P&G      RF SUCCESS DRIV_CARTE","1021RR274441","20000","12100","64009","43250001",{"$f":"VLOOKUP(TRIM(J4212),'Transactional Departments'!A:B,2,FALSE)","v":"OIBR Administration"},"43250001","18400","RP&GCRR274441CV","A01","",""]
["43","274",null,null,"         RF RR771-050    JAYAW","1021RR274442","20000","12100","64177","43250001",{"$f":"VLOOKUP(TRIM(J4213),'Transactional Departments'!A:B,2,FALSE)","v":"OIBR Administration"},"43250001","18003","SHALPRR274442CV","A01","",""]
["43","274",null,null,"OHIO STATRF MS MATH ACH  CARR ","1021RR274443","20000","12100","62507","43250001",{"$f":"VLOOKUP(TRIM(J4214),'Transactional Departments'!A:B,2,FALSE)","v":"OIBR Administration"},"43250001","18400","ROHSURR274443CV","A01","",""]
["43","274",null,null,"BRADLEY URF RF_WORK/HOME CLARK","1021RR274444","20000","12100","64241","43250001",{"$f":"VLOOKUP(TRIM(J4215),'Transactional Departments'!A:B,2,FALSE)","v":"OIBR Administration"},"43250001","18400","RBRADRR274444CV","A01","",""]
["43","274",null,null,"NIH      RF RF_OPIOID PREJAYAW","1021RR274446","20000","12100","61018","43250001",{"$f":"VLOOKUP(TRIM(J4216),'Transactional Departments'!A:B,2,FALSE)","v":"OIBR Administration"},"43250001","18400","RNIHXRR274446CV","A01","",""]
["43","274",null,null,"BROWN U  RF RF_NEUROIMAGISWEET","1021RR274447","20000","12100","64250","43250001",{"$f":"VLOOKUP(TRIM(J4217),'Transactional Departments'!A:B,2,FALSE)","v":"OIBR Administration"},"43250001","18400","RBUTLRR274447CV","A01","",""]
["43","274",null,null,"TRI      RF CHANG ADOLES ABRAH","1021RR274448","20000","12100","64165","43250001",{"$f":"VLOOKUP(TRIM(J4218),'Transactional Departments'!A:B,2,FALSE)","v":"OIBR Administration"},"43250001","18400","RTRRIRR274448CV","A01","",""]
["43","274",null,null,"CCSD     RF RF_ATHENS WELADAMS","1021RR274450","20000","12100","63041","43250001",{"$f":"VLOOKUP(TRIM(J4219),'Transactional Departments'!A:B,2,FALSE)","v":"OIBR Administration"},"43250001","18400","RCLCDRR274450CV","A01","",""]
["43","274",null,null,"NIH      RF RF_EARLY COMMCAUGH","1021RR274451","20000","12100","61018","43250001",{"$f":"VLOOKUP(TRIM(J4220),'Transactional Departments'!A:B,2,FALSE)","v":"OIBR Administration"},"43250001","18400","RNIHXRR274451CV","A01","",""]
["43","274",null,null,"NSF      RF RF_CLARIFYINGCARTE","1021RR274452","20000","12100","61023","43250001",{"$f":"VLOOKUP(TRIM(J4221),'Transactional Departments'!A:B,2,FALSE)","v":"OIBR Administration"},"43250001","18400","RNSFXRR274452CV","A01","",""]
["43","274",null,null,"NIH/OFA  UGA_HEALTH MARR_FUTRI","1021RR274455","20000","12100","61017","43250001",{"$f":"VLOOKUP(TRIM(J4222),'Transactional Departments'!A:B,2,FALSE)","v":"OIBR Administration"},"43250001","18003","SDHHSRR274455CV","A01","",""]
["43","274",null,null,"DHHS     RF RF__UGA SBIRTABRAH","1021RR274456","20000","12100","61017","43250001",{"$f":"VLOOKUP(TRIM(J4223),'Transactional Departments'!A:B,2,FALSE)","v":"OIBR Administration"},"43250001","18400","RDHHSRR274456CV","A01","",""]
["43","274",null,null,"NSF      RF RF_HURRIC MATORLAN","1021RR274457","20000","12100","61023","43250001",{"$f":"VLOOKUP(TRIM(J4224),'Transactional Departments'!A:B,2,FALSE)","v":"OIBR Administration"},"43250001","18400","RNSFXRR274457CV","A01","",""]
["43","274",null,null,"NIH      RF RF_CH OBESITYCORSO","1021RR274458","20000","12100","61018","43250001",{"$f":"VLOOKUP(TRIM(J4225),'Transactional Departments'!A:B,2,FALSE)","v":"OIBR Administration"},"43250001","18400","RNIHXRR274458CV","A01","",""]
["43","274",null,null,"AM SIDS IRF RF_SBS_______SALM ","1021RR274459","20000","12100","64225","43250001",{"$f":"VLOOKUP(TRIM(J4226),'Transactional Departments'!A:B,2,FALSE)","v":"OIBR Administration"},"43250001","18400","RSIDSRR274459CV","A01","",""]
["43","274",null,null,"USDA FORERF RF_WOOD BIOENHITCH","1021RR274460","20000","12100","61003","43250001",{"$f":"VLOOKUP(TRIM(J4227),'Transactional Departments'!A:B,2,FALSE)","v":"OIBR Administration"},"43250001","18400","RUSFSRR274460CV","A01","",""]
["43","274",null,null,"GSU / NEHRF RF_REPARATIVESAMP ","1021RR274461","20000","12100","62022","43250001",{"$f":"VLOOKUP(TRIM(J4228),'Transactional Departments'!A:B,2,FALSE)","v":"OIBR Administration"},"43250001","18400","RGASURR274461CV","A01","",""]
["43","274",null,null,"SATDION  RF RF_RISK ASSESCAMPB","1021RR274462","20000","12100","64114","43250001",{"$f":"VLOOKUP(TRIM(J4229),'Transactional Departments'!A:B,2,FALSE)","v":"OIBR Administration"},"43250001","18400","RSMNYRR274462CV","A01","",""]
["43","274",null,null,"NIH      RF ANHEDONIA    STRAU","1021RR274463","20000","12100","61018","43250001",{"$f":"VLOOKUP(TRIM(J4230),'Transactional Departments'!A:B,2,FALSE)","v":"OIBR Administration"},"43250001","18400","RNIHXRR274463CV","A01","",""]
["43","274",null,null,"VW       RF MONETRY SANC SHANN","1021RR274464","20000","12100","62541","43250001",{"$f":"VLOOKUP(TRIM(J4231),'Transactional Departments'!A:B,2,FALSE)","v":"OIBR Administration"},"43250001","18400","RUOWARR274464CV","A01","",""]
["43","274",null,null,"NAS      RF WELLBEING___ LEWIS","1021RR274465","20000","12100","64297","43250001",{"$f":"VLOOKUP(TRIM(J4232),'Transactional Departments'!A:B,2,FALSE)","v":"OIBR Administration"},"43250001","18400","RNAOSRR274465CV","A01","",""]
["43","274",null,null,"NIH      RF SELF-REGULAT CAUGH","1021RR274467","20000","12100","61018","43250001",{"$f":"VLOOKUP(TRIM(J4233),'Transactional Departments'!A:B,2,FALSE)","v":"OIBR Administration"},"43250001","18400","RNIHXRR274467CV","A01","",""]
["43","274",null,null,"DHHS     UGA_INTEGRATION_FUTRI","1021RR274469","20000","12100","61017","43250001",{"$f":"VLOOKUP(TRIM(J4234),'Transactional Departments'!A:B,2,FALSE)","v":"OIBR Administration"},"43250001","18003","SDHHSRR274469CV","A01","",""]
["43","274",null,null,"DHHS     RF UGA SBIRT    ABRAH","1021RR274470","20000","12100","61017","43250001",{"$f":"VLOOKUP(TRIM(J4235),'Transactional Departments'!A:B,2,FALSE)","v":"OIBR Administration"},"43250001","18400","RDHHSRR274470CV","A01","",""]
["43","274",null,null,"NIH      RF RF_VIRTUAL FIAHN  ","1021RR274471","20000","12100","61018","43250001",{"$f":"VLOOKUP(TRIM(J4236),'Transactional Departments'!A:B,2,FALSE)","v":"OIBR Administration"},"43250001","18400","RNIHXRR274471CV","A01","",""]
["43","274",null,null,"ABH      RF RF_ASSESS MEDMOWBR","1021RR274473","20000","12100","64000","43250001",{"$f":"VLOOKUP(TRIM(J4237),'Transactional Departments'!A:B,2,FALSE)","v":"OIBR Administration"},"43250001","18400","RBHEARR274473CV","A01","",""]
["43","274",null,null,"CNCS     RF RF_EXAM DETERNESBI","1021RR274474","20000","12100","61000","43250001",{"$f":"VLOOKUP(TRIM(J4238),'Transactional Departments'!A:B,2,FALSE)","v":"OIBR Administration"},"43250001","18400","RXXXXRR274474CV","A01","",""]
["43","374",null,null,"         RF SCORE PRG    COLLE","1021RR374053","20000","12100","64448","43350001",{"$f":"VLOOKUP(TRIM(J4239),'Transactional Departments'!A:B,2,FALSE)","v":"CTEGD Administration"},"43350001","18003","SGATERR374053CV","A01","",""]
["43","374",null,null,"            INT 374-053  COLLE","1021RR374056","20000","12100","64448","43350001",{"$f":"VLOOKUP(TRIM(J4240),'Transactional Departments'!A:B,2,FALSE)","v":"CTEGD Administration"},"43350001","18003","SGATERR374056CV","A01","",""]
["43","374",null,null,"PENN/NIH RF EUKRYTC CNTR KISSI","1021RR374062","20000","12100","62523","43350001",{"$f":"VLOOKUP(TRIM(J4241),'Transactional Departments'!A:B,2,FALSE)","v":"CTEGD Administration"},"43350001","18400","RUPENRR374062CV","A01","",""]
["43","374",null,null,"NIH      RF SCHISTOSOMIA COLLE","1021RR374071","20000","12100","61018","43350001",{"$f":"VLOOKUP(TRIM(J4242),'Transactional Departments'!A:B,2,FALSE)","v":"CTEGD Administration"},"43350001","18400","RNIHXRR374071CV","A01","",""]
["43","374",null,null,"NIH      RF TB VAC CHGAS TARLE","1021RR374080","20000","12100","61018","43350001",{"$f":"VLOOKUP(TRIM(J4243),'Transactional Departments'!A:B,2,FALSE)","v":"CTEGD Administration"},"43350001","18400","RNIHXRR374080CV","A01","",""]
["43","374",null,null,"         RF BIOMARKERS   TARLE","1021RR374088","20000","12100","64480","43350001",{"$f":"VLOOKUP(TRIM(J4244),'Transactional Departments'!A:B,2,FALSE)","v":"CTEGD Administration"},"43350001","18003","SDNDIRR374088CV","A01","",""]
["43","374",null,null,"AHA      RF TCVTC4       DOCAM","1021RR374089","20000","12100","64127","43350001",{"$f":"VLOOKUP(TRIM(J4245),'Transactional Departments'!A:B,2,FALSE)","v":"CTEGD Administration"},"43350001","18400","RAHTARR374089CV","A01","",""]
["43","374",null,null,"GATES_FNDRF SCORE PRG____COLLE","1021RR374092","20000","12100","64448","43350001",{"$f":"VLOOKUP(TRIM(J4246),'Transactional Departments'!A:B,2,FALSE)","v":"CTEGD Administration"},"43350001","18400","RGATERR374092CV","A01","",""]
["43","374",null,null,"         RF T. BRUCEI    MOREN","1021RR374093","20000","12100","64447","43350001",{"$f":"VLOOKUP(TRIM(J4247),'Transactional Departments'!A:B,2,FALSE)","v":"CTEGD Administration"},"43350001","18003","SBUWFRR374093CV","A01","",""]
["43","374",null,null,"AHA      RF NATHAN CHASN MOREN","1021RR374096","20000","12100","64127","43350001",{"$f":"VLOOKUP(TRIM(J4248),'Transactional Departments'!A:B,2,FALSE)","v":"CTEGD Administration"},"43350001","18400","RAHTARR374096CV","A01","",""]
["43","374",null,null,"NIH      RF TOXOPLAS GONDMOREN","1021RR374097","20000","12100","61018","43350001",{"$f":"VLOOKUP(TRIM(J4249),'Transactional Departments'!A:B,2,FALSE)","v":"CTEGD Administration"},"43350001","18400","RNIHXRR374097CV","A01","",""]
["43","374",null,null,"NIH      RF MITO TRYPAN  DOCAM","1021RR374098","20000","12100","61018","43350001",{"$f":"VLOOKUP(TRIM(J4250),'Transactional Departments'!A:B,2,FALSE)","v":"CTEGD Administration"},"43350001","18400","RNIHXRR374098CV","A01","",""]
["43","374",null,null,"NIH      RF GENETIC_CRYPTSTRIE","1021RR374099","20000","12100","61018","43350001",{"$f":"VLOOKUP(TRIM(J4251),'Transactional Departments'!A:B,2,FALSE)","v":"CTEGD Administration"},"43350001","18400","RNIHXRR374099CV","A01","",""]
["43","374",null,null,"USF/NIH  RF TOXOPLASMA   STRIE","1021RR374100","20000","12100","62542","43350001",{"$f":"VLOOKUP(TRIM(J4252),'Transactional Departments'!A:B,2,FALSE)","v":"CTEGD Administration"},"43350001","18400","RUSFXRR374100CV","A01","",""]
["43","374",null,null,"NIH      RF APICOMPLEXAN MOREN","1021RR374101","20000","12100","61018","43350001",{"$f":"VLOOKUP(TRIM(J4253),'Transactional Departments'!A:B,2,FALSE)","v":"CTEGD Administration"},"43350001","18400","RNIHXRR374101CV","A01","",""]
["43","374",null,null,"NIH      RF BETTER DRUG  TARLE","1021RR374102","20000","12100","61018","43350001",{"$f":"VLOOKUP(TRIM(J4254),'Transactional Departments'!A:B,2,FALSE)","v":"CTEGD Administration"},"43350001","18400","RNIHXRR374102CV","A01","",""]
["43","374",null,null,"UPENN/NIHRF EUKRYTC CTR  KISSI","1021RR374103","20000","12100","62523","43350001",{"$f":"VLOOKUP(TRIM(J4255),'Transactional Departments'!A:B,2,FALSE)","v":"CTEGD Administration"},"43350001","18400","RUPENRR374103CV","A01","",""]
["43","374",null,null,"NIH      RF TRYPANOSOMA  DOCAM","1021RR374105","20000","12100","61018","43350001",{"$f":"VLOOKUP(TRIM(J4256),'Transactional Departments'!A:B,2,FALSE)","v":"CTEGD Administration"},"43350001","18400","RNIHXRR374105CV","A01","",""]
["43","374",null,null,"ANACOR   RF CHAGAS DISEA TARLE","1021RR374106","20000","12100","64069","43350001",{"$f":"VLOOKUP(TRIM(J4257),'Transactional Departments'!A:B,2,FALSE)","v":"CTEGD Administration"},"43350001","18400","RANPIRR374106CV","A01","",""]
["43","374",null,null,"NIH      RF TOXOPLASMA   KISSI","1021RR374107","20000","12100","61018","43350001",{"$f":"VLOOKUP(TRIM(J4258),'Transactional Departments'!A:B,2,FALSE)","v":"CTEGD Administration"},"43350001","18400","RNIHXRR374107CV","A01","",""]
["43","374",null,null,"NIH      RF TRYPANOSOMA  DOCAM","1021RR374108","20000","12100","61018","43350001",{"$f":"VLOOKUP(TRIM(J4259),'Transactional Departments'!A:B,2,FALSE)","v":"CTEGD Administration"},"43350001","18400","RNIHXRR374108CV","A01","",""]
["43","374",null,null,"NIH      RF TRYPAN BRUCEIDOCAM","1021RR374109","20000","12100","61018","43350001",{"$f":"VLOOKUP(TRIM(J4260),'Transactional Departments'!A:B,2,FALSE)","v":"CTEGD Administration"},"43350001","18400","RNIHXRR374109CV","A01","",""]
["43","374",null,null,"MOD      RF MALARIA CHAP MURAL","1021RR374110","20000","12100","64156","43350001",{"$f":"VLOOKUP(TRIM(J4261),'Transactional Departments'!A:B,2,FALSE)","v":"CTEGD Administration"},"43350001","18400","RMAODRR374110CV","A01","",""]
["43","374",null,null,"UPENN/NIHRF EUKRYTC CTR KISSI ","1021RR374111","20000","12100","62523","43350001",{"$f":"VLOOKUP(TRIM(J4262),'Transactional Departments'!A:B,2,FALSE)","v":"CTEGD Administration"},"43350001","18400","RUPENRR374111CV","A01","",""]
["43","374",null,null,"NIH      RF DIV SUP374109 DOCA","1021RR374113","20000","12100","61018","43350001",{"$f":"VLOOKUP(TRIM(J4263),'Transactional Departments'!A:B,2,FALSE)","v":"CTEGD Administration"},"43350001","18400","RNIHXRR374113CV","A01","",""]
["43","374",null,null,"WELLCOME RF MICROB EUKAR_KISSI","1021RR374114","20000","12100","64495","43350001",{"$f":"VLOOKUP(TRIM(J4264),'Transactional Departments'!A:B,2,FALSE)","v":"CTEGD Administration"},"43350001","18400","RUNOLRR374114CV","A01","",""]
["43","374",null,null,"GATES FNDRF RF_CRYPTOSPO STRIE","1021RR374115","20000","12100","64448","43350001",{"$f":"VLOOKUP(TRIM(J4265),'Transactional Departments'!A:B,2,FALSE)","v":"CTEGD Administration"},"43350001","18400","RGATERR374115CV","A01","",""]
["43","374",null,null,"WELLCOME RF RF_CRYPT SCRESTRIE","1021RR374116","20000","12100","64466","43350001",{"$f":"VLOOKUP(TRIM(J4266),'Transactional Departments'!A:B,2,FALSE)","v":"CTEGD Administration"},"43350001","18400","RWELTRR374116CV","A01","",""]
["43","374",null,null,"NIH      RF TB VAC CHGAS TARLE","1021RR374117","20000","12100","61018","43350001",{"$f":"VLOOKUP(TRIM(J4267),'Transactional Departments'!A:B,2,FALSE)","v":"CTEGD Administration"},"43350001","18400","RNIHXRR374117CV","A01","",""]
["43","374",null,null,"AHA      RF NATHAN CHASN MOREN","1021RR374118","20000","12100","64127","43350001",{"$f":"VLOOKUP(TRIM(J4268),'Transactional Departments'!A:B,2,FALSE)","v":"CTEGD Administration"},"43350001","18400","RAHTARR374118CV","A01","",""]
["43","374",null,null,"NIH      RF VACTOX GNDII      ","1021RR374119","20000","12100","61018","43350001",{"$f":"VLOOKUP(TRIM(J4269),'Transactional Departments'!A:B,2,FALSE)","v":"CTEGD Administration"},"43350001","18400","RNIHXRR374119CV","A01","",""]
["43","374",null,null,"NIH      RF RF_TRYPANOSOMTARLE","1021RR374120","20000","12100","61018","43350001",{"$f":"VLOOKUP(TRIM(J4270),'Transactional Departments'!A:B,2,FALSE)","v":"CTEGD Administration"},"43350001","18400","RNIHXRR374120CV","A01","",""]
["43","374",null,null,"GATES FNDRF CRYPTOSPORID_KISSI","1021RR374121","20000","12100","64448","43350001",{"$f":"VLOOKUP(TRIM(J4271),'Transactional Departments'!A:B,2,FALSE)","v":"CTEGD Administration"},"43350001","18400","RGATERR374121CV","A01","",""]
["43","374",null,null,"NIH      RF EXPLOR TRPB  SATER","1021RR374122","20000","12100","61018","43350001",{"$f":"VLOOKUP(TRIM(J4272),'Transactional Departments'!A:B,2,FALSE)","v":"CTEGD Administration"},"43350001","18400","RNIHXRR374122CV","A01","",""]
["43","374",null,null,"GSK      RF RF_GSK COMP TTARLE","1021RR374123","20000","12100","64468","43350001",{"$f":"VLOOKUP(TRIM(J4273),'Transactional Departments'!A:B,2,FALSE)","v":"CTEGD Administration"},"43350001","18400","RGLAXRR374123CV","A01","",""]
["43","374",null,null,"NIH      RF CRISPR/CAS___TARLE","1021RR374124","20000","12100","61018","43350001",{"$f":"VLOOKUP(TRIM(J4274),'Transactional Departments'!A:B,2,FALSE)","v":"CTEGD Administration"},"43350001","18400","RNIHXRR374124CV","A01","",""]
["43","374",null,null,"NIH      RF TEGD TG FY16      ","1021RR374125","20000","12100","61018","43350001",{"$f":"VLOOKUP(TRIM(J4275),'Transactional Departments'!A:B,2,FALSE)","v":"CTEGD Administration"},"43350001","18400","RNIHXRR374125CV","A01","",""]
["43","374",null,null,"NIH      RF RF_MULTIPLEX TARLE","1021RR374126","20000","12100","61018","43350001",{"$f":"VLOOKUP(TRIM(J4276),'Transactional Departments'!A:B,2,FALSE)","v":"CTEGD Administration"},"43350001","18400","RNIHXRR374126CV","A01","",""]
["43","374",null,null,"TC/GSK   RF TRES CANTOS  TARLE","1021RR374127","20000","12100","64517","43350001",{"$f":"VLOOKUP(TRIM(J4277),'Transactional Departments'!A:B,2,FALSE)","v":"CTEGD Administration"},"43350001","18400","RTRESRR374127CV","A01","",""]
["43","374",null,null,"         INT INC FOR RR37STRIE","1021RR374128","20000","12100","64448","43350001",{"$f":"VLOOKUP(TRIM(J4278),'Transactional Departments'!A:B,2,FALSE)","v":"CTEGD Administration"},"43350001","18003","SGATERR374128CV","A01","",""]
["43","374",null,null,"         INT INC FOR RR37KISSI","1021RR374129","20000","12100","64448","43350001",{"$f":"VLOOKUP(TRIM(J4279),'Transactional Departments'!A:B,2,FALSE)","v":"CTEGD Administration"},"43350001","18003","SGATERR374129CV","A01","",""]
["43","374",null,null,"UPENN/NIHRF EUKRYTC CTR  KISSI","1021RR374130","20000","12100","62523","43350001",{"$f":"VLOOKUP(TRIM(J4280),'Transactional Departments'!A:B,2,FALSE)","v":"CTEGD Administration"},"43350001","18400","RUPENRR374130CV","A01","",""]
["43","374",null,null,"UH/NIH   RF RF_IMPDH INHISTRIE","1021RR374131","20000","12100","62535","43350001",{"$f":"VLOOKUP(TRIM(J4281),'Transactional Departments'!A:B,2,FALSE)","v":"CTEGD Administration"},"43350001","18400","RUNOHRR374131CV","A01","",""]
["43","374",null,null,"NIH      RF TUITION           ","1021RR374132","20000","12100","61018","43350001",{"$f":"VLOOKUP(TRIM(J4282),'Transactional Departments'!A:B,2,FALSE)","v":"CTEGD Administration"},"43350001","18400","RNIHXRR374132CV","A01","",""]
["43","374",null,null,"GSK      RF RF_BROMODOMAIDOCAM","1021RR374133","20000","12100","64468","43350001",{"$f":"VLOOKUP(TRIM(J4283),'Transactional Departments'!A:B,2,FALSE)","v":"CTEGD Administration"},"43350001","18400","RGLAXRR374133CV","A01","",""]
["43","374",null,null,"NIH      RF RF_TOXOPLASMAMOREN","1021RR374134","20000","12100","61018","43350001",{"$f":"VLOOKUP(TRIM(J4284),'Transactional Departments'!A:B,2,FALSE)","v":"CTEGD Administration"},"43350001","18400","RNIHXRR374134CV","A01","",""]
["43","374",null,null,"NIH      RF RF_TRYPANOSOMTARLE","1021RR374135","20000","12100","61018","43350001",{"$f":"VLOOKUP(TRIM(J4285),'Transactional Departments'!A:B,2,FALSE)","v":"CTEGD Administration"},"43350001","18400","RNIHXRR374135CV","A01","",""]
["43","374",null,null,"NIH      RF RF_SEX DEV CRSTRIE","1021RR374136","20000","12100","61018","43350001",{"$f":"VLOOKUP(TRIM(J4286),'Transactional Departments'!A:B,2,FALSE)","v":"CTEGD Administration"},"43350001","18400","RNIHXRR374136CV","A01","",""]
["43","374",null,null,"GATES FNDUGA_MOUSE MODEL_STRIE","1021RR374137","20000","12100","64448","43350001",{"$f":"VLOOKUP(TRIM(J4287),'Transactional Departments'!A:B,2,FALSE)","v":"CTEGD Administration"},"43350001","18003","SGATERR374137CV","A01","",""]
["43","374",null,null,"NIH      RF RF_CIP PROTEIMURAL","1021RR374138","20000","12100","61018","43350001",{"$f":"VLOOKUP(TRIM(J4288),'Transactional Departments'!A:B,2,FALSE)","v":"CTEGD Administration"},"43350001","18400","RNIHXRR374138CV","A01","",""]
["43","374",null,null,"MMV      RF P VIVA ASSAY KYLE ","1021RR374139","20000","12100","64513","43350001",{"$f":"VLOOKUP(TRIM(J4289),'Transactional Departments'!A:B,2,FALSE)","v":"CTEGD Administration"},"43350001","18400","RMALARR374139CV","A01","",""]
["43","374",null,null,"         RR374-137 PI____STRIE","1021RR374140","20000","12100","64448","43350001",{"$f":"VLOOKUP(TRIM(J4290),'Transactional Departments'!A:B,2,FALSE)","v":"CTEGD Administration"},"43350001","18003","SGATERR374140CV","A01","",""]
["43","374",null,null,"GENOM RESRF RF_IPA FOR SAKYLE ","1021RR374141","20000","12100","64466","43350001",{"$f":"VLOOKUP(TRIM(J4291),'Transactional Departments'!A:B,2,FALSE)","v":"CTEGD Administration"},"43350001","18400","RWELTRR374141CV","A01","",""]
["43","374",null,null,"NIH      RF RF_FLOW CYTOMTARLE","1021RR374142","20000","12100","61018","43350001",{"$f":"VLOOKUP(TRIM(J4292),'Transactional Departments'!A:B,2,FALSE)","v":"CTEGD Administration"},"43350001","18400","RNIHXRR374142CV","A01","",""]
["43","374",null,null,"GATES FNDRF RF_COND PROTEVINAY","1021RR374143","20000","12100","64448","43350001",{"$f":"VLOOKUP(TRIM(J4293),'Transactional Departments'!A:B,2,FALSE)","v":"CTEGD Administration"},"43350001","18400","RGATERR374143CV","A01","",""]
["43","374",null,null,"NIH      RF RF_LEAD OPTIMKYLE ","1021RR374144","20000","12100","61018","43350001",{"$f":"VLOOKUP(TRIM(J4294),'Transactional Departments'!A:B,2,FALSE)","v":"CTEGD Administration"},"43350001","18400","RNIHXRR374144CV","A01","",""]
["43","374",null,null,"GATES FDNRF ENSURE ACCES KISSI","1021RR374145","20000","12100","62523","43350001",{"$f":"VLOOKUP(TRIM(J4295),'Transactional Departments'!A:B,2,FALSE)","v":"CTEGD Administration"},"43350001","18400","RUPENRR374145CV","A01","",""]
["43","374",null,null,"BROAD/GATRF RF_CHEM DIVERSTRIE","1021RR374146","20000","12100","64261","43350001",{"$f":"VLOOKUP(TRIM(J4296),'Transactional Departments'!A:B,2,FALSE)","v":"CTEGD Administration"},"43350001","18400","RBROARR374146CV","A01","",""]
["43","374",null,null,"MMV      RF P CYNO_ASSAY_KYLE ","1021RR374148","20000","12100","64513","43350001",{"$f":"VLOOKUP(TRIM(J4297),'Transactional Departments'!A:B,2,FALSE)","v":"CTEGD Administration"},"43350001","18400","RMALARR374148CV","A01","",""]
["43","374",null,null,"NIH      RF TEGD TG FY18 STRIE","1021RR374149","20000","12100","61018","43350001",{"$f":"VLOOKUP(TRIM(J4298),'Transactional Departments'!A:B,2,FALSE)","v":"CTEGD Administration"},"43350001","18400","RNIHXRR374149CV","A01","",""]
["43","374",null,null,"UPENN/NIHRF EUKRYTC CTR  KISSI","1021RR374151","20000","12100","62523","43350001",{"$f":"VLOOKUP(TRIM(J4299),'Transactional Departments'!A:B,2,FALSE)","v":"CTEGD Administration"},"43350001","18400","RUPENRR374151CV","A01","",""]
["43","374",null,null,"GATES FNDRF RF_3D MICROFLKYLE ","1021RR374460","20000","12100","64205","43350001",{"$f":"VLOOKUP(TRIM(J4300),'Transactional Departments'!A:B,2,FALSE)","v":"CTEGD Administration"},"43350001","18400","RVANGRR374460CV","A01","",""]
["43","376",null,null,"NIH      RF HIV BEH AAYM KOGAN","1021RR376006","20000","12100","61018","43300001",{"$f":"VLOOKUP(TRIM(J4301),'Transactional Departments'!A:B,2,FALSE)","v":"CFR Research Operations"},"43300001","18400","RNIHXRR376006CV","A01","",""]
["43","376",null,null,"NIH      RF CTR GRT FY13 BRODY","1021RR376021","20000","12100","61018","43300001",{"$f":"VLOOKUP(TRIM(J4302),'Transactional Departments'!A:B,2,FALSE)","v":"CFR Research Operations"},"43300001","18400","RNIHXRR376021CV","A01","",""]
["43","376",null,null,"GDHS     EARLY LEARNING  BROWN","1021RR376026","20000","12100","62015","43300001",{"$f":"VLOOKUP(TRIM(J4303),'Transactional Departments'!A:B,2,FALSE)","v":"CFR Research Operations"},"43300001","18003","SGHUMRR376026CV","A01","",""]
["43","376",null,null,"GA DHS      MIECHV_______BROWN","1021RR376027","20000","12100","62015","43300001",{"$f":"VLOOKUP(TRIM(J4304),'Transactional Departments'!A:B,2,FALSE)","v":"CFR Research Operations"},"43300001","18003","SGHUMRR376027CV","A01","",""]
["43","376",null,null,"NIH      RF PREVEN RURAL BEACH","1021RR376029","20000","12100","61018","43300001",{"$f":"VLOOKUP(TRIM(J4305),'Transactional Departments'!A:B,2,FALSE)","v":"CFR Research Operations"},"43300001","18400","RNIHXRR376029CV","A01","",""]
["43","376",null,null,"GDHS     EARLY LEARNING__BROWN","1021RR376030","20000","12100","62015","43300001",{"$f":"VLOOKUP(TRIM(J4306),'Transactional Departments'!A:B,2,FALSE)","v":"CFR Research Operations"},"43300001","18003","SGHUMRR376030CV","A01","",""]
["43","376",null,null,"GDHS     EARLY LEARNING  BROWN","1021RR376031","20000","12100","62015","43300001",{"$f":"VLOOKUP(TRIM(J4307),'Transactional Departments'!A:B,2,FALSE)","v":"CFR Research Operations"},"43300001","18003","SGHUMRR376031CV","A01","",""]
["43","376",null,null,"NIH      RF SOC DET IMS  SIMON","1021RR376352","20000","12100","61018","43300001",{"$f":"VLOOKUP(TRIM(J4308),'Transactional Departments'!A:B,2,FALSE)","v":"CFR Research Operations"},"43300001","18400","RNIHXRR376352CV","A01","",""]
["43","376",null,null,"NIH      RF AF AM YOUNG  BRODY","1021RR376410","20000","12100","61018","43300001",{"$f":"VLOOKUP(TRIM(J4309),'Transactional Departments'!A:B,2,FALSE)","v":"CFR Research Operations"},"43300001","18400","RNIHXRR376410CV","A01","",""]
["43","376",null,null,"NIH      RF DRUGUSE/HIV  BRODY","1021RR376411","20000","12100","61018","43300001",{"$f":"VLOOKUP(TRIM(J4310),'Transactional Departments'!A:B,2,FALSE)","v":"CFR Research Operations"},"43300001","18400","RNIHXRR376411CV","A01","",""]
["43","376",null,null,"GDHS/DHHS   MIECHV PRGRM BROWN","1021RR376414","20000","12100","62015","43300001",{"$f":"VLOOKUP(TRIM(J4311),'Transactional Departments'!A:B,2,FALSE)","v":"CFR Research Operations"},"43300001","18003","SGHUMRR376414CV","A01","",""]
["43","376",null,null,"UCT/NIH  RF RESILIENCE   BEACH","1021RR376415","20000","12100","62510","43300001",{"$f":"VLOOKUP(TRIM(J4312),'Transactional Departments'!A:B,2,FALSE)","v":"CFR Research Operations"},"43300001","18400","RUNCTRR376415CV","A01","",""]
["43","376",null,null,"NIH      RF BIO AF AMER  BEACH","1021RR376416","20000","12100","61018","43300001",{"$f":"VLOOKUP(TRIM(J4313),'Transactional Departments'!A:B,2,FALSE)","v":"CFR Research Operations"},"43300001","18400","RNIHXRR376416CV","A01","",""]
["43","376",null,null,"NIH      RF DRUGUSE/HIV  BRODY","1021RR376417","20000","12100","61018","43300001",{"$f":"VLOOKUP(TRIM(J4314),'Transactional Departments'!A:B,2,FALSE)","v":"CFR Research Operations"},"43300001","18400","RNIHXRR376417CV","A01","",""]
["43","376",null,null,"NIH      RF DUAL INOC AP KOGAN","1021RR376418","20000","12100","61018","43300001",{"$f":"VLOOKUP(TRIM(J4315),'Transactional Departments'!A:B,2,FALSE)","v":"CFR Research Operations"},"43300001","18400","RNIHXRR376418CV","A01","",""]
["43","376",null,null,"NIH      RF DRUGUSE/HIV  BRODY","1021RR376419","20000","12100","61018","43300001",{"$f":"VLOOKUP(TRIM(J4316),'Transactional Departments'!A:B,2,FALSE)","v":"CFR Research Operations"},"43300001","18400","RNIHXRR376419CV","A01","",""]
["43","376",null,null,"NIH      RF DRUGUSE/HIV  BRODY","1021RR376420","20000","12100","61018","43300001",{"$f":"VLOOKUP(TRIM(J4317),'Transactional Departments'!A:B,2,FALSE)","v":"CFR Research Operations"},"43300001","18400","RNIHXRR376420CV","A01","",""]
["43","376",null,null,"NIH      RF DRUGUSE/HIV  BRODY","1021RR376421","20000","12100","61018","43300001",{"$f":"VLOOKUP(TRIM(J4318),'Transactional Departments'!A:B,2,FALSE)","v":"CFR Research Operations"},"43300001","18400","RNIHXRR376421CV","A01","",""]
["43","376",null,null,"GDHS/HRSAUGA MIECHV      BROWN","1021RR376424","20000","12100","62015","43300001",{"$f":"VLOOKUP(TRIM(J4319),'Transactional Departments'!A:B,2,FALSE)","v":"CFR Research Operations"},"43300001","18003","SGHUMRR376424CV","A01","",""]
["43","376",null,null,"UNITED WARF UGA GREAT START BR","1021RR376425","20000","12100","64356","43300001",{"$f":"VLOOKUP(TRIM(J4320),'Transactional Departments'!A:B,2,FALSE)","v":"CFR Research Operations"},"43300001","18400","RUWMARR376425CV","A01","",""]
["43","376",null,null,"GDHS/HRSAFORMULA W/RR376424   ","1021RR376426","20000","12100","62015","43300001",{"$f":"VLOOKUP(TRIM(J4321),'Transactional Departments'!A:B,2,FALSE)","v":"CFR Research Operations"},"43300001","18003","SGHUMRR376426CV","A01","",""]
["43","376",null,null,"NIH      RF PSYCHOSOCIAL SIMON","1021RR376427","20000","12100","61018","43300001",{"$f":"VLOOKUP(TRIM(J4322),'Transactional Departments'!A:B,2,FALSE)","v":"CFR Research Operations"},"43300001","18400","RNIHXRR376427CV","A01","",""]
["43","376",null,null,"NIH      RF DRUGUSE/HIV  BRODY","1021RR376428","20000","12100","61018","43300001",{"$f":"VLOOKUP(TRIM(J4323),'Transactional Departments'!A:B,2,FALSE)","v":"CFR Research Operations"},"43300001","18400","RNIHXRR376428CV","A01","",""]
["43","376",null,null,"GPH      UGA MIECHV______BROWN","1021RR376429","20000","12100","62015","43300001",{"$f":"VLOOKUP(TRIM(J4324),'Transactional Departments'!A:B,2,FALSE)","v":"CFR Research Operations"},"43300001","18003","SGHUMRR376429CV","A01","",""]
["43","376",null,null,"GPHADPH  UGA MIECHV _____BROWN","1021RR376430","20000","12100","62015","43300001",{"$f":"VLOOKUP(TRIM(J4325),'Transactional Departments'!A:B,2,FALSE)","v":"CFR Research Operations"},"43300001","18003","SGHUMRR376430CV","A01","",""]
["43","376",null,null,"NIH      RF SUPPL W/ 376428 BR","1021RR376431","20000","12100","61018","43300001",{"$f":"VLOOKUP(TRIM(J4326),'Transactional Departments'!A:B,2,FALSE)","v":"CFR Research Operations"},"43300001","18400","RNIHXRR376431CV","A01","",""]
["43","376",null,null,"NIH      RF RF_RESPONSIVEBIRCH","1021RR376432","20000","12100","61018","43300001",{"$f":"VLOOKUP(TRIM(J4327),'Transactional Departments'!A:B,2,FALSE)","v":"CFR Research Operations"},"43300001","18400","RNIHXRR376432CV","A01","",""]
["43","376",null,null,"UWGA     RF CFR PAT TRAINBROWN","1021RR376433","20000","12100","64356","43300001",{"$f":"VLOOKUP(TRIM(J4328),'Transactional Departments'!A:B,2,FALSE)","v":"CFR Research Operations"},"43300001","18400","RUWMARR376433CV","A01","",""]
["43","376",null,null,"GA DPH   RF RF_TAQ INFRASBROWN","1021RR376434","20000","12100","62053","43300001",{"$f":"VLOOKUP(TRIM(J4329),'Transactional Departments'!A:B,2,FALSE)","v":"CFR Research Operations"},"43300001","18400","RGDPHRR376434CV","A01","",""]
["43","380",null,null,"DU/NSF   RF RR272-497    MARKE","1021RR380050","20000","12100","64290","43400001",{"$f":"VLOOKUP(TRIM(J4330),'Transactional Departments'!A:B,2,FALSE)","v":"CAIS Administration"},"43400001","18400","RDUKERR380050CV","A01","",""]
["43","380",null,null,"ST OF CALRF RF_MICROCYTISSPEAK","1021RR380055","20000","12100","62503","43400001",{"$f":"VLOOKUP(TRIM(J4331),'Transactional Departments'!A:B,2,FALSE)","v":"CAIS Administration"},"43400001","18400","RSOCARR380055CV","A01","",""]
["43","380",null,null,"SECOORA  RF RF_SUPPORT RENOAKE","1021RR380056","20000","12100","64151","43400001",{"$f":"VLOOKUP(TRIM(J4332),'Transactional Departments'!A:B,2,FALSE)","v":"CAIS Administration"},"43400001","18400","RSECORR380056CV","A01","",""]
["43","380",null,null,"CESU PIEDRF RF_TURNER RIVHADDE","1021RR380057","20000","12100","61034","43400001",{"$f":"VLOOKUP(TRIM(J4333),'Transactional Departments'!A:B,2,FALSE)","v":"CAIS Administration"},"43400001","18400","RCESURR380057CV","A01","",""]
["43","549",null,null,"         CCRC VAR GIFTS  DARVI","1021RR549229","20000","12100","64206","43450001",{"$f":"VLOOKUP(TRIM(J4334),'Transactional Departments'!A:B,2,FALSE)","v":"CCRC Administration"},"43450001","18003","SVARIRR549229CV","A01","",""]
["43","549",null,null,"NSF      RF VIVO VISUAL  HAHN ","1021RR549313","20000","12100","61023","43450001",{"$f":"VLOOKUP(TRIM(J4335),'Transactional Departments'!A:B,2,FALSE)","v":"CCRC Administration"},"43450001","18400","RNSFXRR549313CV","A01","",""]
["43","549",null,null,"NIH      RF NMR ARF COM  PREST","1021RR549343","20000","12100","61018","43450001",{"$f":"VLOOKUP(TRIM(J4336),'Transactional Departments'!A:B,2,FALSE)","v":"CCRC Administration"},"43450001","18400","RNIHXRR549343CV","A01","",""]
["43","549",null,null,"         RF CHEM SYNTHESIBOONS","1021RR549345","20000","12100","64049","43450001",{"$f":"VLOOKUP(TRIM(J4337),'Transactional Departments'!A:B,2,FALSE)","v":"CCRC Administration"},"43450001","18003","SMEDIRR549345CV","A01","",""]
["43","549",null,null,"WISC/DOE RF LIGNIN       HAHN ","1021RR549361","20000","12100","62518","43450001",{"$f":"VLOOKUP(TRIM(J4338),'Transactional Departments'!A:B,2,FALSE)","v":"CCRC Administration"},"43450001","18400","RUNWIRR549361CV","A01","",""]
["43","549",null,null,"NIH      RF SYNCANVAC 13 BOONS","1021RR549377","20000","12100","61018","43450001",{"$f":"VLOOKUP(TRIM(J4339),'Transactional Departments'!A:B,2,FALSE)","v":"CCRC Administration"},"43450001","18400","RNIHXRR549377CV","A01","",""]
["43","549",null,null,"NIH      RF PM LYSOSOMAL STEET","1021RR549384","20000","12100","61018","43450001",{"$f":"VLOOKUP(TRIM(J4340),'Transactional Departments'!A:B,2,FALSE)","v":"CCRC Administration"},"43450001","18400","RNIHXRR549384CV","A01","",""]
["43","549",null,null,"MFG      RF HEPARIN SULF WANG ","1021RR549387","20000","12100","64000","43450001",{"$f":"VLOOKUP(TRIM(J4341),'Transactional Departments'!A:B,2,FALSE)","v":"CCRC Administration"},"43450001","18400","RXXXXRR549387CV","A01","",""]
["43","549",null,null,"NIH      RF NMR OLIGOSACCPREST","1021RR549391","20000","12100","61018","43450001",{"$f":"VLOOKUP(TRIM(J4342),'Transactional Departments'!A:B,2,FALSE)","v":"CCRC Administration"},"43450001","18400","RNIHXRR549391CV","A01","",""]
["43","549",null,null,"NIH      RF ALPHA DYSTRO LIVE ","1021RR549392","20000","12100","61018","43450001",{"$f":"VLOOKUP(TRIM(J4343),'Transactional Departments'!A:B,2,FALSE)","v":"CCRC Administration"},"43450001","18400","RNIHXRR549392CV","A01","",""]
["43","549",null,null,"MGH      RF HIV VACCINES WELLS","1021RR549393","20000","12100","64317","43450001",{"$f":"VLOOKUP(TRIM(J4344),'Transactional Departments'!A:B,2,FALSE)","v":"CCRC Administration"},"43450001","18400","RMAGHRR549393CV","A01","",""]
["43","549",null,null,"SBMRI    RF GLYCOSYLATIO STEET","1021RR549395","20000","12100","64145","43450001",{"$f":"VLOOKUP(TRIM(J4345),'Transactional Departments'!A:B,2,FALSE)","v":"CCRC Administration"},"43450001","18400","RSBMRRR549395CV","A01","",""]
["43","549",null,null,"CWRU/NIH RF RF_GLYCOPRO SORLAN","1021RR549397","20000","12100","64335","43450001",{"$f":"VLOOKUP(TRIM(J4346),'Transactional Departments'!A:B,2,FALSE)","v":"CCRC Administration"},"43450001","18400","RCASERR549397CV","A01","",""]
["43","549",null,null,"NIH      RF RF_HI SENS 13EDISO","1021RR549398","20000","12100","61018","43450001",{"$f":"VLOOKUP(TRIM(J4347),'Transactional Departments'!A:B,2,FALSE)","v":"CCRC Administration"},"43450001","18400","RNIHXRR549398CV","A01","",""]
["43","549",null,null,"UFL/NIH  RF RF_MATERN COREDISO","1021RR549399","20000","12100","62511","43450001",{"$f":"VLOOKUP(TRIM(J4348),'Transactional Departments'!A:B,2,FALSE)","v":"CCRC Administration"},"43450001","18400","RUFLXRR549399CV","A01","",""]
["43","549",null,null,"JHU/NIH  RF INFLAMM LUNG TIEME","1021RR549400","20000","12100","64309","43450001",{"$f":"VLOOKUP(TRIM(J4349),'Transactional Departments'!A:B,2,FALSE)","v":"CCRC Administration"},"43450001","18400","RJHOPRR549400CV","A01","",""]
["43","549",null,null,"BARD     RF FUNGUS-PLANT BAR-P","1021RR549474","20000","12100","64461","43450001",{"$f":"VLOOKUP(TRIM(J4350),'Transactional Departments'!A:B,2,FALSE)","v":"CCRC Administration"},"43450001","18400","RBIAFRR549474CV","A01","",""]
["43","549",null,null,"UTB/USDE RF FA1 STRUC    DARVI","1021RR549475","20000","12100","64292","43450001",{"$f":"VLOOKUP(TRIM(J4351),'Transactional Departments'!A:B,2,FALSE)","v":"CCRC Administration"},"43450001","18400","RUTBARR549475CV","A01","",""]
["43","549",null,null,"UTB/USDE RF FA2          DARVI","1021RR549476","20000","12100","64292","43450001",{"$f":"VLOOKUP(TRIM(J4352),'Transactional Departments'!A:B,2,FALSE)","v":"CCRC Administration"},"43450001","18400","RUTBARR549476CV","A01","",""]
["43","549",null,null,"UTB/USDE RF FA3 OMICS    DARVI","1021RR549477","20000","12100","64292","43450001",{"$f":"VLOOKUP(TRIM(J4353),'Transactional Departments'!A:B,2,FALSE)","v":"CCRC Administration"},"43450001","18400","RUTBARR549477CV","A01","",""]
["43","549",null,null,"         RF GALECTIN-3   BOONS","1021RR549480","20000","12100","64054","43450001",{"$f":"VLOOKUP(TRIM(J4354),'Transactional Departments'!A:B,2,FALSE)","v":"CCRC Administration"},"43450001","18003","SGALERR549480CV","A01","",""]
["43","549",null,null,"VARI/NIH RF CANCER BIOMA MOREM","1021RR549486","20000","12100","64136","43450001",{"$f":"VLOOKUP(TRIM(J4355),'Transactional Departments'!A:B,2,FALSE)","v":"CCRC Administration"},"43450001","18400","RVAAIRR549486CV","A01","",""]
["43","549",null,null,"MDA/UCLA RF SKELETAL GLY MOREM","1021RR549490","20000","12100","62500","43450001",{"$f":"VLOOKUP(TRIM(J4356),'Transactional Departments'!A:B,2,FALSE)","v":"CCRC Administration"},"43450001","18400","RXXXXRR549490CV","A01","",""]
["43","549",null,null,"EU       RF GLYCOMICS    WELLS","1021RR549496","20000","12100","64139","43450001",{"$f":"VLOOKUP(TRIM(J4357),'Transactional Departments'!A:B,2,FALSE)","v":"CCRC Administration"},"43450001","18400","REMORRR549496CV","A01","",""]
["43","549",null,null,"G&D/NIH  RF N-GLYCOSY    WOODS","1021RR549497","20000","12100","64041","43450001",{"$f":"VLOOKUP(TRIM(J4358),'Transactional Departments'!A:B,2,FALSE)","v":"CCRC Administration"},"43450001","18400","RG&DLRR549497CV","A01","",""]
["43","549",null,null,"GRU/NIH  RF CAMPYLOBACT  MUSZY","1021RR549499","20000","12100","62068","43450001",{"$f":"VLOOKUP(TRIM(J4359),'Transactional Departments'!A:B,2,FALSE)","v":"CCRC Administration"},"43450001","18400","RAUGURR549499CV","A01","",""]
["43","549",null,null,"JHU/NIH  RF INFLAMM LUNG TIEME","1021RR549501","20000","12100","64309","43450001",{"$f":"VLOOKUP(TRIM(J4360),'Transactional Departments'!A:B,2,FALSE)","v":"CCRC Administration"},"43450001","18400","RJHOPRR549501CV","A01","",""]
["43","549",null,null,"CAL/NIH  RF GLYCAN MODUL 05   ","1021RR549502","20000","12100","62561","43450001",{"$f":"VLOOKUP(TRIM(J4361),'Transactional Departments'!A:B,2,FALSE)","v":"CCRC Administration"},"43450001","18400","RUCASRR549502CV","A01","",""]
["43","549",null,null,"EU/NIH   RF TUMOR ANTIGE WELLS","1021RR549504","20000","12100","64139","43450001",{"$f":"VLOOKUP(TRIM(J4362),'Transactional Departments'!A:B,2,FALSE)","v":"CCRC Administration"},"43450001","18400","REMORRR549504CV","A01","",""]
["43","549",null,null,"NIH      RF RR182-434    KRAUS","1021RR549507","20000","12100","61018","43450001",{"$f":"VLOOKUP(TRIM(J4363),'Transactional Departments'!A:B,2,FALSE)","v":"CCRC Administration"},"43450001","18400","RNIHXRR549507CV","A01","",""]
["43","549",null,null,"RSU/NIH  RF EUKAR DOMAIN PREST","1021RR549508","20000","12100","62588","43450001",{"$f":"VLOOKUP(TRIM(J4364),'Transactional Departments'!A:B,2,FALSE)","v":"CCRC Administration"},"43450001","18400","RRUTGRR549508CV","A01","",""]
["43","549",null,null,"NIH      RF GLYCOSCI TRN PIERC","1021RR549510","20000","12100","61018","43450001",{"$f":"VLOOKUP(TRIM(J4365),'Transactional Departments'!A:B,2,FALSE)","v":"CCRC Administration"},"43450001","18400","RNIHXRR549510CV","A01","",""]
["43","549",null,null,"MGH      RF W/ RR549-393      ","1021RR549516","20000","12100","64317","43450001",{"$f":"VLOOKUP(TRIM(J4366),'Transactional Departments'!A:B,2,FALSE)","v":"CCRC Administration"},"43450001","18400","RMAGHRR549516CV","A01","",""]
["43","549",null,null,"UND/NSF  RF OLIGOSACCH   WOODS","1021RR549517","20000","12100","64368","43450001",{"$f":"VLOOKUP(TRIM(J4367),'Transactional Departments'!A:B,2,FALSE)","v":"CCRC Administration"},"43450001","18400","RUNNDRR549517CV","A01","",""]
["43","549",null,null,"WMKF     RF GLYCOMICS    TIEME","1021RR549520","20000","12100","64453","43450001",{"$f":"VLOOKUP(TRIM(J4368),'Transactional Departments'!A:B,2,FALSE)","v":"CCRC Administration"},"43450001","18400","RKECKRR549520CV","A01","",""]
["43","549",null,null,"WMKF     INC  W/549520   TIEME","1021RR549521","20000","12100","64453","43450001",{"$f":"VLOOKUP(TRIM(J4369),'Transactional Departments'!A:B,2,FALSE)","v":"CCRC Administration"},"43450001","18003","SKECKRR549521CV","A01","",""]
["43","549",null,null,"NIH      RF GLYCOTECHNO  MOREM","1021RR549522","20000","12100","61018","43450001",{"$f":"VLOOKUP(TRIM(J4370),'Transactional Departments'!A:B,2,FALSE)","v":"CCRC Administration"},"43450001","18400","RNIHXRR549522CV","A01","",""]
["43","549",null,null,"YGFI     RF ML MUTATIONS STEET","1021RR549523","20000","12100","64155","43450001",{"$f":"VLOOKUP(TRIM(J4371),'Transactional Departments'!A:B,2,FALSE)","v":"CCRC Administration"},"43450001","18400","RYAGIRR549523CV","A01","",""]
["43","549",null,null,"NIH      RF ROBO4 HEPERANWANG ","1021RR549525","20000","12100","61018","43450001",{"$f":"VLOOKUP(TRIM(J4372),'Transactional Departments'!A:B,2,FALSE)","v":"CCRC Administration"},"43450001","18400","RNIHXRR549525CV","A01","",""]
["43","549",null,null,"NIH      RF COMPLEX GLYC BOONS","1021RR549526","20000","12100","61018","43450001",{"$f":"VLOOKUP(TRIM(J4373),'Transactional Departments'!A:B,2,FALSE)","v":"CCRC Administration"},"43450001","18400","RNIHXRR549526CV","A01","",""]
["43","549",null,null,"JHU/NIH  RF INFLAMM LUNG TIEME","1021RR549527","20000","12100","64309","43450001",{"$f":"VLOOKUP(TRIM(J4374),'Transactional Departments'!A:B,2,FALSE)","v":"CCRC Administration"},"43450001","18400","RJHOPRR549527CV","A01","",""]
["43","549",null,null,"CAL/NIH  RF GLYCAN MODUL BOONS","1021RR549528","20000","12100","62561","43450001",{"$f":"VLOOKUP(TRIM(J4375),'Transactional Departments'!A:B,2,FALSE)","v":"CCRC Administration"},"43450001","18400","RUCASRR549528CV","A01","",""]
["43","549",null,null,"GLY&DIAG RF RF_DETECT GLYWOODS","1021RR549531","20000","12100","64041","43450001",{"$f":"VLOOKUP(TRIM(J4376),'Transactional Departments'!A:B,2,FALSE)","v":"CCRC Administration"},"43450001","18400","RG&DLRR549531CV","A01","",""]
["43","549",null,null,"NIH      RF ROBO4 HEPERAN WANT","1021RR549532","20000","12100","61018","43450001",{"$f":"VLOOKUP(TRIM(J4377),'Transactional Departments'!A:B,2,FALSE)","v":"CCRC Administration"},"43450001","18400","RNIHXRR549532CV","A01","",""]
["43","549",null,null,"EU/NIH   RF TUMOR ANTIGE WELLS","1021RR549535","20000","12100","64139","43450001",{"$f":"VLOOKUP(TRIM(J4378),'Transactional Departments'!A:B,2,FALSE)","v":"CCRC Administration"},"43450001","18400","REMORRR549535CV","A01","",""]
["43","549",null,null,"UF/NIH   RF SECIM________PREST","1021RR549537","20000","12100","62511","43450001",{"$f":"VLOOKUP(TRIM(J4379),'Transactional Departments'!A:B,2,FALSE)","v":"CCRC Administration"},"43450001","18400","RUFLXRR549537CV","A01","",""]
["43","549",null,null,"NIH      RF W/ 166850 WELLS   ","1021RR549538","20000","12100","61018","43450001",{"$f":"VLOOKUP(TRIM(J4380),'Transactional Departments'!A:B,2,FALSE)","v":"CCRC Administration"},"43450001","18400","RNIHXRR549538CV","A01","",""]
["43","549",null,null,"NIH      RF GLYSPACE     YORK ","1021RR549539","20000","12100","61018","43450001",{"$f":"VLOOKUP(TRIM(J4381),'Transactional Departments'!A:B,2,FALSE)","v":"CCRC Administration"},"43450001","18400","RNIHXRR549539CV","A01","",""]
["43","549",null,null,"NIH      RF RF_CRISPR-CASWANG ","1021RR549541","20000","12100","61018","43450001",{"$f":"VLOOKUP(TRIM(J4382),'Transactional Departments'!A:B,2,FALSE)","v":"CCRC Administration"},"43450001","18400","RNIHXRR549541CV","A01","",""]
["43","549",null,null,"US DOE   RF CTR FOR PLAN_DARVI","1021RR549542","20000","12100","61001","43450001",{"$f":"VLOOKUP(TRIM(J4383),'Transactional Departments'!A:B,2,FALSE)","v":"CCRC Administration"},"43450001","18400","RUSDERR549542CV","A01","",""]
["43","549",null,null,"BIDMC/NIHRF RF_PSGL-1 GLYWOODS","1021RR549546","20000","12100","64040","43450001",{"$f":"VLOOKUP(TRIM(J4384),'Transactional Departments'!A:B,2,FALSE)","v":"CCRC Administration"},"43450001","18400","RBEIMRR549546CV","A01","",""]
["43","549",null,null,"NIH      RF RF_UPGRD 600MPREST","1021RR549547","20000","12100","61018","43450001",{"$f":"VLOOKUP(TRIM(J4385),'Transactional Departments'!A:B,2,FALSE)","v":"CCRC Administration"},"43450001","18400","RNIHXRR549547CV","A01","",""]
["43","549",null,null,"BU/NIH   RF RF_HEP SULF TBOONS","1021RR549550","20000","12100","64315","43450001",{"$f":"VLOOKUP(TRIM(J4386),'Transactional Departments'!A:B,2,FALSE)","v":"CCRC Administration"},"43450001","18400","RBSTURR549550CV","A01","",""]
["43","549",null,null,"UPA/NIH  RF ANTIGENIC BI_MOREM","1021RR549551","20000","12100","62523","43450001",{"$f":"VLOOKUP(TRIM(J4387),'Transactional Departments'!A:B,2,FALSE)","v":"CCRC Administration"},"43450001","18400","RUPENRR549551CV","A01","",""]
["43","549",null,null,"BIDMC/NIHRF RF_PSGL-1 GLYWOODS","1021RR549552","20000","12100","64040","43450001",{"$f":"VLOOKUP(TRIM(J4388),'Transactional Departments'!A:B,2,FALSE)","v":"CCRC Administration"},"43450001","18400","RBEIMRR549552CV","A01","",""]
["43","549",null,null,"NIH      RF NC BIO GLY___PIERC","1021RR549553","20000","12100","61018","43450001",{"$f":"VLOOKUP(TRIM(J4389),'Transactional Departments'!A:B,2,FALSE)","v":"CCRC Administration"},"43450001","18400","RNIHXRR549553CV","A01","",""]
["43","549",null,null,"GANDHI FNRF RF_I-CELL RSCSTEET","1021RR549554","20000","12100","64155","43450001",{"$f":"VLOOKUP(TRIM(J4390),'Transactional Departments'!A:B,2,FALSE)","v":"CCRC Administration"},"43450001","18400","RYAGIRR549554CV","A01","",""]
["43","549",null,null,"SBMRI/NIHRF GLYCOSULATIO STEET","1021RR549555","20000","12100","64145","43450001",{"$f":"VLOOKUP(TRIM(J4391),'Transactional Departments'!A:B,2,FALSE)","v":"CCRC Administration"},"43450001","18400","RSBMRRR549555CV","A01","",""]
["43","549",null,null,"JHU/NIH  RF INFLAMM LUNG TIEME","1021RR549556","20000","12100","64309","43450001",{"$f":"VLOOKUP(TRIM(J4392),'Transactional Departments'!A:B,2,FALSE)","v":"CCRC Administration"},"43450001","18400","RJHOPRR549556CV","A01","",""]
["43","549",null,null,"MGH      RF HIV VACCINES WELLS","1021RR549557","20000","12100","64317","43450001",{"$f":"VLOOKUP(TRIM(J4393),'Transactional Departments'!A:B,2,FALSE)","v":"CCRC Administration"},"43450001","18400","RMAGHRR549557CV","A01","",""]
["43","549",null,null,"NIH      RF MAMM GLYCO___BOONS","1021RR549558","20000","12100","61018","43450001",{"$f":"VLOOKUP(TRIM(J4394),'Transactional Departments'!A:B,2,FALSE)","v":"CCRC Administration"},"43450001","18400","RNIHXRR549558CV","A01","",""]
["43","549",null,null,"NIH      RF GLYCOSCI TRN_PIERC","1021RR549560","20000","12100","61018","43450001",{"$f":"VLOOKUP(TRIM(J4395),'Transactional Departments'!A:B,2,FALSE)","v":"CCRC Administration"},"43450001","18400","RNIHXRR549560CV","A01","",""]
["43","549",null,null,"NIH      RF W/ 549560    PIERC","1021RR549561","20000","12100","61018","43450001",{"$f":"VLOOKUP(TRIM(J4396),'Transactional Departments'!A:B,2,FALSE)","v":"CCRC Administration"},"43450001","18400","RNIHXRR549561CV","A01","",""]
["43","549",null,null,"UCAL/NIH RF GLYCAN MODUL BOONS","1021RR549562","20000","12100","62561","43450001",{"$f":"VLOOKUP(TRIM(J4397),'Transactional Departments'!A:B,2,FALSE)","v":"CCRC Administration"},"43450001","18400","RUCASRR549562CV","A01","",""]
["43","549",null,null,"NIH      RF TOOLS TO ENA WOODS","1021RR549563","20000","12100","61018","43450001",{"$f":"VLOOKUP(TRIM(J4398),'Transactional Departments'!A:B,2,FALSE)","v":"CCRC Administration"},"43450001","18400","RNIHXRR549563CV","A01","",""]
["43","549",null,null,"NIH      RF HI THRUPUT___RANZI","1021RR549566","20000","12100","61018","43450001",{"$f":"VLOOKUP(TRIM(J4399),'Transactional Departments'!A:B,2,FALSE)","v":"CCRC Administration"},"43450001","18400","RNIHXRR549566CV","A01","",""]
["43","549",null,null,"NIH      RF CHEMOENZ SYN BOONS","1021RR549567","20000","12100","61018","43450001",{"$f":"VLOOKUP(TRIM(J4400),'Transactional Departments'!A:B,2,FALSE)","v":"CCRC Administration"},"43450001","18400","RNIHXRR549567CV","A01","",""]
["43","549",null,null,"UF NIH   RF SECIM        EDISO","1021RR549568","20000","12100","62511","43450001",{"$f":"VLOOKUP(TRIM(J4401),'Transactional Departments'!A:B,2,FALSE)","v":"CCRC Administration"},"43450001","18400","RUFLXRR549568CV","A01","",""]
["43","549",null,null,"NIH      RF RF_GLYCAN LINAZADI","1021RR549570","20000","12100","61018","43450001",{"$f":"VLOOKUP(TRIM(J4402),'Transactional Departments'!A:B,2,FALSE)","v":"CCRC Administration"},"43450001","18400","RNIHXRR549570CV","A01","",""]
["43","549",null,null,"USDOE    RF PLANT CELL   ONEIL","1021RR549571","20000","12100","61001","43450001",{"$f":"VLOOKUP(TRIM(J4403),'Transactional Departments'!A:B,2,FALSE)","v":"CCRC Administration"},"43450001","18400","RUSDERR549571CV","A01","",""]
["43","549",null,null,"SRI/NIH  RF CHEMO METHDS MOREM","1021RR549572","20000","12100","64306","43450001",{"$f":"VLOOKUP(TRIM(J4404),'Transactional Departments'!A:B,2,FALSE)","v":"CCRC Administration"},"43450001","18400","RSCRIRR549572CV","A01","",""]
["43","549",null,null,"UFL/NIH  RF SECIM________EDISO","1021RR549573","20000","12100","62511","43450001",{"$f":"VLOOKUP(TRIM(J4405),'Transactional Departments'!A:B,2,FALSE)","v":"CCRC Administration"},"43450001","18400","RUFLXRR549573CV","A01","",""]
["43","549",null,null,"UFL/NIH  RF RF_SECIM_____EDISO","1021RR549574","20000","12100","62511","43450001",{"$f":"VLOOKUP(TRIM(J4406),'Transactional Departments'!A:B,2,FALSE)","v":"CCRC Administration"},"43450001","18400","RUFLXRR549574CV","A01","",""]
["43","549",null,null,"NIH      RF CHEMOENZ SYN BOONS","1021RR549575","20000","12100","61018","43450001",{"$f":"VLOOKUP(TRIM(J4407),'Transactional Departments'!A:B,2,FALSE)","v":"CCRC Administration"},"43450001","18400","RNIHXRR549575CV","A01","",""]
["43","549",null,null,"MERCK    RF RF_CHKN VACCISZYMA","1021RR549576","20000","12100","64006","43450001",{"$f":"VLOOKUP(TRIM(J4408),'Transactional Departments'!A:B,2,FALSE)","v":"CCRC Administration"},"43450001","18400","RMERKRR549576CV","A01","",""]
["43","549",null,null,"EMORY/NIHRF RF_HOST-PATHOWELLS","1021RR549577","20000","12100","64139","43450001",{"$f":"VLOOKUP(TRIM(J4409),'Transactional Departments'!A:B,2,FALSE)","v":"CCRC Administration"},"43450001","18400","REMORRR549577CV","A01","",""]
["43","549",null,null,"DOE      RF W267800 BERG      ","1021RR549578","20000","12100","61001","43450001",{"$f":"VLOOKUP(TRIM(J4410),'Transactional Departments'!A:B,2,FALSE)","v":"CCRC Administration"},"43450001","18400","RUSDERR549578CV","A01","",""]
["43","549",null,null,"BIDM     RF PSGL-1 GLYCO WOODS","1021RR549579","20000","12100","64040","43450001",{"$f":"VLOOKUP(TRIM(J4411),'Transactional Departments'!A:B,2,FALSE)","v":"CCRC Administration"},"43450001","18400","RBEIMRR549579CV","A01","",""]
["43","549",null,null,"NIH      RF RF_INTEGRAT GLY_MO","1021RR549580","20000","12100","61018","43450001",{"$f":"VLOOKUP(TRIM(J4412),'Transactional Departments'!A:B,2,FALSE)","v":"CCRC Administration"},"43450001","18400","RNIHXRR549580CV","A01","",""]
["43","549",null,null,"GLYCO/NIHRF RF_GEN OF ANTHALTI","1021RR549581","20000","12100","64106","43450001",{"$f":"VLOOKUP(TRIM(J4413),'Transactional Departments'!A:B,2,FALSE)","v":"CCRC Administration"},"43450001","18400","RGLYCRR549581CV","A01","",""]
["43","549",null,null,"BAYLR/NIHRF RF_ALAGILLE SHALTI","1021RR549582","20000","12100","62586","43450001",{"$f":"VLOOKUP(TRIM(J4414),'Transactional Departments'!A:B,2,FALSE)","v":"CCRC Administration"},"43450001","18400","RBAYCRR549582CV","A01","",""]
["43","549",null,null,"ADC THER RF RF_ANTIBODY-DBOONS","1021RR549584","20000","12100","64514","43450001",{"$f":"VLOOKUP(TRIM(J4415),'Transactional Departments'!A:B,2,FALSE)","v":"CCRC Administration"},"43450001","18400","RADCTRR549584CV","A01","",""]
["43","549",null,null,"MERCK    RF RF_LEGHORN VASZYMA","1021RR549585","20000","12100","64006","43450001",{"$f":"VLOOKUP(TRIM(J4416),'Transactional Departments'!A:B,2,FALSE)","v":"CCRC Administration"},"43450001","18400","RMERKRR549585CV","A01","",""]
["43","549",null,null,"MASS GEN RF RF_HIV VACCINES_WE","1021RR549586","20000","12100","64317","43450001",{"$f":"VLOOKUP(TRIM(J4417),'Transactional Departments'!A:B,2,FALSE)","v":"CCRC Administration"},"43450001","18400","RMAGHRR549586CV","A01","",""]
["43","549",null,null,"YASH GANDRF RF_CURE I-CELSTEET","1021RR549587","20000","12100","64155","43450001",{"$f":"VLOOKUP(TRIM(J4418),'Transactional Departments'!A:B,2,FALSE)","v":"CCRC Administration"},"43450001","18400","RYAGIRR549587CV","A01","",""]
["43","549",null,null,"NIH      RF NC BIO GLY___PIERC","1021RR549588","20000","12100","61018","43450001",{"$f":"VLOOKUP(TRIM(J4419),'Transactional Departments'!A:B,2,FALSE)","v":"CCRC Administration"},"43450001","18400","RNIHXRR549588CV","A01","",""]
["43","549",null,null,"NIH      RF CHEMOENZ SYN BOONS","1021RR549589","20000","12100","61018","43450001",{"$f":"VLOOKUP(TRIM(J4420),'Transactional Departments'!A:B,2,FALSE)","v":"CCRC Administration"},"43450001","18400","RNIHXRR549589CV","A01","",""]
["43","549",null,null,"SBMRI/NIHRF GLYCOSULATIO STEET","1021RR549590","20000","12100","64145","43450001",{"$f":"VLOOKUP(TRIM(J4421),'Transactional Departments'!A:B,2,FALSE)","v":"CCRC Administration"},"43450001","18400","RSBMRRR549590CV","A01","",""]
["43","549",null,null,"AHA         RF_ROLE OF HEWANG ","1021RR549591","20000","12100","64127","43450001",{"$f":"VLOOKUP(TRIM(J4422),'Transactional Departments'!A:B,2,FALSE)","v":"CCRC Administration"},"43450001","18003","SAHTARR549591CV","A01","",""]
["43","549",null,null,"AHA         DISSECT ROLE QIU  ","1021RR549592","20000","12100","64127","43450001",{"$f":"VLOOKUP(TRIM(J4423),'Transactional Departments'!A:B,2,FALSE)","v":"CCRC Administration"},"43450001","18003","SAHTARR549592CV","A01","",""]
["43","549",null,null,"AMICUS   UGA_N-GLYCANS___TIEME","1021RR549593","20000","12100","64034","43450001",{"$f":"VLOOKUP(TRIM(J4424),'Transactional Departments'!A:B,2,FALSE)","v":"CCRC Administration"},"43450001","18003","SAMICRR549593CV","A01","",""]
["43","549",null,null,"NIH      RF GLYCOSCI TRN PIERC","1021RR549594","20000","12100","61018","43450001",{"$f":"VLOOKUP(TRIM(J4425),'Transactional Departments'!A:B,2,FALSE)","v":"CCRC Administration"},"43450001","18400","RNIHXRR549594CV","A01","",""]
["43","549",null,null,"NIH      RF TOOLS TO ENA WOODS","1021RR549596","20000","12100","61018","43450001",{"$f":"VLOOKUP(TRIM(J4426),'Transactional Departments'!A:B,2,FALSE)","v":"CCRC Administration"},"43450001","18400","RNIHXRR549596CV","A01","",""]
["43","549",null,null,"NIH      RF RF_GLYPROBITYWOODS","1021RR549597","20000","12100","61018","43450001",{"$f":"VLOOKUP(TRIM(J4427),'Transactional Departments'!A:B,2,FALSE)","v":"CCRC Administration"},"43450001","18400","RNIHXRR549597CV","A01","",""]
["43","549",null,null,"UTBATELLERF RF_CBI_______MOHNE","1021RR549599","20000","12100","64292","43450001",{"$f":"VLOOKUP(TRIM(J4428),'Transactional Departments'!A:B,2,FALSE)","v":"CCRC Administration"},"43450001","18400","RUTBARR549599CV","A01","",""]
["43","549",null,null,"NIH      RF RF_COMPUTATIOYORK ","1021RR549600","20000","12100","61018","43450001",{"$f":"VLOOKUP(TRIM(J4429),'Transactional Departments'!A:B,2,FALSE)","v":"CCRC Administration"},"43450001","18400","RNIHXRR549600CV","A01","",""]
["43","549",null,null,"UTBATELLERF YORK W/549599MOHNE","1021RR549603","20000","12100","64292","43450001",{"$f":"VLOOKUP(TRIM(J4430),'Transactional Departments'!A:B,2,FALSE)","v":"CCRC Administration"},"43450001","18400","RUTBARR549603CV","A01","",""]
["43","549",null,null,"UTBATELLERF URBA W/549599MOHNE","1021RR549605","20000","12100","64292","43450001",{"$f":"VLOOKUP(TRIM(J4431),'Transactional Departments'!A:B,2,FALSE)","v":"CCRC Administration"},"43450001","18400","RUTBARR549605CV","A01","",""]
["43","549",null,null,"AHA      RF RF_KINASES___WANG ","1021RR549608","20000","12100","64127","43450001",{"$f":"VLOOKUP(TRIM(J4432),'Transactional Departments'!A:B,2,FALSE)","v":"CCRC Administration"},"43450001","18400","RAHTARR549608CV","A01","",""]
["43","549",null,null,"YU/NIH   RF SALIVARY GLY TIEME","1021RR549609","20000","12100","64537","43450001",{"$f":"VLOOKUP(TRIM(J4433),'Transactional Departments'!A:B,2,FALSE)","v":"CCRC Administration"},"43450001","18400","RYALERR549609CV","A01","",""]
["43","549",null,null,"UFL/NIH  RF MATERNAL COR_EDISO","1021RR549610","20000","12100","62511","43450001",{"$f":"VLOOKUP(TRIM(J4434),'Transactional Departments'!A:B,2,FALSE)","v":"CCRC Administration"},"43450001","18400","RUFLXRR549610CV","A01","",""]
["43","549",null,null,"         RF W/100-667    MORAN","1021RR549703","20000","12100","64442","43450001",{"$f":"VLOOKUP(TRIM(J4435),'Transactional Departments'!A:B,2,FALSE)","v":"CCRC Administration"},"43450001","18003","SGBMFRR549703CV","A01","",""]
["43","549",null,null,"         RF W/ 100-667   MORAN","1021RR549704","20000","12100","64442","43450001",{"$f":"VLOOKUP(TRIM(J4436),'Transactional Departments'!A:B,2,FALSE)","v":"CCRC Administration"},"43450001","18003","SGBMFRR549704CV","A01","",""]
["43","549",null,null,"NYU/NIH  RF SUB FOR 760009    ","1021RR549705","20000","12100","62584","43450001",{"$f":"VLOOKUP(TRIM(J4437),'Transactional Departments'!A:B,2,FALSE)","v":"CCRC Administration"},"43450001","18400","RNYUXRR549705CV","A01","",""]
["43","549",null,null,"RTI/USAIDRF VIS SCHOLAR  AZADI","1021RR549706","20000","12100","64281","43450001",{"$f":"VLOOKUP(TRIM(J4438),'Transactional Departments'!A:B,2,FALSE)","v":"CCRC Administration"},"43450001","18400","RRTRIRR549706CV","A01","",""]
["43","549",null,null,"NSF      RF OCEAN W/100-681   ","1021RR549707","20000","12100","61023","43450001",{"$f":"VLOOKUP(TRIM(J4439),'Transactional Departments'!A:B,2,FALSE)","v":"CCRC Administration"},"43450001","18400","RNSFXRR549707CV","A01","",""]
["43","553",null,null,"EMORY/NIHRF HOST-PATHOGN KISSI","1021RR553014","20000","12100","64139","43200001",{"$f":"VLOOKUP(TRIM(J4440),'Transactional Departments'!A:B,2,FALSE)","v":"IOB General Operations"},"43200001","18400","REMORRR553014CV","A01","",""]
["43","553",null,null,"EU/NIH   RF HOST PATHOGN KISSI","1021RR553016","20000","12100","64139","43200001",{"$f":"VLOOKUP(TRIM(J4441),'Transactional Departments'!A:B,2,FALSE)","v":"IOB General Operations"},"43200001","18400","REMORRR553016CV","A01","",""]
["43","553",null,null,"EU/NIH   RF MALARIA      KISSI","1021RR553017","20000","12100","64139","43200001",{"$f":"VLOOKUP(TRIM(J4442),'Transactional Departments'!A:B,2,FALSE)","v":"IOB General Operations"},"43200001","18400","REMORRR553017CV","A01","",""]
["43","553",null,null,"EU/NIH   RF MAHPIC CORE4 KISSI","1021RR553018","20000","12100","64139","43200001",{"$f":"VLOOKUP(TRIM(J4443),'Transactional Departments'!A:B,2,FALSE)","v":"IOB General Operations"},"43200001","18400","REMORRR553018CV","A01","",""]
["43","553",null,null,"EU/NIH   RF MAHPIC OPT 4_KISSI","1021RR553021","20000","12100","64139","43200001",{"$f":"VLOOKUP(TRIM(J4444),'Transactional Departments'!A:B,2,FALSE)","v":"IOB General Operations"},"43200001","18400","REMORRR553021CV","A01","",""]
["43","553",null,null,"EMORY    RF THOR'S HAMME_GUTIE","1021RR553022","20000","12100","64139","43200001",{"$f":"VLOOKUP(TRIM(J4445),'Transactional Departments'!A:B,2,FALSE)","v":"IOB General Operations"},"43200001","18400","REMORRR553022CV","A01","",""]
["43","553",null,null,"EU-NIH   RF MAHPIC CORE5 KISSI","1021RR553024","20000","12100","64139","43200001",{"$f":"VLOOKUP(TRIM(J4446),'Transactional Departments'!A:B,2,FALSE)","v":"IOB General Operations"},"43200001","18400","REMORRR553024CV","A01","",""]
["43","553",null,null,"EU/NIH   RF MAHPIC OPT 5_KISSI","1021RR553025","20000","12100","64139","43200001",{"$f":"VLOOKUP(TRIM(J4447),'Transactional Departments'!A:B,2,FALSE)","v":"IOB General Operations"},"43200001","18400","REMORRR553025CV","A01","",""]
["43","553",null,null,"EMORY    RF THOR'S HAMME GUTIE","1021RR553026","20000","12100","64139","43200001",{"$f":"VLOOKUP(TRIM(J4448),'Transactional Departments'!A:B,2,FALSE)","v":"IOB General Operations"},"43200001","18400","REMORRR553026CV","A01","",""]
["43","553",null,null,"ESVD     RF RF_WHOLE-GENOLOREN","1021RR553027","20000","12100","64000","43200001",{"$f":"VLOOKUP(TRIM(J4449),'Transactional Departments'!A:B,2,FALSE)","v":"IOB General Operations"},"43200001","18400","RENVDRR553027CV","A01","",""]
["43","599",null,null,"GDOC     FOOD WSTE PRGRM ADOLP","1031RE599003","20000","13100","62035","43510001",{"$f":"VLOOKUP(TRIM(J4450),'Transactional Departments'!A:B,2,FALSE)","v":"New Materials Inst Adm"},"43510001","18003","SGCORRE599003CV","A01","",""]
["43","599",null,null,"USDA     RURAL ENERGY    ADOLP","1031RE599004","20000","13100","61002","43510001",{"$f":"VLOOKUP(TRIM(J4451),'Transactional Departments'!A:B,2,FALSE)","v":"New Materials Inst Adm"},"43510001","18003","SUSDARE599004CV","A01","",""]
["43","599",null,null,"GDOC     INMATE EDUC     ADOLP","1031RE599005","20000","13100","62035","43510001",{"$f":"VLOOKUP(TRIM(J4452),'Transactional Departments'!A:B,2,FALSE)","v":"New Materials Inst Adm"},"43510001","18003","SGCORRE599005CV","A01","",""]
["43","600",null,null,"GRA      RF VENT IA      SCHUL","1021RR600053","20000","12100","62062","43001505",{"$f":"VLOOKUP(TRIM(J4453),'Transactional Departments'!A:B,2,FALSE)","v":"GRA Ventures"},"43001505","18400","RGRAXRR600053CV","A01","",""]
["43","600",null,null,"GRA      RF VENTURE IB   BIGGS","1021RR600056","20000","12100","62062","43001505",{"$f":"VLOOKUP(TRIM(J4454),'Transactional Departments'!A:B,2,FALSE)","v":"GRA Ventures"},"43001505","18400","RGRAXRR600056CV","A01","",""]
["43","600",null,null,"GRA      RF VENT IIA42518SCHUL","1021RR600057","20000","12100","62062","43001505",{"$f":"VLOOKUP(TRIM(J4455),'Transactional Departments'!A:B,2,FALSE)","v":"GRA Ventures"},"43001505","18400","RGRAXRR600057CV","A01","",""]
["43","600",null,null,"         RF GRA CHEM    SSCHUL","1021RR600058","20000","12100","62062","43001505",{"$f":"VLOOKUP(TRIM(J4456),'Transactional Departments'!A:B,2,FALSE)","v":"GRA Ventures"},"43001505","18003","SGRAXRR600058CV","A01","",""]
["43","600",null,null,"GRA      RF FY 17 PHAS IASCHUL","1021RR600059","20000","12100","62062","43001505",{"$f":"VLOOKUP(TRIM(J4457),'Transactional Departments'!A:B,2,FALSE)","v":"GRA Ventures"},"43001505","18400","RGRAXRR600059CV","A01","",""]
["43","600",null,null,"GRA      RF ARESTYR IA   BIGGS","1021RR600060","20000","12100","62062","43001505",{"$f":"VLOOKUP(TRIM(J4458),'Transactional Departments'!A:B,2,FALSE)","v":"GRA Ventures"},"43001505","18400","RGRAXRR600060CV","A01","",""]
["43","600",null,null,"GRA      RF PHYTOSYN     BIGGS","1021RR600061","20000","12100","62062","43001505",{"$f":"VLOOKUP(TRIM(J4459),'Transactional Departments'!A:B,2,FALSE)","v":"GRA Ventures"},"43001505","18400","RGRAXRR600061CV","A01","",""]
["43","600",null,null,"GRA      RF NUTRIVERT    BIGGS","1021RR600062","20000","12100","62062","43001505",{"$f":"VLOOKUP(TRIM(J4460),'Transactional Departments'!A:B,2,FALSE)","v":"GRA Ventures"},"43001505","18400","RGRAXRR600062CV","A01","",""]
["43","600",null,null,"GRA      RF CATHETER     BIGGS","1021RR600063","20000","12100","62062","43001505",{"$f":"VLOOKUP(TRIM(J4461),'Transactional Departments'!A:B,2,FALSE)","v":"GRA Ventures"},"43001505","18400","RGRAXRR600063CV","A01","",""]
["43","600",null,null,"GRA      RF BLYNKOGEN    BIGGS","1021RR600064","20000","12100","62062","43001505",{"$f":"VLOOKUP(TRIM(J4462),'Transactional Departments'!A:B,2,FALSE)","v":"GRA Ventures"},"43001505","18400","RGRAXRR600064CV","A01","",""]
["43","600",null,null,"GRA      RF FERROHYDRO   BIGGS","1021RR600065","20000","12100","62062","43001505",{"$f":"VLOOKUP(TRIM(J4463),'Transactional Departments'!A:B,2,FALSE)","v":"GRA Ventures"},"43001505","18400","RGRAXRR600065CV","A01","",""]
["43","600",null,null,"GRA      RF INFRAREDRX   BIGGS","1021RR600066","20000","12100","62062","43001505",{"$f":"VLOOKUP(TRIM(J4464),'Transactional Departments'!A:B,2,FALSE)","v":"GRA Ventures"},"43001505","18400","RGRAXRR600066CV","A01","",""]
["43","600",null,null,"GRA      RF RESEVOIR IA  BIGGS","1021RR600067","20000","12100","62062","43001505",{"$f":"VLOOKUP(TRIM(J4465),'Transactional Departments'!A:B,2,FALSE)","v":"GRA Ventures"},"43001505","18400","RGRAXRR600067CV","A01","",""]
["43","600",null,null,"GRA      RF IMP ENGINEE LLAUDE","1021RR600068","20000","12100","62062","43001505",{"$f":"VLOOKUP(TRIM(J4466),'Transactional Departments'!A:B,2,FALSE)","v":"GRA Ventures"},"43001505","18400","RGRAXRR600068CV","A01","",""]
["43","600",null,null,"C&G      GRA17       NORRI 211","1021RR600519","20000","12100","62062","43001505",{"$f":"VLOOKUP(TRIM(J4467),'Transactional Departments'!A:B,2,FALSE)","v":"GRA Ventures"},"43001505","18003","SGRAXRR600519CV","A01","",""]
["43","600",null,null,"C&G      GRA17       KYLE  194","1021RR600520","20000","12100","62062","43001505",{"$f":"VLOOKUP(TRIM(J4468),'Transactional Departments'!A:B,2,FALSE)","v":"GRA Ventures"},"43001505","18003","SGRAXRR600520CV","A01","",""]
["43","600",null,null,"GRA      RF PATHENS      SCHUL","1021RR600838","20000","12100","62062","43001505",{"$f":"VLOOKUP(TRIM(J4469),'Transactional Departments'!A:B,2,FALSE)","v":"GRA Ventures"},"43001505","18400","RGRAXRR600838CV","A01","",""]
["43","732",null,null,"BOR      B-D SETTLEMENT  DAILE","1021RR732003","20000","12100","62020","43500001",{"$f":"VLOOKUP(TRIM(J4470),'Transactional Departments'!A:B,2,FALSE)","v":"BHSI Administration"},"43500001","18003","SGBORRR732003CV","A01","",""]
["43","732",null,null,"NIH      RF 2FE-2S CLSTR DAILE","1021RR732070","20000","12100","61018","43500001",{"$f":"VLOOKUP(TRIM(J4471),'Transactional Departments'!A:B,2,FALSE)","v":"BHSI Administration"},"43500001","18400","RNIHXRR732070CV","A01","",""]
["43","757",null,null,"NIH      RF D&D CNCR GLY PIERC","1021RR757028","20000","12100","61018","43470001",{"$f":"VLOOKUP(TRIM(J4472),'Transactional Departments'!A:B,2,FALSE)","v":"Cancer Center Administration"},"43470001","18400","RNIHXRR757028CV","A01","",""]
["51","006",null,null,"ASU      IPA             FRUM ","1031RE006049","20000","13100","62037","51001001",{"$f":"VLOOKUP(TRIM(J4473),'Transactional Departments'!A:B,2,FALSE)","v":"VPPSO Admin"},"51001001","18003","SASSURE006049CV","A01","",""]
["51","011",null,null,"CESU     RF SPCIES ASSMNTAFFOL","1021RR011077","20000","12100","61034","51080002",{"$f":"VLOOKUP(TRIM(J4474),'Transactional Departments'!A:B,2,FALSE)","v":"Botantical Garden Admin"},"51080002","18400","RCESURR011077CV","A01","",""]
["51","011",null,null,"         VAR SBG EDUCATN GRAHA","1031RE011057","20000","13100","64206","51080006",{"$f":"VLOOKUP(TRIM(J4475),'Transactional Departments'!A:B,2,FALSE)","v":"Education"},"51080006","18003","SVARIRE011057CV","A01","",""]
["51","011",null,null,"         SBG CONSRV GIFTSGRAHA","1031RE011061","20000","13100","64206","51080007",{"$f":"VLOOKUP(TRIM(J4476),'Transactional Departments'!A:B,2,FALSE)","v":"Conservation & Research"},"51080007","18003","SVARIRE011061CV","A01","",""]
["51","011",null,null,"         BOTANICAL GRDN2 GRAHA","1031RE011073","20000","13100","64206","51080002",{"$f":"VLOOKUP(TRIM(J4477),'Transactional Departments'!A:B,2,FALSE)","v":"Botantical Garden Admin"},"51080002","18003","SVARIRE011073CV","A01","",""]
["51","011",null,null,"         BOT GRDN HORT 2 GRAHA","1031RE011074","20000","13100","64206","51080003",{"$f":"VLOOKUP(TRIM(J4478),'Transactional Departments'!A:B,2,FALSE)","v":"Horticulture"},"51080003","18003","SVARIRE011074CV","A01","",""]
["51","011",null,null,"         GCG CLERICAL    SVOBO","1031RE011075","20000","13100","64141","51080002",{"$f":"VLOOKUP(TRIM(J4479),'Transactional Departments'!A:B,2,FALSE)","v":"Botantical Garden Admin"},"51080002","18003","SGACIRE011075CV","A01","",""]
["51","011",null,null,"USDA FS  NATIVE PLAN RES AFFOL","1031RE011076","20000","13100","61003","51080002",{"$f":"VLOOKUP(TRIM(J4480),'Transactional Departments'!A:B,2,FALSE)","v":"Botantical Garden Admin"},"51080002","18003","SUSFSRE011076CV","A01","",""]
["51","011",null,null,"WF       VASCULAR INV    CHAFI","1031RE011079","20000","13100","64387","51080002",{"$f":"VLOOKUP(TRIM(J4481),'Transactional Departments'!A:B,2,FALSE)","v":"Botantical Garden Admin"},"51080002","18003","SWORMRE011079CV","A01","",""]
["51","011",null,null,"FOSBG    ADMIN POSITION  GRAHA","1031RE011080","20000","13100","64240","51080002",{"$f":"VLOOKUP(TRIM(J4482),'Transactional Departments'!A:B,2,FALSE)","v":"Botantical Garden Admin"},"51080002","18003","SFSBGRE011080CV","A01","",""]
["51","011",null,null,"IMLS     NATIVE PLANT    AFFOL","1031RE011081","20000","13100","61027","51080002",{"$f":"VLOOKUP(TRIM(J4483),'Transactional Departments'!A:B,2,FALSE)","v":"Botantical Garden Admin"},"51080002","18003","SIMLSRE011081CV","A01","",""]
["51","011",null,null,"CESU     GAS PIPELINE    CESKA","1031RE011084","20000","13100","61034","51080002",{"$f":"VLOOKUP(TRIM(J4484),'Transactional Departments'!A:B,2,FALSE)","v":"Botantical Garden Admin"},"51080002","18003","SCESURE011084CV","A01","",""]
["51","011",null,null,"         CONNCT 2 PROTCT GRAHA","1031RE011086","20000","13100","64276","51080002",{"$f":"VLOOKUP(TRIM(J4485),'Transactional Departments'!A:B,2,FALSE)","v":"Botantical Garden Admin"},"51080002","18003","SHGRDRE011086CV","A01","",""]
["51","011",null,null,"NSF      RF COMMONNESS   CRUSE","1031RE011088","20000","13100","61023","51080002",{"$f":"VLOOKUP(TRIM(J4486),'Transactional Departments'!A:B,2,FALSE)","v":"Botantical Garden Admin"},"51080002","18400","RNSFXRE011088CV","A01","",""]
["51","011",null,null,"         DOWNTOWN ATHENS AFFOL","1031RE011090","20000","13100","63000","51080002",{"$f":"VLOOKUP(TRIM(J4487),'Transactional Departments'!A:B,2,FALSE)","v":"Botantical Garden Admin"},"51080002","18003","SXXXXRE011090CV","A01","",""]
["51","206",null,null,"SBA      JOB ACT PROGRAM WILLI","1031RE206285","20000","13100","61026","51070001",{"$f":"VLOOKUP(TRIM(J4488),'Transactional Departments'!A:B,2,FALSE)","v":"SBDC Administration"},"51070001","18003","SSBAXRE206285CV","A01","",""]
["51","206",null,null,"SBA      DEV CTR FY15    WILLI","1031RE206329","20000","13100","61026","51070001",{"$f":"VLOOKUP(TRIM(J4489),'Transactional Departments'!A:B,2,FALSE)","v":"SBDC Administration"},"51070001","18003","SSBAXRE206329CV","A01","",""]
["51","206",null,null,"SBA      PORTABILITY GRT WILLI","1031RE206344","20000","13100","61026","51070001",{"$f":"VLOOKUP(TRIM(J4490),'Transactional Departments'!A:B,2,FALSE)","v":"SBDC Administration"},"51070001","18003","SSBAXRE206344CV","A01","",""]
["51","206",null,null,"SBA      CY 2016         WILLI","1031RE206348","20000","13100","61026","51070001",{"$f":"VLOOKUP(TRIM(J4491),'Transactional Departments'!A:B,2,FALSE)","v":"SBDC Administration"},"51070001","18003","SSBAXRE206348CV","A01","",""]
["51","206",null,null,"SBA      ALBANY PI CY16  WILLI","1031RE206350","20000","13100","61026","51070001",{"$f":"VLOOKUP(TRIM(J4492),'Transactional Departments'!A:B,2,FALSE)","v":"SBDC Administration"},"51070001","18003","SSBAXRE206350CV","A01","",""]
["51","206",null,null,"SBA      AUGUSTA PI CY16 WILLI","1031RE206352","20000","13100","61026","51070001",{"$f":"VLOOKUP(TRIM(J4493),'Transactional Departments'!A:B,2,FALSE)","v":"SBDC Administration"},"51070001","18003","SSBAXRE206352CV","A01","",""]
["51","206",null,null,"SBA      BRNSWCK PI CY16 WILLI","1031RE206353","20000","13100","61026","51070001",{"$f":"VLOOKUP(TRIM(J4494),'Transactional Departments'!A:B,2,FALSE)","v":"SBDC Administration"},"51070001","18003","SSBAXRE206353CV","A01","",""]
["51","206",null,null,"SBA      COLUMBS PI CY16 WILLI","1031RE206354","20000","13100","61026","51070001",{"$f":"VLOOKUP(TRIM(J4495),'Transactional Departments'!A:B,2,FALSE)","v":"SBDC Administration"},"51070001","18003","SSBAXRE206354CV","A01","",""]
["51","206",null,null,"SBA      DEKALB PI CY16  WILLI","1031RE206355","20000","13100","61026","51070001",{"$f":"VLOOKUP(TRIM(J4496),'Transactional Departments'!A:B,2,FALSE)","v":"SBDC Administration"},"51070001","18003","SSBAXRE206355CV","A01","",""]
["51","206",null,null,"SBA      GWINNET PI CY16 WILLI","1031RE206357","20000","13100","61026","51070001",{"$f":"VLOOKUP(TRIM(J4497),'Transactional Departments'!A:B,2,FALSE)","v":"SBDC Administration"},"51070001","18003","SSBAXRE206357CV","A01","",""]
["51","206",null,null,"SBA      INT TRD PI CY16 WILLI","1031RE206358","20000","13100","61026","51070001",{"$f":"VLOOKUP(TRIM(J4498),'Transactional Departments'!A:B,2,FALSE)","v":"SBDC Administration"},"51070001","18003","SSBAXRE206358CV","A01","",""]
["51","206",null,null,"SBA      MACON PI CY16   WILLI","1031RE206359","20000","13100","61026","51070001",{"$f":"VLOOKUP(TRIM(J4499),'Transactional Departments'!A:B,2,FALSE)","v":"SBDC Administration"},"51070001","18003","SSBAXRE206359CV","A01","",""]
["51","206",null,null,"SBA      ROME PI CY16    WILLI","1031RE206360","20000","13100","61026","51070001",{"$f":"VLOOKUP(TRIM(J4500),'Transactional Departments'!A:B,2,FALSE)","v":"SBDC Administration"},"51070001","18003","SSBAXRE206360CV","A01","",""]
["51","206",null,null,"SBA      SAVANNH PI CY16 WILLI","1031RE206361","20000","13100","61026","51070001",{"$f":"VLOOKUP(TRIM(J4501),'Transactional Departments'!A:B,2,FALSE)","v":"SBDC Administration"},"51070001","18003","SSBAXRE206361CV","A01","",""]
["51","206",null,null,"SBA      ROME PI         WILLI","1031RE206365","20000","13100","61026","51070001",{"$f":"VLOOKUP(TRIM(J4502),'Transactional Departments'!A:B,2,FALSE)","v":"SBDC Administration"},"51070001","18003","SSBAXRE206365CV","A01","",""]
["51","206",null,null,"         2017 SBA        WILLI","1031RE206366","20000","13100","61026","51070001",{"$f":"VLOOKUP(TRIM(J4503),'Transactional Departments'!A:B,2,FALSE)","v":"SBDC Administration"},"51070001","18003","SSBAXRE206366CV","A01","",""]
["51","206",null,null,"SBA      STATE PI CY17   WILLI","1031RE206367","20000","13100","61026","51070001",{"$f":"VLOOKUP(TRIM(J4504),'Transactional Departments'!A:B,2,FALSE)","v":"SBDC Administration"},"51070001","18003","SSBAXRE206367CV","A01","",""]
["51","206",null,null,"SBA      ALBANY PI CY17  WILLI","1031RE206368","20000","13100","61026","51070001",{"$f":"VLOOKUP(TRIM(J4505),'Transactional Departments'!A:B,2,FALSE)","v":"SBDC Administration"},"51070001","18003","SSBAXRE206368CV","A01","",""]
["51","206",null,null,"SBA      ATHENS PI CY17  WILLI","1031RE206369","20000","13100","61026","51070001",{"$f":"VLOOKUP(TRIM(J4506),'Transactional Departments'!A:B,2,FALSE)","v":"SBDC Administration"},"51070001","18003","SSBAXRE206369CV","A01","",""]
["51","206",null,null,"SBA      AUGUSTA PI CY17 WILLI","1031RE206370","20000","13100","61026","51070001",{"$f":"VLOOKUP(TRIM(J4507),'Transactional Departments'!A:B,2,FALSE)","v":"SBDC Administration"},"51070001","18003","SSBAXRE206370CV","A01","",""]
["51","206",null,null,"SBA      BRNSWCK PI CY17 WILLI","1031RE206371","20000","13100","61026","51070001",{"$f":"VLOOKUP(TRIM(J4508),'Transactional Departments'!A:B,2,FALSE)","v":"SBDC Administration"},"51070001","18003","SSBAXRE206371CV","A01","",""]
["51","206",null,null,"SBA      COLUMBS PI CY17 WILLI","1031RE206372","20000","13100","61026","51070001",{"$f":"VLOOKUP(TRIM(J4509),'Transactional Departments'!A:B,2,FALSE)","v":"SBDC Administration"},"51070001","18003","SSBAXRE206372CV","A01","",""]
["51","206",null,null,"SBA      DEKALB PI CY17  WILLI","1031RE206373","20000","13100","61026","51070001",{"$f":"VLOOKUP(TRIM(J4510),'Transactional Departments'!A:B,2,FALSE)","v":"SBDC Administration"},"51070001","18003","SSBAXRE206373CV","A01","",""]
["51","206",null,null,"SBA      GAINSVL PI CY17 WILLI","1031RE206374","20000","13100","61026","51070001",{"$f":"VLOOKUP(TRIM(J4511),'Transactional Departments'!A:B,2,FALSE)","v":"SBDC Administration"},"51070001","18003","SSBAXRE206374CV","A01","",""]
["51","206",null,null,"SBA      GWINNET PI CY17 WILLI","1031RE206375","20000","13100","61026","51070001",{"$f":"VLOOKUP(TRIM(J4512),'Transactional Departments'!A:B,2,FALSE)","v":"SBDC Administration"},"51070001","18003","SSBAXRE206375CV","A01","",""]
["51","206",null,null,"SBA      INT TRD PI CY17 WILLI","1031RE206376","20000","13100","61026","51070001",{"$f":"VLOOKUP(TRIM(J4513),'Transactional Departments'!A:B,2,FALSE)","v":"SBDC Administration"},"51070001","18003","SSBAXRE206376CV","A01","",""]
["51","206",null,null,"SBA      MACON PI CY17   WILLI","1031RE206377","20000","13100","61026","51070001",{"$f":"VLOOKUP(TRIM(J4514),'Transactional Departments'!A:B,2,FALSE)","v":"SBDC Administration"},"51070001","18003","SSBAXRE206377CV","A01","",""]
["51","206",null,null,"SBA      ROME PI CY17    WILLI","1031RE206378","20000","13100","61026","51070001",{"$f":"VLOOKUP(TRIM(J4515),'Transactional Departments'!A:B,2,FALSE)","v":"SBDC Administration"},"51070001","18003","SSBAXRE206378CV","A01","",""]
["51","206",null,null,"SBA      SAVANNA PI CY17 WILLI","1031RE206379","20000","13100","61026","51070001",{"$f":"VLOOKUP(TRIM(J4516),'Transactional Departments'!A:B,2,FALSE)","v":"SBDC Administration"},"51070001","18003","SSBAXRE206379CV","A01","",""]
["51","206",null,null,"         STARTSMART 2017 ADAMS","1031RE206380","20000","13100","63128","51070001",{"$f":"VLOOKUP(TRIM(J4517),'Transactional Departments'!A:B,2,FALSE)","v":"SBDC Administration"},"51070001","18003","SBRUNRE206380CV","A01","",""]
["51","206",null,null,"         SBA CY 2018     WILLI","1031RE206382","20000","13100","61026","51070001",{"$f":"VLOOKUP(TRIM(J4518),'Transactional Departments'!A:B,2,FALSE)","v":"SBDC Administration"},"51070001","18003","SSBAXRE206382CV","A01","",""]
["51","336",null,null,"DBHDD    TRAIN PROJ 2012 JOHNS","1031RE336225","20000","13100","62061","51020010",{"$f":"VLOOKUP(TRIM(J4519),'Transactional Departments'!A:B,2,FALSE)","v":"CVIOG Director"},"51020010","18003","SGDBHRE336225CV","A01","",""]
["51","336",null,null,"DBHDD    BH TRAIN/TA2012 BITTN","1031RE336234","20000","13100","62061","51020010",{"$f":"VLOOKUP(TRIM(J4520),'Transactional Departments'!A:B,2,FALSE)","v":"CVIOG Director"},"51020010","18003","SGDBHRE336234CV","A01","",""]
["51","336",null,null,"DBHDD    MGMT&ST DEV2012 JOHNS","1031RE336235","20000","13100","62061","51020010",{"$f":"VLOOKUP(TRIM(J4521),'Transactional Departments'!A:B,2,FALSE)","v":"CVIOG Director"},"51020010","18003","SGDBHRE336235CV","A01","",""]
["51","336",null,null,"DBHDD    DD TRAIN/TA2013 JOHNS","1031RE336236","20000","13100","62061","51020010",{"$f":"VLOOKUP(TRIM(J4522),'Transactional Departments'!A:B,2,FALSE)","v":"CVIOG Director"},"51020010","18003","SGDBHRE336236CV","A01","",""]
["51","337",null,null,"USDA     RF RD309-137    JORDA","2721RR337268","21330","12100","61006","51060100",{"$f":"VLOOKUP(TRIM(J4523),'Transactional Departments'!A:B,2,FALSE)","v":"MAREX Administration"},"51060100","18400","RNIFARR337268CV","A01","",""]
["51","337",null,null,"         RF DEBRIS DETECTSANDE","2721RR337270","21330","12100","64121","51060100",{"$f":"VLOOKUP(TRIM(J4524),'Transactional Departments'!A:B,2,FALSE)","v":"MAREX Administration"},"51060100","18003","SLANDRR337270CV","A01","",""]
["51","337",null,null,"USDC     RF A/MAS-1      HOPKI","2721RR337481","21330","12100","61009","51060100",{"$f":"VLOOKUP(TRIM(J4525),'Transactional Departments'!A:B,2,FALSE)","v":"MAREX Administration"},"51060100","18400","RUSDCRR337481CV","A01","",""]
["51","337",null,null,"USDC     RF O/SD-2       HOPKI","2721RR337482","21330","12100","61009","51060100",{"$f":"VLOOKUP(TRIM(J4526),'Transactional Departments'!A:B,2,FALSE)","v":"MAREX Administration"},"51060100","18400","RUSDCRR337482CV","A01","",""]
["51","337",null,null,"USDC     RF E/EDU-1      HOPKI","2721RR337483","21330","12100","61009","51060100",{"$f":"VLOOKUP(TRIM(J4527),'Transactional Departments'!A:B,2,FALSE)","v":"MAREX Administration"},"51060100","18400","RUSDCRR337483CV","A01","",""]
["51","337",null,null,"USDC     RF RR746-075         ","2721RR337495","21330","12100","61009","51060100",{"$f":"VLOOKUP(TRIM(J4528),'Transactional Departments'!A:B,2,FALSE)","v":"MAREX Administration"},"51060100","18400","RUSDCRR337495CV","A01","",""]
["51","337",null,null,"         MARINE EXT      RISSE","2731RE337100","21330","13100","64206","51060200",{"$f":"VLOOKUP(TRIM(J4529),'Transactional Departments'!A:B,2,FALSE)","v":"Advisory"},"51060200","18003","SVARIRE337100CV","A01","","51AVARIOUS"]
["51","337",null,null,"         MARINE EXTENSIONRISSE","2731RE337174","21330","13100","64206","51060400",{"$f":"VLOOKUP(TRIM(J4530),'Transactional Departments'!A:B,2,FALSE)","v":"Shellfish"},"51060400","18003","SVARIRE337174CV","A01","","51SVARIOUS"]
["51","337",null,null,"GDNR     WATER QUALITY   SMITH","2731RE337253","21330","13100","62016","51060100",{"$f":"VLOOKUP(TRIM(J4531),'Transactional Departments'!A:B,2,FALSE)","v":"MAREX Administration"},"51060100","18003","SGDNRRE337253CV","A01","",""]
["51","337",null,null,"GDNR/USDIMARITIME HERIT  LIGUO","2731RE337254","21330","13100","62016","51060100",{"$f":"VLOOKUP(TRIM(J4532),'Transactional Departments'!A:B,2,FALSE)","v":"MAREX Administration"},"51060100","18003","SGDNRRE337254CV","A01","",""]
["51","337",null,null,"GDNR     EASTERN OYSTER  BLISS","2731RE337261","21330","13100","62016","51060100",{"$f":"VLOOKUP(TRIM(J4533),'Transactional Departments'!A:B,2,FALSE)","v":"MAREX Administration"},"51060100","18003","SGDNRRE337261CV","A01","",""]
["51","337",null,null,"GDNR/USDCSEPTIC SYSTEM___RISSE","2731RE337262","21330","13100","62016","51060100",{"$f":"VLOOKUP(TRIM(J4534),'Transactional Departments'!A:B,2,FALSE)","v":"MAREX Administration"},"51060100","18003","SGDNRRE337262CV","A01","",""]
["51","337",null,null,"GDNR     SINERR          SMITH","2731RE337263","21330","13100","62016","51060100",{"$f":"VLOOKUP(TRIM(J4535),'Transactional Departments'!A:B,2,FALSE)","v":"MAREX Administration"},"51060100","18003","SGDNRRE337263CV","A01","",""]
["51","337",null,null,"         DEBRIS DETECT   SANDE","2731RE337264","21330","13100","64121","51060100",{"$f":"VLOOKUP(TRIM(J4536),'Transactional Departments'!A:B,2,FALSE)","v":"MAREX Administration"},"51060100","18003","SLANDRE337264CV","A01","",""]
["51","337",null,null,"NMSF     ESTUARY EXPLOR  LINDS","2731RE337266","21330","13100","64421","51060100",{"$f":"VLOOKUP(TRIM(J4537),'Transactional Departments'!A:B,2,FALSE)","v":"MAREX Administration"},"51060100","18003","SNMSFRE337266CV","A01","",""]
["51","337",null,null,"GDNR     SEPTIC SYSTEM   RISSE","2731RE337267","21330","13100","62016","51060100",{"$f":"VLOOKUP(TRIM(J4538),'Transactional Departments'!A:B,2,FALSE)","v":"MAREX Administration"},"51060100","18003","SGDNRRE337267CV","A01","",""]
["51","337",null,null,"SEA GRANTUGA SRAC OYSTER_BLISS","2731RE337269","21330","13100","64362","51060100",{"$f":"VLOOKUP(TRIM(J4539),'Transactional Departments'!A:B,2,FALSE)","v":"MAREX Administration"},"51060100","18003","SSEAGRE337269CV","A01","",""]
["51","337",null,null,"GDNR     SEPTIC SYSTEM   RISSE","2731RE337272","21330","13100","62016","51060100",{"$f":"VLOOKUP(TRIM(J4540),'Transactional Departments'!A:B,2,FALSE)","v":"MAREX Administration"},"51060100","18003","SGDNRRE337272CV","A01","",""]
["51","337",null,null,"         MARINE EXTENSIONRISSE","2731RE337450","21330","13100","64206","51060300",{"$f":"VLOOKUP(TRIM(J4541),'Transactional Departments'!A:B,2,FALSE)","v":"Marine Education"},"51060300","18003","SVARIRE337450CV","A01","","51MEVARIOU"]
["51","337",null,null,"SINERR   WATER QUALITY   SMITH","2731RE337487","21330","13100","62072","51060100",{"$f":"VLOOKUP(TRIM(J4542),'Transactional Departments'!A:B,2,FALSE)","v":"MAREX Administration"},"51060100","18003","SSINERE337487CV","A01","",""]
["51","337",null,null,"LA       ESTUARY EXPLORE SANDE","2731RE337490","21330","13100","64000","51060100",{"$f":"VLOOKUP(TRIM(J4543),'Transactional Departments'!A:B,2,FALSE)","v":"MAREX Administration"},"51060100","18003","SLNAIRE337490CV","A01","",""]
["51","337",null,null,"         GREEN INFRASTRU GIOVE","2731RE337493","21330","13100","62030","51060100",{"$f":"VLOOKUP(TRIM(J4544),'Transactional Departments'!A:B,2,FALSE)","v":"MAREX Administration"},"51060100","18003","SGFORRE337493CV","A01","",""]
["51","337",null,null,"         NEKTON SAMPLING BLISS","2731RE337494","21330","13100","64310","51060100",{"$f":"VLOOKUP(TRIM(J4545),'Transactional Departments'!A:B,2,FALSE)","v":"MAREX Administration"},"51060100","18003","SNACORE337494CV","A01","",""]
["51","337",null,null,"USDC     SALT MARSH      SMITH","2731RE337496","21330","13100","61009","51060100",{"$f":"VLOOKUP(TRIM(J4546),'Transactional Departments'!A:B,2,FALSE)","v":"MAREX Administration"},"51060100","18003","SUSDCRE337496CV","A01","",""]
["51","337",null,null,"GDNR/USDCLID BMP INVEN   BROWN","2731RE337497","21330","13100","62016","51060100",{"$f":"VLOOKUP(TRIM(J4547),'Transactional Departments'!A:B,2,FALSE)","v":"MAREX Administration"},"51060100","18003","SGDNRRE337497CV","A01","",""]
["51","337",null,null,"NFWF     TYBEE ISLAND    BLISS","2731RE337790","21330","13100","64402","51060100",{"$f":"VLOOKUP(TRIM(J4548),'Transactional Departments'!A:B,2,FALSE)","v":"MAREX Administration"},"51060100","18003","SNFWFRE337790CV","A01","",""]
["51","345",null,null,"         EMBARK UGA      MEYER","1031RE345062","20000","13100","62021","51030003",{"$f":"VLOOKUP(TRIM(J4549),'Transactional Departments'!A:B,2,FALSE)","v":"Fanning Institute Admin"},"51030003","18003","SGAITRE345062CV","A01","",""]
["51","345",null,null,"GYI      YOUTH OPPORTUN  TILLE","1031RE345068","20000","13100","64000","51030003",{"$f":"VLOOKUP(TRIM(J4550),'Transactional Departments'!A:B,2,FALSE)","v":"Fanning Institute Admin"},"51030003","18003","SGNOIRE345068CV","A01","",""]
["51","345",null,null,"CDF      DECIDE EVAL     RECHT","1031RE345069","20000","13100","64425","51030003",{"$f":"VLOOKUP(TRIM(J4551),'Transactional Departments'!A:B,2,FALSE)","v":"Fanning Institute Admin"},"51030003","18003","SCLDFRE345069CV","A01","",""]
["51","345",null,null,"GFBA     FSS FEEDING     RECHT","1031RE345070","20000","13100","64176","51030003",{"$f":"VLOOKUP(TRIM(J4552),'Transactional Departments'!A:B,2,FALSE)","v":"Fanning Institute Admin"},"51030003","18003","SGFBARE345070CV","A01","",""]
["51","345",null,null,"GARDC    MIDDLE GA REG   HILL ","1031RE345071","20000","13100","64000","51030003",{"$f":"VLOOKUP(TRIM(J4553),'Transactional Departments'!A:B,2,FALSE)","v":"Fanning Institute Admin"},"51030003","18003","SGNDCRE345071CV","A01","",""]
["51","345",null,null,"TCS      CAREER ACADEMY  HEALE","1031RE345072","20000","13100","62063","51030003",{"$f":"VLOOKUP(TRIM(J4554),'Transactional Departments'!A:B,2,FALSE)","v":"Fanning Institute Admin"},"51030003","18003","STCSGRE345072CV","A01","",""]
["51","345",null,null,"WCFC     WALTON COLLAB   MEYER","1031RE345073","20000","13100","64000","51030003",{"$f":"VLOOKUP(TRIM(J4555),'Transactional Departments'!A:B,2,FALSE)","v":"Fanning Institute Admin"},"51030003","18003","SCECWRE345073CV","A01","",""]
["51","345",null,null,"GDHS     ETV PROJECT     MEYER","1031RE345075","20000","13100","62015","51030003",{"$f":"VLOOKUP(TRIM(J4556),'Transactional Departments'!A:B,2,FALSE)","v":"Fanning Institute Admin"},"51030003","18003","SGHUMRE345075CV","A01","",""]
["51","345",null,null,"GODR     DOMEST VIOLENCE RAWLS","1031RE345078","20000","13100","62003","51030003",{"$f":"VLOOKUP(TRIM(J4557),'Transactional Departments'!A:B,2,FALSE)","v":"Fanning Institute Admin"},"51030003","18003","SGODRRE345078CV","A01","",""]
["51","345",null,null,"         PUTNAM RETREAT  JORDA","1031RE345079","20000","13100","63087","51030003",{"$f":"VLOOKUP(TRIM(J4558),'Transactional Departments'!A:B,2,FALSE)","v":"Fanning Institute Admin"},"51030003","18003","SCPUTRE345079CV","A01","",""]
["51","345",null,null,"         PROF DEVELOPMNT MEYER","1031RE345081","20000","13100","64193","51030003",{"$f":"VLOOKUP(TRIM(J4559),'Transactional Departments'!A:B,2,FALSE)","v":"Fanning Institute Admin"},"51030003","18003","STOGARE345081CV","A01","",""]
["51","345",null,null,"         OPENING RETREAT LEAHY","1031RE345083","20000","13100","64534","51030003",{"$f":"VLOOKUP(TRIM(J4560),'Transactional Departments'!A:B,2,FALSE)","v":"Fanning Institute Admin"},"51030003","18003","SLEADRE345083CV","A01","",""]
["51","345",null,null,"         ETHICS TRAINING MCCLI","1031RE345084","20000","13100","64356","51030003",{"$f":"VLOOKUP(TRIM(J4561),'Transactional Departments'!A:B,2,FALSE)","v":"Fanning Institute Admin"},"51030003","18003","SUWMARE345084CV","A01","",""]
["51","345",null,null,"         BOARD RETREAT   TILLE","1031RE345085","20000","13100","64194","51030003",{"$f":"VLOOKUP(TRIM(J4562),'Transactional Departments'!A:B,2,FALSE)","v":"Fanning Institute Admin"},"51030003","18003","SATHFRE345085CV","A01","",""]
["51","345",null,null,"GDOE     LEADERSHIP      DARBI","1031RE345087","20000","13100","62012","51030003",{"$f":"VLOOKUP(TRIM(J4563),'Transactional Departments'!A:B,2,FALSE)","v":"Fanning Institute Admin"},"51030003","18003","SGADERE345087CV","A01","",""]
["51","345",null,null,"ACC      JMHC            MCCLI","1031RE345089","20000","13100","63001","51030003",{"$f":"VLOOKUP(TRIM(J4564),'Transactional Departments'!A:B,2,FALSE)","v":"Fanning Institute Admin"},"51030003","18003","SCOOARE345089CV","A01","",""]
["51","345",null,null,"ACC      YOUTHSERVE      BONES","1031RE345090","20000","13100","63001","51030003",{"$f":"VLOOKUP(TRIM(J4565),'Transactional Departments'!A:B,2,FALSE)","v":"Fanning Institute Admin"},"51030003","18003","SCOOARE345090CV","A01","",""]
["51","345",null,null,"GSFA     STATEWIDE SCAN  MEYER","1031RE345092","20000","13100","62000","51030003",{"$f":"VLOOKUP(TRIM(J4566),'Transactional Departments'!A:B,2,FALSE)","v":"Fanning Institute Admin"},"51030003","18003","SXXXXRE345092CV","A01","",""]
["51","345",null,null,"         DALTON OPENING  LEAHY","1031RE345093","20000","13100","64000","51030003",{"$f":"VLOOKUP(TRIM(J4567),'Transactional Departments'!A:B,2,FALSE)","v":"Fanning Institute Admin"},"51030003","18003","SXXXXRE345093CV","A01","",""]
["51","345",null,null,"         ONE SUMTER      MCCLI","1031RE345095","20000","13100","64201","51030003",{"$f":"VLOOKUP(TRIM(J4568),'Transactional Departments'!A:B,2,FALSE)","v":"Fanning Institute Admin"},"51030003","18003","SOSUMRE345095CV","A01","",""]
["51","345",null,null,"         GOODWILL TRAIN  MCCLI","1031RE345096","20000","13100","64204","51030003",{"$f":"VLOOKUP(TRIM(J4569),'Transactional Departments'!A:B,2,FALSE)","v":"Fanning Institute Admin"},"51030003","18003","SGOODRE345096CV","A01","",""]
["51","345",null,null,"         GEORGIA OPTIONS MEEHA","1031RE345097","20000","13100","64000","51030003",{"$f":"VLOOKUP(TRIM(J4570),'Transactional Departments'!A:B,2,FALSE)","v":"Fanning Institute Admin"},"51030003","18003","SGAOPRE345097CV","A01","",""]
["51","345",null,null,"         DFCS REGION V   MEYER","1031RE345098","20000","13100","64209","51030003",{"$f":"VLOOKUP(TRIM(J4571),'Transactional Departments'!A:B,2,FALSE)","v":"Fanning Institute Admin"},"51030003","18003","SMAACRE345098CV","A01","",""]
["51","345",null,null,"         JUST GEORGIA    RECHT","1031RE345099","20000","13100","64249","51030003",{"$f":"VLOOKUP(TRIM(J4572),'Transactional Departments'!A:B,2,FALSE)","v":"Fanning Institute Admin"},"51030003","18003","SINCMRE345099CV","A01","",""]
["51","345",null,null,"LBWF     WMNS LDRSHIP FY KEEN ","1031RE345100","20000","13100","64454","51030003",{"$f":"VLOOKUP(TRIM(J4573),'Transactional Departments'!A:B,2,FALSE)","v":"Fanning Institute Admin"},"51030003","18003","SLBWFRE345100CV","A01","",""]
["51","345",null,null,"GCSU     INTRNTNL ED CTR RAWLS","1031RE345101","20000","13100","62039","51030003",{"$f":"VLOOKUP(TRIM(J4574),'Transactional Departments'!A:B,2,FALSE)","v":"Fanning Institute Admin"},"51030003","18003","SGCSURE345101CV","A01","",""]
["51","345",null,null,"         ENRICH SERVICES MEDLI","1031RE345102","20000","13100","64000","51030003",{"$f":"VLOOKUP(TRIM(J4575),'Transactional Departments'!A:B,2,FALSE)","v":"Fanning Institute Admin"},"51030003","18003","SENPIRE345102CV","A01","",""]
["51","345",null,null,"ACC      PEER COURT 2017 BONES","1031RE345104","20000","13100","63001","51030003",{"$f":"VLOOKUP(TRIM(J4576),'Transactional Departments'!A:B,2,FALSE)","v":"Fanning Institute Admin"},"51030003","18003","SCOOARE345104CV","A01","",""]
["51","345",null,null,"GC       MODERN LANG     RAWLS","1031RE345105","20000","13100","62039","51030003",{"$f":"VLOOKUP(TRIM(J4577),'Transactional Departments'!A:B,2,FALSE)","v":"Fanning Institute Admin"},"51030003","18003","SGCSURE345105CV","A01","",""]
["51","345",null,null,"GPC      ADULT LEARNING  LEAHY","1031RE345106","20000","13100","64004","51030003",{"$f":"VLOOKUP(TRIM(J4578),'Transactional Departments'!A:B,2,FALSE)","v":"Fanning Institute Admin"},"51030003","18003","SGPOWRE345106CV","A01","",""]
["51","345",null,null,"WALTON   LEADERSHIP FY17 BONES","1031RE345107","20000","13100","63038","51030003",{"$f":"VLOOKUP(TRIM(J4579),'Transactional Departments'!A:B,2,FALSE)","v":"Fanning Institute Admin"},"51030003","18003","SCWALRE345107CV","A01","",""]
["51","345",null,null,"BARROW   LEADERSHIP FY17 HILL ","1031RE345108","20000","13100","63032","51030003",{"$f":"VLOOKUP(TRIM(J4580),'Transactional Departments'!A:B,2,FALSE)","v":"Fanning Institute Admin"},"51030003","18003","SCBARRE345108CV","A01","",""]
["51","345",null,null,"         TROUP CO DFCS   MEDLI","1031RE345109","20000","13100","63028","51030003",{"$f":"VLOOKUP(TRIM(J4581),'Transactional Departments'!A:B,2,FALSE)","v":"Fanning Institute Admin"},"51030003","18003","SCTRORE345109CV","A01","",""]
["51","345",null,null,"         WALNUT GRVE YTH HEALE","1031RE345110","20000","13100","63117","51030003",{"$f":"VLOOKUP(TRIM(J4582),'Transactional Departments'!A:B,2,FALSE)","v":"Fanning Institute Admin"},"51030003","18003","SWGHSRE345110CV","A01","",""]
["51","345",null,null,"         HLTHY COLQUITT  LEAHY","1031RE345111","20000","13100","64000","51030003",{"$f":"VLOOKUP(TRIM(J4583),'Transactional Departments'!A:B,2,FALSE)","v":"Fanning Institute Admin"},"51030003","18003","SXXXXRE345111CV","A01","",""]
["51","345",null,null,"HENRY    LEADERSHIP FY17 LEAHY","1031RE345112","20000","13100","63027","51030003",{"$f":"VLOOKUP(TRIM(J4584),'Transactional Departments'!A:B,2,FALSE)","v":"Fanning Institute Admin"},"51030003","18003","SCHENRE345112CV","A01","",""]
["51","345",null,null,"         CFNG SURVEY     MEDLI","1031RE345113","20000","13100","64000","51030003",{"$f":"VLOOKUP(TRIM(J4585),'Transactional Departments'!A:B,2,FALSE)","v":"Fanning Institute Admin"},"51030003","18003","SXXXXRE345113CV","A01","",""]
["51","345",null,null,"CISGA    FALL LEADERSHIP MEDLI","1031RE345115","20000","13100","64000","51030003",{"$f":"VLOOKUP(TRIM(J4586),'Transactional Departments'!A:B,2,FALSE)","v":"Fanning Institute Admin"},"51030003","18003","SCNOGRE345115CV","A01","",""]
["51","345",null,null,"         POLICY FELLOWS  HILL ","1031RE345116","20000","13100","64538","51030003",{"$f":"VLOOKUP(TRIM(J4587),'Transactional Departments'!A:B,2,FALSE)","v":"Fanning Institute Admin"},"51030003","18003","SGPEERE345116CV","A01","",""]
["51","345",null,null,"         STRATEGIC PLAN  MEDLI","1031RE345118","20000","13100","64216","51030003",{"$f":"VLOOKUP(TRIM(J4588),'Transactional Departments'!A:B,2,FALSE)","v":"Fanning Institute Admin"},"51030003","18003","SELNCRE345118CV","A01","",""]
["51","345",null,null,"         LDRSHP PICKENS  HILL ","1031RE345119","20000","13100","63068","51030003",{"$f":"VLOOKUP(TRIM(J4589),'Transactional Departments'!A:B,2,FALSE)","v":"Fanning Institute Admin"},"51030003","18003","SCPICRE345119CV","A01","",""]
["51","345",null,null,"JCSS     LDRSHP PROGRAM  MEYER","1031RE345121","20000","13100","63097","51030003",{"$f":"VLOOKUP(TRIM(J4590),'Transactional Departments'!A:B,2,FALSE)","v":"Fanning Institute Admin"},"51030003","18003","SJACSRE345121CV","A01","",""]
["51","345",null,null,"         TEAMBUILDING    TILLE","1031RE345122","20000","13100","64000","51030003",{"$f":"VLOOKUP(TRIM(J4591),'Transactional Departments'!A:B,2,FALSE)","v":"Fanning Institute Admin"},"51030003","18003","SUBATRE345122CV","A01","",""]
["51","345",null,null,"ESP      STRATEGIC PLAN  MEDLI","1031RE345123","20000","13100","64000","51030003",{"$f":"VLOOKUP(TRIM(J4592),'Transactional Departments'!A:B,2,FALSE)","v":"Fanning Institute Admin"},"51030003","18003","SENPIRE345123CV","A01","",""]
["51","345",null,null,"GDHS/NIH ETV PROJCT FY17 MEYER","1031RE345124","20000","13100","62015","51030003",{"$f":"VLOOKUP(TRIM(J4593),'Transactional Departments'!A:B,2,FALSE)","v":"Fanning Institute Admin"},"51030003","18003","SGHUMRE345124CV","A01","",""]
["51","345",null,null,"GDHS/NIH RE345-124 PS    MEYER","1031RE345125","20000","13100","62015","51030003",{"$f":"VLOOKUP(TRIM(J4594),'Transactional Departments'!A:B,2,FALSE)","v":"Fanning Institute Admin"},"51030003","18003","SGHUMRE345125CV","A01","",""]
["51","345",null,null,"         YOUTH LEADERSHP HEALE","1031RE345126","20000","13100","63132","51030003",{"$f":"VLOOKUP(TRIM(J4595),'Transactional Departments'!A:B,2,FALSE)","v":"Fanning Institute Admin"},"51030003","18003","STHOMRE345126CV","A01","",""]
["51","345",null,null,"         PIPELINE LDRSHP JORDA","1031RE345127","20000","13100","63076","51030003",{"$f":"VLOOKUP(TRIM(J4596),'Transactional Departments'!A:B,2,FALSE)","v":"Fanning Institute Admin"},"51030003","18003","SCSUMRE345127CV","A01","",""]
["51","345",null,null,"         LDRSHIP GARRETT JORDA","1031RE345129","20000","13100","64221","51030003",{"$f":"VLOOKUP(TRIM(J4597),'Transactional Departments'!A:B,2,FALSE)","v":"Fanning Institute Admin"},"51030003","18003","SGARRRE345129CV","A01","",""]
["51","345",null,null,"ACC      YOUTHSERVE FY17 BONES","1031RE345130","20000","13100","63110","51030003",{"$f":"VLOOKUP(TRIM(J4598),'Transactional Departments'!A:B,2,FALSE)","v":"Fanning Institute Admin"},"51030003","18003","SACCSRE345130CV","A01","",""]
["51","345",null,null,"         TOGETHER GA     MEYER","1031RE345131","20000","13100","64193","51030003",{"$f":"VLOOKUP(TRIM(J4599),'Transactional Departments'!A:B,2,FALSE)","v":"Fanning Institute Admin"},"51030003","18003","STOGARE345131CV","A01","",""]
["51","345",null,null,"         OKEFENOKE EMC   LEAHY","1031RE345134","20000","13100","64255","51030003",{"$f":"VLOOKUP(TRIM(J4600),'Transactional Departments'!A:B,2,FALSE)","v":"Fanning Institute Admin"},"51030003","18003","SGEMCRE345134CV","A01","",""]
["51","345",null,null,"         HISTORIC MACON  RAWLS","1031RE345135","20000","13100","64458","51030003",{"$f":"VLOOKUP(TRIM(J4601),'Transactional Departments'!A:B,2,FALSE)","v":"Fanning Institute Admin"},"51030003","18003","SHMFIRE345135CV","A01","",""]
["51","345",null,null,"MGRC     LEADERSHP PRGRM HILL ","1031RE345136","20000","13100","64215","51030003",{"$f":"VLOOKUP(TRIM(J4602),'Transactional Departments'!A:B,2,FALSE)","v":"Fanning Institute Admin"},"51030003","18003","SMGRCRE345136CV","A01","",""]
["51","345",null,null,"MGRC     RE345-136 PI    HILL ","1031RE345137","20000","13100","64215","51030003",{"$f":"VLOOKUP(TRIM(J4603),'Transactional Departments'!A:B,2,FALSE)","v":"Fanning Institute Admin"},"51030003","18003","SMGRCRE345137CV","A01","",""]
["51","345",null,null,"AARC     DOUGHERTY LEAD  LEAHY","1031RE345138","20000","13100","64254","51030003",{"$f":"VLOOKUP(TRIM(J4604),'Transactional Departments'!A:B,2,FALSE)","v":"Fanning Institute Admin"},"51030003","18003","SAARCRE345138CV","A01","",""]
["51","345",null,null,"PUTNAM COOPENING RETREAT JORDA","1031RE345139","20000","13100","63087","51030003",{"$f":"VLOOKUP(TRIM(J4605),'Transactional Departments'!A:B,2,FALSE)","v":"Fanning Institute Admin"},"51030003","18003","SCPUTRE345139CV","A01","",""]
["51","345",null,null,"GA DO ED UGA_LEAD WO LIM_DARBI","1031RE345140","20000","13100","62012","51030003",{"$f":"VLOOKUP(TRIM(J4606),'Transactional Departments'!A:B,2,FALSE)","v":"Fanning Institute Admin"},"51030003","18003","SGADERE345140CV","A01","",""]
["51","345",null,null,"GEMC     SMARR EMC       LEAHY","1031RE345141","20000","13100","64111","51030003",{"$f":"VLOOKUP(TRIM(J4607),'Transactional Departments'!A:B,2,FALSE)","v":"Fanning Institute Admin"},"51030003","18003","SGAEMRE345141CV","A01","",""]
["51","345",null,null,"ABAC     MISSION & STRUC HILL ","1031RE345142","20000","13100","64435","51030003",{"$f":"VLOOKUP(TRIM(J4608),'Transactional Departments'!A:B,2,FALSE)","v":"Fanning Institute Admin"},"51030003","18003","SABALRE345142CV","A01","",""]
["51","345",null,null,"DECATUR  LEADERSHIP FY18 BONES","1031RE345143","20000","13100","63080","51030003",{"$f":"VLOOKUP(TRIM(J4609),'Transactional Departments'!A:B,2,FALSE)","v":"Fanning Institute Admin"},"51030003","18003","SCDECRE345143CV","A01","",""]
["51","345",null,null,"         SMARR EMC MDP   LEAHY","1031RE345162","20000","13100","64255","51030003",{"$f":"VLOOKUP(TRIM(J4610),'Transactional Departments'!A:B,2,FALSE)","v":"Fanning Institute Admin"},"51030003","18003","SGEMCRE345162CV","A01","",""]
["51","345",null,null,"         LEADERSHP WORTH JORDA","1031RE345163","20000","13100","63083","51030003",{"$f":"VLOOKUP(TRIM(J4611),'Transactional Departments'!A:B,2,FALSE)","v":"Fanning Institute Admin"},"51030003","18003","SCWORRE345163CV","A01","",""]
["51","345",null,null,"SEACAA   ORG PLAN RETREATMEDLI","1031RE345164","20000","13100","64224","51030003",{"$f":"VLOOKUP(TRIM(J4612),'Transactional Departments'!A:B,2,FALSE)","v":"Fanning Institute Admin"},"51030003","18003","SSACARE345164CV","A01","",""]
["51","345",null,null,"EMMANUEL LEADERSHIP 2017 JORDA","1031RE345165","20000","13100","63048","51030003",{"$f":"VLOOKUP(TRIM(J4613),'Transactional Departments'!A:B,2,FALSE)","v":"Fanning Institute Admin"},"51030003","18003","SCEMARE345165CV","A01","",""]
["51","345",null,null,"         EDUC & ENGAGE   MEDLI","1031RE345166","20000","13100","64226","51030003",{"$f":"VLOOKUP(TRIM(J4614),'Transactional Departments'!A:B,2,FALSE)","v":"Fanning Institute Admin"},"51030003","18003","STCTRRE345166CV","A01","",""]
["51","345",null,null,"         GRWTH MANAGMENT MCCLI","1031RE345167","20000","13100","64201","51030003",{"$f":"VLOOKUP(TRIM(J4615),'Transactional Departments'!A:B,2,FALSE)","v":"Fanning Institute Admin"},"51030003","18003","SOSUMRE345167CV","A01","",""]
["51","345",null,null,"         HOBBS PROGRAM   BISHO","1031RE345168","20000","13100","64434","51030003",{"$f":"VLOOKUP(TRIM(J4616),'Transactional Departments'!A:B,2,FALSE)","v":"Fanning Institute Admin"},"51030003","18003","SMADDRE345168CV","A01","",""]
["51","345",null,null,"         LEADERSHIP      KEEN ","1031RE345170","20000","13100","64202","51030003",{"$f":"VLOOKUP(TRIM(J4617),'Transactional Departments'!A:B,2,FALSE)","v":"Fanning Institute Admin"},"51030003","18003","SGIRLRE345170CV","A01","",""]
["51","345",null,null,"GPP      PROGRAM EVAL    DARBI","1031RE345171","20000","13100","64268","51030003",{"$f":"VLOOKUP(TRIM(J4618),'Transactional Departments'!A:B,2,FALSE)","v":"Fanning Institute Admin"},"51030003","18003","SGRTPRE345171CV","A01","",""]
["51","345",null,null,"GHM      BD OF DIRECTORS MEDLI","1031RE345172","20000","13100","64271","51030003",{"$f":"VLOOKUP(TRIM(J4619),'Transactional Departments'!A:B,2,FALSE)","v":"Fanning Institute Admin"},"51030003","18003","SGHMIRE345172CV","A01","",""]
["51","345",null,null,"         ORGAN STRATEGY  MEEHA","1031RE345174","20000","13100","64459","51030003",{"$f":"VLOOKUP(TRIM(J4620),'Transactional Departments'!A:B,2,FALSE)","v":"Fanning Institute Admin"},"51030003","18003","SASHTRE345174CV","A01","",""]
["51","345",null,null,"HENRY    LDRSHIP RETREAT LEAHY","1031RE345176","20000","13100","63027","51030003",{"$f":"VLOOKUP(TRIM(J4621),'Transactional Departments'!A:B,2,FALSE)","v":"Fanning Institute Admin"},"51030003","18003","SCHENRE345176CV","A01","",""]
["51","345",null,null,"GDPH     LDRSHIP ACADEMY HEALE","1031RE345177","20000","13100","62053","51030003",{"$f":"VLOOKUP(TRIM(J4622),'Transactional Departments'!A:B,2,FALSE)","v":"Fanning Institute Admin"},"51030003","18003","SGDPHRE345177CV","A01","",""]
["51","345",null,null,"AACF     BOARD RETREAT   MEDLI","1031RE345178","20000","13100","64414","51030003",{"$f":"VLOOKUP(TRIM(J4623),'Transactional Departments'!A:B,2,FALSE)","v":"Fanning Institute Admin"},"51030003","18003","SAACFRE345178CV","A01","",""]
["51","345",null,null,"GCCF     STAFF RETREAT   HILL ","1031RE345179","20000","13100","64460","51030003",{"$f":"VLOOKUP(TRIM(J4624),'Transactional Departments'!A:B,2,FALSE)","v":"Fanning Institute Admin"},"51030003","18003","SGCCFRE345179CV","A01","",""]
["51","345",null,null,"         ATLPCUSA        RECHT","1031RE345180","20000","13100","64267","51030003",{"$f":"VLOOKUP(TRIM(J4625),'Transactional Departments'!A:B,2,FALSE)","v":"Fanning Institute Admin"},"51030003","18003","SPRESRE345180CV","A01","",""]
["51","345",null,null,"ACC      PEER COURT FY18 BONES","1031RE345181","20000","13100","63001","51030003",{"$f":"VLOOKUP(TRIM(J4626),'Transactional Departments'!A:B,2,FALSE)","v":"Fanning Institute Admin"},"51030003","18003","SCOOARE345181CV","A01","",""]
["51","345",null,null,"BARROW   LEADERSHIP FY18 HILL ","1031RE345182","20000","13100","63032","51030003",{"$f":"VLOOKUP(TRIM(J4627),'Transactional Departments'!A:B,2,FALSE)","v":"Fanning Institute Admin"},"51030003","18003","SCBARRE345182CV","A01","",""]
["51","345",null,null,"         LEADERSHIP POLK LEAHY","1031RE345183","20000","13100","63035","51030003",{"$f":"VLOOKUP(TRIM(J4628),'Transactional Departments'!A:B,2,FALSE)","v":"Fanning Institute Admin"},"51030003","18003","SCPOLRE345183CV","A01","",""]
["51","345",null,null,"CCSD     YOUTH DEVELOP   RAWLS","1031RE345184","20000","13100","63041","51030003",{"$f":"VLOOKUP(TRIM(J4629),'Transactional Departments'!A:B,2,FALSE)","v":"Fanning Institute Admin"},"51030003","18003","SCLCDRE345184CV","A01","",""]
["51","345",null,null,"         MED CNTR RETRT  KEEN ","1031RE345186","20000","13100","64526","51030003",{"$f":"VLOOKUP(TRIM(J4630),'Transactional Departments'!A:B,2,FALSE)","v":"Fanning Institute Admin"},"51030003","18003","SCRMCRE345186CV","A01","",""]
["51","345",null,null,"GONG     LEADERSHIP PRGRMMCCLI","1031RE345187","20000","13100","64204","51030003",{"$f":"VLOOKUP(TRIM(J4631),'Transactional Departments'!A:B,2,FALSE)","v":"Fanning Institute Admin"},"51030003","18003","SGOODRE345187CV","A01","",""]
["51","345",null,null,"         RF LDRSHIP FY18 LEAHY","1031RE345188","20000","13100","64534","51030003",{"$f":"VLOOKUP(TRIM(J4632),'Transactional Departments'!A:B,2,FALSE)","v":"Fanning Institute Admin"},"51030003","18003","SLEADRE345188CV","A01","",""]
["51","345",null,null,"GILMER   RF LDRSHP KCKOFFKEEN ","1031RE345189","20000","13100","64525","51030003",{"$f":"VLOOKUP(TRIM(J4633),'Transactional Departments'!A:B,2,FALSE)","v":"Fanning Institute Admin"},"51030003","18400","RGILMRE345189CV","A01","",""]
["51","345",null,null,"         STRATEGIC PLAN  MEEHA","1031RE345190","20000","13100","64527","51030003",{"$f":"VLOOKUP(TRIM(J4634),'Transactional Departments'!A:B,2,FALSE)","v":"Fanning Institute Admin"},"51030003","18003","SJCHHRE345190CV","A01","",""]
["51","345",null,null,"DALTON   LEADERSHIP FY18 TILLE","1031RE345191","20000","13100","64536","51030003",{"$f":"VLOOKUP(TRIM(J4635),'Transactional Departments'!A:B,2,FALSE)","v":"Fanning Institute Admin"},"51030003","18003","SGDCCRE345191CV","A01","",""]
["51","345",null,null,"WALTON   YOUTH LEADERSHP BONES","1031RE345192","20000","13100","63038","51030003",{"$f":"VLOOKUP(TRIM(J4636),'Transactional Departments'!A:B,2,FALSE)","v":"Fanning Institute Admin"},"51030003","18003","SCWALRE345192CV","A01","",""]
["51","345",null,null,"THOMAS   LEADERSHIP FY18 HEALE","1031RE345193","20000","13100","63132","51030003",{"$f":"VLOOKUP(TRIM(J4637),'Transactional Departments'!A:B,2,FALSE)","v":"Fanning Institute Admin"},"51030003","18003","STHOMRE345193CV","A01","",""]
["51","345",null,null,"         RF STUDNT STEER HEALE","1031RE345194","20000","13100","63117","51030003",{"$f":"VLOOKUP(TRIM(J4638),'Transactional Departments'!A:B,2,FALSE)","v":"Fanning Institute Admin"},"51030003","18003","SWGHSRE345194CV","A01","",""]
["51","345",null,null,"BROOKS   LEADERSHIP      LEAHY","1031RE345195","20000","13100","63079","51030003",{"$f":"VLOOKUP(TRIM(J4639),'Transactional Departments'!A:B,2,FALSE)","v":"Fanning Institute Admin"},"51030003","18003","SCBRORE345195CV","A01","",""]
["51","345",null,null,"GBF      RF STAKEHOLDR MEET TI","1031RE345196","20000","13100","64543","51030003",{"$f":"VLOOKUP(TRIM(J4640),'Transactional Departments'!A:B,2,FALSE)","v":"Fanning Institute Admin"},"51030003","18400","RGBARRE345196CV","A01","",""]
["51","345",null,null,"DAWSON   RF LEADERSHIP FY18 HI","1031RE345197","20000","13100","63058","51030003",{"$f":"VLOOKUP(TRIM(J4641),'Transactional Departments'!A:B,2,FALSE)","v":"Fanning Institute Admin"},"51030003","18400","RCDAWRE345197CV","A01","",""]
["51","345",null,null,"GPEE     FELLOWSHIP PROG RECHT","1031RE345198","20000","13100","64538","51030003",{"$f":"VLOOKUP(TRIM(J4642),'Transactional Departments'!A:B,2,FALSE)","v":"Fanning Institute Admin"},"51030003","18003","SGPEERE345198CV","A01","",""]
["51","345",null,null,"ALBANY   RF EVAL TOOLS   LEAHY","1031RE345199","20000","13100","64534","51030003",{"$f":"VLOOKUP(TRIM(J4643),'Transactional Departments'!A:B,2,FALSE)","v":"Fanning Institute Admin"},"51030003","18400","RLEADRE345199CV","A01","",""]
["51","345",null,null,"ALBANY   RF LDRSHP 17-18 LEAHY","1031RE345200","20000","13100","64534","51030003",{"$f":"VLOOKUP(TRIM(J4644),'Transactional Departments'!A:B,2,FALSE)","v":"Fanning Institute Admin"},"51030003","18400","RLEADRE345200CV","A01","",""]
["51","345",null,null,"UWNG     RF STRAT PLAN   MEDLI","1031RE345201","20000","13100","64000","51030003",{"$f":"VLOOKUP(TRIM(J4645),'Transactional Departments'!A:B,2,FALSE)","v":"Fanning Institute Admin"},"51030003","18400","RUNNGRE345201CV","A01","",""]
["51","345",null,null,"JCSS     RF LDRSHP PROG  MEYER","1031RE345202","20000","13100","63097","51030003",{"$f":"VLOOKUP(TRIM(J4646),'Transactional Departments'!A:B,2,FALSE)","v":"Fanning Institute Admin"},"51030003","18400","RJACSRE345202CV","A01","",""]
["51","345",null,null,"         RF TRAIN-TRAINR LEAHY","1031RE345203","20000","13100","64000","51030003",{"$f":"VLOOKUP(TRIM(J4647),'Transactional Departments'!A:B,2,FALSE)","v":"Fanning Institute Admin"},"51030003","18003","SANOCRE345203CV","A01","",""]
["51","345",null,null,"         RF ENVIRON SCAN MEEHA","1031RE345204","20000","13100","64000","51030003",{"$f":"VLOOKUP(TRIM(J4648),'Transactional Departments'!A:B,2,FALSE)","v":"Fanning Institute Admin"},"51030003","18003","SCSATRE345204CV","A01","",""]
["51","345",null,null,"LBWF     RF WOMEN LDRSHP KEEN ","1031RE345205","20000","13100","64454","51030003",{"$f":"VLOOKUP(TRIM(J4649),'Transactional Departments'!A:B,2,FALSE)","v":"Fanning Institute Admin"},"51030003","18400","RLBWFRE345205CV","A01","",""]
["51","345",null,null,"GDHS     ETV FY18 ADMIN  MEYER","1031RE345206","20000","13100","62015","51030003",{"$f":"VLOOKUP(TRIM(J4650),'Transactional Departments'!A:B,2,FALSE)","v":"Fanning Institute Admin"},"51030003","18003","SGHUMRE345206CV","A01","",""]
["51","345",null,null,"GDHS     ETV FY18 STUDNT MEYER","1031RE345207","20000","13100","62015","51030003",{"$f":"VLOOKUP(TRIM(J4651),'Transactional Departments'!A:B,2,FALSE)","v":"Fanning Institute Admin"},"51030003","18003","SGHUMRE345207CV","A01","",""]
["51","345",null,null,"LSS      CIVIC ROUNDTBLE RECHT","1031RE345208","20000","13100","64000","51030003",{"$f":"VLOOKUP(TRIM(J4652),'Transactional Departments'!A:B,2,FALSE)","v":"Fanning Institute Admin"},"51030003","18003","SSNGLRE345208CV","A01","",""]
["51","345",null,null,"MORGAN   RF LEADERSHIP   JOHNS","1031RE345209","20000","13100","63045","51030003",{"$f":"VLOOKUP(TRIM(J4653),'Transactional Departments'!A:B,2,FALSE)","v":"Fanning Institute Admin"},"51030003","18400","RCMORRE345209CV","A01","",""]
["51","345",null,null,"PCA      RF MEADOW CREEK TILLE","1031RE345210","20000","13100","64000","51030003",{"$f":"VLOOKUP(TRIM(J4654),'Transactional Departments'!A:B,2,FALSE)","v":"Fanning Institute Admin"},"51030003","18400","RPNCARE345210CV","A01","",""]
["51","345",null,null,"         SOUTH GEORGIA   BISHO","1031RE345211","20000","13100","64201","51030003",{"$f":"VLOOKUP(TRIM(J4655),'Transactional Departments'!A:B,2,FALSE)","v":"Fanning Institute Admin"},"51030003","18003","SOSUMRE345211CV","A01","",""]
["51","345",null,null,"         RF YOUTH INIT   MEDLI","1031RE345213","20000","13100","64356","51030003",{"$f":"VLOOKUP(TRIM(J4656),'Transactional Departments'!A:B,2,FALSE)","v":"Fanning Institute Admin"},"51030003","18003","SUWMARE345213CV","A01","",""]
["51","345",null,null,"F&W      EMERGENETICS    HILL ","1031RE345214","20000","13100","64000","51030003",{"$f":"VLOOKUP(TRIM(J4657),'Transactional Departments'!A:B,2,FALSE)","v":"Fanning Institute Admin"},"51030003","18003","SFNSIRE345214CV","A01","",""]
["51","345",null,null,"GHF      RF LEADERSHIP   KEEN ","1031RE345215","20000","13100","64195","51030003",{"$f":"VLOOKUP(TRIM(J4658),'Transactional Departments'!A:B,2,FALSE)","v":"Fanning Institute Admin"},"51030003","18400","RGFHFRE345215CV","A01","",""]
["51","345",null,null,"GHF      RF RF_EVALUATIONDARBI","1031RE345216","20000","13100","64195","51030003",{"$f":"VLOOKUP(TRIM(J4659),'Transactional Departments'!A:B,2,FALSE)","v":"Fanning Institute Admin"},"51030003","18400","RGFHFRE345216CV","A01","",""]
["51","345",null,null,"BCBOE    RF CURRICULUM   HEALE","1031RE345217","20000","13100","63000","51030003",{"$f":"VLOOKUP(TRIM(J4660),'Transactional Departments'!A:B,2,FALSE)","v":"Fanning Institute Admin"},"51030003","18400","RXXXXRE345217CV","A01","",""]
["51","345",null,null,"         RF LDRSHP WORTH JOHNS","1031RE345218","20000","13100","63083","51030003",{"$f":"VLOOKUP(TRIM(J4661),'Transactional Departments'!A:B,2,FALSE)","v":"Fanning Institute Admin"},"51030003","18003","SCWORRE345218CV","A01","",""]
["51","345",null,null,"YLSS     RF YTH LDRSHIP IRECHT","1031RE345219","20000","13100","64000","51030003",{"$f":"VLOOKUP(TRIM(J4662),'Transactional Departments'!A:B,2,FALSE)","v":"Fanning Institute Admin"},"51030003","18400","RSNGLRE345219CV","A01","",""]
["51","345",null,null,"DEKALB CORF YOUTH SERVICEMEYER","1031RE345220","20000","13100","63003","51030003",{"$f":"VLOOKUP(TRIM(J4663),'Transactional Departments'!A:B,2,FALSE)","v":"Fanning Institute Admin"},"51030003","18400","RCDEKRE345220CV","A01","",""]
["51","345",null,null,"LBWF     RF WOMEN LDRSHP KEEN ","1031RE345221","20000","13100","64454","51030003",{"$f":"VLOOKUP(TRIM(J4664),'Transactional Departments'!A:B,2,FALSE)","v":"Fanning Institute Admin"},"51030003","18400","RLBWFRE345221CV","A01","",""]
["51","345",null,null,"         RF MEDLINK BOARDKEEN ","1031RE345223","20000","13100","64000","51030003",{"$f":"VLOOKUP(TRIM(J4665),'Transactional Departments'!A:B,2,FALSE)","v":"Fanning Institute Admin"},"51030003","18003","SXXXXRE345223CV","A01","",""]
["51","347",null,null,"GDOECL   GA TRAIN APPRVL SHETT","1031RE347086","20000","13100","62056","51047010",{"$f":"VLOOKUP(TRIM(J4666),'Transactional Departments'!A:B,2,FALSE)","v":"GC Ppd"},"51047010","18003","SGDECRE347086CV","A01","",""]
["51","347",null,null,"GDECL    GA TRNING APRVL SHETT","1031RE347088","20000","13100","62056","51047010",{"$f":"VLOOKUP(TRIM(J4667),'Transactional Departments'!A:B,2,FALSE)","v":"GC Ppd"},"51047010","18003","SGDECRE347088CV","A01","",""]
["51","347",null,null,"AAS      JUNIOR SCIENCE  SHETT","1031RE347089","20000","13100","64288","51047010",{"$f":"VLOOKUP(TRIM(J4668),'Transactional Departments'!A:B,2,FALSE)","v":"GC Ppd"},"51047010","18003","SAOASRE347089CV","A01","",""]
["51","347",null,null,"GDECL/NIHGA TRAINING     SHETT","1031RE347092","20000","13100","62056","51047010",{"$f":"VLOOKUP(TRIM(J4669),'Transactional Departments'!A:B,2,FALSE)","v":"GC Ppd"},"51047010","18003","SGDECRE347092CV","A01","",""]
["51","347",null,null,"DECL/NIH GA TRAIN FY14   SHETT","1031RE347287","20000","13100","62056","51047010",{"$f":"VLOOKUP(TRIM(J4670),'Transactional Departments'!A:B,2,FALSE)","v":"GC Ppd"},"51047010","18003","SGDECRE347287CV","A01","",""]
["51","347",null,null,"GDECL    TRNING APPROVAL SHETT","1031RE347289","20000","13100","62056","51047010",{"$f":"VLOOKUP(TRIM(J4671),'Transactional Departments'!A:B,2,FALSE)","v":"GC Ppd"},"51047010","18003","SGDECRE347289CV","A01","",""]
["51","531",null,null,"USDC     RF RR746-076    RISSE","1021RR531104","20000","12100","61009","51020010",{"$f":"VLOOKUP(TRIM(J4672),'Transactional Departments'!A:B,2,FALSE)","v":"CVIOG Director"},"51020010","18400","RUSDCRR531104CV","A01","",""]
["51","531",null,null,"USDC     RF RR746-075         ","1021RR531158","20000","12100","61009","51020010",{"$f":"VLOOKUP(TRIM(J4673),'Transactional Departments'!A:B,2,FALSE)","v":"CVIOG Director"},"51020010","18400","RUSDCRR531158CV","A01","",""]
["51","531",null,null,"DBHDD    TECH CHANGE     BITTN","1031RE531003","20000","13100","62061","51020010",{"$f":"VLOOKUP(TRIM(J4674),'Transactional Departments'!A:B,2,FALSE)","v":"CVIOG Director"},"51020010","18003","SGDBHRE531003CV","A01","",""]
["51","531",null,null,"DBHDD    TECH ASSIST     JOHNS","1031RE531004","20000","13100","62061","51020010",{"$f":"VLOOKUP(TRIM(J4675),'Transactional Departments'!A:B,2,FALSE)","v":"CVIOG Director"},"51020010","18003","SGDBHRE531004CV","A01","",""]
["51","531",null,null,"GA DCA   GDCA RRL DEV 14 JONES","1031RE531017","20000","13100","62011","51020010",{"$f":"VLOOKUP(TRIM(J4676),'Transactional Departments'!A:B,2,FALSE)","v":"CVIOG Director"},"51020010","18003","SGAFCRE531017CV","A01","",""]
["51","531",null,null,"DBHDD    GA STRAT PREVENTWRIGH","1031RE531019","20000","13100","62061","51020010",{"$f":"VLOOKUP(TRIM(J4677),'Transactional Departments'!A:B,2,FALSE)","v":"CVIOG Director"},"51020010","18003","SGDBHRE531019CV","A01","",""]
["51","531",null,null,"GCJC/GOCFHUMAN TRAFFIC   WRIGH","1031RE531024","20000","13100","62065","51020010",{"$f":"VLOOKUP(TRIM(J4678),'Transactional Departments'!A:B,2,FALSE)","v":"CVIOG Director"},"51020010","18003","SCRJCRE531024CV","A01","",""]
["51","531",null,null,"GADBHDD  MH/AD           WRIGH","1031RE531026","20000","13100","62061","51020010",{"$f":"VLOOKUP(TRIM(J4679),'Transactional Departments'!A:B,2,FALSE)","v":"CVIOG Director"},"51020010","18003","SGDBHRE531026CV","A01","",""]
["51","531",null,null,"BOR USG  POP DEMO PROJ   TANNE","1031RE531032","20000","13100","62020","51020010",{"$f":"VLOOKUP(TRIM(J4680),'Transactional Departments'!A:B,2,FALSE)","v":"CVIOG Director"},"51020010","18003","SGBORRE531032CV","A01","",""]
["51","531",null,null,"CCG      NEW POSTION     DAMAN","1031RE531035","20000","13100","62024","51020010",{"$f":"VLOOKUP(TRIM(J4681),'Transactional Departments'!A:B,2,FALSE)","v":"CVIOG Director"},"51020010","18003","SCOCSRE531035CV","A01","",""]
["51","531",null,null,"GDBHD    SYNAR PROJECT   WRIGH","1031RE531042","20000","13100","62061","51020010",{"$f":"VLOOKUP(TRIM(J4682),'Transactional Departments'!A:B,2,FALSE)","v":"CVIOG Director"},"51020010","18003","SGDBHRE531042CV","A01","",""]
["51","531",null,null,"GOPB     FISCAL NOTES    TANNE","1031RE531049","20000","13100","62019","51020010",{"$f":"VLOOKUP(TRIM(J4683),'Transactional Departments'!A:B,2,FALSE)","v":"CVIOG Director"},"51020010","18003","SGOPBRE531049CV","A01","",""]
["51","531",null,null,"CONYERS  CITY OF CPNYERS BIVIN","1031RE531053","20000","13100","63000","51020010",{"$f":"VLOOKUP(TRIM(J4684),'Transactional Departments'!A:B,2,FALSE)","v":"CVIOG Director"},"51020010","18003","SXXXXRE531053CV","A01","",""]
["51","531",null,null,"GFA      GA FOG ALLI     JONES","1031RE531056","20000","13100","64000","51020010",{"$f":"VLOOKUP(TRIM(J4685),'Transactional Departments'!A:B,2,FALSE)","v":"CVIOG Director"},"51020010","18003","SGNGARE531056CV","A01","",""]
["51","531",null,null,"         STATE CHARTER   JONES","1031RE531057","20000","13100","62066","51020010",{"$f":"VLOOKUP(TRIM(J4686),'Transactional Departments'!A:B,2,FALSE)","v":"CVIOG Director"},"51020010","18003","SSCSCRE531057CV","A01","",""]
["51","531",null,null,"ACC      CLERK TRAINING  JONES","1031RE531058","20000","13100","63053","51020010",{"$f":"VLOOKUP(TRIM(J4687),'Transactional Departments'!A:B,2,FALSE)","v":"CVIOG Director"},"51020010","18003","SVACCRE531058CV","A01","",""]
["51","531",null,null,"WENTWORTHCLASS SYSTEM    DAMAN","1031RE531059","20000","13100","63000","51020010",{"$f":"VLOOKUP(TRIM(J4688),'Transactional Departments'!A:B,2,FALSE)","v":"CVIOG Director"},"51020010","18003","SXXXXRE531059CV","A01","",""]
["51","531",null,null,"GMA      TRAIN FY15/16   JONES","1031RE531060","20000","13100","64299","51020010",{"$f":"VLOOKUP(TRIM(J4689),'Transactional Departments'!A:B,2,FALSE)","v":"CVIOG Director"},"51020010","18003","SGAMARE531060CV","A01","",""]
["51","531",null,null,"GOPB     POP PROJ 15-50  MEADO","1031RE531061","20000","13100","62019","51020010",{"$f":"VLOOKUP(TRIM(J4690),'Transactional Departments'!A:B,2,FALSE)","v":"CVIOG Director"},"51020010","18003","SGOPBRE531061CV","A01","",""]
["51","531",null,null,"ACCG     FSS ACCG TR15   JONES","1031RE531062","20000","13100","64302","51020010",{"$f":"VLOOKUP(TRIM(J4691),'Transactional Departments'!A:B,2,FALSE)","v":"CVIOG Director"},"51020010","18003","SASCGRE531062CV","A01","",""]
["51","531",null,null,"GACCMA   FSS GACCMA      JONES","1031RE531063","20000","13100","64305","51020010",{"$f":"VLOOKUP(TRIM(J4692),'Transactional Departments'!A:B,2,FALSE)","v":"CVIOG Director"},"51020010","18003","SGCCMRE531063CV","A01","",""]
["51","531",null,null,"COU      UNION BRANDING  JONES","1031RE531065","20000","13100","63000","51020010",{"$f":"VLOOKUP(TRIM(J4693),'Transactional Departments'!A:B,2,FALSE)","v":"CVIOG Director"},"51020010","18003","SXXXXRE531065CV","A01","",""]
["51","531",null,null,"BCBE     BARROW CO BOE   JONES","1031RE531066","20000","13100","63000","51020010",{"$f":"VLOOKUP(TRIM(J4694),'Transactional Departments'!A:B,2,FALSE)","v":"CVIOG Director"},"51020010","18003","SXXXXRE531066CV","A01","",""]
["51","531",null,null,"GDBHD    HLTH LEADERSHIP JOHNS","1031RE531067","20000","13100","62061","51020010",{"$f":"VLOOKUP(TRIM(J4695),'Transactional Departments'!A:B,2,FALSE)","v":"CVIOG Director"},"51020010","18003","SGDBHRE531067CV","A01","",""]
["51","531",null,null,"GDJJ     EVALUATE OUTCME WRIGH","1031RE531069","20000","13100","62042","51020010",{"$f":"VLOOKUP(TRIM(J4696),'Transactional Departments'!A:B,2,FALSE)","v":"CVIOG Director"},"51020010","18003","SGADJRE531069CV","A01","",""]
["51","531",null,null,"GDBHD    CONSUMER SRVY   WRIGH","1031RE531070","20000","13100","62061","51020010",{"$f":"VLOOKUP(TRIM(J4697),'Transactional Departments'!A:B,2,FALSE)","v":"CVIOG Director"},"51020010","18003","SGDBHRE531070CV","A01","",""]
["51","531",null,null,"GDCA     RURAL DEVELOP   JONES","1031RE531071","20000","13100","62011","51020010",{"$f":"VLOOKUP(TRIM(J4698),'Transactional Departments'!A:B,2,FALSE)","v":"CVIOG Director"},"51020010","18003","SGAFCRE531071CV","A01","",""]
["51","531",null,null,"COD      LEAD PROGRAM    JONES","1031RE531072","20000","13100","63003","51020010",{"$f":"VLOOKUP(TRIM(J4699),'Transactional Departments'!A:B,2,FALSE)","v":"CVIOG Director"},"51020010","18003","SCDEKRE531072CV","A01","",""]
["51","531",null,null,"GDNR     WATER PLANNING  ELKIN","1031RE531073","20000","13100","62016","51020010",{"$f":"VLOOKUP(TRIM(J4700),'Transactional Departments'!A:B,2,FALSE)","v":"CVIOG Director"},"51020010","18003","SGDNRRE531073CV","A01","",""]
["51","531",null,null,"ACBE     SCHOOL RETREATS JONES","1031RE531074","20000","13100","63000","51020010",{"$f":"VLOOKUP(TRIM(J4701),'Transactional Departments'!A:B,2,FALSE)","v":"CVIOG Director"},"51020010","18003","SXXXXRE531074CV","A01","",""]
["51","531",null,null,"COD      MERIT SYSTEMS   JONES","1031RE531076","20000","13100","63003","51020010",{"$f":"VLOOKUP(TRIM(J4702),'Transactional Departments'!A:B,2,FALSE)","v":"CVIOG Director"},"51020010","18003","SCDEKRE531076CV","A01","",""]
["51","531",null,null,"SCCC     CLERK TRAIN 15  JONES","1031RE531077","20000","13100","64205","51020010",{"$f":"VLOOKUP(TRIM(J4703),'Transactional Departments'!A:B,2,FALSE)","v":"CVIOG Director"},"51020010","18003","SVANGRE531077CV","A01","",""]
["51","531",null,null,"GDHR     GA DFCS         WRIGH","1031RE531078","20000","13100","62014","51020010",{"$f":"VLOOKUP(TRIM(J4704),'Transactional Departments'!A:B,2,FALSE)","v":"CVIOG Director"},"51020010","18003","SGDHRRE531078CV","A01","",""]
["51","531",null,null,"CJCC     GA CARES EVAL   WRIGH","1031RE531081","20000","13100","62065","51020010",{"$f":"VLOOKUP(TRIM(J4705),'Transactional Departments'!A:B,2,FALSE)","v":"CVIOG Director"},"51020010","18003","SCRJCRE531081CV","A01","",""]
["51","531",null,null,"COS      TRAINING PROGR  JONES","1031RE531082","20000","13100","63043","51020010",{"$f":"VLOOKUP(TRIM(J4706),'Transactional Departments'!A:B,2,FALSE)","v":"CVIOG Director"},"51020010","18003","SCISARE531082CV","A01","",""]
["51","531",null,null,"GDNR     TELEPHONE SURVY ELKIN","1031RE531086","20000","13100","62016","51020010",{"$f":"VLOOKUP(TRIM(J4707),'Transactional Departments'!A:B,2,FALSE)","v":"CVIOG Director"},"51020010","18003","SGDNRRE531086CV","A01","",""]
["51","531",null,null,"GDNR     SEDIMENT CONTROLJONES","1031RE531088","20000","13100","62016","51020010",{"$f":"VLOOKUP(TRIM(J4708),'Transactional Departments'!A:B,2,FALSE)","v":"CVIOG Director"},"51020010","18003","SGDNRRE531088CV","A01","",""]
["51","531",null,null,"RCBOE    CTAE CURR SRVY  WRIGH","1031RE531089","20000","13100","63000","51020010",{"$f":"VLOOKUP(TRIM(J4709),'Transactional Departments'!A:B,2,FALSE)","v":"CVIOG Director"},"51020010","18003","SXXXXRE531089CV","A01","",""]
["51","531",null,null,"MARTA    2015 ECON IMPCT CLARK","1031RE531091","20000","13100","64026","51020010",{"$f":"VLOOKUP(TRIM(J4710),'Transactional Departments'!A:B,2,FALSE)","v":"CVIOG Director"},"51020010","18003","SMARTRE531091CV","A01","",""]
["51","531",null,null,"         INDUSTRY FOCUS  TANNE","1031RE531092","20000","13100","64237","51020010",{"$f":"VLOOKUP(TRIM(J4711),'Transactional Departments'!A:B,2,FALSE)","v":"CVIOG Director"},"51020010","18003","SCCOCRE531092CV","A01","",""]
["51","531",null,null,"GDJJ     COMMUNITY SRVC  WRIGH","1031RE531094","20000","13100","62042","51020010",{"$f":"VLOOKUP(TRIM(J4712),'Transactional Departments'!A:B,2,FALSE)","v":"CVIOG Director"},"51020010","18003","SGADJRE531094CV","A01","",""]
["51","531",null,null,"GDJJ     GRANT FNDED PRG WRIGH","1031RE531095","20000","13100","62042","51020010",{"$f":"VLOOKUP(TRIM(J4713),'Transactional Departments'!A:B,2,FALSE)","v":"CVIOG Director"},"51020010","18003","SGADJRE531095CV","A01","",""]
["51","531",null,null,"         GPLS MANAGEMENT JONES","1031RE531097","20000","13100","62020","51020010",{"$f":"VLOOKUP(TRIM(J4714),'Transactional Departments'!A:B,2,FALSE)","v":"CVIOG Director"},"51020010","18003","SGBORRE531097CV","A01","",""]
["51","531",null,null,"GDOC     AMT FY16        JONES","1031RE531098","20000","13100","62035","51020010",{"$f":"VLOOKUP(TRIM(J4715),'Transactional Departments'!A:B,2,FALSE)","v":"CVIOG Director"},"51020010","18003","SGCORRE531098CV","A01","",""]
["51","531",null,null,"OTC      STRATEGIC PLAN  JONES","1031RE531101","20000","13100","62073","51020010",{"$f":"VLOOKUP(TRIM(J4716),'Transactional Departments'!A:B,2,FALSE)","v":"CVIOG Director"},"51020010","18003","SOTECRE531101CV","A01","",""]
["51","531",null,null,"GDOL     EXCEL FY16      JONES","1031RE531103","20000","13100","62033","51020010",{"$f":"VLOOKUP(TRIM(J4717),'Transactional Departments'!A:B,2,FALSE)","v":"CVIOG Director"},"51020010","18003","SGADLRE531103CV","A01","",""]
["51","531",null,null,"MWA      STRATEGIC PLAN  JONES","1031RE531105","20000","13100","63000","51020010",{"$f":"VLOOKUP(TRIM(J4718),'Transactional Departments'!A:B,2,FALSE)","v":"CVIOG Director"},"51020010","18003","SXXXXRE531105CV","A01","",""]
["51","531",null,null,"SMMRVILLECOMP STUDY      DAMAN","1031RE531106","20000","13100","63000","51020010",{"$f":"VLOOKUP(TRIM(J4719),'Transactional Departments'!A:B,2,FALSE)","v":"CVIOG Director"},"51020010","18003","SXXXXRE531106CV","A01","",""]
["51","531",null,null,"DALLAS   COMP STUDY      DAMAN","1031RE531107","20000","13100","63000","51020010",{"$f":"VLOOKUP(TRIM(J4720),'Transactional Departments'!A:B,2,FALSE)","v":"CVIOG Director"},"51020010","18003","SXXXXRE531107CV","A01","",""]
["51","531",null,null,"GBHDD    YOUTH TOBACCO   WRIGH","1031RE531108","20000","13100","62061","51020010",{"$f":"VLOOKUP(TRIM(J4721),'Transactional Departments'!A:B,2,FALSE)","v":"CVIOG Director"},"51020010","18003","SGDBHRE531108CV","A01","",""]
["51","531",null,null,"GSWCC    CERTIFICATE PRG JONES","1031RE531109","20000","13100","62048","51020010",{"$f":"VLOOKUP(TRIM(J4722),'Transactional Departments'!A:B,2,FALSE)","v":"CVIOG Director"},"51020010","18003","SGSWCRE531109CV","A01","",""]
["51","531",null,null,"         CLASS & COMP    DAMAN","1031RE531112","20000","13100","63000","51020010",{"$f":"VLOOKUP(TRIM(J4723),'Transactional Departments'!A:B,2,FALSE)","v":"CVIOG Director"},"51020010","18003","SXXXXRE531112CV","A01","",""]
["51","531",null,null,"GSSA     STRATEGC LDRSHP JONES","1031RE531113","20000","13100","64303","51020010",{"$f":"VLOOKUP(TRIM(J4724),'Transactional Departments'!A:B,2,FALSE)","v":"CVIOG Director"},"51020010","18003","SGSSARE531113CV","A01","",""]
["51","531",null,null,"         HENRY CO MDP    JONES","1031RE531114","20000","13100","63027","51020010",{"$f":"VLOOKUP(TRIM(J4725),'Transactional Departments'!A:B,2,FALSE)","v":"CVIOG Director"},"51020010","18003","SCHENRE531114CV","A01","",""]
["51","531",null,null,"GDOR     CURR DEVELOPMNT JONES","1031RE531115","20000","13100","62074","51020010",{"$f":"VLOOKUP(TRIM(J4726),'Transactional Departments'!A:B,2,FALSE)","v":"CVIOG Director"},"51020010","18003","SGADRRE531115CV","A01","",""]
["51","531",null,null,"NEWTN CO MAN DEVELOP PRG JONES","1031RE531116","20000","13100","63008","51020010",{"$f":"VLOOKUP(TRIM(J4727),'Transactional Departments'!A:B,2,FALSE)","v":"CVIOG Director"},"51020010","18003","SCNEWRE531116CV","A01","",""]
["51","531",null,null,"WALTN CO GOVERNANCE TRNG JONES","1031RE531117","20000","13100","63000","51020010",{"$f":"VLOOKUP(TRIM(J4728),'Transactional Departments'!A:B,2,FALSE)","v":"CVIOG Director"},"51020010","18003","SXXXXRE531117CV","A01","",""]
["51","531",null,null,"         MUSEUM BRD TRNG JONES","1031RE531118","20000","13100","63000","51020010",{"$f":"VLOOKUP(TRIM(J4729),'Transactional Departments'!A:B,2,FALSE)","v":"CVIOG Director"},"51020010","18003","SXXXXRE531118CV","A01","",""]
["51","531",null,null,"BUCC     MARKETNG LAUNCH JONES","1031RE531119","20000","13100","64248","51020010",{"$f":"VLOOKUP(TRIM(J4730),'Transactional Departments'!A:B,2,FALSE)","v":"CVIOG Director"},"51020010","18003","SBLCCRE531119CV","A01","",""]
["51","531",null,null,"SCSC     CHARTER TRAINNG JONES","1031RE531120","20000","13100","62066","51020010",{"$f":"VLOOKUP(TRIM(J4731),'Transactional Departments'!A:B,2,FALSE)","v":"CVIOG Director"},"51020010","18003","SSCSCRE531120CV","A01","",""]
["51","531",null,null,"GSSA     PROF DEV PROG   JONES","1031RE531121","20000","13100","64303","51020010",{"$f":"VLOOKUP(TRIM(J4732),'Transactional Departments'!A:B,2,FALSE)","v":"CVIOG Director"},"51020010","18003","SGSSARE531121CV","A01","",""]
["51","531",null,null,"FVSU     CLASS & COMP SRVDAMAN","1031RE531123","20000","13100","62023","51020010",{"$f":"VLOOKUP(TRIM(J4733),'Transactional Departments'!A:B,2,FALSE)","v":"CVIOG Director"},"51020010","18003","SFVSURE531123CV","A01","",""]
["51","531",null,null,"         DAHLNEGA/LUMPKN HOLBR","1031RE531124","20000","13100","63060","51020010",{"$f":"VLOOKUP(TRIM(J4734),'Transactional Departments'!A:B,2,FALSE)","v":"CVIOG Director"},"51020010","18003","SCLUMRE531124CV","A01","",""]
["51","531",null,null,"         GLOBE ACADEMY   JONES","1031RE531126","20000","13100","64020","51020010",{"$f":"VLOOKUP(TRIM(J4735),'Transactional Departments'!A:B,2,FALSE)","v":"CVIOG Director"},"51020010","18003","SVARCRE531126CV","A01","",""]
["51","531",null,null,"         HABERSHAM CO    DAMAN","1031RE531128","20000","13100","63074","51020010",{"$f":"VLOOKUP(TRIM(J4736),'Transactional Departments'!A:B,2,FALSE)","v":"CVIOG Director"},"51020010","18003","SCOOHRE531128CV","A01","",""]
["51","531",null,null,"GDDS     LEADERSHIP DEV  JONES","1031RE531131","20000","13100","62077","51020010",{"$f":"VLOOKUP(TRIM(J4737),'Transactional Departments'!A:B,2,FALSE)","v":"CVIOG Director"},"51020010","18003","SGDRVRE531131CV","A01","",""]
["51","531",null,null,"BOR      GA LIBRARY TRN  JONES","1031RE531132","20000","13100","62020","51020010",{"$f":"VLOOKUP(TRIM(J4738),'Transactional Departments'!A:B,2,FALSE)","v":"CVIOG Director"},"51020010","18003","SGBORRE531132CV","A01","",""]
["51","531",null,null,"GMA      FACILITATOR TRN JONES","1031RE531133","20000","13100","64299","51020010",{"$f":"VLOOKUP(TRIM(J4739),'Transactional Departments'!A:B,2,FALSE)","v":"CVIOG Director"},"51020010","18003","SGAMARE531133CV","A01","",""]
["51","531",null,null,"GDOL     CONFLICT TRANSF JONES","1031RE531134","20000","13100","62033","51020010",{"$f":"VLOOKUP(TRIM(J4740),'Transactional Departments'!A:B,2,FALSE)","v":"CVIOG Director"},"51020010","18003","SGADLRE531134CV","A01","",""]
["51","531",null,null,"GMA      TRAINING 2016   JONES","1031RE531135","20000","13100","64299","51020010",{"$f":"VLOOKUP(TRIM(J4741),'Transactional Departments'!A:B,2,FALSE)","v":"CVIOG Director"},"51020010","18003","SGAMARE531135CV","A01","",""]
["51","531",null,null,"         BUTTS BOE RETRT JONES","1031RE531137","20000","13100","63094","51020010",{"$f":"VLOOKUP(TRIM(J4742),'Transactional Departments'!A:B,2,FALSE)","v":"CVIOG Director"},"51020010","18003","SCBUTRE531137CV","A01","",""]
["51","531",null,null,"GGFOA    WEBINARS        JONES","1031RE531139","20000","13100","64322","51020010",{"$f":"VLOOKUP(TRIM(J4743),'Transactional Departments'!A:B,2,FALSE)","v":"CVIOG Director"},"51020010","18003","SGGFARE531139CV","A01","",""]
["51","531",null,null,"         SAV-CHA BOE RTR JONES","1031RE531140","20000","13100","63000","51020010",{"$f":"VLOOKUP(TRIM(J4744),'Transactional Departments'!A:B,2,FALSE)","v":"CVIOG Director"},"51020010","18003","SXXXXRE531140CV","A01","",""]
["51","531",null,null,"         COVINGTON MDP   JONES","1031RE531141","20000","13100","63073","51020010",{"$f":"VLOOKUP(TRIM(J4745),'Transactional Departments'!A:B,2,FALSE)","v":"CVIOG Director"},"51020010","18003","SCCOVRE531141CV","A01","",""]
["51","531",null,null,"         DEKALB CO BOARD JONES","1031RE531142","20000","13100","63000","51020010",{"$f":"VLOOKUP(TRIM(J4746),'Transactional Departments'!A:B,2,FALSE)","v":"CVIOG Director"},"51020010","18003","SXXXXRE531142CV","A01","",""]
["51","531",null,null,"         HENRY CO SAAS   JONES","1031RE531143","20000","13100","63027","51020010",{"$f":"VLOOKUP(TRIM(J4747),'Transactional Departments'!A:B,2,FALSE)","v":"CVIOG Director"},"51020010","18003","SCHENRE531143CV","A01","",""]
["51","531",null,null,"         FORSYTH CO SAAS JONES","1031RE531144","20000","13100","63044","51020010",{"$f":"VLOOKUP(TRIM(J4748),'Transactional Departments'!A:B,2,FALSE)","v":"CVIOG Director"},"51020010","18003","SCFORRE531144CV","A01","",""]
["51","531",null,null,"GCCMA    TRAINING 2016   JONES","1031RE531145","20000","13100","64305","51020010",{"$f":"VLOOKUP(TRIM(J4749),'Transactional Departments'!A:B,2,FALSE)","v":"CVIOG Director"},"51020010","18003","SGCCMRE531145CV","A01","",""]
["51","531",null,null,"         CHARTR HS TRAIN JONES","1031RE531147","20000","13100","62079","51020010",{"$f":"VLOOKUP(TRIM(J4750),'Transactional Departments'!A:B,2,FALSE)","v":"CVIOG Director"},"51020010","18003","SGARURE531147CV","A01","",""]
["51","531",null,null,"GNR      HEALTH ACADEMY  JONES","1031RE531148","20000","13100","63000","51020010",{"$f":"VLOOKUP(TRIM(J4751),'Transactional Departments'!A:B,2,FALSE)","v":"CVIOG Director"},"51020010","18003","SGNRHRE531148CV","A01","",""]
["51","531",null,null,"ACC/DOJ  JAIL DIVERSION  WRIGH","1031RE531150","20000","13100","63001","51020010",{"$f":"VLOOKUP(TRIM(J4752),'Transactional Departments'!A:B,2,FALSE)","v":"CVIOG Director"},"51020010","18003","SCOOARE531150CV","A01","",""]
["51","531",null,null,"         COBB WORKFORCE  WILSO","1031RE531151","20000","13100","64237","51020010",{"$f":"VLOOKUP(TRIM(J4753),'Transactional Departments'!A:B,2,FALSE)","v":"CVIOG Director"},"51020010","18003","SCCOCRE531151CV","A01","",""]
["51","531",null,null,"         LEAD PROGRAM    JONES","1031RE531152","20000","13100","63014","51020010",{"$f":"VLOOKUP(TRIM(J4754),'Transactional Departments'!A:B,2,FALSE)","v":"CVIOG Director"},"51020010","18003","SCGWIRE531152CV","A01","",""]
["51","531",null,null,"GEFA     FOCUS GROUP     JONES","1031RE531153","20000","13100","62064","51020010",{"$f":"VLOOKUP(TRIM(J4755),'Transactional Departments'!A:B,2,FALSE)","v":"CVIOG Director"},"51020010","18003","SGEFARE531153CV","A01","",""]
["51","531",null,null,"GDHS     LEADERSHIP ACAD JONES","1031RE531154","20000","13100","62015","51020010",{"$f":"VLOOKUP(TRIM(J4756),'Transactional Departments'!A:B,2,FALSE)","v":"CVIOG Director"},"51020010","18003","SGHUMRE531154CV","A01","",""]
["51","531",null,null,"ACCG     TRAINING 2016   JONES","1031RE531155","20000","13100","64302","51020010",{"$f":"VLOOKUP(TRIM(J4757),'Transactional Departments'!A:B,2,FALSE)","v":"CVIOG Director"},"51020010","18003","SASCGRE531155CV","A01","",""]
["51","531",null,null,"         CONFERENCE CNTR SIKES","1031RE531156","20000","13100","63000","51020010",{"$f":"VLOOKUP(TRIM(J4758),'Transactional Departments'!A:B,2,FALSE)","v":"CVIOG Director"},"51020010","18003","SCTYTRE531156CV","A01","",""]
["51","531",null,null,"GDBHD    MH/AD CONSUMER  WRIGH","1031RE531157","20000","13100","62061","51020010",{"$f":"VLOOKUP(TRIM(J4759),'Transactional Departments'!A:B,2,FALSE)","v":"CVIOG Director"},"51020010","18003","SGDBHRE531157CV","A01","",""]
["51","531",null,null,"GOPB     FISCAL NOTES    MEADO","1031RE531159","20000","13100","62019","51020010",{"$f":"VLOOKUP(TRIM(J4760),'Transactional Departments'!A:B,2,FALSE)","v":"CVIOG Director"},"51020010","18003","SGOPBRE531159CV","A01","",""]
["51","531",null,null,"         MITCHELL BOC    LASSE","1031RE531160","20000","13100","63042","51020010",{"$f":"VLOOKUP(TRIM(J4761),'Transactional Departments'!A:B,2,FALSE)","v":"CVIOG Director"},"51020010","18003","SCMITRE531160CV","A01","",""]
["51","531",null,null,"         DATA MODELING   TANNE","1031RE531161","20000","13100","62020","51020010",{"$f":"VLOOKUP(TRIM(J4762),'Transactional Departments'!A:B,2,FALSE)","v":"CVIOG Director"},"51020010","18003","SGBORRE531161CV","A01","",""]
["51","531",null,null,"GDHS     GMS MODULES     WRIGH","1031RE531162","20000","13100","62015","51020010",{"$f":"VLOOKUP(TRIM(J4763),'Transactional Departments'!A:B,2,FALSE)","v":"CVIOG Director"},"51020010","18003","SGHUMRE531162CV","A01","",""]
["51","531",null,null,"MARTA    PROF SERVICES   HOURI","1031RE531163","20000","13100","64026","51020010",{"$f":"VLOOKUP(TRIM(J4764),'Transactional Departments'!A:B,2,FALSE)","v":"CVIOG Director"},"51020010","18003","SMARTRE531163CV","A01","",""]
["51","531",null,null,"         SAV FIRE DEPT  FFOSTE","1031RE531164","20000","13100","63043","51020010",{"$f":"VLOOKUP(TRIM(J4765),'Transactional Departments'!A:B,2,FALSE)","v":"CVIOG Director"},"51020010","18003","SCISARE531164CV","A01","",""]
["51","531",null,null,"         SANDY SPRNGS PD FOSTE","1031RE531165","20000","13100","63112","51020010",{"$f":"VLOOKUP(TRIM(J4766),'Transactional Departments'!A:B,2,FALSE)","v":"CVIOG Director"},"51020010","18003","SCISSRE531165CV","A01","",""]
["51","531",null,null,"         COLUMBUS PD     FOSTE","1031RE531166","20000","13100","63108","51020010",{"$f":"VLOOKUP(TRIM(J4767),'Transactional Departments'!A:B,2,FALSE)","v":"CVIOG Director"},"51020010","18003","SCOCGRE531166CV","A01","",""]
["51","531",null,null,"GDED     REGIONAL PART   WILSO","1031RE531167","20000","13100","62059","51020010",{"$f":"VLOOKUP(TRIM(J4768),'Transactional Departments'!A:B,2,FALSE)","v":"CVIOG Director"},"51020010","18003","SGECDRE531167CV","A01","",""]
["51","531",null,null,"GMA      LEADERSHP PRGRM JONES","1031RE531168","20000","13100","64299","51020010",{"$f":"VLOOKUP(TRIM(J4769),'Transactional Departments'!A:B,2,FALSE)","v":"CVIOG Director"},"51020010","18003","SGAMARE531168CV","A01","",""]
["51","531",null,null,"         ECON DEVELOPMNT TANNE","1031RE531169","20000","13100","62020","51020010",{"$f":"VLOOKUP(TRIM(J4770),'Transactional Departments'!A:B,2,FALSE)","v":"CVIOG Director"},"51020010","18003","SGBORRE531169CV","A01","",""]
["51","531",null,null,"         COWETA CO WATER HAUER","1031RE531170","20000","13100","63017","51020010",{"$f":"VLOOKUP(TRIM(J4771),'Transactional Departments'!A:B,2,FALSE)","v":"CVIOG Director"},"51020010","18003","SCCOWRE531170CV","A01","",""]
["51","531",null,null,"         WORKFORCE DEVEL WILSO","1031RE531172","20000","13100","63116","51020010",{"$f":"VLOOKUP(TRIM(J4772),'Transactional Departments'!A:B,2,FALSE)","v":"CVIOG Director"},"51020010","18003","STRRCRE531172CV","A01","",""]
["51","531",null,null,"GMCFOA   ANNUAL TRAINING JONES","1031RE531173","20000","13100","64000","51020010",{"$f":"VLOOKUP(TRIM(J4773),'Transactional Departments'!A:B,2,FALSE)","v":"CVIOG Director"},"51020010","18003","SGNCFRE531173CV","A01","",""]
["51","531",null,null,"         DETENTION CENTR FOSTE","1031RE531174","20000","13100","63107","51020010",{"$f":"VLOOKUP(TRIM(J4774),'Transactional Departments'!A:B,2,FALSE)","v":"CVIOG Director"},"51020010","18003","SCIATRE531174CV","A01","",""]
["51","531",null,null,"GSAO     CAFR REVIEW     JONES","1031RE531175","20000","13100","62013","51020010",{"$f":"VLOOKUP(TRIM(J4775),'Transactional Departments'!A:B,2,FALSE)","v":"CVIOG Director"},"51020010","18003","SGSAORE531175CV","A01","",""]
["51","531",null,null,"         NIGERIAN TRNING JONES","1031RE531178","20000","13100","64000","51020010",{"$f":"VLOOKUP(TRIM(J4776),'Transactional Departments'!A:B,2,FALSE)","v":"CVIOG Director"},"51020010","18003","SMNCNRE531178CV","A01","",""]
["51","531",null,null,"         RESA STORY      JONES","1031RE531179","20000","13100","62051","51020010",{"$f":"VLOOKUP(TRIM(J4777),'Transactional Departments'!A:B,2,FALSE)","v":"CVIOG Director"},"51020010","18003","SMRESRE531179CV","A01","",""]
["51","531",null,null,"HCPD     PROMO TESTING   FOSTE","1031RE531181","20000","13100","63109","51020010",{"$f":"VLOOKUP(TRIM(J4778),'Transactional Departments'!A:B,2,FALSE)","v":"CVIOG Director"},"51020010","18003","SHCPDRE531181CV","A01","",""]
["51","531",null,null,"CJCC     GEORGIA CARES   WRIGH","1031RE531184","20000","13100","62065","51020010",{"$f":"VLOOKUP(TRIM(J4779),'Transactional Departments'!A:B,2,FALSE)","v":"CVIOG Director"},"51020010","18003","SCRJCRE531184CV","A01","",""]
["51","531",null,null,"GBI      PROMO TESTING   FOSTE","1031RE531185","20000","13100","62049","51020010",{"$f":"VLOOKUP(TRIM(J4780),'Transactional Departments'!A:B,2,FALSE)","v":"CVIOG Director"},"51020010","18003","SGABIRE531185CV","A01","",""]
["51","531",null,null,"         FULTON CO CPM   JONES","1031RE531186","20000","13100","63005","51020010",{"$f":"VLOOKUP(TRIM(J4781),'Transactional Departments'!A:B,2,FALSE)","v":"CVIOG Director"},"51020010","18003","SCFULRE531186CV","A01","",""]
["51","531",null,null,"GDOR     DISC WORKSHOP   JONES","1031RE531187","20000","13100","62074","51020010",{"$f":"VLOOKUP(TRIM(J4782),'Transactional Departments'!A:B,2,FALSE)","v":"CVIOG Director"},"51020010","18003","SGADRRE531187CV","A01","",""]
["51","531",null,null,"GDNR     GEOGRAPHIC LOC  JONES","1031RE531188","20000","13100","62016","51020010",{"$f":"VLOOKUP(TRIM(J4783),'Transactional Departments'!A:B,2,FALSE)","v":"CVIOG Director"},"51020010","18003","SGDNRRE531188CV","A01","",""]
["51","531",null,null,"GDHS     LEADERSHIP ACAD JONES","1031RE531189","20000","13100","62015","51020010",{"$f":"VLOOKUP(TRIM(J4784),'Transactional Departments'!A:B,2,FALSE)","v":"CVIOG Director"},"51020010","18003","SGHUMRE531189CV","A01","",""]
["51","531",null,null,"BOR      FACILITATION    JONES","1031RE531190","20000","13100","62020","51020010",{"$f":"VLOOKUP(TRIM(J4785),'Transactional Departments'!A:B,2,FALSE)","v":"CVIOG Director"},"51020010","18003","SGBORRE531190CV","A01","",""]
["51","531",null,null,"         EXCELLENCE      JONES","1031RE531191","20000","13100","64213","51020010",{"$f":"VLOOKUP(TRIM(J4786),'Transactional Departments'!A:B,2,FALSE)","v":"CVIOG Director"},"51020010","18003","SELCGRE531191CV","A01","",""]
["51","531",null,null,"         LEADERSHIP      JONES","1031RE531192","20000","13100","63107","51020010",{"$f":"VLOOKUP(TRIM(J4787),'Transactional Departments'!A:B,2,FALSE)","v":"CVIOG Director"},"51020010","18003","SCIATRE531192CV","A01","",""]
["51","531",null,null,"         MANAGEMENT DEV  JONES","1031RE531193","20000","13100","63043","51020010",{"$f":"VLOOKUP(TRIM(J4788),'Transactional Departments'!A:B,2,FALSE)","v":"CVIOG Director"},"51020010","18003","SCISARE531193CV","A01","",""]
["51","531",null,null,"GDJJ     COMMUNITY SERV  WRIGH","1031RE531194","20000","13100","62042","51020010",{"$f":"VLOOKUP(TRIM(J4789),'Transactional Departments'!A:B,2,FALSE)","v":"CVIOG Director"},"51020010","18003","SGADJRE531194CV","A01","",""]
["51","531",null,null,"GGA      LEGISLATIVE SRV MEADO","1031RE531195","20000","13100","62027","51020010",{"$f":"VLOOKUP(TRIM(J4790),'Transactional Departments'!A:B,2,FALSE)","v":"CVIOG Director"},"51020010","18003","SGGASRE531195CV","A01","",""]
["51","531",null,null,"         GO FORWARD      TANNE","1031RE531196","20000","13100","63036","51020010",{"$f":"VLOOKUP(TRIM(J4791),'Transactional Departments'!A:B,2,FALSE)","v":"CVIOG Director"},"51020010","18003","SCCOBRE531196CV","A01","",""]
["51","531",null,null,"MARTA    LEADERSHP DEV   JONES","1031RE531197","20000","13100","64026","51020010",{"$f":"VLOOKUP(TRIM(J4792),'Transactional Departments'!A:B,2,FALSE)","v":"CVIOG Director"},"51020010","18003","SMARTRE531197CV","A01","",""]
["51","531",null,null,"         20 DAY MAN DEV  JONES","1031RE531198","20000","13100","63118","51020010",{"$f":"VLOOKUP(TRIM(J4793),'Transactional Departments'!A:B,2,FALSE)","v":"CVIOG Director"},"51020010","18003","SCIMARE531198CV","A01","",""]
["51","531",null,null,"DOUGLAS  PROMO TESTING   FOSTE","1031RE531199","20000","13100","63000","51020010",{"$f":"VLOOKUP(TRIM(J4794),'Transactional Departments'!A:B,2,FALSE)","v":"CVIOG Director"},"51020010","18003","SXXXXRE531199CV","A01","",""]
["51","531",null,null,"GDOE     FINANCIAL MAN   JONES","1031RE531200","20000","13100","62012","51020010",{"$f":"VLOOKUP(TRIM(J4795),'Transactional Departments'!A:B,2,FALSE)","v":"CVIOG Director"},"51020010","18003","SGADERE531200CV","A01","",""]
["51","531",null,null,"GSWCC    CERT PROGRAM    JONES","1031RE531201","20000","13100","62048","51020010",{"$f":"VLOOKUP(TRIM(J4796),'Transactional Departments'!A:B,2,FALSE)","v":"CVIOG Director"},"51020010","18003","SGSWCRE531201CV","A01","",""]
["51","531",null,null,"         CHAMBLEE PD     FOSTE","1031RE531202","20000","13100","63098","51020010",{"$f":"VLOOKUP(TRIM(J4797),'Transactional Departments'!A:B,2,FALSE)","v":"CVIOG Director"},"51020010","18003","SCICHRE531202CV","A01","",""]
["51","531",null,null,"         CLASS & COMP    DAMAN","1031RE531203","20000","13100","63119","51020010",{"$f":"VLOOKUP(TRIM(J4798),'Transactional Departments'!A:B,2,FALSE)","v":"CVIOG Director"},"51020010","18003","SCITHRE531203CV","A01","",""]
["51","531",null,null,"         CHARTER SYSTEM  COOK ","1031RE531204","20000","13100","63041","51020010",{"$f":"VLOOKUP(TRIM(J4799),'Transactional Departments'!A:B,2,FALSE)","v":"CVIOG Director"},"51020010","18003","SCLCDRE531204CV","A01","",""]
["51","531",null,null,"ECBOC    POLICY & PROC   LASSE","1031RE531205","20000","13100","63063","51020010",{"$f":"VLOOKUP(TRIM(J4800),'Transactional Departments'!A:B,2,FALSE)","v":"CVIOG Director"},"51020010","18003","SCEARRE531205CV","A01","",""]
["51","531",null,null,"NFWF     CONNECTIVITY    JONES","1031RE531206","20000","13100","64402","51020010",{"$f":"VLOOKUP(TRIM(J4801),'Transactional Departments'!A:B,2,FALSE)","v":"CVIOG Director"},"51020010","18003","SNFWFRE531206CV","A01","",""]
["51","531",null,null,"         LAW ENFORCEMENT SIKES","1031RE531208","20000","13100","63114","51020010",{"$f":"VLOOKUP(TRIM(J4802),'Transactional Departments'!A:B,2,FALSE)","v":"CVIOG Director"},"51020010","18003","SCISTRE531208CV","A01","",""]
["51","531",null,null,"GDOE     CTAE PROGRAMS   WILSO","1031RE531209","20000","13100","62012","51020010",{"$f":"VLOOKUP(TRIM(J4803),'Transactional Departments'!A:B,2,FALSE)","v":"CVIOG Director"},"51020010","18003","SGADERE531209CV","A01","",""]
["51","531",null,null,"         TECH ASSIST     WILSO","1031RE531210","20000","13100","64215","51020010",{"$f":"VLOOKUP(TRIM(J4804),'Transactional Departments'!A:B,2,FALSE)","v":"CVIOG Director"},"51020010","18003","SMGRCRE531210CV","A01","",""]
["51","531",null,null,"         MANAGE DEV PRG  JONES","1031RE531211","20000","13100","63073","51020010",{"$f":"VLOOKUP(TRIM(J4805),'Transactional Departments'!A:B,2,FALSE)","v":"CVIOG Director"},"51020010","18003","SCCOVRE531211CV","A01","",""]
["51","531",null,null,"GDNR     CRS PARTICIPATN JONES","1031RE531212","20000","13100","62016","51020010",{"$f":"VLOOKUP(TRIM(J4806),'Transactional Departments'!A:B,2,FALSE)","v":"CVIOG Director"},"51020010","18003","SGDNRRE531212CV","A01","",""]
["51","531",null,null,"DSC      CLASS & COMP    DAMAN","1031RE531213","20000","13100","62054","51020010",{"$f":"VLOOKUP(TRIM(J4807),'Transactional Departments'!A:B,2,FALSE)","v":"CVIOG Director"},"51020010","18003","SDASCRE531213CV","A01","",""]
["51","531",null,null,"NSF      CHESAPEAKE BAY  JONES","1031RE531214","20000","13100","61023","51020010",{"$f":"VLOOKUP(TRIM(J4808),'Transactional Departments'!A:B,2,FALSE)","v":"CVIOG Director"},"51020010","18003","SNSFXRE531214CV","A01","",""]
["51","531",null,null,"GDOL     EXCEL           JONES","1031RE531215","20000","13100","62033","51020010",{"$f":"VLOOKUP(TRIM(J4809),'Transactional Departments'!A:B,2,FALSE)","v":"CVIOG Director"},"51020010","18003","SGADLRE531215CV","A01","",""]
["51","531",null,null,"GDNR/USDC2016-2020 309   JONES","1031RE531216","20000","13100","62016","51020010",{"$f":"VLOOKUP(TRIM(J4810),'Transactional Departments'!A:B,2,FALSE)","v":"CVIOG Director"},"51020010","18003","SGDNRRE531216CV","A01","",""]
["51","531",null,null,"GGC      DATA DASHBOARD  TANNE","1031RE531217","20000","13100","62060","51020010",{"$f":"VLOOKUP(TRIM(J4811),'Transactional Departments'!A:B,2,FALSE)","v":"CVIOG Director"},"51020010","18003","SGEGCRE531217CV","A01","",""]
["51","531",null,null,"         EXCEL PROGRAM   JONES","1031RE531219","20000","13100","63036","51020010",{"$f":"VLOOKUP(TRIM(J4812),'Transactional Departments'!A:B,2,FALSE)","v":"CVIOG Director"},"51020010","18003","SCCOBRE531219CV","A01","",""]
["51","531",null,null,"GDCA     REG COMM TRNG   JONES","1031RE531220","20000","13100","62011","51020010",{"$f":"VLOOKUP(TRIM(J4813),'Transactional Departments'!A:B,2,FALSE)","v":"CVIOG Director"},"51020010","18003","SGAFCRE531220CV","A01","",""]
["51","531",null,null,"         PROF DEV TRNING JONES","1031RE531221","20000","13100","62046","51020010",{"$f":"VLOOKUP(TRIM(J4814),'Transactional Departments'!A:B,2,FALSE)","v":"CVIOG Director"},"51020010","18003","SGRNCRE531221CV","A01","",""]
["51","531",null,null,"         STRATEGIC PLAN  JONES","1031RE531222","20000","13100","63047","51020010",{"$f":"VLOOKUP(TRIM(J4815),'Transactional Departments'!A:B,2,FALSE)","v":"CVIOG Director"},"51020010","18003","SCIALRE531222CV","A01","",""]
["51","531",null,null,"         CLASS AND COMP  DAMAN","1031RE531223","20000","13100","63004","51020010",{"$f":"VLOOKUP(TRIM(J4816),'Transactional Departments'!A:B,2,FALSE)","v":"CVIOG Director"},"51020010","18003","SCFAYRE531223CV","A01","",""]
["51","531",null,null,"GCA      STRATEGIC PLAN  JONES","1031RE531224","20000","13100","62059","51020010",{"$f":"VLOOKUP(TRIM(J4817),'Transactional Departments'!A:B,2,FALSE)","v":"CVIOG Director"},"51020010","18003","SGECDRE531224CV","A01","",""]
["51","531",null,null,"ACC      PROMO TESTING   FOSTE","1031RE531225","20000","13100","63002","51020010",{"$f":"VLOOKUP(TRIM(J4818),'Transactional Departments'!A:B,2,FALSE)","v":"CVIOG Director"},"51020010","18003","SCCLRRE531225CV","A01","",""]
["51","531",null,null,"GEFA     ENERGY SAVINGS  JONES","1031RE531226","20000","13100","62064","51020010",{"$f":"VLOOKUP(TRIM(J4819),'Transactional Departments'!A:B,2,FALSE)","v":"CVIOG Director"},"51020010","18003","SGEFARE531226CV","A01","",""]
["51","531",null,null,"         SUCCEED SUPER 16JONES","1031RE531228","20000","13100","63043","51020010",{"$f":"VLOOKUP(TRIM(J4820),'Transactional Departments'!A:B,2,FALSE)","v":"CVIOG Director"},"51020010","18003","SCISARE531228CV","A01","",""]
["51","531",null,null,"GPLS     TRAINING        JONES","1031RE531230","20000","13100","62058","51020010",{"$f":"VLOOKUP(TRIM(J4821),'Transactional Departments'!A:B,2,FALSE)","v":"CVIOG Director"},"51020010","18003","SGPLSRE531230CV","A01","",""]
["51","531",null,null,"         PROMO TESTING   FOSTE","1031RE531231","20000","13100","63015","51020010",{"$f":"VLOOKUP(TRIM(J4822),'Transactional Departments'!A:B,2,FALSE)","v":"CVIOG Director"},"51020010","18003","SCHTMRE531231CV","A01","",""]
["51","531",null,null,"GDBHD/NIHYOUTH TOBACCO   WRIGH","1031RE531232","20000","13100","62061","51020010",{"$f":"VLOOKUP(TRIM(J4823),'Transactional Departments'!A:B,2,FALSE)","v":"CVIOG Director"},"51020010","18003","SGDBHRE531232CV","A01","",""]
["51","531",null,null,"         MANAGER SEARCH  LASSE","1031RE531233","20000","13100","63045","51020010",{"$f":"VLOOKUP(TRIM(J4824),'Transactional Departments'!A:B,2,FALSE)","v":"CVIOG Director"},"51020010","18003","SCMORRE531233CV","A01","",""]
["51","531",null,null,"         FINANCIAL MPACT SIKES","1031RE531234","20000","13100","63115","51020010",{"$f":"VLOOKUP(TRIM(J4825),'Transactional Departments'!A:B,2,FALSE)","v":"CVIOG Director"},"51020010","18003","SCIAVRE531234CV","A01","",""]
["51","531",null,null,"GDBHD    STAFF & COMMUN  JOHNS","1031RE531235","20000","13100","62061","51020010",{"$f":"VLOOKUP(TRIM(J4826),'Transactional Departments'!A:B,2,FALSE)","v":"CVIOG Director"},"51020010","18003","SGDBHRE531235CV","A01","",""]
["51","531",null,null,"GSSA     PROF DEV PRGRM  JONES","1031RE531236","20000","13100","64303","51020010",{"$f":"VLOOKUP(TRIM(J4827),'Transactional Departments'!A:B,2,FALSE)","v":"CVIOG Director"},"51020010","18003","SGSSARE531236CV","A01","",""]
["51","531",null,null,"         GCCMA TRAINING  JONES","1031RE531237","20000","13100","64305","51020010",{"$f":"VLOOKUP(TRIM(J4828),'Transactional Departments'!A:B,2,FALSE)","v":"CVIOG Director"},"51020010","18003","SGCCMRE531237CV","A01","",""]
["51","531",null,null,"         GPLS MANAGEMENT JONES","1031RE531238","20000","13100","62058","51020010",{"$f":"VLOOKUP(TRIM(J4829),'Transactional Departments'!A:B,2,FALSE)","v":"CVIOG Director"},"51020010","18003","SGPLSRE531238CV","A01","",""]
["51","531",null,null,"         FIRE SERVICE    SIKES","1031RE531239","20000","13100","63103","51020010",{"$f":"VLOOKUP(TRIM(J4830),'Transactional Departments'!A:B,2,FALSE)","v":"CVIOG Director"},"51020010","18003","SCIBARE531239CV","A01","",""]
["51","531",null,null,"GGFOA    2017 WEBINARS   JONES","1031RE531240","20000","13100","64322","51020010",{"$f":"VLOOKUP(TRIM(J4831),'Transactional Departments'!A:B,2,FALSE)","v":"CVIOG Director"},"51020010","18003","SGGFARE531240CV","A01","",""]
["51","531",null,null,"GDPS     PROMO TESTING   FOSTE","1031RE531241","20000","13100","62040","51020010",{"$f":"VLOOKUP(TRIM(J4832),'Transactional Departments'!A:B,2,FALSE)","v":"CVIOG Director"},"51020010","18003","SGDPSRE531241CV","A01","",""]
["51","531",null,null,"         SUPPORT SERVICE WILSO","1031RE531242","20000","13100","63118","51020010",{"$f":"VLOOKUP(TRIM(J4833),'Transactional Departments'!A:B,2,FALSE)","v":"CVIOG Director"},"51020010","18003","SCIMARE531242CV","A01","",""]
["51","531",null,null,"BOR      GPLS STAFF DEV  JONES","1031RE531243","20000","13100","62020","51020010",{"$f":"VLOOKUP(TRIM(J4834),'Transactional Departments'!A:B,2,FALSE)","v":"CVIOG Director"},"51020010","18003","SGBORRE531243CV","A01","",""]
["51","531",null,null,"GMA      TRAINING 2017   JONES","1031RE531244","20000","13100","64299","51020010",{"$f":"VLOOKUP(TRIM(J4835),'Transactional Departments'!A:B,2,FALSE)","v":"CVIOG Director"},"51020010","18003","SGAMARE531244CV","A01","",""]
["51","531",null,null,"BOR      GALILEO PLAN    JONES","1031RE531245","20000","13100","62020","51020010",{"$f":"VLOOKUP(TRIM(J4836),'Transactional Departments'!A:B,2,FALSE)","v":"CVIOG Director"},"51020010","18003","SGBORRE531245CV","A01","",""]
["51","531",null,null,"GIT      PROMO TESTING   FOSTE","1031RE531246","20000","13100","62021","51020010",{"$f":"VLOOKUP(TRIM(J4837),'Transactional Departments'!A:B,2,FALSE)","v":"CVIOG Director"},"51020010","18003","SGAITRE531246CV","A01","",""]
["51","531",null,null,"ACCG     TRAINING 2017   JONES","1031RE531247","20000","13100","64302","51020010",{"$f":"VLOOKUP(TRIM(J4838),'Transactional Departments'!A:B,2,FALSE)","v":"CVIOG Director"},"51020010","18003","SASCGRE531247CV","A01","",""]
["51","531",null,null,"         SUPERIOR COURT  JONES","1031RE531248","20000","13100","62050","51020010",{"$f":"VLOOKUP(TRIM(J4839),'Transactional Departments'!A:B,2,FALSE)","v":"CVIOG Director"},"51020010","18003","SVARSRE531248CV","A01","",""]
["51","531",null,null,"GDECL/NIHSTAKEHOLDR MEET TANNE","1031RE531249","20000","13100","62056","51020010",{"$f":"VLOOKUP(TRIM(J4840),'Transactional Departments'!A:B,2,FALSE)","v":"CVIOG Director"},"51020010","18003","SGDECRE531249CV","A01","",""]
["51","531",null,null,"GDBHD    FY17 PMQIA      JOHNS","1031RE531250","20000","13100","62061","51020010",{"$f":"VLOOKUP(TRIM(J4841),'Transactional Departments'!A:B,2,FALSE)","v":"CVIOG Director"},"51020010","18003","SGDBHRE531250CV","A01","",""]
["51","531",null,null,"GDBHD    FY17 HLTH WORK  JOHNS","1031RE531251","20000","13100","62061","51020010",{"$f":"VLOOKUP(TRIM(J4842),'Transactional Departments'!A:B,2,FALSE)","v":"CVIOG Director"},"51020010","18003","SGDBHRE531251CV","A01","",""]
["51","531",null,null,"GDBHD    FY17 BEHAV HLTH JOHNS","1031RE531252","20000","13100","62061","51020010",{"$f":"VLOOKUP(TRIM(J4843),'Transactional Departments'!A:B,2,FALSE)","v":"CVIOG Director"},"51020010","18003","SGDBHRE531252CV","A01","",""]
["51","531",null,null,"         GWINNETT LDRSHP JONES","1031RE531253","20000","13100","63014","51020010",{"$f":"VLOOKUP(TRIM(J4844),'Transactional Departments'!A:B,2,FALSE)","v":"CVIOG Director"},"51020010","18003","SCGWIRE531253CV","A01","",""]
["51","531",null,null,"GDBHD    FY17 ADMIN OFCS JOHNS","1031RE531254","20000","13100","62061","51020010",{"$f":"VLOOKUP(TRIM(J4845),'Transactional Departments'!A:B,2,FALSE)","v":"CVIOG Director"},"51020010","18003","SGDBHRE531254CV","A01","",""]
["51","531",null,null,"GDBHD    CONSUMER SRVYS  WRIGH","1031RE531255","20000","13100","62061","51020010",{"$f":"VLOOKUP(TRIM(J4846),'Transactional Departments'!A:B,2,FALSE)","v":"CVIOG Director"},"51020010","18003","SGDBHRE531255CV","A01","",""]
["51","531",null,null,"         STRATEGIC PLAN  TANNE","1031RE531256","20000","13100","64374","51020010",{"$f":"VLOOKUP(TRIM(J4847),'Transactional Departments'!A:B,2,FALSE)","v":"CVIOG Director"},"51020010","18003","SLINKRE531256CV","A01","",""]
["51","531",null,null,"GDBHD    HOSPITAL OPER   JOHNS","1031RE531257","20000","13100","62061","51020010",{"$f":"VLOOKUP(TRIM(J4848),'Transactional Departments'!A:B,2,FALSE)","v":"CVIOG Director"},"51020010","18003","SGDBHRE531257CV","A01","",""]
["51","531",null,null,"         CVB STRUCTURE   WATKI","1031RE531258","20000","13100","63047","51020010",{"$f":"VLOOKUP(TRIM(J4849),'Transactional Departments'!A:B,2,FALSE)","v":"CVIOG Director"},"51020010","18003","SCIALRE531258CV","A01","",""]
["51","531",null,null,"SRTA     MANAGMENT ACAD  JONES","1031RE531259","20000","13100","62070","51020010",{"$f":"VLOOKUP(TRIM(J4850),'Transactional Departments'!A:B,2,FALSE)","v":"CVIOG Director"},"51020010","18003","SSRTARE531259CV","A01","",""]
["51","531",null,null,"         CLASS & COMPEN  DAMAN","1031RE531260","20000","13100","63122","51020010",{"$f":"VLOOKUP(TRIM(J4851),'Transactional Departments'!A:B,2,FALSE)","v":"CVIOG Director"},"51020010","18003","SSYLVRE531260CV","A01","",""]
["51","531",null,null,"GDOC     PROMO TESTING   FOSTE","1031RE531261","20000","13100","62035","51020010",{"$f":"VLOOKUP(TRIM(J4852),'Transactional Departments'!A:B,2,FALSE)","v":"CVIOG Director"},"51020010","18003","SGCORRE531261CV","A01","",""]
["51","531",null,null,"CDPH     PROF DEV PRGM 5 JONES","1031RE531262","20000","13100","63123","51020010",{"$f":"VLOOKUP(TRIM(J4853),'Transactional Departments'!A:B,2,FALSE)","v":"CVIOG Director"},"51020010","18003","SC&DPRE531262CV","A01","",""]
["51","531",null,null,"         CLASS & COMP    DAMAN","1031RE531263","20000","13100","63006","51020010",{"$f":"VLOOKUP(TRIM(J4854),'Transactional Departments'!A:B,2,FALSE)","v":"CVIOG Director"},"51020010","18003","SGLENRE531263CV","A01","",""]
["51","531",null,null,"GSU/USDC SALTWATER WRKSP JONES","1031RE531264","20000","13100","62034","51020010",{"$f":"VLOOKUP(TRIM(J4855),'Transactional Departments'!A:B,2,FALSE)","v":"CVIOG Director"},"51020010","18003","SGASORE531264CV","A01","",""]
["51","531",null,null,"         CLASS & COMPEN  DAMAN","1031RE531265","20000","13100","63124","51020010",{"$f":"VLOOKUP(TRIM(J4856),'Transactional Departments'!A:B,2,FALSE)","v":"CVIOG Director"},"51020010","18003","SFLWRRE531265CV","A01","",""]
["51","531",null,null,"CJCC     GOV360 ASSESS   JONES","1031RE531266","20000","13100","62065","51020010",{"$f":"VLOOKUP(TRIM(J4857),'Transactional Departments'!A:B,2,FALSE)","v":"CVIOG Director"},"51020010","18003","SCRJCRE531266CV","A01","",""]
["51","531",null,null,"FC/USDJ  MENTAL HLTH     TANNE","1031RE531267","20000","13100","63005","51020010",{"$f":"VLOOKUP(TRIM(J4858),'Transactional Departments'!A:B,2,FALSE)","v":"CVIOG Director"},"51020010","18003","SCFULRE531267CV","A01","",""]
["51","531",null,null,"GDNR/USDCFACT SHEETS     JONES","1031RE531268","20000","13100","62016","51020010",{"$f":"VLOOKUP(TRIM(J4859),'Transactional Departments'!A:B,2,FALSE)","v":"CVIOG Director"},"51020010","18003","SGDNRRE531268CV","A01","",""]
["51","531",null,null,"GDED     2017 WIOA CONV  WILSO","1031RE531270","20000","13100","62059","51020010",{"$f":"VLOOKUP(TRIM(J4860),'Transactional Departments'!A:B,2,FALSE)","v":"CVIOG Director"},"51020010","18003","SGECDRE531270CV","A01","",""]
["51","531",null,null,"HCPD     2017 PROMO TEST FOSTE","1031RE531271","20000","13100","63109","51020010",{"$f":"VLOOKUP(TRIM(J4861),'Transactional Departments'!A:B,2,FALSE)","v":"CVIOG Director"},"51020010","18003","SHCPDRE531271CV","A01","",""]
["51","531",null,null,"ADDA     IMPACT STUDY    CLARK","1031RE531272","20000","13100","64227","51020010",{"$f":"VLOOKUP(TRIM(J4862),'Transactional Departments'!A:B,2,FALSE)","v":"CVIOG Director"},"51020010","18003","SADDARE531272CV","A01","",""]
["51","531",null,null,"GDHS     EXEC LEADERSHIP JONES","1031RE531273","20000","13100","62015","51020010",{"$f":"VLOOKUP(TRIM(J4863),'Transactional Departments'!A:B,2,FALSE)","v":"CVIOG Director"},"51020010","18003","SGHUMRE531273CV","A01","",""]
["51","531",null,null,"ACC      PROMO TESTING   FOSTE","1031RE531274","20000","13100","63001","51020010",{"$f":"VLOOKUP(TRIM(J4864),'Transactional Departments'!A:B,2,FALSE)","v":"CVIOG Director"},"51020010","18003","SCOOARE531274CV","A01","",""]
["51","531",null,null,"PCPD     PROMO TESTING   FOSTE","1031RE531275","20000","13100","63009","51020010",{"$f":"VLOOKUP(TRIM(J4865),'Transactional Departments'!A:B,2,FALSE)","v":"CVIOG Director"},"51020010","18003","SPCHTRE531275CV","A01","",""]
["51","531",null,null,"         LEGACY PRESERV  WATKI","1031RE531276","20000","13100","63051","51020010",{"$f":"VLOOKUP(TRIM(J4866),'Transactional Departments'!A:B,2,FALSE)","v":"CVIOG Director"},"51020010","18003","SLRNCRE531276CV","A01","",""]
["51","531",null,null,"UPBOC    CLASS & COMP    DAMAN","1031RE531277","20000","13100","63127","51020010",{"$f":"VLOOKUP(TRIM(J4867),'Transactional Departments'!A:B,2,FALSE)","v":"CVIOG Director"},"51020010","18003","SUPSNRE531277CV","A01","",""]
["51","531",null,null,"GSSU     CLASS & COMP    DAMAN","1031RE531278","20000","13100","62038","51020010",{"$f":"VLOOKUP(TRIM(J4868),'Transactional Departments'!A:B,2,FALSE)","v":"CVIOG Director"},"51020010","18003","SGSWSRE531278CV","A01","",""]
["51","531",null,null,"THOMSON  CLASS & COMP    DAMAN","1031RE531279","20000","13100","63025","51020010",{"$f":"VLOOKUP(TRIM(J4869),'Transactional Departments'!A:B,2,FALSE)","v":"CVIOG Director"},"51020010","18003","STMSNRE531279CV","A01","",""]
["51","531",null,null,"GDED     RE531-270 PI    WILSO","1031RE531280","20000","13100","62059","51020010",{"$f":"VLOOKUP(TRIM(J4870),'Transactional Departments'!A:B,2,FALSE)","v":"CVIOG Director"},"51020010","18003","SGECDRE531280CV","A01","",""]
["51","531",null,null,"         PROMO TESTING   FOSTE","1031RE531281","20000","13100","63112","51020010",{"$f":"VLOOKUP(TRIM(J4871),'Transactional Departments'!A:B,2,FALSE)","v":"CVIOG Director"},"51020010","18003","SCISSRE531281CV","A01","",""]
["51","531",null,null,"         CONSOLIDATION   VARSA","1031RE531282","20000","13100","63055","51020010",{"$f":"VLOOKUP(TRIM(J4872),'Transactional Departments'!A:B,2,FALSE)","v":"CVIOG Director"},"51020010","18003","SEVANRE531282CV","A01","",""]
["51","531",null,null,"         EXEC LDRSHP PRG JONES","1031RE531284","20000","13100","63005","51020010",{"$f":"VLOOKUP(TRIM(J4873),'Transactional Departments'!A:B,2,FALSE)","v":"CVIOG Director"},"51020010","18003","SCFULRE531284CV","A01","",""]
["51","531",null,null,"         BALDWIN CO BOC  LASSE","1031RE531285","20000","13100","63029","51020010",{"$f":"VLOOKUP(TRIM(J4874),'Transactional Departments'!A:B,2,FALSE)","v":"CVIOG Director"},"51020010","18003","SBALDRE531285CV","A01","",""]
["51","531",null,null,"DOUGHERTYUGA_CO ADMIN____LASSE","1031RE531286","20000","13100","63071","51020010",{"$f":"VLOOKUP(TRIM(J4875),'Transactional Departments'!A:B,2,FALSE)","v":"CVIOG Director"},"51020010","18003","SDRTYRE531286CV","A01","",""]
["51","531",null,null,"GCG      POLICE SVCS     SANFO","1031RE531287","20000","13100","63014","51020010",{"$f":"VLOOKUP(TRIM(J4876),'Transactional Departments'!A:B,2,FALSE)","v":"CVIOG Director"},"51020010","18003","SCGWIRE531287CV","A01","",""]
["51","531",null,null,"         ACCOUNTABILITY  CLARK","1031RE531288","20000","13100","62050","51020010",{"$f":"VLOOKUP(TRIM(J4877),'Transactional Departments'!A:B,2,FALSE)","v":"CVIOG Director"},"51020010","18003","SVARSRE531288CV","A01","",""]
["51","531",null,null,"CJCC     GA CARES EVAL   WRIGH","1031RE531289","20000","13100","62065","51020010",{"$f":"VLOOKUP(TRIM(J4878),'Transactional Departments'!A:B,2,FALSE)","v":"CVIOG Director"},"51020010","18003","SCRJCRE531289CV","A01","",""]
["51","531",null,null,"GDHS/NIH TECH SUPPORT    WRIGH","1031RE531290","20000","13100","62015","51020010",{"$f":"VLOOKUP(TRIM(J4879),'Transactional Departments'!A:B,2,FALSE)","v":"CVIOG Director"},"51020010","18003","SGHUMRE531290CV","A01","",""]
["51","531",null,null,"         COMPEN ANALYSIS DAMAN","1031RE531291","20000","13100","62020","51020010",{"$f":"VLOOKUP(TRIM(J4880),'Transactional Departments'!A:B,2,FALSE)","v":"CVIOG Director"},"51020010","18003","SGBORRE531291CV","A01","",""]
["51","531",null,null,"GDJJ     RF COMMUN SERV  WRIGH","1031RE531292","20000","13100","62042","51020010",{"$f":"VLOOKUP(TRIM(J4881),'Transactional Departments'!A:B,2,FALSE)","v":"CVIOG Director"},"51020010","18400","RGADJRE531292CV","A01","",""]
["51","531",null,null,"         PROMO TESTING   FOSTE","1031RE531293","20000","13100","63018","51020010",{"$f":"VLOOKUP(TRIM(J4882),'Transactional Departments'!A:B,2,FALSE)","v":"CVIOG Director"},"51020010","18003","SDALTRE531293CV","A01","",""]
["51","531",null,null,"         COURT TRANSCRPT SIKES","1031RE531294","20000","13100","62029","51020010",{"$f":"VLOOKUP(TRIM(J4883),'Transactional Departments'!A:B,2,FALSE)","v":"CVIOG Director"},"51020010","18003","SJCOGRE531294CV","A01","",""]
["51","531",null,null,"GDOE     CTAE PROGRAMS   WILSO","1031RE531295","20000","13100","62012","51020010",{"$f":"VLOOKUP(TRIM(J4884),'Transactional Departments'!A:B,2,FALSE)","v":"CVIOG Director"},"51020010","18003","SGADERE531295CV","A01","",""]
["51","531",null,null,"GGA      LEGISLATIVE SRV MEADO","1031RE531296","20000","13100","62027","51020010",{"$f":"VLOOKUP(TRIM(J4885),'Transactional Departments'!A:B,2,FALSE)","v":"CVIOG Director"},"51020010","18003","SGGASRE531296CV","A01","",""]
["51","531",null,null,"GDOAA    COMPLIANCE      SIKES","1031RE531297","20000","13100","62018","51020010",{"$f":"VLOOKUP(TRIM(J4886),'Transactional Departments'!A:B,2,FALSE)","v":"CVIOG Director"},"51020010","18003","SGDOARE531297CV","A01","",""]
["51","531",null,null,"GCSU     HR DEPARTMENT   LASSE","1031RE531298","20000","13100","62039","51020010",{"$f":"VLOOKUP(TRIM(J4887),'Transactional Departments'!A:B,2,FALSE)","v":"CVIOG Director"},"51020010","18003","SGCSURE531298CV","A01","",""]
["51","531",null,null,"GGFOA    FY18 WEBINARS   JONES","1031RE531299","20000","13100","64322","51020010",{"$f":"VLOOKUP(TRIM(J4888),'Transactional Departments'!A:B,2,FALSE)","v":"CVIOG Director"},"51020010","18003","SGGFARE531299CV","A01","",""]
["51","531",null,null,"         CLASS & COMP    DAMAN","1031RE531300","20000","13100","63129","51020010",{"$f":"VLOOKUP(TRIM(J4889),'Transactional Departments'!A:B,2,FALSE)","v":"CVIOG Director"},"51020010","18003","SRICHRE531300CV","A01","",""]
["51","531",null,null,"SPD      PROMO TESTING   FOSTE","1031RE531301","20000","13100","63130","51020010",{"$f":"VLOOKUP(TRIM(J4890),'Transactional Departments'!A:B,2,FALSE)","v":"CVIOG Director"},"51020010","18003","SSMPDRE531301CV","A01","",""]
["51","531",null,null,"GOPB     FY18 NOTES      MEADO","1031RE531302","20000","13100","62019","51020010",{"$f":"VLOOKUP(TRIM(J4891),'Transactional Departments'!A:B,2,FALSE)","v":"CVIOG Director"},"51020010","18003","SGOPBRE531302CV","A01","",""]
["51","531",null,null,"GDHS     LEADERSHIP ACAD JONES","1031RE531303","20000","13100","62015","51020010",{"$f":"VLOOKUP(TRIM(J4892),'Transactional Departments'!A:B,2,FALSE)","v":"CVIOG Director"},"51020010","18003","SGHUMRE531303CV","A01","",""]
["51","531",null,null,"SFD      PROMO TESTING   FOSTE","1031RE531304","20000","13100","63131","51020010",{"$f":"VLOOKUP(TRIM(J4893),'Transactional Departments'!A:B,2,FALSE)","v":"CVIOG Director"},"51020010","18003","SSMFDRE531304CV","A01","",""]
["51","531",null,null,"FULTON CORF FY18 PUBLIC MJONES","1031RE531305","20000","13100","63005","51020010",{"$f":"VLOOKUP(TRIM(J4894),'Transactional Departments'!A:B,2,FALSE)","v":"CVIOG Director"},"51020010","18400","RCFULRE531305CV","A01","",""]
["51","531",null,null,"GDED     HDCI SECTOR     WILSO","1031RE531306","20000","13100","62059","51020010",{"$f":"VLOOKUP(TRIM(J4895),'Transactional Departments'!A:B,2,FALSE)","v":"CVIOG Director"},"51020010","18003","SGECDRE531306CV","A01","",""]
["51","531",null,null,"JCKSN CO RF EMERGNCY MED BAGGE","1031RE531307","20000","13100","63059","51020010",{"$f":"VLOOKUP(TRIM(J4896),'Transactional Departments'!A:B,2,FALSE)","v":"CVIOG Director"},"51020010","18400","RJACKRE531307CV","A01","",""]
["51","531",null,null,"GCSU     ORGANIZE REVIEW SANFO","1031RE531308","20000","13100","62039","51020010",{"$f":"VLOOKUP(TRIM(J4897),'Transactional Departments'!A:B,2,FALSE)","v":"CVIOG Director"},"51020010","18003","SGCSURE531308CV","A01","",""]
["51","531",null,null,"         RF CHRTR REVIEW BAGGE","1031RE531309","20000","13100","63000","51020010",{"$f":"VLOOKUP(TRIM(J4898),'Transactional Departments'!A:B,2,FALSE)","v":"CVIOG Director"},"51020010","18003","SXXXXRE531309CV","A01","",""]
["51","531",null,null,"GGC      RF DATA DASHBRD TANNE","1031RE531311","20000","13100","62060","51020010",{"$f":"VLOOKUP(TRIM(J4899),'Transactional Departments'!A:B,2,FALSE)","v":"CVIOG Director"},"51020010","18400","RGEGCRE531311CV","A01","",""]
["51","531",null,null,"         RF ECON DEVELOP BAGGE","1031RE531312","20000","13100","63136","51020010",{"$f":"VLOOKUP(TRIM(J4900),'Transactional Departments'!A:B,2,FALSE)","v":"CVIOG Director"},"51020010","18003","SLOVERE531312CV","A01","",""]
["51","531",null,null,"         RF LDRSHIP PROG JONES","1031RE531314","20000","13100","63123","51020010",{"$f":"VLOOKUP(TRIM(J4901),'Transactional Departments'!A:B,2,FALSE)","v":"CVIOG Director"},"51020010","18003","SC&DPRE531314CV","A01","",""]
["51","531",null,null,"         RF EAST POINT SAAS JO","1031RE531315","20000","13100","63138","51020010",{"$f":"VLOOKUP(TRIM(J4902),'Transactional Departments'!A:B,2,FALSE)","v":"CVIOG Director"},"51020010","18003","SESTPRE531315CV","A01","",""]
["51","531",null,null,"CLAYTON  RF ZONING REVIS PIPPI","1031RE531316","20000","13100","63137","51020010",{"$f":"VLOOKUP(TRIM(J4903),'Transactional Departments'!A:B,2,FALSE)","v":"CVIOG Director"},"51020010","18400","RCLAYRE531316CV","A01","",""]
["51","531",null,null,"         RF COUNTY MANAG LASSE","1031RE531317","20000","13100","63077","51020010",{"$f":"VLOOKUP(TRIM(J4904),'Transactional Departments'!A:B,2,FALSE)","v":"CVIOG Director"},"51020010","18003","SCBRYRE531317CV","A01","",""]
["51","531",null,null,"NORCROSS RF HOUSING SUPP BAGGE","1031RE531318","20000","13100","63133","51020010",{"$f":"VLOOKUP(TRIM(J4905),'Transactional Departments'!A:B,2,FALSE)","v":"CVIOG Director"},"51020010","18400","RNORCRE531318CV","A01","",""]
["51","531",null,null,"GVRA     RF EXEC LDRSHIP JONES","1031RE531319","20000","13100","62067","51020010",{"$f":"VLOOKUP(TRIM(J4906),'Transactional Departments'!A:B,2,FALSE)","v":"CVIOG Director"},"51020010","18400","RGVRARE531319CV","A01","",""]
["51","531",null,null,"HALL     RF STRATEGIC    BAGGE","1031RE531320","20000","13100","63021","51020010",{"$f":"VLOOKUP(TRIM(J4907),'Transactional Departments'!A:B,2,FALSE)","v":"CVIOG Director"},"51020010","18400","RHALLRE531320CV","A01","",""]
["51","531",null,null,"COLUMBUS PROMO TEST      FOSTE","1031RE531321","20000","13100","63013","51020010",{"$f":"VLOOKUP(TRIM(J4908),'Transactional Departments'!A:B,2,FALSE)","v":"CVIOG Director"},"51020010","18003","SCICORE531321CV","A01","",""]
["51","531",null,null,"         RF DEANNEXATION BAGGE","1031RE531322","20000","13100","63114","51020010",{"$f":"VLOOKUP(TRIM(J4909),'Transactional Departments'!A:B,2,FALSE)","v":"CVIOG Director"},"51020010","18003","SCISTRE531322CV","A01","",""]
["51","531",null,null,"GBI      RF PROMO TESTNG FOSTE","1031RE531323","20000","13100","62049","51020010",{"$f":"VLOOKUP(TRIM(J4910),'Transactional Departments'!A:B,2,FALSE)","v":"CVIOG Director"},"51020010","18400","RGABIRE531323CV","A01","",""]
["51","531",null,null,"GDBHD    RF SYNAR CONTRACWRIGH","1031RE531325","20000","13100","62061","51020010",{"$f":"VLOOKUP(TRIM(J4911),'Transactional Departments'!A:B,2,FALSE)","v":"CVIOG Director"},"51020010","18400","RGDBHRE531325CV","A01","",""]
["51","531",null,null,"CHATHAM  RF PROMO TEST   FOSTE","1031RE531327","20000","13100","63015","51020010",{"$f":"VLOOKUP(TRIM(J4912),'Transactional Departments'!A:B,2,FALSE)","v":"CVIOG Director"},"51020010","18400","RCHTMRE531327CV","A01","",""]
["51","531",null,null,"TRS      RF STRAT PLAN   JONES","1031RE531328","20000","13100","62000","51020010",{"$f":"VLOOKUP(TRIM(J4913),'Transactional Departments'!A:B,2,FALSE)","v":"CVIOG Director"},"51020010","18400","RXXXXRE531328CV","A01","",""]
["51","531",null,null,"TREUTLEN RF EXEC SEARCH  LASSE","1031RE531329","20000","13100","63066","51020010",{"$f":"VLOOKUP(TRIM(J4914),'Transactional Departments'!A:B,2,FALSE)","v":"CVIOG Director"},"51020010","18400","RCTRERE531329CV","A01","",""]
["51","531",null,null,"GDPS     RF PROMO TEST   FOSTE","1031RE531330","20000","13100","62040","51020010",{"$f":"VLOOKUP(TRIM(J4915),'Transactional Departments'!A:B,2,FALSE)","v":"CVIOG Director"},"51020010","18400","RGDPSRE531330CV","A01","",""]
["51","531",null,null,"         RF COLLEGE PLAN WILSO","1031RE531331","20000","13100","63000","51020010",{"$f":"VLOOKUP(TRIM(J4916),'Transactional Departments'!A:B,2,FALSE)","v":"CVIOG Director"},"51020010","18003","SXXXXRE531331CV","A01","",""]
["51","531",null,null,"GPDC     RF LEADERSHIP   JONES","1031RE531332","20000","13100","62000","51020010",{"$f":"VLOOKUP(TRIM(J4917),'Transactional Departments'!A:B,2,FALSE)","v":"CVIOG Director"},"51020010","18400","RXXXXRE531332CV","A01","",""]
["51","531",null,null,"ECG      RF EAAS PROGRAM JONES","1031RE531337","20000","13100","64213","51020010",{"$f":"VLOOKUP(TRIM(J4918),'Transactional Departments'!A:B,2,FALSE)","v":"CVIOG Director"},"51020010","18400","RELCGRE531337CV","A01","",""]
["51","531",null,null,"GCADV    RF DOM VIOLENCE DEMEE","1031RE531340","20000","13100","64000","51020010",{"$f":"VLOOKUP(TRIM(J4919),'Transactional Departments'!A:B,2,FALSE)","v":"CVIOG Director"},"51020010","18400","RXXXXRE531340CV","A01","",""]
["51","531",null,null,"ECG      RF EDGE DEVELOP JONES","1031RE531343","20000","13100","64213","51020010",{"$f":"VLOOKUP(TRIM(J4920),'Transactional Departments'!A:B,2,FALSE)","v":"CVIOG Director"},"51020010","18400","RELCGRE531343CV","A01","",""]
["51","538",null,null,"MULTI    GENERAL GIS    MMCRAE","1031RE538113","20000","13100","64089","51020030",{"$f":"VLOOKUP(TRIM(J4921),'Transactional Departments'!A:B,2,FALSE)","v":"CVIOG ITOS Division"},"51020030","18003","SAPPRRE538113CV","A01","",""]
["51","538",null,null,"EPD      ONLINE SYSTEM   MCRAE","1031RE538114","20000","13100","62052","51020030",{"$f":"VLOOKUP(TRIM(J4922),'Transactional Departments'!A:B,2,FALSE)","v":"CVIOG ITOS Division"},"51020030","18003","SGEPDRE538114CV","A01","",""]
["51","538",null,null,"         GEN GIS SERVICE MCRAE","1031RE538116","20000","13100","63094","51020030",{"$f":"VLOOKUP(TRIM(J4923),'Transactional Departments'!A:B,2,FALSE)","v":"CVIOG ITOS Division"},"51020030","18003","SCBUTRE538116CV","A01","",""]
["51","538",null,null,"AOC      DATA ANALYTICS  MCRAE","1031RE538118","20000","13100","62031","51020030",{"$f":"VLOOKUP(TRIM(J4924),'Transactional Departments'!A:B,2,FALSE)","v":"CVIOG ITOS Division"},"51020030","18003","SADOCRE538118CV","A01","",""]
["51","538",null,null,"GIS      STRATEGIC INIT  MCRAE","1031RE538119","20000","13100","62021","51020030",{"$f":"VLOOKUP(TRIM(J4925),'Transactional Departments'!A:B,2,FALSE)","v":"CVIOG ITOS Division"},"51020030","18003","SGAITRE538119CV","A01","",""]
["51","538",null,null,"USAID    GEOSPATIAL DATA MCRAE","1031RE538120","20000","13100","61028","51020030",{"$f":"VLOOKUP(TRIM(J4926),'Transactional Departments'!A:B,2,FALSE)","v":"CVIOG ITOS Division"},"51020030","18003","SUSADRE538120CV","A01","",""]
["51","538",null,null,"GSAO     SAO QLIK VISUAL MCRAE","1031RE538122","20000","13100","62013","51020030",{"$f":"VLOOKUP(TRIM(J4927),'Transactional Departments'!A:B,2,FALSE)","v":"CVIOG ITOS Division"},"51020030","18003","SGSAORE538122CV","A01","",""]
["51","538",null,null,"GIT      RF STRATEGIC IN MCRAE","1031RE538123","20000","13100","62021","51020030",{"$f":"VLOOKUP(TRIM(J4928),'Transactional Departments'!A:B,2,FALSE)","v":"CVIOG ITOS Division"},"51020030","18400","RGAITRE538123CV","A01","",""]
["51","746",null,null,"MBL/NSF  RF PLUM ISLAND  HOPKI","1021RR746054","20000","12100","64157","51050200",{"$f":"VLOOKUP(TRIM(J4929),'Transactional Departments'!A:B,2,FALSE)","v":"Sea Grant Administration"},"51050200","18400","RMBIORR746054CV","A01","",""]
["51","746",null,null,"USDC     RF M/PA-1       HOPKI","1021RR746075","20000","12100","61009","51050200",{"$f":"VLOOKUP(TRIM(J4930),'Transactional Departments'!A:B,2,FALSE)","v":"Sea Grant Administration"},"51050200","18400","RUSDCRR746075CV","A01","",""]
["51","746",null,null,"USDC     RF M/PD-2       HOPKI","1021RR746076","20000","12100","61009","51050200",{"$f":"VLOOKUP(TRIM(J4931),'Transactional Departments'!A:B,2,FALSE)","v":"Sea Grant Administration"},"51050200","18400","RUSDCRR746076CV","A01","",""]
["51","746",null,null,"USDC     RF C/COM-1      HOPKI","1021RR746077","20000","12100","61009","51050200",{"$f":"VLOOKUP(TRIM(J4932),'Transactional Departments'!A:B,2,FALSE)","v":"Sea Grant Administration"},"51050200","18400","RUSDCRR746077CV","A01","",""]
["51","746",null,null,"USDC     RF O/HRC-1      HOPKI","1021RR746078","20000","12100","61009","51050200",{"$f":"VLOOKUP(TRIM(J4933),'Transactional Departments'!A:B,2,FALSE)","v":"Sea Grant Administration"},"51050200","18400","RUSDCRR746078CV","A01","",""]
["51","746",null,null,"USDC     RF R/SSS-SUBS   HOPKI","1021RR746079","20000","12100","61009","51050200",{"$f":"VLOOKUP(TRIM(J4934),'Transactional Departments'!A:B,2,FALSE)","v":"Sea Grant Administration"},"51050200","18400","RUSDCRR746079CV","A01","",""]
["51","746",null,null,"USDC     RF 2017 KNAUSS  RISSE","1021RR746087","20000","12100","61009","51050200",{"$f":"VLOOKUP(TRIM(J4935),'Transactional Departments'!A:B,2,FALSE)","v":"Sea Grant Administration"},"51050200","18400","RUSDCRR746087CV","A01","",""]
["51","746",null,null,"USDC     RF CLIMATE ADAP HOPKI","1031RE746073","20000","13100","61009","51050200",{"$f":"VLOOKUP(TRIM(J4936),'Transactional Departments'!A:B,2,FALSE)","v":"Sea Grant Administration"},"51050200","18400","RUSDCRE746073CV","A01","",""]
["51","746",null,null,"IREX     GIVVA KUPPUSAMY RISSE","1031RE746088","20000","13100","64275","51050200",{"$f":"VLOOKUP(TRIM(J4937),'Transactional Departments'!A:B,2,FALSE)","v":"Sea Grant Administration"},"51050200","18003","SIREBRE746088CV","A01","",""]
["51","794",null,null,"APC      HABRSHM CO FY16 GORDO","1031RE794005","20000","13100","63074","51010000",{"$f":"VLOOKUP(TRIM(J4938),'Transactional Departments'!A:B,2,FALSE)","v":"Archway Partnership"},"51010000","18003","SCOOHRE794005CV","A01","",""]
["51","794",null,null,"         GRADY FY17      GORDO","1031RE794011","20000","13100","63053","51010000",{"$f":"VLOOKUP(TRIM(J4939),'Transactional Departments'!A:B,2,FALSE)","v":"Archway Partnership"},"51010000","18003","SVACCRE794011CV","A01","",""]
["51","794",null,null,"         SUMTER FY17     GORDO","1031RE794012","20000","13100","63053","51010000",{"$f":"VLOOKUP(TRIM(J4940),'Transactional Departments'!A:B,2,FALSE)","v":"Archway Partnership"},"51010000","18003","SVACCRE794012CV","A01","",""]
["51","794",null,null,"         CANDLER FY17    GORDO","1031RE794013","20000","13100","63053","51010000",{"$f":"VLOOKUP(TRIM(J4941),'Transactional Departments'!A:B,2,FALSE)","v":"Archway Partnership"},"51010000","18003","SVACCRE794013CV","A01","",""]
["51","794",null,null,"         WASHINGTON FY17 GORDO","1031RE794014","20000","13100","63053","51010000",{"$f":"VLOOKUP(TRIM(J4942),'Transactional Departments'!A:B,2,FALSE)","v":"Archway Partnership"},"51010000","18003","SVACCRE794014CV","A01","",""]
["51","794",null,null,"         SPALDING FY17   GORDO","1031RE794015","20000","13100","63053","51010000",{"$f":"VLOOKUP(TRIM(J4943),'Transactional Departments'!A:B,2,FALSE)","v":"Archway Partnership"},"51010000","18003","SVACCRE794015CV","A01","",""]
["51","794",null,null,"         HART FY17       GORDO","1031RE794016","20000","13100","63053","51010000",{"$f":"VLOOKUP(TRIM(J4944),'Transactional Departments'!A:B,2,FALSE)","v":"Archway Partnership"},"51010000","18003","SVACCRE794016CV","A01","",""]
["51","794",null,null,"         HABERSHAM FY17  GORDO","1031RE794017","20000","13100","63053","51010000",{"$f":"VLOOKUP(TRIM(J4945),'Transactional Departments'!A:B,2,FALSE)","v":"Archway Partnership"},"51010000","18003","SVACCRE794017CV","A01","",""]
["51","794",null,null,"         PULASKI FY17    GORDO","1031RE794018","20000","13100","63053","51010000",{"$f":"VLOOKUP(TRIM(J4946),'Transactional Departments'!A:B,2,FALSE)","v":"Archway Partnership"},"51010000","18003","SVACCRE794018CV","A01","",""]
["51","794",null,null,"         SPALDING FY18   GORDO","1031RE794019","20000","13100","63053","51010000",{"$f":"VLOOKUP(TRIM(J4947),'Transactional Departments'!A:B,2,FALSE)","v":"Archway Partnership"},"51010000","18003","SVACCRE794019CV","A01","",""]
["51","794",null,null,"AWP      GRADY FY18      GORDO","1031RE794020","20000","13100","63053","51010000",{"$f":"VLOOKUP(TRIM(J4948),'Transactional Departments'!A:B,2,FALSE)","v":"Archway Partnership"},"51010000","18003","SVACCRE794020CV","A01","",""]
["51","794",null,null,"         PULASKI FY18    GORDO","1031RE794021","20000","13100","63053","51010000",{"$f":"VLOOKUP(TRIM(J4949),'Transactional Departments'!A:B,2,FALSE)","v":"Archway Partnership"},"51010000","18003","SVACCRE794021CV","A01","",""]
["51","794",null,null,"AWP      WASHINGTON FY18 GORDO","1031RE794022","20000","13100","63053","51010000",{"$f":"VLOOKUP(TRIM(J4950),'Transactional Departments'!A:B,2,FALSE)","v":"Archway Partnership"},"51010000","18003","SVACCRE794022CV","A01","",""]
["51","794",null,null,"AWP      CANDLER FY18    GORDO","1031RE794023","20000","13100","63053","51010000",{"$f":"VLOOKUP(TRIM(J4951),'Transactional Departments'!A:B,2,FALSE)","v":"Archway Partnership"},"51010000","18003","SVACCRE794023CV","A01","",""]
["51","794",null,null,"AWP      HART FY18       GORDO","1031RE794024","20000","13100","63053","51010000",{"$f":"VLOOKUP(TRIM(J4952),'Transactional Departments'!A:B,2,FALSE)","v":"Archway Partnership"},"51010000","18003","SVACCRE794024CV","A01","",""]
["51","794",null,null,"AWP      MCDUFFIE FY18   GORDO","1031RE794025","20000","13100","63053","51010000",{"$f":"VLOOKUP(TRIM(J4953),'Transactional Departments'!A:B,2,FALSE)","v":"Archway Partnership"},"51010000","18003","SVACCRE794025CV","A01","",""]
["51","794",null,null,"AWP      COLQUITT FY18   GORDO","1031RE794026","20000","13100","63053","51010000",{"$f":"VLOOKUP(TRIM(J4954),'Transactional Departments'!A:B,2,FALSE)","v":"Archway Partnership"},"51010000","18003","SVACCRE794026CV","A01","",""]
["51","794",null,null,"APC      ARCHWAY PART    GORDO","1031RE794100","20000","13100","63053","51010000",{"$f":"VLOOKUP(TRIM(J4955),'Transactional Departments'!A:B,2,FALSE)","v":"Archway Partnership"},"51010000","18003","SVACCRE794100CV","A01","",""]
["57","107",null,null,"UOF      RF AMSSM NCAA   REIFS","1021RR107034","20000","12100","62511","57001000",{"$f":"VLOOKUP(TRIM(J4956),'Transactional Departments'!A:B,2,FALSE)","v":"OVPSA Operations"},"57001000","18400","RUFLXRR107034CV","A01","",""]
["57","120",null,null,"UGAREF   HSC RENOVATIONS      ","8064RY120810","50100","17620","64349","57031401",{"$f":"VLOOKUP(TRIM(J4957),'Transactional Departments'!A:B,2,FALSE)","v":"HSG - Brown Hall Operations"},"57031401","18003","SUREFRY120810CV","A01","",""]
["60","003",null,null,"ASU      BORROWED SERV   SHORE","1061RA003014","20000","16100","62037","60001000",{"$f":"VLOOKUP(TRIM(J4958),'Transactional Departments'!A:B,2,FALSE)","v":"Finance & Adminstration"},"60001000","18003","SASSURA003014CV","A01","",""]
["60","003",null,null,"UGAREF   OPERATING EXP   ROGER","1066RA003009","20000","16700","64349","60001000",{"$f":"VLOOKUP(TRIM(J4959),'Transactional Departments'!A:B,2,FALSE)","v":"Finance & Adminstration"},"60001000","18003","SUREFRA003009CV","A01","",""]
["61","022",null,null,"         ESTATE OF D MILLER   ","1062RA022002","20000","16200","64000","61005000",{"$f":"VLOOKUP(TRIM(J4960),'Transactional Departments'!A:B,2,FALSE)","v":"UBAS Administration"},"61005000","18003","SXXXXRA022002CV","A01","",""]
["61","033",null,null,"         VAR FED UGA O/U DAVIS","1062RA033012","20000","16200","61000","61026000",{"$f":"VLOOKUP(TRIM(J4961),'Transactional Departments'!A:B,2,FALSE)","v":"Post Award Accounting"},"61026000","18003","SXXXXRA033012CV","A01","",""]
["61","033",null,null,"         OVER/UNDER VAR  DAVIS","1062RA033017","20000","16200","64206","61026000",{"$f":"VLOOKUP(TRIM(J4962),'Transactional Departments'!A:B,2,FALSE)","v":"Post Award Accounting"},"61026000","18003","SVARIRA033017CV","A01","",""]
["64","008",null,null,"         DW BROOKS MALL       ","8061RY008827","50100","17630","64029","64001001",{"$f":"VLOOKUP(TRIM(J4963),'Transactional Departments'!A:B,2,FALSE)","v":"OUA Department Expenditures"},"64001001","18003","SCSICRY008827CV","A01","",""]
["64","008",null,null,"UGAREF   FRAT PARK INFRAST    ","8061RY008868","50100","17630","64349","64001001",{"$f":"VLOOKUP(TRIM(J4964),'Transactional Departments'!A:B,2,FALSE)","v":"OUA Department Expenditures"},"64001001","18003","SUREFRY008868CV","A01","",""]
["64","008",null,null,"         CCRC BLDG            ","8062RY008824","50100","17620","64349","64001001",{"$f":"VLOOKUP(TRIM(J4965),'Transactional Departments'!A:B,2,FALSE)","v":"OUA Department Expenditures"},"64001001","18003","SUREFRY008824CV","A01","",""]
["64","008",null,null,"         GRIFFIN FOOD TECH CTR","8062RY008833","50100","17620","63031","64001001",{"$f":"VLOOKUP(TRIM(J4966),'Transactional Departments'!A:B,2,FALSE)","v":"OUA Department Expenditures"},"64001001","18003","SGRIFRY008833CV","A01","",""]
["66","069",null,null,"GEMA/HSA K9 SUSTAIN      WILLI","1031RE069009","20000","13100","62044","66002000",{"$f":"VLOOKUP(TRIM(J4967),'Transactional Departments'!A:B,2,FALSE)","v":"UGA Police Services"},"66002000","18003","SGEMARE069009CV","A01","",""]
["66","069",null,null,"GEMA/HSA K9 SUSTAIN      WILLI","1031RE069010","20000","13100","62044","66002000",{"$f":"VLOOKUP(TRIM(J4968),'Transactional Departments'!A:B,2,FALSE)","v":"UGA Police Services"},"66002000","18003","SGEMARE069010CV","A01","",""]
["66","069",null,null,"         STATE SIEZURE/F WILLI","1063RA069003","20000","16300","62000","66002000",{"$f":"VLOOKUP(TRIM(J4969),'Transactional Departments'!A:B,2,FALSE)","v":"UGA Police Services"},"66002000","18003","SXXXXRA069003CV","A01","",""]
["66","069",null,null,"USDOJ    FED SEIZURE/FOR WILLI","1063RA069004","20000","16300","61000","66002000",{"$f":"VLOOKUP(TRIM(J4970),'Transactional Departments'!A:B,2,FALSE)","v":"UGA Police Services"},"66002000","18003","SXXXXRA069004CV","A01","",""]
["68","400",null,null,"UGAREF   FRAT PARK LANDSCAPE  ","8061RY400890","50100","17630","64349","68001001",{"$f":"VLOOKUP(TRIM(J4971),'Transactional Departments'!A:B,2,FALSE)","v":"FMD Admin - Business Office"},"68001001","18003","SUREFRY400890CV","A01","",""]
["68","402",null,null,"FMC      W/ 250-326      MACDO","1031RE402001","20000","13100","64023","68009001",{"$f":"VLOOKUP(TRIM(J4972),'Transactional Departments'!A:B,2,FALSE)","v":"FMD Office Of Sustainability"},"68009001","18003","SFOMCRE402001CV","A01","",""]
["68","402",null,null,"FORD     RF W/ 250-342   MACDO","1031RE402002","20000","13100","64023","68009001",{"$f":"VLOOKUP(TRIM(J4973),'Transactional Departments'!A:B,2,FALSE)","v":"FMD Office Of Sustainability"},"68009001","18400","RFOMCRE402002CV","A01","",""]
["71","134",null,null,"USDE/C&G JOB LOCATION 2017    ","1066RA134038","20000","16700","61033","71134101",{"$f":"VLOOKUP(TRIM(J4974),'Transactional Departments'!A:B,2,FALSE)","v":"DAR Career Center General Ops"},"71134101","18003","SDOEDRA134038CV","A01","",""]
["71","134",null,null,"USDE/C&G JOB LOCATION 2018    ","1066RA134039","20000","16700","61033",71134101,{"$f":"VLOOKUP(TRIM(J4975),'Transactional Departments'!A:B,2,FALSE)","v":"DAR Career Center General Ops"},"71134101","18003","SDOEDRA134039CV","A01","",""]

{"sheet":"Not Sponsored","index":2,"n_rows":11257,"n_cols":20,"rows_kept":4500,"cut":true,"hidden":false,"merged":[],"bounds":{"rows_first":2000,"rows_last":500,"rows_between":2000,"halvings":0}}
["Unit","Legacy Dept","speedtype\n (Hide)","speedtype desc\n(Hide)","Legacy Account Description","Legacy COA","Fund ","Program","Class","EDIT HERE \nDepartment","Dept Name","Original Department","PCBU","Project ID","Activity ID","Operating Unit","Chartfield 1"]
["10","001",null,null,"PRESIDENTS OFFICE             ","1061GA001000","10000","16100","11200","10001000",{"$f":"VLOOKUP(TRIM(J2),'Transactional Departments'!A:B,2,FALSE)","v":"President's Office"},"10001000","","","","",""]
["10","001",null,null,"SUBSISTENCE ALLOWANCE         ","1061GA001003","10000","16100","11200","10001001",{"$f":"VLOOKUP(TRIM(J3),'Transactional Departments'!A:B,2,FALSE)","v":"Subsistence Allowance"},"10001001","","","","",""]
["10","001",null,null,"ADMIN MINORITY RECRUITMENT    ","1061GA001006","10000","16100","11200","10001002",{"$f":"VLOOKUP(TRIM(J4),'Transactional Departments'!A:B,2,FALSE)","v":"Admin Minority Recruitment"},"10001002","","","","",""]
["10","001",null,null,"457(F) DEFERRED COMPENSATION  ","1061GA001015","10000","16100","11200","10001003",{"$f":"VLOOKUP(TRIM(J5),'Transactional Departments'!A:B,2,FALSE)","v":"457(f) Deferred Compensation"},"10001003","","","","",""]
["10","001",null,null,"UGAF     DISCR PRESMOREH MOREH","1061RA001020","20200","16100","67716","10001000",{"$f":"VLOOKUP(TRIM(J6),'Transactional Departments'!A:B,2,FALSE)","v":"President's Office"},"10001000","","","","",""]
["10","001",null,null,"UGAF     PRES OFC GAA DISMOREH","1061RA001022","20200","16100","67717","10001000",{"$f":"VLOOKUP(TRIM(J7),'Transactional Departments'!A:B,2,FALSE)","v":"President's Office"},"10001000","","","","",""]
["10","001",null,null,"UGAF     PRS OFC BLU KY  MOREH","1061RA001023","20200","16100","67718","10001000",{"$f":"VLOOKUP(TRIM(J8),'Transactional Departments'!A:B,2,FALSE)","v":"President's Office"},"10001000","","","","",""]
["10","001",null,null,"UGAF     BLUE KEY STD PR MOREH","1061RA001024","20200","16100","67719","10001000",{"$f":"VLOOKUP(TRIM(J9),'Transactional Departments'!A:B,2,FALSE)","v":"President's Office"},"10001000","","","","",""]
["10","001",null,null,"RESIDUAL BAL #001 PRES OFC    ","1061RX001950","20400","16100","64RBP","10001000",{"$f":"VLOOKUP(TRIM(J10),'Transactional Departments'!A:B,2,FALSE)","v":"President's Office"},"10001000","","","","",""]
["10","001",null,null,"UGAF     PRES OFC MOREH  MOREH","1065RA001016","20200","16600","67724","10001000",{"$f":"VLOOKUP(TRIM(J11),'Transactional Departments'!A:B,2,FALSE)","v":"President's Office"},"10001000","","","","",""]
["10","001",null,null,"PRESIDENTS OFFICE             ","1099GN001000","10000","","11200","10001000",{"$f":"VLOOKUP(TRIM(J12),'Transactional Departments'!A:B,2,FALSE)","v":"President's Office"},"10001000","","","","",""]
["10","001",null,null,"UGAF     UGA IN DC RENOV      ","8064RY001801","50100","17620","67832","10001000",{"$f":"VLOOKUP(TRIM(J13),'Transactional Departments'!A:B,2,FALSE)","v":"President's Office"},"10001000","","","","",""]
["10","037",null,null,"INTERNAL AUDITING DIVISION    ","1062GA037000","10000","16200","11200","10002000",{"$f":"VLOOKUP(TRIM(J14),'Transactional Departments'!A:B,2,FALSE)","v":"Internal Audit"},"10002000","","","","",""]
["10","037",null,null,"INTERNAL AUDITING DIVISION    ","1099GN037000","10000","","11200","10002000",{"$f":"VLOOKUP(TRIM(J15),'Transactional Departments'!A:B,2,FALSE)","v":"Internal Audit"},"10002000","","","","",""]
["10","074",null,null,"USGA APPLICANT CLEARINGHOUSE  ","1063GA074000","10600","16300","11300","10003000",{"$f":"VLOOKUP(TRIM(J16),'Transactional Departments'!A:B,2,FALSE)","v":"Applicant Clearinghouse"},"10003000","","","","",""]
["10","075",null,null,"EQUAL OPPORTUNITY OFFICE      ","1066GA075000","10600","16700","11300","10004000",{"$f":"VLOOKUP(TRIM(J17),'Transactional Departments'!A:B,2,FALSE)","v":"Equal Opportunity Office"},"10004000","","","","",""]
["10","088",null,null,"LEGAL AFFAIRS OFFICE          ","1061GA088000","10600","16100","11300","10005000",{"$f":"VLOOKUP(TRIM(J18),'Transactional Departments'!A:B,2,FALSE)","v":"Legal Affairs Office"},"10005000","","","","",""]
["10","088",null,null,"LEGAL AFFAIRS OFFICE          ","1099GN088000","10000","","11200","10005000",{"$f":"VLOOKUP(TRIM(J19),'Transactional Departments'!A:B,2,FALSE)","v":"Legal Affairs Office"},"10005000","","","","",""]
["14","004",null,null,"DSS CARRY FORWARD             ","1011DH004925","14100","11100","41500","14001001",{"$f":"VLOOKUP(TRIM(J20),'Transactional Departments'!A:B,2,FALSE)","v":"AA Administration"},"14001001","","","","",""]
["14","004",null,null,"SR VP OFFICE ACADEMIC AFFAIRS ","1011GH004000","10000","11100","11200","14001001",{"$f":"VLOOKUP(TRIM(J21),'Transactional Departments'!A:B,2,FALSE)","v":"AA Administration"},"14001001","","","","",""]
["14","004",null,null,"SPECIAL PROFESSOR SUPPORT     ","1011GH004017","10500","11100","11800","14001001",{"$f":"VLOOKUP(TRIM(J22),'Transactional Departments'!A:B,2,FALSE)","v":"AA Administration"},"14001001","","","","",""]
["14","004",null,null,"VPAA - GRADUATION CEREMONIES  ","1011GH004112","10500","11100","11800","14001201",{"$f":"VLOOKUP(TRIM(J23),'Transactional Departments'!A:B,2,FALSE)","v":"Commencement"},"14001201","","","","",""]
["14","004",null,null,"SKIDAWAY DIRECTOR SEARCH      ","1011GH004140","10000","11100","11200","14001001",{"$f":"VLOOKUP(TRIM(J24),'Transactional Departments'!A:B,2,FALSE)","v":"AA Administration"},"14001001","","","","SKO",""]
["14","004",null,null,"ARMY     UGA_USAWC_FELLO_MUMPE","1021RR004140","20400","12100","61014","14001001",{"$f":"VLOOKUP(TRIM(J25),'Transactional Departments'!A:B,2,FALSE)","v":"AA Administration"},"14001001","","","","",""]
["14","004",null,null,"VARIOUS RSCH COVER         004","1021RX004067","20400","12100","64206","14001103",{"$f":"VLOOKUP(TRIM(J26),'Transactional Departments'!A:B,2,FALSE)","v":"Faculty Affairs Admin"},"14001103","","","","",""]
["14","004",null,null,"         RESIDUAL        MILLE","1021RX004950","20400","12100","64RBP","14001001",{"$f":"VLOOKUP(TRIM(J27),'Transactional Departments'!A:B,2,FALSE)","v":"AA Administration"},"14001001","","","","",""]
["14","004",null,null,"IDC CARRYFORWARD              ","1025AR004925","15000","12400","11500","14001001",{"$f":"VLOOKUP(TRIM(J28),'Transactional Departments'!A:B,2,FALSE)","v":"AA Administration"},"14001001","","","","","VPAAIDCFWD"]
["14","004",null,null,"IDC RETURN                    ","1025AR004930","15000","12400","11500","14001001",{"$f":"VLOOKUP(TRIM(J29),'Transactional Departments'!A:B,2,FALSE)","v":"AA Administration"},"14001001","","","","","VPAAIDCRET"]
["14","004",null,null,"SR VP OFFICE ACADEMIC AFFAIRS ","1044GT004000","10500","14400","11800","14001001",{"$f":"VLOOKUP(TRIM(J30),'Transactional Departments'!A:B,2,FALSE)","v":"AA Administration"},"14001001","","","","",""]
["14","004",null,null,"UGA ELEMENTS                  ","1044GT004319","10000","14400","11200","14001102",{"$f":"VLOOKUP(TRIM(J31),'Transactional Departments'!A:B,2,FALSE)","v":"Elements"},"14001102","","","","",""]
["14","004",null,null,"UGA ARTS COUNCIL              ","1045GT004121","10500","14500","11800","14001301",{"$f":"VLOOKUP(TRIM(J32),'Transactional Departments'!A:B,2,FALSE)","v":"Council For The Arts"},"14001301","","","","",""]
["14","004",null,null,"2014 ALUMNI SEMINAR           ","1046DW004010","14100","14600","41500","14001001",{"$f":"VLOOKUP(TRIM(J33),'Transactional Departments'!A:B,2,FALSE)","v":"AA Administration"},"14001001","","","","",""]
["14","004",null,null,"SR VP OFFICE ACADEMIC AFFAIRS ","1046GT004000","10500","14600","11800","14001001",{"$f":"VLOOKUP(TRIM(J34),'Transactional Departments'!A:B,2,FALSE)","v":"AA Administration"},"14001001","","","","","VPAAOPER  "]
["14","004",null,null,"VPAA - CHARTER LECTURE        ","1046GT004023","10500","14600","11800","14001203",{"$f":"VLOOKUP(TRIM(J35),'Transactional Departments'!A:B,2,FALSE)","v":"Charter Lecture"},"14001203","","","","",""]
["14","004",null,null,"VPAA - HONORS DAY             ","1046GT004037","10500","14600","11800","14001202",{"$f":"VLOOKUP(TRIM(J36),'Transactional Departments'!A:B,2,FALSE)","v":"Honors Day"},"14001202","","","","",""]
["14","004",null,null,"VPAA-STATE OF ART CONFERENCES ","1046GT004060","10500","14600","11800","14001305",{"$f":"VLOOKUP(TRIM(J37),'Transactional Departments'!A:B,2,FALSE)","v":"State of Art Conference"},"14001305","","","","",""]
["14","004",null,null,"VPAA - STUDY IN 2ND DISCIPLINE","1046GT004062","10500","14600","11800","14001304",{"$f":"VLOOKUP(TRIM(J38),'Transactional Departments'!A:B,2,FALSE)","v":"Study in 2nd Discipline"},"14001304","","","","",""]
["14","004",null,null,"VPAA - COMMITMENTS            ","1046GT004103","10500","14600","11800","14001001",{"$f":"VLOOKUP(TRIM(J39),'Transactional Departments'!A:B,2,FALSE)","v":"AA Administration"},"14001001","","","","","VPAACOMMIT"]
["14","004",null,null,"VPAA ACCREDITATION            ","1046GT004104","10000","14600","11200","14001302",{"$f":"VLOOKUP(TRIM(J40),'Transactional Departments'!A:B,2,FALSE)","v":"Accreditation"},"14001302","","","","",""]
["14","004",null,null,"VPAA FACULTY AFFAIRS          ","1046GT004106","10500","14600","11800","14001103",{"$f":"VLOOKUP(TRIM(J41),'Transactional Departments'!A:B,2,FALSE)","v":"Faculty Affairs Admin"},"14001103","","","","",""]
["14","004",null,null,"ACADEMIC PROGRAMS             ","1046GT004130","10500","14600","11800","14001204",{"$f":"VLOOKUP(TRIM(J42),'Transactional Departments'!A:B,2,FALSE)","v":"Academic Programs Admin"},"14001204","","","","",""]
["14","004",null,null,"UGAF     ACADMC SYMP     WHITT","1046RT004133","20200","14600","67679","14001001",{"$f":"VLOOKUP(TRIM(J43),'Transactional Departments'!A:B,2,FALSE)","v":"AA Administration"},"14001001","","","","",""]
["14","004",null,null,"UGAF     OFA GRTS FACULTYWHITT","1046RT004143","20200","14600","","14001001",{"$f":"VLOOKUP(TRIM(J44),'Transactional Departments'!A:B,2,FALSE)","v":"AA Administration"},"14001001","","","","",""]
["14","004",null,null,"UGAF     OFA PROFESSIONALWHITT","1046RT004144","20200","14600","","14001001",{"$f":"VLOOKUP(TRIM(J45),'Transactional Departments'!A:B,2,FALSE)","v":"AA Administration"},"14001001","","","","",""]
["14","004",null,null,"         VARIOUS PROVOST      ","1046RX004004","20400","14600","64206","14001001",{"$f":"VLOOKUP(TRIM(J46),'Transactional Departments'!A:B,2,FALSE)","v":"AA Administration"},"14001001","","","","",""]
["14","004",null,null,"SR VP OFFICE ACADEMIC AFFAIRS ","1061GA004000","10500","16100","11800","14001001",{"$f":"VLOOKUP(TRIM(J47),'Transactional Departments'!A:B,2,FALSE)","v":"AA Administration"},"14001001","","","","",""]
["14","004",null,null,"SR VP OFFICE ACADEMIC AFFAIRS ","1065GA004000","10500","16600","11800","14001001",{"$f":"VLOOKUP(TRIM(J48),'Transactional Departments'!A:B,2,FALSE)","v":"AA Administration"},"14001001","","","","",""]
["14","004",null,null,"CED DEAN SEARCH               ","1066GA004141","10000","16700","11200","14001001",{"$f":"VLOOKUP(TRIM(J49),'Transactional Departments'!A:B,2,FALSE)","v":"AA Administration"},"14001001","","","","",""]
["14","004",null,null,"DIRECTOR PERF ARTS CTR SEARCH ","1066GA004142","10000","16700","11200","14001001",{"$f":"VLOOKUP(TRIM(J50),'Transactional Departments'!A:B,2,FALSE)","v":"AA Administration"},"14001001","","","","",""]
["14","004",null,null,"SR VP OFFICE ACADEMIC AFFAIRS ","1099GN004000","10000","","11200","14001001",{"$f":"VLOOKUP(TRIM(J51),'Transactional Departments'!A:B,2,FALSE)","v":"AA Administration"},"14001001","","","","",""]
["14","004",null,null,"UNIVERSITY WOMAN'S CLUB       ","9086GN004500","60000","","","14001001",{"$f":"VLOOKUP(TRIM(J52),'Transactional Departments'!A:B,2,FALSE)","v":"AA Administration"},"14001001","","","","",""]
["14","009",null,null,"GENERAL EXPENSE-MEMBERSHIPS   ","1066GA009000","10500","16700","11800","14001500",{"$f":"VLOOKUP(TRIM(J53),'Transactional Departments'!A:B,2,FALSE)","v":"Memberships"},"14001500","","","","",""]
["14","021",null,null,"GCFA     UGA_FY17 PARTNE_EILAN","1011CH021181","10000","11110","11200","14002001",{"$f":"VLOOKUP(TRIM(J54),'Transactional Departments'!A:B,2,FALSE)","v":"GMOA Departmental Adm"},"14002001","","","","",""]
["14","021",null,null,"UGAF     BYRNECE PURCELL EILAN","1011RH021135","20200","11100","67007","14002001",{"$f":"VLOOKUP(TRIM(J55),'Transactional Departments'!A:B,2,FALSE)","v":"GMOA Departmental Adm"},"14002001","","","","",""]
["14","021",null,null,"UGAF     GREEN END       EILAN","1011RH021136","20200","11100","67008","14002001",{"$f":"VLOOKUP(TRIM(J56),'Transactional Departments'!A:B,2,FALSE)","v":"GMOA Departmental Adm"},"14002001","","","","",""]
["14","021",null,null,"UGAF     GREEN SYMPOSIUM MACE ","1011RH021139","20200","11100","67009","14002001",{"$f":"VLOOKUP(TRIM(J57),'Transactional Departments'!A:B,2,FALSE)","v":"GMOA Departmental Adm"},"14002001","","","","",""]
["14","021",null,null,"LUCE     ART INTERRUPTED EILAN","1011RH021142","20400","11100","64396","14002001",{"$f":"VLOOKUP(TRIM(J58),'Transactional Departments'!A:B,2,FALSE)","v":"GMOA Departmental Adm"},"14002001","","","","",""]
["14","021",null,null,"UGAF     COLLECTORS FUND MOREH","1011RH021149","20200","11100","67010","14002001",{"$f":"VLOOKUP(TRIM(J59),'Transactional Departments'!A:B,2,FALSE)","v":"GMOA Departmental Adm"},"14002001","","","","",""]
["14","021",null,null,"UGAF     GMOA DESDIRCIR       ","1011RH021153","20200","11100","67011","14002001",{"$f":"VLOOKUP(TRIM(J60),'Transactional Departments'!A:B,2,FALSE)","v":"GMOA Departmental Adm"},"14002001","","","","",""]
["14","021",null,null,"         EXHIB RR021142  EILAN","1011RH021157","20400","11100","64396","14002001",{"$f":"VLOOKUP(TRIM(J61),'Transactional Departments'!A:B,2,FALSE)","v":"GMOA Departmental Adm"},"14002001","","","","",""]
["14","021",null,null,"         CATALOG RH021142 EILA","1011RH021158","20400","11100","64396","14002001",{"$f":"VLOOKUP(TRIM(J62),'Transactional Departments'!A:B,2,FALSE)","v":"GMOA Departmental Adm"},"14002001","","","","",""]
["14","021",null,null,"SKF      KRESS FELLOW    EILAN","1011RH021165","20400","11100","64000","14002001",{"$f":"VLOOKUP(TRIM(J63),'Transactional Departments'!A:B,2,FALSE)","v":"GMOA Departmental Adm"},"14002001","","","","",""]
["14","021",null,null,"GCA      PARTNER GRANT   EILAN","1011RH021166","20400","11100","62026","14002001",{"$f":"VLOOKUP(TRIM(J64),'Transactional Departments'!A:B,2,FALSE)","v":"GMOA Departmental Adm"},"14002001","","","","",""]
["14","021",null,null,"UGAF     WEIGERT MEMORIALWHITT","1011RH021170","20200","11100","67012","14002001",{"$f":"VLOOKUP(TRIM(J65),'Transactional Departments'!A:B,2,FALSE)","v":"GMOA Departmental Adm"},"14002001","","","","",""]
["14","021",null,null,"GCA      FY16 PARTNER GR_EILAN","1011RH021172","20400","11100","62026","14002001",{"$f":"VLOOKUP(TRIM(J66),'Transactional Departments'!A:B,2,FALSE)","v":"GMOA Departmental Adm"},"14002001","","","","",""]
["14","021",null,null,"NEA      UGA_BROOKLYN BR EILAN","1011RH021179","20400","11100","61024","14002001",{"$f":"VLOOKUP(TRIM(J67),'Transactional Departments'!A:B,2,FALSE)","v":"GMOA Departmental Adm"},"14002001","","","","",""]
["14","021",null,null,"         RESIDUAL #021IN EILAN","1011RX021950","20400","11100","64RBP","14002001",{"$f":"VLOOKUP(TRIM(J68),'Transactional Departments'!A:B,2,FALSE)","v":"GMOA Departmental Adm"},"14002001","","","","",""]
["14","021",null,null,"         GREEN LIBRARY   EILAN","1021RR021109","20200","12100","67297","14002001",{"$f":"VLOOKUP(TRIM(J69),'Transactional Departments'!A:B,2,FALSE)","v":"GMOA Departmental Adm"},"14002001","","","","",""]
["14","021",null,null,"UGAF     GMOA LIBRARY FUNWHITT","1021RR021176","20200","12100","67298","14002001",{"$f":"VLOOKUP(TRIM(J70),'Transactional Departments'!A:B,2,FALSE)","v":"GMOA Departmental Adm"},"14002001","","","","",""]
["14","021",null,null,"GCA      ARTS ED PROGRAM EILAN","1031CE021187","10000","13120","62026","14002001",{"$f":"VLOOKUP(TRIM(J71),'Transactional Departments'!A:B,2,FALSE)","v":"GMOA Departmental Adm"},"14002001","","","","",""]
["14","021",null,null,"EDUCATIONAL ART WORKSHOPS     ","1031DW021003","14100","13100","41500","14002007",{"$f":"VLOOKUP(TRIM(J72),'Transactional Departments'!A:B,2,FALSE)","v":"GMOA Education Workshop"},"14002007","","","","",""]
["14","021",null,null,"HENRY GREEN SYMPOSIUM         ","1031DW021004","14100","13100","41500","14002006",{"$f":"VLOOKUP(TRIM(J73),'Transactional Departments'!A:B,2,FALSE)","v":"Green Symposium"},"14002006","","","","",""]
["14","021",null,null,"NEA      ART INTERRUPTED EILAN","1031RE021146","20400","13100","61024","14002001",{"$f":"VLOOKUP(TRIM(J74),'Transactional Departments'!A:B,2,FALSE)","v":"GMOA Departmental Adm"},"14002001","","","","",""]
["14","021",null,null,"UGAF     BENSON SCT ED SUMOREH","1031RE021162","20200","13100","67560","14002001",{"$f":"VLOOKUP(TRIM(J75),'Transactional Departments'!A:B,2,FALSE)","v":"GMOA Departmental Adm"},"14002001","","","","",""]
["14","021",null,null,"UGAF     THOMAS CURATOR SWHITT","1031RE021167","20200","13100","67561","14002001",{"$f":"VLOOKUP(TRIM(J76),'Transactional Departments'!A:B,2,FALSE)","v":"GMOA Departmental Adm"},"14002001","","","","",""]
["14","021",null,null,"UGAF     GMOA BUILD FND  WHITT","1031RE021168","20200","13100","67562","14002001",{"$f":"VLOOKUP(TRIM(J77),'Transactional Departments'!A:B,2,FALSE)","v":"GMOA Departmental Adm"},"14002001","","","","",""]
["14","021",null,null,"NEA      UGA_GIRL EMBROI_EILAN","1031RE021169","20400","13100","61024","14002001",{"$f":"VLOOKUP(TRIM(J78),'Transactional Departments'!A:B,2,FALSE)","v":"GMOA Departmental Adm"},"14002001","","","","",""]
["14","021",null,null,"UGAF     BLACK HIST AWDS WHITT","1031RE021173","20200","13100","67563","14002001",{"$f":"VLOOKUP(TRIM(J79),'Transactional Departments'!A:B,2,FALSE)","v":"GMOA Departmental Adm"},"14002001","","","","",""]
["14","021",null,null,"GHC      SOUTHERN STORY  EILAN","1031RE021174","20400","13100","62041","14002001",{"$f":"VLOOKUP(TRIM(J80),'Transactional Departments'!A:B,2,FALSE)","v":"GMOA Departmental Adm"},"14002001","","","","",""]
["14","021",null,null,"UGAF     COLLECTORS AUC  WHITT","1031RE021177","20200","13100","67564","14002001",{"$f":"VLOOKUP(TRIM(J81),'Transactional Departments'!A:B,2,FALSE)","v":"GMOA Departmental Adm"},"14002001","","","","",""]
["14","021",null,null,"UGAF     EILAND ART ACQ  WHITT","1031RE021178","20200","13100","67565","14002001",{"$f":"VLOOKUP(TRIM(J82),'Transactional Departments'!A:B,2,FALSE)","v":"GMOA Departmental Adm"},"14002001","","","","",""]
["14","021",null,null,"UGAF     STRANGE ART &POEWHITT","1031RE021182","20200","13100","","14002001",{"$f":"VLOOKUP(TRIM(J83),'Transactional Departments'!A:B,2,FALSE)","v":"GMOA Departmental Adm"},"14002001","","","","",""]
["14","021",null,null,"UGAF     ELLIS ED ENDOW  WHITT","1031RE021183","20200","13100","","14002001",{"$f":"VLOOKUP(TRIM(J84),'Transactional Departments'!A:B,2,FALSE)","v":"GMOA Departmental Adm"},"14002001","","","","",""]
["14","021",null,null,"UGAF     CATCHPOLE GMOA OWHITT","1031RE021184","20200","13100","","14002001",{"$f":"VLOOKUP(TRIM(J85),'Transactional Departments'!A:B,2,FALSE)","v":"GMOA Departmental Adm"},"14002001","","","","",""]
["14","021",null,null,"UGAF     ROUSH MUSEUM ACQWHITT","1031RE021185","20200","13100","","14002001",{"$f":"VLOOKUP(TRIM(J86),'Transactional Departments'!A:B,2,FALSE)","v":"GMOA Departmental Adm"},"14002001","","","","",""]
["14","021",null,null,"UGAF     DEC ARTS PROGMIGWHITT","1031RE021186","20200","13100","","14002001",{"$f":"VLOOKUP(TRIM(J87),'Transactional Departments'!A:B,2,FALSE)","v":"GMOA Departmental Adm"},"14002001","","","","",""]
["14","021",null,null,"GCA      ARTS ED PROGRAM EILAN","1031RE021187","20400","13100","62026","14002001",{"$f":"VLOOKUP(TRIM(J88),'Transactional Departments'!A:B,2,FALSE)","v":"GMOA Departmental Adm"},"14002001","","","","",""]
["14","021",null,null,"GMOA INDIRECT COST RECOVERY   ","1042AT021001","15000","14200","11500","14002001",{"$f":"VLOOKUP(TRIM(J89),'Transactional Departments'!A:B,2,FALSE)","v":"GMOA Departmental Adm"},"14002001","","","","",""]
["14","021",null,null,"RENTAL PROGRAM                ","1042DT021001","14100","14200","41500","14002004",{"$f":"VLOOKUP(TRIM(J90),'Transactional Departments'!A:B,2,FALSE)","v":"Museum Rentals"},"14002004","","","","",""]
["14","021",null,null,"DEACCESSIONING FUNDS          ","1042DT021002","14100","14200","41500","14002005",{"$f":"VLOOKUP(TRIM(J91),'Transactional Departments'!A:B,2,FALSE)","v":"Museum Daccessioning"},"14002005","","","","",""]
["14","021",null,null,"GEORGIA MUSEUM OF ART         ","1042GT021000","10500","14200","11800","14002001",{"$f":"VLOOKUP(TRIM(J92),'Transactional Departments'!A:B,2,FALSE)","v":"GMOA Departmental Adm"},"14002001","","","","","GMOAMAIN  "]
["14","021",null,null,"UGAF     DIETZ CONSERVATIMOREH","1042RT021015","20200","14200","67659","14002001",{"$f":"VLOOKUP(TRIM(J93),'Transactional Departments'!A:B,2,FALSE)","v":"GMOA Departmental Adm"},"14002001","","","","",""]
["14","021",null,null,"UGAF     W N MORRIS CHAR EILAN","1042RT021077","20200","14200","67660","14002001",{"$f":"VLOOKUP(TRIM(J94),'Transactional Departments'!A:B,2,FALSE)","v":"GMOA Departmental Adm"},"14002001","","","","",""]
["14","021",null,null,"         DESIGNT DIR CIR EILAN","1042RT021080","20200","14200","67661","14002001",{"$f":"VLOOKUP(TRIM(J95),'Transactional Departments'!A:B,2,FALSE)","v":"GMOA Departmental Adm"},"14002001","","","","",""]
["14","021",null,null,"         BERKOWITZ END   EILAN","1042RT021086","20200","14200","67662","14002001",{"$f":"VLOOKUP(TRIM(J96),'Transactional Departments'!A:B,2,FALSE)","v":"GMOA Departmental Adm"},"14002001","","","","",""]
["14","021",null,null,"         VIR TROTTER END EILAN","1042RT021087","20200","14200","67663","14002001",{"$f":"VLOOKUP(TRIM(J97),'Transactional Departments'!A:B,2,FALSE)","v":"GMOA Departmental Adm"},"14002001","","","","",""]
["14","021",null,null,"         ACQUISITIONS    EILAN","1042RT021090","20200","14200","67664","14002001",{"$f":"VLOOKUP(TRIM(J98),'Transactional Departments'!A:B,2,FALSE)","v":"GMOA Departmental Adm"},"14002001","","","","",""]
["14","021",null,null,"         DODD REGISTRAR  EILAN","1042RT021107","20200","14200","67665","14002001",{"$f":"VLOOKUP(TRIM(J99),'Transactional Departments'!A:B,2,FALSE)","v":"GMOA Departmental Adm"},"14002001","","","","",""]
["14","021",null,null,"         PIERRE DAURA CTREILAN","1042RT021108","20200","14200","67666","14002001",{"$f":"VLOOKUP(TRIM(J100),'Transactional Departments'!A:B,2,FALSE)","v":"GMOA Departmental Adm"},"14002001","","","","",""]
["14","021",null,null,"         HARVEY FAMILY FUEILAN","1042RT021114","20200","14200","67667","14002001",{"$f":"VLOOKUP(TRIM(J101),'Transactional Departments'!A:B,2,FALSE)","v":"GMOA Departmental Adm"},"14002001","","","","",""]
["14","021",null,null,"UGAF     CHRIST-JANER    EILAN","1042RT021119","20200","14200","67668","14002001",{"$f":"VLOOKUP(TRIM(J102),'Transactional Departments'!A:B,2,FALSE)","v":"GMOA Departmental Adm"},"14002001","","","","",""]
["14","021",null,null,"UGAF     ALLEN ENDOW     EILAN","1042RT021120","20200","14200","67669","14002001",{"$f":"VLOOKUP(TRIM(J103),'Transactional Departments'!A:B,2,FALSE)","v":"GMOA Departmental Adm"},"14002001","","","","",""]
["14","021",null,null,"UGAF     CHRIST-JANER    EILAN","1042RT021121","20200","14200","67670","14002001",{"$f":"VLOOKUP(TRIM(J104),'Transactional Departments'!A:B,2,FALSE)","v":"GMOA Departmental Adm"},"14002001","","","","",""]
["14","021",null,null,"UGAF     DAURA CONS FUND MOREH","1042RT021151","20200","14200","67671","14002001",{"$f":"VLOOKUP(TRIM(J105),'Transactional Departments'!A:B,2,FALSE)","v":"GMOA Departmental Adm"},"14002001","","","","",""]
["14","021",null,null,"UGAF     DODD PRESERVATN MOREH","1042RT021152","20200","14200","67672","14002001",{"$f":"VLOOKUP(TRIM(J106),'Transactional Departments'!A:B,2,FALSE)","v":"GMOA Departmental Adm"},"14002001","","","","",""]
["14","021",null,null,"UGAF     GMOA FUND       MOREH","1042RT021154","20200","14200","67673","14002001",{"$f":"VLOOKUP(TRIM(J107),'Transactional Departments'!A:B,2,FALSE)","v":"GMOA Departmental Adm"},"14002001","","","","",""]
["14","021",null,null,"UGAF     FRIENDS EVENTS  MOREH","1042RT021155","20200","14200","67674","14002001",{"$f":"VLOOKUP(TRIM(J108),'Transactional Departments'!A:B,2,FALSE)","v":"GMOA Departmental Adm"},"14002001","","","","",""]
["14","021",null,null,"GEORGIA MUSEUM OF ART         ","1065GA021000","10500","16600","11800","14002001",{"$f":"VLOOKUP(TRIM(J109),'Transactional Departments'!A:B,2,FALSE)","v":"GMOA Departmental Adm"},"14002001","","","","",""]
["14","021",null,null,"UGAF     PAVAC FUND      MORRI","1066RA021163","20200","16700","67740","14002001",{"$f":"VLOOKUP(TRIM(J110),'Transactional Departments'!A:B,2,FALSE)","v":"GMOA Departmental Adm"},"14002001","","","","",""]
["14","021",null,null,"FRIENDS MEMBERSHIP HOLDING    ","9086GN021005","60000","","","14002001",{"$f":"VLOOKUP(TRIM(J111),'Transactional Departments'!A:B,2,FALSE)","v":"GMOA Departmental Adm"},"14002001","","","","",""]
["14","064",null,null,"UGARF FAC RSCH DIAZ        533","1021RX064568","20300","12100","64F17","14009300",{"$f":"VLOOKUP(TRIM(J112),'Transactional Departments'!A:B,2,FALSE)","v":"SKIO Administration"},"14009300","","","","",""]
["14","064",null,null,"UGARF FAC RSCH HARVEY      534","1021RX064666","20300","12100","64F18","14009300",{"$f":"VLOOKUP(TRIM(J113),'Transactional Departments'!A:B,2,FALSE)","v":"SKIO Administration"},"14009300","","","","",""]
["14","144",null,null,"INTERDISCIPLINARY HIRING-FY14 ","1011GH144024","10500","11100","11800","14001400",{"$f":"VLOOKUP(TRIM(J114),'Transactional Departments'!A:B,2,FALSE)","v":"University Wide Support"},"14001400","","","","","INTERDISC "]
["14","144",null,null,"UWIDE - INVEST IN SCIENCES    ","1011GH144028","10000","11100","11200","14001400",{"$f":"VLOOKUP(TRIM(J115),'Transactional Departments'!A:B,2,FALSE)","v":"University Wide Support"},"14001400","","","","","INVESTSCI "]
["14","144",null,null,"VPAA SUPPORT - NEW GRAD POS   ","1046GT144002","10500","14600","11800","14001400",{"$f":"VLOOKUP(TRIM(J116),'Transactional Departments'!A:B,2,FALSE)","v":"University Wide Support"},"14001400","","","","","UWIDEGRAD "]
["14","144",null,null,"VPAA SUPPORT - CONTINGENCY    ","1046GT144010","10500","14600","11800","14001400",{"$f":"VLOOKUP(TRIM(J117),'Transactional Departments'!A:B,2,FALSE)","v":"University Wide Support"},"14001400","","","","","UWIDECONT "]
["14","144",null,null,"UWIDE-PROVOST FACULTY TRAVEL  ","1046GT144011","10500","14600","11800","14001400",{"$f":"VLOOKUP(TRIM(J118),'Transactional Departments'!A:B,2,FALSE)","v":"University Wide Support"},"14001400","","","","","PROVTRAVEL"]
["14","144",null,null,"UWIDE - PROVOST SPECIAL HIRES ","1046GT144026","10000","14600","11200","14001400",{"$f":"VLOOKUP(TRIM(J119),'Transactional Departments'!A:B,2,FALSE)","v":"University Wide Support"},"14001400","","","","","SPECLHIRES"]
["14","144",null,null,"UWIDE - INFORMATICS INITIATIVE","1046GT144027","10000","14600","11200","14001400",{"$f":"VLOOKUP(TRIM(J120),'Transactional Departments'!A:B,2,FALSE)","v":"University Wide Support"},"14001400","","","","","UWIDEINFOR"]
["14","144",null,null,"UGA RETENTION                 ","1046GT144105","10500","14600","11800","14001400",{"$f":"VLOOKUP(TRIM(J121),'Transactional Departments'!A:B,2,FALSE)","v":"University Wide Support"},"14001400","","","","","UWIDERETEN"]
["14","144",null,null,"PRESIDENTIAL STARTUP FY18-20  ","1046GT144107","10500","14600","11800","14001400",{"$f":"VLOOKUP(TRIM(J122),'Transactional Departments'!A:B,2,FALSE)","v":"University Wide Support"},"14001400","","","","","PRESSU1819"]
["14","147",null,null,"HONORS PROGRAM                ","1011GH147000","10500","11100","11800","14003003",{"$f":"VLOOKUP(TRIM(J123),'Transactional Departments'!A:B,2,FALSE)","v":"Honors Acad Support"},"14003003","","","","",""]
["14","147",null,null,"UGAF     C&G HONORS FND EMOREH","1011RH147024","20200","11100","67015","14003003",{"$f":"VLOOKUP(TRIM(J124),'Transactional Departments'!A:B,2,FALSE)","v":"Honors Acad Support"},"14003003","","","","",""]
["14","147",null,null,"UGAF     C&G MURPHY FUND MOREH","1011RH147025","20200","11100","67016","14003003",{"$f":"VLOOKUP(TRIM(J125),'Transactional Departments'!A:B,2,FALSE)","v":"Honors Acad Support"},"14003003","","","","",""]
["14","147",null,null,"STF HONORS PROGRAM            ","1019TJ147001","16000","14400","11600","14003003",{"$f":"VLOOKUP(TRIM(J126),'Transactional Departments'!A:B,2,FALSE)","v":"Honors Acad Support"},"14003003","","","","",""]
["14","147",null,null,"UGAF     CURO SUPPORT    WILLI","1021RR147026","20200","12100","67305","14003003",{"$f":"VLOOKUP(TRIM(J127),'Transactional Departments'!A:B,2,FALSE)","v":"Honors Acad Support"},"14003003","","","","",""]
["14","147",null,null,"CURO/HONORS                   ","1025GR147011","10500","12400","11800","14003004",{"$f":"VLOOKUP(TRIM(J128),'Transactional Departments'!A:B,2,FALSE)","v":"CURO Program"},"14003004","","","","","CUROHONORS"]
["14","147",null,null,"CURO EXPANSION PILOT          ","1025GR147018","10500","12400","11800","14003004",{"$f":"VLOOKUP(TRIM(J129),'Transactional Departments'!A:B,2,FALSE)","v":"CURO Program"},"14003004","","","","","CUROEXPAN "]
["14","147",null,null,"HONORS PROGRAM                ","1046GT147000","10500","14600","11800","14003003",{"$f":"VLOOKUP(TRIM(J130),'Transactional Departments'!A:B,2,FALSE)","v":"Honors Acad Support"},"14003003","","","","",""]
["14","147",null,null,"         FND FELLOWS GRD WILLI","1046RT147003","20200","14600","67681","14003003",{"$f":"VLOOKUP(TRIM(J131),'Transactional Departments'!A:B,2,FALSE)","v":"Honors Acad Support"},"14003003","","","","",""]
["14","147",null,null,"UGAF     FND FELLOWS PRG WILLI","1046RT147022","20200","14600","67682","14003003",{"$f":"VLOOKUP(TRIM(J132),'Transactional Departments'!A:B,2,FALSE)","v":"Honors Acad Support"},"14003003","","","","",""]
["14","147",null,null,"UGAF     C&G PARENTS SCTYWHITT","1046RT147028","20200","14600","67683","14003003",{"$f":"VLOOKUP(TRIM(J133),'Transactional Departments'!A:B,2,FALSE)","v":"Honors Acad Support"},"14003003","","","","",""]
["14","147",null,null,"UGAF     HP DIRECTORS CIRWHITT","1046RT147029","20200","14600","","14003003",{"$f":"VLOOKUP(TRIM(J134),'Transactional Departments'!A:B,2,FALSE)","v":"Honors Acad Support"},"14003003","","","","",""]
["14","147",null,null,"UGAF     MOREHEAD DIST PRWHITT","1046RT147030","20200","14600","","14003003",{"$f":"VLOOKUP(TRIM(J135),'Transactional Departments'!A:B,2,FALSE)","v":"Honors Acad Support"},"14003003","","","","",""]
["14","147",null,null,"DEVELOPMENT SALARY            ","1065GA147017","10500","16600","11800","14003003",{"$f":"VLOOKUP(TRIM(J136),'Transactional Departments'!A:B,2,FALSE)","v":"Honors Acad Support"},"14003003","","","","",""]
["14","335",null,null,"EXEC EDD                      ","1011DH335008","14100","11100","41500","14004003",{"$f":"VLOOKUP(TRIM(J137),'Transactional Departments'!A:B,2,FALSE)","v":"Executive Edd"},"14004003","","","","",""]
["14","335",null,null,"INSTITUTE OF HIGHER EDUCATION ","1011GH335000","10500","11100","11800","14004001",{"$f":"VLOOKUP(TRIM(J138),'Transactional Departments'!A:B,2,FALSE)","v":"IHE Administration"},"14004001","","","","",""]
["14","335",null,null,"GOVERNER'S TEACHING FELLOWS   ","1011GH335009","10500","11100","11800","14004002",{"$f":"VLOOKUP(TRIM(J139),'Transactional Departments'!A:B,2,FALSE)","v":"Governer'S Teaching Fellows"},"14004002","","","","",""]
["14","335",null,null,"EXECUTIVE EDD                 ","1011GH335019","10000","11100","11200","14004003",{"$f":"VLOOKUP(TRIM(J140),'Transactional Departments'!A:B,2,FALSE)","v":"Executive Edd"},"14004003","","","","",""]
["14","335",null,null,"INSTITUTE OF HIGHER EDUCATION ","1011GJ335000","10500","11140","11800","14004001",{"$f":"VLOOKUP(TRIM(J141),'Transactional Departments'!A:B,2,FALSE)","v":"IHE Administration"},"14004001","","","","",""]
["14","335",null,null,"         IHE DEVEL FUND  MATTH","1011RH335040","20200","11100","","14004001",{"$f":"VLOOKUP(TRIM(J142),'Transactional Departments'!A:B,2,FALSE)","v":"IHE Administration"},"14004001","","","","",""]
["14","335",null,null,"         MILLER DIST PROFDYER ","1021RR335038","20200","12100","67499","14004001",{"$f":"VLOOKUP(TRIM(J143),'Transactional Departments'!A:B,2,FALSE)","v":"IHE Administration"},"14004001","","","","",""]
["14","335",null,null,"         MCBEE PROF      DYER ","1021RR335039","20200","12100","67500","14004001",{"$f":"VLOOKUP(TRIM(J144),'Transactional Departments'!A:B,2,FALSE)","v":"IHE Administration"},"14004001","","","","",""]
["14","335",null,null,"AFIR     MULTI-STATE     WEBBE","1021RR335068","20400","12100","64338","14004001",{"$f":"VLOOKUP(TRIM(J145),'Transactional Departments'!A:B,2,FALSE)","v":"IHE Administration"},"14004001","","","","",""]
["14","335",null,null,"AIR      RF FEDERAL LOAN GONZA","1021RR335072","20400","12100","64338","14004001",{"$f":"VLOOKUP(TRIM(J146),'Transactional Departments'!A:B,2,FALSE)","v":"IHE Administration"},"14004001","","","","",""]
["14","335",null,null,"AIR      RF RISING TIDE__WEBBE","1021RR335073","20400","12100","64338","14004001",{"$f":"VLOOKUP(TRIM(J147),'Transactional Departments'!A:B,2,FALSE)","v":"IHE Administration"},"14004001","","","","",""]
["14","335",null,null,"         UGARF SUPPORT   FINCH","1021RX335900","20300","12100","64ICR","14004001",{"$f":"VLOOKUP(TRIM(J148),'Transactional Departments'!A:B,2,FALSE)","v":"IHE Administration"},"14004001","","","","",""]
["14","335",null,null,"INDIRECT COST RECOVRY RESEARCH","1025AR335001","15000","12400","11500","14004001",{"$f":"VLOOKUP(TRIM(J149),'Transactional Departments'!A:B,2,FALSE)","v":"IHE Administration"},"14004001","","","","",""]
["14","335",null,null,"INSTITUTE OF HIGHER EDUCATION ","1025GR335000","10500","12400","11800","14004001",{"$f":"VLOOKUP(TRIM(J150),'Transactional Departments'!A:B,2,FALSE)","v":"IHE Administration"},"14004001","","","","",""]
["14","335",null,null,"INSTITUTE OF HIGHER EDUCATION ","1031AE335000","15000","13100","11500","14004001",{"$f":"VLOOKUP(TRIM(J151),'Transactional Departments'!A:B,2,FALSE)","v":"IHE Administration"},"14004001","","","","",""]
["14","335",null,null,"IHE SERVICES                  ","1031DE335002","14100","13100","41500","14004001",{"$f":"VLOOKUP(TRIM(J152),'Transactional Departments'!A:B,2,FALSE)","v":"IHE Administration"},"14004001","","","","",""]
["14","335",null,null,"GTF CONFERENCE FUND           ","1031DW335006","14100","13100","41500","14004002",{"$f":"VLOOKUP(TRIM(J153),'Transactional Departments'!A:B,2,FALSE)","v":"Governer'S Teaching Fellows"},"14004002","","","","",""]
["14","335",null,null,"INSTITUTE OF HIGHER EDUCATION ","1031GE335000","10500","13100","11800","14004001",{"$f":"VLOOKUP(TRIM(J154),'Transactional Departments'!A:B,2,FALSE)","v":"IHE Administration"},"14004001","","","","",""]
["14","335",null,null,"UGAF     GCAC PROG FND   MOREH","1031RE335060","20200","13100","67614","14004001",{"$f":"VLOOKUP(TRIM(J155),'Transactional Departments'!A:B,2,FALSE)","v":"IHE Administration"},"14004001","","","","",""]
["14","335",null,null,"UGAF PASSIN INC RE335069 PEEPL","1031RE335070","20400","13100","64410","14004001",{"$f":"VLOOKUP(TRIM(J156),'Transactional Departments'!A:B,2,FALSE)","v":"IHE Administration"},"14004001","","","","",""]
["14","335",null,null,"         RESIDUAL #335PS DUNN ","1031RX335950","20400","13100","64RBP","14004001",{"$f":"VLOOKUP(TRIM(J157),'Transactional Departments'!A:B,2,FALSE)","v":"IHE Administration"},"14004001","","","","",""]
["14","514",null,null,"AUXILIARY-GROUP F INT INC     ","5550GN514003","12270","27100","42100","14001001",{"$f":"VLOOKUP(TRIM(J158),'Transactional Departments'!A:B,2,FALSE)","v":"AA Administration"},"14001001","","","","",""]
["14","514",null,null,"AUX GROUP E EQUIPMENT         ","8065GW514805","12270","27100","42100","14001001",{"$f":"VLOOKUP(TRIM(J159),'Transactional Departments'!A:B,2,FALSE)","v":"AA Administration"},"14001001","","","","",""]
["14","514",null,null,"AUX GROUP E EXP NOT CAP       ","8066GW514806","12270","27100","42100","14001001",{"$f":"VLOOKUP(TRIM(J160),'Transactional Departments'!A:B,2,FALSE)","v":"AA Administration"},"14001001","","","","",""]
["14","514",null,null,"AUX GROUP E EXP NOT CAP       ","8266GW514806","12270","27199","42100","14001001",{"$f":"VLOOKUP(TRIM(J161),'Transactional Departments'!A:B,2,FALSE)","v":"AA Administration"},"14001001","","","","",""]
["14","533",null,null,"SKIDAWAY INST OCEANOGRAPHY-RI ","1011GH533000","10000","11100","11200","14009300",{"$f":"VLOOKUP(TRIM(J162),'Transactional Departments'!A:B,2,FALSE)","v":"SKIO Administration"},"14009300","","","","",""]
["14","533",null,null,"UGARF INDIRECT COST RETURN 533","1021RX533900","20300","12100","64ICR","14009300",{"$f":"VLOOKUP(TRIM(J163),'Transactional Departments'!A:B,2,FALSE)","v":"SKIO Administration"},"14009300","","","","",""]
["14","533",null,null,"SKIDAWAY INST OCEANOGRAPHY-RI ","1026GJ533000","10000","11140","11200","14009100",{"$f":"VLOOKUP(TRIM(J164),'Transactional Departments'!A:B,2,FALSE)","v":"SKIO General Research"},"14009100","","","","","CALEXANDER"]
["14","533",null,null,"SKIDAWAY INST OCEANOGRAPHY-RI ","1026GR533000","10500","12200","11800","14009100",{"$f":"VLOOKUP(TRIM(J165),'Transactional Departments'!A:B,2,FALSE)","v":"SKIO General Research"},"14009100","","","","",""]
["14","533",null,null,"ALEXANDER-JMI SEED GRANT      ","1026GR533006","10000","12200","11200","14009300",{"$f":"VLOOKUP(TRIM(J166),'Transactional Departments'!A:B,2,FALSE)","v":"SKIO Administration"},"14009300","","","","",""]
["14","533",null,null,"SKIDAWAY INST OCEANOGRAPHY-RI ","1045GT533000","10500","14500","11800","14009300",{"$f":"VLOOKUP(TRIM(J167),'Transactional Departments'!A:B,2,FALSE)","v":"SKIO Administration"},"14009300","","","","",""]
["14","533",null,null,"SKIO-ACADEMIC PLANT OPS       ","1071GP533005","10000","17100","11200","14009520",{"$f":"VLOOKUP(TRIM(J168),'Transactional Departments'!A:B,2,FALSE)","v":"Plant Operations"},"14009520","","","","",""]
["14","534",null,null,"SKIDAWAY INST OF OCEANOGRAPHY ","2300AN534000","15335","","11500","14009300",{"$f":"VLOOKUP(TRIM(J169),'Transactional Departments'!A:B,2,FALSE)","v":"SKIO Administration"},"14009300","","","","",""]
["14","534",null,null,"SKIDAWAY INST OF OCEANOGRAPHY ","2300GN534000","11335","","11200","14009300",{"$f":"VLOOKUP(TRIM(J170),'Transactional Departments'!A:B,2,FALSE)","v":"SKIO Administration"},"14009300","","","","",""]
["14","534",null,null,"GDNR/USDCRF INCNTVE GRNT ALEXA","2321CR534107","11335","12110","11200","14009100",{"$f":"VLOOKUP(TRIM(J171),'Transactional Departments'!A:B,2,FALSE)","v":"SKIO General Research"},"14009100","","","","",""]
["14","534",null,null,"GDNR/USDCRF COASTAL GA   ALEXA","2321CR534109","11335","12110","11200","14009100",{"$f":"VLOOKUP(TRIM(J172),'Transactional Departments'!A:B,2,FALSE)","v":"SKIO General Research"},"14009100","","","","",""]
["14","534",null,null,"NSF/SKIO RF JAB 93_245 BRBRAND","2321RR534019","20400","12100","61023","14009100",{"$f":"VLOOKUP(TRIM(J173),'Transactional Departments'!A:B,2,FALSE)","v":"SKIO General Research"},"14009100","","","","",""]
["14","534",null,null,"NSF/SKIO RF APS 93_246W/019 ST","2321RR534020","20400","12100","61023","14009100",{"$f":"VLOOKUP(TRIM(J174),'Transactional Departments'!A:B,2,FALSE)","v":"SKIO General Research"},"14009100","","","","",""]
["14","534",null,null,"NSF/SKIO RF WBS 93_247W/019 ST","2321RR534021","20400","12100","61023","14009100",{"$f":"VLOOKUP(TRIM(J175),'Transactional Departments'!A:B,2,FALSE)","v":"SKIO General Research"},"14009100","","","","",""]
["14","534",null,null,"NSF/SKIO RF CRE 93_248W/019 ST","2321RR534022","20400","12100","61023","14009100",{"$f":"VLOOKUP(TRIM(J176),'Transactional Departments'!A:B,2,FALSE)","v":"SKIO General Research"},"14009100","","","","",""]
["14","534",null,null,"EPA/SKIO RF 93_382 RFL LEE  LE","2321RR534032","20400","12100","61032","14009100",{"$f":"VLOOKUP(TRIM(J177),'Transactional Departments'!A:B,2,FALSE)","v":"SKIO General Research"},"14009100","","","","",""]
["14","534",null,null,"USDC/SKIORF GRS 93_475 MEEK SA","2321RR534037","20400","12100","61009","14009100",{"$f":"VLOOKUP(TRIM(J178),'Transactional Departments'!A:B,2,FALSE)","v":"SKIO General Research"},"14009100","","","","",""]
["14","534",null,null,"SSGC/SKIORF CRA 93_392   ALEXA","2321RR534044","20400","12100","62500","14009100",{"$f":"VLOOKUP(TRIM(J179),'Transactional Departments'!A:B,2,FALSE)","v":"SKIO General Research"},"14009100","","","","",""]
["14","534",null,null,"NSF/SKIO RF MAR 93_274 RIRICHT","2321RR534045","20400","12100","61023","14009100",{"$f":"VLOOKUP(TRIM(J180),'Transactional Departments'!A:B,2,FALSE)","v":"SKIO General Research"},"14009100","","","","",""]
["14","534",null,null,"SECO/IOOSRF DECISION MAKESAVID","2321RR534048","20400","12100","64151","14009100",{"$f":"VLOOKUP(TRIM(J181),'Transactional Departments'!A:B,2,FALSE)","v":"SKIO General Research"},"14009100","","","","",""]
["14","534",null,null,"USDC     RF GRNMS FY13   SANDE","2321RR534049","20400","12100","61009","14009100",{"$f":"VLOOKUP(TRIM(J182),'Transactional Departments'!A:B,2,FALSE)","v":"SKIO General Research"},"14009100","","","","",""]
["14","534",null,null,"USDC     RF ONMS FY13    SANDE","2321RR534050","20400","12100","61009","14009100",{"$f":"VLOOKUP(TRIM(J183),'Transactional Departments'!A:B,2,FALSE)","v":"SKIO General Research"},"14009100","","","","",""]
["14","534",null,null,"GDNR EPA RF GEOSPTL ERM  ALEXA","2321RR534054","20400","12100","62016","14009100",{"$f":"VLOOKUP(TRIM(J184),'Transactional Departments'!A:B,2,FALSE)","v":"SKIO General Research"},"14009100","","","","",""]
["14","534",null,null,"USDC     RF R/SSS-FRI    HOPKI","2321RR534057","20400","12100","61009","14009100",{"$f":"VLOOKUP(TRIM(J185),'Transactional Departments'!A:B,2,FALSE)","v":"SKIO General Research"},"14009100","","","","",""]
["14","534",null,null,"SECOORA  RF OCEAN DATA   SAVID","2321RR534064","20400","12100","64151","14009100",{"$f":"VLOOKUP(TRIM(J186),'Transactional Departments'!A:B,2,FALSE)","v":"SKIO General Research"},"14009100","","","","",""]
["14","534",null,null,"USDC     RF ONMS FY14    SANDE","2321RR534066","20400","12100","61009","14009100",{"$f":"VLOOKUP(TRIM(J187),'Transactional Departments'!A:B,2,FALSE)","v":"SKIO General Research"},"14009100","","","","",""]
["14","534",null,null,"UGAF     SKIO FND SPONS  WHITT","2321RR534067","20200","12100","","14009100",{"$f":"VLOOKUP(TRIM(J188),'Transactional Departments'!A:B,2,FALSE)","v":"SKIO General Research"},"14009100","","","","",""]
["14","534",null,null,"NSF      RF PS W/ 534068 SAVID","2321RR534069","20400","12100","61023","14009100",{"$f":"VLOOKUP(TRIM(J189),'Transactional Departments'!A:B,2,FALSE)","v":"SKIO General Research"},"14009100","","","","",""]
["14","534",null,null,"NSF      RF GEOTRACES    BUCK ","2321RR534072","20400","12100","61023","14009100",{"$f":"VLOOKUP(TRIM(J190),'Transactional Departments'!A:B,2,FALSE)","v":"SKIO General Research"},"14009100","","","","",""]
["14","534",null,null,"GDNR     RF SONAR SYSTEM ALEXA","2321RR534074","20400","12100","62016","14009100",{"$f":"VLOOKUP(TRIM(J191),'Transactional Departments'!A:B,2,FALSE)","v":"SKIO General Research"},"14009100","","","","",""]
["14","534",null,null,"NSF      RF EAGER: LANGM SAVID","2321RR534079","20400","12100","61023","14009100",{"$f":"VLOOKUP(TRIM(J192),'Transactional Departments'!A:B,2,FALSE)","v":"SKIO General Research"},"14009100","","","","",""]
["14","534",null,null,"NSF      UGA R/V SAV OCE NELSO","2321RR534081","20400","12100","61023","14009100",{"$f":"VLOOKUP(TRIM(J193),'Transactional Departments'!A:B,2,FALSE)","v":"SKIO General Research"},"14009100","","","","",""]
["14","534",null,null,"SCO/USDC RF OCEAN DATA   SAVID","2321RR534083","20400","12100","64151","14009100",{"$f":"VLOOKUP(TRIM(J194),'Transactional Departments'!A:B,2,FALSE)","v":"SKIO General Research"},"14009100","","","","",""]
["14","534",null,null,"UGAF     SKIO FOUNDATION WHITT","2321RR534084","20200","12100","67790","14009100",{"$f":"VLOOKUP(TRIM(J195),'Transactional Departments'!A:B,2,FALSE)","v":"SKIO General Research"},"14009100","","","","",""]
["14","534",null,null,"NSF      RF PS RR534-060      ","2321RR534096","20400","12100","61023","14009100",{"$f":"VLOOKUP(TRIM(J196),'Transactional Departments'!A:B,2,FALSE)","v":"SKIO General Research"},"14009100","","","","",""]
["14","534",null,null,"USDC     RF ONMS CONSERV SANDE","2321RR534116","20400","12100","61009","14009100",{"$f":"VLOOKUP(TRIM(J197),'Transactional Departments'!A:B,2,FALSE)","v":"SKIO General Research"},"14009100","","","","",""]
["14","534",null,null,"GDNR/USDCRF GCHP UPDATE  ALEXA","2321RR534118","20400","12100","62016","14009100",{"$f":"VLOOKUP(TRIM(J198),'Transactional Departments'!A:B,2,FALSE)","v":"SKIO General Research"},"14009100","","","","",""]
["14","534",null,null,"NSF      RF PHOSPHORUS   DIAZ ","2321RR534128","20400","12100","61023","14009100",{"$f":"VLOOKUP(TRIM(J199),'Transactional Departments'!A:B,2,FALSE)","v":"SKIO General Research"},"14009100","","","","",""]
["14","534",null,null,"USDC     RF ONMS/GRNMS   ALEXA","2321RR534129","20400","12100","61009","14009100",{"$f":"VLOOKUP(TRIM(J200),'Transactional Departments'!A:B,2,FALSE)","v":"SKIO General Research"},"14009100","","","","",""]
["14","534",null,null,"USDC     RF ONMS/NEGL    ALEXA","2321RR534130","20400","12100","61009","14009100",{"$f":"VLOOKUP(TRIM(J201),'Transactional Departments'!A:B,2,FALSE)","v":"SKIO General Research"},"14009100","","","","",""]
["14","534",null,null,"NSF      RF RF_ARCTIC OCEBUCK ","2321RR534131","20400","12100","61023","14009100",{"$f":"VLOOKUP(TRIM(J202),'Transactional Departments'!A:B,2,FALSE)","v":"SKIO General Research"},"14009100","","","","",""]
["14","534",null,null,"SKIDAWAY INSTITUTE - OFFSET   ","2321RR534999","20400","12100","","14009100",{"$f":"VLOOKUP(TRIM(J203),'Transactional Departments'!A:B,2,FALSE)","v":"SKIO General Research"},"14009100","","","","",""]
["14","534",null,null,"UGARF INDIRECT COST RETURN 534","2321RX534900","20300","12100","64ICR","14009300",{"$f":"VLOOKUP(TRIM(J204),'Transactional Departments'!A:B,2,FALSE)","v":"SKIO Administration"},"14009300","","","","",""]
["14","534",null,null,"JDIAZ STARTUP FUNDS           ","2326AR534001","15335","12200","11500","14009100",{"$f":"VLOOKUP(TRIM(J205),'Transactional Departments'!A:B,2,FALSE)","v":"SKIO General Research"},"14009100","","","","","JDIAZ     "]
["14","534",null,null,"EHARVEY STARTUP FUNDS         ","2326AR534002","15335","12200","11500","14009100",{"$f":"VLOOKUP(TRIM(J206),'Transactional Departments'!A:B,2,FALSE)","v":"SKIO General Research"},"14009100","","","","","EHARVEY   "]
["14","534",null,null,"CBUCK STARTUP                 ","2326AR534003","15335","12200","11500","14009100",{"$f":"VLOOKUP(TRIM(J207),'Transactional Departments'!A:B,2,FALSE)","v":"SKIO General Research"},"14009100","","","","",""]
["14","534",null,null,"IDC ASSESSMENT                ","2326AR534004","15335","12200","11500","14009100",{"$f":"VLOOKUP(TRIM(J208),'Transactional Departments'!A:B,2,FALSE)","v":"SKIO General Research"},"14009100","","","","",""]
["14","534",null,null,"MISCELLANEOUS RENTS           ","2326DR534001","14335","12200","41500","14009300",{"$f":"VLOOKUP(TRIM(J209),'Transactional Departments'!A:B,2,FALSE)","v":"SKIO Administration"},"14009300","","","","","MISCRENT  "]
["14","534",null,null,"SALES & MEMORABILIA           ","2326DR534002","14335","12200","41500","14009300",{"$f":"VLOOKUP(TRIM(J210),'Transactional Departments'!A:B,2,FALSE)","v":"SKIO Administration"},"14009300","","","","","SALEMEMOR "]
["14","534",null,null,"SALES - SHIP OPERATIONS       ","2326DR534003","14335","12200","41500","14009450",{"$f":"VLOOKUP(TRIM(J211),'Transactional Departments'!A:B,2,FALSE)","v":"Research Vessel Operations"},"14009450","","","","",""]
["14","534",null,null,"CRA - SAMPLE ANALYSIS         ","2326DR534004","14335","12200","41500","14009130",{"$f":"VLOOKUP(TRIM(J212),'Transactional Departments'!A:B,2,FALSE)","v":"Geological Research"},"14009130","","","","","CRASAMP   "]
["14","534",null,null,"JAB - SAMPLE ANALYSIS         ","2326DR534005","14335","12200","41500","14009120",{"$f":"VLOOKUP(TRIM(J213),'Transactional Departments'!A:B,2,FALSE)","v":"Chemical Research"},"14009120","","","","","JBRANDES  "]
["14","534",null,null,"CYR - SAMPLE ANALYSIS         ","2326DR534006","14335","12200","41500","14009110",{"$f":"VLOOKUP(TRIM(J214),'Transactional Departments'!A:B,2,FALSE)","v":"Biological Research"},"14009110","","","","",""]
["14","534",null,null,"HLW - SAMPLE ANALYSIS         ","2326DR534007","14335","12200","41500","14009120",{"$f":"VLOOKUP(TRIM(J215),'Transactional Departments'!A:B,2,FALSE)","v":"Chemical Research"},"14009120","","","","",""]
["14","534",null,null,"MEF - SAMPLE ANALYSIS         ","2326DR534009","14335","12200","41500","14009110",{"$f":"VLOOKUP(TRIM(J216),'Transactional Departments'!A:B,2,FALSE)","v":"Biological Research"},"14009110","","","","","MFRISHER  "]
["14","534",null,null,"SKIO (#93_126) APS MSBIOCHEMWS","2326DR534011","14335","12200","41500","14009120",{"$f":"VLOOKUP(TRIM(J217),'Transactional Departments'!A:B,2,FALSE)","v":"Chemical Research"},"14009120","","","","","ASTUBBINS "]
["14","534",null,null,"SALES - SHIP OPS-TECH SVCS    ","2326DR534012","14335","12200","41500","14009470",{"$f":"VLOOKUP(TRIM(J218),'Transactional Departments'!A:B,2,FALSE)","v":"Research Vessel Marine Tech"},"14009470","","","","",""]
["14","534",null,null,"SKIO (#93_389) CRA WRACK DIST ","2326DR534013","14335","12200","41500","14009100",{"$f":"VLOOKUP(TRIM(J219),'Transactional Departments'!A:B,2,FALSE)","v":"SKIO General Research"},"14009100","","","","",""]
["14","534",null,null,"SKIO (#349) CRA GADNRCOASTALUA","2326DR534014","14335","12200","41500","14009130",{"$f":"VLOOKUP(TRIM(J220),'Transactional Departments'!A:B,2,FALSE)","v":"Geological Research"},"14009130","","","","","CALEXANDER"]
["14","534",null,null,"SKIO (#460) NOAA DISTLEARNPROG","2326DR534015","14335","12200","41500","14009200",{"$f":"VLOOKUP(TRIM(J221),'Transactional Departments'!A:B,2,FALSE)","v":"GRNMS/NOAA Grant"},"14009200","","","","",""]
["14","534",null,null,"SKIO (#603) HLW NEWFIELDS PROG","2326DR534017","14335","12200","41500","14009120",{"$f":"VLOOKUP(TRIM(J222),'Transactional Departments'!A:B,2,FALSE)","v":"Chemical Research"},"14009120","","","","","HWINDOM   "]
["14","534",null,null,"SKIO (#086) NOAA PROGRAM SVCS ","2326DR534019","14335","12200","41500","14009200",{"$f":"VLOOKUP(TRIM(J223),'Transactional Departments'!A:B,2,FALSE)","v":"GRNMS/NOAA Grant"},"14009200","","","","","NOAAPROG  "]
["14","534",null,null,"SALES - SMALL BOAT OPERATIONS ","2326DR534020","14335","12200","41500","14009480",{"$f":"VLOOKUP(TRIM(J224),'Transactional Departments'!A:B,2,FALSE)","v":"Small Boats Operations"},"14009480","","","","",""]
["14","534",null,null,"SKIO (#93_121) APS DISCARBANAL","2326DR534021","14335","12200","41500","14009120",{"$f":"VLOOKUP(TRIM(J225),'Transactional Departments'!A:B,2,FALSE)","v":"Chemical Research"},"14009120","","","","","APSMICRO  "]
["14","534",null,null,"SKIO (#612) RFL HONEYWELL     ","2326DR534022","14335","12200","41500","14009120",{"$f":"VLOOKUP(TRIM(J226),'Transactional Departments'!A:B,2,FALSE)","v":"Chemical Research"},"14009120","","","","","RLEE      "]
["14","534",null,null,"SALES-CRE SKIO GLIDER LAB/SERV","2326DR534024","14335","12200","41500","14009140",{"$f":"VLOOKUP(TRIM(J227),'Transactional Departments'!A:B,2,FALSE)","v":"Physical Research"},"14009140","","","","","CEDWARDS  "]
["14","534",null,null,"MRF - RFL BLACK GILL DISEASE  ","2326DR534026","14335","12200","41500","14009110",{"$f":"VLOOKUP(TRIM(J228),'Transactional Departments'!A:B,2,FALSE)","v":"Biological Research"},"14009110","","","","","RLEE      "]
["14","534",null,null,"SALES - SHIP OPS DAY RATE IDC ","2326DR534028","14335","12200","41500","14009300",{"$f":"VLOOKUP(TRIM(J229),'Transactional Departments'!A:B,2,FALSE)","v":"SKIO Administration"},"14009300","","","","","SOPSID    "]
["14","534",null,null,"SALES - SHIP OPS MOSA         ","2326DR534030","14335","12200","41500","14009450",{"$f":"VLOOKUP(TRIM(J230),'Transactional Departments'!A:B,2,FALSE)","v":"Research Vessel Operations"},"14009450","","","","","SOPSMOSA  "]
["14","534",null,null,"SKIO JMD PD FUNDS/OTHER       ","2326DR534031","14335","12200","41500","14009120",{"$f":"VLOOKUP(TRIM(J231),'Transactional Departments'!A:B,2,FALSE)","v":"Chemical Research"},"14009120","","","","","JDIAZ     "]
["14","534",null,null,"SKIDAWAY INST OF OCEANOGRAPHY ","2326GJ534000","11335","11140","11200","14009300",{"$f":"VLOOKUP(TRIM(J232),'Transactional Departments'!A:B,2,FALSE)","v":"SKIO Administration"},"14009300","","","","",""]
["14","534",null,null,"SKIDAWAY INST OF OCEANOGRAPHY ","2326GR534000","11335","12200","11200","14009300",{"$f":"VLOOKUP(TRIM(J233),'Transactional Departments'!A:B,2,FALSE)","v":"SKIO Administration"},"14009300","","","","",""]
["14","534",null,null,"BIOLOGICAL RESEARCH           ","2326GR534100","11335","12200","11200","14009110",{"$f":"VLOOKUP(TRIM(J234),'Transactional Departments'!A:B,2,FALSE)","v":"Biological Research"},"14009110","","","","","SKIOBIOL  "]
["14","534",null,null,"CHEMICAL RESEARCH             ","2326GR534200","11335","12200","11200","14009120",{"$f":"VLOOKUP(TRIM(J235),'Transactional Departments'!A:B,2,FALSE)","v":"Chemical Research"},"14009120","","","","","SKIOCHEM  "]
["14","534",null,null,"PHYSICAL RESEARCH             ","2326GR534400","11335","12200","11200","14009140",{"$f":"VLOOKUP(TRIM(J236),'Transactional Departments'!A:B,2,FALSE)","v":"Physical Research"},"14009140","","","","","SKIOPHYS  "]
["14","534",null,null,"SKIO MISC SALES/SVCS (REVENUE)","2331DE534023","14335","13100","41500","14009300",{"$f":"VLOOKUP(TRIM(J237),'Transactional Departments'!A:B,2,FALSE)","v":"SKIO Administration"},"14009300","","","","",""]
["14","534",null,null,"SKIDAWAY INST OF OCEANOGRAPHY ","2341GT534000","11335","14100","11200","14009300",{"$f":"VLOOKUP(TRIM(J238),'Transactional Departments'!A:B,2,FALSE)","v":"SKIO Administration"},"14009300","","","","","LIBRARY   "]
["14","534",null,null,"SKIDAWAY INST OF OCEANOGRAPHY ","2344GT534000","11335","14400","11200","14009300",{"$f":"VLOOKUP(TRIM(J239),'Transactional Departments'!A:B,2,FALSE)","v":"SKIO Administration"},"14009300","","","","","ITSUPPORT "]
["14","534",null,null,"SKIDAWAY INST OF OCEANOGRAPHY ","2365GA534000","11335","16600","11200","14009300",{"$f":"VLOOKUP(TRIM(J240),'Transactional Departments'!A:B,2,FALSE)","v":"SKIO Administration"},"14009300","","","","",""]
["14","534",null,null,"SKIDAWAY INST OF OCEANOGRAPHY ","2371AP534000","15335","17100","11500","14009520",{"$f":"VLOOKUP(TRIM(J241),'Transactional Departments'!A:B,2,FALSE)","v":"Plant Operations"},"14009520","","","","",""]
["14","534",null,null,"SKIDAWAY INST OF OCEANOGRAPHY ","2371GP534000","11335","17100","11200","14009520",{"$f":"VLOOKUP(TRIM(J242),'Transactional Departments'!A:B,2,FALSE)","v":"Plant Operations"},"14009520","","","","",""]
["14","534",null,null,"NSF      RF SHP OPS MOSA SANDE","2371RP534119","20400","17100","61023","14009100",{"$f":"VLOOKUP(TRIM(J243),'Transactional Departments'!A:B,2,FALSE)","v":"SKIO General Research"},"14009100","","","","",""]
["14","534",null,null,"USDOD    RF MOSA         BICHY","2371RP534123","20400","17100","61012","14009100",{"$f":"VLOOKUP(TRIM(J244),'Transactional Departments'!A:B,2,FALSE)","v":"SKIO General Research"},"14009100","","","","",""]
["14","534",null,null,"SKIDAWAY INST OF OCEANOGRAPHY ","2399GN534000","11335","","11200","14009100",{"$f":"VLOOKUP(TRIM(J245),'Transactional Departments'!A:B,2,FALSE)","v":"SKIO General Research"},"14009100","","","","",""]
["14","554",null,null,"MUSEUM GIFT SHOP              ","5540GN554000","12230","23100","42100","14002002",{"$f":"VLOOKUP(TRIM(J246),'Transactional Departments'!A:B,2,FALSE)","v":"Museum Shop"},"14002002","","","","",""]
["14","554",null,null,"GMOA PUBLICATION-WHOLESALE    ","5540GN554002","12230","23100","42100","14002002",{"$f":"VLOOKUP(TRIM(J247),'Transactional Departments'!A:B,2,FALSE)","v":"Museum Shop"},"14002002","","","","",""]
["14","554",null,null,"MUSEUM GIFT SHOP              ","9082GN554001","60000","","","14002002",{"$f":"VLOOKUP(TRIM(J248),'Transactional Departments'!A:B,2,FALSE)","v":"Museum Shop"},"14002002","","","","",""]
["14","617",null,null,"OFFICE OF PERFORMING ARTS     ","1011GH617000","10000","11100","11200","14008001",{"$f":"VLOOKUP(TRIM(J249),'Transactional Departments'!A:B,2,FALSE)","v":"Performing Arts Admin"},"14008001","","","","",""]
["14","617",null,null,"         GA COUNCIL ARTS FOREM","1021RR617020","20400","12100","62026","14008001",{"$f":"VLOOKUP(TRIM(J250),'Transactional Departments'!A:B,2,FALSE)","v":"Performing Arts Admin"},"14008001","","","","",""]
["14","617",null,null,"NON-PAC TICKET SALES          ","1031DE617008","14100","13100","41500","14008002",{"$f":"VLOOKUP(TRIM(J251),'Transactional Departments'!A:B,2,FALSE)","v":"Non-Pac Ticket Sales"},"14008002","","","","",""]
["14","617",null,null,"PERF ARTS CTR - RENTALS       ","1031DE617009","14100","13100","41500","14008003",{"$f":"VLOOKUP(TRIM(J252),'Transactional Departments'!A:B,2,FALSE)","v":"PAC - Rentals"},"14008003","","","","",""]
["14","617",null,null,"PERF ARTS GIFT CARDS          ","1031DE617013","14100","13100","41500","14008004",{"$f":"VLOOKUP(TRIM(J253),'Transactional Departments'!A:B,2,FALSE)","v":"PAC - Gift Cards"},"14008004","","","","",""]
["14","617",null,null,"PERF ARTS CTR ALL ARTS CARD   ","1031DE617014","14100","13100","41500","14008005",{"$f":"VLOOKUP(TRIM(J254),'Transactional Departments'!A:B,2,FALSE)","v":"PAC - All Arts Cards"},"14008005","","","","",""]
["14","617",null,null,"PERF ARTS CTR TAXABLE FEES    ","1031DE617015","14100","13100","41500","14008006",{"$f":"VLOOKUP(TRIM(J255),'Transactional Departments'!A:B,2,FALSE)","v":"PAC - Taxable Fees"},"14008006","","","","",""]
["14","617",null,null,"SOUTH ARTUGA URBAN BUSH__FOREM","1031RE617018","20400","13100","64138","14008001",{"$f":"VLOOKUP(TRIM(J256),'Transactional Departments'!A:B,2,FALSE)","v":"Performing Arts Admin"},"14008001","","","","",""]
["14","617",null,null,"UGAF     PEF ART FC CHAM WHITT","1031RE617021","20200","13100","67628","14008001",{"$f":"VLOOKUP(TRIM(J257),'Transactional Departments'!A:B,2,FALSE)","v":"Performing Arts Admin"},"14008001","","","","",""]
["14","617",null,null,"GCA      GCA FY16        FOREM","1031RE617022","20400","13100","62026","14008001",{"$f":"VLOOKUP(TRIM(J258),'Transactional Departments'!A:B,2,FALSE)","v":"Performing Arts Admin"},"14008001","","","","",""]
["14","617",null,null,"         YNG PEOPL CNCRT FOREM","1031RE617023","20400","13100","64194","14008001",{"$f":"VLOOKUP(TRIM(J259),'Transactional Departments'!A:B,2,FALSE)","v":"Performing Arts Admin"},"14008001","","","","",""]
["14","617",null,null,"         REGIONAL TOURNG FOREM","1031RE617024","20400","13100","64138","14008001",{"$f":"VLOOKUP(TRIM(J260),'Transactional Departments'!A:B,2,FALSE)","v":"Performing Arts Admin"},"14008001","","","","",""]
["14","617",null,null,"UGAF     PERF ARTS CTR ARWHITT","1031RE617026","20200","13100","67629","14008001",{"$f":"VLOOKUP(TRIM(J261),'Transactional Departments'!A:B,2,FALSE)","v":"Performing Arts Admin"},"14008001","","","","",""]
["14","617",null,null,"         FALL 2016       FOREM","1031RE617027","20400","13100","64194","14008001",{"$f":"VLOOKUP(TRIM(J262),'Transactional Departments'!A:B,2,FALSE)","v":"Performing Arts Admin"},"14008001","","","","",""]
["14","617",null,null,"         TOUR GRANT FY17 FOREM","1031RE617029","20400","13100","64138","14008001",{"$f":"VLOOKUP(TRIM(J263),'Transactional Departments'!A:B,2,FALSE)","v":"Performing Arts Admin"},"14008001","","","","",""]
["14","617",null,null,"GCA/NEA  FY 18           FOREM","1031RE617031","20400","13100","62026","14008001",{"$f":"VLOOKUP(TRIM(J264),'Transactional Departments'!A:B,2,FALSE)","v":"Performing Arts Admin"},"14008001","","","","",""]
["14","617",null,null,"PERF ARTS CTR-FEES            ","1045DT617001","14100","14500","41500","14008007",{"$f":"VLOOKUP(TRIM(J265),'Transactional Departments'!A:B,2,FALSE)","v":"PAC - Fees"},"14008007","","","","",""]
["14","617",null,null,"PERF ARTS CTR - REV SINGLE    ","1045DT617002","14100","14500","41500","14008008",{"$f":"VLOOKUP(TRIM(J266),'Transactional Departments'!A:B,2,FALSE)","v":"PAC - Single Ticket Revenue"},"14008008","","","","",""]
["14","617",null,null,"PERF ARTS CTR - REV SEASON    ","1045DT617003","14100","14500","41500","14008009",{"$f":"VLOOKUP(TRIM(J267),'Transactional Departments'!A:B,2,FALSE)","v":"PAC - Season Ticket Revenue"},"14008009","","","","",""]
["14","617",null,null,"PERF ARTS CTR - MERCHANDISING ","1045DT617004","14100","14500","41500","14008010",{"$f":"VLOOKUP(TRIM(J268),'Transactional Departments'!A:B,2,FALSE)","v":"PAC - Merchandising"},"14008010","","","","",""]
["14","617",null,null,"PERF ARTS CTR - CONCESSIONS   ","1045DT617006","14100","14500","41500","14008011",{"$f":"VLOOKUP(TRIM(J269),'Transactional Departments'!A:B,2,FALSE)","v":"PAC - Concessions"},"14008011","","","","",""]
["14","617",null,null,"PERF ARTS CTR-RESTORATION FEES","1045DT617016","14100","14500","41500","14008012",{"$f":"VLOOKUP(TRIM(J270),'Transactional Departments'!A:B,2,FALSE)","v":"PAC - Restoration Fees"},"14008012","","","","",""]
["14","617",null,null,"OFFICE OF PERFORMING ARTS     ","1045GT617000","10500","14500","11800","14008001",{"$f":"VLOOKUP(TRIM(J271),'Transactional Departments'!A:B,2,FALSE)","v":"Performing Arts Admin"},"14008001","","","","",""]
["14","617",null,null,"UGAF     PERF ARTS CTR   FOREM","1045RT617011","20200","14500","67678","14008001",{"$f":"VLOOKUP(TRIM(J272),'Transactional Departments'!A:B,2,FALSE)","v":"Performing Arts Admin"},"14008001","","","","",""]
["14","617",null,null,"PERF ARTS CTR-FOREMAN DEV & PG","1046GT617006","10500","14600","11800","14008001",{"$f":"VLOOKUP(TRIM(J273),'Transactional Departments'!A:B,2,FALSE)","v":"Performing Arts Admin"},"14008001","","","","",""]
["14","617",null,null,"UGAF     PAC GORDON FUND WHITT","1046RT617030","20200","14600","","14008001",{"$f":"VLOOKUP(TRIM(J274),'Transactional Departments'!A:B,2,FALSE)","v":"Performing Arts Admin"},"14008001","","","","",""]
["14","617",null,null,"PERFORMING ARTS CENTER SLS TAX","9082GN617001","60000","","","14008001",{"$f":"VLOOKUP(TRIM(J275),'Transactional Departments'!A:B,2,FALSE)","v":"Performing Arts Admin"},"14008001","","","","",""]
["14","617",null,null,"PERFORMING ARTS-DONATIONS-FDN ","9086GN617003","60000","","","14008001",{"$f":"VLOOKUP(TRIM(J276),'Transactional Departments'!A:B,2,FALSE)","v":"Performing Arts Admin"},"14008001","","","","",""]
["14","619",null,null,"NUSS                       146","1946FT619102","10800","14600","13000","14001001",{"$f":"VLOOKUP(TRIM(J277),'Transactional Departments'!A:B,2,FALSE)","v":"AA Administration"},"14001001","","","","",""]
["14","723",null,null,"STUDY ABROAD C.A.F.           ","1011DH723004","14100","11100","41500","14006501",{"$f":"VLOOKUP(TRIM(J278),'Transactional Departments'!A:B,2,FALSE)","v":"CAF Fee"},"14006501","","","","",""]
["14","723",null,null,"CR LAB FEES                   ","1011DH723008","14100","11100","41500","14007405",{"$f":"VLOOKUP(TRIM(J279),'Transactional Departments'!A:B,2,FALSE)","v":"CR Lab Fee"},"14007405","","","","",""]
["14","723",null,null,"CORTONA LAB FEES              ","1011DH723009","14100","11100","41500","14007205",{"$f":"VLOOKUP(TRIM(J280),'Transactional Departments'!A:B,2,FALSE)","v":"CO Lab Fee"},"14007205","","","","",""]
["14","723",null,null,"EXCHANGE APPLICATION FEE      ","1011DH723092","14100","11100","41500","14006502",{"$f":"VLOOKUP(TRIM(J281),'Transactional Departments'!A:B,2,FALSE)","v":"Exchange Proc Fee"},"14006502","","","","",""]
["14","723",null,null,"GRAD SCHOOL STUDY ABROAD AWARD","1011DH723096","14100","11100","41500","14006102",{"$f":"VLOOKUP(TRIM(J282),'Transactional Departments'!A:B,2,FALSE)","v":"OIE Admin Office"},"14006102","","","","",""]
["14","723",null,null,"CR ATHENS ADMIN               ","1011DV723010","14100","11100","41507","14007410",{"$f":"VLOOKUP(TRIM(J283),'Transactional Departments'!A:B,2,FALSE)","v":"CR DSS Admin"},"14007410","","","","",""]
["14","723",null,null,"CORTONA SPRING SA PROGRAM     ","1011DV723016","14100","11100","41507","14006102",{"$f":"VLOOKUP(TRIM(J284),'Transactional Departments'!A:B,2,FALSE)","v":"OIE Admin Office"},"14006102","18000","NSABD1002SP18  ","100","",""]
["14","723",null,null,"CORTONA SUMMER SA PROGRAM     ","1011DV723017","14100","11100","41507","14007210",{"$f":"VLOOKUP(TRIM(J285),'Transactional Departments'!A:B,2,FALSE)","v":"CO DSS Admin"},"14007210","18000","NSABD1002SU18  ","100","",""]
["14","723",null,null,"CORTONA FALL SA PROGRAM       ","1011DV723018","14100","11100","41507","14007210",{"$f":"VLOOKUP(TRIM(J286),'Transactional Departments'!A:B,2,FALSE)","v":"CO DSS Admin"},"14007210","18000","NSABD1002FA17  ","100","",""]
["14","723",null,null,"CORTONA MM VITICULTURE SA PROG","1011DV723019","14100","11100","41507","14007210",{"$f":"VLOOKUP(TRIM(J287),'Transactional Departments'!A:B,2,FALSE)","v":"CO DSS Admin"},"14007210","18000","NSABD1069MM18  ","100","",""]
["14","723",null,null,"CORTONA MM SCIENCE SA PROGRAM ","1011DV723020","14100","11100","41507","14007210",{"$f":"VLOOKUP(TRIM(J288),'Transactional Departments'!A:B,2,FALSE)","v":"CO DSS Admin"},"14007210","18000","NSABD1070MM18  ","100","",""]
["14","723",null,null,"CORTONA JDK/SEVERINI ADMIN    ","1011DV723021","14100","11100","41507","14007210",{"$f":"VLOOKUP(TRIM(J289),'Transactional Departments'!A:B,2,FALSE)","v":"CO DSS Admin"},"14007210","","","","",""]
["14","723",null,null,"OXFORD RES CTR ADMIN          ","1011DV723022","14100","11100","41507","14007610",{"$f":"VLOOKUP(TRIM(J290),'Transactional Departments'!A:B,2,FALSE)","v":"Ox DSS Admin"},"14007610","","","","",""]
["14","723",null,null,"UGA AT OXFORD - SPIA SPRING   ","1011DV723023","14100","11100","41507","14006102",{"$f":"VLOOKUP(TRIM(J291),'Transactional Departments'!A:B,2,FALSE)","v":"OIE Admin Office"},"14006102","18000","NSABD1013SP18  ","100","",""]
["14","723",null,null,"UGA AT OXFORD-FRANKLIN SPRING ","1011DV723024","14100","11100","41507","14007610",{"$f":"VLOOKUP(TRIM(J292),'Transactional Departments'!A:B,2,FALSE)","v":"Ox DSS Admin"},"14007610","18000","NSABD1019SP18  ","100","",""]
["14","723",null,null,"UGA AT OXFORD - MAYMESTER     ","1011DV723025","14100","11100","41507","14007610",{"$f":"VLOOKUP(TRIM(J293),'Transactional Departments'!A:B,2,FALSE)","v":"Ox DSS Admin"},"14007610","18000","NSABD1066MM18  ","100","",""]
["14","723",null,null,"UGA AT OXFORD - JUNEMESTER    ","1011DV723026","14100","11100","41507","14007610",{"$f":"VLOOKUP(TRIM(J294),'Transactional Departments'!A:B,2,FALSE)","v":"Ox DSS Admin"},"14007610","18000","NSABD1067SU18  ","100","",""]
["14","723",null,null,"UGA AT OXFORD - SUMMER        ","1011DV723027","14100","11100","41507","14007610",{"$f":"VLOOKUP(TRIM(J295),'Transactional Departments'!A:B,2,FALSE)","v":"Ox DSS Admin"},"14007610","18000","NSABD1019SU18  ","100","",""]
["14","723",null,null,"UGA AT OXFORD - FALL          ","1011DV723028","14100","11100","41507","14007610",{"$f":"VLOOKUP(TRIM(J296),'Transactional Departments'!A:B,2,FALSE)","v":"Ox DSS Admin"},"14007610","18000","NSABD1019FA17  ","100","",""]
["14","723",null,null,"CORTONA MM THEATER SA PROGRAM ","1011DV723029","14100","11100","41507","14006102",{"$f":"VLOOKUP(TRIM(J297),'Transactional Departments'!A:B,2,FALSE)","v":"OIE Admin Office"},"14006102","18000","NSABD1071MM18  ","100","",""]
["14","723",null,null,"CR ASCWP MAYMESTER SA PROGRAMS","1011DV723030","14100","11100","41507","14007410",{"$f":"VLOOKUP(TRIM(J298),'Transactional Departments'!A:B,2,FALSE)","v":"CR DSS Admin"},"14007410","18000","NSABD1050MM18  ","100","",""]
["14","723",null,null,"CR ART & ASTRO MAY SA PROGRAMS","1011DV723031","14100","11100","41507","14007410",{"$f":"VLOOKUP(TRIM(J299),'Transactional Departments'!A:B,2,FALSE)","v":"CR DSS Admin"},"14007410","18000","NSABD1051MM18  ","100","",""]
["14","723",null,null,"CR GEOLOGY MAY SA PROGS B     ","1011DV723034","14100","11100","41507","14007410",{"$f":"VLOOKUP(TRIM(J300),'Transactional Departments'!A:B,2,FALSE)","v":"CR DSS Admin"},"14007410","18000","NSABD1054MM18  ","100","",""]
["14","723",null,null,"CR TROPICAL ECO MAY SA PROGRAM","1011DV723035","14100","11100","41507","14007410",{"$f":"VLOOKUP(TRIM(J301),'Transactional Departments'!A:B,2,FALSE)","v":"CR DSS Admin"},"14007410","18000","NSABD1007MM18  ","100","",""]
["14","723",null,null,"CR IPIC SUMMER SA PROGRAMS    ","1011DV723037","14100","11100","41507","14007410",{"$f":"VLOOKUP(TRIM(J302),'Transactional Departments'!A:B,2,FALSE)","v":"CR DSS Admin"},"14007410","18000","NSABD1057SU18  ","100","",""]
["14","723",null,null,"CR LACS SUMMER SA PROGRAMS    ","1011DV723038","14100","11100","41507","14007410",{"$f":"VLOOKUP(TRIM(J303),'Transactional Departments'!A:B,2,FALSE)","v":"CR DSS Admin"},"14007410","18000","NSABD1058SU18  ","100","",""]
["14","723",null,null,"CR LCSL SUMMER SA PROGRAMS    ","1011DV723039","14100","11100","41507","14007410",{"$f":"VLOOKUP(TRIM(J304),'Transactional Departments'!A:B,2,FALSE)","v":"CR DSS Admin"},"14007410","18000","NSABD1059SU18  ","100","",""]
["14","723",null,null,"CR ONE HLTH SUMMER SA PROGRAMS","1011DV723041","14100","11100","41507","14007410",{"$f":"VLOOKUP(TRIM(J305),'Transactional Departments'!A:B,2,FALSE)","v":"CR DSS Admin"},"14007410","18000","NSABD1061SU18  ","100","",""]
["14","723",null,null,"CR SURF & SUSTAIN SUM SA PROG ","1011DV723042","14100","11100","41507","14007410",{"$f":"VLOOKUP(TRIM(J306),'Transactional Departments'!A:B,2,FALSE)","v":"CR DSS Admin"},"14007410","18000","NSABD1062SU18  ","100","",""]
["14","723",null,null,"CR FALL STUDY ABROAD PROGRAMS ","1011DV723045","14100","11100","41507","14007410",{"$f":"VLOOKUP(TRIM(J307),'Transactional Departments'!A:B,2,FALSE)","v":"CR DSS Admin"},"14007410","18000","NSABD1008FA17  ","100","",""]
["14","723",null,null,"CR COFFEE TECH FALL SA PROGRAM","1011DV723047","14100","11100","41507","14007410",{"$f":"VLOOKUP(TRIM(J308),'Transactional Departments'!A:B,2,FALSE)","v":"CR DSS Admin"},"14007410","18000","NSABD1003FA17  ","100","",""]
["14","723",null,null,"OXFORD FRANKLIN FALL B        ","1011DV723055","14100","11100","41507","14007610",{"$f":"VLOOKUP(TRIM(J309),'Transactional Departments'!A:B,2,FALSE)","v":"Ox DSS Admin"},"14007610","18000","NSABD1019FA17B ","100","",""]
["14","723",null,null,"OXFORD SUMMER B               ","1011DV723056","14100","11100","41507","14006102",{"$f":"VLOOKUP(TRIM(J310),'Transactional Departments'!A:B,2,FALSE)","v":"OIE Admin Office"},"14006102","18000","NSABD1019SU18B ","100","",""]
["14","723",null,null,"OXFORD JUNEMESTER B           ","1011DV723057","14100","11100","41507","14006102",{"$f":"VLOOKUP(TRIM(J311),'Transactional Departments'!A:B,2,FALSE)","v":"OIE Admin Office"},"14006102","18000","NSABD1067SU18B ","100","",""]
["14","723",null,null,"OXFORD FRANKLIN SPG B         ","1011DV723058","14100","11100","41507","14007610",{"$f":"VLOOKUP(TRIM(J312),'Transactional Departments'!A:B,2,FALSE)","v":"Ox DSS Admin"},"14007610","18000","NSABD1019SP18B ","100","",""]
["14","723",null,null,"OXFORD MAYMESTER B            ","1011DV723059","14100","11100","41507","14006102",{"$f":"VLOOKUP(TRIM(J313),'Transactional Departments'!A:B,2,FALSE)","v":"OIE Admin Office"},"14006102","18000","NSABD1066MM18B ","100","",""]
["14","723",null,null,"OXFORD SPIA SPG B             ","1011DV723060","14100","11100","41507","14007610",{"$f":"VLOOKUP(TRIM(J314),'Transactional Departments'!A:B,2,FALSE)","v":"Ox DSS Admin"},"14007610","18000","NSABD1013SP18B ","100","",""]
["14","723",null,null,"CR TROPICAL ECO MAY SAP B     ","1011DV723061","14100","11100","41507","14006102",{"$f":"VLOOKUP(TRIM(J315),'Transactional Departments'!A:B,2,FALSE)","v":"OIE Admin Office"},"14006102","18000","NSABD1007MM18B ","100","",""]
["14","723",null,null,"CR GEOLOGY MAY SA PROGS       ","1011DV723062","14100","11100","41507","14006102",{"$f":"VLOOKUP(TRIM(J316),'Transactional Departments'!A:B,2,FALSE)","v":"OIE Admin Office"},"14006102","18000","NSABD1054MM18B ","100","",""]
["14","723",null,null,"CR NUTRITION ED MAY SAP B     ","1011DV723063","14100","11100","41507","14006102",{"$f":"VLOOKUP(TRIM(J317),'Transactional Departments'!A:B,2,FALSE)","v":"OIE Admin Office"},"14006102","18000","NSABD0013MM18B ","100","",""]
["14","723",null,null,"CR FACS MAYMESTER SAP         ","1011DV723065","14100","11100","41507","14006102",{"$f":"VLOOKUP(TRIM(J318),'Transactional Departments'!A:B,2,FALSE)","v":"OIE Admin Office"},"14006102","","","","",""]
["14","723",null,null,"CR ASCWP MAYMESTER SAP B      ","1011DV723067","14100","11100","41507","14006102",{"$f":"VLOOKUP(TRIM(J319),'Transactional Departments'!A:B,2,FALSE)","v":"OIE Admin Office"},"14006102","18000","NSABD1050MM18B ","100","",""]
["14","723",null,null,"CR ART & ASTRO MAY SAP B      ","1011DV723068","14100","11100","41507","14006102",{"$f":"VLOOKUP(TRIM(J320),'Transactional Departments'!A:B,2,FALSE)","v":"OIE Admin Office"},"14006102","18000","NSABD1051MM18B ","100","",""]
["14","723",null,null,"CR TROP REFOREST SPBK SAP B   ","1011DV723069","14100","11100","41507","14006102",{"$f":"VLOOKUP(TRIM(J321),'Transactional Departments'!A:B,2,FALSE)","v":"OIE Admin Office"},"14006102","","","","",""]
["14","723",null,null,"CR SPRING BREAK SAP B         ","1011DV723071","14100","11100","41507","14006102",{"$f":"VLOOKUP(TRIM(J322),'Transactional Departments'!A:B,2,FALSE)","v":"OIE Admin Office"},"14006102","","","","",""]
["14","723",null,null,"CR FRANKLIN SPRING SAP B      ","1011DV723072","14100","11100","41507","14006102",{"$f":"VLOOKUP(TRIM(J323),'Transactional Departments'!A:B,2,FALSE)","v":"OIE Admin Office"},"14006102","","","","",""]
["14","723",null,null,"CR COFFEE TECH FALL SAP B     ","1011DV723073","14100","11100","41507","14006102",{"$f":"VLOOKUP(TRIM(J324),'Transactional Departments'!A:B,2,FALSE)","v":"OIE Admin Office"},"14006102","18000","NSABD1003FA17B ","100","",""]
["14","723",null,null,"CR TROPICAL BIO FALL SAP B    ","1011DV723074","14100","11100","41507","14006102",{"$f":"VLOOKUP(TRIM(J325),'Transactional Departments'!A:B,2,FALSE)","v":"OIE Admin Office"},"14006102","18000","NSABD1008FA17B ","100","",""]
["14","723",null,null,"CR SURF & SUSTAIN SUM SAP B   ","1011DV723078","14100","11100","41507","14006102",{"$f":"VLOOKUP(TRIM(J326),'Transactional Departments'!A:B,2,FALSE)","v":"OIE Admin Office"},"14006102","18000","NSABD1062SU18B ","100","",""]
["14","723",null,null,"CR ONE HLTH SUMMER SAP B      ","1011DV723079","14100","11100","41507","14006102",{"$f":"VLOOKUP(TRIM(J327),'Transactional Departments'!A:B,2,FALSE)","v":"OIE Admin Office"},"14006102","18000","NSABD1061SU18B ","100","",""]
["14","723",null,null,"CR LCSL SUMMER SAP B          ","1011DV723081","14100","11100","41507","14006102",{"$f":"VLOOKUP(TRIM(J328),'Transactional Departments'!A:B,2,FALSE)","v":"OIE Admin Office"},"14006102","18000","NSABD1059SU18B ","100","",""]
["14","723",null,null,"CR LACS SUMMER SAP B          ","1011DV723082","14100","11100","41507","14006102",{"$f":"VLOOKUP(TRIM(J329),'Transactional Departments'!A:B,2,FALSE)","v":"OIE Admin Office"},"14006102","18000","NSABD1058SU18B ","100","",""]
["14","723",null,null,"CR IPIC SUMMER SAP B          ","1011DV723083","14100","11100","41507","14006102",{"$f":"VLOOKUP(TRIM(J330),'Transactional Departments'!A:B,2,FALSE)","v":"OIE Admin Office"},"14006102","18000","NSABD1057SU18B ","100","",""]
["14","723",null,null,"CORTONA SUMMER SAP B          ","1011DV723085","14100","11100","41507","14007210",{"$f":"VLOOKUP(TRIM(J331),'Transactional Departments'!A:B,2,FALSE)","v":"CO DSS Admin"},"14007210","18000","NSABD1002SU18B ","100","",""]
["14","723",null,null,"CORTONA FALL SAP B            ","1011DV723086","14100","11100","41507","14007210",{"$f":"VLOOKUP(TRIM(J332),'Transactional Departments'!A:B,2,FALSE)","v":"CO DSS Admin"},"14007210","18000","NSABD1002FA17B ","100","",""]
["14","723",null,null,"CORTONA SPRING SAP B          ","1011DV723087","14100","11100","41507","14007210",{"$f":"VLOOKUP(TRIM(J333),'Transactional Departments'!A:B,2,FALSE)","v":"CO DSS Admin"},"14007210","18000","NSABD1002SP18B ","100","",""]
["14","723",null,null,"CORTONA MM SCIENCE SAP B      ","1011DV723088","14100","11100","41507","14007210",{"$f":"VLOOKUP(TRIM(J334),'Transactional Departments'!A:B,2,FALSE)","v":"CO DSS Admin"},"14007210","18000","NSABD1070MM18B ","100","",""]
["14","723",null,null,"CORTONA MM VITICULTURE SAP B  ","1011DV723089","14100","11100","41507","14006102",{"$f":"VLOOKUP(TRIM(J335),'Transactional Departments'!A:B,2,FALSE)","v":"OIE Admin Office"},"14006102","18000","NSABD1069MM18B ","100","",""]
["14","723",null,null,"AUGUSTA UNIVERSITY AT CORTONA ","1011DV723090","14100","11100","41507","14007210",{"$f":"VLOOKUP(TRIM(J336),'Transactional Departments'!A:B,2,FALSE)","v":"CO DSS Admin"},"14007210","18000","NSABD9999SP18  ","100","",""]
["14","723",null,null,"TERRY MBA CORTONA             ","1011DV723091","14100","11100","41507","14006102",{"$f":"VLOOKUP(TRIM(J337),'Transactional Departments'!A:B,2,FALSE)","v":"OIE Admin Office"},"14006102","","","","",""]
["14","723",null,null,"CORTONA TERRY BUS CULTURE MM  ","1011DV723093","14100","11100","41507","14007210",{"$f":"VLOOKUP(TRIM(J338),'Transactional Departments'!A:B,2,FALSE)","v":"CO DSS Admin"},"14007210","18000","NSABD1181MM18  ","100","",""]
["14","723",null,null,"CO EAST GEORGIA SPRING SAP    ","1011DV723094","14100","11100","41507","14006102",{"$f":"VLOOKUP(TRIM(J339),'Transactional Departments'!A:B,2,FALSE)","v":"OIE Admin Office"},"14006102","","","","",""]
["14","723",null,null,"CORTONA UNEARTHING THE PAST MM","1011DV723095","14100","11100","41507","14007210",{"$f":"VLOOKUP(TRIM(J340),'Transactional Departments'!A:B,2,FALSE)","v":"CO DSS Admin"},"14007210","18000","NSABD1180MM18B ","100","",""]
["14","723",null,null,"CORTONA CARI STUDY ABROAD     ","1011DV723097","14100","11100","41507","14006102",{"$f":"VLOOKUP(TRIM(J341),'Transactional Departments'!A:B,2,FALSE)","v":"OIE Admin Office"},"14006102","","","","",""]
["14","723",null,null,"RESIDENTIAL CENTER ADMIN      ","1011DV723347","14100","11100","41507","14006102",{"$f":"VLOOKUP(TRIM(J342),'Transactional Departments'!A:B,2,FALSE)","v":"OIE Admin Office"},"14006102","","","","",""]
["14","723",null,null,"CR NED MAYMESTER SAP          ","1011DV723353","14100","11100","41507","14006102",{"$f":"VLOOKUP(TRIM(J343),'Transactional Departments'!A:B,2,FALSE)","v":"OIE Admin Office"},"14006102","","","","",""]
["14","723",null,null,"CR HUMANITITES MAY SAP        ","1011DV723354","14100","11100","41507","14006102",{"$f":"VLOOKUP(TRIM(J344),'Transactional Departments'!A:B,2,FALSE)","v":"OIE Admin Office"},"14006102","","","","",""]
["14","723",null,null,"STUDY ABROAD PROGS CONTINGENCY","1011DV723800","14100","11100","41507","14007003",{"$f":"VLOOKUP(TRIM(J345),'Transactional Departments'!A:B,2,FALSE)","v":"Study Abroad Contingency"},"14007003","","","","",""]
["14","723",null,null,"CORTONA PROGRAM CONTINGENCY   ","1011DV723801","14100","11100","41507","14006102",{"$f":"VLOOKUP(TRIM(J346),'Transactional Departments'!A:B,2,FALSE)","v":"OIE Admin Office"},"14006102","","","","",""]
["14","723",null,null,"COSTA RICA PROGRAM CONTINGENCY","1011DV723802","14100","11100","41507","14007401",{"$f":"VLOOKUP(TRIM(J347),'Transactional Departments'!A:B,2,FALSE)","v":"Costa Rica Program Contingency"},"14007401","","","","",""]
["14","723",null,null,"OXFORD PROGRAM CONTINGENCY    ","1011DV723803","14100","11100","41507","14007601",{"$f":"VLOOKUP(TRIM(J348),'Transactional Departments'!A:B,2,FALSE)","v":"Oxford Program Contingency"},"14007601","","","","",""]
["14","723",null,null,"CORTONA ADMIN CONTINGENCY     ","1011DV723804","14100","11100","41507","14006102",{"$f":"VLOOKUP(TRIM(J349),'Transactional Departments'!A:B,2,FALSE)","v":"OIE Admin Office"},"14006102","","","","",""]
["14","723",null,null,"OXFORD ADMIN CONTINGENCY      ","1011DV723805","14100","11100","41507","14007602",{"$f":"VLOOKUP(TRIM(J350),'Transactional Departments'!A:B,2,FALSE)","v":"Oxford Operations Contingency"},"14007602","","","","",""]
["14","723",null,null,"STUDY ABROAD PROG DEP SWEEP   ","1011DV723900","14100","11100","41507","14007002",{"$f":"VLOOKUP(TRIM(J351),'Transactional Departments'!A:B,2,FALSE)","v":"Study Abroad Deposit Sweep"},"14007002","","","","",""]
["14","723",null,null,"DSS CARRY FORWARD             ","1011DV723925","14100","11100","41507","14006102",{"$f":"VLOOKUP(TRIM(J352),'Transactional Departments'!A:B,2,FALSE)","v":"OIE Admin Office"},"14006102","","","","",""]
["14","723",null,null,"LEASE UGAREF CORTONA          ","1011GH723264","10500","11100","11800","14007201",{"$f":"VLOOKUP(TRIM(J353),'Transactional Departments'!A:B,2,FALSE)","v":"Cortona Program Contingency"},"14007201","","","","",""]
["14","723",null,null,"LEASE UGAF COSTA RICA         ","1011GH723265","10500","11100","11800","14007401",{"$f":"VLOOKUP(TRIM(J354),'Transactional Departments'!A:B,2,FALSE)","v":"Costa Rica Program Contingency"},"14007401","","","","",""]
["14","723",null,null,"LEASE UGAF OXFORD 104 BANBURY ","1011GH723266","10500","11100","11800","14007601",{"$f":"VLOOKUP(TRIM(J355),'Transactional Departments'!A:B,2,FALSE)","v":"Oxford Program Contingency"},"14007601","","","","",""]
["14","723",null,null,"OXFORD SPIA SPG               ","1011GV723023","10000","11100","11200","14006102",{"$f":"VLOOKUP(TRIM(J356),'Transactional Departments'!A:B,2,FALSE)","v":"OIE Admin Office"},"14006102","18000","NSABD1013SP18  ","100","",""]
["14","723",null,null,"OXFORD FRANKLIN SPG           ","1011GV723024","10000","11100","11200","14007610",{"$f":"VLOOKUP(TRIM(J357),'Transactional Departments'!A:B,2,FALSE)","v":"Ox DSS Admin"},"14007610","18000","NSABD1019SP18  ","100","",""]
["14","723",null,null,"OXFORD MAYMESTER              ","1011GV723025","10000","11100","11200","14007610",{"$f":"VLOOKUP(TRIM(J358),'Transactional Departments'!A:B,2,FALSE)","v":"Ox DSS Admin"},"14007610","18000","NSABD1066MM18  ","100","",""]
["14","723",null,null,"OXFORD JUNEMESTER             ","1011GV723026","10000","11100","11200","14007610",{"$f":"VLOOKUP(TRIM(J359),'Transactional Departments'!A:B,2,FALSE)","v":"Ox DSS Admin"},"14007610","18000","NSABD1067SU18  ","100","",""]
["14","723",null,null,"OXFORD FRANKLIN FALL          ","1011GV723028","10000","11100","11200","14007610",{"$f":"VLOOKUP(TRIM(J360),'Transactional Departments'!A:B,2,FALSE)","v":"Ox DSS Admin"},"14007610","18000","NSABD1019FA17  ","100","",""]
["14","723",null,null,"CORTONA MM THEATER SA PROGRAM ","1011GV723029","10000","11100","11200","14006102",{"$f":"VLOOKUP(TRIM(J361),'Transactional Departments'!A:B,2,FALSE)","v":"OIE Admin Office"},"14006102","","","","",""]
["14","723",null,null,"CR IPIC SUMMER SA PROGRAMS    ","1011GV723037","10000","11100","11200","14007410",{"$f":"VLOOKUP(TRIM(J362),'Transactional Departments'!A:B,2,FALSE)","v":"CR DSS Admin"},"14007410","18000","NSABD1057SU18  ","100","",""]
["14","723",null,null,"CR LACS SUMMER SA PROGRAMS    ","1011GV723038","10000","11100","11200","14007410",{"$f":"VLOOKUP(TRIM(J363),'Transactional Departments'!A:B,2,FALSE)","v":"CR DSS Admin"},"14007410","18000","NSABD1058SU18  ","100","",""]
["14","723",null,null,"CR LCSL SUMMER SA PROGRAMS    ","1011GV723039","10000","11100","11200","14007410",{"$f":"VLOOKUP(TRIM(J364),'Transactional Departments'!A:B,2,FALSE)","v":"CR DSS Admin"},"14007410","18000","NSABD1059SU18  ","100","",""]
["14","723",null,null,"CR ONE HEALTH (CMCB) SUM SA   ","1011GV723042","10000","11100","11200","14007410",{"$f":"VLOOKUP(TRIM(J365),'Transactional Departments'!A:B,2,FALSE)","v":"CR DSS Admin"},"14007410","18000","NSABD1061SU18  ","100","",""]
["14","723",null,null,"CR FALL STUDY ABROAD PROGRAMS ","1011GV723045","10000","11100","11200","14007410",{"$f":"VLOOKUP(TRIM(J366),'Transactional Departments'!A:B,2,FALSE)","v":"CR DSS Admin"},"14007410","18000","NSABD1008FA17  ","100","",""]
["14","723",null,null,"CR COFFEE TECH FALL SA PROGS  ","1011GV723047","10000","11100","11200","14007410",{"$f":"VLOOKUP(TRIM(J367),'Transactional Departments'!A:B,2,FALSE)","v":"CR DSS Admin"},"14007410","18000","NSABD1003FA17  ","100","",""]
["14","723",null,null,"OIE - STUDY ABROAD TUITION    ","1011GV723050","10500","11100","11800","14007001",{"$f":"VLOOKUP(TRIM(J368),'Transactional Departments'!A:B,2,FALSE)","v":"Study Abroad Allocation"},"14007001","","","","",""]
["14","723",null,null,"OXFORD SUMMER                 ","1011GV723340","10000","11100","11200","14007610",{"$f":"VLOOKUP(TRIM(J369),'Transactional Departments'!A:B,2,FALSE)","v":"Ox DSS Admin"},"14007610","18000","NSABD1019SU18  ","100","",""]
["14","723",null,null,"CORTONA FALL STUDY ABROAD     ","1011GV723341","10000","11100","11200","14007210",{"$f":"VLOOKUP(TRIM(J370),'Transactional Departments'!A:B,2,FALSE)","v":"CO DSS Admin"},"14007210","18000","NSABD1002FA17  ","100","",""]
["14","723",null,null,"CORTONA SPRING STUDY ABROAD   ","1011GV723342","10000","11100","11200","14006102",{"$f":"VLOOKUP(TRIM(J371),'Transactional Departments'!A:B,2,FALSE)","v":"OIE Admin Office"},"14006102","18000","NSABD1002SP18  ","100","",""]
["14","723",null,null,"CORTONA MM SCIENCE STUDY ABR  ","1011GV723343","10000","11100","11200","14007210",{"$f":"VLOOKUP(TRIM(J372),'Transactional Departments'!A:B,2,FALSE)","v":"CO DSS Admin"},"14007210","18000","NSABD1070MM18  ","100","",""]
["14","723",null,null,"CORTONA MM VITICULTURE        ","1011GV723344","10000","11100","11200","14007210",{"$f":"VLOOKUP(TRIM(J373),'Transactional Departments'!A:B,2,FALSE)","v":"CO DSS Admin"},"14007210","18000","NSABD1069MM18  ","100","",""]
["14","723",null,null,"CORTONA SUMMER STUDY ABROAD   ","1011GV723345","10000","11100","11200","14007210",{"$f":"VLOOKUP(TRIM(J374),'Transactional Departments'!A:B,2,FALSE)","v":"CO DSS Admin"},"14007210","18000","NSABD1002SU18  ","100","",""]
["14","723",null,null,"RESIDENTIAL CENTER ADMIN      ","1011GV723347","10000","11100","11200","14007101",{"$f":"VLOOKUP(TRIM(J375),'Transactional Departments'!A:B,2,FALSE)","v":"Residential Center Admin"},"14007101","","","","",""]
["14","723",null,null,"CORTONA TERRY BUS CULTURE MM  ","1011GV723349","10000","11100","11200","14007210",{"$f":"VLOOKUP(TRIM(J376),'Transactional Departments'!A:B,2,FALSE)","v":"CO DSS Admin"},"14007210","18000","NSABD1181MM18  ","100","",""]
["14","723",null,null,"CR SURFING & SUSTAIN SUM SAP  ","1011GV723379","10000","11100","11200","14007410",{"$f":"VLOOKUP(TRIM(J377),'Transactional Departments'!A:B,2,FALSE)","v":"CR DSS Admin"},"14007410","18000","NSABD1062SU18  ","100","",""]
["14","723",null,null,"UGAF     CIRRUCULUM INT  MOREH","1011RH723180","20200","11100","67276","14006102",{"$f":"VLOOKUP(TRIM(J378),'Transactional Departments'!A:B,2,FALSE)","v":"OIE Admin Office"},"14006102","","","","",""]
["14","723",null,null,"UGAAA    DOOLEY AWD FY15 PANDI","1011RH723324","20400","11100","64228","14006102",{"$f":"VLOOKUP(TRIM(J379),'Transactional Departments'!A:B,2,FALSE)","v":"OIE Admin Office"},"14006102","","","","",""]
["14","723",null,null,"UGAAA    DOOLEY AWD FY18 FALLO","1011RH723340","20400","11100","64228","14006102",{"$f":"VLOOKUP(TRIM(J380),'Transactional Departments'!A:B,2,FALSE)","v":"OIE Admin Office"},"14006102","","","","",""]
["14","723",null,null,"UGAF     UGA-CROATIA PARTWHITT","1011RH723381","20200","11100","","14006102",{"$f":"VLOOKUP(TRIM(J381),'Transactional Departments'!A:B,2,FALSE)","v":"OIE Admin Office"},"14006102","","","","",""]
["14","723",null,null,"OFFICE INTERNATIONAL EDUCATION","1019GJ723000","10500","14400","11800","14006108",{"$f":"VLOOKUP(TRIM(J382),'Transactional Departments'!A:B,2,FALSE)","v":"IT Fund"},"14006108","","","","",""]
["14","723",null,null,"STF OFFICE INT'L AFFARIS      ","1019TJ723001","16000","14400","11600","14006102",{"$f":"VLOOKUP(TRIM(J383),'Transactional Departments'!A:B,2,FALSE)","v":"OIE Admin Office"},"14006102","","","","",""]
["14","723",null,null,"PEAC CORPFY18 CAMPUS REC      ","1031CE723382","10000","13120","61029","14006102",{"$f":"VLOOKUP(TRIM(J384),'Transactional Departments'!A:B,2,FALSE)","v":"OIE Admin Office"},"14006102","","","","",""]
["14","723",null,null,"INT'L AFFAIRS-ACTIVITIES FUND ","1031DW723001","14100","13100","41500","14006503",{"$f":"VLOOKUP(TRIM(J385),'Transactional Departments'!A:B,2,FALSE)","v":"Activity/SA Fair"},"14006503","","","","",""]
["14","723",null,null,"PC       CAMPUS RECRUIT  PANDI","1031RE723325","20400","13100","61029","14006102",{"$f":"VLOOKUP(TRIM(J386),'Transactional Departments'!A:B,2,FALSE)","v":"OIE Admin Office"},"14006102","","","","",""]
["14","723",null,null,"RESIDUAL #723 OFC INTL AFF/EDU","1031RX723950","20400","13100","64RBP","14006102",{"$f":"VLOOKUP(TRIM(J387),'Transactional Departments'!A:B,2,FALSE)","v":"OIE Admin Office"},"14006102","","","","",""]
["14","723",null,null,"ISSIS PROCESSING FEE          ","1045DT723005","14100","14500","41500","14006402",{"$f":"VLOOKUP(TRIM(J388),'Transactional Departments'!A:B,2,FALSE)","v":"Immigration Servs"},"14006402","","","","",""]
["14","723",null,null,"OFFICE INTERNATIONAL EDUCATION","1045GT723000","10500","14500","11800","14006102",{"$f":"VLOOKUP(TRIM(J389),'Transactional Departments'!A:B,2,FALSE)","v":"OIE Admin Office"},"14006102","","","","",""]
["14","723",null,null,"OXFORD RESIDENTIAL CENTER SUPP","1045GT723004","10500","14500","11800","14006102",{"$f":"VLOOKUP(TRIM(J390),'Transactional Departments'!A:B,2,FALSE)","v":"OIE Admin Office"},"14006102","","","","",""]
["14","723",null,null,"INT'L EDU/AFF SEVIS FEE       ","1045GT723027","10500","14500","11800","14006401",{"$f":"VLOOKUP(TRIM(J391),'Transactional Departments'!A:B,2,FALSE)","v":"SEVIS Fees"},"14006401","","","","",""]
["14","723",null,null,"SEVERINI EXPENSES             ","1045GT723257","10500","14500","11800","14007201",{"$f":"VLOOKUP(TRIM(J392),'Transactional Departments'!A:B,2,FALSE)","v":"Cortona Program Contingency"},"14007201","","","","",""]
["14","723",null,null,"OIE RESIDENT CNTR CONTINGENCY ","9086GN723002","60000","","","14006102",{"$f":"VLOOKUP(TRIM(J393),'Transactional Departments'!A:B,2,FALSE)","v":"OIE Admin Office"},"14006102","","","","",""]
["14","723",null,null,"UGA EXCHANGE PROGRAMS         ","9086GN723021","60000","","","14006102",{"$f":"VLOOKUP(TRIM(J394),'Transactional Departments'!A:B,2,FALSE)","v":"OIE Admin Office"},"14006102","","","","",""]
["14","723",null,null,"HEALTH INSURANCE-INT'L STUDENT","9086GN723033","60000","","","14006102",{"$f":"VLOOKUP(TRIM(J395),'Transactional Departments'!A:B,2,FALSE)","v":"OIE Admin Office"},"14006102","","","","",""]
["14","723",null,null,"EXCHANGE SEC HOUSING          ","9086GN723095","60000","","","14006102",{"$f":"VLOOKUP(TRIM(J396),'Transactional Departments'!A:B,2,FALSE)","v":"OIE Admin Office"},"14006102","","","","",""]
["14","723",null,null,"STUDY ABROAD CONTINGENCY      ","9086GN723348","60000","","","14006102",{"$f":"VLOOKUP(TRIM(J397),'Transactional Departments'!A:B,2,FALSE)","v":"OIE Admin Office"},"14006102","","","","",""]
["14","740",null,null,"UGAF     INSTITUTION DIV MOREH","1011RH740013","20200","11100","67845","14005001",{"$f":"VLOOKUP(TRIM(J398),'Transactional Departments'!A:B,2,FALSE)","v":"OID Administration"},"14005001","","","","",""]
["14","740",null,null,"PVF PEACH STATE LSAMP CONFERE ","1011RX740014","20200","11100","","14005001",{"$f":"VLOOKUP(TRIM(J399),'Transactional Departments'!A:B,2,FALSE)","v":"OID Administration"},"14005001","","","","",""]
["14","740",null,null,"NSF      RF 17-19 LSAMP__BARBO","1021RR740021","20400","12100","61023","14005001",{"$f":"VLOOKUP(TRIM(J400),'Transactional Departments'!A:B,2,FALSE)","v":"OID Administration"},"14005001","","","","",""]
["14","740",null,null,"UGARF INDIRECT COST RETURN 740","1021RX740900","20300","12100","64ICR","14005001",{"$f":"VLOOKUP(TRIM(J401),'Transactional Departments'!A:B,2,FALSE)","v":"OID Administration"},"14005001","","","","",""]
["14","740",null,null,"PEACH STATE LSAMP AR - UGA    ","1025AR740001","15000","12400","11500","14005001",{"$f":"VLOOKUP(TRIM(J402),'Transactional Departments'!A:B,2,FALSE)","v":"OID Administration"},"14005001","","","","",""]
["14","740",null,null,"INSTITUTIONAL DIVERSITY AR-UGA","1025AR740002","15000","12400","11500","14005001",{"$f":"VLOOKUP(TRIM(J403),'Transactional Departments'!A:B,2,FALSE)","v":"OID Administration"},"14005001","","","","",""]
["14","740",null,null,"USG      UGA GAAME       COOK ","1031CE740023","10000","13120","11200","14005001",{"$f":"VLOOKUP(TRIM(J404),'Transactional Departments'!A:B,2,FALSE)","v":"OID Administration"},"14005001","","","","",""]
["14","740",null,null,"FREEDOM BREAKFAST             ","1031DW740007","14100","13100","41500","14005001",{"$f":"VLOOKUP(TRIM(J405),'Transactional Departments'!A:B,2,FALSE)","v":"OID Administration"},"14005001","","","","",""]
["14","740",null,null,"GA BOR   AAMI FY15       COOK ","1031RE740016","20400","13100","62020","14005001",{"$f":"VLOOKUP(TRIM(J406),'Transactional Departments'!A:B,2,FALSE)","v":"OID Administration"},"14005001","","","","",""]
["14","740",null,null,"USG      GA AFR MALE EXP COOK ","1031RE740017","20400","13100","62020","14005001",{"$f":"VLOOKUP(TRIM(J407),'Transactional Departments'!A:B,2,FALSE)","v":"OID Administration"},"14005001","","","","",""]
["14","740",null,null,"OID PROJECTS                  ","1046DW740001","14100","14600","41500","14005101",{"$f":"VLOOKUP(TRIM(J408),'Transactional Departments'!A:B,2,FALSE)","v":"OID Projects Admin"},"14005101","","","","",""]
["14","740",null,null,"INSTITUTIONAL DIVERSITY       ","1046GT740000","10500","14600","11800","14005001",{"$f":"VLOOKUP(TRIM(J409),'Transactional Departments'!A:B,2,FALSE)","v":"OID Administration"},"14005001","","","","",""]
["14","740",null,null,"GEORGIA DAZE PROGRAM SUPPORT  ","1055DS740005","14100","15500","41500","14005200",{"$f":"VLOOKUP(TRIM(J410),'Transactional Departments'!A:B,2,FALSE)","v":"Georgia Daze Program"},"14005200","","","","",""]
["14","749",null,null,"SKIDAWAY AUXILIARY OPERATIONS ","5510GN749000","12210","21100","42100","14009600",{"$f":"VLOOKUP(TRIM(J411),'Transactional Departments'!A:B,2,FALSE)","v":"Skidaway Institute - Housing"},"14009600","","","","",""]
["14","749",null,null,"SKIDAWAY AUXILIARY OPERATIONS ","5550GN749000","12270","27100","42100","14009600",{"$f":"VLOOKUP(TRIM(J412),'Transactional Departments'!A:B,2,FALSE)","v":"Skidaway Institute - Housing"},"14009600","","","","",""]
["14","791",null,null,"GMOA SECURITY                 ","1042GT791000","10500","14200","11800","14002001",{"$f":"VLOOKUP(TRIM(J413),'Transactional Departments'!A:B,2,FALSE)","v":"GMOA Departmental Adm"},"14002001","","","","","GMOASECUR "]
["15","010",null,null,"UGAF     GA POWER GRADY  WELLS","1011RH010057","20200","11100","67002","15400001",{"$f":"VLOOKUP(TRIM(J414),'Transactional Departments'!A:B,2,FALSE)","v":"The Press Budget"},"15400001","","","","",""]
["15","010",null,null,"UGAF     BOOK SUPPORTERS      ","1011RH010101","20200","11100","67003","15400001",{"$f":"VLOOKUP(TRIM(J415),'Transactional Departments'!A:B,2,FALSE)","v":"The Press Budget"},"15400001","","","","",""]
["15","010",null,null,"         PRESS COLEMAN   WELLS","1011RH010102","20200","11100","67004","15400001",{"$f":"VLOOKUP(TRIM(J416),'Transactional Departments'!A:B,2,FALSE)","v":"The Press Budget"},"15400001","","","","",""]
["15","010",null,null,"UGAF     THE PRESS DISCR      ","1011RH010103","20200","11100","67005","15400001",{"$f":"VLOOKUP(TRIM(J417),'Transactional Departments'!A:B,2,FALSE)","v":"The Press Budget"},"15400001","","","","",""]
["15","010",null,null,"UGAF     UGA PRESS FRNDS MOREH","1011RH010107","20200","11100","67006","15400001",{"$f":"VLOOKUP(TRIM(J418),'Transactional Departments'!A:B,2,FALSE)","v":"The Press Budget"},"15400001","","","","",""]
["15","010",null,null,"ROYALTY SHEFFIELD BRADLEY HALE","1011RX010067","20400","11100","64182","15400001",{"$f":"VLOOKUP(TRIM(J419),'Transactional Departments'!A:B,2,FALSE)","v":"The Press Budget"},"15400001","","","","",""]
["15","010",null,null,"ROYALTY BRUCE MCEVER FUND     ","1011RX010068","20400","11100","64206","15400001",{"$f":"VLOOKUP(TRIM(J420),'Transactional Departments'!A:B,2,FALSE)","v":"The Press Budget"},"15400001","","","","",""]
["15","010",null,null,"         UGARF SUPPORT   WELLS","1021RX010900","20300","12100","64ICR","15400001",{"$f":"VLOOKUP(TRIM(J421),'Transactional Departments'!A:B,2,FALSE)","v":"The Press Budget"},"15400001","","","","",""]
["15","010",null,null,"UNIVERSITY PRESS              ","1031DE010000","14100","13100","41500","15400001",{"$f":"VLOOKUP(TRIM(J422),'Transactional Departments'!A:B,2,FALSE)","v":"The Press Budget"},"15400001","","","","",""]
["15","010",null,null,"UNIVERSITY PRESS              ","1031GJ010000","10000","11140","11200","15400001",{"$f":"VLOOKUP(TRIM(J423),'Transactional Departments'!A:B,2,FALSE)","v":"The Press Budget"},"15400001","","","","",""]
["15","010",null,null,"UNIV PRESS OTHER GENERAL FUNDS","1031GJ010002","10600","11140","11300","15400001",{"$f":"VLOOKUP(TRIM(J424),'Transactional Departments'!A:B,2,FALSE)","v":"The Press Budget"},"15400001","","","","",""]
["15","010",null,null,"ROYALTY JV WORMSLO WELLS      ","1031RX010003","20400","13100","64387","15400001",{"$f":"VLOOKUP(TRIM(J425),'Transactional Departments'!A:B,2,FALSE)","v":"The Press Budget"},"15400001","","","","",""]
["15","010",null,null,"ROYALTY VARIOUS GIFTS PUBLISH ","1031RX010004","20400","13100","64206","15400001",{"$f":"VLOOKUP(TRIM(J426),'Transactional Departments'!A:B,2,FALSE)","v":"The Press Budget"},"15400001","","","","",""]
["15","010",null,null,"ROYALTY JV WB FND  WELLS      ","1031RX010048","20400","13100","64521","15400001",{"$f":"VLOOKUP(TRIM(J427),'Transactional Departments'!A:B,2,FALSE)","v":"The Press Budget"},"15400001","","","","",""]
["15","010",null,null,"ROYALTY JV NATURE  MITCH      ","1031RX010053","20400","13100","64522","15400001",{"$f":"VLOOKUP(TRIM(J428),'Transactional Departments'!A:B,2,FALSE)","v":"The Press Budget"},"15400001","","","","",""]
["15","010",null,null,"ROYALTY JV HODGE   MITCH      ","1031RX010054","20400","13100","64523","15400001",{"$f":"VLOOKUP(TRIM(J429),'Transactional Departments'!A:B,2,FALSE)","v":"The Press Budget"},"15400001","","","","",""]
["15","010",null,null,"ROYALTY JV GRAHAM  MITCH      ","1031RX010059","20400","13100","64544","15400001",{"$f":"VLOOKUP(TRIM(J430),'Transactional Departments'!A:B,2,FALSE)","v":"The Press Budget"},"15400001","","","","",""]
["15","010",null,null,"         RESIDUAL #010   ORCHA","1031RX010950","20400","13100","64RBP","15400001",{"$f":"VLOOKUP(TRIM(J431),'Transactional Departments'!A:B,2,FALSE)","v":"The Press Budget"},"15400001","","","","",""]
["15","010",null,null,"PRESS                         ","9082GN010001","60000","","","15400001",{"$f":"VLOOKUP(TRIM(J432),'Transactional Departments'!A:B,2,FALSE)","v":"The Press Budget"},"15400001","","","","",""]
["15","020",null,null,"NEA      NEA GAP FY 16   SOLOM","1031CE020021","10000","13120","11200","15500001",{"$f":"VLOOKUP(TRIM(J433),'Transactional Departments'!A:B,2,FALSE)","v":"Georgia Review General"},"15500001","","","","",""]
["15","020",null,null,"GEORGIA REVIEW                ","1031DE020000","14100","13100","41500","15500001",{"$f":"VLOOKUP(TRIM(J434),'Transactional Departments'!A:B,2,FALSE)","v":"Georgia Review General"},"15500001","","","","",""]
["15","020",null,null,"GEORGIA REVIEW                ","1031GE020000","10500","13100","11800","15500001",{"$f":"VLOOKUP(TRIM(J435),'Transactional Departments'!A:B,2,FALSE)","v":"Georgia Review General"},"15500001","","","","",""]
["15","020",null,null,"GEORGIA REVIEW AUTHORS        ","1031GE020006","10500","13100","11800","15500001",{"$f":"VLOOKUP(TRIM(J436),'Transactional Departments'!A:B,2,FALSE)","v":"Georgia Review General"},"15500001","","","","",""]
["15","020",null,null,"UGAF     GA REV SUPPORT  COREY","1031RE020018","20200","13100","67559","15500001",{"$f":"VLOOKUP(TRIM(J437),'Transactional Departments'!A:B,2,FALSE)","v":"Georgia Review General"},"15500001","","","","",""]
["15","020",null,null,"GEORGIA REVIEW GIFT INCOME    ","1065RX020015","20400","16600","64206","15500001",{"$f":"VLOOKUP(TRIM(J438),'Transactional Departments'!A:B,2,FALSE)","v":"Georgia Review General"},"15500001","","","","",""]
["15","020",null,null,"GEORGIA REVIEW                ","9082GN020001","60000","","","15500001",{"$f":"VLOOKUP(TRIM(J439),'Transactional Departments'!A:B,2,FALSE)","v":"Georgia Review General"},"15500001","","","","",""]
["15","064",null,null,"WC CLSTR RSCH INIT MCGINN  265","1021RX064636","20300","12100","64F18","15100001",{"$f":"VLOOKUP(TRIM(J440),'Transactional Departments'!A:B,2,FALSE)","v":"Libraries Budget"},"15100001","","","","",""]
["15","265",null,null,"UGAF     GREEN FAMILY    MOREH","1011RH265025","20200","11100","67240","15100001",{"$f":"VLOOKUP(TRIM(J441),'Transactional Departments'!A:B,2,FALSE)","v":"Libraries Budget"},"15100001","","","","",""]
["15","265",null,null,"UGAF     GA WRITERS HALL MOREH","1011RH265027","20200","11100","67241","15100001",{"$f":"VLOOKUP(TRIM(J442),'Transactional Departments'!A:B,2,FALSE)","v":"Libraries Budget"},"15100001","","","","",""]
["15","265",null,null,"UGAF     HARGRETT SUP FNDMOREH","1011RH265036","20200","11100","67242","15100001",{"$f":"VLOOKUP(TRIM(J443),'Transactional Departments'!A:B,2,FALSE)","v":"Libraries Budget"},"15100001","","","","",""]
["15","265",null,null,"UGAF     RICHARD A PARKS WHITT","1011RH265041","20200","11100","67243","15100001",{"$f":"VLOOKUP(TRIM(J444),'Transactional Departments'!A:B,2,FALSE)","v":"Libraries Budget"},"15100001","","","","",""]
["15","265",null,null,"UGAF     SIDNEY THOMAS   WHITT","1011RH265042","20200","11100","67244","15100001",{"$f":"VLOOKUP(TRIM(J445),'Transactional Departments'!A:B,2,FALSE)","v":"Libraries Budget"},"15100001","","","","",""]
["15","265",null,null,"UGAF     HANCOCK LIBRARY MATTH","1011RH265134","20200","11100","","15100001",{"$f":"VLOOKUP(TRIM(J446),'Transactional Departments'!A:B,2,FALSE)","v":"Libraries Budget"},"15100001","","","","",""]
["15","265",null,null,"UGAF     DIG LIB GA      MOREH","1011RH265142","20200","11100","67245","15100001",{"$f":"VLOOKUP(TRIM(J447),'Transactional Departments'!A:B,2,FALSE)","v":"Libraries Budget"},"15100001","","","","",""]
["15","265",null,null,"UGAF     MEDIA SUPPORT FNMORRI","1011RH265145","20200","11100","67246","15100001",{"$f":"VLOOKUP(TRIM(J448),'Transactional Departments'!A:B,2,FALSE)","v":"Libraries Budget"},"15100001","","","","",""]
["15","265",null,null,"UGAF     RUSSELL SPT FND MORRI","1011RH265146","20200","11100","67247","15100001",{"$f":"VLOOKUP(TRIM(J449),'Transactional Departments'!A:B,2,FALSE)","v":"Libraries Budget"},"15100001","","","","",""]
["15","265",null,null,"AWMF     HUMANITIES LAB  GRAHA","1011RH265147","20400","11100","64392","15100001",{"$f":"VLOOKUP(TRIM(J450),'Transactional Departments'!A:B,2,FALSE)","v":"Libraries Budget"},"15100001","","","","",""]
["15","265",null,null,"LSU/NEH  UGA TEXTUAL_____MCGIN","1011RH265164","20400","11100","62500","15100001",{"$f":"VLOOKUP(TRIM(J451),'Transactional Departments'!A:B,2,FALSE)","v":"Libraries Budget"},"15100001","","","","",""]
["15","265",null,null,"STF LIBRARIES                 ","1019TJ265001","16000","14400","11600","15100001",{"$f":"VLOOKUP(TRIM(J452),'Transactional Departments'!A:B,2,FALSE)","v":"Libraries Budget"},"15100001","","","","",""]
["15","265",null,null,"         RF CONGRESS     SEVER","1021RR265035","20400","12100","64000","15100001",{"$f":"VLOOKUP(TRIM(J453),'Transactional Departments'!A:B,2,FALSE)","v":"Libraries Budget"},"15100001","","","","",""]
["15","265",null,null,"         UGARF SUPPORT   MATTH","1021RX265900","20300","12100","64ICR","15100001",{"$f":"VLOOKUP(TRIM(J454),'Transactional Departments'!A:B,2,FALSE)","v":"Libraries Budget"},"15100001","","","","",""]
["15","265",null,null,"         RESIDUAL #265RR POTTE","1021RX265950","20400","12100","64RBP","15100001",{"$f":"VLOOKUP(TRIM(J455),'Transactional Departments'!A:B,2,FALSE)","v":"Libraries Budget"},"15100001","","","","",""]
["15","265",null,null,"INDIRECT F & A COST RECOVERY  ","1031AE265001","15000","13100","11500","15100001",{"$f":"VLOOKUP(TRIM(J456),'Transactional Departments'!A:B,2,FALSE)","v":"Libraries Budget"},"15100001","","","","",""]
["15","265",null,null,"NEH      UGA_NDNP________MCALI","1031CE265162","10000","13120","11200","15100001",{"$f":"VLOOKUP(TRIM(J457),'Transactional Departments'!A:B,2,FALSE)","v":"Libraries Budget"},"15100001","","","","",""]
["15","265",null,null,"LIBRARIES WIDESPREAD PANIC    ","1031DE265017","14100","13100","41500","15100001",{"$f":"VLOOKUP(TRIM(J458),'Transactional Departments'!A:B,2,FALSE)","v":"Libraries Budget"},"15100001","","","","",""]
["15","265",null,null,"DIGITAL HUMANITIES INCOME     ","1031DE265019","14100","13100","41500","15119000",{"$f":"VLOOKUP(TRIM(J459),'Transactional Departments'!A:B,2,FALSE)","v":"Digital Humanities Lab Income"},"15119000","","","","",""]
["15","265",null,null,"AHS/NHPRCAMER TURN POINT MCALI","1031RE265029","20400","13100","64407","15100001",{"$f":"VLOOKUP(TRIM(J460),'Transactional Departments'!A:B,2,FALSE)","v":"Libraries Budget"},"15100001","","","","",""]
["15","265",null,null,"NA       RECORD PROCESS  DARBY","1031RE265038","20400","13100","61000","15100001",{"$f":"VLOOKUP(TRIM(J461),'Transactional Departments'!A:B,2,FALSE)","v":"Libraries Budget"},"15100001","","","","",""]
["15","265",null,null,"GHS/NHPRCONLINE EDUC     MCALI","1031RE265143","20400","13100","64000","15100001",{"$f":"VLOOKUP(TRIM(J462),'Transactional Departments'!A:B,2,FALSE)","v":"Libraries Budget"},"15100001","","","","",""]
["15","265",null,null,"UGAF     DRAPER COLL SUP WHITT","1031RE265149","20200","13100","67606","15100001",{"$f":"VLOOKUP(TRIM(J463),'Transactional Departments'!A:B,2,FALSE)","v":"Libraries Budget"},"15100001","","","","",""]
["15","265",null,null,"UGAF     RUSS LIB ORAL HIWHITT","1031RE265150","20200","13100","67607","15100001",{"$f":"VLOOKUP(TRIM(J464),'Transactional Departments'!A:B,2,FALSE)","v":"Libraries Budget"},"15100001","","","","",""]
["15","265",null,null,"UGAF     SE DRAPER CNT&ARWHITT","1031RE265151","20200","13100","67608","15100001",{"$f":"VLOOKUP(TRIM(J465),'Transactional Departments'!A:B,2,FALSE)","v":"Libraries Budget"},"15100001","","","","",""]
["15","265",null,null,"UGAF     HARDMAN FUND    WHITT","1031RE265153","20200","13100","67609","15100001",{"$f":"VLOOKUP(TRIM(J466),'Transactional Departments'!A:B,2,FALSE)","v":"Libraries Budget"},"15100001","","","","",""]
["15","265",null,null,"UGAF     JOAN TITUS COLCTWHITT","1031RE265154","20200","13100","67610","15100001",{"$f":"VLOOKUP(TRIM(J467),'Transactional Departments'!A:B,2,FALSE)","v":"Libraries Budget"},"15100001","","","","",""]
["15","265",null,null,"UGAF     RJ TALOR JR FDN WHITT","1031RE265155","20200","13100","67611","15100001",{"$f":"VLOOKUP(TRIM(J468),'Transactional Departments'!A:B,2,FALSE)","v":"Libraries Budget"},"15100001","","","","",""]
["15","265",null,null,"UGAF     SPECIAL COLLECTIWHITT","1031RE265156","20200","13100","67612","15100001",{"$f":"VLOOKUP(TRIM(J469),'Transactional Departments'!A:B,2,FALSE)","v":"Libraries Budget"},"15100001","","","","",""]
["15","265",null,null,"UGAF     UGA LIBRARIES EVWHITT","1031RE265157","20200","13100","","15100001",{"$f":"VLOOKUP(TRIM(J470),'Transactional Departments'!A:B,2,FALSE)","v":"Libraries Budget"},"15100001","","","","",""]
["15","265",null,null,"UGAF     MINGLEDORFF-LORIWHITT","1031RE265159","20200","13100","","15100001",{"$f":"VLOOKUP(TRIM(J471),'Transactional Departments'!A:B,2,FALSE)","v":"Libraries Budget"},"15100001","","","","",""]
["15","265",null,null,"UGAF     RUSSELL PROGRAMMWHITT","1031RE265160","20200","13100","","15100001",{"$f":"VLOOKUP(TRIM(J472),'Transactional Departments'!A:B,2,FALSE)","v":"Libraries Budget"},"15100001","","","","",""]
["15","265",null,null,"UGAF     UGA ORAL HIST PRWHITT","1031RE265161","20200","13100","","15100001",{"$f":"VLOOKUP(TRIM(J473),'Transactional Departments'!A:B,2,FALSE)","v":"Libraries Budget"},"15100001","","","","",""]
["15","265",null,null,"LIBRARY SALES                 ","1041DT265001","14100","14100","41500","15101000",{"$f":"VLOOKUP(TRIM(J474),'Transactional Departments'!A:B,2,FALSE)","v":"Libraries Sales"},"15101000","","","","",""]
["15","265",null,null,"LIBRARIES SLC INCOME ACCOUNT  ","1041DT265002","14100","14100","41500","15102000",{"$f":"VLOOKUP(TRIM(J475),'Transactional Departments'!A:B,2,FALSE)","v":"Miller Learning Center Income"},"15102000","","","","",""]
["15","265",null,null,"LIBRARIES HOMEPLACE-GRAHAM    ","1041DT265003","14100","14100","41500","15103000",{"$f":"VLOOKUP(TRIM(J476),'Transactional Departments'!A:B,2,FALSE)","v":"Library Homeplace Graham"},"15103000","","","","",""]
["15","265",null,null,"COIN OPERATED COPY SERVICES   ","1041DT265007","14100","14100","41500","15107000",{"$f":"VLOOKUP(TRIM(J477),'Transactional Departments'!A:B,2,FALSE)","v":"Copy Services Income"},"15107000","","","","",""]
["15","265",null,null,"UGA LIBRARY MED. ARCHIVES FUND","1041DT265008","14100","14100","41500","15108000",{"$f":"VLOOKUP(TRIM(J478),'Transactional Departments'!A:B,2,FALSE)","v":"Media/Peabody Income"},"15108000","","","","",""]
["15","265",null,null,"LIBRARIES SPECIAL COLLECTIONS ","1041DT265014","14100","14100","41500","15114000",{"$f":"VLOOKUP(TRIM(J479),'Transactional Departments'!A:B,2,FALSE)","v":"Special Collections Lib Income"},"15114000","","","","",""]
["15","265",null,null,"LIBRARIES BOOK SALES          ","1041DT265015","14100","14100","41500","15155000",{"$f":"VLOOKUP(TRIM(J480),'Transactional Departments'!A:B,2,FALSE)","v":"Libraries Book Sales"},"15155000","","","","",""]
["15","265",null,null,"LIBRARIES DLG                 ","1041DT265016","14100","14100","41500","15116000",{"$f":"VLOOKUP(TRIM(J481),'Transactional Departments'!A:B,2,FALSE)","v":"Digital Library Of Georgia"},"15116000","","","","",""]
["15","265",null,null,"THAT CAMP - DHL               ","1041DT265020","14100","14100","41500","15100001",{"$f":"VLOOKUP(TRIM(J482),'Transactional Departments'!A:B,2,FALSE)","v":"Libraries Budget"},"15100001","","","","",""]
["15","265",null,null,"DSS CARRY FORWARD             ","1041DT265925","14100","14100","41500","15100001",{"$f":"VLOOKUP(TRIM(J483),'Transactional Departments'!A:B,2,FALSE)","v":"Libraries Budget"},"15100001","","","","",""]
["15","265",null,null,"LIBRARIES-GENERAL OPERATIONS  ","1041GT265000","10500","14100","11800","15100001",{"$f":"VLOOKUP(TRIM(J484),'Transactional Departments'!A:B,2,FALSE)","v":"Libraries Budget"},"15100001","","","","",""]
["15","265",null,null,"DATA PROCESSING EXPENSE       ","1041GT265003","10500","14100","11800","15100001",{"$f":"VLOOKUP(TRIM(J485),'Transactional Departments'!A:B,2,FALSE)","v":"Libraries Budget"},"15100001","","","","",""]
["15","265",null,null,"LIBRARIES - SECURITY          ","1041GT265005","10500","14100","11800","15105000",{"$f":"VLOOKUP(TRIM(J486),'Transactional Departments'!A:B,2,FALSE)","v":"Library Security Main"},"15105000","","","","",""]
["15","265",null,null,"LIBRARIES - GALILEO           ","1041GT265012","10500","14100","11800","15112000",{"$f":"VLOOKUP(TRIM(J487),'Transactional Departments'!A:B,2,FALSE)","v":"Galileo GIL"},"15112000","","","","",""]
["15","265",null,null,"LIBRARIES SLC OPERATIONS      ","1041GT265015","10500","14100","11800","15115001",{"$f":"VLOOKUP(TRIM(J488),'Transactional Departments'!A:B,2,FALSE)","v":"MLC Budget"},"15115001","","","","",""]
["15","265",null,null,"GALILEO/GIL SERVICES          ","1041GT265017","10500","14100","11800","15117000",{"$f":"VLOOKUP(TRIM(J489),'Transactional Departments'!A:B,2,FALSE)","v":"Galileo"},"15117000","","","","",""]
["15","265",null,null,"SPECIAL COLLECTIONS LIB BLDG  ","1041GT265021","10500","14100","11800","15121001",{"$f":"VLOOKUP(TRIM(J490),'Transactional Departments'!A:B,2,FALSE)","v":"SCL Budget"},"15121001","","","","",""]
["15","265",null,null,"CAPITOL MUSEUM - LIBS GEN OP  ","1041GT265023","10000","14100","11200","15123000",{"$f":"VLOOKUP(TRIM(J491),'Transactional Departments'!A:B,2,FALSE)","v":"Georgia Capitol History Museum"},"15123000","","","","",""]
["15","265",null,null,"CARNEGIE LIBRARY - LIBRARIES  ","1041GT265025","10000","14100","11200","15125000",{"$f":"VLOOKUP(TRIM(J492),'Transactional Departments'!A:B,2,FALSE)","v":"Carnegie"},"15125000","","","","",""]
["15","265",null,null,"UGAF     KELLUM PROF DEV MOREH","1041RT265028","20200","14100","67643","15100001",{"$f":"VLOOKUP(TRIM(J493),'Transactional Departments'!A:B,2,FALSE)","v":"Libraries Budget"},"15100001","","","","",""]
["15","265",null,null,"UGAF     SP COLL MOVING  ROGER","1041RT265030","20200","14100","67644","15100001",{"$f":"VLOOKUP(TRIM(J494),'Transactional Departments'!A:B,2,FALSE)","v":"Libraries Budget"},"15100001","","","","",""]
["15","265",null,null,"UGAF     FOLEY ENDMNT    MOREH","1041RT265031","20200","14100","67645","15100001",{"$f":"VLOOKUP(TRIM(J495),'Transactional Departments'!A:B,2,FALSE)","v":"Libraries Budget"},"15100001","","","","",""]
["15","265",null,null,"UGAF     OC ADERHOLD     MOREH","1041RT265032","20200","14100","67646","15100001",{"$f":"VLOOKUP(TRIM(J496),'Transactional Departments'!A:B,2,FALSE)","v":"Libraries Budget"},"15100001","","","","",""]
["15","265",null,null,"UGAF     DERENNE COLLECTIMOREH","1041RT265037","20200","14100","67647","15100001",{"$f":"VLOOKUP(TRIM(J497),'Transactional Departments'!A:B,2,FALSE)","v":"Libraries Budget"},"15100001","","","","",""]
["15","265",null,null,"         LANGSTON STANLEYMACE ","1041RT265115","20400","14100","65000","15100001",{"$f":"VLOOKUP(TRIM(J498),'Transactional Departments'!A:B,2,FALSE)","v":"Libraries Budget"},"15100001","","","","",""]
["15","265",null,null,"         TATE FUND       MATTH","1041RT265116","20200","14100","67648","15100001",{"$f":"VLOOKUP(TRIM(J499),'Transactional Departments'!A:B,2,FALSE)","v":"Libraries Budget"},"15100001","","","","",""]
["15","265",null,null,"         HARGRETT FUND   MATTH","1041RT265117","20200","14100","67649","15100001",{"$f":"VLOOKUP(TRIM(J500),'Transactional Departments'!A:B,2,FALSE)","v":"Libraries Budget"},"15100001","","","","",""]
["15","265",null,null,"UGAF     STUDENT LRNING  MATTH","1041RT265124","20200","14100","67650","15100001",{"$f":"VLOOKUP(TRIM(J501),'Transactional Departments'!A:B,2,FALSE)","v":"Libraries Budget"},"15100001","","","","",""]
["15","265",null,null,"UGAF     LH DRAPER ENDOW MATTH","1041RT265126","20200","14100","67651","15100001",{"$f":"VLOOKUP(TRIM(J502),'Transactional Departments'!A:B,2,FALSE)","v":"Libraries Budget"},"15100001","","","","",""]
["15","265",null,null,"UGAF     WOODRUFF SR     MATTH","1041RT265128","20200","14100","67652","15100001",{"$f":"VLOOKUP(TRIM(J503),'Transactional Departments'!A:B,2,FALSE)","v":"Libraries Budget"},"15100001","","","","",""]
["15","265",null,null,"WIGGINS-BAINS                 ","1041RX265033","20400","14100","64000","15100001",{"$f":"VLOOKUP(TRIM(J504),'Transactional Departments'!A:B,2,FALSE)","v":"Libraries Budget"},"15100001","","","","",""]
["15","265",null,null,"PROGRAM DEVELOPMENT-LIBRARIES ","1065GA265009","10500","16600","11800","15100001",{"$f":"VLOOKUP(TRIM(J505),'Transactional Departments'!A:B,2,FALSE)","v":"Libraries Budget"},"15100001","","","","",""]
["15","265",null,null,"LIBRARIES-GENERAL OPERATIONS  ","1099GN265000","10000","","11200","15100001",{"$f":"VLOOKUP(TRIM(J506),'Transactional Departments'!A:B,2,FALSE)","v":"Libraries Budget"},"15100001","","","","",""]
["15","265",null,null,"LIBRARY                       ","9082GN265006","60000","","","15100001",{"$f":"VLOOKUP(TRIM(J507),'Transactional Departments'!A:B,2,FALSE)","v":"Libraries Budget"},"15100001","","","","",""]
["15","265",null,null,"COIN-OP COPIER SERVICES       ","9082GN265008","60000","","","15100001",{"$f":"VLOOKUP(TRIM(J508),'Transactional Departments'!A:B,2,FALSE)","v":"Libraries Budget"},"15100001","","","","",""]
["15","265",null,null,"MEDIA ARCHIVES FUND           ","9082GN265018","60000","","","15100001",{"$f":"VLOOKUP(TRIM(J509),'Transactional Departments'!A:B,2,FALSE)","v":"Libraries Budget"},"15100001","","","","",""]
["15","265",null,null,"LIBRARIES SPECIAL COLLECTIONS ","9082GN265022","60000","","","15100001",{"$f":"VLOOKUP(TRIM(J510),'Transactional Departments'!A:B,2,FALSE)","v":"Libraries Budget"},"15100001","","","","",""]
["15","265",null,null,"LIBRARIES BOOK SALES TAX ACCT ","9082GN265024","60000","","","15100001",{"$f":"VLOOKUP(TRIM(J511),'Transactional Departments'!A:B,2,FALSE)","v":"Libraries Budget"},"15100001","","","","",""]
["15","265",null,null,"CARREL KEYS DEPOSIT           ","9086GN265001","60000","","","15100001",{"$f":"VLOOKUP(TRIM(J512),'Transactional Departments'!A:B,2,FALSE)","v":"Libraries Budget"},"15100001","","","","",""]
["15","265",null,null,"LILLIAN SMITH BOOK AWARDS     ","9086GN265016","60000","","","15100001",{"$f":"VLOOKUP(TRIM(J513),'Transactional Departments'!A:B,2,FALSE)","v":"Libraries Budget"},"15100001","","","","",""]
["15","266",null,null,"LIBRARIES-BOOKS               ","1041GT266000","10500","14100","11800","15200001",{"$f":"VLOOKUP(TRIM(J514),'Transactional Departments'!A:B,2,FALSE)","v":"Libraries Materials Budget"},"15200001","","","","",""]
["15","266",null,null,"         ALUMNI ENDOWMENT     ","1041RT266002","20400","14100","65000","15200001",{"$f":"VLOOKUP(TRIM(J515),'Transactional Departments'!A:B,2,FALSE)","v":"Libraries Materials Budget"},"15200001","","","","",""]
["15","266",null,null,"         JENNIE SMITH-E       ","1041RT266011","20400","14100","65000","15200001",{"$f":"VLOOKUP(TRIM(J516),'Transactional Departments'!A:B,2,FALSE)","v":"Libraries Materials Budget"},"15200001","","","","",""]
["15","266",null,null,"         WASHINGTON J H RBISHO","1041RT266013","20400","14100","65000","15200001",{"$f":"VLOOKUP(TRIM(J517),'Transactional Departments'!A:B,2,FALSE)","v":"Libraries Materials Budget"},"15200001","","","","",""]
["15","266",null,null,"         MCKAMY          BISHO","1041RT266015","20400","14100","65000","15200001",{"$f":"VLOOKUP(TRIM(J518),'Transactional Departments'!A:B,2,FALSE)","v":"Libraries Materials Budget"},"15200001","","","","",""]
["15","266",null,null,"         W H BOCOCK -E   BISHO","1041RT266021","20400","14100","65000","15200001",{"$f":"VLOOKUP(TRIM(J519),'Transactional Departments'!A:B,2,FALSE)","v":"Libraries Materials Budget"},"15200001","","","","",""]
["15","266",null,null,"         LAMAR WILLIAM PEMATTH","1041RT266022","20400","14100","65000","15200001",{"$f":"VLOOKUP(TRIM(J520),'Transactional Departments'!A:B,2,FALSE)","v":"Libraries Materials Budget"},"15200001","","","","",""]
["15","266",null,null,"         ANN MCHORTER FUND    ","1041RT266076","20200","14100","67653","15200001",{"$f":"VLOOKUP(TRIM(J521),'Transactional Departments'!A:B,2,FALSE)","v":"Libraries Materials Budget"},"15200001","","","","",""]
["15","266",null,null,"         JHT MCPHERSON        ","1041RT266081","20200","14100","67654","15200001",{"$f":"VLOOKUP(TRIM(J522),'Transactional Departments'!A:B,2,FALSE)","v":"Libraries Materials Budget"},"15200001","","","","",""]
["15","266",null,null,"         O C  ADERHOLD FUND   ","1041RT266082","20200","14100","67655","15200001",{"$f":"VLOOKUP(TRIM(J523),'Transactional Departments'!A:B,2,FALSE)","v":"Libraries Materials Budget"},"15200001","","","","",""]
["15","266",null,null,"         HARGRETT LIBRARY FD-E","1041RT266086","20400","14100","65000","15200001",{"$f":"VLOOKUP(TRIM(J524),'Transactional Departments'!A:B,2,FALSE)","v":"Libraries Materials Budget"},"15200001","","","","",""]
["15","266",null,null,"         DOOLEY LIB ENDMT FUND","1041RT266092","20200","14100","67656","15200001",{"$f":"VLOOKUP(TRIM(J525),'Transactional Departments'!A:B,2,FALSE)","v":"Libraries Materials Budget"},"15200001","","","","",""]
["15","266",null,null,"         ROZIER MEM FUND      ","1041RT266114","20200","14100","67657","15200001",{"$f":"VLOOKUP(TRIM(J526),'Transactional Departments'!A:B,2,FALSE)","v":"Libraries Materials Budget"},"15200001","","","","",""]
["15","266",null,null,"         LIBRARIES-DISCRTNRY  ","1041RT266117","20200","14100","67658","15200001",{"$f":"VLOOKUP(TRIM(J527),'Transactional Departments'!A:B,2,FALSE)","v":"Libraries Materials Budget"},"15200001","","","","",""]
["15","266",null,null,"         FRED WITTOP FUNDANDER","1041RT266127","20400","14100","65000","15200001",{"$f":"VLOOKUP(TRIM(J528),'Transactional Departments'!A:B,2,FALSE)","v":"Libraries Materials Budget"},"15200001","","","","",""]
["15","266",null,null,"         LIBRARY SUPPORT      ","1041RT266768","20400","14100","65000","15200001",{"$f":"VLOOKUP(TRIM(J529),'Transactional Departments'!A:B,2,FALSE)","v":"Libraries Materials Budget"},"15200001","","","","",""]
["15","266",null,null,"         RESIDUAL #266IN POTTE","1041RX266950","20400","14100","64RBP","15100001",{"$f":"VLOOKUP(TRIM(J530),'Transactional Departments'!A:B,2,FALSE)","v":"Libraries Budget"},"15100001","","","","",""]
["15","375",null,null,"         ALUMNI LIBRARY       ","1011RH375752","20400","11100","65752","15100001",{"$f":"VLOOKUP(TRIM(J531),'Transactional Departments'!A:B,2,FALSE)","v":"Libraries Budget"},"15100001","","","","",""]
["15","375",null,null,"         LANGSTON H STANLEY   ","1011RH375767","20400","11100","65767","15100001",{"$f":"VLOOKUP(TRIM(J532),'Transactional Departments'!A:B,2,FALSE)","v":"Libraries Budget"},"15100001","","","","",""]
["15","375",null,null,"         LIBRARY SUPPORT TRUST","1011RH375768","20400","11100","65768","15100001",{"$f":"VLOOKUP(TRIM(J533),'Transactional Departments'!A:B,2,FALSE)","v":"Libraries Budget"},"15100001","","","","",""]
["15","375",null,null,"         MCKAMY DAVID KNODUNHA","1011RH375774","20400","11100","65774","15100001",{"$f":"VLOOKUP(TRIM(J534),'Transactional Departments'!A:B,2,FALSE)","v":"Libraries Budget"},"15100001","","","","",""]
["15","375",null,null,"         W H BOCOCK           ","4111RH375756","20400","11100","65756","15100001",{"$f":"VLOOKUP(TRIM(J535),'Transactional Departments'!A:B,2,FALSE)","v":"Libraries Budget"},"15100001","","","","",""]
["15","375",null,null,"         HARGRETT LIBRARY FUND","4111RH375764","20400","11100","65764","15100001",{"$f":"VLOOKUP(TRIM(J536),'Transactional Departments'!A:B,2,FALSE)","v":"Libraries Budget"},"15100001","","","","",""]
["15","375",null,null,"         JENNIE SMITH         ","4111RH375780","20400","11100","65780","15100001",{"$f":"VLOOKUP(TRIM(J537),'Transactional Departments'!A:B,2,FALSE)","v":"Libraries Budget"},"15100001","","","","",""]
["15","375",null,null,"         WASHINGTON J H R SCI ","4111RH375788","20400","11100","65788","15100001",{"$f":"VLOOKUP(TRIM(J538),'Transactional Departments'!A:B,2,FALSE)","v":"Libraries Budget"},"15100001","","","","",""]
["15","375",null,null,"         FREDERICK WITTOPHUBBE","4111RH375796","20400","11100","65796","15100001",{"$f":"VLOOKUP(TRIM(J539),'Transactional Departments'!A:B,2,FALSE)","v":"Libraries Budget"},"15100001","","","","",""]
["15","375",null,null,"ETTA ARNTZEN LIBRARY SUPPORT  ","4111RH375799","20400","11100","65799","15100001",{"$f":"VLOOKUP(TRIM(J540),'Transactional Departments'!A:B,2,FALSE)","v":"Libraries Budget"},"15100001","","","","",""]
["15","513",null,null,"THE PRESS                     ","5540GN513000","12230","23100","42100","15400001",{"$f":"VLOOKUP(TRIM(J541),'Transactional Departments'!A:B,2,FALSE)","v":"The Press Budget"},"15400001","","","","",""]
["15","513",null,null,"THE PRESS EQUIPMENT           ","8065GW513801","12230","23100","42100","15400001",{"$f":"VLOOKUP(TRIM(J542),'Transactional Departments'!A:B,2,FALSE)","v":"The Press Budget"},"15400001","","","","",""]
["15","513",null,null,"THE PRESS EQUIPMENT           ","8066GW513801","12230","23100","42100","15400001",{"$f":"VLOOKUP(TRIM(J543),'Transactional Departments'!A:B,2,FALSE)","v":"The Press Budget"},"15400001","","","","",""]
["16","013",null,null,"INFRASTRUCTURE SOFTWARE       ","1019TJ013003","16000","14400","11600","16001ISW",{"$f":"VLOOKUP(TRIM(J544),'Transactional Departments'!A:B,2,FALSE)","v":"EITS Infrastructure Software"},"16001ISW","","","","",""]
["16","013",null,null,"UGARF SUPPORT                 ","1021RX013900","20300","12100","64ICR","16001001",{"$f":"VLOOKUP(TRIM(J545),'Transactional Departments'!A:B,2,FALSE)","v":"EITS VPIT Office"},"16001001","","","","",""]
["16","013",null,null,"IDC CARRYFORWARD              ","1031AE013925","15000","13100","11500","16001001",{"$f":"VLOOKUP(TRIM(J546),'Transactional Departments'!A:B,2,FALSE)","v":"EITS VPIT Office"},"16001001","","","","",""]
["16","013",null,null,"IDC RETURN                    ","1031AE013930","15000","13100","11500","16001001",{"$f":"VLOOKUP(TRIM(J547),'Transactional Departments'!A:B,2,FALSE)","v":"EITS VPIT Office"},"16001001","","","","",""]
["16","013",null,null,"USCN REIMBURSEMENT            ","1044DT013012","14100","14400","41500","16003BOR",{"$f":"VLOOKUP(TRIM(J548),'Transactional Departments'!A:B,2,FALSE)","v":"EITS FBS BOR Reimburse"},"16003BOR","","","","",""]
["16","013",null,null,"DSS CARRY FORWARD             ","1044DT013925","14100","14400","41500","16001001",{"$f":"VLOOKUP(TRIM(J549),'Transactional Departments'!A:B,2,FALSE)","v":"EITS VPIT Office"},"16001001","","","","","16925     "]
["16","013",null,null,"EITS MSD CONFERENCE SERVICES  ","1044DW013009","14100","14400","41500","16003000",{"$f":"VLOOKUP(TRIM(J550),'Transactional Departments'!A:B,2,FALSE)","v":"EITS Finance & Business Svc"},"16003000","","","","",""]
["16","013",null,null,"ENTERPRISE INFO TECH SERV     ","1044GT013000","10000","14400","11200","16001001",{"$f":"VLOOKUP(TRIM(J551),'Transactional Departments'!A:B,2,FALSE)","v":"EITS VPIT Office"},"16001001","","","","",""]
["16","013",null,null,"EITS MAINTENANCE              ","1044GT013022","10600","14400","11300","16001001",{"$f":"VLOOKUP(TRIM(J552),'Transactional Departments'!A:B,2,FALSE)","v":"EITS VPIT Office"},"16001001","","","","",""]
["16","013",null,null,"MAINFRAME SAVINGS             ","1044GT013023","10000","14400","11200","16001001",{"$f":"VLOOKUP(TRIM(J553),'Transactional Departments'!A:B,2,FALSE)","v":"EITS VPIT Office"},"16001001","","","","","16023     "]
["16","013",null,null,"ENTERPRISE INFO TECH SERV     ","1064GA013000","10000","16400","11200","16001001",{"$f":"VLOOKUP(TRIM(J554),'Transactional Departments'!A:B,2,FALSE)","v":"EITS VPIT Office"},"16001001","","","","",""]
["16","013",null,null,"CIO SECURITY                  ","1064GA013001","10000","16400","11200","16004000",{"$f":"VLOOKUP(TRIM(J555),'Transactional Departments'!A:B,2,FALSE)","v":"EITS Information Security"},"16004000","","","","",""]
["16","013",null,null,"EITS - INSTITUTIONAL RESEARCH ","1064GA013002","10000","16400","11200","16005000",{"$f":"VLOOKUP(TRIM(J556),'Transactional Departments'!A:B,2,FALSE)","v":"EITS Institutional Research"},"16005000","","","","",""]
["16","013",null,null,"ENTERPRISE INFO TECH SERV     ","1099GN013000","10000","","11200","16001001",{"$f":"VLOOKUP(TRIM(J557),'Transactional Departments'!A:B,2,FALSE)","v":"EITS VPIT Office"},"16001001","","","","",""]
["16","038",null,null,"EITS-STUDENT TECHNOLOGY SERV  ","1059TS038001","16000","14400","11600","16021STS",{"$f":"VLOOKUP(TRIM(J558),'Transactional Departments'!A:B,2,FALSE)","v":"EITS Student Tech Services"},"16021STS","","","","",""]
["16","038",null,null,"UGA TELECOMMUNICATIONS        ","1071DP038003","14100","17400","41500","16013000",{"$f":"VLOOKUP(TRIM(J559),'Transactional Departments'!A:B,2,FALSE)","v":"EITS Telephone Services"},"16013000","","","","",""]
["16","038",null,null,"EITS-INFRASTRUCTURE SERV      ","1079DM038001","14100","17400","41500","16021000",{"$f":"VLOOKUP(TRIM(J560),'Transactional Departments'!A:B,2,FALSE)","v":"EITS Network Infrastructure"},"16021000","","","","",""]
["16","038",null,null,"NETWORK SUPPORT PARTNERSHIP   ","1079DM038002","14100","17400","41500","16022000",{"$f":"VLOOKUP(TRIM(J561),'Transactional Departments'!A:B,2,FALSE)","v":"EITS Network Support Partners"},"16022000","","","","",""]
["16","038",null,null,"EITS-REMOTE CAMPUS NETWORKING ","1079DP038005","14100","17400","41500","16023RCN",{"$f":"VLOOKUP(TRIM(J562),'Transactional Departments'!A:B,2,FALSE)","v":"EITS Remote Campus Networking"},"16023RCN","","","","",""]
["16","038",null,null,"EITS NTWK INFRASTRUCTURE/SVCS ","1079GP038000","10000","17400","11200","16010000",{"$f":"VLOOKUP(TRIM(J563),'Transactional Departments'!A:B,2,FALSE)","v":"EITS Network Engineering"},"16010000","","","","",""]
["16","038",null,null,"EITS-CAMPUS WIRELESS INITI STF","1079TP038003","16000","17400","11600","16021WRL",{"$f":"VLOOKUP(TRIM(J564),'Transactional Departments'!A:B,2,FALSE)","v":"EITS Wireless"},"16021WRL","","","","",""]
["16","038",null,null,"EITS - SLC NETWORK (STF)      ","1079TP038006","16000","17400","11600","16021MLC",{"$f":"VLOOKUP(TRIM(J565),'Transactional Departments'!A:B,2,FALSE)","v":"EITS MLC Network"},"16021MLC","","","","",""]
["16","038",null,null,"EITS TELECOM INFRASTRUCTURE   ","8061RX038801","50100","17630","63001","16021000",{"$f":"VLOOKUP(TRIM(J566),'Transactional Departments'!A:B,2,FALSE)","v":"EITS Network Infrastructure"},"16021000","","","","",""]
["16","039",null,null,"EITS - CLIENT SVCS - CLOUD MGT","1044DM039011","14100","14400","41500","16007000",{"$f":"VLOOKUP(TRIM(J567),'Transactional Departments'!A:B,2,FALSE)","v":"EITS Admin Information Sys"},"16007000","","","","",""]
["16","039",null,null,"EITS ADMINISTRATIVE INFO SYS  ","1059GS039000","10000","14400","11200","16015000",{"$f":"VLOOKUP(TRIM(J568),'Transactional Departments'!A:B,2,FALSE)","v":"EITS Student Information Svcs"},"16015000","","","","",""]
["16","039",null,null,"NSIS 965 - EITS BANNER     039","1059GS039965","10000","14400","11200","16025000",{"$f":"VLOOKUP(TRIM(J569),'Transactional Departments'!A:B,2,FALSE)","v":"EITS ConnectUGA"},"16025000","","","","",""]
["16","039",null,null,"MOBILE APPLICATION            ","1059TS039004","16000","14400","11600","16014MAP",{"$f":"VLOOKUP(TRIM(J570),'Transactional Departments'!A:B,2,FALSE)","v":"EITS Mobile Apps"},"16014MAP","","","","",""]
["16","039",null,null,"ONESOURCE HCM                 ","1064AA039968","15000","16400","11500","16007000",{"$f":"VLOOKUP(TRIM(J571),'Transactional Departments'!A:B,2,FALSE)","v":"EITS Admin Information Sys"},"16007000","","","","",""]
["16","039",null,null,"EITS ADMINISTRATIVE INFO SYS  ","1064GA039000","10000","16400","11200","16007000",{"$f":"VLOOKUP(TRIM(J572),'Transactional Departments'!A:B,2,FALSE)","v":"EITS Admin Information Sys"},"16007000","","","","",""]
["16","039",null,null,"ONESOURCE FINANCE SYSTEM      ","1064GA039968","10000","16400","11200","16007000",{"$f":"VLOOKUP(TRIM(J573),'Transactional Departments'!A:B,2,FALSE)","v":"EITS Admin Information Sys"},"16007000","","","","","16968     "]
["16","039",null,null,"NEXT GEN HCM SYSTEM           ","1064GA039969","10000","16400","11200","16007000",{"$f":"VLOOKUP(TRIM(J574),'Transactional Departments'!A:B,2,FALSE)","v":"EITS Admin Information Sys"},"16007000","","","","","16969     "]
["16","040",null,null,"EITS-INSTRUCTION (STF)        ","1019TJ040007","16000","14400","11600","16014D2L",{"$f":"VLOOKUP(TRIM(J575),'Transactional Departments'!A:B,2,FALSE)","v":"EITS Instructional D2L"},"16014D2L","","","","",""]
["16","040",null,null,"BOYD DATA CENTER HOSTING      ","1064DA040002","14100","16400","41500","16024BDC",{"$f":"VLOOKUP(TRIM(J576),'Transactional Departments'!A:B,2,FALSE)","v":"EITS Boyd Data Center Hosting"},"16024BDC","","","","",""]
["16","040",null,null,"EITS-OPERATION & INFRASTRUCT  ","1064GA040000","10000","16400","11200","16020000",{"$f":"VLOOKUP(TRIM(J577),'Transactional Departments'!A:B,2,FALSE)","v":"EITS Operations & Infrastruct"},"16020000","","","","",""]
["16","270",null,null,"RESEARCH COMPUTING CENTER     ","1029DR270001","14100","14400","41500","16011GAC",{"$f":"VLOOKUP(TRIM(J578),'Transactional Departments'!A:B,2,FALSE)","v":"EITS GACRC Prgm"},"16011GAC","","","","",""]
["16","270",null,null,"EITS-RESEARCH COMPUTING       ","1029GJ270000","10000","14400","11200","16011GAC",{"$f":"VLOOKUP(TRIM(J579),'Transactional Departments'!A:B,2,FALSE)","v":"EITS GACRC Prgm"},"16011GAC","","","","",""]
["16","570",null,null,"         UGARF UCNS      ASHLE","1021RX570900","20300","12100","64ICR","16008000",{"$f":"VLOOKUP(TRIM(J580),'Transactional Departments'!A:B,2,FALSE)","v":"EITS Client Support"},"16008000","","","","",""]
["16","570",null,null,"         RESIDUAL #570RR BERTR","1021RX570950","20400","12100","64RBP","16008000",{"$f":"VLOOKUP(TRIM(J581),'Transactional Departments'!A:B,2,FALSE)","v":"EITS Client Support"},"16008000","","","","",""]
["16","570",null,null,"EITS - CLIENT SERVICES NOLIJ  ","1044DM570007","14100","14400","41500","16014DOC",{"$f":"VLOOKUP(TRIM(J582),'Transactional Departments'!A:B,2,FALSE)","v":"EITS Document Mgt Services"},"16014DOC","","","","",""]
["16","570",null,null,"EITS-OPERATIONS SUPPORT GRP   ","1044DM570008","14100","14400","41500","16008000",{"$f":"VLOOKUP(TRIM(J583),'Transactional Departments'!A:B,2,FALSE)","v":"EITS Client Support"},"16008000","","","","",""]
["16","570",null,null,"EITS - TEAM DYNAMIX           ","1044DM570018","14100","14400","41500","16008TDX",{"$f":"VLOOKUP(TRIM(J584),'Transactional Departments'!A:B,2,FALSE)","v":"EITS Teamdynamix"},"16008TDX","","","","",""]
["16","570",null,null,"EITS-SYSTEMS ENGINEERING      ","1044DT570009","14100","14400","41500","16012000",{"$f":"VLOOKUP(TRIM(J585),'Transactional Departments'!A:B,2,FALSE)","v":"EITS Systems Engineering"},"16012000","","","","",""]
["16","570",null,null,"EITS SYSTEMS & CLIENT SUPPORT ","1044GT570000","10000","14400","11200","16008000",{"$f":"VLOOKUP(TRIM(J586),'Transactional Departments'!A:B,2,FALSE)","v":"EITS Client Support"},"16008000","","","","",""]
["16","570",null,null,"EITS-CS STUD TECH SUPP (STF)  ","1059TS570002","16000","14400","11600","16008LAB",{"$f":"VLOOKUP(TRIM(J587),'Transactional Departments'!A:B,2,FALSE)","v":"EITS On-Site Lab Staffing"},"16008LAB","","","","",""]
["16","570",null,null,"EITS-CLIENT SERV HELP DESK STF","1059TS570003","16000","14400","11600","16008HDK",{"$f":"VLOOKUP(TRIM(J588),'Transactional Departments'!A:B,2,FALSE)","v":"EITS Help Desk"},"16008HDK","","","","",""]
["16","570",null,null,"EITS-CLIENT SERVICES MLC (STF)","1059TS570004","16000","14400","11600","16008DSK",{"$f":"VLOOKUP(TRIM(J589),'Transactional Departments'!A:B,2,FALSE)","v":"EITS Desktop Support"},"16008DSK","","","","",""]
["16","570",null,null,"EITS-CLIENT SERV PRINT KIOSKS ","1059TS570006","16000","14400","11600","16008KSK",{"$f":"VLOOKUP(TRIM(J590),'Transactional Departments'!A:B,2,FALSE)","v":"EITS Print Kiosk Support"},"16008KSK","","","","",""]
["16","595",null,null,"EITS-FBS INCOME SUPPORT       ","1044DT595001","14100","14400","41500","16003CIS",{"$f":"VLOOKUP(TRIM(J591),'Transactional Departments'!A:B,2,FALSE)","v":"EITS FBS Income Support"},"16003CIS","","","","",""]
["16","595",null,null,"EITS-ITLCA INCOME SUPPORT     ","1044DT595002","14100","14400","41500","16030000",{"$f":"VLOOKUP(TRIM(J592),'Transactional Departments'!A:B,2,FALSE)","v":"EITS FBS Contract & Licens"},"16030000","","","","",""]
["16","595",null,null,"EITS-FINANCE & BUSINESS SERV  ","1044GT595000","10000","14400","11200","16003000",{"$f":"VLOOKUP(TRIM(J593),'Transactional Departments'!A:B,2,FALSE)","v":"EITS Finance & Business Svc"},"16003000","","","","",""]
["17","064",null,null,"UGARF RSCH SUPPORT DAVID   725","1021RX064135","20300","12100","64U02","17410100",{"$f":"VLOOKUP(TRIM(J594),'Transactional Departments'!A:B,2,FALSE)","v":"Div Director"},"17410100","","","","",""]
["17","064",null,null,"UGARF DRP RSCH SUP MOORE   293","1021RX064338","20300","12100","64U04","17253200",{"$f":"VLOOKUP(TRIM(J595),'Transactional Departments'!A:B,2,FALSE)","v":"Moore"},"17253200","","","","",""]
["17","064",null,null,"UGARF DRP RSCH SUP OZIAS-AK157","1021RX064352","20300","12100","64U04","17272000",{"$f":"VLOOKUP(TRIM(J596),'Transactional Departments'!A:B,2,FALSE)","v":"Ozias-Akins, Peggy"},"17272000","","","","",""]
["17","064",null,null,"UGARF FAC RSCH KVITKO      158","1021RX064560","20300","12100","64F17","17284004",{"$f":"VLOOKUP(TRIM(J597),'Transactional Departments'!A:B,2,FALSE)","v":"Kvitko"},"17284004","","","","",""]
["17","064",null,null,"UGARF FAC RSCH HUNT        174","1021RX064577","20300","12100","64F17","17253170",{"$f":"VLOOKUP(TRIM(J598),'Transactional Departments'!A:B,2,FALSE)","v":"Hunt"},"17253170","","","","",""]
["17","064",null,null,"UGARF FAC RSCH SCHMIDT     330","1021RX064579","20300","12100","64F17","17253260",{"$f":"VLOOKUP(TRIM(J599),'Transactional Departments'!A:B,2,FALSE)","v":"Schmidt"},"17253260","","","","",""]
["17","064",null,null,"UGARF FAC RSCH MORTENSEN   287","1021RX064583","20300","12100","64F17","17231400",{"$f":"VLOOKUP(TRIM(J600),'Transactional Departments'!A:B,2,FALSE)","v":"Mortensen, Luke"},"17231400","","","","",""]
["17","064",null,null,"UGARF FAC RSCH DEE         156","1021RX064664","20300","12100","64F18","17260290",{"$f":"VLOOKUP(TRIM(J601),'Transactional Departments'!A:B,2,FALSE)","v":"Dee, Derek"},"17260290","","","","",""]
["17","064",null,null,"UGARF FAC RSCH PATON       294","1021RX064673","20300","12100","64F18","17260280",{"$f":"VLOOKUP(TRIM(J602),'Transactional Departments'!A:B,2,FALSE)","v":"Paton, Chad"},"17260280","","","","",""]
["17","070",null,null,"PRESIDENT RSCH VAN DER KNAP373","1021RX070014","20300","12212","64U08","17272800",{"$f":"VLOOKUP(TRIM(J603),'Transactional Departments'!A:B,2,FALSE)","v":"Vanderknaap, Esther"},"17272800","","","","",""]
["17","070",null,null,"UGARF STARTUP MOORE        174","1021RX070113","20300","12212","64U01","17253200",{"$f":"VLOOKUP(TRIM(J604),'Transactional Departments'!A:B,2,FALSE)","v":"Moore"},"17253200","","","","",""]
["17","070",null,null,"UGARF STARTUP BURKE        293","1021RX070150","20300","12212","64U01","17253080",{"$f":"VLOOKUP(TRIM(J605),'Transactional Departments'!A:B,2,FALSE)","v":"Burke"},"17253080","","","","",""]
["17","094",null,null,"AVAILABLE TO COLLEGE FUNDS    ","1011DH094100","14100","11100","41500","17100001",{"$f":"VLOOKUP(TRIM(J606),'Transactional Departments'!A:B,2,FALSE)","v":"CAES Dean & Director Sum"},"17100001","","","","",""]
["17","094",null,null,"DSS CARRY FORWARD             ","1011DH094925","14100","11100","41500","17100001",{"$f":"VLOOKUP(TRIM(J607),'Transactional Departments'!A:B,2,FALSE)","v":"CAES Dean & Director Sum"},"17100001","","","","",""]
["17","094",null,null,"AG - DEAN & DIRECTORS OFFICE  ","1011GH094000","10500","11100","11800","17100001",{"$f":"VLOOKUP(TRIM(J608),'Transactional Departments'!A:B,2,FALSE)","v":"CAES Dean & Director Sum"},"17100001","","","","",""]
["17","094",null,null,"AG - DEAN & DIRECTORS OFFICE  ","1011GJ094000","10500","11140","11800","17100001",{"$f":"VLOOKUP(TRIM(J609),'Transactional Departments'!A:B,2,FALSE)","v":"CAES Dean & Director Sum"},"17100001","","","","",""]
["17","094",null,null,"PUBLIC AFFAIRS                ","1011GJ094100","10000","11140","11200","17100001",{"$f":"VLOOKUP(TRIM(J610),'Transactional Departments'!A:B,2,FALSE)","v":"CAES Dean & Director Sum"},"17100001","","","","",""]
["17","094",null,null,"UGAF     AG FORECAST SEM PARDU","1011RH094238","20200","11100","","17100001",{"$f":"VLOOKUP(TRIM(J611),'Transactional Departments'!A:B,2,FALSE)","v":"CAES Dean & Director Sum"},"17100001","","","","",""]
["17","094",null,null,"         GOODMAN ESTATE  EASON","1021RR094010","20400","12100","65000","17100001",{"$f":"VLOOKUP(TRIM(J612),'Transactional Departments'!A:B,2,FALSE)","v":"CAES Dean & Director Sum"},"17100001","","","","",""]
["17","094",null,null,"         UGARF SUP DEANS EASON","1021RX094900","20300","12100","64ICR","17100001",{"$f":"VLOOKUP(TRIM(J613),'Transactional Departments'!A:B,2,FALSE)","v":"CAES Dean & Director Sum"},"17100001","","","","",""]
["17","094",null,null,"IDC RETURNS - CTR AGRI BUS    ","1025AR094005","15000","12400","11500","17100001",{"$f":"VLOOKUP(TRIM(J614),'Transactional Departments'!A:B,2,FALSE)","v":"CAES Dean & Director Sum"},"17100001","","","","",""]
["17","094",null,null,"AES F&A RETURNS               ","1025AR094006","15000","12400","11500","17100001",{"$f":"VLOOKUP(TRIM(J615),'Transactional Departments'!A:B,2,FALSE)","v":"CAES Dean & Director Sum"},"17100001","","","","",""]
["17","094",null,null,"IDC CARRYFORWARD              ","1025AR094925","15000","12400","11500","17100001",{"$f":"VLOOKUP(TRIM(J616),'Transactional Departments'!A:B,2,FALSE)","v":"CAES Dean & Director Sum"},"17100001","","","","",""]
["17","094",null,null,"IDC RETURN                    ","1025AR094930","15000","12400","11500","17100001",{"$f":"VLOOKUP(TRIM(J617),'Transactional Departments'!A:B,2,FALSE)","v":"CAES Dean & Director Sum"},"17100001","","","","",""]
["17","094",null,null,"CES F&A RETURNS               ","1031AE094007","15000","13100","11500","17100001",{"$f":"VLOOKUP(TRIM(J618),'Transactional Departments'!A:B,2,FALSE)","v":"CAES Dean & Director Sum"},"17100001","","","","",""]
["17","094",null,null,"AG - DEAN & DIRECTORS OFFICE  ","1046GT094000","10500","14600","11800","17100001",{"$f":"VLOOKUP(TRIM(J619),'Transactional Departments'!A:B,2,FALSE)","v":"CAES Dean & Director Sum"},"17100001","","","","",""]
["17","094",null,null,"UGAF     REDBARN AG FND  PARDU","1046RT094337","20200","14600","","17100001",{"$f":"VLOOKUP(TRIM(J620),'Transactional Departments'!A:B,2,FALSE)","v":"CAES Dean & Director Sum"},"17100001","","","","",""]
["17","094",null,null,"UGAF     SPOTLIGHT ST RSTANGLE","1065RA094131","20200","16600","67731","17100001",{"$f":"VLOOKUP(TRIM(J621),'Transactional Departments'!A:B,2,FALSE)","v":"CAES Dean & Director Sum"},"17100001","","","","",""]
["17","094",null,null,"AG - DEAN & DIRECTORS OFFICE  ","1099GN094000","10500","","11800","17100001",{"$f":"VLOOKUP(TRIM(J622),'Transactional Departments'!A:B,2,FALSE)","v":"CAES Dean & Director Sum"},"17100001","","","","",""]
["17","094",null,null,"MRR ROCK EAGLE WATER MAIN INFR","8061RX094207","50300","17630","62000","17100001",{"$f":"VLOOKUP(TRIM(J623),'Transactional Departments'!A:B,2,FALSE)","v":"CAES Dean & Director Sum"},"17100001","","","","",""]
["17","094",null,null,"MRR CSS FARM ROADS            ","8061RX094308","50300","17630","62000","17100001",{"$f":"VLOOKUP(TRIM(J624),'Transactional Departments'!A:B,2,FALSE)","v":"CAES Dean & Director Sum"},"17100001","","","","",""]
["17","094",null,null,"MRR CSS INTERIOR SECURITY FNCE","8061RX094311","50300","17630","62000","17100001",{"$f":"VLOOKUP(TRIM(J625),'Transactional Departments'!A:B,2,FALSE)","v":"CAES Dean & Director Sum"},"17100001","","","","",""]
["17","094",null,null,"MRR CAMPBELL CATTLE FACIL IRRG","8061RX094314","50300","17630","62000","17100001",{"$f":"VLOOKUP(TRIM(J626),'Transactional Departments'!A:B,2,FALSE)","v":"CAES Dean & Director Sum"},"17100001","","","","",""]
["17","094",null,null,"MRR ATTAPULGUS REC PUMP HOUSE ","8061RX094330","50300","17630","62000","17100001",{"$f":"VLOOKUP(TRIM(J627),'Transactional Departments'!A:B,2,FALSE)","v":"CAES Dean & Director Sum"},"17100001","","","","",""]
["17","094",null,null,"MRR TIF SIRP IRRIGATION INFRAS","8061RX094332","50300","17630","62000","17100001",{"$f":"VLOOKUP(TRIM(J628),'Transactional Departments'!A:B,2,FALSE)","v":"CAES Dean & Director Sum"},"17100001","","","","",""]
["17","094",null,null,"MRR GRIFFIN PRIMARY ELECT J293","8061RX094512","50300","17630","62000","17100001",{"$f":"VLOOKUP(TRIM(J629),'Transactional Departments'!A:B,2,FALSE)","v":"CAES Dean & Director Sum"},"17100001","","","","",""]
["17","094",null,null,"STRIPLING WELL GEFA           ","8061RX094802","50100","17630","62000","17100001",{"$f":"VLOOKUP(TRIM(J630),'Transactional Departments'!A:B,2,FALSE)","v":"CAES Dean & Director Sum"},"17100001","","","","",""]
["17","094",null,null,"NEW CABINS 4-H ROCK EAGLE     ","8062RX094335","50200","17620","62000","17100001",{"$f":"VLOOKUP(TRIM(J631),'Transactional Departments'!A:B,2,FALSE)","v":"CAES Dean & Director Sum"},"17100001","","","","",""]
["17","094",null,null,"MRR GRIFFIN BLUEBERRY RSCHJ262","8062RX094425","50300","17620","62000","17100001",{"$f":"VLOOKUP(TRIM(J632),'Transactional Departments'!A:B,2,FALSE)","v":"CAES Dean & Director Sum"},"17100001","","","","",""]
["17","094",null,null,"MRR GRIFFIN BLUEBERRY RSCHJ293","8062RX094513","50300","17620","62000","17100001",{"$f":"VLOOKUP(TRIM(J633),'Transactional Departments'!A:B,2,FALSE)","v":"CAES Dean & Director Sum"},"17100001","","","","",""]
["17","094",null,null,"MRR PEACH GREENHOUSE FAC  J293","8062RX094515","50300","17620","62000","17100001",{"$f":"VLOOKUP(TRIM(J634),'Transactional Departments'!A:B,2,FALSE)","v":"CAES Dean & Director Sum"},"17100001","","","","",""]
["17","094",null,null,"ROCK EAGLE 4-H NEW CABINS J308","8062RX094803","50200","17620","62000","17100001",{"$f":"VLOOKUP(TRIM(J635),'Transactional Departments'!A:B,2,FALSE)","v":"CAES Dean & Director Sum"},"17100001","","","","",""]
["17","094",null,null,"MRR NORTHWEST REC ROOF REPAIRS","8064RX094123","50300","17620","62000","17100001",{"$f":"VLOOKUP(TRIM(J636),'Transactional Departments'!A:B,2,FALSE)","v":"CAES Dean & Director Sum"},"17100001","","","","",""]
["17","094",null,null,"MRR EQUIP STORAGE FACIL RENOV ","8064RX094211","50300","17620","62000","17100001",{"$f":"VLOOKUP(TRIM(J637),'Transactional Departments'!A:B,2,FALSE)","v":"CAES Dean & Director Sum"},"17100001","","","","",""]
["17","094",null,null,"MRR TIFTON DAIRY MATERNITY HSG","8064RX094212","50300","17620","62000","17100001",{"$f":"VLOOKUP(TRIM(J638),'Transactional Departments'!A:B,2,FALSE)","v":"CAES Dean & Director Sum"},"17100001","","","","",""]
["17","094",null,null,"MRR ADS EATONTON CATTLE FACIL ","8064RX094301","50300","17620","62000","17100001",{"$f":"VLOOKUP(TRIM(J639),'Transactional Departments'!A:B,2,FALSE)","v":"CAES Dean & Director Sum"},"17100001","","","","",""]
["17","094",null,null,"MRR ADS EATONTON 90HEAD FEEDLT","8064RX094304","50300","17620","62000","17100001",{"$f":"VLOOKUP(TRIM(J640),'Transactional Departments'!A:B,2,FALSE)","v":"CAES Dean & Director Sum"},"17100001","","","","",""]
["17","094",null,null,"MRR CSS GREENHOUSE RENOV      ","8064RX094305","50300","17620","62000","17100001",{"$f":"VLOOKUP(TRIM(J641),'Transactional Departments'!A:B,2,FALSE)","v":"CAES Dean & Director Sum"},"17100001","","","","",""]
["17","094",null,null,"MRR CSS CAGT GREENHOUSE       ","8064RX094306","50300","17620","62000","17100001",{"$f":"VLOOKUP(TRIM(J642),'Transactional Departments'!A:B,2,FALSE)","v":"CAES Dean & Director Sum"},"17100001","","","","",""]
["17","094",null,null,"MRR CAMPBELL FIRE SAFETY RENOV","8064RX094312","50300","17620","62000","17100001",{"$f":"VLOOKUP(TRIM(J643),'Transactional Departments'!A:B,2,FALSE)","v":"CAES Dean & Director Sum"},"17100001","","","","",""]
["17","094",null,null,"MRR FOOD PROC PILOT PLANT RENV","8064RX094316","50300","17620","62000","17100001",{"$f":"VLOOKUP(TRIM(J644),'Transactional Departments'!A:B,2,FALSE)","v":"CAES Dean & Director Sum"},"17100001","","","","",""]
["17","094",null,null,"MRR ENT STRAND II INSECT HOST ","8064RX094317","50300","17620","62000","17100001",{"$f":"VLOOKUP(TRIM(J645),'Transactional Departments'!A:B,2,FALSE)","v":"CAES Dean & Director Sum"},"17100001","","","","",""]
["17","094",null,null,"MRR HORT DURHAM FARM RENOV    ","8064RX094318","50300","17620","62000","17100001",{"$f":"VLOOKUP(TRIM(J646),'Transactional Departments'!A:B,2,FALSE)","v":"CAES Dean & Director Sum"},"17100001","","","","",""]
["17","094",null,null,"MRR POULTRY SCI G HOUSE RENOV ","8064RX094320","50300","17620","62000","17100001",{"$f":"VLOOKUP(TRIM(J647),'Transactional Departments'!A:B,2,FALSE)","v":"CAES Dean & Director Sum"},"17100001","","","","",""]
["17","094",null,null,"MRR GRIFFIN PLANT PATH LABS   ","8064RX094322","50300","17620","62000","17100001",{"$f":"VLOOKUP(TRIM(J648),'Transactional Departments'!A:B,2,FALSE)","v":"CAES Dean & Director Sum"},"17100001","","","","",""]
["17","094",null,null,"MRR MTN REC ADMIN BLDG/PESTICD","8064RX094323","50300","17620","62000","17100001",{"$f":"VLOOKUP(TRIM(J649),'Transactional Departments'!A:B,2,FALSE)","v":"CAES Dean & Director Sum"},"17100001","","","","",""]
["17","094",null,null,"MRR TIF FED EXCESS STORAGE BLD","8064RX094329","50300","17620","62000","17100001",{"$f":"VLOOKUP(TRIM(J650),'Transactional Departments'!A:B,2,FALSE)","v":"CAES Dean & Director Sum"},"17100001","","","","",""]
["17","094",null,null,"MRR TIFTON SIRP CHEM STORAGE  ","8064RX094333","50300","17620","62000","17100001",{"$f":"VLOOKUP(TRIM(J651),'Transactional Departments'!A:B,2,FALSE)","v":"CAES Dean & Director Sum"},"17100001","","","","",""]
["17","094",null,null,"MRR CGBG CONF CTR & PAVIL J262","8064RX094400","50300","17620","62000","17100001",{"$f":"VLOOKUP(TRIM(J652),'Transactional Departments'!A:B,2,FALSE)","v":"CAES Dean & Director Sum"},"17100001","","","","",""]
["17","094",null,null,"MRR CGBG CONF CNTR PAVIL  J262","8064RX094401","50300","17620","62000","17100001",{"$f":"VLOOKUP(TRIM(J653),'Transactional Departments'!A:B,2,FALSE)","v":"CAES Dean & Director Sum"},"17100001","","","","",""]
["17","094",null,null,"MRR ADS MATERN/DRY COW    J262","8064RX094402","50300","17620","62000","17100001",{"$f":"VLOOKUP(TRIM(J654),'Transactional Departments'!A:B,2,FALSE)","v":"CAES Dean & Director Sum"},"17100001","","","","",""]
["17","094",null,null,"MRR ADS BEEF RSCH EVAL    J262","8064RX094404","50300","17620","62000","17100001",{"$f":"VLOOKUP(TRIM(J655),'Transactional Departments'!A:B,2,FALSE)","v":"CAES Dean & Director Sum"},"17100001","","","","",""]
["17","094",null,null,"MRR GRIFFIN/REC CRIT DEF  J262","8064RX094405","50300","17620","62000","17100001",{"$f":"VLOOKUP(TRIM(J656),'Transactional Departments'!A:B,2,FALSE)","v":"CAES Dean & Director Sum"},"17100001","","","","",""]
["17","094",null,null,"MRR CSS CAGT GRNHSE ROOF  J262","8064RX094406","50300","17620","62000","17100001",{"$f":"VLOOKUP(TRIM(J657),'Transactional Departments'!A:B,2,FALSE)","v":"CAES Dean & Director Sum"},"17100001","","","","",""]
["17","094",null,null,"MRR CSS HEADHSE HVAC&ROOF J262","8064RX094407","50300","17620","62000","17100001",{"$f":"VLOOKUP(TRIM(J658),'Transactional Departments'!A:B,2,FALSE)","v":"CAES Dean & Director Sum"},"17100001","","","","",""]
["17","094",null,null,"MRR CAMPBELL GREENHS/ADM  J262","8064RX094408","50300","17620","62000","17100001",{"$f":"VLOOKUP(TRIM(J659),'Transactional Departments'!A:B,2,FALSE)","v":"CAES Dean & Director Sum"},"17100001","","","","",""]
["17","094",null,null,"MRR FOOD PROCESS R&D LAB  J262","8064RX094409","50300","17620","62000","17100001",{"$f":"VLOOKUP(TRIM(J660),'Transactional Departments'!A:B,2,FALSE)","v":"CAES Dean & Director Sum"},"17100001","","","","",""]
["17","094",null,null,"MRR HORTFARM HONEYBEE FAC J262","8064RX094410","50300","17620","62000","17100001",{"$f":"VLOOKUP(TRIM(J661),'Transactional Departments'!A:B,2,FALSE)","v":"CAES Dean & Director Sum"},"17100001","","","","",""]
["17","094",null,null,"MRR HEATED WATERINGHOUSES J262","8064RX094411","50300","17620","62000","17100001",{"$f":"VLOOKUP(TRIM(J662),'Transactional Departments'!A:B,2,FALSE)","v":"CAES Dean & Director Sum"},"17100001","","","","",""]
["17","094",null,null,"MRR HORT GREENHOUSE 1&2   J262","8064RX094412","50300","17620","62000","17100001",{"$f":"VLOOKUP(TRIM(J663),'Transactional Departments'!A:B,2,FALSE)","v":"CAES Dean & Director Sum"},"17100001","","","","",""]
["17","094",null,null,"MRR PLTRY SCI H HOUSE     J262","8064RX094413","50300","17620","62000","17100001",{"$f":"VLOOKUP(TRIM(J664),'Transactional Departments'!A:B,2,FALSE)","v":"CAES Dean & Director Sum"},"17100001","","","","",""]
["17","094",null,null,"MRR GRIFFIN ENVIROTRON    J262","8064RX094414","50300","17620","62000","17100001",{"$f":"VLOOKUP(TRIM(J665),'Transactional Departments'!A:B,2,FALSE)","v":"CAES Dean & Director Sum"},"17100001","","","","",""]
["17","094",null,null,"MRR GRIFFIN BLUEBERRY ORN J262","8064RX094415","50300","17620","62000","17100001",{"$f":"VLOOKUP(TRIM(J666),'Transactional Departments'!A:B,2,FALSE)","v":"CAES Dean & Director Sum"},"17100001","","","","",""]
["17","094",null,null,"MRR GRIFFIN ENTOM GRNHSE  J262","8064RX094416","50300","17620","62000","17100001",{"$f":"VLOOKUP(TRIM(J667),'Transactional Departments'!A:B,2,FALSE)","v":"CAES Dean & Director Sum"},"17100001","","","","",""]
["17","094",null,null,"MRR TIFTON CRITICAL BLDG  J262","8064RX094417","50300","17620","62000","17100001",{"$f":"VLOOKUP(TRIM(J668),'Transactional Departments'!A:B,2,FALSE)","v":"CAES Dean & Director Sum"},"17100001","","","","",""]
["17","094",null,null,"MRR TIFTON HORT BARN RENO J262","8064RX094418","50300","17620","62000","17100001",{"$f":"VLOOKUP(TRIM(J669),'Transactional Departments'!A:B,2,FALSE)","v":"CAES Dean & Director Sum"},"17100001","","","","",""]
["17","094",null,null,"MRR TIFTON RED TOP BARN   J262","8064RX094419","50300","17620","62000","17100001",{"$f":"VLOOKUP(TRIM(J670),'Transactional Departments'!A:B,2,FALSE)","v":"CAES Dean & Director Sum"},"17100001","","","","",""]
["17","094",null,null,"MRR TIFTON FARMS/REC UPGR J262","8064RX094420","50300","17620","62000","17100001",{"$f":"VLOOKUP(TRIM(J671),'Transactional Departments'!A:B,2,FALSE)","v":"CAES Dean & Director Sum"},"17100001","","","","",""]
["17","094",null,null,"MRR CAGT LAB RENOVATIONS  J262","8064RX094421","50300","17620","62000","17100001",{"$f":"VLOOKUP(TRIM(J672),'Transactional Departments'!A:B,2,FALSE)","v":"CAES Dean & Director Sum"},"17100001","","","","",""]
["17","094",null,null,"MRR SOIL TEST LAB FUMEHOODJ262","8064RX094422","50300","17620","62000","17100001",{"$f":"VLOOKUP(TRIM(J673),'Transactional Departments'!A:B,2,FALSE)","v":"CAES Dean & Director Sum"},"17100001","","","","",""]
["17","094",null,null,"MRR CAES INFRA RENO J262      ","8064RX094424","50300","17620","62000","17100001",{"$f":"VLOOKUP(TRIM(J674),'Transactional Departments'!A:B,2,FALSE)","v":"CAES Dean & Director Sum"},"17100001","","","","",""]
["17","094",null,null,"MRR GRIFFIN BLUEBERRY RSCHJ262","8064RX094425","50300","17620","62000","17100001",{"$f":"VLOOKUP(TRIM(J675),'Transactional Departments'!A:B,2,FALSE)","v":"CAES Dean & Director Sum"},"17100001","","","","",""]
["17","094",null,null,"MRR CAGT LAB FUMEHOOD     J293","8064RX094500","50300","17620","62000","17100001",{"$f":"VLOOKUP(TRIM(J676),'Transactional Departments'!A:B,2,FALSE)","v":"CAES Dean & Director Sum"},"17100001","","","","",""]
["17","094",null,null,"MRR ADS BEEF RSCH FACIL   J293","8064RX094501","50300","17620","62000","17100001",{"$f":"VLOOKUP(TRIM(J677),'Transactional Departments'!A:B,2,FALSE)","v":"CAES Dean & Director Sum"},"17100001","","","","",""]
["17","094",null,null,"MRR ADS CATTLE FACILITY   J293","8064RX094502","50300","17620","62000","17100001",{"$f":"VLOOKUP(TRIM(J678),'Transactional Departments'!A:B,2,FALSE)","v":"CAES Dean & Director Sum"},"17100001","","","","",""]
["17","094",null,null,"MRR ADS SILO REPAIR ATHENSJ293","8064RX094503","50300","17620","62000","17100001",{"$f":"VLOOKUP(TRIM(J679),'Transactional Departments'!A:B,2,FALSE)","v":"CAES Dean & Director Sum"},"17100001","","","","",""]
["17","094",null,null,"MRR ADS HAY BARN REPLACE  J293","8064RX094504","50300","17620","62000","17100001",{"$f":"VLOOKUP(TRIM(J680),'Transactional Departments'!A:B,2,FALSE)","v":"CAES Dean & Director Sum"},"17100001","","","","",""]
["17","094",null,null,"MRR PLANT PATH GREENHOUSE J293","8064RX094505","50300","17620","62000","17100001",{"$f":"VLOOKUP(TRIM(J681),'Transactional Departments'!A:B,2,FALSE)","v":"CAES Dean & Director Sum"},"17100001","","","","",""]
["17","094",null,null,"MRR HVAC RENO AT JPC-REC  J293","8064RX094506","50300","17620","62000","17100001",{"$f":"VLOOKUP(TRIM(J682),'Transactional Departments'!A:B,2,FALSE)","v":"CAES Dean & Director Sum"},"17100001","","","","",""]
["17","094",null,null,"MRR HORT GREENHOUSE #2    J293","8064RX094507","50300","17620","62000","17100001",{"$f":"VLOOKUP(TRIM(J683),'Transactional Departments'!A:B,2,FALSE)","v":"CAES Dean & Director Sum"},"17100001","","","","",""]
["17","094",null,null,"MRR CSS HEADHOUSE ROOF    J293","8064RX094508","50300","17620","62000","17100001",{"$f":"VLOOKUP(TRIM(J684),'Transactional Departments'!A:B,2,FALSE)","v":"CAES Dean & Director Sum"},"17100001","","","","",""]
["17","094",null,null,"MRR GREENHOUSE GLASS UPGR J293","8064RX094509","50300","17620","62000","17100001",{"$f":"VLOOKUP(TRIM(J685),'Transactional Departments'!A:B,2,FALSE)","v":"CAES Dean & Director Sum"},"17100001","","","","",""]
["17","094",null,null,"MRR POULTRY PROCESSING RENJ293","8064RX094510","50300","17620","62000","17100001",{"$f":"VLOOKUP(TRIM(J686),'Transactional Departments'!A:B,2,FALSE)","v":"CAES Dean & Director Sum"},"17100001","","","","",""]
["17","094",null,null,"MRR GRIFFIN CRITICAL DEFICJ293","8064RX094511","50300","17620","62000","17100001",{"$f":"VLOOKUP(TRIM(J687),'Transactional Departments'!A:B,2,FALSE)","v":"CAES Dean & Director Sum"},"17100001","","","","",""]
["17","094",null,null,"MRR GMREC PICNIC RSTROOM  J293","8064RX094514","50300","17620","62000","17100001",{"$f":"VLOOKUP(TRIM(J688),'Transactional Departments'!A:B,2,FALSE)","v":"CAES Dean & Director Sum"},"17100001","","","","",""]
["17","094",null,null,"MRR ENVIRONTRON & CROP PR J293","8064RX094516","50300","17620","62000","17100001",{"$f":"VLOOKUP(TRIM(J689),'Transactional Departments'!A:B,2,FALSE)","v":"CAES Dean & Director Sum"},"17100001","","","","",""]
["17","094",null,null,"MRR ENTOMOLOGY GREENHOUSE J293","8064RX094517","50300","17620","62000","17100001",{"$f":"VLOOKUP(TRIM(J690),'Transactional Departments'!A:B,2,FALSE)","v":"CAES Dean & Director Sum"},"17100001","","","","",""]
["17","094",null,null,"MRR TIFTON CRITCAL DEFIC  J293","8064RX094518","50300","17620","62000","17100001",{"$f":"VLOOKUP(TRIM(J691),'Transactional Departments'!A:B,2,FALSE)","v":"CAES Dean & Director Sum"},"17100001","","","","",""]
["17","094",null,null,"MRR TIFTON FARMS/REC'S    J293","8064RX094519","50300","17620","62000","17100001",{"$f":"VLOOKUP(TRIM(J692),'Transactional Departments'!A:B,2,FALSE)","v":"CAES Dean & Director Sum"},"17100001","","","","",""]
["17","094",null,null,"MRR HORTICULTURE BARN REN J293","8064RX094520","50300","17620","62000","17100001",{"$f":"VLOOKUP(TRIM(J693),'Transactional Departments'!A:B,2,FALSE)","v":"CAES Dean & Director Sum"},"17100001","","","","",""]
["17","094",null,null,"MRR HIST REDTOP BARN RENO J293","8064RX094521","50300","17620","62000","17100001",{"$f":"VLOOKUP(TRIM(J694),'Transactional Departments'!A:B,2,FALSE)","v":"CAES Dean & Director Sum"},"17100001","","","","",""]
["17","094",null,null,"MRR CAES INFRA RENO J293      ","8064RX094524","50300","17620","62000","17100001",{"$f":"VLOOKUP(TRIM(J695),'Transactional Departments'!A:B,2,FALSE)","v":"CAES Dean & Director Sum"},"17100001","","","","",""]
["17","094",null,null,"STRUCTURAL PEST CONTROL FACIL ","8064RX094801","50100","17620","62010","17100001",{"$f":"VLOOKUP(TRIM(J696),'Transactional Departments'!A:B,2,FALSE)","v":"CAES Dean & Director Sum"},"17100001","","","","",""]
["17","094",null,null,"UGAF     MULE BARN REN GRIFFIN","8064RY094805","50100","17620","67848","17100001",{"$f":"VLOOKUP(TRIM(J697),'Transactional Departments'!A:B,2,FALSE)","v":"CAES Dean & Director Sum"},"17100001","","","","",""]
["17","094",null,null,"MRR EXP STATION EQUIPMENT     ","8066RX094334","50300","17670","62000","17100001",{"$f":"VLOOKUP(TRIM(J698),'Transactional Departments'!A:B,2,FALSE)","v":"CAES Dean & Director Sum"},"17100001","","","","",""]
["17","094",null,null,"MRR EXPERIMENT STAT EQUIP J257","8066RX094423","50300","17670","62000","17100001",{"$f":"VLOOKUP(TRIM(J699),'Transactional Departments'!A:B,2,FALSE)","v":"CAES Dean & Director Sum"},"17100001","","","","",""]
["17","094",null,null,"MRR EXPER STATION EQUIP   J292","8066RX094522","50300","17670","62000","17100001",{"$f":"VLOOKUP(TRIM(J700),'Transactional Departments'!A:B,2,FALSE)","v":"CAES Dean & Director Sum"},"17100001","","","","",""]
["17","150",null,null,"CAES ACADEMIC PROGRAMS IDC    ","1011AH150001","15000","11100","11500","17140001",{"$f":"VLOOKUP(TRIM(J701),'Transactional Departments'!A:B,2,FALSE)","v":"CAES Assoc Dean Inst Sum"},"17140001","","","","",""]
["17","150",null,null,"AG IDEA                       ","1011DH150300","14100","11100","41500","17140001",{"$f":"VLOOKUP(TRIM(J702),'Transactional Departments'!A:B,2,FALSE)","v":"CAES Assoc Dean Inst Sum"},"17140001","","","","",""]
["17","150",null,null,"ASSOC DEANS OFF ACADEMIC AFFAI","1011GH150000","10500","11100","11800","17140001",{"$f":"VLOOKUP(TRIM(J703),'Transactional Departments'!A:B,2,FALSE)","v":"CAES Assoc Dean Inst Sum"},"17140001","","","","",""]
["17","150",null,null,"INTERNATIONAL ACADEMIC PROGRAM","1011GH150010","10500","11100","11800","17140001",{"$f":"VLOOKUP(TRIM(J704),'Transactional Departments'!A:B,2,FALSE)","v":"CAES Assoc Dean Inst Sum"},"17140001","","","","",""]
["17","150",null,null,"DISTANCE LEARNING - GEORGIA   ","1011GH150013","10500","11100","11800","17140001",{"$f":"VLOOKUP(TRIM(J705),'Transactional Departments'!A:B,2,FALSE)","v":"CAES Assoc Dean Inst Sum"},"17140001","","","","",""]
["17","150",null,null,"DISTANCE LEARNING - COLLEGE   ","1011GH150014","10500","11100","11800","17140001",{"$f":"VLOOKUP(TRIM(J706),'Transactional Departments'!A:B,2,FALSE)","v":"CAES Assoc Dean Inst Sum"},"17140001","","","","",""]
["17","150",null,null,"ASSOC DEAN INSTR ALLOCATION   ","1011GH150900","10500","11100","11800","17140001",{"$f":"VLOOKUP(TRIM(J707),'Transactional Departments'!A:B,2,FALSE)","v":"CAES Assoc Dean Inst Sum"},"17140001","","","","",""]
["17","150",null,null,"ASSOC DEANS OFF ACADEMIC AFFAI","1011GJ150000","10500","11140","11800","17140001",{"$f":"VLOOKUP(TRIM(J708),'Transactional Departments'!A:B,2,FALSE)","v":"CAES Assoc Dean Inst Sum"},"17140001","","","","",""]
["17","150",null,null,"ASSOC DEANS OFF ACADEMIC AFFAI","1011GK150000","10500","11100","11800","17140001",{"$f":"VLOOKUP(TRIM(J709),'Transactional Departments'!A:B,2,FALSE)","v":"CAES Assoc Dean Inst Sum"},"17140001","","","","",""]
["17","150",null,null,"UGAF     CAES ACAD-BERTRAANGLE","1011RH150029","20200","11100","67017","17140001",{"$f":"VLOOKUP(TRIM(J710),'Transactional Departments'!A:B,2,FALSE)","v":"CAES Assoc Dean Inst Sum"},"17140001","","","","",""]
["17","150",null,null,"         DAWSON RECRUITMENT   ","1011RH150972","20400","11100","65972","17140001",{"$f":"VLOOKUP(TRIM(J711),'Transactional Departments'!A:B,2,FALSE)","v":"CAES Assoc Dean Inst Sum"},"17140001","","","","",""]
["17","150",null,null,"STF - ASSOC DEAN ACAD AFF     ","1019TJ150001","16000","14400","11600","17140001",{"$f":"VLOOKUP(TRIM(J712),'Transactional Departments'!A:B,2,FALSE)","v":"CAES Assoc Dean Inst Sum"},"17140001","","","","",""]
["17","150",null,null,"ROYALTY INVT/ASSOC DEAN       ","1021RX150018","20300","12100","64URF","17140001",{"$f":"VLOOKUP(TRIM(J713),'Transactional Departments'!A:B,2,FALSE)","v":"CAES Assoc Dean Inst Sum"},"17140001","","","","",""]
["17","150",null,null,"ROYALTY DEPT/ASSOC DEAN       ","1021RX150019","20300","12100","64URF","17140001",{"$f":"VLOOKUP(TRIM(J714),'Transactional Departments'!A:B,2,FALSE)","v":"CAES Assoc Dean Inst Sum"},"17140001","","","","",""]
["17","150",null,null,"CAED                          ","1025GR150400","10000","12400","11200","17140001",{"$f":"VLOOKUP(TRIM(J715),'Transactional Departments'!A:B,2,FALSE)","v":"CAES Assoc Dean Inst Sum"},"17140001","","","","",""]
["17","150",null,null,"ACADEMIC AFFAIRS CONFERENCE   ","1031DW150200","14100","13100","41500","17140001",{"$f":"VLOOKUP(TRIM(J716),'Transactional Departments'!A:B,2,FALSE)","v":"CAES Assoc Dean Inst Sum"},"17140001","","","","",""]
["17","150",null,null,"ASSOC DEANS OFF ACADEMIC AFFAI","1046GT150000","10500","14600","11800","17140001",{"$f":"VLOOKUP(TRIM(J717),'Transactional Departments'!A:B,2,FALSE)","v":"CAES Assoc Dean Inst Sum"},"17140001","","","","",""]
["17","150",null,null,"GWINNETT INSTRUCTION PROGRAM  ","1611GH150100","10500","11100","11800","17140001",{"$f":"VLOOKUP(TRIM(J718),'Transactional Departments'!A:B,2,FALSE)","v":"CAES Assoc Dean Inst Sum"},"17140001","","","","GWI",""]
["17","150",null,null,"GRIFFIN INSTRUCTION PROGRAM   ","1711GH150110","10500","11100","11800","17140001",{"$f":"VLOOKUP(TRIM(J719),'Transactional Departments'!A:B,2,FALSE)","v":"CAES Assoc Dean Inst Sum"},"17140001","","","","GRI",""]
["17","150",null,null,"TIFTON INSTRUCTION PROGRAM    ","1811GH150120","10500","11100","11800","17140001",{"$f":"VLOOKUP(TRIM(J720),'Transactional Departments'!A:B,2,FALSE)","v":"CAES Assoc Dean Inst Sum"},"17140001","","","","TIF",""]
["17","151",null,null,"STUDENT COURSE FEES           ","1011DH151001","14100","11100","41500","17210001",{"$f":"VLOOKUP(TRIM(J721),'Transactional Departments'!A:B,2,FALSE)","v":"Ag Econ Sum"},"17210001","","","","",""]
["17","151",null,null,"URUGUAY STUDY ABROAD          ","1011DV151002","14100","11100","41507","17210001",{"$f":"VLOOKUP(TRIM(J722),'Transactional Departments'!A:B,2,FALSE)","v":"Ag Econ Sum"},"17210001","18000","NSABD1018SP18  ","100","",""]
["17","151",null,null,"AGRICULTURAL & APPLIED ECONOM ","1011GH151000","10500","11100","11800","17210001",{"$f":"VLOOKUP(TRIM(J723),'Transactional Departments'!A:B,2,FALSE)","v":"Ag Econ Sum"},"17210001","","","","",""]
["17","151",null,null,"AGRICULTURAL & APPLIED ECONOM ","1011GJ151000","10500","11140","11800","17210001",{"$f":"VLOOKUP(TRIM(J724),'Transactional Departments'!A:B,2,FALSE)","v":"Ag Econ Sum"},"17210001","","","","",""]
["17","151",null,null,"AGRICULTURAL & APPLIED ECONOM ","1011GK151000","10500","11100","11800","17210001",{"$f":"VLOOKUP(TRIM(J725),'Transactional Departments'!A:B,2,FALSE)","v":"Ag Econ Sum"},"17210001","","","","",""]
["17","151",null,null,"UGARF INDIRECT COST RETURN 151","1011RX151900","20300","11100","64ICR","17210001",{"$f":"VLOOKUP(TRIM(J726),'Transactional Departments'!A:B,2,FALSE)","v":"Ag Econ Sum"},"17210001","","","","",""]
["17","151",null,null,"STF - AG & APPLIED ECONOMICS  ","1019TJ151001","16000","14400","11600","17210001",{"$f":"VLOOKUP(TRIM(J727),'Transactional Departments'!A:B,2,FALSE)","v":"Ag Econ Sum"},"17210001","","","","",""]
["17","151",null,null,"UOK/USDA RF SNAP HOUSE   BERNI","1021RR151037","20400","12100","62513","17210001",{"$f":"VLOOKUP(TRIM(J728),'Transactional Departments'!A:B,2,FALSE)","v":"Ag Econ Sum"},"17210001","","","","",""]
["17","151",null,null,"AGRICULTURAL & APPLIED ECONOM ","1025AR151000","15000","12400","11500","17210001",{"$f":"VLOOKUP(TRIM(J729),'Transactional Departments'!A:B,2,FALSE)","v":"Ag Econ Sum"},"17210001","","","","",""]
["17","151",null,null,"AGRICULTURAL & APPLIED ECONOM ","1025GR151000","10500","12400","11800","17210001",{"$f":"VLOOKUP(TRIM(J730),'Transactional Departments'!A:B,2,FALSE)","v":"Ag Econ Sum"},"17210001","","","","",""]
["17","151",null,null,"AGRICULTURAL & APPLIED ECONOM ","1031GE151000","10500","13100","11800","17210001",{"$f":"VLOOKUP(TRIM(J731),'Transactional Departments'!A:B,2,FALSE)","v":"Ag Econ Sum"},"17210001","","","","",""]
["17","153",null,null,"USDA     RF GENOMICS APP JA371","1011CH153043","10000","11110","11200","17240001",{"$f":"VLOOKUP(TRIM(J732),'Transactional Departments'!A:B,2,FALSE)","v":"CSS Sum"},"17240001","","","","",""]
["17","153",null,null,"CROP & SOIL SCIENCES          ","1011GH153000","10500","11100","11800","17241CSS",{"$f":"VLOOKUP(TRIM(J733),'Transactional Departments'!A:B,2,FALSE)","v":"CSS Department"},"17241CSS","","","","",""]
["17","153",null,null,"STUDENT RECRUITMENT           ","1011GH153017","10500","11100","11800","17241CSS",{"$f":"VLOOKUP(TRIM(J734),'Transactional Departments'!A:B,2,FALSE)","v":"CSS Department"},"17241CSS","","","","",""]
["17","153",null,null,"CSS GRADUATE SUPPORT          ","1011GH153100","10000","11100","11200","17240001",{"$f":"VLOOKUP(TRIM(J735),'Transactional Departments'!A:B,2,FALSE)","v":"CSS Sum"},"17240001","","","","",""]
["17","153",null,null,"CROP & SOIL SCIENCES          ","1011GJ153000","10500","11140","11800","17241CSS",{"$f":"VLOOKUP(TRIM(J736),'Transactional Departments'!A:B,2,FALSE)","v":"CSS Department"},"17241CSS","","","","",""]
["17","153",null,null,"DEPT ADMIN TIFTON             ","1011GJ153022","10500","11140","11800","17241CSS",{"$f":"VLOOKUP(TRIM(J737),'Transactional Departments'!A:B,2,FALSE)","v":"CSS Department"},"17241CSS","","","","TIF",""]
["17","153",null,null,"DEPT ADMIN GRIFFIN            ","1011GJ153023","10500","11140","11800","17241CSS",{"$f":"VLOOKUP(TRIM(J738),'Transactional Departments'!A:B,2,FALSE)","v":"CSS Department"},"17241CSS","","","","GRI",""]
["17","153",null,null,"CROP & SOIL SCIENCES          ","1011GK153000","10500","11100","11800","17240001",{"$f":"VLOOKUP(TRIM(J739),'Transactional Departments'!A:B,2,FALSE)","v":"CSS Sum"},"17240001","","","","",""]
["17","153",null,null,"         TERRELL EN DOW CHAIR ","1011RH153782","20400","11100","65000","17240001",{"$f":"VLOOKUP(TRIM(J740),'Transactional Departments'!A:B,2,FALSE)","v":"CSS Sum"},"17240001","","","","",""]
["17","153",null,null,"UGAF     ATHL ASSC PRF   ANGLE","1021RR153036","20200","12100","","17240001",{"$f":"VLOOKUP(TRIM(J741),'Transactional Departments'!A:B,2,FALSE)","v":"CSS Sum"},"17240001","","","","",""]
["17","153",null,null,"UGAF     SOIL JUDG SUP   ANGLE","1021RR153037","20200","12100","67306","17240001",{"$f":"VLOOKUP(TRIM(J742),'Transactional Departments'!A:B,2,FALSE)","v":"CSS Sum"},"17240001","","","","",""]
["17","153",null,null,"COTTONINCRF RE PALMER ANACULPE","1021RR153040","20400","12100","64355","17240001",{"$f":"VLOOKUP(TRIM(J743),'Transactional Departments'!A:B,2,FALSE)","v":"CSS Sum"},"17240001","","","","",""]
["17","153",null,null,"DOW AGRO RF WEED CNTROL  PROST","1021RR153041","20400","12100","64037","17240001",{"$f":"VLOOKUP(TRIM(J744),'Transactional Departments'!A:B,2,FALSE)","v":"CSS Sum"},"17240001","","","","",""]
["17","153",null,null,"UF/USDA  RF RR272-705    DWIVE","1021RR153111","20400","12100","62511","17240001",{"$f":"VLOOKUP(TRIM(J745),'Transactional Departments'!A:B,2,FALSE)","v":"CSS Sum"},"17240001","","","","",""]
["17","153",null,null,"ROYALTY INVENTOR/HILL         ","1021RX153028","20300","12100","64RYT","17240001",{"$f":"VLOOKUP(TRIM(J746),'Transactional Departments'!A:B,2,FALSE)","v":"CSS Sum"},"17240001","","","","",""]
["17","153",null,null,"         UGARF SUPP AGR RSHILL","1021RX153900","20300","12100","64ICR","17240001",{"$f":"VLOOKUP(TRIM(J747),'Transactional Departments'!A:B,2,FALSE)","v":"CSS Sum"},"17240001","","","","",""]
["17","153",null,null,"         RESIDUAL #153RR SHILL","1021RX153950","20400","12100","64RBP","17240001",{"$f":"VLOOKUP(TRIM(J748),'Transactional Departments'!A:B,2,FALSE)","v":"CSS Sum"},"17240001","","","","",""]
["17","153",null,null,"START-UP FUNDS F&A            ","1025AR153100","15000","12400","11500","17240001",{"$f":"VLOOKUP(TRIM(J749),'Transactional Departments'!A:B,2,FALSE)","v":"CSS Sum"},"17240001","","","","",""]
["17","153",null,null,"GINGLE F&A                    ","1025AR153300","15000","12400","11500","17240001",{"$f":"VLOOKUP(TRIM(J750),'Transactional Departments'!A:B,2,FALSE)","v":"CSS Sum"},"17240001","","","","",""]
["17","153",null,null,"CROP & SOIL SCIENCES          ","1025GR153000","10500","12400","11800","17240001",{"$f":"VLOOKUP(TRIM(J751),'Transactional Departments'!A:B,2,FALSE)","v":"CSS Sum"},"17240001","","","","",""]
["17","153",null,null,"JACKSON START-UP OVPR         ","1025GR153200","10500","12400","11800","17242SCJ",{"$f":"VLOOKUP(TRIM(J752),'Transactional Departments'!A:B,2,FALSE)","v":"Jackson, Scott"},"17242SCJ","","","","",""]
["17","153",null,null,"CROP & SOIL SCIENCES          ","1031GE153000","10500","13100","11800","17240001",{"$f":"VLOOKUP(TRIM(J753),'Transactional Departments'!A:B,2,FALSE)","v":"CSS Sum"},"17240001","","","","",""]
["17","153",null,null,"CROP AND SOIL INST GEORGIA    ","1711GH153110","10000","11100","11200","17240001",{"$f":"VLOOKUP(TRIM(J754),'Transactional Departments'!A:B,2,FALSE)","v":"CSS Sum"},"17240001","","","","GRI",""]
["17","153",null,null,"CROP & SOIL SCIENCES          ","1811GH153000","10000","11100","11200","17240001",{"$f":"VLOOKUP(TRIM(J755),'Transactional Departments'!A:B,2,FALSE)","v":"CSS Sum"},"17240001","","","","TIF",""]
["17","154",null,null,"ADSC 2630 PI HRS MGMT-TURNER  ","1011DH154001","14100","11100","41500","17231675",{"$f":"VLOOKUP(TRIM(J756),'Transactional Departments'!A:B,2,FALSE)","v":"Turner, Kari"},"17231675","","","","",""]
["17","154",null,null,"ADSC 3230 LT HRS EVAL-TURNER  ","1011DH154003","14100","11100","41500","17230001",{"$f":"VLOOKUP(TRIM(J757),'Transactional Departments'!A:B,2,FALSE)","v":"ADS Sum"},"17230001","","","","",""]
["17","154",null,null,"ADSC 3650 INT MEAT - STELZLENI","1011DH154004","14100","11100","41500","17230001",{"$f":"VLOOKUP(TRIM(J758),'Transactional Departments'!A:B,2,FALSE)","v":"ADS Sum"},"17230001","","","","",""]
["17","154",null,null,"ADSC 3200 EVAL & COMPOS - DUCK","1011DH154007","14100","11100","41500","17230001",{"$f":"VLOOKUP(TRIM(J759),'Transactional Departments'!A:B,2,FALSE)","v":"ADS Sum"},"17230001","","","","",""]
["17","154",null,null,"ADSC 4370/6370 MON NUTR- AZAIN","1011DH154008","14100","11100","41500","17230001",{"$f":"VLOOKUP(TRIM(J760),'Transactional Departments'!A:B,2,FALSE)","v":"ADS Sum"},"17230001","","","","",""]
["17","154",null,null,"ADSC 2000 PRACTIC ADS - DOVE  ","1011DH154009","14100","11100","41500","17231125",{"$f":"VLOOKUP(TRIM(J761),'Transactional Departments'!A:B,2,FALSE)","v":"Dove, Robert"},"17231125","","","","",""]
["17","154",null,null,"ADSC 3600 BCATL PRO/MGT-SILCOX","1011DH154010","14100","11100","41500","17230001",{"$f":"VLOOKUP(TRIM(J762),'Transactional Departments'!A:B,2,FALSE)","v":"ADS Sum"},"17230001","","","","",""]
["17","154",null,null,"ADSC 3610 PORK PROD/MGMT-DOVE ","1011DH154011","14100","11100","41500","17231125",{"$f":"VLOOKUP(TRIM(J763),'Transactional Departments'!A:B,2,FALSE)","v":"Dove, Robert"},"17231125","","","","",""]
["17","154",null,null,"ADSC 3620 DCATTL PROD/MGMT-ELY","1011DH154012","14100","11100","41500","17230001",{"$f":"VLOOKUP(TRIM(J764),'Transactional Departments'!A:B,2,FALSE)","v":"ADS Sum"},"17230001","","","","",""]
["17","154",null,null,"ADSC 3630 HRS PRO/MGMT-TURNER ","1011DH154013","14100","11100","41500","17231675",{"$f":"VLOOKUP(TRIM(J765),'Transactional Departments'!A:B,2,FALSE)","v":"Turner, Kari"},"17231675","","","","",""]
["17","154",null,null,"ADSC 4410/6410 AD RP PH-GRAVES","1011DH154015","14100","11100","41500","17230001",{"$f":"VLOOKUP(TRIM(J766),'Transactional Departments'!A:B,2,FALSE)","v":"ADS Sum"},"17230001","","","","",""]
["17","154",null,null,"ADSC 3660 WMWATER AQU - BURTLE","1011DH154016","14100","11100","41500","17230001",{"$f":"VLOOKUP(TRIM(J767),'Transactional Departments'!A:B,2,FALSE)","v":"ADS Sum"},"17230001","","","","",""]
["17","154",null,null,"ADSC 2500 BEG HORSE - JOHNSON ","1011DH154019","14100","11100","41500","17230001",{"$f":"VLOOKUP(TRIM(J768),'Transactional Departments'!A:B,2,FALSE)","v":"ADS Sum"},"17230001","","","","",""]
["17","154",null,null,"ADSC 3500 JOHNSON             ","1011DH154021","14100","11100","41500","17230001",{"$f":"VLOOKUP(TRIM(J769),'Transactional Departments'!A:B,2,FALSE)","v":"ADS Sum"},"17230001","","","","",""]
["17","154",null,null,"ADSC 3420 NICKERSON           ","1011DH154022","14100","11100","41500","17230001",{"$f":"VLOOKUP(TRIM(J770),'Transactional Departments'!A:B,2,FALSE)","v":"ADS Sum"},"17230001","","","","",""]
["17","154",null,null,"ADSC 3210 DOUGLAS             ","1011DH154024","14100","11100","41500","17230001",{"$f":"VLOOKUP(TRIM(J771),'Transactional Departments'!A:B,2,FALSE)","v":"ADS Sum"},"17230001","","","","",""]
["17","154",null,null,"ADSC 4390/6390 TURNER         ","1011DH154026","14100","11100","41500","17230001",{"$f":"VLOOKUP(TRIM(J772),'Transactional Departments'!A:B,2,FALSE)","v":"ADS Sum"},"17230001","","","","",""]
["17","154",null,null,"ADSC 6119 WEST                ","1011DH154027","14100","11100","41500","17230001",{"$f":"VLOOKUP(TRIM(J773),'Transactional Departments'!A:B,2,FALSE)","v":"ADS Sum"},"17230001","","","","",""]
["17","154",null,null,"ADSC 3700 NICKERSON           ","1011DH154028","14100","11100","41500","17230001",{"$f":"VLOOKUP(TRIM(J774),'Transactional Departments'!A:B,2,FALSE)","v":"ADS Sum"},"17230001","","","","",""]
["17","154",null,null,"ADSC 4960 NICKERSON           ","1011DH154029","14100","11100","41500","17230001",{"$f":"VLOOKUP(TRIM(J775),'Transactional Departments'!A:B,2,FALSE)","v":"ADS Sum"},"17230001","","","","",""]
["17","154",null,null,"ADS LIVESTOCK JUDGING         ","1011DH154030","14100","11100","41500","17230001",{"$f":"VLOOKUP(TRIM(J776),'Transactional Departments'!A:B,2,FALSE)","v":"ADS Sum"},"17230001","","","","",""]
["17","154",null,null,"ADSC 8120 EXP MET ANI BIOTECH ","1011DH154031","14100","11100","41500","17230001",{"$f":"VLOOKUP(TRIM(J777),'Transactional Departments'!A:B,2,FALSE)","v":"ADS Sum"},"17230001","","","","",""]
["17","154",null,null,"ADSC 4430/6430 EQUINE EXER PHY","1011DH154032","14100","11100","41500","17230001",{"$f":"VLOOKUP(TRIM(J778),'Transactional Departments'!A:B,2,FALSE)","v":"ADS Sum"},"17230001","","","","",""]
["17","154",null,null,"ADSC 4230/6230 ANA & BIO HORSE","1011DH154033","14100","11100","41500","17230001",{"$f":"VLOOKUP(TRIM(J779),'Transactional Departments'!A:B,2,FALSE)","v":"ADS Sum"},"17230001","","","","",""]
["17","154",null,null,"ADSC 4310 QUAN FEED LIVESTOCK ","1011DH154034","14100","11100","41500","17230001",{"$f":"VLOOKUP(TRIM(J780),'Transactional Departments'!A:B,2,FALSE)","v":"ADS Sum"},"17230001","","","","",""]
["17","154",null,null,"ADS TOULOUSE STUDY ABROAD     ","1011DV154035","14100","11100","41507","17230001",{"$f":"VLOOKUP(TRIM(J781),'Transactional Departments'!A:B,2,FALSE)","v":"ADS Sum"},"17230001","18000","NSABD1105MM18  ","100","",""]
["17","154",null,null,"ANIMAL AND DAIRY SCIENCE      ","1011GH154000","10500","11100","11800","17230001",{"$f":"VLOOKUP(TRIM(J782),'Transactional Departments'!A:B,2,FALSE)","v":"ADS Sum"},"17230001","","","","",""]
["17","154",null,null,"ADS INSTRUCTIONAL START-UP    ","1011GH154007","10500","11100","11800","17230001",{"$f":"VLOOKUP(TRIM(J783),'Transactional Departments'!A:B,2,FALSE)","v":"ADS Sum"},"17230001","","","","",""]
["17","154",null,null,"ANIMAL AND DAIRY SCIENCE      ","1011GJ154000","10500","11140","11800","17230001",{"$f":"VLOOKUP(TRIM(J784),'Transactional Departments'!A:B,2,FALSE)","v":"ADS Sum"},"17230001","","","","",""]
["17","154",null,null,"ADS TOULOUSE MAY              ","1011GV154009","10500","11100","11800","17230001",{"$f":"VLOOKUP(TRIM(J785),'Transactional Departments'!A:B,2,FALSE)","v":"ADS Sum"},"17230001","18000","NSABD1105MM18  ","100","",""]
["17","154",null,null,"STF - ANIMAL & DAIRY SCIENCE  ","1019TJ154001","16000","14400","11600","17230001",{"$f":"VLOOKUP(TRIM(J786),'Transactional Departments'!A:B,2,FALSE)","v":"ADS Sum"},"17230001","","","","",""]
["17","154",null,null,"NIH      RF W/ 168696    WEST ","1021CR154036","10000","12110","11200","17230001",{"$f":"VLOOKUP(TRIM(J787),'Transactional Departments'!A:B,2,FALSE)","v":"ADS Sum"},"17230001","","","","",""]
["17","154",null,null,"UGAF     ANIML BREED/GEN ANGLE","1021RR154034","20200","12100","67307","17230001",{"$f":"VLOOKUP(TRIM(J788),'Transactional Departments'!A:B,2,FALSE)","v":"ADS Sum"},"17230001","","","","",""]
["17","154",null,null,"UGARF IDC RETURN ADS          ","1021RX154900","20300","12100","64ICR","17230001",{"$f":"VLOOKUP(TRIM(J789),'Transactional Departments'!A:B,2,FALSE)","v":"ADS Sum"},"17230001","","","","",""]
["17","154",null,null,"ADS F&A RETURN                ","1025AR154100","15000","12400","11500","17230001",{"$f":"VLOOKUP(TRIM(J790),'Transactional Departments'!A:B,2,FALSE)","v":"ADS Sum"},"17230001","","","","",""]
["17","154",null,null,"F&A RETURN STICE              ","1025AR154280","15000","12400","11500","17230001",{"$f":"VLOOKUP(TRIM(J791),'Transactional Departments'!A:B,2,FALSE)","v":"ADS Sum"},"17230001","","","","",""]
["17","154",null,null,"ADS DAIRY SALES               ","1025DR154920","14100","12400","41500","17239002",{"$f":"VLOOKUP(TRIM(J792),'Transactional Departments'!A:B,2,FALSE)","v":"Dairy"},"17239002","","","","",""]
["17","154",null,null,"ANIMAL AND DAIRY SCIENCE      ","1025GR154000","10500","12400","11800","17230001",{"$f":"VLOOKUP(TRIM(J793),'Transactional Departments'!A:B,2,FALSE)","v":"ADS Sum"},"17230001","","","","",""]
["17","154",null,null,"REGEN BIO CTR FUNDS/KARUMBIAH ","1025GR154013","10500","12400","11800","17231225",{"$f":"VLOOKUP(TRIM(J794),'Transactional Departments'!A:B,2,FALSE)","v":"Karumbaiah, Lohitash"},"17231225","","","","",""]
["17","154",null,null,"ADS VIP TUITION FUNDS         ","1025GR154970","10000","12400","11200","17230001",{"$f":"VLOOKUP(TRIM(J795),'Transactional Departments'!A:B,2,FALSE)","v":"ADS Sum"},"17230001","","","","",""]
["17","155",null,null,"OFFICE OF COMMUNICATIONS      ","1011GJ155000","10500","11140","11800","17113001",{"$f":"VLOOKUP(TRIM(J796),'Transactional Departments'!A:B,2,FALSE)","v":"CAES Comms and Marketing Sum"},"17113001","","","","",""]
["17","156",null,null,"LAB/COURSE FEES               ","1011DH156001","14100","11100","41500","17260001",{"$f":"VLOOKUP(TRIM(J797),'Transactional Departments'!A:B,2,FALSE)","v":"Food Science Sum"},"17260001","","","","",""]
["17","156",null,null,"AG APPL ECON CHINA            ","1011DV156002","14100","11100","41507","17260001",{"$f":"VLOOKUP(TRIM(J798),'Transactional Departments'!A:B,2,FALSE)","v":"Food Science Sum"},"17260001","","","","",""]
["17","156",null,null,"FOOD SCIENCE & TECHNOLOGY     ","1011GH156000","10500","11100","11800","17260001",{"$f":"VLOOKUP(TRIM(J799),'Transactional Departments'!A:B,2,FALSE)","v":"Food Science Sum"},"17260001","","","","",""]
["17","156",null,null,"FOOD SCIENCE & TECHNOLOGY     ","1011GJ156000","10500","11140","11800","17260001",{"$f":"VLOOKUP(TRIM(J800),'Transactional Departments'!A:B,2,FALSE)","v":"Food Science Sum"},"17260001","","","","",""]
["17","156",null,null,"FOOD SCIENCE & TECHNOLOGY     ","1011GK156000","10500","11100","11800","17260001",{"$f":"VLOOKUP(TRIM(J801),'Transactional Departments'!A:B,2,FALSE)","v":"Food Science Sum"},"17260001","","","","",""]
["17","156",null,null,"RESIDUAL BAL FOOD SCI & TECH  ","1011RX156950","20400","11100","64RBP","17260001",{"$f":"VLOOKUP(TRIM(J802),'Transactional Departments'!A:B,2,FALSE)","v":"Food Science Sum"},"17260001","","","","",""]
["17","156",null,null,"STF - FOOD SCIENCE            ","1019TJ156001","16000","14400","11600","17260001",{"$f":"VLOOKUP(TRIM(J803),'Transactional Departments'!A:B,2,FALSE)","v":"Food Science Sum"},"17260001","","","","",""]
["17","156",null,null,"UGARF SUPPORT FOOD SCI & TECH ","1021RX156900","20300","12100","64ICR","17260001",{"$f":"VLOOKUP(TRIM(J804),'Transactional Departments'!A:B,2,FALSE)","v":"Food Science Sum"},"17260001","","","","",""]
["17","156",null,null,"FOOD SCIENCE F & A            ","1025AR156001","15000","12400","11500","17260001",{"$f":"VLOOKUP(TRIM(J805),'Transactional Departments'!A:B,2,FALSE)","v":"Food Science Sum"},"17260001","","","","",""]
["17","156",null,null,"FOOD SCIENCE & TECHNOLOGY     ","1025GR156000","10500","12400","11800","17260001",{"$f":"VLOOKUP(TRIM(J806),'Transactional Departments'!A:B,2,FALSE)","v":"Food Science Sum"},"17260001","","","","",""]
["17","156",null,null,"FOOD SCIENCE F & A            ","1031AE156001","15000","13100","11500","17260001",{"$f":"VLOOKUP(TRIM(J807),'Transactional Departments'!A:B,2,FALSE)","v":"Food Science Sum"},"17260001","","","","",""]
["17","156",null,null,"FOOD SCIENCE & TECHNOLOGY     ","1031GE156000","10500","13100","11800","17260001",{"$f":"VLOOKUP(TRIM(J808),'Transactional Departments'!A:B,2,FALSE)","v":"Food Science Sum"},"17260001","","","","",""]
["17","156",null,null,"FST MASTERS TECH ONLINE GRAD  ","1611GH156200","10500","11100","11800","17260001",{"$f":"VLOOKUP(TRIM(J809),'Transactional Departments'!A:B,2,FALSE)","v":"Food Science Sum"},"17260001","","","","GWI",""]
["17","156",null,null,"FOOD SCI INST GEORGIA         ","1711GH156110","10000","11100","11200","17260001",{"$f":"VLOOKUP(TRIM(J810),'Transactional Departments'!A:B,2,FALSE)","v":"Food Science Sum"},"17260001","","","","GRI",""]
["17","156",null,null,"FST KEY DEPOSITS AND REFUNDS  ","9084GN156004","60000","","","17260001",{"$f":"VLOOKUP(TRIM(J811),'Transactional Departments'!A:B,2,FALSE)","v":"Food Science Sum"},"17260001","","","","",""]
["17","157",null,null,"HORTICULTURE - IDC RETURN     ","1011AH157001","15000","11100","11500","17270001",{"$f":"VLOOKUP(TRIM(J812),'Transactional Departments'!A:B,2,FALSE)","v":"Horticulture Sum"},"17270001","","","","",""]
["17","157",null,null,"HORTICULTURE COURSE FEES      ","1011DH157001","14100","11100","41500","17270001",{"$f":"VLOOKUP(TRIM(J813),'Transactional Departments'!A:B,2,FALSE)","v":"Horticulture Sum"},"17270001","","","","",""]
["17","157",null,null,"ORGANIC SALES & SERV OCONNELL ","1011DH157002","14100","11100","41500","17270001",{"$f":"VLOOKUP(TRIM(J814),'Transactional Departments'!A:B,2,FALSE)","v":"Horticulture Sum"},"17270001","","","","",""]
["17","157",null,null,"LANDSCAPE PLANNING - SMALLEY  ","1011DH157003","14100","11100","41500","17270001",{"$f":"VLOOKUP(TRIM(J815),'Transactional Departments'!A:B,2,FALSE)","v":"Horticulture Sum"},"17270001","","","","",""]
["17","157",null,null,"COURSE FEES - AFFOLTER        ","1011DH157004","14100","11100","41500","17270001",{"$f":"VLOOKUP(TRIM(J816),'Transactional Departments'!A:B,2,FALSE)","v":"Horticulture Sum"},"17270001","","","","",""]
["17","157",null,null,"COURSE FEES - BAILEY          ","1011DH157005","14100","11100","41500","17270001",{"$f":"VLOOKUP(TRIM(J817),'Transactional Departments'!A:B,2,FALSE)","v":"Horticulture Sum"},"17270001","","","","",""]
["17","157",null,null,"COURSE FEES - BERLE           ","1011DH157006","14100","11100","41500","17270001",{"$f":"VLOOKUP(TRIM(J818),'Transactional Departments'!A:B,2,FALSE)","v":"Horticulture Sum"},"17270001","","","","",""]
["17","157",null,null,"COURSE FEES - BOYHAN          ","1011DH157007","14100","11100","41500","17270001",{"$f":"VLOOKUP(TRIM(J819),'Transactional Departments'!A:B,2,FALSE)","v":"Horticulture Sum"},"17270001","","","","",""]
["17","157",null,null,"COURSE FEES - CHAPPELL        ","1011DH157008","14100","11100","41500","17270001",{"$f":"VLOOKUP(TRIM(J820),'Transactional Departments'!A:B,2,FALSE)","v":"Horticulture Sum"},"17270001","","","","",""]
["17","157",null,null,"COURSE FEES - KNAUFT          ","1011DH157009","14100","11100","41500","17270001",{"$f":"VLOOKUP(TRIM(J821),'Transactional Departments'!A:B,2,FALSE)","v":"Horticulture Sum"},"17270001","","","","",""]
["17","157",null,null,"COURSE FEES - MALLADI         ","1011DH157010","14100","11100","41500","17270001",{"$f":"VLOOKUP(TRIM(J822),'Transactional Departments'!A:B,2,FALSE)","v":"Horticulture Sum"},"17270001","","","","",""]
["17","157",null,null,"COURSE FEES - MCGREGOR        ","1011DH157011","14100","11100","41500","17270001",{"$f":"VLOOKUP(TRIM(J823),'Transactional Departments'!A:B,2,FALSE)","v":"Horticulture Sum"},"17270001","","","","",""]
["17","157",null,null,"COURSE FEES - NAMBEESAN       ","1011DH157012","14100","11100","41500","17270001",{"$f":"VLOOKUP(TRIM(J824),'Transactional Departments'!A:B,2,FALSE)","v":"Horticulture Sum"},"17270001","","","","",""]
["17","157",null,null,"COURSE FEES - OCONNELL        ","1011DH157013","14100","11100","41500","17270001",{"$f":"VLOOKUP(TRIM(J825),'Transactional Departments'!A:B,2,FALSE)","v":"Horticulture Sum"},"17270001","","","","",""]
["17","157",null,null,"COURSE FEES - PENNISI         ","1011DH157014","14100","11100","41500","17270001",{"$f":"VLOOKUP(TRIM(J826),'Transactional Departments'!A:B,2,FALSE)","v":"Horticulture Sum"},"17270001","","","","",""]
["17","157",null,null,"COURSE FEES - RUTER           ","1011DH157015","14100","11100","41500","17270001",{"$f":"VLOOKUP(TRIM(J827),'Transactional Departments'!A:B,2,FALSE)","v":"Horticulture Sum"},"17270001","","","","",""]
["17","157",null,null,"COURSE FEES - SMALLEY         ","1011DH157016","14100","11100","41500","17270001",{"$f":"VLOOKUP(TRIM(J828),'Transactional Departments'!A:B,2,FALSE)","v":"Horticulture Sum"},"17270001","","","","",""]
["17","157",null,null,"COURSE FEES - THOMAS          ","1011DH157017","14100","11100","41500","17270001",{"$f":"VLOOKUP(TRIM(J829),'Transactional Departments'!A:B,2,FALSE)","v":"Horticulture Sum"},"17270001","","","","",""]
["17","157",null,null,"UGARDENS SALES                ","1011DH157019","14100","11100","41500","17270001",{"$f":"VLOOKUP(TRIM(J830),'Transactional Departments'!A:B,2,FALSE)","v":"Horticulture Sum"},"17270001","","","","",""]
["17","157",null,null,"IRELAND GARDEN TOUR           ","1011DV157018","14100","11100","41507","17270001",{"$f":"VLOOKUP(TRIM(J831),'Transactional Departments'!A:B,2,FALSE)","v":"Horticulture Sum"},"17270001","18000","NSABD1106MM18  ","100","",""]
["17","157",null,null,"HORTICULTURE                  ","1011GH157000","10500","11100","11800","17270001",{"$f":"VLOOKUP(TRIM(J832),'Transactional Departments'!A:B,2,FALSE)","v":"Horticulture Sum"},"17270001","","","","",""]
["17","157",null,null,"UGARDEN SUPPORT               ","1011GH157020","10000","11100","11200","17270001",{"$f":"VLOOKUP(TRIM(J833),'Transactional Departments'!A:B,2,FALSE)","v":"Horticulture Sum"},"17270001","","","","",""]
["17","157",null,null,"ODYSSEY-ORGANIC-KNAUFT        ","1011GH157023","10000","11100","11200","17271400",{"$f":"VLOOKUP(TRIM(J834),'Transactional Departments'!A:B,2,FALSE)","v":"Knauft, David"},"17271400","","","","",""]
["17","157",null,null,"ODYSSEY-BIBLE PLANTS-BAILEY   ","1011GH157024","10000","11100","11200","17270100",{"$f":"VLOOKUP(TRIM(J835),'Transactional Departments'!A:B,2,FALSE)","v":"Bailey, Doug"},"17270100","","","","",""]
["17","157",null,null,"FOCUS-KNAUFT                  ","1011GH157025","10000","11100","11200","17271400",{"$f":"VLOOKUP(TRIM(J836),'Transactional Departments'!A:B,2,FALSE)","v":"Knauft, David"},"17271400","","","","",""]
["17","157",null,null,"ODYSSEY-BONSAI-BOYHAN         ","1011GH157026","10000","11100","11200","17270300",{"$f":"VLOOKUP(TRIM(J837),'Transactional Departments'!A:B,2,FALSE)","v":"Boyhan, George"},"17270300","","","","",""]
["17","157",null,null,"ODYSSEY SMALLEY SIGNIFICANCE  ","1011GH157027","10000","11100","11200","17272400",{"$f":"VLOOKUP(TRIM(J838),'Transactional Departments'!A:B,2,FALSE)","v":"Smalley, Tim"},"17272400","","","","",""]
["17","157",null,null,"HORT STATE-BERLE              ","1011GH157028","10000","11100","11200","17270200",{"$f":"VLOOKUP(TRIM(J839),'Transactional Departments'!A:B,2,FALSE)","v":"Berle, David"},"17270200","","","","",""]
["17","157",null,null,"HORT STATE-MALLADI            ","1011GH157030","10000","11100","11200","17270001",{"$f":"VLOOKUP(TRIM(J840),'Transactional Departments'!A:B,2,FALSE)","v":"Horticulture Sum"},"17270001","","","","",""]
["17","157",null,null,"HORT STATE - THOMAS           ","1011GH157035","10000","11100","11200","17270001",{"$f":"VLOOKUP(TRIM(J841),'Transactional Departments'!A:B,2,FALSE)","v":"Horticulture Sum"},"17270001","","","","",""]
["17","157",null,null,"HORT STATE INSTRUCTION-PENNISI","1011GH157036","10000","11100","11200","17270001",{"$f":"VLOOKUP(TRIM(J842),'Transactional Departments'!A:B,2,FALSE)","v":"Horticulture Sum"},"17270001","","","","",""]
["17","157",null,null,"HORTICULTURE                  ","1011GJ157000","10500","11140","11800","17270001",{"$f":"VLOOKUP(TRIM(J843),'Transactional Departments'!A:B,2,FALSE)","v":"Horticulture Sum"},"17270001","","","","",""]
["17","157",null,null,"HORTICULTURE                  ","1011GK157000","10500","11100","11800","17270001",{"$f":"VLOOKUP(TRIM(J844),'Transactional Departments'!A:B,2,FALSE)","v":"Horticulture Sum"},"17270001","","","","",""]
["17","157",null,null,"IRELAND GARDEN TOUR           ","1011GV157009","10500","11100","11800","17270001",{"$f":"VLOOKUP(TRIM(J845),'Transactional Departments'!A:B,2,FALSE)","v":"Horticulture Sum"},"17270001","18000","NSABD1106MM18  ","100","",""]
["17","157",null,null,"UGAF     ORGANIC AG PRG  ANGLE","1011RH157024","20200","11100","67018","17270001",{"$f":"VLOOKUP(TRIM(J846),'Transactional Departments'!A:B,2,FALSE)","v":"Horticulture Sum"},"17270001","","","","",""]
["17","157",null,null,"UGARF INDIRECT COST RETURN 157","1011RX157900","20300","11100","64ICR","17270001",{"$f":"VLOOKUP(TRIM(J847),'Transactional Departments'!A:B,2,FALSE)","v":"Horticulture Sum"},"17270001","","","","",""]
["17","157",null,null,"RESIDUAL BAL HORTICULTURE     ","1011RX157950","20400","11100","64RBP","17270001",{"$f":"VLOOKUP(TRIM(J848),'Transactional Departments'!A:B,2,FALSE)","v":"Horticulture Sum"},"17270001","","","","",""]
["17","157",null,null,"UGAF     COUSINS ORG AG  ANGLE","1021RR157023","20200","12100","67308","17270001",{"$f":"VLOOKUP(TRIM(J849),'Transactional Departments'!A:B,2,FALSE)","v":"Horticulture Sum"},"17270001","","","","",""]
["17","157",null,null,"HORTICULTURE                  ","1025GR157000","10500","12400","11800","17270001",{"$f":"VLOOKUP(TRIM(J850),'Transactional Departments'!A:B,2,FALSE)","v":"Horticulture Sum"},"17270001","","","","",""]
["17","157",null,null,"HORTICULTURE                  ","1031GE157000","10500","13100","11800","17270001",{"$f":"VLOOKUP(TRIM(J851),'Transactional Departments'!A:B,2,FALSE)","v":"Horticulture Sum"},"17270001","","","","",""]
["17","157",null,null,"UGAF     UGA CAMPUS ARBORPARDU","1031RE157036","20200","13100","","17270001",{"$f":"VLOOKUP(TRIM(J852),'Transactional Departments'!A:B,2,FALSE)","v":"Horticulture Sum"},"17270001","","","","",""]
["17","157",null,null,"STUDENT LAB FEES              ","1711DH157101","14100","11100","41500","17270001",{"$f":"VLOOKUP(TRIM(J853),'Transactional Departments'!A:B,2,FALSE)","v":"Horticulture Sum"},"17270001","","","","GRI",""]
["17","157",null,null,"INSTRUCTION - GRIFFIN         ","1711GH157100","10500","11100","11800","17270001",{"$f":"VLOOKUP(TRIM(J854),'Transactional Departments'!A:B,2,FALSE)","v":"Horticulture Sum"},"17270001","","","","GRI",""]
["17","158",null,null,"PLANT PATH INSTRUCTIONAL SALES","1011DH158001","14100","11100","41500","17280001",{"$f":"VLOOKUP(TRIM(J855),'Transactional Departments'!A:B,2,FALSE)","v":"Plant Path Sum"},"17280001","","","","",""]
["17","158",null,null,"PLANT PATHOLOGY               ","1011GH158000","10500","11100","11800","17280001",{"$f":"VLOOKUP(TRIM(J856),'Transactional Departments'!A:B,2,FALSE)","v":"Plant Path Sum"},"17280001","","","","",""]
["17","158",null,null,"PLANT PATHOLOGY               ","1011GJ158000","10500","11140","11800","17280001",{"$f":"VLOOKUP(TRIM(J857),'Transactional Departments'!A:B,2,FALSE)","v":"Plant Path Sum"},"17280001","","","","",""]
["17","158",null,null,"         PLANT PATH SCHL SHERW","1011RH158020","20200","11100","","17280001",{"$f":"VLOOKUP(TRIM(J858),'Transactional Departments'!A:B,2,FALSE)","v":"Plant Path Sum"},"17280001","","","","",""]
["17","158",null,null,"STF - PLANT PATHOLOGY         ","1019TJ158001","16000","14400","11600","17280001",{"$f":"VLOOKUP(TRIM(J859),'Transactional Departments'!A:B,2,FALSE)","v":"Plant Path Sum"},"17280001","","","","",""]
["17","158",null,null,"UGARF SUPPORT PLANT PATHOLOGY ","1021RX158900","20300","12100","64ICR","17280001",{"$f":"VLOOKUP(TRIM(J860),'Transactional Departments'!A:B,2,FALSE)","v":"Plant Path Sum"},"17280001","","","","",""]
["17","158",null,null,"PLANT PATHOLOGY               ","1025GR158000","10500","12400","11800","17280001",{"$f":"VLOOKUP(TRIM(J861),'Transactional Departments'!A:B,2,FALSE)","v":"Plant Path Sum"},"17280001","","","","",""]
["17","158",null,null,"PLANT PATHOLOGY KVITKO        ","1025GR158120","10000","12400","11200","17284004",{"$f":"VLOOKUP(TRIM(J862),'Transactional Departments'!A:B,2,FALSE)","v":"Kvitko"},"17284004","","","","",""]
["17","158",null,null,"PLANT PATHOLOGY WALCOTT       ","1025GR158210","10000","12400","11200","17284009",{"$f":"VLOOKUP(TRIM(J863),'Transactional Departments'!A:B,2,FALSE)","v":"Walcott"},"17284009","","","","",""]
["17","158",null,null,"PLANT PATHOLOGY BREWER        ","1025GR158240","10000","12400","11200","17284002",{"$f":"VLOOKUP(TRIM(J864),'Transactional Departments'!A:B,2,FALSE)","v":"Brewer"},"17284002","","","","",""]
["17","158",null,null,"PLANT PATHOLOGY               ","1031GE158000","10500","13100","11800","17280001",{"$f":"VLOOKUP(TRIM(J865),'Transactional Departments'!A:B,2,FALSE)","v":"Plant Path Sum"},"17280001","","","","",""]
["17","158",null,null,"PLANT PATHOLOGY               ","1811GH158000","10000","11100","11200","17280001",{"$f":"VLOOKUP(TRIM(J866),'Transactional Departments'!A:B,2,FALSE)","v":"Plant Path Sum"},"17280001","","","","TIF",""]
["17","159",null,null,"POULTRY SCI LAB & SUPPLY FEES ","1011DH159001","14100","11100","41500","17290001",{"$f":"VLOOKUP(TRIM(J867),'Transactional Departments'!A:B,2,FALSE)","v":"Poultry Science Sum"},"17290001","","","","",""]
["17","159",null,null,"CR AVIAN BIOLOGY MAY SA PROG  ","1011DV159100","14100","11100","41507","17290001",{"$f":"VLOOKUP(TRIM(J868),'Transactional Departments'!A:B,2,FALSE)","v":"Poultry Science Sum"},"17290001","18000","NSABD1149MM18  ","100","",""]
["17","159",null,null,"POULTRY SCIENCE               ","1011GH159000","10500","11100","11800","17290001",{"$f":"VLOOKUP(TRIM(J869),'Transactional Departments'!A:B,2,FALSE)","v":"Poultry Science Sum"},"17290001","","","","",""]
["17","159",null,null,"INSTRUCTION BENSON            ","1011GH159120","10000","11100","11200","17295100",{"$f":"VLOOKUP(TRIM(J870),'Transactional Departments'!A:B,2,FALSE)","v":"Benson, Andrew"},"17295100","","","","",""]
["17","159",null,null,"INSTRUCTION DAVIS             ","1011GH159130","10000","11100","11200","17295200",{"$f":"VLOOKUP(TRIM(J871),'Transactional Departments'!A:B,2,FALSE)","v":"Davis, Adam"},"17295200","","","","",""]
["17","159",null,null,"INSTRUCTION THIPPAREDDI       ","1011GH159150","10000","11100","11200","17295800",{"$f":"VLOOKUP(TRIM(J872),'Transactional Departments'!A:B,2,FALSE)","v":"Thippareddi, Harshavardhan"},"17295800","","","","",""]
["17","159",null,null,"INSTRUCTION JORDAN            ","1011GH159160","10000","11100","11200","17290001",{"$f":"VLOOKUP(TRIM(J873),'Transactional Departments'!A:B,2,FALSE)","v":"Poultry Science Sum"},"17290001","","","","",""]
["17","159",null,null,"INSTRUCTION BECKSTEAD         ","1011GH159220","10000","11100","11200","17290001",{"$f":"VLOOKUP(TRIM(J874),'Transactional Departments'!A:B,2,FALSE)","v":"Poultry Science Sum"},"17290001","","","","",""]
["17","159",null,null,"INSTRUCTION FAIRCHILD         ","1011GH159270","10000","11100","11200","17295350",{"$f":"VLOOKUP(TRIM(J875),'Transactional Departments'!A:B,2,FALSE)","v":"Fairchild, Brian"},"17295350","","","","",""]
["17","159",null,null,"INSTRUCTION KIM               ","1011GH159300","10000","11100","11200","17290001",{"$f":"VLOOKUP(TRIM(J876),'Transactional Departments'!A:B,2,FALSE)","v":"Poultry Science Sum"},"17290001","","","","",""]
["17","159",null,null,"INSTRUCTION FOWLER            ","1011GH159310","10000","11100","11200","17290001",{"$f":"VLOOKUP(TRIM(J877),'Transactional Departments'!A:B,2,FALSE)","v":"Poultry Science Sum"},"17290001","","","","",""]
["17","159",null,null,"INSTRUCTION ELLESTAD          ","1011GH159320","10000","11100","11200","17295300",{"$f":"VLOOKUP(TRIM(J878),'Transactional Departments'!A:B,2,FALSE)","v":"Ellestad, Laura"},"17295300","","","","",""]
["17","159",null,null,"INSTRUCTION SELVARAJ          ","1011GH159330","10000","11100","11200","17295700",{"$f":"VLOOKUP(TRIM(J879),'Transactional Departments'!A:B,2,FALSE)","v":"Selvaraj, Ramesh"},"17295700","","","","",""]
["17","159",null,null,"POULTRY SCIENCE               ","1011GJ159000","10500","11140","11800","17290001",{"$f":"VLOOKUP(TRIM(J880),'Transactional Departments'!A:B,2,FALSE)","v":"Poultry Science Sum"},"17290001","","","","",""]
["17","159",null,null,"UGARF INDIRECT COST RETURN 159","1011RX159900","20300","11100","64ICR","17290001",{"$f":"VLOOKUP(TRIM(J881),'Transactional Departments'!A:B,2,FALSE)","v":"Poultry Science Sum"},"17290001","","","","",""]
["17","159",null,null,"         RESIDUAL #159RR LACY ","1021RX159950","20400","12100","64RBP","17290001",{"$f":"VLOOKUP(TRIM(J882),'Transactional Departments'!A:B,2,FALSE)","v":"Poultry Science Sum"},"17290001","","","","",""]
["17","159",null,null,"POULTRY SCIENCE F&A RETURN    ","1025AR159001","15000","12400","11500","17290001",{"$f":"VLOOKUP(TRIM(J883),'Transactional Departments'!A:B,2,FALSE)","v":"Poultry Science Sum"},"17290001","","","","",""]
["17","159",null,null,"POULTRY SCIENCE               ","1025GR159000","10500","12400","11800","17290001",{"$f":"VLOOKUP(TRIM(J884),'Transactional Departments'!A:B,2,FALSE)","v":"Poultry Science Sum"},"17290001","","","","",""]
["17","159",null,null,"POULTRY SCIENCE               ","1031GE159000","10500","13100","11800","17290001",{"$f":"VLOOKUP(TRIM(J885),'Transactional Departments'!A:B,2,FALSE)","v":"Poultry Science Sum"},"17290001","","","","",""]
["17","161",null,null,"CAES BUSINESS OFFICE-INSTRUCT ","1011GH161000","10500","11100","11800","17111101",{"$f":"VLOOKUP(TRIM(J886),'Transactional Departments'!A:B,2,FALSE)","v":{"$error":"#N/A"}},"17111101","","","","",""]
["17","161",null,null,"CAES BUSINESS OFFICE-INSTRUCT ","1011GJ161000","10500","11140","11800","17111101",{"$f":"VLOOKUP(TRIM(J887),'Transactional Departments'!A:B,2,FALSE)","v":{"$error":"#N/A"}},"17111101","","","","",""]
["17","161",null,null,"CAES BUS OFF - HR             ","1011GJ161100","10500","11140","11800","17111200",{"$f":"VLOOKUP(TRIM(J888),'Transactional Departments'!A:B,2,FALSE)","v":"CAES Human Resources"},"17111200","","","","",""]
["17","161",null,null,"CAES CONTRACT & GRANTS        ","1011GJ161400","10000","11140","11200","17111100",{"$f":"VLOOKUP(TRIM(J889),'Transactional Departments'!A:B,2,FALSE)","v":"Contracts and Grants"},"17111100","","","","",""]
["17","161",null,null,"CAES FISCAL COMPLIANCE        ","1011GJ161500","10000","11140","11200","17111700",{"$f":"VLOOKUP(TRIM(J890),'Transactional Departments'!A:B,2,FALSE)","v":"Fiscal Compliance"},"17111700","","","","",""]
["17","161",null,null,"AG BUSINESS OFFICE - RESEARCH ","1025GR161200","10500","12400","11800","17111101",{"$f":"VLOOKUP(TRIM(J891),'Transactional Departments'!A:B,2,FALSE)","v":{"$error":"#N/A"}},"17111101","","","","",""]
["17","161",null,null,"SPECIAL FUNDING               ","1031GE161002","10500","13100","11800","17111101",{"$f":"VLOOKUP(TRIM(J892),'Transactional Departments'!A:B,2,FALSE)","v":{"$error":"#N/A"}},"17111101","","","","",""]
["17","161",null,null,"AG BUSINESS OFFICE - EXTENSION","1031GE161300","10500","13100","11800","17111101",{"$f":"VLOOKUP(TRIM(J893),'Transactional Departments'!A:B,2,FALSE)","v":{"$error":"#N/A"}},"17111101","","","","",""]
["17","174",null,null,"ENT NOBLET F&A                ","1011AH174001","15000","11100","11500","17250001",{"$f":"VLOOKUP(TRIM(J894),'Transactional Departments'!A:B,2,FALSE)","v":"Entomology Sum"},"17250001","","","","",""]
["17","174",null,null,"ENTOMOLOGY                    ","1011DH174000","14100","11100","41500","17250001",{"$f":"VLOOKUP(TRIM(J895),'Transactional Departments'!A:B,2,FALSE)","v":"Entomology Sum"},"17250001","","","","",""]
["17","174",null,null,"STUDY ABROAD SALES & SERVICE  ","1011DV174001","14100","11100","41507","17250001",{"$f":"VLOOKUP(TRIM(J896),'Transactional Departments'!A:B,2,FALSE)","v":"Entomology Sum"},"17250001","18000","NSABD1147SU18  ","100","",""]
["17","174",null,null,"ENTOMOLOGY                    ","1011GH174000","10500","11100","11800","17250001",{"$f":"VLOOKUP(TRIM(J897),'Transactional Departments'!A:B,2,FALSE)","v":"Entomology Sum"},"17250001","","","","",""]
["17","174",null,null,"ENTOMOLOGY                    ","1011GJ174000","10500","11140","11800","17250001",{"$f":"VLOOKUP(TRIM(J898),'Transactional Departments'!A:B,2,FALSE)","v":"Entomology Sum"},"17250001","","","","",""]
["17","174",null,null,"UGAF     GRY HERZOG COT APARDU","1011RH174231","20200","11100","","17250001",{"$f":"VLOOKUP(TRIM(J899),'Transactional Departments'!A:B,2,FALSE)","v":"Entomology Sum"},"17250001","","","","",""]
["17","174",null,null,"NC/USDA  RF W/ 330-487   TOEWS","1021RR174040","20400","12100","62506","17250001",{"$f":"VLOOKUP(TRIM(J900),'Transactional Departments'!A:B,2,FALSE)","v":"Entomology Sum"},"17250001","","","","",""]
["17","174",null,null,"USDA     RF HORTON W/309117   ","1021RR174160","20400","12100","61002","17250001",{"$f":"VLOOKUP(TRIM(J901),'Transactional Departments'!A:B,2,FALSE)","v":"Entomology Sum"},"17250001","","","","",""]
["17","174",null,null,"         UGARF SUPPORT ENTOM  ","1021RX174900","20300","12100","64ICR","17250001",{"$f":"VLOOKUP(TRIM(J902),'Transactional Departments'!A:B,2,FALSE)","v":"Entomology Sum"},"17250001","","","","",""]
["17","174",null,null,"         RESIDUAL #174RR NOBLE","1021RX174950","20400","12100","64RBP","17250001",{"$f":"VLOOKUP(TRIM(J903),'Transactional Departments'!A:B,2,FALSE)","v":"Entomology Sum"},"17250001","","","","",""]
["17","174",null,null,"ENTOMOLOGY                    ","1025AR174000","15000","12400","11500","17250001",{"$f":"VLOOKUP(TRIM(J904),'Transactional Departments'!A:B,2,FALSE)","v":"Entomology Sum"},"17250001","","","","",""]
["17","174",null,null,"ENTOMOLOGY                    ","1025GR174000","10500","12400","11800","17250001",{"$f":"VLOOKUP(TRIM(J905),'Transactional Departments'!A:B,2,FALSE)","v":"Entomology Sum"},"17250001","","","","",""]
["17","174",null,null,"ENTOMOLOGY                    ","1031GE174000","10500","13100","11800","17250001",{"$f":"VLOOKUP(TRIM(J906),'Transactional Departments'!A:B,2,FALSE)","v":"Entomology Sum"},"17250001","","","","",""]
["17","174",null,null,"ENTOMOLOGY INST GEORGIA       ","1711GH174110","10000","11100","11200","17250001",{"$f":"VLOOKUP(TRIM(J907),'Transactional Departments'!A:B,2,FALSE)","v":"Entomology Sum"},"17250001","","","","GRI",""]
["17","174",null,null,"ENTOMOLOGY                    ","1811GH174000","10000","11100","11200","17250001",{"$f":"VLOOKUP(TRIM(J908),'Transactional Departments'!A:B,2,FALSE)","v":"Entomology Sum"},"17250001","","","","TIF",""]
["17","276",null,null,"COMMUNICATIONS RSCH F&A ADM   ","2526AB276090","15300","12200","11500","17113001",{"$f":"VLOOKUP(TRIM(J909),'Transactional Departments'!A:B,2,FALSE)","v":"CAES Comms and Marketing Sum"},"17113001","","","","",""]
["17","276",null,null,"OFFICE OF COMMUNICATIONS - GEN","2526GB276000","11300","12200","11200","17113001",{"$f":"VLOOKUP(TRIM(J910),'Transactional Departments'!A:B,2,FALSE)","v":"CAES Comms and Marketing Sum"},"17113001","","","","",""]
["17","276",null,null,"OFFICE OF COMMUNICATIONS      ","2526GB276090","11300","12200","11200","17113001",{"$f":"VLOOKUP(TRIM(J911),'Transactional Departments'!A:B,2,FALSE)","v":"CAES Comms and Marketing Sum"},"17113001","","","","",""]
["17","277",null,null,"         D W BROOKS FUND      ","2521RB277014","20200","12100","67791","17120001",{"$f":"VLOOKUP(TRIM(J912),'Transactional Departments'!A:B,2,FALSE)","v":"CAES Assoc Dean Rsch Sum"},"17120001","","","","",""]
["17","277",null,null,"ROYALTY INVT/ASSOC DEAN       ","2521RX277027","20300","12100","64URF","17120001",{"$f":"VLOOKUP(TRIM(J913),'Transactional Departments'!A:B,2,FALSE)","v":"CAES Assoc Dean Rsch Sum"},"17120001","","","","",""]
["17","277",null,null,"ROYALTY DEPT/ASSOC DEAN       ","2521RX277028","20300","12100","64RYT","17120001",{"$f":"VLOOKUP(TRIM(J914),'Transactional Departments'!A:B,2,FALSE)","v":"CAES Assoc Dean Rsch Sum"},"17120001","","","","",""]
["17","277",null,null,"         UGARF SUPPORT DIR    ","2521RX277900","20300","12100","64ICR","17120001",{"$f":"VLOOKUP(TRIM(J915),'Transactional Departments'!A:B,2,FALSE)","v":"CAES Assoc Dean Rsch Sum"},"17120001","","","","",""]
["17","277",null,null,"         RESIDUAL #277ES CHERR","2521RX277950","20400","12100","64RBP","17120001",{"$f":"VLOOKUP(TRIM(J916),'Transactional Departments'!A:B,2,FALSE)","v":"CAES Assoc Dean Rsch Sum"},"17120001","","","","",""]
["17","277",null,null,"ASSOCIATE DEAN RSCH F&A ADM   ","2526AB277090","15300","12200","11500","17120001",{"$f":"VLOOKUP(TRIM(J917),'Transactional Departments'!A:B,2,FALSE)","v":"CAES Assoc Dean Rsch Sum"},"17120001","","","","",""]
["17","277",null,null,"ASSOC DEANS OFF RESEAR GENERAL","2526GB277000","11300","12200","11200","17120001",{"$f":"VLOOKUP(TRIM(J918),'Transactional Departments'!A:B,2,FALSE)","v":"CAES Assoc Dean Rsch Sum"},"17120001","","","","",""]
["17","277",null,null,"ASSOC DEANS OFF DEPART ADMIN  ","2526GB277090","11300","12200","11200","17120001",{"$f":"VLOOKUP(TRIM(J919),'Transactional Departments'!A:B,2,FALSE)","v":"CAES Assoc Dean Rsch Sum"},"17120001","","","","",""]
["17","277",null,null,"FOOD SCIENCE                  ","9082GN277003","60000","","","17120001",{"$f":"VLOOKUP(TRIM(J920),'Transactional Departments'!A:B,2,FALSE)","v":"CAES Assoc Dean Rsch Sum"},"17120001","","","","",""]
["17","277",null,null,"GEORGIA EXPERIMENT STATION    ","9082GN277005","60000","","","17120001",{"$f":"VLOOKUP(TRIM(J921),'Transactional Departments'!A:B,2,FALSE)","v":"CAES Assoc Dean Rsch Sum"},"17120001","","","","",""]
["17","278",null,null,"RDC CONFERENCE CENTER         ","2631DE278803","14310","13200","41500","17730001",{"$f":"VLOOKUP(TRIM(J922),'Transactional Departments'!A:B,2,FALSE)","v":"TCC/RDC Sum"},"17730001","","","","",""]
["17","278",null,null,"RDC CONFERENCE CENTER         ","2631DW278803","14310","13200","41500","17730001",{"$f":"VLOOKUP(TRIM(J923),'Transactional Departments'!A:B,2,FALSE)","v":"TCC/RDC Sum"},"17730001","","","","",""]
["17","278",null,null,"STATE SMITH LEVER             ","2631GJ278004","11310","11140","11200","17730001",{"$f":"VLOOKUP(TRIM(J924),'Transactional Departments'!A:B,2,FALSE)","v":"TCC/RDC Sum"},"17730001","","","","",""]
["17","278",null,null,"STATE SMITH LEVER             ","2671GP278004","11310","17100","11200","17730001",{"$f":"VLOOKUP(TRIM(J925),'Transactional Departments'!A:B,2,FALSE)","v":"TCC/RDC Sum"},"17730001","","","","",""]
["17","278",null,null,"UTILITIES                     ","2671GP278005","11310","17100","11200","17730001",{"$f":"VLOOKUP(TRIM(J926),'Transactional Departments'!A:B,2,FALSE)","v":"TCC/RDC Sum"},"17730001","","","","",""]
["17","278",null,null,"SOUTHERN DAIRY CONFERENCE     ","9084GN278003","60000","","","17730001",{"$f":"VLOOKUP(TRIM(J927),'Transactional Departments'!A:B,2,FALSE)","v":"TCC/RDC Sum"},"17730001","","","","",""]
["17","279",null,null,"CAES BUSINESS OFFICE          ","2526AB279090","15300","12200","11500","17111101",{"$f":"VLOOKUP(TRIM(J928),'Transactional Departments'!A:B,2,FALSE)","v":{"$error":"#N/A"}},"17111101","","","","",""]
["17","279",null,null,"AG BUS OFF DEPARTMENTAL ADMIN ","2526GB279090","11300","12200","11200","17111101",{"$f":"VLOOKUP(TRIM(J929),'Transactional Departments'!A:B,2,FALSE)","v":{"$error":"#N/A"}},"17111101","","","","",""]
["17","279",null,null,"CAES BUS OFF - HR             ","2526GB279100","11300","12200","11200","17111200",{"$f":"VLOOKUP(TRIM(J930),'Transactional Departments'!A:B,2,FALSE)","v":"CAES Human Resources"},"17111200","","","","",""]
["17","279",null,null,"CAES CONTRACTS & GRANTS       ","2526GB279200","11300","12200","11200","17111100",{"$f":"VLOOKUP(TRIM(J931),'Transactional Departments'!A:B,2,FALSE)","v":"Contracts and Grants"},"17111100","","","","",""]
["17","279",null,null,"CAES FISCAL COMPLIANCE        ","2526GB279300","11300","12200","11200","17111700",{"$f":"VLOOKUP(TRIM(J932),'Transactional Departments'!A:B,2,FALSE)","v":"Fiscal Compliance"},"17111700","","","","",""]
["17","279",null,null,"ACCOUNTABILITY                ","2526GB279400","11300","12200","11200","17111400",{"$f":"VLOOKUP(TRIM(J933),'Transactional Departments'!A:B,2,FALSE)","v":"Accountability"},"17111400","","","","",""]
["17","280",null,null,"GENERAL EXPENSE        COLLEGE","2526AB280000","15300","12200","11500","17602200",{"$f":"VLOOKUP(TRIM(J934),'Transactional Departments'!A:B,2,FALSE)","v":"CAES General Expense"},"17602200","","","","",""]
["17","280",null,null,"GENERAL EXPENSE        COLLEGE","2526AC280000","15300","12200","11500","17602200",{"$f":"VLOOKUP(TRIM(J935),'Transactional Departments'!A:B,2,FALSE)","v":"CAES General Expense"},"17602200","","","","",""]
["17","280",null,null,"GENERAL EXPENSE        COLLEGE","2526GC280000","11300","12200","11200","17602200",{"$f":"VLOOKUP(TRIM(J936),'Transactional Departments'!A:B,2,FALSE)","v":"CAES General Expense"},"17602200","","","","RCS",""]
["17","280",null,null,"GENERAL EXPENSE        COLLEGE","2571GC280000","11300","17100","11200","17602200",{"$f":"VLOOKUP(TRIM(J937),'Transactional Departments'!A:B,2,FALSE)","v":"CAES General Expense"},"17602200","","","","RCS",""]
["17","281",null,null,"PHYSICAL PLANT         COLLEGE","2571AC281000","15300","17100","11500","17604000",{"$f":"VLOOKUP(TRIM(J938),'Transactional Departments'!A:B,2,FALSE)","v":"Griffin Facilites Mgmt"},"17604000","","","","",""]
["17","281",null,null,"PHYSICAL PLANT UTILITIES - IDC","2571AC281005","15300","17100","11500","17604000",{"$f":"VLOOKUP(TRIM(J939),'Transactional Departments'!A:B,2,FALSE)","v":"Griffin Facilites Mgmt"},"17604000","","","","",""]
["17","281",null,null,"PHYSICAL PLANT         COLLEGE","2571GC281000","11300","17100","11200","17604000",{"$f":"VLOOKUP(TRIM(J940),'Transactional Departments'!A:B,2,FALSE)","v":"Griffin Facilites Mgmt"},"17604000","","","","",""]
["17","281",null,null,"PHYSICAL PLANT - UTILITIES    ","2571GC281005","11300","17100","11200","17604000",{"$f":"VLOOKUP(TRIM(J941),'Transactional Departments'!A:B,2,FALSE)","v":"Griffin Facilites Mgmt"},"17604000","","","","",""]
["17","282",null,null,"UCA/USAIDLIVESTOCK NEPAL MAGNA","2521CC282392","11300","12110","11200","17210001",{"$f":"VLOOKUP(TRIM(J942),'Transactional Departments'!A:B,2,FALSE)","v":"Ag Econ Sum"},"17210001","","","","",""]
["17","282",null,null,"USDA ARS RF SNAP BENEFI  SMITH","2521CC282406","11300","12110","11200","17210001",{"$f":"VLOOKUP(TRIM(J943),'Transactional Departments'!A:B,2,FALSE)","v":"Ag Econ Sum"},"17210001","","","","",""]
["17","282",null,null,"USDA ARS RF W/ RC282406 DORFMA","2521CC282407","11300","12110","61004","17210001",{"$f":"VLOOKUP(TRIM(J944),'Transactional Departments'!A:B,2,FALSE)","v":"Ag Econ Sum"},"17210001","","","","",""]
["17","282",null,null,"USDC     RF R/RCE-KRIE-16     ","2521CC282411","11300","12110","11200","17210001",{"$f":"VLOOKUP(TRIM(J945),'Transactional Departments'!A:B,2,FALSE)","v":"Ag Econ Sum"},"17210001","","","","",""]
["17","282",null,null,"USDA ARS RF FOOD SPEND   SMITH","2521CC282412","11300","12110","11200","17210001",{"$f":"VLOOKUP(TRIM(J946),'Transactional Departments'!A:B,2,FALSE)","v":"Ag Econ Sum"},"17210001","","","","",""]
["17","282",null,null,"USDA FS  RF RECREATION   LANDR","2521CC282416","11300","12110","11200","17210001",{"$f":"VLOOKUP(TRIM(J947),'Transactional Departments'!A:B,2,FALSE)","v":"Ag Econ Sum"},"17210001","","","","",""]
["17","282",null,null,"USDA ARS RF ERS FSMA     ZHEN ","2521CC282417","11300","12110","11200","17210001",{"$f":"VLOOKUP(TRIM(J948),'Transactional Departments'!A:B,2,FALSE)","v":"Ag Econ Sum"},"17210001","","","","",""]
["17","282",null,null,"USDA     RF PRICING STRA ZHEN ","2521CC282419","11300","12110","11200","17210001",{"$f":"VLOOKUP(TRIM(J949),'Transactional Departments'!A:B,2,FALSE)","v":"Ag Econ Sum"},"17210001","","","","",""]
["17","282",null,null,"USDA     RF ESCALANT W/309-117","2521RC282181","20400","12100","61002","17210001",{"$f":"VLOOKUP(TRIM(J950),'Transactional Departments'!A:B,2,FALSE)","v":"Ag Econ Sum"},"17210001","","","","",""]
["17","282",null,null,"USDA     RF COLSON W/309117   ","2521RC282183","20400","12100","61002","17210001",{"$f":"VLOOKUP(TRIM(J951),'Transactional Departments'!A:B,2,FALSE)","v":"Ag Econ Sum"},"17210001","","","","",""]
["17","282",null,null,"         RUSSELL PROF    BERGS","2521RC282210","20200","12100","67792","17210001",{"$f":"VLOOKUP(TRIM(J952),'Transactional Departments'!A:B,2,FALSE)","v":"Ag Econ Sum"},"17210001","","","","",""]
["17","282",null,null,"UGAF     GRAD ASSIST     ANGLE","2521RC282388","20200","12100","67793","17210001",{"$f":"VLOOKUP(TRIM(J953),'Transactional Departments'!A:B,2,FALSE)","v":"Ag Econ Sum"},"17210001","","","","",""]
["17","282",null,null,"UGAF     GAA FOOD CHOIC PANGLE","2521RC282398","20200","12100","67794","17210001",{"$f":"VLOOKUP(TRIM(J954),'Transactional Departments'!A:B,2,FALSE)","v":"Ag Econ Sum"},"17210001","","","","",""]
["17","282",null,null,"DU       RF RF_SHELF LABEZHEN ","2521RC282404","20400","12100","64290","17210001",{"$f":"VLOOKUP(TRIM(J955),'Transactional Departments'!A:B,2,FALSE)","v":"Ag Econ Sum"},"17210001","","","","",""]
["17","282",null,null,"USDA NIFARF W/282-423    ZHEN ","2521RC282424","20400","12100","61006","17210001",{"$f":"VLOOKUP(TRIM(J956),'Transactional Departments'!A:B,2,FALSE)","v":"Ag Econ Sum"},"17210001","","","","",""]
["17","282",null,null,"TUFTS    RF SNAP/WIC     RABIN","2521RC282425","20400","12100","62560","17210001",{"$f":"VLOOKUP(TRIM(J957),'Transactional Departments'!A:B,2,FALSE)","v":"Ag Econ Sum"},"17210001","","","","",""]
["17","282",null,null,"UF/USDA  RF RR272-726 COLSON  ","2521RC282426","20400","12100","62511","17210001",{"$f":"VLOOKUP(TRIM(J958),'Transactional Departments'!A:B,2,FALSE)","v":"Ag Econ Sum"},"17210001","","","","",""]
["17","282",null,null,"USDA NIFAW/RE677532      AHMAD","2521RC282427","20400","12100","61006","17210001",{"$f":"VLOOKUP(TRIM(J959),'Transactional Departments'!A:B,2,FALSE)","v":"Ag Econ Sum"},"17210001","","","","",""]
["17","282",null,null,"OSU/USDA RF ECON RESE    KARAL","2521RC282429","20400","12100","62507","17210001",{"$f":"VLOOKUP(TRIM(J960),'Transactional Departments'!A:B,2,FALSE)","v":"Ag Econ Sum"},"17210001","","","","",""]
["17","282",null,null,"         UGARF SUPPORT AG ECON","2521RX282900","20300","12100","64ICR","17210001",{"$f":"VLOOKUP(TRIM(J961),'Transactional Departments'!A:B,2,FALSE)","v":"Ag Econ Sum"},"17210001","","","","",""]
["17","282",null,null,"         RESIDUAL #282ES WHITE","2521RX282950","20400","12100","64RBP","17210001",{"$f":"VLOOKUP(TRIM(J962),'Transactional Departments'!A:B,2,FALSE)","v":"Ag Econ Sum"},"17210001","","","","",""]
["17","282",null,null,"AG ECONOMICS RSCH F&A ADM     ","2526AC282090","15300","12200","11500","17210001",{"$f":"VLOOKUP(TRIM(J963),'Transactional Departments'!A:B,2,FALSE)","v":"Ag Econ Sum"},"17210001","","","","",""]
["17","282",null,null,"LUSI SALES & SERVICE          ","2526DC282003","14300","12200","41500","17210001",{"$f":"VLOOKUP(TRIM(J964),'Transactional Departments'!A:B,2,FALSE)","v":"Ag Econ Sum"},"17210001","","","","",""]
["17","282",null,null,"AG & APPLIED ECON RSCH COLLEGE","2526GC282000","11300","12200","11200","17210001",{"$f":"VLOOKUP(TRIM(J965),'Transactional Departments'!A:B,2,FALSE)","v":"Ag Econ Sum"},"17210001","","","","RCS",""]
["17","282",null,null,"AG & APPLIED ECON DEPART ADMIN","2526GC282090","11300","12200","11200","17210001",{"$f":"VLOOKUP(TRIM(J966),'Transactional Departments'!A:B,2,FALSE)","v":"Ag Econ Sum"},"17210001","","","","RCS",""]
["17","282",null,null,"AAE STATE ZHEN                ","2526GC282100","11300","12200","11200","17210290",{"$f":"VLOOKUP(TRIM(J967),'Transactional Departments'!A:B,2,FALSE)","v":"Zhen, Chen"},"17210290","","","","RCS",""]
["17","282",null,null,"AAE STATE KRIESEL             ","2526GC282120","11300","12200","11200","17210210",{"$f":"VLOOKUP(TRIM(J968),'Transactional Departments'!A:B,2,FALSE)","v":"Kriesel, Warren"},"17210210","","","","RCS",""]
["17","282",null,null,"AAE STATE BERGSTROM           ","2526GC282190","11300","12200","11200","17210100",{"$f":"VLOOKUP(TRIM(J969),'Transactional Departments'!A:B,2,FALSE)","v":"Berstrom, John"},"17210100","","","","RCS",""]
["17","282",null,null,"AAE STATE CENTNER             ","2526GC282200","11300","12200","11200","17210140",{"$f":"VLOOKUP(TRIM(J970),'Transactional Departments'!A:B,2,FALSE)","v":"Centner, Terence"},"17210140","","","","RCS",""]
["17","282",null,null,"AAE STATE DORFMAN             ","2526GC282210","11300","12200","11200","17210160",{"$f":"VLOOKUP(TRIM(J971),'Transactional Departments'!A:B,2,FALSE)","v":"Dorfman, Jeffrey"},"17210160","","","","RCS",""]
["17","282",null,null,"AAE STATE SMITH T             ","2526GC282220","11300","12200","11200","17210280",{"$f":"VLOOKUP(TRIM(J972),'Transactional Departments'!A:B,2,FALSE)","v":"Smith, Travis A"},"17210280","","","","RCS",""]
["17","282",null,null,"AAE STATE LANDRY              ","2526GC282230","11300","12200","11200","17210220",{"$f":"VLOOKUP(TRIM(J973),'Transactional Departments'!A:B,2,FALSE)","v":"Landry, Craig"},"17210220","","","","RCS",""]
["17","282",null,null,"AAE STATE COLSON              ","2526GC282250","11300","12200","11200","17210150",{"$f":"VLOOKUP(TRIM(J974),'Transactional Departments'!A:B,2,FALSE)","v":"Colson, Gregory John"},"17210150","","","","RCS",""]
["17","282",null,null,"AAE STATE FERREIRA            ","2526GC282260","11300","12200","11200","17210180",{"$f":"VLOOKUP(TRIM(J975),'Transactional Departments'!A:B,2,FALSE)","v":"Ferreira, Susana"},"17210180","","","","RCS",""]
["17","282",null,null,"AAE STATE MULLEN              ","2526GC282270","11300","12200","11200","17210250",{"$f":"VLOOKUP(TRIM(J976),'Transactional Departments'!A:B,2,FALSE)","v":"Mullen, Jeffery"},"17210250","","","","RCS",""]
["17","282",null,null,"AAE STATE MAGNAN              ","2526GC282280","11300","12200","11200","17210230",{"$f":"VLOOKUP(TRIM(J977),'Transactional Departments'!A:B,2,FALSE)","v":"Magnan, Nicholas"},"17210230","","","","RCS",""]
["17","282",null,null,"AAE STATE BERNING             ","2526GC282310","11300","12200","11200","17210110",{"$f":"VLOOKUP(TRIM(J978),'Transactional Departments'!A:B,2,FALSE)","v":"Berning, Joshua"},"17210110","","","","RCS",""]
["17","282",null,null,"AAE STATE ESCALANTE           ","2526GC282320","11300","12200","11200","17210170",{"$f":"VLOOKUP(TRIM(J979),'Transactional Departments'!A:B,2,FALSE)","v":"Escalante, Cesar"},"17210170","","","","RCS",""]
["17","282",null,null,"AAE STATE BREWER              ","2526GC282340","11300","12200","11200","17210120",{"$f":"VLOOKUP(TRIM(J980),'Transactional Departments'!A:B,2,FALSE)","v":"Brewer, Brady"},"17210120","","","","RCS",""]
["17","282",null,null,"AAE STATE SHONKWILER          ","2526GC282370","11300","12200","11200","17210001",{"$f":"VLOOKUP(TRIM(J981),'Transactional Departments'!A:B,2,FALSE)","v":"Ag Econ Sum"},"17210001","","","","RCS",""]
["17","282",null,null,"AAE STATE KARALI              ","2526GC282380","11300","12200","11200","17210190",{"$f":"VLOOKUP(TRIM(J982),'Transactional Departments'!A:B,2,FALSE)","v":"Karali, Berna"},"17210190","","","","RCS",""]
["17","283",null,null,"         RESIDUAL #283ES THREA","2521RX283950","20400","12100","64RBP","17120001",{"$f":"VLOOKUP(TRIM(J983),'Transactional Departments'!A:B,2,FALSE)","v":"CAES Assoc Dean Rsch Sum"},"17120001","","","","",""]
["17","283",null,null,"ROYALTY HOLDING BAE           ","2521RX283980","20300","12100","64URF","17120001",{"$f":"VLOOKUP(TRIM(J984),'Transactional Departments'!A:B,2,FALSE)","v":"CAES Assoc Dean Rsch Sum"},"17120001","","","","",""]
["17","284",null,null,"USDA/NC  SOIL HEALTH     FR671","2521CC284001","11300","12110","11200","17240001",{"$f":"VLOOKUP(TRIM(J985),'Transactional Departments'!A:B,2,FALSE)","v":"CSS Sum"},"17240001","","","","",""]
["17","284",null,null,"NC/USDA  TOOLS FOR COVER GA671","2521CC284002","11300","12110","11200","17240001",{"$f":"VLOOKUP(TRIM(J986),'Transactional Departments'!A:B,2,FALSE)","v":"CSS Sum"},"17240001","","","","",""]
["17","284",null,null,"USDA     RF CARBON DYNAMITHOMP","2521RC284551","20400","12100","61002","17240001",{"$f":"VLOOKUP(TRIM(J987),'Transactional Departments'!A:B,2,FALSE)","v":"CSS Sum"},"17240001","","","","",""]
["17","284",null,null,"UGAF     GA POWER PROF   ANGLE","2521RC284554","20200","12100","67795","17240001",{"$f":"VLOOKUP(TRIM(J988),'Transactional Departments'!A:B,2,FALSE)","v":"CSS Sum"},"17240001","","","","",""]
["17","284",null,null,"NSF      RF FE MO ISOTOP THOMP","2521RC284555","20400","12100","61023","17240001",{"$f":"VLOOKUP(TRIM(J989),'Transactional Departments'!A:B,2,FALSE)","v":"CSS Sum"},"17240001","","","","",""]
["17","284",null,null,"         RC284-607 PI    DEVOS","2521RC284608","20400","12100","64000","17240001",{"$f":"VLOOKUP(TRIM(J990),'Transactional Departments'!A:B,2,FALSE)","v":"CSS Sum"},"17240001","","","","",""]
["17","284",null,null,"NCSU/USDARF PHOSPHORUS   RADCL","2521RC284609","20400","12100","62506","17240001",{"$f":"VLOOKUP(TRIM(J991),'Transactional Departments'!A:B,2,FALSE)","v":"CSS Sum"},"17240001","","","","",""]
["17","284",null,null,"GACCC    RF OPTMZ CRN/CLVHILL ","2521RC284615","20400","12100","62047","17240001",{"$f":"VLOOKUP(TRIM(J992),'Transactional Departments'!A:B,2,FALSE)","v":"CSS Sum"},"17240001","","","","",""]
["17","284",null,null,"GACCC    RF HERB STWSHP__VENCI","2521RC284617","20400","12100","62001","17240001",{"$f":"VLOOKUP(TRIM(J993),'Transactional Departments'!A:B,2,FALSE)","v":"CSS Sum"},"17240001","","","","",""]
["17","284",null,null,"         VAR             SHILL","2521RC284618","20400","12100","64206","17240001",{"$f":"VLOOKUP(TRIM(J994),'Transactional Departments'!A:B,2,FALSE)","v":"CSS Sum"},"17240001","","","","",""]
["17","284",null,null,"GCCB     RF BERMUDAGRASS HANCO","2521RC284622","20400","12100","62006","17240001",{"$f":"VLOOKUP(TRIM(J995),'Transactional Departments'!A:B,2,FALSE)","v":"CSS Sum"},"17240001","","","","",""]
["17","284",null,null,"GCCC     RF HERBICID RES VENCI","2521RC284627","20400","12100","62001","17240001",{"$f":"VLOOKUP(TRIM(J996),'Transactional Departments'!A:B,2,FALSE)","v":"CSS Sum"},"17240001","","","","",""]
["17","284",null,null,"GACCC    RF HERB RESIST  VENCI","2521RC284648","20400","12100","62001","17240001",{"$f":"VLOOKUP(TRIM(J997),'Transactional Departments'!A:B,2,FALSE)","v":"CSS Sum"},"17240001","","","","",""]
["17","284",null,null,"GACC BEEFRF RF_WINTER FORHANCO","2521RC284654","20400","12100","62006","17240001",{"$f":"VLOOKUP(TRIM(J998),'Transactional Departments'!A:B,2,FALSE)","v":"CSS Sum"},"17240001","","","","",""]
["17","284",null,null,"USDA/NIFARF MULCH CULTIV HILL ","2521RC284661","20400","12100","61006","17240001",{"$f":"VLOOKUP(TRIM(J999),'Transactional Departments'!A:B,2,FALSE)","v":"CSS Sum"},"17240001","","","","",""]
["17","284",null,null,"         RLTY CSS SHILLING    ","2521RX284476","20400","12100","64206","17242SHI",{"$f":"VLOOKUP(TRIM(J1000),'Transactional Departments'!A:B,2,FALSE)","v":"Shilling, Donn"},"17242SHI","","","","",""]
["17","284",null,null,"ROYALTY DEPT/CSS              ","2521RX284529","20300","12100","64RYT","17240001",{"$f":"VLOOKUP(TRIM(J1001),'Transactional Departments'!A:B,2,FALSE)","v":"CSS Sum"},"17240001","","","","",""]
["17","284",null,null,"RYLTY DEVOS RX284-529         ","2521RX284532","20300","12100","64RYT","17242DEV",{"$f":"VLOOKUP(TRIM(J1002),'Transactional Departments'!A:B,2,FALSE)","v":"Devos, Katrien"},"17242DEV","","","","",""]
["17","284",null,null,"         UGARF SUPPORT AGR RSH","2521RX284900","20300","12100","64ICR","17240001",{"$f":"VLOOKUP(TRIM(J1003),'Transactional Departments'!A:B,2,FALSE)","v":"CSS Sum"},"17240001","","","","",""]
["17","284",null,null,"         RESIDUAL #284ES SHILL","2521RX284950","20400","12100","64RBP","17241CSS",{"$f":"VLOOKUP(TRIM(J1004),'Transactional Departments'!A:B,2,FALSE)","v":"CSS Department"},"17241CSS","","","","",""]
["17","284",null,null,"ROYALTY HOLDING CROP & SOIL   ","2521RX284980","20300","12100","64URF","17240001",{"$f":"VLOOKUP(TRIM(J1005),'Transactional Departments'!A:B,2,FALSE)","v":"CSS Sum"},"17240001","","","","",""]
["17","284",null,null,"CROP & SOIL SCIENCES COLLEGE  ","2526DC284000","14300","12200","41500","17240001",{"$f":"VLOOKUP(TRIM(J1006),'Transactional Departments'!A:B,2,FALSE)","v":"CSS Sum"},"17240001","","","","RCS",""]
["17","284",null,null,"AMEN WEATHER STATION          ","2526DC284003","14300","12200","41500","17246CSS",{"$f":"VLOOKUP(TRIM(J1007),'Transactional Departments'!A:B,2,FALSE)","v":"CSS Department Weather Network"},"17246CSS","","","","RCS",""]
["17","284",null,null,"ICP LAB MILLER                ","2526DC284005","14300","12200","41500","17242SSI",{"$f":"VLOOKUP(TRIM(J1008),'Transactional Departments'!A:B,2,FALSE)","v":"Millier, Bill"},"17242SSI","","","","RCS",""]
["17","284",null,null,"HANCOCK FORAGES               ","2526DC284006","14300","12200","41500","17242HAN",{"$f":"VLOOKUP(TRIM(J1009),'Transactional Departments'!A:B,2,FALSE)","v":"Hancock, Dennis"},"17242HAN","","","","RCS",""]
["17","284",null,null,"PROJECT TESTING HENRY         ","2526DC284007","14300","12200","41500","17240001",{"$f":"VLOOKUP(TRIM(J1010),'Transactional Departments'!A:B,2,FALSE)","v":"CSS Sum"},"17240001","","","","",""]
["17","284",null,null,"PROJECT TESTING CABRERA       ","2526DC284009","14300","12200","41500","17242CAB",{"$f":"VLOOKUP(TRIM(J1011),'Transactional Departments'!A:B,2,FALSE)","v":"Cabrera, Miguel"},"17242CAB","","","","RCS",""]
["17","284",null,null,"IRON HORSE FARM SALES & SERV  ","2526DC284010","14300","12200","41500","17244CSS",{"$f":"VLOOKUP(TRIM(J1012),'Transactional Departments'!A:B,2,FALSE)","v":"CSS Department Farms"},"17244CSS","","","","RCS",""]
["17","284",null,null,"MISSAOUI PRODUCT TESTING      ","2526DC284011","14300","12200","41500","17242MIS",{"$f":"VLOOKUP(TRIM(J1013),'Transactional Departments'!A:B,2,FALSE)","v":"Missaoui, Ali"},"17242MIS","","","","RCS",""]
["17","284",null,null,"DEPARTMENT BENCH FEE          ","2526DC284012","14300","12200","41500","17240001",{"$f":"VLOOKUP(TRIM(J1014),'Transactional Departments'!A:B,2,FALSE)","v":"CSS Sum"},"17240001","","","","RCS",""]
["17","284",null,null,"BENCH FEE-CAGT                ","2526DC284013","14300","12200","41500","17240001",{"$f":"VLOOKUP(TRIM(J1015),'Transactional Departments'!A:B,2,FALSE)","v":"CSS Sum"},"17240001","","","","RCS",""]
["17","284",null,null,"PEANUT SALES                  ","2526DC284014","14300","12200","41500","17240001",{"$f":"VLOOKUP(TRIM(J1016),'Transactional Departments'!A:B,2,FALSE)","v":"CSS Sum"},"17240001","","","","RCS",""]
["17","284",null,null,"CSS STATE THOMPSON            ","2526DC284350","14300","12200","41500","17240001",{"$f":"VLOOKUP(TRIM(J1017),'Transactional Departments'!A:B,2,FALSE)","v":"CSS Sum"},"17240001","","","","RCS",""]
["17","284",null,null,"CSS STATE PL SCI FARM         ","2526DC284900","14300","12200","41500","17244CSS",{"$f":"VLOOKUP(TRIM(J1018),'Transactional Departments'!A:B,2,FALSE)","v":"CSS Department Farms"},"17244CSS","","","","RCS",""]
["17","284",null,null,"HENRY TURF WORKSHOPS          ","2526DW284801","14300","12200","41500","17240001",{"$f":"VLOOKUP(TRIM(J1019),'Transactional Departments'!A:B,2,FALSE)","v":"CSS Sum"},"17240001","","","","",""]
["17","284",null,null,"CROP & SOIL SCIENCES COLLEGE  ","2526GC284000","11300","12200","11200","17240001",{"$f":"VLOOKUP(TRIM(J1020),'Transactional Departments'!A:B,2,FALSE)","v":"CSS Sum"},"17240001","","","","RCS",""]
["17","284",null,null,"PSF STARTUP                   ","2526GC284005","11300","12200","11200","17244CSS",{"$f":"VLOOKUP(TRIM(J1021),'Transactional Departments'!A:B,2,FALSE)","v":"CSS Department Farms"},"17244CSS","","","","RCS",""]
["17","284",null,null,"CSS COMPUTER OPERATIONS       ","2526GC284006","11300","12200","11200","17240001",{"$f":"VLOOKUP(TRIM(J1022),'Transactional Departments'!A:B,2,FALSE)","v":"CSS Sum"},"17240001","","","","RCS",""]
["17","284",null,null,"CSS STATE JACKSON             ","2526GC284015","11300","12200","11200","17242SCJ",{"$f":"VLOOKUP(TRIM(J1023),'Transactional Departments'!A:B,2,FALSE)","v":"Jackson, Scott"},"17242SCJ","","","","RCS",""]
["17","284",null,null,"CSS STATE DEVOS               ","2526GC284017","11300","12200","11200","17242DEV",{"$f":"VLOOKUP(TRIM(J1024),'Transactional Departments'!A:B,2,FALSE)","v":"Devos, Katrien"},"17242DEV","","","","RCS",""]
["17","284",null,null,"CROP & SOIL SCI DEPART ADMIN  ","2526GC284090","11300","12200","11200","17241CSS",{"$f":"VLOOKUP(TRIM(J1025),'Transactional Departments'!A:B,2,FALSE)","v":"CSS Department"},"17241CSS","","","","RCS",""]
["17","284",null,null,"CSS STATE SHILLING            ","2526GC284100","11300","12200","11200","17242SHI",{"$f":"VLOOKUP(TRIM(J1026),'Transactional Departments'!A:B,2,FALSE)","v":"Shilling, Donn"},"17242SHI","","","","RCS",""]
["17","284",null,null,"CSS STATE MISSAOUI            ","2526GC284120","11300","12200","11200","17242MIS",{"$f":"VLOOKUP(TRIM(J1027),'Transactional Departments'!A:B,2,FALSE)","v":"Missaoui, Ali"},"17242MIS","","","","RCS",""]
["17","284",null,null,"CSS STATE FRANKLIN            ","2526GC284130","11300","12200","11200","17242FRA",{"$f":"VLOOKUP(TRIM(J1028),'Transactional Departments'!A:B,2,FALSE)","v":"Franklin, Dory"},"17242FRA","","","","RCS",""]
["17","284",null,null,"CSS STATE GASKIN              ","2526GC284140","11300","12200","11200","17242GAS",{"$f":"VLOOKUP(TRIM(J1029),'Transactional Departments'!A:B,2,FALSE)","v":"Gaskin, Julia"},"17242GAS","","","","RCS",""]
["17","284",null,null,"CSS STATE LI                  ","2526GC284150","11300","12200","11200","17242ZLI",{"$f":"VLOOKUP(TRIM(J1030),'Transactional Departments'!A:B,2,FALSE)","v":"Li, Zenglu"},"17242ZLI","","","","RCS",""]
["17","284",null,null,"CSS STATE HENRY               ","2526GC284170","11300","12200","11200","17242HEN",{"$f":"VLOOKUP(TRIM(J1031),'Transactional Departments'!A:B,2,FALSE)","v":"Henry, Gerald"},"17242HEN","","","","RCS",""]
["17","284",null,null,"CSS STATE CABRERA             ","2526GC284180","11300","12200","11200","17242CAB",{"$f":"VLOOKUP(TRIM(J1032),'Transactional Departments'!A:B,2,FALSE)","v":"Cabrera, Miguel"},"17242CAB","","","","RCS",""]
["17","284",null,null,"CSS STATE THOMPSON            ","2526GC284190","11300","12200","11200","17242JJT",{"$f":"VLOOKUP(TRIM(J1033),'Transactional Departments'!A:B,2,FALSE)","v":"Thompson, Jennifer Jo"},"17242JJT","","","","RCS",""]
["17","284",null,null,"CSS STATE HAWKINS             ","2526GC284200","11300","12200","11200","17242HAW",{"$f":"VLOOKUP(TRIM(J1034),'Transactional Departments'!A:B,2,FALSE)","v":"Hawkins, Gary"},"17242HAW","","","","RCS",""]
["17","284",null,null,"CSS STATE WALLACE             ","2526GC284210","11300","12200","11200","17242JAW",{"$f":"VLOOKUP(TRIM(J1035),'Transactional Departments'!A:B,2,FALSE)","v":"Wallace, Jason"},"17242JAW","","","","RCS",""]
["17","284",null,null,"CSS STATE HANCOCK             ","2526GC284280","11300","12200","11200","17242HAN",{"$f":"VLOOKUP(TRIM(J1036),'Transactional Departments'!A:B,2,FALSE)","v":"Hancock, Dennis"},"17242HAN","","","","RCS",""]
["17","284",null,null,"CSS STATE HILL                ","2526GC284290","11300","12200","11200","17242HIL",{"$f":"VLOOKUP(TRIM(J1037),'Transactional Departments'!A:B,2,FALSE)","v":"Hill, Nick"},"17242HIL","","","","RCS",""]
["17","284",null,null,"CSS STATE PARROTT             ","2526GC284300","11300","12200","11200","17242WPA",{"$f":"VLOOKUP(TRIM(J1038),'Transactional Departments'!A:B,2,FALSE)","v":"Parrott, Wayne"},"17242WPA","","","","RCS",""]
["17","284",null,null,"CSS STATE RADCLIFFE L         ","2526GC284320","11300","12200","11200","17242RAD",{"$f":"VLOOKUP(TRIM(J1039),'Transactional Departments'!A:B,2,FALSE)","v":"Radcliffe, David"},"17242RAD","","","","RCS",""]
["17","284",null,null,"CSS STATE PATERSON            ","2526GC284330","11300","12200","11200","17242APA",{"$f":"VLOOKUP(TRIM(J1040),'Transactional Departments'!A:B,2,FALSE)","v":"Paterson, Andrew"},"17242APA","","","","RCS",""]
["17","284",null,null,"CSS STATE MILLER              ","2526GC284340","11300","12200","11200","17242SSI",{"$f":"VLOOKUP(TRIM(J1041),'Transactional Departments'!A:B,2,FALSE)","v":"Millier, Bill"},"17242SSI","","","","RCS",""]
["17","284",null,null,"CSS STATE THOMPSON            ","2526GC284350","11300","12200","11200","17242ATT",{"$f":"VLOOKUP(TRIM(J1042),'Transactional Departments'!A:B,2,FALSE)","v":"Thompson, Aaron"},"17242ATT","","","","RCS",""]
["17","284",null,null,"CSS RESEARCH SUPPORT          ","2526GC284900","11300","12200","11200","17240001",{"$f":"VLOOKUP(TRIM(J1043),'Transactional Departments'!A:B,2,FALSE)","v":"CSS Sum"},"17240001","","","","RCS",""]
["17","284",null,null,"CSS STATE HEADHOUSE           ","2526GC284920","11300","12200","11200","17243CSS",{"$f":"VLOOKUP(TRIM(J1044),'Transactional Departments'!A:B,2,FALSE)","v":"CSS Department Greenhouse"},"17243CSS","","","","RCS",""]
["17","284",null,null,"CSS STATE A.G.T.              ","2526GC284930","11300","12200","11200","17240001",{"$f":"VLOOKUP(TRIM(J1045),'Transactional Departments'!A:B,2,FALSE)","v":"CSS Sum"},"17240001","","","","RCS",""]
["17","284",null,null,"CROP & SOIL SCIENCES COLLEGE  ","2571GC284000","11300","17100","11200","17240001",{"$f":"VLOOKUP(TRIM(J1046),'Transactional Departments'!A:B,2,FALSE)","v":"CSS Sum"},"17240001","","","","RCS",""]
["17","286",null,null,"SOYBEAN CENTER         COLLEGE","2526GC286000","11300","12200","11200","17241CSS",{"$f":"VLOOKUP(TRIM(J1047),'Transactional Departments'!A:B,2,FALSE)","v":"CSS Department"},"17241CSS","","","","RCS",""]
["17","287",null,null,"USDA     RF FARM CATFISH LINO ","2521CC287425","11300","12110","11200","17230001",{"$f":"VLOOKUP(TRIM(J1048),'Transactional Departments'!A:B,2,FALSE)","v":"ADS Sum"},"17230001","","","","",""]
["17","287",null,null,"UGAF     ANIMAL REPRO    STICE","2521RC287369","20200","12100","67796","17230001",{"$f":"VLOOKUP(TRIM(J1049),'Transactional Departments'!A:B,2,FALSE)","v":"ADS Sum"},"17230001","","","","",""]
["17","287",null,null,"         RF IBBA BEEF CATBERTR","2521RC287409","20400","12100","64146","17230001",{"$f":"VLOOKUP(TRIM(J1050),'Transactional Departments'!A:B,2,FALSE)","v":"ADS Sum"},"17230001","","","","",""]
["17","287",null,null,"NIH      RF    TASTE ORGANS LI","2521RC287417","20400","12100","61018","17230001",{"$f":"VLOOKUP(TRIM(J1051),'Transactional Departments'!A:B,2,FALSE)","v":"ADS Sum"},"17230001","","","","",""]
["17","287",null,null,"KAN/DOD  RF FRACTURE PUT STICE","2521RC287418","20400","12100","64000","17230001",{"$f":"VLOOKUP(TRIM(J1052),'Transactional Departments'!A:B,2,FALSE)","v":"ADS Sum"},"17230001","","","","",""]
["17","287",null,null,"GCCB     RF DLY GAIN EPD PRING","2521RC287421","20400","12100","62006","17230001",{"$f":"VLOOKUP(TRIM(J1053),'Transactional Departments'!A:B,2,FALSE)","v":"ADS Sum"},"17230001","","","","",""]
["17","287",null,null,"GCCB     RF FORAGES      STELZ","2521RC287422","20400","12100","62006","17230001",{"$f":"VLOOKUP(TRIM(J1054),'Transactional Departments'!A:B,2,FALSE)","v":"ADS Sum"},"17230001","","","","",""]
["17","287",null,null,"USDA     RF RAINBOW TROUTLINO ","2521RC287440","20400","12100","61004","17230001",{"$f":"VLOOKUP(TRIM(J1055),'Transactional Departments'!A:B,2,FALSE)","v":"ADS Sum"},"17230001","","","","",""]
["17","287",null,null,"USDA     RF STELZLENI W/317100","2521RC287551","20400","12100","61002","17230001",{"$f":"VLOOKUP(TRIM(J1056),'Transactional Departments'!A:B,2,FALSE)","v":"ADS Sum"},"17230001","","","","",""]
["17","287",null,null,"         RF CHICKEN EMBRYWEST ","2521RC287560","20400","12100","64056","17230001",{"$f":"VLOOKUP(TRIM(J1057),'Transactional Departments'!A:B,2,FALSE)","v":"ADS Sum"},"17230001","","","","",""]
["17","287",null,null,"         VARIOUS         REKAY","2521RC287561","20400","12100","64206","17230001",{"$f":"VLOOKUP(TRIM(J1058),'Transactional Departments'!A:B,2,FALSE)","v":"ADS Sum"},"17230001","","","","",""]
["17","287",null,null,"NIH      RF W/ 168-681   DHAR ","2521RC287564","20400","12100","61018","17230001",{"$f":"VLOOKUP(TRIM(J1059),'Transactional Departments'!A:B,2,FALSE)","v":"ADS Sum"},"17230001","","","","",""]
["17","287",null,null,"GACB     RF DAILY EPD    PRING","2521RC287569","20400","12100","62006","17230001",{"$f":"VLOOKUP(TRIM(J1060),'Transactional Departments'!A:B,2,FALSE)","v":"ADS Sum"},"17230001","","","","",""]
["17","287",null,null,"GCCB     RF ANNUAL FORAG STELZ","2521RC287571","20400","12100","62006","17230001",{"$f":"VLOOKUP(TRIM(J1061),'Transactional Departments'!A:B,2,FALSE)","v":"ADS Sum"},"17230001","","","","",""]
["17","287",null,null,"GCCB     RF NOVEL CREEP  STEWA","2521RC287572","20400","12100","62006","17230001",{"$f":"VLOOKUP(TRIM(J1062),'Transactional Departments'!A:B,2,FALSE)","v":"ADS Sum"},"17230001","","","","",""]
["17","287",null,null,"ROYALTY DEPT/ADS              ","2521RX287389","20300","12100","64RYT","17230001",{"$f":"VLOOKUP(TRIM(J1063),'Transactional Departments'!A:B,2,FALSE)","v":"ADS Sum"},"17230001","","","","",""]
["17","287",null,null,"ROYALTY - STICE               ","2521RX287390","20300","12100","64RYT","17231575",{"$f":"VLOOKUP(TRIM(J1064),'Transactional Departments'!A:B,2,FALSE)","v":"Stice, Steven"},"17231575","","","","",""]
["17","287",null,null,"ROYALTY - DHARA               ","2521RX287401","20300","12100","64RYT","17230001",{"$f":"VLOOKUP(TRIM(J1065),'Transactional Departments'!A:B,2,FALSE)","v":"ADS Sum"},"17230001","","","","",""]
["17","287",null,null,"REM SEED GRANT KARUMBAIAH  287","2521RX287426","20200","12100","67808","17230001",{"$f":"VLOOKUP(TRIM(J1066),'Transactional Departments'!A:B,2,FALSE)","v":"ADS Sum"},"17230001","","","","",""]
["17","287",null,null,"UGARF REM SEED GRT KARUMBAIAH ","2521RX287559","20300","12100","64URF","17231225",{"$f":"VLOOKUP(TRIM(J1067),'Transactional Departments'!A:B,2,FALSE)","v":"Karumbaiah, Lohitash"},"17231225","","","","",""]
["17","287",null,null,"         UGARF SUPPORT AN SCI ","2521RX287900","20300","12100","64ICR","17230001",{"$f":"VLOOKUP(TRIM(J1068),'Transactional Departments'!A:B,2,FALSE)","v":"ADS Sum"},"17230001","","","","",""]
["17","287",null,null,"         RESIDUAL #287ES NICKE","2521RX287950","20400","12100","64RBP","17230001",{"$f":"VLOOKUP(TRIM(J1069),'Transactional Departments'!A:B,2,FALSE)","v":"ADS Sum"},"17230001","","","","",""]
["17","287",null,null,"ROYALTY HOLDING AN SCI RSCH   ","2521RX287980","20300","12100","64URF","17230001",{"$f":"VLOOKUP(TRIM(J1070),'Transactional Departments'!A:B,2,FALSE)","v":"ADS Sum"},"17230001","","","","",""]
["17","287",null,null,"ADS RSCH F&A ADM              ","2526AC287090","15300","12200","11500","17230001",{"$f":"VLOOKUP(TRIM(J1071),'Transactional Departments'!A:B,2,FALSE)","v":"ADS Sum"},"17230001","","","","",""]
["17","287",null,null,"ANIMAL SCIENCE RSCH COLLEGE   ","2526DC287000","14300","12200","41500","17230001",{"$f":"VLOOKUP(TRIM(J1072),'Transactional Departments'!A:B,2,FALSE)","v":"ADS Sum"},"17230001","","","","RCS",""]
["17","287",null,null,"BEEF PERFORMANCE-STELZLENI    ","2526DC287001","14300","12200","41500","17230001",{"$f":"VLOOKUP(TRIM(J1073),'Transactional Departments'!A:B,2,FALSE)","v":"ADS Sum"},"17230001","","","","RCS",""]
["17","287",null,null,"LARGE ANIMAL RESEARCH UNIT    ","2526DC287003","14300","12200","41500","17238300",{"$f":"VLOOKUP(TRIM(J1074),'Transactional Departments'!A:B,2,FALSE)","v":"Large Animal Rsch Unit"},"17238300","","","","RCS",""]
["17","287",null,null,"CELL & ANIMAL TESTNG SERV-WEST","2526DC287005","14300","12200","41500","17231700",{"$f":"VLOOKUP(TRIM(J1075),'Transactional Departments'!A:B,2,FALSE)","v":"West, Franklin"},"17231700","","","","RCS",""]
["17","287",null,null,"ANI ORTHO IMPLANT TEST-STICE  ","2526DC287006","14300","12200","41500","17231575",{"$f":"VLOOKUP(TRIM(J1076),'Transactional Departments'!A:B,2,FALSE)","v":"Stice, Steven"},"17231575","","","","RCS",""]
["17","287",null,null,"ADS STATE BRIDGES BEEF & SHEEP","2526DC287910","14300","12200","41500","17239001",{"$f":"VLOOKUP(TRIM(J1077),'Transactional Departments'!A:B,2,FALSE)","v":"ADS Beef/Sheep"},"17239001","","","","RCS",""]
["17","287",null,null,"ADS STATE SWINE CENTER        ","2526DC287930","14300","12200","41500","17239003",{"$f":"VLOOKUP(TRIM(J1078),'Transactional Departments'!A:B,2,FALSE)","v":"Swine"},"17239003","","","","RCS",""]
["17","287",null,null,"ADS STATE FARM                ","2526DC287940","14300","12200","41500","17239400",{"$f":"VLOOKUP(TRIM(J1079),'Transactional Departments'!A:B,2,FALSE)","v":"Farm Shop"},"17239400","","","","RCS",""]
["17","287",null,null,"ADS STATE MEAT SCIENCE TECH   ","2526DC287960","14300","12200","41500","17238400",{"$f":"VLOOKUP(TRIM(J1080),'Transactional Departments'!A:B,2,FALSE)","v":"Meat Science Tech Cnt"},"17238400","","","","RCS",""]
["17","287",null,null,"ADS STATE ARENA               ","2526DC287980","14300","12200","41500","17238200",{"$f":"VLOOKUP(TRIM(J1081),'Transactional Departments'!A:B,2,FALSE)","v":"Arena"},"17238200","","","","RCS",""]
["17","287",null,null,"ADS STATE FEEDMILL            ","2526DM287950","14300","12200","41500","17238100",{"$f":"VLOOKUP(TRIM(J1082),'Transactional Departments'!A:B,2,FALSE)","v":"ADS Maintenance"},"17238100","","","","RCS",""]
["17","287",null,null,"LIVESTOCK GENETIC EVAL & WKSHP","2526DW287004","14300","12200","41500","17230001",{"$f":"VLOOKUP(TRIM(J1083),'Transactional Departments'!A:B,2,FALSE)","v":"ADS Sum"},"17230001","","","","",""]
["17","287",null,null,"ADS/BIF CONFERENCE            ","2526DW287801","14300","12200","41500","17230001",{"$f":"VLOOKUP(TRIM(J1084),'Transactional Departments'!A:B,2,FALSE)","v":"ADS Sum"},"17230001","","","","RCS",""]
["17","287",null,null,"ANIMAL SCIENCE RSCH COLLEGE   ","2526GC287000","11300","12200","11200","17230001",{"$f":"VLOOKUP(TRIM(J1085),'Transactional Departments'!A:B,2,FALSE)","v":"ADS Sum"},"17230001","","","","RCS",""]
["17","287",null,null,"ADS STARTUP FUNDS             ","2526GC287013","11300","12200","11200","17230001",{"$f":"VLOOKUP(TRIM(J1086),'Transactional Departments'!A:B,2,FALSE)","v":"ADS Sum"},"17230001","","","","RCS",""]
["17","287",null,null,"ADS STARTUP MORTENSEN         ","2526GC287014","11300","12200","11200","17231400",{"$f":"VLOOKUP(TRIM(J1087),'Transactional Departments'!A:B,2,FALSE)","v":"Mortensen, Luke"},"17231400","","","","RCS",""]
["17","287",null,null,"RESEARCH ADVISORY SERVICES    ","2526GC287080","11300","12200","11200","17230001",{"$f":"VLOOKUP(TRIM(J1088),'Transactional Departments'!A:B,2,FALSE)","v":"ADS Sum"},"17230001","","","","RCS",""]
["17","287",null,null,"ANIMAL SCIENCE RSCH DEPT ADMIN","2526GC287090","11300","12200","11200","17230001",{"$f":"VLOOKUP(TRIM(J1089),'Transactional Departments'!A:B,2,FALSE)","v":"ADS Sum"},"17230001","","","","RCS",""]
["17","287",null,null,"ADS STATE STELZLENI           ","2526GC287120","11300","12200","11200","17231525",{"$f":"VLOOKUP(TRIM(J1090),'Transactional Departments'!A:B,2,FALSE)","v":"Stelzleni, Alex"},"17231525","","","","RCS",""]
["17","287",null,null,"ADS STATE AZAIN               ","2526GC287130","11300","12200","11200","17231000",{"$f":"VLOOKUP(TRIM(J1091),'Transactional Departments'!A:B,2,FALSE)","v":"Azain, Michael"},"17231000","","","","RCS",""]
["17","287",null,null,"ADS STATE NICKERSON           ","2526GC287140","11300","12200","11200","17231425",{"$f":"VLOOKUP(TRIM(J1092),'Transactional Departments'!A:B,2,FALSE)","v":"Nickerson, Stephen"},"17231425","","","","RCS",""]
["17","287",null,null,"ADS STATE BERTRAND            ","2526GC287150","11300","12200","11200","17230001",{"$f":"VLOOKUP(TRIM(J1093),'Transactional Departments'!A:B,2,FALSE)","v":"ADS Sum"},"17230001","","","","RCS",""]
["17","287",null,null,"ADS STATE F. WEST             ","2526GC287200","11300","12200","11200","17231700",{"$f":"VLOOKUP(TRIM(J1094),'Transactional Departments'!A:B,2,FALSE)","v":"West, Franklin"},"17231700","","","","RCS",""]
["17","287",null,null,"ADS STATE MISZTAL             ","2526GC287240","11300","12200","11200","17231375",{"$f":"VLOOKUP(TRIM(J1095),'Transactional Departments'!A:B,2,FALSE)","v":"Misztal, Ignacy"},"17231375","","","","RCS",""]
["17","287",null,null,"ADS STATE PRINGLE             ","2526GC287260","11300","12200","11200","17231450",{"$f":"VLOOKUP(TRIM(J1096),'Transactional Departments'!A:B,2,FALSE)","v":"Pringle, Dean"},"17231450","","","","RCS",""]
["17","287",null,null,"ADS STATE STICE               ","2526GC287280","11300","12200","11200","17231575",{"$f":"VLOOKUP(TRIM(J1097),'Transactional Departments'!A:B,2,FALSE)","v":"Stice, Steven"},"17231575","","","","RCS",""]
["17","287",null,null,"ADS STATE BAILE               ","2526GC287290","11300","12200","11200","17230001",{"$f":"VLOOKUP(TRIM(J1098),'Transactional Departments'!A:B,2,FALSE)","v":"ADS Sum"},"17230001","","","","RCS",""]
["17","287",null,null,"ADS STATE REKAYA              ","2526GC287320","11300","12200","11200","17231475",{"$f":"VLOOKUP(TRIM(J1099),'Transactional Departments'!A:B,2,FALSE)","v":"Rekaya, Romdhane"},"17231475","","","","RCS",""]
["17","287",null,null,"ADS STATE DOVE                ","2526GC287340","11300","12200","11200","17231125",{"$f":"VLOOKUP(TRIM(J1100),'Transactional Departments'!A:B,2,FALSE)","v":"Dove, Robert"},"17231125","","","","RCS",""]
["17","287",null,null,"ADS STATE WHITEHALL & WILKINS ","2526GC287910","11300","12200","11200","17239001",{"$f":"VLOOKUP(TRIM(J1101),'Transactional Departments'!A:B,2,FALSE)","v":"ADS Beef/Sheep"},"17239001","","","","RCS",""]
["17","287",null,null,"ADS STATE DAIRY               ","2526GC287920","11300","12200","11200","17239002",{"$f":"VLOOKUP(TRIM(J1102),'Transactional Departments'!A:B,2,FALSE)","v":"Dairy"},"17239002","","","","RCS",""]
["17","287",null,null,"ADS STATE SWINE CENTER        ","2526GC287930","11300","12200","11200","17239003",{"$f":"VLOOKUP(TRIM(J1103),'Transactional Departments'!A:B,2,FALSE)","v":"Swine"},"17239003","","","","RCS",""]
["17","287",null,null,"ADS STATE FARM                ","2526GC287940","11300","12200","11200","17239400",{"$f":"VLOOKUP(TRIM(J1104),'Transactional Departments'!A:B,2,FALSE)","v":"Farm Shop"},"17239400","","","","RCS",""]
["17","287",null,null,"ADS STATE FEEDMILL            ","2526GC287950","11300","12200","11200","17239500",{"$f":"VLOOKUP(TRIM(J1105),'Transactional Departments'!A:B,2,FALSE)","v":"ADS Feed Mill"},"17239500","","","","RCS",""]
["17","287",null,null,"ADS STATE MEAT SCIENCE TECH   ","2526GC287960","11300","12200","11200","17238400",{"$f":"VLOOKUP(TRIM(J1106),'Transactional Departments'!A:B,2,FALSE)","v":"Meat Science Tech Cnt"},"17238400","","","","RCS",""]
["17","287",null,null,"ADS STATE ARENA               ","2526GC287980","11300","12200","11200","17238200",{"$f":"VLOOKUP(TRIM(J1107),'Transactional Departments'!A:B,2,FALSE)","v":"Arena"},"17238200","","","","RCS",""]
["17","287",null,null,"ANIMAL SCIENCE RSCH COLLEGE   ","2571AC287000","15300","17100","11500","17230001",{"$f":"VLOOKUP(TRIM(J1108),'Transactional Departments'!A:B,2,FALSE)","v":"ADS Sum"},"17230001","","","","",""]
["17","287",null,null,"ANIMAL SCIENCE RSCH COLLEGE   ","2571GC287000","11300","17100","11200","17238100",{"$f":"VLOOKUP(TRIM(J1109),'Transactional Departments'!A:B,2,FALSE)","v":"ADS Maintenance"},"17238100","","","","RCS",""]
["17","287",null,null,"ANIMAL SCIENCE SLS TAX        ","9082GN287006","60000","","","17230001",{"$f":"VLOOKUP(TRIM(J1110),'Transactional Departments'!A:B,2,FALSE)","v":"ADS Sum"},"17230001","","","","",""]
["17","288",null,null,"NORTHWEST RSCH&ED CTR  GEORGIA","2526DD288000","14300","12200","41500","17610000",{"$f":"VLOOKUP(TRIM(J1111),'Transactional Departments'!A:B,2,FALSE)","v":"Northwest Georgia REC"},"17610000","","","","RGS",""]
["17","288",null,null,"NORTHWEST RSCH&ED CTR  GEORGIA","2526GD288000","11300","12200","11200","17610000",{"$f":"VLOOKUP(TRIM(J1112),'Transactional Departments'!A:B,2,FALSE)","v":"Northwest Georgia REC"},"17610000","","","","RGS",""]
["17","288",null,null,"NW GA STATION DEPART ADMIN    ","2526GD288090","11300","12200","11200","17610000",{"$f":"VLOOKUP(TRIM(J1113),'Transactional Departments'!A:B,2,FALSE)","v":"Northwest Georgia REC"},"17610000","","","","RGS",""]
["17","288",null,null,"UTILITIES                     ","2571DD288005","14300","17100","41500","17610000",{"$f":"VLOOKUP(TRIM(J1114),'Transactional Departments'!A:B,2,FALSE)","v":"Northwest Georgia REC"},"17610000","","","","RGS",""]
["17","288",null,null,"NORTHWEST RSCH&ED CTR  GEORGIA","2571GD288000","11300","17100","11200","17610000",{"$f":"VLOOKUP(TRIM(J1115),'Transactional Departments'!A:B,2,FALSE)","v":"Northwest Georgia REC"},"17610000","","","","RGS",""]
["17","289",null,null,"SOUTHEAST RSCH&ED CTR COASTAL ","2526DF289000","14300","12200","41500","17750000",{"$f":"VLOOKUP(TRIM(J1116),'Transactional Departments'!A:B,2,FALSE)","v":"Southeast Georgia REC"},"17750000","","","","RCP",""]
["17","289",null,null,"SOUTHEAST RSCH&ED CTR COASTAL ","2526GF289000","11300","12200","11200","17750000",{"$f":"VLOOKUP(TRIM(J1117),'Transactional Departments'!A:B,2,FALSE)","v":"Southeast Georgia REC"},"17750000","","","","RCP",""]
["17","289",null,null,"SE GA STATION DEPART ADMIN    ","2526GF289090","11300","12200","11200","17750000",{"$f":"VLOOKUP(TRIM(J1118),'Transactional Departments'!A:B,2,FALSE)","v":"Southeast Georgia REC"},"17750000","","","","RCP",""]
["17","289",null,null,"SE RSRCH - UTILITIES          ","2571DF289005","14300","17100","41500","17750000",{"$f":"VLOOKUP(TRIM(J1119),'Transactional Departments'!A:B,2,FALSE)","v":"Southeast Georgia REC"},"17750000","","","","RCP",""]
["17","290",null,null,"SOUTHWEST RSCH&ED CTR COASTAL ","2526DF290000","14300","12200","41500","17720000",{"$f":"VLOOKUP(TRIM(J1120),'Transactional Departments'!A:B,2,FALSE)","v":"Southwest Georgia REC"},"17720000","","","","RCP",""]
["17","290",null,null,"SOUTHWEST RSCH&ED CTR COASTAL ","2526GF290000","11300","12200","11200","17720000",{"$f":"VLOOKUP(TRIM(J1121),'Transactional Departments'!A:B,2,FALSE)","v":"Southwest Georgia REC"},"17720000","","","","RCP",""]
["17","290",null,null,"SW GA STATION DEPART ADMIN    ","2526GF290090","11300","12200","11200","17720000",{"$f":"VLOOKUP(TRIM(J1122),'Transactional Departments'!A:B,2,FALSE)","v":"Southwest Georgia REC"},"17720000","","","","RCP",""]
["17","290",null,null,"SW RSRCH - UTILITIES          ","2571DF290005","14300","17100","41500","17720000",{"$f":"VLOOKUP(TRIM(J1123),'Transactional Departments'!A:B,2,FALSE)","v":"Southwest Georgia REC"},"17720000","","","","RCP",""]
["17","290",null,null,"SOUTHWEST RSCH&ED CTR COASTAL ","2571GF290000","11300","17100","11200","17720000",{"$f":"VLOOKUP(TRIM(J1124),'Transactional Departments'!A:B,2,FALSE)","v":"Southwest Georgia REC"},"17720000","","","","RCP",""]
["17","292",null,null,"TECHNOLOGY SERVICES COASTAL   ","2526GF292000","11300","12200","11200","17700001",{"$f":"VLOOKUP(TRIM(J1125),'Transactional Departments'!A:B,2,FALSE)","v":"Tift Campus Sum"},"17700001","","","","RCP",""]
["17","293",null,null,"USDA     RF WOOD DECOMP  FORSC","2521CC293413","11300","12110","11200","17250001",{"$f":"VLOOKUP(TRIM(J1126),'Transactional Departments'!A:B,2,FALSE)","v":"Entomology Sum"},"17250001","","","","",""]
["17","293",null,null,"USDA FS  RF HEMLOCK      ZHANG","2521CC293632","11300","12110","11200","17250001",{"$f":"VLOOKUP(TRIM(J1127),'Transactional Departments'!A:B,2,FALSE)","v":"Entomology Sum"},"17250001","","","","",""]
["17","293",null,null,"USEPA    RF WETLAND ECO  BATZE","2521CC293640","11300","12110","11200","17250001",{"$f":"VLOOKUP(TRIM(J1128),'Transactional Departments'!A:B,2,FALSE)","v":"Entomology Sum"},"17250001","","","","",""]
["17","293",null,null,"USDA     RF SUGARBERRY   BATZE","2521CC293655","11300","12110","11200","17250001",{"$f":"VLOOKUP(TRIM(J1129),'Transactional Departments'!A:B,2,FALSE)","v":"Entomology Sum"},"17250001","","","","",""]
["17","293",null,null,"NIH      RF OVARIES      VOGEL","2521CC293656","11300","12110","11200","17250001",{"$f":"VLOOKUP(TRIM(J1130),'Transactional Departments'!A:B,2,FALSE)","v":"Entomology Sum"},"17250001","","","","",""]
["17","293",null,null,"UGARF    GSDC     SOY B.TALL  ","2521RC293164","20300","12100","64URF","17250001",{"$f":"VLOOKUP(TRIM(J1131),'Transactional Departments'!A:B,2,FALSE)","v":"Entomology Sum"},"17250001","","","","",""]
["17","293",null,null,"UGAF     HONEY BEE FUND  NOBLE","2521RC293333","20200","12100","67797","17250001",{"$f":"VLOOKUP(TRIM(J1132),'Transactional Departments'!A:B,2,FALSE)","v":"Entomology Sum"},"17250001","","","","",""]
["17","293",null,null,"UGAF     STRAND RESEARCH NOBLE","2521RC293362","20200","12100","","17250001",{"$f":"VLOOKUP(TRIM(J1133),'Transactional Departments'!A:B,2,FALSE)","v":"Entomology Sum"},"17250001","","","","",""]
["17","293",null,null,"USDA     RF MANAGED BEES DELAP","2521RC293365","20400","12100","61002","17250001",{"$f":"VLOOKUP(TRIM(J1134),'Transactional Departments'!A:B,2,FALSE)","v":"Entomology Sum"},"17250001","","","","",""]
["17","293",null,null,"USDA     RF CADHERIN FRAGADANG","2521RC293367","20400","12100","61002","17250001",{"$f":"VLOOKUP(TRIM(J1135),'Transactional Departments'!A:B,2,FALSE)","v":"Entomology Sum"},"17250001","","","","",""]
["17","293",null,null,"NSF      RF SYMBIONT MED OLIVE","2521RC293376","20400","12100","61023","17250001",{"$f":"VLOOKUP(TRIM(J1136),'Transactional Departments'!A:B,2,FALSE)","v":"Entomology Sum"},"17250001","","","","",""]
["17","293",null,null,"GACCC    RF IM TILLAGE   ALL  ","2521RC293379","20400","12100","62001","17250001",{"$f":"VLOOKUP(TRIM(J1137),'Transactional Departments'!A:B,2,FALSE)","v":"Entomology Sum"},"17250001","","","","",""]
["17","293",null,null,"NIH      RF ENDO MOSQ REPBROWN","2521RC293384","20400","12100","61018","17250001",{"$f":"VLOOKUP(TRIM(J1138),'Transactional Departments'!A:B,2,FALSE)","v":"Entomology Sum"},"17250001","","","","",""]
["17","293",null,null,"NSF      RF POLYDNAVIRUS STRAN","2521RC293391","20400","12100","61023","17250001",{"$f":"VLOOKUP(TRIM(J1139),'Transactional Departments'!A:B,2,FALSE)","v":"Entomology Sum"},"17250001","","","","",""]
["17","293",null,null,"UM/USDA  RF BEE INFORMED DELAP","2521RC293395","20400","12100","64443","17250001",{"$f":"VLOOKUP(TRIM(J1140),'Transactional Departments'!A:B,2,FALSE)","v":"Entomology Sum"},"17250001","","","","",""]
["17","293",null,null,"GACCC    RF BT TRANS CORNALL  ","2521RC293398","20400","12100","62047","17250001",{"$f":"VLOOKUP(TRIM(J1141),'Transactional Departments'!A:B,2,FALSE)","v":"Entomology Sum"},"17250001","","","","",""]
["17","293",null,null,"NIH      RF MOSQ VOGEL   STRAN","2521RC293404","20400","12100","61018","17250001",{"$f":"VLOOKUP(TRIM(J1142),'Transactional Departments'!A:B,2,FALSE)","v":"Entomology Sum"},"17250001","","","","",""]
["17","293",null,null,"NIH      RF IA W293-404  STRAN","2521RC293405","20400","12100","61018","17250001",{"$f":"VLOOKUP(TRIM(J1143),'Transactional Departments'!A:B,2,FALSE)","v":"Entomology Sum"},"17250001","","","","",""]
["17","293",null,null,"UF/USDA  BIOPESTICIDES   AHMAD","2521RC293409","20400","12100","62511","17250001",{"$f":"VLOOKUP(TRIM(J1144),'Transactional Departments'!A:B,2,FALSE)","v":"Entomology Sum"},"17250001","","","","",""]
["17","293",null,null,"GACCB    RF PESTICIDE    AHMAD","2521RC293410","20400","12100","62009","17250001",{"$f":"VLOOKUP(TRIM(J1145),'Transactional Departments'!A:B,2,FALSE)","v":"Entomology Sum"},"17250001","","","","",""]
["17","293",null,null,"GCCS     RF RC371-292    PARRO","2521RC293412","20400","12100","62004","17250001",{"$f":"VLOOKUP(TRIM(J1146),'Transactional Departments'!A:B,2,FALSE)","v":"Entomology Sum"},"17250001","","","","",""]
["17","293",null,null,"USDA     RF RD309-137    JORDA","2521RC293415","20400","12100","61006","17250001",{"$f":"VLOOKUP(TRIM(J1147),'Transactional Departments'!A:B,2,FALSE)","v":"Entomology Sum"},"17250001","","","","",""]
["17","293",null,null,"USDA     RF BEEKEEPING   DELAP","2521RC293417","20400","12100","61006","17250001",{"$f":"VLOOKUP(TRIM(J1148),'Transactional Departments'!A:B,2,FALSE)","v":"Entomology Sum"},"17250001","","","","",""]
["17","293",null,null,"SRSFC    RF SPOTTED WING AHMAD","2521RC293612","20400","12100","64342","17250001",{"$f":"VLOOKUP(TRIM(J1149),'Transactional Departments'!A:B,2,FALSE)","v":"Entomology Sum"},"17250001","","","","",""]
["17","293",null,null,"UCA/CIMMYRF  LADYBEETLES MCHUG","2521RC293614","20400","12100","62562","17250001",{"$f":"VLOOKUP(TRIM(J1150),'Transactional Departments'!A:B,2,FALSE)","v":"Entomology Sum"},"17250001","","","","",""]
["17","293",null,null,"GFVGA    RF DIST ST WING AHMAD","2521RC293615","20400","12100","64000","17250001",{"$f":"VLOOKUP(TRIM(J1151),'Transactional Departments'!A:B,2,FALSE)","v":"Entomology Sum"},"17250001","","","","",""]
["17","293",null,null,"GCCS     RF KUDZU BUG      ALL","2521RC293623","20400","12100","62004","17250001",{"$f":"VLOOKUP(TRIM(J1152),'Transactional Departments'!A:B,2,FALSE)","v":"Entomology Sum"},"17250001","","","","",""]
["17","293",null,null,"GACCS    RF INSCT RESIST   ALL","2521RC293624","20400","12100","62004","17250001",{"$f":"VLOOKUP(TRIM(J1153),'Transactional Departments'!A:B,2,FALSE)","v":"Entomology Sum"},"17250001","","","","",""]
["17","293",null,null,"NIH      RF MOSQ VOGEL        ","2521RC293625","20400","12100","61018","17250001",{"$f":"VLOOKUP(TRIM(J1154),'Transactional Departments'!A:B,2,FALSE)","v":"Entomology Sum"},"17250001","","","","",""]
["17","293",null,null,"NIH      RF W/ 293-625        ","2521RC293626","20400","12100","61018","17250001",{"$f":"VLOOKUP(TRIM(J1155),'Transactional Departments'!A:B,2,FALSE)","v":"Entomology Sum"},"17250001","","","","",""]
["17","293",null,null,"SRIC/USDARF SPOTTED WING AHMAD","2521RC293628","20400","12100","64360","17250001",{"$f":"VLOOKUP(TRIM(J1156),'Transactional Departments'!A:B,2,FALSE)","v":"Entomology Sum"},"17250001","","","","",""]
["17","293",null,null,"NIH      RF PS W/ 293-384     ","2521RC293629","20400","12100","61018","17250001",{"$f":"VLOOKUP(TRIM(J1157),'Transactional Departments'!A:B,2,FALSE)","v":"Entomology Sum"},"17250001","","","","",""]
["17","293",null,null,"GACC     RF PEST MGMNT   ALL  ","2521RC293631","20400","12100","62001","17250001",{"$f":"VLOOKUP(TRIM(J1158),'Transactional Departments'!A:B,2,FALSE)","v":"Entomology Sum"},"17250001","","","","",""]
["17","293",null,null,"USDA FS  RF ADELGES      BURKE","2521RC293633","20400","12100","61003","17250001",{"$f":"VLOOKUP(TRIM(J1159),'Transactional Departments'!A:B,2,FALSE)","v":"Entomology Sum"},"17250001","","","","",""]
["17","293",null,null,"NSF      RF PS WITH 293634    ","2521RC293635","20400","12100","61023","17250001",{"$f":"VLOOKUP(TRIM(J1160),'Transactional Departments'!A:B,2,FALSE)","v":"Entomology Sum"},"17250001","","","","",""]
["17","293",null,null,"USDA NIFARF PS W/293636  AHMAD","2521RC293637","20400","12100","61006","17250001",{"$f":"VLOOKUP(TRIM(J1161),'Transactional Departments'!A:B,2,FALSE)","v":"Entomology Sum"},"17250001","","","","",""]
["17","293",null,null,"GACCC    RF EARLY PESTS  ALL  ","2521RC293642","20400","12100","62001","17250001",{"$f":"VLOOKUP(TRIM(J1162),'Transactional Departments'!A:B,2,FALSE)","v":"Entomology Sum"},"17250001","","","","",""]
["17","293",null,null,"NIH      RF PS W/293-639 BROWN","2521RC293644","20400","12100","61018","17250001",{"$f":"VLOOKUP(TRIM(J1163),'Transactional Departments'!A:B,2,FALSE)","v":"Entomology Sum"},"17250001","","","","",""]
["17","293",null,null,"NSF      RF PS W/293-652 STRAN","2521RC293653","20400","12100","61023","17250001",{"$f":"VLOOKUP(TRIM(J1164),'Transactional Departments'!A:B,2,FALSE)","v":"Entomology Sum"},"17250001","","","","",""]
["17","293",null,null,"NIH      RF OVARIES      VOGEL","2521RC293656","20400","12100","61018","17250001",{"$f":"VLOOKUP(TRIM(J1165),'Transactional Departments'!A:B,2,FALSE)","v":"Entomology Sum"},"17250001","","","","",""]
["17","293",null,null,"USDA FS  RF SAPROXYLIC   MCHUG","2521RC293657","20400","12100","61003","17250001",{"$f":"VLOOKUP(TRIM(J1166),'Transactional Departments'!A:B,2,FALSE)","v":"Entomology Sum"},"17250001","","","","",""]
["17","293",null,null,"USDA NIFAW/RE677532      AHMAD","2521RC293660","20400","12100","61006","17250001",{"$f":"VLOOKUP(TRIM(J1167),'Transactional Departments'!A:B,2,FALSE)","v":"Entomology Sum"},"17250001","","","","",""]
["17","293",null,null,"ROYALTY DEPT/ENT              ","2521RX293352","20300","12100","64RYT","17250001",{"$f":"VLOOKUP(TRIM(J1168),'Transactional Departments'!A:B,2,FALSE)","v":"Entomology Sum"},"17250001","","","","",""]
["17","293",null,null,"ROYALTY INVENTOR/CHEN         ","2521RX293353","20300","12100","64RYT","17250001",{"$f":"VLOOKUP(TRIM(J1169),'Transactional Departments'!A:B,2,FALSE)","v":"Entomology Sum"},"17250001","","","","",""]
["17","293",null,null,"ROYALTY INVENTOR/HUA          ","2521RX293354","20300","12100","64RYT","17250001",{"$f":"VLOOKUP(TRIM(J1170),'Transactional Departments'!A:B,2,FALSE)","v":"Entomology Sum"},"17250001","","","","",""]
["17","293",null,null,"ROYALTY INVENTR/ADANG         ","2521RX293355","20300","12100","64RYT","17253020",{"$f":"VLOOKUP(TRIM(J1171),'Transactional Departments'!A:B,2,FALSE)","v":"Adang"},"17253020","","","","",""]
["17","293",null,null,"         UGARF SUPPORT ENT RSH","2521RX293900","20300","12100","64ICR","17250001",{"$f":"VLOOKUP(TRIM(J1172),'Transactional Departments'!A:B,2,FALSE)","v":"Entomology Sum"},"17250001","","","","",""]
["17","293",null,null,"RESIDUAL #293ES NOBLE         ","2521RX293950","20400","12100","64RBP","17250001",{"$f":"VLOOKUP(TRIM(J1173),'Transactional Departments'!A:B,2,FALSE)","v":"Entomology Sum"},"17250001","","","","",""]
["17","293",null,null,"ROYALTY HOLDING ENTOMOLOGY    ","2521RX293980","20300","12100","64URF","17250001",{"$f":"VLOOKUP(TRIM(J1174),'Transactional Departments'!A:B,2,FALSE)","v":"Entomology Sum"},"17250001","","","","",""]
["17","293",null,null,"ENTOMOLOGY RESEARCH COLLEGE   ","2526DC293000","14300","12200","41500","17250001",{"$f":"VLOOKUP(TRIM(J1175),'Transactional Departments'!A:B,2,FALSE)","v":"Entomology Sum"},"17250001","","","","",""]
["17","293",null,null,"ENTOMOLOGY ALL SALES-JOHN ALL ","2526DC293100","14300","12200","41500","17250001",{"$f":"VLOOKUP(TRIM(J1176),'Transactional Departments'!A:B,2,FALSE)","v":"Entomology Sum"},"17250001","","","","",""]
["17","293",null,null,"DELAPLANE HONEY SALES         ","2526DC293153","14300","12200","41500","17253100",{"$f":"VLOOKUP(TRIM(J1177),'Transactional Departments'!A:B,2,FALSE)","v":"Delaplane"},"17253100","","","","RCS",""]
["17","293",null,null,"SERVICE - ROSS                ","2526DC293213","14300","12200","41500","17250001",{"$f":"VLOOKUP(TRIM(J1178),'Transactional Departments'!A:B,2,FALSE)","v":"Entomology Sum"},"17250001","","","","",""]
["17","293",null,null,"FORSCHLER SALES & SERVICE     ","2526DC293233","14300","12200","41500","17253120",{"$f":"VLOOKUP(TRIM(J1179),'Transactional Departments'!A:B,2,FALSE)","v":"Forschler"},"17253120","","","","RCS",""]
["17","293",null,null,"NOBLET BLACK FLY SALES        ","2526DC293243","14300","12200","41500","17250001",{"$f":"VLOOKUP(TRIM(J1180),'Transactional Departments'!A:B,2,FALSE)","v":"Entomology Sum"},"17250001","","","","RCS",""]
["17","293",null,null,"SERVICE - CLARK               ","2526DC293603","14300","12200","41500","17250001",{"$f":"VLOOKUP(TRIM(J1181),'Transactional Departments'!A:B,2,FALSE)","v":"Entomology Sum"},"17250001","","","","",""]
["17","293",null,null,"ENTOMOLOGY RESEARCH COLLEGE   ","2526GC293000","11300","12200","11200","17250001",{"$f":"VLOOKUP(TRIM(J1182),'Transactional Departments'!A:B,2,FALSE)","v":"Entomology Sum"},"17250001","","","","RCS",""]
["17","293",null,null,"ENTOMOLOGY RSCH DEPART ADMIN  ","2526GC293090","11300","12200","11200","17250001",{"$f":"VLOOKUP(TRIM(J1183),'Transactional Departments'!A:B,2,FALSE)","v":"Entomology Sum"},"17250001","","","","RCS",""]
["17","293",null,null,"ENT STATE ADANG               ","2526GC293100","11300","12200","11200","17253020",{"$f":"VLOOKUP(TRIM(J1184),'Transactional Departments'!A:B,2,FALSE)","v":"Adang"},"17253020","","","","RCS",""]
["17","293",null,null,"ENT STATE ALL                 ","2526GC293110","11300","12200","11200","17250001",{"$f":"VLOOKUP(TRIM(J1185),'Transactional Departments'!A:B,2,FALSE)","v":"Entomology Sum"},"17250001","","","","RCS",""]
["17","293",null,null,"ENT STATE BERISFORD           ","2526GC293120","11300","12200","11200","17250001",{"$f":"VLOOKUP(TRIM(J1186),'Transactional Departments'!A:B,2,FALSE)","v":"Entomology Sum"},"17250001","","","","RCS",""]
["17","293",null,null,"ENT STATE BROWN               ","2526GC293130","11300","12200","11200","17253060",{"$f":"VLOOKUP(TRIM(J1187),'Transactional Departments'!A:B,2,FALSE)","v":"Brown"},"17253060","","","","RCS",""]
["17","293",null,null,"ENT STATE CHAMPAGNE           ","2526GC293140","11300","12200","11200","17253090",{"$f":"VLOOKUP(TRIM(J1188),'Transactional Departments'!A:B,2,FALSE)","v":"Champagne"},"17253090","","","","RCS",""]
["17","293",null,null,"ENT STATE DELAPLANE           ","2526GC293150","11300","12200","11200","17253100",{"$f":"VLOOKUP(TRIM(J1189),'Transactional Departments'!A:B,2,FALSE)","v":"Delaplane"},"17253100","","","","RCS",""]
["17","293",null,null,"ENT STATE BLAAUW              ","2526GC293160","11300","12200","11200","17253040",{"$f":"VLOOKUP(TRIM(J1190),'Transactional Departments'!A:B,2,FALSE)","v":"Blaauw"},"17253040","","","","RCS",""]
["17","293",null,null,"ENT STATE AHMAD               ","2526GC293170","11300","12200","11200","17250001",{"$f":"VLOOKUP(TRIM(J1191),'Transactional Departments'!A:B,2,FALSE)","v":"Entomology Sum"},"17250001","","","","RCS",""]
["17","293",null,null,"ENT STATE CRUZ                ","2526GC293180","11300","12200","11200","17250001",{"$f":"VLOOKUP(TRIM(J1192),'Transactional Departments'!A:B,2,FALSE)","v":"Entomology Sum"},"17250001","","","","RCS",""]
["17","293",null,null,"ENT STATE MCHUGH              ","2526GC293190","11300","12200","11200","17253190",{"$f":"VLOOKUP(TRIM(J1193),'Transactional Departments'!A:B,2,FALSE)","v":"McHugh"},"17253190","","","","RCS",""]
["17","293",null,null,"ENT STATE BURKE               ","2526GC293200","11300","12200","11200","17253080",{"$f":"VLOOKUP(TRIM(J1194),'Transactional Departments'!A:B,2,FALSE)","v":"Burke"},"17253080","","","","RCS",""]
["17","293",null,null,"ENT STATE ROSS                ","2526GC293210","11300","12200","11200","17253250",{"$f":"VLOOKUP(TRIM(J1195),'Transactional Departments'!A:B,2,FALSE)","v":"Ross"},"17253250","","","","RCS",""]
["17","293",null,null,"ENT STATE OLIVER              ","2526GC293220","11300","12200","11200","17253210",{"$f":"VLOOKUP(TRIM(J1196),'Transactional Departments'!A:B,2,FALSE)","v":"Oliver"},"17253210","","","","RCS",""]
["17","293",null,null,"ENT STATE FORSCHLER           ","2526GC293230","11300","12200","11200","17253120",{"$f":"VLOOKUP(TRIM(J1197),'Transactional Departments'!A:B,2,FALSE)","v":"Forschler"},"17253120","","","","RCS",""]
["17","293",null,null,"ENT STATE NOBLET              ","2526GC293240","11300","12200","11200","17250001",{"$f":"VLOOKUP(TRIM(J1198),'Transactional Departments'!A:B,2,FALSE)","v":"Entomology Sum"},"17250001","","","","RCS",""]
["17","293",null,null,"ENT STATE BATZER              ","2526GC293250","11300","12200","11200","17253030",{"$f":"VLOOKUP(TRIM(J1199),'Transactional Departments'!A:B,2,FALSE)","v":"Bazter"},"17253030","","","","RCS",""]
["17","293",null,null,"ENT STATE VOGEL               ","2526GC293270","11300","12200","11200","17253370",{"$f":"VLOOKUP(TRIM(J1200),'Transactional Departments'!A:B,2,FALSE)","v":"Vogel"},"17253370","","","","RCS",""]
["17","293",null,null,"ENT STATE STRAND              ","2526GC293600","11300","12200","11200","17253310",{"$f":"VLOOKUP(TRIM(J1201),'Transactional Departments'!A:B,2,FALSE)","v":"Strand"},"17253310","","","","RCS",""]
["17","293",null,null,"ENT STATE MUSEUM              ","2526GC293700","11300","12200","11200","17250001",{"$f":"VLOOKUP(TRIM(J1202),'Transactional Departments'!A:B,2,FALSE)","v":"Entomology Sum"},"17250001","","","","RCS",""]
["17","294",null,null,"GA DOAGR RF W/RF331-261  AKOH ","2521RC294314","20400","12100","62010","17260001",{"$f":"VLOOKUP(TRIM(J1203),'Transactional Departments'!A:B,2,FALSE)","v":"Food Science Sum"},"17260001","","","","",""]
["17","294",null,null,"GA DOAGR RF POM W/331261  AKOH","2521RC294321","20400","12100","62010","17260001",{"$f":"VLOOKUP(TRIM(J1204),'Transactional Departments'!A:B,2,FALSE)","v":"Food Science Sum"},"17260001","","","","",""]
["17","294",null,null,"USDA NIFARF SUP 581-490  FISCH","2521RC294332","20400","12100","61002","17260001",{"$f":"VLOOKUP(TRIM(J1205),'Transactional Departments'!A:B,2,FALSE)","v":"Food Science Sum"},"17260001","","","","",""]
["17","294",null,null,"GACCP    RF BIOACTIVES   KONG ","2521RC294334","20400","12100","62002","17260001",{"$f":"VLOOKUP(TRIM(J1206),'Transactional Departments'!A:B,2,FALSE)","v":"Food Science Sum"},"17260001","","","","",""]
["17","294",null,null,"GCCP     RF DIGESTION    KONG ","2521RC294337","20400","12100","62002","17260001",{"$f":"VLOOKUP(TRIM(J1207),'Transactional Departments'!A:B,2,FALSE)","v":"Food Science Sum"},"17260001","","","","",""]
["17","294",null,null,"GCCP     RF HLTH & WELL  PEGG ","2521RC294338","20400","12100","62045","17260001",{"$f":"VLOOKUP(TRIM(J1208),'Transactional Departments'!A:B,2,FALSE)","v":"Food Science Sum"},"17260001","","","","",""]
["17","294",null,null,"GACCP    RF ANTIOXI CAP  PEGG ","2521RC294339","20400","12100","62007","17260001",{"$f":"VLOOKUP(TRIM(J1209),'Transactional Departments'!A:B,2,FALSE)","v":"Food Science Sum"},"17260001","","","","",""]
["17","294",null,null,"CI       RF META HEALTH  PATON","2521RC294342","20400","12100","64355","17260001",{"$f":"VLOOKUP(TRIM(J1210),'Transactional Departments'!A:B,2,FALSE)","v":"Food Science Sum"},"17260001","","","","",""]
["17","294",null,null,"USDA ARS RF ACQ OF GOODS SINGH","2521RC294357","20400","12100","61004","17260001",{"$f":"VLOOKUP(TRIM(J1211),'Transactional Departments'!A:B,2,FALSE)","v":"Food Science Sum"},"17260001","","","","",""]
["17","294",null,null,"ROYALTY DEPT/FOOD SCI         ","2521RX294295","20300","12100","64RYT","17260001",{"$f":"VLOOKUP(TRIM(J1212),'Transactional Departments'!A:B,2,FALSE)","v":"Food Science Sum"},"17260001","","","","",""]
["17","294",null,null,"         UGARF SUPPORT FD SCI ","2521RX294900","20300","12100","64ICR","17260001",{"$f":"VLOOKUP(TRIM(J1213),'Transactional Departments'!A:B,2,FALSE)","v":"Food Science Sum"},"17260001","","","","",""]
["17","294",null,null,"         RESIDUAL #294ES SINGH","2521RX294950","20400","12100","64RBP","17260001",{"$f":"VLOOKUP(TRIM(J1214),'Transactional Departments'!A:B,2,FALSE)","v":"Food Science Sum"},"17260001","","","","",""]
["17","294",null,null,"ROYALTY HOLDING FOOD SCIENCE  ","2521RX294980","20300","12100","64URF","17260001",{"$f":"VLOOKUP(TRIM(J1215),'Transactional Departments'!A:B,2,FALSE)","v":"Food Science Sum"},"17260001","","","","",""]
["17","294",null,null,"FOOD SCIENCE RSCH F&A ADM     ","2526AC294090","15300","12200","11500","17260001",{"$f":"VLOOKUP(TRIM(J1216),'Transactional Departments'!A:B,2,FALSE)","v":"Food Science Sum"},"17260001","","","","",""]
["17","294",null,null,"FOOD SCI & TECHNOLOGY COLLEGE ","2526DC294000","14300","12200","41500","17260001",{"$f":"VLOOKUP(TRIM(J1217),'Transactional Departments'!A:B,2,FALSE)","v":"Food Science Sum"},"17260001","","","","RCS",""]
["17","294",null,null,"VISITING SCHOLAR - AKOH       ","2526DC294110","14300","12200","41500","17260001",{"$f":"VLOOKUP(TRIM(J1218),'Transactional Departments'!A:B,2,FALSE)","v":"Food Science Sum"},"17260001","","","","",""]
["17","294",null,null,"VISITING SCHOLAR - FRANK      ","2526DC294130","14300","12200","41500","17260001",{"$f":"VLOOKUP(TRIM(J1219),'Transactional Departments'!A:B,2,FALSE)","v":"Food Science Sum"},"17260001","","","","",""]
["17","294",null,null,"FST INCOME - HARRISON         ","2526DC294140","14300","12200","41500","17260140",{"$f":"VLOOKUP(TRIM(J1220),'Transactional Departments'!A:B,2,FALSE)","v":"Harrison, Mark"},"17260140","","","","RCS",""]
["17","294",null,null,"VISITING SCHOLAR - KERR       ","2526DC294160","14300","12200","41500","17260160",{"$f":"VLOOKUP(TRIM(J1221),'Transactional Departments'!A:B,2,FALSE)","v":"Kerr, William"},"17260160","","","","RCS",""]
["17","294",null,null,"FST INCOME - PEGG             ","2526DC294220","14300","12200","41500","17260220",{"$f":"VLOOKUP(TRIM(J1222),'Transactional Departments'!A:B,2,FALSE)","v":"Pegg, Ronald"},"17260220","","","","RCS",""]
["17","294",null,null,"FST INCOME - MOHAN            ","2526DC294260","14300","12200","41500","17260260",{"$f":"VLOOKUP(TRIM(J1223),'Transactional Departments'!A:B,2,FALSE)","v":"Mohan, Anand"},"17260260","","","","RCS",""]
["17","294",null,null,"FST INCOME - REYES            ","2526DC294270","14300","12200","41500","17260270",{"$f":"VLOOKUP(TRIM(J1224),'Transactional Departments'!A:B,2,FALSE)","v":"Reyes, Jose"},"17260270","","","","RCS",""]
["17","294",null,null,"VISITING SCHOLAR-SINGH        ","2526DC294300","14300","12200","41500","17260001",{"$f":"VLOOKUP(TRIM(J1225),'Transactional Departments'!A:B,2,FALSE)","v":"Food Science Sum"},"17260001","","","","",""]
["17","294",null,null,"FOOD SCI & TECHNOLOGY COLLEGE ","2526GC294000","11300","12200","11200","17260001",{"$f":"VLOOKUP(TRIM(J1226),'Transactional Departments'!A:B,2,FALSE)","v":"Food Science Sum"},"17260001","","","","RCS",""]
["17","294",null,null,"FOOD SCI & TECH DEPART ADMIN  ","2526GC294090","11300","12200","11200","17260090",{"$f":"VLOOKUP(TRIM(J1227),'Transactional Departments'!A:B,2,FALSE)","v":"FST Department Admin"},"17260090","","","","RCS",""]
["17","294",null,null,"FST STATE AKOH                ","2526GC294110","11300","12200","11200","17260110",{"$f":"VLOOKUP(TRIM(J1228),'Transactional Departments'!A:B,2,FALSE)","v":"Akoh, Casimir"},"17260110","","","","RCS",""]
["17","294",null,null,"FST STATE HARRISON            ","2526GC294140","11300","12200","11200","17260140",{"$f":"VLOOKUP(TRIM(J1229),'Transactional Departments'!A:B,2,FALSE)","v":"Harrison, Mark"},"17260140","","","","RCS",""]
["17","294",null,null,"FST STATE KERR                ","2526GC294160","11300","12200","11200","17260160",{"$f":"VLOOKUP(TRIM(J1230),'Transactional Departments'!A:B,2,FALSE)","v":"Kerr, William"},"17260160","","","","RCS",""]
["17","294",null,null,"FST STATE PEGG                ","2526GC294220","11300","12200","11200","17260220",{"$f":"VLOOKUP(TRIM(J1231),'Transactional Departments'!A:B,2,FALSE)","v":"Pegg, Ronald"},"17260220","","","","RCS",""]
["17","294",null,null,"FST STATE KONG                ","2526GC294250","11300","12200","11200","17260250",{"$f":"VLOOKUP(TRIM(J1232),'Transactional Departments'!A:B,2,FALSE)","v":"Kong, Fanbin"},"17260250","","","","RCS",""]
["17","294",null,null,"FST STATE MOHAN               ","2526GC294260","11300","12200","11200","17260260",{"$f":"VLOOKUP(TRIM(J1233),'Transactional Departments'!A:B,2,FALSE)","v":"Mohan, Anand"},"17260260","","","","RCS",""]
["17","294",null,null,"FST STATE REYES               ","2526GC294270","11300","12200","11200","17260270",{"$f":"VLOOKUP(TRIM(J1234),'Transactional Departments'!A:B,2,FALSE)","v":"Reyes, Jose"},"17260270","","","","RCS",""]
["17","294",null,null,"FST STATE PATON               ","2526GC294280","11300","12200","11200","17260280",{"$f":"VLOOKUP(TRIM(J1235),'Transactional Departments'!A:B,2,FALSE)","v":"Paton, Chad"},"17260280","","","","RCS",""]
["17","294",null,null,"FST STATE DEE                 ","2526GC294290","11300","12200","11200","17260290",{"$f":"VLOOKUP(TRIM(J1236),'Transactional Departments'!A:B,2,FALSE)","v":"Dee, Derek"},"17260290","","","","RCS",""]
["17","294",null,null,"FST STATE CAVENDER            ","2526GC294300","11300","12200","11200","17260300",{"$f":"VLOOKUP(TRIM(J1237),'Transactional Departments'!A:B,2,FALSE)","v":"Cavender, George"},"17260300","","","","RCS",""]
["17","294",null,null,"FST STATE MISHRA              ","2526GC294320","11300","12200","11200","17260320",{"$f":"VLOOKUP(TRIM(J1238),'Transactional Departments'!A:B,2,FALSE)","v":"Mishra, Abhinav"},"17260320","","","","RCS",""]
["17","294",null,null,"FOOD SCI & TECHNOLOGY COLLEGE ","2571GC294000","11300","17100","11200","17260001",{"$f":"VLOOKUP(TRIM(J1239),'Transactional Departments'!A:B,2,FALSE)","v":"Food Science Sum"},"17260001","","","","RCS",""]
["17","297",null,null,"UGARF    GSDC TST PCN SL SPARK","2521RC297173","20300","12100","64URF","17272600",{"$f":"VLOOKUP(TRIM(J1240),'Transactional Departments'!A:B,2,FALSE)","v":"Sparks, Darrell"},"17272600","","","","",""]
["17","297",null,null,"UGARF    GSDC PUMPKINS   BOYHA","2521RC297204","20300","12100","64URF","17270300",{"$f":"VLOOKUP(TRIM(J1241),'Transactional Departments'!A:B,2,FALSE)","v":"Boyhan, George"},"17270300","","","","",""]
["17","297",null,null,"         DIRR PROF       BAILE","2521RC297263","20200","12100","","17270001",{"$f":"VLOOKUP(TRIM(J1242),'Transactional Departments'!A:B,2,FALSE)","v":"Horticulture Sum"},"17270001","","","","",""]
["17","297",null,null,"UGAF     ARMITAGE PROF   BAILE","2521RC297274","20200","12100","67798","17270001",{"$f":"VLOOKUP(TRIM(J1243),'Transactional Departments'!A:B,2,FALSE)","v":"Horticulture Sum"},"17270001","","","","",""]
["17","297",null,null,"UGARF    GSDC ARTEMISIA  WETZS","2521RC297276","20300","12100","64URF","17270001",{"$f":"VLOOKUP(TRIM(J1244),'Transactional Departments'!A:B,2,FALSE)","v":"Horticulture Sum"},"17270001","","","","",""]
["17","297",null,null,"UGAF     DOOLEY PROFESS  ANGLE","2521RC297279","20200","12100","67799","17270001",{"$f":"VLOOKUP(TRIM(J1245),'Transactional Departments'!A:B,2,FALSE)","v":"Horticulture Sum"},"17270001","","","","",""]
["17","297",null,null,"UGARF    GSDC WATERMELON MCGRE","2521RC297280","20300","12100","64URF","17271600",{"$f":"VLOOKUP(TRIM(J1246),'Transactional Departments'!A:B,2,FALSE)","v":"McGregor, Cecilla"},"17271600","","","","",""]
["17","297",null,null,"UGARF    GSDC CHINESE JU WILDE","2521RC297284","20300","12100","64URF","17270001",{"$f":"VLOOKUP(TRIM(J1247),'Transactional Departments'!A:B,2,FALSE)","v":"Horticulture Sum"},"17270001","","","","",""]
["17","297",null,null,"UGARF    GSDC NEW WOODY  ZHANG","2521RC297295","20300","12100","64URF","17273300",{"$f":"VLOOKUP(TRIM(J1248),'Transactional Departments'!A:B,2,FALSE)","v":"Zhang, Donglin"},"17273300","","","","",""]
["17","297",null,null,"UGARF    GSDC ORNAMENTAL RUTER","2521RC297297","20300","12100","64URF","17272300",{"$f":"VLOOKUP(TRIM(J1249),'Transactional Departments'!A:B,2,FALSE)","v":"Ruter, John"},"17272300","","","","",""]
["17","297",null,null,"UGARF    GSDC BELL PEPPR MCGRE","2521RC297299","20300","12100","64URF","17271600",{"$f":"VLOOKUP(TRIM(J1250),'Transactional Departments'!A:B,2,FALSE)","v":"McGregor, Cecilla"},"17271600","","","","",""]
["17","297",null,null,"SRSF     RF BLUEBERRY    MALLA","2521RC297304","20400","12100","64342","17270001",{"$f":"VLOOKUP(TRIM(J1251),'Transactional Departments'!A:B,2,FALSE)","v":"Horticulture Sum"},"17270001","","","","",""]
["17","297",null,null,"USDA NIFARF RD309-129    JORDA","2521RC297309","20400","12100","61006","17270001",{"$f":"VLOOKUP(TRIM(J1252),'Transactional Departments'!A:B,2,FALSE)","v":"Horticulture Sum"},"17270001","","","","",""]
["17","297",null,null,"UGARF    GSDC GENOTYPING CHAPP","2521RC297323","20300","12100","64URF","17270400",{"$f":"VLOOKUP(TRIM(J1253),'Transactional Departments'!A:B,2,FALSE)","v":"Chappell, Matthew"},"17270400","","","","",""]
["17","297",null,null,"GA DO AG RF RF_REDUCE FUNMCGRE","2521RC297324","20400","12100","62010","17270001",{"$f":"VLOOKUP(TRIM(J1254),'Transactional Departments'!A:B,2,FALSE)","v":"Horticulture Sum"},"17270001","","","","",""]
["17","297",null,null,"ROYALTY DEPT/HORT             ","2521RX297195","20300","12100","64RYT","17270001",{"$f":"VLOOKUP(TRIM(J1255),'Transactional Departments'!A:B,2,FALSE)","v":"Horticulture Sum"},"17270001","","","","",""]
["17","297",null,null,"ROYALTY INVT/ARMITAGE         ","2521RX297196","20300","12100","64RYT","17270001",{"$f":"VLOOKUP(TRIM(J1256),'Transactional Departments'!A:B,2,FALSE)","v":"Horticulture Sum"},"17270001","","","","",""]
["17","297",null,null,"ROYALTY INVENTOR/DIRR         ","2521RX297197","20300","12100","64RYT","17270001",{"$f":"VLOOKUP(TRIM(J1257),'Transactional Departments'!A:B,2,FALSE)","v":"Horticulture Sum"},"17270001","","","","",""]
["17","297",null,null,"ROYALTY INVENTOR RUTER     297","2521RX297247","20300","12100","64RYT","17272300",{"$f":"VLOOKUP(TRIM(J1258),'Transactional Departments'!A:B,2,FALSE)","v":"Ruter, John"},"17272300","","","","",""]
["17","297",null,null,"UGARF DIRR PROFESSORSHIP      ","2521RX297294","20300","12100","64URF","17270001",{"$f":"VLOOKUP(TRIM(J1259),'Transactional Departments'!A:B,2,FALSE)","v":"Horticulture Sum"},"17270001","","","","",""]
["17","297",null,null,"ROYALTY INVENTOR SPARKS    297","2521RX297302","20300","12100","64RYT","17272600",{"$f":"VLOOKUP(TRIM(J1260),'Transactional Departments'!A:B,2,FALSE)","v":"Sparks, Darrell"},"17272600","","","","",""]
["17","297",null,null,"         UGARF SUPPORT HOR RSH","2521RX297900","20300","12100","64ICR","17270001",{"$f":"VLOOKUP(TRIM(J1261),'Transactional Departments'!A:B,2,FALSE)","v":"Horticulture Sum"},"17270001","","","","",""]
["17","297",null,null,"         RESIDUAL #297ES BAILE","2521RX297950","20400","12100","64RBP","17270001",{"$f":"VLOOKUP(TRIM(J1262),'Transactional Departments'!A:B,2,FALSE)","v":"Horticulture Sum"},"17270001","","","","",""]
["17","297",null,null,"ROYALTY HOLDING HORTICULTURE  ","2521RX297980","20300","12100","64URF","17270001",{"$f":"VLOOKUP(TRIM(J1263),'Transactional Departments'!A:B,2,FALSE)","v":"Horticulture Sum"},"17270001","","","","",""]
["17","297",null,null,"HORTICULTURE RESEARCH COLLEGE ","2526AC297000","15300","12200","11500","17270001",{"$f":"VLOOKUP(TRIM(J1264),'Transactional Departments'!A:B,2,FALSE)","v":"Horticulture Sum"},"17270001","","","","",""]
["17","297",null,null,"HORTICULTURE RSCH F&A ADM     ","2526AC297090","15300","12200","11500","17270001",{"$f":"VLOOKUP(TRIM(J1265),'Transactional Departments'!A:B,2,FALSE)","v":"Horticulture Sum"},"17270001","","","","",""]
["17","297",null,null,"HORTICULTURE RESEARCH COLLEGE ","2526DC297000","14300","12200","41500","17270001",{"$f":"VLOOKUP(TRIM(J1266),'Transactional Departments'!A:B,2,FALSE)","v":"Horticulture Sum"},"17270001","","","","RCS",""]
["17","297",null,null,"TRIAL GARDEN SALES            ","2526DC297005","14300","12200","41500","17273700",{"$f":"VLOOKUP(TRIM(J1267),'Transactional Departments'!A:B,2,FALSE)","v":"Trial Gardens"},"17273700","","","","RCS",""]
["17","297",null,null,"HORTICULTURE RESEARCH COLLEGE ","2526GC297000","11300","12200","11200","17270001",{"$f":"VLOOKUP(TRIM(J1268),'Transactional Departments'!A:B,2,FALSE)","v":"Horticulture Sum"},"17270001","","","","RCS",""]
["17","297",null,null,"HORT STATE FARM               ","2526GC297006","11300","12200","11200","17270001",{"$f":"VLOOKUP(TRIM(J1269),'Transactional Departments'!A:B,2,FALSE)","v":"Horticulture Sum"},"17270001","","","","RCS",""]
["17","297",null,null,"HORT 2015 SEMINARS            ","2526GC297007","11300","12200","11200","17270001",{"$f":"VLOOKUP(TRIM(J1270),'Transactional Departments'!A:B,2,FALSE)","v":"Horticulture Sum"},"17270001","","","","RCS",""]
["17","297",null,null,"HORTICULTURE RESCH DEPT ADMIN ","2526GC297090","11300","12200","11200","17270001",{"$f":"VLOOKUP(TRIM(J1271),'Transactional Departments'!A:B,2,FALSE)","v":"Horticulture Sum"},"17270001","","","","RCS",""]
["17","297",null,null,"HORT STATE BAILEY             ","2526GC297110","11300","12200","11200","17270100",{"$f":"VLOOKUP(TRIM(J1272),'Transactional Departments'!A:B,2,FALSE)","v":"Bailey, Doug"},"17270100","","","","RCS",""]
["17","297",null,null,"HORT STATE GREENHOUSE         ","2526GC297120","11300","12200","11200","17270001",{"$f":"VLOOKUP(TRIM(J1273),'Transactional Departments'!A:B,2,FALSE)","v":"Horticulture Sum"},"17270001","","","","RCS",""]
["17","297",null,null,"HORT STATE O'CONNELL          ","2526GC297140","11300","12200","11200","17271900",{"$f":"VLOOKUP(TRIM(J1274),'Transactional Departments'!A:B,2,FALSE)","v":"O'Connell, Suzanne"},"17271900","","","","RCS",""]
["17","297",null,null,"HORT STATE BOYHAN             ","2526GC297150","11300","12200","11200","17270300",{"$f":"VLOOKUP(TRIM(J1275),'Transactional Departments'!A:B,2,FALSE)","v":"Boyhan, George"},"17270300","","","","RCS",""]
["17","297",null,null,"HORT STATE ZHANG              ","2526GC297160","11300","12200","11200","17273300",{"$f":"VLOOKUP(TRIM(J1276),'Transactional Departments'!A:B,2,FALSE)","v":"Zhang, Donglin"},"17273300","","","","RCS",""]
["17","297",null,null,"HORT STATE MALLADI            ","2526GC297170","11300","12200","11200","17271500",{"$f":"VLOOKUP(TRIM(J1277),'Transactional Departments'!A:B,2,FALSE)","v":"Malladi, Anish"},"17271500","","","","RCS",""]
["17","297",null,null,"HORT STATE SMALLEY            ","2526GC297180","11300","12200","11200","17272400",{"$f":"VLOOKUP(TRIM(J1278),'Transactional Departments'!A:B,2,FALSE)","v":"Smalley, Tim"},"17272400","","","","RCS",""]
["17","297",null,null,"HORT STATE RUTER              ","2526GC297200","11300","12200","11200","17272300",{"$f":"VLOOKUP(TRIM(J1279),'Transactional Departments'!A:B,2,FALSE)","v":"Ruter, John"},"17272300","","","","RCS",""]
["17","297",null,null,"HORT STATE AFFOLTER           ","2526GC297220","11300","12200","11200","17270001",{"$f":"VLOOKUP(TRIM(J1280),'Transactional Departments'!A:B,2,FALSE)","v":"Horticulture Sum"},"17270001","","","","RCS",""]
["17","297",null,null,"HORT STATE WILDE              ","2526GC297230","11300","12200","11200","17273200",{"$f":"VLOOKUP(TRIM(J1281),'Transactional Departments'!A:B,2,FALSE)","v":"Wilde, Dayton"},"17273200","","","","RCS",""]
["17","297",null,null,"HORT STATE MCGREGOR           ","2526GC297240","11300","12200","11200","17271600",{"$f":"VLOOKUP(TRIM(J1282),'Transactional Departments'!A:B,2,FALSE)","v":"McGregor, Cecilla"},"17271600","","","","RCS",""]
["17","297",null,null,"HORT STATE VAN IERSEL         ","2526GC297250","11300","12200","11200","17272900",{"$f":"VLOOKUP(TRIM(J1283),'Transactional Departments'!A:B,2,FALSE)","v":"van Iersel, Marc"},"17272900","","","","RCS",""]
["17","297",null,null,"HORT STATE - NAMBEESAN        ","2526GC297260","11300","12200","11200","17271700",{"$f":"VLOOKUP(TRIM(J1284),'Transactional Departments'!A:B,2,FALSE)","v":"Nambeesan, Savithri"},"17271700","","","","RCS",""]
["17","297",null,null,"HORT STATE - HICKEY           ","2526GC297290","11300","12200","11200","17271200",{"$f":"VLOOKUP(TRIM(J1285),'Transactional Departments'!A:B,2,FALSE)","v":"Hickey, Cain"},"17271200","","","","RCS",""]
["17","297",null,null,"HORT STATE-UGARDEN            ","2526GC297950","11300","12200","11200","17273600",{"$f":"VLOOKUP(TRIM(J1286),'Transactional Departments'!A:B,2,FALSE)","v":"Ugarden"},"17273600","","","","RCS",""]
["17","297",null,null,"HORTICULTURE RESEARCH COLLEGE ","2571GC297000","11300","17100","11200","17270001",{"$f":"VLOOKUP(TRIM(J1287),'Transactional Departments'!A:B,2,FALSE)","v":"Horticulture Sum"},"17270001","","","","RCS",""]
["17","298",null,null,"POULTRY SCIENCE SERV   COLLEGE","2526DC298000","14300","12200","41500","17290001",{"$f":"VLOOKUP(TRIM(J1288),'Transactional Departments'!A:B,2,FALSE)","v":"Poultry Science Sum"},"17290001","","","","",""]
["17","298",null,null,"POULTRY SCIENCE SERV   COLLEGE","2526GC298000","11300","12200","11200","17290001",{"$f":"VLOOKUP(TRIM(J1289),'Transactional Departments'!A:B,2,FALSE)","v":"Poultry Science Sum"},"17290001","","","","RCS",""]
["17","299",null,null,"UGARF    GSDC SOY NEMATO NOE  ","2521RC299201","20300","12100","64URF","17284006",{"$f":"VLOOKUP(TRIM(J1290),'Transactional Departments'!A:B,2,FALSE)","v":"Noe"},"17284006","","","","",""]
["17","299",null,null,"UGARF     GSDC 299-201PI HUSSE","2521RC299365","20300","12100","64URF","17280001",{"$f":"VLOOKUP(TRIM(J1291),'Transactional Departments'!A:B,2,FALSE)","v":"Plant Path Sum"},"17280001","","","","",""]
["17","299",null,null,"USAID    RF W/710-023    BROWN","2521RC299373","20400","12100","61028","17280001",{"$f":"VLOOKUP(TRIM(J1292),'Transactional Departments'!A:B,2,FALSE)","v":"Plant Path Sum"},"17280001","","","","",""]
["17","299",null,null,"         RF XYLELLA FAST SCHER","2521RC299414","20400","12100","64342","17280001",{"$f":"VLOOKUP(TRIM(J1293),'Transactional Departments'!A:B,2,FALSE)","v":"Plant Path Sum"},"17280001","","","","",""]
["17","299",null,null,"GACCP    RF PCH SCB CNTRLBRANN","2521RC299431","20400","12100","62007","17280001",{"$f":"VLOOKUP(TRIM(J1294),'Transactional Departments'!A:B,2,FALSE)","v":"Plant Path Sum"},"17280001","","","","",""]
["17","299",null,null,"NABGA    RF EVAL ALGICID BRANN","2521RC299436","20400","12100","64000","17280001",{"$f":"VLOOKUP(TRIM(J1295),'Transactional Departments'!A:B,2,FALSE)","v":"Plant Path Sum"},"17280001","","","","",""]
["17","299",null,null,"USDA     RF W 309-125 WALCOTT ","2521RC299443","20400","12100","61002","17280001",{"$f":"VLOOKUP(TRIM(J1296),'Transactional Departments'!A:B,2,FALSE)","v":"Plant Path Sum"},"17280001","","","","",""]
["17","299",null,null,"USDA ARS RF ACQU OF G&S__SHERW","2521RC299460","20400","12100","61004","17280001",{"$f":"VLOOKUP(TRIM(J1297),'Transactional Departments'!A:B,2,FALSE)","v":"Plant Path Sum"},"17280001","","","","",""]
["17","299",null,null,"USDA NIFAW/677-496            ","2521RC299462","20400","12100","61006","17280001",{"$f":"VLOOKUP(TRIM(J1298),'Transactional Departments'!A:B,2,FALSE)","v":"Plant Path Sum"},"17280001","","","","",""]
["17","299",null,null,"GACCB    RF PARASIT NEMA NOE  ","2521RC299472","20400","12100","62009","17280001",{"$f":"VLOOKUP(TRIM(J1299),'Transactional Departments'!A:B,2,FALSE)","v":"Plant Path Sum"},"17280001","","","","",""]
["17","299",null,null,"UFL      RF BBERRY SPOT  BRANN","2521RC299475","20400","12100","62511","17280001",{"$f":"VLOOKUP(TRIM(J1300),'Transactional Departments'!A:B,2,FALSE)","v":"Plant Path Sum"},"17280001","","","","",""]
["17","299",null,null,"GA DOAG  RF RF_EFFICACY OJAGDA","2521RC299483","20400","12100","62010","17280001",{"$f":"VLOOKUP(TRIM(J1301),'Transactional Departments'!A:B,2,FALSE)","v":"Plant Path Sum"},"17280001","","","","",""]
["17","299",null,null,"USDA NIFAW/RE677532      AHMAD","2521RC299484","20400","12100","61006","17280001",{"$f":"VLOOKUP(TRIM(J1302),'Transactional Departments'!A:B,2,FALSE)","v":"Plant Path Sum"},"17280001","","","","",""]
["17","299",null,null,"USDA ARS RF RF_ACQUISITIOSCHER","2521RC299488","20400","12100","61004","17280001",{"$f":"VLOOKUP(TRIM(J1303),'Transactional Departments'!A:B,2,FALSE)","v":"Plant Path Sum"},"17280001","","","","",""]
["17","299",null,null,"ROYALTY DEPT/PLT PATH         ","2521RX299378","20300","12100","64RYT","17280001",{"$f":"VLOOKUP(TRIM(J1304),'Transactional Departments'!A:B,2,FALSE)","v":"Plant Path Sum"},"17280001","","","","",""]
["17","299",null,null,"ROYALTY INVENT/HUSSEY         ","2521RX299379","20300","12100","64RYT","17280001",{"$f":"VLOOKUP(TRIM(J1305),'Transactional Departments'!A:B,2,FALSE)","v":"Plant Path Sum"},"17280001","","","","",""]
["17","299",null,null,"ROYALTY RSCH SHERWOOD         ","2521RX299399","20300","12100","64RYT","17280001",{"$f":"VLOOKUP(TRIM(J1306),'Transactional Departments'!A:B,2,FALSE)","v":"Plant Path Sum"},"17280001","","","","",""]
["17","299",null,null,"ROYALTY INVENTOR/WALCOTT      ","2521RX299405","20300","12100","64RYT","17284009",{"$f":"VLOOKUP(TRIM(J1307),'Transactional Departments'!A:B,2,FALSE)","v":"Walcott"},"17284009","","","","",""]
["17","299",null,null,"ROYALTY INVENTOR/SCHELL       ","2521RX299406","20300","12100","64RYT","17280001",{"$f":"VLOOKUP(TRIM(J1308),'Transactional Departments'!A:B,2,FALSE)","v":"Plant Path Sum"},"17280001","","","","",""]
["17","299",null,null,"ROYALTY INVENTOR/NOE          ","2521RX299476","20300","12100","64RYT","17284006",{"$f":"VLOOKUP(TRIM(J1309),'Transactional Departments'!A:B,2,FALSE)","v":"Noe"},"17284006","","","","",""]
["17","299",null,null,"         UGARF SUPPORT PLT PTH","2521RX299900","20300","12100","64ICR","17280001",{"$f":"VLOOKUP(TRIM(J1310),'Transactional Departments'!A:B,2,FALSE)","v":"Plant Path Sum"},"17280001","","","","",""]
["17","299",null,null,"         RESIDUAL #299ES SHERW","2521RX299950","20400","12100","64RBP","17280001",{"$f":"VLOOKUP(TRIM(J1311),'Transactional Departments'!A:B,2,FALSE)","v":"Plant Path Sum"},"17280001","","","","",""]
["17","299",null,null,"ROYALTY HOLDING PLANT PATHOLOG","2521RX299980","20300","12100","64URF","17280001",{"$f":"VLOOKUP(TRIM(J1312),'Transactional Departments'!A:B,2,FALSE)","v":"Plant Path Sum"},"17280001","","","","",""]
["17","299",null,null,"PLANT PATHOLOGY RSCH F&A ADM  ","2526AC299090","15300","12200","11500","17280001",{"$f":"VLOOKUP(TRIM(J1313),'Transactional Departments'!A:B,2,FALSE)","v":"Plant Path Sum"},"17280001","","","","",""]
["17","299",null,null,"PLANT PATHOLOGY RESEARCH      ","2526GC299000","11300","12200","11200","17280001",{"$f":"VLOOKUP(TRIM(J1314),'Transactional Departments'!A:B,2,FALSE)","v":"Plant Path Sum"},"17280001","","","","RCS",""]
["17","299",null,null,"PP STATE DEPARTMENTAL ADMIN   ","2526GC299090","11300","12200","11200","17280001",{"$f":"VLOOKUP(TRIM(J1315),'Transactional Departments'!A:B,2,FALSE)","v":"Plant Path Sum"},"17280001","","","","RCS",""]
["17","299",null,null,"PP STATE BRANNEN              ","2526GC299110","11300","12200","11200","17284001",{"$f":"VLOOKUP(TRIM(J1316),'Transactional Departments'!A:B,2,FALSE)","v":"Brannen"},"17284001","","","","RCS",""]
["17","299",null,null,"PP STATE KVITKO               ","2526GC299120","11300","12200","11200","17284004",{"$f":"VLOOKUP(TRIM(J1317),'Transactional Departments'!A:B,2,FALSE)","v":"Kvitko"},"17284004","","","","RCS",""]
["17","299",null,null,"PP STATE DEOM                 ","2526GC299130","11300","12200","11200","17284003",{"$f":"VLOOKUP(TRIM(J1318),'Transactional Departments'!A:B,2,FALSE)","v":"Deom"},"17284003","","","","RCS",""]
["17","299",null,null,"PP STATE LITTLE               ","2526GC299150","11300","12200","11200","17284005",{"$f":"VLOOKUP(TRIM(J1319),'Transactional Departments'!A:B,2,FALSE)","v":"Little"},"17284005","","","","RCS",""]
["17","299",null,null,"PP STATE SCHERM               ","2526GC299180","11300","12200","11200","17284007",{"$f":"VLOOKUP(TRIM(J1320),'Transactional Departments'!A:B,2,FALSE)","v":"Scherm"},"17284007","","","","RCS",""]
["17","299",null,null,"PP STATE NOE                  ","2526GC299200","11300","12200","11200","17284006",{"$f":"VLOOKUP(TRIM(J1321),'Transactional Departments'!A:B,2,FALSE)","v":"Noe"},"17284006","","","","RCS",""]
["17","299",null,null,"PP STATE WALCOTT              ","2526GC299210","11300","12200","11200","17284009",{"$f":"VLOOKUP(TRIM(J1322),'Transactional Departments'!A:B,2,FALSE)","v":"Walcott"},"17284009","","","","RCS",""]
["17","299",null,null,"PP STATE SMITH                ","2526GC299220","11300","12200","11200","17284008",{"$f":"VLOOKUP(TRIM(J1323),'Transactional Departments'!A:B,2,FALSE)","v":"Smith"},"17284008","","","","RCS",""]
["17","299",null,null,"PP STATE WOODWARD             ","2526GC299230","11300","12200","11200","17284010",{"$f":"VLOOKUP(TRIM(J1324),'Transactional Departments'!A:B,2,FALSE)","v":"Woodward"},"17284010","","","","RCS",""]
["17","299",null,null,"PP STATE BREWER               ","2526GC299240","11300","12200","11200","17284002",{"$f":"VLOOKUP(TRIM(J1325),'Transactional Departments'!A:B,2,FALSE)","v":"Brewer"},"17284002","","","","RCS",""]
["17","299",null,null,"PP STATE YANG                 ","2526GC299250","11300","12200","11200","17280001",{"$f":"VLOOKUP(TRIM(J1326),'Transactional Departments'!A:B,2,FALSE)","v":"Plant Path Sum"},"17280001","","","","",""]
["17","299",null,null,"PP STATE BERTIOLI             ","2526GC299260","11300","12200","11200","17280001",{"$f":"VLOOKUP(TRIM(J1327),'Transactional Departments'!A:B,2,FALSE)","v":"Plant Path Sum"},"17280001","","","","",""]
["17","299",null,null,"PP STATE GREENHOUSE OPERATIONS","2526GC299900","11300","12200","11200","17280001",{"$f":"VLOOKUP(TRIM(J1328),'Transactional Departments'!A:B,2,FALSE)","v":"Plant Path Sum"},"17280001","","","","RCS",""]
["17","299",null,null,"PLANT PATHOLOGY RESEARCH      ","2571AC299000","15300","17100","11500","17280001",{"$f":"VLOOKUP(TRIM(J1329),'Transactional Departments'!A:B,2,FALSE)","v":"Plant Path Sum"},"17280001","","","","",""]
["17","300",null,null,"         VARIOUS RUSSELL      ","2521RC300206","20400","12100","64206","17290001",{"$f":"VLOOKUP(TRIM(J1330),'Transactional Departments'!A:B,2,FALSE)","v":"Poultry Science Sum"},"17290001","","","","",""]
["17","300",null,null,"UGAF     NAVARA STARTUP  EASON","2521RC300293","20200","12100","","17290001",{"$f":"VLOOKUP(TRIM(J1331),'Transactional Departments'!A:B,2,FALSE)","v":"Poultry Science Sum"},"17290001","","","","",""]
["17","300",null,null,"COL/USAIDRF POULTRY MALI LACY ","2521RC300307","20400","12100","62525","17290001",{"$f":"VLOOKUP(TRIM(J1332),'Transactional Departments'!A:B,2,FALSE)","v":"Poultry Science Sum"},"17290001","","","","",""]
["17","300",null,null,"         RF BCKSTD W/287-410  ","2521RC300311","20400","12100","64448","17290001",{"$f":"VLOOKUP(TRIM(J1333),'Transactional Departments'!A:B,2,FALSE)","v":"Poultry Science Sum"},"17290001","","","","",""]
["17","300",null,null,"CSU/USAIDRF MILLET MALI  DAVIS","2521RC300312","20400","12100","62525","17290001",{"$f":"VLOOKUP(TRIM(J1334),'Transactional Departments'!A:B,2,FALSE)","v":"Poultry Science Sum"},"17290001","","","","",""]
["17","300",null,null,"CSU/USAIDRF SUP 300-312  DAVIS","2521RC300318","20400","12100","62525","17290001",{"$f":"VLOOKUP(TRIM(J1335),'Transactional Departments'!A:B,2,FALSE)","v":"Poultry Science Sum"},"17290001","","","","",""]
["17","300",null,null,"NIAS           PATHOGEN CON KI","2521RC300320","20400","12100","64000","17290001",{"$f":"VLOOKUP(TRIM(J1336),'Transactional Departments'!A:B,2,FALSE)","v":"Poultry Science Sum"},"17290001","","","","",""]
["17","300",null,null,"USAPEEC  RF POULT TRAIN  LACY ","2521RC300328","20400","12100","64000","17290001",{"$f":"VLOOKUP(TRIM(J1337),'Transactional Departments'!A:B,2,FALSE)","v":"Poultry Science Sum"},"17290001","","","","",""]
["17","300",null,null,"USDA NIFAANML HLTH FY15  ANGLE","2521RC300331","20400","12100","61006","17290001",{"$f":"VLOOKUP(TRIM(J1338),'Transactional Departments'!A:B,2,FALSE)","v":"Poultry Science Sum"},"17290001","","","","",""]
["17","300",null,null,"USDA NIFAANML HLTH FY17  PARDU","2521RC300362","20400","12100","61006","17290001",{"$f":"VLOOKUP(TRIM(J1339),'Transactional Departments'!A:B,2,FALSE)","v":"Poultry Science Sum"},"17290001","","","","",""]
["17","300",null,null,"UF/USDA  RF RR272-726 KIMDWIVE","2521RC300363","20400","12100","62511","17290001",{"$f":"VLOOKUP(TRIM(J1340),'Transactional Departments'!A:B,2,FALSE)","v":"Poultry Science Sum"},"17290001","","","","",""]
["17","300",null,null,"PU/USDANIRF GROC PROD    SINGH","2521RC300365","20400","12100","62508","17290001",{"$f":"VLOOKUP(TRIM(J1341),'Transactional Departments'!A:B,2,FALSE)","v":"Poultry Science Sum"},"17290001","","","","",""]
["17","300",null,null,"ELANCO   RF ELA1700591   AGGRE","2521RC300367","20400","12100","64030","17290001",{"$f":"VLOOKUP(TRIM(J1342),'Transactional Departments'!A:B,2,FALSE)","v":"Poultry Science Sum"},"17290001","","","","",""]
["17","300",null,null,"ELANCO   RF ELA1700460   AGGRE","2521RC300368","20400","12100","64030","17290001",{"$f":"VLOOKUP(TRIM(J1343),'Transactional Departments'!A:B,2,FALSE)","v":"Poultry Science Sum"},"17290001","","","","",""]
["17","300",null,null,"ROYALTY DEPT/POUL SCI         ","2521RX300295","20300","12100","64RYT","17290001",{"$f":"VLOOKUP(TRIM(J1344),'Transactional Departments'!A:B,2,FALSE)","v":"Poultry Science Sum"},"17290001","","","","",""]
["17","300",null,null,"ROYALTY INV/MCDOUGALD         ","2521RX300296","20300","12100","64RYT","17290001",{"$f":"VLOOKUP(TRIM(J1345),'Transactional Departments'!A:B,2,FALSE)","v":"Poultry Science Sum"},"17290001","","","","",""]
["17","300",null,null,"ROYALTY INVENT/FULLER         ","2521RX300297","20300","12100","64RYT","17290001",{"$f":"VLOOKUP(TRIM(J1346),'Transactional Departments'!A:B,2,FALSE)","v":"Poultry Science Sum"},"17290001","","","","",""]
["17","300",null,null,"         UGARF SUPPORT POUL RS","2521RX300900","20300","12100","64ICR","17290001",{"$f":"VLOOKUP(TRIM(J1347),'Transactional Departments'!A:B,2,FALSE)","v":"Poultry Science Sum"},"17290001","","","","",""]
["17","300",null,null,"         RESIDUAL #300ES LACY ","2521RX300950","20400","12100","64RBP","17290001",{"$f":"VLOOKUP(TRIM(J1348),'Transactional Departments'!A:B,2,FALSE)","v":"Poultry Science Sum"},"17290001","","","","",""]
["17","300",null,null,"ROYALTY HOLDING POULTRY SCIENC","2521RX300980","20300","12100","64URF","17290001",{"$f":"VLOOKUP(TRIM(J1349),'Transactional Departments'!A:B,2,FALSE)","v":"Poultry Science Sum"},"17290001","","","","",""]
["17","300",null,null,"POULTRY SCIENCE RSCH F&A ADM  ","2526AC300090","15300","12200","11500","17290001",{"$f":"VLOOKUP(TRIM(J1350),'Transactional Departments'!A:B,2,FALSE)","v":"Poultry Science Sum"},"17290001","","","","",""]
["17","300",null,null,"POULTRY SCIENCE RSCH COLLEGE  ","2526DC300000","14300","12200","41500","17294100",{"$f":"VLOOKUP(TRIM(J1351),'Transactional Departments'!A:B,2,FALSE)","v":"Feed Mill"},"17294100","","","","RCS",""]
["17","300",null,null,"VISITING SCHOLAR PESTI        ","2526DC300001","14300","12200","41500","17290001",{"$f":"VLOOKUP(TRIM(J1352),'Transactional Departments'!A:B,2,FALSE)","v":"Poultry Science Sum"},"17290001","","","","",""]
["17","300",null,null,"NUTRITION EVAL & ANALYSIS-KIM ","2526DC300002","14300","12200","41500","17295500",{"$f":"VLOOKUP(TRIM(J1353),'Transactional Departments'!A:B,2,FALSE)","v":"Kim, Woo Kyun"},"17295500","","","","",""]
["17","300",null,null,"BECKSTEAD TESTING             ","2526DC300003","14300","12200","41500","17290001",{"$f":"VLOOKUP(TRIM(J1354),'Transactional Departments'!A:B,2,FALSE)","v":"Poultry Science Sum"},"17290001","","","","",""]
["17","300",null,null,"VISITING SCHOLAR AGGREY       ","2526DC300004","14300","12200","41500","17295000",{"$f":"VLOOKUP(TRIM(J1355),'Transactional Departments'!A:B,2,FALSE)","v":"Aggrey, Samuel"},"17295000","","","","RCS",""]
["17","300",null,null,"POULTRY PROCESSING FACILITY   ","2526DC300005","14300","12200","41500","17294200",{"$f":"VLOOKUP(TRIM(J1356),'Transactional Departments'!A:B,2,FALSE)","v":"Processing Plant"},"17294200","","","","RCS",""]
["17","300",null,null,"POULTRY RSCH FACILITY USAGE   ","2526DC300006","14300","12200","41500","17294600",{"$f":"VLOOKUP(TRIM(J1357),'Transactional Departments'!A:B,2,FALSE)","v":"College Station Facility"},"17294600","","","","RCS",""]
["17","300",null,null,"SERVICES - COMPTON            ","2526DC300009","14300","12200","41500","17290001",{"$f":"VLOOKUP(TRIM(J1358),'Transactional Departments'!A:B,2,FALSE)","v":"Poultry Science Sum"},"17290001","","","","RCS",""]
["17","300",null,null,"POULTRY QUALITY THIPPAREDDI   ","2526DC300010","14300","12200","41500","17295800",{"$f":"VLOOKUP(TRIM(J1359),'Transactional Departments'!A:B,2,FALSE)","v":"Thippareddi, Harshavardhan"},"17295800","","","","RCS",""]
["17","300",null,null,"PHYTATE ANALYSIS LAB PESTI    ","2526DC300016","14300","12200","41500","17295600",{"$f":"VLOOKUP(TRIM(J1360),'Transactional Departments'!A:B,2,FALSE)","v":"Pesti, Gene"},"17295600","","","","RCS",""]
["17","300",null,null,"SERVICES - MCDOUGALD          ","2526DC300153","14300","12200","41500","17295000",{"$f":"VLOOKUP(TRIM(J1361),'Transactional Departments'!A:B,2,FALSE)","v":"Aggrey, Samuel"},"17295000","","","","RCS",""]
["17","300",null,null,"POULTRY SCIENCE RSCH COLLEGE  ","2526GC300000","11300","12200","11200","17290001",{"$f":"VLOOKUP(TRIM(J1362),'Transactional Departments'!A:B,2,FALSE)","v":"Poultry Science Sum"},"17290001","","","","RCS",""]
["17","300",null,null,"POULTRY SCI RSCH DEPT ADMIN   ","2526GC300090","11300","12200","11200","17290001",{"$f":"VLOOKUP(TRIM(J1363),'Transactional Departments'!A:B,2,FALSE)","v":"Poultry Science Sum"},"17290001","","","","RCS",""]
["17","300",null,null,"PS STATE BENSON               ","2526GC300120","11300","12200","11200","17295100",{"$f":"VLOOKUP(TRIM(J1364),'Transactional Departments'!A:B,2,FALSE)","v":"Benson, Andrew"},"17295100","","","","RCS",""]
["17","300",null,null,"PS STATE DAVIS                ","2526GC300130","11300","12200","11200","17295200",{"$f":"VLOOKUP(TRIM(J1365),'Transactional Departments'!A:B,2,FALSE)","v":"Davis, Adam"},"17295200","","","","RCS",""]
["17","300",null,null,"PS STATE THIPPAREDDI          ","2526GC300150","11300","12200","11200","17295800",{"$f":"VLOOKUP(TRIM(J1366),'Transactional Departments'!A:B,2,FALSE)","v":"Thippareddi, Harshavardhan"},"17295800","","","","RCS",""]
["17","300",null,null,"PS STATE JORDAN               ","2526GC300160","11300","12200","11200","17290001",{"$f":"VLOOKUP(TRIM(J1367),'Transactional Departments'!A:B,2,FALSE)","v":"Poultry Science Sum"},"17290001","","","","RCS",""]
["17","300",null,null,"PS STATE MCDOUGAL             ","2526GC300170","11300","12200","11200","17290001",{"$f":"VLOOKUP(TRIM(J1368),'Transactional Departments'!A:B,2,FALSE)","v":"Poultry Science Sum"},"17290001","","","","RCS",""]
["17","300",null,null,"PS STATE SINGH                ","2526GC300190","11300","12200","11200","17295750",{"$f":"VLOOKUP(TRIM(J1369),'Transactional Departments'!A:B,2,FALSE)","v":"Singh, Manpreet"},"17295750","","","","RCS",""]
["17","300",null,null,"PS STATE BECKSTEAD            ","2526GC300220","11300","12200","11200","17290001",{"$f":"VLOOKUP(TRIM(J1370),'Transactional Departments'!A:B,2,FALSE)","v":"Poultry Science Sum"},"17290001","","","","RCS",""]
["17","300",null,null,"PS STATE AGGREY               ","2526GC300250","11300","12200","11200","17295000",{"$f":"VLOOKUP(TRIM(J1371),'Transactional Departments'!A:B,2,FALSE)","v":"Aggrey, Samuel"},"17295000","","","","RCS",""]
["17","300",null,null,"PS STATE WILSON               ","2526GC300260","11300","12200","11200","17295900",{"$f":"VLOOKUP(TRIM(J1372),'Transactional Departments'!A:B,2,FALSE)","v":"Wilson, Jeanna"},"17295900","","","","RCS",""]
["17","300",null,null,"PS STATE NAVARRA              ","2526GC300280","11300","12200","11200","17295550",{"$f":"VLOOKUP(TRIM(J1373),'Transactional Departments'!A:B,2,FALSE)","v":"Navara, Kristen"},"17295550","","","","RCS",""]
["17","300",null,null,"PS STATE KIM                  ","2526GC300300","11300","12200","11200","17295500",{"$f":"VLOOKUP(TRIM(J1374),'Transactional Departments'!A:B,2,FALSE)","v":"Kim, Woo Kyun"},"17295500","","","","RCS",""]
["17","300",null,null,"PS STATE ELLESTAD             ","2526GC300320","11300","12200","11200","17295300",{"$f":"VLOOKUP(TRIM(J1375),'Transactional Departments'!A:B,2,FALSE)","v":"Ellestad, Laura"},"17295300","","","","RCS",""]
["17","300",null,null,"PS STATE SELVARAJ             ","2526GC300330","11300","12200","11200","17295700",{"$f":"VLOOKUP(TRIM(J1376),'Transactional Departments'!A:B,2,FALSE)","v":"Selvaraj, Ramesh"},"17295700","","","","RCS",""]
["17","300",null,null,"POULTRY SCIENCE RSCH COLLEGE  ","2571GC300000","11300","17100","11200","17294000",{"$f":"VLOOKUP(TRIM(J1377),'Transactional Departments'!A:B,2,FALSE)","v":"Farm"},"17294000","","","","RCS",""]
["17","300",null,null,"POULTRY SCIENCE - UTILITIES   ","2571GC300005","11300","17100","11200","17290001",{"$f":"VLOOKUP(TRIM(J1378),'Transactional Departments'!A:B,2,FALSE)","v":"Poultry Science Sum"},"17290001","","","","RCS",""]
["17","303",null,null,"DEAN AND DIRECTOR F&A ADM     ","2526AB303090","15300","12200","11500","17100001",{"$f":"VLOOKUP(TRIM(J1379),'Transactional Departments'!A:B,2,FALSE)","v":"CAES Dean & Director Sum"},"17100001","","","","",""]
["17","303",null,null,"DEAN & DIRECTORS OFFIC GENERAL","2526GB303000","11300","12200","11200","17100001",{"$f":"VLOOKUP(TRIM(J1380),'Transactional Departments'!A:B,2,FALSE)","v":"CAES Dean & Director Sum"},"17100001","","","","",""]
["17","303",null,null,"DEAN & DIRECTOR OFF DEPT ADMIN","2526GB303090","11300","12200","11200","17100001",{"$f":"VLOOKUP(TRIM(J1381),'Transactional Departments'!A:B,2,FALSE)","v":"CAES Dean & Director Sum"},"17100001","","","","",""]
["17","303",null,null,"PUBLIC AFFAIRS                ","2526GB303100","11300","12200","11200","17180001",{"$f":"VLOOKUP(TRIM(J1382),'Transactional Departments'!A:B,2,FALSE)","v":"Pubic Affairs Sum"},"17180001","","","","",""]
["17","304",null,null,"ADS EATONTON BEEF FARM        ","2526DD304000","14300","12200","41500","17239001",{"$f":"VLOOKUP(TRIM(J1383),'Transactional Departments'!A:B,2,FALSE)","v":"ADS Beef/Sheep"},"17239001","","","","RGS",""]
["17","304",null,null,"ADS EATONTON BEEF FARM        ","2526GD304000","11300","12200","11200","17239001",{"$f":"VLOOKUP(TRIM(J1384),'Transactional Departments'!A:B,2,FALSE)","v":"ADS Beef/Sheep"},"17239001","","","","RGS",""]
["17","304",null,null,"UTILITIES                     ","2571DD304005","14300","17100","41500","17239001",{"$f":"VLOOKUP(TRIM(J1385),'Transactional Departments'!A:B,2,FALSE)","v":"ADS Beef/Sheep"},"17239001","","","","RGS",""]
["17","304",null,null,"ADS EATONTON BEEF FARM        ","2571GD304000","11300","17100","11200","17239001",{"$f":"VLOOKUP(TRIM(J1386),'Transactional Departments'!A:B,2,FALSE)","v":"ADS Beef/Sheep"},"17239001","","","","RGS",""]
["17","305",null,null,"J. PHIL CAMPBELL REC          ","2526DC305003","14300","12200","41500","17511001",{"$f":"VLOOKUP(TRIM(J1387),'Transactional Departments'!A:B,2,FALSE)","v":"JPC Sum"},"17511001","","","","RCS",""]
["17","305",null,null,"J. PHIL CAMPBELL REC          ","2526GC305003","11300","12200","11200","17511001",{"$f":"VLOOKUP(TRIM(J1388),'Transactional Departments'!A:B,2,FALSE)","v":"JPC Sum"},"17511001","","","","RCS",""]
["17","305",null,null,"J PHIL CAMPBELL REC ADMIN     ","2526GC305090","11300","12200","11200","17511001",{"$f":"VLOOKUP(TRIM(J1389),'Transactional Departments'!A:B,2,FALSE)","v":"JPC Sum"},"17511001","","","","RCS",""]
["17","306",null,null,"FIELD RESEARCH SVCS    GEORGIA","2526DD306000","14300","12200","41500","17607000",{"$f":"VLOOKUP(TRIM(J1390),'Transactional Departments'!A:B,2,FALSE)","v":"Field Research Services"},"17607000","","","","RGS",""]
["17","306",null,null,"AGRO FORESTRY FIELD DAY       ","2526DW306001","14300","12200","41500","17607000",{"$f":"VLOOKUP(TRIM(J1391),'Transactional Departments'!A:B,2,FALSE)","v":"Field Research Services"},"17607000","","","","",""]
["17","306",null,null,"FIELD RESEARCH SVCS    GEORGIA","2526GD306000","11300","12200","11200","17607000",{"$f":"VLOOKUP(TRIM(J1392),'Transactional Departments'!A:B,2,FALSE)","v":"Field Research Services"},"17607000","","","","RGS",""]
["17","306",null,null,"FIELD RSCH SVCS DEPT ADMIN    ","2526GD306090","11300","12200","11200","17607000",{"$f":"VLOOKUP(TRIM(J1393),'Transactional Departments'!A:B,2,FALSE)","v":"Field Research Services"},"17607000","","","","RGS",""]
["17","306",null,null,"FIELD RESEARCH SVCS    GEORGIA","2571GD306000","11300","17100","11200","17607000",{"$f":"VLOOKUP(TRIM(J1394),'Transactional Departments'!A:B,2,FALSE)","v":"Field Research Services"},"17607000","","","","RGS",""]
["17","306",null,null,"FIELD RESEARCH M&O            ","2571GD306020","11300","17100","11200","17607000",{"$f":"VLOOKUP(TRIM(J1395),'Transactional Departments'!A:B,2,FALSE)","v":"Field Research Services"},"17607000","","","","RGS",""]
["17","307",null,null,"TECHNOLOGY SERVICES GEORGIA   ","2526GD307000","11300","12200","11200","17102001",{"$f":"VLOOKUP(TRIM(J1396),'Transactional Departments'!A:B,2,FALSE)","v":"Griffin Campus Sum"},"17102001","","","","RGS",""]
["17","308",null,null,"UGAF     GARNER SUP FUND LEE  ","2521RD308023","20200","12100","67802","17620000",{"$f":"VLOOKUP(TRIM(J1397),'Transactional Departments'!A:B,2,FALSE)","v":"Georgia Mountain REC"},"17620000","","","","",""]
["17","308",null,null,"MOUNTAIN RSCH & ED CTR GEORGIA","2526DD308000","14300","12200","41500","17620000",{"$f":"VLOOKUP(TRIM(J1398),'Transactional Departments'!A:B,2,FALSE)","v":"Georgia Mountain REC"},"17620000","","","","RGS",""]
["17","308",null,null,"MOUNTAIN RSCH & ED CTR GEORGIA","2526GD308000","11300","12200","11200","17620000",{"$f":"VLOOKUP(TRIM(J1399),'Transactional Departments'!A:B,2,FALSE)","v":"Georgia Mountain REC"},"17620000","","","","RGS",""]
["17","308",null,null,"GA MOUNTAIN STA DEPT ADMIN    ","2526GD308090","11300","12200","11200","17620000",{"$f":"VLOOKUP(TRIM(J1400),'Transactional Departments'!A:B,2,FALSE)","v":"Georgia Mountain REC"},"17620000","","","","RGS",""]
["17","308",null,null,"UTILITIES                     ","2571DD308005","14300","17100","41500","17620000",{"$f":"VLOOKUP(TRIM(J1401),'Transactional Departments'!A:B,2,FALSE)","v":"Georgia Mountain REC"},"17620000","","","","",""]
["17","308",null,null,"MOUNTAIN RSCH & ED CTR GEORGIA","2571GD308000","11300","17100","11200","17620000",{"$f":"VLOOKUP(TRIM(J1402),'Transactional Departments'!A:B,2,FALSE)","v":"Georgia Mountain REC"},"17620000","","","","RGS",""]
["17","308",null,null,"GA MOUNTAIN UTILITIES         ","2571GD308005","11300","17100","11200","17620000",{"$f":"VLOOKUP(TRIM(J1403),'Transactional Departments'!A:B,2,FALSE)","v":"Georgia Mountain REC"},"17620000","","","","RGS",""]
["17","309",null,null,"UGAF     KIDS ENRICH UNIVLEE  ","1031RE309070","20200","13100","67613","17102001",{"$f":"VLOOKUP(TRIM(J1404),'Transactional Departments'!A:B,2,FALSE)","v":"Griffin Campus Sum"},"17102001","","","","",""]
["17","309",null,null,"USDA     RF SARE FY10-15 JORDA","2521RD309109","20400","12100","61002","17102001",{"$f":"VLOOKUP(TRIM(J1405),'Transactional Departments'!A:B,2,FALSE)","v":"Griffin Campus Sum"},"17102001","","","","",""]
["17","309",null,null,"USDA     RF SARE 11-16   JORDA","2521RD309117","20400","12100","61002","17102001",{"$f":"VLOOKUP(TRIM(J1406),'Transactional Departments'!A:B,2,FALSE)","v":"Griffin Campus Sum"},"17102001","","","","",""]
["17","309",null,null,"UGAF     RESEARCH GARDEN ARKIN","2521RD309120","20200","12100","67803","17102001",{"$f":"VLOOKUP(TRIM(J1407),'Transactional Departments'!A:B,2,FALSE)","v":"Griffin Campus Sum"},"17102001","","","","",""]
["17","309",null,null,"UGAF     CONS & SENS PRG LEE  ","2521RD309121","20200","12100","67804","17102001",{"$f":"VLOOKUP(TRIM(J1408),'Transactional Departments'!A:B,2,FALSE)","v":"Griffin Campus Sum"},"17102001","","","","",""]
["17","309",null,null,"MSU/USDA RF SOUTHERN SAREJORDA","2521RD309133","20400","12100","62529","17102001",{"$f":"VLOOKUP(TRIM(J1409),'Transactional Departments'!A:B,2,FALSE)","v":"Griffin Campus Sum"},"17102001","","","","",""]
["17","309",null,null,"USDA     RF GOODS & SERV BRAMA","2521RD309135","20400","12100","61002","17102001",{"$f":"VLOOKUP(TRIM(J1410),'Transactional Departments'!A:B,2,FALSE)","v":"Griffin Campus Sum"},"17102001","","","","",""]
["17","309",null,null,"USDA     RF GOODS & SERV BRAMA","2521RD309136","20400","12100","61002","17102001",{"$f":"VLOOKUP(TRIM(J1411),'Transactional Departments'!A:B,2,FALSE)","v":"Griffin Campus Sum"},"17102001","","","","",""]
["17","309",null,null,"UGAF     CAES GRIFFIN IPRPARDU","2521RD309140","20200","12100","67805","17102001",{"$f":"VLOOKUP(TRIM(J1412),'Transactional Departments'!A:B,2,FALSE)","v":"Griffin Campus Sum"},"17102001","","","","",""]
["17","309",null,null,"UGAF     WOODRUFF AG PAVIPARDU","2521RD309141","20200","12100","","17102001",{"$f":"VLOOKUP(TRIM(J1413),'Transactional Departments'!A:B,2,FALSE)","v":"Griffin Campus Sum"},"17102001","","","","",""]
["17","309",null,null,"USDA     RF SARE PROGRAM JORDA","2521RD309144","20400","12100","61006","17102001",{"$f":"VLOOKUP(TRIM(J1414),'Transactional Departments'!A:B,2,FALSE)","v":"Griffin Campus Sum"},"17102001","","","","",""]
["17","309",null,null,"         UGARF SUPPORT DIR OFF","2521RX309900","20300","12100","64ICR","17102001",{"$f":"VLOOKUP(TRIM(J1415),'Transactional Departments'!A:B,2,FALSE)","v":"Griffin Campus Sum"},"17102001","","","","",""]
["17","309",null,null,"         RESIDUAL #309ES ARKIN","2521RX309950","20400","12100","64RBP","17102001",{"$f":"VLOOKUP(TRIM(J1416),'Transactional Departments'!A:B,2,FALSE)","v":"Griffin Campus Sum"},"17102001","","","","",""]
["17","309",null,null,"FOOD PROD INNOVATION & COM CTR","2526DD309003","14300","12200","41500","17261001",{"$f":"VLOOKUP(TRIM(J1417),'Transactional Departments'!A:B,2,FALSE)","v":"Food PIC Sum"},"17261001","","","","RGS",""]
["17","309",null,null,"RSCH GRDN WKSHP-CTR URBAN AG  ","2526DW309805","14300","12200","41500","17609000",{"$f":"VLOOKUP(TRIM(J1418),'Transactional Departments'!A:B,2,FALSE)","v":"Urban Ag"},"17609000","","","","RGS",""]
["17","309",null,null,"CAMPUS DIRECTOR-GRIFFIN       ","2526GD309000","11300","12200","11200","17102001",{"$f":"VLOOKUP(TRIM(J1419),'Transactional Departments'!A:B,2,FALSE)","v":"Griffin Campus Sum"},"17102001","","","","RGS",""]
["17","309",null,null,"ENVIROTRON-ASSIST DEANS OF  GA","2526GD309007","11300","12200","11200","17102001",{"$f":"VLOOKUP(TRIM(J1420),'Transactional Departments'!A:B,2,FALSE)","v":"Griffin Campus Sum"},"17102001","","","","RGS",""]
["17","309",null,null,"URBAN AG      -        GEORGIA","2526GD309008","11300","12200","11200","17609000",{"$f":"VLOOKUP(TRIM(J1421),'Transactional Departments'!A:B,2,FALSE)","v":"Urban Ag"},"17609000","","","","RGS",""]
["17","309",null,null,"TURF TEAM - GRIFFIN           ","2526GD309010","11300","12200","11200","17102001",{"$f":"VLOOKUP(TRIM(J1422),'Transactional Departments'!A:B,2,FALSE)","v":"Griffin Campus Sum"},"17102001","","","","RGS",""]
["17","309",null,null,"YOUNG SCHOLARS-GRIFFIN        ","2526GD309016","11300","12200","11200","17410200",{"$f":"VLOOKUP(TRIM(J1423),'Transactional Departments'!A:B,2,FALSE)","v":"Young Scholars"},"17410200","","","","RGS",""]
["17","309",null,null,"ASST DEAN GRIFFIN DEPT ADMIN  ","2526GD309090","11300","12200","11200","17102200",{"$f":"VLOOKUP(TRIM(J1424),'Transactional Departments'!A:B,2,FALSE)","v":"Griffin Office Admin"},"17102200","","","","RGS",""]
["17","309",null,null,"FOOD PRODUCT INNOVATION CTR   ","2526GD309100","11300","12200","11200","17261001",{"$f":"VLOOKUP(TRIM(J1425),'Transactional Departments'!A:B,2,FALSE)","v":"Food PIC Sum"},"17261001","","","","RGS",""]
["17","309",null,null,"GRIFFIN CAMPUS TECHNOLOGY SERV","2526GD309200","11300","12200","11200","17102001",{"$f":"VLOOKUP(TRIM(J1426),'Transactional Departments'!A:B,2,FALSE)","v":"Griffin Campus Sum"},"17102001","","","","RGS",""]
["17","309",null,null,"USDC     FOOD PROD INNOV ARKIN","8062RY309128","50100","17620","61009","17102001",{"$f":"VLOOKUP(TRIM(J1427),'Transactional Departments'!A:B,2,FALSE)","v":"Griffin Campus Sum"},"17102001","","","","",""]
["17","310",null,null,"BUS OFF GRIFFIN RSCH F&A ADM  ","2526AD310090","15300","12200","11500","17603000",{"$f":"VLOOKUP(TRIM(J1428),'Transactional Departments'!A:B,2,FALSE)","v":"Griffin Business Office"},"17603000","","","","",""]
["17","310",null,null,"BUSINESS OFFICE        GEORGIA","2526GD310000","11300","12200","11200","17603000",{"$f":"VLOOKUP(TRIM(J1429),'Transactional Departments'!A:B,2,FALSE)","v":"Griffin Business Office"},"17603000","","","","RGS",""]
["17","310",null,null,"BUSINESS OFFICE GA DEPT ADMIN ","2526GD310090","11300","12200","11200","17603000",{"$f":"VLOOKUP(TRIM(J1430),'Transactional Departments'!A:B,2,FALSE)","v":"Griffin Business Office"},"17603000","","","","RGS",""]
["17","311",null,null,"GENERAL EXPENSE        GEORGIA","2526AD311000","15300","12200","11500","17602200",{"$f":"VLOOKUP(TRIM(J1431),'Transactional Departments'!A:B,2,FALSE)","v":"CAES General Expense"},"17602200","","","","",""]
["17","311",null,null,"GENERAL EXPENSE        GEORGIA","2526DD311000","14300","12200","41500","17602200",{"$f":"VLOOKUP(TRIM(J1432),'Transactional Departments'!A:B,2,FALSE)","v":"CAES General Expense"},"17602200","","","","RGS",""]
["17","311",null,null,"GENERAL EXPENSE        GEORGIA","2526GD311000","11300","12200","11200","17602200",{"$f":"VLOOKUP(TRIM(J1433),'Transactional Departments'!A:B,2,FALSE)","v":"CAES General Expense"},"17602200","","","","RGS",""]
["17","311",null,null,"GENERAL EXPENSE        GEORGIA","2541GD311000","11300","14100","11200","17602200",{"$f":"VLOOKUP(TRIM(J1434),'Transactional Departments'!A:B,2,FALSE)","v":"CAES General Expense"},"17602200","","","","RGS",""]
["17","311",null,null,"GENERAL EXPENSE        GEORGIA","2571GD311000","11300","17100","11200","17602200",{"$f":"VLOOKUP(TRIM(J1435),'Transactional Departments'!A:B,2,FALSE)","v":"CAES General Expense"},"17602200","","","","RGS",""]
["17","312",null,null,"PHYSICAL PLANT UTILITIES - IDC","2571AD312005","15300","17100","11500","17604000",{"$f":"VLOOKUP(TRIM(J1436),'Transactional Departments'!A:B,2,FALSE)","v":"Griffin Facilites Mgmt"},"17604000","","","","",""]
["17","312",null,null,"PHYSICAL PLANT         GEORGIA","2571GD312000","11300","17100","11200","17604000",{"$f":"VLOOKUP(TRIM(J1437),'Transactional Departments'!A:B,2,FALSE)","v":"Griffin Facilites Mgmt"},"17604000","","","","RGS",""]
["17","312",null,null,"PHYSICAL PLANT - UTILITIES    ","2571GD312005","11300","17100","11200","17604000",{"$f":"VLOOKUP(TRIM(J1438),'Transactional Departments'!A:B,2,FALSE)","v":"Griffin Facilites Mgmt"},"17604000","","","","RGS",""]
["17","313",null,null,"LIBRARY                GEORGIA","2541GD313000","11300","14100","11200","17605000",{"$f":"VLOOKUP(TRIM(J1439),'Transactional Departments'!A:B,2,FALSE)","v":"Griffin Library"},"17605000","","","","RGS",""]
["17","314",null,null,"USAID    RF W/ 710-023 FLORKOW","2521RD314168","20400","12100","61028","17210001",{"$f":"VLOOKUP(TRIM(J1440),'Transactional Departments'!A:B,2,FALSE)","v":"Ag Econ Sum"},"17210001","","","","",""]
["17","314",null,null,"USDA     RF KOSTNDNI W/309-117","2521RD314171","20400","12100","61002","17210001",{"$f":"VLOOKUP(TRIM(J1441),'Transactional Departments'!A:B,2,FALSE)","v":"Ag Econ Sum"},"17210001","","","","",""]
["17","314",null,null,"USAID    RF W/710-023         ","2521RD314209","20400","12100","61028","17210001",{"$f":"VLOOKUP(TRIM(J1442),'Transactional Departments'!A:B,2,FALSE)","v":"Ag Econ Sum"},"17210001","","","","",""]
["17","314",null,null,"GACCP    RF A&P FARM BILLFLETC","2521RD314220","20400","12100","62002","17210001",{"$f":"VLOOKUP(TRIM(J1443),'Transactional Departments'!A:B,2,FALSE)","v":"Ag Econ Sum"},"17210001","","","","",""]
["17","314",null,null,"GACCP    RF FARM BILL 14 FLETC","2521RD314222","20400","12100","62002","17210001",{"$f":"VLOOKUP(TRIM(J1444),'Transactional Departments'!A:B,2,FALSE)","v":"Ag Econ Sum"},"17210001","","","","",""]
["17","314",null,null,"GACCP    RF PNUT COMP    FLETC","2521RD314223","20400","12100","62002","17210001",{"$f":"VLOOKUP(TRIM(J1445),'Transactional Departments'!A:B,2,FALSE)","v":"Ag Econ Sum"},"17210001","","","","",""]
["17","314",null,null,"NPB      RF MULTI ECO ANAFLETC","2521RD314224","20400","12100","64000","17210001",{"$f":"VLOOKUP(TRIM(J1446),'Transactional Departments'!A:B,2,FALSE)","v":"Ag Econ Sum"},"17210001","","","","",""]
["17","314",null,null,"VA/USAID RF CLIMATE      KOSTA","2521RD314225","20400","12100","62519","17210001",{"$f":"VLOOKUP(TRIM(J1447),'Transactional Departments'!A:B,2,FALSE)","v":"Ag Econ Sum"},"17210001","","","","",""]
["17","314",null,null,"GCCP/NPB RF MARKETS      FLETC","2521RD314233","20400","12100","62002","17210001",{"$f":"VLOOKUP(TRIM(J1448),'Transactional Departments'!A:B,2,FALSE)","v":"Ag Econ Sum"},"17210001","","","","",""]
["17","314",null,null,"         UGARF SUPPORT AG ECON","2521RX314900","20300","12100","64ICR","17210001",{"$f":"VLOOKUP(TRIM(J1449),'Transactional Departments'!A:B,2,FALSE)","v":"Ag Econ Sum"},"17210001","","","","RGS",""]
["17","314",null,null,"         RESIDUAL #314ES WHITE","2521RX314950","20400","12100","64RBP","17210001",{"$f":"VLOOKUP(TRIM(J1450),'Transactional Departments'!A:B,2,FALSE)","v":"Ag Econ Sum"},"17210001","","","","RGS",""]
["17","314",null,null,"POVERTY & EDUCATION IN GEORGIA","2526DD314001","14300","12200","41500","17210001",{"$f":"VLOOKUP(TRIM(J1451),'Transactional Departments'!A:B,2,FALSE)","v":"Ag Econ Sum"},"17210001","","","","RGS",""]
["17","314",null,null,"AG & APPLIED ECON RSCH GEORGIA","2526GD314000","11300","12200","11200","17210001",{"$f":"VLOOKUP(TRIM(J1452),'Transactional Departments'!A:B,2,FALSE)","v":"Ag Econ Sum"},"17210001","","","","RGS",""]
["17","314",null,null,"AG & APPLIED ECON  DEPT ADMIN ","2526GD314090","11300","12200","11200","17210001",{"$f":"VLOOKUP(TRIM(J1453),'Transactional Departments'!A:B,2,FALSE)","v":"Ag Econ Sum"},"17210001","","","","RGS",""]
["17","314",null,null,"AAE STATE FLETCHER            ","2526GD314100","11300","12200","11200","17210910",{"$f":"VLOOKUP(TRIM(J1454),'Transactional Departments'!A:B,2,FALSE)","v":"Fletcher, Stanley"},"17210910","","","","RGS",""]
["17","314",null,null,"AAE STATE FLORKOWSKI          ","2526GD314110","11300","12200","11200","17210700",{"$f":"VLOOKUP(TRIM(J1455),'Transactional Departments'!A:B,2,FALSE)","v":"Florkowski, Wojciech J"},"17210700","","","","RGS",""]
["17","314",null,null,"AAE STATE JORDAN              ","2526GD314130","11300","12200","11200","17210710",{"$f":"VLOOKUP(TRIM(J1456),'Transactional Departments'!A:B,2,FALSE)","v":"Jordan, Jeffery"},"17210710","","","","RGS",""]
["17","314",null,null,"AAE STATE KOSTANDINI          ","2526GD314150","11300","12200","11200","17210720",{"$f":"VLOOKUP(TRIM(J1457),'Transactional Departments'!A:B,2,FALSE)","v":"Kostandini, Gentian"},"17210720","","","","RGS",""]
["17","315",null,null,"         UGARF SUPPORT AG ENGR","2521RX315900","20300","12100","64ICR","17120001",{"$f":"VLOOKUP(TRIM(J1458),'Transactional Departments'!A:B,2,FALSE)","v":"CAES Assoc Dean Rsch Sum"},"17120001","","","","",""]
["17","315",null,null,"         RESIDUAL #315ES THREA","2521RX315950","20400","12100","64RBP","17120001",{"$f":"VLOOKUP(TRIM(J1459),'Transactional Departments'!A:B,2,FALSE)","v":"CAES Assoc Dean Rsch Sum"},"17120001","","","","",""]
["17","316",null,null,"UGARF    GSDC SMALL GRNS MERGO","2521RD316167","20300","12100","64URF","17242MER",{"$f":"VLOOKUP(TRIM(J1460),'Transactional Departments'!A:B,2,FALSE)","v":"Merguom, Mohamed"},"17242MER","","","","",""]
["17","316",null,null,"UGARF    GSDC SEASHORE   RAYME","2521RD316302","20300","12100","64URF","17242RAY",{"$f":"VLOOKUP(TRIM(J1461),'Transactional Departments'!A:B,2,FALSE)","v":"Raymer, Paul"},"17242RAY","","","","",""]
["17","316",null,null,"UGARF    GSDC SEASHORE   CHEN ","2521RD316327","20300","12100","64URF","17242ZHC",{"$f":"VLOOKUP(TRIM(J1462),'Transactional Departments'!A:B,2,FALSE)","v":"Chen, Zhenbang"},"17242ZHC","","","","",""]
["17","316",null,null,"UGARF    GSDC 93         CHEN ","2521RD316331","20300","12100","64URF","17242ZHC",{"$f":"VLOOKUP(TRIM(J1463),'Transactional Departments'!A:B,2,FALSE)","v":"Chen, Zhenbang"},"17242ZHC","","","","",""]
["17","316",null,null,"UGARF    GSDC SEASHORE   MCCUL","2521RD316342","20300","12100","64URF","17242MCC",{"$f":"VLOOKUP(TRIM(J1464),'Transactional Departments'!A:B,2,FALSE)","v":"McCullough, Patrick"},"17242MCC","","","","",""]
["17","316",null,null,"UGARF    GSDC ZOYSIAGRASSRAYME","2521RD316343","20300","12100","64URF","17242RAY",{"$f":"VLOOKUP(TRIM(J1465),'Transactional Departments'!A:B,2,FALSE)","v":"Raymer, Paul"},"17242RAY","","","","",""]
["17","316",null,null,"GTRC     RF WASTEWATER   HABTE","2521RD316369","20400","12100","64000","17240001",{"$f":"VLOOKUP(TRIM(J1466),'Transactional Departments'!A:B,2,FALSE)","v":"CSS Sum"},"17240001","","","","",""]
["17","316",null,null,"         RF TURFGRASS    LECLE","2521RD316375","20400","12100","64147","17240001",{"$f":"VLOOKUP(TRIM(J1467),'Transactional Departments'!A:B,2,FALSE)","v":"CSS Sum"},"17240001","","","","",""]
["17","316",null,null,"GACCP    RF GENOMIC CTRL LECLE","2521RD316377","20400","12100","62002","17240001",{"$f":"VLOOKUP(TRIM(J1468),'Transactional Departments'!A:B,2,FALSE)","v":"CSS Sum"},"17240001","","","","",""]
["17","316",null,null,"USGA     RF SOIL WATER   RAYME","2521RD316378","20400","12100","64191","17240001",{"$f":"VLOOKUP(TRIM(J1469),'Transactional Departments'!A:B,2,FALSE)","v":"CSS Sum"},"17240001","","","","",""]
["17","316",null,null,"GIT/USDI RF WASTEWATER   HABTE","2521RD316381","20400","12100","64000","17240001",{"$f":"VLOOKUP(TRIM(J1470),'Transactional Departments'!A:B,2,FALSE)","v":"CSS Sum"},"17240001","","","","",""]
["17","316",null,null,"AQUATROLSRF ENZYME APPLICRAYME","2521RD316388","20400","12100","64000","17240001",{"$f":"VLOOKUP(TRIM(J1471),'Transactional Departments'!A:B,2,FALSE)","v":"CSS Sum"},"17240001","","","","",""]
["17","316",null,null,"GCCC     WEATHER NETWORK FLITC","2521RD316389","20400","12100","62001","17240001",{"$f":"VLOOKUP(TRIM(J1472),'Transactional Departments'!A:B,2,FALSE)","v":"CSS Sum"},"17240001","","","","",""]
["17","316",null,null,"GACCP    RF SINGLE V TWINLECLE","2521RD316392","20400","12100","62002","17240001",{"$f":"VLOOKUP(TRIM(J1473),'Transactional Departments'!A:B,2,FALSE)","v":"CSS Sum"},"17240001","","","","",""]
["17","316",null,null,"UGARF    GSDC SEA SHORE  JESPE","2521RD316410","20300","12100","64URF","17242JES",{"$f":"VLOOKUP(TRIM(J1474),'Transactional Departments'!A:B,2,FALSE)","v":"Jesperson, David"},"17242JES","","","","",""]
["17","316",null,null,"GIT/NASA RF EVAPOTRANS   LECLE","2521RD316417","20400","12100","62021","17240001",{"$f":"VLOOKUP(TRIM(J1475),'Transactional Departments'!A:B,2,FALSE)","v":"CSS Sum"},"17240001","","","","",""]
["17","316",null,null,"PIONEER  RF RF17 WHEAT VAMERGO","2521RD316424","20400","12100","64017","17240001",{"$f":"VLOOKUP(TRIM(J1476),'Transactional Departments'!A:B,2,FALSE)","v":"CSS Sum"},"17240001","","","","",""]
["17","316",null,null,"ROYALTY INVTR/JOHNSON         ","2521RX316050","20300","12100","64RYT","17242JJO",{"$f":"VLOOKUP(TRIM(J1477),'Transactional Departments'!A:B,2,FALSE)","v":"Johnson, Jerry"},"17242JJO","","","","",""]
["17","316",null,null,"ROYALTY INVNTR/RAYMER         ","2521RX316051","20300","12100","64RYT","17242RAY",{"$f":"VLOOKUP(TRIM(J1478),'Transactional Departments'!A:B,2,FALSE)","v":"Raymer, Paul"},"17242RAY","","","","",""]
["17","316",null,null,"ROYALTY SUNGRAINS JOHNSON     ","2521RX316346","20400","12100","62502","17240001",{"$f":"VLOOKUP(TRIM(J1479),'Transactional Departments'!A:B,2,FALSE)","v":"CSS Sum"},"17240001","","","","",""]
["17","316",null,null,"ROYALTY CARROW                ","2521RX316371","20300","12100","64RYT","17240001",{"$f":"VLOOKUP(TRIM(J1480),'Transactional Departments'!A:B,2,FALSE)","v":"CSS Sum"},"17240001","","","","",""]
["17","316",null,null,"ROYALTY MERGOUM RX284-529     ","2521RX316393","20300","12100","64URF","17240001",{"$f":"VLOOKUP(TRIM(J1481),'Transactional Departments'!A:B,2,FALSE)","v":"CSS Sum"},"17240001","","","","",""]
["17","316",null,null,"ROYALTY SUNGRAINS MERGOUM     ","2521RX316420","20300","12100","64RYT","17242MER",{"$f":"VLOOKUP(TRIM(J1482),'Transactional Departments'!A:B,2,FALSE)","v":"Merguom, Mohamed"},"17242MER","","","","",""]
["17","316",null,null,"         UGARF SUPPORT AGR RSH","2521RX316900","20300","12100","64ICR","17240001",{"$f":"VLOOKUP(TRIM(J1483),'Transactional Departments'!A:B,2,FALSE)","v":"CSS Sum"},"17240001","","","","",""]
["17","316",null,null,"         RESIDUAL #316   SHILL","2521RX316950","20400","12100","64RBP","17241CSS",{"$f":"VLOOKUP(TRIM(J1484),'Transactional Departments'!A:B,2,FALSE)","v":"CSS Department"},"17241CSS","","","","",""]
["17","316",null,null,"CROP & SOIL SCIENCES   GEORGIA","2526DD316000","14300","12200","41500","17240001",{"$f":"VLOOKUP(TRIM(J1485),'Transactional Departments'!A:B,2,FALSE)","v":"CSS Sum"},"17240001","","","","",""]
["17","316",null,null,"USDA UVB MONITORING PROGRAM   ","2526DD316001","14300","12200","41500","17240001",{"$f":"VLOOKUP(TRIM(J1486),'Transactional Departments'!A:B,2,FALSE)","v":"CSS Sum"},"17240001","","","","RGS",""]
["17","316",null,null,"SALES & SERVICE HUANG         ","2526DD316003","14300","12200","41500","17242HUA",{"$f":"VLOOKUP(TRIM(J1487),'Transactional Departments'!A:B,2,FALSE)","v":"Huang, Jack"},"17242HUA","","","","RGS",""]
["17","316",null,null,"SALES & SERVICE MUSSIE        ","2526DD316004","14300","12200","41500","17242HAB",{"$f":"VLOOKUP(TRIM(J1488),'Transactional Departments'!A:B,2,FALSE)","v":"Habtelassie, Mussie"},"17242HAB","","","","RGS",""]
["17","316",null,null,"DEPARTMENTAL BENCH FEE        ","2526DD316005","14300","12200","41500","17240001",{"$f":"VLOOKUP(TRIM(J1489),'Transactional Departments'!A:B,2,FALSE)","v":"CSS Sum"},"17240001","","","","RGS",""]
["17","316",null,null,"CHEN GENOTYPE                 ","2526DD316006","14300","12200","41500","17242ZHC",{"$f":"VLOOKUP(TRIM(J1490),'Transactional Departments'!A:B,2,FALSE)","v":"Chen, Zhenbang"},"17242ZHC","","","","RGS",""]
["17","316",null,null,"JOHNSON PRODUCT TESTING       ","2526DD316008","14300","12200","41500","17240001",{"$f":"VLOOKUP(TRIM(J1491),'Transactional Departments'!A:B,2,FALSE)","v":"CSS Sum"},"17240001","","","","",""]
["17","316",null,null,"SALES AND SERVICE MAILHOT     ","2526DD316200","14300","12200","41500","17245SWV",{"$f":"VLOOKUP(TRIM(J1492),'Transactional Departments'!A:B,2,FALSE)","v":"Mailhot, Daniel"},"17245SWV","","","","RGS",""]
["17","316",null,null,"CROP & SOIL SCIENCES   GEORGIA","2526GD316000","11300","12200","11200","17240001",{"$f":"VLOOKUP(TRIM(J1493),'Transactional Departments'!A:B,2,FALSE)","v":"CSS Sum"},"17240001","","","","RGS",""]
["17","316",null,null,"WEATHER STATION ADMIN SUPPORT ","2526GD316013","11300","12200","11200","17246CSS",{"$f":"VLOOKUP(TRIM(J1494),'Transactional Departments'!A:B,2,FALSE)","v":"CSS Department Weather Network"},"17246CSS","","","","RGS",""]
["17","316",null,null,"CROP & SOIL SCI  DEPT ADMIN   ","2526GD316090","11300","12200","11200","17241CSS",{"$f":"VLOOKUP(TRIM(J1495),'Transactional Departments'!A:B,2,FALSE)","v":"CSS Department"},"17241CSS","","","","RGS",""]
["17","316",null,null,"CSS STATE MCCULLOUGH          ","2526GD316100","11300","12200","11200","17242MCC",{"$f":"VLOOKUP(TRIM(J1496),'Transactional Departments'!A:B,2,FALSE)","v":"McCullough, Patrick"},"17242MCC","","","","RGS",""]
["17","316",null,null,"CSS STATE MUSSIE              ","2526GD316110","11300","12200","11200","17242HAB",{"$f":"VLOOKUP(TRIM(J1497),'Transactional Departments'!A:B,2,FALSE)","v":"Habtelassie, Mussie"},"17242HAB","","","","RGS",""]
["17","316",null,null,"CSS STATE HUANG               ","2526GD316130","11300","12200","11200","17242HUA",{"$f":"VLOOKUP(TRIM(J1498),'Transactional Departments'!A:B,2,FALSE)","v":"Huang, Jack"},"17242HUA","","","","RGS",""]
["17","316",null,null,"CSS STATE JOHNSON             ","2526GD316140","11300","12200","11200","17242JJO",{"$f":"VLOOKUP(TRIM(J1499),'Transactional Departments'!A:B,2,FALSE)","v":"Johnson, Jerry"},"17242JJO","","","","RGS",""]
["17","316",null,null,"CSS STATE LECLERC             ","2526GD316150","11300","12200","11200","17242LEC",{"$f":"VLOOKUP(TRIM(J1500),'Transactional Departments'!A:B,2,FALSE)","v":"Leclerc, Monique"},"17242LEC","","","","RGS",""]
["17","316",null,null,"CSS STATE FLITCROFT           ","2526GD316160","11300","12200","11200","17242IAN",{"$f":"VLOOKUP(TRIM(J1501),'Transactional Departments'!A:B,2,FALSE)","v":"Flitcroft, Ian"},"17242IAN","","","","RGS",""]
["17","316",null,null,"CSS STATE RAYMER              ","2526GD316170","11300","12200","11200","17242RAY",{"$f":"VLOOKUP(TRIM(J1502),'Transactional Departments'!A:B,2,FALSE)","v":"Raymer, Paul"},"17242RAY","","","","RGS",""]
["17","316",null,null,"CSS STATE MERGOUM             ","2526GD316180","11300","12200","11200","17242MER",{"$f":"VLOOKUP(TRIM(J1503),'Transactional Departments'!A:B,2,FALSE)","v":"Merguom, Mohamed"},"17242MER","","","","RGS",""]
["17","316",null,null,"CSS STATE MAILHOT             ","2526GD316200","11300","12200","11200","17245SWV",{"$f":"VLOOKUP(TRIM(J1504),'Transactional Departments'!A:B,2,FALSE)","v":"Mailhot, Daniel"},"17245SWV","","","","RGS",""]
["17","316",null,null,"CSS STATE JESPERSEN           ","2526GD316210","11300","12200","11200","17242JES",{"$f":"VLOOKUP(TRIM(J1505),'Transactional Departments'!A:B,2,FALSE)","v":"Jesperson, David"},"17242JES","","","","RGS",""]
["17","316",null,null,"CSS STATE FURMAN              ","2526GD316220","11300","12200","11200","17240001",{"$f":"VLOOKUP(TRIM(J1506),'Transactional Departments'!A:B,2,FALSE)","v":"CSS Sum"},"17240001","","","","",""]
["17","316",null,null,"CSS STATE WALTZ               ","2526GD316240","11300","12200","11200","17240001",{"$f":"VLOOKUP(TRIM(J1507),'Transactional Departments'!A:B,2,FALSE)","v":"CSS Sum"},"17240001","","","","",""]
["17","317",null,null,"USDA NIFARF HARVEST AID  LI644","2521CD317177","11300","12110","11200","17260001",{"$f":"VLOOKUP(TRIM(J1508),'Transactional Departments'!A:B,2,FALSE)","v":"Food Science Sum"},"17260001","","","","",""]
["17","317",null,null,"MSU      RF LEGUME SCHOL ADHAD","2521CD317182","11300","12110","11200","17260001",{"$f":"VLOOKUP(TRIM(J1509),'Transactional Departments'!A:B,2,FALSE)","v":"Food Science Sum"},"17260001","","","","",""]
["17","317",null,null,"GCI      RF RESEARCH     KEALE","2521CD317194","11300","12110","11200","17260001",{"$f":"VLOOKUP(TRIM(J1510),'Transactional Departments'!A:B,2,FALSE)","v":"Food Science Sum"},"17260001","","","","",""]
["17","317",null,null,"USAID    RF W/710-023 PHILLIP ","2521RD317083","20400","12100","61028","17260001",{"$f":"VLOOKUP(TRIM(J1511),'Transactional Departments'!A:B,2,FALSE)","v":"Food Science Sum"},"17260001","","","","",""]
["17","317",null,null,"USAID    RF W/710-023    BROWN","2521RD317089","20400","12100","61028","17260001",{"$f":"VLOOKUP(TRIM(J1512),'Transactional Departments'!A:B,2,FALSE)","v":"Food Science Sum"},"17260001","","","","",""]
["17","317",null,null,"USAID    RF W/710-023 CHINNAN ","2521RD317097","20400","12100","61028","17260001",{"$f":"VLOOKUP(TRIM(J1513),'Transactional Departments'!A:B,2,FALSE)","v":"Food Science Sum"},"17260001","","","","",""]
["17","317",null,null,"USAID    RF W/ 710-023 RESURRE","2521RD317098","20400","12100","61028","17260001",{"$f":"VLOOKUP(TRIM(J1514),'Transactional Departments'!A:B,2,FALSE)","v":"Food Science Sum"},"17260001","","","","",""]
["17","317",null,null,"GACCP    RF WAFFLE FRY   HUNG ","2521RD317103","20400","12100","62002","17260001",{"$f":"VLOOKUP(TRIM(J1515),'Transactional Departments'!A:B,2,FALSE)","v":"Food Science Sum"},"17260001","","","","",""]
["17","317",null,null,"GACCP    RF 14 HOT TOPICSHUNG ","2521RD317104","20400","12100","62002","17260001",{"$f":"VLOOKUP(TRIM(J1516),'Transactional Departments'!A:B,2,FALSE)","v":"Food Science Sum"},"17260001","","","","",""]
["17","317",null,null,"GACCP    RF HOT TOPICS13 HUNG ","2521RD317143","20400","12100","62002","17260001",{"$f":"VLOOKUP(TRIM(J1517),'Transactional Departments'!A:B,2,FALSE)","v":"Food Science Sum"},"17260001","","","","",""]
["17","317",null,null,"GACCV    RF SUS AM PACTECCHEN ","2521RD317159","20400","12100","62008","17260001",{"$f":"VLOOKUP(TRIM(J1518),'Transactional Departments'!A:B,2,FALSE)","v":"Food Science Sum"},"17260001","","","","",""]
["17","317",null,null,"GACCP    RF PRO-B PNT BTRCHEN ","2521RD317166","20400","12100","62002","17260001",{"$f":"VLOOKUP(TRIM(J1519),'Transactional Departments'!A:B,2,FALSE)","v":"Food Science Sum"},"17260001","","","","",""]
["17","317",null,null,"MANA     RF SALMONELLA   CHEN ","2521RD317168","20400","12100","64163","17260001",{"$f":"VLOOKUP(TRIM(J1520),'Transactional Departments'!A:B,2,FALSE)","v":"Food Science Sum"},"17260001","","","","",""]
["17","317",null,null,"NCBA     RF RF_MILLEN NIAADHIK","2521RD317173","20400","12100","64323","17260001",{"$f":"VLOOKUP(TRIM(J1521),'Transactional Departments'!A:B,2,FALSE)","v":"Food Science Sum"},"17260001","","","","",""]
["17","317",null,null,"NCBA     RF BEEF FLAVOR  ADHIK","2521RD317174","20400","12100","64323","17260001",{"$f":"VLOOKUP(TRIM(J1522),'Transactional Departments'!A:B,2,FALSE)","v":"Food Science Sum"},"17260001","","","","",""]
["17","317",null,null,"NCBA     RF FRM V NONFRM CHEN ","2521RD317175","20400","12100","64323","17260001",{"$f":"VLOOKUP(TRIM(J1523),'Transactional Departments'!A:B,2,FALSE)","v":"Food Science Sum"},"17260001","","","","",""]
["17","317",null,null,"NCBA     RF BEEF FLAVOR  ADHIK","2521RD317178","20400","12100","64323","17260001",{"$f":"VLOOKUP(TRIM(J1524),'Transactional Departments'!A:B,2,FALSE)","v":"Food Science Sum"},"17260001","","","","",""]
["17","317",null,null,"GCCP     RF HOT TOPICS   HUNG ","2521RD317179","20400","12100","62002","17260001",{"$f":"VLOOKUP(TRIM(J1525),'Transactional Departments'!A:B,2,FALSE)","v":"Food Science Sum"},"17260001","","","","",""]
["17","317",null,null,"SRSF     RF SENS PERCEP  ADHIK","2521RD317186","20400","12100","64342","17260001",{"$f":"VLOOKUP(TRIM(J1526),'Transactional Departments'!A:B,2,FALSE)","v":"Food Science Sum"},"17260001","","","","",""]
["17","317",null,null,"GCI      RF RESEARCH     KEALE","2521RD317194","20400","12100","64370","17260001",{"$f":"VLOOKUP(TRIM(J1527),'Transactional Departments'!A:B,2,FALSE)","v":"Food Science Sum"},"17260001","","","","",""]
["17","317",null,null,"MONSANTO RF SENSORY      ADHIK","2521RD317901","20400","12100","64007","17260001",{"$f":"VLOOKUP(TRIM(J1528),'Transactional Departments'!A:B,2,FALSE)","v":"Food Science Sum"},"17260001","","","","",""]
["17","317",null,null,"ROYALTY INVENTOR/HUNG         ","2521RX317094","20300","12100","64RYT","17261110",{"$f":"VLOOKUP(TRIM(J1529),'Transactional Departments'!A:B,2,FALSE)","v":"Hung, Yen-Con"},"17261110","","","","RGS",""]
["17","317",null,null,"         UGARF SUPPORT FD SAFE","2521RX317900","20300","12100","64ICR","17260001",{"$f":"VLOOKUP(TRIM(J1530),'Transactional Departments'!A:B,2,FALSE)","v":"Food Science Sum"},"17260001","","","","RGS",""]
["17","317",null,null,"         RESIDUAL #317ES SINGH","2521RX317950","20400","12100","64RBP","17260001",{"$f":"VLOOKUP(TRIM(J1531),'Transactional Departments'!A:B,2,FALSE)","v":"Food Science Sum"},"17260001","","","","RGS",""]
["17","317",null,null,"VISITING RESEARCHER-HUNG      ","2526DD317120","14300","12200","41500","17260001",{"$f":"VLOOKUP(TRIM(J1532),'Transactional Departments'!A:B,2,FALSE)","v":"Food Science Sum"},"17260001","","","","",""]
["17","317",null,null,"VISITING RESEARCHER - CHEN    ","2526DD317150","14300","12200","41500","17261150",{"$f":"VLOOKUP(TRIM(J1533),'Transactional Departments'!A:B,2,FALSE)","v":"Chen, Jinru"},"17261150","","","","RGS",""]
["17","317",null,null,"SENSORY PROJECTS              ","2526DD317160","14300","12200","41500","17260001",{"$f":"VLOOKUP(TRIM(J1534),'Transactional Departments'!A:B,2,FALSE)","v":"Food Science Sum"},"17260001","","","","RGS",""]
["17","317",null,null,"FOOD SCI & TECHNOLOGY-GEORGIA ","2526GD317000","11300","12200","11200","17260001",{"$f":"VLOOKUP(TRIM(J1535),'Transactional Departments'!A:B,2,FALSE)","v":"Food Science Sum"},"17260001","","","","RGS",""]
["17","317",null,null,"FST GA DEPT ADMIN             ","2526GD317090","11300","12200","11200","17260090",{"$f":"VLOOKUP(TRIM(J1536),'Transactional Departments'!A:B,2,FALSE)","v":"FST Department Admin"},"17260090","","","","RGS",""]
["17","317",null,null,"FST STATE CHINNAN             ","2526GD317100","11300","12200","11200","17260001",{"$f":"VLOOKUP(TRIM(J1537),'Transactional Departments'!A:B,2,FALSE)","v":"Food Science Sum"},"17260001","","","","RGS",""]
["17","317",null,null,"FST STATE HUNG                ","2526GD317110","11300","12200","11200","17261110",{"$f":"VLOOKUP(TRIM(J1538),'Transactional Departments'!A:B,2,FALSE)","v":"Hung, Yen-Con"},"17261110","","","","RGS",""]
["17","317",null,null,"FST STATE KEALEY              ","2526GD317120","11300","12200","11200","17261120",{"$f":"VLOOKUP(TRIM(J1539),'Transactional Departments'!A:B,2,FALSE)","v":"Kealey, Kirk"},"17261120","","","","RGS",""]
["17","317",null,null,"FST STATE ADHIKARI            ","2526GD317140","11300","12200","11200","17261140",{"$f":"VLOOKUP(TRIM(J1540),'Transactional Departments'!A:B,2,FALSE)","v":"Adhikari, Koushik"},"17261140","","","","RGS",""]
["17","317",null,null,"FST STATE CHEN                ","2526GD317150","11300","12200","11200","17261150",{"$f":"VLOOKUP(TRIM(J1541),'Transactional Departments'!A:B,2,FALSE)","v":"Chen, Jinru"},"17261150","","","","RGS",""]
["17","318",null,null,"USDA ARS RF INVAS SUGAR  BUNTI","2521CD318260","11300","12110","11200","17250001",{"$f":"VLOOKUP(TRIM(J1542),'Transactional Departments'!A:B,2,FALSE)","v":"Entomology Sum"},"17250001","","","","",""]
["17","318",null,null,"UGARF    GSDC CULT TURF  BRAMA","2521RD318057","20300","12100","64URF","17253050",{"$f":"VLOOKUP(TRIM(J1543),'Transactional Departments'!A:B,2,FALSE)","v":"Braman"},"17253050","","","","",""]
["17","318",null,null,"UGARF    GSDC WINTER WHT BUNTI","2521RD318059","20300","12100","64URF","17253070",{"$f":"VLOOKUP(TRIM(J1544),'Transactional Departments'!A:B,2,FALSE)","v":"Buntin"},"17253070","","","","",""]
["17","318",null,null,"GACCC    RF STNK BUG IMS BUNTI","2521RD318096","20400","12100","62047","17250001",{"$f":"VLOOKUP(TRIM(J1545),'Transactional Departments'!A:B,2,FALSE)","v":"Entomology Sum"},"17250001","","","","",""]
["17","318",null,null,"         RF CORN HYBRIDS BUNTI","2521RD318248","20400","12100","64017","17250001",{"$f":"VLOOKUP(TRIM(J1546),'Transactional Departments'!A:B,2,FALSE)","v":"Entomology Sum"},"17250001","","","","",""]
["17","318",null,null,"UF/USDAG RF ORNA TRIALS  BRAMA","2521RD318266","20400","12100","62511","17250001",{"$f":"VLOOKUP(TRIM(J1547),'Transactional Departments'!A:B,2,FALSE)","v":"Entomology Sum"},"17250001","","","","",""]
["17","318",null,null,"ROYALTY INVENT/BUNTIN         ","2521RX318108","20300","12100","64RYT","17253070",{"$f":"VLOOKUP(TRIM(J1548),'Transactional Departments'!A:B,2,FALSE)","v":"Buntin"},"17253070","","","","RGS",""]
["17","318",null,null,"ROYALTY INVENTOR/BRAMAN       ","2521RX318113","20300","12100","64RYT","17253050",{"$f":"VLOOKUP(TRIM(J1549),'Transactional Departments'!A:B,2,FALSE)","v":"Braman"},"17253050","","","","RGS",""]
["17","318",null,null,"         UGARF SUPPORT ENT RSC","2521RX318900","20300","12100","64ICR","17250001",{"$f":"VLOOKUP(TRIM(J1550),'Transactional Departments'!A:B,2,FALSE)","v":"Entomology Sum"},"17250001","","","","RGS",""]
["17","318",null,null,"         RESIDUAL #318ES NOBLE","2521RX318950","20400","12100","64RBP","17250001",{"$f":"VLOOKUP(TRIM(J1551),'Transactional Departments'!A:B,2,FALSE)","v":"Entomology Sum"},"17250001","","","","RGS",""]
["17","318",null,null,"ENTOMOLOGY RESEARCH GEORGIA   ","2526DD318000","14300","12200","41500","17250001",{"$f":"VLOOKUP(TRIM(J1552),'Transactional Departments'!A:B,2,FALSE)","v":"Entomology Sum"},"17250001","","","","RGS",""]
["17","318",null,null,"ENTOMOLOGY RESEARCH BUNTIN    ","2526DD318001","14300","12200","41500","17253070",{"$f":"VLOOKUP(TRIM(J1553),'Transactional Departments'!A:B,2,FALSE)","v":"Buntin"},"17253070","","","","RGS",""]
["17","318",null,null,"ENTOMOLOGY RESEARCH GEORGIA   ","2526GD318000","11300","12200","11200","17250001",{"$f":"VLOOKUP(TRIM(J1554),'Transactional Departments'!A:B,2,FALSE)","v":"Entomology Sum"},"17250001","","","","RGS",""]
["17","318",null,null,"RESEARCH ADVISORY SERVICES    ","2526GD318080","11300","12200","11200","17250001",{"$f":"VLOOKUP(TRIM(J1555),'Transactional Departments'!A:B,2,FALSE)","v":"Entomology Sum"},"17250001","","","","RGS",""]
["17","318",null,null,"ENTOMOLOGY RSCH  DEPT ADMIN   ","2526GD318090","11300","12200","11200","17252000",{"$f":"VLOOKUP(TRIM(J1556),'Transactional Departments'!A:B,2,FALSE)","v":"Administration"},"17252000","","","","RGS",""]
["17","318",null,null,"ENT STATE GARDNER             ","2526GD318100","11300","12200","11200","17253130",{"$f":"VLOOKUP(TRIM(J1557),'Transactional Departments'!A:B,2,FALSE)","v":"Gardner"},"17253130","","","","RGS",""]
["17","318",null,null,"ENT STATE BRAMAN              ","2526GD318110","11300","12200","11200","17253050",{"$f":"VLOOKUP(TRIM(J1558),'Transactional Departments'!A:B,2,FALSE)","v":"Braman"},"17253050","","","","RGS",""]
["17","318",null,null,"ENT STATE BUNTIN              ","2526GD318120","11300","12200","11200","17253070",{"$f":"VLOOKUP(TRIM(J1559),'Transactional Departments'!A:B,2,FALSE)","v":"Buntin"},"17253070","","","","RGS",""]
["17","318",null,null,"ENT STATE HUNT                ","2526GD318140","11300","12200","11200","17253170",{"$f":"VLOOKUP(TRIM(J1560),'Transactional Departments'!A:B,2,FALSE)","v":"Hunt"},"17253170","","","","RGS",""]
["17","318",null,null,"ENT STATE JOSEPH              ","2526GD318150","11300","12200","11200","17250001",{"$f":"VLOOKUP(TRIM(J1561),'Transactional Departments'!A:B,2,FALSE)","v":"Entomology Sum"},"17250001","","","","RGS",""]
["17","319",null,null,"GA DOAGR RF FB PATHOGENS ZHAO ","2521RD319278","20400","12100","62010","17262001",{"$f":"VLOOKUP(TRIM(J1562),'Transactional Departments'!A:B,2,FALSE)","v":"Cntr Food Safety Sum"},"17262001","","","","",""]
["17","319",null,null,"USDA     RF ALALI W/309-117   ","2521RD319287","20400","12100","61002","17262001",{"$f":"VLOOKUP(TRIM(J1563),'Transactional Departments'!A:B,2,FALSE)","v":"Cntr Food Safety Sum"},"17262001","","","","",""]
["17","319",null,null,"GADOA    RF PT W/332627  JI   ","2521RD319289","20400","12100","62010","17262001",{"$f":"VLOOKUP(TRIM(J1564),'Transactional Departments'!A:B,2,FALSE)","v":"Cntr Food Safety Sum"},"17262001","","","","",""]
["17","319",null,null,"         RF SALMONELLA   ALALI","2521RD319290","20400","12100","64000","17262001",{"$f":"VLOOKUP(TRIM(J1565),'Transactional Departments'!A:B,2,FALSE)","v":"Cntr Food Safety Sum"},"17262001","","","","",""]
["17","319",null,null,"SOF      RF FOOD SAFETY  ORTEG","2521RD319298","20400","12100","62501","17262001",{"$f":"VLOOKUP(TRIM(J1566),'Transactional Departments'!A:B,2,FALSE)","v":"Cntr Food Safety Sum"},"17262001","","","","",""]
["17","319",null,null,"         CFS VARIOUS/319 DOYLE","2521RX319091","20400","12100","64206","17262001",{"$f":"VLOOKUP(TRIM(J1567),'Transactional Departments'!A:B,2,FALSE)","v":"Cntr Food Safety Sum"},"17262001","","","","",""]
["17","319",null,null,"         VAR MATCH AFD DOYLE  ","2521RX319123","20400","12100","64206","17262001",{"$f":"VLOOKUP(TRIM(J1568),'Transactional Departments'!A:B,2,FALSE)","v":"Cntr Food Safety Sum"},"17262001","","","","",""]
["17","319",null,null,"ROYALTY DEP/CTR FS            ","2521RX319255","20300","12100","64RYT","17262100",{"$f":"VLOOKUP(TRIM(J1569),'Transactional Departments'!A:B,2,FALSE)","v":"CFS Office Admin"},"17262100","","","","",""]
["17","319",null,null,"ROYALTY INVENTR/DOYLE         ","2521RX319256","20300","12100","64RYT","17262140",{"$f":"VLOOKUP(TRIM(J1570),'Transactional Departments'!A:B,2,FALSE)","v":"Doyle, Michael"},"17262140","","","","",""]
["17","319",null,null,"ROYALTY INVENTOR/ZHAO         ","2521RX319257","20300","12100","64RYT","17262260",{"$f":"VLOOKUP(TRIM(J1571),'Transactional Departments'!A:B,2,FALSE)","v":"Zhao, Tong"},"17262260","","","","",""]
["17","319",null,null,"         UGARF FOOD SAFE DOYLE","2521RX319900","20300","12100","64ICR","17262001",{"$f":"VLOOKUP(TRIM(J1572),'Transactional Departments'!A:B,2,FALSE)","v":"Cntr Food Safety Sum"},"17262001","","","","",""]
["17","319",null,null,"         RESIDUAL #319ES DOYLE","2521RX319950","20400","12100","64RBP","17262001",{"$f":"VLOOKUP(TRIM(J1573),'Transactional Departments'!A:B,2,FALSE)","v":"Cntr Food Safety Sum"},"17262001","","","","",""]
["17","319",null,null,"ROYALTY HOLDING CTR FOOD SFTY ","2521RX319980","20300","12100","64URF","17262001",{"$f":"VLOOKUP(TRIM(J1574),'Transactional Departments'!A:B,2,FALSE)","v":"Cntr Food Safety Sum"},"17262001","","","","",""]
["17","319",null,null,"CFS MICROBIOL STRAINS         ","2526DD319005","14300","12200","41500","17262001",{"$f":"VLOOKUP(TRIM(J1575),'Transactional Departments'!A:B,2,FALSE)","v":"Cntr Food Safety Sum"},"17262001","","","","RGS",""]
["17","319",null,null,"CDC VOLUNTARY NET             ","2526DD319006","14300","12200","41500","17262001",{"$f":"VLOOKUP(TRIM(J1576),'Transactional Departments'!A:B,2,FALSE)","v":"Cntr Food Safety Sum"},"17262001","","","","RGS",""]
["17","319",null,null,"CFS ANNUAL MEETING            ","2526DW319803","14300","12200","41500","17262001",{"$f":"VLOOKUP(TRIM(J1577),'Transactional Departments'!A:B,2,FALSE)","v":"Cntr Food Safety Sum"},"17262001","","","","RGS",""]
["17","319",null,null,"CENTER FOR FOOD SAFETY-GEORGIA","2526GD319000","11300","12200","11200","17262001",{"$f":"VLOOKUP(TRIM(J1578),'Transactional Departments'!A:B,2,FALSE)","v":"Cntr Food Safety Sum"},"17262001","","","","RGS",""]
["17","319",null,null,"CFS DEPARTMENTL ADMINISTRATION","2526GD319090","11300","12200","11200","17262100",{"$f":"VLOOKUP(TRIM(J1579),'Transactional Departments'!A:B,2,FALSE)","v":"CFS Office Admin"},"17262100","","","","RGS",""]
["17","319",null,null,"CFS STATE BEUCHAT             ","2526GD319100","11300","12200","11200","17262001",{"$f":"VLOOKUP(TRIM(J1580),'Transactional Departments'!A:B,2,FALSE)","v":"Cntr Food Safety Sum"},"17262001","","","","RGS",""]
["17","319",null,null,"CFS STATE ERICKSON            ","2526GD319150","11300","12200","11200","17262150",{"$f":"VLOOKUP(TRIM(J1581),'Transactional Departments'!A:B,2,FALSE)","v":"Erikson, Marilyn"},"17262150","","","","RGS",""]
["17","319",null,null,"CFS FED STATE ORTEGA          ","2526GD319210","11300","12200","11200","17262210",{"$f":"VLOOKUP(TRIM(J1582),'Transactional Departments'!A:B,2,FALSE)","v":"Ortega, Ynes"},"17262210","","","","RGS",""]
["17","319",null,null,"CFS STATE BAKKER              ","2526GD319230","11300","12200","11200","17262230",{"$f":"VLOOKUP(TRIM(J1583),'Transactional Departments'!A:B,2,FALSE)","v":"den Bakker, Hendrick"},"17262230","","","","RGS",""]
["17","319",null,null,"CFS STATE DENG                ","2526GD319240","11300","12200","11200","17262240",{"$f":"VLOOKUP(TRIM(J1584),'Transactional Departments'!A:B,2,FALSE)","v":"Deng, Xiangyu"},"17262240","","","","RGS",""]
["17","319",null,null,"CFS STATE DIEZ                ","2526GD319250","11300","12200","11200","17262250",{"$f":"VLOOKUP(TRIM(J1585),'Transactional Departments'!A:B,2,FALSE)","v":"Diez-Gonzalez, Francisco"},"17262250","","","","RGS",""]
["17","319",null,null,"CFS STATE ZHAO                ","2526GD319260","11300","12200","11200","17262260",{"$f":"VLOOKUP(TRIM(J1586),'Transactional Departments'!A:B,2,FALSE)","v":"Zhao, Tong"},"17262260","","","","RGS",""]
["17","320",null,null,"GDA/USDA RF EVAL BLUEBRY_ITLE ","2521RD320004","20400","12100","62010","17270001",{"$f":"VLOOKUP(TRIM(J1587),'Transactional Departments'!A:B,2,FALSE)","v":"Horticulture Sum"},"17270001","","","","",""]
["17","320",null,null,"UGARF    GSDC NEW ABELIA ROBAC","2521RD320042","20300","12100","64URF","17272200",{"$f":"VLOOKUP(TRIM(J1588),'Transactional Departments'!A:B,2,FALSE)","v":"Robacker, Carol"},"17272200","","","","",""]
["17","320",null,null,"UGARF    GSDC BLUEBERRY  NESMI","2521RD320057","20300","12100","64URF","17271800",{"$f":"VLOOKUP(TRIM(J1589),'Transactional Departments'!A:B,2,FALSE)","v":"NeSmith, Scott"},"17271800","","","","",""]
["17","320",null,null,"UGARF    GSDC BLUESTEM   ROBAC","2521RD320074","20300","12100","64URF","17270001",{"$f":"VLOOKUP(TRIM(J1590),'Transactional Departments'!A:B,2,FALSE)","v":"Horticulture Sum"},"17270001","","","","",""]
["17","320",null,null,"SRSFC    RF BLUEBERRIES  NESMI","2521RD320091","20400","12100","64342","17270001",{"$f":"VLOOKUP(TRIM(J1591),'Transactional Departments'!A:B,2,FALSE)","v":"Horticulture Sum"},"17270001","","","","",""]
["17","320",null,null,"UFL/USDA RF BUD TEMP     CHAVE","2521RD320096","20400","12100","62511","17270001",{"$f":"VLOOKUP(TRIM(J1592),'Transactional Departments'!A:B,2,FALSE)","v":"Horticulture Sum"},"17270001","","","","",""]
["17","320",null,null,"UGARF    GSDC CHILLING        ","2521RD320098","20300","12100","64URF","17270001",{"$f":"VLOOKUP(TRIM(J1593),'Transactional Departments'!A:B,2,FALSE)","v":"Horticulture Sum"},"17270001","","","","",""]
["17","320",null,null,"ROYALTY INVTR/NESMITH         ","2521RX320077","20300","12100","64RYT","17271800",{"$f":"VLOOKUP(TRIM(J1594),'Transactional Departments'!A:B,2,FALSE)","v":"NeSmith, Scott"},"17271800","","","","RGS",""]
["17","320",null,null,"ROYALTY INVENTOR/ROBACKER     ","2521RX320089","20300","12100","64RYT","17272200",{"$f":"VLOOKUP(TRIM(J1595),'Transactional Departments'!A:B,2,FALSE)","v":"Robacker, Carol"},"17272200","","","","RGS",""]
["17","320",null,null,"         UGARF SUPPORT HOR RCH","2521RX320900","20400","12100","64ICR","17270001",{"$f":"VLOOKUP(TRIM(J1596),'Transactional Departments'!A:B,2,FALSE)","v":"Horticulture Sum"},"17270001","","","","RGS",""]
["17","320",null,null,"RESIDUAL BALANCE #320         ","2521RX320950","20400","12100","64RBP","17270001",{"$f":"VLOOKUP(TRIM(J1597),'Transactional Departments'!A:B,2,FALSE)","v":"Horticulture Sum"},"17270001","","","","",""]
["17","320",null,null,"BLUEBERRY PROPAGATION NES S&S ","2526DD320001","14300","12200","41500","17271800",{"$f":"VLOOKUP(TRIM(J1598),'Transactional Departments'!A:B,2,FALSE)","v":"NeSmith, Scott"},"17271800","","","","RGS",""]
["17","320",null,null,"HORT PEACH ORCHARD CHAVEZ     ","2526DD320002","14300","12200","41500","17270500",{"$f":"VLOOKUP(TRIM(J1599),'Transactional Departments'!A:B,2,FALSE)","v":"Chavez, Dario"},"17270500","","","","RGS",""]
["17","320",null,null,"WEED SCIENCE CZARNOTA         ","2526DD320003","14300","12200","41500","17270900",{"$f":"VLOOKUP(TRIM(J1600),'Transactional Departments'!A:B,2,FALSE)","v":"Czarnota, Mark"},"17270900","","","","RGS",""]
["17","320",null,null,"HORTICULTURE RESEARCH  GEORGIA","2526GD320000","11300","12200","11200","17270001",{"$f":"VLOOKUP(TRIM(J1601),'Transactional Departments'!A:B,2,FALSE)","v":"Horticulture Sum"},"17270001","","","","RGS",""]
["17","320",null,null,"HORTICULTURE RSCH DEPT ADMIN  ","2526GD320090","11300","12200","11200","17270001",{"$f":"VLOOKUP(TRIM(J1602),'Transactional Departments'!A:B,2,FALSE)","v":"Horticulture Sum"},"17270001","","","","RGS",""]
["17","320",null,null,"HORT STATE ROBACKER           ","2526GD320120","11300","12200","11200","17272200",{"$f":"VLOOKUP(TRIM(J1603),'Transactional Departments'!A:B,2,FALSE)","v":"Robacker, Carol"},"17272200","","","","RGS",""]
["17","320",null,null,"HORT STATE NESMITH            ","2526GD320130","11300","12200","11200","17271800",{"$f":"VLOOKUP(TRIM(J1604),'Transactional Departments'!A:B,2,FALSE)","v":"NeSmith, Scott"},"17271800","","","","RGS",""]
["17","320",null,null,"HORT STATE CZARNOTA           ","2526GD320150","11300","12200","11200","17270900",{"$f":"VLOOKUP(TRIM(J1605),'Transactional Departments'!A:B,2,FALSE)","v":"Czarnota, Mark"},"17270900","","","","RGS",""]
["17","320",null,null,"HORT STATE CHAVEZ             ","2526GD320160","11300","12200","11200","17270500",{"$f":"VLOOKUP(TRIM(J1606),'Transactional Departments'!A:B,2,FALSE)","v":"Chavez, Dario"},"17270500","","","","RGS",""]
["17","320",null,null,"HORT STATE ITLE               ","2526GD320170","11300","12200","11200","17270001",{"$f":"VLOOKUP(TRIM(J1607),'Transactional Departments'!A:B,2,FALSE)","v":"Horticulture Sum"},"17270001","","","","RGS",""]
["17","320",null,null,"HORT RESEARCH GA GREENHOUSE   ","2526GD320300","11300","12200","11200","17273470",{"$f":"VLOOKUP(TRIM(J1608),'Transactional Departments'!A:B,2,FALSE)","v":"Griffin Greenhouse"},"17273470","","","","RGS",""]
["17","321",null,null,"UGARF    GSDC W&BI CULT  BUCK ","2521RD321079","20300","12100","64URF","17286001",{"$f":"VLOOKUP(TRIM(J1609),'Transactional Departments'!A:B,2,FALSE)","v":"Buck"},"17286001","","","","",""]
["17","321",null,null,"UGARF    GSDC SOYBEAN BR BUCK ","2521RD321080","20300","12100","64URF","17286001",{"$f":"VLOOKUP(TRIM(J1610),'Transactional Departments'!A:B,2,FALSE)","v":"Buck"},"17286001","","","","",""]
["17","321",null,null,"RUTG/USDARF FUNGICIDES   BUCK ","2521RD321185","20400","12100","62588","17280001",{"$f":"VLOOKUP(TRIM(J1611),'Transactional Departments'!A:B,2,FALSE)","v":"Plant Path Sum"},"17280001","","","","",""]
["17","321",null,null,"USDA     RF UROMYCES TRN BUCK ","2521RD321189","20400","12100","61002","17280001",{"$f":"VLOOKUP(TRIM(J1612),'Transactional Departments'!A:B,2,FALSE)","v":"Plant Path Sum"},"17280001","","","","",""]
["17","321",null,null,"UGARF    GSDC SEASHORE   MARTI","2521RD321190","20300","12100","64URF","17286002",{"$f":"VLOOKUP(TRIM(J1613),'Transactional Departments'!A:B,2,FALSE)","v":"Martinez"},"17286002","","","","",""]
["17","321",null,null,"GACC     RF SOYBEAN CANK BUCK ","2521RD321191","20400","12100","62004","17280001",{"$f":"VLOOKUP(TRIM(J1614),'Transactional Departments'!A:B,2,FALSE)","v":"Plant Path Sum"},"17280001","","","","",""]
["17","321",null,null,"GCCS     RF CANKER FNGUS BUCK ","2521RD321193","20400","12100","62004","17280001",{"$f":"VLOOKUP(TRIM(J1615),'Transactional Departments'!A:B,2,FALSE)","v":"Plant Path Sum"},"17280001","","","","",""]
["17","321",null,null,"GACC SOYBRF RF_VIRULENCE_BUCK ","2521RD321196","20400","12100","62004","17280001",{"$f":"VLOOKUP(TRIM(J1616),'Transactional Departments'!A:B,2,FALSE)","v":"Plant Path Sum"},"17280001","","","","",""]
["17","321",null,null,"ROYALTY INVENTOR/BUCK      321","2521RX321179","20300","12100","64RYT","17286001",{"$f":"VLOOKUP(TRIM(J1617),'Transactional Departments'!A:B,2,FALSE)","v":"Buck"},"17286001","","","","",""]
["17","321",null,null,"ROYALTY INVENTOR/BUCK         ","2521RX321180","20300","12100","64RYT","17286001",{"$f":"VLOOKUP(TRIM(J1618),'Transactional Departments'!A:B,2,FALSE)","v":"Buck"},"17286001","","","","",""]
["17","321",null,null,"ROYALTY BURPEE                ","2521RX321188","20300","12100","64RYT","17280001",{"$f":"VLOOKUP(TRIM(J1619),'Transactional Departments'!A:B,2,FALSE)","v":"Plant Path Sum"},"17280001","","","","",""]
["17","321",null,null,"         UGARF SUPPORT PLT PTH","2521RX321900","20300","12100","64ICR","17280001",{"$f":"VLOOKUP(TRIM(J1620),'Transactional Departments'!A:B,2,FALSE)","v":"Plant Path Sum"},"17280001","","","","RGS",""]
["17","321",null,null,"         RESIDUAL #321ES SHERW","2521RX321950","20400","12100","64RBP","17280001",{"$f":"VLOOKUP(TRIM(J1621),'Transactional Departments'!A:B,2,FALSE)","v":"Plant Path Sum"},"17280001","","","","RGS",""]
["17","321",null,null,"PLANT PATHOLOGY RESRCH GEORGIA","2526GD321000","11300","12200","11200","17280001",{"$f":"VLOOKUP(TRIM(J1622),'Transactional Departments'!A:B,2,FALSE)","v":"Plant Path Sum"},"17280001","","","","RGS",""]
["17","321",null,null,"PP STATE DEPARTMENTAL ADMIN   ","2526GD321090","11300","12200","11200","17286000",{"$f":"VLOOKUP(TRIM(J1623),'Transactional Departments'!A:B,2,FALSE)","v":"Griffin Departmental"},"17286000","","","","RGS","",null,null,{"$f":"COUNTIFS('Transactional Departments'!A:A,J1623)<>0","v":true}]
["17","321",null,null,"PP STATE BUCK                 ","2526GD321150","11300","12200","11200","17286001",{"$f":"VLOOKUP(TRIM(J1624),'Transactional Departments'!A:B,2,FALSE)","v":"Buck"},"17286001","","","","RGS",""]
["17","322",null,null,"         UGARF SUPPORT PLT INT","2521RX322900","20300","12100","64ICR","17210710",{"$f":"VLOOKUP(TRIM(J1625),'Transactional Departments'!A:B,2,FALSE)","v":"Jordan, Jeffery"},"17210710","","","","",""]
["17","322",null,null,"PLANT GENETIC RES CON  GEORGIA","2526GD322000","11300","12200","11200","17210710",{"$f":"VLOOKUP(TRIM(J1626),'Transactional Departments'!A:B,2,FALSE)","v":"Jordan, Jeffery"},"17210710","","","","RGS",""]
["17","323",null,null,"UGAF     UGA TCCC IMPROV LEE  ","2521RF323020","20200","12100","67806","17101001",{"$f":"VLOOKUP(TRIM(J1627),'Transactional Departments'!A:B,2,FALSE)","v":"Tifton Campus Sum"},"17101001","","","","",""]
["17","323",null,null,"GADA     RF AGRIBUS      WEST ","2521RF323021","20400","12100","62010","17101001",{"$f":"VLOOKUP(TRIM(J1628),'Transactional Departments'!A:B,2,FALSE)","v":"Tifton Campus Sum"},"17101001","","","","",""]
["17","323",null,null,"         RESIDUAL #323ES BRIDG","2521RX323950","20400","12100","64RBP","17101001",{"$f":"VLOOKUP(TRIM(J1629),'Transactional Departments'!A:B,2,FALSE)","v":"Tifton Campus Sum"},"17101001","","","","",""]
["17","323",null,null,"ASSIST DEAN'S OFFICE COASTAL  ","2526DF323000","14300","12200","41500","17101001",{"$f":"VLOOKUP(TRIM(J1630),'Transactional Departments'!A:B,2,FALSE)","v":"Tifton Campus Sum"},"17101001","","","","RCP",""]
["17","323",null,null,"NESPAL TRADE SHOW             ","2526DW323893","14300","12200","41500","17101001",{"$f":"VLOOKUP(TRIM(J1631),'Transactional Departments'!A:B,2,FALSE)","v":"Tifton Campus Sum"},"17101001","","","","RCP",""]
["17","323",null,null,"ASSIST DEAN'S OFFICE COASTAL  ","2526GF323000","11300","12200","11200","17101001",{"$f":"VLOOKUP(TRIM(J1632),'Transactional Departments'!A:B,2,FALSE)","v":"Tifton Campus Sum"},"17101001","","","","RCP",""]
["17","323",null,null,"ASST DEAN TIFTON DEPT ADMIN   ","2526GF323090","11300","12200","11200","17101001",{"$f":"VLOOKUP(TRIM(J1633),'Transactional Departments'!A:B,2,FALSE)","v":"Tifton Campus Sum"},"17101001","","","","RCP",""]
["17","324",null,null,"USDA     RF OLEIC PNUT   OZIAS","2521CF324384","11300","12110","11200","17700001",{"$f":"VLOOKUP(TRIM(J1634),'Transactional Departments'!A:B,2,FALSE)","v":"Tift Campus Sum"},"17700001","","","","",""]
["17","324",null,null,"         RF TSWV WHT MLD CULBR","2521RF324368","20400","12100","64389","17700001",{"$f":"VLOOKUP(TRIM(J1635),'Transactional Departments'!A:B,2,FALSE)","v":"Tift Campus Sum"},"17700001","","","","",""]
["17","324",null,null,"         RF RIL POPULATN OZIAS","2521RF324369","20400","12100","64389","17700001",{"$f":"VLOOKUP(TRIM(J1636),'Transactional Departments'!A:B,2,FALSE)","v":"Tift Campus Sum"},"17700001","","","","",""]
["17","324",null,null,"USDA ARS RF ACQ GDS&SERV WEST ","2521RF324380","20400","12100","61002","17700001",{"$f":"VLOOKUP(TRIM(J1637),'Transactional Departments'!A:B,2,FALSE)","v":"Tift Campus Sum"},"17700001","","","","",""]
["17","324",null,null,"USDA ARS RF ACQ GDS&SERV WEST ","2521RF324381","20400","12100","61002","17700001",{"$f":"VLOOKUP(TRIM(J1638),'Transactional Departments'!A:B,2,FALSE)","v":"Tift Campus Sum"},"17700001","","","","",""]
["17","324",null,null,"NPB      RF LEAF SPOT RESOZIAS","2521RF324382","20400","12100","64000","17700001",{"$f":"VLOOKUP(TRIM(J1639),'Transactional Departments'!A:B,2,FALSE)","v":"Tift Campus Sum"},"17700001","","","","",""]
["17","324",null,null,"GACCP    RF SUP RT GRWTH_KVIEN","2521RF324386","20400","12100","62002","17700001",{"$f":"VLOOKUP(TRIM(J1640),'Transactional Departments'!A:B,2,FALSE)","v":"Tift Campus Sum"},"17700001","","","","",""]
["17","324",null,null,"NPB      RF SOLAR POWER  KVIEN","2521RF324387","20400","12100","64000","17700001",{"$f":"VLOOKUP(TRIM(J1641),'Transactional Departments'!A:B,2,FALSE)","v":"Tift Campus Sum"},"17700001","","","","",""]
["17","324",null,null,"USDA ARS RF ACQUI GDS SVRWEST ","2521RF324389","20400","12100","61004","17700001",{"$f":"VLOOKUP(TRIM(J1642),'Transactional Departments'!A:B,2,FALSE)","v":"Tift Campus Sum"},"17700001","","","","",""]
["17","324",null,null,"USDA ARS RF AQU GOOD SER WEST ","2521RF324390","20400","12100","61004","17700001",{"$f":"VLOOKUP(TRIM(J1643),'Transactional Departments'!A:B,2,FALSE)","v":"Tift Campus Sum"},"17700001","","","","",""]
["17","324",null,null,"GCCP        MARKER PLAT ROZIAS","2521RF324392","20400","12100","64389","17700001",{"$f":"VLOOKUP(TRIM(J1644),'Transactional Departments'!A:B,2,FALSE)","v":"Tift Campus Sum"},"17700001","","","","",""]
["17","324",null,null,"PF       RF EDIBLE GARD  KVIEN","2521RF324397","20400","12100","64389","17700001",{"$f":"VLOOKUP(TRIM(J1645),'Transactional Departments'!A:B,2,FALSE)","v":"Tift Campus Sum"},"17700001","","","","",""]
["17","324",null,null,"USDA ARS RF GOODS & SERV WEST ","2521RF324398","20400","12100","61004","17700001",{"$f":"VLOOKUP(TRIM(J1646),'Transactional Departments'!A:B,2,FALSE)","v":"Tift Campus Sum"},"17700001","","","","",""]
["17","324",null,null,"USDA ARS RF  RF ACQ GOOD WEST ","2521RF324399","20400","12100","61004","17700001",{"$f":"VLOOKUP(TRIM(J1647),'Transactional Departments'!A:B,2,FALSE)","v":"Tift Campus Sum"},"17700001","","","","",""]
["17","324",null,null,"USDA ARS RF ACQ GOODS SERWEST ","2521RF324400","20400","12100","61004","17700001",{"$f":"VLOOKUP(TRIM(J1648),'Transactional Departments'!A:B,2,FALSE)","v":"Tift Campus Sum"},"17700001","","","","",""]
["17","324",null,null,"USDA ARS RF ACQ GOODS SERWEST ","2521RF324401","20400","12100","61004","17700001",{"$f":"VLOOKUP(TRIM(J1649),'Transactional Departments'!A:B,2,FALSE)","v":"Tift Campus Sum"},"17700001","","","","",""]
["17","324",null,null,"GCCP     RF PEANUT LINES KVIEN","2521RF324402","20400","12100","62002","17700001",{"$f":"VLOOKUP(TRIM(J1650),'Transactional Departments'!A:B,2,FALSE)","v":"Tift Campus Sum"},"17700001","","","","",""]
["17","324",null,null,"PF       RF NEMA RESIST  OZIAS","2521RF324405","20400","12100","64389","17700001",{"$f":"VLOOKUP(TRIM(J1651),'Transactional Departments'!A:B,2,FALSE)","v":"Tift Campus Sum"},"17700001","","","","",""]
["17","324",null,null,"PEANUT   RF PHENOTYPING  KVIEN","2521RF324419","20400","12100","64389","17700001",{"$f":"VLOOKUP(TRIM(J1652),'Transactional Departments'!A:B,2,FALSE)","v":"Tift Campus Sum"},"17700001","","","","",""]
["17","324",null,null,"PEANUT   RF LEAF SPOT    OZIAS","2521RF324426","20400","12100","64389","17700001",{"$f":"VLOOKUP(TRIM(J1653),'Transactional Departments'!A:B,2,FALSE)","v":"Tift Campus Sum"},"17700001","","","","",""]
["17","324",null,null,"USDA ARS RF ACQ OF GOODS WEST ","2521RF324433","20400","12100","61004","17700001",{"$f":"VLOOKUP(TRIM(J1654),'Transactional Departments'!A:B,2,FALSE)","v":"Tift Campus Sum"},"17700001","","","","",""]
["17","324",null,null,"MARS INC RF AFLATOXIN    OZIAS","2521RF324435","20400","12100","64000","17700001",{"$f":"VLOOKUP(TRIM(J1655),'Transactional Departments'!A:B,2,FALSE)","v":"Tift Campus Sum"},"17700001","","","","",""]
["17","324",null,null,"USDA NIFARF GENETIC EN   OZIAS","2521RF324436","20400","12100","61006","17700001",{"$f":"VLOOKUP(TRIM(J1656),'Transactional Departments'!A:B,2,FALSE)","v":"Tift Campus Sum"},"17700001","","","","",""]
["17","324",null,null,"ROYALTY INVENTOR KVIEN        ","2521RX324326","20300","12100","64RYT","17700001",{"$f":"VLOOKUP(TRIM(J1657),'Transactional Departments'!A:B,2,FALSE)","v":"Tift Campus Sum"},"17700001","","","","",""]
["17","324",null,null,"         UGARF SUPPORT GEN EXP","2521RX324900","20300","12100","64ICR","17700001",{"$f":"VLOOKUP(TRIM(J1658),'Transactional Departments'!A:B,2,FALSE)","v":"Tift Campus Sum"},"17700001","","","","",""]
["17","324",null,null,"         RESIDUAL #324ES BRIDG","2521RX324950","20400","12100","64RBP","17700001",{"$f":"VLOOKUP(TRIM(J1659),'Transactional Departments'!A:B,2,FALSE)","v":"Tift Campus Sum"},"17700001","","","","",""]
["17","324",null,null,"GENERAL EXPENSE COASTAL       ","2526AF324000","15300","12200","11500","17700001",{"$f":"VLOOKUP(TRIM(J1660),'Transactional Departments'!A:B,2,FALSE)","v":"Tift Campus Sum"},"17700001","","","","",""]
["17","324",null,null,"GENERAL EXPENSE COASTAL       ","2526DF324000","14300","12200","41500","17700001",{"$f":"VLOOKUP(TRIM(J1661),'Transactional Departments'!A:B,2,FALSE)","v":"Tift Campus Sum"},"17700001","","","","RCP",""]
["17","324",null,null,"GEN EXP COAST-FUTURE FARMSTEAD","2526DF324001","14300","12200","41500","17700001",{"$f":"VLOOKUP(TRIM(J1662),'Transactional Departments'!A:B,2,FALSE)","v":"Tift Campus Sum"},"17700001","","","","RCP",""]
["17","324",null,null,"NESPAL SERVICES               ","2526DF324004","14300","12200","41500","17700001",{"$f":"VLOOKUP(TRIM(J1663),'Transactional Departments'!A:B,2,FALSE)","v":"Tift Campus Sum"},"17700001","","","","RCP",""]
["17","324",null,null,"LAB SERVICES CHEE             ","2526DF324005","14300","12200","41500","17700001",{"$f":"VLOOKUP(TRIM(J1664),'Transactional Departments'!A:B,2,FALSE)","v":"Tift Campus Sum"},"17700001","","","","RCP",""]
["17","324",null,null,"LAB SERVICES OZIAS-AKINS      ","2526DF324007","14300","12200","41500","17700001",{"$f":"VLOOKUP(TRIM(J1665),'Transactional Departments'!A:B,2,FALSE)","v":"Tift Campus Sum"},"17700001","","","","RCP",""]
["17","324",null,null,"VISITING SCHOLAR J. MUHAMMAD  ","2526DF324009","14300","12200","41500","17700001",{"$f":"VLOOKUP(TRIM(J1666),'Transactional Departments'!A:B,2,FALSE)","v":"Tift Campus Sum"},"17700001","","","","",""]
["17","324",null,null,"LAB SERVICES SCHWARTZ         ","2526DF324010","14300","12200","41500","17700001",{"$f":"VLOOKUP(TRIM(J1667),'Transactional Departments'!A:B,2,FALSE)","v":"Tift Campus Sum"},"17700001","","","","RCP",""]
["17","324",null,null,"GENERAL EXPENSE COASTAL       ","2526GF324000","11300","12200","11200","17700001",{"$f":"VLOOKUP(TRIM(J1668),'Transactional Departments'!A:B,2,FALSE)","v":"Tift Campus Sum"},"17700001","","","","RCP",""]
["17","324",null,null,"NESPAL - COASTAL              ","2526GF324010","11300","12200","11200","17700001",{"$f":"VLOOKUP(TRIM(J1669),'Transactional Departments'!A:B,2,FALSE)","v":"Tift Campus Sum"},"17700001","","","","RCP",""]
["17","324",null,null,"GENERAL EXPENSE COASTAL       ","2541GF324000","11300","14100","11200","17700001",{"$f":"VLOOKUP(TRIM(J1670),'Transactional Departments'!A:B,2,FALSE)","v":"Tift Campus Sum"},"17700001","","","","RCP",""]
["17","324",null,null,"GENERAL EXPENSE COASTAL       ","2571GF324000","11300","17100","11200","17700001",{"$f":"VLOOKUP(TRIM(J1671),'Transactional Departments'!A:B,2,FALSE)","v":"Tift Campus Sum"},"17700001","","","","RCP",""]
["17","325",null,null,"         UGARF PHYS PLT  SHIVE","2521RX325900","20300","12100","64ICR","17700001",{"$f":"VLOOKUP(TRIM(J1672),'Transactional Departments'!A:B,2,FALSE)","v":"Tift Campus Sum"},"17700001","","","","",""]
["17","325",null,null,"PHYSICAL PLANT UTILITIES - IDC","2571AF325005","15300","17100","11500","17700001",{"$f":"VLOOKUP(TRIM(J1673),'Transactional Departments'!A:B,2,FALSE)","v":"Tift Campus Sum"},"17700001","","","","",""]
["17","325",null,null,"PHYSICAL PLANT COASTAL        ","2571GF325000","11300","17100","11200","17700001",{"$f":"VLOOKUP(TRIM(J1674),'Transactional Departments'!A:B,2,FALSE)","v":"Tift Campus Sum"},"17700001","","","","RCP",""]
["17","325",null,null,"PHYSICAL PLANT-UTILITIES      ","2571GF325005","11300","17100","11200","17700001",{"$f":"VLOOKUP(TRIM(J1675),'Transactional Departments'!A:B,2,FALSE)","v":"Tift Campus Sum"},"17700001","","","","RCP",""]
["17","326",null,null,"LIBRARY                COASTAL","2541GF326000","11300","14100","11200","17700001",{"$f":"VLOOKUP(TRIM(J1676),'Transactional Departments'!A:B,2,FALSE)","v":"Tift Campus Sum"},"17700001","","","","RCP",""]
["17","327",null,null,"         UGARF SUPPORT AE RSCH","2521RX327900","20300","12100","64ICR","17120001",{"$f":"VLOOKUP(TRIM(J1677),'Transactional Departments'!A:B,2,FALSE)","v":"CAES Assoc Dean Rsch Sum"},"17120001","","","","",""]
["17","327",null,null,"         RESIDUAL #327ES THREA","2521RX327950","20400","12100","64RBP","17120001",{"$f":"VLOOKUP(TRIM(J1678),'Transactional Departments'!A:B,2,FALSE)","v":"CAES Assoc Dean Rsch Sum"},"17120001","","","","",""]
["17","328",null,null,"CU/USDA  SOIL COMPACTION PO671","2521CF328191","11300","12110","11200","17240001",{"$f":"VLOOKUP(TRIM(J1679),'Transactional Departments'!A:B,2,FALSE)","v":"CSS Sum"},"17240001","","","","",""]
["17","328",null,null,"UGARF    GSDC ZOYSIAGRASSSCHWA","2521RF328006","20300","12100","64URF","17242SCW",{"$f":"VLOOKUP(TRIM(J1680),'Transactional Departments'!A:B,2,FALSE)","v":"Schwartz, Brian"},"17242SCW","","","","",""]
["17","328",null,null,"GACCC    RF HLSTC IRRGTN VELLI","2521RF328009","20400","12100","62001","17240001",{"$f":"VLOOKUP(TRIM(J1681),'Transactional Departments'!A:B,2,FALSE)","v":"CSS Sum"},"17240001","","","","",""]
["17","328",null,null,"CALI/USDARF SUWANNEE RVR VELLI","2521RF328010","20400","12100","62562","17240001",{"$f":"VLOOKUP(TRIM(J1682),'Transactional Departments'!A:B,2,FALSE)","v":"CSS Sum"},"17240001","","","","",""]
["17","328",null,null,"CI       RF ENHANCE ROOT CHEE ","2521RF328011","20400","12100","64355","17240001",{"$f":"VLOOKUP(TRIM(J1683),'Transactional Departments'!A:B,2,FALSE)","v":"CSS Sum"},"17240001","","","","",""]
["17","328",null,null,"FLA/USDC RF SCI & ASSEM       ","2521RF328013","20400","12100","62511","17240001",{"$f":"VLOOKUP(TRIM(J1684),'Transactional Departments'!A:B,2,FALSE)","v":"CSS Sum"},"17240001","","","","",""]
["17","328",null,null,"GACCC    RF RT KNT NEMA  CHEE ","2521RF328015","20400","12100","62001","17240001",{"$f":"VLOOKUP(TRIM(J1685),'Transactional Departments'!A:B,2,FALSE)","v":"CSS Sum"},"17240001","","","","",""]
["17","328",null,null,"         AGR ENGR VARIOUSTHREA","2521RF328020","20400","12100","64206","17240001",{"$f":"VLOOKUP(TRIM(J1686),'Transactional Departments'!A:B,2,FALSE)","v":"CSS Sum"},"17240001","","","","",""]
["17","328",null,null,"GACCP     EVAL TILL SYSTUTUBBS","2521RF328022","20400","12100","64000","17240001",{"$f":"VLOOKUP(TRIM(J1687),'Transactional Departments'!A:B,2,FALSE)","v":"CSS Sum"},"17240001","","","","",""]
["17","328",null,null,"GACCP    RF EVAL REPLANT TUBBS","2521RF328025","20400","12100","64000","17240001",{"$f":"VLOOKUP(TRIM(J1688),'Transactional Departments'!A:B,2,FALSE)","v":"CSS Sum"},"17240001","","","","",""]
["17","328",null,null,"UC       RF SALMONELLA   VELLI","2521RF328036","20400","12100","62562","17240001",{"$f":"VLOOKUP(TRIM(J1689),'Transactional Departments'!A:B,2,FALSE)","v":"CSS Sum"},"17240001","","","","",""]
["17","328",null,null,"CI       RF INTROGRESS   CHEE ","2521RF328046","20400","12100","64355","17240001",{"$f":"VLOOKUP(TRIM(J1690),'Transactional Departments'!A:B,2,FALSE)","v":"CSS Sum"},"17240001","","","","",""]
["17","328",null,null,"GACCC    RF CORN ROWS    TUBBS","2521RF328050","20400","12100","62047","17240001",{"$f":"VLOOKUP(TRIM(J1691),'Transactional Departments'!A:B,2,FALSE)","v":"CSS Sum"},"17240001","","","","",""]
["17","328",null,null,"GACCP    RF IRRGTN MTHDS PORTE","2521RF328052","20400","12100","62002","17240001",{"$f":"VLOOKUP(TRIM(J1692),'Transactional Departments'!A:B,2,FALSE)","v":"CSS Sum"},"17240001","","","","",""]
["17","328",null,null,"NPB      RF MATUR GROUP  GREY ","2521RF328054","20400","12100","64000","17240001",{"$f":"VLOOKUP(TRIM(J1693),'Transactional Departments'!A:B,2,FALSE)","v":"CSS Sum"},"17240001","","","","",""]
["17","328",null,null,"GACCP    RF HLSTIC IRRG  VELLI","2521RF328057","20400","12100","62002","17240001",{"$f":"VLOOKUP(TRIM(J1694),'Transactional Departments'!A:B,2,FALSE)","v":"CSS Sum"},"17240001","","","","",""]
["17","328",null,null,"GACCP    RF TLLGE HERB FXTUBBS","2521RF328059","20400","12100","62002","17240001",{"$f":"VLOOKUP(TRIM(J1695),'Transactional Departments'!A:B,2,FALSE)","v":"CSS Sum"},"17240001","","","","",""]
["17","328",null,null,"GACCP    RF TLLGE SYSTMS TUBBS","2521RF328060","20400","12100","62002","17240001",{"$f":"VLOOKUP(TRIM(J1696),'Transactional Departments'!A:B,2,FALSE)","v":"CSS Sum"},"17240001","","","","",""]
["17","328",null,null,"GACCP    RF BREEDING PRG BRANC","2521RF328062","20400","12100","62002","17240001",{"$f":"VLOOKUP(TRIM(J1697),'Transactional Departments'!A:B,2,FALSE)","v":"CSS Sum"},"17240001","","","","",""]
["17","328",null,null,"VOC      RF SEEDED ONION GREY ","2521RF328064","20400","12100","64327","17240001",{"$f":"VLOOKUP(TRIM(J1698),'Transactional Departments'!A:B,2,FALSE)","v":"CSS Sum"},"17240001","","","","",""]
["17","328",null,null,"GCCP     RF RF332-664    CULBR","2521RF328069","20400","12100","62002","17240001",{"$f":"VLOOKUP(TRIM(J1699),'Transactional Departments'!A:B,2,FALSE)","v":"CSS Sum"},"17240001","","","","",""]
["17","328",null,null,"GCCC     RF DROUGHT SENS SNIDE","2521RF328070","20400","12100","62001","17240001",{"$f":"VLOOKUP(TRIM(J1700),'Transactional Departments'!A:B,2,FALSE)","v":"CSS Sum"},"17240001","","","","",""]
["17","328",null,null,"GCCC     RF IRRIGATION   VELLI","2521RF328071","20400","12100","62001","17240001",{"$f":"VLOOKUP(TRIM(J1701),'Transactional Departments'!A:B,2,FALSE)","v":"CSS Sum"},"17240001","","","","",""]
["17","328",null,null,"GCCP     RF CROPPING SYS TUBBS","2521RF328072","20400","12100","62002","17240001",{"$f":"VLOOKUP(TRIM(J1702),'Transactional Departments'!A:B,2,FALSE)","v":"CSS Sum"},"17240001","","","","",""]
["17","328",null,null,"GCCP     RF GERMINATION  GREY ","2521RF328073","20400","12100","62002","17240001",{"$f":"VLOOKUP(TRIM(J1703),'Transactional Departments'!A:B,2,FALSE)","v":"CSS Sum"},"17240001","","","","",""]
["17","328",null,null,"GCCC     RF ROOT-KNOT    CHEE ","2521RF328074","20400","12100","62001","17240001",{"$f":"VLOOKUP(TRIM(J1704),'Transactional Departments'!A:B,2,FALSE)","v":"CSS Sum"},"17240001","","","","",""]
["17","328",null,null,"GCCP     RF SOIL MOISTUR VELLI","2521RF328075","20400","12100","62002","17240001",{"$f":"VLOOKUP(TRIM(J1705),'Transactional Departments'!A:B,2,FALSE)","v":"CSS Sum"},"17240001","","","","",""]
["17","328",null,null,"GCCP     RF RF328-072     GREY","2521RF328076","20400","12100","62002","17240001",{"$f":"VLOOKUP(TRIM(J1706),'Transactional Departments'!A:B,2,FALSE)","v":"CSS Sum"},"17240001","","","","",""]
["17","328",null,null,"GCCP     RF RF328-072  MONFORT","2521RF328078","20400","12100","62002","17240001",{"$f":"VLOOKUP(TRIM(J1707),'Transactional Departments'!A:B,2,FALSE)","v":"CSS Sum"},"17240001","","","","",""]
["17","328",null,null,"GCCC     RF FINE MAPPING CHEE ","2521RF328084","20400","12100","62001","17240001",{"$f":"VLOOKUP(TRIM(J1708),'Transactional Departments'!A:B,2,FALSE)","v":"CSS Sum"},"17240001","","","","",""]
["17","328",null,null,"GCCC     RF SMART IRRIG  PORTE","2521RF328086","20400","12100","62001","17240001",{"$f":"VLOOKUP(TRIM(J1709),'Transactional Departments'!A:B,2,FALSE)","v":"CSS Sum"},"17240001","","","","",""]
["17","328",null,null,"GCCC     RF MODERN CORN  PORTE","2521RF328087","20400","12100","62047","17240001",{"$f":"VLOOKUP(TRIM(J1710),'Transactional Departments'!A:B,2,FALSE)","v":"CSS Sum"},"17240001","","","","",""]
["17","328",null,null,"GCCP     RF WEED CONTROL TUBBS","2521RF328088","20400","12100","62002","17240001",{"$f":"VLOOKUP(TRIM(J1711),'Transactional Departments'!A:B,2,FALSE)","v":"CSS Sum"},"17240001","","","","",""]
["17","328",null,null,"GCCC     RF RDI VS SDI   PORTE","2521RF328089","20400","12100","62047","17240001",{"$f":"VLOOKUP(TRIM(J1712),'Transactional Departments'!A:B,2,FALSE)","v":"CSS Sum"},"17240001","","","","",""]
["17","328",null,null,"GCCP     RF IRRIGATION   PORTE","2521RF328092","20400","12100","62002","17240001",{"$f":"VLOOKUP(TRIM(J1713),'Transactional Departments'!A:B,2,FALSE)","v":"CSS Sum"},"17240001","","","","",""]
["17","328",null,null,"USDA ARS RF PASTURELAND  VELLI","2521RF328094","20400","12100","61004","17240001",{"$f":"VLOOKUP(TRIM(J1714),'Transactional Departments'!A:B,2,FALSE)","v":"CSS Sum"},"17240001","","","","",""]
["17","328",null,null,"MONSANTO RF SO 50        TUBBS","2521RF328095","20400","12100","64007","17240001",{"$f":"VLOOKUP(TRIM(J1715),'Transactional Departments'!A:B,2,FALSE)","v":"CSS Sum"},"17240001","","","","",""]
["17","328",null,null,"GCCC     COTTON PHYSIOL  SHILL","2521RF328096","20400","12100","62001","17240001",{"$f":"VLOOKUP(TRIM(J1716),'Transactional Departments'!A:B,2,FALSE)","v":"CSS Sum"},"17240001","","","","",""]
["17","328",null,null,"VOC      RF 2015 EVAL    GREY ","2521RF328100","20400","12100","64327","17240001",{"$f":"VLOOKUP(TRIM(J1717),'Transactional Departments'!A:B,2,FALSE)","v":"CSS Sum"},"17240001","","","","",""]
["17","328",null,null,"COTN INC RF XPAND IRRIG  VELLI","2521RF328104","20400","12100","64355","17240001",{"$f":"VLOOKUP(TRIM(J1718),'Transactional Departments'!A:B,2,FALSE)","v":"CSS Sum"},"17240001","","","","",""]
["17","328",null,null,"GACC PNTSRF BREEDING     BRANC","2521RF328105","20400","12100","62002","17240001",{"$f":"VLOOKUP(TRIM(J1719),'Transactional Departments'!A:B,2,FALSE)","v":"CSS Sum"},"17240001","","","","",""]
["17","328",null,null,"GACCC    RF CORN HYBRIDS PORTE","2521RF328114","20400","12100","62047","17240001",{"$f":"VLOOKUP(TRIM(J1720),'Transactional Departments'!A:B,2,FALSE)","v":"CSS Sum"},"17240001","","","","",""]
["17","328",null,null,"GACC/CINCRF RYE COVER    SNIDE","2521RF328117","20400","12100","62001","17240001",{"$f":"VLOOKUP(TRIM(J1721),'Transactional Departments'!A:B,2,FALSE)","v":"CSS Sum"},"17240001","","","","",""]
["17","328",null,null,"COTON INCRF PLANT PER    PORTE","2521RF328133","20400","12100","64355","17240001",{"$f":"VLOOKUP(TRIM(J1722),'Transactional Departments'!A:B,2,FALSE)","v":"CSS Sum"},"17240001","","","","",""]
["17","328",null,null,"GACCC    RF BASE COTTON PORTER","2521RF328141","20400","12100","62001","17240001",{"$f":"VLOOKUP(TRIM(J1723),'Transactional Departments'!A:B,2,FALSE)","v":"CSS Sum"},"17240001","","","","",""]
["17","328",null,null,"GACC COTNRF ROOT KNOT    CHEE ","2521RF328142","20400","12100","62001","17240001",{"$f":"VLOOKUP(TRIM(J1724),'Transactional Departments'!A:B,2,FALSE)","v":"CSS Sum"},"17240001","","","","",""]
["17","328",null,null,"COTTN INCRF SEED RATES   SNIDE","2521RF328143","20400","12100","64355","17240001",{"$f":"VLOOKUP(TRIM(J1725),'Transactional Departments'!A:B,2,FALSE)","v":"CSS Sum"},"17240001","","","","",""]
["17","328",null,null,"GACCP/NPBRF MATURITY     GREY ","2521RF328172","20400","12100","62002","17240001",{"$f":"VLOOKUP(TRIM(J1726),'Transactional Departments'!A:B,2,FALSE)","v":"CSS Sum"},"17240001","","","","",""]
["17","328",null,null,"GACCP/NPBRF NUTSEDGE Y 2 GREY ","2521RF328173","20400","12100","62002","17240001",{"$f":"VLOOKUP(TRIM(J1727),'Transactional Departments'!A:B,2,FALSE)","v":"CSS Sum"},"17240001","","","","",""]
["17","328",null,null,"UF/USDA  RF RR272-705 PORTER  ","2521RF328185","20400","12100","62511","17240001",{"$f":"VLOOKUP(TRIM(J1728),'Transactional Departments'!A:B,2,FALSE)","v":"CSS Sum"},"17240001","","","","",""]
["17","328",null,null,"GACCP    RF ANATOMICAL   PILON","2521RF328187","20400","12100","62002","17240001",{"$f":"VLOOKUP(TRIM(J1729),'Transactional Departments'!A:B,2,FALSE)","v":"CSS Sum"},"17240001","","","","",""]
["17","328",null,null,"BASF     RYEGRASS BURN   GREY ","2521RF328188","20400","12100","64002","17240001",{"$f":"VLOOKUP(TRIM(J1730),'Transactional Departments'!A:B,2,FALSE)","v":"CSS Sum"},"17240001","","","","",""]
["17","328",null,null,"MONSANTO RF 2018 PHOTO   GREY ","2521RF328189","20400","12100","64008","17240001",{"$f":"VLOOKUP(TRIM(J1731),'Transactional Departments'!A:B,2,FALSE)","v":"CSS Sum"},"17240001","","","","",""]
["17","328",null,null,"FRS/USDA RF VAR RATE IRRIVELLI","2521RF328190","20400","12100","64371","17240001",{"$f":"VLOOKUP(TRIM(J1732),'Transactional Departments'!A:B,2,FALSE)","v":"CSS Sum"},"17240001","","","","",""]
["17","328",null,null,"GACCT    RF BAKER 84          ","2521RF328193","20400","12100","62005","17240001",{"$f":"VLOOKUP(TRIM(J1733),'Transactional Departments'!A:B,2,FALSE)","v":"CSS Sum"},"17240001","","","","",""]
["17","328",null,null,"GACCT    RF WALKER 84         ","2521RF328194","20400","12100","62005","17240001",{"$f":"VLOOKUP(TRIM(J1734),'Transactional Departments'!A:B,2,FALSE)","v":"CSS Sum"},"17240001","","","","",""]
["17","328",null,null,"GACCT    RF STEPHENSON 84     ","2521RF328195","20400","12100","62005","17240001",{"$f":"VLOOKUP(TRIM(J1735),'Transactional Departments'!A:B,2,FALSE)","v":"CSS Sum"},"17240001","","","","",""]
["17","328",null,null,"UGARF    GSDC PEANUT CLT BRANC","2521RF328383","20300","12100","64URF","17242BRA",{"$f":"VLOOKUP(TRIM(J1736),'Transactional Departments'!A:B,2,FALSE)","v":"Branch, Bill"},"17242BRA","","","","",""]
["17","328",null,null,"UGARF    GSDC COTTON     CHEE ","2521RF328629","20300","12100","64URF","17242CHE",{"$f":"VLOOKUP(TRIM(J1737),'Transactional Departments'!A:B,2,FALSE)","v":"Chee, Peng Wah"},"17242CHE","","","","",""]
["17","328",null,null,"NAS/DOS  INT W/328-770   CHEE ","2521RF328771","20400","12100","64297","17240001",{"$f":"VLOOKUP(TRIM(J1738),'Transactional Departments'!A:B,2,FALSE)","v":"CSS Sum"},"17240001","","","","",""]
["17","328",null,null,"DOW      ENLIST DUO      CULPE","2521RF328774","20400","12100","64037","17240001",{"$f":"VLOOKUP(TRIM(J1739),'Transactional Departments'!A:B,2,FALSE)","v":"CSS Sum"},"17240001","","","","",""]
["17","328",null,null,"GACC COTTRF ADAPTED CTN  CHEE ","2521RF328775","20400","12100","62001","17240001",{"$f":"VLOOKUP(TRIM(J1740),'Transactional Departments'!A:B,2,FALSE)","v":"CSS Sum"},"17240001","","","","",""]
["17","328",null,null,"UGARF    GSDC SUPR GRASS HANNA","2521RF328783","20300","12100","64URF","17242WHA",{"$f":"VLOOKUP(TRIM(J1741),'Transactional Departments'!A:B,2,FALSE)","v":"Hanna, Wayne"},"17242WHA","","","","",""]
["17","328",null,null,"UGARF    GSDC BERMUDA    SCHWA","2521RF328784","20300","12100","64URF","17242SCW",{"$f":"VLOOKUP(TRIM(J1742),'Transactional Departments'!A:B,2,FALSE)","v":"Schwartz, Brian"},"17242SCW","","","","",""]
["17","328",null,null,"UGARF    GSDC CENTIPEDE  SCHWA","2521RF328785","20300","12100","64URF","17242SCW",{"$f":"VLOOKUP(TRIM(J1743),'Transactional Departments'!A:B,2,FALSE)","v":"Schwartz, Brian"},"17242SCW","","","","",""]
["17","328",null,null,"USEPA    RF CNTRL GLYPHOSCULPE","2521RF328870","20400","12100","61032","17240001",{"$f":"VLOOKUP(TRIM(J1744),'Transactional Departments'!A:B,2,FALSE)","v":"CSS Sum"},"17240001","","","","",""]
["17","328",null,null,"GA CCC   RF FRTLZ ST COT TUBBS","2521RF328879","20400","12100","62001","17240001",{"$f":"VLOOKUP(TRIM(J1745),'Transactional Departments'!A:B,2,FALSE)","v":"CSS Sum"},"17240001","","","","",""]
["17","328",null,null,"GACCS    RF SOY CUL MET  GREY ","2521RF328883","20400","12100","62004","17240001",{"$f":"VLOOKUP(TRIM(J1746),'Transactional Departments'!A:B,2,FALSE)","v":"CSS Sum"},"17240001","","","","",""]
["17","328",null,null,"         RF WEED CONTROL GREY ","2521RF328885","20400","12100","64327","17240001",{"$f":"VLOOKUP(TRIM(J1747),'Transactional Departments'!A:B,2,FALSE)","v":"CSS Sum"},"17240001","","","","",""]
["17","328",null,null,"GACCP    RF CS OP RR PNUTTUBBS","2521RF328886","20400","12100","62002","17240001",{"$f":"VLOOKUP(TRIM(J1748),'Transactional Departments'!A:B,2,FALSE)","v":"CSS Sum"},"17240001","","","","",""]
["17","328",null,null,"GACCP    RF GA PNUT BP   BRANC","2521RF328894","20400","12100","62002","17240001",{"$f":"VLOOKUP(TRIM(J1749),'Transactional Departments'!A:B,2,FALSE)","v":"CSS Sum"},"17240001","","","","",""]
["17","328",null,null,"UGARF    BERMUDAGRASS    SCHWA","2521RF328957","20300","12100","64URF","17240001",{"$f":"VLOOKUP(TRIM(J1750),'Transactional Departments'!A:B,2,FALSE)","v":"CSS Sum"},"17240001","","","","",""]
["17","328",null,null,"ROYALTY INVENT/BRANCH         ","2521RX328815","20300","12100","64RYT","17242BRA",{"$f":"VLOOKUP(TRIM(J1751),'Transactional Departments'!A:B,2,FALSE)","v":"Branch, Bill"},"17242BRA","","","","",""]
["17","328",null,null,"ROYALTY INVENTR HANNA/SCHWARTZ","2521RX328816","20300","12100","64RYT","17240001",{"$f":"VLOOKUP(TRIM(J1752),'Transactional Departments'!A:B,2,FALSE)","v":"CSS Sum"},"17240001","","","","",""]
["17","328",null,null,"ROYALTY CHEE RX284-529        ","2521RX328817","20300","12100","64RYT","17242CHE",{"$f":"VLOOKUP(TRIM(J1753),'Transactional Departments'!A:B,2,FALSE)","v":"Chee, Peng Wah"},"17242CHE","","","","",""]
["17","328",null,null,"ROYALTY SCHW RX284-529        ","2521RX328820","20300","12100","64RYT","17242SCW",{"$f":"VLOOKUP(TRIM(J1754),'Transactional Departments'!A:B,2,FALSE)","v":"Schwartz, Brian"},"17242SCW","","","","",""]
["17","328",null,null,"         UGARF SUPPORT AGR RSH","2521RX328900","20300","12100","64ICR","17240001",{"$f":"VLOOKUP(TRIM(J1755),'Transactional Departments'!A:B,2,FALSE)","v":"CSS Sum"},"17240001","","","","",""]
["17","328",null,null,"         RESIDUAL #328ES SHILL","2521RX328950","20400","12100","64RBP","17240001",{"$f":"VLOOKUP(TRIM(J1756),'Transactional Departments'!A:B,2,FALSE)","v":"CSS Sum"},"17240001","","","","",""]
["17","328",null,null,"RESIDUAL BALANCE TUBBS     328","2521RX328951","20400","12100","64206","17242TUB",{"$f":"VLOOKUP(TRIM(J1757),'Transactional Departments'!A:B,2,FALSE)","v":"Tubbs, Scott"},"17242TUB","","","","",""]
["17","328",null,null,"CULPEPPER VARIETY SALES       ","2526DF328200","14300","12200","41500","17242CUL",{"$f":"VLOOKUP(TRIM(J1758),'Transactional Departments'!A:B,2,FALSE)","v":"Culpepper, Stanley"},"17242CUL","","","","RCP",""]
["17","328",null,null,"PROJECT TESTING GREY          ","2526DF328300","14300","12200","41500","17240001",{"$f":"VLOOKUP(TRIM(J1759),'Transactional Departments'!A:B,2,FALSE)","v":"CSS Sum"},"17240001","","","","",""]
["17","328",null,null,"PROJECT TESTING PROSTKO       ","2526DF328400","14300","12200","41500","17240001",{"$f":"VLOOKUP(TRIM(J1760),'Transactional Departments'!A:B,2,FALSE)","v":"CSS Sum"},"17240001","","","","",""]
["17","328",null,null,"PROJECT TESTING COLLINS       ","2526DF328500","14300","12200","41500","17240001",{"$f":"VLOOKUP(TRIM(J1761),'Transactional Departments'!A:B,2,FALSE)","v":"CSS Sum"},"17240001","","","","RCP",""]
["17","328",null,null,"PROJECT TESTING BEASLEY       ","2526DF328600","14300","12200","41500","17240001",{"$f":"VLOOKUP(TRIM(J1762),'Transactional Departments'!A:B,2,FALSE)","v":"CSS Sum"},"17240001","","","","",""]
["17","328",null,null,"PROJECT TESTING WHITAKER      ","2526DF328700","14300","12200","41500","17242WHI",{"$f":"VLOOKUP(TRIM(J1763),'Transactional Departments'!A:B,2,FALSE)","v":"Whitaker, Jared"},"17242WHI","","","","RCP",""]
["17","328",null,null,"CONFERENCE/WORKSHOP VELLIDIS  ","2526DW328801","14300","12200","41500","17242VED",{"$f":"VLOOKUP(TRIM(J1764),'Transactional Departments'!A:B,2,FALSE)","v":"Vellidis, George"},"17242VED","","","","RCP",""]
["17","328",null,null,"CROP & SOIL SCIENCES COASTAL  ","2526GF328000","11300","12200","11200","17240001",{"$f":"VLOOKUP(TRIM(J1765),'Transactional Departments'!A:B,2,FALSE)","v":"CSS Sum"},"17240001","","","","RCP",""]
["17","328",null,null,"WATER LAB ADMIN               ","2526GF328010","11300","12200","11200","17240001",{"$f":"VLOOKUP(TRIM(J1766),'Transactional Departments'!A:B,2,FALSE)","v":"CSS Sum"},"17240001","","","","RCP",""]
["17","328",null,null,"WATER LAB RESERVES            ","2526GF328020","11300","12200","11200","17240001",{"$f":"VLOOKUP(TRIM(J1767),'Transactional Departments'!A:B,2,FALSE)","v":"CSS Sum"},"17240001","","","","RCP",""]
["17","328",null,null,"STATE WATER LAB               ","2526GF328030","11300","12200","11200","17240001",{"$f":"VLOOKUP(TRIM(J1768),'Transactional Departments'!A:B,2,FALSE)","v":"CSS Sum"},"17240001","","","","RCP",""]
["17","328",null,null,"RESEARCH ADVISORY SERVICES    ","2526GF328080","11300","12200","11200","17240001",{"$f":"VLOOKUP(TRIM(J1769),'Transactional Departments'!A:B,2,FALSE)","v":"CSS Sum"},"17240001","","","","RCP",""]
["17","328",null,null,"CROP & SOIL SCI  DEPT ADMIN   ","2526GF328090","11300","12200","11200","17240001",{"$f":"VLOOKUP(TRIM(J1770),'Transactional Departments'!A:B,2,FALSE)","v":"CSS Sum"},"17240001","","","","RCP",""]
["17","328",null,null,"CSS STATE MONFORT             ","2526GF328100","11300","12200","11200","17242MON",{"$f":"VLOOKUP(TRIM(J1771),'Transactional Departments'!A:B,2,FALSE)","v":"Monfort, Scott"},"17242MON","","","","RCP",""]
["17","328",null,null,"CSS STATE BRANCH              ","2526GF328110","11300","12200","11200","17242BRA",{"$f":"VLOOKUP(TRIM(J1772),'Transactional Departments'!A:B,2,FALSE)","v":"Branch, Bill"},"17242BRA","","","","RCP",""]
["17","328",null,null,"CSS STATE PORTER              ","2526GF328120","11300","12200","11200","17242POR",{"$f":"VLOOKUP(TRIM(J1773),'Transactional Departments'!A:B,2,FALSE)","v":"Porter, Wes"},"17242POR","","","","RCP",""]
["17","328",null,null,"CSS STATE TUBBS               ","2526GF328130","11300","12200","11200","17242TUB",{"$f":"VLOOKUP(TRIM(J1774),'Transactional Departments'!A:B,2,FALSE)","v":"Tubbs, Scott"},"17242TUB","","","","RCP",""]
["17","328",null,null,"CSS STATE KVIEN               ","2526GF328140","11300","12200","11200","17242KVI",{"$f":"VLOOKUP(TRIM(J1775),'Transactional Departments'!A:B,2,FALSE)","v":"Kvien, Craig"},"17242KVI","","","","RCP",""]
["17","328",null,null,"CSS STATE VELLIDIS            ","2526GF328150","11300","12200","11200","17242VED",{"$f":"VLOOKUP(TRIM(J1776),'Transactional Departments'!A:B,2,FALSE)","v":"Vellidis, George"},"17242VED","","","","RCP",""]
["17","328",null,null,"CSS STATE HANNA               ","2526GF328160","11300","12200","11200","17242WHA",{"$f":"VLOOKUP(TRIM(J1777),'Transactional Departments'!A:B,2,FALSE)","v":"Hanna, Wayne"},"17242WHA","","","","RCP",""]
["17","328",null,null,"CSS STATE VARIETY TESTING     ","2526GF328170","11300","12200","11200","17240001",{"$f":"VLOOKUP(TRIM(J1778),'Transactional Departments'!A:B,2,FALSE)","v":"CSS Sum"},"17240001","","","","RCP",""]
["17","328",null,null,"CSS STATE CHEE                ","2526GF328200","11300","12200","11200","17242CHE",{"$f":"VLOOKUP(TRIM(J1779),'Transactional Departments'!A:B,2,FALSE)","v":"Chee, Peng Wah"},"17242CHE","","","","RCP",""]
["17","328",null,null,"CSS STATE SNIDER              ","2526GF328210","11300","12200","11200","17242SNI",{"$f":"VLOOKUP(TRIM(J1780),'Transactional Departments'!A:B,2,FALSE)","v":"Snider, John"},"17242SNI","","","","RCP",""]
["17","328",null,null,"CSS STATE GREY                ","2526GF328220","11300","12200","11200","17242GRE",{"$f":"VLOOKUP(TRIM(J1781),'Transactional Departments'!A:B,2,FALSE)","v":"Greym Tim"},"17242GRE","","","","RCP",""]
["17","328",null,null,"CSS STATE NOLAN               ","2526GF328230","11300","12200","11200","17240001",{"$f":"VLOOKUP(TRIM(J1782),'Transactional Departments'!A:B,2,FALSE)","v":"CSS Sum"},"17240001","","","","RCP",""]
["17","328",null,null,"CSS STATE WHITAKER            ","2526GF328260","11300","12200","11200","17240001",{"$f":"VLOOKUP(TRIM(J1783),'Transactional Departments'!A:B,2,FALSE)","v":"CSS Sum"},"17240001","","","","",""]
["17","328",null,null,"CSS STATE SCHWARTZ            ","2526GF328270","11300","12200","11200","17240001",{"$f":"VLOOKUP(TRIM(J1784),'Transactional Departments'!A:B,2,FALSE)","v":"CSS Sum"},"17240001","","","","",""]
["17","328",null,null,"CSS STATE CULPEPPER           ","2526GF328280","11300","12200","11200","17240001",{"$f":"VLOOKUP(TRIM(J1785),'Transactional Departments'!A:B,2,FALSE)","v":"CSS Sum"},"17240001","","","","",""]
["17","328",null,null,"CSS STATE PILON               ","2526GF328290","11300","12200","11200","17240001",{"$f":"VLOOKUP(TRIM(J1786),'Transactional Departments'!A:B,2,FALSE)","v":"CSS Sum"},"17240001","","","","RCP",""]
["17","329",null,null,"UF/USDA  RF CALF PERFORM TAO  ","2521RF329132","20400","12100","62511","17230001",{"$f":"VLOOKUP(TRIM(J1787),'Transactional Departments'!A:B,2,FALSE)","v":"ADS Sum"},"17230001","","","","",""]
["17","329",null,null,"TX/NCGA  RF SMECTITE     TAO  ","2521RF329213","20400","12100","62527","17230001",{"$f":"VLOOKUP(TRIM(J1788),'Transactional Departments'!A:B,2,FALSE)","v":"ADS Sum"},"17230001","","","","",""]
["17","329",null,null,"ROYALTY INVENT/NEWTON         ","2521RX329143","20300","12100","64RYT","17230001",{"$f":"VLOOKUP(TRIM(J1789),'Transactional Departments'!A:B,2,FALSE)","v":"ADS Sum"},"17230001","","","","",""]
["17","329",null,null,"         UGARF SUPPORT ANS RCH","2521RX329900","20300","12100","64ICR","17230001",{"$f":"VLOOKUP(TRIM(J1790),'Transactional Departments'!A:B,2,FALSE)","v":"ADS Sum"},"17230001","","","","",""]
["17","329",null,null,"         RESIDUAL #329ES WEST ","2521RX329950","20400","12100","64RBP","17230001",{"$f":"VLOOKUP(TRIM(J1791),'Transactional Departments'!A:B,2,FALSE)","v":"ADS Sum"},"17230001","","","","",""]
["17","329",null,null,"ANIMAL SCIENCE RSCH COASTAL   ","2526DF329000","14300","12200","41500","17239000",{"$f":"VLOOKUP(TRIM(J1792),'Transactional Departments'!A:B,2,FALSE)","v":"Farms"},"17239000","","","","RCP",""]
["17","329",null,null,"ADS TIFTON BEEF               ","2526DF329920","14300","12200","41500","17239001",{"$f":"VLOOKUP(TRIM(J1793),'Transactional Departments'!A:B,2,FALSE)","v":"ADS Beef/Sheep"},"17239001","","","","RCP",""]
["17","329",null,null,"ADS STATE DAIRY               ","2526DF329930","14300","12200","41500","17239002",{"$f":"VLOOKUP(TRIM(J1794),'Transactional Departments'!A:B,2,FALSE)","v":"Dairy"},"17239002","","","","RCP",""]
["17","329",null,null,"ADS STATE FARM                ","2526DF329940","14300","12200","41500","17239400",{"$f":"VLOOKUP(TRIM(J1795),'Transactional Departments'!A:B,2,FALSE)","v":"Farm Shop"},"17239400","","","","RCP",""]
["17","329",null,null,"TIFTON DAIRY CONFERENCES      ","2526DW329801","14300","12200","41500","17239002",{"$f":"VLOOKUP(TRIM(J1796),'Transactional Departments'!A:B,2,FALSE)","v":"Dairy"},"17239002","","","","RCP",""]
["17","329",null,null,"ANIMAL SCIENCE RSCH COASTAL   ","2526GF329000","11300","12200","11200","17230001",{"$f":"VLOOKUP(TRIM(J1797),'Transactional Departments'!A:B,2,FALSE)","v":"ADS Sum"},"17230001","","","","RCP",""]
["17","329",null,null,"ADS STATE BERNARD             ","2526GF329120","11300","12200","11200","17231025",{"$f":"VLOOKUP(TRIM(J1798),'Transactional Departments'!A:B,2,FALSE)","v":"Bernard, John"},"17231025","","","","RCP",""]
["17","329",null,null,"ADS STATE WEST                ","2526GF329170","11300","12200","11200","17230001",{"$f":"VLOOKUP(TRIM(J1799),'Transactional Departments'!A:B,2,FALSE)","v":"ADS Sum"},"17230001","","","","RCP",""]
["17","329",null,null,"ADS STATE ALAPAHA             ","2526GF329900","11300","12200","11200","17239001",{"$f":"VLOOKUP(TRIM(J1800),'Transactional Departments'!A:B,2,FALSE)","v":"ADS Beef/Sheep"},"17239001","","","","RCP",""]
["17","329",null,null,"ADS STATE BEEF                ","2526GF329920","11300","12200","11200","17239001",{"$f":"VLOOKUP(TRIM(J1801),'Transactional Departments'!A:B,2,FALSE)","v":"ADS Beef/Sheep"},"17239001","","","","RCP",""]
["17","329",null,null,"ADS STATE DAIRY               ","2526GF329930","11300","12200","11200","17239002",{"$f":"VLOOKUP(TRIM(J1802),'Transactional Departments'!A:B,2,FALSE)","v":"Dairy"},"17239002","","","","RCP",""]
["17","329",null,null,"ADS STATE FARM                ","2526GF329940","11300","12200","11200","17239400",{"$f":"VLOOKUP(TRIM(J1803),'Transactional Departments'!A:B,2,FALSE)","v":"Farm Shop"},"17239400","","","","RCP",""]
["17","329",null,null,"ANIMAL SCIENCE RSCH COASTAL   ","2571GF329000","11300","17100","11200","17238100",{"$f":"VLOOKUP(TRIM(J1804),'Transactional Departments'!A:B,2,FALSE)","v":"ADS Maintenance"},"17238100","","","","RCP",""]
["17","330",null,null,"USDA     RF BIOFEEDSTOC  SCHMI","2521CF330528","11300","12110","11200","17250001",{"$f":"VLOOKUP(TRIM(J1805),'Transactional Departments'!A:B,2,FALSE)","v":"Entomology Sum"},"17250001","","","","",""]
["17","330",null,null,"USDA ARS RF PEST MANAGE  TOEWS","2521CF330556","11300","12110","11200","17250001",{"$f":"VLOOKUP(TRIM(J1806),'Transactional Departments'!A:B,2,FALSE)","v":"Entomology Sum"},"17250001","","","","",""]
["17","330",null,null,"         SHEPPARD FDN    MCPHE","2521RF330347","20200","12100","67807","17250001",{"$f":"VLOOKUP(TRIM(J1807),'Transactional Departments'!A:B,2,FALSE)","v":"Entomology Sum"},"17250001","","","","",""]
["17","330",null,null,"GACCC    RF ALFATOXIN    TOEWS","2521RF330445","20400","12100","62047","17250001",{"$f":"VLOOKUP(TRIM(J1808),'Transactional Departments'!A:B,2,FALSE)","v":"Entomology Sum"},"17250001","","","","",""]
["17","330",null,null,"GACCC    RF STNKBUG DARC HERBE","2521RF330446","20400","12100","62001","17250001",{"$f":"VLOOKUP(TRIM(J1809),'Transactional Departments'!A:B,2,FALSE)","v":"Entomology Sum"},"17250001","","","","",""]
["17","330",null,null,"GACCC    RF STNK BG CTRL RUBER","2521RF330450","20400","12100","62001","17250001",{"$f":"VLOOKUP(TRIM(J1810),'Transactional Departments'!A:B,2,FALSE)","v":"Entomology Sum"},"17250001","","","","",""]
["17","330",null,null,"USDA     RF SRINIVISAN309117  ","2521RF330453","20400","12100","61002","17250001",{"$f":"VLOOKUP(TRIM(J1811),'Transactional Departments'!A:B,2,FALSE)","v":"Entomology Sum"},"17250001","","","","",""]
["17","330",null,null,"GACCV    RF COWPEA CURC  RILEY","2521RF330461","20400","12100","62008","17250001",{"$f":"VLOOKUP(TRIM(J1812),'Transactional Departments'!A:B,2,FALSE)","v":"Entomology Sum"},"17250001","","","","",""]
["17","330",null,null,"GACCP    RF TOEWS W328886TUBBS","2521RF330463","20400","12100","62002","17250001",{"$f":"VLOOKUP(TRIM(J1813),'Transactional Departments'!A:B,2,FALSE)","v":"Entomology Sum"},"17250001","","","","",""]
["17","330",null,null,"GACCP    RF SUB W/328-887TUBBS","2521RF330464","20400","12100","62002","17250001",{"$f":"VLOOKUP(TRIM(J1814),'Transactional Departments'!A:B,2,FALSE)","v":"Entomology Sum"},"17250001","","","","",""]
["17","330",null,null,"USDA-NIFARF PNUT GENOTYPESRINI","2521RF330468","20400","12100","61002","17250001",{"$f":"VLOOKUP(TRIM(J1815),'Transactional Departments'!A:B,2,FALSE)","v":"Entomology Sum"},"17250001","","","","",""]
["17","330",null,null,"UKY/NIH  RF TRACTOR OFF  RAINS","2521RF330469","20400","12100","64405","17250001",{"$f":"VLOOKUP(TRIM(J1816),'Transactional Departments'!A:B,2,FALSE)","v":"Entomology Sum"},"17250001","","","","",""]
["17","330",null,null,"GACCV    RF DMNDBCK MOTH RILEY","2521RF330473","20400","12100","62008","17250001",{"$f":"VLOOKUP(TRIM(J1817),'Transactional Departments'!A:B,2,FALSE)","v":"Entomology Sum"},"17250001","","","","",""]
["17","330",null,null,"NSF      RF WITH 722-144_RAINS","2521RF330478","20400","12100","61023","17250001",{"$f":"VLOOKUP(TRIM(J1818),'Transactional Departments'!A:B,2,FALSE)","v":"Entomology Sum"},"17250001","","","","",""]
["17","330",null,null,"USDA     RF BORDER SPRAY TOEWS","2521RF330483","20400","12100","61002","17250001",{"$f":"VLOOKUP(TRIM(J1819),'Transactional Departments'!A:B,2,FALSE)","v":"Entomology Sum"},"17250001","","","","",""]
["17","330",null,null,"NC/USDA  RF MEACOPTA CRI TOEWS","2521RF330487","20400","12100","62506","17250001",{"$f":"VLOOKUP(TRIM(J1820),'Transactional Departments'!A:B,2,FALSE)","v":"Entomology Sum"},"17250001","","","","",""]
["17","330",null,null,"GACCP    RF THRIPS MGMT  ABNEY","2521RF330497","20400","12100","62002","17250001",{"$f":"VLOOKUP(TRIM(J1821),'Transactional Departments'!A:B,2,FALSE)","v":"Entomology Sum"},"17250001","","","","",""]
["17","330",null,null,"         RF SAFE CORN    TOEWS","2521RF330499","20400","12100","64160","17250001",{"$f":"VLOOKUP(TRIM(J1822),'Transactional Departments'!A:B,2,FALSE)","v":"Entomology Sum"},"17250001","","","","",""]
["17","330",null,null,"USDA ARS RF WATERMELON   SRINI","2521RF330504","20400","12100","61004","17250001",{"$f":"VLOOKUP(TRIM(J1823),'Transactional Departments'!A:B,2,FALSE)","v":"Entomology Sum"},"17250001","","","","",""]
["17","330",null,null,"CU/NPF   RF HYBRID POP   SRINI","2521RF330505","20400","12100","62504","17250001",{"$f":"VLOOKUP(TRIM(J1824),'Transactional Departments'!A:B,2,FALSE)","v":"Entomology Sum"},"17250001","","","","",""]
["17","330",null,null,"GCCC     RF SAFE STORAGE TOEWS","2521RF330506","20400","12100","62047","17250001",{"$f":"VLOOKUP(TRIM(J1825),'Transactional Departments'!A:B,2,FALSE)","v":"Entomology Sum"},"17250001","","","","",""]
["17","330",null,null,"GCCV     RF WHITEFLIES   SRINI","2521RF330507","20400","12100","62008","17250001",{"$f":"VLOOKUP(TRIM(J1826),'Transactional Departments'!A:B,2,FALSE)","v":"Entomology Sum"},"17250001","","","","",""]
["17","330",null,null,"GCCP     RF THRIPS       SRINI","2521RF330509","20400","12100","62002","17250001",{"$f":"VLOOKUP(TRIM(J1827),'Transactional Departments'!A:B,2,FALSE)","v":"Entomology Sum"},"17250001","","","","",""]
["17","330",null,null,"GCCT     RF WILT VIRUS   SRINI","2521RF330511","20400","12100","62005","17250001",{"$f":"VLOOKUP(TRIM(J1828),'Transactional Departments'!A:B,2,FALSE)","v":"Entomology Sum"},"17250001","","","","",""]
["17","330",null,null,"GCCP     RF RF332-664    CULBR","2521RF330512","20400","12100","62002","17250001",{"$f":"VLOOKUP(TRIM(J1829),'Transactional Departments'!A:B,2,FALSE)","v":"Entomology Sum"},"17250001","","","","",""]
["17","330",null,null,"GCCC     RF STINK BUGS   TOEWS","2521RF330516","20400","12100","62001","17250001",{"$f":"VLOOKUP(TRIM(J1830),'Transactional Departments'!A:B,2,FALSE)","v":"Entomology Sum"},"17250001","","","","",""]
["17","330",null,null,"CI       RF THRIPS       TOEWS","2521RF330517","20400","12100","64355","17250001",{"$f":"VLOOKUP(TRIM(J1831),'Transactional Departments'!A:B,2,FALSE)","v":"Entomology Sum"},"17250001","","","","",""]
["17","330",null,null,"GCCP     RF INSECTIDIDES DUTCH","2521RF330519","20400","12100","62045","17250001",{"$f":"VLOOKUP(TRIM(J1832),'Transactional Departments'!A:B,2,FALSE)","v":"Entomology Sum"},"17250001","","","","",""]
["17","330",null,null,"GCCP     RF LIGHT TRAP   ABNEY","2521RF330520","20400","12100","62002","17250001",{"$f":"VLOOKUP(TRIM(J1833),'Transactional Departments'!A:B,2,FALSE)","v":"Entomology Sum"},"17250001","","","","",""]
["17","330",null,null,"BC       VIRUS CONTROL   RILEY","2521RF330524","20400","12100","64465","17250001",{"$f":"VLOOKUP(TRIM(J1834),'Transactional Departments'!A:B,2,FALSE)","v":"Entomology Sum"},"17250001","","","","",""]
["17","330",null,null,"GCCC     RF COVER CROP   SCHMI","2521RF330525","20400","12100","62001","17250001",{"$f":"VLOOKUP(TRIM(J1835),'Transactional Departments'!A:B,2,FALSE)","v":"Entomology Sum"},"17250001","","","","",""]
["17","330",null,null,"GCCP     RF AIR BLAST    RAINS","2521RF330526","20400","12100","62007","17250001",{"$f":"VLOOKUP(TRIM(J1836),'Transactional Departments'!A:B,2,FALSE)","v":"Entomology Sum"},"17250001","","","","",""]
["17","330",null,null,"UF       RF IR-4 BIOPEST SRINI","2521RF330532","20400","12100","62511","17250001",{"$f":"VLOOKUP(TRIM(J1837),'Transactional Departments'!A:B,2,FALSE)","v":"Entomology Sum"},"17250001","","","","",""]
["17","330",null,null,"GACCB    RF SPRINKLER    RAINS","2521RF330534","20400","12100","62009","17250001",{"$f":"VLOOKUP(TRIM(J1838),'Transactional Departments'!A:B,2,FALSE)","v":"Entomology Sum"},"17250001","","","","",""]
["17","330",null,null,"GACCC    RF CORN STORAGE TOEWS","2521RF330536","20400","12100","62047","17250001",{"$f":"VLOOKUP(TRIM(J1839),'Transactional Departments'!A:B,2,FALSE)","v":"Entomology Sum"},"17250001","","","","",""]
["17","330",null,null,"GACCC    RF COVER CROP   SCHMI","2521RF330538","20400","12100","62001","17250001",{"$f":"VLOOKUP(TRIM(J1840),'Transactional Departments'!A:B,2,FALSE)","v":"Entomology Sum"},"17250001","","","","",""]
["17","330",null,null,"NCSU     RF STINK BUG    TOEWS","2521RF330542","20400","12100","62506","17250001",{"$f":"VLOOKUP(TRIM(J1841),'Transactional Departments'!A:B,2,FALSE)","v":"Entomology Sum"},"17250001","","","","",""]
["17","330",null,null,"GACCP    RF SPOTTED WILT SRINI","2521RF330549","20400","12100","62002","17250001",{"$f":"VLOOKUP(TRIM(J1842),'Transactional Departments'!A:B,2,FALSE)","v":"Entomology Sum"},"17250001","","","","",""]
["17","330",null,null,"CI       RF THRIPS       TOEWS","2521RF330552","20400","12100","64355","17250001",{"$f":"VLOOKUP(TRIM(J1843),'Transactional Departments'!A:B,2,FALSE)","v":"Entomology Sum"},"17250001","","","","",""]
["17","330",null,null,"CI       RF STINK BUGS   TOEWS","2521RF330553","20400","12100","64355","17250001",{"$f":"VLOOKUP(TRIM(J1844),'Transactional Departments'!A:B,2,FALSE)","v":"Entomology Sum"},"17250001","","","","",""]
["17","330",null,null,"GCCC     RF RF_JD SPRAYERTOEWS","2521RF330557","20400","12100","62047","17250001",{"$f":"VLOOKUP(TRIM(J1845),'Transactional Departments'!A:B,2,FALSE)","v":"Entomology Sum"},"17250001","","","","",""]
["17","330",null,null,"USDA NIFAW/RE677532      AHMAD","2521RF330587","20400","12100","61006","17250001",{"$f":"VLOOKUP(TRIM(J1846),'Transactional Departments'!A:B,2,FALSE)","v":"Entomology Sum"},"17250001","","","","",""]
["17","330",null,null,"         UGARF SUPPORT ENT RSH","2521RX330900","20300","12100","64ICR","17250001",{"$f":"VLOOKUP(TRIM(J1847),'Transactional Departments'!A:B,2,FALSE)","v":"Entomology Sum"},"17250001","","","","",""]
["17","330",null,null,"         RESIDUAL #330ES NOBLE","2521RX330950","20400","12100","64RBP","17250001",{"$f":"VLOOKUP(TRIM(J1848),'Transactional Departments'!A:B,2,FALSE)","v":"Entomology Sum"},"17250001","","","","",""]
["17","330",null,null,"STINK BUG SALES - TOEWS       ","2526DF330001","14300","12200","41500","17253340",{"$f":"VLOOKUP(TRIM(J1849),'Transactional Departments'!A:B,2,FALSE)","v":"Toews"},"17253340","","","","RCP",""]
["17","330",null,null,"SALES AND SERVICE BABU        ","2526DF330005","14300","12200","41500","17250001",{"$f":"VLOOKUP(TRIM(J1850),'Transactional Departments'!A:B,2,FALSE)","v":"Entomology Sum"},"17250001","","","","RCP",""]
["17","330",null,null,"SALES AND SERVICE DUTCHER     ","2526DF330010","14300","12200","41500","17250001",{"$f":"VLOOKUP(TRIM(J1851),'Transactional Departments'!A:B,2,FALSE)","v":"Entomology Sum"},"17250001","","","","",""]
["17","330",null,null,"SALES AND SERVICE RILEY       ","2526DF330030","14300","12200","41500","17253230",{"$f":"VLOOKUP(TRIM(J1852),'Transactional Departments'!A:B,2,FALSE)","v":"Riley"},"17253230","","","","RCP",""]
["17","330",null,null,"SALES AND SERVICE RAINS       ","2526DF330040","14300","12200","41500","17253220",{"$f":"VLOOKUP(TRIM(J1853),'Transactional Departments'!A:B,2,FALSE)","v":"Rains"},"17253220","","","","RCP",""]
["17","330",null,null,"SALES AND SERVICE MICRO GIN   ","2526DF330050","14300","12200","41500","17250001",{"$f":"VLOOKUP(TRIM(J1854),'Transactional Departments'!A:B,2,FALSE)","v":"Entomology Sum"},"17250001","","","","RCP",""]
["17","330",null,null,"ENTOMOLOGY RESEARCH COASTAL   ","2526GF330000","11300","12200","11200","17250001",{"$f":"VLOOKUP(TRIM(J1855),'Transactional Departments'!A:B,2,FALSE)","v":"Entomology Sum"},"17250001","","","","RCP",""]
["17","330",null,null,"RESEARCH ADVISORY SERVICES    ","2526GF330080","11300","12200","11200","17250001",{"$f":"VLOOKUP(TRIM(J1856),'Transactional Departments'!A:B,2,FALSE)","v":"Entomology Sum"},"17250001","","","","RCP",""]
["17","330",null,null,"ENTOMOLOGY RESEARCH DEPT ADMIN","2526GF330090","11300","12200","11200","17252000",{"$f":"VLOOKUP(TRIM(J1857),'Transactional Departments'!A:B,2,FALSE)","v":"Administration"},"17252000","","","","RCP",""]
["17","330",null,null,"ENT STATE ABNEY               ","2526GF330100","11300","12200","11200","17253010",{"$f":"VLOOKUP(TRIM(J1858),'Transactional Departments'!A:B,2,FALSE)","v":"Abney"},"17253010","","","","RCP",""]
["17","330",null,null,"ENT STATE SCHMIDT             ","2526GF330110","11300","12200","11200","17253260",{"$f":"VLOOKUP(TRIM(J1859),'Transactional Departments'!A:B,2,FALSE)","v":"Schmidt"},"17253260","","","","RCP",""]
["17","330",null,null,"ENT STATE SHEPPARD            ","2526GF330120","11300","12200","11200","17250001",{"$f":"VLOOKUP(TRIM(J1860),'Transactional Departments'!A:B,2,FALSE)","v":"Entomology Sum"},"17250001","","","","RCP",""]
["17","330",null,null,"ENT STATE DUTCHER             ","2526GF330130","11300","12200","11200","17250001",{"$f":"VLOOKUP(TRIM(J1861),'Transactional Departments'!A:B,2,FALSE)","v":"Entomology Sum"},"17250001","","","","RCP",""]
["17","330",null,null,"ENTO STATE RAINS              ","2526GF330140","11300","12200","11200","17253220",{"$f":"VLOOKUP(TRIM(J1862),'Transactional Departments'!A:B,2,FALSE)","v":"Rains"},"17253220","","","","RCP",""]
["17","330",null,null,"ENT STATE RILEY               ","2526GF330160","11300","12200","11200","17253230",{"$f":"VLOOKUP(TRIM(J1863),'Transactional Departments'!A:B,2,FALSE)","v":"Riley"},"17253230","","","","RCP",""]
["17","330",null,null,"ENT STATE SRINIVASAN          ","2526GF330170","11300","12200","11200","17253300",{"$f":"VLOOKUP(TRIM(J1864),'Transactional Departments'!A:B,2,FALSE)","v":"Srinivasan"},"17253300","","","","RCP",""]
["17","330",null,null,"ENT STATE - TOEWS             ","2526GF330180","11300","12200","11200","17253340",{"$f":"VLOOKUP(TRIM(J1865),'Transactional Departments'!A:B,2,FALSE)","v":"Toews"},"17253340","","","","RCP",""]
["17","331",null,null,"UGARF    GSDC MUSCADINE  CONNE","2521RF331087","20300","12100","64URF","17270700",{"$f":"VLOOKUP(TRIM(J1866),'Transactional Departments'!A:B,2,FALSE)","v":"Conner, Patrick"},"17270700","","","","",""]
["17","331",null,null,"UGARF    GSDC S-R PECAN  CONNE","2521RF331137","20300","12100","64URF","17270700",{"$f":"VLOOKUP(TRIM(J1867),'Transactional Departments'!A:B,2,FALSE)","v":"Conner, Patrick"},"17270700","","","","",""]
["17","331",null,null,"UGARF    GSDC GA CUTLVR  OZIAS","2521RF331165","20300","12100","64URF","17272000",{"$f":"VLOOKUP(TRIM(J1868),'Transactional Departments'!A:B,2,FALSE)","v":"Ozias-Akins, Peggy"},"17272000","","","","",""]
["17","331",null,null,"         RF OZIAS-AKIN W371245","2521RF331172","20400","12100","64389","17270001",{"$f":"VLOOKUP(TRIM(J1869),'Transactional Departments'!A:B,2,FALSE)","v":"Horticulture Sum"},"17270001","","","","",""]
["17","331",null,null,"SRSFC    PINE BARK IRRIG SMITH","2521RF331278","20400","12100","64342","17270001",{"$f":"VLOOKUP(TRIM(J1870),'Transactional Departments'!A:B,2,FALSE)","v":"Horticulture Sum"},"17270001","","","","",""]
["17","331",null,null,"GCCV     RF CANTALOUPE   COOLO","2521RF331290","20400","12100","62008","17270001",{"$f":"VLOOKUP(TRIM(J1871),'Transactional Departments'!A:B,2,FALSE)","v":"Horticulture Sum"},"17270001","","","","",""]
["17","331",null,null,"USDA NIFARF ASGR-BAYBOOM CONNE","2521RF331292","20400","12100","61002","17270001",{"$f":"VLOOKUP(TRIM(J1872),'Transactional Departments'!A:B,2,FALSE)","v":"Horticulture Sum"},"17270001","","","","",""]
["17","331",null,null,"ANONYMOUSRF INVIGORATE   COOLO","2521RF331300","20400","12100","64207","17270001",{"$f":"VLOOKUP(TRIM(J1873),'Transactional Departments'!A:B,2,FALSE)","v":"Horticulture Sum"},"17270001","","","","",""]
["17","331",null,null,"SYNGENTA RF RF_PROF PLN ACOOLO","2521RF331316","20400","12100","64050","17270001",{"$f":"VLOOKUP(TRIM(J1874),'Transactional Departments'!A:B,2,FALSE)","v":"Horticulture Sum"},"17270001","","","","",""]
["17","331",null,null,"SYNGENTA RF RF_PLAN A-17_COOLO","2521RF331318","20400","12100","64050","17270001",{"$f":"VLOOKUP(TRIM(J1875),'Transactional Departments'!A:B,2,FALSE)","v":"Horticulture Sum"},"17270001","","","","",""]
["17","331",null,null,"GACC VEG RF RF_FERTIGATIOCOOLO","2521RF331324","20400","12100","62008","17270001",{"$f":"VLOOKUP(TRIM(J1876),'Transactional Departments'!A:B,2,FALSE)","v":"Horticulture Sum"},"17270001","","","","",""]
["17","331",null,null,"PNUT FND RF RF_ID SCLEROTOZIAS","2521RF331325","20400","12100","64389","17270001",{"$f":"VLOOKUP(TRIM(J1877),'Transactional Departments'!A:B,2,FALSE)","v":"Horticulture Sum"},"17270001","","","","",""]
["17","331",null,null,"TX A&M   RF TABLE TO FAR COOLO","2521RF331326","20400","12100","62527","17270001",{"$f":"VLOOKUP(TRIM(J1878),'Transactional Departments'!A:B,2,FALSE)","v":"Horticulture Sum"},"17270001","","","","",""]
["17","331",null,null,"ROYALTY INVENTOR KREWER       ","2521RX331267","20300","12100","64RYT","17270001",{"$f":"VLOOKUP(TRIM(J1879),'Transactional Departments'!A:B,2,FALSE)","v":"Horticulture Sum"},"17270001","","","","",""]
["17","331",null,null,"         UGARF SUPPORT HOR RSH","2521RX331900","20300","12100","64ICR","17270001",{"$f":"VLOOKUP(TRIM(J1880),'Transactional Departments'!A:B,2,FALSE)","v":"Horticulture Sum"},"17270001","","","","",""]
["17","331",null,null,"         RESIDUAL #331ES BAILE","2521RX331950","20400","12100","64RBP","17270001",{"$f":"VLOOKUP(TRIM(J1881),'Transactional Departments'!A:B,2,FALSE)","v":"Horticulture Sum"},"17270001","","","","",""]
["17","331",null,null,"HORTICULTURE RESEARCH COASTAL ","2526DF331000","14300","12200","41500","17270001",{"$f":"VLOOKUP(TRIM(J1882),'Transactional Departments'!A:B,2,FALSE)","v":"Horticulture Sum"},"17270001","","","","",""]
["17","331",null,null,"SQUASH RESEARCH - COOLONG     ","2526DF331001","14300","12200","41500","17270001",{"$f":"VLOOKUP(TRIM(J1883),'Transactional Departments'!A:B,2,FALSE)","v":"Horticulture Sum"},"17270001","","","","",""]
["17","331",null,null,"DIAZ FERTILIZER TRIALS        ","2526DF331003","14300","12200","41500","17270001",{"$f":"VLOOKUP(TRIM(J1884),'Transactional Departments'!A:B,2,FALSE)","v":"Horticulture Sum"},"17270001","","","","",""]
["17","331",null,null,"DIAZ BELL PEPPER TRIAL        ","2526DF331004","14300","12200","41500","17270001",{"$f":"VLOOKUP(TRIM(J1885),'Transactional Departments'!A:B,2,FALSE)","v":"Horticulture Sum"},"17270001","","","","",""]
["17","331",null,null,"HORT STATE PECANS             ","2526DF331110","14300","12200","41500","17270001",{"$f":"VLOOKUP(TRIM(J1886),'Transactional Departments'!A:B,2,FALSE)","v":"Horticulture Sum"},"17270001","","","","RCP",""]
["17","331",null,null,"HORTICULTURE RESEARCH COASTAL ","2526GF331000","11300","12200","11200","17270001",{"$f":"VLOOKUP(TRIM(J1887),'Transactional Departments'!A:B,2,FALSE)","v":"Horticulture Sum"},"17270001","","","","RCP",""]
["17","331",null,null,"HORTICULTURE RSCH DEPT ADMIN  ","2526GF331090","11300","12200","11200","17270001",{"$f":"VLOOKUP(TRIM(J1888),'Transactional Departments'!A:B,2,FALSE)","v":"Horticulture Sum"},"17270001","","","","RCP",""]
["17","331",null,null,"HORT STATE WELLS              ","2526GF331100","11300","12200","11200","17273000",{"$f":"VLOOKUP(TRIM(J1889),'Transactional Departments'!A:B,2,FALSE)","v":"Wells, Lenny"},"17273000","","","","RCP",""]
["17","331",null,null,"HORT STATE CONNER             ","2526GF331120","11300","12200","11200","17270700",{"$f":"VLOOKUP(TRIM(J1890),'Transactional Departments'!A:B,2,FALSE)","v":"Conner, Patrick"},"17270700","","","","RCP",""]
["17","331",null,null,"HORT STATE DIAZ PEREZ         ","2526GF331130","11300","12200","11200","17271000",{"$f":"VLOOKUP(TRIM(J1891),'Transactional Departments'!A:B,2,FALSE)","v":"Diaz, Juan"},"17271000","","","","RCP",""]
["17","331",null,null,"HORT STATE OZIAS-AKINS        ","2526GF331150","11300","12200","11200","17272000",{"$f":"VLOOKUP(TRIM(J1892),'Transactional Departments'!A:B,2,FALSE)","v":"Ozias-Akins, Peggy"},"17272000","","","","RCP",""]
["17","331",null,null,"HORT STATE COOLONG            ","2526GF331160","11300","12200","11200","17270800",{"$f":"VLOOKUP(TRIM(J1893),'Transactional Departments'!A:B,2,FALSE)","v":"Coolong, Tim"},"17270800","","","","RCP",""]
["17","331",null,null,"HORT STATE SMITH              ","2526GF331170","11300","12200","11200","17272500",{"$f":"VLOOKUP(TRIM(J1894),'Transactional Departments'!A:B,2,FALSE)","v":"Smith, Erick"},"17272500","","","","RCP",""]
["17","331",null,null,"HORT STATE J CONNER           ","2526GF331210","11300","12200","11200","17270600",{"$f":"VLOOKUP(TRIM(J1895),'Transactional Departments'!A:B,2,FALSE)","v":"Conner, Joanne"},"17270600","","","","RCP",""]
["17","332",null,null,"USDA     RF WATERMELON   JI   ","2521CF332692","11300","12110","11200","17280001",{"$f":"VLOOKUP(TRIM(J1896),'Transactional Departments'!A:B,2,FALSE)","v":"Plant Path Sum"},"17280001","","","","",""]
["17","332",null,null,"PF       RF RIL POPUL    CULBR","2521RC332693","20400","12100","64389","17280001",{"$f":"VLOOKUP(TRIM(J1897),'Transactional Departments'!A:B,2,FALSE)","v":"Plant Path Sum"},"17280001","","","","",""]
["17","332",null,null,"PNUT FND RF PHEN GEN RIL_CULBR","2521RF332007","20400","12100","64389","17280001",{"$f":"VLOOKUP(TRIM(J1898),'Transactional Departments'!A:B,2,FALSE)","v":"Plant Path Sum"},"17280001","","","","",""]
["17","332",null,null,"GACC PECARF PHOSPHIT RES_BRENN","2521RF332008","20400","12100","62045","17280001",{"$f":"VLOOKUP(TRIM(J1899),'Transactional Departments'!A:B,2,FALSE)","v":"Plant Path Sum"},"17280001","","","","",""]
["17","332",null,null,"GACC VEG RF PHYTOPHTHORA_JI   ","2521RF332009","20400","12100","62008","17280001",{"$f":"VLOOKUP(TRIM(J1900),'Transactional Departments'!A:B,2,FALSE)","v":"Plant Path Sum"},"17280001","","","","",""]
["17","332",null,null,"VOC      RF ONION DOWNY MJI   ","2521RF332093","20400","12100","64327","17280001",{"$f":"VLOOKUP(TRIM(J1901),'Transactional Departments'!A:B,2,FALSE)","v":"Plant Path Sum"},"17280001","","","","",""]
["17","332",null,null,"BAYER    RF RF_PNT_NEMATOBRENN","2521RF332095","20400","12100","64465","17280001",{"$f":"VLOOKUP(TRIM(J1902),'Transactional Departments'!A:B,2,FALSE)","v":"Plant Path Sum"},"17280001","","","","",""]
["17","332",null,null,"PNUT FNDNRF TSWV LEAF SP_CULBR","2521RF332098","20400","12100","64389","17280001",{"$f":"VLOOKUP(TRIM(J1903),'Transactional Departments'!A:B,2,FALSE)","v":"Plant Path Sum"},"17280001","","","","",""]
["17","332",null,null,"USAID    RF W/710-023     WILL","2521RF332559","20400","12100","61028","17280001",{"$f":"VLOOKUP(TRIM(J1904),'Transactional Departments'!A:B,2,FALSE)","v":"Plant Path Sum"},"17280001","","","","",""]
["17","332",null,null,"GACCC    RF SOIL REN NEM STEVE","2521RF332595","20400","12100","62001","17280001",{"$f":"VLOOKUP(TRIM(J1905),'Transactional Departments'!A:B,2,FALSE)","v":"Plant Path Sum"},"17280001","","","","",""]
["17","332",null,null,"GACCT    RF CPES 2011 (2)CSINO","2521RF332598","20400","12100","62005","17280001",{"$f":"VLOOKUP(TRIM(J1906),'Transactional Departments'!A:B,2,FALSE)","v":"Plant Path Sum"},"17280001","","","","",""]
["17","332",null,null,"GCCV     RF NEW FUNG PHYTJI   ","2521RF332612","20400","12100","62008","17280001",{"$f":"VLOOKUP(TRIM(J1907),'Transactional Departments'!A:B,2,FALSE)","v":"Plant Path Sum"},"17280001","","","","",""]
["17","332",null,null,"GACCP    RF JI W/328-886 TUBBS","2521RF332623","20400","12100","62002","17280001",{"$f":"VLOOKUP(TRIM(J1908),'Transactional Departments'!A:B,2,FALSE)","v":"Plant Path Sum"},"17280001","","","","",""]
["17","332",null,null,"GACCP    RF PCR SCRN PCN STEVE","2521RF332639","20400","12100","62045","17280001",{"$f":"VLOOKUP(TRIM(J1909),'Transactional Departments'!A:B,2,FALSE)","v":"Plant Path Sum"},"17280001","","","","",""]
["17","332",null,null,"PF       RF RIL PNUT POP CULBR","2521RF332643","20400","12100","64389","17280001",{"$f":"VLOOKUP(TRIM(J1910),'Transactional Departments'!A:B,2,FALSE)","v":"Plant Path Sum"},"17280001","","","","",""]
["17","332",null,null,"GACCP    RF FUNGI APPLC  CULBR","2521RF332650","20400","12100","62002","17280001",{"$f":"VLOOKUP(TRIM(J1911),'Transactional Departments'!A:B,2,FALSE)","v":"Plant Path Sum"},"17280001","","","","",""]
["17","332",null,null,"GACCP    RF INSCTCD TRT  CULBR","2521RF332651","20400","12100","62002","17280001",{"$f":"VLOOKUP(TRIM(J1912),'Transactional Departments'!A:B,2,FALSE)","v":"Plant Path Sum"},"17280001","","","","",""]
["17","332",null,null,"GACCT    RF TOB BLACK SH CSINO","2521RF332652","20400","12100","62005","17280001",{"$f":"VLOOKUP(TRIM(J1913),'Transactional Departments'!A:B,2,FALSE)","v":"Plant Path Sum"},"17280001","","","","",""]
["17","332",null,null,"GACCT    RF EVAL TOB NEM CSINO","2521RF332653","20400","12100","62005","17280001",{"$f":"VLOOKUP(TRIM(J1914),'Transactional Departments'!A:B,2,FALSE)","v":"Plant Path Sum"},"17280001","","","","",""]
["17","332",null,null,"GACCP    RF STROBILURIN  STEVE","2521RF332654","20400","12100","62002","17280001",{"$f":"VLOOKUP(TRIM(J1915),'Transactional Departments'!A:B,2,FALSE)","v":"Plant Path Sum"},"17280001","","","","",""]
["17","332",null,null,"GACCP    RF PNT ROOT KNT BRENN","2521RF332655","20400","12100","62002","17280001",{"$f":"VLOOKUP(TRIM(J1916),'Transactional Departments'!A:B,2,FALSE)","v":"Plant Path Sum"},"17280001","","","","",""]
["17","332",null,null,"GACCP    RF TOMATO SPOT  CULBR","2521RF332656","20400","12100","62002","17280001",{"$f":"VLOOKUP(TRIM(J1917),'Transactional Departments'!A:B,2,FALSE)","v":"Plant Path Sum"},"17280001","","","","",""]
["17","332",null,null,"GACCP    RF SUP 332-656  CULBR","2521RF332657","20400","12100","62002","17280001",{"$f":"VLOOKUP(TRIM(J1918),'Transactional Departments'!A:B,2,FALSE)","v":"Plant Path Sum"},"17280001","","","","",""]
["17","332",null,null,"GCCP/NPB RF CONTAMINATIONCULBR","2521RF332658","20400","12100","62002","17280001",{"$f":"VLOOKUP(TRIM(J1919),'Transactional Departments'!A:B,2,FALSE)","v":"Plant Path Sum"},"17280001","","","","",""]
["17","332",null,null,"VOC      RF SUPEROXIDE   GITAI","2521RF332660","20400","12100","64327","17280001",{"$f":"VLOOKUP(TRIM(J1920),'Transactional Departments'!A:B,2,FALSE)","v":"Plant Path Sum"},"17280001","","","","",""]
["17","332",null,null,"GCCP     RF SPRAY PRGRMS BRENN","2521RF332661","20400","12100","62002","17280001",{"$f":"VLOOKUP(TRIM(J1921),'Transactional Departments'!A:B,2,FALSE)","v":"Plant Path Sum"},"17280001","","","","",""]
["17","332",null,null,"GCCV     RF BELL PEPPER  JI   ","2521RF332662","20400","12100","62008","17280001",{"$f":"VLOOKUP(TRIM(J1922),'Transactional Departments'!A:B,2,FALSE)","v":"Plant Path Sum"},"17280001","","","","",""]
["17","332",null,null,"GCCV     RF BCTRIAL SPOT GITAI","2521RF332663","20400","12100","62008","17280001",{"$f":"VLOOKUP(TRIM(J1923),'Transactional Departments'!A:B,2,FALSE)","v":"Plant Path Sum"},"17280001","","","","",""]
["17","332",null,null,"GCCT     RF ROOT KNOT    CSINO","2521RF332665","20400","12100","62005","17280001",{"$f":"VLOOKUP(TRIM(J1924),'Transactional Departments'!A:B,2,FALSE)","v":"Plant Path Sum"},"17280001","","","","",""]
["17","332",null,null,"GCCT     RF BLACK SHANK  CSINO","2521RF332666","20400","12100","62005","17280001",{"$f":"VLOOKUP(TRIM(J1925),'Transactional Departments'!A:B,2,FALSE)","v":"Plant Path Sum"},"17280001","","","","",""]
["17","332",null,null,"GCCP     RF NEW FUNGICID CULBR","2521RF332668","20400","12100","62002","17280001",{"$f":"VLOOKUP(TRIM(J1926),'Transactional Departments'!A:B,2,FALSE)","v":"Plant Path Sum"},"17280001","","","","",""]
["17","332",null,null,"GCCP     RF TSWV RESIST  CULBR","2521RF332669","20400","12100","62002","17280001",{"$f":"VLOOKUP(TRIM(J1927),'Transactional Departments'!A:B,2,FALSE)","v":"Plant Path Sum"},"17280001","","","","",""]
["17","332",null,null,"GCCP     RF PECAN SCAB   STEVE","2521RF332691","20400","12100","62045","17280001",{"$f":"VLOOKUP(TRIM(J1928),'Transactional Departments'!A:B,2,FALSE)","v":"Plant Path Sum"},"17280001","","","","",""]
["17","332",null,null,"PF       RF RIL POPUL    CULBR","2521RF332693","20400","12100","64389","17280001",{"$f":"VLOOKUP(TRIM(J1929),'Transactional Departments'!A:B,2,FALSE)","v":"Plant Path Sum"},"17280001","","","","",""]
["17","332",null,null,"GCCP     RF ROOT KNOT    BRENN","2521RF332694","20400","12100","62002","17280001",{"$f":"VLOOKUP(TRIM(J1930),'Transactional Departments'!A:B,2,FALSE)","v":"Plant Path Sum"},"17280001","","","","",""]
["17","332",null,null,"NWA      RF PHYTOPHTHOR  JI   ","2521RF332695","20400","12100","64373","17280001",{"$f":"VLOOKUP(TRIM(J1931),'Transactional Departments'!A:B,2,FALSE)","v":"Plant Path Sum"},"17280001","","","","",""]
["17","332",null,null,"EVONIK   RF RF_CNTRL STM BRENN","2521RF332700","20400","12100","64485","17280001",{"$f":"VLOOKUP(TRIM(J1932),'Transactional Departments'!A:B,2,FALSE)","v":"Plant Path Sum"},"17280001","","","","",""]
["17","332",null,null,"GACC PECARF RF_PECAN FUNGBRENN","2521RF332702","20400","12100","62045","17280001",{"$f":"VLOOKUP(TRIM(J1933),'Transactional Departments'!A:B,2,FALSE)","v":"Plant Path Sum"},"17280001","","","","",""]
["17","332",null,null,"GACC TOB RF TOMATO SPOT  GITAI","2521RF332710","20400","12100","62005","17280001",{"$f":"VLOOKUP(TRIM(J1934),'Transactional Departments'!A:B,2,FALSE)","v":"Plant Path Sum"},"17280001","","","","",""]
["17","332",null,null,"GACC PNUTRF RF_IMPROVED CBRENN","2521RF332712","20400","12100","62002","17280001",{"$f":"VLOOKUP(TRIM(J1935),'Transactional Departments'!A:B,2,FALSE)","v":"Plant Path Sum"},"17280001","","","","",""]
["17","332",null,null,"PNUT FNDNRF RF_TSWV WHITECULBR","2521RF332733","20400","12100","64389","17280001",{"$f":"VLOOKUP(TRIM(J1936),'Transactional Departments'!A:B,2,FALSE)","v":"Plant Path Sum"},"17280001","","","","",""]
["17","332",null,null,"PNT FNDN RF RF_RESIST TSWCULBR","2521RF332742","20400","12100","64389","17280001",{"$f":"VLOOKUP(TRIM(J1937),'Transactional Departments'!A:B,2,FALSE)","v":"Plant Path Sum"},"17280001","","","","",""]
["17","332",null,null,"PNUT FND RF RF_PHEN/GEN RCULBR","2521RF332747","20400","12100","64389","17280001",{"$f":"VLOOKUP(TRIM(J1938),'Transactional Departments'!A:B,2,FALSE)","v":"Plant Path Sum"},"17280001","","","","",""]
["17","332",null,null,"USDA NIFAW/RE677532      AHMAD","2521RF332749","20400","12100","61006","17280001",{"$f":"VLOOKUP(TRIM(J1939),'Transactional Departments'!A:B,2,FALSE)","v":"Plant Path Sum"},"17280001","","","","",""]
["17","332",null,null,"ROYALTY INVENTOR BRENNEMAN    ","2521RX332581","20300","12100","64RYT","17285001",{"$f":"VLOOKUP(TRIM(J1940),'Transactional Departments'!A:B,2,FALSE)","v":"Brenneman"},"17285001","","","","",""]
["17","332",null,null,"ROYALTY INVENTOR CULBREATH    ","2521RX332582","20300","12100","64RYT","17285004",{"$f":"VLOOKUP(TRIM(J1941),'Transactional Departments'!A:B,2,FALSE)","v":"Culbreath"},"17285004","","","","",""]
["17","332",null,null,"         UGARF SUPPORT PLT PTH","2521RX332900","20300","12100","64ICR","17280001",{"$f":"VLOOKUP(TRIM(J1942),'Transactional Departments'!A:B,2,FALSE)","v":"Plant Path Sum"},"17280001","","","","",""]
["17","332",null,null,"         RESIDUAL #332ES SHERW","2521RX332950","20400","12100","64RBP","17280001",{"$f":"VLOOKUP(TRIM(J1943),'Transactional Departments'!A:B,2,FALSE)","v":"Plant Path Sum"},"17280001","","","","",""]
["17","332",null,null,"PLANT PATHOLOGY RSCH COASTAL  ","2526GF332000","11300","12200","11200","17280001",{"$f":"VLOOKUP(TRIM(J1944),'Transactional Departments'!A:B,2,FALSE)","v":"Plant Path Sum"},"17280001","","","","RCP",""]
["17","332",null,null,"RESEARCH ADVISORY SERVICES    ","2526GF332080","11300","12200","11200","17280001",{"$f":"VLOOKUP(TRIM(J1945),'Transactional Departments'!A:B,2,FALSE)","v":"Plant Path Sum"},"17280001","","","","RCP",""]
["17","332",null,null,"PLANT PATH RSCH DEPT ADMIN    ","2526GF332090","11300","12200","11200","17280001",{"$f":"VLOOKUP(TRIM(J1946),'Transactional Departments'!A:B,2,FALSE)","v":"Plant Path Sum"},"17280001","","","","RCP",""]
["17","332",null,null,"PP STATE HAJIHASSANI          ","2526GF332120","11300","12200","11200","17280001",{"$f":"VLOOKUP(TRIM(J1947),'Transactional Departments'!A:B,2,FALSE)","v":"Plant Path Sum"},"17280001","","","","RCP",""]
["17","332",null,null,"PP STATE BRENNEMAN            ","2526GF332130","11300","12200","11200","17280001",{"$f":"VLOOKUP(TRIM(J1948),'Transactional Departments'!A:B,2,FALSE)","v":"Plant Path Sum"},"17280001","","","","RCP",""]
["17","332",null,null,"PP STATE CSINOS               ","2526GF332140","11300","12200","11200","17280001",{"$f":"VLOOKUP(TRIM(J1949),'Transactional Departments'!A:B,2,FALSE)","v":"Plant Path Sum"},"17280001","","","","RCP",""]
["17","332",null,null,"PP STATE CULBREATH            ","2526GF332150","11300","12200","11200","17280001",{"$f":"VLOOKUP(TRIM(J1950),'Transactional Departments'!A:B,2,FALSE)","v":"Plant Path Sum"},"17280001","","","","RCP",""]
["17","332",null,null,"PP STATE GITAITIS             ","2526GF332160","11300","12200","11200","17280001",{"$f":"VLOOKUP(TRIM(J1951),'Transactional Departments'!A:B,2,FALSE)","v":"Plant Path Sum"},"17280001","","","","RCP",""]
["17","332",null,null,"PPATH STATE JI                ","2526GF332180","11300","12200","11200","17280001",{"$f":"VLOOKUP(TRIM(J1952),'Transactional Departments'!A:B,2,FALSE)","v":"Plant Path Sum"},"17280001","","","","RCP",""]
["17","332",null,null,"PP STATE STEVENSON            ","2526GF332190","11300","12200","11200","17280001",{"$f":"VLOOKUP(TRIM(J1953),'Transactional Departments'!A:B,2,FALSE)","v":"Plant Path Sum"},"17280001","","","","RCP",""]
["17","332",null,null,"PP STATE OLIVER               ","2526GF332200","11300","12200","11200","17280001",{"$f":"VLOOKUP(TRIM(J1954),'Transactional Departments'!A:B,2,FALSE)","v":"Plant Path Sum"},"17280001","","","","RCP",""]
["17","332",null,null,"PLANT PATHOLOGY RSCH COASTAL  ","2571GF332000","11300","17100","11200","17280001",{"$f":"VLOOKUP(TRIM(J1955),'Transactional Departments'!A:B,2,FALSE)","v":"Plant Path Sum"},"17280001","","","","RCP",""]
["17","333",null,null,"ATTAPULGUS RSCH FARM   COASTAL","2526DF333000","14300","12200","41500","17710000",{"$f":"VLOOKUP(TRIM(J1956),'Transactional Departments'!A:B,2,FALSE)","v":"Attapulgus REC"},"17710000","","","","RCP",""]
["17","333",null,null,"ATTAPULGUS RSCH FARM   COASTAL","2526GF333000","11300","12200","11200","17710000",{"$f":"VLOOKUP(TRIM(J1957),'Transactional Departments'!A:B,2,FALSE)","v":"Attapulgus REC"},"17710000","","","","RCP",""]
["17","333",null,null,"ATTAPULGUS - DEPT ADMIN       ","2526GF333090","11300","12200","11200","17710000",{"$f":"VLOOKUP(TRIM(J1958),'Transactional Departments'!A:B,2,FALSE)","v":"Attapulgus REC"},"17710000","","","","RCP",""]
["17","333",null,null,"ATTAPULGUS RSCH FARM   COASTAL","2571GF333000","11300","17100","11200","17710000",{"$f":"VLOOKUP(TRIM(J1959),'Transactional Departments'!A:B,2,FALSE)","v":"Attapulgus REC"},"17710000","","","","RCP",""]
["17","333",null,null,"ATTAPULGUS - UTILITIES        ","2571GF333005","11300","17100","11200","17710000",{"$f":"VLOOKUP(TRIM(J1960),'Transactional Departments'!A:B,2,FALSE)","v":"Attapulgus REC"},"17710000","","","","RCP",""]
["17","352",null,null,"DEAN AND DIRECTOR             ","2631AE352000","15310","13200","11500","17100001",{"$f":"VLOOKUP(TRIM(J1961),'Transactional Departments'!A:B,2,FALSE)","v":"CAES Dean & Director Sum"},"17100001","","","","",""]
["17","352",null,null,"DEAN & DIRECTOR F&A           ","2631AE352004","15310","13200","11500","17100001",{"$f":"VLOOKUP(TRIM(J1962),'Transactional Departments'!A:B,2,FALSE)","v":"CAES Dean & Director Sum"},"17100001","","","","",""]
["17","352",null,null,"CAES WORKSHP & SEM.           ","2631DW352801","14310","13200","41500","17100001",{"$f":"VLOOKUP(TRIM(J1963),'Transactional Departments'!A:B,2,FALSE)","v":"CAES Dean & Director Sum"},"17100001","","","","",""]
["17","352",null,null,"STATE SMITH LEVER             ","2631GE352004","11310","13200","11200","17100001",{"$f":"VLOOKUP(TRIM(J1964),'Transactional Departments'!A:B,2,FALSE)","v":"CAES Dean & Director Sum"},"17100001","","","","",""]
["17","352",null,null,"DEAN & DIRECTOR SSL           ","2631GE352204","11310","13200","11200","17100001",{"$f":"VLOOKUP(TRIM(J1965),'Transactional Departments'!A:B,2,FALSE)","v":"CAES Dean & Director Sum"},"17100001","","","","",""]
["17","352",null,null,"STATE SMITH LEVER             ","2631GJ352004","11310","11140","11200","17100001",{"$f":"VLOOKUP(TRIM(J1966),'Transactional Departments'!A:B,2,FALSE)","v":"CAES Dean & Director Sum"},"17100001","","","","",""]
["17","352",null,null,"PUBLIC AFFAIRS                ","2631GJ352104","11310","11140","11200","17100001",{"$f":"VLOOKUP(TRIM(J1967),'Transactional Departments'!A:B,2,FALSE)","v":"CAES Dean & Director Sum"},"17100001","","","","",""]
["17","353",null,null,"ASSOCIATE DEAN F&A            ","2631AE353104","15310","13200","11500","17130001",{"$f":"VLOOKUP(TRIM(J1968),'Transactional Departments'!A:B,2,FALSE)","v":"CAES Assoc Dean Ext Sum"},"17130001","","","","",""]
["17","353",null,null,"         SO REG FORESTER SPARK","2631CE353432","11310","13200","11200","17130001",{"$f":"VLOOKUP(TRIM(J1969),'Transactional Departments'!A:B,2,FALSE)","v":"CAES Assoc Dean Ext Sum"},"17130001","","","","",""]
["17","353",null,null,"CCSD     GARDEN PROJECT  WI772","2631CE353454","11310","13200","11200","17130001",{"$f":"VLOOKUP(TRIM(J1970),'Transactional Departments'!A:B,2,FALSE)","v":"CAES Assoc Dean Ext Sum"},"17130001","","","","",""]
["17","353",null,null,"         SOUTHERN FORESTRJOHNS","2631CE353459","11310","13200","11200","17130001",{"$f":"VLOOKUP(TRIM(J1971),'Transactional Departments'!A:B,2,FALSE)","v":"CAES Assoc Dean Ext Sum"},"17130001","","","","",""]
["17","353",null,null,"         VARIOUS STATES  JOHNS","2631CE353469","11310","13200","11200","17130001",{"$f":"VLOOKUP(TRIM(J1972),'Transactional Departments'!A:B,2,FALSE)","v":"CAES Assoc Dean Ext Sum"},"17130001","","","","",""]
["17","353",null,null,"ASSOC DEAN FOR EXTENSION      ","2631DE353000","14310","13200","41500","17130001",{"$f":"VLOOKUP(TRIM(J1973),'Transactional Departments'!A:B,2,FALSE)","v":"CAES Assoc Dean Ext Sum"},"17130001","","","","",""]
["17","353",null,null,"SREF SPECIAL PROJECTS         ","2631DE353002","14310","13200","41500","17130001",{"$f":"VLOOKUP(TRIM(J1974),'Transactional Departments'!A:B,2,FALSE)","v":"CAES Assoc Dean Ext Sum"},"17130001","","","","",""]
["17","353",null,null,"ASSOCIATE DEAN/ARCHWAY        ","2631DE353003","14310","13200","41500","17130001",{"$f":"VLOOKUP(TRIM(J1975),'Transactional Departments'!A:B,2,FALSE)","v":"CAES Assoc Dean Ext Sum"},"17130001","","","","",""]
["17","353",null,null,"AVAILABLE TO COLLEGE FUNDS    ","2631DE353006","14310","13200","41500","17130001",{"$f":"VLOOKUP(TRIM(J1976),'Transactional Departments'!A:B,2,FALSE)","v":"CAES Assoc Dean Ext Sum"},"17130001","","","","",""]
["17","353",null,null,"OLOD PROGRAM                  ","2631DE353007","14310","13200","41500","17130001",{"$f":"VLOOKUP(TRIM(J1977),'Transactional Departments'!A:B,2,FALSE)","v":"CAES Assoc Dean Ext Sum"},"17130001","","","","",""]
["17","353",null,null,"SMOKE MANAGEMENT GUIDE        ","2631DE353008","14310","13200","41500","17130001",{"$f":"VLOOKUP(TRIM(J1978),'Transactional Departments'!A:B,2,FALSE)","v":"CAES Assoc Dean Ext Sum"},"17130001","","","","",""]
["17","353",null,null,"SURVEY DEVELOPMENT COYLE      ","2631DE353009","14310","13200","41500","17130001",{"$f":"VLOOKUP(TRIM(J1979),'Transactional Departments'!A:B,2,FALSE)","v":"CAES Assoc Dean Ext Sum"},"17130001","","","","",""]
["17","353",null,null,"COYLE GA FL FACEBOOK          ","2631DE353010","14310","13200","41500","17130001",{"$f":"VLOOKUP(TRIM(J1980),'Transactional Departments'!A:B,2,FALSE)","v":"CAES Assoc Dean Ext Sum"},"17130001","","","","",""]
["17","353",null,null,"REG FORESTER UNIT HEADS CONF  ","2631DW353816","14310","13200","41500","17130001",{"$f":"VLOOKUP(TRIM(J1981),'Transactional Departments'!A:B,2,FALSE)","v":"CAES Assoc Dean Ext Sum"},"17130001","","","","",""]
["17","353",null,null,"PINEMAP WORKSHOP              ","2631DW353818","14310","13200","41500","17130001",{"$f":"VLOOKUP(TRIM(J1982),'Transactional Departments'!A:B,2,FALSE)","v":"CAES Assoc Dean Ext Sum"},"17130001","","","","",""]
["17","353",null,null,"SOUTHEASTERN FORESTRY EXT CONF","2631DW353819","14310","13200","41500","17130001",{"$f":"VLOOKUP(TRIM(J1983),'Transactional Departments'!A:B,2,FALSE)","v":"CAES Assoc Dean Ext Sum"},"17130001","","","","",""]
["17","353",null,null,"STATE SMITH LEVER             ","2631GE353004","11310","13200","11200","17130001",{"$f":"VLOOKUP(TRIM(J1984),'Transactional Departments'!A:B,2,FALSE)","v":"CAES Assoc Dean Ext Sum"},"17130001","","","","",""]
["17","353",null,null,"RESERVE BUDGET - HOLD         ","2631GE353014","11310","13200","11200","17130001",{"$f":"VLOOKUP(TRIM(J1985),'Transactional Departments'!A:B,2,FALSE)","v":"CAES Assoc Dean Ext Sum"},"17130001","","","","",""]
["17","353",null,null,"SPECIAL PROGRAMS              ","2631GE353104","11310","13200","11200","17130001",{"$f":"VLOOKUP(TRIM(J1986),'Transactional Departments'!A:B,2,FALSE)","v":"CAES Assoc Dean Ext Sum"},"17130001","","","","",""]
["17","353",null,null,"ASSOC DEAN EXT SSL            ","2631GE353204","11310","13200","11200","17130001",{"$f":"VLOOKUP(TRIM(J1987),'Transactional Departments'!A:B,2,FALSE)","v":"CAES Assoc Dean Ext Sum"},"17130001","","","","",""]
["17","353",null,null,"ASSOCIATION TRAVEL            ","2631GE353214","11310","13200","11200","17320300",{"$f":"VLOOKUP(TRIM(J1988),'Transactional Departments'!A:B,2,FALSE)","v":"Associations"},"17320300","","","","",""]
["17","353",null,null,"WHITE FLY PROJECTS            ","2631GE353254","11310","13200","11200","17130001",{"$f":"VLOOKUP(TRIM(J1989),'Transactional Departments'!A:B,2,FALSE)","v":"CAES Assoc Dean Ext Sum"},"17130001","","","","",""]
["17","353",null,null,"AG TAP                        ","2631GE353304","11310","13200","11200","17130001",{"$f":"VLOOKUP(TRIM(J1990),'Transactional Departments'!A:B,2,FALSE)","v":"CAES Assoc Dean Ext Sum"},"17130001","","","","",""]
["17","353",null,null,"HEALTH AND WELLNESS PROJECT   ","2631GE353404","11310","13200","11200","17130001",{"$f":"VLOOKUP(TRIM(J1991),'Transactional Departments'!A:B,2,FALSE)","v":"CAES Assoc Dean Ext Sum"},"17130001","","","","",""]
["17","353",null,null,"SPECIAL INITIATIVES           ","2631GE353704","11310","13200","11200","17310001",{"$f":"VLOOKUP(TRIM(J1992),'Transactional Departments'!A:B,2,FALSE)","v":"Asst Dean Ext Sum"},"17310001","","","","",""]
["17","353",null,null,"LEADERSHIP DEVELOPMENT        ","2631GE353824","11310","13200","11200","17314001",{"$f":"VLOOKUP(TRIM(J1993),'Transactional Departments'!A:B,2,FALSE)","v":"OLOD Conf Sum"},"17314001","","","","",""]
["17","353",null,null,"WATER PROJECTS                ","2631GE353914","11310","13200","11200","17130001",{"$f":"VLOOKUP(TRIM(J1994),'Transactional Departments'!A:B,2,FALSE)","v":"CAES Assoc Dean Ext Sum"},"17130001","","","","",""]
["17","353",null,null,"STATE SMITH LEVER             ","2631GJ353004","11310","11140","11200","17130001",{"$f":"VLOOKUP(TRIM(J1995),'Transactional Departments'!A:B,2,FALSE)","v":"CAES Assoc Dean Ext Sum"},"17130001","","","","",""]
["17","353",null,null,"USDA     CUIF WEBSITE DEVHUBBA","2631RE353256","20400","13200","61002","17130001",{"$f":"VLOOKUP(TRIM(J1996),'Transactional Departments'!A:B,2,FALSE)","v":"CAES Assoc Dean Ext Sum"},"17130001","","","","",""]
["17","353",null,null,"UNL      EXT LRNING NET  HUBBA","2631RE353267","20400","13200","62530","17130001",{"$f":"VLOOKUP(TRIM(J1997),'Transactional Departments'!A:B,2,FALSE)","v":"CAES Assoc Dean Ext Sum"},"17130001","","","","",""]
["17","353",null,null,"USDA     SREF TRVL&SUP   HUBBA","2631RE353268","20400","13200","61003","17130001",{"$f":"VLOOKUP(TRIM(J1998),'Transactional Departments'!A:B,2,FALSE)","v":"CAES Assoc Dean Ext Sum"},"17130001","","","","",""]
["17","353",null,null,"USDA     ABSENTEE FOREST HUBBA","2631RE353420","20400","13200","61002","17130001",{"$f":"VLOOKUP(TRIM(J1999),'Transactional Departments'!A:B,2,FALSE)","v":"CAES Assoc Dean Ext Sum"},"17130001","","","","",""]
["17","353",null,null,"FL/USDA  RF REGIONAL WOOD   HU","2631RE353437","20400","13200","62557","17130001",{"$f":"VLOOKUP(TRIM(J2000),'Transactional Departments'!A:B,2,FALSE)","v":"CAES Assoc Dean Ext Sum"},"17130001","","","","",""]
["17","353",null,null,"EXT FOUNDAG CLI VARIA    HUBBA","2631RE353441","20400","13200","64424","17130001",{"$f":"VLOOKUP(TRIM(J2002),'Transactional Departments'!A:B,2,FALSE)","v":"CAES Assoc Dean Ext Sum"},"17130001","","","","",""]
["17","353",null,null,"         UGARF SUPPORT   EASON","2631RX353900","20300","13200","64ICR","17130001",{"$f":"VLOOKUP(TRIM(J2007),'Transactional Departments'!A:B,2,FALSE)","v":"CAES Assoc Dean Ext Sum"},"17130001","","","","",""]
["17","353",null,null,"STATE RETIREMENT COOP EXTENSON","9083GN353005","62000","","","17130001",{"$f":"VLOOKUP(TRIM(J2010),'Transactional Departments'!A:B,2,FALSE)","v":"CAES Assoc Dean Ext Sum"},"17130001","","","","",""]
["17","353",null,null,"FERS/TSP                      ","9083GN353011","62000","","","17130001",{"$f":"VLOOKUP(TRIM(J2014),'Transactional Departments'!A:B,2,FALSE)","v":"CAES Assoc Dean Ext Sum"},"17130001","","","","",""]
["17","354",null,null,"STATE SMITH LEVER             ","2631GE354004","11310","13200","11200","17300001",{"$f":"VLOOKUP(TRIM(J2019),'Transactional Departments'!A:B,2,FALSE)","v":"Extension Sum"},"17300001","","","","",""]
["17","355",null,null,"USDHHS   W/580-394       FUTRI","1031RE355105","20400","13100","61017","17321001",{"$f":"VLOOKUP(TRIM(J2024),'Transactional Departments'!A:B,2,FALSE)","v":"NE District Sum"},"17321001","","","","",""]
["17","356",null,null,"STATE SMITH LEVER             ","2631GJ356004","11310","11140","11200","17321001",{"$f":"VLOOKUP(TRIM(J2030),'Transactional Departments'!A:B,2,FALSE)","v":"NE District Sum"},"17321001","","","","",""]
["17","356",null,null,"         HABERSHM CO BOC MCGLO","2631RE356247","20400","13200","63074","17321001",{"$f":"VLOOKUP(TRIM(J2034),'Transactional Departments'!A:B,2,FALSE)","v":"NE District Sum"},"17321001","","","","",""]
["17","356",null,null,"         MORGAN CO BOC   MCGLO","2631RE356252","20400","13200","63045","17321001",{"$f":"VLOOKUP(TRIM(J2037),'Transactional Departments'!A:B,2,FALSE)","v":"NE District Sum"},"17321001","","","","",""]
["17","356",null,null,"         FRANKLIN CO BOC MCGLO","2631RE356276","20400","13200","63023","17321001",{"$f":"VLOOKUP(TRIM(J2042),'Transactional Departments'!A:B,2,FALSE)","v":"NE District Sum"},"17321001","","","","",""]
["17","356",null,null,"         PICKENS CO BOC  ASHLE","2631RE356388","20400","13200","63068","17321001",{"$f":"VLOOKUP(TRIM(J2048),'Transactional Departments'!A:B,2,FALSE)","v":"NE District Sum"},"17321001","","","","",""]
["17","356",null,null,"PICKENC&GPICKENS CO BOC  ASHLE","2631RE356389","20400","13200","63068","17321001",{"$f":"VLOOKUP(TRIM(J2049),'Transactional Departments'!A:B,2,FALSE)","v":"NE District Sum"},"17321001","","","","",""]
["17","356",null,null,"FRANKLIN C&G FRANK BOC   ASHLE","2631RE356397","20400","13200","63023","17321001",{"$f":"VLOOKUP(TRIM(J2054),'Transactional Departments'!A:B,2,FALSE)","v":"NE District Sum"},"17321001","","","","",""]
["17","356",null,null,"HANCOCK  C&G  HANC BOC   ASHLE","2631RE356400","20400","13200","63085","17321001",{"$f":"VLOOKUP(TRIM(J2057),'Transactional Departments'!A:B,2,FALSE)","v":"NE District Sum"},"17321001","","","","",""]
["17","356",null,null,"USDHHS   W/580-394       FUTRI","2631RE356409","20400","13200","61017","17321001",{"$f":"VLOOKUP(TRIM(J2065),'Transactional Departments'!A:B,2,FALSE)","v":"NE District Sum"},"17321001","","","","",""]
["17","356",null,null,"PICKENS  C&G PICKENS BOE ASHLE","2631RE356412","20400","13200","63068","17321001",{"$f":"VLOOKUP(TRIM(J2067),'Transactional Departments'!A:B,2,FALSE)","v":"NE District Sum"},"17321001","","","","",""]
["17","358",null,null,"ROCK EAGLE 4-H CENTER         ","2631DE358005","14310","13200","41500","17331000",{"$f":"VLOOKUP(TRIM(J2072),'Transactional Departments'!A:B,2,FALSE)","v":"Rock Eagle"},"17331000","","","","",""]
["17","358",null,null,"4-H CAMP TRAVEL               ","2631DE358010","14310","13200","41500","17330410",{"$f":"VLOOKUP(TRIM(J2077),'Transactional Departments'!A:B,2,FALSE)","v":"State Camp Travel"},"17330410","","","","",""]
["17","358",null,null,"UBI WAHSEGA 4-H CENTER        ","2631DE358014","14310","13200","41500","17330001",{"$f":"VLOOKUP(TRIM(J2081),'Transactional Departments'!A:B,2,FALSE)","v":"4-H Sum"},"17330001","","","","",""]
["17","358",null,null,"RENT DEDUCTIONS 4-H           ","2631DE358017","14310","13200","41500","17330150",{"$f":"VLOOKUP(TRIM(J2084),'Transactional Departments'!A:B,2,FALSE)","v":"State Rent Deductions"},"17330150","","","","",""]
["17","358",null,null,"PURD/USDADEFEN OPER RPRT MULL ","2631RE358131","20400","13200","62508","17330001",{"$f":"VLOOKUP(TRIM(J2089),'Transactional Departments'!A:B,2,FALSE)","v":"4-H Sum"},"17330001","","","","",""]
["17","358",null,null,"         358-149 PS      MULL ","2631RE358150","20400","13200","61013","17330001",{"$f":"VLOOKUP(TRIM(J2096),'Transactional Departments'!A:B,2,FALSE)","v":"4-H Sum"},"17330001","","","","",""]
["17","358",null,null,"         GRT PROMIS KIDS BUCKL","2631RE358161","20400","13200","62020","17330001",{"$f":"VLOOKUP(TRIM(J2100),'Transactional Departments'!A:B,2,FALSE)","v":"4-H Sum"},"17330001","","","","",""]
["17","358",null,null,"GCSV/CNCSUGA 4-H 2015    BUCKL","2631RE358168","20400","13200","64353","17330001",{"$f":"VLOOKUP(TRIM(J2105),'Transactional Departments'!A:B,2,FALSE)","v":"4-H Sum"},"17330001","","","","",""]
["17","358",null,null,"USDAF    TEEN LEAD 16    MULL ","2631RE358171","20400","13200","61013","17330001",{"$f":"VLOOKUP(TRIM(J2107),'Transactional Departments'!A:B,2,FALSE)","v":"4-H Sum"},"17330001","","","","",""]
["17","358",null,null,"         RESIDUAL #358CP RYLES","2631RX358950","20400","13200","64RBP","17330001",{"$f":"VLOOKUP(TRIM(J2112),'Transactional Departments'!A:B,2,FALSE)","v":"4-H Sum"},"17330001","","","","",""]
["17","358",null,null,"STATE SMITH LEVER             ","2671GP358004","11310","17100","11200","17330001",{"$f":"VLOOKUP(TRIM(J2114),'Transactional Departments'!A:B,2,FALSE)","v":"4-H Sum"},"17330001","","","","",""]
["17","360",null,null,"STATE SMITH LEVER             ","2631GE360004","11310","13200","11200","17324001",{"$f":"VLOOKUP(TRIM(J2119),'Transactional Departments'!A:B,2,FALSE)","v":"SE District Sum"},"17324001","","","","",""]
["17","360",null,null,"ATKIN C&GATKINSON BOC    MILAM","2631RE360431","20400","13200","63093","17324001",{"$f":"VLOOKUP(TRIM(J2124),'Transactional Departments'!A:B,2,FALSE)","v":"SE District Sum"},"17324001","","","","",""]
["17","360",null,null,"EVANS C&GEVANS CO EXT    MILAM","2631RE360438","20400","13200","63055","17324001",{"$f":"VLOOKUP(TRIM(J2129),'Transactional Departments'!A:B,2,FALSE)","v":"SE District Sum"},"17324001","","","","",""]
["17","360",null,null,"         TELFAIR CO BOC  MILAM","2631RE360445","20400","13200","63033","17324001",{"$f":"VLOOKUP(TRIM(J2135),'Transactional Departments'!A:B,2,FALSE)","v":"SE District Sum"},"17324001","","","","",""]
["17","360",null,null,"         WAYNE CO BOC    MILAM","2631RE360450","20400","13200","63011","17324001",{"$f":"VLOOKUP(TRIM(J2138),'Transactional Departments'!A:B,2,FALSE)","v":"SE District Sum"},"17324001","","","","",""]
["17","360",null,null,"CB       BACON BOC BRF   MILAM","2631RE360456","20400","13200","63070","17324001",{"$f":"VLOOKUP(TRIM(J2142),'Transactional Departments'!A:B,2,FALSE)","v":"SE District Sum"},"17324001","","","","",""]
["17","360",null,null,"ATKIN    C&G ATKIN BOC   MILAM","2631RE360463","20400","13200","63093","17324001",{"$f":"VLOOKUP(TRIM(J2147),'Transactional Departments'!A:B,2,FALSE)","v":"SE District Sum"},"17324001","","","","",""]
["17","360",null,null,"CAMDEN   C&G CAMDEN BOC  MILAM","2631RE360469","20400","13200","63065","17324001",{"$f":"VLOOKUP(TRIM(J2152),'Transactional Departments'!A:B,2,FALSE)","v":"SE District Sum"},"17324001","","","","",""]
["17","360",null,null,"CHATHAM  C&G CHAT BOC OFFMILAM","2631RE360471","20400","13200","63015","17324001",{"$f":"VLOOKUP(TRIM(J2154),'Transactional Departments'!A:B,2,FALSE)","v":"SE District Sum"},"17324001","","","","",""]
["17","360",null,null,"WASHING  C&G WASH BOC    MILAM","2631RE360479","20400","13200","63081","17324001",{"$f":"VLOOKUP(TRIM(J2162),'Transactional Departments'!A:B,2,FALSE)","v":"SE District Sum"},"17324001","","","","",""]
["17","360",null,null,"WAYNE    C&G WA BOC CEA  MILAM","2631RE360482","20400","13200","63011","17324001",{"$f":"VLOOKUP(TRIM(J2165),'Transactional Departments'!A:B,2,FALSE)","v":"SE District Sum"},"17324001","","","","",""]
["17","360",null,null,"COE      EMANUEL BOC     MILAM","2631RE360488","20400","13200","63048","17324001",{"$f":"VLOOKUP(TRIM(J2170),'Transactional Departments'!A:B,2,FALSE)","v":"SE District Sum"},"17324001","","","","",""]
["17","360",null,null,"COM      C&G MONTGOMERY  MILAM","2631RE360490","20400","13200","63054","17324001",{"$f":"VLOOKUP(TRIM(J2171),'Transactional Departments'!A:B,2,FALSE)","v":"SE District Sum"},"17324001","","","","",""]
["17","360",null,null,"BLUEBERRY FARM UTILITIES      ","2671GP360305","11310","17100","11200","17324001",{"$f":"VLOOKUP(TRIM(J2177),'Transactional Departments'!A:B,2,FALSE)","v":"SE District Sum"},"17324001","","","","",""]
["17","361",null,null,"         SCHLEY CO BOC   LEWIS","2631RE361172","20400","13200","63039","17323001",{"$f":"VLOOKUP(TRIM(J2182),'Transactional Departments'!A:B,2,FALSE)","v":"SW District Sum"},"17323001","","","","",""]
["17","361",null,null,"         SCHLEY CO BOC   LEWIS","2631RE361184","20400","13200","63039","17323001",{"$f":"VLOOKUP(TRIM(J2186),'Transactional Departments'!A:B,2,FALSE)","v":"SW District Sum"},"17323001","","","","",""]
["17","361",null,null,"TIFTON   C&G TIFTON_BOC  PRICE","2631RE361226","20400","13200","63010","17323001",{"$f":"VLOOKUP(TRIM(J2189),'Transactional Departments'!A:B,2,FALSE)","v":"SW District Sum"},"17323001","","","","",""]
["17","366",null,null,"COOPERATIVE EXT - GENERAL FUND","2600GE366000","11310","","11200","17300001",{"$f":"VLOOKUP(TRIM(J2195),'Transactional Departments'!A:B,2,FALSE)","v":"Extension Sum"},"17300001","","","","",""]
["17","367",null,null,"GENERAL EXP STA - GENERAL FUND","2599GN367000","11300","","11200","17510001",{"$f":"VLOOKUP(TRIM(J2200),'Transactional Departments'!A:B,2,FALSE)","v":"CAES Asst Dean Rsch Sum"},"17510001","","","","",""]
["17","371",null,null,"UGARF    GSDC FORAGE GRS MISSA","2521RC371132","20300","12100","64URF","17242MIS",{"$f":"VLOOKUP(TRIM(J2205),'Transactional Departments'!A:B,2,FALSE)","v":"Missaoui, Ali"},"17242MIS","","","","",""]
["17","371",null,null,"USDA NIFARF GENE RESISTANPARRO","2521RC371231","20400","12100","61002","17513001",{"$f":"VLOOKUP(TRIM(J2209),'Transactional Departments'!A:B,2,FALSE)","v":"CAGT Sum"},"17513001","","","","",""]
["17","371",null,null,"         RF USB FLLWSHIP LI   ","2521RC371238","20400","12100","64318","17513001",{"$f":"VLOOKUP(TRIM(J2212),'Transactional Departments'!A:B,2,FALSE)","v":"CAGT Sum"},"17513001","","","","",""]
["17","371",null,null,"USB      RF NEMATODE RES LI   ","2521RC371253","20400","12100","64000","17513001",{"$f":"VLOOKUP(TRIM(J2217),'Transactional Departments'!A:B,2,FALSE)","v":"CAGT Sum"},"17513001","","","","",""]
["17","371",null,null,"USDA     RF HIGH OLEIC   LI   ","2521RC371255","20400","12100","61002","17513001",{"$f":"VLOOKUP(TRIM(J2219),'Transactional Departments'!A:B,2,FALSE)","v":"CAGT Sum"},"17513001","","","","",""]
["17","371",null,null,"USDA ARS RF EXOTIC GERMP LI   ","2521RC371263","20400","12100","61002","17513001",{"$f":"VLOOKUP(TRIM(J2224),'Transactional Departments'!A:B,2,FALSE)","v":"CAGT Sum"},"17513001","","","","",""]
["17","371",null,null,"ARIZ/NSF RF CPGS ORYZA2       ","2521RC371268","20400","12100","62500","17513001",{"$f":"VLOOKUP(TRIM(J2228),'Transactional Departments'!A:B,2,FALSE)","v":"CAGT Sum"},"17513001","","","","",""]
["17","371",null,null,"PF       RF GENOTYPING   JACKS","2521RC371281","20400","12100","64389","17513001",{"$f":"VLOOKUP(TRIM(J2235),'Transactional Departments'!A:B,2,FALSE)","v":"CAGT Sum"},"17513001","","","","",""]
["17","371",null,null,"GCCP     RF PEANUT IMPRO JACKS","2521RC371316","20400","12100","62002","17513001",{"$f":"VLOOKUP(TRIM(J2240),'Transactional Departments'!A:B,2,FALSE)","v":"CAGT Sum"},"17513001","","","","",""]
["17","371",null,null,"USB      RF NEW BREEDING PARRO","2521RC371322","20400","12100","64042","17513001",{"$f":"VLOOKUP(TRIM(J2243),'Transactional Departments'!A:B,2,FALSE)","v":"CAGT Sum"},"17513001","","","","",""]
["17","371",null,null,"UGARF    GSDC SOYBEAN    LI   ","2521RC371662","20300","12100","64URF","17513001",{"$f":"VLOOKUP(TRIM(J2247),'Transactional Departments'!A:B,2,FALSE)","v":"CAGT Sum"},"17513001","","","","",""]
["17","371",null,null,"GCCS     RF RR2Y/LL SOY ELI   ","2521RC371804","20400","12100","62004","17513001",{"$f":"VLOOKUP(TRIM(J2252),'Transactional Departments'!A:B,2,FALSE)","v":"CAGT Sum"},"17513001","","","","",""]
["17","371",null,null,"ROYALTY INV/WOOD/MISSAOUI     ","2521RX371192","20300","12100","64RYT","17242MIS",{"$f":"VLOOKUP(TRIM(J2257),'Transactional Departments'!A:B,2,FALSE)","v":"Missaoui, Ali"},"17242MIS","","","","",""]
["17","371",null,null,"UGARF FORAGE BIOMASS BREEDING ","2521RX371233","20300","12100","64URF","17513001",{"$f":"VLOOKUP(TRIM(J2259),'Transactional Departments'!A:B,2,FALSE)","v":"CAGT Sum"},"17513001","","","","",""]
["17","371",null,null,"IC RET GENETICS               ","2526AC371003","15300","12200","11500","17513001",{"$f":"VLOOKUP(TRIM(J2266),'Transactional Departments'!A:B,2,FALSE)","v":"CAGT Sum"},"17513001","","","","",""]
["17","371",null,null,"MISSAOUI BENCH FEES           ","2526DC371005","14300","12200","41500","17513001",{"$f":"VLOOKUP(TRIM(J2270),'Transactional Departments'!A:B,2,FALSE)","v":"CAGT Sum"},"17513001","","","","RCS",""]
["17","371",null,null,"CAGT STATE MISSAOUI           ","2526GC371140","11300","12200","11200","17513001",{"$f":"VLOOKUP(TRIM(J2275),'Transactional Departments'!A:B,2,FALSE)","v":"CAGT Sum"},"17513001","","","","",""]
["17","371",null,null,"CAGT STATE VANDERKNAAP        ","2526GC371160","11300","12200","11200","17513001",{"$f":"VLOOKUP(TRIM(J2276),'Transactional Departments'!A:B,2,FALSE)","v":"CAGT Sum"},"17513001","","","","RCS",""]
["17","375",null,null,"         GNANN HENRY M SCH    ","4111RH375825","20400","11100","65825","17100001",{"$f":"VLOOKUP(TRIM(J2282),'Transactional Departments'!A:B,2,FALSE)","v":"CAES Dean & Director Sum"},"17100001","","","","",""]
["17","375",null,null,"         STARR WHEELER MEM TRU","4111RH375885","20400","11100","65885","17100001",{"$f":"VLOOKUP(TRIM(J2287),'Transactional Departments'!A:B,2,FALSE)","v":"CAES Dean & Director Sum"},"17100001","","","","",""]
["17","375",null,null,"         DAWSON EDGAR GILMER  ","4111RH375972","20400","11100","65972","17100001",{"$f":"VLOOKUP(TRIM(J2290),'Transactional Departments'!A:B,2,FALSE)","v":"CAES Dean & Director Sum"},"17100001","","","","",""]
["17","382",null,null,"STATE SMITH LEVER             ","2631GJ382004","11310","11140","11200","17510001",{"$f":"VLOOKUP(TRIM(J2294),'Transactional Departments'!A:B,2,FALSE)","v":"CAES Asst Dean Rsch Sum"},"17510001","","","","",""]
["17","383",null,null,"STATE SMITH LEVER             ","2631GE383004","11310","13200","11200","17160001",{"$f":"VLOOKUP(TRIM(J2299),'Transactional Departments'!A:B,2,FALSE)","v":"CAES Develop and Alumni Sum"},"17160001","","","","",""]
["17","385",null,null,"STATE SMITH LEVER             ","2631GJ385004","11310","11140","11200","17112001",{"$f":"VLOOKUP(TRIM(J2305),'Transactional Departments'!A:B,2,FALSE)","v":"CAES OIT Sum"},"17112001","","","","",""]
["17","386",null,null,"FEED & NUTRITION LAB          ","2631GE386104","11310","13200","11200","17311300",{"$f":"VLOOKUP(TRIM(J2310),'Transactional Departments'!A:B,2,FALSE)","v":"Feed & Environmental Water Lab"},"17311300","","","","",""]
["17","387",null,null,"CIIDS                         ","2631DM387005","14310","13200","41500","17311200",{"$f":"VLOOKUP(TRIM(J2314),'Transactional Departments'!A:B,2,FALSE)","v":"Soil Plant & Water Lab"},"17311200","","","","",""]
["17","387",null,null,"STATE SMITH LEVER             ","2631GJ387004","11310","11140","11200","17311200",{"$f":"VLOOKUP(TRIM(J2317),'Transactional Departments'!A:B,2,FALSE)","v":"Soil Plant & Water Lab"},"17311200","","","","",""]
["17","387",null,null,"         SOIL TESTING       ST","2631RX387015","20400","13200","64000","17311200",{"$f":"VLOOKUP(TRIM(J2323),'Transactional Departments'!A:B,2,FALSE)","v":"Soil Plant & Water Lab"},"17311200","","","","",""]
["17","387",null,null,"UTILITIES                     ","2671GP387005","11310","17100","11200","17311200",{"$f":"VLOOKUP(TRIM(J2328),'Transactional Departments'!A:B,2,FALSE)","v":"Soil Plant & Water Lab"},"17311200","","","","",""]
["17","387",null,null,"SERA 6 2018 CONFERENCE        ","9086GN387006","60000","","","17311200",{"$f":"VLOOKUP(TRIM(J2329),'Transactional Departments'!A:B,2,FALSE)","v":"Soil Plant & Water Lab"},"17311200","","","","",""]
["17","388",null,null,"PHYSICAL PLANT UTILITIES - IDC","2671AP388005","15310","17100","11500","17311400",{"$f":"VLOOKUP(TRIM(J2333),'Transactional Departments'!A:B,2,FALSE)","v":"Pesticide& Hazardous Waste Lab"},"17311400","","","","",""]
["17","393",null,null,"RESEARCH SUPPORT       GENERAL","2526AB393000","15300","12200","11500","17510001",{"$f":"VLOOKUP(TRIM(J2340),'Transactional Departments'!A:B,2,FALSE)","v":"CAES Asst Dean Rsch Sum"},"17510001","","","","",""]
["17","393",null,null,"RESEARCH RESERVE FROM TIMBER  ","2571AB393100","15300","17100","11500","17510001",{"$f":"VLOOKUP(TRIM(J2345),'Transactional Departments'!A:B,2,FALSE)","v":"CAES Asst Dean Rsch Sum"},"17510001","","","","",""]
["17","394",null,null,"CDPR     WILLIAM MILES   RAYME","2521RC394100","20300","12100","64URF","17512001",{"$f":"VLOOKUP(TRIM(J2347),'Transactional Departments'!A:B,2,FALSE)","v":"IPBGG Sum"},"17512001","","","","",""]
["17","395",null,null,"RESEARCH SUPPORT       GEORGIA","2571GD395000","11300","17100","11200","17602100",{"$f":"VLOOKUP(TRIM(J2352),'Transactional Departments'!A:B,2,FALSE)","v":"CAES Research Support"},"17602100","","","","RGS",""]
["17","396",null,null,"FEPP                          ","2571GF396110","11300","17100","11200","17700001",{"$f":"VLOOKUP(TRIM(J2356),'Transactional Departments'!A:B,2,FALSE)","v":"Tift Campus Sum"},"17700001","","","","RCP",""]
["17","398",null,null,"USDA/VAPTRF RAPID ADAPTORPATER","2521CC398128","11300","12110","11200","17514001",{"$f":"VLOOKUP(TRIM(J2363),'Transactional Departments'!A:B,2,FALSE)","v":"PGML Sum"},"17514001","","","","",""]
["17","398",null,null,"USDA     RF SORGHUM      PATER","2521CC398139","11300","12110","11200","17514001",{"$f":"VLOOKUP(TRIM(J2364),'Transactional Departments'!A:B,2,FALSE)","v":"PGML Sum"},"17514001","","","","",""]
["17","398",null,null,"IOWA/NSF RF EVOL GENOMIC PATER","2521RC398033","20400","12100","62540","17514001",{"$f":"VLOOKUP(TRIM(J2371),'Transactional Departments'!A:B,2,FALSE)","v":"PGML Sum"},"17514001","","","","",""]
["17","398",null,null,"USDA-NIFARF BIO GRASS    PATER","2521RC398121","20400","12100","61002","17514001",{"$f":"VLOOKUP(TRIM(J2375),'Transactional Departments'!A:B,2,FALSE)","v":"PGML Sum"},"17514001","","","","",""]
["17","398",null,null,"GCCP     RF BOTANICL MOD PATER","2521RC398137","20400","12100","62002","17514001",{"$f":"VLOOKUP(TRIM(J2380),'Transactional Departments'!A:B,2,FALSE)","v":"PGML Sum"},"17514001","","","","",""]
["17","398",null,null,"COTTON   RF UPLAND COTTONPATER","2521RC398146","20400","12100","64355","17514001",{"$f":"VLOOKUP(TRIM(J2385),'Transactional Departments'!A:B,2,FALSE)","v":"PGML Sum"},"17514001","","","","",""]
["17","398",null,null,"USDA NIFARF W/722-256    LI   ","2521RC398152","20400","12100","61006","17514001",{"$f":"VLOOKUP(TRIM(J2387),'Transactional Departments'!A:B,2,FALSE)","v":"PGML Sum"},"17514001","","","","",""]
["17","398",null,null,"PGML SALES                    ","2526DC398004","14300","12200","41500","17514001",{"$f":"VLOOKUP(TRIM(J2394),'Transactional Departments'!A:B,2,FALSE)","v":"PGML Sum"},"17514001","","","","RCS",""]
["17","399",null,null,"BUS OFF TIFTON RSCH F&A ADM   ","2526AF399090","15300","12200","11500","17101200",{"$f":"VLOOKUP(TRIM(J2398),'Transactional Departments'!A:B,2,FALSE)","v":"Tifton Office Admin"},"17101200","","","","",""]
["17","399",null,null,"BUSINESS OFFICE        COASTAL","2526GF399000","11300","12200","11200","17101200",{"$f":"VLOOKUP(TRIM(J2399),'Transactional Departments'!A:B,2,FALSE)","v":"Tifton Office Admin"},"17101200","","","","RCP",""]
["17","523",null,null,"AG EXP STATIONS    -   GENERAL","2526GB523000","11300","12200","11200","17510001",{"$f":"VLOOKUP(TRIM(J2404),'Transactional Departments'!A:B,2,FALSE)","v":"CAES Asst Dean Rsch Sum"},"17510001","","","","",""]
["17","524",null,null,"COOPERATIVE EXT SERV - OFFSET ","2631RE524999","20400","13200","","17300001",{"$f":"VLOOKUP(TRIM(J2410),'Transactional Departments'!A:B,2,FALSE)","v":"Extension Sum"},"17300001","","","","",""]
["17","541",null,null,"         SPALDING COUNTY CEP  ","2631RE541011","20400","13200","63037","17608000",{"$f":"VLOOKUP(TRIM(J2415),'Transactional Departments'!A:B,2,FALSE)","v":"CAES Continuing Education"},"17608000","","","","",""]
["17","542",null,null,"AGRICULTURAL BUSINESS OFF F&A ","2631AE542004","15310","13200","11500","17111101",{"$f":"VLOOKUP(TRIM(J2418),'Transactional Departments'!A:B,2,FALSE)","v":{"$error":"#N/A"}},"17111101","","","","",""]
["17","542",null,null,"CAES BUS OFF - HR             ","2631GJ542104","11310","11140","11200","17111200",{"$f":"VLOOKUP(TRIM(J2422),'Transactional Departments'!A:B,2,FALSE)","v":"CAES Human Resources"},"17111200","","","","",""]
["17","542",null,null,"FVSU        UGA   DEV/ACCJOHNS","2631RE542013","20400","13200","62023","17111101",{"$f":"VLOOKUP(TRIM(J2428),'Transactional Departments'!A:B,2,FALSE)","v":{"$error":"#N/A"}},"17111101","","","","",""]
["17","544",null,null,"STATE SMITH LEVER             ","2631GJ544004","11310","11140","11200","17113001",{"$f":"VLOOKUP(TRIM(J2433),'Transactional Departments'!A:B,2,FALSE)","v":"CAES Comms and Marketing Sum"},"17113001","","","","",""]
["17","670",null,null,"USDC     RF RR746-080   KRAMER","2631CE670427","11310","13200","11200","17210001",{"$f":"VLOOKUP(TRIM(J2434),'Transactional Departments'!A:B,2,FALSE)","v":"Ag Econ Sum"},"17210001","","","","",""]
["17","670",null,null,"AAE EXTENSION RABINOWITZ      ","2631GE670134","11310","13200","11200","17210810",{"$f":"VLOOKUP(TRIM(J2442),'Transactional Departments'!A:B,2,FALSE)","v":"Rabinowitz, Adam"},"17210810","","","","",""]
["17","670",null,null,"AAE STATE SMITH A             ","2631GE670174","11310","13200","11200","17210001",{"$f":"VLOOKUP(TRIM(J2445),'Transactional Departments'!A:B,2,FALSE)","v":"Ag Econ Sum"},"17210001","","","","",""]
["17","670",null,null,"USDC     RF RR746-076         ","2631RE670107","20400","13200","61009","17210001",{"$f":"VLOOKUP(TRIM(J2450),'Transactional Departments'!A:B,2,FALSE)","v":"Ag Econ Sum"},"17210001","","","","",""]
["17","670",null,null,"USDA-NIFASUP RE677-455   SRINI","2631RE670197","20400","13200","61002","17210001",{"$f":"VLOOKUP(TRIM(J2451),'Transactional Departments'!A:B,2,FALSE)","v":"Ag Econ Sum"},"17210001","","","","",""]
["17","670",null,null,"GCCC     FARMS OUTLOOK   SHURL","2631RE670447","20400","13200","62001","17210001",{"$f":"VLOOKUP(TRIM(J2457),'Transactional Departments'!A:B,2,FALSE)","v":"Ag Econ Sum"},"17210001","","","","",""]
["17","671",null,null,"USDA NRCSNITROGEN RELEAS GASKI","2631CE671592","11310","13200","11200","17240001",{"$f":"VLOOKUP(TRIM(J2461),'Transactional Departments'!A:B,2,FALSE)","v":"CSS Sum"},"17240001","","","","",""]
["17","671",null,null,"CHARACTER HERBICIDE MCCULLOUGH","2631DE671006","14310","13200","41500","17242MCC",{"$f":"VLOOKUP(TRIM(J2468),'Transactional Departments'!A:B,2,FALSE)","v":"McCullough, Patrick"},"17242MCC","","","","",""]
["17","671",null,null,"PORTER'S AUBURN SUPPORT       ","2631DE671500","14310","13200","41500","17240001",{"$f":"VLOOKUP(TRIM(J2469),'Transactional Departments'!A:B,2,FALSE)","v":"CSS Sum"},"17240001","","","","",""]
["17","671",null,null,"SSL - CSS - GRIFFIN           ","2631GE671304","11310","13200","11200","17240001",{"$f":"VLOOKUP(TRIM(J2475),'Transactional Departments'!A:B,2,FALSE)","v":"CSS Sum"},"17240001","","","","",""]
["17","671",null,null,"ADMIN - CSS - TIFTON          ","2631GE671404","11310","13200","11200","17240001",{"$f":"VLOOKUP(TRIM(J2480),'Transactional Departments'!A:B,2,FALSE)","v":"CSS Sum"},"17240001","","","","",""]
["17","671",null,null,"SSL LEE                       ","2631GE671464","11310","13200","11200","17242DEW",{"$f":"VLOOKUP(TRIM(J2485),'Transactional Departments'!A:B,2,FALSE)","v":"Lee, R. Dewey"},"17242DEW","","","","",""]
["17","671",null,null,"SSL CULPEPPER                 ","2631GE671484","11310","13200","11200","17242CUL",{"$f":"VLOOKUP(TRIM(J2487),'Transactional Departments'!A:B,2,FALSE)","v":"Culpepper, Stanley"},"17242CUL","","","","",""]
["17","671",null,null,"SSL HAWKINS                   ","2631GE671614","11310","13200","11200","17242HAW",{"$f":"VLOOKUP(TRIM(J2492),'Transactional Departments'!A:B,2,FALSE)","v":"Hawkins, Gary"},"17242HAW","","","","",""]
["17","671",null,null,"FDACS    FLUE CURED TO   MOORE","2631RE671046","20400","13200","62557","17240001",{"$f":"VLOOKUP(TRIM(J2499),'Transactional Departments'!A:B,2,FALSE)","v":"CSS Sum"},"17240001","","","","",""]
["17","671",null,null,"UF/USDANIIRF4            CULPE","2631RE671054","20400","13200","62511","17240001",{"$f":"VLOOKUP(TRIM(J2503),'Transactional Departments'!A:B,2,FALSE)","v":"CSS Sum"},"17240001","","","","",""]
["17","671",null,null,"USDA NIFAW/RE677532      AHMAD","2631RE671055","20400","13200","61006","17240001",{"$f":"VLOOKUP(TRIM(J2504),'Transactional Departments'!A:B,2,FALSE)","v":"CSS Sum"},"17240001","","","","",""]
["17","671",null,null,"GACCS    SYBN PROD PRCTC WHITA","2631RE671490","20400","13200","62004","17240001",{"$f":"VLOOKUP(TRIM(J2508),'Transactional Departments'!A:B,2,FALSE)","v":"CSS Sum"},"17240001","","","","",""]
["17","671",null,null,"GACCV    SWT CRN QLTY___ HAWKI","2631RE671552","20400","13200","62008","17240001",{"$f":"VLOOKUP(TRIM(J2515),'Transactional Departments'!A:B,2,FALSE)","v":"CSS Sum"},"17240001","","","","",""]
["17","671",null,null,"USDA     W/675-167       JORDA","2631RE671559","20400","13200","61002","17240001",{"$f":"VLOOKUP(TRIM(J2518),'Transactional Departments'!A:B,2,FALSE)","v":"CSS Sum"},"17240001","","","","",""]
["17","671",null,null,"GACCP    PEANUT CULTIVAR TUBBS","2631RE671573","20400","13200","62002","17240001",{"$f":"VLOOKUP(TRIM(J2522),'Transactional Departments'!A:B,2,FALSE)","v":"CSS Sum"},"17240001","","","","",""]
["17","671",null,null,"GACCP    AGRO ECON SUST  TUBBS","2631RE671588","20400","13200","62002","17240001",{"$f":"VLOOKUP(TRIM(J2527),'Transactional Departments'!A:B,2,FALSE)","v":"CSS Sum"},"17240001","","","","",""]
["17","671",null,null,"GACCT    FLU CRD TBCO GA MOORE","2631RE671602","20400","13200","62005","17240001",{"$f":"VLOOKUP(TRIM(J2532),'Transactional Departments'!A:B,2,FALSE)","v":"CSS Sum"},"17240001","","","","",""]
["17","671",null,null,"TX/USDA  WATER RESRCE    RISSE","2631RE671698","20400","13200","62568","17240001",{"$f":"VLOOKUP(TRIM(J2538),'Transactional Departments'!A:B,2,FALSE)","v":"CSS Sum"},"17240001","","","","",""]
["17","671",null,null,"UF       TOBACCO RSCH    MOORE","2631RE671703","20400","13200","62511","17240001",{"$f":"VLOOKUP(TRIM(J2539),'Transactional Departments'!A:B,2,FALSE)","v":"CSS Sum"},"17240001","","","","",""]
["17","671",null,null,"GACCC    CORN WTR NEEDS  LEE  ","2631RE671713","20400","13200","62047","17240001",{"$f":"VLOOKUP(TRIM(J2546),'Transactional Departments'!A:B,2,FALSE)","v":"CSS Sum"},"17240001","","","","",""]
["17","671",null,null,"GACCS    UGA WTHR NTWRK  FLITC","2631RE671719","20400","13200","62004","17240001",{"$f":"VLOOKUP(TRIM(J2550),'Transactional Departments'!A:B,2,FALSE)","v":"CSS Sum"},"17240001","","","","",""]
["17","671",null,null,"GACC     MAX PRODUCTION  WHITA","2631RE671726","20400","13200","62004","17240001",{"$f":"VLOOKUP(TRIM(J2556),'Transactional Departments'!A:B,2,FALSE)","v":"CSS Sum"},"17240001","","","","",""]
["17","671",null,null,"USDA     RF SUP 309-129  JORDA","2631RE671729","20400","13200","61006","17240001",{"$f":"VLOOKUP(TRIM(J2557),'Transactional Departments'!A:B,2,FALSE)","v":"CSS Sum"},"17240001","","","","",""]
["17","671",null,null,"GCCV     FUMIGANT SYSTMS CULPE","2631RE671742","20400","13200","62008","17240001",{"$f":"VLOOKUP(TRIM(J2562),'Transactional Departments'!A:B,2,FALSE)","v":"CSS Sum"},"17240001","","","","",""]
["17","671",null,null,"GCCC     2015 EDUC PRGRM LEE  ","2631RE671746","20400","13200","62047","17240001",{"$f":"VLOOKUP(TRIM(J2565),'Transactional Departments'!A:B,2,FALSE)","v":"CSS Sum"},"17240001","","","","",""]
["17","671",null,null,"GCCP     RE671-752       MONFO","2631RE671761","20400","13200","62002","17240001",{"$f":"VLOOKUP(TRIM(J2573),'Transactional Departments'!A:B,2,FALSE)","v":"CSS Sum"},"17240001","","","","",""]
["17","671",null,null,"         COTTON PRE'S    CULPE","2631RE671762","20400","13200","64007","17240001",{"$f":"VLOOKUP(TRIM(J2574),'Transactional Departments'!A:B,2,FALSE)","v":"CSS Sum"},"17240001","","","","",""]
["17","671",null,null,"CPPO/NPB SMARTPHONE APP  MONFO","2631RE671815","20400","13200","62002","17240001",{"$f":"VLOOKUP(TRIM(J2579),'Transactional Departments'!A:B,2,FALSE)","v":"CSS Sum"},"17240001","","","","",""]
["17","671",null,null,"GACC/COTNPALMER AMARNTH  CULPE","2631RE671825","20400","13200","62001","17240001",{"$f":"VLOOKUP(TRIM(J2585),'Transactional Departments'!A:B,2,FALSE)","v":"CSS Sum"},"17240001","","","","",""]
["17","671",null,null,"GACCT    PRINTING PUBL   MOORE","2631RE671833","20400","13200","62005","17240001",{"$f":"VLOOKUP(TRIM(J2589),'Transactional Departments'!A:B,2,FALSE)","v":"CSS Sum"},"17240001","","","","",""]
["17","671",null,null,"GACCC    PROPER DECISN   WHITA","2631RE671836","20400","13200","62001","17240001",{"$f":"VLOOKUP(TRIM(J2592),'Transactional Departments'!A:B,2,FALSE)","v":"CSS Sum"},"17240001","","","","",""]
["17","671",null,null,"         RESIDUAL #671CP SMITH","2631RX671950","20400","13200","64RBP","17240001",{"$f":"VLOOKUP(TRIM(J2597),'Transactional Departments'!A:B,2,FALSE)","v":"CSS Sum"},"17240001","","","","",""]
["17","674",null,null,"STATE SMITH LEVER             ","2631GJ674004","11310","11140","11200","17220001",{"$f":"VLOOKUP(TRIM(J2603),'Transactional Departments'!A:B,2,FALSE)","v":"ALEC Sum"},"17220001","","","","",""]
["17","675",null,null,"ASST DEAN GRIFFIN ADM SSL     ","2631GJ675004","11310","11140","11200","17102001",{"$f":"VLOOKUP(TRIM(J2608),'Transactional Departments'!A:B,2,FALSE)","v":"Griffin Campus Sum"},"17102001","","","","",""]
["17","675",null,null,"USDA     PLAN OF WORK SRSJORDA","2631RE675116","20400","13200","61002","17102001",{"$f":"VLOOKUP(TRIM(J2609),'Transactional Departments'!A:B,2,FALSE)","v":"Griffin Campus Sum"},"17102001","","","","",""]
["17","675",null,null,"RESIDUAL #675 ASST DEAN GRIFFI","2631RX675950","20400","13200","64RBP","17102001",{"$f":"VLOOKUP(TRIM(J2617),'Transactional Departments'!A:B,2,FALSE)","v":"Griffin Campus Sum"},"17102001","","","","",""]
["17","676",null,null,"GDNR     RE676-306 HAWKINS    ","2631RE676309","20400","13200","62016","17130001",{"$f":"VLOOKUP(TRIM(J2620),'Transactional Departments'!A:B,2,FALSE)","v":"CAES Assoc Dean Ext Sum"},"17130001","","","","",""]
["17","676",null,null,"GDNR     SUB W 676306         ","2631RE676331","20400","13200","62016","17130001",{"$f":"VLOOKUP(TRIM(J2622),'Transactional Departments'!A:B,2,FALSE)","v":"CAES Assoc Dean Ext Sum"},"17130001","","","","",""]
["17","676",null,null,"GAENV/DOEENRGY CNV 11    WORLE","2631RE676364","20400","13200","62000","17130001",{"$f":"VLOOKUP(TRIM(J2627),'Transactional Departments'!A:B,2,FALSE)","v":"CAES Assoc Dean Ext Sum"},"17130001","","","","",""]
["17","676",null,null,"GA DNR   AGP2 FY2012     RISSE","2631RE676373","20400","13200","62016","17130001",{"$f":"VLOOKUP(TRIM(J2632),'Transactional Departments'!A:B,2,FALSE)","v":"CAES Assoc Dean Ext Sum"},"17130001","","","","",""]
["17","676",null,null,"         UGARF SUPPORT   THREA","2631RX676900","20300","13200","64ICR","17130001",{"$f":"VLOOKUP(TRIM(J2636),'Transactional Departments'!A:B,2,FALSE)","v":"CAES Assoc Dean Ext Sum"},"17130001","","","","",""]
["17","677",null,null,"SALES AND SERVICE SPARKS      ","2631DE677008","14310","13200","41500","17250001",{"$f":"VLOOKUP(TRIM(J2643),'Transactional Departments'!A:B,2,FALSE)","v":"Entomology Sum"},"17250001","","","","",""]
["17","677",null,null,"GARDEN OUTREACH               ","2631DW677805","14310","13200","41500","17250001",{"$f":"VLOOKUP(TRIM(J2646),'Transactional Departments'!A:B,2,FALSE)","v":"Entomology Sum"},"17250001","","","","",""]
["17","677",null,null,"STATE SMITH LEVER             ","2631GE677004","11310","13200","11200","17250001",{"$f":"VLOOKUP(TRIM(J2650),'Transactional Departments'!A:B,2,FALSE)","v":"Entomology Sum"},"17250001","","","","",""]
["17","677",null,null,"UFL/USDA SUP W/ 387-089       ","2631RE677447","20400","13200","62511","17250001",{"$f":"VLOOKUP(TRIM(J2655),'Transactional Departments'!A:B,2,FALSE)","v":"Entomology Sum"},"17250001","","","","",""]
["17","677",null,null,"USDA     EDDMAPS SYS     BARGE","2631RE677459","20400","13200","61002","17250001",{"$f":"VLOOKUP(TRIM(J2660),'Transactional Departments'!A:B,2,FALSE)","v":"Entomology Sum"},"17250001","","","","",""]
["17","677",null,null,"UFL/USDA RPT W/682301    SHERW","2631RE677462","20400","13200","62511","17250001",{"$f":"VLOOKUP(TRIM(J2662),'Transactional Departments'!A:B,2,FALSE)","v":"Entomology Sum"},"17250001","","","","",""]
["17","677",null,null,"USDA     GA ABRABILITY        ","2631RE677472","20400","13200","61002","17250001",{"$f":"VLOOKUP(TRIM(J2667),'Transactional Departments'!A:B,2,FALSE)","v":"Entomology Sum"},"17250001","","","","",""]
["17","677",null,null,"GACCV    VEG ENTMLGY     SPARK","2631RE677486","20400","13200","62008","17250001",{"$f":"VLOOKUP(TRIM(J2674),'Transactional Departments'!A:B,2,FALSE)","v":"Entomology Sum"},"17250001","","","","",""]
["17","677",null,null,"USDA FAS BUGWOOD NETWORK DOUCE","2631RE677491","20400","13200","61007","17250001",{"$f":"VLOOKUP(TRIM(J2678),'Transactional Departments'!A:B,2,FALSE)","v":"Entomology Sum"},"17250001","","","","",""]
["17","677",null,null,"USDA     DETECTOR NET    DOUCE","2631RE677495","20400","13200","61002","17250001",{"$f":"VLOOKUP(TRIM(J2679),'Transactional Departments'!A:B,2,FALSE)","v":"Entomology Sum"},"17250001","","","","",""]
["17","677",null,null,"GACCB    HORN FLY        HINKL","2631RE677514","20400","13200","62006","17250001",{"$f":"VLOOKUP(TRIM(J2685),'Transactional Departments'!A:B,2,FALSE)","v":"Entomology Sum"},"17250001","","","","",""]
["17","677",null,null,"USDA NIFAW/RE677532      AHMAD","2631RE677533","20400","13200","61006","17250001",{"$f":"VLOOKUP(TRIM(J2690),'Transactional Departments'!A:B,2,FALSE)","v":"Entomology Sum"},"17250001","","","","",""]
["17","677",null,null,"GACC SOY WHITFLY MGMT    SPARK","2631RE677536","20400","13200","62004","17250001",{"$f":"VLOOKUP(TRIM(J2693),'Transactional Departments'!A:B,2,FALSE)","v":"Entomology Sum"},"17250001","","","","",""]
["17","679",null,null,"EXT WKSHP & SEM-FOOD SCIENCE  ","2631DW679808","14310","13200","41500","17260001",{"$f":"VLOOKUP(TRIM(J2697),'Transactional Departments'!A:B,2,FALSE)","v":"Food Science Sum"},"17260001","","","","",""]
["17","680",null,null,"HORTICULTURE GPS - BERLE      ","2631DE680001","14310","13200","41500","17270001",{"$f":"VLOOKUP(TRIM(J2702),'Transactional Departments'!A:B,2,FALSE)","v":"Horticulture Sum"},"17270001","","","","",""]
["17","680",null,null,"HORT MANAGEMENT               ","2631DE680214","14310","13200","41500","17270001",{"$f":"VLOOKUP(TRIM(J2707),'Transactional Departments'!A:B,2,FALSE)","v":"Horticulture Sum"},"17270001","","","","",""]
["17","680",null,null,"STATE-BERLE                   ","2631GE680134","11310","13200","11200","17270200",{"$f":"VLOOKUP(TRIM(J2713),'Transactional Departments'!A:B,2,FALSE)","v":"Berle, David"},"17270200","","","","",""]
["17","680",null,null,"USDA     RF WELLS W/294-317   ","2631RE680200","20400","13200","61002","17270001",{"$f":"VLOOKUP(TRIM(J2717),'Transactional Departments'!A:B,2,FALSE)","v":"Horticulture Sum"},"17270001","","","","",""]
["17","680",null,null,"SRSFC    MICRONUTRIENT   SMITH","2631RE680237","20400","13200","64342","17270001",{"$f":"VLOOKUP(TRIM(J2720),'Transactional Departments'!A:B,2,FALSE)","v":"Horticulture Sum"},"17270001","","","","",""]
["17","680",null,null,"UGAF     VITICLT ENOL FNDPARDU","2631RE680266","20200","13200","","17270001",{"$f":"VLOOKUP(TRIM(J2725),'Transactional Departments'!A:B,2,FALSE)","v":"Horticulture Sum"},"17270001","","","","",""]
["17","681",null,null,"BAMBOO FARM WRKSHPS/CONFERENCE","2631DW681801","14310","13200","41500","17324701",{"$f":"VLOOKUP(TRIM(J2731),'Transactional Departments'!A:B,2,FALSE)","v":"CGBG Sum"},"17324701","","","","",""]
["17","681",null,null,"STATE SMITH LEVER             ","2631GE681004","11310","13200","11200","17324701",{"$f":"VLOOKUP(TRIM(J2732),'Transactional Departments'!A:B,2,FALSE)","v":"CGBG Sum"},"17324701","","","","",""]
["17","681",null,null,"UGAF     ANDREWS ED CENTER    ","8062RY681802","50100","17620","67828","17324701",{"$f":"VLOOKUP(TRIM(J2737),'Transactional Departments'!A:B,2,FALSE)","v":"CGBG Sum"},"17324701","","","","",""]
["17","682",null,null,"SALES AND SERVICES - LITTLE   ","2631DE682005","14310","13200","41500","17280001",{"$f":"VLOOKUP(TRIM(J2740),'Transactional Departments'!A:B,2,FALSE)","v":"Plant Path Sum"},"17280001","","","","",""]
["17","682",null,null,"STATE SMITH LEVER             ","2631GJ682004","11310","11140","11200","17280001",{"$f":"VLOOKUP(TRIM(J2748),'Transactional Departments'!A:B,2,FALSE)","v":"Plant Path Sum"},"17280001","","","","",""]
["17","682",null,null,"USDA     PLNT PARASITIC NBRANN","2631RE682292","20400","13200","61002","17280001",{"$f":"VLOOKUP(TRIM(J2750),'Transactional Departments'!A:B,2,FALSE)","v":"Plant Path Sum"},"17280001","","","","",""]
["17","682",null,null,"         FUNGAL DISEASE  SANDE","2631RE682325","20400","13200","64327","17280001",{"$f":"VLOOKUP(TRIM(J2755),'Transactional Departments'!A:B,2,FALSE)","v":"Plant Path Sum"},"17280001","","","","",""]
["17","682",null,null,"USDA-NIFAP/S WITH 2631RE682373","2631RE682374","20400","13200","61006","17280001",{"$f":"VLOOKUP(TRIM(J2760),'Transactional Departments'!A:B,2,FALSE)","v":"Plant Path Sum"},"17280001","","","","",""]
["17","683",null,null,"POULTRY SCIENCE-CES           ","2631DE683000","14310","13200","41500","17295200",{"$f":"VLOOKUP(TRIM(J2764),'Transactional Departments'!A:B,2,FALSE)","v":"Davis, Adam"},"17295200","","","","",""]
["17","683",null,null,"ENERGY AUDIT WORLEY           ","2631DE683005","14310","13200","41500","17290001",{"$f":"VLOOKUP(TRIM(J2767),'Transactional Departments'!A:B,2,FALSE)","v":"Poultry Science Sum"},"17290001","","","","",""]
["17","683",null,null,"POULTRY CONF DEEP SOUTH       ","2631DW683802","14310","13200","41500","17292400",{"$f":"VLOOKUP(TRIM(J2772),'Transactional Departments'!A:B,2,FALSE)","v":"Deep South Conference"},"17292400","","","","",""]
["17","683",null,null,"STATE SMITH LEVER             ","2631GE683004","11310","13200","11200","17290001",{"$f":"VLOOKUP(TRIM(J2778),'Transactional Departments'!A:B,2,FALSE)","v":"Poultry Science Sum"},"17290001","","","","",""]
["17","683",null,null,"         VARIOUS RSCH    LACY ","2631RE683115","20400","13200","64206","17290001",{"$f":"VLOOKUP(TRIM(J2783),'Transactional Departments'!A:B,2,FALSE)","v":"Poultry Science Sum"},"17290001","","","","",""]
["17","683",null,null,"USDA/NRCSPEQH PROJECT    RITZ ","2631RE683158","20400","13200","61005","17290001",{"$f":"VLOOKUP(TRIM(J2788),'Transactional Departments'!A:B,2,FALSE)","v":"Poultry Science Sum"},"17290001","","","","",""]
["17","683",null,null,"UGARF SUPPORT POULTRY SCI-CES ","2631RX683900","20300","13200","64ICR","17290001",{"$f":"VLOOKUP(TRIM(J2790),'Transactional Departments'!A:B,2,FALSE)","v":"Poultry Science Sum"},"17290001","","","","",""]
["17","684",null,null,"SALES AND SERVICE BURTLE      ","2631DE684006","14310","13200","41500","17231075",{"$f":"VLOOKUP(TRIM(J2795),'Transactional Departments'!A:B,2,FALSE)","v":"Burtle, Gary"},"17231075","","","","",""]
["17","684",null,null,"EXTENSION CATFISH WORKSHOP    ","2631DW684809","14310","13200","41500","17230001",{"$f":"VLOOKUP(TRIM(J2797),'Transactional Departments'!A:B,2,FALSE)","v":"ADS Sum"},"17230001","","","","",""]
["17","684",null,null,"STATE SMITH LEVER             ","2631GJ684004","11310","11140","11200","17230001",{"$f":"VLOOKUP(TRIM(J2802),'Transactional Departments'!A:B,2,FALSE)","v":"ADS Sum"},"17230001","","","","",""]
["17","685",null,null,"MAIL ROOM - EXT PP            ","2631GE685104","11310","13200","11200","17114001",{"$f":"VLOOKUP(TRIM(J2807),'Transactional Departments'!A:B,2,FALSE)","v":"Physical Plant Sum"},"17114001","","","","",""]
["17","687",null,null,"AHD      AHC 4-H AGENT   HAMMO","2631CE687298","11310","13200","11200","17322001",{"$f":"VLOOKUP(TRIM(J2813),'Transactional Departments'!A:B,2,FALSE)","v":"NW District Sum"},"17322001","","","","",""]
["17","687",null,null,"NW DISTRICT FACS              ","2631GE687214","11310","13200","11200","17322001",{"$f":"VLOOKUP(TRIM(J2818),'Transactional Departments'!A:B,2,FALSE)","v":"NW District Sum"},"17322001","","","","",""]
["17","687",null,null,"UGAF     ARTHUR BLANK    ANGLE","2631RE687007","20200","13200","67812","17322001",{"$f":"VLOOKUP(TRIM(J2821),'Transactional Departments'!A:B,2,FALSE)","v":"NW District Sum"},"17322001","","","","",""]
["17","687",null,null,"         CUSSETA CO BOC  PRICE","2631RE687161","20400","13200","63111","17322001",{"$f":"VLOOKUP(TRIM(J2825),'Transactional Departments'!A:B,2,FALSE)","v":"NW District Sum"},"17322001","","","","",""]
["17","687",null,null,"         COWETA CO BOE   PRICE","2631RE687192","20400","13200","63017","17322001",{"$f":"VLOOKUP(TRIM(J2830),'Transactional Departments'!A:B,2,FALSE)","v":"NW District Sum"},"17322001","","","","",""]
["17","687",null,null,"FYETTEC&GFAYETTE CO BOC  HAMMO","2631RE687222","20400","13200","63004","17322001",{"$f":"VLOOKUP(TRIM(J2835),'Transactional Departments'!A:B,2,FALSE)","v":"NW District Sum"},"17322001","","","","",""]
["17","687",null,null,"HARRISC&GHARRIS CO BOC   HAMMO","2631RE687224","20400","13200","63000","17322001",{"$f":"VLOOKUP(TRIM(J2837),'Transactional Departments'!A:B,2,FALSE)","v":"NW District Sum"},"17322001","","","","",""]
["17","687",null,null,"WHIT C&G WHITFIELD BOC   HAMMO","2631RE687234","20400","13200","63012","17322001",{"$f":"VLOOKUP(TRIM(J2845),'Transactional Departments'!A:B,2,FALSE)","v":"NW District Sum"},"17322001","","","","",""]
["17","687",null,null,"COWET C&GCOWETA CO BOE   HAMMO","2631RE687237","20400","13200","63017","17322001",{"$f":"VLOOKUP(TRIM(J2848),'Transactional Departments'!A:B,2,FALSE)","v":"NW District Sum"},"17322001","","","","",""]
["17","687",null,null,"FAYETTE   C&G FAYETTE BOC     ","2631RE687245","20400","13200","63004","17322001",{"$f":"VLOOKUP(TRIM(J2853),'Transactional Departments'!A:B,2,FALSE)","v":"NW District Sum"},"17322001","","","","",""]
["17","687",null,null,"FORSYTH  C&G FORSYTH BOE HAMMO","2631RE687246","20400","13200","63044","17322001",{"$f":"VLOOKUP(TRIM(J2854),'Transactional Departments'!A:B,2,FALSE)","v":"NW District Sum"},"17322001","","","","",""]
["17","687",null,null,"ROCK     C&G ROCKDAL BOC HAMMO","2631RE687258","20400","13200","63020","17322001",{"$f":"VLOOKUP(TRIM(J2860),'Transactional Departments'!A:B,2,FALSE)","v":"NW District Sum"},"17322001","","","","",""]
["17","687",null,null,"COBB     C&G COBB COUNTY HAMMO","2631RE687264","20400","13200","63036","17322001",{"$f":"VLOOKUP(TRIM(J2865),'Transactional Departments'!A:B,2,FALSE)","v":"NW District Sum"},"17322001","","","","",""]
["17","687",null,null,"CCG      COLUMBUS GOV    HAMMO","2631RE687271","20400","13200","63108","17322001",{"$f":"VLOOKUP(TRIM(J2868),'Transactional Departments'!A:B,2,FALSE)","v":"NW District Sum"},"17322001","","","","",""]
["17","687",null,null,"COBB CO  CYNTHIA SWEDA __HAMMO","2631RE687295","20400","13200","63036","17322001",{"$f":"VLOOKUP(TRIM(J2872),'Transactional Departments'!A:B,2,FALSE)","v":"NW District Sum"},"17322001","","","","",""]
["17","702",null,null,"EXPERIMENTAL STATISTIC COASTAL","2526GF702000","11300","12200","11200","17700001",{"$f":"VLOOKUP(TRIM(J2878),'Transactional Departments'!A:B,2,FALSE)","v":"Tift Campus Sum"},"17700001","","","","RCP",""]
["17","705",null,null,"ALEC COURSE FEES              ","1011DH705002","14100","11100","41500","17220001",{"$f":"VLOOKUP(TRIM(J2883),'Transactional Departments'!A:B,2,FALSE)","v":"ALEC Sum"},"17220001","","","","",""]
["17","705",null,null,"AG. LEAD, EDUC & COMM         ","1011GJ705000","10500","11140","11800","17220001",{"$f":"VLOOKUP(TRIM(J2888),'Transactional Departments'!A:B,2,FALSE)","v":"ALEC Sum"},"17220001","","","","",""]
["17","705",null,null,"AG. LEAD, EDUC & COMM         ","1025GR705000","10500","12400","11800","17220001",{"$f":"VLOOKUP(TRIM(J2892),'Transactional Departments'!A:B,2,FALSE)","v":"ALEC Sum"},"17220001","","","","",""]
["17","706",null,null,"UGARF INDIRECT COST RETURN 706","2521RX706900","20300","12100","64ICR","17220001",{"$f":"VLOOKUP(TRIM(J2895),'Transactional Departments'!A:B,2,FALSE)","v":"ALEC Sum"},"17220001","","","","",""]
["17","707",null,null,"OFF OF INFORM & TECH - COLLEGE","2526GC707090","11300","12200","11200","17112001",{"$f":"VLOOKUP(TRIM(J2900),'Transactional Departments'!A:B,2,FALSE)","v":"CAES OIT Sum"},"17112001","","","","RCS",""]
["17","708",null,null,"STF-OFF OF INFO TECHNOLOGY    ","1019TJ708001","16000","14400","11600","17112001",{"$f":"VLOOKUP(TRIM(J2906),'Transactional Departments'!A:B,2,FALSE)","v":"CAES OIT Sum"},"17112001","","","","",""]
["17","709",null,null,"INTERNATIONAL AG - IDC RETURNS","1011AH709001","15000","11100","11500","17150001",{"$f":"VLOOKUP(TRIM(J2907),'Transactional Departments'!A:B,2,FALSE)","v":"Global Programs Sum"},"17150001","","","","",""]
["17","709",null,null,"UGARF SUPPORT GLOBAL PROGRAMS ","1011RX709900","20300","11100","64ICR","17150001",{"$f":"VLOOKUP(TRIM(J2911),'Transactional Departments'!A:B,2,FALSE)","v":"Global Programs Sum"},"17150001","","","","",""]
["17","710",null,null,"USDA-FAS RF RF_BFP17 BANGBART ","2521RC710038","20400","12100","61008","17150001",{"$f":"VLOOKUP(TRIM(J2918),'Transactional Departments'!A:B,2,FALSE)","v":"Global Programs Sum"},"17150001","","","","",""]
["17","710",null,null,"USDA     FELLOW 710-053  BART ","2521RC710054","20400","12100","61008","17150001",{"$f":"VLOOKUP(TRIM(J2923),'Transactional Departments'!A:B,2,FALSE)","v":"Global Programs Sum"},"17150001","","","","",""]
["17","710",null,null,"MSU      RF BHEARD TRAIN SCHER","2521RC710061","20400","12100","62505","17150001",{"$f":"VLOOKUP(TRIM(J2925),'Transactional Departments'!A:B,2,FALSE)","v":"Global Programs Sum"},"17150001","","","","",""]
["17","710",null,null,"USDA FAS FEL PRO AFRICA  BART ","2521RC710066","20400","12100","61008","17150001",{"$f":"VLOOKUP(TRIM(J2930),'Transactional Departments'!A:B,2,FALSE)","v":"Global Programs Sum"},"17150001","","","","",""]
["17","710",null,null,"USDA FS  RF 2016 ASIA    BART ","2521RC710076","20400","12100","61008","17150001",{"$f":"VLOOKUP(TRIM(J2935),'Transactional Departments'!A:B,2,FALSE)","v":"Global Programs Sum"},"17150001","","","","",""]
["17","710",null,null,"INT'L AG DEPT ADMINISTRATION  ","2526GC710090","11300","12200","11200","17150001",{"$f":"VLOOKUP(TRIM(J2939),'Transactional Departments'!A:B,2,FALSE)","v":"Global Programs Sum"},"17150001","","","","RCS",""]
["17","712",null,null,"DEVELOPMENT & ALUMNI RELATIONS","1011GJ712000","10500","11140","11800","17160001",{"$f":"VLOOKUP(TRIM(J2942),'Transactional Departments'!A:B,2,FALSE)","v":"CAES Develop and Alumni Sum"},"17160001","","","","",""]
["17","724",null,null,"YOUNG SCHOLARS PROGRAMS       ","1011GH724003","10500","11100","11800","17410200",{"$f":"VLOOKUP(TRIM(J2949),'Transactional Departments'!A:B,2,FALSE)","v":"Young Scholars"},"17410200","","","","",""]
["17","725",null,null,"OFFICE DIVERSITY RELATIONS GEN","2526GB725000","11300","12200","11200","17410001",{"$f":"VLOOKUP(TRIM(J2953),'Transactional Departments'!A:B,2,FALSE)","v":"CAES Diversity Sum"},"17410001","","","","",""]
["17","727",null,null,"ASST DEAN TIFTON ADM SSL      ","2631GE727004","11310","13200","11200","17101100",{"$f":"VLOOKUP(TRIM(J2958),'Transactional Departments'!A:B,2,FALSE)","v":"Tifton Asst Dean"},"17101100","","","","",""]
["17","736",null,null,"GACCC    RF Y&Q DRP IRRG PERRY","2521RF736017","20400","12100","62001","17740000",{"$f":"VLOOKUP(TRIM(J2963),'Transactional Departments'!A:B,2,FALSE)","v":"Stripling Irrigation Rsch Park"},"17740000","","","","",""]
["17","736",null,null,"GACCC    RF Y&Q DRP IRRG PERRY","2521RF736020","20400","12100","62001","17740000",{"$f":"VLOOKUP(TRIM(J2965),'Transactional Departments'!A:B,2,FALSE)","v":"Stripling Irrigation Rsch Park"},"17740000","","","","",""]
["17","736",null,null,"STRIPLING IRRG RSCH PK-COASTAL","2526DF736001","14300","12200","41500","17740000",{"$f":"VLOOKUP(TRIM(J2968),'Transactional Departments'!A:B,2,FALSE)","v":"Stripling Irrigation Rsch Park"},"17740000","","","","RCP",""]
["17","748",null,null,"FEASIBILITY STUDIES           ","2631DM748001","14310","13200","41500","17211001",{"$f":"VLOOKUP(TRIM(J2976),'Transactional Departments'!A:B,2,FALSE)","v":"CAED Sum"},"17211001","","","","",""]
["17","748",null,null,"CTR OF AGRIBUS & ECO DEVEL SSL","2631GE748004","11310","13200","11200","17211001",{"$f":"VLOOKUP(TRIM(J2977),'Transactional Departments'!A:B,2,FALSE)","v":"CAED Sum"},"17211001","","","","",""]
["17","748",null,null,"UGARF INDIRECT COST RETURN 748","2631RX748900","20300","13200","64ICR","17211001",{"$f":"VLOOKUP(TRIM(J2982),'Transactional Departments'!A:B,2,FALSE)","v":"CAED Sum"},"17211001","","","","",""]
["17","768",null,null,"GRIFFIN INSTRUCTION PROGRAM   ","1711GH768110","10500","11100","11800","17600001",{"$f":"VLOOKUP(TRIM(J2988),'Transactional Departments'!A:B,2,FALSE)","v":"Griffin Campus Sum"},"17600001","","","","GRI",""]
["17","781",null,null,"UGARF SUPPORT CTR FOOD SAFETY ","1021RX781900","20300","12100","64ICR","17262001",{"$f":"VLOOKUP(TRIM(J2993),'Transactional Departments'!A:B,2,FALSE)","v":"Cntr Food Safety Sum"},"17262001","","","","",""]
["17","790",null,null,"CAES ACADEMIC PROGRAMS SUPPORT","1011GH790000","10500","11100","11800","17200001",{"$f":"VLOOKUP(TRIM(J2996),'Transactional Departments'!A:B,2,FALSE)","v":"CAES Academic Depts Sum"},"17200001","","","","",""]
["17","999",null,null,"COUNTY SUPPLEMENT-COOP BUDGET ","2631GE999000","11310","13200","11200","17329999",{"$f":"VLOOKUP(TRIM(J3000),'Transactional Departments'!A:B,2,FALSE)","v":{"$error":"#N/A"}},"17329999","","","","",""]
["19","064",null,null,"UGARF CDC FID MURALIDHARAN 194","1021RX064238","20300","12100","64U07","19230DPT",{"$f":"VLOOKUP(TRIM(J3006),'Transactional Departments'!A:B,2,FALSE)","v":"CBIO Dept Accts"},"19230DPT","","","","",""]
["19","064",null,null,"UGARF DRP RSCH SUP STICKNEY168","1021RX064336","20300","12100","64U04","19510001",{"$f":"VLOOKUP(TRIM(J3011),'Transactional Departments'!A:B,2,FALSE)","v":"CHEM Expense"},"19510001","","","","",""]
["19","064",null,null,"UGARF DRP RSCH SUP DONOVAN 167","1021RX064337","20300","12100","64U04","19270001",{"$f":"VLOOKUP(TRIM(J3012),'Transactional Departments'!A:B,2,FALSE)","v":"PBIO Plant Biology"},"19270001","","","","",""]
["19","064",null,null,"UGARF DRP RSCH SUP DOCAMPO 194","1021RX064347","20300","12100","64U04","192300RD",{"$f":"VLOOKUP(TRIM(J3020),'Transactional Departments'!A:B,2,FALSE)","v":"CBIO Docampo"},"192300RD","","","","",""]
["19","064",null,null,"UGARF DRP RSCH SUP LIU     540","1021RX064351","20300","12100","64U04","19520100",{"$f":"VLOOKUP(TRIM(J3023),'Transactional Departments'!A:B,2,FALSE)","v":"COMP SCI General Ops"},"19520100","","","","",""]
["19","064",null,null,"WC CLSTR EHISTORY BERRY    180","1021RX064637","20300","12100","64F18","19450001",{"$f":"VLOOKUP(TRIM(J3028),'Transactional Departments'!A:B,2,FALSE)","v":"HIST-gj"},"19450001","","","","",""]
["19","064",null,null,"WC CLSTR COMPLEX SYS KRETZ 173","1021RX064638","20300","12100","64F18","19430100",{"$f":"VLOOKUP(TRIM(J3029),'Transactional Departments'!A:B,2,FALSE)","v":"ENGL English General Admin"},"19430100","","","","",""]
["19","064",null,null,"UGARF FAC RSCH SAUNT       180","1021RX064654","20300","12100","64F18","19450001",{"$f":"VLOOKUP(TRIM(J3035),'Transactional Departments'!A:B,2,FALSE)","v":"HIST-gj"},"19450001","","","","",""]
["19","064",null,null,"UGARF FAC RSCH LUXENBERG   164","1021RX064658","20300","12100","64F18","19310001",{"$f":"VLOOKUP(TRIM(J3039),'Transactional Departments'!A:B,2,FALSE)","v":"ART School-General"},"19310001","","","","",""]
["19","070",null,null,"UGARF STARTUP HAAS         187","1021RX070112","20300","12212","64U01","19640GEN",{"$f":"VLOOKUP(TRIM(J3046),'Transactional Departments'!A:B,2,FALSE)","v":"PSYC Psychology General"},"19640GEN","","","","",""]
["19","070",null,null,"UGARF STARTUP ESCALANTE-SEM182","1021RX070118","20300","12212","64U01","19260002",{"$f":"VLOOKUP(TRIM(J3047),'Transactional Departments'!A:B,2,FALSE)","v":"MIBO Instruction"},"19260002","","","","",""]
["19","070",null,null,"UGARF STARTUP HILI         168","1021RX070152","20300","12212","64U01","19510001",{"$f":"VLOOKUP(TRIM(J3053),'Transactional Departments'!A:B,2,FALSE)","v":"CHEM Expense"},"19510001","","","","",""]
["19","086",null,null,"         NAT HISTORY ED  FREEM","1011RH086051","20200","11100","67013","19070MUS",{"$f":"VLOOKUP(TRIM(J3058),'Transactional Departments'!A:B,2,FALSE)","v":"Mus Natl Hist"},"19070MUS","","","","",""]
["19","086",null,null,"         NAT HISTORY GEN FREEM","1031RE086050","20200","13100","67567","19070MUS",{"$f":"VLOOKUP(TRIM(J3063),'Transactional Departments'!A:B,2,FALSE)","v":"Mus Natl Hist"},"19070MUS","","","","",""]
["19","086",null,null,"MUSEUM OF NATURAL HISTORY     ","1042GT086000","10000","14200","11200","19070MUS",{"$f":"VLOOKUP(TRIM(J3067),'Transactional Departments'!A:B,2,FALSE)","v":"Mus Natl Hist"},"19070MUS","","","","",""]
["19","093",null,null,"FEE INCOME - GENE INST LABS   ","1011DH093010","14100","11100","41500","19240100",{"$f":"VLOOKUP(TRIM(J3070),'Transactional Departments'!A:B,2,FALSE)","v":"GENE Inst Lab"},"19240100","","","","",""]
["19","093",null,null,"GENETICS                      ","1019GJ093000","10000","14400","11200","19240PAY",{"$f":"VLOOKUP(TRIM(J3077),'Transactional Departments'!A:B,2,FALSE)","v":"GENE Payroll"},"19240PAY","","","","",""]
["19","093",null,null,"NSF      RF PS 093-355   DYER ","1021RR093358","20400","12100","61023","19240001",{"$f":"VLOOKUP(TRIM(J3081),'Transactional Departments'!A:B,2,FALSE)","v":"GENE Operations"},"19240001","","","","",""]
["19","093",null,null,"NIH      RF GRAD TRN '13 HALL ","1021RR093360","20400","12100","61018","19240001",{"$f":"VLOOKUP(TRIM(J3082),'Transactional Departments'!A:B,2,FALSE)","v":"GENE Operations"},"19240001","","","","",""]
["19","093",null,null,"NIH      RF GRAD TRN 14  HALL ","1021RR093376","20400","12100","61018","19240001",{"$f":"VLOOKUP(TRIM(J3086),'Transactional Departments'!A:B,2,FALSE)","v":"GENE Operations"},"19240001","","","","",""]
["19","093",null,null,"NIH      RF T&S W 093395 HALL ","1021RR093396","20400","12100","61018","19240001",{"$f":"VLOOKUP(TRIM(J3093),'Transactional Departments'!A:B,2,FALSE)","v":"GENE Operations"},"19240001","","","","",""]
["19","093",null,null,"NAT GEO  RF OVER FISH SA ANDER","1021RR093405","20400","12100","64278","19240001",{"$f":"VLOOKUP(TRIM(J3096),'Transactional Departments'!A:B,2,FALSE)","v":"GENE Operations"},"19240001","","","","",""]
["19","093",null,null,"UGAF     GENETICS RSCH FNDORSE","1021RR093431","20200","12100","67302","19240001",{"$f":"VLOOKUP(TRIM(J3100),'Transactional Departments'!A:B,2,FALSE)","v":"GENE Operations"},"19240001","","","","",""]
["19","093",null,null,"NSF      RF P SUP 093-450DYER ","1021RR093451","20400","12100","61023","19240001",{"$f":"VLOOKUP(TRIM(J3105),'Transactional Departments'!A:B,2,FALSE)","v":"GENE Operations"},"19240001","","","","",""]
["19","093",null,null,"ROYALTY INVTR RSCH KANDA      ","1021RX093279","20300","12100","64RYT","19240R02",{"$f":"VLOOKUP(TRIM(J3110),'Transactional Departments'!A:B,2,FALSE)","v":"GENE Royalty Kandasamy"},"19240R02","","","","",""]
["19","093",null,null,"OVPR FUNDING 093 MANLEY       ","1025AR093004","15000","12400","11500","19240DH1",{"$f":"VLOOKUP(TRIM(J3116),'Transactional Departments'!A:B,2,FALSE)","v":"GENE DH Nancy Manley"},"19240DH1","","","","",""]
["19","093",null,null,"RETENTION 2011 MANLEY         ","1025AR093009","15000","12400","11500","19240001",{"$f":"VLOOKUP(TRIM(J3117),'Transactional Departments'!A:B,2,FALSE)","v":"GENE Operations"},"19240001","","","","",""]
["19","093",null,null,"EGGENSC INCOME/SALES          ","1025DR093022","14100","12400","41500","19240130",{"$f":"VLOOKUP(TRIM(J3124),'Transactional Departments'!A:B,2,FALSE)","v":"GENE Egg Inc/Sales"},"19240130","","","","",""]
["19","093",null,null,"GENETICS                      ","1025GR093000","10000","12400","11200","19240TVL",{"$f":"VLOOKUP(TRIM(J3128),'Transactional Departments'!A:B,2,FALSE)","v":"GENE Faculty Travel"},"19240TVL","","","","",""]
["19","093",null,null,"GENETICS FACULTY RSCH         ","1025GR093064","10000","12400","11200","19240003",{"$f":"VLOOKUP(TRIM(J3134),'Transactional Departments'!A:B,2,FALSE)","v":"GENE Faculty Support"},"19240003","","","","",""]
["19","093",null,null,"VIP TUITION FUNDS             ","1025GR093970","10000","12400","11200","19240VIP",{"$f":"VLOOKUP(TRIM(J3135),'Transactional Departments'!A:B,2,FALSE)","v":"GENE Rias/VIP funds"},"19240VIP","","","","",""]
["19","100",null,null,"LAB/SUPPLY/COURSE FEE         ","1011DH100001","14100","11100","41500","19250120",{"$f":"VLOOKUP(TRIM(J3140),'Transactional Departments'!A:B,2,FALSE)","v":"MARS Marine Sci Lab Fees"},"19250120","","","","",""]
["19","100",null,null,"SCHOOL OF MARINE PROGRAMS     ","1011GH100000","10000","11100","11200","19250130",{"$f":"VLOOKUP(TRIM(J3143),'Transactional Departments'!A:B,2,FALSE)","v":"MARS Marine Sci Instruction"},"19250130","","","","",""]
["19","100",null,null,"DNR      RF GA COUNCIL   ALBER","1021CR100674","10000","12110","11200","19250110",{"$f":"VLOOKUP(TRIM(J3151),'Transactional Departments'!A:B,2,FALSE)","v":"MARS Marine Sci Admin"},"19250110","","","","",""]
["19","100",null,null,"UGAF     MARINE SCI SUP  DORSE","1021RR100435","20200","12100","67303","19250110",{"$f":"VLOOKUP(TRIM(J3152),'Transactional Departments'!A:B,2,FALSE)","v":"MARS Marine Sci Admin"},"19250110","","","","",""]
["19","100",null,null,"PASS/UGAFRF RR100-536    MORAN","1021RR100579","20200","12100","","19250110",{"$f":"VLOOKUP(TRIM(J3157),'Transactional Departments'!A:B,2,FALSE)","v":"MARS Marine Sci Admin"},"19250110","","","","",""]
["19","100",null,null,"NSF      RF HIGH RES DOC MORAN","1021RR100647","20400","12100","61023","19250110",{"$f":"VLOOKUP(TRIM(J3163),'Transactional Departments'!A:B,2,FALSE)","v":"MARS Marine Sci Admin"},"19250110","","","","",""]
["19","100",null,null,"DOE      RF W/267400          ","1021RR100655","20400","12100","61001","19250110",{"$f":"VLOOKUP(TRIM(J3167),'Transactional Departments'!A:B,2,FALSE)","v":"MARS Marine Sci Admin"},"19250110","","","","",""]
["19","100",null,null,"NSF      RF CARBON EXPORTMEDEI","1021RR100677","20400","12100","61023","19250110",{"$f":"VLOOKUP(TRIM(J3170),'Transactional Departments'!A:B,2,FALSE)","v":"MARS Marine Sci Admin"},"19250110","","","","",""]
["19","100",null,null,"MARINE SCI INDIRECT COST REC  ","1026AR100001","15000","12200","11500","19250150",{"$f":"VLOOKUP(TRIM(J3175),'Transactional Departments'!A:B,2,FALSE)","v":"MARS Marine Sci IDC"},"19250150","","","","",""]
["19","100",null,null,"OCEAN DISCOVERY CAMP          ","1031DE100009","14100","13100","41500","19250300",{"$f":"VLOOKUP(TRIM(J3181),'Transactional Departments'!A:B,2,FALSE)","v":"MARS Ocean Discovery Camp"},"19250300","","","","",""]
["19","104",null,null,"BALI & BEYOND                 ","1011DV104027","14100","11100","41507","19610001",{"$f":"VLOOKUP(TRIM(J3186),'Transactional Departments'!A:B,2,FALSE)","v":"ANTH General"},"19610001","18000","NSABD1121MM18  ","100","",""]
["19","104",null,null,"ANTHROPOLOGY                  ","1011GH104000","10000","11100","11200","19610001",{"$f":"VLOOKUP(TRIM(J3187),'Transactional Departments'!A:B,2,FALSE)","v":"ANTH General"},"19610001","","","","",""]
["19","104",null,null,"NGS      RF MOUND KEY    THOMP","1021RR104333","20400","12100","64278","19610001",{"$f":"VLOOKUP(TRIM(J3195),'Transactional Departments'!A:B,2,FALSE)","v":"ANTH General"},"19610001","","","","",""]
["19","104",null,null,"NSF      RF PS W 104-359 TUCKE","1021RR104360","20400","12100","61023","19610001",{"$f":"VLOOKUP(TRIM(J3198),'Transactional Departments'!A:B,2,FALSE)","v":"ANTH General"},"19610001","","","","",""]
["19","104",null,null,"RESIDUAL BALANCE #104         ","1021RX104950","20400","12100","64RBP","19610001",{"$f":"VLOOKUP(TRIM(J3200),'Transactional Departments'!A:B,2,FALSE)","v":"ANTH General"},"19610001","","","","",""]
["19","104",null,null,"ANALYSES OF BALDWIN HALL EXCAV","1025GR104060","10000","12400","11200","19610002",{"$f":"VLOOKUP(TRIM(J3205),'Transactional Departments'!A:B,2,FALSE)","v":"ANTH Excavation"},"19610002","","","","",""]
["19","104",null,null,"QUIP LAB                      ","1031DE104028","14100","13100","41500","19610106",{"$f":"VLOOKUP(TRIM(J3210),'Transactional Departments'!A:B,2,FALSE)","v":"ANTH Quip Lab"},"19610106","","","","",""]
["19","160",null,null,"FRANKLIN MOROCCO MAY SA PROG  ","1011DV160002","14100","11100","41507","19480000",{"$f":"VLOOKUP(TRIM(J3214),'Transactional Departments'!A:B,2,FALSE)","v":"RELI Religion General"},"19480000","18000","NSABD1124MM18  ","100","",""]
["19","160",null,null,"UGAF     ISRAEL IST VIS PDORSE","1011RH160022","20200","11100","67021","19480000",{"$f":"VLOOKUP(TRIM(J3221),'Transactional Departments'!A:B,2,FALSE)","v":"RELI Religion General"},"19480000","","","","",""]
["19","160",null,null,"         BEAVER S/S RELIGION  ","1011RH160755","20400","11100","65755","19480000",{"$f":"VLOOKUP(TRIM(J3222),'Transactional Departments'!A:B,2,FALSE)","v":"RELI Religion General"},"19480000","","","","",""]
["19","162",null,null,"         RESIDUAL #162RR JOHNS","1021RX162950","20400","12100","64RBP","19745CMS",{"$f":"VLOOKUP(TRIM(J3228),'Transactional Departments'!A:B,2,FALSE)","v":"CMS Ctr Metalloenzy Studies"},"19745CMS","","","","",""]
["19","163",null,null,"DSS CARRY FORWARD             ","1011DH163925","14100","11100","41500","19144DSS",{"$f":"VLOOKUP(TRIM(J3233),'Transactional Departments'!A:B,2,FALSE)","v":"FC DSS College Carry Forward"},"19144DSS","","","","",""]
["19","163",null,null,"A & S COLLEGE COMMITMENTS     ","1011GH163024","10000","11100","11200","19100COM",{"$f":"VLOOKUP(TRIM(J3238),'Transactional Departments'!A:B,2,FALSE)","v":"FC College Commitments"},"19100COM","","","","",""]
["19","163",null,null,"CLASSICS SUMMER INSTITUTE     ","1011GH163160","10000","11100","11200","19410100",{"$f":"VLOOKUP(TRIM(J3240),'Transactional Departments'!A:B,2,FALSE)","v":"CLAS Summer Institute"},"19410100","","","","",""]
["19","163",null,null,"A & S COLLEGE COMMITMENTS     ","1011GJ163024","10000","11140","11200","19100COM",{"$f":"VLOOKUP(TRIM(J3245),'Transactional Departments'!A:B,2,FALSE)","v":"FC College Commitments"},"19100COM","","","","",""]
["19","163",null,null,"ARTS & SCIENCES - DEANS OFFICE","1019GJ163000","10000","14400","11200","19080GEN",{"$f":"VLOOKUP(TRIM(J3252),'Transactional Departments'!A:B,2,FALSE)","v":"FC OIT Operating - General"},"19080GEN","","","","",""]
["19","163",null,null,"STF CHEMISTRY                 ","1019TJ163168","16000","14400","11600","19081510",{"$f":"VLOOKUP(TRIM(J3256),'Transactional Departments'!A:B,2,FALSE)","v":"FC OIT Chemistry STF"},"19081510","","","","",""]
["19","163",null,null,"STF GEOGRAPHY                 ","1019TJ163175","16000","14400","11600","19081630",{"$f":"VLOOKUP(TRIM(J3257),'Transactional Departments'!A:B,2,FALSE)","v":"FC OIT Geography STF"},"19081630","","","","",""]
["19","163",null,null,"DEAN'S OFFICE                 ","1025AR163009","15000","12400","11500","19000PAY",{"$f":"VLOOKUP(TRIM(J3263),'Transactional Departments'!A:B,2,FALSE)","v":"FC 163 Payroll & Encumbrances"},"19000PAY","","","","",""]
["19","163",null,null,"A & S CONTR MUS NAT HIST      ","1025GR163011","10000","12400","11200","19070MUS",{"$f":"VLOOKUP(TRIM(J3268),'Transactional Departments'!A:B,2,FALSE)","v":"Mus Natl Hist"},"19070MUS","","","","",""]
["19","163",null,null,"UNIVERSITY PROFESSOR MALMBERG ","1025GR163203","10000","12400","11200","19000RLM",{"$f":"VLOOKUP(TRIM(J3271),'Transactional Departments'!A:B,2,FALSE)","v":"FC Russell Malmberg"},"19000RLM","","","","",""]
["19","163",null,null,"A & S CONTR MUS NAT HIST      ","1042GT163011","10000","14200","11200","19070MUS",{"$f":"VLOOKUP(TRIM(J3275),'Transactional Departments'!A:B,2,FALSE)","v":"Mus Natl Hist"},"19070MUS","","","","",""]
["19","163",null,null,"DEAN OFF/ADMINISTRATIVE       ","1046GT163015","10000","14600","11200","19000ATD",{"$f":"VLOOKUP(TRIM(J3280),'Transactional Departments'!A:B,2,FALSE)","v":"FC Dean Dorsey ADMIN"},"19000ATD","","","","",""]
["19","163",null,null,"ADMINISTRATION - THOMAS       ","1046GT163206","10000","14600","11200","19000KMT",{"$f":"VLOOKUP(TRIM(J3285),'Transactional Departments'!A:B,2,FALSE)","v":"FC Kecia Thomas"},"19000KMT","","","","",""]
["19","163",null,null,"ARTS & SCIENCES - DEANS OFFICE","1099GN163000","10000","","11200","19000PAY",{"$f":"VLOOKUP(TRIM(J3291),'Transactional Departments'!A:B,2,FALSE)","v":"FC 163 Payroll & Encumbrances"},"19000PAY","","","","",""]
["19","164",null,null,"ART SALES ACCOUNT             ","1011DH164004","14100","11100","41500","19310001",{"$f":"VLOOKUP(TRIM(J3295),'Transactional Departments'!A:B,2,FALSE)","v":"ART School-General"},"19310001","","","","",""]
["19","164",null,null,"CERAMICS LAB FEES             ","1011DH164009","14100","11100","41500","19310403",{"$f":"VLOOKUP(TRIM(J3298),'Transactional Departments'!A:B,2,FALSE)","v":"ART Ceramics Lab Fees"},"19310403","","","","",""]
["19","164",null,null,"INTERIOR DESIGN LAB FEES      ","1011DH164014","14100","11100","41500","19310407",{"$f":"VLOOKUP(TRIM(J3303),'Transactional Departments'!A:B,2,FALSE)","v":"ART Interior Design Lab Fees"},"19310407","","","","",""]
["19","164",null,null,"3-D FOUNDATIONS LAB FEES      ","1011DH164023","14100","11100","41500","19310414",{"$f":"VLOOKUP(TRIM(J3309),'Transactional Departments'!A:B,2,FALSE)","v":"ART 3D(1080) Fndtion Lab Fees"},"19310414","","","","",""]
["19","164",null,null,"BRONZE ACCOUNT                ","1011DH164026","14100","11100","41500","19310001",{"$f":"VLOOKUP(TRIM(J3310),'Transactional Departments'!A:B,2,FALSE)","v":"ART School-General"},"19310001","","","","",""]
["19","164",null,null,"ART                           ","1011GK164000","10000","11100","11200","19310001",{"$f":"VLOOKUP(TRIM(J3315),'Transactional Departments'!A:B,2,FALSE)","v":"ART School-General"},"19310001","","","","",""]
["19","164",null,null,"UGAF     STUDIO SPPRT FUNDORSE","1011RH164058","20200","11100","67024","19310001",{"$f":"VLOOKUP(TRIM(J3318),'Transactional Departments'!A:B,2,FALSE)","v":"ART School-General"},"19310001","","","","",""]
["19","164",null,null,"UGAF     NOONAN FAM PHOTODORSE","1011RH164083","20200","11100","67032","19310001",{"$f":"VLOOKUP(TRIM(J3326),'Transactional Departments'!A:B,2,FALSE)","v":"ART School-General"},"19310001","","","","",""]
["19","164",null,null,"UGAF     ART ODYSSEY SPT DORSE","1011RH164085","20200","11100","67034","19310001",{"$f":"VLOOKUP(TRIM(J3328),'Transactional Departments'!A:B,2,FALSE)","v":"ART School-General"},"19310001","","","","",""]
["19","164",null,null,"UGAF     NUNNALLY COURTYDDORSE","1011RH164090","20200","11100","67872","19310001",{"$f":"VLOOKUP(TRIM(J3333),'Transactional Departments'!A:B,2,FALSE)","v":"ART School-General"},"19310001","","","","",""]
["19","164",null,null,"UGARF SUPPORT ART             ","1021RX164900","20300","12100","64ICR","19310001",{"$f":"VLOOKUP(TRIM(J3338),'Transactional Departments'!A:B,2,FALSE)","v":"ART School-General"},"19310001","","","","",""]
["19","164",null,null,"HANAWALT START UP             ","1025GR164075","10000","12400","11200","19310601",{"$f":"VLOOKUP(TRIM(J3342),'Transactional Departments'!A:B,2,FALSE)","v":"ART Christina Hanawalt Startup"},"19310601","","","","",""]
["19","164",null,null,"MCCLELLAN START UP            ","1025GR164080","10000","12400","11200","19310602",{"$f":"VLOOKUP(TRIM(J3345),'Transactional Departments'!A:B,2,FALSE)","v":"ART Courtney Mcclellan Startup"},"19310602","","","","",""]
["19","165",null,null,"BIOLOGICAL SCIENCES           ","1011GH165000","10000","11100","11200","1922000A",{"$f":"VLOOKUP(TRIM(J3350),'Transactional Departments'!A:B,2,FALSE)","v":"BIOL Biological Sciences Admin"},"1922000A","","","","",""]
["19","165",null,null,"ROYALTY HOLDING BIOLOGICAL SCI","1021RX165980","20300","12100","64RYT","1922000A",{"$f":"VLOOKUP(TRIM(J3357),'Transactional Departments'!A:B,2,FALSE)","v":"BIOL Biological Sciences Admin"},"1922000A","","","","",""]
["19","166",null,null,"BIOCHEMISTRY & MOLECULAR BIOL ","1011GH166000","10000","11100","11200","19210BMB",{"$f":"VLOOKUP(TRIM(J3361),'Transactional Departments'!A:B,2,FALSE)","v":"BCMB Operating"},"19210BMB","","","","",""]
["19","166",null,null,"NIH      RF HESC PROJ 1  DALTO","1021BR166498","15000","12110","11500","19210BMB",{"$f":"VLOOKUP(TRIM(J3366),'Transactional Departments'!A:B,2,FALSE)","v":"BCMB Operating"},"19210BMB","","","","",""]
["19","166",null,null,"NIH      RF HESC CORE C  DALTO","1021BR166500","15000","12110","11500","19210BMB",{"$f":"VLOOKUP(TRIM(J3368),'Transactional Departments'!A:B,2,FALSE)","v":"BCMB Operating"},"19210BMB","","","","",""]
["19","166",null,null,"UGAF     BIO & MOL BIO   STOKE","1021RR166029","20200","12100","67311","19210BMB",{"$f":"VLOOKUP(TRIM(J3373),'Transactional Departments'!A:B,2,FALSE)","v":"BCMB Operating"},"19210BMB","","","","",""]
["19","166",null,null,"NIH      RF W/ 166031 WEI     ","1021RR166032","20400","12100","61018","19210BMB",{"$f":"VLOOKUP(TRIM(J3375),'Transactional Departments'!A:B,2,FALSE)","v":"BCMB Operating"},"19210BMB","","","","",""]
["19","166",null,null,"LEIDOS   RF SERCAT FY16  WANG ","1021RR166507","20400","12100","64066","19210BMB",{"$f":"VLOOKUP(TRIM(J3380),'Transactional Departments'!A:B,2,FALSE)","v":"BCMB Operating"},"19210BMB","","","","",""]
["19","166",null,null,"NIH      RF EPIG RNA PLOYROSA-","1021RR166617","20400","12100","61018","19210BMB",{"$f":"VLOOKUP(TRIM(J3385),'Transactional Departments'!A:B,2,FALSE)","v":"BCMB Operating"},"19210BMB","","","","",""]
["19","166",null,null,"NSF      RF INST ALLOW W/16665","1021RR166652","20400","12100","61018","19210BMB",{"$f":"VLOOKUP(TRIM(J3390),'Transactional Departments'!A:B,2,FALSE)","v":"BCMB Operating"},"19210BMB","","","","",""]
["19","166",null,null,"NIH      RF INFRA COLLAB DOLAN","1021RR166792","20400","12100","61018","19210BMB",{"$f":"VLOOKUP(TRIM(J3396),'Transactional Departments'!A:B,2,FALSE)","v":"BCMB Operating"},"19210BMB","","","","",""]
["19","166",null,null,"NIH      RF CRISPR CAS STTERNS","1021RR166799","20400","12100","61018","19210BMB",{"$f":"VLOOKUP(TRIM(J3399),'Transactional Departments'!A:B,2,FALSE)","v":"BCMB Operating"},"19210BMB","","","","",""]
["19","166",null,null,"NIH      RF W/RR549378      PI","1021RR166817","20400","12100","61018","19210BMB",{"$f":"VLOOKUP(TRIM(J3403),'Transactional Departments'!A:B,2,FALSE)","v":"BCMB Operating"},"19210BMB","","","","",""]
["19","166",null,null,"NIH      RF MMA CRSPR SYSWEI  ","1021RR166835","20400","12100","61018","19210BMB",{"$f":"VLOOKUP(TRIM(J3408),'Transactional Departments'!A:B,2,FALSE)","v":"BCMB Operating"},"19210BMB","","","","",""]
["19","166",null,null,"NIH      RF IA W/166-846 ROSA ","1021RR166847","20400","12100","61018","19210BMB",{"$f":"VLOOKUP(TRIM(J3413),'Transactional Departments'!A:B,2,FALSE)","v":"BCMB Operating"},"19210BMB","","","","",""]
["19","166",null,null,"NIH      RF W/166833 EQU REP Z","1021RR166849","20400","12100","61018","19210BMB",{"$f":"VLOOKUP(TRIM(J3415),'Transactional Departments'!A:B,2,FALSE)","v":"BCMB Operating"},"19210BMB","","","","",""]
["19","166",null,null,"NCST/ARRARF ELECTROFUELS ADAMS","1021RU166775","20400","12100","62506","19210BMB",{"$f":"VLOOKUP(TRIM(J3423),'Transactional Departments'!A:B,2,FALSE)","v":"BCMB Operating"},"19210BMB","","","","",""]
["19","166",null,null,"         RESIDUAL #166RR HAJDU","1021RX166950","20400","12100","64RBP","19210BMB",{"$f":"VLOOKUP(TRIM(J3426),'Transactional Departments'!A:B,2,FALSE)","v":"BCMB Operating"},"19210BMB","","","","",""]
["19","166",null,null,"INDIRECT COST RECOVERY BIOCHEM","1026AR166001","15000","12200","11500","19210BMB",{"$f":"VLOOKUP(TRIM(J3431),'Transactional Departments'!A:B,2,FALSE)","v":"BCMB Operating"},"19210BMB","","","","",""]
["19","166",null,null,"DAVIES FERMENTATION           ","1026DR166005","14100","12200","41500","19210BMB",{"$f":"VLOOKUP(TRIM(J3432),'Transactional Departments'!A:B,2,FALSE)","v":"BCMB Operating"},"19210BMB","","","","",""]
["19","167",null,null,"HERBARIUM SUPS & EXPENSE      ","1011GH167002","10000","11100","11200","19270HB0",{"$f":"VLOOKUP(TRIM(J3438),'Transactional Departments'!A:B,2,FALSE)","v":"PBIO Herbarium"},"19270HB0","","","","",""]
["19","167",null,null,"UGAF     UGAF PLANT BIO RDORSE","1021RR167040","20200","12100","67322","19270001",{"$f":"VLOOKUP(TRIM(J3443),'Transactional Departments'!A:B,2,FALSE)","v":"PBIO Plant Biology"},"19270001","","","","",""]
["19","167",null,null,"INDIA/NSFRF PHENOTYPIC   BURKE","1021RR167521","20400","12100","62521","19270001",{"$f":"VLOOKUP(TRIM(J3447),'Transactional Departments'!A:B,2,FALSE)","v":"PBIO Plant Biology"},"19270001","","","","",""]
["19","167",null,null,"GA DNR   RF PS OGEECHEE  ZOMLE","1021RR167576","20400","12100","62016","19270001",{"$f":"VLOOKUP(TRIM(J3450),'Transactional Departments'!A:B,2,FALSE)","v":"PBIO Plant Biology"},"19270001","","","","",""]
["19","167",null,null,"UGAF     DIGIOIA HERB FUNDORSE","1021RR167603","20200","12100","67326","19270001",{"$f":"VLOOKUP(TRIM(J3456),'Transactional Departments'!A:B,2,FALSE)","v":"PBIO Plant Biology"},"19270001","","","","",""]
["19","167",null,null,"NIH      RF W/540-187    CAI  ","1021RR167628","20400","12100","61018","19270001",{"$f":"VLOOKUP(TRIM(J3461),'Transactional Departments'!A:B,2,FALSE)","v":"PBIO Plant Biology"},"19270001","","","","",""]
["19","167",null,null,"PSU/USDOERF DEEPER ROOTINBUCKS","1021RR167810","20400","12100","62531","19270001",{"$f":"VLOOKUP(TRIM(J3466),'Transactional Departments'!A:B,2,FALSE)","v":"PBIO Plant Biology"},"19270001","","","","",""]
["19","167",null,null,"         UGARF SUPPORT BOTANY ","1021RX167900","20300","12100","64ICR","19270001",{"$f":"VLOOKUP(TRIM(J3470),'Transactional Departments'!A:B,2,FALSE)","v":"PBIO Plant Biology"},"19270001","","","","",""]
["19","167",null,null,"PLANT CENTER ADMINISTRATION   ","1025AJ167008","15000","11140","11500","19270PC0",{"$f":"VLOOKUP(TRIM(J3473),'Transactional Departments'!A:B,2,FALSE)","v":"PBIO Plant Center"},"19270PC0","","","","",""]
["19","167",null,null,"RESEARCH STARTUP BENSASSON    ","1025GR167034","10000","12400","11200","19270BEN",{"$f":"VLOOKUP(TRIM(J3478),'Transactional Departments'!A:B,2,FALSE)","v":"PBIO Douda Bensasson"},"19270BEN","","","","",""]
["19","167",null,null,"RESEARCH DONOVAN              ","1025GR167037","10000","12400","11200","19270DON",{"$f":"VLOOKUP(TRIM(J3480),'Transactional Departments'!A:B,2,FALSE)","v":"PBIO Lisa Donovan"},"19270DON","","","","",""]
["19","167",null,null,"PLANT BIOLOGY                 ","1026GR167000","10000","12200","11200","19270001",{"$f":"VLOOKUP(TRIM(J3485),'Transactional Departments'!A:B,2,FALSE)","v":"PBIO Plant Biology"},"19270001","","","","",""]
["19","167",null,null,"PLANT BIOLOGY KEY DEPOSIT     ","9084GN167032","60000","","","19270001",{"$f":"VLOOKUP(TRIM(J3489),'Transactional Departments'!A:B,2,FALSE)","v":"PBIO Plant Biology"},"19270001","","","","",""]
["19","168",null,null,"         GRAHAM PERDU-S/S  -E ","1011RH168722","20400","11100","65759","19510001",{"$f":"VLOOKUP(TRIM(J3496),'Transactional Departments'!A:B,2,FALSE)","v":"CHEM Expense"},"19510001","","","","",""]
["19","168",null,null,"         SURO PARTICIPAN STICK","1021RR168525","20200","12100","67329","19510001",{"$f":"VLOOKUP(TRIM(J3501),'Transactional Departments'!A:B,2,FALSE)","v":"CHEM Expense"},"19510001","","","","",""]
["19","168",null,null,"         RF PHOTOCHEMICL LOCKL","1021RR168660","20400","12100","61014","19510001",{"$f":"VLOOKUP(TRIM(J3504),'Transactional Departments'!A:B,2,FALSE)","v":"CHEM Expense"},"19510001","","","","",""]
["19","168",null,null,"NIH      RF ATHEROSCLE   DHAR ","1021RR168681","20400","12100","61018","19510001",{"$f":"VLOOKUP(TRIM(J3508),'Transactional Departments'!A:B,2,FALSE)","v":"CHEM Expense"},"19510001","","","","",""]
["19","168",null,null,"USDOE    RF HYDROCARBON  DOUBE","1021RR168712","20400","12100","61001","19510001",{"$f":"VLOOKUP(TRIM(J3513),'Transactional Departments'!A:B,2,FALSE)","v":"CHEM Expense"},"19510001","","","","",""]
["19","168",null,null,"         UGARF SUPPORT CHEM   ","1021RX168900","20300","12100","64ICR","19510001",{"$f":"VLOOKUP(TRIM(J3518),'Transactional Departments'!A:B,2,FALSE)","v":"CHEM Expense"},"19510001","","","","",""]
["19","168",null,null,"ROYALTY HOLDING CHEMISTRY     ","1021RX168980","20300","12100","64URF","19510001",{"$f":"VLOOKUP(TRIM(J3520),'Transactional Departments'!A:B,2,FALSE)","v":"CHEM Expense"},"19510001","","","","",""]
["19","168",null,null,"DHAR EQUIPMENT SALE           ","1025DR168034","14100","12400","41500","19510SEW",{"$f":"VLOOKUP(TRIM(J3527),'Transactional Departments'!A:B,2,FALSE)","v":"CHEM Stephen Wheeler"},"19510SEW","","","","",""]
["19","168",null,null,"REGENTS FUND DUNCAN           ","1025GR168054","10000","12400","11200","19510MAD",{"$f":"VLOOKUP(TRIM(J3531),'Transactional Departments'!A:B,2,FALSE)","v":"CHEM Michael Duncan"},"19510MAD","","","","",""]
["19","168",null,null,"LOCKLIN RETENTION FUNDS       ","1025GR168074","10000","12400","11200","19510JJL",{"$f":"VLOOKUP(TRIM(J3536),'Transactional Departments'!A:B,2,FALSE)","v":"CHEM Jason Locklin"},"19510JJL","","","","",""]
["19","168",null,null,"FROSSARD STARTUP              ","1025GR168075","10000","12400","11200","19510AAF",{"$f":"VLOOKUP(TRIM(J3537),'Transactional Departments'!A:B,2,FALSE)","v":"CHEM Amanda Frossard"},"19510AAF","","","","",""]
["19","168",null,null,"CHEMISTRY XRAY FACILITY       ","1026DR168017","14100","12200","41500","19510017",{"$f":"VLOOKUP(TRIM(J3543),'Transactional Departments'!A:B,2,FALSE)","v":"CHEM Xray Facility"},"19510017","","","","",""]
["19","169",null,null,"EUROPE: UNEARTHING THE PAST   ","1011DV169008","14100","11100","41507","19410500",{"$f":"VLOOKUP(TRIM(J3548),'Transactional Departments'!A:B,2,FALSE)","v":"CLAS Europe"},"19410500","18000","NSABD1180MM18  ","100","",""]
["19","169",null,null,"CLASSICS                      ","1011GJ169000","10000","11140","11200","19410001",{"$f":"VLOOKUP(TRIM(J3551),'Transactional Departments'!A:B,2,FALSE)","v":"CLAS Classics General"},"19410001","","","","",""]
["19","169",null,null,"UGAF     CLASSICS ROME FNDORSE","1011RH169050","20200","11100","","19410001",{"$f":"VLOOKUP(TRIM(J3555),'Transactional Departments'!A:B,2,FALSE)","v":"CLAS Classics General"},"19410001","","","","",""]
["19","170",null,null,"SERVICE LEARNING IN TANZANIA  ","1011DV170007","14100","11100","41507","19420GOP",{"$f":"VLOOKUP(TRIM(J3560),'Transactional Departments'!A:B,2,FALSE)","v":"CMLT General Operating"},"19420GOP","18000","NSABD1081MM18  ","100","",""]
["19","170",null,null,"STUDY ABROAD IN TANZANIA      ","1011GV170035","10000","11100","11200","19420GOP",{"$f":"VLOOKUP(TRIM(J3566),'Transactional Departments'!A:B,2,FALSE)","v":"CMLT General Operating"},"19420GOP","18000","NSABD1081MM18  ","100","",""]
["19","170",null,null,"COMPARATIVE LITERATURE        ","1025GR170000","10000","12400","11200","19420GOP",{"$f":"VLOOKUP(TRIM(J3571),'Transactional Departments'!A:B,2,FALSE)","v":"CMLT General Operating"},"19420GOP","","","","",""]
["19","170",null,null,"COMPARATIVE LITERATURE        ","1046GT170000","10000","14600","11200","19420GOP",{"$f":"VLOOKUP(TRIM(J3575),'Transactional Departments'!A:B,2,FALSE)","v":"CMLT General Operating"},"19420GOP","","","","",""]
["19","171",null,null,"ICE SALES ACCOUNT             ","1011DH171021","14100","11100","41500","19340001",{"$f":"VLOOKUP(TRIM(J3578),'Transactional Departments'!A:B,2,FALSE)","v":"THEA Operations"},"19340001","","","","",""]
["19","171",null,null,"DRAMA/THEATRE INSTRUCT LONDON ","1011GV171030","10000","11100","11200","19340102",{"$f":"VLOOKUP(TRIM(J3584),'Transactional Departments'!A:B,2,FALSE)","v":"THEA Study Abroad"},"19340102","18000","NSABD1123SUM18 ","100","",""]
["19","171",null,null,"UGAF     BALLEW LECT SRS DORSE","1011RH171057","20200","11100","","19340001",{"$f":"VLOOKUP(TRIM(J3589),'Transactional Departments'!A:B,2,FALSE)","v":"THEA Operations"},"19340001","","","","",""]
["19","171",null,null,"UGAF     NEW GEORGIA END DORSE","1011RH171058","20200","11100","67041","19340001",{"$f":"VLOOKUP(TRIM(J3590),'Transactional Departments'!A:B,2,FALSE)","v":"THEA Operations"},"19340001","","","","",""]
["19","171",null,null,"         UGARF DRAMA & T LONGM","1021RX171900","20300","12100","64ICR","19340001",{"$f":"VLOOKUP(TRIM(J3594),'Transactional Departments'!A:B,2,FALSE)","v":"THEA Operations"},"19340001","","","","",""]
["19","171",null,null,"GA REPERTORY THEATRE - INCOME ","9086GN171013","60000","","","19340001",{"$f":"VLOOKUP(TRIM(J3601),'Transactional Departments'!A:B,2,FALSE)","v":"THEA Operations"},"19340001","","","","",""]
["19","173",null,null,"LAB FEE / ENGLISH             ","1011DH173002","14100","11100","41500","19430LAB",{"$f":"VLOOKUP(TRIM(J3606),'Transactional Departments'!A:B,2,FALSE)","v":"ENGL Lab"},"19430LAB","","","","",""]
["19","173",null,null,"ENGLISH DEPT SALES & SERVICES ","1011DH173005","14100","11100","41500","19430100",{"$f":"VLOOKUP(TRIM(J3608),'Transactional Departments'!A:B,2,FALSE)","v":"ENGL English General Admin"},"19430100","","","","",""]
["19","173",null,null,"ENGLISH - 1ST YEAR ODYSSEY    ","1011GH173068","10000","11100","11200","19430100",{"$f":"VLOOKUP(TRIM(J3613),'Transactional Departments'!A:B,2,FALSE)","v":"ENGL English General Admin"},"19430100","","","","",""]
["19","173",null,null,"ENGLISH - DEPT HEAD SUPPORT   ","1011GJ173065","10000","11140","11200","19430401",{"$f":"VLOOKUP(TRIM(J3617),'Transactional Departments'!A:B,2,FALSE)","v":"ENGL English Dept Head"},"19430401","","","","",""]
["19","173",null,null,"         ENGLISH FUND    HILTO","1011RH173050","20200","11100","67047","19430100",{"$f":"VLOOKUP(TRIM(J3624),'Transactional Departments'!A:B,2,FALSE)","v":"ENGL English General Admin"},"19430100","","","","",""]
["19","173",null,null,"UGAF     METHVIN PROF S LDORSE","1011RH173722","20200","11100","67048","19430100",{"$f":"VLOOKUP(TRIM(J3625),'Transactional Departments'!A:B,2,FALSE)","v":"ENGL English General Admin"},"19430100","","","","",""]
["19","173",null,null,"         UGARF SUPPORT ENGLISH","1021RX173900","20300","12100","64ICR","19430100",{"$f":"VLOOKUP(TRIM(J3632),'Transactional Departments'!A:B,2,FALSE)","v":"ENGL English General Admin"},"19430100","","","","",""]
["19","173",null,null,"MELUS CONFERENCE              ","1031DW173006","14100","13100","41500","19430100",{"$f":"VLOOKUP(TRIM(J3636),'Transactional Departments'!A:B,2,FALSE)","v":"ENGL English General Admin"},"19430100","","","","",""]
["19","173",null,null,"BORROWERS AND LENDERS JOURNAL ","9086GN173074","60000","","","19430BAL",{"$f":"VLOOKUP(TRIM(J3641),'Transactional Departments'!A:B,2,FALSE)","v":"ENGL Borrows And Lenders"},"19430BAL","","","","",""]
["19","175",null,null,"GEOG SAB VAT                  ","1011DV175032","14100","11100","41507","19630GGY",{"$f":"VLOOKUP(TRIM(J3646),'Transactional Departments'!A:B,2,FALSE)","v":"GEOG Geography General"},"19630GGY","18000","NSABD1114SU18V ","100","",""]
["19","175",null,null,"GEOGRAPHY                     ","1011GJ175000","10000","11140","11200","19630GGY",{"$f":"VLOOKUP(TRIM(J3648),'Transactional Departments'!A:B,2,FALSE)","v":"GEOG Geography General"},"19630GGY","","","","",""]
["19","175",null,null,"         FY18 BEAVER AWARFISHE","1011RH175296","20400","11100","65755","19630GGY",{"$f":"VLOOKUP(TRIM(J3651),'Transactional Departments'!A:B,2,FALSE)","v":"GEOG Geography General"},"19630GGY","","","","",""]
["19","175",null,null,"GDNR/WRD RF GEO INFO SYS WELCH","1021RR175191","20400","12100","62016","19630GGY",{"$f":"VLOOKUP(TRIM(J3659),'Transactional Departments'!A:B,2,FALSE)","v":"GEOG Geography General"},"19630GGY","","","","",""]
["19","175",null,null,"         RF NPCA BLUE RI MADDE","1021RR175236","20400","12100","64000","19630GGY",{"$f":"VLOOKUP(TRIM(J3660),'Transactional Departments'!A:B,2,FALSE)","v":"GEOG Geography General"},"19630GGY","","","","",""]
["19","175",null,null,"UGAF     ATMSPHER SCI    DORSE","1021RR175265","20200","12100","67333","19630GGY",{"$f":"VLOOKUP(TRIM(J3665),'Transactional Departments'!A:B,2,FALSE)","v":"GEOG Geography General"},"19630GGY","","","","",""]
["19","175",null,null,"ACFB     RF FOOD INSEC   SHANN","1021RR175273","20400","12100","64184","19630GGY",{"$f":"VLOOKUP(TRIM(J3671),'Transactional Departments'!A:B,2,FALSE)","v":"GEOG Geography General"},"19630GGY","","","","",""]
["19","175",null,null,"UGAF     GEOG CONF ACCT  DORSE","1021RR175348","20200","12100","67337","19630GGY",{"$f":"VLOOKUP(TRIM(J3676),'Transactional Departments'!A:B,2,FALSE)","v":"GEOG Geography General"},"19630GGY","","","","",""]
["19","175",null,null,"USDA ARS RF LTAR SITE    MADDE","1021RR175357","20400","12100","61004","19630GGY",{"$f":"VLOOKUP(TRIM(J3679),'Transactional Departments'!A:B,2,FALSE)","v":"GEOG Geography General"},"19630GGY","","","","",""]
["19","175",null,null,"GEOG/WATERSHED RES            ","1025DR175028","14100","12400","41500","19630GGY",{"$f":"VLOOKUP(TRIM(J3683),'Transactional Departments'!A:B,2,FALSE)","v":"GEOG Geography General"},"19630GGY","","","","",""]
["19","175",null,null,"SHANNON START-UP GEOG         ","1025GR175057","10000","12400","11200","19630SHN",{"$f":"VLOOKUP(TRIM(J3689),'Transactional Departments'!A:B,2,FALSE)","v":"GEOG Shannon"},"19630SHN","","","","",""]
["19","175",null,null,"OSL LAB BROOK                 ","1026DR175011","14100","12200","41500","19630BRK",{"$f":"VLOOKUP(TRIM(J3694),'Transactional Departments'!A:B,2,FALSE)","v":"GEOG Brook"},"19630BRK","","","","",""]
["19","175",null,null,"ENVIRONMENTAL CHANGE LAB      ","1026DR175012","14100","12200","41500","19630POR",{"$f":"VLOOKUP(TRIM(J3695),'Transactional Departments'!A:B,2,FALSE)","v":"GEOG Porinchu"},"19630POR","","","","",""]
["19","176",null,null,"GEOLOGY COURSE/LAB FEE        ","1011DH176003","14100","11100","41500","19530LAB",{"$f":"VLOOKUP(TRIM(J3703),'Transactional Departments'!A:B,2,FALSE)","v":"GEOL Lab Fee"},"19530LAB","","","","",""]
["19","176",null,null,"IFP                           ","1011DV176018","14100","11100","41507","19530IFP",{"$f":"VLOOKUP(TRIM(J3706),'Transactional Departments'!A:B,2,FALSE)","v":"GEOL IFP Field School"},"19530IFP","18000","NFSTY1025SU17  ","100","",""]
["19","176",null,null,"GEOLOGY HONORS FIELD PROGRAM  ","1011GV176007","10000","11100","11200","19530IFP",{"$f":"VLOOKUP(TRIM(J3711),'Transactional Departments'!A:B,2,FALSE)","v":"GEOL IFP Field School"},"19530IFP","18000","NFSTY1025SU17  ","100","",""]
["19","176",null,null,"GEOLOGY                       ","1019GJ176000","10000","14400","11200","19530GEO",{"$f":"VLOOKUP(TRIM(J3712),'Transactional Departments'!A:B,2,FALSE)","v":"GEOL General Account"},"19530GEO","","","","",""]
["19","176",null,null,"PU       RF MARIE CURIE  HOLLA","1021RR176304","20400","12100","64487","19530GEO",{"$f":"VLOOKUP(TRIM(J3718),'Transactional Departments'!A:B,2,FALSE)","v":"GEOL General Account"},"19530GEO","","","","",""]
["19","176",null,null,"ROYALTY GEOLOGY DEPT          ","1021RX176293","20300","12100","64RYT","19530NZE",{"$f":"VLOOKUP(TRIM(J3722),'Transactional Departments'!A:B,2,FALSE)","v":"GEOL Nzengung Faculty"},"19530NZE","","","","",""]
["19","176",null,null,"GEOLOGY INDIRECT COST REC     ","1026AR176001","15000","12200","11500","19530GEO",{"$f":"VLOOKUP(TRIM(J3729),'Transactional Departments'!A:B,2,FALSE)","v":"GEOL General Account"},"19530GEO","","","","",""]
["19","176",null,null,"STABLE ISOTOPE LAB            ","1026DR176008","14100","12200","41500","19530SIL",{"$f":"VLOOKUP(TRIM(J3730),'Transactional Departments'!A:B,2,FALSE)","v":"GEOL SIL Income"},"19530SIL","","","","",""]
["19","177",null,null,"INDIRECT COST REC GERM/SLAV   ","1011AH177001","15000","11100","11500","19440GOS",{"$f":"VLOOKUP(TRIM(J3736),'Transactional Departments'!A:B,2,FALSE)","v":"GRMN Operations & Supplies"},"19440GOS","","","","",""]
["19","177",null,null,"GERMANIC & SLAVIC STUDIES     ","1011GJ177000","10000","11140","11200","19440GOS",{"$f":"VLOOKUP(TRIM(J3741),'Transactional Departments'!A:B,2,FALSE)","v":"GRMN Operations & Supplies"},"19440GOS","","","","",""]
["19","177",null,null,"UGAF     KADE FND GRT    DORSE","1011RH177032","20200","11100","67051","19440GOS",{"$f":"VLOOKUP(TRIM(J3746),'Transactional Departments'!A:B,2,FALSE)","v":"GRMN Operations & Supplies"},"19440GOS","","","","",""]
["19","177",null,null,"GERMANIC & SLAVIC STUDIES     ","1025GR177000","10000","12400","11200","19440GOS",{"$f":"VLOOKUP(TRIM(J3748),'Transactional Departments'!A:B,2,FALSE)","v":"GRMN Operations & Supplies"},"19440GOS","","","","",""]
["19","178",null,null,"INST OF BIOINFORMATICS/FRANKLI","1026GR178000","10000","12200","11200","19760001",{"$f":"VLOOKUP(TRIM(J3753),'Transactional Departments'!A:B,2,FALSE)","v":"BINF Inst Bioinformatics Gen"},"19760001","","","","",""]
["19","180",null,null,"HISTORY                       ","1011GJ180000","10000","11140","11200","19450001",{"$f":"VLOOKUP(TRIM(J3760),'Transactional Departments'!A:B,2,FALSE)","v":"HIST-gj"},"19450001","","","","",""]
["19","180",null,null,"         BALDWIN PROF    ANDER","1011RH180118","20200","11100","67055","19450001",{"$f":"VLOOKUP(TRIM(J3764),'Transactional Departments'!A:B,2,FALSE)","v":"HIST-gj"},"19450001","","","","",""]
["19","180",null,null,"         SAYE PROF       ROBER","1011RH180127","20200","11100","67056","19450001",{"$f":"VLOOKUP(TRIM(J3765),'Transactional Departments'!A:B,2,FALSE)","v":"HIST-gj"},"19450001","","","","",""]
["19","180",null,null,"         LAMAR WILL PENDLMORRO","1011RH180766","20400","11100","65000","19450001",{"$f":"VLOOKUP(TRIM(J3769),'Transactional Departments'!A:B,2,FALSE)","v":"HIST-gj"},"19450001","","","","",""]
["19","180",null,null,"HISTORY RUSSELL PROF RSCH     ","1025GR180033","10000","12400","11200","19450DH2",{"$f":"VLOOKUP(TRIM(J3776),'Transactional Departments'!A:B,2,FALSE)","v":"HIST- head support"},"19450DH2","","","","",""]
["19","180",null,null,"MIHM RESEARCH SUPPORT         ","1025GR180053","10000","12400","11200","19450MIM",{"$f":"VLOOKUP(TRIM(J3779),'Transactional Departments'!A:B,2,FALSE)","v":"HIST-Mihm"},"19450MIM","","","","",""]
["19","181",null,null,"GEORGIA TOPOLOGY CONFERENCE   ","1011DW181006","14100","11100","41500","19540006",{"$f":"VLOOKUP(TRIM(J3783),'Transactional Departments'!A:B,2,FALSE)","v":"MATH Topology Conference"},"19540006","","","","",""]
["19","181",null,null,"UGAF     MICHAEL AWARD   STOKE","1011RH181224","20200","11100","","19540100",{"$f":"VLOOKUP(TRIM(J3788),'Transactional Departments'!A:B,2,FALSE)","v":"MATH Mathematics Operating"},"19540100","","","","",""]
["19","181",null,null,"NSF      RF ALGEBRA      LOREN","1021BR181268","15000","12110","11500","19540100",{"$f":"VLOOKUP(TRIM(J3793),'Transactional Departments'!A:B,2,FALSE)","v":"MATH Mathematics Operating"},"19540100","","","","",""]
["19","181",null,null,"NSA  RF  RF ALGEBRA BOOTCGIBNE","1021RR181280","20400","12100","61030","19540100",{"$f":"VLOOKUP(TRIM(J3799),'Transactional Departments'!A:B,2,FALSE)","v":"MATH Mathematics Operating"},"19540100","","","","",""]
["19","181",null,null,"SIMONS FNRF RF_MATH PHYS GIANS","1021RR181287","20400","12100","64420","19540100",{"$f":"VLOOKUP(TRIM(J3800),'Transactional Departments'!A:B,2,FALSE)","v":"MATH Mathematics Operating"},"19540100","","","","",""]
["19","181",null,null,"MATHEMATICS                   ","1025GJ181000","10000","11140","11200","19540100",{"$f":"VLOOKUP(TRIM(J3807),'Transactional Departments'!A:B,2,FALSE)","v":"MATH Mathematics Operating"},"19540100","","","","",""]
["19","181",null,null,"WU STARTUP MATH               ","1025GR181047","10000","12400","11200","19540247",{"$f":"VLOOKUP(TRIM(J3811),'Transactional Departments'!A:B,2,FALSE)","v":"MATH Wu Startup"},"19540247","","","","",""]
["19","181",null,null,"MATH CLUB & UNDERGRAD ACTIVITY","1031DW181009","14100","13100","41500","19540009",{"$f":"VLOOKUP(TRIM(J3817),'Transactional Departments'!A:B,2,FALSE)","v":"MATH Math Club"},"19540009","","","","",""]
["19","181",null,null,"RUMELY CONFERENCE             ","1031DW181012","14100","13100","41500","19540100",{"$f":"VLOOKUP(TRIM(J3818),'Transactional Departments'!A:B,2,FALSE)","v":"MATH Mathematics Operating"},"19540100","","","","",""]
["19","182",null,null,"MICROBIOLOGY                  ","1011GJ182000","10000","11140","11200","19260002",{"$f":"VLOOKUP(TRIM(J3823),'Transactional Departments'!A:B,2,FALSE)","v":"MIBO Instruction"},"19260002","","","","",""]
["19","182",null,null,"NIH      RF B12 BIOS ANA ESCAL","1021BO182449","15000","12110","11500","19260001",{"$f":"VLOOKUP(TRIM(J3826),'Transactional Departments'!A:B,2,FALSE)","v":"MIBO Dept Admin"},"19260001","","","","",""]
["19","182",null,null,"UGAF     RSCH SUPPORT    SUMME","1021RR182407","20200","12100","67345","19260001",{"$f":"VLOOKUP(TRIM(J3834),'Transactional Departments'!A:B,2,FALSE)","v":"MIBO Dept Admin"},"19260001","","","","",""]
["19","182",null,null,"NIH      RF YJGF SPR FAM DOWNS","1021RR182424","20400","12100","61018","19260001",{"$f":"VLOOKUP(TRIM(J3835),'Transactional Departments'!A:B,2,FALSE)","v":"MIBO Dept Admin"},"19260001","","","","",""]
["19","182",null,null,"U OF PORTRF RF_LIGNIN UTINEIDL","1021RR182458","20400","12100","64500","19260001",{"$f":"VLOOKUP(TRIM(J3840),'Transactional Departments'!A:B,2,FALSE)","v":"MIBO Dept Admin"},"19260001","","","","",""]
["19","182",null,null,"NIH      RF RF_CRYPTOCOCCLIN  ","1021RR182481","20400","12100","61018","19260001",{"$f":"VLOOKUP(TRIM(J3846),'Transactional Departments'!A:B,2,FALSE)","v":"MIBO Dept Admin"},"19260001","","","","",""]
["19","182",null,null,"         RESIDUAL #950RR KRAUS","1021RX182950","20400","12100","64RBP","19260002",{"$f":"VLOOKUP(TRIM(J3850),'Transactional Departments'!A:B,2,FALSE)","v":"MIBO Instruction"},"19260002","","","","",""]
["19","182",null,null,"OTTESEN IDC START UP          ","1025AR182008","15000","12400","11500","19260EAO",{"$f":"VLOOKUP(TRIM(J3853),'Transactional Departments'!A:B,2,FALSE)","v":"MIBO Elizabeth Ottesen"},"19260EAO","","","","",""]
["19","182",null,null,"MICROBIOLOGY                  ","1025GR182000","10000","12400","11200","19260002",{"$f":"VLOOKUP(TRIM(J3858),'Transactional Departments'!A:B,2,FALSE)","v":"MIBO Instruction"},"19260002","","","","",""]
["19","183",null,null,"MUSIC - TICKET SALES          ","1011DH183006","14100","11100","41500","19330006",{"$f":"VLOOKUP(TRIM(J3864),'Transactional Departments'!A:B,2,FALSE)","v":"MUSI Ticket Sales"},"19330006","","","","","HHTICKETS "]
["19","183",null,null,"MUSIC - STUDENT FEES          ","1011DW183004","14100","11100","41500","19330004",{"$f":"VLOOKUP(TRIM(J3869),'Transactional Departments'!A:B,2,FALSE)","v":"MUSI Student Fees"},"19330004","","","","","HHSTUDFEE "]
["19","183",null,null,"MUSIC - SUMMER CAMPUS         ","1011DW183007","14100","11100","41500","19330007",{"$f":"VLOOKUP(TRIM(J3870),'Transactional Departments'!A:B,2,FALSE)","v":"MUSI SMR Music Cmp"},"19330007","","","","","HHSUMCAMPS"]
["19","183",null,null,"MUS-AMBARTSUMIAN FRANKLIN PROF","1011GH183036","10000","11100","11200","19330036",{"$f":"VLOOKUP(TRIM(J3878),'Transactional Departments'!A:B,2,FALSE)","v":"MUSI Levon Proff"},"19330036","","","","","HHLEVONPRO"]
["19","183",null,null,"HUGH HODGSON SCHOOL OF MUSIC  ","1011GJ183000","10000","11140","11200","19330HHJ",{"$f":"VLOOKUP(TRIM(J3881),'Transactional Departments'!A:B,2,FALSE)","v":"MUSI Hhsom GJ"},"19330HHJ","","","","","HHSOM GJ  "]
["19","183",null,null,"MUSIC ITALY STUDY ABROAD TUIT ","1011GV183044","10000","11100","11200","19330144",{"$f":"VLOOKUP(TRIM(J3883),'Transactional Departments'!A:B,2,FALSE)","v":"MUSI Stdyabtuit"},"19330144","18000","NSABD1122MM18  ","100","","HHITALYTUI"]
["19","183",null,null,"UGAF     ARCO SUPPORT    RUPPE","1011RH183064","20200","11100","67065","19330064",{"$f":"VLOOKUP(TRIM(J3888),'Transactional Departments'!A:B,2,FALSE)","v":"MUSI Arco Support"},"19330064","","","","","HHARCOSUPR"]
["19","183",null,null,"UGAF     MEN'S GLEE CLUB DORSE","1011RH183073","20200","11100","67865","19330073",{"$f":"VLOOKUP(TRIM(J3893),'Transactional Departments'!A:B,2,FALSE)","v":"MUSI Men's Glee Club"},"19330073","","","","","HHMENSGLEE"]
["19","183",null,null,"         B. WARNER GLEE CVERRA","1011RH183883","20500","11100","65883","19330883",{"$f":"VLOOKUP(TRIM(J3897),'Transactional Departments'!A:B,2,FALSE)","v":"MUSI Warner Glee"},"19330883","","","","","HHWARNGLEE"]
["19","183",null,null,"REGENTS PROFESSOR AMBARTSUMIAN","1025GR183065","10000","12400","11200","19330065",{"$f":"VLOOKUP(TRIM(J3904),'Transactional Departments'!A:B,2,FALSE)","v":"MUSI Regents Levon"},"19330065","","","","","HHREGNTLEV"]
["19","183",null,null,"MUSIC-STRING PROJECT          ","1031DE183010","14100","13100","41500","19330010",{"$f":"VLOOKUP(TRIM(J3907),'Transactional Departments'!A:B,2,FALSE)","v":"MUSI String Project"},"19330010","","","","","HHSTRINGPR"]
["19","183",null,null,"MUSIC-UGA SAXOPHONE WORKSHOP  ","1031DW183013","14100","13100","41500","19330013",{"$f":"VLOOKUP(TRIM(J3911),'Transactional Departments'!A:B,2,FALSE)","v":"MUSI Saxophone"},"19330013","","","","","HHSAXWRKSH"]
["19","183",null,null,"MUSIC - CHORAL DAY WORKSHOP   ","1031DW183033","14100","13100","41500","19330033",{"$f":"VLOOKUP(TRIM(J3916),'Transactional Departments'!A:B,2,FALSE)","v":"MUSI Choral Day"},"19330033","","","","","HHCHORALDY"]
["19","183",null,null,"UGAF     PERCUSSION STUDIDORSE","1046RT183075","20200","14600","67868","19330075",{"$f":"VLOOKUP(TRIM(J3921),'Transactional Departments'!A:B,2,FALSE)","v":"MUSI Percussion Studio"},"19330075","","","","","HHPERCSUPT"]
["19","183",null,null,"UGAF     JAZZ STUDIES SUPLOWE ","1052RS183040","20200","15200","67700","19330240",{"$f":"VLOOKUP(TRIM(J3923),'Transactional Departments'!A:B,2,FALSE)","v":"MUSI Jazz Stdy Lowe"},"19330240","","","","","HHJAZZLOWE"]
["19","183",null,null,"UGAF     REDCOAT BAND TOWER   ","8061RY183804","50100","17630","","19330HHH",{"$f":"VLOOKUP(TRIM(J3928),'Transactional Departments'!A:B,2,FALSE)","v":"MUSI Hhsom GH"},"19330HHH","","","","",""]
["19","184",null,null,"PHILOSOPHY                    ","1025GR184000","10000","12400","11200","19470PHI",{"$f":"VLOOKUP(TRIM(J3935),'Transactional Departments'!A:B,2,FALSE)","v":"PHIL Philosophy - Gen"},"19470PHI","","","","",""]
["19","185",null,null,"UGAF     PHYSICS              ","1011RH185161","20200","11100","67070","19550INS",{"$f":"VLOOKUP(TRIM(J3939),'Transactional Departments'!A:B,2,FALSE)","v":"PHYS Instruction"},"19550INS","","","","",""]
["19","185",null,null,"BOR/USG  W/007-036 STEM  BURG ","1011RH185485","20400","11100","62020","19550INS",{"$f":"VLOOKUP(TRIM(J3940),'Transactional Departments'!A:B,2,FALSE)","v":"PHYS Instruction"},"19550INS","","","","",""]
["19","185",null,null,"NSF      RF PS 185-434        ","1021RR185440","20400","12100","61023","19550INS",{"$f":"VLOOKUP(TRIM(J3946),'Transactional Departments'!A:B,2,FALSE)","v":"PHYS Instruction"},"19550INS","","","","",""]
["19","185",null,null,"STSI/NASARF H2/HD DATA   STANC","1021RR185465","20400","12100","64341","19550INS",{"$f":"VLOOKUP(TRIM(J3951),'Transactional Departments'!A:B,2,FALSE)","v":"PHYS Instruction"},"19550INS","","","","",""]
["19","185",null,null,"GSU/DOD  RF RF_PROBING NAABATE","1021RR185486","20400","12100","62022","19550INS",{"$f":"VLOOKUP(TRIM(J3954),'Transactional Departments'!A:B,2,FALSE)","v":"PHYS Instruction"},"19550INS","","","","",""]
["19","185",null,null,"CENTER FOR SIM PHYS SUPPORT   ","1025AR185003","15000","12400","11500","19550CSP",{"$f":"VLOOKUP(TRIM(J3958),'Transactional Departments'!A:B,2,FALSE)","v":"PHYS CSP General"},"19550CSP","","","","",""]
["19","185",null,null,"PHYSICS AND ASTRONOMY         ","1025GR185000","10000","12400","11200","19550RES",{"$f":"VLOOKUP(TRIM(J3963),'Transactional Departments'!A:B,2,FALSE)","v":"PHYS Research"},"19550RES","","","","",""]
["19","187",null,null,"PSYCHOLOGY CLINIC             ","1011GH187019","10000","11100","11200","19640019",{"$f":"VLOOKUP(TRIM(J3968),'Transactional Departments'!A:B,2,FALSE)","v":"PSYC Psychology Clinic"},"19640019","","","","",""]
["19","187",null,null,"RCLD - PSYCHOLOGY             ","1014DH187616","14100","11400","41500","19780INC",{"$f":"VLOOKUP(TRIM(J3974),'Transactional Departments'!A:B,2,FALSE)","v":"RCLD - Income"},"19780INC","","","","",""]
["19","187",null,null,"MCG      RF SUB W RR234217    ","1021RR187206","20400","12100","62000","19640GEN",{"$f":"VLOOKUP(TRIM(J3978),'Transactional Departments'!A:B,2,FALSE)","v":"PSYC Psychology General"},"19640GEN","","","","",""]
["19","187",null,null,"NSF      RF WITH 1021RR540199 ","1021RR187263","20400","12100","61023","19640GEN",{"$f":"VLOOKUP(TRIM(J3981),'Transactional Departments'!A:B,2,FALSE)","v":"PSYC Psychology General"},"19640GEN","","","","",""]
["19","187",null,null,"ROYALTY PSYCHOLOGY PI HOFFMAN ","1021RX187260","20300","12100","64RYT","19640GEN",{"$f":"VLOOKUP(TRIM(J3986),'Transactional Departments'!A:B,2,FALSE)","v":"PSYC Psychology General"},"19640GEN","","","","",""]
["19","187",null,null,"CARTERD STARTUP               ","1025AR187014","15000","12400","11500","19640GEN",{"$f":"VLOOKUP(TRIM(J3992),'Transactional Departments'!A:B,2,FALSE)","v":"PSYC Psychology General"},"19640GEN","","","","",""]
["19","187",null,null,"PSYCHOLOGY                    ","1025GR187000","10000","12400","11200","19640GEN",{"$f":"VLOOKUP(TRIM(J3993),'Transactional Departments'!A:B,2,FALSE)","v":"PSYC Psychology General"},"19640GEN","","","","",""]
["19","187",null,null,"METZGER STARTUP               ","1025GR187048","10000","12400","11200","196400IM",{"$f":"VLOOKUP(TRIM(J3998),'Transactional Departments'!A:B,2,FALSE)","v":"PSYC I Metzger Start up"},"196400IM","","","","",""]
["19","187",null,null,"PSYCHOLOGY                    ","1026DM187000","14100","12200","41500","19640BIN",{"$f":"VLOOKUP(TRIM(J4001),'Transactional Departments'!A:B,2,FALSE)","v":"PSYC BIRC Income"},"19640BIN","","","","",""]
["19","187",null,null,"CTRU SEED GRANT STRAUSS       ","1925GR187049","10800","12400","11200","19640SSD",{"$f":"VLOOKUP(TRIM(J4009),'Transactional Departments'!A:B,2,FALSE)","v":"PSYC CTRU Seed Grant Strauss"},"19640SSD","","","","",""]
["19","189",null,null,"VALENCIA SPRING               ","1011DV189005","14100","11100","41507","19490100",{"$f":"VLOOKUP(TRIM(J4011),'Transactional Departments'!A:B,2,FALSE)","v":"ROML General Administration"},"19490100","18000","NSABD1021SP18  ","100","",""]
["19","189",null,null,"VALENCIA SUMMER               ","1011DV189011","14100","11100","41507","19490100",{"$f":"VLOOKUP(TRIM(J4016),'Transactional Departments'!A:B,2,FALSE)","v":"ROML General Administration"},"19490100","18000","NSABD1021SU18  ","100","",""]
["19","189",null,null,"BUENOS AIRES - SUMMER 2017    ","1011DV189016","14100","11100","41507","19490100",{"$f":"VLOOKUP(TRIM(J4021),'Transactional Departments'!A:B,2,FALSE)","v":"ROML General Administration"},"19490100","18000","NSABD1020SU18  ","100","",""]
["19","189",null,null,"UGA EN ESPANA VALENCIA        ","1011GV189058","10000","11100","11200","19490100",{"$f":"VLOOKUP(TRIM(J4025),'Transactional Departments'!A:B,2,FALSE)","v":"ROML General Administration"},"19490100","18000","NSABD1021SU18  ","100","",""]
["19","189",null,null,"UGA EN FRANCE                 ","1011GV189061","10000","11100","11200","19490100",{"$f":"VLOOKUP(TRIM(J4028),'Transactional Departments'!A:B,2,FALSE)","v":"ROML General Administration"},"19490100","18000","NSABD1022SU18  ","100","",""]
["19","189",null,null,"ROYALTY ROMANCE LANG          ","1021RX189055","20300","12100","64RYT","19490100",{"$f":"VLOOKUP(TRIM(J4035),'Transactional Departments'!A:B,2,FALSE)","v":"ROML General Administration"},"19490100","","","","",""]
["19","190",null,null,"SOCIOLOGY                     ","1011GH190000","10000","11100","11200","19650001",{"$f":"VLOOKUP(TRIM(J4039),'Transactional Departments'!A:B,2,FALSE)","v":"SOCI Sociology General"},"19650001","","","","",""]
["19","190",null,null,"SOCIOLOGY                     ","1019GJ190000","10000","14400","11200","19650001",{"$f":"VLOOKUP(TRIM(J4044),'Transactional Departments'!A:B,2,FALSE)","v":"SOCI Sociology General"},"19650001","","","","",""]
["19","190",null,null,"         UGARF SUPPORT SOCIOLO","1021RX190900","20300","12100","64ICR","19650001",{"$f":"VLOOKUP(TRIM(J4049),'Transactional Departments'!A:B,2,FALSE)","v":"SOCI Sociology General"},"19650001","","","","",""]
["19","190",null,null,"GRAIZBORD - START-UP          ","1025GR190031","10000","12400","11200","19650201",{"$f":"VLOOKUP(TRIM(J4051),'Transactional Departments'!A:B,2,FALSE)","v":"SOCI Graizbord"},"19650201","","","","",""]
["19","190",null,null,"SOCIOLOGY FACULTY LEAVE       ","1046GT190029","10000","14600","11200","19650001",{"$f":"VLOOKUP(TRIM(J4056),'Transactional Departments'!A:B,2,FALSE)","v":"SOCI Sociology General"},"19650001","","","","",""]
["19","191",null,null,"COMMUNICATION STUDIES         ","1011GJ191000","10000","11140","11200","19620CNT",{"$f":"VLOOKUP(TRIM(J4058),'Transactional Departments'!A:B,2,FALSE)","v":"COMM Comm Studies C-T"},"19620CNT","","","","",""]
["19","191",null,null,"ROYALTY COMM STUDY XANEDU     ","1011RX191024","20400","11100","64RYT","19620004",{"$f":"VLOOKUP(TRIM(J4063),'Transactional Departments'!A:B,2,FALSE)","v":"COMM Comm Studies Custom Pub"},"19620004","","","","",""]
["19","191",null,null,"SPEECH INDIRECT COST RECOVERY ","1026AR191001","15000","12200","11500","19620CNT",{"$f":"VLOOKUP(TRIM(J4068),'Transactional Departments'!A:B,2,FALSE)","v":"COMM Comm Studies C-T"},"19620CNT","","","","",""]
["19","193",null,null,"STATISTICAL SERVICES          ","1011DH193001","14100","11100","41500","19560SCC",{"$f":"VLOOKUP(TRIM(J4074),'Transactional Departments'!A:B,2,FALSE)","v":"STAT Stat. Consulting Center"},"19560SCC","","","","",""]
["19","193",null,null,"UGAF     STATISTICS DISCRDORSE","1021RR193142","20200","12100","67353","19560001",{"$f":"VLOOKUP(TRIM(J4079),'Transactional Departments'!A:B,2,FALSE)","v":"STAT General"},"19560001","","","","",""]
["19","193",null,null,"NSF      RF W/ RR193152    MA ","1021RR193156","20400","12100","61023","19560001",{"$f":"VLOOKUP(TRIM(J4082),'Transactional Departments'!A:B,2,FALSE)","v":"STAT General"},"19560001","","","","",""]
["19","193",null,null,"         UGARF SUPPORT   STUFK","1021RX193900","20300","12100","64ICR","19560001",{"$f":"VLOOKUP(TRIM(J4086),'Transactional Departments'!A:B,2,FALSE)","v":"STAT General"},"19560001","","","","",""]
["19","193",null,null,"WENXUAN ZHONG STARTUP         ","1025GR193007","10000","12400","11200","19560WZH",{"$f":"VLOOKUP(TRIM(J4091),'Transactional Departments'!A:B,2,FALSE)","v":"STAT Wenxuan Zhong"},"19560WZH","","","","",""]
["19","193",null,null,"STATISTICS                    ","1026GR193000","10000","12200","11200","19560001",{"$f":"VLOOKUP(TRIM(J4096),'Transactional Departments'!A:B,2,FALSE)","v":"STAT General"},"19560001","","","","",""]
["19","194",null,null,"CELLULAR BIOLOGY LAB FEES     ","1011DH194004","14100","11100","41500","19230LAB",{"$f":"VLOOKUP(TRIM(J4098),'Transactional Departments'!A:B,2,FALSE)","v":"CBIO Lab Fees"},"19230LAB","","","","",""]
["19","194",null,null,"         RF CHILD GLUCO  LAUDE","1021RR194299","20400","12100","64444","19230DPT",{"$f":"VLOOKUP(TRIM(J4106),'Transactional Departments'!A:B,2,FALSE)","v":"CBIO Dept Accts"},"19230DPT","","","","",""]
["19","194",null,null,"NIH      RF MLT INT DROS SHEN ","1021RR194341","20400","12100","61018","19230DPT",{"$f":"VLOOKUP(TRIM(J4109),'Transactional Departments'!A:B,2,FALSE)","v":"CBIO Dept Accts"},"19230DPT","","","","",""]
["19","194",null,null,"NIH      RF AFRICAN TRYP MENSA","1021RR194353","20400","12100","61018","19230DPT",{"$f":"VLOOKUP(TRIM(J4114),'Transactional Departments'!A:B,2,FALSE)","v":"CBIO Dept Accts"},"19230DPT","","","","",""]
["19","194",null,null,"UGAF     VISION RSRC LAUDDORSE","1021RR194354","20200","12100","67356","19230DPT",{"$f":"VLOOKUP(TRIM(J4115),'Transactional Departments'!A:B,2,FALSE)","v":"CBIO Dept Accts"},"19230DPT","","","","",""]
["19","194",null,null,"ROYALTY HOLDING CELLULAR BIO  ","1021RX194980","20300","12100","64RYT","192300JG",{"$f":"VLOOKUP(TRIM(J4121),'Transactional Departments'!A:B,2,FALSE)","v":"CBIO Gaertig"},"192300JG","","","","",""]
["19","194",null,null,"UGAF     RITTER LECTURE  STOKE","1066RA194021","20200","16700","67746","19230DPT",{"$f":"VLOOKUP(TRIM(J4126),'Transactional Departments'!A:B,2,FALSE)","v":"CBIO Dept Accts"},"19230DPT","","","","",""]
["19","375",null,null,"         SANDY BEAVER ENDOW   ","4111RH375755","20400","11100","65755","19330375",{"$f":"VLOOKUP(TRIM(J4129),'Transactional Departments'!A:B,2,FALSE)","v":{"$error":"#N/A"}},"19330375","","","","","HHBVRENDW "]
["19","539",null,null,"FRANKLIN SUPPL INSTRUCTION BUD","1011GH539000","10000","11100","11200","19111FIB",{"$f":"VLOOKUP(TRIM(J4133),'Transactional Departments'!A:B,2,FALSE)","v":"FC Supp Instructional Budget"},"19111FIB","","","","",""]
["19","540",null,null,"COMPUTER SCIENCE              ","1019GJ540000","10000","14400","11200","19520100",{"$f":"VLOOKUP(TRIM(J4139),'Transactional Departments'!A:B,2,FALSE)","v":"COMP SCI General Ops"},"19520100","","","","",""]
["19","540",null,null,"NIH      RF LRG SCL BRAINLIU  ","1021RR540176","20400","12100","61018","19520100",{"$f":"VLOOKUP(TRIM(J4144),'Transactional Departments'!A:B,2,FALSE)","v":"COMP SCI General Ops"},"19520100","","","","",""]
["19","540",null,null,"         UGARF SUPPORT COMP SC","1021RX540900","20300","12100","64ICR","19520100",{"$f":"VLOOKUP(TRIM(J4149),'Transactional Departments'!A:B,2,FALSE)","v":"COMP SCI General Ops"},"19520100","","","","",""]
["19","540",null,null,"JAEWOO LEE STARTUP FUNDS      ","1025GR540027","10000","12400","11200","19520LEE",{"$f":"VLOOKUP(TRIM(J4153),'Transactional Departments'!A:B,2,FALSE)","v":"CSCI Faculty Jaewoo Lee"},"19520LEE","","","","",""]
["19","548",null,null,"         UGARF SUPPORT CCQC   ","1021RX548900","20300","12100","64ICR","19740HFS",{"$f":"VLOOKUP(TRIM(J4156),'Transactional Departments'!A:B,2,FALSE)","v":"CCQC Dr. Henry Schaefer"},"19740HFS","","","","",""]
["19","548",null,null,"CTR FOR COMP QUANTUM CHEMISTRY","1026GJ548000","10000","11140","11200","19740HFS",{"$f":"VLOOKUP(TRIM(J4161),'Transactional Departments'!A:B,2,FALSE)","v":"CCQC Dr. Henry Schaefer"},"19740HFS","","","","",""]
["19","567",null,null,"WOMENS STUDIES                ","1025GR567000","10000","12400","11200","19790001",{"$f":"VLOOKUP(TRIM(J4167),'Transactional Departments'!A:B,2,FALSE)","v":"WMST Women's Studies General"},"19790001","","","","",""]
["19","567",null,null,"WOMENS STUDIES                ","1026GR567000","10000","12200","11200","19790001",{"$f":"VLOOKUP(TRIM(J4168),'Transactional Departments'!A:B,2,FALSE)","v":"WMST Women's Studies General"},"19790001","","","","",""]
["19","742",null,null,"DANCE                         ","1011GJ742000","10000","11140","11200","19320001",{"$f":"VLOOKUP(TRIM(J4172),'Transactional Departments'!A:B,2,FALSE)","v":"DANC Dance General"},"19320001","","","","",""]
["19","743",null,null,"IDC FUNDS                     ","1025AR743001","15000","12400","11500","19460100",{"$f":"VLOOKUP(TRIM(J4179),'Transactional Departments'!A:B,2,FALSE)","v":"Linguistics"},"19460100","","","","",""]
["19","744",null,null,"INST AFR AMERICAN STUDIES     ","1025GR744000","10000","12400","11200","19710001",{"$f":"VLOOKUP(TRIM(J4184),'Transactional Departments'!A:B,2,FALSE)","v":"AFAM AfriAmerican Studies Gen"},"19710001","","","","",""]
["19","782",null,null,"         UGARF SUPPRT AICPOTTE","1021RX782900","20300","12100","64ICR","19730001",{"$f":"VLOOKUP(TRIM(J4186),'Transactional Departments'!A:B,2,FALSE)","v":"ARTI General"},"19730001","","","","",""]
["19","782",null,null,"AI KEY DEPOSITS               ","9084GN782002","60000","","","19730001",{"$f":"VLOOKUP(TRIM(J4191),'Transactional Departments'!A:B,2,FALSE)","v":"ARTI General"},"19730001","","","","",""]
["19","787",null,null,"INST LTN AMER CARIBEAN STUDIES","1011GH787000","10000","11100","11200","19770001",{"$f":"VLOOKUP(TRIM(J4196),'Transactional Departments'!A:B,2,FALSE)","v":"LACS LACSI General"},"19770001","","","","",""]
["19","787",null,null,"IIE/DOD  P/S W/ RH787015 MOSER","1011RH787016","20400","11100","64316","19770001",{"$f":"VLOOKUP(TRIM(J4202),'Transactional Departments'!A:B,2,FALSE)","v":"LACS LACSI General"},"19770001","","","","",""]
["19","787",null,null,"NSEP     P/S W/ 787-017  MOSER","1011RH787018","20400","11100","64316","19770001",{"$f":"VLOOKUP(TRIM(J4203),'Transactional Departments'!A:B,2,FALSE)","v":"LACS LACSI General"},"19770001","","","","",""]
["19","787",null,null,"NRC SUMMER TEACHER INSTITUTE  ","1031DW787004","14100","13100","41500","19770001",{"$f":"VLOOKUP(TRIM(J4210),'Transactional Departments'!A:B,2,FALSE)","v":"LACS LACSI General"},"19770001","","","","",""]
["19","788",null,null,"INST NATIVE AMER IDC          ","1026AR788001","15000","12200","11500","19755NAM",{"$f":"VLOOKUP(TRIM(J4214),'Transactional Departments'!A:B,2,FALSE)","v":"NAMS Inst Native Amer Studies"},"19755NAM","","","","",""]
["20","064",null,null,"UGARF DRP RSCH SUP KARAHANN197","1021RX064348","20300","12100","64U04","201971EK",{"$f":"VLOOKUP(TRIM(J4219),'Transactional Departments'!A:B,2,FALSE)","v":"TCB-MIS-Elena Karahanna"},"201971EK","","","","ATH",""]
["20","196",null,null,"TERRY IN SO AMERICA           ","1011DV196073","14100","11100","41507","20963400",{"$f":"VLOOKUP(TRIM(J4224),'Transactional Departments'!A:B,2,FALSE)","v":"TCB-International Bus Prog"},"20963400","18000","NSABD1079MM18  ","100","ATH",""]
["20","196",null,null,"BUSINESS IN PANAMA            ","1011DV196075","14100","11100","41507","20961000",{"$f":"VLOOKUP(TRIM(J4226),'Transactional Departments'!A:B,2,FALSE)","v":"TCB-Office Of The Dean"},"20961000","","","","",""]
["20","196",null,null,"TERRY COLLEGE - DEANS OFFICE  ","1011GH196000","10500","11100","11800","20961000",{"$f":"VLOOKUP(TRIM(J4229),'Transactional Departments'!A:B,2,FALSE)","v":"TCB-Office Of The Dean"},"20961000","","","","ATH",""]
["20","196",null,null,"TCB SR DIR FOR FINANCE        ","1011GJ196115","10000","11140","11200","20964100",{"$f":"VLOOKUP(TRIM(J4237),'Transactional Departments'!A:B,2,FALSE)","v":"TCB-Chief Financial Officer"},"20964100","","","","ATH",""]
["20","196",null,null,"TCB ASSOC DEAN UNDERGRAD PROG ","1011GJ196116","10000","11140","11200","20962300",{"$f":"VLOOKUP(TRIM(J4238),'Transactional Departments'!A:B,2,FALSE)","v":"TCB-Ass Dean Off-Under Grad Pr"},"20962300","","","","ATH",""]
["20","196",null,null,"TERRY IN SO AMERICA           ","1011GV196073","10000","11100","11200","20963400",{"$f":"VLOOKUP(TRIM(J4243),'Transactional Departments'!A:B,2,FALSE)","v":"TCB-International Bus Prog"},"20963400","18000","NSABD1079MM18  ","100","ATH",""]
["20","196",null,null,"         LE RAST PROF-BOSTROM ","1011RH196016","20200","11100","67086","20961000",{"$f":"VLOOKUP(TRIM(J4249),'Transactional Departments'!A:B,2,FALSE)","v":"TCB-Office Of The Dean"},"20961000","","","","",""]
["20","196",null,null,"UGAF     WILSON CHAIR    COLQU","1011RH196135","20200","11100","67091","20961000",{"$f":"VLOOKUP(TRIM(J4254),'Transactional Departments'!A:B,2,FALSE)","v":"TCB-Office Of The Dean"},"20961000","","","","",""]
["20","196",null,null,"UGAF     DIVERSITY       SUMIC","1011RH196139","20200","11100","67094","20961000",{"$f":"VLOOKUP(TRIM(J4257),'Transactional Departments'!A:B,2,FALSE)","v":"TCB-Office Of The Dean"},"20961000","","","","",""]
["20","196",null,null,"UGAF     TERRY CHAIR  #1 GOODH","1011RH196747","20200","11100","67098","20961000",{"$f":"VLOOKUP(TRIM(J4261),'Transactional Departments'!A:B,2,FALSE)","v":"TCB-Office Of The Dean"},"20961000","","","","",""]
["20","196",null,null,"UGAF     FUQUA DIST CHAI WATSO","1011RH196755","20200","11100","67104","20961000",{"$f":"VLOOKUP(TRIM(J4267),'Transactional Departments'!A:B,2,FALSE)","v":"TCB-Office Of The Dean"},"20961000","","","","",""]
["20","196",null,null,"TERRY OIT TECH FEE            ","1019TJ196333","16000","14400","11600","20964795",{"$f":"VLOOKUP(TRIM(J4272),'Transactional Departments'!A:B,2,FALSE)","v":"TCB-OIT-Operational"},"20964795","","","","ATH",""]
["20","196",null,null,"         TERRY-SANFORD AWGUSTA","1021RR196031","20200","12100","67358","20961000",{"$f":"VLOOKUP(TRIM(J4273),'Transactional Departments'!A:B,2,FALSE)","v":"TCB-Office Of The Dean"},"20961000","","","","",""]
["20","196",null,null,"TERRY COLLEGE - DEANS OFFICE  ","1025GR196000","10500","12400","11800","20961000",{"$f":"VLOOKUP(TRIM(J4281),'Transactional Departments'!A:B,2,FALSE)","v":"TCB-Office Of The Dean"},"20961000","","","","ATH",""]
["20","196",null,null,"NEFA     BIG READ FY17-18CA229","1031CE196001","10000","13120","11200","20961000",{"$f":"VLOOKUP(TRIM(J4284),'Transactional Departments'!A:B,2,FALSE)","v":"TCB-Office Of The Dean"},"20961000","","","","",""]
["20","196",null,null,"UGAF     DIVERSITY RELAT GROOM","1031RE196137","20200","13100","67570","20961000",{"$f":"VLOOKUP(TRIM(J4289),'Transactional Departments'!A:B,2,FALSE)","v":"TCB-Office Of The Dean"},"20961000","","","","",""]
["20","196",null,null,"TERRY STUDENT EVENTS          ","1046DT196015","14100","14600","41500","20964500",{"$f":"VLOOKUP(TRIM(J4290),'Transactional Departments'!A:B,2,FALSE)","v":"TCB-Event Management"},"20964500","","","","ATH",""]
["20","196",null,null,"UGAF     UGRAD CORP REL  SUMIC","1053RS196062","20200","15300","67710","20961000",{"$f":"VLOOKUP(TRIM(J4296),'Transactional Departments'!A:B,2,FALSE)","v":"TCB-Office Of The Dean"},"20961000","","","","",""]
["20","196",null,null,"TERRY SPECIAL EVENTS          ","1065GA196018","10500","16600","11800","20964500",{"$f":"VLOOKUP(TRIM(J4300),'Transactional Departments'!A:B,2,FALSE)","v":"TCB-Event Management"},"20964500","","","","ATH",""]
["20","196",null,null,"UGAF     TERRY BUS LEARN PHIII","8062RY196804","50100","17620","67826","20961000",{"$f":"VLOOKUP(TRIM(J4307),'Transactional Departments'!A:B,2,FALSE)","v":"TCB-Office Of The Dean"},"20961000","","","","",""]
["20","197",null,null,"MANAGEMENT INFORMATION SYSTEMS","1011GH197000","10500","11100","11800","20197160",{"$f":"VLOOKUP(TRIM(J4308),'Transactional Departments'!A:B,2,FALSE)","v":"TCB-MIS-Dept Admin"},"20197160","","","","ATH",""]
["20","197",null,null,"UGAF     TERRY ENTREPRENEKNAPP","1011RH197033","20200","11100","67109","20197160",{"$f":"VLOOKUP(TRIM(J4314),'Transactional Departments'!A:B,2,FALSE)","v":"TCB-MIS-Dept Admin"},"20197160","","","","",""]
["20","197",null,null,"UGARF SUPPORT MANAGEMENT INFOR","1021RX197900","20300","12100","64ICR","20197160",{"$f":"VLOOKUP(TRIM(J4319),'Transactional Departments'!A:B,2,FALSE)","v":"TCB-MIS-Dept Admin"},"20197160","","","","ATH",""]
["20","198",null,null,"MACC DIFFERENTIAL GRAD TUITION","1011GH198001","10500","11100","11800","20198300",{"$f":"VLOOKUP(TRIM(J4324),'Transactional Departments'!A:B,2,FALSE)","v":"TCB-ACC-Macc"},"20198300","","","","ATH",""]
["20","198",null,null,"         TULL SCH GN FND MADEO","1011RH198016","20200","11100","","20198160",{"$f":"VLOOKUP(TRIM(J4328),'Transactional Departments'!A:B,2,FALSE)","v":"TCB-ACC-Dept Admin"},"20198160","","","","",""]
["20","198",null,null,"PWC      INQUIRIES 16    CHRIS","1011RH198027","20400","11100","64094","20198160",{"$f":"VLOOKUP(TRIM(J4331),'Transactional Departments'!A:B,2,FALSE)","v":"TCB-ACC-Dept Admin"},"20198160","","","","",""]
["20","198",null,null,"UGAF     DELOITTE TEACH FSUMIC","1021RR198023","20200","12100","67364","20198160",{"$f":"VLOOKUP(TRIM(J4338),'Transactional Departments'!A:B,2,FALSE)","v":"TCB-ACC-Dept Admin"},"20198160","","","","",""]
["20","199",null,null,"FINANCE                       ","1011GH199000","10500","11100","11800","20199160",{"$f":"VLOOKUP(TRIM(J4342),'Transactional Departments'!A:B,2,FALSE)","v":"TCB-FIN-Dept Admin"},"20199160","","","","ATH",""]
["20","199",null,null,"FINANCE                       ","1011GJ199000","10500","11140","11800","20199160",{"$f":"VLOOKUP(TRIM(J4343),'Transactional Departments'!A:B,2,FALSE)","v":"TCB-FIN-Dept Admin"},"20199160","","","","ATH",""]
["20","199",null,null,"UGAF     BF ENRICH       SUMIC","1011RH199023","20200","11100","67117","20199160",{"$f":"VLOOKUP(TRIM(J4347),'Transactional Departments'!A:B,2,FALSE)","v":"TCB-FIN-Dept Admin"},"20199160","","","","",""]
["20","199",null,null,"         RESIDUAL #199RR POULS","1021RX199950","20400","12100","64RBP","20199160",{"$f":"VLOOKUP(TRIM(J4354),'Transactional Departments'!A:B,2,FALSE)","v":"TCB-FIN-Dept Admin"},"20199160","","","","ATH",""]
["20","200",null,null,"ECONOMICS                     ","1011GH200000","10500","11100","11800","20200160",{"$f":"VLOOKUP(TRIM(J4357),'Transactional Departments'!A:B,2,FALSE)","v":"TCB-Economics Dept Admin"},"20200160","","","","ATH",""]
["20","200",null,null,"         EC ENRICH FD    LASTR","1011RH200030","20200","11100","67121","20200160",{"$f":"VLOOKUP(TRIM(J4361),'Transactional Departments'!A:B,2,FALSE)","v":"TCB-Economics Dept Admin"},"20200160","","","","",""]
["20","200",null,null,"UNC/NSF  RF BROADBAND    TURNE","1021RR200071","20400","12100","62516","20200160",{"$f":"VLOOKUP(TRIM(J4366),'Transactional Departments'!A:B,2,FALSE)","v":"TCB-Economics Dept Admin"},"20200160","","","","",""]
["20","200",null,null,"RESIDUAL BALANCE #200         ","1021RX200950","20400","12100","64RBP","20200160",{"$f":"VLOOKUP(TRIM(J4371),'Transactional Departments'!A:B,2,FALSE)","v":"TCB-Economics Dept Admin"},"20200160","","","","ATH",""]
["20","201",null,null,"MANAGEMENT COUNSELING ADVISING","1011GK201069","10500","11100","11800","20201160",{"$f":"VLOOKUP(TRIM(J4377),'Transactional Departments'!A:B,2,FALSE)","v":"TCB-MGT-Management Admin"},"20201160","","","","ATH",""]
["20","201",null,null,"UGAF     MGMT EXCELLENCE AYERS","1011RH201034","20200","11100","67123","20201160",{"$f":"VLOOKUP(TRIM(J4378),'Transactional Departments'!A:B,2,FALSE)","v":"TCB-MGT-Management Admin"},"20201160","","","","",""]
["20","201",null,null,"         RESIDUAL #201PS DAVIS","1031RX201950","20400","13100","64RBP","20201160",{"$f":"VLOOKUP(TRIM(J4385),'Transactional Departments'!A:B,2,FALSE)","v":"TCB-MGT-Management Admin"},"20201160","","","","ATH",""]
["20","202",null,null,"         CBA CNTR MKT STUDIES ","1011RH202013","20200","11100","67124","20202160",{"$f":"VLOOKUP(TRIM(J4389),'Transactional Departments'!A:B,2,FALSE)","v":"TCB-MKT-Dept Admin"},"20202160","","","","",""]
["20","202",null,null,"MARKETING                     ","1025GR202000","10500","12400","11800","20202160",{"$f":"VLOOKUP(TRIM(J4395),'Transactional Departments'!A:B,2,FALSE)","v":"TCB-MKT-Dept Admin"},"20202160","","","","ATH",""]
["20","202",null,null,"MARKETING DEPT OP BUS OFFICE  ","1025GR202217","10000","12400","11200","20202160",{"$f":"VLOOKUP(TRIM(J4396),'Transactional Departments'!A:B,2,FALSE)","v":"TCB-MKT-Dept Admin"},"20202160","","","","ATH",""]
["20","203",null,null,"FULLTIME MBA SALES            ","1011DH203001","14100","11100","41500","20203152",{"$f":"VLOOKUP(TRIM(J4401),'Transactional Departments'!A:B,2,FALSE)","v":"TCB-FTMBA-Admissions"},"20203152","","","","ATH",""]
["20","203",null,null,"FULL-TIME MBA INTERNATIONAL   ","1011DV203007","14100","11100","41507","20203153",{"$f":"VLOOKUP(TRIM(J4404),'Transactional Departments'!A:B,2,FALSE)","v":"TCB-FTMBA-Study Abroad"},"20203153","","","","ATH",""]
["20","203",null,null,"PROFESSIONAL MBA BUCKHEAD     ","1011GH203066","10000","11100","11200","20203460",{"$f":"VLOOKUP(TRIM(J4412),'Transactional Departments'!A:B,2,FALSE)","v":"TCB-EMBA-Dept. Admin."},"20203460","","","","",""]
["20","203",null,null,"TERRY EXECUTIVE MBA           ","1011GH203110","10500","11100","11800","20203460",{"$f":"VLOOKUP(TRIM(J4413),'Transactional Departments'!A:B,2,FALSE)","v":"TCB-EMBA-Dept. Admin."},"20203460","","","","",""]
["20","203",null,null,"TERRY EXECUTIVE MBA           ","1011GK203110","10500","11100","11800","20203456",{"$f":"VLOOKUP(TRIM(J4418),'Transactional Departments'!A:B,2,FALSE)","v":"TCB-EMBA-Stud Services"},"20203456","","","","BUC",""]
["20","203",null,null,"FULLTIME MBA GRAD             ","1055GS203032","10500","15500","11800","20203157",{"$f":"VLOOKUP(TRIM(J4424),'Transactional Departments'!A:B,2,FALSE)","v":"TCB-FTMBA-Stud Experience"},"20203157","","","","ATH",""]
["20","203",null,null,"FULLTIME MBA MARKETING        ","1055GS203057","10000","15100","11200","20203150",{"$f":"VLOOKUP(TRIM(J4428),'Transactional Departments'!A:B,2,FALSE)","v":"TCB-FTMBA-Marketing"},"20203150","","","","ATH",""]
["20","203",null,null,"EMBA ALUMNI RELATIONS         ","1055GS203105","10000","15500","11200","20203455",{"$f":"VLOOKUP(TRIM(J4431),'Transactional Departments'!A:B,2,FALSE)","v":"TCB-EMBA-Alum Relations"},"20203455","","","","BUC",""]
["20","203",null,null,"PROFESSIONAL MBA-GWINNETT SEAT","1611GH203012","10000","11100","11200","20203460",{"$f":"VLOOKUP(TRIM(J4436),'Transactional Departments'!A:B,2,FALSE)","v":"TCB-EMBA-Dept. Admin."},"20203460","","","","GWI",""]
["20","203",null,null,"PMBA-GWINNETT ALUMNI RELATIONS","1655GS203111","10000","15500","11200","20203355",{"$f":"VLOOKUP(TRIM(J4442),'Transactional Departments'!A:B,2,FALSE)","v":"TCB-PMBA-Alum Relations (Gwi)"},"20203355","","","","GWI",""]
["20","204",null,null,"INS/LS/RE COUNSELING ADVISING ","1011GK204069","10500","11100","11800","20204160",{"$f":"VLOOKUP(TRIM(J4447),'Transactional Departments'!A:B,2,FALSE)","v":"TCB-Ins. Legal Std Real Estate"},"20204160","","","","ATH",""]
["20","204",null,null,"         LEVERETT USF    HOYT ","1011RH204031","20200","11100","","20204160",{"$f":"VLOOKUP(TRIM(J4448),'Transactional Departments'!A:B,2,FALSE)","v":"TCB-Ins. Legal Std Real Estate"},"20204160","","","","",""]
["20","204",null,null,"UGAF     DORSEY DIST CH RAYERS","1011RH204072","20200","11100","","20204160",{"$f":"VLOOKUP(TRIM(J4456),'Transactional Departments'!A:B,2,FALSE)","v":"TCB-Ins. Legal Std Real Estate"},"20204160","","","","",""]
["20","204",null,null,"         D MOORE CHAIR INS    ","1021RR204748","20200","12100","","20204160",{"$f":"VLOOKUP(TRIM(J4459),'Transactional Departments'!A:B,2,FALSE)","v":"TCB-Ins. Legal Std Real Estate"},"20204160","","","","",""]
["20","204",null,null,"         UGARF SUPPORT        ","1021RX204900","20300","12100","64ICR","20204160",{"$f":"VLOOKUP(TRIM(J4461),'Transactional Departments'!A:B,2,FALSE)","v":"TCB-Ins. Legal Std Real Estate"},"20204160","","","","",""]
["20","204",null,null,"RISK & INSURANCE CAREERS DAY  ","1031DW204005","14100","13100","41500","20204160",{"$f":"VLOOKUP(TRIM(J4466),'Transactional Departments'!A:B,2,FALSE)","v":"TCB-Ins. Legal Std Real Estate"},"20204160","","","","ATH",""]
["20","205",null,null,"GARTA    RF TRAN COM INT HUMPH","1021RR205076","20400","12100","62000","20205060",{"$f":"VLOOKUP(TRIM(J4471),'Transactional Departments'!A:B,2,FALSE)","v":"TCB-Selig Admin"},"20205060","","","","",""]
["20","205",null,null,"TCB - CORP ED SELIG CTR       ","1031DE205002","14100","13100","41500","20205060",{"$f":"VLOOKUP(TRIM(J4475),'Transactional Departments'!A:B,2,FALSE)","v":"TCB-Selig Admin"},"20205060","","","","",""]
["20","225",null,null,"ENTREPRENEURSHIP              ","1011GH225033","10000","11100","11200","20225100",{"$f":"VLOOKUP(TRIM(J4482),'Transactional Departments'!A:B,2,FALSE)","v":"TCB-Entrepren."},"20225100","","","","ATH",""]
["20","225",null,null,"ENTREPRENEURSHIP              ","1011GJ225033","10000","11140","11200","20225100",{"$f":"VLOOKUP(TRIM(J4483),'Transactional Departments'!A:B,2,FALSE)","v":"TCB-Entrepren."},"20225100","","","","ATH",""]
["20","375",null,null,"         J M TULL CHR ACCT TRS","4111RH375783","20400","11100","65783","20198160",{"$f":"VLOOKUP(TRIM(J4489),'Transactional Departments'!A:B,2,FALSE)","v":"TCB-ACC-Dept Admin"},"20198160","","","","ATH",""]
["20","375",null,null,"         FAYETTE BD OF REAL SC","4111RH375817","20400","11100","65817","20204160",{"$f":"VLOOKUP(TRIM(J4494),'Transactional Departments'!A:B,2,FALSE)","v":"TCB-Ins. Legal Std Real Estate"},"20204160","","","","ATH",""]
["20","375",null,null,"         SEMEMOW ROBERT W SCH ","4111RH375861","20400","11100","65861","20204160",{"$f":"VLOOKUP(TRIM(J4499),'Transactional Departments'!A:B,2,FALSE)","v":"TCB-Ins. Legal Std Real Estate"},"20204160","","","","ATH",""]
["20","375",null,null,"         GEORGE ERWIN KEEN SCH","4111RH375870","20400","11100","65870","20198160",{"$f":"VLOOKUP(TRIM(J4501),'Transactional Departments'!A:B,2,FALSE)","v":"TCB-ACC-Dept Admin"},"20198160","","","","ATH",""]
["20","797",null,null,"MUSIC BUSINESS PROGRAM        ","1011GH797001","10500","11100","11800","20797100",{"$f":"VLOOKUP(TRIM(J4506),'Transactional Departments'!A:B,2,FALSE)","v":"TCB-Music Business Dept Admin"},"20797100","","","","ATH",""]
["20","798",null,null,"UGAF     ILA MASON EXC SPAYERS","1031RE798024","20200","13100","67636","20798100",{"$f":"VLOOKUP(TRIM(J4513),'Transactional Departments'!A:B,2,FALSE)","v":"TCB-ILA Dept Admin"},"20798100","","","","",""]
["21","216",null,null,"DEAN'S OFF - INDIRECT COST REC","1011AH216001","15000","11100","11500","21100001",{"$f":"VLOOKUP(TRIM(J4517),'Transactional Departments'!A:B,2,FALSE)","v":"Dean's Office"},"21100001","","","","",""]
["21","216",null,null,"DO RSCH - INDIRECT COST RET   ","1011AH216005","15000","11100","11500","21150000",{"$f":"VLOOKUP(TRIM(J4518),'Transactional Departments'!A:B,2,FALSE)","v":"DO Research"},"21150000","","","","",""]
["21","216",null,null,"EDUCATION - DEANS OFFICE      ","1011GH216000","10500","11100","11800","21100001",{"$f":"VLOOKUP(TRIM(J4524),'Transactional Departments'!A:B,2,FALSE)","v":"Dean's Office"},"21100001","","","","",""]
["21","216",null,null,"EDUCATION - DEANS OFFICE      ","1011GJ216000","10500","11140","11800","21100001",{"$f":"VLOOKUP(TRIM(J4529),'Transactional Departments'!A:B,2,FALSE)","v":"Dean's Office"},"21100001","","","","",""]
["21","216",null,null,"         ODELL FUNDS     HORNE","1011RH216281","20400","11100","65000","21001100",{"$f":"VLOOKUP(TRIM(J4532),'Transactional Departments'!A:B,2,FALSE)","v":"COE D.O. Grant Transition"},"21001100","","","","",""]
["21","216",null,null,"USDE     TEACH QUALITY   THOMP","1011RH216343","20400","11100","61033","21001100",{"$f":"VLOOKUP(TRIM(J4536),'Transactional Departments'!A:B,2,FALSE)","v":"COE D.O. Grant Transition"},"21001100","","","","",""]
["21","216",null,null,"GIT/NSF  RF PS 216-287   KUTAL","1021RR216302","20400","12100","62021","21001100",{"$f":"VLOOKUP(TRIM(J4541),'Transactional Departments'!A:B,2,FALSE)","v":"COE D.O. Grant Transition"},"21001100","","","","",""]
["21","216",null,null,"UGAF     COE END EXCLNC  KENNE","1021RR216336","20200","12100","67419","21001100",{"$f":"VLOOKUP(TRIM(J4546),'Transactional Departments'!A:B,2,FALSE)","v":"COE D.O. Grant Transition"},"21001100","","","","",""]
["21","216",null,null,"IDC CARRYFORWARD              ","1025AR216925","15000","12400","11500","21100001",{"$f":"VLOOKUP(TRIM(J4552),'Transactional Departments'!A:B,2,FALSE)","v":"Dean's Office"},"21100001","","","","",""]
["21","216",null,null,"EDUCATION TRAVEL              ","1025GR216055","10500","12400","11800","21100203",{"$f":"VLOOKUP(TRIM(J4556),'Transactional Departments'!A:B,2,FALSE)","v":"Provost Domestic Travel"},"21100203","","","","",""]
["21","216",null,null,"DO RSCH - INDIRECT COST RET   ","1031AE216005","15000","13100","11500","21150000",{"$f":"VLOOKUP(TRIM(J4559),'Transactional Departments'!A:B,2,FALSE)","v":"DO Research"},"21150000","","","","",""]
["21","216",null,null,"CONTINUING ED CARRY FORWARD   ","1031EE216925","14000","13100","40000","21100001",{"$f":"VLOOKUP(TRIM(J4564),'Transactional Departments'!A:B,2,FALSE)","v":"Dean's Office"},"21100001","","","","",""]
["21","216",null,null,"CLARKE   STRIVING READER DRESD","1031RE216339","20400","13100","63041","21001100",{"$f":"VLOOKUP(TRIM(J4570),'Transactional Departments'!A:B,2,FALSE)","v":"COE D.O. Grant Transition"},"21001100","","","","",""]
["21","216",null,null,"CCSD     STRIVING READER DRESD","1031RE216340","20400","13100","63041","21001100",{"$f":"VLOOKUP(TRIM(J4571),'Transactional Departments'!A:B,2,FALSE)","v":"COE D.O. Grant Transition"},"21001100","","","","",""]
["21","216",null,null,"CCSD     DEVEL SUMMER 16 DRESD","1031RE216356","20400","13100","63041","21001100",{"$f":"VLOOKUP(TRIM(J4576),'Transactional Departments'!A:B,2,FALSE)","v":"COE D.O. Grant Transition"},"21001100","","","","",""]
["21","216",null,null,"EDUCATION - DEANS OFFICE      ","1041GT216000","10500","14100","11800","21180000",{"$f":"VLOOKUP(TRIM(J4579),'Transactional Departments'!A:B,2,FALSE)","v":"Curriculum Materials Library"},"21180000","","","","",""]
["21","216",null,null,"EDUCATION - DEANS OFFICE      ","1099GN216000","10500","","11800","21001100",{"$f":"VLOOKUP(TRIM(J4587),'Transactional Departments'!A:B,2,FALSE)","v":"COE D.O. Grant Transition"},"21001100","","","","",""]
["21","216",null,null,"COLLEGE OF EDUC - SALES TAX   ","9082GN216014","60000","","","21192S01",{"$f":"VLOOKUP(TRIM(J4589),'Transactional Departments'!A:B,2,FALSE)","v":"D.O. Retail Sales (Oit)"},"21192S01","","","","",""]
["21","218",null,null,"COE CENTERS                   ","1011GJ218000","10500","11140","11800","21210001",{"$f":"VLOOKUP(TRIM(J4594),'Transactional Departments'!A:B,2,FALSE)","v":"Ctr for Autism and Behaviour"},"21210001","","","","",""]
["21","218",null,null,"UGAF     GOIZUETA CHAIR       ","1021RR218036","20200","12100","67421","21200001",{"$f":"VLOOKUP(TRIM(J4599),'Transactional Departments'!A:B,2,FALSE)","v":"COE Centers Grant Transition"},"21200001","","","","",""]
["21","218",null,null,"UGAF     ADERHOLD PROFESSKENNE","1021RR218136","20200","12100","67422","21200001",{"$f":"VLOOKUP(TRIM(J4603),'Transactional Departments'!A:B,2,FALSE)","v":"COE Centers Grant Transition"},"21200001","","","","",""]
["21","218",null,null,"CD       RF AFTER SCHOOL DEMEE","1021RR218155","20400","12100","63024","21200001",{"$f":"VLOOKUP(TRIM(J4606),'Transactional Departments'!A:B,2,FALSE)","v":"COE Centers Grant Transition"},"21200001","","","","",""]
["21","218",null,null,"CLASE INDIRECT COST REC       ","1025AR218004","15000","12400","11500","21200001",{"$f":"VLOOKUP(TRIM(J4611),'Transactional Departments'!A:B,2,FALSE)","v":"COE Centers Grant Transition"},"21200001","","","","",""]
["21","218",null,null,"GA CENTER FOR ASSESSMENT      ","1026GR218003","10500","12200","11800","21230001",{"$f":"VLOOKUP(TRIM(J4618),'Transactional Departments'!A:B,2,FALSE)","v":"GA Ctr for Assessment"},"21230001","","","","",""]
["21","218",null,null,"IREHD INDIRECT COST REC       ","1031AE218005","15000","13100","11500","21200001",{"$f":"VLOOKUP(TRIM(J4622),'Transactional Departments'!A:B,2,FALSE)","v":"COE Centers Grant Transition"},"21200001","","","","",""]
["21","218",null,null,"TORRANCE CENTER               ","1031GE218006","10500","13100","11800","21200001",{"$f":"VLOOKUP(TRIM(J4627),'Transactional Departments'!A:B,2,FALSE)","v":"COE Centers Grant Transition"},"21200001","","","","",""]
["21","218",null,null,"UGAF     TORRANCE CENTER KENNE","1031RE218053","20200","13100","67583","21200001",{"$f":"VLOOKUP(TRIM(J4629),'Transactional Departments'!A:B,2,FALSE)","v":"COE Centers Grant Transition"},"21200001","","","","",""]
["21","218",null,null,"         GHSCT 13-14     CRAME","1031RE218134","20400","13100","64000","21200001",{"$f":"VLOOKUP(TRIM(J4634),'Transactional Departments'!A:B,2,FALSE)","v":"COE Centers Grant Transition"},"21200001","","","","",""]
["21","218",null,null,"GA DOE   GKIDS FY15______BARKE","1031RE218144","20400","13100","62012","21200001",{"$f":"VLOOKUP(TRIM(J4636),'Transactional Departments'!A:B,2,FALSE)","v":"COE Centers Grant Transition"},"21200001","","","","",""]
["21","218",null,null,"DRC      MILESTONE 15-16 BARKE","1031RE218157","20400","13100","64020","21200001",{"$f":"VLOOKUP(TRIM(J4641),'Transactional Departments'!A:B,2,FALSE)","v":"COE Centers Grant Transition"},"21200001","","","","",""]
["21","218",null,null,"         2014 NET EMPOWR DEMEE","1031RE218302","20400","13100","64000","21200001",{"$f":"VLOOKUP(TRIM(J4646),'Transactional Departments'!A:B,2,FALSE)","v":"COE Centers Grant Transition"},"21200001","","","","",""]
["21","218",null,null,"GCSS     RETESTS 2014    BARKE","1031RE218308","20400","13100","63000","21200001",{"$f":"VLOOKUP(TRIM(J4651),'Transactional Departments'!A:B,2,FALSE)","v":"COE Centers Grant Transition"},"21200001","","","","",""]
["21","229",null,null,"LANG & LIT - IND COST REC     ","1011AH229001","15000","11100","11500","21700100",{"$f":"VLOOKUP(TRIM(J4657),'Transactional Departments'!A:B,2,FALSE)","v":"LLE Dept Allocation"},"21700100","","","","",""]
["21","229",null,null,"E-RATE M ED READING ED        ","1011GH229047","10500","11100","11800","21700200",{"$f":"VLOOKUP(TRIM(J4660),'Transactional Departments'!A:B,2,FALSE)","v":"LLE eRate Reading Endorsement"},"21700200","","","","",""]
["21","229",null,null,"LANGUAGE & LITERACY ED        ","1011GK229000","10500","11100","11800","21700100",{"$f":"VLOOKUP(TRIM(J4664),'Transactional Departments'!A:B,2,FALSE)","v":"LLE Dept Allocation"},"21700100","","","","",""]
["21","229",null,null,"LLED STUDENT TECHNOLOGY FEE   ","1019TJ229002","16000","14400","11600","21700100",{"$f":"VLOOKUP(TRIM(J4669),'Transactional Departments'!A:B,2,FALSE)","v":"LLE Dept Allocation"},"21700100","","","","",""]
["21","229",null,null,"UGARF SUPPORT LLE             ","1021RX229900","20300","12100","64ICR","21700100",{"$f":"VLOOKUP(TRIM(J4674),'Transactional Departments'!A:B,2,FALSE)","v":"LLE Dept Allocation"},"21700100","","","","",""]
["21","229",null,null,"LANGUAGE & LITERACY ED        ","1025GR229000","10500","12400","11800","21700100",{"$f":"VLOOKUP(TRIM(J4676),'Transactional Departments'!A:B,2,FALSE)","v":"LLE Dept Allocation"},"21700100","","","","",""]
["21","234",null,null,"EXRS4630 EX PHYS              ","1011DH234019","14100","11100","41500","21652L66",{"$f":"VLOOKUP(TRIM(J4684),'Transactional Departments'!A:B,2,FALSE)","v":"EXRS 4630 Ex Phys"},"21652L66","","","","",""]
["21","234",null,null,"KINS 7360 MOTOR LEARN         ","1011DH234025","14100","11100","41500","21652L64",{"$f":"VLOOKUP(TRIM(J4687),'Transactional Departments'!A:B,2,FALSE)","v":"KINS 7360 Motor Learn"},"21652L64","","","","",""]
["21","234",null,null,"KINS 2470 PRAC AT CROWELL     ","1011DH234035","14100","11100","41500","21652L52",{"$f":"VLOOKUP(TRIM(J4692),'Transactional Departments'!A:B,2,FALSE)","v":"KINS 2470 Prac At"},"21652L52","","","","",""]
["21","234",null,null,"KINS 3910 AT CLINICAL EX BROWN","1011DH234036","14100","11100","41500","21652L55",{"$f":"VLOOKUP(TRIM(J4693),'Transactional Departments'!A:B,2,FALSE)","v":"KINS 3910 At Clinical Ex"},"21652L55","","","","",""]
["21","234",null,null,"KINS4110 AT THERAPEUTICS II   ","1011DH234047","14100","11100","41500","21652L57",{"$f":"VLOOKUP(TRIM(J4699),'Transactional Departments'!A:B,2,FALSE)","v":"KINS 4110 AT Therepeutics II"},"21652L57","","","","",""]
["21","234",null,null,"KINESIOLOGY                   ","1011GK234000","10500","11100","11800","21650100",{"$f":"VLOOKUP(TRIM(J4704),'Transactional Departments'!A:B,2,FALSE)","v":"KINS Dept Allocation"},"21650100","","","","",""]
["21","234",null,null,"UGAF     KINESIOLOGY     BUCKW","1021RR234205","20200","12100","67428","21650001",{"$f":"VLOOKUP(TRIM(J4708),'Transactional Departments'!A:B,2,FALSE)","v":"KINS Grant Transition"},"21650001","","","","",""]
["21","234",null,null,"SC/NIH   RF PHYSICAL ACV DISHM","1021RR234220","20400","12100","62524","21650001",{"$f":"VLOOKUP(TRIM(J4711),'Transactional Departments'!A:B,2,FALSE)","v":"KINS Grant Transition"},"21650001","","","","",""]
["21","234",null,null,"         RF E-PHIT STUDY EVANS","1021RR234245","20400","12100","64125","21650001",{"$f":"VLOOKUP(TRIM(J4717),'Transactional Departments'!A:B,2,FALSE)","v":"KINS Grant Transition"},"21650001","","","","",""]
["21","234",null,null,"UGAF     PENLAND SCHIP ACKENNE","1021RR234273","20200","12100","67434","21650001",{"$f":"VLOOKUP(TRIM(J4722),'Transactional Departments'!A:B,2,FALSE)","v":"KINS Grant Transition"},"21650001","","","","",""]
["21","234",null,null,"UMI/DOD  RF CARE CONSORT SCHMI","1021RR234587","20400","12100","62520","21650001",{"$f":"VLOOKUP(TRIM(J4727),'Transactional Departments'!A:B,2,FALSE)","v":"KINS Grant Transition"},"21650001","","","","",""]
["21","234",null,null,"RESIDUAL BALANCE #234         ","1021RX234950","20400","12100","64RBP","21650100",{"$f":"VLOOKUP(TRIM(J4731),'Transactional Departments'!A:B,2,FALSE)","v":"KINS Dept Allocation"},"21650100","","","","",""]
["21","234",null,null,"INTL CNTR FOR SPORT MANAGEMENT","1025DR234027","14100","12400","41500","21652S02",{"$f":"VLOOKUP(TRIM(J4734),'Transactional Departments'!A:B,2,FALSE)","v":"Intl Cntr For Sport Mgmt"},"21652S02","","","","",""]
["21","234",null,null,"KINS STARTUP FUNDING          ","1025GR234030","10000","12400","11200","21650201",{"$f":"VLOOKUP(TRIM(J4739),'Transactional Departments'!A:B,2,FALSE)","v":"KINS General Startup"},"21650201","","","","",""]
["21","234",null,null,"KINS ICR SERVICE              ","1031AE234004","15000","13100","11500","21650001",{"$f":"VLOOKUP(TRIM(J4741),'Transactional Departments'!A:B,2,FALSE)","v":"KINS Grant Transition"},"21650001","","","","",""]
["21","234",null,null,"KINESIOLOGY                   ","1031GE234000","10500","13100","11800","21650100",{"$f":"VLOOKUP(TRIM(J4746),'Transactional Departments'!A:B,2,FALSE)","v":"KINS Dept Allocation"},"21650100","","","","",""]
["21","234",null,null,"UGAF     SHORTT FELSHP   BUCKW","1054RS234264","20200","15400","67713","21650001",{"$f":"VLOOKUP(TRIM(J4750),'Transactional Departments'!A:B,2,FALSE)","v":"KINS Grant Transition"},"21650001","","","","",""]
["21","241",null,null,"LIFELONG ED, ADMIN & POLICY   ","1011GK241000","10500","11100","11800","21750100",{"$f":"VLOOKUP(TRIM(J4757),'Transactional Departments'!A:B,2,FALSE)","v":"LEAP Dept Allocation"},"21750100","","","","",""]
["21","241",null,null,"UGAF     EDUCATIONAL ADM DEMAR","1021RR241096","20200","12100","67438","21750001",{"$f":"VLOOKUP(TRIM(J4762),'Transactional Departments'!A:B,2,FALSE)","v":"LEAP Grant Transition"},"21750001","","","","",""]
["21","241",null,null,"LEAP - INDIRECT COST REC      ","1025AR241001","15000","12400","11500","21750001",{"$f":"VLOOKUP(TRIM(J4765),'Transactional Departments'!A:B,2,FALSE)","v":"LEAP Grant Transition"},"21750001","","","","",""]
["21","241",null,null,"LIFELONG ED, ADMIN & POLICY   ","1031GE241000","10500","13100","11800","21750100",{"$f":"VLOOKUP(TRIM(J4769),'Transactional Departments'!A:B,2,FALSE)","v":"LEAP Dept Allocation"},"21750100","","","","",""]
["21","241",null,null,"GWINNETT CAMP - ED ADMIN & POL","1611GH241011","10500","11100","11800","21750100",{"$f":"VLOOKUP(TRIM(J4774),'Transactional Departments'!A:B,2,FALSE)","v":"LEAP Dept Allocation"},"21750100","","","","GWI",""]
["21","241",null,null,"GWINNETT CAMP - ED ADMIN & POL","1631GE241011","10500","13100","11800","21750100",{"$f":"VLOOKUP(TRIM(J4779),'Transactional Departments'!A:B,2,FALSE)","v":"LEAP Dept Allocation"},"21750100","","","","GWI",""]
["21","242",null,null,"SPEECH AND HEARING CLINIC     ","1011DH242002","14100","11100","41500","21452S01",{"$f":"VLOOKUP(TRIM(J4781),'Transactional Departments'!A:B,2,FALSE)","v":"Speech & Hearing Clinic"},"21452S01","","","","",""]
["21","242",null,null,"COMM SCI & SPECIAL ED         ","1011GK242000","10500","11100","11800","21450100",{"$f":"VLOOKUP(TRIM(J4788),'Transactional Departments'!A:B,2,FALSE)","v":"CSSE Dept Allocation"},"21450100","","","","",""]
["21","242",null,null,"SSSP     RF MILIEU TCHNG LIEBE","1021RR242437","20400","12100","64372","21450001",{"$f":"VLOOKUP(TRIM(J4792),'Transactional Departments'!A:B,2,FALSE)","v":"CSSE Grant Transition"},"21450001","","","","",""]
["21","242",null,null,"COMM SCI & SPECIAL ED         ","1025GR242000","10500","12400","11800","21450100",{"$f":"VLOOKUP(TRIM(J4797),'Transactional Departments'!A:B,2,FALSE)","v":"CSSE Dept Allocation"},"21450100","","","","",""]
["21","242",null,null,"COM SCI & SPE ED - ICR        ","1031AE242001","15000","13100","11500","21450100",{"$f":"VLOOKUP(TRIM(J4798),'Transactional Departments'!A:B,2,FALSE)","v":"CSSE Dept Allocation"},"21450100","","","","",""]
["21","242",null,null,"UGAF     OBSV SYS UPGR   MARCO","1066RA242061","20200","16700","67749","21450001",{"$f":"VLOOKUP(TRIM(J4804),'Transactional Departments'!A:B,2,FALSE)","v":"CSSE Grant Transition"},"21450001","","","","",""]
["21","243",null,null,"DHHS     K-12 SCHOOLS         ","1011CH243081","10000","11110","11200","21500001",{"$f":"VLOOKUP(TRIM(J4809),'Transactional Departments'!A:B,2,FALSE)","v":"CHDS Grant Transition"},"21500001","","","","",""]
["21","243",null,null,"COUNSELING & HUMAN DEVEL      ","1011GH243000","10500","11100","11800","21500100",{"$f":"VLOOKUP(TRIM(J4812),'Transactional Departments'!A:B,2,FALSE)","v":"CHDS Dept Allocation"},"21500100","","","","",""]
["21","243",null,null,"DHHS     K-12 SCHOOLS GA HECKM","1011RH243074","20400","11100","61017","21500001",{"$f":"VLOOKUP(TRIM(J4816),'Transactional Departments'!A:B,2,FALSE)","v":"CHDS Grant Transition"},"21500001","","","","",""]
["21","243",null,null,"UGAF     COUNCIL HDS FDN GLASE","1021RR243034","20200","12100","67439","21500001",{"$f":"VLOOKUP(TRIM(J4821),'Transactional Departments'!A:B,2,FALSE)","v":"CHDS Grant Transition"},"21500001","","","","",""]
["21","243",null,null,"JCAP/GIRLS PROJECT            ","1025DW243027","14100","12400","41500","21502S02",{"$f":"VLOOKUP(TRIM(J4827),'Transactional Departments'!A:B,2,FALSE)","v":"CHDS JCAP/Girls"},"21502S02","","","","",""]
["21","243",null,null,"RESIDUAL BALANCE #243         ","1031RX243950","20400","13100","64RBP","21500100",{"$f":"VLOOKUP(TRIM(J4832),'Transactional Departments'!A:B,2,FALSE)","v":"CHDS Dept Allocation"},"21500100","","","","",""]
["21","243",null,null,"GRIFFIN-STUDENT AFFAIRS LEAD  ","1711GH243023","10500","11100","11800","21500100",{"$f":"VLOOKUP(TRIM(J4836),'Transactional Departments'!A:B,2,FALSE)","v":"CHDS Dept Allocation"},"21500100","","","","GRI",""]
["21","244",null,null,"EPSY - INDIRECT COST REC      ","1011AH244001","15000","11100","11500","21550001",{"$f":"VLOOKUP(TRIM(J4839),'Transactional Departments'!A:B,2,FALSE)","v":"EPSY Grant Transition"},"21550001","","","","",""]
["21","244",null,null,"EDUCATIONAL PSYCHOLOGY        ","1011GJ244000","10500","11140","11800","21550100",{"$f":"VLOOKUP(TRIM(J4845),'Transactional Departments'!A:B,2,FALSE)","v":"EPSY Dept Allocation"},"21550100","","","","",""]
["21","244",null,null,"WC       RF EVAL 14-15   NEUHA","1021RR244120","20400","12100","63000","21550001",{"$f":"VLOOKUP(TRIM(J4850),'Transactional Departments'!A:B,2,FALSE)","v":"EPSY Grant Transition"},"21550001","","","","",""]
["21","244",null,null,"CCSD/USDERF 21ST CENT    NEUHA","1021RR244121","20400","12100","63041","21550001",{"$f":"VLOOKUP(TRIM(J4851),'Transactional Departments'!A:B,2,FALSE)","v":"EPSY Grant Transition"},"21550001","","","","",""]
["21","244",null,null,"CCSD     RF EVAL FY15-16 NEUHA","1021RR244128","20400","12100","63041","21550001",{"$f":"VLOOKUP(TRIM(J4855),'Transactional Departments'!A:B,2,FALSE)","v":"EPSY Grant Transition"},"21550001","","","","",""]
["21","244",null,null,"EPSY - INDIRECT COST REC      ","1025AR244001","15000","12400","11500","21550100",{"$f":"VLOOKUP(TRIM(J4862),'Transactional Departments'!A:B,2,FALSE)","v":"EPSY Dept Allocation"},"21550100","","","","",""]
["21","244",null,null,"EDUCATIONAL PSYCHOLOGY        ","1031GE244000","10500","13100","11800","21550100",{"$f":"VLOOKUP(TRIM(J4867),'Transactional Departments'!A:B,2,FALSE)","v":"EPSY Dept Allocation"},"21550100","","","","",""]
["21","244",null,null,"CLARKE COLEARNING CTR    NEUHA","1031RE244116","20400","13100","63041","21550001",{"$f":"VLOOKUP(TRIM(J4869),'Transactional Departments'!A:B,2,FALSE)","v":"EPSY Grant Transition"},"21550001","","","","",""]
["21","244",null,null,"NASP     REVIEW 16-17    RESCH","1031RE244135","20400","13100","64234","21550001",{"$f":"VLOOKUP(TRIM(J4874),'Transactional Departments'!A:B,2,FALSE)","v":"EPSY Grant Transition"},"21550001","","","","",""]
["21","245",null,null,"ESSE - SALES & SERVICE        ","1011DH245003","14100","11100","41500","21602S01",{"$f":"VLOOKUP(TRIM(J4878),'Transactional Departments'!A:B,2,FALSE)","v":"ETAP Sales And Service"},"21602S01","","","","",""]
["21","245",null,null,"EDUCATIONAL THEORY & PRACTICE ","1011GK245000","10500","11100","11800","21600100",{"$f":"VLOOKUP(TRIM(J4885),'Transactional Departments'!A:B,2,FALSE)","v":"ETAP Dept Allocation"},"21600100","","","","",""]
["21","245",null,null,"WINTER BREAK GHANA STUDY ABR  ","1011GV245020","10000","11100","11200","21600100",{"$f":"VLOOKUP(TRIM(J4886),'Transactional Departments'!A:B,2,FALSE)","v":"ETAP Dept Allocation"},"21600100","18000","NSABD1010FA18  ","100","",""]
["21","245",null,null,"RESIDUAL BALANCE #245         ","1011RX245950","20400","11100","64RBP","21600100",{"$f":"VLOOKUP(TRIM(J4893),'Transactional Departments'!A:B,2,FALSE)","v":"ETAP Dept Allocation"},"21600100","","","","",""]
["21","245",null,null,"UGAF     HEPBURN LECTURE KENNE","1021RR245092","20200","12100","67444","21600001",{"$f":"VLOOKUP(TRIM(J4897),'Transactional Departments'!A:B,2,FALSE)","v":"EATP Grant Transition"},"21600001","","","","",""]
["21","245",null,null,"RED CLAY WRITING PROJECT      ","1031DW245012","14100","13100","41500","21602S02",{"$f":"VLOOKUP(TRIM(J4902),'Transactional Departments'!A:B,2,FALSE)","v":"Red Clay Writing Project"},"21602S02","","","","",""]
["21","246",null,null,"MATH & SCI ED - IND COST REC  ","1011AH246001","15000","11100","11500","21800100",{"$f":"VLOOKUP(TRIM(J4907),'Transactional Departments'!A:B,2,FALSE)","v":"MSE Dept Allocation"},"21800100","","","","",""]
["21","246",null,null,"TUITION DIFFERENTIAL-MAT PROG ","1011GH246009","10500","11100","11800","21800TD1",{"$f":"VLOOKUP(TRIM(J4909),'Transactional Departments'!A:B,2,FALSE)","v":"MSE Tuition Differential"},"21800TD1","","","","",""]
["21","246",null,null,"MATHEMATICS & SCIENCE ED      ","1011GK246000","10500","11100","11800","21800100",{"$f":"VLOOKUP(TRIM(J4912),'Transactional Departments'!A:B,2,FALSE)","v":"MSE Dept Allocation"},"21800100","","","","",""]
["21","246",null,null,"IS/NSF   RF RR246-060 PS HODGE","1021RR246061","20400","12100","64047","21800001",{"$f":"VLOOKUP(TRIM(J4920),'Transactional Departments'!A:B,2,FALSE)","v":"MSE Grant Transition"},"21800001","","","","",""]
["21","246",null,null,"         RF ELEMTRY MATH SPANG","1021RR246064","20400","12100","64385","21800001",{"$f":"VLOOKUP(TRIM(J4921),'Transactional Departments'!A:B,2,FALSE)","v":"MSE Grant Transition"},"21800001","","","","",""]
["21","246",null,null,"ISI3D    RF DIABETES ED  HODGE","1021RR246084","20400","12100","64047","21800001",{"$f":"VLOOKUP(TRIM(J4926),'Transactional Departments'!A:B,2,FALSE)","v":"MSE Grant Transition"},"21800001","","","","",""]
["21","246",null,null,"RESIDUAL BALANCE #246         ","1021RX246950","20400","12100","64RBP","21800100",{"$f":"VLOOKUP(TRIM(J4932),'Transactional Departments'!A:B,2,FALSE)","v":"MSE Dept Allocation"},"21800100","","","","",""]
["21","246",null,null,"MATHEMATICS & SCIENCE ED      ","1031GE246000","10500","13100","11800","21800100",{"$f":"VLOOKUP(TRIM(J4937),'Transactional Departments'!A:B,2,FALSE)","v":"MSE Dept Allocation"},"21800100","","","","",""]
["21","246",null,null,"GRIFFIN CAMP - MATH ED        ","1711GH246008","10500","11100","11800","21800100",{"$f":"VLOOKUP(TRIM(J4940),'Transactional Departments'!A:B,2,FALSE)","v":"MSE Dept Allocation"},"21800100","","","","GRI",""]
["21","248",null,null,"E-RATE CIS                    ","1011GH248029","10500","11100","11800","21400200",{"$f":"VLOOKUP(TRIM(J4944),'Transactional Departments'!A:B,2,FALSE)","v":"CIS eRate Workforce"},"21400200","","","","",""]
["21","248",null,null,"USDE     W/ 216-342 KNAPP     ","1011RH248364","20400","11100","61033","21400001",{"$f":"VLOOKUP(TRIM(J4950),'Transactional Departments'!A:B,2,FALSE)","v":"CIS Grant Transition"},"21400001","","","","",""]
["21","248",null,null,"NSF      RF PS W/ 248-374KIM  ","1021RR248375","20400","12100","61023","21400001",{"$f":"VLOOKUP(TRIM(J4955),'Transactional Departments'!A:B,2,FALSE)","v":"CIS Grant Transition"},"21400001","","","","",""]
["21","248",null,null,"         UGARF SUPPORT LDRSHP ","1021RX248900","20300","12100","64ICR","21400100",{"$f":"VLOOKUP(TRIM(J4956),'Transactional Departments'!A:B,2,FALSE)","v":"CIS Dept Allocation"},"21400100","","","","",""]
["21","248",null,null,"GADOE    PRGM CERT GA ENGHILL ","1031RE248358","20400","13100","62012","21400001",{"$f":"VLOOKUP(TRIM(J4964),'Transactional Departments'!A:B,2,FALSE)","v":"CIS Grant Transition"},"21400001","","","","",""]
["21","248",null,null,"GDEDU    ENGI TECH PROG  HILL ","1031RE248366","20400","13100","62012","21400001",{"$f":"VLOOKUP(TRIM(J4967),'Transactional Departments'!A:B,2,FALSE)","v":"CIS Grant Transition"},"21400001","","","","",""]
["21","375",null,null,"GERALDINE A PATRICK SCHOLARSHP","4111RH375610","20400","11100","65610","21170000",{"$f":"VLOOKUP(TRIM(J4973),'Transactional Departments'!A:B,2,FALSE)","v":"DO Student Services"},"21170000","","","","",""]
["21","375",null,null,"DOROTHY SIMMONS ODELL FUND    ","4111RH375753","20400","11100","65753","21100001",{"$f":"VLOOKUP(TRIM(J4974),'Transactional Departments'!A:B,2,FALSE)","v":"Dean's Office"},"21100001","","","","",""]
["21","375",null,null,"GEORGE R. GILMER              ","4111RH375886","20400","11100","65886","21170000",{"$f":"VLOOKUP(TRIM(J4979),'Transactional Departments'!A:B,2,FALSE)","v":"DO Student Services"},"21170000","","","","",""]
["22","064",null,null,"UGARF FAC RSCH WANG        722","1021RX064563","20300","12100","64F17","22005034",{"$f":"VLOOKUP(TRIM(J4983),'Transactional Departments'!A:B,2,FALSE)","v":"Wang, Xiangqiao"},"22005034","","","","",""]
["22","644",null,null,"STF CTL MOHAMMADPOUR          ","1019TJ644004","16000","14400","11600","22003000",{"$f":"VLOOKUP(TRIM(J4990),'Transactional Departments'!A:B,2,FALSE)","v":"ECE School Of Electrical And C"},"22003000","","","","",""]
["22","644",null,null,"USDA NIFARF HARVEST AID  LI   ","1021BR644418","15000","12110","11500","22003000",{"$f":"VLOOKUP(TRIM(J4991),'Transactional Departments'!A:B,2,FALSE)","v":"ECE School Of Electrical And C"},"22003000","","","","",""]
["22","644",null,null,"RESIDUAL BALANCE           644","1021RX644950","20400","12100","64RBP","22003000",{"$f":"VLOOKUP(TRIM(J4997),'Transactional Departments'!A:B,2,FALSE)","v":"ECE School Of Electrical And C"},"22003000","","","","",""]
["22","644",null,null,"IDC HAIDEKKER                 ","1025AR644005","15000","12400","11500","22003000",{"$f":"VLOOKUP(TRIM(J5002),'Transactional Departments'!A:B,2,FALSE)","v":"ECE School Of Electrical And C"},"22003000","","","","",""]
["22","644",null,null,"IDC XU                        ","1025AR644010","15000","12400","11500","22003000",{"$f":"VLOOKUP(TRIM(J5007),'Transactional Departments'!A:B,2,FALSE)","v":"ECE School Of Electrical And C"},"22003000","","","","",""]
["22","644",null,null,"STARTUP TSE                   ","1025AR644012","15000","12400","11500","22003000",{"$f":"VLOOKUP(TRIM(J5009),'Transactional Departments'!A:B,2,FALSE)","v":"ECE School Of Electrical And C"},"22003000","","","","",""]
["22","644",null,null,"ECE IDC                       ","1025AR644017","15000","12400","11500","22003000",{"$f":"VLOOKUP(TRIM(J5014),'Transactional Departments'!A:B,2,FALSE)","v":"ECE School Of Electrical And C"},"22003000","","","","",""]
["22","644",null,null,"ECE MABLE FOK                 ","1025GR644018","10000","12400","11200","22003000",{"$f":"VLOOKUP(TRIM(J5021),'Transactional Departments'!A:B,2,FALSE)","v":"ECE School Of Electrical And C"},"22003000","","","","",""]
["22","644",null,null,"ECE JAVAD MOHAMMADPOUR        ","1025GR644025","10000","12400","11200","22003000",{"$f":"VLOOKUP(TRIM(J5025),'Transactional Departments'!A:B,2,FALSE)","v":"ECE School Of Electrical And C"},"22003000","","","","",""]
["22","644",null,null,"ECE ZION TSE                  ","1025GR644026","10000","12400","11200","22003000",{"$f":"VLOOKUP(TRIM(J5026),'Transactional Departments'!A:B,2,FALSE)","v":"ECE School Of Electrical And C"},"22003000","","","","",""]
["22","644",null,null,"ECE SONG                      ","1025GR644035","10000","12400","11200","22003000",{"$f":"VLOOKUP(TRIM(J5030),'Transactional Departments'!A:B,2,FALSE)","v":"ECE School Of Electrical And C"},"22003000","","","","",""]
["22","645",null,null,"CMBE INSTRUCTION              ","1011GH645006","10000","11100","11200","22004000",{"$f":"VLOOKUP(TRIM(J5037),'Transactional Departments'!A:B,2,FALSE)","v":"CMBE School Of Chemical, Mater"},"22004000","","","","",""]
["22","645",null,null,"NSF      RF GRANT CB2    LOCKL","1021RR645487","20400","12100","61023","22004000",{"$f":"VLOOKUP(TRIM(J5040),'Transactional Departments'!A:B,2,FALSE)","v":"CMBE School Of Chemical, Mater"},"22004000","","","","",""]
["22","645",null,null,"IDC LOCKLIN                   ","1025AR645001","15000","12400","11500","22004000",{"$f":"VLOOKUP(TRIM(J5044),'Transactional Departments'!A:B,2,FALSE)","v":"CMBE School Of Chemical, Mater"},"22004000","","","","",""]
["22","645",null,null,"IDC EITEMAN                   ","1025AR645006","15000","12400","11500","22004000",{"$f":"VLOOKUP(TRIM(J5049),'Transactional Departments'!A:B,2,FALSE)","v":"CMBE School Of Chemical, Mater"},"22004000","","","","",""]
["22","645",null,null,"IDC HALLOW                    ","1025AR645011","15000","12400","11500","22004000",{"$f":"VLOOKUP(TRIM(J5054),'Transactional Departments'!A:B,2,FALSE)","v":"CMBE School Of Chemical, Mater"},"22004000","","","","",""]
["22","645",null,null,"CMBE IDC                      ","1025AR645017","15000","12400","11500","22004000",{"$f":"VLOOKUP(TRIM(J5060),'Transactional Departments'!A:B,2,FALSE)","v":"CMBE School Of Chemical, Mater"},"22004000","","","","",""]
["22","645",null,null,"CMBE IDC                      ","1025AR645018","15000","12400","11500","22004000",{"$f":"VLOOKUP(TRIM(J5061),'Transactional Departments'!A:B,2,FALSE)","v":"CMBE School Of Chemical, Mater"},"22004000","","","","",""]
["22","645",null,null,"CMBE YAJUN YAN                ","1025GR645025","10000","12400","11200","22004000",{"$f":"VLOOKUP(TRIM(J5068),'Transactional Departments'!A:B,2,FALSE)","v":"CMBE School Of Chemical, Mater"},"22004000","","","","",""]
["22","645",null,null,"CMBE HITESH HANDA             ","1025GR645032","10000","12400","11200","22004000",{"$f":"VLOOKUP(TRIM(J5072),'Transactional Departments'!A:B,2,FALSE)","v":"CMBE School Of Chemical, Mater"},"22004000","","","","",""]
["22","646",null,null,"ECAM INSTRUCTION              ","1011GH646006","10000","11100","11200","22005000",{"$f":"VLOOKUP(TRIM(J5078),'Transactional Departments'!A:B,2,FALSE)","v":"ECAM School Of Environmental,"},"22005000","","","","",""]
["22","646",null,null,"ENVIRON CIVIL AG & MECHAN ENG ","1011GJ646000","10000","11140","11200","22005000",{"$f":"VLOOKUP(TRIM(J5079),'Transactional Departments'!A:B,2,FALSE)","v":"ECAM School Of Environmental,"},"22005000","","","","",""]
["22","646",null,null,"GEPD/UEPARF SOD STUDIES  WOODS","1021CR646480","10000","12110","11200","22005000",{"$f":"VLOOKUP(TRIM(J5084),'Transactional Departments'!A:B,2,FALSE)","v":"ECAM School Of Environmental,"},"22005000","","","","",""]
["22","646",null,null,"UGAF     DAS FOUNDATION  LEO  ","1021RR646194","20200","12100","","22005000",{"$f":"VLOOKUP(TRIM(J5087),'Transactional Departments'!A:B,2,FALSE)","v":"ECAM School Of Environmental,"},"22005000","","","","",""]
["22","646",null,null,"NSF      RF PS W/646-494 WALTH","1021RR646495","20400","12100","61023","22005000",{"$f":"VLOOKUP(TRIM(J5095),'Transactional Departments'!A:B,2,FALSE)","v":"ECAM School Of Environmental,"},"22005000","","","","",""]
["22","646",null,null,"GDOT/USDTRF TASK 201516  KIM  ","1021RR646497","20400","12100","62017","22005000",{"$f":"VLOOKUP(TRIM(J5096),'Transactional Departments'!A:B,2,FALSE)","v":"ECAM School Of Environmental,"},"22005000","","","","",""]
["22","646",null,null,"GDOT     RF W/646-502 TUIKIM  ","1021RR646503","20400","12100","62017","22005000",{"$f":"VLOOKUP(TRIM(J5101),'Transactional Departments'!A:B,2,FALSE)","v":"ECAM School Of Environmental,"},"22005000","","","","",""]
["22","646",null,null,"IDC PAN                       ","1025AR646004","15000","12400","11500","22005000",{"$f":"VLOOKUP(TRIM(J5107),'Transactional Departments'!A:B,2,FALSE)","v":"ECAM School Of Environmental,"},"22005000","","","","",""]
["22","646",null,null,"IDC LAWRENCE                  ","1025AR646008","15000","12400","11500","22005000",{"$f":"VLOOKUP(TRIM(J5111),'Transactional Departments'!A:B,2,FALSE)","v":"ECAM School Of Environmental,"},"22005000","","","","",""]
["22","646",null,null,"IDC JAMBECK                   ","1025AR646011","15000","12400","11500","22005000",{"$f":"VLOOKUP(TRIM(J5114),'Transactional Departments'!A:B,2,FALSE)","v":"ECAM School Of Environmental,"},"22005000","","","","",""]
["22","646",null,null,"IDC CHRISTIAN                 ","1025AR646016","15000","12400","11500","22005000",{"$f":"VLOOKUP(TRIM(J5119),'Transactional Departments'!A:B,2,FALSE)","v":"ECAM School Of Environmental,"},"22005000","","","","",""]
["22","646",null,null,"IDC YODER                     ","1025AR646022","15000","12400","11500","22005000",{"$f":"VLOOKUP(TRIM(J5125),'Transactional Departments'!A:B,2,FALSE)","v":"ECAM School Of Environmental,"},"22005000","","","","",""]
["22","646",null,null,"IDC SOCHACKA                  ","1025AR646027","15000","12400","11500","22005000",{"$f":"VLOOKUP(TRIM(J5130),'Transactional Departments'!A:B,2,FALSE)","v":"ECAM School Of Environmental,"},"22005000","","","","",""]
["22","646",null,null,"ECAM IDC                      ","1025AR646032","15000","12400","11500","22005000",{"$f":"VLOOKUP(TRIM(J5135),'Transactional Departments'!A:B,2,FALSE)","v":"ECAM School Of Environmental,"},"22005000","","","","",""]
["22","646",null,null,"ECAM IDC                      ","1025AR646034","15000","12400","11500","22005000",{"$f":"VLOOKUP(TRIM(J5137),'Transactional Departments'!A:B,2,FALSE)","v":"ECAM School Of Environmental,"},"22005000","","","","",""]
["22","646",null,null,"RESEARCH PAN                  ","1025DR646003","14100","12400","41500","22005000",{"$f":"VLOOKUP(TRIM(J5142),'Transactional Departments'!A:B,2,FALSE)","v":"ECAM School Of Environmental,"},"22005000","","","","",""]
["22","646",null,null,"ECAM RSCH                     ","1025GR646012","10000","12400","11200","22005000",{"$f":"VLOOKUP(TRIM(J5144),'Transactional Departments'!A:B,2,FALSE)","v":"ECAM School Of Environmental,"},"22005000","","","","",""]
["22","646",null,null,"KE LI                         ","1025GR646027","10000","12400","11200","22005000",{"$f":"VLOOKUP(TRIM(J5149),'Transactional Departments'!A:B,2,FALSE)","v":"ECAM School Of Environmental,"},"22005000","","","","",""]
["22","646",null,null,"XIANQIAO WANG                 ","1025GR646037","10000","12400","11200","22005000",{"$f":"VLOOKUP(TRIM(J5154),'Transactional Departments'!A:B,2,FALSE)","v":"ECAM School Of Environmental,"},"22005000","","","","",""]
["22","646",null,null,"ERIC FREEMAN                  ","1025GR646042","10000","12400","11200","22005000",{"$f":"VLOOKUP(TRIM(J5158),'Transactional Departments'!A:B,2,FALSE)","v":"ECAM School Of Environmental,"},"22005000","","","","",""]
["22","646",null,null,"STARTUP MAY                   ","1025GR646051","10000","12400","11200","22005000",{"$f":"VLOOKUP(TRIM(J5165),'Transactional Departments'!A:B,2,FALSE)","v":"ECAM School Of Environmental,"},"22005000","","","","",""]
["22","646",null,null,"BLEDSOE AEES CONFERENCE       ","1031DW646001","14100","13100","41500","22005003",{"$f":"VLOOKUP(TRIM(J5168),'Transactional Departments'!A:B,2,FALSE)","v":"Bledsoe, Brian"},"22005003","","","","",""]
["22","647",null,null,"GII IDC                       ","1025AR647001","15000","12400","11500","22006002",{"$f":"VLOOKUP(TRIM(J5172),'Transactional Departments'!A:B,2,FALSE)","v":"GII Georgia Informatics Inst"},"22006002","","","","",""]
["22","647",null,null,"GII IDC                       ","1025AR647006","15000","12400","11500","22006002",{"$f":"VLOOKUP(TRIM(J5177),'Transactional Departments'!A:B,2,FALSE)","v":"GII Georgia Informatics Inst"},"22006002","","","","",""]
["22","648",null,null,"EETI IDC                      ","1025AR648003","15000","12400","11500","22006003",{"$f":"VLOOKUP(TRIM(J5182),'Transactional Departments'!A:B,2,FALSE)","v":"EETI Electrical & Computer Eng"},"22006003","","","","",""]
["22","648",null,null,"EETI IDC                      ","1025AR648005","15000","12400","11500","22006003",{"$f":"VLOOKUP(TRIM(J5184),'Transactional Departments'!A:B,2,FALSE)","v":"EETI Electrical & Computer Eng"},"22006003","","","","",""]
["22","649",null,null,"IRIS IDC                      ","1025AR649002","15000","12400","11500","22006004",{"$f":"VLOOKUP(TRIM(J5189),'Transactional Departments'!A:B,2,FALSE)","v":"IRIS Inst Resilient Infrastr"},"22006004","","","","",""]
["22","722",null,null,"1140 COMP ENGR METHODS        ","1011DH722025","14100","11100","41500","22001000",{"$f":"VLOOKUP(TRIM(J5196),'Transactional Departments'!A:B,2,FALSE)","v":"CENGR College Of Engineering"},"22001000","","","","",""]
["22","722",null,null,"3270 ELECTRONICS I            ","1011DH722031","14100","11100","41500","22001000",{"$f":"VLOOKUP(TRIM(J5200),'Transactional Departments'!A:B,2,FALSE)","v":"CENGR College Of Engineering"},"22001000","","","","",""]
["22","722",null,null,"4230/6230 SENSOR & TRANSDUCERS","1011DH722033","14100","11100","41500","22001000",{"$f":"VLOOKUP(TRIM(J5201),'Transactional Departments'!A:B,2,FALSE)","v":"CENGR College Of Engineering"},"22001000","","","","",""]
["22","722",null,null,"BCHE4655/6655 META ENG SYN BIO","1011DH722042","14100","11100","41500","22001000",{"$f":"VLOOKUP(TRIM(J5207),'Transactional Departments'!A:B,2,FALSE)","v":"CENGR College Of Engineering"},"22001000","","","","",""]
["22","722",null,null,"3460 CVLE CIVIL ENGR LAB HYDRA","1011DH722048","14100","11100","41500","22001000",{"$f":"VLOOKUP(TRIM(J5212),'Transactional Departments'!A:B,2,FALSE)","v":"CENGR College Of Engineering"},"22001000","","","","",""]
["22","722",null,null,"4180 BCHE ADV BIOCHEM ENGR    ","1011DH722051","14100","11100","41500","22001000",{"$f":"VLOOKUP(TRIM(J5215),'Transactional Departments'!A:B,2,FALSE)","v":"CENGR College Of Engineering"},"22001000","","","","",""]
["22","722",null,null,"COLLEGE OF ENGINEERING        ","1011GH722000","10500","11100","11800","22001000",{"$f":"VLOOKUP(TRIM(J5219),'Transactional Departments'!A:B,2,FALSE)","v":"CENGR College Of Engineering"},"22001000","","","","",""]
["22","722",null,null,"CENGR INSTRUCTION PROJECTS 6  ","1011GH722137","10000","11100","11200","22001000",{"$f":"VLOOKUP(TRIM(J5224),'Transactional Departments'!A:B,2,FALSE)","v":"CENGR College Of Engineering"},"22001000","","","","",""]
["22","722",null,null,"CENGR ACADEMIC OFFICE         ","1011GJ722030","10500","11140","11800","22001000",{"$f":"VLOOKUP(TRIM(J5229),'Transactional Departments'!A:B,2,FALSE)","v":"CENGR College Of Engineering"},"22001000","","","","",""]
["22","722",null,null,"CENGR IT GROUP                ","1019GJ722031","10500","14400","11800","22001000",{"$f":"VLOOKUP(TRIM(J5235),'Transactional Departments'!A:B,2,FALSE)","v":"CENGR College Of Engineering"},"22001000","","","","",""]
["22","722",null,null,"USDA NIFARF HARVEST AID  LI   ","1021BR722418","15000","12110","11500","22001000",{"$f":"VLOOKUP(TRIM(J5239),'Transactional Departments'!A:B,2,FALSE)","v":"CENGR College Of Engineering"},"22001000","","","","",""]
["22","722",null,null,"USDA     RF THAI W/327-193    ","1021RR722130","20400","12100","61002","22001000",{"$f":"VLOOKUP(TRIM(J5242),'Transactional Departments'!A:B,2,FALSE)","v":"CENGR College Of Engineering"},"22001000","","","","",""]
["22","722",null,null,"NIH      RF INT FERROFLUIMAO  ","1021RR722156","20400","12100","61018","22001000",{"$f":"VLOOKUP(TRIM(J5247),'Transactional Departments'!A:B,2,FALSE)","v":"CENGR College Of Engineering"},"22001000","","","","",""]
["22","722",null,null,"USDA     RF SWITCHGRASS  TOLLN","1021RR722182","20400","12100","61003","22001000",{"$f":"VLOOKUP(TRIM(J5253),'Transactional Departments'!A:B,2,FALSE)","v":"CENGR College Of Engineering"},"22001000","","","","",""]
["22","722",null,null,"ORAU     RF OPTICAL FISH FOK  ","1021RR722183","20400","12100","64286","22001000",{"$f":"VLOOKUP(TRIM(J5254),'Transactional Departments'!A:B,2,FALSE)","v":"CENGR College Of Engineering"},"22001000","","","","",""]
["22","722",null,null,"UGAF PASS11TH HOUR       JAMBE","1021RR722217","20400","12100","64455","22001000",{"$f":"VLOOKUP(TRIM(J5259),'Transactional Departments'!A:B,2,FALSE)","v":"CENGR College Of Engineering"},"22001000","","","","",""]
["22","722",null,null,"         RF HYDRODYNAMIC WOODS","1021RR722386","20400","12100","64000","22001000",{"$f":"VLOOKUP(TRIM(J5262),'Transactional Departments'!A:B,2,FALSE)","v":"CENGR College Of Engineering"},"22001000","","","","",""]
["22","722",null,null,"GA POWER RF SOLAR TECH 2DGATTI","1021RR722443","20400","12100","64004","22001000",{"$f":"VLOOKUP(TRIM(J5270),'Transactional Departments'!A:B,2,FALSE)","v":"CENGR College Of Engineering"},"22001000","","","","",""]
["22","722",null,null,"USDA     RF WATR QUALITY TOLLN","1021RR722451","20400","12100","61003","22001000",{"$f":"VLOOKUP(TRIM(J5272),'Transactional Departments'!A:B,2,FALSE)","v":"CENGR College Of Engineering"},"22001000","","","","",""]
["22","722",null,null,"NSF      RF ABALONE      WOODS","1021RR722488","20400","12100","61023","22001000",{"$f":"VLOOKUP(TRIM(J5277),'Transactional Departments'!A:B,2,FALSE)","v":"CENGR College Of Engineering"},"22001000","","","","",""]
["22","722",null,null,"ROYALTY INVENTOR/EITEMAN      ","1021RX722362","20300","12100","64RYT","22001000",{"$f":"VLOOKUP(TRIM(J5282),'Transactional Departments'!A:B,2,FALSE)","v":"CENGR College Of Engineering"},"22001000","","","","",""]
["22","722",null,null,"REM SEED GRANT TSE            ","1021RX722452","20200","12100","67552","22001000",{"$f":"VLOOKUP(TRIM(J5286),'Transactional Departments'!A:B,2,FALSE)","v":"CENGR College Of Engineering"},"22001000","","","","",""]
["22","722",null,null,"ROYALTY HOLDING ENGINEERING   ","1021RX722980","20300","12100","64URF","22001000",{"$f":"VLOOKUP(TRIM(J5289),'Transactional Departments'!A:B,2,FALSE)","v":"CENGR College Of Engineering"},"22001000","","","","",""]
["22","722",null,null,"IDC CARRYFORWARD              ","1025AR722925","15000","12400","11500","22001000",{"$f":"VLOOKUP(TRIM(J5296),'Transactional Departments'!A:B,2,FALSE)","v":"CENGR College Of Engineering"},"22001000","","","","",""]
["22","722",null,null,"TSE FLY LARVA ROBOT           ","1025DR722039","14100","12400","41500","22001000",{"$f":"VLOOKUP(TRIM(J5300),'Transactional Departments'!A:B,2,FALSE)","v":"CENGR College Of Engineering"},"22001000","","","","",""]
["22","722",null,null,"STARTUP WANG                  ","1025GR722027","10500","12400","11800","22001000",{"$f":"VLOOKUP(TRIM(J5305),'Transactional Departments'!A:B,2,FALSE)","v":"CENGR College Of Engineering"},"22001000","","","","",""]
["22","722",null,null,"CENGR WILLIAM KISAALITA       ","1025GR722074","10000","12400","11200","22004009",{"$f":"VLOOKUP(TRIM(J5310),'Transactional Departments'!A:B,2,FALSE)","v":"Kisaalita, William"},"22004009","","","","",""]
["22","722",null,null,"CENGR JASON LOCKLIN           ","1025GR722079","10000","12400","11200","22004010",{"$f":"VLOOKUP(TRIM(J5312),'Transactional Departments'!A:B,2,FALSE)","v":"Locklin, Jason"},"22004010","","","","",""]
["22","722",null,null,"STARTUP IONOV                 ","1025GR722141","10000","12400","11200","22001000",{"$f":"VLOOKUP(TRIM(J5317),'Transactional Departments'!A:B,2,FALSE)","v":"CENGR College Of Engineering"},"22001000","","","","",""]
["22","722",null,null,"CENGR GRANT BUYOUT            ","1025GR722163","10000","12400","11200","22002002",{"$f":"VLOOKUP(TRIM(J5319),'Transactional Departments'!A:B,2,FALSE)","v":"Grant Buyout CENGR"},"22002002","","","","",""]
["22","722",null,null,"SERVICE THAI                  ","1031DE722015","14100","13100","41500","22001000",{"$f":"VLOOKUP(TRIM(J5324),'Transactional Departments'!A:B,2,FALSE)","v":"CENGR College Of Engineering"},"22001000","","","","",""]
["22","722",null,null,"INDUSTRY WS LEACH             ","1031DW722058","14100","13100","41500","22001000",{"$f":"VLOOKUP(TRIM(J5329),'Transactional Departments'!A:B,2,FALSE)","v":"CENGR College Of Engineering"},"22001000","","","","",""]
["22","722",null,null,"UGA AU SEED HANDA             ","1925GR722162","10800","12400","11200","22004006",{"$f":"VLOOKUP(TRIM(J5335),'Transactional Departments'!A:B,2,FALSE)","v":"Handa, Hitesh"},"22004006","","","","",""]
["23","250",null,null,"HBO RESOURCE CENTER           ","1011DH250110","14100","11100","41500","23005003",{"$f":"VLOOKUP(TRIM(J5340),'Transactional Departments'!A:B,2,FALSE)","v":"Library Binding Income"},"23005003","","","","",""]
["23","250",null,null,"LAND 4910                     ","1011DV250023","14100","11100","41507","23011005",{"$f":"VLOOKUP(TRIM(J5343),'Transactional Departments'!A:B,2,FALSE)","v":"Puerto Rico"},"23011005","18000","NFSTY1013SP17  ","100","",""]
["23","250",null,null,"COLLEGE ENVIRONMENT & DESIGN  ","1011GH250000","10500","11100","11800","23002000",{"$f":"VLOOKUP(TRIM(J5347),'Transactional Departments'!A:B,2,FALSE)","v":"Faculty/Staff Salaries"},"23002000","","","","",""]
["23","250",null,null,"CED SPECIAL PROJECTS          ","1011GJ250300","10500","11140","11800","23001000",{"$f":"VLOOKUP(TRIM(J5352),'Transactional Departments'!A:B,2,FALSE)","v":"College Of Env & Design"},"23001000","","","","",""]
["23","250",null,null,"         VINCENT ENDOW LECTURE","1011RH250009","20400","11100","65786","23001000",{"$f":"VLOOKUP(TRIM(J5357),'Transactional Departments'!A:B,2,FALSE)","v":"College Of Env & Design"},"23001000","","","","",""]
["23","250",null,null,"UGAF     EAST WEST SUPT  NADEN","1011RH250207","20200","11100","67158","23001000",{"$f":"VLOOKUP(TRIM(J5359),'Transactional Departments'!A:B,2,FALSE)","v":"College Of Env & Design"},"23001000","","","","",""]
["23","250",null,null,"UGAF     ENVIRON ETHICS  NADEN","1011RH250307","20200","11100","67165","23001000",{"$f":"VLOOKUP(TRIM(J5367),'Transactional Departments'!A:B,2,FALSE)","v":"College Of Env & Design"},"23001000","","","","",""]
["23","250",null,null,"UGAF     WORMSLOE        NADEN","1011RH250346","20200","11100","67166","23001000",{"$f":"VLOOKUP(TRIM(J5370),'Transactional Departments'!A:B,2,FALSE)","v":"College Of Env & Design"},"23001000","","","","",""]
["23","250",null,null,"STF - ENVIRONMENT DESIGN      ","1019TJ250002","16000","14400","11600","23006003",{"$f":"VLOOKUP(TRIM(J5375),'Transactional Departments'!A:B,2,FALSE)","v":"Stf"},"23006003","","","","",""]
["23","250",null,null,"CELA     RF LNDSCPE JRNL NADEN","1021BR250196","15000","12110","11500","23001000",{"$f":"VLOOKUP(TRIM(J5376),'Transactional Departments'!A:B,2,FALSE)","v":"College Of Env & Design"},"23001000","","","","",""]
["23","250",null,null,"USDI     RF CULT LNDSCPE GOETC","1021RR250335","20400","12100","61019","23001000",{"$f":"VLOOKUP(TRIM(J5382),'Transactional Departments'!A:B,2,FALSE)","v":"College Of Env & Design"},"23001000","","","","",""]
["23","250",null,null,"UGARF SUPPORT IDC RETURN   250","1021RX250900","20300","12100","64ICR","23016000",{"$f":"VLOOKUP(TRIM(J5387),'Transactional Departments'!A:B,2,FALSE)","v":"CED Ugarf"},"23016000","","","","",""]
["23","250",null,null,"COLLEGE ENVIRONMENT & DESIGN  ","1025GR250000","10500","12400","11800","23002000",{"$f":"VLOOKUP(TRIM(J5390),'Transactional Departments'!A:B,2,FALSE)","v":"Faculty/Staff Salaries"},"23002000","","","","",""]
["23","250",null,null,"IDC ENVIRONMENTAL DESIGN      ","1026AR250001","15000","12200","11500","23015001",{"$f":"VLOOKUP(TRIM(J5394),'Transactional Departments'!A:B,2,FALSE)","v":"CED IDC Return"},"23015001","","","","",""]
["23","250",null,null,"DSS CARRY FORWARD             ","1031DE250925","14100","13100","41500","23018000",{"$f":"VLOOKUP(TRIM(J5400),'Transactional Departments'!A:B,2,FALSE)","v":"CED DSS Carryforward"},"23018000","","","","",""]
["23","250",null,null,"UGAF     SEYMOUR SPEC EV NADEN","1031RE250193","20200","13100","","23001000",{"$f":"VLOOKUP(TRIM(J5405),'Transactional Departments'!A:B,2,FALSE)","v":"College Of Env & Design"},"23001000","","","","",""]
["23","250",null,null,"GTC      FIND IT         CASSI","1031RE250329","20400","13100","64344","23001000",{"$f":"VLOOKUP(TRIM(J5410),'Transactional Departments'!A:B,2,FALSE)","v":"College Of Env & Design"},"23001000","","","","",""]
["23","250",null,null,"GADCA    CITY STREET     NADEN","1031RE250339","20400","13100","62011","23001000",{"$f":"VLOOKUP(TRIM(J5414),'Transactional Departments'!A:B,2,FALSE)","v":"College Of Env & Design"},"23001000","","","","",""]
["23","250",null,null,"CED - RESOURCE CENTERS        ","1043GT250131","10500","14300","11800","23005001",{"$f":"VLOOKUP(TRIM(J5417),'Transactional Departments'!A:B,2,FALSE)","v":"Circle Gallery"},"23005001","","","","",""]
["23","250",null,null,"CED - PROGRAM DEVELOPMENT     ","1065GA250106","10500","16600","11800","23007000",{"$f":"VLOOKUP(TRIM(J5422),'Transactional Departments'!A:B,2,FALSE)","v":"Development"},"23007000","","","","",""]
["23","375",null,null,"DAR MCCURRY RICHMOND WALTON   ","4111RH375611","20400","11100","65611","23001000",{"$f":"VLOOKUP(TRIM(J5428),'Transactional Departments'!A:B,2,FALSE)","v":"College Of Env & Design"},"23001000","","","","",""]
["23","375",null,null,"DAR TALMADGE MAY E            ","4111RH375612","20400","11100","65612","23001000",{"$f":"VLOOKUP(TRIM(J5429),'Transactional Departments'!A:B,2,FALSE)","v":"College Of Env & Design"},"23001000","","","","",""]
["23","375",null,null,"ROBERT HILL MEMORIAL ENDOWMENT","4111RH375731","20400","11100","65731","23001000",{"$f":"VLOOKUP(TRIM(J5433),'Transactional Departments'!A:B,2,FALSE)","v":"College Of Env & Design"},"23001000","","","","",""]
["24","064",null,null,"UGARF FAC RSCH PAZDRO      581","1021RX064674","20300","12100","64F18","24300RP0",{"$f":"VLOOKUP(TRIM(J5440),'Transactional Departments'!A:B,2,FALSE)","v":"Rob Pazdro"},"24300RP0","","","","",""]
["24","254",null,null,"COLLEGE OF FAMILY & CONSUM SCI","1011GH254000","10500","11100","11800","24110000",{"$f":"VLOOKUP(TRIM(J5445),'Transactional Departments'!A:B,2,FALSE)","v":"FACS Admin"},"24110000","","","","",""]
["24","254",null,null,"COLLEGE OF FAMILY & CONSUM SCI","1011GJ254000","10500","11140","11800","24110000",{"$f":"VLOOKUP(TRIM(J5447),'Transactional Departments'!A:B,2,FALSE)","v":"FACS Admin"},"24110000","","","","",""]
["24","254",null,null,"FACS LONDON SUMMER            ","1011GV254052","10000","11100","11200","24111000",{"$f":"VLOOKUP(TRIM(J5452),'Transactional Departments'!A:B,2,FALSE)","v":"FCS London Study Abroad"},"24111000","18000","NSABD1085SU18  ","100","",""]
["24","254",null,null,"UGAF     HALTIWANGER PROFFOX  ","1011RH254340","20200","11100","","24110000",{"$f":"VLOOKUP(TRIM(J5457),'Transactional Departments'!A:B,2,FALSE)","v":"FACS Admin"},"24110000","","","","",""]
["24","254",null,null,"UGAF     BARRS-TAYLOR STUFOX  ","1021RR254334","20200","12100","67467","24110000",{"$f":"VLOOKUP(TRIM(J5463),'Transactional Departments'!A:B,2,FALSE)","v":"FACS Admin"},"24110000","","","","",""]
["24","254",null,null,"UGAF     HARRIS ADACEMIC FOX  ","1021RR254336","20200","12100","67468","24110000",{"$f":"VLOOKUP(TRIM(J5464),'Transactional Departments'!A:B,2,FALSE)","v":"FACS Admin"},"24110000","","","","",""]
["24","254",null,null,"IDC RETURN                    ","1025AR254930","15000","12400","11500","24110000",{"$f":"VLOOKUP(TRIM(J5471),'Transactional Departments'!A:B,2,FALSE)","v":"FACS Admin"},"24110000","","","","","24IDC     "]
["24","254",null,null,"COLLEGE OF FAMILY & CONSUM SCI","1026AR254000","15000","12200","11500","24110000",{"$f":"VLOOKUP(TRIM(J5475),'Transactional Departments'!A:B,2,FALSE)","v":"FACS Admin"},"24110000","","","","",""]
["24","254",null,null,"FACS COMMUNICATIONS           ","1031GE254041","10500","13100","11800","24110000",{"$f":"VLOOKUP(TRIM(J5480),'Transactional Departments'!A:B,2,FALSE)","v":"FACS Admin"},"24110000","","","","",""]
["24","254",null,null,"FCP      PARTNER FY15    WAGES","1031RE254321","20400","13100","64000","24110000",{"$f":"VLOOKUP(TRIM(J5485),'Transactional Departments'!A:B,2,FALSE)","v":"FACS Admin"},"24110000","","","","",""]
["24","254",null,null,"USDHHS   RF IDD SERVICE  LAWS ","1031RE254325","20400","13100","61017","24110000",{"$f":"VLOOKUP(TRIM(J5487),'Transactional Departments'!A:B,2,FALSE)","v":"FACS Admin"},"24110000","","","","",""]
["24","254",null,null,"COLLEGE OF FAMILY & CONSUM SCI","1046GT254000","10500","14600","11800","24120000",{"$f":"VLOOKUP(TRIM(J5490),'Transactional Departments'!A:B,2,FALSE)","v":"Dean"},"24120000","","","","",""]
["24","254",null,null,"UGAF     FPRC RENOVATION      ","8064RY254801","50100","17620","67846","24110000",{"$f":"VLOOKUP(TRIM(J5498),'Transactional Departments'!A:B,2,FALSE)","v":"FACS Admin"},"24110000","","","","",""]
["24","255",null,null,"UGAF     FAN BROOKE ACA SFOX  ","1011RH255104","20200","11100","67177","24210000",{"$f":"VLOOKUP(TRIM(J5499),'Transactional Departments'!A:B,2,FALSE)","v":"HDFS Admin"},"24210000","","","","",""]
["24","296",null,null,"ANONTMOUSRF IONOMER      MINKO","2521RC296226","20400","12100","64207","24100AES",{"$f":"VLOOKUP(TRIM(J5504),'Transactional Departments'!A:B,2,FALSE)","v":"FCS Hatch CAES Funds"},"24100AES","","","","",""]
["24","296",null,null,"FCS STATE HATCH BABIARZ       ","2526GC296160","11300","12200","11200","24400SA0",{"$f":"VLOOKUP(TRIM(J5510),'Transactional Departments'!A:B,2,FALSE)","v":"Sophia Anong"},"24400SA0","","","","",""]
["24","296",null,null,"AES STATE FDN                 ","2526GC296700","11300","12200","11200","24310000",{"$f":"VLOOKUP(TRIM(J5515),'Transactional Departments'!A:B,2,FALSE)","v":"FDN Admin"},"24310000","","","","",""]
["24","296",null,null,"AES STATE PARK                ","2526GC296730","11300","12200","11200","24300HP0",{"$f":"VLOOKUP(TRIM(J5518),'Transactional Departments'!A:B,2,FALSE)","v":"Hea Jin Park"},"24300HP0","","","","",""]
["24","296",null,null,"FCS FDN STATE JOHNSON         ","2526GC296770","11300","12200","11200","24300MJ0",{"$f":"VLOOKUP(TRIM(J5522),'Transactional Departments'!A:B,2,FALSE)","v":"Mary Ann Johnson"},"24300MJ0","","","","",""]
["24","296",null,null,"AES STATE DE LA SERRE         ","2526GC296860","11300","12200","11200","24300CS0",{"$f":"VLOOKUP(TRIM(J5528),'Transactional Departments'!A:B,2,FALSE)","v":"Claire De La Serre"},"24300CS0","","","","",""]
["24","296",null,null,"FCS STATE CARSWELL            ","2526GC296920","11300","12200","11200","24100AES",{"$f":"VLOOKUP(TRIM(J5533),'Transactional Departments'!A:B,2,FALSE)","v":"FCS Hatch CAES Funds"},"24100AES","","","","",""]
["24","357",null,null,"EPA      RF RADON EDUCATITU582","2631CE357001","11310","13200","11200","24140000",{"$f":"VLOOKUP(TRIM(J5534),'Transactional Departments'!A:B,2,FALSE)","v":"FACS Assoc Dean Outreach Ext"},"24140000","","","","",""]
["24","357",null,null,"USDA     EFNEP PRO FY14  MURRA","2631RE357236","20400","13200","61002","24140000",{"$f":"VLOOKUP(TRIM(J5542),'Transactional Departments'!A:B,2,FALSE)","v":"FACS Assoc Dean Outreach Ext"},"24140000","","","","",""]
["24","357",null,null,"CDC      RR770-042       DAVIS","2631RE357242","20400","13200","61031","24140000",{"$f":"VLOOKUP(TRIM(J5545),'Transactional Departments'!A:B,2,FALSE)","v":"FACS Assoc Dean Outreach Ext"},"24140000","","","","",""]
["24","375",null,null,"         HARRIS JAMES COFFEE  ","4111RH375827","20400","11100","65827","24110000",{"$f":"VLOOKUP(TRIM(J5550),'Transactional Departments'!A:B,2,FALSE)","v":"FACS Admin"},"24110000","","","","",""]
["24","375",null,null,"         VIRGINIA WILBANK KIL ","4111RH375840","20400","11100","65840","24110000",{"$f":"VLOOKUP(TRIM(J5551),'Transactional Departments'!A:B,2,FALSE)","v":"FACS Admin"},"24110000","","","","",""]
["24","580",null,null,"FSU/NIH  RF HLTH FOR HRTSWICKR","1021RR580044","20400","12100","62536","24210000",{"$f":"VLOOKUP(TRIM(J5557),'Transactional Departments'!A:B,2,FALSE)","v":"HDFS Admin"},"24210000","","","","",""]
["24","580",null,null,"UGARF SUPPORT HDFS            ","1021RX580900","20300","12100","64ICR","24210000",{"$f":"VLOOKUP(TRIM(J5561),'Transactional Departments'!A:B,2,FALSE)","v":"HDFS Admin"},"24210000","","","","",""]
["24","580",null,null,"GONYEA SALARY SAVINGS         ","1025GR580030","10000","12400","11200","24200JG0",{"$f":"VLOOKUP(TRIM(J5568),'Transactional Departments'!A:B,2,FALSE)","v":"Jennifer Gonyea"},"24200JG0","","","","","24SALARYSV"]
["24","580",null,null,"FUTRIS SALARY SAVINGS         ","1025GR580038","10000","12400","11200","24200TF0",{"$f":"VLOOKUP(TRIM(J5569),'Transactional Departments'!A:B,2,FALSE)","v":"Ted Futris"},"24200TF0","","","","","24SALARYSV"]
["24","580",null,null,"INDIRECT COST BALES           ","1031AE580012","15000","13100","11500","24200DB0",{"$f":"VLOOKUP(TRIM(J5575),'Transactional Departments'!A:B,2,FALSE)","v":"Diane Bales"},"24200DB0","","","","","24IDC     "]
["24","580",null,null,"SALARY SAVINGS BALES          ","1031GE580039","10000","13100","11200","24200DB0",{"$f":"VLOOKUP(TRIM(J5580),'Transactional Departments'!A:B,2,FALSE)","v":"Diane Bales"},"24200DB0","","","","","24SALARYSV"]
["24","580",null,null,"ICF/NIH  NRCS HLTHY MARR MANCI","1031RE580384","20400","13100","64032","24210000",{"$f":"VLOOKUP(TRIM(J5585),'Transactional Departments'!A:B,2,FALSE)","v":"HDFS Admin"},"24210000","","","","",""]
["24","580",null,null,"GADHR    GA PREP         FUTRI","1031RE580393","20400","13100","62014","24210000",{"$f":"VLOOKUP(TRIM(J5589),'Transactional Departments'!A:B,2,FALSE)","v":"HDFS Admin"},"24210000","","","","",""]
["24","580",null,null,"RESIDUAL BALANCE           580","1031RX580950","20400","13100","64RBP","24210000",{"$f":"VLOOKUP(TRIM(J5592),'Transactional Departments'!A:B,2,FALSE)","v":"HDFS Admin"},"24210000","","","","",""]
["24","581",null,null,"FOOD & NUTRITION              ","1011GH581000","10500","11100","11800","24310000",{"$f":"VLOOKUP(TRIM(J5599),'Transactional Departments'!A:B,2,FALSE)","v":"FDN Admin"},"24310000","","","","",""]
["24","581",null,null,"GHANA STUDY ABROAD            ","1011GV581022","10000","11100","11200","24311000",{"$f":"VLOOKUP(TRIM(J5603),'Transactional Departments'!A:B,2,FALSE)","v":"Ghana Study Abroad"},"24311000","18000","NSABD1086SU18  ","100","",""]
["24","581",null,null,"UK STUDY ABROAD               ","1011GV581056","10000","11100","11200","24313000",{"$f":"VLOOKUP(TRIM(J5604),'Transactional Departments'!A:B,2,FALSE)","v":"United Kingdom Study Abroad"},"24313000","18000","NSABD1179MM18  ","100","",""]
["24","581",null,null,"         FDN DISC             ","1021RR581021","20200","12100","67529","24310000",{"$f":"VLOOKUP(TRIM(J5608),'Transactional Departments'!A:B,2,FALSE)","v":"FDN Admin"},"24310000","","","","",""]
["24","581",null,null,"UGAF     FLATT PROFESSOR FOX  ","1021RR581530","20200","12100","","24310000",{"$f":"VLOOKUP(TRIM(J5615),'Transactional Departments'!A:B,2,FALSE)","v":"FDN Admin"},"24310000","","","","",""]
["24","581",null,null,"         RESIDUAL #581RR MULLI","1021RX581950","20400","12100","64RBP","24310000",{"$f":"VLOOKUP(TRIM(J5618),'Transactional Departments'!A:B,2,FALSE)","v":"FDN Admin"},"24310000","","","","",""]
["24","581",null,null,"COTWRIGHT INDIRECT COSTS      ","1025AR581015","15000","12400","11500","24310000",{"$f":"VLOOKUP(TRIM(J5622),'Transactional Departments'!A:B,2,FALSE)","v":"FDN Admin"},"24310000","","","","",""]
["24","581",null,null,"DE LA SERRE SALARY SAVINGS    ","1025GR581008","10000","12400","11200","24310000",{"$f":"VLOOKUP(TRIM(J5627),'Transactional Departments'!A:B,2,FALSE)","v":"FDN Admin"},"24310000","","","","",""]
["24","581",null,null,"COOPER SALARY SAVINGS         ","1025GR581053","10000","12400","11200","24300JC0",{"$f":"VLOOKUP(TRIM(J5632),'Transactional Departments'!A:B,2,FALSE)","v":"Jamie Cooper"},"24300JC0","","","","","24SALARYSV"]
["24","581",null,null,"DE LA SERRE INDIRECT COSTS    ","1026AR581007","15000","12200","11500","24300CS0",{"$f":"VLOOKUP(TRIM(J5638),'Transactional Departments'!A:B,2,FALSE)","v":"Claire De La Serre"},"24300CS0","","","","","24IDC     "]
["24","581",null,null,"INDIRECT COST FDN             ","1026AR581107","15000","12200","11500","24310000",{"$f":"VLOOKUP(TRIM(J5639),'Transactional Departments'!A:B,2,FALSE)","v":"FDN Admin"},"24310000","","","","","24IDC     "]
["24","581",null,null,"BIRCH SALARY SAVINGS          ","1026GR581048","10000","12200","11200","24310000",{"$f":"VLOOKUP(TRIM(J5646),'Transactional Departments'!A:B,2,FALSE)","v":"FDN Admin"},"24310000","","","","",""]
["24","581",null,null,"         HEALTH PROM BBP JOHNS","1031CE581537","10000","13120","11200","24310000",{"$f":"VLOOKUP(TRIM(J5650),'Transactional Departments'!A:B,2,FALSE)","v":"FDN Admin"},"24310000","","","","",""]
["24","581",null,null,"ANDRESS WORKSHOP ACCOUNT      ","1031DW581013","14100","13100","41500","24300EAW",{"$f":"VLOOKUP(TRIM(J5656),'Transactional Departments'!A:B,2,FALSE)","v":"Andress Workshop"},"24300EAW","","","","",""]
["24","581",null,null,"FOOD & NUTRITION              ","1031GE581000","10500","13100","11800","24310000",{"$f":"VLOOKUP(TRIM(J5657),'Transactional Departments'!A:B,2,FALSE)","v":"FDN Admin"},"24310000","","","","",""]
["24","581",null,null,"GA DHS   2011 AGNG SVCS  LEE  ","1031RE581453","20400","13100","62015","24310000",{"$f":"VLOOKUP(TRIM(J5662),'Transactional Departments'!A:B,2,FALSE)","v":"FDN Admin"},"24310000","","","","",""]
["24","581",null,null,"GDAG NIH FOOD SFTY EDUC  HARRI","1031RE581475","20400","13100","62010","24310000",{"$f":"VLOOKUP(TRIM(J5665),'Transactional Departments'!A:B,2,FALSE)","v":"FDN Admin"},"24310000","","","","",""]
["24","581",null,null,"GDHS     UA SNAP ED      LEE  ","1031RE581541","20400","13100","62015","24310000",{"$f":"VLOOKUP(TRIM(J5673),'Transactional Departments'!A:B,2,FALSE)","v":"FDN Admin"},"24310000","","","","",""]
["24","581",null,null,"LEE CTRU SEED GRANT           ","1925GR581061","10800","12400","11200","24310000",{"$f":"VLOOKUP(TRIM(J5674),'Transactional Departments'!A:B,2,FALSE)","v":"FDN Admin"},"24310000","","","","",""]
["24","582",null,null,"FHCE FIELD STUDY FEES         ","1011DV582025","14100","11100","41507","24410000",{"$f":"VLOOKUP(TRIM(J5679),'Transactional Departments'!A:B,2,FALSE)","v":"FCHE Admin"},"24410000","","","","",""]
["24","582",null,null,"UGAF     RESIDENTIAL PRO SWEAN","1011RH582026","20200","11100","67261","24410000",{"$f":"VLOOKUP(TRIM(J5685),'Transactional Departments'!A:B,2,FALSE)","v":"FCHE Admin"},"24410000","","","","",""]
["24","582",null,null,"UGAF     FIN PLAN FUND   FOX  ","1011RH582369","20200","11100","67264","24410000",{"$f":"VLOOKUP(TRIM(J5689),'Transactional Departments'!A:B,2,FALSE)","v":"FCHE Admin"},"24410000","","","","",""]
["24","582",null,null,"UMS/USDA RF FOOD APS     CHATT","1021RR582370","20400","12100","62500","24410000",{"$f":"VLOOKUP(TRIM(J5692),'Transactional Departments'!A:B,2,FALSE)","v":"FCHE Admin"},"24410000","","","","",""]
["24","582",null,null,"INDIRECT COST WORTHY          ","1025AR582006","15000","12400","11500","24400SW0",{"$f":"VLOOKUP(TRIM(J5697),'Transactional Departments'!A:B,2,FALSE)","v":"Sheri Worthy"},"24400SW0","","","","","24IDC     "]
["24","582",null,null,"FIN PLAN, HOUSING & CONS ECON ","1025GR582000","10500","12400","11800","24410000",{"$f":"VLOOKUP(TRIM(J5703),'Transactional Departments'!A:B,2,FALSE)","v":"FCHE Admin"},"24410000","","","","",""]
["24","582",null,null,"CHATTERJEE SALARY SAVINGS     ","1025GR582050","10000","12400","11200","24400SC0",{"$f":"VLOOKUP(TRIM(J5708),'Transactional Departments'!A:B,2,FALSE)","v":"Swarn Chatterjee"},"24400SC0","","","","","24SALARYSV"]
["24","582",null,null,"FHCE TRAVEL                   ","1025GR582052","10000","12400","11200","24410000",{"$f":"VLOOKUP(TRIM(J5709),'Transactional Departments'!A:B,2,FALSE)","v":"FCHE Admin"},"24410000","","","","",""]
["24","582",null,null,"RUPURED WORKSHOP ACCOUNT      ","1031DW582019","14100","13100","41500","24410000",{"$f":"VLOOKUP(TRIM(J5717),'Transactional Departments'!A:B,2,FALSE)","v":"FCHE Admin"},"24410000","","","","",""]
["24","582",null,null,"FIN PLAN, HOUSING & CONS ECON ","1031GE582000","10500","13100","11800","24410000",{"$f":"VLOOKUP(TRIM(J5720),'Transactional Departments'!A:B,2,FALSE)","v":"FCHE Admin"},"24410000","","","","",""]
["24","582",null,null,"SALARY SAVINGS KOONCE         ","1031GE582042","10000","13100","11200","24400JK0",{"$f":"VLOOKUP(TRIM(J5722),'Transactional Departments'!A:B,2,FALSE)","v":"Joan Koonce"},"24400JK0","","","","","24SALARYSV"]
["24","582",null,null,"USDA     RF RURAL INIT   TINSL","1031RE582387","20400","13100","61002","24410000",{"$f":"VLOOKUP(TRIM(J5727),'Transactional Departments'!A:B,2,FALSE)","v":"FCHE Admin"},"24410000","","","","",""]
["24","583",null,null,"TXMI 3330 SUPPLY/COURSE FEES  ","1011DH583001","14100","11100","41500","24500LF3",{"$f":"VLOOKUP(TRIM(J5732),'Transactional Departments'!A:B,2,FALSE)","v":"Course Fees TXMI 3330"},"24500LF3","","","","",""]
["24","583",null,null,"TXMI 3390 COURSE FEES         ","1011DH583006","14100","11100","41500","24500LF4",{"$f":"VLOOKUP(TRIM(J5736),'Transactional Departments'!A:B,2,FALSE)","v":"Course Fees TXMI3390"},"24500LF4","","","","",""]
["24","583",null,null,"TXMI CHINA MAY                ","1011DV583020","14100","11100","41507","24511000",{"$f":"VLOOKUP(TRIM(J5743),'Transactional Departments'!A:B,2,FALSE)","v":"China Study Abroad"},"24511000","18000","NSABD1087MM18B ","100","",""]
["24","583",null,null,"TXMI NEW YORK MAY (FM)        ","1011DV583021","14100","11100","41507","24512000",{"$f":"VLOOKUP(TRIM(J5744),'Transactional Departments'!A:B,2,FALSE)","v":"New York Study Away"},"24512000","18000","NFSTY1050MM17  ","100","",""]
["24","583",null,null,"UGAF     GA SOFT GOODS   HUNT-","1011RH583305","20200","11100","67267","24510000",{"$f":"VLOOKUP(TRIM(J5750),'Transactional Departments'!A:B,2,FALSE)","v":"TMI Admin"},"24510000","","","","",""]
["24","583",null,null,"         TMI FND COMP    NICKO","1021RR583302","20200","12100","67538","24510000",{"$f":"VLOOKUP(TRIM(J5755),'Transactional Departments'!A:B,2,FALSE)","v":"TMI Admin"},"24510000","","","","",""]
["24","583",null,null,"IONOV - UGA IDC RETURN        ","1025AR583003","15000","12400","11500","24510000",{"$f":"VLOOKUP(TRIM(J5760),'Transactional Departments'!A:B,2,FALSE)","v":"TMI Admin"},"24510000","","","","",""]
["24","583",null,null,"MINKO SALARY SAVINGS          ","1025GR583058","10000","12400","11200","24500SM0",{"$f":"VLOOKUP(TRIM(J5762),'Transactional Departments'!A:B,2,FALSE)","v":"Sergiy Minko"},"24500SM0","","","","","24SALARYSV"]
["24","584",null,null,"DHHS     IHDD                 ","1011BO584445","15000","11110","11500","24610000",{"$f":"VLOOKUP(TRIM(J5767),'Transactional Departments'!A:B,2,FALSE)","v":"IHDD Admin"},"24610000","","","","",""]
["24","584",null,null,"         UGARF IHDD      STONE","1021RX584900","20300","12100","64ICR","24610000",{"$f":"VLOOKUP(TRIM(J5774),'Transactional Departments'!A:B,2,FALSE)","v":"IHDD Admin"},"24610000","","","","",""]
["24","584",null,null,"WORKS WORKS PROJECT           ","1031DE584003","14100","13100","41500","24650000",{"$f":"VLOOKUP(TRIM(J5778),'Transactional Departments'!A:B,2,FALSE)","v":"Works Works Project"},"24650000","","","","",""]
["24","584",null,null,"VAP COST RECOVERY             ","1031DE584006","14100","13100","41500","24604000",{"$f":"VLOOKUP(TRIM(J5779),'Transactional Departments'!A:B,2,FALSE)","v":"VAP Cost Recovery"},"24604000","","","","",""]
["24","584",null,null,"DESTINATION DAWGS             ","1031DE584016","14100","13100","41500","24680000",{"$f":"VLOOKUP(TRIM(J5785),'Transactional Departments'!A:B,2,FALSE)","v":"Destination Dawgs"},"24680000","","","","",""]
["24","584",null,null,"BRIGHTWELL SALARY SAVINGS     ","1031GE584006","10000","13100","11200","24600BB0",{"$f":"VLOOKUP(TRIM(J5790),'Transactional Departments'!A:B,2,FALSE)","v":"Becky Brightwell"},"24600BB0","","","","","24SALARYSV"]
["24","584",null,null,"PASS UGAFFARM AGAIN      BRIGH","1031RE584435","20400","13100","64422","24610000",{"$f":"VLOOKUP(TRIM(J5793),'Transactional Departments'!A:B,2,FALSE)","v":"IHDD Admin"},"24610000","","","","",""]
["25","251",null,null,"REC TOURISM 2015 TARRANT      ","1011DV251034","14100","11100","41507","25001001",{"$f":"VLOOKUP(TRIM(J5797),'Transactional Departments'!A:B,2,FALSE)","v":"Warnell Sch Of For & Nat Res"},"25001001","18000","NSABD0009SU18  ","100","",""]
["25","251",null,null,"WSFNR AU WINTER               ","1011DV251611","14100","11100","41507","25001001",{"$f":"VLOOKUP(TRIM(J5802),'Transactional Departments'!A:B,2,FALSE)","v":"Warnell Sch Of For & Nat Res"},"25001001","18000","NSABD1024SP18  ","100","",""]
["25","251",null,null,"WSFNR FJ SUMMER               ","1011DV251642","14100","11100","41507","25001001",{"$f":"VLOOKUP(TRIM(J5807),'Transactional Departments'!A:B,2,FALSE)","v":"Warnell Sch Of For & Nat Res"},"25001001","18000","NSABD1127SU18  ","100","",""]
["25","251",null,null,"DSS CARRY FORWARD             ","1011DV251925","14100","11100","41507","25001001",{"$f":"VLOOKUP(TRIM(J5813),'Transactional Departments'!A:B,2,FALSE)","v":"Warnell Sch Of For & Nat Res"},"25001001","","","","",""]
["25","251",null,null,"FORS & NAT RES INST MONTES    ","1011GH251120","10500","11100","11800","25001MON",{"$f":"VLOOKUP(TRIM(J5817),'Transactional Departments'!A:B,2,FALSE)","v":"Warnell Montes"},"25001MON","","","","",""]
["25","251",null,null,"FORESTRY INST CHANDLER        ","1011GH251150","10000","11100","11200","25001CHN",{"$f":"VLOOKUP(TRIM(J5820),'Transactional Departments'!A:B,2,FALSE)","v":"Warnell Chandler"},"25001CHN","","","","",""]
["25","251",null,null,"FORESTRY INST GREEN G         ","1011GH251210","10500","11100","11800","25001GRN",{"$f":"VLOOKUP(TRIM(J5825),'Transactional Departments'!A:B,2,FALSE)","v":"Warnell Green"},"25001GRN","","","","",""]
["25","251",null,null,"FORESTRY INST MAERZ           ","1011GH251280","10500","11100","11800","25001MAE",{"$f":"VLOOKUP(TRIM(J5831),'Transactional Departments'!A:B,2,FALSE)","v":"Warnell Maerz"},"25001MAE","","","","",""]
["25","251",null,null,"FORESTRY INST MARKEWITZ       ","1011GH251290","10500","11100","11800","25001MAR",{"$f":"VLOOKUP(TRIM(J5832),'Transactional Departments'!A:B,2,FALSE)","v":"Warnell Markewitz"},"25001MAR","","","","",""]
["25","251",null,null,"FORESTRY INST NAIRN           ","1011GH251340","10500","11100","11800","25001NAI",{"$f":"VLOOKUP(TRIM(J5837),'Transactional Departments'!A:B,2,FALSE)","v":"Warnell Nairn"},"25001NAI","","","","",""]
["25","251",null,null,"FORESTRY INST DPETERSON       ","1011GH251370","10500","11100","11800","25001PET",{"$f":"VLOOKUP(TRIM(J5840),'Transactional Departments'!A:B,2,FALSE)","v":"Warnell Peterson"},"25001PET","","","","",""]
["25","251",null,null,"FORESTRY INST SHELTON         ","1011GH251460","10500","11100","11800","25001SHE",{"$f":"VLOOKUP(TRIM(J5848),'Transactional Departments'!A:B,2,FALSE)","v":"Warnell Shelton"},"25001SHE","","","","",""]
["25","251",null,null,"FORESTRY INST BOLEY           ","1011GH251480","10500","11100","11800","25001BOL",{"$f":"VLOOKUP(TRIM(J5850),'Transactional Departments'!A:B,2,FALSE)","v":"Warnell Boley"},"25001BOL","","","","",""]
["25","251",null,null,"FORESTRY INST BULLOCK         ","1011GH251530","10000","11100","11200","25001BUL",{"$f":"VLOOKUP(TRIM(J5855),'Transactional Departments'!A:B,2,FALSE)","v":"Warnell Bullock"},"25001BUL","","","","",""]
["25","251",null,null,"SCHOOL FORESTRY & NATURAL RES ","1011GJ251000","10500","11140","11800","25001001",{"$f":"VLOOKUP(TRIM(J5860),'Transactional Departments'!A:B,2,FALSE)","v":"Warnell Sch Of For & Nat Res"},"25001001","","","","",""]
["25","251",null,null,"WSFR AU NZ SPRING             ","1011GV251027","10500","11100","11800","25001001",{"$f":"VLOOKUP(TRIM(J5864),'Transactional Departments'!A:B,2,FALSE)","v":"Warnell Sch Of For & Nat Res"},"25001001","18000","NSABD1016SP18  ","100","",""]
["25","251",null,null,"WSFNR BOTSWANA                ","1011GV251154","10500","11100","11800","25001001",{"$f":"VLOOKUP(TRIM(J5867),'Transactional Departments'!A:B,2,FALSE)","v":"Warnell Sch Of For & Nat Res"},"25001001","18000","NSABD1099MM18  ","100","",""]
["25","251",null,null,"WSFNR AU/FIJI WINTER 2012     ","1011GV251173","10500","11100","11800","25001001",{"$f":"VLOOKUP(TRIM(J5872),'Transactional Departments'!A:B,2,FALSE)","v":"Warnell Sch Of For & Nat Res"},"25001001","18000","NSABD1024SP18  ","100","",""]
["25","251",null,null,"         FOREST RESOURCESMACE ","1011RH251116","20200","11100","67167","25001DNO",{"$f":"VLOOKUP(TRIM(J5879),'Transactional Departments'!A:B,2,FALSE)","v":"Warnell Dean"},"25001DNO","","","","",""]
["25","251",null,null,"STF  - FOREST RESOURCES       ","1019TJ251001","16000","14400","11600","25001TEC",{"$f":"VLOOKUP(TRIM(J5883),'Transactional Departments'!A:B,2,FALSE)","v":"Warnell IT Services"},"25001TEC","","","","",""]
["25","251",null,null,"GDNR     RF ATL STURGEON PE272","1021CR251658","10000","12110","11200","25001DNO",{"$f":"VLOOKUP(TRIM(J5888),'Transactional Departments'!A:B,2,FALSE)","v":"Warnell Dean"},"25001DNO","","","","",""]
["25","251",null,null,"USDA     RF IPS BEETLE   GA272","1021CR251661","10000","12110","11200","25001DNO",{"$f":"VLOOKUP(TRIM(J5890),'Transactional Departments'!A:B,2,FALSE)","v":"Warnell Dean"},"25001DNO","","","","",""]
["25","251",null,null,"         FORESTRY FND    CLUTT","1021RR251378","20200","12100","67453","25001DNO",{"$f":"VLOOKUP(TRIM(J5895),'Transactional Departments'!A:B,2,FALSE)","v":"Warnell Dean"},"25001DNO","","","","",""]
["25","251",null,null,"         WHEATLEY PGM ENHSINHA","1021RR251383","20200","12100","","25001DNO",{"$f":"VLOOKUP(TRIM(J5897),'Transactional Departments'!A:B,2,FALSE)","v":"Warnell Dean"},"25001DNO","","","","",""]
["25","251",null,null,"GDNRUSDOIF&W RSCH UNIT   JENNI","1021RR251481","20400","12100","62016","25001DNO",{"$f":"VLOOKUP(TRIM(J5902),'Transactional Departments'!A:B,2,FALSE)","v":"Warnell Dean"},"25001DNO","","","","",""]
["25","251",null,null,"USDOE    RF CLUTTER_MARTIN    ","1021RR251549","20400","12100","61001","25001DNO",{"$f":"VLOOKUP(TRIM(J5907),'Transactional Departments'!A:B,2,FALSE)","v":"Warnell Dean"},"25001DNO","","","","",""]
["25","251",null,null,"         UGARF SUPPORT FOR RES","1021RX251900","20300","12100","64ICR","25001001",{"$f":"VLOOKUP(TRIM(J5913),'Transactional Departments'!A:B,2,FALSE)","v":"Warnell Sch Of For & Nat Res"},"25001001","","","","",""]
["25","251",null,null,"WOOD QUALITY ANALYSIS DAHLEN  ","1025DR251018","14100","12400","41500","25001DAH",{"$f":"VLOOKUP(TRIM(J5918),'Transactional Departments'!A:B,2,FALSE)","v":"Warnell Dahlen"},"25001DAH","","","","",""]
["25","251",null,null,"DSS CARRY FORWARD             ","1025DR251925","14100","12400","41500","25001001",{"$f":"VLOOKUP(TRIM(J5921),'Transactional Departments'!A:B,2,FALSE)","v":"Warnell Sch Of For & Nat Res"},"25001001","","","","",""]
["25","251",null,null,"SCHOOL FORESTRY & NATURAL RES ","1025GR251000","10500","12400","11800","25001001",{"$f":"VLOOKUP(TRIM(J5925),'Transactional Departments'!A:B,2,FALSE)","v":"Warnell Sch Of For & Nat Res"},"25001001","","","","",""]
["25","251",null,null,"FISHERIES SERVICE BRINGOLF    ","1026DR251008","14100","12200","41500","25001BRI",{"$f":"VLOOKUP(TRIM(J5930),'Transactional Departments'!A:B,2,FALSE)","v":"Warnell Bringolf"},"25001BRI","","","","",""]
["25","251",null,null,"WARNELL CONTINUING EDUCATION  ","1031DE251025","14100","13100","41500","25001CED",{"$f":"VLOOKUP(TRIM(J5936),'Transactional Departments'!A:B,2,FALSE)","v":"Warnell Continuing Educ"},"25001CED","","","","",""]
["25","251",null,null,"WARNELL CONT ED BETTINGER     ","1031DE251029","14100","13100","41500","25001BET",{"$f":"VLOOKUP(TRIM(J5937),'Transactional Departments'!A:B,2,FALSE)","v":"Warnell Bettinger"},"25001BET","","","","",""]
["25","251",null,null,"SCHOOL FORESTRY & NATURAL RES ","1046GT251000","10500","14600","11800","25001001",{"$f":"VLOOKUP(TRIM(J5945),'Transactional Departments'!A:B,2,FALSE)","v":"Warnell Sch Of For & Nat Res"},"25001001","","","","",""]
["25","251",null,null,"UGAF     FOREST RES STUD SINHA","1053RS251335","20200","15300","67711","25001DNO",{"$f":"VLOOKUP(TRIM(J5948),'Transactional Departments'!A:B,2,FALSE)","v":"Warnell Dean"},"25001DNO","","","","",""]
["25","251",null,null,"HYDROLOGY GEOLOGY SOILS OF GA ","9086GN251176","60000","","","25001DNO",{"$f":"VLOOKUP(TRIM(J5953),'Transactional Departments'!A:B,2,FALSE)","v":"Warnell Dean"},"25001DNO","","","","",""]
["25","251",null,null,"GFA MASTER TIMBER HARVSTER PGM","9086GN251233","60000","","","25001MTH",{"$f":"VLOOKUP(TRIM(J5954),'Transactional Departments'!A:B,2,FALSE)","v":"GFA Master Timber Harester Pgm"},"25001MTH","","","","",""]
["25","272",null,null,"GDNR/USDCRF VULNERABILTY NIBBE","2021CR272727","11320","12110","11200","25001DNO",{"$f":"VLOOKUP(TRIM(J5960),'Transactional Departments'!A:B,2,FALSE)","v":"Warnell Dean"},"25001DNO","","","","",""]
["25","272",null,null,"USDA     RF DISSEM TRENDSGREEN","2021RR272346","20400","12100","61002","25001DNO",{"$f":"VLOOKUP(TRIM(J5965),'Transactional Departments'!A:B,2,FALSE)","v":"Warnell Dean"},"25001DNO","","","","",""]
["25","272",null,null,"         RF GOPHERTORTOISYABSL","2021RR272398","20400","12100","64383","25001DNO",{"$f":"VLOOKUP(TRIM(J5969),'Transactional Departments'!A:B,2,FALSE)","v":"Warnell Dean"},"25001DNO","","","","",""]
["25","272",null,null,"         RF FIRE SCALE   COOPE","2021RR272443","20400","12100","64019","25001DNO",{"$f":"VLOOKUP(TRIM(J5972),'Transactional Departments'!A:B,2,FALSE)","v":"Warnell Dean"},"25001DNO","","","","",""]
["25","272",null,null,"USDA     RF FRSTLND OWNR DWIVE","2021RR272508","20400","12100","61002","25001DNO",{"$f":"VLOOKUP(TRIM(J5978),'Transactional Departments'!A:B,2,FALSE)","v":"Warnell Dean"},"25001DNO","","","","",""]
["25","272",null,null,"         MACROINVERTEBRT SHELT","2021RR272601","20400","12100","64081","25001DNO",{"$f":"VLOOKUP(TRIM(J5983),'Transactional Departments'!A:B,2,FALSE)","v":"Warnell Dean"},"25001DNO","","","","",""]
["25","272",null,null,"CI/HHS   RR715-259       LIPP ","2021RR272703","20400","12100","64100","25001DNO",{"$f":"VLOOKUP(TRIM(J5988),'Transactional Departments'!A:B,2,FALSE)","v":"Warnell Dean"},"25001DNO","","","","",""]
["25","272",null,null,"ACF      RF MASS PROPAG  MERKL","2021RR272723","20400","12100","64393","25001DNO",{"$f":"VLOOKUP(TRIM(J5992),'Transactional Departments'!A:B,2,FALSE)","v":"Warnell Dean"},"25001DNO","","","","",""]
["25","272",null,null,"GDNR/USDCRF VULNERABILTY NIBBE","2021RR272727","20400","12100","62016","25001DNO",{"$f":"VLOOKUP(TRIM(J5995),'Transactional Departments'!A:B,2,FALSE)","v":"Warnell Dean"},"25001DNO","","","","",""]
["25","272",null,null,"USDA     RF NANTAHALA    GREEN","2021RR272739","20400","12100","61003","25001DNO",{"$f":"VLOOKUP(TRIM(J6000),'Transactional Departments'!A:B,2,FALSE)","v":"Warnell Dean"},"25001DNO","","","","",""]
["25","272",null,null,"GDNR/USDCRF ATL STURGEON PETER","2021RR272745","20400","12100","62016","25001DNO",{"$f":"VLOOKUP(TRIM(J6002),'Transactional Departments'!A:B,2,FALSE)","v":"Warnell Dean"},"25001DNO","","","","",""]
["25","272",null,null,"         WILDLIFE ECOL   MAERZ","2021RR272774","20400","12100","64206","25001DNO",{"$f":"VLOOKUP(TRIM(J6007),'Transactional Departments'!A:B,2,FALSE)","v":"Warnell Dean"},"25001DNO","","","","",""]
["25","272",null,null,"FLFWLCC  AVIAN VACUOLAR  WILDE","2021RR272793","20400","12100","62554","25001DNO",{"$f":"VLOOKUP(TRIM(J6011),'Transactional Departments'!A:B,2,FALSE)","v":"Warnell Dean"},"25001DNO","","","","",""]
["25","272",null,null,"DOE      RF SAV RIV 12 RHODE  ","2021RR272819","20400","12100","61001","25001DNO",{"$f":"VLOOKUP(TRIM(J6018),'Transactional Departments'!A:B,2,FALSE)","v":"Warnell Dean"},"25001DNO","","","","",""]
["25","272",null,null,"IDC FORESTRY RESEARCH 272     ","2026AR272001","15320","12200","11500","25001001",{"$f":"VLOOKUP(TRIM(J6023),'Transactional Departments'!A:B,2,FALSE)","v":"Warnell Sch Of For & Nat Res"},"25001001","","","","",""]
["25","272",null,null,"FORESTRY F&A RETRN CASTLEBERRY","2026AR272141","15320","12200","11500","25001CAS",{"$f":"VLOOKUP(TRIM(J6026),'Transactional Departments'!A:B,2,FALSE)","v":"Warnell Castleberry"},"25001CAS","","","","",""]
["25","272",null,null,"FORS & NAT RES F&A RTN BENTON ","2026AR272181","15320","12200","11500","25001BEN",{"$f":"VLOOKUP(TRIM(J6030),'Transactional Departments'!A:B,2,FALSE)","v":"Warnell Benton"},"25001BEN","","","","",""]
["25","272",null,null,"FORESTRY F&A RETURN GROSSMAN  ","2026AR272231","15320","12200","11500","25001GRO",{"$f":"VLOOKUP(TRIM(J6035),'Transactional Departments'!A:B,2,FALSE)","v":"Warnell Grossman"},"25001GRO","","","","",""]
["25","272",null,null,"FORESTRY F&A RETURN MARKEWITZ ","2026AR272291","15320","12200","11500","25001MAR",{"$f":"VLOOKUP(TRIM(J6040),'Transactional Departments'!A:B,2,FALSE)","v":"Warnell Markewitz"},"25001MAR","","","","",""]
["25","272",null,null,"FORESTRY F&A RETURN MERKLE    ","2026AR272311","15320","12200","11500","25001MER",{"$f":"VLOOKUP(TRIM(J6042),'Transactional Departments'!A:B,2,FALSE)","v":"Warnell Merkle"},"25001MER","","","","",""]
["25","272",null,null,"FORESTRY F&A RETURN RASMUSSEN ","2026AR272381","15320","12200","11500","25001DNO",{"$f":"VLOOKUP(TRIM(J6049),'Transactional Departments'!A:B,2,FALSE)","v":"Warnell Dean"},"25001DNO","","","","",""]
["25","272",null,null,"FORS & NAT RES F&A RTN BUCKSCH","2026AR272441","15320","12200","11500","25001BUC",{"$f":"VLOOKUP(TRIM(J6053),'Transactional Departments'!A:B,2,FALSE)","v":"Warnell Bucksch"},"25001BUC","","","","",""]
["25","272",null,null,"FORESTRY F&A RETURN DWIVEDI   ","2026AR272491","15320","12200","11500","25001DWI",{"$f":"VLOOKUP(TRIM(J6058),'Transactional Departments'!A:B,2,FALSE)","v":"Warnell Dwivedi"},"25001DWI","","","","",""]
["25","272",null,null,"FORESTRY F&A RETURN YABSLEY   ","2026AR272501","15320","12200","11500","25001DNO",{"$f":"VLOOKUP(TRIM(J6059),'Transactional Departments'!A:B,2,FALSE)","v":"Warnell Dean"},"25001DNO","","","","",""]
["25","272",null,null,"FORS & NAT RES F&A RTN WOOSNAM","2026AR272561","15320","12200","11500","25001WOO",{"$f":"VLOOKUP(TRIM(J6065),'Transactional Departments'!A:B,2,FALSE)","v":"Warnell Woosnam"},"25001WOO","","","","",""]
["25","272",null,null,"FORS & NAT RES F&A RTN BEASLEY","2026AR272591","15320","12200","11500","25001BEA",{"$f":"VLOOKUP(TRIM(J6068),'Transactional Departments'!A:B,2,FALSE)","v":"Warnell Beasley"},"25001BEA","","","","",""]
["25","272",null,null,"FORESTRY F&A RETURN DZHAO     ","2026AR272781","15320","12200","11500","25001ZHA",{"$f":"VLOOKUP(TRIM(J6076),'Transactional Departments'!A:B,2,FALSE)","v":"Warnell Zhao"},"25001ZHA","","","","",""]
["25","272",null,null,"FORESTRY F&A RT L&F SPEC PROJS","2026AR272801","15320","12200","11500","25001L&F",{"$f":"VLOOKUP(TRIM(J6077),'Transactional Departments'!A:B,2,FALSE)","v":"Warnell Lands & Facilities"},"25001L&F","","","","",""]
["25","272",null,null,"FORESTRY RSCH DGREENE         ","2026GJ272910","11620","11140","11300","25001DNO",{"$f":"VLOOKUP(TRIM(J6082),'Transactional Departments'!A:B,2,FALSE)","v":"Warnell Dean"},"25001DNO","","","","",""]
["25","272",null,null,"FORESTRY & NAT RES RESEARCH   ","2026GR272000","11320","12200","11200","25001001",{"$f":"VLOOKUP(TRIM(J6088),'Transactional Departments'!A:B,2,FALSE)","v":"Warnell Sch Of For & Nat Res"},"25001001","","","","",""]
["25","272",null,null,"FORESTRY RSCH CASTLEBERRY     ","2026GR272140","11320","12200","11200","25001CAS",{"$f":"VLOOKUP(TRIM(J6093),'Transactional Departments'!A:B,2,FALSE)","v":"Warnell Castleberry"},"25001CAS","","","","",""]
["25","272",null,null,"FORESTRY RSCH GANDHI          ","2026GR272200","11320","12200","11200","25001GAN",{"$f":"VLOOKUP(TRIM(J6097),'Transactional Departments'!A:B,2,FALSE)","v":"Warnell Gandhi"},"25001GAN","","","","",""]
["25","272",null,null,"FORESTRY RSCH HARRIS          ","2026GR272240","11320","12200","11200","25001HAR",{"$f":"VLOOKUP(TRIM(J6100),'Transactional Departments'!A:B,2,FALSE)","v":"Warnell Harris"},"25001HAR","","","","",""]
["25","272",null,null,"FORESTRY RSCH HERNANDEZ       ","2026GR272300","11320","12200","11200","25001HER",{"$f":"VLOOKUP(TRIM(J6106),'Transactional Departments'!A:B,2,FALSE)","v":"Warnell Hernandez"},"25001HER","","","","",""]
["25","272",null,null,"FORESTRY RSCH MEI             ","2026GR272350","11320","12200","11200","25001MEI",{"$f":"VLOOKUP(TRIM(J6111),'Transactional Departments'!A:B,2,FALSE)","v":"Warnell Mei"},"25001MEI","","","","",""]
["25","272",null,null,"FORESTRY RSCH NIBBELINK       ","2026GR272360","11320","12200","11200","25001NIB",{"$f":"VLOOKUP(TRIM(J6112),'Transactional Departments'!A:B,2,FALSE)","v":"Warnell Nibbelink"},"25001NIB","","","","",""]
["25","272",null,null,"FORESTRY RSCH CHAMBERLAIN     ","2026GR272400","11320","12200","11200","25001CHM",{"$f":"VLOOKUP(TRIM(J6116),'Transactional Departments'!A:B,2,FALSE)","v":"Warnell Chamberlain"},"25001CHM","","","","",""]
["25","272",null,null,"FORESTRY RSCH YABSLEY         ","2026GR272500","11320","12200","11200","25001YAB",{"$f":"VLOOKUP(TRIM(J6123),'Transactional Departments'!A:B,2,FALSE)","v":"Warnell Yabsley"},"25001YAB","","","","",""]
["25","272",null,null,"FORS & NAT RES RSCH CONRAD    ","2026GR272550","11320","12200","11200","25001DNO",{"$f":"VLOOKUP(TRIM(J6128),'Transactional Departments'!A:B,2,FALSE)","v":"Warnell Dean"},"25001DNO","","","","",""]
["25","272",null,null,"FORESTRY RSCH CIESZEWSKI      ","2026GR272700","11320","12200","11200","25001CIE",{"$f":"VLOOKUP(TRIM(J6130),'Transactional Departments'!A:B,2,FALSE)","v":"Warnell Cieszewski"},"25001CIE","","","","",""]
["25","272",null,null,"FORESTRY RSCH GIS LAB         ","2026GR272860","11620","12200","11300","25001NIB",{"$f":"VLOOKUP(TRIM(J6135),'Transactional Departments'!A:B,2,FALSE)","v":"Warnell Nibbelink"},"25001NIB","","","","",""]
["25","272",null,null,"FORESTRY RESEARCH CONT STATE  ","2026GR272900","11320","12200","11200","25001CNT",{"$f":"VLOOKUP(TRIM(J6139),'Transactional Departments'!A:B,2,FALSE)","v":"Warnell Contingency"},"25001CNT","","","","",""]
["25","273",null,null,"FORESTRY & NAT RES SERVICE    ","2131AE273000","15325","13100","11500","25001DNO",{"$f":"VLOOKUP(TRIM(J6146),'Transactional Departments'!A:B,2,FALSE)","v":"Warnell Dean"},"25001DNO","","","","",""]
["25","273",null,null,"FORESTRY F&A RETURN BARGERON  ","2131AE273111","15325","13100","11500","25001BAR",{"$f":"VLOOKUP(TRIM(J6147),'Transactional Departments'!A:B,2,FALSE)","v":"Warnell Bargeron"},"25001BAR","","","","",""]
["25","273",null,null,"USDA     INVASIVE SPEC   BARGE","2131CE273244","11325","13120","11200","25001DNO",{"$f":"VLOOKUP(TRIM(J6154),'Transactional Departments'!A:B,2,FALSE)","v":"Warnell Dean"},"25001DNO","","","","",""]
["25","273",null,null,"WARNELL WHEP CONF MCCONNELL   ","2131DW273006","14325","13100","41500","25001MCC",{"$f":"VLOOKUP(TRIM(J6158),'Transactional Departments'!A:B,2,FALSE)","v":"Warnell McConnell"},"25001MCC","","","","",""]
["25","273",null,null,"FORESTRY COOP EXT IRWIN       ","2131GE273130","11325","13100","11200","25001IRW",{"$f":"VLOOKUP(TRIM(J6163),'Transactional Departments'!A:B,2,FALSE)","v":"Warnell KIrwin"},"25001IRW","","","","",""]
["25","273",null,null,"FORESTRY SVC & OUTRCH BENTON  ","2131GE273180","11325","13100","11200","25001DNO",{"$f":"VLOOKUP(TRIM(J6168),'Transactional Departments'!A:B,2,FALSE)","v":"Warnell Dean"},"25001DNO","","","","",""]
["25","273",null,null,"FORESTRY COOP EXT CONTINGENCY ","2131GE273900","11325","13100","11200","25001CNR",{"$f":"VLOOKUP(TRIM(J6170),'Transactional Departments'!A:B,2,FALSE)","v":"Warnell Conroy"},"25001CNR","","","","",""]
["25","273",null,null,"USDA     JACKSON W/353-420    ","2131RE273206","20400","13100","61002","25001DNO",{"$f":"VLOOKUP(TRIM(J6173),'Transactional Departments'!A:B,2,FALSE)","v":"Warnell Dean"},"25001DNO","","","","",""]
["25","273",null,null,"CALIPC   RF INVASIVE PLNTBARGE","2131RE273251","20400","13100","64000","25001DNO",{"$f":"VLOOKUP(TRIM(J6181),'Transactional Departments'!A:B,2,FALSE)","v":"Warnell Dean"},"25001DNO","","","","",""]
["25","273",null,null,"FORESTRY COOP EXT - OFFSET    ","2131RE273999","20400","13100","","25001DNO",{"$f":"VLOOKUP(TRIM(J6182),'Transactional Departments'!A:B,2,FALSE)","v":"Warnell Dean"},"25001DNO","","","","",""]
["26","064",null,null,"UGARF FAC RSCH CAPPS       551","1021RX064584","20300","12100","64F17","26000CAP",{"$f":"VLOOKUP(TRIM(J6187),'Transactional Departments'!A:B,2,FALSE)","v":"OSE Capps"},"26000CAP","","","","",""]
["26","551",null,null,"ECOLOGY COMPUTER LAB PRINTING ","1011DH551011","14100","11100","41500","26100PNT",{"$f":"VLOOKUP(TRIM(J6193),'Transactional Departments'!A:B,2,FALSE)","v":"OSE Printing"},"26100PNT","","","","",""]
["26","551",null,null,"DSS CARRY FORWARD             ","1011DV551925","14100","11100","41507","26100FCF",{"$f":"VLOOKUP(TRIM(J6198),'Transactional Departments'!A:B,2,FALSE)","v":{"$error":"#N/A"}},"26100FCF","","","","",""]
["26","551",null,null,"SCHOOL OF ECOLOGY             ","1011GK551000","10500","11100","11800","26000CSL",{"$f":"VLOOKUP(TRIM(J6201),'Transactional Departments'!A:B,2,FALSE)","v":"OSE Counseling"},"26000CSL","","","","",""]
["26","551",null,null,"UGAF     ECOLOGY FUND    GITTL","1011RH551506","20200","11100","67250","26000ADM",{"$f":"VLOOKUP(TRIM(J6205),'Transactional Departments'!A:B,2,FALSE)","v":"OSE Unit Administration"},"26000ADM","","","","",""]
["26","551",null,null,"NSF      RF REU POP BIO__DRAKE","1021BR551631","15000","12110","11500","26000ADM",{"$f":"VLOOKUP(TRIM(J6211),'Transactional Departments'!A:B,2,FALSE)","v":"OSE Unit Administration"},"26000ADM","","","","",""]
["26","551",null,null,"         ODUM H2P MAINT  FREEM","1021RR551220","20200","12100","67506","26000ADM",{"$f":"VLOOKUP(TRIM(J6216),'Transactional Departments'!A:B,2,FALSE)","v":"OSE Unit Administration"},"26000ADM","","","","",""]
["26","551",null,null,"NSF      RF PS W/551-230 EZENW","1021RR551231","20400","12100","61023","26000ADM",{"$f":"VLOOKUP(TRIM(J6217),'Transactional Departments'!A:B,2,FALSE)","v":"OSE Unit Administration"},"26000ADM","","","","",""]
["26","551",null,null,"NSF      RF SUP 100-621  ALBER","1021RR551537","20400","12100","61023","26000ADM",{"$f":"VLOOKUP(TRIM(J6225),'Transactional Departments'!A:B,2,FALSE)","v":"OSE Unit Administration"},"26000ADM","","","","",""]
["26","551",null,null,"NSF      RF PS 551-511        ","1021RR551546","20400","12100","61023","26000ADM",{"$f":"VLOOKUP(TRIM(J6228),'Transactional Departments'!A:B,2,FALSE)","v":"OSE Unit Administration"},"26000ADM","","","","",""]
["26","551",null,null,"UGAF     GA ATHLETIC ASC ALTIZ","1021RR551569","20200","12100","67509","26000ADM",{"$f":"VLOOKUP(TRIM(J6234),'Transactional Departments'!A:B,2,FALSE)","v":"OSE Unit Administration"},"26000ADM","","","","",""]
["26","551",null,null,"UPR/NSF  RF ENVIRO PR    PRING","1021RR551574","20400","12100","62558","26000ADM",{"$f":"VLOOKUP(TRIM(J6235),'Transactional Departments'!A:B,2,FALSE)","v":"OSE Unit Administration"},"26000ADM","","","","",""]
["26","551",null,null,"UGAF     GRAD STUDENT SUPGITTL","1021RR551593","20200","12100","","26000ADM",{"$f":"VLOOKUP(TRIM(J6240),'Transactional Departments'!A:B,2,FALSE)","v":"OSE Unit Administration"},"26000ADM","","","","",""]
["26","551",null,null,"GA TECH  RF RF_LINKING WACAPPS","1021RR551618","20400","12100","64279","26000ADM",{"$f":"VLOOKUP(TRIM(J6244),'Transactional Departments'!A:B,2,FALSE)","v":"OSE Unit Administration"},"26000ADM","","","","",""]
["26","551",null,null,"         UGARF SUPPORT A&S ECO","1021RX551900","20300","12100","64ICR","26000ARF",{"$f":"VLOOKUP(TRIM(J6251),'Transactional Departments'!A:B,2,FALSE)","v":"OSE UGARF Indirect"},"26000ARF","","","","",""]
["26","551",null,null,"RESIDUAL #551 CARRO           ","1021RX551950","20400","12100","64RBP","26000RES",{"$f":"VLOOKUP(TRIM(J6252),'Transactional Departments'!A:B,2,FALSE)","v":"OSE Residual"},"26000RES","","","","",""]
["26","551",null,null,"STARTUP FUNDS CAPPS           ","1025AR551015","15000","12400","11500","26000CAP",{"$f":"VLOOKUP(TRIM(J6258),'Transactional Departments'!A:B,2,FALSE)","v":"OSE Capps"},"26000CAP","","","","",""]
["26","551",null,null,"SCHOOL OF ECOLOGY             ","1025GR551000","10500","12400","11800","26000ADM",{"$f":"VLOOKUP(TRIM(J6263),'Transactional Departments'!A:B,2,FALSE)","v":"OSE Unit Administration"},"26000ADM","","","","",""]
["26","551",null,null,"SCHOOL OF ECOLOGY             ","1026GR551000","10500","12200","11800","26000ADM",{"$f":"VLOOKUP(TRIM(J6268),'Transactional Departments'!A:B,2,FALSE)","v":"OSE Unit Administration"},"26000ADM","","","","",""]
["26","551",null,null,"ECOLOGY OUTREACH              ","1031DE551010","14100","13100","41500","26100OUT",{"$f":"VLOOKUP(TRIM(J6270),'Transactional Departments'!A:B,2,FALSE)","v":"OSE Outreach"},"26100OUT","","","","",""]
["26","551",null,null,"SCHOOL OF ECOLOGY             ","1046GT551000","10500","14600","11800","26000ADM",{"$f":"VLOOKUP(TRIM(J6275),'Transactional Departments'!A:B,2,FALSE)","v":"OSE Unit Administration"},"26000ADM","","","","",""]
["26","551",null,null,"INSTITUTE OF ECOLOGY KEY ACCT ","9084GN551037","60000","","","26100KEY",{"$f":"VLOOKUP(TRIM(J6282),'Transactional Departments'!A:B,2,FALSE)","v":"OSE Key Account"},"26100KEY","","","","",""]
["27","252",null,null,"DSS CARRY FORWARD             ","1011DH252925","14100","11100","41500","27002901",{"$f":"VLOOKUP(TRIM(J6286),'Transactional Departments'!A:B,2,FALSE)","v":"DSS CarryForward"},"27002901","","","","",""]
["27","252",null,null,"GRADUATE SCHOOL               ","1011GJ252000","10500","11140","11800","27002000",{"$f":"VLOOKUP(TRIM(J6287),'Transactional Departments'!A:B,2,FALSE)","v":"Graduate Sch Admin"},"27002000","","","","",""]
["27","252",null,null,"         UGA FND S/S GRAD     ","1011RH252001","20200","11100","67170","27002000",{"$f":"VLOOKUP(TRIM(J6291),'Transactional Departments'!A:B,2,FALSE)","v":"Graduate Sch Admin"},"27002000","","","","",""]
["27","252",null,null,"ILS INDIRECT COST ACCOUNT     ","1025AR252001","15000","12400","11500","27002000",{"$f":"VLOOKUP(TRIM(J6298),'Transactional Departments'!A:B,2,FALSE)","v":"Graduate Sch Admin"},"27002000","","","","",""]
["27","252",null,null,"TOXICOLOGY                    ","1025GR252015","10500","12400","11800","27003001",{"$f":"VLOOKUP(TRIM(J6301),'Transactional Departments'!A:B,2,FALSE)","v":"Tox Admin"},"27003001","","","","",""]
["27","252",null,null,"GRAD SCHOOL DEV ACCOUNT       ","1065GA252016","10500","16600","11800","27002008",{"$f":"VLOOKUP(TRIM(J6305),'Transactional Departments'!A:B,2,FALSE)","v":"Development"},"27002008","","","","",""]
["27","253",null,null,"GRAD SCHOOL APPLICATION FEE   ","1055GS253003","10000","15500","11200","27002601",{"$f":"VLOOKUP(TRIM(J6310),'Transactional Departments'!A:B,2,FALSE)","v":"Student Travel Awards"},"27002601","","","","",""]
["28","257",null,null,"COLL OF JOURNALISM & MASS COMM","1011DH257000","14100","11100","41500","28100105",{"$f":"VLOOKUP(TRIM(J6315),'Transactional Departments'!A:B,2,FALSE)","v":"Grady Dept Sales"},"28100105","","","","",""]
["28","257",null,null,"GRADY PRE-MED MAGAZINE        ","1011DH257031","14100","11100","41500","28600106",{"$f":"VLOOKUP(TRIM(J6321),'Transactional Departments'!A:B,2,FALSE)","v":"Grady Pre-Med Magazine"},"28600106","","","","",""]
["28","257",null,null,"TALKING DOG                   ","1011DH257032","14100","11100","41500","28100600",{"$f":"VLOOKUP(TRIM(J6322),'Transactional Departments'!A:B,2,FALSE)","v":"CJMC Transition Payroll Split Conv"},"28100600","","","","",""]
["28","257",null,null,"SATC FIELD STUDY SUM          ","1011DV257052","14100","11100","41507","28400152",{"$f":"VLOOKUP(TRIM(J6329),'Transactional Departments'!A:B,2,FALSE)","v":"SAT Circus Field Study"},"28400152","18000","NFSTY1035SU17  ","100","",""]
["28","257",null,null,"TRAVEL WRITING IN DUBLIN      ","1011DV257075","14100","11100","41507","28600157",{"$f":"VLOOKUP(TRIM(J6333),'Transactional Departments'!A:B,2,FALSE)","v":"Travel Journalism Dublin"},"28600157","18000","NSABD1183MM18  ","100","",""]
["28","257",null,null,"COLL OF JOURNALISM & MASS COMM","1011GH257000","10500","11100","11800","28100100",{"$f":"VLOOKUP(TRIM(J6339),'Transactional Departments'!A:B,2,FALSE)","v":"Dean's Administration"},"28100100","","","","",""]
["28","257",null,null,"COLL OF JOURNISM MFA          ","1011GH257002","10000","11100","11200","28300200",{"$f":"VLOOKUP(TRIM(J6340),'Transactional Departments'!A:B,2,FALSE)","v":"MFA Narrative/Screenwriting"},"28300200","","","","",""]
["28","257",null,null,"COLL OF JOURNALISM & MASS COMM","1011GJ257000","10500","11140","11800","28100100",{"$f":"VLOOKUP(TRIM(J6345),'Transactional Departments'!A:B,2,FALSE)","v":"Dean's Administration"},"28100100","","","","",""]
["28","257",null,null,"GRADY LA FIELD STUDY          ","1011GV257043","10500","11100","11800","28500156",{"$f":"VLOOKUP(TRIM(J6348),'Transactional Departments'!A:B,2,FALSE)","v":"Grady LA"},"28500156","18000","NFSTY1022SU17  ","100","",""]
["28","257",null,null,"         GRIMES EXP FUND DAVIS","1011RH257103","20200","11100","67183","28100600",{"$f":"VLOOKUP(TRIM(J6356),'Transactional Departments'!A:B,2,FALSE)","v":"CJMC Transition Payroll Split Conv"},"28100600","","","","",""]
["28","257",null,null,"UGAF     LAMBDIN KAY FND DAVIS","1011RH257111","20200","11100","67184","28100600",{"$f":"VLOOKUP(TRIM(J6357),'Transactional Departments'!A:B,2,FALSE)","v":"CJMC Transition Payroll Split Conv"},"28100600","","","","",""]
["28","257",null,null,"UGAF     YARBROUGH PROF  DAVIS","1011RH257166","20200","11100","67188","28100600",{"$f":"VLOOKUP(TRIM(J6362),'Transactional Departments'!A:B,2,FALSE)","v":"CJMC Transition Payroll Split Conv"},"28100600","","","","",""]
["28","257",null,null,"UGAF     CARMICAL SPORTS DAVIS","1011RH257200","20200","11100","67193","28100600",{"$f":"VLOOKUP(TRIM(J6368),'Transactional Departments'!A:B,2,FALSE)","v":"CJMC Transition Payroll Split Conv"},"28100600","","","","",""]
["28","257",null,null,"UGAF     JOURNLSM ED FND DAVIS","1011RH257211","20200","11100","67197","28100600",{"$f":"VLOOKUP(TRIM(J6372),'Transactional Departments'!A:B,2,FALSE)","v":"CJMC Transition Payroll Split Conv"},"28100600","","","","",""]
["28","257",null,null,"NCBJ/AZ  VISITING PROF   HERND","1011RH257215","20400","11100","62533","28100600",{"$f":"VLOOKUP(TRIM(J6375),'Transactional Departments'!A:B,2,FALSE)","v":"CJMC Transition Payroll Split Conv"},"28100600","","","","",""]
["28","257",null,null,"UGAF     ADPR CONNECTION DAVIS","1011RH257242","20200","11100","","28100600",{"$f":"VLOOKUP(TRIM(J6380),'Transactional Departments'!A:B,2,FALSE)","v":"CJMC Transition Payroll Split Conv"},"28100600","","","","",""]
["28","257",null,null,"UGAF     TEN INNOVATION       ","1021RR257176","20200","12100","67470","28100600",{"$f":"VLOOKUP(TRIM(J6386),'Transactional Departments'!A:B,2,FALSE)","v":"CJMC Transition Payroll Split Conv"},"28100600","","","","",""]
["28","257",null,null,"UGAF     KENNEDY PROF #1 DAVIS","1021RR257196","20200","12100","67475","28100600",{"$f":"VLOOKUP(TRIM(J6391),'Transactional Departments'!A:B,2,FALSE)","v":"CJMC Transition Payroll Split Conv"},"28100600","","","","",""]
["28","257",null,null,"U WISC   RF PEABODY ARCH JONES","1021RR257224","20400","12100","62518","28100600",{"$f":"VLOOKUP(TRIM(J6396),'Transactional Departments'!A:B,2,FALSE)","v":"CJMC Transition Payroll Split Conv"},"28100600","","","","",""]
["28","257",null,null,"UGAF     PR EDUCATION    DAVIS","1021RR257241","20200","12100","","28100600",{"$f":"VLOOKUP(TRIM(J6398),'Transactional Departments'!A:B,2,FALSE)","v":"CJMC Transition Payroll Split Conv"},"28100600","","","","",""]
["28","257",null,null,"ADPR                          ","1025GR257076","10000","12400","11200","28400100",{"$f":"VLOOKUP(TRIM(J6403),'Transactional Departments'!A:B,2,FALSE)","v":"ADPR Administration"},"28400100","","","","",""]
["28","257",null,null,"JOUR                          ","1025GR257078","10000","12400","11200","28600100",{"$f":"VLOOKUP(TRIM(J6405),'Transactional Departments'!A:B,2,FALSE)","v":"JOUR Administration"},"28600100","","","","",""]
["28","257",null,null,"BLUEJEANS WORKSHOP            ","1031DW257003","14100","13100","41500","28100600",{"$f":"VLOOKUP(TRIM(J6410),'Transactional Departments'!A:B,2,FALSE)","v":"CJMC Transition Payroll Split Conv"},"28100600","","","","",""]
["28","257",null,null,"GAB NATIONAL RADIO INSTITUTE  ","1031DW257022","14100","13100","41500","28100504",{"$f":"VLOOKUP(TRIM(J6415),'Transactional Departments'!A:B,2,FALSE)","v":"GAB National Radio Institute"},"28100504","","","","",""]
["28","257",null,null,"ADPR BUSINESS COMMUNICATION   ","1031EE257002","14000","13100","40000","28400112",{"$f":"VLOOKUP(TRIM(J6419),'Transactional Departments'!A:B,2,FALSE)","v":"ADPR Business Comm"},"28400112","","","","",""]
["28","257",null,null,"PEABODY                       ","1031GE257016","10500","13100","11800","28700100",{"$f":"VLOOKUP(TRIM(J6426),'Transactional Departments'!A:B,2,FALSE)","v":"Peabody Administration"},"28700100","","","","",""]
["28","257",null,null,"UGAF     LOYLESS PEABODY DAVIS","1031RE257150","20200","13100","67595","28100600",{"$f":"VLOOKUP(TRIM(J6429),'Transactional Departments'!A:B,2,FALSE)","v":"CJMC Transition Payroll Split Conv"},"28100600","","","","",""]
["28","257",null,null,"ASU      INTERN 10WKS    HERND","1031RE257223","20400","13100","62533","28100600",{"$f":"VLOOKUP(TRIM(J6433),'Transactional Departments'!A:B,2,FALSE)","v":"CJMC Transition Payroll Split Conv"},"28100600","","","","",""]
["28","257",null,null,"G F PEABODY 17 BROADCAST      ","1031RX257236","20400","13100","64551","28700301",{"$f":"VLOOKUP(TRIM(J6438),'Transactional Departments'!A:B,2,FALSE)","v":"Peabody Broadcast 17"},"28700301","","","","",""]
["28","257",null,null,"COLL OF JOURNALISM & MASS COMM","1099GN257000","10000","","11200","28100600",{"$f":"VLOOKUP(TRIM(J6443),'Transactional Departments'!A:B,2,FALSE)","v":"CJMC Transition Payroll Split Conv"},"28100600","","","","",""]
["28","257",null,null,"KAPPA TAU ALPHA               ","9086GN257004","60000","","","28100108",{"$f":"VLOOKUP(TRIM(J6445),'Transactional Departments'!A:B,2,FALSE)","v":"Kappa Tau Alpha"},"28100108","","","","",""]
["28","733",null,null,"         UGARF SUPPORT   PETER","1021RX733900","20300","12100","64ICR","28800100",{"$f":"VLOOKUP(TRIM(J6450),'Transactional Departments'!A:B,2,FALSE)","v":"NMI Administration"},"28800100","","","","",""]
["29","081",null,null,"COIN OPERATED COPY SERVICES   ","1041DT081001","14100","14100","41500","29002100",{"$f":"VLOOKUP(TRIM(J6457),'Transactional Departments'!A:B,2,FALSE)","v":"Law Library Operating"},"29002100","","","","",""]
["29","081",null,null,"         LOKEY-BOWDEN BOOD    ","1041RT081003","20400","14100","65769","29002100",{"$f":"VLOOKUP(TRIM(J6461),'Transactional Departments'!A:B,2,FALSE)","v":"Law Library Operating"},"29002100","","","","",""]
["29","081",null,null,"         ENDOWMENT       PUCKE","1041RT081005","20200","14100","","29002100",{"$f":"VLOOKUP(TRIM(J6462),'Transactional Departments'!A:B,2,FALSE)","v":"Law Library Operating"},"29002100","","","","",""]
["29","258",null,null,"JOURNAL OF INTELL PROP LAW    ","1011DH258023","14100","11100","41500","29001010",{"$f":"VLOOKUP(TRIM(J6468),'Transactional Departments'!A:B,2,FALSE)","v":"Law School General"},"29001010","","","","",""]
["29","258",null,null,"DSS CARRY FORWARD             ","1011DV258925","14100","11100","41507","29001102",{"$f":"VLOOKUP(TRIM(J6473),'Transactional Departments'!A:B,2,FALSE)","v":"Law Study Abroad In Europe"},"29001102","","","","",""]
["29","258",null,null,"COCURRICULAR ACTIVITIES       ","1011GH258005","10500","11100","11800","29001040",{"$f":"VLOOKUP(TRIM(J6476),'Transactional Departments'!A:B,2,FALSE)","v":"Advocacy"},"29001040","","","","",""]
["29","258",null,null,"SABBATICAL                    ","1011GH258065","10000","11100","11200","29001010",{"$f":"VLOOKUP(TRIM(J6480),'Transactional Departments'!A:B,2,FALSE)","v":"Law School General"},"29001010","","","","","LSSABBATCL"]
["29","258",null,null,"LAW EVENTS                    ","1011GJ258070","10000","11140","11200","29001090",{"$f":"VLOOKUP(TRIM(J6485),'Transactional Departments'!A:B,2,FALSE)","v":"Events"},"29001090","","","","",""]
["29","258",null,null,"         TALMADGE CHAIR       ","1011RH258078","20200","11100","67203","29001010",{"$f":"VLOOKUP(TRIM(J6490),'Transactional Departments'!A:B,2,FALSE)","v":"Law School General"},"29001010","","","","",""]
["29","258",null,null,"         HOSCH PROF #5        ","1011RH258114","20200","11100","67209","29001010",{"$f":"VLOOKUP(TRIM(J6496),'Transactional Departments'!A:B,2,FALSE)","v":"Law School General"},"29001010","","","","",""]
["29","258",null,null,"UGAF     SMITH PROF LAW  WHITE","1011RH258210","20200","11100","67213","29001010",{"$f":"VLOOKUP(TRIM(J6500),'Transactional Departments'!A:B,2,FALSE)","v":"Law School General"},"29001010","","","","",""]
["29","258",null,null,"UGAF     KILPATRICK CH   WHITE","1011RH258218","20200","11100","67216","29001010",{"$f":"VLOOKUP(TRIM(J6503),'Transactional Departments'!A:B,2,FALSE)","v":"Law School General"},"29001010","","","","",""]
["29","258",null,null,"UGAF     RUSK INTL LAW CNRUTLE","1011RH258229","20200","11100","67221","29001010",{"$f":"VLOOKUP(TRIM(J6508),'Transactional Departments'!A:B,2,FALSE)","v":"Law School General"},"29001010","","","","",""]
["29","258",null,null,"         CHAIR SIBLEY UGF     ","1011RH258741","20200","11100","67227","29001010",{"$f":"VLOOKUP(TRIM(J6514),'Transactional Departments'!A:B,2,FALSE)","v":"Law School General"},"29001010","","","","",""]
["29","258",null,null,"         CHAIR CARTER UGF     ","1011RH258746","20200","11100","67228","29001010",{"$f":"VLOOKUP(TRIM(J6515),'Transactional Departments'!A:B,2,FALSE)","v":"Law School General"},"29001010","","","","",""]
["29","258",null,null,"ROYALTIES MISC LAW SCHOOL  258","1011RX258228","20400","11100","64206","29001010",{"$f":"VLOOKUP(TRIM(J6520),'Transactional Departments'!A:B,2,FALSE)","v":"Law School General"},"29001010","","","","",""]
["29","258",null,null,"SCHOOL OF LAW                 ","1025GR258000","10500","12400","11800","29001010",{"$f":"VLOOKUP(TRIM(J6523),'Transactional Departments'!A:B,2,FALSE)","v":"Law School General"},"29001010","","","","",""]
["29","258",null,null,"SCHOOL OF LAW-RED CLAY CONF   ","1031DW258014","14100","13100","41500","29009020",{"$f":"VLOOKUP(TRIM(J6531),'Transactional Departments'!A:B,2,FALSE)","v":"Red Clay Conference"},"29009020","","","","",""]
["29","258",null,null,"GA LAW REVIEW CONF            ","1031DW258016","14100","13100","41500","29004100",{"$f":"VLOOKUP(TRIM(J6533),'Transactional Departments'!A:B,2,FALSE)","v":"Georgia Law Review Conferences"},"29004100","","","","",""]
["29","258",null,null,"AOOTC    ICJE GA FY15    REAVE","1031RE258219","20400","13100","62031","29001010",{"$f":"VLOOKUP(TRIM(J6538),'Transactional Departments'!A:B,2,FALSE)","v":"Law School General"},"29001010","","","","",""]
["29","258",null,null,"SCHOOL OF LAW                 ","1046GT258000","10500","14600","11800","29001010",{"$f":"VLOOKUP(TRIM(J6543),'Transactional Departments'!A:B,2,FALSE)","v":"Law School General"},"29001010","","","","",""]
["29","258",null,null,"SCHOOL OF LAW                 ","1056GS258000","10500","15600","11800","29001010",{"$f":"VLOOKUP(TRIM(J6547),'Transactional Departments'!A:B,2,FALSE)","v":"Law School General"},"29001010","","","","",""]
["29","258",null,null,"GEORGIA LAW REVIEW            ","9082GN258001","60000","","","29001010",{"$f":"VLOOKUP(TRIM(J6550),'Transactional Departments'!A:B,2,FALSE)","v":"Law School General"},"29001010","","","","",""]
["29","259",null,null,"         ICLE FY2014     JONES","1031RE259020","20400","13100","64304","29003000",{"$f":"VLOOKUP(TRIM(J6557),'Transactional Departments'!A:B,2,FALSE)","v":"Inst. Continuing Judicial Educ"},"29003000","","","","",""]
["29","375",null,null,"         LOKEY & BOWDEN BOOK  ","4111RH375769","20400","11100","65769","29001010",{"$f":"VLOOKUP(TRIM(J6561),'Transactional Departments'!A:B,2,FALSE)","v":"Law School General"},"29001010","","","","",""]
["29","568",null,null,"LAW SCHOOL COFFEE SHOP        ","5530GN568000","12220","22100","42100","29007000",{"$f":"VLOOKUP(TRIM(J6566),'Transactional Departments'!A:B,2,FALSE)","v":"Coffee Shop"},"29007000","","","","",""]
["30","262",null,null,"DSS CARRY FORWARD             ","1011DH262925","14100","11100","41500","30101900",{"$f":"VLOOKUP(TRIM(J6571),'Transactional Departments'!A:B,2,FALSE)","v":"COP S&S Carry Forward"},"30101900","","","","",""]
["30","262",null,null,"COLLEGE OF PHARMACY           ","1011GH262001","10500","11100","11800","30201001",{"$f":"VLOOKUP(TRIM(J6573),'Transactional Departments'!A:B,2,FALSE)","v":"Associate Dean Operations"},"30201001","","","","",""]
["30","262",null,null,"COP-EXPERIENCE PROGRAM        ","1011GH262020","10500","11100","11800","30701001",{"$f":"VLOOKUP(TRIM(J6578),'Transactional Departments'!A:B,2,FALSE)","v":"Experience Progams Operations"},"30701001","","","","",""]
["30","262",null,null,"COLLEGE OF PHARMACY           ","1011GJ262000","10500","11140","11800","30101001",{"$f":"VLOOKUP(TRIM(J6580),'Transactional Departments'!A:B,2,FALSE)","v":"COP Dean's Office Operations"},"30101001","","","","",""]
["30","262",null,null,"COP-EXPERIENCE PROGRAM        ","1011GJ262020","10500","11140","11800","30701001",{"$f":"VLOOKUP(TRIM(J6585),'Transactional Departments'!A:B,2,FALSE)","v":"Experience Progams Operations"},"30701001","","","","",""]
["30","262",null,null,"UGAF     PHRMACY SPECIAL OIE  ","1011RH262400","20200","11100","","30101001",{"$f":"VLOOKUP(TRIM(J6590),'Transactional Departments'!A:B,2,FALSE)","v":"COP Dean's Office Operations"},"30101001","","","","",""]
["30","262",null,null,"UGAF     STUDENT AFFAIRS OIE  ","1021RR262045","20200","12100","67481","30101001",{"$f":"VLOOKUP(TRIM(J6596),'Transactional Departments'!A:B,2,FALSE)","v":"COP Dean's Office Operations"},"30101001","","","","",""]
["30","262",null,null,"UGAF     MILLIKEN-REEVE  OIE  ","1021RR262394","20200","12100","67485","30101001",{"$f":"VLOOKUP(TRIM(J6601),'Transactional Departments'!A:B,2,FALSE)","v":"COP Dean's Office Operations"},"30101001","","","","",""]
["30","262",null,null,"UGAF     EXTERN AFFAIR OIOIE  ","1021RR262401","20200","12100","67488","30101001",{"$f":"VLOOKUP(TRIM(J6604),'Transactional Departments'!A:B,2,FALSE)","v":"COP Dean's Office Operations"},"30101001","","","","",""]
["30","262",null,null,"UGAF     CHU FAM FC TRV  OIE  ","1021RR262407","20200","12100","67492","30101001",{"$f":"VLOOKUP(TRIM(J6608),'Transactional Departments'!A:B,2,FALSE)","v":"COP Dean's Office Operations"},"30101001","","","","",""]
["30","262",null,null,"COLLEGE OF PHARMACY-SERT      ","1025AR262004","15000","12400","11500","30401201",{"$f":"VLOOKUP(TRIM(J6613),'Transactional Departments'!A:B,2,FALSE)","v":"AD SERT - Indirect Cost"},"30401201","","","","",""]
["30","262",null,null,"COLLEGE OF PHARMACY           ","1031GE262000","10500","13100","11800","30101001",{"$f":"VLOOKUP(TRIM(J6618),'Transactional Departments'!A:B,2,FALSE)","v":"COP Dean's Office Operations"},"30101001","","","","",""]
["30","262",null,null,"UGAF     SPECIAL PROJECT OIE  ","1031RE262379","20200","13100","67598","30101001",{"$f":"VLOOKUP(TRIM(J6620),'Transactional Departments'!A:B,2,FALSE)","v":"COP Dean's Office Operations"},"30101001","","","","",""]
["30","262",null,null,"PHARMACY - TECHNOLOGY SUPPORT ","1044GT262026","10500","14400","11800","30101020",{"$f":"VLOOKUP(TRIM(J6628),'Transactional Departments'!A:B,2,FALSE)","v":"Administrative and Technology"},"30101020","","","","",""]
["30","262",null,null,"STUDENT AFFAIRS-SALES & SERV  ","1053DW262003","14100","15300","41500","30202901",{"$f":"VLOOKUP(TRIM(J6631),'Transactional Departments'!A:B,2,FALSE)","v":"SA Sales & Services"},"30202901","","","","",""]
["30","262",null,null,"COLLEGE OF PHARMACY           ","1099GN262000","10500","","11800","30101001",{"$f":"VLOOKUP(TRIM(J6636),'Transactional Departments'!A:B,2,FALSE)","v":"COP Dean's Office Operations"},"30101001","","","","",""]
["30","262",null,null,"COP-EXPERIENCE PROG GWINNETT  ","1611GH262036","10500","11100","11800","30701001",{"$f":"VLOOKUP(TRIM(J6637),'Transactional Departments'!A:B,2,FALSE)","v":"Experience Progams Operations"},"30701001","","","","GWI",""]
["30","571",null,null,"PBS LAB/SUPPLY FEES-BS PROG   ","1011DH571003","14100","11100","41500","30301902",{"$f":"VLOOKUP(TRIM(J6643),'Transactional Departments'!A:B,2,FALSE)","v":"PBS BS Program Lab Fees"},"30301902","","","","",""]
["30","571",null,null,"PBS-B.S. PROGRAM              ","1011GJ571007","10000","11140","11200","30301020",{"$f":"VLOOKUP(TRIM(J6648),'Transactional Departments'!A:B,2,FALSE)","v":"PBS BS Program"},"30301020","","","","",""]
["30","571",null,null,"UGAF     COP TOXICOLOGY  OIE  ","1021RR571242","20200","12100","67512","30301001",{"$f":"VLOOKUP(TRIM(J6651),'Transactional Departments'!A:B,2,FALSE)","v":"PBS Operations"},"30301001","","","","",""]
["30","571",null,null,"NIH      RF PRBVOTU CCHFVPEGAN","1021RR571254","20400","12100","61018","30301001",{"$f":"VLOOKUP(TRIM(J6655),'Transactional Departments'!A:B,2,FALSE)","v":"PBS Operations"},"30301001","","","","",""]
["30","571",null,null,"NIH      RF INGR W/571249CAI  ","1021RR571399","20400","12100","61018","30301001",{"$f":"VLOOKUP(TRIM(J6661),'Transactional Departments'!A:B,2,FALSE)","v":"PBS Operations"},"30301001","","","","",""]
["30","571",null,null,"AHA      RF BRAIN        YAO  ","1021RR571428","20400","12100","64127","30301001",{"$f":"VLOOKUP(TRIM(J6666),'Transactional Departments'!A:B,2,FALSE)","v":"PBS Operations"},"30301001","","","","",""]
["30","571",null,null,"UGARF ROYALTY INV RSCH   NAIR ","1021RX571228","20300","12100","64URF","30301001",{"$f":"VLOOKUP(TRIM(J6671),'Transactional Departments'!A:B,2,FALSE)","v":"PBS Operations"},"30301001","","","","",""]
["30","571",null,null,"PBS - STARTUP FUNDS           ","1025AR571003","15000","12400","11500","30301101",{"$f":"VLOOKUP(TRIM(J6675),'Transactional Departments'!A:B,2,FALSE)","v":"Dexi Lui"},"30301101","","","","",""]
["30","571",null,null,"PHARMACY - PBS                ","1025GR571005","10000","12400","11200","30301101",{"$f":"VLOOKUP(TRIM(J6678),'Transactional Departments'!A:B,2,FALSE)","v":"Dexi Lui"},"30301101","","","","",""]
["30","571",null,null,"UGA AU SEED MURPH             ","1925GR571009","10800","12400","11200","30301001",{"$f":"VLOOKUP(TRIM(J6683),'Transactional Departments'!A:B,2,FALSE)","v":"PBS Operations"},"30301001","","","","",""]
["30","572",null,null,"DIV NON-TRAD EDUC & OUTREACH  ","1031GE572000","10500","13100","11800","30203001",{"$f":"VLOOKUP(TRIM(J6689),'Transactional Departments'!A:B,2,FALSE)","v":"NTEO Operations"},"30203001","","","","",""]
["30","572",null,null,"RESIDUAL BALANCE NTEO #572    ","1031RX572950","20400","13100","64RBP","30203001",{"$f":"VLOOKUP(TRIM(J6690),'Transactional Departments'!A:B,2,FALSE)","v":"NTEO Operations"},"30203001","","","","",""]
["30","575",null,null,"CAP - SALES & SERVICE         ","1011DH575004","14100","11100","41500","30501901",{"$f":"VLOOKUP(TRIM(J6694),'Transactional Departments'!A:B,2,FALSE)","v":"CAP Sales & Services"},"30501901","","","","",""]
["30","575",null,null,"CAP - ALBANY                  ","1011GJ575003","10500","11140","11800","30501020",{"$f":"VLOOKUP(TRIM(J6701),'Transactional Departments'!A:B,2,FALSE)","v":"CAP Albany"},"30501020","","","","",""]
["30","575",null,null,"USVA     RF PILLAI       FAGAN","1021RR575216","20400","12100","61000","30501001",{"$f":"VLOOKUP(TRIM(J6706),'Transactional Departments'!A:B,2,FALSE)","v":"CAP Operations"},"30501001","","","","",""]
["30","575",null,null,"NIH      RF MM DIAB RETN      ","1021RR575224","20400","12100","61018","30501001",{"$f":"VLOOKUP(TRIM(J6708),'Transactional Departments'!A:B,2,FALSE)","v":"CAP Operations"},"30501001","","","","",""]
["30","575",null,null,"CAP - AUGUSTA                 ","1025GR575002","10500","12400","11800","30501002",{"$f":"VLOOKUP(TRIM(J6713),'Transactional Departments'!A:B,2,FALSE)","v":"CAP Salary Savings"},"30501002","","","","",""]
["31","064",null,null,"UGARF FAC RSCH LAUCKNER    766","1021RX064565","20300","12100","64F17","31075LAU",{"$f":"VLOOKUP(TRIM(J6718),'Transactional Departments'!A:B,2,FALSE)","v":"UGARF FAC RSCH Lauckner"},"31075LAU","","","","",""]
["31","546",null,null,"GERONTOLOGY                   ","1011GJ546000","10500","11140","11800","31050001",{"$f":"VLOOKUP(TRIM(J6724),'Transactional Departments'!A:B,2,FALSE)","v":"IOG Rollup"},"31050001","","","","",""]
["31","546",null,null,"GERONTOLOGY ADMINISTRATION    ","1011GJ546003","10500","11140","11800","31050001",{"$f":"VLOOKUP(TRIM(J6725),'Transactional Departments'!A:B,2,FALSE)","v":"IOG Rollup"},"31050001","","","","",""]
["31","546",null,null,"GERONTOLOGY INDIRECT COST REC ","1026AR546001","15000","12200","11500","31050001",{"$f":"VLOOKUP(TRIM(J6732),'Transactional Departments'!A:B,2,FALSE)","v":"IOG Rollup"},"31050001","","","","",""]
["31","715",null,null,"ENVIRONMENTAL HEALTH SCI      ","1011GJ715000","10500","11140","11800","31030001",{"$f":"VLOOKUP(TRIM(J6736),'Transactional Departments'!A:B,2,FALSE)","v":"EHS Rollup"},"31030001","","","","",""]
["31","715",null,null,"NSF      RF SUP 551-476  PORTE","1021RR715195","20400","12100","61023","31030001",{"$f":"VLOOKUP(TRIM(J6741),'Transactional Departments'!A:B,2,FALSE)","v":"EHS Rollup"},"31030001","","","","",""]
["31","715",null,null,"USDA FS  RF FIRE SMOKE   NAEHE","1021RR715219","20400","12100","61003","31030001",{"$f":"VLOOKUP(TRIM(J6746),'Transactional Departments'!A:B,2,FALSE)","v":"EHS Rollup"},"31030001","","","","",""]
["31","715",null,null,"GAWRI    RF VAL OYSTER   BLACK","1021RR715224","20400","12100","64000","31030001",{"$f":"VLOOKUP(TRIM(J6748),'Transactional Departments'!A:B,2,FALSE)","v":"EHS Rollup"},"31030001","","","","",""]
["31","715",null,null,"NIH      RF ARSENIC EXPOSLU   ","1021RR715234","20400","12100","61018","31030001",{"$f":"VLOOKUP(TRIM(J6751),'Transactional Departments'!A:B,2,FALSE)","v":"EHS Rollup"},"31030001","","","","",""]
["31","715",null,null,"RESEARCH SERVICES WANG LAB    ","1025DR715004","14100","12400","41500","31030001",{"$f":"VLOOKUP(TRIM(J6759),'Transactional Departments'!A:B,2,FALSE)","v":"EHS Rollup"},"31030001","","","","",""]
["31","715",null,null,"ENVIRONMENTAL HEALTH SCI      ","1025GR715000","10500","12400","11800","31030001",{"$f":"VLOOKUP(TRIM(J6760),'Transactional Departments'!A:B,2,FALSE)","v":"EHS Rollup"},"31030001","","","","",""]
["31","715",null,null,"EHS TRAINING WORKSHOP         ","1031DW715006","14100","13100","41500","31032TWS",{"$f":"VLOOKUP(TRIM(J6765),'Transactional Departments'!A:B,2,FALSE)","v":"EHS Training Workshop"},"31032TWS","","","","",""]
["31","766",null,null,"HEALTH PROMOTION & BEHAVIOR   ","1011GJ766000","10500","11140","11800","31070001",{"$f":"VLOOKUP(TRIM(J6771),'Transactional Departments'!A:B,2,FALSE)","v":"HPB Rollup"},"31070001","","","","",""]
["31","766",null,null,"NIH      RF IHC DPP WS   WILSO","1021BO766039","15000","12110","11500","31070001",{"$f":"VLOOKUP(TRIM(J6776),'Transactional Departments'!A:B,2,FALSE)","v":"HPB Rollup"},"31070001","","","","",""]
["31","766",null,null,"NIH      RF IHC DPP WS   WILSO","1021CO766039","10500","12110","11800","31070001",{"$f":"VLOOKUP(TRIM(J6779),'Transactional Departments'!A:B,2,FALSE)","v":"HPB Rollup"},"31070001","","","","",""]
["31","766",null,null,"NIH      RF RISK LIB YTH HANSE","1021RR766059","20400","12100","61018","31070001",{"$f":"VLOOKUP(TRIM(J6783),'Transactional Departments'!A:B,2,FALSE)","v":"HPB Rollup"},"31070001","","","","",""]
["31","766",null,null,"UGARF    SUPPORT HPB     WILSO","1021RX766900","20300","12100","64ICR","31070001",{"$f":"VLOOKUP(TRIM(J6789),'Transactional Departments'!A:B,2,FALSE)","v":"HPB Rollup"},"31070001","","","","",""]
["31","766",null,null,"IDC HEALTH PROMOTION BEHAVIOR ","1031AE766001","15000","13100","11500","31070001",{"$f":"VLOOKUP(TRIM(J6794),'Transactional Departments'!A:B,2,FALSE)","v":"HPB Rollup"},"31070001","","","","",""]
["31","766",null,null,"HEALTH PROMOTION & BEHAVIOR   ","1031GE766000","10500","13100","11800","31070001",{"$f":"VLOOKUP(TRIM(J6795),'Transactional Departments'!A:B,2,FALSE)","v":"HPB Rollup"},"31070001","","","","",""]
["31","770",null,null,"MPH PRGM PROF TUITION         ","1011GH770001","10500","11100","11800","31011MPH",{"$f":"VLOOKUP(TRIM(J6803),'Transactional Departments'!A:B,2,FALSE)","v":"DO Professional Differential T"},"31011MPH","","","","",""]
["31","770",null,null,"CPH ASSOC DEAN DAVIS          ","1011GJ770004","10500","11140","11800","31014DAV",{"$f":"VLOOKUP(TRIM(J6806),'Transactional Departments'!A:B,2,FALSE)","v":"DO Associate Dean Davis"},"31014DAV","","","","",""]
["31","770",null,null,"UGAF     GA PWR GRAD     WILLI","1011RH770015","20200","11100","67281","31010001",{"$f":"VLOOKUP(TRIM(J6811),'Transactional Departments'!A:B,2,FALSE)","v":"College Public Health DO Roll"},"31010001","","","","",""]
["31","770",null,null,"UGAF     SPEC PROJ GLOBALWILLI","1011RH770016","20200","11100","67282","31010001",{"$f":"VLOOKUP(TRIM(J6812),'Transactional Departments'!A:B,2,FALSE)","v":"College Public Health DO Roll"},"31010001","","","","",""]
["31","770",null,null,"         UGARF SUPP CPH  SHELN","1021RX770900","20300","12100","64ICR","31010001",{"$f":"VLOOKUP(TRIM(J6818),'Transactional Departments'!A:B,2,FALSE)","v":"College Public Health DO Roll"},"31010001","","","","",""]
["31","770",null,null,"IDC RETURN                    ","1025AR770930","15000","12400","11500","31013IDC",{"$f":"VLOOKUP(TRIM(J6822),'Transactional Departments'!A:B,2,FALSE)","v":{"$error":"#N/A"}},"31013IDC","","","","",""]
["31","770",null,null,"CPH TRAINING WORKSHOP         ","1031DW770005","14100","13100","41500","31017TWS",{"$f":"VLOOKUP(TRIM(J6829),'Transactional Departments'!A:B,2,FALSE)","v":"DO Training Workshop"},"31017TWS","","","","",""]
["31","770",null,null,"COLLEGE PUBLIC HEALTH DEAN OFF","1031GE770000","10500","13100","11800","31010001",{"$f":"VLOOKUP(TRIM(J6830),'Transactional Departments'!A:B,2,FALSE)","v":"College Public Health DO Roll"},"31010001","","","","",""]
["31","770",null,null,"RTI      AFLATOXIN BIO   WANG ","1031RE770045","20400","13100","64281","31010001",{"$f":"VLOOKUP(TRIM(J6836),'Transactional Departments'!A:B,2,FALSE)","v":"College Public Health DO Roll"},"31010001","","","","",""]
["31","770",null,null,"UGAF     RMSY LECT SRS CPWILLI","1046RT770043","20200","14600","67695","31010001",{"$f":"VLOOKUP(TRIM(J6841),'Transactional Departments'!A:B,2,FALSE)","v":"College Public Health DO Roll"},"31010001","","","","",""]
["31","770",null,null,"COLLEGE PUBLIC HEALTH DEAN OFF","1099GN770000","10500","","11800","31010001",{"$f":"VLOOKUP(TRIM(J6846),'Transactional Departments'!A:B,2,FALSE)","v":"College Public Health DO Roll"},"31010001","","","","",""]
["31","771",null,null,"HPM IT                        ","1019GJ771018","10500","14400","11800","31060001",{"$f":"VLOOKUP(TRIM(J6850),'Transactional Departments'!A:B,2,FALSE)","v":"HPMRollup"},"31060001","","","","",""]
["31","771",null,null,"NIH      RF CDSMP TO WRK WI766","1021CO771075","10000","12110","11200","31060001",{"$f":"VLOOKUP(TRIM(J6853),'Transactional Departments'!A:B,2,FALSE)","v":"HPMRollup"},"31060001","","","","",""]
["31","771",null,null,"VAMC RF  RF EXPAND STROKECHUMB","1021RR771049","20400","12100","61000","31060001",{"$f":"VLOOKUP(TRIM(J6860),'Transactional Departments'!A:B,2,FALSE)","v":"HPMRollup"},"31060001","","","","",""]
["31","771",null,null,"CU       RF TABLE TALKER RAJBH","1021RR771056","20400","12100","64135","31060001",{"$f":"VLOOKUP(TRIM(J6864),'Transactional Departments'!A:B,2,FALSE)","v":"HPMRollup"},"31060001","","","","",""]
["31","771",null,null,"         UGARF HP&M      SHELN","1021RX771900","20300","12100","64ICR","31060001",{"$f":"VLOOKUP(TRIM(J6865),'Transactional Departments'!A:B,2,FALSE)","v":"HPMRollup"},"31060001","","","","",""]
["31","771",null,null,"HPM RSCH CORSO                ","1025GR771005","10500","12400","11800","31067COR",{"$f":"VLOOKUP(TRIM(J6869),'Transactional Departments'!A:B,2,FALSE)","v":"HPM Phaedra Corso"},"31067COR","","","","",""]
["31","771",null,null,"IDC HLT POLICY & MANAGEMENT   ","1031AE771001","15000","13100","11500","31060001",{"$f":"VLOOKUP(TRIM(J6876),'Transactional Departments'!A:B,2,FALSE)","v":"HPMRollup"},"31060001","","","","",""]
["31","771",null,null,"GDPH/NIH QI/PI CURRICULM TERRI","1031RE771027","20400","13100","62053","31060001",{"$f":"VLOOKUP(TRIM(J6879),'Transactional Departments'!A:B,2,FALSE)","v":"HPMRollup"},"31060001","","","","",""]
["31","773",null,null,"VIP TUITION FUNDS             ","1011GH773970","10000","11100","11200","31027VIP",{"$f":"VLOOKUP(TRIM(J6883),'Transactional Departments'!A:B,2,FALSE)","v":"GHI VIP Funds"},"31027VIP","","","","",""]
["31","773",null,null,"NIH      RF TUB URB AFRC WHALE","1021BO773072","15000","12110","11500","31020001",{"$f":"VLOOKUP(TRIM(J6888),'Transactional Departments'!A:B,2,FALSE)","v":"GHI Rollup"},"31020001","","","","",""]
["31","773",null,null,"GLOBAL HEALTH INST STATE IDC  ","1025AR773001","15000","12400","11500","31023IDC",{"$f":"VLOOKUP(TRIM(J6893),'Transactional Departments'!A:B,2,FALSE)","v":{"$error":"#N/A"}},"31023IDC","","","","",""]
["31","792",null,null,"         RF NUCLEAR WAR  DALLA","1021RR792031","20400","12100","62020","31080001",{"$f":"VLOOKUP(TRIM(J6899),'Transactional Departments'!A:B,2,FALSE)","v":"IDM Rollup"},"31080001","","","","",""]
["31","792",null,null,"IHMDD INDIRECT COST REC       ","1026AR792001","15000","12200","11500","31080001",{"$f":"VLOOKUP(TRIM(J6900),'Transactional Departments'!A:B,2,FALSE)","v":"IDM Rollup"},"31080001","","","","",""]
["31","792",null,null,"INSTITUTE DISASTER MANAGEMENT ","1031GE792000","10500","13100","11800","31080001",{"$f":"VLOOKUP(TRIM(J6907),'Transactional Departments'!A:B,2,FALSE)","v":"IDM Rollup"},"31080001","","","","",""]
["31","793",null,null,"IDC EPI & BIO                 ","1011AJ793001","15000","11140","11500","31040001",{"$f":"VLOOKUP(TRIM(J6911),'Transactional Departments'!A:B,2,FALSE)","v":"EPIBIO Rollup"},"31040001","","","","",""]
["31","793",null,null,"         RF RATHBUN W/374-053 ","1021RR793026","20400","12100","64448","31040001",{"$f":"VLOOKUP(TRIM(J6917),'Transactional Departments'!A:B,2,FALSE)","v":"EPIBIO Rollup"},"31040001","","","","",""]
["31","793",null,null,"UGAF     E&B CORN PROF   WILLI","1021RR793043","20200","12100","67548","31040001",{"$f":"VLOOKUP(TRIM(J6918),'Transactional Departments'!A:B,2,FALSE)","v":"EPIBIO Rollup"},"31040001","","","","",""]
["31","793",null,null,"         UGARF SUPPORT   SHELN","1021RX793900","20300","12100","64ICR","31040001",{"$f":"VLOOKUP(TRIM(J6923),'Transactional Departments'!A:B,2,FALSE)","v":"EPIBIO Rollup"},"31040001","","","","",""]
["31","793",null,null,"START-UP CORDERO              ","1025AR793002","15000","12400","11500","31040001",{"$f":"VLOOKUP(TRIM(J6926),'Transactional Departments'!A:B,2,FALSE)","v":"EPIBIO Rollup"},"31040001","","","","",""]
["31","793",null,null,"EPI BIO TRAINING WORKSHOP     ","1031DW793002","14100","13100","41500","31042TWS",{"$f":"VLOOKUP(TRIM(J6934),'Transactional Departments'!A:B,2,FALSE)","v":"EB Training Workshop"},"31042TWS","","","","",""]
["31","793",null,null,"EPIDEMIOLOGY & BIOSTATISTICS  ","1031GE793000","10500","13100","11800","31040001",{"$f":"VLOOKUP(TRIM(J6935),'Transactional Departments'!A:B,2,FALSE)","v":"EPIBIO Rollup"},"31040001","","","","",""]
["32","186",null,null,"SPIA ASSOC DEAN SUPPORT FUND  ","1011GJ186032","10500","11140","11800","32001003",{"$f":"VLOOKUP(TRIM(J6940),'Transactional Departments'!A:B,2,FALSE)","v":"Associate Dean Support"},"32001003","","","","",""]
["32","186",null,null,"         RUSSELL ENDOW CHAIR  ","1011RH186777","20400","11100","65777","32001001",{"$f":"VLOOKUP(TRIM(J6946),'Transactional Departments'!A:B,2,FALSE)","v":"SPIA Dean General"},"32001001","","","","",""]
["32","186",null,null,"         UGARF SUP SPIA  LAUTH","1021RX186900","20300","12100","64ICR","32001400",{"$f":"VLOOKUP(TRIM(J6950),'Transactional Departments'!A:B,2,FALSE)","v":"SPIA Residual-UGARF"},"32001400","","","","",""]
["32","186",null,null,"IDC RETURN                    ","1025AR186930","15000","12400","11500","32001600",{"$f":"VLOOKUP(TRIM(J6953),'Transactional Departments'!A:B,2,FALSE)","v":"SPIA IDC Returns"},"32001600","","","","",""]
["32","186",null,null,"DSS CARRY FORWARD             ","1031DE186925","14100","13100","41500","32001300",{"$f":"VLOOKUP(TRIM(J6958),'Transactional Departments'!A:B,2,FALSE)","v":"SPIA S&S Carryforward"},"32001300","","","","",""]
["32","576",null,null,"         INT TRADE-SEC        ","1021RR576004","20200","12100","67514","32002001",{"$f":"VLOOKUP(TRIM(J6964),'Transactional Departments'!A:B,2,FALSE)","v":"CITS General"},"32002001","","","","",""]
["32","576",null,null,"USDOS    RF S&S TMA______GAHLA","1021RR576146","20400","12100","61021","32002001",{"$f":"VLOOKUP(TRIM(J6969),'Transactional Departments'!A:B,2,FALSE)","v":"CITS General"},"32002001","","","","",""]
["32","576",null,null,"NORINCO  RF TSA FY 14-15 LIU  ","1021RR576149","20400","12100","64472","32002001",{"$f":"VLOOKUP(TRIM(J6970),'Transactional Departments'!A:B,2,FALSE)","v":"CITS General"},"32002001","","","","",""]
["32","576",null,null,"         UGARF SUPPORT   ORR  ","1021RX576900","20300","12100","64ICR","32002300",{"$f":"VLOOKUP(TRIM(J6978),'Transactional Departments'!A:B,2,FALSE)","v":"CITS Residual-UGARF"},"32002300","","","","",""]
["32","576",null,null,"CITS - IDC                    ","1031AE576001","15000","13100","11500","32002400",{"$f":"VLOOKUP(TRIM(J6981),'Transactional Departments'!A:B,2,FALSE)","v":"CITS IDC Returns"},"32002400","","","","",""]
["32","576",null,null,"NORINCO EXECUTIVE TRAINING    ","1031DW576005","14100","13100","41500","32002100",{"$f":"VLOOKUP(TRIM(J6983),'Transactional Departments'!A:B,2,FALSE)","v":"Norinco Executive Training"},"32002100","","","","",""]
["32","576",null,null,"CAS      ATT MONITOR WETTWETTE","1031RE576158","20400","13100","64000","32002001",{"$f":"VLOOKUP(TRIM(J6988),'Transactional Departments'!A:B,2,FALSE)","v":"CITS General"},"32002001","","","","",""]
["32","577",null,null,"POLITICAL SCIENCE             ","1011GH577000","10500","11100","11800","32003001",{"$f":"VLOOKUP(TRIM(J6993),'Transactional Departments'!A:B,2,FALSE)","v":"Political Science General"},"32003001","","","","",""]
["32","577",null,null,"UGAF     PHILIP H ALSTON LAUTH","1021RR577012","20200","12100","67517","32003001",{"$f":"VLOOKUP(TRIM(J6997),'Transactional Departments'!A:B,2,FALSE)","v":"Political Science General"},"32003001","","","","",""]
["32","577",null,null,"POLITICAL SCIENCE             ","1025GR577000","10500","12400","11800","32003001",{"$f":"VLOOKUP(TRIM(J7004),'Transactional Departments'!A:B,2,FALSE)","v":"Political Science General"},"32003001","","","","",""]
["32","578",null,null,"IA FACULTY SUPPORT FUND       ","1011GH578007","10500","11100","11800","32004102",{"$f":"VLOOKUP(TRIM(J7007),'Transactional Departments'!A:B,2,FALSE)","v":"IA General Faculty Support"},"32004102","","","","",""]
["32","578",null,null,"UGAF     TAP BENNETT AST LAUTH","1011RH578067","20200","11100","67254","32004001",{"$f":"VLOOKUP(TRIM(J7011),'Transactional Departments'!A:B,2,FALSE)","v":"International Affairs General"},"32004001","","","","",""]
["32","578",null,null,"INTERNATIONAL AFFAIRS - IDC   ","1025AR578002","15000","12400","11500","32004001",{"$f":"VLOOKUP(TRIM(J7016),'Transactional Departments'!A:B,2,FALSE)","v":"International Affairs General"},"32004001","","","","",""]
["32","579",null,null,"PUBLIC ADMIN & POLICY-SCOTT   ","1011GH579004","10500","11100","11800","32005111",{"$f":"VLOOKUP(TRIM(J7021),'Transactional Departments'!A:B,2,FALSE)","v":"Sun Young Kim Support"},"32005111","","","","",""]
["32","579",null,null,"PUBLIC ADMIN & POLICY-WILLIAMS","1011GH579008","10500","11100","11800","32005103",{"$f":"VLOOKUP(TRIM(J7023),'Transactional Departments'!A:B,2,FALSE)","v":"Brian Williams Support"},"32005103","","","","",""]
["32","579",null,null,"PUBLIC ADMIN & POLICY-KELLOUGH","1011GH579016","10500","11100","11800","32005107",{"$f":"VLOOKUP(TRIM(J7028),'Transactional Departments'!A:B,2,FALSE)","v":"Ed Kellough Support"},"32005107","","","","",""]
["32","579",null,null,"UGAF     MPA GRAD STUDENTGRAFS","1011RH579068","20200","11100","67257","32005001",{"$f":"VLOOKUP(TRIM(J7035),'Transactional Departments'!A:B,2,FALSE)","v":"PADP General"},"32005001","","","","",""]
["32","579",null,null,"UGAF     GOLEMBIEWSKI    KELLO","1021RR579020","20200","12100","67521","32005001",{"$f":"VLOOKUP(TRIM(J7039),'Transactional Departments'!A:B,2,FALSE)","v":"PADP General"},"32005001","","","","",""]
["32","579",null,null,"UGAF     BUSBEE CHAIR    BRADF","1021RR579051","20200","12100","67522","32005001",{"$f":"VLOOKUP(TRIM(J7040),'Transactional Departments'!A:B,2,FALSE)","v":"PADP General"},"32005001","","","","",""]
["32","579",null,null,"BU/DHHS  RF RF_24-26 HEALBRADF","1021RR579066","20400","12100","64315","32005001",{"$f":"VLOOKUP(TRIM(J7046),'Transactional Departments'!A:B,2,FALSE)","v":"PADP General"},"32005001","","","","",""]
["32","579",null,null,"PUBLIC ADMIN & POLICY         ","1025GR579000","10500","12400","11800","32005001",{"$f":"VLOOKUP(TRIM(J7051),'Transactional Departments'!A:B,2,FALSE)","v":"PADP General"},"32005001","","","","",""]
["32","585",null,null,"VERONA STUDY ABROAD           ","1011DV585003","14100","11100","41507","32006100",{"$f":"VLOOKUP(TRIM(J7054),'Transactional Departments'!A:B,2,FALSE)","v":"Study Abroad Verona"},"32006100","18000","NSABD1023SU18B ","100","",""]
["32","585",null,null,"CHINA MAY 18 SAP              ","1011DV585007","14100","11100","41507","32006400",{"$f":"VLOOKUP(TRIM(J7058),'Transactional Departments'!A:B,2,FALSE)","v":"Study Abroad China"},"32006400","18000","NSABD1087MM18  ","100","",""]
["32","585",null,null,"LIVERPOOL SUM 18 SAP          ","1011DV585012","14100","11100","41507","32006500",{"$f":"VLOOKUP(TRIM(J7063),'Transactional Departments'!A:B,2,FALSE)","v":"Study Abroad Liverpool"},"32006500","18000","NSABD1125SU18B ","100","",""]
["32","585",null,null,"GLOBIS CENTER                 ","1011GH585000","10500","11100","11800","32006001",{"$f":"VLOOKUP(TRIM(J7068),'Transactional Departments'!A:B,2,FALSE)","v":"Globis General"},"32006001","","","","",""]
["32","585",null,null,"LIVERPOOL SUM 18 SAP          ","1011GV585065","10000","11100","11200","32006001",{"$f":"VLOOKUP(TRIM(J7074),'Transactional Departments'!A:B,2,FALSE)","v":"Globis General"},"32006001","","","","",""]
["32","585",null,null,"UGAF     TRACK II FUND   LINDQ","1021RR585062","20200","12100","67542","32006001",{"$f":"VLOOKUP(TRIM(J7078),'Transactional Departments'!A:B,2,FALSE)","v":"Globis General"},"32006001","","","","",""]
["33","263",null,null,"GSU      RF IVE CHILD WELELLET","1011CH263287","10000","11110","11200","33001001",{"$f":"VLOOKUP(TRIM(J7081),'Transactional Departments'!A:B,2,FALSE)","v":"SSW Main"},"33001001","","","","",""]
["33","263",null,null,"SCHOOL OF SOCIAL WORK         ","1011GH263000","10500","11100","11800","33001001",{"$f":"VLOOKUP(TRIM(J7086),'Transactional Departments'!A:B,2,FALSE)","v":"SSW Main"},"33001001","","","","",""]
["33","263",null,null,"SSW-FIELD PROGRAM             ","1011GH263040","10500","11100","11800","33001001",{"$f":"VLOOKUP(TRIM(J7092),'Transactional Departments'!A:B,2,FALSE)","v":"SSW Main"},"33001001","","","","","SSWFIELD  "]
["33","263",null,null,"SSW-PHD PROGRAM               ","1011GH263041","10500","11100","11800","33001001",{"$f":"VLOOKUP(TRIM(J7093),'Transactional Departments'!A:B,2,FALSE)","v":"SSW Main"},"33001001","","","","","SSWPHD    "]
["33","263",null,null,"FIRST YR ODY - CAPLAN         ","1011GH263068","10000","11100","11200","33001008",{"$f":"VLOOKUP(TRIM(J7098),'Transactional Departments'!A:B,2,FALSE)","v":"SSW Caplan"},"33001008","","","","","SSWFYO    "]
["33","263",null,null,"SCHOOL OF SOCIAL WORK         ","1011GJ263000","10500","11140","11800","33001001",{"$f":"VLOOKUP(TRIM(J7101),'Transactional Departments'!A:B,2,FALSE)","v":"SSW Main"},"33001001","","","","",""]
["33","263",null,null,"DHHS/NIH PS W/ 263-264   BRIGG","1011RH263265","20400","11100","61017","33001001",{"$f":"VLOOKUP(TRIM(J7109),'Transactional Departments'!A:B,2,FALSE)","v":"SSW Main"},"33001001","","","","",""]
["33","263",null,null,"USDHHS   WORKFORCE ED         ","1011RH263271","20400","11100","61017","33001001",{"$f":"VLOOKUP(TRIM(J7111),'Transactional Departments'!A:B,2,FALSE)","v":"SSW Main"},"33001001","","","","",""]
["33","263",null,null,"         ABOLT GRAD ASST DEEHR","1021RR263002","20200","12100","","33001001",{"$f":"VLOOKUP(TRIM(J7116),'Transactional Departments'!A:B,2,FALSE)","v":"SSW Main"},"33001001","","","","",""]
["33","263",null,null,"UGAF     CTR SOCIAL JUST SCHEY","1021RR263281","20200","12100","67495","33001001",{"$f":"VLOOKUP(TRIM(J7121),'Transactional Departments'!A:B,2,FALSE)","v":"SSW Main"},"33001001","","","","",""]
["33","263",null,null,"IDC CARRYFORWARD              ","1025AR263925","15000","12400","11500","33001111",{"$f":"VLOOKUP(TRIM(J7125),'Transactional Departments'!A:B,2,FALSE)","v":"SSW Carry Forwawrd"},"33001111","","","","","SSWIDC    "]
["33","263",null,null,"PRES INTERDISCIP SEED MATTHEW ","1025GR263066","10000","12400","11200","33001020",{"$f":"VLOOKUP(TRIM(J7128),'Transactional Departments'!A:B,2,FALSE)","v":"SSW Matthew"},"33001020","","","","","SSWPRESGRN"]
["33","263",null,null,"DSS CARRY FORWARD             ","1031DE263925","14100","13100","41500","33001111",{"$f":"VLOOKUP(TRIM(J7133),'Transactional Departments'!A:B,2,FALSE)","v":"SSW Carry Forwawrd"},"33001111","","","","",""]
["33","263",null,null,"SSW-ASSOC DEAN'S OFFICE       ","1046GT263043","10500","14600","11800","33001001",{"$f":"VLOOKUP(TRIM(J7140),'Transactional Departments'!A:B,2,FALSE)","v":"SSW Main"},"33001001","","","","","SSWASSOCDN"]
["33","263",null,null,"SCHOOL OF SOCIAL WORK         ","1611GJ263000","10500","11140","11800","33002000",{"$f":"VLOOKUP(TRIM(J7144),'Transactional Departments'!A:B,2,FALSE)","v":"SSW Guc"},"33002000","","","","067",""]
["34","064",null,null,"UGARF/C&GINFECT DIS KRAUSE 182","1021RX064183","20300","12100","64U02","3400600C",{"$f":"VLOOKUP(TRIM(J7149),'Transactional Departments'!A:B,2,FALSE)","v":"IDIS - Conversion"},"3400600C","","","","",""]
["34","064",null,null,"UGARF CDC FID TOMPKINS     211","1021RX064236","20300","12100","64U07","340061MT",{"$f":"VLOOKUP(TRIM(J7151),'Transactional Departments'!A:B,2,FALSE)","v":"CVI - Mark Tompkins"},"340061MT","","","","",""]
["34","064",null,null,"UGARF FAC RSCH RYAN        230","1021RX064678","20300","12100","64F18","34009014",{"$f":"VLOOKUP(TRIM(J7156),'Transactional Departments'!A:B,2,FALSE)","v":"LAM - Ryan"},"34009014","","","","",""]
["34","064",null,null,"UGARF FAC RSCH STANTON     212","1021RX064681","20300","12100","64F18","34007JBS",{"$f":"VLOOKUP(TRIM(J7158),'Transactional Departments'!A:B,2,FALSE)","v":"Pathology - J. Stanton"},"34007JBS","","","","",""]
["34","070",null,null,"UGARF STARTUP PEREZ        188","1021RX070155","20300","12212","64U01","34003PDP",{"$f":"VLOOKUP(TRIM(J7163),'Transactional Departments'!A:B,2,FALSE)","v":"PDRC - Daniel Perez"},"34003PDP","","","","",""]
["34","097",null,null,"VETERINARY TEACHING HOSPITAL  ","3045DT097000","14370","14500","41500","3400200C",{"$f":"VLOOKUP(TRIM(J7168),'Transactional Departments'!A:B,2,FALSE)","v":"VTH Conversion"},"3400200C","","","","",""]
["34","188",null,null,"POPULATION HEALTH DIFF TUITION","1011GH188008","10000","11100","11200","3400300C",{"$f":"VLOOKUP(TRIM(J7174),'Transactional Departments'!A:B,2,FALSE)","v":"Population Health Conversion"},"3400300C","","","","",""]
["34","188",null,null,"NGIS     RF BIOINFORMTCS PEREZ","1021CR188285","10000","12110","11200","3400300C",{"$f":"VLOOKUP(TRIM(J7179),'Transactional Departments'!A:B,2,FALSE)","v":"Population Health Conversion"},"3400300C","","","","",""]
["34","188",null,null,"NPC      RF LACTOBACILLS LEE  ","1021RR188273","20400","12100","64000","34003PML",{"$f":"VLOOKUP(TRIM(J7182),'Transactional Departments'!A:B,2,FALSE)","v":"PDRC - Margie Lee"},"34003PML","","","","",""]
["34","188",null,null,"UFL      RF BOVINE VIRUS JONES","1021RR188290","20400","12100","62511","34003FLJ",{"$f":"VLOOKUP(TRIM(J7186),'Transactional Departments'!A:B,2,FALSE)","v":"Food Animal - Jones"},"34003FLJ","","","","",""]
["34","188",null,null,"USDA/ARS RF TURKEY VACC  PEREZ","1021RR188313","20400","12100","61004","34003PDP",{"$f":"VLOOKUP(TRIM(J7191),'Transactional Departments'!A:B,2,FALSE)","v":"PDRC - Daniel Perez"},"34003PDP","","","","",""]
["34","188",null,null,"GACC BEEFRF M HAEMOLYTICACREDI","1021RR188332","20400","12100","62006","3400300C",{"$f":"VLOOKUP(TRIM(J7197),'Transactional Departments'!A:B,2,FALSE)","v":"Population Health Conversion"},"3400300C","","","","",""]
["34","188",null,null,"MAH      RF INNOVAXLT    GARCI","1021RR188334","20400","12100","64006","3400300C",{"$f":"VLOOKUP(TRIM(J7198),'Transactional Departments'!A:B,2,FALSE)","v":"Population Health Conversion"},"3400300C","","","","",""]
["34","188",null,null,"         UGARF SUPPORT AVIAN M","1021RX188900","20300","12100","64ICR","3400300C",{"$f":"VLOOKUP(TRIM(J7206),'Transactional Departments'!A:B,2,FALSE)","v":"Population Health Conversion"},"3400300C","","","","",""]
["34","188",null,null,"POPULATION HEALTH             ","1025GR188000","10500","12400","11800","3400300C",{"$f":"VLOOKUP(TRIM(J7209),'Transactional Departments'!A:B,2,FALSE)","v":"Population Health Conversion"},"3400300C","","","","",""]
["34","188",null,null,"CLINICAL SERVICES POP HEALTH  ","1031DM188002","14100","13100","41500","34003PDX",{"$f":"VLOOKUP(TRIM(J7214),'Transactional Departments'!A:B,2,FALSE)","v":"PDRC Diagnostic Lab"},"34003PDX","","","","",""]
["34","188",null,null,"POPULATION HEALTH             ","1031GE188000","10500","13100","11800","3400300C",{"$f":"VLOOKUP(TRIM(J7215),'Transactional Departments'!A:B,2,FALSE)","v":"Population Health Conversion"},"3400300C","","","","",""]
["34","207",null,null,"VMES - POULTRY DISEASE        ","2926GR207001","11380","12200","11200","34003P00",{"$f":"VLOOKUP(TRIM(J7221),'Transactional Departments'!A:B,2,FALSE)","v":"Pop Health - PDRC"},"34003P00","","","","",""]
["34","208",null,null,"DSS CARRY FORWARD             ","1011DV208925","14100","11100","41507","3400100C",{"$f":"VLOOKUP(TRIM(J7226),'Transactional Departments'!A:B,2,FALSE)","v":"Vet Med Dean's Office - Conv."},"3400100C","","","","",""]
["34","208",null,null,"VETERINARY MEDICINE-DEANS OFF ","1011GJ208000","10500","11140","11800","3400100C",{"$f":"VLOOKUP(TRIM(J7230),'Transactional Departments'!A:B,2,FALSE)","v":"Vet Med Dean's Office - Conv."},"3400100C","","","","",""]
["34","208",null,null,"UGAF     GA VET SCHOLARS ALLEN","1011RH208250","20200","11100","67137","34001200",{"$f":"VLOOKUP(TRIM(J7233),'Transactional Departments'!A:B,2,FALSE)","v":"CVM - Rsch And Grad Affairs"},"34001200","","","","",""]
["34","208",null,null,"UGAF     JOY FUND        ALLEN","1011RH208827","20200","11100","67142","3400200C",{"$f":"VLOOKUP(TRIM(J7239),'Transactional Departments'!A:B,2,FALSE)","v":"VTH Conversion"},"3400200C","","","","",""]
["34","208",null,null,"UGAF     EQ LOVE HORSE   ALLEN","1021RR208016","20200","12100","67366","34009011",{"$f":"VLOOKUP(TRIM(J7244),'Transactional Departments'!A:B,2,FALSE)","v":"LAM - Mueller"},"34009011","","","","",""]
["34","208",null,null,"         KLECKNER ACADEMIC FUN","1021RR208132","20200","12100","67369","3400600C",{"$f":"VLOOKUP(TRIM(J7249),'Transactional Departments'!A:B,2,FALSE)","v":"IDIS - Conversion"},"3400600C","","","","",""]
["34","208",null,null,"         VET MED ALUMNI FUND  ","1021RR208139","20200","12100","67373","34001510",{"$f":"VLOOKUP(TRIM(J7253),'Transactional Departments'!A:B,2,FALSE)","v":"CVM - Development"},"34001510","","","","",""]
["34","208",null,null,"         GA CANCER RES   MAHAF","1021RR208166","20200","12100","67376","34005NOR",{"$f":"VLOOKUP(TRIM(J7256),'Transactional Departments'!A:B,2,FALSE)","v":"SAMS - Northrup"},"34005NOR","","","","",""]
["34","208",null,null,"         GRACE FUND      ALLEN","1021RR208182","20200","12100","67381","3400200C",{"$f":"VLOOKUP(TRIM(J7261),'Transactional Departments'!A:B,2,FALSE)","v":"VTH Conversion"},"3400200C","","","","",""]
["34","208",null,null,"         DE JOURNO EXOTICALLEN","1021RR208189","20200","12100","67383","3400500C",{"$f":"VLOOKUP(TRIM(J7263),'Transactional Departments'!A:B,2,FALSE)","v":"SAMS - Conversion"},"3400500C","","","","",""]
["34","208",null,null,"UGAF     TEACHING HOSP   ALLEN","1021RR208206","20200","12100","67388","3400200C",{"$f":"VLOOKUP(TRIM(J7268),'Transactional Departments'!A:B,2,FALSE)","v":"VTH Conversion"},"3400200C","","","","",""]
["34","208",null,null,"UGAF     MORRIS DVM/PHD  ALLEN","1021RR208222","20200","12100","67392","34001200",{"$f":"VLOOKUP(TRIM(J7272),'Transactional Departments'!A:B,2,FALSE)","v":"CVM - Rsch And Grad Affairs"},"34001200","","","","",""]
["34","208",null,null,"UGAF     CARDIOLOGY SUPP ALLEN","1021RR208261","20200","12100","67398","3400500C",{"$f":"VLOOKUP(TRIM(J7279),'Transactional Departments'!A:B,2,FALSE)","v":"SAMS - Conversion"},"3400500C","","","","",""]
["34","208",null,null,"UGAF     ESPA/DSLA RSCH  ALLEN","1021RR208278","20200","12100","67402","3400700C",{"$f":"VLOOKUP(TRIM(J7284),'Transactional Departments'!A:B,2,FALSE)","v":"Pathology - Conversion"},"3400700C","","","","",""]
["34","208",null,null,"UGAF     PATHOLOGY SUPT  ALLEN","1021RR208285","20200","12100","67404","3400700C",{"$f":"VLOOKUP(TRIM(J7287),'Transactional Departments'!A:B,2,FALSE)","v":"Pathology - Conversion"},"3400700C","","","","",""]
["34","208",null,null,"UGAF     NALLEY GRAD FEL ALLEN","1021RR208289","20200","12100","67408","3400500C",{"$f":"VLOOKUP(TRIM(J7291),'Transactional Departments'!A:B,2,FALSE)","v":"SAMS - Conversion"},"3400500C","","","","",""]
["34","208",null,null,"UGAF     SWANSON FELINE RALLEN","1021RR208297","20200","12100","67411","34001210",{"$f":"VLOOKUP(TRIM(J7296),'Transactional Departments'!A:B,2,FALSE)","v":"CVM - H. Dickerson"},"34001210","","","","",""]
["34","208",null,null,"UGAF     GA ATH ASC PROF ALLEN","1021RR208825","20200","12100","67414","34008GED",{"$f":"VLOOKUP(TRIM(J7301),'Transactional Departments'!A:B,2,FALSE)","v":"Phys-Pharm - G. Edwards"},"34008GED","","","","",""]
["34","208",null,null,"ROYALTY INV RSCH   MELTO      ","1021RX208216","20300","12100","64RYT","3400100C",{"$f":"VLOOKUP(TRIM(J7303),'Transactional Departments'!A:B,2,FALSE)","v":"Vet Med Dean's Office - Conv."},"3400100C","","","","",""]
["34","208",null,null,"EDUCATIONAL RESOURCES         ","1025GR208001","10500","12400","11800","34001340",{"$f":"VLOOKUP(TRIM(J7310),'Transactional Departments'!A:B,2,FALSE)","v":"Educ Resources Center"},"34001340","","","","",""]
["34","208",null,null,"VET VIEW - PRO SERVICES       ","1031DE208015","14100","13100","41500","34001431",{"$f":"VLOOKUP(TRIM(J7314),'Transactional Departments'!A:B,2,FALSE)","v":"Vet View"},"34001431","","","","",""]
["34","208",null,null,"VETERINARY MEDICINE-DEANS OFF ","1031GE208000","10500","13100","11800","3400100C",{"$f":"VLOOKUP(TRIM(J7319),'Transactional Departments'!A:B,2,FALSE)","v":"Vet Med Dean's Office - Conv."},"3400100C","","","","",""]
["34","208",null,null,"UGAF     COMM PRAC CLIN  ALLEN","1031RE208015","20200","13100","67572","3400500C",{"$f":"VLOOKUP(TRIM(J7320),'Transactional Departments'!A:B,2,FALSE)","v":"SAMS - Conversion"},"3400500C","","","","",""]
["34","208",null,null,"UGAF     VET MED MEM HON ALLEN","1031RE208293","20200","13100","67577","34001100",{"$f":"VLOOKUP(TRIM(J7326),'Transactional Departments'!A:B,2,FALSE)","v":"CVM - Dean's Office"},"34001100","","","","",""]
["34","208",null,null,"VETERINARY MEDICINE-DEANS OFF ","1041GT208000","10500","14100","11800","3400100C",{"$f":"VLOOKUP(TRIM(J7329),'Transactional Departments'!A:B,2,FALSE)","v":"Vet Med Dean's Office - Conv."},"3400100C","","","","",""]
["34","208",null,null,"VETERINARY MEDICINE-DEANS OFF ","1099GN208000","10500","","11800","3400100C",{"$f":"VLOOKUP(TRIM(J7337),'Transactional Departments'!A:B,2,FALSE)","v":"Vet Med Dean's Office - Conv."},"3400100C","","","","",""]
["34","208",null,null,"UGAF     POULTRY DIAG RENOV   ","8064RY208828","50100","17620","67839","34003P00",{"$f":"VLOOKUP(TRIM(J7338),'Transactional Departments'!A:B,2,FALSE)","v":"Pop Health - PDRC"},"34003P00","","","","",""]
["34","209",null,null,"VET BIOSCIENCES & DIAG IMAGING","1011GH209000","10500","11100","11800","3400400C",{"$f":"VLOOKUP(TRIM(J7343),'Transactional Departments'!A:B,2,FALSE)","v":"VBDI - Conversion"},"3400400C","","","","",""]
["34","209",null,null,"USDOD    RF W/ 211487         ","1021RR209113","20400","12100","61012","34004FJH",{"$f":"VLOOKUP(TRIM(J7349),'Transactional Departments'!A:B,2,FALSE)","v":"VBDI - J. Hogan"},"34004FJH","","","","",""]
["34","209",null,null,"VET BIOSCIENCES & DIAG IMAGING","1025GJ209000","10500","11140","11800","3400400C",{"$f":"VLOOKUP(TRIM(J7354),'Transactional Departments'!A:B,2,FALSE)","v":"VBDI - Conversion"},"3400400C","","","","",""]
["34","209",null,null,"CLINICAL SERVICES ANATOMY     ","1031DE209001","14100","13100","41500","3400400C",{"$f":"VLOOKUP(TRIM(J7358),'Transactional Departments'!A:B,2,FALSE)","v":"VBDI - Conversion"},"3400400C","","","","",""]
["34","210",null,null,"SMALL ANIMAL MEDICINE/SURGERY ","1011GH210000","10500","11100","11800","3400500C",{"$f":"VLOOKUP(TRIM(J7361),'Transactional Departments'!A:B,2,FALSE)","v":"SAMS - Conversion"},"3400500C","","","","",""]
["34","210",null,null,"         RF GENES IN DOGSPLATT","1021RR210190","20400","12100","64000","34005PLA",{"$f":"VLOOKUP(TRIM(J7367),'Transactional Departments'!A:B,2,FALSE)","v":"SAMS - Platt"},"34005PLA","","","","",""]
["34","210",null,null,"VCG      RF GI MOTILITY  DIVER","1021RR210231","20400","12100","64020","34005DIV",{"$f":"VLOOKUP(TRIM(J7372),'Transactional Departments'!A:B,2,FALSE)","v":"SAMS - Divers"},"34005DIV","","","","",""]
["34","210",null,null,"         RF MENISCAL PTH FRANK","1021RR210233","20400","12100","64020","34005FRA",{"$f":"VLOOKUP(TRIM(J7373),'Transactional Departments'!A:B,2,FALSE)","v":"SAMS - S. Franklin"},"34005FRA","","","","",""]
["34","210",null,null,"MAF      RF ANGIOTENSIN  COLEM","1021RR210270","20400","12100","64383","34005COL",{"$f":"VLOOKUP(TRIM(J7377),'Transactional Departments'!A:B,2,FALSE)","v":"SAMS - Coleman"},"34005COL","","","","",""]
["34","210",null,null,"MERIAL   RF AIP-S RSCH   BANOV","1021RR210288","20400","12100","64024","3400500C",{"$f":"VLOOKUP(TRIM(J7384),'Transactional Departments'!A:B,2,FALSE)","v":"SAMS - Conversion"},"3400500C","","","","",""]
["34","210",null,null,"ROYALTY DEPT GREGO            ","1021RX210129","20300","12100","64RYT","34005SAM",{"$f":"VLOOKUP(TRIM(J7389),'Transactional Departments'!A:B,2,FALSE)","v":"SAMS - Department"},"34005SAM","","","","","34SAMDEPT "]
["34","210",null,null,"ROYALTY WAIVED INV RITCH      ","1021RX210155","20300","12100","64RYT","34005RIT",{"$f":"VLOOKUP(TRIM(J7391),'Transactional Departments'!A:B,2,FALSE)","v":"SAMS - Ritchie"},"34005RIT","","","","",""]
["34","210",null,null,"SMALL ANIMAL MEDICINE/SURGERY ","1025GR210000","10500","12400","11800","3400500C",{"$f":"VLOOKUP(TRIM(J7396),'Transactional Departments'!A:B,2,FALSE)","v":"SAMS - Conversion"},"3400500C","","","","",""]
["34","210",null,null,"PVCE - AAVMC                  ","1031DE210002","14100","13100","41500","34005ROT",{"$f":"VLOOKUP(TRIM(J7400),'Transactional Departments'!A:B,2,FALSE)","v":"SAMS - Roth"},"34005ROT","","","","",""]
["34","211",null,null,"GSU/NIAIDRF PARAMYXOVIRUSHE   ","1021CO211134","10000","12110","11200","34006210",{"$f":"VLOOKUP(TRIM(J7407),'Transactional Departments'!A:B,2,FALSE)","v":"IDIS - He"},"34006210","","","","",""]
["34","211",null,null,"NIH      RF MULTIDRUG   TTRENT","1021CO211452","10000","12110","11200","34006260",{"$f":"VLOOKUP(TRIM(J7408),'Transactional Departments'!A:B,2,FALSE)","v":"IDIS - Trent"},"34006260","","","","",""]
["34","211",null,null,"NIH      RF SAAVE        TRENT","1021CO211535","10000","12110","11200","34006260",{"$f":"VLOOKUP(TRIM(J7415),'Transactional Departments'!A:B,2,FALSE)","v":"IDIS - Trent"},"34006260","","","","",""]
["34","211",null,null,"NIH      RF GLYCOPROTEIN BRIND","1021CR211444","10000","12110","11200","34006290",{"$f":"VLOOKUP(TRIM(J7419),'Transactional Departments'!A:B,2,FALSE)","v":"IDIS - Brindley"},"34006290","","","","",""]
["34","211",null,null,"UPENN/NSFRF ABI INNOVATN QUINN","1021CR211473","10000","12110","11200","34006200",{"$f":"VLOOKUP(TRIM(J7424),'Transactional Departments'!A:B,2,FALSE)","v":"IDIS - Quinn"},"34006200","","","","",""]
["34","211",null,null,"MAF      RF IM&PATH CIV  TRENT","1021CR211516","10000","12110","11200","34006260",{"$f":"VLOOKUP(TRIM(J7429),'Transactional Departments'!A:B,2,FALSE)","v":"IDIS - Trent"},"34006260","","","","",""]
["34","211",null,null,"EU/NIH   RF EMORY CEIRS  TRIPP","1021CR211530","10000","12110","11200","34006330",{"$f":"VLOOKUP(TRIM(J7431),'Transactional Departments'!A:B,2,FALSE)","v":"IDIS - Tripp"},"34006330","","","","",""]
["34","211",null,null,"NSF      RF KING W/549-313    ","1021RR211343","20400","12100","61023","3400600C",{"$f":"VLOOKUP(TRIM(J7434),'Transactional Departments'!A:B,2,FALSE)","v":"IDIS - Conversion"},"3400600C","","","","",""]
["34","211",null,null,"NIH      RF MOD INF FY13 MOORH","1021RR211387","20400","12100","61018","34006250",{"$f":"VLOOKUP(TRIM(J7442),'Transactional Departments'!A:B,2,FALSE)","v":"IDIS - Moorhead"},"34006250","","","","",""]
["34","211",null,null,"GAHE/NIH RF IMMN MECH 13      ","1021RR211395","20400","12100","62000","34006330",{"$f":"VLOOKUP(TRIM(J7443),'Transactional Departments'!A:B,2,FALSE)","v":"IDIS - Tripp"},"34006330","","","","",""]
["34","211",null,null,"AAI      RF FELLO AP YOO RADA ","1021RR211431","20400","12100","64000","34006220",{"$f":"VLOOKUP(TRIM(J7448),'Transactional Departments'!A:B,2,FALSE)","v":"IDIS - Rada"},"34006220","","","","",""]
["34","211",null,null,"         RF BRUGIA MALAY MOORH","1021RR211443","20400","12100","64000","34006250",{"$f":"VLOOKUP(TRIM(J7454),'Transactional Departments'!A:B,2,FALSE)","v":"IDIS - Moorhead"},"34006250","","","","",""]
["34","211",null,null,"AAII     RF TPL2 FELLOW  WATFO","1021RR211460","20400","12100","64000","34006230",{"$f":"VLOOKUP(TRIM(J7459),'Transactional Departments'!A:B,2,FALSE)","v":"IDIS - Watford"},"34006230","","","","",""]
["34","211",null,null,"SANOFI   RF WO UGARF 3   ROSS ","1021RR211479","20400","12100","64496","340061TR",{"$f":"VLOOKUP(TRIM(J7462),'Transactional Departments'!A:B,2,FALSE)","v":"CVI - Ted Ross"},"340061TR","","","","",""]
["34","211",null,null,"CYSTIC FIRF ANTI NET          ","1021RR211545","20400","12100","64379","3400600C",{"$f":"VLOOKUP(TRIM(J7466),'Transactional Departments'!A:B,2,FALSE)","v":"IDIS - Conversion"},"3400600C","","","","",""]
["34","211",null,null,"ROYALTY INVENTOR HARN      211","1021RX211469","20300","12100","64RYT","34006240",{"$f":"VLOOKUP(TRIM(J7472),'Transactional Departments'!A:B,2,FALSE)","v":"IDIS - Harn"},"34006240","","","","",""]
["34","211",null,null,"         RESIDUAL #211RR DICKE","1021RX211950","20400","12100","64RBP","3400600C",{"$f":"VLOOKUP(TRIM(J7477),'Transactional Departments'!A:B,2,FALSE)","v":"IDIS - Conversion"},"3400600C","","","","",""]
["34","211",null,null,"ROYALTY HOLDING INFECT DIS    ","1021RX211980","20300","12100","64URF","3400600C",{"$f":"VLOOKUP(TRIM(J7478),'Transactional Departments'!A:B,2,FALSE)","v":"IDIS - Conversion"},"3400600C","","","","",""]
["34","211",null,null,"SCYNEXIS                      ","1031DE211008","14100","13100","41500","34006252",{"$f":"VLOOKUP(TRIM(J7486),'Transactional Departments'!A:B,2,FALSE)","v":"IDIS - Scynexis"},"34006252","","","","",""]
["34","211",null,null,"CONTRACT PARASITOLOGY SERVICES","1031DE211014","14100","13100","41500","34006361",{"$f":"VLOOKUP(TRIM(J7489),'Transactional Departments'!A:B,2,FALSE)","v":"IDIS - Parasitology (K)"},"34006361","","","","",""]
["34","212",null,null,"PATHOLOGY                     ","1011GH212000","10500","11100","11800","3400700C",{"$f":"VLOOKUP(TRIM(J7495),'Transactional Departments'!A:B,2,FALSE)","v":"Pathology - Conversion"},"3400700C","","","","",""]
["34","212",null,null,"PATHOLOGY - FCD SUPPORT       ","1011GH212001","10500","11100","11800","34007FCD",{"$f":"VLOOKUP(TRIM(J7496),'Transactional Departments'!A:B,2,FALSE)","v":"Pathology - FCD"},"34007FCD","","","","",""]
["34","212",null,null,"EU/NIH   RF ROLE OF RESP SAKAM","1021RR212121","20400","12100","64139","34007KXS",{"$f":"VLOOKUP(TRIM(J7501),'Transactional Departments'!A:B,2,FALSE)","v":"Pathology - K. Sakamoto"},"34007KXS","","","","",""]
["34","212",null,null,"GOS      RF EPI ECO AYALABROWN","1021RR212141","20400","12100","64159","34007CCB",{"$f":"VLOOKUP(TRIM(J7505),'Transactional Departments'!A:B,2,FALSE)","v":"Pathology - C. Brown"},"34007CCB","","","","",""]
["34","212",null,null,"ROYALTY RSCH HARMON           ","1021RX212119","20300","12100","64RYT","34007BXH",{"$f":"VLOOKUP(TRIM(J7512),'Transactional Departments'!A:B,2,FALSE)","v":"Pathology - B. Harmon"},"34007BXH","","","","",""]
["34","212",null,null,"ROYALTY DEPT SHARE HARMON     ","1021RX212120","20300","12100","64RYT","3400700C",{"$f":"VLOOKUP(TRIM(J7513),'Transactional Departments'!A:B,2,FALSE)","v":"Pathology - Conversion"},"3400700C","","","","",""]
["34","212",null,null,"PATHOLOGY                     ","1025GR212000","10500","12400","11800","3400700C",{"$f":"VLOOKUP(TRIM(J7519),'Transactional Departments'!A:B,2,FALSE)","v":"Pathology - Conversion"},"3400700C","","","","",""]
["34","212",null,null,"PATHOLOGY                     ","1031GE212000","10500","13100","11800","3400700C",{"$f":"VLOOKUP(TRIM(J7524),'Transactional Departments'!A:B,2,FALSE)","v":"Pathology - Conversion"},"3400700C","","","","",""]
["34","213",null,null,"PHYSIOLOGY AND PHARMACOLOGY   ","1011GH213000","10500","11100","11800","3400800C",{"$f":"VLOOKUP(TRIM(J7529),'Transactional Departments'!A:B,2,FALSE)","v":"Phys-Pharm - Conversion"},"3400800C","","","","",""]
["34","213",null,null,"PHYSIOLOGY AND PHARMACOLOGY   ","1011GJ213000","10500","11140","11800","3400800C",{"$f":"VLOOKUP(TRIM(J7531),'Transactional Departments'!A:B,2,FALSE)","v":"Phys-Pharm - Conversion"},"3400800C","","","","",""]
["34","213",null,null,"NIH      RF SYSTEMS      HO246","1021CO213235","10000","12110","11200","34008DPT",{"$f":"VLOOKUP(TRIM(J7536),'Transactional Departments'!A:B,2,FALSE)","v":"Phys-Pharm - General"},"34008DPT","","","","",""]
["34","213",null,null,"REM SEED GRANT DE LA FUENTE213","1021RX213236","20200","12100","67551","34008RDE",{"$f":"VLOOKUP(TRIM(J7543),'Transactional Departments'!A:B,2,FALSE)","v":"Phys-Pharm - R. DeLaFuente"},"34008RDE","","","","",""]
["34","213",null,null,"PHYSIOLOGY AND PHARMACOLOGY   ","1025GJ213000","10500","11140","11800","3400800C",{"$f":"VLOOKUP(TRIM(J7547),'Transactional Departments'!A:B,2,FALSE)","v":"Phys-Pharm - Conversion"},"3400800C","","","","",""]
["34","213",null,null,"PHYSIOLOGY AND PHARMACOLOGY   ","1025GR213000","10500","12400","11800","3400800C",{"$f":"VLOOKUP(TRIM(J7548),'Transactional Departments'!A:B,2,FALSE)","v":"Phys-Pharm - Conversion"},"3400800C","","","","",""]
["34","214",null,null,"RESIDUAL BALANCE           214","1011RX214950","20400","11100","64RBP","3400200C",{"$f":"VLOOKUP(TRIM(J7552),'Transactional Departments'!A:B,2,FALSE)","v":"VTH Conversion"},"3400200C","","","","",""]
["34","230",null,null,"         RF BOVINE RESP  WOOLU","1021RR230202","20400","12100","64056","3400900C",{"$f":"VLOOKUP(TRIM(J7559),'Transactional Departments'!A:B,2,FALSE)","v":"LAM - Conversion"},"3400900C","","","","",""]
["34","230",null,null,"         RF RHODOCOCCUS  GIGUE","1021RR230207","20400","12100","64383","34009007",{"$f":"VLOOKUP(TRIM(J7562),'Transactional Departments'!A:B,2,FALSE)","v":"LAM - Giguere"},"34009007","","","","",""]
["34","230",null,null,"ZOETIS   RF NASAL INTER  HURLE","1021RR230218","20400","12100","64056","34003FDH",{"$f":"VLOOKUP(TRIM(J7566),'Transactional Departments'!A:B,2,FALSE)","v":"Food Animal - Hurley"},"34003FDH","","","","",""]
["34","230",null,null,"         BRYON F SNYDER  BOWEN","1021RR230789","20400","12100","65789","3400900C",{"$f":"VLOOKUP(TRIM(J7571),'Transactional Departments'!A:B,2,FALSE)","v":"LAM - Conversion"},"3400900C","","","","",""]
["34","230",null,null,"RESIDUAL BALANCE          #230","1021RX230950","20400","12100","64RBP","3400900C",{"$f":"VLOOKUP(TRIM(J7576),'Transactional Departments'!A:B,2,FALSE)","v":"LAM - Conversion"},"3400900C","","","","",""]
["34","230",null,null,"CLINICAL SERVICES LARGE ANIMAL","1031DE230001","14100","13100","41500","3400900C",{"$f":"VLOOKUP(TRIM(J7582),'Transactional Departments'!A:B,2,FALSE)","v":"LAM - Conversion"},"3400900C","","","","",""]
["34","230",null,null,"LARGE ANIMAL MEDICINE         ","1031GE230000","10500","13100","11800","3400900C",{"$f":"VLOOKUP(TRIM(J7583),'Transactional Departments'!A:B,2,FALSE)","v":"LAM - Conversion"},"3400900C","","","","",""]
["34","231",null,null,"AHRC ANIMAL CARE              ","1045DM231003","14100","14500","41500","34001700",{"$f":"VLOOKUP(TRIM(J7590),'Transactional Departments'!A:B,2,FALSE)","v":"Animal Health Research Center"},"34001700","","","","",""]
["34","375",null,null,"VET MED DEVLPMNT SUPPORT FUND ","4111RH375750","20400","11100","65750","34001510",{"$f":"VLOOKUP(TRIM(J7594),'Transactional Departments'!A:B,2,FALSE)","v":"CVM - Development"},"34001510","","","","",""]
["34","375",null,null,"KRISTINA SCHWENSEN SCHOLARSHIP","4111RH375960","20400","11100","65960","34001500",{"$f":"VLOOKUP(TRIM(J7600),'Transactional Departments'!A:B,2,FALSE)","v":"CVM - External Affairs"},"34001500","","","","",""]
["34","530",null,null,"ATHENS DIAGNOSTIC LAB         ","3300AN530000","15390","","11500","3400710C",{"$f":"VLOOKUP(TRIM(J7601),'Transactional Departments'!A:B,2,FALSE)","v":"Athens D-Lab - Conversion"},"3400710C","","","","",""]
["34","530",null,null,"         UGARF SUPPORT   MILLE","3321RX530900","20300","12100","64ICR","3400710C",{"$f":"VLOOKUP(TRIM(J7606),'Transactional Departments'!A:B,2,FALSE)","v":"Athens D-Lab - Conversion"},"3400710C","","","","",""]
["34","530",null,null,"GADA CLINICAL SERVICES        ","3331DM530001","14390","13100","41500","34007101",{"$f":"VLOOKUP(TRIM(J7609),'Transactional Departments'!A:B,2,FALSE)","v":"Athens D-Lab - Fee Income"},"34007101","","","","","34ADL001  "]
["34","530",null,null,"         RESIDUAL #530PS MILLE","3331RX530950","20400","13100","64RBP","3400710C",{"$f":"VLOOKUP(TRIM(J7617),'Transactional Departments'!A:B,2,FALSE)","v":"Athens D-Lab - Conversion"},"3400710C","","","","",""]
["34","535",null,null,"TIFTON DIAGNOSTIC LAB         ","3300AN535000","15390","","11500","3400720C",{"$f":"VLOOKUP(TRIM(J7618),'Transactional Departments'!A:B,2,FALSE)","v":"Tifton D-Lab - Conversion"},"3400720C","","","","",""]
["34","535",null,null,"NIH/DHHS RF TVDL CVM VET      ","3321RR535118","20400","12100","61017","3400720C",{"$f":"VLOOKUP(TRIM(J7623),'Transactional Departments'!A:B,2,FALSE)","v":"Tifton D-Lab - Conversion"},"3400720C","","","","",""]
["34","535",null,null,"TIFTON DIAG LAB IND COST RET  ","3326AR535001","15390","12200","11500","3400720C",{"$f":"VLOOKUP(TRIM(J7629),'Transactional Departments'!A:B,2,FALSE)","v":"Tifton D-Lab - Conversion"},"3400720C","","","","",""]
["34","535",null,null,"         RESIDUAL #535   BALDW","3331RX535950","20400","13100","64RBP","3400720C",{"$f":"VLOOKUP(TRIM(J7633),'Transactional Departments'!A:B,2,FALSE)","v":"Tifton D-Lab - Conversion"},"3400720C","","","","",""]
["34","537",null,null,"VET MED AGRICULTURE RESEARCH  ","3426GJ537000","11360","11140","11200","34003P00",{"$f":"VLOOKUP(TRIM(J7636),'Transactional Departments'!A:B,2,FALSE)","v":"Pop Health - PDRC"},"34003P00","","","","",""]
["34","694",null,null,"EMORY/NIHRF W 211-522    TRIPP","1021RR694211","20400","12100","64139","34003SDS",{"$f":"VLOOKUP(TRIM(J7641),'Transactional Departments'!A:B,2,FALSE)","v":"SCWDS - Stallknecht"},"34003SDS","","","","",""]
["34","694",null,null,"WILDLIFE DISEASE STUDY        ","1026GR694000","10500","12200","11800","34003S0C",{"$f":"VLOOKUP(TRIM(J7647),'Transactional Departments'!A:B,2,FALSE)","v":"SCWDS - Conversion"},"34003S0C","","","","",""]
["34","760",null,null,"CVI DEPARTMENTAL INSTRUCTION  ","1011GH760003","10000","11100","11200","3400610C",{"$f":"VLOOKUP(TRIM(J7652),'Transactional Departments'!A:B,2,FALSE)","v":"CVI - Conversion"},"3400610C","","","","",""]
["34","760",null,null,"EMORY    RF CEIRS OPT 18 TOMPK","1021CO760010","10000","12110","11200","340061MT",{"$f":"VLOOKUP(TRIM(J7657),'Transactional Departments'!A:B,2,FALSE)","v":"CVI - Mark Tompkins"},"340061MT","","","","",""]
["34","760",null,null,"BCM/NIH  RF UNIV PROTECT TOMPK","1021CO760019","10000","12110","11200","340061MT",{"$f":"VLOOKUP(TRIM(J7659),'Transactional Departments'!A:B,2,FALSE)","v":"CVI - Mark Tompkins"},"340061MT","","","","",""]
["34","760",null,null,"NIH      RF PULM HYPERT1/NORRI","1021CR760013","10000","12110","11200","340061KN",{"$f":"VLOOKUP(TRIM(J7664),'Transactional Departments'!A:B,2,FALSE)","v":"CVI - Karen Norris"},"340061KN","","","","",""]
["34","760",null,null,"UT/NIH   RF B PERTUSSIS  HARVI","1021CR760497","10000","12110","11200","340061EH",{"$f":"VLOOKUP(TRIM(J7666),'Transactional Departments'!A:B,2,FALSE)","v":"CVI - Eric Harvill"},"340061EH","","","","",""]
["34","760",null,null,"CONTRACT TITER/ASSAY SERVICES ","1025DR760002","14100","12400","41500","340061TA",{"$f":"VLOOKUP(TRIM(J7671),'Transactional Departments'!A:B,2,FALSE)","v":"CVI - Contract Titer Assay"},"340061TA","","","","",""]
["34","760",null,null,"CVI INDIRECT COST RETURN      ","1026AR760001","15000","12200","11500","3400610C",{"$f":"VLOOKUP(TRIM(J7676),'Transactional Departments'!A:B,2,FALSE)","v":"CVI - Conversion"},"3400610C","","","","",""]
["41","146",null,null,"GME DEPARTMENTAL SALES        ","1911DH146002","14100","11100","41500","41040001",{"$f":"VLOOKUP(TRIM(J7680),'Transactional Departments'!A:B,2,FALSE)","v":"MP GME Reimb StMary - DS&S"},"41040001","","","","",""]
["41","146",null,null,"MEDICAL PARTNERSHIP           ","1911GJ146000","10800","11140","11200","41010000",{"$f":"VLOOKUP(TRIM(J7687),'Transactional Departments'!A:B,2,FALSE)","v":"MP Dean's Office"},"41010000","","","","","41MPGRAD  "]
["41","146",null,null,"STUDENT AFFAIRS               ","1911GJ146003","10800","11140","11200","41020000",{"$f":"VLOOKUP(TRIM(J7690),'Transactional Departments'!A:B,2,FALSE)","v":"MP Student Affairs"},"41020000","","","","","41MPMATCH "]
["41","146",null,null,"UGARF SUPPORT IDC RETURN   146","1911RX146900","20300","11100","64ICR","41010000",{"$f":"VLOOKUP(TRIM(J7694),'Transactional Departments'!A:B,2,FALSE)","v":"MP Dean's Office"},"41010000","","","","",""]
["41","146",null,null,"IDC CARRYFORWARD              ","1925AR146925","15000","12400","11500","41050000",{"$f":"VLOOKUP(TRIM(J7699),'Transactional Departments'!A:B,2,FALSE)","v":"MP Research"},"41050000","","","","","41MPIDCCF "]
["42","007",null,null,"DSS CARRY FORWARD             ","1011DV007925","14100","11100","41507","42001004",{"$f":"VLOOKUP(TRIM(J7704),'Transactional Departments'!A:B,2,FALSE)","v":"VPI Departmental Admin"},"42001004","","","","",""]
["42","007",null,null,"OVPI - SUMMER SCHOOL SUPPORT  ","1011GH007004","10500","11100","11800","42001005",{"$f":"VLOOKUP(TRIM(J7706),'Transactional Departments'!A:B,2,FALSE)","v":"VPI Academic Allocations"},"42001005","","","","","VPISUMMER "]
["42","007",null,null,"OVPI - EXPERIENTIAL LEARNING  ","1011GH007034","10000","11100","11200","42001200",{"$f":"VLOOKUP(TRIM(J7711),'Transactional Departments'!A:B,2,FALSE)","v":"Experiential Learning"},"42001200","","","","",""]
["42","007",null,null,"USG STEM EDU IMPROV PLAN      ","1011RX007033","20400","11100","62020","42001400",{"$f":"VLOOKUP(TRIM(J7718),'Transactional Departments'!A:B,2,FALSE)","v":"Stem Education"},"42001400","","","","",""]
["42","007",null,null,"IDC RETURN                    ","1031AE007930","15000","13100","11500","42001004",{"$f":"VLOOKUP(TRIM(J7722),'Transactional Departments'!A:B,2,FALSE)","v":"VPI Departmental Admin"},"42001004","","","","","VPIIDCRET "]
["42","007",null,null,"WASHINGTON DC FACILITY RENTAL ","1031DE007007","14100","13100","41500","42001303",{"$f":"VLOOKUP(TRIM(J7723),'Transactional Departments'!A:B,2,FALSE)","v":"DC Rental Facility"},"42001303","","","","",""]
["42","007",null,null,"SCIENCE LEARNING CTR STARTUP  ","1046GT007032","10000","14600","11200","42001501",{"$f":"VLOOKUP(TRIM(J7729),'Transactional Departments'!A:B,2,FALSE)","v":"Departmental Administration"},"42001501","","","","",""]
["42","007",null,null,"VICE PRESIDENT FOR INSTRUCTION","1048GT007000","10500","14800","11800","42001004",{"$f":"VLOOKUP(TRIM(J7734),'Transactional Departments'!A:B,2,FALSE)","v":"VPI Departmental Admin"},"42001004","","","","",""]
["42","079",null,null,"FRESHMAN COLLEGE              ","1011DW079005","14100","11100","41500","42006200",{"$f":"VLOOKUP(TRIM(J7737),'Transactional Departments'!A:B,2,FALSE)","v":"Freshman College"},"42006200","","","","","FCODD     "]
["42","079",null,null,"STF - ACADEMIC ENHANCE        ","1019TJ079001","16000","14400","11600","42006004",{"$f":"VLOOKUP(TRIM(J7741),'Transactional Departments'!A:B,2,FALSE)","v":"DAE Tech Fee"},"42006004","","","","",""]
["42","079",null,null,"US DO ED WITH 1031RE079111    ","1031RE079112","20400","13100","61033","42006003",{"$f":"VLOOKUP(TRIM(J7746),'Transactional Departments'!A:B,2,FALSE)","v":"DAE Departmental Admin"},"42006003","","","","",""]
["42","105",null,null,"STUDENT FINANCIAL AID         ","1054GS105000","10500","15400","11800","42012001",{"$f":"VLOOKUP(TRIM(J7751),'Transactional Departments'!A:B,2,FALSE)","v":"SFA Dept Admin"},"42012001","","","","",""]
["42","139",null,null,"USDE     WORKSTUDY 2014  JOERS","1066RA139045","20400","16700","61033","42013000",{"$f":"VLOOKUP(TRIM(J7757),'Transactional Departments'!A:B,2,FALSE)","v":"Work Study"},"42013000","","","","",""]
["42","139",null,null,"USDE/C&G AMERICA READS 2016   ","1066RA139050","20400","16700","61033","42013000",{"$f":"VLOOKUP(TRIM(J7761),'Transactional Departments'!A:B,2,FALSE)","v":"Work Study"},"42013000","","","","",""]
["42","141",null,null,"ADMISSIONS OFFICE             ","1055GS141000","10500","15500","11800","42002001",{"$f":"VLOOKUP(TRIM(J7764),'Transactional Departments'!A:B,2,FALSE)","v":"Admissions Admin"},"42002001","","","","",""]
["42","141",null,null,"DC REGIONAL OFFICE            ","1055GS141016","10000","15500","11200","42002003",{"$f":"VLOOKUP(TRIM(J7769),'Transactional Departments'!A:B,2,FALSE)","v":"Out-Of-State Recruitment"},"42002003","","","","WDC",""]
["42","141",null,null,"IT SUPPORT                    ","1059GS141013","10500","14400","11800","42002001",{"$f":"VLOOKUP(TRIM(J7775),'Transactional Departments'!A:B,2,FALSE)","v":"Admissions Admin"},"42002001","","","","",""]
["42","142",null,null,"VETERANS AFFAIRS REIMBURSEMENT","1056DS142001","14100","15600","41500","42010003",{"$f":"VLOOKUP(TRIM(J7776),'Transactional Departments'!A:B,2,FALSE)","v":"Veteran Affairs"},"42010003","","","","",""]
["42","148",null,null,"WRITING FELLOWS PROGRAM       ","1011GH148026","10500","11100","11800","42005026",{"$f":"VLOOKUP(TRIM(J7781),'Transactional Departments'!A:B,2,FALSE)","v":"Writing Fellows"},"42005026","","","","",""]
["42","148",null,null,"STF STUDENT TECH FEE FUNDS    ","1019TJ148002","16000","14400","11600","42005004",{"$f":"VLOOKUP(TRIM(J7784),'Transactional Departments'!A:B,2,FALSE)","v":"CTL Technology Fee"},"42005004","","","","","STFLTG    "]
["42","148",null,null,"CLASSROOM TELEPHONE EXPENSE   ","1043GT148018","10500","14300","11800","42005017",{"$f":"VLOOKUP(TRIM(J7792),'Transactional Departments'!A:B,2,FALSE)","v":"Classroom Maintenance"},"42005017","","","","",""]
["42","148",null,null,"CENTER FOR TEACHING & LEARNING","1048GT148000","10500","14800","11800","42005100",{"$f":"VLOOKUP(TRIM(J7794),'Transactional Departments'!A:B,2,FALSE)","v":"CTL Admin"},"42005100","","","","",""]
["42","148",null,null,"OISD SALES TAX                ","9082GN148019","60000","","","42005100",{"$f":"VLOOKUP(TRIM(J7799),'Transactional Departments'!A:B,2,FALSE)","v":"CTL Admin"},"42005100","","","","",""]
["42","375",null,null,"         R J WARD MEMORIAL FUN","4111RH375992","20400","11100","65992","42001100",{"$f":"VLOOKUP(TRIM(J7804),'Transactional Departments'!A:B,2,FALSE)","v":"Advising Services"},"42001100","","","","",""]
["42","756",null,null,"OFFICE OF ADVISING SERVICES   ","1011GK756000","10000","11100","11200","42001100",{"$f":"VLOOKUP(TRIM(J7808),'Transactional Departments'!A:B,2,FALSE)","v":"Advising Services"},"42001100","","","","",""]
["42","772",null,null,"UGAF     CAMPUS KITCHEN PJOLLY","1011RH772004","20200","11100","67286","42011001",{"$f":"VLOOKUP(TRIM(J7811),'Transactional Departments'!A:B,2,FALSE)","v":"Service Learning Admin"},"42011001","","","","",""]
["42","784",null,null,"GWINNETT GRADUATE PROGRAMS    ","1611GJ784000","10500","11140","11800","42008001",{"$f":"VLOOKUP(TRIM(J7818),'Transactional Departments'!A:B,2,FALSE)","v":"Gwinnett Grad Admin"},"42008001","","","","GWI",""]
["42","784",null,null,"GWINNETT GRADUATE PROGRAMS    ","1641GT784000","10500","14100","11800","42008001",{"$f":"VLOOKUP(TRIM(J7822),'Transactional Departments'!A:B,2,FALSE)","v":"Gwinnett Grad Admin"},"42008001","","","","GWI",""]
["42","785",null,null,"GRIFFIN CONTINGENCY ALLOCATION","1711GH785013","10500","11100","11800","42007002",{"$f":"VLOOKUP(TRIM(J7827),'Transactional Departments'!A:B,2,FALSE)","v":"Support For Academic Programs"},"42007002","","","","GRI",""]
["42","785",null,null,"STDT AFFAIR UGA GRIFFIN CAMPUS","1751GS785014","10000","15100","11200","42007001",{"$f":"VLOOKUP(TRIM(J7832),'Transactional Departments'!A:B,2,FALSE)","v":"Griffin Operations"},"42007001","","","","GRI",""]
["42","785",null,null,"GRIFFIN CAMPUS                ","1771GP785000","10000","17100","11200","42007001",{"$f":"VLOOKUP(TRIM(J7834),'Transactional Departments'!A:B,2,FALSE)","v":"Griffin Operations"},"42007001","","","","GRI",""]
["43","005",null,null,"UGAF     BOYD FND UGARF  BURT ","1021RR005267","20200","12100","67292","43001001",{"$f":"VLOOKUP(TRIM(J7839),'Transactional Departments'!A:B,2,FALSE)","v":"VP Office Research Admin"},"43001001","","","","",""]
["43","005",null,null,"UGAF     OBESITY INIATIVELEE  ","1021RR005279","20200","12100","67294","43001001",{"$f":"VLOOKUP(TRIM(J7841),'Transactional Departments'!A:B,2,FALSE)","v":"VP Office Research Admin"},"43001001","","","","",""]
["43","005",null,null,"         RF LANG BDR EHLER 180","1021RR005293","20400","12100","64257","43001001",{"$f":"VLOOKUP(TRIM(J7846),'Transactional Departments'!A:B,2,FALSE)","v":"VP Office Research Admin"},"43001001","","","","",""]
["43","005",null,null,"         UGARF SUPPORT VPLEE  ","1021RX005900","20300","12100","64ICR","43001001",{"$f":"VLOOKUP(TRIM(J7851),'Transactional Departments'!A:B,2,FALSE)","v":"VP Office Research Admin"},"43001001","","","","",""]
["43","005",null,null,"HSO IRB INCOME                ","1025DR005019","14100","12400","41500","43001120",{"$f":"VLOOKUP(TRIM(J7857),'Transactional Departments'!A:B,2,FALSE)","v":"Human Subjects"},"43001120","","","","",""]
["43","005",null,null,"WILSON REYNOLDS SPKR SERIES   ","1025DW005015","14100","12400","41500","43020001",{"$f":"VLOOKUP(TRIM(J7862),'Transactional Departments'!A:B,2,FALSE)","v":"Willson Center Operations"},"43020001","","","","",""]
["43","005",null,null,"INNOVATION & DISCOVERY PARTNER","1025GR005036","10000","12400","11200","43001050",{"$f":"VLOOKUP(TRIM(J7865),'Transactional Departments'!A:B,2,FALSE)","v":"Industry Collaborations"},"43001050","","","","",""]
["43","005",null,null,"MARINE SCIENCE-DIST LEARN  100","1026GJ005037","10000","11140","11200","43001210",{"$f":"VLOOKUP(TRIM(J7869),'Transactional Departments'!A:B,2,FALSE)","v":"Marine Institute"},"43001210","","","","",""]
["43","005",null,null,"VP RSCH START-UP EQUIPMENT    ","1026GR005011","10000","12200","11200","43001305",{"$f":"VLOOKUP(TRIM(J7874),'Transactional Departments'!A:B,2,FALSE)","v":"Research Startup Fund"},"43001305","","","","",""]
["43","005",null,null,"         STRATEGIC PLAN  MEEHA","1031RE005301","20400","13100","64527","43001001",{"$f":"VLOOKUP(TRIM(J7879),'Transactional Departments'!A:B,2,FALSE)","v":"VP Office Research Admin"},"43001001","","","","",""]
["43","005",null,null,"OVPR RSCH INFORMATION SYSTEMS ","1044GT005029","10000","14400","11200","43001020",{"$f":"VLOOKUP(TRIM(J7881),'Transactional Departments'!A:B,2,FALSE)","v":"Research IT Operations"},"43001020","","","","",""]
["43","005",null,null,"OVPR HUMAN SUBJECTS           ","1045GT005025","10000","14500","11200","43001120",{"$f":"VLOOKUP(TRIM(J7889),'Transactional Departments'!A:B,2,FALSE)","v":"Human Subjects"},"43001120","","","","",""]
["43","005",null,null,"PROPOSAL ENHANCEMENT          ","1045GT005043","10000","14500","11200","43001045",{"$f":"VLOOKUP(TRIM(J7892),'Transactional Departments'!A:B,2,FALSE)","v":"Proposal Enhancement"},"43001045","","","","",""]
["43","005",null,null,"OVPR/UGARF LEGAL              ","1061GA005023","10000","16100","11200","43001035",{"$f":"VLOOKUP(TRIM(J7897),'Transactional Departments'!A:B,2,FALSE)","v":"Research Legal"},"43001035","","","","",""]
["43","005",null,null,"BIOSAFETY OFFICE              ","1077GP005019","10000","17800","11200","43001110",{"$f":"VLOOKUP(TRIM(J7898),'Transactional Departments'!A:B,2,FALSE)","v":"Biosafety"},"43001110","","","","",""]
["43","064",null,null,"UGARF/OSPTECH UPGRADE    OCONN","1021RX064085","20300","12100","64URF","43001426",{"$f":"VLOOKUP(TRIM(J7904),'Transactional Departments'!A:B,2,FALSE)","v":"UGARF Rsch Admn Tech"},"43001426","","","","",""]
["43","064",null,null,"UGARF RIVERBEND BLDG EXP      ","1021RX064095","20300","12100","64URF","43001432",{"$f":"VLOOKUP(TRIM(J7909),'Transactional Departments'!A:B,2,FALSE)","v":"UGARF Riverbend Ops"},"43001432","","","","",""]
["43","064",null,null,"UGARF SER-CAT DUES            ","1021RX064101","20300","12100","64URF","43001430",{"$f":"VLOOKUP(TRIM(J7912),'Transactional Departments'!A:B,2,FALSE)","v":"UGARF Sercat Dues"},"43001430","","","","",""]
["43","064",null,null,"UGARF FOREIGN TRAVEL          ","1021RX064110","20300","12100","64URF","43001425",{"$f":"VLOOKUP(TRIM(J7916),'Transactional Departments'!A:B,2,FALSE)","v":"UGARF Foreign Travel"},"43001425","","","","",""]
["43","064",null,null,"UGARF SPECIAL RESEARCH AWARDS ","1021RX064120","20300","12100","64URF","43001427",{"$f":"VLOOKUP(TRIM(J7922),'Transactional Departments'!A:B,2,FALSE)","v":"UGARF Spec Rsch Awd"},"43001427","","","","",""]
["43","064",null,null,"UGARF STAR STARTUP         064","1021RX064127","20300","12212","64U03","43001455",{"$f":"VLOOKUP(TRIM(J7927),'Transactional Departments'!A:B,2,FALSE)","v":"UGARF CMM Hires"},"43001455","","","","",""]
["43","064",null,null,"UGARF NEW MATERIALS INST   599","1021RX064136","20300","12100","64U02","43510001",{"$f":"VLOOKUP(TRIM(J7932),'Transactional Departments'!A:B,2,FALSE)","v":"New Materials Inst Adm"},"43510001","","","","",""]
["43","064",null,null,"UGARF/C&GLSAMP C/S740003AND093","1021RX064172","20300","12100","64URF","43001405",{"$f":"VLOOKUP(TRIM(J7936),'Transactional Departments'!A:B,2,FALSE)","v":"UGARF Research Support Fund"},"43001405","","","","",""]
["43","064",null,null,"UGARF DRP RSCH SUP RESSURRE156","1021RX064324","20300","12100","64URF","43001405",{"$f":"VLOOKUP(TRIM(J7939),'Transactional Departments'!A:B,2,FALSE)","v":"UGARF Research Support Fund"},"43001405","","","","",""]
["43","064",null,null,"UGARF FAC RSCH MCEWEN      211","1021RX064467","20300","12100","64F16","43001405",{"$f":"VLOOKUP(TRIM(J7946),'Transactional Departments'!A:B,2,FALSE)","v":"UGARF Research Support Fund"},"43001405","","","","",""]
["43","064",null,null,"UGARF FAC RSCH BIRCH       104","1021RX064481","20300","12100","64F16","43001405",{"$f":"VLOOKUP(TRIM(J7950),'Transactional Departments'!A:B,2,FALSE)","v":"UGARF Research Support Fund"},"43001405","","","","",""]
["43","064",null,null,"UGARF FAC RSCH SALM WARD   263","1021RX064483","20300","12100","64F16","43001405",{"$f":"VLOOKUP(TRIM(J7951),'Transactional Departments'!A:B,2,FALSE)","v":"UGARF Research Support Fund"},"43001405","","","","",""]
["43","064",null,null,"UGARF FAC RSCH ROSENBAUM   173","1021RX064555","20300","12100","64F17","43001405",{"$f":"VLOOKUP(TRIM(J7955),'Transactional Departments'!A:B,2,FALSE)","v":"UGARF Research Support Fund"},"43001405","","","","",""]
["43","064",null,null,"UGARF FAC RSCH WALLACE     153","1021RX064573","20300","12100","64F17","43001405",{"$f":"VLOOKUP(TRIM(J7962),'Transactional Departments'!A:B,2,FALSE)","v":"UGARF Research Support Fund"},"43001405","","","","",""]
["43","064",null,null,"UGARF FAC RSCH HAAS        187","1021RX064621","20300","12100","64F18","43001405",{"$f":"VLOOKUP(TRIM(J7967),'Transactional Departments'!A:B,2,FALSE)","v":"UGARF Research Support Fund"},"43001405","","","","",""]
["43","064",null,null,"UGARF FAC RSCH BEASLEY     267","1021RX064660","20300","12100","64F18","43150001",{"$f":"VLOOKUP(TRIM(J7969),'Transactional Departments'!A:B,2,FALSE)","v":"SREL Operations"},"43150001","","","","",""]
["43","064",null,null,"UGARF FAC RSCH PARK        581","1021RX064672","20300","12100","64URF","43001405",{"$f":"VLOOKUP(TRIM(J7974),'Transactional Departments'!A:B,2,FALSE)","v":"UGARF Research Support Fund"},"43001405","","","","",""]
["43","064",null,null,"RESEARCH SUPPORT              ","1025GR064008","10000","12400","11200","43001315",{"$f":"VLOOKUP(TRIM(J7979),'Transactional Departments'!A:B,2,FALSE)","v":"UGA Assumption of UGARF Exp"},"43001315","","","","",""]
["43","070",null,null,"UGARF STARTUP PORINCHU     175","1021RX070110","20300","12100","64URF","43001410",{"$f":"VLOOKUP(TRIM(J7985),'Transactional Departments'!A:B,2,FALSE)","v":"UGARF Startup Fund"},"43001410","","","","",""]
["43","070",null,null,"UGARF STARTUP RHODES       267","1021RX070111","20300","12212","64U01","43150100",{"$f":"VLOOKUP(TRIM(J7986),'Transactional Departments'!A:B,2,FALSE)","v":"SREL Rhodes"},"43150100","","","","",""]
["43","070",null,null,"UGARF STARTUP HECKMAN      770","1021RX070148","20300","12212","64U01","43001410",{"$f":"VLOOKUP(TRIM(J7993),'Transactional Departments'!A:B,2,FALSE)","v":"UGARF Startup Fund"},"43001410","","","","",""]
["43","070",null,null,"UGARF STARTUP EDISON       549","1021RX070157","20300","12212","64U01","43450220",{"$f":"VLOOKUP(TRIM(J7997),'Transactional Departments'!A:B,2,FALSE)","v":"A Edison"},"43450220","","","","",""]
["43","070",null,null,"UGARF INSECTARY BLDG #1070    ","8064RX070020","50100","17620","64URF","43001453",{"$f":"VLOOKUP(TRIM(J8002),'Transactional Departments'!A:B,2,FALSE)","v":"UGARF Insectary"},"43001453","","","","",""]
["43","099",null,null,"MARINE INSTITUTE              ","2800GN099000","11340","","11200","43900001",{"$f":"VLOOKUP(TRIM(J8007),'Transactional Departments'!A:B,2,FALSE)","v":"Marine Institute Operations"},"43900001","","","","",""]
["43","099",null,null,"UGAF     FRNDS OF MI RES PRICE","2821RR099139","20200","12100","67815","43900001",{"$f":"VLOOKUP(TRIM(J8009),'Transactional Departments'!A:B,2,FALSE)","v":"Marine Institute Operations"},"43900001","","","","",""]
["43","099",null,null,"GDNR     SIRF MAIN HOUSE MAINT","2821RX099061","20400","12100","62016","43900015",{"$f":"VLOOKUP(TRIM(J8012),'Transactional Departments'!A:B,2,FALSE)","v":"GDNR Payroll"},"43900015","","","","",""]
["43","099",null,null,"MARINE INSTITUTE              ","2871GP099000","11340","17100","11200","43900001",{"$f":"VLOOKUP(TRIM(J8020),'Transactional Departments'!A:B,2,FALSE)","v":"Marine Institute Operations"},"43900001","","","","",""]
["43","099",null,null,"MARINE INSTITUTE              ","2899GN099000","11340","","11200","43900001",{"$f":"VLOOKUP(TRIM(J8021),'Transactional Departments'!A:B,2,FALSE)","v":"Marine Institute Operations"},"43900001","","","","",""]
["43","247",null,null,"CTRU INCOME                   ","1925DR247002","14100","12400","41500","43040050",{"$f":"VLOOKUP(TRIM(J8026),'Transactional Departments'!A:B,2,FALSE)","v":"CTRU Operations Income"},"43040050","","","","",""]
["43","264",null,null,"CENTER FOR MOLECULAR MEDICINE ","1026GR264000","10000","12200","11200","43460001",{"$f":"VLOOKUP(TRIM(J8032),'Transactional Departments'!A:B,2,FALSE)","v":"Cmm Administration"},"43460001","","","","",""]
["43","267",null,null,"CAL/USDI RF TORTOISES    TUBER","1021RR267227","20400","12100","62562","43150001",{"$f":"VLOOKUP(TRIM(J8037),'Transactional Departments'!A:B,2,FALSE)","v":"SREL Operations"},"43150001","","","","",""]
["43","267",null,null,"AUGUSTA  RF BIRD STUDY   KENNA","1021RR267241","20400","12100","63082","43150001",{"$f":"VLOOKUP(TRIM(J8040),'Transactional Departments'!A:B,2,FALSE)","v":"SREL Operations"},"43150001","","","","",""]
["43","267",null,null,"ARC      RF BIRD STUDY   KENNA","1021RR267252","20400","12100","63082","43150001",{"$f":"VLOOKUP(TRIM(J8044),'Transactional Departments'!A:B,2,FALSE)","v":"SREL Operations"},"43150001","","","","",""]
["43","267",null,null,"RZP      RF TURTLE MATINGTUBER","1021RR267326","20400","12100","64339","43150001",{"$f":"VLOOKUP(TRIM(J8050),'Transactional Departments'!A:B,2,FALSE)","v":"SREL Operations"},"43150001","","","","",""]
["43","267",null,null,"DOE      RF ACP TRAIN    RHODE","1021RR267401","20400","12100","61001","43150001",{"$f":"VLOOKUP(TRIM(J8055),'Transactional Departments'!A:B,2,FALSE)","v":"SREL Operations"},"43150001","","","","",""]
["43","267",null,null,"DOE      RF ASRSM SEAMA  RHODE","1021RR267402","20400","12100","61001","43150001",{"$f":"VLOOKUP(TRIM(J8056),'Transactional Departments'!A:B,2,FALSE)","v":"SREL Operations"},"43150001","","","","",""]
["43","267",null,null,"DOE      RF MWMF SUPPORT RHODE","1021RR267410","20400","12100","61001","43150001",{"$f":"VLOOKUP(TRIM(J8064),'Transactional Departments'!A:B,2,FALSE)","v":"SREL Operations"},"43150001","","","","",""]
["43","267",null,null,"DOE      RF H02 WETLAND  RHODE","1021RR267414","20400","12100","61001","43150001",{"$f":"VLOOKUP(TRIM(J8067),'Transactional Departments'!A:B,2,FALSE)","v":"SREL Operations"},"43150001","","","","",""]
["43","267",null,null,"DOE      RF U TRANSPORT  RHODE","1021RR267419","20400","12100","61001","43150001",{"$f":"VLOOKUP(TRIM(J8072),'Transactional Departments'!A:B,2,FALSE)","v":"SREL Operations"},"43150001","","","","",""]
["43","267",null,null,"DOE      RF LT STEWARD   RHODE","1021RR267420","20400","12100","61001","43150001",{"$f":"VLOOKUP(TRIM(J8073),'Transactional Departments'!A:B,2,FALSE)","v":"SREL Operations"},"43150001","","","","",""]
["43","267",null,null,"DOE      RF OUTREACH          ","1021RR267429","20400","12100","61001","43150001",{"$f":"VLOOKUP(TRIM(J8079),'Transactional Departments'!A:B,2,FALSE)","v":"SREL Operations"},"43150001","","","","",""]
["43","267",null,null,"USDOE    RF SREL SEAMAN       ","1021RR267433","20400","12100","61001","43150001",{"$f":"VLOOKUP(TRIM(J8083),'Transactional Departments'!A:B,2,FALSE)","v":"SREL Operations"},"43150001","","","","",""]
["43","267",null,null,"DOE      RF SREL W/267400_BIOF","1021RR267442","20400","12100","61001","43150001",{"$f":"VLOOKUP(TRIM(J8090),'Transactional Departments'!A:B,2,FALSE)","v":"SREL Operations"},"43150001","","","","",""]
["43","267",null,null,"DOE      RF SREL W/267400     ","1021RR267443","20400","12100","61001","43150001",{"$f":"VLOOKUP(TRIM(J8091),'Transactional Departments'!A:B,2,FALSE)","v":"SREL Operations"},"43150001","","","","",""]
["43","267",null,null,"USDOE    RF RR267-400         ","1021RR267458","20400","12100","61001","43150001",{"$f":"VLOOKUP(TRIM(J8097),'Transactional Departments'!A:B,2,FALSE)","v":"SREL Operations"},"43150001","","","","",""]
["43","267",null,null,"CESU     RF SALAMANDERS  BUHLM","1021RR267729","20400","12100","61034","43150001",{"$f":"VLOOKUP(TRIM(J8102),'Transactional Departments'!A:B,2,FALSE)","v":"SREL Operations"},"43150001","","","","",""]
["43","267",null,null,"         RESIDUAL #267RR BERTS","1021RX267950","20400","12100","64RBP","43150001",{"$f":"VLOOKUP(TRIM(J8107),'Transactional Departments'!A:B,2,FALSE)","v":"SREL Operations"},"43150001","","","","",""]
["43","267",null,null,"STARTUP RHODES                ","1026AR267001","15000","12200","11500","43150100",{"$f":"VLOOKUP(TRIM(J8109),'Transactional Departments'!A:B,2,FALSE)","v":"SREL Rhodes"},"43150100","","","","",""]
["43","267",null,null,"SREL MOLECULAR LABORATORY     ","1026DR267007","14100","12200","41500","43150205",{"$f":"VLOOKUP(TRIM(J8114),'Transactional Departments'!A:B,2,FALSE)","v":"SREL Molecular Lab"},"43150205","","","","",""]
["43","269",null,null,"RESEARCH BUSINESS SERVICES    ","1045DT269000","14100","14500","41500","43100001",{"$f":"VLOOKUP(TRIM(J8121),'Transactional Departments'!A:B,2,FALSE)","v":"ORS Administration"},"43100001","","","","",""]
["43","269",null,null,"VPRS - INSTRUMENT SHOP        ","1045GT269006","10000","14500","11200","43100070",{"$f":"VLOOKUP(TRIM(J8125),'Transactional Departments'!A:B,2,FALSE)","v":"Instrument Shop"},"43100070","","","","",""]
["43","269",null,null,"CENTRAL RESEARCH STORES       ","1045GT269200","10000","14500","11200","43100050",{"$f":"VLOOKUP(TRIM(J8126),'Transactional Departments'!A:B,2,FALSE)","v":"Central Research Stores"},"43100050","","","","",""]
["43","274",null,null,"NIH      RF NEU COG SCHZ CLEME","1021BO274399","15000","12110","11500","43250001",{"$f":"VLOOKUP(TRIM(J8130),'Transactional Departments'!A:B,2,FALSE)","v":"OIBR Administration"},"43250001","","","","",""]
["43","274",null,null,"EU/NIH   RF ALCOHOL/HIV RMONAH","1021RR274398","20400","12100","64139","43250001",{"$f":"VLOOKUP(TRIM(J8137),'Transactional Departments'!A:B,2,FALSE)","v":"OIBR Administration"},"43250001","","","","",""]
["43","274",null,null,"         RF SNA PATH GAMBGOODI","1021RR274411","20400","12100","64000","43250001",{"$f":"VLOOKUP(TRIM(J8140),'Transactional Departments'!A:B,2,FALSE)","v":"OIBR Administration"},"43250001","","","","",""]
["43","274",null,null,"USF/NIH  RF PS W/ 274431 EBY  ","1021RR274432","20400","12100","62542","43250001",{"$f":"VLOOKUP(TRIM(J8144),'Transactional Departments'!A:B,2,FALSE)","v":"OIBR Administration"},"43250001","","","","",""]
["43","274",null,null,"NSF      RF RF_SECUR ADVARENZU","1021RR274449","20400","12100","61023","43250001",{"$f":"VLOOKUP(TRIM(J8149),'Transactional Departments'!A:B,2,FALSE)","v":"OIBR Administration"},"43250001","","","","",""]
["43","274",null,null,"NIH      RF P/S WITH 1021RR274","1021RR274472","20400","12100","61018","43250001",{"$f":"VLOOKUP(TRIM(J8154),'Transactional Departments'!A:B,2,FALSE)","v":"OIBR Administration"},"43250001","","","","",""]
["43","274",null,null,"EBY-LILLIAN INDIRECT COST ACCT","1026AR274005","15000","12200","11500","43250105",{"$f":"VLOOKUP(TRIM(J8160),'Transactional Departments'!A:B,2,FALSE)","v":"L Eby"},"43250105","","","","",""]
["43","274",null,null,"FUTRIS INDIRECT               ","1026AR274006","15000","12200","11500","43250205",{"$f":"VLOOKUP(TRIM(J8161),'Transactional Departments'!A:B,2,FALSE)","v":"T Futris"},"43250205","","","","",""]
["43","274",null,null,"MONAHAN INDIRECT              ","1026AR274020","15000","12200","11500","43250130",{"$f":"VLOOKUP(TRIM(J8168),'Transactional Departments'!A:B,2,FALSE)","v":"J Monahan"},"43250130","","","","",""]
["43","274",null,null,"ROBINSON INDIRECT             ","1026AR274025","15000","12200","11500","43250140",{"$f":"VLOOKUP(TRIM(J8172),'Transactional Departments'!A:B,2,FALSE)","v":"D Robinson"},"43250140","","","","",""]
["43","274",null,null,"CORSO INDIRECT                ","1026AR274031","15000","12200","11500","43250170",{"$f":"VLOOKUP(TRIM(J8178),'Transactional Departments'!A:B,2,FALSE)","v":"P Corso"},"43250170","","","","",""]
["43","274",null,null,"WICKRAMA INDIRECT             ","1026AR274032","15000","12200","11500","43250175",{"$f":"VLOOKUP(TRIM(J8179),'Transactional Departments'!A:B,2,FALSE)","v":"K Wickrama"},"43250175","","","","",""]
["43","274",null,null,"SSHRC MITCHELL                ","1026DR274006","14100","12200","41500","43250200",{"$f":"VLOOKUP(TRIM(J8184),'Transactional Departments'!A:B,2,FALSE)","v":"SSHRC Mitchell"},"43250200","","","","",""]
["43","274",null,null,"GENERAL - EBY                 ","1026GR274009","10000","12200","11200","43250105",{"$f":"VLOOKUP(TRIM(J8187),'Transactional Departments'!A:B,2,FALSE)","v":"L Eby"},"43250105","","","","",""]
["43","302",null,null,"INDIRECT PULL BACK            ","1025AR302173","15000","12400","11500","43001300",{"$f":"VLOOKUP(TRIM(J8195),'Transactional Departments'!A:B,2,FALSE)","v":"Research Support Fund"},"43001300","","","","",""]
["43","302",null,null,"OVPR OPERATIONS               ","1025AR302174","15000","12400","11500","43001001",{"$f":"VLOOKUP(TRIM(J8196),'Transactional Departments'!A:B,2,FALSE)","v":"VP Office Research Admin"},"43001001","","","","",""]
["43","302",null,null,"RESEARCH SUPPORT DESIGNATED   ","1025AR302183","15000","12400","11500","43001310",{"$f":"VLOOKUP(TRIM(J8201),'Transactional Departments'!A:B,2,FALSE)","v":"Research Support Undesignated"},"43001310","","","","",""]
["43","302",null,null,"RESEARCH SUPPORT              ","1025GR302000","10000","12400","11200","43001001",{"$f":"VLOOKUP(TRIM(J8207),'Transactional Departments'!A:B,2,FALSE)","v":"VP Office Research Admin"},"43001001","","","","",""]
["43","302",null,null,"VP ANIMAL CARE & USE          ","1026AR302002","15000","12200","11500","43001105",{"$f":"VLOOKUP(TRIM(J8211),'Transactional Departments'!A:B,2,FALSE)","v":"Animal Care And Use"},"43001105","","","","",""]
["43","302",null,null,"RESEARCH SUPPORT              ","1026GR302000","10000","12200","11200","43001001",{"$f":"VLOOKUP(TRIM(J8214),'Transactional Departments'!A:B,2,FALSE)","v":"VP Office Research Admin"},"43001001","","","","",""]
["43","374",null,null,"UPN/GATESRF BIONINFORMAT KISSI","1021RR374054","20400","12100","62523","43350001",{"$f":"VLOOKUP(TRIM(J8219),'Transactional Departments'!A:B,2,FALSE)","v":"CTEGD Administration"},"43350001","","","","",""]
["43","374",null,null,"NIH      RF BIO API PLA  STRIE","1021RR374076","20400","12100","61018","43350001",{"$f":"VLOOKUP(TRIM(J8225),'Transactional Departments'!A:B,2,FALSE)","v":"CTEGD Administration"},"43350001","","","","",""]
["43","374",null,null,"         RF CDDC MEETING TARLE","1021RR374082","20400","12100","64466","43350001",{"$f":"VLOOKUP(TRIM(J8230),'Transactional Departments'!A:B,2,FALSE)","v":"CTEGD Administration"},"43350001","","","","",""]
["43","374",null,null,"NIH      RF DIV SUP374059DOCAM","1021RR374083","20400","12100","61018","43350001",{"$f":"VLOOKUP(TRIM(J8231),'Transactional Departments'!A:B,2,FALSE)","v":"CTEGD Administration"},"43350001","","","","",""]
["43","374",null,null,"NIH      RF TEGD TUITION      ","1021RR374150","20400","12100","61018","43350001",{"$f":"VLOOKUP(TRIM(J8239),'Transactional Departments'!A:B,2,FALSE)","v":"CTEGD Administration"},"43350001","","","","",""]
["43","374",null,null,"WHOI/MOORRF RF_MICROEUKARDOCAM","1021RR374155","20400","12100","64199","43350001",{"$f":"VLOOKUP(TRIM(J8242),'Transactional Departments'!A:B,2,FALSE)","v":"CTEGD Administration"},"43350001","","","","",""]
["43","374",null,null,"ROYALTY INV RSCH   TARLE      ","1021RX374048","20300","12100","64RYT","43350001",{"$f":"VLOOKUP(TRIM(J8244),'Transactional Departments'!A:B,2,FALSE)","v":"CTEGD Administration"},"43350001","","","","",""]
["43","374",null,null,"KISSINGER SUPP                ","1025AR374003","15000","12400","11500","43350025",{"$f":"VLOOKUP(TRIM(J8249),'Transactional Departments'!A:B,2,FALSE)","v":"Kissinger Support"},"43350025","","","","",""]
["43","374",null,null,"OPTICAL MICROSCOPY FACILITY   ","1026DR374006","14100","12200","41500","43350010",{"$f":"VLOOKUP(TRIM(J8254),'Transactional Departments'!A:B,2,FALSE)","v":"Optical Microscopy Core Facil"},"43350010","","","","",""]
["43","374",null,null,"CTEGD ADMINISTRATION          ","1026GJ374003","10000","11140","11200","43350001",{"$f":"VLOOKUP(TRIM(J8258),'Transactional Departments'!A:B,2,FALSE)","v":"CTEGD Administration"},"43350001","","","","",""]
["43","376",null,null,"NIH      RF PREVEN RURAL BEACH","1021BO376029","15000","12110","11500","43300001",{"$f":"VLOOKUP(TRIM(J8265),'Transactional Departments'!A:B,2,FALSE)","v":"CFR Research Operations"},"43300001","","","","",""]
["43","376",null,null,"NIH      RF AFRCN AMRCN FBRODY","1021BO376370","15000","12110","11500","43300001",{"$f":"VLOOKUP(TRIM(J8268),'Transactional Departments'!A:B,2,FALSE)","v":"CFR Research Operations"},"43300001","","","","",""]
["43","376",null,null,"NIH      RF DRUGUSE/HIV  BRODY","1021BO376419","15000","12110","11500","43300001",{"$f":"VLOOKUP(TRIM(J8272),'Transactional Departments'!A:B,2,FALSE)","v":"CFR Research Operations"},"43300001","","","","",""]
["43","376",null,null,"NIH      RF PREVEN RURAL BEACH","1021CO376029","10000","12110","11200","43300001",{"$f":"VLOOKUP(TRIM(J8277),'Transactional Departments'!A:B,2,FALSE)","v":"CFR Research Operations"},"43300001","","","","",""]
["43","376",null,null,"NIH      RF DUAL INOC AP KOGAN","1021CO376418","10000","12110","11200","43300001",{"$f":"VLOOKUP(TRIM(J8282),'Transactional Departments'!A:B,2,FALSE)","v":"CFR Research Operations"},"43300001","","","","",""]
["43","376",null,null,"NIH      RF DRUGUSE/HIV  BRODY","1021CO376428","10000","12110","11200","43300001",{"$f":"VLOOKUP(TRIM(J8284),'Transactional Departments'!A:B,2,FALSE)","v":"CFR Research Operations"},"43300001","","","","",""]
["43","376",null,null,"NIH      RF EMERGING ADULBRODY","1021RR376342","20400","12100","61018","43300001",{"$f":"VLOOKUP(TRIM(J8289),'Transactional Departments'!A:B,2,FALSE)","v":"CFR Research Operations"},"43300001","","","","",""]
["43","376",null,null,"UWGA     RF TA AND EVALU BROWN","1021RR376413","20400","12100","64356","43300001",{"$f":"VLOOKUP(TRIM(J8296),'Transactional Departments'!A:B,2,FALSE)","v":"CFR Research Operations"},"43300001","","","","",""]
["43","376",null,null,"PCRAS TRANS EHRLICH/SHAFFER   ","1025DR376004","14100","12400","41500","43300301",{"$f":"VLOOKUP(TRIM(J8300),'Transactional Departments'!A:B,2,FALSE)","v":"CFR Ehrlich/Shaffer"},"43300301","","","","",""]
["43","376",null,null,"BRODY INDIRECT COST RETURNS   ","1026AR376001","15000","12200","11500","43300001",{"$f":"VLOOKUP(TRIM(J8301),'Transactional Departments'!A:B,2,FALSE)","v":"CFR Research Operations"},"43300001","","","","",""]
["43","376",null,null,"STEVE KOGAN SALARY SAVING     ","1026GR376004","10000","12200","11200","43300204",{"$f":"VLOOKUP(TRIM(J8307),'Transactional Departments'!A:B,2,FALSE)","v":"CFR S Kogan"},"43300204","","","","",""]
["43","380",null,null,"SECOORA  RF RF_FRMWK MONITO_NO","1021RR380054","20400","12100","64151","43400001",{"$f":"VLOOKUP(TRIM(J8312),'Transactional Departments'!A:B,2,FALSE)","v":"CAIS Administration"},"43400001","","","","",""]
["43","380",null,null,"         RESIDUAL #380RR NOAKE","1021RX380950","20400","12100","64RBP","43400001",{"$f":"VLOOKUP(TRIM(J8315),'Transactional Departments'!A:B,2,FALSE)","v":"CAIS Administration"},"43400001","","","","",""]
["43","380",null,null,"CAIS CONFERENCE/WORKSHOP      ","1026DW380003","14100","12200","41500","43400110",{"$f":"VLOOKUP(TRIM(J8319),'Transactional Departments'!A:B,2,FALSE)","v":"CAIS Conf & Wrksp"},"43400110","","","","",""]
["43","549",null,null,"NIH      RF MAMM GLYCO   BOONS","1021BO549379","15000","12110","11500","43450001",{"$f":"VLOOKUP(TRIM(J8324),'Transactional Departments'!A:B,2,FALSE)","v":"CCRC Administration"},"43450001","","","","",""]
["43","549",null,null,"NIH      RF GLYCOSCI TRN_PIERC","1021BO549529","15000","12110","11500","43450001",{"$f":"VLOOKUP(TRIM(J8329),'Transactional Departments'!A:B,2,FALSE)","v":"CCRC Administration"},"43450001","","","","",""]
["43","549",null,null,"NIH      RF RF_INTEGRAT GLY_MO","1021BO549580","15000","12110","11500","43450001",{"$f":"VLOOKUP(TRIM(J8335),'Transactional Departments'!A:B,2,FALSE)","v":"CCRC Administration"},"43450001","","","","",""]
["43","549",null,null,"NIH      RF MAMM GLYCO   BOONS","1021BR549379","15000","12110","11500","43450001",{"$f":"VLOOKUP(TRIM(J8339),'Transactional Departments'!A:B,2,FALSE)","v":"CCRC Administration"},"43450001","","","","",""]
["43","549",null,null,"RSU/NIH  RF EUKAR DOMAIN PREST","1021BR549508","15000","12110","11500","43450001",{"$f":"VLOOKUP(TRIM(J8342),'Transactional Departments'!A:B,2,FALSE)","v":"CCRC Administration"},"43450001","","","","",""]
["43","549",null,null,"NIH      RF COMPLEX GLYC BOONS","1021BR549526","15000","12110","11500","43450001",{"$f":"VLOOKUP(TRIM(J8347),'Transactional Departments'!A:B,2,FALSE)","v":"CCRC Administration"},"43450001","","","","",""]
["43","549",null,null,"NIH      RF CHEMOENZ SYN BOONS","1021BR549567","15000","12110","11500","43450001",{"$f":"VLOOKUP(TRIM(J8353),'Transactional Departments'!A:B,2,FALSE)","v":"CCRC Administration"},"43450001","","","","",""]
["43","549",null,null,"NIH      RF RF_INTEGRAT GLY_MO","1021BR549580","15000","12110","11500","43450001",{"$f":"VLOOKUP(TRIM(J8354),'Transactional Departments'!A:B,2,FALSE)","v":"CCRC Administration"},"43450001","","","","",""]
["43","549",null,null,"UFL/NIH  RF RF_MATERN COREDISO","1021CR549399","10000","12110","11200","43450001",{"$f":"VLOOKUP(TRIM(J8359),'Transactional Departments'!A:B,2,FALSE)","v":"CCRC Administration"},"43450001","","","","",""]
["43","549",null,null,"NIH      RF GLYCOSCI TRN_PIERC","1021CR549560","10000","12110","11200","43450001",{"$f":"VLOOKUP(TRIM(J8362),'Transactional Departments'!A:B,2,FALSE)","v":"CCRC Administration"},"43450001","","","","",""]
["43","549",null,null,"NYU/NIH  RF SUB FOR 760009    ","1021CR549705","10000","12110","11200","43450001",{"$f":"VLOOKUP(TRIM(J8370),'Transactional Departments'!A:B,2,FALSE)","v":"CCRC Administration"},"43450001","","","","",""]
["43","549",null,null,"NIH      RF W/ 182-371   MAIER","1021RR549287","20400","12100","61018","43450001",{"$f":"VLOOKUP(TRIM(J8372),'Transactional Departments'!A:B,2,FALSE)","v":"CCRC Administration"},"43450001","","","","",""]
["43","549",null,null,"CAL/NIH  RF GLYCAN MODUL BOONS","1021RR549355","20400","12100","62561","43450001",{"$f":"VLOOKUP(TRIM(J8377),'Transactional Departments'!A:B,2,FALSE)","v":"CCRC Administration"},"43450001","","","","",""]
["43","549",null,null,"DOE      RF SUP 272-395  TSAI ","1021RR549374","20400","12100","61001","43450001",{"$f":"VLOOKUP(TRIM(J8382),'Transactional Departments'!A:B,2,FALSE)","v":"CCRC Administration"},"43450001","","","","",""]
["43","549",null,null,"NIH      RF ABRNT NGLYCANBOONS","1021RR549381","20400","12100","61018","43450001",{"$f":"VLOOKUP(TRIM(J8386),'Transactional Departments'!A:B,2,FALSE)","v":"CCRC Administration"},"43450001","","","","",""]
["43","549",null,null,"NIH      RF NEW REAG DNP PREST","1021RR549388","20400","12100","61018","43450001",{"$f":"VLOOKUP(TRIM(J8389),'Transactional Departments'!A:B,2,FALSE)","v":"CCRC Administration"},"43450001","","","","",""]
["43","549",null,null,"         RF I-CELL       STEET","1021RR549492","20400","12100","64155","43450001",{"$f":"VLOOKUP(TRIM(J8394),'Transactional Departments'!A:B,2,FALSE)","v":"CCRC Administration"},"43450001","","","","",""]
["43","549",null,null,"UF/NIH   RF SECIM        PREST","1021RR549512","20400","12100","62511","43450001",{"$f":"VLOOKUP(TRIM(J8401),'Transactional Departments'!A:B,2,FALSE)","v":"CCRC Administration"},"43450001","","","","",""]
["43","549",null,null,"AHA      RF HEPARAN SULF WANG ","1021RR549519","20400","12100","64127","43450001",{"$f":"VLOOKUP(TRIM(J8405),'Transactional Departments'!A:B,2,FALSE)","v":"CCRC Administration"},"43450001","","","","",""]
["43","549",null,null,"DOE      RF HEMICELLULOS YORK ","1021RR549540","20400","12100","61001","43450001",{"$f":"VLOOKUP(TRIM(J8410),'Transactional Departments'!A:B,2,FALSE)","v":"CCRC Administration"},"43450001","","","","",""]
["43","549",null,null,"NIH      RF IA W/549-513 BOONS","1021RR549544","20400","12100","61018","43450001",{"$f":"VLOOKUP(TRIM(J8412),'Transactional Departments'!A:B,2,FALSE)","v":"CCRC Administration"},"43450001","","","","",""]
["43","549",null,null,"VARI/NIH RF CANCER BIOM  MOREM","1021RR549569","20400","12100","64136","43450001",{"$f":"VLOOKUP(TRIM(J8417),'Transactional Departments'!A:B,2,FALSE)","v":"CCRC Administration"},"43450001","","","","",""]
["43","549",null,null,"SCRIPPS  RF RF_CHEMO METHMOREM","1021RR549598","20400","12100","64306","43450001",{"$f":"VLOOKUP(TRIM(J8419),'Transactional Departments'!A:B,2,FALSE)","v":"CCRC Administration"},"43450001","","","","",""]
["43","549",null,null,"MERCK    RF RF_CAMPYLOBACSZYMA","1021RR549607","20400","12100","64006","43450001",{"$f":"VLOOKUP(TRIM(J8424),'Transactional Departments'!A:B,2,FALSE)","v":"CCRC Administration"},"43450001","","","","",""]
["43","549",null,null,"ROYALTY RSCH/MOMOREM          ","1021RX549123","20300","12100","64RYT","43450240",{"$f":"VLOOKUP(TRIM(J8429),'Transactional Departments'!A:B,2,FALSE)","v":"K Moremen"},"43450240","","","","",""]
["43","549",null,null,"         RESIDUAL #549RR ALBER","1021RX549950","20400","12100","64RBP","43450001",{"$f":"VLOOKUP(TRIM(J8435),'Transactional Departments'!A:B,2,FALSE)","v":"CCRC Administration"},"43450001","","","","",""]
["43","549",null,null,"FACULTY STARTUP - SZYMANSKI   ","1025AR549007","15000","12400","11500","43450300",{"$f":"VLOOKUP(TRIM(J8440),'Transactional Departments'!A:B,2,FALSE)","v":"C Szymanski"},"43450300","","","","",""]
["43","549",null,null,"CCRC VIP TUITION FUNDS        ","1025GR549970","10000","12400","11200","43450005",{"$f":"VLOOKUP(TRIM(J8443),'Transactional Departments'!A:B,2,FALSE)","v":"CCRC Vip Tuition Return"},"43450005","","","","",""]
["43","549",null,null,"CCRC SUPPLY CABINET           ","1026DR549005","14100","12200","41500","43450115",{"$f":"VLOOKUP(TRIM(J8447),'Transactional Departments'!A:B,2,FALSE)","v":"Supply Cabinet"},"43450115","","","","",""]
["43","549",null,null,"CCRC SUPPORT - BOONS          ","1026GR549007","10000","12200","11200","43450210",{"$f":"VLOOKUP(TRIM(J8452),'Transactional Departments'!A:B,2,FALSE)","v":"Gj Boons"},"43450210","","","","",""]
["43","553",null,null,"EU-NIH   RF MAHPIC CORE5 KISSI","1021CO553024","10000","12110","11200","43200001",{"$f":"VLOOKUP(TRIM(J8458),'Transactional Departments'!A:B,2,FALSE)","v":"IOB General Operations"},"43200001","","","","",""]
["43","553",null,null,"NIH      RF CRYPTOSPORI  KISSI","1021RR553019","20400","12100","61018","43200001",{"$f":"VLOOKUP(TRIM(J8459),'Transactional Departments'!A:B,2,FALSE)","v":"IOB General Operations"},"43200001","","","","",""]
["43","553",null,null,"INSTITUTE OF BIOINFORMATICS   ","1026GR553000","10000","12200","11200","43200001",{"$f":"VLOOKUP(TRIM(J8467),'Transactional Departments'!A:B,2,FALSE)","v":"IOB General Operations"},"43200001","","","","",""]
["43","599",null,null,"NEW MATERIALS INST UGA IDC    ","1025AR599001","15000","12400","11500","43510001",{"$f":"VLOOKUP(TRIM(J8470),'Transactional Departments'!A:B,2,FALSE)","v":"New Materials Inst Adm"},"43510001","","","","",""]
["43","600",null,null,"GRA      RF PHYTOSYNTHET SCHUL","1021RR600050","20400","12100","62062","43001505",{"$f":"VLOOKUP(TRIM(J8475),'Transactional Departments'!A:B,2,FALSE)","v":"GRA Ventures"},"43001505","","","","",""]
["43","600",null,null,"GRA      RF VENT PHASE1A SCHUL","1021RR600052","20400","12100","62062","43001505",{"$f":"VLOOKUP(TRIM(J8476),'Transactional Departments'!A:B,2,FALSE)","v":"GRA Ventures"},"43001505","","","","",""]
["43","732",null,null,"BIOMED & HEALTH SCI INSTITUTE ","1011GH732000","10000","11100","11200","43500004",{"$f":"VLOOKUP(TRIM(J8482),'Transactional Departments'!A:B,2,FALSE)","v":"MBB Program"},"43500004","","","","",""]
["43","732",null,null,"UGAF     BHSI ONE HEALTH LEE  ","1021RR732072","20200","12100","67546","43500001",{"$f":"VLOOKUP(TRIM(J8487),'Transactional Departments'!A:B,2,FALSE)","v":"BHSI Administration"},"43500001","","","","",""]
["43","732",null,null,"VICAPSYS RF CXCL12       SANCH","1021RR732076","20400","12100","64076","43500001",{"$f":"VLOOKUP(TRIM(J8491),'Transactional Departments'!A:B,2,FALSE)","v":"BHSI Administration"},"43500001","","","","",""]
["43","732",null,null,"         RESIDUAL #732RR DAILE","1021RX732950","20400","12100","64RBP","43500001",{"$f":"VLOOKUP(TRIM(J8494),'Transactional Departments'!A:B,2,FALSE)","v":"BHSI Administration"},"43500001","","","","",""]
["43","732",null,null,"IPE EVENT                     ","1031DW732006","14100","13100","41500","43500005",{"$f":"VLOOKUP(TRIM(J8500),'Transactional Departments'!A:B,2,FALSE)","v":"IPE Event"},"43500005","","","","",""]
["43","757",null,null,"NIH      RF D&D CNCR GLYCPIERC","1021RR757023","20400","12100","61018","43470001",{"$f":"VLOOKUP(TRIM(J8505),'Transactional Departments'!A:B,2,FALSE)","v":"Cancer Center Administration"},"43470001","","","","",""]
["43","757",null,null,"CANCER CENTER OF EXCELLENCE   ","1026GR757000","10000","12200","11200","43470001",{"$f":"VLOOKUP(TRIM(J8510),'Transactional Departments'!A:B,2,FALSE)","v":"Cancer Center Administration"},"43470001","","","","",""]
["51","006",null,null,"DSS CARRY FORWARD             ","1031DE006925","14100","13100","41500","51001001",{"$f":"VLOOKUP(TRIM(J8514),'Transactional Departments'!A:B,2,FALSE)","v":"VPPSO Admin"},"51001001","","","","",""]
["51","006",null,null,"VP PUBLIC SERVICE & OUTREACH  ","1031GE006000","10000","13100","11200","51001001",{"$f":"VLOOKUP(TRIM(J8517),'Transactional Departments'!A:B,2,FALSE)","v":"VPPSO Admin"},"51001001","","","","",""]
["51","006",null,null,"WBH PUBLIC SERVICE #2         ","1031GE006019","10000","13100","11200","51001004",{"$f":"VLOOKUP(TRIM(J8522),'Transactional Departments'!A:B,2,FALSE)","v":"VPPSO Hill Award"},"51001004","","","","",""]
["51","006",null,null,"VP PUBLIC SERVICE & OUTREACH  ","1031GJ006000","10000","11140","11200","51001001",{"$f":"VLOOKUP(TRIM(J8524),'Transactional Departments'!A:B,2,FALSE)","v":"VPPSO Admin"},"51001001","","","","",""]
["51","011",null,null,"         UGARF SUPPORT BOTANIC","1021RX011900","20300","12100","64ICR","51080007",{"$f":"VLOOKUP(TRIM(J8529),'Transactional Departments'!A:B,2,FALSE)","v":"Conservation & Research"},"51080007","","","","",""]
["51","011",null,null,"HORTICULTURE & GROUNDS        ","1031DE011003","14100","13100","41500","51080003",{"$f":"VLOOKUP(TRIM(J8533),'Transactional Departments'!A:B,2,FALSE)","v":"Horticulture"},"51080003","","","","",""]
["51","011",null,null,"FACILITIES & VISITOR SERVICES ","1031GE011015","10000","13100","11200","51080005",{"$f":"VLOOKUP(TRIM(J8540),'Transactional Departments'!A:B,2,FALSE)","v":"Visitor Services"},"51080005","","","","",""]
["51","011",null,null,"UGAF     CHILDREN GARDEN BERRY","1031RE011064","20200","13100","67556","51080002",{"$f":"VLOOKUP(TRIM(J8545),'Transactional Departments'!A:B,2,FALSE)","v":"Botantical Garden Admin"},"51080002","","","","",""]
["51","011",null,null,"UGAF     CONNECT TO PROTEFRUM ","1031RE011085","20200","13100","","51080002",{"$f":"VLOOKUP(TRIM(J8548),'Transactional Departments'!A:B,2,FALSE)","v":"Botantical Garden Admin"},"51080002","","","","",""]
["51","011",null,null,"BOTANICAL GARDEN              ","1045GT011000","10000","14500","11200","51080007",{"$f":"VLOOKUP(TRIM(J8552),'Transactional Departments'!A:B,2,FALSE)","v":"Conservation & Research"},"51080007","","","","",""]
["51","011",null,null,"BOT GDN DEPOSIT REFUND        ","9084GN011012","60000","","","51080005",{"$f":"VLOOKUP(TRIM(J8557),'Transactional Departments'!A:B,2,FALSE)","v":"Visitor Services"},"51080005","","","","",""]
["51","206",null,null,"SBDC MEDICAL PRACTICE MGMT    ","1031DE206007","14100","13100","41500","51070001",{"$f":"VLOOKUP(TRIM(J8562),'Transactional Departments'!A:B,2,FALSE)","v":"SBDC Administration"},"51070001","","","","",""]
["51","206",null,null,"SBDC ADMINISTRATION           ","1031DE206013","14100","13100","41500","51070001",{"$f":"VLOOKUP(TRIM(J8564),'Transactional Departments'!A:B,2,FALSE)","v":"SBDC Administration"},"51070001","","","","",""]
["51","206",null,null,"SMALL BUSINESS DEVELOPMENT CTR","1031GJ206000","10000","11140","11200","51070001",{"$f":"VLOOKUP(TRIM(J8571),'Transactional Departments'!A:B,2,FALSE)","v":"SBDC Administration"},"51070001","","","","",""]
["51","206",null,null,"SBA      PI ALBANY FY15  WILLI","1031RE206331","20400","13100","61026","51070001",{"$f":"VLOOKUP(TRIM(J8575),'Transactional Departments'!A:B,2,FALSE)","v":"SBDC Administration"},"51070001","","","","",""]
["51","206",null,null,"SBA PI DEKALB FY15       WILLI","1031RE206336","20400","13100","61026","51070001",{"$f":"VLOOKUP(TRIM(J8580),'Transactional Departments'!A:B,2,FALSE)","v":"SBDC Administration"},"51070001","","","","",""]
["51","206",null,null,"SBA PI   GNSVILLE FY15   WILLI","1031RE206337","20400","13100","61026","51070001",{"$f":"VLOOKUP(TRIM(J8581),'Transactional Departments'!A:B,2,FALSE)","v":"SBDC Administration"},"51070001","","","","",""]
["51","206",null,null,"UGAF     MDCL PRAC MGMT  FRUM ","1031RE206343","20200","13100","67571","51070001",{"$f":"VLOOKUP(TRIM(J8587),'Transactional Departments'!A:B,2,FALSE)","v":"SBDC Administration"},"51070001","","","","",""]
["51","206",null,null,"GIT/USDC RE206-345 PI    WILLI","1031RE206347","20400","13100","62021","51070001",{"$f":"VLOOKUP(TRIM(J8590),'Transactional Departments'!A:B,2,FALSE)","v":"SBDC Administration"},"51070001","","","","",""]
["51","206",null,null,"CLAYTON ST SBDC CONTRACT CTR  ","9086GN206010","60000","","","51070003",{"$f":"VLOOKUP(TRIM(J8598),'Transactional Departments'!A:B,2,FALSE)","v":"SBDC Centers"},"51070003","","","","CSU",""]
["51","206",null,null,"GA STATE SBDC CONTRACT CTR    ","9086GN206013","60000","","","51070003",{"$f":"VLOOKUP(TRIM(J8599),'Transactional Departments'!A:B,2,FALSE)","v":"SBDC Centers"},"51070003","","","","GSU",""]
["51","336",null,null,"INDIRECT COST RECOVERY        ","1031AE336001","15000","13100","11500","51020010",{"$f":"VLOOKUP(TRIM(J8605),'Transactional Departments'!A:B,2,FALSE)","v":"CVIOG Director"},"51020010","","","","",""]
["51","336",null,null,"LOCAL GOVERNMENT UNIT         ","1031DE336010","14100","13100","41500","51020050",{"$f":"VLOOKUP(TRIM(J8610),'Transactional Departments'!A:B,2,FALSE)","v":"CVIOG SOPA Division"},"51020050","","","","","51SOPALOCG"]
["51","336",null,null,"PLANNING & ENVIRONMENTAL SERV ","1031DE336051","14100","13100","41500","51020050",{"$f":"VLOOKUP(TRIM(J8615),'Transactional Departments'!A:B,2,FALSE)","v":"CVIOG SOPA Division"},"51020050","","","","","51SOPAPLNE"]
["51","336",null,null,"ACCG CURRICULUM DEVELOPMENT   ","1031DE336067","14100","13100","41500","51020010",{"$f":"VLOOKUP(TRIM(J8619),'Transactional Departments'!A:B,2,FALSE)","v":"CVIOG Director"},"51020010","","","","",""]
["51","336",null,null,"GTED FACILITATION             ","1031DE336076","14100","13100","41500","51020020",{"$f":"VLOOKUP(TRIM(J8622),'Transactional Departments'!A:B,2,FALSE)","v":"CVIOG GTED Divison"},"51020020","","","","","51GTEDLEAD"]
["51","336",null,null,"EXEC SEARCHES                 ","1031DE336091","14100","13100","41500","51020050",{"$f":"VLOOKUP(TRIM(J8628),'Transactional Departments'!A:B,2,FALSE)","v":"CVIOG SOPA Division"},"51020050","","","","","51SOPAHMNR"]
["51","336",null,null,"GA PUBLIC SAFETY TESTING      ","1031DE336098","14100","13100","41500","51020010",{"$f":"VLOOKUP(TRIM(J8633),'Transactional Departments'!A:B,2,FALSE)","v":"CVIOG Director"},"51020010","","","","",""]
["51","336",null,null,"COLUMBUS PERSONNEL TESTING    ","1031DE336099","14100","13100","41500","51020010",{"$f":"VLOOKUP(TRIM(J8634),'Transactional Departments'!A:B,2,FALSE)","v":"CVIOG Director"},"51020010","","","","",""]
["51","336",null,null,"GGFOA TRAINING                ","1031DW336002","14100","13100","41500","51020020",{"$f":"VLOOKUP(TRIM(J8638),'Transactional Departments'!A:B,2,FALSE)","v":"CVIOG GTED Divison"},"51020020","","","","","51GTEDFMPM"]
["51","336",null,null,"ELECTION OFFICIAL TRAINING    ","1031DW336021","14100","13100","41500","51020020",{"$f":"VLOOKUP(TRIM(J8645),'Transactional Departments'!A:B,2,FALSE)","v":"CVIOG GTED Divison"},"51020020","","","","","51GTEDPROF"]
["51","336",null,null,"LOCAL FINANCE TRADITIONAL CLSR","1031DW336034","14100","13100","41500","51020020",{"$f":"VLOOKUP(TRIM(J8650),'Transactional Departments'!A:B,2,FALSE)","v":"CVIOG GTED Divison"},"51020020","","","","","51GTEDFMPM"]
["51","336",null,null,"GMA TRAINING                  ","1031DW336038","14100","13100","41500","51020010",{"$f":"VLOOKUP(TRIM(J8652),'Transactional Departments'!A:B,2,FALSE)","v":"CVIOG Director"},"51020010","","","","",""]
["51","336",null,null,"GLGPA TRAINING                ","1031DW336043","14100","13100","41500","51020020",{"$f":"VLOOKUP(TRIM(J8657),'Transactional Departments'!A:B,2,FALSE)","v":"CVIOG GTED Divison"},"51020020","","","","","51GTEDLEAD"]
["51","336",null,null,"EVIDENCED-BASED TRAINING      ","1031DW336068","14100","13100","41500","51020040",{"$f":"VLOOKUP(TRIM(J8661),'Transactional Departments'!A:B,2,FALSE)","v":"CVIOG SSDS Division"},"51020040","","","","","51SSDSWORK"]
["51","336",null,null,"CHINA INTERN TRAINING PROGRAM ","1031DW336082","14100","13100","41500","51020060",{"$f":"VLOOKUP(TRIM(J8668),'Transactional Departments'!A:B,2,FALSE)","v":"CVIOG International Center"},"51020060","","","","","51INTLCHIN"]
["51","336",null,null,"KOREAN TRAINING PROGRAM       ","1031DW336083","14100","13100","41500","51020060",{"$f":"VLOOKUP(TRIM(J8669),'Transactional Departments'!A:B,2,FALSE)","v":"CVIOG International Center"},"51020060","","","","","51INTLKORE"]
["51","336",null,null,"WORKFORCE DEV TRAINING        ","1031DW336102","14100","13100","41500","51020010",{"$f":"VLOOKUP(TRIM(J8676),'Transactional Departments'!A:B,2,FALSE)","v":"CVIOG Director"},"51020010","","","","",""]
["51","336",null,null,"CARL VINSON INSTITUTE OF GOVT ","1031GE336000","10000","13100","11200","51020010",{"$f":"VLOOKUP(TRIM(J8680),'Transactional Departments'!A:B,2,FALSE)","v":"CVIOG Director"},"51020010","","","","",""]
["51","336",null,null,"CVIOG SPECIAL PROJECTS        ","1031GE336031","10000","13100","11200","51020010",{"$f":"VLOOKUP(TRIM(J8685),'Transactional Departments'!A:B,2,FALSE)","v":"CVIOG Director"},"51020010","","","","",""]
["51","336",null,null,"CVIOG GRADUATE ASSISTANTSHIPS ","1031GE336054","10000","13100","11200","51020010",{"$f":"VLOOKUP(TRIM(J8690),'Transactional Departments'!A:B,2,FALSE)","v":"CVIOG Director"},"51020010","","","","",""]
["51","336",null,null,"CVIOG OTHER GENERAL FUNDS     ","1031GJ336004","10600","11140","11300","51020010",{"$f":"VLOOKUP(TRIM(J8692),'Transactional Departments'!A:B,2,FALSE)","v":"CVIOG Director"},"51020010","","","","",""]
["51","336",null,null,"UGAF     GA LEG LEAD DEV WRIGL","1031RE336232","20200","13100","67615","51020010",{"$f":"VLOOKUP(TRIM(J8695),'Transactional Departments'!A:B,2,FALSE)","v":"CVIOG Director"},"51020010","","","","",""]
["51","337",null,null,"ADVISORY SERVICES             ","2700GE337002","11630","","11300","51060200",{"$f":"VLOOKUP(TRIM(J8703),'Transactional Departments'!A:B,2,FALSE)","v":"Advisory"},"51060200","","","","",""]
["51","337",null,null,"M E EDUCATION                 ","2700GE337003","11630","","11300","51060300",{"$f":"VLOOKUP(TRIM(J8704),'Transactional Departments'!A:B,2,FALSE)","v":"Marine Education"},"51060300","","","","",""]
["51","337",null,null,"USDC     RF O/SD-2       HOPKI","2721CR337482","11330","12110","11200","51060100",{"$f":"VLOOKUP(TRIM(J8709),'Transactional Departments'!A:B,2,FALSE)","v":"MAREX Administration"},"51060100","","","","",""]
["51","337",null,null,"ADVISORY SERVICES ICR         ","2726AR337002","15330","12200","11500","51060100",{"$f":"VLOOKUP(TRIM(J8715),'Transactional Departments'!A:B,2,FALSE)","v":"MAREX Administration"},"51060100","","","","",""]
["51","337",null,null,"MARINE EXTENSION SERVICE      ","2731GE337000","11330","13100","11200","51060100",{"$f":"VLOOKUP(TRIM(J8720),'Transactional Departments'!A:B,2,FALSE)","v":"MAREX Administration"},"51060100","","","","",""]
["51","337",null,null,"FIELD SERVICES                ","2731GE337004","11330","13100","11200","51060100",{"$f":"VLOOKUP(TRIM(J8723),'Transactional Departments'!A:B,2,FALSE)","v":"MAREX Administration"},"51060100","","","","",""]
["51","337",null,null,"MARINE EXTENSION SERVICE      ","2731GJ337000","11330","11140","11200","51060100",{"$f":"VLOOKUP(TRIM(J8727),'Transactional Departments'!A:B,2,FALSE)","v":"MAREX Administration"},"51060100","","","","",""]
["51","337",null,null,"CESU     CIT SCIENTIST   BLISS","2731RE337250","20400","13100","61034","51060100",{"$f":"VLOOKUP(TRIM(J8733),'Transactional Departments'!A:B,2,FALSE)","v":"MAREX Administration"},"51060100","","","","",""]
["51","337",null,null,"GDNR/USDCGROW-OUT GEAR   BLISS","2731RE337273","20400","13100","62016","51060100",{"$f":"VLOOKUP(TRIM(J8738),'Transactional Departments'!A:B,2,FALSE)","v":"MAREX Administration"},"51060100","","","","",""]
["51","337",null,null,"GDCA     STORMWATER      BROWN","2731RE337274","20400","13100","62011","51060100",{"$f":"VLOOKUP(TRIM(J8739),'Transactional Departments'!A:B,2,FALSE)","v":"MAREX Administration"},"51060100","","","","",""]
["51","338",null,null,"CARRY FORWARD FROM EE ACCOUNTS","1031EE338001","14000","13100","40000","51040300",{"$f":"VLOOKUP(TRIM(J8747),'Transactional Departments'!A:B,2,FALSE)","v":"GC Continuing Carryforward"},"51040300","","","","",""]
["51","338",null,null,"AUX GROUP C GA CTR PF ORIG BUD","8064GW338802","12210","21100","42100","51041010",{"$f":"VLOOKUP(TRIM(J8750),'Transactional Departments'!A:B,2,FALSE)","v":"GC Hotel"},"51041010","","","","",""]
["51","339",null,null,"HOUSEKEEPING                  ","1071GP339008","10000","17200","11200","51041020",{"$f":"VLOOKUP(TRIM(J8756),'Transactional Departments'!A:B,2,FALSE)","v":"GC Hotel Related"},"51041020","","","","",""]
["51","339",null,null,"GROUNDS                       ","1071GP339009","10000","17200","11200","51045320",{"$f":"VLOOKUP(TRIM(J8757),'Transactional Departments'!A:B,2,FALSE)","v":"GC Grounds"},"51045320","","","","",""]
["51","340",null,null,"FOODS UBI                     ","5330GN340003","12220","22100","42100","51042020",{"$f":"VLOOKUP(TRIM(J8762),'Transactional Departments'!A:B,2,FALSE)","v":"GC Food and Bev UBI"},"51042020","","","","",""]
["51","341",null,null,"AUX HOUSEKEEPING              ","5310GN341030","12210","21100","42100","51041030",{"$f":"VLOOKUP(TRIM(J8766),'Transactional Departments'!A:B,2,FALSE)","v":"GC Housekeeping"},"51041030","","","","",""]
["51","344",null,null,"SALES SERVICES                ","1031GJ344606","10500","11140","11800","51048120",{"$f":"VLOOKUP(TRIM(J8773),'Transactional Departments'!A:B,2,FALSE)","v":"GC Sec Sales"},"51048120","","","","",""]
["51","345",null,null,"JW FANNING INST FOR LDRSHP DEV","1011GH345000","10000","11100","11200","51030003",{"$f":"VLOOKUP(TRIM(J8774),'Transactional Departments'!A:B,2,FALSE)","v":"Fanning Institute Admin"},"51030003","","","","",""]
["51","345",null,null,"ELPNO                         ","1031DW345009","14100","13100","41500","51030009",{"$f":"VLOOKUP(TRIM(J8780),'Transactional Departments'!A:B,2,FALSE)","v":"ELPNO"},"51030009","","","","",""]
["51","345",null,null,"GIT/USDE NEAR PEER 15    MEYER","1031RE345064","20400","13100","62021","51030003",{"$f":"VLOOKUP(TRIM(J8785),'Transactional Departments'!A:B,2,FALSE)","v":"Fanning Institute Admin"},"51030003","","","","",""]
["51","345",null,null,"UGAF     GEORGIA LEADS SPFRUM ","1031RE345086","20200","13100","67620","51030003",{"$f":"VLOOKUP(TRIM(J8790),'Transactional Departments'!A:B,2,FALSE)","v":"Fanning Institute Admin"},"51030003","","","","",""]
["51","345",null,null,"GEMC     ACCOUNTNG ASSOC LEAHY","1031RE345091","20400","13100","64000","51030003",{"$f":"VLOOKUP(TRIM(J8792),'Transactional Departments'!A:B,2,FALSE)","v":"Fanning Institute Admin"},"51030003","","","","",""]
["51","345",null,null,"HALL CO  DFCS LEADERSHP  MEYER","1031RE345173","20400","13100","63021","51030003",{"$f":"VLOOKUP(TRIM(J8797),'Transactional Departments'!A:B,2,FALSE)","v":"Fanning Institute Admin"},"51030003","","","","",""]
["51","345",null,null,"SALES TAX DEPOSITS            ","9082GN345001","60000","","","51030003",{"$f":"VLOOKUP(TRIM(J8804),'Transactional Departments'!A:B,2,FALSE)","v":"Fanning Institute Admin"},"51030003","","","","",""]
["51","347",null,null,"WEB ID                        ","1013EH347038","14000","11300","40000","51047030",{"$f":"VLOOKUP(TRIM(J8808),'Transactional Departments'!A:B,2,FALSE)","v":"GC Webid"},"51047030","","","","",""]
["51","347",null,null,"CONTRACT OVERHEAD OPERATIONS  ","1031AE347001","15000","13100","11500","51047010",{"$f":"VLOOKUP(TRIM(J8809),'Transactional Departments'!A:B,2,FALSE)","v":"GC Ppd"},"51047010","","","","",""]
["51","347",null,null,"PPD - OTHER                   ","1031EE347004","14000","13100","40000","51047020",{"$f":"VLOOKUP(TRIM(J8813),'Transactional Departments'!A:B,2,FALSE)","v":"GC Office Acad Sp Programs"},"51047020","","","","",""]
["51","347",null,null,"OFFICE OF ACAD SPECIAL PROGRAM","1031GJ347006","10000","11140","11200","51047010",{"$f":"VLOOKUP(TRIM(J8820),'Transactional Departments'!A:B,2,FALSE)","v":"GC Ppd"},"51047010","","","","",""]
["51","347",null,null,"UGAF     SUMMER ACADMY UGFRUM ","1031RE347091","20200","13100","","51047010",{"$f":"VLOOKUP(TRIM(J8823),'Transactional Departments'!A:B,2,FALSE)","v":"GC Ppd"},"51047010","","","","",""]
["51","348",null,null,"EVENTS: RELATED               ","1031EE348101","14000","13100","40000","51048010",{"$f":"VLOOKUP(TRIM(J8827),'Transactional Departments'!A:B,2,FALSE)","v":"GC Sec Events"},"51048010","","","","",""]
["51","348",null,null,"RESIDUAL BALANCE           348","1031RX348950","20400","13100","64RBP","51047010",{"$f":"VLOOKUP(TRIM(J8832),'Transactional Departments'!A:B,2,FALSE)","v":"GC Ppd"},"51047010","","","","",""]
["51","350",null,null,"PAYROLL AND PERSONNEL         ","1031GJ350030","10500","11140","11800","51045120",{"$f":"VLOOKUP(TRIM(J8837),'Transactional Departments'!A:B,2,FALSE)","v":"GC Human Resources"},"51045120","","","","",""]
["51","379",null,null,"AUXILIARY-GROUP C INTEREST INC","5350GN379000","12270","27100","42100","51001001",{"$f":"VLOOKUP(TRIM(J8843),'Transactional Departments'!A:B,2,FALSE)","v":"VPPSO Admin"},"51001001","","","","",""]
["51","509",null,null,"INSTITUTE PRESS               ","5540GN509000","12230","23100","42100","51020010",{"$f":"VLOOKUP(TRIM(J8844),'Transactional Departments'!A:B,2,FALSE)","v":"CVIOG Director"},"51020010","","","","",""]
["51","531",null,null,"USDC     RF RR746-075         ","1021CR531158","10000","12110","11200","51020010",{"$f":"VLOOKUP(TRIM(J8851),'Transactional Departments'!A:B,2,FALSE)","v":"CVIOG Director"},"51020010","","","","",""]
["51","531",null,null,"UM/USDC  SHELLFISH       JONES","1031CE531326","10000","13120","11200","51020010",{"$f":"VLOOKUP(TRIM(J8855),'Transactional Departments'!A:B,2,FALSE)","v":"CVIOG Director"},"51020010","","","","",""]
["51","531",null,null,"SCA      MUNICIPAL SERV  BAGGE","1031RE531047","20400","13100","64000","51020010",{"$f":"VLOOKUP(TRIM(J8861),'Transactional Departments'!A:B,2,FALSE)","v":"CVIOG Director"},"51020010","","","","",""]
["51","531",null,null,"CCCSD    SOUTH DEKALB    BAGGE","1031RE531048","20400","13100","64000","51020010",{"$f":"VLOOKUP(TRIM(J8862),'Transactional Departments'!A:B,2,FALSE)","v":"CVIOG Director"},"51020010","","","","",""]
["51","531",null,null,"COW      WAYNE COUNTY    SIKES","1031RE531085","20400","13100","63011","51020010",{"$f":"VLOOKUP(TRIM(J8867),'Transactional Departments'!A:B,2,FALSE)","v":"CVIOG Director"},"51020010","","","","",""]
["51","531",null,null,"         MUNICIPAL SERV  OLOON","1031RE531093","20400","13100","64000","51020010",{"$f":"VLOOKUP(TRIM(J8870),'Transactional Departments'!A:B,2,FALSE)","v":"CVIOG Director"},"51020010","","","","",""]
["51","531",null,null,"         JAYCEE LANDING  ELKIN","1031RE531146","20400","13100","63011","51020010",{"$f":"VLOOKUP(TRIM(J8878),'Transactional Departments'!A:B,2,FALSE)","v":"CVIOG Director"},"51020010","","","","",""]
["51","531",null,null,"GDED/UDOLWIOA CONVENING  JOHNS","1031RE531176","20400","13100","62059","51020010",{"$f":"VLOOKUP(TRIM(J8880),'Transactional Departments'!A:B,2,FALSE)","v":"CVIOG Director"},"51020010","","","","",""]
["51","531",null,null,"UGAF     RAYONIER JACYEE FRUM ","1031RE531218","20200","13100","67622","51020010",{"$f":"VLOOKUP(TRIM(J8885),'Transactional Departments'!A:B,2,FALSE)","v":"CVIOG Director"},"51020010","","","","",""]
["51","531",null,null,"HARTWELL RF CLASS & COMP DAMAN","1031RE531324","20400","13100","63000","51020010",{"$f":"VLOOKUP(TRIM(J8890),'Transactional Departments'!A:B,2,FALSE)","v":"CVIOG Director"},"51020010","","","","",""]
["51","531",null,null,"         RF STAFFNG STDY BAGGE","1031RE531335","20400","13100","63053","51020010",{"$f":"VLOOKUP(TRIM(J8894),'Transactional Departments'!A:B,2,FALSE)","v":"CVIOG Director"},"51020010","","","","",""]
["51","531",null,null,"GDBHD    OPIOID TREATMNT JOHNS","1031RE531339","20400","13100","62061","51020010",{"$f":"VLOOKUP(TRIM(J8897),'Transactional Departments'!A:B,2,FALSE)","v":"CVIOG Director"},"51020010","","","","",""]
["51","531",null,null,"RESIDUAL BALANCE           531","4131RX531950","20400","13100","64RBP","51020010",{"$f":"VLOOKUP(TRIM(J8902),'Transactional Departments'!A:B,2,FALSE)","v":"CVIOG Director"},"51020010","","","","",""]
["51","538",null,null,"OFC OF INFO TECH OUTREACH SERV","1031GE538000","10000","13100","11200","51020030",{"$f":"VLOOKUP(TRIM(J8908),'Transactional Departments'!A:B,2,FALSE)","v":"CVIOG ITOS Division"},"51020030","","","","",""]
["51","538",null,null,"OFC OF INFO TECH OUTREACH SERV","1039GJ538000","10000","14400","11200","51020030",{"$f":"VLOOKUP(TRIM(J8913),'Transactional Departments'!A:B,2,FALSE)","v":"CVIOG ITOS Division"},"51020030","","","","",""]
["51","746",null,null,"USDC     RF M/PA-1       HOPKI","1021CR746075","10000","12110","11200","51050200",{"$f":"VLOOKUP(TRIM(J8918),'Transactional Departments'!A:B,2,FALSE)","v":"Sea Grant Administration"},"51050200","","","","",""]
["51","746",null,null,"NOAA     RF YUNTAO WANG FRISSE","1021RR746083","20400","12100","61009","51050200",{"$f":"VLOOKUP(TRIM(J8920),'Transactional Departments'!A:B,2,FALSE)","v":"Sea Grant Administration"},"51050200","","","","",""]
["51","746",null,null,"         UGARF IDC       RAWSO","1021RX746900","20300","12100","64ICR","51050200",{"$f":"VLOOKUP(TRIM(J8925),'Transactional Departments'!A:B,2,FALSE)","v":"Sea Grant Administration"},"51050200","","","","",""]
["51","746",null,null,"SEA GRANT PROGRAM INDIRCT COST","1025AR746001","15000","12400","11500","51050200",{"$f":"VLOOKUP(TRIM(J8927),'Transactional Departments'!A:B,2,FALSE)","v":"Sea Grant Administration"},"51050200","","","","",""]
["51","794",null,null,"ARCHWAY PARTNERSHIP           ","1031GJ794000","10000","11140","11200","51010000",{"$f":"VLOOKUP(TRIM(J8932),'Transactional Departments'!A:B,2,FALSE)","v":"Archway Partnership"},"51010000","","","","",""]
["51","794",null,null,"         HART CO FY16    GORDO","1031RE794008","20400","13100","63053","51010000",{"$f":"VLOOKUP(TRIM(J8937),'Transactional Departments'!A:B,2,FALSE)","v":"Archway Partnership"},"51010000","","","","",""]
["51","794",null,null,"RESIDUAL BALANCE          #794","1031RX794950","20400","13100","64RBP","51010000",{"$f":"VLOOKUP(TRIM(J8941),'Transactional Departments'!A:B,2,FALSE)","v":"Archway Partnership"},"51010000","","","","",""]
["57","101",null,null,"MULTICULTURAL SERV & PROGRAMS ","1052GS101003","10500","15200","11800","57006000",{"$f":"VLOOKUP(TRIM(J8948),'Transactional Departments'!A:B,2,FALSE)","v":"Multicultural Services & Progr"},"57006000","","","","",""]
["57","101",null,null,"UGAF     CRANE LDSHP     AYOOB","1052RS101015","20200","15200","67697","57003000",{"$f":"VLOOKUP(TRIM(J8951),'Transactional Departments'!A:B,2,FALSE)","v":"Center For Leadership & Servic"},"57003000","","","","",""]
["57","107",null,null,"         ASAPV           KINDE","1021RR107020","20200","12100","","57001000",{"$f":"VLOOKUP(TRIM(J8955),'Transactional Departments'!A:B,2,FALSE)","v":"OVPSA Operations"},"57001000","","","","",""]
["57","107",null,null,"PROF ENRICHMENT INSTITUTE     ","1051DS107007","14100","15100","41500","57001200",{"$f":"VLOOKUP(TRIM(J8960),'Transactional Departments'!A:B,2,FALSE)","v":"Learning & Strategic Init."},"57001200","","","","",""]
["57","107",null,null,"STUDENT AFFAIRS COMMUNICATIONS","1052GS107021","10500","15200","11800","57001300",{"$f":"VLOOKUP(TRIM(J8965),'Transactional Departments'!A:B,2,FALSE)","v":"Communications & Marketing Ini"},"57001300","","","","",""]
["57","107",null,null,"STUDENT AFFAIRS DEVELOPMENT   ","1052GS107032","10000","15200","11200","57001100",{"$f":"VLOOKUP(TRIM(J8967),'Transactional Departments'!A:B,2,FALSE)","v":"SA Development"},"57001100","","","","",""]
["57","107",null,null,"STU AFF EXE MGMT INST SUPPORT ","1061GA107025","10500","16100","11800","57001000",{"$f":"VLOOKUP(TRIM(J8972),'Transactional Departments'!A:B,2,FALSE)","v":"OVPSA Operations"},"57001000","","","","",""]
["57","110",null,null,"HOUSING SECURITY              ","5210GN110017","12210","21100","42100","57030008",{"$f":"VLOOKUP(TRIM(J8979),'Transactional Departments'!A:B,2,FALSE)","v":"HSG - Security"},"57030008","","","","",""]
["57","110",null,null,"ADMINISTRATIVE OPERATIONS     ","5210GN110054","12210","21100","42100","57030004",{"$f":"VLOOKUP(TRIM(J8983),'Transactional Departments'!A:B,2,FALSE)","v":"HSG - ASC Admin/HBHR/HAO"},"57030004","","","","",""]
["57","110",null,null,"STUDENT AFFAIRS COST RECOVERY ","5210GN110055","12210","21100","42100","57030001",{"$f":"VLOOKUP(TRIM(J8984),'Transactional Departments'!A:B,2,FALSE)","v":"HSG - Executive Director"},"57030001","","","","",""]
["57","110",null,null,"ADMINSTRATIVE OFFICES MOVE    ","8064GW110805","12210","21100","42100","57030001",{"$f":"VLOOKUP(TRIM(J8990),'Transactional Departments'!A:B,2,FALSE)","v":"HSG - Executive Director"},"57030001","","","","",""]
["57","110",null,null,"AUX GROUP B HOUSING EXP NT CAP","8066GW110885","12210","21100","42100","57030001",{"$f":"VLOOKUP(TRIM(J8995),'Transactional Departments'!A:B,2,FALSE)","v":"HSG - Executive Director"},"57030001","","","","",""]
["57","110",null,null,"ALPHA CHI OMEGA BUILDING RENT ","9080GN110002","60000","","","57030101",{"$f":"VLOOKUP(TRIM(J8998),'Transactional Departments'!A:B,2,FALSE)","v":"HSG - Alpha Chi Omega"},"57030101","","","","",""]
["57","110",null,null,"HOUSING                       ","9082GN110042","60000","","","57030010",{"$f":"VLOOKUP(TRIM(J9002),'Transactional Departments'!A:B,2,FALSE)","v":"HSG - Summer Conferences"},"57030010","","","","",""]
["57","111",null,null,"BOGGS FIRE ALARM PANEL        ","8064GW111811","12210","21100","42100","57031801",{"$f":"VLOOKUP(TRIM(J9007),'Transactional Departments'!A:B,2,FALSE)","v":"HSG - Boggs Hall Operations"},"57031801","","","","",""]
["57","114",null,null,"CHURCH HALL                   ","5210GN114000","12210","21100","42100","57032101",{"$f":"VLOOKUP(TRIM(J9012),'Transactional Departments'!A:B,2,FALSE)","v":"HSG - Church Hall Operations"},"57032101","","","","",""]
["57","115",null,null,"INDIRECT PLANT OVERHEAD       ","5210GN115001","12210","21100","42100","57031002",{"$f":"VLOOKUP(TRIM(J9018),'Transactional Departments'!A:B,2,FALSE)","v":"HSG - Phi Delta Theta Maint"},"57031002","","","","",""]
["57","115",null,null,"TAU EPSILON PHI               ","5210GN115200","12210","21100","42100","57031301",{"$f":"VLOOKUP(TRIM(J9022),'Transactional Departments'!A:B,2,FALSE)","v":"HSG - Tau Epsilon Pi Ops"},"57031301","","","","",""]
["57","115",null,null,"PI KAPPA ALPHA PLANT OVERHEAD ","5210GN115301","12210","21100","42100","57031102",{"$f":"VLOOKUP(TRIM(J9025),'Transactional Departments'!A:B,2,FALSE)","v":"HSG - Pi Kappa Alpha Maint"},"57031102","","","","",""]
["57","116",null,null,"CRESWELL HALL                 ","5210GN116000","12210","21100","42100","57032201",{"$f":"VLOOKUP(TRIM(J9030),'Transactional Departments'!A:B,2,FALSE)","v":"HSG - Creswell Hall Operations"},"57032201","","","","",""]
["57","118",null,null,"LIPSCOMB HALL                 ","5210GN118000","12210","21100","42100","57032401",{"$f":"VLOOKUP(TRIM(J9036),'Transactional Departments'!A:B,2,FALSE)","v":"HSG - Lipscomb Hall Operations"},"57032401","","","","",""]
["57","118",null,null,"INDIRECT PLANT OVERHEAD       ","5210GN118001","12210","21100","42100","57032402",{"$f":"VLOOKUP(TRIM(J9037),'Transactional Departments'!A:B,2,FALSE)","v":"HSG - Lipscomb Hall Maint"},"57032402","","","","",""]
["57","119",null,null,"INDIRECT PLANT OVERHEAD       ","5210GN119001","12210","21100","42100","57030402",{"$f":"VLOOKUP(TRIM(J9041),'Transactional Departments'!A:B,2,FALSE)","v":"HSG - Rogers Road Maintenance"},"57030402","","","","",""]
["57","120",null,null,"BROWN HALL                    ","5210GN120100","12210","21100","42100","57031401",{"$f":"VLOOKUP(TRIM(J9048),'Transactional Departments'!A:B,2,FALSE)","v":"HSG - Brown Hall Operations"},"57031401","","","","",""]
["57","120",null,null,"KENNY ROAD INDIRECT OPERATING ","5210GN120301","12210","21100","42100","57031602",{"$f":"VLOOKUP(TRIM(J9053),'Transactional Departments'!A:B,2,FALSE)","v":"HSG - Kenny Road Maintenance"},"57031602","","","","",""]
["57","120",null,null,"MCGOWAN ROAD INDIRECT OPER    ","5210GN120401","12210","21100","42100","57031702",{"$f":"VLOOKUP(TRIM(J9055),'Transactional Departments'!A:B,2,FALSE)","v":"HSG - McGowan Road Maintenance"},"57031702","","","","",""]
["57","121",null,null,"MARY LYNDON BUILDING SERVICES ","5210GN121002","12210","21100","42100","57032503",{"$f":"VLOOKUP(TRIM(J9060),'Transactional Departments'!A:B,2,FALSE)","v":"HSG - Mary Lyndon Bldg Svcs"},"57032503","","","","",""]
["57","123",null,null,"RESIDENCE HALL FACILITIES ADM ","5210GN123000","12210","21100","42100","57030003",{"$f":"VLOOKUP(TRIM(J9065),'Transactional Departments'!A:B,2,FALSE)","v":"HSG - Facilities Admin"},"57030003","","","","",""]
["57","123",null,null,"SECURITY RENOVATION PROJECT   ","8064GW123804","12210","21100","42100","57030003",{"$f":"VLOOKUP(TRIM(J9069),'Transactional Departments'!A:B,2,FALSE)","v":"HSG - Facilities Admin"},"57030003","","","","",""]
["57","124",null,null,"INDIRECT PLANT OVERHEAD       ","5210GN124001","12210","21100","42100","57032702",{"$f":"VLOOKUP(TRIM(J9072),'Transactional Departments'!A:B,2,FALSE)","v":"HSG - Morris Hall Maintenance"},"57032702","","","","",""]
["57","126",null,null,"PAYNE HALL                    ","5210GN126000","12210","21100","42100","57033001",{"$f":"VLOOKUP(TRIM(J9079),'Transactional Departments'!A:B,2,FALSE)","v":"HSG - Payne Hall Operations"},"57033001","","","","",""]
["57","127",null,null,"INDIRECT PLANT OVERHEAD       ","5210GN127001","12210","21100","42100","57033102",{"$f":"VLOOKUP(TRIM(J9083),'Transactional Departments'!A:B,2,FALSE)","v":"HSG - Reed Hall Maintenance"},"57033102","","","","",""]
["57","128",null,null,"RUSSELL BUILDING SERVICES     ","5210GN128002","12210","21100","42100","57033203",{"$f":"VLOOKUP(TRIM(J9088),'Transactional Departments'!A:B,2,FALSE)","v":"HSG - Russell Hall Bldg Svcs"},"57033203","","","","",""]
["57","129",null,null,"INDIRECT PLANT OVERHEAD       ","5210GN129001","12210","21100","42100","57033302",{"$f":"VLOOKUP(TRIM(J9093),'Transactional Departments'!A:B,2,FALSE)","v":"HSG - Rutherford Hall Maint"},"57033302","","","","",""]
["57","130",null,null,"SOULE HALL                    ","5210GN130000","12210","21100","42100","57033401",{"$f":"VLOOKUP(TRIM(J9095),'Transactional Departments'!A:B,2,FALSE)","v":"HSG - Soule Hall Operations"},"57033401","","","","",""]
["57","131",null,null,"1516 BUILDING SERVICES        ","5210GN131002","12210","21100","42100","57032003",{"$f":"VLOOKUP(TRIM(J9100),'Transactional Departments'!A:B,2,FALSE)","v":"HSG - Building 1516 Bldg Svcs"},"57032003","","","","",""]
["57","132",null,null,"UNIVERSITY VILLAGE            ","5210GN132000","12210","21100","42100","57030501",{"$f":"VLOOKUP(TRIM(J9102),'Transactional Departments'!A:B,2,FALSE)","v":"HSG - University Village Ops"},"57030501","","","","",""]
["57","133",null,null,"INDIRECT PLANT OVERHEAD       ","5210GN133001","12210","21100","42100","57032902",{"$f":"VLOOKUP(TRIM(J9107),'Transactional Departments'!A:B,2,FALSE)","v":"HSG - O-House Maintenance"},"57032902","","","","",""]
["57","135",null,null,"UGAF     DEAN STUD REST  WILSO","1011RH135022","20200","11100","67014","57015001",{"$f":"VLOOKUP(TRIM(J9112),'Transactional Departments'!A:B,2,FALSE)","v":"DOS Administration"},"57015001","","","","",""]
["57","135",null,null,"DEAN OF STUDENTS              ","1052GS135000","10500","15200","11800","57015001",{"$f":"VLOOKUP(TRIM(J9118),'Transactional Departments'!A:B,2,FALSE)","v":"DOS Administration"},"57015001","","","","",""]
["57","140",null,null,"INDIRECT PLANT OVERHEAD       ","5250GN140001","12240","24100","42100","57020720",{"$f":"VLOOKUP(TRIM(J9123),'Transactional Departments'!A:B,2,FALSE)","v":"Indirect Plant Overhead"},"57020720","","","","",""]
["57","140",null,null,"BUSINESS SERVICES             ","5250GN140103","12240","24100","42100","57020705",{"$f":"VLOOKUP(TRIM(J9126),'Transactional Departments'!A:B,2,FALSE)","v":"Business Services"},"57020705","","","","",""]
["57","140",null,null,"ENVIRONMENTAL SERVICES        ","5250GN140107","12240","24100","42100","57020715",{"$f":"VLOOKUP(TRIM(J9130),'Transactional Departments'!A:B,2,FALSE)","v":"Environmental Services"},"57020715","","","","",""]
["57","140",null,null,"PATIENT SERVICES              ","5250GN140113","12240","24100","42100","57020435",{"$f":"VLOOKUP(TRIM(J9135),'Transactional Departments'!A:B,2,FALSE)","v":"Patient Services"},"57020435","","","","",""]
["57","140",null,null,"SUPPORT SERVICES              ","5250GN140118","12240","24100","42100","57020740",{"$f":"VLOOKUP(TRIM(J9140),'Transactional Departments'!A:B,2,FALSE)","v":"Support Services"},"57020740","","","","",""]
["57","140",null,null,"NEW PROGRAMS AND SERVICES     ","5250GN140122","12240","24100","42100","57020170",{"$f":"VLOOKUP(TRIM(J9142),'Transactional Departments'!A:B,2,FALSE)","v":"New Programs & Services UHC"},"57020170","","","","",""]
["57","140",null,null,"HEALTH SERVICES RENOVATIONS   ","8064GW140857","12240","24100","42100","57020010",{"$f":"VLOOKUP(TRIM(J9150),'Transactional Departments'!A:B,2,FALSE)","v":"University Health Center"},"57020010","","","","",""]
["57","140",null,null,"UHC 1ST & 2ND FL CLINIC RENOV ","8264GW140804","12240","24199","42100","57020010",{"$f":"VLOOKUP(TRIM(J9153),'Transactional Departments'!A:B,2,FALSE)","v":"University Health Center"},"57020010","","","","",""]
["57","217",null,null,"INDIRECT PLANT OVERHEAD       ","5210GN217001","12210","21100","42100","57030302",{"$f":"VLOOKUP(TRIM(J9158),'Transactional Departments'!A:B,2,FALSE)","v":"HSG - Brandon Oaks Maintenance"},"57030302","","","","",""]
["57","217",null,null,"BRANDON OAKS BUILDING SERVICES","5210GN217002","12210","21100","42100","57030303",{"$f":"VLOOKUP(TRIM(J9159),'Transactional Departments'!A:B,2,FALSE)","v":"HSG - Brandon Oaks Bldg Svcs"},"57030303","","","","",""]
["57","532",null,null,"RECREATIONAL SPORTS           ","1052DS532000","14100","15200","41500","57013001",{"$f":"VLOOKUP(TRIM(J9165),'Transactional Departments'!A:B,2,FALSE)","v":"Rec Sports Admin"},"57013001","","","","",""]
["57","532",null,null,"REC FACILITY RENTALS          ","1052DS532007","14100","15200","41500","57013008",{"$f":"VLOOKUP(TRIM(J9170),'Transactional Departments'!A:B,2,FALSE)","v":"Rec Sports Facilities"},"57013008","","","","",""]
["57","532",null,null,"REC SPORTS CONFERENCE/WORKSHOP","1052DW532013","14100","15200","41500","57013010",{"$f":"VLOOKUP(TRIM(J9173),'Transactional Departments'!A:B,2,FALSE)","v":"Rec Sports Conferences/Events"},"57013010","","","","",""]
["57","532",null,null,"         REC SPORTS RAMSECOCHR","1052RS532012","20200","15200","67702","57013001",{"$f":"VLOOKUP(TRIM(J9177),'Transactional Departments'!A:B,2,FALSE)","v":"Rec Sports Admin"},"57013001","","","","",""]
["57","532",null,null,"PRO SHOP SALES TAX            ","9082GN532003","60000","","","57013001",{"$f":"VLOOKUP(TRIM(J9183),'Transactional Departments'!A:B,2,FALSE)","v":"Rec Sports Admin"},"57013001","","","","",""]
["57","589",null,null,"RHO TAU                       ","9086GN589120","60000","","","57150001",{"$f":"VLOOKUP(TRIM(J9188),'Transactional Departments'!A:B,2,FALSE)","v":"Rho Tau"},"57150001","","","","",""]
["57","589",null,null,"MULTI-CULTURAL GREEK COUNCIL  ","9086GN589321","60000","","","57150007",{"$f":"VLOOKUP(TRIM(J9193),'Transactional Departments'!A:B,2,FALSE)","v":"Multi-Cultural Greek Council"},"57150007","","","","",""]
["57","589",null,null,"GREEK LEADERSHIP PROGRAMS     ","9086GN589326","60000","","","57150001",{"$f":"VLOOKUP(TRIM(J9197),'Transactional Departments'!A:B,2,FALSE)","v":"Rho Tau"},"57150001","","","","",""]
["57","589",null,null,"M.S.S.A.                      ","9086GN589400","60000","","","57150001",{"$f":"VLOOKUP(TRIM(J9200),'Transactional Departments'!A:B,2,FALSE)","v":"Rho Tau"},"57150001","","","","",""]
["57","589",null,null,"TATE CENTER BUS OFFICE AGENCY ","9086GN589410","60000","","","57150015",{"$f":"VLOOKUP(TRIM(J9207),'Transactional Departments'!A:B,2,FALSE)","v":"Tate Center Bus Office Agency"},"57150015","","","","",""]
["57","589",null,null,"UGA CLUB ITALIANO             ","9086GN589415","60000","","","57150001",{"$f":"VLOOKUP(TRIM(J9211),'Transactional Departments'!A:B,2,FALSE)","v":"Rho Tau"},"57150001","","","","",""]
["57","589",null,null,"PROJECT H.O.P.E. AT UGA       ","9086GN589416","60000","","","57150018",{"$f":"VLOOKUP(TRIM(J9212),'Transactional Departments'!A:B,2,FALSE)","v":"Project H.O.P.E. At UGA"},"57150018","","","","",""]
["57","589",null,null,"FASHION DESIGN STUDENT ASSN   ","9086GN589420","60000","","","57150022",{"$f":"VLOOKUP(TRIM(J9216),'Transactional Departments'!A:B,2,FALSE)","v":"Fashion Design Student Assn"},"57150022","","","","",""]
["57","589",null,null,"QUIZ BOWL CLUB OF UGA         ","9086GN589432","60000","","","57150027",{"$f":"VLOOKUP(TRIM(J9223),'Transactional Departments'!A:B,2,FALSE)","v":"Quiz Bowl Club Of UGA"},"57150027","","","","",""]
["57","589",null,null,"STUDENTS FOR LIFE AT UGA      ","9086GN589442","60000","","","57150031",{"$f":"VLOOKUP(TRIM(J9228),'Transactional Departments'!A:B,2,FALSE)","v":"Students For Life At UGA"},"57150031","","","","",""]
["57","589",null,null,"COMMUNICAID+NATION            ","9086GN589444","60000","","","57150033",{"$f":"VLOOKUP(TRIM(J9230),'Transactional Departments'!A:B,2,FALSE)","v":"Communicaid+Nation"},"57150033","","","","",""]
["57","589",null,null,"SAUDI STUDENTS ASSOCIATION    ","9086GN589453","60000","","","57150038",{"$f":"VLOOKUP(TRIM(J9235),'Transactional Departments'!A:B,2,FALSE)","v":"Saudi Students Association"},"57150038","","","","",""]
["57","589",null,null,"UP AT UGA                     ","9086GN589459","60000","","","57150043",{"$f":"VLOOKUP(TRIM(J9240),'Transactional Departments'!A:B,2,FALSE)","v":"UP At UGA"},"57150043","","","","",""]
["57","589",null,null,"OMEGA TAU                     ","9086GN589468","60000","","","57150049",{"$f":"VLOOKUP(TRIM(J9246),'Transactional Departments'!A:B,2,FALSE)","v":"Omega Tau"},"57150049","","","","",""]
["57","589",null,null,"SSI AT UGA                    ","9086GN589469","60000","","","57150050",{"$f":"VLOOKUP(TRIM(J9247),'Transactional Departments'!A:B,2,FALSE)","v":"SSI At UGA"},"57150050","","","","",""]
["57","589",null,null,"I AM ENOUGH UGA               ","9086GN589480","60000","","","57150060",{"$f":"VLOOKUP(TRIM(J9254),'Transactional Departments'!A:B,2,FALSE)","v":"I Am Enough UGA"},"57150060","","","","",""]
["57","589",null,null,"GRADS                         ","9086GN589484","60000","","","57150064",{"$f":"VLOOKUP(TRIM(J9258),'Transactional Departments'!A:B,2,FALSE)","v":"Grads"},"57150064","","","","",""]
["57","589",null,null,"THIRST PROJECT                ","9086GN589491","60000","","","57150071",{"$f":"VLOOKUP(TRIM(J9263),'Transactional Departments'!A:B,2,FALSE)","v":"Thirst Project"},"57150071","","","","",""]
["57","589",null,null,"AD CLUB                       ","9086GN589496","60000","","","57150076",{"$f":"VLOOKUP(TRIM(J9268),'Transactional Departments'!A:B,2,FALSE)","v":"Ad Club"},"57150076","","","","",""]
["57","589",null,null,"PUBLIC HEALTH ASSOCIATION     ","9086GN589498","60000","","","57150078",{"$f":"VLOOKUP(TRIM(J9270),'Transactional Departments'!A:B,2,FALSE)","v":"Public Health Association"},"57150078","","","","",""]
["57","589",null,null,"MESA                          ","9086GN589501","60000","","","57150081",{"$f":"VLOOKUP(TRIM(J9273),'Transactional Departments'!A:B,2,FALSE)","v":"Mesa"},"57150081","","","","",""]
["57","589",null,null,"ASSOC OF BLACK SOCIAL WORKERS ","9086GN589510","60000","","","57150090",{"$f":"VLOOKUP(TRIM(J9281),'Transactional Departments'!A:B,2,FALSE)","v":"Assoc Of Black Social Workers"},"57150090","","","","",""]
["57","589",null,null,"DISABILITY ADVOCATES IN ACTION","9086GN589511","60000","","","57150091",{"$f":"VLOOKUP(TRIM(J9282),'Transactional Departments'!A:B,2,FALSE)","v":"Disability Advocates In Action"},"57150091","","","","",""]
["57","589",null,null,"REAL ESTATE SOCIETY           ","9086GN589516","60000","","","57150096",{"$f":"VLOOKUP(TRIM(J9287),'Transactional Departments'!A:B,2,FALSE)","v":"Real Estate Society"},"57150096","","","","",""]
["57","589",null,null,"GAMMA IOTA SIGMA              ","9086GN589522","60000","","","57150102",{"$f":"VLOOKUP(TRIM(J9293),'Transactional Departments'!A:B,2,FALSE)","v":"Gamma Iota Sigma"},"57150102","","","","",""]
["57","589",null,null,"GEORGIA POLITICAL REVIEW      ","9086GN589528","60000","","","57150108",{"$f":"VLOOKUP(TRIM(J9298),'Transactional Departments'!A:B,2,FALSE)","v":"Georgia Political Review"},"57150108","","","","",""]
["57","589",null,null,"ROCK LOBSTER RECORDS          ","9086GN589531","60000","","","57150111",{"$f":"VLOOKUP(TRIM(J9301),'Transactional Departments'!A:B,2,FALSE)","v":"Rock Lobster Records"},"57150111","","","","",""]
["57","589",null,null,"AMWHO UGA                     ","9086GN589536","60000","","","57150116",{"$f":"VLOOKUP(TRIM(J9305),'Transactional Departments'!A:B,2,FALSE)","v":"AMWHO UGA"},"57150116","","","","",""]
["57","589",null,null,"BILLIARD CLUB OF UGA          ","9086GN589545","60000","","","57150124",{"$f":"VLOOKUP(TRIM(J9311),'Transactional Departments'!A:B,2,FALSE)","v":"Billiard Club Of UGA"},"57150124","","","","",""]
["57","589",null,null,"HEALTH FOR KIDS               ","9086GN589555","60000","","","57150206",{"$f":"VLOOKUP(TRIM(J9316),'Transactional Departments'!A:B,2,FALSE)","v":"Health for Kids"},"57150206","","","","",""]
["57","589",null,null,"CLIMBING CLUB                 ","9086GN589556","60000","","","57150195",{"$f":"VLOOKUP(TRIM(J9317),'Transactional Departments'!A:B,2,FALSE)","v":"Climbing Club"},"57150195","","","","",""]
["57","589",null,null,"UNICEF AT UGA                 ","9086GN589569","60000","","","57150215",{"$f":"VLOOKUP(TRIM(J9325),'Transactional Departments'!A:B,2,FALSE)","v":"Unicef at UGA"},"57150215","","","","",""]
["57","589",null,null,"LEADERSHIP RESOURCE TEAM      ","9086GN589581","60000","","","57150001",{"$f":"VLOOKUP(TRIM(J9328),'Transactional Departments'!A:B,2,FALSE)","v":"Rho Tau"},"57150001","","","","",""]
["57","589",null,null,"IP LAW SOCIETY AT UGA         ","9086GN589708","60000","","","57150128",{"$f":"VLOOKUP(TRIM(J9333),'Transactional Departments'!A:B,2,FALSE)","v":"Ip Law Society At UGA"},"57150128","","","","",""]
["57","589",null,null,"AVIATION CLUB AT UGA          ","9086GN589711","60000","","","57150130",{"$f":"VLOOKUP(TRIM(J9334),'Transactional Departments'!A:B,2,FALSE)","v":"Aviation Club At UGA"},"57150130","","","","",""]
["57","589",null,null,"BE THE MATCH AT UGA           ","9086GN589720","60000","","","57150001",{"$f":"VLOOKUP(TRIM(J9340),'Transactional Departments'!A:B,2,FALSE)","v":"Rho Tau"},"57150001","","","","",""]
["57","589",null,null,"THE CANCER EFFECT             ","9086GN589728","60000","","","57150001",{"$f":"VLOOKUP(TRIM(J9344),'Transactional Departments'!A:B,2,FALSE)","v":"Rho Tau"},"57150001","","","","",""]
["57","589",null,null,"MEDICAL PARTNERSHIP CLASS ACT ","9086GN589741","60000","","","57150134",{"$f":"VLOOKUP(TRIM(J9351),'Transactional Departments'!A:B,2,FALSE)","v":"Medical Partnership Class Act"},"57150134","","","","",""]
["57","589",null,null,"SAVE AFRICA AT UGA            ","9086GN589742","60000","","","57150001",{"$f":"VLOOKUP(TRIM(J9352),'Transactional Departments'!A:B,2,FALSE)","v":"Rho Tau"},"57150001","","","","",""]
["57","589",null,null,"UBUNTU - SOUTH AFRICA         ","9086GN589750","60000","","","57150001",{"$f":"VLOOKUP(TRIM(J9358),'Transactional Departments'!A:B,2,FALSE)","v":"Rho Tau"},"57150001","","","","",""]
["57","589",null,null,"DAWGS FOR DIABETES AWARENESS  ","9086GN589760","60000","","","57150142",{"$f":"VLOOKUP(TRIM(J9363),'Transactional Departments'!A:B,2,FALSE)","v":"Dawgs For Diabetes Awareness"},"57150142","","","","",""]
["57","589",null,null,"ATHENS CHURCH                 ","9086GN589770","60000","","","57150147",{"$f":"VLOOKUP(TRIM(J9368),'Transactional Departments'!A:B,2,FALSE)","v":"Athens Church"},"57150147","","","","",""]
["57","589",null,null,"INTERNATIONAL JUSTICE MISSION ","9086GN589772","60000","","","57150149",{"$f":"VLOOKUP(TRIM(J9370),'Transactional Departments'!A:B,2,FALSE)","v":"International Justice Mission"},"57150149","","","","",""]
["57","589",null,null,"LLS CLUB AT UGA               ","9086GN589778","60000","","","57150001",{"$f":"VLOOKUP(TRIM(J9375),'Transactional Departments'!A:B,2,FALSE)","v":"Rho Tau"},"57150001","","","","",""]
["57","589",null,null,"CHABAD @ UGA                  ","9086GN589787","60000","","","57150154",{"$f":"VLOOKUP(TRIM(J9382),'Transactional Departments'!A:B,2,FALSE)","v":"CHABAD @ UGA"},"57150154","","","","",""]
["57","589",null,null,"GOLF CLUB AT UGA              ","9086GN589795","60000","","","57150001",{"$f":"VLOOKUP(TRIM(J9386),'Transactional Departments'!A:B,2,FALSE)","v":"Rho Tau"},"57150001","","","","",""]
["57","589",null,null,"ZETA NU CHAPTER               ","9086GN589796","60000","","","57150158",{"$f":"VLOOKUP(TRIM(J9387),'Transactional Departments'!A:B,2,FALSE)","v":"Zeta Nu Chapter"},"57150158","","","","",""]
["57","589",null,null,"PHI ALPHA THETA, EPSILON PI   ","9086GN589808","60000","","","57150161",{"$f":"VLOOKUP(TRIM(J9391),'Transactional Departments'!A:B,2,FALSE)","v":"Phi Alpha Theta, Epsilon Pi"},"57150161","","","","",""]
["57","589",null,null,"STU ASSN OF ARCHAEOLOGICAL SCI","9086GN589849","60000","","","57150001",{"$f":"VLOOKUP(TRIM(J9398),'Transactional Departments'!A:B,2,FALSE)","v":"Rho Tau"},"57150001","","","","",""]
["57","589",null,null,"CHRISTIAN STUDENTS            ","9086GN589866","60000","","","57150169",{"$f":"VLOOKUP(TRIM(J9401),'Transactional Departments'!A:B,2,FALSE)","v":"Christian Students"},"57150169","","","","",""]
["57","589",null,null,"DELTA PHI LAMBDA              ","9086GN589878","60000","","","57150172",{"$f":"VLOOKUP(TRIM(J9405),'Transactional Departments'!A:B,2,FALSE)","v":"Delta Phi Lambda"},"57150172","","","","",""]
["57","589",null,null,"ETA XI CHAPTER OF AKA         ","9086GN589893","60000","","","57150001",{"$f":"VLOOKUP(TRIM(J9410),'Transactional Departments'!A:B,2,FALSE)","v":"Rho Tau"},"57150001","","","","",""]
["57","589",null,null,"ABENEEFOO KUO                 ","9086GN589902","60000","","","57150176",{"$f":"VLOOKUP(TRIM(J9415),'Transactional Departments'!A:B,2,FALSE)","v":"Abeneefoo Kuo"},"57150176","","","","",""]
["57","589",null,null,"ALPHA PHI OMEGA - BETA ZETA   ","9086GN589943","60000","","","57150180",{"$f":"VLOOKUP(TRIM(J9421),'Transactional Departments'!A:B,2,FALSE)","v":"Alpha Phi Omega - Beta Zeta"},"57150180","","","","",""]
["57","589",null,null,"GOLDEN KEY                    ","9086GN589945","60000","","","57150181",{"$f":"VLOOKUP(TRIM(J9422),'Transactional Departments'!A:B,2,FALSE)","v":"Golden Key"},"57150181","","","","",""]
["57","589",null,null,"INDIAN CULTURAL EXCHANGE      ","9086GN589967","60000","","","57150187",{"$f":"VLOOKUP(TRIM(J9429),'Transactional Departments'!A:B,2,FALSE)","v":"Indian Cultural Exchange"},"57150187","","","","",""]
["57","589",null,null,"YOUNG CHOREOGRAPHER SERIES    ","9086GN589975","60000","","","57150191",{"$f":"VLOOKUP(TRIM(J9433),'Transactional Departments'!A:B,2,FALSE)","v":"Young Choreographer Series"},"57150191","","","","",""]
["57","590",null,null,"STU ACT GENERAL SALES TAX     ","9082GN590157","60000","","","57101001",{"$f":"VLOOKUP(TRIM(J9439),'Transactional Departments'!A:B,2,FALSE)","v":"Union Executive"},"57101001","","","","",""]
["57","590",null,null,"ENTERTAINMENT DIVISION        ","9082GN590321","60000","","","57101002",{"$f":"VLOOKUP(TRIM(J9440),'Transactional Departments'!A:B,2,FALSE)","v":"Entertainment Division"},"57101002","","","","",""]
["57","590",null,null,"HOMECOMING                    ","9082GN590350","60000","","","57102002",{"$f":"VLOOKUP(TRIM(J9445),'Transactional Departments'!A:B,2,FALSE)","v":"Homecoming"},"57102002","","","","",""]
["57","590",null,null,"BETHEL CAMPUS FELLOWSHIP      ","9593GN590306","13000","15920","11980","57108001",{"$f":"VLOOKUP(TRIM(J9448),'Transactional Departments'!A:B,2,FALSE)","v":"Bethel Campus Fellowship"},"57108001","","","","",""]
["57","590",null,null,"MAJOR CAMPUS EVENT            ","9593GN590330","13000","15920","11980","57102001",{"$f":"VLOOKUP(TRIM(J9456),'Transactional Departments'!A:B,2,FALSE)","v":"Major Campus Event"},"57102001","","","","",""]
["57","590",null,null,"DAWG CAMP FUSION              ","9593GN590331","13000","15920","11980","57105001",{"$f":"VLOOKUP(TRIM(J9457),'Transactional Departments'!A:B,2,FALSE)","v":"Dawg Camp Fusion"},"57105001","","","","",""]
["57","590",null,null,"BLACK AFFAIRS COUNCIL         ","9593GN590340","13000","15920","11980","57103001",{"$f":"VLOOKUP(TRIM(J9462),'Transactional Departments'!A:B,2,FALSE)","v":"Black Affairs Council"},"57103001","","","","",""]
["57","590",null,null,"ATHLETIC COLLABORATIONS       ","9593GN590351","13000","15920","11980","57102003",{"$f":"VLOOKUP(TRIM(J9468),'Transactional Departments'!A:B,2,FALSE)","v":"Athletic Collaborations"},"57102003","","","","",""]
["57","590",null,null,"AMNESTY INTERNATIONAL         ","9593GN590382","13000","15920","11980","57104003",{"$f":"VLOOKUP(TRIM(J9472),'Transactional Departments'!A:B,2,FALSE)","v":"Amnesty International"},"57104003","","","","",""]
["57","590",null,null,"CHINESE LANG & CULTURAL ASSC  ","9593GN590386","13000","15920","11980","57104006",{"$f":"VLOOKUP(TRIM(J9475),'Transactional Departments'!A:B,2,FALSE)","v":"Chinese Language Soc"},"57104006","","","","",""]
["57","590",null,null,"MUSLIM STU ASSOC              ","9593GN590392","13000","15920","11980","57104011",{"$f":"VLOOKUP(TRIM(J9480),'Transactional Departments'!A:B,2,FALSE)","v":"Muslim Stu Assoc"},"57104011","","","","",""]
["57","590",null,null,"VIETNAMESE STU ASSOC          ","9593GN590398","13000","15920","11980","57104017",{"$f":"VLOOKUP(TRIM(J9486),'Transactional Departments'!A:B,2,FALSE)","v":"Vietnamese Stu Assoc"},"57104017","","","","",""]
["57","590",null,null,"UGA COPYRIGHT                 ","9593GN590505","13000","15920","11980","57108013",{"$f":"VLOOKUP(TRIM(J9491),'Transactional Departments'!A:B,2,FALSE)","v":"UGA Copyright"},"57108013","","","","",""]
["57","590",null,null,"SMALL CLUBS                   ","9593GN590507","13000","15920","11980","57106003",{"$f":"VLOOKUP(TRIM(J9492),'Transactional Departments'!A:B,2,FALSE)","v":"Small Clubs"},"57106003","","","","",""]
["57","590",null,null,"PANDORA                       ","9596GN590370","13000","15940","11980","57102004",{"$f":"VLOOKUP(TRIM(J9500),'Transactional Departments'!A:B,2,FALSE)","v":"Pandora"},"57102004","","","","",""]
["57","590",null,null,"UGAZINE MAGAZINE              ","9596GN590550","13000","15940","11980","57101001",{"$f":"VLOOKUP(TRIM(J9503),'Transactional Departments'!A:B,2,FALSE)","v":"Union Executive"},"57101001","","","","",""]
["57","590",null,null,"COMMUNITY ENGAGEMENT          ","9597GN590358","13000","15990","11980","57105007",{"$f":"VLOOKUP(TRIM(J9505),'Transactional Departments'!A:B,2,FALSE)","v":"Community Engagement"},"57105007","","","","",""]
["57","590",null,null,"LEADERSHIP RESOURCE TEAM      ","9597GN590363","13000","15990","11980","57102009",{"$f":"VLOOKUP(TRIM(J9510),'Transactional Departments'!A:B,2,FALSE)","v":"Leadership Resource Team"},"57102009","","","","",""]
["57","590",null,null,"STUDENT ACT FEES - OTHER FEES ","9597GN590702","13000","15990","11980","57109000",{"$f":"VLOOKUP(TRIM(J9515),'Transactional Departments'!A:B,2,FALSE)","v":"Student Activity Fee Revenue"},"57109000","","","","",""]
["57","590",null,null,"VP DIVERSITY - INTERSECTION   ","9597GN590706","13000","15990","11980","57107005",{"$f":"VLOOKUP(TRIM(J9519),'Transactional Departments'!A:B,2,FALSE)","v":"VP Diversity - Intersection"},"57107005","","","","",""]
["57","591",null,null,"RESIDENCE LIFE STAFF DEVELPMNT","9593GN591007","13000","15920","11980","57030162",{"$f":"VLOOKUP(TRIM(J9526),'Transactional Departments'!A:B,2,FALSE)","v":"HSG - Prog Support&Special Ev"},"57030162","","","","",""]
["57","591",null,null,"CHURCH/HILL/BOGGS HALL COUNCIL","9593GN591010","13000","15920","11980","57030152",{"$f":"VLOOKUP(TRIM(J9529),'Transactional Departments'!A:B,2,FALSE)","v":"HSG - Church/Hill/Boggs HC"},"57030152","","","","",""]
["57","591",null,null,"PAYNE HALL                    ","9593GN591022","13000","15920","11980","57030161",{"$f":"VLOOKUP(TRIM(J9533),'Transactional Departments'!A:B,2,FALSE)","v":"HSG - Payne Hall Council"},"57030161","","","","",""]
["57","591",null,null,"MELL/LIPSCOMB HALL            ","9593GN591034","13000","15920","11980","57030156",{"$f":"VLOOKUP(TRIM(J9538),'Transactional Departments'!A:B,2,FALSE)","v":"HSG - Mell/Lip Hall Council"},"57030156","","","","",""]
["57","591",null,null,"FCSE                          ","9593GN591053","13000","15920","11980","57030205",{"$f":"VLOOKUP(TRIM(J9543),'Transactional Departments'!A:B,2,FALSE)","v":"HSG - Fresh Co Summer Exp"},"57030205","","","","",""]
["57","591",null,null,"SUMMER SCHOOL HALL COUNCIL    ","9593GN591056","13000","15920","11980","57030203",{"$f":"VLOOKUP(TRIM(J9545),'Transactional Departments'!A:B,2,FALSE)","v":"HSG - Summer School HC"},"57030203","","","","",""]
["57","592",null,null,"LEGION POOL                   ","9082GN592725","60000","","","57015104",{"$f":"VLOOKUP(TRIM(J9550),'Transactional Departments'!A:B,2,FALSE)","v":"Legion Pool"},"57015104","","","","",""]
["57","592",null,null,"TATE CENTER BUILDING OPERATION","9597GN592710","13000","15990","11980","57015101",{"$f":"VLOOKUP(TRIM(J9557),'Transactional Departments'!A:B,2,FALSE)","v":"Tate Building Operation"},"57015101","","","","",""]
["57","592",null,null,"TATE CENTER ADMIN RENOVATION  ","9597GN592715","13000","15990","11980","57015102",{"$f":"VLOOKUP(TRIM(J9561),'Transactional Departments'!A:B,2,FALSE)","v":"Tate Renovation"},"57015102","","","","",""]
["57","592",null,null,"TATE STORAGE BUILDING         ","9597GN592716","13000","15990","11980","57015001",{"$f":"VLOOKUP(TRIM(J9562),'Transactional Departments'!A:B,2,FALSE)","v":"DOS Administration"},"57015001","","","","",""]
["57","592",null,null,"SA VAN RENTAL                 ","9597GN592724","13000","15990","11980","57015103",{"$f":"VLOOKUP(TRIM(J9568),'Transactional Departments'!A:B,2,FALSE)","v":"Tate Van"},"57015103","","","","",""]
["57","592",null,null,"LGBT ADMINISTRATION           ","9597GN592733","13000","15990","11980","57015700",{"$f":"VLOOKUP(TRIM(J9573),'Transactional Departments'!A:B,2,FALSE)","v":"LGBTRC Administration"},"57015700","","","","",""]
["57","592",null,null,"MEMORIAL HALL RENOV PROJ      ","9597GN592736","13000","15990","11980","57015105",{"$f":"VLOOKUP(TRIM(J9576),'Transactional Departments'!A:B,2,FALSE)","v":"Memorial Hall Renovation"},"57015105","","","","",""]
["57","592",null,null,"ACADEMIC PARTNERSHIPS         ","9597GN592741","13000","15990","11980","57015800",{"$f":"VLOOKUP(TRIM(J9580),'Transactional Departments'!A:B,2,FALSE)","v":"Academic Partnerships Admin"},"57015800","","","","",""]
["57","593",null,null,"CLUB SPORTS                   ","9592GN593003","13000","15910","11980","57013006",{"$f":"VLOOKUP(TRIM(J9585),'Transactional Departments'!A:B,2,FALSE)","v":"Rec Sports Club Sports"},"57013006","","","","",""]
["57","601",null,null,"REPERTORY SINGERS             ","9593GN601010","13000","15920","11980","57121005",{"$f":"VLOOKUP(TRIM(J9590),'Transactional Departments'!A:B,2,FALSE)","v":"Repertory Singers"},"57121005","","","","",""]
["57","601",null,null,"AFRO-AMERICAN CHORAL ENSEMBLE ","9593GN601042","13000","15920","11980","57121013",{"$f":"VLOOKUP(TRIM(J9596),'Transactional Departments'!A:B,2,FALSE)","v":"Afro-American Choral Ensemble"},"57121013","","","","",""]
["57","601",null,null,"THE SOCIAL PSYCHOLOGIST AT UGA","9593GN601049","13000","15920","11980","57121017",{"$f":"VLOOKUP(TRIM(J9600),'Transactional Departments'!A:B,2,FALSE)","v":"The Social Psychologist At UGA"},"57121017","","","","",""]
["57","601",null,null,"MICROBIO GRAD STUDENT ASSOCIAT","9593GN601074","13000","15920","11980","57121021",{"$f":"VLOOKUP(TRIM(J9603),'Transactional Departments'!A:B,2,FALSE)","v":"Microbio Grad Student Associat"},"57121021","","","","",""]
["57","601",null,null,"CELLULAR BIOLOGY GRAD STU ASSN","9593GN601095","13000","15920","11980","57121025",{"$f":"VLOOKUP(TRIM(J9608),'Transactional Departments'!A:B,2,FALSE)","v":"Cellular Biology Grad Stu Assn"},"57121025","","","","",""]
["57","601",null,null,"UNDERGRADUATE ART HISTORY ORG ","9593GN601127","13000","15920","11980","57121031",{"$f":"VLOOKUP(TRIM(J9614),'Transactional Departments'!A:B,2,FALSE)","v":"Undergraduate Art History Org"},"57121031","","","","",""]
["57","601",null,null,"DANCE STUDENT TRAVEL          ","9593GN601132","13000","15920","11980","57121032",{"$f":"VLOOKUP(TRIM(J9615),'Transactional Departments'!A:B,2,FALSE)","v":"Dance Student Travel"},"57121032","","","","",""]
["57","601",null,null,"STU ASSOC OF ARCH SCI         ","9593GN601152","13000","15920","11980","57121035",{"$f":"VLOOKUP(TRIM(J9620),'Transactional Departments'!A:B,2,FALSE)","v":"Stu Assoc Of Arch Sci"},"57121035","","","","",""]
["57","601",null,null,"GRAD STU & POSTDOCS IN SCIENCE","9593GN601163","13000","15920","11980","57121040",{"$f":"VLOOKUP(TRIM(J9624),'Transactional Departments'!A:B,2,FALSE)","v":"Grad Stu & Postdocs In Science"},"57121040","","","","",""]
["57","601",null,null,"INDUSTRIAL-ORG PSYCH STU ASSN ","9593GN601177","13000","15920","11980","57121047",{"$f":"VLOOKUP(TRIM(J9631),'Transactional Departments'!A:B,2,FALSE)","v":"Industrial-Org Psych Stu Assn"},"57121047","","","","",""]
["57","601",null,null,"MATH CLUB                     ","9593GN601181","13000","15920","11980","57121049",{"$f":"VLOOKUP(TRIM(J9633),'Transactional Departments'!A:B,2,FALSE)","v":"Math Club"},"57121049","","","","",""]
["57","601",null,null,"NAT ART EDUCATION ASSOC       ","9593GN601191","13000","15920","11980","57121054",{"$f":"VLOOKUP(TRIM(J9638),'Transactional Departments'!A:B,2,FALSE)","v":"Nat Art Education Assoc"},"57121054","","","","",""]
["57","601",null,null,"CHAMBER MUSIC SOCIETY         ","9593GN601198","13000","15920","11980","57121059",{"$f":"VLOOKUP(TRIM(J9643),'Transactional Departments'!A:B,2,FALSE)","v":"Chamber Music Society"},"57121059","","","","",""]
["57","601",null,null,"CELLULAR BIOLOGY UNDER STU ASN","9593GN601204","13000","15920","11980","57121067",{"$f":"VLOOKUP(TRIM(J9647),'Transactional Departments'!A:B,2,FALSE)","v":"Cell Bio Undergrad Stu Assn"},"57121067","","","","",""]
["57","601",null,null,"ROOSEVELT @ UGA               ","9593GN601208","13000","15920","11980","57121071",{"$f":"VLOOKUP(TRIM(J9650),'Transactional Departments'!A:B,2,FALSE)","v":"Roosevelt @ UGA"},"57121071","","","","",""]
["57","602",null,null,"GAMMA IOTA SIGMA              ","9593GN602014","13000","15920","11980","57122003",{"$f":"VLOOKUP(TRIM(J9655),'Transactional Departments'!A:B,2,FALSE)","v":"Gamma Iota Sigma"},"57122003","","","","",""]
["57","602",null,null,"THE MANAGEMENT SOCIETY        ","9593GN602041","13000","15920","11980","57122010",{"$f":"VLOOKUP(TRIM(J9662),'Transactional Departments'!A:B,2,FALSE)","v":"The Management Society"},"57122010","","","","",""]
["57","602",null,null,"TERRY STUDENT CONSULTING      ","9593GN602053","13000","15920","11980","57122014",{"$f":"VLOOKUP(TRIM(J9666),'Transactional Departments'!A:B,2,FALSE)","v":"Terry Student Consulting"},"57122014","","","","",""]
["57","602",null,null,"SOCIETY FOR CYBER SECURITY    ","9593GN602062","13000","15920","11980","57122021",{"$f":"VLOOKUP(TRIM(J9671),'Transactional Departments'!A:B,2,FALSE)","v":"Society for Cyber Security"},"57122021","","","","",""]
["57","603",null,null,"JOURNALISM                    ","9593GN603001","13000","15920","11980","57130001",{"$f":"VLOOKUP(TRIM(J9673),'Transactional Departments'!A:B,2,FALSE)","v":"Journalism-SA"},"57130001","","","","",""]
["57","603",null,null,"PRSSA                         ","9593GN603010","13000","15920","11980","57130006",{"$f":"VLOOKUP(TRIM(J9678),'Transactional Departments'!A:B,2,FALSE)","v":"PRSSA"},"57130006","","","","",""]
["57","603",null,null,"CULTURE CLUB                  ","9593GN603016","13000","15920","11980","57130008",{"$f":"VLOOKUP(TRIM(J9680),'Transactional Departments'!A:B,2,FALSE)","v":"Culture Club"},"57130008","","","","",""]
["57","604",null,null,"AGRICULTURE                   ","9593GN604001","13000","15920","11980","57120001",{"$f":"VLOOKUP(TRIM(J9685),'Transactional Departments'!A:B,2,FALSE)","v":"Agriculture-SA"},"57120001","","","","",""]
["57","604",null,null,"MINORITIES IN AG  NR  & SERV  ","9593GN604038","13000","15920","11980","57120004",{"$f":"VLOOKUP(TRIM(J9690),'Transactional Departments'!A:B,2,FALSE)","v":"Minorities In Ag Nr & Serv"},"57120004","","","","",""]
["57","606",null,null,"EDUCATION                     ","9593GN606001","13000","15920","11980","57124001",{"$f":"VLOOKUP(TRIM(J9696),'Transactional Departments'!A:B,2,FALSE)","v":"Education-SA"},"57124001","","","","",""]
["57","606",null,null,"STUDENT ASSOC SCH PSYCHOLOGIST","9593GN606029","13000","15920","11980","57124006",{"$f":"VLOOKUP(TRIM(J9701),'Transactional Departments'!A:B,2,FALSE)","v":"Student Assoc Sch Psychologist"},"57124006","","","","",""]
["57","606",null,null,"INSTR TECH STUD ASSOC (ITSA)  ","9593GN606048","13000","15920","11980","57124009",{"$f":"VLOOKUP(TRIM(J9704),'Transactional Departments'!A:B,2,FALSE)","v":"Instr Tech Stud Assoc (Itsa)"},"57124009","","","","",""]
["57","606",null,null,"OMEGA TAU                     ","9593GN606062","13000","15920","11980","57124013",{"$f":"VLOOKUP(TRIM(J9708),'Transactional Departments'!A:B,2,FALSE)","v":"Omega Tau"},"57124013","","","","",""]
["57","607",null,null,"FAMILY & CONSUMER SCIENCE     ","9593GN607001","13000","15920","11980","57128000",{"$f":"VLOOKUP(TRIM(J9713),'Transactional Departments'!A:B,2,FALSE)","v":"FACS-SA"},"57128000","","","","",""]
["57","612",null,null,"STUDENT FACULTY COMMITTEE     ","9593GN612004","13000","15920","11980","57136003",{"$f":"VLOOKUP(TRIM(J9719),'Transactional Departments'!A:B,2,FALSE)","v":"Student Faculty Committee"},"57136003","","","","",""]
["57","612",null,null,"ASSN BLK WORKERS STU GROUP    ","9593GN612005","13000","15920","11980","57136004",{"$f":"VLOOKUP(TRIM(J9720),'Transactional Departments'!A:B,2,FALSE)","v":"Assn Blk Workers Stu Group"},"57136004","","","","",""]
["57","615",null,null,"ENGINEERING GRADUATE CLUB     ","9593GN615003","13000","15920","11980","57125002",{"$f":"VLOOKUP(TRIM(J9728),'Transactional Departments'!A:B,2,FALSE)","v":"Engineering Graduate Club"},"57125002","","","","",""]
["57","615",null,null,"ENGINEERS WITHOUT BORDERS     ","9593GN615006","13000","15920","11980","57125005",{"$f":"VLOOKUP(TRIM(J9731),'Transactional Departments'!A:B,2,FALSE)","v":"Engineers Without Borders"},"57125005","","","","",""]
["57","615",null,null,"AM. SOC. MECHANICAL ENG.      ","9593GN615012","13000","15920","11980","57125010",{"$f":"VLOOKUP(TRIM(J9736),'Transactional Departments'!A:B,2,FALSE)","v":"Am. Soc. Mechanical Eng."},"57125010","","","","",""]
["57","615",null,null,"SOC OF AUTOMOTIVE ENGINEERS   ","9593GN615015","13000","15920","11980","57125011",{"$f":"VLOOKUP(TRIM(J9737),'Transactional Departments'!A:B,2,FALSE)","v":"Soc Of Automotive Engineers"},"57125011","","","","",""]
["57","621",null,null,"PUBLIC HEALTH/BIO HEALTH SCI  ","9593GN621001","13000","15920","11980","57135000",{"$f":"VLOOKUP(TRIM(J9743),'Transactional Departments'!A:B,2,FALSE)","v":"Public Health-SA"},"57135000","","","","",""]
["57","625",null,null,"UGA AT GRIFFIN                ","9593GQ625102","13000","15920","11980","57127003",{"$f":"VLOOKUP(TRIM(J9748),'Transactional Departments'!A:B,2,FALSE)","v":"UGA At Griffin"},"57127003","","","","",""]
["57","695",null,null,"FAMILY HOUSING P CARD CLEARING","5210GN695004","12210","21100","42100","57030003",{"$f":"VLOOKUP(TRIM(J9752),'Transactional Departments'!A:B,2,FALSE)","v":"HSG - Facilities Admin"},"57030003","","","","",""]
["57","711",null,null,"GIT      RF SCITRAIN     KALIV","1021RR711006","20400","12100","62021","57012050",{"$f":"VLOOKUP(TRIM(J9755),'Transactional Departments'!A:B,2,FALSE)","v":"Disability Resource Center"},"57012050","","","","",""]
["57","711",null,null,"STF - DISABILITY SERVICES     ","1059TS711001","16000","14400","11600","57012050",{"$f":"VLOOKUP(TRIM(J9761),'Transactional Departments'!A:B,2,FALSE)","v":"Disability Resource Center"},"57012050","","","","",""]
["57","762",null,null,"BUSBEE BUILDING SERVICES      ","5210GN762002","12210","21100","42100","57030603",{"$f":"VLOOKUP(TRIM(J9766),'Transactional Departments'!A:B,2,FALSE)","v":"HSG - Busbee Hall Bldg Svcs"},"57030603","","","","",""]
["57","764",null,null,"VANDIVER                      ","5210GN764000","12210","21100","42100","57030901",{"$f":"VLOOKUP(TRIM(J9771),'Transactional Departments'!A:B,2,FALSE)","v":"HSG - Vandiver Hall Operations"},"57030901","","","","",""]
["57","765",null,null,"MCWHORTER HALL                ","5210GN765000","12210","21100","42100","57030701",{"$f":"VLOOKUP(TRIM(J9775),'Transactional Departments'!A:B,2,FALSE)","v":"HSG - McWhorter Hall Ops"},"57030701","","","","",""]
["57","765",null,null,"MCWHORTER WATER INTRUSION STUD","8064GW765813","12210","21100","42100","57030701",{"$f":"VLOOKUP(TRIM(J9778),'Transactional Departments'!A:B,2,FALSE)","v":"HSG - McWhorter Hall Ops"},"57030701","","","","",""]
["60","003",null,null,"VP OFFICE FOR FIN & ADMIN     ","1061GA003000","10000","16100","11200","60001000",{"$f":"VLOOKUP(TRIM(J9783),'Transactional Departments'!A:B,2,FALSE)","v":"Finance & Adminstration"},"60001000","","","","",""]
["60","003",null,null,"UGAF     AS-DINING SERVICNESBI","1066RA003013","20200","16700","","60001000",{"$f":"VLOOKUP(TRIM(J9785),'Transactional Departments'!A:B,2,FALSE)","v":"Finance & Adminstration"},"60001000","","","","",""]
["61","022",null,null,"UNIV BUS & ACCTG SRVCS        ","1099GN022000","10000","","11200","61005000",{"$f":"VLOOKUP(TRIM(J9790),'Transactional Departments'!A:B,2,FALSE)","v":"UBAS Administration"},"61005000","","","","",""]
["61","025",null,null,"UNIVERSITY GENERAL SALES TAX  ","9082GN025001","60000","","","61021000",{"$f":"VLOOKUP(TRIM(J9794),'Transactional Departments'!A:B,2,FALSE)","v":"Accounting"},"61021000","","","","",""]
["61","030",null,null,"BURSAR'S OFFICE               ","1062GA030000","10600","16200","11300","61030000",{"$f":"VLOOKUP(TRIM(J9801),'Transactional Departments'!A:B,2,FALSE)","v":"Bursar's Office"},"61030000","","","","",""]
["61","030",null,null,"ELECTRONIC FUNDS CLEARING ACCT","9086GN030010","60000","","","61030000",{"$f":"VLOOKUP(TRIM(J9806),'Transactional Departments'!A:B,2,FALSE)","v":"Bursar's Office"},"61030000","","","","",""]
["61","031",null,null,"PROCESSING FEES               ","7049GN031100","31000","","18000","61031000",{"$f":"VLOOKUP(TRIM(J9809),'Transactional Departments'!A:B,2,FALSE)","v":"Student Accounts"},"61031000","","","","",""]
["61","033",null,null,"         UGA S/B UGARF   DAVIS","4162RA033003","20400","16200","64000","61026000",{"$f":"VLOOKUP(TRIM(J9813),'Transactional Departments'!A:B,2,FALSE)","v":"Post Award Accounting"},"61026000","","","","",""]
["61","035",null,null,"ACC PAY - VENDOR REFUND CHECKS","9086GN035006","60000","","","61022000",{"$f":"VLOOKUP(TRIM(J9818),'Transactional Departments'!A:B,2,FALSE)","v":"Accounts Payable"},"61022000","","","","",""]
["61","036",null,null,"UGAF     CAR ALLOWANCE   STAFF","1062RA036003","20200","16200","","61025000",{"$f":"VLOOKUP(TRIM(J9824),'Transactional Departments'!A:B,2,FALSE)","v":"Payroll"},"61025000","","","","",""]
["61","036",null,null,"GEORGIA STATE WITHHOLDING     ","9083GN036002","62000","","","61025000",{"$f":"VLOOKUP(TRIM(J9825),'Transactional Departments'!A:B,2,FALSE)","v":"Payroll"},"61025000","","","","",""]
["61","036",null,null,"UGA FOUNDATION                ","9083GN036010","62000","","","61025000",{"$f":"VLOOKUP(TRIM(J9832),'Transactional Departments'!A:B,2,FALSE)","v":"Payroll"},"61025000","","","","",""]
["61","036",null,null,"GARNISHMENT WITHHOLDING       ","9083GN036018","62000","","","61025000",{"$f":"VLOOKUP(TRIM(J9836),'Transactional Departments'!A:B,2,FALSE)","v":"Payroll"},"61025000","","","","",""]
["61","036",null,null,"RETIREMENT                    ","9083GN036025","62000","","","61025000",{"$f":"VLOOKUP(TRIM(J9841),'Transactional Departments'!A:B,2,FALSE)","v":"Payroll"},"61025000","","","","",""]
["61","036",null,null,"TR-ACCRUED LIABILITY          ","9083GN036026","62000","","","61025000",{"$f":"VLOOKUP(TRIM(J9842),'Transactional Departments'!A:B,2,FALSE)","v":"Payroll"},"61025000","","","","",""]
["61","036",null,null,"CALIFORNIA WITHHOLDING        ","9083GN036038","62000","","","61025000",{"$f":"VLOOKUP(TRIM(J9848),'Transactional Departments'!A:B,2,FALSE)","v":"Payroll"},"61025000","","","","",""]
["61","044",null,null,"ACCOUNTS RECEIVABLE DEPARTMENT","1062DA044000","14100","16200","41500","61032000",{"$f":"VLOOKUP(TRIM(J9851),'Transactional Departments'!A:B,2,FALSE)","v":"Accounts Receivable Department"},"61032000","","","","",""]
["61","050",null,null,"ADMINISTRATIVE SERVICES DIV   ","1063GA050000","10600","16300","11300","61040000",{"$f":"VLOOKUP(TRIM(J9859),'Transactional Departments'!A:B,2,FALSE)","v":"Administrative Services"},"61040000","","","","",""]
["61","050",null,null,"B & F RECORDS CENTER          ","1063GA050005","10600","16300","11300","61040000",{"$f":"VLOOKUP(TRIM(J9860),'Transactional Departments'!A:B,2,FALSE)","v":"Administrative Services"},"61040000","","","","",""]
["62","024",null,null,"BUDGET DIVISION               ","1099GN024000","10000","","11200","62001000",{"$f":"VLOOKUP(TRIM(J9866),'Transactional Departments'!A:B,2,FALSE)","v":"University Budget Admin"},"62001000","","","","",""]
["62","027",null,null,"UNIVERSITY BUDGET OFFICE      ","1062GA027000","10600","16200","11300","62002000",{"$f":"VLOOKUP(TRIM(J9871),'Transactional Departments'!A:B,2,FALSE)","v":"University Budget Office"},"62002000","","","","",""]
["63","041",null,null,"DSS CARRY FORWARD             ","1063DA041925","14100","16300","41500","63001000",{"$f":"VLOOKUP(TRIM(J9876),'Transactional Departments'!A:B,2,FALSE)","v":"Office of Human Resources"},"63001000","","","","",""]
["63","041",null,null,"OFFICE OF HUMAN RESOURCES     ","1099GN041000","10000","","11200","63001000",{"$f":"VLOOKUP(TRIM(J9880),'Transactional Departments'!A:B,2,FALSE)","v":"Office of Human Resources"},"63001000","","","","",""]
["63","041",null,null,"ACCIDNTL DEATH & DISMEMBRINS86","9083GN041015","62000","","","63001000",{"$f":"VLOOKUP(TRIM(J9883),'Transactional Departments'!A:B,2,FALSE)","v":"Office of Human Resources"},"63001000","","","","",""]
["63","041",null,null,"SYSTEM DENTAL - RETIRED       ","9083GN041038","62000","","","63001000",{"$f":"VLOOKUP(TRIM(J9889),'Transactional Departments'!A:B,2,FALSE)","v":"Office of Human Resources"},"63001000","","","","",""]
["63","041",null,null,"ANNUITIES-ROTH 457(B)         ","9083GN041054","62000","","","63001000",{"$f":"VLOOKUP(TRIM(J9894),'Transactional Departments'!A:B,2,FALSE)","v":"Office of Human Resources"},"63001000","","","","",""]
["63","041",null,null,"OPTIONAL RETIREMENT PLN MASTER","9083GN041055","62000","","","63001000",{"$f":"VLOOKUP(TRIM(J9895),'Transactional Departments'!A:B,2,FALSE)","v":"Office of Human Resources"},"63001000","","","","",""]
["63","041",null,null,"LIMITED PURPOSE FSA (LPFSA)   ","9083GN041061","62000","","","63001000",{"$f":"VLOOKUP(TRIM(J9899),'Transactional Departments'!A:B,2,FALSE)","v":"Office of Human Resources"},"63001000","","","","",""]
["63","041",null,null,"LWOP - LTD                    ","9083GN041070","62000","","","63001000",{"$f":"VLOOKUP(TRIM(J9906),'Transactional Departments'!A:B,2,FALSE)","v":"Office of Human Resources"},"63001000","","","","",""]
["63","041",null,null,"SHORT TERM DISABILITY         ","9083GN041085","62000","","","63001000",{"$f":"VLOOKUP(TRIM(J9911),'Transactional Departments'!A:B,2,FALSE)","v":"Office of Human Resources"},"63001000","","","","",""]
["63","041",null,null,"PPO/PPC RETIREE HEALTH BILLED ","9083GN041122","62000","","","63001000",{"$f":"VLOOKUP(TRIM(J9913),'Transactional Departments'!A:B,2,FALSE)","v":"Office of Human Resources"},"63001000","","","","",""]
["63","041",null,null,"DEPENDENT LIFE WITHHELD-CHILD ","9083GN041131","62000","","","63001000",{"$f":"VLOOKUP(TRIM(J9918),'Transactional Departments'!A:B,2,FALSE)","v":"Office of Human Resources"},"63001000","","","","",""]
["63","041",null,null,"ACCIDENT INSURANCE            ","9083GN041158","62000","","","63001000",{"$f":"VLOOKUP(TRIM(J9922),'Transactional Departments'!A:B,2,FALSE)","v":"Office of Human Resources"},"63001000","","","","",""]
["63","041",null,null,"GRAD STDNT HEALTH INS WITHHELD","9083GN041321","62000","","","63001000",{"$f":"VLOOKUP(TRIM(J9929),'Transactional Departments'!A:B,2,FALSE)","v":"Office of Human Resources"},"63001000","","","","",""]
["63","041",null,null,"HIGH DEDUCTIBLE HLTH-ACTIVE   ","9083GN041421","62000","","","63001000",{"$f":"VLOOKUP(TRIM(J9930),'Transactional Departments'!A:B,2,FALSE)","v":"Office of Human Resources"},"63001000","","","","",""]
["63","041",null,null,"KP HMO HEALTH LWOP            ","9083GN041546","62000","","","63001000",{"$f":"VLOOKUP(TRIM(J9937),'Transactional Departments'!A:B,2,FALSE)","v":"Office of Human Resources"},"63001000","","","","",""]
["64","008",null,null,"FACILITIES PLANNING OFFICE    ","1071GP008000","10600","17100","11300","64001001",{"$f":"VLOOKUP(TRIM(J9941),'Transactional Departments'!A:B,2,FALSE)","v":"OUA Department Expenditures"},"64001001","","","","",""]
["64","008",null,null,"UGAAA    CLUB SPORTS FLD IMPR ","8061RY008826","50100","17630","64228","64001001",{"$f":"VLOOKUP(TRIM(J9946),'Transactional Departments'!A:B,2,FALSE)","v":"OUA Department Expenditures"},"64001001","","","","",""]
["64","008",null,null,"BUSINESS LEARNING COMM II J263","8062RX008853","50200","17620","62000","64001001",{"$f":"VLOOKUP(TRIM(J9951),'Transactional Departments'!A:B,2,FALSE)","v":"OUA Department Expenditures"},"64001001","","","","",""]
["64","008",null,null,"SIGMA NU USER-REQU HOUSE UPGRD","8062RX008878","50100","17620","64000","64001001",{"$f":"VLOOKUP(TRIM(J9953),'Transactional Departments'!A:B,2,FALSE)","v":"OUA Department Expenditures"},"64001001","","","","",""]
["64","008",null,null,"UGAF     FORES WHITEHALL BLD  ","8062RY008820","50100","17620","67823","64001001",{"$f":"VLOOKUP(TRIM(J9956),'Transactional Departments'!A:B,2,FALSE)","v":"OUA Department Expenditures"},"64001001","","","","",""]
["64","008",null,null,"CLARK HOWELL HALL RENOV   J307","8064RX008857","50200","17620","62000","64001001",{"$f":"VLOOKUP(TRIM(J9964),'Transactional Departments'!A:B,2,FALSE)","v":"OUA Department Expenditures"},"64001001","","","","",""]
["64","008",null,null,"VARIOUS PROJECTS              ","8064RX008920","50100","17620","64000","64001001",{"$f":"VLOOKUP(TRIM(J9965),'Transactional Departments'!A:B,2,FALSE)","v":"OUA Department Expenditures"},"64001001","","","","",""]
["65","085",null,null,"ENVIRONMENTAL SAFETY DIVISION ","1077GP085000","10600","17800","11300","65003000",{"$f":"VLOOKUP(TRIM(J9970),'Transactional Departments'!A:B,2,FALSE)","v":"Admin"},"65003000","","","","",""]
["65","085",null,null,"HAZSHIP DURING CONST OF 90 DAY","1077GP085014","10000","17800","11200","65008000",{"$f":"VLOOKUP(TRIM(J9976),'Transactional Departments'!A:B,2,FALSE)","v":"Ninety day storage units"},"65008000","","","","",""]
["66","069",null,null,"GEMA/HSA EOD K9 FY17     WILLI","1031RE069012","20400","13100","62044","66002000",{"$f":"VLOOKUP(TRIM(J9979),'Transactional Departments'!A:B,2,FALSE)","v":"UGA Police Services"},"66002000","","","","",""]
["66","069",null,null,"UGA 800MHZ MAINTENANCE        ","1077DP069006","14100","17800","41500","66002001",{"$f":"VLOOKUP(TRIM(J9983),'Transactional Departments'!A:B,2,FALSE)","v":"800Mhz Radio System"},"66002001","","","","",""]
["68","375",null,null,"         D H ARCH REDFEARN    ","4111RH375776","20400","11100","65776","68003001",{"$f":"VLOOKUP(TRIM(J9988),'Transactional Departments'!A:B,2,FALSE)","v":"FMD Grounds Admin"},"68003001","","","","",""]
["68","400",null,null,"CALDWELL HALL RENOVATIONS     ","1071GP400004","10000","17100","11200","68001001",{"$f":"VLOOKUP(TRIM(J9994),'Transactional Departments'!A:B,2,FALSE)","v":"FMD Admin - Business Office"},"68001001","","","","",""]
["68","400",null,null,"UGAF     LAKE HERR WATERSHED  ","8061RY400809","50100","17630","67822","68001001",{"$f":"VLOOKUP(TRIM(J9999),'Transactional Departments'!A:B,2,FALSE)","v":"FMD Admin - Business Office"},"68001001","","","","",""]
["68","400",null,null,"UGAF     BOT GDN HORTICULTURE ","8062RY400876","50100","17620","","68001001",{"$f":"VLOOKUP(TRIM(J10000),'Transactional Departments'!A:B,2,FALSE)","v":"FMD Admin - Business Office"},"68001001","","","","",""]
["68","400",null,null,"ALPHA CHI OMEGA REPAIR & MAINT","8066RX400879","50100","17670","64000","68001001",{"$f":"VLOOKUP(TRIM(J10008),'Transactional Departments'!A:B,2,FALSE)","v":"FMD Admin - Business Office"},"68001001","","","","",""]
["68","400",null,null,"KAPPA SIGMA REPAIRS & MAINT   ","8066RX400882","50100","17670","64000","68001001",{"$f":"VLOOKUP(TRIM(J10011),'Transactional Departments'!A:B,2,FALSE)","v":"FMD Admin - Business Office"},"68001001","","","","",""]
["68","402",null,null,"FMD-SUSTAINABILITY DEPARTMENT ","1071GP402000","10000","17100","11200","68009001",{"$f":"VLOOKUP(TRIM(J10017),'Transactional Departments'!A:B,2,FALSE)","v":"FMD Office Of Sustainability"},"68009001","","","","",""]
["68","402",null,null,"SUSTAINABILITY-PCARD CLR      ","1071GP402001","10000","17100","11200","68009001",{"$f":"VLOOKUP(TRIM(J10018),'Transactional Departments'!A:B,2,FALSE)","v":"FMD Office Of Sustainability"},"68009001","","","","",""]
["68","408",null,null,"FMD-SVCS-SUPPLIES & MATERIALS ","1071GP408000","10000","17100","11200","68002002",{"$f":"VLOOKUP(TRIM(J10023),'Transactional Departments'!A:B,2,FALSE)","v":"FMD Svc Warehouse/Material Req"},"68002002","","","","",""]
["68","410",null,null,"FMD-ENGINEERING DEPARTMENT    ","1071GP410000","10000","17100","11200","68007001",{"$f":"VLOOKUP(TRIM(J10027),'Transactional Departments'!A:B,2,FALSE)","v":"FMD Engineering Department"},"68007001","","","","",""]
["68","415",null,null,"OPERATIONS & MAINT-PCARD CLR  ","1071GP415001","10000","17200","11200","68004001",{"$f":"VLOOKUP(TRIM(J10034),'Transactional Departments'!A:B,2,FALSE)","v":"FMD O&M Administration"},"68004001","","","","",""]
["68","415",null,null,"FMD-O&M-EQUIPMENT PURCHASES   ","1071GP415100","10000","17200","11200","68004001",{"$f":"VLOOKUP(TRIM(J10035),'Transactional Departments'!A:B,2,FALSE)","v":"FMD O&M Administration"},"68004001","","","","",""]
["68","435",null,null,"FMD-GROUNDS-SIGN SHOP         ","1071GP435000","10000","17500","11200","68003102",{"$f":"VLOOKUP(TRIM(J10041),'Transactional Departments'!A:B,2,FALSE)","v":"FMD Grounds Sign Shop"},"68003102","","","","",""]
["68","442",null,null,"RECYCLING SALES AND SUPPLIES  ","1071DP442001","14100","17300","41500","68002102",{"$f":"VLOOKUP(TRIM(J10046),'Transactional Departments'!A:B,2,FALSE)","v":"FMD Svc Support"},"68002102","","","","",""]
["68","448",null,null,"BUILDING AC SHOP PCARD CLEAR  ","1071GP448001","10000","17200","11200","68004101",{"$f":"VLOOKUP(TRIM(J10051),'Transactional Departments'!A:B,2,FALSE)","v":"FMD O&M Building HVAC Shop"},"68004101","","","","",""]
["68","451",null,null,"PLUMBING SHOP - PCARD CLEARING","1071GP451001","10000","17200","11200","68004102",{"$f":"VLOOKUP(TRIM(J10053),'Transactional Departments'!A:B,2,FALSE)","v":"FMD O&M Plumbing Shop"},"68004102","","","","",""]
["68","455",null,null,"ELECTRIC SHOP P-CARD CLEARING ","1071GP455001","10000","17200","11200","68004106",{"$f":"VLOOKUP(TRIM(J10058),'Transactional Departments'!A:B,2,FALSE)","v":"FMD O&M Electric Shop"},"68004106","","","","",""]
["68","466",null,null,"FMD OFF CAMPUS ZONE SHOP      ","1071GP466000","10000","17200","11200","68004205",{"$f":"VLOOKUP(TRIM(J10065),'Transactional Departments'!A:B,2,FALSE)","v":"FMD O&M Off Campus"},"68004205","","","","",""]
["68","475",null,null,"FMD-O&M-BIOCONTAINMENT SHOP   ","1071GP475000","10000","17200","11200","68004110",{"$f":"VLOOKUP(TRIM(J10069),'Transactional Departments'!A:B,2,FALSE)","v":"FMD O&M Bio Contain"},"68004110","","","","",""]
["68","475",null,null,"VETERINARY MEDICINE SHOP      ","1071GP475001","10000","17200","11200","68004110",{"$f":"VLOOKUP(TRIM(J10070),'Transactional Departments'!A:B,2,FALSE)","v":"FMD O&M Bio Contain"},"68004110","","","","",""]
["68","480",null,null,"HSC STEAM UTILITIES           ","1071GP480002","10000","17200","11200","68004111",{"$f":"VLOOKUP(TRIM(J10074),'Transactional Departments'!A:B,2,FALSE)","v":"FMD Hsc Campus Wide Expenses"},"68004111","","","","",""]
["68","484",null,null,"HSC GROUNDS MAINTENANCE       ","1071GP484001","10000","17500","11200","68003200",{"$f":"VLOOKUP(TRIM(J10081),'Transactional Departments'!A:B,2,FALSE)","v":"FMD Grounds Hsc Zone"},"68003200","","","","",""]
["68","486",null,null,"HSC ELEVATOR EXPENSES         ","1071GP486001","10000","17200","11200","68004001",{"$f":"VLOOKUP(TRIM(J10084),'Transactional Departments'!A:B,2,FALSE)","v":"FMD O&M Administration"},"68004001","","","","",""]
["68","490",null,null,"UTILITY INFRASTRUCTURE        ","1071GP490004","10000","17400","11200","68006001",{"$f":"VLOOKUP(TRIM(J10088),'Transactional Departments'!A:B,2,FALSE)","v":"FMD Energy Services"},"68006001","","","","",""]
["68","499",null,null,"PHYSICAL PLANT-RENT           ","1071DP499001","14100","17100","41500","68010001",{"$f":"VLOOKUP(TRIM(J10093),'Transactional Departments'!A:B,2,FALSE)","v":"FMD Senior Administration"},"68010001","","","","",""]
["68","775",null,null,"HSC RENOVATIONS PHASE III     ","1071GP775008","10000","17200","11200","68002200",{"$f":"VLOOKUP(TRIM(J10098),'Transactional Departments'!A:B,2,FALSE)","v":"FMD Svc Hsc Building Services"},"68002200","","","","",""]
["69","054",null,null,"AUXILIARY SERVICES DIVISION   ","5150GN054000","12270","27100","42100","69001010",{"$f":"VLOOKUP(TRIM(J10104),'Transactional Departments'!A:B,2,FALSE)","v":"Aux. Svcs Support Svcs."},"69001010","","","","",""]
["69","054",null,null,"INDIRECT PLANT OVERHEAD       ","5150GN054001","12270","27100","42100","69001010",{"$f":"VLOOKUP(TRIM(J10105),'Transactional Departments'!A:B,2,FALSE)","v":"Aux. Svcs Support Svcs."},"69001010","","","","",""]
["69","054",null,null,"AUX GROUP A RENOVATIONS       ","8064GW054813","12270","22100","42100","69001010",{"$f":"VLOOKUP(TRIM(J10112),'Transactional Departments'!A:B,2,FALSE)","v":"Aux. Svcs Support Svcs."},"69001010","","","","",""]
["69","054",null,null,"AUX GROUP A NEW/ADDITIONS BLDG","8262GW054812","12270","22199","42100","69001010",{"$f":"VLOOKUP(TRIM(J10116),'Transactional Departments'!A:B,2,FALSE)","v":"Aux. Svcs Support Svcs."},"69001010","","","","",""]
["69","055",null,null,"INDIRECT PLANT OVERHEAD       ","5130GN055001","12220","22100","42100","69031000",{"$f":"VLOOKUP(TRIM(J10122),'Transactional Departments'!A:B,2,FALSE)","v":"Dining Services Administration"},"69031000","","","","",""]
["69","055",null,null,"FOOD SERVICES IMPROVEMENTS    ","8061GW055804","12220","27100","42100","69031000",{"$f":"VLOOKUP(TRIM(J10123),'Transactional Departments'!A:B,2,FALSE)","v":"Dining Services Administration"},"69031000","","","","",""]
["69","055",null,null,"FOOD SVCS RENOV- AU BON PAIN  ","8264GW055806","12220","27199","42100","69031000",{"$f":"VLOOKUP(TRIM(J10128),'Transactional Departments'!A:B,2,FALSE)","v":"Dining Services Administration"},"69031000","","","","",""]
["69","057",null,null,"RED CLAY @ TATE               ","5130GN057000","12220","22200","42100","69034250",{"$f":"VLOOKUP(TRIM(J10131),'Transactional Departments'!A:B,2,FALSE)","v":"The Market at Tate"},"69034250","","","","",""]
["69","061",null,null,"CAMPUS TRANSIT SYSTEM         ","5120GN061000","12250","25100","42100","69054100",{"$f":"VLOOKUP(TRIM(J10139),'Transactional Departments'!A:B,2,FALSE)","v":"Transit Fixed Route"},"69054100","","","","",""]
["69","061",null,null,"CAMPUS TRANSIT - UBI          ","5120GN061002","12250","25100","42100","69054100",{"$f":"VLOOKUP(TRIM(J10141),'Transactional Departments'!A:B,2,FALSE)","v":"Transit Fixed Route"},"69054100","","","","",""]
["69","062",null,null,"THE NICHE                     ","5130GN062000","12220","22100","42100","69033400",{"$f":"VLOOKUP(TRIM(J10146),'Transactional Departments'!A:B,2,FALSE)","v":"The Niche"},"69033400","","","","",""]
["69","066",null,null,"UNIVERSITY GOLF COURSE        ","5150GN066000","12270","27100","42100","69091100",{"$f":"VLOOKUP(TRIM(J10151),'Transactional Departments'!A:B,2,FALSE)","v":"Golf Operations"},"69091100","","","","",""]
["69","067",null,null,"VENDING SERVICE               ","5150GN067000","12270","27100","42100","69074000",{"$f":"VLOOKUP(TRIM(J10155),'Transactional Departments'!A:B,2,FALSE)","v":"Vending Services"},"69074000","","","","",""]
["69","073",null,null,"INDIRECT PLANT OVERHEAD       ","5130GN073001","12220","22100","42100","69034250",{"$f":"VLOOKUP(TRIM(J10158),'Transactional Departments'!A:B,2,FALSE)","v":"The Market at Tate"},"69034250","","","","",""]
["69","102",null,null,"CAMPUS CATERING               ","5130GN102000","12220","22100","42100","69035000",{"$f":"VLOOKUP(TRIM(J10163),'Transactional Departments'!A:B,2,FALSE)","v":"Catering"},"69035000","","","","",""]
["69","378",null,null,"MOBILE DINING SERVICES        ","5130GN378000","12220","22200","42100","69034220",{"$f":"VLOOKUP(TRIM(J10169),'Transactional Departments'!A:B,2,FALSE)","v":"Mobile Dining"},"69034220","","","","",""]
["69","503",null,null,"INDIRECT PLANT OVERHEAD       ","5120GN503001","12250","25200","42100","69051202",{"$f":"VLOOKUP(TRIM(J10174),'Transactional Departments'!A:B,2,FALSE)","v":"East Campus Deck"},"69051202","","","","",""]
["69","507",null,null,"INDIRECT PLANT OVERHEAD       ","5120GN507001","12250","25200","42100","69051204",{"$f":"VLOOKUP(TRIM(J10179),'Transactional Departments'!A:B,2,FALSE)","v":"Pac Deck"},"69051204","","","","",""]
["69","508",null,null,"AUXILIARY INDIRECT            ","5120GN508001","12250","25200","42100","69051400",{"$f":"VLOOKUP(TRIM(J10181),'Transactional Departments'!A:B,2,FALSE)","v":"Parking Lots"},"69051400","","","","",""]
["69","508",null,null,"PARK & RIDE                   ","8261GW508802","12250","25299","42100","69051400",{"$f":"VLOOKUP(TRIM(J10186),'Transactional Departments'!A:B,2,FALSE)","v":"Parking Lots"},"69051400","","","","",""]
["69","510",null,null,"INTRAMURAL PARKING DECK       ","5120GN510000","12250","25200","42100","69051205",{"$f":"VLOOKUP(TRIM(J10188),'Transactional Departments'!A:B,2,FALSE)","v":"IM Deck"},"69051205","","","","",""]
["69","699",null,null,"NORTH CAMPUS PARKING DECK     ","5120GN699000","12250","25200","42100","69051207",{"$f":"VLOOKUP(TRIM(J10193),'Transactional Departments'!A:B,2,FALSE)","v":"North Deck"},"69051207","","","","",""]
["69","731",null,null,"HULL STREET PARKING DECK      ","5120GN731000","12250","25200","42100","69051209",{"$f":"VLOOKUP(TRIM(J10198),'Transactional Departments'!A:B,2,FALSE)","v":"Hull St Deck"},"69051209","","","","",""]
["69","751",null,null,"RED CLAY CAFE                 ","5130GN751000","12220","22200","42100","69034240",{"$f":"VLOOKUP(TRIM(J10202),'Transactional Departments'!A:B,2,FALSE)","v":"Red Clay Café"},"69034240","","","","",""]
["69","754",null,null,"BULLDOG BUCKS                 ","9084GN754002","60000","","","69032000",{"$f":"VLOOKUP(TRIM(J10209),'Transactional Departments'!A:B,2,FALSE)","v":"Bulldog Bucks Service Account"},"69032000","","","","",""]
["69","767",null,null,"INDIRECT PLANT OVERHEAD       ","5130GN767001","12220","22100","42100","69031400",{"$f":"VLOOKUP(TRIM(J10212),'Transactional Departments'!A:B,2,FALSE)","v":"East Campus Commissary"},"69031400","","","","",""]
["69","776",null,null,"EINSTEIN BRO BAGEL            ","8264GW776803","12220","22299","42100","69034130",{"$f":"VLOOKUP(TRIM(J10216),'Transactional Departments'!A:B,2,FALSE)","v":"Coffee & Bagels"},"69034130","","","","",""]
["69","796",null,null,"INDIRECT PLANT OVERHEAD       ","5120GN796001","12250","25200","42100","69051210",{"$f":"VLOOKUP(TRIM(J10221),'Transactional Departments'!A:B,2,FALSE)","v":"Tate Deck"},"69051210","","","","",""]
["70","090",null,null,"VOLLEYBALL                    ","5560GN090007","12280","28100","43000","70001VLB",{"$f":"VLOOKUP(TRIM(J10226),'Transactional Departments'!A:B,2,FALSE)","v":"Volleyball"},"70001VLB","","","","",""]
["70","090",null,null,"FOOTBALL                      ","5560GN090009","12280","28100","43000","70001FBL",{"$f":"VLOOKUP(TRIM(J10228),'Transactional Departments'!A:B,2,FALSE)","v":"Football"},"70001FBL","","","","",""]
["70","090",null,null,"TRAINING ROOM                 ","5560GN090016","12280","28100","43000","70001MED",{"$f":"VLOOKUP(TRIM(J10233),'Transactional Departments'!A:B,2,FALSE)","v":"Sports Medicine"},"70001MED","","","","",""]
["70","090",null,null,"TICKET OFFICE                 ","5560GN090025","12280","28100","43000","70001TIX",{"$f":"VLOOKUP(TRIM(J10240),'Transactional Departments'!A:B,2,FALSE)","v":"Ticket Office"},"70001TIX","","","","",""]
["70","090",null,null,"PROMOTIONS                    ","5560GN090029","12280","28100","43000","70001PRM",{"$f":"VLOOKUP(TRIM(J10244),'Transactional Departments'!A:B,2,FALSE)","v":"Promotions"},"70001PRM","","","","",""]
["70","090",null,null,"CHEERLEADING                  ","5560GN090030","12280","28100","43000","70001CHR",{"$f":"VLOOKUP(TRIM(J10245),'Transactional Departments'!A:B,2,FALSE)","v":"Cheerleading"},"70001CHR","","","","",""]
["70","090",null,null,"EQUESTRIAN                    ","5560GN090040","12280","28100","43000","70001EQU",{"$f":"VLOOKUP(TRIM(J10251),'Transactional Departments'!A:B,2,FALSE)","v":"Equestrian"},"70001EQU","","","","",""]
["71","016",null,null,"PRINCIPAL GIFTS               ","1065GA016010","10000","16600","11200","71016400",{"$f":"VLOOKUP(TRIM(J10256),'Transactional Departments'!A:B,2,FALSE)","v":"DAR Principal Gifts"},"71016400","","","","",""]
["71","016",null,null,"SRVPEA ONE TIME ALLOCATIONS   ","1065GA016017","10000","16600","11200","71016099",{"$f":"VLOOKUP(TRIM(J10259),'Transactional Departments'!A:B,2,FALSE)","v":"DAR SR VP One Time Funding"},"71016099","","","","",""]
["71","016",null,null,"VP FOR DEV & ALUMNI RELATIONS ","1099GN016000","10000","","11200","71016100",{"$f":"VLOOKUP(TRIM(J10263),'Transactional Departments'!A:B,2,FALSE)","v":"DAR VP Operations"},"71016100","","","","",""]
["71","017",null,null,"COLLEGE RELATION              ","1065GA017012","10600","16600","11300","71017600",{"$f":"VLOOKUP(TRIM(J10268),'Transactional Departments'!A:B,2,FALSE)","v":"DAR College Relations"},"71017600","","","","",""]
["71","017",null,null,"UGAF     REG PROG UGAF CLKERNE","1065RA017021","20200","16600","67849","71017100",{"$f":"VLOOKUP(TRIM(J10273),'Transactional Departments'!A:B,2,FALSE)","v":"DAR Development General"},"71017100","","","","",""]
["71","080",null,null,"SPECIAL EVENTS ONE TIME ALLOC ","1065GA080017","10000","16600","11200","71800099",{"$f":"VLOOKUP(TRIM(J10279),'Transactional Departments'!A:B,2,FALSE)","v":"Special Events One Time Fund"},"71800099","","","","",""]
["71","095",null,null,"EXTERNAL AFAIRS HOLDING       ","1065GA095000","10000","16600","11200","71016100",{"$f":"VLOOKUP(TRIM(J10283),'Transactional Departments'!A:B,2,FALSE)","v":"DAR VP Operations"},"71016100","","","","",""]
["71","106",null,null,"UGAF     WASHINGTON BLDG COYLE","1065RA106018","20200","16600","","71016100",{"$f":"VLOOKUP(TRIM(J10286),'Transactional Departments'!A:B,2,FALSE)","v":"DAR VP Operations"},"71016100","","","","",""]
["71","134",null,null,"CAREER PLAN/PLACEMENT PROJECTS","1053DW134001","14100","15300","41500","71134114",{"$f":"VLOOKUP(TRIM(J10291),'Transactional Departments'!A:B,2,FALSE)","v":"Career Planning General"},"71134114","","","","",""]
["71","134",null,null,"USDE     JD/FED SKSTDY13 JOERS","1066RA134034","20400","16700","61033","71134101",{"$f":"VLOOKUP(TRIM(J10297),'Transactional Departments'!A:B,2,FALSE)","v":"DAR Career Center General Ops"},"71134101","","","","",""]
["71","134",null,null,"USDE     JLD/WKSTUDY2014 JOERS","1066RA134035","20400","16700","61033","71134101",{"$f":"VLOOKUP(TRIM(J10298),'Transactional Departments'!A:B,2,FALSE)","v":"DAR Career Center General Ops"},"71134101","","","","",""]
["71","136",null,null,"ADVANCEMNT SVCS ONE TIME ALLOC","1065GA136017","10000","16600","11200","71136099",{"$f":"VLOOKUP(TRIM(J10302),'Transactional Departments'!A:B,2,FALSE)","v":"DAR IT One Time Funding"},"71136099","","","","",""]
["71","597",null,null,"UGA FOUNDATION OPERATING      ","1065GA597001","10000","16600","11200","71597100",{"$f":"VLOOKUP(TRIM(J10309),'Transactional Departments'!A:B,2,FALSE)","v":"UGAF General"},"71597100","","","","",""]
["71","640",null,null,"UGAF     CFR UGAF CLEAR AKERNE","1065RA640018","20200","16600","67856","71640100",{"$f":"VLOOKUP(TRIM(J10314),'Transactional Departments'!A:B,2,FALSE)","v":"DAR CFR General"},"71640100","","","","",""]
["71","641",null,null,"COMMUNICATION ONE TIME FUNDING","1065GA641017","10000","16600","11200","71641099",{"$f":"VLOOKUP(TRIM(J10316),'Transactional Departments'!A:B,2,FALSE)","v":"DAR Comm One Time Funding"},"71641099","","","","",""]
["71","642",null,null,"RECORDS                       ","1065GA642005","10000","16600","11200","71642500",{"$f":"VLOOKUP(TRIM(J10321),'Transactional Departments'!A:B,2,FALSE)","v":"DAR AGCD Records"},"71642500","","","","",""]
["71","642",null,null,"UGAF     RECORDS CLEARINGKERNE","1065RA642010","20200","16600","67859","71642100",{"$f":"VLOOKUP(TRIM(J10326),'Transactional Departments'!A:B,2,FALSE)","v":"DAR AGCD Director"},"71642100","","","","",""]
["72","014",null,null,"BROADCAST REVENUE             ","1065DA014001","14100","16500","41500","72001009",{"$f":"VLOOKUP(TRIM(J10330),'Transactional Departments'!A:B,2,FALSE)","v":" Media Communications"},"72001009","","","","",""]
["72","014",null,null,"PHOTOGRAPHY REVENUE           ","1065DA014005","14100","16500","41500","72001014",{"$f":"VLOOKUP(TRIM(J10333),'Transactional Departments'!A:B,2,FALSE)","v":"CS Multimedia"},"72001014","","","","",""]
["72","014",null,null,"STRATEGIC MARKETING           ","1065GA014003","10600","16500","11300","72001015",{"$f":"VLOOKUP(TRIM(J10340),'Transactional Departments'!A:B,2,FALSE)","v":"Brand Strategy"},"72001015","","","","",""]
["72","014",null,null,"WUGA-FM                       ","1065GA014007","10600","16500","11300","72001018",{"$f":"VLOOKUP(TRIM(J10344),'Transactional Departments'!A:B,2,FALSE)","v":"WUGA-FM Radio"},"72001018","","","","",""]
["72","014",null,null,"UGAF     MARKET & BRAND  JACKS","1065RA014025","20200","16500","67727","72001004",{"$f":"VLOOKUP(TRIM(J10349),'Transactional Departments'!A:B,2,FALSE)","v":"VP Office of Marketing & Comm"},"72001004","","","","",""]
["73","698",null,null,"COMMUNITY RELATIONS           ","1065GA698001","10600","16600","11300","73698200",{"$f":"VLOOKUP(TRIM(J10354),'Transactional Departments'!A:B,2,FALSE)","v":"GR Community Relations"},"73698200","","","","",""]
["73","698",null,null,"FEDERAL RELATIONS             ","1065GA698003","10600","16600","11300","73698400",{"$f":"VLOOKUP(TRIM(J10356),'Transactional Departments'!A:B,2,FALSE)","v":"GR Federal Relations"},"73698400","","","","",""]
["74","000",null,null,"ASSET/LIABILITY/RESERVE       ","2500GN000000","11300","","11200","74001002",{"$f":"VLOOKUP(TRIM(J10361),'Transactional Departments'!A:B,2,FALSE)","v":"Other Institutional"},"74001002","","","","",""]
["74","000",null,null,"ASSET/LIABILITY/RESERVE       ","2700GN000000","11330","","11200","74001002",{"$f":"VLOOKUP(TRIM(J10363),'Transactional Departments'!A:B,2,FALSE)","v":"Other Institutional"},"74001002","","","","",""]
["74","000",null,null,"ASSET/LIABILITY/RESERVE       ","3400GN000000","11360","","11200","74001002",{"$f":"VLOOKUP(TRIM(J10368),'Transactional Departments'!A:B,2,FALSE)","v":"Other Institutional"},"74001002","","","","",""]
["74","000",null,null,"ASSET/LIABILITY/RESERVE       ","4400RN000000","20400","","","74001002",{"$f":"VLOOKUP(TRIM(J10373),'Transactional Departments'!A:B,2,FALSE)","v":"Other Institutional"},"74001002","","","","",""]
["74","000",null,null,"ASSET/LIABILITY/RESERVE       ","5000GN000000","12270","","42100","74001002",{"$f":"VLOOKUP(TRIM(J10379),'Transactional Departments'!A:B,2,FALSE)","v":"Other Institutional"},"74001002","","","","",""]
["74","000",null,null,"ASSET/LIABILITY/RESERVE       ","9500GN000000","13000","","11980","74001002",{"$f":"VLOOKUP(TRIM(J10384),'Transactional Departments'!A:B,2,FALSE)","v":"Other Institutional"},"74001002","","","","",""]
["74","008",null,null,"CAPITAL PROJECT SITE STUDY    ","1071GP008016","10000","17100","11200","74005000",{"$f":"VLOOKUP(TRIM(J10387),'Transactional Departments'!A:B,2,FALSE)","v":"Capital Projects"},"74005000","18002","COUA18005      ","OTH","",""]
["74","008",null,null,"SUSTAINABLE WATER 008         ","1071GP008021","10000","17100","11200","74005000",{"$f":"VLOOKUP(TRIM(J10391),'Transactional Departments'!A:B,2,FALSE)","v":"Capital Projects"},"74005000","18002","COUA16067      ","OTH","",""]
["74","008",null,null,"ADS BLDG RESTORATION TIFT J277","8064RX008855","50200","17620","62000","74005000",{"$f":"VLOOKUP(TRIM(J10396),'Transactional Departments'!A:B,2,FALSE)","v":"Capital Projects"},"74005000","18002","COUA16147      ","BND","","GSFICJ277 "]
["74","023",null,null,"CAPITAL LEASE - COVERDELL BLDG","1025AR023001","15000","12400","11500","74001001",{"$f":"VLOOKUP(TRIM(J10401),'Transactional Departments'!A:B,2,FALSE)","v":"Leases"},"74001001","","","","",""]
["74","023",null,null,"INDIRECT COST REC - HOLD      ","1026AR023101","15000","12200","11500","74014000",{"$f":"VLOOKUP(TRIM(J10403),'Transactional Departments'!A:B,2,FALSE)","v":{"$error":"#N/A"}},"74014000","","","","",""]
["74","023",null,null,"NON-UGA OMBE FUNDS            ","1031GE023193","10000","13100","11200","74001002",{"$f":"VLOOKUP(TRIM(J10411),'Transactional Departments'!A:B,2,FALSE)","v":"Other Institutional"},"74001002","","","","",""]
["74","023",null,null,"INTRA-UNIVERSITY ELIMINATIONS ","1045DT023996","14100","14500","41500","74001001",{"$f":"VLOOKUP(TRIM(J10414),'Transactional Departments'!A:B,2,FALSE)","v":"Leases"},"74001001","","","","",""]
["74","023",null,null,"INTRA-UNIVERSITY ELIMINATIONS ","1066DA023996","14100","16700","41500","74001001",{"$f":"VLOOKUP(TRIM(J10419),'Transactional Departments'!A:B,2,FALSE)","v":"Leases"},"74001001","","","","",""]
["74","023",null,null,"INSURANCE AND BONDING         ","1066GA023001","10000","16700","11200","74001003",{"$f":"VLOOKUP(TRIM(J10420),'Transactional Departments'!A:B,2,FALSE)","v":"Insurance"},"74001003","","","","",""]
["74","023",null,null,"AUDIT AND TAX EXPENSES        ","1066GA023088","10000","16700","11200","74001002",{"$f":"VLOOKUP(TRIM(J10426),'Transactional Departments'!A:B,2,FALSE)","v":"Other Institutional"},"74001002","","","","",""]
["74","023",null,null,"LEGAL EXPENSES-UNIV. GENERAL  ","1066GA023112","10000","16700","11200","74001002",{"$f":"VLOOKUP(TRIM(J10431),'Transactional Departments'!A:B,2,FALSE)","v":"Other Institutional"},"74001002","","","","",""]
["74","023",null,null,"COUNCIL ON GOVT RELATIONS-COGR","1066GA023130","10000","16700","11200","74001001",{"$f":"VLOOKUP(TRIM(J10434),'Transactional Departments'!A:B,2,FALSE)","v":"Leases"},"74001001","","","","",""]
["74","023",null,null,"FSA & DEP CARE ADMIN FEES     ","1066GA023189","10600","16700","11300","74001002",{"$f":"VLOOKUP(TRIM(J10438),'Transactional Departments'!A:B,2,FALSE)","v":"Other Institutional"},"74001002","","","","",""]
["74","023",null,null,"PEOPLE ADMIN SUPPORT          ","1066GA023292","10000","16700","11200","74001001",{"$f":"VLOOKUP(TRIM(J10444),'Transactional Departments'!A:B,2,FALSE)","v":"Leases"},"74001001","","","","",""]
["74","023",null,null,"GATE 9 IMPROVEMENTS           ","1071AP023318","15000","17100","11500","74001001",{"$f":"VLOOKUP(TRIM(J10449),'Transactional Departments'!A:B,2,FALSE)","v":"Leases"},"74001001","","","","",""]
["74","023",null,null,"TATE CNTR EXPANSION-BLDG LEASE","1071GP023169","10000","17100","11200","74001001",{"$f":"VLOOKUP(TRIM(J10454),'Transactional Departments'!A:B,2,FALSE)","v":"Leases"},"74001001","","","","",""]
["74","023",null,null,"ESD-WILKINS FARM              ","1071GP023321","10000","17100","11200","74001001",{"$f":"VLOOKUP(TRIM(J10458),'Transactional Departments'!A:B,2,FALSE)","v":"Leases"},"74001001","","","","",""]
["74","023",null,null,"MISC CAMPUS IMPROVEMENTS      ","8066RX023803","50100","17670","64228","74001001",{"$f":"VLOOKUP(TRIM(J10461),'Transactional Departments'!A:B,2,FALSE)","v":"Leases"},"74001001","","","","",""]
["74","145",null,null,"RESIDENT INSTR - RESTR OFFSET ","1021RR145999","20400","12100","","74004000",{"$f":"VLOOKUP(TRIM(J10468),'Transactional Departments'!A:B,2,FALSE)","v":"General University Support"},"74004000","","","","",""]
["74","145",null,null,"RESIDENT INSTR - RESTR OFFSET ","1051RS145999","20400","15100","","74004000",{"$f":"VLOOKUP(TRIM(J10472),'Transactional Departments'!A:B,2,FALSE)","v":"General University Support"},"74004000","","","","",""]
["74","145",null,null,"GENERAL UNIV SUPPORT-PRESIDENT","1061GA145011","10000","16100","11200","74004000",{"$f":"VLOOKUP(TRIM(J10473),'Transactional Departments'!A:B,2,FALSE)","v":"General University Support"},"74004000","","","","",""]
["74","145",null,null,"RESIDENT INSTR - RESTR OFFSET ","1081RN145999","20100","18100","","74004000",{"$f":"VLOOKUP(TRIM(J10477),'Transactional Departments'!A:B,2,FALSE)","v":"General University Support"},"74004000","","","","",""]
["74","145",null,null,"         SPONSORED-RENOVATIONS","8064RY145994","50100","17620","","74004000",{"$f":"VLOOKUP(TRIM(J10484),'Transactional Departments'!A:B,2,FALSE)","v":"General University Support"},"74004000","","","","",""]
["74","363",null,null,"STAFF BENEFITS - RI           ","1041GT363000","10000","14100","11200","74002000",{"$f":"VLOOKUP(TRIM(J10489),'Transactional Departments'!A:B,2,FALSE)","v":"Institutional Benefits"},"74002000","","","","",""]
["74","363",null,null,"STAFF BENEFITS - RI           ","1066GA363000","10000","16700","11200","74002000",{"$f":"VLOOKUP(TRIM(J10491),'Transactional Departments'!A:B,2,FALSE)","v":"Institutional Benefits"},"74002000","","","","",""]
["74","364",null,null,"RESIDENT INSTR - GENERAL FUND ","1000GN364000","10500","","11800","74010000",{"$f":"VLOOKUP(TRIM(J10496),'Transactional Departments'!A:B,2,FALSE)","v":"Institutional Revenue"},"74010000","","","","",""]
["74","500",null,null,"MRR S CAMPUS ELECTRIC DUCTBANK","8061RX500143","50300","17630","62000","74006000",{"$f":"VLOOKUP(TRIM(J10501),'Transactional Departments'!A:B,2,FALSE)","v":"MRR Projects"},"74006000","","","","",""]
["74","500",null,null,"MRR PED/VEHICALAR SAFETY  J265","8061RX500310","50300","17630","62000","74006000",{"$f":"VLOOKUP(TRIM(J10507),'Transactional Departments'!A:B,2,FALSE)","v":"MRR Projects"},"74006000","","","","",""]
["74","500",null,null,"MRR HIGH VOLT SYS RELIAB  J265","8061RX500314","50300","17630","62000","74006000",{"$f":"VLOOKUP(TRIM(J10508),'Transactional Departments'!A:B,2,FALSE)","v":"MRR Projects"},"74006000","","","","",""]
["74","500",null,null,"MRR HIGH VOLT SYS RELIAB  J297","8061RX500413","50300","17630","62000","74006000",{"$f":"VLOOKUP(TRIM(J10515),'Transactional Departments'!A:B,2,FALSE)","v":"MRR Projects"},"74006000","","","","",""]
["74","500",null,null,"MRR SKIO INFASTRUCTURE IMPJ297","8061RX500429","50300","17630","62000","74006000",{"$f":"VLOOKUP(TRIM(J10519),'Transactional Departments'!A:B,2,FALSE)","v":"MRR Projects"},"74006000","","","","",""]
["74","500",null,null,"MRR STEAM LINE PIPING REPLJ315","8061RX500515","50300","17630","62000","74006000",{"$f":"VLOOKUP(TRIM(J10524),'Transactional Departments'!A:B,2,FALSE)","v":"MRR Projects"},"74006000","","","","",""]
["74","500",null,null,"MRR LIFE SAFETY CODE DEFI J261","8064RX500200","50300","17620","62000","74006000",{"$f":"VLOOKUP(TRIM(J10529),'Transactional Departments'!A:B,2,FALSE)","v":"MRR Projects"},"74006000","","","","",""]
["74","500",null,null,"MRR HVAC REPLACEMENT PROG J261","8064RX500202","50300","17620","62000","74006000",{"$f":"VLOOKUP(TRIM(J10531),'Transactional Departments'!A:B,2,FALSE)","v":"MRR Projects"},"74006000","","","","",""]
["74","500",null,null,"MRR CLASSROOM REPAIR&REHA J261","8064RX500205","50300","17620","62000","74006000",{"$f":"VLOOKUP(TRIM(J10534),'Transactional Departments'!A:B,2,FALSE)","v":"MRR Projects"},"74006000","","","","",""]
["74","500",null,null,"MRR ROOF EXT WALLS STRUCT J261","8064RX500223","50300","17620","62000","74006000",{"$f":"VLOOKUP(TRIM(J10542),'Transactional Departments'!A:B,2,FALSE)","v":"MRR Projects"},"74006000","","","","",""]
["74","500",null,null,"MRR ADA ACCESSIBILTYIMPROVJ261","8064RX500227","50300","17620","62000","74006000",{"$f":"VLOOKUP(TRIM(J10543),'Transactional Departments'!A:B,2,FALSE)","v":"MRR Projects"},"74006000","","","","",""]
["74","500",null,null,"MRR SKIDAWAY SHELLFISH CHIJ261","8064RX500233","50300","17620","62000","74006000",{"$f":"VLOOKUP(TRIM(J10548),'Transactional Departments'!A:B,2,FALSE)","v":"MRR Projects"},"74006000","","","","",""]
["74","500",null,null,"MRR TUCKER ACCESS/HVAC J261   ","8064RX500242","50300","17620","62000","74006000",{"$f":"VLOOKUP(TRIM(J10554),'Transactional Departments'!A:B,2,FALSE)","v":"MRR Projects"},"74006000","","","","",""]
["74","500",null,null,"MRR HVAC REPLACEMENT PROG J265","8064RX500305","50300","17620","62000","74006000",{"$f":"VLOOKUP(TRIM(J10559),'Transactional Departments'!A:B,2,FALSE)","v":"MRR Projects"},"74006000","","","","",""]
["74","500",null,null,"MRR BLDG SECURITY/ACCESS  J265","8064RX500309","50300","17620","62000","74006000",{"$f":"VLOOKUP(TRIM(J10562),'Transactional Departments'!A:B,2,FALSE)","v":"MRR Projects"},"74006000","","","","",""]
["74","500",null,null,"MRR ELEVATOR REPLACEMENT  J265","8064RX500316","50300","17620","62000","74006000",{"$f":"VLOOKUP(TRIM(J10566),'Transactional Departments'!A:B,2,FALSE)","v":"MRR Projects"},"74006000","","","","",""]
["74","500",null,null,"MRR ASBESTOS ABATEMENT PROJ265","8064RX500326","50300","17620","62000","74006000",{"$f":"VLOOKUP(TRIM(J10572),'Transactional Departments'!A:B,2,FALSE)","v":"MRR Projects"},"74006000","","","","",""]
["74","500",null,null,"MRR GRIFFIN LAB SAFETY    J265","8064RX500333","50300","17620","62000","74006000",{"$f":"VLOOKUP(TRIM(J10577),'Transactional Departments'!A:B,2,FALSE)","v":"MRR Projects"},"74006000","","","","",""]
["74","500",null,null,"MRR MAREX FISHERIES BLDG  J265","8064RX500334","50300","17620","62000","74006000",{"$f":"VLOOKUP(TRIM(J10578),'Transactional Departments'!A:B,2,FALSE)","v":"MRR Projects"},"74006000","","","","",""]
["74","500",null,null,"MRR HVAC REPLACEMENT PROG J297","8064RX500405","50300","17620","62000","74006000",{"$f":"VLOOKUP(TRIM(J10586),'Transactional Departments'!A:B,2,FALSE)","v":"MRR Projects"},"74006000","","","","",""]
["74","500",null,null,"MRR RESEARCH LAB SAFETY   J297","8064RX500408","50300","17620","62000","74006000",{"$f":"VLOOKUP(TRIM(J10589),'Transactional Departments'!A:B,2,FALSE)","v":"MRR Projects"},"74006000","","","","",""]
["74","500",null,null,"MRR ENERGY PLANT PH 1OF4  J297","8064RX500417","50300","17620","62000","74006000",{"$f":"VLOOKUP(TRIM(J10594),'Transactional Departments'!A:B,2,FALSE)","v":"MRR Projects"},"74006000","","","","",""]
["74","500",null,null,"MRR AG SVCS HVAC REPLACEM J297","8064RX500419","50300","17620","62000","74006000",{"$f":"VLOOKUP(TRIM(J10595),'Transactional Departments'!A:B,2,FALSE)","v":"MRR Projects"},"74006000","","","","",""]
["74","500",null,null,"MRR MAREX EMERG GENERATOR J297","8064RX500425","50300","17620","62000","74006000",{"$f":"VLOOKUP(TRIM(J10601),'Transactional Departments'!A:B,2,FALSE)","v":"MRR Projects"},"74006000","","","","",""]
["74","500",null,null,"MRR RK EAGLE 4H BLDG 5060 J297","8064RX500430","50300","17620","62000","74006000",{"$f":"VLOOKUP(TRIM(J10605),'Transactional Departments'!A:B,2,FALSE)","v":"MRR Projects"},"74006000","","","","",""]
["74","500",null,null,"FY18 MRR CLEARING ACCOUNT     ","8064RX500500","50200","17620","62000","74006000",{"$f":"VLOOKUP(TRIM(J10612),'Transactional Departments'!A:B,2,FALSE)","v":"MRR Projects"},"74006000","","","","",""]
["74","500",null,null,"MRR FIRE CODE DEFICIENCIESJ315","8064RX500501","50300","17620","62000","74006000",{"$f":"VLOOKUP(TRIM(J10613),'Transactional Departments'!A:B,2,FALSE)","v":"MRR Projects"},"74006000","","","","",""]
["74","500",null,null,"MRR RESEARCH LAB SAFETY   J315","8064RX500508","50300","17620","62000","74006000",{"$f":"VLOOKUP(TRIM(J10619),'Transactional Departments'!A:B,2,FALSE)","v":"MRR Projects"},"74006000","","","","",""]
["74","500",null,null,"MRR BIOLER CODE COMPLIANC J315","8064RX500517","50300","17620","62000","74006000",{"$f":"VLOOKUP(TRIM(J10624),'Transactional Departments'!A:B,2,FALSE)","v":"MRR Projects"},"74006000","","","","",""]
["74","500",null,null,"MRR ASBESTOS/HAZMAT ABATE J315","8064RX500522","50300","17620","62000","74006000",{"$f":"VLOOKUP(TRIM(J10629),'Transactional Departments'!A:B,2,FALSE)","v":"MRR Projects"},"74006000","","","","",""]
["74","500",null,null,"MRR FACS HOUSE B RENOV    J315","8064RX500524","50300","17620","62000","74006000",{"$f":"VLOOKUP(TRIM(J10631),'Transactional Departments'!A:B,2,FALSE)","v":"MRR Projects"},"74006000","","","","",""]
["74","500",null,null,"MRR MAREX ROOF BRUNSWICK  J315","8064RX500530","50300","17620","62000","74006000",{"$f":"VLOOKUP(TRIM(J10636),'Transactional Departments'!A:B,2,FALSE)","v":"MRR Projects"},"74006000","","","","",""]
["74","500",null,null,"MRR HOKE SMITH ANNEX HVAC     ","8064RX500657","50300","17620","62000","74006000",{"$f":"VLOOKUP(TRIM(J10643),'Transactional Departments'!A:B,2,FALSE)","v":"MRR Projects"},"74006000","","","","",""]
["74","500",null,null,"MRR JOURN/PSYCH SPRINKLER PH 1","8064RX500724","50300","17620","62000","74006000",{"$f":"VLOOKUP(TRIM(J10647),'Transactional Departments'!A:B,2,FALSE)","v":"MRR Projects"},"74006000","","","","",""]
["74","500",null,null,"MRR RK EAGLE TALMADGE AUDITOR ","8064RX500765","50300","17620","62000","74006000",{"$f":"VLOOKUP(TRIM(J10648),'Transactional Departments'!A:B,2,FALSE)","v":"MRR Projects"},"74006000","","","","",""]
["74","500",null,null,"MRR FIRE ALARM REPLACEMENT    ","8064RX500908","50300","17620","62000","74006000",{"$f":"VLOOKUP(TRIM(J10652),'Transactional Departments'!A:B,2,FALSE)","v":"MRR Projects"},"74006000","","","","",""]
["74","505",null,null,"LIBRARIES-JOINT STAFF         ","1066GA505019","10000","16700","11200","74001002",{"$f":"VLOOKUP(TRIM(J10659),'Transactional Departments'!A:B,2,FALSE)","v":"Other Institutional"},"74001002","","","","",""]
["74","505",null,null,"VP STUDENT AFFAIRS-JOINT STAFF","1066GA505025","10000","16700","11200","74001002",{"$f":"VLOOKUP(TRIM(J10662),'Transactional Departments'!A:B,2,FALSE)","v":"Other Institutional"},"74001002","","","","",""]
["74","515",null,null,"INSERVICE EDUCATION-OTHER GEN ","1011GH515006","10000","11100","11200","74013000",{"$f":"VLOOKUP(TRIM(J10666),'Transactional Departments'!A:B,2,FALSE)","v":"Off Campus Programs"},"74013000","","","","",""]
["74","520",null,null,"STUDENT TECHNOLOGY FEE        ","1044TT520000","16000","14400","11600","74008000",{"$f":"VLOOKUP(TRIM(J10671),'Transactional Departments'!A:B,2,FALSE)","v":"Student Technology Fees"},"74008000","","","","",""]
["75","031",null,null,"VETERINARY MEDICINE NIH       ","7041GN031613","30000","","18000","75071613",{"$f":"VLOOKUP(TRIM(J10676),'Transactional Departments'!A:B,2,FALSE)","v":"Veterinary Medicine NIH"},"75071613","","","","",""]
["75","031",null,null,"ALUMNI ASSOCIATION            ","7045GN031024","31000","","18000","75075024",{"$f":"VLOOKUP(TRIM(J10682),'Transactional Departments'!A:B,2,FALSE)","v":"Alumni Association"},"75075024","","","","",""]
["75","031",null,null,"DOROTHEA BEVINS ANDERSON      ","7045GN031026","31000","","18000","75075026",{"$f":"VLOOKUP(TRIM(J10683),'Transactional Departments'!A:B,2,FALSE)","v":"Dorothea Bevins Anderson"},"75075026","","","","",""]
["75","031",null,null,"MARY UPSHAW BROACH            ","7045GN031072","31000","","18000","75075072",{"$f":"VLOOKUP(TRIM(J10690),'Transactional Departments'!A:B,2,FALSE)","v":"Mary Upshaw Broach"},"75075072","","","","",""]
["75","031",null,null,"CLASS OF 1926                 ","7045GN031128","31000","","18000","75075128",{"$f":"VLOOKUP(TRIM(J10694),'Transactional Departments'!A:B,2,FALSE)","v":"Class Of 1926"},"75075128","","","","",""]
["75","031",null,null,"DAWSON 4-H CLUB OF GEORGIA    ","7045GN031194","31000","","18000","75075194",{"$f":"VLOOKUP(TRIM(J10700),'Transactional Departments'!A:B,2,FALSE)","v":"Dawson 4-H Club Of Georgia"},"75075194","","","","",""]
["75","031",null,null,"BA & TN DENMARK               ","7045GN031198","31000","","18000","75075198",{"$f":"VLOOKUP(TRIM(J10701),'Transactional Departments'!A:B,2,FALSE)","v":"Ba & Tn Denmark"},"75075198","","","","",""]
["75","031",null,null,"J C DUKES BUS ADMINISTRATION  ","7045GN031216","31000","","18000","75075216",{"$f":"VLOOKUP(TRIM(J10706),'Transactional Departments'!A:B,2,FALSE)","v":"J C Dukes Bus Administration"},"75075216","","","","",""]
["75","031",null,null,"L FINDLEY AF GARDNER MEML     ","7045GN031243","31000","","18000","75075243",{"$f":"VLOOKUP(TRIM(J10709),'Transactional Departments'!A:B,2,FALSE)","v":"L Findley Af Gardner Meml"},"75075243","","","","",""]
["75","031",null,null,"COLONEL WILLIAM L GRAYSON     ","7045GN031310","31000","","18000","75075310",{"$f":"VLOOKUP(TRIM(J10717),'Transactional Departments'!A:B,2,FALSE)","v":"Colonel William L Grayson"},"75075310","","","","",""]
["75","031",null,null,"PINKUS HAPP                   ","7045GN031318","31000","","18000","75075318",{"$f":"VLOOKUP(TRIM(J10718),'Transactional Departments'!A:B,2,FALSE)","v":"Pinkus Happ"},"75075318","","","","",""]
["75","031",null,null,"MORRIS HIRSCH MEMORIAL        ","7045GN031337","31000","","18000","75075337",{"$f":"VLOOKUP(TRIM(J10723),'Transactional Departments'!A:B,2,FALSE)","v":"Morris Hirsch Memorial"},"75075337","","","","",""]
["75","031",null,null,"CLYDE L & JOHN KING           ","7045GN031376","31000","","18000","75075376",{"$f":"VLOOKUP(TRIM(J10729),'Transactional Departments'!A:B,2,FALSE)","v":"Clyde L & John King"},"75075376","","","","",""]
["75","031",null,null,"JOSEPH H LUMPKIN SCHOLARSHIP  ","7045GN031404","31000","","18000","75075404",{"$f":"VLOOKUP(TRIM(J10733),'Transactional Departments'!A:B,2,FALSE)","v":"Joseph H Lumpkin Scholarship"},"75075404","","","","",""]
["75","031",null,null,"MISCELLANEOUS                 ","7045GN031436","31000","","18000","75075436",{"$f":"VLOOKUP(TRIM(J10736),'Transactional Departments'!A:B,2,FALSE)","v":"Miscellaneous"},"75075436","","","","",""]
["75","031",null,null,"R C NEELY                     ","7045GN031464","31000","","18000","75075464",{"$f":"VLOOKUP(TRIM(J10741),'Transactional Departments'!A:B,2,FALSE)","v":"R C Neely"},"75075464","","","","",""]
["75","031",null,null,"JOHN T PITTARD MEMORIAL       ","7045GN031488","31000","","18000","75075488",{"$f":"VLOOKUP(TRIM(J10747),'Transactional Departments'!A:B,2,FALSE)","v":"John T Pittard Memorial"},"75075488","","","","",""]
["75","031",null,null,"JAMES O SCAIFE JR MEMORIAL    ","7045GN031538","31000","","18000","75075538",{"$f":"VLOOKUP(TRIM(J10752),'Transactional Departments'!A:B,2,FALSE)","v":"James O Scaife Jr Memorial"},"75075538","","","","",""]
["75","031",null,null,"MARK SULLIVAN                 ","7045GN031564","31000","","18000","75075564",{"$f":"VLOOKUP(TRIM(J10757),'Transactional Departments'!A:B,2,FALSE)","v":"Mark Sullivan"},"75075564","","","","",""]
["75","031",null,null,"BERRYMAN T THOMPSON EDUCATION ","7045GN031588","31000","","18000","75075588",{"$f":"VLOOKUP(TRIM(J10758),'Transactional Departments'!A:B,2,FALSE)","v":"Berryman T Thompson Education"},"75075588","","","","",""]
["75","031",null,null,"MELDRIN THOMPSON              ","7045GN031592","31000","","18000","75075592",{"$f":"VLOOKUP(TRIM(J10759),'Transactional Departments'!A:B,2,FALSE)","v":"Meldrin Thompson"},"75075592","","","","",""]
["75","031",null,null,"MAX THURMOND MEMORIAL         ","7045GN031596","31000","","18000","75075596",{"$f":"VLOOKUP(TRIM(J10760),'Transactional Departments'!A:B,2,FALSE)","v":"Max Thurmond Memorial"},"75075596","","","","",""]
["75","031",null,null,"FRANCES C TUCKER              ","7045GN031604","31000","","18000","75075604",{"$f":"VLOOKUP(TRIM(J10761),'Transactional Departments'!A:B,2,FALSE)","v":"Frances C Tucker"},"75075604","","","","",""]
["75","031",null,null,"LEILA BATES TYE               ","7045GN031608","31000","","18000","75075608",{"$f":"VLOOKUP(TRIM(J10762),'Transactional Departments'!A:B,2,FALSE)","v":"Leila Bates Tye"},"75075608","","","","",""]
["75","031",null,null,"UNION BAG CAMP PAPER COMPANY  ","7045GN031612","31000","","18000","75075612",{"$f":"VLOOKUP(TRIM(J10763),'Transactional Departments'!A:B,2,FALSE)","v":"Union Bag Camp Paper Company"},"75075612","","","","",""]
["75","031",null,null,"JUDDIE WALL                   ","7045GN031614","31000","","18000","75075614",{"$f":"VLOOKUP(TRIM(J10764),'Transactional Departments'!A:B,2,FALSE)","v":"Juddie Wall"},"75075614","","","","",""]
["75","031",null,null,"LOUIS WELLHOUSE MEMORIAL      ","7045GN031624","31000","","18000","75075624",{"$f":"VLOOKUP(TRIM(J10765),'Transactional Departments'!A:B,2,FALSE)","v":"Louis Wellhouse Memorial"},"75075624","","","","",""]
["75","031",null,null,"REBECCA E WESTBROOK           ","7045GN031630","31000","","18000","75075630",{"$f":"VLOOKUP(TRIM(J10766),'Transactional Departments'!A:B,2,FALSE)","v":"Rebecca E Westbrook"},"75075630","","","","",""]
["75","031",null,null,"CECIL WILCOX                  ","7045GN031636","31000","","18000","75075636",{"$f":"VLOOKUP(TRIM(J10767),'Transactional Departments'!A:B,2,FALSE)","v":"Cecil Wilcox"},"75075636","","","","",""]
["75","031",null,null,"ALLIE PRICKETT WILLIAM        ","7045GN031638","31000","","18000","75075638",{"$f":"VLOOKUP(TRIM(J10768),'Transactional Departments'!A:B,2,FALSE)","v":"Allie Prickett William"},"75075638","","","","",""]
["75","031",null,null,"DR ARNOLD WRABEL              ","7045GN031646","31000","","18000","75075646",{"$f":"VLOOKUP(TRIM(J10769),'Transactional Departments'!A:B,2,FALSE)","v":"Dr Arnold Wrabel"},"75075646","","","","",""]
["75","031",null,null,"IDA A YOUNG                   ","7045GN031648","31000","","18000","75075648",{"$f":"VLOOKUP(TRIM(J10770),'Transactional Departments'!A:B,2,FALSE)","v":"Ida A Young"},"75075648","","","","",""]
["75","031",null,null,"EMORY HOSPITALS PASS FUND     ","7045GN031650","31000","","18000","75075650",{"$f":"VLOOKUP(TRIM(J10771),'Transactional Departments'!A:B,2,FALSE)","v":"Emory Hospitals Pass Fund"},"75075650","","","","",""]
["75","031",null,null,"JOHN ALTON HOSCH STDT LOAN FND","7045GN031651","31000","","18000","75075651",{"$f":"VLOOKUP(TRIM(J10772),'Transactional Departments'!A:B,2,FALSE)","v":"John Alton Hosch Stdt Loan Fnd"},"75075651","","","","",""]
["75","031",null,null,"BERNER LOAN FUND              ","7045GN031652","31000","","18000","75075652",{"$f":"VLOOKUP(TRIM(J10773),'Transactional Departments'!A:B,2,FALSE)","v":"Berner Loan Fund"},"75075652","","","","",""]
["75","031",null,null,"GRIFFIN STUDENT EMERGENCY     ","7046GN031014","31000","","18000","75076014",{"$f":"VLOOKUP(TRIM(J10774),'Transactional Departments'!A:B,2,FALSE)","v":"Griffin Student Emergency"},"75076014","","","","",""]
["75","031",null,null,"ATHENS KIWANIS CLUB           ","7046GN031028","31000","","18000","75076028",{"$f":"VLOOKUP(TRIM(J10775),'Transactional Departments'!A:B,2,FALSE)","v":"Athens Kiwanis Club"},"75076028","","","","",""]
["75","031",null,null,"ATHENS CITY PANHELLENIC       ","7046GN031034","31000","","18000","75076034",{"$f":"VLOOKUP(TRIM(J10776),'Transactional Departments'!A:B,2,FALSE)","v":"Athens City Panhellenic"},"75076034","","","","",""]
["75","031",null,null,"BOHN LOAN FUND                ","7046GN031062","31000","","18000","75076062",{"$f":"VLOOKUP(TRIM(J10777),'Transactional Departments'!A:B,2,FALSE)","v":"Bohn Loan Fund"},"75076062","","","","",""]
["75","031",null,null,"MCCARTHY CRENSHAW MEMORIAL    ","7046GN031164","31000","","18000","75076164",{"$f":"VLOOKUP(TRIM(J10778),'Transactional Departments'!A:B,2,FALSE)","v":"Mccarthy Crenshaw Memorial"},"75076164","","","","",""]
["75","031",null,null,"PROFESSOR B F GRANT EMERGENCY ","7046GN031308","31000","","18000","75076308",{"$f":"VLOOKUP(TRIM(J10779),'Transactional Departments'!A:B,2,FALSE)","v":"Professor B F Grant Emergency"},"75076308","","","","",""]
["75","031",null,null,"COLL-FAMILY&CONSUMER SCIENCES ","7046GN031341","31000","","18000","75076341",{"$f":"VLOOKUP(TRIM(J10780),'Transactional Departments'!A:B,2,FALSE)","v":"Coll-Family&Consumer Sciences"},"75076341","","","","",""]
["75","031",null,null,"INTERFRATERNITY COUNCIL       ","7046GN031342","31000","","18000","75076342",{"$f":"VLOOKUP(TRIM(J10781),'Transactional Departments'!A:B,2,FALSE)","v":"Interfraternity Council"},"75076342","","","","",""]
["75","031",null,null,"NATL ASSOC OF FEDL VETERINARNS","7046GN031458","31000","","18000","75076458",{"$f":"VLOOKUP(TRIM(J10782),'Transactional Departments'!A:B,2,FALSE)","v":"Natl Assoc Of Fedl Veterinarns"},"75076458","","","","",""]
["75","031",null,null,"CLIFFORD PRATT MEMORIAL       ","7046GN031492","31000","","18000","75076492",{"$f":"VLOOKUP(TRIM(J10783),'Transactional Departments'!A:B,2,FALSE)","v":"Clifford Pratt Memorial"},"75076492","","","","",""]
["75","031",null,null,"I A SOLOMONS JR MEMORIAL PHAR ","7046GN031549","31000","","18000","75076549",{"$f":"VLOOKUP(TRIM(J10784),'Transactional Departments'!A:B,2,FALSE)","v":"I A Solomons Jr Memorial Phar"},"75076549","","","","",""]
["75","031",null,null,"STUDENTS EMERGENCY            ","7046GN031556","31000","","18000","75076556",{"$f":"VLOOKUP(TRIM(J10785),'Transactional Departments'!A:B,2,FALSE)","v":"Students Emergency"},"75076556","","","","",""]
["75","031",null,null,"STUDENT VETERANS              ","7046GN031560","31000","","18000","75076560",{"$f":"VLOOKUP(TRIM(J10786),'Transactional Departments'!A:B,2,FALSE)","v":"Student Veterans"},"75076560","","","","",""]
["75","031",null,null,"UNIVERSITY OF GA LAW DAMES    ","7046GN031611","31000","","18000","75076611",{"$f":"VLOOKUP(TRIM(J10787),'Transactional Departments'!A:B,2,FALSE)","v":"University Of Ga Law Dames"},"75076611","","","","",""]
["75","031",null,null,"CHARLES C WILSON MEMORIAL     ","7046GN031640","31000","","18000","75076640",{"$f":"VLOOKUP(TRIM(J10788),'Transactional Departments'!A:B,2,FALSE)","v":"Charles C Wilson Memorial"},"75076640","","","","",""]
["75","031",null,null,"REGENTS SCHOLARSHIP           ","7047GN031502","31000","","18000","75077502",{"$f":"VLOOKUP(TRIM(J10789),'Transactional Departments'!A:B,2,FALSE)","v":"Regents Scholarship"},"75077502","","","","",""]
["75","031",null,null,"EUGENE D FREEMAN MEMORIAL     ","7048GN031268","31000","","18000","75078268",{"$f":"VLOOKUP(TRIM(J10790),'Transactional Departments'!A:B,2,FALSE)","v":"Eugene D Freeman Memorial"},"75078268","","","","",""]
["75","031",null,null,"PERKINS LOAN                  ","7056GN031006","31000","","18000","75079460",{"$f":"VLOOKUP(TRIM(J10791),'Transactional Departments'!A:B,2,FALSE)","v":"Perkins Loan Fund"},"75079460","","","","",""]
["75","031",null,null,"BERNER LOAN                   ","7056GN031009","31000","","18000","75075652",{"$f":"VLOOKUP(TRIM(J10792),'Transactional Departments'!A:B,2,FALSE)","v":"Berner Loan Fund"},"75075652","","","","",""]
["75","031",null,null,"REGENTS SCHOLARSHIP           ","9086GN031002","60000","","","75006500",{"$f":"VLOOKUP(TRIM(J10793),'Transactional Departments'!A:B,2,FALSE)","v":"Alternative Loans/Scholarship"},"75006500","","","","",""]
["75","031",null,null,"FOLET BOOKSTORE CHG D/B AS UGA","9086GN031021","60000","","","75006500",{"$f":"VLOOKUP(TRIM(J10794),'Transactional Departments'!A:B,2,FALSE)","v":"Alternative Loans/Scholarship"},"75006500","","","","",""]
["75","031",null,null,"ELM ALTERNATIVE LOANS         ","9086GN031025","60000","","","75006500",{"$f":"VLOOKUP(TRIM(J10795),'Transactional Departments'!A:B,2,FALSE)","v":"Alternative Loans/Scholarship"},"75006500","","","","",""]
["75","031",null,null,"SALLIE MAE LOANS              ","9086GN031102","60000","","","75006500",{"$f":"VLOOKUP(TRIM(J10796),'Transactional Departments'!A:B,2,FALSE)","v":"Alternative Loans/Scholarship"},"75006500","","","","",""]
["75","031",null,null,"SALLIE MAE PARENT LOAN        ","9086GN031106","60000","","","75006500",{"$f":"VLOOKUP(TRIM(J10797),'Transactional Departments'!A:B,2,FALSE)","v":"Alternative Loans/Scholarship"},"75006500","","","","",""]
["75","375",null,null,"         LAMAR WILLIAM PENDLET","1011RH375766","20400","11100","65766","75001000",{"$f":"VLOOKUP(TRIM(J10798),'Transactional Departments'!A:B,2,FALSE)","v":"Endowments"},"75001000","","","","",""]
["75","375",null,null,"SUE W CROMARTIE ART EDUCATION ","1011RH375793","20400","11100","65793","75001000",{"$f":"VLOOKUP(TRIM(J10799),'Transactional Departments'!A:B,2,FALSE)","v":"Endowments"},"75001000","","","","",""]
["75","375",null,null,"VERA STONE SCHOLARSHIP FUND   ","4111RH375600","20400","11100","65600","75001000",{"$f":"VLOOKUP(TRIM(J10800),'Transactional Departments'!A:B,2,FALSE)","v":"Endowments"},"75001000","","","","",""]
["75","375",null,null,"ELIZABETH SUZANNE SCHAEFER    ","4111RH375603","20400","11100","65603","75001000",{"$f":"VLOOKUP(TRIM(J10801),'Transactional Departments'!A:B,2,FALSE)","v":"Endowments"},"75001000","","","","",""]
["75","375",null,null,"JAMES G BOSWELL FOUNDATN TRUST","4111RH375606","20400","11100","65606","75001000",{"$f":"VLOOKUP(TRIM(J10802),'Transactional Departments'!A:B,2,FALSE)","v":"Endowments"},"75001000","","","","",""]
["75","375",null,null,"JOSEPH B GITTLER FELLOWSHIP   ","4111RH375607","20400","11100","65607","75001000",{"$f":"VLOOKUP(TRIM(J10803),'Transactional Departments'!A:B,2,FALSE)","v":"Endowments"},"75001000","","","","",""]
["75","375",null,null,"STEVE MAGILO SCHOLARSHIP      ","4111RH375608","20400","11100","65608","75001000",{"$f":"VLOOKUP(TRIM(J10804),'Transactional Departments'!A:B,2,FALSE)","v":"Endowments"},"75001000","","","","",""]
["75","375",null,null,"GRACE CHARLENE FRAM MEMORIAL  ","4111RH375621","20400","11100","65621","75001000",{"$f":"VLOOKUP(TRIM(J10805),'Transactional Departments'!A:B,2,FALSE)","v":"Endowments"},"75001000","","","","",""]
["75","375",null,null,"         FRANKLIN COLLEGE     ","4111RH375703","20400","11100","65703","75001000",{"$f":"VLOOKUP(TRIM(J10806),'Transactional Departments'!A:B,2,FALSE)","v":"Endowments"},"75001000","","","","",""]
["75","375",null,null,"         WALTER J GRACE       ","4111RH375709","20400","11100","65709","75001000",{"$f":"VLOOKUP(TRIM(J10807),'Transactional Departments'!A:B,2,FALSE)","v":"Endowments"},"75001000","","","","",""]
["75","375",null,null,"         LAND SCRIP           ","4111RH375712","20400","11100","65712","75001000",{"$f":"VLOOKUP(TRIM(J10808),'Transactional Departments'!A:B,2,FALSE)","v":"Endowments"},"75001000","","","","",""]
["75","375",null,null,"         EDMUND GENERAL MAGER ","4111RH375715","20400","11100","65715","75001000",{"$f":"VLOOKUP(TRIM(J10809),'Transactional Departments'!A:B,2,FALSE)","v":"Endowments"},"75001000","","","","",""]
["75","375",null,null,"WINSHIP NUNALLY               ","4111RH375716","20400","11100","65716","75001000",{"$f":"VLOOKUP(TRIM(J10810),'Transactional Departments'!A:B,2,FALSE)","v":"Endowments"},"75001000","","","","",""]
["75","375",null,null,"JUDY D LOVELESS               ","4111RH375717","20400","11100","65717","75001000",{"$f":"VLOOKUP(TRIM(J10811),'Transactional Departments'!A:B,2,FALSE)","v":"Endowments"},"75001000","","","","",""]
["75","375",null,null,"SAM ADAMS DORSEY              ","4111RH375718","20400","11100","65718","75001000",{"$f":"VLOOKUP(TRIM(J10812),'Transactional Departments'!A:B,2,FALSE)","v":"Endowments"},"75001000","","","","",""]
["75","375",null,null,"GENERAL UNRESTRICTED GIFTS    ","4111RH375719","20400","11100","65719","75001000",{"$f":"VLOOKUP(TRIM(J10813),'Transactional Departments'!A:B,2,FALSE)","v":"Endowments"},"75001000","","","","",""]
["75","375",null,null,"         JAMES C CANTRELL FUND","4111RH375757","20400","11100","65757","75001000",{"$f":"VLOOKUP(TRIM(J10814),'Transactional Departments'!A:B,2,FALSE)","v":"Endowments"},"75001000","","","","",""]
["75","375",null,null,"         CHARLES J BROCKMAN   ","4111RH375758","20400","11100","65758","75001000",{"$f":"VLOOKUP(TRIM(J10815),'Transactional Departments'!A:B,2,FALSE)","v":"Endowments"},"75001000","","","","",""]
["75","375",null,null,"         GRAHAM PERDUE TRUST  ","4111RH375759","20400","11100","65759","75001000",{"$f":"VLOOKUP(TRIM(J10816),'Transactional Departments'!A:B,2,FALSE)","v":"Endowments"},"75001000","","","","",""]
["75","375",null,null,"         CHARLES F MCCAY      ","4111RH375772","20400","11100","65772","75001000",{"$f":"VLOOKUP(TRIM(J10817),'Transactional Departments'!A:B,2,FALSE)","v":"Endowments"},"75001000","","","","",""]
["75","375",null,null,"         GEORGE F PEABODY RADI","4111RH375781","20400","11100","65781","75001000",{"$f":"VLOOKUP(TRIM(J10818),'Transactional Departments'!A:B,2,FALSE)","v":"Endowments"},"75001000","","","","",""]
["75","375",null,null,"MARTHA J KAPLAN GRAD STU FD   ","4111RH375790","20400","11100","65790","75001000",{"$f":"VLOOKUP(TRIM(J10819),'Transactional Departments'!A:B,2,FALSE)","v":"Endowments"},"75001000","","","","",""]
["75","375",null,null,"SERCAT SUPPORT FUND           ","4111RH375795","20400","11100","65795","75001000",{"$f":"VLOOKUP(TRIM(J10820),'Transactional Departments'!A:B,2,FALSE)","v":"Endowments"},"75001000","","","","",""]
["75","375",null,null,"         ALVIN & JEAN COOLEDGE","4111RH375800","20400","11100","65800","75001000",{"$f":"VLOOKUP(TRIM(J10821),'Transactional Departments'!A:B,2,FALSE)","v":"Endowments"},"75001000","","","","",""]
["75","375",null,null,"         TROY A ATHON JR MEM  ","4111RH375802","20400","11100","65802","75001000",{"$f":"VLOOKUP(TRIM(J10822),'Transactional Departments'!A:B,2,FALSE)","v":"Endowments"},"75001000","","","","",""]
["75","375",null,null,"         AUGUSTA H & GRACE BAR","4111RH375804","20400","11100","65804","75001000",{"$f":"VLOOKUP(TRIM(J10823),'Transactional Departments'!A:B,2,FALSE)","v":"Endowments"},"75001000","","","","",""]
["75","375",null,null,"         DAVENPORT SCHOL FUND ","4111RH375805","20400","11100","65805","75001000",{"$f":"VLOOKUP(TRIM(J10824),'Transactional Departments'!A:B,2,FALSE)","v":"Endowments"},"75001000","","","","",""]
["75","375",null,null,"         BRYAN WILLIAM JENNING","4111RH375806","20400","11100","65806","75001000",{"$f":"VLOOKUP(TRIM(J10825),'Transactional Departments'!A:B,2,FALSE)","v":"Endowments"},"75001000","","","","",""]
["75","375",null,null,"         CLAUDE P CALLISON MEM","4111RH375810","20400","11100","65810","75001000",{"$f":"VLOOKUP(TRIM(J10826),'Transactional Departments'!A:B,2,FALSE)","v":"Endowments"},"75001000","","","","",""]
["75","375",null,null,"         KIP CRAVEN MEM SCH FN","4111RH375811","20400","11100","65811","75001000",{"$f":"VLOOKUP(TRIM(J10827),'Transactional Departments'!A:B,2,FALSE)","v":"Endowments"},"75001000","","","","",""]
["75","375",null,null,"         FLOYD STEWART CORBIN ","4111RH375812","20400","11100","65812","75001000",{"$f":"VLOOKUP(TRIM(J10828),'Transactional Departments'!A:B,2,FALSE)","v":"Endowments"},"75001000","","","","",""]
["75","375",null,null,"         JAMIE CONNELL ANNUAL ","4111RH375814","20400","11100","65814","75001000",{"$f":"VLOOKUP(TRIM(J10829),'Transactional Departments'!A:B,2,FALSE)","v":"Endowments"},"75001000","","","","",""]
["75","375",null,null,"         CONNALLY JOE BROWN SC","4111RH375815","20400","11100","65815","75001000",{"$f":"VLOOKUP(TRIM(J10830),'Transactional Departments'!A:B,2,FALSE)","v":"Endowments"},"75001000","","","","",""]
["75","375",null,null,"         FRANKLIN GED RUSH SC ","4111RH375818","20400","11100","65818","75001000",{"$f":"VLOOKUP(TRIM(J10831),'Transactional Departments'!A:B,2,FALSE)","v":"Endowments"},"75001000","","","","",""]
["75","375",null,null,"         PRICE GILBERT JR SCH ","4111RH375820","20400","11100","65820","75001000",{"$f":"VLOOKUP(TRIM(J10832),'Transactional Departments'!A:B,2,FALSE)","v":"Endowments"},"75001000","","","","",""]
["75","375",null,null,"         JOHNSON KARL MEM SCH ","4111RH375830","20400","11100","65830","75001000",{"$f":"VLOOKUP(TRIM(J10833),'Transactional Departments'!A:B,2,FALSE)","v":"Endowments"},"75001000","","","","",""]
["75","375",null,null,"         JOHNSON MARTHA JO MEM","4111RH375831","20400","11100","65831","75001000",{"$f":"VLOOKUP(TRIM(J10834),'Transactional Departments'!A:B,2,FALSE)","v":"Endowments"},"75001000","","","","",""]
["75","375",null,null,"         JONES JEROME MEM AFL ","4111RH375833","20400","11100","65833","75001000",{"$f":"VLOOKUP(TRIM(J10835),'Transactional Departments'!A:B,2,FALSE)","v":"Endowments"},"75001000","","","","",""]
["75","375",null,null,"         EUNICE RUSTIN LAMBERT","4111RH375837","20400","11100","65837","75001000",{"$f":"VLOOKUP(TRIM(J10836),'Transactional Departments'!A:B,2,FALSE)","v":"Endowments"},"75001000","","","","",""]
["75","375",null,null,"         LEVY JOHN SANFORD MEM","4111RH375838","20400","11100","65838","75001000",{"$f":"VLOOKUP(TRIM(J10837),'Transactional Departments'!A:B,2,FALSE)","v":"Endowments"},"75001000","","","","",""]
["75","375",null,null,"         MCWHORTER HAMILTON PZ","4111RH375839","20400","11100","65839","75001000",{"$f":"VLOOKUP(TRIM(J10838),'Transactional Departments'!A:B,2,FALSE)","v":"Endowments"},"75001000","","","","",""]
["75","375",null,null,"         JAMES B BURCH SCHOL  ","4111RH375841","20400","11100","65841","75001000",{"$f":"VLOOKUP(TRIM(J10839),'Transactional Departments'!A:B,2,FALSE)","v":"Endowments"},"75001000","","","","",""]
["75","375",null,null,"         FAY-BOND HINRICKS SCH","4111RH375843","20400","11100","65843","75001000",{"$f":"VLOOKUP(TRIM(J10840),'Transactional Departments'!A:B,2,FALSE)","v":"Endowments"},"75001000","","","","",""]
["75","375",null,null,"         MICHAEL BERT SCHOLAR ","4111RH375845","20400","11100","65845","75001000",{"$f":"VLOOKUP(TRIM(J10841),'Transactional Departments'!A:B,2,FALSE)","v":"Endowments"},"75001000","","","","",""]
["75","375",null,null,"         BARKER TERRY F SCHO  ","4111RH375846","20400","11100","65846","75001000",{"$f":"VLOOKUP(TRIM(J10842),'Transactional Departments'!A:B,2,FALSE)","v":"Endowments"},"75001000","","","","",""]
["75","375",null,null,"         ROY B DAY SCHOL      ","4111RH375847","20400","11100","65847","75001000",{"$f":"VLOOKUP(TRIM(J10843),'Transactional Departments'!A:B,2,FALSE)","v":"Endowments"},"75001000","","","","",""]
["75","375",null,null,"         DOROTHY L NELMS SCHOL","4111RH375851","20400","11100","65851","75001000",{"$f":"VLOOKUP(TRIM(J10844),'Transactional Departments'!A:B,2,FALSE)","v":"Endowments"},"75001000","","","","",""]
["75","375",null,null,"         RAYMOND PAYNE MEM FUN","4111RH375852","20400","11100","65852","75001000",{"$f":"VLOOKUP(TRIM(J10845),'Transactional Departments'!A:B,2,FALSE)","v":"Endowments"},"75001000","","","","",""]
["75","375",null,null,"         WILLIAM I RAY JR SCH ","4111RH375856","20400","11100","65856","75001000",{"$f":"VLOOKUP(TRIM(J10846),'Transactional Departments'!A:B,2,FALSE)","v":"Endowments"},"75001000","","","","",""]
["75","375",null,null,"         RICHMOND HENRY L CHEM","4111RH375857","20400","11100","65857","75001000",{"$f":"VLOOKUP(TRIM(J10847),'Transactional Departments'!A:B,2,FALSE)","v":"Endowments"},"75001000","","","","",""]
["75","375",null,null,"         JULIA PARKER SCH FUND","4111RH375859","20400","11100","65859","75001000",{"$f":"VLOOKUP(TRIM(J10848),'Transactional Departments'!A:B,2,FALSE)","v":"Endowments"},"75001000","","","","",""]
["75","375",null,null,"         RUSSELL HORACE B PRIZ","4111RH375860","20400","11100","65860","75001000",{"$f":"VLOOKUP(TRIM(J10849),'Transactional Departments'!A:B,2,FALSE)","v":"Endowments"},"75001000","","","","",""]
["75","375",null,null,"         SLAUGHTER VARINA & LB","4111RH375865","20400","11100","65865","75001000",{"$f":"VLOOKUP(TRIM(J10850),'Transactional Departments'!A:B,2,FALSE)","v":"Endowments"},"75001000","","","","",""]
["75","375",null,null,"         PAUL ASHLEY SIMON MEM","4111RH375867","20400","11100","65867","75001000",{"$f":"VLOOKUP(TRIM(J10851),'Transactional Departments'!A:B,2,FALSE)","v":"Endowments"},"75001000","","","","",""]
["75","375",null,null,"         CARRIE G PERRY SCHOL ","4111RH375868","20400","11100","65868","75001000",{"$f":"VLOOKUP(TRIM(J10852),'Transactional Departments'!A:B,2,FALSE)","v":"Endowments"},"75001000","","","","",""]
["75","375",null,null,"         SMITH MARTIN REYNOLDS","4111RH375869","20400","11100","65869","75001000",{"$f":"VLOOKUP(TRIM(J10853),'Transactional Departments'!A:B,2,FALSE)","v":"Endowments"},"75001000","","","","",""]
["75","375",null,null,"         THOMAS F COMER SCHOL ","4111RH375871","20400","11100","65871","75001000",{"$f":"VLOOKUP(TRIM(J10854),'Transactional Departments'!A:B,2,FALSE)","v":"Endowments"},"75001000","","","","",""]
["75","375",null,null,"         PEYTON T ANDERSON SCH","4111RH375872","20400","11100","65872","75001000",{"$f":"VLOOKUP(TRIM(J10855),'Transactional Departments'!A:B,2,FALSE)","v":"Endowments"},"75001000","","","","",""]
["75","375",null,null,"         BILL PHIPPEN SCH     ","4111RH375873","20400","11100","65873","75001000",{"$f":"VLOOKUP(TRIM(J10856),'Transactional Departments'!A:B,2,FALSE)","v":"Endowments"},"75001000","","","","",""]
["75","375",null,null,"         STODDARD-BURLEIGH-SUT","4111RH375875","20400","11100","65875","75001000",{"$f":"VLOOKUP(TRIM(J10857),'Transactional Departments'!A:B,2,FALSE)","v":"Endowments"},"75001000","","","","",""]
["75","375",null,null,"         SCOTT TORGESON MEM   ","4111RH375876","20400","11100","65876","75001000",{"$f":"VLOOKUP(TRIM(J10858),'Transactional Departments'!A:B,2,FALSE)","v":"Endowments"},"75001000","","","","",""]
["75","375",null,null,"         STEPHEN C TATE SCH   ","4111RH375877","20400","11100","65877","75001000",{"$f":"VLOOKUP(TRIM(J10859),'Transactional Departments'!A:B,2,FALSE)","v":"Endowments"},"75001000","","","","",""]
["75","375",null,null,"         TOROTTI LAMAR JR SCH ","4111RH375878","20400","11100","65878","75001000",{"$f":"VLOOKUP(TRIM(J10860),'Transactional Departments'!A:B,2,FALSE)","v":"Endowments"},"75001000","","","","",""]
["75","375",null,null,"         ALBON B HAILEY SCH   ","4111RH375879","20400","11100","65879","75001000",{"$f":"VLOOKUP(TRIM(J10861),'Transactional Departments'!A:B,2,FALSE)","v":"Endowments"},"75001000","","","","",""]
["75","375",null,null,"         WSB RADIO AWARD      ","4111RH375882","20400","11100","65882","75001000",{"$f":"VLOOKUP(TRIM(J10862),'Transactional Departments'!A:B,2,FALSE)","v":"Endowments"},"75001000","","","","",""]
["75","375",null,null,"         WILLCOX CECIL PRIZE  ","4111RH375884","20400","11100","65884","75001000",{"$f":"VLOOKUP(TRIM(J10863),'Transactional Departments'!A:B,2,FALSE)","v":"Endowments"},"75001000","","","","",""]
["75","375",null,null,"         ZIMMER HERBERT PSY   ","4111RH375887","20400","11100","65887","75001000",{"$f":"VLOOKUP(TRIM(J10864),'Transactional Departments'!A:B,2,FALSE)","v":"Endowments"},"75001000","","","","",""]
["75","375",null,null,"         DANA BLACKMAR SCHOLAR","4111RH375889","20400","11100","65889","75001000",{"$f":"VLOOKUP(TRIM(J10865),'Transactional Departments'!A:B,2,FALSE)","v":"Endowments"},"75001000","","","","",""]
["75","375",null,null,"         DAN M POST SCHOLARSHP","4111RH375892","20400","11100","65892","75001000",{"$f":"VLOOKUP(TRIM(J10866),'Transactional Departments'!A:B,2,FALSE)","v":"Endowments"},"75001000","","","","",""]
["75","375",null,null,"FRANK G LITTLE SCHOL          ","4111RH375893","20400","11100","65893","75001000",{"$f":"VLOOKUP(TRIM(J10867),'Transactional Departments'!A:B,2,FALSE)","v":"Endowments"},"75001000","","","","",""]
["75","375",null,null,"CM & BERNICE C STRIPLING SCHOL","4111RH375894","20400","11100","65894","75001000",{"$f":"VLOOKUP(TRIM(J10868),'Transactional Departments'!A:B,2,FALSE)","v":"Endowments"},"75001000","","","","",""]
["75","375",null,null,"RICHARD BARNAM HICKMAN SCHOL  ","4111RH375897","20400","11100","65897","75001000",{"$f":"VLOOKUP(TRIM(J10869),'Transactional Departments'!A:B,2,FALSE)","v":"Endowments"},"75001000","","","","",""]
["75","375",null,null,"         BRAND CHARLES HILLYER","4111RH375903","20400","11100","65903","75001000",{"$f":"VLOOKUP(TRIM(J10870),'Transactional Departments'!A:B,2,FALSE)","v":"Endowments"},"75001000","","","","",""]
["75","375",null,null,"         BROWN CHARLES MCDONAL","4111RH375906","20400","11100","65906","75001000",{"$f":"VLOOKUP(TRIM(J10871),'Transactional Departments'!A:B,2,FALSE)","v":"Endowments"},"75001000","","","","",""]
["75","375",null,null,"         BULLARD B F          ","4111RH375912","20400","11100","65912","75001000",{"$f":"VLOOKUP(TRIM(J10872),'Transactional Departments'!A:B,2,FALSE)","v":"Endowments"},"75001000","","","","",""]
["75","375",null,null,"         DODD EUGENE AND HARRY","4111RH375924","20400","11100","65924","75001000",{"$f":"VLOOKUP(TRIM(J10873),'Transactional Departments'!A:B,2,FALSE)","v":"Endowments"},"75001000","","","","",""]
["75","375",null,null,"         WILLIAM L GRAYSON SCH","4111RH375925","20400","11100","65925","75001000",{"$f":"VLOOKUP(TRIM(J10874),'Transactional Departments'!A:B,2,FALSE)","v":"Endowments"},"75001000","","","","",""]
["75","375",null,null,"         KING CLYDE L JR & JOH","4111RH375927","20400","11100","65927","75001000",{"$f":"VLOOKUP(TRIM(J10875),'Transactional Departments'!A:B,2,FALSE)","v":"Endowments"},"75001000","","","","",""]
["75","375",null,null,"         LUMPKIN JOSEPH H SCH ","4111RH375933","20400","11100","65933","75001000",{"$f":"VLOOKUP(TRIM(J10876),'Transactional Departments'!A:B,2,FALSE)","v":"Endowments"},"75001000","","","","",""]
["75","375",null,null,"         MOON C A AND H B T   ","4111RH375936","20400","11100","65936","75001000",{"$f":"VLOOKUP(TRIM(J10877),'Transactional Departments'!A:B,2,FALSE)","v":"Endowments"},"75001000","","","","",""]
["75","375",null,null,"         MOON PEARL CAMPBELL  ","4111RH375939","20400","11100","65939","75001000",{"$f":"VLOOKUP(TRIM(J10878),'Transactional Departments'!A:B,2,FALSE)","v":"Endowments"},"75001000","","","","",""]
["75","375",null,null,"         THOMPSON BERRYMAN T  ","4111RH375948","20400","11100","65948","75001000",{"$f":"VLOOKUP(TRIM(J10879),'Transactional Departments'!A:B,2,FALSE)","v":"Endowments"},"75001000","","","","",""]
["75","375",null,null,"         PATRICIA LYNN BURTON ","4111RH375965","20400","11100","65000","75001000",{"$f":"VLOOKUP(TRIM(J10880),'Transactional Departments'!A:B,2,FALSE)","v":"Endowments"},"75001000","","","","",""]
["75","375",null,null,"         CHURCHILL A F MEM    ","4111RH375966","20400","11100","65966","75001000",{"$f":"VLOOKUP(TRIM(J10881),'Transactional Departments'!A:B,2,FALSE)","v":"Endowments"},"75001000","","","","",""]
["75","375",null,null,"         CITIZENS & SOUTHERN  ","4111RH375967","20400","11100","65967","75001000",{"$f":"VLOOKUP(TRIM(J10882),'Transactional Departments'!A:B,2,FALSE)","v":"Endowments"},"75001000","","","","",""]
["75","375",null,null,"         GALLAHER EBB W       ","4111RH375978","20400","11100","65978","75001000",{"$f":"VLOOKUP(TRIM(J10883),'Transactional Departments'!A:B,2,FALSE)","v":"Endowments"},"75001000","","","","",""]
["75","375",null,null,"         JOHN H HOSCH JR FUND ","4111RH375980","20400","11100","65980","75001000",{"$f":"VLOOKUP(TRIM(J10884),'Transactional Departments'!A:B,2,FALSE)","v":"Endowments"},"75001000","","","","",""]
["75","375",null,null,"         LAMAR J RUCKER SCH   ","4111RH375981","20400","11100","65981","75001000",{"$f":"VLOOKUP(TRIM(J10885),'Transactional Departments'!A:B,2,FALSE)","v":"Endowments"},"75001000","","","","",""]
["75","375",null,null,"         MITCHELL THOMAS E ED ","4111RH375984","20400","11100","65984","75001000",{"$f":"VLOOKUP(TRIM(J10886),'Transactional Departments'!A:B,2,FALSE)","v":"Endowments"},"75001000","","","","",""]
["75","375",null,null,"         TUCKER FRANCES CLEMEN","4111RH375987","20400","11100","65987","75001000",{"$f":"VLOOKUP(TRIM(J10887),'Transactional Departments'!A:B,2,FALSE)","v":"Endowments"},"75001000","","","","",""]
["75","375",null,null,"WILLIAM J JR & AMMA W RUSSELL ","4111RH375988","20400","11100","65988","75001000",{"$f":"VLOOKUP(TRIM(J10888),'Transactional Departments'!A:B,2,FALSE)","v":"Endowments"},"75001000","","","","",""]
["75","375",null,null,"WILLIAM J IV & ADDIE D RUSSELL","4111RH375989","20400","11100","65989","75001000",{"$f":"VLOOKUP(TRIM(J10889),'Transactional Departments'!A:B,2,FALSE)","v":"Endowments"},"75001000","","","","",""]
["75","375",null,null,"         UNIVERSITY THEATRE   ","4111RH375990","20400","11100","65990","75001000",{"$f":"VLOOKUP(TRIM(J10890),'Transactional Departments'!A:B,2,FALSE)","v":"Endowments"},"75001000","","","","",""]
["75","375",null,null,"         WILLCOX CECIL        ","4111RH375993","20400","11100","65993","75001000",{"$f":"VLOOKUP(TRIM(J10891),'Transactional Departments'!A:B,2,FALSE)","v":"Endowments"},"75001000","","","","",""]
["75","375",null,null,"FRANKLIN COLLEGE              ","7549GN375703","40000","","65703","75001000",{"$f":"VLOOKUP(TRIM(J10892),'Transactional Departments'!A:B,2,FALSE)","v":"Endowments"},"75001000","","","","",""]
["75","375",null,null,"GRACE WALTER J                ","7549GN375709","40000","","65709","75001000",{"$f":"VLOOKUP(TRIM(J10893),'Transactional Departments'!A:B,2,FALSE)","v":"Endowments"},"75001000","","","","",""]
["75","375",null,null,"LAND SCRIP                    ","7549GN375712","40000","","65712","75001000",{"$f":"VLOOKUP(TRIM(J10894),'Transactional Departments'!A:B,2,FALSE)","v":"Endowments"},"75001000","","","","",""]
["75","375",null,null,"MAGERS EDMUND GENERAL         ","7549GN375715","40000","","65715","75001000",{"$f":"VLOOKUP(TRIM(J10895),'Transactional Departments'!A:B,2,FALSE)","v":"Endowments"},"75001000","","","","",""]
["75","375",null,null,"WINSHIP NUNNALLY              ","7549GN375716","42000","","65716","75001000",{"$f":"VLOOKUP(TRIM(J10896),'Transactional Departments'!A:B,2,FALSE)","v":"Endowments"},"75001000","","","","",""]
["75","375",null,null,"JUDY D LOVELESS               ","7549GN375717","42000","","65717","75001000",{"$f":"VLOOKUP(TRIM(J10897),'Transactional Departments'!A:B,2,FALSE)","v":"Endowments"},"75001000","","","","",""]
["75","375",null,null,"SAM ADAMS DORSEY              ","7549GN375718","42000","","65718","75001000",{"$f":"VLOOKUP(TRIM(J10898),'Transactional Departments'!A:B,2,FALSE)","v":"Endowments"},"75001000","","","","",""]
["75","375",null,null,"GENERAL UNRESTRICTED GIFTS    ","7549GN375719","40000","","65719","75001000",{"$f":"VLOOKUP(TRIM(J10899),'Transactional Departments'!A:B,2,FALSE)","v":"Endowments"},"75001000","","","","",""]
["75","375",null,null,"ROBERT HILL MEMORIAL FUND     ","7551GN375730","42000","","65730","75001000",{"$f":"VLOOKUP(TRIM(J10900),'Transactional Departments'!A:B,2,FALSE)","v":"Endowments"},"75001000","","","","",""]
["75","375",null,null,"ROBERT HILL MEMORIAL ENDOWMENT","7551GN375731","40000","","65731","75001000",{"$f":"VLOOKUP(TRIM(J10901),'Transactional Departments'!A:B,2,FALSE)","v":"Endowments"},"75001000","","","","",""]
["75","375",null,null,"JUDITH SCHWARTZ FUND          ","7551GN375732","42000","","65732","75001000",{"$f":"VLOOKUP(TRIM(J10902),'Transactional Departments'!A:B,2,FALSE)","v":"Endowments"},"75001000","","","","",""]
["75","375",null,null,"JOANN TOLLERSON GOODMAN FUND  ","7551GN375733","42000","","65733","75001000",{"$f":"VLOOKUP(TRIM(J10903),'Transactional Departments'!A:B,2,FALSE)","v":"Endowments"},"75001000","","","","",""]
["75","375",null,null,"EMMALENE SMITH CLIENT SPT FUND","7551GN375734","42000","","65734","75001000",{"$f":"VLOOKUP(TRIM(J10904),'Transactional Departments'!A:B,2,FALSE)","v":"Endowments"},"75001000","","","","",""]
["75","375",null,null,"VET MED DEVLPMNT SUPPORT FUND ","7551GN375750","40000","","65750","75001000",{"$f":"VLOOKUP(TRIM(J10905),'Transactional Departments'!A:B,2,FALSE)","v":"Endowments"},"75001000","","","","",""]
["75","375",null,null,"PHYLLIS LEFFLER - BUS SCH     ","7551GN375751","40000","","65751","75001000",{"$f":"VLOOKUP(TRIM(J10906),'Transactional Departments'!A:B,2,FALSE)","v":"Endowments"},"75001000","","","","",""]
["75","375",null,null,"ALUMNI LIBRARY                ","7551GN375752","40000","","65752","75001000",{"$f":"VLOOKUP(TRIM(J10907),'Transactional Departments'!A:B,2,FALSE)","v":"Endowments"},"75001000","","","","",""]
["75","375",null,null,"DOROTHY SIMMONS ODELL FUND    ","7551GN375753","40000","","65753","75001000",{"$f":"VLOOKUP(TRIM(J10908),'Transactional Departments'!A:B,2,FALSE)","v":"Endowments"},"75001000","","","","",""]
["75","375",null,null,"ALUMNI YMCA                   ","7551GN375754","40000","","65754","75001000",{"$f":"VLOOKUP(TRIM(J10909),'Transactional Departments'!A:B,2,FALSE)","v":"Endowments"},"75001000","","","","",""]
["75","375",null,null,"SANDY BEAVER ENDOWMENT BONDS  ","7551GN375755","40000","","65755","75001000",{"$f":"VLOOKUP(TRIM(J10910),'Transactional Departments'!A:B,2,FALSE)","v":"Endowments"},"75001000","","","","",""]
["75","375",null,null,"BOCOCK W H                    ","7551GN375756","40000","","65756","75001000",{"$f":"VLOOKUP(TRIM(J10911),'Transactional Departments'!A:B,2,FALSE)","v":"Endowments"},"75001000","","","","",""]
["75","375",null,null,"JAMES C CANTRELL FUND         ","7551GN375757","40000","","65757","75001000",{"$f":"VLOOKUP(TRIM(J10912),'Transactional Departments'!A:B,2,FALSE)","v":"Endowments"},"75001000","","","","",""]
["75","375",null,null,"BROCKMAN CHARLES J            ","7551GN375758","40000","","65758","75001000",{"$f":"VLOOKUP(TRIM(J10913),'Transactional Departments'!A:B,2,FALSE)","v":"Endowments"},"75001000","","","","",""]
["75","375",null,null,"GRAHAM PERDUE TRUST           ","7551GN375759","40000","","65759","75001000",{"$f":"VLOOKUP(TRIM(J10914),'Transactional Departments'!A:B,2,FALSE)","v":"Endowments"},"75001000","","","","",""]
["75","375",null,null,"CUNNINGHAM GEORGE V           ","7551GN375760","40000","","65760","75002000",{"$f":"VLOOKUP(TRIM(J10915),'Transactional Departments'!A:B,2,FALSE)","v":"Endowment Student Aid"},"75002000","","","","",""]
["75","375",null,null,"JUDGE JOEL J FRYE MEM LAW LIB ","7551GN375761","40000","","65761","75001000",{"$f":"VLOOKUP(TRIM(J10916),'Transactional Departments'!A:B,2,FALSE)","v":"Endowments"},"75001000","","","","",""]
["75","375",null,null,"FOUNDERS MEM GARDEN TRUST FUND","7551GN375763","40000","","65763","75001000",{"$f":"VLOOKUP(TRIM(J10917),'Transactional Departments'!A:B,2,FALSE)","v":"Endowments"},"75001000","","","","",""]
["75","375",null,null,"HARGRETT LIBRARY FUND         ","7551GN375764","40000","","65764","75001000",{"$f":"VLOOKUP(TRIM(J10918),'Transactional Departments'!A:B,2,FALSE)","v":"Endowments"},"75001000","","","","",""]
["75","375",null,null,"THE H B HENDERSON TRUST       ","7551GN375765","40000","","65765","75001000",{"$f":"VLOOKUP(TRIM(J10919),'Transactional Departments'!A:B,2,FALSE)","v":"Endowments"},"75001000","","","","",""]
["75","375",null,null,"LAMAR WILLIAM PENDLETON       ","7551GN375766","40000","","65766","75001000",{"$f":"VLOOKUP(TRIM(J10920),'Transactional Departments'!A:B,2,FALSE)","v":"Endowments"},"75001000","","","","",""]
["75","375",null,null,"LANGSTON H STANLEY MEMORIAL   ","7551GN375767","40000","","65767","75001000",{"$f":"VLOOKUP(TRIM(J10921),'Transactional Departments'!A:B,2,FALSE)","v":"Endowments"},"75001000","","","","",""]
["75","375",null,null,"LIBRARY SUPPORT TRUST FUND    ","7551GN375768","40000","","65768","75001000",{"$f":"VLOOKUP(TRIM(J10922),'Transactional Departments'!A:B,2,FALSE)","v":"Endowments"},"75001000","","","","",""]
["75","375",null,null,"LOKEY AND BOWDEN MEM BOOK FUND","7551GN375769","40000","","65769","75001000",{"$f":"VLOOKUP(TRIM(J10923),'Transactional Departments'!A:B,2,FALSE)","v":"Endowments"},"75001000","","","","",""]
["75","375",null,null,"LUMPKIN LAW SCHOOL            ","7551GN375770","40000","","65770","75001000",{"$f":"VLOOKUP(TRIM(J10924),'Transactional Departments'!A:B,2,FALSE)","v":"Endowments"},"75001000","","","","",""]
["75","375",null,null,"JOHN B MARTIN CHAIR           ","7551GN375771","40000","","65771","75001000",{"$f":"VLOOKUP(TRIM(J10925),'Transactional Departments'!A:B,2,FALSE)","v":"Endowments"},"75001000","","","","",""]
["75","375",null,null,"MCCAY CHARLES F               ","7551GN375772","40000","","65772","75001000",{"$f":"VLOOKUP(TRIM(J10926),'Transactional Departments'!A:B,2,FALSE)","v":"Endowments"},"75001000","","","","",""]
["75","375",null,null,"HAROLD M HECKMAN CHAIR PBL ACT","7551GN375773","40000","","65773","75001000",{"$f":"VLOOKUP(TRIM(J10927),'Transactional Departments'!A:B,2,FALSE)","v":"Endowments"},"75001000","","","","",""]
["75","375",null,null,"MCKAMY DAVID KNOX LIBRARY     ","7551GN375774","40000","","65774","75001000",{"$f":"VLOOKUP(TRIM(J10928),'Transactional Departments'!A:B,2,FALSE)","v":"Endowments"},"75001000","","","","",""]
["75","375",null,null,"JASPER N DORSEY CH PUB UTL ECN","7551GN375775","40000","","65775","75001000",{"$f":"VLOOKUP(TRIM(J10929),'Transactional Departments'!A:B,2,FALSE)","v":"Endowments"},"75001000","","","","",""]
["75","375",null,null,"REDFEARN D H ARCH             ","7551GN375776","40000","","65776","75001000",{"$f":"VLOOKUP(TRIM(J10930),'Transactional Departments'!A:B,2,FALSE)","v":"Endowments"},"75001000","","","","",""]
["75","375",null,null,"RICHARD B RUSSELL CHAIR       ","7551GN375777","40000","","65777","75001000",{"$f":"VLOOKUP(TRIM(J10931),'Transactional Departments'!A:B,2,FALSE)","v":"Endowments"},"75001000","","","","",""]
["75","375",null,null,"RELIGION ON CAMPUS-DANFORTH   ","7551GN375778","40000","","65778","75001000",{"$f":"VLOOKUP(TRIM(J10932),'Transactional Departments'!A:B,2,FALSE)","v":"Endowments"},"75001000","","","","",""]
["75","375",null,null,"COLL OF VET MED COMP MED RES  ","7551GN375779","40000","","65779","75001000",{"$f":"VLOOKUP(TRIM(J10933),'Transactional Departments'!A:B,2,FALSE)","v":"Endowments"},"75001000","","","","",""]
["75","375",null,null,"SMITH JENNIE                  ","7551GN375780","40000","","65780","75001000",{"$f":"VLOOKUP(TRIM(J10934),'Transactional Departments'!A:B,2,FALSE)","v":"Endowments"},"75001000","","","","",""]
["75","375",null,null,"GEORGE F PEABODY RADIO AWARD  ","7551GN375781","40000","","65781","75002000",{"$f":"VLOOKUP(TRIM(J10935),'Transactional Departments'!A:B,2,FALSE)","v":"Endowment Student Aid"},"75002000","","","","",""]
["75","375",null,null,"TERRELL WILLIAM               ","7551GN375782","40000","","65782","75001000",{"$f":"VLOOKUP(TRIM(J10936),'Transactional Departments'!A:B,2,FALSE)","v":"Endowments"},"75001000","","","","",""]
["75","375",null,null,"J M TULL CHAIR OF ACCTG TRUST ","7551GN375783","40000","","65783","75001000",{"$f":"VLOOKUP(TRIM(J10937),'Transactional Departments'!A:B,2,FALSE)","v":"Endowments"},"75001000","","","","",""]
["75","375",null,null,"GEORGIA SAVINGS & LOAN CHAIR  ","7551GN375784","40000","","65784","75001000",{"$f":"VLOOKUP(TRIM(J10938),'Transactional Departments'!A:B,2,FALSE)","v":"Endowments"},"75001000","","","","",""]
["75","375",null,null,"THE THORNTON TRUST            ","7551GN375785","40000","","65785","75001000",{"$f":"VLOOKUP(TRIM(J10939),'Transactional Departments'!A:B,2,FALSE)","v":"Endowments"},"75001000","","","","",""]
["75","375",null,null,"VINCENT ELEANOR FERGUSON      ","7551GN375786","40000","","65786","75001000",{"$f":"VLOOKUP(TRIM(J10940),'Transactional Departments'!A:B,2,FALSE)","v":"Endowments"},"75001000","","","","",""]
["75","375",null,null,"MARINE EXT SERVICE TRUST FUND ","7551GN375787","40000","","65787","75001000",{"$f":"VLOOKUP(TRIM(J10941),'Transactional Departments'!A:B,2,FALSE)","v":"Endowments"},"75001000","","","","",""]
["75","375",null,null,"WASHINGTON J H R SCIENCE LIB  ","7551GN375788","40000","","65788","75001000",{"$f":"VLOOKUP(TRIM(J10942),'Transactional Departments'!A:B,2,FALSE)","v":"Endowments"},"75001000","","","","",""]
["75","375",null,null,"BYRON F SNYDER TRUST          ","7551GN375789","40000","","65789","75001000",{"$f":"VLOOKUP(TRIM(J10943),'Transactional Departments'!A:B,2,FALSE)","v":"Endowments"},"75001000","","","","",""]
["75","375",null,null,"MARTHA J KAPLAN GRAD STU FD   ","7551GN375790","40000","","65790","75001000",{"$f":"VLOOKUP(TRIM(J10944),'Transactional Departments'!A:B,2,FALSE)","v":"Endowments"},"75001000","","","","",""]
["75","375",null,null,"DR. BRYAN PHARMACY SCHOOL     ","7551GN375791","40000","","65791","75001000",{"$f":"VLOOKUP(TRIM(J10945),'Transactional Departments'!A:B,2,FALSE)","v":"Endowments"},"75001000","","","","",""]
["75","375",null,null,"SUE W CROMARTIE ART EDUCATION ","7551GN375793","40000","","65793","75001000",{"$f":"VLOOKUP(TRIM(J10946),'Transactional Departments'!A:B,2,FALSE)","v":"Endowments"},"75001000","","","","",""]
["75","375",null,null,"SUE W CROMARTIE ELEMENTARY EDU","7551GN375794","40000","","65794","75001000",{"$f":"VLOOKUP(TRIM(J10947),'Transactional Departments'!A:B,2,FALSE)","v":"Endowments"},"75001000","","","","",""]
["75","375",null,null,"SERCAT SUPPORT FUND           ","7551GN375795","40000","","65795","75001000",{"$f":"VLOOKUP(TRIM(J10948),'Transactional Departments'!A:B,2,FALSE)","v":"Endowments"},"75001000","","","","",""]
["75","375",null,null,"FREDERICK WITTOP              ","7551GN375796","40000","","65796","75001000",{"$f":"VLOOKUP(TRIM(J10949),'Transactional Departments'!A:B,2,FALSE)","v":"Endowments"},"75001000","","","","",""]
["75","375",null,null,"JACKSON STREET CEMETERY FUND  ","7551GN375797","40000","","65797","75001000",{"$f":"VLOOKUP(TRIM(J10950),'Transactional Departments'!A:B,2,FALSE)","v":"Endowments"},"75001000","","","","",""]
["75","375",null,null,"ETTA ARNTZEN LIBRARY SUPPORT  ","7551GN375799","40000","","65799","75001000",{"$f":"VLOOKUP(TRIM(J10951),'Transactional Departments'!A:B,2,FALSE)","v":"Endowments"},"75001000","","","","",""]
["75","375",null,null,"VERA STONE SCHOLARSHIP FUND   ","7552GN375600","40000","","65600","75002000",{"$f":"VLOOKUP(TRIM(J10952),'Transactional Departments'!A:B,2,FALSE)","v":"Endowment Student Aid"},"75002000","","","","",""]
["75","375",null,null,"BARBARA C JOSLIN VET MED SCH  ","7552GN375601","40000","","65601","75002000",{"$f":"VLOOKUP(TRIM(J10953),'Transactional Departments'!A:B,2,FALSE)","v":"Endowment Student Aid"},"75002000","","","","",""]
["75","375",null,null,"MARY KATHLEEN OWNBY           ","7552GN375602","40000","","65602","75002000",{"$f":"VLOOKUP(TRIM(J10954),'Transactional Departments'!A:B,2,FALSE)","v":"Endowment Student Aid"},"75002000","","","","",""]
["75","375",null,null,"ELIZABETH SUZANNE SCHAEFER    ","7552GN375603","40000","","65603","75002000",{"$f":"VLOOKUP(TRIM(J10955),'Transactional Departments'!A:B,2,FALSE)","v":"Endowment Student Aid"},"75002000","","","","",""]
["75","375",null,null,"KNIGHT FOUNDATION             ","7552GN375604","40000","","65604","75001000",{"$f":"VLOOKUP(TRIM(J10956),'Transactional Departments'!A:B,2,FALSE)","v":"Endowments"},"75001000","","","","",""]
["75","375",null,null,"JAN L BRANHAM ENDOWMENT FUND  ","7552GN375605","40000","","65605","75002000",{"$f":"VLOOKUP(TRIM(J10957),'Transactional Departments'!A:B,2,FALSE)","v":"Endowment Student Aid"},"75002000","","","","",""]
["75","375",null,null,"JAMES G BOSWELL FOUNDATN TRUST","7552GN375606","40000","","65606","75001000",{"$f":"VLOOKUP(TRIM(J10958),'Transactional Departments'!A:B,2,FALSE)","v":"Endowments"},"75001000","","","","",""]
["75","375",null,null,"JOSEPH B GITTLER FELLOWSHIP   ","7552GN375607","40000","","65607","75001000",{"$f":"VLOOKUP(TRIM(J10959),'Transactional Departments'!A:B,2,FALSE)","v":"Endowments"},"75001000","","","","",""]
["75","375",null,null,"STEVE MAGLIO SCHOLARSHIP      ","7552GN375608","40000","","65608","75002000",{"$f":"VLOOKUP(TRIM(J10960),'Transactional Departments'!A:B,2,FALSE)","v":"Endowment Student Aid"},"75002000","","","","",""]
["75","375",null,null,"JOHN C & LENA B O ROWAN MEM   ","7552GN375609","40000","","65609","75002000",{"$f":"VLOOKUP(TRIM(J10961),'Transactional Departments'!A:B,2,FALSE)","v":"Endowment Student Aid"},"75002000","","","","",""]
["75","375",null,null,"GERALDINE A PATRICK SCHOLARSHP","7552GN375610","40000","","65610","75002000",{"$f":"VLOOKUP(TRIM(J10962),'Transactional Departments'!A:B,2,FALSE)","v":"Endowment Student Aid"},"75002000","","","","",""]
["75","375",null,null,"DAR MCCURRY RICHMOND WALTON   ","7552GN375611","40000","","65611","75002000",{"$f":"VLOOKUP(TRIM(J10963),'Transactional Departments'!A:B,2,FALSE)","v":"Endowment Student Aid"},"75002000","","","","",""]
["75","375",null,null,"DAR TALMADGE MAY E            ","7552GN375612","40000","","65612","75002000",{"$f":"VLOOKUP(TRIM(J10964),'Transactional Departments'!A:B,2,FALSE)","v":"Endowment Student Aid"},"75002000","","","","",""]
["75","375",null,null,"DAR MEMORIAL                  ","7552GN375613","40000","","65613","75002000",{"$f":"VLOOKUP(TRIM(J10965),'Transactional Departments'!A:B,2,FALSE)","v":"Endowment Student Aid"},"75002000","","","","",""]
["75","375",null,null,"DAR ELIJAH CLARKE             ","7552GN375614","40000","","65614","75002000",{"$f":"VLOOKUP(TRIM(J10966),'Transactional Departments'!A:B,2,FALSE)","v":"Endowment Student Aid"},"75002000","","","","",""]
["75","375",null,null,"M E POWELL THRELKELD ENDOWMENT","7552GN375615","40000","","65615","75002000",{"$f":"VLOOKUP(TRIM(J10967),'Transactional Departments'!A:B,2,FALSE)","v":"Endowment Student Aid"},"75002000","","","","",""]
["75","375",null,null,"ROBERTA A ALLEN MEM SCHOLARSHP","7552GN375616","40000","","65616","75002000",{"$f":"VLOOKUP(TRIM(J10968),'Transactional Departments'!A:B,2,FALSE)","v":"Endowment Student Aid"},"75002000","","","","",""]
["75","375",null,null,"DR WALTER F MCLENDON MEMORIAL ","7552GN375617","40000","","65617","75002000",{"$f":"VLOOKUP(TRIM(J10969),'Transactional Departments'!A:B,2,FALSE)","v":"Endowment Student Aid"},"75002000","","","","",""]
["75","375",null,null,"SHANNON LAY MEMORIAL ENDOWMENT","7552GN375618","40000","","65618","75002000",{"$f":"VLOOKUP(TRIM(J10970),'Transactional Departments'!A:B,2,FALSE)","v":"Endowment Student Aid"},"75002000","","","","",""]
["75","375",null,null,"MERCK & CO SCHOLARSHIP FUND   ","7552GN375619","40000","","65619","75002000",{"$f":"VLOOKUP(TRIM(J10971),'Transactional Departments'!A:B,2,FALSE)","v":"Endowment Student Aid"},"75002000","","","","",""]
["75","375",null,null,"PATRICIA LYNN BURTON ENDOWMENT","7552GN375620","40000","","65620","75002000",{"$f":"VLOOKUP(TRIM(J10972),'Transactional Departments'!A:B,2,FALSE)","v":"Endowment Student Aid"},"75002000","","","","",""]
["75","375",null,null,"GRACE CHARLENE FRAM MEMORIAL  ","7552GN375621","40000","","65621","75002000",{"$f":"VLOOKUP(TRIM(J10973),'Transactional Departments'!A:B,2,FALSE)","v":"Endowment Student Aid"},"75002000","","","","",""]
["75","375",null,null,"BERTON J BARR MEMORIAL        ","7552GN375622","40000","","65622","75002000",{"$f":"VLOOKUP(TRIM(J10974),'Transactional Departments'!A:B,2,FALSE)","v":"Endowment Student Aid"},"75002000","","","","",""]
["75","375",null,null,"LAW DAMES SCHOLARSHIP FUND    ","7552GN375623","40000","","65623","75001000",{"$f":"VLOOKUP(TRIM(J10975),'Transactional Departments'!A:B,2,FALSE)","v":"Endowments"},"75001000","","","","",""]
["75","375",null,null,"MCCARTHY CRENSHAW MEMORIAL    ","7552GN375624","40000","","65624","75001000",{"$f":"VLOOKUP(TRIM(J10976),'Transactional Departments'!A:B,2,FALSE)","v":"Endowments"},"75001000","","","","",""]
["75","375",null,null,"ALVIN & JEAN COOLEDGE SCHOLAR ","7552GN375800","40000","","65800","75002000",{"$f":"VLOOKUP(TRIM(J10977),'Transactional Departments'!A:B,2,FALSE)","v":"Endowment Student Aid"},"75002000","","","","",""]
["75","375",null,null,"ATLANTA BOARD OF REALTORS SCH ","7552GN375801","40000","","65801","75002000",{"$f":"VLOOKUP(TRIM(J10978),'Transactional Departments'!A:B,2,FALSE)","v":"Endowment Student Aid"},"75002000","","","","",""]
["75","375",null,null,"TROY A ATHON JR MEM SCHOL FUND","7552GN375802","40000","","65802","75002000",{"$f":"VLOOKUP(TRIM(J10979),'Transactional Departments'!A:B,2,FALSE)","v":"Endowment Student Aid"},"75002000","","","","",""]
["75","375",null,null,"BISCOE ALVIN B COLLEGE OF BUS ","7552GN375803","40000","","65803","75002000",{"$f":"VLOOKUP(TRIM(J10980),'Transactional Departments'!A:B,2,FALSE)","v":"Endowment Student Aid"},"75002000","","","","",""]
["75","375",null,null,"AUGUSTA H & GRACE A BARRETT SC","7552GN375804","40000","","65804","75002000",{"$f":"VLOOKUP(TRIM(J10981),'Transactional Departments'!A:B,2,FALSE)","v":"Endowment Student Aid"},"75002000","","","","",""]
["75","375",null,null,"DAVENPORT SCHOLARSHIP FUND    ","7552GN375805","40000","","65805","75002000",{"$f":"VLOOKUP(TRIM(J10982),'Transactional Departments'!A:B,2,FALSE)","v":"Endowment Student Aid"},"75002000","","","","",""]
["75","375",null,null,"BRYAN WILLIAM JENNINGS PRIZE  ","7552GN375806","40000","","65806","75002000",{"$f":"VLOOKUP(TRIM(J10983),'Transactional Departments'!A:B,2,FALSE)","v":"Endowment Student Aid"},"75002000","","","","",""]
["75","375",null,null,"GA DAIRY MEM FDN FUND         ","7552GN375807","40000","","65807","75002000",{"$f":"VLOOKUP(TRIM(J10984),'Transactional Departments'!A:B,2,FALSE)","v":"Endowment Student Aid"},"75002000","","","","",""]
["75","375",null,null,"CASTELLOW BRYANT T MEMORIAL   ","7552GN375808","40000","","65808","75002000",{"$f":"VLOOKUP(TRIM(J10985),'Transactional Departments'!A:B,2,FALSE)","v":"Endowment Student Aid"},"75002000","","","","",""]
["75","375",null,null,"CHATHAM MARY BATES SCHOLARSHIP","7552GN375809","40000","","65809","75002000",{"$f":"VLOOKUP(TRIM(J10986),'Transactional Departments'!A:B,2,FALSE)","v":"Endowment Student Aid"},"75002000","","","","",""]
["75","375",null,null,"CLAUDE P CALLISON ML          ","7552GN375810","40000","","65810","75002000",{"$f":"VLOOKUP(TRIM(J10987),'Transactional Departments'!A:B,2,FALSE)","v":"Endowment Student Aid"},"75002000","","","","",""]
["75","375",null,null,"KIP CRAVEN MEM SCHOLARSHIP FND","7552GN375811","40000","","65811","75002000",{"$f":"VLOOKUP(TRIM(J10988),'Transactional Departments'!A:B,2,FALSE)","v":"Endowment Student Aid"},"75002000","","","","",""]
["75","375",null,null,"FLOYD STEWART CORBIN SCHOL    ","7552GN375812","40000","","65812","75002000",{"$f":"VLOOKUP(TRIM(J10989),'Transactional Departments'!A:B,2,FALSE)","v":"Endowment Student Aid"},"75002000","","","","",""]
["75","375",null,null,"CONSTANGY F A MEM SCHOL FUND  ","7552GN375813","40000","","65813","75002000",{"$f":"VLOOKUP(TRIM(J10990),'Transactional Departments'!A:B,2,FALSE)","v":"Endowment Student Aid"},"75002000","","","","",""]
["75","375",null,null,"JAMIE CONNELL ANNUAL MEM AWARD","7552GN375814","40000","","65814","75002000",{"$f":"VLOOKUP(TRIM(J10991),'Transactional Departments'!A:B,2,FALSE)","v":"Endowment Student Aid"},"75002000","","","","",""]
["75","375",null,null,"CONNALLY JOE BROWN SCHOLARSHIP","7552GN375815","40000","","65815","75002000",{"$f":"VLOOKUP(TRIM(J10992),'Transactional Departments'!A:B,2,FALSE)","v":"Endowment Student Aid"},"75002000","","","","",""]
["75","375",null,null,"DRIFTMIER R H AWARD           ","7552GN375816","40000","","65816","75002000",{"$f":"VLOOKUP(TRIM(J10993),'Transactional Departments'!A:B,2,FALSE)","v":"Endowment Student Aid"},"75002000","","","","",""]
["75","375",null,null,"FAYETTE BD OF REALTORS SCHOL  ","7552GN375817","40000","","65817","75002000",{"$f":"VLOOKUP(TRIM(J10994),'Transactional Departments'!A:B,2,FALSE)","v":"Endowment Student Aid"},"75002000","","","","",""]
["75","375",null,null,"FRANKLIN GEO RUSH SCHOLARSHIP ","7552GN375818","40000","","65818","75002000",{"$f":"VLOOKUP(TRIM(J10995),'Transactional Departments'!A:B,2,FALSE)","v":"Endowment Student Aid"},"75002000","","","","",""]
["75","375",null,null,"LARRY L GOLDEN MEM FUND       ","7552GN375819","40000","","65819","75002000",{"$f":"VLOOKUP(TRIM(J10996),'Transactional Departments'!A:B,2,FALSE)","v":"Endowment Student Aid"},"75002000","","","","",""]
["75","375",null,null,"PRICE GILBERT JR SCHOL FUND   ","7552GN375820","40000","","65820","75002000",{"$f":"VLOOKUP(TRIM(J10997),'Transactional Departments'!A:B,2,FALSE)","v":"Endowment Student Aid"},"75002000","","","","",""]
["75","375",null,null,"GEORGIA BANKERS ASSOCIATION   ","7552GN375821","40000","","65821","75002000",{"$f":"VLOOKUP(TRIM(J10998),'Transactional Departments'!A:B,2,FALSE)","v":"Endowment Student Aid"},"75002000","","","","",""]
["75","375",null,null,"GA CHAPTER WOMEN COUNC REALTOR","7552GN375822","40000","","65822","75002000",{"$f":"VLOOKUP(TRIM(J10999),'Transactional Departments'!A:B,2,FALSE)","v":"Endowment Student Aid"},"75002000","","","","",""]
["75","375",null,null,"GEORGIA ASSOC OF REALTORS SCH ","7552GN375823","40000","","65823","75002000",{"$f":"VLOOKUP(TRIM(J11000),'Transactional Departments'!A:B,2,FALSE)","v":"Endowment Student Aid"},"75002000","","","","",""]
["75","375",null,null,"GA POWER AG ENG FRESHMAN SCHOL","7552GN375824","40000","","65824","75002000",{"$f":"VLOOKUP(TRIM(J11001),'Transactional Departments'!A:B,2,FALSE)","v":"Endowment Student Aid"},"75002000","","","","",""]
["75","375",null,null,"GNANN HENRY M SCHOLARSHIP     ","7552GN375825","40000","","65825","75002000",{"$f":"VLOOKUP(TRIM(J11002),'Transactional Departments'!A:B,2,FALSE)","v":"Endowment Student Aid"},"75002000","","","","",""]
["75","375",null,null,"GRACE HARTLEY SCHOLARSHIP FUND","7552GN375826","40000","","65826","75002000",{"$f":"VLOOKUP(TRIM(J11003),'Transactional Departments'!A:B,2,FALSE)","v":"Endowment Student Aid"},"75002000","","","","",""]
["75","375",null,null,"HARRIS JAMES COFFEE AWARD     ","7552GN375827","40000","","65827","75002000",{"$f":"VLOOKUP(TRIM(J11004),'Transactional Departments'!A:B,2,FALSE)","v":"Endowment Student Aid"},"75002000","","","","",""]
["75","375",null,null,"ISAKSON ANDREW SCHOL FUND     ","7552GN375828","40000","","65828","75002000",{"$f":"VLOOKUP(TRIM(J11005),'Transactional Departments'!A:B,2,FALSE)","v":"Endowment Student Aid"},"75002000","","","","",""]
["75","375",null,null,"G E HENDERSON AWARD           ","7552GN375829","40000","","65829","75002000",{"$f":"VLOOKUP(TRIM(J11006),'Transactional Departments'!A:B,2,FALSE)","v":"Endowment Student Aid"},"75002000","","","","",""]
["75","375",null,null,"JOHNSON KARL MEM SCHOLORSHIP  ","7552GN375830","40000","","65830","75002000",{"$f":"VLOOKUP(TRIM(J11007),'Transactional Departments'!A:B,2,FALSE)","v":"Endowment Student Aid"},"75002000","","","","",""]
["75","375",null,null,"JOHNSON MARTHA JO WALKER MEM  ","7552GN375831","40000","","65831","75002000",{"$f":"VLOOKUP(TRIM(J11008),'Transactional Departments'!A:B,2,FALSE)","v":"Endowment Student Aid"},"75002000","","","","",""]
["75","375",null,null,"DUDLEY MAYS HUGHES SCHOLARSHIP","7552GN375832","40000","","65832","75002000",{"$f":"VLOOKUP(TRIM(J11009),'Transactional Departments'!A:B,2,FALSE)","v":"Endowment Student Aid"},"75002000","","","","",""]
["75","375",null,null,"JONES JEROME MEMORIAL AFL-CIO ","7552GN375833","40000","","65833","75002000",{"$f":"VLOOKUP(TRIM(J11010),'Transactional Departments'!A:B,2,FALSE)","v":"Endowment Student Aid"},"75002000","","","","",""]
["75","375",null,null,"F &E JORDAN SCHOLARSHIP FUND  ","7552GN375834","40000","","65834","75002000",{"$f":"VLOOKUP(TRIM(J11011),'Transactional Departments'!A:B,2,FALSE)","v":"Endowment Student Aid"},"75002000","","","","",""]
["75","375",null,null,"DEL JONES MEMORIAL TRUST      ","7552GN375835","40000","","65835","75002000",{"$f":"VLOOKUP(TRIM(J11012),'Transactional Departments'!A:B,2,FALSE)","v":"Endowment Student Aid"},"75002000","","","","",""]
["75","375",null,null,"KITZINGER GEORGE D ANNUAL     ","7552GN375836","40000","","65836","75002000",{"$f":"VLOOKUP(TRIM(J11013),'Transactional Departments'!A:B,2,FALSE)","v":"Endowment Student Aid"},"75002000","","","","",""]
["75","375",null,null,"EUNICE RUSTIN LAMBERT SCHOL   ","7552GN375837","40000","","65837","75002000",{"$f":"VLOOKUP(TRIM(J11014),'Transactional Departments'!A:B,2,FALSE)","v":"Endowment Student Aid"},"75002000","","","","",""]
["75","375",null,null,"LEVY JOHN SANFORD MEMORIAL    ","7552GN375838","40000","","65838","75001000",{"$f":"VLOOKUP(TRIM(J11015),'Transactional Departments'!A:B,2,FALSE)","v":"Endowments"},"75001000","","","","",""]
["75","375",null,null,"MCWHORTER HAMILTON PRIZE      ","7552GN375839","40000","","65839","75002000",{"$f":"VLOOKUP(TRIM(J11016),'Transactional Departments'!A:B,2,FALSE)","v":"Endowment Student Aid"},"75002000","","","","",""]
["75","375",null,null,"VIRGINIA WILBANKS KILGORE SCH ","7552GN375840","40000","","65840","75002000",{"$f":"VLOOKUP(TRIM(J11017),'Transactional Departments'!A:B,2,FALSE)","v":"Endowment Student Aid"},"75002000","","","","",""]
["75","375",null,null,"JAMES B BURCH SCHOL FUND      ","7552GN375841","40000","","65841","75002000",{"$f":"VLOOKUP(TRIM(J11018),'Transactional Departments'!A:B,2,FALSE)","v":"Endowment Student Aid"},"75002000","","","","",""]
["75","375",null,null,"MEINHARD ISAAC MEMORIAL AWARD ","7552GN375842","40000","","65842","75001000",{"$f":"VLOOKUP(TRIM(J11019),'Transactional Departments'!A:B,2,FALSE)","v":"Endowments"},"75001000","","","","",""]
["75","375",null,null,"FAY-BOND HINRICKS SCHOL       ","7552GN375843","40000","","65843","75002000",{"$f":"VLOOKUP(TRIM(J11020),'Transactional Departments'!A:B,2,FALSE)","v":"Endowment Student Aid"},"75002000","","","","",""]
["75","375",null,null,"FORBES LEADERSHIP AWARDS      ","7552GN375844","40000","","65844","75002000",{"$f":"VLOOKUP(TRIM(J11021),'Transactional Departments'!A:B,2,FALSE)","v":"Endowment Student Aid"},"75002000","","","","",""]
["75","375",null,null,"MICHAEL BERT SCHOLARSHIP      ","7552GN375845","40000","","65845","75002000",{"$f":"VLOOKUP(TRIM(J11022),'Transactional Departments'!A:B,2,FALSE)","v":"Endowment Student Aid"},"75002000","","","","",""]
["75","375",null,null,"BARKER TERRY F SCHOLARSHIP    ","7552GN375846","40000","","65846","75002000",{"$f":"VLOOKUP(TRIM(J11023),'Transactional Departments'!A:B,2,FALSE)","v":"Endowment Student Aid"},"75002000","","","","",""]
["75","375",null,null,"ROY B DAY SCHOL               ","7552GN375847","40000","","65847","75002000",{"$f":"VLOOKUP(TRIM(J11024),'Transactional Departments'!A:B,2,FALSE)","v":"Endowment Student Aid"},"75002000","","","","",""]
["75","375",null,null,"MUSIC SCHOLARSHIP             ","7552GN375848","40000","","65848","75002000",{"$f":"VLOOKUP(TRIM(J11025),'Transactional Departments'!A:B,2,FALSE)","v":"Endowment Student Aid"},"75002000","","","","",""]
["75","375",null,null,"LOIS DOWDLE COBB SCHOL        ","7552GN375849","40000","","65849","75002000",{"$f":"VLOOKUP(TRIM(J11026),'Transactional Departments'!A:B,2,FALSE)","v":"Endowment Student Aid"},"75002000","","","","",""]
["75","375",null,null,"NUTTY COMBE PRIZE             ","7552GN375850","40000","","65850","75002000",{"$f":"VLOOKUP(TRIM(J11027),'Transactional Departments'!A:B,2,FALSE)","v":"Endowment Student Aid"},"75002000","","","","",""]
["75","375",null,null,"DOROTHY L. NELMS SCHOLARSHIP  ","7552GN375851","40000","","65851","75002000",{"$f":"VLOOKUP(TRIM(J11028),'Transactional Departments'!A:B,2,FALSE)","v":"Endowment Student Aid"},"75002000","","","","",""]
["75","375",null,null,"RAYMOND PAYNE MEMORIAL FUND   ","7552GN375852","40000","","65852","75002000",{"$f":"VLOOKUP(TRIM(J11029),'Transactional Departments'!A:B,2,FALSE)","v":"Endowment Student Aid"},"75002000","","","","",""]
["75","375",null,null,"DONALD RALPH PRESCOTT ENDW FND","7552GN375853","40000","","65853","75002000",{"$f":"VLOOKUP(TRIM(J11030),'Transactional Departments'!A:B,2,FALSE)","v":"Endowment Student Aid"},"75002000","","","","",""]
["75","375",null,null,"PHELPS-STOKES                 ","7552GN375854","40000","","65854","75002000",{"$f":"VLOOKUP(TRIM(J11031),'Transactional Departments'!A:B,2,FALSE)","v":"Endowment Student Aid"},"75002000","","","","",""]
["75","375",null,null,"EDWIN D PUSEY PRIZE           ","7552GN375855","40000","","65855","75002000",{"$f":"VLOOKUP(TRIM(J11032),'Transactional Departments'!A:B,2,FALSE)","v":"Endowment Student Aid"},"75002000","","","","",""]
["75","375",null,null,"WILLIAM I RAY JR SCH FUND     ","7552GN375856","40000","","65856","75002000",{"$f":"VLOOKUP(TRIM(J11033),'Transactional Departments'!A:B,2,FALSE)","v":"Endowment Student Aid"},"75002000","","","","",""]
["75","375",null,null,"RICHMOND HENRY L CHEM FELLOW  ","7552GN375857","40000","","65857","75002000",{"$f":"VLOOKUP(TRIM(J11034),'Transactional Departments'!A:B,2,FALSE)","v":"Endowment Student Aid"},"75002000","","","","",""]
["75","375",null,null,"FLORA ROGERS SCHOLARSHIP FUND ","7552GN375858","40000","","65858","75002000",{"$f":"VLOOKUP(TRIM(J11035),'Transactional Departments'!A:B,2,FALSE)","v":"Endowment Student Aid"},"75002000","","","","",""]
["75","375",null,null,"JULIA PARKER SCHOLARSHIP FUND ","7552GN375859","40000","","65859","75002000",{"$f":"VLOOKUP(TRIM(J11036),'Transactional Departments'!A:B,2,FALSE)","v":"Endowment Student Aid"},"75002000","","","","",""]
["75","375",null,null,"RUSSELL HORACE B PRIZE        ","7552GN375860","40000","","65860","75002000",{"$f":"VLOOKUP(TRIM(J11037),'Transactional Departments'!A:B,2,FALSE)","v":"Endowment Student Aid"},"75002000","","","","",""]
["75","375",null,null,"SEMENOW ROBERT W SCHOL FUND   ","7552GN375861","40000","","65861","75002000",{"$f":"VLOOKUP(TRIM(J11038),'Transactional Departments'!A:B,2,FALSE)","v":"Endowment Student Aid"},"75002000","","","","",""]
["75","375",null,null,"SHELDON ROBERT A MEMORIAL     ","7552GN375862","40000","","65862","75001000",{"$f":"VLOOKUP(TRIM(J11039),'Transactional Departments'!A:B,2,FALSE)","v":"Endowments"},"75001000","","","","",""]
["75","375",null,null,"SHEURING JOHN J MEMORIAL      ","7552GN375863","40000","","65863","75001000",{"$f":"VLOOKUP(TRIM(J11040),'Transactional Departments'!A:B,2,FALSE)","v":"Endowments"},"75001000","","","","",""]
["75","375",null,null,"WILLIAM M SHENKEL SCHOL FUND  ","7552GN375864","40000","","65864","75002000",{"$f":"VLOOKUP(TRIM(J11041),'Transactional Departments'!A:B,2,FALSE)","v":"Endowment Student Aid"},"75002000","","","","",""]
["75","375",null,null,"SLAUGHTER VARINA AND L B SCHFD","7552GN375865","40000","","65865","75002000",{"$f":"VLOOKUP(TRIM(J11042),'Transactional Departments'!A:B,2,FALSE)","v":"Endowment Student Aid"},"75002000","","","","",""]
["75","375",null,null,"SMITH HOKE MEMORIAL           ","7552GN375866","40000","","65866","75002000",{"$f":"VLOOKUP(TRIM(J11043),'Transactional Departments'!A:B,2,FALSE)","v":"Endowment Student Aid"},"75002000","","","","",""]
["75","375",null,null,"PAUL ASHLEY SIMON MEM SCH FUND","7552GN375867","40000","","65867","75002000",{"$f":"VLOOKUP(TRIM(J11044),'Transactional Departments'!A:B,2,FALSE)","v":"Endowment Student Aid"},"75002000","","","","",""]
["75","375",null,null,"CARRIE G PERRY SCHOL          ","7552GN375868","40000","","65868","75002000",{"$f":"VLOOKUP(TRIM(J11045),'Transactional Departments'!A:B,2,FALSE)","v":"Endowment Student Aid"},"75002000","","","","",""]
["75","375",null,null,"SMITH MARTIN REYNOLDS         ","7552GN375869","40000","","65869","75002000",{"$f":"VLOOKUP(TRIM(J11046),'Transactional Departments'!A:B,2,FALSE)","v":"Endowment Student Aid"},"75002000","","","","",""]
["75","375",null,null,"GEORGE ERWIN KEEN SCHOL FUND  ","7552GN375870","40000","","65870","75002000",{"$f":"VLOOKUP(TRIM(J11047),'Transactional Departments'!A:B,2,FALSE)","v":"Endowment Student Aid"},"75002000","","","","",""]
["75","375",null,null,"THOMAS F COMER SCHOL          ","7552GN375871","40000","","65871","75002000",{"$f":"VLOOKUP(TRIM(J11048),'Transactional Departments'!A:B,2,FALSE)","v":"Endowment Student Aid"},"75002000","","","","",""]
["75","375",null,null,"PEYTON T ANDERSON SCHOLARSHIP ","7552GN375872","40000","","65872","75002000",{"$f":"VLOOKUP(TRIM(J11049),'Transactional Departments'!A:B,2,FALSE)","v":"Endowment Student Aid"},"75002000","","","","",""]
["75","375",null,null,"BILL PHIPPEN SCHOLARSHIP      ","7552GN375873","40000","","65873","75002000",{"$f":"VLOOKUP(TRIM(J11050),'Transactional Departments'!A:B,2,FALSE)","v":"Endowment Student Aid"},"75002000","","","","",""]
["75","375",null,null,"WM & FLORENCE MCFARLANE SCHOL ","7552GN375874","40000","","65874","75002000",{"$f":"VLOOKUP(TRIM(J11051),'Transactional Departments'!A:B,2,FALSE)","v":"Endowment Student Aid"},"75002000","","","","",""]
["75","375",null,null,"STODDARD-BURLEIGH-SUTTON SCHOL","7552GN375875","40000","","65875","75002000",{"$f":"VLOOKUP(TRIM(J11052),'Transactional Departments'!A:B,2,FALSE)","v":"Endowment Student Aid"},"75002000","","","","",""]
["75","375",null,null,"SCOTT TORGESEN MEMORIAL FUND  ","7552GN375876","40000","","65876","75002000",{"$f":"VLOOKUP(TRIM(J11053),'Transactional Departments'!A:B,2,FALSE)","v":"Endowment Student Aid"},"75002000","","","","",""]
["75","375",null,null,"STEPHEN C TATE SCHOLARSHIP FD ","7552GN375877","40000","","65877","75002000",{"$f":"VLOOKUP(TRIM(J11054),'Transactional Departments'!A:B,2,FALSE)","v":"Endowment Student Aid"},"75002000","","","","",""]
["75","375",null,null,"TROTTI LAMAR JR SCHOLARSHIP   ","7552GN375878","40000","","65878","75002000",{"$f":"VLOOKUP(TRIM(J11055),'Transactional Departments'!A:B,2,FALSE)","v":"Endowment Student Aid"},"75002000","","","","",""]
["75","375",null,null,"ALBON B HAILEY SCHOLARSHIP    ","7552GN375879","40000","","65879","75002000",{"$f":"VLOOKUP(TRIM(J11056),'Transactional Departments'!A:B,2,FALSE)","v":"Endowment Student Aid"},"75002000","","","","",""]
["75","375",null,null,"UNIV LAW CLASS 1933 MEM       ","7552GN375881","40000","","65881","75002000",{"$f":"VLOOKUP(TRIM(J11057),'Transactional Departments'!A:B,2,FALSE)","v":"Endowment Student Aid"},"75002000","","","","",""]
["75","375",null,null,"WSB RADIO AWARD               ","7552GN375882","40000","","65882","75002000",{"$f":"VLOOKUP(TRIM(J11058),'Transactional Departments'!A:B,2,FALSE)","v":"Endowment Student Aid"},"75002000","","","","",""]
["75","375",null,null,"BYRON WARNER MEN'S GLEE CLUB  ","7552GN375883","40000","","65883","75002000",{"$f":"VLOOKUP(TRIM(J11059),'Transactional Departments'!A:B,2,FALSE)","v":"Endowment Student Aid"},"75002000","","","","",""]
["75","375",null,null,"WILLCOX CECIL PRIZE           ","7552GN375884","40000","","65884","75002000",{"$f":"VLOOKUP(TRIM(J11060),'Transactional Departments'!A:B,2,FALSE)","v":"Endowment Student Aid"},"75002000","","","","",""]
["75","375",null,null,"STARR WHEELER MEMORIAL TRUST  ","7552GN375885","40000","","65885","75002000",{"$f":"VLOOKUP(TRIM(J11061),'Transactional Departments'!A:B,2,FALSE)","v":"Endowment Student Aid"},"75002000","","","","",""]
["75","375",null,null,"GEORGE R. GILMER              ","7552GN375886","40000","","65886","75002000",{"$f":"VLOOKUP(TRIM(J11062),'Transactional Departments'!A:B,2,FALSE)","v":"Endowment Student Aid"},"75002000","","","","",""]
["75","375",null,null,"ZIMMER HERBERT PSYCHOLOGY     ","7552GN375887","40000","","65887","75001000",{"$f":"VLOOKUP(TRIM(J11063),'Transactional Departments'!A:B,2,FALSE)","v":"Endowments"},"75001000","","","","",""]
["75","375",null,null,"ORLIN KENYON FLETCHER JR SCHOL","7552GN375888","40000","","65888","75002000",{"$f":"VLOOKUP(TRIM(J11064),'Transactional Departments'!A:B,2,FALSE)","v":"Endowment Student Aid"},"75002000","","","","",""]
["75","375",null,null,"DANA BLACKMAR SCHOLARSHIP     ","7552GN375889","40000","","65889","75002000",{"$f":"VLOOKUP(TRIM(J11065),'Transactional Departments'!A:B,2,FALSE)","v":"Endowment Student Aid"},"75002000","","","","",""]
["75","375",null,null,"BATTS MEMORIAL FUND           ","7552GN375890","40000","","65890","75002000",{"$f":"VLOOKUP(TRIM(J11066),'Transactional Departments'!A:B,2,FALSE)","v":"Endowment Student Aid"},"75002000","","","","",""]
["75","375",null,null,"JEM SINHA MBA SCH-INTNTL BUS  ","7552GN375891","40000","","65891","75002000",{"$f":"VLOOKUP(TRIM(J11067),'Transactional Departments'!A:B,2,FALSE)","v":"Endowment Student Aid"},"75002000","","","","",""]
["75","375",null,null,"DAN M POST SCHOLARSHIP        ","7552GN375892","40000","","65892","75002000",{"$f":"VLOOKUP(TRIM(J11068),'Transactional Departments'!A:B,2,FALSE)","v":"Endowment Student Aid"},"75002000","","","","",""]
["75","375",null,null,"FRANK G LITTLE SCHOL          ","7552GN375893","40000","","65893","75002000",{"$f":"VLOOKUP(TRIM(J11069),'Transactional Departments'!A:B,2,FALSE)","v":"Endowment Student Aid"},"75002000","","","","",""]
["75","375",null,null,"CM & BERNICE C STRIPLING SCHOL","7552GN375894","40000","","65894","75002000",{"$f":"VLOOKUP(TRIM(J11070),'Transactional Departments'!A:B,2,FALSE)","v":"Endowment Student Aid"},"75002000","","","","",""]
["75","375",null,null,"M E MCCULLOUGH SCHOL FUND     ","7552GN375895","40000","","65895","75002000",{"$f":"VLOOKUP(TRIM(J11071),'Transactional Departments'!A:B,2,FALSE)","v":"Endowment Student Aid"},"75002000","","","","",""]
["75","375",null,null,"JACK F AND SUSAN C RISSMAN SCH","7552GN375896","40000","","65896","75002000",{"$f":"VLOOKUP(TRIM(J11072),'Transactional Departments'!A:B,2,FALSE)","v":"Endowment Student Aid"},"75002000","","","","",""]
["75","375",null,null,"RICHARD BARNAM HICKMAN SCHOL  ","7552GN375897","40000","","65897","75002000",{"$f":"VLOOKUP(TRIM(J11073),'Transactional Departments'!A:B,2,FALSE)","v":"Endowment Student Aid"},"75002000","","","","",""]
["75","375",null,null,"CDR WILLIAM M MCEVER SCHOL    ","7552GN375898","40000","","65898","75002000",{"$f":"VLOOKUP(TRIM(J11074),'Transactional Departments'!A:B,2,FALSE)","v":"Endowment Student Aid"},"75002000","","","","",""]
["75","375",null,null,"GRACE H BARNES SCHOL          ","7552GN375899","40000","","65899","75002000",{"$f":"VLOOKUP(TRIM(J11075),'Transactional Departments'!A:B,2,FALSE)","v":"Endowment Student Aid"},"75002000","","","","",""]
["75","375",null,null,"S. H. MORRISON FUND           ","7553GN375901","40000","","65901","75002000",{"$f":"VLOOKUP(TRIM(J11076),'Transactional Departments'!A:B,2,FALSE)","v":"Endowment Student Aid"},"75002000","","","","",""]
["75","375",null,null,"BRAND CHARLES HILLYER MEMORIAL","7553GN375903","40000","","65903","75001000",{"$f":"VLOOKUP(TRIM(J11077),'Transactional Departments'!A:B,2,FALSE)","v":"Endowments"},"75001000","","","","",""]
["75","375",null,null,"BROWN CHARLES MCDONALD        ","7553GN375906","40000","","65906","75002000",{"$f":"VLOOKUP(TRIM(J11078),'Transactional Departments'!A:B,2,FALSE)","v":"Endowment Student Aid"},"75002000","","","","",""]
["75","375",null,null,"BROWN HENRY WARREN MEMORIAL   ","7553GN375909","40000","","65909","75001000",{"$f":"VLOOKUP(TRIM(J11079),'Transactional Departments'!A:B,2,FALSE)","v":"Endowments"},"75001000","","","","",""]
["75","375",null,null,"BULLARD B F                   ","7553GN375912","40000","","65912","75002000",{"$f":"VLOOKUP(TRIM(J11080),'Transactional Departments'!A:B,2,FALSE)","v":"Endowment Student Aid"},"75002000","","","","",""]
["75","375",null,null,"DENMARK WILLIAM STARK MEMORIAL","7553GN375921","40000","","65921","75001000",{"$f":"VLOOKUP(TRIM(J11081),'Transactional Departments'!A:B,2,FALSE)","v":"Endowments"},"75001000","","","","",""]
["75","375",null,null,"DODD EUGENE AND HARRY         ","7553GN375924","40000","","65924","75001000",{"$f":"VLOOKUP(TRIM(J11082),'Transactional Departments'!A:B,2,FALSE)","v":"Endowments"},"75001000","","","","",""]
["75","375",null,null,"WILLIAM L GRAYSON SCH LOAN FD ","7553GN375925","40000","","65925","75001000",{"$f":"VLOOKUP(TRIM(J11083),'Transactional Departments'!A:B,2,FALSE)","v":"Endowments"},"75001000","","","","",""]
["75","375",null,null,"KING CLYDE L JR AND JOHN      ","7553GN375927","40000","","65927","75001000",{"$f":"VLOOKUP(TRIM(J11084),'Transactional Departments'!A:B,2,FALSE)","v":"Endowments"},"75001000","","","","",""]
["75","375",null,null,"LUMPKIN JOSEPH H SCHOLARSHIP  ","7553GN375933","40000","","65933","75001000",{"$f":"VLOOKUP(TRIM(J11085),'Transactional Departments'!A:B,2,FALSE)","v":"Endowments"},"75001000","","","","",""]
["75","375",null,null,"MOON C A AND H B T            ","7553GN375936","40000","","65936","75001000",{"$f":"VLOOKUP(TRIM(J11086),'Transactional Departments'!A:B,2,FALSE)","v":"Endowments"},"75001000","","","","",""]
["75","375",null,null,"MOON PEARL CAMPBELL           ","7553GN375939","40000","","65939","75001000",{"$f":"VLOOKUP(TRIM(J11087),'Transactional Departments'!A:B,2,FALSE)","v":"Endowments"},"75001000","","","","",""]
["75","375",null,null,"PHILLIPS BEN Z LAW SCHOLARSHIP","7553GN375942","40000","","65942","75002000",{"$f":"VLOOKUP(TRIM(J11088),'Transactional Departments'!A:B,2,FALSE)","v":"Endowment Student Aid"},"75002000","","","","",""]
["75","375",null,null,"REED ALBON WILLIAM MEMORIAL   ","7553GN375945","40000","","65945","75001000",{"$f":"VLOOKUP(TRIM(J11089),'Transactional Departments'!A:B,2,FALSE)","v":"Endowments"},"75001000","","","","",""]
["75","375",null,null,"THOMPSON BERRYMAN T EDUC      ","7553GN375948","40000","","65948","75001000",{"$f":"VLOOKUP(TRIM(J11090),'Transactional Departments'!A:B,2,FALSE)","v":"Endowments"},"75001000","","","","",""]
["75","375",null,null,"KRISTINA SCHWENSEN SCHOLARSHIP","7554GN375960","40000","","65960","75002000",{"$f":"VLOOKUP(TRIM(J11091),'Transactional Departments'!A:B,2,FALSE)","v":"Endowment Student Aid"},"75002000","","","","",""]
["75","375",null,null,"MARY L & CLAUD B BARRETT SCHOL","7554GN375963","40000","","65963","75002000",{"$f":"VLOOKUP(TRIM(J11092),'Transactional Departments'!A:B,2,FALSE)","v":"Endowment Student Aid"},"75002000","","","","",""]
["75","375",null,null,"PATRICA LYNN BURTON ENDOW FUND","7554GN375965","40000","","65620","75002000",{"$f":"VLOOKUP(TRIM(J11093),'Transactional Departments'!A:B,2,FALSE)","v":"Endowment Student Aid"},"75002000","","","","",""]
["75","375",null,null,"CHURCHILL A F MEMORIAL        ","7554GN375966","40000","","65966","75002000",{"$f":"VLOOKUP(TRIM(J11094),'Transactional Departments'!A:B,2,FALSE)","v":"Endowment Student Aid"},"75002000","","","","",""]
["75","375",null,null,"CITIZENS & SOUTHERN NATL BANK ","7554GN375967","40000","","65967","75002000",{"$f":"VLOOKUP(TRIM(J11095),'Transactional Departments'!A:B,2,FALSE)","v":"Endowment Student Aid"},"75002000","","","","",""]
["75","375",null,null,"COMER EDWARD T                ","7554GN375969","40000","","65969","75001000",{"$f":"VLOOKUP(TRIM(J11096),'Transactional Departments'!A:B,2,FALSE)","v":"Endowments"},"75001000","","","","",""]
["75","375",null,null,"DAWSON EDGAR GILMER           ","7554GN375972","40000","","65972","75001000",{"$f":"VLOOKUP(TRIM(J11097),'Transactional Departments'!A:B,2,FALSE)","v":"Endowments"},"75001000","","","","",""]
["75","375",null,null,"FORBES WALTER T SR MEMORIAL   ","7554GN375975","40000","","65975","75002000",{"$f":"VLOOKUP(TRIM(J11098),'Transactional Departments'!A:B,2,FALSE)","v":"Endowment Student Aid"},"75002000","","","","",""]
["75","375",null,null,"GALLAHER EBB W                ","7554GN375978","40000","","65978","75002000",{"$f":"VLOOKUP(TRIM(J11099),'Transactional Departments'!A:B,2,FALSE)","v":"Endowment Student Aid"},"75002000","","","","",""]
["75","375",null,null,"H M HECKMAN JR MUSIC LOAN FUND","7554GN375979","40000","","65979","75002000",{"$f":"VLOOKUP(TRIM(J11100),'Transactional Departments'!A:B,2,FALSE)","v":"Endowment Student Aid"},"75002000","","","","",""]
["75","375",null,null,"JOHN H HOSCH JR FUND          ","7554GN375980","40000","","65980","75002000",{"$f":"VLOOKUP(TRIM(J11101),'Transactional Departments'!A:B,2,FALSE)","v":"Endowment Student Aid"},"75002000","","","","",""]
["75","375",null,null,"LAMAR J RUCKER SCHOLARSHIP    ","7554GN375981","40000","","65981","75002000",{"$f":"VLOOKUP(TRIM(J11102),'Transactional Departments'!A:B,2,FALSE)","v":"Endowment Student Aid"},"75002000","","","","",""]
["75","375",null,null,"MITCHELL THOMAS E EDUCATIONAL ","7554GN375984","40000","","65984","75002000",{"$f":"VLOOKUP(TRIM(J11103),'Transactional Departments'!A:B,2,FALSE)","v":"Endowment Student Aid"},"75002000","","","","",""]
["75","375",null,null,"MILTON M RATNER SCHOLARSHPLOAN","7554GN375986","40000","","65986","75002000",{"$f":"VLOOKUP(TRIM(J11104),'Transactional Departments'!A:B,2,FALSE)","v":"Endowment Student Aid"},"75002000","","","","",""]
["75","375",null,null,"TUCKER FRANCES CLEMENTINE     ","7554GN375987","40000","","65987","75001000",{"$f":"VLOOKUP(TRIM(J11105),'Transactional Departments'!A:B,2,FALSE)","v":"Endowments"},"75001000","","","","",""]
["75","375",null,null,"WILLIAM J JR & AMMA W RUSSELL ","7554GN375988","40000","","65988","75002000",{"$f":"VLOOKUP(TRIM(J11106),'Transactional Departments'!A:B,2,FALSE)","v":"Endowment Student Aid"},"75002000","","","","",""]
["75","375",null,null,"WILLIAM J IV & ADDIE D RUSSELL","7554GN375989","40000","","65989","75002000",{"$f":"VLOOKUP(TRIM(J11107),'Transactional Departments'!A:B,2,FALSE)","v":"Endowment Student Aid"},"75002000","","","","",""]
["75","375",null,null,"UNIVERSITY THEATRE            ","7554GN375990","40000","","65990","75002000",{"$f":"VLOOKUP(TRIM(J11108),'Transactional Departments'!A:B,2,FALSE)","v":"Endowment Student Aid"},"75002000","","","","",""]
["75","375",null,null,"R J WARD MEMORIAL FUND        ","7554GN375992","40000","","65992","75002000",{"$f":"VLOOKUP(TRIM(J11109),'Transactional Departments'!A:B,2,FALSE)","v":"Endowment Student Aid"},"75002000","","","","",""]
["75","375",null,null,"WILLCOX CECIL                 ","7554GN375993","40000","","65993","75002000",{"$f":"VLOOKUP(TRIM(J11110),'Transactional Departments'!A:B,2,FALSE)","v":"Endowment Student Aid"},"75002000","","","","",""]
["75","375",null,null,"ENDOWNMENT FUND DEPOSITS      ","7556GN375001","40000","","","75001000",{"$f":"VLOOKUP(TRIM(J11111),'Transactional Departments'!A:B,2,FALSE)","v":"Endowments"},"75001000","","","","",""]
["75","587",null,null,"OUTSIDE SCHOLARSHIP           ","9087GN587116","61000","","","75006000",{"$f":"VLOOKUP(TRIM(J11112),'Transactional Departments'!A:B,2,FALSE)","v":"Other Student Aid"},"75006000","","","","",""]
["75","587",null,null,"OUTSIDE SCHOLARSHIPS III      ","9087GN587300","61000","","","75006000",{"$f":"VLOOKUP(TRIM(J11113),'Transactional Departments'!A:B,2,FALSE)","v":"Other Student Aid"},"75006000","","","","",""]
["75","588",null,null,"CHECK CLEARING STUDENTS       ","9088GN588013","60000","","","75006000",{"$f":"VLOOKUP(TRIM(J11114),'Transactional Departments'!A:B,2,FALSE)","v":"Other Student Aid"},"75006000","","","","",""]
["75","588",null,null,"STUDENT FEES - TIFTON         ","9088GN588100","60000","","","75006000",{"$f":"VLOOKUP(TRIM(J11115),'Transactional Departments'!A:B,2,FALSE)","v":"Other Student Aid"},"75006000","","","","",""]
["75","629",null,null,"CONNALLY JOE B SCHOLARSHIP    ","1081RN629005","20500","18100","65815","75002000",{"$f":"VLOOKUP(TRIM(J11116),'Transactional Departments'!A:B,2,FALSE)","v":"Endowment Student Aid"},"75002000","","","","",""]
["75","629",null,null,"DAWSON EDGAR G SCHOLARSHIP    ","1081RN629006","20500","18100","65972","75002000",{"$f":"VLOOKUP(TRIM(J11117),'Transactional Departments'!A:B,2,FALSE)","v":"Endowment Student Aid"},"75002000","","","","",""]
["75","629",null,null,"LAMAR JOSEPH RUCKER SCHOLAR   ","1081RN629015","20500","18100","65981","75002000",{"$f":"VLOOKUP(TRIM(J11118),'Transactional Departments'!A:B,2,FALSE)","v":"Endowment Student Aid"},"75002000","","","","",""]
["75","629",null,null,"LARRY LEROY GOLDEN SCH        ","1081RN629018","20500","18100","65819","75002000",{"$f":"VLOOKUP(TRIM(J11119),'Transactional Departments'!A:B,2,FALSE)","v":"Endowment Student Aid"},"75002000","","","","",""]
["75","629",null,null,"MUSIC SCHOLARSHIP             ","1081RN629019","20500","18100","65848","75002000",{"$f":"VLOOKUP(TRIM(J11120),'Transactional Departments'!A:B,2,FALSE)","v":"Endowment Student Aid"},"75002000","","","","",""]
["75","629",null,null,"PHELPS STOKES SCHOLARSHIP     ","1081RN629021","20500","18100","65854","75002000",{"$f":"VLOOKUP(TRIM(J11121),'Transactional Departments'!A:B,2,FALSE)","v":"Endowment Student Aid"},"75002000","","","","",""]
["75","629",null,null,"TROTTI LAMAR SCHOLARSHIP      ","1081RN629025","20500","18100","65878","75002000",{"$f":"VLOOKUP(TRIM(J11122),'Transactional Departments'!A:B,2,FALSE)","v":"Endowment Student Aid"},"75002000","","","","",""]
["75","629",null,null,"BRYANT T CASTELLOW MEMORIAL   ","1081RN629035","20500","18100","65808","75002000",{"$f":"VLOOKUP(TRIM(J11123),'Transactional Departments'!A:B,2,FALSE)","v":"Endowment Student Aid"},"75002000","","","","",""]
["75","629",null,null,"H M HECKMAN JR MUSIC SCH      ","1081RN629036","20500","18100","65979","75002000",{"$f":"VLOOKUP(TRIM(J11124),'Transactional Departments'!A:B,2,FALSE)","v":"Endowment Student Aid"},"75002000","","","","",""]
["75","629",null,null,"GRACE HARTLEY SCHOLARSHIP     ","1081RN629042","20500","18100","65826","75002000",{"$f":"VLOOKUP(TRIM(J11125),'Transactional Departments'!A:B,2,FALSE)","v":"Endowment Student Aid"},"75002000","","","","",""]
["75","629",null,null,"FRANK A CONSTANGY MEM SCHOL   ","1081RN629044","20500","18100","65813","75002000",{"$f":"VLOOKUP(TRIM(J11126),'Transactional Departments'!A:B,2,FALSE)","v":"Endowment Student Aid"},"75002000","","","","",""]
["75","629",null,null,"CLAUDE P CALLISON MEM SCH     ","1081RN629048","20500","18100","65810","75002000",{"$f":"VLOOKUP(TRIM(J11127),'Transactional Departments'!A:B,2,FALSE)","v":"Endowment Student Aid"},"75002000","","","","",""]
["75","629",null,null,"MILTON M RATNER SCHOLARSHIP   ","1081RN629050","20500","18100","65986","75002000",{"$f":"VLOOKUP(TRIM(J11128),'Transactional Departments'!A:B,2,FALSE)","v":"Endowment Student Aid"},"75002000","","","","",""]
["75","629",null,null,"BYRON WARNER SCHOLARSHIP      ","1081RN629055","20500","18100","65883","75002000",{"$f":"VLOOKUP(TRIM(J11129),'Transactional Departments'!A:B,2,FALSE)","v":"Endowment Student Aid"},"75002000","","","","",""]
["75","629",null,null,"EDWIN PUSEY PRIZE             ","1081RN629068","20500","18100","65855","75002000",{"$f":"VLOOKUP(TRIM(J11130),'Transactional Departments'!A:B,2,FALSE)","v":"Endowment Student Aid"},"75002000","","","","",""]
["75","629",null,null,"CLAUD B BARRETT SCHOLARSHIP   ","1081RN629069","20500","18100","65963","75002000",{"$f":"VLOOKUP(TRIM(J11131),'Transactional Departments'!A:B,2,FALSE)","v":"Endowment Student Aid"},"75002000","","","","",""]
["75","629",null,null,"TROY A ATHON MEM SCH FUND     ","1081RN629071","20500","18100","65802","75002000",{"$f":"VLOOKUP(TRIM(J11132),'Transactional Departments'!A:B,2,FALSE)","v":"Endowment Student Aid"},"75002000","","","","",""]
["75","629",null,null,"DUDLEY MAYS HUGHES SCHOLARSHIP","1081RN629072","20500","18100","65832","75002000",{"$f":"VLOOKUP(TRIM(J11133),'Transactional Departments'!A:B,2,FALSE)","v":"Endowment Student Aid"},"75002000","","","","",""]
["75","629",null,null,"PRICE GILBERT SCHOLARSHIP     ","1081RN629074","20500","18100","65820","75002000",{"$f":"VLOOKUP(TRIM(J11134),'Transactional Departments'!A:B,2,FALSE)","v":"Endowment Student Aid"},"75002000","","","","",""]
["75","629",null,null,"WILLIAM I RAY SCH             ","1081RN629075","20500","18100","65856","75002000",{"$f":"VLOOKUP(TRIM(J11135),'Transactional Departments'!A:B,2,FALSE)","v":"Endowment Student Aid"},"75002000","","","","",""]
["75","629",null,null,"DEL JONES MEMORIAL TRUST      ","1081RN629077","20500","18100","65835","75002000",{"$f":"VLOOKUP(TRIM(J11136),'Transactional Departments'!A:B,2,FALSE)","v":"Endowment Student Aid"},"75002000","","","","",""]
["75","629",null,null,"PAUL ASHLEY SIMON MEMORIAL SCH","1081RN629078","20500","18100","65867","75002000",{"$f":"VLOOKUP(TRIM(J11137),'Transactional Departments'!A:B,2,FALSE)","v":"Endowment Student Aid"},"75002000","","","","",""]
["75","629",null,null,"AUGUSTA H & GRACE BARRETT SCH ","1081RN629086","20500","18100","65804","75002000",{"$f":"VLOOKUP(TRIM(J11138),'Transactional Departments'!A:B,2,FALSE)","v":"Endowment Student Aid"},"75002000","","","","",""]
["75","629",null,null,"VIRGINIA WILBANKS KILGORE SCH ","1081RN629088","20500","18100","65840","75002000",{"$f":"VLOOKUP(TRIM(J11139),'Transactional Departments'!A:B,2,FALSE)","v":"Endowment Student Aid"},"75002000","","","","",""]
["75","629",null,null,"TERRY F BARKER SCH            ","1081RN629090","20500","18100","65846","75002000",{"$f":"VLOOKUP(TRIM(J11140),'Transactional Departments'!A:B,2,FALSE)","v":"Endowment Student Aid"},"75002000","","","","",""]
["75","629",null,null,"LOIS DOWDLE COBB SCHOLARSHIP  ","1081RN629099","20500","18100","65849","75002000",{"$f":"VLOOKUP(TRIM(J11141),'Transactional Departments'!A:B,2,FALSE)","v":"Endowment Student Aid"},"75002000","","","","",""]
["75","629",null,null,"GEORGE ERWIN KEEN SCHOLARSHIP ","1081RN629103","20500","18100","65870","75002000",{"$f":"VLOOKUP(TRIM(J11142),'Transactional Departments'!A:B,2,FALSE)","v":"Endowment Student Aid"},"75002000","","","","",""]
["75","629",null,null,"PEYTON ANDERSON               ","1081RN629109","20500","18100","65872","75002000",{"$f":"VLOOKUP(TRIM(J11143),'Transactional Departments'!A:B,2,FALSE)","v":"Endowment Student Aid"},"75002000","","","","",""]
["75","629",null,null,"BILL PHIPPEN SCHOLARSHIP FUND ","1081RN629110","20500","18100","65873","75002000",{"$f":"VLOOKUP(TRIM(J11144),'Transactional Departments'!A:B,2,FALSE)","v":"Endowment Student Aid"},"75002000","","","","",""]
["75","629",null,null,"DANA BLACKMAR SCHOLARSHIP     ","1081RN629112","20500","18100","65889","75002000",{"$f":"VLOOKUP(TRIM(J11145),'Transactional Departments'!A:B,2,FALSE)","v":"Endowment Student Aid"},"75002000","","","","",""]
["75","629",null,null,"CM & BERNICE STRIPLING SCHOL  ","1081RN629115","20500","18100","65894","75002000",{"$f":"VLOOKUP(TRIM(J11146),'Transactional Departments'!A:B,2,FALSE)","v":"Endowment Student Aid"},"75002000","","","","",""]
["75","629",null,null,"GRACE H. BARNES SCHOLARSHIP   ","1081RN629118","20500","18100","65899","75002000",{"$f":"VLOOKUP(TRIM(J11147),'Transactional Departments'!A:B,2,FALSE)","v":"Endowment Student Aid"},"75002000","","","","",""]
["75","629",null,null,"M J KAPLAN GRAD STUDENT FUND  ","1081RN629121","20500","18100","65790","75002000",{"$f":"VLOOKUP(TRIM(J11148),'Transactional Departments'!A:B,2,FALSE)","v":"Endowment Student Aid"},"75002000","","","","",""]
["75","629",null,null,"SUE W CROMARTIE ART EDUCATION ","1081RN629130","20500","18100","65793","75002000",{"$f":"VLOOKUP(TRIM(J11149),'Transactional Departments'!A:B,2,FALSE)","v":"Endowment Student Aid"},"75002000","","","","",""]
["75","629",null,null,"STEVE MAGILO SCHOLARSHIP      ","1081RN629138","20500","18100","65608","75002000",{"$f":"VLOOKUP(TRIM(J11150),'Transactional Departments'!A:B,2,FALSE)","v":"Endowment Student Aid"},"75002000","","","","",""]
["75","629",null,null,"JOSEPH B. GITTLER FELLOWSHIP  ","1081RN629141","20500","18100","65607","75002000",{"$f":"VLOOKUP(TRIM(J11151),'Transactional Departments'!A:B,2,FALSE)","v":"Endowment Student Aid"},"75002000","","","","",""]
["75","629",null,null,"JOHN C & LENA B O ROWAN MEM   ","1081RN629145","20500","18100","65609","75002000",{"$f":"VLOOKUP(TRIM(J11152),'Transactional Departments'!A:B,2,FALSE)","v":"Endowment Student Aid"},"75002000","","","","",""]
["75","629",null,null,"JOANN T GOODMAN SCHOLARSHIP   ","1081RN629147","20500","18100","65733","75002000",{"$f":"VLOOKUP(TRIM(J11153),'Transactional Departments'!A:B,2,FALSE)","v":"Endowment Student Aid"},"75002000","","","","",""]
["75","629",null,null,"M E THRELKELD SCHOLARSHIP FUND","1081RN629155","20500","18100","65615","75002000",{"$f":"VLOOKUP(TRIM(J11154),'Transactional Departments'!A:B,2,FALSE)","v":"Endowment Student Aid"},"75002000","","","","",""]
["75","629",null,null,"C M BROWN SCHOLARSHIP         ","1081RN629157","20500","18100","65906","75002000",{"$f":"VLOOKUP(TRIM(J11155),'Transactional Departments'!A:B,2,FALSE)","v":"Endowment Student Aid"},"75002000","","","","",""]
["75","629",null,null,"HOUSING INCENTIVE             ","1081RN629175","20500","18100","65000","75002000",{"$f":"VLOOKUP(TRIM(J11156),'Transactional Departments'!A:B,2,FALSE)","v":"Endowment Student Aid"},"75002000","","","","",""]
["75","629",null,null,"A F CHURCHILL SCHOLARSHIP     ","4181RN629045","20500","18100","65966","75002000",{"$f":"VLOOKUP(TRIM(J11157),'Transactional Departments'!A:B,2,FALSE)","v":"Endowment Student Aid"},"75002000","","","","",""]
["75","629",null,null,"FLOYD ANDEMILY JORDAN SCH     ","4181RN629051","20500","18100","65834","75002000",{"$f":"VLOOKUP(TRIM(J11158),'Transactional Departments'!A:B,2,FALSE)","v":"Endowment Student Aid"},"75002000","","","","",""]
["75","629",null,null,"FLORA ROGERS SCHOLARSHIP FUND ","4181RN629052","20500","18100","65858","75002000",{"$f":"VLOOKUP(TRIM(J11159),'Transactional Departments'!A:B,2,FALSE)","v":"Endowment Student Aid"},"75002000","","","","",""]
["75","629",null,null,"VARINA & L B SLAUGHTER SCH    ","4181RN629076","20500","18100","65865","75002000",{"$f":"VLOOKUP(TRIM(J11160),'Transactional Departments'!A:B,2,FALSE)","v":"Endowment Student Aid"},"75002000","","","","",""]
["75","629",null,null,"C & S NATIONAL BANK SCH       ","4181RN629081","20500","18100","65967","75002000",{"$f":"VLOOKUP(TRIM(J11161),'Transactional Departments'!A:B,2,FALSE)","v":"Endowment Student Aid"},"75002000","","","","",""]
["75","629",null,null,"JAMES BUTTOLPH BURCH SCH      ","4181RN629091","20500","18100","65841","75002000",{"$f":"VLOOKUP(TRIM(J11162),'Transactional Departments'!A:B,2,FALSE)","v":"Endowment Student Aid"},"75002000","","","","",""]
["75","629",null,null,"JOHN H HOSCH JR SCH           ","4181RN629095","20500","18100","65980","75002000",{"$f":"VLOOKUP(TRIM(J11163),'Transactional Departments'!A:B,2,FALSE)","v":"Endowment Student Aid"},"75002000","","","","",""]
["75","629",null,null,"ROY B DAY SCHOLARSHIP         ","4181RN629102","20500","18100","65847","75002000",{"$f":"VLOOKUP(TRIM(J11164),'Transactional Departments'!A:B,2,FALSE)","v":"Endowment Student Aid"},"75002000","","","","",""]
["75","629",null,null,"THOMAS F COMER SCHOLARSHIP    ","4181RN629107","20500","18100","65871","75002000",{"$f":"VLOOKUP(TRIM(J11165),'Transactional Departments'!A:B,2,FALSE)","v":"Endowment Student Aid"},"75002000","","","","",""]
["75","629",null,null,"ALBON B HAILEY SCHOLARSHIP    ","4181RN629108","20500","18100","65879","75002000",{"$f":"VLOOKUP(TRIM(J11166),'Transactional Departments'!A:B,2,FALSE)","v":"Endowment Student Aid"},"75002000","","","","",""]
["75","629",null,null,"GEORGE R. GILMER              ","4181RN629119","20500","18100","65886","75002000",{"$f":"VLOOKUP(TRIM(J11167),'Transactional Departments'!A:B,2,FALSE)","v":"Endowment Student Aid"},"75002000","","","","",""]
["75","629",null,null,"FRANK G LITTLE SCHOLARSHIP    ","4181RN629140","20500","18100","65893","75002000",{"$f":"VLOOKUP(TRIM(J11168),'Transactional Departments'!A:B,2,FALSE)","v":"Endowment Student Aid"},"75002000","","","","",""]
["75","631",null,null,"FOUNDATION DEPOSIT ACCOUNT    ","1081RN631001","20200","18100","67759","75004000",{"$f":"VLOOKUP(TRIM(J11169),'Transactional Departments'!A:B,2,FALSE)","v":"Foundation Student Aid"},"75004000","","","","",""]
["75","631",null,null,"BRADLEY-TURNER SCHOLARSHIP    ","1081RN631149","20200","18100","67761","75004000",{"$f":"VLOOKUP(TRIM(J11170),'Transactional Departments'!A:B,2,FALSE)","v":"Foundation Student Aid"},"75004000","","","","",""]
["75","631",null,null,"GEORGIA INCENTIVE SCHOLARSHIP ","1081RN631165","20200","18100","67762","75004000",{"$f":"VLOOKUP(TRIM(J11171),'Transactional Departments'!A:B,2,FALSE)","v":"Foundation Student Aid"},"75004000","","","","",""]
["75","631",null,null,"WOODRUFF SCHOLARSHIP          ","1081RN631166","20200","18100","67763","75004000",{"$f":"VLOOKUP(TRIM(J11172),'Transactional Departments'!A:B,2,FALSE)","v":"Foundation Student Aid"},"75004000","","","","",""]
["75","631",null,null,"ALUMNI ASSOC ENDOWED SCH      ","1081RN631171","20200","18100","67765","75004000",{"$f":"VLOOKUP(TRIM(J11173),'Transactional Departments'!A:B,2,FALSE)","v":"Foundation Student Aid"},"75004000","","","","",""]
["75","631",null,null,"GOUIZETTA FOUNDATION SCHRSHIP ","1081RN631175","20200","18100","67766","75004000",{"$f":"VLOOKUP(TRIM(J11174),'Transactional Departments'!A:B,2,FALSE)","v":"Foundation Student Aid"},"75004000","","","","",""]
["75","631",null,null,"COKE FIRST GENERATION SCH     ","1081RN631177","20200","18100","67767","75004000",{"$f":"VLOOKUP(TRIM(J11175),'Transactional Departments'!A:B,2,FALSE)","v":"Foundation Student Aid"},"75004000","","","","",""]
["75","631",null,null,"ONE UGA II                    ","1081RN631180","20200","18100","67768","75004000",{"$f":"VLOOKUP(TRIM(J11176),'Transactional Departments'!A:B,2,FALSE)","v":"Foundation Student Aid"},"75004000","","","","",""]
["75","631",null,null,"GOIZUETTA FOUNDATION II       ","1081RN631181","20200","18100","67769","75004000",{"$f":"VLOOKUP(TRIM(J11177),'Transactional Departments'!A:B,2,FALSE)","v":"Foundation Student Aid"},"75004000","","","","",""]
["75","631",null,null,"CHARTER SCHOLARSHIP II        ","1081RN631182","20200","18100","67770","75004000",{"$f":"VLOOKUP(TRIM(J11178),'Transactional Departments'!A:B,2,FALSE)","v":"Foundation Student Aid"},"75004000","","","","",""]
["75","631",null,null,"HARRIS SCHOLARSHIP II         ","1081RN631186","20200","18100","67771","75004000",{"$f":"VLOOKUP(TRIM(J11179),'Transactional Departments'!A:B,2,FALSE)","v":"Foundation Student Aid"},"75004000","","","","",""]
["75","631",null,null,"HENRY KING STANFORD SCHOLAR II","1081RN631187","20200","18100","67772","75004000",{"$f":"VLOOKUP(TRIM(J11180),'Transactional Departments'!A:B,2,FALSE)","v":"Foundation Student Aid"},"75004000","","","","",""]
["75","631",null,null,"DREW CHARTER SCHOOL SCH       ","1081RN631196","20200","18100","67773","75004000",{"$f":"VLOOKUP(TRIM(J11181),'Transactional Departments'!A:B,2,FALSE)","v":"Foundation Student Aid"},"75004000","","","","",""]
["75","631",null,null,"PRESIDENTIAL SCHOLARSHIP      ","1081RN631202","20200","18100","67774","75004000",{"$f":"VLOOKUP(TRIM(J11182),'Transactional Departments'!A:B,2,FALSE)","v":"Foundation Student Aid"},"75004000","","","","",""]
["75","631",null,null,"GOIZUETA FDN UNDERGRADUATE    ","1081RN631207","20200","18100","67775","75004000",{"$f":"VLOOKUP(TRIM(J11183),'Transactional Departments'!A:B,2,FALSE)","v":"Foundation Student Aid"},"75004000","","","","",""]
["75","631",null,null,"GOIZUETA FOUNDATION LEADERSHIP","1081RN631208","20200","18100","67776","75004000",{"$f":"VLOOKUP(TRIM(J11184),'Transactional Departments'!A:B,2,FALSE)","v":"Foundation Student Aid"},"75004000","","","","",""]
["75","631",null,null,"GOIZUETA FOUNDATION TRANSFER  ","1081RN631209","20200","18100","67777","75004000",{"$f":"VLOOKUP(TRIM(J11185),'Transactional Departments'!A:B,2,FALSE)","v":"Foundation Student Aid"},"75004000","","","","",""]
["75","631",null,null,"BALDWIN SCHOLARSHIP           ","1081RN631237","20200","18100","67778","75004000",{"$f":"VLOOKUP(TRIM(J11186),'Transactional Departments'!A:B,2,FALSE)","v":"Foundation Student Aid"},"75004000","","","","",""]
["75","631",null,null,"CHARLES AND ARLENE WOODS SCH  ","1081RN631245","20200","18100","67779","75004000",{"$f":"VLOOKUP(TRIM(J11187),'Transactional Departments'!A:B,2,FALSE)","v":"Foundation Student Aid"},"75004000","","","","",""]
["75","631",null,null,"NATIONAL MERIT 14             ","1081RN631250","20200","18100","67780","75004000",{"$f":"VLOOKUP(TRIM(J11188),'Transactional Departments'!A:B,2,FALSE)","v":"Foundation Student Aid"},"75004000","","","","",""]
["75","631",null,null,"GLENN FAMILY GEORGIA ACCESS SC","1081RN631251","20200","18100","67781","75004000",{"$f":"VLOOKUP(TRIM(J11189),'Transactional Departments'!A:B,2,FALSE)","v":"Foundation Student Aid"},"75004000","","","","",""]
["75","631",null,null,"HOARD MEMORIAL FIRST TEE SCH  ","1081RN631253","20200","18100","67783","75004000",{"$f":"VLOOKUP(TRIM(J11190),'Transactional Departments'!A:B,2,FALSE)","v":"Foundation Student Aid"},"75004000","","","","",""]
["75","631",null,null,"LYNES & EUGENIE SLOSS SCHOLAR ","1081RN631256","20200","18100","67785","75004000",{"$f":"VLOOKUP(TRIM(J11191),'Transactional Departments'!A:B,2,FALSE)","v":"Foundation Student Aid"},"75004000","","","","",""]
["75","631",null,null,"CHICK-FIL-A PEACH BOWL SCH    ","1081RN631257","20200","18100","67786","75004000",{"$f":"VLOOKUP(TRIM(J11192),'Transactional Departments'!A:B,2,FALSE)","v":"Foundation Student Aid"},"75004000","","","","",""]
["75","631",null,null,"PRESIDENTIAL SCHOLARSHIP II   ","1081RN631258","20200","18100","67864","75004000",{"$f":"VLOOKUP(TRIM(J11193),'Transactional Departments'!A:B,2,FALSE)","v":"Foundation Student Aid"},"75004000","","","","",""]
["75","632",null,null,"PELL CLOSED AWARD YEARS       ","1081RN632010","20100","18100","61PEL","75003000",{"$f":"VLOOKUP(TRIM(J11194),'Transactional Departments'!A:B,2,FALSE)","v":"Federal Student Aid"},"75003000","","","","","75CLOSED  "]
["75","632",null,null,"PELL GRANT 16-17              ","1081RN632117","20100","18100","61PEL","75003000",{"$f":"VLOOKUP(TRIM(J11195),'Transactional Departments'!A:B,2,FALSE)","v":"Federal Student Aid"},"75003000","","","","","7520162017"]
["75","632",null,null,"PELL GRANT 17-18              ","1081RN632118","20100","18100","61PEL","75003000",{"$f":"VLOOKUP(TRIM(J11196),'Transactional Departments'!A:B,2,FALSE)","v":"Federal Student Aid"},"75003000","","","","","7520172018"]
["75","632",null,null,"SEOG 16-17                    ","1081RN632217","20100","18100","61SEG","75003000",{"$f":"VLOOKUP(TRIM(J11197),'Transactional Departments'!A:B,2,FALSE)","v":"Federal Student Aid"},"75003000","","","","","7520162017"]
["75","632",null,null,"SEOG 17-18                    ","1081RN632218","20100","18100","61SEG","75003000",{"$f":"VLOOKUP(TRIM(J11198),'Transactional Departments'!A:B,2,FALSE)","v":"Federal Student Aid"},"75003000","","","","","7520172018"]
["75","632",null,null,"SEOG CLOSED AWARD YEARS       ","4181RN632009","20100","18100","61033","75003000",{"$f":"VLOOKUP(TRIM(J11199),'Transactional Departments'!A:B,2,FALSE)","v":"Federal Student Aid"},"75003000","","","","",""]
["75","632",null,null,"GRAD PLUS LOAN 16-17          ","9087GN632517","61000","","","75003000",{"$f":"VLOOKUP(TRIM(J11200),'Transactional Departments'!A:B,2,FALSE)","v":"Federal Student Aid"},"75003000","","","","","7520162017"]
["75","632",null,null,"GRAD PLUS LOAN 17-18          ","9087GN632518","61000","","","75003000",{"$f":"VLOOKUP(TRIM(J11201),'Transactional Departments'!A:B,2,FALSE)","v":"Federal Student Aid"},"75003000","","","","","7520172018"]
["75","632",null,null,"FEDERAL DIRECT SUB LOAN 16-17 ","9087GN632617","61000","","","75003000",{"$f":"VLOOKUP(TRIM(J11202),'Transactional Departments'!A:B,2,FALSE)","v":"Federal Student Aid"},"75003000","","","","","7520162017"]
["75","632",null,null,"FEDERAL DIRECT SUB LOAN 17-18 ","9087GN632618","61000","","","75003000",{"$f":"VLOOKUP(TRIM(J11203),'Transactional Departments'!A:B,2,FALSE)","v":"Federal Student Aid"},"75003000","","","","","7520172018"]
["75","632",null,null,"FEDERA DIRECT UNSUB LOAN 16-17","9087GN632717","61000","","","75003000",{"$f":"VLOOKUP(TRIM(J11204),'Transactional Departments'!A:B,2,FALSE)","v":"Federal Student Aid"},"75003000","","","","","7520162017"]
["75","632",null,null,"FEDERA DIRECT UNSUB LOAN 17-18","9087GN632718","61000","","","75003000",{"$f":"VLOOKUP(TRIM(J11205),'Transactional Departments'!A:B,2,FALSE)","v":"Federal Student Aid"},"75003000","","","","","7520172018"]
["75","632",null,null,"FEDERAL DIRECT PLUS LOAN 16-17","9087GN632817","61000","","","75003000",{"$f":"VLOOKUP(TRIM(J11206),'Transactional Departments'!A:B,2,FALSE)","v":"Federal Student Aid"},"75003000","","","","","7520162017"]
["75","632",null,null,"FEDERAL DIRECT PLUS LOAN 17-18","9087GN632818","61000","","","75003000",{"$f":"VLOOKUP(TRIM(J11207),'Transactional Departments'!A:B,2,FALSE)","v":"Federal Student Aid"},"75003000","","","","","7520172018"]
["75","632",null,null,"84268 FED DIRECT LOAN REPAYMNT","9087GN632901","61000","","","75003000",{"$f":"VLOOKUP(TRIM(J11208),'Transactional Departments'!A:B,2,FALSE)","v":"Federal Student Aid"},"75003000","","","","",""]
["75","633",null,null,"MINORITY SCH ENG EDUC 17-18   ","1081RN633518","20100","18100","62MSE","75005000",{"$f":"VLOOKUP(TRIM(J11209),'Transactional Departments'!A:B,2,FALSE)","v":"State Student Aid"},"75005000","","","","","7520172018"]
["75","633",null,null,"GA PUBLIC SAFE MEMORIAL 17-18 ","1081RN633618","20100","18100","62PSM","75005000",{"$f":"VLOOKUP(TRIM(J11210),'Transactional Departments'!A:B,2,FALSE)","v":"State Student Aid"},"75005000","","","","","7520172018"]
["75","633",null,null,"GEORGIA NATIONAL GUARD 17-18  ","1081RN633718","20100","18100","62NTG","75005000",{"$f":"VLOOKUP(TRIM(J11211),'Transactional Departments'!A:B,2,FALSE)","v":"State Student Aid"},"75005000","","","","","7520172018"]
["75","633",null,null,"GA HERO 17-18                 ","1081RN633918","20100","18100","62GHO","75005000",{"$f":"VLOOKUP(TRIM(J11212),'Transactional Departments'!A:B,2,FALSE)","v":"State Student Aid"},"75005000","","","","","7520172018"]
["75","633",null,null,"STATE FUNDS PRIOR YEAR ACCOUNT","4181RN633011","20100","18100","62000","75005000",{"$f":"VLOOKUP(TRIM(J11213),'Transactional Departments'!A:B,2,FALSE)","v":"State Student Aid"},"75005000","","","","",""]
["75","633",null,null,"GA HERO 16-17                 ","4181RN633917","20100","18100","62000","75005000",{"$f":"VLOOKUP(TRIM(J11214),'Transactional Departments'!A:B,2,FALSE)","v":"State Student Aid"},"75005000","","","","",""]
["75","633",null,null,"HOPE PRIOR YEAR(S)            ","9087GN633010","61000","","","75005000",{"$f":"VLOOKUP(TRIM(J11215),'Transactional Departments'!A:B,2,FALSE)","v":"State Student Aid"},"75005000","","","","",""]
["75","633",null,null,"HOPE SCHOLARSHIP 14-15        ","9087GN633115","61000","","","75005000",{"$f":"VLOOKUP(TRIM(J11216),'Transactional Departments'!A:B,2,FALSE)","v":"State Student Aid"},"75005000","","","","","7520142015"]
["75","633",null,null,"HOPE SCHOLARSHIP 15-16        ","9087GN633116","61000","","","75005000",{"$f":"VLOOKUP(TRIM(J11217),'Transactional Departments'!A:B,2,FALSE)","v":"State Student Aid"},"75005000","","","","","7520152016"]
["75","633",null,null,"HOPE SCHOLARSHIP 16-17        ","9087GN633117","61000","","","75005000",{"$f":"VLOOKUP(TRIM(J11218),'Transactional Departments'!A:B,2,FALSE)","v":"State Student Aid"},"75005000","","","","","7520162017"]
["75","633",null,null,"HOPE SCHOLARSHIP 17-18        ","9087GN633118","61000","","","75005000",{"$f":"VLOOKUP(TRIM(J11219),'Transactional Departments'!A:B,2,FALSE)","v":"State Student Aid"},"75005000","","","","","7520172018"]
["75","633",null,null,"HOPE INCOME 16-17             ","9087GN633136","61000","","","75005000",{"$f":"VLOOKUP(TRIM(J11220),'Transactional Departments'!A:B,2,FALSE)","v":"State Student Aid"},"75005000","","","","","7520162017"]
["75","633",null,null,"HOPE INCOME 17-18             ","9087GN633137","61000","","","75005000",{"$f":"VLOOKUP(TRIM(J11221),'Transactional Departments'!A:B,2,FALSE)","v":"State Student Aid"},"75005000","","","","","7520172018"]
["75","633",null,null,"ZELL MILLER SCHOLARSHIP 15-16 ","9087GN633216","61000","","","75005000",{"$f":"VLOOKUP(TRIM(J11222),'Transactional Departments'!A:B,2,FALSE)","v":"State Student Aid"},"75005000","","","","","7520152016"]
["75","633",null,null,"ZELL MILLER SCHOLARSHIP 16-17 ","9087GN633217","61000","","","75005000",{"$f":"VLOOKUP(TRIM(J11223),'Transactional Departments'!A:B,2,FALSE)","v":"State Student Aid"},"75005000","","","","","7520162017"]
["75","633",null,null,"ZELL MILLER SCHOLARSHIP 17-18 ","9087GN633218","61000","","","75005000",{"$f":"VLOOKUP(TRIM(J11224),'Transactional Departments'!A:B,2,FALSE)","v":"State Student Aid"},"75005000","","","","","7520172018"]
["75","633",null,null,"ZELL MILLER INCOME 16-17      ","9087GN633236","61000","","","75005000",{"$f":"VLOOKUP(TRIM(J11225),'Transactional Departments'!A:B,2,FALSE)","v":"State Student Aid"},"75005000","","","","","7520162017"]
["75","633",null,null,"ZELL MILLER INCOME 17-18      ","9087GN633237","61000","","","75005000",{"$f":"VLOOKUP(TRIM(J11226),'Transactional Departments'!A:B,2,FALSE)","v":"State Student Aid"},"75005000","","","","","7520172018"]
["75","633",null,null,"STUDENT ACCESS LOAN 17-18     ","9087GN633318","61000","","","75005000",{"$f":"VLOOKUP(TRIM(J11227),'Transactional Departments'!A:B,2,FALSE)","v":"State Student Aid"},"75005000","","","","","7520172018"]
["75","633",null,null,"HOPE SCHOLARSHIP RETRO        ","9087GN633400","61000","","","75005000",{"$f":"VLOOKUP(TRIM(J11228),'Transactional Departments'!A:B,2,FALSE)","v":"State Student Aid"},"75005000","","","","",""]
["75","633",null,null,"ZELL SCHOLARSHIP RETRO        ","9087GN633401","61000","","","75005000",{"$f":"VLOOKUP(TRIM(J11229),'Transactional Departments'!A:B,2,FALSE)","v":"State Student Aid"},"75005000","","","","",""]
["75","634",null,null,"GENERAL SCHOLARSHIP FUND      ","1081RN634020","20100","18100","64S03","75006000",{"$f":"VLOOKUP(TRIM(J11230),'Transactional Departments'!A:B,2,FALSE)","v":"Other Student Aid"},"75006000","","","","",""]
["75","634",null,null,"FARM CREDIT BANK COL SCHOL    ","1081RN634022","20100","18100","64S04","75006000",{"$f":"VLOOKUP(TRIM(J11231),'Transactional Departments'!A:B,2,FALSE)","v":"Other Student Aid"},"75006000","","","","",""]
["75","634",null,null,"THE PRENTISS COURSON SCH      ","1081RN634057","20100","18100","64S09","75006000",{"$f":"VLOOKUP(TRIM(J11232),'Transactional Departments'!A:B,2,FALSE)","v":"Other Student Aid"},"75006000","","","","",""]
["75","634",null,null,"POULTRY SCH                   ","1081RN634058","20100","18100","64S10","75006000",{"$f":"VLOOKUP(TRIM(J11233),'Transactional Departments'!A:B,2,FALSE)","v":"Other Student Aid"},"75006000","","","","",""]
["75","634",null,null,"PRESSER FOUNDATION            ","1081RN634059","20100","18100","64S11","75006000",{"$f":"VLOOKUP(TRIM(J11234),'Transactional Departments'!A:B,2,FALSE)","v":"Other Student Aid"},"75006000","","","","",""]
["75","634",null,null,"FREEMAN SCHOLARSHIP           ","1081RN634064","20100","18100","64S12","75006000",{"$f":"VLOOKUP(TRIM(J11235),'Transactional Departments'!A:B,2,FALSE)","v":"Other Student Aid"},"75006000","","","","",""]
["75","634",null,null,"REDCOAT BAND SCH-ATHLETIC     ","1081RN634075","20100","18100","64S13","75006000",{"$f":"VLOOKUP(TRIM(J11236),'Transactional Departments'!A:B,2,FALSE)","v":"Other Student Aid"},"75006000","","","","",""]
["75","634",null,null,"BURGESS SCHOLARSHIP FUND      ","1081RN634092","20100","18100","64S15","75006000",{"$f":"VLOOKUP(TRIM(J11237),'Transactional Departments'!A:B,2,FALSE)","v":"Other Student Aid"},"75006000","","","","",""]
["75","634",null,null,"STUDENT ACTIVITIES-VARIOUS    ","1081RN634105","20100","18100","64S16","75006000",{"$f":"VLOOKUP(TRIM(J11238),'Transactional Departments'!A:B,2,FALSE)","v":"Other Student Aid"},"75006000","","","","",""]
["75","634",null,null,"SCH FOREST RESOURCES - VARIOUS","1081RN634146","20100","18100","64S17","75006000",{"$f":"VLOOKUP(TRIM(J11239),'Transactional Departments'!A:B,2,FALSE)","v":"Other Student Aid"},"75006000","","","","",""]
["75","634",null,null,"CYNTHIA CURTIS SCHOLARSHIP    ","1081RN634157","20100","18100","64S19","75006000",{"$f":"VLOOKUP(TRIM(J11240),'Transactional Departments'!A:B,2,FALSE)","v":"Other Student Aid"},"75006000","","","","",""]
["75","634",null,null,"INSURANCE SCHOLARSHIP FUND    ","1081RN634159","20100","18100","64S20","75006000",{"$f":"VLOOKUP(TRIM(J11241),'Transactional Departments'!A:B,2,FALSE)","v":"Other Student Aid"},"75006000","","","","",""]
["75","634",null,null,"HORTICULTURE - VARIOUS        ","1081RN634161","20100","18100","64S22","75006000",{"$f":"VLOOKUP(TRIM(J11242),'Transactional Departments'!A:B,2,FALSE)","v":"Other Student Aid"},"75006000","","","","",""]
["75","634",null,null,"BERNER SCHOLARSHIP            ","1081RN634171","20100","18100","64S24","75006000",{"$f":"VLOOKUP(TRIM(J11243),'Transactional Departments'!A:B,2,FALSE)","v":"Other Student Aid"},"75006000","","","","",""]
["75","634",null,null,"LAW SCHOLARSHIP-VARIOUS       ","1081RN634178","20100","18100","64S27","75006000",{"$f":"VLOOKUP(TRIM(J11244),'Transactional Departments'!A:B,2,FALSE)","v":"Other Student Aid"},"75006000","","","","",""]
["75","634",null,null,"JAMES D EUNICE MEMORIAL SCH   ","1081RN634179","20100","18100","64S28","75006000",{"$f":"VLOOKUP(TRIM(J11245),'Transactional Departments'!A:B,2,FALSE)","v":"Other Student Aid"},"75006000","","","","",""]
["75","634",null,null,"STUDY ABROAD - GENERAL FUND   ","4181RN634003","20100","18100","64S01","75006000",{"$f":"VLOOKUP(TRIM(J11246),'Transactional Departments'!A:B,2,FALSE)","v":"Other Student Aid"},"75006000","","","","",""]
["75","634",null,null,"ACCOUNTING EXCELLENCE SCH     ","4181RN634012","20100","18100","64S02","75006000",{"$f":"VLOOKUP(TRIM(J11247),'Transactional Departments'!A:B,2,FALSE)","v":"Other Student Aid"},"75006000","","","","",""]
["75","634",null,null,"AGRICULTURE - VARIOUS         ","4181RN634034","20100","18100","64S05","75006000",{"$f":"VLOOKUP(TRIM(J11248),'Transactional Departments'!A:B,2,FALSE)","v":"Other Student Aid"},"75006000","","","","",""]
["75","634",null,null,"JOEL HIRSCH GOLDBERG MEM FUND ","4181RN634036","20100","18100","64S06","75006000",{"$f":"VLOOKUP(TRIM(J11249),'Transactional Departments'!A:B,2,FALSE)","v":"Other Student Aid"},"75006000","","","","",""]
["75","634",null,null,"CFCS - VARIOUS                ","4181RN634038","20100","18100","64S07","75006000",{"$f":"VLOOKUP(TRIM(J11250),'Transactional Departments'!A:B,2,FALSE)","v":"Other Student Aid"},"75006000","","","","",""]
["75","634",null,null,"JONES S M SCHOLARSHIP         ","4181RN634043","20100","18100","64S08","75006000",{"$f":"VLOOKUP(TRIM(J11251),'Transactional Departments'!A:B,2,FALSE)","v":"Other Student Aid"},"75006000","","","","",""]
["75","634",null,null,"YANCEY GOODLOE SCHOLARSHIP    ","4181RN634080","20100","18100","64S14","75006000",{"$f":"VLOOKUP(TRIM(J11252),'Transactional Departments'!A:B,2,FALSE)","v":"Other Student Aid"},"75006000","","","","",""]
["75","634",null,null,"CHARLES A ADAMS SCHOLARSHIP   ","4181RN634149","20100","18100","64S18","75006000",{"$f":"VLOOKUP(TRIM(J11253),'Transactional Departments'!A:B,2,FALSE)","v":"Other Student Aid"},"75006000","","","","",""]
["75","634",null,null,"REAL ESTATE SCHOLARSHIP FUND  ","4181RN634160","20100","18100","64S21","75006000",{"$f":"VLOOKUP(TRIM(J11254),'Transactional Departments'!A:B,2,FALSE)","v":"Other Student Aid"},"75006000","","","","",""]
["75","634",null,null,"RUTH JANZ RANDLE ESTATE GIFT  ","4181RN634170","20100","18100","64S23","75006000",{"$f":"VLOOKUP(TRIM(J11255),'Transactional Departments'!A:B,2,FALSE)","v":"Other Student Aid"},"75006000","","","","",""]
["75","634",null,null,"ACTION INC HEADSTART SCH FUND ","4181RN634175","20100","18100","64S25","75006000",{"$f":"VLOOKUP(TRIM(J11256),'Transactional Departments'!A:B,2,FALSE)","v":"Other Student Aid"},"75006000","","","","",""]
["75","634",null,null,"USG FOUNDATION NEED BASED SCH ","4181RN634177","20100","18100","64S26","75006000",{"$f":"VLOOKUP(TRIM(J11257),'Transactional Departments'!A:B,2,FALSE)","v":"Other Student Aid"},"75006000","","","","",""]

{"sheet":"Speedtypes","index":3,"n_rows":1,"n_cols":18,"rows_kept":1,"cut":false,"hidden":false,"merged":[]}
["Unit (Hide)","Legacy Dept (Hide)","Speedtype","Speedtype Desc","Description of Chart String\n(Hide)","Legacy COA\n(Hide)","Fund ","Program\n(Optional for Revenues, Required for Expenditures)","Class","Department","Dept Name","Original Department","PCBU","Project ID","Activity ID","Operating Unit","Chartfield 1","Will be Used in WORKS?"]

{"sheet":"Department Listing","index":4,"n_rows":6096,"n_cols":5,"rows_kept":6096,"cut":false,"hidden":false,"merged":[]}
["Department #","Dept Description","Budget Only?","Rollup to","Accepts Transactions? "]
[null,"None",null,null,"Y"]
["00000000","All Department","Y",null,"N"]
["10000000","Office of the President","N","00000000","N"]
["10001000","President's Office","N","10000000","Y"]
["10001001","Subsistence Allowance","N","10000000","Y"]
["10001002","Admin Minority Recruitment","N","10000000","Y"]
["10001003","457(f) Deferred Compensation","N","10000000","Y"]
["10002000","Internal Audit","N","10000000","Y"]
["10003000","Applicant Clearinghouse","N","10000000","Y"]
["10004000","Equal Opportunity Office","N","10000000","Y"]
["10005000","Legal Affairs Office","N","10000000","Y"]
["14000000","SR VP for Acad Aff & Provost","N","00000000","N"]
["14001000","Academic Affairs","N","14000000","N"]
["14001001","AA Administration","N","14001000","Y"]
["14001002","Communications","N","14001000","Y"]
["14001003","VPAA Tech","N","14001000","Y"]
["14001100","Faculty Affairs","N","14000000","N"]
["14001101","Faculty Development","N","14001100","Y"]
["14001102","Elements","N","14001100","Y"]
["14001103","Faculty Affairs Admin","N","14001100","Y"]
["14001200","Academic Programs","N","14000000","N"]
["14001201","Commencement","N","14001200","Y"]
["14001202","Honors Day","N","14001200","Y"]
["14001203","Charter Lecture","N","14001200","Y"]
["14001204","Academic Programs Admin","N","14001200","Y"]
["14001300","Vice Provost","N","14000000","N"]
["14001301","Council For The Arts","N","14001300","Y"]
["14001302","Accreditation","N","14001300","Y"]
["14001303","Program Review","N","14001300","Y"]
["14001304","Study in 2nd Discipline","N","14001300","Y"]
["14001305","State of Art Conference","N","14001300","Y"]
["14001400","University Wide Support","N","14000000","Y"]
["14001500","Memberships","N","14000000","Y"]
["14002000","Georgia Museum Of Art","N","14000000","N"]
["14002001","GMOA Departmental Adm","N","14002000","Y"]
["14002002","Museum Shop","N","14002000","Y"]
["14002003","Museum Publications","N","14002000","Y"]
["14002004","Museum Rentals","N","14002000","Y"]
["14002005","Museum Daccessioning","N","14002000","Y"]
["14002006","Green Symposium","N","14002000","Y"]
["14002007","GMOA Education Workshop","N","14002000","Y"]
["14003000","Honors","N","14000000","N"]
["14003001","Instruction","N","14003000","Y"]
["14003002","Honors IT","N","14003000","Y"]
["14003003","Honors Acad Support","N","14003000","Y"]
["14003004","CURO Program","N","14003000","Y"]
["14004000","Institute Of Higher Education","N","14000000","N"]
["14004001","IHE Administration","N","14004000","Y"]
["14004002","Governer'S Teaching Fellows","N","14004000","Y"]
["14004003","Executive Edd","N","14004000","Y"]
["14004004","UGARF Support","N","14004000","Y"]
["14005000","Office Of Institutional Divers","N","14000000","N"]
["14005001","OID Administration","N","14005000","Y"]
["14005002","Sponsorships","N","14005000","Y"]
["14005003","OID Programs","N","14005000","Y"]
["14005004","Faculty Support","N","14005000","Y"]
["14005100","OID Projects","N","14000000","N"]
["14005101","OID Projects Admin","N","14005100","Y"]
["14005102","Freedom Breakfast","N","14005100","Y"]
["14005103","Div Training","N","14005100","Y"]
["14005104","Faculty Support","N","14005100","Y"]
["14005200","Georgia Daze Program","N","14000000","Y"]
["14005300","African American Male Ini AAMI","N","14000000","N"]
["14005301","Ga African Amer Male Exp GAAME","N","14005300","Y"]
["14005302","Black Male Leader Society BMLS","N","14005300","Y"]
["14005400","Instl Div UGAF","N","14000000","N"]
["14005401","Faculty Support","N","14005400","Y"]
["14005402","Program Support","N","14005400","Y"]
["14005500","PSLSAMP Program","N","14000000","N"]
["14005501","PSLSAMP Administration","N","14005500","Y"]
["14005502","Fort Valley","N","14005500","Y"]
["14005503","Kennesaw","N","14005500","Y"]
["14005504","Savannah State","N","14005500","Y"]
["14005505","Ga Tech","N","14005500","Y"]
["14005506","Ga Perim","N","14005500","Y"]
["14005507","Kennesaw-Marietta","N","14005500","Y"]
["14005600","PSLSAMP Conf","N","14000000","N"]
["14005601","Conf Activity","N","14005600","Y"]
["14005602","Summer Research","N","14005600","Y"]
["14005700","PSLSAMP Conf Income","N","14000000","Y"]
["14006000","International Education","N","14000000","Y"]
["14006100","OIE Admin","N","14000000","N"]
["14006102","OIE Admin Office","N","14006100","Y"]
["14006103","International Partnerships","N","14006100","Y"]
["14006104","Public Relations","N","14006100","Y"]
["14006105","EA Fund","N","14006100","Y"]
["14006106","RC State Staff Support","N","14006100","Y"]
["14006107","IMG Support","N","14006100","Y"]
["14006108","IT Fund","N","14006100","Y"]
["14006203","Cortona Lease","N","14007200","Y"]
["14006400","Immigration","N","14000000","N"]
["14006401","SEVIS Fees","N","14006400","Y"]
["14006402","Immigration Servs","N","14006400","Y"]
["14006403","Costa Rica Lease","N","14007400","Y"]
["14006500","Education Abroad","N","14000000","N"]
["14006501","CAF Fee","N","14006500","Y"]
["14006502","Exchange Proc Fee","N","14006500","Y"]
["14006503","Activity/SA Fair","N","14006500","Y"]
["14006600","OIE Grants","N","14000000","N"]
["14006601","Peace Corp","N","14006600","Y"]
["14006602","Dooley","N","14006600","Y"]
["14006603","Oxford Lease","N","14007600","Y"]
["14006700","OIE Exchange","N","14000000","N"]
["14006701","BSMP Pass Thru","N","14006700","Y"]
["14006702","Exchange Account","N","14006700","Y"]
["14006703","Exchange Sec Housing","N","14006700","Y"]
["14006800","OIE Scholarships","N","14000000","N"]
["14006801","Grad School Travel Grant","N","14006800","Y"]
["14007000","Study Abroad Admin","N","14000000","N"]
["14007001","Study Abroad Allocation","N","14007000","Y"]
["14007002","Study Abroad Deposit Sweep","N","14007000","Y"]
["14007003","Study Abroad Contingency","N","14007000","Y"]
["14007050","Croatia Grant Companion","N","14007000","Y"]
["14007100","RC Study Abroad Support","N","14000000","N"]
["14007101","Residential Center Admin","N","14007100","Y"]
["14007200","Cortona Program Support","N","14000000","N"]
["14007201","Cortona Program Contingency","N","14007200","Y"]
["14007202","Cortona Operations Contingency","N","14007200","Y"]
["14007205","CO Lab Fee","N","14007200","Y"]
["14007210","CO DSS Admin","N","14007200","Y"]
["14007220","CO Tuition Admin","N","14007200","Y"]
["14007230","CO Severini Lease","N","14007200","Y"]
["14007400","Costa Rica Program Support","N","14000000","N"]
["14007401","Costa Rica Program Contingency","N","14007400","Y"]
["14007402","Costa Rica Operations Continge","N","14007400","Y"]
["14007405","CR Lab Fee","N","14007400","Y"]
["14007410","CR DSS Admin","N","14007400","Y"]
["14007420","CR Tuition Admin","N","14007400","Y"]
["14007600","Oxford Program Support","N","14000000","N"]
["14007601","Oxford Program Contingency","N","14007600","Y"]
["14007602","Oxford Operations Contingency","N","14007600","Y"]
["14007610","Ox DSS Admin","N","14007600","Y"]
["14008000","Performing Arts","N","14000000","N"]
["14008001","Performing Arts Admin","N","14008000","Y"]
["14008002","Non-Pac Ticket Sales","N","14008000","Y"]
["14008003","PAC - Rentals","N","14008000","Y"]
["14008004","PAC - Gift Cards","N","14008000","Y"]
["14008005","PAC - All Arts Cards","N","14008000","Y"]
["14008006","PAC - Taxable Fees","N","14008000","Y"]
["14008007","PAC - Fees","N","14008000","Y"]
["14008008","PAC - Single Ticket Revenue","N","14008000","Y"]
["14008009","PAC - Season Ticket Revenue","N","14008000","Y"]
["14008010","PAC - Merchandising","N","14008000","Y"]
["14008011","PAC - Concessions","N","14008000","Y"]
["14008012","PAC - Restoration Fees","N","14008000","Y"]
["14009000","Skidaway Institute Of Oceanogr","N","14000000","N"]
["14009100","SKIO General Research","N","14009000","Y"]
["14009110","Biological Research","N","14009000","Y"]
["14009120","Chemical Research","N","14009000","Y"]
["14009130","Geological Research","N","14009000","Y"]
["14009140","Physical Research","N","14009000","Y"]
["14009200","GRNMS/NOAA Grant","N","14009000","Y"]
["14009210","ONMS/NOAA Grant","N","14009000","Y"]
["14009300","SKIO Administration","N","14009000","Y"]
["14009400","Skidaway Institute - Marine Op","N","14000000","N"]
["14009450","Research Vessel Operations","N","14009400","Y"]
["14009470","Research Vessel Marine Tech","N","14009400","Y"]
["14009480","Small Boats Operations","N","14009400","Y"]
["14009500","Skidaway Institute - Facilitie","N","14000000","N"]
["14009510","Plant Administration","N","14009500","Y"]
["14009520","Plant Operations","N","14009500","Y"]
["14009600","Skidaway Institute - Housing","N","14000000","Y"]
["15000000","Libraries","N","14000000","N"]
["15100000","Libraries","N","15000000","N"]
["15100001","Libraries Budget","N","15100000","Y"]
["15100ARC","Lib Archival Supplies","N","15100000","Y"]
["15100CMP","Lib Computer Hardware&Software","N","15100000","Y"]
["15100CPY","Lib Costs - Copy, Micro, Scan","N","15100000","Y"]
["15100DDS","Lib Document Destruction","N","15100000","Y"]
["15100FMD","Lib FMD","N","15100000","Y"]
["15100GNP","Lib Georgia Newspaper Project","N","15100000","Y"]
["15100MKS","Lib Makerspace","N","15100000","Y"]
["15100PHN","Lib Phone","N","15100000","Y"]
["15100TEL","Lib Telecommunications","N","15100000","Y"]
["15100VTM","Lib Vehicle","N","15100000","Y"]
["15101000","Libraries Sales","N","15100000","Y"]
["15102000","Miller Learning Center Income","N","15100000","Y"]
["15103000","Library Homeplace Graham","N","15100000","Y"]
["15105000","Library Security Main","N","15100000","Y"]
["15107000","Copy Services Income","N","15100000","Y"]
["15108000","Media/Peabody Income","N","15100000","Y"]
["15112000","Galileo GIL","N","15100000","Y"]
["15114000","Special Collections Lib Income","N","15100000","Y"]
["15115000","Miller Learning Center","N","15100000","N"]
["15115001","MLC Budget","N","15115000","Y"]
["15115FMD","MLC Fmd","N","15115000","Y"]
["15115SEC","MLC Security","N","15115000","Y"]
["15116000","Digital Library Of Georgia","N","15100000","Y"]
["15117000","Galileo","N","15100000","Y"]
["15119000","Digital Humanities Lab Income","N","15100000","Y"]
["15120000","Lib Other General - FYO","N","15100000","Y"]
["15121000","Special Collections Library","N","15100000","N"]
["15121001","SCL Budget","N","15121000","Y"]
["15121FMD","SCL Fmd","N","15121000","Y"]
["15121MNT","SCL Facility Maintenance","N","15121000","Y"]
["15121SEC","Security","N","15121000","Y"]
["15123000","Georgia Capitol History Museum","N","15100000","Y"]
["15125000","Carnegie","N","15100000","Y"]
["15130000","Lib Budget Holding - Control","Y","15100000","N"]
["15155000","Libraries Book Sales","N","15100000","Y"]
["15186000","Lillian Smith Book Awards","N","15100000","Y"]
["15187000","Libraries Carrel Key Deposit","N","15100000","Y"]
["15200000","Libraries Materials","N","15000000","N"]
["15200001","Libraries Materials Budget","N","15200000","Y"]
["15200MEQ","Lib Mtrls Maint Equip","N","15200000","Y"]
["15200MSH","Lib Mtrls Med Ship Handling","N","15200000","Y"]
["15400000","The Press","N","15000000","N"]
["15400001","The Press Budget","N","15400000","Y"]
["15400BUD","Press Budget Holding","Y","15400000","N"]
["15410ACG","Acq General","N","15400000","Y"]
["15411AE1","Acq Editor 1","N","15400000","Y"]
["15412AE2","Acq Editor 2","N","15400000","Y"]
["15413AE3","Acq Editor 3","N","15400000","Y"]
["15414AE4","Acq Editor 4","N","15400000","Y"]
["15415AE5","Acq Editor 5","N","15400000","Y"]
["15416AE6","Acq Editor 6","N","15400000","Y"]
["15417AE7","Acq Editor 7","N","15400000","Y"]
["15420EDT","Editorial","N","15400000","Y"]
["15430DAP","Design And Production","N","15400000","Y"]
["15441GEN","Marketing General","N","15400000","Y"]
["15442PUB","Marketing Publicity","N","15400000","Y"]
["15443ADV","Marketing Advertising","N","15400000","Y"]
["15444EXH","Marketing Exhibits","N","15400000","Y"]
["15445DML","Marketing Direct Mail","N","15400000","Y"]
["15446SAL","Marketing Sales","N","15400000","Y"]
["15460DST","Distribution","N","15400000","Y"]
["15469SPF","Special Funding","N","15400000","Y"]
["15475DEV","Development","N","15400000","Y"]
["15485NGE","New Georgia Encyclopedia","N","15400000","Y"]
["15491ADM","Administration","N","15400000","Y"]
["15492BUS","Business","N","15400000","Y"]
["15493DAR","Deposits Accounts Receivable","N","15400000","Y"]
["15493GEN","Deposits General","N","15400000","Y"]
["15493INC","Deposits Income","N","15400000","Y"]
["15493PER","Deposits Permissions","N","15400000","Y"]
["15493POE","Deposits Poetry","N","15400000","Y"]
["15493SFI","Deposits Short Fiction","N","15400000","Y"]
["15493SRT","Deposits Subrights","N","15400000","Y"]
["15493SUB","Deposits Subsidy","N","15400000","Y"]
["15495EBK","Ebook Book Costs","N","15400000","Y"]
["15495GEN","General Book Costs","N","15400000","Y"]
["15495NEW","New Book Costs","N","15400000","Y"]
["15495PLT","Plant Costs","N","15400000","Y"]
["15495POD","Pod Book Costs","N","15400000","Y"]
["15495RST","Restock Book Costs","N","15400000","Y"]
["15497ADV","Advance Royalty","N","15400000","Y"]
["15497ROY","Annual Royalty","N","15400000","Y"]
["15499GEN","General","N","15400000","Y"]
["15500000","Georgia Review","N","15000000","N"]
["15500001","Georgia Review General","N","15500000","Y"]
["15500BUD","Georgia Review Budget Holding","Y","15500000","N"]
["16000000","EITS (Enterprise IT Services)","N","14000000","N"]
["16001000","EITS VPIT Dept","N","16000000","N"]
["16001001","EITS VPIT Office","N","16001000","Y"]
["16001ISW","EITS Infrastructure Software","N","16001000","Y"]
["16002000","EITS Planning & Engagement","N","16001000","Y"]
["16003000","EITS Finance & Business Svc","N","16001000","Y"]
["16003BOR","EITS FBS BOR Reimburse","N","16001000","Y"]
["16003CIS","EITS FBS Income Support","N","16001000","Y"]
["16004000","EITS Information Security","N","16001000","Y"]
["16005000","EITS Institutional Research","N","16001000","Y"]
["16006000","EITS Data & Analytics","N","16001000","Y"]
["16007000","EITS Admin Information Sys","N","16001000","Y"]
["16008000","EITS Client Support","N","16001000","Y"]
["16008DSK","EITS Desktop Support","N","16001000","Y"]
["16008HDK","EITS Help Desk","N","16001000","Y"]
["16008IDM","EITS Client Support IDM","N","16001000","Y"]
["16008KSK","EITS Print Kiosk Support","N","16001000","Y"]
["16008LAB","EITS On-Site Lab Staffing","N","16001000","Y"]
["16008RDI","EITS Remote Desktop Image Mgt","N","16001000","Y"]
["16008RSP","EITS Remote Support Portal","N","16001000","Y"]
["16008TDX","EITS Teamdynamix","N","16001000","Y"]
["16009000","EITS CTO Office","N","16001000","Y"]
["16010000","EITS Network Engineering","N","16001000","Y"]
["16011000","EITS Research Computing","N","16001000","Y"]
["16011BIP","EITS GACRC Cluster Buy-In Prgm","N","16001000","Y"]
["16011GAC","EITS GACRC Prgm","N","16001000","Y"]
["16011OVP","EITS GACRC - OVPR Prgm","N","16001000","Y"]
["16012000","EITS Systems Engineering","N","16001000","Y"]
["16012CSP","EITS Consulting & Special Prjt","N","16001000","Y"]
["16012EML","EITS Sys Engineering Email","N","16001000","Y"]
["16012IFS","EITS Institutional File Stora","N","16001000","Y"]
["16012LGY","EITS Legacy","N","16001000","Y"]
["16012RFS","EITS Research Insitut File Sto","N","16001000","Y"]
["16012SFS","EITS Secure Institut File Stor","N","16001000","Y"]
["16012VDI","EITS Virtual Desktop Image Mgt","N","16001000","Y"]
["16012VSR","EITS Virtual Server","N","16001000","Y"]
["16013000","EITS Telephone Services","N","16001000","Y"]
["16014000","EITS Web & Mobile Tech","N","16001000","Y"]
["16014D2L","EITS Instructional D2L","N","16001000","Y"]
["16014DOC","EITS Document Mgt Services","N","16001000","Y"]
["16014MAP","EITS Mobile Apps","N","16001000","Y"]
["16015000","EITS Student Information Svcs","N","16001000","Y"]
["16016000","EITS Identity Management/EAI","N","16001000","Y"]
["16020000","EITS Operations & Infrastruct","N","16001000","Y"]
["16021000","EITS Network Infrastructure","N","16001000","Y"]
["16021MLC","EITS MLC Network","N","16001000","Y"]
["16021STS","EITS Student Tech Services","N","16001000","Y"]
["16021TEL","EITS Telecomm Install","N","16001000","Y"]
["16021WRL","EITS Wireless","N","16001000","Y"]
["16022000","EITS Network Support Partners","N","16001000","Y"]
["16023000","EITS Network Operations","N","16001000","Y"]
["16023RCN","EITS Remote Campus Networking","N","16001000","Y"]
["16024000","EITS Data Center Operations","N","16001000","Y"]
["16024BDC","EITS Boyd Data Center Hosting","N","16001000","Y"]
["16025000","EITS ConnectUGA","N","16001000","Y"]
["16030000","EITS FBS Contract & Licens","N","16001000","Y"]
["16030ADB","EITS FBS C&L Adobe","N","16001000","Y"]
["16030G2M","EITS FBS C&L Go To Meeting","N","16001000","Y"]
["16030LVW","EITS FBS C&L LabView","N","16001000","Y"]
["16030MLB","EITS FBS C&L Matlab","N","16001000","Y"]
["16030MMT","EITS FBS C&L Mathematica","N","16001000","Y"]
["16030OTH","EITS FBS C&L Other","N","16001000","Y"]
["16030SPS","EITS FBS C&L SPSS dept","N","16001000","Y"]
["17000000","College of Agric & Environ Sci","N","14000000","N"]
["17100000","Dean & Director","N","17000000","N"]
["17100001","CAES Dean & Director Sum","N","17100000","Y"]
["17100100","CAES Dean","N","17100000","Y"]
["17100200","Office Admin","N","17100000","Y"]
["17100300","Program Support","N","17100000","Y"]
["17100310","Lead21","N","17100000","Y"]
["17100320","Assoc Public Landgrant Inst","N","17100000","Y"]
["17100330","Southern Region Small Fruit","N","17100000","Y"]
["17100340","Advisory Council","N","17100000","Y"]
["17100350","Searches","N","17100000","Y"]
["17101000","Tifton Campus Administration","N","17000000","N"]
["17101001","Tifton Campus Sum","N","17101000","Y"]
["17101100","Tifton Asst Dean","N","17101000","Y"]
["17101200","Tifton Office Admin","N","17101000","Y"]
["17102000","Griffin Campus Administration","N","17000000","N"]
["17102001","Griffin Campus Sum","N","17102000","Y"]
["17102100","Griffin Campus Dir","N","17102000","Y"]
["17102200","Griffin Office Admin","N","17102000","Y"]
["17110000","Finance & Administration","N","17000000","N"]
["17110001","F&A Sum","N","17110000","Y"]
["17110100","F&A Director","N","17110000","Y"]
["17111000","Fiscal Affairs (ABO)","N","17000000","N"]
["17111001","Fiscal Affairs Sum","N","17111000","Y"]
["17111100","Contracts and Grants","N","17111000","Y"]
["17111200","CAES Human Resources","N","17111000","Y"]
["17111300","Finance & AdminSupport Team","N","17111000","Y"]
["17111400","Accountability","N","17111000","Y"]
["17111500","Budget Execution Sup Team","N","17111000","Y"]
["17111600","Hoke Smith Support Team","N","17111000","Y"]
["17111700","Fiscal Compliance","N","17111000","Y"]
["17112000","Information Technology","N","17000000","N"]
["17112001","CAES OIT Sum","N","17112000","Y"]
["17112100","Field Services","N","17112000","Y"]
["17112200","Data Center","N","17112000","Y"]
["17112300","Classroom Support","N","17112000","Y"]
["17112400","Professional Development","N","17112000","Y"]
["17112500","Major Projects","N","17112000","Y"]
["17112600","Contracts","N","17112000","Y"]
["17113000","Communication & Marketing","N","17000000","N"]
["17113001","CAES Comms and Marketing Sum","N","17113000","Y"]
["17113100","Professional Development","N","17113000","Y"]
["17113200","Marketing Materials","N","17113000","Y"]
["17113300","Social Media Ad","N","17113000","Y"]
["17113400","Videography Support","N","17113000","Y"]
["17113500","Events","N","17113000","Y"]
["17114000","Physical Plant","N","17000000","N"]
["17114001","Physical Plant Sum","N","17114000","Y"]
["17114010","General Expense","N","17114000","Y"]
["17114100","Mail Room","N","17114000","Y"]
["17114200","Hoke Smith","N","17114000","Y"]
["17114300","Hoke Smith Annex","N","17114000","Y"]
["17114400","AESL Bldg","N","17114000","Y"]
["17120000","Assoc Dean Research Admin","N","17000000","N"]
["17120001","CAES Assoc Dean Rsch Sum","N","17120000","Y"]
["17120100","Assoc Dean Rsch Admin","N","17120000","Y"]
["17120200","Assist Dean Rsch Admin","N","17120000","Y"]
["17120300","Rsch Office Admin","N","17120000","Y"]
["17130000","Assoc Dean Extension Admin","N","17000000","N"]
["17130001","CAES Assoc Dean Ext Sum","N","17130000","Y"]
["17130100","Assoc Dean Ext Admin","N","17130000","Y"]
["17130200","Assist Dean-Admin","N","17130000","Y"]
["17130300","Director County Ops-Admin","N","17130000","Y"]
["17130400","Ext Office Admin","N","17130000","Y"]
["17140000","Assoc Dean Instruction Admin","N","17000000","N"]
["17140001","CAES Assoc Dean Inst Sum","N","17140000","Y"]
["17140100","Assoc Dean Inst Admin","N","17140000","Y"]
["17140200","Assist Dean Inst Admin","N","17140000","Y"]
["17140300","Inst Office Admin","N","17140000","Y"]
["17140400","Student Relations","N","17140000","Y"]
["17140500","CAES Advisors","N","17140000","Y"]
["17150000","Global Programs","N","17000000","N"]
["17150001","Global Programs Sum","N","17150000","Y"]
["17150100","GP Director","N","17150000","Y"]
["17150200","GP Assistant Director","N","17150000","Y"]
["17150300","Global Office Admin","N","17150000","Y"]
["17151000","PMIL","N","17000000","N"]
["17151001","PMIL Sum","N","17151000","Y"]
["17151100","PMIL Admin","N","17151000","Y"]
["17151200","Hoisington","N","17151000","Y"]
["17160000","Office of DAR","N","17000000","N"]
["17160001","CAES Develop and Alumni Sum","N","17160000","Y"]
["17160100","DAR Director","N","17160000","Y"]
["17160200","Philanthropy","N","17160000","Y"]
["17160300","Annual Giving","N","17160000","Y"]
["17160400","Alumni Engagement","N","17160000","Y"]
["17160410","Alumni Events","N","17160000","Y"]
["17170000","Facilities & Real Property","N","17000000","N"]
["17170001","Facilities Sum","N","17170000","Y"]
["17170100","Facilities Director","N","17170000","Y"]
["17180000","Public Affairs","N","17000000","N"]
["17180001","Pubic Affairs Sum","N","17180000","Y"]
["17180100","PA Director","N","17180000","Y"]
["17190000","Govenrment Relations","N","17000000","N"]
["17190001","Gov Relations Sum","N","17190000","Y"]
["17190100","Gov Rel Director","N","17190000","Y"]
["17200000","Academic Departments","N","17000000","N"]
["17200001","CAES Academic Depts Sum","N","17200000","Y"]
["17210000","Agriculture& Applied Economics","N","17000000","N"]
["17210001","Ag Econ Sum","N","17210000","Y"]
["17210100","Berstrom, John","N","17210000","Y"]
["17210110","Berning, Joshua","N","17210000","Y"]
["17210120","Brewer, Brady","N","17210000","Y"]
["17210130","Campbell, Benjamin","N","17210000","Y"]
["17210140","Centner, Terence","N","17210000","Y"]
["17210150","Colson, Gregory John","N","17210000","Y"]
["17210160","Dorfman, Jeffrey","N","17210000","Y"]
["17210170","Escalante, Cesar","N","17210000","Y"]
["17210180","Ferreira, Susana","N","17210000","Y"]
["17210190","Karali, Berna","N","17210000","Y"]
["17210200","Kramer, Elizabeth","N","17210000","Y"]
["17210210","Kriesel, Warren","N","17210000","Y"]
["17210220","Landry, Craig","N","17210000","Y"]
["17210230","Magnan, Nicholas","N","17210000","Y"]
["17210240","McCullough, Ellen","N","17210000","Y"]
["17210250","Mullen, Jeffery","N","17210000","Y"]
["17210260","Ramirez, Octavio","N","17210000","Y"]
["17210270","Russell, Levi","N","17210000","Y"]
["17210280","Smith, Travis A","N","17210000","Y"]
["17210290","Zhen, Chen","N","17210000","Y"]
["17210700","Florkowski, Wojciech J","N","17210000","Y"]
["17210710","Jordan, Jeffery","N","17210000","Y"]
["17210720","Kostandini, Gentian","N","17210000","Y"]
["17210800","Fonsah, Esendugue Greg","N","17210000","Y"]
["17210810","Rabinowitz, Adam","N","17210000","Y"]
["17210820","Smith, Amanda R","N","17210000","Y"]
["17210830","Lui, Yangxuan","N","17210000","Y"]
["17210900","Ames, Glenn","N","17210000","Y"]
["17210910","Fletcher, Stanley","N","17210000","Y"]
["17210920","Shurley, William D","N","17210000","Y"]
["17211000","CAED","N","17000000","N"]
["17211001","CAED Sum","N","17211000","Y"]
["17211100","Kane, Sharon","N","17211000","Y"]
["17211110","Shepherd, Tommie","N","17211000","Y"]
["17211120","Shonkwiler, Vanessa","N","17211000","Y"]
["17211130","Stubbs, Karen","N","17211000","Y"]
["17211140","Wolfe, Kent","N","17211000","Y"]
["17220000","Ag Leadership, Education & Com","N","17000000","N"]
["17220001","ALEC Sum","N","17220000","Y"]
["17221000","Department Head","N","17220000","Y"]
["17221010","Borron","N","17220000","Y"]
["17221020","Croom","N","17220000","Y"]
["17221030","Fuhrman","N","17220000","Y"]
["17221040","Griffeth","N","17220000","Y"]
["17221050","Holt","N","17220000","Y"]
["17221060","Kelsey","N","17220000","Y"]
["17221070","Navarro","N","17220000","Y"]
["17221080","Newberry","N","17220000","Y"]
["17221090","Peake","N","17220000","Y"]
["17221100","Rubenstein","N","17220000","Y"]
["17221110","Yopp","N","17220000","Y"]
["17221120","Anderson","N","17220000","Y"]
["17222000","Advancing Georgia Leaders","N","17220000","Y"]
["17230000","Animal and Dairy Science","N","17000000","N"]
["17230001","ADS Sum","N","17230000","Y"]
["17231000","Azain, Michael","N","17230000","Y"]
["17231025","Bernard, John","N","17230000","Y"]
["17231050","Bohlen, Jillian","N","17230000","Y"]
["17231075","Burtle, Gary","N","17230000","Y"]
["17231100","Cowart, Melony","N","17230000","Y"]
["17231125","Dove, Robert","N","17230000","Y"]
["17231150","Duberstein, Kylee","N","17230000","Y"]
["17231175","Duggin, Jason","N","17230000","Y"]
["17231200","Foley, Caitlin","N","17230000","Y"]
["17231225","Karumbaiah, Lohitash","N","17230000","Y"]
["17231250","Liu, Hongxiang","N","17230000","Y"]
["17231275","Loughridge, Sarah","N","17230000","Y"]
["17231300","Lourenco, Daniela","N","17230000","Y"]
["17231325","Masuda, Yutaka","N","17230000","Y"]
["17231350","McCann, Julia","N","17230000","Y"]
["17231375","Misztal, Ignacy","N","17230000","Y"]
["17231400","Mortensen, Luke","N","17230000","Y"]
["17231425","Nickerson, Stephen","N","17230000","Y"]
["17231450","Pringle, Dean","N","17230000","Y"]
["17231475","Rekaya, Romdhane","N","17230000","Y"]
["17231500","Segers, Jacob","N","17230000","Y"]
["17231525","Stelzleni, Alex","N","17230000","Y"]
["17231550","Stewart, Lawton","N","17230000","Y"]
["17231575","Stice, Steven","N","17230000","Y"]
["17231600","Tao, Sha","N","17230000","Y"]
["17231625","Tsuruta, Shogo","N","17230000","Y"]
["17231650","Tucker, Jennifer","N","17230000","Y"]
["17231675","Turner, Kari","N","17230000","Y"]
["17231700","West, Franklin","N","17230000","Y"]
["17238100","ADS Maintenance","N","17230000","Y"]
["17238200","Arena","N","17230000","Y"]
["17238300","Large Animal Rsch Unit","N","17230000","Y"]
["17238400","Meat Science Tech Cnt","N","17230000","Y"]
["17239000","Farms","N","17230000","Y"]
["17239001","ADS Beef/Sheep","N","17230000","Y"]
["17239002","Dairy","N","17230000","Y"]
["17239003","Swine","N","17230000","Y"]
["17239004","CAES Horse","N","17230000","Y"]
["17239400","Farm Shop","N","17230000","Y"]
["17239500","ADS Feed Mill","N","17230000","Y"]
["17240000","Crop and Soil Science","N","17000000","N"]
["17240001","CSS Sum","N","17240000","Y"]
["17240CSS","CSS Department External","N","17240000","Y"]
["17241CSS","CSS Department","N","17240000","Y"]
["17242APA","Paterson, Andrew","N","17240000","Y"]
["17242ATT","Thompson, Aaron","N","17240000","Y"]
["17242BRA","Branch, Bill","N","17240000","Y"]
["17242CAB","Cabrera, Miguel","N","17240000","Y"]
["17242CHE","Chee, Peng Wah","N","17240000","Y"]
["17242CPE","Perry, Calvin","N","17240000","Y"]
["17242CUL","Culpepper, Stanley","N","17240000","Y"]
["17242DEV","Devos, Katrien","N","17240000","Y"]
["17242DEW","Lee, R. Dewey","N","17240000","Y"]
["17242FRA","Franklin, Dory","N","17240000","Y"]
["17242FRE","Freeman, Mark","N","17240000","Y"]
["17242FUR","Furman, Carrie","N","17240000","Y"]
["17242GAS","Gaskin, Julia","N","17240000","Y"]
["17242GRE","Greym Tim","N","17240000","Y"]
["17242HAB","Habtelassie, Mussie","N","17240000","Y"]
["17242HAN","Hancock, Dennis","N","17240000","Y"]
["17242HAR","Harris, Glen","N","17240000","Y"]
["17242HAW","Hawkins, Gary","N","17240000","Y"]
["17242HEN","Henry, Gerald","N","17240000","Y"]
["17242HIL","Hill, Nick","N","17240000","Y"]
["17242HUA","Huang, Jack","N","17240000","Y"]
["17242IAN","Flitcroft, Ian","N","17240000","Y"]
["17242JAW","Wallace, Jason","N","17240000","Y"]
["17242JES","Jesperson, David","N","17240000","Y"]
["17242JJO","Johnson, Jerry","N","17240000","Y"]
["17242JJT","Thompson, Jennifer Jo","N","17240000","Y"]
["17242KNO","Knox, Pam","N","17240000","Y"]
["17242KVI","Kvien, Craig","N","17240000","Y"]
["17242LEC","Leclerc, Monique","N","17240000","Y"]
["17242MCC","McCullough, Patrick","N","17240000","Y"]
["17242MER","Merguom, Mohamed","N","17240000","Y"]
["17242MIS","Missaoui, Ali","N","17240000","Y"]
["17242MON","Monfort, Scott","N","17240000","Y"]
["17242MOO","Moore, J. Michael","N","17240000","Y"]
["17242PIL","Cristiane, Pilone","N","17240000","Y"]
["17242POR","Porter, Wes","N","17240000","Y"]
["17242PRO","Prostko, Eric","N","17240000","Y"]
["17242RAD","Radcliffe, David","N","17240000","Y"]
["17242RAY","Raymer, Paul","N","17240000","Y"]
["17242RIS","Risse, Mark","N","17240000","Y"]
["17242RLN","Noland, Reagon","N","17240000","Y"]
["17242SCJ","Jackson, Scott","N","17240000","Y"]
["17242SCW","Schwartz, Brian","N","17240000","Y"]
["17242SHI","Shilling, Donn","N","17240000","Y"]
["17242SNI","Snider, John","N","17240000","Y"]
["17242SSI","Millier, Bill","N","17240000","Y"]
["17242TUB","Tubbs, Scott","N","17240000","Y"]
["17242VED","Vellidis, George","N","17240000","Y"]
["17242WHA","Hanna, Wayne","N","17240000","Y"]
["17242WHI","Whitaker, Jared","N","17240000","Y"]
["17242WPA","Parrott, Wayne","N","17240000","Y"]
["17242WTZ","Waltz, Clint","N","17240000","Y"]
["17242ZHC","Chen, Zhenbang","N","17240000","Y"]
["17242ZLI","Li, Zenglu","N","17240000","Y"]
["17243CSS","CSS Department Greenhouse","N","17240000","Y"]
["17244CSS","CSS Department Farms","N","17240000","Y"]
["17245SWV","Mailhot, Daniel","N","17240000","Y"]
["17246CSS","CSS Department Weather Network","N","17240000","Y"]
["17250000","Entomology","N","17000000","N"]
["17250001","Entomology Sum","N","17250000","Y"]
["17252000","Administration","N","17250000","Y"]
["17253010","Abney","N","17250000","Y"]
["17253020","Adang","N","17250000","Y"]
["17253030","Bazter","N","17250000","Y"]
["17253040","Blaauw","N","17250000","Y"]
["17253050","Braman","N","17250000","Y"]
["17253060","Brown","N","17250000","Y"]
["17253070","Buntin","N","17250000","Y"]
["17253080","Burke","N","17250000","Y"]
["17253090","Champagne","N","17250000","Y"]
["17253100","Delaplane","N","17250000","Y"]
["17253110","Espelie","N","17250000","Y"]
["17253120","Forschler","N","17250000","Y"]
["17253130","Gardner","N","17250000","Y"]
["17253140","Guillebeau","N","17250000","Y"]
["17253150","Hinkle","N","17250000","Y"]
["17253160","Hudson","N","17250000","Y"]
["17253170","Hunt","N","17250000","Y"]
["17253180","LaForest","N","17250000","Y"]
["17253190","McHugh","N","17250000","Y"]
["17253200","Moore","N","17250000","Y"]
["17253210","Oliver","N","17250000","Y"]
["17253220","Rains","N","17250000","Y"]
["17253230","Riley","N","17250000","Y"]
["17253240","Roberts","N","17250000","Y"]
["17253250","Ross","N","17250000","Y"]
["17253260","Schmidt","N","17250000","Y"]
["17253270","Shockley","N","17250000","Y"]
["17253280","Sial","N","17250000","Y"]
["17253290","Sparks","N","17250000","Y"]
["17253300","Srinivasan","N","17250000","Y"]
["17253310","Strand","N","17250000","Y"]
["17253320","Suiter","N","17250000","Y"]
["17253340","Toews","N","17250000","Y"]
["17253350","Tree Nut","N","17250000","Y"]
["17253360","Villinassery","N","17250000","Y"]
["17253370","Vogel","N","17250000","Y"]
["17253380","Zhang","N","17250000","Y"]
["17260000","Food Science and Technology","N","17000000","N"]
["17260001","Food Science Sum","N","17260000","Y"]
["17260090","FST Department Admin","N","17260000","Y"]
["17260100","Singh, Rakesh","N","17260000","Y"]
["17260110","Akoh, Casimir","N","17260000","Y"]
["17260140","Harrison, Mark","N","17260000","Y"]
["17260160","Kerr, William","N","17260000","Y"]
["17260215","Hurst, William","N","17260000","Y"]
["17260220","Pegg, Ronald","N","17260000","Y"]
["17260250","Kong, Fanbin","N","17260000","Y"]
["17260260","Mohan, Anand","N","17260000","Y"]
["17260270","Reyes, Jose","N","17260000","Y"]
["17260280","Paton, Chad","N","17260000","Y"]
["17260290","Dee, Derek","N","17260000","Y"]
["17260300","Cavender, George","N","17260000","Y"]
["17260320","Mishra, Abhinav","N","17260000","Y"]
["17261000","Food PIC","N","17260000","N"]
["17261001","Food PIC Sum","N","17261000","Y"]
["17261100","Food PIC Admin Office","N","17261000","Y"]
["17261110","Hung, Yen-Con","N","17261000","Y"]
["17261120","Kealey, Kirk","N","17261000","Y"]
["17261130","Phillips, Robert","N","17261000","Y"]
["17261140","Adhikari, Koushik","N","17261000","Y"]
["17261150","Chen, Jinru","N","17261000","Y"]
["17262000","Center for Food Safety","N","17260000","N"]
["17262001","Cntr Food Safety Sum","N","17262000","Y"]
["17262100","CFS Office Admin","N","17262000","Y"]
["17262140","Doyle, Michael","N","17262000","Y"]
["17262150","Erikson, Marilyn","N","17262000","Y"]
["17262210","Ortega, Ynes","N","17262000","Y"]
["17262230","den Bakker, Hendrick","N","17262000","Y"]
["17262240","Deng, Xiangyu","N","17262000","Y"]
["17262250","Diez-Gonzalez, Francisco","N","17262000","Y"]
["17262260","Zhao, Tong","N","17262000","Y"]
["17270000","Horticulture","N","17000000","N"]
["17270001","Horticulture Sum","N","17270000","Y"]
["17270100","Bailey, Doug","N","17270000","Y"]
["17270200","Berle, David","N","17270000","Y"]
["17270300","Boyhan, George","N","17270000","Y"]
["17270400","Chappell, Matthew","N","17270000","Y"]
["17270500","Chavez, Dario","N","17270000","Y"]
["17270600","Conner, Joanne","N","17270000","Y"]
["17270700","Conner, Patrick","N","17270000","Y"]
["17270800","Coolong, Tim","N","17270000","Y"]
["17270900","Czarnota, Mark","N","17270000","Y"]
["17271000","Diaz, Juan","N","17270000","Y"]
["17271100","Dorn, Sheri","N","17270000","Y"]
["17271200","Hickey, Cain","N","17270000","Y"]
["17271300","Itle, Rachel","N","17270000","Y"]
["17271400","Knauft, David","N","17270000","Y"]
["17271500","Malladi, Anish","N","17270000","Y"]
["17271600","McGregor, Cecilla","N","17270000","Y"]
["17271700","Nambeesan, Savithri","N","17270000","Y"]
["17271800","NeSmith, Scott","N","17270000","Y"]
["17271900","O'Connell, Suzanne","N","17270000","Y"]
["17272000","Ozias-Akins, Peggy","N","17270000","Y"]
["17272100","Pennisi, Bodie","N","17270000","Y"]
["17272200","Robacker, Carol","N","17270000","Y"]
["17272300","Ruter, John","N","17270000","Y"]
["17272400","Smalley, Tim","N","17270000","Y"]
["17272500","Smith, Erick","N","17270000","Y"]
["17272600","Sparks, Darrell","N","17270000","Y"]
["17272700","Thomas, Paul","N","17270000","Y"]
["17272800","Vanderknaap, Esther","N","17270000","Y"]
["17272900","van Iersel, Marc","N","17270000","Y"]
["17273000","Wells, Lenny","N","17270000","Y"]
["17273100","Westerfield, Bob","N","17270000","Y"]
["17273200","Wilde, Dayton","N","17270000","Y"]
["17273300","Zhang, Donglin","N","17270000","Y"]
["17273400","Athens Greenhouse","N","17270000","Y"]
["17273420","South Milledge Greenhouse","N","17270000","Y"]
["17273440","Riverbend Greenhouse","N","17270000","Y"]
["17273460","Green St. Complex","N","17270000","Y"]
["17273470","Griffin Greenhouse","N","17270000","Y"]
["17273500","Durham Farm","N","17270000","Y"]
["17273550","Durham Farm-Organic","N","17270000","Y"]
["17273600","Ugarden","N","17270000","Y"]
["17273700","Trial Gardens","N","17270000","Y"]
["17273720","Onion Lab Tifton","N","17270000","Y"]
["17280000","Plant Pathology","N","17000000","N"]
["17280001","Plant Path Sum","N","17280000","Y"]
["17281000","Greenhouse","N","17280000","Y"]
["17282000","Nematology Clinic","N","17280000","Y"]
["17283000","Plant Disease Clinic","N","17280000","Y"]
["17284001","Brannen","N","17280000","Y"]
["17284002","Brewer","N","17280000","Y"]
["17284003","Deom","N","17280000","Y"]
["17284004","Kvitko","N","17280000","Y"]
["17284005","Little","N","17280000","Y"]
["17284006","Noe","N","17280000","Y"]
["17284007","Scherm","N","17280000","Y"]
["17284008","Smith","N","17280000","Y"]
["17284009","Walcott","N","17280000","Y"]
["17284010","Woodward","N","17280000","Y"]
["17285000","Tifton Departmental","N","17280000","Y"]
["17285001","Brenneman","N","17280000","Y"]
["17285002","Brock","N","17280000","Y"]
["17285003","Csinos","N","17280000","Y"]
["17285004","Culbreath","N","17280000","Y"]
["17285005","Cutta","N","17280000","Y"]
["17285006","Gitaitis","N","17280000","Y"]
["17285007","Hajihassani","N","17280000","Y"]
["17285008","Ji","N","17280000","Y"]
["17285009","Kemerait","N","17280000","Y"]
["17285010","Oliver","N","17280000","Y"]
["17285011","Stevenson","N","17280000","Y"]
["17286000","Griffin Departmental","N","17280000","Y"]
["17286001","Buck","N","17280000","Y"]
["17286002","Martinez","N","17280000","Y"]
["17290000","Poultry Science","N","17000000","N"]
["17290001","Poultry Science Sum","N","17290000","Y"]
["17292000","Georgia Poutlry Conference","N","17290000","Y"]
["17292100","International Poultry Conf","N","17290000","Y"]
["17292200","Ventilation Conferences","N","17290000","Y"]
["17292300","Welfare Conferences","N","17290000","Y"]
["17292400","Deep South Conference","N","17290000","Y"]
["17294000","Farm","N","17290000","Y"]
["17294100","Feed Mill","N","17290000","Y"]
["17294200","Processing Plant","N","17290000","Y"]
["17294300","Hatchery","N","17290000","Y"]
["17294400","Classroom","N","17290000","Y"]
["17294500","Houses","N","17290000","Y"]
["17294600","College Station Facility","N","17290000","Y"]
["17295000","Aggrey, Samuel","N","17290000","Y"]
["17295050","Applegate, Todd","N","17290000","Y"]
["17295100","Benson, Andrew","N","17290000","Y"]
["17295150","Czarick, Mike","N","17290000","Y"]
["17295200","Davis, Adam","N","17290000","Y"]
["17295250","Dunkley, Claudia","N","17290000","Y"]
["17295300","Ellestad, Laura","N","17290000","Y"]
["17295350","Fairchild, Brian","N","17290000","Y"]
["17295400","Fowler, Justin","N","17290000","Y"]
["17295450","Kiepper, Brian","N","17290000","Y"]
["17295500","Kim, Woo Kyun","N","17290000","Y"]
["17295550","Navara, Kristen","N","17290000","Y"]
["17295600","Pesti, Gene","N","17290000","Y"]
["17295650","Ritz, Casey","N","17290000","Y"]
["17295700","Selvaraj, Ramesh","N","17290000","Y"]
["17295750","Singh, Manpreet","N","17290000","Y"]
["17295800","Thippareddi, Harshavardhan","N","17290000","Y"]
["17295850","Webster, Bruce","N","17290000","Y"]
["17295900","Wilson, Jeanna","N","17290000","Y"]
["17300000","Extension","N","17000000","N"]
["17300001","Extension Sum","N","17300000","Y"]
["17300100","Regional Extension","N","17300000","Y"]
["17310000","Assistant Dean Extension","N","17000000","N"]
["17310001","Asst Dean Ext Sum","N","17310000","Y"]
["17310100","Faculty Support","N","17310000","Y"]
["17310200","ANR Support","N","17310000","Y"]
["17310300","Ext Training","N","17310000","Y"]
["17311000","Ag Environ Services Lab","N","17000000","N"]
["17311001","AESL Sum","N","17311000","Y"]
["17311200","Soil Plant & Water Lab","N","17311000","Y"]
["17311300","Feed & Environmental Water Lab","N","17311000","Y"]
["17311400","Pesticide& Hazardous Waste Lab","N","17311000","Y"]
["17311500","CIIDS","N","17311000","Y"]
["17312000","Vidalia Onion & Veg Resch Cnt","N","17000000","N"]
["17312001","VOVRC Sum","N","17312000","Y"]
["17312100","VOVRC Office Admin","N","17312000","Y"]
["17312200","VOVRC Farm","N","17312000","Y"]
["17313000","Blueberry Rsch & Demo Farm","N","17000000","N"]
["17313001","Blueberry Sum","N","17313000","Y"]
["17313100","Blueberry Office Admin","N","17313000","Y"]
["17313200","Blueberry Farm","N","17313000","Y"]
["17314000","OLOD & Conferencing","N","17000000","N"]
["17314001","OLOD Conf Sum","N","17314000","Y"]
["17314100","OLOD Office Admin","N","17314000","Y"]
["17314200","Staff Development","N","17314000","Y"]
["17314300","Program Development","N","17314000","Y"]
["17314400","Leadership","N","17314000","Y"]
["17314510","Hurt","N","17314000","Y"]
["17314520","Griffeth","N","17314000","Y"]
["17314530","Sapp","N","17314000","Y"]
["17314540","Farner","N","17314000","Y"]
["17314600","OLOD Conf Admin","N","17314000","Y"]
["17314610","OLOD Events","N","17314000","Y"]
["17315000","Center for Urban Ag","N","17000000","N"]
["17315001","Center Urban Ag Sum","N","17315000","Y"]
["17315100","Center Urban Ag Office","N","17315000","Y"]
["17315200","Buaske","N","17315000","Y"]
["17320000","County Operations","N","17000000","N"]
["17320001","County Ops Sum","N","17320000","Y"]
["17320100","Recruitment","N","17320000","Y"]
["17320200","Foundations","N","17320000","Y"]
["17320210","Foundations I","N","17320000","Y"]
["17320220","Foundations II","N","17320000","Y"]
["17320230","Foundations Communications","N","17320000","Y"]
["17320240","Foundations-ANR","N","17320000","Y"]
["17320250","Foundations-4H Fund & Basics","N","17320000","Y"]
["17320260","Foundations-Beyond Basics","N","17320000","Y"]
["17320270","Foundations-FACS","N","17320000","Y"]
["17320300","Associations","N","17320000","Y"]
["17321000","Northeast District","N","17000000","N"]
["17321001","NE District Sum","N","17321000","Y"]
["17321100","NE DED","N","17321000","Y"]
["17321200","NE ANR","N","17321000","Y"]
["17321210","NE ANR PDC","N","17321000","Y"]
["17321300","NE FACS","N","17321000","Y"]
["17321310","NE FACS PDC","N","17321000","Y"]
["17321400","NE 4-H","N","17321000","Y"]
["17321410","NE 4-H PDC","N","17321000","Y"]
["17322000","Northwest District","N","17000000","N"]
["17322001","NW District Sum","N","17322000","Y"]
["17322100","NW DED","N","17322000","Y"]
["17322200","NW ANR","N","17322000","Y"]
["17322210","NW ANR PDC","N","17322000","Y"]
["17322300","NW FACS","N","17322000","Y"]
["17322310","NW FACS PDC","N","17322000","Y"]
["17322400","NW 4-H","N","17322000","Y"]
["17322410","NW 4-H PDC","N","17322000","Y"]
["17322500","NW Urban PDC","N","17322000","Y"]
["17323000","Southwest District","N","17000000","N"]
["17323001","SW District Sum","N","17323000","Y"]
["17323100","SW DED","N","17323000","Y"]
["17323200","SW ANR","N","17323000","Y"]
["17323310","SW ANR PDC","N","17323000","Y"]
["17323400","SW FACS","N","17323000","Y"]
["17323410","SW FACS PDC","N","17323000","Y"]
["17323500","SW 4-H","N","17323000","Y"]
["17323510","SW 4-H PDC","N","17323000","Y"]
["17324000","Southeast District","N","17000000","N"]
["17324001","SE District Sum","N","17324000","Y"]
["17324100","SE DED","N","17324000","Y"]
["17324400","SE ANR","N","17324000","Y"]
["17324410","SE ANR PDC","N","17324000","Y"]
["17324500","SE FACS","N","17324000","Y"]
["17324510","SE FACS PDC","N","17324000","Y"]
["17324600","SE 4-H","N","17324000","Y"]
["17324610","SE 4-H PDC","N","17324000","Y"]
["17324700","Coastal Georgia Bot Gardens","N","17000000","N"]
["17324701","CGBG Sum","N","17324700","Y"]
["17324710","CGBG Director","N","17324700","Y"]
["17324720","CGBG Office Admin","N","17324700","Y"]
["17324730","CGBG Events","N","17324700","Y"]
["17329999","County Money-BUDGET ONLY","Y","17320000","N"]
["17330000","4-H","N","17000000","N"]
["17330001","4-H Sum","N","17330000","Y"]
["17330100","State Administration","N","17330000","Y"]
["17330110","State Captial improvements","N","17330000","Y"]
["17330120","State Americorps","N","17330000","Y"]
["17330130","State Military","N","17330000","Y"]
["17330140","State Educational grants","N","17330000","Y"]
["17330150","State Rent Deductions","N","17330000","Y"]
["17330200","State Office","N","17330000","Y"]
["17330300","Environmental Education","N","17330000","Y"]
["17330400","State Camp","N","17330000","Y"]
["17330410","State Camp Travel","N","17330000","Y"]
["17331000","Rock Eagle","N","17330000","Y"]
["17331100","Rock Eagle Administration","N","17330000","Y"]
["17331110","Rock Eagle Capital Improve","N","17330000","Y"]
["17331120","Rock Eagle Americorps","N","17330000","Y"]
["17331130","Rock Eagle Military","N","17330000","Y"]
["17331140","Rock Eagle Education Grants","N","17330000","Y"]
["17331150","Rock Eagle Rent deductions","N","17330000","Y"]
["17331200","Rock Eagle State Office","N","17330000","Y"]
["17331300","Rock Eagle Enivronmental Ed","N","17330000","Y"]
["17331400","Rock Eagle Camp","N","17330000","Y"]
["17331410","Rock Eagle Camp Travel","N","17330000","Y"]
["17332000","Fortson","N","17330000","Y"]
["17332100","Fortson Administration","N","17330000","Y"]
["17332110","Fortson Capital improvements","N","17330000","Y"]
["17332120","Fortson Americorps","N","17330000","Y"]
["17332130","Fortson Military","N","17330000","Y"]
["17332140","Fortson Education Grants","N","17330000","Y"]
["17332150","Fortson Rent deductions","N","17330000","Y"]
["17332200","Fortson State Office","N","17330000","Y"]
["17332300","Fortson Enivronmental Ed","N","17330000","Y"]
["17332400","Fortson Camp","N","17330000","Y"]
["17332410","Fortson Camp Travel","N","17330000","Y"]
["17333000","Burton","N","17330000","Y"]
["17333100","Burton Administration","N","17330000","Y"]
["17333110","Burton Capital improvements","N","17330000","Y"]
["17333120","Burton Americorps","N","17330000","Y"]
["17333130","Burton Military","N","17330000","Y"]
["17333140","Burton Education Grants","N","17330000","Y"]
["17333150","Burton Rent deductions","N","17330000","Y"]
["17333200","Burton State Office","N","17330000","Y"]
["17333300","Burton Enivronmental Education","N","17330000","Y"]
["17333400","Burton Camp","N","17330000","Y"]
["17333410","Burton Camp Travel","N","17330000","Y"]
["17334000","Wahsega","N","17330000","Y"]
["17334100","Wahsega Administration","N","17330000","Y"]
["17334110","Wahsega Capital improvements","N","17330000","Y"]
["17334120","Wahsega Americorps","N","17330000","Y"]
["17334130","Wahsega Military","N","17330000","Y"]
["17334140","Rock EagleWahsega","N","17330000","Y"]
["17334150","Wahsega Rent deductions","N","17330000","Y"]
["17334200","Wahsega State Office","N","17330000","Y"]
["17334300","Wahsega Enivronmental Ed","N","17330000","Y"]
["17334400","Wahsega Camp","N","17330000","Y"]
["17334410","Wahsega Camp Travel","N","17330000","Y"]
["17335000","Camp Jeykll","N","17330000","Y"]
["17335100","Camp Jeykll Administration","N","17330000","Y"]
["17335110","Camp Jeykll Capital Improve","N","17330000","Y"]
["17335120","Camp Jeykll Americorps","N","17330000","Y"]
["17335130","Camp Jeykll Military","N","17330000","Y"]
["17335140","Camp Jeykll Education Grants","N","17330000","Y"]
["17335150","Camp Jeykll Rent deductions","N","17330000","Y"]
["17335200","Camp Jeykll State Office","N","17330000","Y"]
["17335300","Camp Jeykll Enivronmental Ed","N","17330000","Y"]
["17335400","Camp Jeykll Camp","N","17330000","Y"]
["17335410","Camp Jeykll Camp Travel","N","17330000","Y"]
["17336000","Tidelands","N","17330000","Y"]
["17336100","Tidelands Administration","N","17330000","Y"]
["17336110","Tidelands Capital improvements","N","17330000","Y"]
["17336120","Tidelands Americorps","N","17330000","Y"]
["17336130","Tidelands Military","N","17330000","Y"]
["17336140","Tidelands Education Grants","N","17330000","Y"]
["17336150","Tidelands Rent deductions","N","17330000","Y"]
["17336200","Tidelands State Office","N","17330000","Y"]
["17336300","Tidelands Enivronmental Ed","N","17330000","Y"]
["17336400","Tidelands Camp","N","17330000","Y"]
["17336410","Tidelands Camp Travel","N","17330000","Y"]
["17340000","Southern Region Forestry Ext","N","17000000","N"]
["17340001","SRFE Sum","N","17340000","Y"]
["17340010","SRFE Office Admin","N","17340000","Y"]
["17340100","Hubbard","N","17340000","Y"]
["17400000","Instruction","N","17000000","N"]
["17400001","Instruction Sum","N","17400000","Y"]
["17410000","Diversity","N","17000000","N"]
["17410001","CAES Diversity Sum","N","17410000","Y"]
["17410100","Div Director","N","17410000","Y"]
["17410200","Young Scholars","N","17410000","Y"]
["17410300","MANNRS","N","17410000","Y"]
["17410400","Div Office Admin","N","17410000","Y"]
["17500000","Research","N","17000000","N"]
["17500001","Research Sum","N","17500000","Y"]
["17510000","Assistant Dean Research","N","17000000","N"]
["17510001","CAES Asst Dean Rsch Sum","N","17510000","Y"]
["17510100","Department Support","N","17500000","Y"]
["17510200","Faculty Start up","N","17500000","Y"]
["17511000","J. Phil Campbell REC","N","17000000","N"]
["17511001","JPC Sum","N","17511000","Y"]
["17511100","JPC Staff","N","17511000","Y"]
["17511200","JPC Farm","N","17511000","Y"]
["17512000","IPBGG","N","17000000","N"]
["17512001","IPBGG Sum","N","17512000","Y"]
["17512100","IPBGG Director","N","17512000","Y"]
["17512200","IPBGG Office","N","17512000","Y"]
["17513000","CAGT","N","17000000","N"]
["17513001","CAGT Sum","N","17513000","Y"]
["17513100","CAGT Director","N","17513000","Y"]
["17513200","CAGT Office","N","17513000","Y"]
["17514000","PGML","N","17000000","N"]
["17514001","PGML Sum","N","17514000","Y"]
["17514100","PGML Director","N","17514000","Y"]
["17514200","PGML Office","N","17514000","Y"]
["17600000","Griffin Campus","N","17000000","N"]
["17600001","Griffin Campus Sum","N","17600000","Y"]
["17602100","CAES Research Support","N","17600000","Y"]
["17602200","CAES General Expense","N","17600000","Y"]
["17602300","Experimental Statistics","N","17600000","Y"]
["17603000","Griffin Business Office","N","17600000","Y"]
["17604000","Griffin Facilites Mgmt","N","17600000","Y"]
["17605000","Griffin Library","N","17600000","Y"]
["17606000","PGRCU","N","17600000","Y"]
["17607000","Field Research Services","N","17600000","Y"]
["17608000","CAES Continuing Education","N","17600000","Y"]
["17609000","Urban Ag","N","17600000","Y"]
["17610000","Northwest Georgia REC","N","17600000","Y"]
["17620000","Georgia Mountain REC","N","17600000","Y"]
["17700000","Tifton Campus","N","17000000","N"]
["17700001","Tift Campus Sum","N","17700000","Y"]
["17710000","Attapulgus REC","N","17700000","Y"]
["17720000","Southwest Georgia REC","N","17700000","Y"]
["17730000","Tifton Conference Center & RDC","N","17000000","N"]
["17730001","TCC/RDC Sum","N","17730000","Y"]
["17730100","TCC/RDC Office Admin","N","17730000","Y"]
["17730200","TCC/RDC Events","N","17730000","Y"]
["17740000","Stripling Irrigation Rsch Park","N","17700000","Y"]
["17750000","Southeast Georgia REC","N","17700000","Y"]
["19000000","College of Arts & Sciences","N","14000000","N"]
["190000HR","FC Human Resources","N","19000100","Y"]
["19000100","FC Dean's Office Summary","N","19000000","N"]
["19000ATD","FC Dean Dorsey ADMIN","N","19000100","Y"]
["19000BUD","FC Budget Office","N","19000100","Y"]
["19000DIV","FC Diversity","N","19000100","Y"]
["19000JMW","FC Jean Martin-Williams","N","19000100","Y"]
["19000KMT","FC Kecia Thomas","N","19000100","Y"]
["19000MHK","FC Martin Kagel","N","19000100","Y"]
["19000MXM","FC Michelle Momany","N","19000100","Y"]
["19000NXF","FC Noel Fallows","N","19000100","Y"]
["19000PAY","FC 163 Payroll & Encumbrances","N","19000100","Y"]
["19000PUB","FC Public Relations","N","19000100","Y"]
["19000RLM","FC Russell Malmberg","N","19000100","Y"]
["19000TLM","FC Tom Mote","N","19000100","Y"]
["19010107","FC Advising Summary","N","19000100","Y"]
["19010ADV","FC Advising","N","19000100","Y"]
["19010DHM","FC Diane Miller","N","19000100","Y"]
["19020DEV","FC Development","N","19000100","Y"]
["19030INT","FC International","N","19000100","Y"]
["19040ROM","FC Roman - Alcohol rsch","N","19000100","Y"]
["19070DSS","Museum DSS","N","19000100","Y"]
["19070MUS","Mus Natl Hist","N","19000100","Y"]
["19080000","FC OIT Summary","N","19000100","N"]
["19080COM","FC OIT College Commitments","N","19080000","Y"]
["19080FFE","FC OIT College FFE","N","19080000","Y"]
["19080GEN","FC OIT Operating - General","N","19080000","Y"]
["19080NWK","FC OIT Networking","N","19080000","Y"]
["19081000","FC OIT STF ALL Summary","N","19080000","N"]
["19081080","FC OIT Employees STF","N","19081000","Y"]
["19081081","FC OIT Hourly STF","N","19081000","Y"]
["19081210","FC OIT Biochemestry STF","N","19081DEP","Y"]
["19081220","FC OIT Bio Sciences STF","N","19081DEP","Y"]
["19081230","FC OIT Cellular Biology STF","N","19081DEP","Y"]
["19081240","FC OIT Genetics STF","N","19081DEP","Y"]
["19081250","FC OIT Marine Science STF","N","19081DEP","Y"]
["19081260","FC OIT Microbiology STF","N","19081DEP","Y"]
["19081270","FC OIT Plant Biology STF","N","19081DEP","Y"]
["19081310","FC OIT Art STF","N","19081DEP","Y"]
["19081320","FC OIT Dance STF","N","19081DEP","Y"]
["19081330","FC OIT Music STF","N","19081DEP","Y"]
["19081340","FC OIT Theatre STF","N","19081DEP","Y"]
["19081410","FC OIT Classics STF","N","19081DEP","Y"]
["19081420","FC OIT Comparative Lit STF","N","19081DEP","Y"]
["19081430","FC OIT English STF","N","19081DEP","Y"]
["19081440","FC OIT Germanic STF","N","19081DEP","Y"]
["19081450","FC OIT History STF","N","19081DEP","Y"]
["19081460","FC OIT Linguistics STF","N","19081DEP","Y"]
["19081470","FC OIT Philosophy STF","N","19081DEP","Y"]
["19081480","FC OIT Religion STF","N","19081DEP","Y"]
["19081490","FC OIT Romance Languages STF","N","19081DEP","Y"]
["19081510","FC OIT Chemistry STF","N","19081DEP","Y"]
["19081520","FC OIT Computer Science STF","N","19081DEP","Y"]
["19081530","FC OIT Geology STF","N","19081DEP","Y"]
["19081540","FC OIT Mathematics STF","N","19081DEP","Y"]
["19081550","FC OIT Physics STF","N","19081DEP","Y"]
["19081560","FC OIT Statistics STF","N","19081DEP","Y"]
["19081610","FC OIT Anthropology STF","N","19081DEP","Y"]
["19081620","FC OIT Comm Studies STF","N","19081DEP","Y"]
["19081630","FC OIT Geography STF","N","19081DEP","Y"]
["19081640","FC OIT Psychology STF","N","19081DEP","Y"]
["19081650","FC OIT Sociology STF","N","19081DEP","Y"]
["19081710","FC OIT African Amer Stud STF","N","19081DEP","Y"]
["19081720","FC OIT African Studies STF","N","19081DEP","Y"]
["19081730","FC OIT Artificial Intell STF","N","19081DEP","Y"]
["19081790","FCOIT Womens Studies STF","N","19081DEP","Y"]
["19081DEP","FC OIT STF DEPT Summary","N","19081000","N"]
["19081GEN","FC OIT STF General Summary","N","19081000","Y"]
["19100COM","FC College Commitments","N","19000100","Y"]
["19111FIB","FC Supp Instructional Budget","N","19000100","Y"]
["19122SUM","FC Summer School Comm.","N","19000100","Y"]
["19133IDC","FC IDC College Carry Forward","N","19000100","Y"]
["19144DSS","FC DSS College Carry Forward","N","19000100","Y"]
["19155GRI","FC Griffin Campus","N","19000100","Y"]
["19166STC","FC Short-Term Commitments","N","19000100","Y"]
["19210000","BCMB Biochemistry","N","19000000","N"]
["19210910","BCMB FCSIB","N","19210000","Y"]
["19210920","BCMB FC Summer","N","19210000","Y"]
["19210ADG","BCMB Adang","N","19210000","Y"]
["19210ADM","BCMB Adams","N","19210000","Y"]
["19210AVC","BCMB Avci","N","19210000","Y"]
["19210BCW","BCMB Wang","N","19210000","Y"]
["19210BFF","BCMB Fermentation","N","19210000","Y"]
["19210BLU","BCMB Blum","N","19210000","Y"]
["19210BMB","BCMB Operating","N","19210000","Y"]
["19210CAS","BCMB Cassera","N","19210000","Y"]
["19210DAL","BCMB Dalton","N","19210000","Y"]
["19210DAR","BCMB Darvill","N","19210000","Y"]
["19210DHD","BCMB Depart Head","N","19210000","Y"]
["19210DSS","BCMB Dept Sales","N","19210000","Y"]
["19210EDI","BCMB Edison","N","19210000","Y"]
["19210GAR","BCMB Garfinkel","N","19210000","Y"]
["19210GLO","BCMB Glover","N","19210000","Y"]
["19210HAL","BCMB Haltiwanger","N","19210000","Y"]
["19210ITO","BCMB Ito","N","19210000","Y"]
["19210KAN","BCMB Kannan","N","19210000","Y"]
["19210LAN","BCMB Lanzilotta","N","19210000","Y"]
["19210MED","BCMB Medlock","N","19210000","Y"]
["19210MOH","BCMB Mohnen","N","19210000","Y"]
["19210MOR","BCMB Moremen","N","19210000","Y"]
["19210ORL","BCMB Orlando","N","19210000","Y"]
["19210PIE","BCMB Pierce","N","19210000","Y"]
["19210PRZ","BCMB Przybyla","N","19210000","Y"]
["19210ROS","BCMB Rose","N","19210000","Y"]
["19210SAB","BCMB Sabatini","N","19210000","Y"]
["19210SCH","BCMB Schmidt","N","19210000","Y"]
["19210STE","BCMB Steet","N","19210000","Y"]
["19210TER","BCMB Terns","N","19210000","Y"]
["19210TIE","BCMB Tiemeyer","N","19210000","Y"]
["19210URB","BCMB Urbauer","N","19210000","Y"]
["19210WEL","BCMB Wells","N","19210000","Y"]
["19210WES","BCMB West","N","19210000","Y"]
["19210WNG","BCMB Wang, Lianchun","N","19210000","Y"]
["19210WOO","BCMB Woods","N","19210000","Y"]
["19210XRD","BCMB Xray Rose","N","19210000","Y"]
["19210YIN","BCMB Yin","N","19210000","Y"]
["19210YOR","BCMB York","N","19210000","Y"]
["19210YXU","BCMB Xu","N","19210000","Y"]
["19210ZHA","BCMB Zhao","N","19210000","Y"]
["19220000","BIOL Biological Sciences","Y","19000000","N"]
["19220001","BIOL Bio Sci Inst Admin","N","19220000","Y"]
["19220002","BIOL Sales&Service","N","19220000","Y"]
["1922000A","BIOL Biological Sciences Admin","N","19220000","Y"]
["19220021","BIOL Royalty Publications","N","19220000","Y"]
["192200JO","BIOL Biosci O'Donnell","N","19220000","Y"]
["192200KM","BIOL Biosci Miller","N","19220000","Y"]
["192200NA","BIOL Biosci Armstrong","N","19220000","Y"]
["19220910","BIOL FCSIB","N","19220000","Y"]
["19220920","BIOL FC Summer","N","19220000","Y"]
["19220980","BIOL Royalty Holding","N","19220000","Y"]
["19220LF4","BIOL Student Lab Fees","N","19220000","Y"]
["19220LF6","BIOL Student Lab Fees","N","19220000","Y"]
["19220RSH","BIOL Bio Sci Rsch Admin","N","19220000","Y"]
["19230000","CBIO Cellular Biology","N","19000000","N"]
["192300CS","CBIO Schulz","N","19230000","Y"]
["192300DK","CBIO Kamiyama","N","19230000","Y"]
["192300EK","CBIO Kipreos","N","19230000","Y"]
["192300JG","CBIO Gaertig","N","19230000","Y"]
["192300JS","CBIO Stanton","N","19230000","Y"]
["192300KK","CBIO Klonowski","N","19230000","Y"]
["192300KL","CBIO Lechtreck","N","19230000","Y"]
["192300PS","CBIO Shen","N","19230000","Y"]
["192300RD","CBIO Docampo","N","19230000","Y"]
["192300RT","CBIO Tarleton","N","19230000","Y"]
["19230910","CBIO FCSIB","N","19230000","Y"]
["19230920","CBIO FC Summer","N","19230000","Y"]
["19230DPT","CBIO Dept Accts","N","19230000","Y"]
["19230IDC","CBIO Indirect Cost","N","19230000","Y"]
["19230JDL","CBIO Lauderdale","N","19230000","Y"]
["19230KMW","CBIO Mensa-Wilmot","N","19230000","Y"]
["19230LAB","CBIO Lab Fees","N","19230000","Y"]
["19230PCH","CBIO Pcard Holding","N","19230000","Y"]
["19230RDE","CBIO Etheridge","N","19230000","Y"]
["19230RRG","CBIO Galbraith","N","19230000","Y"]
["19240000","GENE Genetics - General","N","19000000","N"]
["19240001","GENE Operations","N","19240000","Y"]
["19240002","GENE Student Support","N","19240000","Y"]
["19240003","GENE Faculty Support","N","19240000","Y"]
["19240004","GENE Moving & Relocation","N","19240000","Y"]
["19240005","GENE Vehicle Maintenance","N","19240000","Y"]
["19240006","GENE Physical Plant","N","19240000","Y"]
["19240007","GENE Student Travel","N","19240000","Y"]
["19240008","GENE Student Recruitment","N","19240000","Y"]
["19240009","GENE Seminars","N","19240000","Y"]
["19240100","GENE Inst Lab","N","19240000","Y"]
["19240105","GENE 4210L Fees/Sup","N","19240000","Y"]
["19240110","GENE 4230L Fees/Sup","N","19240000","Y"]
["19240115","GENE Inc/Sales","N","19240000","Y"]
["19240120","GENE Btz Inc/Sales","N","19240000","Y"]
["19240125","GENE Scz Inc/Sales","N","19240000","Y"]
["19240130","GENE Egg Inc/Sales","N","19240000","Y"]
["192401CB","GENE Casey Bergman Startup","N","19240000","Y"]
["192401MG","GENE Mary Goll Startup","N","19240000","Y"]
["192401MW","GENE Mike White Startup","N","19240000","Y"]
["192401RS","GENE Robert Schmitz Startup","N","19240000","Y"]
["19240910","GENE FCSIB","N","19240000","Y"]
["19240920","GENE FC Summer","N","19240000","Y"]
["19240DH1","GENE DH Nancy Manley","N","19240GDH","Y"]
["19240F01","GENE FYO-Primary","N","19240FYO","Y"]
["19240F02","GENE FYO-Dyer","N","19240FYO","Y"]
["19240F03","GENE FYO-JArnold","N","19240FYO","Y"]
["19240F04","GENE FYO-Manley","N","19240FYO","Y"]
["19240F05","GENE FYO-Condie","N","19240FYO","Y"]
["19240F06","GENE FYO-Mauricio","N","19240FYO","Y"]
["19240F07","GENE FYO-Hall","N","19240FYO","Y"]
["19240FYO","GENE First Year Odyssey","N","19240000","N"]
["19240GDH","GENE Department Head","N","19240000","N"]
["19240IDC","GENE Indirect Cost Return","N","19240000","Y"]
["19240KEY","GENE Key Deposit","N","19240000","Y"]
["19240PAY","GENE Payroll","N","19240000","Y"]
["19240R01","GENE Royalty Dept Share","N","19240ROY","Y"]
["19240R02","GENE Royalty Kandasamy","N","19240ROY","Y"]
["19240R03","GENE Royalty McKinney","N","19240ROY","Y"]
["19240R04","GENE Royalty Meagher","N","19240ROY","Y"]
["19240R05","GENE Royalty Karnuah","N","19240ROY","Y"]
["19240ROY","GENE Royalty Holding","N","19240000","N"]
["19240TVL","GENE Faculty Travel","N","19240000","Y"]
["19240VIP","GENE Rias/VIP funds","N","19240000","Y"]
["19250000","MARS Marine Sciences","N","19000000","N"]
["19250100","MARS Marine Sci Dept","N","19250000","N"]
["19250110","MARS Marine Sci Admin","N","19250100","Y"]
["19250120","MARS Marine Sci Lab Fees","N","19250100","Y"]
["19250130","MARS Marine Sci Instruction","N","19250100","Y"]
["19250140","MARS Marine Sci Research","N","19250100","Y"]
["19250150","MARS Marine Sci IDC","N","19250100","Y"]
["19250200","MARS Coastal Summer Program","N","19250100","N"]
["19250210","MARS Coastal Summer Lab Fees","N","19250200","Y"]
["19250220","MARS Coastal Summer Prog Fees","N","19250200","Y"]
["19250230","MARS Coastal Summer Tuition","N","19250200","Y"]
["19250300","MARS Ocean Discovery Camp","N","19250JOY","Y"]
["19250400","MARS Department Revenue","N","19250100","Y"]
["19250450","MARS Joye Bio Testing","N","19250JOY","Y"]
["19250500","MARS Faculty Funds","N","19250000","N"]
["19250910","MARS FCSIB","N","19250000","Y"]
["19250920","MARS FC Summer","N","19250000","Y"]
["19250AB1","MARS Burd","N","19250BUR","Y"]
["19250ALB","MARS Alber All Funds","N","19250500","N"]
["19250BB1","MARS Binder","N","19250BIN","Y"]
["19250BH1","MARS B Hopkinson","N","19250HOB","Y"]
["19250BIN","MARS Binder All Funds","N","19250500","N"]
["19250BUR","MARS Burd All Funds","N","19250500","N"]
["19250CAS","MARS Castelao All Funds","N","19250500","N"]
["19250CH1","MARS C Hopkinson","N","19250HOC","Y"]
["19250CM1","MARS Meile","N","19250MEI","Y"]
["19250DD1","MARS Di Iorio","N","19250DII","Y"]
["19250DHD","MARS Dept Head","N","19250100","Y"]
["19250DII","MARS Di Iorio All Funds","N","19250500","N"]
["19250HOB","MARS B Hopkinson All Funds","N","19250500","N"]
["19250HOC","MARS C Hopkinson All Funds","N","19250500","N"]
["19250HOL","MARS Hollibaugh All Funds","N","19250500","N"]
["19250JH1","MARS Hollibaugh","N","19250HOL","Y"]
["19250JOY","MARS Joye All Funds","N","19250500","N"]
["19250KET","MARS Teare-Ketter","N","19250500","Y"]
["19250MA1","MARS Alber","N","19250ALB","Y"]
["19250MED","MARS Medeiros All Funds","N","19250500","N"]
["19250MEI","MARS Meile All Funds","N","19250500","N"]
["19250MIL","MARS Miller All Funds","N","19250500","N"]
["19250MM1","MARS Moran","N","19250MOR","Y"]
["19250MOR","MARS Moran All Funds","N","19250500","N"]
["19250PM1","MARS Medeiros","N","19250MED","Y"]
["19250PY1","MARS Yager","N","19250YAG","Y"]
["19250RC1","MARS Castelao","N","19250CAS","Y"]
["19250SJ1","MARS Joye","N","19250JOY","Y"]
["19250WM1","MARS Miller","N","19250MIL","Y"]
["19250YAG","MARS Yager All Funds","N","19250500","N"]
["19260000","MIBO Microbiology","N","19000000","N"]
["19260001","MIBO Dept Admin","N","19260000","Y"]
["19260002","MIBO Instruction","N","19260000","Y"]
["19260003","MIBO IT","N","19260000","Y"]
["19260004","MIBO Maintenance","N","19260000","Y"]
["19260100","MIBO Department Head","N","19260000","Y"]
["19260200","MIBO Faculty Support","N","19260000","Y"]
["19260300","MIBO Grad Program","N","19260000","N"]
["19260301","MIBO Grad Program","N","19260300","Y"]
["19260302","MIBO Graduate Recruitment","N","19260300","Y"]
["19260303","MIBO Grad Program General","N","19260300","Y"]
["19260400","MIBO Seminar Series","N","19260000","N"]
["19260401","MIBO Seminar Series","N","19260400","Y"]
["19260402","MIBO MGSA Seminar","N","19260400","Y"]
["19260500","MIBO DSS - Lab Fees","N","19260000","N"]
["19260501","MIBO Intro Labs","N","19260500","Y"]
["19260502","MIBO Mibo4600L","N","19260500","Y"]
["19260600","MIBO DSS - Lab Manuals","N","19260000","Y"]
["19260700","MIBO DSS - Bergeys","N","19260000","Y"]
["19260910","MBIO FCSIB","N","19260000","Y"]
["19260920","MBIO FC Summer","N","19260000","Y"]
["19260ACK","MIBO Anna Karls","N","19260000","Y"]
["19260AOS","MIBO Anne Summers","N","19260000","Y"]
["19260COM","MIBO Commitments","N","19260000","Y"]
["19260DCK","MIBO Duncan Krause","N","19260000","Y"]
["19260DMD","MIBO Diana Downs","N","19260000","Y"]
["19260EAO","MIBO Elizabeth Ottesen","N","19260000","Y"]
["19260ELN","MIBO Ellen Neidle","N","19260000","Y"]
["19260EVS","MIBO Eric Stabb","N","19260000","Y"]
["19260JAN","MIBO Jan Mrazek","N","19260000","Y"]
["19260JCE","MIBO Jorge Escalante","N","19260000","Y"]
["19260JDP","MIBO Joy Peterson","N","19260000","Y"]
["19260LIN","MIBO Xiaorong Lin","N","19260000","Y"]
["19260RJM","MIBO Robert Maier","N","19260000","Y"]
["19260TRH","MIBO Timothy Hoover","N","19260000","Y"]
["19260VJS","MIBO Vincent Starai","N","19260000","Y"]
["19260WBW","MIBO William Whitman","N","19260000","Y"]
["19260ZAL","MIBO Zachary Lewis","N","19260000","Y"]
["19270000","PBIO Plant Biology","N","19000000","N"]
["19270001","PBIO Plant Biology","N","19270000","Y"]
["19270910","PBIO FCSIB","N","19270000","Y"]
["19270920","PBIO FC Summer","N","19270000","Y"]
["19270ALA","PBIO Magdy Alabady","N","19270000","Y"]
["19270BEN","PBIO Douda Bensasson","N","19270000","Y"]
["19270BEY","PBIO Jill Beyette","N","19270000","Y"]
["19270BRI","PBIO Peggy Brickman","N","19270000","Y"]
["19270BRU","PBIO Brigitte Bruns","N","19270000","Y"]
["19270BUC","PBIO Alex Bucksch","N","19270000","Y"]
["19270BUR","PBIO John Burke","N","19270000","Y"]
["19270CHA","PBIO Shu-Mei Chang","N","19270000","Y"]
["19270DAW","PBIO Kelly Dawe","N","19270000","Y"]
["19270DEE","PBIO Jonathan Dees","N","19270000","Y"]
["19270DEV","PBIO Katrien Devos","N","19270000","Y"]
["19270DON","PBIO Lisa Donovan","N","19270000","Y"]
["19270DSS","PBIO Department Sales","N","19270000","Y"]
["19270GH0","PBIO Greenhouse","N","19270000","Y"]
["19270GP0","PBIO Graduate Program","N","19270000","Y"]
["19270HB0","PBIO Herbarium","N","19270000","Y"]
["19270KHA","PBIO Chang-Hyun Khang","N","19270000","Y"]
["19270KSH","PBIO Kathrin Stanger-Hall","N","19270000","Y"]
["19270LAB","PBIO Lab Supply Fee","N","19270000","Y"]
["19270LBM","PBIO Jim Leebens-Mack","N","19270000","Y"]
["19270LUK","PBIO Wolfgang Lukowitz","N","19270000","Y"]
["19270MOM","PBIO Michelle Momany","N","19270000","Y"]
["19270PC0","PBIO Plant Center","N","19270000","Y"]
["19270PCC","PBIO Plant Center Conference","N","19270000","Y"]
["19270PET","PBIO Chris Peterson","N","19270000","Y"]
["19270PUC","PBIO Carrie Pucko","N","19270000","Y"]
["19270TRA","PBIO Dorset Trapnell","N","19270000","Y"]
["19270TSA","PBIO C J Tsai","N","19270000","Y"]
["19270ZHA","PBIO Xiaoyu Zhang","N","19270000","Y"]
["19270ZOM","PBIO Wendy Zomlefer","N","19270000","Y"]
["19270ZYE","PBIO Zheng-Hua Ye","N","19270000","Y"]
["19310000","ART School Of Art","N","19000000","N"]
["19310001","ART School-General","N","19310000","Y"]
["19310100","ART Dept Area Budget Primary","N","19310DAB","Y"]
["19310101","ART Art Education Area Budget","N","19310DAB","Y"]
["19310102","ART Art History Area Budget","N","19310DAB","Y"]
["19310103","ART Art X Area Budget","N","19310DAB","Y"]
["19310104","ART Studio Art Core Area Budg","N","19310DAB","Y"]
["19310105","ART Ceramics Area Budget","N","19310DAB","Y"]
["19310106","ART Draw & Paint Area Budget","N","19310DAB","Y"]
["19310107","ART Fabric Design Area Budget","N","19310DAB","Y"]
["19310108","ART Graphic Design Area Budget","N","19310DAB","Y"]
["19310109","ART Interior Design Area Budg","N","19310DAB","Y"]
["19310110","ART Jewelry & Metal Area Budg","N","19310DAB","Y"]
["19310111","ART Photo Area Budget","N","19310DAB","Y"]
["19310112","ART Printmaking Area Budget","N","19310DAB","Y"]
["19310113","ART Scientific Ill Area Budget","N","19310DAB","Y"]
["19310114","ART Sculpture Area Budget","N","19310DAB","Y"]
["19310200","ART FYO-Primary","N","19310FYO","Y"]
["19310201","ART FYO Nell Andrew","N","19310FYO","Y"]
["19310202","ART FYO Melissa Harshman","N","19310FYO","Y"]
["19310203","ART FYO Chris Hocking","N","19310FYO","Y"]
["19310204","ART FYO Thom Houser","N","19310FYO","Y"]
["19310205","ART FYO Mary Pearse","N","19310FYO","Y"]
["19310206","ART FYO Janice Simon","N","19310FYO","Y"]
["19310207","ART FYO Julie Spivey","N","19310FYO","Y"]
["19310208","ART FYO Jon Swindler","N","19310FYO","Y"]
["19310209","ART FYO Shelley Zuraw","N","19310FYO","Y"]
["19310300","ART Recruitment New Faculty-FC","N","19310REC","Y"]
["19310301","ART Grad School Recruit Funds","N","19310REC","Y"]
["19310302","ART Move & Relocate Funds-FC","N","19310REC","Y"]
["19310400","ART Lab Fee-Summary","N","19310LAB","Y"]
["19310401","ART Education Lab Fees","N","19310LAB","Y"]
["19310402","ART X Lab Fees","N","19310LAB","Y"]
["19310403","ART Ceramics Lab Fees","N","19310LAB","Y"]
["19310404","ART Draw & Paint Lab Fees","N","19310LAB","Y"]
["19310405","ART Fabric Design Lab Fees","N","19310LAB","Y"]
["19310406","ART Graphic Design Lab Fees","N","19310LAB","Y"]
["19310407","ART Interior Design Lab Fees","N","19310LAB","Y"]
["19310408","ART Jewelry & Metal Lab Fees","N","19310LAB","Y"]
["19310409","ART Photo Lab Fees","N","19310LAB","Y"]
["19310410","ART Printmaking Lab Fees","N","19310LAB","Y"]
["19310411","ART Studio Art Core Lab Fees","N","19310LAB","Y"]
["19310412","ART Scientific Illust Lab Fees","N","19310LAB","Y"]
["19310413","ART Sculpture Lab Fees","N","19310LAB","Y"]
["19310414","ART 3D(1080) Fndtion Lab Fees","N","19310LAB","Y"]
["19310500","ART Associate Director-Primary","N","19310ADB","Y"]
["19310501","ART Recruitment Budget","N","19310ADB","Y"]
["19310502","ART Advertise/Contract Budget","N","19310ADB","Y"]
["19310503","ART Dodd Library Budget","N","19310ADB","Y"]
["19310504","ART Tech & Space Budget","N","19310ADB","Y"]
["19310505","ART Gallery Budget","N","19310ADB","Y"]
["19310506","ART Dodd Ambassador Budget","N","19310ADB","Y"]
["19310507","ART Advising Office Budget","N","19310ADB","Y"]
["19310600","ART Chris Garvin Startup","N","19310STA","Y"]
["19310601","ART Christina Hanawalt Startup","N","19310STA","Y"]
["19310602","ART Courtney Mcclellan Startup","N","19310STA","Y"]
["19310603","ART Demitra Thomloudis Startup","N","19310STA","Y"]
["19310604","ART James Enos Startup","N","19310STA","Y"]
["19310700","ART Visiting Artist-Primary","N","19310VAS","Y"]
["19310701","ART AGAS Budget","N","19310VAS","Y"]
["19310702","ART Class Speakers","N","19310VAS","Y"]
["19310800","ART Wilson Center-Primary","N","19310WIL","Y"]
["19310801","ART Willson Ctr-Marni","N","19310WIL","Y"]
["19310802","ART Wilson Ctr-Nicholas","N","19310WIL","Y"]
["19310900","ART Sustainability-Primary","N","19310SST","Y"]
["19310901","ART Sustain-Susan Roberts","N","19310SST","Y"]
["19310902","ART Sustain-Jain Kwon","N","19310SST","Y"]
["19310903","ART Sustain-Kira Hegeman","N","19310SST","Y"]
["19310910","ARTS FCSIB","N","19310000","Y"]
["19310920","ARTS FC Summer","N","19310000","Y"]
["19310ADB","ART Associate Director Budgets","N","19310DAB","N"]
["19310BRZ","ART Bronze Acct","N","19310000","Y"]
["19310DAB","ART Dept Area Budget Summary","N","19310000","N"]
["19310FDN","ART Foundation Accounts","N","19310000","Y"]
["19310FYO","ART First Year Odyssey","N","19310000","N"]
["19310GEN","ART General Operating","N","19310000","Y"]
["19310H01","ART Dept Head-Supplement","N","19310HEA","Y"]
["19310HEA","ART Department Head","N","19310000","N"]
["19310LAB","ART Lab Fee Accounts","N","19310000","N"]
["19310REC","ART Recruitment","N","19310000","N"]
["19310RES","ART Dept Research Funds","N","19310000","Y"]
["19310SPO","ART Spotlight on Arts Budget","N","19310000","Y"]
["19310SST","ART Sustainability Funds","N","19310000","N"]
["19310SSW","ART Skill Swap Workshop","N","19310000","Y"]
["19310STA","ART Start Up Funds","N","19310000","N"]
["19310TCF","ART Technology Checkout Fund","N","19310000","Y"]
["19310TRA","ART Faculty Travel","N","19310000","Y"]
["19310VAS","ART Visiting Artist Budget","N","19310000","N"]
["19310VEH","ART Vehicle Rentals","N","19310000","Y"]
["19310WIL","ART Willson Center Funds","N","19310000","N"]
["19320000","DANC Dance Unit","N","19000000","N"]
["19320001","DANC Dance General","N","19320000","Y"]
["19320002","DANC Dance Instruction","N","19320000","Y"]
["19320003","DANC Dance Research","N","19320000","Y"]
["19320004","DANC New Dance Theatre","N","19320000","Y"]
["19320005","DANC Dance Lab Fees","N","19320000","Y"]
["19320006","DANC Dance Funding Various","N","19320000","Y"]
["19320007","DANC Sandy Beaver Award","N","19320000","Y"]
["19320910","DANC FCSIB","N","19320000","Y"]
["19320920","DANC FC Summer","N","19320000","Y"]
["19330000","MUSI Hugh Hodgson Sch of Music","N","19000000","N"]
["19330003","MUSI CD Sales","N","19330WGN","Y"]
["19330004","MUSI Student Fees","N","19330WGN","Y"]
["19330006","MUSI Ticket Sales","N","19330WGN","Y"]
["19330007","MUSI SMR Music Cmp","N","19330WGN","Y"]
["19330010","MUSI String Project","N","19330WPS","Y"]
["19330011","MUSI Community Music School","N","19330WPS","Y"]
["19330012","MUSI Double Bass","N","19330WRK","Y"]
["19330013","MUSI Saxophone","N","19330WRK","Y"]
["19330014","MUSI Orff Workshop","N","19330WRK","Y"]
["19330015","MUSI RCB CD Sales","N","19330RCB","Y"]
["19330016","MUSI UGA Bands","N","19330BND","Y"]
["19330019","MUSI Jazz Festival","N","19330WRK","Y"]
["19330020","MUSI Record/Stream","N","19330WGN","Y"]
["19330021","MUSI Int'L Prog","N","19330WRK","Y"]
["19330022","MUSI Orchestra","N","19330WRK","Y"]
["19330025","MUSI Bassoon","N","19330WRK","Y"]
["19330026","MUSI RC Auxiliaries","N","19330RCB","Y"]
["19330027","MUSI ARCO Chamber","N","19330ADM","Y"]
["19330028","MUSI PAC Support","N","19330ADM","Y"]
["19330030","MUSI RC Flagline","N","19330RCB","Y"]
["19330033","MUSI Choral Day","N","19330WRK","Y"]
["19330034","MUSI Choral Conduct","N","19330WRK","Y"]
["19330035","MUSI Clarinet","N","19330WRK","Y"]
["19330036","MUSI Levon Proff","N","19330ADM","Y"]
["19330037","MUSI Opera Support","N","19330ADM","Y"]
["19330038","MUSI Prokasy Prof","N","19330ADM","Y"]
["19330040","MUSI SE Tuba","N","19330WRK","Y"]
["19330041","MUSI Flute","N","19330WRK","Y"]
["19330042","MUSI Kodaly","N","19330WRK","Y"]
["19330044","MUSI Cloyd Duff","N","19330WRK","Y"]
["19330046","MUSI Burchinal Prof","N","19330ADM","Y"]
["19330047","MUSI Stdyabrdity","N","19330FLD","Y"]
["19330048","MUSI Fldstdyny","N","19330FLD","Y"]
["19330057","MUSI Director Suprt","N","19330ADM","Y"]
["19330064","MUSI Arco Support","N","19330ADM","Y"]
["19330065","MUSI Regents Levon","N","19330ADM","Y"]
["19330066","MUSI Faculty Research","N","19330ADM","Y"]
["19330067","MUSI Hoveland Opera","N","19330ADM","Y"]
["19330068","MUSI Online Class","N","19330ADM","Y"]
["19330070","MUSI Band Service","N","19330ADM","Y"]
["19330071","MUSI Boyd Choral","N","19330ADM","Y"]
["19330072","MUSI Opera Dorsey","N","19330ADM","Y"]
["19330073","MUSI Men's Glee Club","N","19330ADM","Y"]
["19330074","MUSI Miller Hodgson","N","19330ADM","Y"]
["19330075","MUSI Percussion Studio","N","19330ADM","Y"]
["19330141","MUSI Karlas Prof","N","19330ADM","Y"]
["19330144","MUSI Stdyabtuit","N","19330FLD","Y"]
["19330166","MUSI Hoveland Choral","N","19330ADM","Y"]
["19330167","MUSI Fldstdtuit","N","19330FLD","Y"]
["19330168","MUSI New Music Support","N","19330ADM","Y"]
["1933019J","MUSI Hhsom","N","19330ADM","Y"]
["19330237","MUSI RCB Wrkshp","N","19330RCB","Y"]
["19330240","MUSI Jazz Stdy Lowe","N","19330ADM","Y"]
["19330658","MUSI Mus Dev Lowe","N","19330ADM","Y"]
["19330665","MUSI Enhancement Fund","N","19330ADM","Y"]
["19330755","MUSI Beaver Tchverra","N","19330ADM","Y"]
["19330772","MUSI Mccay Fund","N","19330ADM","Y"]
["19330883","MUSI Warner Glee","N","19330ADM","Y"]
["19330900","MUSI Ind Cost Ret","N","19330ADM","Y"]
["19330910","MUSI FCSIB","N","19330000","Y"]
["19330920","MUSI FC Summer","N","19330000","Y"]
["19330924","MUSI 2nd Thurs Donations","N","19330ADM","Y"]
["19330947","MUSI RCB CD Sales Tax","N","19330RCB","Y"]
["19330950","MUSI Residual Bal","N","19330ADM","Y"]
["19330ADM","MUSI Music Admin","N","19330000","N"]
["19330BND","MUSI UGA Bands","N","19330000","N"]
["19330FLD","MUSI Field Study","N","19330000","N"]
["19330HEY","MUSI Heyward Prof","N","19330ADM","Y"]
["19330HHH","MUSI Hhsom GH","N","19330ADM","Y"]
["19330HHJ","MUSI Hhsom GJ","N","19330ADM","Y"]
["19330HHR","MUSI Hhsom GR","N","19330ADM","Y"]
["19330IND","MUSI Music Indirect","N","19330ADM","Y"]
["19330LSN","MUSI Lesson Non Mjr","N","19330WGN","Y"]
["19330RCB","MUSI Redcoat Band","N","19330000","N"]
["19330T01","MUSI STF Tech Fees","N","19330ADM","Y"]
["19330WGN","MUSI Workshop General","N","19330000","N"]
["19330WPS","MUSI Workshop Pub Serv","N","19330000","N"]
["19330WRK","MUSI Workshop Specific","N","19330000","N"]
["19340000","THEA Theatre & Film Studies","N","19000000","N"]
["19340001","THEA Operations","N","19340000","Y"]
["19340002","THEA Department Head","N","19340000","Y"]
["19340003","THEA Film Studies Head","N","19340000","Y"]
["19340004","THEA I.C.E. Program","N","19340000","Y"]
["19340005","THEA Film Studies Support","N","19340000","Y"]
["19340006","THEA Research Support","N","19340000","Y"]
["19340100","THEA Fine Arts Facility","N","19340000","Y"]
["19340101","THEA University Theatre","N","19340000","Y"]
["19340102","THEA Study Abroad","N","19340000","Y"]
["19340910","THEA FCSIB","N","19340000","Y"]
["19340920","THEA FC Summer","N","19340000","Y"]
["19340SUM","THEA Summary","N","19340000","Y"]
["19410000","CLAS Classics Summary","N","19000000","N"]
["19410001","CLAS Classics General","N","19410000","Y"]
["19410002","CLAS Dept Head","N","19410000","Y"]
["19410003","CLAS Albright","N","19410000","Y"]
["19410004","CLAS Bianchelli","N","19410000","Y"]
["19410005","CLAS Biggs","N","19410000","Y"]
["19410006","CLAS Corrigan","N","19410000","Y"]
["19410007","CLAS Dix","N","19410000","Y"]
["19410008","CLAS Eramso","N","19410000","Y"]
["19410009","CLAS Hermanowicz","N","19410000","Y"]
["19410010","CLAS Klein","N","19410000","Y"]
["19410011","CLAS Nicholson","N","19410000","Y"]
["19410012","CLAS O'Connell","N","19410000","Y"]
["19410013","CLAS Platter","N","19410000","Y"]
["19410014","CLAS Wolkow","N","19410000","Y"]
["19410100","CLAS Summer Institute","N","19410000","Y"]
["19410200","CLAS Post BAC","N","19410000","Y"]
["19410300","CLAS IDL Revenues","N","19410000","Y"]
["19410400","CLAS Rome","N","19410000","Y"]
["19410500","CLAS Europe","N","19410000","Y"]
["19410910","CLAS FCSIB","N","19410000","Y"]
["19410920","CLAS FC Summer","N","19410000","Y"]
["19420910","CMLT FCSIB","N","19420GEN","Y"]
["19420920","CMLT FC Summer","N","19420GEN","Y"]
["19420AAO","CMLT Akinloye Ojo Support","N","19420GEN","Y"]
["19420AXL","CMLT Ari Lieberman Support","N","19420GEN","Y"]
["19420CON","CMLT Conference Support","N","19420GEN","Y"]
["19420DMF","CMLT Dorothy Figueira Support","N","19420GEN","Y"]
["19420DMM","CMLT Dainess Maganda Support","N","19420GEN","Y"]
["19420DXB","CMLT Dezso Benedek Support","N","19420GEN","Y"]
["19420FMD","CMLT FMD Expenses","N","19420GEN","Y"]
["19420FSW","CMLT Frans Weiser Support","N","19420GEN","Y"]
["19420GEN","CMLT Complit General","N","19000000","N"]
["19420GOP","CMLT General Operating","N","19420GEN","Y"]
["19420GRD","CMLT Graduate Travel","N","19420GEN","Y"]
["19420HYI","CMLT Hyangsoon Yi Support","N","19420GEN","Y"]
["19420JDB","CMLT Joel Black Support","N","19420GEN","Y"]
["19420KEM","CMLT Karin Myhre Support","N","19420GEN","Y"]
["19420KXT","CMLT Karim Traore Support","N","19420GEN","Y"]
["19420LXM","CMLT Lioba Moshi Support","N","19420GEN","Y"]
["19420MIS","CMLT Mihai Spariosu Support","N","19420GEN","Y"]
["19420MSC","CMLT Miscellaneous","N","19420GEN","Y"]
["19420MXM","CMLT Masaki Mori Support","N","19420GEN","Y"]
["19420PON","CMLT Peter O'Neill Support","N","19420GEN","Y"]
["19420PRI","CMLT Public Relations Expenses","N","19420GEN","Y"]
["19420TJC","CMLT Tom Cerbu Support","N","19420GEN","Y"]
["19420YXW","CMLT Yuanfei Wang Support","N","19420GEN","Y"]
["19430000","ENGL English Summary","N","19000000","N"]
["19430100","ENGL English General Admin","N","19430000","Y"]
["19430200","ENGL English Operating","N","19430000","Y"]
["19430300","ENGL English Travel","N","19430000","N"]
["19430301","ENGL International Travel","N","19430300","Y"]
["19430302","ENGL Domestic Travel","N","19430300","Y"]
["19430400","ENGL Faculty Support","N","19430000","N"]
["19430401","ENGL English Dept Head","N","19430400","Y"]
["19430402","ENGL Allen Nicholas","N","19430400","Y"]
["19430403","ENGL Ballif Michelle","N","19430400","Y"]
["19430404","ENGL Balthazor Ron","N","19430400","Y"]
["19430405","ENGL Camp Cnthia","N","19430400","Y"]
["19430406","ENGL Davis Elizabeth","N","19430400","Y"]
["19430407","ENGL Desmet Christy","N","19430400","Y"]
["19430408","ENGL Eberle Roxanne","N","19430400","Y"]
["19430409","ENGL Evans Jonathan","N","19430400","Y"]
["19430410","ENGL Harding Lindsey","N","19430400","Y"]
["19430411","ENGL Henken Elissa","N","19430400","Y"]
["19430412","ENGL Howe Leanne (WILSON)","N","19430400","Y"]
["19430413","ENGL Iyengar Sujata","N","19430400","Y"]
["19430414","ENGL Jacobson Miriam","N","19430400","Y"]
["19430415","ENGL Kashyap Aruni","N","19430400","Y"]
["19430416","ENGL Kraft Elizabeth","N","19430400","Y"]
["19430417","ENGL Kretzschmar William","N","19430400","Y"]
["19430418","ENGL Lasek White Christine","N","19430400","Y"]
["19430419","ENGL LeGette Casie","N","19430400","Y"]
["19430420","ENGL Lootens Tricia","N","19430400","Y"]
["19430421","ENGL Lowe John","N","19430400","Y"]
["19430422","ENGL Marrs Cody","N","19430400","Y"]
["19430423","ENGL McCaskill Barbara","N","19430400","Y"]
["19430424","ENGL McKnight Reginald","N","19430400","Y"]
["19430425","ENGL Menke Richard","N","19430400","Y"]
["19430426","ENGL Miller Deborah","N","19430400","Y"]
["19430427","ENGL MILLER R Baxter","N","19430400","Y"]
["19430428","ENGL Morales Eric","N","19430400","Y"]
["19430429","ENGL Parkes Adam","N","19430400","Y"]
["19430430","ENGL Pavlic Ed","N","19430400","Y"]
["19430431","ENGL Pizzino Christopher","N","19430400","Y"]
["19430432","ENGL Rasula Jed","N","19430400","Y"]
["19430433","ENGL Romero Channette","N","19430400","Y"]
["19430434","ENGL Rosenbaum Susan","N","19430400","Y"]
["19430435","ENGL Santesso Esra","N","19430400","Y"]
["19430436","ENGL Tobin Beth","N","19430400","Y"]
["19430437","ENGL Wasley Aidan","N","19430400","Y"]
["19430438","ENGL Zawacki Andrew","N","19430400","Y"]
["19430439","ENGL Zurawski Magdalena","N","19430400","Y"]
["19430440","ENGL Babb V","N","19430400","Y"]
["19430500","ENGL English Atlas","N","19430000","Y"]
["19430600","ENGL First Year Composition","N","19430000","Y"]
["19430700","ENGL Creative Writing","N","19430000","Y"]
["19430800","ENGL Verse Journal","N","19430000","Y"]
["19430900","ENGL Writing Intensive Program","N","19430000","Y"]
["19430910","ENGL FCSIB","N","19430000","Y"]
["19430920","ENGL FC Summer","N","19430000","Y"]
["19430AGT","ENGL Agency","N","19430000","N"]
["19430BAL","ENGL Borrows And Lenders","N","19430AGT","Y"]
["19430DSS","ENGL Sales And Service","N","19430000","N"]
["19430EMM","ENGL Emma","N","19430DSS","Y"]
["19430KEY","ENGL Keys","N","19430AGT","Y"]
["19430LAB","ENGL Lab","N","19430DSS","Y"]
["19430OTH","ENGL Other","N","19430DSS","Y"]
["19430STF","ENGL Student Tech Fee","N","19430000","Y"]
["19430TEA","ENGL Trail Of Tears","N","19430AGT","Y"]
["19440910","GRMN FCSIB","N","19440GSS","Y"]
["19440920","GRMN FC Summer","N","19440GSS","Y"]
["19440BOS","GRMN Bosquette, Joshua","N","19440GSS","Y"]
["19440BYR","GRMN Byrd, Charles","N","19440GSS","Y"]
["19440CHA","GRMN Chapman, Katie","N","19440GSS","Y"]
["19440CRA","GRMN Crawford, Heide","N","19440GSS","Y"]
["19440DIB","GRMN DiBella,Inge","N","19440GSS","Y"]
["19440GOO","GRMN Gooze, Marjanne","N","19440GSS","Y"]
["19440GOS","GRMN Operations & Supplies","N","19440GSS","Y"]
["19440GSS","GRMN Germanic & Slavic Studies","Y","19000000","N"]
["19440GUE","GRMN Gueneli, Berna","N","19440GSS","Y"]
["19440HSF","GRMN Head Support fund","N","19440GSS","Y"]
["19440LAN","GRMN Langston, Keith","N","19440GSS","Y"]
["19440LEE","GRMN Lee-Shoenfeld, Vera","N","19440GSS","Y"]
["19440ROS","GRMN Rossbacher, Brigitte","N","19440GSS","Y"]
["19440SAG","GRMN Sager, Alexander","N","19440GSS","Y"]
["19440SPE","GRMN Spektor, Alex","N","19440GSS","Y"]
["19440THO","GRMN Thomsaon, Olga","N","19440GSS","Y"]
["19450000","HIST History","N","19000000","N"]
["19450001","HIST-gj","N","19450000","Y"]
["19450101","Hist FYO primary","N","19450FYO","Y"]
["19450102","HIST FYO second","N","19450FYO","Y"]
["19450103","HIST FYO third","N","19450FYO","Y"]
["19450104","HIST FYO fourth","N","19450FYO","Y"]
["19450105","HIST FYO fifth","N","19450FYO","Y"]
["19450106","HIST FYO sixth","N","19450FYO","Y"]
["19450107","HIST FYO seven","N","19450FYO","Y"]
["19450108","HIST YO eight","N","19450FYO","Y"]
["19450300","HIST-recruitment new faculty","N","19450REC","Y"]
["19450301","HIST-Graduate recruitment","N","19450REC","Y"]
["19450302","HIST-move & relocation","N","19450REC","Y"]
["19450500","HIST-primary","N","19450TRA","Y"]
["19450501","HIST-traveler1","N","19450TRA","Y"]
["19450502","Hist-traveler2","N","19450TRA","Y"]
["19450503","HIST-traveler3","N","19450TRA","Y"]
["19450504","HIST-traveler4","N","19450TRA","Y"]
["19450505","HIST-traveler5","N","19450TRA","Y"]
["19450506","HIST-traveler6","N","19450TRA","Y"]
["19450507","HIST-traveler7","N","19450TRA","Y"]
["19450508","HIST-traveler8","N","19450TRA","Y"]
["19450509","HIST-traveler9","N","19450TRA","Y"]
["19450510","HIST-traveler10","N","19450TRA","Y"]
["19450910","HIST FCSIB","N","19450000","Y"]
["19450920","HIST FC Summer","N","19450000","Y"]
["19450BHM","HIST Black History Workshop","N","19450000","Y"]
["19450DH1","HIST-primary","N","19450DHM","Y"]
["19450DH2","HIST- head support","N","19450DHM","Y"]
["19450DHM","HIST-DeptHead","N","19450000","N"]
["19450DHS","HIST-dirty","N","19450000","Y"]
["19450FDN","HIST-foundation Accounts","N","19450000","Y"]
["19450FYO","HIST First Year Odyssey","N","19450000","N"]
["19450G01","HIST-primary","N","19450GEN","Y"]
["19450G02","HIST-Levine","N","19450GEN","Y"]
["19450GEN","HIST-operating","N","19450000","N"]
["19450HDG","HIST-Gender","N","19450000","Y"]
["19450INS","HIST-Inscoe","N","19450000","Y"]
["19450LC1","HIST-Lecture1","N","19450TRA","Y"]
["19450LC2","HIST-Lecture2","N","19450TRA","Y"]
["19450MIM","HIST-Mihm","N","19450000","Y"]
["19450MIS","HIST-misc.","N","19450000","Y"]
["19450MOR","HIST-Morrow","N","19450000","Y"]
["19450REC","HIST-recruitment","N","19450000","N"]
["19450SHA","HIST-Southern Hist Society","N","19450000","Y"]
["19450SLA","HIST-Slsa","N","19450TRA","Y"]
["19450TCH","HIST-technolgy","N","19450000","Y"]
["19450TRA","HIST-travel","N","19450000","N"]
["19460000","Linguistics","N","19000000","N"]
["19460100","Linguistics","N","19460000","Y"]
["19460910","LING FCSIB","N","19460000","Y"]
["19460920","LING FC Summer","N","19460000","Y"]
["19470000","PHIL Philosophy","N","19000000","N"]
["19470910","PHIL FCSIB","N","19470000","Y"]
["19470920","PHIL FC Summer","N","19470000","Y"]
["19470PHI","PHIL Philosophy - Gen","N","19470000","Y"]
["19480000","RELI Religion General","N","19480REL","Y"]
["19480001","RELI Mccay Speakers","N","19480REL","Y"]
["19480002","RELI Davis Funds","N","19480REL","Y"]
["19480003","RELI Covenant Funds","N","19480REL","Y"]
["19480004","RELI Islamic Studies","N","19480REL","Y"]
["19480910","RELI FCSIB","N","19480REL","Y"]
["19480920","RELI FC Summer","N","19480REL","Y"]
["19480REL","RELI Religion Summary","N","19000000","N"]
["19490000","ROML Romance Languages","N","19000000","N"]
["19490100","ROML General Administration","N","19490000","Y"]
["19490200","ROML Operating","N","19490000","N"]
["19490201","ROML Visa Fees","N","19490200","Y"]
["19490202","ROML Visiting Scholars","N","19490200","Y"]
["19490203","ROML Fulbrights","N","19490200","Y"]
["19490204","ROML Instructors","N","19490200","Y"]
["19490205","ROML Graduate Students","N","19490200","Y"]
["19490206","ROML Recruitment","N","19490200","Y"]
["19490300","ROML Travel","N","19490000","N"]
["19490301","ROML International Travel","N","19490300","Y"]
["19490302","ROML Domestic Travel","N","19490300","Y"]
["19490400","ROML Faculty Support Funds","N","19490000","N"]
["19490401","ROML Department Head","N","19490400","Y"]
["19490402","ROML Anderson Mark","N","19490400","Y"]
["19490403","ROML Assaf Francis","N","19490400","Y"]
["19490404","ROML Baillehache Jonathan","N","19490400","Y"]
["19490405","ROML Blackwell Sarah","N","19490400","Y"]
["19490406","ROML Bultman Dana","N","19490400","Y"]
["19490407","ROML Casado Stacey","N","19490400","Y"]
["19490408","ROML Chamorro Pilar","N","19490400","Y"]
["19490409","ROML Correa-Díaz Luis","N","19490400","Y"]
["19490410","ROML De Santo Paola","N","19490400","Y"]
["19490411","ROML Fallows Noel","N","19490400","Y"]
["19490412","ROML Feracho Lesley","N","19490400","Y"]
["19490413","ROML Gabara Rachel","N","19490400","Y"]
["19490414","ROML Gordon Richard","N","19490400","Y"]
["19490415","ROML Grossvogel Steven","N","19490400","Y"]
["19490416","ROML Gupton Timothy","N","19490400","Y"]
["19490417","ROML Haddad Jonathan","N","19490400","Y"]
["19490418","ROML Howe Chad","N","19490400","Y"]
["19490419","ROML Jones Catherine","N","19490400","Y"]
["19490420","ROML Kaplan Betina","N","19490400","Y"]
["19490421","ROML Krell Jonathan","N","19490400","Y"]
["19490422","ROML Lucero Nicolas","N","19490400","Y"]
["19490423","ROML Moser Robert","N","19490400","Y"]
["19490424","ROML Pendergrass Jan","N","19490400","Y"]
["19490425","ROML Peterson Thomas","N","19490400","Y"]
["19490426","ROML Quesada Margaret","N","19490400","Y"]
["19490427","ROML Quinlan Susan","N","19490400","Y"]
["19490428","ROML Ranson Diana","N","19490400","Y"]
["19490429","ROML Raser Timothy","N","19490400","Y"]
["19490430","ROML Rodrigues Cecília","N","19490400","Y"]
["19490431","ROML Sahakian Emily","N","19490400","Y"]
["19490432","ROML Villate Alberto","N","19490400","Y"]
["19490433","ROML Wright Elizabeth","N","19490400","Y"]
["19490910","ROML FCSIB","N","19490000","Y"]
["19490920","ROML FC Summer","N","19490000","Y"]
["19490SAB","ROML Study Abroad Programs","N","19490SUM","Y"]
["19490STF","ROML Student Tech Fee","N","19490000","Y"]
["19490SUM","ROML Study Abr Progs Summary","N","19490400","N"]
["19510000","CHEM Chemistry","N","19000000","N"]
["19510001","CHEM Expense","N","19510000","Y"]
["19510008","CHEM Nmr Facility","N","19510000","Y"]
["19510011","CHEM Pams Facility","N","19510000","Y"]
["19510015","CHEM Amino Acids Rp","N","19510000","Y"]
["19510016","CHEM Chem Lab Fees","N","19510000","Y"]
["19510017","CHEM Xray Facility","N","19510000","Y"]
["19510018","CHEM Plotter Printer","N","19510000","Y"]
["19510023","CHEM Polymer Anal Jl","N","19510000","Y"]
["19510033","CHEM Smith Pas","N","19510000","Y"]
["19510034","CHEM Wheeler Chem Sf","N","19510000","Y"]
["19510910","CHEM FCSIB","N","19510000","Y"]
["19510920","CHEM FC Summer","N","19510000","Y"]
["19510AAF","CHEM Amanda Frossard","N","19510000","Y"]
["19510AIW","CHEM Ana West","N","19510000","Y"]
["19510CRK","CHEM Charles Kutal","N","19510000","Y"]
["19510DMJ","CHEM Douglas Jackson","N","19510000","Y"]
["19510DMN","CHEM Daphne Norton","N","19510000","Y"]
["19510DWS","CHEM Wayne Suggs","N","19510000","Y"]
["19510EMF","CHEM Eric Ferreira","N","19510000","Y"]
["19510GDS","CHEM Geoffrey Smith","N","19510000","Y"]
["19510GED","CHEM Gary Douberly","N","19510000","Y"]
["19510GFM","CHEM George Majetich","N","19510000","Y"]
["19510GHR","CHEM Gregory Robinson","N","19510000","Y"]
["19510HFS","CHEM Henry Schaefer","N","19510000","Y"]
["19510IJA","CHEM Jon Amster","N","19510000","Y"]
["19510JAC","CHEM Joel Caughran","N","19510000","Y"]
["19510JJL","CHEM Jason Locklin","N","19510000","Y"]
["19510JLS","CHEM John Stickney","N","19510000","Y"]
["19510JLU","CHEM Jeffrey Urbauer","N","19510000","Y"]
["19510JXI","CHEM Jin Xie","N","19510000","Y"]
["19510LAC","CHEM Lionel Carreira","N","19510000","Y"]
["19510MAD","CHEM Michael Duncan","N","19510000","Y"]
["19510MAR","CHEM Melanie Reber","N","19510000","Y"]
["19510MKJ","CHEM Michael Johnson","N","19510000","Y"]
["19510NJP","CHEM Norbert Pienta","N","19510000","Y"]
["19510RAS","CHEM Robert Scott","N","19510000","Y"]
["19510RBH","CHEM Richard Hubbard","N","19510000","Y"]
["19510RSP","CHEM Robert Phillips","N","19510000","Y"]
["19510RWM","CHEM Richard Morrison","N","19510000","Y"]
["19510SAB","CHEM Sara Blankenship","N","19510000","Y"]
["19510SEW","CHEM Stephen Wheeler","N","19510000","Y"]
["19510SRE","CHEM Suzanne Ellenberger","N","19510000","Y"]
["19510TCH","CHEM Todd Harrop","N","19510000","Y"]
["19510TJR","CHEM Ted Reber","N","19510000","Y"]
["19510TTS","CHEM Tina Salguero","N","19510000","Y"]
["19510VVP","CHEM Vladimir Popik","N","19510000","Y"]
["19510WDA","CHEM Wesley Allen","N","19510000","Y"]
["19510WDU","CHEM Wenjian Du","N","19510000","Y"]
["19520000","CSCI Computer Science","Y","19000000","N"]
["19520100","COMP SCI General Ops","N","19520000","Y"]
["19520910","CSCI FCSIB","N","19520000","Y"]
["19520920","CSCI FC Summer","N","19520000","Y"]
["19520ARA","CSCI Faculty Arabnia","N","19520000","Y"]
["19520ARP","CSCI Faculty Arpinar","N","19520000","Y"]
["19520BAR","CSCI Faculty Barnes","N","19520000","Y"]
["19520BHA","CSCI Faculty Bhandarkar","N","19520000","Y"]
["19520CAI","CSCI Faculty Cai","N","19520000","Y"]
["19520COT","CSCI Faculty Cotterell","N","19520000","Y"]
["19520DOS","CSCI Faculty Doshi","N","19520000","Y"]
["19520EVE","CSCI Faculty Everett","N","19520000","Y"]
["19520FUN","CSCI Faculty Funk","N","19520000","Y"]
["19520HOL","CSCI Faculty Hollingsworth","N","19520000","Y"]
["19520HON","CSCI Faculty Hong","N","19520000","Y"]
["19520HYB","CSCI Faculty Hybinette","N","19520000","Y"]
["19520KES","CSCI Faculty Keshtgari","N","19520000","Y"]
["19520KOC","CSCI Faculty Kochut","N","19520000","Y"]
["19520LEE","CSCI Faculty Jaewoo Lee","N","19520000","Y"]
["19520LEK","CSCI Faculty Kyu Lee","N","19520000","Y"]
["19520LIK","CSCI Faculty Li","N","19520000","Y"]
["19520LIU","CSCI Faculty Liu","N","19520000","Y"]
["19520MEE","CSCI Faculty Meena","N","19520000","Y"]
["19520MIL","CSCI Faculty Miller","N","19520000","Y"]
["19520PER","CSCI Faculty Perdisci","N","19520000","Y"]
["19520QUI","CSCI Faculty Quinn","N","19520000","Y"]
["19520RAM","CSCI Faculty Ramaswamy","N","19520000","Y"]
["19520RAS","CSCI Faculty Rasheed","N","19520000","Y"]
["19520SAL","CSCI Faculty Saleh","N","19520000","Y"]
["19520SCO","CSCI Faculty Scott","N","19520000","Y"]
["19520TAH","CSCI Faculty Taha","N","19520000","Y"]
["19520YAZ","CSCI Faculty Yazdansepas","N","19520000","Y"]
["19530000","GEOL Geology Summary","N","19000000","N"]
["19530910","GEOL FCSIB","N","19530000","Y"]
["19530920","GEOL FC Summer","N","19530000","Y"]
["19530COL","GEOL COL Field School","N","19530000","Y"]
["19530CRO","GEOL Crowe Faculty","N","19530000","Y"]
["19530GAR","GEOL Garrison Faculty","N","19530000","Y"]
["19530GEO","GEOL General Account","N","19530000","Y"]
["19530GOL","GEOL Goldstein Faculty","N","19530000","Y"]
["19530GRA","GEOL Grant and Residual","N","19530000","Y"]
["19530HAW","GEOL Hawman Faculty","N","19530000","Y"]
["19530HOL","GEOL Holland Faculty","N","19530000","Y"]
["19530HOW","GEOL Howarth Faculty","N","19530000","Y"]
["19530IDC","GEOL Indirect Cost","N","19530000","Y"]
["19530IFP","GEOL IFP Field School","N","19530000","Y"]
["19530KLI","GEOL Klimczak Faculty","N","19530000","Y"]
["19530LAB","GEOL Lab Fee","N","19530000","Y"]
["19530MIL","GEOL Milewski Faculty","N","19530000","Y"]
["19530NZE","GEOL Nzengung Faculty","N","19530000","Y"]
["19530PAA","GEOL Patino Alberto Faculty","N","19530000","Y"]
["19530PAM","GEOL Patino Marta Faculty","N","19530000","Y"]
["19530PRO","GEOL Probe Income","N","19530000","Y"]
["19530RAI","GEOL Railsback Faculty","N","19530000","Y"]
["19530ROD","GEOL Roden Faculty","N","19530000","Y"]
["19530SCH","GEOL Schroder Faculty","N","19530000","Y"]
["19530SED","GEOL SED Income","N","19530000","Y"]
["19530SIL","GEOL SIL Income","N","19530000","Y"]
["19530TRA","GEOL Travel","N","19530000","Y"]
["19530WAL","GEOL Walker Faculty","N","19530000","Y"]
["19530WRI","GEOL Wright Faculty","N","19530000","Y"]
["19530XRD","GEOL XRD Income","N","19530000","Y"]
["19540000","MATH Mathematics","N","19000000","N"]
["19540006","MATH Topology Conference","N","19540000","Y"]
["19540009","MATH Math Club","N","19540000","Y"]
["19540100","MATH Mathematics Operating","N","19540000","Y"]
["19540120","MATH Mathematics TJ19","N","19540000","Y"]
["19540225","MATH Dist Rsch Prof Lorenzini","N","19540000","Y"]
["19540234","MATH VIGRE","N","19540000","Y"]
["19540247","MATH Wu Startup","N","19540000","Y"]
["19540248","MATH Rider Startup","N","19540000","Y"]
["19540249","MATH Petridis Startup","N","19540000","Y"]
["19540250","MATH Bakker Startup","N","19540000","Y"]
["19540300","MATH Indirect","N","19540000","Y"]
["19540400","MATH Mathematics General GR","N","19540000","Y"]
["19540500","MATH UGARF SUPPORT","N","19540000","Y"]
["19540910","MATH FCSIB","N","19540000","Y"]
["19540920","MATH FC Summer","N","19540000","Y"]
["19550000","PHYS Physics & Astronomy","N","19000000","N"]
["19550001","PHYS Ctr for Sim Physics","N","19550000","N"]
["19550910","PHYS FCSIB","N","19550000","Y"]
["19550920","PHYS FC Summer","N","19550000","Y"]
["19550CCW","PHYS Craig Wiegert","N","19550000","Y"]
["19550COL","PHYS Colloquium Expenses","N","19550000","Y"]
["19550CSP","PHYS CSP General","N","19550001","Y"]
["19550CSW","PHYS CSP Workshop","N","19550001","Y"]
["19550DIT","PHYS Department IT","N","19550000","Y"]
["19550DPL","PHYS David P. Landau","N","19550001","Y"]
["19550HBS","PHYS Hb Schuttler","N","19550001","Y"]
["19550HHM","PHYS Henning H. Meyer","N","19550000","Y"]
["19550INS","PHYS Instruction","N","19550000","Y"]
["19550ISS","PHYS Inseok Song","N","19550000","Y"]
["19550JPC","PHYS Jean-Pierre Caillault","N","19550000","Y"]
["19550KKM","PHYS KK Mon","N","19550000","Y"]
["19550KZN","PHYS Kanzo Nakayama","N","19550000","Y"]
["19550LAB","PHYS Instructional Labs","N","19550000","Y"]
["19550LAM","PHYS Loris A. Magnani","N","19550000","Y"]
["19550MCB","PHYS Michael Bachmann","N","19550001","Y"]
["19550MRG","PHYS Michael Geller","N","19550001","Y"]
["19550PCS","PHYS Phillip C. Stancil","N","19550001","Y"]
["19550QUZ","PHYS Qun Zhao","N","19550000","Y"]
["19550RES","PHYS Research","N","19550000","Y"]
["19550RLS","PHYS Robin Shelton","N","19550001","Y"]
["19550SPL","PHYS Steven P. Lewis","N","19550001","Y"]
["19550SUU","PHYS Susanne Ullrich","N","19550000","Y"]
["19550THN","PHYS Tho Nguyen","N","19550000","Y"]
["19550UWH","PHYS Uwe Happek","N","19550000","Y"]
["19550WMD","PHYS William M. Dennis","N","19550000","Y"]
["19550YOA","PHYS Yohannes Abate","N","19550000","Y"]
["19550YPZ","PHYS Yiping Zhao","N","19550000","Y"]
["19560000","STAT Statistics","N","19000000","N"]
["19560001","STAT General","N","19560000","Y"]
["19560910","STAT FCSIB","N","19560000","Y"]
["19560920","STAT FC Summer","N","19560000","Y"]
["19560AMA","STAT Abhyuday Mandal","N","19560FAC","Y"]
["19560CCA","STAT Catherine Case","N","19560FAC","Y"]
["19560COL","STAT Colloquium Expenses","N","19560000","Y"]
["19560CPA","STAT Cheolwoo Park","N","19560FAC","Y"]
["19560DHA","STAT Daniel Hall","N","19560FAC","Y"]
["19560FAC","STAT Faculty","N","19560000","N"]
["19560FSR","STAT Faculty Searches","N","19560000","Y"]
["19560GDA","STAT Gauri Datta","N","19560FAC","Y"]
["19560GRA","STAT Graduate Recruitment","N","19560000","Y"]
["19560JAH","STAT Jeongyoun Ahn","N","19560FAC","Y"]
["19560JKA","STAT Jennifer Kaplan","N","19560FAC","Y"]
["19560JRE","STAT Jaxk Reeves","N","19560FAC","Y"]
["19560KGI","STAT Kim Gilbert","N","19560FAC","Y"]
["19560LBI","STAT Lynne Billard","N","19560FAC","Y"]
["19560LLI","STAT Liang Liu","N","19560FAC","Y"]
["19560LSE","STAT Lynne Seymour","N","19560FAC","Y"]
["19560MDU","STAT Mickey Dunlap","N","19560FAC","Y"]
["19560MLU","STAT Megan Lutz","N","19560FAC","Y"]
["19560MWE","STAT Mark Werner","N","19560FAC","Y"]
["19560NLA","STAT Nicole Lazar","N","19560FAC","Y"]
["19560PJI","STAT Pengsheng Ji","N","19560FAC","Y"]
["19560PMA","STAT Ping Ma","N","19560FAC","Y"]
["19560PSC","STAT Paul Schliekelman","N","19560FAC","Y"]
["19560QXI","STAT Qian Xiao","N","19560FAC","Y"]
["19560RDC","STAT RDC Expenses","N","19560000","Y"]
["19560SBA","STAT Shuyang Bai","N","19560FAC","Y"]
["19560SCC","STAT Stat. Consulting Center","N","19560000","Y"]
["19560TSR","STAT Tharuvai Sriram","N","19560FAC","Y"]
["19560WZH","STAT Wenxuan Zhong","N","19560FAC","Y"]
["19560XCH","STAT Xianyan Chen","N","19560FAC","Y"]
["19610000","ANTH Anthropology","N","19000000","N"]
["19610001","ANTH General","N","19610000","Y"]
["19610002","ANTH Excavation","N","19610000","Y"]
["19610100","ANTH Site File","N","19610000","Y"]
["19610101","ANTH Anth 4300 Lab Fee","N","19610000","Y"]
["19610102","ANTH Anth 3045L Lab Fee","N","19610000","Y"]
["19610104","ANTH Bioarch & Biochem","N","19610000","Y"]
["19610105","ANTH Zooarchaeology","N","19610000","Y"]
["19610106","ANTH Quip Lab","N","19610000","Y"]
["19610107","ANTH Continuing Curation","N","19610000","Y"]
["19610195","ARCH Archaeology","N","19610000","Y"]
["19610910","ANTH FCSIB","N","19610000","Y"]
["19610920","ANTH FC Summer","N","19610000","Y"]
["19610BTU","ANTH Bram Tucker","N","19610000","Y"]
["19610DNE","ANTH Donald Nelson","N","19610FAC","Y"]
["19610EGA","ANTH Ervan Garrison","N","19610FAC","Y"]
["19610ERE","ANTH Elizabeth Reitz","N","19610FAC","Y"]
["19610FAC","ANTH Faculty","N","19610000","N"]
["19610GRF","ANTH Graduate Recruitment","N","19610000","Y"]
["19610JBI","ANTH Jennifer Birch","N","19610FAC","Y"]
["19610JVR","ANTH Julie Velazquez Runk","N","19610FAC","Y"]
["19610LGE","ANTH Laura German","N","19610FAC","Y"]
["19610LRE","ANTH Laurie Reitsema","N","19610FAC","Y"]
["19610MWI","ANTH Mark Williams","N","19610FAC","Y"]
["19610PBR","ANTH Peter Brosius","N","19610FAC","Y"]
["19610RSA","ANTH Roberta Salmi","N","19610FAC","Y"]
["19610SBI","ANTH Suzanne Birch","N","19610FAC","Y"]
["19610SQU","ANTH Sergio Quesada","N","19610FAC","Y"]
["19610STA","ANTH Susan Tanner","N","19610FAC","Y"]
["19610TGR","ANTH Theodore Gragson","N","19610FAC","Y"]
["19610VNA","ANTH Virginia Nazarea","N","19610FAC","Y"]
["19610VSF","ANTH Visiting Scholar Funds","N","19610000","Y"]
["19610VTH","ANTH Victor Thompson","N","19610FAC","Y"]
["19620000","COMM Comm Studies Control","N","19000000","N"]
["19620003","COMM Comm Studies Reseach","N","19620000","N"]
["19620004","COMM Comm Studies Custom Pub","N","19620000","Y"]
["19620005","COMM Comm Studies Other","N","19620000","N"]
["196200DH","COMM Dept Head Funds","N","19620003","Y"]
["196200GC","COMM Grad Coord Funds","N","19620003","Y"]
["19620910","COMM FCSIB","N","19620000","Y"]
["19620920","COMM FC Summer","N","19620000","Y"]
["19620AGY","COMM Agency","N","19620005","Y"]
["19620CNT","COMM Comm Studies C-T","N","19620000","Y"]
["19620FA1","COMM Fac Supplemental Funds 1","N","19620003","Y"]
["19620FA2","COMM Fac Supplemental Funds 2","N","19620003","Y"]
["19620FA3","COMM Fac Supplemental Funds 3","N","19620003","Y"]
["19620FA4","COMM Fac Supplemental Funds 4","N","19620003","Y"]
["19620FA5","COMM Fac Supplemental Funds 5","N","19620003","Y"]
["19620GDU","COMM GA Deb Union","N","19620000","Y"]
["19620RCN","COMM COMM Studies R-Control","N","19620003","Y"]
["19620RES","COMM Restricted","N","19620005","Y"]
["19620ST1","COMM Start-Up Funds 1","N","19620003","Y"]
["19620ST2","COMM Start-Up Funds 2","N","19620003","Y"]
["19620UGC","COMM Undergrad Coord Funds","N","19620003","Y"]
["19630000","GEOG Geography Summary","Y","19000000","N"]
["19630910","GEOG FCSIB","N","19630000","Y"]
["19630920","GEOG FC Summer","N","19630000","Y"]
["19630BIR","GEOG Birch","N","19630000","Y"]
["19630BRK","GEOG Brook","N","19630000","Y"]
["19630CGR","GEOG Ctr For Geospatial Rsch","N","19630000","Y"]
["19630GGY","GEOG Geography General","N","19630000","Y"]
["19630GND","GEOG Grundstein","N","19630000","Y"]
["19630HEY","GEOG Heynen","N","19630000","Y"]
["19630HOL","GEOG Holloway","N","19630000","Y"]
["19630KPM","GEOG Kooperman","N","19630000","Y"]
["19630KTZ","GEOG Kurtz","N","19630000","Y"]
["19630LGH","GEOG Leigh","N","19630000","Y"]
["19630MOT","GEOG Mote","N","19630000","Y"]
["19630MSH","GEOG Mishra","N","19630000","Y"]
["19630MUL","GEOG Mu","N","19630000","Y"]
["19630OSL","GEOG DSS Osl","N","19630000","Y"]
["19630POR","GEOG Porinchu","N","19630000","Y"]
["19630ROY","GEOG DSS Royalty","N","19630000","Y"]
["19630SAR","GEOG Sarmiento","N","19630000","Y"]
["19630SEG","GEOG DSS Seg","N","19630000","Y"]
["19630SHN","GEOG Shannon","N","19630000","Y"]
["19630SHP","GEOG Shepherd","N","19630000","Y"]
["19630TRG","GEOG Trauger","N","19630000","Y"]
["19640000","PSYC Psychology","N","19000000","N"]
["19640012","PSYC Psychology - Misc","N","19640000","Y"]
["19640019","PSYC Psychology Clinic","N","19640000","Y"]
["19640032","PSYC IOMP Program","N","19640000","Y"]
["196400DC","PSYC D Carter Start up","N","19640000","Y"]
["196400DH","PSYC Dept Head Support","N","19640000","Y"]
["196400GS","PSYC G Strauss Start up","N","19640000","Y"]
["196400IM","PSYC I Metzger Start up","N","19640000","Y"]
["196400JL","PSYC J Lavner Start up","N","19640000","Y"]
["196400KE","PSYC K Ehrlich Start up","N","19640000","Y"]
["196400KS","PSYC K Shockley Start up","N","19640000","Y"]
["19640910","PSYC FCSIB","N","19640000","Y"]
["19640920","PSYC FC Summer","N","19640000","Y"]
["19640BIN","PSYC BIRC Income","N","19640000","Y"]
["19640BUD","PSYC Budget","N","19640000","Y"]
["19640CAD","PSYC Clinic Administration","N","19640000","Y"]
["19640CIN","PSYC Clinic Income","N","19640000","Y"]
["19640GEN","PSYC Psychology General","N","19640000","Y"]
["19640HSD","PSYC UGA UA Holmes Seed Funds","N","19640000","Y"]
["19640PGF","PSYC Grad Asst Funding","N","19640000","Y"]
["19640PIN","PSYC Dept Income","N","19640000","Y"]
["19640SSD","PSYC CTRU Seed Grant Strauss","N","19640000","Y"]
["19640VIP","PSYC Vip Tuition Funds","N","19640000","Y"]
["19650000","SOCI Sociology","N","19000000","N"]
["19650001","SOCI Sociology General","N","19650000","Y"]
["19650100","SOCI Soc/Crim Jus Liverpool","N","19650000","Y"]
["19650200","SOCI Start Up","N","19650000","N"]
["19650201","SOCI Graizbord","N","19650200","Y"]
["19650202","SOCI Erigha","N","19650200","Y"]
["19650203","SOCI Derpic","N","19650200","Y"]
["19650910","SOCI FCSIB","N","19650000","Y"]
["19650920","SOCI FC Summer","N","19650000","Y"]
["19650FAC","SOCI Faculty","N","19650000","N"]
["19650JCO","SOCI James Coverdill RU","N","19650FAC","Y"]
["19710000","AFAM African American Studies","N","19000000","N"]
["19710001","AFAM AfriAmerican Studies Gen","N","19710000","Y"]
["19710910","AFAM FCSIB","N","19710000","Y"]
["19710920","AFAM FC Summer","N","19710000","Y"]
["19720000","AFST African Studies","N","19000000","N"]
["19720001","AFST African Studies Gen","N","19720000","Y"]
["19720910","AFST FCSIB","N","19720000","Y"]
["19720920","AFST FC Summer","N","19720000","Y"]
["19730000","ARTI Artificial Intelligence","N","19000000","N"]
["19730001","ARTI General","N","19730000","Y"]
["19730002","ARTI Faculty Travel","N","19730000","Y"]
["19730003","ARTI Graduate Travel","N","19730000","Y"]
["19730910","ARTI FCSIB","N","19730000","Y"]
["19730920","ARTI FC Summer","N","19730000","Y"]
["19740000","Computational Chemistry","N","19000000","N"]
["197400ST","CCQC Students","N","19740000","Y"]
["19740920","CCQC FC Summer","N","19740000","Y"]
["19740HFS","CCQC Dr. Henry Schaefer","N","19740000","Y"]
["19740RBK","CCQC Dr. R. Bruce King","N","19740000","Y"]
["19740SEW","CCQC Dr. Steven Wheeler","N","19740000","Y"]
["19740WDA","CCQC Dr. Wesley Allen","N","19740000","Y"]
["19745CMS","CMS Ctr Metalloenzy Studies","N","19000000","Y"]
["19750000","CRIM Criminal Justice Sum","N","19000000","N"]
["19750001","CRIM Criminal Justice Gen","N","19750000","Y"]
["19750920","CRIM FC Summer","N","19750000","Y"]
["19755NAM","NAMS Inst Native Amer Studies","N","19000000","Y"]
["19760000","BINF Inst Bioinformatics","N","19000000","N"]
["19760001","BINF Inst Bioinformatics Gen","N","19760000","Y"]
["19760910","BINF FCSIB","N","19760000","Y"]
["19760920","BINF FC Summer","N","19760000","Y"]
["19770000","LACS Unit","N","19000000","N"]
["19770001","LACS LACSI General","N","19770000","Y"]
["19770910","LACS FCSIB","N","19770000","Y"]
["19770920","LACS FC Summer","N","19770000","Y"]
["19770GSA","LACS Plant Sales","N","19770000","Y"]
["19780000","RCLD - General","N","19780REG","Y"]
["19780CON","RCLD - Conference","N","19780REG","Y"]
["19780INC","RCLD - Income","N","19780REG","Y"]
["19780REG","RCLD- Summary","N","19000000","N"]
["19790000","WMST Women'S Studies","N","19000000","N"]
["19790001","WMST Women's Studies General","N","19790000","Y"]
["19790002","WMST Women'S History Month","N","19790000","Y"]
["19790003","WMST Women & Girls In Georgia","N","19790000","Y"]
["19790910","WMST FCSIB","N","19790000","Y"]
["19790920","WMST FC Summer","N","19790000","Y"]
["20000000","Terry College of Business","N","14000000","N"]
["20196000","TCB-Office Of The Dean","Y","20000000","N"]
["20197100","TCB-Mgt Info Sys.","Y","20000000","N"]
["20197118","TCB-MIS-Phd Programs","Y","20000000","N"]
["20197160","TCB-MIS-Dept Admin","N","20197100","Y"]
["20197199","TCB-MIS-Business Office","Y","20000000","N"]
["201971AT","TCB-MIS-Amit Tiwana","N","20197100","Y"]
["201971CP","TCB-MIS-Craig Piercy","N","20197100","Y"]
["201971D0","TCB-MIS-Phd. Student 0","N","20197118","Y"]
["201971D1","TCB-MIS-Phd. Student 1","N","20197118","Y"]
["201971D2","TCB-MIS-Phd. Student 2","N","20197118","Y"]
["201971D3","TCB-MIS-Phd. Student 3","N","20197118","Y"]
["201971D4","TCB-MIS-Phd. Student 4","N","20197118","Y"]
["201971D5","TCB-MIS-Phd. Student 5","N","20197118","Y"]
["201971D6","TCB-MIS-Phd. Student 6","N","20197118","Y"]
["201971D7","TCB-MIS-Phd. Student 7","N","20197118","Y"]
["201971D8","TCB-MIS-Phd. Student 8","N","20197118","Y"]
["201971D9","TCB-MIS-Phd. Student 9","N","20197118","Y"]
["201971DC","TCB-MIS-Dave Chatterjee","N","20197100","Y"]
["201971EK","TCB-MIS-Elena Karahanna","N","20197100","Y"]
["201971F0","TCB-MIS-Faculty 0","N","20197199","Y"]
["201971F1","TCB-MIS-Faculty 1","N","20197199","Y"]
["201971F2","TCB-MIS-Faculty 2","N","20197199","Y"]
["201971F3","TCB-MIS-Faculty 3","N","20197199","Y"]
["201971F4","TCB-MIS-Faculty 4","N","20197199","Y"]
["201971F5","TCB-MIS-Faculty 5","N","20197199","Y"]
["201971HS","TCB-MIS-Hani Safadi","N","20197100","Y"]
["201971HW","TCB-MIS-Hugh Watson","N","20197100","Y"]
["201971JA","TCB-MIS-Janine Aronson","N","20197100","Y"]
["201971MB","TCB-MIS-Maric Boudreau","N","20197100","Y"]
["201971MH","TCB-MIS-Mark Huber","N","20197100","Y"]
["201971NB","TCB-MIS-Nick Berente","N","20197100","Y"]
["201971NS","TCB-MIS-Nikhil Srinivasan","N","20197100","Y"]
["20197200","TCB-MIS-Mast Bus Tech","Y","20000000","N"]
["20197260","TCB-MIS-MBT Admin","N","20197200","Y"]
["20198100","TCB-ACC-Accounting","Y","20000000","N"]
["20198118","TCB-ACC-Phd Programs","N","20000000","Y"]
["20198160","TCB-ACC-Dept Admin","N","20198100","Y"]
["20198199","TCB-ACC-Business Office","Y","20000000","N"]
["201981BR","TCB-ACC-Bob Resutek","N","20198100","Y"]
["201981BW","TCB-ACC-Ben Whipple","N","20198100","Y"]
["201981ET","TCB-ACC-Erin Towery","N","20198100","Y"]
["201981F0","TCB-ACC-Faculty 0","N","20198199","Y"]
["201981F1","TCB-ACC-Faculty 1","N","20198199","Y"]
["201981F2","TCB-ACC-Faculty 2","N","20198199","Y"]
["201981F3","TCB-ACC-Faculty 3","N","20198199","Y"]
["201981F4","TCB-ACC-Faculty 4","N","20198199","Y"]
["201981F5","TCB-ACC-Faculty 5","N","20198199","Y"]
["201981FH","TCB-ACC-Frank Heflin","N","20198100","Y"]
["201981JC","TCB-ACC-John Campbell","N","20198100","Y"]
["201981JG","TCB-ACC-Jenny Gaver","N","20198100","Y"]
["201981JH","TCB-ACC-Jackie Hammersley","N","20198100","Y"]
["201981JL","TCB-ACC-Joshua Lee","N","20198100","Y"]
["201981JU","TCB-ACC-Justin Leiby","N","20198100","Y"]
["201981MC","TCB-ACC-Margaret Christ","N","20198100","Y"]
["201981SB","TCB-ACC-Steve Baginski","N","20198100","Y"]
["201981SR","TCB-ACC-Santosh R.","N","20198100","Y"]
["201981TC","TCB-ACC-Ted Christensen","N","20198100","Y"]
["201981TI","TCB-ACC-Tina Carpenter","N","20198100","Y"]
["20198200","TCB-ACC-Under-Grad Prog","N","20000000","Y"]
["20198300","TCB-ACC-Macc","N","20000000","Y"]
["20199100","TCB-FIN-Finance Dept","Y","20000000","N"]
["20199118","TCB-FIN-Phd Programs","N","20000000","Y"]
["20199160","TCB-FIN-Dept Admin","N","20199100","Y"]
["20199199","TCB-FIN-Business Office","Y","20000000","N"]
["201991AP","TCB-FIN-Annette Poulsen","N","20199100","Y"]
["201991CR","TCB-FIN-Cesare Robotti","N","20199100","Y"]
["201991CY","TCB-FIN-Celim Yildizhan","N","20199100","Y"]
["201991F0","TCB-FIN-Faculty 0","N","20199199","Y"]
["201991F1","TCB-FIN-Faculty 1","N","20199199","Y"]
["201991F2","TCB-FIN-Faculty 2","N","20199199","Y"]
["201991F3","TCB-FIN-Faculty 3","N","20199199","Y"]
["201991F4","TCB-FIN-Faculty 4","N","20199199","Y"]
["201991F5","TCB-FIN-Faculty 5","N","20199199","Y"]
["201991HM","TCB-FIN-Harold Mulherin","N","20199100","Y"]
["201991JE","TCB-FIN-Jie He","N","20199100","Y"]
["201991JH","TCB-FIN-John Hund","N","20199100","Y"]
["201991JN","TCB-FIN-Jeffry Netter","N","20199100","Y"]
["201991JW","TCB-FIN-Joshua White","N","20199100","Y"]
["201991LC","TCB-FIN-Lee Cohen","N","20199100","Y"]
["201991RS","TCB-FIN-Ralph Steuer","N","20199100","Y"]
["201991SG","TCB-FIN-Stuart Gillan","N","20199100","Y"]
["201991SH","TCB-FIN-Sara Holland","N","20199100","Y"]
["201991TS","TCB-FIN-Tao Shu","N","20199100","Y"]
["201991UL","TCB-FIN-Ugur Lel","N","20199100","Y"]
["201991ZL","TCB-FIN-Zhongjin Lu","N","20199100","Y"]
["20200100","TCB-Economics Dept","Y","20000000","N"]
["20200118","TCB-ECON-Grad/ Phd. Programs","N","20000000","Y"]
["20200160","TCB-Economics Dept Admin","N","20200100","Y"]
["20200199","TCB-ECON-Business Office","Y","20000000","N"]
["202001F0","TCB-ECON-Faculty 0","N","20200199","Y"]
["202001F1","TCB-ECON-Faculty 1","N","20200199","Y"]
["202001F2","TCB-ECON-Faculty 2","N","20200199","Y"]
["202001F3","TCB-ECON-Faculty 3","N","20200199","Y"]
["202001F4","TCB-ECON-Faculty 4","N","20200199","Y"]
["202001F5","TCB-ECON-Faculty 5","N","20200199","Y"]
["20200200","TCB-ECON-TT Faculty","Y","20000000","N"]
["202002BL","TCB-ECON-Bill Lastrapes","N","20200200","Y"]
["202002BV","TCB-ECON-Bill Vogt","N","20200200","Y"]
["202002CC","TCB-ECON-Chris Cornwell","N","20200200","Y"]
["202002DM","TCB-ECON-David Mustard","N","20200200","Y"]
["202002EL","TCB-ECON-Eli Liebman","N","20200200","Y"]
["202002IS","TCB-ECON-Ian Schmutte","N","20200200","Y"]
["202002JK","TCB-ECON-Josh Kinsler","N","20200200","Y"]
["202002JT","TCB-ECON-John Turner","N","20200200","Y"]
["202002LZ","TCB-ECON-Laura Zimmermann","N","20200200","Y"]
["202002MS","TCB-ECON-Megan Skira","N","20200200","Y"]
["202002NY","TCB-ECON-Nathan Yoder","N","20200200","Y"]
["202002RH","TCB-ECON-Roozbeh Hosseini","N","20200200","Y"]
["202002RL","TCB-ECON-Rong Luo","N","20200200","Y"]
["202002SA","TCB-ECON-Scott Atkinson","N","20200200","Y"]
["202002SC","TCB-ECON-Santanu Chatterjee","N","20200200","Y"]
["202002SP","TCB-ECON-Svetlana Pash","N","20200200","Y"]
["202002TQ","TCB-ECON-Thomas Quan","N","20200200","Y"]
["202002VP","TCB-ECON-Vincent Pohl","N","20200200","Y"]
["20200300","TCB-ECON-Non-TT Faculty","Y","20000000","N"]
["202003AK","TCB-ECON-Alice Kinman","N","20200300","Y"]
["202003JR","TCB-ECON-Jason Rudbeck","N","20200300","Y"]
["202003KM","TCB-ECON-Kate Mcclain","N","20200300","Y"]
["202003KW","TCB-ECON-Kris Wcwhite","N","20200300","Y"]
["202003TS","TCB-ECON-Till Schreiber","N","20200300","Y"]
["202003TZ","TCB-ECON-Tianwei Zhang","N","20200300","Y"]
["20201100","TCB-MGT-Management Dept","Y","20000000","N"]
["20201118","TCB-MGT-Phd Programs","Y","20000000","N"]
["20201160","TCB-MGT-Management Admin","N","20201100","Y"]
["20201199","TCB-MGT-Business Office","Y","20000000","N"]
["202011D0","TCB-MGT-Phd. Student 0","N","20201118","Y"]
["202011D1","TCB-MGT-Phd. Student 1","N","20201118","Y"]
["202011D2","TCB-MGT-Phd. Student 2","N","20201118","Y"]
["202011D3","TCB-MGT-Phd. Student 3","N","20201118","Y"]
["202011D4","TCB-MGT-Phd. Student 4","N","20201118","Y"]
["202011D5","TCB-MGT-Phd. Student 5","N","20201118","Y"]
["202011D6","TCB-MGT-Phd. Student 6","N","20201118","Y"]
["202011D7","TCB-MGT-Phd. Student 7","N","20201118","Y"]
["202011D8","TCB-MGT-Phd. Student 8","N","20201118","Y"]
["202011D9","TCB-MGT-Phd. Student 9","N","20201118","Y"]
["202011F0","TCB-MGT-Faculty 0","N","20201199","Y"]
["202011F1","TCB-MGT-Faculty 1","N","20201199","Y"]
["202011F2","TCB-MGT-Faculty 2","N","20201199","Y"]
["202011F3","TCB-MGT-Faculty 3","N","20201199","Y"]
["202011F4","TCB-MGT-Faculty 4","N","20201199","Y"]
["202011F5","TCB-MGT-Faculty 5","N","20201199","Y"]
["20201200","TCB-MGT-Organnl. Behavior","N","20000000","N"]
["202012EL","TCB-MGT-Erin Long","N","20201200","Y"]
["202012FM","TCB-MGT-Fadel Matta","N","20201200","Y"]
["202012JC","TCB-MGT-Jason Colquitt","N","20201200","Y"]
["202012JR","TCB-MGT-Jessica Rodell","N","20201200","Y"]
["202012MM","TCB-MGT-Marie Mitchell","N","20201200","Y"]
["202012RV","TCB-MGT-Robert Vandenberg","N","20201200","Y"]
["20201300","TCB-MGT-Strategic Mgt","N","20000000","N"]
["202013DG","TCB-MGT-Daniel Gamache","N","20201300","Y"]
["202013JB","TCB-MGT-John Busenbark","N","20201300","Y"]
["202013MP","TCB-MGT-Mike Praffer","N","20201300","Y"]
["202013SG","TCB-MGT-Scott Graffin","N","20201300","Y"]
["202013TQ","TCB-MGT-Tim Quigley","N","20201300","Y"]
["20201400","TCB-MGT-Operations Mgt","N","20000000","N"]
["202014JZ","TCB-MGT-Jan Zantinga","N","20201400","Y"]
["202014KN","TCB-MGT-Karen Napoleon","N","20201400","Y"]
["202014MP","TCB-MGT-Martin Parker","N","20201400","Y"]
["202014RD","TCB-MGT-Rich Daniel","N","20201400","Y"]
["20202100","TCB-Marketing","Y","20000000","N"]
["20202115","TCB-MKT-Recruitment","N","20000000","Y"]
["20202118","TCB-MKT-Phd. Programs","Y","20000000","N"]
["20202160","TCB-MKT-Dept Admin","N","20202100","Y"]
["20202199","TCB-MKT-Business Office","Y","20000000","N"]
["202021AC","TCB-MKT-Anindita Chakrovarty","N","20202100","Y"]
["202021CM","TCB-MKT-Charlotte Mason","N","20202100","Y"]
["202021D0","TCB-MKT-Phd. Student 0","N","20202118","Y"]
["202021D1","TCB-MKT-Phd. Student 1","N","20202118","Y"]
["202021D2","TCB-MKT-Phd. Student 2","N","20202118","Y"]
["202021D3","TCB-MKT-Phd. Student 3","N","20202118","Y"]
["202021D4","TCB-MKT-Phd. Student 4","N","20202118","Y"]
["202021D5","TCB-MKT-Phd. Student 5","N","20202118","Y"]
["202021D6","TCB-MKT-Phd. Student 6","N","20202118","Y"]
["202021D7","TCB-MKT-Phd. Student 7","N","20202118","Y"]
["202021D8","TCB-MKT-Phd. Student 8","N","20202118","Y"]
["202021D9","TCB-MKT-Phd. Student 9","N","20202118","Y"]
["202021F0","TCB-MKT-Faculty 0","N","20202199","Y"]
["202021F1","TCB-MKT-Faculty 1","N","20202199","Y"]
["202021F2","TCB-MKT-Faculty 2","N","20202199","Y"]
["202021F3","TCB-MKT-Faculty 3","N","20202199","Y"]
["202021F4","TCB-MKT-Faculty 4","N","20202199","Y"]
["202021F5","TCB-MKT-Faculty 5","N","20202199","Y"]
["202021HC","TCB-MKT-Hua Chen","N","20202100","Y"]
["202021JH","TCB-MKT-John Hulland","N","20202100","Y"]
["202021JS","TCB-MKT-Julio Sevilla","N","20202100","Y"]
["202021KG","TCB-MKT-Kimberly Grantham","N","20202100","Y"]
["202021MC","TCB-MKT-Marcus Cunha","N","20202100","Y"]
["202021PK","TCB-MKT-Piyush Kumar","N","20202100","Y"]
["202021PW","TCB-MKT-Pengyuan Wang","N","20202100","Y"]
["202021RG","TCB-MKT-Richard Gooner","N","20202100","Y"]
["202021SB","TCB-MKT-Sunder Bhardwaj","N","20202100","Y"]
["202021SC","TCB-MKT-Sue Chang","N","20202100","Y"]
["202021SL","TCB-MKT-Son Lam","N","20202100","Y"]
["20203100","TCB-Full-Time MBA","Y","20000000","N"]
["20203150","TCB-FTMBA-Marketing","N","20203100","Y"]
["20203151","TCB-FTMBA-Career Mgt","N","20203100","Y"]
["20203152","TCB-FTMBA-Admissions","N","20203100","Y"]
["20203153","TCB-FTMBA-Study Abroad","N","20203100","Y"]
["20203154","TCB-FTMBA-Orientation","N","20203100","Y"]
["20203155","TCB-FTMBA-Alum Relations","N","20203100","Y"]
["20203156","TCB-FTMBA-Stud Services","N","20203100","Y"]
["20203157","TCB-FTMBA-Stud Experience","N","20203100","Y"]
["20203160","TCB-FTMBA-Dept. Admin.","N","20203100","Y"]
["20203199","TCB-FTMBA-Business Office","N","20203100","Y"]
["20203200","TCB-Prof MBA (Buckhead)","Y","20000000","N"]
["20203250","TCB-PMBA-Marketing (Buc)","N","20203200","Y"]
["20203251","TCB-PMBA-Career Mgt (Buc)","N","20203200","Y"]
["20203252","TCB-PMBA-Admissions (Buc)","N","20203200","Y"]
["20203253","TCB-PMBA-Study Abroad (Buc)","N","20203200","Y"]
["20203255","TCB-PMBA-Alum Relations (Buc)","N","20203200","Y"]
["20203256","TCB-PMBA-Stud Services (Buc)","N","20203200","Y"]
["20203260","TCB-PMBA-Dept. Admin. (Buc)","N","20203200","Y"]
["20203299","TCB-PMBA-Business Off (Buc)","N","20203200","Y"]
["20203300","TCB-Prof MBA (Gwinnett)","Y","20000000","N"]
["20203350","TCB-PMBA-Marketing (Gwi)","N","20203300","Y"]
["20203351","TCB-PMBA-Career Mgt (Gwi)","N","20203300","Y"]
["20203352","TCB-PMBA-Admissions (Gwi)","N","20203300","Y"]
["20203353","TCB-PMBA-Study Abroad (Gwi)","N","20203300","Y"]
["20203355","TCB-PMBA-Alum Relations (Gwi)","N","20203300","Y"]
["20203356","TCB-PMBA-Stud Services (Gwi)","N","20203300","Y"]
["20203360","TCB-PMBA-Dept. Admin. (Gwi)","N","20203300","Y"]
["20203399","TCB-PMBA-Business Off (Gwi)","N","20203300","Y"]
["20203400","TCB-Executive MBA","Y","20000000","N"]
["20203450","TCB-EMBA-Marketing","N","20203400","Y"]
["20203451","TCB-EMBA-Career Mgt","N","20203400","Y"]
["20203452","TCB-EMBA-Admissions","N","20203400","Y"]
["20203453","TCB-EMBA-Study Abroad","N","20203400","Y"]
["20203455","TCB-EMBA-Alum Relations","N","20203400","Y"]
["20203456","TCB-EMBA-Stud Services","N","20203400","Y"]
["20203460","TCB-EMBA-Dept. Admin.","N","20203400","Y"]
["20203499","TCB-EMBA-Business Office","N","20203400","Y"]
["20203500","TCB-MBA-TEEC facilities","N","20000000","Y"]
["20204100","TCB-Ins. Legal Std Real Estate","Y","20000000","N"]
["20204118","TCB-ILR-Phd. Programs","Y","20000000","N"]
["20204160","TCB-Ins. Legal Std Real Estate","N","20204100","Y"]
["20204199","TCB-ILR-Business Office","Y","20000000","N"]
["202041D0","TCB-ILR-Phd. Student 0","N","20204118","Y"]
["202041D1","TCB-ILR-Phd. Student 1","N","20204118","Y"]
["202041D2","TCB-ILR-Phd. Student 2","N","20204118","Y"]
["202041D3","TCB-ILR-Phd. Student 3","N","20204118","Y"]
["202041D4","TCB-ILR-Phd. Student 4","N","20204118","Y"]
["202041D5","TCB-ILR-Phd. Student 5","N","20204118","Y"]
["202041D6","TCB-ILR-Phd. Student 6","N","20204118","Y"]
["202041D7","TCB-ILR-Phd. Student 7","N","20204118","Y"]
["202041D8","TCB-ILR-Phd. Student 8","N","20204118","Y"]
["202041D9","TCB-ILR-Phd. Student 9","N","20204118","Y"]
["202041F0","TCB-ILR-Faculty 0","N","20204199","Y"]
["202041F1","TCB-ILR-Faculty 1","N","20204199","Y"]
["202041F2","TCB-ILR-Faculty 2","N","20204199","Y"]
["202041F3","TCB-ILR-Faculty 3","N","20204199","Y"]
["202041F4","TCB-ILR-Faculty 4","N","20204199","Y"]
["202041F5","TCB-ILR-Faculty 5","N","20204199","Y"]
["20204200","TCB-ILR-Risk Management","Y","20000000","N"]
["20204260","TCB-ILR-Risk Management Admin","N","20204200","Y"]
["202042DE","TCB-ILR-David Eckles","N","20204200","Y"]
["202042DM","TCB-ILR-David Mccarthy","N","20204200","Y"]
["202042DY","TCB-ILR-Daniel Yanosky","N","20204200","Y"]
["202042JA","TCB-ILR-Jen Atkinson","N","20204200","Y"]
["202042JC","TCB-ILR-Jim Carson","N","20204200","Y"]
["202042JM","TCB-ILR-Jack Morse","N","20204200","Y"]
["202042MR","TCB-ILR-Marc Ragin","N","20204200","Y"]
["202042PH","TCB-ILR-Paul Holmes","N","20204200","Y"]
["202042RH","TCB-ILR-Rob Hoyt","N","20204200","Y"]
["202042SP","TCB-ILR-Steve Pottier","N","20204200","Y"]
["20204300","TCB-ILR-Legal Studies","Y","20000000","N"]
["20204360","TCB-ILR-Legal Studies","N","20204300","Y"]
["202043AB","TCB-ILR-Alex Bennett","N","20204300","Y"]
["202043AR","TCB-ILR-Alex Reid","N","20204300","Y"]
["202043DG","TCB-ILR-Dave Gunton","N","20204300","Y"]
["202043LG","TCB-ILR-Lara Grow","N","20204300","Y"]
["202043MP","TCB-ILR-Marisa Pagnattaro","N","20204300","Y"]
["202043NG","TCB-ILR-Nate Grow","N","20204300","Y"]
["202043TH","TCB-ILR-Tricia Hacleman","N","20204300","Y"]
["202043TS","TCB-ILR-Tim Samples","N","20204300","Y"]
["20204400","TCB-ILR-Real Estate","Y","20000000","N"]
["20204460","TCB-ILR-Real Estate","N","20204400","Y"]
["202044DH","TCB-ILR-Darren Hayunga","N","20204400","Y"]
["202044HM","TCB-ILR-Henry Munneke","N","20204400","Y"]
["202044JC","TCB-ILR-Jim Conklin","N","20204400","Y"]
["202044JK","TCB-ILR-James Kau","N","20204400","Y"]
["202044RM","TCB-ILR-Rich Martin","N","20204400","Y"]
["20205000","TCB-Selig Center","N","20000000","N"]
["20205060","TCB-Selig Admin","N","20205000","Y"]
["20225000","TCB-Entrepreneurship","Y","20000000","N"]
["20225100","TCB-Entrepren.","N","20225000","Y"]
["20225150","TCB-Entrepreneurship Marketing","N","20225000","Y"]
["20225180","TCB-Entrepreneurship Events","N","20225000","Y"]
["20500000","TCB-Finance & Administration","Y","20000000","N"]
["20797000","TCB-Music Business","Y","20000000","N"]
["20797100","TCB-Music Business Dept Admin","N","20797000","Y"]
["20798000","TCB-Inst. Of Leadership Advanc","Y","20000000","N"]
["20798100","TCB-ILA Dept Admin","N","20798000","Y"]
["20798200","TCB-ILA Events","N","20798000","Y"]
["20798300","TCB-ILA Cirriculum","N","20798000","Y"]
["20798400","TCB-ILA Marketing","N","20798000","Y"]
["20800000","TCB-Executive Programs","Y","20000000","N"]
["20800100","TCB-EXEC PROG Admin","N","20800000","Y"]
["20961000","TCB-Office Of The Dean","N","20196000","Y"]
["20962000","TCB-Assoc Dean-Under Grad Prog","Y","20000000","N"]
["20962100","TCB-Under-Grad Bus Programs","Y","20000000","N"]
["20962154","TCB-Under-Grad-Orientation","N","20962100","Y"]
["20962160","TCB-Under-Grad-Dept Admin","N","20962100","Y"]
["20962200","TCB-Online UGrad Bus Programs","Y","20000000","N"]
["20962250","TCB-Undergrad Online-Marketing","N","20962200","Y"]
["20962252","TCB-Undergrad Online-Admission","N","20962200","Y"]
["20962260","TCB-Undergrad Online-Dept Adm","N","20962200","Y"]
["20962300","TCB-Ass Dean Off-Under Grad Pr","N","20962000","Y"]
["20962400","TCB-UG Stud Serv & Corp Rel.","Y","20000000","N"]
["20962454","TCB-USSCR-Majors Orient/Fair","N","20962400","Y"]
["20962460","TCB-USSCR-Administration","N","20962400","Y"]
["20962470","TCB-USSCR-Grad/ Convocation","N","20962400","Y"]
["20962471","TCB-USSCR-Honors Day","N","20962400","Y"]
["20962472","TCB-USSCR-Terry Kickoff","N","20962400","Y"]
["20962473","TCB-USSCR-Terry Ambassadors","N","20962400","Y"]
["20962474","TCB-USSCR-Corporate Relations","N","20962400","Y"]
["20962475","TCB-USSCR-Women's Initiative","N","20962400","Y"]
["20962480","TCB-USSCR-Other Events","N","20962400","Y"]
["20962500","TCB-Griffin-Dept","Y","20000000","N"]
["20962560","TCB-Griffin-Dept Adm","N","20962500","Y"]
["20963000","TCB-Assoc Dean-Res & Grad Prog","Y","20000000","N"]
["20963100","TCB-Assoc Dean Off-Grad Prog","N","20963000","Y"]
["20963200","TCB-Diversity Relations","N","20000000","Y"]
["20963300","TCB-Summer Programs","N","20000000","Y"]
["20963400","TCB-International Bus Prog","N","20000000","Y"]
["20964000","TCB-Finance Admin office","N","20000000","N"]
["20964100","TCB-Chief Financial Officer","N","20964000","Y"]
["20964200","TCB-Business Office","N","20964000","Y"]
["20964300","TCB-Terry Exec Edu Ctr","N","20000000","Y"]
["20964400","TCB-Facilities & Logistics","N","20000000","Y"]
["20964500","TCB-Event Management","N","20000000","Y"]
["20964600","TCB-Economic Outlook","N","20000000","Y"]
["20964700","TCB-Office Of Info Tech","Y","20000000","N"]
["20964790","TCB-OIT-Strategic","N","20964700","Y"]
["20964795","TCB-OIT-Operational","N","20964700","Y"]
["20965000","TCB-Development & Alumni","Y","20000000","N"]
["20965160","TCB-Major Giving-Admin","N","20965000","Y"]
["209651AB","TCB-Major Giving-AndreaBurruss","N","20965000","Y"]
["209651HH","TCB-Major Giving-HeatherHowar.","N","20965000","Y"]
["209651KB","TCB-Major Giving-KatrinaBowers","N","20965000","Y"]
["209651KO","TCB-Major Giving-Kathy O'Brian","N","20965000","Y"]
["209651MH","TCB-Major Giving-Martee Horne","N","20965000","Y"]
["209651MM","TCB-Major Giving-Matt Mize","N","20965000","Y"]
["209651SS","TCB-Major Giving-StevenSpencer","N","20965000","Y"]
["20965260","TCB-Alumni Affairs-Admin","N","20965000","Y"]
["209652CS","TCB-Alumni Affairs-ChristineSm","N","20965000","Y"]
["209652JA","TCB-Alumni Affairs-Jean Allen","N","20965000","Y"]
["209652NG","TCB-Alumni Affairs-NatalieGlen","N","20965000","Y"]
["20965360","TCB-Annual Giving-Admin","N","20965000","Y"]
["209653CH","TCB-Annual Giving-CateHackling","N","20965000","Y"]
["209653EH","TCB-Annual Giving-Emma Holman","N","20965000","Y"]
["20965460","TCB-Donor Relations-Admin","N","20965000","Y"]
["209654LH","TCB-Donor Relations-LauraHogan","N","20965000","Y"]
["209654LM","TCB-Donor Relations-LynseMille","N","20965000","Y"]
["20966000","TCB-Office Of Marketing","Y","20000000","N"]
["20966060","TCB-Office Of Marketing-Admin","N","20966000","Y"]
["21000000","College of Education","N","14000000","N"]
["21001000","Dean'S Office Lumpsumpos (Budg","Y","21000000","N"]
["21001001","Faculty Startup","Y","21001000","N"]
["21001002","DO Carryforward & ICR Alloc","Y","21001000","N"]
["21001100","COE D.O. Grant Transition","N","21000000","Y"]
["21001FAC","DO Vacant Faculty","Y","21001000","N"]
["21001GLA","DO Ita Grad Asst","Y","21001000","N"]
["21001GRA","DO Grad Res Asst","Y","21001000","N"]
["21001GTA","DO Grad Asst","Y","21001000","N"]
["21001STF","DO Vacant Staff","Y","21001000","N"]
["21001SUM","DO Summer School","Y","21001000","N"]
["21002CE1","D.O. Continuing Education","N","21000000","Y"]
["21002S01","D.O. Center Admin. Fees","N","21000000","Y"]
["21002S02","D.O. Safe & Welcoming Schools","N","21000000","Y"]
["21005000","Dean'S Office Teacher Quality","N","21000000","Y"]
["21100000","Dean's Office","N","21000000","N"]
["21100001","Dean's Office","N","21100000","Y"]
["21100002","Administrative Travel","N","21100000","Y"]
["21100003","Faculty Searches","N","21100000","Y"]
["21100004","Student Recruitment","N","21100000","Y"]
["21100005","Staff Prof Dev","N","21100000","Y"]
["21100006","Renovation / Facilities","N","21100000","Y"]
["21100007","Accreditation / Memberships","N","21100000","Y"]
["21100201","DO Tuition Differential","N","21100000","Y"]
["21100202","DO E-Rate","N","21100000","Y"]
["21100203","Provost Domestic Travel","N","21100000","Y"]
["211005AS","Faculty A. Singh","N","21100000","Y"]
["211005BO","Business Office","N","21100000","Y"]
["211005BW","Faculty B Wraga","N","21100000","Y"]
["211005CK","DO Faculty C Kennedy","N","21100000","Y"]
["211005DS","DO Faculty D Spangler","N","21100000","Y"]
["211005EE","DO Faculty E Evans","N","21100000","Y"]
["211005EG","DOfaculty E Gilbertson","N","21100000","Y"]
["211005SN","DO Faculty S Neuharth-Pritchet","N","21100000","Y"]
["21101000","Dean'S Office (Gwinnett)","N","21000000","Y"]
["21102000","Dean'S Office (Griffin)","N","21000000","Y"]
["21110001","DO ADA Expenditures","N","21000000","Y"]
["21120000","DO College Advancement","N","21000000","N"]
["21120100","Communications","N","21120000","Y"]
["21120200","Development","N","21120000","Y"]
["21140000","DO Academic Programs","N","21000000","Y"]
["21141000","DO School Engagement/Pds","N","21000000","Y"]
["21145000","DO Diversity, Equity & Inclusi","N","21000000","Y"]
["21150000","DO Research","N","21000000","Y"]
["21170000","DO Student Services","N","21000000","Y"]
["21175000","DO Experiential Learning","N","21000000","Y"]
["21180000","Curriculum Materials Library","N","21000000","Y"]
["21190000","DO IT","N","21000000","Y"]
["21191000","DO ITT","N","21000000","Y"]
["21192S01","D.O. Retail Sales (Oit)","N","21000000","Y"]
["21192S02","D.O. Material Support","N","21000000","Y"]
["21200000","COE Centers","N","21000000","Y"]
["21200001","COE Centers Grant Transition","N","21000000","Y"]
["21210000","Center For Autism And Behavior","N","21000000","N"]
["21210001","Ctr for Autism and Behaviour","N","21210000","Y"]
["212105KA","CABER Faculty K Ayers","N","21210000","Y"]
["212105SA","CABER Faculty S Ardoin","N","21210000","Y"]
["21220000","Center For Latino Achievement","N","21000000","N"]
["21220001","Ctr for Latino Achievement","N","21220000","Y"]
["212205PM","CLASE Faculty P Mellom","N","21220000","Y"]
["212205PP","CLASE Faculty P Portes","N","21220000","Y"]
["21230000","GA Center For Assessment","N","21000000","N"]
["21230001","GA Ctr for Assessment","N","21230000","Y"]
["212305AC","GCA Faculty A Cohen","N","21230000","Y"]
["212305HC","GCA Faculty H Choi","N","21230000","Y"]
["212305JB","GCA Faculty J Barker","N","21230000","Y"]
["212305KR","GCA Faculty K Raczynski","N","21230000","Y"]
["212305SL","GCA Faculty S Lai","N","21230000","Y"]
["21240000","Torrance Center","N","21000000","N"]
["21240001","Torrance Ctr","N","21240000","Y"]
["212405SS","TC Faculty S Sumners","N","21240000","Y"]
["21242CE1","Torrance Continuing Education","N","21000000","Y"]
["21242S01","Torrance Duke Tip","N","21000000","Y"]
["21242S02","Torrance Research Sales","N","21000000","Y"]
["21400000","Career & Information Studies (","N","21000000","N"]
["21400001","CIS Grant Transition","N","21400000","Y"]
["21400100","CIS Dept Allocation","N","21400000","Y"]
["21400200","CIS eRate Workforce","N","21400000","Y"]
["21400201","CIS Special Projects 1","N","21400000","Y"]
["214005CK","CIS Faculty C Kim","N","21400000","Y"]
["214005EA","CIS Faculty E Adams","N","21400000","Y"]
["214005GC","CIS Faculty G Clinton","N","21400000","Y"]
["214005GT","CIS Faculty G Thomas","N","21400000","Y"]
["214005IC","CIS Faculty I Choi","N","21400000","Y"]
["214005IL","CIS Faculty I Lee","N","21400000","Y"]
["214005JH","CIS Faculty J Hill","N","21400000","Y"]
["214005JM","CIS Faculty J Mativo","N","21400000","Y"]
["214005JR","CIS Faculty J Rojewski","N","21400000","Y"]
["214005JW","CIS Faculty J Williamson","N","21400000","Y"]
["214005LR","CIS Faculty L Rieber","N","21400000","Y"]
["214005MW","CIS Faculty M Womble","N","21400000","Y"]
["214005NK","CIS Faculty N Knapp","N","21400000","Y"]
["214005RB","CIS Faculty R Branch","N","21400000","Y"]
["214005RH","CIS Faculty R Hill","N","21400000","Y"]
["214005TK","CIS Faculty T Kopcha","N","21400000","Y"]
["21401000","Career & Information Studies (","Y","21000000","N"]
["21401FAC","CIS Vacant Faculty","Y","21401000","N"]
["21401GTA","CIS Grad Asst","Y","21401000","N"]
["21401STF","CIS Vacant Staff","Y","21401000","N"]
["21401SUM","CIS Summer School","Y","21401000","N"]
["21402L51","CIS Occ Studies Lab Fees","N","21000000","Y"]
["21402S01","Rail Res Adv Innov Learn","N","21000000","Y"]
["21402S02","CIS Pacte","N","21000000","Y"]
["21402S03","CIS SLLL Occupational Studies","N","21000000","Y"]
["21450000","Communication Sciences & Speci","N","21000000","N"]
["21450001","CSSE Grant Transition","N","21450000","Y"]
["21450100","CSSE Dept Allocation","N","21450000","Y"]
["21450200","CSSE Special Projects 1","N","21450000","Y"]
["21450201","CSSE Special Projects 2","N","21450000","Y"]
["214504KO","CSSE Startup K Obrien","N","21450000","Y"]
["214504RS","CSSE Startup R Shrivastav","N","21450000","Y"]
["214505AD","CSSE Faculty A Davis","N","21450000","Y"]
["214505AM","CSSE Faculty A Marcotte","N","21450000","Y"]
["214505AN","CSSE Faculty A Nealy","N","21450000","Y"]
["214505AS","CSSE Faculty A Sanderson","N","21450000","Y"]
["214505BH","CSSE Faculty B Hamilton-Jones","N","21450000","Y"]
["214505BL","CSSE Faculty B Leffler","N","21450000","Y"]
["214505CP","CSSE Faculty C Patterson","N","21450000","Y"]
["214505CR","CSSE Faculty C Raymond","N","21450000","Y"]
["214505CV","CSSE Faculty C Vail","N","21450000","Y"]
["214505DL","CSSE Faculty D Linscott","N","21450000","Y"]
["214505DT","CSSE Faculty D Teesdale","N","21450000","Y"]
["214505EG","CSSE Faculty E Greene","N","21450000","Y"]
["214505HK","CSSE Faculty H Kaplan","N","21450000","Y"]
["214505IH","CSSE Faculty I Hinkley","N","21450000","Y"]
["214505JB","CSSE Faculty J Brown","N","21450000","Y"]
["214505JL","CSSE Faculty J Lindstrom","N","21450000","Y"]
["214505JR","CSSE Faculty J Ringdahl","N","21450000","Y"]
["214505KA","CSSE Faculty K Ayres","N","21450000","Y"]
["214505KO","CSSE Faculty K Obrien","N","21450000","Y"]
["214505KS","CSSE Faculty K Sayeski","N","21450000","Y"]
["214505KV","CSSE Faculty K Viel-Ruma","N","21450000","Y"]
["214505KW","CSSE Faculty K Wunderlich","N","21450000","Y"]
["214505LC","CSSE Faculty L Chen","N","21450000","Y"]
["214505LN","CSSE Faculty L Nichols","N","21450000","Y"]
["214505ND","CSSE Faculty N Dellaria","N","21450000","Y"]
["214505PF","CSSE Faculty P Finn","N","21450000","Y"]
["214505RL","CSSE Faculty R Lieberman-Betz","N","21450000","Y"]
["214505RM","CSSE Faculty R. Marshall","N","21450000","Y"]
["214505SB","CSSE Faculty S Bass-Ringdahl","N","21450000","Y"]
["214505TA","CSSE Faculty T Anderson","N","21450000","Y"]
["214505TC","CSSE Faculty T Clees","N","21450000","Y"]
["214506AS","CSSE Faculty A Schultz","N","21450000","Y"]
["21450TD1","CSSE Cmsd Tuition Differential","N","21000000","Y"]
["21450TD2","CSSE Sped Tuition Differential","N","21000000","Y"]
["21451000","CSSE (Budgetary Only)","Y","21000000","N"]
["21451FAC","CSSE Vacant Faculty","Y","21451000","N"]
["21451GTA","CSSE Grad Asst","Y","21451000","N"]
["21451STF","CSSE Vacant Staff","Y","21451000","N"]
["21451SUM","CSSE Summer School","Y","21451000","N"]
["21452L51","CSSE Lab Fee","N","21000000","Y"]
["21452S01","Speech & Hearing Clinic","N","21000000","Y"]
["21452S02","Applied Behavior Analysis Clin","N","21000000","Y"]
["21452S03","CSSE Sales & Service","N","21000000","Y"]
["21452S04","CSSE Sped Tech Writing","N","21000000","Y"]
["21500000","Counseling & Human Development","N","21000000","N"]
["21500001","CHDS Grant Transition","N","21500000","Y"]
["21500100","CHDS Dept Allocation","N","21500000","Y"]
["21500200","CHDS Special Projects 1","N","21500000","Y"]
["21500201","CHDS Special Projects 2","N","21500000","Y"]
["215004CC","CHDS Startup C Chapman-Hilliar","N","21500000","Y"]
["215004GM","CHDS Startup G Martin","N","21500000","Y"]
["215004MH","CHDS Startup M Higgins","N","21500000","Y"]
["215005AS","CHDS Faculty A Singh","N","21500000","Y"]
["215005BG","CHDS Faculty B Glaser","N","21500000","Y"]
["215005BH","CHDS Faculty B Heckman","N","21500000","Y"]
["215005CL","CHDS Faculty C Linder","N","21500000","Y"]
["215005DB","CHDS Faculty D Bailey","N","21500000","Y"]
["215005DC","CHDS Faculty D Cooper","N","21500000","Y"]
["215005DM","CHDS Faculty D Means","N","21500000","Y"]
["215005ED","CHDS Faculty E Delgado-Romero","N","21500000","Y"]
["215005GC","CHDS Faculty G Calhoun","N","21500000","Y"]
["215005GM","CHDS Faculty G Martin","N","21500000","Y"]
["215005GS","CHDS Faculty G Spears","N","21500000","Y"]
["215005JD","CHDS Faculty J Daigle","N","21500000","Y"]
["215005LC","CHDS Faculty L Campbell","N","21500000","Y"]
["215005LD","CHDS Faculty L Dean","N","21500000","Y"]
["215005LH","CHDS Faculty L Hughes","N","21500000","Y"]
["215005MD","CHDS Faculty M Dunn","N","21500000","Y"]
["215005MH","CHDS Faculty M Higgins","N","21500000","Y"]
["215005MW","CHDS Faculty M Wilder","N","21500000","Y"]
["215005RP","CHDS Faculty R Phelps","N","21500000","Y"]
["215006AS","CHDS Faculty A Stewart","N","21500000","Y"]
["215006GM","CHDS Faculty G Mcmahon","N","21500000","Y"]
["21500970","CHDS RIAS","N","21500000","Y"]
["21500TD1","CHDS Tuition Differential (Ath","N","21000000","Y"]
["21501000","CHDS (Budgetary Only)","Y","21000000","N"]
["21501FAC","CHDS Vacant Faculty","Y","21501000","N"]
["21501GTA","CHDS Grad Asst","Y","21501000","N"]
["21501STF","CHDS Vacant Staff","Y","21501000","N"]
["21501SUM","CHDS Summer School","Y","21501000","N"]
["21502L51","ECHD 2050 Lab Fee","N","21000000","Y"]
["21502S01","Ctr For Counseling & Pers Eval","N","21000000","Y"]
["21502S02","CHDS JCAP/Girls","N","21000000","Y"]
["21502S03","CHDS Sales & Service","N","21000000","Y"]
["21550000","Educational Psychology (EPSY)","N","21000000","N"]
["21550001","EPSY Grant Transition","N","21550000","Y"]
["21550100","EPSY Dept Allocation","N","21550000","Y"]
["21550200","EPSY eRate Gifted","N","21550000","Y"]
["21550201","EPSY e-Rate ACD","N","21550000","Y"]
["215504LF","EPSY Startup L Fiorelli","N","21550000","Y"]
["215504PC","EPSY Startup P Chalmers","N","21550000","Y"]
["215504SW","EPSY Startup S Wang","N","21550000","Y"]
["215505AJ","EPSY Faculty A Johnson Harriso","N","21550000","Y"]
["215505AR","EPSY Faculty A Reschly","N","21550000","Y"]
["215505BC","EPSY Faculty B Cramond","N","21550000","Y"]
["215505GE","EPSY Faculty G Engelhard","N","21550000","Y"]
["215505LB","EPSY Faculty L Bradshaw","N","21550000","Y"]
["215505LF","EPSY Faculty L Fiorella","N","21550000","Y"]
["215505MC","EPSY Faculty M Carr","N","21550000","Y"]
["215505MH","EPSY Faculty M Hines","N","21550000","Y"]
["215505ML","EPSY Faculty M Lease","N","21550000","Y"]
["215505MR","EPSY Faculty M Runco","N","21550000","Y"]
["215505PC","EPSY Faculty P Chalmers","N","21550000","Y"]
["215505PS","EPSY Faculty P Schwanenflugel","N","21550000","Y"]
["215505SA","EPSY Faculty S Ardoin","N","21550000","Y"]
["215505SK","EPSY Faculty S Kim","N","21550000","Y"]
["215505SN","EPSY Faculty S Neuharth-Pritch","N","21550000","Y"]
["215505SW","Epay Faculty S Wang","N","21550000","Y"]
["215505TG","EPSY Faculty T Grantham","N","21550000","Y"]
["215505ZL","EPSY Faculty Z Lu","N","21550000","Y"]
["21550970","EPSY RIAS","N","21000000","Y"]
["21551000","Educational Psychology (Budget","Y","21000000","N"]
["21551FAC","EPSY Vacant Faculty","Y","21551000","N"]
["21551GTA","EPSY Grad Asst","Y","21551000","N"]
["21551STF","EPSY Vacant Staff","Y","21551000","N"]
["21551SUM","EPSY Summer School","Y","21551000","N"]
["21552L51","EPSY 6720 Lab Fee","N","21000000","Y"]
["21552S01","EPSY School Psych Clinic","N","21000000","Y"]
["21552S02","EPSY Autism Assessment","N","21000000","Y"]
["21600000","Educational Theory & Practice","N","21000000","N"]
["21600001","EATP Grant Transition","N","21600000","Y"]
["21600100","ETAP Dept Allocation","N","21600000","Y"]
["21600200","ETAP eRate Middle School","N","21600000","Y"]
["21600201","ETAP Special Projects","N","21600000","Y"]
["216004MF","ETAP Startup M Faison","N","21600000","Y"]
["216005AM","ETAP Faculty A Murphy","N","21600000","Y"]
["216005AS","ETAP Faculty A Sharma","N","21600000","Y"]
["216005BC","ETAP Faculty B Capuozzo","N","21600000","Y"]
["216005BD","ETAP Faculty B Dotts","N","21600000","Y"]
["216005BL","ETAP Faculty B Love","N","21600000","Y"]
["216005BT","ETAP Faculty B Tolley","N","21600000","Y"]
["216005CB","ETAP Faculty C Buxton","N","21600000","Y"]
["216005CD","ETAP Faculty C Dillard","N","21600000","Y"]
["216005CF","ETAP Faculty C Fields-Smith","N","21600000","Y"]
["216005ES","ETAP Faculty E Saylor","N","21600000","Y"]
["216005GA","ETAP Faculty G Andrews","N","21600000","Y"]
["216005HH","ETAP Faculty H Hughes","N","21600000","Y"]
["216005JD","ETAP Faculty J Dresden","N","21600000","Y"]
["216005JG","ETAP Faculty J Garrett","N","21600000","Y"]
["216005JT","ETAP Faculty J Tobin","N","21600000","Y"]
["216005KL","ETAP Faculty K Lee","N","21600000","Y"]
["216005KT","ETAP Faculty K Thompson","N","21600000","Y"]
["216005MA","ETAP Faculty M Allexsaht-Snide","N","21600000","Y"]
["216005MF","ETAP Faculty M Faison","N","21600000","Y"]
["216005MS","ETAP Faculty M Schmeichel","N","21600000","Y"]
["216005SJ","ETAP Faculty S Janis","N","21600000","Y"]
["216005TD","ETAP Faculty T Dinkelman","N","21600000","Y"]
["216006ES","ETAP Faculty E St. Pierre","N","21600000","Y"]
["216006SJ","ETAP Faculty S Jones","N","21600000","Y"]
["21600TD1","ETAP Tuition Differential","N","21000000","Y"]
["21601000","Educational Theory & Practice","Y","21000000","N"]
["21601FAC","ETAP Vacant Faculty","Y","21601000","N"]
["21601GTA","ETAP Ga Asst","Y","21601000","N"]
["21601STF","ETAP Vacant Staff","Y","21601000","N"]
["21601SUM","ETAP Summer School","Y","21601000","N"]
["21602S01","ETAP Sales And Service","N","21000000","Y"]
["21602S02","Red Clay Writing Project","N","21000000","Y"]
["21650000","Kinesiology (Kins)","N","21000000","N"]
["21650001","KINS Grant Transition","N","21650000","Y"]
["21650100","KINS Dept Allocation","N","21650000","Y"]
["21650200","KINS Global Forum","N","21650000","Y"]
["21650201","KINS General Startup","N","21650000","Y"]
["216504CM","KINS Startup C Modlesky","N","21650000","Y"]
["216504JB","KINS Startup J Buckworth","N","21650000","Y"]
["216504JC","KINS Startup J Call","N","21650000","Y"]
["216504KN","KINS Startup K Newell","N","21650000","Y"]
["216504RL","KINS Startup R Lynall","N","21650000","Y"]
["216504SS","KINS Startup S Salaga","N","21650000","Y"]
["216504TS","KINS Startup T Singh","N","21650000","Y"]
["216505BC","KINS Faculty B Cooper","N","21650000","Y"]
["216505BL","KINS Faculty B Leopkey","N","21650000","Y"]
["216505BM","KINS Faculty B Mccullick","N","21650000","Y"]
["216505CM","KINS Faculty C Mojock","N","21650000","Y"]
["216505EE","KINS Faculty E Evans","N","21650000","Y"]
["216505IM","KINS Faculty I Mason","N","21650000","Y"]
["216505JB","KINS Faculty J Buckworth","N","21650000","Y"]
["216505JC","KINS Faculty J Call","N","21650000","Y"]
["216505JS","KINS Faculty J Schmidt","N","21650000","Y"]
["216505JZ","KINS Faculty J Zhang","N","21650000","Y"]
["216505KM","KINS Faculty K Mccully","N","21650000","Y"]
["216505KN","KINS Faculty K Newell","N","21650000","Y"]
["216505MS","KINS Faculty M Schmidt","N","21650000","Y"]
["216505NJ","KINS Faculty N Jenkins","N","21650000","Y"]
["216505PO","KINS Faculty P O'Connor","N","21650000","Y"]
["216505PS","KINS Faculty P Schempp","N","21650000","Y"]
["216505PT","KINS Faculty P Tomporowski","N","21650000","Y"]
["216505RC","KINS Faculty R Chepyator-Thoms","N","21650000","Y"]
["216505RD","KINS Faculty R Dishman","N","21650000","Y"]
["216505RL","KINS Faculty R Lynall","N","21650000","Y"]
["216505SS","KINS Faculty S Salaga","N","21650000","Y"]
["216505SY","KINS Faculty S Yli-Piipari","N","21650000","Y"]
["216505TB","KINS Faculty T Baker","N","21650000","Y"]
["216505TS","KINS Faculty T Singh","N","21650000","Y"]
["216506CM","KINS Faculty C Modlesky","N","21650000","Y"]
["21651000","Kinesiology (Budgetary Only)","Y","21000000","N"]
["21651FAC","KINS Vacant Faculty","Y","21651000","N"]
["21651GTA","KINS Ga Asst","Y","21651000","N"]
["21651STF","KINS Vacant Staff","Y","21651000","N"]
["21651SUM","KINS Summer School","Y","21651000","N"]
["21652L51","KINS 2100L Prev Care","N","21000000","Y"]
["21652L52","KINS 2470 Prac At","N","21000000","Y"]
["21652L53","KINS 2500L Ex Med Evans","N","21000000","Y"]
["21652L54","KINS 3720 Found Pe","N","21000000","Y"]
["21652L55","KINS 3910 At Clinical Ex","N","21000000","Y"]
["21652L56","KINS 3920L At Clinical Ex Ii","N","21000000","Y"]
["21652L57","KINS 4110 AT Therepeutics II","N","21000000","Y"]
["21652L58","KINS 4305/6305 El Pe","N","21000000","Y"]
["21652L59","KINS 4600/6600 Meas Pa Schmidt","N","21000000","Y"]
["21652L60","KINS 4690L Nm Phys Mcully","N","21000000","Y"]
["21652L61","KINS 4910L At Clinical Ex Iii","N","21000000","Y"]
["21652L62","KINS 4920L At Clinical Ex Iv","N","21000000","Y"]
["21652L63","KINS 7310L Clinical Ex Phys Ev","N","21000000","Y"]
["21652L64","KINS 7360 Motor Learn","N","21000000","Y"]
["21652L65","EXRS 4200 Bio Mech","N","21000000","Y"]
["21652L66","EXRS 4630 Ex Phys","N","21000000","Y"]
["21652L67","EXRS 4640 Fit Prin","N","21000000","Y"]
["21652L68","EXRS 7330 Mete Aspec","N","21000000","Y"]
["21652L69","KINS 8300L Adv Top Ex","N","21000000","Y"]
["21652S01","GS Funds","N","21000000","Y"]
["21652S02","Intl Cntr For Sport Mgmt","N","21000000","Y"]
["21652S03","Norvartis Nirs Analysis Mccull","N","21000000","Y"]
["21652S04","Covance Mccully","N","21000000","Y"]
["21652S05","Sport Instr Research Lab","N","21000000","Y"]
["21652S06","Children'S Clinic","N","21000000","Y"]
["21652S07","CPAH","N","21000000","Y"]
["21652S08","Athletic Training Workshop","N","21000000","Y"]
["21700000","Language & Literacy Education","N","21000000","N"]
["21700001","LLE Grant Transition","N","21700000","Y"]
["21700100","LLE Dept Allocation","N","21700000","Y"]
["21700200","LLE eRate Reading Endorsement","N","21700000","Y"]
["21700201","LLE Special Projects","N","21700000","Y"]
["217004PP","LLE Startup P Panau","N","21700000","Y"]
["217004TE","LLE Startup T Ellison","N","21700000","Y"]
["217004UB","LLE Startup U Bhattacharya","N","21700000","Y"]
["217005AH","LLE Faculty A Heath","N","21700000","Y"]
["217005AM","LLE Faculty A Marcotte","N","21700000","Y"]
["217005DA","LLE Faculty D Alvermann","N","21700000","Y"]
["217005JG","LLE Faculty J Graff","N","21700000","Y"]
["217005KB","LLE Faculty K Burke","N","21700000","Y"]
["217005LH","LLE Faculty L Harklau","N","21700000","Y"]
["217005LT","LLE Faculty L Tolosa-Casadont","N","21700000","Y"]
["217005MC","LLE Faculty M Cahnmann-Taylor","N","21700000","Y"]
["217005MG","LLE Faculty M Guay","N","21700000","Y"]
["217005PP","LLE Faculty P Panaou","N","21700000","Y"]
["217005PS","LLE P Smagorinsky","N","21700000","Y"]
["217005RH","LLE Faculty R Harman","N","21700000","Y"]
["217005SK","LLE S Kajder","N","21700000","Y"]
["217005TE","LLE Faculty T Ellison","N","21700000","Y"]
["217005UB","LLE Faculty U Bhattacharya","N","21700000","Y"]
["217005VH","LLE Faculty V Hasko","N","21700000","Y"]
["21700TD1","LLE English Education Tuition","N","21000000","Y"]
["21700TD2","LLE World Languages Tuition Di","N","21000000","Y"]
["21701000","LLE (Budgetary Only))","Y","21000000","N"]
["21701FAC","LLE Vacant Faculty","Y","21701000","N"]
["21701GTA","LLE Grad Asst","Y","21701000","N"]
["21701STF","LLE Vacant Staff","Y","21701000","N"]
["21701SUM","LLE Summer School","Y","21701000","N"]
["21702S01","LLE Reading Clinic","N","21000000","Y"]
["21702S02","LLE J1 Visa Engl Proficiency","N","21000000","Y"]
["21750000","Lifelong Education, Administra","N","21000000","N"]
["21750001","LEAP Grant Transition","N","21750000","Y"]
["21750100","LEAP Dept Allocation","N","21750000","Y"]
["21750200","LEAP eRate Adult Education","N","21750000","Y"]
["21750201","LEAP eRate HROD","N","21750000","Y"]
["21750202","LEAP eRate QUAL","N","21750000","Y"]
["217504SH","Startup S. Han","N","21750000","Y"]
["217504WS","Startup W. Swain","N","21750000","Y"]
["217505AG","LEAP Faculty A Gitlin","N","21750000","Y"]
["217505AN","LEAP Faculty A Nicolaides","N","21750000","Y"]
["217505ED","LEAP Faculty E Debray","N","21750000","Y"]
["217505JD","LEAP Faculty J Dayton","N","21750000","Y"]
["217505JH","LEAP Faculty J Hall","N","21750000","Y"]
["217505JJ","LEAP Faculty J Johnson-Bailey","N","21750000","Y"]
["217505KB","LEAP Faculty K Bryant","N","21750000","Y"]
["217505KD","LEAP Facutly K Demarrais","N","21750000","Y"]
["217505KR","LEAP Faculty K Roulston","N","21750000","Y"]
["217505KW","LEAP Faculty K Watkins","N","21750000","Y"]
["217505LB","LEAP Faculty L Bierema","N","21750000","Y"]
["217505MF","LEAP Faculty M Freeman","N","21750000","Y"]
["217505RW","LEAP Faculty R Welsh","N","21750000","Y"]
["217505SH","LEAP Faculty S Han","N","21750000","Y"]
["217505SW","LEAP Faculty S Williams","N","21750000","Y"]
["217505SZ","LEAP Faculty S Zepeda","N","21750000","Y"]
["217505TP","LEAP Faculty T Paulus","N","21750000","Y"]
["217505TV","LEAP Faculty T Valentine","N","21750000","Y"]
["217505WR","LEAP Faculty W Ruona","N","21750000","Y"]
["217505WS","LEAP Faculty W Swain","N","21750000","Y"]
["21750TD1","LEAP Edap Tuition Differential","N","21000000","Y"]
["21751000","LEAP (Budgetary Only)","Y","21000000","N"]
["21751FAC","LEAP Vacant Faculty","Y","21751000","N"]
["21751GTA","LEAP Grad Asst","Y","21751000","N"]
["21751STF","LEAP Vacant Staff","Y","21751000","N"]
["21751SUM","LEAP Summer School","Y","21751000","N"]
["21752S01","LEAP DSS","N","21000000","Y"]
["21800000","Mathematics & Science Educatio","N","21000000","N"]
["21800001","MSE Grant Transition","N","21800000","Y"]
["21800100","MSE Dept Allocation","N","21800000","Y"]
["21800200","MSE Special Projects 1","N","21800000","Y"]
["21800201","MSE Special Projects 2","N","21800000","Y"]
["218004AE","MSE Startup A Ellis","N","21800000","Y"]
["218004DC","MSE Startup D Capps","N","21800000","Y"]
["218005AC","MSE Faculty A Conner","N","21800000","Y"]
["218005AE","MSE Faculty A Ellis","N","21800000","Y"]
["218005AI","MSE Faculty A Itsak","N","21800000","Y"]
["218005BC","MSE Faculty B Crawford","N","21800000","Y"]
["218005DC","MSE Faculty D Capps","N","21800000","Y"]
["218005DJ","MSE Faculty D Jackson","N","21800000","Y"]
["218005DS","MSE Faculty D Spangler","N","21800000","Y"]
["218005DT","MSE Faculty D Tippins","N","21800000","Y"]
["218005DW","MSE Faculty D White","N","21800000","Y"]
["218005GH","MSE Faculty G Hodges","N","21800000","Y"]
["218005JD","MSE Faculty J Diamond","N","21800000","Y"]
["218005JK","MSE Faculty J Kittleson","N","21800000","Y"]
["218005JL","MSE Faculty J Luft","N","21800000","Y"]
["218005KM","MSE Faculty K Moore","N","21800000","Y"]
["218005MA","MSE Faculty M Atwater","N","21800000","Y"]
["218005MM","MSE Faculty M Mccrary","N","21800000","Y"]
["218005RO","MSE Faculty R Ovrick","N","21800000","Y"]
["218005SO","MSE Faculty S Oliver","N","21800000","Y"]
["21800970","MSE RIAS","N","21000000","Y"]
["21800TD1","MSE Tuition Differential","N","21000000","Y"]
["21801000","Mathematics & Science Educatio","Y","21000000","N"]
["21801FAC","MSE Vacant Faculty","Y","21801000","N"]
["21801GTA","MSE Grad Asst","Y","21801000","N"]
["21801STF","MSE Vacant Staff","Y","21801000","N"]
["21801SUM","MSE Summer School","Y","21801000","N"]
["21802S01","MSE Narst Crawford","N","21000000","Y"]
["22000000","College of Engineering","N","14000000","N"]
["22001000","CENGR College Of Engineering","N","22000000","Y"]
["22001001","CENGR IDC","N","22000000","Y"]
["22001002","CENGR Contingency","N","22000000","Y"]
["22001999","Hold Unused Budget. No Exp.","Y","22000000","N"]
["22002000","Dean","N","22000000","Y"]
["22002001","Grant Buyout PI","N","22000000","Y"]
["22002002","Grant Buyout CENGR","N","22000000","Y"]
["22002003","Vehicle","N","22000000","Y"]
["22002999","Dean Budget Only","Y","22000000","N"]
["22003000","ECE School Of Electrical And C","N","22000000","Y"]
["22003001","ECE IDC","N","22000000","Y"]
["22003002","Fok, Mable","N","22000000","Y"]
["22003003","Haidekker, Mark","N","22000000","Y"]
["22003004","Hamrita, Takoi","N","22000000","Y"]
["22003005","Hornak, Lawrence","N","22000000","Y"]
["22003006","Johnsen, Kyle","N","22000000","Y"]
["22003007","Kner, Peter","N","22000000","Y"]
["22003008","Li, Changying","N","22000000","Y"]
["22003009","Mao, Leidong","N","22000000","Y"]
["22003010","Mohammadpour, Javad","N","22000000","Y"]
["22003011","Song, Wenzhan","N","22000000","Y"]
["22003012","Trudgen, Mark","N","22000000","Y"]
["22003013","Tse, Tsz Ho","N","22000000","Y"]
["22003014","Xie, Zhong Ru (Paul)","N","22000000","Y"]
["22003015","Xu, Bingqian","N","22000000","Y"]
["22003016","Yao, Kun","N","22000000","Y"]
["22003017","Hunsu, Nathaniel","N","22000000","Y"]
["22003200","ECE DSS 0","N","22000000","Y"]
["22003201","ECE DSS 1","N","22000000","Y"]
["22003202","ECE DSS 2","N","22000000","Y"]
["22003203","ECE DSS 3","N","22000000","Y"]
["22003204","ECE DSS 4","N","22000000","Y"]
["22003205","ECE DSS 5","N","22000000","Y"]
["22003206","ECE DSS 6","N","22000000","Y"]
["22003207","ECE DSS 7","N","22000000","Y"]
["22003208","ECE DSS 8","N","22000000","Y"]
["22003209","ECE DSS 9","N","22000000","Y"]
["22003210","ECE DSS 10","N","22000000","Y"]
["22003211","ECE DSS 11","N","22000000","Y"]
["22003212","ECE DSS 12","N","22000000","Y"]
["22003213","ECE DSS 13","N","22000000","Y"]
["22003214","ECE DSS 14","N","22000000","Y"]
["22003215","ECE DSS 15","N","22000000","Y"]
["22003216","ECE DSS 16","N","22000000","Y"]
["22003217","ECE DSS 17","N","22000000","Y"]
["22003218","ECE DSS 18","N","22000000","Y"]
["22003219","ECE DSS 19","N","22000000","Y"]
["22003999","ECE BUDGET ONLY","Y","22000000","N"]
["22004000","CMBE School Of Chemical, Mater","N","22000000","Y"]
["22004001","CMBE IDC","N","22000000","Y"]
["22004002","Averett, Rodney","N","22000000","Y"]
["22004003","Eiteman, Mark","N","22000000","Y"]
["22004004","Gomillion, Cheryl","N","22000000","Y"]
["22004005","Hallow, Melissa","N","22000000","Y"]
["22004006","Handa, Hitesh","N","22000000","Y"]
["22004008","Kastner, James","N","22000000","Y"]
["22004009","Kisaalita, William","N","22000000","Y"]
["22004010","Locklin, Jason","N","22000000","Y"]
["22004011","Mani, Sudhagar","N","22000000","Y"]
["22004012","Mortensen, Luke","N","22000000","Y"]
["22004013","Ramasamy, Ramaraja","N","22000000","Y"]
["22004014","Yan, Yajun","N","22000000","Y"]
["22004200","CMBE DSS 0","N","22000000","Y"]
["22004201","CMBE DSS 1","N","22000000","Y"]
["22004202","CMBE DSS 2","N","22000000","Y"]
["22004203","CMBE DSS 3","N","22000000","Y"]
["22004204","CMBE DSS 4","N","22000000","Y"]
["22004205","CMBE DSS 5","N","22000000","Y"]
["22004206","CMBE DSS 6","N","22000000","Y"]
["22004207","CMBE DSS 7","N","22000000","Y"]
["22004208","CMBE DSS 8","N","22000000","Y"]
["22004209","CMBE DSS 9","N","22000000","Y"]
["22004210","CMBE DSS 10","N","22000000","Y"]
["22004211","CMBE DSS 11","N","22000000","Y"]
["22004212","CMBE DSS 12","N","22000000","Y"]
["22004213","CMBE DSS 13","N","22000000","Y"]
["22004214","CMBE DSS 14","N","22000000","Y"]
["22004215","CMBE DSS 15","N","22000000","Y"]
["22004216","CMBE DSS 16","N","22000000","Y"]
["22004217","CMBE DSS 17","N","22000000","Y"]
["22004218","CMBE DSS 18","N","22000000","Y"]
["22004219","CMBE DSS 19","N","22000000","Y"]
["22004999","CMBE BUDGET","Y","22000000","N"]
["22005000","ECAM School Of Environmental,","N","22000000","Y"]
["22005001","ECAM Idc","N","22000000","Y"]
["22005002","Awuah-Baffour, Robert","N","22000000","Y"]
["22005003","Bledsoe, Brian","N","22000000","Y"]
["22005004","Carnell, Peter","N","22000000","Y"]
["22005005","Chorzepa, Mi Geum","N","22000000","Y"]
["22005006","Christian, Jason","N","22000000","Y"]
["22005007","Das, Keshav","N","22000000","Y"]
["22005008","Davis, Ben","N","22000000","Y"]
["22005009","Durham, Stephan","N","22000000","Y"]
["22005010","Foutz, Timothy","N","22000000","Y"]
["22005011","Freeman, Eric","N","22000000","Y"]
["22005012","Gattie, David","N","22000000","Y"]
["22005013","Jambeck, Jenna","N","22000000","Y"]
["22005014","Kazanci, Caner","N","22000000","Y"]
["22005015","Kim, Sung-Hee","N","22000000","Y"]
["22005016","Lawrence, Thomas","N","22000000","Y"]
["22005017","Leo, Donald","N","22000000","Y"]
["22005018","Li, Ke","N","22000000","Y"]
["22005019","Mccord, Barbara","N","22000000","Y"]
["22005020","Pan, Zhengwei","N","22000000","Y"]
["22005021","Pidaparti, Ramana","N","22000000","Y"]
["22005022","Rotavera, Brandon","N","22000000","Y"]
["22005023","Saleh, Rawad","N","22000000","Y"]
["22005024","Savadatti, Siddharth","N","22000000","Y"]
["22005025","Schramski, John","N","22000000","Y"]
["22005026","Sochacka, Nicola","N","22000000","Y"]
["22005027","Stooksbury, David","N","22000000","Y"]
["22005028","Tanner, Hillary","N","22000000","Y"]
["22005029","Thomas, Benjamin","N","22000000","Y"]
["22005030","Thompson, Sidney","N","22000000","Y"]
["22005031","Tollner, Ernest","N","22000000","Y"]
["22005032","Wagner, Benjamin","N","22000000","Y"]
["22005033","Walther, Joachim","N","22000000","Y"]
["22005034","Wang, Xiangqiao","N","22000000","Y"]
["22005035","Woodson, Brock","N","22000000","Y"]
["22005036","Yoder, Michael","N","22000000","Y"]
["22005037","May, Dominik","N","22000000","Y"]
["22005038","Geller, Daniel","N","22000000","Y"]
["22005039","Law, Edward","N","22000000","Y"]
["22005200","ECAM DSS 0","N","22000000","Y"]
["22005201","ECAM DSS 1","N","22000000","Y"]
["22005202","ECAM DSS 2","N","22000000","Y"]
["22005203","ECAM DSS 3","N","22000000","Y"]
["22005204","ECAM DSS 4","N","22000000","Y"]
["22005205","ECAM DSS 5","N","22000000","Y"]
["22005206","ECAM DSS 6","N","22000000","Y"]
["22005207","ECAM DSS 7","N","22000000","Y"]
["22005208","ECAM DSS 8","N","22000000","Y"]
["22005209","ECAM DSS 9","N","22000000","Y"]
["22005210","ECAM DSS 10","N","22000000","Y"]
["22005211","ECAM DSS 11","N","22000000","Y"]
["22005212","ECAM DSS 12","N","22000000","Y"]
["22005213","ECAM DSS 13","N","22000000","Y"]
["22005214","ECAM DSS 14","N","22000000","Y"]
["22005215","ECAM DSS 15","N","22000000","Y"]
["22005216","ECAM DSS 16","N","22000000","Y"]
["22005217","ECAM DSS 17","N","22000000","Y"]
["22005218","ECAM DSS 18","N","22000000","Y"]
["22005219","ECAM DSS 19","N","22000000","Y"]
["22005999","ECAM BUDGET","Y","22000000","N"]
["22006000","Research And Graduate Studies","N","22000000","Y"]
["22006001","Research IDC","N","22000000","Y"]
["22006002","GII Georgia Informatics Inst","N","22000000","Y"]
["22006003","EETI Electrical & Computer Eng","N","22000000","Y"]
["22006004","IRIS Inst Resilient Infrastr","N","22000000","Y"]
["22006005","CURO","N","22000000","Y"]
["22006006","RIAS PI","N","22000000","Y"]
["22006007","RIAS CENGR","N","22000000","Y"]
["22006008","Graduate Masters","N","22000000","Y"]
["22006009","Graduate Phd","N","22000000","Y"]
["22006010","Innovation & Discovery","N","22000000","Y"]
["22006999","Associate Dean Budget Only","Y","22000000","N"]
["22007000","Academic Affairs And Assessmen","N","22000000","Y"]
["22007001","Graduation","N","22000000","Y"]
["22007002","Accreditation","N","22000000","Y"]
["22007003","Faculty Development","N","22000000","Y"]
["22007004","Career Fair","N","22000000","Y"]
["22007999","Assoc Dean Acad Bud Only","Y","22000000","N"]
["22008000","Information Technology","N","22000000","Y"]
["22008001","Student Tech Fee","N","22000000","Y"]
["22008999","IT Budget Only","Y","22000000","N"]
["22009000","Development And Alumni Relatio","N","22000000","Y"]
["22009999","Development Budget Only","Y","22000000","N"]
["22010000","Experiential Programs And Outr","N","22000000","Y"]
["22010001","Machine Shop","N","22000000","Y"]
["22010002","Senior Design","N","22000000","Y"]
["22010003","CENGR Laboratory","N","22000000","Y"]
["22010999","Experiential Budget Only","Y","22000000","N"]
["22011000","Finance And Administration","N","22000000","Y"]
["22011999","F&A Budget Only","Y","22000000","N"]
["22012000","CENGR Projects","N","22000000","Y"]
["22012001","CENGR Project 1","N","22000000","Y"]
["22012002","CENGR Project 2","N","22000000","Y"]
["22012003","CENGR Project 3","N","22000000","Y"]
["22012004","CENGR Project 4","N","22000000","Y"]
["22012005","CENGR Project 5","N","22000000","Y"]
["22012006","CENGR Project 6","N","22000000","Y"]
["22012007","CENGR Project 7","N","22000000","Y"]
["22012008","CENGR Project 8","N","22000000","Y"]
["22012009","CENGR Project 9","N","22000000","Y"]
["22012010","CENGR Project 10","N","22000000","Y"]
["22012011","CENGR Project 11","N","22000000","Y"]
["22012012","CENGR Project 12","N","22000000","Y"]
["22012013","CENGR Project 13","N","22000000","Y"]
["22012014","CENGR Project 14","N","22000000","Y"]
["22012015","CENGR Project 15","N","22000000","Y"]
["22012016","CENGR Project 16","N","22000000","Y"]
["22012017","CENGR Project 17","N","22000000","Y"]
["22012018","CENGR Project 18","N","22000000","Y"]
["22012019","CENGR Project 19","N","22000000","Y"]
["22012020","CENGR Project 20","N","22000000","Y"]
["22012999","CENGR Budget Only","Y","22000000","N"]
["22013000","CENGR DSS","N","22000000","Y"]
["22013001","CENGR DSS 001","N","22000000","Y"]
["22013002","CENGR DSS 002","N","22000000","Y"]
["22013003","CENGR DSS 003","N","22000000","Y"]
["22013004","CENGR DSS 004","N","22000000","Y"]
["22013005","CENGR DSS 005","N","22000000","Y"]
["22013006","CENGR DSS 006","N","22000000","Y"]
["22013007","CENGR DSS 007","N","22000000","Y"]
["22013008","CENGR DSS 008","N","22000000","Y"]
["22013009","CENGR DSS 009","N","22000000","Y"]
["22013010","CENGR DSS 010","N","22000000","Y"]
["23000000","College of Env & Design","N","14000000","N"]
["23001000","College Of Env & Design","N","23000000","Y"]
["23002000","Faculty/Staff Salaries","N","23000000","Y"]
["23003000","Programs","N","23000000","N"]
["23003001","Bla","N","23003000","Y"]
["23003002","Mla","N","23003000","Y"]
["23003003","Mepd","N","23003000","Y"]
["23003004","Mhp","N","23003000","Y"]
["23003005","Phd","N","23003000","Y"]
["23003006","Eecp","N","23003000","Y"]
["23004000","Student Funding","N","23000000","N"]
["23004001","Assistantships","N","23004000","Y"]
["23004002","Rias","N","23004000","Y"]
["23004003","Student Travel","N","23004000","Y"]
["23004004","Student Support","N","23004000","Y"]
["23005000","Visual Resources","N","23000000","N"]
["23005001","Circle Gallery","N","23005000","Y"]
["23005002","Owens Library","N","23005000","Y"]
["23005003","Library Binding Income","N","23005000","Y"]
["23006000","It","N","23000000","N"]
["23006001","It Operating","N","23006000","Y"]
["23006002","IT Hourly Payroll","N","23006000","Y"]
["23006003","Stf","N","23006000","Y"]
["23006004","IT Printing Income","N","23006000","Y"]
["23007000","Development","N","23000000","Y"]
["23008000","CED Income","N","23000000","N"]
["23008001","Dept Income","N","23008000","Y"]
["23008002","Ccdp","N","23008000","Y"]
["23008003","Cont Ed","N","23008000","Y"]
["23008004","HIPR 6330 Lab Fees","N","23008000","Y"]
["23008005","HIPR/Plan 6200 Lab Fees","N","23008000","Y"]
["23008006","CLL Income","N","23008000","Y"]
["23009000","Faculty","N","23000000","N"]
["23009001","Dean","N","23009000","Y"]
["23009002","D Spooner","N","23009000","Y"]
["23009003","D Nadenicek","N","23009000","Y"]
["23009004","U Yilmaz","N","23009000","Y"]
["23009005","M Reinberger","N","23009000","Y"]
["23009006","J Reap","N","23009000","Y"]
["23009007","J Crowley","N","23009000","Y"]
["23009008","B Orland","N","23009000","Y"]
["23009009","M Cramer","N","23009000","Y"]
["23009010","W Brown","N","23009000","Y"]
["23009011","J Buitrago","N","23009000","Y"]
["23009012","S Harrison","N","23009000","Y"]
["23009013","A Vick","N","23009000","Y"]
["23009014","B Davis","N","23009000","Y"]
["23009015","S Cannady","N","23009000","Y"]
["23009016","R Sawhill","N","23009000","Y"]
["23009017","A Steffens","N","23009000","Y"]
["23009018","E Macdonald","N","23009000","Y"]
["23009019","D Nicholas","N","23009000","Y"]
["23009020","B Lahaie","N","23009000","Y"]
["23009021","A Verma","N","23009000","Y"]
["23009022","C Goetcheus","N","23009000","Y"]
["23009023","S Lee","N","23009000","Y"]
["23009024","K Melcher","N","23009000","Y"]
["23009025","D Pardue","N","23009000","Y"]
["23009026","J Calabria","N","23009000","Y"]
["23009027","S Ramos","N","23009000","Y"]
["23009028","A Smith","N","23009000","Y"]
["23009029","R Rivero","N","23009000","Y"]
["23009030","S Nesbit","N","23009000","Y"]
["23009031","D Longenecker","N","23009000","Y"]
["23009032","P Cassity","N","23009000","Y"]
["23009033","S Ross","N","23009000","Y"]
["23010000","Wormsloe","N","23000000","Y"]
["23011000","Distance Learning","N","23000000","N"]
["23011001","Trail Of Tears","N","23011000","Y"]
["23011002","Ga Coastal","N","23011000","Y"]
["23011003","East/West","N","23011000","Y"]
["23011004","Jekyl Watercolor","N","23011000","Y"]
["23011005","Puerto Rico","N","23011000","Y"]
["23011006","Charrettes","N","23011000","Y"]
["23011007","Metropolitan","N","23011000","Y"]
["23011008","Hist Pres","N","23011000","Y"]
["23011009","Turkey","N","23011000","Y"]
["23011010","Croatia","N","23011000","Y"]
["23012000","Founders Memorial Garden","N","23000000","Y"]
["23013000","FMG Damage Deposits","N","23000000","Y"]
["23014000","CED Sales Tax","N","23000000","Y"]
["23015000","IDC Return","N","23000000","N"]
["23015001","CED IDC Return","N","23015000","Y"]
["23016000","CED Ugarf","N","23000000","Y"]
["23017000","CED Residual","N","23000000","Y"]
["23018000","CED DSS Carryforward","N","23000000","Y"]
["24000000","College of Family & Consum Sci","N","14000000","N"]
["24100000","Dean Unit","N","24000000","N"]
["24100AES","FCS Hatch CAES Funds","N","24100000","Y"]
["24100GA0","Dean Grad Asst","N","24100000","Y"]
["24110000","FACS Admin","N","24100000","Y"]
["24111000","FCS London Study Abroad","N","24100000","Y"]
["24120000","Dean","N","24100000","Y"]
["24121000","Dean Office","N","24100000","Y"]
["24122000","Domestic Travel Dean","N","24100000","Y"]
["24130000","Assoc Dean Academics","N","24100000","Y"]
["24131000","Stu Success & Advising Ctr","N","24100000","Y"]
["24140000","FACS Assoc Dean Outreach Ext","N","24100000","Y"]
["24140DM0","Debbie Murray","N","24100000","Y"]
["24141000","Aspire Clinic","N","24100000","Y"]
["24141100","Aspire Clinic Income","N","24100000","Y"]
["24141200","Hoke Smith","N","24100000","Y"]
["24150000","External Relations","N","24100000","Y"]
["24160000","Business & Finance Office","N","24100000","Y"]
["24170000","Office of Tech & Inst Serv","N","24100000","Y"]
["24171000","FCS IT Sales & Service","N","24100000","Y"]
["24180000","Research & Grants","N","24100000","Y"]
["24190000","FCS Sales & Service","N","24100000","Y"]
["24200000","Human Dev & Family Sci","N","24000000","N"]
["24200CO0","Catherine Oneal","N","24200000","Y"]
["24200DB0","Diane Bales","N","24200000","Y"]
["24200EM0","Emilie Smith","N","24200000","Y"]
["24200GA0","HDFS Grad Asst","N","24200000","Y"]
["24200GB0","Geoffrey Brown","N","24200000","Y"]
["24200GG0","Gerald Jerry Gale","N","24200000","Y"]
["24200JG0","Jennifer Gonyea","N","24200000","Y"]
["24200KW0","Kandauda Wickrama","N","24200000","Y"]
["24200MC0","Margaret Caughy","N","24200000","Y"]
["24200SK0","Steven Kogan","N","24200000","Y"]
["24200TF0","Ted Futris","N","24200000","Y"]
["24210000","HDFS Admin","N","24200000","Y"]
["24210DBW","Bales Workshop","N","24200000","Y"]
["24210TFP","Futris Publications","N","24200000","Y"]
["24220000","Child Dev Lab Admin","N","24200000","Y"]
["24221000","CDL Tuition Income","N","24200000","Y"]
["24230000","MFT Cert Prgm","N","24200000","Y"]
["24240000","HDFS Sales & Service","N","24200000","Y"]
["24300000","Foods & Nutrition","N","24000000","N"]
["24300AA0","Alex Anderson","N","24300000","Y"]
["24300AB0","Alison Berg","N","24300000","Y"]
["24300ABP","Berg Publications","N","24300000","Y"]
["24300AG0","Arthur Grider","N","24300000","Y"]
["24300CC0","Caree Cotwright","N","24300000","Y"]
["24300CM0","Carla Moore","N","24300000","Y"]
["24300CS0","Claire De La Serre","N","24300000","Y"]
["24300EA0","Elizabeth Andress","N","24300000","Y"]
["24300EAW","Andress Workshop","N","24300000","Y"]
["24300EL0","Emma Laing","N","24300000","Y"]
["24300GA0","Fdns Grad Asst","N","24300000","Y"]
["24300GC0","Ginnefer Cox","N","24300000","Y"]
["24300HP0","Hea Jin Park","N","24300000","Y"]
["24300JC0","Jamie Cooper","N","24300000","Y"]
["24300JCS","Cooper Lab Service Fee","N","24300000","Y"]
["24300JH0","Judy Harrison","N","24300000","Y"]
["24300JHP","Harrison Publications","N","24300000","Y"]
["24300JL0","Jung Sun Lee","N","24300000","Y"]
["24300LB0","Lynn Bailey","N","24300000","Y"]
["24300LI0","Leann Birch","N","24300000","Y"]
["24300MJ0","Mary Ann Johnson","N","24300000","Y"]
["24300RL0","Rick Lewis","N","24300000","Y"]
["24300RLL","Lewis Csn Lab","N","24300000","Y"]
["24300RP0","Rob Pazdro","N","24300000","Y"]
["24300RS0","Ruthann Swanson","N","24300000","Y"]
["24301000","Preserve It and Service It","N","24300000","Y"]
["24302000","Calorimetry Sales & Services","N","24300000","Y"]
["24310000","FDN Admin","N","24300000","Y"]
["24311000","Ghana Study Abroad","N","24300000","Y"]
["24312000","Italy Study Abroad","N","24300000","Y"]
["24313000","United Kingdom Study Abroad","N","24300000","Y"]
["24320000","Sch Nutriton Directors","N","24300000","Y"]
["24330000","FDNS Lab Fee Income","N","24300000","Y"]
["24340000","FDNS Sales & Service","N","24300000","Y"]
["24350000","So Easy To Preserve","N","24300000","Y"]
["24360000","eRate Comm Nutrition","N","24300000","Y"]
["24400000","Fin Plan, Housing & Cons Econ","N","24000000","N"]
["24400AC0","Andy Carswell","N","24400000","Y"]
["24400AW0","Ann Woodyard","N","24400000","Y"]
["24400BC0","Brenda Crude","N","24400000","Y"]
["24400GA0","FCHE Grad Asst","N","24400000","Y"]
["24400HW0","Heidi Ewen","N","24400000","Y"]
["24400JG0","Joe Goetz","N","24400000","Y"]
["24400JK0","Joan Koonce","N","24400000","Y"]
["24400JKW","Koonce Workshop","N","24400000","Y"]
["24400JR0","John Grable","N","24400000","Y"]
["24400KS0","Kimberly Skobba","N","24400000","Y"]
["24400KT0","Karen Tinsley","N","24400000","Y"]
["24400KW0","Kenneth White","N","24400000","Y"]
["24400LF1","FCHE Lab Fee 4230/6230","N","24400000","Y"]
["24400LP0","Lance Palmer","N","24400000","Y"]
["24400MR0","Michael Rupured","N","24400000","Y"]
["24400MRW","Rupured Workshop","N","24400000","Y"]
["24400PB0","Patryk Babiarz","N","24400000","Y"]
["24400PT0","Pamela Turner","N","24400000","Y"]
["24400PTW","Turner Workshop","N","24400000","Y"]
["24400SA0","Sophia Anong","N","24400000","Y"]
["24400SC0","Swarn Chatterjee","N","24400000","Y"]
["24400SW0","Sheri Worthy","N","24400000","Y"]
["24400VH0","Velma Zahirovic-Herbert","N","24400000","Y"]
["24410000","FCHE Admin","N","24400000","Y"]
["24411000","Washington, DC Study Away","N","24400000","Y"]
["24412000","Greece Study Abroad","N","24400000","Y"]
["24420000","Griffin Allocation","N","24400000","Y"]
["24421000","Griffin Workshop","N","24400000","Y"]
["24430000","FCHE Ext & Outreach","N","24400000","Y"]
["24440000","FCHE Sales & Service","N","24400000","Y"]
["24460000","Fin Plan Training and Seminars","N","24400000","Y"]
["24470000","eRate Financial Planning","N","24400000","Y"]
["24480000","FCHE Conference Fees","N","24400000","Y"]
["24500000","Textiles, Merch & Interiors","N","24000000","N"]
["24500GA0","TMI Grad Asst","N","24500000","Y"]
["24500GB0","Gajanan Bhat","N","24500000","Y"]
["24500GBI","Bhat Service Income","N","24500000","Y"]
["24500IH0","Ian Hardin","N","24500000","Y"]
["24500KM0","Katalin Medvedev","N","24500000","Y"]
["24500LF1","Course Fees TXMI2360/3360","N","24500000","Y"]
["24500LF2","Course Fees TXMI 2380/3380","N","24500000","Y"]
["24500LF3","Course Fees TXMI 3330","N","24500000","Y"]
["24500LF4","Course Fees TXMI3390","N","24500000","Y"]
["24500LF5","Course Fees TXMI 3520","N","24500000","Y"]
["24500LF6","Course Fees TXMI 3530","N","24500000","Y"]
["24500LF7","Apparel Project TXMI 4250/4260","N","24500000","Y"]
["24500LF8","Course Fees TXMI 4300","N","24500000","Y"]
["24500LF9","Course Fees TXMI 4390","N","24500000","Y"]
["24500LFA","Retail Entrepreneur TXMI 5280","N","24500000","Y"]
["24500LFB","Course Fees TXMI 5310","N","24500000","Y"]
["24500LFC","Course Fees TXMI 5901","N","24500000","Y"]
["24500LFD","TMI Tech Fee","N","24500000","Y"]
["24500LM0","Laura Mcandrews","N","24500000","Y"]
["24500MS0","Monica Sklar","N","24500000","Y"]
["24500PA0","Patricia Annis","N","24500000","Y"]
["24500PAI","Annis Service Income","N","24500000","Y"]
["24500SM0","Sergiy Minko","N","24500000","Y"]
["24500SS0","Suraj Sharma","N","24500000","Y"]
["24500SSI","Sharma Service Income","N","24500000","Y"]
["24500YS0","Yoo-Kyoung Seock","N","24500000","Y"]
["24510000","TMI Admin","N","24500000","Y"]
["24511000","China Study Abroad","N","24500000","Y"]
["24512000","New York Study Away","N","24500000","Y"]
["24520000","TMI Sales and Service","N","24500000","Y"]
["24530000","TMI IT Instruction Purchases","N","24500000","Y"]
["24600000","Ins On Human Dev & Disability","N","24000000","N"]
["24600BB0","Becky Brightwell","N","24600000","Y"]
["24600CL0","Carol Britton Laws","N","24600000","Y"]
["24600CLC","Laws Consulting","N","24600000","Y"]
["24600HJ0","Hamida Jinnah","N","24600000","Y"]
["24600SPF","IHDD Spec Funding","N","24600000","Y"]
["24600ZS0","Zolinda Stoneman","N","24600000","Y"]
["24601000","Early Intervention","N","24600000","Y"]
["24602000","New Directions Video","N","24600000","Y"]
["24603000","Supported Employment","N","24600000","Y"]
["24604000","VAP Cost Recovery","N","24600000","Y"]
["24610000","IHDD Admin","N","24600000","Y"]
["24620000","IHDD Income","N","24600000","Y"]
["24630000","Sunbelt Expo","N","24600000","Y"]
["24640000","Tidwell Consulting","N","24600000","Y"]
["24650000","Works Works Project","N","24600000","Y"]
["24660000","IHDD Workshops","N","24600000","Y"]
["24670000","IHDD Pub Srv & Outrch","N","24600000","Y"]
["24680000","Destination Dawgs","N","24600000","Y"]
["24681000","Destination Dawgs Tuition Cont","N","24600000","Y"]
["24690000","Crandell Consultant","N","24600000","Y"]
["25000000","Warnell Sch Of For & Nat Res","Y","14000000","N"]
["25001000","Warnell Sch Of For & Nat Res","Y","25000000","N"]
["25001001","Warnell Sch Of For & Nat Res","N","25001000","Y"]
["25001AAD","Warnell Acad Aff Assoc Dean","N","25001000","Y"]
["25001AUB","Warnell Aubrey","N","25001000","Y"]
["25001BAR","Warnell Bargeron","N","25001000","Y"]
["25001BEA","Warnell Beasley","N","25001000","Y"]
["25001BEN","Warnell Benton","N","25001000","Y"]
["25001BET","Warnell Bettinger","N","25001000","Y"]
["25001BIR","Warnell BIrwin","N","25001000","Y"]
["25001BJA","Warnell BJackson","N","25001000","Y"]
["25001BOL","Warnell Boley","N","25001000","Y"]
["25001BRI","Warnell Bringolf","N","25001000","Y"]
["25001BUC","Warnell Bucksch","N","25001000","Y"]
["25001BUL","Warnell Bullock","N","25001000","Y"]
["25001CAS","Warnell Castleberry","N","25001000","Y"]
["25001CAU","Warnell Caulfield","N","25001000","Y"]
["25001CED","Warnell Continuing Educ","N","25001000","Y"]
["25001CHM","Warnell Chamberlain","N","25001000","Y"]
["25001CHN","Warnell Chandler","N","25001000","Y"]
["25001CIE","Warnell Cieszewski","N","25001000","Y"]
["25001CNR","Warnell Conroy","N","25001000","Y"]
["25001CNT","Warnell Contingency","N","25001000","Y"]
["25001COD","Warnell Coder","N","25001000","Y"]
["25001CON","Warnell Conrad","N","25001000","Y"]
["25001COO","Warnell Cooper","N","25001000","Y"]
["25001CWT","Warnell Coweeta Dorm","N","25001000","Y"]
["25001DAH","Warnell Dahlen","N","25001000","Y"]
["25001DAN","Warnell D'Angelo","N","25001000","Y"]
["25001DIC","Warnell Dickens","N","25001000","Y"]
["25001DNO","Warnell Dean","N","25001000","Y"]
["25001DWI","Warnell Dwivedi","N","25001000","Y"]
["25001GAN","Warnell Gandhi","N","25001000","Y"]
["25001GCB","Warnell Growth Chambers","N","25001000","Y"]
["25001GRE","Warnell Greene","N","25001000","Y"]
["25001GRN","Warnell Green","N","25001000","Y"]
["25001GRO","Warnell Grossman","N","25001000","Y"]
["25001HAR","Warnell Harris","N","25001000","Y"]
["25001HCY","Warnell Hep-Cymerman","N","25001000","Y"]
["25001HER","Warnell Hernandez","N","25001000","Y"]
["25001IRW","Warnell KIrwin","N","25001000","Y"]
["25001IZL","Warnell Izlar","N","25001000","Y"]
["25001JEN","Warnell Jennings","N","25001000","Y"]
["25001KAN","Warnell Kane","N","25001000","Y"]
["25001KEY","Forestry Key Deposits","N","25001000","Y"]
["25001KNG","Warnell King","N","25001000","Y"]
["25001L&F","Warnell Lands & Facilities","N","25001000","Y"]
["25001MAE","Warnell Maerz","N","25001000","Y"]
["25001MAR","Warnell Markewitz","N","25001000","Y"]
["25001MCC","Warnell McConnell","N","25001000","Y"]
["25001MEI","Warnell Mei","N","25001000","Y"]
["25001MEN","Warnell Mengak","N","25001000","Y"]
["25001MER","Warnell Merkle","N","25001000","Y"]
["25001MIL","Warnell KMiller","N","25001000","Y"]
["25001MON","Warnell Montes","N","25001000","Y"]
["25001MOO","Warnell Moore","N","25001000","Y"]
["25001MOR","Warnell Morris","N","25001000","Y"]
["25001MRH","Warnell Moorhead","N","25001000","Y"]
["25001MRT","Warnell Martin","N","25001000","Y"]
["25001MTH","GFA Master Timber Harester Pgm","N","25001000","Y"]
["25001NAI","Warnell Nairn","N","25001000","Y"]
["25001NIB","Warnell Nibbelink","N","25001000","Y"]
["25001OHD","Warnell Admin Overhead","N","25001000","Y"]
["25001PET","Warnell Peterson","N","25001000","Y"]
["25001PRL","Warnell Pub Relations","N","25001000","Y"]
["25001RAD","Warnell Rsch Assoc Dean","N","25001000","Y"]
["25001RAS","Warnell Rasmussen","N","25001000","Y"]
["25001RJA","Warnell RJackson","N","25001000","Y"]
["25001RSV","Warnell Timber Plt Fund Rsv","N","25001000","Y"]
["25001SAD","Warnell Service Assoc Dean","N","25001000","Y"]
["25001SHE","Warnell Shelton","N","25001000","Y"]
["25001SIR","Warnell Siry","N","25001000","Y"]
["25001TAR","Warnell Tarrant","N","25001000","Y"]
["25001TDF","Warnell Tuition Differential","N","25001000","Y"]
["25001TEC","Warnell IT Services","N","25001000","Y"]
["25001TSA","Warnell Tsai","N","25001000","Y"]
["25001VIL","Warnell Villari","N","25001000","Y"]
["25001WIL","Warnell Wilde","N","25001000","Y"]
["25001WOO","Warnell Woosnam","N","25001000","Y"]
["25001YAB","Warnell Yabsley","N","25001000","Y"]
["25001YLI","Warnell Y Li","N","25001000","Y"]
["25001ZHA","Warnell Zhao","N","25001000","Y"]
["26000000","Odum School of Ecology","N","14000000","N"]
["26000ADM","OSE Unit Administration","N","26000000","Y"]
["26000ALT","OSE Altizer","N","26000000","Y"]
["26000AND","OSE Andrews","N","26000000","Y"]
["26000ARF","OSE UGARF Indirect","N","26000000","Y"]
["26000BAL","OSE Ballantyne","N","26000000","Y"]
["26000BYE","OSE Byers","N","26000000","Y"]
["26000CAP","OSE Capps","N","26000000","Y"]
["26000CHR","OSE Credit Hour","Y","26000000","N"]
["26000CON","OSE Connelly","N","26000000","Y"]
["26000COV","OSE Covich","N","26000000","Y"]
["26000CSL","OSE Counseling","N","26000000","Y"]
["26000DAV","OSE Davis","N","26000000","Y"]
["26000DEV","OSE Development","N","26000000","Y"]
["26000DRA","OSE Drake","N","26000000","Y"]
["26000EID","OSE CEID Program","N","26000000","Y"]
["26000EZE","OSE Ezenwa","N","26000000","Y"]
["26000FIT","OSE Fitt","N","26000000","Y"]
["26000FOW","OSE Fowler","N","26000000","Y"]
["26000FRE","OSE Freeman","N","26000000","Y"]
["26000GIT","OSE Gittleman","N","26000000","Y"]
["26000HAL","OSE Hall","N","26000000","Y"]
["26000HOL","OSE Holdo","N","26000000","Y"]
["26000IDA","OSE IDEAS Program","N","26000000","Y"]
["26000IDC","OSE Indirect Cost Return","N","26000000","Y"]
["26000INS","OSE Instruction","N","26000000","Y"]
["26000KIN","OSE King","N","26000000","Y"]
["26000KRA","OSE Kramer","N","26000000","Y"]
["26000MCA","OSE McArthur","N","26000000","Y"]
["26000MCF","OSE Maymester Carryforward","N","26000000","Y"]
["26000MOH","OSE Mohan","N","26000000","Y"]
["26000OSE","OSE Osenberg","N","26000000","Y"]
["26000PAR","OSE Park","N","26000000","Y"]
["26000POR","OSE Porter","N","26000000","Y"]
["26000PRI","OSE Pringle","N","26000000","Y"]
["26000PTF","OSE Ptfac","Y","26000000","N"]
["26000RES","OSE Residual","N","26000000","Y"]
["26000ROH","OSE Rohani","N","26000000","Y"]
["26000ROS","OSE Rosemond","N","26000000","Y"]
["26000SCD","OSE Schmidt","N","26000000","Y"]
["26000SCK","OSE Schacke","N","26000000","Y"]
["26000STA","OSE Staff","Y","26000000","N"]
["26000STE","OSE Stephens","N","26000000","Y"]
["26000STF","OSE Student Tech Fee","N","26000000","Y"]
["26000TCH","OSE Tech Funds","N","26000000","Y"]
["26000WEN","OSE Wenger","N","26000000","Y"]
["26000WUR","OSE Wurzburger","N","26000000","Y"]
["26100ACL","OSE Analytica Chem Lab","N","26000000","Y"]
["26100EPS","OSE Eco Problem Solving","N","26000000","Y"]
["26100FCF","OSE Lab Fees Carryforward","Y","26000000","N"]
["26100FSH","OSE Fishery Services","N","26000000","Y"]
["26100KEY","OSE Key Account","N","26000000","Y"]
["26100MAM","OSE Maymester Mammals","N","26000000","Y"]
["26100OUT","OSE Outreach","N","26000000","Y"]
["26100PNT","OSE Printing","N","26000000","Y"]
["26100RBC","OSE River Basin Ctr","N","26000000","Y"]
["26100SAL","OSE Sales","N","26000000","Y"]
["26100VIN","OSE Various Income","N","26000000","Y"]
["26100WKP","OSE Workshop","N","26000000","Y"]
["26200CLF","OSE Class Lab Fees","N","26000000","Y"]
["26200LAB","OSE Lab Fees","N","26000000","Y"]
["26300000","OSE Contingency","Y","26000000","N"]
["27000000","Graduate School","N","14000000","N"]
["27002000","Graduate Sch Admin","N","27000000","Y"]
["27002001","Business Office","N","27000000","Y"]
["27002002","Associate Dean","N","27000000","Y"]
["27002003","Assistant Dean","N","27000000","Y"]
["27002004","IT Budget","N","27000000","Y"]
["27002005","ESS/ Budget","N","27000000","Y"]
["27002006","Photographer Travel","N","27000000","Y"]
["27002007","Dean'S Budget","N","27000000","Y"]
["27002008","Development","N","27000000","Y"]
["27002009","Interdisciplinary","N","27000000","Y"]
["27002010","RDI","N","27000000","Y"]
["27002011","Reinstatement Fee","N","27000000","Y"]
["27002012","Stf Graduate School","N","27000000","Y"]
["27002100","Graduate Sch Operating","N","27000000","Y"]
["27002200","GS Annual Contracts","N","27000000","Y"]
["27002201","Collegenet Fees","N","27000000","Y"]
["27002202","Council Of Graduate School","N","27000000","Y"]
["27002203","Emerging Leaders","N","27000000","Y"]
["27002204","Contracted Speakers","N","27000000","Y"]
["27002205","Orientation","N","27000000","Y"]
["27002300","GS Assistantships","N","27000000","Y"]
["27002301","GSRA 1St Year","N","27000000","Y"]
["27002302","GSRA 4Th Year","N","27000000","Y"]
["27002303","Club Presidents","N","27000000","Y"]
["27002304","Presidential Fellowship","N","27000000","Y"]
["27002305","GRO","N","27000000","Y"]
["27002306","Feeder","N","27000000","Y"]
["27002307","Doc Completion","N","27000000","Y"]
["27002308","Great","N","27000000","Y"]
["27002309","Gain","N","27000000","Y"]
["27002310","Summer Research Grant","N","27000000","Y"]
["27002311","Grad School Assists","N","27000000","Y"]
["27002312","Nrtige Training Grant","N","27000000","Y"]
["27002313","Sreb","N","27000000","Y"]
["27002400","GS Magizine","N","27000000","Y"]
["27002401","Editor","N","27000000","Y"]
["27002404","Graphic Designer","N","27000000","Y"]
["27002500","Staff Salaries","N","27000000","Y"]
["27002600","Student Travel Awards","N","27000000","N"]
["27002601","Student Travel Awards","N","27002600","Y"]
["27002602","Nsf Travel Awards","N","27002600","Y"]
["27002603","Summer Travel Awards","N","27002600","Y"]
["27002700","Indirect Cost Return","N","27000000","N"]
["27002701","IDC CarryForward","N","27002700","Y"]
["27002702","GS IDC Return","N","27002700","Y"]
["27002801","Grad School Late Fee","N","27000000","Y"]
["27002900","Dept S/S","N","27000000","N"]
["27002901","DSS CarryForward","N","27002900","Y"]
["27002902","Grad School DSS","N","27002900","Y"]
["27003000","Toxicology","N","27000000","N"]
["27003001","Tox Admin","N","27003000","Y"]
["27004000","Icon","N","27000000","N"]
["27004001","Icon Admin","N","27004000","Y"]
["27005000","ILS","N","27000000","N"]
["27005001","ILS Admin","N","27005000","Y"]
["27005002","ILS IDC","N","27005000","Y"]
["27006000","UGARF Support Disc","N","27000000","Y"]
["27007000","Dean's Special Allocations","N","27000000","Y"]
["28000000","Coll of Journalism & Mass Comm","N","14000000","N"]
["28100000","Grady College Dean","N","28000000","N"]
["28100100","Dean's Administration","N","28100000","Y"]
["28100101","Dean's Operating","N","28100000","Y"]
["28100102","Dean's Discretionary","N","28100000","Y"]
["28100103","Central Operations","N","28100000","Y"]
["28100104","Journalism Building Maintenanc","N","28100000","Y"]
["28100105","Grady Dept Sales","N","28100000","Y"]
["28100106","Carry Forward","N","28100000","Y"]
["28100107","Indirect Cost Returns","N","28100000","Y"]
["28100108","Kappa Tau Alpha","N","28100000","Y"]
["28100200","Business","N","28100000","Y"]
["28100300","Communications","N","28100000","Y"]
["28100400","Development","N","28100000","Y"]
["28100500","Outreach","N","28100000","Y"]
["28100501","High School News Paper Wkshop","N","28100000","Y"]
["28100502","GA Scholastic Press Assoc","N","28100000","Y"]
["28100503","Mgmt Seminar Coll News Editors","N","28100000","Y"]
["28100504","GAB National Radio Institute","N","28100000","Y"]
["28100600","CJMC Transition Payroll Split Conv","N","28100000","Y"]
["28100950","Dean Residual Bal","N","28100000","Y"]
["28200000","Academic Affairs","N","28000000","N"]
["28200100","Academic Affairs Administratio","N","28200000","Y"]
["28200101","Academic Affairs Operating","N","28200000","Y"]
["28200200","Undergraduate Studies","N","28200000","Y"]
["28200300","Information Technology","N","28200000","Y"]
["28300000","Graduate Studies/Research","N","28000000","N"]
["28300100","Graduate Studies Administratio","N","28300000","Y"]
["28300101","Graduate Operating","N","28300000","Y"]
["28300200","MFA Narrative/Screenwriting","N","28300000","Y"]
["28300300","MFA Film","N","28300000","Y"]
["28400000","Advertising & Public Relations","N","28000000","N"]
["28400100","ADPR Administration","N","28400000","Y"]
["28400101","ADPR Operating","N","28400000","Y"]
["28400105","ADPR Student Supply Fee","N","28400000","Y"]
["28400106","ADPR Training","N","28400000","Y"]
["28400112","ADPR Business Comm","N","28400000","Y"]
["28400113","ADPR Corp Professional Develop","N","28400000","Y"]
["28400114","ADPR Creative Circus Program","N","28400000","Y"]
["28400115","ADPR Social Media Prof Develop","N","28400000","Y"]
["28400150","ADPR in NY Field Study","N","28400000","Y"]
["28400151","Choose China Study Abroad","N","28400000","Y"]
["28400152","SAT Circus Field Study","N","28400000","Y"]
["28400153","Cannes Lions Study Abroad","N","28400000","Y"]
["28400154","Grady @ DC Field Study","N","28400000","Y"]
["28400200","Center for Health & Risk Comm","N","28400000","Y"]
["28400300","Virtual Reality Arcade","N","28400000","Y"]
["28500000","Entertainment And Media Studie","N","28000000","N"]
["28500100","EMST Administration","N","28500000","Y"]
["28500101","EMST Operating","N","28500000","Y"]
["28500105","EMST Student Supply Fee","N","28500000","Y"]
["28500155","Cannes Film Festival","N","28500000","Y"]
["28500156","Grady LA","N","28500000","Y"]
["28500159","Grady Ecuador","N","28500000","Y"]
["28600000","Journalism","N","28000000","N"]
["28600100","JOUR Administration","N","28600000","Y"]
["28600101","JOUR Operating","N","28600000","Y"]
["28600105","JOUR Student Supply Fee","N","28600000","Y"]
["28600106","Grady Pre-Med Magazine","N","28600000","Y"]
["28600157","Travel Journalism Dublin","N","28600000","Y"]
["28600158","Travel Journalism Munich","N","28600000","Y"]
["28600200","Cox Center","N","28600000","Y"]
["28600201","Cox Center Intl Training Prgms","N","28600000","Y"]
["28600300","Cox Institute","N","28600000","Y"]
["28600400","Grady Productions","N","28600000","Y"]
["28600500","Knight","N","28600000","Y"]
["28600600","Photo Journalism","N","28600000","Y"]
["28600700","Sports Journalism","N","28600000","Y"]
["28700000","Peabody Awards Program","N","28000000","N"]
["28700100","Peabody Administration","N","28700000","Y"]
["28700200","Peabody 16","N","28700000","Y"]
["28700201","Peabody 17","N","28700000","Y"]
["28700202","Peabody 18","N","28700000","Y"]
["28700301","Peabody Broadcast 17","N","28700000","Y"]
["28700302","Peabody Broadcast 18","N","28700000","Y"]
["28700952","Peabody Residual Balance","N","28700000","Y"]
["28800000","New Media Institute","N","28000000","N"]
["28800100","NMI Administration","N","28800000","Y"]
["28800101","NMI Operating","N","28800000","Y"]
["28800102","TedxUGA","N","28800000","Y"]
["28800103","SLAM Program","N","28800000","Y"]
["28800104","Destination Dawgs","N","28800000","Y"]
["28800105","NMI Student Supply Fee","N","28800000","Y"]
["28800106","Drone Summit Fall 2017","N","28800000","Y"]
["29000000","School of Law","N","14000000","N"]
["29001000","Law School","N","29000000","N"]
["29001010","Law School General","N","29001000","Y"]
["29001011","Law School Tuit Diff","N","29001000","Y"]
["29001020","Admissions","N","29001000","Y"]
["29001021","Jd Program Application Fees","N","29001000","Y"]
["29001030","Advancement","N","29001000","Y"]
["29001040","Advocacy","N","29001000","Y"]
["29001050","Career Development","N","29001000","Y"]
["29001060","Communications","N","29001000","Y"]
["29001070","Computer Services","N","29001000","Y"]
["29001080","Diversity","N","29001000","Y"]
["29001090","Events","N","29001000","Y"]
["29001100","Rusk","N","29001000","Y"]
["29001101","Llm Program Application Fees","N","29001000","Y"]
["29001102","Law Study Abroad In Europe","N","29001000","Y"]
["29001103","International Workshops/Confer","N","29001000","Y"]
["29001200","Clinics","N","29001000","Y"]
["29001AAC","Alan Cook","N","29001000","Y"]
["29001AGH","Allison Hale","N","29001000","Y"]
["29001ALD","Andrea Dennis","N","29001000","Y"]
["29001AWS","Alex Scherr","N","29001000","Y"]
["29001CCN","Curt Nesset","N","29001000","Y"]
["29001CEM","Carol Morgan","N","29001000","Y"]
["29001CEW","Camilla Watson","N","29001000","Y"]
["29001CMB","Christopher Bruner","N","29001000","Y"]
["29001CMS","Christine Scartz","N","29001000","Y"]
["29001CXT","Christian Turner","N","29001000","Y"]
["29001DES","David Shipley","N","29001000","Y"]
["29001DMA","Diane Amann","N","29001000","Y"]
["29001DTC","Dan Coenen","N","29001000","Y"]
["29001ECB","Beth Burch","N","29001000","Y"]
["29001ECL","Ellie Lanier","N","29001000","Y"]
["29001EMG","Elizabeth Grant","N","29001000","Y"]
["29001EMH","Emma Hetherington","N","29001000","Y"]
["29001EWL","Elizabeth Weeks Leonard","N","29001000","Y"]
["29001FRK","Fazal Khan","N","29001000","Y"]
["29001GDP","Greg Polsky","N","29001000","Y"]
["29001HGC","Harlan Cohen","N","29001000","Y"]
["29001HYL","Hillel Levin","N","29001000","Y"]
["29001JAC","Julian Cook","N","29001000","Y"]
["29001JLH","Jessica Heywood","N","29001000","Y"]
["29001JRB","Randy Beck","N","29001000","Y"]
["29001JSM","Joe Miller","N","29001000","Y"]
["29001KCM","Kellie Casey Monk","N","29001000","Y"]
["29001KHB","Kent Barnett","N","29001000","Y"]
["29001LAR","Lori Ringhand","N","29001000","Y"]
["29001LES","Logan Sawyer","N","29001000","Y"]
["29001LTB","Lonnie Brown","N","29001000","Y"]
["29001LXM","Lisa Milot","N","29001000","Y"]
["29001MIH","Matthew Hall","N","29001000","Y"]
["29001MLW","Mike Wells","N","29001000","Y"]
["29001MVS","Maggie Sachs","N","29001000","Y"]
["29001MXB","Mehrsa Baradaran","N","29001000","Y"]
["29001NSC","Nathan Chapman","N","29001000","Y"]
["29001PAA","Peter Appel","N","29001000","Y"]
["29001PBR","Bo Rutledge","N","29001000","Y"]
["29001PDC","Patrick Conner","N","29001000","Y"]
["29001RCG","Russell Gabriel","N","29001000","Y"]
["29001SGM","Sandra Mayson","N","29001000","Y"]
["29001SRW","Sonja West","N","29001000","Y"]
["29001TMT","Travis Trimble","N","29001000","Y"]
["29001TVB","Thomas Burch","N","29001000","Y"]
["29001URR","Usha Rodrigues","N","29001000","Y"]
["29001WMT","Willow Tracy","N","29001000","Y"]
["29002000","Law School Library","N","29000000","N"]
["29002100","Law Library Operating","N","29002000","Y"]
["29002101","Library Tuit Diff","N","29002000","Y"]
["29002200","Collection Dev & Support","N","29002000","Y"]
["29002300","Professional Development","N","29002000","Y"]
["29003000","Inst. Continuing Judicial Educ","N","29000000","Y"]
["29004000","Georgia Law Review","N","29000000","Y"]
["29004100","Georgia Law Review Conferences","N","29000000","Y"]
["29005000","Georgia Journal Of Internation","N","29000000","Y"]
["29006000","Georgia Journal Of Intellectua","N","29000000","Y"]
["29007000","Coffee Shop","N","29000000","Y"]
["29008000","Unallocated Funds","Y","29000000","N"]
["29009000","Law School Conf/Workshops","N","29000000","Y"]
["29009010","Wipi Conference","N","29000000","Y"]
["29009020","Red Clay Conference","N","29000000","Y"]
["29009030","Ip Conference","N","29000000","Y"]
["29009040","Galp Conference","N","29000000","Y"]
["30000000","College of Pharmacy","N","14000000","N"]
["30101000","Dean's Office","N","30000000","N"]
["30101001","COP Dean's Office Operations","N","30101000","Y"]
["30101002","Dean's Travel","N","30101000","Y"]
["30101003","Software Contracts","N","30101000","Y"]
["30101020","Administrative and Technology","N","30101000","Y"]
["30101021","External Affairs","N","30101000","Y"]
["30101022","Facilities","N","30101000","Y"]
["30101023","Finance and Administration","N","30101000","Y"]
["30101024","Instructional Design and Tech","N","30101000","Y"]
["30101025","Public Relations","N","30101000","Y"]
["30101200","COP (Budget Only)","Y","30000000","N"]
["30101201","COP IDC Return (UGARF)","N","30101000","Y"]
["30101202","COP Residual","N","30101000","Y"]
["30101203","COP IDC Carry Forward","N","30101000","Y"]
["30101204","Royalty Inventor Drug Disc","N","30101000","Y"]
["30101205","Anti-Viral Research Chu","N","30101000","Y"]
["30101900","COP S&S Carry Forward","N","30101000","Y"]
["30101901","COP Sales & Services","N","30101000","Y"]
["30101902","IDT Sales & Services","N","30101000","Y"]
["30101950","Student Health Insurance","N","30101000","Y"]
["30101951","Student Malpractice Insurance","N","30101000","Y"]
["30101952","Student Evalue Service","N","30101000","Y"]
["30201000","Associate Dean","N","30000000","N"]
["30201001","Associate Dean Operations","N","30201000","Y"]
["30201201","Technology Fee","N","30201000","Y"]
["30202000","Student Affairs","N","30000000","N"]
["30202001","Student Affairs Operations","N","30202000","Y"]
["30202002","Student Affairs Diversity","N","30202000","Y"]
["30202003","Student Affairs Student Travel","N","30202000","Y"]
["30202901","SA Sales & Services","N","30202000","Y"]
["30203000","Non-Trad Education & Outreach","N","30000000","N"]
["30203001","NTEO Operations","N","30203000","Y"]
["30203901","NTEO Sales & Services","N","30203000","Y"]
["30203950","NTEO SE Residency Conf","N","30203000","Y"]
["30301000","Pharm & Biomed Sciences","N","30000000","N"]
["30301001","PBS Operations","N","30301000","Y"]
["30301002","PBS PhD Program","N","30301000","Y"]
["30301003","PBS MS Program","N","30301000","Y"]
["30301004","PBS Salary Savings","N","30301000","Y"]
["30301020","PBS BS Program","N","30301000","Y"]
["30301100","PBS Faculty","N","30301000","N"]
["30301101","Dexi Lui","N","30301100","Y"]
["30301102","Michael Bartlett","N","30301100","Y"]
["30301103","Houjian Cai","N","30301100","Y"]
["30301104","David Chu","N","30301100","Y"]
["30301105","Brian Cummings","N","30301100","Y"]
["30301106","Deborah Elder","N","30301100","Y"]
["30301107","James Franklin","N","30301100","Y"]
["30301108","Phillip Greenspan","N","30301100","Y"]
["30301109","Shelley Hooks","N","30301100","Y"]
["30301110","Eileen Kennedy","N","30301100","Y"]
["30301112","Cory Momany","N","30301100","Y"]
["30301113","Mandi Murph","N","30301100","Y"]
["30301114","Scott Pegan","N","30301100","Y"]
["30301115","Gurvinder Singh Rekhi","N","30301100","Y"]
["30301116","Arthur Roberts","N","30301100","Y"]
["30301117","Han Rong Weng","N","30301100","Y"]
["30301118","Catherine White","N","30301100","Y"]
["30301119","May Xiong","N","30301100","Y"]
["30301120","Yao Yao","N","30301100","Y"]
["30301121","Jason Zastre","N","30301100","Y"]
["30301122","George Zheng","N","30301100","Y"]
["30301200","PBS (Budget Only)","N","30000000","Y"]
["30301201","PBS IDC Return (UGARF)","N","30301000","Y"]
["30301202","PBS Residual","N","30301000","Y"]
["30301203","Royalty Research Chu","N","30301000","Y"]
["30301204","Drug Discovery","N","30301000","Y"]
["30301901","PBS Sales & Services","N","30301000","Y"]
["30301902","PBS BS Program Lab Fees","N","30301000","Y"]
["30401000","Associate Dean SERT","N","30000000","N"]
["30401001","AD SERT Operations","N","30401000","Y"]
["30401200","AD SERT (Budget Only)","N","30000000","Y"]
["30401201","AD SERT - Indirect Cost","N","30401000","Y"]
["30402000","Regulatory Affairs","N","30401000","N"]
["30402001","Regulatory Affairs Operations","N","30402000","Y"]
["30402901","RA Sales & Services","N","30402000","Y"]
["30501000","Clinical & Admin Pharmacy","N","30000000","N"]
["30501001","CAP Operations","N","30501000","Y"]
["30501002","CAP Salary Savings","N","30501000","Y"]
["30501020","CAP Albany","N","30501000","Y"]
["30501030","CAP Augusta","N","30501000","Y"]
["30501040","CAP Savannah","N","30501000","Y"]
["30501100","CAP Faculty","N","30501000","N"]
["30501101","Brad Phillips","N","30501100","Y"]
["30501102","Ewan Cobran","N","30501100","Y"]
["30501103","Jayani Jayawardhana","N","30501100","Y"]
["30501104","Matthew Perri","N","30501100","Y"]
["30501105","Elisabeth Lilian Sattler","N","30501100","Y"]
["30501106","Henry Young","N","30501100","Y"]
["30501107","Amber Clemmons","N","30501100","Y"]
["30501108","Susan Fagan","N","30501100","Y"]
["30501109","Lakshman Segar","N","30501100","Y"]
["30501110","Somanath Shenoy","N","30501100","Y"]
["30501111","Rebecca Stone","N","30501100","Y"]
["30501112","Duska Franic","N","30501100","Y"]
["30501113","Ken Duke","N","30501100","Y"]
["30501114","Marie Chisholm","N","30501100","Y"]
["30501115","Susan Smith","N","30501100","Y"]
["30501116","Andrea Newsome","N","30501100","Y"]
["30501200","CAP (Budget Only)","Y","30000000","N"]
["30501201","CAP IDC Return (UGARF)","N","30501000","Y"]
["30501202","CAP Residual","N","30501000","Y"]
["30501901","CAP Sales & Services","N","30501000","Y"]
["30701000","Experience Progams","N","30000000","N"]
["30701001","Experience Progams Operations","N","30701000","Y"]
["30701901","Exp Programs Sales & Services","N","30701000","Y"]
["31000000","College of Public Health","N","14000000","N"]
["31010000","College Public Health Dean Off","N","31000000","N"]
["31010001","College Public Health DO Roll","N","31010000","Y"]
["31011DPH","DO General Funds Drph Program","N","31010000","Y"]
["31011DRP","DO Professional Differential T","N","31010000","Y"]
["31011MPH","DO Professional Differential T","N","31010000","Y"]
["31012001","DO CPH Poster Plotter","N","31010000","Y"]
["31012002","DO Ind Dis Lrn","N","31010000","Y"]
["31012003","DO MPH/DRPH Stdt Application F","N","31010000","Y"]
["31012925","DO DSS Carry Forward ","N","31010000","Y"]
["31013CAR","DO IDC Carry Forward","N","31010000","Y"]
["31014000","DO CPH Dean","N","31010000","Y"]
["31014COM","DO CPH Commitments","N","31010000","Y"]
["31014DAV","DO Associate Dean Davis","N","31010000","Y"]
["31014DEV","DO CPH Development","N","31010000","Y"]
["31014DTR","DO Domestic Travel","N","31010000","Y"]
["31014HEC","DO Associate Dean Heckman","N","31010000","Y"]
["31014OIT","DO Off Inf Tech","N","31010000","Y"]
["31014RSH","DO CPH Research Office","N","31010000","Y"]
["31014SAA","DO Student Academic Affairs","N","31010000","Y"]
["31014SRV","DO Outreach & Engagement","N","31010000","Y"]
["31014STF","DO Student Tech Fees","N","31010000","Y"]
["31014WIL","DO Associate Dean Wilson","N","31010000","Y"]
["31015GWN","DO Gwinnett","N","31010000","Y"]
["31016PSH","DO CPH Partnerships","N","31010000","Y"]
["31017TWS","DO Training Workshop","N","31010000","Y"]
["31018SHE","John J. SHEURING Memorial","N","31010000","Y"]
["31020000","Global Health Institute","N","31000000","N"]
["31020001","GHI Rollup","N","31020000","Y"]
["31021MPH","GHI Professional Differential","N","31020000","Y"]
["31022SAP","Studies Abroad Program Fees","N","31020000","Y"]
["31026ISR","PH GRAD INTERN - Israel SA","N","31020000","Y"]
["31027VIP","GHI VIP Funds","N","31020000","Y"]
["31028WHA","UGARF DRP RSCH SUP Whalen","N","31020000","Y"]
["31029SEK","GHI Juliet Sekandi","N","31020000","Y"]
["31030000","Environmental Health Sci","N","31000000","N"]
["31030001","EHS Rollup","N","31030000","Y"]
["31031MPH","EHS Professional Differential","N","31030000","Y"]
["31032001","EHS Lab Fees","N","31030000","Y"]
["31032002","EHS DNA Lab","N","31030000","Y"]
["31032003","EHS Research Service Wang Lab","N","31030000","Y"]
["31032TWS","EHS Training Workshop","N","31030000","Y"]
["31033KEY","EHS Key Account","N","31030000","Y"]
["31038BLK","EHS Marsha Black","N","31030000","Y"]
["31038EAS","EHS Charles Easley","N","31030000","Y"]
["31038LIP","EHS Erin Lipp","N","31030000","Y"]
["31038NAE","EHS Luke Naeher","N","31030000","Y"]
["31038TAN","EHS Lili Tang","N","31030000","Y"]
["31038XYU","EHS Xiaozhong Yu","N","31030000","Y"]
["31040000","Epidemiology & Biostatistics","N","31000000","N"]
["31040001","EPIBIO Rollup","N","31040000","Y"]
["31041MPH","EB Professional Differential T","N","31040000","Y"]
["31042TWS","EB Training Workshop","N","31040000","Y"]
["31043CON","EB Biostatistics Consulting","N","31040000","Y"]
["31048BEL","EB Steven Bellan","N","31040000","Y"]
["31048BUX","EB Carmen Buxo","N","31040000","Y"]
["31048EBE","EB Mark Ebell","N","31040000","Y"]
["31048HAN","EB Andreas Handel","N","31040000","Y"]
["31048RAT","EB Stephen Rathbun","N","31040000","Y"]
["31048SHE","EB Ye Shen","N","31040000","Y"]
["31048SON","EB Xiao Song","N","31040000","Y"]
["31048SWA","EB Andrea Swartzendruber","N","31040000","Y"]
["31048ZHA","EB Ming Zhang","N","31040000","Y"]
["31049COR","EB Jose Cordero Startup","N","31040000","Y"]
["31050000","Institute Of Gerontology ","N","31000000","N"]
["31050001","IOG Rollup","N","31050000","Y"]
["31050ADM","IOG Administration","N","31050000","Y"]
["31051MPH","IOG Professional Differential","N","31050000","Y"]
["31052001","IOG Student Workshop","N","31050000","Y"]
["31053DLP","IOG Dist Lrn Part","N","31050000","Y"]
["31060000","Health Policy And Management","N","31000000","N"]
["31060001","HPMRollup","N","31060000","Y"]
["31061DRP","HPM Professional Differential","N","31060000","Y"]
["31061MPH","HPM Professional Differential","N","31060000","Y"]
["31062CON","HPM Consulting","N","31060000","Y"]
["31067ADA","HPM Grace Bagwell Adams","N","31060000","Y"]
["31067CHE","HPM Zhuo Chen","N","31060000","Y"]
["31067CLA","HPM Lesley Clack","N","31060000","Y"]
["31067COR","HPM Phaedra Corso","N","31060000","Y"]
["31067GRE","HPM Dale Green","N","31060000","Y"]
["31067THA","HPM Rajbhandari Thapa","N","31060000","Y"]
["31067ZHA","HPM Donglan Zhang","N","31060000","Y"]
["31070000","Health Promotion And Behavior","N","31000000","N"]
["31070001","HPB Rollup","N","31070000","Y"]
["31071MPH","HPB Professional Differential","N","31070000","Y"]
["31072SAC","HPB Studies Abroad Croatia","N","31070000","Y"]
["31073SAJ","HPB Studies Abroad Japan","N","31070000","Y"]
["31074FRG","HPB Faculty Research Grants","N","31070000","Y"]
["31075GAY","UGARF FAC RSCH Gay","N","31070000","Y"]
["31075LAU","UGARF FAC RSCH Lauckner","N","31070000","Y"]
["31080000","Institute Disaster Management","N","31000000","N"]
["31080001","IDM Rollup","N","31080000","Y"]
["31081MPH","IDM Professional Differential","N","31080000","Y"]
["31082TWS","IDM Training Workshop","N","31080000","Y"]
["31090000","AU/UGA CPH Med Partnership","N","31000000","Y"]
["31100000","Health Informatics Institute","N","31100000","N"]
["31100001","HII Rollup","N","31100000","Y"]
["31101CON","HII Consulting","N","31100000","Y"]
["32000000","Sch of Public & Intl Affairs","N","14000000","N"]
["32001000","Office Of The Dean","Y","32000000","N"]
["32001001","SPIA Dean General","N","32001000","Y"]
["32001002","Dean Support","N","32001000","Y"]
["32001003","Associate Dean Support","N","32001000","Y"]
["32001004","SPIA Info Tech","N","32001000","Y"]
["32001005","SPIA Student Tech Fee","N","32001000","Y"]
["32001006","Departmental Support","N","32001000","Y"]
["32001100","Unallocated Funds (Budgetary O","Y","32001000","N"]
["32001200","SPIA Sales & Service","N","32001000","Y"]
["32001300","SPIA S&S Carryforward","N","32001000","Y"]
["32001400","SPIA Residual-UGARF","N","32001000","Y"]
["32001500","SPIA IDC Carry Forward","N","32001000","Y"]
["32001600","SPIA IDC Returns","N","32001000","Y"]
["32002000","Ctr For Intl Trade & Security","Y","32000000","N"]
["32002001","CITS General","N","32002000","Y"]
["32002002","CITS Events","N","32002000","Y"]
["32002003","CITS Info Tech","N","32002000","Y"]
["32002100","Norinco Executive Training","N","32002000","Y"]
["32002200","CITS Sales & Service","N","32002000","Y"]
["32002300","CITS Residual-UGARF","N","32002000","Y"]
["32002400","CITS IDC Returns","N","32002000","Y"]
["32003000","Political Science","Y","32000000","N"]
["32003001","Political Science General","N","32003000","Y"]
["32003002","Political Science Events","N","32003000","Y"]
["32003003","Political Science Infor Tech","N","32003000","Y"]
["32003100","Applied Politics Cert. Program","N","32003000","Y"]
["32003200","Survey Research Center","N","32003000","Y"]
["32003300","Political Science Faculty Supp","Y","32003000","N"]
["32003301","Politcal Science Dept Head","N","32003300","Y"]
["32003302","General Faculty Support","N","32003300","Y"]
["32003303","Charles Bullock","N","32003300","Y"]
["32003304","Audrey Haynes","N","32003300","Y"]
["32003400","Pol Sci Sales & Service","N","32003000","Y"]
["32003500","Survey Research Center S&S","N","32003000","Y"]
["32003600","P S Residual-UGARF","N","32003000","Y"]
["32003700","Pol Sci IDC","N","32003000","Y"]
["32004000","International Affairs","Y","32000000","N"]
["32004001","International Affairs General","N","32004000","Y"]
["32004002","International Affairs Events","N","32004000","Y"]
["32004003","International Affairs IT","N","32004000","Y"]
["32004100","International Affairs Fac Sup","Y","32004000","N"]
["32004101","International Department Head","N","32004100","Y"]
["32004102","IA General Faculty Support","N","32004100","Y"]
["32004200","IA Residual-UGARF","N","32004000","Y"]
["32004300","International Affairs IDC","N","32004000","Y"]
["32005000","Public Admin & Policy   ","Y","32000000","N"]
["32005001","PADP General","N","32005000","Y"]
["32005002","PADP Events","N","32005000","Y"]
["32005003","PADP Info Tec","N","32005000","Y"]
["32005100","PADP Faculty Support","Y","32005000","N"]
["32005101","Brad Wright Support","N","32005100","Y"]
["32005102","Andy Whitford Support","N","32005100","Y"]
["32005103","Brian Williams Support","N","32005100","Y"]
["32005104","Tima Moldogaziev Support","N","32005100","Y"]
["32005105","Amanda Abraham Support","N","32005100","Y"]
["32005106","Gene Brewer Support","N","32005100","Y"]
["32005107","Ed Kellough Support","N","32005100","Y"]
["32005108","Jason Anastasopoulos Support","N","32005100","Y"]
["32005109","Rebecca Nesbit Support","N","32005100","Y"]
["32005110","Alumni Prof Support","N","32005100","Y"]
["32005111","Sun Young Kim Support","N","32005100","Y"]
["32005200","Tuition Differential","N","32005000","Y"]
["32005300","PADP Residual-UGARF","N","32005000","Y"]
["32005400","PADP IDC Returns","N","32005000","Y"]
["32006000","GLOBIS Center","Y","32000000","N"]
["32006001","Globis General","N","32006000","Y"]
["32006002","Globis Events","N","32006000","Y"]
["32006003","Globis IT","N","32006000","Y"]
["32006004","Globis Director Support","N","32006000","Y"]
["32006100","Study Abroad Verona","N","32006000","Y"]
["32006200","Study Abroad Stellenbosch","N","32006000","Y"]
["32006300","Study Abroad Scotland","N","32006000","Y"]
["32006400","Study Abroad China","N","32006000","Y"]
["32006500","Study Abroad Liverpool","N","32006000","Y"]
["32006600","Study Abroad Korea","N","32006000","Y"]
["32007000","SPIA Development","Y","32000000","N"]
["32007001","SPIA Development General","N","32007000","Y"]
["32007002","SPIA Development Events","N","32007000","Y"]
["32007003","SPIA Development IT","N","32007000","Y"]
["32008000","SPIA Communications","Y","32000000","N"]
["32008001","SPIA Communications General","N","32008000","Y"]
["32008002","SPIA Communications Events","N","32008000","Y"]
["32008003","SPIA Communications IT","N","32008000","Y"]
["32009000","SPIA Student Affairs","Y","32000000","N"]
["32009001","SPIA Student Affairs General","N","32009000","Y"]
["32009002","SPIA Student Affairs Events","N","32009000","Y"]
["32009003","SPIA Student Affairs IT","N","32009000","Y"]
["32009004","Student Support","N","32009000","Y"]
["33000000","SSW School of Social Work","N","14000000","N"]
["33001000","SSW School Of Social Work","N","33000000","N"]
["33001001","SSW Main","N","33001000","Y"]
["33001002","SSW Sponsorship","N","33001000","Y"]
["33001003","SSW Faculty Search","N","33001000","Y"]
["33001004","SSW Banks","N","33001000","Y"]
["33001005","SSW Beer","N","33001000","Y"]
["33001006","SSW Briggs","N","33001000","Y"]
["33001007","SSW Campbell","N","33001000","Y"]
["33001008","SSW Caplan","N","33001000","Y"]
["33001009","SSW Choi","N","33001000","Y"]
["33001010","SSW Cornell","N","33001000","Y"]
["33001011","SSW Elkins","N","33001000","Y"]
["33001012","SSW Ellett","N","33001000","Y"]
["33001014","SSW Holsko","N","33001000","Y"]
["33001015","SSW Hopps","N","33001000","Y"]
["33001016","SSW Jasktye","N","33001000","Y"]
["33001017","SSW Lockhart","N","33001000","Y"]
["33001018","SSW Lowe","N","33001000","Y"]
["33001019","SSW Mallon","N","33001000","Y"]
["33001020","SSW Matthew","N","33001000","Y"]
["33001021","SSW McPherson","N","33001000","Y"]
["33001022","SSW Mowbray","N","33001000","Y"]
["33001023","SSW Nackerud","N","33001000","Y"]
["33001024","SSW Okech","N","33001000","Y"]
["33001025","SSW Reeves","N","33001000","Y"]
["33001026","SSW Robinson","N","33001000","Y"]
["33001027","SSW Scheyett","N","33001000","Y"]
["33001028","SSW Miller","N","33001000","Y"]
["33001029","SSW Stahl","N","33001000","Y"]
["33001030","SSW Vonk","N","33001000","Y"]
["33001031","SSW Washington","N","33001000","Y"]
["33001032","SSW Johnson","N","33001000","Y"]
["33001033","SSW Harvey","N","33001000","Y"]
["33001034","SSW Sanger","N","33001000","Y"]
["33001035","SSW Burrell","N","33001000","Y"]
["33001036","SSW Artelt","N","33001000","Y"]
["33001037","SSW Wooden","N","33001000","Y"]
["33001100","SSW Dean's Office","N","33000000","Y"]
["33001111","SSW Carry Forwawrd","N","33000000","Y"]
["33002000","SSW Guc","N","33000000","Y"]
["33003000","SSW Technology","N","33000000","Y"]
["33004000","SSW Cont Edu","N","33000000","Y"]
["33005000","SSW Rias","N","33000000","Y"]
["33006000","SSW Global","N","33000000","Y"]
["33007000","SSW Ghana","N","33000000","Y"]
["33008000","SSW Northern Ireland","N","33000000","Y"]
["33009000","SSW Student Support","N","33000000","N"]
["33009001","SSW Grad MSW","N","33009000","Y"]
["33009002","SSW Grad PHD","N","33009000","Y"]
["33009003","SSW Grad Teach","N","33009000","Y"]
["33009004","SSW Sup BSW","N","33009000","Y"]
["33009005","SSW Hourly","N","33009000","Y"]
["34000000","College of Veterinary Medicine","N","14000000","N"]
["34001000","Vet Med Dean's Office","N","34000000","N"]
["3400100C","Vet Med Dean's Office - Conv.","N","34001000","Y"]
["34001100","CVM - Dean's Office","N","34001000","Y"]
["34001200","CVM - Rsch And Grad Affairs","N","34001000","Y"]
["34001210","CVM - H. Dickerson","N","34001000","Y"]
["34001300","CVM - Academic Affairs","N","34001000","Y"]
["34001310","CVM - Admissions","N","34001000","Y"]
["34001320","Pre-Clinical Academic Affairs","N","34001000","Y"]
["34001330","Clinical Academic Affairs","N","34001000","Y"]
["34001340","Educ Resources Center","N","34001000","Y"]
["34001400","CVM - Financ and Admin","N","34001000","Y"]
["34001410","CVM - Business Office","N","34001000","Y"]
["34001420","CVM - Facilities","N","34001000","Y"]
["34001430","CVM - Information Technology","N","34001000","Y"]
["34001431","Vet View","N","34001000","Y"]
["34001440","CVM - Human Resources","N","34001000","Y"]
["34001500","CVM - External Affairs","N","34001000","Y"]
["34001510","CVM - Development","N","34001000","Y"]
["34001520","CVM - Alumni Affairs","N","34001000","Y"]
["34001530","CVM - Public Relations","N","34001000","Y"]
["34001600","CVM - Continuing Education","N","34001000","Y"]
["34001700","Animal Health Research Center","N","34001000","Y"]
["34001800","Budget Only - Holding","Y","34001000","N"]
["34002000","Veterinary Teaching Hospital","N","34000000","N"]
["3400200C","VTH Conversion","N","34002000","Y"]
["34002100","VTH Small Animal Ecc","N","34002000","Y"]
["34002200","VTH Sa Specialty Services","N","34002000","Y"]
["34002201","VTH Sa Cardiology","N","34002000","Y"]
["34002202","VTH Sa Dermatology","N","34002000","Y"]
["34002203","VTH Sa Exotics","N","34002000","Y"]
["34002204","VTH Sa Internal Medicine","N","34002000","Y"]
["34002205","VTH Sa Neurology","N","34002000","Y"]
["34002206","VTH Sa Oncology","N","34002000","Y"]
["34002207","VTH Sa Opthalmology","N","34002000","Y"]
["34002208","VTH Sa Orthopedics","N","34002000","Y"]
["34002209","VTH Sa Rehab","N","34002000","Y"]
["34002210","VTH Soft Tissue Surgery","N","34002000","Y"]
["34002300","VTH Intermediate Care","N","34002000","Y"]
["34002400","VTH Anesthesia","N","34002000","Y"]
["34002401","VTH Sa Anesthesia","N","34002000","Y"]
["34002402","VTH La Anesthesia","N","34002000","Y"]
["34002500","VTH Large Animal","N","34002000","Y"]
["34002501","VTH La Internal Medicine","N","34002000","Y"]
["34002502","VTH La Surgery","N","34002000","Y"]
["34002503","VTH La Emergency","N","34002000","Y"]
["34002600","VTH Radiology","N","34002000","Y"]
["34002700","VTH Field Services","N","34002000","Y"]
["34002800","VTH Pharmacy","N","34002000","Y"]
["34002900","VTH Comm. Practice Clinic","N","34002000","Y"]
["34002ADM","VTH Administration","N","34002000","Y"]
["34002FAC","VTH Facilities","N","34002000","Y"]
["34002ORS","VTH Operating Room/Surgery","N","34002000","Y"]
["34002VCS","VTH Central Sterile","N","34002000","Y"]
["34002VHR","VTH Human Resources","N","34002000","Y"]
["34002VMR","VTH Medical Records","N","34002000","Y"]
["34002WAR","VTH Warehouse","N","34002000","Y"]
["34003000","Population Health","N","34000000","N"]
["3400300C","Population Health Conversion","N","34003000","Y"]
["34003F00","Pop Health - Food Animal","N","34003000","Y"]
["34003FBB","Food Animal - Bergess","N","34003000","Y"]
["34003FBC","Food Animal - Credille","N","34003000","Y"]
["34003FDH","Food Animal - Hurley","N","34003000","Y"]
["34003FER","Food Animal - Rollin","N","34003000","Y"]
["34003FLJ","Food Animal - Jones","N","34003000","Y"]
["34003FRB","Food Animal - Berghaus","N","34003000","Y"]
["34003FRC","Food Animal - Rose Creek Farm","N","34003000","Y"]
["34003FRF","Food Animal - Riverbend Farm","N","34003000","Y"]
["34003FRP","Food Animal - Palomares","N","34003000","Y"]
["34003P00","Pop Health - PDRC","N","34003000","Y"]
["34003PBJ","PDRC - Brian Jordan","N","34003000","Y"]
["34003PCL","PDRC - Catherine Logue","N","34003000","Y"]
["34003PDP","PDRC - Daniel Perez","N","34003000","Y"]
["34003PDR","PDRC - Daniella Rajao","N","34003000","Y"]
["34003PDX","PDRC Diagnostic Lab","N","34003000","Y"]
["34003PHS","PDRC - Holly Sellers","N","34003000","Y"]
["34003PJM","PDRC - John Maurer","N","34003000","Y"]
["34003PKG","PDRC - Karen Grogan","N","34003000","Y"]
["34003PMB","PDRC - Melinda Brindley","N","34003000","Y"]
["34003PMF","PDRC - Monique Franca","N","34003000","Y"]
["34003PMG","Prdc - Mariacarmen Garcia","N","34003000","Y"]
["34003PMJ","PDRC - Mark Jackwood","N","34003000","Y"]
["34003PML","PDRC - Margie Lee","N","34003000","Y"]
["34003PNF","PDRC - Naola Ferguson-Noel","N","34003000","Y"]
["34003PSR","PDRC - Steven Roney","N","34003000","Y"]
["34003PSW","PDRC - Susan Williams","N","34003000","Y"]
["34003S00","Pop Health SCWDS","N","34003000","N"]
["34003S0C","SCWDS - Conversion","N","34003S00","Y"]
["34003S10","SCWDS - Department Control","N","34003S00","Y"]
["34003SDM","SCWDS - Mead","N","34003S00","Y"]
["34003SDS","SCWDS - Stallknecht","N","34003S00","Y"]
["34003SJF","SCWDS - Fischer","N","34003S00","Y"]
["34003SMR","SCWDS - Ruder","N","34003S00","Y"]
["34003SMY","SCWDS - Yabsley","N","34003S00","Y"]
["34003SSH","SCWDS - Hernandez","N","34003S00","Y"]
["34004000","Vet Biosciences & Diag. Imagin","N","34000000","N"]
["3400400C","VBDI - Conversion","N","34004000","Y"]
["34004A00","VBDI - Administration","N","34004000","Y"]
["34004AAD","VBDI - Office Administration","N","34004000","Y"]
["34004ACP","VBDI - CURO Program","N","34004000","Y"]
["34004C00","VBDI - Classes","N","34004000","Y"]
["34004CAD","VBDI - Cadavers","N","34004000","Y"]
["34004CAL","VBDI - Anatomy Lab","N","34004000","Y"]
["34004F00","VBDI - Faculty","N","34004000","Y"]
["34004FAS","VBDI - A. Sharma","N","34004000","Y"]
["34004FCJ","VBDI - C. Jarrett","N","34004000","Y"]
["34004FHD","VBDI - H. Dookwah","N","34004000","Y"]
["34004FJH","VBDI - J. Hogan","N","34004000","Y"]
["34004FKC","VBDI - K. Czaja","N","34004000","Y"]
["34004FKG","VBDI - K. Gendron","N","34004000","Y"]
["34004FKN","VBDI - K. Nagata","N","34004000","Y"]
["34004FLT","VBDI - Faculty Locums","N","34004000","Y"]
["34004FPM","VBDI - P. Mohankumar","N","34004000","Y"]
["34004FRG","VBDI - R. Gogal","N","34004000","Y"]
["34004FSC","VBDI - S. Crowell-Davis","N","34004000","Y"]
["34004FSH","VBDI - S. Holladay","N","34004000","Y"]
["34004FSM","VBDI - S. Mohankumar","N","34004000","Y"]
["34004FSS","VBDI - S. Secrest","N","34004000","Y"]
["34004FTB","VBDI - T. Burg","N","34004000","Y"]
["34004FTG","VBDI - T. Guo","N","34004000","Y"]
["34004FTK","VBDI - T. Krunkosky","N","34004000","Y"]
["34004RDI","VBDI - Residents","N","34004000","Y"]
["34005000","Small Animal Medicine","N","34000000","N"]
["3400500C","SAMS - Conversion","N","34005000","Y"]
["34005ASH","SAMS - A. Franklin","N","34005000","Y"]
["34005BAN","SAMS - Banovic","N","34005000","Y"]
["34005BAR","SAMS - Barber","N","34005000","Y"]
["34005BAT","SAMS - Bateman","N","34005000","Y"]
["34005BRA","SAMS - Brainard","N","34005000","Y"]
["34005BUD","SAMS - Budsberg","N","34005000","Y"]
["34005BUG","SAMS - Bugbee","N","34005000","Y"]
["34005BUR","SAMS - Burg","N","34005000","Y"]
["34005COL","SAMS - Coleman","N","34005000","Y"]
["34005CZE","SAMS - Czerwinksi","N","34005000","Y"]
["34005DCL","SAMS - D. Clarke","N","34005000","Y"]
["34005DIE","SAMS - Diehl","N","34005000","Y"]
["34005DIV","SAMS - Divers","N","34005000","Y"]
["34005DIX","SAMS - Dixon-Jimenez","N","34005000","Y"]
["34005FRA","SAMS - S. Franklin","N","34005000","Y"]
["34005GOO","SAMS - Good","N","34005000","Y"]
["34005GRE","SAMS - Gregory","N","34005000","Y"]
["34005GRI","SAMS - Grimes","N","34005000","Y"]
["34005HIL","SAMS - Hill","N","34005000","Y"]
["34005JOE","SAMS - Bartges","N","34005000","Y"]
["34005JOH","SAMS - Johnston","N","34005000","Y"]
["34005JRS","SAMS - Junior Surgery","N","34005000","Y"]
["34005KCL","SAMS - K. Clarke","N","34005000","Y"]
["34005KEN","SAMS - Kent","N","34005000","Y"]
["34005KOE","SAMS - Koenig","N","34005000","Y"]
["34005LAN","SAMS - Lane","N","34005000","Y"]
["34005LAV","SAMS - Laver","N","34005000","Y"]
["34005MAY","SAMS - Mayer","N","34005000","Y"]
["34005MEI","SAMS - Meindl","N","34005000","Y"]
["34005MYR","SAMS - Myrna","N","34005000","Y"]
["34005NOR","SAMS - Northrup","N","34005000","Y"]
["34005ODY","SAMS - Odyssey","N","34005000","Y"]
["34005PES","SAMS - Pesti","N","34005000","Y"]
["34005PLA","SAMS - Platt","N","34005000","Y"]
["34005PUG","SAMS - Puglisi","N","34005000","Y"]
["34005QUA","SAMS - Quandt","N","34005000","Y"]
["34005RAP","SAMS - Rapoport","N","34005000","Y"]
["34005RES","SAMS - Residents","N","34005000","Y"]
["34005RIT","SAMS - Ritchie","N","34005000","Y"]
["34005ROT","SAMS - Roth","N","34005000","Y"]
["34005RSX","SAMS - Research Surgery","N","34005000","Y"]
["34005SAB","SAMS - Saba","N","34005000","Y"]
["34005SAM","SAMS - Department","N","34005000","Y"]
["34005SCH","SAMS - Schmiedt","N","34005000","Y"]
["34005SMI","SAMS - J. Smith","N","34005000","Y"]
["34005WAL","SAMS - Wallace","N","34005000","Y"]
["34005WAR","SAMS - Ward","N","34005000","Y"]
["34006000","Infectious Diseases","N","34000000","N"]
["3400600C","IDIS - Conversion","N","34006000","Y"]
["34006100","Center For Vaccines/Imm.","N","34006000","N"]
["3400610C","CVI - Conversion","N","34006100","Y"]
["340061CR","CVI - Core Services","N","34006100","Y"]
["340061EH","CVI - Eric Harvill","N","34006100","Y"]
["340061JM","CVI - Jarrod Moussa","N","34006100","Y"]
["340061KN","CVI - Karen Norris","N","34006100","Y"]
["340061MT","CVI - Mark Tompkins","N","34006100","Y"]
["340061OP","CVI - Operating","N","34006100","Y"]
["340061SY","CVI - Influenza Antig Disc.","N","34006100","Y"]
["340061TA","CVI - Contract Titer Assay","N","34006100","Y"]
["340061TR","CVI - Ted Ross","N","34006100","Y"]
["34006200","IDIS - Quinn","N","34006000","Y"]
["34006201","IDIS - Quinn Drug Testing","N","34006000","Y"]
["34006210","IDIS - He","N","34006000","Y"]
["34006220","IDIS - Rada","N","34006000","Y"]
["34006230","IDIS - Watford","N","34006000","Y"]
["34006240","IDIS - Harn","N","34006000","Y"]
["34006241","IDS - Flow Cytometry","N","34006000","Y"]
["34006242","IDIS - Vaccines","N","34006000","Y"]
["34006250","IDIS - Moorhead","N","34006000","Y"]
["34006251","IDIS - Filaria","N","34006000","Y"]
["34006252","IDIS - Scynexis","N","34006000","Y"]
["34006260","IDIS - Trent","N","34006000","Y"]
["34006270","IDIS - Moore","N","34006000","Y"]
["34006280","IDIS - Peterson","N","34006000","Y"]
["34006290","IDIS - Brindley","N","34006000","Y"]
["34006310","IDIS - Murdock","N","34006000","Y"]
["34006320","IDIS - Hondalus","N","34006000","Y"]
["34006330","IDIS - Tripp","N","34006000","Y"]
["34006340","IDIS - Lafontaine","N","34006000","Y"]
["34006350","IDIS - Wolstenhome","N","34006000","Y"]
["34006351","IDIS - Parasitology Svcs (W)","N","34006000","Y"]
["34006360","IDIS - Kaplan","N","34006000","Y"]
["34006361","IDIS - Parasitology (K)","N","34006000","Y"]
["34006370","IDIS - McEwen","N","34006000","Y"]
["34006380","IDIS - Verocai","N","34006000","Y"]
["34007000","Pathology","N","34000000","N"]
["3400700C","Pathology - Conversion","N","34007000","Y"]
["34007100","Athens Diagnostic Lab","N","34007000","N"]
["34007101","Athens D-Lab - Fee Income","N","34007100","Y"]
["34007102","Athens D-Lab - Lab Anim Rev.","N","34007100","Y"]
["34007103","Athens D-Lab - Aquatic Animal","N","34007100","Y"]
["3400710C","Athens D-Lab - Conversion","N","34007100","Y"]
["34007110","Athens D-Lab - Gen. Lab Exp.","N","34007100","Y"]
["34007120","Athens D-Lab - Accessions","N","34007100","Y"]
["34007121","Athens D-Lab - Administration","N","34007100","Y"]
["34007122","Athens D-Lab - Outreach","N","34007100","Y"]
["34007123","Athens D-Lab - Quality","N","34007100","Y"]
["34007124","Athens D-Lab - BSE","N","34007100","Y"]
["34007125","Athens D-Lab - Serology/Virol","N","34007100","Y"]
["34007130","Athens D-Lab - Bacteriology","N","34007100","Y"]
["34007131","Athens D-Lab - Molecular Diag","N","34007100","Y"]
["34007132","Athens D-Lab - Lab Anim/C Riv","N","34007100","Y"]
["34007140","Athens D-Lab - Pathology","N","34007100","Y"]
["34007141","Athens D-Lab - Histopathology","N","34007100","Y"]
["34007142","Athens D-Lab - Necropsy","N","34007100","Y"]
["34007150","Athens D-Lab - Clin. Path Lab","N","34007100","Y"]
["34007151","Athens D-Lab - EM Payments","N","34007100","Y"]
["34007152","Athens D-Lab - Histo Lab Pmts","N","34007100","Y"]
["34007153","Athens D-Lab - IDL Pmts","N","34007100","Y"]
["34007154","Athens D-Lab - Parasitology","N","34007100","Y"]
["34007155","Athens D-Lab - Flow Cytometry","N","34007100","Y"]
["34007156","Athens D-Lab - Tifton","N","34007100","Y"]
["34007160","Athens D-Lab - Blas-Machado","N","34007100","Y"]
["34007161","Athens D-Lab - C. Brown","N","34007100","Y"]
["34007162","Athens D-Lab - Krimer","N","34007100","Y"]
["34007163","Athens D-Lab - Miller","N","34007100","Y"]
["34007164","Athens D-Lab - Rakich","N","34007100","Y"]
["34007165","Athens D-Lab - Rissi","N","34007100","Y"]
["34007166","Athens D-Lab - Saliki","N","34007100","Y"]
["34007167","Athens D-Lab - Sanchez","N","34007100","Y"]
["34007200","Tifton Diagnostic Lab","N","34007000","N"]
["34007201","Tifton D-Lab - Admin/Clerical","N","34007200","Y"]
["34007202","Tifton D-Lab - Bact./Glass","N","34007200","Y"]
["34007203","Tifton D-Lab - Serology/Vir.","N","34007200","Y"]
["34007204","Tifton D-Lab - Clinical Path.","N","34007200","Y"]
["34007205","Tifton D-Lab - Toxicology","N","34007200","Y"]
["34007206","Tifton D-Lab - Histology","N","34007200","Y"]
["34007207","Tifton D-Lab - Necr./Receiv.","N","34007200","Y"]
["34007208","Tifton D-Lab - Electr. Micro.","N","34007200","Y"]
["34007209","Tifton D-Lab - Maint./ Custod","N","34007200","Y"]
["3400720C","Tifton D-Lab - Conversion","N","34007200","Y"]
["34007210","Tifton D-Lab Res./ An. Care","N","34007200","Y"]
["34007211","Tifton D-Lab - Quality Contr.","N","34007200","Y"]
["34007212","Tifton D-Lab - Immunology","N","34007200","Y"]
["34007213","Tifton D-Lab - Info. Tech.","N","34007200","Y"]
["34007214","Tifton D-Lab - Mol. B - NAHLN","N","34007200","Y"]
["34007215","Tifton D-Lab - Misc./Path.","N","34007200","Y"]
["34007216","Tifton D-Lab - M Bio - Diagn.","N","34007200","Y"]
["340072FI","Tifton D-Lab - Fee Income","N","34007200","Y"]
["340072HN","Tifton D-Lab - H. Naikare","N","34007200","Y"]
["340072IH","Tifton D-Lab - I. Hawkins","N","34007200","Y"]
["340072MI","Tifton D-Lab - M. Ilha","N","34007200","Y"]
["340072MW","Tifton D-Lab - M. Woldemeskel","N","34007200","Y"]
["340072RW","Tifton D-Lab - R. Wilkes","N","34007200","Y"]
["34007ACC","Pathology - A. Camus","N","34007000","Y"]
["34007BCG","Pathology - B. Garner","N","34007000","Y"]
["34007BXH","Pathology - B. Harmon","N","34007000","Y"]
["34007CCB","Pathology - C. Brown","N","34007000","Y"]
["34007CPL","Pathology - Clin Path Lab","N","34007000","Y"]
["34007EML","Pathology - EM Lab","N","34007000","Y"]
["34007EWH","Pathology - E. Howerth","N","34007000","Y"]
["34007EWU","Pathology - B. Uhl","N","34007000","Y"]
["34007FCD","Pathology - FCD","N","34007000","Y"]
["34007FLW","Pathology - Flow Cytometry","N","34007000","Y"]
["34007GAI","Pathology - Ga. Aquarium","N","34007000","Y"]
["34007GRD","Pathology - Grad Students","N","34007000","Y"]
["34007HIS","Pathology - Histology Lab","N","34007000","Y"]
["34007JBS","Pathology - J. Stanton","N","34007000","Y"]
["34007JLT","Pathology - J. Tarigo","N","34007000","Y"]
["34007JTH","Pathology - J. Halper","N","34007000","Y"]
["34007KPC","Pathology - P. Carmichael","N","34007000","Y"]
["34007KXM","Pathology - K. Meichner","N","34007000","Y"]
["34007KXS","Pathology - K. Sakamoto","N","34007000","Y"]
["34007LAT","Pathology - Latimer","N","34007000","Y"]
["34007MIB","Pathology - Mail in Biopsies","N","34007000","Y"]
["34007MSC","Pathology - M. Camus","N","34007000","Y"]
["34007NEC","Pathology - Necropsy","N","34007000","Y"]
["34007NLG","Pathology - N. Gottdenker","N","34007000","Y"]
["34007OHP","Path - Occ. Health Program","N","34007000","Y"]
["34007RKH","Pathology - K. Harris","N","34007000","Y"]
["34007RXM","Pathology - R. McManamon","N","34007000","Y"]
["34007TXN","Pathology - T. Nagy","N","34007000","Y"]
["34007ZFF","Pathology - Z. Fu","N","34007000","Y"]
["34008000","Physiology/Pharmacol.","N","34000000","N"]
["3400800C","Phys-Pharm - Conversion","N","34008000","Y"]
["34008DPT","Phys-Pharm - General","N","34008000","Y"]
["34008GED","Phys-Pharm - G. Edwards","N","34008000","Y"]
["34008JCO","Phys-Pharm - J. Coffield","N","34008000","Y"]
["34008JLE","Phys-Pharm - J. Lee","N","34008000","Y"]
["34008JSC","Phys-Pharm - J. Schank","N","34008000","Y"]
["34008JWA","Phys-Pharm - J. Wagner","N","34008000","Y"]
["34008MVI","Phys-Pharm - M. Vivieros","N","34008000","Y"]
["34008NFI","Phys-Pharm - N. Flilpov","N","34008000","Y"]
["34008RDE","Phys-Pharm - R. DeLaFuente","N","34008000","Y"]
["34008RMG","Phys-Pharm - R. McGraw","N","34008000","Y"]
["34008SBO","Phys-Pharm - S. Brown","N","34008000","Y"]
["34008SCH","Phys-Pharm - S. Chen","N","34008000","Y"]
["34008SSA","Phys-Pharm - S. Sanderson","N","34008000","Y"]
["34008WLI","Phys-Pharm - W.O. Li","N","34008000","Y"]
["34008XYE","Phys-Pharm - X. Ye","N","34008000","Y"]
["34009000","Large Animal Medicine","N","34000000","N"]
["34009001","LAM - Barletta","N","34009000","Y"]
["34009002","LAM - Barton","N","34009000","Y"]
["34009003","LAM - E. Beasley","N","34009000","Y"]
["34009004","LAM - Eggleston","N","34009000","Y"]
["34009005","LAM - Epstein","N","34009000","Y"]
["34009006","LAM - Ferrer","N","34009000","Y"]
["34009007","LAM - Giguere","N","34009000","Y"]
["34009008","LAM - Hart","N","34009000","Y"]
["34009009","LAM - Lowder","N","34009000","Y"]
["3400900C","LAM - Conversion","N","34009000","Y"]
["34009010","LAM - J. Moore","N","34009000","Y"]
["34009011","LAM - Mueller","N","34009000","Y"]
["34009012","LAM - Peroni","N","34009000","Y"]
["34009013","LAM - Reed","N","34009000","Y"]
["34009014","LAM - Ryan","N","34009000","Y"]
["34009015","LAM - J. Williams","N","34009000","Y"]
["34009016","LAM - Williamson","N","34009000","Y"]
["34009017","LAM - Parks","N","34009000","Y"]
["34009018","LAM - Buchanan","N","34009000","Y"]
["34009019","LAM - Ellerbrock","N","34009000","Y"]
["34009020","LAM - B. Beasley","N","34009000","Y"]
["34009CAR","LAM - Adv. Repro. Tech","N","34009000","Y"]
["34009CJS","LAM - Junior Surgery","N","34009000","Y"]
["34009CLA","LAM - Lameness Course","N","34009000","Y"]
["34009INT","LAM - Interns","N","34009000","Y"]
["34009RES","LAM - Residents","N","34009000","Y"]
["41000000","AU/UGA Medical Partnership","Y","14000000","N"]
["41010000","MP Dean's Office","N","41000000","Y"]
["41010001","MP Dean's Office - DS&S","N","41000000","Y"]
["41010002","MP UGAF","N","41000000","Y"]
["41010100","MP Communications","N","41000000","Y"]
["41010200","MP IT","N","41000000","Y"]
["41020000","MP Student Affairs","N","41000000","Y"]
["41020100","MP Student Orgs","N","41000000","Y"]
["41020200","MP Student Activity Fees","N","41000000","Y"]
["41030000","MP UME","N","41000000","Y"]
["41030100","MP Basic Sciences","N","41000000","Y"]
["41030200","MP Clerkship Office","N","41000000","Y"]
["41030300","MP Medical Education","N","41000000","Y"]
["41040000","MP GME","N","41000000","Y"]
["41040001","MP GME Reimb StMary - DS&S","N","41000000","Y"]
["41050000","MP Research","N","41000000","Y"]
["41060000","MP Faculty Affairs-Development","N","41000000","Y"]
["42000000","VP for Instruction","N","00000000","N"]
["42001000","VP For Instruction","N","42000000","N"]
["42001001","Curriculum Systems","N","42001000","Y"]
["42001002","Academic Honesty","N","42001000","Y"]
["42001003","Learning Communities","N","42001000","Y"]
["42001004","VPI Departmental Admin","N","42001000","Y"]
["42001005","VPI Academic Allocations","N","42001000","Y"]
["42001006","First Year Odyssey","N","42001000","Y"]
["42001100","Advising Services","N","42000000","Y"]
["42001200","Experiential Learning","N","42000000","Y"]
["42001300","Washington Semester Program","N","42000000","N"]
["42001301","Tuition","N","42001300","Y"]
["42001302","Program Fees","N","42001300","Y"]
["42001303","DC Rental Facility","N","42001300","Y"]
["42001400","Stem Education","N","42000000","Y"]
["42001500","Science Learning Center","N","42000000","N"]
["42001501","Departmental Administration","N","42001500","Y"]
["42001502","SLC Rental Income","N","42001500","Y"]
["42002000","Admissions","N","42000000","N"]
["42002001","Admissions Admin","N","42002000","Y"]
["42002002","In-State Recruitment","N","42002000","Y"]
["42002003","Out-Of-State Recruitment","N","42002000","Y"]
["42002004","On-Campus Recruitment","N","42002000","Y"]
["42002005","Diversity Recruitment","N","42002000","Y"]
["42002100","Admissions Orientation","N","42000000","Y"]
["42003000","Air Force ROTC","N","42000000","Y"]
["42004000","Army ROTC","N","42000000","Y"]
["42005000","Center For Teaching & Learning","N","42000000","N"]
["42005001","CTL Media & Production","N","42000000","N"]
["42005002","CTL Program Accounts","N","42000000","N"]
["42005003","CTL Income","N","42000000","N"]
["42005004","CTL Technology Fee","N","42000000","Y"]
["42005005","Support & Services","N","42005003","Y"]
["42005006","Cable Channel Support","N","42005003","Y"]
["42005007","Lilly Fellows","N","42005000","Y"]
["42005008","Reacting Income","N","42005003","Y"]
["42005009","STF Base","N","42005000","Y"]
["42005011","Learn Tech Consortium","N","42005000","Y"]
["42005012","Future Faculty Program Fellows","N","42005000","Y"]
["42005015","Instruction Support","N","42005001","Y"]
["42005017","Classroom Maintenance","N","42005001","Y"]
["42005022","MLC Support","N","42005001","Y"]
["42005024","Reacting To The Past","N","42005002","Y"]
["42005026","Writing Fellows","N","42005002","Y"]
["42005027","HSC Account","N","42005002","Y"]
["42005028","Teaching Account","N","42005002","Y"]
["42005100","CTL Admin","N","42005000","Y"]
["42005103","Speaker Series","N","42005000","Y"]
["42005110","Sr. Teaching Fellows","N","42005000","Y"]
["42006000","Division Of Academic Enhanceme","N","42000000","N"]
["42006001","Instruction","N","42006000","Y"]
["42006002","Intensive English Program","N","42006000","Y"]
["42006003","DAE Departmental Admin","N","42006000","Y"]
["42006004","DAE Tech Fee","N","42006000","Y"]
["42006100","Trio Program","N","42000000","N"]
["42006101","Upward Bound","N","42006100","Y"]
["42006102","Talent Search","N","42006100","Y"]
["42006103","Student Support Services","N","42006100","Y"]
["42006200","Freshman College","N","42000000","Y"]
["42007000","Griffin Academic Programs","N","42000000","N"]
["42007001","Griffin Operations","N","42007000","Y"]
["42007002","Support For Academic Programs","N","42007000","Y"]
["42007003","Academic Program Sales","N","42007000","Y"]
["42007004","Academic Workshops- Griffin","N","42007000","Y"]
["42007005","IT Griffin Sales","N","42007000","Y"]
["42008000","Gwinnett Graduate Programs","N","42000000","N"]
["42008001","Gwinnett Grad Admin","N","42008000","Y"]
["42008002","Gwinnett Programs Income","N","42008000","Y"]
["42009000","Office Of Online Learning","N","42000000","N"]
["42009001","Online Learning Admin","N","42009000","Y"]
["42009002","Media","N","42009000","Y"]
["42009003","Instructional Design","N","42009000","Y"]
["42009004","Student Support Services","N","42009000","Y"]
["42009005","State Authorization","N","42009000","Y"]
["42009100","OOL Marketing","N","42000000","N"]
["42009101","Marketing Dept Admin","N","42009100","Y"]
["42009102","College Support","N","42009100","Y"]
["42009200","OOL Income","N","42000000","N"]
["42009201","Support And Services","N","42009200","Y"]
["42010000","Registrars Office","N","42000000","N"]
["42010001","Departmental Administration","N","42010000","Y"]
["42010002","Registrar Revenue","N","42010000","Y"]
["42010003","Veteran Affairs","N","42010000","Y"]
["42011000","Service Learning","N","42000000","N"]
["42011001","Service Learning Admin","N","42011000","Y"]
["42011002","Service Learning Income","N","42011000","Y"]
["42012000","Student Financial Aid","N","42000000","N"]
["42012001","SFA Dept Admin","N","42012000","Y"]
["42012002","Administrative Cost Allowance","N","42012000","Y"]
["42013000","Work Study","N","42000000","Y"]
["43000000","VP for Research","Y","00000000","N"]
["43001000","VP Office For Research","N","43000000","N"]
["43001001","VP Office Research Admin","N","43001000","Y"]
["43001002","Research Vacant Positions","Y","43001000","N"]
["43001003","Research Holding Account","Y","43001000","N"]
["43001004","Research IDC Return","N","43001000","Y"]
["43001005","Research Carryforward","N","43001000","Y"]
["43001010","Research Business And HR","N","43001000","Y"]
["43001015","Core Facility Business Srvcs","N","43001000","Y"]
["43001020","Research IT Operations","N","43001000","Y"]
["43001025","Innov Gateway - Tech Transfer","N","43001000","Y"]
["43001030","Innov Gateway - Startup Incub","N","43001000","Y"]
["43001035","Research Legal","N","43001000","Y"]
["43001040","Research Communications","N","43001000","Y"]
["43001045","Proposal Enhancement","N","43001000","Y"]
["43001050","Industry Collaborations","N","43001000","Y"]
["43001055","SPA Pre-Award","N","43001000","Y"]
["43001060","Research Facilities","N","43001000","Y"]
["43001065","GA Genomics Bioinformatics Ctr","N","43001000","Y"]
["43001066","Bioinformatics","N","43001000","Y"]
["43001100","Research Compliance Admin","N","43001000","Y"]
["43001105","Animal Care And Use","N","43001000","Y"]
["43001110","Biosafety","N","43001000","Y"]
["43001115","Export Control","N","43001000","Y"]
["43001120","Human Subjects","N","43001000","Y"]
["43001125","Research Safety","N","43001000","Y"]
["43001130","Occupational Health","N","43001000","Y"]
["43001140","Univ Rsch Animal Resources","N","43001000","Y"]
["43001142","Animal Resources NHP","N","43001000","Y"]
["43001200","Obesity Initiative","N","43001000","Y"]
["43001205","SEC Visiting Fac Travel Grant","N","43001000","Y"]
["43001210","Marine Institute","N","43001000","Y"]
["43001250","Research UGAF Companion","N","43001000","Y"]
["43001300","Research Support Fund","N","43001000","Y"]
["43001305","Research Startup Fund","N","43001000","Y"]
["43001310","Research Support Undesignated","N","43001000","Y"]
["43001315","UGA Assumption of UGARF Exp","N","43001000","Y"]
["43001320","UGA Contingency Support","N","43001000","Y"]
["43001400","UGA Research Foundation","N","43000000","N"]
["43001405","UGARF Research Support Fund","N","43001400","Y"]
["43001410","UGARF Startup Fund","N","43001400","Y"]
["43001420","UGARF Faculty Rsch Grant Fund","N","43001400","Y"]
["43001421","UGARF Specified Support","N","43001400","Y"]
["43001422","UGARF Pres Fellows","N","43001400","Y"]
["43001423","UGARF Int Life Sci Prog","N","43001400","Y"]
["43001424","UGARF GA Computing Center","N","43001400","Y"]
["43001425","UGARF Foreign Travel","N","43001400","Y"]
["43001426","UGARF Rsch Admn Tech","N","43001400","Y"]
["43001427","UGARF Spec Rsch Awd","N","43001400","Y"]
["43001428","UGARF Dist Rsch Prof Support","N","43001400","Y"]
["43001429","UGARF UGA-CDC Seed","N","43001400","Y"]
["43001430","UGARF Sercat Dues","N","43001400","Y"]
["43001431","UGARF Coverdell Ops","N","43001400","Y"]
["43001432","UGARF Riverbend Ops","N","43001400","Y"]
["43001433","UGARF Innov Gate Tech Transfer","N","43001400","Y"]
["43001434","UGARF Innov Gate Seed Grants","N","43001400","Y"]
["43001435","UGARF Operating","N","43001400","Y"]
["43001436","UGARF Thinc","N","43001400","Y"]
["43001437","UGARF Post Doc Association","N","43001400","Y"]
["43001438","UGARF IRB support","N","43001400","Y"]
["43001440","UGARF NHP Support","N","43001400","Y"]
["43001450","UGARF CVI II","N","43001400","Y"]
["43001451","UGARF Kyle Contingency","N","43001400","Y"]
["43001452","UGARF-Norris Contingency","N","43001400","Y"]
["43001453","UGARF Insectary","N","43001400","Y"]
["43001454","UGARF Pres Hiring Init","N","43001400","Y"]
["43001455","UGARF CMM Hires","N","43001400","Y"]
["43001456","UGARF Ross STARTUP CVI Reno","N","43001400","Y"]
["43001457","UGARF Cultivar Royalty","N","43001400","Y"]
["43001500","Georgia Research Alliance","N","43000000","N"]
["43001505","GRA Ventures","N","43001500","Y"]
["43001510","GRA Bond","N","43001500","Y"]
["43020000","Willson Center","N","43000000","N"]
["43020001","Willson Center Operations","N","43020000","Y"]
["43040000","Clinical Transl Rsch Unit","N","43000000","N"]
["43040001","CTRU Operations","N","43040000","Y"]
["43040050","CTRU Operations Income","N","43040000","Y"]
["43040100","CTRU Seed Grants","N","43040000","Y"]
["43040200","CTRU-Funded Studies","N","43040000","Y"]
["43060000","GA Electron Microscopy Center","N","43000000","N"]
["43060001","GEM Operations","N","43060000","Y"]
["43100000","Research Business Services","N","43000000","N"]
["43100001","ORS Administration","N","43100000","Y"]
["43100050","Central Research Stores","N","43100000","Y"]
["43100055","Chemistry Stockroom","N","43100000","Y"]
["43100060","Coverdell Stockroom","N","43100000","Y"]
["43100065","Tucker Stockroom","N","43100000","Y"]
["43100070","Instrument Shop","N","43100000","Y"]
["43100080","UGA Oligocore","N","43100000","Y"]
["43150000","Savannah River Ecology Lab","N","43000000","N"]
["43150001","SREL Operations","N","43150000","Y"]
["43150005","SREL Parrott","N","43150000","Y"]
["43150100","SREL Rhodes","N","43150000","Y"]
["43150200","SREL Conference Center","N","43150000","Y"]
["43150201","SREL Graduate Student","N","43150000","Y"]
["43150202","SREL Analytical Services","N","43150000","Y"]
["43150203","SREL Departmental Income","N","43150000","Y"]
["43150204","SREL DNA Lab Lance","N","43150000","Y"]
["43150205","SREL Molecular Lab","N","43150000","Y"]
["43150300","SREL External Funds","N","43150000","Y"]
["43150400","SREL DOE Coop Agreement Rhodes","N","43150000","Y"]
["43200000","Institute Of Bioinformatics","N","43000000","N"]
["43200001","IOB General Operations","N","43200000","Y"]
["43200010","IOB Vip Tuition","N","43200000","Y"]
["43200100","IOB Events","N","43200000","Y"]
["43200105","IOB Symposium","N","43200000","Y"]
["43200200","J Kissinger","N","43200000","Y"]
["43200205","J Gutierrez","N","43200000","Y"]
["43200210","IOB Salary","N","43200000","Y"]
["43200215","IOB Faculty Support","N","43200000","Y"]
["43200220","IOB Student Support","N","43200000","Y"]
["43250000","Institute For Behavioral Rsch","N","43000000","N"]
["43250001","OIBR Administration","N","43250000","Y"]
["43250002","OIBR Companion","N","43250000","Y"]
["43250003","OIBR Seed Grants","N","43250000","Y"]
["43250004","OIBR Pilot Funds","N","43250000","Y"]
["43250005","OIBR Grantsmanship Devel Prog","N","43250000","Y"]
["43250006","Behavior Cognit Neurosci Wk Gp","N","43250000","Y"]
["43250007","Relationship Science Work Grp","N","43250000","Y"]
["43250008","Violence Work Group","N","43250000","Y"]
["43250009","Computational Social Sci Wk Gp","N","43250000","Y"]
["43250100","P Roman","N","43250000","Y"]
["43250105","L Eby","N","43250000","Y"]
["43250110","S Ardoin","N","43250000","Y"]
["43250115","R Blount","N","43250000","Y"]
["43250120","M Carr","N","43250000","Y"]
["43250125","B Clementz","N","43250000","Y"]
["43250130","J Monahan","N","43250000","Y"]
["43250135","J Muilenburg","N","43250000","Y"]
["43250140","D Robinson","N","43250000","Y"]
["43250145","J Samp","N","43250000","Y"]
["43250150","L Sweet","N","43250000","Y"]
["43250155","Cntr Integrative Conserv Rsch","N","43250000","Y"]
["43250160","J Clay-Warner","N","43250000","Y"]
["43250165","R Simons","N","43250000","Y"]
["43250170","P Corso","N","43250000","Y"]
["43250175","K Wickrama","N","43250000","Y"]
["43250180","J Miller","N","43250000","Y"]
["43250185","D Carter","N","43250000","Y"]
["43250190","N Carter","N","43250000","Y"]
["43250195","A Abraham","N","43250000","Y"]
["43250200","SSHRC Mitchell","N","43250000","Y"]
["43250205","T Futris","N","43250000","Y"]
["43250210","M Caughy","N","43250000","Y"]
["43250215","J Jawardhana","N","43250000","Y"]
["43250220","M Perri","N","43250000","Y"]
["43250225","H Young","N","43250000","Y"]
["43250230","M Welch-Devine","N","43250000","Y"]
["43250235","S Beach","N","43250000","Y"]
["43250240","C Condit","N","43250000","Y"]
["43250245","P Orpinas","N","43250000","Y"]
["43250250","G Bagwell Adams","N","43250000","Y"]
["43250255","B Orland","N","43250000","Y"]
["43260000","SEER Center","N","43000000","N"]
["43260001","SEER Center Administration","N","43260000","Y"]
["43300000","Center For Family Research","N","43000000","N"]
["43300001","CFR Research Operations","N","43300000","Y"]
["43300202","CFR S Beach","N","43300000","Y"]
["43300204","CFR S Kogan","N","43300000","Y"]
["43300205","CFR G Brody","N","43300000","Y"]
["43300301","CFR Ehrlich/Shaffer","N","43300000","Y"]
["43300302","CFR T Anderson","N","43300000","Y"]
["43300303","CFR D Terris","N","43300000","Y"]
["43300950","CFR Miechv Rb","N","43300000","Y"]
["43300951","CFR Miechv Eval Rb","N","43300000","Y"]
["43350000","Ctr Trop Emerging Glob Disease","N","43000000","N"]
["43350001","CTEGD Administration","N","43350000","Y"]
["43350005","Flow Cytometry Core Facility","N","43350000","Y"]
["43350010","Optical Microscopy Core Facil","N","43350000","Y"]
["43350015","Eupathdb Workshop","N","43350000","Y"]
["43350020","Upenn/Nihrf Eukrytc","N","43350000","Y"]
["43350025","Kissinger Support","N","43350000","Y"]
["43350030","Kissinger Salary Savings","N","43350000","Y"]
["43350035","Tarleton Animal Facility","N","43350000","Y"]
["43350040","Tarleton Antibody Analysis","N","43350000","Y"]
["43350100","D Colley","N","43350000","Y"]
["43350105","R Docampo","N","43350000","Y"]
["43350110","S Moreno","N","43350000","Y"]
["43350115","J Kissinger","N","43350000","Y"]
["43350120","D Kyle","N","43350000","Y"]
["43350125","V Muralidharan","N","43350000","Y"]
["43350130","R Tarleton","N","43350000","Y"]
["43400000","Ctr For Applied Isotope Study","N","43000000","N"]
["43400001","CAIS Administration","N","43400000","Y"]
["43400100","CAIS Analysis Facility","N","43400000","Y"]
["43400105","CAIS Glass Shop","N","43400000","Y"]
["43400110","CAIS Conf & Wrksp","N","43400000","Y"]
["43400115","A Cherkinsky","N","43400000","Y"]
["43400120","R Speakman","N","43400000","Y"]
["43400125","S Noakes","N","43400000","Y"]
["43400130","C Hadden","N","43400000","Y"]
["43450000","Complex Carbohydrate Center","N","43000000","N"]
["43450001","CCRC Administration","N","43450000","Y"]
["43450005","CCRC Vip Tuition Return","N","43450000","Y"]
["43450100","Analytical Services","N","43450000","Y"]
["43450105","NMR Machine Usage","N","43450000","Y"]
["43450110","Copy Charges","N","43450000","Y"]
["43450115","Supply Cabinet","N","43450000","Y"]
["43450200","P Azadi","N","43450000","Y"]
["43450205","M Bar Peled","N","43450000","Y"]
["43450210","Gj Boons","N","43450000","Y"]
["43450215","A Darvill","N","43450000","Y"]
["43450220","A Edison","N","43450000","Y"]
["43450225","M Hahn","N","43450000","Y"]
["43450230","R Haltiwanger","N","43450000","Y"]
["43450235","D Mohnen","N","43450000","Y"]
["43450240","K Moremen","N","43450000","Y"]
["43450245","A Muszynski","N","43450000","Y"]
["43450250","M Oneill","N","43450000","Y"]
["43450255","R Orlando","N","43450000","Y"]
["43450260","J Prestegard","N","43450000","Y"]
["43450265","R Steet","N","43450000","Y"]
["43450270","M Tiemeyer","N","43450000","Y"]
["43450275","L Wang","N","43450000","Y"]
["43450280","L Wells","N","43450000","Y"]
["43450285","R Woods","N","43450000","Y"]
["43450290","W York","N","43450000","Y"]
["43450295","M Pierce","N","43450000","Y"]
["43450300","C Szymanski","N","43450000","Y"]
["43450310","CCRC Symposium","N","43450000","Y"]
["43450320","GGC Training Course","N","43450000","Y"]
["43450330","CCRC Training","N","43450000","Y"]
["43450340","Carbosource","N","43450000","Y"]
["43450350","Monoclonal Antibody","N","43450000","Y"]
["43450360","H Flanagan Steet","N","43450000","Y"]
["43450370","D Live","N","43450000","Y"]
["43450380","L Tan","N","43450000","Y"]
["43460000","Center For Molecular Medicine","N","43000000","N"]
["43460001","Cmm Administration","N","43460000","Y"]
["43460200","F Avci","N","43460000","Y"]
["43460210","H Yin","N","43460000","Y"]
["43460220","S Dalton","N","43460000","Y"]
["43460230","CMM Symposium","N","43460000","Y"]
["43460240","CMM Confocal","N","43460000","Y"]
["43470000","Cancer Center Of Excellence","N","43000000","N"]
["43470001","Cancer Center Administration","N","43470000","Y"]
["43470200","J Pierce","N","43470000","Y"]
["43470210","L Wells","N","43470000","Y"]
["43470220","M Tiemeyer","N","43470000","Y"]
["43500000","Biomed & Health Sci Institute","N","43000000","N"]
["43500001","BHSI Administration","N","43500000","Y"]
["43500002","BHSI ICR Allocations","N","43500000","Y"]
["43500003","BHSI UGARF Allocations","N","43500000","Y"]
["43500004","MBB Program","N","43500000","Y"]
["43500005","IPE Event","N","43500000","Y"]
["43500006","ID Symposia","N","43500000","Y"]
["43500010","One Health Workshop","N","43500000","Y"]
["43510000","New Materials Institute","N","43000000","N"]
["43510001","New Materials Inst Adm","N","43510000","Y"]
["43510005","R Adolphson","N","43510000","Y"]
["43900000","Marine Institute","N","43000000","N"]
["43900001","Marine Institute Operations","N","43900000","Y"]
["43900010","Facilities Use","N","43900000","Y"]
["43900015","GDNR Payroll","N","43900000","Y"]
["43900100","M Alber","N","43900000","Y"]
["51000000","VP Public Service & Outreach","N","00000000","N"]
["51001000","VP Public Service & Outreach","N","51000000","N"]
["51001001","VPPSO Admin","N","51001000","Y"]
["51001002","VPPSO Initiatives","N","51001000","Y"]
["51001003","VPPSO Amended Support","N","51001000","Y"]
["51001004","VPPSO Hill Award","N","51001000","Y"]
["51001005","VPPSO New Faculty Tour","N","51001000","Y"]
["51001006","VPPSO Facilitation Training","N","51001000","Y"]
["51001007","VPPSO Dev","N","51001000","Y"]
["51001008","VPPSO Gen","N","51001000","Y"]
["51010000","Archway Partnership","N","51000000","Y"]
["51020000","Carl Vinson Institute of Govt","N","51000000","N"]
["51020010","CVIOG Director","N","51020000","Y"]
["51020020","CVIOG GTED Divison","N","51020000","Y"]
["51020030","CVIOG ITOS Division","N","51020000","Y"]
["51020040","CVIOG SSDS Division","N","51020000","Y"]
["51020050","CVIOG SOPA Division","N","51020000","Y"]
["51020060","CVIOG International Center","N","51020000","Y"]
["51020070","CVIOG Communications","N","51020000","Y"]
["51030000","JW Fanning Institute For Leade","N","51000000","N"]
["51030001","Fanning Conferences General","N","51030000","Y"]
["51030002","Fanning Income","N","51030000","Y"]
["51030003","Fanning Institute Admin","N","51030000","Y"]
["51030009","ELPNO","N","51030000","Y"]
["51030010","Perspectives","N","51030000","Y"]
["51040000","UGA Ctr for Cont Ed and Hotel","Y","51000000","N"]
["51040100","GC Director","Y","51000000","N"]
["51040200","GC Auxiliary Contigency","N","51000000","Y"]
["51040300","GC Continuing Carryforward","N","51000000","Y"]
["51041000","GC Aux Hotel","Y","51000000","N"]
["51041010","GC Hotel","N","51041000","Y"]
["51041020","GC Hotel Related","N","51041000","Y"]
["51041030","GC Housekeeping","N","51041000","Y"]
["51041040","GC Hotel Mkt","N","51041000","Y"]
["51042000","GC Aux Foods","Y","51000000","N"]
["51042010","GC Food and Beverage","N","51042000","Y"]
["51042020","GC Food and Bev UBI","N","51042000","Y"]
["51045000","GC Admin Services","Y","51000000","N"]
["51045100","GC Business Operations","N","51045000","N"]
["51045110","GC Business & Finance","N","51045100","Y"]
["51045120","GC Human Resources","N","51045100","Y"]
["51045200","GC Special Projects","Y","51000000","N"]
["51045210","GC Special Projects","N","51045200","Y"]
["51045220","GC Spec Proj Sal Sav","N","51045200","Y"]
["51045300","GC Facilities Maintenance","Y","51000000","N"]
["51045310","GC Maintenance/Auxilieary Main","N","51045300","Y"]
["51045320","GC Grounds","N","51045300","Y"]
["51046000","GC Information Technology","N","51000000","Y"]
["51047000","GC Continuing Education","Y","51000000","N"]
["51047010","GC Ppd","N","51047000","Y"]
["51047020","GC Office Acad Sp Programs","N","51047000","Y"]
["51047030","GC Webid","N","51047000","Y"]
["51047040","GC PPD Mkt","N","51047000","Y"]
["51048000","GC Sales & Event Coordination","Y","51000000","N"]
["51048010","GC Sec Events","N","51048000","Y"]
["51048020","GC Sec Admin","N","51048000","Y"]
["51048030","GC Sec Event Services","N","51048000","Y"]
["51048040","GC Sec UBI","N","51048000","Y"]
["51048100","GC Sales & Marketing","Y","51000000","N"]
["51048110","GC Printing & Graphics","N","51048100","Y"]
["51048120","GC Sec Sales","N","51048100","Y"]
["51050000","Sea Grant Program","N","51000000","N"]
["51050100","OVPR Support - Salaries","N","51050000","Y"]
["51050200","Sea Grant Administration","N","51050000","Y"]
["51060000","Marine Extension Service","N","51000000","N"]
["51060100","MAREX Administration","N","51060000","Y"]
["51060200","Advisory","N","51060000","Y"]
["51060300","Marine Education","N","51060000","Y"]
["51060400","Shellfish","N","51060000","Y"]
["51070000","Small Business Dev Center","N","51000000","N"]
["51070001","SBDC Administration","N","51070000","Y"]
["51070002","SBDC Business Office","N","51070000","Y"]
["51070003","SBDC Centers","N","51070000","Y"]
["51070004","SBDC Center Income","N","51070000","Y"]
["51070005","SBDC District Director's","N","51070000","Y"]
["51070006","SBDC Information Technology","N","51070000","Y"]
["51070007","SBDC International Trade","N","51070000","Y"]
["51070008","SBDC Medical Practice MGMT","N","51070000","Y"]
["51070009","SBDC Minority Business Div","N","51070000","Y"]
["51070010","SBDC Program Development","N","51070000","Y"]
["51070011","SBDC Res/Mkt/Pub","N","51070000","Y"]
["51070012","SBDC Training","N","51070000","Y"]
["51070013","SBDC Payroll Offset","N","51070000","Y"]
["51080000","State Botanical Garden Georgia","N","51000000","N"]
["51080001","Garden Gift Shop","N","51080000","Y"]
["51080002","Botantical Garden Admin","N","51080000","Y"]
["51080003","Horticulture","N","51080000","Y"]
["51080004","Garden Food Services","N","51080000","Y"]
["51080005","Visitor Services","N","51080000","Y"]
["51080006","Education","N","51080000","Y"]
["51080007","Conservation & Research","N","51080000","Y"]
["51080008","Development","N","51080000","Y"]
["51080009","Garden Club Of Georgia","N","51080000","Y"]
["51080010","Friends Of The Garden","N","51080000","Y"]
["57000000","VP for Student Affairs","N","00000000","N"]
["57001000","OVPSA Operations","N","57000000","Y"]
["57001100","SA Development","N","57000000","Y"]
["57001200","Learning & Strategic Init.","N","57000000","Y"]
["57001300","Communications & Marketing Ini","N","57000000","Y"]
["57002000","Academic Partnerships & Initia","N","57000000","Y"]
["57003000","Center For Leadership & Servic","N","57000000","Y"]
["57004000","International Student Life","N","57000000","Y"]
["57005000","Lesbian, Gay, Bisexual, Transg","N","57000000","Y"]
["57006000","Multicultural Services & Progr","N","57000000","Y"]
["57010000","Office Of Student Conduct","N","57000000","Y"]
["57011000","Greek Life Office","N","57000000","Y"]
["57012000","University Testing Services","N","57000000","Y"]
["57012050","Disability Resource Center","N","57000000","Y"]
["57012100","Aux Aids","Y","57000000","N"]
["57012101","Accommodated Testing","N","57012100","Y"]
["57012102","Alternative Text","N","57012100","Y"]
["57012103","Deaf/HOH Svcs.","N","57012100","Y"]
["57012104","Assistive Technology","N","57012100","Y"]
["57012105","Other Aux Aids","N","57012100","Y"]
["57013000","Recreational Sports","N","57000000","N"]
["57013001","Rec Sports Admin","N","57013000","Y"]
["57013002","Rec Sports Public Relations","N","57013000","Y"]
["57013003","Rec Sports Information Tech","N","57013000","Y"]
["57013004","Rec Sports Outdoor Recreation","N","57013000","Y"]
["57013005","Rec Sports Competitive Sports","N","57013000","Y"]
["57013006","Rec Sports Club Sports","N","57013000","Y"]
["57013007","Rec Sports Fitness & Wellness","N","57013000","Y"]
["57013008","Rec Sports Facilities","N","57013000","Y"]
["57013009","Rec Sports Aquatics","N","57013000","Y"]
["57013010","Rec Sports Conferences/Events","N","57013000","Y"]
["57013011","Student Facility Fee","N","57013000","Y"]
["57013012","Student Rec Fee","N","57013000","Y"]
["57015000","Dean Of Students","N","57000000","N"]
["57015001","DOS Administration","N","57015000","Y"]
["57015002","DOS Marketing/PR","N","57015000","Y"]
["57015003","DOS Administrative Programming","N","57015000","Y"]
["57015004","Student Care & Outreach","N","57015000","Y"]
["57015005","Tate Computer Support","N","57000000","Y"]
["57015006","Student Veterans Resource Ctr","N","57000000","Y"]
["57015100","Tate Administration","Y","57000000","N"]
["57015101","Tate Building Operation","N","57015100","Y"]
["57015102","Tate Renovation","N","57015100","Y"]
["57015103","Tate Van","N","57015100","Y"]
["57015104","Legion Pool","N","57015100","Y"]
["57015105","Memorial Hall Renovation","N","57015100","Y"]
["57015106","Scott Hall","N","57015100","Y"]
["57015200","Tate Business Office","Y","57000000","N"]
["57015201","Tate Business Office Oper.","N","57015200","Y"]
["57015202","Tate Staff Salaries","N","57015200","Y"]
["57015203","Tate Special Purchases","N","57015200","Y"]
["57015204","Student Act Reserve & Surplus","N","57015200","Y"]
["57015205","Ticket Office","N","57015200","Y"]
["57015210","UGA Card","N","57000000","Y"]
["57015300","Student Activities & Involve","N","57000000","Y"]
["57015400","Tate Ctr. Meetings & Events","N","57000000","Y"]
["57015500","Tate Ctr. Print & Copy","N","57000000","Y"]
["57015600","Ctr for Leadership & Service","Y","57000000","N"]
["57015601","Arch Society Admin","N","57015600","Y"]
["57015602","Dawg Camp","N","57015600","Y"]
["57015603","CLS Admin","N","57015600","Y"]
["57015700","LGBTRC Administration","N","57000000","Y"]
["57015800","Academic Partnerships Admin","N","57000000","Y"]
["57020000","University Health Center UGA","N","57000000","N"]
["57020010","University Health Center","N","57020000","Y"]
["57020020","Reserve Accounts UHC","N","57020000","Y"]
["57020030","Surplus Accounts UHC","N","57020000","Y"]
["57020100","Administration Accounts UHC","N","57000000","N"]
["57020110","UHC Administration","N","57020100","Y"]
["57020120","Communication Services UHC","N","57020100","Y"]
["57020130","Counseling & Psychiatric Serv","N","57020100","Y"]
["57020140","Health Promotion","N","57020100","Y"]
["57020150","Information Technology UHC","N","57020100","Y"]
["57020160","Medical Services","N","57020100","Y"]
["57020170","New Programs & Services UHC","N","57020100","Y"]
["57020400","Patient Service Accounts","N","57000000","N"]
["57020405","Allergy & Travel Clinic","N","57020400","Y"]
["57020410","Dental Clinic","N","57020400","Y"]
["57020415","Medical Clinic Blue","N","57020400","Y"]
["57020420","Medical Clinic Gold","N","57020400","Y"]
["57020425","Medical Clinic Green","N","57020400","Y"]
["57020430","Medical Clinic Red","N","57020400","Y"]
["57020435","Patient Services","N","57020400","Y"]
["57020440","Physical Therapy","N","57020400","Y"]
["57020445","Registration & Health Info","N","57020400","Y"]
["57020450","Women's Clinic","N","57020400","Y"]
["57020700","Support Service Accounts","N","57000000","N"]
["57020705","Business Services","N","57020700","Y"]
["57020710","Central Supply","N","57020700","Y"]
["57020715","Environmental Services","N","57020700","Y"]
["57020720","Indirect Plant Overhead","N","57020700","Y"]
["57020725","Laboratory Services","N","57020700","Y"]
["57020730","Pharmacy Services","N","57020700","Y"]
["57020735","Radiology Services","N","57020700","Y"]
["57020740","Support Services","N","57020700","Y"]
["57020745","Vision Clinic","N","57020700","Y"]
["57030000","HSG - Univ Housing Admin","N","57000000","N"]
["57030001","HSG - Executive Director","N","57030000","Y"]
["57030002","HSG - Sustainability","N","57030000","Y"]
["57030003","HSG - Facilities Admin","N","57030000","Y"]
["57030004","HSG - ASC Admin/HBHR/HAO","N","57030000","Y"]
["57030005","HSG - Information Technology","N","57030000","Y"]
["57030006","HSG - Public Relations","N","57030000","Y"]
["57030007","HSG - Residential Prog&Svcs","N","57030000","Y"]
["57030008","HSG - Security","N","57030000","Y"]
["57030009","HSG - Staff Dev&Student Co","N","57030000","Y"]
["57030010","HSG - Summer Conferences","N","57030000","Y"]
["57030011","HSG - Pcard Clearing","N","57030000","Y"]
["57030100","HSG - Other Agency Accounts","N","57000000","N"]
["57030101","HSG - Alpha Chi Omega","N","57030100","Y"]
["57030102","HSG - Alpha Epsilon Pi","N","57030100","Y"]
["57030103","HSG - Sigma Delta Tau","N","57030100","Y"]
["57030104","HSG - Kappa Sigma","N","57030100","Y"]
["57030150","HSG - Hall Council","N","57000000","N"]
["57030151","HSG - Brumby Hall Council","N","57030150","Y"]
["57030152","HSG - Church/Hill/Boggs HC","N","57030150","Y"]
["57030153","HSG - Creswell Hall Council","N","57030150","Y"]
["57030154","HSG - ECV Hall Council","N","57030150","Y"]
["57030155","HSG - Franklin Res College","N","57030150","Y"]
["57030156","HSG - Mell/Lip Hall Council","N","57030150","Y"]
["57030157","HSG - Morris Hall Council","N","57030150","Y"]
["57030158","HSG - Myers/Ruth/ML Soule HC","N","57030150","Y"]
["57030159","HSG - Ntnl Res Hall Honor","N","57030150","Y"]
["57030160","HSG - O-House Hall Council","N","57030150","Y"]
["57030161","HSG - Payne Hall Council","N","57030150","Y"]
["57030162","HSG - Prog Support&Special Ev","N","57030150","Y"]
["57030163","HSG - Reed Hall Council","N","57030150","Y"]
["57030164","HSG - Residence Hall Assoc","N","57030150","Y"]
["57030165","HSG - Residence Hall Studios","N","57030150","Y"]
["57030166","HSG - Russell Hall Council","N","57030150","Y"]
["57030167","HSG - UV Hall Council","N","57030150","Y"]
["57030168","HSG - Brown Hall Council","N","57030150","Y"]
["57030169","HSG - BLdg 1516 Hall Council","N","57030150","Y"]
["57030170","HSG - HSC Hall Council","N","57030150","Y"]
["57030200","HSG - Summer Hall Council C/O","N","57000000","N"]
["57030201","HSG - ECV Summer Hall Council","N","57030200","Y"]
["57030202","HSG - HSC Summer Hall Council","N","57030200","Y"]
["57030203","HSG - Summer School HC","N","57030200","Y"]
["57030204","HSG - UV Summer Hall Council","N","57030200","Y"]
["57030205","HSG - Fresh Co Summer Exp","N","57030200","Y"]
["57030300","HSG - Brandon Oaks Apartments","N","57000000","N"]
["57030301","HSG - Brandon Oaks Operations","N","57030300","Y"]
["57030302","HSG - Brandon Oaks Maintenance","N","57030300","Y"]
["57030303","HSG - Brandon Oaks Bldg Svcs","N","57030300","Y"]
["57030400","HSG - Rogers Road Apartments","N","57000000","N"]
["57030401","HSG - Rogers Road Operations","N","57030400","Y"]
["57030402","HSG - Rogers Road Maintenance","N","57030400","Y"]
["57030403","HSG - Rogers Road Bldg Svcs","N","57030400","Y"]
["57030500","HSG - University Village","N","57000000","N"]
["57030501","HSG - University Village Ops","N","57030500","Y"]
["57030502","HSG - University Village Maint","N","57030500","Y"]
["57030503","HSG - Univ Village Bldg Svcs","N","57030500","Y"]
["57030600","HSG - Busbee Hall","N","57000000","N"]
["57030601","HSG - Busbee Hall Operations","N","57030600","Y"]
["57030602","HSG - Busbee Hall Maintenance","N","57030600","Y"]
["57030603","HSG - Busbee Hall Bldg Svcs","N","57030600","Y"]
["57030700","HSG - McWhorter Hall","N","57000000","N"]
["57030701","HSG - McWhorter Hall Ops","N","57030700","Y"]
["57030702","HSG - McWhorter Hall Maint","N","57030700","Y"]
["57030703","HSG - McWhorter Hall Bldg Svcs","N","57030700","Y"]
["57030800","HSG - Rooker Hall","N","57000000","N"]
["57030801","HSG - Rooker Hall Operations","N","57030800","Y"]
["57030802","HSG - Rooker Hall Maintenance","N","57030800","Y"]
["57030803","HSG - Rooker Hall Bldg Svcs","N","57030800","Y"]
["57030900","HSG - Vandiver Hall","N","57000000","N"]
["57030901","HSG - Vandiver Hall Operations","N","57030900","Y"]
["57030902","HSG - Vandiver Hall Maint","N","57030900","Y"]
["57030903","HSG - Vandiver Hall Bldg Svcs","N","57030900","Y"]
["57031000","HSG - Phi Delta Theta","N","57000000","N"]
["57031001","HSG - Phi Delta Theta Ops","N","57031000","Y"]
["57031002","HSG - Phi Delta Theta Maint","N","57031000","Y"]
["57031003","HSG - Phi Delta Theta Bldg Svc","N","57031000","Y"]
["57031004","HSG - Phi Delta Theta Agency","N","57031000","Y"]
["57031100","HSG - Pi Kappa Alpha","N","57000000","N"]
["57031101","HSG - Pi Kappa Alpha Ops","N","57031100","Y"]
["57031102","HSG - Pi Kappa Alpha Maint","N","57031100","Y"]
["57031103","HSG - Pi Kappa Alpha Bldg Svcs","N","57031100","Y"]
["57031104","HSG - Pi Kappa Alpha Agency","N","57031100","Y"]
["57031200","HSG - Sigma Nu","N","57000000","N"]
["57031201","HSG - Sigma Nu Operations","N","57031200","Y"]
["57031202","HSG - Sigma Nu Maintenance","N","57031200","Y"]
["57031203","HSG - Sigma Nu Bldg Svcs","N","57031200","Y"]
["57031204","HSG - Sigma Nu Agency","N","57031200","Y"]
["57031300","HSG - Tau Epsilon Pi","N","57000000","N"]
["57031301","HSG - Tau Epsilon Pi Ops","N","57031300","Y"]
["57031302","HSG - Tau Epsilon Pi Maint","N","57031300","Y"]
["57031303","HSG - Tau Epsilon Pi Bldg Svcs","N","57031300","Y"]
["57031304","HSG -Tau Epsilon Pi Agency","N","57031300","Y"]
["57031400","HSG - Brown Hall","N","57000000","N"]
["57031401","HSG - Brown Hall Operations","N","57031400","Y"]
["57031402","HSG - Brown Hall Maintenance","N","57031400","Y"]
["57031403","HSG - Brown Hall Bldg Svcs","N","57031400","Y"]
["57031500","HSG - Gilmore Circle","N","57000000","N"]
["57031501","HSG - Gilmore Circle Ops","N","57031500","Y"]
["57031502","HSG - Gilmore Circle Maint","N","57031500","Y"]
["57031503","HSG - Gilmore Circle Bldg Svcs","N","57031500","Y"]
["57031600","HSG - Kenny Road","N","57000000","N"]
["57031601","HSG - Kenny Road Operations","N","57031600","Y"]
["57031602","HSG - Kenny Road Maintenance","N","57031600","Y"]
["57031603","HSG - Kenny Road Bldg Svcs","N","57031600","Y"]
["57031700","HSG - McGowan Road","N","57000000","N"]
["57031701","HSG - McGowan Road Operations","N","57031700","Y"]
["57031702","HSG - McGowan Road Maintenance","N","57031700","Y"]
["57031703","HSG - McGowan Road Bldg Svcs","N","57031700","Y"]
["57031800","HSG - Boggs Hall","N","57000000","N"]
["57031801","HSG - Boggs Hall Operations","N","57031800","Y"]
["57031802","HSG - Boggs Hall Maintenance","N","57031800","Y"]
["57031803","HSG - Boggs Hall Bldg Svcs","N","57031800","Y"]
["57031900","HSG - Brumby Hall","N","57000000","N"]
["57031901","HSG - Brumby Hall Operations","N","57031900","Y"]
["57031902","HSG - Brumby Hall Maintenance","N","57031900","Y"]
["57031903","HSG - Brumby Hall Bldg Svcs","N","57031900","Y"]
["57032000","HSG - Building 1516","N","57000000","N"]
["57032001","HSG - Building 1516 Operations","N","57032000","Y"]
["57032002","HSG - Building 1516 Maint","N","57032000","Y"]
["57032003","HSG - Building 1516 Bldg Svcs","N","57032000","Y"]
["57032100","HSG - Church Hall","N","57000000","N"]
["57032101","HSG - Church Hall Operations","N","57032100","Y"]
["57032102","HSG - Church Hall Maintenance","N","57032100","Y"]
["57032103","HSG - Church Hall Bldg Svcs","N","57032100","Y"]
["57032200","HSG - Creswell Hall","N","57000000","N"]
["57032201","HSG - Creswell Hall Operations","N","57032200","Y"]
["57032202","HSG - Creswell Hall Maint","N","57032200","Y"]
["57032203","HSG - Creswell Hall Bldg Svcs","N","57032200","Y"]
["57032300","HSG - Hill Hall","N","57000000","N"]
["57032301","HSG - Hill Hall Operations","N","57032300","Y"]
["57032302","HSG - Hill Hall Maintenance","N","57032300","Y"]
["57032303","HSG - Hill Hall Bldg Svcs","N","57032300","Y"]
["57032400","HSG - Lipscomb Hall","N","57000000","N"]
["57032401","HSG - Lipscomb Hall Operations","N","57032400","Y"]
["57032402","HSG - Lipscomb Hall Maint","N","57032400","Y"]
["57032403","HSG - Lipscomb Hall Bldg Svcs","N","57032400","Y"]
["57032500","HSG - Mary Lyndon Hall","N","57000000","N"]
["57032501","HSG - Mary Lyndon Ops","N","57032500","Y"]
["57032502","HSG - Mary Lyndon Maint","N","57032500","Y"]
["57032503","HSG - Mary Lyndon Bldg Svcs","N","57032500","Y"]
["57032600","HSG - Mell Hall","N","57000000","N"]
["57032601","HSG - Mell Hall Operations","N","57032600","Y"]
["57032602","HSG - Mell Hall Maintenance","N","57032600","Y"]
["57032603","HSG - Mell Hall Bldg Svcs","N","57032600","Y"]
["57032700","HSG - Morris Hall","N","57000000","N"]
["57032701","HSG - Morris Hall Operations","N","57032700","Y"]
["57032702","HSG - Morris Hall Maintenance","N","57032700","Y"]
["57032703","HSG - Morris Hall Bldg Svcs","N","57032700","Y"]
["57032800","HSG - Myers Hall","N","57000000","N"]
["57032801","HSG - Myers Hall Operations","N","57032800","Y"]
["57032802","HSG - Myers Hall Maintenance","N","57032800","Y"]
["57032803","HSG - Myers Hall Bldg Svcs","N","57032800","Y"]
["57032900","HSG - Oglethorpe House","N","57000000","N"]
["57032901","HSG - O-House Operations","N","57032900","Y"]
["57032902","HSG - O-House Maintenance","N","57032900","Y"]
["57032903","HSG - O-House Bldg Svcs","N","57032900","Y"]
["57033000","HSG - Payne Hall","N","57000000","N"]
["57033001","HSG - Payne Hall Operations","N","57033000","Y"]
["57033002","HSG - Payne Hall Maintenance","N","57033000","Y"]
["57033003","HSG - Payne Hall Bldg Svcs","N","57033000","Y"]
["57033100","HSG - Reed Hall","N","57000000","N"]
["57033101","HSG - Reed Hall Operations","N","57033100","Y"]
["57033102","HSG - Reed Hall Maintenance","N","57033100","Y"]
["57033103","HSG - Reed Hall Bldg Svcs","N","57033100","Y"]
["57033200","HSG - Russell Hall","N","57000000","N"]
["57033201","HSG - Russell Hall Operations","N","57033200","Y"]
["57033202","HSG - Russell Hall Maintenance","N","57033200","Y"]
["57033203","HSG - Russell Hall Bldg Svcs","N","57033200","Y"]
["57033300","HSG - Rutherford Hall","N","57000000","N"]
["57033301","HSG - Rutherford Hall Ops","N","57033300","Y"]
["57033302","HSG - Rutherford Hall Maint","N","57033300","Y"]
["57033303","HSG - Rutherford Bldg Svc","N","57033300","Y"]
["57033400","HSG - Soule Hall","N","57000000","N"]
["57033401","HSG - Soule Hall Operations","N","57033400","Y"]
["57033402","HSG - Soule Hall Maintenance","N","57033400","Y"]
["57033403","HSG - Soule Hall Bldg Svcs","N","57033400","Y"]
["57101000","University Union","Y","57000000","N"]
["57101001","Union Executive","N","57101000","Y"]
["57101002","Entertainment Division","N","57101000","Y"]
["57101003","Late Night Programs","N","57101000","Y"]
["57101004","Cinematic Arts","N","57101000","Y"]
["57101005","Socially Conscious","N","57101000","Y"]
["57101006","Summer & Daytime Programs","N","57101000","Y"]
["57102000","CSAI Programming","Y","57000000","N"]
["57102001","Major Campus Event","N","57102000","Y"]
["57102002","Homecoming","N","57102000","Y"]
["57102003","Athletic Collaborations","N","57102000","Y"]
["57102004","Pandora","N","57102000","Y"]
["57102005","WUOG Radio","N","57102000","Y"]
["57102006","Collegiate Readership Program","N","57102000","Y"]
["57102007","Soar Program","N","57102000","Y"]
["57102008","CSAI Programs","N","57102000","Y"]
["57102009","Leadership Resource Team","N","57102000","Y"]
["57102010","Collegiate Leadership Conf","N","57102000","Y"]
["57102011","Welcome Events","N","57102000","Y"]
["57103000","MSP Programming","Y","57000000","N"]
["57103001","Black Affairs Council","N","57103000","Y"]
["57103002","Black Theatrical Ensemble","N","57103000","Y"]
["57103003","Pamoja Dancers","N","57103000","Y"]
["57103004","Black Ed Support Team","N","57103000","Y"]
["57103005","Asian Amer Stu Assn","N","57103000","Y"]
["57103006","Hispanic Student Assn","N","57103000","Y"]
["57103007","Infusion Magazine","N","57103000","Y"]
["57104000","ISL Programming","Y","57000000","N"]
["57104001","International Organizations","N","57104000","Y"]
["57104002","AIESEC","N","57104000","Y"]
["57104003","Amnesty International","N","57104000","Y"]
["57104004","Athens Justice In Palestine","N","57104000","Y"]
["57104005","Brazilian Stu Assoc","N","57104000","Y"]
["57104006","Chinese Language Soc","N","57104000","Y"]
["57104007","Chinese Student Assoc","N","57104000","Y"]
["57104008","Filipino Stu Assoc","N","57104000","Y"]
["57104009","Indian Stu Assoc","N","57104000","Y"]
["57104010","Korean Undergrad Stu Assoc","N","57104000","Y"]
["57104011","Muslim Stu Assoc","N","57104000","Y"]
["57104012","Pakistani Stu Union","N","57104000","Y"]
["57104013","Persian Stu Union","N","57104000","Y"]
["57104014","Taiwanese Stu Assoc","N","57104000","Y"]
["57104015","Thai Stu Assoc","N","57104000","Y"]
["57104016","Turkish Stu Assoc","N","57104000","Y"]
["57104017","Vietnamese Stu Assoc","N","57104000","Y"]
["57104018","World Ambassadors","N","57104000","Y"]
["57105000","CLS Programming","Y","57000000","N"]
["57105001","Dawg Camp Fusion","N","57105000","Y"]
["57105002","Dawg Camp Classic City","N","57105000","Y"]
["57105004","Dawg Camp Odyssey","N","57105000","Y"]
["57105005","Dawg Camp Connect","N","57105000","Y"]
["57105007","Community Engagement","N","57105000","Y"]
["57105008","Impact","N","57105000","Y"]
["57105009","Serve UGA","N","57105000","Y"]
["57105010","Leadershape","N","57105000","Y"]
["57106000","SGA & GPSA Admin","Y","57000000","N"]
["57106001","Graduate Student Association","N","57106000","Y"]
["57106002","Student Government Association","N","57106000","Y"]
["57106003","Small Clubs","N","57106000","Y"]
["57107000","VP Diversity Funds","Y","57000000","N"]
["57107001","VP Stu Aff Campus Diversity Pg","N","57107000","Y"]
["57107002","VP Stu Aff Diversity - MSP","N","57107000","Y"]
["57107003","VP Stu Aff Diversity - ISL","N","57107000","Y"]
["57107004","VP Stu Aff Diversity - LGBTRC","N","57107000","Y"]
["57107005","VP Diversity - Intersection","N","57107000","Y"]
["57107006","VP Diversity - Rite Of Sankofa","N","57107000","Y"]
["57107007","VP Diversity - Ignite","N","57107000","Y"]
["57108000","General Student Orgs","Y","57000000","N"]
["57108001","Bethel Campus Fellowship","N","57108000","Y"]
["57108002","Stu For Environmental Action","N","57108000","Y"]
["57108003","Visual Arts","N","57108000","Y"]
["57108004","Speak Out For Species","N","57108000","Y"]
["57108005","Silver Wings Col Duggar Chapt","N","57108000","Y"]
["57108006","Redcoat Band","N","57108000","Y"]
["57108007","Grad And Prof Scholars","N","57108000","Y"]
["57108008","Lambda Alliance","N","57108000","Y"]
["57108009","University Judiciary","N","57108000","Y"]
["57108010","Georgia Debate","N","57108000","Y"]
["57108012","Special Projects","N","57108000","Y"]
["57108013","UGA Copyright","N","57108000","Y"]
["57109000","Student Activity Fee Revenue","N","57108000","Y"]
["57120000","Agriculture-SA Budget","Y","57000000","N"]
["57120001","Agriculture-SA","N","57120000","Y"]
["57120002","Ag Economics","N","57120000","Y"]
["57120003","Ag Economics Graduate Club","N","57120000","Y"]
["57120004","Minorities In Ag Nr & Serv","N","57120000","Y"]
["57120005","Ag Communicators Of Tomorrow","N","57120000","Y"]
["57120006","CAES Ambassadors","N","57120000","Y"]
["57120007","Ag Hill Council","N","57120000","Y"]
["57120008","4-H Club","N","57120000","Y"]
["57120009","Soc of Aspiring Plant Path","N","57120000","Y"]
["57121000","Arts & Sciences - SA Budget","Y","57000000","N"]
["57121001","Arts & Sciences - SA","N","57121000","Y"]
["57121002","The Hodgson Singers","N","57121000","Y"]
["57121003","IGEM","N","57121000","Y"]
["57121004","Organized Icon Network","N","57121000","Y"]
["57121005","Repertory Singers","N","57121000","Y"]
["57121006","Sigma Alpha Iota","N","57121000","Y"]
["57121007","Stillpoint/Jack Donne","N","57121000","Y"]
["57121008","Men's Glee Club","N","57121000","Y"]
["57121009","University Chorus","N","57121000","Y"]
["57121010","Women's Glee Club","N","57121000","Y"]
["57121011","Criminal Justice Society","N","57121000","Y"]
["57121012","Thalian Blackfriars","N","57121000","Y"]
["57121013","Afro-American Choral Ensemble","N","57121000","Y"]
["57121014","Psi Chi","N","57121000","Y"]
["57121015","Assn Of Grad Art Student","N","57121000","Y"]
["57121016","Neuroscience Student Assn","N","57121000","Y"]
["57121017","The Social Psychologist At UGA","N","57121000","Y"]
["57121018","Geography Graduate Student","N","57121000","Y"]
["57121019","Bio-Chemistry Student Associat","N","57121000","Y"]
["57121020","Statistics Club","N","57121000","Y"]
["57121021","Microbio Grad Student Associat","N","57121000","Y"]
["57121022","Women'S Studies Student Organ","N","57121000","Y"]
["57121023","Ga Sculpture Collective","N","57121000","Y"]
["57121024","Anthropology Grad. Stu. Assoc","N","57121000","Y"]
["57121025","Cellular Biology Grad Stu Assn","N","57121000","Y"]
["57121026","UGA Graphic Design Club","N","57121000","Y"]
["57121027","Genetics Graduate Student Assn","N","57121000","Y"]
["57121028","Comparative Lit Grad Org","N","57121000","Y"]
["57121029","Anthropology Society","N","57121000","Y"]
["57121030","American Meteorological Socty","N","57121000","Y"]
["57121031","Undergraduate Art History Org","N","57121000","Y"]
["57121032","Dance Student Travel","N","57121000","Y"]
["57121033","German Student Assoc","N","57121000","Y"]
["57121034","Fabric Arts & Design Soc","N","57121000","Y"]
["57121035","Stu Assoc Of Arch Sci","N","57121000","Y"]
["57121036","Student Composers Assoc","N","57121000","Y"]
["57121037","Sociology Graduate Society","N","57121000","Y"]
["57121038","Speech Comunication Grad Forum","N","57121000","Y"]
["57121039","Collegium Musicum","N","57121000","Y"]
["57121040","Grad Stu & Postdocs In Science","N","57121000","Y"]
["57121041","Next Act","N","57121000","Y"]
["57121042","Musicology/Ethnomusicology Stu","N","57121000","Y"]
["57121043","Undergrad Nat'L Comm Assoc","N","57121000","Y"]
["57121044","The Campus Kitchens Project","N","57121000","Y"]
["57121045","IDEA Lab","N","57121000","Y"]
["57121046","Psychology Grad Student Comm","N","57121000","Y"]
["57121047","Industrial-Org Psych Stu Assn","N","57121000","Y"]
["57121048","Model African Union","N","57121000","Y"]
["57121049","Math Club","N","57121000","Y"]
["57121050","Psychology Educator Dev Assoc","N","57121000","Y"]
["57121051","USITT","N","57121000","Y"]
["57121052","Soc For Stu In Animation","N","57121000","Y"]
["57121053","Russian Club","N","57121000","Y"]
["57121054","Nat Art Education Assoc","N","57121000","Y"]
["57121055","Hodgson Wind Ensemble","N","57121000","Y"]
["57121056","Grad Painting & Drawing","N","57121000","Y"]
["57121057","Ga Sculpture Collective","N","57121000","Y"]
["57121058","Geography Undergrad Stu Org","N","57121000","Y"]
["57121059","Chamber Music Society","N","57121000","Y"]
["57121060","Children's Theatre Troupe","N","57121000","Y"]
["57121061","Dev Biology Grad Stu Assoc","N","57121000","Y"]
["57121062","Wisci","N","57121000","Y"]
["57121063","UGA Clarinet Association","N","57121000","Y"]
["57121064","Am Choral Directors Stu Chap","N","57121000","Y"]
["57121065","Marine Science Grad Stu Assn","N","57121000","Y"]
["57121066","Natl Assoc for Music Education","N","57121000","Y"]
["57121067","Cell Bio Undergrad Stu Assn","N","57121000","Y"]
["57121068","Eta Sigma Phi-Zeta Iota Chaptr","N","57121000","Y"]
["57121069","Spear","N","57121000","Y"]
["57121070","Music Teachers Nat Assn Tonic","N","57121000","Y"]
["57121071","Roosevelt @ UGA","N","57121000","Y"]
["57121072","Bioinformatics Grad Stu Asso","N","57121000","Y"]
["57121073","Biochemistry Undergrad Society","N","57121000","Y"]
["57121074","Nu Rho Psi","N","57121000","Y"]
["57121075","Africa Graduate Forum","N","57121000","Y"]
["57122000","Business-SA Budget","Y","57000000","N"]
["57122001","Business-SA","N","57122000","Y"]
["57122002","Economics Club","N","57122000","Y"]
["57122003","Gamma Iota Sigma","N","57122000","Y"]
["57122004","Insurance Society","N","57122000","Y"]
["57122005","Real Estate Society","N","57122000","Y"]
["57122006","Multicultural Students","N","57122000","Y"]
["57122007","Soc For Mgmt Information Systm","N","57122000","Y"]
["57122008","International Business Club","N","57122000","Y"]
["57122009","Nat'L Assoc Of Blk Accountants","N","57122000","Y"]
["57122010","The Management Society","N","57122000","Y"]
["57122011","American Marketing Assoc.","N","57122000","Y"]
["57122012","Pro Entertain & Sports Assoc","N","57122000","Y"]
["57122013","Assn Latino Prof In Fin & Acct","N","57122000","Y"]
["57122014","Terry Student Consulting","N","57122000","Y"]
["57122015","Society Of Entrepreneurs","N","57122000","Y"]
["57122016","Society Of Women In Technology","N","57122000","Y"]
["57122017","Terry Outreach Program","N","57122000","Y"]
["57122018","Soc For Business Intelligence","N","57122000","Y"]
["57122019","DECA","N","57122000","Y"]
["57122020","Society for Bus Intelligence","N","57122000","Y"]
["57122021","Society for Cyber Security","N","57122000","Y"]
["57122022","Women in Finance","N","57122000","Y"]
["57123000","Ecology-SA","N","57000000","Y"]
["57124000","Education-SA Budget","Y","57000000","N"]
["57124001","Education-SA","N","57124000","Y"]
["57124002","UGA Student Personnel","N","57124000","Y"]
["57124003","Math Education Student Assoc","N","57124000","Y"]
["57124004","Reading Graduate Students","N","57124000","Y"]
["57124005","UGA Lifelong Learning Assn","N","57124000","Y"]
["57124006","Student Assoc Sch Psychologist","N","57124000","Y"]
["57124007","Language Ed Grad Student Assoc","N","57124000","Y"]
["57124008","Student Council Except Childrn","N","57124000","Y"]
["57124009","Instr Tech Stud Assoc (Itsa)","N","57124000","Y"]
["57124010","School Counseling Assoc","N","57124000","Y"]
["57124011","Grad Res Ed Psy Inst Tech","N","57124000","Y"]
["57124012","Journal Of Lang. & Lit. Ed.","N","57124000","Y"]
["57124013","Omega Tau","N","57124000","Y"]
["57124014","Career & Info Studies Grad","N","57124000","Y"]
["57124015","ETAP Grad Stu Org","N","57124000","Y"]
["57124016","Exercise Is Medicine","N","57124000","Y"]
["57125000","Engineering-SA Budget","Y","57000000","N"]
["57125001","Engineering-SA","N","57125000","Y"]
["57125002","Engineering Graduate Club","N","57125000","Y"]
["57125003","UGA Student Chapter Of Ashrae","N","57125000","Y"]
["57125004","Society Of Women Engineers","N","57125000","Y"]
["57125005","Engineers Without Borders","N","57125000","Y"]
["57125006","Soc Of Environmental Engineers","N","57125000","Y"]
["57125007","Nat Society For Black Engineer","N","57125000","Y"]
["57125008","In. Electrical & Electronic E.","N","57125000","Y"]
["57125009","Am. Inst. Chemical Eng.","N","57125000","Y"]
["57125010","Am. Soc. Mechanical Eng.","N","57125000","Y"]
["57125011","Soc Of Automotive Engineers","N","57125000","Y"]
["57125012","Theta Tau","N","57125000","Y"]
["57125013","Int Soc For Optics & Photonics","N","57125000","Y"]
["57125014","Data Dawgs","N","57125000","Y"]
["57125015","Soc of Hispanic Pro Engineers","N","57125000","Y"]
["57126000","Environment Design-SA Budget","Y","57000000","N"]
["57126001","Environmental Design-SA","N","57126000","Y"]
["57126002","Stu Historic Preservation Org","N","57126000","Y"]
["57126003","Stu Enviro Planing Assoc","N","57126000","Y"]
["57126004","USGBC","N","57126000","Y"]
["57127000","Extended Campuses-SA","Y","57000000","N"]
["57127001","UGA At Tifton","N","57127000","Y"]
["57127002","UGA At Gwinnett Center","N","57127000","Y"]
["57127003","UGA At Griffin","N","57127000","Y"]
["57128000","FACS-SA","N","57000000","Y"]
["57129000","Forest Resources-SA","N","57000000","Y"]
["57130000","Journalism-SA Budget","N","57000000","N"]
["57130001","Journalism-SA","N","57130000","Y"]
["57130002","Advertising Club","N","57130000","Y"]
["57130003","Di Gamma Kappa","N","57130000","Y"]
["57130004","Graduate Caucus","N","57130000","Y"]
["57130005","Nat'L Assn Of Blk Journalists","N","57130000","Y"]
["57130006","PRSSA","N","57130000","Y"]
["57130007","ONA/SPJ","N","57130000","Y"]
["57130008","Culture Club","N","57130000","Y"]
["57130009","Int'L Assoc. Bus. Comm.","N","57130000","Y"]
["57130010","NAAP At UGA","N","57130000","Y"]
["57130011","Film Making Union","N","57130000","Y"]
["57130012","UGAZINE","N","57130000","Y"]
["57131000","Law-SA","N","57000000","Y"]
["57132000","UGA/AU Med Partner-SA","N","57000000","Y"]
["57133000","Pharmacy-SA","N","57000000","Y"]
["57134000","Public&Intl Affairs-SA","N","57000000","Y"]
["57135000","Public Health-SA","N","57000000","Y"]
["57136000","Social Work-SA Budget","N","57000000","N"]
["57136001","Social Work-SA","N","57136000","Y"]
["57136002","Bachelor's Of Social Work Club","N","57136000","Y"]
["57136003","Student Faculty Committee","N","57136000","Y"]
["57136004","Assn Blk Workers Stu Group","N","57136000","Y"]
["57136005","International Social Work Stu","N","57136000","Y"]
["57137000","Vet Medicine-SA","N","57000000","Y"]
["57150001","Rho Tau","N","57000000","Y"]
["57150003","Panhellenic Council","N","57000000","Y"]
["57150004","Miss UGA Pageant","N","57000000","Y"]
["57150005","Interfraternity Council","N","57000000","Y"]
["57150006","National Pan-Hel Council","N","57000000","Y"]
["57150007","Multi-Cultural Greek Council","N","57000000","Y"]
["57150008","Dance Marathon","N","57000000","Y"]
["57150009","Order Of Omega","N","57000000","Y"]
["57150010","WUOG Underwriting","N","57000000","Y"]
["57150011","National Student Exchange Fund","N","57000000","Y"]
["57150012","ASCP","N","57000000","Y"]
["57150013","Vibha Academic Bowl Outreach","N","57000000","Y"]
["57150014","Bag The Bag","N","57000000","Y"]
["57150015","Tate Center Bus Office Agency","N","57000000","Y"]
["57150016","Network Against Malaria","N","57000000","Y"]
["57150017","Ecotones","N","57000000","Y"]
["57150018","Project H.O.P.E. At UGA","N","57000000","Y"]
["57150019","NKBA Student Chapter At UGA","N","57000000","Y"]
["57150020","FACS Student Dietetic Assoc","N","57000000","Y"]
["57150021","Phi Upsilon Omicron-Chi","N","57000000","Y"]
["57150022","Fashion Design Student Assn","N","57000000","Y"]
["57150023","AFGA At UGA","N","57000000","Y"]
["57150024","Skydawgs Skydiving Club","N","57000000","Y"]
["57150025","Athens C.A.R.E.","N","57000000","Y"]
["57150026","Sports Business Club","N","57000000","Y"]
["57150027","Quiz Bowl Club Of UGA","N","57000000","Y"]
["57150028","Chroma","N","57000000","Y"]
["57150029","Operation Smile","N","57000000","Y"]
["57150030","Front Row Foundation","N","57000000","Y"]
["57150031","Students For Life At UGA","N","57000000","Y"]
["57150032","Multiracial Student Org","N","57000000","Y"]
["57150033","Communicaid+Nation","N","57000000","Y"]
["57150034","To Write Love On Her Arms UGA","N","57000000","Y"]
["57150035","Japanese Student Association","N","57000000","Y"]
["57150036","Korean Student Association","N","57000000","Y"]
["57150037","Hoop For Humanity","N","57000000","Y"]
["57150038","Saudi Students Association","N","57000000","Y"]
["57150039","Caribbean Student Association","N","57000000","Y"]
["57150040","Seize The Day At UGA","N","57000000","Y"]
["57150041","Collegetown Gospel Choir","N","57000000","Y"]
["57150042","End It Movement At UGA","N","57000000","Y"]
["57150043","UP At UGA","N","57000000","Y"]
["57150044","Ronald Mcdonald House Charties","N","57000000","Y"]
["57150045","UGA Phi Beta Lambda","N","57000000","Y"]
["57150046","Stu For Latino Empowerment","N","57000000","Y"]
["57150047","UGA One Health Club","N","57000000","Y"]
["57150048","For The Girls","N","57000000","Y"]
["57150049","Omega Tau","N","57000000","Y"]
["57150050","SSI At UGA","N","57000000","Y"]
["57150051","UBSLA","N","57000000","Y"]
["57150052","UGA Steel Bands","N","57000000","Y"]
["57150053","UGA Spikeball Club","N","57000000","Y"]
["57150054","Classic City Jazz","N","57000000","Y"]
["57150055","Assoc For Women In Sport Media","N","57000000","Y"]
["57150056","Laugh Out Loud","N","57000000","Y"]
["57150057","Campus Bike Repair Cooperative","N","57000000","Y"]
["57150058","Sigma Tau Delta","N","57000000","Y"]
["57150059","The Energy Concept","N","57000000","Y"]
["57150060","I Am Enough UGA","N","57000000","Y"]
["57150061","Phi Alpha Honor Society (Ssw)","N","57000000","Y"]
["57150062","Agronomy Grad Stu Assoc","N","57000000","Y"]
["57150063","CBUSA","N","57000000","Y"]
["57150064","Grads","N","57000000","Y"]
["57150065","Pre-Meds W/O Borders At UGA","N","57000000","Y"]
["57150066","Children'S Theatre Troupe","N","57000000","Y"]
["57150067","Minority Student Science Assoc","N","57000000","Y"]
["57150068","UGA CHAARG","N","57000000","Y"]
["57150069","Free The Girls At UGA","N","57000000","Y"]
["57150070","Minorities In Tech","N","57000000","Y"]
["57150071","Thirst Project","N","57000000","Y"]
["57150072","PrsSA John E Drewry Chapter","N","57000000","Y"]
["57150073","Young Black Kings Of Bmls","N","57000000","Y"]
["57150074","Dogs For The Paws","N","57000000","Y"]
["57150075","Bold UGA","N","57000000","Y"]
["57150076","Ad Club","N","57000000","Y"]
["57150077","Ehs Club","N","57000000","Y"]
["57150078","Public Health Association","N","57000000","Y"]
["57150079","Di Gamma Kappa","N","57000000","Y"]
["57150080","Mannrs At UGA","N","57000000","Y"]
["57150081","Mesa","N","57000000","Y"]
["57150082","Ecology Gso","N","57000000","Y"]
["57150083","Mbsa","N","57000000","Y"]
["57150084","CPNP UGA","N","57000000","Y"]
["57150085","International Business Society","N","57000000","Y"]
["57150086","The Nrrt Society","N","57000000","Y"]
["57150087","Ed Abroad Ambassadors UGA","N","57000000","Y"]
["57150088","Arts For The Cure","N","57000000","Y"]
["57150089","IEEE UGA","N","57000000","Y"]
["57150090","Assoc Of Black Social Workers","N","57000000","Y"]
["57150091","Disability Advocates In Action","N","57000000","Y"]
["57150092","ALPFA UGA","N","57000000","Y"]
["57150093","Red Cross UGA","N","57000000","Y"]
["57150094","Soc Of Business Intelligence","N","57000000","Y"]
["57150095","Women In Technology","N","57000000","Y"]
["57150096","Real Estate Society","N","57000000","Y"]
["57150097","Simple Charity","N","57000000","Y"]
["57150098","Nabj","N","57000000","Y"]
["57150099","Management Society","N","57000000","Y"]
["57150100","UGAsca","N","57000000","Y"]
["57150101","Society Of Entrepreneurs","N","57000000","Y"]
["57150102","Gamma Iota Sigma","N","57000000","Y"]
["57150103","Theta Tau","N","57000000","Y"]
["57150104","Agricultural Economics Club","N","57000000","Y"]
["57150105","Soc Of Automotive Engineers","N","57000000","Y"]
["57150106","Insurance Society","N","57000000","Y"]
["57150107","Delta Sigma Pi - Pi Chapter","N","57000000","Y"]
["57150108","Georgia Political Review","N","57000000","Y"]
["57150109","Engish Graduate Organization","N","57000000","Y"]
["57150110","You'Re Not Alone","N","57000000","Y"]
["57150111","Rock Lobster Records","N","57000000","Y"]
["57150112","Engineers Without Borders","N","57000000","Y"]
["57150113","UGA Cmda","N","57000000","Y"]
["57150114","The Arch Conservative","N","57000000","Y"]
["57150115","Music Only","N","57000000","Y"]
["57150116","AMWHO UGA","N","57000000","Y"]
["57150117","SMIS","N","57000000","Y"]
["57150118","American Marketing Association","N","57000000","Y"]
["57150119","CAERUS UGA","N","57000000","Y"]
["57150120","Pro Enter & Sports Assoc","N","57000000","Y"]
["57150121","SOPHE At UGA (Ga Chapter)","N","57000000","Y"]
["57150122","Athens Science Observer","N","57000000","Y"]
["57150123","Art For Athens","N","57000000","Y"]
["57150124","Billiard Club Of UGA","N","57000000","Y"]
["57150125","Team RWB","N","57000000","Y"]
["57150126","With Someone Else'S Money","N","57000000","Y"]
["57150127","Relay For Life","N","57000000","Y"]
["57150128","Ip Law Society At UGA","N","57000000","Y"]
["57150129","Shop With A Bulldawg","N","57000000","Y"]
["57150130","Aviation Club At UGA","N","57000000","Y"]
["57150131","Geology Club At UGA","N","57000000","Y"]
["57150132","Sexual Health Advocacy Group","N","57000000","Y"]
["57150133","Black Male Leadership Society","N","57000000","Y"]
["57150134","Medical Partnership Class Act","N","57000000","Y"]
["57150135","Swing Dance Club At UGA","N","57000000","Y"]
["57150136","ASU Agency","N","57000000","Y"]
["57150137","Wildlife Disease Assn Stud","N","57000000","Y"]
["57150138","UGA Student Food Pantry","N","57000000","Y"]
["57150139","Bahai Association Of UGA","N","57000000","Y"]
["57150140","Alzheimer'S Association @ UGA","N","57000000","Y"]
["57150141","IDEA Society","N","57000000","Y"]
["57150142","Dawgs For Diabetes Awareness","N","57000000","Y"]
["57150143","Active Minds At UGA","N","57000000","Y"]
["57150144","UGA Model United Nations","N","57000000","Y"]
["57150145","The Agency","N","57000000","Y"]
["57150146","MTNA Collegiate Chapter","N","57000000","Y"]
["57150147","Athens Church","N","57000000","Y"]
["57150148","WISE","N","57000000","Y"]
["57150149","International Justice Mission","N","57000000","Y"]
["57150150","UGA Tifton Campus Ambassadors","N","57000000","Y"]
["57150151","Fellowship Of Christian Grads","N","57000000","Y"]
["57150152","UGA E-Sports","N","57000000","Y"]
["57150153","LISTO","N","57000000","Y"]
["57150154","CHABAD @ UGA","N","57000000","Y"]
["57150155","Inspire UGA","N","57000000","Y"]
["57150156","SVA At UGA","N","57000000","Y"]
["57150157","Pre Med Magazine","N","57000000","Y"]
["57150158","Zeta Nu Chapter","N","57000000","Y"]
["57150159","SOAP","N","57000000","Y"]
["57150160","Fayo-Fight Against Yth Obesity","N","57000000","Y"]
["57150161","Phi Alpha Theta, Epsilon Pi","N","57000000","Y"]
["57150162","Alpha Lambda Delta","N","57000000","Y"]
["57150163","Omicron Delta Kappa","N","57000000","Y"]
["57150164","Pre-Pharmacy Society","N","57000000","Y"]
["57150165","Alternative Spring Break","N","57000000","Y"]
["57150166","Ballroom Dance Club","N","57000000","Y"]
["57150167","Latter-Day Saints Stu Assn","N","57000000","Y"]
["57150168","Collegiate Candidates","N","57000000","Y"]
["57150169","Christian Students","N","57000000","Y"]
["57150170","Pagan Student Association","N","57000000","Y"]
["57150172","Delta Phi Lambda","N","57000000","Y"]
["57150173","Georgia Daze","N","57000000","Y"]
["57150174","Speak Out For Species","N","57000000","Y"]
["57150175","National Council Negro Women","N","57000000","Y"]
["57150176","Abeneefoo Kuo","N","57000000","Y"]
["57150177","International Organizations","N","57000000","Y"]
["57150178","Baptist Collegiate Ministries","N","57000000","Y"]
["57150179","Demosthenian Society","N","57000000","Y"]
["57150180","Alpha Phi Omega - Beta Zeta","N","57000000","Y"]
["57150181","Golden Key","N","57000000","Y"]
["57150182","Bulldog Debates","N","57000000","Y"]
["57150183","Campus Crusade For Christ","N","57000000","Y"]
["57150184","Ga Pharmacist Magazine","N","57000000","Y"]
["57150185","Ballroom Performance Group","N","57000000","Y"]
["57150186","Ballet Ensemble","N","57000000","Y"]
["57150187","Indian Cultural Exchange","N","57000000","Y"]
["57150188","NAACP","N","57000000","Y"]
["57150189","Pi Sigma Alpha","N","57000000","Y"]
["57150190","Core Dance Company","N","57000000","Y"]
["57150191","Young Choreographer Series","N","57000000","Y"]
["57150192","Delta Sigma Theta Sorority","N","57000000","Y"]
["57150193","Future Health Promoters","N","57000000","Y"]
["57150194","Brown SUGA","N","57000000","Y"]
["57150195","Climbing Club","N","57000000","Y"]
["57150196","First Book UGA","N","57000000","Y"]
["57150197","The Chapel Bell","N","57000000","Y"]
["57150198","SEC Union Directors Mtg","N","57000000","Y"]
["57150199","Medlife at UGA","N","57000000","Y"]
["57150200","Eventing Team at UGA","N","57000000","Y"]
["57150201","Stress Free Me","N","57000000","Y"]
["57150202","HOSA at UGA","N","57000000","Y"]
["57150203","SPIA Student Union","N","57000000","Y"]
["57150204","YAF at UGA","N","57000000","Y"]
["57150205","DBGSA","N","57000000","Y"]
["57150206","Health for Kids","N","57000000","Y"]
["57150207","Sports Nutrition Association","N","57000000","Y"]
["57150208","Optics and Photonics Society","N","57000000","Y"]
["57150209","Creative Writing Club","N","57000000","Y"]
["57150210","Glam Dawgs","N","57000000","Y"]
["57150211","GSEB at UGA","N","57000000","Y"]
["57150212","Multicultural Bus Student Assn","N","57000000","Y"]
["57150213","SABA","N","57000000","Y"]
["57150214","Undergraduate Mock Trial","N","57000000","Y"]
["57150215","Unicef at UGA","N","57000000","Y"]
["57150216","Georgia Dolls","N","57000000","Y"]
["57150217","Sparke for Clarke","N","57000000","Y"]
["57150218","Tipi Raisers at UGA","N","57000000","Y"]
["60000000","VP for Finance & Admin","N","00000000","N"]
["60001000","Finance & Adminstration","N","60000000","Y"]
["60002000","President Emeritus","N","60000000","Y"]
["61000000","Univ Bus & Accounting Svcs","N","60000000","N"]
["61005000","UBAS Administration","N","61000000","Y"]
["61010000","F&A IT Support","N","61000000","Y"]
["61021000","Accounting","N","61000000","Y"]
["61022000","Accounts Payable","N","61000000","Y"]
["61025000","Payroll","N","61000000","Y"]
["61026000","Post Award Accounting","N","61000000","Y"]
["61027000","Procurement","N","61000000","Y"]
["61028000","Property Control","N","61000000","Y"]
["61030000","Bursar's Office","N","61000000","Y"]
["61031000","Student Accounts","N","61000000","Y"]
["61032000","Accounts Receivable Department","N","61000000","Y"]
["61040000","Administrative Services","N","61000000","Y"]
["61041000","Bulldog Print + Design","N","61000000","Y"]
["61042000","Directory Assistance","N","61000000","Y"]
["61043000","Mail & Receiving Services","N","61000000","Y"]
["62000000","University Budget Division","N","60000000","N"]
["62001000","University Budget Admin","N","62000000","Y"]
["62002000","University Budget Office","N","62000000","Y"]
["63000000","Human Resources Division","N","60000000","N"]
["63001000","Office of Human Resources","N","63000000","Y"]
["63002000","Employee Benefits","N","63000000","Y"]
["63003000","Employment Comp ER & Records","N","63000000","Y"]
["63004000","Org Design and Comp Services","N","63000000","Y"]
["63005000","Training and Development Dept","N","63000000","Y"]
["64000000","Facilities Planning","Y","60000000","N"]
["64001000","Facilities Planning OUA Oper","Y","64000000","N"]
["64001001","OUA Department Expenditures","N","64001000","Y"]
["64001010","Facilities Planning OUA Proj","Y","64000000","N"]
["64001011","OUA Special Project Costs","N","64001010","Y"]
["64001012","Capital Projects-Central","N","64001010","Y"]
["65000000","Environmental Safety","N","60000000","N"]
["65001000","Information Support Services (","N","65000000","Y"]
["65002000","Fire Safety","N","65000000","Y"]
["65003000","Admin","N","65000000","Y"]
["65004000","Hazmat","N","65000000","Y"]
["65005000","Environmental Compliance","N","65000000","Y"]
["65006000","Industrial Hygiene Occupationa","N","65000000","Y"]
["65007000","ESD Conversion","N","65000000","Y"]
["65008000","Ninety day storage units","N","65000000","Y"]
["66000000","Police Department","N","60000000","N"]
["66002000","UGA Police Services","N","66000000","Y"]
["66002001","800Mhz Radio System","N","66000000","Y"]
["67000000","Emergency Preparedness","N","60000000","N"]
["67001000","Emergency Preparedness","N","67000000","N"]
["67001001","Emergency Notification","N","67001000","Y"]
["67001002","Emergency Prep Operating","N","67001000","Y"]
["67001003","Emergency Prep Marketing","N","67001000","Y"]
["68000000","Facilities Management","N","60000000","N"]
["68001000","Facilities Management Admin","N","68000000","N"]
["68001001","FMD Admin - Business Office","N","68001000","Y"]
["68001002","FMD Admin - It","N","68001000","Y"]
["68001003","FMD Admin - Hr","N","68001000","Y"]
["68001004","FMD Admin - Safety","N","68001000","Y"]
["68001005","FMD Admin - AIM Clearing","N","68001000","Y"]
["68002000","Facilities Management Services","N","68000000","N"]
["68002001","FMD Svc Admin","N","68002000","Y"]
["68002002","FMD Svc Warehouse/Material Req","N","68002000","Y"]
["68002100","FMD Svc Auto Center","N","68002000","Y"]
["68002101","FMD Svc Motor Vehicle Pool","N","68002000","Y"]
["68002102","FMD Svc Support","N","68002000","Y"]
["68002103","FMD Svc Sanitation","N","68002000","Y"]
["68002200","FMD Svc Hsc Building Services","N","68002000","Y"]
["68002201","FMD Svc Building Services","N","68002000","Y"]
["68002202","FMD Svc Building Services Pres","N","68002000","Y"]
["68003000","Facilities Management Grounds","N","68000000","N"]
["68003001","FMD Grounds Admin","N","68003000","Y"]
["68003100","FMD Grounds Maintenance","N","68003000","Y"]
["68003101","FMD Grounds Heavy Equipment","N","68003000","Y"]
["68003102","FMD Grounds Sign Shop","N","68003000","Y"]
["68003200","FMD Grounds Hsc Zone","N","68003000","Y"]
["68004000","Facilities Management O&M","N","68000000","N"]
["68004001","FMD O&M Administration","N","68004000","Y"]
["68004100","FMD O&M Roof Shop","N","68004000","Y"]
["68004101","FMD O&M Building HVAC Shop","N","68004000","Y"]
["68004102","FMD O&M Plumbing Shop","N","68004000","Y"]
["68004103","FMD O&M Welding Shop","N","68004000","Y"]
["68004104","FMD O&M Sheet Metal Shop","N","68004000","Y"]
["68004105","FMD O&M Steam Production","N","68004000","Y"]
["68004106","FMD O&M Electric Shop","N","68004000","Y"]
["68004107","FMD O&M Structural Support","N","68004000","Y"]
["68004108","FMD O&M Structural Maint","N","68004000","Y"]
["68004109","FMD O&M Key Shop","N","68004000","Y"]
["68004110","FMD O&M Bio Contain","N","68004000","Y"]
["68004111","FMD Hsc Campus Wide Expenses","N","68004000","Y"]
["68004200","FMD O&M HSC Zone","N","68004000","Y"]
["68004201","FMD O&M East Zone","N","68004000","Y"]
["68004202","FMD O&M North Zone","N","68004000","Y"]
["68004203","FMD O&M Central Zone","N","68004000","Y"]
["68004204","FMD O&M South Zone","N","68004000","Y"]
["68004205","FMD O&M Off Campus","N","68004000","Y"]
["68005000","Facilities Management Work Req","N","68000000","N"]
["68005001","FMD Work Request Center","N","68005000","Y"]
["68006000","Facilities Management Energy","N","68000000","N"]
["68006001","FMD Energy Services","N","68006000","Y"]
["68006002","FMD Utility Locators","N","68006000","Y"]
["68007000","Facilities Management Engineer","N","68000000","N"]
["68007001","FMD Engineering Department","N","68007000","Y"]
["68007002","FMD Facilities Inventory","N","68007000","Y"]
["68007003","FMD Estimation","N","68007000","Y"]
["68008000","Facilities Management PM","N","68000000","N"]
["68008001","FMD Maintenance Projects","N","68008000","Y"]
["68009000","Facilities Management Sustain","N","68000000","N"]
["68009001","FMD Office Of Sustainability","N","68009000","Y"]
["68010000","Facilities Management Senior","N","68000000","N"]
["68010001","FMD Senior Administration","N","68010000","Y"]
["69000000","Auxiliary Services Division","N","60000000","N"]
["69001000","Aux Svcs Support Svcs","N","69000000","N"]
["69001010","Aux. Svcs Support Svcs.","N","69001000","Y"]
["69001050","Aux. Information Technology","N","69001000","Y"]
["69001080","Marketing","N","69001000","Y"]
["69001090","Interest Income - Group A","N","69001000","Y"]
["69030000","Dining Services","N","69000000","N"]
["69031000","Dining Services Administration","N","69030000","Y"]
["69031100","Business Operations Support","N","69030000","Y"]
["69031200","Central Food Operations Suppor","N","69030000","Y"]
["69031300","Maintenance Support","N","69030000","Y"]
["69031400","East Campus Commissary","N","69030000","Y"]
["69032000","Bulldog Bucks Service Account","N","69030000","Y"]
["69033000","Board Plan Operations","N","69030000","Y"]
["69033100","Bolton Dining Commons","N","69030000","Y"]
["69033200","Oglethorpe Dining Commons","N","69030000","Y"]
["69033300","Snelling Dining Commons","N","69030000","Y"]
["69033400","The Niche","N","69030000","Y"]
["69033500","Village Summit Dining Commons","N","69030000","Y"]
["69034000","Retail Operations","N","69030000","Y"]
["69034100","Branded Concepts","N","69030000","Y"]
["69034110","Au Bon Pain","N","69030000","Y"]
["69034130","Coffee & Bagels","N","69030000","Y"]
["69034140","Chick Fil A","N","69030000","Y"]
["69034150","Panda Express","N","69030000","Y"]
["69034160","Starbucks","N","69030000","Y"]
["69034200","Dining Services Self Branded C","N","69030000","Y"]
["69034220","Mobile Dining","N","69030000","Y"]
["69034230","Niche Pizza Co.","N","69030000","Y"]
["69034240","Red Clay Café","N","69030000","Y"]
["69034250","The Market at Tate","N","69030000","Y"]
["69034300","Campus Eateries","N","69030000","Y"]
["69034301","Tween the Pages","N","69030000","Y"]
["69034302","Bone Appetit","N","69030000","Y"]
["69034303","Champions Café","N","69030000","Y"]
["69034304","The Creamery","N","69030000","Y"]
["69034305","Dawg Bites","N","69030000","Y"]
["69034307","Dawg Pause","N","69030000","Y"]
["69034308","The Station","N","69030000","Y"]
["69034309","The Village Market","N","69030000","Y"]
["69035000","Catering","N","69030000","Y"]
["69051000","Parking Services","N","69000000","N"]
["69051100","Compliance","N","69051000","Y"]
["69051200","Parking Decks","N","69051000","Y"]
["69051201","East Village Deck","N","69051000","Y"]
["69051202","East Campus Deck","N","69051000","Y"]
["69051203","South Deck","N","69051000","Y"]
["69051204","Pac Deck","N","69051000","Y"]
["69051205","IM Deck","N","69051000","Y"]
["69051206","West Deck","N","69051000","Y"]
["69051207","North Deck","N","69051000","Y"]
["69051208","Carlton St Deck","N","69051000","Y"]
["69051209","Hull St Deck","N","69051000","Y"]
["69051210","Tate Deck","N","69051000","Y"]
["69051400","Parking Lots","N","69051000","Y"]
["69051410","Health Sciences Campus","N","69051000","Y"]
["69051420","Vet Med","N","69051000","Y"]
["69052000","Event Support","N","69000000","N"]
["69052100","Parking Event Support","N","69052000","Y"]
["69052200","Charters","N","69052000","Y"]
["69053000","Transportation Fleet Maintenan","N","69000000","N"]
["69053100","Fixed Route","N","69053000","Y"]
["69053200","Demand Response","N","69053000","Y"]
["69053300","Allocation","N","69053000","Y"]
["69053400","Departmental Maintenance Sales","N","69053000","Y"]
["69054000","Transit Operations","N","69000000","N"]
["69054100","Transit Fixed Route","N","69054000","Y"]
["69054200","Demand Response","N","69054000","Y"]
["69054300","Allocation","N","69054000","Y"]
["69055000","Alternative Transportation","N","69000000","N"]
["69055100","Park & Ride","N","69055000","Y"]
["69070000","Contractual Services","N","69000000","N"]
["69071000","University Bookstore","N","69070000","Y"]
["69072000","University Golfcourse Pro-Shop","N","69070000","Y"]
["69073000","Parkview Warehouse","N","69070000","Y"]
["69074000","Vending Services","N","69070000","Y"]
["69075000","Jittery Joes","N","69070000","Y"]
["69091000"," University Golf Course","N","69000000","N"]
["69091100","Golf Operations","N","69091000","Y"]
["69091200","Driving Range","N","69091000","Y"]
["69092000","Future Programs/Events","N","69000000","Y"]
["70000000","Athletics","N","00000000","N"]
["70001000","Athletics General","N","70000000","Y"]
["70001ACU","Academic Counsel Unit","N","70000000","Y"]
["70001BBL","Baseball","N","70000000","Y"]
["70001CHR","Cheerleading","N","70000000","Y"]
["70001COM","Sports Communication","N","70000000","Y"]
["70001CPL","Athletic Compliance","N","70000000","Y"]
["70001DEV","Athletic Development","N","70000000","Y"]
["70001EQU","Equestrian","N","70000000","Y"]
["70001FBL","Football","N","70000000","Y"]
["70001GAM","General Admin Men","N","70000000","Y"]
["70001GSP","General Sports","N","70000000","Y"]
["70001GYM","Gymnastics","N","70000000","Y"]
["70001MBB","Mens Basketball","N","70000000","Y"]
["70001MED","Sports Medicine","N","70000000","Y"]
["70001MGF","Mens Golf","N","70000000","Y"]
["70001MSW","Mens Swimming","N","70000000","Y"]
["70001MTN","Mens Tennis","N","70000000","Y"]
["70001MTR","Mens Track","N","70000000","Y"]
["70001PLT","Plant Operations","N","70000000","Y"]
["70001PRM","Promotions","N","70000000","Y"]
["70001SBL","Softball","N","70000000","Y"]
["70001SOC","Womens Soccer","N","70000000","Y"]
["70001TIX","Ticket Office","N","70000000","Y"]
["70001VLB","Volleyball","N","70000000","Y"]
["70001WBB","Womens Basketball","N","70000000","Y"]
["70001WGF","Womens Golf","N","70000000","Y"]
["70001WSW","Womens Swimming","N","70000000","Y"]
["70001WTN","Womens Tennis","N","70000000","Y"]
["70001WTR","Womens Track","N","70000000","Y"]
["71000000","VP for Dev & Alumni Relations","N","00000000","N"]
["71015000","DAR Alumni Relations","N","71000000","N"]
["71015099","DAR Alumni One Time Funding","N","71015000","Y"]
["71015100","DAR Alumni General","N","71015000","Y"]
["71015200","DAR Alumni Atlanta Office","N","71015000","Y"]
["71015300","DAR Alumni Executive Director","N","71015000","Y"]
["71015400","DAR Alumni Travel","N","71015000","Y"]
["71016000","DAR Vice President","N","71000000","N"]
["71016095","DAR VP Holding","Y","71016000","N"]
["71016098","DAR Budgeted Reserved Funds","Y","71016000","N"]
["71016099","DAR SR VP One Time Funding","N","71016000","Y"]
["71016100","DAR VP Operations","N","71016000","Y"]
["71016200","DAR Sr Assoc VP","N","71016000","Y"]
["71016300","DAR Leadership Gifts","N","71016000","Y"]
["71016400","DAR Principal Gifts","N","71016000","Y"]
["71016500","DAR Concierge Events","N","71016000","Y"]
["71016600","DAR Campaign","N","71016000","Y"]
["71016700","DAR Bank Of America Operating","N","71016000","Y"]
["71017000","DAR Development","N","71000000","N"]
["71017099","DAR Development One Time Fund","N","71017000","Y"]
["71017100","DAR Development General","N","71017000","Y"]
["71017200","DAR Regional Programs","N","71017000","Y"]
["71017300","DAR Gift And Estate Planning","N","71017000","Y"]
["71017400","DAR Donor Relations","N","71017000","Y"]
["71017500","DAR Leadership Giving","N","71017000","Y"]
["71017600","DAR College Relations","N","71017000","Y"]
["71134000","DAR Career Center","N","71000000","N"]
["71134099","DAR Career Ctr One Time Fund","N","71134000","Y"]
["71134100","DAR Career Planning","N","71134000","N"]
["71134101","DAR Career Center General Ops","N","71134000","Y"]
["71134102","DAR Career Ctr General Sales","N","71134000","Y"]
["71134111","DAR Spring Career Fair","N","71134100","Y"]
["71134112","DAR Fall Career Fair","N","71134100","Y"]
["71134113","Career Fairs General","N","71134100","Y"]
["71134114","Career Planning General","N","71134100","Y"]
["71136000","DAR IT","N","71000000","N"]
["71136099","DAR IT One Time Funding","N","71136000","Y"]
["71136100","DAR IT General Operating","N","71136000","Y"]
["71596000","DAR Finance & Talent Mgmt","N","71000000","N"]
["71596099","DAR Fin Tal Mgmt One Time Fund","N","71596000","Y"]
["71596100","DAR Budgets And Personnel","N","71596000","Y"]
["71596200","DAR Talent Management","N","71596000","Y"]
["71597000","Univ of Ga Foundation","N","71000000","N"]
["71597099","UGAF One Time Funding","N","71597000","Y"]
["71597100","UGAF General","N","71597000","Y"]
["71640000","DAR Corp & Foundation Rel","N","71000000","N"]
["71640099","DAR CFR One Time Funding","N","71640000","Y"]
["71640100","DAR CFR General","N","71640000","Y"]
["71641000","DAR Communications","N","71000000","N"]
["71641099","DAR Comm One Time Funding","N","71641000","Y"]
["71641100","DAR Communications General","N","71641000","Y"]
["71642000","DAR Annual Giving Const Dev","N","71000000","N"]
["71642099","DAR AGCD One Time Funding","N","71642000","Y"]
["71642100","DAR AGCD Director","N","71642000","Y"]
["71642200","DAR Annual Giving","N","71642000","Y"]
["71642300","DAR AGCD Prospect Management","N","71642000","Y"]
["71642400","DAR AGCD Research","N","71642000","Y"]
["71642500","DAR AGCD Records","N","71642000","Y"]
["71642600","DAR AGCD Advancement Services","N","71642000","Y"]
["71800000","Special Events","N","71000000","N"]
["71800001","Special Events Contingency","Y","71800000","N"]
["71800002","Special Events Legacy","N","71800000","Y"]
["71800099","Special Events One Time Fund","N","71800000","Y"]
["71800100","Special Events General","N","71800000","Y"]
["71820000","SE Student Events","N","71800000","N"]
["71820001","SE Honors","N","71820000","Y"]
["71820002","SE Foundation Fellows Events","N","71820000","Y"]
["71820003","SE Coca Cola First Gen","N","71820000","Y"]
["71820004","SE Student Ambass Events","N","71820000","Y"]
["71820005","SE Student Dinners/Receptions","N","71820000","Y"]
["71820006","SE Deer Run Fellows Events","N","71820000","Y"]
["71820007","SE First Yr Odyssey","N","71820000","Y"]
["71830000","SE Faculty/Staff Events","N","71800000","N"]
["71830001","SE New Dean/VP/Faculty Events","N","71830000","Y"]
["71830002","SE Faculty Events","N","71830000","Y"]
["71830003","SE Founders Day Luncheon","N","71830000","Y"]
["71830004","SE Staff Events","N","71830000","Y"]
["71840000","SE Diversity Events","N","71800000","Y"]
["71845000","SE Commencements","N","71800000","Y"]
["71850000","SE Donor Relations/Athletic Ev","N","71800000","N"]
["71850001","SE Football Home Games","N","71850000","Y"]
["71850002","SE Football Away Games","N","71850000","Y"]
["71850003","SE Post Season Games","N","71850000","Y"]
["71850004","SE Gday Football Game","N","71850000","Y"]
["71860000","SE Community Events","N","71800000","N"]
["71860001","SE Holiday Greeting Cards","N","71860000","Y"]
["71860002","SE Holiday Open House","N","71860000","Y"]
["71860003","SE State Of The University","N","71860000","Y"]
["71860004","SE Univ Women Coffee Club","N","71860000","Y"]
["71860005","SE Spotlight On The Arts","N","71860000","Y"]
["71870000","SE Development Events","N","71800000","N"]
["71870001","SE Small Donor Events","N","71870000","Y"]
["71870002","SE National Presence","N","71870000","Y"]
["71870003","SE DC Receptions","N","71870000","Y"]
["71870004","SE Peabody Events","N","71870000","Y"]
["71870005","SE Parents & Families Leadrshp","N","71870000","Y"]
["71880000","SE Special Campus Events","N","71800000","N"]
["71880001","SE Dignitary Visits","N","71880000","Y"]
["71880002","SE Mcbee Lecture/Dinner","N","71880000","Y"]
["71890000","SE Dedications/Groundbreakings","N","71800000","N"]
["71890001","SE Groundbreakings","N","71890000","Y"]
["71890002","SE Building Dedications","N","71890000","Y"]
["72000000","VP Marketing & Communications","N","00000000","N"]
["72001000","VP Mar Comm Budget","N","72000000","N"]
["72001001","Personal Services","N","72001000","Y"]
["72001002","One Time Funding","N","72001000","Y"]
["72001003","Special Projects","N","72001000","Y"]
["72001004","VP Office of Marketing & Comm","N","72001000","Y"]
["72001005"," Central Admin","N","72001000","Y"]
["72001006"," Professional Development","N","72001000","Y"]
["72001007","Information Technology","N","72001000","Y"]
["72001008","UGAF Restricted","N","72001000","Y"]
["72001009"," Media Communications","N","72001000","Y"]
["72001010"," Columns","N","72001000","Y"]
["72001011","DS Social Media","N","72001000","Y"]
["72001012","DS Web Services","N","72001000","Y"]
["72001013","CS Design","N","72001000","Y"]
["72001014","CS Multimedia","N","72001000","Y"]
["72001015","Brand Strategy","N","72001000","Y"]
["72001016","GA Magazine","N","72001000","Y"]
["72001017","Visitors Center","N","72001000","Y"]
["72001018","WUGA-FM Radio","N","72001000","Y"]
["73000000","VP Government Relations","N","00000000","N"]
["73698000","Government Relations","N","73000000","N"]
["73698099","Government Relations One Time","N","73698000","Y"]
["73698100","Government Relations General","N","73698000","Y"]
["73698200","GR Community Relations","N","73698000","Y"]
["73698300","GR State Relations","N","73698000","Y"]
["73698400","GR Federal Relations","N","73698000","Y"]
["74000000","Institutional","N","00000000","N"]
["74001000","Leases and Other","N","74000000","N"]
["74001001","Leases","N","74001000","Y"]
["74001002","Other Institutional","N","74001000","Y"]
["74001003","Insurance","N","74001000","Y"]
["74001004","Background Checks","N","74001000","Y"]
["74001005","Hotline","N","74001000","Y"]
["74002000","Institutional Benefits","N","74000000","Y"]
["74003000","Campus Infrastructure","N","74000000","Y"]
["74004000","General University Support","N","74000000","Y"]
["74005000","Capital Projects","N","74000000","Y"]
["74006000","MRR Projects","N","74000000","Y"]
["74007000","Centrally Allocated Funding","N","74000000","Y"]
["74008000","Student Technology Fees","N","74000000","Y"]
["74009000","Contract Overhead","N","74000000","Y"]
["74010000","Institutional Revenue","N","74000000","Y"]
["74011000","Student Fee Revenue - HOLD","Y","74000000","N"]
["74012000","UGARF IDC Recovery","N","74000000","Y"]
["74013000","Off Campus Programs","N","74000000","Y"]
["74014000","Indirect Cost Rec - HOLD","Y","74000000","N"]
["74015000","Contract Overhead - HOLD","Y","74000000","N"]
["74016000","Miscellaneous Income - HOLD","Y","74000000","N"]
["74017000","FAC Fee Ramsey OPS - HOLD","Y","74000000","N"]
["75000000","Student Aid","N","00000000","N"]
["75001000","Endowments","N","75000000","Y"]
["75002000","Endowment Student Aid","N","75000000","Y"]
["75003000","Federal Student Aid","N","75000000","Y"]
["75004000","Foundation Student Aid","N","75000000","Y"]
["75005000","State Student Aid","N","75000000","Y"]
["75006000","Other Student Aid","N","75000000","Y"]
["75006500","Alternative Loans/Scholarship","N","75000000","Y"]
["75071613","Veterinary Medicine NIH","N","75000000","Y"]
["75072478","Pharmacy NIH","N","75000000","Y"]
["75073386","Law Enforcement Education Prog","N","75000000","Y"]
["75074290","GHEAC","N","75000000","Y"]
["75075020","Omer C Aderhold","N","75000000","Y"]
["75075022","Alpha Zeta","N","75000000","Y"]
["75075024","Alumni Association","N","75000000","Y"]
["75075026","Dorothea Bevins Anderson","N","75000000","Y"]
["75075032","Athens Lions Club","N","75000000","Y"]
["75075046","Dot Watkins Bailey","N","75000000","Y"]
["75075048","Claud B Barrett","N","75000000","Y"]
["75075052","Dupree Barrett","N","75000000","Y"]
["75075064","John D Bolton Jr Memorial","N","75000000","Y"]
["75075068","Charles H Brand","N","75000000","Y"]
["75075072","Mary Upshaw Broach","N","75000000","Y"]
["75075092","B F Bullard","N","75000000","Y"]
["75075094","Elizabeth M Bullard","N","75000000","Y"]
["75075120","A F Churchill Memorial","N","75000000","Y"]
["75075128","Class Of 1926","N","75000000","Y"]
["75075132","Hawes Cloud Memorial","N","75000000","Y"]
["75075136","Obadiah Lewis Cloud","N","75000000","Y"]
["75075148","Lucy Cobb Institute","N","75000000","Y"]
["75075160","Edward T Comer","N","75000000","Y"]
["75075188","Blanche Mohr Davis","N","75000000","Y"]
["75075194","Dawson 4-H Club Of Georgia","N","75000000","Y"]
["75075198","Ba & Tn Denmark","N","75000000","Y"]
["75075200","William S Denmark Memorial","N","75000000","Y"]
["75075204","Eugene &  Harry Dodd","N","75000000","Y"]
["75075208","Druid Hills Methodist Church","N","75000000","Y"]
["75075212","J C Dukes Agriculture","N","75000000","Y"]
["75075216","J C Dukes Bus Administration","N","75000000","Y"]
["75075220","J C Dukes Home Economics","N","75000000","Y"]
["75075242","Richard J Ferguson Memorial","N","75000000","Y"]
["75075243","L Findley Af Gardner Meml","N","75000000","Y"]
["75075244","W W Findley Scholarship","N","75000000","Y"]
["75075254","Walter T Forbes Sr Memorial","N","75000000","Y"]
["75075260","Forestry","N","75000000","Y"]
["75075264","Georgia Four H Club","N","75000000","Y"]
["75075266","Mary J Franklin","N","75000000","Y"]
["75075276","Ebb W Gallaher Memorial","N","75000000","Y"]
["75075296","Girls Canning Club","N","75000000","Y"]
["75075310","Colonel William L Grayson","N","75000000","Y"]
["75075318","Pinkus Happ","N","75000000","Y"]
["75075320","James C Harris Scholarship","N","75000000","Y"]
["75075324","Harris W Norris Memorial","N","75000000","Y"]
["75075332","Harold M Heckman Jr Memorial","N","75000000","Y"]
["75075336","Harold M Heckman Jr Music","N","75000000","Y"]
["75075337","Morris Hirsch Memorial","N","75000000","Y"]
["75075338","Harold Hirsch","N","75000000","Y"]
["75075339","A L Hull","N","75000000","Y"]
["75075340","James H Hunt","N","75000000","Y"]
["75075348","Jefferson High School","N","75000000","Y"]
["75075350","Albert & Dorothy Jenkins Jourl","N","75000000","Y"]
["75075376","Clyde L & John King","N","75000000","Y"]
["75075388","Landscape Architecture","N","75000000","Y"]
["75075392","Frances Eugene Lanier","N","75000000","Y"]
["75075398","Francis A Lipscomb","N","75000000","Y"]
["75075404","Joseph H Lumpkin Scholarship","N","75000000","Y"]
["75075420","Mr & Mrs T O Marshall","N","75000000","Y"]
["75075432","Moina Michael Scholarship","N","75000000","Y"]
["75075436","Miscellaneous","N","75000000","Y"]
["75075444","Thomas E Mitchell","N","75000000","Y"]
["75075448","Moon","N","75000000","Y"]
["75075452","Mac Moore","N","75000000","Y"]
["75075462","Roxie Widdowson Neal","N","75000000","Y"]
["75075464","R C Neely","N","75000000","Y"]
["75075465","Henry E Newton Loan","N","75000000","Y"]
["75075466","Malvern Strawn Pace","N","75000000","Y"]
["75075477","George F Peabody","N","75000000","Y"]
["75075480","Phi Delta Phi","N","75000000","Y"]
["75075484","Benjamin Z Phillips Law Schol","N","75000000","Y"]
["75075488","John T Pittard Memorial","N","75000000","Y"]
["75075496","Lucy Leah Redwine Memorial","N","75000000","Y"]
["75075500","Albon W Reed Memorial","N","75000000","Y"]
["75075525","William J Iv & Addie D Russell","N","75000000","Y"]
["75075526","William J Jr & Amma W Russell","N","75000000","Y"]
["75075538","James O Scaife Jr Memorial","N","75000000","Y"]
["75075540","Shamrock System","N","75000000","Y"]
["75075550","Special","N","75000000","Y"]
["75075551","Andrew M Soule","N","75000000","Y"]
["75075553","C M & Bernice C Stripling","N","75000000","Y"]
["75075564","Mark Sullivan","N","75000000","Y"]
["75075588","Berryman T Thompson Education","N","75000000","Y"]
["75075592","Meldrin Thompson","N","75000000","Y"]
["75075596","Max Thurmond Memorial","N","75000000","Y"]
["75075604","Frances C Tucker","N","75000000","Y"]
["75075608","Leila Bates Tye","N","75000000","Y"]
["75075612","Union Bag Camp Paper Company","N","75000000","Y"]
["75075614","Juddie Wall","N","75000000","Y"]
["75075624","Louis Wellhouse Memorial","N","75000000","Y"]
["75075630","Rebecca E Westbrook","N","75000000","Y"]
["75075636","Cecil Wilcox","N","75000000","Y"]
["75075638","Allie Prickett William","N","75000000","Y"]
["75075646","Dr Arnold Wrabel","N","75000000","Y"]
["75075648","Ida A Young","N","75000000","Y"]
["75075650","Emory Hospitals Pass Fund","N","75000000","Y"]
["75075651","John Alton Hosch Stdt Loan Fnd","N","75000000","Y"]
["75075652","Berner Loan Fund","N","75000000","Y"]
["75076014","Griffin Student Emergency","N","75000000","Y"]
["75076028","Athens Kiwanis Club","N","75000000","Y"]
["75076034","Athens City Panhellenic","N","75000000","Y"]
["75076062","Bohn Loan Fund","N","75000000","Y"]
["75076164","Mccarthy Crenshaw Memorial","N","75000000","Y"]
["75076308","Professor B F Grant Emergency","N","75000000","Y"]
["75076341","Coll-Family&Consumer Sciences","N","75000000","Y"]
["75076342","Interfraternity Council","N","75000000","Y"]
["75076458","Natl Assoc Of Fedl Veterinarns","N","75000000","Y"]
["75076492","Clifford Pratt Memorial","N","75000000","Y"]
["75076549","I A Solomons Jr Memorial Phar","N","75000000","Y"]
["75076556","Students Emergency","N","75000000","Y"]
["75076560","Student Veterans","N","75000000","Y"]
["75076611","University Of Ga Law Dames","N","75000000","Y"]
["75076640","Charles C Wilson Memorial","N","75000000","Y"]
["75077502","Regents Scholarship","N","75000000","Y"]
["75078268","Eugene D Freeman Memorial","N","75000000","Y"]
["75079460","Perkins Loan Fund","N","75000000","Y"]

{"sheet":"Transactional Departments","index":5,"n_rows":5464,"n_cols":5,"rows_kept":5464,"cut":false,"hidden":false,"merged":[]}
["Department #","Dept Description","Budget Only?","Rollup to","Accepts Transactions? "]
[null,"None",null,null,"Y"]
["10001000","President's Office","N","10000000","Y"]
["10001001","Subsistence Allowance","N","10000000","Y"]
["10001002","Admin Minority Recruitment","N","10000000","Y"]
["10001003","457(f) Deferred Compensation","N","10000000","Y"]
["10002000","Internal Audit","N","10000000","Y"]
["10003000","Applicant Clearinghouse","N","10000000","Y"]
["10004000","Equal Opportunity Office","N","10000000","Y"]
["10005000","Legal Affairs Office","N","10000000","Y"]
["14001001","AA Administration","N","14001000","Y"]
["14001002","Communications","N","14001000","Y"]
["14001003","VPAA Tech","N","14001000","Y"]
["14001101","Faculty Development","N","14001100","Y"]
["14001102","Elements","N","14001100","Y"]
["14001103","Faculty Affairs Admin","N","14001100","Y"]
["14001201","Commencement","N","14001200","Y"]
["14001202","Honors Day","N","14001200","Y"]
["14001203","Charter Lecture","N","14001200","Y"]
["14001204","Academic Programs Admin","N","14001200","Y"]
["14001301","Council For The Arts","N","14001300","Y"]
["14001302","Accreditation","N","14001300","Y"]
["14001303","Program Review","N","14001300","Y"]
["14001304","Study in 2nd Discipline","N","14001300","Y"]
["14001305","State of Art Conference","N","14001300","Y"]
["14001400","University Wide Support","N","14000000","Y"]
["14001500","Memberships","N","14000000","Y"]
["14002001","GMOA Departmental Adm","N","14002000","Y"]
["14002002","Museum Shop","N","14002000","Y"]
["14002003","Museum Publications","N","14002000","Y"]
["14002004","Museum Rentals","N","14002000","Y"]
["14002005","Museum Daccessioning","N","14002000","Y"]
["14002006","Green Symposium","N","14002000","Y"]
["14002007","GMOA Education Workshop","N","14002000","Y"]
["14003001","Instruction","N","14003000","Y"]
["14003002","Honors IT","N","14003000","Y"]
["14003003","Honors Acad Support","N","14003000","Y"]
["14003004","CURO Program","N","14003000","Y"]
["14004001","IHE Administration","N","14004000","Y"]
["14004002","Governer'S Teaching Fellows","N","14004000","Y"]
["14004003","Executive Edd","N","14004000","Y"]
["14004004","UGARF Support","N","14004000","Y"]
["14005001","OID Administration","N","14005000","Y"]
["14005002","Sponsorships","N","14005000","Y"]
["14005003","OID Programs","N","14005000","Y"]
["14005004","Faculty Support","N","14005000","Y"]
["14005101","OID Projects Admin","N","14005100","Y"]
["14005102","Freedom Breakfast","N","14005100","Y"]
["14005103","Div Training","N","14005100","Y"]
["14005104","Faculty Support","N","14005100","Y"]
["14005200","Georgia Daze Program","N","14000000","Y"]
["14005301","Ga African Amer Male Exp GAAME","N","14005300","Y"]
["14005302","Black Male Leader Society BMLS","N","14005300","Y"]
["14005401","Faculty Support","N","14005400","Y"]
["14005402","Program Support","N","14005400","Y"]
["14005501","PSLSAMP Administration","N","14005500","Y"]
["14005502","Fort Valley","N","14005500","Y"]
["14005503","Kennesaw","N","14005500","Y"]
["14005504","Savannah State","N","14005500","Y"]
["14005505","Ga Tech","N","14005500","Y"]
["14005506","Ga Perim","N","14005500","Y"]
["14005507","Kennesaw-Marietta","N","14005500","Y"]
["14005601","Conf Activity","N","14005600","Y"]
["14005602","Summer Research","N","14005600","Y"]
["14005700","PSLSAMP Conf Income","N","14000000","Y"]
["14006000","International Education","N","14000000","Y"]
["14006102","OIE Admin Office","N","14006100","Y"]
["14006103","International Partnerships","N","14006100","Y"]
["14006104","Public Relations","N","14006100","Y"]
["14006105","EA Fund","N","14006100","Y"]
["14006106","RC State Staff Support","N","14006100","Y"]
["14006107","IMG Support","N","14006100","Y"]
["14006108","IT Fund","N","14006100","Y"]
["14006203","Cortona Lease","N","14007200","Y"]
["14006401","SEVIS Fees","N","14006400","Y"]
["14006402","Immigration Servs","N","14006400","Y"]
["14006403","Costa Rica Lease","N","14007400","Y"]
["14006501","CAF Fee","N","14006500","Y"]
["14006502","Exchange Proc Fee","N","14006500","Y"]
["14006503","Activity/SA Fair","N","14006500","Y"]
["14006601","Peace Corp","N","14006600","Y"]
["14006602","Dooley","N","14006600","Y"]
["14006603","Oxford Lease","N","14007600","Y"]
["14006701","BSMP Pass Thru","N","14006700","Y"]
["14006702","Exchange Account","N","14006700","Y"]
["14006703","Exchange Sec Housing","N","14006700","Y"]
["14006801","Grad School Travel Grant","N","14006800","Y"]
["14007001","Study Abroad Allocation","N","14007000","Y"]
["14007002","Study Abroad Deposit Sweep","N","14007000","Y"]
["14007003","Study Abroad Contingency","N","14007000","Y"]
["14007050","Croatia Grant Companion","N","14007000","Y"]
["14007101","Residential Center Admin","N","14007100","Y"]
["14007201","Cortona Program Contingency","N","14007200","Y"]
["14007202","Cortona Operations Contingency","N","14007200","Y"]
["14007205","CO Lab Fee","N","14007200","Y"]
["14007210","CO DSS Admin","N","14007200","Y"]
["14007220","CO Tuition Admin","N","14007200","Y"]
["14007230","CO Severini Lease","N","14007200","Y"]
["14007401","Costa Rica Program Contingency","N","14007400","Y"]
["14007402","Costa Rica Operations Continge","N","14007400","Y"]
["14007405","CR Lab Fee","N","14007400","Y"]
["14007410","CR DSS Admin","N","14007400","Y"]
["14007420","CR Tuition Admin","N","14007400","Y"]
["14007601","Oxford Program Contingency","N","14007600","Y"]
["14007602","Oxford Operations Contingency","N","14007600","Y"]
["14007610","Ox DSS Admin","N","14007600","Y"]
["14008001","Performing Arts Admin","N","14008000","Y"]
["14008002","Non-Pac Ticket Sales","N","14008000","Y"]
["14008003","PAC - Rentals","N","14008000","Y"]
["14008004","PAC - Gift Cards","N","14008000","Y"]
["14008005","PAC - All Arts Cards","N","14008000","Y"]
["14008006","PAC - Taxable Fees","N","14008000","Y"]
["14008007","PAC - Fees","N","14008000","Y"]
["14008008","PAC - Single Ticket Revenue","N","14008000","Y"]
["14008009","PAC - Season Ticket Revenue","N","14008000","Y"]
["14008010","PAC - Merchandising","N","14008000","Y"]
["14008011","PAC - Concessions","N","14008000","Y"]
["14008012","PAC - Restoration Fees","N","14008000","Y"]
["14009100","SKIO General Research","N","14009000","Y"]
["14009110","Biological Research","N","14009000","Y"]
["14009120","Chemical Research","N","14009000","Y"]
["14009130","Geological Research","N","14009000","Y"]
["14009140","Physical Research","N","14009000","Y"]
["14009200","GRNMS/NOAA Grant","N","14009000","Y"]
["14009210","ONMS/NOAA Grant","N","14009000","Y"]
["14009300","SKIO Administration","N","14009000","Y"]
["14009450","Research Vessel Operations","N","14009400","Y"]
["14009470","Research Vessel Marine Tech","N","14009400","Y"]
["14009480","Small Boats Operations","N","14009400","Y"]
["14009510","Plant Administration","N","14009500","Y"]
["14009520","Plant Operations","N","14009500","Y"]
["14009600","Skidaway Institute - Housing","N","14000000","Y"]
["15100001","Libraries Budget","N","15100000","Y"]
["15100ARC","Lib Archival Supplies","N","15100000","Y"]
["15100CMP","Lib Computer Hardware&Software","N","15100000","Y"]
["15100CPY","Lib Costs - Copy, Micro, Scan","N","15100000","Y"]
["15100DDS","Lib Document Destruction","N","15100000","Y"]
["15100FMD","Lib FMD","N","15100000","Y"]
["15100GNP","Lib Georgia Newspaper Project","N","15100000","Y"]
["15100MKS","Lib Makerspace","N","15100000","Y"]
["15100PHN","Lib Phone","N","15100000","Y"]
["15100TEL","Lib Telecommunications","N","15100000","Y"]
["15100VTM","Lib Vehicle","N","15100000","Y"]
["15101000","Libraries Sales","N","15100000","Y"]
["15102000","Miller Learning Center Income","N","15100000","Y"]
["15103000","Library Homeplace Graham","N","15100000","Y"]
["15105000","Library Security Main","N","15100000","Y"]
["15107000","Copy Services Income","N","15100000","Y"]
["15108000","Media/Peabody Income","N","15100000","Y"]
["15112000","Galileo GIL","N","15100000","Y"]
["15114000","Special Collections Lib Income","N","15100000","Y"]
["15115001","MLC Budget","N","15115000","Y"]
["15115FMD","MLC Fmd","N","15115000","Y"]
["15115SEC","MLC Security","N","15115000","Y"]
["15116000","Digital Library Of Georgia","N","15100000","Y"]
["15117000","Galileo","N","15100000","Y"]
["15119000","Digital Humanities Lab Income","N","15100000","Y"]
["15120000","Lib Other General - FYO","N","15100000","Y"]
["15121001","SCL Budget","N","15121000","Y"]
["15121FMD","SCL Fmd","N","15121000","Y"]
["15121MNT","SCL Facility Maintenance","N","15121000","Y"]
["15121SEC","Security","N","15121000","Y"]
["15123000","Georgia Capitol History Museum","N","15100000","Y"]
["15125000","Carnegie","N","15100000","Y"]
["15155000","Libraries Book Sales","N","15100000","Y"]
["15186000","Lillian Smith Book Awards","N","15100000","Y"]
["15187000","Libraries Carrel Key Deposit","N","15100000","Y"]
["15200001","Libraries Materials Budget","N","15200000","Y"]
["15200MEQ","Lib Mtrls Maint Equip","N","15200000","Y"]
["15200MSH","Lib Mtrls Med Ship Handling","N","15200000","Y"]
["15400001","The Press Budget","N","15400000","Y"]
["15410ACG","Acq General","N","15400000","Y"]
["15411AE1","Acq Editor 1","N","15400000","Y"]
["15412AE2","Acq Editor 2","N","15400000","Y"]
["15413AE3","Acq Editor 3","N","15400000","Y"]
["15414AE4","Acq Editor 4","N","15400000","Y"]
["15415AE5","Acq Editor 5","N","15400000","Y"]
["15416AE6","Acq Editor 6","N","15400000","Y"]
["15417AE7","Acq Editor 7","N","15400000","Y"]
["15420EDT","Editorial","N","15400000","Y"]
["15430DAP","Design And Production","N","15400000","Y"]
["15441GEN","Marketing General","N","15400000","Y"]
["15442PUB","Marketing Publicity","N","15400000","Y"]
["15443ADV","Marketing Advertising","N","15400000","Y"]
["15444EXH","Marketing Exhibits","N","15400000","Y"]
["15445DML","Marketing Direct Mail","N","15400000","Y"]
["15446SAL","Marketing Sales","N","15400000","Y"]
["15460DST","Distribution","N","15400000","Y"]
["15469SPF","Special Funding","N","15400000","Y"]
["15475DEV","Development","N","15400000","Y"]
["15485NGE","New Georgia Encyclopedia","N","15400000","Y"]
["15491ADM","Administration","N","15400000","Y"]
["15492BUS","Business","N","15400000","Y"]
["15493DAR","Deposits Accounts Receivable","N","15400000","Y"]
["15493GEN","Deposits General","N","15400000","Y"]
["15493INC","Deposits Income","N","15400000","Y"]
["15493PER","Deposits Permissions","N","15400000","Y"]
["15493POE","Deposits Poetry","N","15400000","Y"]
["15493SFI","Deposits Short Fiction","N","15400000","Y"]
["15493SRT","Deposits Subrights","N","15400000","Y"]
["15493SUB","Deposits Subsidy","N","15400000","Y"]
["15495EBK","Ebook Book Costs","N","15400000","Y"]
["15495GEN","General Book Costs","N","15400000","Y"]
["15495NEW","New Book Costs","N","15400000","Y"]
["15495PLT","Plant Costs","N","15400000","Y"]
["15495POD","Pod Book Costs","N","15400000","Y"]
["15495RST","Restock Book Costs","N","15400000","Y"]
["15497ADV","Advance Royalty","N","15400000","Y"]
["15497ROY","Annual Royalty","N","15400000","Y"]
["15499GEN","General","N","15400000","Y"]
["15500001","Georgia Review General","N","15500000","Y"]
["16001001","EITS VPIT Office","N","16001000","Y"]
["16001ISW","EITS Infrastructure Software","N","16001000","Y"]
["16002000","EITS Planning & Engagement","N","16001000","Y"]
["16003000","EITS Finance & Business Svc","N","16001000","Y"]
["16003BOR","EITS FBS BOR Reimburse","N","16001000","Y"]
["16003CIS","EITS FBS Income Support","N","16001000","Y"]
["16004000","EITS Information Security","N","16001000","Y"]
["16005000","EITS Institutional Research","N","16001000","Y"]
["16006000","EITS Data & Analytics","N","16001000","Y"]
["16007000","EITS Admin Information Sys","N","16001000","Y"]
["16008000","EITS Client Support","N","16001000","Y"]
["16008DSK","EITS Desktop Support","N","16001000","Y"]
["16008HDK","EITS Help Desk","N","16001000","Y"]
["16008IDM","EITS Client Support IDM","N","16001000","Y"]
["16008KSK","EITS Print Kiosk Support","N","16001000","Y"]
["16008LAB","EITS On-Site Lab Staffing","N","16001000","Y"]
["16008RDI","EITS Remote Desktop Image Mgt","N","16001000","Y"]
["16008RSP","EITS Remote Support Portal","N","16001000","Y"]
["16008TDX","EITS Teamdynamix","N","16001000","Y"]
["16009000","EITS CTO Office","N","16001000","Y"]
["16010000","EITS Network Engineering","N","16001000","Y"]
["16011000","EITS Research Computing","N","16001000","Y"]
["16011BIP","EITS GACRC Cluster Buy-In Prgm","N","16001000","Y"]
["16011GAC","EITS GACRC Prgm","N","16001000","Y"]
["16011OVP","EITS GACRC - OVPR Prgm","N","16001000","Y"]
["16012000","EITS Systems Engineering","N","16001000","Y"]
["16012CSP","EITS Consulting & Special Prjt","N","16001000","Y"]
["16012EML","EITS Sys Engineering Email","N","16001000","Y"]
["16012IFS","EITS Institutional File Stora","N","16001000","Y"]
["16012LGY","EITS Legacy","N","16001000","Y"]
["16012RFS","EITS Research Insitut File Sto","N","16001000","Y"]
["16012SFS","EITS Secure Institut File Stor","N","16001000","Y"]
["16012VDI","EITS Virtual Desktop Image Mgt","N","16001000","Y"]
["16012VSR","EITS Virtual Server","N","16001000","Y"]
["16013000","EITS Telephone Services","N","16001000","Y"]
["16014000","EITS Web & Mobile Tech","N","16001000","Y"]
["16014D2L","EITS Instructional D2L","N","16001000","Y"]
["16014DOC","EITS Document Mgt Services","N","16001000","Y"]
["16014MAP","EITS Mobile Apps","N","16001000","Y"]
["16015000","EITS Student Information Svcs","N","16001000","Y"]
["16016000","EITS Identity Management/EAI","N","16001000","Y"]
["16020000","EITS Operations & Infrastruct","N","16001000","Y"]
["16021000","EITS Network Infrastructure","N","16001000","Y"]
["16021MLC","EITS MLC Network","N","16001000","Y"]
["16021STS","EITS Student Tech Services","N","16001000","Y"]
["16021TEL","EITS Telecomm Install","N","16001000","Y"]
["16021WRL","EITS Wireless","N","16001000","Y"]
["16022000","EITS Network Support Partners","N","16001000","Y"]
["16023000","EITS Network Operations","N","16001000","Y"]
["16023RCN","EITS Remote Campus Networking","N","16001000","Y"]
["16024000","EITS Data Center Operations","N","16001000","Y"]
["16024BDC","EITS Boyd Data Center Hosting","N","16001000","Y"]
["16025000","EITS ConnectUGA","N","16001000","Y"]
["16030000","EITS FBS Contract & Licens","N","16001000","Y"]
["16030ADB","EITS FBS C&L Adobe","N","16001000","Y"]
["16030G2M","EITS FBS C&L Go To Meeting","N","16001000","Y"]
["16030LVW","EITS FBS C&L LabView","N","16001000","Y"]
["16030MLB","EITS FBS C&L Matlab","N","16001000","Y"]
["16030MMT","EITS FBS C&L Mathematica","N","16001000","Y"]
["16030OTH","EITS FBS C&L Other","N","16001000","Y"]
["16030SPS","EITS FBS C&L SPSS dept","N","16001000","Y"]
["17100001","CAES Dean & Director Sum","N","17100000","Y"]
["17100100","CAES Dean","N","17100000","Y"]
["17100200","Office Admin","N","17100000","Y"]
["17100300","Program Support","N","17100000","Y"]
["17100310","Lead21","N","17100000","Y"]
["17100320","Assoc Public Landgrant Inst","N","17100000","Y"]
["17100330","Southern Region Small Fruit","N","17100000","Y"]
["17100340","Advisory Council","N","17100000","Y"]
["17100350","Searches","N","17100000","Y"]
["17101001","Tifton Campus Sum","N","17101000","Y"]
["17101100","Tifton Asst Dean","N","17101000","Y"]
["17101200","Tifton Office Admin","N","17101000","Y"]
["17102001","Griffin Campus Sum","N","17102000","Y"]
["17102100","Griffin Campus Dir","N","17102000","Y"]
["17102200","Griffin Office Admin","N","17102000","Y"]
["17110001","F&A Sum","N","17110000","Y"]
["17110100","F&A Director","N","17110000","Y"]
["17111001","Fiscal Affairs Sum","N","17111000","Y"]
["17111100","Contracts and Grants","N","17111000","Y"]
["17111200","CAES Human Resources","N","17111000","Y"]
["17111300","Finance & AdminSupport Team","N","17111000","Y"]
["17111400","Accountability","N","17111000","Y"]
["17111500","Budget Execution Sup Team","N","17111000","Y"]
["17111600","Hoke Smith Support Team","N","17111000","Y"]
["17111700","Fiscal Compliance","N","17111000","Y"]
["17112001","CAES OIT Sum","N","17112000","Y"]
["17112100","Field Services","N","17112000","Y"]
["17112200","Data Center","N","17112000","Y"]
["17112300","Classroom Support","N","17112000","Y"]
["17112400","Professional Development","N","17112000","Y"]
["17112500","Major Projects","N","17112000","Y"]
["17112600","Contracts","N","17112000","Y"]
["17113001","CAES Comms and Marketing Sum","N","17113000","Y"]
["17113100","Professional Development","N","17113000","Y"]
["17113200","Marketing Materials","N","17113000","Y"]
["17113300","Social Media Ad","N","17113000","Y"]
["17113400","Videography Support","N","17113000","Y"]
["17113500","Events","N","17113000","Y"]
["17114001","Physical Plant Sum","N","17114000","Y"]
["17114010","General Expense","N","17114000","Y"]
["17114100","Mail Room","N","17114000","Y"]
["17114200","Hoke Smith","N","17114000","Y"]
["17114300","Hoke Smith Annex","N","17114000","Y"]
["17114400","AESL Bldg","N","17114000","Y"]
["17120001","CAES Assoc Dean Rsch Sum","N","17120000","Y"]
["17120100","Assoc Dean Rsch Admin","N","17120000","Y"]
["17120200","Assist Dean Rsch Admin","N","17120000","Y"]
["17120300","Rsch Office Admin","N","17120000","Y"]
["17130001","CAES Assoc Dean Ext Sum","N","17130000","Y"]
["17130100","Assoc Dean Ext Admin","N","17130000","Y"]
["17130200","Assist Dean-Admin","N","17130000","Y"]
["17130300","Director County Ops-Admin","N","17130000","Y"]
["17130400","Ext Office Admin","N","17130000","Y"]
["17140001","CAES Assoc Dean Inst Sum","N","17140000","Y"]
["17140100","Assoc Dean Inst Admin","N","17140000","Y"]
["17140200","Assist Dean Inst Admin","N","17140000","Y"]
["17140300","Inst Office Admin","N","17140000","Y"]
["17140400","Student Relations","N","17140000","Y"]
["17140500","CAES Advisors","N","17140000","Y"]
["17150001","Global Programs Sum","N","17150000","Y"]
["17150100","GP Director","N","17150000","Y"]
["17150200","GP Assistant Director","N","17150000","Y"]
["17150300","Global Office Admin","N","17150000","Y"]
["17151001","PMIL Sum","N","17151000","Y"]
["17151100","PMIL Admin","N","17151000","Y"]
["17151200","Hoisington","N","17151000","Y"]
["17160001","CAES Develop and Alumni Sum","N","17160000","Y"]
["17160100","DAR Director","N","17160000","Y"]
["17160200","Philanthropy","N","17160000","Y"]
["17160300","Annual Giving","N","17160000","Y"]
["17160400","Alumni Engagement","N","17160000","Y"]
["17160410","Alumni Events","N","17160000","Y"]
["17170001","Facilities Sum","N","17170000","Y"]
["17170100","Facilities Director","N","17170000","Y"]
["17180001","Pubic Affairs Sum","N","17180000","Y"]
["17180100","PA Director","N","17180000","Y"]
["17190001","Gov Relations Sum","N","17190000","Y"]
["17190100","Gov Rel Director","N","17190000","Y"]
["17200001","CAES Academic Depts Sum","N","17200000","Y"]
["17210001","Ag Econ Sum","N","17210000","Y"]
["17210100","Berstrom, John","N","17210000","Y"]
["17210110","Berning, Joshua","N","17210000","Y"]
["17210120","Brewer, Brady","N","17210000","Y"]
["17210130","Campbell, Benjamin","N","17210000","Y"]
["17210140","Centner, Terence","N","17210000","Y"]
["17210150","Colson, Gregory John","N","17210000","Y"]
["17210160","Dorfman, Jeffrey","N","17210000","Y"]
["17210170","Escalante, Cesar","N","17210000","Y"]
["17210180","Ferreira, Susana","N","17210000","Y"]
["17210190","Karali, Berna","N","17210000","Y"]
["17210200","Kramer, Elizabeth","N","17210000","Y"]
["17210210","Kriesel, Warren","N","17210000","Y"]
["17210220","Landry, Craig","N","17210000","Y"]
["17210230","Magnan, Nicholas","N","17210000","Y"]
["17210240","McCullough, Ellen","N","17210000","Y"]
["17210250","Mullen, Jeffery","N","17210000","Y"]
["17210260","Ramirez, Octavio","N","17210000","Y"]
["17210270","Russell, Levi","N","17210000","Y"]
["17210280","Smith, Travis A","N","17210000","Y"]
["17210290","Zhen, Chen","N","17210000","Y"]
["17210700","Florkowski, Wojciech J","N","17210000","Y"]
["17210710","Jordan, Jeffery","N","17210000","Y"]
["17210720","Kostandini, Gentian","N","17210000","Y"]
["17210800","Fonsah, Esendugue Greg","N","17210000","Y"]
["17210810","Rabinowitz, Adam","N","17210000","Y"]
["17210820","Smith, Amanda R","N","17210000","Y"]
["17210830","Lui, Yangxuan","N","17210000","Y"]
["17210900","Ames, Glenn","N","17210000","Y"]
["17210910","Fletcher, Stanley","N","17210000","Y"]
["17210920","Shurley, William D","N","17210000","Y"]
["17211001","CAED Sum","N","17211000","Y"]
["17211100","Kane, Sharon","N","17211000","Y"]
["17211110","Shepherd, Tommie","N","17211000","Y"]
["17211120","Shonkwiler, Vanessa","N","17211000","Y"]
["17211130","Stubbs, Karen","N","17211000","Y"]
["17211140","Wolfe, Kent","N","17211000","Y"]
["17220001","ALEC Sum","N","17220000","Y"]
["17221000","Department Head","N","17220000","Y"]
["17221010","Borron","N","17220000","Y"]
["17221020","Croom","N","17220000","Y"]
["17221030","Fuhrman","N","17220000","Y"]
["17221040","Griffeth","N","17220000","Y"]
["17221050","Holt","N","17220000","Y"]
["17221060","Kelsey","N","17220000","Y"]
["17221070","Navarro","N","17220000","Y"]
["17221080","Newberry","N","17220000","Y"]
["17221090","Peake","N","17220000","Y"]
["17221100","Rubenstein","N","17220000","Y"]
["17221110","Yopp","N","17220000","Y"]
["17221120","Anderson","N","17220000","Y"]
["17222000","Advancing Georgia Leaders","N","17220000","Y"]
["17230001","ADS Sum","N","17230000","Y"]
["17231000","Azain, Michael","N","17230000","Y"]
["17231025","Bernard, John","N","17230000","Y"]
["17231050","Bohlen, Jillian","N","17230000","Y"]
["17231075","Burtle, Gary","N","17230000","Y"]
["17231100","Cowart, Melony","N","17230000","Y"]
["17231125","Dove, Robert","N","17230000","Y"]
["17231150","Duberstein, Kylee","N","17230000","Y"]
["17231175","Duggin, Jason","N","17230000","Y"]
["17231200","Foley, Caitlin","N","17230000","Y"]
["17231225","Karumbaiah, Lohitash","N","17230000","Y"]
["17231250","Liu, Hongxiang","N","17230000","Y"]
["17231275","Loughridge, Sarah","N","17230000","Y"]
["17231300","Lourenco, Daniela","N","17230000","Y"]
["17231325","Masuda, Yutaka","N","17230000","Y"]
["17231350","McCann, Julia","N","17230000","Y"]
["17231375","Misztal, Ignacy","N","17230000","Y"]
["17231400","Mortensen, Luke","N","17230000","Y"]
["17231425","Nickerson, Stephen","N","17230000","Y"]
["17231450","Pringle, Dean","N","17230000","Y"]
["17231475","Rekaya, Romdhane","N","17230000","Y"]
["17231500","Segers, Jacob","N","17230000","Y"]
["17231525","Stelzleni, Alex","N","17230000","Y"]
["17231550","Stewart, Lawton","N","17230000","Y"]
["17231575","Stice, Steven","N","17230000","Y"]
["17231600","Tao, Sha","N","17230000","Y"]
["17231625","Tsuruta, Shogo","N","17230000","Y"]
["17231650","Tucker, Jennifer","N","17230000","Y"]
["17231675","Turner, Kari","N","17230000","Y"]
["17231700","West, Franklin","N","17230000","Y"]
["17238100","ADS Maintenance","N","17230000","Y"]
["17238200","Arena","N","17230000","Y"]
["17238300","Large Animal Rsch Unit","N","17230000","Y"]
["17238400","Meat Science Tech Cnt","N","17230000","Y"]
["17239000","Farms","N","17230000","Y"]
["17239001","ADS Beef/Sheep","N","17230000","Y"]
["17239002","Dairy","N","17230000","Y"]
["17239003","Swine","N","17230000","Y"]
["17239004","CAES Horse","N","17230000","Y"]
["17239400","Farm Shop","N","17230000","Y"]
["17239500","ADS Feed Mill","N","17230000","Y"]
["17240001","CSS Sum","N","17240000","Y"]
["17240CSS","CSS Department External","N","17240000","Y"]
["17241CSS","CSS Department","N","17240000","Y"]
["17242APA","Paterson, Andrew","N","17240000","Y"]
["17242ATT","Thompson, Aaron","N","17240000","Y"]
["17242BRA","Branch, Bill","N","17240000","Y"]
["17242CAB","Cabrera, Miguel","N","17240000","Y"]
["17242CHE","Chee, Peng Wah","N","17240000","Y"]
["17242CPE","Perry, Calvin","N","17240000","Y"]
["17242CUL","Culpepper, Stanley","N","17240000","Y"]
["17242DEV","Devos, Katrien","N","17240000","Y"]
["17242DEW","Lee, R. Dewey","N","17240000","Y"]
["17242FRA","Franklin, Dory","N","17240000","Y"]
["17242FRE","Freeman, Mark","N","17240000","Y"]
["17242FUR","Furman, Carrie","N","17240000","Y"]
["17242GAS","Gaskin, Julia","N","17240000","Y"]
["17242GRE","Greym Tim","N","17240000","Y"]
["17242HAB","Habtelassie, Mussie","N","17240000","Y"]
["17242HAN","Hancock, Dennis","N","17240000","Y"]
["17242HAR","Harris, Glen","N","17240000","Y"]
["17242HAW","Hawkins, Gary","N","17240000","Y"]
["17242HEN","Henry, Gerald","N","17240000","Y"]
["17242HIL","Hill, Nick","N","17240000","Y"]
["17242HUA","Huang, Jack","N","17240000","Y"]
["17242IAN","Flitcroft, Ian","N","17240000","Y"]
["17242JAW","Wallace, Jason","N","17240000","Y"]
["17242JES","Jesperson, David","N","17240000","Y"]
["17242JJO","Johnson, Jerry","N","17240000","Y"]
["17242JJT","Thompson, Jennifer Jo","N","17240000","Y"]
["17242KNO","Knox, Pam","N","17240000","Y"]
["17242KVI","Kvien, Craig","N","17240000","Y"]
["17242LEC","Leclerc, Monique","N","17240000","Y"]
["17242MCC","McCullough, Patrick","N","17240000","Y"]
["17242MER","Merguom, Mohamed","N","17240000","Y"]
["17242MIS","Missaoui, Ali","N","17240000","Y"]
["17242MON","Monfort, Scott","N","17240000","Y"]
["17242MOO","Moore, J. Michael","N","17240000","Y"]
["17242PIL","Cristiane, Pilone","N","17240000","Y"]
["17242POR","Porter, Wes","N","17240000","Y"]
["17242PRO","Prostko, Eric","N","17240000","Y"]
["17242RAD","Radcliffe, David","N","17240000","Y"]
["17242RAY","Raymer, Paul","N","17240000","Y"]
["17242RIS","Risse, Mark","N","17240000","Y"]
["17242RLN","Noland, Reagon","N","17240000","Y"]
["17242SCJ","Jackson, Scott","N","17240000","Y"]
["17242SCW","Schwartz, Brian","N","17240000","Y"]
["17242SHI","Shilling, Donn","N","17240000","Y"]
["17242SNI","Snider, John","N","17240000","Y"]
["17242SSI","Millier, Bill","N","17240000","Y"]
["17242TUB","Tubbs, Scott","N","17240000","Y"]
["17242VED","Vellidis, George","N","17240000","Y"]
["17242WHA","Hanna, Wayne","N","17240000","Y"]
["17242WHI","Whitaker, Jared","N","17240000","Y"]
["17242WPA","Parrott, Wayne","N","17240000","Y"]
["17242WTZ","Waltz, Clint","N","17240000","Y"]
["17242ZHC","Chen, Zhenbang","N","17240000","Y"]
["17242ZLI","Li, Zenglu","N","17240000","Y"]
["17243CSS","CSS Department Greenhouse","N","17240000","Y"]
["17244CSS","CSS Department Farms","N","17240000","Y"]
["17245SWV","Mailhot, Daniel","N","17240000","Y"]
["17246CSS","CSS Department Weather Network","N","17240000","Y"]
["17250001","Entomology Sum","N","17250000","Y"]
["17252000","Administration","N","17250000","Y"]
["17253010","Abney","N","17250000","Y"]
["17253020","Adang","N","17250000","Y"]
["17253030","Bazter","N","17250000","Y"]
["17253040","Blaauw","N","17250000","Y"]
["17253050","Braman","N","17250000","Y"]
["17253060","Brown","N","17250000","Y"]
["17253070","Buntin","N","17250000","Y"]
["17253080","Burke","N","17250000","Y"]
["17253090","Champagne","N","17250000","Y"]
["17253100","Delaplane","N","17250000","Y"]
["17253110","Espelie","N","17250000","Y"]
["17253120","Forschler","N","17250000","Y"]
["17253130","Gardner","N","17250000","Y"]
["17253140","Guillebeau","N","17250000","Y"]
["17253150","Hinkle","N","17250000","Y"]
["17253160","Hudson","N","17250000","Y"]
["17253170","Hunt","N","17250000","Y"]
["17253180","LaForest","N","17250000","Y"]
["17253190","McHugh","N","17250000","Y"]
["17253200","Moore","N","17250000","Y"]
["17253210","Oliver","N","17250000","Y"]
["17253220","Rains","N","17250000","Y"]
["17253230","Riley","N","17250000","Y"]
["17253240","Roberts","N","17250000","Y"]
["17253250","Ross","N","17250000","Y"]
["17253260","Schmidt","N","17250000","Y"]
["17253270","Shockley","N","17250000","Y"]
["17253280","Sial","N","17250000","Y"]
["17253290","Sparks","N","17250000","Y"]
["17253300","Srinivasan","N","17250000","Y"]
["17253310","Strand","N","17250000","Y"]
["17253320","Suiter","N","17250000","Y"]
["17253340","Toews","N","17250000","Y"]
["17253350","Tree Nut","N","17250000","Y"]
["17253360","Villinassery","N","17250000","Y"]
["17253370","Vogel","N","17250000","Y"]
["17253380","Zhang","N","17250000","Y"]
["17260001","Food Science Sum","N","17260000","Y"]
["17260090","FST Department Admin","N","17260000","Y"]
["17260100","Singh, Rakesh","N","17260000","Y"]
["17260110","Akoh, Casimir","N","17260000","Y"]
["17260140","Harrison, Mark","N","17260000","Y"]
["17260160","Kerr, William","N","17260000","Y"]
["17260215","Hurst, William","N","17260000","Y"]
["17260220","Pegg, Ronald","N","17260000","Y"]
["17260250","Kong, Fanbin","N","17260000","Y"]
["17260260","Mohan, Anand","N","17260000","Y"]
["17260270","Reyes, Jose","N","17260000","Y"]
["17260280","Paton, Chad","N","17260000","Y"]
["17260290","Dee, Derek","N","17260000","Y"]
["17260300","Cavender, George","N","17260000","Y"]
["17260320","Mishra, Abhinav","N","17260000","Y"]
["17261001","Food PIC Sum","N","17261000","Y"]
["17261100","Food PIC Admin Office","N","17261000","Y"]
["17261110","Hung, Yen-Con","N","17261000","Y"]
["17261120","Kealey, Kirk","N","17261000","Y"]
["17261130","Phillips, Robert","N","17261000","Y"]
["17261140","Adhikari, Koushik","N","17261000","Y"]
["17261150","Chen, Jinru","N","17261000","Y"]
["17262001","Cntr Food Safety Sum","N","17262000","Y"]
["17262100","CFS Office Admin","N","17262000","Y"]
["17262140","Doyle, Michael","N","17262000","Y"]
["17262150","Erikson, Marilyn","N","17262000","Y"]
["17262210","Ortega, Ynes","N","17262000","Y"]
["17262230","den Bakker, Hendrick","N","17262000","Y"]
["17262240","Deng, Xiangyu","N","17262000","Y"]
["17262250","Diez-Gonzalez, Francisco","N","17262000","Y"]
["17262260","Zhao, Tong","N","17262000","Y"]
["17270001","Horticulture Sum","N","17270000","Y"]
["17270100","Bailey, Doug","N","17270000","Y"]
["17270200","Berle, David","N","17270000","Y"]
["17270300","Boyhan, George","N","17270000","Y"]
["17270400","Chappell, Matthew","N","17270000","Y"]
["17270500","Chavez, Dario","N","17270000","Y"]
["17270600","Conner, Joanne","N","17270000","Y"]
["17270700","Conner, Patrick","N","17270000","Y"]
["17270800","Coolong, Tim","N","17270000","Y"]
["17270900","Czarnota, Mark","N","17270000","Y"]
["17271000","Diaz, Juan","N","17270000","Y"]
["17271100","Dorn, Sheri","N","17270000","Y"]
["17271200","Hickey, Cain","N","17270000","Y"]
["17271300","Itle, Rachel","N","17270000","Y"]
["17271400","Knauft, David","N","17270000","Y"]
["17271500","Malladi, Anish","N","17270000","Y"]
["17271600","McGregor, Cecilla","N","17270000","Y"]
["17271700","Nambeesan, Savithri","N","17270000","Y"]
["17271800","NeSmith, Scott","N","17270000","Y"]
["17271900","O'Connell, Suzanne","N","17270000","Y"]
["17272000","Ozias-Akins, Peggy","N","17270000","Y"]
["17272100","Pennisi, Bodie","N","17270000","Y"]
["17272200","Robacker, Carol","N","17270000","Y"]
["17272300","Ruter, John","N","17270000","Y"]
["17272400","Smalley, Tim","N","17270000","Y"]
["17272500","Smith, Erick","N","17270000","Y"]
["17272600","Sparks, Darrell","N","17270000","Y"]
["17272700","Thomas, Paul","N","17270000","Y"]
["17272800","Vanderknaap, Esther","N","17270000","Y"]
["17272900","van Iersel, Marc","N","17270000","Y"]
["17273000","Wells, Lenny","N","17270000","Y"]
["17273100","Westerfield, Bob","N","17270000","Y"]
["17273200","Wilde, Dayton","N","17270000","Y"]
["17273300","Zhang, Donglin","N","17270000","Y"]
["17273400","Athens Greenhouse","N","17270000","Y"]
["17273420","South Milledge Greenhouse","N","17270000","Y"]
["17273440","Riverbend Greenhouse","N","17270000","Y"]
["17273460","Green St. Complex","N","17270000","Y"]
["17273470","Griffin Greenhouse","N","17270000","Y"]
["17273500","Durham Farm","N","17270000","Y"]
["17273550","Durham Farm-Organic","N","17270000","Y"]
["17273600","Ugarden","N","17270000","Y"]
["17273700","Trial Gardens","N","17270000","Y"]
["17273720","Onion Lab Tifton","N","17270000","Y"]
["17280001","Plant Path Sum","N","17280000","Y"]
["17281000","Greenhouse","N","17280000","Y"]
["17282000","Nematology Clinic","N","17280000","Y"]
["17283000","Plant Disease Clinic","N","17280000","Y"]
["17284001","Brannen","N","17280000","Y"]
["17284002","Brewer","N","17280000","Y"]
["17284003","Deom","N","17280000","Y"]
["17284004","Kvitko","N","17280000","Y"]
["17284005","Little","N","17280000","Y"]
["17284006","Noe","N","17280000","Y"]
["17284007","Scherm","N","17280000","Y"]
["17284008","Smith","N","17280000","Y"]
["17284009","Walcott","N","17280000","Y"]
["17284010","Woodward","N","17280000","Y"]
["17285000","Tifton Departmental","N","17280000","Y"]
["17285001","Brenneman","N","17280000","Y"]
["17285002","Brock","N","17280000","Y"]
["17285003","Csinos","N","17280000","Y"]
["17285004","Culbreath","N","17280000","Y"]
["17285005","Cutta","N","17280000","Y"]
["17285006","Gitaitis","N","17280000","Y"]
["17285007","Hajihassani","N","17280000","Y"]
["17285008","Ji","N","17280000","Y"]
["17285009","Kemerait","N","17280000","Y"]
["17285010","Oliver","N","17280000","Y"]
["17285011","Stevenson","N","17280000","Y"]
["17286000","Griffin Departmental","N","17280000","Y"]
["17286001","Buck","N","17280000","Y"]
["17286002","Martinez","N","17280000","Y"]
["17290001","Poultry Science Sum","N","17290000","Y"]
["17292000","Georgia Poutlry Conference","N","17290000","Y"]
["17292100","International Poultry Conf","N","17290000","Y"]
["17292200","Ventilation Conferences","N","17290000","Y"]
["17292300","Welfare Conferences","N","17290000","Y"]
["17292400","Deep South Conference","N","17290000","Y"]
["17294000","Farm","N","17290000","Y"]
["17294100","Feed Mill","N","17290000","Y"]
["17294200","Processing Plant","N","17290000","Y"]
["17294300","Hatchery","N","17290000","Y"]
["17294400","Classroom","N","17290000","Y"]
["17294500","Houses","N","17290000","Y"]
["17294600","College Station Facility","N","17290000","Y"]
["17295000","Aggrey, Samuel","N","17290000","Y"]
["17295050","Applegate, Todd","N","17290000","Y"]
["17295100","Benson, Andrew","N","17290000","Y"]
["17295150","Czarick, Mike","N","17290000","Y"]
["17295200","Davis, Adam","N","17290000","Y"]
["17295250","Dunkley, Claudia","N","17290000","Y"]
["17295300","Ellestad, Laura","N","17290000","Y"]
["17295350","Fairchild, Brian","N","17290000","Y"]
["17295400","Fowler, Justin","N","17290000","Y"]
["17295450","Kiepper, Brian","N","17290000","Y"]
["17295500","Kim, Woo Kyun","N","17290000","Y"]
["17295550","Navara, Kristen","N","17290000","Y"]
["17295600","Pesti, Gene","N","17290000","Y"]
["17295650","Ritz, Casey","N","17290000","Y"]
["17295700","Selvaraj, Ramesh","N","17290000","Y"]
["17295750","Singh, Manpreet","N","17290000","Y"]
["17295800","Thippareddi, Harshavardhan","N","17290000","Y"]
["17295850","Webster, Bruce","N","17290000","Y"]
["17295900","Wilson, Jeanna","N","17290000","Y"]
["17300001","Extension Sum","N","17300000","Y"]
["17300100","Regional Extension","N","17300000","Y"]
["17310001","Asst Dean Ext Sum","N","17310000","Y"]
["17310100","Faculty Support","N","17310000","Y"]
["17310200","ANR Support","N","17310000","Y"]
["17310300","Ext Training","N","17310000","Y"]
["17311001","AESL Sum","N","17311000","Y"]
["17311200","Soil Plant & Water Lab","N","17311000","Y"]
["17311300","Feed & Environmental Water Lab","N","17311000","Y"]
["17311400","Pesticide& Hazardous Waste Lab","N","17311000","Y"]
["17311500","CIIDS","N","17311000","Y"]
["17312001","VOVRC Sum","N","17312000","Y"]
["17312100","VOVRC Office Admin","N","17312000","Y"]
["17312200","VOVRC Farm","N","17312000","Y"]
["17313001","Blueberry Sum","N","17313000","Y"]
["17313100","Blueberry Office Admin","N","17313000","Y"]
["17313200","Blueberry Farm","N","17313000","Y"]
["17314001","OLOD Conf Sum","N","17314000","Y"]
["17314100","OLOD Office Admin","N","17314000","Y"]
["17314200","Staff Development","N","17314000","Y"]
["17314300","Program Development","N","17314000","Y"]
["17314400","Leadership","N","17314000","Y"]
["17314510","Hurt","N","17314000","Y"]
["17314520","Griffeth","N","17314000","Y"]
["17314530","Sapp","N","17314000","Y"]
["17314540","Farner","N","17314000","Y"]
["17314600","OLOD Conf Admin","N","17314000","Y"]
["17314610","OLOD Events","N","17314000","Y"]
["17315001","Center Urban Ag Sum","N","17315000","Y"]
["17315100","Center Urban Ag Office","N","17315000","Y"]
["17315200","Buaske","N","17315000","Y"]
["17320001","County Ops Sum","N","17320000","Y"]
["17320100","Recruitment","N","17320000","Y"]
["17320200","Foundations","N","17320000","Y"]
["17320210","Foundations I","N","17320000","Y"]
["17320220","Foundations II","N","17320000","Y"]
["17320230","Foundations Communications","N","17320000","Y"]
["17320240","Foundations-ANR","N","17320000","Y"]
["17320250","Foundations-4H Fund & Basics","N","17320000","Y"]
["17320260","Foundations-Beyond Basics","N","17320000","Y"]
["17320270","Foundations-FACS","N","17320000","Y"]
["17320300","Associations","N","17320000","Y"]
["17321001","NE District Sum","N","17321000","Y"]
["17321100","NE DED","N","17321000","Y"]
["17321200","NE ANR","N","17321000","Y"]
["17321210","NE ANR PDC","N","17321000","Y"]
["17321300","NE FACS","N","17321000","Y"]
["17321310","NE FACS PDC","N","17321000","Y"]
["17321400","NE 4-H","N","17321000","Y"]
["17321410","NE 4-H PDC","N","17321000","Y"]
["17322001","NW District Sum","N","17322000","Y"]
["17322100","NW DED","N","17322000","Y"]
["17322200","NW ANR","N","17322000","Y"]
["17322210","NW ANR PDC","N","17322000","Y"]
["17322300","NW FACS","N","17322000","Y"]
["17322310","NW FACS PDC","N","17322000","Y"]
["17322400","NW 4-H","N","17322000","Y"]
["17322410","NW 4-H PDC","N","17322000","Y"]
["17322500","NW Urban PDC","N","17322000","Y"]
["17323001","SW District Sum","N","17323000","Y"]
["17323100","SW DED","N","17323000","Y"]
["17323200","SW ANR","N","17323000","Y"]
["17323310","SW ANR PDC","N","17323000","Y"]
["17323400","SW FACS","N","17323000","Y"]
["17323410","SW FACS PDC","N","17323000","Y"]
["17323500","SW 4-H","N","17323000","Y"]
["17323510","SW 4-H PDC","N","17323000","Y"]
["17324001","SE District Sum","N","17324000","Y"]
["17324100","SE DED","N","17324000","Y"]
["17324400","SE ANR","N","17324000","Y"]
["17324410","SE ANR PDC","N","17324000","Y"]
["17324500","SE FACS","N","17324000","Y"]
["17324510","SE FACS PDC","N","17324000","Y"]
["17324600","SE 4-H","N","17324000","Y"]
["17324610","SE 4-H PDC","N","17324000","Y"]
["17324701","CGBG Sum","N","17324700","Y"]
["17324710","CGBG Director","N","17324700","Y"]
["17324720","CGBG Office Admin","N","17324700","Y"]
["17324730","CGBG Events","N","17324700","Y"]
["17330001","4-H Sum","N","17330000","Y"]
["17330100","State Administration","N","17330000","Y"]
["17330110","State Captial improvements","N","17330000","Y"]
["17330120","State Americorps","N","17330000","Y"]
["17330130","State Military","N","17330000","Y"]
["17330140","State Educational grants","N","17330000","Y"]
["17330150","State Rent Deductions","N","17330000","Y"]
["17330200","State Office","N","17330000","Y"]
["17330300","Environmental Education","N","17330000","Y"]
["17330400","State Camp","N","17330000","Y"]
["17330410","State Camp Travel","N","17330000","Y"]
["17331000","Rock Eagle","N","17330000","Y"]
["17331100","Rock Eagle Administration","N","17330000","Y"]
["17331110","Rock Eagle Capital Improve","N","17330000","Y"]
["17331120","Rock Eagle Americorps","N","17330000","Y"]
["17331130","Rock Eagle Military","N","17330000","Y"]
["17331140","Rock Eagle Education Grants","N","17330000","Y"]
["17331150","Rock Eagle Rent deductions","N","17330000","Y"]
["17331200","Rock Eagle State Office","N","17330000","Y"]
["17331300","Rock Eagle Enivronmental Ed","N","17330000","Y"]
["17331400","Rock Eagle Camp","N","17330000","Y"]
["17331410","Rock Eagle Camp Travel","N","17330000","Y"]
["17332000","Fortson","N","17330000","Y"]
["17332100","Fortson Administration","N","17330000","Y"]
["17332110","Fortson Capital improvements","N","17330000","Y"]
["17332120","Fortson Americorps","N","17330000","Y"]
["17332130","Fortson Military","N","17330000","Y"]
["17332140","Fortson Education Grants","N","17330000","Y"]
["17332150","Fortson Rent deductions","N","17330000","Y"]
["17332200","Fortson State Office","N","17330000","Y"]
["17332300","Fortson Enivronmental Ed","N","17330000","Y"]
["17332400","Fortson Camp","N","17330000","Y"]
["17332410","Fortson Camp Travel","N","17330000","Y"]
["17333000","Burton","N","17330000","Y"]
["17333100","Burton Administration","N","17330000","Y"]
["17333110","Burton Capital improvements","N","17330000","Y"]
["17333120","Burton Americorps","N","17330000","Y"]
["17333130","Burton Military","N","17330000","Y"]
["17333140","Burton Education Grants","N","17330000","Y"]
["17333150","Burton Rent deductions","N","17330000","Y"]
["17333200","Burton State Office","N","17330000","Y"]
["17333300","Burton Enivronmental Education","N","17330000","Y"]
["17333400","Burton Camp","N","17330000","Y"]
["17333410","Burton Camp Travel","N","17330000","Y"]
["17334000","Wahsega","N","17330000","Y"]
["17334100","Wahsega Administration","N","17330000","Y"]
["17334110","Wahsega Capital improvements","N","17330000","Y"]
["17334120","Wahsega Americorps","N","17330000","Y"]
["17334130","Wahsega Military","N","17330000","Y"]
["17334140","Rock EagleWahsega","N","17330000","Y"]
["17334150","Wahsega Rent deductions","N","17330000","Y"]
["17334200","Wahsega State Office","N","17330000","Y"]
["17334300","Wahsega Enivronmental Ed","N","17330000","Y"]
["17334400","Wahsega Camp","N","17330000","Y"]
["17334410","Wahsega Camp Travel","N","17330000","Y"]
["17335000","Camp Jeykll","N","17330000","Y"]
["17335100","Camp Jeykll Administration","N","17330000","Y"]
["17335110","Camp Jeykll Capital Improve","N","17330000","Y"]
["17335120","Camp Jeykll Americorps","N","17330000","Y"]
["17335130","Camp Jeykll Military","N","17330000","Y"]
["17335140","Camp Jeykll Education Grants","N","17330000","Y"]
["17335150","Camp Jeykll Rent deductions","N","17330000","Y"]
["17335200","Camp Jeykll State Office","N","17330000","Y"]
["17335300","Camp Jeykll Enivronmental Ed","N","17330000","Y"]
["17335400","Camp Jeykll Camp","N","17330000","Y"]
["17335410","Camp Jeykll Camp Travel","N","17330000","Y"]
["17336000","Tidelands","N","17330000","Y"]
["17336100","Tidelands Administration","N","17330000","Y"]
["17336110","Tidelands Capital improvements","N","17330000","Y"]
["17336120","Tidelands Americorps","N","17330000","Y"]
["17336130","Tidelands Military","N","17330000","Y"]
["17336140","Tidelands Education Grants","N","17330000","Y"]
["17336150","Tidelands Rent deductions","N","17330000","Y"]
["17336200","Tidelands State Office","N","17330000","Y"]
["17336300","Tidelands Enivronmental Ed","N","17330000","Y"]
["17336400","Tidelands Camp","N","17330000","Y"]
["17336410","Tidelands Camp Travel","N","17330000","Y"]
["17340001","SRFE Sum","N","17340000","Y"]
["17340010","SRFE Office Admin","N","17340000","Y"]
["17340100","Hubbard","N","17340000","Y"]
["17400001","Instruction Sum","N","17400000","Y"]
["17410001","CAES Diversity Sum","N","17410000","Y"]
["17410100","Div Director","N","17410000","Y"]
["17410200","Young Scholars","N","17410000","Y"]
["17410300","MANNRS","N","17410000","Y"]
["17410400","Div Office Admin","N","17410000","Y"]
["17500001","Research Sum","N","17500000","Y"]
["17510001","CAES Asst Dean Rsch Sum","N","17510000","Y"]
["17510100","Department Support","N","17500000","Y"]
["17510200","Faculty Start up","N","17500000","Y"]
["17511001","JPC Sum","N","17511000","Y"]
["17511100","JPC Staff","N","17511000","Y"]
["17511200","JPC Farm","N","17511000","Y"]
["17512001","IPBGG Sum","N","17512000","Y"]
["17512100","IPBGG Director","N","17512000","Y"]
["17512200","IPBGG Office","N","17512000","Y"]
["17513001","CAGT Sum","N","17513000","Y"]
["17513100","CAGT Director","N","17513000","Y"]
["17513200","CAGT Office","N","17513000","Y"]
["17514001","PGML Sum","N","17514000","Y"]
["17514100","PGML Director","N","17514000","Y"]
["17514200","PGML Office","N","17514000","Y"]
["17600001","Griffin Campus Sum","N","17600000","Y"]
["17602100","CAES Research Support","N","17600000","Y"]
["17602200","CAES General Expense","N","17600000","Y"]
["17602300","Experimental Statistics","N","17600000","Y"]
["17603000","Griffin Business Office","N","17600000","Y"]
["17604000","Griffin Facilites Mgmt","N","17600000","Y"]
["17605000","Griffin Library","N","17600000","Y"]
["17606000","PGRCU","N","17600000","Y"]
["17607000","Field Research Services","N","17600000","Y"]
["17608000","CAES Continuing Education","N","17600000","Y"]
["17609000","Urban Ag","N","17600000","Y"]
["17610000","Northwest Georgia REC","N","17600000","Y"]
["17620000","Georgia Mountain REC","N","17600000","Y"]
["17700001","Tift Campus Sum","N","17700000","Y"]
["17710000","Attapulgus REC","N","17700000","Y"]
["17720000","Southwest Georgia REC","N","17700000","Y"]
["17730001","TCC/RDC Sum","N","17730000","Y"]
["17730100","TCC/RDC Office Admin","N","17730000","Y"]
["17730200","TCC/RDC Events","N","17730000","Y"]
["17740000","Stripling Irrigation Rsch Park","N","17700000","Y"]
["17750000","Southeast Georgia REC","N","17700000","Y"]
["190000HR","FC Human Resources","N","19000100","Y"]
["19000ATD","FC Dean Dorsey ADMIN","N","19000100","Y"]
["19000BUD","FC Budget Office","N","19000100","Y"]
["19000DIV","FC Diversity","N","19000100","Y"]
["19000JMW","FC Jean Martin-Williams","N","19000100","Y"]
["19000KMT","FC Kecia Thomas","N","19000100","Y"]
["19000MHK","FC Martin Kagel","N","19000100","Y"]
["19000MXM","FC Michelle Momany","N","19000100","Y"]
["19000NXF","FC Noel Fallows","N","19000100","Y"]
["19000PAY","FC 163 Payroll & Encumbrances","N","19000100","Y"]
["19000PUB","FC Public Relations","N","19000100","Y"]
["19000RLM","FC Russell Malmberg","N","19000100","Y"]
["19000TLM","FC Tom Mote","N","19000100","Y"]
["19010107","FC Advising Summary","N","19000100","Y"]
["19010ADV","FC Advising","N","19000100","Y"]
["19010DHM","FC Diane Miller","N","19000100","Y"]
["19020DEV","FC Development","N","19000100","Y"]
["19030INT","FC International","N","19000100","Y"]
["19040ROM","FC Roman - Alcohol rsch","N","19000100","Y"]
["19070DSS","Museum DSS","N","19000100","Y"]
["19070MUS","Mus Natl Hist","N","19000100","Y"]
["19080COM","FC OIT College Commitments","N","19080000","Y"]
["19080FFE","FC OIT College FFE","N","19080000","Y"]
["19080GEN","FC OIT Operating - General","N","19080000","Y"]
["19080NWK","FC OIT Networking","N","19080000","Y"]
["19081080","FC OIT Employees STF","N","19081000","Y"]
["19081081","FC OIT Hourly STF","N","19081000","Y"]
["19081210","FC OIT Biochemestry STF","N","19081DEP","Y"]
["19081220","FC OIT Bio Sciences STF","N","19081DEP","Y"]
["19081230","FC OIT Cellular Biology STF","N","19081DEP","Y"]
["19081240","FC OIT Genetics STF","N","19081DEP","Y"]
["19081250","FC OIT Marine Science STF","N","19081DEP","Y"]
["19081260","FC OIT Microbiology STF","N","19081DEP","Y"]
["19081270","FC OIT Plant Biology STF","N","19081DEP","Y"]
["19081310","FC OIT Art STF","N","19081DEP","Y"]
["19081320","FC OIT Dance STF","N","19081DEP","Y"]
["19081330","FC OIT Music STF","N","19081DEP","Y"]
["19081340","FC OIT Theatre STF","N","19081DEP","Y"]
["19081410","FC OIT Classics STF","N","19081DEP","Y"]
["19081420","FC OIT Comparative Lit STF","N","19081DEP","Y"]
["19081430","FC OIT English STF","N","19081DEP","Y"]
["19081440","FC OIT Germanic STF","N","19081DEP","Y"]
["19081450","FC OIT History STF","N","19081DEP","Y"]
["19081460","FC OIT Linguistics STF","N","19081DEP","Y"]
["19081470","FC OIT Philosophy STF","N","19081DEP","Y"]
["19081480","FC OIT Religion STF","N","19081DEP","Y"]
["19081490","FC OIT Romance Languages STF","N","19081DEP","Y"]
["19081510","FC OIT Chemistry STF","N","19081DEP","Y"]
["19081520","FC OIT Computer Science STF","N","19081DEP","Y"]
["19081530","FC OIT Geology STF","N","19081DEP","Y"]
["19081540","FC OIT Mathematics STF","N","19081DEP","Y"]
["19081550","FC OIT Physics STF","N","19081DEP","Y"]
["19081560","FC OIT Statistics STF","N","19081DEP","Y"]
["19081610","FC OIT Anthropology STF","N","19081DEP","Y"]
["19081620","FC OIT Comm Studies STF","N","19081DEP","Y"]
["19081630","FC OIT Geography STF","N","19081DEP","Y"]
["19081640","FC OIT Psychology STF","N","19081DEP","Y"]
["19081650","FC OIT Sociology STF","N","19081DEP","Y"]
["19081710","FC OIT African Amer Stud STF","N","19081DEP","Y"]
["19081720","FC OIT African Studies STF","N","19081DEP","Y"]
["19081730","FC OIT Artificial Intell STF","N","19081DEP","Y"]
["19081790","FCOIT Womens Studies STF","N","19081DEP","Y"]
["19081GEN","FC OIT STF General Summary","N","19081000","Y"]
["19100COM","FC College Commitments","N","19000100","Y"]
["19111FIB","FC Supp Instructional Budget","N","19000100","Y"]
["19122SUM","FC Summer School Comm.","N","19000100","Y"]
["19133IDC","FC IDC College Carry Forward","N","19000100","Y"]
["19144DSS","FC DSS College Carry Forward","N","19000100","Y"]
["19155GRI","FC Griffin Campus","N","19000100","Y"]
["19166STC","FC Short-Term Commitments","N","19000100","Y"]
["19210910","BCMB FCSIB","N","19210000","Y"]
["19210920","BCMB FC Summer","N","19210000","Y"]
["19210ADG","BCMB Adang","N","19210000","Y"]
["19210ADM","BCMB Adams","N","19210000","Y"]
["19210AVC","BCMB Avci","N","19210000","Y"]
["19210BCW","BCMB Wang","N","19210000","Y"]
["19210BFF","BCMB Fermentation","N","19210000","Y"]
["19210BLU","BCMB Blum","N","19210000","Y"]
["19210BMB","BCMB Operating","N","19210000","Y"]
["19210CAS","BCMB Cassera","N","19210000","Y"]
["19210DAL","BCMB Dalton","N","19210000","Y"]
["19210DAR","BCMB Darvill","N","19210000","Y"]
["19210DHD","BCMB Depart Head","N","19210000","Y"]
["19210DSS","BCMB Dept Sales","N","19210000","Y"]
["19210EDI","BCMB Edison","N","19210000","Y"]
["19210GAR","BCMB Garfinkel","N","19210000","Y"]
["19210GLO","BCMB Glover","N","19210000","Y"]
["19210HAL","BCMB Haltiwanger","N","19210000","Y"]
["19210ITO","BCMB Ito","N","19210000","Y"]
["19210KAN","BCMB Kannan","N","19210000","Y"]
["19210LAN","BCMB Lanzilotta","N","19210000","Y"]
["19210MED","BCMB Medlock","N","19210000","Y"]
["19210MOH","BCMB Mohnen","N","19210000","Y"]
["19210MOR","BCMB Moremen","N","19210000","Y"]
["19210ORL","BCMB Orlando","N","19210000","Y"]
["19210PIE","BCMB Pierce","N","19210000","Y"]
["19210PRZ","BCMB Przybyla","N","19210000","Y"]
["19210ROS","BCMB Rose","N","19210000","Y"]
["19210SAB","BCMB Sabatini","N","19210000","Y"]
["19210SCH","BCMB Schmidt","N","19210000","Y"]
["19210STE","BCMB Steet","N","19210000","Y"]
["19210TER","BCMB Terns","N","19210000","Y"]
["19210TIE","BCMB Tiemeyer","N","19210000","Y"]
["19210URB","BCMB Urbauer","N","19210000","Y"]
["19210WEL","BCMB Wells","N","19210000","Y"]
["19210WES","BCMB West","N","19210000","Y"]
["19210WNG","BCMB Wang, Lianchun","N","19210000","Y"]
["19210WOO","BCMB Woods","N","19210000","Y"]
["19210XRD","BCMB Xray Rose","N","19210000","Y"]
["19210YIN","BCMB Yin","N","19210000","Y"]
["19210YOR","BCMB York","N","19210000","Y"]
["19210YXU","BCMB Xu","N","19210000","Y"]
["19210ZHA","BCMB Zhao","N","19210000","Y"]
["19220001","BIOL Bio Sci Inst Admin","N","19220000","Y"]
["19220002","BIOL Sales&Service","N","19220000","Y"]
["1922000A","BIOL Biological Sciences Admin","N","19220000","Y"]
["19220021","BIOL Royalty Publications","N","19220000","Y"]
["192200JO","BIOL Biosci O'Donnell","N","19220000","Y"]
["192200KM","BIOL Biosci Miller","N","19220000","Y"]
["192200NA","BIOL Biosci Armstrong","N","19220000","Y"]
["19220910","BIOL FCSIB","N","19220000","Y"]
["19220920","BIOL FC Summer","N","19220000","Y"]
["19220980","BIOL Royalty Holding","N","19220000","Y"]
["19220LF4","BIOL Student Lab Fees","N","19220000","Y"]
["19220LF6","BIOL Student Lab Fees","N","19220000","Y"]
["19220RSH","BIOL Bio Sci Rsch Admin","N","19220000","Y"]
["192300CS","CBIO Schulz","N","19230000","Y"]
["192300DK","CBIO Kamiyama","N","19230000","Y"]
["192300EK","CBIO Kipreos","N","19230000","Y"]
["192300JG","CBIO Gaertig","N","19230000","Y"]
["192300JS","CBIO Stanton","N","19230000","Y"]
["192300KK","CBIO Klonowski","N","19230000","Y"]
["192300KL","CBIO Lechtreck","N","19230000","Y"]
["192300PS","CBIO Shen","N","19230000","Y"]
["192300RD","CBIO Docampo","N","19230000","Y"]
["192300RT","CBIO Tarleton","N","19230000","Y"]
["19230910","CBIO FCSIB","N","19230000","Y"]
["19230920","CBIO FC Summer","N","19230000","Y"]
["19230DPT","CBIO Dept Accts","N","19230000","Y"]
["19230IDC","CBIO Indirect Cost","N","19230000","Y"]
["19230JDL","CBIO Lauderdale","N","19230000","Y"]
["19230KMW","CBIO Mensa-Wilmot","N","19230000","Y"]
["19230LAB","CBIO Lab Fees","N","19230000","Y"]
["19230PCH","CBIO Pcard Holding","N","19230000","Y"]
["19230RDE","CBIO Etheridge","N","19230000","Y"]
["19230RRG","CBIO Galbraith","N","19230000","Y"]
["19240001","GENE Operations","N","19240000","Y"]
["19240002","GENE Student Support","N","19240000","Y"]
["19240003","GENE Faculty Support","N","19240000","Y"]
["19240004","GENE Moving & Relocation","N","19240000","Y"]
["19240005","GENE Vehicle Maintenance","N","19240000","Y"]
["19240006","GENE Physical Plant","N","19240000","Y"]
["19240007","GENE Student Travel","N","19240000","Y"]
["19240008","GENE Student Recruitment","N","19240000","Y"]
["19240009","GENE Seminars","N","19240000","Y"]
["19240100","GENE Inst Lab","N","19240000","Y"]
["19240105","GENE 4210L Fees/Sup","N","19240000","Y"]
["19240110","GENE 4230L Fees/Sup","N","19240000","Y"]
["19240115","GENE Inc/Sales","N","19240000","Y"]
["19240120","GENE Btz Inc/Sales","N","19240000","Y"]
["19240125","GENE Scz Inc/Sales","N","19240000","Y"]
["19240130","GENE Egg Inc/Sales","N","19240000","Y"]
["192401CB","GENE Casey Bergman Startup","N","19240000","Y"]
["192401MG","GENE Mary Goll Startup","N","19240000","Y"]
["192401MW","GENE Mike White Startup","N","19240000","Y"]
["192401RS","GENE Robert Schmitz Startup","N","19240000","Y"]
["19240910","GENE FCSIB","N","19240000","Y"]
["19240920","GENE FC Summer","N","19240000","Y"]
["19240DH1","GENE DH Nancy Manley","N","19240GDH","Y"]
["19240F01","GENE FYO-Primary","N","19240FYO","Y"]
["19240F02","GENE FYO-Dyer","N","19240FYO","Y"]
["19240F03","GENE FYO-JArnold","N","19240FYO","Y"]
["19240F04","GENE FYO-Manley","N","19240FYO","Y"]
["19240F05","GENE FYO-Condie","N","19240FYO","Y"]
["19240F06","GENE FYO-Mauricio","N","19240FYO","Y"]
["19240F07","GENE FYO-Hall","N","19240FYO","Y"]
["19240IDC","GENE Indirect Cost Return","N","19240000","Y"]
["19240KEY","GENE Key Deposit","N","19240000","Y"]
["19240PAY","GENE Payroll","N","19240000","Y"]
["19240R01","GENE Royalty Dept Share","N","19240ROY","Y"]
["19240R02","GENE Royalty Kandasamy","N","19240ROY","Y"]
["19240R03","GENE Royalty McKinney","N","19240ROY","Y"]
["19240R04","GENE Royalty Meagher","N","19240ROY","Y"]
["19240R05","GENE Royalty Karnuah","N","19240ROY","Y"]
["19240TVL","GENE Faculty Travel","N","19240000","Y"]
["19240VIP","GENE Rias/VIP funds","N","19240000","Y"]
["19250110","MARS Marine Sci Admin","N","19250100","Y"]
["19250120","MARS Marine Sci Lab Fees","N","19250100","Y"]
["19250130","MARS Marine Sci Instruction","N","19250100","Y"]
["19250140","MARS Marine Sci Research","N","19250100","Y"]
["19250150","MARS Marine Sci IDC","N","19250100","Y"]
["19250210","MARS Coastal Summer Lab Fees","N","19250200","Y"]
["19250220","MARS Coastal Summer Prog Fees","N","19250200","Y"]
["19250230","MARS Coastal Summer Tuition","N","19250200","Y"]
["19250300","MARS Ocean Discovery Camp","N","19250JOY","Y"]
["19250400","MARS Department Revenue","N","19250100","Y"]
["19250450","MARS Joye Bio Testing","N","19250JOY","Y"]
["19250910","MARS FCSIB","N","19250000","Y"]
["19250920","MARS FC Summer","N","19250000","Y"]
["19250AB1","MARS Burd","N","19250BUR","Y"]
["19250BB1","MARS Binder","N","19250BIN","Y"]
["19250BH1","MARS B Hopkinson","N","19250HOB","Y"]
["19250CH1","MARS C Hopkinson","N","19250HOC","Y"]
["19250CM1","MARS Meile","N","19250MEI","Y"]
["19250DD1","MARS Di Iorio","N","19250DII","Y"]
["19250DHD","MARS Dept Head","N","19250100","Y"]
["19250JH1","MARS Hollibaugh","N","19250HOL","Y"]
["19250KET","MARS Teare-Ketter","N","19250500","Y"]
["19250MA1","MARS Alber","N","19250ALB","Y"]
["19250MM1","MARS Moran","N","19250MOR","Y"]
["19250PM1","MARS Medeiros","N","19250MED","Y"]
["19250PY1","MARS Yager","N","19250YAG","Y"]
["19250RC1","MARS Castelao","N","19250CAS","Y"]
["19250SJ1","MARS Joye","N","19250JOY","Y"]
["19250WM1","MARS Miller","N","19250MIL","Y"]
["19260001","MIBO Dept Admin","N","19260000","Y"]
["19260002","MIBO Instruction","N","19260000","Y"]
["19260003","MIBO IT","N","19260000","Y"]
["19260004","MIBO Maintenance","N","19260000","Y"]
["19260100","MIBO Department Head","N","19260000","Y"]
["19260200","MIBO Faculty Support","N","19260000","Y"]
["19260301","MIBO Grad Program","N","19260300","Y"]
["19260302","MIBO Graduate Recruitment","N","19260300","Y"]
["19260303","MIBO Grad Program General","N","19260300","Y"]
["19260401","MIBO Seminar Series","N","19260400","Y"]
["19260402","MIBO MGSA Seminar","N","19260400","Y"]
["19260501","MIBO Intro Labs","N","19260500","Y"]
["19260502","MIBO Mibo4600L","N","19260500","Y"]
["19260600","MIBO DSS - Lab Manuals","N","19260000","Y"]
["19260700","MIBO DSS - Bergeys","N","19260000","Y"]
["19260910","MBIO FCSIB","N","19260000","Y"]
["19260920","MBIO FC Summer","N","19260000","Y"]
["19260ACK","MIBO Anna Karls","N","19260000","Y"]
["19260AOS","MIBO Anne Summers","N","19260000","Y"]
["19260COM","MIBO Commitments","N","19260000","Y"]
["19260DCK","MIBO Duncan Krause","N","19260000","Y"]
["19260DMD","MIBO Diana Downs","N","19260000","Y"]
["19260EAO","MIBO Elizabeth Ottesen","N","19260000","Y"]
["19260ELN","MIBO Ellen Neidle","N","19260000","Y"]
["19260EVS","MIBO Eric Stabb","N","19260000","Y"]
["19260JAN","MIBO Jan Mrazek","N","19260000","Y"]
["19260JCE","MIBO Jorge Escalante","N","19260000","Y"]
["19260JDP","MIBO Joy Peterson","N","19260000","Y"]
["19260LIN","MIBO Xiaorong Lin","N","19260000","Y"]
["19260RJM","MIBO Robert Maier","N","19260000","Y"]
["19260TRH","MIBO Timothy Hoover","N","19260000","Y"]
["19260VJS","MIBO Vincent Starai","N","19260000","Y"]
["19260WBW","MIBO William Whitman","N","19260000","Y"]
["19260ZAL","MIBO Zachary Lewis","N","19260000","Y"]
["19270001","PBIO Plant Biology","N","19270000","Y"]
["19270910","PBIO FCSIB","N","19270000","Y"]
["19270920","PBIO FC Summer","N","19270000","Y"]
["19270ALA","PBIO Magdy Alabady","N","19270000","Y"]
["19270BEN","PBIO Douda Bensasson","N","19270000","Y"]
["19270BEY","PBIO Jill Beyette","N","19270000","Y"]
["19270BRI","PBIO Peggy Brickman","N","19270000","Y"]
["19270BRU","PBIO Brigitte Bruns","N","19270000","Y"]
["19270BUC","PBIO Alex Bucksch","N","19270000","Y"]
["19270BUR","PBIO John Burke","N","19270000","Y"]
["19270CHA","PBIO Shu-Mei Chang","N","19270000","Y"]
["19270DAW","PBIO Kelly Dawe","N","19270000","Y"]
["19270DEE","PBIO Jonathan Dees","N","19270000","Y"]
["19270DEV","PBIO Katrien Devos","N","19270000","Y"]
["19270DON","PBIO Lisa Donovan","N","19270000","Y"]
["19270DSS","PBIO Department Sales","N","19270000","Y"]
["19270GH0","PBIO Greenhouse","N","19270000","Y"]
["19270GP0","PBIO Graduate Program","N","19270000","Y"]
["19270HB0","PBIO Herbarium","N","19270000","Y"]
["19270KHA","PBIO Chang-Hyun Khang","N","19270000","Y"]
["19270KSH","PBIO Kathrin Stanger-Hall","N","19270000","Y"]
["19270LAB","PBIO Lab Supply Fee","N","19270000","Y"]
["19270LBM","PBIO Jim Leebens-Mack","N","19270000","Y"]
["19270LUK","PBIO Wolfgang Lukowitz","N","19270000","Y"]
["19270MOM","PBIO Michelle Momany","N","19270000","Y"]
["19270PC0","PBIO Plant Center","N","19270000","Y"]
["19270PCC","PBIO Plant Center Conference","N","19270000","Y"]
["19270PET","PBIO Chris Peterson","N","19270000","Y"]
["19270PUC","PBIO Carrie Pucko","N","19270000","Y"]
["19270TRA","PBIO Dorset Trapnell","N","19270000","Y"]
["19270TSA","PBIO C J Tsai","N","19270000","Y"]
["19270ZHA","PBIO Xiaoyu Zhang","N","19270000","Y"]
["19270ZOM","PBIO Wendy Zomlefer","N","19270000","Y"]
["19270ZYE","PBIO Zheng-Hua Ye","N","19270000","Y"]
["19310001","ART School-General","N","19310000","Y"]
["19310100","ART Dept Area Budget Primary","N","19310DAB","Y"]
["19310101","ART Art Education Area Budget","N","19310DAB","Y"]
["19310102","ART Art History Area Budget","N","19310DAB","Y"]
["19310103","ART Art X Area Budget","N","19310DAB","Y"]
["19310104","ART Studio Art Core Area Budg","N","19310DAB","Y"]
["19310105","ART Ceramics Area Budget","N","19310DAB","Y"]
["19310106","ART Draw & Paint Area Budget","N","19310DAB","Y"]
["19310107","ART Fabric Design Area Budget","N","19310DAB","Y"]
["19310108","ART Graphic Design Area Budget","N","19310DAB","Y"]
["19310109","ART Interior Design Area Budg","N","19310DAB","Y"]
["19310110","ART Jewelry & Metal Area Budg","N","19310DAB","Y"]
["19310111","ART Photo Area Budget","N","19310DAB","Y"]
["19310112","ART Printmaking Area Budget","N","19310DAB","Y"]
["19310113","ART Scientific Ill Area Budget","N","19310DAB","Y"]
["19310114","ART Sculpture Area Budget","N","19310DAB","Y"]
["19310200","ART FYO-Primary","N","19310FYO","Y"]
["19310201","ART FYO Nell Andrew","N","19310FYO","Y"]
["19310202","ART FYO Melissa Harshman","N","19310FYO","Y"]
["19310203","ART FYO Chris Hocking","N","19310FYO","Y"]
["19310204","ART FYO Thom Houser","N","19310FYO","Y"]
["19310205","ART FYO Mary Pearse","N","19310FYO","Y"]
["19310206","ART FYO Janice Simon","N","19310FYO","Y"]
["19310207","ART FYO Julie Spivey","N","19310FYO","Y"]
["19310208","ART FYO Jon Swindler","N","19310FYO","Y"]
["19310209","ART FYO Shelley Zuraw","N","19310FYO","Y"]
["19310300","ART Recruitment New Faculty-FC","N","19310REC","Y"]
["19310301","ART Grad School Recruit Funds","N","19310REC","Y"]
["19310302","ART Move & Relocate Funds-FC","N","19310REC","Y"]
["19310400","ART Lab Fee-Summary","N","19310LAB","Y"]
["19310401","ART Education Lab Fees","N","19310LAB","Y"]
["19310402","ART X Lab Fees","N","19310LAB","Y"]
["19310403","ART Ceramics Lab Fees","N","19310LAB","Y"]
["19310404","ART Draw & Paint Lab Fees","N","19310LAB","Y"]
["19310405","ART Fabric Design Lab Fees","N","19310LAB","Y"]
["19310406","ART Graphic Design Lab Fees","N","19310LAB","Y"]
["19310407","ART Interior Design Lab Fees","N","19310LAB","Y"]
["19310408","ART Jewelry & Metal Lab Fees","N","19310LAB","Y"]
["19310409","ART Photo Lab Fees","N","19310LAB","Y"]
["19310410","ART Printmaking Lab Fees","N","19310LAB","Y"]
["19310411","ART Studio Art Core Lab Fees","N","19310LAB","Y"]
["19310412","ART Scientific Illust Lab Fees","N","19310LAB","Y"]
["19310413","ART Sculpture Lab Fees","N","19310LAB","Y"]
["19310414","ART 3D(1080) Fndtion Lab Fees","N","19310LAB","Y"]
["19310500","ART Associate Director-Primary","N","19310ADB","Y"]
["19310501","ART Recruitment Budget","N","19310ADB","Y"]
["19310502","ART Advertise/Contract Budget","N","19310ADB","Y"]
["19310503","ART Dodd Library Budget","N","19310ADB","Y"]
["19310504","ART Tech & Space Budget","N","19310ADB","Y"]
["19310505","ART Gallery Budget","N","19310ADB","Y"]
["19310506","ART Dodd Ambassador Budget","N","19310ADB","Y"]
["19310507","ART Advising Office Budget","N","19310ADB","Y"]
["19310600","ART Chris Garvin Startup","N","19310STA","Y"]
["19310601","ART Christina Hanawalt Startup","N","19310STA","Y"]
["19310602","ART Courtney Mcclellan Startup","N","19310STA","Y"]
["19310603","ART Demitra Thomloudis Startup","N","19310STA","Y"]
["19310604","ART James Enos Startup","N","19310STA","Y"]
["19310700","ART Visiting Artist-Primary","N","19310VAS","Y"]
["19310701","ART AGAS Budget","N","19310VAS","Y"]
["19310702","ART Class Speakers","N","19310VAS","Y"]
["19310800","ART Wilson Center-Primary","N","19310WIL","Y"]
["19310801","ART Willson Ctr-Marni","N","19310WIL","Y"]
["19310802","ART Wilson Ctr-Nicholas","N","19310WIL","Y"]
["19310900","ART Sustainability-Primary","N","19310SST","Y"]
["19310901","ART Sustain-Susan Roberts","N","19310SST","Y"]
["19310902","ART Sustain-Jain Kwon","N","19310SST","Y"]
["19310903","ART Sustain-Kira Hegeman","N","19310SST","Y"]
["19310910","ARTS FCSIB","N","19310000","Y"]
["19310920","ARTS FC Summer","N","19310000","Y"]
["19310BRZ","ART Bronze Acct","N","19310000","Y"]
["19310FDN","ART Foundation Accounts","N","19310000","Y"]
["19310GEN","ART General Operating","N","19310000","Y"]
["19310H01","ART Dept Head-Supplement","N","19310HEA","Y"]
["19310RES","ART Dept Research Funds","N","19310000","Y"]
["19310SPO","ART Spotlight on Arts Budget","N","19310000","Y"]
["19310SSW","ART Skill Swap Workshop","N","19310000","Y"]
["19310TCF","ART Technology Checkout Fund","N","19310000","Y"]
["19310TRA","ART Faculty Travel","N","19310000","Y"]
["19310VEH","ART Vehicle Rentals","N","19310000","Y"]
["19320001","DANC Dance General","N","19320000","Y"]
["19320002","DANC Dance Instruction","N","19320000","Y"]
["19320003","DANC Dance Research","N","19320000","Y"]
["19320004","DANC New Dance Theatre","N","19320000","Y"]
["19320005","DANC Dance Lab Fees","N","19320000","Y"]
["19320006","DANC Dance Funding Various","N","19320000","Y"]
["19320007","DANC Sandy Beaver Award","N","19320000","Y"]
["19320910","DANC FCSIB","N","19320000","Y"]
["19320920","DANC FC Summer","N","19320000","Y"]
["19330003","MUSI CD Sales","N","19330WGN","Y"]
["19330004","MUSI Student Fees","N","19330WGN","Y"]
["19330006","MUSI Ticket Sales","N","19330WGN","Y"]
["19330007","MUSI SMR Music Cmp","N","19330WGN","Y"]
["19330010","MUSI String Project","N","19330WPS","Y"]
["19330011","MUSI Community Music School","N","19330WPS","Y"]
["19330012","MUSI Double Bass","N","19330WRK","Y"]
["19330013","MUSI Saxophone","N","19330WRK","Y"]
["19330014","MUSI Orff Workshop","N","19330WRK","Y"]
["19330015","MUSI RCB CD Sales","N","19330RCB","Y"]
["19330016","MUSI UGA Bands","N","19330BND","Y"]
["19330019","MUSI Jazz Festival","N","19330WRK","Y"]
["19330020","MUSI Record/Stream","N","19330WGN","Y"]
["19330021","MUSI Int'L Prog","N","19330WRK","Y"]
["19330022","MUSI Orchestra","N","19330WRK","Y"]
["19330025","MUSI Bassoon","N","19330WRK","Y"]
["19330026","MUSI RC Auxiliaries","N","19330RCB","Y"]
["19330027","MUSI ARCO Chamber","N","19330ADM","Y"]
["19330028","MUSI PAC Support","N","19330ADM","Y"]
["19330030","MUSI RC Flagline","N","19330RCB","Y"]
["19330033","MUSI Choral Day","N","19330WRK","Y"]
["19330034","MUSI Choral Conduct","N","19330WRK","Y"]
["19330035","MUSI Clarinet","N","19330WRK","Y"]
["19330036","MUSI Levon Proff","N","19330ADM","Y"]
["19330037","MUSI Opera Support","N","19330ADM","Y"]
["19330038","MUSI Prokasy Prof","N","19330ADM","Y"]
["19330040","MUSI SE Tuba","N","19330WRK","Y"]
["19330041","MUSI Flute","N","19330WRK","Y"]
["19330042","MUSI Kodaly","N","19330WRK","Y"]
["19330044","MUSI Cloyd Duff","N","19330WRK","Y"]
["19330046","MUSI Burchinal Prof","N","19330ADM","Y"]
["19330047","MUSI Stdyabrdity","N","19330FLD","Y"]
["19330048","MUSI Fldstdyny","N","19330FLD","Y"]
["19330057","MUSI Director Suprt","N","19330ADM","Y"]
["19330064","MUSI Arco Support","N","19330ADM","Y"]
["19330065","MUSI Regents Levon","N","19330ADM","Y"]
["19330066","MUSI Faculty Research","N","19330ADM","Y"]
["19330067","MUSI Hoveland Opera","N","19330ADM","Y"]
["19330068","MUSI Online Class","N","19330ADM","Y"]
["19330070","MUSI Band Service","N","19330ADM","Y"]
["19330071","MUSI Boyd Choral","N","19330ADM","Y"]
["19330072","MUSI Opera Dorsey","N","19330ADM","Y"]
["19330073","MUSI Men's Glee Club","N","19330ADM","Y"]
["19330074","MUSI Miller Hodgson","N","19330ADM","Y"]
["19330075","MUSI Percussion Studio","N","19330ADM","Y"]
["19330141","MUSI Karlas Prof","N","19330ADM","Y"]
["19330144","MUSI Stdyabtuit","N","19330FLD","Y"]
["19330166","MUSI Hoveland Choral","N","19330ADM","Y"]
["19330167","MUSI Fldstdtuit","N","19330FLD","Y"]
["19330168","MUSI New Music Support","N","19330ADM","Y"]
["1933019J","MUSI Hhsom","N","19330ADM","Y"]
["19330237","MUSI RCB Wrkshp","N","19330RCB","Y"]
["19330240","MUSI Jazz Stdy Lowe","N","19330ADM","Y"]
["19330658","MUSI Mus Dev Lowe","N","19330ADM","Y"]
["19330665","MUSI Enhancement Fund","N","19330ADM","Y"]
["19330755","MUSI Beaver Tchverra","N","19330ADM","Y"]
["19330772","MUSI Mccay Fund","N","19330ADM","Y"]
["19330883","MUSI Warner Glee","N","19330ADM","Y"]
["19330900","MUSI Ind Cost Ret","N","19330ADM","Y"]
["19330910","MUSI FCSIB","N","19330000","Y"]
["19330920","MUSI FC Summer","N","19330000","Y"]
["19330924","MUSI 2nd Thurs Donations","N","19330ADM","Y"]
["19330947","MUSI RCB CD Sales Tax","N","19330RCB","Y"]
["19330950","MUSI Residual Bal","N","19330ADM","Y"]
["19330HEY","MUSI Heyward Prof","N","19330ADM","Y"]
["19330HHH","MUSI Hhsom GH","N","19330ADM","Y"]
["19330HHJ","MUSI Hhsom GJ","N","19330ADM","Y"]
["19330HHR","MUSI Hhsom GR","N","19330ADM","Y"]
["19330IND","MUSI Music Indirect","N","19330ADM","Y"]
["19330LSN","MUSI Lesson Non Mjr","N","19330WGN","Y"]
["19330T01","MUSI STF Tech Fees","N","19330ADM","Y"]
["19340001","THEA Operations","N","19340000","Y"]
["19340002","THEA Department Head","N","19340000","Y"]
["19340003","THEA Film Studies Head","N","19340000","Y"]
["19340004","THEA I.C.E. Program","N","19340000","Y"]
["19340005","THEA Film Studies Support","N","19340000","Y"]
["19340006","THEA Research Support","N","19340000","Y"]
["19340100","THEA Fine Arts Facility","N","19340000","Y"]
["19340101","THEA University Theatre","N","19340000","Y"]
["19340102","THEA Study Abroad","N","19340000","Y"]
["19340910","THEA FCSIB","N","19340000","Y"]
["19340920","THEA FC Summer","N","19340000","Y"]
["19340SUM","THEA Summary","N","19340000","Y"]
["19410001","CLAS Classics General","N","19410000","Y"]
["19410002","CLAS Dept Head","N","19410000","Y"]
["19410003","CLAS Albright","N","19410000","Y"]
["19410004","CLAS Bianchelli","N","19410000","Y"]
["19410005","CLAS Biggs","N","19410000","Y"]
["19410006","CLAS Corrigan","N","19410000","Y"]
["19410007","CLAS Dix","N","19410000","Y"]
["19410008","CLAS Eramso","N","19410000","Y"]
["19410009","CLAS Hermanowicz","N","19410000","Y"]
["19410010","CLAS Klein","N","19410000","Y"]
["19410011","CLAS Nicholson","N","19410000","Y"]
["19410012","CLAS O'Connell","N","19410000","Y"]
["19410013","CLAS Platter","N","19410000","Y"]
["19410014","CLAS Wolkow","N","19410000","Y"]
["19410100","CLAS Summer Institute","N","19410000","Y"]
["19410200","CLAS Post BAC","N","19410000","Y"]
["19410300","CLAS IDL Revenues","N","19410000","Y"]
["19410400","CLAS Rome","N","19410000","Y"]
["19410500","CLAS Europe","N","19410000","Y"]
["19410910","CLAS FCSIB","N","19410000","Y"]
["19410920","CLAS FC Summer","N","19410000","Y"]
["19420910","CMLT FCSIB","N","19420GEN","Y"]
["19420920","CMLT FC Summer","N","19420GEN","Y"]
["19420AAO","CMLT Akinloye Ojo Support","N","19420GEN","Y"]
["19420AXL","CMLT Ari Lieberman Support","N","19420GEN","Y"]
["19420CON","CMLT Conference Support","N","19420GEN","Y"]
["19420DMF","CMLT Dorothy Figueira Support","N","19420GEN","Y"]
["19420DMM","CMLT Dainess Maganda Support","N","19420GEN","Y"]
["19420DXB","CMLT Dezso Benedek Support","N","19420GEN","Y"]
["19420FMD","CMLT FMD Expenses","N","19420GEN","Y"]
["19420FSW","CMLT Frans Weiser Support","N","19420GEN","Y"]
["19420GOP","CMLT General Operating","N","19420GEN","Y"]
["19420GRD","CMLT Graduate Travel","N","19420GEN","Y"]
["19420HYI","CMLT Hyangsoon Yi Support","N","19420GEN","Y"]
["19420JDB","CMLT Joel Black Support","N","19420GEN","Y"]
["19420KEM","CMLT Karin Myhre Support","N","19420GEN","Y"]
["19420KXT","CMLT Karim Traore Support","N","19420GEN","Y"]
["19420LXM","CMLT Lioba Moshi Support","N","19420GEN","Y"]
["19420MIS","CMLT Mihai Spariosu Support","N","19420GEN","Y"]
["19420MSC","CMLT Miscellaneous","N","19420GEN","Y"]
["19420MXM","CMLT Masaki Mori Support","N","19420GEN","Y"]
["19420PON","CMLT Peter O'Neill Support","N","19420GEN","Y"]
["19420PRI","CMLT Public Relations Expenses","N","19420GEN","Y"]
["19420TJC","CMLT Tom Cerbu Support","N","19420GEN","Y"]
["19420YXW","CMLT Yuanfei Wang Support","N","19420GEN","Y"]
["19430100","ENGL English General Admin","N","19430000","Y"]
["19430200","ENGL English Operating","N","19430000","Y"]
["19430301","ENGL International Travel","N","19430300","Y"]
["19430302","ENGL Domestic Travel","N","19430300","Y"]
["19430401","ENGL English Dept Head","N","19430400","Y"]
["19430402","ENGL Allen Nicholas","N","19430400","Y"]
["19430403","ENGL Ballif Michelle","N","19430400","Y"]
["19430404","ENGL Balthazor Ron","N","19430400","Y"]
["19430405","ENGL Camp Cnthia","N","19430400","Y"]
["19430406","ENGL Davis Elizabeth","N","19430400","Y"]
["19430407","ENGL Desmet Christy","N","19430400","Y"]
["19430408","ENGL Eberle Roxanne","N","19430400","Y"]
["19430409","ENGL Evans Jonathan","N","19430400","Y"]
["19430410","ENGL Harding Lindsey","N","19430400","Y"]
["19430411","ENGL Henken Elissa","N","19430400","Y"]
["19430412","ENGL Howe Leanne (WILSON)","N","19430400","Y"]
["19430413","ENGL Iyengar Sujata","N","19430400","Y"]
["19430414","ENGL Jacobson Miriam","N","19430400","Y"]
["19430415","ENGL Kashyap Aruni","N","19430400","Y"]
["19430416","ENGL Kraft Elizabeth","N","19430400","Y"]
["19430417","ENGL Kretzschmar William","N","19430400","Y"]
["19430418","ENGL Lasek White Christine","N","19430400","Y"]
["19430419","ENGL LeGette Casie","N","19430400","Y"]
["19430420","ENGL Lootens Tricia","N","19430400","Y"]
["19430421","ENGL Lowe John","N","19430400","Y"]
["19430422","ENGL Marrs Cody","N","19430400","Y"]
["19430423","ENGL McCaskill Barbara","N","19430400","Y"]
["19430424","ENGL McKnight Reginald","N","19430400","Y"]
["19430425","ENGL Menke Richard","N","19430400","Y"]
["19430426","ENGL Miller Deborah","N","19430400","Y"]
["19430427","ENGL MILLER R Baxter","N","19430400","Y"]
["19430428","ENGL Morales Eric","N","19430400","Y"]
["19430429","ENGL Parkes Adam","N","19430400","Y"]
["19430430","ENGL Pavlic Ed","N","19430400","Y"]
["19430431","ENGL Pizzino Christopher","N","19430400","Y"]
["19430432","ENGL Rasula Jed","N","19430400","Y"]
["19430433","ENGL Romero Channette","N","19430400","Y"]
["19430434","ENGL Rosenbaum Susan","N","19430400","Y"]
["19430435","ENGL Santesso Esra","N","19430400","Y"]
["19430436","ENGL Tobin Beth","N","19430400","Y"]
["19430437","ENGL Wasley Aidan","N","19430400","Y"]
["19430438","ENGL Zawacki Andrew","N","19430400","Y"]
["19430439","ENGL Zurawski Magdalena","N","19430400","Y"]
["19430440","ENGL Babb V","N","19430400","Y"]
["19430500","ENGL English Atlas","N","19430000","Y"]
["19430600","ENGL First Year Composition","N","19430000","Y"]
["19430700","ENGL Creative Writing","N","19430000","Y"]
["19430800","ENGL Verse Journal","N","19430000","Y"]
["19430900","ENGL Writing Intensive Program","N","19430000","Y"]
["19430910","ENGL FCSIB","N","19430000","Y"]
["19430920","ENGL FC Summer","N","19430000","Y"]
["19430BAL","ENGL Borrows And Lenders","N","19430AGT","Y"]
["19430EMM","ENGL Emma","N","19430DSS","Y"]
["19430KEY","ENGL Keys","N","19430AGT","Y"]
["19430LAB","ENGL Lab","N","19430DSS","Y"]
["19430OTH","ENGL Other","N","19430DSS","Y"]
["19430STF","ENGL Student Tech Fee","N","19430000","Y"]
["19430TEA","ENGL Trail Of Tears","N","19430AGT","Y"]
["19440910","GRMN FCSIB","N","19440GSS","Y"]
["19440920","GRMN FC Summer","N","19440GSS","Y"]
["19440BOS","GRMN Bosquette, Joshua","N","19440GSS","Y"]
["19440BYR","GRMN Byrd, Charles","N","19440GSS","Y"]
["19440CHA","GRMN Chapman, Katie","N","19440GSS","Y"]
["19440CRA","GRMN Crawford, Heide","N","19440GSS","Y"]
["19440DIB","GRMN DiBella,Inge","N","19440GSS","Y"]
["19440GOO","GRMN Gooze, Marjanne","N","19440GSS","Y"]
["19440GOS","GRMN Operations & Supplies","N","19440GSS","Y"]
["19440GUE","GRMN Gueneli, Berna","N","19440GSS","Y"]
["19440HSF","GRMN Head Support fund","N","19440GSS","Y"]
["19440LAN","GRMN Langston, Keith","N","19440GSS","Y"]
["19440LEE","GRMN Lee-Shoenfeld, Vera","N","19440GSS","Y"]
["19440ROS","GRMN Rossbacher, Brigitte","N","19440GSS","Y"]
["19440SAG","GRMN Sager, Alexander","N","19440GSS","Y"]
["19440SPE","GRMN Spektor, Alex","N","19440GSS","Y"]
["19440THO","GRMN Thomsaon, Olga","N","19440GSS","Y"]
["19450001","HIST-gj","N","19450000","Y"]
["19450101","Hist FYO primary","N","19450FYO","Y"]
["19450102","HIST FYO second","N","19450FYO","Y"]
["19450103","HIST FYO third","N","19450FYO","Y"]
["19450104","HIST FYO fourth","N","19450FYO","Y"]
["19450105","HIST FYO fifth","N","19450FYO","Y"]
["19450106","HIST FYO sixth","N","19450FYO","Y"]
["19450107","HIST FYO seven","N","19450FYO","Y"]
["19450108","HIST YO eight","N","19450FYO","Y"]
["19450300","HIST-recruitment new faculty","N","19450REC","Y"]
["19450301","HIST-Graduate recruitment","N","19450REC","Y"]
["19450302","HIST-move & relocation","N","19450REC","Y"]
["19450500","HIST-primary","N","19450TRA","Y"]
["19450501","HIST-traveler1","N","19450TRA","Y"]
["19450502","Hist-traveler2","N","19450TRA","Y"]
["19450503","HIST-traveler3","N","19450TRA","Y"]
["19450504","HIST-traveler4","N","19450TRA","Y"]
["19450505","HIST-traveler5","N","19450TRA","Y"]
["19450506","HIST-traveler6","N","19450TRA","Y"]
["19450507","HIST-traveler7","N","19450TRA","Y"]
["19450508","HIST-traveler8","N","19450TRA","Y"]
["19450509","HIST-traveler9","N","19450TRA","Y"]
["19450510","HIST-traveler10","N","19450TRA","Y"]
["19450910","HIST FCSIB","N","19450000","Y"]
["19450920","HIST FC Summer","N","19450000","Y"]
["19450BHM","HIST Black History Workshop","N","19450000","Y"]
["19450DH1","HIST-primary","N","19450DHM","Y"]
["19450DH2","HIST- head support","N","19450DHM","Y"]
["19450DHS","HIST-dirty","N","19450000","Y"]
["19450FDN","HIST-foundation Accounts","N","19450000","Y"]
["19450G01","HIST-primary","N","19450GEN","Y"]
["19450G02","HIST-Levine","N","19450GEN","Y"]
["19450HDG","HIST-Gender","N","19450000","Y"]
["19450INS","HIST-Inscoe","N","19450000","Y"]
["19450LC1","HIST-Lecture1","N","19450TRA","Y"]
["19450LC2","HIST-Lecture2","N","19450TRA","Y"]
["19450MIM","HIST-Mihm","N","19450000","Y"]
["19450MIS","HIST-misc.","N","19450000","Y"]
["19450MOR","HIST-Morrow","N","19450000","Y"]
["19450SHA","HIST-Southern Hist Society","N","19450000","Y"]
["19450SLA","HIST-Slsa","N","19450TRA","Y"]
["19450TCH","HIST-technolgy","N","19450000","Y"]
["19460100","Linguistics","N","19460000","Y"]
["19460910","LING FCSIB","N","19460000","Y"]
["19460920","LING FC Summer","N","19460000","Y"]
["19470910","PHIL FCSIB","N","19470000","Y"]
["19470920","PHIL FC Summer","N","19470000","Y"]
["19470PHI","PHIL Philosophy - Gen","N","19470000","Y"]
["19480000","RELI Religion General","N","19480REL","Y"]
["19480001","RELI Mccay Speakers","N","19480REL","Y"]
["19480002","RELI Davis Funds","N","19480REL","Y"]
["19480003","RELI Covenant Funds","N","19480REL","Y"]
["19480004","RELI Islamic Studies","N","19480REL","Y"]
["19480910","RELI FCSIB","N","19480REL","Y"]
["19480920","RELI FC Summer","N","19480REL","Y"]
["19490100","ROML General Administration","N","19490000","Y"]
["19490201","ROML Visa Fees","N","19490200","Y"]
["19490202","ROML Visiting Scholars","N","19490200","Y"]
["19490203","ROML Fulbrights","N","19490200","Y"]
["19490204","ROML Instructors","N","19490200","Y"]
["19490205","ROML Graduate Students","N","19490200","Y"]
["19490206","ROML Recruitment","N","19490200","Y"]
["19490301","ROML International Travel","N","19490300","Y"]
["19490302","ROML Domestic Travel","N","19490300","Y"]
["19490401","ROML Department Head","N","19490400","Y"]
["19490402","ROML Anderson Mark","N","19490400","Y"]
["19490403","ROML Assaf Francis","N","19490400","Y"]
["19490404","ROML Baillehache Jonathan","N","19490400","Y"]
["19490405","ROML Blackwell Sarah","N","19490400","Y"]
["19490406","ROML Bultman Dana","N","19490400","Y"]
["19490407","ROML Casado Stacey","N","19490400","Y"]
["19490408","ROML Chamorro Pilar","N","19490400","Y"]
["19490409","ROML Correa-Díaz Luis","N","19490400","Y"]
["19490410","ROML De Santo Paola","N","19490400","Y"]
["19490411","ROML Fallows Noel","N","19490400","Y"]
["19490412","ROML Feracho Lesley","N","19490400","Y"]
["19490413","ROML Gabara Rachel","N","19490400","Y"]
["19490414","ROML Gordon Richard","N","19490400","Y"]
["19490415","ROML Grossvogel Steven","N","19490400","Y"]
["19490416","ROML Gupton Timothy","N","19490400","Y"]
["19490417","ROML Haddad Jonathan","N","19490400","Y"]
["19490418","ROML Howe Chad","N","19490400","Y"]
["19490419","ROML Jones Catherine","N","19490400","Y"]
["19490420","ROML Kaplan Betina","N","19490400","Y"]
["19490421","ROML Krell Jonathan","N","19490400","Y"]
["19490422","ROML Lucero Nicolas","N","19490400","Y"]
["19490423","ROML Moser Robert","N","19490400","Y"]
["19490424","ROML Pendergrass Jan","N","19490400","Y"]
["19490425","ROML Peterson Thomas","N","19490400","Y"]
["19490426","ROML Quesada Margaret","N","19490400","Y"]
["19490427","ROML Quinlan Susan","N","19490400","Y"]
["19490428","ROML Ranson Diana","N","19490400","Y"]
["19490429","ROML Raser Timothy","N","19490400","Y"]
["19490430","ROML Rodrigues Cecília","N","19490400","Y"]
["19490431","ROML Sahakian Emily","N","19490400","Y"]
["19490432","ROML Villate Alberto","N","19490400","Y"]
["19490433","ROML Wright Elizabeth","N","19490400","Y"]
["19490910","ROML FCSIB","N","19490000","Y"]
["19490920","ROML FC Summer","N","19490000","Y"]
["19490SAB","ROML Study Abroad Programs","N","19490SUM","Y"]
["19490STF","ROML Student Tech Fee","N","19490000","Y"]
["19510001","CHEM Expense","N","19510000","Y"]
["19510008","CHEM Nmr Facility","N","19510000","Y"]
["19510011","CHEM Pams Facility","N","19510000","Y"]
["19510015","CHEM Amino Acids Rp","N","19510000","Y"]
["19510016","CHEM Chem Lab Fees","N","19510000","Y"]
["19510017","CHEM Xray Facility","N","19510000","Y"]
["19510018","CHEM Plotter Printer","N","19510000","Y"]
["19510023","CHEM Polymer Anal Jl","N","19510000","Y"]
["19510033","CHEM Smith Pas","N","19510000","Y"]
["19510034","CHEM Wheeler Chem Sf","N","19510000","Y"]
["19510910","CHEM FCSIB","N","19510000","Y"]
["19510920","CHEM FC Summer","N","19510000","Y"]
["19510AAF","CHEM Amanda Frossard","N","19510000","Y"]
["19510AIW","CHEM Ana West","N","19510000","Y"]
["19510CRK","CHEM Charles Kutal","N","19510000","Y"]
["19510DMJ","CHEM Douglas Jackson","N","19510000","Y"]
["19510DMN","CHEM Daphne Norton","N","19510000","Y"]
["19510DWS","CHEM Wayne Suggs","N","19510000","Y"]
["19510EMF","CHEM Eric Ferreira","N","19510000","Y"]
["19510GDS","CHEM Geoffrey Smith","N","19510000","Y"]
["19510GED","CHEM Gary Douberly","N","19510000","Y"]
["19510GFM","CHEM George Majetich","N","19510000","Y"]
["19510GHR","CHEM Gregory Robinson","N","19510000","Y"]
["19510HFS","CHEM Henry Schaefer","N","19510000","Y"]
["19510IJA","CHEM Jon Amster","N","19510000","Y"]
["19510JAC","CHEM Joel Caughran","N","19510000","Y"]
["19510JJL","CHEM Jason Locklin","N","19510000","Y"]
["19510JLS","CHEM John Stickney","N","19510000","Y"]
["19510JLU","CHEM Jeffrey Urbauer","N","19510000","Y"]
["19510JXI","CHEM Jin Xie","N","19510000","Y"]
["19510LAC","CHEM Lionel Carreira","N","19510000","Y"]
["19510MAD","CHEM Michael Duncan","N","19510000","Y"]
["19510MAR","CHEM Melanie Reber","N","19510000","Y"]
["19510MKJ","CHEM Michael Johnson","N","19510000","Y"]
["19510NJP","CHEM Norbert Pienta","N","19510000","Y"]
["19510RAS","CHEM Robert Scott","N","19510000","Y"]
["19510RBH","CHEM Richard Hubbard","N","19510000","Y"]
["19510RSP","CHEM Robert Phillips","N","19510000","Y"]
["19510RWM","CHEM Richard Morrison","N","19510000","Y"]
["19510SAB","CHEM Sara Blankenship","N","19510000","Y"]
["19510SEW","CHEM Stephen Wheeler","N","19510000","Y"]
["19510SRE","CHEM Suzanne Ellenberger","N","19510000","Y"]
["19510TCH","CHEM Todd Harrop","N","19510000","Y"]
["19510TJR","CHEM Ted Reber","N","19510000","Y"]
["19510TTS","CHEM Tina Salguero","N","19510000","Y"]
["19510VVP","CHEM Vladimir Popik","N","19510000","Y"]
["19510WDA","CHEM Wesley Allen","N","19510000","Y"]
["19510WDU","CHEM Wenjian Du","N","19510000","Y"]
["19520100","COMP SCI General Ops","N","19520000","Y"]
["19520910","CSCI FCSIB","N","19520000","Y"]
["19520920","CSCI FC Summer","N","19520000","Y"]
["19520ARA","CSCI Faculty Arabnia","N","19520000","Y"]
["19520ARP","CSCI Faculty Arpinar","N","19520000","Y"]
["19520BAR","CSCI Faculty Barnes","N","19520000","Y"]
["19520BHA","CSCI Faculty Bhandarkar","N","19520000","Y"]
["19520CAI","CSCI Faculty Cai","N","19520000","Y"]
["19520COT","CSCI Faculty Cotterell","N","19520000","Y"]
["19520DOS","CSCI Faculty Doshi","N","19520000","Y"]
["19520EVE","CSCI Faculty Everett","N","19520000","Y"]
["19520FUN","CSCI Faculty Funk","N","19520000","Y"]
["19520HOL","CSCI Faculty Hollingsworth","N","19520000","Y"]
["19520HON","CSCI Faculty Hong","N","19520000","Y"]
["19520HYB","CSCI Faculty Hybinette","N","19520000","Y"]
["19520KES","CSCI Faculty Keshtgari","N","19520000","Y"]
["19520KOC","CSCI Faculty Kochut","N","19520000","Y"]
["19520LEE","CSCI Faculty Jaewoo Lee","N","19520000","Y"]
["19520LEK","CSCI Faculty Kyu Lee","N","19520000","Y"]
["19520LIK","CSCI Faculty Li","N","19520000","Y"]
["19520LIU","CSCI Faculty Liu","N","19520000","Y"]
["19520MEE","CSCI Faculty Meena","N","19520000","Y"]
["19520MIL","CSCI Faculty Miller","N","19520000","Y"]
["19520PER","CSCI Faculty Perdisci","N","19520000","Y"]
["19520QUI","CSCI Faculty Quinn","N","19520000","Y"]
["19520RAM","CSCI Faculty Ramaswamy","N","19520000","Y"]
["19520RAS","CSCI Faculty Rasheed","N","19520000","Y"]
["19520SAL","CSCI Faculty Saleh","N","19520000","Y"]
["19520SCO","CSCI Faculty Scott","N","19520000","Y"]
["19520TAH","CSCI Faculty Taha","N","19520000","Y"]
["19520YAZ","CSCI Faculty Yazdansepas","N","19520000","Y"]
["19530910","GEOL FCSIB","N","19530000","Y"]
["19530920","GEOL FC Summer","N","19530000","Y"]
["19530COL","GEOL COL Field School","N","19530000","Y"]
["19530CRO","GEOL Crowe Faculty","N","19530000","Y"]
["19530GAR","GEOL Garrison Faculty","N","19530000","Y"]
["19530GEO","GEOL General Account","N","19530000","Y"]
["19530GOL","GEOL Goldstein Faculty","N","19530000","Y"]
["19530GRA","GEOL Grant and Residual","N","19530000","Y"]
["19530HAW","GEOL Hawman Faculty","N","19530000","Y"]
["19530HOL","GEOL Holland Faculty","N","19530000","Y"]
["19530HOW","GEOL Howarth Faculty","N","19530000","Y"]
["19530IDC","GEOL Indirect Cost","N","19530000","Y"]
["19530IFP","GEOL IFP Field School","N","19530000","Y"]
["19530KLI","GEOL Klimczak Faculty","N","19530000","Y"]
["19530LAB","GEOL Lab Fee","N","19530000","Y"]
["19530MIL","GEOL Milewski Faculty","N","19530000","Y"]
["19530NZE","GEOL Nzengung Faculty","N","19530000","Y"]
["19530PAA","GEOL Patino Alberto Faculty","N","19530000","Y"]
["19530PAM","GEOL Patino Marta Faculty","N","19530000","Y"]
["19530PRO","GEOL Probe Income","N","19530000","Y"]
["19530RAI","GEOL Railsback Faculty","N","19530000","Y"]
["19530ROD","GEOL Roden Faculty","N","19530000","Y"]
["19530SCH","GEOL Schroder Faculty","N","19530000","Y"]
["19530SED","GEOL SED Income","N","19530000","Y"]
["19530SIL","GEOL SIL Income","N","19530000","Y"]
["19530TRA","GEOL Travel","N","19530000","Y"]
["19530WAL","GEOL Walker Faculty","N","19530000","Y"]
["19530WRI","GEOL Wright Faculty","N","19530000","Y"]
["19530XRD","GEOL XRD Income","N","19530000","Y"]
["19540006","MATH Topology Conference","N","19540000","Y"]
["19540009","MATH Math Club","N","19540000","Y"]
["19540100","MATH Mathematics Operating","N","19540000","Y"]
["19540120","MATH Mathematics TJ19","N","19540000","Y"]
["19540225","MATH Dist Rsch Prof Lorenzini","N","19540000","Y"]
["19540234","MATH VIGRE","N","19540000","Y"]
["19540247","MATH Wu Startup","N","19540000","Y"]
["19540248","MATH Rider Startup","N","19540000","Y"]
["19540249","MATH Petridis Startup","N","19540000","Y"]
["19540250","MATH Bakker Startup","N","19540000","Y"]
["19540300","MATH Indirect","N","19540000","Y"]
["19540400","MATH Mathematics General GR","N","19540000","Y"]
["19540500","MATH UGARF SUPPORT","N","19540000","Y"]
["19540910","MATH FCSIB","N","19540000","Y"]
["19540920","MATH FC Summer","N","19540000","Y"]
["19550910","PHYS FCSIB","N","19550000","Y"]
["19550920","PHYS FC Summer","N","19550000","Y"]
["19550CCW","PHYS Craig Wiegert","N","19550000","Y"]
["19550COL","PHYS Colloquium Expenses","N","19550000","Y"]
["19550CSP","PHYS CSP General","N","19550001","Y"]
["19550CSW","PHYS CSP Workshop","N","19550001","Y"]
["19550DIT","PHYS Department IT","N","19550000","Y"]
["19550DPL","PHYS David P. Landau","N","19550001","Y"]
["19550HBS","PHYS Hb Schuttler","N","19550001","Y"]
["19550HHM","PHYS Henning H. Meyer","N","19550000","Y"]
["19550INS","PHYS Instruction","N","19550000","Y"]
["19550ISS","PHYS Inseok Song","N","19550000","Y"]
["19550JPC","PHYS Jean-Pierre Caillault","N","19550000","Y"]
["19550KKM","PHYS KK Mon","N","19550000","Y"]
["19550KZN","PHYS Kanzo Nakayama","N","19550000","Y"]
["19550LAB","PHYS Instructional Labs","N","19550000","Y"]
["19550LAM","PHYS Loris A. Magnani","N","19550000","Y"]
["19550MCB","PHYS Michael Bachmann","N","19550001","Y"]
["19550MRG","PHYS Michael Geller","N","19550001","Y"]
["19550PCS","PHYS Phillip C. Stancil","N","19550001","Y"]
["19550QUZ","PHYS Qun Zhao","N","19550000","Y"]
["19550RES","PHYS Research","N","19550000","Y"]
["19550RLS","PHYS Robin Shelton","N","19550001","Y"]
["19550SPL","PHYS Steven P. Lewis","N","19550001","Y"]
["19550SUU","PHYS Susanne Ullrich","N","19550000","Y"]
["19550THN","PHYS Tho Nguyen","N","19550000","Y"]
["19550UWH","PHYS Uwe Happek","N","19550000","Y"]
["19550WMD","PHYS William M. Dennis","N","19550000","Y"]
["19550YOA","PHYS Yohannes Abate","N","19550000","Y"]
["19550YPZ","PHYS Yiping Zhao","N","19550000","Y"]
["19560001","STAT General","N","19560000","Y"]
["19560910","STAT FCSIB","N","19560000","Y"]
["19560920","STAT FC Summer","N","19560000","Y"]
["19560AMA","STAT Abhyuday Mandal","N","19560FAC","Y"]
["19560CCA","STAT Catherine Case","N","19560FAC","Y"]
["19560COL","STAT Colloquium Expenses","N","19560000","Y"]
["19560CPA","STAT Cheolwoo Park","N","19560FAC","Y"]
["19560DHA","STAT Daniel Hall","N","19560FAC","Y"]
["19560FSR","STAT Faculty Searches","N","19560000","Y"]
["19560GDA","STAT Gauri Datta","N","19560FAC","Y"]
["19560GRA","STAT Graduate Recruitment","N","19560000","Y"]
["19560JAH","STAT Jeongyoun Ahn","N","19560FAC","Y"]
["19560JKA","STAT Jennifer Kaplan","N","19560FAC","Y"]
["19560JRE","STAT Jaxk Reeves","N","19560FAC","Y"]
["19560KGI","STAT Kim Gilbert","N","19560FAC","Y"]
["19560LBI","STAT Lynne Billard","N","19560FAC","Y"]
["19560LLI","STAT Liang Liu","N","19560FAC","Y"]
["19560LSE","STAT Lynne Seymour","N","19560FAC","Y"]
["19560MDU","STAT Mickey Dunlap","N","19560FAC","Y"]
["19560MLU","STAT Megan Lutz","N","19560FAC","Y"]
["19560MWE","STAT Mark Werner","N","19560FAC","Y"]
["19560NLA","STAT Nicole Lazar","N","19560FAC","Y"]
["19560PJI","STAT Pengsheng Ji","N","19560FAC","Y"]
["19560PMA","STAT Ping Ma","N","19560FAC","Y"]
["19560PSC","STAT Paul Schliekelman","N","19560FAC","Y"]
["19560QXI","STAT Qian Xiao","N","19560FAC","Y"]
["19560RDC","STAT RDC Expenses","N","19560000","Y"]
["19560SBA","STAT Shuyang Bai","N","19560FAC","Y"]
["19560SCC","STAT Stat. Consulting Center","N","19560000","Y"]
["19560TSR","STAT Tharuvai Sriram","N","19560FAC","Y"]
["19560WZH","STAT Wenxuan Zhong","N","19560FAC","Y"]
["19560XCH","STAT Xianyan Chen","N","19560FAC","Y"]
["19610001","ANTH General","N","19610000","Y"]
["19610002","ANTH Excavation","N","19610000","Y"]
["19610100","ANTH Site File","N","19610000","Y"]
["19610101","ANTH Anth 4300 Lab Fee","N","19610000","Y"]
["19610102","ANTH Anth 3045L Lab Fee","N","19610000","Y"]
["19610104","ANTH Bioarch & Biochem","N","19610000","Y"]
["19610105","ANTH Zooarchaeology","N","19610000","Y"]
["19610106","ANTH Quip Lab","N","19610000","Y"]
["19610107","ANTH Continuing Curation","N","19610000","Y"]
["19610195","ARCH Archaeology","N","19610000","Y"]
["19610910","ANTH FCSIB","N","19610000","Y"]
["19610920","ANTH FC Summer","N","19610000","Y"]
["19610BTU","ANTH Bram Tucker","N","19610000","Y"]
["19610DNE","ANTH Donald Nelson","N","19610FAC","Y"]
["19610EGA","ANTH Ervan Garrison","N","19610FAC","Y"]
["19610ERE","ANTH Elizabeth Reitz","N","19610FAC","Y"]
["19610GRF","ANTH Graduate Recruitment","N","19610000","Y"]
["19610JBI","ANTH Jennifer Birch","N","19610FAC","Y"]
["19610JVR","ANTH Julie Velazquez Runk","N","19610FAC","Y"]
["19610LGE","ANTH Laura German","N","19610FAC","Y"]
["19610LRE","ANTH Laurie Reitsema","N","19610FAC","Y"]
["19610MWI","ANTH Mark Williams","N","19610FAC","Y"]
["19610PBR","ANTH Peter Brosius","N","19610FAC","Y"]
["19610RSA","ANTH Roberta Salmi","N","19610FAC","Y"]
["19610SBI","ANTH Suzanne Birch","N","19610FAC","Y"]
["19610SQU","ANTH Sergio Quesada","N","19610FAC","Y"]
["19610STA","ANTH Susan Tanner","N","19610FAC","Y"]
["19610TGR","ANTH Theodore Gragson","N","19610FAC","Y"]
["19610VNA","ANTH Virginia Nazarea","N","19610FAC","Y"]
["19610VSF","ANTH Visiting Scholar Funds","N","19610000","Y"]
["19610VTH","ANTH Victor Thompson","N","19610FAC","Y"]
["19620004","COMM Comm Studies Custom Pub","N","19620000","Y"]
["196200DH","COMM Dept Head Funds","N","19620003","Y"]
["196200GC","COMM Grad Coord Funds","N","19620003","Y"]
["19620910","COMM FCSIB","N","19620000","Y"]
["19620920","COMM FC Summer","N","19620000","Y"]
["19620AGY","COMM Agency","N","19620005","Y"]
["19620CNT","COMM Comm Studies C-T","N","19620000","Y"]
["19620FA1","COMM Fac Supplemental Funds 1","N","19620003","Y"]
["19620FA2","COMM Fac Supplemental Funds 2","N","19620003","Y"]
["19620FA3","COMM Fac Supplemental Funds 3","N","19620003","Y"]
["19620FA4","COMM Fac Supplemental Funds 4","N","19620003","Y"]
["19620FA5","COMM Fac Supplemental Funds 5","N","19620003","Y"]
["19620GDU","COMM GA Deb Union","N","19620000","Y"]
["19620RCN","COMM COMM Studies R-Control","N","19620003","Y"]
["19620RES","COMM Restricted","N","19620005","Y"]
["19620ST1","COMM Start-Up Funds 1","N","19620003","Y"]
["19620ST2","COMM Start-Up Funds 2","N","19620003","Y"]
["19620UGC","COMM Undergrad Coord Funds","N","19620003","Y"]
["19630910","GEOG FCSIB","N","19630000","Y"]
["19630920","GEOG FC Summer","N","19630000","Y"]
["19630BIR","GEOG Birch","N","19630000","Y"]
["19630BRK","GEOG Brook","N","19630000","Y"]
["19630CGR","GEOG Ctr For Geospatial Rsch","N","19630000","Y"]
["19630GGY","GEOG Geography General","N","19630000","Y"]
["19630GND","GEOG Grundstein","N","19630000","Y"]
["19630HEY","GEOG Heynen","N","19630000","Y"]
["19630HOL","GEOG Holloway","N","19630000","Y"]
["19630KPM","GEOG Kooperman","N","19630000","Y"]
["19630KTZ","GEOG Kurtz","N","19630000","Y"]
["19630LGH","GEOG Leigh","N","19630000","Y"]
["19630MOT","GEOG Mote","N","19630000","Y"]
["19630MSH","GEOG Mishra","N","19630000","Y"]
["19630MUL","GEOG Mu","N","19630000","Y"]
["19630OSL","GEOG DSS Osl","N","19630000","Y"]
["19630POR","GEOG Porinchu","N","19630000","Y"]
["19630ROY","GEOG DSS Royalty","N","19630000","Y"]
["19630SAR","GEOG Sarmiento","N","19630000","Y"]
["19630SEG","GEOG DSS Seg","N","19630000","Y"]
["19630SHN","GEOG Shannon","N","19630000","Y"]
["19630SHP","GEOG Shepherd","N","19630000","Y"]
["19630TRG","GEOG Trauger","N","19630000","Y"]
["19640012","PSYC Psychology - Misc","N","19640000","Y"]
["19640019","PSYC Psychology Clinic","N","19640000","Y"]
["19640032","PSYC IOMP Program","N","19640000","Y"]
["196400DC","PSYC D Carter Start up","N","19640000","Y"]
["196400DH","PSYC Dept Head Support","N","19640000","Y"]
["196400GS","PSYC G Strauss Start up","N","19640000","Y"]
["196400IM","PSYC I Metzger Start up","N","19640000","Y"]
["196400JL","PSYC J Lavner Start up","N","19640000","Y"]
["196400KE","PSYC K Ehrlich Start up","N","19640000","Y"]
["196400KS","PSYC K Shockley Start up","N","19640000","Y"]
["19640910","PSYC FCSIB","N","19640000","Y"]
["19640920","PSYC FC Summer","N","19640000","Y"]
["19640BIN","PSYC BIRC Income","N","19640000","Y"]
["19640BUD","PSYC Budget","N","19640000","Y"]
["19640CAD","PSYC Clinic Administration","N","19640000","Y"]
["19640CIN","PSYC Clinic Income","N","19640000","Y"]
["19640GEN","PSYC Psychology General","N","19640000","Y"]
["19640HSD","PSYC UGA UA Holmes Seed Funds","N","19640000","Y"]
["19640PGF","PSYC Grad Asst Funding","N","19640000","Y"]
["19640PIN","PSYC Dept Income","N","19640000","Y"]
["19640SSD","PSYC CTRU Seed Grant Strauss","N","19640000","Y"]
["19640VIP","PSYC Vip Tuition Funds","N","19640000","Y"]
["19650001","SOCI Sociology General","N","19650000","Y"]
["19650100","SOCI Soc/Crim Jus Liverpool","N","19650000","Y"]
["19650201","SOCI Graizbord","N","19650200","Y"]
["19650202","SOCI Erigha","N","19650200","Y"]
["19650203","SOCI Derpic","N","19650200","Y"]
["19650910","SOCI FCSIB","N","19650000","Y"]
["19650920","SOCI FC Summer","N","19650000","Y"]
["19650JCO","SOCI James Coverdill RU","N","19650FAC","Y"]
["19710001","AFAM AfriAmerican Studies Gen","N","19710000","Y"]
["19710910","AFAM FCSIB","N","19710000","Y"]
["19710920","AFAM FC Summer","N","19710000","Y"]
["19720001","AFST African Studies Gen","N","19720000","Y"]
["19720910","AFST FCSIB","N","19720000","Y"]
["19720920","AFST FC Summer","N","19720000","Y"]
["19730001","ARTI General","N","19730000","Y"]
["19730002","ARTI Faculty Travel","N","19730000","Y"]
["19730003","ARTI Graduate Travel","N","19730000","Y"]
["19730910","ARTI FCSIB","N","19730000","Y"]
["19730920","ARTI FC Summer","N","19730000","Y"]
["197400ST","CCQC Students","N","19740000","Y"]
["19740920","CCQC FC Summer","N","19740000","Y"]
["19740HFS","CCQC Dr. Henry Schaefer","N","19740000","Y"]
["19740RBK","CCQC Dr. R. Bruce King","N","19740000","Y"]
["19740SEW","CCQC Dr. Steven Wheeler","N","19740000","Y"]
["19740WDA","CCQC Dr. Wesley Allen","N","19740000","Y"]
["19745CMS","CMS Ctr Metalloenzy Studies","N","19000000","Y"]
["19750001","CRIM Criminal Justice Gen","N","19750000","Y"]
["19750920","CRIM FC Summer","N","19750000","Y"]
["19755NAM","NAMS Inst Native Amer Studies","N","19000000","Y"]
["19760001","BINF Inst Bioinformatics Gen","N","19760000","Y"]
["19760910","BINF FCSIB","N","19760000","Y"]
["19760920","BINF FC Summer","N","19760000","Y"]
["19770001","LACS LACSI General","N","19770000","Y"]
["19770910","LACS FCSIB","N","19770000","Y"]
["19770920","LACS FC Summer","N","19770000","Y"]
["19770GSA","LACS Plant Sales","N","19770000","Y"]
["19780000","RCLD - General","N","19780REG","Y"]
["19780CON","RCLD - Conference","N","19780REG","Y"]
["19780INC","RCLD - Income","N","19780REG","Y"]
["19790001","WMST Women's Studies General","N","19790000","Y"]
["19790002","WMST Women'S History Month","N","19790000","Y"]
["19790003","WMST Women & Girls In Georgia","N","19790000","Y"]
["19790910","WMST FCSIB","N","19790000","Y"]
["19790920","WMST FC Summer","N","19790000","Y"]
["20197160","TCB-MIS-Dept Admin","N","20197100","Y"]
["201971AT","TCB-MIS-Amit Tiwana","N","20197100","Y"]
["201971CP","TCB-MIS-Craig Piercy","N","20197100","Y"]
["201971D0","TCB-MIS-Phd. Student 0","N","20197118","Y"]
["201971D1","TCB-MIS-Phd. Student 1","N","20197118","Y"]
["201971D2","TCB-MIS-Phd. Student 2","N","20197118","Y"]
["201971D3","TCB-MIS-Phd. Student 3","N","20197118","Y"]
["201971D4","TCB-MIS-Phd. Student 4","N","20197118","Y"]
["201971D5","TCB-MIS-Phd. Student 5","N","20197118","Y"]
["201971D6","TCB-MIS-Phd. Student 6","N","20197118","Y"]
["201971D7","TCB-MIS-Phd. Student 7","N","20197118","Y"]
["201971D8","TCB-MIS-Phd. Student 8","N","20197118","Y"]
["201971D9","TCB-MIS-Phd. Student 9","N","20197118","Y"]
["201971DC","TCB-MIS-Dave Chatterjee","N","20197100","Y"]
["201971EK","TCB-MIS-Elena Karahanna","N","20197100","Y"]
["201971F0","TCB-MIS-Faculty 0","N","20197199","Y"]
["201971F1","TCB-MIS-Faculty 1","N","20197199","Y"]
["201971F2","TCB-MIS-Faculty 2","N","20197199","Y"]
["201971F3","TCB-MIS-Faculty 3","N","20197199","Y"]
["201971F4","TCB-MIS-Faculty 4","N","20197199","Y"]
["201971F5","TCB-MIS-Faculty 5","N","20197199","Y"]
["201971HS","TCB-MIS-Hani Safadi","N","20197100","Y"]
["201971HW","TCB-MIS-Hugh Watson","N","20197100","Y"]
["201971JA","TCB-MIS-Janine Aronson","N","20197100","Y"]
["201971MB","TCB-MIS-Maric Boudreau","N","20197100","Y"]
["201971MH","TCB-MIS-Mark Huber","N","20197100","Y"]
["201971NB","TCB-MIS-Nick Berente","N","20197100","Y"]
["201971NS","TCB-MIS-Nikhil Srinivasan","N","20197100","Y"]
["20197260","TCB-MIS-MBT Admin","N","20197200","Y"]
["20198118","TCB-ACC-Phd Programs","N","20000000","Y"]
["20198160","TCB-ACC-Dept Admin","N","20198100","Y"]
["201981BR","TCB-ACC-Bob Resutek","N","20198100","Y"]
["201981BW","TCB-ACC-Ben Whipple","N","20198100","Y"]
["201981ET","TCB-ACC-Erin Towery","N","20198100","Y"]
["201981F0","TCB-ACC-Faculty 0","N","20198199","Y"]
["201981F1","TCB-ACC-Faculty 1","N","20198199","Y"]
["201981F2","TCB-ACC-Faculty 2","N","20198199","Y"]
["201981F3","TCB-ACC-Faculty 3","N","20198199","Y"]
["201981F4","TCB-ACC-Faculty 4","N","20198199","Y"]
["201981F5","TCB-ACC-Faculty 5","N","20198199","Y"]
["201981FH","TCB-ACC-Frank Heflin","N","20198100","Y"]
["201981JC","TCB-ACC-John Campbell","N","20198100","Y"]
["201981JG","TCB-ACC-Jenny Gaver","N","20198100","Y"]
["201981JH","TCB-ACC-Jackie Hammersley","N","20198100","Y"]
["201981JL","TCB-ACC-Joshua Lee","N","20198100","Y"]
["201981JU","TCB-ACC-Justin Leiby","N","20198100","Y"]
["201981MC","TCB-ACC-Margaret Christ","N","20198100","Y"]
["201981SB","TCB-ACC-Steve Baginski","N","20198100","Y"]
["201981SR","TCB-ACC-Santosh R.","N","20198100","Y"]
["201981TC","TCB-ACC-Ted Christensen","N","20198100","Y"]
["201981TI","TCB-ACC-Tina Carpenter","N","20198100","Y"]
["20198200","TCB-ACC-Under-Grad Prog","N","20000000","Y"]
["20198300","TCB-ACC-Macc","N","20000000","Y"]
["20199118","TCB-FIN-Phd Programs","N","20000000","Y"]
["20199160","TCB-FIN-Dept Admin","N","20199100","Y"]
["201991AP","TCB-FIN-Annette Poulsen","N","20199100","Y"]
["201991CR","TCB-FIN-Cesare Robotti","N","20199100","Y"]
["201991CY","TCB-FIN-Celim Yildizhan","N","20199100","Y"]
["201991F0","TCB-FIN-Faculty 0","N","20199199","Y"]
["201991F1","TCB-FIN-Faculty 1","N","20199199","Y"]
["201991F2","TCB-FIN-Faculty 2","N","20199199","Y"]
["201991F3","TCB-FIN-Faculty 3","N","20199199","Y"]
["201991F4","TCB-FIN-Faculty 4","N","20199199","Y"]
["201991F5","TCB-FIN-Faculty 5","N","20199199","Y"]
["201991HM","TCB-FIN-Harold Mulherin","N","20199100","Y"]
["201991JE","TCB-FIN-Jie He","N","20199100","Y"]
["201991JH","TCB-FIN-John Hund","N","20199100","Y"]
["201991JN","TCB-FIN-Jeffry Netter","N","20199100","Y"]
["201991JW","TCB-FIN-Joshua White","N","20199100","Y"]
["201991LC","TCB-FIN-Lee Cohen","N","20199100","Y"]
["201991RS","TCB-FIN-Ralph Steuer","N","20199100","Y"]
["201991SG","TCB-FIN-Stuart Gillan","N","20199100","Y"]
["201991SH","TCB-FIN-Sara Holland","N","20199100","Y"]
["201991TS","TCB-FIN-Tao Shu","N","20199100","Y"]
["201991UL","TCB-FIN-Ugur Lel","N","20199100","Y"]
["201991ZL","TCB-FIN-Zhongjin Lu","N","20199100","Y"]
["20200118","TCB-ECON-Grad/ Phd. Programs","N","20000000","Y"]
["20200160","TCB-Economics Dept Admin","N","20200100","Y"]
["202001F0","TCB-ECON-Faculty 0","N","20200199","Y"]
["202001F1","TCB-ECON-Faculty 1","N","20200199","Y"]
["202001F2","TCB-ECON-Faculty 2","N","20200199","Y"]
["202001F3","TCB-ECON-Faculty 3","N","20200199","Y"]
["202001F4","TCB-ECON-Faculty 4","N","20200199","Y"]
["202001F5","TCB-ECON-Faculty 5","N","20200199","Y"]
["202002BL","TCB-ECON-Bill Lastrapes","N","20200200","Y"]
["202002BV","TCB-ECON-Bill Vogt","N","20200200","Y"]
["202002CC","TCB-ECON-Chris Cornwell","N","20200200","Y"]
["202002DM","TCB-ECON-David Mustard","N","20200200","Y"]
["202002EL","TCB-ECON-Eli Liebman","N","20200200","Y"]
["202002IS","TCB-ECON-Ian Schmutte","N","20200200","Y"]
["202002JK","TCB-ECON-Josh Kinsler","N","20200200","Y"]
["202002JT","TCB-ECON-John Turner","N","20200200","Y"]
["202002LZ","TCB-ECON-Laura Zimmermann","N","20200200","Y"]
["202002MS","TCB-ECON-Megan Skira","N","20200200","Y"]
["202002NY","TCB-ECON-Nathan Yoder","N","20200200","Y"]
["202002RH","TCB-ECON-Roozbeh Hosseini","N","20200200","Y"]
["202002RL","TCB-ECON-Rong Luo","N","20200200","Y"]
["202002SA","TCB-ECON-Scott Atkinson","N","20200200","Y"]
["202002SC","TCB-ECON-Santanu Chatterjee","N","20200200","Y"]
["202002SP","TCB-ECON-Svetlana Pash","N","20200200","Y"]
["202002TQ","TCB-ECON-Thomas Quan","N","20200200","Y"]
["202002VP","TCB-ECON-Vincent Pohl","N","20200200","Y"]
["202003AK","TCB-ECON-Alice Kinman","N","20200300","Y"]
["202003JR","TCB-ECON-Jason Rudbeck","N","20200300","Y"]
["202003KM","TCB-ECON-Kate Mcclain","N","20200300","Y"]
["202003KW","TCB-ECON-Kris Wcwhite","N","20200300","Y"]
["202003TS","TCB-ECON-Till Schreiber","N","20200300","Y"]
["202003TZ","TCB-ECON-Tianwei Zhang","N","20200300","Y"]
["20201160","TCB-MGT-Management Admin","N","20201100","Y"]
["202011D0","TCB-MGT-Phd. Student 0","N","20201118","Y"]
["202011D1","TCB-MGT-Phd. Student 1","N","20201118","Y"]
["202011D2","TCB-MGT-Phd. Student 2","N","20201118","Y"]
["202011D3","TCB-MGT-Phd. Student 3","N","20201118","Y"]
["202011D4","TCB-MGT-Phd. Student 4","N","20201118","Y"]
["202011D5","TCB-MGT-Phd. Student 5","N","20201118","Y"]
["202011D6","TCB-MGT-Phd. Student 6","N","20201118","Y"]
["202011D7","TCB-MGT-Phd. Student 7","N","20201118","Y"]
["202011D8","TCB-MGT-Phd. Student 8","N","20201118","Y"]
["202011D9","TCB-MGT-Phd. Student 9","N","20201118","Y"]
["202011F0","TCB-MGT-Faculty 0","N","20201199","Y"]
["202011F1","TCB-MGT-Faculty 1","N","20201199","Y"]
["202011F2","TCB-MGT-Faculty 2","N","20201199","Y"]
["202011F3","TCB-MGT-Faculty 3","N","20201199","Y"]
["202011F4","TCB-MGT-Faculty 4","N","20201199","Y"]
["202011F5","TCB-MGT-Faculty 5","N","20201199","Y"]
["202012EL","TCB-MGT-Erin Long","N","20201200","Y"]
["202012FM","TCB-MGT-Fadel Matta","N","20201200","Y"]
["202012JC","TCB-MGT-Jason Colquitt","N","20201200","Y"]
["202012JR","TCB-MGT-Jessica Rodell","N","20201200","Y"]
["202012MM","TCB-MGT-Marie Mitchell","N","20201200","Y"]
["202012RV","TCB-MGT-Robert Vandenberg","N","20201200","Y"]
["202013DG","TCB-MGT-Daniel Gamache","N","20201300","Y"]
["202013JB","TCB-MGT-John Busenbark","N","20201300","Y"]
["202013MP","TCB-MGT-Mike Praffer","N","20201300","Y"]
["202013SG","TCB-MGT-Scott Graffin","N","20201300","Y"]
["202013TQ","TCB-MGT-Tim Quigley","N","20201300","Y"]
["202014JZ","TCB-MGT-Jan Zantinga","N","20201400","Y"]
["202014KN","TCB-MGT-Karen Napoleon","N","20201400","Y"]
["202014MP","TCB-MGT-Martin Parker","N","20201400","Y"]
["202014RD","TCB-MGT-Rich Daniel","N","20201400","Y"]
["20202115","TCB-MKT-Recruitment","N","20000000","Y"]
["20202160","TCB-MKT-Dept Admin","N","20202100","Y"]
["202021AC","TCB-MKT-Anindita Chakrovarty","N","20202100","Y"]
["202021CM","TCB-MKT-Charlotte Mason","N","20202100","Y"]
["202021D0","TCB-MKT-Phd. Student 0","N","20202118","Y"]
["202021D1","TCB-MKT-Phd. Student 1","N","20202118","Y"]
["202021D2","TCB-MKT-Phd. Student 2","N","20202118","Y"]
["202021D3","TCB-MKT-Phd. Student 3","N","20202118","Y"]
["202021D4","TCB-MKT-Phd. Student 4","N","20202118","Y"]
["202021D5","TCB-MKT-Phd. Student 5","N","20202118","Y"]
["202021D6","TCB-MKT-Phd. Student 6","N","20202118","Y"]
["202021D7","TCB-MKT-Phd. Student 7","N","20202118","Y"]
["202021D8","TCB-MKT-Phd. Student 8","N","20202118","Y"]
["202021D9","TCB-MKT-Phd. Student 9","N","20202118","Y"]
["202021F0","TCB-MKT-Faculty 0","N","20202199","Y"]
["202021F1","TCB-MKT-Faculty 1","N","20202199","Y"]
["202021F2","TCB-MKT-Faculty 2","N","20202199","Y"]
["202021F3","TCB-MKT-Faculty 3","N","20202199","Y"]
["202021F4","TCB-MKT-Faculty 4","N","20202199","Y"]
["202021F5","TCB-MKT-Faculty 5","N","20202199","Y"]
["202021HC","TCB-MKT-Hua Chen","N","20202100","Y"]
["202021JH","TCB-MKT-John Hulland","N","20202100","Y"]
["202021JS","TCB-MKT-Julio Sevilla","N","20202100","Y"]
["202021KG","TCB-MKT-Kimberly Grantham","N","20202100","Y"]
["202021MC","TCB-MKT-Marcus Cunha","N","20202100","Y"]
["202021PK","TCB-MKT-Piyush Kumar","N","20202100","Y"]
["202021PW","TCB-MKT-Pengyuan Wang","N","20202100","Y"]
["202021RG","TCB-MKT-Richard Gooner","N","20202100","Y"]
["202021SB","TCB-MKT-Sunder Bhardwaj","N","20202100","Y"]
["202021SC","TCB-MKT-Sue Chang","N","20202100","Y"]
["202021SL","TCB-MKT-Son Lam","N","20202100","Y"]
["20203150","TCB-FTMBA-Marketing","N","20203100","Y"]
["20203151","TCB-FTMBA-Career Mgt","N","20203100","Y"]
["20203152","TCB-FTMBA-Admissions","N","20203100","Y"]
["20203153","TCB-FTMBA-Study Abroad","N","20203100","Y"]
["20203154","TCB-FTMBA-Orientation","N","20203100","Y"]
["20203155","TCB-FTMBA-Alum Relations","N","20203100","Y"]
["20203156","TCB-FTMBA-Stud Services","N","20203100","Y"]
["20203157","TCB-FTMBA-Stud Experience","N","20203100","Y"]
["20203160","TCB-FTMBA-Dept. Admin.","N","20203100","Y"]
["20203199","TCB-FTMBA-Business Office","N","20203100","Y"]
["20203250","TCB-PMBA-Marketing (Buc)","N","20203200","Y"]
["20203251","TCB-PMBA-Career Mgt (Buc)","N","20203200","Y"]
["20203252","TCB-PMBA-Admissions (Buc)","N","20203200","Y"]
["20203253","TCB-PMBA-Study Abroad (Buc)","N","20203200","Y"]
["20203255","TCB-PMBA-Alum Relations (Buc)","N","20203200","Y"]
["20203256","TCB-PMBA-Stud Services (Buc)","N","20203200","Y"]
["20203260","TCB-PMBA-Dept. Admin. (Buc)","N","20203200","Y"]
["20203299","TCB-PMBA-Business Off (Buc)","N","20203200","Y"]
["20203350","TCB-PMBA-Marketing (Gwi)","N","20203300","Y"]
["20203351","TCB-PMBA-Career Mgt (Gwi)","N","20203300","Y"]
["20203352","TCB-PMBA-Admissions (Gwi)","N","20203300","Y"]
["20203353","TCB-PMBA-Study Abroad (Gwi)","N","20203300","Y"]
["20203355","TCB-PMBA-Alum Relations (Gwi)","N","20203300","Y"]
["20203356","TCB-PMBA-Stud Services (Gwi)","N","20203300","Y"]
["20203360","TCB-PMBA-Dept. Admin. (Gwi)","N","20203300","Y"]
["20203399","TCB-PMBA-Business Off (Gwi)","N","20203300","Y"]
["20203450","TCB-EMBA-Marketing","N","20203400","Y"]
["20203451","TCB-EMBA-Career Mgt","N","20203400","Y"]
["20203452","TCB-EMBA-Admissions","N","20203400","Y"]
["20203453","TCB-EMBA-Study Abroad","N","20203400","Y"]
["20203455","TCB-EMBA-Alum Relations","N","20203400","Y"]
["20203456","TCB-EMBA-Stud Services","N","20203400","Y"]
["20203460","TCB-EMBA-Dept. Admin.","N","20203400","Y"]
["20203499","TCB-EMBA-Business Office","N","20203400","Y"]
["20203500","TCB-MBA-TEEC facilities","N","20000000","Y"]
["20204160","TCB-Ins. Legal Std Real Estate","N","20204100","Y"]
["202041D0","TCB-ILR-Phd. Student 0","N","20204118","Y"]
["202041D1","TCB-ILR-Phd. Student 1","N","20204118","Y"]
["202041D2","TCB-ILR-Phd. Student 2","N","20204118","Y"]
["202041D3","TCB-ILR-Phd. Student 3","N","20204118","Y"]
["202041D4","TCB-ILR-Phd. Student 4","N","20204118","Y"]
["202041D5","TCB-ILR-Phd. Student 5","N","20204118","Y"]
["202041D6","TCB-ILR-Phd. Student 6","N","20204118","Y"]
["202041D7","TCB-ILR-Phd. Student 7","N","20204118","Y"]
["202041D8","TCB-ILR-Phd. Student 8","N","20204118","Y"]
["202041D9","TCB-ILR-Phd. Student 9","N","20204118","Y"]
["202041F0","TCB-ILR-Faculty 0","N","20204199","Y"]
["202041F1","TCB-ILR-Faculty 1","N","20204199","Y"]
["202041F2","TCB-ILR-Faculty 2","N","20204199","Y"]
["202041F3","TCB-ILR-Faculty 3","N","20204199","Y"]
["202041F4","TCB-ILR-Faculty 4","N","20204199","Y"]
["202041F5","TCB-ILR-Faculty 5","N","20204199","Y"]
["20204260","TCB-ILR-Risk Management Admin","N","20204200","Y"]
["202042DE","TCB-ILR-David Eckles","N","20204200","Y"]
["202042DM","TCB-ILR-David Mccarthy","N","20204200","Y"]
["202042DY","TCB-ILR-Daniel Yanosky","N","20204200","Y"]
["202042JA","TCB-ILR-Jen Atkinson","N","20204200","Y"]
["202042JC","TCB-ILR-Jim Carson","N","20204200","Y"]
["202042JM","TCB-ILR-Jack Morse","N","20204200","Y"]
["202042MR","TCB-ILR-Marc Ragin","N","20204200","Y"]
["202042PH","TCB-ILR-Paul Holmes","N","20204200","Y"]
["202042RH","TCB-ILR-Rob Hoyt","N","20204200","Y"]
["202042SP","TCB-ILR-Steve Pottier","N","20204200","Y"]
["20204360","TCB-ILR-Legal Studies","N","20204300","Y"]
["202043AB","TCB-ILR-Alex Bennett","N","20204300","Y"]
["202043AR","TCB-ILR-Alex Reid","N","20204300","Y"]
["202043DG","TCB-ILR-Dave Gunton","N","20204300","Y"]
["202043LG","TCB-ILR-Lara Grow","N","20204300","Y"]
["202043MP","TCB-ILR-Marisa Pagnattaro","N","20204300","Y"]
["202043NG","TCB-ILR-Nate Grow","N","20204300","Y"]
["202043TH","TCB-ILR-Tricia Hacleman","N","20204300","Y"]
["202043TS","TCB-ILR-Tim Samples","N","20204300","Y"]
["20204460","TCB-ILR-Real Estate","N","20204400","Y"]
["202044DH","TCB-ILR-Darren Hayunga","N","20204400","Y"]
["202044HM","TCB-ILR-Henry Munneke","N","20204400","Y"]
["202044JC","TCB-ILR-Jim Conklin","N","20204400","Y"]
["202044JK","TCB-ILR-James Kau","N","20204400","Y"]
["202044RM","TCB-ILR-Rich Martin","N","20204400","Y"]
["20205060","TCB-Selig Admin","N","20205000","Y"]
["20225100","TCB-Entrepren.","N","20225000","Y"]
["20225150","TCB-Entrepreneurship Marketing","N","20225000","Y"]
["20225180","TCB-Entrepreneurship Events","N","20225000","Y"]
["20797100","TCB-Music Business Dept Admin","N","20797000","Y"]
["20798100","TCB-ILA Dept Admin","N","20798000","Y"]
["20798200","TCB-ILA Events","N","20798000","Y"]
["20798300","TCB-ILA Cirriculum","N","20798000","Y"]
["20798400","TCB-ILA Marketing","N","20798000","Y"]
["20800100","TCB-EXEC PROG Admin","N","20800000","Y"]
["20961000","TCB-Office Of The Dean","N","20196000","Y"]
["20962154","TCB-Under-Grad-Orientation","N","20962100","Y"]
["20962160","TCB-Under-Grad-Dept Admin","N","20962100","Y"]
["20962250","TCB-Undergrad Online-Marketing","N","20962200","Y"]
["20962252","TCB-Undergrad Online-Admission","N","20962200","Y"]
["20962260","TCB-Undergrad Online-Dept Adm","N","20962200","Y"]
["20962300","TCB-Ass Dean Off-Under Grad Pr","N","20962000","Y"]
["20962454","TCB-USSCR-Majors Orient/Fair","N","20962400","Y"]
["20962460","TCB-USSCR-Administration","N","20962400","Y"]
["20962470","TCB-USSCR-Grad/ Convocation","N","20962400","Y"]
["20962471","TCB-USSCR-Honors Day","N","20962400","Y"]
["20962472","TCB-USSCR-Terry Kickoff","N","20962400","Y"]
["20962473","TCB-USSCR-Terry Ambassadors","N","20962400","Y"]
["20962474","TCB-USSCR-Corporate Relations","N","20962400","Y"]
["20962475","TCB-USSCR-Women's Initiative","N","20962400","Y"]
["20962480","TCB-USSCR-Other Events","N","20962400","Y"]
["20962560","TCB-Griffin-Dept Adm","N","20962500","Y"]
["20963100","TCB-Assoc Dean Off-Grad Prog","N","20963000","Y"]
["20963200","TCB-Diversity Relations","N","20000000","Y"]
["20963300","TCB-Summer Programs","N","20000000","Y"]
["20963400","TCB-International Bus Prog","N","20000000","Y"]
["20964100","TCB-Chief Financial Officer","N","20964000","Y"]
["20964200","TCB-Business Office","N","20964000","Y"]
["20964300","TCB-Terry Exec Edu Ctr","N","20000000","Y"]
["20964400","TCB-Facilities & Logistics","N","20000000","Y"]
["20964500","TCB-Event Management","N","20000000","Y"]
["20964600","TCB-Economic Outlook","N","20000000","Y"]
["20964790","TCB-OIT-Strategic","N","20964700","Y"]
["20964795","TCB-OIT-Operational","N","20964700","Y"]
["20965160","TCB-Major Giving-Admin","N","20965000","Y"]
["209651AB","TCB-Major Giving-AndreaBurruss","N","20965000","Y"]
["209651HH","TCB-Major Giving-HeatherHowar.","N","20965000","Y"]
["209651KB","TCB-Major Giving-KatrinaBowers","N","20965000","Y"]
["209651KO","TCB-Major Giving-Kathy O'Brian","N","20965000","Y"]
["209651MH","TCB-Major Giving-Martee Horne","N","20965000","Y"]
["209651MM","TCB-Major Giving-Matt Mize","N","20965000","Y"]
["209651SS","TCB-Major Giving-StevenSpencer","N","20965000","Y"]
["20965260","TCB-Alumni Affairs-Admin","N","20965000","Y"]
["209652CS","TCB-Alumni Affairs-ChristineSm","N","20965000","Y"]
["209652JA","TCB-Alumni Affairs-Jean Allen","N","20965000","Y"]
["209652NG","TCB-Alumni Affairs-NatalieGlen","N","20965000","Y"]
["20965360","TCB-Annual Giving-Admin","N","20965000","Y"]
["209653CH","TCB-Annual Giving-CateHackling","N","20965000","Y"]
["209653EH","TCB-Annual Giving-Emma Holman","N","20965000","Y"]
["20965460","TCB-Donor Relations-Admin","N","20965000","Y"]
["209654LH","TCB-Donor Relations-LauraHogan","N","20965000","Y"]
["209654LM","TCB-Donor Relations-LynseMille","N","20965000","Y"]
["20966060","TCB-Office Of Marketing-Admin","N","20966000","Y"]
["21001100","COE D.O. Grant Transition","N","21000000","Y"]
["21002CE1","D.O. Continuing Education","N","21000000","Y"]
["21002S01","D.O. Center Admin. Fees","N","21000000","Y"]
["21002S02","D.O. Safe & Welcoming Schools","N","21000000","Y"]
["21005000","Dean'S Office Teacher Quality","N","21000000","Y"]
["21100001","Dean's Office","N","21100000","Y"]
["21100002","Administrative Travel","N","21100000","Y"]
["21100003","Faculty Searches","N","21100000","Y"]
["21100004","Student Recruitment","N","21100000","Y"]
["21100005","Staff Prof Dev","N","21100000","Y"]
["21100006","Renovation / Facilities","N","21100000","Y"]
["21100007","Accreditation / Memberships","N","21100000","Y"]
["21100201","DO Tuition Differential","N","21100000","Y"]
["21100202","DO E-Rate","N","21100000","Y"]
["21100203","Provost Domestic Travel","N","21100000","Y"]
["211005AS","Faculty A. Singh","N","21100000","Y"]
["211005BO","Business Office","N","21100000","Y"]
["211005BW","Faculty B Wraga","N","21100000","Y"]
["211005CK","DO Faculty C Kennedy","N","21100000","Y"]
["211005DS","DO Faculty D Spangler","N","21100000","Y"]
["211005EE","DO Faculty E Evans","N","21100000","Y"]
["211005EG","DOfaculty E Gilbertson","N","21100000","Y"]
["211005SN","DO Faculty S Neuharth-Pritchet","N","21100000","Y"]
["21101000","Dean'S Office (Gwinnett)","N","21000000","Y"]
["21102000","Dean'S Office (Griffin)","N","21000000","Y"]
["21110001","DO ADA Expenditures","N","21000000","Y"]
["21120100","Communications","N","21120000","Y"]
["21120200","Development","N","21120000","Y"]
["21140000","DO Academic Programs","N","21000000","Y"]
["21141000","DO School Engagement/Pds","N","21000000","Y"]
["21145000","DO Diversity, Equity & Inclusi","N","21000000","Y"]
["21150000","DO Research","N","21000000","Y"]
["21170000","DO Student Services","N","21000000","Y"]
["21175000","DO Experiential Learning","N","21000000","Y"]
["21180000","Curriculum Materials Library","N","21000000","Y"]
["21190000","DO IT","N","21000000","Y"]
["21191000","DO ITT","N","21000000","Y"]
["21192S01","D.O. Retail Sales (Oit)","N","21000000","Y"]
["21192S02","D.O. Material Support","N","21000000","Y"]
["21200000","COE Centers","N","21000000","Y"]
["21200001","COE Centers Grant Transition","N","21000000","Y"]
["21210001","Ctr for Autism and Behaviour","N","21210000","Y"]
["212105KA","CABER Faculty K Ayers","N","21210000","Y"]
["212105SA","CABER Faculty S Ardoin","N","21210000","Y"]
["21220001","Ctr for Latino Achievement","N","21220000","Y"]
["212205PM","CLASE Faculty P Mellom","N","21220000","Y"]
["212205PP","CLASE Faculty P Portes","N","21220000","Y"]
["21230001","GA Ctr for Assessment","N","21230000","Y"]
["212305AC","GCA Faculty A Cohen","N","21230000","Y"]
["212305HC","GCA Faculty H Choi","N","21230000","Y"]
["212305JB","GCA Faculty J Barker","N","21230000","Y"]
["212305KR","GCA Faculty K Raczynski","N","21230000","Y"]
["212305SL","GCA Faculty S Lai","N","21230000","Y"]
["21240001","Torrance Ctr","N","21240000","Y"]
["212405SS","TC Faculty S Sumners","N","21240000","Y"]
["21242CE1","Torrance Continuing Education","N","21000000","Y"]
["21242S01","Torrance Duke Tip","N","21000000","Y"]
["21242S02","Torrance Research Sales","N","21000000","Y"]
["21400001","CIS Grant Transition","N","21400000","Y"]
["21400100","CIS Dept Allocation","N","21400000","Y"]
["21400200","CIS eRate Workforce","N","21400000","Y"]
["21400201","CIS Special Projects 1","N","21400000","Y"]
["214005CK","CIS Faculty C Kim","N","21400000","Y"]
["214005EA","CIS Faculty E Adams","N","21400000","Y"]
["214005GC","CIS Faculty G Clinton","N","21400000","Y"]
["214005GT","CIS Faculty G Thomas","N","21400000","Y"]
["214005IC","CIS Faculty I Choi","N","21400000","Y"]
["214005IL","CIS Faculty I Lee","N","21400000","Y"]
["214005JH","CIS Faculty J Hill","N","21400000","Y"]
["214005JM","CIS Faculty J Mativo","N","21400000","Y"]
["214005JR","CIS Faculty J Rojewski","N","21400000","Y"]
["214005JW","CIS Faculty J Williamson","N","21400000","Y"]
["214005LR","CIS Faculty L Rieber","N","21400000","Y"]
["214005MW","CIS Faculty M Womble","N","21400000","Y"]
["214005NK","CIS Faculty N Knapp","N","21400000","Y"]
["214005RB","CIS Faculty R Branch","N","21400000","Y"]
["214005RH","CIS Faculty R Hill","N","21400000","Y"]
["214005TK","CIS Faculty T Kopcha","N","21400000","Y"]
["21402L51","CIS Occ Studies Lab Fees","N","21000000","Y"]
["21402S01","Rail Res Adv Innov Learn","N","21000000","Y"]
["21402S02","CIS Pacte","N","21000000","Y"]
["21402S03","CIS SLLL Occupational Studies","N","21000000","Y"]
["21450001","CSSE Grant Transition","N","21450000","Y"]
["21450100","CSSE Dept Allocation","N","21450000","Y"]
["21450200","CSSE Special Projects 1","N","21450000","Y"]
["21450201","CSSE Special Projects 2","N","21450000","Y"]
["214504KO","CSSE Startup K Obrien","N","21450000","Y"]
["214504RS","CSSE Startup R Shrivastav","N","21450000","Y"]
["214505AD","CSSE Faculty A Davis","N","21450000","Y"]
["214505AM","CSSE Faculty A Marcotte","N","21450000","Y"]
["214505AN","CSSE Faculty A Nealy","N","21450000","Y"]
["214505AS","CSSE Faculty A Sanderson","N","21450000","Y"]
["214505BH","CSSE Faculty B Hamilton-Jones","N","21450000","Y"]
["214505BL","CSSE Faculty B Leffler","N","21450000","Y"]
["214505CP","CSSE Faculty C Patterson","N","21450000","Y"]
["214505CR","CSSE Faculty C Raymond","N","21450000","Y"]
["214505CV","CSSE Faculty C Vail","N","21450000","Y"]
["214505DL","CSSE Faculty D Linscott","N","21450000","Y"]
["214505DT","CSSE Faculty D Teesdale","N","21450000","Y"]
["214505EG","CSSE Faculty E Greene","N","21450000","Y"]
["214505HK","CSSE Faculty H Kaplan","N","21450000","Y"]
["214505IH","CSSE Faculty I Hinkley","N","21450000","Y"]
["214505JB","CSSE Faculty J Brown","N","21450000","Y"]
["214505JL","CSSE Faculty J Lindstrom","N","21450000","Y"]
["214505JR","CSSE Faculty J Ringdahl","N","21450000","Y"]
["214505KA","CSSE Faculty K Ayres","N","21450000","Y"]
["214505KO","CSSE Faculty K Obrien","N","21450000","Y"]
["214505KS","CSSE Faculty K Sayeski","N","21450000","Y"]
["214505KV","CSSE Faculty K Viel-Ruma","N","21450000","Y"]
["214505KW","CSSE Faculty K Wunderlich","N","21450000","Y"]
["214505LC","CSSE Faculty L Chen","N","21450000","Y"]
["214505LN","CSSE Faculty L Nichols","N","21450000","Y"]
["214505ND","CSSE Faculty N Dellaria","N","21450000","Y"]
["214505PF","CSSE Faculty P Finn","N","21450000","Y"]
["214505RL","CSSE Faculty R Lieberman-Betz","N","21450000","Y"]
["214505RM","CSSE Faculty R. Marshall","N","21450000","Y"]
["214505SB","CSSE Faculty S Bass-Ringdahl","N","21450000","Y"]
["214505TA","CSSE Faculty T Anderson","N","21450000","Y"]
["214505TC","CSSE Faculty T Clees","N","21450000","Y"]
["214506AS","CSSE Faculty A Schultz","N","21450000","Y"]
["21450TD1","CSSE Cmsd Tuition Differential","N","21000000","Y"]
["21450TD2","CSSE Sped Tuition Differential","N","21000000","Y"]
["21452L51","CSSE Lab Fee","N","21000000","Y"]
["21452S01","Speech & Hearing Clinic","N","21000000","Y"]
["21452S02","Applied Behavior Analysis Clin","N","21000000","Y"]
["21452S03","CSSE Sales & Service","N","21000000","Y"]
["21452S04","CSSE Sped Tech Writing","N","21000000","Y"]
["21500001","CHDS Grant Transition","N","21500000","Y"]
["21500100","CHDS Dept Allocation","N","21500000","Y"]
["21500200","CHDS Special Projects 1","N","21500000","Y"]
["21500201","CHDS Special Projects 2","N","21500000","Y"]
["215004CC","CHDS Startup C Chapman-Hilliar","N","21500000","Y"]
["215004GM","CHDS Startup G Martin","N","21500000","Y"]
["215004MH","CHDS Startup M Higgins","N","21500000","Y"]
["215005AS","CHDS Faculty A Singh","N","21500000","Y"]
["215005BG","CHDS Faculty B Glaser","N","21500000","Y"]
["215005BH","CHDS Faculty B Heckman","N","21500000","Y"]
["215005CL","CHDS Faculty C Linder","N","21500000","Y"]
["215005DB","CHDS Faculty D Bailey","N","21500000","Y"]
["215005DC","CHDS Faculty D Cooper","N","21500000","Y"]
["215005DM","CHDS Faculty D Means","N","21500000","Y"]
["215005ED","CHDS Faculty E Delgado-Romero","N","21500000","Y"]
["215005GC","CHDS Faculty G Calhoun","N","21500000","Y"]
["215005GM","CHDS Faculty G Martin","N","21500000","Y"]
["215005GS","CHDS Faculty G Spears","N","21500000","Y"]
["215005JD","CHDS Faculty J Daigle","N","21500000","Y"]
["215005LC","CHDS Faculty L Campbell","N","21500000","Y"]
["215005LD","CHDS Faculty L Dean","N","21500000","Y"]
["215005LH","CHDS Faculty L Hughes","N","21500000","Y"]
["215005MD","CHDS Faculty M Dunn","N","21500000","Y"]
["215005MH","CHDS Faculty M Higgins","N","21500000","Y"]
["215005MW","CHDS Faculty M Wilder","N","21500000","Y"]
["215005RP","CHDS Faculty R Phelps","N","21500000","Y"]
["215006AS","CHDS Faculty A Stewart","N","21500000","Y"]
["215006GM","CHDS Faculty G Mcmahon","N","21500000","Y"]
["21500970","CHDS RIAS","N","21500000","Y"]
["21500TD1","CHDS Tuition Differential (Ath","N","21000000","Y"]
["21502L51","ECHD 2050 Lab Fee","N","21000000","Y"]
["21502S01","Ctr For Counseling & Pers Eval","N","21000000","Y"]
["21502S02","CHDS JCAP/Girls","N","21000000","Y"]
["21502S03","CHDS Sales & Service","N","21000000","Y"]
["21550001","EPSY Grant Transition","N","21550000","Y"]
["21550100","EPSY Dept Allocation","N","21550000","Y"]
["21550200","EPSY eRate Gifted","N","21550000","Y"]
["21550201","EPSY e-Rate ACD","N","21550000","Y"]
["215504LF","EPSY Startup L Fiorelli","N","21550000","Y"]
["215504PC","EPSY Startup P Chalmers","N","21550000","Y"]
["215504SW","EPSY Startup S Wang","N","21550000","Y"]
["215505AJ","EPSY Faculty A Johnson Harriso","N","21550000","Y"]
["215505AR","EPSY Faculty A Reschly","N","21550000","Y"]
["215505BC","EPSY Faculty B Cramond","N","21550000","Y"]
["215505GE","EPSY Faculty G Engelhard","N","21550000","Y"]
["215505LB","EPSY Faculty L Bradshaw","N","21550000","Y"]
["215505LF","EPSY Faculty L Fiorella","N","21550000","Y"]
["215505MC","EPSY Faculty M Carr","N","21550000","Y"]
["215505MH","EPSY Faculty M Hines","N","21550000","Y"]
["215505ML","EPSY Faculty M Lease","N","21550000","Y"]
["215505MR","EPSY Faculty M Runco","N","21550000","Y"]
["215505PC","EPSY Faculty P Chalmers","N","21550000","Y"]
["215505PS","EPSY Faculty P Schwanenflugel","N","21550000","Y"]
["215505SA","EPSY Faculty S Ardoin","N","21550000","Y"]
["215505SK","EPSY Faculty S Kim","N","21550000","Y"]
["215505SN","EPSY Faculty S Neuharth-Pritch","N","21550000","Y"]
["215505SW","Epay Faculty S Wang","N","21550000","Y"]
["215505TG","EPSY Faculty T Grantham","N","21550000","Y"]
["215505ZL","EPSY Faculty Z Lu","N","21550000","Y"]
["21550970","EPSY RIAS","N","21000000","Y"]
["21552L51","EPSY 6720 Lab Fee","N","21000000","Y"]
["21552S01","EPSY School Psych Clinic","N","21000000","Y"]
["21552S02","EPSY Autism Assessment","N","21000000","Y"]
["21600001","EATP Grant Transition","N","21600000","Y"]
["21600100","ETAP Dept Allocation","N","21600000","Y"]
["21600200","ETAP eRate Middle School","N","21600000","Y"]
["21600201","ETAP Special Projects","N","21600000","Y"]
["216004MF","ETAP Startup M Faison","N","21600000","Y"]
["216005AM","ETAP Faculty A Murphy","N","21600000","Y"]
["216005AS","ETAP Faculty A Sharma","N","21600000","Y"]
["216005BC","ETAP Faculty B Capuozzo","N","21600000","Y"]
["216005BD","ETAP Faculty B Dotts","N","21600000","Y"]
["216005BL","ETAP Faculty B Love","N","21600000","Y"]
["216005BT","ETAP Faculty B Tolley","N","21600000","Y"]
["216005CB","ETAP Faculty C Buxton","N","21600000","Y"]
["216005CD","ETAP Faculty C Dillard","N","21600000","Y"]
["216005CF","ETAP Faculty C Fields-Smith","N","21600000","Y"]
["216005ES","ETAP Faculty E Saylor","N","21600000","Y"]
["216005GA","ETAP Faculty G Andrews","N","21600000","Y"]
["216005HH","ETAP Faculty H Hughes","N","21600000","Y"]
["216005JD","ETAP Faculty J Dresden","N","21600000","Y"]
["216005JG","ETAP Faculty J Garrett","N","21600000","Y"]
["216005JT","ETAP Faculty J Tobin","N","21600000","Y"]
["216005KL","ETAP Faculty K Lee","N","21600000","Y"]
["216005KT","ETAP Faculty K Thompson","N","21600000","Y"]
["216005MA","ETAP Faculty M Allexsaht-Snide","N","21600000","Y"]
["216005MF","ETAP Faculty M Faison","N","21600000","Y"]
["216005MS","ETAP Faculty M Schmeichel","N","21600000","Y"]
["216005SJ","ETAP Faculty S Janis","N","21600000","Y"]
["216005TD","ETAP Faculty T Dinkelman","N","21600000","Y"]
["216006ES","ETAP Faculty E St. Pierre","N","21600000","Y"]
["216006SJ","ETAP Faculty S Jones","N","21600000","Y"]
["21600TD1","ETAP Tuition Differential","N","21000000","Y"]
["21602S01","ETAP Sales And Service","N","21000000","Y"]
["21602S02","Red Clay Writing Project","N","21000000","Y"]
["21650001","KINS Grant Transition","N","21650000","Y"]
["21650100","KINS Dept Allocation","N","21650000","Y"]
["21650200","KINS Global Forum","N","21650000","Y"]
["21650201","KINS General Startup","N","21650000","Y"]
["216504CM","KINS Startup C Modlesky","N","21650000","Y"]
["216504JB","KINS Startup J Buckworth","N","21650000","Y"]
["216504JC","KINS Startup J Call","N","21650000","Y"]
["216504KN","KINS Startup K Newell","N","21650000","Y"]
["216504RL","KINS Startup R Lynall","N","21650000","Y"]
["216504SS","KINS Startup S Salaga","N","21650000","Y"]
["216504TS","KINS Startup T Singh","N","21650000","Y"]
["216505BC","KINS Faculty B Cooper","N","21650000","Y"]
["216505BL","KINS Faculty B Leopkey","N","21650000","Y"]
["216505BM","KINS Faculty B Mccullick","N","21650000","Y"]
["216505CM","KINS Faculty C Mojock","N","21650000","Y"]
["216505EE","KINS Faculty E Evans","N","21650000","Y"]
["216505IM","KINS Faculty I Mason","N","21650000","Y"]
["216505JB","KINS Faculty J Buckworth","N","21650000","Y"]
["216505JC","KINS Faculty J Call","N","21650000","Y"]
["216505JS","KINS Faculty J Schmidt","N","21650000","Y"]
["216505JZ","KINS Faculty J Zhang","N","21650000","Y"]
["216505KM","KINS Faculty K Mccully","N","21650000","Y"]
["216505KN","KINS Faculty K Newell","N","21650000","Y"]
["216505MS","KINS Faculty M Schmidt","N","21650000","Y"]
["216505NJ","KINS Faculty N Jenkins","N","21650000","Y"]
["216505PO","KINS Faculty P O'Connor","N","21650000","Y"]
["216505PS","KINS Faculty P Schempp","N","21650000","Y"]
["216505PT","KINS Faculty P Tomporowski","N","21650000","Y"]
["216505RC","KINS Faculty R Chepyator-Thoms","N","21650000","Y"]
["216505RD","KINS Faculty R Dishman","N","21650000","Y"]
["216505RL","KINS Faculty R Lynall","N","21650000","Y"]
["216505SS","KINS Faculty S Salaga","N","21650000","Y"]
["216505SY","KINS Faculty S Yli-Piipari","N","21650000","Y"]
["216505TB","KINS Faculty T Baker","N","21650000","Y"]
["216505TS","KINS Faculty T Singh","N","21650000","Y"]
["216506CM","KINS Faculty C Modlesky","N","21650000","Y"]
["21652L51","KINS 2100L Prev Care","N","21000000","Y"]
["21652L52","KINS 2470 Prac At","N","21000000","Y"]
["21652L53","KINS 2500L Ex Med Evans","N","21000000","Y"]
["21652L54","KINS 3720 Found Pe","N","21000000","Y"]
["21652L55","KINS 3910 At Clinical Ex","N","21000000","Y"]
["21652L56","KINS 3920L At Clinical Ex Ii","N","21000000","Y"]
["21652L57","KINS 4110 AT Therepeutics II","N","21000000","Y"]
["21652L58","KINS 4305/6305 El Pe","N","21000000","Y"]
["21652L59","KINS 4600/6600 Meas Pa Schmidt","N","21000000","Y"]
["21652L60","KINS 4690L Nm Phys Mcully","N","21000000","Y"]
["21652L61","KINS 4910L At Clinical Ex Iii","N","21000000","Y"]
["21652L62","KINS 4920L At Clinical Ex Iv","N","21000000","Y"]
["21652L63","KINS 7310L Clinical Ex Phys Ev","N","21000000","Y"]
["21652L64","KINS 7360 Motor Learn","N","21000000","Y"]
["21652L65","EXRS 4200 Bio Mech","N","21000000","Y"]
["21652L66","EXRS 4630 Ex Phys","N","21000000","Y"]
["21652L67","EXRS 4640 Fit Prin","N","21000000","Y"]
["21652L68","EXRS 7330 Mete Aspec","N","21000000","Y"]
["21652L69","KINS 8300L Adv Top Ex","N","21000000","Y"]
["21652S01","GS Funds","N","21000000","Y"]
["21652S02","Intl Cntr For Sport Mgmt","N","21000000","Y"]
["21652S03","Norvartis Nirs Analysis Mccull","N","21000000","Y"]
["21652S04","Covance Mccully","N","21000000","Y"]
["21652S05","Sport Instr Research Lab","N","21000000","Y"]
["21652S06","Children'S Clinic","N","21000000","Y"]
["21652S07","CPAH","N","21000000","Y"]
["21652S08","Athletic Training Workshop","N","21000000","Y"]
["21700001","LLE Grant Transition","N","21700000","Y"]
["21700100","LLE Dept Allocation","N","21700000","Y"]
["21700200","LLE eRate Reading Endorsement","N","21700000","Y"]
["21700201","LLE Special Projects","N","21700000","Y"]
["217004PP","LLE Startup P Panau","N","21700000","Y"]
["217004TE","LLE Startup T Ellison","N","21700000","Y"]
["217004UB","LLE Startup U Bhattacharya","N","21700000","Y"]
["217005AH","LLE Faculty A Heath","N","21700000","Y"]
["217005AM","LLE Faculty A Marcotte","N","21700000","Y"]
["217005DA","LLE Faculty D Alvermann","N","21700000","Y"]
["217005JG","LLE Faculty J Graff","N","21700000","Y"]
["217005KB","LLE Faculty K Burke","N","21700000","Y"]
["217005LH","LLE Faculty L Harklau","N","21700000","Y"]
["217005LT","LLE Faculty L Tolosa-Casadont","N","21700000","Y"]
["217005MC","LLE Faculty M Cahnmann-Taylor","N","21700000","Y"]
["217005MG","LLE Faculty M Guay","N","21700000","Y"]
["217005PP","LLE Faculty P Panaou","N","21700000","Y"]
["217005PS","LLE P Smagorinsky","N","21700000","Y"]
["217005RH","LLE Faculty R Harman","N","21700000","Y"]
["217005SK","LLE S Kajder","N","21700000","Y"]
["217005TE","LLE Faculty T Ellison","N","21700000","Y"]
["217005UB","LLE Faculty U Bhattacharya","N","21700000","Y"]
["217005VH","LLE Faculty V Hasko","N","21700000","Y"]
["21700TD1","LLE English Education Tuition","N","21000000","Y"]
["21700TD2","LLE World Languages Tuition Di","N","21000000","Y"]
["21702S01","LLE Reading Clinic","N","21000000","Y"]
["21702S02","LLE J1 Visa Engl Proficiency","N","21000000","Y"]
["21750001","LEAP Grant Transition","N","21750000","Y"]
["21750100","LEAP Dept Allocation","N","21750000","Y"]
["21750200","LEAP eRate Adult Education","N","21750000","Y"]
["21750201","LEAP eRate HROD","N","21750000","Y"]
["21750202","LEAP eRate QUAL","N","21750000","Y"]
["217504SH","Startup S. Han","N","21750000","Y"]
["217504WS","Startup W. Swain","N","21750000","Y"]
["217505AG","LEAP Faculty A Gitlin","N","21750000","Y"]
["217505AN","LEAP Faculty A Nicolaides","N","21750000","Y"]
["217505ED","LEAP Faculty E Debray","N","21750000","Y"]
["217505JD","LEAP Faculty J Dayton","N","21750000","Y"]
["217505JH","LEAP Faculty J Hall","N","21750000","Y"]
["217505JJ","LEAP Faculty J Johnson-Bailey","N","21750000","Y"]
["217505KB","LEAP Faculty K Bryant","N","21750000","Y"]
["217505KD","LEAP Facutly K Demarrais","N","21750000","Y"]
["217505KR","LEAP Faculty K Roulston","N","21750000","Y"]
["217505KW","LEAP Faculty K Watkins","N","21750000","Y"]
["217505LB","LEAP Faculty L Bierema","N","21750000","Y"]
["217505MF","LEAP Faculty M Freeman","N","21750000","Y"]
["217505RW","LEAP Faculty R Welsh","N","21750000","Y"]
["217505SH","LEAP Faculty S Han","N","21750000","Y"]
["217505SW","LEAP Faculty S Williams","N","21750000","Y"]
["217505SZ","LEAP Faculty S Zepeda","N","21750000","Y"]
["217505TP","LEAP Faculty T Paulus","N","21750000","Y"]
["217505TV","LEAP Faculty T Valentine","N","21750000","Y"]
["217505WR","LEAP Faculty W Ruona","N","21750000","Y"]
["217505WS","LEAP Faculty W Swain","N","21750000","Y"]
["21750TD1","LEAP Edap Tuition Differential","N","21000000","Y"]
["21752S01","LEAP DSS","N","21000000","Y"]
["21800001","MSE Grant Transition","N","21800000","Y"]
["21800100","MSE Dept Allocation","N","21800000","Y"]
["21800200","MSE Special Projects 1","N","21800000","Y"]
["21800201","MSE Special Projects 2","N","21800000","Y"]
["218004AE","MSE Startup A Ellis","N","21800000","Y"]
["218004DC","MSE Startup D Capps","N","21800000","Y"]
["218005AC","MSE Faculty A Conner","N","21800000","Y"]
["218005AE","MSE Faculty A Ellis","N","21800000","Y"]
["218005AI","MSE Faculty A Itsak","N","21800000","Y"]
["218005BC","MSE Faculty B Crawford","N","21800000","Y"]
["218005DC","MSE Faculty D Capps","N","21800000","Y"]
["218005DJ","MSE Faculty D Jackson","N","21800000","Y"]
["218005DS","MSE Faculty D Spangler","N","21800000","Y"]
["218005DT","MSE Faculty D Tippins","N","21800000","Y"]
["218005DW","MSE Faculty D White","N","21800000","Y"]
["218005GH","MSE Faculty G Hodges","N","21800000","Y"]
["218005JD","MSE Faculty J Diamond","N","21800000","Y"]
["218005JK","MSE Faculty J Kittleson","N","21800000","Y"]
["218005JL","MSE Faculty J Luft","N","21800000","Y"]
["218005KM","MSE Faculty K Moore","N","21800000","Y"]
["218005MA","MSE Faculty M Atwater","N","21800000","Y"]
["218005MM","MSE Faculty M Mccrary","N","21800000","Y"]
["218005RO","MSE Faculty R Ovrick","N","21800000","Y"]
["218005SO","MSE Faculty S Oliver","N","21800000","Y"]
["21800970","MSE RIAS","N","21000000","Y"]
["21800TD1","MSE Tuition Differential","N","21000000","Y"]
["21802S01","MSE Narst Crawford","N","21000000","Y"]
["22001000","CENGR College Of Engineering","N","22000000","Y"]
["22001001","CENGR IDC","N","22000000","Y"]
["22001002","CENGR Contingency","N","22000000","Y"]
["22002000","Dean","N","22000000","Y"]
["22002001","Grant Buyout PI","N","22000000","Y"]
["22002002","Grant Buyout CENGR","N","22000000","Y"]
["22002003","Vehicle","N","22000000","Y"]
["22003000","ECE School Of Electrical And C","N","22000000","Y"]
["22003001","ECE IDC","N","22000000","Y"]
["22003002","Fok, Mable","N","22000000","Y"]
["22003003","Haidekker, Mark","N","22000000","Y"]
["22003004","Hamrita, Takoi","N","22000000","Y"]
["22003005","Hornak, Lawrence","N","22000000","Y"]
["22003006","Johnsen, Kyle","N","22000000","Y"]
["22003007","Kner, Peter","N","22000000","Y"]
["22003008","Li, Changying","N","22000000","Y"]
["22003009","Mao, Leidong","N","22000000","Y"]
["22003010","Mohammadpour, Javad","N","22000000","Y"]
["22003011","Song, Wenzhan","N","22000000","Y"]
["22003012","Trudgen, Mark","N","22000000","Y"]
["22003013","Tse, Tsz Ho","N","22000000","Y"]
["22003014","Xie, Zhong Ru (Paul)","N","22000000","Y"]
["22003015","Xu, Bingqian","N","22000000","Y"]
["22003016","Yao, Kun","N","22000000","Y"]
["22003017","Hunsu, Nathaniel","N","22000000","Y"]
["22003200","ECE DSS 0","N","22000000","Y"]
["22003201","ECE DSS 1","N","22000000","Y"]
["22003202","ECE DSS 2","N","22000000","Y"]
["22003203","ECE DSS 3","N","22000000","Y"]
["22003204","ECE DSS 4","N","22000000","Y"]
["22003205","ECE DSS 5","N","22000000","Y"]
["22003206","ECE DSS 6","N","22000000","Y"]
["22003207","ECE DSS 7","N","22000000","Y"]
["22003208","ECE DSS 8","N","22000000","Y"]
["22003209","ECE DSS 9","N","22000000","Y"]
["22003210","ECE DSS 10","N","22000000","Y"]
["22003211","ECE DSS 11","N","22000000","Y"]
["22003212","ECE DSS 12","N","22000000","Y"]
["22003213","ECE DSS 13","N","22000000","Y"]
["22003214","ECE DSS 14","N","22000000","Y"]
["22003215","ECE DSS 15","N","22000000","Y"]
["22003216","ECE DSS 16","N","22000000","Y"]
["22003217","ECE DSS 17","N","22000000","Y"]
["22003218","ECE DSS 18","N","22000000","Y"]
["22003219","ECE DSS 19","N","22000000","Y"]
["22004000","CMBE School Of Chemical, Mater","N","22000000","Y"]
["22004001","CMBE IDC","N","22000000","Y"]
["22004002","Averett, Rodney","N","22000000","Y"]
["22004003","Eiteman, Mark","N","22000000","Y"]
["22004004","Gomillion, Cheryl","N","22000000","Y"]
["22004005","Hallow, Melissa","N","22000000","Y"]
["22004006","Handa, Hitesh","N","22000000","Y"]
["22004008","Kastner, James","N","22000000","Y"]
["22004009","Kisaalita, William","N","22000000","Y"]
["22004010","Locklin, Jason","N","22000000","Y"]
["22004011","Mani, Sudhagar","N","22000000","Y"]
["22004012","Mortensen, Luke","N","22000000","Y"]
["22004013","Ramasamy, Ramaraja","N","22000000","Y"]
["22004014","Yan, Yajun","N","22000000","Y"]
["22004200","CMBE DSS 0","N","22000000","Y"]
["22004201","CMBE DSS 1","N","22000000","Y"]
["22004202","CMBE DSS 2","N","22000000","Y"]
["22004203","CMBE DSS 3","N","22000000","Y"]
["22004204","CMBE DSS 4","N","22000000","Y"]
["22004205","CMBE DSS 5","N","22000000","Y"]
["22004206","CMBE DSS 6","N","22000000","Y"]
["22004207","CMBE DSS 7","N","22000000","Y"]
["22004208","CMBE DSS 8","N","22000000","Y"]
["22004209","CMBE DSS 9","N","22000000","Y"]
["22004210","CMBE DSS 10","N","22000000","Y"]
["22004211","CMBE DSS 11","N","22000000","Y"]
["22004212","CMBE DSS 12","N","22000000","Y"]
["22004213","CMBE DSS 13","N","22000000","Y"]
["22004214","CMBE DSS 14","N","22000000","Y"]
["22004215","CMBE DSS 15","N","22000000","Y"]
["22004216","CMBE DSS 16","N","22000000","Y"]
["22004217","CMBE DSS 17","N","22000000","Y"]
["22004218","CMBE DSS 18","N","22000000","Y"]
["22004219","CMBE DSS 19","N","22000000","Y"]
["22005000","ECAM School Of Environmental,","N","22000000","Y"]
["22005001","ECAM Idc","N","22000000","Y"]
["22005002","Awuah-Baffour, Robert","N","22000000","Y"]
["22005003","Bledsoe, Brian","N","22000000","Y"]
["22005004","Carnell, Peter","N","22000000","Y"]
["22005005","Chorzepa, Mi Geum","N","22000000","Y"]
["22005006","Christian, Jason","N","22000000","Y"]
["22005007","Das, Keshav","N","22000000","Y"]
["22005008","Davis, Ben","N","22000000","Y"]
["22005009","Durham, Stephan","N","22000000","Y"]
["22005010","Foutz, Timothy","N","22000000","Y"]
["22005011","Freeman, Eric","N","22000000","Y"]
["22005012","Gattie, David","N","22000000","Y"]
["22005013","Jambeck, Jenna","N","22000000","Y"]
["22005014","Kazanci, Caner","N","22000000","Y"]
["22005015","Kim, Sung-Hee","N","22000000","Y"]
["22005016","Lawrence, Thomas","N","22000000","Y"]
["22005017","Leo, Donald","N","22000000","Y"]
["22005018","Li, Ke","N","22000000","Y"]
["22005019","Mccord, Barbara","N","22000000","Y"]
["22005020","Pan, Zhengwei","N","22000000","Y"]
["22005021","Pidaparti, Ramana","N","22000000","Y"]
["22005022","Rotavera, Brandon","N","22000000","Y"]
["22005023","Saleh, Rawad","N","22000000","Y"]
["22005024","Savadatti, Siddharth","N","22000000","Y"]
["22005025","Schramski, John","N","22000000","Y"]
["22005026","Sochacka, Nicola","N","22000000","Y"]
["22005027","Stooksbury, David","N","22000000","Y"]
["22005028","Tanner, Hillary","N","22000000","Y"]
["22005029","Thomas, Benjamin","N","22000000","Y"]
["22005030","Thompson, Sidney","N","22000000","Y"]
["22005031","Tollner, Ernest","N","22000000","Y"]
["22005032","Wagner, Benjamin","N","22000000","Y"]
["22005033","Walther, Joachim","N","22000000","Y"]
["22005034","Wang, Xiangqiao","N","22000000","Y"]
["22005035","Woodson, Brock","N","22000000","Y"]
["22005036","Yoder, Michael","N","22000000","Y"]
["22005037","May, Dominik","N","22000000","Y"]
["22005038","Geller, Daniel","N","22000000","Y"]
["22005039","Law, Edward","N","22000000","Y"]
["22005200","ECAM DSS 0","N","22000000","Y"]
["22005201","ECAM DSS 1","N","22000000","Y"]
["22005202","ECAM DSS 2","N","22000000","Y"]
["22005203","ECAM DSS 3","N","22000000","Y"]
["22005204","ECAM DSS 4","N","22000000","Y"]
["22005205","ECAM DSS 5","N","22000000","Y"]
["22005206","ECAM DSS 6","N","22000000","Y"]
["22005207","ECAM DSS 7","N","22000000","Y"]
["22005208","ECAM DSS 8","N","22000000","Y"]
["22005209","ECAM DSS 9","N","22000000","Y"]
["22005210","ECAM DSS 10","N","22000000","Y"]
["22005211","ECAM DSS 11","N","22000000","Y"]
["22005212","ECAM DSS 12","N","22000000","Y"]
["22005213","ECAM DSS 13","N","22000000","Y"]
["22005214","ECAM DSS 14","N","22000000","Y"]
["22005215","ECAM DSS 15","N","22000000","Y"]
["22005216","ECAM DSS 16","N","22000000","Y"]
["22005217","ECAM DSS 17","N","22000000","Y"]
["22005218","ECAM DSS 18","N","22000000","Y"]
["22005219","ECAM DSS 19","N","22000000","Y"]
["22006000","Research And Graduate Studies","N","22000000","Y"]
["22006001","Research IDC","N","22000000","Y"]
["22006002","GII Georgia Informatics Inst","N","22000000","Y"]
["22006003","EETI Electrical & Computer Eng","N","22000000","Y"]
["22006004","IRIS Inst Resilient Infrastr","N","22000000","Y"]
["22006005","CURO","N","22000000","Y"]
["22006006","RIAS PI","N","22000000","Y"]
["22006007","RIAS CENGR","N","22000000","Y"]
["22006008","Graduate Masters","N","22000000","Y"]
["22006009","Graduate Phd","N","22000000","Y"]
["22006010","Innovation & Discovery","N","22000000","Y"]
["22007000","Academic Affairs And Assessmen","N","22000000","Y"]
["22007001","Graduation","N","22000000","Y"]
["22007002","Accreditation","N","22000000","Y"]
["22007003","Faculty Development","N","22000000","Y"]
["22007004","Career Fair","N","22000000","Y"]
["22008000","Information Technology","N","22000000","Y"]
["22008001","Student Tech Fee","N","22000000","Y"]
["22009000","Development And Alumni Relatio","N","22000000","Y"]
["22010000","Experiential Programs And Outr","N","22000000","Y"]
["22010001","Machine Shop","N","22000000","Y"]
["22010002","Senior Design","N","22000000","Y"]
["22010003","CENGR Laboratory","N","22000000","Y"]
["22011000","Finance And Administration","N","22000000","Y"]
["22012000","CENGR Projects","N","22000000","Y"]
["22012001","CENGR Project 1","N","22000000","Y"]
["22012002","CENGR Project 2","N","22000000","Y"]
["22012003","CENGR Project 3","N","22000000","Y"]
["22012004","CENGR Project 4","N","22000000","Y"]
["22012005","CENGR Project 5","N","22000000","Y"]
["22012006","CENGR Project 6","N","22000000","Y"]
["22012007","CENGR Project 7","N","22000000","Y"]
["22012008","CENGR Project 8","N","22000000","Y"]
["22012009","CENGR Project 9","N","22000000","Y"]
["22012010","CENGR Project 10","N","22000000","Y"]
["22012011","CENGR Project 11","N","22000000","Y"]
["22012012","CENGR Project 12","N","22000000","Y"]
["22012013","CENGR Project 13","N","22000000","Y"]
["22012014","CENGR Project 14","N","22000000","Y"]
["22012015","CENGR Project 15","N","22000000","Y"]
["22012016","CENGR Project 16","N","22000000","Y"]
["22012017","CENGR Project 17","N","22000000","Y"]
["22012018","CENGR Project 18","N","22000000","Y"]
["22012019","CENGR Project 19","N","22000000","Y"]
["22012020","CENGR Project 20","N","22000000","Y"]
["22013000","CENGR DSS","N","22000000","Y"]
["22013001","CENGR DSS 001","N","22000000","Y"]
["22013002","CENGR DSS 002","N","22000000","Y"]
["22013003","CENGR DSS 003","N","22000000","Y"]
["22013004","CENGR DSS 004","N","22000000","Y"]
["22013005","CENGR DSS 005","N","22000000","Y"]
["22013006","CENGR DSS 006","N","22000000","Y"]
["22013007","CENGR DSS 007","N","22000000","Y"]
["22013008","CENGR DSS 008","N","22000000","Y"]
["22013009","CENGR DSS 009","N","22000000","Y"]
["22013010","CENGR DSS 010","N","22000000","Y"]
["23001000","College Of Env & Design","N","23000000","Y"]
["23002000","Faculty/Staff Salaries","N","23000000","Y"]
["23003001","Bla","N","23003000","Y"]
["23003002","Mla","N","23003000","Y"]
["23003003","Mepd","N","23003000","Y"]
["23003004","Mhp","N","23003000","Y"]
["23003005","Phd","N","23003000","Y"]
["23003006","Eecp","N","23003000","Y"]
["23004001","Assistantships","N","23004000","Y"]
["23004002","Rias","N","23004000","Y"]
["23004003","Student Travel","N","23004000","Y"]
["23004004","Student Support","N","23004000","Y"]
["23005001","Circle Gallery","N","23005000","Y"]
["23005002","Owens Library","N","23005000","Y"]
["23005003","Library Binding Income","N","23005000","Y"]
["23006001","It Operating","N","23006000","Y"]
["23006002","IT Hourly Payroll","N","23006000","Y"]
["23006003","Stf","N","23006000","Y"]
["23006004","IT Printing Income","N","23006000","Y"]
["23007000","Development","N","23000000","Y"]
["23008001","Dept Income","N","23008000","Y"]
["23008002","Ccdp","N","23008000","Y"]
["23008003","Cont Ed","N","23008000","Y"]
["23008004","HIPR 6330 Lab Fees","N","23008000","Y"]
["23008005","HIPR/Plan 6200 Lab Fees","N","23008000","Y"]
["23008006","CLL Income","N","23008000","Y"]
["23009001","Dean","N","23009000","Y"]
["23009002","D Spooner","N","23009000","Y"]
["23009003","D Nadenicek","N","23009000","Y"]
["23009004","U Yilmaz","N","23009000","Y"]
["23009005","M Reinberger","N","23009000","Y"]
["23009006","J Reap","N","23009000","Y"]
["23009007","J Crowley","N","23009000","Y"]
["23009008","B Orland","N","23009000","Y"]
["23009009","M Cramer","N","23009000","Y"]
["23009010","W Brown","N","23009000","Y"]
["23009011","J Buitrago","N","23009000","Y"]
["23009012","S Harrison","N","23009000","Y"]
["23009013","A Vick","N","23009000","Y"]
["23009014","B Davis","N","23009000","Y"]
["23009015","S Cannady","N","23009000","Y"]
["23009016","R Sawhill","N","23009000","Y"]
["23009017","A Steffens","N","23009000","Y"]
["23009018","E Macdonald","N","23009000","Y"]
["23009019","D Nicholas","N","23009000","Y"]
["23009020","B Lahaie","N","23009000","Y"]
["23009021","A Verma","N","23009000","Y"]
["23009022","C Goetcheus","N","23009000","Y"]
["23009023","S Lee","N","23009000","Y"]
["23009024","K Melcher","N","23009000","Y"]
["23009025","D Pardue","N","23009000","Y"]
["23009026","J Calabria","N","23009000","Y"]
["23009027","S Ramos","N","23009000","Y"]
["23009028","A Smith","N","23009000","Y"]
["23009029","R Rivero","N","23009000","Y"]
["23009030","S Nesbit","N","23009000","Y"]
["23009031","D Longenecker","N","23009000","Y"]
["23009032","P Cassity","N","23009000","Y"]
["23009033","S Ross","N","23009000","Y"]
["23010000","Wormsloe","N","23000000","Y"]
["23011001","Trail Of Tears","N","23011000","Y"]
["23011002","Ga Coastal","N","23011000","Y"]
["23011003","East/West","N","23011000","Y"]
["23011004","Jekyl Watercolor","N","23011000","Y"]
["23011005","Puerto Rico","N","23011000","Y"]
["23011006","Charrettes","N","23011000","Y"]
["23011007","Metropolitan","N","23011000","Y"]
["23011008","Hist Pres","N","23011000","Y"]
["23011009","Turkey","N","23011000","Y"]
["23011010","Croatia","N","23011000","Y"]
["23012000","Founders Memorial Garden","N","23000000","Y"]
["23013000","FMG Damage Deposits","N","23000000","Y"]
["23014000","CED Sales Tax","N","23000000","Y"]
["23015001","CED IDC Return","N","23015000","Y"]
["23016000","CED Ugarf","N","23000000","Y"]
["23017000","CED Residual","N","23000000","Y"]
["23018000","CED DSS Carryforward","N","23000000","Y"]
["24100AES","FCS Hatch CAES Funds","N","24100000","Y"]
["24100GA0","Dean Grad Asst","N","24100000","Y"]
["24110000","FACS Admin","N","24100000","Y"]
["24111000","FCS London Study Abroad","N","24100000","Y"]
["24120000","Dean","N","24100000","Y"]
["24121000","Dean Office","N","24100000","Y"]
["24122000","Domestic Travel Dean","N","24100000","Y"]
["24130000","Assoc Dean Academics","N","24100000","Y"]
["24131000","Stu Success & Advising Ctr","N","24100000","Y"]
["24140000","FACS Assoc Dean Outreach Ext","N","24100000","Y"]
["24140DM0","Debbie Murray","N","24100000","Y"]
["24141000","Aspire Clinic","N","24100000","Y"]
["24141100","Aspire Clinic Income","N","24100000","Y"]
["24141200","Hoke Smith","N","24100000","Y"]
["24150000","External Relations","N","24100000","Y"]
["24160000","Business & Finance Office","N","24100000","Y"]
["24170000","Office of Tech & Inst Serv","N","24100000","Y"]
["24171000","FCS IT Sales & Service","N","24100000","Y"]
["24180000","Research & Grants","N","24100000","Y"]
["24190000","FCS Sales & Service","N","24100000","Y"]
["24200CO0","Catherine Oneal","N","24200000","Y"]
["24200DB0","Diane Bales","N","24200000","Y"]
["24200EM0","Emilie Smith","N","24200000","Y"]
["24200GA0","HDFS Grad Asst","N","24200000","Y"]
["24200GB0","Geoffrey Brown","N","24200000","Y"]
["24200GG0","Gerald Jerry Gale","N","24200000","Y"]
["24200JG0","Jennifer Gonyea","N","24200000","Y"]
["24200KW0","Kandauda Wickrama","N","24200000","Y"]
["24200MC0","Margaret Caughy","N","24200000","Y"]
["24200SK0","Steven Kogan","N","24200000","Y"]
["24200TF0","Ted Futris","N","24200000","Y"]
["24210000","HDFS Admin","N","24200000","Y"]
["24210DBW","Bales Workshop","N","24200000","Y"]
["24210TFP","Futris Publications","N","24200000","Y"]
["24220000","Child Dev Lab Admin","N","24200000","Y"]
["24221000","CDL Tuition Income","N","24200000","Y"]
["24230000","MFT Cert Prgm","N","24200000","Y"]
["24240000","HDFS Sales & Service","N","24200000","Y"]
["24300AA0","Alex Anderson","N","24300000","Y"]
["24300AB0","Alison Berg","N","24300000","Y"]
["24300ABP","Berg Publications","N","24300000","Y"]
["24300AG0","Arthur Grider","N","24300000","Y"]
["24300CC0","Caree Cotwright","N","24300000","Y"]
["24300CM0","Carla Moore","N","24300000","Y"]
["24300CS0","Claire De La Serre","N","24300000","Y"]
["24300EA0","Elizabeth Andress","N","24300000","Y"]
["24300EAW","Andress Workshop","N","24300000","Y"]
["24300EL0","Emma Laing","N","24300000","Y"]
["24300GA0","Fdns Grad Asst","N","24300000","Y"]
["24300GC0","Ginnefer Cox","N","24300000","Y"]
["24300HP0","Hea Jin Park","N","24300000","Y"]
["24300JC0","Jamie Cooper","N","24300000","Y"]
["24300JCS","Cooper Lab Service Fee","N","24300000","Y"]
["24300JH0","Judy Harrison","N","24300000","Y"]
["24300JHP","Harrison Publications","N","24300000","Y"]
["24300JL0","Jung Sun Lee","N","24300000","Y"]
["24300LB0","Lynn Bailey","N","24300000","Y"]
["24300LI0","Leann Birch","N","24300000","Y"]
["24300MJ0","Mary Ann Johnson","N","24300000","Y"]
["24300RL0","Rick Lewis","N","24300000","Y"]
["24300RLL","Lewis Csn Lab","N","24300000","Y"]
["24300RP0","Rob Pazdro","N","24300000","Y"]
["24300RS0","Ruthann Swanson","N","24300000","Y"]
["24301000","Preserve It and Service It","N","24300000","Y"]
["24302000","Calorimetry Sales & Services","N","24300000","Y"]
["24310000","FDN Admin","N","24300000","Y"]
["24311000","Ghana Study Abroad","N","24300000","Y"]
["24312000","Italy Study Abroad","N","24300000","Y"]
["24313000","United Kingdom Study Abroad","N","24300000","Y"]
["24320000","Sch Nutriton Directors","N","24300000","Y"]
["24330000","FDNS Lab Fee Income","N","24300000","Y"]
["24340000","FDNS Sales & Service","N","24300000","Y"]
["24350000","So Easy To Preserve","N","24300000","Y"]
["24360000","eRate Comm Nutrition","N","24300000","Y"]
["24400AC0","Andy Carswell","N","24400000","Y"]
["24400AW0","Ann Woodyard","N","24400000","Y"]
["24400BC0","Brenda Crude","N","24400000","Y"]
["24400GA0","FCHE Grad Asst","N","24400000","Y"]
["24400HW0","Heidi Ewen","N","24400000","Y"]
["24400JG0","Joe Goetz","N","24400000","Y"]
["24400JK0","Joan Koonce","N","24400000","Y"]
["24400JKW","Koonce Workshop","N","24400000","Y"]
["24400JR0","John Grable","N","24400000","Y"]
["24400KS0","Kimberly Skobba","N","24400000","Y"]
["24400KT0","Karen Tinsley","N","24400000","Y"]
["24400KW0","Kenneth White","N","24400000","Y"]
["24400LF1","FCHE Lab Fee 4230/6230","N","24400000","Y"]
["24400LP0","Lance Palmer","N","24400000","Y"]
["24400MR0","Michael Rupured","N","24400000","Y"]
["24400MRW","Rupured Workshop","N","24400000","Y"]
["24400PB0","Patryk Babiarz","N","24400000","Y"]
["24400PT0","Pamela Turner","N","24400000","Y"]
["24400PTW","Turner Workshop","N","24400000","Y"]
["24400SA0","Sophia Anong","N","24400000","Y"]
["24400SC0","Swarn Chatterjee","N","24400000","Y"]
["24400SW0","Sheri Worthy","N","24400000","Y"]
["24400VH0","Velma Zahirovic-Herbert","N","24400000","Y"]
["24410000","FCHE Admin","N","24400000","Y"]
["24411000","Washington, DC Study Away","N","24400000","Y"]
["24412000","Greece Study Abroad","N","24400000","Y"]
["24420000","Griffin Allocation","N","24400000","Y"]
["24421000","Griffin Workshop","N","24400000","Y"]
["24430000","FCHE Ext & Outreach","N","24400000","Y"]
["24440000","FCHE Sales & Service","N","24400000","Y"]
["24460000","Fin Plan Training and Seminars","N","24400000","Y"]
["24470000","eRate Financial Planning","N","24400000","Y"]
["24480000","FCHE Conference Fees","N","24400000","Y"]
["24500GA0","TMI Grad Asst","N","24500000","Y"]
["24500GB0","Gajanan Bhat","N","24500000","Y"]
["24500GBI","Bhat Service Income","N","24500000","Y"]
["24500IH0","Ian Hardin","N","24500000","Y"]
["24500KM0","Katalin Medvedev","N","24500000","Y"]
["24500LF1","Course Fees TXMI2360/3360","N","24500000","Y"]
["24500LF2","Course Fees TXMI 2380/3380","N","24500000","Y"]
["24500LF3","Course Fees TXMI 3330","N","24500000","Y"]
["24500LF4","Course Fees TXMI3390","N","24500000","Y"]
["24500LF5","Course Fees TXMI 3520","N","24500000","Y"]
["24500LF6","Course Fees TXMI 3530","N","24500000","Y"]
["24500LF7","Apparel Project TXMI 4250/4260","N","24500000","Y"]
["24500LF8","Course Fees TXMI 4300","N","24500000","Y"]
["24500LF9","Course Fees TXMI 4390","N","24500000","Y"]
["24500LFA","Retail Entrepreneur TXMI 5280","N","24500000","Y"]
["24500LFB","Course Fees TXMI 5310","N","24500000","Y"]
["24500LFC","Course Fees TXMI 5901","N","24500000","Y"]
["24500LFD","TMI Tech Fee","N","24500000","Y"]
["24500LM0","Laura Mcandrews","N","24500000","Y"]
["24500MS0","Monica Sklar","N","24500000","Y"]
["24500PA0","Patricia Annis","N","24500000","Y"]
["24500PAI","Annis Service Income","N","24500000","Y"]
["24500SM0","Sergiy Minko","N","24500000","Y"]
["24500SS0","Suraj Sharma","N","24500000","Y"]
["24500SSI","Sharma Service Income","N","24500000","Y"]
["24500YS0","Yoo-Kyoung Seock","N","24500000","Y"]
["24510000","TMI Admin","N","24500000","Y"]
["24511000","China Study Abroad","N","24500000","Y"]
["24512000","New York Study Away","N","24500000","Y"]
["24520000","TMI Sales and Service","N","24500000","Y"]
["24530000","TMI IT Instruction Purchases","N","24500000","Y"]
["24600BB0","Becky Brightwell","N","24600000","Y"]
["24600CL0","Carol Britton Laws","N","24600000","Y"]
["24600CLC","Laws Consulting","N","24600000","Y"]
["24600HJ0","Hamida Jinnah","N","24600000","Y"]
["24600SPF","IHDD Spec Funding","N","24600000","Y"]
["24600ZS0","Zolinda Stoneman","N","24600000","Y"]
["24601000","Early Intervention","N","24600000","Y"]
["24602000","New Directions Video","N","24600000","Y"]
["24603000","Supported Employment","N","24600000","Y"]
["24604000","VAP Cost Recovery","N","24600000","Y"]
["24610000","IHDD Admin","N","24600000","Y"]
["24620000","IHDD Income","N","24600000","Y"]
["24630000","Sunbelt Expo","N","24600000","Y"]
["24640000","Tidwell Consulting","N","24600000","Y"]
["24650000","Works Works Project","N","24600000","Y"]
["24660000","IHDD Workshops","N","24600000","Y"]
["24670000","IHDD Pub Srv & Outrch","N","24600000","Y"]
["24680000","Destination Dawgs","N","24600000","Y"]
["24681000","Destination Dawgs Tuition Cont","N","24600000","Y"]
["24690000","Crandell Consultant","N","24600000","Y"]
["25001001","Warnell Sch Of For & Nat Res","N","25001000","Y"]
["25001AAD","Warnell Acad Aff Assoc Dean","N","25001000","Y"]
["25001AUB","Warnell Aubrey","N","25001000","Y"]
["25001BAR","Warnell Bargeron","N","25001000","Y"]
["25001BEA","Warnell Beasley","N","25001000","Y"]
["25001BEN","Warnell Benton","N","25001000","Y"]
["25001BET","Warnell Bettinger","N","25001000","Y"]
["25001BIR","Warnell BIrwin","N","25001000","Y"]
["25001BJA","Warnell BJackson","N","25001000","Y"]
["25001BOL","Warnell Boley","N","25001000","Y"]
["25001BRI","Warnell Bringolf","N","25001000","Y"]
["25001BUC","Warnell Bucksch","N","25001000","Y"]
["25001BUL","Warnell Bullock","N","25001000","Y"]
["25001CAS","Warnell Castleberry","N","25001000","Y"]
["25001CAU","Warnell Caulfield","N","25001000","Y"]
["25001CED","Warnell Continuing Educ","N","25001000","Y"]
["25001CHM","Warnell Chamberlain","N","25001000","Y"]
["25001CHN","Warnell Chandler","N","25001000","Y"]
["25001CIE","Warnell Cieszewski","N","25001000","Y"]
["25001CNR","Warnell Conroy","N","25001000","Y"]
["25001CNT","Warnell Contingency","N","25001000","Y"]
["25001COD","Warnell Coder","N","25001000","Y"]
["25001CON","Warnell Conrad","N","25001000","Y"]
["25001COO","Warnell Cooper","N","25001000","Y"]
["25001CWT","Warnell Coweeta Dorm","N","25001000","Y"]
["25001DAH","Warnell Dahlen","N","25001000","Y"]
["25001DAN","Warnell D'Angelo","N","25001000","Y"]
["25001DIC","Warnell Dickens","N","25001000","Y"]
["25001DNO","Warnell Dean","N","25001000","Y"]
["25001DWI","Warnell Dwivedi","N","25001000","Y"]
["25001GAN","Warnell Gandhi","N","25001000","Y"]
["25001GCB","Warnell Growth Chambers","N","25001000","Y"]
["25001GRE","Warnell Greene","N","25001000","Y"]
["25001GRN","Warnell Green","N","25001000","Y"]
["25001GRO","Warnell Grossman","N","25001000","Y"]
["25001HAR","Warnell Harris","N","25001000","Y"]
["25001HCY","Warnell Hep-Cymerman","N","25001000","Y"]
["25001HER","Warnell Hernandez","N","25001000","Y"]
["25001IRW","Warnell KIrwin","N","25001000","Y"]
["25001IZL","Warnell Izlar","N","25001000","Y"]
["25001JEN","Warnell Jennings","N","25001000","Y"]
["25001KAN","Warnell Kane","N","25001000","Y"]
["25001KEY","Forestry Key Deposits","N","25001000","Y"]
["25001KNG","Warnell King","N","25001000","Y"]
["25001L&F","Warnell Lands & Facilities","N","25001000","Y"]
["25001MAE","Warnell Maerz","N","25001000","Y"]
["25001MAR","Warnell Markewitz","N","25001000","Y"]
["25001MCC","Warnell McConnell","N","25001000","Y"]
["25001MEI","Warnell Mei","N","25001000","Y"]
["25001MEN","Warnell Mengak","N","25001000","Y"]
["25001MER","Warnell Merkle","N","25001000","Y"]
["25001MIL","Warnell KMiller","N","25001000","Y"]
["25001MON","Warnell Montes","N","25001000","Y"]
["25001MOO","Warnell Moore","N","25001000","Y"]
["25001MOR","Warnell Morris","N","25001000","Y"]
["25001MRH","Warnell Moorhead","N","25001000","Y"]
["25001MRT","Warnell Martin","N","25001000","Y"]
["25001MTH","GFA Master Timber Harester Pgm","N","25001000","Y"]
["25001NAI","Warnell Nairn","N","25001000","Y"]
["25001NIB","Warnell Nibbelink","N","25001000","Y"]
["25001OHD","Warnell Admin Overhead","N","25001000","Y"]
["25001PET","Warnell Peterson","N","25001000","Y"]
["25001PRL","Warnell Pub Relations","N","25001000","Y"]
["25001RAD","Warnell Rsch Assoc Dean","N","25001000","Y"]
["25001RAS","Warnell Rasmussen","N","25001000","Y"]
["25001RJA","Warnell RJackson","N","25001000","Y"]
["25001RSV","Warnell Timber Plt Fund Rsv","N","25001000","Y"]
["25001SAD","Warnell Service Assoc Dean","N","25001000","Y"]
["25001SHE","Warnell Shelton","N","25001000","Y"]
["25001SIR","Warnell Siry","N","25001000","Y"]
["25001TAR","Warnell Tarrant","N","25001000","Y"]
["25001TDF","Warnell Tuition Differential","N","25001000","Y"]
["25001TEC","Warnell IT Services","N","25001000","Y"]
["25001TSA","Warnell Tsai","N","25001000","Y"]
["25001VIL","Warnell Villari","N","25001000","Y"]
["25001WIL","Warnell Wilde","N","25001000","Y"]
["25001WOO","Warnell Woosnam","N","25001000","Y"]
["25001YAB","Warnell Yabsley","N","25001000","Y"]
["25001YLI","Warnell Y Li","N","25001000","Y"]
["25001ZHA","Warnell Zhao","N","25001000","Y"]
["26000ADM","OSE Unit Administration","N","26000000","Y"]
["26000ALT","OSE Altizer","N","26000000","Y"]
["26000AND","OSE Andrews","N","26000000","Y"]
["26000ARF","OSE UGARF Indirect","N","26000000","Y"]
["26000BAL","OSE Ballantyne","N","26000000","Y"]
["26000BYE","OSE Byers","N","26000000","Y"]
["26000CAP","OSE Capps","N","26000000","Y"]
["26000CON","OSE Connelly","N","26000000","Y"]
["26000COV","OSE Covich","N","26000000","Y"]
["26000CSL","OSE Counseling","N","26000000","Y"]
["26000DAV","OSE Davis","N","26000000","Y"]
["26000DEV","OSE Development","N","26000000","Y"]
["26000DRA","OSE Drake","N","26000000","Y"]
["26000EID","OSE CEID Program","N","26000000","Y"]
["26000EZE","OSE Ezenwa","N","26000000","Y"]
["26000FIT","OSE Fitt","N","26000000","Y"]
["26000FOW","OSE Fowler","N","26000000","Y"]
["26000FRE","OSE Freeman","N","26000000","Y"]
["26000GIT","OSE Gittleman","N","26000000","Y"]
["26000HAL","OSE Hall","N","26000000","Y"]
["26000HOL","OSE Holdo","N","26000000","Y"]
["26000IDA","OSE IDEAS Program","N","26000000","Y"]
["26000IDC","OSE Indirect Cost Return","N","26000000","Y"]
["26000INS","OSE Instruction","N","26000000","Y"]
["26000KIN","OSE King","N","26000000","Y"]
["26000KRA","OSE Kramer","N","26000000","Y"]
["26000MCA","OSE McArthur","N","26000000","Y"]
["26000MCF","OSE Maymester Carryforward","N","26000000","Y"]
["26000MOH","OSE Mohan","N","26000000","Y"]
["26000OSE","OSE Osenberg","N","26000000","Y"]
["26000PAR","OSE Park","N","26000000","Y"]
["26000POR","OSE Porter","N","26000000","Y"]
["26000PRI","OSE Pringle","N","26000000","Y"]
["26000RES","OSE Residual","N","26000000","Y"]
["26000ROH","OSE Rohani","N","26000000","Y"]
["26000ROS","OSE Rosemond","N","26000000","Y"]
["26000SCD","OSE Schmidt","N","26000000","Y"]
["26000SCK","OSE Schacke","N","26000000","Y"]
["26000STE","OSE Stephens","N","26000000","Y"]
["26000STF","OSE Student Tech Fee","N","26000000","Y"]
["26000TCH","OSE Tech Funds","N","26000000","Y"]
["26000WEN","OSE Wenger","N","26000000","Y"]
["26000WUR","OSE Wurzburger","N","26000000","Y"]
["26100ACL","OSE Analytica Chem Lab","N","26000000","Y"]
["26100EPS","OSE Eco Problem Solving","N","26000000","Y"]
["26100FSH","OSE Fishery Services","N","26000000","Y"]
["26100KEY","OSE Key Account","N","26000000","Y"]
["26100MAM","OSE Maymester Mammals","N","26000000","Y"]
["26100OUT","OSE Outreach","N","26000000","Y"]
["26100PNT","OSE Printing","N","26000000","Y"]
["26100RBC","OSE River Basin Ctr","N","26000000","Y"]
["26100SAL","OSE Sales","N","26000000","Y"]
["26100VIN","OSE Various Income","N","26000000","Y"]
["26100WKP","OSE Workshop","N","26000000","Y"]
["26200CLF","OSE Class Lab Fees","N","26000000","Y"]
["26200LAB","OSE Lab Fees","N","26000000","Y"]
["27002000","Graduate Sch Admin","N","27000000","Y"]
["27002001","Business Office","N","27000000","Y"]
["27002002","Associate Dean","N","27000000","Y"]
["27002003","Assistant Dean","N","27000000","Y"]
["27002004","IT Budget","N","27000000","Y"]
["27002005","ESS/ Budget","N","27000000","Y"]
["27002006","Photographer Travel","N","27000000","Y"]
["27002007","Dean'S Budget","N","27000000","Y"]
["27002008","Development","N","27000000","Y"]
["27002009","Interdisciplinary","N","27000000","Y"]
["27002010","RDI","N","27000000","Y"]
["27002011","Reinstatement Fee","N","27000000","Y"]
["27002012","Stf Graduate School","N","27000000","Y"]
["27002100","Graduate Sch Operating","N","27000000","Y"]
["27002200","GS Annual Contracts","N","27000000","Y"]
["27002201","Collegenet Fees","N","27000000","Y"]
["27002202","Council Of Graduate School","N","27000000","Y"]
["27002203","Emerging Leaders","N","27000000","Y"]
["27002204","Contracted Speakers","N","27000000","Y"]
["27002205","Orientation","N","27000000","Y"]
["27002300","GS Assistantships","N","27000000","Y"]
["27002301","GSRA 1St Year","N","27000000","Y"]
["27002302","GSRA 4Th Year","N","27000000","Y"]
["27002303","Club Presidents","N","27000000","Y"]
["27002304","Presidential Fellowship","N","27000000","Y"]
["27002305","GRO","N","27000000","Y"]
["27002306","Feeder","N","27000000","Y"]
["27002307","Doc Completion","N","27000000","Y"]
["27002308","Great","N","27000000","Y"]
["27002309","Gain","N","27000000","Y"]
["27002310","Summer Research Grant","N","27000000","Y"]
["27002311","Grad School Assists","N","27000000","Y"]
["27002312","Nrtige Training Grant","N","27000000","Y"]
["27002313","Sreb","N","27000000","Y"]
["27002400","GS Magizine","N","27000000","Y"]
["27002401","Editor","N","27000000","Y"]
["27002404","Graphic Designer","N","27000000","Y"]
["27002500","Staff Salaries","N","27000000","Y"]
["27002601","Student Travel Awards","N","27002600","Y"]
["27002602","Nsf Travel Awards","N","27002600","Y"]
["27002603","Summer Travel Awards","N","27002600","Y"]
["27002701","IDC CarryForward","N","27002700","Y"]
["27002702","GS IDC Return","N","27002700","Y"]
["27002801","Grad School Late Fee","N","27000000","Y"]
["27002901","DSS CarryForward","N","27002900","Y"]
["27002902","Grad School DSS","N","27002900","Y"]
["27003001","Tox Admin","N","27003000","Y"]
["27004001","Icon Admin","N","27004000","Y"]
["27005001","ILS Admin","N","27005000","Y"]
["27005002","ILS IDC","N","27005000","Y"]
["27006000","UGARF Support Disc","N","27000000","Y"]
["27007000","Dean's Special Allocations","N","27000000","Y"]
["28100100","Dean's Administration","N","28100000","Y"]
["28100101","Dean's Operating","N","28100000","Y"]
["28100102","Dean's Discretionary","N","28100000","Y"]
["28100103","Central Operations","N","28100000","Y"]
["28100104","Journalism Building Maintenanc","N","28100000","Y"]
["28100105","Grady Dept Sales","N","28100000","Y"]
["28100106","Carry Forward","N","28100000","Y"]
["28100107","Indirect Cost Returns","N","28100000","Y"]
["28100108","Kappa Tau Alpha","N","28100000","Y"]
["28100200","Business","N","28100000","Y"]
["28100300","Communications","N","28100000","Y"]
["28100400","Development","N","28100000","Y"]
["28100500","Outreach","N","28100000","Y"]
["28100501","High School News Paper Wkshop","N","28100000","Y"]
["28100502","GA Scholastic Press Assoc","N","28100000","Y"]
["28100503","Mgmt Seminar Coll News Editors","N","28100000","Y"]
["28100504","GAB National Radio Institute","N","28100000","Y"]
["28100600","CJMC Transition Payroll Split Conv","N","28100000","Y"]
["28100950","Dean Residual Bal","N","28100000","Y"]
["28200100","Academic Affairs Administratio","N","28200000","Y"]
["28200101","Academic Affairs Operating","N","28200000","Y"]
["28200200","Undergraduate Studies","N","28200000","Y"]
["28200300","Information Technology","N","28200000","Y"]
["28300100","Graduate Studies Administratio","N","28300000","Y"]
["28300101","Graduate Operating","N","28300000","Y"]
["28300200","MFA Narrative/Screenwriting","N","28300000","Y"]
["28300300","MFA Film","N","28300000","Y"]
["28400100","ADPR Administration","N","28400000","Y"]
["28400101","ADPR Operating","N","28400000","Y"]
["28400105","ADPR Student Supply Fee","N","28400000","Y"]
["28400106","ADPR Training","N","28400000","Y"]
["28400112","ADPR Business Comm","N","28400000","Y"]
["28400113","ADPR Corp Professional Develop","N","28400000","Y"]
["28400114","ADPR Creative Circus Program","N","28400000","Y"]
["28400115","ADPR Social Media Prof Develop","N","28400000","Y"]
["28400150","ADPR in NY Field Study","N","28400000","Y"]
["28400151","Choose China Study Abroad","N","28400000","Y"]
["28400152","SAT Circus Field Study","N","28400000","Y"]
["28400153","Cannes Lions Study Abroad","N","28400000","Y"]
["28400154","Grady @ DC Field Study","N","28400000","Y"]
["28400200","Center for Health & Risk Comm","N","28400000","Y"]
["28400300","Virtual Reality Arcade","N","28400000","Y"]
["28500100","EMST Administration","N","28500000","Y"]
["28500101","EMST Operating","N","28500000","Y"]
["28500105","EMST Student Supply Fee","N","28500000","Y"]
["28500155","Cannes Film Festival","N","28500000","Y"]
["28500156","Grady LA","N","28500000","Y"]
["28500159","Grady Ecuador","N","28500000","Y"]
["28600100","JOUR Administration","N","28600000","Y"]
["28600101","JOUR Operating","N","28600000","Y"]
["28600105","JOUR Student Supply Fee","N","28600000","Y"]
["28600106","Grady Pre-Med Magazine","N","28600000","Y"]
["28600157","Travel Journalism Dublin","N","28600000","Y"]
["28600158","Travel Journalism Munich","N","28600000","Y"]
["28600200","Cox Center","N","28600000","Y"]
["28600201","Cox Center Intl Training Prgms","N","28600000","Y"]
["28600300","Cox Institute","N","28600000","Y"]
["28600400","Grady Productions","N","28600000","Y"]
["28600500","Knight","N","28600000","Y"]
["28600600","Photo Journalism","N","28600000","Y"]
["28600700","Sports Journalism","N","28600000","Y"]
["28700100","Peabody Administration","N","28700000","Y"]
["28700200","Peabody 16","N","28700000","Y"]
["28700201","Peabody 17","N","28700000","Y"]
["28700202","Peabody 18","N","28700000","Y"]
["28700301","Peabody Broadcast 17","N","28700000","Y"]
["28700302","Peabody Broadcast 18","N","28700000","Y"]
["28700952","Peabody Residual Balance","N","28700000","Y"]
["28800100","NMI Administration","N","28800000","Y"]
["28800101","NMI Operating","N","28800000","Y"]
["28800102","TedxUGA","N","28800000","Y"]
["28800103","SLAM Program","N","28800000","Y"]
["28800104","Destination Dawgs","N","28800000","Y"]
["28800105","NMI Student Supply Fee","N","28800000","Y"]
["28800106","Drone Summit Fall 2017","N","28800000","Y"]
["29001010","Law School General","N","29001000","Y"]
["29001011","Law School Tuit Diff","N","29001000","Y"]
["29001020","Admissions","N","29001000","Y"]
["29001021","Jd Program Application Fees","N","29001000","Y"]
["29001030","Advancement","N","29001000","Y"]
["29001040","Advocacy","N","29001000","Y"]
["29001050","Career Development","N","29001000","Y"]
["29001060","Communications","N","29001000","Y"]
["29001070","Computer Services","N","29001000","Y"]
["29001080","Diversity","N","29001000","Y"]
["29001090","Events","N","29001000","Y"]
["29001100","Rusk","N","29001000","Y"]
["29001101","Llm Program Application Fees","N","29001000","Y"]
["29001102","Law Study Abroad In Europe","N","29001000","Y"]
["29001103","International Workshops/Confer","N","29001000","Y"]
["29001200","Clinics","N","29001000","Y"]
["29001AAC","Alan Cook","N","29001000","Y"]
["29001AGH","Allison Hale","N","29001000","Y"]
["29001ALD","Andrea Dennis","N","29001000","Y"]
["29001AWS","Alex Scherr","N","29001000","Y"]
["29001CCN","Curt Nesset","N","29001000","Y"]
["29001CEM","Carol Morgan","N","29001000","Y"]
["29001CEW","Camilla Watson","N","29001000","Y"]
["29001CMB","Christopher Bruner","N","29001000","Y"]
["29001CMS","Christine Scartz","N","29001000","Y"]
["29001CXT","Christian Turner","N","29001000","Y"]
["29001DES","David Shipley","N","29001000","Y"]
["29001DMA","Diane Amann","N","29001000","Y"]
["29001DTC","Dan Coenen","N","29001000","Y"]
["29001ECB","Beth Burch","N","29001000","Y"]
["29001ECL","Ellie Lanier","N","29001000","Y"]
["29001EMG","Elizabeth Grant","N","29001000","Y"]
["29001EMH","Emma Hetherington","N","29001000","Y"]
["29001EWL","Elizabeth Weeks Leonard","N","29001000","Y"]
["29001FRK","Fazal Khan","N","29001000","Y"]
["29001GDP","Greg Polsky","N","29001000","Y"]
["29001HGC","Harlan Cohen","N","29001000","Y"]
["29001HYL","Hillel Levin","N","29001000","Y"]
["29001JAC","Julian Cook","N","29001000","Y"]
["29001JLH","Jessica Heywood","N","29001000","Y"]
["29001JRB","Randy Beck","N","29001000","Y"]
["29001JSM","Joe Miller","N","29001000","Y"]
["29001KCM","Kellie Casey Monk","N","29001000","Y"]
["29001KHB","Kent Barnett","N","29001000","Y"]
["29001LAR","Lori Ringhand","N","29001000","Y"]
["29001LES","Logan Sawyer","N","29001000","Y"]
["29001LTB","Lonnie Brown","N","29001000","Y"]
["29001LXM","Lisa Milot","N","29001000","Y"]
["29001MIH","Matthew Hall","N","29001000","Y"]
["29001MLW","Mike Wells","N","29001000","Y"]
["29001MVS","Maggie Sachs","N","29001000","Y"]
["29001MXB","Mehrsa Baradaran","N","29001000","Y"]
["29001NSC","Nathan Chapman","N","29001000","Y"]
["29001PAA","Peter Appel","N","29001000","Y"]
["29001PBR","Bo Rutledge","N","29001000","Y"]
["29001PDC","Patrick Conner","N","29001000","Y"]
["29001RCG","Russell Gabriel","N","29001000","Y"]
["29001SGM","Sandra Mayson","N","29001000","Y"]
["29001SRW","Sonja West","N","29001000","Y"]
["29001TMT","Travis Trimble","N","29001000","Y"]
["29001TVB","Thomas Burch","N","29001000","Y"]
["29001URR","Usha Rodrigues","N","29001000","Y"]
["29001WMT","Willow Tracy","N","29001000","Y"]
["29002100","Law Library Operating","N","29002000","Y"]
["29002101","Library Tuit Diff","N","29002000","Y"]
["29002200","Collection Dev & Support","N","29002000","Y"]
["29002300","Professional Development","N","29002000","Y"]
["29003000","Inst. Continuing Judicial Educ","N","29000000","Y"]
["29004000","Georgia Law Review","N","29000000","Y"]
["29004100","Georgia Law Review Conferences","N","29000000","Y"]
["29005000","Georgia Journal Of Internation","N","29000000","Y"]
["29006000","Georgia Journal Of Intellectua","N","29000000","Y"]
["29007000","Coffee Shop","N","29000000","Y"]
["29009000","Law School Conf/Workshops","N","29000000","Y"]
["29009010","Wipi Conference","N","29000000","Y"]
["29009020","Red Clay Conference","N","29000000","Y"]
["29009030","Ip Conference","N","29000000","Y"]
["29009040","Galp Conference","N","29000000","Y"]
["30101001","COP Dean's Office Operations","N","30101000","Y"]
["30101002","Dean's Travel","N","30101000","Y"]
["30101003","Software Contracts","N","30101000","Y"]
["30101020","Administrative and Technology","N","30101000","Y"]
["30101021","External Affairs","N","30101000","Y"]
["30101022","Facilities","N","30101000","Y"]
["30101023","Finance and Administration","N","30101000","Y"]
["30101024","Instructional Design and Tech","N","30101000","Y"]
["30101025","Public Relations","N","30101000","Y"]
["30101201","COP IDC Return (UGARF)","N","30101000","Y"]
["30101202","COP Residual","N","30101000","Y"]
["30101203","COP IDC Carry Forward","N","30101000","Y"]
["30101204","Royalty Inventor Drug Disc","N","30101000","Y"]
["30101205","Anti-Viral Research Chu","N","30101000","Y"]
["30101900","COP S&S Carry Forward","N","30101000","Y"]
["30101901","COP Sales & Services","N","30101000","Y"]
["30101902","IDT Sales & Services","N","30101000","Y"]
["30101950","Student Health Insurance","N","30101000","Y"]
["30101951","Student Malpractice Insurance","N","30101000","Y"]
["30101952","Student Evalue Service","N","30101000","Y"]
["30201001","Associate Dean Operations","N","30201000","Y"]
["30201201","Technology Fee","N","30201000","Y"]
["30202001","Student Affairs Operations","N","30202000","Y"]
["30202002","Student Affairs Diversity","N","30202000","Y"]
["30202003","Student Affairs Student Travel","N","30202000","Y"]
["30202901","SA Sales & Services","N","30202000","Y"]
["30203001","NTEO Operations","N","30203000","Y"]
["30203901","NTEO Sales & Services","N","30203000","Y"]
["30203950","NTEO SE Residency Conf","N","30203000","Y"]
["30301001","PBS Operations","N","30301000","Y"]
["30301002","PBS PhD Program","N","30301000","Y"]
["30301003","PBS MS Program","N","30301000","Y"]
["30301004","PBS Salary Savings","N","30301000","Y"]
["30301020","PBS BS Program","N","30301000","Y"]
["30301101","Dexi Lui","N","30301100","Y"]
["30301102","Michael Bartlett","N","30301100","Y"]
["30301103","Houjian Cai","N","30301100","Y"]
["30301104","David Chu","N","30301100","Y"]
["30301105","Brian Cummings","N","30301100","Y"]
["30301106","Deborah Elder","N","30301100","Y"]
["30301107","James Franklin","N","30301100","Y"]
["30301108","Phillip Greenspan","N","30301100","Y"]
["30301109","Shelley Hooks","N","30301100","Y"]
["30301110","Eileen Kennedy","N","30301100","Y"]
["30301112","Cory Momany","N","30301100","Y"]
["30301113","Mandi Murph","N","30301100","Y"]
["30301114","Scott Pegan","N","30301100","Y"]
["30301115","Gurvinder Singh Rekhi","N","30301100","Y"]
["30301116","Arthur Roberts","N","30301100","Y"]
["30301117","Han Rong Weng","N","30301100","Y"]
["30301118","Catherine White","N","30301100","Y"]
["30301119","May Xiong","N","30301100","Y"]
["30301120","Yao Yao","N","30301100","Y"]
["30301121","Jason Zastre","N","30301100","Y"]
["30301122","George Zheng","N","30301100","Y"]
["30301200","PBS (Budget Only)","N","30000000","Y"]
["30301201","PBS IDC Return (UGARF)","N","30301000","Y"]
["30301202","PBS Residual","N","30301000","Y"]
["30301203","Royalty Research Chu","N","30301000","Y"]
["30301204","Drug Discovery","N","30301000","Y"]
["30301901","PBS Sales & Services","N","30301000","Y"]
["30301902","PBS BS Program Lab Fees","N","30301000","Y"]
["30401001","AD SERT Operations","N","30401000","Y"]
["30401200","AD SERT (Budget Only)","N","30000000","Y"]
["30401201","AD SERT - Indirect Cost","N","30401000","Y"]
["30402001","Regulatory Affairs Operations","N","30402000","Y"]
["30402901","RA Sales & Services","N","30402000","Y"]
["30501001","CAP Operations","N","30501000","Y"]
["30501002","CAP Salary Savings","N","30501000","Y"]
["30501020","CAP Albany","N","30501000","Y"]
["30501030","CAP Augusta","N","30501000","Y"]
["30501040","CAP Savannah","N","30501000","Y"]
["30501101","Brad Phillips","N","30501100","Y"]
["30501102","Ewan Cobran","N","30501100","Y"]
["30501103","Jayani Jayawardhana","N","30501100","Y"]
["30501104","Matthew Perri","N","30501100","Y"]
["30501105","Elisabeth Lilian Sattler","N","30501100","Y"]
["30501106","Henry Young","N","30501100","Y"]
["30501107","Amber Clemmons","N","30501100","Y"]
["30501108","Susan Fagan","N","30501100","Y"]
["30501109","Lakshman Segar","N","30501100","Y"]
["30501110","Somanath Shenoy","N","30501100","Y"]
["30501111","Rebecca Stone","N","30501100","Y"]
["30501112","Duska Franic","N","30501100","Y"]
["30501113","Ken Duke","N","30501100","Y"]
["30501114","Marie Chisholm","N","30501100","Y"]
["30501115","Susan Smith","N","30501100","Y"]
["30501116","Andrea Newsome","N","30501100","Y"]
["30501201","CAP IDC Return (UGARF)","N","30501000","Y"]
["30501202","CAP Residual","N","30501000","Y"]
["30501901","CAP Sales & Services","N","30501000","Y"]
["30701001","Experience Progams Operations","N","30701000","Y"]
["30701901","Exp Programs Sales & Services","N","30701000","Y"]
["31010001","College Public Health DO Roll","N","31010000","Y"]
["31011DPH","DO General Funds Drph Program","N","31010000","Y"]
["31011DRP","DO Professional Differential T","N","31010000","Y"]
["31011MPH","DO Professional Differential T","N","31010000","Y"]
["31012001","DO CPH Poster Plotter","N","31010000","Y"]
["31012002","DO Ind Dis Lrn","N","31010000","Y"]
["31012003","DO MPH/DRPH Stdt Application F","N","31010000","Y"]
["31012925","DO DSS Carry Forward ","N","31010000","Y"]
["31013CAR","DO IDC Carry Forward","N","31010000","Y"]
["31014000","DO CPH Dean","N","31010000","Y"]
["31014COM","DO CPH Commitments","N","31010000","Y"]
["31014DAV","DO Associate Dean Davis","N","31010000","Y"]
["31014DEV","DO CPH Development","N","31010000","Y"]
["31014DTR","DO Domestic Travel","N","31010000","Y"]
["31014HEC","DO Associate Dean Heckman","N","31010000","Y"]
["31014OIT","DO Off Inf Tech","N","31010000","Y"]
["31014RSH","DO CPH Research Office","N","31010000","Y"]
["31014SAA","DO Student Academic Affairs","N","31010000","Y"]
["31014SRV","DO Outreach & Engagement","N","31010000","Y"]
["31014STF","DO Student Tech Fees","N","31010000","Y"]
["31014WIL","DO Associate Dean Wilson","N","31010000","Y"]
["31015GWN","DO Gwinnett","N","31010000","Y"]
["31016PSH","DO CPH Partnerships","N","31010000","Y"]
["31017TWS","DO Training Workshop","N","31010000","Y"]
["31018SHE","John J. SHEURING Memorial","N","31010000","Y"]
["31020001","GHI Rollup","N","31020000","Y"]
["31021MPH","GHI Professional Differential","N","31020000","Y"]
["31022SAP","Studies Abroad Program Fees","N","31020000","Y"]
["31026ISR","PH GRAD INTERN - Israel SA","N","31020000","Y"]
["31027VIP","GHI VIP Funds","N","31020000","Y"]
["31028WHA","UGARF DRP RSCH SUP Whalen","N","31020000","Y"]
["31029SEK","GHI Juliet Sekandi","N","31020000","Y"]
["31030001","EHS Rollup","N","31030000","Y"]
["31031MPH","EHS Professional Differential","N","31030000","Y"]
["31032001","EHS Lab Fees","N","31030000","Y"]
["31032002","EHS DNA Lab","N","31030000","Y"]
["31032003","EHS Research Service Wang Lab","N","31030000","Y"]
["31032TWS","EHS Training Workshop","N","31030000","Y"]
["31033KEY","EHS Key Account","N","31030000","Y"]
["31038BLK","EHS Marsha Black","N","31030000","Y"]
["31038EAS","EHS Charles Easley","N","31030000","Y"]
["31038LIP","EHS Erin Lipp","N","31030000","Y"]
["31038NAE","EHS Luke Naeher","N","31030000","Y"]
["31038TAN","EHS Lili Tang","N","31030000","Y"]
["31038XYU","EHS Xiaozhong Yu","N","31030000","Y"]
["31040001","EPIBIO Rollup","N","31040000","Y"]
["31041MPH","EB Professional Differential T","N","31040000","Y"]
["31042TWS","EB Training Workshop","N","31040000","Y"]
["31043CON","EB Biostatistics Consulting","N","31040000","Y"]
["31048BEL","EB Steven Bellan","N","31040000","Y"]
["31048BUX","EB Carmen Buxo","N","31040000","Y"]
["31048EBE","EB Mark Ebell","N","31040000","Y"]
["31048HAN","EB Andreas Handel","N","31040000","Y"]
["31048RAT","EB Stephen Rathbun","N","31040000","Y"]
["31048SHE","EB Ye Shen","N","31040000","Y"]
["31048SON","EB Xiao Song","N","31040000","Y"]
["31048SWA","EB Andrea Swartzendruber","N","31040000","Y"]
["31048ZHA","EB Ming Zhang","N","31040000","Y"]
["31049COR","EB Jose Cordero Startup","N","31040000","Y"]
["31050001","IOG Rollup","N","31050000","Y"]
["31050ADM","IOG Administration","N","31050000","Y"]
["31051MPH","IOG Professional Differential","N","31050000","Y"]
["31052001","IOG Student Workshop","N","31050000","Y"]
["31053DLP","IOG Dist Lrn Part","N","31050000","Y"]
["31060001","HPMRollup","N","31060000","Y"]
["31061DRP","HPM Professional Differential","N","31060000","Y"]
["31061MPH","HPM Professional Differential","N","31060000","Y"]
["31062CON","HPM Consulting","N","31060000","Y"]
["31067ADA","HPM Grace Bagwell Adams","N","31060000","Y"]
["31067CHE","HPM Zhuo Chen","N","31060000","Y"]
["31067CLA","HPM Lesley Clack","N","31060000","Y"]
["31067COR","HPM Phaedra Corso","N","31060000","Y"]
["31067GRE","HPM Dale Green","N","31060000","Y"]
["31067THA","HPM Rajbhandari Thapa","N","31060000","Y"]
["31067ZHA","HPM Donglan Zhang","N","31060000","Y"]
["31070001","HPB Rollup","N","31070000","Y"]
["31071MPH","HPB Professional Differential","N","31070000","Y"]
["31072SAC","HPB Studies Abroad Croatia","N","31070000","Y"]
["31073SAJ","HPB Studies Abroad Japan","N","31070000","Y"]
["31074FRG","HPB Faculty Research Grants","N","31070000","Y"]
["31075GAY","UGARF FAC RSCH Gay","N","31070000","Y"]
["31075LAU","UGARF FAC RSCH Lauckner","N","31070000","Y"]
["31080001","IDM Rollup","N","31080000","Y"]
["31081MPH","IDM Professional Differential","N","31080000","Y"]
["31082TWS","IDM Training Workshop","N","31080000","Y"]
["31090000","AU/UGA CPH Med Partnership","N","31000000","Y"]
["31100001","HII Rollup","N","31100000","Y"]
["31101CON","HII Consulting","N","31100000","Y"]
["32001001","SPIA Dean General","N","32001000","Y"]
["32001002","Dean Support","N","32001000","Y"]
["32001003","Associate Dean Support","N","32001000","Y"]
["32001004","SPIA Info Tech","N","32001000","Y"]
["32001005","SPIA Student Tech Fee","N","32001000","Y"]
["32001006","Departmental Support","N","32001000","Y"]
["32001200","SPIA Sales & Service","N","32001000","Y"]
["32001300","SPIA S&S Carryforward","N","32001000","Y"]
["32001400","SPIA Residual-UGARF","N","32001000","Y"]
["32001500","SPIA IDC Carry Forward","N","32001000","Y"]
["32001600","SPIA IDC Returns","N","32001000","Y"]
["32002001","CITS General","N","32002000","Y"]
["32002002","CITS Events","N","32002000","Y"]
["32002003","CITS Info Tech","N","32002000","Y"]
["32002100","Norinco Executive Training","N","32002000","Y"]
["32002200","CITS Sales & Service","N","32002000","Y"]
["32002300","CITS Residual-UGARF","N","32002000","Y"]
["32002400","CITS IDC Returns","N","32002000","Y"]
["32003001","Political Science General","N","32003000","Y"]
["32003002","Political Science Events","N","32003000","Y"]
["32003003","Political Science Infor Tech","N","32003000","Y"]
["32003100","Applied Politics Cert. Program","N","32003000","Y"]
["32003200","Survey Research Center","N","32003000","Y"]
["32003301","Politcal Science Dept Head","N","32003300","Y"]
["32003302","General Faculty Support","N","32003300","Y"]
["32003303","Charles Bullock","N","32003300","Y"]
["32003304","Audrey Haynes","N","32003300","Y"]
["32003400","Pol Sci Sales & Service","N","32003000","Y"]
["32003500","Survey Research Center S&S","N","32003000","Y"]
["32003600","P S Residual-UGARF","N","32003000","Y"]
["32003700","Pol Sci IDC","N","32003000","Y"]
["32004001","International Affairs General","N","32004000","Y"]
["32004002","International Affairs Events","N","32004000","Y"]
["32004003","International Affairs IT","N","32004000","Y"]
["32004101","International Department Head","N","32004100","Y"]
["32004102","IA General Faculty Support","N","32004100","Y"]
["32004200","IA Residual-UGARF","N","32004000","Y"]
["32004300","International Affairs IDC","N","32004000","Y"]
["32005001","PADP General","N","32005000","Y"]
["32005002","PADP Events","N","32005000","Y"]
["32005003","PADP Info Tec","N","32005000","Y"]
["32005101","Brad Wright Support","N","32005100","Y"]
["32005102","Andy Whitford Support","N","32005100","Y"]
["32005103","Brian Williams Support","N","32005100","Y"]
["32005104","Tima Moldogaziev Support","N","32005100","Y"]
["32005105","Amanda Abraham Support","N","32005100","Y"]
["32005106","Gene Brewer Support","N","32005100","Y"]
["32005107","Ed Kellough Support","N","32005100","Y"]
["32005108","Jason Anastasopoulos Support","N","32005100","Y"]
["32005109","Rebecca Nesbit Support","N","32005100","Y"]
["32005110","Alumni Prof Support","N","32005100","Y"]
["32005111","Sun Young Kim Support","N","32005100","Y"]
["32005200","Tuition Differential","N","32005000","Y"]
["32005300","PADP Residual-UGARF","N","32005000","Y"]
["32005400","PADP IDC Returns","N","32005000","Y"]
["32006001","Globis General","N","32006000","Y"]
["32006002","Globis Events","N","32006000","Y"]
["32006003","Globis IT","N","32006000","Y"]
["32006004","Globis Director Support","N","32006000","Y"]
["32006100","Study Abroad Verona","N","32006000","Y"]
["32006200","Study Abroad Stellenbosch","N","32006000","Y"]
["32006300","Study Abroad Scotland","N","32006000","Y"]
["32006400","Study Abroad China","N","32006000","Y"]
["32006500","Study Abroad Liverpool","N","32006000","Y"]
["32006600","Study Abroad Korea","N","32006000","Y"]
["32007001","SPIA Development General","N","32007000","Y"]
["32007002","SPIA Development Events","N","32007000","Y"]
["32007003","SPIA Development IT","N","32007000","Y"]
["32008001","SPIA Communications General","N","32008000","Y"]
["32008002","SPIA Communications Events","N","32008000","Y"]
["32008003","SPIA Communications IT","N","32008000","Y"]
["32009001","SPIA Student Affairs General","N","32009000","Y"]
["32009002","SPIA Student Affairs Events","N","32009000","Y"]
["32009003","SPIA Student Affairs IT","N","32009000","Y"]
["32009004","Student Support","N","32009000","Y"]
["33001001","SSW Main","N","33001000","Y"]
["33001002","SSW Sponsorship","N","33001000","Y"]
["33001003","SSW Faculty Search","N","33001000","Y"]
["33001004","SSW Banks","N","33001000","Y"]
["33001005","SSW Beer","N","33001000","Y"]
["33001006","SSW Briggs","N","33001000","Y"]
["33001007","SSW Campbell","N","33001000","Y"]
["33001008","SSW Caplan","N","33001000","Y"]
["33001009","SSW Choi","N","33001000","Y"]
["33001010","SSW Cornell","N","33001000","Y"]
["33001011","SSW Elkins","N","33001000","Y"]
["33001012","SSW Ellett","N","33001000","Y"]
["33001014","SSW Holsko","N","33001000","Y"]
["33001015","SSW Hopps","N","33001000","Y"]
["33001016","SSW Jasktye","N","33001000","Y"]
["33001017","SSW Lockhart","N","33001000","Y"]
["33001018","SSW Lowe","N","33001000","Y"]
["33001019","SSW Mallon","N","33001000","Y"]
["33001020","SSW Matthew","N","33001000","Y"]
["33001021","SSW McPherson","N","33001000","Y"]
["33001022","SSW Mowbray","N","33001000","Y"]
["33001023","SSW Nackerud","N","33001000","Y"]
["33001024","SSW Okech","N","33001000","Y"]
["33001025","SSW Reeves","N","33001000","Y"]
["33001026","SSW Robinson","N","33001000","Y"]
["33001027","SSW Scheyett","N","33001000","Y"]
["33001028","SSW Miller","N","33001000","Y"]
["33001029","SSW Stahl","N","33001000","Y"]
["33001030","SSW Vonk","N","33001000","Y"]
["33001031","SSW Washington","N","33001000","Y"]
["33001032","SSW Johnson","N","33001000","Y"]
["33001033","SSW Harvey","N","33001000","Y"]
["33001034","SSW Sanger","N","33001000","Y"]
["33001035","SSW Burrell","N","33001000","Y"]
["33001036","SSW Artelt","N","33001000","Y"]
["33001037","SSW Wooden","N","33001000","Y"]
["33001100","SSW Dean's Office","N","33000000","Y"]
["33001111","SSW Carry Forwawrd","N","33000000","Y"]
["33002000","SSW Guc","N","33000000","Y"]
["33003000","SSW Technology","N","33000000","Y"]
["33004000","SSW Cont Edu","N","33000000","Y"]
["33005000","SSW Rias","N","33000000","Y"]
["33006000","SSW Global","N","33000000","Y"]
["33007000","SSW Ghana","N","33000000","Y"]
["33008000","SSW Northern Ireland","N","33000000","Y"]
["33009001","SSW Grad MSW","N","33009000","Y"]
["33009002","SSW Grad PHD","N","33009000","Y"]
["33009003","SSW Grad Teach","N","33009000","Y"]
["33009004","SSW Sup BSW","N","33009000","Y"]
["33009005","SSW Hourly","N","33009000","Y"]
["3400100C","Vet Med Dean's Office - Conv.","N","34001000","Y"]
["34001100","CVM - Dean's Office","N","34001000","Y"]
["34001200","CVM - Rsch And Grad Affairs","N","34001000","Y"]
["34001210","CVM - H. Dickerson","N","34001000","Y"]
["34001300","CVM - Academic Affairs","N","34001000","Y"]
["34001310","CVM - Admissions","N","34001000","Y"]
["34001320","Pre-Clinical Academic Affairs","N","34001000","Y"]
["34001330","Clinical Academic Affairs","N","34001000","Y"]
["34001340","Educ Resources Center","N","34001000","Y"]
["34001400","CVM - Financ and Admin","N","34001000","Y"]
["34001410","CVM - Business Office","N","34001000","Y"]
["34001420","CVM - Facilities","N","34001000","Y"]
["34001430","CVM - Information Technology","N","34001000","Y"]
["34001431","Vet View","N","34001000","Y"]
["34001440","CVM - Human Resources","N","34001000","Y"]
["34001500","CVM - External Affairs","N","34001000","Y"]
["34001510","CVM - Development","N","34001000","Y"]
["34001520","CVM - Alumni Affairs","N","34001000","Y"]
["34001530","CVM - Public Relations","N","34001000","Y"]
["34001600","CVM - Continuing Education","N","34001000","Y"]
["34001700","Animal Health Research Center","N","34001000","Y"]
["3400200C","VTH Conversion","N","34002000","Y"]
["34002100","VTH Small Animal Ecc","N","34002000","Y"]
["34002200","VTH Sa Specialty Services","N","34002000","Y"]
["34002201","VTH Sa Cardiology","N","34002000","Y"]
["34002202","VTH Sa Dermatology","N","34002000","Y"]
["34002203","VTH Sa Exotics","N","34002000","Y"]
["34002204","VTH Sa Internal Medicine","N","34002000","Y"]
["34002205","VTH Sa Neurology","N","34002000","Y"]
["34002206","VTH Sa Oncology","N","34002000","Y"]
["34002207","VTH Sa Opthalmology","N","34002000","Y"]
["34002208","VTH Sa Orthopedics","N","34002000","Y"]
["34002209","VTH Sa Rehab","N","34002000","Y"]
["34002210","VTH Soft Tissue Surgery","N","34002000","Y"]
["34002300","VTH Intermediate Care","N","34002000","Y"]
["34002400","VTH Anesthesia","N","34002000","Y"]
["34002401","VTH Sa Anesthesia","N","34002000","Y"]
["34002402","VTH La Anesthesia","N","34002000","Y"]
["34002500","VTH Large Animal","N","34002000","Y"]
["34002501","VTH La Internal Medicine","N","34002000","Y"]
["34002502","VTH La Surgery","N","34002000","Y"]
["34002503","VTH La Emergency","N","34002000","Y"]
["34002600","VTH Radiology","N","34002000","Y"]
["34002700","VTH Field Services","N","34002000","Y"]
["34002800","VTH Pharmacy","N","34002000","Y"]
["34002900","VTH Comm. Practice Clinic","N","34002000","Y"]
["34002ADM","VTH Administration","N","34002000","Y"]
["34002FAC","VTH Facilities","N","34002000","Y"]
["34002ORS","VTH Operating Room/Surgery","N","34002000","Y"]
["34002VCS","VTH Central Sterile","N","34002000","Y"]
["34002VHR","VTH Human Resources","N","34002000","Y"]
["34002VMR","VTH Medical Records","N","34002000","Y"]
["34002WAR","VTH Warehouse","N","34002000","Y"]
["3400300C","Population Health Conversion","N","34003000","Y"]
["34003F00","Pop Health - Food Animal","N","34003000","Y"]
["34003FBB","Food Animal - Bergess","N","34003000","Y"]
["34003FBC","Food Animal - Credille","N","34003000","Y"]
["34003FDH","Food Animal - Hurley","N","34003000","Y"]
["34003FER","Food Animal - Rollin","N","34003000","Y"]
["34003FLJ","Food Animal - Jones","N","34003000","Y"]
["34003FRB","Food Animal - Berghaus","N","34003000","Y"]
["34003FRC","Food Animal - Rose Creek Farm","N","34003000","Y"]
["34003FRF","Food Animal - Riverbend Farm","N","34003000","Y"]
["34003FRP","Food Animal - Palomares","N","34003000","Y"]
["34003P00","Pop Health - PDRC","N","34003000","Y"]
["34003PBJ","PDRC - Brian Jordan","N","34003000","Y"]
["34003PCL","PDRC - Catherine Logue","N","34003000","Y"]
["34003PDP","PDRC - Daniel Perez","N","34003000","Y"]
["34003PDR","PDRC - Daniella Rajao","N","34003000","Y"]
["34003PDX","PDRC Diagnostic Lab","N","34003000","Y"]
["34003PHS","PDRC - Holly Sellers","N","34003000","Y"]
["34003PJM","PDRC - John Maurer","N","34003000","Y"]
["34003PKG","PDRC - Karen Grogan","N","34003000","Y"]
["34003PMB","PDRC - Melinda Brindley","N","34003000","Y"]
["34003PMF","PDRC - Monique Franca","N","34003000","Y"]
["34003PMG","Prdc - Mariacarmen Garcia","N","34003000","Y"]
["34003PMJ","PDRC - Mark Jackwood","N","34003000","Y"]
["34003PML","PDRC - Margie Lee","N","34003000","Y"]
["34003PNF","PDRC - Naola Ferguson-Noel","N","34003000","Y"]
["34003PSR","PDRC - Steven Roney","N","34003000","Y"]
["34003PSW","PDRC - Susan Williams","N","34003000","Y"]
["34003S0C","SCWDS - Conversion","N","34003S00","Y"]
["34003S10","SCWDS - Department Control","N","34003S00","Y"]
["34003SDM","SCWDS - Mead","N","34003S00","Y"]
["34003SDS","SCWDS - Stallknecht","N","34003S00","Y"]
["34003SJF","SCWDS - Fischer","N","34003S00","Y"]
["34003SMR","SCWDS - Ruder","N","34003S00","Y"]
["34003SMY","SCWDS - Yabsley","N","34003S00","Y"]
["34003SSH","SCWDS - Hernandez","N","34003S00","Y"]
["3400400C","VBDI - Conversion","N","34004000","Y"]
["34004A00","VBDI - Administration","N","34004000","Y"]
["34004AAD","VBDI - Office Administration","N","34004000","Y"]
["34004ACP","VBDI - CURO Program","N","34004000","Y"]
["34004C00","VBDI - Classes","N","34004000","Y"]
["34004CAD","VBDI - Cadavers","N","34004000","Y"]
["34004CAL","VBDI - Anatomy Lab","N","34004000","Y"]
["34004F00","VBDI - Faculty","N","34004000","Y"]
["34004FAS","VBDI - A. Sharma","N","34004000","Y"]
["34004FCJ","VBDI - C. Jarrett","N","34004000","Y"]
["34004FHD","VBDI - H. Dookwah","N","34004000","Y"]
["34004FJH","VBDI - J. Hogan","N","34004000","Y"]
["34004FKC","VBDI - K. Czaja","N","34004000","Y"]
["34004FKG","VBDI - K. Gendron","N","34004000","Y"]
["34004FKN","VBDI - K. Nagata","N","34004000","Y"]
["34004FLT","VBDI - Faculty Locums","N","34004000","Y"]
["34004FPM","VBDI - P. Mohankumar","N","34004000","Y"]
["34004FRG","VBDI - R. Gogal","N","34004000","Y"]
["34004FSC","VBDI - S. Crowell-Davis","N","34004000","Y"]
["34004FSH","VBDI - S. Holladay","N","34004000","Y"]
["34004FSM","VBDI - S. Mohankumar","N","34004000","Y"]
["34004FSS","VBDI - S. Secrest","N","34004000","Y"]
["34004FTB","VBDI - T. Burg","N","34004000","Y"]
["34004FTG","VBDI - T. Guo","N","34004000","Y"]
["34004FTK","VBDI - T. Krunkosky","N","34004000","Y"]
["34004RDI","VBDI - Residents","N","34004000","Y"]
["3400500C","SAMS - Conversion","N","34005000","Y"]
["34005ASH","SAMS - A. Franklin","N","34005000","Y"]
["34005BAN","SAMS - Banovic","N","34005000","Y"]
["34005BAR","SAMS - Barber","N","34005000","Y"]
["34005BAT","SAMS - Bateman","N","34005000","Y"]
["34005BRA","SAMS - Brainard","N","34005000","Y"]
["34005BUD","SAMS - Budsberg","N","34005000","Y"]
["34005BUG","SAMS - Bugbee","N","34005000","Y"]
["34005BUR","SAMS - Burg","N","34005000","Y"]
["34005COL","SAMS - Coleman","N","34005000","Y"]
["34005CZE","SAMS - Czerwinksi","N","34005000","Y"]
["34005DCL","SAMS - D. Clarke","N","34005000","Y"]
["34005DIE","SAMS - Diehl","N","34005000","Y"]
["34005DIV","SAMS - Divers","N","34005000","Y"]
["34005DIX","SAMS - Dixon-Jimenez","N","34005000","Y"]
["34005FRA","SAMS - S. Franklin","N","34005000","Y"]
["34005GOO","SAMS - Good","N","34005000","Y"]
["34005GRE","SAMS - Gregory","N","34005000","Y"]
["34005GRI","SAMS - Grimes","N","34005000","Y"]
["34005HIL","SAMS - Hill","N","34005000","Y"]
["34005JOE","SAMS - Bartges","N","34005000","Y"]
["34005JOH","SAMS - Johnston","N","34005000","Y"]
["34005JRS","SAMS - Junior Surgery","N","34005000","Y"]
["34005KCL","SAMS - K. Clarke","N","34005000","Y"]
["34005KEN","SAMS - Kent","N","34005000","Y"]
["34005KOE","SAMS - Koenig","N","34005000","Y"]
["34005LAN","SAMS - Lane","N","34005000","Y"]
["34005LAV","SAMS - Laver","N","34005000","Y"]
["34005MAY","SAMS - Mayer","N","34005000","Y"]
["34005MEI","SAMS - Meindl","N","34005000","Y"]
["34005MYR","SAMS - Myrna","N","34005000","Y"]
["34005NOR","SAMS - Northrup","N","34005000","Y"]
["34005ODY","SAMS - Odyssey","N","34005000","Y"]
["34005PES","SAMS - Pesti","N","34005000","Y"]
["34005PLA","SAMS - Platt","N","34005000","Y"]
["34005PUG","SAMS - Puglisi","N","34005000","Y"]
["34005QUA","SAMS - Quandt","N","34005000","Y"]
["34005RAP","SAMS - Rapoport","N","34005000","Y"]
["34005RES","SAMS - Residents","N","34005000","Y"]
["34005RIT","SAMS - Ritchie","N","34005000","Y"]
["34005ROT","SAMS - Roth","N","34005000","Y"]
["34005RSX","SAMS - Research Surgery","N","34005000","Y"]
["34005SAB","SAMS - Saba","N","34005000","Y"]
["34005SAM","SAMS - Department","N","34005000","Y"]
["34005SCH","SAMS - Schmiedt","N","34005000","Y"]
["34005SMI","SAMS - J. Smith","N","34005000","Y"]
["34005WAL","SAMS - Wallace","N","34005000","Y"]
["34005WAR","SAMS - Ward","N","34005000","Y"]
["3400600C","IDIS - Conversion","N","34006000","Y"]
["3400610C","CVI - Conversion","N","34006100","Y"]
["340061CR","CVI - Core Services","N","34006100","Y"]
["340061EH","CVI - Eric Harvill","N","34006100","Y"]
["340061JM","CVI - Jarrod Moussa","N","34006100","Y"]
["340061KN","CVI - Karen Norris","N","34006100","Y"]
["340061MT","CVI - Mark Tompkins","N","34006100","Y"]
["340061OP","CVI - Operating","N","34006100","Y"]
["340061SY","CVI - Influenza Antig Disc.","N","34006100","Y"]
["340061TA","CVI - Contract Titer Assay","N","34006100","Y"]
["340061TR","CVI - Ted Ross","N","34006100","Y"]
["34006200","IDIS - Quinn","N","34006000","Y"]
["34006201","IDIS - Quinn Drug Testing","N","34006000","Y"]
["34006210","IDIS - He","N","34006000","Y"]
["34006220","IDIS - Rada","N","34006000","Y"]
["34006230","IDIS - Watford","N","34006000","Y"]
["34006240","IDIS - Harn","N","34006000","Y"]
["34006241","IDS - Flow Cytometry","N","34006000","Y"]
["34006242","IDIS - Vaccines","N","34006000","Y"]
["34006250","IDIS - Moorhead","N","34006000","Y"]
["34006251","IDIS - Filaria","N","34006000","Y"]
["34006252","IDIS - Scynexis","N","34006000","Y"]
["34006260","IDIS - Trent","N","34006000","Y"]
["34006270","IDIS - Moore","N","34006000","Y"]
["34006280","IDIS - Peterson","N","34006000","Y"]
["34006290","IDIS - Brindley","N","34006000","Y"]
["34006310","IDIS - Murdock","N","34006000","Y"]
["34006320","IDIS - Hondalus","N","34006000","Y"]
["34006330","IDIS - Tripp","N","34006000","Y"]
["34006340","IDIS - Lafontaine","N","34006000","Y"]
["34006350","IDIS - Wolstenhome","N","34006000","Y"]
["34006351","IDIS - Parasitology Svcs (W)","N","34006000","Y"]
["34006360","IDIS - Kaplan","N","34006000","Y"]
["34006361","IDIS - Parasitology (K)","N","34006000","Y"]
["34006370","IDIS - McEwen","N","34006000","Y"]
["34006380","IDIS - Verocai","N","34006000","Y"]
["3400700C","Pathology - Conversion","N","34007000","Y"]
["34007101","Athens D-Lab - Fee Income","N","34007100","Y"]
["34007102","Athens D-Lab - Lab Anim Rev.","N","34007100","Y"]
["34007103","Athens D-Lab - Aquatic Animal","N","34007100","Y"]
["3400710C","Athens D-Lab - Conversion","N","34007100","Y"]
["34007110","Athens D-Lab - Gen. Lab Exp.","N","34007100","Y"]
["34007120","Athens D-Lab - Accessions","N","34007100","Y"]
["34007121","Athens D-Lab - Administration","N","34007100","Y"]
["34007122","Athens D-Lab - Outreach","N","34007100","Y"]
["34007123","Athens D-Lab - Quality","N","34007100","Y"]
["34007124","Athens D-Lab - BSE","N","34007100","Y"]
["34007125","Athens D-Lab - Serology/Virol","N","34007100","Y"]
["34007130","Athens D-Lab - Bacteriology","N","34007100","Y"]
["34007131","Athens D-Lab - Molecular Diag","N","34007100","Y"]
["34007132","Athens D-Lab - Lab Anim/C Riv","N","34007100","Y"]
["34007140","Athens D-Lab - Pathology","N","34007100","Y"]
["34007141","Athens D-Lab - Histopathology","N","34007100","Y"]
["34007142","Athens D-Lab - Necropsy","N","34007100","Y"]
["34007150","Athens D-Lab - Clin. Path Lab","N","34007100","Y"]
["34007151","Athens D-Lab - EM Payments","N","34007100","Y"]
["34007152","Athens D-Lab - Histo Lab Pmts","N","34007100","Y"]
["34007153","Athens D-Lab - IDL Pmts","N","34007100","Y"]
["34007154","Athens D-Lab - Parasitology","N","34007100","Y"]
["34007155","Athens D-Lab - Flow Cytometry","N","34007100","Y"]
["34007156","Athens D-Lab - Tifton","N","34007100","Y"]
["34007160","Athens D-Lab - Blas-Machado","N","34007100","Y"]
["34007161","Athens D-Lab - C. Brown","N","34007100","Y"]
["34007162","Athens D-Lab - Krimer","N","34007100","Y"]
["34007163","Athens D-Lab - Miller","N","34007100","Y"]
["34007164","Athens D-Lab - Rakich","N","34007100","Y"]
["34007165","Athens D-Lab - Rissi","N","34007100","Y"]
["34007166","Athens D-Lab - Saliki","N","34007100","Y"]
["34007167","Athens D-Lab - Sanchez","N","34007100","Y"]
["34007201","Tifton D-Lab - Admin/Clerical","N","34007200","Y"]
["34007202","Tifton D-Lab - Bact./Glass","N","34007200","Y"]
["34007203","Tifton D-Lab - Serology/Vir.","N","34007200","Y"]
["34007204","Tifton D-Lab - Clinical Path.","N","34007200","Y"]
["34007205","Tifton D-Lab - Toxicology","N","34007200","Y"]
["34007206","Tifton D-Lab - Histology","N","34007200","Y"]
["34007207","Tifton D-Lab - Necr./Receiv.","N","34007200","Y"]
["34007208","Tifton D-Lab - Electr. Micro.","N","34007200","Y"]
["34007209","Tifton D-Lab - Maint./ Custod","N","34007200","Y"]
["3400720C","Tifton D-Lab - Conversion","N","34007200","Y"]
["34007210","Tifton D-Lab Res./ An. Care","N","34007200","Y"]
["34007211","Tifton D-Lab - Quality Contr.","N","34007200","Y"]
["34007212","Tifton D-Lab - Immunology","N","34007200","Y"]
["34007213","Tifton D-Lab - Info. Tech.","N","34007200","Y"]
["34007214","Tifton D-Lab - Mol. B - NAHLN","N","34007200","Y"]
["34007215","Tifton D-Lab - Misc./Path.","N","34007200","Y"]
["34007216","Tifton D-Lab - M Bio - Diagn.","N","34007200","Y"]
["340072FI","Tifton D-Lab - Fee Income","N","34007200","Y"]
["340072HN","Tifton D-Lab - H. Naikare","N","34007200","Y"]
["340072IH","Tifton D-Lab - I. Hawkins","N","34007200","Y"]
["340072MI","Tifton D-Lab - M. Ilha","N","34007200","Y"]
["340072MW","Tifton D-Lab - M. Woldemeskel","N","34007200","Y"]
["340072RW","Tifton D-Lab - R. Wilkes","N","34007200","Y"]
["34007ACC","Pathology - A. Camus","N","34007000","Y"]
["34007BCG","Pathology - B. Garner","N","34007000","Y"]
["34007BXH","Pathology - B. Harmon","N","34007000","Y"]
["34007CCB","Pathology - C. Brown","N","34007000","Y"]
["34007CPL","Pathology - Clin Path Lab","N","34007000","Y"]
["34007EML","Pathology - EM Lab","N","34007000","Y"]
["34007EWH","Pathology - E. Howerth","N","34007000","Y"]
["34007EWU","Pathology - B. Uhl","N","34007000","Y"]
["34007FCD","Pathology - FCD","N","34007000","Y"]
["34007FLW","Pathology - Flow Cytometry","N","34007000","Y"]
["34007GAI","Pathology - Ga. Aquarium","N","34007000","Y"]
["34007GRD","Pathology - Grad Students","N","34007000","Y"]
["34007HIS","Pathology - Histology Lab","N","34007000","Y"]
["34007JBS","Pathology - J. Stanton","N","34007000","Y"]
["34007JLT","Pathology - J. Tarigo","N","34007000","Y"]
["34007JTH","Pathology - J. Halper","N","34007000","Y"]
["34007KPC","Pathology - P. Carmichael","N","34007000","Y"]
["34007KXM","Pathology - K. Meichner","N","34007000","Y"]
["34007KXS","Pathology - K. Sakamoto","N","34007000","Y"]
["34007LAT","Pathology - Latimer","N","34007000","Y"]
["34007MIB","Pathology - Mail in Biopsies","N","34007000","Y"]
["34007MSC","Pathology - M. Camus","N","34007000","Y"]
["34007NEC","Pathology - Necropsy","N","34007000","Y"]
["34007NLG","Pathology - N. Gottdenker","N","34007000","Y"]
["34007OHP","Path - Occ. Health Program","N","34007000","Y"]
["34007RKH","Pathology - K. Harris","N","34007000","Y"]
["34007RXM","Pathology - R. McManamon","N","34007000","Y"]
["34007TXN","Pathology - T. Nagy","N","34007000","Y"]
["34007ZFF","Pathology - Z. Fu","N","34007000","Y"]
["3400800C","Phys-Pharm - Conversion","N","34008000","Y"]
["34008DPT","Phys-Pharm - General","N","34008000","Y"]
["34008GED","Phys-Pharm - G. Edwards","N","34008000","Y"]
["34008JCO","Phys-Pharm - J. Coffield","N","34008000","Y"]
["34008JLE","Phys-Pharm - J. Lee","N","34008000","Y"]
["34008JSC","Phys-Pharm - J. Schank","N","34008000","Y"]
["34008JWA","Phys-Pharm - J. Wagner","N","34008000","Y"]
["34008MVI","Phys-Pharm - M. Vivieros","N","34008000","Y"]
["34008NFI","Phys-Pharm - N. Flilpov","N","34008000","Y"]
["34008RDE","Phys-Pharm - R. DeLaFuente","N","34008000","Y"]
["34008RMG","Phys-Pharm - R. McGraw","N","34008000","Y"]
["34008SBO","Phys-Pharm - S. Brown","N","34008000","Y"]
["34008SCH","Phys-Pharm - S. Chen","N","34008000","Y"]
["34008SSA","Phys-Pharm - S. Sanderson","N","34008000","Y"]
["34008WLI","Phys-Pharm - W.O. Li","N","34008000","Y"]
["34008XYE","Phys-Pharm - X. Ye","N","34008000","Y"]
["34009001","LAM - Barletta","N","34009000","Y"]
["34009002","LAM - Barton","N","34009000","Y"]
["34009003","LAM - E. Beasley","N","34009000","Y"]
["34009004","LAM - Eggleston","N","34009000","Y"]
["34009005","LAM - Epstein","N","34009000","Y"]
["34009006","LAM - Ferrer","N","34009000","Y"]
["34009007","LAM - Giguere","N","34009000","Y"]
["34009008","LAM - Hart","N","34009000","Y"]
["34009009","LAM - Lowder","N","34009000","Y"]
["3400900C","LAM - Conversion","N","34009000","Y"]
["34009010","LAM - J. Moore","N","34009000","Y"]
["34009011","LAM - Mueller","N","34009000","Y"]
["34009012","LAM - Peroni","N","34009000","Y"]
["34009013","LAM - Reed","N","34009000","Y"]
["34009014","LAM - Ryan","N","34009000","Y"]
["34009015","LAM - J. Williams","N","34009000","Y"]
["34009016","LAM - Williamson","N","34009000","Y"]
["34009017","LAM - Parks","N","34009000","Y"]
["34009018","LAM - Buchanan","N","34009000","Y"]
["34009019","LAM - Ellerbrock","N","34009000","Y"]
["34009020","LAM - B. Beasley","N","34009000","Y"]
["34009CAR","LAM - Adv. Repro. Tech","N","34009000","Y"]
["34009CJS","LAM - Junior Surgery","N","34009000","Y"]
["34009CLA","LAM - Lameness Course","N","34009000","Y"]
["34009INT","LAM - Interns","N","34009000","Y"]
["34009RES","LAM - Residents","N","34009000","Y"]
["41010000","MP Dean's Office","N","41000000","Y"]
["41010001","MP Dean's Office - DS&S","N","41000000","Y"]
["41010002","MP UGAF","N","41000000","Y"]
["41010100","MP Communications","N","41000000","Y"]
["41010200","MP IT","N","41000000","Y"]
["41020000","MP Student Affairs","N","41000000","Y"]
["41020100","MP Student Orgs","N","41000000","Y"]
["41020200","MP Student Activity Fees","N","41000000","Y"]
["41030000","MP UME","N","41000000","Y"]
["41030100","MP Basic Sciences","N","41000000","Y"]
["41030200","MP Clerkship Office","N","41000000","Y"]
["41030300","MP Medical Education","N","41000000","Y"]
["41040000","MP GME","N","41000000","Y"]
["41040001","MP GME Reimb StMary - DS&S","N","41000000","Y"]
["41050000","MP Research","N","41000000","Y"]
["41060000","MP Faculty Affairs-Development","N","41000000","Y"]
["42001001","Curriculum Systems","N","42001000","Y"]
["42001002","Academic Honesty","N","42001000","Y"]
["42001003","Learning Communities","N","42001000","Y"]
["42001004","VPI Departmental Admin","N","42001000","Y"]
["42001005","VPI Academic Allocations","N","42001000","Y"]
["42001006","First Year Odyssey","N","42001000","Y"]
["42001100","Advising Services","N","42000000","Y"]
["42001200","Experiential Learning","N","42000000","Y"]
["42001301","Tuition","N","42001300","Y"]
["42001302","Program Fees","N","42001300","Y"]
["42001303","DC Rental Facility","N","42001300","Y"]
["42001400","Stem Education","N","42000000","Y"]
["42001501","Departmental Administration","N","42001500","Y"]
["42001502","SLC Rental Income","N","42001500","Y"]
["42002001","Admissions Admin","N","42002000","Y"]
["42002002","In-State Recruitment","N","42002000","Y"]
["42002003","Out-Of-State Recruitment","N","42002000","Y"]
["42002004","On-Campus Recruitment","N","42002000","Y"]
["42002005","Diversity Recruitment","N","42002000","Y"]
["42002100","Admissions Orientation","N","42000000","Y"]
["42003000","Air Force ROTC","N","42000000","Y"]
["42004000","Army ROTC","N","42000000","Y"]
["42005004","CTL Technology Fee","N","42000000","Y"]
["42005005","Support & Services","N","42005003","Y"]
["42005006","Cable Channel Support","N","42005003","Y"]
["42005007","Lilly Fellows","N","42005000","Y"]
["42005008","Reacting Income","N","42005003","Y"]
["42005009","STF Base","N","42005000","Y"]
["42005011","Learn Tech Consortium","N","42005000","Y"]
["42005012","Future Faculty Program Fellows","N","42005000","Y"]
["42005015","Instruction Support","N","42005001","Y"]
["42005017","Classroom Maintenance","N","42005001","Y"]
["42005022","MLC Support","N","42005001","Y"]
["42005024","Reacting To The Past","N","42005002","Y"]
["42005026","Writing Fellows","N","42005002","Y"]
["42005027","HSC Account","N","42005002","Y"]
["42005028","Teaching Account","N","42005002","Y"]
["42005100","CTL Admin","N","42005000","Y"]
["42005103","Speaker Series","N","42005000","Y"]
["42005110","Sr. Teaching Fellows","N","42005000","Y"]
["42006001","Instruction","N","42006000","Y"]
["42006002","Intensive English Program","N","42006000","Y"]
["42006003","DAE Departmental Admin","N","42006000","Y"]
["42006004","DAE Tech Fee","N","42006000","Y"]
["42006101","Upward Bound","N","42006100","Y"]
["42006102","Talent Search","N","42006100","Y"]
["42006103","Student Support Services","N","42006100","Y"]
["42006200","Freshman College","N","42000000","Y"]
["42007001","Griffin Operations","N","42007000","Y"]
["42007002","Support For Academic Programs","N","42007000","Y"]
["42007003","Academic Program Sales","N","42007000","Y"]
["42007004","Academic Workshops- Griffin","N","42007000","Y"]
["42007005","IT Griffin Sales","N","42007000","Y"]
["42008001","Gwinnett Grad Admin","N","42008000","Y"]
["42008002","Gwinnett Programs Income","N","42008000","Y"]
["42009001","Online Learning Admin","N","42009000","Y"]
["42009002","Media","N","42009000","Y"]
["42009003","Instructional Design","N","42009000","Y"]
["42009004","Student Support Services","N","42009000","Y"]
["42009005","State Authorization","N","42009000","Y"]
["42009101","Marketing Dept Admin","N","42009100","Y"]
["42009102","College Support","N","42009100","Y"]
["42009201","Support And Services","N","42009200","Y"]
["42010001","Departmental Administration","N","42010000","Y"]
["42010002","Registrar Revenue","N","42010000","Y"]
["42010003","Veteran Affairs","N","42010000","Y"]
["42011001","Service Learning Admin","N","42011000","Y"]
["42011002","Service Learning Income","N","42011000","Y"]
["42012001","SFA Dept Admin","N","42012000","Y"]
["42012002","Administrative Cost Allowance","N","42012000","Y"]
["42013000","Work Study","N","42000000","Y"]
["43001001","VP Office Research Admin","N","43001000","Y"]
["43001004","Research IDC Return","N","43001000","Y"]
["43001005","Research Carryforward","N","43001000","Y"]
["43001010","Research Business And HR","N","43001000","Y"]
["43001015","Core Facility Business Srvcs","N","43001000","Y"]
["43001020","Research IT Operations","N","43001000","Y"]
["43001025","Innov Gateway - Tech Transfer","N","43001000","Y"]
["43001030","Innov Gateway - Startup Incub","N","43001000","Y"]
["43001035","Research Legal","N","43001000","Y"]
["43001040","Research Communications","N","43001000","Y"]
["43001045","Proposal Enhancement","N","43001000","Y"]
["43001050","Industry Collaborations","N","43001000","Y"]
["43001055","SPA Pre-Award","N","43001000","Y"]
["43001060","Research Facilities","N","43001000","Y"]
["43001065","GA Genomics Bioinformatics Ctr","N","43001000","Y"]
["43001066","Bioinformatics","N","43001000","Y"]
["43001100","Research Compliance Admin","N","43001000","Y"]
["43001105","Animal Care And Use","N","43001000","Y"]
["43001110","Biosafety","N","43001000","Y"]
["43001115","Export Control","N","43001000","Y"]
["43001120","Human Subjects","N","43001000","Y"]
["43001125","Research Safety","N","43001000","Y"]
["43001130","Occupational Health","N","43001000","Y"]
["43001140","Univ Rsch Animal Resources","N","43001000","Y"]
["43001142","Animal Resources NHP","N","43001000","Y"]
["43001200","Obesity Initiative","N","43001000","Y"]
["43001205","SEC Visiting Fac Travel Grant","N","43001000","Y"]
["43001210","Marine Institute","N","43001000","Y"]
["43001250","Research UGAF Companion","N","43001000","Y"]
["43001300","Research Support Fund","N","43001000","Y"]
["43001305","Research Startup Fund","N","43001000","Y"]
["43001310","Research Support Undesignated","N","43001000","Y"]
["43001315","UGA Assumption of UGARF Exp","N","43001000","Y"]
["43001320","UGA Contingency Support","N","43001000","Y"]
["43001405","UGARF Research Support Fund","N","43001400","Y"]
["43001410","UGARF Startup Fund","N","43001400","Y"]
["43001420","UGARF Faculty Rsch Grant Fund","N","43001400","Y"]
["43001421","UGARF Specified Support","N","43001400","Y"]
["43001422","UGARF Pres Fellows","N","43001400","Y"]
["43001423","UGARF Int Life Sci Prog","N","43001400","Y"]
["43001424","UGARF GA Computing Center","N","43001400","Y"]
["43001425","UGARF Foreign Travel","N","43001400","Y"]
["43001426","UGARF Rsch Admn Tech","N","43001400","Y"]
["43001427","UGARF Spec Rsch Awd","N","43001400","Y"]
["43001428","UGARF Dist Rsch Prof Support","N","43001400","Y"]
["43001429","UGARF UGA-CDC Seed","N","43001400","Y"]
["43001430","UGARF Sercat Dues","N","43001400","Y"]
["43001431","UGARF Coverdell Ops","N","43001400","Y"]
["43001432","UGARF Riverbend Ops","N","43001400","Y"]
["43001433","UGARF Innov Gate Tech Transfer","N","43001400","Y"]
["43001434","UGARF Innov Gate Seed Grants","N","43001400","Y"]
["43001435","UGARF Operating","N","43001400","Y"]
["43001436","UGARF Thinc","N","43001400","Y"]
["43001437","UGARF Post Doc Association","N","43001400","Y"]
["43001438","UGARF IRB support","N","43001400","Y"]
["43001440","UGARF NHP Support","N","43001400","Y"]
["43001450","UGARF CVI II","N","43001400","Y"]
["43001451","UGARF Kyle Contingency","N","43001400","Y"]
["43001452","UGARF-Norris Contingency","N","43001400","Y"]
["43001453","UGARF Insectary","N","43001400","Y"]
["43001454","UGARF Pres Hiring Init","N","43001400","Y"]
["43001455","UGARF CMM Hires","N","43001400","Y"]
["43001456","UGARF Ross STARTUP CVI Reno","N","43001400","Y"]
["43001457","UGARF Cultivar Royalty","N","43001400","Y"]
["43001505","GRA Ventures","N","43001500","Y"]
["43001510","GRA Bond","N","43001500","Y"]
["43020001","Willson Center Operations","N","43020000","Y"]
["43040001","CTRU Operations","N","43040000","Y"]
["43040050","CTRU Operations Income","N","43040000","Y"]
["43040100","CTRU Seed Grants","N","43040000","Y"]
["43040200","CTRU-Funded Studies","N","43040000","Y"]
["43060001","GEM Operations","N","43060000","Y"]
["43100001","ORS Administration","N","43100000","Y"]
["43100050","Central Research Stores","N","43100000","Y"]
["43100055","Chemistry Stockroom","N","43100000","Y"]
["43100060","Coverdell Stockroom","N","43100000","Y"]
["43100065","Tucker Stockroom","N","43100000","Y"]
["43100070","Instrument Shop","N","43100000","Y"]
["43100080","UGA Oligocore","N","43100000","Y"]
["43150001","SREL Operations","N","43150000","Y"]
["43150005","SREL Parrott","N","43150000","Y"]
["43150100","SREL Rhodes","N","43150000","Y"]
["43150200","SREL Conference Center","N","43150000","Y"]
["43150201","SREL Graduate Student","N","43150000","Y"]
["43150202","SREL Analytical Services","N","43150000","Y"]
["43150203","SREL Departmental Income","N","43150000","Y"]
["43150204","SREL DNA Lab Lance","N","43150000","Y"]
["43150205","SREL Molecular Lab","N","43150000","Y"]
["43150300","SREL External Funds","N","43150000","Y"]
["43150400","SREL DOE Coop Agreement Rhodes","N","43150000","Y"]
["43200001","IOB General Operations","N","43200000","Y"]
["43200010","IOB Vip Tuition","N","43200000","Y"]
["43200100","IOB Events","N","43200000","Y"]
["43200105","IOB Symposium","N","43200000","Y"]
["43200200","J Kissinger","N","43200000","Y"]
["43200205","J Gutierrez","N","43200000","Y"]
["43200210","IOB Salary","N","43200000","Y"]
["43200215","IOB Faculty Support","N","43200000","Y"]
["43200220","IOB Student Support","N","43200000","Y"]
["43250001","OIBR Administration","N","43250000","Y"]
["43250002","OIBR Companion","N","43250000","Y"]
["43250003","OIBR Seed Grants","N","43250000","Y"]
["43250004","OIBR Pilot Funds","N","43250000","Y"]
["43250005","OIBR Grantsmanship Devel Prog","N","43250000","Y"]
["43250006","Behavior Cognit Neurosci Wk Gp","N","43250000","Y"]
["43250007","Relationship Science Work Grp","N","43250000","Y"]
["43250008","Violence Work Group","N","43250000","Y"]
["43250009","Computational Social Sci Wk Gp","N","43250000","Y"]
["43250100","P Roman","N","43250000","Y"]
["43250105","L Eby","N","43250000","Y"]
["43250110","S Ardoin","N","43250000","Y"]
["43250115","R Blount","N","43250000","Y"]
["43250120","M Carr","N","43250000","Y"]
["43250125","B Clementz","N","43250000","Y"]
["43250130","J Monahan","N","43250000","Y"]
["43250135","J Muilenburg","N","43250000","Y"]
["43250140","D Robinson","N","43250000","Y"]
["43250145","J Samp","N","43250000","Y"]
["43250150","L Sweet","N","43250000","Y"]
["43250155","Cntr Integrative Conserv Rsch","N","43250000","Y"]
["43250160","J Clay-Warner","N","43250000","Y"]
["43250165","R Simons","N","43250000","Y"]
["43250170","P Corso","N","43250000","Y"]
["43250175","K Wickrama","N","43250000","Y"]
["43250180","J Miller","N","43250000","Y"]
["43250185","D Carter","N","43250000","Y"]
["43250190","N Carter","N","43250000","Y"]
["43250195","A Abraham","N","43250000","Y"]
["43250200","SSHRC Mitchell","N","43250000","Y"]
["43250205","T Futris","N","43250000","Y"]
["43250210","M Caughy","N","43250000","Y"]
["43250215","J Jawardhana","N","43250000","Y"]
["43250220","M Perri","N","43250000","Y"]
["43250225","H Young","N","43250000","Y"]
["43250230","M Welch-Devine","N","43250000","Y"]
["43250235","S Beach","N","43250000","Y"]
["43250240","C Condit","N","43250000","Y"]
["43250245","P Orpinas","N","43250000","Y"]
["43250250","G Bagwell Adams","N","43250000","Y"]
["43250255","B Orland","N","43250000","Y"]
["43260001","SEER Center Administration","N","43260000","Y"]
["43300001","CFR Research Operations","N","43300000","Y"]
["43300202","CFR S Beach","N","43300000","Y"]
["43300204","CFR S Kogan","N","43300000","Y"]
["43300205","CFR G Brody","N","43300000","Y"]
["43300301","CFR Ehrlich/Shaffer","N","43300000","Y"]
["43300302","CFR T Anderson","N","43300000","Y"]
["43300303","CFR D Terris","N","43300000","Y"]
["43300950","CFR Miechv Rb","N","43300000","Y"]
["43300951","CFR Miechv Eval Rb","N","43300000","Y"]
["43350001","CTEGD Administration","N","43350000","Y"]
["43350005","Flow Cytometry Core Facility","N","43350000","Y"]
["43350010","Optical Microscopy Core Facil","N","43350000","Y"]
["43350015","Eupathdb Workshop","N","43350000","Y"]
["43350020","Upenn/Nihrf Eukrytc","N","43350000","Y"]
["43350025","Kissinger Support","N","43350000","Y"]
["43350030","Kissinger Salary Savings","N","43350000","Y"]
["43350035","Tarleton Animal Facility","N","43350000","Y"]
["43350040","Tarleton Antibody Analysis","N","43350000","Y"]
["43350100","D Colley","N","43350000","Y"]
["43350105","R Docampo","N","43350000","Y"]
["43350110","S Moreno","N","43350000","Y"]
["43350115","J Kissinger","N","43350000","Y"]
["43350120","D Kyle","N","43350000","Y"]
["43350125","V Muralidharan","N","43350000","Y"]
["43350130","R Tarleton","N","43350000","Y"]
["43400001","CAIS Administration","N","43400000","Y"]
["43400100","CAIS Analysis Facility","N","43400000","Y"]
["43400105","CAIS Glass Shop","N","43400000","Y"]
["43400110","CAIS Conf & Wrksp","N","43400000","Y"]
["43400115","A Cherkinsky","N","43400000","Y"]
["43400120","R Speakman","N","43400000","Y"]
["43400125","S Noakes","N","43400000","Y"]
["43400130","C Hadden","N","43400000","Y"]
["43450001","CCRC Administration","N","43450000","Y"]
["43450005","CCRC Vip Tuition Return","N","43450000","Y"]
["43450100","Analytical Services","N","43450000","Y"]
["43450105","NMR Machine Usage","N","43450000","Y"]
["43450110","Copy Charges","N","43450000","Y"]
["43450115","Supply Cabinet","N","43450000","Y"]
["43450200","P Azadi","N","43450000","Y"]
["43450205","M Bar Peled","N","43450000","Y"]
["43450210","Gj Boons","N","43450000","Y"]
["43450215","A Darvill","N","43450000","Y"]
["43450220","A Edison","N","43450000","Y"]
["43450225","M Hahn","N","43450000","Y"]
["43450230","R Haltiwanger","N","43450000","Y"]
["43450235","D Mohnen","N","43450000","Y"]
["43450240","K Moremen","N","43450000","Y"]
["43450245","A Muszynski","N","43450000","Y"]
["43450250","M Oneill","N","43450000","Y"]
["43450255","R Orlando","N","43450000","Y"]
["43450260","J Prestegard","N","43450000","Y"]
["43450265","R Steet","N","43450000","Y"]
["43450270","M Tiemeyer","N","43450000","Y"]
["43450275","L Wang","N","43450000","Y"]
["43450280","L Wells","N","43450000","Y"]
["43450285","R Woods","N","43450000","Y"]
["43450290","W York","N","43450000","Y"]
["43450295","M Pierce","N","43450000","Y"]
["43450300","C Szymanski","N","43450000","Y"]
["43450310","CCRC Symposium","N","43450000","Y"]
["43450320","GGC Training Course","N","43450000","Y"]
["43450330","CCRC Training","N","43450000","Y"]
["43450340","Carbosource","N","43450000","Y"]
["43450350","Monoclonal Antibody","N","43450000","Y"]
["43450360","H Flanagan Steet","N","43450000","Y"]
["43450370","D Live","N","43450000","Y"]
["43450380","L Tan","N","43450000","Y"]
["43460001","Cmm Administration","N","43460000","Y"]
["43460200","F Avci","N","43460000","Y"]
["43460210","H Yin","N","43460000","Y"]
["43460220","S Dalton","N","43460000","Y"]
["43460230","CMM Symposium","N","43460000","Y"]
["43460240","CMM Confocal","N","43460000","Y"]
["43470001","Cancer Center Administration","N","43470000","Y"]
["43470200","J Pierce","N","43470000","Y"]
["43470210","L Wells","N","43470000","Y"]
["43470220","M Tiemeyer","N","43470000","Y"]
["43500001","BHSI Administration","N","43500000","Y"]
["43500002","BHSI ICR Allocations","N","43500000","Y"]
["43500003","BHSI UGARF Allocations","N","43500000","Y"]
["43500004","MBB Program","N","43500000","Y"]
["43500005","IPE Event","N","43500000","Y"]
["43500006","ID Symposia","N","43500000","Y"]
["43500010","One Health Workshop","N","43500000","Y"]
["43510001","New Materials Inst Adm","N","43510000","Y"]
["43510005","R Adolphson","N","43510000","Y"]
["43900001","Marine Institute Operations","N","43900000","Y"]
["43900010","Facilities Use","N","43900000","Y"]
["43900015","GDNR Payroll","N","43900000","Y"]
["43900100","M Alber","N","43900000","Y"]
["51001001","VPPSO Admin","N","51001000","Y"]
["51001002","VPPSO Initiatives","N","51001000","Y"]
["51001003","VPPSO Amended Support","N","51001000","Y"]
["51001004","VPPSO Hill Award","N","51001000","Y"]
["51001005","VPPSO New Faculty Tour","N","51001000","Y"]
["51001006","VPPSO Facilitation Training","N","51001000","Y"]
["51001007","VPPSO Dev","N","51001000","Y"]
["51001008","VPPSO Gen","N","51001000","Y"]
["51010000","Archway Partnership","N","51000000","Y"]
["51020010","CVIOG Director","N","51020000","Y"]
["51020020","CVIOG GTED Divison","N","51020000","Y"]
["51020030","CVIOG ITOS Division","N","51020000","Y"]
["51020040","CVIOG SSDS Division","N","51020000","Y"]
["51020050","CVIOG SOPA Division","N","51020000","Y"]
["51020060","CVIOG International Center","N","51020000","Y"]
["51020070","CVIOG Communications","N","51020000","Y"]
["51030001","Fanning Conferences General","N","51030000","Y"]
["51030002","Fanning Income","N","51030000","Y"]
["51030003","Fanning Institute Admin","N","51030000","Y"]
["51030009","ELPNO","N","51030000","Y"]
["51030010","Perspectives","N","51030000","Y"]
["51040200","GC Auxiliary Contigency","N","51000000","Y"]
["51040300","GC Continuing Carryforward","N","51000000","Y"]
["51041010","GC Hotel","N","51041000","Y"]
["51041020","GC Hotel Related","N","51041000","Y"]
["51041030","GC Housekeeping","N","51041000","Y"]
["51041040","GC Hotel Mkt","N","51041000","Y"]
["51042010","GC Food and Beverage","N","51042000","Y"]
["51042020","GC Food and Bev UBI","N","51042000","Y"]
["51045110","GC Business & Finance","N","51045100","Y"]
["51045120","GC Human Resources","N","51045100","Y"]
["51045210","GC Special Projects","N","51045200","Y"]
["51045220","GC Spec Proj Sal Sav","N","51045200","Y"]
["51045310","GC Maintenance/Auxilieary Main","N","51045300","Y"]
["51045320","GC Grounds","N","51045300","Y"]
["51046000","GC Information Technology","N","51000000","Y"]
["51047010","GC Ppd","N","51047000","Y"]
["51047020","GC Office Acad Sp Programs","N","51047000","Y"]
["51047030","GC Webid","N","51047000","Y"]
["51047040","GC PPD Mkt","N","51047000","Y"]
["51048010","GC Sec Events","N","51048000","Y"]
["51048020","GC Sec Admin","N","51048000","Y"]
["51048030","GC Sec Event Services","N","51048000","Y"]
["51048040","GC Sec UBI","N","51048000","Y"]
["51048110","GC Printing & Graphics","N","51048100","Y"]
["51048120","GC Sec Sales","N","51048100","Y"]
["51050100","OVPR Support - Salaries","N","51050000","Y"]
["51050200","Sea Grant Administration","N","51050000","Y"]
["51060100","MAREX Administration","N","51060000","Y"]
["51060200","Advisory","N","51060000","Y"]
["51060300","Marine Education","N","51060000","Y"]
["51060400","Shellfish","N","51060000","Y"]
["51070001","SBDC Administration","N","51070000","Y"]
["51070002","SBDC Business Office","N","51070000","Y"]
["51070003","SBDC Centers","N","51070000","Y"]
["51070004","SBDC Center Income","N","51070000","Y"]
["51070005","SBDC District Director's","N","51070000","Y"]
["51070006","SBDC Information Technology","N","51070000","Y"]
["51070007","SBDC International Trade","N","51070000","Y"]
["51070008","SBDC Medical Practice MGMT","N","51070000","Y"]
["51070009","SBDC Minority Business Div","N","51070000","Y"]
["51070010","SBDC Program Development","N","51070000","Y"]
["51070011","SBDC Res/Mkt/Pub","N","51070000","Y"]
["51070012","SBDC Training","N","51070000","Y"]
["51070013","SBDC Payroll Offset","N","51070000","Y"]
["51080001","Garden Gift Shop","N","51080000","Y"]
["51080002","Botantical Garden Admin","N","51080000","Y"]
["51080003","Horticulture","N","51080000","Y"]
["51080004","Garden Food Services","N","51080000","Y"]
["51080005","Visitor Services","N","51080000","Y"]
["51080006","Education","N","51080000","Y"]
["51080007","Conservation & Research","N","51080000","Y"]
["51080008","Development","N","51080000","Y"]
["51080009","Garden Club Of Georgia","N","51080000","Y"]
["51080010","Friends Of The Garden","N","51080000","Y"]
["57001000","OVPSA Operations","N","57000000","Y"]
["57001100","SA Development","N","57000000","Y"]
["57001200","Learning & Strategic Init.","N","57000000","Y"]
["57001300","Communications & Marketing Ini","N","57000000","Y"]
["57002000","Academic Partnerships & Initia","N","57000000","Y"]
["57003000","Center For Leadership & Servic","N","57000000","Y"]
["57004000","International Student Life","N","57000000","Y"]
["57005000","Lesbian, Gay, Bisexual, Transg","N","57000000","Y"]
["57006000","Multicultural Services & Progr","N","57000000","Y"]
["57010000","Office Of Student Conduct","N","57000000","Y"]
["57011000","Greek Life Office","N","57000000","Y"]
["57012000","University Testing Services","N","57000000","Y"]
["57012050","Disability Resource Center","N","57000000","Y"]
["57012101","Accommodated Testing","N","57012100","Y"]
["57012102","Alternative Text","N","57012100","Y"]
["57012103","Deaf/HOH Svcs.","N","57012100","Y"]
["57012104","Assistive Technology","N","57012100","Y"]
["57012105","Other Aux Aids","N","57012100","Y"]
["57013001","Rec Sports Admin","N","57013000","Y"]
["57013002","Rec Sports Public Relations","N","57013000","Y"]
["57013003","Rec Sports Information Tech","N","57013000","Y"]
["57013004","Rec Sports Outdoor Recreation","N","57013000","Y"]
["57013005","Rec Sports Competitive Sports","N","57013000","Y"]
["57013006","Rec Sports Club Sports","N","57013000","Y"]
["57013007","Rec Sports Fitness & Wellness","N","57013000","Y"]
["57013008","Rec Sports Facilities","N","57013000","Y"]
["57013009","Rec Sports Aquatics","N","57013000","Y"]
["57013010","Rec Sports Conferences/Events","N","57013000","Y"]
["57013011","Student Facility Fee","N","57013000","Y"]
["57013012","Student Rec Fee","N","57013000","Y"]
["57015001","DOS Administration","N","57015000","Y"]
["57015002","DOS Marketing/PR","N","57015000","Y"]
["57015003","DOS Administrative Programming","N","57015000","Y"]
["57015004","Student Care & Outreach","N","57015000","Y"]
["57015005","Tate Computer Support","N","57000000","Y"]
["57015006","Student Veterans Resource Ctr","N","57000000","Y"]
["57015101","Tate Building Operation","N","57015100","Y"]
["57015102","Tate Renovation","N","57015100","Y"]
["57015103","Tate Van","N","57015100","Y"]
["57015104","Legion Pool","N","57015100","Y"]
["57015105","Memorial Hall Renovation","N","57015100","Y"]
["57015106","Scott Hall","N","57015100","Y"]
["57015201","Tate Business Office Oper.","N","57015200","Y"]
["57015202","Tate Staff Salaries","N","57015200","Y"]
["57015203","Tate Special Purchases","N","57015200","Y"]
["57015204","Student Act Reserve & Surplus","N","57015200","Y"]
["57015205","Ticket Office","N","57015200","Y"]
["57015210","UGA Card","N","57000000","Y"]
["57015300","Student Activities & Involve","N","57000000","Y"]
["57015400","Tate Ctr. Meetings & Events","N","57000000","Y"]
["57015500","Tate Ctr. Print & Copy","N","57000000","Y"]
["57015601","Arch Society Admin","N","57015600","Y"]
["57015602","Dawg Camp","N","57015600","Y"]
["57015603","CLS Admin","N","57015600","Y"]
["57015700","LGBTRC Administration","N","57000000","Y"]
["57015800","Academic Partnerships Admin","N","57000000","Y"]
["57020010","University Health Center","N","57020000","Y"]
["57020020","Reserve Accounts UHC","N","57020000","Y"]
["57020030","Surplus Accounts UHC","N","57020000","Y"]
["57020110","UHC Administration","N","57020100","Y"]
["57020120","Communication Services UHC","N","57020100","Y"]
["57020130","Counseling & Psychiatric Serv","N","57020100","Y"]
["57020140","Health Promotion","N","57020100","Y"]
["57020150","Information Technology UHC","N","57020100","Y"]
["57020160","Medical Services","N","57020100","Y"]
["57020170","New Programs & Services UHC","N","57020100","Y"]
["57020405","Allergy & Travel Clinic","N","57020400","Y"]
["57020410","Dental Clinic","N","57020400","Y"]
["57020415","Medical Clinic Blue","N","57020400","Y"]
["57020420","Medical Clinic Gold","N","57020400","Y"]
["57020425","Medical Clinic Green","N","57020400","Y"]
["57020430","Medical Clinic Red","N","57020400","Y"]
["57020435","Patient Services","N","57020400","Y"]
["57020440","Physical Therapy","N","57020400","Y"]
["57020445","Registration & Health Info","N","57020400","Y"]
["57020450","Women's Clinic","N","57020400","Y"]
["57020705","Business Services","N","57020700","Y"]
["57020710","Central Supply","N","57020700","Y"]
["57020715","Environmental Services","N","57020700","Y"]
["57020720","Indirect Plant Overhead","N","57020700","Y"]
["57020725","Laboratory Services","N","57020700","Y"]
["57020730","Pharmacy Services","N","57020700","Y"]
["57020735","Radiology Services","N","57020700","Y"]
["57020740","Support Services","N","57020700","Y"]
["57020745","Vision Clinic","N","57020700","Y"]
["57030001","HSG - Executive Director","N","57030000","Y"]
["57030002","HSG - Sustainability","N","57030000","Y"]
["57030003","HSG - Facilities Admin","N","57030000","Y"]
["57030004","HSG - ASC Admin/HBHR/HAO","N","57030000","Y"]
["57030005","HSG - Information Technology","N","57030000","Y"]
["57030006","HSG - Public Relations","N","57030000","Y"]
["57030007","HSG - Residential Prog&Svcs","N","57030000","Y"]
["57030008","HSG - Security","N","57030000","Y"]
["57030009","HSG - Staff Dev&Student Co","N","57030000","Y"]
["57030010","HSG - Summer Conferences","N","57030000","Y"]
["57030011","HSG - Pcard Clearing","N","57030000","Y"]
["57030101","HSG - Alpha Chi Omega","N","57030100","Y"]
["57030102","HSG - Alpha Epsilon Pi","N","57030100","Y"]
["57030103","HSG - Sigma Delta Tau","N","57030100","Y"]
["57030104","HSG - Kappa Sigma","N","57030100","Y"]
["57030151","HSG - Brumby Hall Council","N","57030150","Y"]
["57030152","HSG - Church/Hill/Boggs HC","N","57030150","Y"]
["57030153","HSG - Creswell Hall Council","N","57030150","Y"]
["57030154","HSG - ECV Hall Council","N","57030150","Y"]
["57030155","HSG - Franklin Res College","N","57030150","Y"]
["57030156","HSG - Mell/Lip Hall Council","N","57030150","Y"]
["57030157","HSG - Morris Hall Council","N","57030150","Y"]
["57030158","HSG - Myers/Ruth/ML Soule HC","N","57030150","Y"]
["57030159","HSG - Ntnl Res Hall Honor","N","57030150","Y"]
["57030160","HSG - O-House Hall Council","N","57030150","Y"]
["57030161","HSG - Payne Hall Council","N","57030150","Y"]
["57030162","HSG - Prog Support&Special Ev","N","57030150","Y"]
["57030163","HSG - Reed Hall Council","N","57030150","Y"]
["57030164","HSG - Residence Hall Assoc","N","57030150","Y"]
["57030165","HSG - Residence Hall Studios","N","57030150","Y"]
["57030166","HSG - Russell Hall Council","N","57030150","Y"]
["57030167","HSG - UV Hall Council","N","57030150","Y"]
["57030168","HSG - Brown Hall Council","N","57030150","Y"]
["57030169","HSG - BLdg 1516 Hall Council","N","57030150","Y"]
["57030170","HSG - HSC Hall Council","N","57030150","Y"]
["57030201","HSG - ECV Summer Hall Council","N","57030200","Y"]
["57030202","HSG - HSC Summer Hall Council","N","57030200","Y"]
["57030203","HSG - Summer School HC","N","57030200","Y"]
["57030204","HSG - UV Summer Hall Council","N","57030200","Y"]
["57030205","HSG - Fresh Co Summer Exp","N","57030200","Y"]
["57030301","HSG - Brandon Oaks Operations","N","57030300","Y"]
["57030302","HSG - Brandon Oaks Maintenance","N","57030300","Y"]
["57030303","HSG - Brandon Oaks Bldg Svcs","N","57030300","Y"]
["57030401","HSG - Rogers Road Operations","N","57030400","Y"]
["57030402","HSG - Rogers Road Maintenance","N","57030400","Y"]
["57030403","HSG - Rogers Road Bldg Svcs","N","57030400","Y"]
["57030501","HSG - University Village Ops","N","57030500","Y"]
["57030502","HSG - University Village Maint","N","57030500","Y"]
["57030503","HSG - Univ Village Bldg Svcs","N","57030500","Y"]
["57030601","HSG - Busbee Hall Operations","N","57030600","Y"]
["57030602","HSG - Busbee Hall Maintenance","N","57030600","Y"]
["57030603","HSG - Busbee Hall Bldg Svcs","N","57030600","Y"]
["57030701","HSG - McWhorter Hall Ops","N","57030700","Y"]
["57030702","HSG - McWhorter Hall Maint","N","57030700","Y"]
["57030703","HSG - McWhorter Hall Bldg Svcs","N","57030700","Y"]
["57030801","HSG - Rooker Hall Operations","N","57030800","Y"]
["57030802","HSG - Rooker Hall Maintenance","N","57030800","Y"]
["57030803","HSG - Rooker Hall Bldg Svcs","N","57030800","Y"]
["57030901","HSG - Vandiver Hall Operations","N","57030900","Y"]
["57030902","HSG - Vandiver Hall Maint","N","57030900","Y"]
["57030903","HSG - Vandiver Hall Bldg Svcs","N","57030900","Y"]
["57031001","HSG - Phi Delta Theta Ops","N","57031000","Y"]
["57031002","HSG - Phi Delta Theta Maint","N","57031000","Y"]
["57031003","HSG - Phi Delta Theta Bldg Svc","N","57031000","Y"]
["57031004","HSG - Phi Delta Theta Agency","N","57031000","Y"]
["57031101","HSG - Pi Kappa Alpha Ops","N","57031100","Y"]
["57031102","HSG - Pi Kappa Alpha Maint","N","57031100","Y"]
["57031103","HSG - Pi Kappa Alpha Bldg Svcs","N","57031100","Y"]
["57031104","HSG - Pi Kappa Alpha Agency","N","57031100","Y"]
["57031201","HSG - Sigma Nu Operations","N","57031200","Y"]
["57031202","HSG - Sigma Nu Maintenance","N","57031200","Y"]
["57031203","HSG - Sigma Nu Bldg Svcs","N","57031200","Y"]
["57031204","HSG - Sigma Nu Agency","N","57031200","Y"]
["57031301","HSG - Tau Epsilon Pi Ops","N","57031300","Y"]
["57031302","HSG - Tau Epsilon Pi Maint","N","57031300","Y"]
["57031303","HSG - Tau Epsilon Pi Bldg Svcs","N","57031300","Y"]
["57031304","HSG -Tau Epsilon Pi Agency","N","57031300","Y"]
["57031401","HSG - Brown Hall Operations","N","57031400","Y"]
["57031402","HSG - Brown Hall Maintenance","N","57031400","Y"]
["57031403","HSG - Brown Hall Bldg Svcs","N","57031400","Y"]
["57031501","HSG - Gilmore Circle Ops","N","57031500","Y"]
["57031502","HSG - Gilmore Circle Maint","N","57031500","Y"]
["57031503","HSG - Gilmore Circle Bldg Svcs","N","57031500","Y"]
["57031601","HSG - Kenny Road Operations","N","57031600","Y"]
["57031602","HSG - Kenny Road Maintenance","N","57031600","Y"]
["57031603","HSG - Kenny Road Bldg Svcs","N","57031600","Y"]
["57031701","HSG - McGowan Road Operations","N","57031700","Y"]
["57031702","HSG - McGowan Road Maintenance","N","57031700","Y"]
["57031703","HSG - McGowan Road Bldg Svcs","N","57031700","Y"]
["57031801","HSG - Boggs Hall Operations","N","57031800","Y"]
["57031802","HSG - Boggs Hall Maintenance","N","57031800","Y"]
["57031803","HSG - Boggs Hall Bldg Svcs","N","57031800","Y"]
["57031901","HSG - Brumby Hall Operations","N","57031900","Y"]
["57031902","HSG - Brumby Hall Maintenance","N","57031900","Y"]
["57031903","HSG - Brumby Hall Bldg Svcs","N","57031900","Y"]
["57032001","HSG - Building 1516 Operations","N","57032000","Y"]
["57032002","HSG - Building 1516 Maint","N","57032000","Y"]
["57032003","HSG - Building 1516 Bldg Svcs","N","57032000","Y"]
["57032101","HSG - Church Hall Operations","N","57032100","Y"]
["57032102","HSG - Church Hall Maintenance","N","57032100","Y"]
["57032103","HSG - Church Hall Bldg Svcs","N","57032100","Y"]
["57032201","HSG - Creswell Hall Operations","N","57032200","Y"]
["57032202","HSG - Creswell Hall Maint","N","57032200","Y"]
["57032203","HSG - Creswell Hall Bldg Svcs","N","57032200","Y"]
["57032301","HSG - Hill Hall Operations","N","57032300","Y"]
["57032302","HSG - Hill Hall Maintenance","N","57032300","Y"]
["57032303","HSG - Hill Hall Bldg Svcs","N","57032300","Y"]
["57032401","HSG - Lipscomb Hall Operations","N","57032400","Y"]
["57032402","HSG - Lipscomb Hall Maint","N","57032400","Y"]
["57032403","HSG - Lipscomb Hall Bldg Svcs","N","57032400","Y"]
["57032501","HSG - Mary Lyndon Ops","N","57032500","Y"]
["57032502","HSG - Mary Lyndon Maint","N","57032500","Y"]
["57032503","HSG - Mary Lyndon Bldg Svcs","N","57032500","Y"]
["57032601","HSG - Mell Hall Operations","N","57032600","Y"]
["57032602","HSG - Mell Hall Maintenance","N","57032600","Y"]
["57032603","HSG - Mell Hall Bldg Svcs","N","57032600","Y"]
["57032701","HSG - Morris Hall Operations","N","57032700","Y"]
["57032702","HSG - Morris Hall Maintenance","N","57032700","Y"]
["57032703","HSG - Morris Hall Bldg Svcs","N","57032700","Y"]
["57032801","HSG - Myers Hall Operations","N","57032800","Y"]
["57032802","HSG - Myers Hall Maintenance","N","57032800","Y"]
["57032803","HSG - Myers Hall Bldg Svcs","N","57032800","Y"]
["57032901","HSG - O-House Operations","N","57032900","Y"]
["57032902","HSG - O-House Maintenance","N","57032900","Y"]
["57032903","HSG - O-House Bldg Svcs","N","57032900","Y"]
["57033001","HSG - Payne Hall Operations","N","57033000","Y"]
["57033002","HSG - Payne Hall Maintenance","N","57033000","Y"]
["57033003","HSG - Payne Hall Bldg Svcs","N","57033000","Y"]
["57033101","HSG - Reed Hall Operations","N","57033100","Y"]
["57033102","HSG - Reed Hall Maintenance","N","57033100","Y"]
["57033103","HSG - Reed Hall Bldg Svcs","N","57033100","Y"]
["57033201","HSG - Russell Hall Operations","N","57033200","Y"]
["57033202","HSG - Russell Hall Maintenance","N","57033200","Y"]
["57033203","HSG - Russell Hall Bldg Svcs","N","57033200","Y"]
["57033301","HSG - Rutherford Hall Ops","N","57033300","Y"]
["57033302","HSG - Rutherford Hall Maint","N","57033300","Y"]
["57033303","HSG - Rutherford Bldg Svc","N","57033300","Y"]
["57033401","HSG - Soule Hall Operations","N","57033400","Y"]
["57033402","HSG - Soule Hall Maintenance","N","57033400","Y"]
["57033403","HSG - Soule Hall Bldg Svcs","N","57033400","Y"]
["57101001","Union Executive","N","57101000","Y"]
["57101002","Entertainment Division","N","57101000","Y"]
["57101003","Late Night Programs","N","57101000","Y"]
["57101004","Cinematic Arts","N","57101000","Y"]
["57101005","Socially Conscious","N","57101000","Y"]
["57101006","Summer & Daytime Programs","N","57101000","Y"]
["57102001","Major Campus Event","N","57102000","Y"]
["57102002","Homecoming","N","57102000","Y"]
["57102003","Athletic Collaborations","N","57102000","Y"]
["57102004","Pandora","N","57102000","Y"]
["57102005","WUOG Radio","N","57102000","Y"]
["57102006","Collegiate Readership Program","N","57102000","Y"]
["57102007","Soar Program","N","57102000","Y"]
["57102008","CSAI Programs","N","57102000","Y"]
["57102009","Leadership Resource Team","N","57102000","Y"]
["57102010","Collegiate Leadership Conf","N","57102000","Y"]
["57102011","Welcome Events","N","57102000","Y"]
["57103001","Black Affairs Council","N","57103000","Y"]
["57103002","Black Theatrical Ensemble","N","57103000","Y"]
["57103003","Pamoja Dancers","N","57103000","Y"]
["57103004","Black Ed Support Team","N","57103000","Y"]
["57103005","Asian Amer Stu Assn","N","57103000","Y"]
["57103006","Hispanic Student Assn","N","57103000","Y"]
["57103007","Infusion Magazine","N","57103000","Y"]
["57104001","International Organizations","N","57104000","Y"]
["57104002","AIESEC","N","57104000","Y"]
["57104003","Amnesty International","N","57104000","Y"]
["57104004","Athens Justice In Palestine","N","57104000","Y"]
["57104005","Brazilian Stu Assoc","N","57104000","Y"]
["57104006","Chinese Language Soc","N","57104000","Y"]
["57104007","Chinese Student Assoc","N","57104000","Y"]
["57104008","Filipino Stu Assoc","N","57104000","Y"]
["57104009","Indian Stu Assoc","N","57104000","Y"]
["57104010","Korean Undergrad Stu Assoc","N","57104000","Y"]
["57104011","Muslim Stu Assoc","N","57104000","Y"]
["57104012","Pakistani Stu Union","N","57104000","Y"]
["57104013","Persian Stu Union","N","57104000","Y"]
["57104014","Taiwanese Stu Assoc","N","57104000","Y"]
["57104015","Thai Stu Assoc","N","57104000","Y"]
["57104016","Turkish Stu Assoc","N","57104000","Y"]
["57104017","Vietnamese Stu Assoc","N","57104000","Y"]
["57104018","World Ambassadors","N","57104000","Y"]
["57105001","Dawg Camp Fusion","N","57105000","Y"]
["57105002","Dawg Camp Classic City","N","57105000","Y"]
["57105004","Dawg Camp Odyssey","N","57105000","Y"]
["57105005","Dawg Camp Connect","N","57105000","Y"]
["57105007","Community Engagement","N","57105000","Y"]
["57105008","Impact","N","57105000","Y"]
["57105009","Serve UGA","N","57105000","Y"]
["57105010","Leadershape","N","57105000","Y"]
["57106001","Graduate Student Association","N","57106000","Y"]
["57106002","Student Government Association","N","57106000","Y"]
["57106003","Small Clubs","N","57106000","Y"]
["57107001","VP Stu Aff Campus Diversity Pg","N","57107000","Y"]
["57107002","VP Stu Aff Diversity - MSP","N","57107000","Y"]
["57107003","VP Stu Aff Diversity - ISL","N","57107000","Y"]
["57107004","VP Stu Aff Diversity - LGBTRC","N","57107000","Y"]
["57107005","VP Diversity - Intersection","N","57107000","Y"]
["57107006","VP Diversity - Rite Of Sankofa","N","57107000","Y"]
["57107007","VP Diversity - Ignite","N","57107000","Y"]
["57108001","Bethel Campus Fellowship","N","57108000","Y"]
["57108002","Stu For Environmental Action","N","57108000","Y"]
["57108003","Visual Arts","N","57108000","Y"]
["57108004","Speak Out For Species","N","57108000","Y"]
["57108005","Silver Wings Col Duggar Chapt","N","57108000","Y"]
["57108006","Redcoat Band","N","57108000","Y"]
["57108007","Grad And Prof Scholars","N","57108000","Y"]
["57108008","Lambda Alliance","N","57108000","Y"]
["57108009","University Judiciary","N","57108000","Y"]
["57108010","Georgia Debate","N","57108000","Y"]
["57108012","Special Projects","N","57108000","Y"]
["57108013","UGA Copyright","N","57108000","Y"]
["57109000","Student Activity Fee Revenue","N","57108000","Y"]
["57120001","Agriculture-SA","N","57120000","Y"]
["57120002","Ag Economics","N","57120000","Y"]
["57120003","Ag Economics Graduate Club","N","57120000","Y"]
["57120004","Minorities In Ag Nr & Serv","N","57120000","Y"]
["57120005","Ag Communicators Of Tomorrow","N","57120000","Y"]
["57120006","CAES Ambassadors","N","57120000","Y"]
["57120007","Ag Hill Council","N","57120000","Y"]
["57120008","4-H Club","N","57120000","Y"]
["57120009","Soc of Aspiring Plant Path","N","57120000","Y"]
["57121001","Arts & Sciences - SA","N","57121000","Y"]
["57121002","The Hodgson Singers","N","57121000","Y"]
["57121003","IGEM","N","57121000","Y"]
["57121004","Organized Icon Network","N","57121000","Y"]
["57121005","Repertory Singers","N","57121000","Y"]
["57121006","Sigma Alpha Iota","N","57121000","Y"]
["57121007","Stillpoint/Jack Donne","N","57121000","Y"]
["57121008","Men's Glee Club","N","57121000","Y"]
["57121009","University Chorus","N","57121000","Y"]
["57121010","Women's Glee Club","N","57121000","Y"]
["57121011","Criminal Justice Society","N","57121000","Y"]
["57121012","Thalian Blackfriars","N","57121000","Y"]
["57121013","Afro-American Choral Ensemble","N","57121000","Y"]
["57121014","Psi Chi","N","57121000","Y"]
["57121015","Assn Of Grad Art Student","N","57121000","Y"]
["57121016","Neuroscience Student Assn","N","57121000","Y"]
["57121017","The Social Psychologist At UGA","N","57121000","Y"]
["57121018","Geography Graduate Student","N","57121000","Y"]
["57121019","Bio-Chemistry Student Associat","N","57121000","Y"]
["57121020","Statistics Club","N","57121000","Y"]
["57121021","Microbio Grad Student Associat","N","57121000","Y"]
["57121022","Women'S Studies Student Organ","N","57121000","Y"]
["57121023","Ga Sculpture Collective","N","57121000","Y"]
["57121024","Anthropology Grad. Stu. Assoc","N","57121000","Y"]
["57121025","Cellular Biology Grad Stu Assn","N","57121000","Y"]
["57121026","UGA Graphic Design Club","N","57121000","Y"]
["57121027","Genetics Graduate Student Assn","N","57121000","Y"]
["57121028","Comparative Lit Grad Org","N","57121000","Y"]
["57121029","Anthropology Society","N","57121000","Y"]
["57121030","American Meteorological Socty","N","57121000","Y"]
["57121031","Undergraduate Art History Org","N","57121000","Y"]
["57121032","Dance Student Travel","N","57121000","Y"]
["57121033","German Student Assoc","N","57121000","Y"]
["57121034","Fabric Arts & Design Soc","N","57121000","Y"]
["57121035","Stu Assoc Of Arch Sci","N","57121000","Y"]
["57121036","Student Composers Assoc","N","57121000","Y"]
["57121037","Sociology Graduate Society","N","57121000","Y"]
["57121038","Speech Comunication Grad Forum","N","57121000","Y"]
["57121039","Collegium Musicum","N","57121000","Y"]
["57121040","Grad Stu & Postdocs In Science","N","57121000","Y"]
["57121041","Next Act","N","57121000","Y"]
["57121042","Musicology/Ethnomusicology Stu","N","57121000","Y"]
["57121043","Undergrad Nat'L Comm Assoc","N","57121000","Y"]
["57121044","The Campus Kitchens Project","N","57121000","Y"]
["57121045","IDEA Lab","N","57121000","Y"]
["57121046","Psychology Grad Student Comm","N","57121000","Y"]
["57121047","Industrial-Org Psych Stu Assn","N","57121000","Y"]
["57121048","Model African Union","N","57121000","Y"]
["57121049","Math Club","N","57121000","Y"]
["57121050","Psychology Educator Dev Assoc","N","57121000","Y"]
["57121051","USITT","N","57121000","Y"]
["57121052","Soc For Stu In Animation","N","57121000","Y"]
["57121053","Russian Club","N","57121000","Y"]
["57121054","Nat Art Education Assoc","N","57121000","Y"]
["57121055","Hodgson Wind Ensemble","N","57121000","Y"]
["57121056","Grad Painting & Drawing","N","57121000","Y"]
["57121057","Ga Sculpture Collective","N","57121000","Y"]
["57121058","Geography Undergrad Stu Org","N","57121000","Y"]
["57121059","Chamber Music Society","N","57121000","Y"]
["57121060","Children's Theatre Troupe","N","57121000","Y"]
["57121061","Dev Biology Grad Stu Assoc","N","57121000","Y"]
["57121062","Wisci","N","57121000","Y"]
["57121063","UGA Clarinet Association","N","57121000","Y"]
["57121064","Am Choral Directors Stu Chap","N","57121000","Y"]
["57121065","Marine Science Grad Stu Assn","N","57121000","Y"]
["57121066","Natl Assoc for Music Education","N","57121000","Y"]
["57121067","Cell Bio Undergrad Stu Assn","N","57121000","Y"]
["57121068","Eta Sigma Phi-Zeta Iota Chaptr","N","57121000","Y"]
["57121069","Spear","N","57121000","Y"]
["57121070","Music Teachers Nat Assn Tonic","N","57121000","Y"]
["57121071","Roosevelt @ UGA","N","57121000","Y"]
["57121072","Bioinformatics Grad Stu Asso","N","57121000","Y"]
["57121073","Biochemistry Undergrad Society","N","57121000","Y"]
["57121074","Nu Rho Psi","N","57121000","Y"]
["57121075","Africa Graduate Forum","N","57121000","Y"]
["57122001","Business-SA","N","57122000","Y"]
["57122002","Economics Club","N","57122000","Y"]
["57122003","Gamma Iota Sigma","N","57122000","Y"]
["57122004","Insurance Society","N","57122000","Y"]
["57122005","Real Estate Society","N","57122000","Y"]
["57122006","Multicultural Students","N","57122000","Y"]
["57122007","Soc For Mgmt Information Systm","N","57122000","Y"]
["57122008","International Business Club","N","57122000","Y"]
["57122009","Nat'L Assoc Of Blk Accountants","N","57122000","Y"]
["57122010","The Management Society","N","57122000","Y"]
["57122011","American Marketing Assoc.","N","57122000","Y"]
["57122012","Pro Entertain & Sports Assoc","N","57122000","Y"]
["57122013","Assn Latino Prof In Fin & Acct","N","57122000","Y"]
["57122014","Terry Student Consulting","N","57122000","Y"]
["57122015","Society Of Entrepreneurs","N","57122000","Y"]
["57122016","Society Of Women In Technology","N","57122000","Y"]
["57122017","Terry Outreach Program","N","57122000","Y"]
["57122018","Soc For Business Intelligence","N","57122000","Y"]
["57122019","DECA","N","57122000","Y"]
["57122020","Society for Bus Intelligence","N","57122000","Y"]
["57122021","Society for Cyber Security","N","57122000","Y"]
["57122022","Women in Finance","N","57122000","Y"]
["57123000","Ecology-SA","N","57000000","Y"]
["57124001","Education-SA","N","57124000","Y"]
["57124002","UGA Student Personnel","N","57124000","Y"]
["57124003","Math Education Student Assoc","N","57124000","Y"]
["57124004","Reading Graduate Students","N","57124000","Y"]
["57124005","UGA Lifelong Learning Assn","N","57124000","Y"]
["57124006","Student Assoc Sch Psychologist","N","57124000","Y"]
["57124007","Language Ed Grad Student Assoc","N","57124000","Y"]
["57124008","Student Council Except Childrn","N","57124000","Y"]
["57124009","Instr Tech Stud Assoc (Itsa)","N","57124000","Y"]
["57124010","School Counseling Assoc","N","57124000","Y"]
["57124011","Grad Res Ed Psy Inst Tech","N","57124000","Y"]
["57124012","Journal Of Lang. & Lit. Ed.","N","57124000","Y"]
["57124013","Omega Tau","N","57124000","Y"]
["57124014","Career & Info Studies Grad","N","57124000","Y"]
["57124015","ETAP Grad Stu Org","N","57124000","Y"]
["57124016","Exercise Is Medicine","N","57124000","Y"]
["57125001","Engineering-SA","N","57125000","Y"]
["57125002","Engineering Graduate Club","N","57125000","Y"]
["57125003","UGA Student Chapter Of Ashrae","N","57125000","Y"]
["57125004","Society Of Women Engineers","N","57125000","Y"]
["57125005","Engineers Without Borders","N","57125000","Y"]
["57125006","Soc Of Environmental Engineers","N","57125000","Y"]
["57125007","Nat Society For Black Engineer","N","57125000","Y"]
["57125008","In. Electrical & Electronic E.","N","57125000","Y"]
["57125009","Am. Inst. Chemical Eng.","N","57125000","Y"]
["57125010","Am. Soc. Mechanical Eng.","N","57125000","Y"]
["57125011","Soc Of Automotive Engineers","N","57125000","Y"]
["57125012","Theta Tau","N","57125000","Y"]
["57125013","Int Soc For Optics & Photonics","N","57125000","Y"]
["57125014","Data Dawgs","N","57125000","Y"]
["57125015","Soc of Hispanic Pro Engineers","N","57125000","Y"]
["57126001","Environmental Design-SA","N","57126000","Y"]
["57126002","Stu Historic Preservation Org","N","57126000","Y"]
["57126003","Stu Enviro Planing Assoc","N","57126000","Y"]
["57126004","USGBC","N","57126000","Y"]
["57127001","UGA At Tifton","N","57127000","Y"]
["57127002","UGA At Gwinnett Center","N","57127000","Y"]
["57127003","UGA At Griffin","N","57127000","Y"]
["57128000","FACS-SA","N","57000000","Y"]
["57129000","Forest Resources-SA","N","57000000","Y"]
["57130001","Journalism-SA","N","57130000","Y"]
["57130002","Advertising Club","N","57130000","Y"]
["57130003","Di Gamma Kappa","N","57130000","Y"]
["57130004","Graduate Caucus","N","57130000","Y"]
["57130005","Nat'L Assn Of Blk Journalists","N","57130000","Y"]
["57130006","PRSSA","N","57130000","Y"]
["57130007","ONA/SPJ","N","57130000","Y"]
["57130008","Culture Club","N","57130000","Y"]
["57130009","Int'L Assoc. Bus. Comm.","N","57130000","Y"]
["57130010","NAAP At UGA","N","57130000","Y"]
["57130011","Film Making Union","N","57130000","Y"]
["57130012","UGAZINE","N","57130000","Y"]
["57131000","Law-SA","N","57000000","Y"]
["57132000","UGA/AU Med Partner-SA","N","57000000","Y"]
["57133000","Pharmacy-SA","N","57000000","Y"]
["57134000","Public&Intl Affairs-SA","N","57000000","Y"]
["57135000","Public Health-SA","N","57000000","Y"]
["57136001","Social Work-SA","N","57136000","Y"]
["57136002","Bachelor's Of Social Work Club","N","57136000","Y"]
["57136003","Student Faculty Committee","N","57136000","Y"]
["57136004","Assn Blk Workers Stu Group","N","57136000","Y"]
["57136005","International Social Work Stu","N","57136000","Y"]
["57137000","Vet Medicine-SA","N","57000000","Y"]
["57150001","Rho Tau","N","57000000","Y"]
["57150003","Panhellenic Council","N","57000000","Y"]
["57150004","Miss UGA Pageant","N","57000000","Y"]
["57150005","Interfraternity Council","N","57000000","Y"]
["57150006","National Pan-Hel Council","N","57000000","Y"]
["57150007","Multi-Cultural Greek Council","N","57000000","Y"]
["57150008","Dance Marathon","N","57000000","Y"]
["57150009","Order Of Omega","N","57000000","Y"]
["57150010","WUOG Underwriting","N","57000000","Y"]
["57150011","National Student Exchange Fund","N","57000000","Y"]
["57150012","ASCP","N","57000000","Y"]
["57150013","Vibha Academic Bowl Outreach","N","57000000","Y"]
["57150014","Bag The Bag","N","57000000","Y"]
["57150015","Tate Center Bus Office Agency","N","57000000","Y"]
["57150016","Network Against Malaria","N","57000000","Y"]
["57150017","Ecotones","N","57000000","Y"]
["57150018","Project H.O.P.E. At UGA","N","57000000","Y"]
["57150019","NKBA Student Chapter At UGA","N","57000000","Y"]
["57150020","FACS Student Dietetic Assoc","N","57000000","Y"]
["57150021","Phi Upsilon Omicron-Chi","N","57000000","Y"]
["57150022","Fashion Design Student Assn","N","57000000","Y"]
["57150023","AFGA At UGA","N","57000000","Y"]
["57150024","Skydawgs Skydiving Club","N","57000000","Y"]
["57150025","Athens C.A.R.E.","N","57000000","Y"]
["57150026","Sports Business Club","N","57000000","Y"]
["57150027","Quiz Bowl Club Of UGA","N","57000000","Y"]
["57150028","Chroma","N","57000000","Y"]
["57150029","Operation Smile","N","57000000","Y"]
["57150030","Front Row Foundation","N","57000000","Y"]
["57150031","Students For Life At UGA","N","57000000","Y"]
["57150032","Multiracial Student Org","N","57000000","Y"]
["57150033","Communicaid+Nation","N","57000000","Y"]
["57150034","To Write Love On Her Arms UGA","N","57000000","Y"]
["57150035","Japanese Student Association","N","57000000","Y"]
["57150036","Korean Student Association","N","57000000","Y"]
["57150037","Hoop For Humanity","N","57000000","Y"]
["57150038","Saudi Students Association","N","57000000","Y"]
["57150039","Caribbean Student Association","N","57000000","Y"]
["57150040","Seize The Day At UGA","N","57000000","Y"]
["57150041","Collegetown Gospel Choir","N","57000000","Y"]
["57150042","End It Movement At UGA","N","57000000","Y"]
["57150043","UP At UGA","N","57000000","Y"]
["57150044","Ronald Mcdonald House Charties","N","57000000","Y"]
["57150045","UGA Phi Beta Lambda","N","57000000","Y"]
["57150046","Stu For Latino Empowerment","N","57000000","Y"]
["57150047","UGA One Health Club","N","57000000","Y"]
["57150048","For The Girls","N","57000000","Y"]
["57150049","Omega Tau","N","57000000","Y"]
["57150050","SSI At UGA","N","57000000","Y"]
["57150051","UBSLA","N","57000000","Y"]
["57150052","UGA Steel Bands","N","57000000","Y"]
["57150053","UGA Spikeball Club","N","57000000","Y"]
["57150054","Classic City Jazz","N","57000000","Y"]
["57150055","Assoc For Women In Sport Media","N","57000000","Y"]
["57150056","Laugh Out Loud","N","57000000","Y"]
["57150057","Campus Bike Repair Cooperative","N","57000000","Y"]
["57150058","Sigma Tau Delta","N","57000000","Y"]
["57150059","The Energy Concept","N","57000000","Y"]
["57150060","I Am Enough UGA","N","57000000","Y"]
["57150061","Phi Alpha Honor Society (Ssw)","N","57000000","Y"]
["57150062","Agronomy Grad Stu Assoc","N","57000000","Y"]
["57150063","CBUSA","N","57000000","Y"]
["57150064","Grads","N","57000000","Y"]
["57150065","Pre-Meds W/O Borders At UGA","N","57000000","Y"]
["57150066","Children'S Theatre Troupe","N","57000000","Y"]
["57150067","Minority Student Science Assoc","N","57000000","Y"]
["57150068","UGA CHAARG","N","57000000","Y"]
["57150069","Free The Girls At UGA","N","57000000","Y"]
["57150070","Minorities In Tech","N","57000000","Y"]
["57150071","Thirst Project","N","57000000","Y"]
["57150072","PrsSA John E Drewry Chapter","N","57000000","Y"]
["57150073","Young Black Kings Of Bmls","N","57000000","Y"]
["57150074","Dogs For The Paws","N","57000000","Y"]
["57150075","Bold UGA","N","57000000","Y"]
["57150076","Ad Club","N","57000000","Y"]
["57150077","Ehs Club","N","57000000","Y"]
["57150078","Public Health Association","N","57000000","Y"]
["57150079","Di Gamma Kappa","N","57000000","Y"]
["57150080","Mannrs At UGA","N","57000000","Y"]
["57150081","Mesa","N","57000000","Y"]
["57150082","Ecology Gso","N","57000000","Y"]
["57150083","Mbsa","N","57000000","Y"]
["57150084","CPNP UGA","N","57000000","Y"]
["57150085","International Business Society","N","57000000","Y"]
["57150086","The Nrrt Society","N","57000000","Y"]
["57150087","Ed Abroad Ambassadors UGA","N","57000000","Y"]
["57150088","Arts For The Cure","N","57000000","Y"]
["57150089","IEEE UGA","N","57000000","Y"]
["57150090","Assoc Of Black Social Workers","N","57000000","Y"]
["57150091","Disability Advocates In Action","N","57000000","Y"]
["57150092","ALPFA UGA","N","57000000","Y"]
["57150093","Red Cross UGA","N","57000000","Y"]
["57150094","Soc Of Business Intelligence","N","57000000","Y"]
["57150095","Women In Technology","N","57000000","Y"]
["57150096","Real Estate Society","N","57000000","Y"]
["57150097","Simple Charity","N","57000000","Y"]
["57150098","Nabj","N","57000000","Y"]
["57150099","Management Society","N","57000000","Y"]
["57150100","UGAsca","N","57000000","Y"]
["57150101","Society Of Entrepreneurs","N","57000000","Y"]
["57150102","Gamma Iota Sigma","N","57000000","Y"]
["57150103","Theta Tau","N","57000000","Y"]
["57150104","Agricultural Economics Club","N","57000000","Y"]
["57150105","Soc Of Automotive Engineers","N","57000000","Y"]
["57150106","Insurance Society","N","57000000","Y"]
["57150107","Delta Sigma Pi - Pi Chapter","N","57000000","Y"]
["57150108","Georgia Political Review","N","57000000","Y"]
["57150109","Engish Graduate Organization","N","57000000","Y"]
["57150110","You'Re Not Alone","N","57000000","Y"]
["57150111","Rock Lobster Records","N","57000000","Y"]
["57150112","Engineers Without Borders","N","57000000","Y"]
["57150113","UGA Cmda","N","57000000","Y"]
["57150114","The Arch Conservative","N","57000000","Y"]
["57150115","Music Only","N","57000000","Y"]
["57150116","AMWHO UGA","N","57000000","Y"]
["57150117","SMIS","N","57000000","Y"]
["57150118","American Marketing Association","N","57000000","Y"]
["57150119","CAERUS UGA","N","57000000","Y"]
["57150120","Pro Enter & Sports Assoc","N","57000000","Y"]
["57150121","SOPHE At UGA (Ga Chapter)","N","57000000","Y"]
["57150122","Athens Science Observer","N","57000000","Y"]
["57150123","Art For Athens","N","57000000","Y"]
["57150124","Billiard Club Of UGA","N","57000000","Y"]
["57150125","Team RWB","N","57000000","Y"]
["57150126","With Someone Else'S Money","N","57000000","Y"]
["57150127","Relay For Life","N","57000000","Y"]
["57150128","Ip Law Society At UGA","N","57000000","Y"]
["57150129","Shop With A Bulldawg","N","57000000","Y"]
["57150130","Aviation Club At UGA","N","57000000","Y"]
["57150131","Geology Club At UGA","N","57000000","Y"]
["57150132","Sexual Health Advocacy Group","N","57000000","Y"]
["57150133","Black Male Leadership Society","N","57000000","Y"]
["57150134","Medical Partnership Class Act","N","57000000","Y"]
["57150135","Swing Dance Club At UGA","N","57000000","Y"]
["57150136","ASU Agency","N","57000000","Y"]
["57150137","Wildlife Disease Assn Stud","N","57000000","Y"]
["57150138","UGA Student Food Pantry","N","57000000","Y"]
["57150139","Bahai Association Of UGA","N","57000000","Y"]
["57150140","Alzheimer'S Association @ UGA","N","57000000","Y"]
["57150141","IDEA Society","N","57000000","Y"]
["57150142","Dawgs For Diabetes Awareness","N","57000000","Y"]
["57150143","Active Minds At UGA","N","57000000","Y"]
["57150144","UGA Model United Nations","N","57000000","Y"]
["57150145","The Agency","N","57000000","Y"]
["57150146","MTNA Collegiate Chapter","N","57000000","Y"]
["57150147","Athens Church","N","57000000","Y"]
["57150148","WISE","N","57000000","Y"]
["57150149","International Justice Mission","N","57000000","Y"]
["57150150","UGA Tifton Campus Ambassadors","N","57000000","Y"]
["57150151","Fellowship Of Christian Grads","N","57000000","Y"]
["57150152","UGA E-Sports","N","57000000","Y"]
["57150153","LISTO","N","57000000","Y"]
["57150154","CHABAD @ UGA","N","57000000","Y"]
["57150155","Inspire UGA","N","57000000","Y"]
["57150156","SVA At UGA","N","57000000","Y"]
["57150157","Pre Med Magazine","N","57000000","Y"]
["57150158","Zeta Nu Chapter","N","57000000","Y"]
["57150159","SOAP","N","57000000","Y"]
["57150160","Fayo-Fight Against Yth Obesity","N","57000000","Y"]
["57150161","Phi Alpha Theta, Epsilon Pi","N","57000000","Y"]
["57150162","Alpha Lambda Delta","N","57000000","Y"]
["57150163","Omicron Delta Kappa","N","57000000","Y"]
["57150164","Pre-Pharmacy Society","N","57000000","Y"]
["57150165","Alternative Spring Break","N","57000000","Y"]
["57150166","Ballroom Dance Club","N","57000000","Y"]
["57150167","Latter-Day Saints Stu Assn","N","57000000","Y"]
["57150168","Collegiate Candidates","N","57000000","Y"]
["57150169","Christian Students","N","57000000","Y"]
["57150170","Pagan Student Association","N","57000000","Y"]
["57150172","Delta Phi Lambda","N","57000000","Y"]
["57150173","Georgia Daze","N","57000000","Y"]
["57150174","Speak Out For Species","N","57000000","Y"]
["57150175","National Council Negro Women","N","57000000","Y"]
["57150176","Abeneefoo Kuo","N","57000000","Y"]
["57150177","International Organizations","N","57000000","Y"]
["57150178","Baptist Collegiate Ministries","N","57000000","Y"]
["57150179","Demosthenian Society","N","57000000","Y"]
["57150180","Alpha Phi Omega - Beta Zeta","N","57000000","Y"]
["57150181","Golden Key","N","57000000","Y"]
["57150182","Bulldog Debates","N","57000000","Y"]
["57150183","Campus Crusade For Christ","N","57000000","Y"]
["57150184","Ga Pharmacist Magazine","N","57000000","Y"]
["57150185","Ballroom Performance Group","N","57000000","Y"]
["57150186","Ballet Ensemble","N","57000000","Y"]
["57150187","Indian Cultural Exchange","N","57000000","Y"]
["57150188","NAACP","N","57000000","Y"]
["57150189","Pi Sigma Alpha","N","57000000","Y"]
["57150190","Core Dance Company","N","57000000","Y"]
["57150191","Young Choreographer Series","N","57000000","Y"]
["57150192","Delta Sigma Theta Sorority","N","57000000","Y"]
["57150193","Future Health Promoters","N","57000000","Y"]
["57150194","Brown SUGA","N","57000000","Y"]
["57150195","Climbing Club","N","57000000","Y"]
["57150196","First Book UGA","N","57000000","Y"]
["57150197","The Chapel Bell","N","57000000","Y"]
["57150198","SEC Union Directors Mtg","N","57000000","Y"]
["57150199","Medlife at UGA","N","57000000","Y"]
["57150200","Eventing Team at UGA","N","57000000","Y"]
["57150201","Stress Free Me","N","57000000","Y"]
["57150202","HOSA at UGA","N","57000000","Y"]
["57150203","SPIA Student Union","N","57000000","Y"]
["57150204","YAF at UGA","N","57000000","Y"]
["57150205","DBGSA","N","57000000","Y"]
["57150206","Health for Kids","N","57000000","Y"]
["57150207","Sports Nutrition Association","N","57000000","Y"]
["57150208","Optics and Photonics Society","N","57000000","Y"]
["57150209","Creative Writing Club","N","57000000","Y"]
["57150210","Glam Dawgs","N","57000000","Y"]
["57150211","GSEB at UGA","N","57000000","Y"]
["57150212","Multicultural Bus Student Assn","N","57000000","Y"]
["57150213","SABA","N","57000000","Y"]
["57150214","Undergraduate Mock Trial","N","57000000","Y"]
["57150215","Unicef at UGA","N","57000000","Y"]
["57150216","Georgia Dolls","N","57000000","Y"]
["57150217","Sparke for Clarke","N","57000000","Y"]
["57150218","Tipi Raisers at UGA","N","57000000","Y"]
["60001000","Finance & Adminstration","N","60000000","Y"]
["60002000","President Emeritus","N","60000000","Y"]
["61005000","UBAS Administration","N","61000000","Y"]
["61010000","F&A IT Support","N","61000000","Y"]
["61021000","Accounting","N","61000000","Y"]
["61022000","Accounts Payable","N","61000000","Y"]
["61025000","Payroll","N","61000000","Y"]
["61026000","Post Award Accounting","N","61000000","Y"]
["61027000","Procurement","N","61000000","Y"]
["61028000","Property Control","N","61000000","Y"]
["61030000","Bursar's Office","N","61000000","Y"]
["61031000","Student Accounts","N","61000000","Y"]
["61032000","Accounts Receivable Department","N","61000000","Y"]
["61040000","Administrative Services","N","61000000","Y"]
["61041000","Bulldog Print + Design","N","61000000","Y"]
["61042000","Directory Assistance","N","61000000","Y"]
["61043000","Mail & Receiving Services","N","61000000","Y"]
["62001000","University Budget Admin","N","62000000","Y"]
["62002000","University Budget Office","N","62000000","Y"]
["63001000","Office of Human Resources","N","63000000","Y"]
["63002000","Employee Benefits","N","63000000","Y"]
["63003000","Employment Comp ER & Records","N","63000000","Y"]
["63004000","Org Design and Comp Services","N","63000000","Y"]
["63005000","Training and Development Dept","N","63000000","Y"]
["64001001","OUA Department Expenditures","N","64001000","Y"]
["64001011","OUA Special Project Costs","N","64001010","Y"]
["64001012","Capital Projects-Central","N","64001010","Y"]
["65001000","Information Support Services (","N","65000000","Y"]
["65002000","Fire Safety","N","65000000","Y"]
["65003000","Admin","N","65000000","Y"]
["65004000","Hazmat","N","65000000","Y"]
["65005000","Environmental Compliance","N","65000000","Y"]
["65006000","Industrial Hygiene Occupationa","N","65000000","Y"]
["65007000","ESD Conversion","N","65000000","Y"]
["65008000","Ninety day storage units","N","65000000","Y"]
["66002000","UGA Police Services","N","66000000","Y"]
["66002001","800Mhz Radio System","N","66000000","Y"]
["67001001","Emergency Notification","N","67001000","Y"]
["67001002","Emergency Prep Operating","N","67001000","Y"]
["67001003","Emergency Prep Marketing","N","67001000","Y"]
["68001001","FMD Admin - Business Office","N","68001000","Y"]
["68001002","FMD Admin - It","N","68001000","Y"]
["68001003","FMD Admin - Hr","N","68001000","Y"]
["68001004","FMD Admin - Safety","N","68001000","Y"]
["68001005","FMD Admin - AIM Clearing","N","68001000","Y"]
["68002001","FMD Svc Admin","N","68002000","Y"]
["68002002","FMD Svc Warehouse/Material Req","N","68002000","Y"]
["68002100","FMD Svc Auto Center","N","68002000","Y"]
["68002101","FMD Svc Motor Vehicle Pool","N","68002000","Y"]
["68002102","FMD Svc Support","N","68002000","Y"]
["68002103","FMD Svc Sanitation","N","68002000","Y"]
["68002200","FMD Svc Hsc Building Services","N","68002000","Y"]
["68002201","FMD Svc Building Services","N","68002000","Y"]
["68002202","FMD Svc Building Services Pres","N","68002000","Y"]
["68003001","FMD Grounds Admin","N","68003000","Y"]
["68003100","FMD Grounds Maintenance","N","68003000","Y"]
["68003101","FMD Grounds Heavy Equipment","N","68003000","Y"]
["68003102","FMD Grounds Sign Shop","N","68003000","Y"]
["68003200","FMD Grounds Hsc Zone","N","68003000","Y"]
["68004001","FMD O&M Administration","N","68004000","Y"]
["68004100","FMD O&M Roof Shop","N","68004000","Y"]
["68004101","FMD O&M Building HVAC Shop","N","68004000","Y"]
["68004102","FMD O&M Plumbing Shop","N","68004000","Y"]
["68004103","FMD O&M Welding Shop","N","68004000","Y"]
["68004104","FMD O&M Sheet Metal Shop","N","68004000","Y"]
["68004105","FMD O&M Steam Production","N","68004000","Y"]
["68004106","FMD O&M Electric Shop","N","68004000","Y"]
["68004107","FMD O&M Structural Support","N","68004000","Y"]
["68004108","FMD O&M Structural Maint","N","68004000","Y"]
["68004109","FMD O&M Key Shop","N","68004000","Y"]
["68004110","FMD O&M Bio Contain","N","68004000","Y"]
["68004111","FMD Hsc Campus Wide Expenses","N","68004000","Y"]
["68004200","FMD O&M HSC Zone","N","68004000","Y"]
["68004201","FMD O&M East Zone","N","68004000","Y"]
["68004202","FMD O&M North Zone","N","68004000","Y"]
["68004203","FMD O&M Central Zone","N","68004000","Y"]
["68004204","FMD O&M South Zone","N","68004000","Y"]
["68004205","FMD O&M Off Campus","N","68004000","Y"]
["68005001","FMD Work Request Center","N","68005000","Y"]
["68006001","FMD Energy Services","N","68006000","Y"]
["68006002","FMD Utility Locators","N","68006000","Y"]
["68007001","FMD Engineering Department","N","68007000","Y"]
["68007002","FMD Facilities Inventory","N","68007000","Y"]
["68007003","FMD Estimation","N","68007000","Y"]
["68008001","FMD Maintenance Projects","N","68008000","Y"]
["68009001","FMD Office Of Sustainability","N","68009000","Y"]
["68010001","FMD Senior Administration","N","68010000","Y"]
["69001010","Aux. Svcs Support Svcs.","N","69001000","Y"]
["69001050","Aux. Information Technology","N","69001000","Y"]
["69001080","Marketing","N","69001000","Y"]
["69001090","Interest Income - Group A","N","69001000","Y"]
["69031000","Dining Services Administration","N","69030000","Y"]
["69031100","Business Operations Support","N","69030000","Y"]
["69031200","Central Food Operations Suppor","N","69030000","Y"]
["69031300","Maintenance Support","N","69030000","Y"]
["69031400","East Campus Commissary","N","69030000","Y"]
["69032000","Bulldog Bucks Service Account","N","69030000","Y"]
["69033000","Board Plan Operations","N","69030000","Y"]
["69033100","Bolton Dining Commons","N","69030000","Y"]
["69033200","Oglethorpe Dining Commons","N","69030000","Y"]
["69033300","Snelling Dining Commons","N","69030000","Y"]
["69033400","The Niche","N","69030000","Y"]
["69033500","Village Summit Dining Commons","N","69030000","Y"]
["69034000","Retail Operations","N","69030000","Y"]
["69034100","Branded Concepts","N","69030000","Y"]
["69034110","Au Bon Pain","N","69030000","Y"]
["69034130","Coffee & Bagels","N","69030000","Y"]
["69034140","Chick Fil A","N","69030000","Y"]
["69034150","Panda Express","N","69030000","Y"]
["69034160","Starbucks","N","69030000","Y"]
["69034200","Dining Services Self Branded C","N","69030000","Y"]
["69034220","Mobile Dining","N","69030000","Y"]
["69034230","Niche Pizza Co.","N","69030000","Y"]
["69034240","Red Clay Café","N","69030000","Y"]
["69034250","The Market at Tate","N","69030000","Y"]
["69034300","Campus Eateries","N","69030000","Y"]
["69034301","Tween the Pages","N","69030000","Y"]
["69034302","Bone Appetit","N","69030000","Y"]
["69034303","Champions Café","N","69030000","Y"]
["69034304","The Creamery","N","69030000","Y"]
["69034305","Dawg Bites","N","69030000","Y"]
["69034307","Dawg Pause","N","69030000","Y"]
["69034308","The Station","N","69030000","Y"]
["69034309","The Village Market","N","69030000","Y"]
["69035000","Catering","N","69030000","Y"]
["69051100","Compliance","N","69051000","Y"]
["69051200","Parking Decks","N","69051000","Y"]
["69051201","East Village Deck","N","69051000","Y"]
["69051202","East Campus Deck","N","69051000","Y"]
["69051203","South Deck","N","69051000","Y"]
["69051204","Pac Deck","N","69051000","Y"]
["69051205","IM Deck","N","69051000","Y"]
["69051206","West Deck","N","69051000","Y"]
["69051207","North Deck","N","69051000","Y"]
["69051208","Carlton St Deck","N","69051000","Y"]
["69051209","Hull St Deck","N","69051000","Y"]
["69051210","Tate Deck","N","69051000","Y"]
["69051400","Parking Lots","N","69051000","Y"]
["69051410","Health Sciences Campus","N","69051000","Y"]
["69051420","Vet Med","N","69051000","Y"]
["69052100","Parking Event Support","N","69052000","Y"]
["69052200","Charters","N","69052000","Y"]
["69053100","Fixed Route","N","69053000","Y"]
["69053200","Demand Response","N","69053000","Y"]
["69053300","Allocation","N","69053000","Y"]
["69053400","Departmental Maintenance Sales","N","69053000","Y"]
["69054100","Transit Fixed Route","N","69054000","Y"]
["69054200","Demand Response","N","69054000","Y"]
["69054300","Allocation","N","69054000","Y"]
["69055100","Park & Ride","N","69055000","Y"]
["69071000","University Bookstore","N","69070000","Y"]
["69072000","University Golfcourse Pro-Shop","N","69070000","Y"]
["69073000","Parkview Warehouse","N","69070000","Y"]
["69074000","Vending Services","N","69070000","Y"]
["69075000","Jittery Joes","N","69070000","Y"]
["69091100","Golf Operations","N","69091000","Y"]
["69091200","Driving Range","N","69091000","Y"]
["69092000","Future Programs/Events","N","69000000","Y"]
["70001000","Athletics General","N","70000000","Y"]
["70001ACU","Academic Counsel Unit","N","70000000","Y"]
["70001BBL","Baseball","N","70000000","Y"]
["70001CHR","Cheerleading","N","70000000","Y"]
["70001COM","Sports Communication","N","70000000","Y"]
["70001CPL","Athletic Compliance","N","70000000","Y"]
["70001DEV","Athletic Development","N","70000000","Y"]
["70001EQU","Equestrian","N","70000000","Y"]
["70001FBL","Football","N","70000000","Y"]
["70001GAM","General Admin Men","N","70000000","Y"]
["70001GSP","General Sports","N","70000000","Y"]
["70001GYM","Gymnastics","N","70000000","Y"]
["70001MBB","Mens Basketball","N","70000000","Y"]
["70001MED","Sports Medicine","N","70000000","Y"]
["70001MGF","Mens Golf","N","70000000","Y"]
["70001MSW","Mens Swimming","N","70000000","Y"]
["70001MTN","Mens Tennis","N","70000000","Y"]
["70001MTR","Mens Track","N","70000000","Y"]
["70001PLT","Plant Operations","N","70000000","Y"]
["70001PRM","Promotions","N","70000000","Y"]
["70001SBL","Softball","N","70000000","Y"]
["70001SOC","Womens Soccer","N","70000000","Y"]
["70001TIX","Ticket Office","N","70000000","Y"]
["70001VLB","Volleyball","N","70000000","Y"]
["70001WBB","Womens Basketball","N","70000000","Y"]
["70001WGF","Womens Golf","N","70000000","Y"]
["70001WSW","Womens Swimming","N","70000000","Y"]
["70001WTN","Womens Tennis","N","70000000","Y"]
["70001WTR","Womens Track","N","70000000","Y"]
["71015099","DAR Alumni One Time Funding","N","71015000","Y"]
["71015100","DAR Alumni General","N","71015000","Y"]
["71015200","DAR Alumni Atlanta Office","N","71015000","Y"]
["71015300","DAR Alumni Executive Director","N","71015000","Y"]
["71015400","DAR Alumni Travel","N","71015000","Y"]
["71016099","DAR SR VP One Time Funding","N","71016000","Y"]
["71016100","DAR VP Operations","N","71016000","Y"]
["71016200","DAR Sr Assoc VP","N","71016000","Y"]
["71016300","DAR Leadership Gifts","N","71016000","Y"]
["71016400","DAR Principal Gifts","N","71016000","Y"]
["71016500","DAR Concierge Events","N","71016000","Y"]
["71016600","DAR Campaign","N","71016000","Y"]
["71016700","DAR Bank Of America Operating","N","71016000","Y"]
["71017099","DAR Development One Time Fund","N","71017000","Y"]
["71017100","DAR Development General","N","71017000","Y"]
["71017200","DAR Regional Programs","N","71017000","Y"]
["71017300","DAR Gift And Estate Planning","N","71017000","Y"]
["71017400","DAR Donor Relations","N","71017000","Y"]
["71017500","DAR Leadership Giving","N","71017000","Y"]
["71017600","DAR College Relations","N","71017000","Y"]
["71134099","DAR Career Ctr One Time Fund","N","71134000","Y"]
["71134101","DAR Career Center General Ops","N","71134000","Y"]
["71134102","DAR Career Ctr General Sales","N","71134000","Y"]
["71134111","DAR Spring Career Fair","N","71134100","Y"]
["71134112","DAR Fall Career Fair","N","71134100","Y"]
["71134113","Career Fairs General","N","71134100","Y"]
["71134114","Career Planning General","N","71134100","Y"]
["71136099","DAR IT One Time Funding","N","71136000","Y"]
["71136100","DAR IT General Operating","N","71136000","Y"]
["71596099","DAR Fin Tal Mgmt One Time Fund","N","71596000","Y"]
["71596100","DAR Budgets And Personnel","N","71596000","Y"]
["71596200","DAR Talent Management","N","71596000","Y"]
["71597099","UGAF One Time Funding","N","71597000","Y"]
["71597100","UGAF General","N","71597000","Y"]
["71640099","DAR CFR One Time Funding","N","71640000","Y"]
["71640100","DAR CFR General","N","71640000","Y"]
["71641099","DAR Comm One Time Funding","N","71641000","Y"]
["71641100","DAR Communications General","N","71641000","Y"]
["71642099","DAR AGCD One Time Funding","N","71642000","Y"]
["71642100","DAR AGCD Director","N","71642000","Y"]
["71642200","DAR Annual Giving","N","71642000","Y"]
["71642300","DAR AGCD Prospect Management","N","71642000","Y"]
["71642400","DAR AGCD Research","N","71642000","Y"]
["71642500","DAR AGCD Records","N","71642000","Y"]
["71642600","DAR AGCD Advancement Services","N","71642000","Y"]
["71800002","Special Events Legacy","N","71800000","Y"]
["71800099","Special Events One Time Fund","N","71800000","Y"]
["71800100","Special Events General","N","71800000","Y"]
["71820001","SE Honors","N","71820000","Y"]
["71820002","SE Foundation Fellows Events","N","71820000","Y"]
["71820003","SE Coca Cola First Gen","N","71820000","Y"]
["71820004","SE Student Ambass Events","N","71820000","Y"]
["71820005","SE Student Dinners/Receptions","N","71820000","Y"]
["71820006","SE Deer Run Fellows Events","N","71820000","Y"]
["71820007","SE First Yr Odyssey","N","71820000","Y"]
["71830001","SE New Dean/VP/Faculty Events","N","71830000","Y"]
["71830002","SE Faculty Events","N","71830000","Y"]
["71830003","SE Founders Day Luncheon","N","71830000","Y"]
["71830004","SE Staff Events","N","71830000","Y"]
["71840000","SE Diversity Events","N","71800000","Y"]
["71845000","SE Commencements","N","71800000","Y"]
["71850001","SE Football Home Games","N","71850000","Y"]
["71850002","SE Football Away Games","N","71850000","Y"]
["71850003","SE Post Season Games","N","71850000","Y"]
["71850004","SE Gday Football Game","N","71850000","Y"]
["71860001","SE Holiday Greeting Cards","N","71860000","Y"]
["71860002","SE Holiday Open House","N","71860000","Y"]
["71860003","SE State Of The University","N","71860000","Y"]
["71860004","SE Univ Women Coffee Club","N","71860000","Y"]
["71860005","SE Spotlight On The Arts","N","71860000","Y"]
["71870001","SE Small Donor Events","N","71870000","Y"]
["71870002","SE National Presence","N","71870000","Y"]
["71870003","SE DC Receptions","N","71870000","Y"]
["71870004","SE Peabody Events","N","71870000","Y"]
["71870005","SE Parents & Families Leadrshp","N","71870000","Y"]
["71880001","SE Dignitary Visits","N","71880000","Y"]
["71880002","SE Mcbee Lecture/Dinner","N","71880000","Y"]
["71890001","SE Groundbreakings","N","71890000","Y"]
["71890002","SE Building Dedications","N","71890000","Y"]
["72001001","Personal Services","N","72001000","Y"]
["72001002","One Time Funding","N","72001000","Y"]
["72001003","Special Projects","N","72001000","Y"]
["72001004","VP Office of Marketing & Comm","N","72001000","Y"]
["72001005"," Central Admin","N","72001000","Y"]
["72001006"," Professional Development","N","72001000","Y"]
["72001007","Information Technology","N","72001000","Y"]
["72001008","UGAF Restricted","N","72001000","Y"]
["72001009"," Media Communications","N","72001000","Y"]
["72001010"," Columns","N","72001000","Y"]
["72001011","DS Social Media","N","72001000","Y"]
["72001012","DS Web Services","N","72001000","Y"]
["72001013","CS Design","N","72001000","Y"]
["72001014","CS Multimedia","N","72001000","Y"]
["72001015","Brand Strategy","N","72001000","Y"]
["72001016","GA Magazine","N","72001000","Y"]
["72001017","Visitors Center","N","72001000","Y"]
["72001018","WUGA-FM Radio","N","72001000","Y"]
["73698099","Government Relations One Time","N","73698000","Y"]
["73698100","Government Relations General","N","73698000","Y"]
["73698200","GR Community Relations","N","73698000","Y"]
["73698300","GR State Relations","N","73698000","Y"]
["73698400","GR Federal Relations","N","73698000","Y"]
["74001001","Leases","N","74001000","Y"]
["74001002","Other Institutional","N","74001000","Y"]
["74001003","Insurance","N","74001000","Y"]
["74001004","Background Checks","N","74001000","Y"]
["74001005","Hotline","N","74001000","Y"]
["74002000","Institutional Benefits","N","74000000","Y"]
["74003000","Campus Infrastructure","N","74000000","Y"]
["74004000","General University Support","N","74000000","Y"]
["74005000","Capital Projects","N","74000000","Y"]
["74006000","MRR Projects","N","74000000","Y"]
["74007000","Centrally Allocated Funding","N","74000000","Y"]
["74008000","Student Technology Fees","N","74000000","Y"]
["74009000","Contract Overhead","N","74000000","Y"]
["74010000","Institutional Revenue","N","74000000","Y"]
["74012000","UGARF IDC Recovery","N","74000000","Y"]
["74013000","Off Campus Programs","N","74000000","Y"]
["75001000","Endowments","N","75000000","Y"]
["75002000","Endowment Student Aid","N","75000000","Y"]
["75003000","Federal Student Aid","N","75000000","Y"]
["75004000","Foundation Student Aid","N","75000000","Y"]
["75005000","State Student Aid","N","75000000","Y"]
["75006000","Other Student Aid","N","75000000","Y"]
["75006500","Alternative Loans/Scholarship","N","75000000","Y"]
["75071613","Veterinary Medicine NIH","N","75000000","Y"]
["75072478","Pharmacy NIH","N","75000000","Y"]
["75073386","Law Enforcement Education Prog","N","75000000","Y"]
["75074290","GHEAC","N","75000000","Y"]
["75075020","Omer C Aderhold","N","75000000","Y"]
["75075022","Alpha Zeta","N","75000000","Y"]
["75075024","Alumni Association","N","75000000","Y"]
["75075026","Dorothea Bevins Anderson","N","75000000","Y"]
["75075032","Athens Lions Club","N","75000000","Y"]
["75075046","Dot Watkins Bailey","N","75000000","Y"]
["75075048","Claud B Barrett","N","75000000","Y"]
["75075052","Dupree Barrett","N","75000000","Y"]
["75075064","John D Bolton Jr Memorial","N","75000000","Y"]
["75075068","Charles H Brand","N","75000000","Y"]
["75075072","Mary Upshaw Broach","N","75000000","Y"]
["75075092","B F Bullard","N","75000000","Y"]
["75075094","Elizabeth M Bullard","N","75000000","Y"]
["75075120","A F Churchill Memorial","N","75000000","Y"]
["75075128","Class Of 1926","N","75000000","Y"]
["75075132","Hawes Cloud Memorial","N","75000000","Y"]
["75075136","Obadiah Lewis Cloud","N","75000000","Y"]
["75075148","Lucy Cobb Institute","N","75000000","Y"]
["75075160","Edward T Comer","N","75000000","Y"]
["75075188","Blanche Mohr Davis","N","75000000","Y"]
["75075194","Dawson 4-H Club Of Georgia","N","75000000","Y"]
["75075198","Ba & Tn Denmark","N","75000000","Y"]
["75075200","William S Denmark Memorial","N","75000000","Y"]
["75075204","Eugene &  Harry Dodd","N","75000000","Y"]
["75075208","Druid Hills Methodist Church","N","75000000","Y"]
["75075212","J C Dukes Agriculture","N","75000000","Y"]
["75075216","J C Dukes Bus Administration","N","75000000","Y"]
["75075220","J C Dukes Home Economics","N","75000000","Y"]
["75075242","Richard J Ferguson Memorial","N","75000000","Y"]
["75075243","L Findley Af Gardner Meml","N","75000000","Y"]
["75075244","W W Findley Scholarship","N","75000000","Y"]
["75075254","Walter T Forbes Sr Memorial","N","75000000","Y"]
["75075260","Forestry","N","75000000","Y"]
["75075264","Georgia Four H Club","N","75000000","Y"]
["75075266","Mary J Franklin","N","75000000","Y"]
["75075276","Ebb W Gallaher Memorial","N","75000000","Y"]
["75075296","Girls Canning Club","N","75000000","Y"]
["75075310","Colonel William L Grayson","N","75000000","Y"]
["75075318","Pinkus Happ","N","75000000","Y"]
["75075320","James C Harris Scholarship","N","75000000","Y"]
["75075324","Harris W Norris Memorial","N","75000000","Y"]
["75075332","Harold M Heckman Jr Memorial","N","75000000","Y"]
["75075336","Harold M Heckman Jr Music","N","75000000","Y"]
["75075337","Morris Hirsch Memorial","N","75000000","Y"]
["75075338","Harold Hirsch","N","75000000","Y"]
["75075339","A L Hull","N","75000000","Y"]
["75075340","James H Hunt","N","75000000","Y"]
["75075348","Jefferson High School","N","75000000","Y"]
["75075350","Albert & Dorothy Jenkins Jourl","N","75000000","Y"]
["75075376","Clyde L & John King","N","75000000","Y"]
["75075388","Landscape Architecture","N","75000000","Y"]
["75075392","Frances Eugene Lanier","N","75000000","Y"]
["75075398","Francis A Lipscomb","N","75000000","Y"]
["75075404","Joseph H Lumpkin Scholarship","N","75000000","Y"]
["75075420","Mr & Mrs T O Marshall","N","75000000","Y"]
["75075432","Moina Michael Scholarship","N","75000000","Y"]
["75075436","Miscellaneous","N","75000000","Y"]
["75075444","Thomas E Mitchell","N","75000000","Y"]
["75075448","Moon","N","75000000","Y"]
["75075452","Mac Moore","N","75000000","Y"]
["75075462","Roxie Widdowson Neal","N","75000000","Y"]
["75075464","R C Neely","N","75000000","Y"]
["75075465","Henry E Newton Loan","N","75000000","Y"]
["75075466","Malvern Strawn Pace","N","75000000","Y"]
["75075477","George F Peabody","N","75000000","Y"]
["75075480","Phi Delta Phi","N","75000000","Y"]
["75075484","Benjamin Z Phillips Law Schol","N","75000000","Y"]
["75075488","John T Pittard Memorial","N","75000000","Y"]
["75075496","Lucy Leah Redwine Memorial","N","75000000","Y"]
["75075500","Albon W Reed Memorial","N","75000000","Y"]
["75075525","William J Iv & Addie D Russell","N","75000000","Y"]
["75075526","William J Jr & Amma W Russell","N","75000000","Y"]
["75075538","James O Scaife Jr Memorial","N","75000000","Y"]
["75075540","Shamrock System","N","75000000","Y"]
["75075550","Special","N","75000000","Y"]
["75075551","Andrew M Soule","N","75000000","Y"]
["75075553","C M & Bernice C Stripling","N","75000000","Y"]
["75075564","Mark Sullivan","N","75000000","Y"]
["75075588","Berryman T Thompson Education","N","75000000","Y"]
["75075592","Meldrin Thompson","N","75000000","Y"]
["75075596","Max Thurmond Memorial","N","75000000","Y"]
["75075604","Frances C Tucker","N","75000000","Y"]
["75075608","Leila Bates Tye","N","75000000","Y"]
["75075612","Union Bag Camp Paper Company","N","75000000","Y"]
["75075614","Juddie Wall","N","75000000","Y"]
["75075624","Louis Wellhouse Memorial","N","75000000","Y"]
["75075630","Rebecca E Westbrook","N","75000000","Y"]
["75075636","Cecil Wilcox","N","75000000","Y"]
["75075638","Allie Prickett William","N","75000000","Y"]
["75075646","Dr Arnold Wrabel","N","75000000","Y"]
["75075648","Ida A Young","N","75000000","Y"]
["75075650","Emory Hospitals Pass Fund","N","75000000","Y"]
["75075651","John Alton Hosch Stdt Loan Fnd","N","75000000","Y"]
["75075652","Berner Loan Fund","N","75000000","Y"]
["75076014","Griffin Student Emergency","N","75000000","Y"]
["75076028","Athens Kiwanis Club","N","75000000","Y"]
["75076034","Athens City Panhellenic","N","75000000","Y"]
["75076062","Bohn Loan Fund","N","75000000","Y"]
["75076164","Mccarthy Crenshaw Memorial","N","75000000","Y"]
["75076308","Professor B F Grant Emergency","N","75000000","Y"]
["75076341","Coll-Family&Consumer Sciences","N","75000000","Y"]
["75076342","Interfraternity Council","N","75000000","Y"]
["75076458","Natl Assoc Of Fedl Veterinarns","N","75000000","Y"]
["75076492","Clifford Pratt Memorial","N","75000000","Y"]
["75076549","I A Solomons Jr Memorial Phar","N","75000000","Y"]
["75076556","Students Emergency","N","75000000","Y"]
["75076560","Student Veterans","N","75000000","Y"]
["75076611","University Of Ga Law Dames","N","75000000","Y"]
["75076640","Charles C Wilson Memorial","N","75000000","Y"]
["75077502","Regents Scholarship","N","75000000","Y"]
["75078268","Eugene D Freeman Memorial","N","75000000","Y"]
["75079460","Perkins Loan Fund","N","75000000","Y"]

{"sheet":"Fund","index":6,"n_rows":83,"n_cols":6,"rows_kept":83,"cut":false,"hidden":false,"merged":[]}
["Fund","Descr"]
[null,"None"]
["00000","All Funds"]
["10000","RI-State Appropriations",null,null,null,89898]
["10500","Tuition"]
["10600","RI-Other General"]
["10800","AU/UGA Medical Partnership"]
["11300","Agricultural Exp Station-State"]
["11310","Coop Extension Service-State"]
["11320","Forestry Research-State Approp"]
["11325","Forestry Coop Extension-State"]
["11330","Marine Extension Service-State"]
["11335","Skidaway Institute-State Appro"]
["11340","Marine Institute-State"]
["11360","Vet Med Ag Research-State"]
["11370","Vet Med Teaching Hosp-State"]
["11380","Vet Med Experiment Sta-State"]
["11390","Athens/Tifton Vet Labs-State"]
["11500","Ag Exp Stations-Federal Approp"]
["11510","Coop Ext Serv-Federal Approp"]
["11600","Agricultural Experiment-Other"]
["11610","Coop Extension Service-Other"]
["11620","Forestry Research-Other"]
["11625","Forestry Coop Extension-Other"]
["11630","Marine Extension Service-Other"]
["11640","Marine Institute-Other Gen"]
["12210","Auxiliary Housing"]
["12220","Auxiliary Food Services"]
["12230","Auxiliary Stores and Shops"]
["12240","Auxiliary Health Services"]
["12250","Auxiliary Parking"]
["12260","Auxiliary Transportation"]
["12270","Auxiliary Other Organizations"]
["12280","Auxiliary Athletics"]
["13000","Student Activities"]
["14000","Continuing Education"]
["14100","Departmental Sales and Service"]
["14300","Agricultural Experiment-DSS"]
["14310","Coop Extension Service-DSS"]
["14320","Forestry Research-DSS"]
["14325","Forestry Coop Extension-DSS"]
["14330","Marine Extension Service-DSS"]
["14335","Skidaway Institute-DSS"]
["14340","Marine Institute-DSS"]
["14370","Vet Med Teaching Hospital-DSS"]
["14390","Athens/Tifton Vet Labs-DSS"]
["15000","RI-Indirect Cost Recoveries"]
["15300","Agricultural Exp-IDC Recovery"]
["15310","Coop Extension-IDC Recovery"]
["15320","Forestry Research-IDCR"]
["15325","Forestry Coop-IDC Recovery"]
["15330","Marine Extension-IDC Recovery"]
["15335","Skidaway Institute-IDC Recover"]
["15340","Marine Institute-IDC Recovery"]
["15390","Athens/Tifton Vet Labs-IDCR"]
["16000","Technology Fees"]
["20000","RI-Restricted and Sponsored"]
["20080","AU/UGA Med Partner-Restricted"]
["20100","Student Financial Aid"]
["20200","Restricted-Foundation"]
["20300","Restricted-Research Foundation"]
["20400","Restricted-Non-Sponsored"]
["20500","Restricted-UGA Endowment Funds"]
["21300","Agricultural Exper-Restricted"]
["21310","Coop Extension Serv-Restricted"]
["21320","Forestry Research-Restricted"]
["21325","Forestry Coop Ext-Restricted"]
["21330","Marine Extension-Restricted"]
["21335","Skidaway Institute-Restricted"]
["21340","Marine Institute-Restricted"]
["21390","Athens/Tifton Vet-Restricted"]
["30000","Federal Loan Funds"]
["31000","Institutional Loan Fnds"]
["40000","Endowment Funds"]
["41000","Term Endowment Funds"]
["42000","Quasi Endowment Funds"]
["50000","Unexpended Plant-Lapsing"]
["50100","Unexpended Plant-Non-lapsing"]
["50200","Unexpended Plant-GSFIC Non-MRR"]
["50300","Unexpended Plant-MRR Funds"]
["60000","Agency-Funds on Deposit"]
["61000","Agency-Designated Scholarships"]
["62000","Agency-Payroll Operations"]

{"sheet":"Class","index":7,"n_rows":2100,"n_cols":2,"rows_kept":2100,"cut":false,"hidden":false,"merged":[]}
["Class","Descr"]
[null,"None"]
["00000","All Class Codes"]
["11000","General Operations"]
["11000","General Operations - General"]
["11200","State Appropriations"]
["11300","Other General Revenue"]
["11500","Indirect Cost Recovery"]
["11600","Technology Fees"]
["11800","Tuition"]
["11980","Fees-Undergraduate"]
["11981","Fall Semester-Undergrad"]
["11982","Fall Semester Waivers-Undergrd"]
["11983","Spring Semester-Undergrad"]
["11984","Spring Semester Waivers-Underg"]
["11985","Summer Semester-Undergrad"]
["11986","Summer Semester Waivers-Underg"]
["11987","Maymester-Undergrad"]
["11988","Maymester Waivers-Undergrad"]
["11990","Fees-Graduate"]
["11991","Fall Semester-Graduate"]
["11992","Fall Semester Waivers-Grad"]
["11993","Spring Semester-Graduate"]
["11994","Spring Semester Waivers-Grad"]
["11995","Summer Semester-Graduate"]
["11996","Summer Semester Waivers-Grad"]
["11997","Maymester-Graduate"]
["11998","Maymester Waivers-Graduate"]
["13000","Gen Opns-Special Funding Ini"]
["16000","Major Repair/Rehabilitation Fu"]
["16500","GSFIC"]
["18000","Loan Fund Operations"]
["19000","Quasi Revenue (Not DSS)"]
["40000","Continuing Education"]
["41500","Dept Sales/Svcs-Other"]
["41501","Dept Sales/Svcs-Federal"]
["41502","Dept Sales/Svc-State"]
["41503","Dept Sales/Svc-Local"]
["41504","Dept Sales/Svc-Priv Industry"]
["41505","Dept Sales/Svc-Priv Foundation"]
["41507","DSS-Study Abroad/Field Study"]
["41900","Quasi-Revenues from Distributi"]
["42100","Aux Enterprises-Institution Op"]
["42200","Aux Enterprises-Contracted Ope"]
["43000","Athletics"]
["60000","Sponsored"]
["61000","Sponsored-Federal Government"]
["61001","US DEPARTMENT OF ENERGY"]
["61002","US DEPARTMENT OF AGRICULTURE"]
["61003","USDA FOREST SERVICE"]
["61004","USDA ARS"]
["61005","USDA NCRS"]
["61006","USDA NIFA"]
["61007","USDA APHIS"]
["61008","USDA FOREIGN AG SERVICE"]
["61009","US DEPARTMENT OF COMMERCE"]
["61012","US DEPARTMENT OF DEFENSE"]
["61013","US DEPT OF AIR FORCE"]
["61014","US DEPT OF ARMY"]
["61015","US DEPT OF NAVY"]
["61017","US DEPT OF HEALTH & HUMAN SVCS"]
["61018","NATIONAL INSTITUTES OF HEALTH"]
["61019","US DEPARTMENT OF INTERIOR"]
["61020","US DEPARTMENT OF LABOR"]
["61022","NATIONAL AERO & SPACE ADMIN"]
["61023","NATIONAL SCIENCE FOUNDATION"]
["61024","NATIONAL ENDOWMENT FOR ARTS"]
["61025","NATL ENDOWMENT FOR HUMANITIES"]
["61026","SMALL BUSINESS ADMINISTRATION"]
["61027","INSTITUTE OF MUSEUM/LIBRARY SV"]
["61028","US AGENCY FOR INATL DEVEL"]
["61029","PEACE CORPS"]
["61030","NATIONAL SECURITY AGENCY"]
["61032","US ENVIRONMENTAL PROTECTN AGCY"]
["61033","US DEPT OF EDUCATION"]
["61034","CESU - PIEDMONT"]
["61035","VIETNAM EDUCATION FOUNDATION"]
["61PEL","PELL"]
["61SEG","SEOG"]
["62000","Sponsored-GA State Government"]
["62001","GA COMMODITY COMM COTTON"]
["62002","GA COMMODITY COMM PEANUTS"]
["62003","GEORGIA OFC DISPUTE RESOLUTION"]
["62004","GA COMMODITY COMM SOYBEANS"]
["62005","GA COMMODITY COMM TOBACCO"]
["62006","GA COMMODITY COMM FOR BEEF"]
["62007","GA COMMODITY COMM PEACHES"]
["62008","GA COMMODITY COMM VEGETABLES"]
["62009","GA COMMODITY COMM BLUEBERRY"]
["62010","GA DEPT OF AGRICULTURE"]
["62011","GA DEPT OF COMMUNITY AFFAIRS"]
["62012","GA DEPT OF EDUCATION"]
["62013","GA STATE ACCOUNTING OFFICE"]
["62014","GA DEPT OF HUMAN RESOURCES"]
["62015","GA DEPT OF HUMAN SERVICES"]
["62016","GA DEPT OF NATURAL RESOURCES"]
["62017","GA DEPT OF TRANSPORTATION"]
["62018","GA DEPT OF AUDITS"]
["62019","GA OFFICE OF PLANNING & BUDGET"]
["62020","BD OF REGENTS/UNIV SYS OF GA"]
["62021","GA INSTITUTE OF TECHNOLOGY"]
["62022","GA STATE UNIVERSITY"]
["62023","FORT VALLEY STATE UNIVERSITY"]
["62024","COLLEGE OF COASTAL GEORGIA"]
["62025","EAST GEORGIA COLLEGE"]
["62026","GA COUNCIL FOR THE ARTS"]
["62027","GA GENERAL ASSEMBLY"]
["62028","GOVERNORS OFC OF HIGHWAY SAFTY"]
["62029","JUDICIAL COUNCIL OF GA"]
["62030","GA FORESTRY COMMISSION"]
["62031","ADMIN OFFICE OF THE COURTS"]
["62032","JEKYLL ISLAND AUTHORITY"]
["62033","GA DEPT OF LABOR"]
["62034","GEORGIA SOUTHERN UNIVERSITY"]
["62035","GA DEPT OF CORRECTIONS"]
["62036","ALBANY STATE UNIVERSITY"]
["62037","ARMSTRONG STATE UNIVERSITY"]
["62038","GA SOUTHWESTERN STATE UNIV"]
["62039","GEORGIA COLLEGE & STATE UNIV"]
["62040","GA DEPT OF PUBLIC SAFETY"]
["62041","GEORGIA HUMANITIES COUNCIL"]
["62042","GA DEPT OF JUVENILE JUSTICE"]
["62043","NE GA AREA AGCY ON AGING"]
["62044","GA EMERGENCY MGNT AGENCY"]
["62045","GA COMMODITY COMM FOR PECANS"]
["62046","GWINNETT/ROCKDALE/NEWTON COM S"]
["62047","GA COMMODITY COMM FOR CORN"]
["62048","GA SOIL/WATER CONSERVATION COM"]
["62049","GEORGIA BUREAU OF INVESTIGATIO"]
["62050","VARIOUS STATE"]
["62051","METRO REGL EDUC SVC AGCY-MRESA"]
["62052","GA ENVIRONMENTAL PROTENTN DIV"]
["62053","GA DEPT OF PUBLIC HEALTH"]
["62054","DALTON STATE COLLEGE"]
["62055","GA DEPT OF COMMUNITY HEALTH"]
["62056","GA DEPT OF EARLY CARE & LEARNG"]
["62057","SOUTHERN POLYTECHNIC STATE UNV"]
["62058","GEORGIA PUBLIC LIBRARY SERVICE"]
["62059","GA DEPT OF ECONOMIC DEVELOPMNT"]
["62060","GEORGIA GWINNETT COLLEGE"]
["62061","GA DEPT BEHAV HLTH & DEV DISAB"]
["62062","GEORGIA RESEARCH ALLIANCE"]
["62063","TECHNICAL COLLEGE SYSTEM OF GA"]
["62064","GA ENVIRONMENTAL FINANCE AUTH"]
["62065","CRIMINAL JUSTICE COORD COUNCIL"]
["62066","STATE CHARTER SCHOOLS COMMISSN"]
["62067","GA VOCATIONAL REHAB AGENCY"]
["62068","AUGUSTA UNIVERSITY"]
["62069","COASTAL REGIONAL COMMISSION GA"]
["62070","STATE ROAD & TOLLWAY AUTHORITY"]
["62071","SAVANNAH AIRPORT COMMISSION"]
["62072","SAPELO ISL NATL ESTUARINE RSCH"]
["62073","OGEECHEE TECHNICAL COLLEGE"]
["62074","GA DEPT OF REVENUE"]
["62075","NE GA REG EDUC  SERVICE AGENCY"]
["62076","GA PORTS AUTHORITY"]
["62077","GA DEPT OF DRIVER SERVICES"]
["62078","GEORGIA REGENTS UNIVERSITY"]
["62079","GEORGIA REGENTS UNIVERSITY"]
["62500","Spon States Other Than Georgia"]
["62501","STATE OF FLORIDA"]
["62502","VARIOUS OTHER STATES"]
["62503","STATE OF CALIFORNIA"]
["62504","CLEMSON UNIVERSITY"]
["62505","MICHIGAN STATE UNIVERSITY"]
["62506","NORTH CAROLINA STATE UNIV"]
["62507","OHIO STATE UNIVERSITY"]
["62508","PURDUE UNIVERSITY"]
["62509","UNIV OF ARKANSAS/FAYETTEVILLE"]
["62510","UNIVERSITY OF CONNECTICUT"]
["62511","UNIVERSITY OF FLORIDA"]
["62512","UNIV ILLINOIS-URBANA CHAMPAIGN"]
["62513","UNIVERSITY OF KENTUCKY"]
["62514","UNIVERSITY OF MINNESOTA"]
["62515","UNIVERSITY OF MISSOURI"]
["62516","UNIV NORTH CAROLINA CHAPEL HIL"]
["62517","UNIVERSITY OF TEXAS /AUSTIN"]
["62518","UNIV OF WISCONSIN MADISON"]
["62519","VIRGINIA POLYTECHNIC INSTITUTE"]
["62520","UNIVERSITY OF MICHIGAN"]
["62521","INDIANA UNIVERSITY"]
["62522","WASHINGTON STATE UNIVERSITY"]
["62523","UNIVERSITY OF PENNSYLVANIA"]
["62524","UNIVERSITY OF SOUTH CAROLINA"]
["62525","COLORADO STATE UNIVERSITY"]
["62526","OKLAHOMA STATE UNIVERSITY"]
["62527","TEXAS A&M UNIVERSITY"]
["62528","KANSAS STATE UNIVERSITY"]
["62529","MISSISSIPPI STATE UNIVERSITY"]
["62530","UNIV OF NEBRASKA-LINCOLN"]
["62531","PENNSYLVANIA STATE UNIVERSITY"]
["62532","UNIVERSITY OF TENNESSEE"]
["62533","ARIZONA STATE UNIVERSITY"]
["62534","UNIV OF SOUTHERN MISSISSIPPI"]
["62535","UNIVERSITY OF HOUSTON"]
["62536","FLORIDA STATE UNIVERSITY"]
["62537","REGENTS OF UNIVERSITY OF CALIF"]
["62538","AUBURN UNIVERSITY"]
["62539","UNIVERSITY OF ALASKA"]
["62540","IOWA STATE UNIVERSITY"]
["62541","UNIVERSITY OF WASHINGTON"]
["62542","UNIVERSITY OF SOUTH FLORIDA"]
["62543","UNIVERSITY OF NEW HAMPSHIRE"]
["62544","NEW MEXICO STATE UNIVERSITY"]
["62545","REGENTS UNIV OF MICHIGAN"]
["62546","FLORIDA A&M UNIVERSITY"]
["62547","UNIV OF ALABAMA AT BIRMINGHAM"]
["62548","EAST CAROLINA UNIVERSITY"]
["62549","UNIVERSITY OF UTAH"]
["62550","SC DEPT OF NATURAL RESOURCES"]
["62551","UTAH STATE UNIVERSITY"]
["62552","VIRGINIA COMMONWEALTH UNIV"]
["62553","MONTANA STATE UNIVERSITY"]
["62554","FLA. FISH&WILDLIFE CONSV. COMM"]
["62555","SOUTH DAKOTA STATE UNIVERSITY"]
["62556","LOUISIANA STATE U HLTH SCI CTR"]
["62557","FLORIDA DEPT OF AG & CONS SVCS"]
["62558","UNIV OF PUERTO RICO/RIO PIEDRA"]
["62559","LOUISIANA DEPT WILDLIFE & FISH"]
["62560","TUFTS UNIVERSITY"]
["62561","UNIV OF CALIFORNIA/SAN DIEGO"]
["62562","UNIV OF CALIFORNIA/DAVIS"]
["62563","TEXAS PARKS AND WILDLIFE DEPT"]
["62564","TEACHERS COLLEGE COLUMBIA UNIV"]
["62565","OREGON HEALTH & SCIENCE UNIVER"]
["62566","KENTUCKY DEPT FISH & WILDLIFE"]
["62567","ARIZONA BOARD OF REGENTS"]
["62568","TEXAS A&M AGRILIFE EXT SVC"]
["62569","AL DEPT OF CONSERVATION & NATU"]
["62570","LAWRENCE BERKELEY NATL LAB"]
["62571","U OF TEXAS MD ANDERSON CANCER"]
["62572","UNIVERSITY OF NORTH TEXAS"]
["62573","TEXAS A&M AGRILIFE RESEARCH"]
["62574","GRAND VALLEY STATE UNIVERSITY"]
["62575","SC DEPT OF HEALTH &ENV CONTROL"]
["62576","UNIV OF WISCONSIN - OFF CAMPUS"]
["62577","UNIVERSITY OF TEXAS / EL PASO"]
["62578","UNIV OF MARYLAND/BALTIMORE CO"]
["62579","SOUTH CAROLINA SOYBEAN BOARD"]
["62580","CALIFORNIA WALNUT COMMISSION"]
["62581","MONTANA DEPT OF AGRICULTURE"]
["62582","STATE OF MINNESOTA"]
["62583","UNIVERSITY OF NEVADA LAS VEGAS"]
["62584","NEW YORK UNIVERSITY"]
["62585","NORTHERN ARIZONA UNIVERSITY"]
["62586","BAYLOR COLLEGE OF MEDICINE"]
["62587","UNIV OF CALIFORNIA/RIVERSIDE"]
["62588","RUTGERS UNIVERSITY"]
["62589","UNIVERSITY OF ALABAMA"]
["62590","UNIVERSITY OF CALIFORNIA"]
["62GHO","Ga Hero"]
["62MSE","Minority Scholarship"]
["62NTG","Georgia National Guard"]
["62PSM","Ga Public Safety Memorial Grnt"]
["62SPY","State Funds Prior Year Account"]
["63000","Sponsored-Local Government"]
["63001","COUNTY OF ATHENS-CLARKE"]
["63002","COUNTY OF CLARKE"]
["63003","COUNTY OF DEKALB"]
["63004","COUNTY OF FAYETTE/FAYETTEVILLE"]
["63005","COUNTY OF FULTON"]
["63006","CITY OF GLENNVILLE"]
["63007","COUNTY OF GLYNN"]
["63008","COUNTY OF NEWTON"]
["63009","CITY OF PEACHTREE CITY"]
["63010","COUNTY OF TIFT/TIFTON"]
["63011","COUNTY OF WAYNE"]
["63012","COUNTY OF WHITFIELD"]
["63013","CITY OF COLUMBUS"]
["63014","COUNTY OF GWINNETT"]
["63015","COUNTY OF CHATHAM"]
["63016","COUNTY OF CLAYTON"]
["63017","COUNTY OF COWETA"]
["63018","CITY OF DALTON"]
["63019","COUNTY OF LOWNDES"]
["63020","COUNTY OF ROCKDALE"]
["63021","COUNTY OF HALL"]
["63022","COUNTY OF COLUMBIA"]
["63023","COUNTY OF FRANKLIN"]
["63024","CITY OF DECATUR"]
["63025","CITY OF THOMSON"]
["63026","CITY OF GRIFFIN"]
["63027","COUNTY OF HENRY"]
["63028","COUNTY OF TROUP"]
["63029","COUNTY OF BALDWIN"]
["63030","COUNTY OF BULLOCH"]
["63031","GRIFFIN-SPALDING COUNTY"]
["63032","COUNTY OF BARROW"]
["63033","COUNTY OF TELFAIR"]
["63034","COUNTY OF WARE"]
["63035","COUNTY OF POLK"]
["63036","COUNTY OF COBB"]
["63037","COUNTY OF SPALDING"]
["63038","COUNTY OF WALTON"]
["63039","COUNTY OF SCHLEY"]
["63040","GREENE CO BOARD OF EDUCATION"]
["63041","CLARKE COUNTY SCHOOL DISTRICT"]
["63042","COUNTY OF MITCHELL"]
["63043","CITY OF SAVANNAH"]
["63044","COUNTY OF FORSYTH"]
["63045","COUNTY OF MORGAN"]
["63046","COUNTY OF GREENE"]
["63047","CITY OF ALBANY"]
["63048","COUNTY OF EMANUEL"]
["63049","COUNTY OF OGLETHORPE"]
["63050","COUNTY OF CANDLER"]
["63051","CITY OF LAWRENCEVILLE"]
["63052","COUNTY OF JASPER"]
["63053","VARIOUS CITIES & COUNTIES"]
["63054","COUNTY OF MONTGOMERY"]
["63055","COUNTY OF EVANS"]
["63056","COUNTY OF TATTNALL"]
["63057","COUNTY OF TOOMBS"]
["63058","COUNTY OF DAWSON"]
["63059","COUNTY OF JACKSON"]
["63060","COUNTY OF LUMPKIN"]
["63061","CITY OF STATESBORO"]
["63062","COUNTY OF MERIWETHER"]
["63063","COUNTY OF EARLY"]
["63064","COUNTY OF CRISP"]
["63065","COUNTY OF CAMDEN"]
["63066","COUNTY OF TREUTLEN"]
["63067","COUNTY OF COLQUITT"]
["63068","COUNTY OF PICKENS"]
["63069","COUNTY OF MURRAY"]
["63070","COUNTY OF BACON"]
["63071","COUNTY OF DOUGHERTY"]
["63072","COUNTY OF IRWIN"]
["63073","CITY OF COVINGTON"]
["63074","COUNTY OF HABERSHAM"]
["63075","COUNTY OF LONG"]
["63076","COUNTY OF SUMTER"]
["63077","COUNTY OF BRYAN"]
["63078","COUNTY OF BURKE"]
["63079","COUNTY OF BROOKS"]
["63080","COUNTY OF DECATUR"]
["63081","COUNTY OF WASHINGTON"]
["63082","AUGUSTA-RICHMOND COUNTY CONSOL"]
["63083","COUNTY OF WORTH"]
["63084","COUNTY OF JENKINS"]
["63085","COUNTY OF HANCOCK"]
["63086","COUNTY OF JOHNSON"]
["63087","COUNTY OF PUTNAM"]
["63088","COUNTY OF MCDUFFIE"]
["63089","COUNTY OF WILKINSON"]
["63090","COUNTY OF CHEROKEE"]
["63091","COUNTY OF MADISON"]
["63092","COUNTY OF PIKE"]
["63093","COUNTY OF ATKINSON"]
["63094","COUNTY OF BUTTS"]
["63095","COUNTY OF STEWART"]
["63096","COUNTY OF BANKS"]
["63097","JACKSON COUNTY SCHOOL SYSTEM"]
["63098","CITY OF CHAMBLEE"]
["63099","CHATHAM COUNTY BOARD OF COMM"]
["63100","ATHENS-CLARKE CO PUBLIC UTIL"]
["63101","JEFFERSON CITY SCHOOLS"]
["63102","DEKALB COUNTY BOARD OF HEALTH"]
["63103","CITY OF BAINBRIDGE"]
["63104","NEWTON COUNTY SCHOOL SYSTEM"]
["63105","CITY OF ELLIJAY"]
["63106","ALCOVY JUDICIAL CIRCUIT"]
["63107","CITY OF ATLANTA"]
["63108","COLUMBUS CONSOLIDATED GOVERNMT"]
["63109","HENRY COUNTY POLICE DEPARTMENT"]
["63110","ATHENS-CLARKE CO SUPERIOR CT"]
["63111","COUNTY OF CHATTAHOOCHEE"]
["63112","CITY OF SANDY SPRINGS"]
["63113","COUNTY OF MACON-BIBB"]
["63114","CITY OF STOCKBRIDGE"]
["63115","CITY OF AVONDALE ESTATES"]
["63116","THREE RIVERS REGIONAL COMMISSN"]
["63117","WALNUT GROVE HIGH SCHOOL"]
["63118","CITY OF MARIETTA"]
["63119","CITY OF THOMASTON"]
["63120","GWINNETT VILLAGE CID"]
["63121","CITY OF MILTON"]
["63122","CITY OF SYLVESTER"]
["63123","COBB & DOUGLAS PUBLIC HEALTH"]
["63124","CITY OF FLOWERY BRANCH"]
["63125","GREENE COUNTY BOARD OF COMM"]
["63126","CITY OF WINTERVILLE"]
["63127","COUNTY OF UPSON"]
["63128","CITY OF BRUNSWICK"]
["63129","CITY OF RICHMOND HILL"]
["63130","SMYRNA POLICE DEPARTMENT"]
["63131","SMYRNA FIRE DEPARTMENT"]
["63132","CITY OF SANIBEL"]
["63133","CITY OF NORCROSS"]
["63134","FULTON COUNTY BOARD OF EDUCATN"]
["63135","ATHENS REGIONAL LIBRARY SYSTEM"]
["63136","CITY OF LOVEJOY"]
["63137","CITY OF CLAYTON"]
["63138","CITY OF EAST POINT"]
["64000","Sponsored-Private"]
["64001","ABBOTT LABORATORIES"]
["64002","BASF CORPORATION"]
["64003","E I DUPONT"]
["64004","GA POWER COMPANY"]
["64005","JOHNSON & JOHNSON"]
["64006","MERCK & CO INC"]
["64007","MONSANTO"]
["64008","MONSANTO AGRICULTURAL PRODUCTS"]
["64009","PROCTER & GAMBLE COMPANY"]
["64010","SOUTHERN COMPANY SERVICES"]
["64011","CARGILL INC"]
["64012","CORNING GLASS WORKS"]
["64013","JANSSEN PHARMACEUTICA"]
["64014","TOYOTA USA"]
["64015","IDEXX CORPORATION"]
["64016","ALLTECH INC"]
["64017","PIONEER HI-BRED INATL"]
["64018","SANDIA NATIONAL LABORATORIES"]
["64019","TALL TIMBERS RESEARCH INC"]
["64020","VARIOUS-CORP GRANTS"]
["64021","SCOTTS COMPANY LLC"]
["64022","HILL'S PET NUTRITION INC"]
["64023","FORD MOTOR COMPANY"]
["64024","MERIAL"]
["64025","PENNINGTON SEED CO"]
["64026","MARTA-METRO ATLANTA RAPID TRAN"]
["64027","COBB-VANTRESS INCORPORATED"]
["64028","GEOVAX, INC."]
["64029","COTTON STATES INSURANCE CO"]
["64030","ELANCO ANIMAL HEALTH"]
["64031","HENRY FORD HEALTH SYSTEM"]
["64032","ICF CONSULTING GROUP, INC."]
["64033","SYNGENTA CROP PROTECTION, INC"]
["64034","AMICUS THERAPEUTICS, INC."]
["64035","PEARSON EDUCATION, INC"]
["64036","MURPHY-BROWN LLC"]
["64037","DOW AGROSCIENCES LLC"]
["64038","SAVANNAH RIVER NUCLEAR SOLUTNS"]
["64039","ROCHE DIAGNOSTICS"]
["64040","BETH ISRAEL DEACONESS MEDICAL"]
["64041","GLYCOSENSORS & DIAGNOSTICS LLC"]
["64042","SMITHBUCKLIN"]
["64043","ABAXIS INC"]
["64044","EARTH NETWORKS INC"]
["64045","PEPSICO INC"]
["64046","TRELLIS BIOSCIENCE LLC"]
["64047","INTERACTIVE SCIENCE IN 3D LLC"]
["64048","ARTIFICIAL CELL TECHNOLOGY INC"]
["64049","MEDIMMUNE LLC"]
["64050","SYNGENTA SEEDS INC"]
["64051","ARTHREX INC"]
["64052","KARYOPHARM THERAPEUTICS"]
["64053","SAVANNAH RIVER REMEDIATION LLC"]
["64054","GALECTIN THERAPEUTICS"]
["64055","ATEA PHARMACEUTICALS INC"]
["64056","ZOETIS"]
["64057","ELECTROCORE LLC"]
["64058","AMEC INC"]
["64059","LANXESS CORPORATION"]
["64060","SANUWAVE HEALTH INC"]
["64061","OMNIACTIVE HEALTH TECH LTD"]
["64062","NUCLEUS REGENERATIVE THERAPIES"]
["64063","MCCORKLE NURSERIES INC"]
["64064","SPECIALTY SEED INC"]
["64065","ROSS UNIVERSITY"]
["64066","LEIDOS INC"]
["64067","CONTRAFECT CORPORATION"]
["64068","TD AMERITRADE INC"]
["64069","ANACOR PHARMACEUTICALS INC"]
["64070","SOUTHERN IONICS INC"]
["64071","BIOTECERA INC"]
["64072","MI CRITICAL CARE CONSULTANTS"]
["64073","METHOD GENETICS LLC"]
["64074","NORTHROP GRUMMAN INFO SYSTEMS"]
["64075","STAR ROSES & PLANT/CONARD-PYLE"]
["64076","VICAPSYS INC"]
["64077","LEWIS M CARTER MANUFTG CO"]
["64078","TURNER BROADCASTING SYSTEM INC"]
["64079","KOCH BIOLOGICAL SOLUTIONS INC"]
["64080","ARK ANIMAL HOSPITAL INC"]
["64081","FISHSPORT INC"]
["64082","READY MIX USA"]
["64083","AGRINOS INC"]
["64084","PHIBRO ANIMAL HEALTH"]
["64085","MODERNA THERAPEUTICS"]
["64086","ACUMEN LLC"]
["64087","ALK TECHNOLOGIES INC"]
["64088","PEROXYCHEM LLC"]
["64089","APPRISS INC"]
["64090","SASYA LLC"]
["64091","QED GROUP LLC"]
["64092","SEASONS NAIL BAR"]
["64093","PROVENTUS BIO"]
["64094","PRICEWATERHOUSECOOPERS LLP"]
["64095","TAIGA BIOTECHNOLOGIES INC"]
["64096","EPIVAX INC"]
["64097","VERALASE LLC"]
["64098","BIDDLE CONSULTING GROUP INC"]
["64099","THE FORUM"]
["64100","CAITTA INC"]
["64101","PHI OPTICS INC"]
["64102","ESCOGO LLC"]
["64103","MARS HORSECARE US INC"]
["64104","APPLIED RESEARCH ASSOCIATES IN"]
["64105","NANO TERRA INC"]
["64106","GLYCOSCIENTIFIC LLC"]
["64107","GEL-E INC"]
["64108","CONSILIENCE GROUP LLC"]
["64109","DELTA AIR LINES INC"]
["64110","SYNEXIS INC"]
["64111","GEORGIA ELECTRIC MEMBERSHIP CO"]
["64112","REPROTOX BIOTECH LLC"]
["64113","TERRACON"]
["64114","STADION MONEY MANAGEMENT LLC"]
["64115","BODEVET INC"]
["64116","HAMMONS PRODUCTS COMPANY"]
["64117","HGG RESEARCH LLC"]
["64118","MISSION PRODUCTS HOLDINGS INC"]
["64119","MULTIMIN USA"]
["64120","TEMP - PRIVATE"]
["64121","LANDLOVERS FOUNDATION INC"]
["64122","AMERICAN CANCER SOCIETY"]
["64123","AMERICAN CHEMICAL SOCIETY"]
["64124","AMER COL OF VET SURGEONS"]
["64125","AMERICAN EGG BOARD"]
["64126","UNITED SORGHUM CHECKOFF PROGRM"]
["64127","AMERICAN HEART ASSN"]
["64128","AMERICAN HEARTWORM ASSN"]
["64129","AMER MUSEUM OF NATURAL HISTORY"]
["64130","AM COLLEGE VET EMERGENCY &CARE"]
["64131","US ENDOWMENT FORESTRY & COMMUN"]
["64132","CARNEGIE CORP OF NEW YORK"]
["64133","MDRC"]
["64134","ATLANTA BOTANICAL GARDEN"]
["64135","CORNELL UNIVERSITY"]
["64136","VAN ANDEL RESEARCH INSTITUTE"]
["64137","ELECTRIC POWER RESEARCH INST"]
["64138","SOUTH ARTS"]
["64139","EMORY UNIVERSITY"]
["64140","NATIONAL COUNCIL ON AGING"]
["64141","GARDEN CLUB OF GEORGIA INC"]
["64142","GA BLUEBERRY ASSOCIATION"]
["64143","GA CROP IMPROVEMENT ASSN"]
["64144","ALMOND BOARD OF CALIFORNIA"]
["64145","SANFORD-BURNHAM MEDICAL RESCH"]
["64146","INTL BRANGUS BREEDERS ASSN"]
["64147","LAWN INSTITUTE, THE"]
["64148","WALTON WELLNESS"]
["64149","FRIENDS GREAT SWAMP NTL REFUGE"]
["64150","RESEARCH FDTN MENTAL HYGIENE"]
["64151","SE COASTAL OCEAN OBSVG REG ASN"]
["64152","MINNESOTA HOMEOWNERSHIP CENTER"]
["64153","INTL PLANT NUTRITION INSTITUTE"]
["64154","INST RARE & NEGLECTED DISEASE"]
["64155","YASH GANDHI FOUNDATION I-CELL"]
["64156","MARCH OF DIMES"]
["64157","MARINE BIOLOGICAL LABORATORY"]
["64158","NAT ASS COUNTY& CITY HLTH OFC"]
["64159","GEORGIA ORNITHOLOGICAL SOCIETY"]
["64160","ALABAMA WHEAT & FEED GRAIN ASN"]
["64161","NORTH PACIFIC RESEARCH BOARD"]
["64162","SMITHSONIAN INSTITUTION"]
["64163","MANA NUTRITIVE AID PRODUCTS"]
["64164","TROUT UNLIMITED - NATIONAL OFC"]
["64165","TREATMENT RESEARCH INSTITUTE"]
["64166","MOUNT SINAI SCHOOL OF MEDICINE"]
["64167","CRDF GLOBAL"]
["64168","AMERICAN SOCIETY FOR QUALITY"]
["64169","COLLEGE ADVISING CORPS"]
["64170","PLANATION MGMT RSCH COOPERATIV"]
["64171","NATIONAL CORN GROWERS ASSN"]
["64172","CLARKSON UNIVERSITY"]
["64173","COUNCIL EDUC LANDSCAPE ARCHIT"]
["64174","GULF STATES MARINE FISHERIES C"]
["64175","OGEECHEE-CANOOCHEE RIVERKEEPER"]
["64176","GEORGIA FOOD BANK ASSN INC"]
["64177","HARVEY L NEIMAN HEALTH POLICY"]
["64178","US POULTRY & EGG ASSOCIATION"]
["64179","SREB BD CONTROL SOUTHERN RGN"]
["64180","UNIVERSITIES SPACE RESEARCH AN"]
["64181","STANFORD UNIVERSITY"]
["64182","SHEFFIELD HARROLD CHARITABLE T"]
["64183","SECOND WIND DREAMS"]
["64184","ATLANTA COMMUNITY FOOD BANK"]
["64185","TULANE UNIVERSITY"]
["64186","IUP RESEARCH INSTITUTE"]
["64187","CHARACTER LAB"]
["64188","ASSN PUBLIC & LAND-GRANT UNIV"]
["64189","UNIVERSITY OF PITTSBURGH"]
["64190","VENTUREWELL"]
["64191","US GOLF ASSOCIATION"]
["64192","CARTER CENTER INC"]
["64193","TOGETHER GA"]
["64194","ATHFEST INCORPORATED"]
["64195","GEORGIANS FOR A HEALTHY FUTURE"]
["64196","GEORGIA MUSIC FOUNDATION INC"]
["64197","SOC INTEGRATIVE & COMPARE BIOL"]
["64198","SERTOMA INC"]
["64199","WOODS HOLE OCEANOGRAPHIC INST"]
["64200","ANIMAL BEHAVIOR SOCIETY"]
["64201","ONE SUMTER ECONOMIC DEV FNDN"]
["64202","GIRLS INC COLUMBUS & PHENIX-RU"]
["64203","RIVER NETWORK"]
["64204","GOODWILL OF NORTH GEORGIA INC"]
["64205","VARIOUS-NONGIFT"]
["64206","VARIOUS-INCOME TYPE B,P,S,OR W"]
["64207","ANONYMOUS"]
["64208","KEEP TAMPA BAY BEAUTIFUL"]
["64209","MULTI-AGENCY ALLIANCE CHILDREN"]
["64210","GA ENVIRONMENTAL RESTORATION A"]
["64211","AMERICAN SOCIETY MAMMALOGISTS"]
["64212","UTAH WEED SUPERVISORS ASSN"]
["64213","ELECTRIC CITIES OF GEORGIA"]
["64214","CTR STATE & LOCAL GOVT EXCELLE"]
["64215","MIDDLE GEORGIA REGIONAL COMM"]
["64216","ELACHEE NATURE SCIENCE CENTER"]
["64217","GEORGIA CHAMBER OF COMMERCE"]
["64218","AMERICAN ASSN CLINICAL CHEMIST"]
["64219","HERPETOLOGISTS LEAGUE INC"]
["64220","SALK INST BIOLOGICAL STUDIES"]
["64221","GARRETT COLLEGE"]
["64222","AMERICAN RIVERS"]
["64223","COMPANION ANIMAL PARASITE CNCL"]
["64224","SOUTHEASTERN ASSN COMM ACTION"]
["64225","AMERICAN SIDS INSTITUTE"]
["64226","TRAINING & COUNSELING CTR @ST"]
["64227","ATHENS DOWNTOWN DEVELOPMENT AU"]
["64228","UOFGA ATHLETIC ASSOCIATION"]
["64229","UOFGA FOUNDATION"]
["64230","UOFGA RESEARCH FOUNDATION INC"]
["64231","ST JUDE CHILDREN'S RSRCH HOSP"]
["64232","SUSTAINABLE FORESTRY INITIATIV"]
["64233","GULF OF MEXICO RESEARCH INITVE"]
["64234","NATL ASSN SCHOOL PSYCHOLOGISTS"]
["64235","SARAH MOSS FELLOWSHIP FOUNDATN"]
["64236","ATHENS REGIONAL HEALTH SYSTEM"]
["64237","COBB CHAMBER OF COMMERCE"]
["64238","RICE UNIV"]
["64239","AM COLLEGE OF VET RADIOLOGY"]
["64240","FRIENDS STATE BOTANICAL GARDEN"]
["64241","BRADLEY UNIVERSITY"]
["64242","CTR CRAFT, CREATIVITY & DESIGN"]
["64243","INST ELECTRICAL & E ENGINEERS"]
["64244","AMERICAN ORNITHOLOGISTS' UNION"]
["64245","PHINIZY CENTER FOR WATER SCIEN"]
["64246","LET'S BE CLEAR GEORGIA INC"]
["64247","AZALEA SOCIETY OF AMERICA"]
["64248","BLAIRSVILLE-UNION CO CHAMBER"]
["64249","INTERFAITH CHILDRENS MOVEMENT"]
["64250","BUTLER HOSPITAL"]
["64251","QUALITY DEER MANAGEMENT ASSN"]
["64252","STOCKHOLM ENVIRONMENT INST"]
["64253","AMERICAN COLLEGE PERSONNEL ASN"]
["64254","ALBANY ADVOCACY RESOURCE CTR"]
["64255","GEORGIA ELECTRIC MEMBERSHIP CO"]
["64256","GA COLLEGE EMERGENCY PHYSICANS"]
["64257","ASSN SPANISH & PORTUGUESE HIST"]
["64258","QUALITY TRUST INDIV DISABILITI"]
["64259","INFECTIOUS DISEASE RESEARCH IN"]
["64260","SEED LIFE SKILLS"]
["64261","BROAD INSTITUTE INC"]
["64262","AM SOCIETY OF PARASITOLOGISTS"]
["64263","COMPANION ANIMAL NUTRITION & W"]
["64264","VINEYARD & WINERY ASSN OF W GA"]
["64265","AMERICAN PECAN COUNCIL"]
["64266","IOWA CORN GROWERS ASSOCIATION"]
["64267","PRESBYTERY OF GREATER ATLANTA"]
["64268","GREAT PROMISE PARTNERSHIP INC"]
["64269","WEED SCIENCE SOCIETY AMERICA"]
["64270","FOOD WELL ALLIANCE"]
["64271","GRATEFUL HEARTS MINISTRIES INC"]
["64272","LONGLEAF ALLIANCE INC"]
["64273","AMERICAN KENNEL CLUB"]
["64274","FOOD BANK OF NORTHEAST GEORGIA"]
["64275","INTERNATIONAL RSCH & EXCH BD"]
["64276","HERITAGE GARDEN CLUB"]
["64277","AMERICAN ANGUS ASSOC"]
["64278","NATIONAL GEOGRAPHIC SOCIETY"]
["64279","GEORGIA TECH RESEARCH CORP"]
["64280","AMERICAN DIALECT SOCIETY"]
["64281","RESEARCH TRIANGLE INSTITUTE"]
["64282","SIGMA XI SCIENTIFIC RSCH SOC"]
["64283","ASN EDUC JOURNALISM & MASS COM"]
["64284","BLASINGAME, BURCH, GARRARD & A"]
["64285","AMERICAN FLORAL ENDOWMENT"]
["64286","OAK RIDGE ASSOCIATED UNIV INC"]
["64287","SOCIETY OF TOXICOLOGY"]
["64288","ACADEMY OF APPLIED SCIENCE"]
["64289","PEW CHARITABLE TRUST"]
["64290","DUKE UNIVERSITY"]
["64291","HOWARD HUGHES MEDICAL INST"]
["64292","UT-BATTELLE LLC"]
["64293","NATL COLLEGIATE ATHLETIC ASSOC"]
["64294","NATL ACADEMY OF EDUCATION"]
["64295","AMER ASSN FOR ADVMENT SCIENCE"]
["64296","NATL COUN FOR AIR STREAM IMPRV"]
["64297","NATIONAL ACADEMY OF SCIENCES"]
["64298","GEORGIA FORESTRY ASN INC"]
["64299","GEORGIA MUNICIPAL ASSOCIATION"]
["64300","AMERICAN SOCIOLOGICAL ASSN"]
["64301","MARKETING SCIENCE INSTITUTE"]
["64302","ASSN COUNTY COMM`S OF GEORGIA"]
["64303","GA SCHOOL SUPERINTENDENTS ASN"]
["64304","INST CONT LEGAL EDUCATION GA"]
["64305","GA CITY-COUNTY MANAGEMENT ASSN"]
["64306","SCRIPPS RESEARCH INSTITUTE,THE"]
["64307","WAKE FOREST UNIVERSITY"]
["64308","NORTHEASTERN UNIVERSITY"]
["64309","JOHNS HOPKINS UNIVERSITY"]
["64310","NATURE CONSERVANCY  THE"]
["64311","BROWN UNIVERSITY"]
["64312","VARIOUS-NON-CORP GRANTS"]
["64313","AMERICAN MEAT INSTITUTE"]
["64314","CALIFORNIA INST OF TECHNOLOGY"]
["64315","BOSTON UNIVERSITY"]
["64316","INSTITUTE OF INTERNATIONAL ED"]
["64317","MASSACHUSETTS GENERAL HOSPITAL"]
["64318","AMERICAN SOCIETY OF AGRONOMY"]
["64319","MASSACHUSETTS INST OF TECH"]
["64320","J W JONES ECOLOGICAL RSCH CTR"]
["64321","AMER COUNCIL LEARNED SOCIETIES"]
["64322","GA GOVT FINANCE OFC ASSOC"]
["64323","NATIONAL CATTLEMEN'S BEEF ASSN"]
["64324","GEORGIA WATERMELON ASSN INC"]
["64325","UNIV SYSTEM OF GA FDN INC"]
["64326","HARVARD UNIVERSITY"]
["64327","VIDALIA ONION COMMITTEE"]
["64328","FLORIDA INSTITUTE TECHNOLOGY"]
["64329","MOTE MARINE LABORATORY"]
["64330","AMERICAN EDUCATIONAL RSCH ASSN"]
["64331","BROOKHAVEN NATIONAL LABS"]
["64332","C & M MASON TRUST"]
["64333","SRI INTERNATIONAL"]
["64334","UNITED NEGRO COLLEGE FUND"]
["64335","CASE WESTERN RESERVE UNIV"]
["64336","SOUTH CAROLINA PEACH COUNCIL"]
["64337","NATL RENEWABLE ENERGY LABRATRY"]
["64338","ASSOC FOR INSTITUTIONAL RSCH"]
["64339","RIVERBANKS ZOOLOGICAL PARK"]
["64340","WEST VIRGINIA UNIV RSCH CORP"]
["64341","SPACE TELESCOPE SCIENCE INST"]
["64342","SOUTHERN REGION SM FRUIT CONS"]
["64343","COMMONWEALTH TRADING PARTNERS"]
["64344","GEORGIA TRANSMISSION CORP"]
["64345","BAT CONSERVATION INTERNATIONAL"]
["64346","FRIENDS OF COASTAL GARDENS"]
["64347","KLEINSCHMIDT ASSOCIATES"]
["64348","NATIONAL WRITING PROJECT"]
["64349","UGA REAL ESTATE FOUNDATION"]
["64350","ILLINOIS INSTITUTE OF TECHNLGY"]
["64351","COLUMBIA UNIVERSITY"]
["64352","NATL ENDOWMT FOR FINANCIAL EDU"]
["64353","CORPORATION FOR NATL & COMM SV"]
["64354","ORGANIZATION FOR AUTISM RESRCH"]
["64355","COTTON INCORPORATED"]
["64356","UNITED WAY OF METRO ATLANTA"]
["64357","BOSTON COLLEGE"]
["64358","W E UPJOHN INST EMPLOYMT RSCH"]
["64359","CHILDREN'S HEALTHCARE ATLANTA"]
["64360","SOUTHERN REGION IPM CENTER"]
["64361","ENVIRONMENTAL INST FOR GOLF"]
["64362","SEA GRANT CONSORTIUM"]
["64363","GEORGIA CATTLEMEN'S ASSN"]
["64364","WABASH COLLEGE"]
["64365","TIAA-CREF INSTITUTE"]
["64366","COUNCIL ON ALCOHOL & DRUGS -GA"]
["64367","NATIONAL ACADEMIES KECK FUTURE"]
["64368","UNIVERSITY OF NOTRE DAME"]
["64369","UCHICAGO ARGONNE LLC"]
["64370","GEORGIA CENTERS OF INNOVATION"]
["64371","FLINT RIVER SOIL & WATER CONSV"]
["64372","SOC FOR THE STUDY OF SCHL PSYC"]
["64373","NATIONAL WATERMELON ASSOCIATN"]
["64374","LEGACY LINK INC, THE"]
["64375","FRED HUTCHINSON CANCER RSCH CT"]
["64376","INTERNTL FOOD POLICY RSCH INST"]
["64377","A P SLOAN FOUNDATION"]
["64378","CALLAWAY FOUNDATION INC"]
["64379","CYSTIC FIBROSIS FOUNDATION"]
["64380","FORD FOUNDATION"]
["64381","GEORGIA 4-H FOUNDATION"]
["64382","KETTERING FOUNDATION"]
["64383","MORRIS ANIMAL FOUNDATION"]
["64384","SLOAN FOUNDATION"]
["64385","SPENCER FOUNDATION"]
["64386","TEXAS A&M RESEARCH FOUND"]
["64387","WORMSLOE FOUNDATION"]
["64388","RESCH FDN STATE UNIV NEW YORK"]
["64389","PEANUT FOUNDATION"]
["64390","GA TURF GRASS FOUNDATION, INC"]
["64391","WILLIAM T GRANT FOUNDATION"]
["64392","ANDREW W MELLON FOUNDATION"]
["64393","AMERICAN CHESTNUT FOUNDATION"]
["64394","INTEL FOUNDATION"]
["64395","WATER ENVIRONMENT RESEARCH FDN"]
["64396","HENRY LUCE FOUNDATION"]
["64397","CAMILLE & HENRY DREYFUS FD INC"]
["64398","GEORGIA POWER FOUNDATION"]
["64399","TINKER FOUNDATION  THE"]
["64400","EURASIA FOUNDATION  THE"]
["64401","TURNER FOUNDATION INC"]
["64402","NATL FISH & WILDLIFE FDN"]
["64403","GSU RESEARCH FOUNDATION INC"]
["64404","FRANK W NORRIS FOUNDATION"]
["64405","UNIV OF KENTUCKY RESEARCH FDN"]
["64406","ROBERT WOOD JOHNSON FOUNDATION"]
["64407","ATLANTA HISTORY CENTER"]
["64408","HENRY M. JACKSON FOUNDATION"]
["64409","GA SOUTHERN UNIV RSRCH &SVC FN"]
["64410","ZEIST FOUNDATION INC"]
["64411","ALTERNATIVES RESCH & DEV FNDTN"]
["64412","COMMUNITY FNDN GREATER ATLANTA"]
["64413","MADDIES FUND THE PET RESCUE FN"]
["64414","ATHENS AREA COMMUNITY FDN"]
["64415","VET EMERGENCY & CRITICAL CARE"]
["64416","SOCIETY INDUST & ORG PSYCHOLOG"]
["64417","GA GOLF ENVIRONMENTAL FNDTN IN"]
["64418","KENNESAW STATE U RSCH & SVC FN"]
["64419","TRADITIONAL MEDICINALS FOUNDTN"]
["64420","SIMONS FOUNDATION"]
["64421","NATIONAL MARINE SANCTUARY FNDN"]
["64422","CLIF BAR FAMILY FOUNDATION"]
["64423","CROPLIFE FOUNDATION"]
["64424","EXTENSION FOUNDATION"]
["64425","CLARKSTON DEVELOPMENT FOUNDTN"]
["64426","ALBERT AND ELAINE BORCHARD FND"]
["64427","UTAH STATE UNIVERSITY RSCH FND"]
["64428","FROZEN FOOD FOUNDATION"]
["64429","AZALEA RESEARCH FOUNDATION"]
["64430","OKLAHOMA STATE UNIV FOUNDATION"]
["64431","SANTA ELENA FOUNDATION"]
["64432","SALES EDUCATION FOUNDATION"]
["64433","R HOWARD DOBBS JR FOUNDATION"]
["64434","J F MADDOX FOUNDATION"]
["64435","ABRAHAM BALDWIN AGR COLLEGE FN"]
["64436","WINN FELINE FOUNDATION"]
["64437","CONSUMER FEDERATN OF AMER FNDN"]
["64438","HEALTHCARE GEORGIA FOUNDATION"]
["64439","GRAYSON-JOCKEY CLUB RSCH FNDTN"]
["64440","FREEMAN FOUNDATION"]
["64441","TEMPLETON FOUNDATION"]
["64442","GORDON AND BETTY MOORE FNDTN"]
["64443","UNIVERSITY OF MARYLAND FDN INC"]
["64444","CHILDREN'S GLAUCOMA FOUNDATION"]
["64445","HOLSTEIN FOUNDATION"]
["64446","ACVO VISION FOR ANIMALS FNDTN"]
["64447","BURROUGHS WELLCOME FUND"]
["64448","BILL & MELINDA GATES FNDTN"]
["64449","AMERICAN QUARTER HORSE FNDTN"]
["64450","SCHLUMBERGER FOUNDATION"]
["64451","RAY C ANDERSON FOUNDATION"]
["64452","SOFT BONES FOUNDATION"]
["64453","W M KECK FOUNDATION"]
["64454","LYNDA BRANNEN WILLIAMSON FNDTN"]
["64455","SCHMIDT FAMILY FOUNDATION"]
["64456","UNFI FOUNDATION"]
["64457","LAURA & JOHN ARNOLD FOUNDATION"]
["64458","HISTORIC MACON FOUNDATION INC"]
["64459","ASHTON HOPE KEEGAN FOUNDATION"]
["64460","GULF COAST COMMUNITY FOUNDATN"]
["64461","BINATL AGRI RSCH & DEV FUND"]
["64462","WORLD HEALTH ORGANIZATION"]
["64463","MALAYSIAN PALM OIL BOARD"]
["64464","INTL MAIZE & WHEAT IMPRV CTR"]
["64465","BAYER CROPSCIENCE"]
["64466","WELLCOME TRUST  THE"]
["64467","BOEHRINGER INGELHEIM INC."]
["64468","GLAXOSMITHKLINE"]
["64469","ASTRAZENECA"]
["64470","DSM NUTRITIONAL PRODUCTS INC"]
["64471","UNIVERSITY OF QUEENSLAND, THE"]
["64472","CHINA NORTH INDUSTRIES-NORINCO"]
["64473","GRASSLANZ TECHNOLOGY"]
["64474","CEVA SANTE ANIMALE"]
["64475","ELSEVIER LIMITED"]
["64476","DANISCO UK LTD"]
["64477","R STICAS DEL GUADALQUIVIR"]
["64478","IMPERIAL COLLEGE SCI TECH &MED"]
["64479","UNIVERSITY OF BRITISH COLUMBIA"]
["64480","DRUGS NEGLECTED DISEASES INIT"]
["64481","COMMONWLTH SCI & INDL RSCH ORG"]
["64482","NESTLE INSTITUTE OF HEALTH SCI"]
["64483","CAUCASECO SCIENTIFIC RSCH CTR"]
["64484","UNIVERSITY OF MANITOBA"]
["64485","EVONIK INDUSTRIES AG"]
["64486","ASSC BRASILEIRA CRIADORES ZEBU"]
["64487","PLYMOUTH UNIVERSITY"]
["64488","UNIVERSITE DE TOULOUSE"]
["64489","UNIV PERUANA CAYETANO HEREDIA"]
["64490","HOGANAS AB"]
["64491","HOPEWELL CO LTD"]
["64492","PROQR THERAPEUTICS NV"]
["64493","CARIBBEAN PUBLIC HEALTH AGENCY"]
["64494","BAYER HEALTHCARE AG"]
["64495","UNIVERSITY OF LIVERPOOL"]
["64496","SANOFI"]
["64497","ACCENTURE PIC"]
["64498","UNIVERSITY HEALTH NETWORK"]
["64499","CJ GROUP"]
["64500","UNIVERSITY OF PORTSMOUTH"]
["64501","PWANI UNIVERSITY"]
["64502","UNITED NATIONS ENVIRONMENT PRG"]
["64503","CTC BIO CO LTD"]
["64504","DEPT OF CANADIAN HERITAGE"]
["64505","EQUILIBRIUM ENVIRONMENTAL INC"]
["64506","PLEMDAT SRO"]
["64507","INSTITUTO POLITECNICO NACIONAL"]
["64508","FACE FOUNDATION"]
["64509","LINNAEUS UNIVERSITY"]
["64510","INTERNATIONAL GROWTH CENTRE"]
["64511","CTR SCI RSCH & ED AT ENSENADA"]
["64512","CAYMAN TURTLE CENTRE"]
["64513","MEDICINES FOR MALARIA VENTURE"]
["64514","ADC THERAPEUTICS SA"]
["64515","ODI SALES LTD"]
["64516","DELTA WATERFOWL FOUNDATION"]
["64517","TRES CANTOS OPEN LAB FOUNDATN"]
["64518","AO FOUNDATION"]
["64519","AUSTRALIAN ORCHID FOUNDATION"]
["64520","EWHA UNIV INDUSTRY COLLAB FND"]
["64521","Watson Brown Foundation"]
["64522","Wormsloe Foundation #2"]
["64523","The Hodge Foundation Inc"]
["64524","GWINNETT ENVMTL & HERITAGE CTR"]
["64525","GILMER CO CHAMBER OF COMMERCE"]
["64526","COLQUITT REGIONAL MEDICAL CTR"]
["64527","JACKSON CO HABITAT HUMANITY"]
["64528","CITY OF PEACHTREE CORNERS"]
["64529","POULTRY SCIENCE ASSOCIATION"]
["64530","ROCKEFELLER UNIVERSITY"]
["64531","ALLIANCE POTATO RESEARCH & EDU"]
["64532","UGARF MEDIA HOLDINGS LLC"]
["64533","ARCH FOUNDATION"]
["64534","LEADERSHIP ALBANY INC"]
["64535","LOUISVILLE PRESBYTERIAN THEOLO"]
["64536","GREATER DALTON CHAMBER COMMERC"]
["64537","YALE UNIVERSITY"]
["64538","GA PRTNSHP FOR EXCELLNCE IN ED"]
["64539","GEORGE WASHINGTON UNIVERSITY"]
["64540","NATIONAL PORK BOARD,THE"]
["64541","CRADLE OF FORESTRY IN AMERICA"]
["64542","COUNCIL ON SOCIAL WORK EDUCATN"]
["64543","GEORGIA BAR FOUNDATION INC"]
["64544","GRAHAM FOUNDATION"]
["64545","FOOD AND AG ORG OF THE UN"]
["64546","PLEMDAT SRO"]
["64547","STATE NUCLEAR SEC TECH CTR PR"]
["64F16","UGARF Faculty Research 2016"]
["64F17","UGARF Faculty Research 2017"]
["64F18","UGARF Faculty Research 2018"]
["64F19","UGARF Faculty Research 2019"]
["64F20","UGARF Faculty Research 2020"]
["64F21","UGARF Faculty Research 2021"]
["64F22","UGARF Faculty Research 2022"]
["64F23","UGARF Faculty Research 2023"]
["64F24","UGARF Faculty Research 2024"]
["64F25","UGARF Faculty Research 2025"]
["64F26","UGARF Faculty Research 2026"]
["64ICR","UGARF Indirect Cost Return"]
["64INT","Interest Income"]
["64PEL","Pell Grants"]
["64PGI","Program Income"]
["64RBP","Residual Balance"]
["64RYT","Royalty Income"]
["64S01","Study Abroad - General Fund"]
["64S02","Accounting Excellence Schshp"]
["64S03","General Scholarship Fund"]
["64S04","Farm Credit Bank Col Schshp"]
["64S05","Agriculture - Various"]
["64S06","Joel Hirsch Goldberg Mem Fund"]
["64S07","CFCS - Various"]
["64S08","Jones S M Scholarship"]
["64S09","Prentiss Courson Schship"]
["64S10","Poultry Scholarship"]
["64S11","Presser Foundation"]
["64S12","Freeman Scholarship"]
["64S13","Redcoat Band Sch-Athletic"]
["64S14","Yancey Goodloe Scholarship"]
["64S15","Burgess Scholarship Fund"]
["64S16","Student Activities - Various"]
["64S17","Sch Forest Resources - Various"]
["64S18","Charles A Adams Scholarship"]
["64S19","Cynthia Curtis Scholarship"]
["64S20","Insurance Scholarship Fund"]
["64S21","Real Estate Scholarship Fund"]
["64S22","Horticulture - Various"]
["64S23","Ruth Janz Randle Estate Gift"]
["64S24","Berner Scholarship"]
["64S25","Action Inc Headstart Sch Fund"]
["64S26","USG Foundation Need Based Sch"]
["64S27","Law Scholarship-Various"]
["64S28","James D Eunice Memorial Sch"]
["64U01","UGARF Startup"]
["64U02","UGARF Research Support"]
["64U03","UGARF CMM Hiring Initiative"]
["64U04","UGARF Distinguished Rsrch Prof"]
["64U05","UGARF Presidential Graduate Fe"]
["64U06","UGARF Intigrated Life Science"]
["64U07","UGARF UGA-CDC Seed Grants"]
["64U08","UGARF Presidential Hiring Init"]
["64U09","UGARF Chu- Research Fund"]
["64U10","UGARF Chu Anti-Viral Fund"]
["64U11","UGARF Animal Health Fund"]
["64U12","UGARF 12"]
["64U13","UGARF 13"]
["64U14","UGARF 14"]
["64U15","UGARF 15"]
["64URF","UGA Research Foundation"]
["65000","Sponsored-Endowment"]
["65600","VERA STONE SCHOLARSHIP FUND"]
["65601","BARBARA C JOSLIN VET MED SCH"]
["65602","MARY KATHLEEN OWNBY"]
["65603","ELIZABETH SUZANNE SCHAEFER"]
["65604","KNIGHT FOUNDATION"]
["65605","JAN L BRANHAM ENDOWMENT FUND"]
["65606","JAMES G BOSWELL FOUNDATION TRU"]
["65607","JOSEPH B GITTLER FELLOWSHIP"]
["65608","STEVE MAGLIO SCHOLARSHIP"]
["65609","JOHN C & LENA B O ROWAN MEM"]
["65610","GERALDINE A PATRICK SCHOLARSHP"]
["65611","DAR MCCURRY RICHMOND WALTON"]
["65612","DAR TALMADGE MAY E"]
["65613","DAR MEMORIAL"]
["65614","DAR ELIJAH CLARKE"]
["65615","M E POWELL THRELKELD ENDOWMENT"]
["65616","ROBERTA A ALLEN MEM SCHOLARSHP"]
["65617","DR WALTER F MCLENDON MEMORIAL"]
["65618","SHANNON LAY MEMORIAL ENDOWMENT"]
["65619","MERCK & CO SCHOLARSHIP FUND"]
["65620","PATRICIA LYNN BURTON ENDOWMENT"]
["65621","Grace Charlene Fram Memorial"]
["65622","Benton Barr Endowment"]
["65623","Law Dames Scholarship Fund"]
["65624","McCarthy Crenshaw Memorial"]
["65703","FRANKLIN COLLEGE"]
["65709","GRACE WALTER J"]
["65712","LAND SCRIP"]
["65715","MAGERS EDMUND GENERAL"]
["65716","WINSHIP NUNNALLY"]
["65717","JUDY D LOVELESS"]
["65718","SAM ADAMS DORSEY"]
["65719","GENERAL UNRESTRICTED GIFTS"]
["65730","ROBERT HILL MEMORIAL FUND"]
["65731","ROBERT HILL MEMORIAL ENDOWMENT"]
["65732","JUDITH SCHWARTZ FUND"]
["65733","JOANN TOLLERSON GOODMAN FUND"]
["65734","EMMALENE SMITH CLIENT SPT FUND"]
["65750","VET MED DEVLPMNT SUPPORT FUND"]
["65751","PHYLLIS LEFFLER - BUS SCH"]
["65752","ALUMNI LIBRARY"]
["65753","DOROTHY SIMMONS ODELL FUND"]
["65754","ALUMNI YMCA"]
["65755","SANDY BEAVER ENDOWMENT BONDS"]
["65756","BOCOCK W H"]
["65757","JAMES C CANTRELL FUND"]
["65758","BROCKMAN CHARLES J"]
["65759","GRAHAM PERDUE TRUST"]
["65760","CUNNINGHAM GEORGE V"]
["65761","JUDGE JOEL J FRYE MEM LAW LIB"]
["65763","FOUNDERS MEM GARDEN TRUST FUND"]
["65764","HARGRETT LIBRARY FUND"]
["65765","THE H B HENDERSON TRUST"]
["65766","LAMAR WILLIAM PENDLETON"]
["65767","LANGSTON H STANLEY MEMORIAL"]
["65768","LIBRARY SUPPORT TRUST FUND"]
["65769","LOKEY AND BOWDEN MEM BOOK FUND"]
["65770","LUMPKIN LAW SCHOOL"]
["65771","JOHN B MARTIN CHAIR"]
["65772","MCCAY CHARLES F"]
["65773","HAROLD M HECKMAN CHAIR PBL ACT"]
["65774","MCKAMY DAVID KNOX LIBRARY"]
["65775","JASPER N DORSEY CH PUB UTL ECN"]
["65776","REDFEARN D H ARCH"]
["65777","RICHARD B RUSSELL CHAIR"]
["65778","RELIGION ON CAMPUS-DANFORTH"]
["65779","COLL OF VET MED COMP MED RES"]
["65780","SMITH JENNIE"]
["65781","GEORGE F PEABODY RADIO AWARD"]
["65782","TERRELL WILLIAM"]
["65783","J M TULL CHAIR OF ACCTG TRUST"]
["65784","GEORGIA SAVINGS & LOAN CHAIR"]
["65785","THE THORNTON TRUST"]
["65786","VINCENT ELEANOR FERGUSON"]
["65787","MARINE EXT SERVICE TRUST FUND"]
["65788","WASHINGTON J H R SCIENCE LIB"]
["65789","BYRON F SNYDER TRUST"]
["65790","MARTHA J KAPLAN GRAD STU FD"]
["65791","DR. BRYAN PHARMACY SCHOOL"]
["65793","SUE W CROMARTIE ART EDUCATION"]
["65794","SUE W CROMARTIE ELEMENTARY EDU"]
["65795","SERCAT SUPPORT FUND"]
["65796","FREDERICK WITTOP"]
["65797","JACKSON STREET CEMETERY FUND"]
["65799","ETTA ARNTZEN LIBRARY SUPPORT"]
["65800","ALVIN & JEAN COOLEDGE SCHOLAR"]
["65801","ATLANTA BOARD OF REALTORS SCH"]
["65802","TROY A ATHON JR MEM SCHOL FUND"]
["65803","BISCOE ALVIN B COLLEGE OF BUS"]
["65804","AUGUSTA H & GRACE A BARRETT SC"]
["65805","DAVENPORT SCHOLARSHIP FUND"]
["65806","BRYAN WILLIAM JENNINGS PRIZE"]
["65807","GA DAIRY MEM FDN FUND"]
["65808","CASTELLOW BRYANT T MEMORIAL"]
["65809","CHATHAM MARY BATES SCHOLARSHIP"]
["65810","CLAUDE P CALLISON ML"]
["65811","KIP CRAVEN MEM SCHOLARSHIP FND"]
["65812","FLOYD STEWART CORBIN SCHOL"]
["65813","CONSTANGY F A MEM SCHOL FUND"]
["65814","JAMIE CONNELL ANNUAL MEM AWARD"]
["65815","CONNALLY JOE BROWN SCHOLARSHIP"]
["65816","DRIFTMIER R H AWARD"]
["65817","FAYETTE BD OF REALTORS SCHOL"]
["65818","FRANKLIN GEO RUSH SCHOLARSHIP"]
["65819","LARRY L GOLDEN MEM FUND"]
["65820","PRICE GILBERT JR SCHOLARSHIP F"]
["65821","GEORGIA BANKERS ASSOCIATION"]
["65822","GA CHAPTER WOMEN COUNC REALTOR"]
["65823","GEORGIA ASSOC OF REALTORS SCH"]
["65824","GA POWER AG ENG FRESHMAN SCHOL"]
["65825","GNANN HENRY M SCHOLARSHIP"]
["65826","GRACE HARTLEY SCHOLARSHIP FUND"]
["65827","HARRIS JAMES COFFEE AWARD"]
["65828","ISAKSON ANDREW SCHOL FUND"]
["65829","G E HENDERSON AWARD"]
["65830","JOHNSON KARL MEM SCHOLORSHIP"]
["65831","JOHNSON MARTHA JO WALKER MEM"]
["65832","DUDLEY MAYS HUGHES SCHOLARSHIP"]
["65833","JONES JEROME MEMORIAL AFL-CIO"]
["65834","F &E JORDAN SCHOLARSHIP FUND"]
["65835","DEL JONES MEMORIAL TRUST"]
["65836","KITZINGER GEORGE D ANNUAL"]
["65837","EUNICE RUSTIN LAMBERT SCHOL"]
["65838","LEVY JOHN SANFORD MEMORIAL"]
["65839","MCWHORTER HAMILTON PRIZE"]
["65840","VIRGINIA WILBANKS KILGORE SCH"]
["65841","JAMES B BURCH SCHOL FUND"]
["65842","MEINHARD ISAAC MEMORIAL AWARD"]
["65843","FAY-BOND HINRICKS SCHOL"]
["65844","FORBES LEADERSHIP AWARDS"]
["65845","MICHAEL BERT SCHOLARSHIP"]
["65846","BARKER TERRY F SCHOLARSHIP"]
["65847","ROY B DAY SCHOL"]
["65848","MUSIC SCHOLARSHIP"]
["65849","LOIS DOWDLE COBB SCHOL"]
["65850","NUTTY COMBE PRIZE"]
["65851","DOROTHY L. NELMS SCHOLARSHIP"]
["65852","RAYMOND PAYNE MEMORIAL FUND"]
["65853","DONALD RALPH PRESCOTT ENDW FND"]
["65854","PHELPS-STOKES"]
["65855","EDWIN D PUSEY PRIZE"]
["65856","WILLIAM I RAY JR SCH FUND"]
["65857","RICHMOND HENRY L CHEM FELLOW"]
["65858","FLORA ROGERS SCHOLARSHIP FUND"]
["65859","JULIA PARKER SCHOLARSHIP FUND"]
["65860","RUSSELL HORACE B PRIZE"]
["65861","SEMENOW ROBERT W SCHOL FUND"]
["65862","SHELDON ROBERT A MEMORIAL"]
["65863","SHEURING JOHN J MEMORIAL"]
["65864","WILLIAM M SHENKEL SCHOL FUND"]
["65865","SLAUGHTER VARINA AND L B SCHFD"]
["65866","SMITH HOKE MEMORIAL"]
["65867","PAUL ASHLEY SIMON MEM SCH FUND"]
["65868","CARRIE G PERRY SCHOL"]
["65869","SMITH MARTIN REYNOLDS"]
["65870","GEORGE ERWIN KEEN SCHOL FUND"]
["65871","THOMAS F COMER SCHOL"]
["65872","PEYTON T ANDERSON SCHOLARSHIP"]
["65873","BILL PHIPPEN SCHOLARSHIP"]
["65874","WM & FLORENCE MCFARLANE SCHOL"]
["65875","STODDARD-BURLEIGH-SUTTON SCHOL"]
["65876","SCOTT TORGESEN MEMORIAL FUND"]
["65877","STEPHEN C TATE SCHOLARSHIP FD"]
["65878","TROTTI LAMAR JR SCHOLARSHIP"]
["65879","ALBON B HAILEY SCHOLARSHIP"]
["65881","UNIV LAW CLASS 1933 MEM"]
["65882","WSB RADIO AWARD"]
["65883","BYRON WARNER MEN'S GLEE CLUB"]
["65884","WILLCOX CECIL PRIZE"]
["65885","STARR WHEELER MEMORIAL TRUST"]
["65886","GEORGE R. GILMER"]
["65887","ZIMMER HERBERT PSYCHOLOGY"]
["65888","ORLIN KENYON FLETCHER JR SCHOL"]
["65889","DANA BLACKMAR SCHOLARSHIP"]
["65890","BATTS MEMORIAL FUND"]
["65891","JEM SINHA MBA SCH-INTNTL BUS"]
["65892","DAN M POST SCHOLARSHIP"]
["65893","FRANK G LITTLE SCHOL"]
["65894","CM & BERNICE C STRIPLING SCHOL"]
["65895","M E MCCULLOUGH SCHOL FUND"]
["65896","JACK F AND SUSAN C RISSMAN SCH"]
["65897","RICHARD BARNAM HICKMAN SCHOL"]
["65898","CDR WILLIAM M MCEVER SCHOL"]
["65899","GRACE H BARNES SCHOL"]
["65901","S. H. MORRISON FUND"]
["65903","BRAND CHARLES HILLYER MEMORIAL"]
["65906","BROWN CHARLES MCDONALD"]
["65909","BROWN HENRY WARREN MEMORIAL"]
["65912","BULLARD B F"]
["65921","DENMARK WILLIAM STARK MEMORIAL"]
["65924","DODD EUGENE AND HARRY"]
["65925","WILLIAM L GRAYSON SCH LOAN FD"]
["65927","KING CLYDE L JR AND JOHN"]
["65933","LUMPKIN JOSEPH H SCHOLARSHIP"]
["65936","MOON C A AND H B T"]
["65939","MOON PEARL CAMPBELL"]
["65942","PHILLIPS BEN Z LAW SCHOLARSHIP"]
["65945","REED ALBON WILLIAM MEMORIAL"]
["65948","THOMPSON BERRYMAN T EDUC"]
["65960","KRISTINA SCHWENSEN SCHOLARSHIP"]
["65963","MARY L & CLAUD B BARRETT SCHOL"]
["65966","CHURCHILL A F MEMORIAL"]
["65967","CITIZENS & SOUTHERN NATL BANK"]
["65969","COMER EDWARD T"]
["65972","DAWSON EDGAR GILMER"]
["65975","FORBES WALTER T SR MEMORIAL"]
["65978","GALLAHER EBB W"]
["65979","H M HECKMAN JR MUSIC LOAN FUND"]
["65980","JOHN H HOSCH JR FUND"]
["65981","LAMAR J RUCKER SCHOLARSHIP"]
["65984","MITCHELL THOMAS E EDUCATIONAL"]
["65986","MILTON M RATNER SCHOLARSHPLOAN"]
["65987","TUCKER FRANCES CLEMENTINE"]
["65988","WILLIAM J JR & AMMA W RUSSELL"]
["65989","WILLIAM J IV & ADDIE D RUSSELL"]
["65990","UNIVERSITY THEATRE"]
["65992","R J WARD MEMORIAL FUND"]
["65993","WILLCOX CECIL"]
["67001","WILLSON CNTR ENDSMITH"]
["67002","GA POWER GRADY WELLS"]
["67003","BOOK SUPPORTERS"]
["67004","PRESS COLEMAN WELLS"]
["67005","THE PRESS DISCR"]
["67006","UGA PRESS FRNDS MOREH"]
["67007","BYRNECE PURCELL EILAN"]
["67008","GREEN END EILAN"]
["67009","GREEN SYMPOSIUM MACE"]
["67010","COLLECTORS FUND MOREH"]
["67011","GMOA DESDIRCIR"]
["67012","WEIGERT MEMORIALWHITT"]
["67013","NAT HISTORY ED FREEM"]
["67014","DEAN STUD REST WILSO"]
["67015","C&G ANNUAL FUND MOREH"]
["67016","C&G MURPHY FUND MOREH"]
["67017","CAES ACAD-BERTRAANGLE"]
["67018","ORGANIC AG PRG ANGLE"]
["67019","DAVIS JEWISH ST FRIED"]
["67020","ISLAMIC STUDIES STOKE"]
["67021","ISRAEL IST VIS PDORSE"]
["67022","CTR RSCH & ENGAGDORSE"]
["67023","UNIVFND-DODD"]
["67024","BLDNG SPPRT FND STOKE"]
["67025","FY12 MICHAEL AWDRUPPE"]
["67026","ART DISCRETION DORSE"]
["67027","NIX PHOTO FND DORSE"]
["67028","ART HISTORY SUPTDORSE"]
["67029","LUPIN GALLRY FNDDORSE"]
["67030","LUPIN FDN TEC RSDORSE"]
["67031","VISUAL ART FND DORSE"]
["67032","PHOTO FAC EQUP DORSE"]
["67033","FABRIC DESIGN SUDORSE"]
["67034","ART ODYSSEY SPT DORSE"]
["67035","LDSOA PROJ FND DORSE"]
["67036","SCIENCE ILLUSTR DORSE"]
["67037","LARS LJUNGDAHL DORSE"]
["67038","CLASSIC FD STIP DORSE"]
["67039","WHEATLEY-THEATRESTOKE"]
["67040","FY12 MICHAEL AWDRUPPE"]
["67041","NEW GEORGIA END DORSE"]
["67042","LANIER CHAIR UGA FDN"]
["67043","S GOODMAN PROF WILLI"]
["67044","WILLSON PROF KRETZ"]
["67045","EIDSON PROF ANDER"]
["67046","HAMILTON HOLMES ANDER"]
["67047","ENGLISH FUND HILTO"]
["67048","METHVIN PROF S LDORSE"]
["67049","GERM/SLAV MICHAEDORSE"]
["67050","STEER PROFESSOR DORSE"]
["67051","KADE FND GRT DORSE"]
["67052","CORTONA FRIENDS STOKE"]
["67053","GREGORY CHAIR INDORSE"]
["67054","SPALDING PROF HISTRY"]
["67055","BALDWIN PROF ANDER"]
["67056","SAYE PROF ROBER"]
["67057","PHINIZY LECTURE PRATT"]
["67058","GREG GRAD STUD DORSE"]
["67059","M COULTER PROF"]
["67060","BARROW PROF-MATH"]
["67061","HEYWARD PROF MUS CROWE"]
["67062","PROKASY PROF ARTANDER"]
["67063","KARLAS PROF ZIMDA"]
["67064","ANDERSON PROFESSBURCH"]
["67065","ARCO SUPPORT RUPPE"]
["67066","HOVERLAND CHORALDORSE"]
["67067","HOVELAND OPERA FDORSE"]
["67068","NEW MUSIC SUP DORSE"]
["67069","BOYD PRF CHOR MSDORSE"]
["67070","PHYSICS"]
["67071","ARCH PRF PB INT LINDQ"]
["67072","GA ATH ASC PRF LINDQ"]
["67073","SPIA FAC SUP FNDLINDQ"]
["67074","LAUTH GRAD FND LINDQ"]
["67075","APPLIED ASSISTANKUHNE"]
["67076","HHSOM DEVELP DH RUPPE"]
["67077","INTERNATNAL LEC STOKE"]
["67078","GA DEBATE UNION"]
["67079","SPEECH COM FDN RUPPE"]
["67080","STAT MICHAEL STOKE"]
["67081","COHEN STATISTICSDORSE"]
["67082","ROBERT ARNOLD PROF"]
["67083","COUSINS-PROF BUS ETH"]
["67084","STERNE CHAIR-POULSEN"]
["67085","BEADLES PROF- SNOW"]
["67086","LE RAST PROF-BOSTROM"]
["67087","COCA COLA CHAIR BHARA"]
["67088","SELIG CHAIR OF ECO"]
["67089","DO/UGF IN&OUT SUMIC"]
["67090","BECKHAM WORK DIVSUMIC"]
["67091","WILSON CHAIR COLQU"]
["67092","FEINBERG FACULT SUMIC"]
["67093","TCB BUILDING SUMIC"]
["67094","DIVERSITY SUMIC"]
["67095","G P BENSON CH TIAYERS"]
["67096","H BLACK SUP PHD AYERS"]
["67097","SANFORD CH STEUER"]
["67098","TERRY CHAIR #1 GOODH"]
["67099","TERRY DIST CHAIR B/AD"]
["67100","TERRY CHAIR #2 MUNNE"]
["67101","TERRY CHR #5 MASON"]
["67102","TANNER CHAIR HULLA"]
["67103","HECKMAN CHAIR BAMBE"]
["67104","FUQUA DIST CHAI WATSO"]
["67105","SYNOVUS CHAIR FELDM"]
["67106","EDWARDS CHAIR GAVER"]
["67107","MIS EXCELLENCE MARAB"]
["67108","CISL MARAB"]
["67109","TERRY ENTREPRENEKNAPP"]
["67110","ACCT EXCELLENCE/GEN"]
["67111","EARL DAVIS CHAIRAYERS"]
["67112","SCH ACCT ASTNT SUMIC"]
["67113","SOLMS FMLY FAC AYERS"]
["67114","MILLER CHAIR BAGIN"]
["67115","GA BANKERS CHAI NETTE"]
["67116","BB&T SUPPORT SUMIC"]
["67117","BF ENRICH SUMIC"]
["67118","HILL A. FEINBERGAYERS"]
["67119","HAWKINS INVEST EBYERS"]
["67120","RAMSEY CTR PVT ENT"]
["67121","EC ENRICH FD LASTR"]
["67122","BONBRITE CNT PU AYERS"]
["67123","MGMT EXCELLENCE AYERS"]
["67124","CBA CNTR MKT STUDIES"]
["67125","CNTR MARKETING SUMIC"]
["67126","MRKTNG DEPT FND GUSTA"]
["67127","UNDERGRAD SUPPORSUMIC"]
["67128","MBA ADMIN FND KNAPP"]
["67129","INSURANCE/RISK SUMIC"]
["67130","LEGAL STUDIES SUMIC"]
["67131","RMI INT'L FELW SUMIC"]
["67132","SPENC RSK MGMT AYERS"]
["67133","DELTA INSUR FND AYERS"]
["67134","REAL EST FAC FELAYERS"]
["67135","D MOORE CHAIR INS"]
["67136","SELIG CTR ECON GHUMPH"]
["67137","GA VET SCHOLARS ALLEN"]
["67138","PRACTICE MANAGE ALLEN"]
["67139","VET MED ORIENT ALLEN"]
["67140","VET ED RESOURC ALLEN"]
["67141","BRADBERRY EQUIP ALLEN"]
["67142","JOY FUND ALLEN"]
["67143","FACULTY SUPPORT KENNE"]
["67144","D.O. DISCRET KENNE"]
["67145","CLASE PROF DEV KENNE"]
["67146","TORRANCE PROFESSKENNE"]
["67147","READING EDUC FECHO"]
["67148","SPORT MGMT SUPP BUCKW"]
["67149","EPSY-SCOTT GRADUNEUHA"]
["67150","RICE GRAD STD SPKENNE"]
["67151","CLASSRM PROJ KENNE"]
["67152","ETAP ED SUPPT KENNE"]
["67153","MATH ED SCLRSHP HATFI"]
["67154","MATH ED DEVELOP KENNE"]
["67155","LUCAS MEM FUND FBRANC"]
["67156","VOC ED DEV FD BRANC"]
["67157","UGA CROATIA NADEN"]
["67158","EAST WEST SUPT NADEN"]
["67159","FMG ENDOWMENT NADEN"]
["67160","DAN FRANKLIN PRFCROWL"]
["67161","MARG WILLIAMS CROWL"]
["67162","CED DRAPER CHR MORRI"]
["67163","ATHLETIC ASSOC NADEN"]
["67164","ENVIR & DESIGN NADEN"]
["67165","ENVIRON ETHICS NADEN"]
["67166","WORMSLOE NADEN"]
["67167","FOREST RESOURCESMACE"]
["67168","HARGRVS DST PROFSINHA"]
["67169","WARNELL END OPERSINHA"]
["67170","UGA FND S/S GRAD"]
["67171","GOIZUETA FDN GRASS"]
["67172","OSBORNE GRAD FLWBARBO"]
["67173","FACS VISIT LECT FOX"]
["67174","FACS RITCHI-MIZEFOX"]
["67175","SWEANEY INNOVATIFOX"]
["67176","NICKOLS STU LEADFOX"]
["67177","FAN BROOKE ACA SFOX"]
["67178","MORRIS CHAIR"]
["67179","DOWDEN TELECOMMUNICAT"]
["67180","JRL ANNUAL SURVEY"]
["67181","FAHERTY BRDCST DAVIS"]
["67182","WM I RAY EXP FD DAVIS"]
["67183","GRIMES EXP FUND DAVIS"]
["67184","LAMBDIN KAY FND DAVIS"]
["67185","CARMICAL LECT DAVIS"]
["67186","CARTER CHAIR DAVIS"]
["67187","BROUN SUPPORT DAVIS"]
["67188","YARBROUGH PROF DAVIS"]
["67189","WILLIAMS VENTUREDAVIS"]
["67190","HEARST VIS PROF DAVIS"]
["67191","AD EDUCATION FUNDAVIS"]
["67192","GRADY CLG GN SUPDAVIS"]
["67193","CARMICAL SPORTS DAVIS"]
["67194","ADPR GENERAL SUPDAVIS"]
["67195","FINK PRF RESD DAVIS"]
["67196","HODGSON JRNL SUPDAVIS"]
["67197","JOURNLSM ED FND DAVIS"]
["67198","JRLSM EXCL CARTRDAVIS"]
["67199","YARBROUGH STUD SDAVIS"]
["67200","SPORTS MEDIA CERDAVIS"]
["67201","ADPR GENERAL SUPDAVIS"]
["67202","WOODRUFF FDN"]
["67203","TALMADGE CHAIR"]
["67204","UGA FOUND CHEELEY"]
["67205","HARMON CALDWELL PROF"]
["67206","HOSCH PROF #1"]
["67207","HOSCH PROF #2"]
["67208","HOSCH PROF #3"]
["67209","HOSCH PROF #5"]
["67210","HOSCH PROF # 4"]
["67211","HIRSCH HALL LAW MITCH"]
["67212","SANDERS CH LAW WHITE"]
["67213","SMITH PROF LAW WHITE"]
["67214","LAW SCHOOL ASSC WHITE"]
["67215","CHAIR MARSHALL WHITE"]
["67216","KILPATRICK CH WHITE"]
["67217","DN RUSK CNT ADD RUTLE"]
["67218","ATH PROF LAW RUTLE"]
["67219","KIRBO CHAIR LAW RUTLE"]
["67220","WILBANKS CEASE CRUTLE"]
["67221","RUSK INTL LAW CNRUTLE"]
["67222","BRUMBY DIST PROFRUTLE"]
["67223","SHACKELFORD PROF"]
["67224","LORIDANS FDN RUSK"]
["67225","CHAIR ROGERS UGF"]
["67226","BRUMBY PROF WHITE"]
["67227","CHAIR SIBLEY UGF"]
["67228","CHAIR CARTER UGF"]
["67229","CHAIR CLEVELAND MITCH"]
["67230","CHR CHAFFIN UGF MITCH"]
["67231","PHARM APPROP OIE"]
["67232","JOWDY PROF PC FINCH"]
["67233","FACILITIES IMPROOIE"]
["67234","PBS ENRICHMENT OIE"]
["67235","BERGER MEM PROF KROPF"]
["67236","BERGER GRD ASST DANIE"]
["67237","ABOLT GRD ASSIS DANIE"]
["67238","HOLLOWELL DANIE"]
["67239","INSTIT NON PROF CARNE"]
["67240","GREEN FAMILY MOREH"]
["67241","GA WRITERS HALL MOREH"]
["67242","HARGRETT SUP FNDMOREH"]
["67243","RICHARD A PARKS WHITT"]
["67244","SIDNEY THOMAS WHITT"]
["67245","DIG LIB GA MOREH"]
["67246","MEDIA SUPPORT FNMORRI"]
["67247","RUSSELL SPT FND MORRI"]
["67248","ODUM PROF BARRE"]
["67249","SPECIAL FUNDING CARRO"]
["67250","ECOLOGY FUND GITTL"]
["67251","BUTLER FELLOW GITTL"]
["67252","IDEA BRD-SUBST GITTL"]
["67253","ALTRIA LEGISLAT LINDQ"]
["67254","TAP BENNETT AST LAUTH"]
["67255","PUBLIC ADMIN PLCLINDQ"]
["67256","GETZEN LECTURE LINDQ"]
["67257","MPA GRAD STUDENTGRAFS"]
["67258","GRIFFIN END PBLAGRAFS"]
["67259","KOREAN ALM GRD SGRAFS"]
["67260","FLATT PROFESSOR MULLI"]
["67261","RESIDENTIAL PRO SWEAN"]
["67262","FACS ATH ASC PROFOX"]
["67263","GICH SWEAN"]
["67264","FIN PLAN FUND FOX"]
["67265","GHANA COMM PRG FOX"]
["67266","DESIGNING DAWGS FOX"]
["67267","GA SOFT GOODS HUNT-"]
["67268","SEGARS FUND KANEM"]
["67269","DRC ACA COACH WILSO"]
["67270","CAES STHSCAPES ANGLE"]
["67271","CAES SUPPRT FND ANGLE"]
["67272","UH DAVENPORT PROAGENG"]
["67273","BRUCE DIXSON SCHANGLE"]
["67274","GILLESPIE ENGR TTHREA"]
["67275","AGR ENG DEV FND LEO"]
["67276","CIRRUCULUM INT MOREH"]
["67277","NMI CLARK"]
["67278","CPH RAMSEY HHP SHELN"]
["67279","GRIFFIN CAMPUS SLEE"]
["67280","GPC PROF WILLI"]
["67281","GA PWR GRAD WILLI"]
["67282","SPEC PROJ GLOBALWILLI"]
["67283","KAISER HLTH DIS WILLI"]
["67284","PROFESSOR CHP WILLI"]
["67285","PATEL DIST PROF CORDE"]
["67286","CAMPUS KITCHEN PJOLLY"]
["67287","SPEC PROJS INTL WILLI"]
["67288","ETHNOBOTANICAL STOKE"]
["67289","LATIN AMERICAN STOKE"]
["67290","MUSIC BUSINESS SUMIC"]
["67291","TERRY INST LEAD PERRY"]
["67292","BOYD FND UGARF BURT"]
["67293","WILLSON CTR GEN LEE"]
["67294","OBESITY INIATIVELEE"]
["67295","GRA CHAIR IMMUN LEE"]
["67296","GRA CH ANTIPARASLEE"]
["67297","GREEN LIBRARY EILAN"]
["67298","GMOA LIBRARY FUNWHITT"]
["67299","LAERM FUND FREEM"]
["67300","EMINENT SCHOLAR BENNE"]
["67301","ALTON FELLOW IVARI"]
["67302","GENETICS RSCH FNDORSE"]
["67303","MARINE SCI SUP DORSE"]
["67304","ATHL ASSOC PROF DORSE"]
["67305","CURO SUPPORT WILLI"]
["67306","SOIL JUDG SUP ANGLE"]
["67307","ANIML BREED/GEN ANGLE"]
["67308","COUSINS ORG AG ANGLE"]
["67309","COVENANT PROF SPDORSE"]
["67310","STEPH SCHEER PRFDORSE"]
["67311","BIO & MOL BIO STOKE"]
["67312","UGA FND GRA WANG"]
["67313","UGA FND GRA WANG"]
["67314","DALTON PUETT"]
["67315","BIOINFORM XU"]
["67316","GA POWER PROFES ADAMS"]
["67317","BIOCHEMISTRY HAJDU"]
["67318","GR E SC M BIO DORSE"]
["67319","MUDTER PRF CNR DORSE"]
["67320","BMB LJUNGDAHL LEDORSE"]
["67321","JAWORSKI TRAV DORSE"]
["67322","PLANT BIO RDORSE"]
["67323","PBIO GRAD STUDENDORSE"]
["67324","HAINES FAMILY FUDORSE"]
["67325","PALFREY BOT SPECHAMRI"]
["67326","DIGIOIA HERB FUNDORSE"]
["67327","HAINES BELOW GRDDORSE"]
["67328","HAINES ABOVE GRDDORSE"]
["67329","SURO PARTICIPAN STICK"]
["67330","MCDAVID KRETZ"]
["67331","CRMS ENVIRONMNT MADDE"]
["67332","GEOG DPT DORSE"]
["67333","ATMSPHER SCI DORSE"]
["67334","ATH ASSC PRF SHEDORSE"]
["67335","ROBBINS ATMS STDDORSE"]
["67336","UGA SMAL SAT RSCDORSE"]
["67337","GEOG CONF ACCT DORSE"]
["67338","GEOLOGY FLD TRP STOKE"]
["67339","UNGR RSCH SUP DORSE"]
["67340","GEOLGY STD RSCH DORSE"]
["67341","HISTORY DISCRET"]
["67342","DIG HIS SPT FND DORSE"]
["67343","UGAA PRF HUMANITDORSE"]
["67344","MICROBIAL PHYS MAIER"]
["67345","RSCH SUPPORT SUMME"]
["67346","CNT STIMUL PHY DORSE"]
["67347","SPIA SAYE PROF MALTE"]
["67348","HILLENBRAND GRADLAUTH"]
["67349","SPERDUTO PROF DORSE"]
["67350","OWENS FELLOW MILLE"]
["67351","ETHOCEBUS SPPRT FRAGA"]
["67352","OSBORNE PSY ENH DORSE"]
["67353","STATISTICS DISCRDORSE"]
["67354","TARLETON PRF ATHRUPPE"]
["67355","GRA ENDOWMENT DOCAM"]
["67356","VISION RSRC LAUDDORSE"]
["67357","CELL DPT BIO FNDDORSE"]
["67358","TERRY-SANFORD AWGUSTA"]
["67359","GA POWER SCHO SUMIC"]
["67360","MBA AST FLW SUMIC"]
["67361","GA PWR MBA AST SUMIC"]
["67362","MBA GRAD ASSIST GUSTA"]
["67363","GLOBAL TXT PROJ WATSO"]
["67364","DELOITTE TEACH FSUMIC"]
["67365","BRITT-HOFFMAN ALLEN"]
["67366","EQ LOVE HORSE ALLEN"]
["67367","VET MED UGAAF"]
["67368","WARFIELD AVIAN MED SF"]
["67369","KLECKNER ACADEMIC FUN"]
["67370","DAVIDSON CHAIR VET ME"]
["67371","SOUTHEAST WILDLIFE HE"]
["67372","SPAY NEUTER FUND"]
["67373","VET MED ALUMNI FUND"]
["67374","AVIAN MED SUP FUND"]
["67375","GUNST PROF"]
["67376","GA CANCER RES MAHAF"]
["67377","SA/WILDLIFE FND GLISS"]
["67378","WHITEFOX FARMS MOORE"]
["67379","GRA HLTH TRIPP GLISS"]
["67380","MERCK-MERIAL VACGLISS"]
["67381","GRACE FUND ALLEN"]
["67382","NTL VET SCHOLAR ALLEN"]
["67383","DE JOURNO EXOTICALLEN"]
["67384","RENAL PHYSIOLOGY"]
["67385","SUNDOWN SURGERY ALLEN"]
["67386","GRA EIDSON CHAIRALLEN"]
["67387","VMTH DISCRETION"]
["67388","TEACHING HOSP ALLEN"]
["67389","ANDRSN ONCOLOGY ALLEN"]
["67390","VET MED FC DEV"]
["67391","NICKY FUND ALLEN"]
["67392","MORRIS DVM/PHD ALLEN"]
["67393","SRVC ANIMAL FND ALLEN"]
["67394","WAGGONER PROFES ALLEN"]
["67395","COMPARATIVE MED ALLEN"]
["67396","HODGSON CHAIR ALLEN"]
["67397","LRGE ANIMAL MED ALLEN"]
["67398","CARDIOLOGY SUPP ALLEN"]
["67399","VETS FOR PETS ALLEN"]
["67400","ATH ASC PF INF DALLEN"]
["67401","CAMELID FUND ALLEN"]
["67402","ESPA/DSLA RSCH ALLEN"]
["67403","LRG ANIM HOSP ALLEN"]
["67404","PATHOLOGY SUPT ALLEN"]
["67405","HARBOR LITS SM AALLEN"]
["67406","GLISSON PROF VTMALLEN"]
["67407","DOROTHEA DAWSON ALLEN"]
["67408","NALLEY GRAD FEL ALLEN"]
["67409","NEUROLOGY SUP FND"]
["67410","SAM MED&SURGERY ALLEN"]
["67411","SWANSON FELINE RALLEN"]
["67412","COMP ANIMAL FND ALLEN"]
["67413","KRESS WILDLF ZOOALLEN"]
["67414","GA ATH ASC PROF ALLEN"]
["67415","EDUCATION ENDOW KENNE"]
["67416","OSHER LF LG LEARN"]
["67417","AARON AWD TCH EXKENNE"]
["67418","YEANY RSC AWD KENNE"]
["67419","COE END EXCLNC KENNE"]
["67420","DELKE GRAD SUP KENNE"]
["67421","GOIZUETA CHAIR"]
["67422","ADERHOLD PROFESSKENNE"]
["67423","LANGUAGE ED FUNDFECHO"]
["67424","LNG LIT ED FECHO"]
["67425","LNG LIT ED KENNE"]
["67426","SOULE SCHOLAR BUCKW"]
["67427","KINDIG RSCH AWD BUCKW"]
["67428","KINESIOLOGY BUCKW"]
["67429","LEWIS FUND BUCKW"]
["67430","KINESIOLOGY SUP BUCKW"]
["67431","ST. MARY'S SUPP BUCKW"]
["67432","AGING & PHYS BUCKW"]
["67433","JEWETT DIS GRAD BUCKW"]
["67434","PENLAND SCHIP ACKENNE"]
["67435","HEALTH HUM PERF KENNE"]
["67436","RAMSEY HLTH HUMNKENNE"]
["67437","ADULT EDUCATION DEMAR"]
["67438","EDUCATIONAL ADM DEMAR"]
["67439","COUNCIL HDS FDN GLASE"]
["67440","KLEIN MEMORIAL KENNE"]
["67441","GARRARD HALL PRFKENNE"]
["67442","MRY FRNCS EARLY KENNE"]
["67443","GA ATH ASSOC KENNE"]
["67444","HEPBURN LECTURE KENNE"]
["67445","ATH ASC PRO MATHKENNE"]
["67446","BEBE ADERHOLD KENNE"]
["67447","COONEY TRV RSCH KENNE"]
["67448","GLOB LEAD RL WLDBRANC"]
["67449","GA POWER PROFES"]
["67450","CED FAC SUP FND NADEN"]
["67451","FOREST RES ENDOWSINHA"]
["67452","DIAMONDBACK TERRCLUTT"]
["67453","FORESTRY FND CLUTT"]
["67454","WARNELL ENDOWMNTSINHA"]
["67455","FOR RES DISC GREEN"]
["67456","WHEATLEY ENDOW CLUTT"]
["67457","WHEATLEY GRA CLUTT"]
["67458","DEER MGMT FUND GREEN"]
["67459","WARNELL ALUMNI &CLUTT"]
["67460","WARNELL WOODWARDGREEN"]
["67461","TROPICAL BIRD COGREEN"]
["67462","FORSTY STU SUP GREEN"]
["67463","WILDLF RSCH BEASGREEN"]
["67464","CRSWLL RESEARCH LYMAN"]
["67465","GA ATH ASC PROF FOX"]
["67466","FACS ALUMNI EVENFOX"]
["67467","BARRS-TAYLOR STUFOX"]
["67468","HARRIS ADACEMIC FOX"]
["67469","COSTA GRAD SUPT FOX"]
["67470","TEN INNOVATION"]
["67471","NOLAND GRAD TRAVDAVIS"]
["67472","GA POWER CHRC DAVIS"]
["67473","KENNEDY PROF #2 DAVIS"]
["67474","KENNEDY PROF #3 DAVIS"]
["67475","KENNEDY PROF #1 DAVIS"]
["67476","KENNEDY PROF #4 DAVIS"]
["67477","UGAAA PROF GRADYDAVIS"]
["67478","GRAD STU AWD RSCDAVIS"]
["67479","TERRY ENDOWMNT NAIR"]
["67480","BRIDGES PROFNL OIE"]
["67481","STUDENT AFFAIRS OIE"]
["67482","MOODY PROF FUND OIE"]
["67483","MORGAN FUND OIE"]
["67484","KROGER PROFESSOROIE"]
["67485","MILLIKEN-REEVE OIE"]
["67486","WRIGHT ENDOWMNT OIE"]
["67487","WATERS ENDOWMNT OIE"]
["67488","EXTERN AFFAIR OIOIE"]
["67489","UGA DAWGTOBERFESOIE"]
["67490","ATHLETIC PROFESSOIE"]
["67491","CHU LECTURESHIP OIE"]
["67492","CHU FAM FC TRV OIE"]
["67493","INST NONPRF ORG HOLLA"]
["67494","PARHAM PROF KROPF"]
["67495","CTR SOCIAL JUST SCHEY"]
["67496","FOOT SOLDIER CIVSCHEY"]
["67497","CANINE RSCH BRISB"]
["67498","OIBR FND CAMPANIBURT"]
["67499","MILLER DIST PROFDYER"]
["67500","MCBEE PROF DYER"]
["67501","CUDA AWARD TAHA DORSE"]
["67502","EMINENT SCHOLAR LEE"]
["67503","EMINENT SCHOLAR PREST"]
["67504","DST PRF BIOCHEM LEE"]
["67505","CCRC CANCER SUP LEE"]
["67506","ODUM H2P MAINT FREEM"]
["67507","RIVERVW LK HFOW GITTL"]
["67508","ECOLOGY PROF GITTL"]
["67509","GA ATHLETIC ASC ALTIZ"]
["67510","WATERSHED UGA SPGITTL"]
["67511","PANOZ PROF"]
["67512","COP TOXICOLOGY OIE"]
["67513","PHARMACOLOGY OIEOIE"]
["67514","INT TRADE-SEC"]
["67515","WILLSON END"]
["67516","RUSK SCHOLAR"]
["67517","PHILIP H ALSTON LAUTH"]
["67518","KOCK DOC POSIT LINDQ"]
["67519","SPIA SURVEY RESCGRAFS"]
["67520","HANLEY ENDW LAUTH"]
["67521","GOLEMBIEWSKI KELLO"]
["67522","BUSBEE CHAIR BRADF"]
["67523","SHELTON KELLO"]
["67524","CRENSHAW PROFES BOZEM"]
["67525","GOLEMBIEWSKI PROLINDQ"]
["67526","NIGRO MEMOR AWD LINDQ"]
["67527","HALTIWANGER PRO"]
["67528","JMB DIST PROF SMITH"]
["67529","FDN DISC"]
["67530","LEWIS PROFESS"]
["67531","COCAL COA LEWIS FOX"]
["67532","RJM DISCRETION NICKO"]
["67533","BERDANIER SCI SUFOX"]
["67534","HOUS CONSM ECON FOX"]
["67535","TMI DISC"]
["67536","HISTORIC COSTUM SWEAN"]
["67537","GA PWR PROF FOX"]
["67538","TMI FND COMP NICKO"]
["67539","GLOBIS FUND LAUTH"]
["67540","RUSK KOREAN LAUTH"]
["67541","GLOBIS EUROPE SULINDQ"]
["67542","TRACK II FUND LINDQ"]
["67543","TERRY RESP CORE KRUNK"]
["67544","COVERDELL NEUROIMAGE"]
["67545","BIO & HLTH SCI DAILE"]
["67546","BHSI ONE HEALTH LEE"]
["67547","WHG SUPP FND WILSO"]
["67548","E&B CORN PROF WILLI"]
["67549","ROYALTY GEOLOGY DEPT"]
["67550","REM SEED GRANT LAUDERDALE 194"]
["67551","REM SEED GRANT DE LA FUENTE213"]
["67552","REM SEED GRANT TSE"]
["67553","DELTA GLOBAL CRAIG"]
["67554","BOT GARDEN-PRJ COORD"]
["67555","BOT GAR CONS COOLEWIS"]
["67556","CHILDREN GARDEN BERRY"]
["67557","BALL FUND"]
["67558","SBG HORT MAINT WRIGL"]
["67559","GA REV SUPPORT COREY"]
["67560","BENSON SCT ED SUMOREH"]
["67561","THOMAS CURATOR SWHITT"]
["67562","GMOA BUILD FND WHITT"]
["67563","BLACK HIST AWDS WHITT"]
["67564","COLLECTORS AUC WHITT"]
["67565","EILAND ART ACQ WHITT"]
["67566","YOUNG DAWGS-UGA BURGE"]
["67567","NAT HISTORY GEN FREEM"]
["67568","UGA BANDS SVC TRDORSE"]
["67569","SPEECH EDIT FND HALE"]
["67570","DIVERSITY RELAT GROOM"]
["67571","MDCL PRAC MGMT FRUM"]
["67572","COMM PRAC CLIN ALLEN"]
["67573","SM AN MED FND MAHAF"]
["67574","DEAN DISCRETION ALLEN"]
["67575","ANNIE'S ONCOLOGYALLEN"]
["67576","SHELTER ANIMAL ALLEN"]
["67577","VET MED MEM HON ALLEN"]
["67578","BRICK BY BRICK ALLEN"]
["67579","SCHL ENGAGEMENT KENNE"]
["67580","CAM DORSEY KENNE"]
["67581","CAMP DIVE KENNE"]
["67582","TORRANCE LCTURE KENNE"]
["67583","TORRANCE CENTER KENNE"]
["67584","PAL SUPPT FND KENNE"]
["67585","EMPOWER YOUTH GLASE"]
["67586","ED PSY DEV KENNE"]
["67587","SCHOOL IMPROVE KENNE"]
["67588","OUTREACH FND NADEN"]
["67589","CED GALLERY SPT NADEN"]
["67590","ASPIRE CLINIC FOX"]
["67591","FACS EXT DISCRE FOX"]
["67592","FACS FUND FOX"]
["67593","COX INST NMS"]
["67594","COX CENTER MCT"]
["67595","LOYLESS PEABODY DAVIS"]
["67596","MCGILL LECT FND DAVIS"]
["67597","GA JML INTL COMPRUTLE"]
["67598","SPECIAL PROJECT OIE"]
["67599","RC WILSON OIE"]
["67600","MORRIS PRACTICE OIE"]
["67601","ECKERD ENDOWED OIE"]
["67602","ELLISON COMMUN OIE"]
["67603","ELLISON CANCER OIE"]
["67604","MILLIKAN-REEVE OIE"]
["67605","ANSEL OIE"]
["67606","DRAPER COLL SUP WHITT"]
["67607","RUSS LIB ORAL HIWHITT"]
["67608","SE DRAPER CNT&ARWHITT"]
["67609","HARDMAN FUND WHITT"]
["67610","JOAN TITUS COLCTWHITT"]
["67611","RJ TALOR JR FDN WHITT"]
["67612","SPECIAL COLLECTIWHITT"]
["67613","KIDS ENRICH UNIVLEE"]
["67614","GCAC PROG FND MOREH"]
["67615","GA LEG LEAD DEV WRIGL"]
["67616","ENV POLICY ACADEFRUM"]
["67617","EMBRACE FOSTER WHORT"]
["67618","LATINO INITIAT WRIGL"]
["67619","PADRE E HIJOS WKFRUM"]
["67620","GEORGIA LEADS SPFRUM"]
["67621","LYNDHURST RENAISFRUM"]
["67622","RAYONIER JACYEE FRUM"]
["67623","VINSON INST GOV MEADO"]
["67624","ODUM STUDENT GITTL"]
["67625","CHLD FAM DEV FOX"]
["67626","FACS COOKING SWEAN"]
["67627","GICH PROGRAM TINSL"]
["67628","PEF ART FC CHAM WHITT"]
["67629","PERF ARTS CTR ARWHITT"]
["67630","GOVERNMENT RELATDOYLE"]
["67631","DREW PROF HLT CRWILLI"]
["67632","ATH ASOC PR HEALWILLI"]
["67633","PROF HUMAN HLTH WILLI"]
["67634","PUB HLT OUTRCH WILLI"]
["67635","PORTAL DORSE"]
["67636","ILA MASON EXC SPAYERS"]
["67637","TERRY EXEC PRG KNAPP"]
["67638","POLICE DEPT K9 FUND 069"]
["67639","PFA SVC-LRN STUDENT TRANS PROJ"]
["67640","SANDERS LAW LIB KENNE"]
["67641","ENDOWMENT PUCKE"]
["67642","REES LAW LIB FUND"]
["67643","KELLUM PROF DEV MOREH"]
["67644","SP COLL MOVING ROGER"]
["67645","FOLEY ENDMNT MOREH"]
["67646","OC ADERHOLD MOREH"]
["67647","DERENNE COLLECTIMOREH"]
["67648","TATE FUND MATTH"]
["67649","HARGRETT FUND MATTH"]
["67650","STUDENT LRNING MATTH"]
["67651","LH DRAPER ENDOW MATTH"]
["67652","WOODRUFF SR MATTH"]
["67653","ANN MCHORTER FUND"]
["67654","JHT MCPHERSON"]
["67655","O C ADERHOLD FUND"]
["67656","DOOLEY LIB ENDMT FUND"]
["67657","ROZIER MEM FUND"]
["67658","LIBRARIES-DISCRTNRY"]
["67659","DIETZ CONSERVATIMOREH"]
["67660","W N MORRIS CHAR EILAN"]
["67661","DESIGNT DIR CIR EILAN"]
["67662","BERKOWITZ END EILAN"]
["67663","VIR TROTTER END EILAN"]
["67664","ACQUISITIONS EILAN"]
["67665","DODD REGISTRAR EILAN"]
["67666","PIERRE DAURA CTREILAN"]
["67667","HARVEY FAMILY FUEILAN"]
["67668","CHRIST-JANER EILAN"]
["67669","ALLEN ENDOW EILAN"]
["67670","CHRIST-JANER EILAN"]
["67671","DAURA CONS FUND MOREH"]
["67672","DODD PRESERVATN MOREH"]
["67673","GMOA FUND MOREH"]
["67674","FRIENDS EVENTS MOREH"]
["67675","GMNH SINGER MOYERUPPE"]
["67676","MMR STUD SUP FND"]
["67677","FACILITIES MGR MACE"]
["67678","PERF ARTS CTR FOREM"]
["67679","ACADMC SYMP WHITT"]
["67680","FST YR ODYSY JOLLY"]
["67681","FND FELLOWS GRD WILLI"]
["67682","FND FELLOWS PRG WILLI"]
["67683","C&G PARENTS SCTYWHITT"]
["67684","GEO FAC SUP DORSE"]
["67685","CHEVRON GRT GEO DORSE"]
["67686","REAL ESTATE ED SUMIC"]
["67687","CTR ED RSRCH ILSKNAPP"]
["67688","LAW SCH RENOVATIRUTLE"]
["67689","HAYES PHARM END FAGAN"]
["67690","JOH SPENCER FLWSGITTL"]
["67691","BERTSCH DIR CITSLINDQ"]
["67692","VITA PRGM SUPP FOX"]
["67693","SP PRJ LINGUISTIDORSE"]
["67694","RMSY HLTH HUM PFWILLI"]
["67695","RMSY LECT SRS CPWILLI"]
["67696","FONTAINE CENTER BENNE"]
["67697","CRANE LDSHP AYOOB"]
["67698","LDSP & COMMUN WILSO"]
["67699","PEERMAHOMED AW DAUGH"]
["67700","JAZZ STUDIES SUPLOWE"]
["67701","VET MED EDU ADV ALLEN"]
["67702","REC SPORTS RAMSECOCHR"]
["67703","REC SPORTS DISCTWILSO"]
["67704","AGIC ASIA GA INTMOREH"]
["67705","PVF SAILING CLUB SAFEY 2017"]
["67706","PVF MODEL AFRICAN UNION"]
["67707","FONTAINE CENTER AYOOB"]
["67708","FONTAINE CT SUP BENNE"]
["67709","SEAWELL END WILLI"]
["67710","UGRAD CORP REL SUMIC"]
["67711","FOREST RES STUD SINHA"]
["67712","GA ATH ASN PROF SUMIC"]
["67713","SHORTT FELSHP BUCKW"]
["67714","GOIZUETA RECRU JOLLY"]
["67715","GAA PRES RECRUITJOLLY"]
["67716","DISCR PRESMOREH MOREH"]
["67717","PRES OFC GAA DISMOREH"]
["67718","PRS OFC BLU KY MOREH"]
["67719","BLUE KEY STD PR MOREH"]
["67720","F&A EMPLY RECG"]
["67721","FNDTN AWARDS STAFF"]
["67722","MUSIC DEVELOPMENLOWE"]
["67723","DIST PROF ROBINSDORSE"]
["67724","PRES OFC MOREH MOREH"]
["67725","MARCOMM COYLE"]
["67726","WUGA TV COYLE UGCOYLE"]
["67727","MARKET & BRAND JACKS"]
["67728","NATL ALUM ASSN COYLE"]
["67729","DVLP COYLE COYLE"]
["67730","SPECIAL EVENTS COYLE"]
["67731","SPOTLIGHT ST RSTANGLE"]
["67732","ALUMNI SERVICES COYLE"]
["67733","CLEARING COYLE"]
["67734","OXFORD CLEARING COYLE"]
["67735","ADV SRVCS COYLE COYLE"]
["67736","CED BLDG FND NADEN"]
["67737","FOREST RES ALUM SINHA"]
["67738","CLEARING SCOTT"]
["67739","EXPENSE ACTSCOTT"]
["67740","PAVAC FUND MORRI"]
["67741","EOO FLOW FOUND DAWKI"]
["67742","CAREER DEVELOP WILLI"]
["67743","HERBARIUM DISC MOMAN"]
["67744","HHSOM ENHANCEMENDORSE"]
["67745","PSYCH DEVEL FND STOKE"]
["67746","RITTER LECTURE STOKE"]
["67747","TCB DEVEL OFFIC SUMIC"]
["67748","OSHER LIFE LEARNKENNE"]
["67749","OBSV SYS UPGR MARCO"]
["67750","JOHN LONG SUPP NADEN"]
["67751","JEAN M HEAD FUNDHATHC"]
["67752","FACS FAC & EQUIPFOX"]
["67753","PHARM DISCR OIE"]
["67754","WHEATLEY FUND GITTL"]
["67755","INT AFFAIRS DEPTLAUTH"]
["67756","GA PW CPH FACILIWILLI"]
["67757","WHEATLEY OP SINHA"]
["67758","RY400-809 WILCO"]
["67759","FOUNDATION DEPOSIT ACCOUNT"]
["67760","V P SCHOLARSHIP"]
["67761","BRADLEY-TURNER SCHOLARSHIP"]
["67762","GEORGIA INCENTIVE SCHOLARSHIP"]
["67763","WOODRUFF SCHOLARSHIP"]
["67764","FOUNDATION SCHOLAR GRANT"]
["67765","ALUMNI ASSOC ENDOWED SCH"]
["67766","GOUIZETTA FOUNDATION SCHRSHIP"]
["67767","COKE FIRST GENERATION SCH"]
["67768","ONE UGA II"]
["67769","GOIZUETTA FOUNDATION II"]
["67770","CHARTER SCHOLARSHIP II"]
["67771","HARRIS SCHOLARSHIP II"]
["67772","HENRY KING STANFORD SCHOLAR II"]
["67773","DREW CHARTER SCHOOL SCH"]
["67774","PRESIDENTIAL SCHOLARSHIP"]
["67775","GOIZUETA FDN UNDERGRADUATE"]
["67776","GOIZUETA FOUNDATION LEADERSHIP"]
["67777","GOIZUETA FOUNDATION TRANSFER"]
["67778","BALDWIN SCHOLARSHIP"]
["67779","CHARLES AND ARLENE WOODS SCH"]
["67780","NATIONAL MERIT 14"]
["67781","GLENN FAMILY GEORGIA ACCESS SC"]
["67782","2015 FOUNDATION DEPOSITS"]
["67783","HOARD MEMORIAL FIRST TEE SCH"]
["67784","ROTHBERG (KIPP) SCHOLARSHIP"]
["67785","LYNES & EUGENIE SLOSS SCHOLAR"]
["67786","CHICK-FIL-A PEACH BOWL SCH"]
["67787","SCHOLARSHIP FUNDWHITT"]
["67788","SCHLRSHP FND SMIWHITT"]
["67789","DEAN DISCRETIONAWHITT"]
["67790","SKIO FOUNDATION WHITT"]
["67791","D W BROOKS FUND"]
["67792","RUSSELL PROF BERGS"]
["67793","GRAD ASSIST ANGLE"]
["67794","GAA FOOD CHOIC PANGLE"]
["67795","GA POWER PROF ANGLE"]
["67796","ANIMAL REPRO STICE"]
["67797","HONEY BEE FUND NOBLE"]
["67798","ARMITAGE PROF BAILE"]
["67799","DOOLEY PROFESS ANGLE"]
["67800","CROP GENOMIC JACKS"]
["67801","CAES IMPRVEMENT KANEM"]
["67802","GARNER SUP FUND LEE"]
["67803","RESEARCH GARDEN ARKIN"]
["67804","CONS & SENS PRG LEE"]
["67805","CAES GRIFFIN IPRPARDU"]
["67806","UGA TCCC IMPROV LEE"]
["67807","SHEPPARD FDN MCPHE"]
["67808","REM SEED GRANT KARUMBAIAH 287"]
["67809","AD GA LEADERS ANGLE"]
["67810","BAMBOO GRD FAC ANGLE"]
["67811","CGBG-GEN ACCT ANGLE"]
["67812","ARTHUR BLANK ANGLE"]
["67813","MAREX FRUM"]
["67814","MAREX MARINE ED FRUM"]
["67815","FRNDS OF MI RES PRICE"]
["67816","MARINE INST SUP LEE"]
["67817","SP COLL LIB HULL ST"]
["67818","CHILDRENS GDN"]
["67819","PRACTICE FIELD ENHAN"]
["67820","REDCOAT FIELD RENOV"]
["67821","REDCOAT PRAC FIELD"]
["67822","LAKE HERR WATERSHED"]
["67823","FORES WHITEHALL BLD"]
["67824","TERRY BUS LEARN PHII"]
["67825","SPECIAL COLL LIBRARY"]
["67826","TERRY BUS LEARN PHIII"]
["67827","CED WORMSLOE"]
["67828","ANDREWS ED CENTER"]
["67829","BAMBOO GDN FACIL"]
["67830","COASTAL GA BOT GDN"]
["67831","MAREX AQUARIUM EXP"]
["67832","UGA IN DC RENOV"]
["67833","SP COLL MOVING EXP"]
["67834","SP COLL REN VACANT"]
["67835","WILLSON CTR RENOV"]
["67836","CARNEGIE LIB RENOV"]
["67837","COM STUD CALDWELL"]
["67838","NATIVE PIT CLASS REN"]
["67839","POULTRY DIAG RENOV"]
["67840","JOURN DREWRY RM REN"]
["67841","PHARM AUGUSTA RENOV"]
["67842","SCL EXHIBIT DISPLAYS"]
["67843","SPEC COLL LIB FF&E"]
["67844","SCL RENOV FF&E"]
["67845","UGAF Institution Div More"]
["67846","FPRC Renovation"]
["67847","SBG Porcelain Museum"]
["67848","Mule Barn Ren Griffin"]
["67849","UGAF REG PROG UGAF CLKERNE"]
["67850","UGAF LEADSHP GIV CLEAKERNE"]
["67851","UGAF DONOR RELAT CLEAKERNE"]
["67852","UGAF  COLLG RELA CLEARKERNE"]
["67853","UGAF GFT/ESTAT CLEAR KERNE"]
["67854","UGAF TALENT MGM CLEARKERNE"]
["67855","UGAF  DAR BUGT/PER CLRKERNE"]
["67856","UGAF  CFR UGAF CLEAR AKERNE"]
["67857","UGAF  ANUAL GIV CLEARIKERNE"]
["67858","UGAF  DIR AG CONS CLEAKERNE"]
["67859","UGAF  RECORDS CLEARINGKERNE"]
["67860","UGAF  ADV SERV CLEAR KERNE"]
["67861","UGAF  PROSPCT MGMT CLEKERNE"]
["67862","UGAF  RESEARCH CLEAR KERNE"]
["67863","UGAF INFO TECH CLEAR KERNE"]
["67864","Presidential Scholarship II"]
["67865","UGAF Men's Glee Club Dorsey"]
["67866","UGAF Miller Hodgson Dorsey"]
["67867","UGAF HHSOM Opera Supp Dorsey"]
["67868","UGAF Percussion Studio Dorsey"]
["67869","UGAF Gallery Enhancemoorse"]
["67870","UGAF Shaheen Lect Artdorse"]
["67871","UGAF Davis Dis Vis Adorse"]
["67872","UGAF Nunnally Courtyddorse"]
["67873","UGAF GRA Em Sch Inf Dharri"]
["67874","UGAF Annie's Oncology Harri"]
["67875","Rem Seed Grant Holmes"]
["67876","UGAF Beaver Music Tchverra"]
["67877","UGAF B Warner Glee Cverra"]
["69804","Watson Brown Foundation"]

{"sheet":"Program","index":8,"n_rows":85,"n_cols":2,"rows_kept":85,"cut":false,"hidden":false,"merged":[]}
["Program","Descr"]
[null,"None"]
["00000","All Program Codes"]
["11100","General Academic Instruction"]
["11110","Instruction Cost Sharing"]
["11111","Summer School Instruction"]
["11140","Instruction-Departmental Admin"]
["11200","Instruction-Vocational/Tech"]
["11300","Instruction-Community Educatio"]
["11400","Instruction-Preparatory/Remedi"]
["12100","Research-Individual or Project"]
["12110","Research Cost Sharing"]
["12200","Research Institutes and Center"]
["12212","Indirect Research - Start-Up"]
["12220","Rsch Inst & Ctr Cost Sharing"]
["12400","Departmental Research"]
["12500","Research-Service Center"]
["13100","Public Service-Community Serv"]
["13110","Public Srvc Cost Sharing"]
["13200","Cooperative Extension Services"]
["13300","Public Service - Broadcasting"]
["13500","Public Service-Service Center"]
["14100","Academic Support-Libraries"]
["14200","Acad Support-Museums/Galleries"]
["14300","Acad Support-Educational Media"]
["14400","Academic Support-Computing"]
["14500","Academic Support-Ancillary"]
["14600","Acad Support-Administration"]
["14700","Acad Support-Personnel Develop"]
["14800","Acad Support-Course Curriculum"]
["15100","Student Services-Administratio"]
["15200","Student Serv-Social&Cultural"]
["15300","Student Serv-Counseling/Career"]
["15400","Student Serv-Financial Aid Adm"]
["15500","Student Services-Admissions"]
["15600","Student Serv-Records/Registrar"]
["15900","Student Serv-Student Activity"]
["15910","Student Serv-Intramural Athlet"]
["15920","Student Serv-Social-Entertain"]
["15930","Student Serv-Student Governmnt"]
["15940","Student Serv-Student Publicatn"]
["15990","Student Services-Other Std Act"]
["16100","Institutional Suppt-Executive"]
["16200","Institutional Supp-Fiscal Ops"]
["16300","Institutional Supp-Admin/Logis"]
["16400","Institutional Supp-Adm Comput"]
["16500","Institutional Supp-Public Rela"]
["16600","Institutional Supp-Development"]
["16700","Institutional Support-General"]
["17100","Operations & Maintenance-Admin"]
["17200","Operations & Maint-Building"]
["17300","Operations & Maint-Custodial"]
["17400","Operations & Maint-Utilities"]
["17500","Operations & Maint-Grounds"]
["17600","Plant Funds"]
["17610","Plant Funds-Land"]
["17620","Plant Funds-Buildings"]
["17630","Plant Fnd-Improvements NonBldg"]
["17640","Library Collections"]
["17650","Plant Funds-Equipment"]
["17660","Plant Funds-Construct/WIP"]
["17670","Plant Funds-Non-Capitalized"]
["17680","Building Lease Rentals"]
["17800","O&M-Safety and Security"]
["18100","Scholarships"]
["18200","Fellowships"]
["21100","Aux Student Housing"]
["21199","Student Housing (R & R)"]
["21200","Faculty and Staff Housing"]
["21299","Faculty & Staff Housing (R&R)"]
["22100","Aux Cafeteria"]
["22199","Aux Cafeteria (R & R)"]
["22200","Aux Snack Bars"]
["22299","Aux Snack Bars (R & R)"]
["23100","Aux Stores and Shops"]
["23199","Aux Stores and Shops (R & R)"]
["24100","Aux Health Services"]
["24199","Aux Heath Services (R & R)"]
["25100","Aux Campus Transportation"]
["25199","Campus Transportation (R & R)"]
["25200","Aux Campus Parking"]
["25299","Aux Campus Parking (R & R)"]
["27100","Aux Other Service Units"]
["27199","Aux Other Service Units(R & R)"]
["28100","Intercollegiate Athletics"]

{"sheet":"Operating Unit","index":9,"n_rows":217,"n_cols":2,"rows_kept":217,"cut":false,"hidden":false,"merged":[]}
["OP Unit","Op Unit Desc"]
[null,"None"]
["001","Appling County"]
["002","Atkinson County"]
["003","Bacon County"]
["004","Baker County"]
["005","Baldwin County"]
["006","Banks County"]
["007","Barrow County"]
["008","Bartow County"]
["009","Ben Hill County"]
["010","Berrien County"]
["011","Bibb County"]
["012","Bleckley County"]
["013","Brantley County"]
["014","Brooks County"]
["015","Bryan County"]
["016","Bulloch County"]
["017","Burke County"]
["018","Butts County"]
["019","Calhoun County"]
["020","Camden County"]
["021","Candler County"]
["022","Carroll County"]
["023","Catoosa County"]
["024","Charlton County"]
["025","Chatham County"]
["026","Chattahoochee County"]
["027","Chattooga County"]
["028","Cherokee County"]
["029","Clarke County"]
["030","Clay County"]
["031","Clayton County"]
["032","Clinch County"]
["033","Cobb County"]
["034","Coffee County"]
["035","Colquitt County"]
["036","Columbia County"]
["037","Cook County"]
["038","Coweta County"]
["039","Crawford County"]
["040","Crisp County"]
["041","Dade County"]
["042","Dawson County"]
["043","Decatur County"]
["044","Dekalb County"]
["045","Dodge County"]
["046","Dooly County"]
["047","Dougherty County"]
["048","Douglas County"]
["049","Early County"]
["050","Echols County"]
["051","Effingham County"]
["052","Elbert County"]
["053","Emanuel County"]
["054","Evans County"]
["055","Fannin County"]
["056","Fayette County"]
["057","Floyd County"]
["058","Forsyth County"]
["059","Franklin County"]
["060","Fulton County"]
["061","Gilmer County"]
["062","Glascock County"]
["063","Glynn County"]
["064","Gordon County"]
["065","Grady County"]
["066","Greene County"]
["067","Gwinnett County"]
["068","Habersham County"]
["069","Hall County"]
["070","Hancock County"]
["071","Haralson County"]
["072","Harris County"]
["073","Hart County"]
["074","Heard County"]
["075","Henry County"]
["076","Houston County"]
["077","Irwin County"]
["078","Jackson County"]
["079","Jasper County"]
["080","Jeff Davis County"]
["081","Jefferson County"]
["082","Jenkins County"]
["083","Johnson County"]
["084","Jones County"]
["085","Lamar County"]
["086","Lanier County"]
["087","Laurens County"]
["088","Lee County"]
["089","Liberty County"]
["090","Lincoln County"]
["091","Long County"]
["092","Lowndes County"]
["093","Lumpkin County"]
["094","Macon County"]
["095","Madison County"]
["096","Marion County"]
["097","McDuffie County"]
["098","McIntosh County"]
["099","Meriwether County"]
["100","Miller County"]
["101","Mitchell County"]
["102","Monroe County"]
["103","Montgomery County"]
["104","Morgan County"]
["105","Murray County"]
["106","Muscogee County"]
["107","Newton County"]
["108","Oconee County"]
["109","Oglethorpe County"]
["110","Paulding County"]
["111","Peach County"]
["112","Pickens County"]
["113","Pierce County"]
["114","Pike County"]
["115","Polk County"]
["116","Pulaski County"]
["117","Putnam County"]
["118","Quitman County"]
["119","Rabun County"]
["120","Randolph County"]
["121","Richmond County"]
["122","Rockdale County"]
["123","Schley County"]
["124","Screven County"]
["125","Seminole County"]
["126","Spalding County"]
["127","Stephens County"]
["128","Stewart County"]
["129","Sumter County"]
["130","Talbot County"]
["131","Taliaferro County"]
["132","Tattnall County"]
["133","Taylor County"]
["134","Telfair County"]
["135","Terrell County"]
["136","Thomas County"]
["137","Tift County"]
["138","Toombs County"]
["139","Towns County"]
["140","Treutlen County"]
["141","Troup County"]
["142","Turner County"]
["143","Twiggs County"]
["144","Union County"]
["145","Upson County"]
["146","Walker County"]
["147","Walton County"]
["148","Ware County"]
["149","Warren County"]
["150","Washington County"]
["151","Wayne County"]
["152","Webster County"]
["153","Wheeler County"]
["154","White County"]
["155","Whitfield County"]
["156","Wilcox County"]
["157","Wilkes County"]
["158","Wilkinson County"]
["159","Worth County"]
["ALB","Albany"]
["ATH","Athens Campus"]
["ATL","Atlanta"]
["AUG","Augusta"]
["BLU","Blue SL"]
["BRU","Brunswick"]
["BUC","Buckhead"]
["CAL","California"]
["CBT","Camp Burton"]
["CFT","Camp Fortson"]
["CJI","Camp Jekyll Island"]
["COL","Columbus"]
["CRE","Camp Rock Eagle"]
["CSU","Clayton State Univ"]
["CTI","Camp Tidelands"]
["CWA","Camp Wahsega"]
["DKB","DeKalb"]
["EAS","East zone"]
["GRI","Griffin Campus"]
["GSO","GA Southern Univ"]
["GSU","GA State Univ"]
["GVL","Gainesville"]
["GWI","Gwinnett Campus"]
["GWT","Gwinnett"]
["ITC","Int'l Trade Center"]
["JFH","Joe Frank Harris"]
["KSU","Kennesaw State Univ"]
["LIB","Library Van"]
["MAR","MA/Reserved"]
["MBD","Minority Business Div"]
["MCG","Medical College"]
["MCN","Macon"]
["MSP","Motorcycle/Scooter permit"]
["NOR","North zone"]
["RCP","Research Coastal Plains"]
["RCS","Research College Station"]
["RED","Red SL"]
["RGS","Research Georgia Station"]
["ROM","Rome"]
["RVC","Chicopee RV"]
["RVI","IM RV"]
["RVO","Oconee RV"]
["SAV","Savannah"]
["SKO","Skidaway Institute"]
["SOU","South zone"]
["SRL","Savannah River Ecology Lab"]
["TEX","Texas"]
["TID","Camp Tidelands"]
["TIF","Tifton Campus"]
["TSC","Tate Student Center"]
["VCP","Vendor/Contractor permit"]
["VSU","Valdosta State"]
["WDC","Washington DC"]
["WES","West zone"]
["WGA","Univ of West GA"]
["YEL","Yellow SL"]

{"sheet":"ChartField1","index":10,"n_rows":2395,"n_cols":4,"rows_kept":2395,"cut":false,"hidden":false,"merged":[]}
["ChartField1","ChartField1 Description\n (30 Chars, Mixed, proper case)","CF1\nShort Desc\n (10 Chars All Caps)","Contributing Source"]
[null,"None"]
["10ASOCGC1","Expenses for Assoc GC (1)","ASC1 EXP","President's Office"]
["10ASSOCGC2","Expenses for Assoc GC (2)","ASC2 EXP","President's Office"]
["10ASSOCGC3","Expenses for Assoc GC (3)","ASC3 EXP","President's Office"]
["10ASSTGC1","Expenses for Asst GC (1)","AST1 EXP","President's Office"]
["10ASSTGC2","Expenses for Asst GC (2)","AST2 EXP","President's Office"]
["10ASSTGC3","Expenses for Asst GC (3)","AST3 EXP","President's Office"]
["10ASTPRES1","Exps longest serving AsstPres","ASTPRS1EXP","President's Office"]
["10ASTPRES2","Exps shortest serving AstPres","ASTPRS2EXP","President's Office"]
["10BKATLDAY","Exps of Blue Key Atlanta Day","BK ATL EXP","President's Office"]
["10BKBNQUET","Exps of Blue Key Banquet","BK BANQEXP","President's Office"]
["10BKNTLCNF","Exps of Blue Key Nat'l Conf","BK CONFEXP","President's Office"]
["10BKSOL","Exps of BK Solicitation Mail","BK SOL EXP","President's Office"]
["10BKWELBCK","Exps of BK Welcome Back Evt","BK WELBACK","President's Office"]
["10BLUEKEY","Track general BK Expenses","BK EXPNSES","President's Office"]
["10CHFSTAFF","Exps of Chief of Staff","CHFSTF EXP","President's Office"]
["10COPIER1","Expenses for Copier (1st)","COPY1 EXP","President's Office"]
["10COPIER2","Expenses for Copier (2nd)","COPY2 EXP","President's Office"]
["10DOCMGMT","Expenses for DocMoto","DOCMOTOEXP","President's Office"]
["10FELLOW","Expenses for Fellowship","FELLOW EXP","President's Office"]
["10GENCOUN","Expenses for GenCounsel","GC EXP","President's Office"]
["10LGLRSRCH","Expenses for Rsrch Docs/Access","RSRCH EXP","President's Office"]
["10PRESDNT","Exps incurred by President","PRESDT EXP","President's Office"]
["10PRSHOUSE","Exps for President's House","PREHSE EXP","President's Office"]
["10SRASOCGC","Expenses for SrAssoc GC","SRASC EXP","President's Office"]
["10WEBSITE","Expenses for OLA Website","WEB EXP","President's Office"]
["15025301","Athens, 1861–1865_P","15025301","LIBRARY"]
["15030701","Lamar Dodd_P","15030701","LIBRARY"]
["15052601","Hard-Boiled Virgin_P","15052601","LIBRARY"]
["15053201","Aquatic and Wetland Plants o_C","15053201","LIBRARY"]
["15053801","Vascular Flora of Georgia_P","15053801","LIBRARY"]
["15056101","Confederate Receipt Book_P","15056101","LIBRARY"]
["15061401","Georgia Catalog_P","15061401","LIBRARY"]
["15079901","Melville's Later Novels_C","15079901","LIBRARY"]
["15096001","Step It Down_P","15096001","LIBRARY"]
["15098901","Gaza of Winter_P","15098901","LIBRARY"]
["15099001","Weathering_P","15099001","LIBRARY"]
["15101001","Adventures of Ferdinand Coun_C","15101001","LIBRARY"]
["15103201","Evolution of Southern Cultur_P","15103201","LIBRARY"]
["15106901","Baby Sweet's_P","15106901","LIBRARY"]
["15107001","Jekyll Island Club_C","15107001","LIBRARY"]
["15107401","Common Houses in America's S_P","15107401","LIBRARY"]
["15108101","Walking Tour of the Universi_P","15108101","LIBRARY"]
["15112301","Ear to the Ground_P","15112301","LIBRARY"]
["15114101","He Included Me_C","15114101","LIBRARY"]
["15115201","Joseph Seamon Cotter Jr._C","15115201","LIBRARY"]
["15115801","Drowning Man Is Never Tall E_P","15115801","LIBRARY"]
["15117601","Desire in L.A._P","15117601","LIBRARY"]
["15119401","Tyler, Wilkin, and Skee_C","15119401","LIBRARY"]
["15126401","Re-Writing America_C","15126401","LIBRARY"]
["15127501","Southern Writer in the Postm_C","15127501","LIBRARY"]
["15128401","American College and Univers_P","15128401","LIBRARY"]
["15130601","Politics of Change in Georgi_C","15130601","LIBRARY"]
["15132101","Central America and the Unit_P","15132101","LIBRARY"]
["15136501","Character and Consciousness _C","15136501","LIBRARY"]
["15137501","Fiction's Inexhaustible Voic_P","15137501","LIBRARY"]
["15139601","Why the South Lost the Civil_P","15139601","LIBRARY"]
["15140201","Colombia and the United Stat_P","15140201","LIBRARY"]
["15141001","Anne Finch and Her Poetry_C","15141001","LIBRARY"]
["15142801","Poems, Plays, and The Briton_C","15142801","LIBRARY"]
["15143301","Georgia Voices_P","15143301","LIBRARY"]
["15144101","How Far She Went_P","15144101","LIBRARY"]
["15144301","South and the Southerner_P","15144301","LIBRARY"]
["15144601","John Franklin Jameson and th_C","15144601","LIBRARY"]
["15145001","AIA Guide to the Architectur_P","15145001","LIBRARY"]
["15145501","Styles of Creation_C","15145501","LIBRARY"]
["15146501","Africanisms in Afro-American_C","15146501","LIBRARY"]
["15148001","Dearest Chums and Partners_C","15148001","LIBRARY"]
["15151001","Radical Visions_C","15151001","LIBRARY"]
["15152501","Rethinking the South_P","15152501","LIBRARY"]
["15153401","Southern Collection_C","15153401","LIBRARY"]
["15153601","Flannery O'Connor's South_P","15153601","LIBRARY"]
["15155301","Renfroe's Christmas_C","15155301","LIBRARY"]
["15155401","D.J.'s Worst Enemy_C","15155401","LIBRARY"]
["15159901","More Letters from the Americ_C","15159901","LIBRARY"]
["15160501","Humor of the Old Southwest_P","15160501","LIBRARY"]
["15162201","Foul and Fair Play_C","15162201","LIBRARY"]
["15163301","Daughter of the Swan_C","15163301","LIBRARY"]
["15165501","Natives and Newcomers_C","15165501","LIBRARY"]
["15165701","Ethics and Environmental Pol_P","15165701","LIBRARY"]
["15166101","Tobacco Road_P","15166101","LIBRARY"]
["15166301","God's Little Acre_P","15166301","LIBRARY"]
["15166501","Literary Percys_C","15166501","LIBRARY"]
["15166701","Women's Work, Men's Work_C","15166701","LIBRARY"]
["15166801","Fables of Subversion_C","15166801","LIBRARY"]
["15167001","Segregation_P","15167001","LIBRARY"]
["15167301","Forgiving the Boundaries_C","15167301","LIBRARY"]
["15168201","Melville's Art of Democracy_C","15168201","LIBRARY"]
["15169701","Living Atlanta_P","15169701","LIBRARY"]
["15170701","Patterned Aimlessness_C","15170701","LIBRARY"]
["15170901","Resonant Gaps_C","15170901","LIBRARY"]
["15171201","Situado and Sabana_P","15171201","LIBRARY"]
["15171301","John Franklin Jameson and th_C","15171301","LIBRARY"]
["15171601","Deep South_P","15171601","LIBRARY"]
["15172201","Spirit of Traditional Chines_C","15172201","LIBRARY"]
["15172301","Countercultural South_C","15172301","LIBRARY"]
["15172601","Science Fiction and Market R_C","15172601","LIBRARY"]
["15172701","Tokens of Affection_C","15172701","LIBRARY"]
["15173001","Realism and the Birth of the_C","15173001","LIBRARY"]
["15173501","Federal Law and Southern Ord_P","15173501","LIBRARY"]
["15173701","Prisons That Could Not Hold_P","15173701","LIBRARY"]
["15174101","Faulkner and Southern Womanh_P","15174101","LIBRARY"]
["15174201","Fire in the Flint_P","15174201","LIBRARY"]
["15174601","Letters of Sarah Harriet Bur_C","15174601","LIBRARY"]
["15174701","Foods of the Gods_C","15174701","LIBRARY"]
["15175201","South as an American Problem_P","15175201","LIBRARY"]
["15175901","Childhood_C","15175901","LIBRARY"]
["15176001","Deep Enough for Ivorybills_P","15176001","LIBRARY"]
["15176301","Malcolm Lowry's La Mordida_C","15176301","LIBRARY"]
["15177401","Historical Fictions_P","15177401","LIBRARY"]
["15177501","All Set About with Fever Tre_P","15177501","LIBRARY"]
["15177901","For God and Mammon_C","15177901","LIBRARY"]
["15178101","Ecocriticism Reader_P","15178101","LIBRARY"]
["15178401","In Search of Bisco_P","15178401","LIBRARY"]
["15178701","Scriptures for a Generation_P","15178701","LIBRARY"]
["15178901","Sacrilege of Alan Kent_C","15178901","LIBRARY"]
["15179201","One Name but Several Faces_C","15179201","LIBRARY"]
["15179601","Inheritance of Horses_P","15179601","LIBRARY"]
["15179901","New Georgia Guide_P","15179901","LIBRARY"]
["15180101","Lactilla, Milkwoman of Clift_C","15180101","LIBRARY"]
["15180301","American Childhood_P","15180301","LIBRARY"]
["15181101","Approximate Darling_P","15181101","LIBRARY"]
["15181901","Poetics and Praxis, Understa_C","15181901","LIBRARY"]
["15182001","Adventures of Telemachus, th_C","15182001","LIBRARY"]
["15182201","Tuesday Club of Annapolis _C","15182201","LIBRARY"]
["15182301","Melusine of Lusignan_C","15182301","LIBRARY"]
["15182401","Civil Rights and the Idea of_P","15182401","LIBRARY"]
["15182601","Making of Malcolm Lowry's Un_C","15182601","LIBRARY"]
["15182801","Truth in Things_C","15182801","LIBRARY"]
["15183001","To Have and to Hold_C","15183001","LIBRARY"]
["15183201","Founding Fictions_C","15183201","LIBRARY"]
["15184101","Emblems of Conduct_P","15184101","LIBRARY"]
["15184201","Memory of a Large Christmas_C","15184201","LIBRARY"]
["15184501","Spirit of Biblical Law_C","15184501","LIBRARY"]
["15184801","Journeyman_P","15184801","LIBRARY"]
["15184901","Call It Experience_P","15184901","LIBRARY"]
["15185001","Southern Weave of Women_P","15185001","LIBRARY"]
["15185401","Heritage of Woe_C","15185401","LIBRARY"]
["15185701","Power of the Porch_C","15185701","LIBRARY"]
["15186401","Major Prose of Thomas Henry _C","15186401","LIBRARY"]
["15188201","Voices from the Mountains_P","15188201","LIBRARY"]
["15189001","Lost in Translation_C","15189001","LIBRARY"]
["15189901","Southern Odyssey_C","15189901","LIBRARY"]
["15190501","Root of All Evil_C","15190501","LIBRARY"]
["15190801","Daughters of the Great Depre_P","15190801","LIBRARY"]
["15191301","Remembering James Agee_C","15191301","LIBRARY"]
["15192001","Jankyn's Book of Wikked Wyve_C","15192001","LIBRARY"]
["15192401","Cobb's Ordeal_C","15192401","LIBRARY"]
["15192701","Lessons from the Wolverine_C","15192701","LIBRARY"]
["15192801","Jekyll Island Cottage Colony_C","15192801","LIBRARY"]
["15193301","American Body Politics_C","15193301","LIBRARY"]
["15194001","Living to Prowl_C","15194001","LIBRARY"]
["15194201","Place Over Time_P","15194201","LIBRARY"]
["15195401","Bright Skin_P","15195401","LIBRARY"]
["15195901","Ghosts of Herty Field_P","15195901","LIBRARY"]
["15196101","Portrait of an Island_P","15196101","LIBRARY"]
["15196301","Sacred Flame of Love_C","15196301","LIBRARY"]
["15196601","Cultural Diversity in the U._P","15196601","LIBRARY"]
["15197101","Tobias Smollett_C","15197101","LIBRARY"]
["15197301","Craftsmanship and Character_C","15197301","LIBRARY"]
["15198101","Tender Carnivore and the Sac_P","15198101","LIBRARY"]
["15198201","Thinking Animals_P","15198201","LIBRARY"]
["15198701","Clashing of the Soul_C","15198701","LIBRARY"]
["15198801","Public Worship, Private Fait_P","15198801","LIBRARY"]
["15199101","Patriot_P","15199101","LIBRARY"]
["15199501","Anne Finch Wellesley Manuscr_C","15199501","LIBRARY"]
["15199801","River Home_P","15199801","LIBRARY"]
["15199901","Billy Watson's Croker Sack_P","15199901","LIBRARY"]
["15200101","Good War's Greatest Hits_C","15200101","LIBRARY"]
["15200701","Divided Planet_P","15200701","LIBRARY"]
["15200901","Battlegrounds of Memory_C","15200901","LIBRARY"]
["15201201","Circuit Rider's Wife_P","15201201","LIBRARY"]
["15201301","Voice of Deliverance_P","15201301","LIBRARY"]
["15201601","Fragments of Our Time_C","15201601","LIBRARY"]
["15202301","Thomas Lanier Clingman_C","15202301","LIBRARY"]
["15202501","Peru and the United States_P","15202501","LIBRARY"]
["15203301","Rich Man's War_C","15203301","LIBRARY"]
["15203401","Free to Work_C","15203401","LIBRARY"]
["15203901","John Franklin Jameson and th_C","15203901","LIBRARY"]
["15204001","Unequal Hours_C","15204001","LIBRARY"]
["15204401","Recollections of a Southern _C","15204401","LIBRARY"]
["15205001","Afro-Modernist Aesthetics an_C","15205001","LIBRARY"]
["15206001","Crackers_P","15206001","LIBRARY"]
["15206801","Allegory of the Supermarket_P","15206801","LIBRARY"]
["15207401","Civil War Stories_P","15207401","LIBRARY"]
["15207501","Who Runs Georgia?_P","15207501","LIBRARY"]
["15207701","Letters from New-York_P","15207701","LIBRARY"]
["15207801","Un-American Childhood_P","15207801","LIBRARY"]
["15208201","Unique and Fortuitous Combin_C","15208201","LIBRARY"]
["15208801","Woods Stretched for Miles_P","15208801","LIBRARY"]
["15208901","De Renne_C","15208901","LIBRARY"]
["15209001","Crossing Wildcat Ridge_C","15209001","LIBRARY"]
["15209201","Kalendarium of John Somer_C","15209201","LIBRARY"]
["15209701","Robert Penn Warren's All the_C","15209701","LIBRARY"]
["15209801","Wilderness and the Heart_P","15209801","LIBRARY"]
["15210001","My Grandfather's Finger_C","15210001","LIBRARY"]
["15210301","Testing the Limits_C","15210301","LIBRARY"]
["15210501","Trouble in July_P","15210501","LIBRARY"]
["15211201","We're Heaven Bound!_P","15211201","LIBRARY"]
["15211301","From Abbeville to Zebulon_P","15211301","LIBRARY"]
["15211701","Captured_C","15211701","LIBRARY"]
["15212201","Islanders in the Stream: A H_P","15212201","LIBRARY"]
["15212401","Challenging Boundaries_P","15212401","LIBRARY"]
["15212601","Dark Waves and Light Matter_C","15212601","LIBRARY"]
["15212801","Ethnoecology_P","15212801","LIBRARY"]
["15212901","Liberating Sojourn_P","15212901","LIBRARY"]
["15213201","Stories with a Moral_C","15213201","LIBRARY"]
["15213401","Suburban Wild_C","15213401","LIBRARY"]
["15213701","Hush, Child! Can't You Hear _P","15213701","LIBRARY"]
["15213801","Roots and Ever Green_C","15213801","LIBRARY"]
["15214001","Walker Percy's Voices_C","15214001","LIBRARY"]
["15214201","Cligès_P","15214201","LIBRARY"]
["15215001","Shaping Traditions_P","15215001","LIBRARY"]
["15215301","Sleeping with One Eye Open_P","15215301","LIBRARY"]
["15215801","Wake Up Dead Man_P","15215801","LIBRARY"]
["15216501","Adventures of Roderick Rando_C","15216501","LIBRARY"]
["15216601","Slavery in the Caribbean Fra_C","15216601","LIBRARY"]
["15217301","Communities and Capital_P","15217301","LIBRARY"]
["15217701","Georgia Voices_P","15217701","LIBRARY"]
["15217801","Lonelier than God_C","15217801","LIBRARY"]
["15217901","Wildflowers of Georgia_C","15217901","LIBRARY"]
["15218001","American Literary Environmen_C","15218001","LIBRARY"]
["15218101","Appalachian Wildflowers_P","15218101","LIBRARY"]
["15218301","Gender, Race, and Rank in a _C","15218301","LIBRARY"]
["15218501","Civilian Histories_P","15218501","LIBRARY"]
["15218601","Tales from the Cloud Walking_P","15218601","LIBRARY"]
["15219101","Unintended Consequences of C_P","15219101","LIBRARY"]
["15219301","Yesterday in the Hills_P","15219301","LIBRARY"]
["15219401","House Behind the Cedars_P","15219401","LIBRARY"]
["15219501","Been Here and Gone_P","15219501","LIBRARY"]
["15219701","Bound for Shady Grove_C","15219701","LIBRARY"]
["15219901","One Family_C","15219901","LIBRARY"]
["15220001","Virgin Forest_P","15220001","LIBRARY"]
["15220101","Youngblood_P","15220101","LIBRARY"]
["15220201","Reciprocities in the Nonfict_C","15220201","LIBRARY"]
["15220401","Poetry of Two Minds_P","15220401","LIBRARY"]
["15220601","Visions of Caliban_P","15220601","LIBRARY"]
["15220701","Dylan Thomas_C","15220701","LIBRARY"]
["15221001","Them Dark Days_P","15221001","LIBRARY"]
["15221801","Second Wave_C","15221801","LIBRARY"]
["15222501","Serpent's Tale_P","15222501","LIBRARY"]
["15222701","Textual Studies and the Comm_P","15222701","LIBRARY"]
["15223001","Let Them Eat Data_P","15223001","LIBRARY"]
["15223101","Difficult Grace_P","15223101","LIBRARY"]
["15224001","Critical Memory_C","15224001","LIBRARY"]
["15224101","Emerson Dilemma_C","15224101","LIBRARY"]
["15224201","Woman in Front of the Sun_P","15224201","LIBRARY"]
["15224601","Anchored Yesterdays_C","15224601","LIBRARY"]
["15224901","Advancing Sisterhood?_C","15224901","LIBRARY"]
["15225201","Ways of Wisdom_C","15225201","LIBRARY"]
["15225301","Birth and Rebirth on an Alas_C","15225301","LIBRARY"]
["15225901","Memories of a Georgia Teache_C","15225901","LIBRARY"]
["15226001","Labor in the Modern South_C","15226001","LIBRARY"]
["15226201","Land and Allegiance in Revol_C","15226201","LIBRARY"]
["15227101","Trees of the Southeastern Un_P","15227101","LIBRARY"]
["15227201","Teaching Equality_C","15227201","LIBRARY"]
["15227301","Crash of Rhinos_P","15227301","LIBRARY"]
["15227401","From Selma to Sorrow_P","15227401","LIBRARY"]
["15227601","Cultural Theory and Popular _P","15227601","LIBRARY"]
["15227901","Latino Workers in the Contem_P","15227901","LIBRARY"]
["15228001","Little Women_P","15228001","LIBRARY"]
["15228401","Islanders in the Stream: A H_P","15228401","LIBRARY"]
["15228501","Defending Constitutional Rig_C","15228501","LIBRARY"]
["15228701","Measured Word_P","15228701","LIBRARY"]
["15228901","Religion and the American Na_C","15228901","LIBRARY"]
["15229201","Downstream Extremity of the _P","15229201","LIBRARY"]
["15229301","Gauguin Answer Sheet_P","15229301","LIBRARY"]
["15229701","Autobiographical Reflections_C","15229701","LIBRARY"]
["15229801","Shatter Me with Dawn_C","15229801","LIBRARY"]
["15230301","Storyville, USA_P","15230301","LIBRARY"]
["15230801","And Venus Is Blue_P","15230801","LIBRARY"]
["15231701","Southern Local Color_P","15231701","LIBRARY"]
["15231801","Sudden Music_C","15231801","LIBRARY"]
["15232601","Susan Fenimore Cooper_C","15232601","LIBRARY"]
["15232701","State Botanical Garden of Ge_C","15232701","LIBRARY"]
["15232801","Renewing Birmingham_C","15232801","LIBRARY"]
["15232901","Way It Was in the South_P","15232901","LIBRARY"]
["15233001","Nations Divided_C","15233001","LIBRARY"]
["15233401","True and Authentic History o_P","15233401","LIBRARY"]
["15233701","Ozark Wildflowers_P","15233701","LIBRARY"]
["15233901","City Wilds_P","15233901","LIBRARY"]
["15234101","By Reason of Breakings_P","15234101","LIBRARY"]
["15234301","Oglethorpe's Dream_C","15234301","LIBRARY"]
["15234601","To Redeem the Soul of Americ_P","15234601","LIBRARY"]
["15234701","Fable in the Blood_C","15234701","LIBRARY"]
["15234901","Ethnobiology and Biocultural_P","15234901","LIBRARY"]
["15235501","Southern Indians and Anthrop_P","15235501","LIBRARY"]
["15235601","Tip of the Iceberg_C","15235601","LIBRARY"]
["15235701","Fleshing Out America_C","15235701","LIBRARY"]
["15236001","Seas of Gold, Seas of Cotton_C","15236001","LIBRARY"]
["15236201","Servants of the State_C","15236201","LIBRARY"]
["15236301","Rise of Judicial Management _C","15236301","LIBRARY"]
["15236401","Shaw Industries_C","15236401","LIBRARY"]
["15239001","Violence of the Morning_P","15239001","LIBRARY"]
["15239101","Dark Would (the missing pers_P","15239101","LIBRARY"]
["15240101","Unabridged Devil's Dictionar_P","15240101","LIBRARY"]
["15240901","Two Cities_P","15240901","LIBRARY"]
["15241101","South to the Future_C","15241101","LIBRARY"]
["15241501","Remembering Heaven's Face_P","15241501","LIBRARY"]
["15241601","Hammer and Blaze_P","15241601","LIBRARY"]
["15241901","Deep in Our Hearts_P","15241901","LIBRARY"]
["15242201","Essays on Nature and Landsca_P","15242201","LIBRARY"]
["15242401","Camera Man's Journey_C","15242401","LIBRARY"]
["15242501","Marching through Georgia_P","15242501","LIBRARY"]
["15243001","History and Adventures of th_C","15243001","LIBRARY"]
["15243301","South of Tradition_C","15243301","LIBRARY"]
["15243401","Critical Fictions_C","15243401","LIBRARY"]
["15243501","Charles W. Chesnutt and the _C","15243501","LIBRARY"]
["15244201","Making Freedom Pay_P","15244201","LIBRARY"]
["15244301","Victory at Home_P","15244301","LIBRARY"]
["15245001","Grounding Knowledge_C","15245001","LIBRARY"]
["15245901","What Nature Suffers to Groe_P","15245901","LIBRARY"]
["15246301","Reservoir_P","15246301","LIBRARY"]
["15247001","Values at Sea_P","15247001","LIBRARY"]
["15247201","Signifying Serpents and Mard_P","15247201","LIBRARY"]
["15247501","Shapers of Southern History_P","15247501","LIBRARY"]
["15247901","Flatness and Other Landscape_P","15247901","LIBRARY"]
["15248001","Selling Mrs. Consumer_P","15248001","LIBRARY"]
["15248201","New Deal and Beyond_P","15248201","LIBRARY"]
["15248501","DuBose Heyward Reader_P","15248501","LIBRARY"]
["15248801","Paul Green, Playwright of th_C","15248801","LIBRARY"]
["15249101","Wisdom from a Rainforest_P","15249101","LIBRARY"]
["15249301","As Eve Said to the Serpent_P","15249301","LIBRARY"]
["15249501","Vanishing Georgia_P","15249501","LIBRARY"]
["15249701","Seasons of Cumberland Island_C","15249701","LIBRARY"]
["15249801","Brown Decision, Jim Crow, an_C","15249801","LIBRARY"]
["15250101","Early Art of the Southeaster_C","15250101","LIBRARY"]
["15250201","Mississippi Women_C","15250201","LIBRARY"]
["15250301","Mississippi Women_P","15250301","LIBRARY"]
["15250401","Vertical Elegies 5_P","15250401","LIBRARY"]
["15250501","Guarding Greensboro_C","15250501","LIBRARY"]
["15250601","Look to the Lady_C","15250601","LIBRARY"]
["15251401","Voices from Company D_C","15251401","LIBRARY"]
["15251701","ISLE Reader_P","15251701","LIBRARY"]
["15251801","Renaissance in Charleston_C","15251801","LIBRARY"]
["15251901","Violence Within Violence Wit_C","15251901","LIBRARY"]
["15252001","Flannery O'Connor_P","15252001","LIBRARY"]
["15252101","Trash Phenomenon_P","15252101","LIBRARY"]
["15252401","Woody Plants of the Southeas_C","15252401","LIBRARY"]
["15252701","For Free Press and Equal Rig_C","15252701","LIBRARY"]
["15252801","Beyond Atlanta_P","15252801","LIBRARY"]
["15253001","Environmental Renaissance_C","15253001","LIBRARY"]
["15253201","Divine Agitators_P","15253201","LIBRARY"]
["15253301","Georgia's Amazing Coast_P","15253301","LIBRARY"]
["15253501","Fishes of the Middle Savanna_C","15253501","LIBRARY"]
["15254001","Mark Twain & Company_C","15254001","LIBRARY"]
["15254401","Agent of Empire_C","15254401","LIBRARY"]
["15254801","Reading the Roots_P","15254801","LIBRARY"]
["15254901","Howard W. Odum's Folklore Od_C","15254901","LIBRARY"]
["15255501","Fight against Fear_P","15255501","LIBRARY"]
["15255701","After O'Connor_P","15255701","LIBRARY"]
["15256101","Southern Histories_C","15256101","LIBRARY"]
["15256201","Hunger Overcome?_P","15256201","LIBRARY"]
["15256501","To Find My Own Peace_C","15256501","LIBRARY"]
["15256801","Book of Motion_P","15256801","LIBRARY"]
["15256901","Tales from the Easel_P","15256901","LIBRARY"]
["15257101","Equiano, the African_C","15257101","LIBRARY"]
["15257701","Sabbath Creek_C","15257701","LIBRARY"]
["15257801","To Hell and Back_P","15257801","LIBRARY"]
["15257901","Rethinking Social Realism_P","15257901","LIBRARY"]
["15258301","Hearing History_P","15258301","LIBRARY"]
["15258401","Striking Beauties_C","15258401","LIBRARY"]
["15258701","But Is It Garbage_P","15258701","LIBRARY"]
["15259101","Correspondence of Sarah Morg_C","15259101","LIBRARY"]
["15259201","Sunken Cities, Sacred Cenote_C","15259201","LIBRARY"]
["15259701","Lines in the Sand_P","15259701","LIBRARY"]
["15259801","Chickamauga_C","15259801","LIBRARY"]
["15260001","Of Thee I Sing_P","15260001","LIBRARY"]
["15260101","Nathalie Dupree's Southern M_P","15260101","LIBRARY"]
["15260201","Penn Center_C","15260201","LIBRARY"]
["15260401","Politics of Whiteness_P","15260401","LIBRARY"]
["15261401","Sea Turtles of the Atlantic _P","15261401","LIBRARY"]
["15261901","To Build Our Lives Together_P","15261901","LIBRARY"]
["15262001","Deep Cuba_P","15262001","LIBRARY"]
["15262101","Waist Deep in Black Water_P","15262101","LIBRARY"]
["15262301","Smile When You Call Me a Hil_P","15262301","LIBRARY"]
["15262401","Reconstruction of Southern D_C","15262401","LIBRARY"]
["15262601","Bridging Deep South Rivers_C","15262601","LIBRARY"]
["15262801","Common Thread_C","15262801","LIBRARY"]
["15264601","Before Scopes_P","15264601","LIBRARY"]
["15264901","Poetry of Men's Lives_P","15264901","LIBRARY"]
["15265801","Atlas of the Civil War, Mont_C","15265801","LIBRARY"]
["15266301","Mastery's End_C","15266301","LIBRARY"]
["15266701","Strange Birds in the Tree of_P","15266701","LIBRARY"]
["15266901","Torches of Light_P","15266901","LIBRARY"]
["15267101","Gateway to Justice_P","15267101","LIBRARY"]
["15267201","Liquid Land_P","15267201","LIBRARY"]
["15267401","Mujer frente al sol_P","15267401","LIBRARY"]
["15267501","Negotiating for Georgia_C","15267501","LIBRARY"]
["15268301","Hunting from Home_P","15268301","LIBRARY"]
["15268401","Mead_P","15268401","LIBRARY"]
["15268701","Pure Fire_P","15268701","LIBRARY"]
["15268801","Just beneath My Skin_P","15268801","LIBRARY"]
["15269001","Cincinnati Arch_P","15269001","LIBRARY"]
["15269901","Consuming Silences_P","15269901","LIBRARY"]
["15270001","Ornament to the City_C","15270001","LIBRARY"]
["15270501","Words and Music_P","15270501","LIBRARY"]
["15270801","Reading Southern Poverty bet_C","15270801","LIBRARY"]
["15270901","Eugene O'Neill's Last Plays_C","15270901","LIBRARY"]
["15272901","Drawing of a Swan Before Mem_P","15272901","LIBRARY"]
["15273001","Lord Brain_P","15273001","LIBRARY"]
["15273301","Selected Lectures of Ralph W_P","15273301","LIBRARY"]
["15273701","Uncle Tom Mania_P","15273701","LIBRARY"]
["15274101","Cumberland Island_P","15274101","LIBRARY"]
["15274201","Love Story Beginning in Span_P","15274201","LIBRARY"]
["15274401","Converging Stories_C","15274401","LIBRARY"]
["15274701","Wildflowers of the Eastern U_P","15274701","LIBRARY"]
["15274801","Forest Plants of the Southea_P","15274801","LIBRARY"]
["15275001","Faulkner and the Great Depre_C","15275001","LIBRARY"]
["15275401","Real Punks Don't Wear Black_P","15275401","LIBRARY"]
["15275701","Invisible Southerners_C","15275701","LIBRARY"]
["15275801","Berry College_C","15275801","LIBRARY"]
["15275901","Conserving Words_P","15275901","LIBRARY"]
["15276001","Sources of the Boece_C","15276001","LIBRARY"]
["15276201","Up from the Mudsills of Hell_C","15276201","LIBRARY"]
["15276301","Literary Guide to Flannery O_P","15276301","LIBRARY"]
["15276501","Traveling South_C","15276501","LIBRARY"]
["15276701","Art of the Cherokee_P","15276701","LIBRARY"]
["15277101","American South in the Twenti_P","15277101","LIBRARY"]
["15277201","Hope and Danger in the New S_P","15277201","LIBRARY"]
["15277301","We Do Not Eat Our Hearts Alo_P","15277301","LIBRARY"]
["15277401","Passenger_P","15277401","LIBRARY"]
["15277501","Chattooga_P","15277501","LIBRARY"]
["15277601","Savannah in the Old South_P","15277601","LIBRARY"]
["15277901","Unconventions_P","15277901","LIBRARY"]
["15278301","Gullah People and Their Afri_P","15278301","LIBRARY"]
["15278401","Exit to Freedom_P","15278401","LIBRARY"]
["15278501","Cause at Heart_P","15278501","LIBRARY"]
["15278701","Tracing the Essay_P","15278701","LIBRARY"]
["15278801","John Burroughs and the Place_C","15278801","LIBRARY"]
["15279001","Heart of a Distant Forest_P","15279001","LIBRARY"]
["15279501","Dragonflies and Damselflies _P","15279501","LIBRARY"]
["15279601","Reconnecting with John Muir_C","15279601","LIBRARY"]
["15279701","Muse in the Machine_P","15279701","LIBRARY"]
["15279801","Evangelism and Resistance in_C","15279801","LIBRARY"]
["15280101","Liberty's Captives_P","15280101","LIBRARY"]
["15280201","Shared Histories_P","15280201","LIBRARY"]
["15280401","Hey, Bug Doctor!_P","15280401","LIBRARY"]
["15280501","Neat Pieces_P","15280501","LIBRARY"]
["15280601","Depth Theology_P","15280601","LIBRARY"]
["15280901","Argentina and the United Sta_P","15280901","LIBRARY"]
["15281301","Knot_P","15281301","LIBRARY"]
["15281501","Spirits of the Air_C","15281501","LIBRARY"]
["15281601","Chicken Dreaming Corn_P","15281601","LIBRARY"]
["15282001","Nationalism in the New World_P","15282001","LIBRARY"]
["15282101","Freedom Writer_P","15282101","LIBRARY"]
["15282201","Creating the Big Easy_P","15282201","LIBRARY"]
["15283001","Millennium Folk_P","15283001","LIBRARY"]
["15283101","Caribbean and Southern_C","15283101","LIBRARY"]
["15283201","Caribbean and Southern_P","15283201","LIBRARY"]
["15283501","Bamboo Fly Rod Suite_P","15283501","LIBRARY"]
["15283801","Celestial Jukebox_P","15283801","LIBRARY"]
["15284101","Favorite Wildflower Walks in_P","15284101","LIBRARY"]
["15284201","Origins of the Dred Scott Ca_P","15284201","LIBRARY"]
["15284701","Themes for English B_C","15284701","LIBRARY"]
["15284801","Cry of Angels_P","15284801","LIBRARY"]
["15284901","Cultural Theory and Popular _P","15284901","LIBRARY"]
["15285001","Georgia Quilts_P","15285001","LIBRARY"]
["15285701","Journey toward Justice_C","15285701","LIBRARY"]
["15285801","Romancing the Vote_C","15285801","LIBRARY"]
["15286001","Double Character_P","15286001","LIBRARY"]
["15287001","Visible Man_C","15287001","LIBRARY"]
["15287101","Do, Die, or Get Along_P","15287101","LIBRARY"]
["15287201","Dixie Lullaby_P","15287201","LIBRARY"]
["15287601","New Georgia Encyclopedia Com_P","15287601","LIBRARY"]
["15287701","William Bartram, The Search _C","15287701","LIBRARY"]
["15287901","Everybody Was Black Down The_P","15287901","LIBRARY"]
["15288301","Lost Boys of Sudan_P","15288301","LIBRARY"]
["15288601","Coming into Contact_P","15288601","LIBRARY"]
["15289301","Breeding Bird Atlas of Georg_C","15289301","LIBRARY"]
["15289701","Greenbackers, Knights of Lab_C","15289701","LIBRARY"]
["15289801","Architecture of Francis Palm_C","15289801","LIBRARY"]
["15290001","New Orleans after the Promis_P","15290001","LIBRARY"]
["15290201","Turtles of the Southeast_P","15290201","LIBRARY"]
["15290501","Making War, Making Women_P","15290501","LIBRARY"]
["15290601","Politics in Georgia_C","15290601","LIBRARY"]
["15290701","Politics in Georgia_P","15290701","LIBRARY"]
["15290901","Ultra-Talk_P","15290901","LIBRARY"]
["15291001","Pussycat of Prizefighting_P","15291001","LIBRARY"]
["15291101","Democracy Restored_C","15291101","LIBRARY"]
["15291301","Leader and the Crowd_C","15291301","LIBRARY"]
["15291401","Prophet from Plains_C","15291401","LIBRARY"]
["15291901","Good Observers of Nature_P","15291901","LIBRARY"]
["15292001","Mary Telfair to Mary Few_C","15292001","LIBRARY"]
["15292201","Frogs and Toads of the South_P","15292201","LIBRARY"]
["15292401","Practical Research Methods f_P","15292401","LIBRARY"]
["15292601","Ringing Ear_P","15292601","LIBRARY"]
["15292801","Daughter of My People_P","15292801","LIBRARY"]
["15292901","Peachtree Creek_C","15292901","LIBRARY"]
["15293201","Paraguay and the United Stat_P","15293201","LIBRARY"]
["15293301","Hell's Broke Loose in Georgi_P","15293301","LIBRARY"]
["15293401","Dough_C","15293401","LIBRARY"]
["15293501","South Carolina Women_C","15293501","LIBRARY"]
["15293701","South Carolina Women_C","15293701","LIBRARY"]
["15293801","South Carolina Women_P","15293801","LIBRARY"]
["15294101","Sound Wormy_P","15294101","LIBRARY"]
["15294301","Berry Benson's Civil War Boo_P","15294301","LIBRARY"]
["15294401","Crossing to Sunlight Revisit_P","15294401","LIBRARY"]
["15294501","Can't I Love What I Criticiz_C","15294501","LIBRARY"]
["15294601","Louisiana Women_C","15294601","LIBRARY"]
["15294701","Louisiana Women_P","15294701","LIBRARY"]
["15294801","Tennessee Women_C","15294801","LIBRARY"]
["15294901","Tennessee Women_P","15294901","LIBRARY"]
["15295201","Cartographies_P","15295201","LIBRARY"]
["15295301","Always the Mountains_P","15295301","LIBRARY"]
["15295401","Pond Lovers_P","15295401","LIBRARY"]
["15295601","Henry Adams and the Southern_P","15295601","LIBRARY"]
["15295801","Transcendentalists_P","15295801","LIBRARY"]
["15296001","New Cultural Studies_P","15296001","LIBRARY"]
["15296501","Judgment and Grace in Dixie_P","15296501","LIBRARY"]
["15296701","Jack London, Photographer_C","15296701","LIBRARY"]
["15296901","American Wars, American Peac_C","15296901","LIBRARY"]
["15297301","John Ashbery and You_C","15297301","LIBRARY"]
["15298901","Sprawling Places_P","15298901","LIBRARY"]
["15299101","Gathering of Matter / Matter_P","15299101","LIBRARY"]
["15299301","Ralph Ellison_P","15299301","LIBRARY"]
["15299901","Sam Richards's Civil War Dia_C","15299901","LIBRARY"]
["15300101","Late Thoughts on an Old War_P","15300101","LIBRARY"]
["15300501","Web of Words_C","15300501","LIBRARY"]
["15300901","Little Women Abroad_C","15300901","LIBRARY"]
["15301201","Jesus Sound Explosion_P","15301201","LIBRARY"]
["15301301","Campus Sexpot_P","15301301","LIBRARY"]
["15301801","Formation of a Planter Elite_P","15301801","LIBRARY"]
["15301901","Entrepreneurs in the Souther_C","15301901","LIBRARY"]
["15302001","Pillared City_C","15302001","LIBRARY"]
["15302101","Natural Communities of Georg_C","15302101","LIBRARY"]
["15302501","Race, Reason, and Massive Re_C","15302501","LIBRARY"]
["15302601","Confluences_P","15302601","LIBRARY"]
["15303001","Reading Essays_P","15303001","LIBRARY"]
["15303101","Bouquet of Hungers_P","15303101","LIBRARY"]
["15303301","Partial Faiths_P","15303301","LIBRARY"]
["15303501","Salamanders of the Southeast_P","15303501","LIBRARY"]
["15303701","Down to the Waterline_P","15303701","LIBRARY"]
["15303801","Little Salvation_P","15303801","LIBRARY"]
["15303901","Racing in Place_P","15303901","LIBRARY"]
["15304301","Crackers in the Glade_P","15304301","LIBRARY"]
["15304401","Portrait of Historic Athens _P","15304401","LIBRARY"]
["15304601","Weeds of the South_P","15304601","LIBRARY"]
["15305001","Georgia Odyssey_P","15305001","LIBRARY"]
["15305201","Other Souths_P","15305201","LIBRARY"]
["15305501","Art and Life of Clarence Maj_C","15305501","LIBRARY"]
["15305901","Listening to the Land_P","15305901","LIBRARY"]
["15306201","In Black and White_P","15306201","LIBRARY"]
["15306301","Preserving Family Recipes_P","15306301","LIBRARY"]
["15306401","African American Life in the_C","15306401","LIBRARY"]
["15307101","Everglades Providence_C","15307101","LIBRARY"]
["15308901","Cornbread Nation 4_P","15308901","LIBRARY"]
["15310201","Walking the Wrack Line_C","15310201","LIBRARY"]
["15310901","Savage Barbecue_P","15310901","LIBRARY"]
["15311101","Amphibians and Reptiles of G_P","15311101","LIBRARY"]
["15311201","Disturbing Calculations_P","15311201","LIBRARY"]
["15311501","Crucible of Carolina_P","15311501","LIBRARY"]
["15311701","Field Folly Snow_P","15311701","LIBRARY"]
["15311801","Hardscrabble_P","15311801","LIBRARY"]
["15315101","Social Harp_P","15315101","LIBRARY"]
["15315801","Lizards and Crocodilians of _P","15315801","LIBRARY"]
["15316601","Fearless Confessions_P","15316601","LIBRARY"]
["15317101","Wilderness Debate Rages On_P","15317101","LIBRARY"]
["15317601","Salvinia Molesta_P","15317601","LIBRARY"]
["15320401","Devotion_P","15320401","LIBRARY"]
["15320501","On Tarzan_P","15320501","LIBRARY"]
["15320601","Anna, Washing_P","15320601","LIBRARY"]
["15321901","William Faulkner and the Sou_C","15321901","LIBRARY"]
["15322001","Brothers in Clay_P","15322001","LIBRARY"]
["15322401","William Wells Brown_P","15322401","LIBRARY"]
["15322501","Civil Rights Reader_P","15322501","LIBRARY"]
["15323301","Pioneering American Wine_C","15323301","LIBRARY"]
["15323601","Southern Judicial Tradition_P","15323601","LIBRARY"]
["15323701","Winter Sky_C","15323701","LIBRARY"]
["15323901","Screening a Lynching_P","15323901","LIBRARY"]
["15324301","There Goes the Neighborhood_P","15324301","LIBRARY"]
["15325101","Fathers of Conscience_P","15325101","LIBRARY"]
["15325301","Captain Jones's Wormslow_P","15325301","LIBRARY"]
["15327901","Novel Ideas_P","15327901","LIBRARY"]
["15329001","Passions for Nature_P","15329001","LIBRARY"]
["15332501","From Mud to Jug_P","15332501","LIBRARY"]
["15332701","Quiver_P","15332701","LIBRARY"]
["15332801","Free Union_P","15332801","LIBRARY"]
["15333101","Pale of Settlement_P","15333101","LIBRARY"]
["15333301","Lowcountry Hurricanes_P","15333301","LIBRARY"]
["15333701","Georgia Women_P","15333701","LIBRARY"]
["15333801","Phillis Wheatley_C","15333801","LIBRARY"]
["15334501","Where We Belong_P","15334501","LIBRARY"]
["15334801","Circling Home_P","15334801","LIBRARY"]
["15339401","Mississippi Women_P","15339401","LIBRARY"]
["15340101","Let Us Now Praise Famous Gul_C","15340101","LIBRARY"]
["15340601","Marion Manley_P","15340601","LIBRARY"]
["15340801","Mansion of Happiness_P","15340801","LIBRARY"]
["15341401","Illustrating the Machine Tha_P","15341401","LIBRARY"]
["15341501","Motoring_P","15341501","LIBRARY"]
["15341901","Trembling Earth_P","15341901","LIBRARY"]
["15342101","Send-Away Girl_P","15342101","LIBRARY"]
["15342301","Necessary Grace to Fall_P","15342301","LIBRARY"]
["15342701","Horrible Gift of Freedom_P","15342701","LIBRARY"]
["15347301","In the World He Created Acco_P","15347301","LIBRARY"]
["15347401","Wreath of Down and Drops of _P","15347401","LIBRARY"]
["15350601","Weeds of the Midwestern Unit_P","15350601","LIBRARY"]
["15350701","Cornbread Nation 5_P","15350701","LIBRARY"]
["15351901","Creating the Culture of Refo_P","15351901","LIBRARY"]
["15356901","Seriously Funny_P","15356901","LIBRARY"]
["15357601","Here Be Monsters_P","15357601","LIBRARY"]
["15358201","Walker Percy's Search for Co_P","15358201","LIBRARY"]
["15367901","Lost Boys_P","15367901","LIBRARY"]
["15368401","Logorrhea Dementia_P","15368401","LIBRARY"]
["15370801","Copy Cats_P","15370801","LIBRARY"]
["15373001","Crossroads of Conflict_P","15373001","LIBRARY"]
["15373901","Vibration Cooking_P","15373901","LIBRARY"]
["15374301","Tennessee Women_P","15374301","LIBRARY"]
["15378001","Shades of Green_P","15378001","LIBRARY"]
["15378101","Jack London's Racial Lives_P","15378101","LIBRARY"]
["15378301","From Mounds to Megachurches_P","15378301","LIBRARY"]
["15378501","Georgia Women_P","15378501","LIBRARY"]
["15378601","Distant Flame_P","15378601","LIBRARY"]
["15379901","For the Mountain Laurel_P","15379901","LIBRARY"]
["15381501","Drifting into Darien_C","15381501","LIBRARY"]
["15381801","John Bachman_C","15381801","LIBRARY"]
["15381901","Drowning Lessons_P","15381901","LIBRARY"]
["15382501","Common Birds of Greater Atla_P","15382501","LIBRARY"]
["15382801","Common Birds of Coastal Geor_P","15382801","LIBRARY"]
["15383501","Invasive Pythons in the Unit_P","15383501","LIBRARY"]
["15383601","Literary Capital_C","15383601","LIBRARY"]
["15386401","Tyrannicide_C","15386401","LIBRARY"]
["15387401","Fitzgerald_P","15387401","LIBRARY"]
["15387801","Rising China and Its Postmod_P","15387801","LIBRARY"]
["15388101","Stutter_P","15388101","LIBRARY"]
["15389101","Stuck_P","15389101","LIBRARY"]
["15398101","Civil War in Georgia_P","15398101","LIBRARY"]
["15400001","North Carolina Women_P","15400001","LIBRARY"]
["15400201","North Carolina Women_P","15400201","LIBRARY"]
["15403301","Reconstructing Democracy_C","15403301","LIBRARY"]
["15403801","Women, Gender, and Terrorism_P","15403801","LIBRARY"]
["15406401","What Virtue There Is in Fire_P","15406401","LIBRARY"]
["15406501","Walden by Haiku_P","15406501","LIBRARY"]
["15408401","Trial of Democracy_P","15408401","LIBRARY"]
["15408601","Winter Sky_P","15408601","LIBRARY"]
["15408701","Civil War Letters of Joseph _P","15408701","LIBRARY"]
["15408801","Damn Good Dogs!_C","15408801","LIBRARY"]
["15412301","Embattled Wilderness_C","15412301","LIBRARY"]
["15412601","Sacred Mission, Worldly Ambi_P","15412601","LIBRARY"]
["15417601","They Saved the Crops_P","15417601","LIBRARY"]
["15417701","Remaking Wormsloe Plantation_C","15417701","LIBRARY"]
["15421201","Diplomacy in Black and White_C","15421201","LIBRARY"]
["15421801","Spit Baths_P","15421801","LIBRARY"]
["15421901","Black Elvis_P","15421901","LIBRARY"]
["15422101","Please Come Back To Me_P","15422101","LIBRARY"]
["15424501","Island Time_C","15424501","LIBRARY"]
["15424801","Through the Arch_P","15424801","LIBRARY"]
["15425401","Stories Wanting Only to Be H_P","15425401","LIBRARY"]
["15425501","Field Guide for Immersion Wr_P","15425501","LIBRARY"]
["15426101","Cornbread Nation 6_P","15426101","LIBRARY"]
["15426301","Virginia Women_P","15426301","LIBRARY"]
["15426501","Virginia Women_P","15426501","LIBRARY"]
["15427001","Louisiana Women_P","15427001","LIBRARY"]
["15430201","Doing Recent History_P","15430201","LIBRARY"]
["15430701","African American Life in the_P","15430701","LIBRARY"]
["15430801","Charlotte, NC_P","15430801","LIBRARY"]
["15430901","Life and Letters of Philip Q_P","15430901","LIBRARY"]
["15431101","Beyond Katrina_P","15431101","LIBRARY"]
["15431201","Altamaha_P","15431201","LIBRARY"]
["15431301","Atlanta's Oakland Cemetery_P","15431301","LIBRARY"]
["15431601","Signifying Eye_C","15431601","LIBRARY"]
["15432101","America's Corporal_P","15432101","LIBRARY"]
["15432401","Empowering Words_P","15432401","LIBRARY"]
["15433401","Craig Claiborne's Southern C_P","15433401","LIBRARY"]
["15433701","Companion to an Untold Story_C","15433701","LIBRARY"]
["15433801","Reading for the Body_P","15433801","LIBRARY"]
["15434001","Georgia's Frontier Women_P","15434001","LIBRARY"]
["15434101","Domesticating Foreign Strugg_P","15434101","LIBRARY"]
["15434201","Civil War Time_P","15434201","LIBRARY"]
["15434301","James Habersham_P","15434301","LIBRARY"]
["15434501","Pauline E. Hopkins_P","15434501","LIBRARY"]
["15434801","Exit, Civilian_P","15434801","LIBRARY"]
["15434901","Love, in Theory_C","15434901","LIBRARY"]
["15436301","Spellbound_P","15436301","LIBRARY"]
["15441001","Slavery and Freedom in Savan_P","15441001","LIBRARY"]
["15441301","Art of Managing Longleaf_P","15441301","LIBRARY"]
["15441601","Everybody Else_P","15441601","LIBRARY"]
["15442101","Upheaval in Charleston_P","15442101","LIBRARY"]
["15442301","Norm Dynamics in Multilatera_P","15442301","LIBRARY"]
["15442501","Eat Drink Delta_P","15442501","LIBRARY"]
["15442901","Thoreauvian Modernities_P","15442901","LIBRARY"]
["15443801","Riots_P","15443801","LIBRARY"]
["15445301","Kentucky Women_P","15445301","LIBRARY"]
["15445401","Development, Security, and A_P","15445401","LIBRARY"]
["15445501","Enterprising Women_C","15445501","LIBRARY"]
["15446301","Etowah River User's Guide_P","15446301","LIBRARY"]
["15448901","Shadows of a Sunbelt City_P","15448901","LIBRARY"]
["15449801","Mound Sites of the Ancient S_P","15449801","LIBRARY"]
["15449901","Signposts_P","15449901","LIBRARY"]
["15450001","Fallen Forests_P","15450001","LIBRARY"]
["15450101","Sorry I Worried You_P","15450101","LIBRARY"]
["15450201","Properties of Violence_P","15450201","LIBRARY"]
["15450401","Hummingbird Sleep_P","15450401","LIBRARY"]
["15450801","Selling the Serengeti_P","15450801","LIBRARY"]
["15451001","North Carolina's Amazing Coa_P","15451001","LIBRARY"]
["15451201","Geographical Diversions_P","15451201","LIBRARY"]
["15451301","Nathalie Dupree's Comfortabl_P","15451301","LIBRARY"]
["15451601","Southern Tufts_C","15451601","LIBRARY"]
["15452201","Children's Table_P","15452201","LIBRARY"]
["15452501","Adventures of Peregrine Pick_C","15452501","LIBRARY"]
["15452601","Finding Purple America_P","15452601","LIBRARY"]
["15452701","International Cooperation on_C","15452701","LIBRARY"]
["15453001","Politics of the Encounter_P","15453001","LIBRARY"]
["15453101","Rise and Decline of the Redn_P","15453101","LIBRARY"]
["15453201","Drifting into Darien_P","15453201","LIBRARY"]
["15453301","World of the Salt Marsh_P","15453301","LIBRARY"]
["15453401","Last Day on Earth_P","15453401","LIBRARY"]
["15453701","Thieves I've Known_C","15453701","LIBRARY"]
["15454001","Becoming Confederates_P","15454001","LIBRARY"]
["15454101","Turn Me Loose_P","15454101","LIBRARY"]
["15454201","Divided Sovereignties_C","15454201","LIBRARY"]
["15454501","Retrofitting Sprawl_P","15454501","LIBRARY"]
["15454801","Viewing Room_C","15454801","LIBRARY"]
["15455301","Red, White, and Black Make B_P","15455301","LIBRARY"]
["15455701","Black Woman Reformer_C","15455701","LIBRARY"]
["15455801","Minerals of Georgia_P","15455801","LIBRARY"]
["15456001","Future of Just War_P","15456001","LIBRARY"]
["15456201","Oil Sparks in the Amazon_P","15456201","LIBRARY"]
["15456301","James McHenry, Forgotten Fed_C","15456301","LIBRARY"]
["15456401","Cloud That Contained the Lig_P","15456401","LIBRARY"]
["15456501","My Dear Boy_C","15456501","LIBRARY"]
["15459401","Down and Up_P","15459401","LIBRARY"]
["15459601","Saving the Soul of Georgia_C","15459601","LIBRARY"]
["15459701","This Is My Century_P","15459701","LIBRARY"]
["15459801","Jim Crow, Literature, and th_P","15459801","LIBRARY"]
["15459901","Sacral Grooves, Limbo Gatewa_P","15459901","LIBRARY"]
["15460001","American Afterlife_C","15460001","LIBRARY"]
["15461001","Jankyn's Book of Wikked Wyve_C","15461001","LIBRARY"]
["15461101","Shout Because You're Free_P","15461101","LIBRARY"]
["15461201","Architecture of Middle Georg_P","15461201","LIBRARY"]
["15461301","Folk Visions and Voices_P","15461301","LIBRARY"]
["15461401","Flannery O'Connor's Georgia_P","15461401","LIBRARY"]
["15461601","Great and Noble Jar_P","15461601","LIBRARY"]
["15461701","Generations in Black and Whi_P","15461701","LIBRARY"]
["15461801","Thomas Nast, Political Carto_P","15461801","LIBRARY"]
["15465701","Late Encounter with the Civi_P","15465701","LIBRARY"]
["15466201","Everyday Life in the Early E_P","15466201","LIBRARY"]
["15466601","Cornbread Nation 7_P","15466601","LIBRARY"]
["15466901","Truman Capote_P","15466901","LIBRARY"]
["15467101","People's War on Poverty_P","15467101","LIBRARY"]
["15467501","America's Darwin_P","15467501","LIBRARY"]
["15467701","Toward a Female Genealogy of_P","15467701","LIBRARY"]
["15467801","Pirates You Don't Know, and _P","15467801","LIBRARY"]
["15467901","Chattahoochee River User's G_P","15467901","LIBRARY"]
["15468001","Faiths of the Postwar Presid_P","15468001","LIBRARY"]
["15468101","Flush Times and Fever Dreams_P","15468101","LIBRARY"]
["15468201","Urban Origins of American Ju_C","15468201","LIBRARY"]
["15468301","What They Wished For_C","15468301","LIBRARY"]
["15468501","Confederate Odyssey_C","15468501","LIBRARY"]
["15468601","Faulty Predictions_C","15468601","LIBRARY"]
["15468801","Courthouses of Georgia_C","15468801","LIBRARY"]
["15471301","Revolutionizing Expectations_P","15471301","LIBRARY"]
["15471501","Blue, the Gray, and the Gree_P","15471501","LIBRARY"]
["15471701","Rethinking the South African_P","15471701","LIBRARY"]
["15472001","Texas Women_P","15472001","LIBRARY"]
["15472101","What Ridiculous Things We Co_P","15472101","LIBRARY"]
["15472401","Love, Liberation, and Escapi_P","15472401","LIBRARY"]
["15472601","Curious Mister Catesby_C","15472601","LIBRARY"]
["15472701","Zero to Three_P","15472701","LIBRARY"]
["15472801","Honest Engine_P","15472801","LIBRARY"]
["15472901","State Behavior and the Nucle_C","15472901","LIBRARY"]
["15473101","Womanpower Unlimited and the_P","15473101","LIBRARY"]
["15473301","Faith in Bikinis_P","15473301","LIBRARY"]
["15473401","Three Governors Controversy_C","15473401","LIBRARY"]
["15473501","Empires' Edge_P","15473501","LIBRARY"]
["15473701","Sounding the Color Line_P","15473701","LIBRARY"]
["15473801","Jekyll Island's Early Years_P","15473801","LIBRARY"]
["15474201","Striking Beauties_P","15474201","LIBRARY"]
["15474401","Remaking Wormsloe Plantation_P","15474401","LIBRARY"]
["15474501","Elbert Parr Tuttle_P","15474501","LIBRARY"]
["15474601","Early Art of the Southeaster_P","15474601","LIBRARY"]
["15474701","Augury_P","15474701","LIBRARY"]
["15474801","Riding the Demon_P","15474801","LIBRARY"]
["15475001","Natchez Country_P","15475001","LIBRARY"]
["15475701","Small Heart of Things_P","15475701","LIBRARY"]
["15475901","To Live and Dine in Dixie_P","15475901","LIBRARY"]
["15476101","Sense of Regard_P","15476101","LIBRARY"]
["15476201","Mountain Blood_P","15476201","LIBRARY"]
["15476501","Coming to Pass_C","15476501","LIBRARY"]
["15476701","Marsh Mud and Mummichogs_C","15476701","LIBRARY"]
["15476901","Diplomacy in Black and White_P","15476901","LIBRARY"]
["15477101","Sharing the Earth_P","15477101","LIBRARY"]
["15477201","Wisest Council in the World_C","15477201","LIBRARY"]
["15479501","Politics of Urban Water_P","15479501","LIBRARY"]
["15479601","From Now On_P","15479601","LIBRARY"]
["15479701","Philip Juras: The Southern F_P","15479701","LIBRARY"]
["15479801","Alone atop the Hill_C","15479801","LIBRARY"]
["15479901","Norm Diffusion and HIV/AIDS _C","15479901","LIBRARY"]
["15480001","Working for Equality_C","15480001","LIBRARY"]
["15480101","Gender and the Jubilee_C","15480101","LIBRARY"]
["15480501","Slavery, Childhood, and Abol_P","15480501","LIBRARY"]
["15480701","Remaking Home Economics_P","15480701","LIBRARY"]
["15481001","Lens of War_C","15481001","LIBRARY"]
["15481301","Pain, Pride, and Politics_P","15481301","LIBRARY"]
["15481501","After Montaigne_C","15481501","LIBRARY"]
["15482001","Mot_C","15482001","LIBRARY"]
["15482201","Mapping Region in Early Amer_C","15482201","LIBRARY"]
["15482701","Love, in Theory_P","15482701","LIBRARY"]
["15482801","Invisibles_P","15482801","LIBRARY"]
["15483901","Eighty-Eight Years_P","15483901","LIBRARY"]
["15484001","Increase_P","15484001","LIBRARY"]
["15484101","Landscapes for the People_C","15484101","LIBRARY"]
["15484301","Territories of Poverty_P","15484301","LIBRARY"]
["15484901","Weaving Alliances with Other_P","15484901","LIBRARY"]
["15485001","Suicide Club_C","15485001","LIBRARY"]
["15485301","Better Than War_C","15485301","LIBRARY"]
["15485601","Vegan Studies Project_P","15485601","LIBRARY"]
["15485701","Nashville Sound_P","15485701","LIBRARY"]
["15485801","Southern Foodways Alliance C_P","15485801","LIBRARY"]
["15485901","Memories of the Mansion_C","15485901","LIBRARY"]
["15486401","Privateers of the Americas_P","15486401","LIBRARY"]
["15486701","Without Regard to Sex, Race,_C","15486701","LIBRARY"]
["15486801","Field Guide to the Wildflowe_P","15486801","LIBRARY"]
["15486901","Island Passages_C","15486901","LIBRARY"]
["15487001","Eudora Welty’s Fiction and P_C","15487001","LIBRARY"]
["15487201","Fireflies, Glow-worms, and L_P","15487201","LIBRARY"]
["15487401","My Unsentimental Education_C","15487401","LIBRARY"]
["15487701","Spaces of Danger_P","15487701","LIBRARY"]
["15487801","Finding Charity's Folk_P","15487801","LIBRARY"]
["15488201","Precarious Worlds_P","15488201","LIBRARY"]
["15488501","Outcast Majority_P","15488501","LIBRARY"]
["15488701","Wild Treasury of Nature_C","15488701","LIBRARY"]
["15488801","Broad River User's Guide_P","15488801","LIBRARY"]
["15488901","Boy from Georgia_C","15488901","LIBRARY"]
["15489201","Invisible Sisters_P","15489201","LIBRARY"]
["15489401","Listening to the Savage_C","15489401","LIBRARY"]
["15489601","Mulatta Concubine_C","15489601","LIBRARY"]
["15490001","Conventional Wisdom_C","15490001","LIBRARY"]
["15490101","Snakes of the Southeast_P","15490101","LIBRARY"]
["15490201","Beyond Katrina_P","15490201","LIBRARY"]
["15490501","Borges's Poe_C","15490501","LIBRARY"]
["15490801","New Explorations into Intern_P","15490801","LIBRARY"]
["15491101","On the Outskirts of Normal_P","15491101","LIBRARY"]
["15491201","Sudden Music_P","15491201","LIBRARY"]
["15491301","Ladies Night at the Dreamlan_C","15491301","LIBRARY"]
["15491701","Civil Rights and Beyond_P","15491701","LIBRARY"]
["15492001","Decision to Attack_C","15492001","LIBRARY"]
["15492301","Blood, Bone, and Marrow_C","15492301","LIBRARY"]
["15492601","Daring to Write_P","15492601","LIBRARY"]
["15492801","Coyote Settles the South_C","15492801","LIBRARY"]
["15493101","What Persists_C","15493101","LIBRARY"]
["15493401","Inspired Georgia_C","15493401","LIBRARY"]
["15493501","Historic Rural Churches of G_C","15493501","LIBRARY"]
["15493701","Politics of Black Citizenshi_C","15493701","LIBRARY"]
["15494001","Black Newspaper and the Chos_C","15494001","LIBRARY"]
["15494301","Conversations with Miloševic_C","15494301","LIBRARY"]
["15495001","Beyond the Kale_P","15495001","LIBRARY"]
["15495401","Creating Flannery O'Connor_C","15495401","LIBRARY"]
["15495601","Charleston Syllabus_C","15495601","LIBRARY"]
["15495701","Charleston Syllabus_P","15495701","LIBRARY"]
["15496001","Literary Cultures of the Civ_C","15496001","LIBRARY"]
["15496201","Keywords for Southern Studie_P","15496201","LIBRARY"]
["15496301","Ruth Shellhorn_P","15496301","LIBRARY"]
["15496601","Whisperin' Bill Anderson_C","15496601","LIBRARY"]
["15497001","Snakes of the Eastern United_P","15497001","LIBRARY"]
["15497201","Stepping Lively in Place_P","15497201","LIBRARY"]
["15497301","Johnny Mercer_P","15497301","LIBRARY"]
["15497501","Billfish Story_P","15497501","LIBRARY"]
["15497601","Embattled Wilderness_P","15497601","LIBRARY"]
["15497901","James McHenry, Forgotten Fed_P","15497901","LIBRARY"]
["15498001","Companion to an Untold Story_P","15498001","LIBRARY"]
["15498101","Saving the Soul of Georgia_P","15498101","LIBRARY"]
["15498201","Art and Life of Clarence Maj_P","15498201","LIBRARY"]
["15498701","Current That Carries_C","15498701","LIBRARY"]
["15498901","Jungle Around Us_C","15498901","LIBRARY"]
["15499201","Trébuchet_P","15499201","LIBRARY"]
["15499901","Lillian Smith Reader_P","15499901","LIBRARY"]
["15500201","Ghosts of Guerrilla Memory_P","15500201","LIBRARY"]
["15501601","Sapelo_C","15501601","LIBRARY"]
["15502101","Waveform_P","15502101","LIBRARY"]
["15502201","Erskine Caldwell, Margaret B_C","15502201","LIBRARY"]
["15502901","Not So Fast_C","15502901","LIBRARY"]
["15504401","Fire and Stone_P","15504401","LIBRARY"]
["15504901","Sun & Urn_P","15504901","LIBRARY"]
["15505201","Flint River User's Guide_P","15505201","LIBRARY"]
["15505401","Southern Cooking_P","15505401","LIBRARY"]
["15505601","Sabbath Creek_P","15505601","LIBRARY"]
["15505701","Urban Origins of American Ju_P","15505701","LIBRARY"]
["15505801","American Afterlife_P","15505801","LIBRARY"]
["15506101","Cruel Country_P","15506101","LIBRARY"]
["15506501","Conscientious Thinking_C","15506501","LIBRARY"]
["15506601","Warren H. Manning_C","15506601","LIBRARY"]
["15507501","Letters of Mark Twain and Jo_C","15507501","LIBRARY"]
["15508101","Let Us Build Us a City_P","15508101","LIBRARY"]
["15509501","James Rose_P","15509501","LIBRARY"]
["15509701","New Perspectives on James We_C","15509701","LIBRARY"]
["15510401","Long War_C","15510401","LIBRARY"]
["15510501","Long War_P","15510501","LIBRARY"]
["15511601","Illustrated Slave_C","15511601","LIBRARY"]
["15512801","Bad Kansas_P","15512801","LIBRARY"]
["15513901","Blood, Bone, and Marrow_P","15513901","LIBRARY"]
["15514101","Penn Center_P","15514101","LIBRARY"]
["15529901","President in Our Midst_P","15529901","LIBRARY"]
["15999900","Book Plant Cost","15999900","LIBRARY"]
["15999999","Book Holding","15999999","LIBRARY"]
["15ADEXHIBI","Advertisement - Exhibit","15ADEXHIBI","LIBRARY"]
["15ADSPACE","Advertisement - Space","15ADSPACE","LIBRARY"]
["15ADTRADE","Advertisement - Trade","15ADTRADE","LIBRARY"]
["15ADVISORY","Advisory Fees","15ADVISORY","LIBRARY"]
["15ADVMTG","Advisory Council Meeting","15ADVMTG","LIBRARY"]
["15AUTHFEES","Author Fees","15AUTHFEES","LIBRARY"]
["15AWARDS","Awards","15AWARDS","LIBRARY"]
["15BOOKSALE","Book Sales","15BOOKSALE","LIBRARY"]
["15BOOKSUB","Books and Subscriptions","15BOOKSUB","LIBRARY"]
["15COMMISSI","Commissions","15COMMISSI","LIBRARY"]
["15COMPEQUI","Computer Equipment","15COMPEQUI","LIBRARY"]
["15COMPMAIN","Computer Maintenance","15COMPMAIN","LIBRARY"]
["15COOP","Coop Advertising","15COOP","LIBRARY"]
["15COPY","Copy/Duplicating","15COPY","LIBRARY"]
["15COVER","Cover Art","15COVER","LIBRARY"]
["15CREDITCD","Credit Card Fees","15CREDITCD","LIBRARY"]
["15DEPAR","Accounts Receivable","15DEPAR","LIBRARY"]
["15DEPGEN","General","15DEPGEN","LIBRARY"]
["15DEPINC","Income","15DEPINC","LIBRARY"]
["15DEPPER","Permissions","15DEPPER","LIBRARY"]
["15DEPPOE","Poetry","15DEPPOE","LIBRARY"]
["15DEPSFI","Short Fiction","15DEPSFI","LIBRARY"]
["15DEPSUB","Subsidy","15DEPSUB","LIBRARY"]
["15DESIGN","Freelance Designing","15DESIGN","LIBRARY"]
["15DISTRIBU","Distribution Fees","15DISTRIBU","LIBRARY"]
["15DMCATALO","Direct Mail - Catalog","15DMCATALO","LIBRARY"]
["15DMCATML","Direct Mail - Cat Mail List","15DMCATML","LIBRARY"]
["15DMCATPOS","Direct Mail - Catalog Postage","15DMCATPOS","LIBRARY"]
["15DMCATSEA","Direct Mail - Catalog Seasonal","15DMCATSEA","LIBRARY"]
["15DMCUSTOM","Direct Mail - Customer","15DMCUSTOM","LIBRARY"]
["15DMPOSTAG","Direct Mail - Postage","15DMPOSTAG","LIBRARY"]
["15EDIT","Freelance Editing","15EDIT","LIBRARY"]
["15ENTERTAI","Entertainment","15ENTERTAI","LIBRARY"]
["15EQUIFURN","Equipment and Furniture","15EQUIFURN","LIBRARY"]
["15EQUMAINT","Equipment Maintenance","15EQUMAINT","LIBRARY"]
["15EVENTS","Events","15EVENTS","LIBRARY"]
["15EXHIBIT","Exhibits","15EXHIBIT","LIBRARY"]
["15GALLEYS","Galleys","15GALLEYS","LIBRARY"]
["15LISTING","Listing Fees","15LISTING","LIBRARY"]
["15MEMBERSH","Membership Fees","15MEMBERSH","LIBRARY"]
["15MISC","Miscellaneous","15MISC","LIBRARY"]
["15MKTFEES","Freelance Marketing Fees","15MKTFEES","LIBRARY"]
["15PROOF","Freelance Proofreading","15PROOF","LIBRARY"]
["15PUBLICIT","Publicity","15PUBLICIT","LIBRARY"]
["15RECEPTIO","Receptions","15RECEPTIO","LIBRARY"]
["15REGISTRA","Registration Fees","15REGISTRA","LIBRARY"]
["15RETIRED","Retired Employee Benefits","15RETIRED","LIBRARY"]
["15SALEPROM","Sales Promotion","15SALEPROM","LIBRARY"]
["15SDEPSRT","Subrights","15SDEPSRT","LIBRARY"]
["15SERIESED","Series Editors","15SERIESED","LIBRARY"]
["15SHIPPING","Shipping","15SHIPPING","LIBRARY"]
["15SOFTSUPP","Computer Software and Supplies","15SOFTSUPP","LIBRARY"]
["15SUPPLIES","Supplies","15SUPPLIES","LIBRARY"]
["15TELEPHON","Telephone","15TELEPHON","LIBRARY"]
["15TRAINING","Education/Training","15TRAINING","LIBRARY"]
["15TRAVEL","Travel","15TRAVEL","LIBRARY"]
["15VEHICLE","Vehicle Expense","15VEHICLE","LIBRARY"]
["16023","Mainframe Maintenance","MF MAINT","EITS"]
["16925","Cost Recovery Carry Forward","CR CF","EITS"]
["16968","OneSource Finance","OS FIN","EITS"]
["16969","OnSource HCM","OS HCM","EITS"]
["17AGFORE","AG Forecast","17AGFORE","CAES"]
["17DWBROOK","DW Brooks","17DWBROOK","CAES"]
["17FLAVOR","Flavor of Georgia","17FLAVOR","CAES"]
["17SUNBELT","Sunbelt Expo","17SUNBELT","CAES"]
["20 NEWFAC","Terry-New Faculty","20 NEWFAC","TCB"]
["20 RECRUIT","Terry-Recruiting","20 RECRUIT","TCB"]
["20 TESTCTR","Terry-Testing Center","20 TESTCTR","TCB"]
["20 TESTING","Terry-Testing","20 TESTING","TCB"]
["20AIMS","Terry-AIMS Expense","20AIMS","TCB"]
["20ANALYTI","Terry-Marketing Analytics","20ANALYTI","TCB"]
["20AOM","Terry-Academy of Management","20AOM","TCB"]
["20APPS","Terry-Proj: Sanford Labor Var.","20APPS","TCB"]
["20APPWVR","Terry-App Waivers","20APPWVR","TCB"]
["20ASSESMT","Terry-Self Assessment","20ASSESMT","TCB"]
["20BEVSERV","Terry-Beverage Services","20BEVSERV","TCB"]
["20BKUP","Terry-Proj: Brooks 520","20BKUP","TCB"]
["20BLC","Terry-Telephone Landline","20BLC","TCB"]
["20BROCHUR","Terry-Brochures","20BROCHUR","TCB"]
["20CAREER","Terry-Careers day","20CAREER","TCB"]
["20CASCOMP","Terry-Case Competition Mgmt","20CASCOMP","TCB"]
["20CLUBOPS","Terry-Club Opportunities","20CLUBOPS","TCB"]
["20CONF","Terry-Conference GMAC","20CONF","TCB"]
["20CPHOTO","Terry-Class Photo","20CPHOTO","TCB"]
["20CSMGMT","Terry-CS Management System","20CSMGMT","TCB"]
["20DATA","Terry-Job & Resume Database","20DATA","TCB"]
["20DEANREC","Terry-Dean Reception","20DEANREC","TCB"]
["20DISPLAY","Terry-Online Display Outreach","20DISPLAY","TCB"]
["20DISTRIB","Terry-Telephone Cellular","20DISTRIB","TCB"]
["20EDIT","Terry-Editting Services","20EDIT","TCB"]
["20EDITING","Terry-Editing","20EDITING","TCB"]
["20ENTPREP","Terry-Entrance Prep Cost","20ENTPREP","TCB"]
["20ETHERE","Terry-Etheredge Memorial Sch","20ETHERE","TCB"]
["20EVENTS","Terry-Events","20EVENTS","TCB"]
["20FAC RSH","Terry-Faculty Research Funding","20FAC RSH","TCB"]
["20FELLOW","Terry-Leadership Fellows","20FELLOW","TCB"]
["20FORTE","Terry-Forte Foundation","20FORTE","TCB"]
["20GDAY","Terry-G-Day Picnic","20GDAY","TCB"]
["20GIFTS","Terry-Gifts","20GIFTS","TCB"]
["20GLEADER","Terry-MBA Focus","20GLEADER","TCB"]
["20GLS","Terry-Gamma Iota Sigma","20GLS","TCB"]
["20GRAD","Terry-Graduation","20GRAD","TCB"]
["20HAB","Terry-Highlands AbilityBattery","20HAB","TCB"]
["20HD","Terry-UGA Network Agreement","20HD","TCB"]
["20INFOSEC","Terry-Proj: Podium PC Replace","20INFOSEC","TCB"]
["20INS SOC","Terry-Insurance Society","20INS SOC","TCB"]
["20INSIDE","Terry-Inside the MBA","20INSIDE","TCB"]
["20INTVSTM","Terry-Career Services System","20INTVSTM","TCB"]
["20IS","Terry-Brooks 350F Equipment","20IS","TCB"]
["20MEDIA","Terry-Local Media,Print,Digit","20MEDIA","TCB"]
["20MIXERS","Terry-Mentor Mixers","20MIXERS","TCB"]
["20MKTFEES","Terry-Marketplace Fees","20MKTFEES","TCB"]
["20MURRAY","Terry-Randy&Gloria Murray Sch","20MURRAY","TCB"]
["20NTWKG","Terry-Networking Event","20NTWKG","TCB"]
["20NW","Terry-Proj: Caldwell Equipment","20NW","TCB"]
["20NXTBOOK","Terry-Nxtbook","20NXTBOOK","TCB"]
["20ONSYSTM","Terry-Online Resources","20ONSYSTM","TCB"]
["20OPS","Terry-FY12 Sanford Medium Scr","20OPS","TCB"]
["20ORIENT","Terry-Orientation","20ORIENT","TCB"]
["20PHOTO","Terry-Photography","20PHOTO","TCB"]
["20PPC","Terry-Pay Per Click","20PPC","TCB"]
["20QSWORLD","Terry-QS World MBA Tour","20QSWORLD","TCB"]
["20RATS","Terry-RATS","20RATS","TCB"]
["20RE SOC","Terry-Real Estate Society","20RE SOC","TCB"]
["20RESIDEN","Terry-September","20RESIDEN","TCB"]
["20RMI","Terry-RMI","20RMI","TCB"]
["20RSCH","Terry-FY12 Internet Reimb","20RSCH","TCB"]
["20SERVR","Terry-Proj: Caldwell 205","20SERVR","TCB"]
["20SILICON","Terry-Silicon Valley Stu Tvl","20SILICON","TCB"]
["20SIOP","Terry-Soc for Ind&Organl Psych","20SIOP","TCB"]
["20SMIF","Terry-SMIF","20SMIF","TCB"]
["20SNACKS","Terry-Class Snacks","20SNACKS","TCB"]
["20SRCHENG","Terry-Search Engine Optim","20SRCHENG","TCB"]
["20STAFF AP","Terry-Staff Appreciation","20STAFF AP","TCB"]
["20STORAGE","Terry-FY12 Sanford 112 Project","20STORAGE","TCB"]
["20STUEXP","Terry-Calculators","20STUEXP","TCB"]
["20SUMPREP","Terry-Summer Prep","20SUMPREP","TCB"]
["20SURVEYS","Terry-Surveys","20SURVEYS","TCB"]
["20TAILGAT","Terry-MBA Tailgate","20TAILGAT","TCB"]
["20TEEC","Terry-Proj: Sanford 207 Equip","20TEEC","TCB"]
["20TESTING","Terry-Testing Services","20TESTING","TCB"]
["20TOUR","Terry-MBA Tour Events","20TOUR","TCB"]
["20TPA","Terry-TPA","20TPA","TCB"]
["20TREKS","Terry-Treks","20TREKS","TCB"]
["20TUTOR","Terry-Tutoring","20TUTOR","TCB"]
["20TW REED","Terry-TW Reed Scholarship","20TW REED","TCB"]
["20UPP ECH","Terry-Upper Echelons Conf","20UPP ECH","TCB"]
["20VISA","Terry-Visa Costs","20VISA","TCB"]
["20VISITPR","Terry-Visiting Lecturer","20VISITPR","TCB"]
["20VMOCK","Terry-Virtual Mock-Interview","20VMOCK","TCB"]
["20WALLST","Terry-Breaking into Wall St","20WALLST","TCB"]
["20WELCDNR","Terry-Welcome Dinner","20WELCDNR","TCB"]
["20WHARTON","Terry-Wharton OB Conference","20WHARTON","TCB"]
["20WTRFRML","Terry-Winter Formal","20WTRFRML","TCB"]
["21AIS","Addtl Instructional Support","21AIS","COE"]
["21COMMIT","College commitments","21COMMIT","COE"]
["21CRSA","College Research Scholar Award","21CRSA","COE"]
["21EARLYCAR","Early career grant exp","21EARLYCAR","COE"]
["21FAPRTRVL","Faculty professional travel","21FAPRTRVL","COE"]
["21FNDRAISE","Exp for direct ask (Develpmnt)","21FNDRAISE","COE"]
["21FYO","First Year Odeyssey","21FYO","COE"]
["21GRADTRVL","Graduate Student Travel","21GRADTRVL","COE"]
["21GRADUATE","Graduation/Convocation exp","21GRADUATE","COE"]
["21GSRA","Graduate School Research Asst","21GSRA","COE"]
["21RETIREE","Retire-Rehire expenses","21RETIREE","COE"]
["21SALREL","Salary Release expenditures","21SALREL","COE"]
["21SCHLRSHP","Scholarship awards","21SCHLRSHP","COE"]
["21STFPRDEV","Staff Prof Dev","21STFPRDEV","COE"]
["21STURCRT","Student recruitment","21STURCRT","COE"]
["21SUPERVIS","Student Supervision expenses","21SUPERVIS","COE"]
["23BLAACC","Track BLA accreditation costs","23BLAACC","CED"]
["23DEANSADV","Track Dean adv council exp","23DEANSADV","CED"]
["23EQUIP","Track equipment costs","23EQUIP","CED"]
["23EVENTS","Track event expenses","23EVENTS","CED"]
["23FLDTRIP","Track field trip costs","23FLDTRIP","CED"]
["23GLAM","Track costs for GLAM magazine","23GLAM","CED"]
["23GRAD","Track costs for graduation","23GRAD","CED"]
["23LECT","Track lecture series costs","23LECT","CED"]
["23MEMSHP","Track costs of memberships","23MEMSHP","CED"]
["23MEPDACC","Track MEPD accreditation costs","23MEPDACC","CED"]
["23MLAACC","Track MLA accreditation costs","23MLAACC","CED"]
["23TAILGATE","Track tailgate expenses","23TAILGATE","CED"]
["23VISITFAC","Track visiting faculty costs","23VISITFAC","CED"]
["24ACCRTECH","Tech Exp Accreditation REP","24ACCRTECH","FACS"]
["24GRADEVNT","Graduation Costs","24GRADEVNT","FACS"]
["24IDC","Indirect Cost Recovery","24IDC","FACS"]
["24SALARYSV","Salary Savings","24SALARYSV","FACS"]
["24SPECFUND","FCS Special Funding","24SPECFUND","FACS"]
["24STARTUP","Start Up Costs","24STARTUP","FACS"]
["24VIPTUT","VIP Tuition","24VIPTUT","FACS"]
["32ABANK","Alexa Bankert","ALEX BANK","SPIA"]
["32AKAUF","Alex Kaufman","ALEX KAUF","SPIA"]
["32AMURD","Amanda Murdie","AMAN MURD","SPIA"]
["32AOWS","Andy Owsiak","ANDY OWS","SPIA"]
["32BGRAF","Bob Grafstein","BOB GRAF","SPIA"]
["32CBOYD","Christy Boyd","CHRI BOYD","SPIA"]
["32CMUD","Cas Mudde","CAS MUD","SPIA"]
["32DHILL","Danny Hill","DANN HILL","SPIA"]
["32DONOR","Donor ","DONOR","SPIA"]
["32FACAWRD","Faculty Award","FAC AWRD","SPIA"]
["32GRAD","Graduation Expenses","GRAD","SPIA"]
["32GRADRCRT","Graduate Recruitment","GRAD RCRT","SPIA"]
["32GTHAL","Greg Thaler","GREG THAL","SPIA"]
["32HKLIE","Hanna Klieder","HANN KLIE","SPIA"]
["32JBER","Jeff Berejikian","JEFF BER","SPIA"]
["32JCARS","Jamie Carson","JAMI CARS","SPIA"]
["32LBSHI","Lihi Ben-Shitrit","LIHI BSHI","SPIA"]
["32LJOHN","Loch Johnson","LOCH JOHN","SPIA"]
["32LZIMM","Laura Zimmerman","LAUR ZIMM","SPIA"]
["32MAG","Alumni Magazine","ALUM MAG","SPIA"]
["32MARKET","Marketing Items & Expenses","MARKETING","SPIA"]
["32MCREP","Markus Crepaz","MARK CREP","SPIA"]
["32MGRED","Micah Gell-Redman","MICA GRED","SPIA"]
["32PROFDEVL","Professional Development","PROF DEVL","SPIA"]
["32RBAK","Ryan Bakker","RYAN BAK","SPIA"]
["32RECRUIT","Faculty Recruitment","FACRECRUIT","SPIA"]
["32REFRESH","Computer Refresh","REFRESH","SPIA"]
["32REPLACE","Replacement Teaching","REPL TEACH","SPIA"]
["32RHAN","Rongbin Han","RONG HAN","SPIA"]
["32RVIN","Richard Vining","RICH VIN","SPIA"]
["32SEED","Seed funds ","SEED","SPIA"]
["32SHAIR","Susan Haire","SUSA HAIR","SPIA"]
["32SPIASPKR","SPIA Speaker Series","SPIA SPKR","SPIA"]
["32SSING","Shane Singh","SHAN SING","SPIA"]
["32STARTUP","Start Up Costs","STARTUP","SPIA"]
["32STUDORG","Student Org Support","STUDORG","SPIA"]
["32THOOD","Trey Hood","TREY HOOD","SPIA"]
["32TMAD","Tony Madonna","TONY MAD","SPIA"]
["32TWILH","Teena Wilhelm","TEEN WILH","SPIA"]
["34ADL001","Athens D-Lab Fee Income.","ADL FEEINC","CVM"]
["34ADL002","Athens D-Lab GADA","ADL GADA","CVM"]
["34ADL003","Athens D-Lab USDA","ADL USDA","CVM"]
["34ALEXAND","ALEXANDER (SAMS Res.)","SAMSALEX","CVM"]
["34ALLEN","ALLEN (SAMS Res.)","SAMSALLEN","CVM"]
["34ARNOLD","ARNOLD (SAMS Res.)","SAMSARNO","CVM"]
["34BEDARD","BEDARD (SAMS Res.)","SAMSBEDAR","CVM"]
["34BROOKER","Brooker (Path Grad Stud.)","PATHBROOK","CVM"]
["34CAUDILL","Caudill (Path Grad Stud.)","PATHCAUD","CVM"]
["34CUTLER","CUTLER (SAMS Res.)","SAMSCUTLER","CVM"]
["34CVMAPV","CVM - Annual Perf. Verif.","CVM APV","CVM"]
["34CWONG","C WONG (SAMS Res.)","SAMSCWONG","CVM"]
["34DALTON","Dalton (Path Grad Stud.)","PATHDALTON","CVM"]
["34DICKERSO","DICKERSON (SAMS Res.)","SAMSDICKER","CVM"]
["34DPTPESTI","IDIS - Pesti 211-264","PESTI264","CVM"]
["34DUNN","DUNN (SAMS Res.)","SAMSDUNN","CVM"]
["34EWONG","E WONG (SAMS Res.)","SAMSEWONG","CVM"]
["34FACRECR","CVM Faculty Recruiting","CVMFACREC","CVM"]
["34FCLINIC","FA Clinical Income","FA CLININC","CVM"]
["34FRBFARM","Riverbend Farm","RVBD FARM","CVM"]
["34FRCFARM","Rose Creek Farm","RSCRK FARM","CVM"]
["34GERLACH","GERLACH (SAMS Res.)","SAMSGERLA","CVM"]
["34GULLEDGE","GULLEDGE (SAMS Res.)","SAMSGULL","CVM"]
["34GVS","CVM - Ga. Vet Schol","GA VET SCH","CVM"]
["34HELMICK","HELMICK (SAMS Res.)","SAMSHELM","CVM"]
["34IDISILS","IDIS - ILS Program","IDIS ILS","CVM"]
["34KASWAN","SAMS - Kaswan","SAMSKASW","CVM"]
["34KICENUIK","KICENUIK (SAMS Res.)","SAMSKICENU","CVM"]
["34KIREJCZY","Kirejczyk (Path Grad Stud.)","PATHKIREJ","CVM"]
["34KOKOSINK","Kokosinska (Path Grad St.)","PATHKOKOS","CVM"]
["34LAMS5150","LAMS 5150 Class","LAMS 5150","CVM"]
["34LAU","LAU (SAMS Res.)","SAMSLAU","CVM"]
["34LIESKE","Lieske (Path Grad St.)","PATHLIESKE","CVM"]
["34MCHALE","McHale (Path Grad St.)","PATHMCHALE","CVM"]
["34MILLER","MILLER (SAMS Res.)","SAMSMILLER","CVM"]
["34MITCHELL","MITCHELL (SAMS Res.)","SAMSMITCH","CVM"]
["34NUTRCLS","Clinical Nutrition","CLIN NUTR","CVM"]
["34ODYSSEY","CVM Odyssey Classes","CVMODYSS","CVM"]
["34OPENHSE","CVM Open House","CVMOPHSE","CVM"]
["34ORIENT","CVM DVM Orientation","DVMORIENT","CVM"]
["34OSEKAVAG","OSEKAVAGE (SAMS Res.)","SAMSOSEKAV","CVM"]
["34P350","PDRC Autoclave","PDRC AUTOC","CVM"]
["34P400","PDRC Warranties","PDRC WARR","CVM"]
["34PARKANZ","PARKANZKY (SAMS Res.)","SAMSPARKA","CVM"]
["34PBACT","PDRC D-lab Bacterio.","PDRC BACT","CVM"]
["34PDXLAB","PDRC D-Lab","PDRC DXLAB","CVM"]
["34PHISTO","PRDC D-Lab Histo","PDRC HISTO","CVM"]
["34PMYCO","PRDC D-Lab Myco","PDRC MYCO","CVM"]
["34PRUDIC","PRUDIC (SAMS Res.)","SAMSPRUDIC","CVM"]
["34PRYOR","PRYOR (SAMS Res.)","SAMSPRYOR","CVM"]
["34PSERO","PDRC D-Lab Serology","PDRC SERO","CVM"]
["34PVIRO","PDRC D-Lab Virology","PDRC VIRO","CVM"]
["34SALSAV","Vet Med Salary Saving","SALSAVINGS","CVM"]
["34SAMDEPT","SAMS - Dept","SAMSDEPT","CVM"]
["34SAMS5117","SAMS5117 Class","SAMS 5117","CVM"]
["34SAMS5200","SAMS5200 Class","SAMS 5200","CVM"]
["34SAMS5203","SAMS5203 Class","SAMS 5203","CVM"]
["34SAMS5240","SAMS5240 Class","SAMS 5240","CVM"]
["34SAMS5265","SAMS5265 Class","SAMS 5265","CVM"]
["34SAMS5270","SAMS5270 Class","SAMS 5270","CVM"]
["34SAMS5335","SAMS5335 Class","SAMS 5335","CVM"]
["34SAMS5372","SAMS5372 Class","SAMS 5372","CVM"]
["34SAMS5373","SAMS5373 Class","SAMS 5373","CVM"]
["34SEGUEL","Seguel (Path Grad Stud.)","PATHSEGUEL","CVM"]
["34SEMINAR","CVM Seminars","CVM SEMIN","CVM"]
["34SENTEACH","Senior Teaching Fellow","CVMSRTCFLW","CVM"]
["34SIEPKER","Seipker (Path Grad Stud.)","PATHSEIPK","CVM"]
["34SINKIN","SINKIN (SAMS Res.)","SAMSSINKIN","CVM"]
["34SLADAKOV","SLADAKOVIC (SAMS Res.)","SAMSSLADA","CVM"]
["34STARTUP","CVM - New Facuity Startup","VMSTARTUP","CVM"]
["34STEWART","STEWART (SAMS Res.)","SAMSSTEW","CVM"]
["34STILWELL","Stilwell (Path Grad Stud.)","PATHSTILW","CVM"]
["34TDL001","Tifton D-Lab Fee Income.","TDLFEEINC","CVM"]
["34TDL002","Tifton D-Lab GADA","TDLGADA","CVM"]
["34VBCELLBI","VBDI - Cell Biology Class","VBCELLBIO","CVM"]
["34VBCRS001","VBDI - Resident #1","VBDIRES1","CVM"]
["34VBCRS002","VBDI - Resident #2","VBDIRES2","CVM"]
["34VBCRS003","VBDI - Resident #3","VBDIRES3","CVM"]
["34VBCRS004","VBDI - Resident #4","VBDIRES4","CVM"]
["34VBCRS005","VBDI - Resident #5","VBDIRES5","CVM"]
["34VBCRS006","VBDI - Resident #6","VBDIRES6","CVM"]
["34VBHISTO","VBDI - Histology Class","VBDIHISTO","CVM"]
["34VBLAANA","VBDI - Large Animal Anat.","VBDILAANA","CVM"]
["34VBMICRO","VBDI - Vet Lab Microscopes","VBDIMICRO","CVM"]
["34VBMOHIND","VBDI - Kumar India","VBDIMOHIND","CVM"]
["34VBOFFICE","VBDI - Office Expenses","VBDIOFFICE","CVM"]
["34VBRADIO","VBDI - Diag. Imaging Class","VBDIAGIM","CVM"]
["34VBRESID","VBDI - Resident Courses","VBDIRESID","CVM"]
["34VBSAANA","VBDI - Small Animal Anat.","VBDISAANA","CVM"]
["34VBSFTMN","VBDI - Safety and Maintenance","VBDISAFMNT","CVM"]
["34VBSTAFF","VBDI - Staff Expenses","VBDISTAFF","CVM"]
["34VBTELRAD","VBDI - Teleradiology","VBDITELER","CVM"]
["34VETCAMP","Vet Camp - Academic Aff.","VET CAMP","CVM"]
["34VMS","CVM - VMS Program","CVM VMS","CVM"]
["34VOLSTAD","VOLSTAD (SAMS Res.)","SAMSVOLST","CVM"]
["34VPHY3100","VPHY 3100 Class","VPHY3100","CVM"]
["34VSVSTUD","VSV in Pig Study (Path.)","VSVINPIGST","CVM"]
["34WELLS","Wells (Path Grad Stud.)","PATHWELLS","CVM"]
["34WISNET","Wisnet (Path Grad Stud.)","PATHWISNET","CVM"]
["34ZIMMER","ZIMMER (SAMS Res.)","SAMSZIMMER","CVM"]
["41MPGRAD","MP Graduation Celebration","MPGRAD","HSC"]
["41MPIDCCF","MP Research IDC Carryforward","MPIDCCF","HSC"]
["41MPIDCRET","MP Research IDC Return","MPIDCRET","HSC"]
["41MPMATCH","MP Match Day","MPMATCHDAY","HSC"]
["41MPMSP","MP Research Med Schol Program","MPMSP","HSC"]
["43FACTRV","Faculty Travel Expenses","FACTRVL","OVPR"]
["43IOBTRV","IOB Office Travel","OFFICETRVL","OVPR"]
["43LAB_SUPP","IOB Faculty Lab Support","FACLABSUPP","OVPR"]
["43RECFAC","Recruiting Faculty Expenses","RECFACEXP","OVPR"]
["43RECSTUD","Recruiting Student Expenses","RECSTUDEXP","OVPR"]
["43RETREAT","Retreat Expenses","RETREATEXP","OVPR"]
["43SEMINAR","Seminar Expenses","SEMINAREXP","OVPR"]
["43STUDTRV","Student Travel Expenses","STUDTRVL","OVPR"]
["51AVARIOUS","Advisory Various","51AVARIOUS","VPPSO 2017.12"]
["51CVIOGCHA","Chapel","51CVIOGCHA","VPPSO"]
["51GTEDADMI","Administration","51GTEDADMI","VPPSO"]
["51GTEDECON","Economic Development","51GTEDECON","VPPSO"]
["51GTEDFMPM","Financial Management","51GTEDFMPM","VPPSO"]
["51GTEDLEAD","Leadership Development","51GTEDLEAD","VPPSO"]
["51GTEDONLI","Online Training","51GTEDONLI","VPPSO"]
["51GTEDPROF","Professional Development","51GTEDPROF","VPPSO"]
["51GTEDSCHO","School Programs","51GTEDSCHO","VPPSO"]
["51GTEDSPCP","Special Programs","51GTEDSPCP","VPPSO"]
["51INTLADMI","Administration","51INTLADMI","VPPSO"]
["51INTLCHIN","China Program","51INTLCHIN","VPPSO"]
["51INTLKORE","Korea Program","51INTLKORE","VPPSO"]
["51MEVARIOU","Marine Education Various","51MEVARIOU","VPPSO 2017.12"]
["51SBGCAFE","Botanical Garden Café","51SBGCAFE","VPPSO"]
["51SBGFUS","Facility Use Surcharge","51SBGFUS","VPPSO"]
["51SBGRENT","Bot Garden Rentals","51SBGRENT","VPPSO"]
["51SBGTOUR","Bot Garden Tours","51SBGTOUR","VPPSO"]
["51SOPAADMI","Administration","51SOPAADMI","VPPSO"]
["51SOPADOWN","Downtown Renaissance","51SOPADOWN","VPPSO"]
["51SOPAHMNR","Human Resources","51SOPAHMNR","VPPSO"]
["51SOPALOCG","Local Government","51SOPALOCG","VPPSO"]
["51SOPAPLNE","Planning and Environ Services","51SOPAPLNE","VPPSO"]
["51SSDSADMI","Administration","51SSDSADMI","VPPSO"]
["51SSDSDEMA","Demographic Analysis","51SSDSDEMA","VPPSO"]
["51SSDSECOA","Economic Analysis","51SSDSECOA","VPPSO"]
["51SSDSSTAS","State Services","51SSDSSTAS","VPPSO"]
["51SSDSSURV","Survey Research and Evaluation","51SSDSSURV","VPPSO"]
["51SSDSWORK","Workforce Development","51SSDSWORK","VPPSO"]
["51SVARIOUS","Shellfish Various","51SVARIOUS","VPPSO 2017.12"]
["51VPPSADMI","Administative","51VPPSADMI","VPPSO"]
["51VPPSAMND","PSO Amended Support","51VPPSAMND","VPPSO"]
["51VPPSDEV","Development","51VPPSDEV","VPPSO"]
["51VPPSFCTR","Facilitation Training","51VPPSFCTR","VPPSO"]
["51VPPSGEN","General","51VPPSGEN","VPPSO"]
["51VPPSHILL","Hill Award","51VPPSHILL","VPPSO"]
["51VPPSINIT","PSO Initiatives","51VPPSINIT","VPPSO"]
["51VPPSNFT","New Faculty Tour","51VPPSNFT","VPPSO"]
["57CHALLENG","Inc/exp challenge course","CHALLENGE","VPSA"]
["57FOODSA","Track food exp for stu org","FOODSA","VPSA"]
["57HSSECRTY","Exp housing pkg lot sec.","HSSECURITY","VPSA"]
["57MEDCAPTN","Inc/exp media captioning","MEDCAPTION","VPSA"]
["57OUTDOOR","Inc/exp Outdoor rec","OUTDOOR","VPSA"]
["57PLACEMNT","Inc/exp related 2 plcmt testg","PLACEMENT","VPSA"]
["57RTCAPTNG","Inc/exp real time captioning","RTCAPTION","VPSA"]
["57SACRYFWD","FY Carryforward rollup","SACARRYFWD","VPSA"]
["57SIGNLANG","Inc/exp sign lang interpreting","SIGNLANG","VPSA"]
["57STFHSNG","Inc/exp STF Housing","STFHOUS","VPSA"]
["57STFOVPSA","Inc/exp STF OVPSA","STFOVPSA","VPSA"]
["57TESTSCR","Inc/exp related 2 test scoring","TESTSCORE","VPSA"]
["68ACADEMIC","Sustainability Academics & Res","ACADEMICS","FMD"]
["68ALPHACHI","Alpha Chi Omega Repair","ALPHACHI","FMD"]
["68ALPHAPSI","Alpha Psi Repair","ALPHAPSI","FMD"]
["68APLHAEPI","Alpha Epsilon Pi Repair","APLHAEPI","FMD"]
["68CHW","FMD Chilled Water Recovery","FMDCHW","FMD"]
["68COMPOST","Bio-conversion facility","COMPOST","FMD"]
["68CONTRACT","Outside Maintenance Contract","CONTRACT","FMD"]
["68DEGW","FMD Elec Gas Water","FMDEGW","FMD"]
["68FLOWER","Annual Flower Program","FLOWER","FMD"]
["68GRANTS","Sustainability Grants","GRANTS","FMD"]
["68GRIFFIN","FMD Griffin Campus Utilities","FMDGRIFFIN","FMD"]
["68HP","Historic Preservation","HP","FMD"]
["68HSCCW","HSC Chilled water","HSCCW","FMD"]
["68HSCINFR","HSC infrastructure","HSCINFR","FMD"]
["68HSCPU","HSC purchased utilities","HSCPU","FMD"]
["68HSCSTEAM","HSC Steam utilities","HSCSTEAM","FMD"]
["68INTERNS","Sustainability Interns","INTERNS","FMD"]
["68IPM","Chemical Program","IPM","FMD"]
["68IRRIGATE","Irrigation Program","IRRIGATE","FMD"]
["68KAPPASIG","Kappa Sigma Repair","KAPPASIG","FMD"]
["68LAND","Landscape Program","LANDSCAPE","FMD"]
["68MECHANIC","Mechanic Shop","MECHANIC","FMD"]
["68OMEGATAY","Omega Tau Sigma Repair","OMEGATAY","FMD"]
["68OPERATE","FMD operating account","FMDOPER","FMD"]
["68OSOPER","Sustainability Operational Ini","OPERATIONS","FMD"]
["68OUTREACH","Sustainability Outreach & Even","OUTREACH","FMD"]
["68PARTNER","HSC partnership","PARTNER","FMD"]
["68PURUTIL","FMD Purchased Utilities","FMEPURUTI","FMD"]
["68SIGMADT","Sigma Delta Tau Repair","SIGMADT","FMD"]
["68STEAM","FMD Steam Plant Util","FMDSTEAM","FMD"]
["68TREE","Tree Program","TREE","FMD"]
["7520142015","FY 2014 and 2015","7520142015","BURSAR"]
["7520152016","FY 2015 and 2016","7520152016","BURSAR"]
["7520162017","FY 2016 and 2017","7520162017","BURSAR"]
["7520172018","FY 2017 and 2018","7520172018","BURSAR"]
["7520182019","FY 2018 and 2019","7520182019","BURSAR"]
["7520192020","FY 2019 and 2020","7520192020","BURSAR"]
["7520202021","FY 2020 and 2021","7520202021","BURSAR"]
["7520212022","FY 2021 and 2022","7520212022","BURSAR"]
["7520222023","FY 2022 and 2023","7520222023","BURSAR"]
["7520232024","FY 2023 and 2024","7520232024","BURSAR"]
["75CLOSED","Closed FY","75CLOSED","BURSAR"]
["ACCREDITAT","Accreditation","ACCREDITAT","JRNL"]
["ADMINSUP","Track Admin Support Expenses","ADMINSUP","VP AA"]
["ADVCOMM","Advertising/Supplies","ADVCOMM","DAR"]
["ADVIZAVS","Advizor Licenses","ADVIZAVS","DAR"]
["AEDRELATED","AEDs and consumables","AEDRELATED","Emergency Preparedness"]
["AMENDFND","Track cost of Amended Funds","AMENDFND","VPM"]
["ANAG","Analytics","ANAG","DAR"]
["APSMICRO","APS MSBioChem","APSMICRO","VP AA"]
["AQUARIUM","Aquarium Costs","AQUARIUM","VPPSO"]
["ARAG","Acquisition/Reactivation","ARAG","DAR"]
["ASTUBBINS","To Track Expenses by APS","ASTUBBINS","VP AA"]
["BAGGETT","Track Baggett Apt Expenses","BAGGETT","VP AA"]
["BLEEDCONTR","Bleeding Control","BLEEDCONTR","Emergency Preparedness"]
["BUSOFC","Track Business Office Expenses","BUSOFC","VP AA"]
["CALEXANDER","To Track Expenses by CRA","CALEXANDER","VP AA"]
["CBUCK","To Track Expenses by CSB","CBUCK","VP AA"]
["CEDSEARCH","CED Dean search","CEDSEARCH","VP AA"]
["CEDWARDS","To Track Expenses by CRE","CEDWARDS","VP AA"]
["COFFEESHOP","To Track all Coffee Shops","COFFEESHOP","AUX A"]
["COMMONS","Track Commons Housing Expenses","COMMONS","VP AA"]
["COOKHOL","Cook's Holiday activities","COOKHOL","AUX A"]
["COPSTARTUP","Track start up costs","COPSTARTUP","PHAR"]
["COPSUMMER","Summer Program","COPSUMMER","PHAR"]
["COVERTRSC","Covert research account","COVERTRSC","VP AA"]
["CRASAMP","CRA Sample Analysis","CRASAMP","VP AA"]
["CSTTD","Candidate Searches","CSTTD","DAR"]
["CTLBASESTF","CTL Base STF","CTLBASESTF","VP INSTR"]
["CTLCABLE","CTL Cable","CTLCABLE","VP INSTR"]
["CTLINCOME","CTL Main Income","CTLINCOME","VP INSTR"]
["CUROEXPAN","CURO Expansion Pilot","CUROEXPAN","VP AA"]
["CUROHONORS","CURO Honors","CUROHONORS","VP AA"]
["DIGPRCOMM","Digital Proposals","DIGPRCOMM","DAR"]
["DIRCFR","Foundation Directory","DIRCFR","DAR"]
["DIVERSITY","Diversity recruitment","DIVERSITY","VP INSTR"]
["DSAVIDGE","To Track Expenses by DKS","DSAVIDGE","VP AA"]
["DTEN","Data Enrichment","DTEN","DAR"]
["ECOSCAPES","Ecoscapes costs","ECOSCAPES","VPPSO"]
["EHARVEY","To Track Expenses by ELH","EHARVEY","VP AA"]
["EPAPPE","Exp Programs APPE","EPAPPE","PHAR"]
["EPCPR","Exp Programs CPR","EPCPR","PHAR"]
["EPIMMUN","Exp Programs Immunization","EPIMMUN","PHAR"]
["EPIPPE","Exp Programs IPPE","EPIPPE","PHAR"]
["EPPRECTR","Exp Prog Preceptor Training","EPPRECTR","PHAR"]
["EPSTMAL","Exp Prog Student Malpractice","EPSTMAL","PHAR"]
["EVACCHAIRS","Evacuation Chairs","EVACCHAIRS","Emergency Preparedness"]
["FACAFFAIRS","Faculty Affairs Office","FACAFFAIRS","VP AA"]
["FACMAINT","Facility Maintenance","FACMAINT","AUX A"]
["FALL","Summer/Fall Orientation","FALL","VP INSTR"]
["FCEVEN","Freshman College Even FY","FCEVEN","VP INSTR"]
["FCODD","Freshman College Odd FY","FCODD","VP INSTR"]
["FOOTBALLGD","Football Gameday","FOOTBALLGD","AUX A"]
["GC00038502","Sports Turfgrass Management","38502","VPPSO"]
["GC00048831","Concepts in Clinical Pharmacok","48831","VPPSO"]
["GC00049136","Human Resources","49136","VPPSO"]
["GC00051511","Introductory Governmental Acco","51511","VPPSO"]
["GC00051512","Introductory Governmental Acco","51512","VPPSO"]
["GC00053640","Paralegal Certificate DVD Cour","53640","VPPSO"]
["GC00054804","Medical Transcription","54804","VPPSO"]
["GC00054805","CPC Administrative Medical Ass","54805","VPPSO"]
["GC00054806","Advanced Coding for the Physic","54806","VPPSO"]
["GC00054807","Advanced Hospital Coding and C","54807","VPPSO"]
["GC00054811","Pharmacy Technician","54811","VPPSO"]
["GC00054817","Cisco CCNA Certification Train","54817","VPPSO"]
["GC00054818","CompTIA? A+ Certification Trai","54818","VPPSO"]
["GC00054819","CompTIA? Network+/Server+ Cert","54819","VPPSO"]
["GC00054820","CompTIA? Security+ Certificati","54820","VPPSO"]
["GC00054821","WebMaster","54821","VPPSO"]
["GC00054829","Records Management Certificate","54829","VPPSO"]
["GC00054830","Travel Agent Training","54830","VPPSO"]
["GC00056530","Lean Mastery","56530","VPPSO"]
["GC00056531","Six Sigma Greenbelt","56531","VPPSO"]
["GC00056532","Video Game Design and Developm","56532","VPPSO"]
["GC00056671","HVACR Technician","56671","VPPSO"]
["GC00056770","Principios Sobre el Manejo de","56770","VPPSO"]
["GC00059072","Six Sigma Blackbelt","59072","VPPSO"]
["GC00060204","Georgia Real Estate Pre-Licens","60204","VPPSO"]
["GC00060218","Commercial Leases","60218","VPPSO"]
["GC00060234","Property Management","60234","VPPSO"]
["GC00060436","Certified National Pharmaceuti","60436","VPPSO"]
["GC00060437","Administrative Dental Assistan","60437","VPPSO"]
["GC00060438","Forensic Computer Examiner","60438","VPPSO"]
["GC00060439","Marketing Design Certificate","60439","VPPSO"]
["GC00060440","Payroll Practice and Managemen","60440","VPPSO"]
["GC00060441","3ds max","60441","VPPSO"]
["GC00060878","Intermediate Governmental Acco","60878","VPPSO"]
["GC00061250","ICD-10 Medical Coding","61250","VPPSO"]
["GC00061252","Digital Arts Certificate","61252","VPPSO"]
["GC00061342","Principles of Pharmaceutical M","61342","VPPSO"]
["GC00062965","Freight Broker Agent Training","62965","VPPSO"]
["GC00063107","Medical Billing and Coding","63107","VPPSO"]
["GC00063112","Multimedia Design Certificate","63112","VPPSO"]
["GC00063564","Search Engine Optimization","63564","VPPSO"]
["GC00063565","Search Engine Marketing","63565","VPPSO"]
["GC00063566","Certified Wedding Planner","63566","VPPSO"]
["GC00064915","Debt Administration","64915","VPPSO"]
["GC00065639","Human Resource Development and","65639","VPPSO"]
["GC00065640","Cultural Competency & Diversit","65640","VPPSO"]
["GC00065641","Leadership Skill Development f","65641","VPPSO"]
["GC00065642","Management Ethics & Values Bas","65642","VPPSO"]
["GC00065643","Finances & Accounting for the","65643","VPPSO"]
["GC00065644","Systems Thinking and the Manag","65644","VPPSO"]
["GC00065670","Principles of Market Research","65670","VPPSO"]
["GC00066050","Oil Refinery Operations","66050","VPPSO"]
["GC00066053","Power Plant Operations","66053","VPPSO"]
["GC00066061","Chemical Plant Operations","66061","VPPSO"]
["GC00066789","Certified Global Business Prof","66789","VPPSO"]
["GC00066807","Help Desk Analyst: Tier 1 Supp","66807","VPPSO"]
["GC00066815","Management for IT Professional","66815","VPPSO"]
["GC00066817","Management Training","66817","VPPSO"]
["GC00066829","Non-Profit Management","66829","VPPSO"]
["GC00066830","Pay Per Click Marketing","66830","VPPSO"]
["GC00066834","Purchasing and Supply Chain Ma","66834","VPPSO"]
["GC00067340","Treasury Management","67340","VPPSO"]
["GC00068203","Project Management Fundamental","68203","VPPSO"]
["GC00068821","Real Estate & Appraiser Credit","68821","VPPSO"]
["GC00068987","Recertification Online Course","68987","VPPSO"]
["GC00069168","Clinical Dental Assistant","69168","VPPSO"]
["GC00069338","Photography Certificate","69338","VPPSO"]
["GC00069388","Administrative Medical Special","69388","VPPSO"]
["GC00069469","Medical Terminology","69469","VPPSO"]
["GC00069497","Advanced Personal Fitness Trai","69497","VPPSO"]
["GC00069499","Chartered Tax Professional","69499","VPPSO"]
["GC00069500","Chartered Tax Professional for","69500","VPPSO"]
["GC00069502","Event Management and Design","69502","VPPSO"]
["GC00069504","Grant Writing","69504","VPPSO"]
["GC00069507","Medical Billing and Coding + M","69507","VPPSO"]
["GC00069508","Medical Transcription + Medica","69508","VPPSO"]
["GC00069509","Nutrition for Optimal Health,","69509","VPPSO"]
["GC00069510","Paralegal Online (Education to","69510","VPPSO"]
["GC00069511","Personal Fitness Trainer","69511","VPPSO"]
["GC00069512","Personal Training and Group Ex","69512","VPPSO"]
["GC00069514","Project Management","69514","VPPSO"]
["GC00069672","Biofuel Production Operations","69672","VPPSO"]
["GC00069674","Building Analyst Quick Start P","69674","VPPSO"]
["GC00069675","Certified Green Supply Chain P","69675","VPPSO"]
["GC00069676","Certified Indoor Air Quality M","69676","VPPSO"]
["GC00069677","Certified Indoor Environmental","69677","VPPSO"]
["GC00069678","Natural Gas Plant Operations","69678","VPPSO"]
["GC00069679","Performing Comprehensive Build","69679","VPPSO"]
["GC00069685","Senior Certified Sustainabilit","69685","VPPSO"]
["GC00069686","Wind Energy Professional","69686","VPPSO"]
["GC00070544","Administrative Medical Special","70544","VPPSO"]
["GC00070545","Certified Bookkeeper","70545","VPPSO"]
["GC00070602","Biennial","70602","VPPSO"]
["GC00070603","Biennial","70603","VPPSO"]
["GC00070663","Newly Elected County Commissio","70663","VPPSO"]
["GC00070664","Newly Elected County Commissio","70664","VPPSO"]
["GC00071082","Paralegal Certificate Course","71082","VPPSO"]
["GC00071083","Legal Studies DVD Course","71083","VPPSO"]
["GC00071176","Senior Certified Sustainabilit","71176","VPPSO"]
["GC00071327","Principles of Turfgrass Manage","71327","VPPSO"]
["GC00071328","Principles of Turfgrass Manage","71328","VPPSO"]
["GC00071617","Healthcare Reform","71617","VPPSO"]
["GC00071637","AutoCAD 3d","71637","VPPSO"]
["GC00071874","Internal Controls - Accounts R","71874","VPPSO"]
["GC00071902","Internal Controls: Accounts P","71902","VPPSO"]
["GC00072107","Graphic Design with Photoshop","72107","VPPSO"]
["GC00072151","Carpentry Online Training Cour","72151","VPPSO"]
["GC00072255","Residential Interior Designer","72255","VPPSO"]
["GC00072402","Armitage's Herbaceous Perennia","72402","VPPSO"]
["GC00072838","Introductory Budget","72838","VPPSO"]
["GC00072849","Revenue Administration","72849","VPPSO"]
["GC00073097","Child Development Associate Tr","73097","VPPSO"]
["GC00073098","Child Development Associate Tr","73098","VPPSO"]
["GC00073522","Web Applications Developer","73522","VPPSO"]
["GC00080002","Management Information Systems","80002","VPPSO"]
["GC00080016","Information Technology","80016","VPPSO"]
["GC00080017","CEP Administrative","80017","VPPSO"]
["GC00080018","CEP Conference Administrative","80018","VPPSO"]
["GC00080019","Professional & Personal Develo","80019","VPPSO"]
["GC00080020","PPD-GC Admin","80020","VPPSO"]
["GC00080021","PPD-GW Admin","80021","VPPSO"]
["GC00080022","PPD-OASP Admin","80022","VPPSO"]
["GC00080045","HR/Payroll & Personnel","80045","VPPSO"]
["GC00080059","Event Services","80059","VPPSO"]
["GC00080060","Sales (EE acct)","80060","VPPSO"]
["GC00080061","Sales Services","80061","VPPSO"]
["GC00080091","Director's Office","80091","VPPSO"]
["GC00080092","Independent and Distance Learn","80092","VPPSO"]
["GC00080093","Business Services Admin","80093","VPPSO"]
["GC00080094","Hotel","80094","VPPSO"]
["GC00080096","Registration Services (EE 349-","80096","VPPSO"]
["GC00080097","Duplicating & Mail","80097","VPPSO"]
["GC00080098","CEP- Reg","80098","VPPSO"]
["GC00080099","Food & Beverage","80099","VPPSO"]
["GC00080100","Graphics","80100","VPPSO"]
["GC00080101","Housekeeping","80101","VPPSO"]
["GC00080102","Environmental Design","80102","VPPSO"]
["GC00080112","Business & Finance/Business Ad","80112","VPPSO"]
["GC00080118","Product Sales","80118","VPPSO"]
["GC00080129","Building Maintenance","80129","VPPSO"]
["GC00080130","Early Care & Education","80130","VPPSO"]
["GC00080132","Pantry","80132","VPPSO"]
["GC00080133","Event Design","80133","VPPSO"]
["GC00080135","Web ID","80135","VPPSO"]
["GC00080136","WebMaster","80136","VPPSO"]
["GC00080138","Special Projects Curriculum De","80138","VPPSO"]
["GC00080139","GC Staff Support","80139","VPPSO"]
["GC00080141","Auxilliary Maintenance","80141","VPPSO"]
["GC00080144","Housekeeping Public Areas","80144","VPPSO"]
["GC00080148","Event Review meetings","80148","VPPSO"]
["GC00080150","CEP Meetings","80150","VPPSO"]
["GC00080161","Site Visits","80161","VPPSO"]
["GC00080163","Georgia Center Technology Acco","80163","VPPSO"]
["GC00080168","Grounds","80168","VPPSO"]
["GC00080169","Hold space for event","80169","VPPSO"]
["GC00080172","Carry Forward from EE Accounts","80172","VPPSO"]
["GC00080173","Cont Ed Repairs #1640","80173","VPPSO"]
["GC00080176","Aux Group C Ga Ctr PF Orig Bud","80176","VPPSO"]
["GC00080177","Ga Center Landscape Plan","80177","VPPSO"]
["GC00080178","Cont Ed Renov #1640 (non-capit","80178","VPPSO"]
["GC00080179","Cont. Ed Equipment (Capital it","80179","VPPSO"]
["GC00080181","GaCtr Special Projects","80181","VPPSO"]
["GC00080182","Cont. Ed Equipment (non-capita","80182","VPPSO"]
["GC00080183","Cont Ed Renov #1640 (Capital i","80183","VPPSO"]
["GC00080211","Certificate Reprints","80211","VPPSO"]
["GC00080228","FOOD for RESALE","80228","VPPSO"]
["GC00080244","Marketing Research","80244","VPPSO"]
["GC00080245","IDL Marketing","80245","VPPSO"]
["GC00080246","PPD Marketing","80246","VPPSO"]
["GC00080247","CEP/Sales Marketing","80247","VPPSO"]
["GC00080248","Foods Marketing","80248","VPPSO"]
["GC00080249","Hotel Marketing","80249","VPPSO"]
["GC00080251","GC Registration acct (EE 349-0","80251","VPPSO"]
["GC00080252","Program Development","80252","VPPSO"]
["GC00080299","Ga Center ITS Sales and Servic","80299","VPPSO"]
["GC00080415","Pricing Property to Sell","80415","VPPSO"]
["GC00080505","Sunday buffet","80505","VPPSO"]
["GC00080510","Excellence in Service","80510","VPPSO"]
["GC00080511","Anti Harassment","80511","VPPSO"]
["GC00080559","Operational Services Ethics an","80559","VPPSO"]
["GC00080640","My Spanish Teacher","80640","VPPSO"]
["GC00080666","CVIOG - GMA Training","80666","VPPSO"]
["GC00080673","CVIOG - ICDg","80673","VPPSO"]
["GC00080674","CVIOG - Public Works Training","80674","VPPSO"]
["GC00080691","Freebairn Meetings","80691","VPPSO"]
["GC00080692","Program Development Meetings (","80692","VPPSO"]
["GC00080693","GC Group Meetings","80693","VPPSO"]
["GC00080740","Metrics Meetings","80740","VPPSO"]
["GC00080795","Housekeeping Department Meetin","80795","VPPSO"]
["GC00080833","Using Social Media to Build Bu","80833","VPPSO"]
["GC00080879","Advanced Topics for New Agents","80879","VPPSO"]
["GC00081005","Symposium","81005","VPPSO"]
["GC00081023","Purchasing","81023","VPPSO"]
["GC00081126","Taking Charge of Change","81126","VPPSO"]
["GC00081224","Mail Room","81224","VPPSO"]
["GC00081227","A Developmental Approach To Cl","81227","VPPSO"]
["GC00081228","Developmental Assessment for C","81228","VPPSO"]
["GC00081229","Emotions and Behavior in the C","81229","VPPSO"]
["GC00081230","Getting Started in Your Own Cl","81230","VPPSO"]
["GC00081265","Hotel/Foods Meetings","81265","VPPSO"]
["GC00081446","Professional & Personal Develo","81446","VPPSO"]
["GC00081722","Georgia Training Approval BFTS","81722","VPPSO"]
["GC00081831","Principles of Commercial Real","81831","VPPSO"]
["GC00082082","Methods of Residential Finance","82082","VPPSO"]
["GC00082083","Cost Approach Overview","82083","VPPSO"]
["GC00082087","Using the Internet in Your Rea","82087","VPPSO"]
["GC00082167","Ethics In Real Estate","82167","VPPSO"]
["GC00082169","Structuring Ownership in Comme","82169","VPPSO"]
["GC00082219","Capital Improvement Program (C","82219","VPPSO"]
["GC00082596","Event Design Decor Only","82596","VPPSO"]
["GC00082741","WorkWorks/Bona Fide Employment","82741","VPPSO"]
["GC00082780","WorkWorks Employment Services","82780","VPPSO"]
["GC00083322","Principles of Mobile Market Re","83322","VPPSO"]
["GC00083349","Archway Mail Room","83349","VPPSO"]
["GC00083439","Archway Meetings","83439","VPPSO"]
["GC00083511","Principles of Turfgrass Manage","83511","VPPSO"]
["GC00083513","ICDG Conferences","83513","VPPSO"]
["GC00083554","Georgia Training Approval 2013","83554","VPPSO"]
["GC00083645","Archway Partnership Copier Usa","83645","VPPSO"]
["GC00083730","Armitage's Herbaceous Perennia","83730","VPPSO"]
["GC00083753","Finance and Settlement Procedu","83753","VPPSO"]
["GC00083785","Intermediate Budget","83785","VPPSO"]
["GC00083822","Boards of Equalization and the","83822","VPPSO"]
["GC00083823","Legal Issues in the Brokerage","83823","VPPSO"]
["GC00083824","Licensees as Principals","83824","VPPSO"]
["GC00083825","Management in a Brokerage Offi","83825","VPPSO"]
["GC00083826","Commercial Finance and Investm","83826","VPPSO"]
["GC00083827","Commercial Sales and Exchanges","83827","VPPSO"]
["GC00083974","Green Home Features","83974","VPPSO"]
["GC00084000","Six Sigma Yellow Belt Online P","84000","VPPSO"]
["GC00084085","Professional Bookkeeping with","84085","VPPSO"]
["GC00084212","SAO State Training","84212","VPPSO"]
["GC00084230","Applying Research & Insights:","84230","VPPSO"]
["GC00084249","National Real Estate Exam Prep","84249","VPPSO"]
["GC00084250","Math Master","84250","VPPSO"]
["GC00084251","Writing Contracts","84251","VPPSO"]
["GC00084252","Check it out: Home Inspection","84252","VPPSO"]
["GC00084253","Income Capitalization Overview","84253","VPPSO"]
["GC00084254","Consensual Dual Agency","84254","VPPSO"]
["GC00084255","Real Estate: Georgia Exam Prep","84255","VPPSO"]
["GC00084276","Understanding Net to Seller Fo","84276","VPPSO"]
["GC00084277","Tax Free Exchanges","84277","VPPSO"]
["GC00084280","Tax Advantages of Home Ownersh","84280","VPPSO"]
["GC00084297","Georgia Center Hotel","84297","VPPSO"]
["GC00084532","Green Home Construction","84532","VPPSO"]
["GC00084534","Real Estate Math","84534","VPPSO"]
["GC00084636","Introduction to Real Estate Et","84636","VPPSO"]
["GC00084757","CVIOG - MDP Training","84757","VPPSO"]
["GC00085106","PPD-SP Admin","85106","VPPSO"]
["GC00085135","Georgia Training Approval 2014","85135","VPPSO"]
["GC00085174","CVIOG Special Projects","85174","VPPSO"]
["GC00085211","Charter Schools Payroll Admini","85211","VPPSO"]
["GC00085212","Language of Accounting - Onlin","85212","VPPSO"]
["GC00085213","TeamWorks Literacy and Orienta","85213","VPPSO"]
["GC00085214","Revenue & Expenditure Analysis","85214","VPPSO"]
["GC00085216","Charter Schools Introductory A","85216","VPPSO"]
["GC00085217","Revenue Administration - Onlin","85217","VPPSO"]
["GC00085218","Budgeting for Charter Schools","85218","VPPSO"]
["GC00085219","Charter Schools Purchasing - O","85219","VPPSO"]
["GC00085262","Food and Customer Service Skil","85262","VPPSO"]
["GC00085557","Internal Controls - Capital As","85557","VPPSO"]
["GC00085558","Internal Controls - Payroll","85558","VPPSO"]
["GC00085673","Facility Management","85673","VPPSO"]
["GC00085682","Municipal and County Clerks","85682","VPPSO"]
["GC00085841","Southeast CUNA Management Scho","85841","VPPSO"]
["GC00085847","Certified Protection Officer","85847","VPPSO"]
["GC00085848","Systems Security Certified Pra","85848","VPPSO"]
["GC00085854","Georgia Banking School","85854","VPPSO"]
["GC00085953","ADA and Fair Housing","85953","VPPSO"]
["GC00085954","WorkWorks Job Coach Skill Deve","85954","VPPSO"]
["GC00086017","Seminar in Optometry","86017","VPPSO"]
["GC00086040","Institute for Organization Man","86040","VPPSO"]
["GC00086114","Conference Development","86114","VPPSO"]
["GC00086178","Charter Schools Internal Contr","86178","VPPSO"]
["GC00086179","Charter Schools Writing Financ","86179","VPPSO"]
["GC00086190","Preston Bailey's Signature Wed","86190","VPPSO"]
["GC00086321","Introductory Governmental Acco","86321","VPPSO"]
["GC00086322","Introductory Governmental Acco","86322","VPPSO"]
["GC00086323","Intermediate Governmental Acco","86323","VPPSO"]
["GC00086324","Purchasing for State Governmen","86324","VPPSO"]
["GC00086325","Internal Controls for State Go","86325","VPPSO"]
["GC00086326","Debt Administration for State","86326","VPPSO"]
["GC00086353","Introductory Governmental Acco","86353","VPPSO"]
["GC00086354","Introductory Governmental Acco","86354","VPPSO"]
["GC00086355","Intermediate Governmental Acco","86355","VPPSO"]
["GC00086356","Internal Controls for State Go","86356","VPPSO"]
["GC00086357","Debt Administration for State","86357","VPPSO"]
["GC00086358","Purchasing Basics in Georgia S","86358","VPPSO"]
["GC00086360","Preston Bailey's Intermediate","86360","VPPSO"]
["GC00086394","Annual Georgia Optometric Educ","86394","VPPSO"]
["GC00086495","Prequalifying Your Buyers in T","86495","VPPSO"]
["GC00086496","Environmental Hazards Disclosu","86496","VPPSO"]
["GC00086497","Georgia Real Estate: An Introd","86497","VPPSO"]
["GC00086509","Short Sales and Foreclosures","86509","VPPSO"]
["GC00086512","Sales Comparison Approach","86512","VPPSO"]
["GC00086513","Federal Law and Commercial Rea","86513","VPPSO"]
["GC00086515","Understanding Closing Statemen","86515","VPPSO"]
["GC00086519","Georgia Broker Prelicense","86519","VPPSO"]
["GC00086643","Georgia Speech-Language-Hearin","86643","VPPSO"]
["GC00086683","Microsoft Certified Solutions","86683","VPPSO"]
["GC00086685","OMCA Content Marketing Associa","86685","VPPSO"]
["GC00086686","OMCA Conversion Optimization A","86686","VPPSO"]
["GC00086687","OMCA Display Advertising Assoc","86687","VPPSO"]
["GC00086688","OMCA Email Marketing Associate","86688","VPPSO"]
["GC00086689","OMCA Mobile Marketing Associat","86689","VPPSO"]
["GC00086690","OMCA PPC Associate","86690","VPPSO"]
["GC00086691","OMCA SEO Associate","86691","VPPSO"]
["GC00086692","OMCA Social Media Associate","86692","VPPSO"]
["GC00086693","OMCA Web Analytics Associate","86693","VPPSO"]
["GC00086714","CompTIA A+ Certification Train","86714","VPPSO"]
["GC00086716","CompTIA Network+Certification","86716","VPPSO"]
["GC00086717","CompTIA Security+ Certificatio","86717","VPPSO"]
["GC00086718","CompTIA Certification Training","86718","VPPSO"]
["GC00086733","Professional Bookkeeping with","86733","VPPSO"]
["GC00086735","Technical Writing","86735","VPPSO"]
["GC00086876","Georgia Training Approval 2015","86876","VPPSO"]
["GC00086956","Wildlife Seminar","86956","VPPSO"]
["GC00086983","Specialized Assessments","86983","VPPSO"]
["GC00086984","Hearing Officer Annual Update","86984","VPPSO"]
["GC00086985","Exempt Properties","86985","VPPSO"]
["GC00087051","2018 Advanced Placement Summer","87051","VPPSO"]
["GC00087053","2018 Advanced Placement Summer","87053","VPPSO"]
["GC00087054","2019 Advanced Placement Summer","87054","VPPSO"]
["GC00087055","2019 Advanced Placement Summer","87055","VPPSO"]
["GC00087060","Personal Training and Group Ex","87060","VPPSO"]
["GC00087104","ICJE Juvenile Court Fall Confe","87104","VPPSO"]
["GC00087171","Sherpa Executive Coaching Cert","87171","VPPSO"]
["GC00087265","CaVEAT","87265","VPPSO"]
["GC00087291","CPC Medical Billing and Coding","87291","VPPSO"]
["GC00087349","The Complete Project Manager w","87349","VPPSO"]
["GC00087471","Institute of City and County A","87471","VPPSO"]
["GC00087594","Oracle SQL and PL/SQL Develope","87594","VPPSO"]
["GC00087595","Oracle SQL and PL/SQL Develope","87595","VPPSO"]
["GC00087597","Java Programmer","87597","VPPSO"]
["GC00087612","Georgia Real Estate License La","87612","VPPSO"]
["GC00087726","Administrative Professional wi","87726","VPPSO"]
["GC00087774","Optometry Winter Seminar","87774","VPPSO"]
["GC00087775","Seminar in Optometry","87775","VPPSO"]
["GC00087779","Avian Respiratory Conference","87779","VPPSO"]
["GC00087862","Lean Six Sigma Black Belt Cert","87862","VPPSO"]
["GC00087909","CBCS Certified Medical Adminis","87909","VPPSO"]
["GC00087910","CPC Certified Medical Administ","87910","VPPSO"]
["GC00087919","CompTIA Linux+","87919","VPPSO"]
["GC00087920","CompTIA Advanced Security Prac","87920","VPPSO"]
["GC00087921","CompTIA Mobility+","87921","VPPSO"]
["GC00087948","Georgia Banking School","87948","VPPSO"]
["GC00087953","Georgia Banking School","87953","VPPSO"]
["GC00087955","Introductory Governmental Acco","87955","VPPSO"]
["GC00087987","CBCS Medical Billing and Codin","87987","VPPSO"]
["GC00087988","CBCS Medical Billing and Codin","87988","VPPSO"]
["GC00087989","CBCS Administrative Medical Sp","87989","VPPSO"]
["GC00087991","CBCS Administrative Medical Sp","87991","VPPSO"]
["GC00088000","Certified Outpatient Coder (Vo","88000","VPPSO"]
["GC00088001","Medical Office Manager (CPPM)","88001","VPPSO"]
["GC00088002","Annual Marriage and Family The","88002","VPPSO"]
["GC00088026","Summer Academy at UGA","88026","VPPSO"]
["GC00088141","Certificate of Public Works Ma","88141","VPPSO"]
["GC00088206","CaVEAT","88206","VPPSO"]
["GC00088222","Summer Academy at UGA","88222","VPPSO"]
["GC00088227","Summer Academy at UGA","88227","VPPSO"]
["GC00088321","Cisco CNP","88321","VPPSO"]
["GC00088369","Georgia Training Approval 2016","88369","VPPSO"]
["GC00088425","Physical Therapy Aide","88425","VPPSO"]
["GC00088430","February 2017 ed2go","88430","VPPSO"]
["GC00088464","Wildlife Steering Committee Me","88464","VPPSO"]
["GC00088465","Wildlife Steering Committee Me","88465","VPPSO"]
["GC00088475","Wildlife Seminar","88475","VPPSO"]
["GC00088520","Southeast CUNA Management Scho","88520","VPPSO"]
["GC00088537","Transcript Request","88537","VPPSO"]
["GC00088613","Certified Health Unit Coordina","88613","VPPSO"]
["GC00088618","GA Landfill Operator's Certifi","88618","VPPSO"]
["GC00088723","GA Landfill Operator's Certifi","88723","VPPSO"]
["GC00088724","GA Landfill Operator's Certifi","88724","VPPSO"]
["GC00088788","Cold and Controlled Molecules","88788","VPPSO"]
["GC00088793","Optometry Winter Seminar","88793","VPPSO"]
["GC00088824","Georgia Association of Zoning","88824","VPPSO"]
["GC00088826","Intro to Web Development","88826","VPPSO"]
["GC00088827","Web Developer Coding Bootcamp","88827","VPPSO"]
["GC00088880","The Complete Project Manager w","88880","VPPSO"]
["GC00088927","Introductory Budget | CGCIO sp","88927","VPPSO"]
["GC00088928","Human Resources: An Online Co","88928","VPPSO"]
["GC00088933","Certified Information Systems","88933","VPPSO"]
["GC00088934","Cisco Certified Network Profes","88934","VPPSO"]
["GC00089013","Georgia Mosquito Control Assoc","89013","VPPSO"]
["GC00089077","Vet Asst.","89077","VPPSO"]
["GC00089090","19th International Conference","89090","VPPSO"]
["GC00089101","State Botanical Gardens of Geo","89101","VPPSO"]
["GC00089224","Terry College Graduation Recep","89224","VPPSO"]
["GC00089225","LLSP/ILA Graduation Brunch","89225","VPPSO"]
["GC00089226","Terry College Brunch","89226","VPPSO"]
["GC00089255","Certificate of Public Works Ma","89255","VPPSO"]
["GC00089297","ICJE Law and Practice Update","89297","VPPSO"]
["GC00089313","President's Spring Commencemen","89313","VPPSO"]
["GC00089353","Dooley and Scott Wedding","89353","VPPSO"]
["GC00089370","November 2017 ed2go","89370","VPPSO"]
["GC00089371","December 2017 ed2go","89371","VPPSO"]
["GC00089378","Epsilon Sigma Phi Annual Meeti","89378","VPPSO"]
["GC00089405","COEDH Luncheon","89405","VPPSO"]
["GC00089419","APEX Mental Health Summit","89419","VPPSO"]
["GC00089446","Early Career Principals Reside","89446","VPPSO"]
["GC00089457","2018 Health Careers Youth Conf","89457","VPPSO"]
["GC00089506","Foundations of Communication","89506","VPPSO"]
["GC00089507","Foundations l","89507","VPPSO"]
["GC00089508","Extension Program Planning Wee","89508","VPPSO"]
["GC00089512","GCED: Collaborate Leadership &","89512","VPPSO"]
["GC00089513","GCED:Workforce Development","89513","VPPSO"]
["GC00089514","GCED:Principles of Leadership","89514","VPPSO"]
["GC00089515","CEC Orientation: Managing Peop","89515","VPPSO"]
["GC00089516","ANR Foundations","89516","VPPSO"]
["GC00089517","Foundations ll","89517","VPPSO"]
["GC00089518","FACS Fall Foundations","89518","VPPSO"]
["GC00089524","Score","89524","VPPSO"]
["GC00089537","2018 State of the Public's Hea","89537","VPPSO"]
["GC00089568","Soybean Breeders' Tour","89568","VPPSO"]
["GC00089616","Jefferson High School Prom","89616","VPPSO"]
["GC00089641","Human Resources Professional","89641","VPPSO"]
["GC00089653","Superintendent's Retreat","89653","VPPSO"]
["GC00089654","The Complete Project Manager w","89654","VPPSO"]
["GC00089733","Madison County Tennis Banquet","89733","VPPSO"]
["GC00089745","OMCP Paid Search Professional","89745","VPPSO"]
["GC00089786","PSO New Faculty Tour Meeting","89786","VPPSO"]
["GC00089822","Paralegal","89822","VPPSO"]
["GC00089825","Microsoft Access 2016 Certific","89825","VPPSO"]
["GENADMIN","General Administration","GENADMIN","AUX A"]
["GENERAL","Track General Expenses","GENERAL","VP AA"]
["GIFTOGRAM","Gift O Gram sales and revenue","GIFTOGRAM","AUX A"]
["GMFALL","Track cost of GA MagFall","GMFALL","VPM"]
["GMOAMAIN","GMOA Main Office","GMOAMAIN","VP AA"]
["GMOASECUR","GMOA Security","GMOASECUR","VP AA"]
["GMSPRING","Track cost of GA Mag Spring","GMSPRING","VPM"]
["GMSUMMER","Track cost of GA Mag Summer","GMSUMMER","VPM"]
["GMWINTER","Track cost of GA Mag Winter","GMWINTER","VPM"]
["GPAFFENHOF","To Track Expenses by GAP","0","VP AA"]
["GRADUATION","Track cost of Graduation Event","GRADUATION","SSW"]
["GRADUATION","Graduation","GRADUATION","JRNL"]
["GRAPHICS","Track Graphics Expenses","GRAPHICS","VP AA"]
["GRIFFACAF","Griffin Academic Affairs","GRIFFACAF","VP INSTR"]
["GRIFFOPER","Griffin Operations","GRIFFOPER","VP INSTR"]
["GSFICJ277","GSFIC J-277","GSFICJ277","claYTON"]
["GSFICJ306","GSFIC J-306","GSFICJ306","claYTON"]
["GSFICJ314","GSFIC J-314","GSFICJ314","claYTON"]
["GWINCUST","Gwinnett Custodial","GWINCUST","VP INSTR"]
["GWINSECUR","Gwinnett Security","GWINSECUR","VP INSTR"]
["HH1X21CTL","21st Cent. Teaching, Learning","HH1X21CTL","FRANKLIN"]
["HH1XARCO","1 X Grant - ARCO","HH1XARCO","FRANKLIN"]
["HH1XATHMUP","1 X Grant - Athens Music Proj","HH1XATHMUP","FRANKLIN"]
["HH1XBASSON","1 X Grant - Bassoons & Repairs","HH1XBASSON","FRANKLIN"]
["HH1XCAREER","1 X Grant - Career Center","HH1XCAREER","FRANKLIN"]
["HH1XCELLOS","1 X Grant - Cellos","HH1XCELLOS","FRANKLIN"]
["HH1XCHAMBR","1 X Grant - Chamber Music Fest","HH1XCHAMBR","FRANKLIN"]
["HH1XCHORAL","1 X Grant - Choral","HH1XCHORAL","FRANKLIN"]
["HH1XCLARIN","1 X Grant - Clarinets","HH1XCLARIN","FRANKLIN"]
["HH1XCOMPTH","1 X Grant-Diversfyg Cmp-Theory","HH1XCOMPTH","FRANKLIN"]
["HH1XDBLBAS","1 X Grant - Double Bass","HH1XDBLBAS","FRANKLIN"]
["HH1XDEVSUP","1 X Grant - Develope Staff Sup","HH1XDEVSUP","FRANKLIN"]
["HH1XDIGITL","1 X Grant - Digital Dwnld Site","HH1XDIGITL","FRANKLIN"]
["HH1XENGHRN","1 X Grant - Eng Horn, Oboe, Eq","HH1XENGHRN","FRANKLIN"]
["HH1XENSTRS","1 X Grant - Ensemble Perf Tour","HH1XENSTRS","FRANKLIN"]
["HH1XFLUTE","1 X Grant - Flute","HH1XFLUTE","FRANKLIN"]
["HH1XGAMELN","1 X Grant - Gamelan","HH1XGAMELN","FRANKLIN"]
["HH1XGUITAR","1 X Grant - Guitar, concert","HH1XGUITAR","FRANKLIN"]
["HH1XHORNS","1 X Grant - Horns","HH1XHORNS","FRANKLIN"]
["HH1XHUMID","1 X Grant - Humidifier Orch Rm","HH1XHUMID","FRANKLIN"]
["HH1XJAZAMP","1 X Grant - Jazz Percussn, Amp","HH1XJAZAMP","FRANKLIN"]
["HH1XLECTUR","1 X Grant-Visit Artist/Lecture","HH1XLECTUR","FRANKLIN"]
["HH1XORFFIN","1 X Grant - Orff Instruments","HH1XORFFIN","FRANKLIN"]
["HH1XPERCSN","1 X Grant - Percussion","HH1XPERCSN","FRANKLIN"]
["HH1XPIANO","1 X Grant - Piano","HH1XPIANO","FRANKLIN"]
["HH1XPUBAFF","1 X Grant - Public Aff Boost","HH1XPUBAFF","FRANKLIN"]
["HH1XRECORD","1 X Grant - Recording Technlgy","HH1XRECORD","FRANKLIN"]
["HH1XRECRUT","1 X Grant - Recruiting Focus","HH1XRECRUT","FRANKLIN"]
["HH1XREMOTE","1 X Grant - Remote Teaching","HH1XREMOTE","FRANKLIN"]
["HH1XREPAIR","1 X Grant - 3 yr repair budget","HH1XREPAIR","FRANKLIN"]
["HH1XSAXOPH","1 X Grant - Saxophone","HH1XSAXOPH","FRANKLIN"]
["HH1XSPRINT","1 X Grant - Student Print Sol","HH1XSPRINT","FRANKLIN"]
["HH1XTROMB","1 X Grant - Trombone","HH1XTROMB","FRANKLIN"]
["HH1XTRUMPT","1 X Grant - Trumpet","HH1XTRUMPT","FRANKLIN"]
["HH1XTUBAEU","1 X Grant - Tuba Euphonium","HH1XTUBAEU","FRANKLIN"]
["HH1XVIOLA","1 X Grant - Viola","HH1XVIOLA","FRANKLIN"]
["HH1XVIOLIN","1 X Grant - Violin & Bows","HH1XVIOLIN","FRANKLIN"]
["HH2THUDON8","2ND Thursday Concert Donations","HH2THUDON8","FRANKLIN"]
["HHADAMSTM","Adams, Tim","HHADAMSTM","FRANKLIN"]
["HHADMUG","UG Admissions","HHADMUG","FRANKLIN"]
["HHAMBARTSU","Ambartsumian, Levon","HHAMBARTSU","FRANKLIN"]
["HHANATOLYS","Sheludyakov, Anatoly","HHANATOLYS","FRANKLIN"]
["HHARCOCHAM","MUSIC-ARCO Chamber Orchestra","HHARCOCHAM","FRANKLIN"]
["HHARCOENS","Ensembles - ARCO","HHARCOENS","FRANKLIN"]
["HHARCOSUPR","UGAF ARCO Support Ruppe","HHARCOSUPR","FRANKLIN"]
["HHATHNMUPR","Athens Music Project","HHATHNMUPR","FRANKLIN"]
["HHATKINSR","Atkins, Rebecca","HHATKINSR","FRANKLIN"]
["HHAUXCAMP","Summer Auxiliary Camp","HHAUXCAMP","FRANKLIN"]
["HHBANDENS","Ensembles - Band","HHBANDENS","FRANKLIN"]
["HHBANDPRO","Band Project","HHBANDPRO","FRANKLIN"]
["HHBANDSERV","UGAF UGA Bands Service Dorse","HHBANDSERV","FRANKLIN"]
["HHBARADAN","Bara, Dan","HHBARADAN","FRANKLIN"]
["HHBASSOONS","MUSIC - Bassoon Symposium","HHBASSOONS","FRANKLIN"]
["HHBASSSTUD","Bassoon Studio","HHBASSSTUD","FRANKLIN"]
["HHBAWCUMB","Bawcum, Brett","HHBAWCUMB","FRANKLIN"]
["HHBNDCONDT","Conductors Art (Band)","HHBNDCONDT","FRANKLIN"]
["HHBNDMRKT","Marketing","HHBNDMRKT","FRANKLIN"]
["HHBOLSHOYD","Bolshoy, Daniel","HHBOLSHOYD","FRANKLIN"]
["HHBOYDCHOR","UGAF Boyd Prof Chor Dorse","HHBOYDCHOR","FRANKLIN"]
["HHBRASS","Brass Area","HHBRASS","FRANKLIN"]
["HHBROUGHTG","Broughton, Gregory","HHBROUGHTG","FRANKLIN"]
["HHBURCHINF","Burchinal, Frederick","HHBURCHINF","FRANKLIN"]
["HHBURCHPRO","UGAF Anderson Profess Burch","HHBURCHPRO","FRANKLIN"]
["HHBURNETTJ","Burnett, J.D.","HHBURNETTJ","FRANKLIN"]
["HHBVRTCHVR","UGAF Beaver Music Tchverra","HHBVRTCHVR","FRANKLIN"]
["HHBYNUMJ","Bynum, Josh","HHBYNUMJ","FRANKLIN"]
["HHCDSALES","RC CD Sales","HHCDSALES","FRANKLIN"]
["HHCEDELM","Cedel, Mark","HHCEDELM","FRANKLIN"]
["HHCELLSTUD","Cello Studio","HHCELLSTUD","FRANKLIN"]
["HHCHILDSA","Childs, Adrian","HHCHILDSA","FRANKLIN"]
["HHCHOIR","Choir","HHCHOIR","FRANKLIN"]
["HHCHORALCO","MUSIC-Choral Conducting Instit","HHCHORALCO","FRANKLIN"]
["HHCHORALDY","MUSIC - Choral Day Workshop","HHCHORALDY","FRANKLIN"]
["HHCHORFEST","Choral Festivals","HHCHORFEST","FRANKLIN"]
["HHCHORLCON","Choral Conducting Institute","HHCHORLCON","FRANKLIN"]
["HHCJT","Johnston Turner, Cyndi","HHCJT","FRANKLIN"]
["HHCLARACA","MUSIC - Clarinet Academy","HHCLARACA","FRANKLIN"]
["HHCLARINET","Clarinet Academy","HHCLARINET","FRANKLIN"]
["HHCLARSTUD","Clarinet Studio","HHCLARSTUD","FRANKLIN"]
["HHCLOYDUFF","Cloyd Duff Workshop","HHCLOYDUFF","FRANKLIN"]
["HHCLOYDWRK","MUSIC - Cloyd Duff Workshop","HHCLOYDWRK","FRANKLIN"]
["HHCMS","Community Music School","HHCMS","FRANKLIN"]
["HHCMSCHOOL","MUSIC-Community Music School","HHCMSCHOOL","FRANKLIN"]
["HHCOMMISS","Commissions","HHCOMMISS","FRANKLIN"]
["HHCOMPTHEO","Composition/Theory Area","HHCOMPTHEO","FRANKLIN"]
["HHCONCRTWD","Concert Winds","HHCONCRTWD","FRANKLIN"]
["HHCOPIER","Copier","HHCOPIER","FRANKLIN"]
["HHCRASWELL","Craswell, Brandon","HHCRASWELL","FRANKLIN"]
["HHDANGELOD","D'Angelo, David","HHDANGELOD","FRANKLIN"]
["HHDBASSYMP","MUSIC-Double Bass Symposium","HHDBASSYMP","FRANKLIN"]
["HHDBLBASS","Double Bass Symposium","HHDBLBASS","FRANKLIN"]
["HHDBLESTUD","Double Bass Studio","HHDBLESTUD","FRANKLIN"]
["HHDBLREED","Double Reed (Bassoon & Oboe)","HHDBLREED","FRANKLIN"]
["HHDENTOND","Denton, Damon","HHDENTOND","FRANKLIN"]
["HHDIRECTOR","MUSIC Research Support-MONSON","HHDIRECTOR","FRANKLIN"]
["HHDIRFUND","Director's Fund","HHDIRFUND","FRANKLIN"]
["HHDONORCEL","Fall Donor Celebration","HHDONORCEL","FRANKLIN"]
["HHELECMUST","Electronic Music Studio","HHELECMUST","FRANKLIN"]
["HHENHANCE","UGAF HHSOM Enhancement Dorse","HHENHANCE","FRANKLIN"]
["HHEQUIP","Equipment","HHEQUIP","FRANKLIN"]
["HHEQUIPRNT","Equipment Rental","HHEQUIPRNT","FRANKLIN"]
["HHEVNTDEV","Development - Events","HHEVNTDEV","FRANKLIN"]
["HHFACBRASS","Fac Brass Quintet","HHFACBRASS","FRANKLIN"]
["HHFACMNT","Facilities Maintenance & Renov","HHFACMNT","FRANKLIN"]
["HHFACRES","MUSIC - Faculty Research","HHFACRES","FRANKLIN"]
["HHFACVISA","Visa","HHFACVISA","FRANKLIN"]
["HHFACWOOD","Fac Woodwind Quintet","HHFACWOOD","FRANKLIN"]
["HHFARLEYA","Farley, Alison","HHFARLEYA","FRANKLIN"]
["HHFESTREAM","Streaming Band Festivals","HHFESTREAM","FRANKLIN"]
["HHFLUTEWRK","MUSIC - Flute Workshop","HHFLUTEWRK","FRANKLIN"]
["HHFLUTISS","Flutissimo","HHFLUTISS","FRANKLIN"]
["HHFLUTSTUD","Flute Studio","HHFLUTSTUD","FRANKLIN"]
["HHFREIGHT","Freight","HHFREIGHT","FRANKLIN"]
["HHFRIGOC","Frigo, Connie","HHFRIGOC","FRANKLIN"]
["HHFUNGD","Fung, David","HHFUNGD","FRANKLIN"]
["HHGACC","Georgia Childrens Chorus","HHGACC","FRANKLIN"]
["HHGENMGMT","General Management","HHGENMGMT","FRANKLIN"]
["HHGERTSCHE","Gertsch, Emily","HHGERTSCHE","FRANKLIN"]
["HHGRABERN","Graber, Naomi","HHGRABERN","FRANKLIN"]
["HHGRADADM","Grad Admissions","HHGRADADM","FRANKLIN"]
["HHGRADASST","Graduate Assistantships","HHGRADASST","FRANKLIN"]
["HHGRADCONV","Spring Grad Convocation HHSOM","HHGRADCONV","FRANKLIN"]
["HHGRADRECR","Grad Recruitment","HHGRADRECR","FRANKLIN"]
["HHGRADSHIP","Scholarship & Fellowship -Grad","HHGRADSHIP","FRANKLIN"]
["HHGRIFFITH","Griffith, Paul","HHGRIFFITH","FRANKLIN"]
["HHGSTRAVEL","Grad School Travel Funding","HHGSTRAVEL","FRANKLIN"]
["HHGTARSTUD","Guitar Studio","HHGTARSTUD","FRANKLIN"]
["HHHAASD","Haas, David","HHHAASD","FRANKLIN"]
["HHHARGRAVE","Hargrave, Monica","HHHARGRAVE","FRANKLIN"]
["HHHARPSTUD","Harp Studio","HHHARPSTUD","FRANKLIN"]
["HHHARTENBJ","Hartenberger, Jaclyn","HHHARTENBJ","FRANKLIN"]
["HHHEALDM","Heald, Michael","HHHEALDM","FRANKLIN"]
["HHHEYWARD","UGAF Heyward Prof Mus Crowe","HHHEYWARD","FRANKLIN"]
["HHHIGGINSS","Higgins, Scott","HHHIGGINSS","FRANKLIN"]
["HHHOLIDAY","Holiday Concert","HHHOLIDAY","FRANKLIN"]
["HHHORNFY18","Horn Search FY 18","HHHORNFY18","FRANKLIN"]
["HHHORNSTUD","Horn Studio","HHHORNSTUD","FRANKLIN"]
["HHHOVECHOR","UGAF Hoveland Choral Dorse","HHHOVECHOR","FRANKLIN"]
["HHHOVEOPER","UGAF Hoveland Opera Dorse","HHHOVEOPER","FRANKLIN"]
["HHINDIRCR","UGARF Indirect Cost Return","HHINDIRCR","FRANKLIN"]
["HHINDIRECT","MUSIC Indirect","HHINDIRECT","FRANKLIN"]
["HHINSTRMNT","Instruments - M&R","HHINSTRMNT","FRANKLIN"]
["HHINSTRUM","Instruments","HHINSTRUM","FRANKLIN"]
["HHINSURE","Insurance","HHINSURE","FRANKLIN"]
["HHINTLAFFR","International Affairs","HHINTLAFFR","FRANKLIN"]
["HHINTLEXCH","International Exchange Student","HHINTLEXCH","FRANKLIN"]
["HHINTLFEES","MUSIC - INT'L Program Fees","HHINTFEES","FRANKLIN"]
["HHITALYFEE","MUSIC Study Abroad Alessandri","HHITALYFEE","FRANKLIN"]
["HHITALYTUI","MUSIC Italy Study Abroad Tuit","HHITALYTUI","FRANKLIN"]
["HHITPURNTL","IT Purchase/Rental","HHITPURNTL","FRANKLIN"]
["HHITSERV","IT Services","HHITSERV","FRANKLIN"]
["HHJANFEST","JanFest","HHJANFEST","FRANKLIN"]
["HHJAZZAR","Jazz Area","HHJAZZAR","FRANKLIN"]
["HHJAZZLOWE","UGAF Jazz Studies Sup Lowe","HHJAZZLOWE","FRANKLIN"]
["HHJAZZWRKS","MUSIC-Jazz Festival Wrkshp","HHJAZZWRKS","FRANKLIN"]
["HHJONESRA","Jones Reus, Angela","HHJONESRA","FRANKLIN"]
["HHJUTRASP","Jutras, Peter","HHJUTRASP","FRANKLIN"]
["HHKALEIDOS","Kaleidoscope","HHKALEIDOS","FRANKLIN"]
["HHKARLAS","UGAF Karlas Prof Zimda","HHKARLAS","FRANKLIN"]
["HHKENNEDYR","Kennedy, Roy","HHKENNEDYR","FRANKLIN"]
["HHKEYBOARD","Keyboard Pedagogy Symposium","HHKEYBOARD","FRANKLIN"]
["HHKIDULAJ","Kidula, Jean","HHKIDULAJ","FRANKLIN"]
["HHKILROESC","Kilroe-Smith, Cathy","HHKILROESC","FRANKLIN"]
["HHKNIGHTE","Knight, Elizabeth","HHKNIGHTE","FRANKLIN"]
["HHKODALY","MUSIC-Kodaly Workshop","HHKODALY","FRANKLIN"]
["HHKOHE","Koh, Emily","HHKOHE","FRANKLIN"]
["HHLANEP","Lane, Peter","HHLANEP","FRANKLIN"]
["HHLEGETTER","Legette, Roy","HHLEGETTER","FRANKLIN"]
["HHLESSONNO","MUSIC - Lessons for Non Majors","HHLESSONNO","FRANKLIN"]
["HHLEVONPRO","MUSIC-Ambartsumian Franklin Pr","HHLEVONPRO","FRANKLIN"]
["HHLINKD","Link Dorothea","HHLINKD","FRANKLIN"]
["HHMAIL","Mail","HHMAIL","FRANKLIN"]
["HHMARCHCMP","Summer Marching Camp","HHMARCHCMP","FRANKLIN"]
["HHMARLOWW","Marlow, Will","HHMARLOWW","FRANKLIN"]
["HHMASCIADM","Masciadri, Milton","HHMASCIADM","FRANKLIN"]
["HHMASTERCL","Lectures and Master Classes","HHMASTERCL","FRANKLIN"]
["HHMCCAYFND","UGAF Music McCay Fnd Graha","HHMCCAYFND","FRANKLIN"]
["HHMCCLELLD","McClellan, D.Ray","HHMCCLELLD","FRANKLIN"]
["HHMENSGLEE","UGAF Men's Glee Club Dorse","HHMENSGLEE","FRANKLIN"]
["HHMESSICHR","Messich, Reid","HHMESSICHR","FRANKLIN"]
["HHMIDFEST","MidFest","HHMIDFEST","FRANKLIN"]
["HHMILRHODG","UGAF Miller Hodgson Dorse","HHMILRHODG","FRANKLIN"]
["HHMONSOND","Monson, Dale","HHMONSOND","FRANKLIN"]
["HHMULIBARY","Music Library Area","HHMULIBARY","FRANKLIN"]
["HHMUSDEVLO","UGAF Music Development Lowe","HHMUSDEVLO","FRANKLIN"]
["HHMUSICCDS","MUSI CD Sales","HHMUSICCDS","FRANKLIN"]
["HHMUSICCMP","Summer Music Camp","HHMUSICCMP","FRANKLIN"]
["HHMUSOLOGY","Musicology/Ethno Area","HHMUSOLOGY","FRANKLIN"]
["HHNEWMUENS","New Music Ensemble","HHNEWMUENS","FRANKLIN"]
["HHNEWMUSIC","UGAF New Music Sup Dorse","HHNEWMUSIC","FRANKLIN"]
["HHNYFSFEE","MUSIC - New York Field Study","HHNYFSFEE","FRANKLIN"]
["HHNYFSTUIT","MUSIC NY Field Study Tuit","HHNYFSTUIT","FRANKLIN"]
["HHOBOESTUD","Oboe Studio","HHOBOESTUD","FRANKLIN"]
["HHOFFOPER","Office Operations","HHOFFOPER","FRANKLIN"]
["HHOFFSUPLY","Office Supplies Admin","HHOFFSUPLY","FRANKLIN"]
["HHONLINE","MUSIC Online Classes","HHONLINE","FRANKLIN"]
["HHONLMMED","Online MMED","HHONLMMED","FRANKLIN"]
["HHOPENCONV","Opening Convocation","HHOPENCONV","FRANKLIN"]
["HHOPERA","Opera","HHOPERA","FRANKLIN"]
["HHOPERADOR","UGAF HHSOM Opera Supp Dorse","HHOPERADOR","FRANKLIN"]
["HHOPERASUP","MUSIC Opera Support","HHOPERASUP","FRANKLIN"]
["HHOPPRDCTN","Friends of Opera - Production","HHOPPRDCTN","FRANKLIN"]
["HHOPRAYAPS","Friend of Opera -Young Artist","HHOPRAYAPS","FRANKLIN"]
["HHOPUNDES","Friends of Opera -Undesignated","HHOPUNDES","FRANKLIN"]
["HHORCHEST","Orchestra","HHORCHEST","FRANKLIN"]
["HHORCHFEST","Orchestra Festival","HHORCHFEST","FRANKLIN"]
["HHORCHWRKS","MUSIC Orchestra Festival","HHORCHWRKS","FRANKLIN"]
["HHORFFWORK","ORFF Workshop","HHORFFWORK","FRANKLIN"]
["HHORFFWRKS","MUSIC-ORFF Workshop","HHORFFWRKS","FRANKLIN"]
["HHORGNSTUD","Organ Studio","HHORGNSTUD","FRANKLIN"]
["HHPACSUP","MUSIC PAC Support","HHPACSUP","FRANKLIN"]
["HHPACSUPRT","PAC Support","HHPACSUPRT","FRANKLIN"]
["HHPAINOARE","Piano Area","HHPAINOARE","FRANKLIN"]
["HHPARKING","Parking","HHPARKING","FRANKLIN"]
["HHPERCSTUD","Percussion Studio","HHPERCSTUD","FRANKLIN"]
["HHPERCSUPT","UGAF Percussion Studio Dorse","HHPERCSUPT","FRANKLIN"]
["HHPERCUSSN","Percussion Area","HHPERCUSSN","FRANKLIN"]
["HHPHONE","Phone","HHPHONE","FRANKLIN"]
["HHPIANOEQU","Pianos","HHPIANOEQU","FRANKLIN"]
["HHPIANOMNT","Pianos - M&R","HHPIANOMNT","FRANKLIN"]
["HHPIANSTUD","Piano Studio","HHPIANSTUD","FRANKLIN"]
["HHPOLLARDA","Pollard, Amy","HHPOLLARDA","FRANKLIN"]
["HHPROKASY","UGAF Prokasy Prof Artander","HHPROKASY","FRANKLIN"]
["HHPSAMTA","Prof Soc - AMTA","HHPSAMTA","FRANKLIN"]
["HHPSCMSOC","Prof Soc - College Music Soc","HHPSCMSOC","FRANKLIN"]
["HHPSGMEA","Prof Soc - GMEA","HHPSGMEA","FRANKLIN"]
["HHPSNAFME","Prof Soc - NAfME","HHPSNAFME","FRANKLIN"]
["HHPSNASM","Prof Soc - NASM","HHPSNASM","FRANKLIN"]
["HHPUBDEV","Development - Publicity","HHPUBDEV","FRANKLIN"]
["HHPUBREL","Public Relations","HHPUBREL","FRANKLIN"]
["HHRCAUXIL","RC Auxiliaries","HHRCAUXIL","FRANKLIN"]
["HHRCBAUXIL","RCB Auxiliaries Workshop","HHRCBAUXIL","FRANKLIN"]
["HHRCBCDSAL","MUSIC RCB CD Sales","HHRCBCDSAL","FRANKLIN"]
["HHRCBCDTX1","RCB CD Sales Tax1","HHRCBCDTX1","FRANKLIN"]
["HHRCBFLAG","RCB Flagline Workshop","HHRCBFLAG","FRANKLIN"]
["HHRCBWORKS","RCB Workshop","HHRCBWORKS","FRANKLIN"]
["HHRCFLAG","RC Flagline","HHRCFLAG","FRANKLIN"]
["HHRCRENT","RC Facility Rentals","HHRCRENT","FRANKLIN"]
["HHRCSCHOLR","RC Scholarships","HHRCSCHOLR","FRANKLIN"]
["HHRCSPROMO","RC Sports Promotion","HHRCSPROMO","FRANKLIN"]
["HHRCSUPPLY","RC Major Supplies","HHRCSUPPLY","FRANKLIN"]
["HHRCTRAVEL","RC Travel","HHRCTRAVEL","FRANKLIN"]
["HHREALWRLD","Music in the Real World","HHREALWRLD","FRANKLIN"]
["HHRECORD","Brdcst/Record - Recordings","HHRECORD","FRANKLIN"]
["HHRECRUG","UG Recruitment","HHRECRUG","FRANKLIN"]
["HHRECSTRM","MUSIC - Streaming/Recording","HHRECSTRM","FRANKLIN"]
["HHREDCOATS","Redcoat Band","HHREDCOATS","FRANKLIN"]
["HHREGNTLEV","Regents Professor Ambartsumian","HHREGNTLEV","FRANKLIN"]
["HHRESIDUAL","Residual Balance #183","HHRESIDUAL","FRANKLIN"]
["HHRITCHEYR","Ritchey, Ellen","HHRITCHEYR","FRANKLIN"]
["HHRIVKINE","Rivkin, Evgeny","HHRIVKINE","FRANKLIN"]
["HHROBINSON","Robinson, Michael","HHROBINSON","FRANKLIN"]
["HHSALESTX1","Sales Tax","HHSALESTX1","FRANKLIN"]
["HHSATTERWD","Satterwhite, Dwight","HHSATTERWD","FRANKLIN"]
["HHSAXOPHON","Saxophone Workshop","HHSAXOPHON","FRANKLIN"]
["HHSAXSTUD","Saxophone Studio","HHSAXSTUD","FRANKLIN"]
["HHSAXWRKSH","MUSIC-UGA Saxophone Workshop","HHSAXWRKSH","FRANKLIN"]
["HHSBFCFAC","Sal & Ben - Faculty - Franklin","HHSBFCFAC","FRANKLIN"]
["HHSBFCSTAF","Sal & Ben - Staff - Franklin","HHSBFCSTAF","FRANKLIN"]
["HHSBFCSTUD","Sal & Ben - Student - Franklin","HHSBFCSTUD","FRANKLIN"]
["HHSCOTTA","Scott, Arvin","HHSCOTTA","FRANKLIN"]
["HHSEATPROG","SEAT Program","HHSEATPROG","FRANKLIN"]
["HHSECSTTRV","SEC Student Travel","HHSECSTTRV","FRANKLIN"]
["HHSERVLERN","Service Learning","HHSERVLERN","FRANKLIN"]
["HHSLITKER","Simpson-Litke, Rebecca","HHSLITKER","FRANKLIN"]
["HHSMITHP","Smith, Phil","HHSMITHP","FRANKLIN"]
["HHSNYDERM","Snyder, Maggie","HHSNYDERM","FRANKLIN"]
["HHSOACDA","Student Org - ACDA","HHSOACDA","FRANKLIN"]
["HHSOAMTA","Student Org - AMTA","HHSOAMTA","FRANKLIN"]
["HHSOASTA","Student Org - ASTA","HHSOASTA","FRANKLIN"]
["HHSOCNAFME","Student Org - CNAFME","HHSOCNAFME","FRANKLIN"]
["HHSOKKP","Student Org - KKP","HHSOKKP","FRANKLIN"]
["HHSOM GH","Hugh Hodgson Music School GH","HHSOM GH","FRANKLIN"]
["HHSOM GJ","Hugh Hodgson Music School GJ","HHSOM GJ","FRANKLIN"]
["HHSOM GR","Hugh Hodgson Music School GR","HHSOM GR","FRANKLIN"]
["HHSOMFAC","Sal & Ben - Faculty - HHSOM","HHSOMFAC","FRANKLIN"]
["HHSOMSTAFF","Sal & Ben - Staff - HHSOM","HHSOMSTAFF","FRANKLIN"]
["HHSOMSTDNT","Sal & Ben - Students - HHSOM","HHSOMSTDNT","FRANKLIN"]
["HHSOMTECH","HHSOM Technology","HHSOMTECH","FRANKLIN"]
["HHSOOTHER","Student Org - Other","HHSOOTHER","FRANKLIN"]
["HHSOPMA","Student Org - PMA","HHSOPMA","FRANKLIN"]
["HHSOSAI","Student Org - SAI","HHSOSAI","FRANKLIN"]
["HHSOUGASCA","Student Org - UGASCA","HHSOUGASCA","FRANKLIN"]
["HHSOUNDSGA","Sounds Across Georgia","HHSOUNDSGA","FRANKLIN"]
["HHSPOTLITE","Spotlight on the Arts","HHSPOTLITE","FRANKLIN"]
["HHSTARKD","Starkweather, David","HHSTARKD","FRANKLIN"]
["HHSTDYAB19","Study Abroad 2019","HHSTDYAB19","FRANKLIN"]
["HHSTEPANL","Stepanova, Liza","HHSTEPANL","FRANKLIN"]
["HHSTEWWRK","MUSIC-SE Tuba Euphonium Wrkshp","HHSTEWWRK","FRANKLIN"]
["HHSTREAM","Brdcst/Record - Streaming","HHSTREAM","FRANKLIN"]
["HHSTRINGPR","MUSIC-String Project","HHSTRINGPR","FRANKLIN"]
["HHSTRINGS","Strings Area","HHSTRINGS","FRANKLIN"]
["HHSTRNGPRO","String Project","HHSTRNGPRO","FRANKLIN"]
["HHSTUACTIV","Student Activities","HHSTUACTIV","FRANKLIN"]
["HHSTUAWARD","Student Awards","HHSTUAWARD","FRANKLIN"]
["HHSTUDFEE","MUSIC - Student Fees","HHSTUDFEE","FRANKLIN"]
["HHSTUDSUPR","Student Teaching Supervision","HHSTUDSUPR","FRANKLIN"]
["HHSTUTRAVL","Student Travel","HHSTUTRAVL","FRANKLIN"]
["HHSUMCAMPS","MUSIC - Summer Camps","HHSUMCAMPS","FRANKLIN"]
["HHSYMPHNIC","Symphonic Band","HHSYMPHNIC","FRANKLIN"]
["HHTAYLORS","Taylor, Skip","HHTAYLORS","FRANKLIN"]
["HHTECHFEE","STF School of Music","HHTECHFEE","FRANKLIN"]
["HHTHERAPY","Therapy Area","HHTHERAPY","FRANKLIN"]
["HHTHOMASM","Thomas, Martha","HHTHOMASM","FRANKLIN"]
["HHTHOMASS","Thomas, Susan","HHTHOMASS","FRANKLIN"]
["HHTHURSDAY","Second Thursday","HHTHURSDAY","FRANKLIN"]
["HHTICKETS","MUSIC - Ticket Sales","HHTICKETS","FRANKLIN"]
["HHTINGLERS","Tingler, Stephanie","HHTINGLERS","FRANKLIN"]
["HHTOSCANOK","Toscano, Kim","HHTOSCANOK","FRANKLIN"]
["HHTOURARCO","ARCO Brazil 2019","HHTOURARCO","FRANKLIN"]
["HHTOURCBDN","Cbdna 2019","HHTOURCBDN","FRANKLIN"]
["HHTROMBONE","Trombone Workshop","HHTROMBONE","FRANKLIN"]
["HHTROMSTUD","Trombone Studio","HHTROMSTUD","FRANKLIN"]
["HHTRPTSTUD","Trumpet Studio","HHTRPTSTUD","FRANKLIN"]
["HHTRUMPET","Trumpet Workshop","HHTRUMPET","FRANKLIN"]
["HHTUBAEUPH","Tuba Euphonium Workshop","HHTUBAEUPH","FRANKLIN"]
["HHTUBASTUD","Tuba/Euphonium Studio","HHTUBASTUD","FRANKLIN"]
["HHUGABAND","University Band","HHUGABAND","FRANKLIN"]
["HHUGABANDS","MUSIC - Band Operations","HHUGABANDS","FRANKLIN"]
["HHUGACOMM","Spring Commencement UGA","HHUGACOMM","FRANKLIN"]
["HHUGSHIPS","Undergraduate Scholarships","HHUGSHIPS","FRANKLIN"]
["HHVALDEZS","Valdez, Stephen","HHVALDEZS","FRANKLIN"]
["HHVILNSTUD","Violin Studio","HHVILNSTUD","FRANKLIN"]
["HHVISITART","Visiting Conductors/Composers","HHVISITART","FRANKLIN"]
["HHVOICEARE","Voice Area","HHVOICEARE","FRANKLIN"]
["HHVOICSTUD","Voice Studio","HHVOICSTUD","FRANKLIN"]
["HHVOLASTUD","Viola Studio","HHVOLASTUD","FRANKLIN"]
["HHWARNGLEE","UGAF B Warner Glee Cverra","HHWARNGLEE","FRANKLIN"]
["HHWEBFEES","Web","HHWEBFEES","FRANKLIN"]
["HHWESELOWB","Weselowski, Brian","HHWESELOWB","FRANKLIN"]
["HHWINDENS","Wind Ensemble","HHWINDENS","FRANKLIN"]
["HHWINDSYM","Wind Symphony","HHWINDSYM","FRANKLIN"]
["HHWOODWIND","Woodwinds Area","HHWOODWIND","FRANKLIN"]
["HHWRIGHTK","Wright, Kathryn","HHWRIGHTK","FRANKLIN"]
["HHZERKELD","Zerkel, David","HHZERKELD","FRANKLIN"]
["HWINDOM","To Track Expenses by HLW","HWINDOM","VP AA"]
["INDIVOPER","Instl Div Operations","INDIVOPER","VP AA"]
["INTERDISC","Uwide Interdisciplinary Hire","INTERDISC","VP AA"]
["INVESTSCI","Uwide Investment in Sciences","INVESTSCI","VP AA"]
["ITSUPPORT","Track IT Expenses","ITSUPPORT","VP AA"]
["JBRANDES","To Track Expenses by JAB","JBRANDES","VP AA"]
["JDIAZ","To Track Expenses by JMD","JDIAZ","VP AA"]
["JHEOE","Journal of Higher Education","JHEOE","VP INSTR"]
["JNELSON","To Track Expenses by JRN","JNELSON","VP AA"]
["JSANDERS","To Track Expenses by JGS","JSANDERS","VP AA"]
["LERETFR","Congressional Staff Dinner & R","LERETFR","Government Relations"]
["LERETFR","Congressional Staff Dinner & R","LERETFR","VPGR"]
["LERETFR","Congress Staff Dinner/Retreat","LERETFR","DAR"]
["LIBRARY","Track Library Expenses","LIBRARY","VP AA"]
["LOCAGREE","Track inc of Location Agrmts","LOCAGREE","VPM"]
["LSABA","American Bar Association","LSABA","Law School"]
["LSALUMWKND","Alumni Weekend","LSALUMWKND","Law School"]
["LSAPPELLAT","Appellate Litigation Clinic","LSAPPELLAT","Law School"]
["LSBIZETHCS","Business Ethics Lecture","LSBIZETHCS","Law School"]
["LSBOV","Board of Visitors","LSBOV","Law School"]
["LSBRDG2PRA","Bridge To Practice","LSBRDG2PRA","Law School"]
["LSCEASE","CEASE Clinic","LSCEASE","Law School"]
["LSCRMDEFNS","Criminal Defense Clinic","LSCRMDEFNS","Law School"]
["LSDIVERSTY","Diversity","LSDIVERSTY","Law School"]
["LSEDITHHSE","Edith House Lecture","LSEDITHHSE","Law School"]
["LSERLYSTRT","Early Start Program","LSERLYSTRT","Law School"]
["LSETHCPROF","Legal Ethics and Prof Conf","LSETHCPROF","Law School"]
["LSFVC","Family Violence Clinic","LSFVC","Law School"]
["LSGLOBEXTN","Global Externship","LSGLOBEXTN","Law School"]
["LSGRADUATE","Graduation","LSGRADUATE","Law School"]
["LSHELP","Community HELP Clinic","LSHELP","Law School"]
["LSHOMCOMIN","Homecoming","LSHOMCOMIN","Law School"]
["LSINNCOURT","Inn of Court","LSINNCOURT","Law School"]
["LSJDCLKSHP","Judicial Clerkships","LSJDCLKSHP","Law School"]
["LSJDGVISIT","Judges Visits","LSJDGVISIT","Law School"]
["LSLAWEMORY","Ga Law/Emory Faculty Conf","LSLAWEMORY","Law School"]
["LSLLM","LLM Program","LSLLM","Law School"]
["LSMEDIATN","Mediation Practicum","LSMEDIATN","Law School"]
["LSMOCK","Mock Trial","LSMOCK","Law School"]
["LSMOOT","Moot Court","LSMOOT","Law School"]
["LSMSL","MSL Program","LSMSL","Law School"]
["LSNEGOTIAT","Negotiations","LSNEGOTIAT","Law School"]
["LSORIENT","Orientation","LSORIENT","Law School"]
["LSPROSECTE","Prosecutorial Clinic","LSPROSECTE","Law School"]
["LSRECRUIT","Recruiting","LSRECRUIT","Law School"]
["LSRENOVATE","Renovation","LSRENOVATE","Law School"]
["LSSABBATCL","Sabbatical","LSSABBATCL","Law School"]
["LSSTUAFAIR","Student Affairs/Registrar","LSSTUAFAIR","Law School"]
["LSTRANSACT","Transactional Law Meet","LSTRANSACT","Law School"]
["LSVETERANS","Veterans Clinic","LSVETERANS","Law School"]
["MAINT","Maintenance","MAINT","AUX A"]
["MARINESUPT","To Track Expenses by Mar Supt","MARINESUPT","VP AA"]
["MARTIN","Track Martin Apt Expenses","MARTIN","VP AA"]
["MEBOATS","Small Boat Costs","MEBOATS","VPPSO"]
["MEDORM","Dormitory Costs","MEDORM","VPPSO"]
["MEFACILITY","Facility Costs","MEFACILITY","VPPSO"]
["MEKITCHEN","Cafeteria Costs","MEKITCHEN","VPPSO"]
["MEPROGRAM","Program Costs","MEPROGRAM","VPPSO"]
["MFRISHER","To Track Expenses by MEF","MFRISHER","VP AA"]
["MISCRENT","Miscellaneous Rent","MISCRENT","VP AA"]
["MLCCHARGES","MLC Charges","MLCCHARGES","VP INSTR"]
["MLCMAINT","MLC Maintenance","MLCMAINT","VP INSTR"]
["MTGSDEV","Development Meetings","MTGSDEV","DAR"]
["NOAAPROG","GRNMS Programs","NOAAPROG","VP AA"]
["NON_MAINT","Non-Maintenance","NON_MAINT","AUX A"]
["OHATCHERY","Oyster Hatchery Costs","OHATCHERY","VPPSO"]
["ONCAMPSREC","On Campus Recruitment Effort","ONCAMPSREC","VP INSTR"]
["OOS","Out of state recruitment","OOS","VP INSTR"]
["ORIENT","Orientation Travel","ORIENT","VP INSTR"]
["OSAS","Online Subscriptions","OSAS","DAR"]
["PB","Peabody Weekend","PB","DAR"]
["PEACHTREE","Peachtree City costs","PEACHTREE","VPPSO"]
["PHAPPFEE","PreHealth Application Fee","PHAPPFEE","VP INSTR"]
["PHOTOHS","Track inc of Photo headshots","PHOTOHS","VPM"]
["PHOTOLIC","Track inc of Photo licensing","PHOTOLIC","VPM"]
["PHPROG","PreHealth Programming Fee","PHPROG","VP INSTR"]
["PLFAIR","PreLaw Fair","PLFAIR","VP INSTR"]
["POAG","Direct Mail","POAG","DAR"]
["PRESSU1819","Uwide Presidential SU 18-19","PRESSU1819","VP AA"]
["PROVTRAVEL","Uwide Provost Travel","PROVTRAVEL","VP AA"]
["PRPG","GEP Newsletter","PRPG","DAR"]
["PRSUCOMM","Print Support","PRSUCOMM","DAR"]
["PUBLICINFO","Track Public Info Expenses","PUBLICINFO","VP AA"]
["QUAD","Track Quad Housing Expenses","QUAD","VP AA"]
["REGREVENUE","Registrar revenue","REGREVENUE","VP INSTR"]
["RESLABEXP","Track Research Lab Expenses","RESLABEXP","VP AA"]
["RICE","Track Rice House Expenses","RICE","VP AA"]
["RLEE","To Track Expenses by RFL","RLEE","VP AA"]
["ROYADV","Royalty Advance","ROYADV","LIBRARY"]
["RVBULLDOG","R/V GA BULLDOG Costs","RVBULLDOG","VPPSO"]
["RVJBLANTON","Track RV Jack Blanton Expenses","RVJBLANTON","VP AA"]
["RVMT","Track RV Savannah MT Expenses","RVMT","VP AA"]
["RVSANDFLEA","Track RV Sand Flea Expenses","RVSANDFLEA","VP AA"]
["RVSANDPIPE","Track RV Sand Piper Expenses","RVSANDPIPE","VP AA"]
["RVSAV","Track RV Savannah Expenses","RVSAV","VP AA"]
["SALARYSVG","Track cost of Salary Savings","SALARYSVG","VPM"]
["SALEMEMOR","Sales and Memorabilia","SALEMEMOR","VP AA"]
["SBDCPRODEV","SBDC Professional Development","SBDCPRODEV","VPPSO"]
["SE1F","1st Football Game","SE1F","DAR"]
["SE2F","2nd Football Game","SE2F","DAR"]
["SE3F","3rd Football Game","SE3F","DAR"]
["SE4F","4th Football Game","SE4F","DAR"]
["SE5F","5th Football Game","SE5F","DAR"]
["SE6F","6th Football Game","SE6F","DAR"]
["SEADAWG","R/V SEA DAWG Costs","SEADAWG","VPPSO"]
["SEAF","Away Game","SEAF","DAR"]
["SEAF2","Away Game #2","SEAF2","DAR"]
["SEARTCOU","Spotlight on the Arts","SEARTCOU","DAR"]
["SEASOPRF","Promotion & Tenure Assoc Prof","SEASOPRF","DAR"]
["SEBASEBL","UGA Baseball Game","SEBASEBL","DAR"]
["SEBD","Building Ded/Groundbreakings","SEBD","DAR"]
["SEBW","Bowl Weekend","SEBW","DAR"]
["SECFGSDN","Coca Cola 1st Gen","SECFGSDN","DAR"]
["SEDEVDC","DC Reception","SEDEVDC","DAR"]
["SEDNDEAN","Dean Reception #1","SEDNDEAN","DAR"]
["SEDNRD","Small Donor Dinners","SEDNRD","DAR"]
["SEDNRL1","Small Donor Luncheons","SEDNRL1","DAR"]
["SEDNSOC","Dean Social Work","SEDNSOC","DAR"]
["SEDRFDN","Deer Run Fellows Dnnr (Fall)","SEDRFDN","DAR"]
["SEDRFDN2","Deer Run Fellows Dnnr (Spr)","SEDRFDN2","DAR"]
["SEDV","Dignitary Visit","SEDV","DAR"]
["SEFD","Faculty Dinner","SEFD","DAR"]
["SEFD1","Faculty Dinner 1","SEFD1","DAR"]
["SEFD2","Faculty Dinner 2","SEFD2","DAR"]
["SEFD3","Faculty Dinner 3","SEFD3","DAR"]
["SEFDNFEL","Foundation Fellow Stdnt Evt","SEFDNFEL","DAR"]
["SEFFFREC","Foundation Fellows Frshmn Recp","SEFFFREC","DAR"]
["SEFL1","Faculty Luncheon 1","SEFL1","DAR"]
["SEFL2","Faculty Luncheon 2","SEFL2","DAR"]
["SEFL3","Faculty Luncheon 3","SEFL3","DAR"]
["SEFNDRS","Founders Day Luncheon","SEFNDRS","DAR"]
["SEFR","Facutly Receptions","SEFR","DAR"]
["SEFR1","Faculty Reception 1","SEFR1","DAR"]
["SEFR2","Faculty Reception 2","SEFR2","DAR"]
["SEFR3","Faculty Reception 3","SEFR3","DAR"]
["SEFR4","Faculty Reception 4","SEFR4","DAR"]
["SEGDF","G-Day Football Game","SEGDF","DAR"]
["SEHG","Holiday Greeting Cards","SEHG","DAR"]
["SEHH","Holmes Hunter Lunch","SEHH","DAR"]
["SEHO","Holiday Open House","SEHO","DAR"]
["SEHON","Honors","SEHON","DAR"]
["SEIF","Instructional Faculty","SEIF","DAR"]
["SEMCBEDN","McBee Lecture/Dinner","SEMCBEDN","DAR"]
["SEMFS","Multicultural Faculty Staff","SEMFS","DAR"]
["SENATLPR","National Presence","SENATLPR","DAR"]
["SENCAA","President's NCAA Champ I","SENCAA","DAR"]
["SENF","New Faculty","SENF","DAR"]
["SEODYDIN","1st Year Odyssey Class Dinner","SEODYDIN","DAR"]
["SEPARFAM","Parents & Families Ldrshp Coun","SEPARFAM","DAR"]
["SEPBDIN","Peabody Dinner","SEPBDIN","DAR"]
["SEPBR","Peabody Board Reception","SEPBR","DAR"]
["SEPROF","Promotion & Tenure Full Prof","SEPROF","DAR"]
["SERDAWGS","Admission Road Dawgs","SERDAWGS","DAR"]
["SERR","UGARA Retirees","SERR","DAR"]
["SERSFCDN","Research Faculty","SERSFCDN","DAR"]
["SESAREC","Student Ambassador Reception","SESAREC","DAR"]
["SESD","Small Student Dinners","SESD","DAR"]
["SESD1","Small Student Dinner 1","SESD1","DAR"]
["SESD2","Student Dinner 2","SESD2","DAR"]
["SESD3","Student Dinner 3","SESD3","DAR"]
["SESECWK","SEC Weekend","SESECWK","DAR"]
["SESL","Holiday Staff Luncheon","SESL","DAR"]
["SESR","Senior Adminstrators' Retreat","SESR","DAR"]
["SESTRC","Student Receptions","SESTRC","DAR"]
["SESTRC1","Student Reading Day","SESTRC1","DAR"]
["SESTULD","Student Leader Dinner","SESTULD","DAR"]
["SESU","State of the University","SESU","DAR"]
["SEVPREC","New Deans / VP Receptions","SEVPREC","DAR"]
["SEWC","University Woman's Coffee Club","SEWC","DAR"]
["SKIOBIOL","SKIO Biological Research","SKIOBIOL","VP AA"]
["SKIOCHEM","SKIO Chemical Research","SKIOCHEM","VP AA"]
["SKIOPHYS","SKIO Physical Research","SKIOPHYS","VP AA"]
["SLCEXP","Science Learn Expense","SLCEXP","VP INSTR"]
["SOPSID","SKIO RV Ops ID","SOPSID","VP AA"]
["SOPSMOSA","SKIO RV Ops Major Overhaul","SOPSMOSA","VP AA"]
["SPECLHIRES","Uwide Special Hires","SPECLHIRES","VP AA"]
["SPRING","Spring Orientation","SPRING","VP INSTR"]
["SSWADMISS","Track Program Expenses","SSWADMISS","SSW"]
["SSWASSOCDN","Track ASSOCIATE DEAN EXPENSES","SSWASSOCDN","SSW"]
["SSWBSW","Track Program Expenses","SSWBSW","SSW"]
["SSWDEANAL","Track special alloc by Dean","SSWDEANAL","SSW"]
["SSWEAT","Track Program Expenses","SSWEAT","SSW"]
["SSWEVENTS","Track SSW events","SSWEVENTS","SSW"]
["SSWFACRSH","Track Faculty Rsh","SSWFACRSH","SSW"]
["SSWFIELD","Track Program Expenses","SSWFIELD","SSW"]
["SSWFYO","Track First Year Odyssey Exp","SSWFYO","SSW"]
["SSWGLOBAL","Track Global Expenses","SSWGLOBAL","SSW"]
["SSWIDC","Track Indir Cost Retrun Expe","SSWIDC","SSW"]
["SSWMFT","Track Program Expenses","SSWMFT","SSW"]
["SSWMNPO","Track Program Expenses","SSWMNPO","SSW"]
["SSWMSW","Track Program Expenses","SSWMSW","SSW"]
["SSWPHD","Track Program Expenses","SSWPHD","SSW"]
["SSWPRESGRN","Presidential Interdisc Grants","SSWPRESGRN","SSW"]
["SSWPTFAC","Track Part-time Fac budget","SSWPTFAC","SSW"]
["SSWSPECAL","Track special alloc by Others","SSWSPECAL","SSW"]
["SSWSTARTUP","Track start up costs","SSWSTARTUP","SSW"]
["SSWSTDSUPP","Track student sup across fund","SSWSTDSUPP","SSW"]
["STARTUP","New Faculty startup","STARTUP","JRNL"]
["STARTUP","Track Startup Expenses","STARTUP","VP AA"]
["STFLTG","Learning Tech Grant STF","STFLTG","VP INSTR"]
["STUDIORENT","Track inc of studio rental","STUDIORENT","VPM"]
["THOMAS","Track Thomas Apt Expenses","THOMAS","VP AA"]
["TRAVEL","Admissions Travel","TRAVEL","VP INSTR"]
["UBI","To track UBI activities","UBI","AUX A"]
["UWIDECONT","Uwide Contingency","UWIDECONT","VP AA"]
["UWIDEGRAD","Uwide Grad Assistantships","UWIDEGRAD","VP AA"]
["UWIDEINFOR","Uwide Informatics","UWIDEINFOR","VP AA"]
["UWIDERETEN","Uwide Retention","UWIDERETEN","VP AA"]
["VEHMAINT","Vehicle Maintenance","VEHMAINT","AUX A"]
["VEHOPS","Vehicle Operations","VEHOPS","AUX A"]
["VENDBDBFEE","Vending Bulldog Buck Usage Fee","VENDBDBFEE","AUX A"]
["VENDPPFEE","Vending Paw Points Usage Fee","VENDPPFEE","AUX A"]
["VETERANS","Revenue from Veterans Services","VETERANS","VP INSTR"]
["VIDEOSERV","Track inc of video services","VIDEOSERV","VPM"]
["VIDSUCOMM","Video Support","VIDSUCOMM","DAR"]
["VPAAACPROG","VPAA Academic Programs","VPAAACPROG","VP AA"]
["VPAACOMMIT","VPAA Commitments","VPAACOMMIT","VP AA"]
["VPAADSSFWD","VPAA DSS Carry Forward","VPAADSSFWD","VP AA"]
["VPAAIDCFWD","VPAA IDC Return","VPAAIDCFWD","VP AA"]
["VPAAIDCRET","VPAA IDC Carryforward","VPAAIDCRET","VP AA"]
["VPAAOPER","VPAA Operations","VPAAOPER","VP AA"]
["VPICOMMIT","VPI Commitments","VPICOMMIT","VP INSTR"]
["VPIDSSFWD","VPI DSS Carry Forward","VPIDSSFWD","VP INSTR"]
["VPIFYO","FYO costs","VPIFYO","VP INSTR"]
["VPIGRAD","Graduate funds to Colleges","VPIGRAD","VP INSTR"]
["VPIIDCFWD","VPI IDC Carry Forward","VPIIDCFWD","VP INSTR"]
["VPIIDCRET","VPI IDC Return","VPIIDCRET","VP INSTR"]
["VPILECT","Lecturer support","VPILECT","VP INSTR"]
["VPIOPER","VPI Operations","VPIOPER","VP INSTR"]
["VPISUMMER","VPI Summer Allocation","VPISUMMER","VP INSTR"]
["VPISUPPFC","VPI Supplemental FC","VPISUPPFC","VP INSTR"]
["VPITEACH","Instructional Alloc Colleges","VPITEACH","VP INSTR"]
["WEBSUCOMM","Web Support","WEBSUCOMM","DAR"]
["WSAVIDGE","To Track Expenses by WBS","WSAVIDGE","VP AA"]
["YAAG","Young Alumni Initiatives","YAAG","DAR"]
["YIELD","Yield recruitment","YIELD","VP INSTR"]